{"text_format":"1","workbook":"xlsx","n_sheets":6,"sheets":["Opening page","Master_list","Business Specific List","Generated list","List","Dropdown menus"],"not_rendered":{"charts":0,"images":3,"macros":1,"external_links":0,"defined_names":10,"comments":0,"pivot_tables":0},"unopened":[],"bounds":{"document_bytes":16777216,"sheet_cells":100000,"rows_first":2000,"rows_last":500,"rows_between":2000,"halvings":0,"cell_chars":16384,"cell_head_chars":4096},"cells_cut":0,"cells_raw":0,"read":"whole","date_system":"1900"}

{"sheet":"Opening page","index":0,"n_rows":5,"n_cols":2,"rows_kept":5,"cut":false,"hidden":false,"merged":[]}
[null,"Nursery & Garden Industry Queensland iPLANT Plant Water Use Database"]
[null,"This tool allows the user to develop a list of plants and their relative water use using both the NGIQ iPLANT Water Use Database and user experience."]
[null,"The NGIQ iPLANT Plant Water Use Database relies on a database of generic plant water use developed from a range of data sources. This tool does not contain a complete database of plants and their water use, but does have the functionality to input data from other sources, such as grower experience."]
[null,"This NGIQ iPLANT Plant Water Use Tool has been developed from the on-line iPLANT water use tool which was produced as part of the South-East Queensland Irrigation Futures project. This off-line version has been developed using funding provided by the Department of Natural Resources Mines and Energy under the Farm Water Futures project."]
[null,"Whilst NGIQ has endeavoured to ensure the accuracy of the data within iPLANT, and in reports generated from this data, the information provided is based on generic plant water use data and can only be used as a guide to specific plant water use. NGIQ accepts no liability for the consequences to personal, property, business or otherwise arising from the application, implementation or use of the information contained in this report."]

{"sheet":"Master_list","index":1,"n_rows":3908,"n_cols":8,"rows_kept":3908,"cut":false,"hidden":false,"merged":[[0,0,0,4]]}
["Instructions for use: The complete database is on the left-hand side. To create a custom list in the right-hand columns scroll through the left hand list and click on a plant to select and transfer to the list on the right-hand side. To make specific plants easier to find both lists can be filtered using the Excel filter function if required. To delete plants from the right-hand list click on the entry then click the 'Delete entry' button. To add custom plant water use data select 'Add custom data'. To generate the selected list click 'Generate list', and to print the completed list select 'Print List' on the generated list page."]
[]
["Botanical name","Common name","Water requirements",null,null,"Botanical name","Common name","Water requirements"]
["Abelia","Abelia","Medium"]
["Abelia chinensis","Chinese Abelia","Medium"]
["Abelia floribunda ","Mexican Abelia ","Medium"]
["Abelia 'Francis Mason' ","Golden Abelia ","Medium"]
["Abelia 'Sherwoodii' ","Sherwood Dwarf Abelia ","Medium"]
["Abelia x grandiflora","Glossy Abelia","Low"]
["Abies pinsapo ","Spanish fir ","Low"]
["Abies spp. ","Fir ","Medium"]
["Abrotanella forsterioidess",null,"High"]
["Abutilon","Chinese Lantern","Medium"]
["Abutilon hybridum","Abutilon","Medium"]
["Abutilon palmeri ","Indian Mallow ","Low"]
["Abutilon x hybridum ","Chinese Lantern ","Medium"]
["Acacia","Wattle","Low"]
["Acacia abyssinica ","Abyssinian Acacia ","Low"]
["Acacia acanthoclada","Harrow Wattle","Low"]
["Acacia acellerata ",null,"Low"]
["Acacia acinacea","Gold Dust Wattle","Medium"]
["Acacia acuminata","Raspberry Jam Wattle","Low"]
["Acacia adunca ","Wallangarra Wattle ","Medium"]
["Acacia alata",null,"Medium"]
["Acacia alpina ",null,"Medium"]
["Acacia amoena","Boomerang Wattle","Low"]
["Acacia aneura","Mulga","Low"]
["Acacia argyrophylla","Silver Mulga ","Low"]
["Acacia arida",null,"Low"]
["Acacia aspera","Rough Wattle","Low"]
["Acacia assimilis",null,"Low"]
["Acacia assimilis  ",null,"Low"]
["Acacia baileyana ","Cootamundra Wattle ","Low"]
["Acacia baueri ",null,"Medium"]
["Acacia beckleri","Acacia","Low"]
["Acacia berlandieri ","Guajillo ","Low"]
["Acacia binervata ",null,"Medium"]
["Acacia binervia ",null,"Medium"]
["Acacia boormanii ","Snowy River wattle ","Low"]
["Acacia brachybotrya",null,"Low"]
["Acacia brachystachya","Umbrella Mulga","Low"]
["Acacia burkittii ",null,"Low"]
["Acacia caerulescens  ",null,"Medium"]
["Acacia calamifolia","Wallowa","Low"]
["Acacia cambagei","Gidgee","Low"]
["Acacia cardiophylla","Wyalong Wattle","Low"]
["Acacia cheelii ",null,"Low"]
["Acacia cochlearis ",null,"Low"]
["Acacia cognata","Green Mist","Low"]
["Acacia cognata (A.subporosa) ","Bower wattle ","Low"]
["Acacia cognata 'Green Mist'","River Wattle","Medium"]
["Acacia cognata Limelight","Limelight Wattle","Low"]
["Acacia cognata 'Limelight' ","Bower Wattle ","Low"]
["Acacia colletioides","Wait-A-While ","Low"]
["Acacia cometes",null,"Low"]
["Acacia conferta ","Golden Top","Low"]
["Acacia constricta ","Whitethorn Acacia ","Low"]
["Acacia continua",null,"Low"]
["Acacia coriacea",null,"Low"]
["Acacia craspedocarpa ","Leatherleaf Acacia ","Low"]
["Acacia cultriformis","Knife-leaf Wattle","Medium"]
["Acacia cunninghamii",null,"Low"]
["Acacia dealbata ","Silver Wattle ","Low"]
["Acacia decurrens ","Black Wattle ","Low"]
["Acacia dictyophieba  ",null,"Low"]
["Acacia doratoxylon ",null,"Low"]
["Acacia drummondii","Drummonds Wattle","Low"]
["Acacia elata ","Cedar Wattle ","Low"]
["Acacia elongata ",null,"Medium"]
["Acacia estrophiolata ",null,"Low"]
["Acacia extensa ",null,"Medium"]
["Acacia falcata ","Sickle Wattle ","Low"]
["Acacia falciformis ",null,"Medium"]
["Acacia farinosa ","Mealy Mallee","Low"]
["Acacia farnesiana","Perfumed Wattle","Low"]
["Acacia farnesiana ","Sweet Acacia ","Low"]
["Acacia filicifolia ",null,"Medium"]
["Acacia fimbriata ","Fringed Wattle ","Low"]
["Acacia fimbriata 'Dwarf Form' ","Dwarf Fringed Wattle ","Low"]
["Acacia floribunda ","Sally Wattle ","Low"]
["Acacia genistifolia",null,"Low"]
["Acacia gillii",null,"Low"]
["Acacia gladiiformis","Sword Leaf Wattle","Low"]
["Acacia glaucoptera ","Clay Wattle ","Low"]
["Acacia gnidium ",null,"Low"]
["Acacia gonophylla ",null,"Low"]
["Acacia gracilifolia ",null,"Low"]
["Acacia greggii ","Catclaw Acacia ","Low"]
["Acacia hakeoides","Hakea Wattle ","Low"]
["Acacia harpophylla","Brigalow","Low"]
["Acacia hispidula ",null,"Low"]
["Acacia howittii ","Sticky Wattle ","Low"]
["Acacia implexa ","Hickory Wattle ","Low"]
["Acacia inophloia ",null,"Low"]
["Acacia iteaphylla","Gawler Range Wattle","Low"]
["Acacia ixiophylla ",null,"Low"]
["Acacia kempeana ",null,"Low"]
["Acacia kettlewelliae ",null,"Medium"]
["Acacia kybeanensis   ",null,"Medium"]
["Acacia leprosa",null,"Medium"]
["Acacia leptospermoides  ",null,"Low"]
["Acacia ligulata","Small Cooba","Low"]
["Acacia linifolia ","Flax-leafed Wattle ","Low"]
["Acacia littorea",null,"Medium"]
["Acacia longifolia ","Sydney Golden Wattle ","Low"]
["Acacia longissima","Wattle","Low"]
["Acacia loxophylla",null,"Low"]
["Acacia luteola",null,"Low"]
["Acacia macradenia ","Zig-zag Wattle","Low"]
["Acacia maidenii ","Maiden's Wattle ","Medium"]
["Acacia melanoxylon ","Blackwood ","Low"]
["Acacia menzelii ",null,"Low"]
["Acacia merinthophora ",null,"Low"]
["Acacia merrallii",null,"Low"]
["Acacia microcarpa ",null,"Low"]
["Acacia mucronata ",null,"Medium"]
["Acacia myrtifolia","Myrtle Wattle","Low"]
["Acacia myrtifolia prostrate",null,"Medium"]
["Acacia nigripilosa ",null,"Low"]
["Acacia notabilis ",null,"Low"]
["Acacia obliquinervia  ",null,"Medium"]
["Acacia osswaldii","Umbrella Wattle","Low"]
["Acacia oswaldii ",null,"Low"]
["Acacia oxycedrus ",null,"Medium"]
["Acacia oxyclada",null,"Low"]
["Acacia papyrocarpa ",null,"Low"]
["Acacia paradoxa ",null,"Medium"]
["Acacia parramattensis ","Parramatta Green Wattle ","Low"]
["Acacia pendula","Weeping Myall","Low"]
["Acacia pennatula ","Pennatula Acacia ","Low"]
["Acacia penninervis  ",null,"Medium"]
["Acacia pentadenia ",null,"Medium"]
["Acacia peuce","Acacia","Low"]
["Acacia podalyriifolia ","Queensland Silver Wattle ","Low"]
["Acacia polybotrya",null,"Medium"]
["Acacia pravissima","Ovens Wattle","Low"]
["Acacia pravissima ‘Golden Carpet’ ",null,"Medium"]
["Acacia prominens ","Gosford Wattle ","Medium"]
["Acacia pruinosa ",null,"Low"]
["Acacia pycnantha","Golden Wattle","Low"]
["Acacia pyrifolia",null,"Low"]
["Acacia quornensis",null,"Low"]
["Acacia redolens ","Prostrate Acacia ","Low"]
["Acacia retinodes","Silver Wattle","Low"]
["Acacia rhetinocarpa ",null,"Low"]
["Acacia riceana ",null,"Medium"]
["Acacia rigens ","Needle-leaf Acacia ","Low"]
["Acacia rigidula ","Rigidula Acacia ","Low"]
["Acacia rossei","Ross’s Wattle","Low"]
["Acacia rossei ",null,"Low"]
["Acacia rubida ",null,"Medium"]
["Acacia salicina ","Willow Acacia ","Low"]
["Acacia saligna ","Blue-leaf Wattle ","Low"]
["Acacia schaffneri ","Twisted Acacia ","Low"]
["Acacia schinoides ",null,"Medium"]
["Acacia sclerophylla",null,"Low"]
["Acacia sclerosperma",null,"Low"]
["Acacia shuttieworthii ",null,"Low"]
["Acacia siculiformis ",null,"Medium"]
["Acacia silvestris  ",null,"Medium"]
["Acacia smallii ","Desert Sweet Acacia ","Low"]
["Acacia sophorae","Coastal Wattle","Low"]
["Acacia sowdenii","Western Myall","Low"]
["Acacia spathulata","Acacia","Low"]
["Acacia spathulifolia ",null,"Low"]
["Acacia spectabilis","Eumung","Low"]
["Acacia spinescens","Spiny Wattle","Low"]
["Acacia steedmanii",null,"Low"]
["Acacia stenophylla","Native Willow","Low"]
["Acacia stricta ","Hop Wattle ","Low"]
["Acacia strongylophylla  ",null,"Low"]
["Acacia suaveolens ","Sweet Scented Wattle ","Low"]
["Acacia subporosa",null,"Medium"]
["Acacia tayloriana  ",null,"Medium"]
["Acacia terminalis ","Cedar Wattle ","Low"]
["Acacia termrnahs ",null,"Medium"]
["Acacia tetragonophylla","Kurana ","Low"]
["Acacia tindaleae  ",null,"Low"]
["Acacia trineura  ",null,"Low"]
["Acacia triptera ",null,"Low"]
["Acacia ulicifolia","Prickly Moses","Low"]
["Acacia ulicifolia var. brownei ",null,"Medium"]
["Acacia ulicolia  ",null,"Medium"]
["Acacia uncinata  ",null,"Low"]
["Acacia urophylla  ",null,"Medium"]
["Acacia var. nervosa ",null,"Low"]
["Acacia verniciflua",null,"Medium"]
["Acacia verticillata  ",null,"Medium"]
["Acacia vestita ","Hairy Wattle ","Low"]
["Acacia vestita ","Weeping Boree ","Medium"]
["Acacia victoriae ",null,"Low"]
["Acacia willardiana ","Palo Blanco ","Low"]
["Acacia williamsonii","Whirrakee","Low"]
["Acaena caesiiglauca ","New Zealand Burr ","Medium"]
["Acalypha","Fijian Fire Bush","High"]
["Acalypha wilkesiana ","Fijian Fire Plant ","High"]
["Acanthus","Oyster Plant","High"]
["Acanthus mollis ","Oyster Plant ","Medium"]
["Acca sellowiana ","Pineapple Guava ","Low"]
["Acer","Japanese Maple","High"]
["Acer buergerianum ","Trident Maple ","Medium"]
["Acer campestre","Field Maple","Low"]
["Acer circinatum ","Vine Maple ","Medium"]
["Acer griseum ","Paperbark Maple ","Medium"]
["Acer macrophyllum ","Big-leaf Maple ","Medium"]
["Acer negundo ","Box Elder ","Low"]
["Acer oblongum ","Evergreen Maple","Medium"]
["Acer palmatum ","Japanese Maple ","Medium"]
["Acer paxii ","Maple ","Medium"]
["Acer platanoides ","Norway Maple ","Medium"]
["Acer rubrum ","Red Maple ","Medium"]
["Acer saccharum ","Sugar Maple ","Medium"]
["Acer saccherinum","Silver Maple","Low"]
["Acer tataricum ssp. ginnala ","Amur Maple ","Medium"]
["Acer truncatum ","Chinese Maple ","Medium"]
["Acer x freemanii","Freeman Maple","Medium"]
["Achillea ageratifolia ","Greek Yarrow ","Medium"]
["Achillea clavennae ","Silvery Yarrow ","Low"]
["Achillea filipendulina ","Fern-leaf Yarrow ","Low"]
["Achillea millefolium & hybrids ","Common Yarrow ","Low"]
["Achillea ptarmica ","Sneezewort ","Low"]
["Achillea tomentosa","Woolly Yarrow","Low"]
["Achillea X kellerii ","Kellerii Achillea ","Low"]
["Acmena","Lilly Pilly","Low"]
["Acmena brachyandra  ",null,"Medium"]
["Acmena smithii","Lillypilly","Low"]
["Acmena smithii 'Allyn's Magic'","Lilly Pilly Allyn Magic","Low"]
["Acmena smithii var.minor ","Dwarf Lillypilly ","Medium"]
["Aconitum napellus ","Garden Monkshood ","Medium"]
["Acorus gramineus","Acorus","Medium"]
["Acorus gramineus 'Variegatus' ","Variegated Grassy-leaved Sweet Flag ","High"]
["Acradenia frankliniae  ",null,"Medium"]
["Acronychia oblqngifolia  ",null,"Medium"]
["Acrotriche prostrata  ",null,"Medium"]
["Acrotriche serrulatas",null,"Medium"]
["Actinidia arguta ","Tara ","Medium"]
["Actinidia deliciosa ","Kiwi ","High"]
["Actinodium cunninghamii  ",null,"Medium"]
["Actinostrobus","Sandplain Cypress","Low"]
["Actinostrobus pyramidalis","Swan River Cypress","Low"]
["Actinotus helianthi","Flannel flower","Medium"]
["Adansonia gregorii ","Bottle Tree ","Low"]
["Adenanthos","Woolly Bush","Low"]
["Adenanthos cuneatus","Coral Carpet ","Low"]
["Adenanthos cunninghamii","Prostrate Woolly Bush","Low"]
["Adenanthos drummondii ","Woolly Bush ","Low"]
["Adenanthos sericea ","Woolly Bush ","Low"]
["Adenia heterophylla  ",null,"Medium"]
["Adenium obesum","Desert Rose","Low"]
["Adenophora bulleyana ","Ladybells ","High"]
["Adenophora liliifolia ","Lily-leaf Ladybells ","High"]
["Adenostoma fasciculatum ","Chamise ","Low"]
["Adenostoma sparsifolium ","Red Shanks","Low"]
["Adiantum aethiopicum ","Common Maidenhair Fern ","Medium"]
["Adiantum aethiopicum  ",null,"Medium"]
["Adiantum capillus-veneris  ",null,"Medium"]
["Adiantum formosum ","Giant Maidenhair ","Low"]
["Adiantum hispidulum ","Rough Maidenhair Fern ","Medium"]
["Adiantum spp. ","Maidenhair Fern ","High"]
["Aeonium arboreum","Black Aeonium","Medium"]
["Aeonium arboreum 'Zwartkop' ","Black Rose ","Low"]
["Aeonium spp. ","Canary Island Rose ","Low"]
["Aesculus californica ","California Buckeye ","Low"]
["Aesculus pavia ","Red Buckeye ","Medium"]
["Aesculus X carnea ","Red Horse-chestnut ","Medium"]
["Aethionema armenium 'Warley Rose' ","Warley Rose Stone Cress ","Medium"]
["Aethionema grandiflorum ","Persian Stone Cress ","Low"]
["Afrocarpus gracilior (Podocarpus gracilior) ","African Fern Pine ","Medium"]
["Agapanthus africanus ","Lily-of-the-Nile ","Medium"]
["Agapanthus campanulatus ",null,"Medium"]
["Agapanthus inapertus major ",null,"Medium"]
["Agapanthus praecox spp. orientalis & cvs ","Agapanthus Cultivars","Medium"]
["Agapanthus spp.","African Lily","Low"]
["Agapetes 'Ludgvan Cross' ","Ludgvan Cross Agapetes ","Medium"]
["Agapetes meiniana  ",null,"Medium"]
["Agapetes serpens (Pentapetpterygium) ","Agapetes ","Medium"]
["Agastache aurantica ","Giant Hyssop ","Medium"]
["Agastache cana ","Mosquito Plant ","Medium"]
["Agastache coccinea 'Pink' ","Agastache ","Medium"]
["Agastache rugosa ","Wrinkled Agastache ","Medium"]
["Agastachys odorata ",null,"Medium"]
["Agathis australis ","Kauri ","Medium"]
["Agathis robusta ","Queensland Kauri ","Medium"]
["Agave americana","Century Plant","Low"]
["Agave attenuata ","Spineless Agave","Low"]
["Agave spp. ","Agave ","Low"]
["Agave victoriae-reginae ","Victoriae-reginae Agave ","Low"]
["Ageratum","Ageratum ","High"]
["Ageratum houstonianum ","Floss Flower ","Medium"]
["Aglaonema spp.","Aglaonema","High"]
["Agonis flexuosa ","Willow Myrtle ","Low"]
["Agonis flexuosa 'nana'","Dwarf Willow Myrtle","Medium"]
["Agonis hypericifolia ",null,"Medium"]
["Agonis juniperina",null,"Medium"]
["Agonis marginata",null,"Medium"]
["Agonis spp.","Willow Myrtle ","Low"]
["Agrostis palustris ","Creeping Bent Grass ","High"]
["Agyranthemum 'Chelsea girl' ","Agyranthemum ","Medium"]
["Ailanthus altissima ","Tree of Heaven ","Low"]
["Ajuga australis ",null,"Medium"]
["Ajuga reptans ","European Bugle ","High"]
["Ajuga reptans ","Carpet Bugle ","Medium"]
["Ajuga spp.","Blue Bugle","Medium"]
["Akebia quinata ","Five-leaf Akebia ","Low"]
["Albizia distachya ","Plume Albizia ","Low"]
["Albizia julibrissin","Silk Tree","Medium"]
["Albizia lebbeck","Indian Sirus","Low"]
["Alcea rosea ","Hollyhock ","Medium"]
["Alchemilla mollis ","Lady's Mantle ","Medium"]
["Alectryon excelsus ","Alectryon","Medium"]
["Allamanda cathartica ","Golden Trumpet Vine ","Medium"]
["Allamanda spp.","Golden Trumpet","Medium"]
["Allium schoenoprasum ","Chives ","Low"]
["Allium spp. ","Allium ","Medium"]
["Allocasuarina","Sheoke","Low"]
["Allocasuarina campestris ",null,"Low"]
["Allocasuarina decaisneana ",null,"Low"]
["Allocasuarina distyla","Scrub She Oak","Low"]
["Allocasuarina huegeliana ",null,"Low"]
["Allocasuarina huniilis  ",null,"Medium"]
["Allocasuarina iehmanniana  ",null,"Medium"]
["Allocasuarina littoralis","Black She Oak","Low"]
["Allocasuarina luehmannii",null,"Medium"]
["Allocasuarina microstachya  ",null,"Low"]
["Allocasuarina muelleriana  ",null,"Low"]
["Allocasuarina paludosa  ",null,"Medium"]
["Allocasuarina pinaster ",null,"Low"]
["Allocasuarina pusilla ",null,"Medium"]
["Allocasuarina torulosa ","Forest Oak ","Low"]
["Allocasuarina trichodon ",null,"Low"]
["Allocasuarina verticillata","Drooping She Oak","Medium"]
["Alloxylon flammeum ","Tree Waratah ","Medium"]
["Alloxylon pinnatum ","Dorrigo Waratah ","Medium"]
["Alnus","Alder","Medium"]
["Alnus cordata ","Italian Alder ","Medium"]
["Alnus glutinosa ","Black Alder ","Medium"]
["Alnus jorullensis ","Evergreen Alder ","Medium"]
["Alnus oregona ","Oregon Alder ","High"]
["Alnus rhombifolia ","White Alder ","High"]
["Alocasia brisbanensis ","Cunjevoi","Medium"]
["Alocasia macrorrhiza","Giant Elephant's Ear","Medium"]
["Alocasia spp. ","Elephant's Ear ","High"]
["Aloe arborescens ","Candelabra Aloe ","Low"]
["Aloe polyphylla ","Spiral Aloe ","Low"]
["Aloe saponaria ","Soap Aloe ","Low"]
["Aloe spp. ","Aloe ","Low"]
["Aloe vera","Aloe Vera","Low"]
["Alonsoa warscewiczii ","Mask Flower ","Medium"]
["Alopecurus pratensis 'Aureus' ","Golden Foxtail ","Medium"]
["Aloysia machrostachya ","Aloysia ","Low"]
["Aloysia triphylla ","Lemon Verbena ","Low"]
["Alphitonia excelsa ","Red Ash ","Low"]
["Alphitonia petriei ",null,"Medium"]
["Alpinia caerula 'Red Leaf Form'","Red-leaf Native Ginger ","Medium"]
["Alpinia caerulea ","Native Ginger ","Medium"]
["Alpinia zerumbet ","Shell Ginger ","Medium"]
["Alstroemeria 'Dwarf'","Dwarf Alstroemeria","High"]
["Alstroemeria spp. ","Peruvian Lily ","Medium"]
["Alternanthera brasiliana (A. dentata)","Purple Joyweed","Medium"]
["Alternanthera ficoidea","Alternanthera","Medium"]
["Alternanthera spp","Alternanthera","Medium"]
["Alyogyne","Native Hibiscus","Low"]
["Alyogyne hakeifolia","Desert Rose","Medium"]
["Alyogyne huegelii","Blue Hibiscus","Medium"]
["Alyssum","Alyssum ","Medium"]
["Alyssum montanum ","Mountain Alyssum ","Low"]
["Alyxia ruscifolia ",null,"Medium"]
["Amaranthus spp.","Amaranthus","High"]
["Amaranthus tricolor ","Joseph's Coat ","Medium"]
["Amaryllis belladonna","Naked Lady ","Low"]
["Ambrosia deltoidea ","Triangle-leaf Bursage ","Low"]
["Ambrosia dumosa ","White Bursage ","Low"]
["Ammobium alatum ","Winged Everlasting ","Medium"]
["Amorpha fruiticosa ","False Indigobush ","Medium"]
["Ampelopis brevipedunculata ","Blueberry Creeper ","Medium"]
["Amphibromus neesii  ",null,"Medium"]
["Anaclycus pyrethrum var depressus ","Mount Atlas daisy ","Medium"]
["Anagallis monellii ","Blue Pimpernel ","Medium"]
["Anchusa capensis 'Blue Angel' ","Cape Forget-me-not ","Medium"]
["Andromeda polifolia ","Bog Rosemary ","High"]
["Androsace lanuginosa ","Rock Jasmine ","High"]
["Anemone sylvestris ","Snowdrop Windflower ","Medium"]
["Anemone x hybrida ","Windflower ","High"]
["Anemopaegma chamberlaynii ","Yellow Trumpet Vine ","Medium"]
["Anemopsis californica ","Yerba Mansa ","High"]
["Anethum graveolens ","Dill ","Medium"]
["Angelica pachycarpa ","Ornamental Angelica ","Medium"]
["Angelonia angustifolia ","Grannies Bonnets ","Medium"]
["Angophora bakeri ",null,"Low"]
["Angophora cordifolia (Angophora costata) ","Gum Myrtle ","Low"]
["Angophora costata","Smooth Barked Apple","Low"]
["Angophora floribunda ","Rough-barked Apple ","Low"]
["Angophora hispida","Dwarf Apple Gum","Low"]
["Anigozanthos 'Bush Ranger' ","Kangaroo Paw ","Low"]
["Anigozanthos flavidus","Tall Kangaroo Paw","Low"]
["Anigozanthos manglesii","Mangles' Kangaroo Paw","Low"]
["Anigozanthos pulcherrimus",null,"Low"]
["Anigozanthos spp.","Kangaroo Paw","Low"]
["Anigozanthos viridis ","Green Kangaroo Paw ","Low"]
["Anisacanthus spp. ","Desert Honeysuckle ","Low"]
["Anisodontea scabrosa ","False Mallow ","Medium"]
["Anisodontea X hypomadarum ","South African Mallow ","Medium"]
["Annona cherimola ","Cherimoya ","Medium"]
["Anopterus glandulosus ",null,"Medium"]
["Anopterus macleayanus ",null,"Medium"]
["Antennaria rosea ","Pussy Toes ","Low"]
["Anthemis tinctoria ","Golden Marguerite ","Low"]
["Anthemis tinctoria 'Mrs.E.C.Buxton'","Golden Marguerite","Low"]
["Anthoxanthum odoratum ","Sweet Vernal Grass ","Medium"]
["Antigonon leptopus ","Coral Vine ","Medium"]
["Antirrhinum majus ","Snapdragon ","High"]
["Aphelandra squarrosa","Aphelandra","High"]
["Apium graveolens vars. ","Celery ","High"]
["Aptenia cordifolia ","Baby Sun Rose ","Low"]
["Aptenia 'Red Apple' ","Red Apple Ice Plant ","Low"]
["Aquilegia spp. ","Columbine ","Medium"]
["Aquilegia x hybrida ","Columbine ","Medium"]
["Arabis spp. ","Rockcress ","Medium"]
["Araucaria araucana ","Monkey Puzzle Tree ","Medium"]
["Araucaria bidwillii ","Bunya Pine","Medium"]
["Araucaria cunninghamii","Hoop Pine","Low"]
["Araucaria heterophyla ","Norfolk Island Pine ","Medium"]
["Araujia sericifera ","Cruel Vine ","Low"]
["Arbutus 'Marina' ","Marina Arbutus ","Medium"]
["Arbutus menziesii ","Madrone ","Low"]
["Arbutus unedo","Strawberry Tree","Low"]
["Archirhodomyrtus beckleri  ",null,"Medium"]
["Archontophoenix alexandrae","Alexander Palm","Medium"]
["Archontophoenix cunninghamiana","Bangalow palm","Medium"]
["Arctostaphylos cultivars ","Manzanita cultivars ","Low"]
["Arctostaphylos diversiloba (Comarostaphylis diversiloba) ","Summer Holly ","Low"]
["Arctostaphylos spp. ","Manzanita ","Low"]
["Arctotheca calendula ","Cape Weed ","Medium"]
["Arctotis","African Daisy","Medium"]
["Arctotis x hybrida ","African Daisy ","Low"]
["Ardisia crenata","Coral Berry","Medium"]
["Ardisia elliptica","Shoe-button Ardisia","Medium"]
["Ardisia japonica ","Marlberry ","Medium"]
["Arenaria","Arenaria","High"]
["Arenga engleri ","Ryukyu Island Palm ","Medium"]
["Argyranthemum frutescens ","Marguerite daisy ","Medium"]
["Aristea ecklonii ","Blue Stars ","Medium"]
["Aristea major ","Tall Aristea ","Medium"]
["Aristolochia californica ","California Dutchman's Pipe ","Low"]
["Aristolochia durior ","Dutchman's Pipe ","Medium"]
["Aristolochia elegans ","Calico Flower ","Medium"]
["Armeria alliacea ","Common Thrift ","Low"]
["Armeria caespitosa (A. juniperifolia) ","Thrift ","Medium"]
["Armeria maritima ","Sea Thrift","Low"]
["Arnica montana ","Arnica ","Medium"]
["Arrhenatherum elatius ssp bulbosum ","Bulb Oat Grass ","Medium"]
["Artanema fimbriatum ",null,"Medium"]
["Artemisia","Wormwood","Low"]
["Artemisia arborescens ","Silver Wormwood ","Medium"]
["Artemisia dracunculus ","Tarragon ","Medium"]
["Artemisia ludoviciana 'Valerie Finnis' ","White Sage ","Low"]
["Artemisia 'Powis Castle'","Brass Band","Medium"]
["Arthropodium cirrhatum","New Zealand Rock Lily ","Medium"]
["Arum italicum ","Italian Arum ","Low"]
["Arundinaria gigantea ","Cane Reed ","Medium"]
["Arundinaria nitidea","Black-stemmed Bamboo","Medium"]
["Arundo donax ","Giant Reed ","Medium"]
["Asarina antirriniflora","Snapdragon Vine ","Medium"]
["Asarina barclaiana ","Climbing Snapdragon ","Medium"]
["Asarina erubescens","Creeping Gloxinia ","Medium"]
["Asarum caudadum ","Wild Ginger ","Medium"]
["Asclepias spp. ","Milk Weed ","Low"]
["Asclepias tuberosa ","Butterfly Weed ","Medium"]
["Asparagus spp. ","Ornamental Asparagus ","Medium"]
["Asphodeline lutea ","Jacob's Rod","Low"]
["Asphodeline taurica ","Asphodel ","Low"]
["Aspidistra elatior ","Cast Iron Plant ","Low"]
["Asplenium australasicum ","Bird's Nest Fern ","Low"]
["Asplenium bulbiferum ","Hen and Chickens","Medium"]
["Asplenium flabellifolium ","Necklace Fern ","Low"]
["Asplenium nidus ","Bird's Nest Fern ","Medium"]
["Asplenium scolopendrium (Phyllitis) ","Hart's tongue fern ","Low"]
["Astartea fascicularis",null,"Medium"]
["Astartea heteranthera",null,"Medium"]
["Astartea 'Winter Pink'",null,"Medium"]
["Astelia alpina ",null,"Medium"]
["Astelia nervosa chathamica ","Silver Spear ","Medium"]
["Astelia nivicola ","Astelia ","Medium"]
["Aster spp. ","Aster","High"]
["Asterolasia asteriscophora",null,"Medium"]
["Asterolasia hexapetala  ",null,"Medium"]
["Asterolasia trymalioides ",null,"Medium"]
["Astilbe chinensis ","Chinese Astilbe ","High"]
["Astilbe spp.","False Spirea","High"]
["Astrantia major rosea ","Greater Masterwort ","Medium"]
["Atalaya hemiglauca ",null,"Low"]
["Athanasia acerosa ","Athanasia ","Low"]
["Atherosperma moschatum",null,"Medium"]
["Athertonia diversifolia ",null,"Medium"]
["Athrotaxis cupressoides",null,"Medium"]
["Athrotaxis selaginoides  ",null,"Medium"]
["Athyrium filix-femina ","Lady Fern ","High"]
["Athyrium nipponicum 'Pictum' ","Painted Lady Fern ","Medium"]
["Atriplex nummularia","Old Man Saltbush","Low"]
["Atriplex rhagodioides","Silver Saltbush","Low"]
["Atriplex spp. ","Saltbush ","Low"]
["Atriplex vesicaria  ",null,"Low"]
["Aubrieta deltoidea ","Rock Cress ","Low"]
["Aucuba japonica","Gold Dust Plant","Low"]
["Aurinia saxatilis ","hardy alyssum/basket of gold ","Medium"]
["Austromyrtus","Austromyrtus","Low"]
["Austromyrtus dulcis","Midyim","Low"]
["Austromyrtus tenuifolia",null,"Medium"]
["Axonopus affinis ","Narrow Leaf Carpet Grass ","Medium"]
["Azadirachta indica ","Neem ","Medium"]
["Azalea indica ","Azalea ","High"]
["Azalea karume ","Karume Azalea Group ","High"]
["Azalea spp.","Azalea","Medium"]
["Azaliadendron 'Hardjizer's Beauty' ","Hardijizer's Beauty ","Medium"]
["Azara dentata ","Orono ","Medium"]
["Azara integrifolia ","Azara ","Medium"]
["Azara microphylla ","Box-leaf Azara ","Medium"]
["Babiana stricta hybrids ","Baboon Flower ","Low"]
["Babingtonia virgata","Baeckea","Low"]
["Babingtonia virgata 'Clarence River'","Clarence River Baeckea","Low"]
["Babingtonia virgata 'Nana'","Dwarf Baeckea","Low"]
["Baccharis 'Centennial' ","Centennial Baccharis ","Low"]
["Baccharis pilularis consanguinea ","Coyote Brush ","Low"]
["Baccharis pilularis cvs. ","Dwarf Coyote Brush ","Low"]
["Baccharis sarothroides ","Desert Broom ","Low"]
["Backhousia anisata","Backhousia","Low"]
["Backhousia citriodora ","Lemon Scented Myrtle ","Medium"]
["Backhousia myrtifolia ","Grey Myrtle ","Low"]
["Bacopa monniera","Bacopa","Low"]
["Baeckea","Baeckea","Medium"]
["Baeckea astarteoides ",null,"Medium"]
["Baeckea behrii  ",null,"Low"]
["Baeckea brevifolia ",null,"Medium"]
["Baeckea camphorosmae",null,"Medium"]
["Baeckea crassifolia ",null,"Low"]
["Baeckea crenatifolia ",null,"Medium"]
["Baeckea densifolia",null,"Medium"]
["Baeckea gunniana ",null,"Medium"]
["Baeckea imbricata  ",null,"Medium"]
["Baeckea linifolia",null,"Medium"]
["Baeckea ramosissima",null,"Medium"]
["Baileya multiradiata ","Desert Marigold ","Low"]
["Balaustion puicherrimum ",null,"Low"]
["Ballota pseudodictamnus ","Grecian Horehound ","Low"]
["Baloskion tetraphyllum Syn. Restio tetraphyllus ","Feather Rush ","Low"]
["Bambusa angulata","Bamboo, chinese dwarf","High"]
["Bambusa glaucescens 'Alphonse Karr' ","Clumping Alphonse Karr Bamboo ","High"]
["Bambusa multiplex 'Fernleaf Stripestem' ","Fernleaf Stripestem Bamboo ","Medium"]
["Bambusa spp. ","Clumping Bamboo ","Medium"]
["Bambusa textilis var. gracilis ","Slender Weavers' Bamboo ","High"]
["Bambusa ventricosa","Buddha's Belly Bamboo","High"]
["Banksia ashbyi","Ashby’s Banksia ","Low"]
["Banksia audax  ",null,"Low"]
["Banksia candolleana  ",null,"Low"]
["Banksia canei ",null,"Medium"]
["Banksia ericifolia","Heath Banksia","Low"]
["Banksia ilicifolia ",null,"Medium"]
["Banksia integrifolia","Coastal Banksia","Low"]
["Banksia lindleyana  ",null,"Low"]
["Banksia littoralis ",null,"Medium"]
["Banksia marginata","Silver Banksia","Low"]
["Banksia marginata",null,"Medium"]
["Banksia oblongifolia","Banksia","Low"]
["Banksia occidentalis ",null,"Medium"]
["Banksia paludosa ",null,"Medium"]
["Banksia petiolaris","Prostrate Banksia","Low"]
["Banksia praemorsa ","cut-leaf banksia ","Low"]
["Banksia repens","Creeping Banksia","Medium"]
["Banksia robur","Swamp Banksia","Medium"]
["Banksia sceptrum  ",null,"Low"]
["Banksia serrata ","Old Man Banksia ","Low"]
["Banksia speciosa ","Showy Banksia ","Medium"]
["Banksia spinulosa","Hairpin Banksia","Low"]
["Banksia spp.","Banksia","Medium"]
["Baptista australis ","False Indigo ","Low"]
["Barklya syringifolia ",null,"Medium"]
["Barleria obtusa ","Barleria ","Medium"]
["Barringtonia calyptrata","Cassowary Pine","High"]
["Bauera","Bauera","Medium"]
["Bauera capitata",null,"Medium"]
["Bauera rubioides","Dog Rose","Medium"]
["Bauera sessiliflora ",null,"Medium"]
["Bauhinia","Orchid Tree","Medium"]
["Bauhinia corymbosa ","Climbing Bauhinia ","Medium"]
["Bauhinia forficata ","Brazilian Butterfly Tree ","Medium"]
["Bauhinia galpinii ","Red Bauhinia ","Low"]
["Bauhinia variegata","Purple Orchid Tree ","Medium"]
["Bauhinia X blakeana ","Hong Kong Orchid Tree ","Medium"]
["Baumea articulata ","Jointed Twigrush ","Low"]
["Baumea rubiginosa ","Twigrush ","Low"]
["Beaucarnea recurvata","Ponytail Palm","Low"]
["Beaufortia","Sandplain Bottlebrush","Low"]
["Beaufortia decussate",null,"Medium"]
["Beaufortia incana ",null,"Low"]
["Beaufortia orbifolia  ",null,"Medium"]
["Beaufortia sparsa ",null,"Medium"]
["Beaufortia squarrosa","Sandplain Bottlebrush","Low"]
["Beaumontia grandiflora ","Easter Lily Vine ","Medium"]
["Bedfordia arborescens ",null,"Medium"]
["Bedfordia salicina ",null,"Medium"]
["Begonia fuchoides rosea ","Fuchsia Begonia ","Medium"]
["Begonia grandis ","Hardy Begonia ","Medium"]
["Begonia 'Richmondensis' ","Richmond Begonia ","Medium"]
["Begonia semperflorens ","Bedding Begonia ","Medium"]
["Begonia spp.","Begonia","Medium"]
["Bellendena montana",null,"High"]
["Bellis perennis ","English Daisy ","Medium"]
["Beloperone guttata ","Shrimp Plant ","Medium"]
["Berberidopsis corallina ","coral plant ","Medium"]
["Berberis spp. ","Barberry ","Low"]
["Berberis thunbergii","Purple Japanese Barberry","Low"]
["Berberis thunbergii 'Atropurpurea'","Barberry","Medium"]
["Berberis X stenophylla 'Irwinii' ","Barberry ","Medium"]
["Bergenia cordifolia ","Saxifraga ","Medium"]
["Bergenia crassifolia ","Winter Blooming Bergenia ","Medium"]
["Bergenia x schmidtii","Elephant's ears","Medium"]
["Berlandiera lyrata ","Chocolate Scented Daisy ","Medium"]
["Beschorneria yuccoides ","Mexican Lily ","Low"]
["Betula fontinalis (B. occidentalis) ","River Birch ","High"]
["Betula nigra ","Red Birch ","High"]
["Betula pendula ","Silver Birch ","Medium"]
["Betula platyphyla japonica ","Japanese Mountain Birch ","High"]
["Betula utilis var. jaquemontii ","White Barked Himalayan Birch ","High"]
["Beyeria lechenaultii ",null,"Low"]
["Bidens triplinervia ","Tickseed ","Low"]
["Bignonia capreolata ","Cross Vine ","Medium"]
["Billardiera bicolor  ",null,"Medium"]
["Billardiera bignoniacea ",null,"Medium"]
["Billardiera coeruleo-punctatus ",null,"Medium"]
["Billardiera heterophylla","Bluebell Creeper","Low"]
["Billardiera longiflora ",null,"Medium"]
["Billardiera ringens ",null,"Medium"]
["Billardiera scandens ","Apple Dumpling ","Low"]
["Billardiera variifolia ",null,"Low"]
["Billbergia nutans ","Queen's Tears ","Medium"]
["Billbergia pyramidalis ","Foolproof Plant ","Medium"]
["Bischofia javanica ","Toog ","Medium"]
["Blandfordia cunninghamii",null,"Medium"]
["Blandfordia grandiflora ",null,"High"]
["Blandfordia nobilis ",null,"High"]
["Blandfordia punicea ",null,"Medium"]
["Blechnum brasiliense ","Brazilian Tree Fern ","High"]
["Blechnum camfieldii","Water Fern","High"]
["Blechnum cartilagineum","Gristle-fern","Low"]
["Blechnum chambersii ",null,"Medium"]
["Blechnum fluviatile",null,"Medium"]
["Blechnum gibbum ","Dwarf Tree Fern ","High"]
["Blechnum minus  ",null,"Medium"]
["Blechnum nudum","Fishbone Water Fern","Low"]
["Blechnum occidentale ","Hammock Fern ","High"]
["Blechnum patersonii ","Strap Water Fern ","Low"]
["Blechnum penna-marina ","Alpine Water Fern ","Medium"]
["Blechnum spicant ","Deer Fern ","Medium"]
["Blechnum wattsii ",null,"Medium"]
["Bletilla striata ","Hyacinth Orchid ","Medium"]
["Boea hygroscopica  ",null,"Medium"]
["Bolax gummifera ","Glebaria ","Medium"]
["Boltonia asteroides ","False Chamomile ","Low"]
["Boltonia asteroides var. latisquama","Boltonia","Medium"]
["Borago officinalis ","Borage ","Medium"]
["Boronia algida ",null,"Medium"]
["Boronia citriodora  ",null,"Medium"]
["Boronia clavata ",null,"Medium"]
["Boronia crassipes  ",null,"Medium"]
["Boronia cymosa ",null,"Medium"]
["Boronia deanei ",null,"Medium"]
["Boronia denticulata",null,"Medium"]
["Boronia floribunda ","Pale Pink Boronia ","Medium"]
["Boronia fraseri  ",null,"Medium"]
["Boronia gracilipes ",null,"Medium"]
["Boronia heterophylla ",null,"Medium"]
["Boronia ledifolia","Sydney Boronia","Low"]
["Boronia megastigma ","Brown Boronia ","Low"]
["Boronia megastigma 'Heaven scent'  ",null,"Medium"]
["Boronia microphyllas",null,"Medium"]
["Boronia mollis","Soft Boronia","Medium"]
["Boronia molloyae ",null,"Medium"]
["Boronia muelleri 'Sunset serenade'",null,"Medium"]
["Boronia nana ",null,"Medium"]
["Boronia ovata  ",null,"Medium"]
["Boronia parvifloras ",null,"Medium"]
["Boronia pilosa  ",null,"Medium"]
["Boronia pinnata  ",null,"Medium"]
["Boronia rhomboidea ",null,"Medium"]
["Boronia serrulata ",null,"Medium"]
["Boronia spathulata  ",null,"Medium"]
["Borya mtida  ",null,"Low"]
["Bossiaea cordigeras",null,"Medium"]
["Bossiaea foliosas",null,"Medium"]
["Bossiaea obcordata","Spiny Bossiaea","Low"]
["Bossiaea prostrata ",null,"Medium"]
["Bossiaea rhombifolia ",null,"Medium"]
["Bossiaea riparia",null,"Medium"]
["Bothriochloa barbinoides ","Cane Bluestem ","Low"]
["Bothriochloa macra ",null,"Medium"]
["Bougainvillea glabra ","Bougainvillea ","Medium"]
["Bougainvillea spp. ","Bougainvillea ","Low"]
["Bouteloua curtipendula ","Sideoats Gramma ","Low"]
["Bouteloua gracilis ","Blue Gramma ","Low"]
["Bouvardia longiflora (Syn: B. humboldtii) ","Bouvardia ","Medium"]
["Bowenia spectabilis  ",null,"Medium"]
["Brachychiton acerifolius ","Flame Tree ","Medium"]
["Brachychiton bidwillii","Little Kurrajong","Medium"]
["Brachychiton discolor ","Lace Bark Tree ","Low"]
["Brachychiton gregorii","Desert Kurrajong","Low"]
["Brachychiton populneus","Kurrajong","Low"]
["Brachychiton rupestris","Bottle Tree ","Low"]
["Brachychiton X hybridus ","Hybrid Brachychiton ","Medium"]
["Brachyglottis greyi (Senecio greyi) ","Groundsel ","Medium"]
["Brachyloma daphnoides  ",null,"Medium"]
["Brachyscome aculeata  ",null,"Medium"]
["Brachyscome angustifolia ","Stiff Daisy ","Low"]
["Brachyscome cardiocarpas",null,"Medium"]
["Brachyscome formusa","Mauve Delight","Low"]
["Brachyscome iberidifolia  ",null,"Medium"]
["Brachyscome latisquamea ",null,"Low"]
["Brachyscome melanocarpas ",null,"Medium"]
["Brachyscome microcarpas ",null,"Medium"]
["Brachyscome multifida","Cut-leaf Daisy","Medium"]
["Brachyscome nivalis  ",null,"Medium"]
["Brachyscome rigidula",null,"High"]
["Brachyscome scapigera  ",null,"Medium"]
["Brachyscome segmentosa  ",null,"Medium"]
["Brachyscome spathulata ",null,"Medium"]
["Brachyscome spp.","Australian Daisies","Medium"]
["Brachyscome tenuiscapa  ",null,"Medium"]
["Brachysema angustifolium ",null,"Medium"]
["Brachysema celsianum ",null,"Medium"]
["Brachysema latifolium  ",null,"Medium"]
["Brachysema praemorsum ","Brown Butterfly","Medium"]
["Brachysema sericeum  ",null,"Medium"]
["Bracteantha bracteata","Everlasting Daisy","Low"]
["Brahea armata ","Blue Hesper Palm ","Low"]
["Brahea brandegeei ","San Jose Hesper Palm ","Low"]
["Brahea edulis ","Guadalupe Palm ","Low"]
["Brassica oleracea ","Ornamental Kale ","Medium"]
["Breynia","Breynia","Medium"]
["Breynia nivosa (distacha) ","Hawaiian Snow Bush ","High"]
["Breynia oblongifolia ","Breynia ","Low"]
["Briza media ","Quaking Grass ","Medium"]
["Brodiaea spp. ","Brodiaea ","Low"]
["Brugmansia spp.","Angel's Trumpet","Medium"]
["Brunfelsia australis",null,"Medium"]
["Brunfelsia latifolia","Yesterday; Today and Tomorrow ","Medium"]
["Brunfelsia pauciflora ",null,"Medium"]
["Brunnera macrophylla ","Siberian Bugloss ","High"]
["Brunonia australis ",null,"Medium"]
["Buckinghamia celsissima ","Ivory Curl Flower ","Medium"]
["Buddleia davidii","Butterfly Bush","Medium"]
["Buddleja alternifolia ","Fountain Butterfly Bush ","Medium"]
["Buddleja marrubiifolia ","Woolly Butterfly Bush ","Low"]
["Bulbine bulbosas",null,"Medium"]
["Bulbine frutescens ","Stalked Bulbine ","Low"]
["Bulbine semibarbata  ",null,"Medium"]
["Bulbinella robusta ","Bulbinella ","Low"]
["Bulnesia arborea","Bulnesia","Low"]
["Burchardia multiflora  ",null,"Medium"]
["Burchardia umbellatas",null,"Medium"]
["Bursaria spinosa","Sweet Bursaria","Medium"]
["Bursaria spinosa ",null,"Medium"]
["Bursera hindsiana ","Bursera ","Medium"]
["Burtonia confertas",null,"Medium"]
["Burtonia scabra ",null,"Medium"]
["Butia capitata ","Pindo Palm ","Low"]
["Buxus microphylla var. japonica ","Japanese Box ","Medium"]
["Buxus sempervirens ","English boxwood ","Medium"]
["Buxus sempervirens 'Suffruticosa' ","Dwarf Edging Box ","Medium"]
["Byblis gigantea ",null,"Medium"]
["Caesalpinea cacalaco ","Cascalote ","Low"]
["Caesalpinea gilliesii ","Desert Bird of Paradise ","Low"]
["Caesalpinea mexicana ","Mexican Bird of Paradise ","Low"]
["Caesalpinea platyloba "]
["Caesalpinea pulcherrima ","Pride of Barbados","Medium"]
["Caesalpinia ferrea","Leopard Tree","Medium"]
["Caesia parviflora  ",null,"Medium"]
["Caladium bicolor","Caladium","High"]
["Caladium x hortulanum","Caladium","High"]
["Calamagrostis spp. ","Feather Reed ","Medium"]
["Calamintha spp. ","Calamint ","Medium"]
["Calandrinia balonensis  ",null,"Low"]
["Calandrinia polyandra ",null,"Low"]
["Calandrinia remota ",null,"Low"]
["Calathea makoyana","Peacock Plant","Medium"]
["Calathea 'Silver Lady'","Silver Lady","Medium"]
["Calathea zebrina ","Zebra Plant ","High"]
["Calceolaria spp. ","Slipper Flower","Medium"]
["Calectasia cyanea  ",null,"Medium"]
["Calendula officinalis ","English Marigold ","Medium"]
["Calia secuniflora","Texas Mountain Laurel","Medium"]
["Calibrachoa sp.","Superbells","Medium"]
["Calliandra californica ","Baja Fairy Duster ","Low"]
["Calliandra emarginata ","Dwarf Powderpuff "]
["Calliandra eriophylla ","Fairy Duster ","Low"]
["Calliandra haematocephala ","Crimson Pom Pom ","Low"]
["Calliandra tweedii ","Trinidad Flame Bush ","Medium"]
["Callicarpa bodinieri ","Beauty Berry ","Medium"]
["Callicarpa dichotoma ","Lavender Beauty-berry ","Medium"]
["Callicarpa japonica ","Beauty Berry ","Medium"]
["Callicoma serratifolia","Black Wattle","Low"]
["Callistemon 'Burgundy'  ",null,"Medium"]
["Callistemon citrinus","Red Bottlebrush","Low"]
["Callistemon citrinus 'Splendens' Syn. C. citrinus 'Endeavour' ","Endeavour Bottlebrush ","Low"]
["Callistemon citrinus 'White Anzac' ","White Anzac Bottlebrush ","Low"]
["Callistemon comboynensis ",null,"Medium"]
["Callistemon 'Dawson River' ","Weeping Bottlebrush ","Medium"]
["Callistemon formosus ",null,"Medium"]
["Callistemon 'Hannah Ray' ",null,"Medium"]
["Callistemon 'Harkness'","Bottlebrush","Medium"]
["Callistemon 'Kings Park Special' ","King's Park Bottlebrush ","Low"]
["Callistemon lilacinus","Lilac Bottlebrush","Low"]
["Callistemon linearis","Narrow-leaved Bottlebrush","Low"]
["Callistemon 'Mary Mackillop'","Red Bottlebrush","Medium"]
["Callistemon 'Matthew Flinders'","Matthew Flinders Bottlebrush","Low"]
["Callistemon 'Mauve Mist' ","Mauve Mist Bottlebrush ","Low"]
["Callistemon montanus  ",null,"Medium"]
["Callistemon pachyphyllus  ",null,"Medium"]
["Callistemon pallidus  ",null,"Medium"]
["Callistemon phoeniceus  ",null,"Medium"]
["Callistemon pinifolius ","Pine-leaved Bottlebrush ","Low"]
["Callistemon pityoides  ",null,"Medium"]
["Callistemon polandii ","Gold-tipped Bottlebrush ","Medium"]
["Callistemon 'Reeves Pink' ","Reeves Pink Bottlebrush ","Low"]
["Callistemon rigidus",null,"Medium"]
["Callistemon rugulosus","Scarlet Bottlebrush","Low"]
["Callistemon salignus","White Bottlebrush","Low"]
["Callistemon shiressii  ",null,"Medium"]
["Callistemon sieberi  ",null,"Medium"]
["Callistemon speciosus ","Albany Bottlebrush ","Medium"]
["Callistemon subulatus","Phil may","Medium"]
["Callistemon teretifolius  ",null,"Low"]
["Callistemon 'Tinaroo'  ",null,"Medium"]
["Callistemon viminalis ","Weeping Bottlebrush ","Medium"]
["Callistemon viminalis 'Captain Cook' ","Dwarf Bottlebrush ","Medium"]
["Callistemon viminalis 'Little John' ","Little John Bottlebrush ","Low"]
["Callistemon violaceus",null,"Medium"]
["Callistemon viridiflorus",null,"Medium"]
["Callistemon 'Western Glory' ","Western Glory Bottlebrush ","Low"]
["Callistephus chinensis ","China Aster ","Medium"]
["Callitris amaranthoides  ",null,"Medium"]
["Callitris columellaris","Murray Pine","Low"]
["Callitris drummondii","Cypress Pine","Low"]
["Callitris endlicheri","Black Cypress Pine","Low"]
["Callitris macleayana ",null,"Medium"]
["Callitris preissii","Rottnest Pine","Low"]
["Callitris rhomboidea","Port Jackson Pine","Low"]
["Callitris roei","Cypress Pine","Low"]
["Calluna vulgaris ","Scotch Heather ","Medium"]
["Calocedrus decurrens ","Incense Cedar ","Medium"]
["Calocephalus brownii ","Cushion Bush ","Low"]
["Calocephalus citreus","Lemon Beauty-heads","Low"]
["Calochlaena dubia","False Bracken Fern","High"]
["Calodendron capense ","Cape Chestnut ","Medium"]
["Calomeria amaranthoides ","Plume Bush ","Low"]
["Calostemma purpureum ","Garland Lily ","Medium"]
["Calothamnus chrysantherus ",null,"Low"]
["Calothamnus homalophyllus ",null,"Low"]
["Calothamnus laterahs  ",null,"Medium"]
["Calothamnus oldfieldii  ",null,"Low"]
["Calothamnus pinifolius ",null,"Low"]
["Calothamnus quadrifidus","Common Net-bush","Low"]
["Calothamnus robustus  ",null,"Low"]
["Calothamnus rupestris","One Sided Bottlebrush","Low"]
["Calothamnus sanguineus ",null,"Low"]
["Calothamnus schaueri ",null,"Low"]
["Calothamnus torulosus ",null,"Low"]
["Calothamnus validus ",null,"Low"]
["Calothamnus villosus ",null,"Low"]
["Caltha introloba ",null,"High"]
["Calycanthus floridus ","Carolina Allspice ","Medium"]
["Calycanthus occidentalis ","Western Spice Bush ","Medium"]
["Calyophus drummondii ",null,"Medium"]
["Calyophus hartwegii ","Sierra Sundrop ","Low"]
["Calytrix alpestris  ",null,"Medium"]
["Calytrix flavescens","Summer Starflower","Low"]
["Calytrix glutinosa ",null,"Low"]
["Calytrix sullivanli  ",null,"Medium"]
["Calytrix tetragona","Common Fringe Myrtle","Low"]
["Calytrix tetragona ",null,"Medium"]
["Camellia japonica ","Japonica Camellia ","Medium"]
["Camellia reticulata ","Camellia ","High"]
["Camellia sasanqua ","Sasanqua Camellia ","Medium"]
["Camellia sasanqua 'Classique' ","Classique Camellia ","Medium"]
["Camissonia cherianthifolia","Beach Evening Primrose ","Low"]
["Campanula carpatica ","Bellflower ","Low"]
["Campanula persicifolia ","Peach-leafed Bellflower ","Medium"]
["Campanula poscharskyana ","Serbian Bellflower ","Medium"]
["Campsis grandiflora ","Chinese Trumpet Creeper ","Medium"]
["Canna indica ","Canna Lily ","High"]
["Canna x generalis 'Tropicana' ","Tropicana Canna Lily ","High"]
["Cantua buxifolia ","Magic Flower ","Medium"]
["Capparis spinosa ","Caper Bush ","Low"]
["Cardamine pratensis ","Lady's Smock ","High"]
["Carex albula 'Frosted Curls' ","Frosted Curls ","Medium"]
["Carex appressa ","Tall Sedge ","Medium"]
["Carex buchananii ","Leatherleaf Sedge ","Medium"]
["Carex fascicularis  ",null,"Medium"]
["Carex gaudichaudiana  ",null,"Medium"]
["Carex hattoriana ",null,"Low"]
["Carex petriei","Sedge","Medium"]
["Carex testacea","Sedge","Medium"]
["Carissa macrocarpa","Natal Plum ","Medium"]
["Carlina acaulis ","Stemless Carline Thistle "]
["Carnegiea gigantea ","Saguaro ","Low"]
["Carpentaria californica","Bush Anemone","Low"]
["Carpinus betulus 'Fastigiata' ","European Hornbeam ","Medium"]
["Carpobrotus glaucescens","Giant Pigface","Low"]
["Carpobrotus modestus  ",null,"Low"]
["Carpobrotus rossii","Karkalla","Low"]
["Carya illinoensis ","Pecan ","Medium"]
["Caryopteris incana ","Common Bluebeard ","Medium"]
["Caryopteris x clandonensis","Blue Spiraea","Low"]
["Caryota mitis ","Clustered Fishtail Palm ","Medium"]
["Caryota urens ","Fishtail Wine Palm ","Medium"]
["Casimiroa edulis ","White Sapote ","Medium"]
["Cassia","Golden Shower","Medium"]
["Cassia","Golden Shower","Medium"]
["Cassia artemisioides","Silver Cassia","Low"]
["Cassia brewsteri","Leichhardt Bean","Low"]
["Cassia eremophila (C.nemophila) ","Desert Cassia ","Low"]
["Cassia leptophylla ","Gold Medallion Tree ","Low"]
["Cassia nemophila","Desert Cassia","Low"]
["Cassia odorata  ",null,"Medium"]
["Cassia pleurocarpa",null,"Low"]
["Cassia spectabilis (C.excelsa) ",null,"     "]
["Cassia sturtii",null,"Low"]
["Cassia wizlizeni ","Shrubby Cassia ","Low"]
["Cassine australis ",null,"Medium"]
["Castanopsis cuspidata ","Copper False Chestnut "]
["Castanospermum australe ","Black Bean ","Medium"]
["Casuarina alternifolia ","Emu Bush","Low"]
["Casuarina campestris",null,"Low"]
["Casuarina cristata","Belah ","Low"]
["Casuarina cunninghamiana","River She-oak","Medium"]
["Casuarina decaisneana","Desert Oak ","Low"]
["Casuarina glauca","Swamp Oak","Medium"]
["Casuarina longifolia","Berrigan ","Low"]
["Casuarina luehmannii","Bull Oak ","Low"]
["Casuarina obesa  ",null,"Medium"]
["Catalpa bignonioides ","Tree Bignonia ","Low"]
["Catalpa bungei ","Umbrella Catalpa ","Low"]
["Catalpa speciosa","Shawnee Wood","Medium"]
["Catananche caerulea ","Cupid's Dart ","Medium"]
["Catharanthus roseus ","Pink Periwinkle ","Medium"]
["Caustis flexuosa  ",null,"Medium"]
["Caustis pentandra  ",null,"Medium"]
["Cautleya spicata ","Cautleya ","High"]
["Ceanothus arboreus 'Trewithen Blue'","California Lilac","High"]
["Ceanothus x 'Blue Pacific' ","Californian Lilac ","Low"]
["Cedrus atlantica","Atlas cedar","Low"]
["Cedrus atlantica 'Glauca' ","Blue Cedar ","Medium"]
["Cedrus deodara ","Himalayan Cedar ","Medium"]
["Cedrus libani ","Cedar of Lebanon ","Medium"]
["Celmisia astehifolia  ",null,"High"]
["Celmisia longifolia ",null,"High"]
["Celmisia sericophylla  ",null,"High"]
["Celosia cristata ","Cockscomb ","High"]
["Celtis australis ","European Hackberry ","Low"]
["Celtis occidentalis ","Common Hackberry ","Medium"]
["Celtis reticulata ","Western Hackberry ","Low"]
["Celtis sinensis ","Chinese Hackberry ","Medium"]
["Cenarrhenes nitida  ",null,"Medium"]
["Centaurea","Cornflower","Medium"]
["Centaurea cineraria ","Dusty Miller","Medium"]
["Centaurea cyanus ","Cornflower ","Medium"]
["Centaurea dealbata ","Persian Knapweed ","Medium"]
["Centaurea gymnocarpa ","Velvet Centaurea ","Medium"]
["Centaurea montana ","Perennial Cornflower ","Low"]
["Centaurea rupestris "]
["Centranthus ruber ","Red Valerian ","Low"]
["Centratherum punctatum ","Porcupine Flower ","Medium"]
["Cephalocereus spp. ","Old Man Cactus ","Low"]
["Cephalophyllum spp. ","Ice Plant","Low"]
["Cephalotus follicularis  ",null,"High"]
["Cerastium tomentosum","Snow-in-Summer","Low"]
["Ceratonia siliqua ","Carob ","Low"]
["Ceratopetalum gummiferum","NSW Christmas Bush","Low"]
["Ceratostigma abyssinicum ","African Plumbago ","Medium"]
["Ceratostigma griffithii ","Burmese plumbago ","Medium"]
["Ceratostigma plumbaginoides ","Dwarf Plumbago","Low"]
["Ceratostigma willmottianum ","Chinese Plumbago ","Low"]
["Cercidiphyllum japonicum ","Katsura Tree ","Medium"]
["Cercidium microphyllum ","Little-leaf Palo Verde ","Low"]
["Cercidium praecox ","Sonoran Palo Verde ","Low"]
["Cercidium 'Sonorae' ","Sonora Cercidium ","Low"]
["Cercis canadensis ","Eastern Redbud ","Medium"]
["Cercis chinensis ","Chinese Redbud ","Medium"]
["Cercis mexicana ","Mexican Redbud ","Low"]
["Cercis occidentalis ","Western Redbud ","Low"]
["Cercis reniformis ","Southwest Redbud ","Low"]
["Cercis siliquastrum","Judas Tree","Medium"]
["Cercocarpus betuloides ","Mountain Ironwood ","Low"]
["Cercocarpus minutiflorus ","San Diego Mountain Mahogany ","Low"]
["Cereus peruvianus ","Peruvian Apple Cactus ","Low"]
["Cestrum auranticum ","Orange Cestrum ","Medium"]
["Cestrum elegans ","Red Cestrum ","Medium"]
["Cestrum fasciculatum ","Jessamine ","Medium"]
["Cestrum fasciculatum var. 'Newellii ","Newell Cestrum ","Medium"]
["Cestrum nocturnum ","Night-scented Jessamine","Medium"]
["Chaenomeles speciosa ","Flowering Quince ","Low"]
["Chaenorhinium glareosum ","Dwarf Snapdragon ","Medium"]
["Chamaecyparis lawsoniana","False Cypress ","Medium"]
["Chamaecyparis obtusa 'Crippsii' ","Golden Cripps Cypress ","Medium"]
["Chamaedorea elegans","Parlour Palm","Medium"]
["Chamaedorea seifrizii","Bamboo Palm","High"]
["Chamaemelum nobile ","Roman Chamomile ","Low"]
["Chamaerops humilis ","Mediterranean Fan Palm ","Medium"]
["Chamaerops sp.","European Fan Palm","Low"]
["Chamelaucium","Geraldton Wax ","Low"]
["Chamelaucium","Wax Flowers","Low"]
["Chamelaucium ciliatum","Albany Wax","Low"]
["Chamelaucium floriferum","Walpole Wax","Low"]
["Chamelaucium uncinatum ","Geraldton Wax ","Low"]
["Chasmanthe aethiopica ","chasmanthe ","Low"]
["Chasmanthium latifolium ","Sea Oats ","Medium"]
["Cheilanthes lanosa ","hairy lip fern ","Medium"]
["Cheiranthus cheiri ","Wallflower ","Medium"]
["Chenopodium quinoa","Quinoa","Low"]
["Chilopsis linearis ","Desert Willow ","Low"]
["Chimonanthus praecox ","Wintersweet ","Medium"]
["Chimonobambusa marmorea ","Marbled Bamboo ","Medium"]
["Chimonobambusa quadrangularis ","Square-stemmed Bamboo ","Medium"]
["Chionanthus retusus ","Chinese Fringe Tree ","Medium"]
["Chionanthus virginicus ","White Fringe Tree ","Medium"]
["Chionochloa pallida  ",null,"Medium"]
["Chloanthes parvifiora  ",null,"Medium"]
["Chloanthes stoechadis ",null,"Medium"]
["Chlorophyton","Spider Plant","High"]
["Chlorophytum comosum 'Variegatum' ","Ribbon Plant ","Medium"]
["Choisya ternata ","Mexican Orange Blossom ","Medium"]
["Chondropetalum tectorum ","Cape Reed ","Medium"]
["Chorilaena quercifolia  ",null,"Medium"]
["Chorisia insignis ","White Floss Silk Tree ","Medium"]
["Chorisia speciosa ","Floss Silk Tree ","Low"]
["Chorizandra enodis  ",null,"Medium"]
["Chorizema cordatum ","Flame Pea ","Medium"]
["Chorizema diversifolium  ",null,"Medium"]
["Chorizema ilicifolium ",null,"Medium"]
["Christella dentata ",null,"Medium"]
["Chryanthemum","Shasta daisy","High"]
["Chrycocephalum ramosissimum",null,"Low"]
["Chrysocephalum apiculatum","Common Everlasting Daisy","Medium"]
["Chrysocephalum baxteri ","White Everlasting Daisy","Low"]
["Chrysothamnus nauseosus albicaulis ","Rabbit Brush ","Low"]
["Chusquea coronalis ","Bamboo","Medium"]
["Cibotium glaucum ","Hawaiian Tree Fern ","High"]
["Cienfugosia patersonii ","Sturts Desert Rose","Low"]
["Cinnamomum camphora ","Camphor Tree ","Medium"]
["Cinnamomum oliveri ",null,"Medium"]
["Cissus antarctica","Kangaroo Vine","Medium"]
["Cissus hypoglauca","Water Vine","Medium"]
["Cissus rhombifolia ","Grape Ivy ","Medium"]
["Cissus striata","Evergreen Chile Grape","Medium"]
["Cissus trifoliata ","Treebine ","Medium"]
["Cistus salvifolius","White Rock Rose","Medium"]
["Cistus spp. ","Rockrose ","Low"]
["Cistus x pulverulentus 'Sunset'","Pink Rock Rose","Medium"]
["Cistus x purpureus ","Purple Rock Rose ","Low"]
["Citharexylum spinosum","Fiddlewood Tree","Medium"]
["Citriobatus spinescens ",null,"Medium"]
["Citrus aurantiifolia","Lime","Medium"]
["Citrus calamondin","Cumquat","Medium"]
["Citrus limon","Lemon","Medium"]
["Citrus limon 'Eureka' ","Eureka Lemon ","Medium"]
["Citrus paradisi ","Grapefruit ","High"]
["Citrus reticulata ","Mandarin ","High"]
["Citrus sinensis ","Orange ","Medium"]
["Clematis aristata ","Old Man's Beard ","Low"]
["Clematis armandii ","Evergreen Clematis ","Medium"]
["Clematis gentianoides ","Bushy Clematis ","Medium"]
["Clematis glycinoides ",null,"Medium"]
["Clematis integrifolia ","Bushy Clematis ","Medium"]
["Clematis lasiantha ","Pipestem Clematis ","Low"]
["Clematis ligusticifolia ","Western Virgin's Bower ","Medium"]
["Clematis microphylla","Traveller's Joy","Medium"]
["Clematis montana 'Rubens' ","Anemone Clematis ","Medium"]
["Clematis pauciflora ","Small Flowered Clematis ","Low"]
["Cleome hassleriana Hybrids ","Spider Flower ","Medium"]
["Cleome isomeris ","Bladder Pod ","Low"]
["Clerodendrum bungei ","Cashmere Bouquet ","Medium"]
["Clerodendrum cunninghamii  ",null,"Medium"]
["Clerodendrum inerme ",null,"Medium"]
["Clerodendrum longiflorum var. glabra ",null,"Medium"]
["Clerodendrum tomentosum  ",null,"Medium"]
["Clerodendrum trichotomun ","Harlequin Glory Bower ","Medium"]
["Clerodendrum ugandense ","Blue Butterfly Bush ","Medium"]
["Clethra alnifolia ","Summersweet ","Medium"]
["Cleyera japonica ","Sakaki ","Medium"]
["Clianthus formosus  ",null,"Low"]
["Clianthus puniceus ","Parrot's Beak ","Medium"]
["Clivia miniata","Kaffir Lily","High"]
["Clytostoma callistegioides ","Argentine Trumpet Vine ","Low"]
["Clytostoma callistigioides ","Violet Trumpet Vine ","Medium"]
["Cneoridium dumosum ","Bushrue ","Low"]
["Cobaea scandens ","Cup and Saucer Vine ","Medium"]
["Cocculus laurifolius ","Laurel-leaf Cocculus ","Medium"]
["Codiaeum spp.","Croton","Medium"]
["Codonocarpus cotinifolius ",null,"Low"]
["Colchicum agrippium ","Autumn Crocus ","Medium"]
["Coleonema album ","White Breath of Heaven ","Medium"]
["Coleonema pulchellum","Pink Diosma","Low"]
["Coleus blumei 'Hybrids' ","Coleus ","Medium"]
["Coleus spp.","Coleus ","High"]
["Combretum fruticosum ","Combretum ","Medium"]
["Comesperma ericinum  ",null,"Medium"]
["Comesperma volubile  ",null,"Medium"]
["Commelina cyanea","Commelina","Medium"]
["Commersonia bartramia  ",null,"Medium"]
["Commersonia fraseri  ",null,"Medium"]
["Conospermum stoechadis ",null,"Low"]
["Conospermum triplinervium ",null,"Low"]
["Conostylis candicans","Grey Cottonheads","Low"]
["Convolvulus cneorum","Silver Bush","Medium"]
["Convolvulus mauritanicus ","Ground Morning Glory ","Low"]
["Convolvulus sabatius","Ground Morning Glory","Medium"]
["Coprosma hirtella  ",null,"Medium"]
["Coprosma 'Karo Red' ","Red Karo Coprosma ","Low"]
["Coprosma moorei  ",null,"Medium"]
["Coprosma nitida  ",null,"Medium"]
["Coprosma petriei 'Verde vista' ","Verde Vista Coprosma ","Medium"]
["Coprosma pumila  ",null,"Medium"]
["Coprosma quadrifida  ",null,"Medium"]
["Coprosma repens ","Mirror Plant ","Medium"]
["Coprosma repens 'Evening Glow' ","Evening Glow Coprosma ","Low"]
["Coprosma x kirkii ","Kirk's Coprosma ","Low"]
["Cordia boissieri ","Texas olive ","Low"]
["Cordyline australis ","New Zealand Cabbage Tree ","Medium"]
["Cordyline fruticosa 'Hybrids'","Ti Plant ","Medium"]
["Cordyline indivisa ","Blue Dracaena Palm ","Low"]
["Cordyline petiolaris  ",null,"Medium"]
["Cordyline stricta","Slender Palm Lily","Medium"]
["Coreopsis auriculata 'Nana' ","Dwarf Coreopsis ","Low"]
["Coreopsis gigantea ","Giant Coreopsis ","Low"]
["Coreopsis lanceolata ","Lance-leaf Coreopsis ","Low"]
["Coreopsis maritima ","Sea Dahlia ","Low"]
["Coreopsis verticillata 'Moonbeam' ","Thread-leaf Coreopsis ","Low"]
["Corethrogyne californica ","Black Bush ","Low"]
["Coriandrum sativum ","Coriander ","Medium"]
["Cornus alba ","Red-barked Dogwood ","Medium"]
["Cornus canadensis ","Bunchberry ","Medium"]
["Cornus capitata ","Evergreen Dogwood ","Medium"]
["Cornus 'Eddie's White Wonder' ","Eddie's White Wonder Dogwood ","Medium"]
["Cornus florida ","Dogwood ","Medium"]
["Cornus kousa ","Japanese Dogwood ","Medium"]
["Cornus kousa chinensis ","Chinese Dogwood ","Medium"]
["Cornus nuttallii ","Western Dogwood ","Medium"]
["Cornus stolonifera ","Red Osier Dogwood ","High"]
["Corokia cotoneaster ","Wire-netting Bush ","Medium"]
["Corokia x virgata ","Corokia ","Medium"]
["Correa aemula  ",null,"Medium"]
["Correa alba","White Correa","Low"]
["Correa backhouseana","Correa ","Low"]
["Correa baeuerlenii ","Chef's Hat Correa ","Medium"]
["Correa calycina  ",null,"Medium"]
["Correa decumbens  ",null,"Medium"]
["Correa 'Dusky Bells' ","Dusky Bells Correa ","Medium"]
["Correa glabra ",null,"Medium"]
["Correa lawrenciana ",null,"Medium"]
["Correa mannii  ",null,"Medium"]
["Correa 'Marian’s Marvel'",null,"Medium"]
["Correa pulchella ",null,"Medium"]
["Correa reflexa","Native Fuchsia","Low"]
["Correa reflexa var. nummulariifolia","Common Correa","Low"]
["Cortaderia sellowana","Pampas Grass ","Low"]
["Corylopsis spicata ","Winter Hazel ","Medium"]
["Corylus avelleana contorta ","Harry Lauder's walking stick ","Medium"]
["Corylus cornuta californica ","Western Hazelnut ","Low"]
["Corylus maxima ","Filbert ","Low"]
["Corymbia citriodora ","Lemon Scented Gum ","Medium"]
["Corymbia ficifolia","Red Flowering Gum ","Low"]
["Corymbia gummifera","Red Bloodwood","Low"]
["Corymbia maculata","Spotted Gum","Low"]
["Corynocarpus laevigata ","New Zealand Laurel ","Medium"]
["Cosmos atrosanguineus ","Chocolate Cosmos ","Medium"]
["Cosmos bipinnatus",null,"Medium"]
["Cotinus coggygria ","Smoke Tree ","Low"]
["Cotinus obvatus ","American Smoke Tree ","Low"]
["Cotoneaster dammeri","Bearberry Cotoneaster","High"]
["Cotoneaster franchetii ","Cotoneaster ","Low"]
["Cotoneaster horizontalis ","Rock Spray Cotoneaster ","Low"]
["Cotoneaster lacteus 'Parneyi' ","Parney's Cotoneaster ","Low"]
["Cotula  lilicula ",null,"Medium"]
["Cotula coronopifolia ",null,"Medium"]
["Cotula lineariloba ","Silver Button Plant ","High"]
["Cotula 'Silver Mound' ","Cotula ","High"]
["Cotyledon orbiculata ","Pig's Ear ","Low"]
["Coursetia axillaris ","Baby Bonnets ","Low"]
["Cowania mexicana ","Cliff Rose ","Low"]
["Craspedia globosa ","Drumsticks ","Medium"]
["Crassula argentea ","Jade Plant ","Low"]
["Crassula coccinea ","Red Crassula ","Low"]
["Crassula helmsii  ",null,"Medium"]
["Crataegus laevigata ","English Hawthorn ","Medium"]
["Crinodendron hookerianum ","Lantern Tree "]
["Crinodendron patagua ","Lily-of-the-valley Tree ","Medium"]
["Crinum moorei ","Natal Lily ","Medium"]
["Crinum pedunculatum ","Swamp Lily","Medium"]
["Crocromia x crocosmiiflora","Montbrieta ","Low"]
["Crotalaria agatiflora ","Canary-bird Bush ","Medium"]
["Crotalaria cunninghamii ","Parrot Plant ","Low"]
["Crowea angustifolia  ",null,"Medium"]
["Crowea exalata ","Small Crowea ","Medium"]
["Crowea 'Poorinda Ecstasy' ","Poorinda Ecstasy Crowea ","Low"]
["Crowea saligna ","Willow Leaf Crowea ","Low"]
["Cryptandra scortechinii  ",null,"Medium"]
["Cryptomeria japonica ","Japanese Cryptomeria ","High"]
["Cryptomeria japonica 'Elegans' ","Bronze Japanese Cedar ","Medium"]
["Cryptomeria japonica 'Globosa Nana' ","Dwarf Japanese Cedar ","Medium"]
["Culcita dubia ",null,"Medium"]
["Cupaniopsis anacardioides","Tuckeroo","Low"]
["Cupaniopsis newmanii ","Long-leaved Tuckeroo ","Low"]
["Cuphea hyssophyla ","False Heather ","Medium"]
["Cuphea ignea ","Cigar Flower ","Medium"]
["Cuphea llavea ","Bat-faced Cuphea ","Medium"]
["Cuphea micropetela ","Cuphea","Medium"]
["Cupressus arizonica ssp. arizonica ","Cuayamaca cypress ","Low"]
["Cupressus arizonica var. glabra ","smooth Arizona cypress ","Low"]
["Cupressus glabra 'Blue Ice' ","Blue Ice Arizona Cypress ","Low"]
["Cupressus goveniana ","Gowen Cypress "]
["Cupressus guadalupensis forbesii ","Tecate Cypress ","Low"]
["Cupressus macrocarpa","Monterey Cypress","Low"]
["Cupressus macrocarpa 'Brunniana Aurea' ","Brunnings Golden Cypress ","Medium"]
["Cupressus macrocarpa 'Nitschke's Needle' ","Nitschke's Needle Cypress ","Medium"]
["Cupressus sempervirens ","Italian Cypress ","Low"]
["Cupressus torulosa ","Bhutan Cypress ","Medium"]
["Cussonia","Cussonia","Low"]
["Cussonia paniculata ","Little Cabbage Tree ","Medium"]
["Cuttsia viburnea ",null,"Medium"]
["Cyanostegia angustifolia  ",null,"Low"]
["Cyathea australis","Rough Tree Fern","Low"]
["Cyathea brownii ","Norfolk Island Tree Fern ","High"]
["Cyathea cooperi ","Scaly Tree Fern ","Low"]
["Cyathea cunninghamii  ",null,"Medium"]
["Cyathodes abietina ",null,"Medium"]
["Cyathodes dealbatas",null,"Medium"]
["Cyathodes divaricata  ",null,"Medium"]
["Cyathodes glauca  ",null,"Medium"]
["Cyathodes juniperina ",null,"Medium"]
["Cyathodes parvifolia ",null,"Medium"]
["Cyathodes petiolaris  ",null,"Medium"]
["Cyathodes straminea  ",null,"Medium"]
["Cycas media  ","Nut Palm","Medium"]
["Cycas revoluta ","Sago Palm ","Medium"]
["Cyclamen hederifolium ","Cyclamen ","Low"]
["Cyclamen persicum 'Hybrids' ","Florists' Cyclamen ","Medium"]
["Cymbalaria muralis ","Kenilworth Ivy ","Medium"]
["Cymbidium suaves ",null,"Medium"]
["Cymbopogon citratus","Lemon Grass","Low"]
["Cymbopogon obtectus ",null,"Low"]
["Cymbopogon refractus","Barbed Wire Grass","Low"]
["Cynara scolymus ","Globe Artichoke ","Medium"]
["Cynodon dactylon ","Common Couch Grass ","High"]
["Cynodon dactylon 'Greenlees Park' ","Greenlees Park Couch ","High"]
["Cynodon dactylon 'Wintergreen' ","Wintergreen Couch ","High"]
["Cyperus albostriatus ","Dwarf Umbrella Plant ","     "]
["Cyperus alternifolius ","Umbrella Sedge ","Medium"]
["Cyperus gymnocauloss ",null,"Medium"]
["Cyrtanthus brachyscyphus ","Dobo Lily ","Medium"]
["Cyrtanthus purpureus ","Fire Lily ","Medium"]
["Cyrtomium falcatum ","Holly Fern ","Medium"]
["Cytisus","Broom","Medium"]
["Cytisus spp. ","broom (Cytisus) ","Low"]
["Cytisus x kewensis ","Kew Broom ","Medium"]
["Daboecia cantabrica ","Irish heath ","Medium"]
["Dacrydium franklinii  ",null,"Medium"]
["Dahlia Hybrids ","Dahlia ","High"]
["Dahlia imperialis ","Tree Dahlia ","Medium"]
["Dalbergia sissoo ","sissoo ","Medium"]
["Dalea bicolor ",null,"Low"]
["Dalea capitata ",null,"Medium"]
["Dalea dorychnioides "]
["Dalea frutescens ","Black Dalea ","Medium"]
["Dalea gattingeri","Purple Prairie Clover "]
["Dalea greggii ","Trailing Indigo Bush ","Low"]
["Dalea lutea ",null,"Medium"]
["Dalea orcutii ","Baja Indigo Bush ","Low"]
["Dalea pulchra ","indigo/pea bush ","Medium"]
["Dalea versicolor ",null,"Medium"]
["Dalechampia dioscorifolia ","Purple Wings ","Medium"]
["Dampiera altissima","Tall Dampiera","Low"]
["Dampiera diversifolia ","Dampiera ","Medium"]
["Dampiera hederacea ",null,"Medium"]
["Dampiera lavandulacea","Lavender Dampiera","Low"]
["Dampiera linearis","Dampiera","Low"]
["Dampiera purpurea","Mountain Dampiera","Low"]
["Dampiera stricta  ",null,"Medium"]
["Dampiera teres ",null,"Low"]
["Dampiera trigona ","Dampiera ","Medium"]
["Danthonia carphoides","Short Wallaby Grass","Medium"]
["Danthonia geniculata","Kneed Wallaby Grass","Low"]
["Danthonia linkii","Wallaby Grass","Low"]
["Danthonia penicillata  ",null,"Medium"]
["Daphne caucasica ","Daphne","Medium"]
["Daphne odora ","Winter Daphne ","High"]
["Daphne x burkwoodii ","Burkwood Daphne ","Medium"]
["Darlingia darlingiana ","Brown Silky Oak ","Medium"]
["Darmera peltata ","Umbrella Plant ","High"]
["Darwinia camptostylis  ",null,"Medium"]
["Darwinia citriodora","Lemon Scented Myrtle","Medium"]
["Darwinia collina  ",null,"Medium"]
["Darwinia fascicularis","Scented Myrtle","Low"]
["Darwinia grandiflora ",null,"Medium"]
["Darwinia grandiflora 'Prostrate'","Darwinia","Low"]
["Darwinia macrostegia  ",null,"Medium"]
["Darwinia micropetala  ",null,"Medium"]
["Darwinia procera  ",null,"Medium"]
["Darwinia rhadinophylla ",null,"Low"]
["Darwinia taxifolia ",null,"Medium"]
["Darwinia taxifolia ssp. macrolaena ",null,"Medium"]
["Dasylirion wheeleri","Desert Spoon ","Low"]
["Datura spp.","Devil's apples","Medium"]
["Daucus carota ","Carrot ","Medium"]
["Davallia pyxidata ","Hare's Foot Fern ","Low"]
["Davallia pyxidatas",null,"Medium"]
["Davallia trichomanoides ","Squirrel's Foot Fern ","Medium"]
["Daviesia arborea ","Tree Bitter Pea ","Medium"]
["Daviesia brevifolia  ",null,"Low"]
["Daviesia cordata",null,"Medium"]
["Daviesia latifolia  ",null,"Medium"]
["Daviesia pectinata ",null,"Low"]
["Decaspermum humile ","Silky Myrtle ","Medium"]
["Delonix regia","Poinciana","High"]
["Delosperma spp. ","Ice Plant ","Low"]
["Delphinium x cultorum ","Delphinium ","High"]
["Dendriopoterium menendezii ","Dendriopoterium ","Medium"]
["Dendrobium adae  ",null,"Medium"]
["Dendrobium aemulum  ",null,"Medium"]
["Dendrobium kingianum  ",null,"Medium"]
["Dendrobium linguiforme  ",null,"Medium"]
["Dendrobium speciosum","Rock Orchid","Medium"]
["Dendrobium striolatum  ",null,"Medium"]
["Dendrobium teretifolium  ",null,"Medium"]
["Dendromecon spp. ","Bush Poppy ","Low"]
["Dennstaedtia davallioides  ",null,"Medium"]
["Deschampsia caespitosa ","Tufted Hairgrass ","Low"]
["Deutzia gracilis ","Wedding Bells ","Low"]
["Dianella caerulea","Blue Flax-lily","Low"]
["Dianella Hybrids and Cultivars","Flax Lily","Low"]
["Dianella intermedia ","Turutu ","Medium"]
["Dianella longifolia",null,"Low"]
["Dianella prunina ",null,"Low"]
["Dianella revoluta","Spreading Flax Lily","Low"]
["Dianella tasmanica","Tasman Flax Lily","Medium"]
["Dianthus barbatus ","Sweet William ","High"]
["Dianthus caryophyllus","Carnation","Medium"]
["Diascia barberae","Twinspur ","Medium"]
["Diaspasis fihifolia  ",null,"High"]
["Dicentra formosa","Bleeding Heart ","Medium"]
["Dichelostemma capitatum ","Wild Hyacinth ","Low"]
["Dichondra argenta ","Silver Dichondra ","Medium"]
["Dichondra micrantha ","Dichondra ","Medium"]
["Dichondra repens","Kidney Weed","Medium"]
["Dichopogon fimbriatus ","Nodding Chocolate Lily ","Low"]
["Dichopogon strictus  ",null,"Medium"]
["Dichorisandra thyrsifolia ","Blue Ginger ","High"]
["Dichroa febrifuga ","Evergreen Hydrangea ","Medium"]
["Dicksonia antarctica ","Soft Tree Fern ","Medium"]
["Dicliptera suberecta ","Hummingbird Plant ","Low"]
["Dicliptera suberecta ","Velvet Honeysuckle ","Medium"]
["Dictamnus albus ","Burning Bush","Low"]
["Dictymia brownii  ",null,"Medium"]
["Dierama pendulum","Fairy Wand ","Medium"]
["Dierama pulcherrimum ","Angel's Fishing Wand ","Medium"]
["Dietes bicolor ","Spanish Iris ","Low"]
["Dietes grandiflora ","Wild Iris ","Low"]
["Dietes iridioides","African Iris","Low"]
["Dietes robinsoniana ","Wedding Lily ","Medium"]
["Digitalis","Foxglove ","High"]
["Digitalis lutea ","Hardy Foxglove ","Medium"]
["Digitalis x mertonensis ","Foxglove ","Medium"]
["Dillwynia floribunda",null,"Low"]
["Dillwynia juniperina",null,"Medium"]
["Dillwynia retorta","Eggs and Bacon","Low"]
["Dillwynia sericea  ",null,"Medium"]
["Dimorphotheca sinuata","Cape Marigold","Low"]
["Dimorphotheca spp.","African Daisy","Medium"]
["Dioon spinulosum ","Giant Dioon ","Medium"]
["Diospyros kaki ","Japanese Persimmon ","Medium"]
["Diplarrena latifolia ",null,"High"]
["Diplarrena moraeas ",null,"Medium"]
["Diploglottis australis","Native Tamarind","Medium"]
["Diploglottis campbellii  ","Tamarind","Medium"]
["Diploglottis cunninghamii  ",null,"Medium"]
["Dipogon lignosus ","Australian Pea ","High"]
["Diselma archeri ",null,"Medium"]
["Disphyma australe","Noon Flower ","Low"]
["Disphyma blackii","Noon Flower ","Low"]
["Disphyma crassifolium  ",null,"Low"]
["Distictis buccinatoria ","Blood Red Trumpet Vine ","Medium"]
["Distictis 'Rivers' ","Royal Trumpet Vine ","Medium"]
["Dodonaea adenophora  ",null,"Low"]
["Dodonaea hexandra  ",null,"Low"]
["Dodonaea humifusa  ",null,"Low"]
["Dodonaea lobulata  ",null,"Low"]
["Dodonaea microzyga  ",null,"Low"]
["Dodonaea multijuga  ",null,"Low"]
["Dodonaea procumbens ","Hopseed Bush ","Low"]
["Dodonaea viscosa ","Hop Bush ","Low"]
["Dodonaea viscosa 'Purpurea'","Purple Hop Bush","Low"]
["Dolichos","Australian Pea","Medium"]
["Dombeya burgessiae","Pink Dombeya ","Medium"]
["Dombeya cacuminum ","Strawberry Snowball ","Medium"]
["Doodia aspera","Prickly Rasp Fern","Low"]
["Doodia caudata  ",null,"Medium"]
["Doodia media ",null,"Medium"]
["Doronicum orientale ","Leopard's Bane ","Medium"]
["Dorotheanthemum","Pig Face","Medium"]
["Doryanthes excelsa","Gymea Lily","Medium"]
["Doryanthes palmeri ","Spear Lily ","Medium"]
["Dorycnium hirsutum ","Hairy Canary Clover ","Low"]
["Doryphora sassafras ",null,"Medium"]
["Dracaena draco ","Dragon Tree ","Medium"]
["Dracaena fragrans (D. deremensis)",null,"Medium"]
["Dracaena fragrans 'Janet Craig'","Janet Craig","Medium"]
["Dracaena fragrans 'Massangeana'","Happy Plant","Medium"]
["Dracaena hookeriana","Large Leaved Dragon Tree","Low"]
["Dracophyllum secundum  ",null,"Medium"]
["Drepanostachyum falcatum ","Blue Bamboo ","Medium"]
["Drepanostachyum hookerianum ","Bamboo ","Medium"]
["Drimys lanceolata ","Pepper Tree ","Medium"]
["Drimys winteri ","Winter's Bark ","Medium"]
["Drosanthemum floribundum","Rosea Ice Plant ","Low"]
["Drosera arcturi ",null,"High"]
["Drosera auriculata  ",null,"Medium"]
["Drosera binata  ",null,"Medium"]
["Drosera glanduligera  ",null,"Medium"]
["Drosera macrantha ",null,"Medium"]
["Drosera peltata  ",null,"Medium"]
["Drosera whittakeri  ",null,"Medium"]
["Dryandra ashbyi ",null,"Low"]
["Dryandra carduacea ",null,"Low"]
["Dryandra carlinoides  ",null,"Low"]
["Dryandra conferta ",null,"Low"]
["Dryandra hewardiana  ",null,"Low"]
["Dryandra nivea","Pudjarn","Low"]
["Dryandra obtusa  ",null,"Low"]
["Dryandra serratuloides  ",null,"Low"]
["Drymophila cyanocarpa  ",null,"Medium"]
["Dryopteris arguta ","Sheild Fern ","Medium"]
["Dryopteris dilatata ","Broad Buckler Fern ","Medium"]
["Dryopteris erythrosora ","Wood Fern ","Medium"]
["Dryopteris felix-mas ","Male Fern ","Medium"]
["Duchesnea indica ","Indian Mock Strawberry ","Medium"]
["Dudleya cymosa","Live Forever ","Low"]
["Duranta erecta","Sky Flower ","Medium"]
["Duranta erecta 'Geisha Girl'","Geisha Girl","Medium"]
["Duranta erecta 'Gold'","Golden Duranta","Medium"]
["Duranta stenostachya ","Brazilian Sky Flower ","Medium"]
["Dyckia spp. ","Dyckia ","Low"]
["Dymondia margaretae ","Dymondia ","Low"]
["Dysoxylum fraserianum  ","Rosewood","Medium"]
["Dyssodia acerosa ","Shrubby Dogweed ","Low"]
["Dyssodia pentachaeta ","Golden Fleece ","Medium"]
["Echeveria secunda","Hens and Chickens ","Low"]
["Echinacea pallida","Pink Cone Flower ","Medium"]
["Echinacea purpurea ","Purple Coneflower ","Medium"]
["Echinocactus platyacanthus","Barrel Cactus ","Low"]
["Echinops exaltus ","Globe Thistle ","Medium"]
["Echium candicans","Pride of Madeira","Medium"]
["Echium pininana ","Pride of Teneriffe ","Low"]
["Echium 'Purple Tower' ","Purple Tower Echium ","Low"]
["Echium wildpretii ","Tower of Jewels ","Low"]
["Edraianthus graminifolius ","Grassy Bells ","Low"]
["Ehretia acuminata ",null,"Medium"]
["Einadia nutanss",null,"Low"]
["Elaeagnus angustifolia","Russian Olive","Medium"]
["Elaeagnus pungens ","Silverberry ","Low"]
["Elaeagnus pungens ","Thorny Olive ","Low"]
["Elaeocarpus angustifolius ",null,"Medium"]
["Elaeocarpus decipiens ","Japanese Blueberry Tree ","Medium"]
["Elaeocarpus 'Eumundi'","Eumumdi Quandong ","Medium"]
["Elaeocarpus grandis","Blue Quandong","Medium"]
["Elaeocarpus holopetalus ",null,"Medium"]
["Elattostachys nervosa ",null,"Medium"]
["Eleocharis sphacelata ",null,"Medium"]
["Empodisma minus  ",null,"Medium"]
["Encelia californica ","California Encelia ","Low"]
["Encelia farinosa ","Brittle Bush ","Low"]
["Enchylaena tomentosa ","Ruby Saitbush ","Low"]
["Endiandra sieberi","Hard Corkwood","Medium"]
["Enkianthus campanulatus ","Red-veined Enkianthus ","Medium"]
["Ensete ventricosum ","Abyssinian Banana ","High"]
["Epacris breviflora ",null,"Medium"]
["Epacris exserta  ",null,"Medium"]
["Epacris gunnii","Australian Heath ","Medium"]
["Epacris impressa  ",null,"Medium"]
["Epacris lanuginosa  ",null,"Medium"]
["Epacris longiflora","Fuchsia Heath","Low"]
["Epacris microphylla","Coral Heath","Low"]
["Epacris muelleri  ",null,"Medium"]
["Epacris obtusifolia  ",null,"Medium"]
["Epacris paludosa  ",null,"Medium"]
["Epacris puichella  ",null,"Medium"]
["Epacris purpurascens  ",null,"Medium"]
["Epacris reclinata  ",null,"Medium"]
["Epacris robusta  ",null,"Medium"]
["Epacris serpyllifolias",null,"Medium"]
["Epacris stuartii  ",null,"Medium"]
["Epacris virgata  ",null,"Medium"]
["Epidendrum Hybrids ","Crucifix Orchid","Medium"]
["Epilobium canun subsp. canun","California Fuchsia ","Low"]
["Epimedium grandiflorum ","Bishop's Hat ","Medium"]
["Equisetum spp. ","Horsetail ","High"]
["Eragrostis elongata ","Lavender Grass ","Low"]
["Eremophila alternifolia  ",null,"Low"]
["Eremophila behriana  ",null,"Low"]
["Eremophila bignoniflora x polyclada","Eremophila","Low"]
["Eremophila biserrata  ",null,"Low"]
["Eremophila bowmanii ",null,"Low"]
["Eremophila calorhabdos",null,"Low"]
["Eremophila crassifolia ","Trim Emu Bush ","Low"]
["Eremophila decipiens  ",null,"Low"]
["Eremophila dempsteri  ",null,"Low"]
["Eremophila densifolia",null,"Low"]
["Eremophila denticulata",null,"Low"]
["Eremophila dichroantha  ",null,"Low"]
["Eremophila divaricata  ",null,"Low"]
["Eremophila drummondii",null,"Low"]
["Eremophila freelingii",null,"Low"]
["Eremophila glabra ","Emu Bush ","Low"]
["Eremophila hilli  ",null,"Low"]
["Eremophila ionantha","Violet Flowered Emu Bush","Low"]
["Eremophila laanii",null,"Low"]
["Eremophila latrobei",null,"Low"]
["Eremophila lehmanniana ",null,"Low"]
["Eremophila longifolia ","Berrigan","Low"]
["Eremophila macdonnellii",null,"Low"]
["Eremophila maculata","Spotted Emu Bush","Medium"]
["Eremophila maculata var. maculata ","Emu Bush ","Low"]
["Eremophila nivea","Silky Eremophila","Low"]
["Eremophila polyclada","Twiggy Emu Bush .","Low"]
["Eremophila racemosa ","Easter Egg Bush ","Low"]
["Eremophila serrulata",null,"Low"]
["Erianthus ravennae ","Plume Grass "]
["Erica erigena","Irish Heath","Medium"]
["Erica lustanica","Spanish Heath","Medium"]
["Erica spp. ","Heath","Medium"]
["Ericameria laricifolia ","Turpentine Bush ","Low"]
["Erigeron divergens ","Native Fleabane "]
["Erigeron formosissimus ","Fleabane ","Medium"]
["Erigeron glaucus ","Beach Aster ","Medium"]
["Erigeron karvinskianus ","Seaside Daisy ","Low"]
["Erigeron speciosus ","Oregon Fleabane "]
["Eriobotrya japonica","Loquat","Low"]
["Eriogonum umbellatum ","Sulphur Buckwheat ","Low"]
["Eriophyllum confertiflorum ","Golden Yarrow ","Low"]
["Eriophyllum lanatum ","Chalk Buckwheat ","Low"]
["Eriostemon buxifolius  ",null,"Medium"]
["Erodium chrysanthum ","Cranessbill","Medium"]
["Erodium corsicum ","Heron's Bill "]
["Erodium reichardii ","Alpine Geranium ","Medium"]
["Eryngium pandanifolium ","Sea Holly ","Medium"]
["Eryngium rostratum ","Blue Devil ","Low"]
["Eryngium variifolium ","Sea Holly ","Medium"]
["Erysimum 'Bowles Mauve' ","Bowles Mauve Wallflower ","Medium"]
["Erysimum cheiri ","Wallflower ","Medium"]
["Erysimum helveticum ","Wallflower ","Medium"]
["Erysimum hyeraciifolium ","Siberian Wallflower ","Low"]
["Erysimum 'Jubilee' ","Jubilee Wallflower ","Low"]
["Erysimum linifolium ","Wallflower ","Low"]
["Erysimum menziesii ","Wallflower ","Low"]
["Erysimum pulchellum ","Wallflower ","Low"]
["Erysimum suffrutescens ","Pt. Reyes Wallflower ","Low"]
["Erysimum 'Wenlock Beauty' ","Wenlock Beauty Wallflower ","Low"]
["Erythrina americana ","Naked Coral Tree ","Low"]
["Erythrina caffra ","Kaffir Bloom Coral Tree ","Low"]
["Erythrina crista-galli ","Cockspur Coral Tree ","Medium"]
["Erythrina falcata ","Coral Tree","Low"]
["Erythrina humeana ","Natal Coral Tree ","Medium"]
["Erythrina x sykesii ","Sykes Coral Tree ","Low"]
["Erythryna x bidwillii ","Coral Tree ","Low"]
["Escallonia bifida","White Escallonia","Medium"]
["Escallonia 'Iveyi' ","White Escallonia ","Low"]
["Escallonia macrantha ","Escallonia ","Low"]
["Eschscholtzia californica ","California Poppy ","Low"]
["Espostoa lantana ","Peruvian Old Man Cactus ","Low"]
["Eucalyptus acmenoides","White Mahogany","Medium"]
["Eucalyptus albida","White-leaved Mallee","Low"]
["Eucalyptus angulosa","Ridge fruited Mallee","Low"]
["Eucalyptus archeri  ",null,"Medium"]
["Eucalyptus baxteri ",null,"Medium"]
["Eucalyptus behriana","Broad-leaved Mallee","Low"]
["Eucalyptus blakelyi  ",null,"Medium"]
["Eucalyptus botryoides","Bangalay","Low"]
["Eucalyptus brachycorys","Coweowing Mallee","Low"]
["Eucalyptus brachyphylla","Short-leaved Mallee","Low"]
["Eucalyptus burdettiana","Burdetts Gum","Low"]
["Eucalyptus burracoppinensis","Burracoppin Mallee ","Low"]
["Eucalyptus caesia ","Gungurru ","Low"]
["Eucalyptus caesia 'Silver Princess'",null,"Low"]
["Eucalyptus caesia subsp. caesia ",null,"Low"]
["Eucalyptus calophylla ",null,"Medium"]
["Eucalyptus calophylla 'Rosea'","Marri","Low"]
["Eucalyptus calycogona","Gooseberry Mallee","Low"]
["Eucalyptus camaldulensis ","Red Gum ","Low"]
["Eucalyptus campaspe","Silver Topped Gimlet","Low"]
["Eucalyptus carnei","Cames Blackbutt","Low"]
["Eucalyptus cinerea ","Silver Dollar Tree ","Low"]
["Eucalyptus citriodora","Lemon-scented Gum","Low"]
["Eucalyptus cladocalyx ","Sugar Gum ","Low"]
["Eucalyptus coccifera ",null,"Medium"]
["Eucalyptus concinna","Victoria Desert Mallee","Low"]
["Eucalyptus conferruminata","Bushy Yate","Low"]
["Eucalyptus cordata ",null,"Medium"]
["Eucalyptus cornuta","Yate","Low"]
["Eucalyptus coronata","Crowned Mallee","Low"]
["Eucalyptus cosmophylla ",null,"Medium"]
["Eucalyptus crenulata  ",null,"Medium"]
["Eucalyptus crucis","Silver Mallee","Low"]
["Eucalyptus curtisii","Plunkett Mallee","Low"]
["Eucalyptus cylindriflora","White Mallee","Low"]
["Eucalyptus cypellocarpa  ",null,"Medium"]
["Eucalyptus dalrympleana  ",null,"Medium"]
["Eucalyptus dealbata","Tumbledown Gum","Low"]
["Eucalyptus deglupta ","Mindinao Gum ","Medium"]
["Eucalyptus delegatensis  ",null,"Medium"]
["Eucalyptus desmondensis","Desmond Mallee ","Low"]
["Eucalyptus dielsii","Cap-fruited Mallee","Low"]
["Eucalyptus diptera","False Gimlet","Low"]
["Eucalyptus diversifolia","Soap Mallee","Low"]
["Eucalyptus dumosa ","Congoo Mallee","Low"]
["Eucalyptus dwyeri","Dwyers Mallee Gum","Low"]
["Eucalyptus ebbanoensis","Sandplain Mallee","Low"]
["Eucalyptus elata  ",null,"Medium"]
["Eucalyptus eremicola","Nawa Mallee","Low"]
["Eucalyptus eremophila","Tall Sand Mallee","Low"]
["Eucalyptus erythrandra ","Rosebud Gum","Low"]
["Eucalyptus erythrocorys","Illyarrie ","Low"]
["Eucalyptus erythronema","Red-flowered Mallee","Low"]
["Eucalyptus eudesmoides","Myallie","Low"]
["Eucalyptus ficifolia","Red Flowering Gum","Low"]
["Eucalyptus foecunda","Narrow-leafed Red Mallee ","Low"]
["Eucalyptus formanii ","Forman's Mallee ","Low"]
["Eucalyptus forrestiana","Fuchsia Mallee","Low"]
["Eucalyptus froggattii","Kamarooka Mallee","Low"]
["Eucalyptus gamophylla","Twin-leaved Gum","Low"]
["Eucalyptus gardneri","Blue Mallee","Low"]
["Eucalyptus gillii","Curly Mallee","Low"]
["Eucalyptus glaucescens ",null,"Medium"]
["Eucalyptus globulus ","Blue Gum ","Low"]
["Eucalyptus gomphocephala ","Tuart","Low"]
["Eucalyptus goniantha","Jerdacottup Mallee ","Low"]
["Eucalyptus gracilis ","White Mallee ","Low"]
["Eucalyptus grandis ","Flooded Gum ","Medium"]
["Eucalyptus grossa","Phillips River Gum","Low"]
["Eucalyptus gunnii ","Cider Gum ","Low"]
["Eucalyptus haemastoma","Scribbly Gum","Low"]
["Eucalyptus inerassata","Ridge-fruited Mallee","Low"]
["Eucalyptus intertexta ","Inland Red Box ","Low"]
["Eucalyptus jutsonii","Jutsons Mallee","Low"]
["Eucalyptus kingsmilli","Kingsmills Mallee","Low"]
["Eucalyptus kitsoniana ",null,"Medium"]
["Eucalyptus kruseana","Bookleaf Mallee","Low"]
["Eucalyptus lansdowneana","Crimson Mallee","Low"]
["Eucalyptus largiflorens ","Black Box ","Low"]
["Eucalyptus lehmannii","Bushy Yate ","Low"]
["Eucalyptus leucoxylon","Yellow Gum","Low"]
["Eucalyptus loxophleba ","York gum ","Low"]
["Eucalyptus luehmanniana","Yellow-topped Mallee Ash","Low"]
["Eucalyptus macarthurii ",null,"Medium"]
["Eucalyptus macranda","Long-Flowered Marlock","Low"]
["Eucalyptus macrorhyncha ",null,"Medium"]
["Eucalyptus maculata","Spotted gum","Low"]
["Eucalyptus microtheca ","Coolibah ","Low"]
["Eucalyptus muelleriana ",null,"Medium"]
["Eucalyptus neglecta",null,"Medium"]
["Eucalyptus nicholii","Narrow-leaved Peppermint Gum","Low"]
["Eucalyptus nitens ",null,"Medium"]
["Eucalyptus nitida ",null,"Medium"]
["Eucalyptus nova-anglica ",null,"Medium"]
["Eucalyptus obliqua  ",null,"Medium"]
["Eucalyptus occidentalis",null,"Medium"]
["Eucalyptus oreades ",null,"Medium"]
["Eucalyptus ovata  ",null,"Medium"]
["Eucalyptus paniculata","Grey Ironbark","Low"]
["Eucalyptus parvifolia  ",null,"Medium"]
["Eucalyptus patens  ",null,"Medium"]
["Eucalyptus pauciflora","Snow Gum","Low"]
["Eucalyptus perriniana ",null,"Medium"]
["Eucalyptus pilularis ","Blackbutt ","Low"]
["Eucalyptus polyanthemos ","Silver Dollar Gum ","Low"]
["Eucalyptus preissiana ","Bell Mallee ","Low"]
["Eucalyptus pulverulenta","Spinning Gum","Low"]
["Eucalyptus punctata ","Grey Gum ","Low"]
["Eucalyptus radiata  ",null,"Medium"]
["Eucalyptus regnans ",null,"Medium"]
["Eucalyptus resinifera","Red Mahogany","Medium"]
["Eucalyptus rhodantha","Rose Mallee","Low"]
["Eucalyptus risdonii ",null,"Medium"]
["Eucalyptus robusta","Swamp Mahogany","Medium"]
["Eucalyptus rubida  ",null,"Medium"]
["Eucalyptus rudis ","Flooded Gum ","Low"]
["Eucalyptus rudis  ",null,"Medium"]
["Eucalyptus rupicola  ",null,"Medium"]
["Eucalyptus saligna ","Sydney Blue Gum ","Low"]
["Eucalyptus sargentii ","Salt River Mallet ","Low"]
["Eucalyptus scias","Large-fruited Red Mahogany","Low"]
["Eucalyptus scoparia ","Willow-leaf Gum ","Medium"]
["Eucalyptus sideroxylon ","Red Iron Bark ","Low"]
["Eucalyptus sideroxylon 'Rosea'","Pink flowered Red Ironbark","Low"]
["Eucalyptus sieberi  ",null,"Medium"]
["Eucalyptus spathulata","Swamp Mallet","Medium"]
["Eucalyptus stellulata  ",null,"Medium"]
["Eucalyptus subcrenulata ",null,"Medium"]
["Eucalyptus 'Summer Beauty' ","Flowering Gum ","Medium"]
["Eucalyptus tenuiramis ",null,"Medium"]
["Eucalyptus tereticornis ","Forest Red Gum","Medium"]
["Eucalyptus tessallaris","Moreton Bay Ash","Medium"]
["Eucalyptus torelliana ","Cadaghi ","Medium"]
["Eucalyptus torquata ","Coral Gum ","Low"]
["Eucalyptus uichella  ",null,"Medium"]
["Eucalyptus urnigera ",null,"Medium"]
["Eucalyptus vernicosa ",null,"Medium"]
["Eucalyptus viminalis ","Manna Gum ","Low"]
["Eucalyptus virninalis  ",null,"Medium"]
["Eucalyptus woodwardii","Lemon flowered Gum","Medium"]
["Eucomis bicolor 'Hybrids' ","Pineapple Lily ","Medium"]
["Eucryphia glutinosa ","Hardy Eucryphia ","Medium"]
["Eucryphia lucida","Leatherwood ","Medium"]
["Eucryphia mifliganii ",null,"Medium"]
["Eucryphia moorei ",null,"Medium"]
["Eucryphia x intermedia ","Eucryphia ","Medium"]
["Euonymous alatus ","Burning Bush ","Medium"]
["Euonymus fortunei ","Purple Winter Creeper ","Medium"]
["Euonymus fortunei radicans ","Winter Creeper ","Medium"]
["Euonymus japonicus ","Evergreen Euonymus ","Medium"]
["Euonymus japonicus 'Aureo-marginatus' ","Golden Euonymus ","Medium"]
["Euonymus kiautschovicus ","Euonymus ","Low"]
["Eupatorium megalophyllum","Mist Flower","Medium"]
["Euphorbia characias ","Euphorbia ","Low"]
["Euphorbia characias subsp. wulfenii ","Spurge ","Low"]
["Euphorbia cotinifolia ","Carribean Copper Plant ","Medium"]
["Euphorbia cyparissias ","Cypress Spurge ","Low"]
["Euphorbia dulsis ","Euphorbia","Medium"]
["Euphorbia lambii ","Tree Euphorbia "]
["Euphorbia milii","Crown of Thorns","Low"]
["Euphorbia myrsinites","Spurge","High"]
["Euphorbia polychroma","Cushion Spurge ","Low"]
["Euphorbia pulcherrima ","Poinsettia ","Medium"]
["Euphorbia rigida ","Euphorbia ","Low"]
["Euphorbia segueriana niciciana ","Euphorbia "]
["Euphorbia tirucalli ","Milk Bush ","Low"]
["Euphorbia wulfenii","Wulfen's Spurge","High"]
["Euphrasia collina ",null,"Medium"]
["Eupomatia laurina ","Native Guava ","Medium"]
["Euryops chrysanthemoides","Gamolepis","Medium"]
["Euryops pectinatus","Golden Daisy Bush ","Low"]
["Euryops pectinatus ","Euryops ","Low"]
["Euryops pectinatus viridis ","Green Euryops ","Medium"]
["Eustrephus latifolius","Wombat Berry","Medium"]
["Eutaxia microphylla var. Diffusa","Eutaxia","Low"]
["Evolvulus pilosus","Blue Sapphire ","Low"]
["Ewartia catipes  ",null,"High"]
["Ewartia meredithae  ",null,"High"]
["Ewartia nubigena  ",null,"High"]
["Exocarpos latifolius ",null,"Medium"]
["Exocarpos strictus",null,"Medium"]
["Extaxia microphylla","Eutaxia","Low"]
["Fabiana imbricana ","Pichi ","Medium"]
["Fagus sylvatica ","European Beech ","Medium"]
["Fallopia japonica ","Japanese Knotweed "]
["Fallugia paradoxa ","Apache plume ","Low"]
["Farfugium japonicum","Ligularia ","High"]
["Fascicularia pitcairnifolia ","Fascicularia ","Low"]
["Fatsia japonica ","Japanese Aralia ","Medium"]
["Felicia amelloides ","Blue Margeurite","High"]
["Felicia fruticosa ","Shrub Aster ","Low"]
["Ferocactus spp. ","Barrel Cactus ","Low"]
["Festuca arundinacea ","Tall Fescue ","Medium"]
["Festuca californica ","California Fescue ","Medium"]
["Festuca cinerea ","Fescue ","Medium"]
["Festuca glauca ","Blue Fescue ","Low"]
["Festuca idahoensis ","Idaho Fescue ","Low"]
["Festuca muelleri ","Mueller's Fescue ","Medium"]
["Festuca ovina","Blue Grass","Low"]
["Festuca rubra ","Creeping Red Fescue ","High"]
["Festuca tenuifolia ","Fescue","Medium"]
["Ficus auriculata ","Roxburgh Fig ","Medium"]
["Ficus barteri ","Banana-leaf Fig "]
["Ficus benjamina ","Weeping Fig","Medium"]
["Ficus carica ","Edible Fig ","Medium"]
["Ficus coronata","Sandpaper Fig","Medium"]
["Ficus elastica ","Rubber Plant ","Medium"]
["Ficus florida ","Florida Fig ","Medium"]
["Ficus hillii",null,"Medium"]
["Ficus macrophylla ","Moreton Bay Fig ","Medium"]
["Ficus microcarpa ","Indian Laurel fig ","Medium"]
["Ficus microcarpa 'Green Gem' ","Green Gem Ficus ","Medium"]
["Ficus pumila","Creeping Fig","Medium"]
["Ficus rubiginosa","Port Jackson Fig","Medium"]
["Filipendula vulgaris ","Dropwort ","Low"]
["Flindersia australis ","Crow's Ash","Medium"]
["Flindersia brayleyana","Queensland Maple","Medium"]
["Flindersia maculosa","Leopard Tree","Low"]
["Flindersia schottiana","Bumpy Ash","Medium"]
["Forestiera neomexicana ","Desert Olive ","Low"]
["Forsythia viridissima ","Golden Bells ","Medium"]
["Forsythia x intermedia ","Forsythia ","Medium"]
["Fortunella japonica 'Marumi'","Marumi Cumquat ","Medium"]
["Fortunella margarita 'Nagami' ","Nagami Cumquat ","Medium"]
["Fothergilla gardenii ","Dwarf Fothergilla ","Medium"]
["Fouquieria splendens ","Ocotillo ","Low"]
["Fragaria spp. ","Strawberry ","Medium"]
["Francoa ramosa ","Bridal Wreath ","Medium"]
["Francoa sonchifolia ","Bridal Wreath ","Medium"]
["Frankenia pauciflora","Southern Sea Heath","Low"]
["Franklinia alatamaha ","Franklin Tree ","Medium"]
["Fraxinus americana ","White Ash ","Medium"]
["Fraxinus excelsior 'Aurea' ","Golden European Ash ","Medium"]
["Fraxinus griffithii ","Evergreen Ash ","Medium"]
["Fraxinus latifolia ","Oregon Ash ","Medium"]
["Fraxinus 'Moraine' ","Moraine Ash ","Medium"]
["Fraxinus oxycarpa 'Raywood' ","Raywood Ash ","Medium"]
["Fraxinus pennsylvania 'Cimmzam Cimmaron' ","Cimmzam Cimmaron Green Ash ","Medium"]
["Fraxinus pennsylvanica 'Marshal' ","Green Ash ","Medium"]
["Fraxinus uhdei ","Evergreen Ash ","Medium"]
["Fraxinus velutina ","Arizona Ash ","Medium"]
["Fraxinus velutina 'Modesto' ","Modesto Ash ","Medium"]
["Freesia 'Hybrids'","Freesia ","Low"]
["Fremontodendron spp. ","Flannel Bush ","Low"]
["Fuchsia x hybrida ","Fuchsia ","High"]
["Furcraea foetida","Mauritius Hemp","Low"]
["Furcraea spp. ","furcraea ","Low"]
["Gahnia radula ",null,"Medium"]
["Gahnia sieberiana  ","Swamp Gahnia","Medium"]
["Gahnia trifida  ",null,"Medium"]
["Gaillardia grandiflora ","Blanket Flower ","Medium"]
["Gaillardia x grandiflora ","Blanket Flower ","Low"]
["Galium odoratum ","Sweet Woodruff ","Medium"]
["Galtonia candicans ","Summer Hyacinth "]
["Galvesia juncea ","Baja Bush-snapdragon ","Low"]
["Galvesia speciosa ","Island Bush-snapdragon ","Low"]
["Gardenia jasminoides 'Florida'","Gardenia","Medium"]
["Gardenia jasminoides 'Magnifica'","Double Gardenia"]
["Gardenia jasminoides 'Ocean Pearl'"]
["Gardenia jasmionoides 'Radicans' ","Dwarf Gardenia ","Medium"]
["Gardenia tubifera 'Soleil D'or'","Gold Gardenia","Medium"]
["Gardenis 'Grandiflora Star'","Gardenia","Medium"]
["Garrya elliptica","Silk Tassel Bush","Low"]
["Garrya flavescens ","Ashy Silktassel ","Low"]
["Garrya fremontii ","Fremont Silktassel ","Low"]
["Gasteria spp. ","Mother-in-law's Tongue","Low"]
["Gastrolobium praemorsum","Gastrolobium","Low"]
["Gaultheria appressa ",null,"Medium"]
["Gaultheria depressas ",null,"Medium"]
["Gaultheria hispida ",null,"Medium"]
["Gaultheria mucronata","Prickly Heath ","Medium"]
["Gaultheria procumbens ","Creeping Wintergreen ","Medium"]
["Gaultheria shallon ","Salal ","Medium"]
["Gaura lindheimeri ","Butterfly Gaura ","Low"]
["Gazania spp. ","Gazania ","Low"]
["Geijera parviflora ","Wilga ","Low"]
["Geitonoplesium cymosum  ",null,"Medium"]
["Gelsemium rankinii ","Swamp Jessamine "]
["Gelsemium sempervirens ","Carolina Jasmine ","Medium"]
["Genista aetnensis ","Broom ","Low"]
["Genista lydia ","Lydia Woadwaxen ","Medium"]
["Genista pilosa 'Vancouver Gold' ","Vancouver Gold Genista ","Medium"]
["Gentiana scabra procumbens ","Gentian ","High"]
["Gentianella diemensiss ",null,"Medium"]
["Geranium spp. ","Cranesbill ","Medium"]
["Gerbera jamesonii ","Gerbera ","Medium"]
["Geum spp. ","Avens ","Medium"]
["Ginkgo biloba ","Maidenhair Tree ","High"]
["Gladiolus Hybrids ","Gladioli ","High"]
["Glandularia gooddingii ","Goodding Verbena ","Low"]
["Glandularia lilacina ","Lilac Verbena ","Low"]
["Glandularia peruviana ","Peruvian Verbena ","Low"]
["Glandularia tenera","Rock Verbena ","Medium"]
["Glechoma hederaceae ","Ground Ivy ","Medium"]
["Gleditsia triacanthos ","Honey Locust ","Low"]
["Gleditsia trianthos","Golden Honey Locust","Medium"]
["Gleichenia alpina  ",null,"High"]
["Gleichenia dicarpa ",null,"Medium"]
["Gleichenia microphylla",null,"Medium"]
["Glischrocaryon aurea","Common Pop Flower","Low"]
["Glischrocaryon behrii","Golden Pennants","Low"]
["Globularia cordifolia ","Creeping Globe Daisy ","Low"]
["Globularia x indubia ","Globe Daisy ","Medium"]
["Glochidion ferdinandi ","Cheese Tree ","Low"]
["Glycine clandestina ",null,"Medium"]
["Glycine tabacina ","Vanilla Glycine","Low"]
["Gmelina leichhardtii ",null,"Medium"]
["Gnaphalium argentifolium ",null,"Medium"]
["Godetia ","Godetia ","High"]
["Gompholobium huegelii ",null,"Medium"]
["Gompholobium latifolium ","Golden Glory Pea ","Low"]
["Gompholobium latifolium ",null,"Medium"]
["Goniolimon incanum ","Statice ","Low"]
["Goniolimon tataricum","Tartarian Statice ","Medium"]
["Goodenia elongata",null,"Medium"]
["Goodenia hederacea ","Violet-leaved Goodenia ","Low"]
["Goodenia humilis ",null,"Medium"]
["Goodenia lanata  ",null,"Medium"]
["Goodenia macmillanii  ",null,"Medium"]
["Goodenia ovata","Hop Goodenia","Low"]
["Goodenia pinnatifida ","Mother Ducks ","Medium"]
["Goodenia tenella ",null,"Medium"]
["Goodenia varia ",null,"Medium"]
["Goodenia viscida  ",null,"Medium"]
["Goodia lotifolia ","Golden Tip ","Low"]
["Gordonia axillaris ","Fried Egg Plant","Medium"]
["Gordonia lasianthus ","Lob Lolly Bay ","Medium"]
["Gossypium sturtianum ","Sturts Desert Rose ","Low"]
["Graptopetalum spp. ","Graptopetalum ","Low"]
["Graptophyllum excelsum ","Scarlet Fuchsia ","Medium"]
["Grevillea acanthifolia  ",null,"Medium"]
["Grevillea alpina ",null,"Medium"]
["Grevillea aquifolium ",null,"Medium"]
["Grevillea arenaria ",null,"Low"]
["Grevillea argyrophylla","Silvery-leaved Grevillea","Low"]
["Grevillea aspera ",null,"Low"]
["Grevillea asplenifolia ","Fern Leaf Spider Flower ","Low"]
["Grevillea audrey",null,"Medium"]
["Grevillea austraflora ",null,"Medium"]
["Grevillea australis ",null,"Medium"]
["Grevillea baileyana ","Bailey's Oak ","Medium"]
["Grevillea banksii","Bank's Grevillea","Medium"]
["Grevillea banksii var. fosteri","Red Silky Oak ","Medium"]
["Grevillea barklyana ",null,"Medium"]
["Grevillea baueri ",null,"Medium"]
["Grevillea beadleana ",null,"Low"]
["Grevillea bedggoodiana ",null,"Medium"]
["Grevillea 'Billy Bonkers' ","Billy Bonkers Grevillea ","Medium"]
["Grevillea 'Boongala Spinebill' ",null,"Medium"]
["Grevillea brachystachya  ",null,"Medium"]
["Grevillea 'Bronze Rambler' ","Bronze Rambler Grevillea ","Low"]
["Grevillea buxifolia","Grey Spider Flower","Low"]
["Grevillea caleyi ",null,"Medium"]
["Grevillea chrysophaea ",null,"Medium"]
["Grevillea 'Clearview David' ","Clearview David Grevillea ","Low"]
["Grevillea 'Coconut Ice'","Coconut Ice","Low"]
["Grevillea confertifolia ",null,"Medium"]
["Grevillea crithmifolia ",null,"Medium"]
["Grevillea 'Crosbie Morrison' ","Crosbie Morrison Grevillea ","Low"]
["Grevillea 'Dargan Hill'  ",null,"Medium"]
["Grevillea depauperata ",null,"Medium"]
["Grevillea diffusa  ",null,"Medium"]
["Grevillea diffusa subsp. evansiana ",null,"Low"]
["Grevillea diminuta ",null,"Medium"]
["Grevillea dimorpha ",null,"Medium"]
["Grevillea disjuncta",null,"Low"]
["Grevillea 'Ellendale Dragon'","Ellendale Dragon","Low"]
["Grevillea endlicheriana ","Spindly Grevillea ","Low"]
["Grevillea endlicheriana ",null,"Medium"]
["Grevillea evansiana",null,"Medium"]
["Grevillea 'Fire Sprite' ","Fire Sprite Grevillea ","Medium"]
["Grevillea 'Glen Pearl' ",null,"Medium"]
["Grevillea 'Glen Sandra' ",null,"Medium"]
["Grevillea 'Golden Lyre'","Golden Lyre","Low"]
["Grevillea hilliana ",null,"Medium"]
["Grevillea 'Honey Gem' ","Honey Gem Grevillea ","Medium"]
["Grevillea ilicifolia",null,"Low"]
["Grevillea inconspicua",null,"Low"]
["Grevillea 'Ivanhoe'",null,"Medium"]
["Grevillea jephcottii ",null,"Medium"]
["Grevillea 'Jubilee' ",null,"Medium"]
["Grevillea juncifolia","Honeysuckle Grevillea","Low"]
["Grevillea juniperina ","Prickly Spider Flower ","Low"]
["Grevillea lanigera",null,"Low"]
["Grevillea lanigera 'Mt.Tambortha'","Woolly Grevillea","Medium"]
["Grevillea laurifolia",null,"Medium"]
["Grevillea lavandulaceae ","Lavender Grevillea ","Low"]
["Grevillea linearifolia","Mauve Spider-Flower","Low"]
["Grevillea 'Little Thicket' ","Little Thicket Grevillea ","Low"]
["Grevillea longifolia ",null,"Low"]
["Grevillea longistyla ",null,"Low"]
["Grevillea longistyla 'Elegance'","Elegance","Medium"]
["Grevillea macleayana ",null,"Medium"]
["Grevillea microstegias",null,"Medium"]
["Grevillea 'Misty Pink' ","Misty Pink Grevillea ","Medium"]
["Grevillea montis-cole  ",null,"Medium"]
["Grevillea 'Moonlight' ","Moonlight Grevillea ","Medium"]
["Grevillea mucronulata ",null,"Medium"]
["Grevillea 'Ned Kelly' ","Ned Kelly Grevillea ","Medium"]
["Grevillea obtusifolia",null,"Low"]
["Grevillea obtusifolia 'Gin Gem Gem'","Gingin Gem Grevillea "]
["Grevillea oldei ",null,"Low"]
["Grevillea petrophiloides ","Pink Pokers","Low"]
["Grevillea 'Pink Pearl'",null,"Medium"]
["Grevillea 'Pink Surprise'",null,"Medium"]
["Grevillea 'Poorinda Constance'",null,"Medium"]
["Grevillea poorinda 'Royal Mantle'",null,"Medium"]
["Grevillea pterosperma","Desert Grevillea","Low"]
["Grevillea quinquenervis  ",null,"Medium"]
["Grevillea 'Red Hooks' ","Red Hooks Grevillea ","Low"]
["Grevillea repens ",null,"Medium"]
["Grevillea ripicola ",null,"Medium"]
["Grevillea rivularis ",null,"Medium"]
["Grevillea robusta","Silky Oak","Medium"]
["Grevillea 'Robyn Gordon' ","Robyn Gordon Grevillea ","Medium"]
["Grevillea rogersii",null,"Low"]
["Grevillea rosmarinifolia ","Rosemary Grevillea ","Low"]
["Grevillea sericea","Pink Spider Flower","Low"]
["Grevillea sericea  ",null,"Medium"]
["Grevillea shiressii ","Mullet Creek Grevillea ","Low"]
["Grevillea speciosa","Red Spider-flower","Low"]
["Grevillea steiglitziana","Brisbane ranges","Low"]
["Grevillea striata","Beefwood ","Low"]
["Grevillea 'Sunrise'","Sunrise ","Low"]
["Grevillea 'Superb' ","Superb Grevillea ","Medium"]
["Grevillea thelemanniana","Thelemann's Grevilla","Medium"]
["Grevillea venusta ","Byfield Grevillea ","Medium"]
["Grevillea victoriae  ",null,"Medium"]
["Grevillea 'White Wings'",null,"Medium"]
["Grevillea willisii ",null,"Medium"]
["Grevillea 'Winpara Gem'","Winpara Gem","Low"]
["Grevillea x gaudichaudii ",null,"Medium"]
["Grevillea x hookeriana  ",null,"Medium"]
["Grewia occidentalis ","Lavender Star ","Medium"]
["Grindelia camporum ","Gum Plant ","Low"]
["Griselinia littoralis ","Kapuka ","Medium"]
["Griselinia littoralis 'Variegata' ","Variegated Kapuka ","Medium"]
["Griselinia lucida ","Puka ","Medium"]
["Guichenotia ledifolia","Guichenotia","Low"]
["Gunnera cordifolia  ",null,"Medium"]
["Gunnera magellanica ","Gunnera ","High"]
["Gutierrezia sarothrae ","Snakeweed ","Low"]
["Gypsophila cerastioides ","Baby's Breath ","Medium"]
["Gypsophila paniculata ","Baby's Breath ","Medium"]
["Gypsophila repens ","Creeping Baby's Breath ","Medium"]
["Habranthus robustus ","Rainlily ","Medium"]
["Habranthus tubispathus ","Habranthus ","Medium"]
["Hakea bakeriana ",null,"Low"]
["Hakea circumalata ",null,"Low"]
["Hakea costata ",null,"Low"]
["Hakea dactyloides ","Broad Leafed Hakea ","Low"]
["Hakea dactyloides  ",null,"Medium"]
["Hakea divaricata","Corkbark","Low"]
["Hakea epiglottis",null,"Medium"]
["Hakea eriantha ",null,"Medium"]
["Hakea gibbosa",null,"Low"]
["Hakea kippistiana  ",null,"Medium"]
["Hakea laurina","Pincushion Hakea","Medium"]
["Hakea macraeana  ",null,"Medium"]
["Hakea microcarpa",null,"Medium"]
["Hakea nodosa ",null,"Medium"]
["Hakea salicifolia ","Willow-leaf Hakea ","Low"]
["Hakea sericea","Silky Hakea","Low"]
["Hakea suaveolens ","Sweet Hakea ","Low"]
["Hakea teretifolia","Dagger Hakea","Low"]
["Hakea ulicina  ",null,"Medium"]
["Hakonechloa macra ","Hakone Grass ","Medium"]
["Halimium lasianthum ","Sun Rose ","Low"]
["Hamamelis virginiana ","Common Witch Hazel ","Medium"]
["Hamelia patens ","Firecracker Bush ","Medium"]
["Handroanthus chrysotrichus ","Golden Trumpet Tree ","Medium"]
["Handroanthus impetiginosa ","Lavender Trumpet Tree ","Medium"]
["Hardenbergia comptoniana ","WA Coral Pea ","Low"]
["Hardenbergia violacea","Native Sarsaparilla","Low"]
["Hardenbergia violacea ‘Happy Wanderer' ",null,"Medium"]
["Hardenbergia violacea 'Cultivars' ",null,"Low"]
["Harpephyllum caffrum ","Kaffir plum ","Medium"]
["Harpullia alata ",null,"Medium"]
["Harpullia arborea ","Tulipwood ","Medium"]
["Harpullia pendula","Tulipwood","Medium"]
["Haworthia spp. ","Haworthia ","Low"]
["Hebe albicans ","Veronica ","Low"]
["Hebe 'Emerald Green' ","Emerald Green Hebe ","Low"]
["Hebe 'Inspiration' ","Veronica Inspiration ","Low"]
["Hebe 'Lavender Lace' ","Lavender Lace Hebe ","Low"]
["Hebe 'Snowdrift' ","Snowdrift Hebe ","Low"]
["Hebe 'Wiri Cloud' ",null,"Low"]
["Hebe 'Wiri Image' ",null,"Low"]
["Hebe x franciscana 'Blue Gem' ","Veronica Blue Gem ","Low"]
["Hedera canariensis ","Algerian ivy ","Medium"]
["Hedera helix ","English Ivy ","Low"]
["Hedera nepalensis ","Himalayan ivy ","Medium"]
["Hedycarya angustifolia ",null,"Medium"]
["Hedychium coccinium ","Red Ginger Lily ","High"]
["Hedychium coronarium ","White Ginger Lily ","High"]
["Hedychium flavescens ","Yellow Ginger ","High"]
["Hedychium gardnerianum","Kahili ginger ","Medium"]
["Hedychium greenei ","Red Leaf Ginger ","High"]
["Helenium bigelovii ","Bigelow Sneezeweed ","Low"]
["Helenium hoopesii ","Orange Sneezeweed ","Low"]
["Helianthemum appenium ","White Rock Rose "]
["Helianthemum nummularium ","Helianthemum ","Low"]
["Helianthus angustifolius ","Swamp Sunflower ","High"]
["Helianthus annus ","Sunflower ","Medium"]
["Helianthus maximiliani ","Maximilian Sunflower ","Medium"]
["Helichrysum acuminatum","Alpine Everlasting","Low"]
["Helichrysum angustifolium","Curry Plant","High"]
["Helichrysum apiculatum ","Yellow Buttons","Low"]
["Helichrysum baxteri","Fringed Everlasting","Low"]
["Helichrysum elatum ",null,"Medium"]
["Helichrysum hookeri","Alpine Everlasting ","Low"]
["Helichrysum iosmifolium  ",null,"Medium"]
["Helichrysum obcordatum  ",null,"Medium"]
["Helichrysum petiolare ","Licorice Plant ","Low"]
["Helichrysum petiolatum","Licorice Plant","Medium"]
["Helichrysum semipapposium ","Clustered Everlastinge","Low"]
["Helichrysum semipapposum  ",null,"Medium"]
["Helichrysum thyrsoideum","Cascade Everlasting","Low"]
["Heliconia Hybrids","Heliconia","High"]
["Helictotrichon sempervirens ","Blue Oat Grass ","Medium"]
["Heliopsis helianthoides scabra ","Golden Sunflower ","High"]
["Heliotropum arborescens ","Common Heliotrope ","Medium"]
["Helipterum albicans","Hoary sunray","Low"]
["Helipterum albicanss ",null,"Medium"]
["Helipterum roseum","Rosy Sunray ","Low"]
["Helleborus foetidus ","Winter Rose ","High"]
["Helleborus orientalis ","Winter Rose ","High"]
["Helleborus spp. ","Hellebore","Medium"]
["Helmholtzia acorifolia  ",null,"Medium"]
["Helmholtzia glaberrima ","Stream Lily ","Medium"]
["Hemarthria uncinata  ",null,"Medium"]
["Hemerocallis Hybrids ","Daylily ","Medium"]
["Herniaria glabra ","Green Carpet ","Medium"]
["Herpolirion novae-zelandiae",null,"High"]
["Hesperaloe funifera ","Coahuilan Hesperaloe ","Low"]
["Hesperaloe parviflora ","Red/Yellow Yucca ","Low"]
["Hesperantha spp. ","Hesperantha ","Low"]
["Heterocentron elegans ","Spanish Shawl ","Medium"]
["Heteromeles arbutifolia ","Toyon ","Low"]
["Heterotheca villosa","Hairy Golden Aster ","Low"]
["Heuchera maxima ","Island Alum Root ","Medium"]
["Heuchera micrantha ","Alum Root ","Medium"]
["Heuchera micrantha var.diversifolia 'Purple Palace' ","Heuchera Purple Palace ","Medium"]
["Heuchera sanguinea ","Coral Bells ","Medium"]
["Hibanobambusa tranquillans ","Inyouchikuzoku ","High"]
["Hibbertia aspera ",null,"Medium"]
["Hibbertia cuniformis ","Cut-leaf Guinea Flower ","Medium"]
["Hibbertia dentata ",null,"Medium"]
["Hibbertia empetrifolia","Trailing Guinea Flower","Low"]
["Hibbertia obtusifolia","Grey Guinea Flower","Low"]
["Hibbertia pedunculata ","Guinea Flower ","Low"]
["Hibbertia procumbens ",null,"Medium"]
["Hibbertia scandens","Snake Vine","Low"]
["Hibbertia sericea ","Silky Guinea Flower ","Low"]
["Hibbertia stellaris  ",null,"High"]
["Hibbertia vestita ",null,"Medium"]
["Hibiscus diversifolius",null,"Medium"]
["Hibiscus Hawaiin Hybrids","Hawaiin Hibiscus","Medium"]
["Hibiscus heterophyllus ","Native Rosella ","Medium"]
["Hibiscus moscheutos ","Mallow Rose ","Medium"]
["Hibiscus mutabilis ","Confederate Rose ","Medium"]
["Hibiscus rosa-sinensis ","Hibiscus ","Medium"]
["Hibiscus syriacus","Rose of Sharon","Medium"]
["Hibiscus tiliaceus","Cottonwood","Medium"]
["Hibiscus trionum ","Flower-of-an-hour ","Medium"]
["Hicksbeachia pinnatifolia ",null,"Medium"]
["Himenosporum flavum","Native Frangipani ","Low"]
["Hippeastrum spp. ","Amaryllis ","Medium"]
["Hippolytia herderi ","Hippolytia "]
["Histiopteris incisa ",null,"Medium"]
["Holodiscus discolor ","Sea Foam ","Medium"]
["Homeria spp. ","Cape Tulip ","Medium"]
["Homoranthus darwinioides ",null,"Low"]
["Homoranthus flavescens ",null,"Medium"]
["Homoranthus papillatus  ",null,"Medium"]
["Hosta lancifolia ","Fragrant Plantain Lily ","High"]
["Hosta spp. ","Plantain Lily ","Medium"]
["Houttuynia cordata 'Chameleon' ","Chameleon Houttuynia ","Medium"]
["Hovea acutifolia  ","Purple Pea Bush","Medium"]
["Hovea chorizemifolia  ",null,"Medium"]
["Hovea elliptica ",null,"Medium"]
["Hovea heterophylla  ",null,"Medium"]
["Hovea lanceolata  ",null,"Medium"]
["Hovea longifolia ",null,"Medium"]
["Howea forsterana ","Kentia Palm ","Medium"]
["Howittia triocularis ",null,"Medium"]
["Hoya australis  ","Wax Plant","Medium"]
["Hunnemannia fumarifolia ","Mexican Tulip Poppy ","Medium"]
["Hydrangea","Hydrangea","High"]
["Hydrangea anomala petiolaris ","Climbing Hydrangea ","High"]
["Hydrangea arborescens ","Snowball Hydrangea ","High"]
["Hydrangea aspera villosa ","Lacecap Hydrangea ","High"]
["Hydrangea macrophylla","Hydrangea","High"]
["Hydrangea paniculata 'Grandiflora' ","Peegee Hydrangea ","Medium"]
["Hydrangea quercifolia ","Oakleaf Hydrangea ","Medium"]
["Hydrangea serrata ","Blue Bird Hydrangea ","High"]
["Hylotelephium spectabile","Ice Plant","Medium"]
["Hymenanthera dentata ",null,"Medium"]
["Hymenocallis caribea",null,"Medium"]
["Hymenocallis littoralis ","Spider Lily ","Medium"]
["Hymenocallis speciosa",null,"Medium"]
["Hymenoclea monogyra ","Cheese Bush ","Low"]
["Hymenosporum flavum","Native Frangipani","Medium"]
["Hypericum beanii ","Henry St. John's Wort ","Medium"]
["Hypericum calycinum ","Aaron's Beard ","Medium"]
["Hypericum empetrifolium nanum ","Hypericim ","Medium"]
["Hypericum frondosum ",null,"Medium"]
["Hypericum 'Hidecote' ","St.Johnswort ","Medium"]
["Hypericum kelleri ","Keller Hypericum ","Medium"]
["Hypericum olympicum ","Olympic Hypericum ","Low"]
["Hypericum patulum var. henryi","St John's Wort","Medium"]
["Hypericum 'Rowallane' ","Rowall Hypericum ","Medium"]
["Hypericum x inodorum 'Albury Purple' ","Albury Purple Hypericum ","Medium"]
["Hypericum x moseranum ","Gold Flower ","Medium"]
["Hypocalymma angustifolium ","Pink-flowered Myrtle ","Medium"]
["Hypocalymma cordifolium  ",null,"Medium"]
["Hypocalymma myrtifolium  ",null,"Medium"]
["Hypocalymma xanthopetalum ",null,"Medium"]
["Hypoestes aristata ","Ribbon Bush ","Medium"]
["Hypoestes phyllostachya","Polka Dot Plant","High"]
["Hypoxis glabella  ",null,"Medium"]
["Hypoxis hookeri  ",null,"Medium"]
["Hypoxis hygrometrica  ",null,"Medium"]
["Hyptis emoryi ","Desert Lavender ","Low"]
["Iberis amara ","Rocket Candytuft ","Medium"]
["Iberis gibraltarica ","Gibraltar Candytuft ","Medium"]
["Iberis sempervirens ","Candytuft ","Low"]
["Ilex aquifolium ","English Holly ","Medium"]
["Ilex cornuta 'Burfordii' ","Burford Holly ","Medium"]
["Ilex crenata ","Box-leaved Holly ","Medium"]
["Ilex dimorphophilla ","Okinawan Holly ","Medium"]
["Ilex integra ","Nepal Holly "]
["Ilex verticillata ","Winterberry "]
["Ilex vomitoria ","Yaupon ","Medium"]
["Ilex x altaclarensis 'Wilsonii' ","Wilson Holly ","Medium"]
["Ilex x meserveae ","Blue Boy","Medium"]
["Illicium floridanum 'Alba' ","White Florida Anise-tree ","Medium"]
["Imaptiens New Guinea Hybrid","New Guinea Hybrid Impatiens","Medium"]
["Impatiens balsamina ","Busy Lizzie ","Medium"]
["Impatiens sodeni","Poor Man's Rhododendron ","Medium"]
["Impatiens uguensis ",null,"High"]
["Imperata cylindrica","Blady Grass","Medium"]
["Imperata cylindrica 'Rubra' ","Japanese Blood Grass ","Medium"]
["Indigofera australis","Australian Indigo","Low"]
["Indigofera decora","Chinese Indigo ","Medium"]
["Inula ensifolia ","Inula ","Medium"]
["Iochroma cyanea ","Violet Tubeflower ","Medium"]
["Iochroma fuchsioides ","Red Tubeflower ","Medium"]
["Iochroma grandiflorum","Peruvian Andes","Medium"]
["Ipheion uniflorum","Spring Star Flower ","Low"]
["Ipomea indica","Blue Dawn Flower ","Medium"]
["Ipomoea horsfalliae ","Cardinal Creeper ","Medium"]
["Ipomopsis rubra ","Standing Cypress ","Low"]
["Iris foetidissima","Stinking Iris","Medium"]
["Iris pseudoacorus ","Yellow Flag ","Low"]
["Iris spp. ","Japanese iris ","High"]
["Iris spp. ","Bearded Iris ","Medium"]
["Iris spp. ","Douglas Iris Hybrids ","Medium"]
["Iris spp. ","Siberian Iris ","Medium"]
["Iris spp. ","Spanish Iris ","Medium"]
["Iris xiphium hybridum ","Dutch Iris ","High"]
["Isocoma spp. ","Goldenbush ","Low"]
["Isolepis cernua ","Low Bull Rush ","High"]
["Isolepis fluitans ",null,"Medium"]
["Isolepis nodosa","Knobby Club-rush","Low"]
["Isoplexis chalcantha ","Isoplexis ","Low"]
["Isopogon anemonifolius","Conebush","Low"]
["Isopogon anethifolius","Narrow-leaf Drumstick","Low"]
["Isopogon dawsonii ","Nepean Cone Bush ","Low"]
["Isopogon formosus ","Rose Cone Flower ","Low"]
["Isotoma axillaris  ",null,"Medium"]
["Isotoma fluviatilis  ",null,"Medium"]
["Itea ilicifolia ","Holly Sweetspire ","Medium"]
["Iva hayesiana ","Poverty Weed ","Low"]
["Ixia spp. ","African Corn Lily ","Medium"]
["Ixora chinensis 'Compacta'","Coral Fire","Medium"]
["Ixora chinensis 'Pink Malay'","Malay Pink Ixora","Medium"]
["Ixora chinensis 'Prince of Orange'","Prince of Orange","Medium"]
["Ixora coccinea","Ixora","Medium"]
["Jacaranda mimosifolia ","Jacaranda ","Medium"]
["Jacksonia scoparia ","Dogwood ","Low"]
["Jagera pseudorhus ","Foambark","Medium"]
["Jasminum angulare ","South African Jasmine ","Medium"]
["Jasminum azoricum ","Lemon Scented Jasmine ","Medium"]
["Jasminum beesianum ","Beesianum Jasmine ","Medium"]
["Jasminum floridum ","Showy Jasmine ","Medium"]
["Jasminum grandiflorum ","Large White Jasmine ","Medium"]
["Jasminum humile ","Italian Jasmine ","Medium"]
["Jasminum leratii ",null,"Medium"]
["Jasminum linearis","Desert Jasmine","Low"]
["Jasminum mesnyi ","Yellow Jasmine ","Low"]
["Jasminum nitidum ","Angel Wing Jasmine ","Medium"]
["Jasminum nudiflorum ","Winter Jasmine ","Low"]
["Jasminum officinale f. grandiflorum ","Common Jasmine ","Medium"]
["Jasminum parkeri ","Dwarf Jasmine ","Medium"]
["Jasminum polyanthum ","Pink Jasmine ","Medium"]
["Jasminum sambac ","Arabian Jasmine ","Medium"]
["Jasminum x stephanense ","Stephan Jasmine ","Medium"]
["Jatropha integerrima ","Spicy Jatropha ","Low"]
["Jubaea chilensis ","Chilean Wine Palm ","Medium"]
["Juglans californica ","South California Black Walnut ","Low"]
["Juglans hindsii ","California Black Walnut ","Medium"]
["Juglans major ","Arizona Walnut ","Medium"]
["Juglans nigra ","Eastern Black Walnut ","Medium"]
["Juglans regia ","English Walnut ","Medium"]
["Juncus australis  ",null,"Medium"]
["Juncus holoschoenus",null,"Medium"]
["Juncus pallidus  ",null,"Medium"]
["Juncus pauciflorus  ",null,"Medium"]
["Juncus polyanthemus ",null,"Medium"]
["Juncus spp. ","Rush ","Medium"]
["Juncus usitatus ","Tussock Rush ","Low"]
["Juniperus californica ","California Juniper ","Low"]
["Juniperus chinensis 'Kaizuka' ","Hollywood Juniper ","Medium"]
["Juniperus chinensis 'Spartan' ","Spartan Juniper ","Low"]
["Juniperus communis 'Compressa' ","Noah's Ark Juniper ","Medium"]
["Juniperus communis 'Hibernica' ","Irish Juniper ","Medium"]
["Juniperus communis 'Repanda' ","Repanda Juniper ","Medium"]
["Juniperus conferta","Japanese Shore Juniper ","Low"]
["Juniperus horizontalis","Creepeing Juniper","Low"]
["Juniperus procumbens ","Japanese Garden Juniper ","Low"]
["Juniperus sabina ","Savin Juniper ","Low"]
["Juniperus scopulorum 'Blue Arrow' ","Blue Arrow Juniper ","Low"]
["Juniperus scopulorum'Tolleson'","Tolleson's Juniper ","Medium"]
["Juniperus squamata 'Blue Star' ","Blue Star Juniper ","Low"]
["Juniperus squamata 'Meyeri' ","Meyer Juniper ","Medium"]
["Juniperus virginiana 'Burkii' ","Burke Eastern Red Cedar ","Medium"]
["Juniperus virginiana 'Grey Owl' ","Grey Owl Eastern Red Cedar ","Medium"]
["Juniperus x media 'Pfitzeriana' ","Pfitzer Juniper ","Medium"]
["Justicia aurea ","Yellow Plume Flower ","High"]
["Justicia brandegeana ","Shrimp Plant ","Medium"]
["Justicia californica ","Chuparosa ","Low"]
["Justicia candicans ","Red Justicia "]
["Justicia carnea ","Brazilian Plume Flower ","High"]
["Justicia leonardii "]
["Justicia sonorea ","Sonoran Justicia ","Low"]
["Justicia spicigera ","Mexican Honeysuckle ","Low"]
["Kalanchoe blossfeldiana Hybrids","Kalanchoe ","Medium"]
["Keckiella antirhinnoides ","Yellow Penstemmon ","Low"]
["Keckiella cordifolia ","Heart-leaved Penstemmon ","Low"]
["Kennedia eximia  ",null,"Medium"]
["Kennedia glabrata  ",null,"Medium"]
["Kennedia macrophylla ",null,"Medium"]
["Kennedia microphylla  ",null,"Medium"]
["Kennedia nigricans","Black Coral-pea","Low"]
["Kennedia rubicunda","Dusky Coral-pea","Low"]
["Kennedia stirlingii  ",null,"Medium"]
["Kerria japonica ","Japanese Rose ","Medium"]
["Kirengeshoma koreana ","Yellow Waxbells ","High"]
["Kirengeshoma palmata ","Yellow Waxbells ","High"]
["Kniphofia triangularis ","Coral Poker ","Medium"]
["Kniphofia uvaria ","Red Hot Pokers ","Medium"]
["Kniphofia 'Winter Cheer'","Red Hot Poker","Medium"]
["Koelaria glauca ","Blue Hair Grass ","Medium"]
["Koelreuteria bipinnata ","Chinese Flame Tree ","Medium"]
["Koelreuteria elegans ","Chinese Flame Tree ","Medium"]
["Koelreuteria paniculata ","Golden Rain Tree ","Medium"]
["Kolkwitzia amabalis ","Beauty Bush ","Medium"]
["Kreysigia multiflora  ",null,"Medium"]
["Kunzea ambigua ","Tick bush ","Low"]
["Kunzea capitata","Pink Kunzea","Low"]
["Kunzea ericifolia  ",null,"Medium"]
["Kunzea ericoides ",null,"Medium"]
["Kunzea parvifolia  ",null,"Medium"]
["Kunzea pomifera","Muntries ","Low"]
["Kunzea pulchella",null,"Low"]
["Kunzea recurva  ",null,"Medium"]
["Kunzea s 'Badja Carpet' ","Kunzea Badger Carpet ","Low"]
["Labab purpureus ","Hyacinth Bean ","Medium"]
["Laburnum x watereri ","Golden Chain Tree ","Medium"]
["Laburnum x watereri 'Vossii' ","Golden Chain Tree ","Medium"]
["Laccospadix australasicus ",null,"Medium"]
["Lachenalia spp. ","Cowslip ","Low"]
["Lagerstroemia indica","Crepe Myrtle","Low"]
["Lagerstroemia speciosa","Queen Crepe Myrtle","Medium"]
["Lagerstroemia x fauerei ","Crepe Myrtle ","Medium"]
["Lagunaria patersonia ","Norfolk Island Hibiscus ","Medium"]
["Lambertia formosa","Mountain Devil","Low"]
["Lambertia intermis ","Lambertia ","Low"]
["Lamiastrum galeobdolon ","yellow archangel ","Medium"]
["Lamium maculatum ","Spotted Dead Nettle ","Medium"]
["Lampranthus spp. ","Pigface","Low"]
["Lantana camara ","Lantana ","Low"]
["Lantana montevidensis ","Trailing Lantana ","Low"]
["Larix decidua ","European Larch ","Medium"]
["Larrea tridentata ","Creosote ","Low"]
["Lasiopetalum baueri","Velvet Bush","Low"]
["Lasiopetalum behrii","Pink Velvet Bush","Low"]
["Lasiopetalum ferrugineum ","Velvet Bush ","Low"]
["Lasiopetalum macrophyllum ",null,"Medium"]
["Lasiopetalum schulzenii","Velvet Bush","Low"]
["Lastreopsis acuminata ",null,"Medium"]
["Lastreopsis hispidas",null,"Medium"]
["Lathyrus odoratus ","Sweet Pea ","High"]
["Laurentia fluviatilis ","Blue Star Creeper ","Medium"]
["Lauris nobilis ","Bay Tree ","Medium"]
["Laurus 'Saratoga' ","Saratoga Laurel ","Low"]
["Lavandula angustifolia ","English Lavender ","Low"]
["Lavandula dentata ","French Lavender ","Low"]
["Lavandula x allardii","Allard's Lavender","Medium"]
["Lavatera assurgentiflora ","Tree Mallow ","Low"]
["Lavatera Hybrids ","Lavatera ","Low"]
["Lavatera maritima ","Bush Mallow ","Low"]
["Laxmannia gracilis",null,"Medium"]
["Lechenaultia biloba ","Blue Lechenaultia ","Low"]
["Lechenaultia formosa","Orange Lechenaultia","Low"]
["Leichhardtia australis ",null,"Medium"]
["Leonotus leonorus","Lion's Tail ","Medium"]
["Leontopodium alpinium ","Eidelweiss ","Medium"]
["Lepechinia hastata ","Mexican Pitcher Sage ","Low"]
["Lepidosperma elatius  ",null,"Medium"]
["Lepidozamia peroffskyana ","Pineapple Zamia","Medium"]
["Leptospermum brevipes ",null,"Medium"]
["Leptospermum flavescens ",null,"Medium"]
["Leptospermum grandifolium  ",null,"Medium"]
["Leptospermum horizontalis",null,"Medium"]
["Leptospermum juniperinum ","Prickly Tea-tree ","Low"]
["Leptospermum laevigatum","Coastal Tea Tree","Low"]
["Leptospermum lanigerum ",null,"Medium"]
["Leptospermum liversidgei ",null,"Medium"]
["Leptospermum myrsinoides ",null,"Medium"]
["Leptospermum myrtifolium  ",null,"Medium"]
["Leptospermum nitidum",null,"Medium"]
["Leptospermum obovatum ",null,"Medium"]
["Leptospermum petersonii ","Lemon Scented Tea Tree ","Medium"]
["Leptospermum polygalifolium 'Cardwell'","Cardwell Tea Tree ","Low"]
["Leptospermum polygalifolium 'Pacific Beauty' ","Pacific Beauty ","Low"]
["Leptospermum rotundifolium ","Tea Tree ","Low"]
["Leptospermum rupestre  ",null,"Medium"]
["Leptospermum scoparium","Manuka","Low"]
["Leptospermum spectabile ",null,"Medium"]
["Leptospermum squarrosum","Pink Tea Tree","Low"]
["Leptospermum trinervium ","Flaky-barked Tea Tree ","Low"]
["Leucadendron argenteum ","Silver Tree ","Low"]
["Leucadendron galpinii ","Galpin's Leucadendron "]
["Leucadendron Hybrids ","Hybrid Leucadendron ","Low"]
["Leucanthemum x superbum ","Shasta Daisy ","Medium"]
["Leucojum aestivum ","Summer Snowflake ","Medium"]
["Leucophyllum frutescens ","Purple Sage","Low"]
["Leucophyta brownii","Cushion Bush","Low"]
["Leucopogon biflorus","Twin flower","Low"]
["Leucopogon ericoides  ",null,"Medium"]
["Leucopogon lanceolatus","Lance Bearded Heath","Medium"]
["Leucopogon suaveolens  ",null,"Medium"]
["Leucospermum cordifolium ","Nodding Pincushion ","Low"]
["Leucothoe fontanesiana ","Drooping Laurel ","Medium"]
["Lewisia columbiana rupicola ","Columbia Lewisia ","Low"]
["Lewisia cotyledon ","Bitter Root ","Low"]
["Lewisia Hybrids ","Lewisia ","Low"]
["Leymus spp. ","Wild Rye ","Medium"]
["Liatris spicata ","Gay Feather ","Low"]
["Libertia paniculata ","Grass Flag ","Medium"]
["Libertia puichella ",null,"Medium"]
["Licuala grandis","Fan Palm","High"]
["Licuala ramsayi","Ruffled Fan Palm","High"]
["Ligustrum japonicum ","Japanese Privet ","Medium"]
["Ligustrum lucidum ","Glossy Privet ","Medium"]
["Ligustrum ovalifolium ","California Privet ","Medium"]
["Ligustrum x vicaryi ","Golden Privet ","Medium"]
["Lilium auratum ","Gold-banded Lily ","High"]
["Lilium 'Oriental Hybrids'","Oriental Lily","High"]
["Limonium commune var. californicum ","Coastal Statice ","Low"]
["Limonium perezii ","Perennial Statice ","Low"]
["Limonium sinuatum ","Statice ","Low"]
["Linaria purpurea ","Toadflax ","Medium"]
["Linaria supina ","Toadflax "]
["Lindsaea linearis  ",null,"Medium"]
["Lindsaea microphylla  ",null,"Medium"]
["Linospadix monostachya ","Walking Stick Palm ","Medium"]
["Linum marginale  ",null,"Medium"]
["Linum perenne ","Perennial Blue Flax ","Low"]
["Liquidambar styraciflua ","Liquidambar ","Low"]
["Liriodendron tulipifera ","Tulip Tree ","Medium"]
["Liriope muscari","Turf Lily","Low"]
["Liriope muscari 'Evergreen Giant' ","Giant Liriope ","Medium"]
["Liriope 'Stripey White' ","Stripey White","Medium"]
["Lisianthus 'Hybrids'","Lisianthus ","High"]
["Lithocarpus densiflorus ","Tanbark Oak ","Low"]
["Lithocarpus edulis","Japanese False Oak ","     "]
["Lithodora diffusa ","Heavenly Blue ","Medium"]
["Livistona australis","Cabbage Tree Palm","Medium"]
["Livistona chinensis ","Chinese Fan Palm ","Medium"]
["Livistona decipiens","Queensland Fan Palm","Medium"]
["Livistona mariae ","Central Australian Fan Palm ","Medium"]
["Livistona mariae  ",null,"Medium"]
["Livistona rigida "]
["Lobelia alata  ",null,"Medium"]
["Lobelia 'Brightness' ","Brightness Lobelia ","High"]
["Lobelia chinensis ","Lobelia","High"]
["Lobelia erinus ","Lobelia ","High"]
["Lobelia fulgens ","Mexican Cardinal Flower ","High"]
["Lobelia gibbosa ",null,"Medium"]
["Lobelia laxiflora ","Mexican Bush Lobelia ","Low"]
["Lobelia membranacea ",null,"Medium"]
["Lobelia quadrangularis  ",null,"Medium"]
["Lobelia ricardii ",null,"Medium"]
["Lobelia richmondensis ","Perennial Lobelia ","Medium"]
["Lobelia siphilitica ","Great Blue Lobelia "]
["Lobelia trigonocaulis ",null,"Medium"]
["Lobostemon fruiticosus ","Eight-day-healing Bush ","Low"]
["Lobularia maritima ","Sweet Alyssum ","Low"]
["Logania albiflora ",null,"Medium"]
["Lolium perenne ","Perennial Ryegrass ","High"]
["Lomandra confertifolia "]
["Lomandra confertifolia 'Little Con' ","Little Con Grassy Mat Rush ","Low"]
["Lomandra filiformis","Wattle Mat Rush","Low"]
["Lomandra hystrix"]
["Lomandra longifolia","Mat Rush","Low"]
["Lomatia fraseri ",null,"Medium"]
["Lomatia ilicifolia  ",null,"Medium"]
["Lomatia myricoides ",null,"Medium"]
["Lomatia polymorpha  ",null,"Medium"]
["Lomatia silaifolia ",null,"Low"]
["Lomatia tinctoria ",null,"Medium"]
["Lonicera confusa ","Honeysuckle","Medium"]
["Lonicera hildebrandiana ","giant Burmese honeysuckle ","Medium"]
["Lonicera hispidula ","Honeysuckle","Low"]
["Lonicera japonica ","Japanese Honeysuckle ","Medium"]
["Lonicera japonica 'Halliana'","Hall's Honeysuckle","Medium"]
["Lonicera nitida ","Box-leafed Honeysuckle ","Medium"]
["Lonicera periclymenum ","Flowering Woodbine ","Low"]
["Lonicera sempervirens ","Trumpet Honeysuckle ","Medium"]
["Lonicera subspicata ","Chaparral Honeysuckle ","Low"]
["Lonicera tatarica ","Tatarian Honeysuckle ","Medium"]
["Lophostemon confertus ","Brush Box ","Low"]
["Loropetalum chinense ","Fringe Flower ","Medium"]
["Loropetalum chinense var. rubrum ","China Pink Fringe Flower ","Medium"]
["Lotus australis ",null,"Medium"]
["Lotus corniculatus ","Birdsfoot Trefoil ","Medium"]
["Lotus scoparius ","Deer Weed ","Low"]
["Luculia gratissima ","Pink Luculia ","Medium"]
["Luculia pinceana ","Luculia ","Medium"]
["Luma apiculata ","Palo Colorado ","Medium"]
["Lupinus albifrons ","Silver Lupine ","Low"]
["Lupinus arboreus ","Coastal Bush Lupine ","Low"]
["Lupinus excubitus ","Grape Soda Lupine ","Low"]
["Lupinus 'Russell Hybrids'","Russell Lupines ","Medium"]
["Lupinus sparsiflorus ","Arroyo Lupine "]
["Luzula alpestris ",null,"Medium"]
["Luzula meridionalis  ",null,"Medium"]
["Luzula nivea ","Snowy Woodrush ","Medium"]
["Luzula purpurea ","Purple Woodrush ","Medium"]
["Luzula sylvatica ","Greater Woodrush ","Medium"]
["Lychnis alpina ","Alpine Campion ","Medium"]
["Lychnis chalcedonica ","Maltese Cross ","Medium"]
["Lychnis coronaria ","Rose Campion","Low"]
["Lycianthus rantonnetii ","Paraguay Nightshade","Medium"]
["Lycium exertum ","Boxthorn "]
["Lycium fremontii ","Wolfberry ","Low"]
["Lycopersicon esculentum ","Tomato ","High"]
["Lyonothamnus floribundus ","Catalina Ironwood ","Low"]
["Lysiloma candida ","Palo Blanca ","Medium"]
["Lysiloma microphylla var. thornberi ","Feather Bush ","Low"]
["Lysimachia spp. ","Loosestrife","High"]
["Lythrum salicaria  ",null,"Medium"]
["Macadamia integrifolia","Queensland Nut ","Medium"]
["Macadamia tetraphylla ","Rough-shell Macadamia Nut ","High"]
["Macfadyena unguis-cati ","Cat's Claw ","Low"]
["Mackaya bella","Forest Bell Bush","Medium"]
["Mackinlaya macrosciadia ",null,"Medium"]
["Macleaya spp. ","Plume Poppy ","Medium"]
["Maclura pomifera","Osage Orange","Low"]
["Macrozamia communis","Burrawang","Low"]
["Magnolia denudata","Yulan Magnolia","Medium"]
["Magnolia grandiflora","Southern Magnolia","Medium"]
["Magnolia grandiflora 'Exmouth' ","Southern Magnolia ","Medium"]
["Magnolia grandiflora 'Little Gem' ","Little Gem Magnolia ","Medium"]
["Magnolia liliiflora","Lily Magnolia","Medium"]
["Magnolia sieboldii ","Oyama Magnolia ","Medium"]
["Magnolia stellata","Star Magnolia","Medium"]
["Magnolia x loebneri ","Loebner Magnolia ","Medium"]
["Magnolia x soulangiana","Saucer Magnolia","High"]
["Magnolia x veitchii ","Veitch Magnolia ","Medium"]
["Mahonia aquifolium ","Oregon Grape ","Medium"]
["Mahonia bealei ","Leatherleaf Mahonia ","Medium"]
["Mahonia fortunei ","Chinese Mahonia ","Medium"]
["Mahonia 'Golden Abundance' ","Golden Abundance Mahonia ","Medium"]
["Mahonia lomariifolia","Holly grape","Medium"]
["Mahonia lomariifolia ","Chinese Holly Grape ","Medium"]
["Mahonia nervosa ","Longleaf Mahonia ","Medium"]
["Mahonia nevinii ","Nevin mahonia ","Low"]
["Mahonia pinnata","California Holly Grape ","Medium"]
["Mahonia repens ","Creeping Mahonia ","Low"]
["Maianthemum dilatatum ","May Lily ","High"]
["Maireana sedifolia ","Pearl Bluebush ","Low"]
["Malacothamnus clementinus ","San Clemente Island Bush Mallow ","     "]
["Malacothamnus fasciculatus ","Bush Mallow ","Low"]
["Malacothamnus fremontii ","Fremont's Bush Mallow ","Low"]
["Maleophora spp. ","Ice Plant ","Low"]
["Malosma laurina","Laurel Sumac ","Low"]
["Malus Hybrids ","Crabapple ","Medium"]
["Malus ionensis 'Plena' ","Crabapple ","Medium"]
["Malus x domestica ","Apple ","Medium"]
["Malvaviscus arboreus ","Turk's Cap ","Medium"]
["Mandevilla laxa ","Chilean Jasmine ","Medium"]
["Mandevilla sanderi","Brazillean Jasmine","Medium"]
["Mandevilla splendens ","Mandevilla ","Medium"]
["Mandevilla x amoena 'Alice du Pont'","Alice du Pont","Medium"]
["Manettia luteorubra","Cigar Plant","High"]
["Manfreda spp. ","Manfreda ","Low"]
["Mangifera indica","Mango"]
["Markhamia lutea","Markhamia ","Medium"]
["Marsdenia rostrata ",null,"Medium"]
["Marsdenia suaveolens ",null,"Medium"]
["Mascagnia lilacina ","Purple Orchid Vine ","Medium"]
["Mascagnia macroptera ","Yellow Orchid Vine ","Medium"]
["Matteuccia struthiopteris ","Ostrich Fern ","Medium"]
["Matthiola incana ","Stock ","High"]
["Maytenus boaria ","Mayten Tree ","Medium"]
["Maytenus phyllanthoides ","Mangle Dulce "]
["Mazus pumilio ","Swamp Mazus ","Medium"]
["Mazus reptans ","Mazus ","Medium"]
["Melaleuca armilaris Green globe ",null,"Medium"]
["Melaleuca armillans","Bracelet Honey Myrtle","Low"]
["Melaleuca bracteata","White Cloud Tree","Low"]
["Melaleuca bracteata 'Golden Gem'","Golden Gem Melaleuca","Low"]
["Melaleuca bracteata 'Revolution Gold'","Revolution Gold","Medium"]
["Melaleuca bracteata 'Revolution Green' ","Revolution Green","Medium"]
["Melaleuca decora ","White Feather Hone Myrtle ","Low"]
["Melaleuca decussata ","Honey Myrtle ","Low"]
["Melaleuca decussata  ",null,"Medium"]
["Melaleuca diosmatifolia  ",null,"Medium"]
["Melaleuca elliptica ","Granite Honey Myrtle ","Low"]
["Melaleuca ericifolia ","Heath Melaleuca ","Low"]
["Melaleuca fulgens ",null,"Medium"]
["Melaleuca gibbosa  ",null,"Medium"]
["Melaleuca halmaturorum ",null,"Medium"]
["Melaleuca hamulosa  ",null,"Medium"]
["Melaleuca huegelii","Chenille Honey Myrtle","Low"]
["Melaleuca hypericifolia","Red Honey Myrtle","High"]
["Melaleuca incana ","Grey Honey Myrtle ","Low"]
["Melaleuca incana subsp. incana ","Grey Honey Myrtle ","Medium"]
["Melaleuca lanceolata","Moonah ","Low"]
["Melaleuca lateritia  ","Robin Redbreast Bottlebrush","Medium"]
["Melaleuca leucadendra ","Broad-leaved Paperbark","Medium"]
["Melaleuca linariifolia","Snow in Summer","Low"]
["Melaleuca linariifolia ","flax leaf paper bark ","Low"]
["Melaleuca micromera ",null,"Medium"]
["Melaleuca nesophila","Western Tea Myrtle","High"]
["Melaleuca nodosa",null,"Low"]
["Melaleuca puichella ",null,"Medium"]
["Melaleuca quinquenervia ","Broad-leaf Paperbark ","Low"]
["Melaleuca rhaphiophylla ","Swamp Paperbark ","Low"]
["Melaleuca squamea ","Swamp Honey Myrtle ","Low"]
["Melaleuca squarrosa ",null,"Medium"]
["Melaleuca styphelioides","Prickly-leafed Myrtle","Low"]
["Melaleuca suberosa  ",null,"Medium"]
["Melaleuca thymifolia ","Thyme Honey Myrtle ","Low"]
["Melaleuca violacea ",null,"Medium"]
["Melaleuca viridiflora var. rubiflora ","Cajeput Tree ","Medium"]
["Melaleuca wilsonii ","Wilson Melaleuca ","Low"]
["Melampodium leucanthum ","Blackfoot Daisy ","Low"]
["Melastoma malabathricum","Native Lasiandra","Medium"]
["Melia azedarach ","White Cedar ","Low"]
["Melianthus major","Honey Bush","Medium"]
["Melissa officinalis ","Lemon Balm ","Medium"]
["Mentha australis  ",null,"Medium"]
["Mentha diemenica",null,"Medium"]
["Merremia aurea ",null,"Medium"]
["Merremia quinquefolia ",null,"Medium"]
["Meryta sinclairii ","Puka ","Medium"]
["Mesembryanthemum spps.","Pigface","Low"]
["Metasequoia glyptostroboides ","Dawn Redwood ","High"]
["Metrosideros collina ","Lehua of Hawaii ","Medium"]
["Metrosideros excelsa","New Zealand Christmas Tree","Low"]
["Metrosideros 'Fiji Fire'","Fiji Fire","Medium"]
["Metrosideros kermadecensis","Metrosideros","Low"]
["Michelia champaca ","Champaca ","Medium"]
["Michelia 'Coco' ","Large Leafed Port Wine Magnolia ","Medium"]
["Michelia doltsopa ","Sweet Michelia ","High"]
["Michelia figo ","Port Wine Magnolia ","High"]
["Michelia x foggi 'Jack Fogg' ","Jack Fogg Michelia ","Medium"]
["Micrantheum hexandrum ",null,"Medium"]
["Microbiota decussata ","Siberian Cypress ","Medium"]
["Microlaena stipoides ",null,"Medium"]
["Microlepia strigosa ","Lace Fern ","Medium"]
["Micromyrtus ciliata ","Fringed Heath Myrtle ","Medium"]
["Microseris lanceolata ","Yam Daisy ","Low"]
["Microsorum diversifolium ",null,"Medium"]
["Microsorum scandens ",null,"Medium"]
["Microstrobos fitzgeraldii  ",null,"Medium"]
["Microstrobos niphophilus ",null,"Medium"]
["Milium effusum ","Golden Wood Millet ","Medium"]
["Milletia reticulata ","Evergreen Wisteria ","Medium"]
["Milletia taiwanensis ","Chinese Evergreen Wisteria ","High"]
["Millettia megasperma ","Native Wisteria ","Medium"]
["Mimulus graciliss",null,"Medium"]
["Mimulus guttatus","Monkey Flower"]
["Mimulus prostratus",null,"High"]
["Mimulus repens  ",null,"High"]
["Mirabilis california ","Wishbone Bush ","Medium"]
["Mirabilis jalapa ","Four O'clock ","Low"]
["Mirabilis multiflora ","Giant Four O'clock ","Low"]
["Mirbelia rubiifolia  ",null,"Medium"]
["Miscanthus sinensis ","Eulalia Grass ","Medium"]
["Miscanthus sinensis 'Variegatus' ","Variegated Japanese Silver Grass ","Low"]
["Miscanthus sinensis 'Zebrinus' ","Zebra Grass ","Low"]
["Miscanthus transmorrisonensis ","Evergreen Eulalia ","Medium"]
["Molinia caerulea ","Moor Grass ","Medium"]
["Monarda didyma ","Bee Balm ","Medium"]
["Monardella linoides ssp. viminea ","San Diego Willowy Mint ","Medium"]
["Monardella macrantha ","Scarlet Monardella ","Low"]
["Monardella odoratissima ","Mountain Pennyroyal ","Medium"]
["Monardella villosa ","Coyote Mint ","Low"]
["Monochaetum volcanicum ","Monochaetum ","Medium"]
["Monotoca elliptica","Tree Broom Heath","Low"]
["Monotoca scoparia","Prickly Broom Heath","Low"]
["Monstera deliciosa ","Fruit Salad Plant ","High"]
["Montanoa grandiflora ","Daisy Tree ","Medium"]
["Montia australasicas",null,"Medium"]
["Moraea spp. ","Moraea ","Medium"]
["Morina longifolia ","Whorlflower ","Medium"]
["Morus alba ","White Mulberry ","Medium"]
["Morus nigra","Mulberry","Low"]
["Muehlenbeckia axillaris ","Creeping Wire Vine ","Medium"]
["Muehlenbeckia complexa","Maidenhair Vine","Medium"]
["Muhlenbergia capillaris ","Hairy Awn Muhly ","Medium"]
["Muhlenbergia dumosa ","Bamboo Muhly ","Medium"]
["Muhlenbergia emersleyi ","Bull Grass ","Medium"]
["Muhlenbergia lindheimeri ","Lindheimer Muhly ","Medium"]
["Muhlenbergia pubescens ","Soft Muhly ","Medium"]
["Muhlenbergia rigens ","Deer Grass ","Medium"]
["Murraya paniculata ","Orange Jasmine ","Medium"]
["Murraya paniculata Minimin'","Dwarf Murraya","Medium"]
["Musa sapientum ","Banana ","High"]
["Musa spp. ","Banana ","High"]
["Muscari macrocarpum ","Grape Hyacinth ","Low"]
["Myoporum boninense subsp. australe","Coastal Boobialla","Low"]
["Myoporum debile","Amulla","Low"]
["Myoporum deserti","Turkey Bush","Low"]
["Myoporum florabundum","Weeping Boobialla","Low"]
["Myoporum insulare ","Boobialla ","Low"]
["Myoporum laetum ","Myoporum ","Medium"]
["Myoporum montanum ","Western Boobialla ","Low"]
["Myoporum parvifolium ","Creeping Boobialla ","Low"]
["Myoporum x 'Pacificum' ","Pacifica Saltbush ","Low"]
["Myosotis scorpioides ","Forget-me-not ","Medium"]
["Myosotis sylvatica","Forget-me-not ","High"]
["Myrica californica ","Pacific Wax Myrtle ","Low"]
["Myrica pennsylvanica ","Bayberry ","Medium"]
["Myrica rubra ","Chinese Strawberrry Tree "]
["Myrsine africana ","African Boxwood ","Low"]
["Myrtus communis ","Common Myrtle ","Low"]
["Nageia nagi ","Nageia ","Medium"]
["Nandina domestica","Sacred Bamboo","Low"]
["Nandina domestica 'Nana' ","Dwarf Sacred Bamboo ","Medium"]
["Narcissus spp. ","Daffodil ","Medium"]
["Nassella cernua ","Nodding Needlegrass ","Low"]
["Nassella lepida ","Foothill Needlegrass ","Low"]
["Nassella pulchra ","Purple Needlegrass ","Low"]
["Nassella tenuissima ","Texas Needlegrass ","Low"]
["Nauplius sericeus","Canary Island Daisy ","Low"]
["Nematolepis phebalioides ",null,"Medium"]
["Nemesia strumosa ","Nemesia ","Medium"]
["Neodypsis decaryi ","Triangle Palm ","Medium"]
["Neomarica caerulea ","Poor Man's Orchid ","Medium"]
["Neoregelia concentrica ","Bromeliad ","Medium"]
["Nepeta cataria ","Catnip ","Medium"]
["Nepeta nervosa ","Catmint ","Medium"]
["Nepeta 'Walker's Low'","Catmint","Medium"]
["Nepeta x faassenii ","Catmint ","Medium"]
["Nephrolepis cordifolia ","Fishbone Fern ","Medium"]
["Nephrolepis exaltata ","Boston fern ","Medium"]
["Nerine spp. ","Nerine","Low"]
["Nerium oleander ","Oleander ","Low"]
["Nerium oleander 'Dwarf'","Dwarf Oleander ","Low"]
["Nertera depressa ",null,"Medium"]
["Nierembergia hippomanica ","Cup Flower ","Medium"]
["Nolina spp. ","Bear Grass ","Low"]
["Notelaea ligustrina ",null,"Medium"]
["Nothofagus cunninghamii ",null,"Medium"]
["Nothofagus gunnii ",null,"Medium"]
["Nothofagus moorei ",null,"Medium"]
["Nyssa sylvatica ","Tupelo ","Medium"]
["Ochna serrulata ","Mickey Mouse Plant","Medium"]
["Ocimum basilicum ","Basil ","Medium"]
["Odontonema strictum ","Firespike "]
["Odontospermum hybrida ","Gold Coin ","Medium"]
["Oenanthe javanica ","Water Dropwort ","High"]
["Oenothera caespitosa ","Tufted Evening Primrose ","Low"]
["Oenothera fruiticosa ","Golden Sundrops ","Medium"]
["Oenothera macrocarpa ","Ozark Sundrops ","Low"]
["Oenothera pallida ","Evening Primrose ","Low"]
["Oenothera rosea ","Pink Evening Primrose ","Low"]
["Oenothera speciosa ","White Evening Primrose ","Low"]
["Oenothera speciosa 'Rosea' ","Pink Evening Primrose ","Low"]
["Oenothera stubbei ","Baja Evening Primrose ","Low"]
["Olea europaea","European Olive","Medium"]
["Olearia algida  ",null,"Medium"]
["Olearia argophylla ","Musk Daisy Bush ","Medium"]
["Olearia asterotricha  ",null,"Medium"]
["Olearia axillaris","Coastal Daisy","Low"]
["Olearia elliptica ","Sticky Daisy Bush ","Medium"]
["Olearia frostiis ",null,"High"]
["Olearia glandulosa  ",null,"Medium"]
["Olearia iodochroa",null,"Medium"]
["Olearia lirata  ",null,"Medium"]
["Olearia phlogopappa","Dust Daisy Bush","Medium"]
["Olearia ramulosa ",null,"Medium"]
["Olearia teretifolia ",null,"Medium"]
["Olearia tomentosa ","Toothed Daisy Bush ","Low"]
["Olmediella betschleriana ","Guatemalan Holly ","Medium"]
["Olneya tesota ","Desert Ironwood ","Low"]
["Omphalodes cappadocica ","Navelwort ","Medium"]
["Omphalodes verna ","Creeping Forget-me-not ","Medium"]
["Onoclea sensibilis ","Sensitive Fern ","High"]
["Ophiopogon clarkei ","Clark Lily Turf ","Medium"]
["Ophiopogon jaburan ","Giant Lily Turf ","Medium"]
["Ophiopogon japonicus","Mondo Grass","Low"]
["Ophiopogon japonicus 'Nana'","Dwarf Mondo Grass ","Medium"]
["Ophiopogon planiscapus var. nigrescens ","Black Mondo Grass ","Medium"]
["Opuntia spp. ","Prickly Pear ","Low"]
["Origanum spp. ","Oregano ","Medium"]
["Orites lancifolia  ",null,"Medium"]
["Ornithogalum thyrsoides ","Chincherinchee ","Low"]
["Orthosiphon labiatus ","Shell Bush ","Medium"]
["Orthrosanthus chimboracensis centroamericanus ","Orthrosantus ","Low"]
["Orthrosanthus laxus",null,"Medium"]
["Orthrosanthus multiflorus",null,"Medium"]
["Osmanthus fragrans","Sweet Olive","Low"]
["Osmanthus fragrans ","Sweet Osmanthus ","Medium"]
["Osmanthus spp. ","sweet olive/osmanthus ","Medium"]
["Osmunda cinnamomea ","cinnamon fern ","High"]
["Osmunda regalis ","royal/flowering fern ","High"]
["Osteospermum ecklonis ","African Daisy ","Low"]
["Osteospermum spp. ","African daisy ","Low"]
["Otacanthus spp.","Blue Boy","High"]
["Otatea acuminata","Mexican Weeping Bamboo ","Medium"]
["Otholobium fruiticans ","Blue Cape Pea ","Medium"]
["Oxalis lactea  ",null,"High"]
["Oxalis lacteal",null,"Medium"]
["Oxalis spp. ","Sorrel ","Medium"]
["Oxera pulchella ","Royal Climber ","Medium"]
["Oxydendrum arboreum ","Sourwood Tree ","Medium"]
["Oxylobium alpestre ",null,"Medium"]
["Oxylobium arborescens ",null,"Medium"]
["Ozothamnus diosmifolius","Rice Flower","Low"]
["Ozothamnus rosemarinifolius","Ozothamnus ","Medium"]
["Pachycormis discolor ","Elephant Tree ","Low"]
["Pachypodium lamerei ","Madagascar Palm ","Medium"]
["Pachysandra terminalis ","Japanese Spurge ","Medium"]
["Pachystachys lutea","Golden Candles","High"]
["Paeonia spp. ","Peony ","Medium"]
["Pandorea doratoxylon","Spearwood Bush","Low"]
["Pandorea jasminoides ","Bower of Beauty ","Medium"]
["Pandorea jasminoides 'Lady Di' ","White Bower of Beauty","Medium"]
["Pandorea pandorana ","Wonga Wonga Vine ","Low"]
["Panicum virgatum","Switch Grass ","Medium"]
["Papaver nudicaule ","Iceland Poppy ","Medium"]
["Papaver orientale ","Oriental Poppy ","Medium"]
["Papaver pilosum ","Poppy ","Medium"]
["Parahebe derwentiana  ",null,"Medium"]
["Parahebe nivea ",null,"Medium"]
["Parahebe perfoliata ",null,"Medium"]
["Parahebe spp. ","Veronica ","Medium"]
["Pararchidendron pruinosum ",null,"Medium"]
["Parkinsonia aculeata ","Jerusalem Thorn ","Low"]
["Parkinsonia florida","Blue Palo Verde ","Low"]
["Parrotia persica ","Persian Witch Hazel ","Medium"]
["Parsonsia brownii  ",null,"Medium"]
["Parsonsia straminea ",null,"Medium"]
["Parthenocissus henryana ","Silver Vein Creeper ","Medium"]
["Parthenocissus quinquefolia ","Virginia Creeper ","Medium"]
["Parthenocissus tricuspidata ","Boston Ivy ","Medium"]
["Parthenocissus tricuspidata 'Veitchii' ","Boston Ivy ","Medium"]
["Passiflora aurantia ",null,"Medium"]
["Passiflora cinnabarina ",null,"Medium"]
["Passiflora coccinea","Red Passion Flower","Medium"]
["Passiflora edulis","Passionfruit","Medium"]
["Patersonia fragiis  ",null,"Medium"]
["Patersonia fragilis","Short Flag Iris","Medium"]
["Patersonia occidentalis","Long Purple Flag","Low"]
["Patersonia sericea","Silky Purple Flag","Low"]
["Paulownia kawakamii ","Sapphire Dragon Tree ","Medium"]
["Paulownia tomentosa ","Princess Tree ","Medium"]
["Pavonia praemorsa ","Yellow Mallow ","Medium"]
["Pelargonium australe","Wild Geranium","Low"]
["Pelargonium cordifolium ","Heartleaf Geranium ","Medium"]
["Pelargonium domesticum ","Martha Washington Pelargonium ","Medium"]
["Pelargonium peltatum ","Ivy Geranium ","Medium"]
["Pelargonium rodneyanum ","Magenta Storksbill ","Medium"]
["Pelargonium sidoides ","Geranium","Medium"]
["Pelargonium tomentosum ","Peppermint-scented Geranium ","Medium"]
["Pelargonium x domesticum ","Regal Geranium ","Low"]
["Pelargonium x hortorum ","Garden Geranium ","Medium"]
["Pellaea falcata ","Sickle Fern ","Low"]
["Pellaea mucronata ","Bird's Foot Fern ","Medium"]
["Pellaea rotundifolia ","Button Fern ","Medium"]
["Pennisetum advena 'Rubrum'","Purple Fountain Grass","Low"]
["Pennisetum alopecuroides ","Swamp Foxtail ","Low"]
["Pennisetum clandestinum ","Kikuyu Grass ","Medium"]
["Pennisetum orientale ","Chinese Fountain Grass ","Low"]
["Pennisetum setaceum ","Fountain Grass ","Low"]
["Penstemon barbatus ","Beardlip Penstemon ","Low"]
["Penstemon gentianoides Hybrids ","Beard Tongue ","Medium"]
["Penstemon Hybrids ","Penstemon ","Medium"]
["Pentachondra involucrata  ",null,"Medium"]
["Pentachondra pumila  ",null,"Medium"]
["Pentapterygium rugosum ",null,"     "]
["Pentapterygium serpens"]
["Pentas lanceolata","Pentas","High"]
["Peperomia leptostachya",null,"Medium"]
["Peperomia tetraphylla  ",null,"Medium"]
["Perityle incana ","Guadalupe Island Rock Daisy "]
["Pernettya lanceolata ",null,"Medium"]
["Pernettya tasmanica  ",null,"Medium"]
["Perovskia atriplicifolia","Russian Sage","Medium"]
["Persea americana ","Avocado ","Medium"]
["Persoonia chamaepitys ",null,"Medium"]
["Persoonia linearis ","Narrow-leaf Geebung ","Low"]
["Persoonia pinifolia","Pine-leaf Geebung","Low"]
["Petrea volubilis ","Purple Wreath ","Medium"]
["Petrophile sp.","Pixie Mops","Low"]
["Petroselinum crispum ","Parsley ","Medium"]
["Petunia x hybrida ","Petunia ","Medium"]
["Phalaris arundinacea 'Picta' ","Ribbon Grass ","Medium"]
["Phaleria chermsideana ",null,"Medium"]
["Phaseolus caracalla ","Snail Flower ","Medium"]
["Phebalium bilobum  ",null,"Medium"]
["Phebalium bullaium",null,"Low"]
["Phebalium dentatum","Toothed Phebalium","Low"]
["Phebalium glandulosum ",null,"Low"]
["Phebalium lamprophyllum ",null,"Medium"]
["Phebalium ozothamnoides  ",null,"Medium"]
["Phebalium phylicifolium  ",null,"Medium"]
["Phebalium squameum",null,"Low"]
["Phebalium squameum 'Illumination'",null,"Medium"]
["Phebalium squamulosum","Scaly Phebalium","Medium"]
["Philadelphus coronarius ","Mock Orange ","Medium"]
["Philadelphus lewisii californicus ","Wild Mock Orange ","Medium"]
["Philadelphus mexicanus ","Evergreen Mock Orange ","Medium"]
["Philadelphus x virginalis ","Double Mock Orange ","Medium"]
["Philodendron bipinnatifidum","Tree Philodendron ","Medium"]
["Philodendron bipinnatifidum cv. Winterbourne 'Xanadu' ","Xanadu ","Medium"]
["Philotheca difformis ssp. smithiana","White Starry Flowers ","Low"]
["Philotheca myoporoides","Wax Flower","Low"]
["Phlebodium aureum","Rabbit's Foot Fern ","Medium"]
["Phlomis caballeroi ",null,"Low"]
["Phlomis cashmeriana ",null,"Low"]
["Phlomis cretica ",null,"Low"]
["Phlomis fruticosa","Jerusalem Sage","Medium"]
["Phlomis italica ",null,"Low"]
["Phlomis lanata ",null,"Low"]
["Phlomis purpurea ",null,"Low"]
["Phlomis russeliana ",null,"Medium"]
["Phlomis tuberosa ",null,"Low"]
["Phlox drummondii ","Annual Phlox ","High"]
["Phlox subulata ","Moss Pink Phlox ","Medium"]
["Phoenix canariensis","Canary Island Date Palm","Low"]
["Phoenix dactylifera ","Date Palm ","Low"]
["Phoenix reclinata ","Senegal Date Palm ","Medium"]
["Phoenix roebelinii ","Dwarf Date Palm ","Medium"]
["Phoenix rupicola ","Cliff Date Palm ","Medium"]
["Phormium cookianum ","Arching New Zealand Flax ","Low"]
["Phormium tenax","New Zealand Flax","Medium"]
["Phormium tenax 'Atropurpurea' ","Red New Zealand Flax ","Low"]
["Phormium tenax 'Bronze Baby' ","Bronze Baby Flax ","Low"]
["Photinia glabra","Small Leaf Photinia","Low"]
["Photinia glabra 'Rubens' ","Photinia ","Low"]
["Photinia serratifolia ","Chinese Photinia ","Medium"]
["Photinia x fraseri 'Red Robin'","Red Robin Photinia","Medium"]
["Phragmites australis","Common Reed","High"]
["Phygelius x rectus ","Cape Fuchsia ","Medium"]
["Phyla canescens","Cape Weed ","Medium"]
["Phyla nodiflora ","Lippia ","Low"]
["Phyllocladus aspleniifolius  ",null,"Medium"]
["Phyllostachys aurea","Golden Bamboo","Medium"]
["Phyllostachys nigra","Black Bamboo","Medium"]
["Phymatocarpus porphyrocephalus  ",null,"Medium"]
["Physalis alkekengi var. franchetii ","Lantern Plant ","Medium"]
["Physostegia virginiana ","Obedient Plant ","Medium"]
["Picea abies ","Norway Spruce ","Medium"]
["Picea glauca ","Alberta Spruce ","Medium"]
["Picea glauca var. albertiana 'Conica' ","Dwarf Albert Spruce ","Medium"]
["Picea mariana ","Black Spruce "]
["Picea omorika ","Serbian Spruce "]
["Picea orientalis ","Oriental Spruce "]
["Picea pungens ","Colorado Spruce ","Medium"]
["Pieris formosa var.forestii ","Chinese Pieris ","Medium"]
["Pieris japonica ","Lily of the Valley Bush ","High"]
["Pimelea axiflora  ",null,"Medium"]
["Pimelea ferruginea ","Pink Rice Flower ","Low"]
["Pimelea ferruginia ","Rice Flower ","Medium"]
["Pimelea filiformis  ",null,"Medium"]
["Pimelea flava  ",null,"Medium"]
["Pimelea humilis  ",null,"Medium"]
["Pimelea ligustrina",null,"Medium"]
["Pimelea linifolia","Slender Rice-flower","Low"]
["Pimelea nivea  ",null,"Medium"]
["Pimelea prostrata ","Rice Flower ","Medium"]
["Pimelea pygmaeas",null,"Medium"]
["Pimelea sericea  ",null,"Medium"]
["Pimelea treyvaudii  ",null,"Medium"]
["Pinellia ternata ","Pinellia ","Medium"]
["Pinus attenuata ","Knobcone Pine ","Low"]
["Pinus brutia ","Calabrian Pine ","Low"]
["Pinus brutia ssp. eldarica ","Eldarica Pine ","Low"]
["Pinus canariensis ","Canary Island Pine ","Low"]
["Pinus contorta ","Beach Pine ","Medium"]
["Pinus coulteri ","Coulter Pine ","Low"]
["Pinus densiflora ","Japanese Red Pine ","Medium"]
["Pinus edulis ","Pinyon Pine ","Low"]
["Pinus eldarica",null,"     "]
["Pinus elliottii","Slash Pine","Medium"]
["Pinus flexilis ","Limber Pine ","Low"]
["Pinus halepensis ","Aleppo Pine ","Low"]
["Pinus heldreichii ","Bosnian Pine ","Medium"]
["Pinus jeffreyi ","Jeffrey Pine ","Low"]
["Pinus leucodermis ",null,"     "]
["Pinus monophylla ","Single-leaf Pinyon Pine ","Low"]
["Pinus montezumae ","Montezuma Pine ","Low"]
["Pinus mugo ","Dwarf Mountain Pine ","Medium"]
["Pinus muricata ","Bishop Pine ","Medium"]
["Pinus nigra ","Austrian Black Pine ","Medium"]
["Pinus parviflora ","Japanese White Pine ","Medium"]
["Pinus patula ","Jelecote Pine ","Medium"]
["Pinus pinaster ","Cluster Pine ","Medium"]
["Pinus pinea ","Stone Pine ","Low"]
["Pinus ponderosa ","Ponderosa Pine ","Low"]
["Pinus radiata ","Monterey pine ","Medium"]
["Pinus roxburghii ","Chir Pine ","Medium"]
["Pinus sabiniana ","Grey Pine ","Low"]
["Pinus strobus ","Eastern White Pine ","Medium"]
["Pinus sylvestris ","Scotch pine ","Medium"]
["Pinus thunbergii ","Japanese Black Pine ","Low"]
["Pinus torreyana ","Torrey Pine ","Low"]
["Pinus x attenuradiata ","Monterey Pine ","Medium"]
["Piper novae-hollandiae ","Native Pepper ","Medium"]
["Pisonia umbellifera ","Bird Catcher Tree ","Medium"]
["Pistacia chinensis ","Chinese Pistachio ","Medium"]
["Pistacia lentiscus ","Mastic Tree ","Medium"]
["Pistacia vera ","Pistachio Nut","Medium"]
["Pithecellobium flexicaule ","Texas Ebony ","Low"]
["Pithecellobium pallens ","tenaza ","Low"]
["Pithecoctenium crucigerum ","Monkey's Comb","Medium"]
["Pittosporum bicolor ",null,"Medium"]
["Pittosporum crassifolium ","evergreen pittosporum ","Medium"]
["Pittosporum eugenioides ","tarata ","Medium"]
["Pittosporum eugenioides 'Variegata' ","Variegated Pittosporum ","Medium"]
["Pittosporum phillyraeoides ","Weeping Pittosporum ","Medium"]
["Pittosporum revolutum","Yellow Pittosporum","Medium"]
["Pittosporum rhombifolium ","Queensland Laurel ","Low"]
["Pittosporum tenuifolium ","Tawhiwhi ","Medium"]
["Pittosporum tobira ","Japanese Pittosporum ","Low"]
["Pittosporum tobira 'Wheelers Dwarf' ","Dwarf Pittosporum ","Medium"]
["Pittosporum undulatum ","Sweet Pittosporum ","Low"]
["Platanus occidentalis 'Glabrata' ","Texas Sycamore "]
["Platanus racemosa ","California Sycamore ","Medium"]
["Platanus wrightii ","Arizona Sycamore ","Medium"]
["Platanus x acerifolia","London Plane ","Medium"]
["Platycerium bifurcatum ","Elkhorn ","Low"]
["Platycerium superbum ","Staghorn ","Medium"]
["Platycladus orientalis ","Oriental Arbor-vitae ","Medium"]
["Platycodon grandiflorus ","Balloon Flower ","Medium"]
["Platylobium formosum  ",null,"Medium"]
["Platylobium obtusangulum  ",null,"Medium"]
["Platylobium triangulare  ",null,"Medium"]
["Platysace heterophylla  ",null,"Medium"]
["Platysace lanceolata  ",null,"Medium"]
["Platysace linearifolia  ",null,"Medium"]
["Plecostachys serpyllifolia","Straw Flower ","Low"]
["Plectranthus argentatus ","Silver Plectranthus ","Low"]
["Plectranthus ecklonii ","Flowering Coleus ","Low"]
["Plectranthus graveolens  ",null,"Medium"]
["Plectranthus intraterraneus  ",null,"Medium"]
["Plectranthus neochilus ","Spur Flower ","Low"]
["Plectranthus oerthendahlii","Candle plant","Low"]
["Plectranthus parvifiorus  ",null,"Medium"]
["Plumbago auriculata ","Plumbago ","Medium"]
["Plumbago scandens ","Summer Snow ","Medium"]
["Plumeria acutifolia","Frangipani","Low"]
["Plumeria obtusa","Singapore White Evergreen Frangipani","Low"]
["Plumeria rubra ","Red Frangipani ","Medium"]
["Poa costineata ","Australian Blue Grass ","Medium"]
["Poa labillardieri","Common Tussock Grass","Medium"]
["Poa morrisii","Velvet Tussock Grass","Medium"]
["Poa poiformis 'Courtney' ","Green Coastal Tussock Grass ","Low"]
["Poa poiformis 'Kingsdale' ","Blue Coastal Tussock Grass ","Low"]
["Poa tenera  ",null,"Medium"]
["Podocarpus elatus ","Brown Pine ","Medium"]
["Podocarpus henkelii ","Long-leaf Yellow Wood ","Medium"]
["Podocarpus latifolius ","Yellow Wood ","Medium"]
["Podocarpus lawrencei ",null,"Medium"]
["Podocarpus macrophyllus ","Yew Pine ","Medium"]
["Podocarpus nivalis ","Alpine Totara ","Medium"]
["Podocarpus spinulosus ",null,"Medium"]
["Podocarpus totara ","Totara ","Medium"]
["Podolepis jaceoides  ",null,"Medium"]
["Podolepis robusta  ",null,"Medium"]
["Podranea ricasoliana ","Pink Trumpet Vine ","Low"]
["Polemonium spp. ","Jacob's Ladder ","Medium"]
["Poliomintha longiflora ","Mexican Oregano ","Low"]
["Polyanthemos spp.","Red Box ","Low"]
["Polyanthes tuberosa ","Tuberose ","Low"]
["Polygala myrtifolia 'Grandiflora' ","Purple Pea Bush ","Low"]
["Polygala x dalmaisiana ","Sweet Pea Shrub ","Medium"]
["Polygonatum odoratum ","Soloman's Seal ","Medium"]
["Polygonum aubertii ","Silver Lace Vine ","Low"]
["Polypodium californicum","Californian Rock Fern ","Low"]
["Polypodium scouleri","Leather-leaf Fern","Medium"]
["Polyscias elegans","Celery Wood","Medium"]
["Polyscias sambucifolia","Elderberry Panax","Medium"]
["Polystichum californicum ","Sword Fern ","Medium"]
["Polystichum munitum ","Western Sword Fern ","Medium"]
["Polystichum polyblepharum ","Japanese Lace Fern ","High"]
["Polystichum proliferum ","Mother Shield-Fern ","High"]
["Polystichum x setigerum ","Alaskan Fern ","High"]
["Pomaderris andromedifolia ",null,"Medium"]
["Pomaderris aspera ",null,"Medium"]
["Pomaderris ferruginea ",null,"Medium"]
["Pomaderris lanigera  ",null,"Medium"]
["Pomaderris obcordata ",null,"Medium"]
["Pomaderris pilifera ",null,"Medium"]
["Populus alba 'Pyramidalis' ","Bolleana Poplar ","Medium"]
["Populus balsamifera ","Balm of Gilead Poplar ","Medium"]
["Populus fremontii ","Western Cottonwood ","Medium"]
["Populus 'Mohavensis' ","Mohave Poplar ","Medium"]
["Populus nigra 'Italica' ","Lombardy Poplar ","Medium"]
["Populus 'Red Caudina' ","Cottonless Cottonwood "]
["Populus trichocarpa ","Black Cottonwood ","High"]
["Populus x canadensis ","Carolina Poplar ","High"]
["Portulaca grandiflora","Portulaca","Medium"]
["Portulacaria afra ","Elephant's Food ","Low"]
["Potentilla fruticosa","Cinquefoil ","Medium"]
["Potentilla neumanniana ","Spring Cinquefoil ","Medium"]
["Pratia angulata ","Pratia ","High"]
["Pratia concolor  ",null,"Medium"]
["Pratia darlingensis  ",null,"Medium"]
["Pratia pedunculata ","Blue Star Creeper ","Medium"]
["Pratia purpurascens  ",null,"Medium"]
["Pratia surrepens  ",null,"Medium"]
["Primula 'Hybrids'","Primrose","High"]
["Primula malacoides ","Fairy Primrose ","High"]
["Prionotes cerinthoides ",null,"Medium"]
["Pritchardia sp","Loulu Palm","High"]
["Pronaya fraseri  ",null,"Medium"]
["Prosopis alba ","Argentine Mesquite ","Low"]
["Prosopis glandulosa ","Chilean Mesquite ","Low"]
["Prosopis glandulosa glandulosa ","Honey Mesquite ","Low"]
["Prosopis juliflora ","Arizona Mesquite ","Low"]
["Prosopis pubescens ","Screwbean Mesquite ","Low"]
["Prosopis velutina ","Velvet Mesquite ","Low"]
["Prostanthera aspalathoides ","Scarlet Mintbush ","Low"]
["Prostanthera behriana ","Mintbush ","Low"]
["Prostanthera cmeolifera  ",null,"Medium"]
["Prostanthera crucifiora  ",null,"Medium"]
["Prostanthera cryptandroides  ",null,"Medium"]
["Prostanthera cuneata ","Alpine Mint Bush ","Medium"]
["Prostanthera decussata  ",null,"Medium"]
["Prostanthera denticulata ","Mint Bush ","Low"]
["Prostanthera discolor  ",null,"Medium"]
["Prostanthera hirtula  ",null,"Medium"]
["Prostanthera incana ","Velvet Mintbush ","Low"]
["Prostanthera incisa  ",null,"Medium"]
["Prostanthera lanceolata  ",null,"Medium"]
["Prostanthera lasianthos ","Victorian Christmas Bush ","Medium"]
["Prostanthera linearis  ",null,"Medium"]
["Prostanthera marifolia ",null,"Medium"]
["Prostanthera melissifolia  ",null,"Medium"]
["Prostanthera monticola  ",null,"Medium"]
["Prostanthera nivea ",null,"Medium"]
["Prostanthera ovalifolia ",null,"Medium"]
["Prostanthera ovalifolia 'Compact'","Mint Bush","High"]
["Prostanthera phylicifolia  ",null,"Medium"]
["Prostanthera poorinda ballerina ",null,"Medium"]
["Prostanthera rhombea  ",null,"Medium"]
["Prostanthera rotundifolia ","Round-leaved Mintbush ","Medium"]
["Prostanthera rugosa",null,"Medium"]
["Prostanthera saxicola ",null,"Medium"]
["Prostanthera sieberi  ",null,"Medium"]
["Prostanthera staurophylla ",null,"Medium"]
["Prostanthera stricta  ",null,"Medium"]
["Prostanthera violacea ",null,"Medium"]
["Prostanthera walteri  ",null,"Medium"]
["Protea cynaroides","King Protea","Low"]
["Protea neriifolia","Oleander Leafed Protea","Medium"]
["Protea repens","Sugarbush ","Low"]
["Prumnopitys ladei ","Mt Spurgeon Brown Pine ","Medium"]
["Prunella grandiflora","Self Heal ","Medium"]
["Prunus armeniaca","Apricot","Medium"]
["Prunus campanulata","Taiwan Cherry","Medium"]
["Prunus caroliniana ","Carolina Laurel Cherry ","Medium"]
["Prunus cerasifera","Cherry Plum","Medium"]
["Prunus cerasus","Sour Cherry","Medium"]
["Prunus dulcis","Almond","Medium"]
["Prunus glandulosa","Dwarf Flowering Almond","Medium"]
["Prunus ilicifolia ","Holly Leaf Cherry ","Low"]
["Prunus lauroceracus ","English Laurel ","Medium"]
["Prunus lusitanica","Portugese Laurel","Medium"]
["Prunus lusitanica ","Portugal Laurel ","Low"]
["Prunus lyonii ","Catalina Cherry ","Low"]
["Prunus persica","Flowering Peach","Medium"]
["Prunus persica","Peach","Medium"]
["Prunus sargentii ","Sargent Cherry ","Medium"]
["Prunus serrulata","Japanese Flowering Cherry","High"]
["Prunus x blireana","Double Flowering Plum","Medium"]
["Prunus x domestica","Plum","Medium"]
["Pseudobomax ellipticum ","Shaving Brush Tree ","Low"]
["Pseudogynoxys chenopodiodes ","Mexican Flame Vine ","Medium"]
["Pseudolarix kaempheri ","Golden Larch "]
["Pseudopanax lessonii ","Houpara ","Medium"]
["Pseudosasa japonica ","Arrow Bamboo ","Medium"]
["Pseudosasa japonica tsutsumiana ","Dwarf Arrow Bamboo ","Medium"]
["Psidium cattleianum","Cherry Guava","Medium"]
["Psidium guajava ","Common Guava ","Medium"]
["Psidium littorale var. longipes ","Strawberry Guava ","Medium"]
["Psilostrophe cooperi ","Paper Flower ","Low"]
["Psilostrophe tagetina ","Paper Flower ","Low"]
["Psoralea adscendens  ",null,"Medium"]
["Psoralea patens ",null,"Medium"]
["Psoralea pinnata ","Blue Pea ","Medium"]
["Psorothamnus spinosa","Smoke Tree ","Low"]
["Pteris tremula ","Tender Brake ","Low"]
["Pteris tricolor","Painted Brake"]
["Pteris umbrosa  ","Jungle Brake","Medium"]
["Pterostylis nutans  ",null,"Medium"]
["Pterostylis pedunculata  ",null,"Medium"]
["Ptilotus erubescens","Pink Mulla Mulla","Low"]
["Ptilotus exaltatus","Tall Pussy Tails","Low"]
["Pulmonaria saccharata ","Bethlehem Sage ","Medium"]
["Pulmonaria spp. ","Lungwort ","Medium"]
["Pulsatilla vulgaris ","Pasque flower ","Medium"]
["Pultenaea daphnoides ",null,"Medium"]
["Pultenaea empetrifolia  ",null,"Medium"]
["Pultenaea flexilis  ",null,"Medium"]
["Pultenaea gunnii",null,"Medium"]
["Pultenaea juniperina  ",null,"Medium"]
["Pultenaea procumbens  ",null,"Medium"]
["Pultenaea scabra  ",null,"Medium"]
["Pultenaea stipularis ",null,"Medium"]
["Pultenaea subalpina  ",null,"Medium"]
["Pultenaea villosa","Bacon and Eggs"]
["Pultenaea weindorferi  ",null,"Medium"]
["Punica granatum","Pomegranate","Low"]
["Punica granatum 'Nana' ","Dwarf Pomegranate ","Medium"]
["Puya spp. ","Puya ","Low"]
["Pyracantha angustifolia","Orange Firethorn","Medium"]
["Pyracantha coccinea ","Scarlet Firethorn ","Medium"]
["Pyrethropsis hosmariense ","Moroccan Daisy ","Low"]
["Pyrostegia venusta ","Orange Trumpet Creeper ","Medium"]
["Pyrrosia rupestriss",null,"Medium"]
["Pyrrosia spp. ","Felt Fern ","Low"]
["Pyrus calleryana ","Callery Pear ","High"]
["Pyrus communis ","Pear ","Medium"]
["Pyrus kawakamii ","Evergreen Pear ","Medium"]
["Pyrus ussuriensis var. ovoidea ","True Manchurian Pear ","High"]
["Quercus agrifolia ","Coast Live Oak ","Low"]
["Quercus berberidifolia ","California Scrub Oak ","Low"]
["Quercus buckleyi ","Texas Red Oak "]
["Quercus chrysolepis ","Canyon Live Oak ","Low"]
["Quercus coccinea ","Scarlet Oak ","Medium"]
["Quercus douglasii ","Blue Oak ","Low"]
["Quercus dumosa ","Nutall's Scrub Oak ","Low"]
["Quercus engelmannii ","Mesa Oak ","Low"]
["Quercus fusiformis ","Escarpment Live Oak ","Low"]
["Quercus ilex ","Holly Oak ","Low"]
["Quercus kelloggii ","California Black Oak ","Medium"]
["Quercus lobata ","Valley Oak ","Low"]
["Quercus muhlenbergii ","Chinquapin Oak ","Low"]
["Quercus palustris ","Pin Oak ","Medium"]
["Quercus robur ","English Oak ","Medium"]
["Quercus rubra ","Red Oak ","Medium"]
["Quercus shumardii ","Shumard Red Oak ","Medium"]
["Quercus suber ","Cork Oak ","Low"]
["Quercus texana ","Spanish Oak ","Low"]
["Quercus tomentella ","Island Oak ","Low"]
["Quercus virginiana ","Southern Live Oak ","Medium"]
["Quercus wislizeni ","Interior Live Oak ","Low"]
["Quillaja saponaria ","Soapbark Tree ","Low"]
["Quisqualis indica","Rangoon Creeper","High"]
["Radermachera sinica ","Asian Bell Flower ","Medium"]
["Randia chartacea ","Narrow-leaved Gardenia ","Medium"]
["Randia fitzalanii  ","Native Gardenia","Medium"]
["Ranunculus anemoneus  ",null,"High"]
["Ranunculus californicus ","California Buttercup ","Low"]
["Ranunculus cortusaefolius ","Buttercup ","Low"]
["Ranunculus graniticola  ",null,"High"]
["Ranunculus gunnianus  ",null,"High"]
["Ranunculus inundatus  ",null,"Medium"]
["Ranunculus lappaceus ",null,"Medium"]
["Ranunculus pimpinellifolius  ",null,"Medium"]
["Ranunculus repens ","Creeping Buttercup ","Medium"]
["Ranunculus rivularis  ",null,"Medium"]
["Raoulia australis ","Golden Scabweed ","Low"]
["Rapanea howittiana  ",null,"Medium"]
["Rapanea variabilis","Muttonwood","Low"]
["Raphanus sativus ","Radish ","High"]
["Ratibida columnifera ","Mexican Hat ","Medium"]
["Ravanea madegascariensis","Travellers Palm","Medium"]
["Ravenea rivularis","Majestic Palm","Low"]
["Regelia ciliata ",null,"Medium"]
["Rehmannia elata ","Chinese Foxglove ","Medium"]
["Reineckia carnea ","Reineckia ","Medium"]
["Reinwardtia indica ","Golden Dollar Bush","Low"]
["Restio australis",null,"Medium"]
["Restio complanatus  ",null,"Medium"]
["Restio tetraphyllus","Tassel-rush","Low"]
["Rhagodia baccata","Coastal Saltbush ","Low"]
["Rhagodia deltophylla ","Rhagodia ","Low"]
["Rhagodia nutans","Saltbush ","Low"]
["Rhagodia spinescens ","Hedge Saltbush ","Low"]
["Rhamnus alaternus ","Italian Buckthorn ","Low"]
["Rhamnus californicus ","Coffeeberry ","Low"]
["Rhamnus croceus ","Redberry ","Low"]
["Rhamnus croceus ilicifolia ","Hollyleaf Redberry ","Low"]
["Rhaphiolepis indica","Common Indian Hawthorn","Medium"]
["Rhaphiolepis indica 'Intermedia'","Indian Hawthorn ","Medium"]
["Rhaphiolepis umbellata","Yeddo Hawthorn","Medium"]
["Rhaphiolepis x delacourii","Pink Indian Hawthorn","Medium"]
["Rhapis excelsa ","Lady Palm ","Medium"]
["Rheum x hybridum ","Rhubarb ","High"]
["Rhodanthe anthemoides","Paper Baby","Medium"]
["Rhodanthe chlorocephala subsp. rosea ","Strawflower ","Low"]
["Rhododendron Hybrid ","Rhododendron ","High"]
["Rhododendron lochiae ",null,"Medium"]
["Rhodohypoxis spp. ","Rose Grass ","Medium"]
["Rhodophiala bifida ","Rhodophiala ","Low"]
["Rhoeo spathacea ","Moses-in-the-cradle ","Low"]
["Rhoicissus capensis ","Evergreen Grape ","Medium"]
["Rhopalostylis baueri ","Norfolk Palm ","Medium"]
["Rhopalostylis sapida ","Nikau Palm ","High"]
["Rhus aromatica ","Fragrant Sumac "]
["Rhus choriophylla ","Evergreen Sumac "]
["Rhus integrifolia ","Lemonade Berry ","Low"]
["Rhus lancea ","African Sumac ","Low"]
["Rhus lanceolata ","Prairie Flameleaf Sumac ","Low"]
["Rhus lentii ","Pink-flowering Sumac ","Low"]
["Rhus microphylla ","Littleaf Sumac "]
["Rhus ovata ","Sugar Bush ","Low"]
["Rhus trilobata ","Squawbush ","Low"]
["Rhus typhina ","Staghorn Sumac ","Low"]
["Rhus virens ","Evergreen Sumac "]
["Rhynchelytrum neriglume ","Ruby Grass "]
["Ribes aureum ","Golden Currant ","Low"]
["Ribes indecorum ","White Flowering Currant ","Low"]
["Ribes malvaceum ","Chaparral Currant ","Low"]
["Ribes sanguineum ","Red Flowering Currant ","Low"]
["Ribes speciosum ","Fuchsia Flowering Gooseberry ","Low"]
["Ribes thacherianum ","Santa Cruz Island Gooseberry ","Medium"]
["Ribes viburnifolium ","Evergreen Currant ","Low"]
["Richea continentis ",null,"Medium"]
["Richea dracophylla  ",null,"Medium"]
["Richea pandanifolia  ",null,"Medium"]
["Richea scoparia ",null,"Medium"]
["Richea sprengelioides ",null,"Medium"]
["Ricinocarpus pinifolius",null,"Low"]
["Robinia pseudoacacia ","Black Locust ","Low"]
["Robinia pseudoacacia 'Frisia' ","Yellow Locust ","Low"]
["Robinia x ambigua ","Locust ","Low"]
["Rodgersia aesculifolia ",null,"Medium"]
["Rodgersia pinnata ",null,"Medium"]
["Rohdea japonica ","Rohdea ","Medium"]
["Roldana petasitis","California Geranium","Medium"]
["Romneya coulteri ","Matilija Poppy ","Low"]
["Rondeletia amoena ","Rondeletia ","Medium"]
["Rosa banksiae","Banksia Rose","Low"]
["Rosa banksiae 'Lutea' ","Yellow Banksia Rose ","Low"]
["Rosa californica ","California Wild Rose ","Low"]
["Rosa 'Cecile Brunner' ","Cecile Brunner Rose ","Medium"]
["Rosa minutifolia ","Baja California","Low"]
["Rosa rugosa ","Japanese Rose ","Medium"]
["Rosa species 'Hybrid Tea'","Hybrid Tea Rose","Medium"]
["Rosa woodsii var. ultramontana ","Mountain Wood Rose ","Medium"]
["Rosa x floribunda"]
["Roscoea purpurea ","Roscoea ","Medium"]
["Rosmarinus officinalis","Rosemary","Low"]
["Rothmannia globosa ","Tree Gardenia ","Low"]
["Roystonea regia","Cuban Royal Palm","High"]
["Rubus gunnianus ",null,"Medium"]
["Rubus lineatus ","Bramble ","Medium"]
["Rubus parvifolius ",null,"Medium"]
["Rubus pentalobus ","Bramble ","Medium"]
["Rubus ursinus ","California Blackberry ","Low"]
["Rudbeckia hirta ","Black-eyed Susan ","Medium"]
["Ruellia californica ","Rama Parda ","Low"]
["Ruellia macrantha ","Christmas Pride ","Medium"]
["Ruellia peninsularis ","Baja Ruellia ","Medium"]
["Ruellia x brittoniana ","Dwarf Ruellia ","Low"]
["Rulingia dasyphylla ",null,"Medium"]
["Rulingia pannosa ",null,"Medium"]
["Rumohra adiantiformis ","Leather Leaf Fern ","Medium"]
["Ruscus hypoglossum","Broom","Low"]
["Sabal minor","Bluestem Palmetto ","Medium"]
["Sabal palmetto","Blue Palmetto ","Medium"]
["Sagina subulata ","Irish Moss ","Medium"]
["Sagina subulata 'Aurea' ","Scotch moss ","Medium"]
["Salix babylonica ","Weeping Willow ","High"]
["Salvia apiana ","White Sage ","Low"]
["Salvia argentea ","Silver Sage ","Medium"]
["Salvia azurea grandiflora ","prairie sage ","Medium"]
["Salvia 'Bee's Bliss' ","bee's bliss sage ","Low"]
["Salvia blepharophylla ","Eyelash-leafed Sage ","Medium"]
["Salvia buchananii ","Buchanan's Sage ","Medium"]
["Salvia cacaliaefolia ","Guatemalan Blue Sage ","Medium"]
["Salvia californica ","Baja California Sage ","Low"]
["Salvia chamaedryoides ","Blue Sage ","Low"]
["Salvia chiapensis ","Chiapas Sage ","Medium"]
["Salvia clevelandii",null,"Low"]
["Salvia coahuilensis ","Coahuila Sage ","Low"]
["Salvia coccinea ","Texas Sage ","Medium"]
["Salvia confertiflora ","Spike Sage ","Medium"]
["Salvia 'Costa Rica Blue' ","Costa Rica Blue Sage ","Medium"]
["Salvia 'Dara's Choice' ","Sonoma Sage ","Low"]
["Salvia darcyi ","Darcy Sage ","Medium"]
["Salvia discolor ","Andean Silver-leaf Sage ","Medium"]
["Salvia dorisiana ","Grapefruit-scented Sage ","Medium"]
["Salvia dorrii ","Purple Sage ","Low"]
["Salvia elegans ","Pineapple Sage ","Medium"]
["Salvia farinacea ","Mealy-cup Sage ","Low"]
["Salvia 'Firescape' ","Firescape Sage "]
["Salvia forskaohlei",null,"Medium"]
["Salvia fulgens ","Mexican Cardinal Sage ","Medium"]
["Salvia gesneriflora ","Scarlet Sage ","Medium"]
["Salvia glechomaefolia ",null,"Medium"]
["Salvia greggii","Autumn Sage ","Low"]
["Salvia guarantica ","Anise Scented Sage ","Medium"]
["Salvia involucrata ","Roseleaf Sage ","Medium"]
["Salvia iodantha ",null,"Medium"]
["Salvia karwinskii ","Karwinski's Sage ","Medium"]
["Salvia koyamae ","Maniko ","Medium"]
["Salvia leucantha ","Mexican Bush Sage ","Low"]
["Salvia leucophylla ","Purple Sage ","Low"]
["Salvia madrensis ","Forsythia Sage ","Medium"]
["Salvia 'Maraschino' ","Maraschino Sage ","Medium"]
["Salvia mellifera ","Black Sage ","Low"]
["Salvia mexicana ","Mexican Sage ","Medium"]
["Salvia microphylla ","Graham Sage ","Medium"]
["Salvia 'Mrs. Beard' ","Mrs. Beard Sage ","Medium"]
["Salvia muelleri ","Royal Purple Autumn Sage ","Medium"]
["Salvia muirii "]
["Salvia munzii ","San Miguel Mountain Sage ","Low"]
["Salvia officinalis ","Sage ","Low"]
["Salvia patens ","Gentian Sage ","Medium"]
["Salvia penstemonoides ","Big Red Sage ","Medium"]
["Salvia pratensis haematodes ","Meadow Sage ","Medium"]
["Salvia 'Purple Majesty' ","Purple Majesty Sage ","Medium"]
["Salvia regla ","Mountain Sage ","Medium"]
["Salvia reptans ",null,"Low"]
["Salvia roemeriana ","Cedar Sage ","Medium"]
["Salvia sinaloensis ","Sinaloan Blue Sage ","Medium"]
["Salvia sonomensis ","Sonoma Sage ","Low"]
["Salvia spathacea ","Hummingbird Sage ","Low"]
["Salvia thymoides ","Blue Salvia ","Low"]
["Salvia uglinosa ","Bog Sage ","Medium"]
["Salvia verticillata 'Purple Rain' ","Purple Rain Sage ","Medium"]
["Salvia 'Waverly' ","Waverly Sage ","Medium"]
["Salvia x jamensis",null,"Low"]
["Salvia x superba",null,"Medium"]
["Sambucus chinensis","Chinese Elder","Medium"]
["Sambucus nigra","Black Elder","Low"]
["Sambucus racemosa","Red Elder"]
["Samolus repens  ",null,"Medium"]
["Sansevieria trifasciata ","Mother In Law's Tongue ","Low"]
["Santolina chamaecyparissus ","Lavender Cotton ","Low"]
["Sanvitalia procumbens ","Creeping Zinnia ","Medium"]
["Sapium sebiferum","Chinese Tallow Tree","Medium"]
["Saponaria ocymoides ","Rock Soapwort ","Low"]
["Sarcochilus ceciliae  ",null,"Medium"]
["Sarcochilus falcatus  ",null,"Medium"]
["Sarcococca confusa ","Sweet Box ","Medium"]
["Sarcococca hookerana","Sweet Sarcococca ","Medium"]
["Sarcococca ruscifolia ","Fragrant Sarcococca ","Medium"]
["Sasa palmata","Broadleaf Bamboo ","Medium"]
["Sasaella masamuniana 'Albostriata' ","White Striped Dwarf Bamboo ","Medium"]
["Satureja chandleri ","San Miguel Savoury ","Low"]
["Satureja douglasii ","Yerba Buena ","Low"]
["Satureja mexicana ","Savoury ","Low"]
["Saxifraga stolonifera ","Mother of Thousands ","High"]
["Scabiosa caucasia ","Pincushion Flower ","Low"]
["Scaevola aemula ","Fairy Fan Flower ","Medium"]
["Scaevola aemula 'Diamond Head' ","Blue Wonder ","Medium"]
["Scaevola hookeri  ",null,"Medium"]
["Scaevola humilus ","Fanflower ","Low"]
["Scaevola 'Mauve Clusters'","Mauve Clusters","Medium"]
["Scaevola microphyllas",null,"Medium"]
["Scaevola striata  ",null,"Medium"]
["Schefflera actinophylla ","Umbrella Tree ","Medium"]
["Schefflera arboricola ","Dwarf Umbrella Tree ","High"]
["Schefflera elegantissima","False Aralia ","Medium"]
["Schefflera pueckleri","Duo Rui Mu","High"]
["Schinus molle ","Pepper Tree ","Low"]
["Schinus polygama ","Peruvian Pepper Tree ","Low"]
["Schinus terebinthefolia","Brazilian Pepper Tree ","Medium"]
["Schizomeria ovata ",null,"Medium"]
["Schizostylis coccinia ","Kaffir Lily ","Medium"]
["Schoenia filifolia","Daisy","Low"]
["Schoenoplectus tabernaemontani ","Zebra Rush ","High"]
["Schotia brachypetala","Fuchsia Tree","Medium"]
["Schotia latifolia ","Forest Boer Bloom ","Medium"]
["Sciadopitys verticillata ","Japanese Umbrella Pine ","Medium"]
["Scilla hughii ","Bluebell ","Low"]
["Scilla peruviana ","Peruvian lily ","Low"]
["Scleranthus biflorus ","Scleranthus ","Medium"]
["Scutellaria indica ","Scullcap ","Medium"]
["Sedum 'Autumn Joy'",null,"High"]
["Selaginella uliginosa  ","Swamp Selaginella","Medium"]
["Selliera radicans ","Swamp Weed ","Medium"]
["Semiaquilegia ecalcarata ","Semiaquilegia ","Medium"]
["Semiarundinaria fastuosa ","Narihira bamboo ","Medium"]
["Sempervivum arachnoideum ","Cobwob Houseleek ","Low"]
["Senecio cineraria ","Dusty Miller ","Low"]
["Senecio flaccidus var. douglasii ","Bush Groundsel ","Low"]
["Senecio macroglossus ","Cape Ivy ","Medium"]
["Senecio mandraliscae ","Kleinia ","Medium"]
["Senecio pectinatus  ",null,"Medium"]
["Senecio serpens","Blue Chalksticks","Low"]
["Senecio x hybridus ","Cineraria ","High"]
["Senna artemesioides ","Feathery Cassia","Low"]
["Senna artemisioides subsp. filifolia ","Punty Bush ","Low"]
["Senna australis","Australian Cassia ","     "]
["Senna bicapsularis","Yellow Candlewood","Low"]
["Senna didymobotrya ","Candelabra Tree","Low"]
["Senna lindheimeriana","Lindheim's Cassia ","     "]
["Senna multiglandulosa","Wooly Senna ","Low"]
["Senna odorata",null,"Low"]
["Senna phyllodenia","Silver Cassia","Low"]
["Senna polyantha","Goldman's Cassia ","Low"]
["Senna spectabilis",null,"Low"]
["Senna splendida","Golden Wonder ","Low"]
["Senna sturtii","Sturt's Cassia","Low"]
["Sequoia sempervirens ","Coast Redwood ","High"]
["Sequoiadendron giganteum ","Giant Sequoia ","Medium"]
["Serissa foetida ","Serissa ","Medium"]
["Serruria florida","Blushing Bride","Medium"]
["Sesleria caerulea ","Blue Moor Grass ","Medium"]
["Setaria palmifolia ","Palm Grass ","Medium"]
["Setcreasea pallida 'Purple Heart' ","Purple Heart Setcreasea ","Medium"]
["Shepherdia argentea ","Silver Buffaloberry ","Low"]
["Shibatea kumasasa ","Okame-Zaza Bamboo ","Medium"]
["Sidalcea spp. ","False Mallow ","Medium"]
["Sideritis syriaca ","Sideritis ","Low"]
["Silene pendula ","Nodding Catchfly ","Low"]
["Simmondsia chinensis ","Jojoba ","Low"]
["Sinarundinaria nitida ","Blue Fountain Bamboo ","Medium"]
["Sinningia tubiflora ","Velvet Slipper ","Low"]
["Sisyrinchium bellum ","Blue-eyed Grass ","Low"]
["Sisyrinchium californicum ","Golden-eyed Grass ","Medium"]
["Sisyrinchium convolutum ",null,"High"]
["Sisyrinchium striatum","Satin Flower","Medium"]
["Sisysrinchium striatum ",null,"Medium"]
["Skimmia japonica ","Japanese Skimmia ","Medium"]
["Skimmia reevesiana ","Reeve's Skimmia "]
["Sloanea australis ",null,"Medium"]
["Smilax australis ","Barbed Wire Vine ","Low"]
["Solandra maxima ","Cup Of Gold Vine ","Medium"]
["Solanum aviculaare ","Kangaroo Apple ","Low"]
["Solanum aviculare ",null,"Medium"]
["Solanum crispum ","Chilean Potato Tree ","Medium"]
["Solanum jasminoides ","Potato Vine ","Low"]
["Solanum seaforthianum ","Blue Nightshade ","Low"]
["Solanum wendlandii ","Costa Rican Nightshade ","Medium"]
["Solanum xantii ","Purple Nightshade ","Low"]
["Soleirolia soleirolii ","Baby's Tears ","High"]
["Sollya heterophylla ","Bluebell Creeper ","Low"]
["Sollya parvifolia ","Vining Bluebell "]
["Sophora tomentosa subsp. occidentalis","Silver Bush","Medium"]
["Sorbus aucuparia ","Rowan Tree ","Medium"]
["Sorbus hupehensis ","Mountain Ash "]
["Sowerbaea juncea  ",null,"Medium"]
["Sparmannia africana ","African Linden ","Medium"]
["Spartium junceum ","Spanish Broom ","Low"]
["Spathiphyllum 'Clevelandii' ","Madonna Lily ","Medium"]
["Spathodea campanulata ","African Tulip Tree ","Low"]
["Sphaeralcea coccinea","Globe Mallow ","Low"]
["Sphaerolobium vimineum",null,"Medium"]
["Spiraea cantoniensis ","White May","Medium"]
["Spiraea x bumalda 'Dolchica' ","Dolchica Spiraea ","Medium"]
["Sporobolus airoides ","Alkalai Dropseed ","Low"]
["Sprekelia formosissima ","Aztec Lily ","Low"]
["Sprengelia incarnata  ",null,"Medium"]
["Sprengelia sprengelioides  ",null,"Medium"]
["Spyridim parvifolium 'Nimbus' ",null,"Medium"]
["Spyridium cinereum ","Tiny Spyridium ","Low"]
["Spyridium obcordatum ",null,"Medium"]
["Spyridium parviflorum","Australian Dusty Miller","Low"]
["Stachys albotomentosa ","Betony ","Low"]
["Stachys byzantina","Lamb's Ear","High"]
["Stachys macrantha ","Big Betony ","Medium"]
["Stachyurus praecox ","Early Spiketail ","Medium"]
["Stackhousia monogyna  ",null,"Medium"]
["Stackhousia pulvinaris  ",null,"High"]
["Stellaria pungens  ",null,"Medium"]
["Stenocarpus sinuatus ","Firewheel Tree ","Medium"]
["Stenocereus thurberi","Organ Pipe Cactus ","Low"]
["Stenomesson variegatum ","Stenomesson ","Medium"]
["Stenotaphrum secundatum ","Buffalo Grass ","High"]
["Stenotaphrum secundatum 'Palmetto' ","Palmetto Turf ","Medium"]
["Stenotaphrum secundatum 'Sir Walter' ","Sir Walter Buffalo ","Medium"]
["Stephanotis floribunda ","Bridle Wreath","Medium"]
["Sterculia quadrifida ",null,"Medium"]
["Stewartia pseudocamellia ","Japanese Stewartia ","Medium"]
["Sticheris tener ",null,"Medium"]
["Sticherus flabellatus ","Umbrella Fern ","Low"]
["Stigmaphyllon ciliatum ","Butterfly Vine ","Medium"]
["Stipa cernua ","Nodding Feather Grass ","Low"]
["Stipa gigantea ","Giant Needle Grass ","Low"]
["Stipa lepida ","Foothill Stipa ","Low"]
["Stipa pulchra ","Feather Grass ","Low"]
["Stipa stipa spinosa ","Desert Bunch Grass ","Low"]
["Stipa tenuissima ","Mexican Feather Grass ","Low"]
["Stokesia laevis ","Stokes' Aster ","Medium"]
["Strelitzia nicolai ","Giant Bird -of-Paradise ","Medium"]
["Strelitzia reginae","Bird-of-Paradise","Medium"]
["Streptosolen jamesonii ","Browallia ","Medium"]
["Strobilanthes anisophyllus ","Goldfussia ","Medium"]
["Stylidium bulbiferum  ",null,"Medium"]
["Stylidium graminifolium","Grass-leaved Trigger Plant","Low"]
["Stylidium soboliferum  ",null,"Medium"]
["Stypandra glauca  ",null,"Medium"]
["Styphelia triflora ",null,"Medium"]
["Styphelia tubifiora ",null,"Medium"]
["Styphnolobium japonicum","Japanese Pagoda Tree","Medium"]
["Styrax japonicum ","Japanese Snowbell ","Medium"]
["Styrax officinalis","Storax"]
["Styrax redivivus ","California Storax ","Low"]
["Swainsona canescens","Grey Pea ","Low"]
["Swainsona formosa","Sturt's Desert Pea","Low"]
["Swainsona greyana","Hairy Darling Pea","Low"]
["Swainsonia galegifolia ","Darling Pea ","Medium"]
["Syagrus romanzoffiana ","Cocus Palm ","High"]
["Symphionema montanum",null,"Medium"]
["Symphionema paludosum  ",null,"Medium"]
["Symphoricarpus albus ","Snowberry ","Low"]
["Symphoricarpus mollis ","Creeping Snowberry ","Low"]
["Symphoricarpus orbiculatus ","Coralberry ","Medium"]
["Syncarpia glomulifera","Turpentine","Low"]
["Syringa pubescens subsp. patula ","Korean Lilac ","Medium"]
["Syringa vulgaris ","Lilac ","Medium"]
["Syringa x chinensis ","Chinese Lilac ","Medium"]
["Syringa x hyacinthiflora ","Canadian Lilac ","Medium"]
["Syringa x persica ","Persian Lilac ","Low"]
["Syzygium australe ",null,"Medium"]
["Syzygium 'Cascade' ","Cascade Lilly Pilly ","Medium"]
["Syzygium francisii 'Little Gem'","Dwarf Water Gum","Medium"]
["Syzygium jambos ","Rose Apple ","Medium"]
["Syzygium luehmannii ","Small-leafed Lilly Pilly ","Medium"]
["Syzygium oleosum ",null,"Medium"]
["Syzygium paniculata 'Dwarf Form'","Dwarf Bush Cherry","Medium"]
["Syzygium paniculatum","Bush Cherry","Low"]
["Syzygium smithii ","Smith's Brush Cherry ","Medium"]
["Syzygium 'Tiny Trev' ","Tiny Trev Lilly Pilly ","Medium"]
["Syzygium wilsonii  ","Powder Puff Lilly Pilly ","Medium"]
["Syzygium wilsonii subsp. wilsonii ","Powder Puff Lilly Pilly ","Medium"]
["Tabebuia aurea","Silver Trumpet Tree","Medium"]
["Tabebuia pallida","Pink Trumpet Tree","Medium"]
["Tabebuia rosea","Rosey Trumpet Tree","Medium"]
["Tagetes Hybrids","Marigold","Medium"]
["Tagetes lemmonii","Mountain Marigold ","Low"]
["Tagetes lucida ","Mexican Marigold","Medium"]
["Tagetes patula","French Marigold ","Medium"]
["Talinium calcynium ","Flame Flower ","Low"]
["Tamarix gallica","Tamarisk ","Low"]
["Tamarix parviflora","Early Tamarisk","Low"]
["Tanacetum coccinium ","Painted Daisy ","Low"]
["Tanacetum haradjanii ","Tansy ","Low"]
["Tanacetum parthenium","Feverfew ","Medium"]
["Tanacetum ptarmiciflorum","Canary Island Daisy","Medium"]
["Tasmannia lanceolata ",null,"Medium"]
["Taxodium distichum ","Swamp Cypress ","High"]
["Taxodium mucronatum ","Montezuma Cypress ","Medium"]
["Taxus baccata ","English Yew ","Medium"]
["Taxus baccata 'Fastigiata' ","Irish Yew ","Medium"]
["Taxus cuspidata ","Japanese Yew ","Medium"]
["Taxus 'Meyeri' ","Meyer's Yew ","Medium"]
["Taxus x media ","Yew","Medium"]
["Tecoma capensis ","Cape Honeysuckle ","Medium"]
["Tecoma 'Orange Jubilee' ","Orange Jubilee Tecoma ","Medium"]
["Tecoma stans ","Yellow Bells ","Low"]
["Tecoma x smithii ","Smith's tecoma ","Medium"]
["Tecomanthe hillii  ",null,"Medium"]
["Tecomanthe sp. 'Roaring Meg'","Roaring Meg ","Medium"]
["Tellima grandiflora ","Fringe Cups ","Medium"]
["Telopea mongaensis",null,"Medium"]
["Telopea oreades  ",null,"Medium"]
["Telopea 'Shady Lady' ","Waratah ","Medium"]
["Telopea speciosissima","New South Wales Waratah","Low"]
["Telopea truncata  ",null,"Medium"]
["Tephrosia grandiflora ","Hoary Pea ","Medium"]
["Ternstroemia gymnanthera ","Japanese Ternstroemia ","Medium"]
["Tetradenia riparia","Nutmeg Bush","High"]
["Tetraneuris acaulis","Sweet Shade ","Medium"]
["Tetrapanax papyrifer ","Rice Paper Plant ","Medium"]
["Tetrastigma voinieranum ","Javan Grape ","Medium"]
["Tetratheca ciliata  ",null,"Medium"]
["Tetratheca pilosa  ",null,"Medium"]
["Tetratheca shiressli  ",null,"Medium"]
["Tetratheca thymifolia","Thyme Pink-bell","Low"]
["Teucrium chamaedrys ","Germander ","Low"]
["Teucrium cossonii ","Majorcan Germander ","Low"]
["Teucrium fruticans","Bush Germander","High"]
["Teucrium hyrcanicum ",null,"Low"]
["Teucrium marum ","Cat Thyme ","Low"]
["Teucrium scorodonia 'Crispum' ",null,"Medium"]
["Thalictrum aquilegifolium ","Purple Meadow Rue ","Medium"]
["Thalictrum coreanum ","Meadow Rue ","Medium"]
["Thalictrum delavayi ","Lavender Shower ","High"]
["Thalictrum fendleri var. polycarpum ","Meadow Rue ","Low"]
["Thalictrum flavum subsp. glaucum ",null,"Medium"]
["Thalictrum polycarpum ",null,"Medium"]
["Thalictrum rochenbrunianum ","Lavender Mist ","High"]
["Thamnocalamus spathaceus","Umbrella Bamboo ","Medium"]
["Thelionema caespitosum ",null,"Medium"]
["Thelionema grande ","Tufted Granite Lily ","Medium"]
["Themeda triandra","Kangaroo Grass","Low"]
["Thevetia thevetioides ","Giant Thevetia ","Medium"]
["Thomasia angustifolia",null,"Medium"]
["Thomasia foliosa  ",null,"Medium"]
["Thomasia laxiflora  ",null,"Medium"]
["Thomasia macrocarpa  ",null,"Medium"]
["Thomasia rhynchocarpa  ",null,"Medium"]
["Thomasia rugosa  ",null,"Medium"]
["Thryptomene saxicola ","Thryptomene ","Low"]
["Thryptomene saxicola 'Pink Lace'",null,"Medium"]
["Thuja occidentalis ","White Cedar ","Low"]
["Thuja occidentalis 'Smaragd' ","Emerald Cedar ","Medium"]
["Thuja orientalis 'Morganii' ","Dwarf Bookleaf Pine","Medium"]
["Thuja plicata 'Zebrina' ","Zebra Cedar ","Medium"]
["Thunbergia alata ","Black-eyed Susan ","Medium"]
["Thunbergia erecta","Bush Clock Vine","Medium"]
["Thunbergia grandiflora ","Bengal Clock Vine","Medium"]
["Thunbergia gregorii ","Orange Clock Vine ","Medium"]
["Thunbergia mysorensis ",null,"Medium"]
["Thymus vulgaris","Thyme ","Low"]
["Thysanolaena latifolia","Tiger Grass ","Medium"]
["Thysanotus multiflorus ","Fringed Lily","Medium"]
["Thysanotus tuberosus  ",null,"Medium"]
["Tiarella cordifolia ","Foamflower ","Medium"]
["Tiarella wherryi ","Pink Foamflower ","Medium"]
["Tibouchina 'Carolyn'","Carolyn","Medium"]
["Tibouchina granulosa","Lasiandra","Medium"]
["Tibouchina 'Jules'","Jules","Medium"]
["Tibouchina lepidota 'Alstonville'","Alstonville","Medium"]
["Tibouchina 'Noeline'","Noeline","Medium"]
["Tibouchina urvilleana","Glory Bush","Medium"]
["Tibouchina'Kathleen'","Kathleen","Medium"]
["Tibuchina heteromalla ","Glory Bush ","Medium"]
["Tilia americana ","American Linden ","Medium"]
["Tilia cordata ","Little Leaf Linden ","Medium"]
["Tillandsia spp.","Bromeliads","Low"]
["Tipuana tipu ","Racehorse Tree","Medium"]
["Todea barbara ","Crepe Fern ","Medium"]
["Todea barbara ","King Fern ","Medium"]
["Toona ciliata","Red Cedar","Medium"]
["Toona sinensis ","Chinese Toon ","Low"]
["Trachelium caeruleum ","Throatwort ","Medium"]
["Trachelospermum asiaticum ","Yellow Star Jasmine ","Low"]
["Trachelospermum jasminoides ","Star Jasmine ","Medium"]
["Trachelospermum jasminoides 'Tricolour'","Variegated Star Jasmine","Medium"]
["Trachycarpus fortunei ","Chinese Windmill Palm ","Medium"]
["Trachycarpus takil ","Takil Fan Palm ","Medium"]
["Trachymene coerulea ",null,"High"]
["Tradescantia fluminensis ","Wandering Jew ","Medium"]
["Tradescantia spathacea","Rhoeo","Medium"]
["Tradescantia spathacea 'Dwarf'","Dwarf Rhoeo","Medium"]
["Tradescantia spathacea Stripe Me Pink'","Varigated Dwarf Rhoeo","Medium"]
["Tradescantia x andersoniana ","Spiderwort ","Medium"]
["Tradescantia zebrina","Silvery Inch Plant ","Medium"]
["Trichostema lanatum ","Mountain Blue Curls ","Low"]
["Trichostema parishii "]
["Tricoryne elatior  ",null,"Medium"]
["Tricoryne platyptera ",null,"High"]
["Tricoryne simplex ",null,"High"]
["Tricyrtis hirta ","Toad Lily ","Low"]
["Trifolium fragiferum 'O'Connor' ","O'Conners Legume","Low"]
["Trifolium repens ","White Clover ","High"]
["Tristama neriifolia  ",null,"Medium"]
["Tristaniopsis laurina ","Water Gum ","Low"]
["Tritonia spp. ","Tritonia ","     "]
["Trixis californica ","Trixis ","Medium"]
["Trochocarpa clarkei  ",null,"Medium"]
["Trochocarpa cunninghamii  ",null,"Medium"]
["Trochocarpa laurina ",null,"Medium"]
["Trollius chinensis ","Chinese Globe Flower ","High"]
["Tropaeolum majus ","Nasturtium ","Medium"]
["Tsuga canadensis ","Canadian hemlock ","Medium"]
["Tulbaghia simmleri ","Sweet Garlic ","Medium"]
["Tulbaghia violacea","Society Garlic","Medium"]
["Tupidanthus calyptratus",null,"     "]
["Tussilago farfara ","Coltsfoot ","Medium"]
["Tweedia caerulea ","Tweedia ","Low"]
["Tylophora barbata  ",null,"Medium"]
["Typha orientalis","Bullrush","High"]
["Ugni molinae ","Chilean Guava ","Medium"]
["Ulmus americana ","American Elm ","Medium"]
["Ulmus glabra ","Scotch Elm ","Medium"]
["Ulmus glabra 'Lutescens' ","Golden Elm ","Medium"]
["Ulmus parvifolia","Chinese Elm","Low"]
["Ulmus pumila ","Siberian Elm ","Medium"]
["Umbellularia californica ","California Bay ","Medium"]
["Ungnadia speciosa ","Mexican Buckeye ","Medium"]
["Urginea maritima ","Sea Squill ","Low"]
["Utricularla dichotoma  ",null,"Medium"]
["Vaccinium moupinense ","Himalayan Blueberry ","Medium"]
["Vaccinium ovatum ","Evergreen Huckleberry ","Medium"]
["Vaccinium parvifolium ","Red Huckleberry ","Medium"]
["Vaccinium vitis-idaea ","Foxberry ","Medium"]
["Vancouveria spp. ","Inside-out Flower ","Medium"]
["Vauquelinia californica ","Arizona Rosewood ","Medium"]
["Vauquelinia corymbosa var. heterodon ","Narrow-leaf Rosewood ","Low"]
["Velleia montana  ",null,"Medium"]
["Velleia paradoxa  ",null,"Medium"]
["Velthemia bracteata ","Forest Lily ","Medium"]
["Verbascum bombiciferum ","Mullein ","Medium"]
["Verbascum bombyciferum 'Arctic Summer'","Arctic Summer ","Medium"]
["Verbascum chaixii 'Album' ","Nettle-leaved Mullein ","Medium"]
["Verbascum olympicum ","Mullein ","Low"]
["Verbascum phoeniceum ","Purple Mullein ","Low"]
["Verbena bonariensis ","verbena (bonariensis) ","Medium"]
["Verbena Hybrids ","Verbena ","Medium"]
["Verbena rigida ","Vervian ","Medium"]
["Verbena stricta ","Hoary Vervian ","Medium"]
["Veronica austriaca ","Austrian Speedwell ","Medium"]
["Veronica formosa ","Speedwell Bush ","Medium"]
["Veronica gracilis",null,"Medium"]
["Veronica plebeia  ",null,"Medium"]
["Veronica repens ","Speedwell ","Medium"]
["Veronica spicata ","Spiked Speedwell ","Medium"]
["Veronicastrum virginicum ","Blackroot ","Medium"]
["Verticordia densiflora","Compact Feather Flower","Low"]
["Viburnum 'Anne Russel' ","Anne Russel viburnum ","Medium"]
["Viburnum awabuki ","Awabuki Viburnum ","Medium"]
["Viburnum carlesii ","Korean Spice Viburnum ","Medium"]
["Viburnum davidii ","David Viburnum ","Medium"]
["Viburnum japonicum ","Japanese Viburnum ","Medium"]
["Viburnum 'Mohawk' ","Mohawk Viburnum ","Medium"]
["Viburnum odoratissimum ","Sweet Viburnum ","Medium"]
["Viburnum opulus ","European Cranberry Bush ","Medium"]
["Viburnum opulus 'Sterile' ","Snowball Tree ","Medium"]
["Viburnum opulus var. americanum","American Cranberry ","Medium"]
["Viburnum plicatum var. tomentosum ","Doublefile Viburnum ","Medium"]
["Viburnum rhytidophyllum ","Leatherleaf Viburnum ","Medium"]
["Viburnum setigerum ","Tea Viburnum ","Medium"]
["Viburnum suspensum ","Sandanqua Viburnum ","Medium"]
["Viburnum tinus","Laurestinus","Medium"]
["Viburnum x bodnantense ","Bodnant Viburnum ","Medium"]
["Viburnum x burkwoodii ","Burkwood Viburnum ","Medium"]
["Viburnum x rhytidophylloides ",null,"Medium"]
["Vigna caracalla ","Snail Vine ","Medium"]
["Viguiera deltoidea ","Goldeneye ","Low"]
["Viguiera laciniata ","San Diego County Viguiera ","Low"]
["Villebrunea pedunculata ","Villebrunea ","Medium"]
["Viminaria juncea  ",null,"Medium"]
["Vinca major ","Large Periwinkle ","Medium"]
["Vinca minor ","Periwinkle ","Medium"]
["Viola adunca ","Western Dog Violet ","Medium"]
["Viola 'Baby Blue'",null,"Medium"]
["Viola betonicifolia  ",null,"Medium"]
["Viola cornuta ","Horned Violet ","Medium"]
["Viola hederacea ","Native Violet ","Low"]
["Viola japonica ",null,"Medium"]
["Viola labradorica ","Labrador Violet ","Medium"]
["Viola odorata ","Sweet Violet ","Medium"]
["Viola sempervirens ","Redwood Violet ","Low"]
["Virgilia sp","Virgilia","Low"]
["Vitex agnus-castus ","Chaste Tree ","Medium"]
["Vitis californica ","California Wild Grape ","Medium"]
["Vitis girdiana ","Desert Grape ","Medium"]
["Vitis labrusca ","American Grape ","Medium"]
["Vitis sp","Crimson Glory Vine","Medium"]
["Vitis vinifera ","Ornamental Grape ","Low"]
["Wachendorfia thrysiflora ","Red Root ","High"]
["Wahlenbergia ceracea  ",null,"Medium"]
["Wahlenbergia communis","Tufted Bluebell","Medium"]
["Wahlenbergia gloriosa ","Royal Bluebell ","Medium"]
["Wahlenbergia graniticola",null,"Medium"]
["Wahlenbergia stricta","Tall Bluebells","Low"]
["Waldsteinia ternata ","Barren Strawberry ","Medium"]
["Washingtonia filifera ","California Fan Palm ","Medium"]
["Washingtonia robusta","Washington Fan Palm","Low"]
["Waterhousea floribunda","Weeping Lilly Pilly","Medium"]
["Watsonia spp. ","Watsonia ","Medium"]
["Weigela coraeensis ","White Weigela ","Medium"]
["Weigela florida ","Weigelia ","Medium"]
["Westringia angustifolia  ",null,"Medium"]
["Westringia brevifolia var. raleighii ","Native Rosemary ","Low"]
["Westringia eremicola",null,"Low"]
["Westringia fruitcosa x glabra ",null,"Low"]
["Westringia fruticosa","Coastal Rosemary ","Low"]
["Westringia fruticosa 'Smokie' ","Smokie Westringia ","Low"]
["Westringia longifolia",null,"Low"]
["Westringia senifolia  ",null,"Medium"]
["Westringia 'Wynyabbie Gem' ","Wynyabbie Gem Westringia ","Low"]
["Wisteria sinensis ","Chinese Wisteria ","Low"]
["Wittsteinia vacciniacea  ",null,"Medium"]
["Wodyetia bifurcata ","Foxtail Palm ","Medium"]
["Woodwardia fimbriata ","Giant Chain Fern ","Medium"]
["Woodwardia radicans ","European Chain Fern ","High"]
["Woollsia pungens  ",null,"Medium"]
["Wurmbea dioica  ",null,"Medium"]
["X Chitalpa tashkentensis ","Chitalpa ","Medium"]
["X Cupressocyparis leylandii ","Golden Leyland Cypress ","Medium"]
["X Cupressocyparis leylandii 'Leighton Green' ","Leighton's Green","Medium"]
["X Fatshedera lizei ","Tree Ivy ","Medium"]
["X Heucherella tiarelloides 'Bridget Bloom' ","Bridget Bloom Heucherella ","High"]
["Xanthorrhoea arborea","Broadleaf Grass Tree","Low"]
["Xanthorrhoea australis","Grass Tree","Low"]
["Xanthorrhoea preissie ","Grass Tree ","Low"]
["Xanthosia clissecta  ",null,"Medium"]
["Xanthosia piosa  ",null,"Medium"]
["Xanthosia rotundifolia ",null,"Medium"]
["Xanthosia tomentosa  ",null,"Medium"]
["Xanthostemon chrysanthus ","Golden Penda ","Medium"]
["Xerochrysum bracteatum","Gold Everlasting Daisy","Medium"]
["Xerochrysum bracteatum 'Dargan Hill Monarch' ","Dargon Hill Monarch Everlasting Daisy ","Low"]
["Xerochrysum bracteatum 'Diamond Head'  ","Diamond Head Everlasting Daisy ","Low"]
["Xeronema calistemon ","Poor Knight's Lily ","Medium"]
["Xerophyllum tenax ","Bear Grass ","Low"]
["Xylococcus bicolor ","Mission Manzanita ","Low"]
["Xylosma congestum ","Shiny Xylosma ","Low"]
["Xyris complanata",null,"High"]
["Xyris gracilis  ",null,"High"]
["Xyris operculata  ",null,"Medium"]
["Xyris ustulata  ",null,"High"]
["Yucca filamentosa","Adam's Needle","Low"]
["Yucca guatemalensis","Giant Yucca ","Low"]
["Zaluzianskya katherinae ","Zaluzinskya ","Medium"]
["Zaluzianskya ovata"]
["Zamia furfuracea ","Cardboard Palm ","Low"]
["Zamia pumila ","Florida Arrowroot ","Medium"]
["Zantedeschia aethiopica ","Calla Lily ","High"]
["Zantedeschia 'Hybrids' ","Hybrid Calla Lily ","Medium"]
["Zea mays ","Sweetcorn ","High"]
["Zelkova serrata ","Japanese Zelkova ","Medium"]
["Zelkova serrata ","Saw-leaf Zelkova ","Medium"]
["Zephyranthes candida ","Autumn Crocus ","Medium"]
["Zieria arborescens ","Stinkwood ","Medium"]
["Zieria aspalathoides ",null,"Medium"]
["Zieria cytisoides ",null,"Medium"]
["Zinnia elegans ","Zinnia ","Medium"]
["Zinnia grandiflora ","Prairie Zinnia ","Medium"]
["Ziziphus jujuba ","Chinese Jujube ","Medium"]
["Ziziphus obtusifolia ","Graythorn "]
["Zoyzia tenuifolia ","No Mow Grass ","Medium"]

{"sheet":"Business Specific List","index":2,"n_rows":3,"n_cols":4,"rows_kept":3,"cut":false,"hidden":false,"merged":[[0,2,0,3]]}
[null,null,"Input your own list of plants here, along with your estimate of their water requirements - high, medium or low selected from the drop down menu. Clear cell contents to begin again."]
[]
[null,"Botanical name","Common name","Water requirements"]

{"sheet":"Generated list","index":3,"n_rows":9,"n_cols":4,"rows_kept":9,"cut":false,"hidden":false,"merged":[[0,1,0,3],[1,1,1,3]]}
[]
[null,"NGIQ iPLant Plant Water Use"]
[null,"Botanical Name","Common Name","Water Requirements"]
[null,"Abelia 'Francis Mason' ","Golden Abelia ","Medium"]
[null,"Abelia 'Sherwoodii' ","Sherwood Dwarf Abelia ","Medium"]
[null,"Abies spp. ","Fir ","Medium"]
[null,"Citrus reticulata","Mandarin","Medium"]
[null,"Abelia x grandiflora","Glossy Abelia","Low"]
[null,"Abies pinsapo ","Spanish fir ","Low"]

{"sheet":"List","index":4,"n_rows":10123,"n_cols":4,"rows_kept":10123,"cut":false,"hidden":false,"merged":[[0,1,0,3],[1,1,1,3]]}
[]
[null,"NGIQ iPLant Plant Water Use"]
[null,"Botanical Name","Common Name","Water Requirements"]
[null,{"$f":"IF('Generated list'!B4=\"\",\"\",'Generated list'!B4)","v":"Abelia 'Francis Mason' "},{"$f":"IF('Generated list'!C4=\"\",\"\",'Generated list'!C4)","v":"Golden Abelia "},{"$f":"IF('Generated list'!D4=\"\",\"\",'Generated list'!D4)","v":"Medium"}]
[null,{"$f":"IF('Generated list'!B5=\"\",\"\",'Generated list'!B5)","v":"Abelia 'Sherwoodii' "},{"$f":"IF('Generated list'!C5=\"\",\"\",'Generated list'!C5)","v":"Sherwood Dwarf Abelia "},{"$f":"IF('Generated list'!D5=\"\",\"\",'Generated list'!D5)","v":"Medium"}]
[null,{"$f":"IF('Generated list'!B6=\"\",\"\",'Generated list'!B6)","v":"Abies spp. "},{"$f":"IF('Generated list'!C6=\"\",\"\",'Generated list'!C6)","v":"Fir "},{"$f":"IF('Generated list'!D6=\"\",\"\",'Generated list'!D6)","v":"Medium"}]
[null,{"$f":"IF('Generated list'!B7=\"\",\"\",'Generated list'!B7)","v":"Citrus reticulata"},{"$f":"IF('Generated list'!C7=\"\",\"\",'Generated list'!C7)","v":"Mandarin"},{"$f":"IF('Generated list'!D7=\"\",\"\",'Generated list'!D7)","v":"Medium"}]
[null,{"$f":"IF('Generated list'!B8=\"\",\"\",'Generated list'!B8)","v":"Abelia x grandiflora"},{"$f":"IF('Generated list'!C8=\"\",\"\",'Generated list'!C8)","v":"Glossy Abelia"},{"$f":"IF('Generated list'!D8=\"\",\"\",'Generated list'!D8)","v":"Low"}]
[null,{"$f":"IF('Generated list'!B9=\"\",\"\",'Generated list'!B9)","v":"Abies pinsapo "},{"$f":"IF('Generated list'!C9=\"\",\"\",'Generated list'!C9)","v":"Spanish fir "},{"$f":"IF('Generated list'!D9=\"\",\"\",'Generated list'!D9)","v":"Low"}]
[null,{"$f":"IF('Generated list'!B10=\"\",\"\",'Generated list'!B10)","v":""},{"$f":"IF('Generated list'!C10=\"\",\"\",'Generated list'!C10)","v":""},{"$f":"IF('Generated list'!D10=\"\",\"\",'Generated list'!D10)","v":""}]
[null,{"$f":"IF('Generated list'!B11=\"\",\"\",'Generated list'!B11)","v":""},{"$f":"IF('Generated list'!C11=\"\",\"\",'Generated list'!C11)","v":""},{"$f":"IF('Generated list'!D11=\"\",\"\",'Generated list'!D11)","v":""}]
[null,{"$f":"IF('Generated list'!B12=\"\",\"\",'Generated list'!B12)","v":""},{"$f":"IF('Generated list'!C12=\"\",\"\",'Generated list'!C12)","v":""},{"$f":"IF('Generated list'!D12=\"\",\"\",'Generated list'!D12)","v":""}]
[null,{"$f":"IF('Generated list'!B13=\"\",\"\",'Generated list'!B13)","v":""},{"$f":"IF('Generated list'!C13=\"\",\"\",'Generated list'!C13)","v":""},{"$f":"IF('Generated list'!D13=\"\",\"\",'Generated list'!D13)","v":""}]
[null,{"$f":"IF('Generated list'!B14=\"\",\"\",'Generated list'!B14)","v":""},{"$f":"IF('Generated list'!C14=\"\",\"\",'Generated list'!C14)","v":""},{"$f":"IF('Generated list'!D14=\"\",\"\",'Generated list'!D14)","v":""}]
[null,{"$f":"IF('Generated list'!B15=\"\",\"\",'Generated list'!B15)","v":""},{"$f":"IF('Generated list'!C15=\"\",\"\",'Generated list'!C15)","v":""},{"$f":"IF('Generated list'!D15=\"\",\"\",'Generated list'!D15)","v":""}]
[null,{"$f":"IF('Generated list'!B16=\"\",\"\",'Generated list'!B16)","v":""},{"$f":"IF('Generated list'!C16=\"\",\"\",'Generated list'!C16)","v":""},{"$f":"IF('Generated list'!D16=\"\",\"\",'Generated list'!D16)","v":""}]
[null,{"$f":"IF('Generated list'!B17=\"\",\"\",'Generated list'!B17)","v":""},{"$f":"IF('Generated list'!C17=\"\",\"\",'Generated list'!C17)","v":""},{"$f":"IF('Generated list'!D17=\"\",\"\",'Generated list'!D17)","v":""}]
[null,{"$f":"IF('Generated list'!B18=\"\",\"\",'Generated list'!B18)","v":""},{"$f":"IF('Generated list'!C18=\"\",\"\",'Generated list'!C18)","v":""},{"$f":"IF('Generated list'!D18=\"\",\"\",'Generated list'!D18)","v":""}]
[null,{"$f":"IF('Generated list'!B19=\"\",\"\",'Generated list'!B19)","v":""},{"$f":"IF('Generated list'!C19=\"\",\"\",'Generated list'!C19)","v":""},{"$f":"IF('Generated list'!D19=\"\",\"\",'Generated list'!D19)","v":""}]
[null,{"$f":"IF('Generated list'!B20=\"\",\"\",'Generated list'!B20)","v":""},{"$f":"IF('Generated list'!C20=\"\",\"\",'Generated list'!C20)","v":""},{"$f":"IF('Generated list'!D20=\"\",\"\",'Generated list'!D20)","v":""}]
[null,{"$f":"IF('Generated list'!B21=\"\",\"\",'Generated list'!B21)","v":""},{"$f":"IF('Generated list'!C21=\"\",\"\",'Generated list'!C21)","v":""},{"$f":"IF('Generated list'!D21=\"\",\"\",'Generated list'!D21)","v":""}]
[null,{"$f":"IF('Generated list'!B22=\"\",\"\",'Generated list'!B22)","v":""},{"$f":"IF('Generated list'!C22=\"\",\"\",'Generated list'!C22)","v":""},{"$f":"IF('Generated list'!D22=\"\",\"\",'Generated list'!D22)","v":""}]
[null,{"$f":"IF('Generated list'!B23=\"\",\"\",'Generated list'!B23)","v":""},{"$f":"IF('Generated list'!C23=\"\",\"\",'Generated list'!C23)","v":""},{"$f":"IF('Generated list'!D23=\"\",\"\",'Generated list'!D23)","v":""}]
[null,{"$f":"IF('Generated list'!B24=\"\",\"\",'Generated list'!B24)","v":""},{"$f":"IF('Generated list'!C24=\"\",\"\",'Generated list'!C24)","v":""},{"$f":"IF('Generated list'!D24=\"\",\"\",'Generated list'!D24)","v":""}]
[null,{"$f":"IF('Generated list'!B25=\"\",\"\",'Generated list'!B25)","v":""},{"$f":"IF('Generated list'!C25=\"\",\"\",'Generated list'!C25)","v":""},{"$f":"IF('Generated list'!D25=\"\",\"\",'Generated list'!D25)","v":""}]
[null,{"$f":"IF('Generated list'!B26=\"\",\"\",'Generated list'!B26)","v":""},{"$f":"IF('Generated list'!C26=\"\",\"\",'Generated list'!C26)","v":""},{"$f":"IF('Generated list'!D26=\"\",\"\",'Generated list'!D26)","v":""}]
[null,{"$f":"IF('Generated list'!B27=\"\",\"\",'Generated list'!B27)","v":""},{"$f":"IF('Generated list'!C27=\"\",\"\",'Generated list'!C27)","v":""},{"$f":"IF('Generated list'!D27=\"\",\"\",'Generated list'!D27)","v":""}]
[null,{"$f":"IF('Generated list'!B28=\"\",\"\",'Generated list'!B28)","v":""},{"$f":"IF('Generated list'!C28=\"\",\"\",'Generated list'!C28)","v":""},{"$f":"IF('Generated list'!D28=\"\",\"\",'Generated list'!D28)","v":""}]
[null,{"$f":"IF('Generated list'!B29=\"\",\"\",'Generated list'!B29)","v":""},{"$f":"IF('Generated list'!C29=\"\",\"\",'Generated list'!C29)","v":""},{"$f":"IF('Generated list'!D29=\"\",\"\",'Generated list'!D29)","v":""}]
[null,{"$f":"IF('Generated list'!B30=\"\",\"\",'Generated list'!B30)","v":""},{"$f":"IF('Generated list'!C30=\"\",\"\",'Generated list'!C30)","v":""},{"$f":"IF('Generated list'!D30=\"\",\"\",'Generated list'!D30)","v":""}]
[null,{"$f":"IF('Generated list'!B31=\"\",\"\",'Generated list'!B31)","v":""},{"$f":"IF('Generated list'!C31=\"\",\"\",'Generated list'!C31)","v":""},{"$f":"IF('Generated list'!D31=\"\",\"\",'Generated list'!D31)","v":""}]
[null,{"$f":"IF('Generated list'!B32=\"\",\"\",'Generated list'!B32)","v":""},{"$f":"IF('Generated list'!C32=\"\",\"\",'Generated list'!C32)","v":""},{"$f":"IF('Generated list'!D32=\"\",\"\",'Generated list'!D32)","v":""}]
[null,{"$f":"IF('Generated list'!B33=\"\",\"\",'Generated list'!B33)","v":""},{"$f":"IF('Generated list'!C33=\"\",\"\",'Generated list'!C33)","v":""},{"$f":"IF('Generated list'!D33=\"\",\"\",'Generated list'!D33)","v":""}]
[null,{"$f":"IF('Generated list'!B34=\"\",\"\",'Generated list'!B34)","v":""},{"$f":"IF('Generated list'!C34=\"\",\"\",'Generated list'!C34)","v":""},{"$f":"IF('Generated list'!D34=\"\",\"\",'Generated list'!D34)","v":""}]
[null,{"$f":"IF('Generated list'!B35=\"\",\"\",'Generated list'!B35)","v":""},{"$f":"IF('Generated list'!C35=\"\",\"\",'Generated list'!C35)","v":""},{"$f":"IF('Generated list'!D35=\"\",\"\",'Generated list'!D35)","v":""}]
[null,{"$f":"IF('Generated list'!B36=\"\",\"\",'Generated list'!B36)","v":""},{"$f":"IF('Generated list'!C36=\"\",\"\",'Generated list'!C36)","v":""},{"$f":"IF('Generated list'!D36=\"\",\"\",'Generated list'!D36)","v":""}]
[null,{"$f":"IF('Generated list'!B37=\"\",\"\",'Generated list'!B37)","v":""},{"$f":"IF('Generated list'!C37=\"\",\"\",'Generated list'!C37)","v":""},{"$f":"IF('Generated list'!D37=\"\",\"\",'Generated list'!D37)","v":""}]
[null,{"$f":"IF('Generated list'!B38=\"\",\"\",'Generated list'!B38)","v":""},{"$f":"IF('Generated list'!C38=\"\",\"\",'Generated list'!C38)","v":""},{"$f":"IF('Generated list'!D38=\"\",\"\",'Generated list'!D38)","v":""}]
[null,{"$f":"IF('Generated list'!B39=\"\",\"\",'Generated list'!B39)","v":""},{"$f":"IF('Generated list'!C39=\"\",\"\",'Generated list'!C39)","v":""},{"$f":"IF('Generated list'!D39=\"\",\"\",'Generated list'!D39)","v":""}]
[null,{"$f":"IF('Generated list'!B40=\"\",\"\",'Generated list'!B40)","v":""},{"$f":"IF('Generated list'!C40=\"\",\"\",'Generated list'!C40)","v":""},{"$f":"IF('Generated list'!D40=\"\",\"\",'Generated list'!D40)","v":""}]
[null,{"$f":"IF('Generated list'!B41=\"\",\"\",'Generated list'!B41)","v":""},{"$f":"IF('Generated list'!C41=\"\",\"\",'Generated list'!C41)","v":""},{"$f":"IF('Generated list'!D41=\"\",\"\",'Generated list'!D41)","v":""}]
[null,{"$f":"IF('Generated list'!B42=\"\",\"\",'Generated list'!B42)","v":""},{"$f":"IF('Generated list'!C42=\"\",\"\",'Generated list'!C42)","v":""},{"$f":"IF('Generated list'!D42=\"\",\"\",'Generated list'!D42)","v":""}]
[null,{"$f":"IF('Generated list'!B43=\"\",\"\",'Generated list'!B43)","v":""},{"$f":"IF('Generated list'!C43=\"\",\"\",'Generated list'!C43)","v":""},{"$f":"IF('Generated list'!D43=\"\",\"\",'Generated list'!D43)","v":""}]
[null,{"$f":"IF('Generated list'!B44=\"\",\"\",'Generated list'!B44)","v":""},{"$f":"IF('Generated list'!C44=\"\",\"\",'Generated list'!C44)","v":""},{"$f":"IF('Generated list'!D44=\"\",\"\",'Generated list'!D44)","v":""}]
[null,{"$f":"IF('Generated list'!B45=\"\",\"\",'Generated list'!B45)","v":""},{"$f":"IF('Generated list'!C45=\"\",\"\",'Generated list'!C45)","v":""},{"$f":"IF('Generated list'!D45=\"\",\"\",'Generated list'!D45)","v":""}]
[null,{"$f":"IF('Generated list'!B46=\"\",\"\",'Generated list'!B46)","v":""},{"$f":"IF('Generated list'!C46=\"\",\"\",'Generated list'!C46)","v":""},{"$f":"IF('Generated list'!D46=\"\",\"\",'Generated list'!D46)","v":""}]
[null,{"$f":"IF('Generated list'!B47=\"\",\"\",'Generated list'!B47)","v":""},{"$f":"IF('Generated list'!C47=\"\",\"\",'Generated list'!C47)","v":""},{"$f":"IF('Generated list'!D47=\"\",\"\",'Generated list'!D47)","v":""}]
[null,{"$f":"IF('Generated list'!B48=\"\",\"\",'Generated list'!B48)","v":""},{"$f":"IF('Generated list'!C48=\"\",\"\",'Generated list'!C48)","v":""},{"$f":"IF('Generated list'!D48=\"\",\"\",'Generated list'!D48)","v":""}]
[null,{"$f":"IF('Generated list'!B49=\"\",\"\",'Generated list'!B49)","v":""},{"$f":"IF('Generated list'!C49=\"\",\"\",'Generated list'!C49)","v":""},{"$f":"IF('Generated list'!D49=\"\",\"\",'Generated list'!D49)","v":""}]
[null,{"$f":"IF('Generated list'!B50=\"\",\"\",'Generated list'!B50)","v":""},{"$f":"IF('Generated list'!C50=\"\",\"\",'Generated list'!C50)","v":""},{"$f":"IF('Generated list'!D50=\"\",\"\",'Generated list'!D50)","v":""}]
[null,{"$f":"IF('Generated list'!B51=\"\",\"\",'Generated list'!B51)","v":""},{"$f":"IF('Generated list'!C51=\"\",\"\",'Generated list'!C51)","v":""},{"$f":"IF('Generated list'!D51=\"\",\"\",'Generated list'!D51)","v":""}]
[null,{"$f":"IF('Generated list'!B52=\"\",\"\",'Generated list'!B52)","v":""},{"$f":"IF('Generated list'!C52=\"\",\"\",'Generated list'!C52)","v":""},{"$f":"IF('Generated list'!D52=\"\",\"\",'Generated list'!D52)","v":""}]
[null,{"$f":"IF('Generated list'!B53=\"\",\"\",'Generated list'!B53)","v":""},{"$f":"IF('Generated list'!C53=\"\",\"\",'Generated list'!C53)","v":""},{"$f":"IF('Generated list'!D53=\"\",\"\",'Generated list'!D53)","v":""}]
[null,{"$f":"IF('Generated list'!B54=\"\",\"\",'Generated list'!B54)","v":""},{"$f":"IF('Generated list'!C54=\"\",\"\",'Generated list'!C54)","v":""},{"$f":"IF('Generated list'!D54=\"\",\"\",'Generated list'!D54)","v":""}]
[null,{"$f":"IF('Generated list'!B55=\"\",\"\",'Generated list'!B55)","v":""},{"$f":"IF('Generated list'!C55=\"\",\"\",'Generated list'!C55)","v":""},{"$f":"IF('Generated list'!D55=\"\",\"\",'Generated list'!D55)","v":""}]
[null,{"$f":"IF('Generated list'!B56=\"\",\"\",'Generated list'!B56)","v":""},{"$f":"IF('Generated list'!C56=\"\",\"\",'Generated list'!C56)","v":""},{"$f":"IF('Generated list'!D56=\"\",\"\",'Generated list'!D56)","v":""}]
[null,{"$f":"IF('Generated list'!B57=\"\",\"\",'Generated list'!B57)","v":""},{"$f":"IF('Generated list'!C57=\"\",\"\",'Generated list'!C57)","v":""},{"$f":"IF('Generated list'!D57=\"\",\"\",'Generated list'!D57)","v":""}]
[null,{"$f":"IF('Generated list'!B58=\"\",\"\",'Generated list'!B58)","v":""},{"$f":"IF('Generated list'!C58=\"\",\"\",'Generated list'!C58)","v":""},{"$f":"IF('Generated list'!D58=\"\",\"\",'Generated list'!D58)","v":""}]
[null,{"$f":"IF('Generated list'!B59=\"\",\"\",'Generated list'!B59)","v":""},{"$f":"IF('Generated list'!C59=\"\",\"\",'Generated list'!C59)","v":""},{"$f":"IF('Generated list'!D59=\"\",\"\",'Generated list'!D59)","v":""}]
[null,{"$f":"IF('Generated list'!B60=\"\",\"\",'Generated list'!B60)","v":""},{"$f":"IF('Generated list'!C60=\"\",\"\",'Generated list'!C60)","v":""},{"$f":"IF('Generated list'!D60=\"\",\"\",'Generated list'!D60)","v":""}]
[null,{"$f":"IF('Generated list'!B61=\"\",\"\",'Generated list'!B61)","v":""},{"$f":"IF('Generated list'!C61=\"\",\"\",'Generated list'!C61)","v":""},{"$f":"IF('Generated list'!D61=\"\",\"\",'Generated list'!D61)","v":""}]
[null,{"$f":"IF('Generated list'!B62=\"\",\"\",'Generated list'!B62)","v":""},{"$f":"IF('Generated list'!C62=\"\",\"\",'Generated list'!C62)","v":""},{"$f":"IF('Generated list'!D62=\"\",\"\",'Generated list'!D62)","v":""}]
[null,{"$f":"IF('Generated list'!B63=\"\",\"\",'Generated list'!B63)","v":""},{"$f":"IF('Generated list'!C63=\"\",\"\",'Generated list'!C63)","v":""},{"$f":"IF('Generated list'!D63=\"\",\"\",'Generated list'!D63)","v":""}]
[null,{"$f":"IF('Generated list'!B64=\"\",\"\",'Generated list'!B64)","v":""},{"$f":"IF('Generated list'!C64=\"\",\"\",'Generated list'!C64)","v":""},{"$f":"IF('Generated list'!D64=\"\",\"\",'Generated list'!D64)","v":""}]
[null,{"$f":"IF('Generated list'!B65=\"\",\"\",'Generated list'!B65)","v":""},{"$f":"IF('Generated list'!C65=\"\",\"\",'Generated list'!C65)","v":""},{"$f":"IF('Generated list'!D65=\"\",\"\",'Generated list'!D65)","v":""}]
[null,{"$f":"IF('Generated list'!B66=\"\",\"\",'Generated list'!B66)","v":""},{"$f":"IF('Generated list'!C66=\"\",\"\",'Generated list'!C66)","v":""},{"$f":"IF('Generated list'!D66=\"\",\"\",'Generated list'!D66)","v":""}]
[null,{"$f":"IF('Generated list'!B67=\"\",\"\",'Generated list'!B67)","v":""},{"$f":"IF('Generated list'!C67=\"\",\"\",'Generated list'!C67)","v":""},{"$f":"IF('Generated list'!D67=\"\",\"\",'Generated list'!D67)","v":""}]
[null,{"$f":"IF('Generated list'!B68=\"\",\"\",'Generated list'!B68)","v":""},{"$f":"IF('Generated list'!C68=\"\",\"\",'Generated list'!C68)","v":""},{"$f":"IF('Generated list'!D68=\"\",\"\",'Generated list'!D68)","v":""}]
[null,{"$f":"IF('Generated list'!B69=\"\",\"\",'Generated list'!B69)","v":""},{"$f":"IF('Generated list'!C69=\"\",\"\",'Generated list'!C69)","v":""},{"$f":"IF('Generated list'!D69=\"\",\"\",'Generated list'!D69)","v":""}]
[null,{"$f":"IF('Generated list'!B70=\"\",\"\",'Generated list'!B70)","v":""},{"$f":"IF('Generated list'!C70=\"\",\"\",'Generated list'!C70)","v":""},{"$f":"IF('Generated list'!D70=\"\",\"\",'Generated list'!D70)","v":""}]
[null,{"$f":"IF('Generated list'!B71=\"\",\"\",'Generated list'!B71)","v":""},{"$f":"IF('Generated list'!C71=\"\",\"\",'Generated list'!C71)","v":""},{"$f":"IF('Generated list'!D71=\"\",\"\",'Generated list'!D71)","v":""}]
[null,{"$f":"IF('Generated list'!B72=\"\",\"\",'Generated list'!B72)","v":""},{"$f":"IF('Generated list'!C72=\"\",\"\",'Generated list'!C72)","v":""},{"$f":"IF('Generated list'!D72=\"\",\"\",'Generated list'!D72)","v":""}]
[null,{"$f":"IF('Generated list'!B73=\"\",\"\",'Generated list'!B73)","v":""},{"$f":"IF('Generated list'!C73=\"\",\"\",'Generated list'!C73)","v":""},{"$f":"IF('Generated list'!D73=\"\",\"\",'Generated list'!D73)","v":""}]
[null,{"$f":"IF('Generated list'!B74=\"\",\"\",'Generated list'!B74)","v":""},{"$f":"IF('Generated list'!C74=\"\",\"\",'Generated list'!C74)","v":""},{"$f":"IF('Generated list'!D74=\"\",\"\",'Generated list'!D74)","v":""}]
[null,{"$f":"IF('Generated list'!B75=\"\",\"\",'Generated list'!B75)","v":""},{"$f":"IF('Generated list'!C75=\"\",\"\",'Generated list'!C75)","v":""},{"$f":"IF('Generated list'!D75=\"\",\"\",'Generated list'!D75)","v":""}]
[null,{"$f":"IF('Generated list'!B76=\"\",\"\",'Generated list'!B76)","v":""},{"$f":"IF('Generated list'!C76=\"\",\"\",'Generated list'!C76)","v":""},{"$f":"IF('Generated list'!D76=\"\",\"\",'Generated list'!D76)","v":""}]
[null,{"$f":"IF('Generated list'!B77=\"\",\"\",'Generated list'!B77)","v":""},{"$f":"IF('Generated list'!C77=\"\",\"\",'Generated list'!C77)","v":""},{"$f":"IF('Generated list'!D77=\"\",\"\",'Generated list'!D77)","v":""}]
[null,{"$f":"IF('Generated list'!B78=\"\",\"\",'Generated list'!B78)","v":""},{"$f":"IF('Generated list'!C78=\"\",\"\",'Generated list'!C78)","v":""},{"$f":"IF('Generated list'!D78=\"\",\"\",'Generated list'!D78)","v":""}]
[null,{"$f":"IF('Generated list'!B79=\"\",\"\",'Generated list'!B79)","v":""},{"$f":"IF('Generated list'!C79=\"\",\"\",'Generated list'!C79)","v":""},{"$f":"IF('Generated list'!D79=\"\",\"\",'Generated list'!D79)","v":""}]
[null,{"$f":"IF('Generated list'!B80=\"\",\"\",'Generated list'!B80)","v":""},{"$f":"IF('Generated list'!C80=\"\",\"\",'Generated list'!C80)","v":""},{"$f":"IF('Generated list'!D80=\"\",\"\",'Generated list'!D80)","v":""}]
[null,{"$f":"IF('Generated list'!B81=\"\",\"\",'Generated list'!B81)","v":""},{"$f":"IF('Generated list'!C81=\"\",\"\",'Generated list'!C81)","v":""},{"$f":"IF('Generated list'!D81=\"\",\"\",'Generated list'!D81)","v":""}]
[null,{"$f":"IF('Generated list'!B82=\"\",\"\",'Generated list'!B82)","v":""},{"$f":"IF('Generated list'!C82=\"\",\"\",'Generated list'!C82)","v":""},{"$f":"IF('Generated list'!D82=\"\",\"\",'Generated list'!D82)","v":""}]
[null,{"$f":"IF('Generated list'!B83=\"\",\"\",'Generated list'!B83)","v":""},{"$f":"IF('Generated list'!C83=\"\",\"\",'Generated list'!C83)","v":""},{"$f":"IF('Generated list'!D83=\"\",\"\",'Generated list'!D83)","v":""}]
[null,{"$f":"IF('Generated list'!B84=\"\",\"\",'Generated list'!B84)","v":""},{"$f":"IF('Generated list'!C84=\"\",\"\",'Generated list'!C84)","v":""},{"$f":"IF('Generated list'!D84=\"\",\"\",'Generated list'!D84)","v":""}]
[null,{"$f":"IF('Generated list'!B85=\"\",\"\",'Generated list'!B85)","v":""},{"$f":"IF('Generated list'!C85=\"\",\"\",'Generated list'!C85)","v":""},{"$f":"IF('Generated list'!D85=\"\",\"\",'Generated list'!D85)","v":""}]
[null,{"$f":"IF('Generated list'!B86=\"\",\"\",'Generated list'!B86)","v":""},{"$f":"IF('Generated list'!C86=\"\",\"\",'Generated list'!C86)","v":""},{"$f":"IF('Generated list'!D86=\"\",\"\",'Generated list'!D86)","v":""}]
[null,{"$f":"IF('Generated list'!B87=\"\",\"\",'Generated list'!B87)","v":""},{"$f":"IF('Generated list'!C87=\"\",\"\",'Generated list'!C87)","v":""},{"$f":"IF('Generated list'!D87=\"\",\"\",'Generated list'!D87)","v":""}]
[null,{"$f":"IF('Generated list'!B88=\"\",\"\",'Generated list'!B88)","v":""},{"$f":"IF('Generated list'!C88=\"\",\"\",'Generated list'!C88)","v":""},{"$f":"IF('Generated list'!D88=\"\",\"\",'Generated list'!D88)","v":""}]
[null,{"$f":"IF('Generated list'!B89=\"\",\"\",'Generated list'!B89)","v":""},{"$f":"IF('Generated list'!C89=\"\",\"\",'Generated list'!C89)","v":""},{"$f":"IF('Generated list'!D89=\"\",\"\",'Generated list'!D89)","v":""}]
[null,{"$f":"IF('Generated list'!B90=\"\",\"\",'Generated list'!B90)","v":""},{"$f":"IF('Generated list'!C90=\"\",\"\",'Generated list'!C90)","v":""},{"$f":"IF('Generated list'!D90=\"\",\"\",'Generated list'!D90)","v":""}]
[null,{"$f":"IF('Generated list'!B91=\"\",\"\",'Generated list'!B91)","v":""},{"$f":"IF('Generated list'!C91=\"\",\"\",'Generated list'!C91)","v":""},{"$f":"IF('Generated list'!D91=\"\",\"\",'Generated list'!D91)","v":""}]
[null,{"$f":"IF('Generated list'!B92=\"\",\"\",'Generated list'!B92)","v":""},{"$f":"IF('Generated list'!C92=\"\",\"\",'Generated list'!C92)","v":""},{"$f":"IF('Generated list'!D92=\"\",\"\",'Generated list'!D92)","v":""}]
[null,{"$f":"IF('Generated list'!B93=\"\",\"\",'Generated list'!B93)","v":""},{"$f":"IF('Generated list'!C93=\"\",\"\",'Generated list'!C93)","v":""},{"$f":"IF('Generated list'!D93=\"\",\"\",'Generated list'!D93)","v":""}]
[null,{"$f":"IF('Generated list'!B94=\"\",\"\",'Generated list'!B94)","v":""},{"$f":"IF('Generated list'!C94=\"\",\"\",'Generated list'!C94)","v":""},{"$f":"IF('Generated list'!D94=\"\",\"\",'Generated list'!D94)","v":""}]
[null,{"$f":"IF('Generated list'!B95=\"\",\"\",'Generated list'!B95)","v":""},{"$f":"IF('Generated list'!C95=\"\",\"\",'Generated list'!C95)","v":""},{"$f":"IF('Generated list'!D95=\"\",\"\",'Generated list'!D95)","v":""}]
[null,{"$f":"IF('Generated list'!B96=\"\",\"\",'Generated list'!B96)","v":""},{"$f":"IF('Generated list'!C96=\"\",\"\",'Generated list'!C96)","v":""},{"$f":"IF('Generated list'!D96=\"\",\"\",'Generated list'!D96)","v":""}]
[null,{"$f":"IF('Generated list'!B97=\"\",\"\",'Generated list'!B97)","v":""},{"$f":"IF('Generated list'!C97=\"\",\"\",'Generated list'!C97)","v":""},{"$f":"IF('Generated list'!D97=\"\",\"\",'Generated list'!D97)","v":""}]
[null,{"$f":"IF('Generated list'!B98=\"\",\"\",'Generated list'!B98)","v":""},{"$f":"IF('Generated list'!C98=\"\",\"\",'Generated list'!C98)","v":""},{"$f":"IF('Generated list'!D98=\"\",\"\",'Generated list'!D98)","v":""}]
[null,{"$f":"IF('Generated list'!B99=\"\",\"\",'Generated list'!B99)","v":""},{"$f":"IF('Generated list'!C99=\"\",\"\",'Generated list'!C99)","v":""},{"$f":"IF('Generated list'!D99=\"\",\"\",'Generated list'!D99)","v":""}]
[null,{"$f":"IF('Generated list'!B100=\"\",\"\",'Generated list'!B100)","v":""},{"$f":"IF('Generated list'!C100=\"\",\"\",'Generated list'!C100)","v":""},{"$f":"IF('Generated list'!D100=\"\",\"\",'Generated list'!D100)","v":""}]
[null,{"$f":"IF('Generated list'!B101=\"\",\"\",'Generated list'!B101)","v":""},{"$f":"IF('Generated list'!C101=\"\",\"\",'Generated list'!C101)","v":""},{"$f":"IF('Generated list'!D101=\"\",\"\",'Generated list'!D101)","v":""}]
[null,{"$f":"IF('Generated list'!B102=\"\",\"\",'Generated list'!B102)","v":""},{"$f":"IF('Generated list'!C102=\"\",\"\",'Generated list'!C102)","v":""},{"$f":"IF('Generated list'!D102=\"\",\"\",'Generated list'!D102)","v":""}]
[null,{"$f":"IF('Generated list'!B103=\"\",\"\",'Generated list'!B103)","v":""},{"$f":"IF('Generated list'!C103=\"\",\"\",'Generated list'!C103)","v":""},{"$f":"IF('Generated list'!D103=\"\",\"\",'Generated list'!D103)","v":""}]
[null,{"$f":"IF('Generated list'!B104=\"\",\"\",'Generated list'!B104)","v":""},{"$f":"IF('Generated list'!C104=\"\",\"\",'Generated list'!C104)","v":""},{"$f":"IF('Generated list'!D104=\"\",\"\",'Generated list'!D104)","v":""}]
[null,{"$f":"IF('Generated list'!B105=\"\",\"\",'Generated list'!B105)","v":""},{"$f":"IF('Generated list'!C105=\"\",\"\",'Generated list'!C105)","v":""},{"$f":"IF('Generated list'!D105=\"\",\"\",'Generated list'!D105)","v":""}]
[null,{"$f":"IF('Generated list'!B106=\"\",\"\",'Generated list'!B106)","v":""},{"$f":"IF('Generated list'!C106=\"\",\"\",'Generated list'!C106)","v":""},{"$f":"IF('Generated list'!D106=\"\",\"\",'Generated list'!D106)","v":""}]
[null,{"$f":"IF('Generated list'!B107=\"\",\"\",'Generated list'!B107)","v":""},{"$f":"IF('Generated list'!C107=\"\",\"\",'Generated list'!C107)","v":""},{"$f":"IF('Generated list'!D107=\"\",\"\",'Generated list'!D107)","v":""}]
[null,{"$f":"IF('Generated list'!B108=\"\",\"\",'Generated list'!B108)","v":""},{"$f":"IF('Generated list'!C108=\"\",\"\",'Generated list'!C108)","v":""},{"$f":"IF('Generated list'!D108=\"\",\"\",'Generated list'!D108)","v":""}]
[null,{"$f":"IF('Generated list'!B109=\"\",\"\",'Generated list'!B109)","v":""},{"$f":"IF('Generated list'!C109=\"\",\"\",'Generated list'!C109)","v":""},{"$f":"IF('Generated list'!D109=\"\",\"\",'Generated list'!D109)","v":""}]
[null,{"$f":"IF('Generated list'!B110=\"\",\"\",'Generated list'!B110)","v":""},{"$f":"IF('Generated list'!C110=\"\",\"\",'Generated list'!C110)","v":""},{"$f":"IF('Generated list'!D110=\"\",\"\",'Generated list'!D110)","v":""}]
[null,{"$f":"IF('Generated list'!B111=\"\",\"\",'Generated list'!B111)","v":""},{"$f":"IF('Generated list'!C111=\"\",\"\",'Generated list'!C111)","v":""},{"$f":"IF('Generated list'!D111=\"\",\"\",'Generated list'!D111)","v":""}]
[null,{"$f":"IF('Generated list'!B112=\"\",\"\",'Generated list'!B112)","v":""},{"$f":"IF('Generated list'!C112=\"\",\"\",'Generated list'!C112)","v":""},{"$f":"IF('Generated list'!D112=\"\",\"\",'Generated list'!D112)","v":""}]
[null,{"$f":"IF('Generated list'!B113=\"\",\"\",'Generated list'!B113)","v":""},{"$f":"IF('Generated list'!C113=\"\",\"\",'Generated list'!C113)","v":""},{"$f":"IF('Generated list'!D113=\"\",\"\",'Generated list'!D113)","v":""}]
[null,{"$f":"IF('Generated list'!B114=\"\",\"\",'Generated list'!B114)","v":""},{"$f":"IF('Generated list'!C114=\"\",\"\",'Generated list'!C114)","v":""},{"$f":"IF('Generated list'!D114=\"\",\"\",'Generated list'!D114)","v":""}]
[null,{"$f":"IF('Generated list'!B115=\"\",\"\",'Generated list'!B115)","v":""},{"$f":"IF('Generated list'!C115=\"\",\"\",'Generated list'!C115)","v":""},{"$f":"IF('Generated list'!D115=\"\",\"\",'Generated list'!D115)","v":""}]
[null,{"$f":"IF('Generated list'!B116=\"\",\"\",'Generated list'!B116)","v":""},{"$f":"IF('Generated list'!C116=\"\",\"\",'Generated list'!C116)","v":""},{"$f":"IF('Generated list'!D116=\"\",\"\",'Generated list'!D116)","v":""}]
[null,{"$f":"IF('Generated list'!B117=\"\",\"\",'Generated list'!B117)","v":""},{"$f":"IF('Generated list'!C117=\"\",\"\",'Generated list'!C117)","v":""},{"$f":"IF('Generated list'!D117=\"\",\"\",'Generated list'!D117)","v":""}]
[null,{"$f":"IF('Generated list'!B118=\"\",\"\",'Generated list'!B118)","v":""},{"$f":"IF('Generated list'!C118=\"\",\"\",'Generated list'!C118)","v":""},{"$f":"IF('Generated list'!D118=\"\",\"\",'Generated list'!D118)","v":""}]
[null,{"$f":"IF('Generated list'!B119=\"\",\"\",'Generated list'!B119)","v":""},{"$f":"IF('Generated list'!C119=\"\",\"\",'Generated list'!C119)","v":""},{"$f":"IF('Generated list'!D119=\"\",\"\",'Generated list'!D119)","v":""}]
[null,{"$f":"IF('Generated list'!B120=\"\",\"\",'Generated list'!B120)","v":""},{"$f":"IF('Generated list'!C120=\"\",\"\",'Generated list'!C120)","v":""},{"$f":"IF('Generated list'!D120=\"\",\"\",'Generated list'!D120)","v":""}]
[null,{"$f":"IF('Generated list'!B121=\"\",\"\",'Generated list'!B121)","v":""},{"$f":"IF('Generated list'!C121=\"\",\"\",'Generated list'!C121)","v":""},{"$f":"IF('Generated list'!D121=\"\",\"\",'Generated list'!D121)","v":""}]
[null,{"$f":"IF('Generated list'!B122=\"\",\"\",'Generated list'!B122)","v":""},{"$f":"IF('Generated list'!C122=\"\",\"\",'Generated list'!C122)","v":""},{"$f":"IF('Generated list'!D122=\"\",\"\",'Generated list'!D122)","v":""}]
[null,{"$f":"IF('Generated list'!B123=\"\",\"\",'Generated list'!B123)","v":""},{"$f":"IF('Generated list'!C123=\"\",\"\",'Generated list'!C123)","v":""},{"$f":"IF('Generated list'!D123=\"\",\"\",'Generated list'!D123)","v":""}]
[null,{"$f":"IF('Generated list'!B124=\"\",\"\",'Generated list'!B124)","v":""},{"$f":"IF('Generated list'!C124=\"\",\"\",'Generated list'!C124)","v":""},{"$f":"IF('Generated list'!D124=\"\",\"\",'Generated list'!D124)","v":""}]
[null,{"$f":"IF('Generated list'!B125=\"\",\"\",'Generated list'!B125)","v":""},{"$f":"IF('Generated list'!C125=\"\",\"\",'Generated list'!C125)","v":""},{"$f":"IF('Generated list'!D125=\"\",\"\",'Generated list'!D125)","v":""}]
[null,{"$f":"IF('Generated list'!B126=\"\",\"\",'Generated list'!B126)","v":""},{"$f":"IF('Generated list'!C126=\"\",\"\",'Generated list'!C126)","v":""},{"$f":"IF('Generated list'!D126=\"\",\"\",'Generated list'!D126)","v":""}]
[null,{"$f":"IF('Generated list'!B127=\"\",\"\",'Generated list'!B127)","v":""},{"$f":"IF('Generated list'!C127=\"\",\"\",'Generated list'!C127)","v":""},{"$f":"IF('Generated list'!D127=\"\",\"\",'Generated list'!D127)","v":""}]
[null,{"$f":"IF('Generated list'!B128=\"\",\"\",'Generated list'!B128)","v":""},{"$f":"IF('Generated list'!C128=\"\",\"\",'Generated list'!C128)","v":""},{"$f":"IF('Generated list'!D128=\"\",\"\",'Generated list'!D128)","v":""}]
[null,{"$f":"IF('Generated list'!B129=\"\",\"\",'Generated list'!B129)","v":""},{"$f":"IF('Generated list'!C129=\"\",\"\",'Generated list'!C129)","v":""},{"$f":"IF('Generated list'!D129=\"\",\"\",'Generated list'!D129)","v":""}]
[null,{"$f":"IF('Generated list'!B130=\"\",\"\",'Generated list'!B130)","v":""},{"$f":"IF('Generated list'!C130=\"\",\"\",'Generated list'!C130)","v":""},{"$f":"IF('Generated list'!D130=\"\",\"\",'Generated list'!D130)","v":""}]
[null,{"$f":"IF('Generated list'!B131=\"\",\"\",'Generated list'!B131)","v":""},{"$f":"IF('Generated list'!C131=\"\",\"\",'Generated list'!C131)","v":""},{"$f":"IF('Generated list'!D131=\"\",\"\",'Generated list'!D131)","v":""}]
[null,{"$f":"IF('Generated list'!B132=\"\",\"\",'Generated list'!B132)","v":""},{"$f":"IF('Generated list'!C132=\"\",\"\",'Generated list'!C132)","v":""},{"$f":"IF('Generated list'!D132=\"\",\"\",'Generated list'!D132)","v":""}]
[null,{"$f":"IF('Generated list'!B133=\"\",\"\",'Generated list'!B133)","v":""},{"$f":"IF('Generated list'!C133=\"\",\"\",'Generated list'!C133)","v":""},{"$f":"IF('Generated list'!D133=\"\",\"\",'Generated list'!D133)","v":""}]
[null,{"$f":"IF('Generated list'!B134=\"\",\"\",'Generated list'!B134)","v":""},{"$f":"IF('Generated list'!C134=\"\",\"\",'Generated list'!C134)","v":""},{"$f":"IF('Generated list'!D134=\"\",\"\",'Generated list'!D134)","v":""}]
[null,{"$f":"IF('Generated list'!B135=\"\",\"\",'Generated list'!B135)","v":""},{"$f":"IF('Generated list'!C135=\"\",\"\",'Generated list'!C135)","v":""},{"$f":"IF('Generated list'!D135=\"\",\"\",'Generated list'!D135)","v":""}]
[null,{"$f":"IF('Generated list'!B136=\"\",\"\",'Generated list'!B136)","v":""},{"$f":"IF('Generated list'!C136=\"\",\"\",'Generated list'!C136)","v":""},{"$f":"IF('Generated list'!D136=\"\",\"\",'Generated list'!D136)","v":""}]
[null,{"$f":"IF('Generated list'!B137=\"\",\"\",'Generated list'!B137)","v":""},{"$f":"IF('Generated list'!C137=\"\",\"\",'Generated list'!C137)","v":""},{"$f":"IF('Generated list'!D137=\"\",\"\",'Generated list'!D137)","v":""}]
[null,{"$f":"IF('Generated list'!B138=\"\",\"\",'Generated list'!B138)","v":""},{"$f":"IF('Generated list'!C138=\"\",\"\",'Generated list'!C138)","v":""},{"$f":"IF('Generated list'!D138=\"\",\"\",'Generated list'!D138)","v":""}]
[null,{"$f":"IF('Generated list'!B139=\"\",\"\",'Generated list'!B139)","v":""},{"$f":"IF('Generated list'!C139=\"\",\"\",'Generated list'!C139)","v":""},{"$f":"IF('Generated list'!D139=\"\",\"\",'Generated list'!D139)","v":""}]
[null,{"$f":"IF('Generated list'!B140=\"\",\"\",'Generated list'!B140)","v":""},{"$f":"IF('Generated list'!C140=\"\",\"\",'Generated list'!C140)","v":""},{"$f":"IF('Generated list'!D140=\"\",\"\",'Generated list'!D140)","v":""}]
[null,{"$f":"IF('Generated list'!B141=\"\",\"\",'Generated list'!B141)","v":""},{"$f":"IF('Generated list'!C141=\"\",\"\",'Generated list'!C141)","v":""},{"$f":"IF('Generated list'!D141=\"\",\"\",'Generated list'!D141)","v":""}]
[null,{"$f":"IF('Generated list'!B142=\"\",\"\",'Generated list'!B142)","v":""},{"$f":"IF('Generated list'!C142=\"\",\"\",'Generated list'!C142)","v":""},{"$f":"IF('Generated list'!D142=\"\",\"\",'Generated list'!D142)","v":""}]
[null,{"$f":"IF('Generated list'!B143=\"\",\"\",'Generated list'!B143)","v":""},{"$f":"IF('Generated list'!C143=\"\",\"\",'Generated list'!C143)","v":""},{"$f":"IF('Generated list'!D143=\"\",\"\",'Generated list'!D143)","v":""}]
[null,{"$f":"IF('Generated list'!B144=\"\",\"\",'Generated list'!B144)","v":""},{"$f":"IF('Generated list'!C144=\"\",\"\",'Generated list'!C144)","v":""},{"$f":"IF('Generated list'!D144=\"\",\"\",'Generated list'!D144)","v":""}]
[null,{"$f":"IF('Generated list'!B145=\"\",\"\",'Generated list'!B145)","v":""},{"$f":"IF('Generated list'!C145=\"\",\"\",'Generated list'!C145)","v":""},{"$f":"IF('Generated list'!D145=\"\",\"\",'Generated list'!D145)","v":""}]
[null,{"$f":"IF('Generated list'!B146=\"\",\"\",'Generated list'!B146)","v":""},{"$f":"IF('Generated list'!C146=\"\",\"\",'Generated list'!C146)","v":""},{"$f":"IF('Generated list'!D146=\"\",\"\",'Generated list'!D146)","v":""}]
[null,{"$f":"IF('Generated list'!B147=\"\",\"\",'Generated list'!B147)","v":""},{"$f":"IF('Generated list'!C147=\"\",\"\",'Generated list'!C147)","v":""},{"$f":"IF('Generated list'!D147=\"\",\"\",'Generated list'!D147)","v":""}]
[null,{"$f":"IF('Generated list'!B148=\"\",\"\",'Generated list'!B148)","v":""},{"$f":"IF('Generated list'!C148=\"\",\"\",'Generated list'!C148)","v":""},{"$f":"IF('Generated list'!D148=\"\",\"\",'Generated list'!D148)","v":""}]
[null,{"$f":"IF('Generated list'!B149=\"\",\"\",'Generated list'!B149)","v":""},{"$f":"IF('Generated list'!C149=\"\",\"\",'Generated list'!C149)","v":""},{"$f":"IF('Generated list'!D149=\"\",\"\",'Generated list'!D149)","v":""}]
[null,{"$f":"IF('Generated list'!B150=\"\",\"\",'Generated list'!B150)","v":""},{"$f":"IF('Generated list'!C150=\"\",\"\",'Generated list'!C150)","v":""},{"$f":"IF('Generated list'!D150=\"\",\"\",'Generated list'!D150)","v":""}]
[null,{"$f":"IF('Generated list'!B151=\"\",\"\",'Generated list'!B151)","v":""},{"$f":"IF('Generated list'!C151=\"\",\"\",'Generated list'!C151)","v":""},{"$f":"IF('Generated list'!D151=\"\",\"\",'Generated list'!D151)","v":""}]
[null,{"$f":"IF('Generated list'!B152=\"\",\"\",'Generated list'!B152)","v":""},{"$f":"IF('Generated list'!C152=\"\",\"\",'Generated list'!C152)","v":""},{"$f":"IF('Generated list'!D152=\"\",\"\",'Generated list'!D152)","v":""}]
[null,{"$f":"IF('Generated list'!B153=\"\",\"\",'Generated list'!B153)","v":""},{"$f":"IF('Generated list'!C153=\"\",\"\",'Generated list'!C153)","v":""},{"$f":"IF('Generated list'!D153=\"\",\"\",'Generated list'!D153)","v":""}]
[null,{"$f":"IF('Generated list'!B154=\"\",\"\",'Generated list'!B154)","v":""},{"$f":"IF('Generated list'!C154=\"\",\"\",'Generated list'!C154)","v":""},{"$f":"IF('Generated list'!D154=\"\",\"\",'Generated list'!D154)","v":""}]
[null,{"$f":"IF('Generated list'!B155=\"\",\"\",'Generated list'!B155)","v":""},{"$f":"IF('Generated list'!C155=\"\",\"\",'Generated list'!C155)","v":""},{"$f":"IF('Generated list'!D155=\"\",\"\",'Generated list'!D155)","v":""}]
[null,{"$f":"IF('Generated list'!B156=\"\",\"\",'Generated list'!B156)","v":""},{"$f":"IF('Generated list'!C156=\"\",\"\",'Generated list'!C156)","v":""},{"$f":"IF('Generated list'!D156=\"\",\"\",'Generated list'!D156)","v":""}]
[null,{"$f":"IF('Generated list'!B157=\"\",\"\",'Generated list'!B157)","v":""},{"$f":"IF('Generated list'!C157=\"\",\"\",'Generated list'!C157)","v":""},{"$f":"IF('Generated list'!D157=\"\",\"\",'Generated list'!D157)","v":""}]
[null,{"$f":"IF('Generated list'!B158=\"\",\"\",'Generated list'!B158)","v":""},{"$f":"IF('Generated list'!C158=\"\",\"\",'Generated list'!C158)","v":""},{"$f":"IF('Generated list'!D158=\"\",\"\",'Generated list'!D158)","v":""}]
[null,{"$f":"IF('Generated list'!B159=\"\",\"\",'Generated list'!B159)","v":""},{"$f":"IF('Generated list'!C159=\"\",\"\",'Generated list'!C159)","v":""},{"$f":"IF('Generated list'!D159=\"\",\"\",'Generated list'!D159)","v":""}]
[null,{"$f":"IF('Generated list'!B160=\"\",\"\",'Generated list'!B160)","v":""},{"$f":"IF('Generated list'!C160=\"\",\"\",'Generated list'!C160)","v":""},{"$f":"IF('Generated list'!D160=\"\",\"\",'Generated list'!D160)","v":""}]
[null,{"$f":"IF('Generated list'!B161=\"\",\"\",'Generated list'!B161)","v":""},{"$f":"IF('Generated list'!C161=\"\",\"\",'Generated list'!C161)","v":""},{"$f":"IF('Generated list'!D161=\"\",\"\",'Generated list'!D161)","v":""}]
[null,{"$f":"IF('Generated list'!B162=\"\",\"\",'Generated list'!B162)","v":""},{"$f":"IF('Generated list'!C162=\"\",\"\",'Generated list'!C162)","v":""},{"$f":"IF('Generated list'!D162=\"\",\"\",'Generated list'!D162)","v":""}]
[null,{"$f":"IF('Generated list'!B163=\"\",\"\",'Generated list'!B163)","v":""},{"$f":"IF('Generated list'!C163=\"\",\"\",'Generated list'!C163)","v":""},{"$f":"IF('Generated list'!D163=\"\",\"\",'Generated list'!D163)","v":""}]
[null,{"$f":"IF('Generated list'!B164=\"\",\"\",'Generated list'!B164)","v":""},{"$f":"IF('Generated list'!C164=\"\",\"\",'Generated list'!C164)","v":""},{"$f":"IF('Generated list'!D164=\"\",\"\",'Generated list'!D164)","v":""}]
[null,{"$f":"IF('Generated list'!B165=\"\",\"\",'Generated list'!B165)","v":""},{"$f":"IF('Generated list'!C165=\"\",\"\",'Generated list'!C165)","v":""},{"$f":"IF('Generated list'!D165=\"\",\"\",'Generated list'!D165)","v":""}]
[null,{"$f":"IF('Generated list'!B166=\"\",\"\",'Generated list'!B166)","v":""},{"$f":"IF('Generated list'!C166=\"\",\"\",'Generated list'!C166)","v":""},{"$f":"IF('Generated list'!D166=\"\",\"\",'Generated list'!D166)","v":""}]
[null,{"$f":"IF('Generated list'!B167=\"\",\"\",'Generated list'!B167)","v":""},{"$f":"IF('Generated list'!C167=\"\",\"\",'Generated list'!C167)","v":""},{"$f":"IF('Generated list'!D167=\"\",\"\",'Generated list'!D167)","v":""}]
[null,{"$f":"IF('Generated list'!B168=\"\",\"\",'Generated list'!B168)","v":""},{"$f":"IF('Generated list'!C168=\"\",\"\",'Generated list'!C168)","v":""},{"$f":"IF('Generated list'!D168=\"\",\"\",'Generated list'!D168)","v":""}]
[null,{"$f":"IF('Generated list'!B169=\"\",\"\",'Generated list'!B169)","v":""},{"$f":"IF('Generated list'!C169=\"\",\"\",'Generated list'!C169)","v":""},{"$f":"IF('Generated list'!D169=\"\",\"\",'Generated list'!D169)","v":""}]
[null,{"$f":"IF('Generated list'!B170=\"\",\"\",'Generated list'!B170)","v":""},{"$f":"IF('Generated list'!C170=\"\",\"\",'Generated list'!C170)","v":""},{"$f":"IF('Generated list'!D170=\"\",\"\",'Generated list'!D170)","v":""}]
[null,{"$f":"IF('Generated list'!B171=\"\",\"\",'Generated list'!B171)","v":""},{"$f":"IF('Generated list'!C171=\"\",\"\",'Generated list'!C171)","v":""},{"$f":"IF('Generated list'!D171=\"\",\"\",'Generated list'!D171)","v":""}]
[null,{"$f":"IF('Generated list'!B172=\"\",\"\",'Generated list'!B172)","v":""},{"$f":"IF('Generated list'!C172=\"\",\"\",'Generated list'!C172)","v":""},{"$f":"IF('Generated list'!D172=\"\",\"\",'Generated list'!D172)","v":""}]
[null,{"$f":"IF('Generated list'!B173=\"\",\"\",'Generated list'!B173)","v":""},{"$f":"IF('Generated list'!C173=\"\",\"\",'Generated list'!C173)","v":""},{"$f":"IF('Generated list'!D173=\"\",\"\",'Generated list'!D173)","v":""}]
[null,{"$f":"IF('Generated list'!B174=\"\",\"\",'Generated list'!B174)","v":""},{"$f":"IF('Generated list'!C174=\"\",\"\",'Generated list'!C174)","v":""},{"$f":"IF('Generated list'!D174=\"\",\"\",'Generated list'!D174)","v":""}]
[null,{"$f":"IF('Generated list'!B175=\"\",\"\",'Generated list'!B175)","v":""},{"$f":"IF('Generated list'!C175=\"\",\"\",'Generated list'!C175)","v":""},{"$f":"IF('Generated list'!D175=\"\",\"\",'Generated list'!D175)","v":""}]
[null,{"$f":"IF('Generated list'!B176=\"\",\"\",'Generated list'!B176)","v":""},{"$f":"IF('Generated list'!C176=\"\",\"\",'Generated list'!C176)","v":""},{"$f":"IF('Generated list'!D176=\"\",\"\",'Generated list'!D176)","v":""}]
[null,{"$f":"IF('Generated list'!B177=\"\",\"\",'Generated list'!B177)","v":""},{"$f":"IF('Generated list'!C177=\"\",\"\",'Generated list'!C177)","v":""},{"$f":"IF('Generated list'!D177=\"\",\"\",'Generated list'!D177)","v":""}]
[null,{"$f":"IF('Generated list'!B178=\"\",\"\",'Generated list'!B178)","v":""},{"$f":"IF('Generated list'!C178=\"\",\"\",'Generated list'!C178)","v":""},{"$f":"IF('Generated list'!D178=\"\",\"\",'Generated list'!D178)","v":""}]
[null,{"$f":"IF('Generated list'!B179=\"\",\"\",'Generated list'!B179)","v":""},{"$f":"IF('Generated list'!C179=\"\",\"\",'Generated list'!C179)","v":""},{"$f":"IF('Generated list'!D179=\"\",\"\",'Generated list'!D179)","v":""}]
[null,{"$f":"IF('Generated list'!B180=\"\",\"\",'Generated list'!B180)","v":""},{"$f":"IF('Generated list'!C180=\"\",\"\",'Generated list'!C180)","v":""},{"$f":"IF('Generated list'!D180=\"\",\"\",'Generated list'!D180)","v":""}]
[null,{"$f":"IF('Generated list'!B181=\"\",\"\",'Generated list'!B181)","v":""},{"$f":"IF('Generated list'!C181=\"\",\"\",'Generated list'!C181)","v":""},{"$f":"IF('Generated list'!D181=\"\",\"\",'Generated list'!D181)","v":""}]
[null,{"$f":"IF('Generated list'!B182=\"\",\"\",'Generated list'!B182)","v":""},{"$f":"IF('Generated list'!C182=\"\",\"\",'Generated list'!C182)","v":""},{"$f":"IF('Generated list'!D182=\"\",\"\",'Generated list'!D182)","v":""}]
[null,{"$f":"IF('Generated list'!B183=\"\",\"\",'Generated list'!B183)","v":""},{"$f":"IF('Generated list'!C183=\"\",\"\",'Generated list'!C183)","v":""},{"$f":"IF('Generated list'!D183=\"\",\"\",'Generated list'!D183)","v":""}]
[null,{"$f":"IF('Generated list'!B184=\"\",\"\",'Generated list'!B184)","v":""},{"$f":"IF('Generated list'!C184=\"\",\"\",'Generated list'!C184)","v":""},{"$f":"IF('Generated list'!D184=\"\",\"\",'Generated list'!D184)","v":""}]
[null,{"$f":"IF('Generated list'!B185=\"\",\"\",'Generated list'!B185)","v":""},{"$f":"IF('Generated list'!C185=\"\",\"\",'Generated list'!C185)","v":""},{"$f":"IF('Generated list'!D185=\"\",\"\",'Generated list'!D185)","v":""}]
[null,{"$f":"IF('Generated list'!B186=\"\",\"\",'Generated list'!B186)","v":""},{"$f":"IF('Generated list'!C186=\"\",\"\",'Generated list'!C186)","v":""},{"$f":"IF('Generated list'!D186=\"\",\"\",'Generated list'!D186)","v":""}]
[null,{"$f":"IF('Generated list'!B187=\"\",\"\",'Generated list'!B187)","v":""},{"$f":"IF('Generated list'!C187=\"\",\"\",'Generated list'!C187)","v":""},{"$f":"IF('Generated list'!D187=\"\",\"\",'Generated list'!D187)","v":""}]
[null,{"$f":"IF('Generated list'!B188=\"\",\"\",'Generated list'!B188)","v":""},{"$f":"IF('Generated list'!C188=\"\",\"\",'Generated list'!C188)","v":""},{"$f":"IF('Generated list'!D188=\"\",\"\",'Generated list'!D188)","v":""}]
[null,{"$f":"IF('Generated list'!B189=\"\",\"\",'Generated list'!B189)","v":""},{"$f":"IF('Generated list'!C189=\"\",\"\",'Generated list'!C189)","v":""},{"$f":"IF('Generated list'!D189=\"\",\"\",'Generated list'!D189)","v":""}]
[null,{"$f":"IF('Generated list'!B190=\"\",\"\",'Generated list'!B190)","v":""},{"$f":"IF('Generated list'!C190=\"\",\"\",'Generated list'!C190)","v":""},{"$f":"IF('Generated list'!D190=\"\",\"\",'Generated list'!D190)","v":""}]
[null,{"$f":"IF('Generated list'!B191=\"\",\"\",'Generated list'!B191)","v":""},{"$f":"IF('Generated list'!C191=\"\",\"\",'Generated list'!C191)","v":""},{"$f":"IF('Generated list'!D191=\"\",\"\",'Generated list'!D191)","v":""}]
[null,{"$f":"IF('Generated list'!B192=\"\",\"\",'Generated list'!B192)","v":""},{"$f":"IF('Generated list'!C192=\"\",\"\",'Generated list'!C192)","v":""},{"$f":"IF('Generated list'!D192=\"\",\"\",'Generated list'!D192)","v":""}]
[null,{"$f":"IF('Generated list'!B193=\"\",\"\",'Generated list'!B193)","v":""},{"$f":"IF('Generated list'!C193=\"\",\"\",'Generated list'!C193)","v":""},{"$f":"IF('Generated list'!D193=\"\",\"\",'Generated list'!D193)","v":""}]
[null,{"$f":"IF('Generated list'!B194=\"\",\"\",'Generated list'!B194)","v":""},{"$f":"IF('Generated list'!C194=\"\",\"\",'Generated list'!C194)","v":""},{"$f":"IF('Generated list'!D194=\"\",\"\",'Generated list'!D194)","v":""}]
[null,{"$f":"IF('Generated list'!B195=\"\",\"\",'Generated list'!B195)","v":""},{"$f":"IF('Generated list'!C195=\"\",\"\",'Generated list'!C195)","v":""},{"$f":"IF('Generated list'!D195=\"\",\"\",'Generated list'!D195)","v":""}]
[null,{"$f":"IF('Generated list'!B196=\"\",\"\",'Generated list'!B196)","v":""},{"$f":"IF('Generated list'!C196=\"\",\"\",'Generated list'!C196)","v":""},{"$f":"IF('Generated list'!D196=\"\",\"\",'Generated list'!D196)","v":""}]
[null,{"$f":"IF('Generated list'!B197=\"\",\"\",'Generated list'!B197)","v":""},{"$f":"IF('Generated list'!C197=\"\",\"\",'Generated list'!C197)","v":""},{"$f":"IF('Generated list'!D197=\"\",\"\",'Generated list'!D197)","v":""}]
[null,{"$f":"IF('Generated list'!B198=\"\",\"\",'Generated list'!B198)","v":""},{"$f":"IF('Generated list'!C198=\"\",\"\",'Generated list'!C198)","v":""},{"$f":"IF('Generated list'!D198=\"\",\"\",'Generated list'!D198)","v":""}]
[null,{"$f":"IF('Generated list'!B199=\"\",\"\",'Generated list'!B199)","v":""},{"$f":"IF('Generated list'!C199=\"\",\"\",'Generated list'!C199)","v":""},{"$f":"IF('Generated list'!D199=\"\",\"\",'Generated list'!D199)","v":""}]
[null,{"$f":"IF('Generated list'!B200=\"\",\"\",'Generated list'!B200)","v":""},{"$f":"IF('Generated list'!C200=\"\",\"\",'Generated list'!C200)","v":""},{"$f":"IF('Generated list'!D200=\"\",\"\",'Generated list'!D200)","v":""}]
[null,{"$f":"IF('Generated list'!B201=\"\",\"\",'Generated list'!B201)","v":""},{"$f":"IF('Generated list'!C201=\"\",\"\",'Generated list'!C201)","v":""},{"$f":"IF('Generated list'!D201=\"\",\"\",'Generated list'!D201)","v":""}]
[null,{"$f":"IF('Generated list'!B202=\"\",\"\",'Generated list'!B202)","v":""},{"$f":"IF('Generated list'!C202=\"\",\"\",'Generated list'!C202)","v":""},{"$f":"IF('Generated list'!D202=\"\",\"\",'Generated list'!D202)","v":""}]
[null,{"$f":"IF('Generated list'!B203=\"\",\"\",'Generated list'!B203)","v":""},{"$f":"IF('Generated list'!C203=\"\",\"\",'Generated list'!C203)","v":""},{"$f":"IF('Generated list'!D203=\"\",\"\",'Generated list'!D203)","v":""}]
[null,{"$f":"IF('Generated list'!B204=\"\",\"\",'Generated list'!B204)","v":""},{"$f":"IF('Generated list'!C204=\"\",\"\",'Generated list'!C204)","v":""},{"$f":"IF('Generated list'!D204=\"\",\"\",'Generated list'!D204)","v":""}]
[null,{"$f":"IF('Generated list'!B205=\"\",\"\",'Generated list'!B205)","v":""},{"$f":"IF('Generated list'!C205=\"\",\"\",'Generated list'!C205)","v":""},{"$f":"IF('Generated list'!D205=\"\",\"\",'Generated list'!D205)","v":""}]
[null,{"$f":"IF('Generated list'!B206=\"\",\"\",'Generated list'!B206)","v":""},{"$f":"IF('Generated list'!C206=\"\",\"\",'Generated list'!C206)","v":""},{"$f":"IF('Generated list'!D206=\"\",\"\",'Generated list'!D206)","v":""}]
[null,{"$f":"IF('Generated list'!B207=\"\",\"\",'Generated list'!B207)","v":""},{"$f":"IF('Generated list'!C207=\"\",\"\",'Generated list'!C207)","v":""},{"$f":"IF('Generated list'!D207=\"\",\"\",'Generated list'!D207)","v":""}]
[null,{"$f":"IF('Generated list'!B208=\"\",\"\",'Generated list'!B208)","v":""},{"$f":"IF('Generated list'!C208=\"\",\"\",'Generated list'!C208)","v":""},{"$f":"IF('Generated list'!D208=\"\",\"\",'Generated list'!D208)","v":""}]
[null,{"$f":"IF('Generated list'!B209=\"\",\"\",'Generated list'!B209)","v":""},{"$f":"IF('Generated list'!C209=\"\",\"\",'Generated list'!C209)","v":""},{"$f":"IF('Generated list'!D209=\"\",\"\",'Generated list'!D209)","v":""}]
[null,{"$f":"IF('Generated list'!B210=\"\",\"\",'Generated list'!B210)","v":""},{"$f":"IF('Generated list'!C210=\"\",\"\",'Generated list'!C210)","v":""},{"$f":"IF('Generated list'!D210=\"\",\"\",'Generated list'!D210)","v":""}]
[null,{"$f":"IF('Generated list'!B211=\"\",\"\",'Generated list'!B211)","v":""},{"$f":"IF('Generated list'!C211=\"\",\"\",'Generated list'!C211)","v":""},{"$f":"IF('Generated list'!D211=\"\",\"\",'Generated list'!D211)","v":""}]
[null,{"$f":"IF('Generated list'!B212=\"\",\"\",'Generated list'!B212)","v":""},{"$f":"IF('Generated list'!C212=\"\",\"\",'Generated list'!C212)","v":""},{"$f":"IF('Generated list'!D212=\"\",\"\",'Generated list'!D212)","v":""}]
[null,{"$f":"IF('Generated list'!B213=\"\",\"\",'Generated list'!B213)","v":""},{"$f":"IF('Generated list'!C213=\"\",\"\",'Generated list'!C213)","v":""},{"$f":"IF('Generated list'!D213=\"\",\"\",'Generated list'!D213)","v":""}]
[null,{"$f":"IF('Generated list'!B214=\"\",\"\",'Generated list'!B214)","v":""},{"$f":"IF('Generated list'!C214=\"\",\"\",'Generated list'!C214)","v":""},{"$f":"IF('Generated list'!D214=\"\",\"\",'Generated list'!D214)","v":""}]
[null,{"$f":"IF('Generated list'!B215=\"\",\"\",'Generated list'!B215)","v":""},{"$f":"IF('Generated list'!C215=\"\",\"\",'Generated list'!C215)","v":""},{"$f":"IF('Generated list'!D215=\"\",\"\",'Generated list'!D215)","v":""}]
[null,{"$f":"IF('Generated list'!B216=\"\",\"\",'Generated list'!B216)","v":""},{"$f":"IF('Generated list'!C216=\"\",\"\",'Generated list'!C216)","v":""},{"$f":"IF('Generated list'!D216=\"\",\"\",'Generated list'!D216)","v":""}]
[null,{"$f":"IF('Generated list'!B217=\"\",\"\",'Generated list'!B217)","v":""},{"$f":"IF('Generated list'!C217=\"\",\"\",'Generated list'!C217)","v":""},{"$f":"IF('Generated list'!D217=\"\",\"\",'Generated list'!D217)","v":""}]
[null,{"$f":"IF('Generated list'!B218=\"\",\"\",'Generated list'!B218)","v":""},{"$f":"IF('Generated list'!C218=\"\",\"\",'Generated list'!C218)","v":""},{"$f":"IF('Generated list'!D218=\"\",\"\",'Generated list'!D218)","v":""}]
[null,{"$f":"IF('Generated list'!B219=\"\",\"\",'Generated list'!B219)","v":""},{"$f":"IF('Generated list'!C219=\"\",\"\",'Generated list'!C219)","v":""},{"$f":"IF('Generated list'!D219=\"\",\"\",'Generated list'!D219)","v":""}]
[null,{"$f":"IF('Generated list'!B220=\"\",\"\",'Generated list'!B220)","v":""},{"$f":"IF('Generated list'!C220=\"\",\"\",'Generated list'!C220)","v":""},{"$f":"IF('Generated list'!D220=\"\",\"\",'Generated list'!D220)","v":""}]
[null,{"$f":"IF('Generated list'!B221=\"\",\"\",'Generated list'!B221)","v":""},{"$f":"IF('Generated list'!C221=\"\",\"\",'Generated list'!C221)","v":""},{"$f":"IF('Generated list'!D221=\"\",\"\",'Generated list'!D221)","v":""}]
[null,{"$f":"IF('Generated list'!B222=\"\",\"\",'Generated list'!B222)","v":""},{"$f":"IF('Generated list'!C222=\"\",\"\",'Generated list'!C222)","v":""},{"$f":"IF('Generated list'!D222=\"\",\"\",'Generated list'!D222)","v":""}]
[null,{"$f":"IF('Generated list'!B223=\"\",\"\",'Generated list'!B223)","v":""},{"$f":"IF('Generated list'!C223=\"\",\"\",'Generated list'!C223)","v":""},{"$f":"IF('Generated list'!D223=\"\",\"\",'Generated list'!D223)","v":""}]
[null,{"$f":"IF('Generated list'!B224=\"\",\"\",'Generated list'!B224)","v":""},{"$f":"IF('Generated list'!C224=\"\",\"\",'Generated list'!C224)","v":""},{"$f":"IF('Generated list'!D224=\"\",\"\",'Generated list'!D224)","v":""}]
[null,{"$f":"IF('Generated list'!B225=\"\",\"\",'Generated list'!B225)","v":""},{"$f":"IF('Generated list'!C225=\"\",\"\",'Generated list'!C225)","v":""},{"$f":"IF('Generated list'!D225=\"\",\"\",'Generated list'!D225)","v":""}]
[null,{"$f":"IF('Generated list'!B226=\"\",\"\",'Generated list'!B226)","v":""},{"$f":"IF('Generated list'!C226=\"\",\"\",'Generated list'!C226)","v":""},{"$f":"IF('Generated list'!D226=\"\",\"\",'Generated list'!D226)","v":""}]
[null,{"$f":"IF('Generated list'!B227=\"\",\"\",'Generated list'!B227)","v":""},{"$f":"IF('Generated list'!C227=\"\",\"\",'Generated list'!C227)","v":""},{"$f":"IF('Generated list'!D227=\"\",\"\",'Generated list'!D227)","v":""}]
[null,{"$f":"IF('Generated list'!B228=\"\",\"\",'Generated list'!B228)","v":""},{"$f":"IF('Generated list'!C228=\"\",\"\",'Generated list'!C228)","v":""},{"$f":"IF('Generated list'!D228=\"\",\"\",'Generated list'!D228)","v":""}]
[null,{"$f":"IF('Generated list'!B229=\"\",\"\",'Generated list'!B229)","v":""},{"$f":"IF('Generated list'!C229=\"\",\"\",'Generated list'!C229)","v":""},{"$f":"IF('Generated list'!D229=\"\",\"\",'Generated list'!D229)","v":""}]
[null,{"$f":"IF('Generated list'!B230=\"\",\"\",'Generated list'!B230)","v":""},{"$f":"IF('Generated list'!C230=\"\",\"\",'Generated list'!C230)","v":""},{"$f":"IF('Generated list'!D230=\"\",\"\",'Generated list'!D230)","v":""}]
[null,{"$f":"IF('Generated list'!B231=\"\",\"\",'Generated list'!B231)","v":""},{"$f":"IF('Generated list'!C231=\"\",\"\",'Generated list'!C231)","v":""},{"$f":"IF('Generated list'!D231=\"\",\"\",'Generated list'!D231)","v":""}]
[null,{"$f":"IF('Generated list'!B232=\"\",\"\",'Generated list'!B232)","v":""},{"$f":"IF('Generated list'!C232=\"\",\"\",'Generated list'!C232)","v":""},{"$f":"IF('Generated list'!D232=\"\",\"\",'Generated list'!D232)","v":""}]
[null,{"$f":"IF('Generated list'!B233=\"\",\"\",'Generated list'!B233)","v":""},{"$f":"IF('Generated list'!C233=\"\",\"\",'Generated list'!C233)","v":""},{"$f":"IF('Generated list'!D233=\"\",\"\",'Generated list'!D233)","v":""}]
[null,{"$f":"IF('Generated list'!B234=\"\",\"\",'Generated list'!B234)","v":""},{"$f":"IF('Generated list'!C234=\"\",\"\",'Generated list'!C234)","v":""},{"$f":"IF('Generated list'!D234=\"\",\"\",'Generated list'!D234)","v":""}]
[null,{"$f":"IF('Generated list'!B235=\"\",\"\",'Generated list'!B235)","v":""},{"$f":"IF('Generated list'!C235=\"\",\"\",'Generated list'!C235)","v":""},{"$f":"IF('Generated list'!D235=\"\",\"\",'Generated list'!D235)","v":""}]
[null,{"$f":"IF('Generated list'!B236=\"\",\"\",'Generated list'!B236)","v":""},{"$f":"IF('Generated list'!C236=\"\",\"\",'Generated list'!C236)","v":""},{"$f":"IF('Generated list'!D236=\"\",\"\",'Generated list'!D236)","v":""}]
[null,{"$f":"IF('Generated list'!B237=\"\",\"\",'Generated list'!B237)","v":""},{"$f":"IF('Generated list'!C237=\"\",\"\",'Generated list'!C237)","v":""},{"$f":"IF('Generated list'!D237=\"\",\"\",'Generated list'!D237)","v":""}]
[null,{"$f":"IF('Generated list'!B238=\"\",\"\",'Generated list'!B238)","v":""},{"$f":"IF('Generated list'!C238=\"\",\"\",'Generated list'!C238)","v":""},{"$f":"IF('Generated list'!D238=\"\",\"\",'Generated list'!D238)","v":""}]
[null,{"$f":"IF('Generated list'!B239=\"\",\"\",'Generated list'!B239)","v":""},{"$f":"IF('Generated list'!C239=\"\",\"\",'Generated list'!C239)","v":""},{"$f":"IF('Generated list'!D239=\"\",\"\",'Generated list'!D239)","v":""}]
[null,{"$f":"IF('Generated list'!B240=\"\",\"\",'Generated list'!B240)","v":""},{"$f":"IF('Generated list'!C240=\"\",\"\",'Generated list'!C240)","v":""},{"$f":"IF('Generated list'!D240=\"\",\"\",'Generated list'!D240)","v":""}]
[null,{"$f":"IF('Generated list'!B241=\"\",\"\",'Generated list'!B241)","v":""},{"$f":"IF('Generated list'!C241=\"\",\"\",'Generated list'!C241)","v":""},{"$f":"IF('Generated list'!D241=\"\",\"\",'Generated list'!D241)","v":""}]
[null,{"$f":"IF('Generated list'!B242=\"\",\"\",'Generated list'!B242)","v":""},{"$f":"IF('Generated list'!C242=\"\",\"\",'Generated list'!C242)","v":""},{"$f":"IF('Generated list'!D242=\"\",\"\",'Generated list'!D242)","v":""}]
[null,{"$f":"IF('Generated list'!B243=\"\",\"\",'Generated list'!B243)","v":""},{"$f":"IF('Generated list'!C243=\"\",\"\",'Generated list'!C243)","v":""},{"$f":"IF('Generated list'!D243=\"\",\"\",'Generated list'!D243)","v":""}]
[null,{"$f":"IF('Generated list'!B244=\"\",\"\",'Generated list'!B244)","v":""},{"$f":"IF('Generated list'!C244=\"\",\"\",'Generated list'!C244)","v":""},{"$f":"IF('Generated list'!D244=\"\",\"\",'Generated list'!D244)","v":""}]
[null,{"$f":"IF('Generated list'!B245=\"\",\"\",'Generated list'!B245)","v":""},{"$f":"IF('Generated list'!C245=\"\",\"\",'Generated list'!C245)","v":""},{"$f":"IF('Generated list'!D245=\"\",\"\",'Generated list'!D245)","v":""}]
[null,{"$f":"IF('Generated list'!B246=\"\",\"\",'Generated list'!B246)","v":""},{"$f":"IF('Generated list'!C246=\"\",\"\",'Generated list'!C246)","v":""},{"$f":"IF('Generated list'!D246=\"\",\"\",'Generated list'!D246)","v":""}]
[null,{"$f":"IF('Generated list'!B247=\"\",\"\",'Generated list'!B247)","v":""},{"$f":"IF('Generated list'!C247=\"\",\"\",'Generated list'!C247)","v":""},{"$f":"IF('Generated list'!D247=\"\",\"\",'Generated list'!D247)","v":""}]
[null,{"$f":"IF('Generated list'!B248=\"\",\"\",'Generated list'!B248)","v":""},{"$f":"IF('Generated list'!C248=\"\",\"\",'Generated list'!C248)","v":""},{"$f":"IF('Generated list'!D248=\"\",\"\",'Generated list'!D248)","v":""}]
[null,{"$f":"IF('Generated list'!B249=\"\",\"\",'Generated list'!B249)","v":""},{"$f":"IF('Generated list'!C249=\"\",\"\",'Generated list'!C249)","v":""},{"$f":"IF('Generated list'!D249=\"\",\"\",'Generated list'!D249)","v":""}]
[null,{"$f":"IF('Generated list'!B250=\"\",\"\",'Generated list'!B250)","v":""},{"$f":"IF('Generated list'!C250=\"\",\"\",'Generated list'!C250)","v":""},{"$f":"IF('Generated list'!D250=\"\",\"\",'Generated list'!D250)","v":""}]
[null,{"$f":"IF('Generated list'!B251=\"\",\"\",'Generated list'!B251)","v":""},{"$f":"IF('Generated list'!C251=\"\",\"\",'Generated list'!C251)","v":""},{"$f":"IF('Generated list'!D251=\"\",\"\",'Generated list'!D251)","v":""}]
[null,{"$f":"IF('Generated list'!B252=\"\",\"\",'Generated list'!B252)","v":""},{"$f":"IF('Generated list'!C252=\"\",\"\",'Generated list'!C252)","v":""},{"$f":"IF('Generated list'!D252=\"\",\"\",'Generated list'!D252)","v":""}]
[null,{"$f":"IF('Generated list'!B253=\"\",\"\",'Generated list'!B253)","v":""},{"$f":"IF('Generated list'!C253=\"\",\"\",'Generated list'!C253)","v":""},{"$f":"IF('Generated list'!D253=\"\",\"\",'Generated list'!D253)","v":""}]
[null,{"$f":"IF('Generated list'!B254=\"\",\"\",'Generated list'!B254)","v":""},{"$f":"IF('Generated list'!C254=\"\",\"\",'Generated list'!C254)","v":""},{"$f":"IF('Generated list'!D254=\"\",\"\",'Generated list'!D254)","v":""}]
[null,{"$f":"IF('Generated list'!B255=\"\",\"\",'Generated list'!B255)","v":""},{"$f":"IF('Generated list'!C255=\"\",\"\",'Generated list'!C255)","v":""},{"$f":"IF('Generated list'!D255=\"\",\"\",'Generated list'!D255)","v":""}]
[null,{"$f":"IF('Generated list'!B256=\"\",\"\",'Generated list'!B256)","v":""},{"$f":"IF('Generated list'!C256=\"\",\"\",'Generated list'!C256)","v":""},{"$f":"IF('Generated list'!D256=\"\",\"\",'Generated list'!D256)","v":""}]
[null,{"$f":"IF('Generated list'!B257=\"\",\"\",'Generated list'!B257)","v":""},{"$f":"IF('Generated list'!C257=\"\",\"\",'Generated list'!C257)","v":""},{"$f":"IF('Generated list'!D257=\"\",\"\",'Generated list'!D257)","v":""}]
[null,{"$f":"IF('Generated list'!B258=\"\",\"\",'Generated list'!B258)","v":""},{"$f":"IF('Generated list'!C258=\"\",\"\",'Generated list'!C258)","v":""},{"$f":"IF('Generated list'!D258=\"\",\"\",'Generated list'!D258)","v":""}]
[null,{"$f":"IF('Generated list'!B259=\"\",\"\",'Generated list'!B259)","v":""},{"$f":"IF('Generated list'!C259=\"\",\"\",'Generated list'!C259)","v":""},{"$f":"IF('Generated list'!D259=\"\",\"\",'Generated list'!D259)","v":""}]
[null,{"$f":"IF('Generated list'!B260=\"\",\"\",'Generated list'!B260)","v":""},{"$f":"IF('Generated list'!C260=\"\",\"\",'Generated list'!C260)","v":""},{"$f":"IF('Generated list'!D260=\"\",\"\",'Generated list'!D260)","v":""}]
[null,{"$f":"IF('Generated list'!B261=\"\",\"\",'Generated list'!B261)","v":""},{"$f":"IF('Generated list'!C261=\"\",\"\",'Generated list'!C261)","v":""},{"$f":"IF('Generated list'!D261=\"\",\"\",'Generated list'!D261)","v":""}]
[null,{"$f":"IF('Generated list'!B262=\"\",\"\",'Generated list'!B262)","v":""},{"$f":"IF('Generated list'!C262=\"\",\"\",'Generated list'!C262)","v":""},{"$f":"IF('Generated list'!D262=\"\",\"\",'Generated list'!D262)","v":""}]
[null,{"$f":"IF('Generated list'!B263=\"\",\"\",'Generated list'!B263)","v":""},{"$f":"IF('Generated list'!C263=\"\",\"\",'Generated list'!C263)","v":""},{"$f":"IF('Generated list'!D263=\"\",\"\",'Generated list'!D263)","v":""}]
[null,{"$f":"IF('Generated list'!B264=\"\",\"\",'Generated list'!B264)","v":""},{"$f":"IF('Generated list'!C264=\"\",\"\",'Generated list'!C264)","v":""},{"$f":"IF('Generated list'!D264=\"\",\"\",'Generated list'!D264)","v":""}]
[null,{"$f":"IF('Generated list'!B265=\"\",\"\",'Generated list'!B265)","v":""},{"$f":"IF('Generated list'!C265=\"\",\"\",'Generated list'!C265)","v":""},{"$f":"IF('Generated list'!D265=\"\",\"\",'Generated list'!D265)","v":""}]
[null,{"$f":"IF('Generated list'!B266=\"\",\"\",'Generated list'!B266)","v":""},{"$f":"IF('Generated list'!C266=\"\",\"\",'Generated list'!C266)","v":""},{"$f":"IF('Generated list'!D266=\"\",\"\",'Generated list'!D266)","v":""}]
[null,{"$f":"IF('Generated list'!B267=\"\",\"\",'Generated list'!B267)","v":""},{"$f":"IF('Generated list'!C267=\"\",\"\",'Generated list'!C267)","v":""},{"$f":"IF('Generated list'!D267=\"\",\"\",'Generated list'!D267)","v":""}]
[null,{"$f":"IF('Generated list'!B268=\"\",\"\",'Generated list'!B268)","v":""},{"$f":"IF('Generated list'!C268=\"\",\"\",'Generated list'!C268)","v":""},{"$f":"IF('Generated list'!D268=\"\",\"\",'Generated list'!D268)","v":""}]
[null,{"$f":"IF('Generated list'!B269=\"\",\"\",'Generated list'!B269)","v":""},{"$f":"IF('Generated list'!C269=\"\",\"\",'Generated list'!C269)","v":""},{"$f":"IF('Generated list'!D269=\"\",\"\",'Generated list'!D269)","v":""}]
[null,{"$f":"IF('Generated list'!B270=\"\",\"\",'Generated list'!B270)","v":""},{"$f":"IF('Generated list'!C270=\"\",\"\",'Generated list'!C270)","v":""},{"$f":"IF('Generated list'!D270=\"\",\"\",'Generated list'!D270)","v":""}]
[null,{"$f":"IF('Generated list'!B271=\"\",\"\",'Generated list'!B271)","v":""},{"$f":"IF('Generated list'!C271=\"\",\"\",'Generated list'!C271)","v":""},{"$f":"IF('Generated list'!D271=\"\",\"\",'Generated list'!D271)","v":""}]
[null,{"$f":"IF('Generated list'!B272=\"\",\"\",'Generated list'!B272)","v":""},{"$f":"IF('Generated list'!C272=\"\",\"\",'Generated list'!C272)","v":""},{"$f":"IF('Generated list'!D272=\"\",\"\",'Generated list'!D272)","v":""}]
[null,{"$f":"IF('Generated list'!B273=\"\",\"\",'Generated list'!B273)","v":""},{"$f":"IF('Generated list'!C273=\"\",\"\",'Generated list'!C273)","v":""},{"$f":"IF('Generated list'!D273=\"\",\"\",'Generated list'!D273)","v":""}]
[null,{"$f":"IF('Generated list'!B274=\"\",\"\",'Generated list'!B274)","v":""},{"$f":"IF('Generated list'!C274=\"\",\"\",'Generated list'!C274)","v":""},{"$f":"IF('Generated list'!D274=\"\",\"\",'Generated list'!D274)","v":""}]
[null,{"$f":"IF('Generated list'!B275=\"\",\"\",'Generated list'!B275)","v":""},{"$f":"IF('Generated list'!C275=\"\",\"\",'Generated list'!C275)","v":""},{"$f":"IF('Generated list'!D275=\"\",\"\",'Generated list'!D275)","v":""}]
[null,{"$f":"IF('Generated list'!B276=\"\",\"\",'Generated list'!B276)","v":""},{"$f":"IF('Generated list'!C276=\"\",\"\",'Generated list'!C276)","v":""},{"$f":"IF('Generated list'!D276=\"\",\"\",'Generated list'!D276)","v":""}]
[null,{"$f":"IF('Generated list'!B277=\"\",\"\",'Generated list'!B277)","v":""},{"$f":"IF('Generated list'!C277=\"\",\"\",'Generated list'!C277)","v":""},{"$f":"IF('Generated list'!D277=\"\",\"\",'Generated list'!D277)","v":""}]
[null,{"$f":"IF('Generated list'!B278=\"\",\"\",'Generated list'!B278)","v":""},{"$f":"IF('Generated list'!C278=\"\",\"\",'Generated list'!C278)","v":""},{"$f":"IF('Generated list'!D278=\"\",\"\",'Generated list'!D278)","v":""}]
[null,{"$f":"IF('Generated list'!B279=\"\",\"\",'Generated list'!B279)","v":""},{"$f":"IF('Generated list'!C279=\"\",\"\",'Generated list'!C279)","v":""},{"$f":"IF('Generated list'!D279=\"\",\"\",'Generated list'!D279)","v":""}]
[null,{"$f":"IF('Generated list'!B280=\"\",\"\",'Generated list'!B280)","v":""},{"$f":"IF('Generated list'!C280=\"\",\"\",'Generated list'!C280)","v":""},{"$f":"IF('Generated list'!D280=\"\",\"\",'Generated list'!D280)","v":""}]
[null,{"$f":"IF('Generated list'!B281=\"\",\"\",'Generated list'!B281)","v":""},{"$f":"IF('Generated list'!C281=\"\",\"\",'Generated list'!C281)","v":""},{"$f":"IF('Generated list'!D281=\"\",\"\",'Generated list'!D281)","v":""}]
[null,{"$f":"IF('Generated list'!B282=\"\",\"\",'Generated list'!B282)","v":""},{"$f":"IF('Generated list'!C282=\"\",\"\",'Generated list'!C282)","v":""},{"$f":"IF('Generated list'!D282=\"\",\"\",'Generated list'!D282)","v":""}]
[null,{"$f":"IF('Generated list'!B283=\"\",\"\",'Generated list'!B283)","v":""},{"$f":"IF('Generated list'!C283=\"\",\"\",'Generated list'!C283)","v":""},{"$f":"IF('Generated list'!D283=\"\",\"\",'Generated list'!D283)","v":""}]
[null,{"$f":"IF('Generated list'!B284=\"\",\"\",'Generated list'!B284)","v":""},{"$f":"IF('Generated list'!C284=\"\",\"\",'Generated list'!C284)","v":""},{"$f":"IF('Generated list'!D284=\"\",\"\",'Generated list'!D284)","v":""}]
[null,{"$f":"IF('Generated list'!B285=\"\",\"\",'Generated list'!B285)","v":""},{"$f":"IF('Generated list'!C285=\"\",\"\",'Generated list'!C285)","v":""},{"$f":"IF('Generated list'!D285=\"\",\"\",'Generated list'!D285)","v":""}]
[null,{"$f":"IF('Generated list'!B286=\"\",\"\",'Generated list'!B286)","v":""},{"$f":"IF('Generated list'!C286=\"\",\"\",'Generated list'!C286)","v":""},{"$f":"IF('Generated list'!D286=\"\",\"\",'Generated list'!D286)","v":""}]
[null,{"$f":"IF('Generated list'!B287=\"\",\"\",'Generated list'!B287)","v":""},{"$f":"IF('Generated list'!C287=\"\",\"\",'Generated list'!C287)","v":""},{"$f":"IF('Generated list'!D287=\"\",\"\",'Generated list'!D287)","v":""}]
[null,{"$f":"IF('Generated list'!B288=\"\",\"\",'Generated list'!B288)","v":""},{"$f":"IF('Generated list'!C288=\"\",\"\",'Generated list'!C288)","v":""},{"$f":"IF('Generated list'!D288=\"\",\"\",'Generated list'!D288)","v":""}]
[null,{"$f":"IF('Generated list'!B289=\"\",\"\",'Generated list'!B289)","v":""},{"$f":"IF('Generated list'!C289=\"\",\"\",'Generated list'!C289)","v":""},{"$f":"IF('Generated list'!D289=\"\",\"\",'Generated list'!D289)","v":""}]
[null,{"$f":"IF('Generated list'!B290=\"\",\"\",'Generated list'!B290)","v":""},{"$f":"IF('Generated list'!C290=\"\",\"\",'Generated list'!C290)","v":""},{"$f":"IF('Generated list'!D290=\"\",\"\",'Generated list'!D290)","v":""}]
[null,{"$f":"IF('Generated list'!B291=\"\",\"\",'Generated list'!B291)","v":""},{"$f":"IF('Generated list'!C291=\"\",\"\",'Generated list'!C291)","v":""},{"$f":"IF('Generated list'!D291=\"\",\"\",'Generated list'!D291)","v":""}]
[null,{"$f":"IF('Generated list'!B292=\"\",\"\",'Generated list'!B292)","v":""},{"$f":"IF('Generated list'!C292=\"\",\"\",'Generated list'!C292)","v":""},{"$f":"IF('Generated list'!D292=\"\",\"\",'Generated list'!D292)","v":""}]
[null,{"$f":"IF('Generated list'!B293=\"\",\"\",'Generated list'!B293)","v":""},{"$f":"IF('Generated list'!C293=\"\",\"\",'Generated list'!C293)","v":""},{"$f":"IF('Generated list'!D293=\"\",\"\",'Generated list'!D293)","v":""}]
[null,{"$f":"IF('Generated list'!B294=\"\",\"\",'Generated list'!B294)","v":""},{"$f":"IF('Generated list'!C294=\"\",\"\",'Generated list'!C294)","v":""},{"$f":"IF('Generated list'!D294=\"\",\"\",'Generated list'!D294)","v":""}]
[null,{"$f":"IF('Generated list'!B295=\"\",\"\",'Generated list'!B295)","v":""},{"$f":"IF('Generated list'!C295=\"\",\"\",'Generated list'!C295)","v":""},{"$f":"IF('Generated list'!D295=\"\",\"\",'Generated list'!D295)","v":""}]
[null,{"$f":"IF('Generated list'!B296=\"\",\"\",'Generated list'!B296)","v":""},{"$f":"IF('Generated list'!C296=\"\",\"\",'Generated list'!C296)","v":""},{"$f":"IF('Generated list'!D296=\"\",\"\",'Generated list'!D296)","v":""}]
[null,{"$f":"IF('Generated list'!B297=\"\",\"\",'Generated list'!B297)","v":""},{"$f":"IF('Generated list'!C297=\"\",\"\",'Generated list'!C297)","v":""},{"$f":"IF('Generated list'!D297=\"\",\"\",'Generated list'!D297)","v":""}]
[null,{"$f":"IF('Generated list'!B298=\"\",\"\",'Generated list'!B298)","v":""},{"$f":"IF('Generated list'!C298=\"\",\"\",'Generated list'!C298)","v":""},{"$f":"IF('Generated list'!D298=\"\",\"\",'Generated list'!D298)","v":""}]
[null,{"$f":"IF('Generated list'!B299=\"\",\"\",'Generated list'!B299)","v":""},{"$f":"IF('Generated list'!C299=\"\",\"\",'Generated list'!C299)","v":""},{"$f":"IF('Generated list'!D299=\"\",\"\",'Generated list'!D299)","v":""}]
[null,{"$f":"IF('Generated list'!B300=\"\",\"\",'Generated list'!B300)","v":""},{"$f":"IF('Generated list'!C300=\"\",\"\",'Generated list'!C300)","v":""},{"$f":"IF('Generated list'!D300=\"\",\"\",'Generated list'!D300)","v":""}]
[null,{"$f":"IF('Generated list'!B301=\"\",\"\",'Generated list'!B301)","v":""},{"$f":"IF('Generated list'!C301=\"\",\"\",'Generated list'!C301)","v":""},{"$f":"IF('Generated list'!D301=\"\",\"\",'Generated list'!D301)","v":""}]
[null,{"$f":"IF('Generated list'!B302=\"\",\"\",'Generated list'!B302)","v":""},{"$f":"IF('Generated list'!C302=\"\",\"\",'Generated list'!C302)","v":""},{"$f":"IF('Generated list'!D302=\"\",\"\",'Generated list'!D302)","v":""}]
[null,{"$f":"IF('Generated list'!B303=\"\",\"\",'Generated list'!B303)","v":""},{"$f":"IF('Generated list'!C303=\"\",\"\",'Generated list'!C303)","v":""},{"$f":"IF('Generated list'!D303=\"\",\"\",'Generated list'!D303)","v":""}]
[null,{"$f":"IF('Generated list'!B304=\"\",\"\",'Generated list'!B304)","v":""},{"$f":"IF('Generated list'!C304=\"\",\"\",'Generated list'!C304)","v":""},{"$f":"IF('Generated list'!D304=\"\",\"\",'Generated list'!D304)","v":""}]
[null,{"$f":"IF('Generated list'!B305=\"\",\"\",'Generated list'!B305)","v":""},{"$f":"IF('Generated list'!C305=\"\",\"\",'Generated list'!C305)","v":""},{"$f":"IF('Generated list'!D305=\"\",\"\",'Generated list'!D305)","v":""}]
[null,{"$f":"IF('Generated list'!B306=\"\",\"\",'Generated list'!B306)","v":""},{"$f":"IF('Generated list'!C306=\"\",\"\",'Generated list'!C306)","v":""},{"$f":"IF('Generated list'!D306=\"\",\"\",'Generated list'!D306)","v":""}]
[null,{"$f":"IF('Generated list'!B307=\"\",\"\",'Generated list'!B307)","v":""},{"$f":"IF('Generated list'!C307=\"\",\"\",'Generated list'!C307)","v":""},{"$f":"IF('Generated list'!D307=\"\",\"\",'Generated list'!D307)","v":""}]
[null,{"$f":"IF('Generated list'!B308=\"\",\"\",'Generated list'!B308)","v":""},{"$f":"IF('Generated list'!C308=\"\",\"\",'Generated list'!C308)","v":""},{"$f":"IF('Generated list'!D308=\"\",\"\",'Generated list'!D308)","v":""}]
[null,{"$f":"IF('Generated list'!B309=\"\",\"\",'Generated list'!B309)","v":""},{"$f":"IF('Generated list'!C309=\"\",\"\",'Generated list'!C309)","v":""},{"$f":"IF('Generated list'!D309=\"\",\"\",'Generated list'!D309)","v":""}]
[null,{"$f":"IF('Generated list'!B310=\"\",\"\",'Generated list'!B310)","v":""},{"$f":"IF('Generated list'!C310=\"\",\"\",'Generated list'!C310)","v":""},{"$f":"IF('Generated list'!D310=\"\",\"\",'Generated list'!D310)","v":""}]
[null,{"$f":"IF('Generated list'!B311=\"\",\"\",'Generated list'!B311)","v":""},{"$f":"IF('Generated list'!C311=\"\",\"\",'Generated list'!C311)","v":""},{"$f":"IF('Generated list'!D311=\"\",\"\",'Generated list'!D311)","v":""}]
[null,{"$f":"IF('Generated list'!B312=\"\",\"\",'Generated list'!B312)","v":""},{"$f":"IF('Generated list'!C312=\"\",\"\",'Generated list'!C312)","v":""},{"$f":"IF('Generated list'!D312=\"\",\"\",'Generated list'!D312)","v":""}]
[null,{"$f":"IF('Generated list'!B313=\"\",\"\",'Generated list'!B313)","v":""},{"$f":"IF('Generated list'!C313=\"\",\"\",'Generated list'!C313)","v":""},{"$f":"IF('Generated list'!D313=\"\",\"\",'Generated list'!D313)","v":""}]
[null,{"$f":"IF('Generated list'!B314=\"\",\"\",'Generated list'!B314)","v":""},{"$f":"IF('Generated list'!C314=\"\",\"\",'Generated list'!C314)","v":""},{"$f":"IF('Generated list'!D314=\"\",\"\",'Generated list'!D314)","v":""}]
[null,{"$f":"IF('Generated list'!B315=\"\",\"\",'Generated list'!B315)","v":""},{"$f":"IF('Generated list'!C315=\"\",\"\",'Generated list'!C315)","v":""},{"$f":"IF('Generated list'!D315=\"\",\"\",'Generated list'!D315)","v":""}]
[null,{"$f":"IF('Generated list'!B316=\"\",\"\",'Generated list'!B316)","v":""},{"$f":"IF('Generated list'!C316=\"\",\"\",'Generated list'!C316)","v":""},{"$f":"IF('Generated list'!D316=\"\",\"\",'Generated list'!D316)","v":""}]
[null,{"$f":"IF('Generated list'!B317=\"\",\"\",'Generated list'!B317)","v":""},{"$f":"IF('Generated list'!C317=\"\",\"\",'Generated list'!C317)","v":""},{"$f":"IF('Generated list'!D317=\"\",\"\",'Generated list'!D317)","v":""}]
[null,{"$f":"IF('Generated list'!B318=\"\",\"\",'Generated list'!B318)","v":""},{"$f":"IF('Generated list'!C318=\"\",\"\",'Generated list'!C318)","v":""},{"$f":"IF('Generated list'!D318=\"\",\"\",'Generated list'!D318)","v":""}]
[null,{"$f":"IF('Generated list'!B319=\"\",\"\",'Generated list'!B319)","v":""},{"$f":"IF('Generated list'!C319=\"\",\"\",'Generated list'!C319)","v":""},{"$f":"IF('Generated list'!D319=\"\",\"\",'Generated list'!D319)","v":""}]
[null,{"$f":"IF('Generated list'!B320=\"\",\"\",'Generated list'!B320)","v":""},{"$f":"IF('Generated list'!C320=\"\",\"\",'Generated list'!C320)","v":""},{"$f":"IF('Generated list'!D320=\"\",\"\",'Generated list'!D320)","v":""}]
[null,{"$f":"IF('Generated list'!B321=\"\",\"\",'Generated list'!B321)","v":""},{"$f":"IF('Generated list'!C321=\"\",\"\",'Generated list'!C321)","v":""},{"$f":"IF('Generated list'!D321=\"\",\"\",'Generated list'!D321)","v":""}]
[null,{"$f":"IF('Generated list'!B322=\"\",\"\",'Generated list'!B322)","v":""},{"$f":"IF('Generated list'!C322=\"\",\"\",'Generated list'!C322)","v":""},{"$f":"IF('Generated list'!D322=\"\",\"\",'Generated list'!D322)","v":""}]
[null,{"$f":"IF('Generated list'!B323=\"\",\"\",'Generated list'!B323)","v":""},{"$f":"IF('Generated list'!C323=\"\",\"\",'Generated list'!C323)","v":""},{"$f":"IF('Generated list'!D323=\"\",\"\",'Generated list'!D323)","v":""}]
[null,{"$f":"IF('Generated list'!B324=\"\",\"\",'Generated list'!B324)","v":""},{"$f":"IF('Generated list'!C324=\"\",\"\",'Generated list'!C324)","v":""},{"$f":"IF('Generated list'!D324=\"\",\"\",'Generated list'!D324)","v":""}]
[null,{"$f":"IF('Generated list'!B325=\"\",\"\",'Generated list'!B325)","v":""},{"$f":"IF('Generated list'!C325=\"\",\"\",'Generated list'!C325)","v":""},{"$f":"IF('Generated list'!D325=\"\",\"\",'Generated list'!D325)","v":""}]
[null,{"$f":"IF('Generated list'!B326=\"\",\"\",'Generated list'!B326)","v":""},{"$f":"IF('Generated list'!C326=\"\",\"\",'Generated list'!C326)","v":""},{"$f":"IF('Generated list'!D326=\"\",\"\",'Generated list'!D326)","v":""}]
[null,{"$f":"IF('Generated list'!B327=\"\",\"\",'Generated list'!B327)","v":""},{"$f":"IF('Generated list'!C327=\"\",\"\",'Generated list'!C327)","v":""},{"$f":"IF('Generated list'!D327=\"\",\"\",'Generated list'!D327)","v":""}]
[null,{"$f":"IF('Generated list'!B328=\"\",\"\",'Generated list'!B328)","v":""},{"$f":"IF('Generated list'!C328=\"\",\"\",'Generated list'!C328)","v":""},{"$f":"IF('Generated list'!D328=\"\",\"\",'Generated list'!D328)","v":""}]
[null,{"$f":"IF('Generated list'!B329=\"\",\"\",'Generated list'!B329)","v":""},{"$f":"IF('Generated list'!C329=\"\",\"\",'Generated list'!C329)","v":""},{"$f":"IF('Generated list'!D329=\"\",\"\",'Generated list'!D329)","v":""}]
[null,{"$f":"IF('Generated list'!B330=\"\",\"\",'Generated list'!B330)","v":""},{"$f":"IF('Generated list'!C330=\"\",\"\",'Generated list'!C330)","v":""},{"$f":"IF('Generated list'!D330=\"\",\"\",'Generated list'!D330)","v":""}]
[null,{"$f":"IF('Generated list'!B331=\"\",\"\",'Generated list'!B331)","v":""},{"$f":"IF('Generated list'!C331=\"\",\"\",'Generated list'!C331)","v":""},{"$f":"IF('Generated list'!D331=\"\",\"\",'Generated list'!D331)","v":""}]
[null,{"$f":"IF('Generated list'!B332=\"\",\"\",'Generated list'!B332)","v":""},{"$f":"IF('Generated list'!C332=\"\",\"\",'Generated list'!C332)","v":""},{"$f":"IF('Generated list'!D332=\"\",\"\",'Generated list'!D332)","v":""}]
[null,{"$f":"IF('Generated list'!B333=\"\",\"\",'Generated list'!B333)","v":""},{"$f":"IF('Generated list'!C333=\"\",\"\",'Generated list'!C333)","v":""},{"$f":"IF('Generated list'!D333=\"\",\"\",'Generated list'!D333)","v":""}]
[null,{"$f":"IF('Generated list'!B334=\"\",\"\",'Generated list'!B334)","v":""},{"$f":"IF('Generated list'!C334=\"\",\"\",'Generated list'!C334)","v":""},{"$f":"IF('Generated list'!D334=\"\",\"\",'Generated list'!D334)","v":""}]
[null,{"$f":"IF('Generated list'!B335=\"\",\"\",'Generated list'!B335)","v":""},{"$f":"IF('Generated list'!C335=\"\",\"\",'Generated list'!C335)","v":""},{"$f":"IF('Generated list'!D335=\"\",\"\",'Generated list'!D335)","v":""}]
[null,{"$f":"IF('Generated list'!B336=\"\",\"\",'Generated list'!B336)","v":""},{"$f":"IF('Generated list'!C336=\"\",\"\",'Generated list'!C336)","v":""},{"$f":"IF('Generated list'!D336=\"\",\"\",'Generated list'!D336)","v":""}]
[null,{"$f":"IF('Generated list'!B337=\"\",\"\",'Generated list'!B337)","v":""},{"$f":"IF('Generated list'!C337=\"\",\"\",'Generated list'!C337)","v":""},{"$f":"IF('Generated list'!D337=\"\",\"\",'Generated list'!D337)","v":""}]
[null,{"$f":"IF('Generated list'!B338=\"\",\"\",'Generated list'!B338)","v":""},{"$f":"IF('Generated list'!C338=\"\",\"\",'Generated list'!C338)","v":""},{"$f":"IF('Generated list'!D338=\"\",\"\",'Generated list'!D338)","v":""}]
[null,{"$f":"IF('Generated list'!B339=\"\",\"\",'Generated list'!B339)","v":""},{"$f":"IF('Generated list'!C339=\"\",\"\",'Generated list'!C339)","v":""},{"$f":"IF('Generated list'!D339=\"\",\"\",'Generated list'!D339)","v":""}]
[null,{"$f":"IF('Generated list'!B340=\"\",\"\",'Generated list'!B340)","v":""},{"$f":"IF('Generated list'!C340=\"\",\"\",'Generated list'!C340)","v":""},{"$f":"IF('Generated list'!D340=\"\",\"\",'Generated list'!D340)","v":""}]
[null,{"$f":"IF('Generated list'!B341=\"\",\"\",'Generated list'!B341)","v":""},{"$f":"IF('Generated list'!C341=\"\",\"\",'Generated list'!C341)","v":""},{"$f":"IF('Generated list'!D341=\"\",\"\",'Generated list'!D341)","v":""}]
[null,{"$f":"IF('Generated list'!B342=\"\",\"\",'Generated list'!B342)","v":""},{"$f":"IF('Generated list'!C342=\"\",\"\",'Generated list'!C342)","v":""},{"$f":"IF('Generated list'!D342=\"\",\"\",'Generated list'!D342)","v":""}]
[null,{"$f":"IF('Generated list'!B343=\"\",\"\",'Generated list'!B343)","v":""},{"$f":"IF('Generated list'!C343=\"\",\"\",'Generated list'!C343)","v":""},{"$f":"IF('Generated list'!D343=\"\",\"\",'Generated list'!D343)","v":""}]
[null,{"$f":"IF('Generated list'!B344=\"\",\"\",'Generated list'!B344)","v":""},{"$f":"IF('Generated list'!C344=\"\",\"\",'Generated list'!C344)","v":""},{"$f":"IF('Generated list'!D344=\"\",\"\",'Generated list'!D344)","v":""}]
[null,{"$f":"IF('Generated list'!B345=\"\",\"\",'Generated list'!B345)","v":""},{"$f":"IF('Generated list'!C345=\"\",\"\",'Generated list'!C345)","v":""},{"$f":"IF('Generated list'!D345=\"\",\"\",'Generated list'!D345)","v":""}]
[null,{"$f":"IF('Generated list'!B346=\"\",\"\",'Generated list'!B346)","v":""},{"$f":"IF('Generated list'!C346=\"\",\"\",'Generated list'!C346)","v":""},{"$f":"IF('Generated list'!D346=\"\",\"\",'Generated list'!D346)","v":""}]
[null,{"$f":"IF('Generated list'!B347=\"\",\"\",'Generated list'!B347)","v":""},{"$f":"IF('Generated list'!C347=\"\",\"\",'Generated list'!C347)","v":""},{"$f":"IF('Generated list'!D347=\"\",\"\",'Generated list'!D347)","v":""}]
[null,{"$f":"IF('Generated list'!B348=\"\",\"\",'Generated list'!B348)","v":""},{"$f":"IF('Generated list'!C348=\"\",\"\",'Generated list'!C348)","v":""},{"$f":"IF('Generated list'!D348=\"\",\"\",'Generated list'!D348)","v":""}]
[null,{"$f":"IF('Generated list'!B349=\"\",\"\",'Generated list'!B349)","v":""},{"$f":"IF('Generated list'!C349=\"\",\"\",'Generated list'!C349)","v":""},{"$f":"IF('Generated list'!D349=\"\",\"\",'Generated list'!D349)","v":""}]
[null,{"$f":"IF('Generated list'!B350=\"\",\"\",'Generated list'!B350)","v":""},{"$f":"IF('Generated list'!C350=\"\",\"\",'Generated list'!C350)","v":""},{"$f":"IF('Generated list'!D350=\"\",\"\",'Generated list'!D350)","v":""}]
[null,{"$f":"IF('Generated list'!B351=\"\",\"\",'Generated list'!B351)","v":""},{"$f":"IF('Generated list'!C351=\"\",\"\",'Generated list'!C351)","v":""},{"$f":"IF('Generated list'!D351=\"\",\"\",'Generated list'!D351)","v":""}]
[null,{"$f":"IF('Generated list'!B352=\"\",\"\",'Generated list'!B352)","v":""},{"$f":"IF('Generated list'!C352=\"\",\"\",'Generated list'!C352)","v":""},{"$f":"IF('Generated list'!D352=\"\",\"\",'Generated list'!D352)","v":""}]
[null,{"$f":"IF('Generated list'!B353=\"\",\"\",'Generated list'!B353)","v":""},{"$f":"IF('Generated list'!C353=\"\",\"\",'Generated list'!C353)","v":""},{"$f":"IF('Generated list'!D353=\"\",\"\",'Generated list'!D353)","v":""}]
[null,{"$f":"IF('Generated list'!B354=\"\",\"\",'Generated list'!B354)","v":""},{"$f":"IF('Generated list'!C354=\"\",\"\",'Generated list'!C354)","v":""},{"$f":"IF('Generated list'!D354=\"\",\"\",'Generated list'!D354)","v":""}]
[null,{"$f":"IF('Generated list'!B355=\"\",\"\",'Generated list'!B355)","v":""},{"$f":"IF('Generated list'!C355=\"\",\"\",'Generated list'!C355)","v":""},{"$f":"IF('Generated list'!D355=\"\",\"\",'Generated list'!D355)","v":""}]
[null,{"$f":"IF('Generated list'!B356=\"\",\"\",'Generated list'!B356)","v":""},{"$f":"IF('Generated list'!C356=\"\",\"\",'Generated list'!C356)","v":""},{"$f":"IF('Generated list'!D356=\"\",\"\",'Generated list'!D356)","v":""}]
[null,{"$f":"IF('Generated list'!B357=\"\",\"\",'Generated list'!B357)","v":""},{"$f":"IF('Generated list'!C357=\"\",\"\",'Generated list'!C357)","v":""},{"$f":"IF('Generated list'!D357=\"\",\"\",'Generated list'!D357)","v":""}]
[null,{"$f":"IF('Generated list'!B358=\"\",\"\",'Generated list'!B358)","v":""},{"$f":"IF('Generated list'!C358=\"\",\"\",'Generated list'!C358)","v":""},{"$f":"IF('Generated list'!D358=\"\",\"\",'Generated list'!D358)","v":""}]
[null,{"$f":"IF('Generated list'!B359=\"\",\"\",'Generated list'!B359)","v":""},{"$f":"IF('Generated list'!C359=\"\",\"\",'Generated list'!C359)","v":""},{"$f":"IF('Generated list'!D359=\"\",\"\",'Generated list'!D359)","v":""}]
[null,{"$f":"IF('Generated list'!B360=\"\",\"\",'Generated list'!B360)","v":""},{"$f":"IF('Generated list'!C360=\"\",\"\",'Generated list'!C360)","v":""},{"$f":"IF('Generated list'!D360=\"\",\"\",'Generated list'!D360)","v":""}]
[null,{"$f":"IF('Generated list'!B361=\"\",\"\",'Generated list'!B361)","v":""},{"$f":"IF('Generated list'!C361=\"\",\"\",'Generated list'!C361)","v":""},{"$f":"IF('Generated list'!D361=\"\",\"\",'Generated list'!D361)","v":""}]
[null,{"$f":"IF('Generated list'!B362=\"\",\"\",'Generated list'!B362)","v":""},{"$f":"IF('Generated list'!C362=\"\",\"\",'Generated list'!C362)","v":""},{"$f":"IF('Generated list'!D362=\"\",\"\",'Generated list'!D362)","v":""}]
[null,{"$f":"IF('Generated list'!B363=\"\",\"\",'Generated list'!B363)","v":""},{"$f":"IF('Generated list'!C363=\"\",\"\",'Generated list'!C363)","v":""},{"$f":"IF('Generated list'!D363=\"\",\"\",'Generated list'!D363)","v":""}]
[null,{"$f":"IF('Generated list'!B364=\"\",\"\",'Generated list'!B364)","v":""},{"$f":"IF('Generated list'!C364=\"\",\"\",'Generated list'!C364)","v":""},{"$f":"IF('Generated list'!D364=\"\",\"\",'Generated list'!D364)","v":""}]
[null,{"$f":"IF('Generated list'!B365=\"\",\"\",'Generated list'!B365)","v":""},{"$f":"IF('Generated list'!C365=\"\",\"\",'Generated list'!C365)","v":""},{"$f":"IF('Generated list'!D365=\"\",\"\",'Generated list'!D365)","v":""}]
[null,{"$f":"IF('Generated list'!B366=\"\",\"\",'Generated list'!B366)","v":""},{"$f":"IF('Generated list'!C366=\"\",\"\",'Generated list'!C366)","v":""},{"$f":"IF('Generated list'!D366=\"\",\"\",'Generated list'!D366)","v":""}]
[null,{"$f":"IF('Generated list'!B367=\"\",\"\",'Generated list'!B367)","v":""},{"$f":"IF('Generated list'!C367=\"\",\"\",'Generated list'!C367)","v":""},{"$f":"IF('Generated list'!D367=\"\",\"\",'Generated list'!D367)","v":""}]
[null,{"$f":"IF('Generated list'!B368=\"\",\"\",'Generated list'!B368)","v":""},{"$f":"IF('Generated list'!C368=\"\",\"\",'Generated list'!C368)","v":""},{"$f":"IF('Generated list'!D368=\"\",\"\",'Generated list'!D368)","v":""}]
[null,{"$f":"IF('Generated list'!B369=\"\",\"\",'Generated list'!B369)","v":""},{"$f":"IF('Generated list'!C369=\"\",\"\",'Generated list'!C369)","v":""},{"$f":"IF('Generated list'!D369=\"\",\"\",'Generated list'!D369)","v":""}]
[null,{"$f":"IF('Generated list'!B370=\"\",\"\",'Generated list'!B370)","v":""},{"$f":"IF('Generated list'!C370=\"\",\"\",'Generated list'!C370)","v":""},{"$f":"IF('Generated list'!D370=\"\",\"\",'Generated list'!D370)","v":""}]
[null,{"$f":"IF('Generated list'!B371=\"\",\"\",'Generated list'!B371)","v":""},{"$f":"IF('Generated list'!C371=\"\",\"\",'Generated list'!C371)","v":""},{"$f":"IF('Generated list'!D371=\"\",\"\",'Generated list'!D371)","v":""}]
[null,{"$f":"IF('Generated list'!B372=\"\",\"\",'Generated list'!B372)","v":""},{"$f":"IF('Generated list'!C372=\"\",\"\",'Generated list'!C372)","v":""},{"$f":"IF('Generated list'!D372=\"\",\"\",'Generated list'!D372)","v":""}]
[null,{"$f":"IF('Generated list'!B373=\"\",\"\",'Generated list'!B373)","v":""},{"$f":"IF('Generated list'!C373=\"\",\"\",'Generated list'!C373)","v":""},{"$f":"IF('Generated list'!D373=\"\",\"\",'Generated list'!D373)","v":""}]
[null,{"$f":"IF('Generated list'!B374=\"\",\"\",'Generated list'!B374)","v":""},{"$f":"IF('Generated list'!C374=\"\",\"\",'Generated list'!C374)","v":""},{"$f":"IF('Generated list'!D374=\"\",\"\",'Generated list'!D374)","v":""}]
[null,{"$f":"IF('Generated list'!B375=\"\",\"\",'Generated list'!B375)","v":""},{"$f":"IF('Generated list'!C375=\"\",\"\",'Generated list'!C375)","v":""},{"$f":"IF('Generated list'!D375=\"\",\"\",'Generated list'!D375)","v":""}]
[null,{"$f":"IF('Generated list'!B376=\"\",\"\",'Generated list'!B376)","v":""},{"$f":"IF('Generated list'!C376=\"\",\"\",'Generated list'!C376)","v":""},{"$f":"IF('Generated list'!D376=\"\",\"\",'Generated list'!D376)","v":""}]
[null,{"$f":"IF('Generated list'!B377=\"\",\"\",'Generated list'!B377)","v":""},{"$f":"IF('Generated list'!C377=\"\",\"\",'Generated list'!C377)","v":""},{"$f":"IF('Generated list'!D377=\"\",\"\",'Generated list'!D377)","v":""}]
[null,{"$f":"IF('Generated list'!B378=\"\",\"\",'Generated list'!B378)","v":""},{"$f":"IF('Generated list'!C378=\"\",\"\",'Generated list'!C378)","v":""},{"$f":"IF('Generated list'!D378=\"\",\"\",'Generated list'!D378)","v":""}]
[null,{"$f":"IF('Generated list'!B379=\"\",\"\",'Generated list'!B379)","v":""},{"$f":"IF('Generated list'!C379=\"\",\"\",'Generated list'!C379)","v":""},{"$f":"IF('Generated list'!D379=\"\",\"\",'Generated list'!D379)","v":""}]
[null,{"$f":"IF('Generated list'!B380=\"\",\"\",'Generated list'!B380)","v":""},{"$f":"IF('Generated list'!C380=\"\",\"\",'Generated list'!C380)","v":""},{"$f":"IF('Generated list'!D380=\"\",\"\",'Generated list'!D380)","v":""}]
[null,{"$f":"IF('Generated list'!B381=\"\",\"\",'Generated list'!B381)","v":""},{"$f":"IF('Generated list'!C381=\"\",\"\",'Generated list'!C381)","v":""},{"$f":"IF('Generated list'!D381=\"\",\"\",'Generated list'!D381)","v":""}]
[null,{"$f":"IF('Generated list'!B382=\"\",\"\",'Generated list'!B382)","v":""},{"$f":"IF('Generated list'!C382=\"\",\"\",'Generated list'!C382)","v":""},{"$f":"IF('Generated list'!D382=\"\",\"\",'Generated list'!D382)","v":""}]
[null,{"$f":"IF('Generated list'!B383=\"\",\"\",'Generated list'!B383)","v":""},{"$f":"IF('Generated list'!C383=\"\",\"\",'Generated list'!C383)","v":""},{"$f":"IF('Generated list'!D383=\"\",\"\",'Generated list'!D383)","v":""}]
[null,{"$f":"IF('Generated list'!B384=\"\",\"\",'Generated list'!B384)","v":""},{"$f":"IF('Generated list'!C384=\"\",\"\",'Generated list'!C384)","v":""},{"$f":"IF('Generated list'!D384=\"\",\"\",'Generated list'!D384)","v":""}]
[null,{"$f":"IF('Generated list'!B385=\"\",\"\",'Generated list'!B385)","v":""},{"$f":"IF('Generated list'!C385=\"\",\"\",'Generated list'!C385)","v":""},{"$f":"IF('Generated list'!D385=\"\",\"\",'Generated list'!D385)","v":""}]
[null,{"$f":"IF('Generated list'!B386=\"\",\"\",'Generated list'!B386)","v":""},{"$f":"IF('Generated list'!C386=\"\",\"\",'Generated list'!C386)","v":""},{"$f":"IF('Generated list'!D386=\"\",\"\",'Generated list'!D386)","v":""}]
[null,{"$f":"IF('Generated list'!B387=\"\",\"\",'Generated list'!B387)","v":""},{"$f":"IF('Generated list'!C387=\"\",\"\",'Generated list'!C387)","v":""},{"$f":"IF('Generated list'!D387=\"\",\"\",'Generated list'!D387)","v":""}]
[null,{"$f":"IF('Generated list'!B388=\"\",\"\",'Generated list'!B388)","v":""},{"$f":"IF('Generated list'!C388=\"\",\"\",'Generated list'!C388)","v":""},{"$f":"IF('Generated list'!D388=\"\",\"\",'Generated list'!D388)","v":""}]
[null,{"$f":"IF('Generated list'!B389=\"\",\"\",'Generated list'!B389)","v":""},{"$f":"IF('Generated list'!C389=\"\",\"\",'Generated list'!C389)","v":""},{"$f":"IF('Generated list'!D389=\"\",\"\",'Generated list'!D389)","v":""}]
[null,{"$f":"IF('Generated list'!B390=\"\",\"\",'Generated list'!B390)","v":""},{"$f":"IF('Generated list'!C390=\"\",\"\",'Generated list'!C390)","v":""},{"$f":"IF('Generated list'!D390=\"\",\"\",'Generated list'!D390)","v":""}]
[null,{"$f":"IF('Generated list'!B391=\"\",\"\",'Generated list'!B391)","v":""},{"$f":"IF('Generated list'!C391=\"\",\"\",'Generated list'!C391)","v":""},{"$f":"IF('Generated list'!D391=\"\",\"\",'Generated list'!D391)","v":""}]
[null,{"$f":"IF('Generated list'!B392=\"\",\"\",'Generated list'!B392)","v":""},{"$f":"IF('Generated list'!C392=\"\",\"\",'Generated list'!C392)","v":""},{"$f":"IF('Generated list'!D392=\"\",\"\",'Generated list'!D392)","v":""}]
[null,{"$f":"IF('Generated list'!B393=\"\",\"\",'Generated list'!B393)","v":""},{"$f":"IF('Generated list'!C393=\"\",\"\",'Generated list'!C393)","v":""},{"$f":"IF('Generated list'!D393=\"\",\"\",'Generated list'!D393)","v":""}]
[null,{"$f":"IF('Generated list'!B394=\"\",\"\",'Generated list'!B394)","v":""},{"$f":"IF('Generated list'!C394=\"\",\"\",'Generated list'!C394)","v":""},{"$f":"IF('Generated list'!D394=\"\",\"\",'Generated list'!D394)","v":""}]
[null,{"$f":"IF('Generated list'!B395=\"\",\"\",'Generated list'!B395)","v":""},{"$f":"IF('Generated list'!C395=\"\",\"\",'Generated list'!C395)","v":""},{"$f":"IF('Generated list'!D395=\"\",\"\",'Generated list'!D395)","v":""}]
[null,{"$f":"IF('Generated list'!B396=\"\",\"\",'Generated list'!B396)","v":""},{"$f":"IF('Generated list'!C396=\"\",\"\",'Generated list'!C396)","v":""},{"$f":"IF('Generated list'!D396=\"\",\"\",'Generated list'!D396)","v":""}]
[null,{"$f":"IF('Generated list'!B397=\"\",\"\",'Generated list'!B397)","v":""},{"$f":"IF('Generated list'!C397=\"\",\"\",'Generated list'!C397)","v":""},{"$f":"IF('Generated list'!D397=\"\",\"\",'Generated list'!D397)","v":""}]
[null,{"$f":"IF('Generated list'!B398=\"\",\"\",'Generated list'!B398)","v":""},{"$f":"IF('Generated list'!C398=\"\",\"\",'Generated list'!C398)","v":""},{"$f":"IF('Generated list'!D398=\"\",\"\",'Generated list'!D398)","v":""}]
[null,{"$f":"IF('Generated list'!B399=\"\",\"\",'Generated list'!B399)","v":""},{"$f":"IF('Generated list'!C399=\"\",\"\",'Generated list'!C399)","v":""},{"$f":"IF('Generated list'!D399=\"\",\"\",'Generated list'!D399)","v":""}]
[null,{"$f":"IF('Generated list'!B400=\"\",\"\",'Generated list'!B400)","v":""},{"$f":"IF('Generated list'!C400=\"\",\"\",'Generated list'!C400)","v":""},{"$f":"IF('Generated list'!D400=\"\",\"\",'Generated list'!D400)","v":""}]
[null,{"$f":"IF('Generated list'!B401=\"\",\"\",'Generated list'!B401)","v":""},{"$f":"IF('Generated list'!C401=\"\",\"\",'Generated list'!C401)","v":""},{"$f":"IF('Generated list'!D401=\"\",\"\",'Generated list'!D401)","v":""}]
[null,{"$f":"IF('Generated list'!B402=\"\",\"\",'Generated list'!B402)","v":""},{"$f":"IF('Generated list'!C402=\"\",\"\",'Generated list'!C402)","v":""},{"$f":"IF('Generated list'!D402=\"\",\"\",'Generated list'!D402)","v":""}]
[null,{"$f":"IF('Generated list'!B403=\"\",\"\",'Generated list'!B403)","v":""},{"$f":"IF('Generated list'!C403=\"\",\"\",'Generated list'!C403)","v":""},{"$f":"IF('Generated list'!D403=\"\",\"\",'Generated list'!D403)","v":""}]
[null,{"$f":"IF('Generated list'!B404=\"\",\"\",'Generated list'!B404)","v":""},{"$f":"IF('Generated list'!C404=\"\",\"\",'Generated list'!C404)","v":""},{"$f":"IF('Generated list'!D404=\"\",\"\",'Generated list'!D404)","v":""}]
[null,{"$f":"IF('Generated list'!B405=\"\",\"\",'Generated list'!B405)","v":""},{"$f":"IF('Generated list'!C405=\"\",\"\",'Generated list'!C405)","v":""},{"$f":"IF('Generated list'!D405=\"\",\"\",'Generated list'!D405)","v":""}]
[null,{"$f":"IF('Generated list'!B406=\"\",\"\",'Generated list'!B406)","v":""},{"$f":"IF('Generated list'!C406=\"\",\"\",'Generated list'!C406)","v":""},{"$f":"IF('Generated list'!D406=\"\",\"\",'Generated list'!D406)","v":""}]
[null,{"$f":"IF('Generated list'!B407=\"\",\"\",'Generated list'!B407)","v":""},{"$f":"IF('Generated list'!C407=\"\",\"\",'Generated list'!C407)","v":""},{"$f":"IF('Generated list'!D407=\"\",\"\",'Generated list'!D407)","v":""}]
[null,{"$f":"IF('Generated list'!B408=\"\",\"\",'Generated list'!B408)","v":""},{"$f":"IF('Generated list'!C408=\"\",\"\",'Generated list'!C408)","v":""},{"$f":"IF('Generated list'!D408=\"\",\"\",'Generated list'!D408)","v":""}]
[null,{"$f":"IF('Generated list'!B409=\"\",\"\",'Generated list'!B409)","v":""},{"$f":"IF('Generated list'!C409=\"\",\"\",'Generated list'!C409)","v":""},{"$f":"IF('Generated list'!D409=\"\",\"\",'Generated list'!D409)","v":""}]
[null,{"$f":"IF('Generated list'!B410=\"\",\"\",'Generated list'!B410)","v":""},{"$f":"IF('Generated list'!C410=\"\",\"\",'Generated list'!C410)","v":""},{"$f":"IF('Generated list'!D410=\"\",\"\",'Generated list'!D410)","v":""}]
[null,{"$f":"IF('Generated list'!B411=\"\",\"\",'Generated list'!B411)","v":""},{"$f":"IF('Generated list'!C411=\"\",\"\",'Generated list'!C411)","v":""},{"$f":"IF('Generated list'!D411=\"\",\"\",'Generated list'!D411)","v":""}]
[null,{"$f":"IF('Generated list'!B412=\"\",\"\",'Generated list'!B412)","v":""},{"$f":"IF('Generated list'!C412=\"\",\"\",'Generated list'!C412)","v":""},{"$f":"IF('Generated list'!D412=\"\",\"\",'Generated list'!D412)","v":""}]
[null,{"$f":"IF('Generated list'!B413=\"\",\"\",'Generated list'!B413)","v":""},{"$f":"IF('Generated list'!C413=\"\",\"\",'Generated list'!C413)","v":""},{"$f":"IF('Generated list'!D413=\"\",\"\",'Generated list'!D413)","v":""}]
[null,{"$f":"IF('Generated list'!B414=\"\",\"\",'Generated list'!B414)","v":""},{"$f":"IF('Generated list'!C414=\"\",\"\",'Generated list'!C414)","v":""},{"$f":"IF('Generated list'!D414=\"\",\"\",'Generated list'!D414)","v":""}]
[null,{"$f":"IF('Generated list'!B415=\"\",\"\",'Generated list'!B415)","v":""},{"$f":"IF('Generated list'!C415=\"\",\"\",'Generated list'!C415)","v":""},{"$f":"IF('Generated list'!D415=\"\",\"\",'Generated list'!D415)","v":""}]
[null,{"$f":"IF('Generated list'!B416=\"\",\"\",'Generated list'!B416)","v":""},{"$f":"IF('Generated list'!C416=\"\",\"\",'Generated list'!C416)","v":""},{"$f":"IF('Generated list'!D416=\"\",\"\",'Generated list'!D416)","v":""}]
[null,{"$f":"IF('Generated list'!B417=\"\",\"\",'Generated list'!B417)","v":""},{"$f":"IF('Generated list'!C417=\"\",\"\",'Generated list'!C417)","v":""},{"$f":"IF('Generated list'!D417=\"\",\"\",'Generated list'!D417)","v":""}]
[null,{"$f":"IF('Generated list'!B418=\"\",\"\",'Generated list'!B418)","v":""},{"$f":"IF('Generated list'!C418=\"\",\"\",'Generated list'!C418)","v":""},{"$f":"IF('Generated list'!D418=\"\",\"\",'Generated list'!D418)","v":""}]
[null,{"$f":"IF('Generated list'!B419=\"\",\"\",'Generated list'!B419)","v":""},{"$f":"IF('Generated list'!C419=\"\",\"\",'Generated list'!C419)","v":""},{"$f":"IF('Generated list'!D419=\"\",\"\",'Generated list'!D419)","v":""}]
[null,{"$f":"IF('Generated list'!B420=\"\",\"\",'Generated list'!B420)","v":""},{"$f":"IF('Generated list'!C420=\"\",\"\",'Generated list'!C420)","v":""},{"$f":"IF('Generated list'!D420=\"\",\"\",'Generated list'!D420)","v":""}]
[null,{"$f":"IF('Generated list'!B421=\"\",\"\",'Generated list'!B421)","v":""},{"$f":"IF('Generated list'!C421=\"\",\"\",'Generated list'!C421)","v":""},{"$f":"IF('Generated list'!D421=\"\",\"\",'Generated list'!D421)","v":""}]
[null,{"$f":"IF('Generated list'!B422=\"\",\"\",'Generated list'!B422)","v":""},{"$f":"IF('Generated list'!C422=\"\",\"\",'Generated list'!C422)","v":""},{"$f":"IF('Generated list'!D422=\"\",\"\",'Generated list'!D422)","v":""}]
[null,{"$f":"IF('Generated list'!B423=\"\",\"\",'Generated list'!B423)","v":""},{"$f":"IF('Generated list'!C423=\"\",\"\",'Generated list'!C423)","v":""},{"$f":"IF('Generated list'!D423=\"\",\"\",'Generated list'!D423)","v":""}]
[null,{"$f":"IF('Generated list'!B424=\"\",\"\",'Generated list'!B424)","v":""},{"$f":"IF('Generated list'!C424=\"\",\"\",'Generated list'!C424)","v":""},{"$f":"IF('Generated list'!D424=\"\",\"\",'Generated list'!D424)","v":""}]
[null,{"$f":"IF('Generated list'!B425=\"\",\"\",'Generated list'!B425)","v":""},{"$f":"IF('Generated list'!C425=\"\",\"\",'Generated list'!C425)","v":""},{"$f":"IF('Generated list'!D425=\"\",\"\",'Generated list'!D425)","v":""}]
[null,{"$f":"IF('Generated list'!B426=\"\",\"\",'Generated list'!B426)","v":""},{"$f":"IF('Generated list'!C426=\"\",\"\",'Generated list'!C426)","v":""},{"$f":"IF('Generated list'!D426=\"\",\"\",'Generated list'!D426)","v":""}]
[null,{"$f":"IF('Generated list'!B427=\"\",\"\",'Generated list'!B427)","v":""},{"$f":"IF('Generated list'!C427=\"\",\"\",'Generated list'!C427)","v":""},{"$f":"IF('Generated list'!D427=\"\",\"\",'Generated list'!D427)","v":""}]
[null,{"$f":"IF('Generated list'!B428=\"\",\"\",'Generated list'!B428)","v":""},{"$f":"IF('Generated list'!C428=\"\",\"\",'Generated list'!C428)","v":""},{"$f":"IF('Generated list'!D428=\"\",\"\",'Generated list'!D428)","v":""}]
[null,{"$f":"IF('Generated list'!B429=\"\",\"\",'Generated list'!B429)","v":""},{"$f":"IF('Generated list'!C429=\"\",\"\",'Generated list'!C429)","v":""},{"$f":"IF('Generated list'!D429=\"\",\"\",'Generated list'!D429)","v":""}]
[null,{"$f":"IF('Generated list'!B430=\"\",\"\",'Generated list'!B430)","v":""},{"$f":"IF('Generated list'!C430=\"\",\"\",'Generated list'!C430)","v":""},{"$f":"IF('Generated list'!D430=\"\",\"\",'Generated list'!D430)","v":""}]
[null,{"$f":"IF('Generated list'!B431=\"\",\"\",'Generated list'!B431)","v":""},{"$f":"IF('Generated list'!C431=\"\",\"\",'Generated list'!C431)","v":""},{"$f":"IF('Generated list'!D431=\"\",\"\",'Generated list'!D431)","v":""}]
[null,{"$f":"IF('Generated list'!B432=\"\",\"\",'Generated list'!B432)","v":""},{"$f":"IF('Generated list'!C432=\"\",\"\",'Generated list'!C432)","v":""},{"$f":"IF('Generated list'!D432=\"\",\"\",'Generated list'!D432)","v":""}]
[null,{"$f":"IF('Generated list'!B433=\"\",\"\",'Generated list'!B433)","v":""},{"$f":"IF('Generated list'!C433=\"\",\"\",'Generated list'!C433)","v":""},{"$f":"IF('Generated list'!D433=\"\",\"\",'Generated list'!D433)","v":""}]
[null,{"$f":"IF('Generated list'!B434=\"\",\"\",'Generated list'!B434)","v":""},{"$f":"IF('Generated list'!C434=\"\",\"\",'Generated list'!C434)","v":""},{"$f":"IF('Generated list'!D434=\"\",\"\",'Generated list'!D434)","v":""}]
[null,{"$f":"IF('Generated list'!B435=\"\",\"\",'Generated list'!B435)","v":""},{"$f":"IF('Generated list'!C435=\"\",\"\",'Generated list'!C435)","v":""},{"$f":"IF('Generated list'!D435=\"\",\"\",'Generated list'!D435)","v":""}]
[null,{"$f":"IF('Generated list'!B436=\"\",\"\",'Generated list'!B436)","v":""},{"$f":"IF('Generated list'!C436=\"\",\"\",'Generated list'!C436)","v":""},{"$f":"IF('Generated list'!D436=\"\",\"\",'Generated list'!D436)","v":""}]
[null,{"$f":"IF('Generated list'!B437=\"\",\"\",'Generated list'!B437)","v":""},{"$f":"IF('Generated list'!C437=\"\",\"\",'Generated list'!C437)","v":""},{"$f":"IF('Generated list'!D437=\"\",\"\",'Generated list'!D437)","v":""}]
[null,{"$f":"IF('Generated list'!B438=\"\",\"\",'Generated list'!B438)","v":""},{"$f":"IF('Generated list'!C438=\"\",\"\",'Generated list'!C438)","v":""},{"$f":"IF('Generated list'!D438=\"\",\"\",'Generated list'!D438)","v":""}]
[null,{"$f":"IF('Generated list'!B439=\"\",\"\",'Generated list'!B439)","v":""},{"$f":"IF('Generated list'!C439=\"\",\"\",'Generated list'!C439)","v":""},{"$f":"IF('Generated list'!D439=\"\",\"\",'Generated list'!D439)","v":""}]
[null,{"$f":"IF('Generated list'!B440=\"\",\"\",'Generated list'!B440)","v":""},{"$f":"IF('Generated list'!C440=\"\",\"\",'Generated list'!C440)","v":""},{"$f":"IF('Generated list'!D440=\"\",\"\",'Generated list'!D440)","v":""}]
[null,{"$f":"IF('Generated list'!B441=\"\",\"\",'Generated list'!B441)","v":""},{"$f":"IF('Generated list'!C441=\"\",\"\",'Generated list'!C441)","v":""},{"$f":"IF('Generated list'!D441=\"\",\"\",'Generated list'!D441)","v":""}]
[null,{"$f":"IF('Generated list'!B442=\"\",\"\",'Generated list'!B442)","v":""},{"$f":"IF('Generated list'!C442=\"\",\"\",'Generated list'!C442)","v":""},{"$f":"IF('Generated list'!D442=\"\",\"\",'Generated list'!D442)","v":""}]
[null,{"$f":"IF('Generated list'!B443=\"\",\"\",'Generated list'!B443)","v":""},{"$f":"IF('Generated list'!C443=\"\",\"\",'Generated list'!C443)","v":""},{"$f":"IF('Generated list'!D443=\"\",\"\",'Generated list'!D443)","v":""}]
[null,{"$f":"IF('Generated list'!B444=\"\",\"\",'Generated list'!B444)","v":""},{"$f":"IF('Generated list'!C444=\"\",\"\",'Generated list'!C444)","v":""},{"$f":"IF('Generated list'!D444=\"\",\"\",'Generated list'!D444)","v":""}]
[null,{"$f":"IF('Generated list'!B445=\"\",\"\",'Generated list'!B445)","v":""},{"$f":"IF('Generated list'!C445=\"\",\"\",'Generated list'!C445)","v":""},{"$f":"IF('Generated list'!D445=\"\",\"\",'Generated list'!D445)","v":""}]
[null,{"$f":"IF('Generated list'!B446=\"\",\"\",'Generated list'!B446)","v":""},{"$f":"IF('Generated list'!C446=\"\",\"\",'Generated list'!C446)","v":""},{"$f":"IF('Generated list'!D446=\"\",\"\",'Generated list'!D446)","v":""}]
[null,{"$f":"IF('Generated list'!B447=\"\",\"\",'Generated list'!B447)","v":""},{"$f":"IF('Generated list'!C447=\"\",\"\",'Generated list'!C447)","v":""},{"$f":"IF('Generated list'!D447=\"\",\"\",'Generated list'!D447)","v":""}]
[null,{"$f":"IF('Generated list'!B448=\"\",\"\",'Generated list'!B448)","v":""},{"$f":"IF('Generated list'!C448=\"\",\"\",'Generated list'!C448)","v":""},{"$f":"IF('Generated list'!D448=\"\",\"\",'Generated list'!D448)","v":""}]
[null,{"$f":"IF('Generated list'!B449=\"\",\"\",'Generated list'!B449)","v":""},{"$f":"IF('Generated list'!C449=\"\",\"\",'Generated list'!C449)","v":""},{"$f":"IF('Generated list'!D449=\"\",\"\",'Generated list'!D449)","v":""}]
[null,{"$f":"IF('Generated list'!B450=\"\",\"\",'Generated list'!B450)","v":""},{"$f":"IF('Generated list'!C450=\"\",\"\",'Generated list'!C450)","v":""},{"$f":"IF('Generated list'!D450=\"\",\"\",'Generated list'!D450)","v":""}]
[null,{"$f":"IF('Generated list'!B451=\"\",\"\",'Generated list'!B451)","v":""},{"$f":"IF('Generated list'!C451=\"\",\"\",'Generated list'!C451)","v":""},{"$f":"IF('Generated list'!D451=\"\",\"\",'Generated list'!D451)","v":""}]
[null,{"$f":"IF('Generated list'!B452=\"\",\"\",'Generated list'!B452)","v":""},{"$f":"IF('Generated list'!C452=\"\",\"\",'Generated list'!C452)","v":""},{"$f":"IF('Generated list'!D452=\"\",\"\",'Generated list'!D452)","v":""}]
[null,{"$f":"IF('Generated list'!B453=\"\",\"\",'Generated list'!B453)","v":""},{"$f":"IF('Generated list'!C453=\"\",\"\",'Generated list'!C453)","v":""},{"$f":"IF('Generated list'!D453=\"\",\"\",'Generated list'!D453)","v":""}]
[null,{"$f":"IF('Generated list'!B454=\"\",\"\",'Generated list'!B454)","v":""},{"$f":"IF('Generated list'!C454=\"\",\"\",'Generated list'!C454)","v":""},{"$f":"IF('Generated list'!D454=\"\",\"\",'Generated list'!D454)","v":""}]
[null,{"$f":"IF('Generated list'!B455=\"\",\"\",'Generated list'!B455)","v":""},{"$f":"IF('Generated list'!C455=\"\",\"\",'Generated list'!C455)","v":""},{"$f":"IF('Generated list'!D455=\"\",\"\",'Generated list'!D455)","v":""}]
[null,{"$f":"IF('Generated list'!B456=\"\",\"\",'Generated list'!B456)","v":""},{"$f":"IF('Generated list'!C456=\"\",\"\",'Generated list'!C456)","v":""},{"$f":"IF('Generated list'!D456=\"\",\"\",'Generated list'!D456)","v":""}]
[null,{"$f":"IF('Generated list'!B457=\"\",\"\",'Generated list'!B457)","v":""},{"$f":"IF('Generated list'!C457=\"\",\"\",'Generated list'!C457)","v":""},{"$f":"IF('Generated list'!D457=\"\",\"\",'Generated list'!D457)","v":""}]
[null,{"$f":"IF('Generated list'!B458=\"\",\"\",'Generated list'!B458)","v":""},{"$f":"IF('Generated list'!C458=\"\",\"\",'Generated list'!C458)","v":""},{"$f":"IF('Generated list'!D458=\"\",\"\",'Generated list'!D458)","v":""}]
[null,{"$f":"IF('Generated list'!B459=\"\",\"\",'Generated list'!B459)","v":""},{"$f":"IF('Generated list'!C459=\"\",\"\",'Generated list'!C459)","v":""},{"$f":"IF('Generated list'!D459=\"\",\"\",'Generated list'!D459)","v":""}]
[null,{"$f":"IF('Generated list'!B460=\"\",\"\",'Generated list'!B460)","v":""},{"$f":"IF('Generated list'!C460=\"\",\"\",'Generated list'!C460)","v":""},{"$f":"IF('Generated list'!D460=\"\",\"\",'Generated list'!D460)","v":""}]
[null,{"$f":"IF('Generated list'!B461=\"\",\"\",'Generated list'!B461)","v":""},{"$f":"IF('Generated list'!C461=\"\",\"\",'Generated list'!C461)","v":""},{"$f":"IF('Generated list'!D461=\"\",\"\",'Generated list'!D461)","v":""}]
[null,{"$f":"IF('Generated list'!B462=\"\",\"\",'Generated list'!B462)","v":""},{"$f":"IF('Generated list'!C462=\"\",\"\",'Generated list'!C462)","v":""},{"$f":"IF('Generated list'!D462=\"\",\"\",'Generated list'!D462)","v":""}]
[null,{"$f":"IF('Generated list'!B463=\"\",\"\",'Generated list'!B463)","v":""},{"$f":"IF('Generated list'!C463=\"\",\"\",'Generated list'!C463)","v":""},{"$f":"IF('Generated list'!D463=\"\",\"\",'Generated list'!D463)","v":""}]
[null,{"$f":"IF('Generated list'!B464=\"\",\"\",'Generated list'!B464)","v":""},{"$f":"IF('Generated list'!C464=\"\",\"\",'Generated list'!C464)","v":""},{"$f":"IF('Generated list'!D464=\"\",\"\",'Generated list'!D464)","v":""}]
[null,{"$f":"IF('Generated list'!B465=\"\",\"\",'Generated list'!B465)","v":""},{"$f":"IF('Generated list'!C465=\"\",\"\",'Generated list'!C465)","v":""},{"$f":"IF('Generated list'!D465=\"\",\"\",'Generated list'!D465)","v":""}]
[null,{"$f":"IF('Generated list'!B466=\"\",\"\",'Generated list'!B466)","v":""},{"$f":"IF('Generated list'!C466=\"\",\"\",'Generated list'!C466)","v":""},{"$f":"IF('Generated list'!D466=\"\",\"\",'Generated list'!D466)","v":""}]
[null,{"$f":"IF('Generated list'!B467=\"\",\"\",'Generated list'!B467)","v":""},{"$f":"IF('Generated list'!C467=\"\",\"\",'Generated list'!C467)","v":""},{"$f":"IF('Generated list'!D467=\"\",\"\",'Generated list'!D467)","v":""}]
[null,{"$f":"IF('Generated list'!B468=\"\",\"\",'Generated list'!B468)","v":""},{"$f":"IF('Generated list'!C468=\"\",\"\",'Generated list'!C468)","v":""},{"$f":"IF('Generated list'!D468=\"\",\"\",'Generated list'!D468)","v":""}]
[null,{"$f":"IF('Generated list'!B469=\"\",\"\",'Generated list'!B469)","v":""},{"$f":"IF('Generated list'!C469=\"\",\"\",'Generated list'!C469)","v":""},{"$f":"IF('Generated list'!D469=\"\",\"\",'Generated list'!D469)","v":""}]
[null,{"$f":"IF('Generated list'!B470=\"\",\"\",'Generated list'!B470)","v":""},{"$f":"IF('Generated list'!C470=\"\",\"\",'Generated list'!C470)","v":""},{"$f":"IF('Generated list'!D470=\"\",\"\",'Generated list'!D470)","v":""}]
[null,{"$f":"IF('Generated list'!B471=\"\",\"\",'Generated list'!B471)","v":""},{"$f":"IF('Generated list'!C471=\"\",\"\",'Generated list'!C471)","v":""},{"$f":"IF('Generated list'!D471=\"\",\"\",'Generated list'!D471)","v":""}]
[null,{"$f":"IF('Generated list'!B472=\"\",\"\",'Generated list'!B472)","v":""},{"$f":"IF('Generated list'!C472=\"\",\"\",'Generated list'!C472)","v":""},{"$f":"IF('Generated list'!D472=\"\",\"\",'Generated list'!D472)","v":""}]
[null,{"$f":"IF('Generated list'!B473=\"\",\"\",'Generated list'!B473)","v":""},{"$f":"IF('Generated list'!C473=\"\",\"\",'Generated list'!C473)","v":""},{"$f":"IF('Generated list'!D473=\"\",\"\",'Generated list'!D473)","v":""}]
[null,{"$f":"IF('Generated list'!B474=\"\",\"\",'Generated list'!B474)","v":""},{"$f":"IF('Generated list'!C474=\"\",\"\",'Generated list'!C474)","v":""},{"$f":"IF('Generated list'!D474=\"\",\"\",'Generated list'!D474)","v":""}]
[null,{"$f":"IF('Generated list'!B475=\"\",\"\",'Generated list'!B475)","v":""},{"$f":"IF('Generated list'!C475=\"\",\"\",'Generated list'!C475)","v":""},{"$f":"IF('Generated list'!D475=\"\",\"\",'Generated list'!D475)","v":""}]
[null,{"$f":"IF('Generated list'!B476=\"\",\"\",'Generated list'!B476)","v":""},{"$f":"IF('Generated list'!C476=\"\",\"\",'Generated list'!C476)","v":""},{"$f":"IF('Generated list'!D476=\"\",\"\",'Generated list'!D476)","v":""}]
[null,{"$f":"IF('Generated list'!B477=\"\",\"\",'Generated list'!B477)","v":""},{"$f":"IF('Generated list'!C477=\"\",\"\",'Generated list'!C477)","v":""},{"$f":"IF('Generated list'!D477=\"\",\"\",'Generated list'!D477)","v":""}]
[null,{"$f":"IF('Generated list'!B478=\"\",\"\",'Generated list'!B478)","v":""},{"$f":"IF('Generated list'!C478=\"\",\"\",'Generated list'!C478)","v":""},{"$f":"IF('Generated list'!D478=\"\",\"\",'Generated list'!D478)","v":""}]
[null,{"$f":"IF('Generated list'!B479=\"\",\"\",'Generated list'!B479)","v":""},{"$f":"IF('Generated list'!C479=\"\",\"\",'Generated list'!C479)","v":""},{"$f":"IF('Generated list'!D479=\"\",\"\",'Generated list'!D479)","v":""}]
[null,{"$f":"IF('Generated list'!B480=\"\",\"\",'Generated list'!B480)","v":""},{"$f":"IF('Generated list'!C480=\"\",\"\",'Generated list'!C480)","v":""},{"$f":"IF('Generated list'!D480=\"\",\"\",'Generated list'!D480)","v":""}]
[null,{"$f":"IF('Generated list'!B481=\"\",\"\",'Generated list'!B481)","v":""},{"$f":"IF('Generated list'!C481=\"\",\"\",'Generated list'!C481)","v":""},{"$f":"IF('Generated list'!D481=\"\",\"\",'Generated list'!D481)","v":""}]
[null,{"$f":"IF('Generated list'!B482=\"\",\"\",'Generated list'!B482)","v":""},{"$f":"IF('Generated list'!C482=\"\",\"\",'Generated list'!C482)","v":""},{"$f":"IF('Generated list'!D482=\"\",\"\",'Generated list'!D482)","v":""}]
[null,{"$f":"IF('Generated list'!B483=\"\",\"\",'Generated list'!B483)","v":""},{"$f":"IF('Generated list'!C483=\"\",\"\",'Generated list'!C483)","v":""},{"$f":"IF('Generated list'!D483=\"\",\"\",'Generated list'!D483)","v":""}]
[null,{"$f":"IF('Generated list'!B484=\"\",\"\",'Generated list'!B484)","v":""},{"$f":"IF('Generated list'!C484=\"\",\"\",'Generated list'!C484)","v":""},{"$f":"IF('Generated list'!D484=\"\",\"\",'Generated list'!D484)","v":""}]
[null,{"$f":"IF('Generated list'!B485=\"\",\"\",'Generated list'!B485)","v":""},{"$f":"IF('Generated list'!C485=\"\",\"\",'Generated list'!C485)","v":""},{"$f":"IF('Generated list'!D485=\"\",\"\",'Generated list'!D485)","v":""}]
[null,{"$f":"IF('Generated list'!B486=\"\",\"\",'Generated list'!B486)","v":""},{"$f":"IF('Generated list'!C486=\"\",\"\",'Generated list'!C486)","v":""},{"$f":"IF('Generated list'!D486=\"\",\"\",'Generated list'!D486)","v":""}]
[null,{"$f":"IF('Generated list'!B487=\"\",\"\",'Generated list'!B487)","v":""},{"$f":"IF('Generated list'!C487=\"\",\"\",'Generated list'!C487)","v":""},{"$f":"IF('Generated list'!D487=\"\",\"\",'Generated list'!D487)","v":""}]
[null,{"$f":"IF('Generated list'!B488=\"\",\"\",'Generated list'!B488)","v":""},{"$f":"IF('Generated list'!C488=\"\",\"\",'Generated list'!C488)","v":""},{"$f":"IF('Generated list'!D488=\"\",\"\",'Generated list'!D488)","v":""}]
[null,{"$f":"IF('Generated list'!B489=\"\",\"\",'Generated list'!B489)","v":""},{"$f":"IF('Generated list'!C489=\"\",\"\",'Generated list'!C489)","v":""},{"$f":"IF('Generated list'!D489=\"\",\"\",'Generated list'!D489)","v":""}]
[null,{"$f":"IF('Generated list'!B490=\"\",\"\",'Generated list'!B490)","v":""},{"$f":"IF('Generated list'!C490=\"\",\"\",'Generated list'!C490)","v":""},{"$f":"IF('Generated list'!D490=\"\",\"\",'Generated list'!D490)","v":""}]
[null,{"$f":"IF('Generated list'!B491=\"\",\"\",'Generated list'!B491)","v":""},{"$f":"IF('Generated list'!C491=\"\",\"\",'Generated list'!C491)","v":""},{"$f":"IF('Generated list'!D491=\"\",\"\",'Generated list'!D491)","v":""}]
[null,{"$f":"IF('Generated list'!B492=\"\",\"\",'Generated list'!B492)","v":""},{"$f":"IF('Generated list'!C492=\"\",\"\",'Generated list'!C492)","v":""},{"$f":"IF('Generated list'!D492=\"\",\"\",'Generated list'!D492)","v":""}]
[null,{"$f":"IF('Generated list'!B493=\"\",\"\",'Generated list'!B493)","v":""},{"$f":"IF('Generated list'!C493=\"\",\"\",'Generated list'!C493)","v":""},{"$f":"IF('Generated list'!D493=\"\",\"\",'Generated list'!D493)","v":""}]
[null,{"$f":"IF('Generated list'!B494=\"\",\"\",'Generated list'!B494)","v":""},{"$f":"IF('Generated list'!C494=\"\",\"\",'Generated list'!C494)","v":""},{"$f":"IF('Generated list'!D494=\"\",\"\",'Generated list'!D494)","v":""}]
[null,{"$f":"IF('Generated list'!B495=\"\",\"\",'Generated list'!B495)","v":""},{"$f":"IF('Generated list'!C495=\"\",\"\",'Generated list'!C495)","v":""},{"$f":"IF('Generated list'!D495=\"\",\"\",'Generated list'!D495)","v":""}]
[null,{"$f":"IF('Generated list'!B496=\"\",\"\",'Generated list'!B496)","v":""},{"$f":"IF('Generated list'!C496=\"\",\"\",'Generated list'!C496)","v":""},{"$f":"IF('Generated list'!D496=\"\",\"\",'Generated list'!D496)","v":""}]
[null,{"$f":"IF('Generated list'!B497=\"\",\"\",'Generated list'!B497)","v":""},{"$f":"IF('Generated list'!C497=\"\",\"\",'Generated list'!C497)","v":""},{"$f":"IF('Generated list'!D497=\"\",\"\",'Generated list'!D497)","v":""}]
[null,{"$f":"IF('Generated list'!B498=\"\",\"\",'Generated list'!B498)","v":""},{"$f":"IF('Generated list'!C498=\"\",\"\",'Generated list'!C498)","v":""},{"$f":"IF('Generated list'!D498=\"\",\"\",'Generated list'!D498)","v":""}]
[null,{"$f":"IF('Generated list'!B499=\"\",\"\",'Generated list'!B499)","v":""},{"$f":"IF('Generated list'!C499=\"\",\"\",'Generated list'!C499)","v":""},{"$f":"IF('Generated list'!D499=\"\",\"\",'Generated list'!D499)","v":""}]
[null,{"$f":"IF('Generated list'!B500=\"\",\"\",'Generated list'!B500)","v":""},{"$f":"IF('Generated list'!C500=\"\",\"\",'Generated list'!C500)","v":""},{"$f":"IF('Generated list'!D500=\"\",\"\",'Generated list'!D500)","v":""}]
[null,{"$f":"IF('Generated list'!B501=\"\",\"\",'Generated list'!B501)","v":""},{"$f":"IF('Generated list'!C501=\"\",\"\",'Generated list'!C501)","v":""},{"$f":"IF('Generated list'!D501=\"\",\"\",'Generated list'!D501)","v":""}]
[null,{"$f":"IF('Generated list'!B502=\"\",\"\",'Generated list'!B502)","v":""},{"$f":"IF('Generated list'!C502=\"\",\"\",'Generated list'!C502)","v":""},{"$f":"IF('Generated list'!D502=\"\",\"\",'Generated list'!D502)","v":""}]
[null,{"$f":"IF('Generated list'!B503=\"\",\"\",'Generated list'!B503)","v":""},{"$f":"IF('Generated list'!C503=\"\",\"\",'Generated list'!C503)","v":""},{"$f":"IF('Generated list'!D503=\"\",\"\",'Generated list'!D503)","v":""}]
[null,{"$f":"IF('Generated list'!B504=\"\",\"\",'Generated list'!B504)","v":""},{"$f":"IF('Generated list'!C504=\"\",\"\",'Generated list'!C504)","v":""},{"$f":"IF('Generated list'!D504=\"\",\"\",'Generated list'!D504)","v":""}]
[null,{"$f":"IF('Generated list'!B505=\"\",\"\",'Generated list'!B505)","v":""},{"$f":"IF('Generated list'!C505=\"\",\"\",'Generated list'!C505)","v":""},{"$f":"IF('Generated list'!D505=\"\",\"\",'Generated list'!D505)","v":""}]
[null,{"$f":"IF('Generated list'!B506=\"\",\"\",'Generated list'!B506)","v":""},{"$f":"IF('Generated list'!C506=\"\",\"\",'Generated list'!C506)","v":""},{"$f":"IF('Generated list'!D506=\"\",\"\",'Generated list'!D506)","v":""}]
[null,{"$f":"IF('Generated list'!B507=\"\",\"\",'Generated list'!B507)","v":""},{"$f":"IF('Generated list'!C507=\"\",\"\",'Generated list'!C507)","v":""},{"$f":"IF('Generated list'!D507=\"\",\"\",'Generated list'!D507)","v":""}]
[null,{"$f":"IF('Generated list'!B508=\"\",\"\",'Generated list'!B508)","v":""},{"$f":"IF('Generated list'!C508=\"\",\"\",'Generated list'!C508)","v":""},{"$f":"IF('Generated list'!D508=\"\",\"\",'Generated list'!D508)","v":""}]
[null,{"$f":"IF('Generated list'!B509=\"\",\"\",'Generated list'!B509)","v":""},{"$f":"IF('Generated list'!C509=\"\",\"\",'Generated list'!C509)","v":""},{"$f":"IF('Generated list'!D509=\"\",\"\",'Generated list'!D509)","v":""}]
[null,{"$f":"IF('Generated list'!B510=\"\",\"\",'Generated list'!B510)","v":""},{"$f":"IF('Generated list'!C510=\"\",\"\",'Generated list'!C510)","v":""},{"$f":"IF('Generated list'!D510=\"\",\"\",'Generated list'!D510)","v":""}]
[null,{"$f":"IF('Generated list'!B511=\"\",\"\",'Generated list'!B511)","v":""},{"$f":"IF('Generated list'!C511=\"\",\"\",'Generated list'!C511)","v":""},{"$f":"IF('Generated list'!D511=\"\",\"\",'Generated list'!D511)","v":""}]
[null,{"$f":"IF('Generated list'!B512=\"\",\"\",'Generated list'!B512)","v":""},{"$f":"IF('Generated list'!C512=\"\",\"\",'Generated list'!C512)","v":""},{"$f":"IF('Generated list'!D512=\"\",\"\",'Generated list'!D512)","v":""}]
[null,{"$f":"IF('Generated list'!B513=\"\",\"\",'Generated list'!B513)","v":""},{"$f":"IF('Generated list'!C513=\"\",\"\",'Generated list'!C513)","v":""},{"$f":"IF('Generated list'!D513=\"\",\"\",'Generated list'!D513)","v":""}]
[null,{"$f":"IF('Generated list'!B514=\"\",\"\",'Generated list'!B514)","v":""},{"$f":"IF('Generated list'!C514=\"\",\"\",'Generated list'!C514)","v":""},{"$f":"IF('Generated list'!D514=\"\",\"\",'Generated list'!D514)","v":""}]
[null,{"$f":"IF('Generated list'!B515=\"\",\"\",'Generated list'!B515)","v":""},{"$f":"IF('Generated list'!C515=\"\",\"\",'Generated list'!C515)","v":""},{"$f":"IF('Generated list'!D515=\"\",\"\",'Generated list'!D515)","v":""}]
[null,{"$f":"IF('Generated list'!B516=\"\",\"\",'Generated list'!B516)","v":""},{"$f":"IF('Generated list'!C516=\"\",\"\",'Generated list'!C516)","v":""},{"$f":"IF('Generated list'!D516=\"\",\"\",'Generated list'!D516)","v":""}]
[null,{"$f":"IF('Generated list'!B517=\"\",\"\",'Generated list'!B517)","v":""},{"$f":"IF('Generated list'!C517=\"\",\"\",'Generated list'!C517)","v":""},{"$f":"IF('Generated list'!D517=\"\",\"\",'Generated list'!D517)","v":""}]
[null,{"$f":"IF('Generated list'!B518=\"\",\"\",'Generated list'!B518)","v":""},{"$f":"IF('Generated list'!C518=\"\",\"\",'Generated list'!C518)","v":""},{"$f":"IF('Generated list'!D518=\"\",\"\",'Generated list'!D518)","v":""}]
[null,{"$f":"IF('Generated list'!B519=\"\",\"\",'Generated list'!B519)","v":""},{"$f":"IF('Generated list'!C519=\"\",\"\",'Generated list'!C519)","v":""},{"$f":"IF('Generated list'!D519=\"\",\"\",'Generated list'!D519)","v":""}]
[null,{"$f":"IF('Generated list'!B520=\"\",\"\",'Generated list'!B520)","v":""},{"$f":"IF('Generated list'!C520=\"\",\"\",'Generated list'!C520)","v":""},{"$f":"IF('Generated list'!D520=\"\",\"\",'Generated list'!D520)","v":""}]
[null,{"$f":"IF('Generated list'!B521=\"\",\"\",'Generated list'!B521)","v":""},{"$f":"IF('Generated list'!C521=\"\",\"\",'Generated list'!C521)","v":""},{"$f":"IF('Generated list'!D521=\"\",\"\",'Generated list'!D521)","v":""}]
[null,{"$f":"IF('Generated list'!B522=\"\",\"\",'Generated list'!B522)","v":""},{"$f":"IF('Generated list'!C522=\"\",\"\",'Generated list'!C522)","v":""},{"$f":"IF('Generated list'!D522=\"\",\"\",'Generated list'!D522)","v":""}]
[null,{"$f":"IF('Generated list'!B523=\"\",\"\",'Generated list'!B523)","v":""},{"$f":"IF('Generated list'!C523=\"\",\"\",'Generated list'!C523)","v":""},{"$f":"IF('Generated list'!D523=\"\",\"\",'Generated list'!D523)","v":""}]
[null,{"$f":"IF('Generated list'!B524=\"\",\"\",'Generated list'!B524)","v":""},{"$f":"IF('Generated list'!C524=\"\",\"\",'Generated list'!C524)","v":""},{"$f":"IF('Generated list'!D524=\"\",\"\",'Generated list'!D524)","v":""}]
[null,{"$f":"IF('Generated list'!B525=\"\",\"\",'Generated list'!B525)","v":""},{"$f":"IF('Generated list'!C525=\"\",\"\",'Generated list'!C525)","v":""},{"$f":"IF('Generated list'!D525=\"\",\"\",'Generated list'!D525)","v":""}]
[null,{"$f":"IF('Generated list'!B526=\"\",\"\",'Generated list'!B526)","v":""},{"$f":"IF('Generated list'!C526=\"\",\"\",'Generated list'!C526)","v":""},{"$f":"IF('Generated list'!D526=\"\",\"\",'Generated list'!D526)","v":""}]
[null,{"$f":"IF('Generated list'!B527=\"\",\"\",'Generated list'!B527)","v":""},{"$f":"IF('Generated list'!C527=\"\",\"\",'Generated list'!C527)","v":""},{"$f":"IF('Generated list'!D527=\"\",\"\",'Generated list'!D527)","v":""}]
[null,{"$f":"IF('Generated list'!B528=\"\",\"\",'Generated list'!B528)","v":""},{"$f":"IF('Generated list'!C528=\"\",\"\",'Generated list'!C528)","v":""},{"$f":"IF('Generated list'!D528=\"\",\"\",'Generated list'!D528)","v":""}]
[null,{"$f":"IF('Generated list'!B529=\"\",\"\",'Generated list'!B529)","v":""},{"$f":"IF('Generated list'!C529=\"\",\"\",'Generated list'!C529)","v":""},{"$f":"IF('Generated list'!D529=\"\",\"\",'Generated list'!D529)","v":""}]
[null,{"$f":"IF('Generated list'!B530=\"\",\"\",'Generated list'!B530)","v":""},{"$f":"IF('Generated list'!C530=\"\",\"\",'Generated list'!C530)","v":""},{"$f":"IF('Generated list'!D530=\"\",\"\",'Generated list'!D530)","v":""}]
[null,{"$f":"IF('Generated list'!B531=\"\",\"\",'Generated list'!B531)","v":""},{"$f":"IF('Generated list'!C531=\"\",\"\",'Generated list'!C531)","v":""},{"$f":"IF('Generated list'!D531=\"\",\"\",'Generated list'!D531)","v":""}]
[null,{"$f":"IF('Generated list'!B532=\"\",\"\",'Generated list'!B532)","v":""},{"$f":"IF('Generated list'!C532=\"\",\"\",'Generated list'!C532)","v":""},{"$f":"IF('Generated list'!D532=\"\",\"\",'Generated list'!D532)","v":""}]
[null,{"$f":"IF('Generated list'!B533=\"\",\"\",'Generated list'!B533)","v":""},{"$f":"IF('Generated list'!C533=\"\",\"\",'Generated list'!C533)","v":""},{"$f":"IF('Generated list'!D533=\"\",\"\",'Generated list'!D533)","v":""}]
[null,{"$f":"IF('Generated list'!B534=\"\",\"\",'Generated list'!B534)","v":""},{"$f":"IF('Generated list'!C534=\"\",\"\",'Generated list'!C534)","v":""},{"$f":"IF('Generated list'!D534=\"\",\"\",'Generated list'!D534)","v":""}]
[null,{"$f":"IF('Generated list'!B535=\"\",\"\",'Generated list'!B535)","v":""},{"$f":"IF('Generated list'!C535=\"\",\"\",'Generated list'!C535)","v":""},{"$f":"IF('Generated list'!D535=\"\",\"\",'Generated list'!D535)","v":""}]
[null,{"$f":"IF('Generated list'!B536=\"\",\"\",'Generated list'!B536)","v":""},{"$f":"IF('Generated list'!C536=\"\",\"\",'Generated list'!C536)","v":""},{"$f":"IF('Generated list'!D536=\"\",\"\",'Generated list'!D536)","v":""}]
[null,{"$f":"IF('Generated list'!B537=\"\",\"\",'Generated list'!B537)","v":""},{"$f":"IF('Generated list'!C537=\"\",\"\",'Generated list'!C537)","v":""},{"$f":"IF('Generated list'!D537=\"\",\"\",'Generated list'!D537)","v":""}]
[null,{"$f":"IF('Generated list'!B538=\"\",\"\",'Generated list'!B538)","v":""},{"$f":"IF('Generated list'!C538=\"\",\"\",'Generated list'!C538)","v":""},{"$f":"IF('Generated list'!D538=\"\",\"\",'Generated list'!D538)","v":""}]
[null,{"$f":"IF('Generated list'!B539=\"\",\"\",'Generated list'!B539)","v":""},{"$f":"IF('Generated list'!C539=\"\",\"\",'Generated list'!C539)","v":""},{"$f":"IF('Generated list'!D539=\"\",\"\",'Generated list'!D539)","v":""}]
[null,{"$f":"IF('Generated list'!B540=\"\",\"\",'Generated list'!B540)","v":""},{"$f":"IF('Generated list'!C540=\"\",\"\",'Generated list'!C540)","v":""},{"$f":"IF('Generated list'!D540=\"\",\"\",'Generated list'!D540)","v":""}]
[null,{"$f":"IF('Generated list'!B541=\"\",\"\",'Generated list'!B541)","v":""},{"$f":"IF('Generated list'!C541=\"\",\"\",'Generated list'!C541)","v":""},{"$f":"IF('Generated list'!D541=\"\",\"\",'Generated list'!D541)","v":""}]
[null,{"$f":"IF('Generated list'!B542=\"\",\"\",'Generated list'!B542)","v":""},{"$f":"IF('Generated list'!C542=\"\",\"\",'Generated list'!C542)","v":""},{"$f":"IF('Generated list'!D542=\"\",\"\",'Generated list'!D542)","v":""}]
[null,{"$f":"IF('Generated list'!B543=\"\",\"\",'Generated list'!B543)","v":""},{"$f":"IF('Generated list'!C543=\"\",\"\",'Generated list'!C543)","v":""},{"$f":"IF('Generated list'!D543=\"\",\"\",'Generated list'!D543)","v":""}]
[null,{"$f":"IF('Generated list'!B544=\"\",\"\",'Generated list'!B544)","v":""},{"$f":"IF('Generated list'!C544=\"\",\"\",'Generated list'!C544)","v":""},{"$f":"IF('Generated list'!D544=\"\",\"\",'Generated list'!D544)","v":""}]
[null,{"$f":"IF('Generated list'!B545=\"\",\"\",'Generated list'!B545)","v":""},{"$f":"IF('Generated list'!C545=\"\",\"\",'Generated list'!C545)","v":""},{"$f":"IF('Generated list'!D545=\"\",\"\",'Generated list'!D545)","v":""}]
[null,{"$f":"IF('Generated list'!B546=\"\",\"\",'Generated list'!B546)","v":""},{"$f":"IF('Generated list'!C546=\"\",\"\",'Generated list'!C546)","v":""},{"$f":"IF('Generated list'!D546=\"\",\"\",'Generated list'!D546)","v":""}]
[null,{"$f":"IF('Generated list'!B547=\"\",\"\",'Generated list'!B547)","v":""},{"$f":"IF('Generated list'!C547=\"\",\"\",'Generated list'!C547)","v":""},{"$f":"IF('Generated list'!D547=\"\",\"\",'Generated list'!D547)","v":""}]
[null,{"$f":"IF('Generated list'!B548=\"\",\"\",'Generated list'!B548)","v":""},{"$f":"IF('Generated list'!C548=\"\",\"\",'Generated list'!C548)","v":""},{"$f":"IF('Generated list'!D548=\"\",\"\",'Generated list'!D548)","v":""}]
[null,{"$f":"IF('Generated list'!B549=\"\",\"\",'Generated list'!B549)","v":""},{"$f":"IF('Generated list'!C549=\"\",\"\",'Generated list'!C549)","v":""},{"$f":"IF('Generated list'!D549=\"\",\"\",'Generated list'!D549)","v":""}]
[null,{"$f":"IF('Generated list'!B550=\"\",\"\",'Generated list'!B550)","v":""},{"$f":"IF('Generated list'!C550=\"\",\"\",'Generated list'!C550)","v":""},{"$f":"IF('Generated list'!D550=\"\",\"\",'Generated list'!D550)","v":""}]
[null,{"$f":"IF('Generated list'!B551=\"\",\"\",'Generated list'!B551)","v":""},{"$f":"IF('Generated list'!C551=\"\",\"\",'Generated list'!C551)","v":""},{"$f":"IF('Generated list'!D551=\"\",\"\",'Generated list'!D551)","v":""}]
[null,{"$f":"IF('Generated list'!B552=\"\",\"\",'Generated list'!B552)","v":""},{"$f":"IF('Generated list'!C552=\"\",\"\",'Generated list'!C552)","v":""},{"$f":"IF('Generated list'!D552=\"\",\"\",'Generated list'!D552)","v":""}]
[null,{"$f":"IF('Generated list'!B553=\"\",\"\",'Generated list'!B553)","v":""},{"$f":"IF('Generated list'!C553=\"\",\"\",'Generated list'!C553)","v":""},{"$f":"IF('Generated list'!D553=\"\",\"\",'Generated list'!D553)","v":""}]
[null,{"$f":"IF('Generated list'!B554=\"\",\"\",'Generated list'!B554)","v":""},{"$f":"IF('Generated list'!C554=\"\",\"\",'Generated list'!C554)","v":""},{"$f":"IF('Generated list'!D554=\"\",\"\",'Generated list'!D554)","v":""}]
[null,{"$f":"IF('Generated list'!B555=\"\",\"\",'Generated list'!B555)","v":""},{"$f":"IF('Generated list'!C555=\"\",\"\",'Generated list'!C555)","v":""},{"$f":"IF('Generated list'!D555=\"\",\"\",'Generated list'!D555)","v":""}]
[null,{"$f":"IF('Generated list'!B556=\"\",\"\",'Generated list'!B556)","v":""},{"$f":"IF('Generated list'!C556=\"\",\"\",'Generated list'!C556)","v":""},{"$f":"IF('Generated list'!D556=\"\",\"\",'Generated list'!D556)","v":""}]
[null,{"$f":"IF('Generated list'!B557=\"\",\"\",'Generated list'!B557)","v":""},{"$f":"IF('Generated list'!C557=\"\",\"\",'Generated list'!C557)","v":""},{"$f":"IF('Generated list'!D557=\"\",\"\",'Generated list'!D557)","v":""}]
[null,{"$f":"IF('Generated list'!B558=\"\",\"\",'Generated list'!B558)","v":""},{"$f":"IF('Generated list'!C558=\"\",\"\",'Generated list'!C558)","v":""},{"$f":"IF('Generated list'!D558=\"\",\"\",'Generated list'!D558)","v":""}]
[null,{"$f":"IF('Generated list'!B559=\"\",\"\",'Generated list'!B559)","v":""},{"$f":"IF('Generated list'!C559=\"\",\"\",'Generated list'!C559)","v":""},{"$f":"IF('Generated list'!D559=\"\",\"\",'Generated list'!D559)","v":""}]
[null,{"$f":"IF('Generated list'!B560=\"\",\"\",'Generated list'!B560)","v":""},{"$f":"IF('Generated list'!C560=\"\",\"\",'Generated list'!C560)","v":""},{"$f":"IF('Generated list'!D560=\"\",\"\",'Generated list'!D560)","v":""}]
[null,{"$f":"IF('Generated list'!B561=\"\",\"\",'Generated list'!B561)","v":""},{"$f":"IF('Generated list'!C561=\"\",\"\",'Generated list'!C561)","v":""},{"$f":"IF('Generated list'!D561=\"\",\"\",'Generated list'!D561)","v":""}]
[null,{"$f":"IF('Generated list'!B562=\"\",\"\",'Generated list'!B562)","v":""},{"$f":"IF('Generated list'!C562=\"\",\"\",'Generated list'!C562)","v":""},{"$f":"IF('Generated list'!D562=\"\",\"\",'Generated list'!D562)","v":""}]
[null,{"$f":"IF('Generated list'!B563=\"\",\"\",'Generated list'!B563)","v":""},{"$f":"IF('Generated list'!C563=\"\",\"\",'Generated list'!C563)","v":""},{"$f":"IF('Generated list'!D563=\"\",\"\",'Generated list'!D563)","v":""}]
[null,{"$f":"IF('Generated list'!B564=\"\",\"\",'Generated list'!B564)","v":""},{"$f":"IF('Generated list'!C564=\"\",\"\",'Generated list'!C564)","v":""},{"$f":"IF('Generated list'!D564=\"\",\"\",'Generated list'!D564)","v":""}]
[null,{"$f":"IF('Generated list'!B565=\"\",\"\",'Generated list'!B565)","v":""},{"$f":"IF('Generated list'!C565=\"\",\"\",'Generated list'!C565)","v":""},{"$f":"IF('Generated list'!D565=\"\",\"\",'Generated list'!D565)","v":""}]
[null,{"$f":"IF('Generated list'!B566=\"\",\"\",'Generated list'!B566)","v":""},{"$f":"IF('Generated list'!C566=\"\",\"\",'Generated list'!C566)","v":""},{"$f":"IF('Generated list'!D566=\"\",\"\",'Generated list'!D566)","v":""}]
[null,{"$f":"IF('Generated list'!B567=\"\",\"\",'Generated list'!B567)","v":""},{"$f":"IF('Generated list'!C567=\"\",\"\",'Generated list'!C567)","v":""},{"$f":"IF('Generated list'!D567=\"\",\"\",'Generated list'!D567)","v":""}]
[null,{"$f":"IF('Generated list'!B568=\"\",\"\",'Generated list'!B568)","v":""},{"$f":"IF('Generated list'!C568=\"\",\"\",'Generated list'!C568)","v":""},{"$f":"IF('Generated list'!D568=\"\",\"\",'Generated list'!D568)","v":""}]
[null,{"$f":"IF('Generated list'!B569=\"\",\"\",'Generated list'!B569)","v":""},{"$f":"IF('Generated list'!C569=\"\",\"\",'Generated list'!C569)","v":""},{"$f":"IF('Generated list'!D569=\"\",\"\",'Generated list'!D569)","v":""}]
[null,{"$f":"IF('Generated list'!B570=\"\",\"\",'Generated list'!B570)","v":""},{"$f":"IF('Generated list'!C570=\"\",\"\",'Generated list'!C570)","v":""},{"$f":"IF('Generated list'!D570=\"\",\"\",'Generated list'!D570)","v":""}]
[null,{"$f":"IF('Generated list'!B571=\"\",\"\",'Generated list'!B571)","v":""},{"$f":"IF('Generated list'!C571=\"\",\"\",'Generated list'!C571)","v":""},{"$f":"IF('Generated list'!D571=\"\",\"\",'Generated list'!D571)","v":""}]
[null,{"$f":"IF('Generated list'!B572=\"\",\"\",'Generated list'!B572)","v":""},{"$f":"IF('Generated list'!C572=\"\",\"\",'Generated list'!C572)","v":""},{"$f":"IF('Generated list'!D572=\"\",\"\",'Generated list'!D572)","v":""}]
[null,{"$f":"IF('Generated list'!B573=\"\",\"\",'Generated list'!B573)","v":""},{"$f":"IF('Generated list'!C573=\"\",\"\",'Generated list'!C573)","v":""},{"$f":"IF('Generated list'!D573=\"\",\"\",'Generated list'!D573)","v":""}]
[null,{"$f":"IF('Generated list'!B574=\"\",\"\",'Generated list'!B574)","v":""},{"$f":"IF('Generated list'!C574=\"\",\"\",'Generated list'!C574)","v":""},{"$f":"IF('Generated list'!D574=\"\",\"\",'Generated list'!D574)","v":""}]
[null,{"$f":"IF('Generated list'!B575=\"\",\"\",'Generated list'!B575)","v":""},{"$f":"IF('Generated list'!C575=\"\",\"\",'Generated list'!C575)","v":""},{"$f":"IF('Generated list'!D575=\"\",\"\",'Generated list'!D575)","v":""}]
[null,{"$f":"IF('Generated list'!B576=\"\",\"\",'Generated list'!B576)","v":""},{"$f":"IF('Generated list'!C576=\"\",\"\",'Generated list'!C576)","v":""},{"$f":"IF('Generated list'!D576=\"\",\"\",'Generated list'!D576)","v":""}]
[null,{"$f":"IF('Generated list'!B577=\"\",\"\",'Generated list'!B577)","v":""},{"$f":"IF('Generated list'!C577=\"\",\"\",'Generated list'!C577)","v":""},{"$f":"IF('Generated list'!D577=\"\",\"\",'Generated list'!D577)","v":""}]
[null,{"$f":"IF('Generated list'!B578=\"\",\"\",'Generated list'!B578)","v":""},{"$f":"IF('Generated list'!C578=\"\",\"\",'Generated list'!C578)","v":""},{"$f":"IF('Generated list'!D578=\"\",\"\",'Generated list'!D578)","v":""}]
[null,{"$f":"IF('Generated list'!B579=\"\",\"\",'Generated list'!B579)","v":""},{"$f":"IF('Generated list'!C579=\"\",\"\",'Generated list'!C579)","v":""},{"$f":"IF('Generated list'!D579=\"\",\"\",'Generated list'!D579)","v":""}]
[null,{"$f":"IF('Generated list'!B580=\"\",\"\",'Generated list'!B580)","v":""},{"$f":"IF('Generated list'!C580=\"\",\"\",'Generated list'!C580)","v":""},{"$f":"IF('Generated list'!D580=\"\",\"\",'Generated list'!D580)","v":""}]
[null,{"$f":"IF('Generated list'!B581=\"\",\"\",'Generated list'!B581)","v":""},{"$f":"IF('Generated list'!C581=\"\",\"\",'Generated list'!C581)","v":""},{"$f":"IF('Generated list'!D581=\"\",\"\",'Generated list'!D581)","v":""}]
[null,{"$f":"IF('Generated list'!B582=\"\",\"\",'Generated list'!B582)","v":""},{"$f":"IF('Generated list'!C582=\"\",\"\",'Generated list'!C582)","v":""},{"$f":"IF('Generated list'!D582=\"\",\"\",'Generated list'!D582)","v":""}]
[null,{"$f":"IF('Generated list'!B583=\"\",\"\",'Generated list'!B583)","v":""},{"$f":"IF('Generated list'!C583=\"\",\"\",'Generated list'!C583)","v":""},{"$f":"IF('Generated list'!D583=\"\",\"\",'Generated list'!D583)","v":""}]
[null,{"$f":"IF('Generated list'!B584=\"\",\"\",'Generated list'!B584)","v":""},{"$f":"IF('Generated list'!C584=\"\",\"\",'Generated list'!C584)","v":""},{"$f":"IF('Generated list'!D584=\"\",\"\",'Generated list'!D584)","v":""}]
[null,{"$f":"IF('Generated list'!B585=\"\",\"\",'Generated list'!B585)","v":""},{"$f":"IF('Generated list'!C585=\"\",\"\",'Generated list'!C585)","v":""},{"$f":"IF('Generated list'!D585=\"\",\"\",'Generated list'!D585)","v":""}]
[null,{"$f":"IF('Generated list'!B586=\"\",\"\",'Generated list'!B586)","v":""},{"$f":"IF('Generated list'!C586=\"\",\"\",'Generated list'!C586)","v":""},{"$f":"IF('Generated list'!D586=\"\",\"\",'Generated list'!D586)","v":""}]
[null,{"$f":"IF('Generated list'!B587=\"\",\"\",'Generated list'!B587)","v":""},{"$f":"IF('Generated list'!C587=\"\",\"\",'Generated list'!C587)","v":""},{"$f":"IF('Generated list'!D587=\"\",\"\",'Generated list'!D587)","v":""}]
[null,{"$f":"IF('Generated list'!B588=\"\",\"\",'Generated list'!B588)","v":""},{"$f":"IF('Generated list'!C588=\"\",\"\",'Generated list'!C588)","v":""},{"$f":"IF('Generated list'!D588=\"\",\"\",'Generated list'!D588)","v":""}]
[null,{"$f":"IF('Generated list'!B589=\"\",\"\",'Generated list'!B589)","v":""},{"$f":"IF('Generated list'!C589=\"\",\"\",'Generated list'!C589)","v":""},{"$f":"IF('Generated list'!D589=\"\",\"\",'Generated list'!D589)","v":""}]
[null,{"$f":"IF('Generated list'!B590=\"\",\"\",'Generated list'!B590)","v":""},{"$f":"IF('Generated list'!C590=\"\",\"\",'Generated list'!C590)","v":""},{"$f":"IF('Generated list'!D590=\"\",\"\",'Generated list'!D590)","v":""}]
[null,{"$f":"IF('Generated list'!B591=\"\",\"\",'Generated list'!B591)","v":""},{"$f":"IF('Generated list'!C591=\"\",\"\",'Generated list'!C591)","v":""},{"$f":"IF('Generated list'!D591=\"\",\"\",'Generated list'!D591)","v":""}]
[null,{"$f":"IF('Generated list'!B592=\"\",\"\",'Generated list'!B592)","v":""},{"$f":"IF('Generated list'!C592=\"\",\"\",'Generated list'!C592)","v":""},{"$f":"IF('Generated list'!D592=\"\",\"\",'Generated list'!D592)","v":""}]
[null,{"$f":"IF('Generated list'!B593=\"\",\"\",'Generated list'!B593)","v":""},{"$f":"IF('Generated list'!C593=\"\",\"\",'Generated list'!C593)","v":""},{"$f":"IF('Generated list'!D593=\"\",\"\",'Generated list'!D593)","v":""}]
[null,{"$f":"IF('Generated list'!B594=\"\",\"\",'Generated list'!B594)","v":""},{"$f":"IF('Generated list'!C594=\"\",\"\",'Generated list'!C594)","v":""},{"$f":"IF('Generated list'!D594=\"\",\"\",'Generated list'!D594)","v":""}]
[null,{"$f":"IF('Generated list'!B595=\"\",\"\",'Generated list'!B595)","v":""},{"$f":"IF('Generated list'!C595=\"\",\"\",'Generated list'!C595)","v":""},{"$f":"IF('Generated list'!D595=\"\",\"\",'Generated list'!D595)","v":""}]
[null,{"$f":"IF('Generated list'!B596=\"\",\"\",'Generated list'!B596)","v":""},{"$f":"IF('Generated list'!C596=\"\",\"\",'Generated list'!C596)","v":""},{"$f":"IF('Generated list'!D596=\"\",\"\",'Generated list'!D596)","v":""}]
[null,{"$f":"IF('Generated list'!B597=\"\",\"\",'Generated list'!B597)","v":""},{"$f":"IF('Generated list'!C597=\"\",\"\",'Generated list'!C597)","v":""},{"$f":"IF('Generated list'!D597=\"\",\"\",'Generated list'!D597)","v":""}]
[null,{"$f":"IF('Generated list'!B598=\"\",\"\",'Generated list'!B598)","v":""},{"$f":"IF('Generated list'!C598=\"\",\"\",'Generated list'!C598)","v":""},{"$f":"IF('Generated list'!D598=\"\",\"\",'Generated list'!D598)","v":""}]
[null,{"$f":"IF('Generated list'!B599=\"\",\"\",'Generated list'!B599)","v":""},{"$f":"IF('Generated list'!C599=\"\",\"\",'Generated list'!C599)","v":""},{"$f":"IF('Generated list'!D599=\"\",\"\",'Generated list'!D599)","v":""}]
[null,{"$f":"IF('Generated list'!B600=\"\",\"\",'Generated list'!B600)","v":""},{"$f":"IF('Generated list'!C600=\"\",\"\",'Generated list'!C600)","v":""},{"$f":"IF('Generated list'!D600=\"\",\"\",'Generated list'!D600)","v":""}]
[null,{"$f":"IF('Generated list'!B601=\"\",\"\",'Generated list'!B601)","v":""},{"$f":"IF('Generated list'!C601=\"\",\"\",'Generated list'!C601)","v":""},{"$f":"IF('Generated list'!D601=\"\",\"\",'Generated list'!D601)","v":""}]
[null,{"$f":"IF('Generated list'!B602=\"\",\"\",'Generated list'!B602)","v":""},{"$f":"IF('Generated list'!C602=\"\",\"\",'Generated list'!C602)","v":""},{"$f":"IF('Generated list'!D602=\"\",\"\",'Generated list'!D602)","v":""}]
[null,{"$f":"IF('Generated list'!B603=\"\",\"\",'Generated list'!B603)","v":""},{"$f":"IF('Generated list'!C603=\"\",\"\",'Generated list'!C603)","v":""},{"$f":"IF('Generated list'!D603=\"\",\"\",'Generated list'!D603)","v":""}]
[null,{"$f":"IF('Generated list'!B604=\"\",\"\",'Generated list'!B604)","v":""},{"$f":"IF('Generated list'!C604=\"\",\"\",'Generated list'!C604)","v":""},{"$f":"IF('Generated list'!D604=\"\",\"\",'Generated list'!D604)","v":""}]
[null,{"$f":"IF('Generated list'!B605=\"\",\"\",'Generated list'!B605)","v":""},{"$f":"IF('Generated list'!C605=\"\",\"\",'Generated list'!C605)","v":""},{"$f":"IF('Generated list'!D605=\"\",\"\",'Generated list'!D605)","v":""}]
[null,{"$f":"IF('Generated list'!B606=\"\",\"\",'Generated list'!B606)","v":""},{"$f":"IF('Generated list'!C606=\"\",\"\",'Generated list'!C606)","v":""},{"$f":"IF('Generated list'!D606=\"\",\"\",'Generated list'!D606)","v":""}]
[null,{"$f":"IF('Generated list'!B607=\"\",\"\",'Generated list'!B607)","v":""},{"$f":"IF('Generated list'!C607=\"\",\"\",'Generated list'!C607)","v":""},{"$f":"IF('Generated list'!D607=\"\",\"\",'Generated list'!D607)","v":""}]
[null,{"$f":"IF('Generated list'!B608=\"\",\"\",'Generated list'!B608)","v":""},{"$f":"IF('Generated list'!C608=\"\",\"\",'Generated list'!C608)","v":""},{"$f":"IF('Generated list'!D608=\"\",\"\",'Generated list'!D608)","v":""}]
[null,{"$f":"IF('Generated list'!B609=\"\",\"\",'Generated list'!B609)","v":""},{"$f":"IF('Generated list'!C609=\"\",\"\",'Generated list'!C609)","v":""},{"$f":"IF('Generated list'!D609=\"\",\"\",'Generated list'!D609)","v":""}]
[null,{"$f":"IF('Generated list'!B610=\"\",\"\",'Generated list'!B610)","v":""},{"$f":"IF('Generated list'!C610=\"\",\"\",'Generated list'!C610)","v":""},{"$f":"IF('Generated list'!D610=\"\",\"\",'Generated list'!D610)","v":""}]
[null,{"$f":"IF('Generated list'!B611=\"\",\"\",'Generated list'!B611)","v":""},{"$f":"IF('Generated list'!C611=\"\",\"\",'Generated list'!C611)","v":""},{"$f":"IF('Generated list'!D611=\"\",\"\",'Generated list'!D611)","v":""}]
[null,{"$f":"IF('Generated list'!B612=\"\",\"\",'Generated list'!B612)","v":""},{"$f":"IF('Generated list'!C612=\"\",\"\",'Generated list'!C612)","v":""},{"$f":"IF('Generated list'!D612=\"\",\"\",'Generated list'!D612)","v":""}]
[null,{"$f":"IF('Generated list'!B613=\"\",\"\",'Generated list'!B613)","v":""},{"$f":"IF('Generated list'!C613=\"\",\"\",'Generated list'!C613)","v":""},{"$f":"IF('Generated list'!D613=\"\",\"\",'Generated list'!D613)","v":""}]
[null,{"$f":"IF('Generated list'!B614=\"\",\"\",'Generated list'!B614)","v":""},{"$f":"IF('Generated list'!C614=\"\",\"\",'Generated list'!C614)","v":""},{"$f":"IF('Generated list'!D614=\"\",\"\",'Generated list'!D614)","v":""}]
[null,{"$f":"IF('Generated list'!B615=\"\",\"\",'Generated list'!B615)","v":""},{"$f":"IF('Generated list'!C615=\"\",\"\",'Generated list'!C615)","v":""},{"$f":"IF('Generated list'!D615=\"\",\"\",'Generated list'!D615)","v":""}]
[null,{"$f":"IF('Generated list'!B616=\"\",\"\",'Generated list'!B616)","v":""},{"$f":"IF('Generated list'!C616=\"\",\"\",'Generated list'!C616)","v":""},{"$f":"IF('Generated list'!D616=\"\",\"\",'Generated list'!D616)","v":""}]
[null,{"$f":"IF('Generated list'!B617=\"\",\"\",'Generated list'!B617)","v":""},{"$f":"IF('Generated list'!C617=\"\",\"\",'Generated list'!C617)","v":""},{"$f":"IF('Generated list'!D617=\"\",\"\",'Generated list'!D617)","v":""}]
[null,{"$f":"IF('Generated list'!B618=\"\",\"\",'Generated list'!B618)","v":""},{"$f":"IF('Generated list'!C618=\"\",\"\",'Generated list'!C618)","v":""},{"$f":"IF('Generated list'!D618=\"\",\"\",'Generated list'!D618)","v":""}]
[null,{"$f":"IF('Generated list'!B619=\"\",\"\",'Generated list'!B619)","v":""},{"$f":"IF('Generated list'!C619=\"\",\"\",'Generated list'!C619)","v":""},{"$f":"IF('Generated list'!D619=\"\",\"\",'Generated list'!D619)","v":""}]
[null,{"$f":"IF('Generated list'!B620=\"\",\"\",'Generated list'!B620)","v":""},{"$f":"IF('Generated list'!C620=\"\",\"\",'Generated list'!C620)","v":""},{"$f":"IF('Generated list'!D620=\"\",\"\",'Generated list'!D620)","v":""}]
[null,{"$f":"IF('Generated list'!B621=\"\",\"\",'Generated list'!B621)","v":""},{"$f":"IF('Generated list'!C621=\"\",\"\",'Generated list'!C621)","v":""},{"$f":"IF('Generated list'!D621=\"\",\"\",'Generated list'!D621)","v":""}]
[null,{"$f":"IF('Generated list'!B622=\"\",\"\",'Generated list'!B622)","v":""},{"$f":"IF('Generated list'!C622=\"\",\"\",'Generated list'!C622)","v":""},{"$f":"IF('Generated list'!D622=\"\",\"\",'Generated list'!D622)","v":""}]
[null,{"$f":"IF('Generated list'!B623=\"\",\"\",'Generated list'!B623)","v":""},{"$f":"IF('Generated list'!C623=\"\",\"\",'Generated list'!C623)","v":""},{"$f":"IF('Generated list'!D623=\"\",\"\",'Generated list'!D623)","v":""}]
[null,{"$f":"IF('Generated list'!B624=\"\",\"\",'Generated list'!B624)","v":""},{"$f":"IF('Generated list'!C624=\"\",\"\",'Generated list'!C624)","v":""},{"$f":"IF('Generated list'!D624=\"\",\"\",'Generated list'!D624)","v":""}]
[null,{"$f":"IF('Generated list'!B625=\"\",\"\",'Generated list'!B625)","v":""},{"$f":"IF('Generated list'!C625=\"\",\"\",'Generated list'!C625)","v":""},{"$f":"IF('Generated list'!D625=\"\",\"\",'Generated list'!D625)","v":""}]
[null,{"$f":"IF('Generated list'!B626=\"\",\"\",'Generated list'!B626)","v":""},{"$f":"IF('Generated list'!C626=\"\",\"\",'Generated list'!C626)","v":""},{"$f":"IF('Generated list'!D626=\"\",\"\",'Generated list'!D626)","v":""}]
[null,{"$f":"IF('Generated list'!B627=\"\",\"\",'Generated list'!B627)","v":""},{"$f":"IF('Generated list'!C627=\"\",\"\",'Generated list'!C627)","v":""},{"$f":"IF('Generated list'!D627=\"\",\"\",'Generated list'!D627)","v":""}]
[null,{"$f":"IF('Generated list'!B628=\"\",\"\",'Generated list'!B628)","v":""},{"$f":"IF('Generated list'!C628=\"\",\"\",'Generated list'!C628)","v":""},{"$f":"IF('Generated list'!D628=\"\",\"\",'Generated list'!D628)","v":""}]
[null,{"$f":"IF('Generated list'!B629=\"\",\"\",'Generated list'!B629)","v":""},{"$f":"IF('Generated list'!C629=\"\",\"\",'Generated list'!C629)","v":""},{"$f":"IF('Generated list'!D629=\"\",\"\",'Generated list'!D629)","v":""}]
[null,{"$f":"IF('Generated list'!B630=\"\",\"\",'Generated list'!B630)","v":""},{"$f":"IF('Generated list'!C630=\"\",\"\",'Generated list'!C630)","v":""},{"$f":"IF('Generated list'!D630=\"\",\"\",'Generated list'!D630)","v":""}]
[null,{"$f":"IF('Generated list'!B631=\"\",\"\",'Generated list'!B631)","v":""},{"$f":"IF('Generated list'!C631=\"\",\"\",'Generated list'!C631)","v":""},{"$f":"IF('Generated list'!D631=\"\",\"\",'Generated list'!D631)","v":""}]
[null,{"$f":"IF('Generated list'!B632=\"\",\"\",'Generated list'!B632)","v":""},{"$f":"IF('Generated list'!C632=\"\",\"\",'Generated list'!C632)","v":""},{"$f":"IF('Generated list'!D632=\"\",\"\",'Generated list'!D632)","v":""}]
[null,{"$f":"IF('Generated list'!B633=\"\",\"\",'Generated list'!B633)","v":""},{"$f":"IF('Generated list'!C633=\"\",\"\",'Generated list'!C633)","v":""},{"$f":"IF('Generated list'!D633=\"\",\"\",'Generated list'!D633)","v":""}]
[null,{"$f":"IF('Generated list'!B634=\"\",\"\",'Generated list'!B634)","v":""},{"$f":"IF('Generated list'!C634=\"\",\"\",'Generated list'!C634)","v":""},{"$f":"IF('Generated list'!D634=\"\",\"\",'Generated list'!D634)","v":""}]
[null,{"$f":"IF('Generated list'!B635=\"\",\"\",'Generated list'!B635)","v":""},{"$f":"IF('Generated list'!C635=\"\",\"\",'Generated list'!C635)","v":""},{"$f":"IF('Generated list'!D635=\"\",\"\",'Generated list'!D635)","v":""}]
[null,{"$f":"IF('Generated list'!B636=\"\",\"\",'Generated list'!B636)","v":""},{"$f":"IF('Generated list'!C636=\"\",\"\",'Generated list'!C636)","v":""},{"$f":"IF('Generated list'!D636=\"\",\"\",'Generated list'!D636)","v":""}]
[null,{"$f":"IF('Generated list'!B637=\"\",\"\",'Generated list'!B637)","v":""},{"$f":"IF('Generated list'!C637=\"\",\"\",'Generated list'!C637)","v":""},{"$f":"IF('Generated list'!D637=\"\",\"\",'Generated list'!D637)","v":""}]
[null,{"$f":"IF('Generated list'!B638=\"\",\"\",'Generated list'!B638)","v":""},{"$f":"IF('Generated list'!C638=\"\",\"\",'Generated list'!C638)","v":""},{"$f":"IF('Generated list'!D638=\"\",\"\",'Generated list'!D638)","v":""}]
[null,{"$f":"IF('Generated list'!B639=\"\",\"\",'Generated list'!B639)","v":""},{"$f":"IF('Generated list'!C639=\"\",\"\",'Generated list'!C639)","v":""},{"$f":"IF('Generated list'!D639=\"\",\"\",'Generated list'!D639)","v":""}]
[null,{"$f":"IF('Generated list'!B640=\"\",\"\",'Generated list'!B640)","v":""},{"$f":"IF('Generated list'!C640=\"\",\"\",'Generated list'!C640)","v":""},{"$f":"IF('Generated list'!D640=\"\",\"\",'Generated list'!D640)","v":""}]
[null,{"$f":"IF('Generated list'!B641=\"\",\"\",'Generated list'!B641)","v":""},{"$f":"IF('Generated list'!C641=\"\",\"\",'Generated list'!C641)","v":""},{"$f":"IF('Generated list'!D641=\"\",\"\",'Generated list'!D641)","v":""}]
[null,{"$f":"IF('Generated list'!B642=\"\",\"\",'Generated list'!B642)","v":""},{"$f":"IF('Generated list'!C642=\"\",\"\",'Generated list'!C642)","v":""},{"$f":"IF('Generated list'!D642=\"\",\"\",'Generated list'!D642)","v":""}]
[null,{"$f":"IF('Generated list'!B643=\"\",\"\",'Generated list'!B643)","v":""},{"$f":"IF('Generated list'!C643=\"\",\"\",'Generated list'!C643)","v":""},{"$f":"IF('Generated list'!D643=\"\",\"\",'Generated list'!D643)","v":""}]
[null,{"$f":"IF('Generated list'!B644=\"\",\"\",'Generated list'!B644)","v":""},{"$f":"IF('Generated list'!C644=\"\",\"\",'Generated list'!C644)","v":""},{"$f":"IF('Generated list'!D644=\"\",\"\",'Generated list'!D644)","v":""}]
[null,{"$f":"IF('Generated list'!B645=\"\",\"\",'Generated list'!B645)","v":""},{"$f":"IF('Generated list'!C645=\"\",\"\",'Generated list'!C645)","v":""},{"$f":"IF('Generated list'!D645=\"\",\"\",'Generated list'!D645)","v":""}]
[null,{"$f":"IF('Generated list'!B646=\"\",\"\",'Generated list'!B646)","v":""},{"$f":"IF('Generated list'!C646=\"\",\"\",'Generated list'!C646)","v":""},{"$f":"IF('Generated list'!D646=\"\",\"\",'Generated list'!D646)","v":""}]
[null,{"$f":"IF('Generated list'!B647=\"\",\"\",'Generated list'!B647)","v":""},{"$f":"IF('Generated list'!C647=\"\",\"\",'Generated list'!C647)","v":""},{"$f":"IF('Generated list'!D647=\"\",\"\",'Generated list'!D647)","v":""}]
[null,{"$f":"IF('Generated list'!B648=\"\",\"\",'Generated list'!B648)","v":""},{"$f":"IF('Generated list'!C648=\"\",\"\",'Generated list'!C648)","v":""},{"$f":"IF('Generated list'!D648=\"\",\"\",'Generated list'!D648)","v":""}]
[null,{"$f":"IF('Generated list'!B649=\"\",\"\",'Generated list'!B649)","v":""},{"$f":"IF('Generated list'!C649=\"\",\"\",'Generated list'!C649)","v":""},{"$f":"IF('Generated list'!D649=\"\",\"\",'Generated list'!D649)","v":""}]
[null,{"$f":"IF('Generated list'!B650=\"\",\"\",'Generated list'!B650)","v":""},{"$f":"IF('Generated list'!C650=\"\",\"\",'Generated list'!C650)","v":""},{"$f":"IF('Generated list'!D650=\"\",\"\",'Generated list'!D650)","v":""}]
[null,{"$f":"IF('Generated list'!B651=\"\",\"\",'Generated list'!B651)","v":""},{"$f":"IF('Generated list'!C651=\"\",\"\",'Generated list'!C651)","v":""},{"$f":"IF('Generated list'!D651=\"\",\"\",'Generated list'!D651)","v":""}]
[null,{"$f":"IF('Generated list'!B652=\"\",\"\",'Generated list'!B652)","v":""},{"$f":"IF('Generated list'!C652=\"\",\"\",'Generated list'!C652)","v":""},{"$f":"IF('Generated list'!D652=\"\",\"\",'Generated list'!D652)","v":""}]
[null,{"$f":"IF('Generated list'!B653=\"\",\"\",'Generated list'!B653)","v":""},{"$f":"IF('Generated list'!C653=\"\",\"\",'Generated list'!C653)","v":""},{"$f":"IF('Generated list'!D653=\"\",\"\",'Generated list'!D653)","v":""}]
[null,{"$f":"IF('Generated list'!B654=\"\",\"\",'Generated list'!B654)","v":""},{"$f":"IF('Generated list'!C654=\"\",\"\",'Generated list'!C654)","v":""},{"$f":"IF('Generated list'!D654=\"\",\"\",'Generated list'!D654)","v":""}]
[null,{"$f":"IF('Generated list'!B655=\"\",\"\",'Generated list'!B655)","v":""},{"$f":"IF('Generated list'!C655=\"\",\"\",'Generated list'!C655)","v":""},{"$f":"IF('Generated list'!D655=\"\",\"\",'Generated list'!D655)","v":""}]
[null,{"$f":"IF('Generated list'!B656=\"\",\"\",'Generated list'!B656)","v":""},{"$f":"IF('Generated list'!C656=\"\",\"\",'Generated list'!C656)","v":""},{"$f":"IF('Generated list'!D656=\"\",\"\",'Generated list'!D656)","v":""}]
[null,{"$f":"IF('Generated list'!B657=\"\",\"\",'Generated list'!B657)","v":""},{"$f":"IF('Generated list'!C657=\"\",\"\",'Generated list'!C657)","v":""},{"$f":"IF('Generated list'!D657=\"\",\"\",'Generated list'!D657)","v":""}]
[null,{"$f":"IF('Generated list'!B658=\"\",\"\",'Generated list'!B658)","v":""},{"$f":"IF('Generated list'!C658=\"\",\"\",'Generated list'!C658)","v":""},{"$f":"IF('Generated list'!D658=\"\",\"\",'Generated list'!D658)","v":""}]
[null,{"$f":"IF('Generated list'!B659=\"\",\"\",'Generated list'!B659)","v":""},{"$f":"IF('Generated list'!C659=\"\",\"\",'Generated list'!C659)","v":""},{"$f":"IF('Generated list'!D659=\"\",\"\",'Generated list'!D659)","v":""}]
[null,{"$f":"IF('Generated list'!B660=\"\",\"\",'Generated list'!B660)","v":""},{"$f":"IF('Generated list'!C660=\"\",\"\",'Generated list'!C660)","v":""},{"$f":"IF('Generated list'!D660=\"\",\"\",'Generated list'!D660)","v":""}]
[null,{"$f":"IF('Generated list'!B661=\"\",\"\",'Generated list'!B661)","v":""},{"$f":"IF('Generated list'!C661=\"\",\"\",'Generated list'!C661)","v":""},{"$f":"IF('Generated list'!D661=\"\",\"\",'Generated list'!D661)","v":""}]
[null,{"$f":"IF('Generated list'!B662=\"\",\"\",'Generated list'!B662)","v":""},{"$f":"IF('Generated list'!C662=\"\",\"\",'Generated list'!C662)","v":""},{"$f":"IF('Generated list'!D662=\"\",\"\",'Generated list'!D662)","v":""}]
[null,{"$f":"IF('Generated list'!B663=\"\",\"\",'Generated list'!B663)","v":""},{"$f":"IF('Generated list'!C663=\"\",\"\",'Generated list'!C663)","v":""},{"$f":"IF('Generated list'!D663=\"\",\"\",'Generated list'!D663)","v":""}]
[null,{"$f":"IF('Generated list'!B664=\"\",\"\",'Generated list'!B664)","v":""},{"$f":"IF('Generated list'!C664=\"\",\"\",'Generated list'!C664)","v":""},{"$f":"IF('Generated list'!D664=\"\",\"\",'Generated list'!D664)","v":""}]
[null,{"$f":"IF('Generated list'!B665=\"\",\"\",'Generated list'!B665)","v":""},{"$f":"IF('Generated list'!C665=\"\",\"\",'Generated list'!C665)","v":""},{"$f":"IF('Generated list'!D665=\"\",\"\",'Generated list'!D665)","v":""}]
[null,{"$f":"IF('Generated list'!B666=\"\",\"\",'Generated list'!B666)","v":""},{"$f":"IF('Generated list'!C666=\"\",\"\",'Generated list'!C666)","v":""},{"$f":"IF('Generated list'!D666=\"\",\"\",'Generated list'!D666)","v":""}]
[null,{"$f":"IF('Generated list'!B667=\"\",\"\",'Generated list'!B667)","v":""},{"$f":"IF('Generated list'!C667=\"\",\"\",'Generated list'!C667)","v":""},{"$f":"IF('Generated list'!D667=\"\",\"\",'Generated list'!D667)","v":""}]
[null,{"$f":"IF('Generated list'!B668=\"\",\"\",'Generated list'!B668)","v":""},{"$f":"IF('Generated list'!C668=\"\",\"\",'Generated list'!C668)","v":""},{"$f":"IF('Generated list'!D668=\"\",\"\",'Generated list'!D668)","v":""}]
[null,{"$f":"IF('Generated list'!B669=\"\",\"\",'Generated list'!B669)","v":""},{"$f":"IF('Generated list'!C669=\"\",\"\",'Generated list'!C669)","v":""},{"$f":"IF('Generated list'!D669=\"\",\"\",'Generated list'!D669)","v":""}]
[null,{"$f":"IF('Generated list'!B670=\"\",\"\",'Generated list'!B670)","v":""},{"$f":"IF('Generated list'!C670=\"\",\"\",'Generated list'!C670)","v":""},{"$f":"IF('Generated list'!D670=\"\",\"\",'Generated list'!D670)","v":""}]
[null,{"$f":"IF('Generated list'!B671=\"\",\"\",'Generated list'!B671)","v":""},{"$f":"IF('Generated list'!C671=\"\",\"\",'Generated list'!C671)","v":""},{"$f":"IF('Generated list'!D671=\"\",\"\",'Generated list'!D671)","v":""}]
[null,{"$f":"IF('Generated list'!B672=\"\",\"\",'Generated list'!B672)","v":""},{"$f":"IF('Generated list'!C672=\"\",\"\",'Generated list'!C672)","v":""},{"$f":"IF('Generated list'!D672=\"\",\"\",'Generated list'!D672)","v":""}]
[null,{"$f":"IF('Generated list'!B673=\"\",\"\",'Generated list'!B673)","v":""},{"$f":"IF('Generated list'!C673=\"\",\"\",'Generated list'!C673)","v":""},{"$f":"IF('Generated list'!D673=\"\",\"\",'Generated list'!D673)","v":""}]
[null,{"$f":"IF('Generated list'!B674=\"\",\"\",'Generated list'!B674)","v":""},{"$f":"IF('Generated list'!C674=\"\",\"\",'Generated list'!C674)","v":""},{"$f":"IF('Generated list'!D674=\"\",\"\",'Generated list'!D674)","v":""}]
[null,{"$f":"IF('Generated list'!B675=\"\",\"\",'Generated list'!B675)","v":""},{"$f":"IF('Generated list'!C675=\"\",\"\",'Generated list'!C675)","v":""},{"$f":"IF('Generated list'!D675=\"\",\"\",'Generated list'!D675)","v":""}]
[null,{"$f":"IF('Generated list'!B676=\"\",\"\",'Generated list'!B676)","v":""},{"$f":"IF('Generated list'!C676=\"\",\"\",'Generated list'!C676)","v":""},{"$f":"IF('Generated list'!D676=\"\",\"\",'Generated list'!D676)","v":""}]
[null,{"$f":"IF('Generated list'!B677=\"\",\"\",'Generated list'!B677)","v":""},{"$f":"IF('Generated list'!C677=\"\",\"\",'Generated list'!C677)","v":""},{"$f":"IF('Generated list'!D677=\"\",\"\",'Generated list'!D677)","v":""}]
[null,{"$f":"IF('Generated list'!B678=\"\",\"\",'Generated list'!B678)","v":""},{"$f":"IF('Generated list'!C678=\"\",\"\",'Generated list'!C678)","v":""},{"$f":"IF('Generated list'!D678=\"\",\"\",'Generated list'!D678)","v":""}]
[null,{"$f":"IF('Generated list'!B679=\"\",\"\",'Generated list'!B679)","v":""},{"$f":"IF('Generated list'!C679=\"\",\"\",'Generated list'!C679)","v":""},{"$f":"IF('Generated list'!D679=\"\",\"\",'Generated list'!D679)","v":""}]
[null,{"$f":"IF('Generated list'!B680=\"\",\"\",'Generated list'!B680)","v":""},{"$f":"IF('Generated list'!C680=\"\",\"\",'Generated list'!C680)","v":""},{"$f":"IF('Generated list'!D680=\"\",\"\",'Generated list'!D680)","v":""}]
[null,{"$f":"IF('Generated list'!B681=\"\",\"\",'Generated list'!B681)","v":""},{"$f":"IF('Generated list'!C681=\"\",\"\",'Generated list'!C681)","v":""},{"$f":"IF('Generated list'!D681=\"\",\"\",'Generated list'!D681)","v":""}]
[null,{"$f":"IF('Generated list'!B682=\"\",\"\",'Generated list'!B682)","v":""},{"$f":"IF('Generated list'!C682=\"\",\"\",'Generated list'!C682)","v":""},{"$f":"IF('Generated list'!D682=\"\",\"\",'Generated list'!D682)","v":""}]
[null,{"$f":"IF('Generated list'!B683=\"\",\"\",'Generated list'!B683)","v":""},{"$f":"IF('Generated list'!C683=\"\",\"\",'Generated list'!C683)","v":""},{"$f":"IF('Generated list'!D683=\"\",\"\",'Generated list'!D683)","v":""}]
[null,{"$f":"IF('Generated list'!B684=\"\",\"\",'Generated list'!B684)","v":""},{"$f":"IF('Generated list'!C684=\"\",\"\",'Generated list'!C684)","v":""},{"$f":"IF('Generated list'!D684=\"\",\"\",'Generated list'!D684)","v":""}]
[null,{"$f":"IF('Generated list'!B685=\"\",\"\",'Generated list'!B685)","v":""},{"$f":"IF('Generated list'!C685=\"\",\"\",'Generated list'!C685)","v":""},{"$f":"IF('Generated list'!D685=\"\",\"\",'Generated list'!D685)","v":""}]
[null,{"$f":"IF('Generated list'!B686=\"\",\"\",'Generated list'!B686)","v":""},{"$f":"IF('Generated list'!C686=\"\",\"\",'Generated list'!C686)","v":""},{"$f":"IF('Generated list'!D686=\"\",\"\",'Generated list'!D686)","v":""}]
[null,{"$f":"IF('Generated list'!B687=\"\",\"\",'Generated list'!B687)","v":""},{"$f":"IF('Generated list'!C687=\"\",\"\",'Generated list'!C687)","v":""},{"$f":"IF('Generated list'!D687=\"\",\"\",'Generated list'!D687)","v":""}]
[null,{"$f":"IF('Generated list'!B688=\"\",\"\",'Generated list'!B688)","v":""},{"$f":"IF('Generated list'!C688=\"\",\"\",'Generated list'!C688)","v":""},{"$f":"IF('Generated list'!D688=\"\",\"\",'Generated list'!D688)","v":""}]
[null,{"$f":"IF('Generated list'!B689=\"\",\"\",'Generated list'!B689)","v":""},{"$f":"IF('Generated list'!C689=\"\",\"\",'Generated list'!C689)","v":""},{"$f":"IF('Generated list'!D689=\"\",\"\",'Generated list'!D689)","v":""}]
[null,{"$f":"IF('Generated list'!B690=\"\",\"\",'Generated list'!B690)","v":""},{"$f":"IF('Generated list'!C690=\"\",\"\",'Generated list'!C690)","v":""},{"$f":"IF('Generated list'!D690=\"\",\"\",'Generated list'!D690)","v":""}]
[null,{"$f":"IF('Generated list'!B691=\"\",\"\",'Generated list'!B691)","v":""},{"$f":"IF('Generated list'!C691=\"\",\"\",'Generated list'!C691)","v":""},{"$f":"IF('Generated list'!D691=\"\",\"\",'Generated list'!D691)","v":""}]
[null,{"$f":"IF('Generated list'!B692=\"\",\"\",'Generated list'!B692)","v":""},{"$f":"IF('Generated list'!C692=\"\",\"\",'Generated list'!C692)","v":""},{"$f":"IF('Generated list'!D692=\"\",\"\",'Generated list'!D692)","v":""}]
[null,{"$f":"IF('Generated list'!B693=\"\",\"\",'Generated list'!B693)","v":""},{"$f":"IF('Generated list'!C693=\"\",\"\",'Generated list'!C693)","v":""},{"$f":"IF('Generated list'!D693=\"\",\"\",'Generated list'!D693)","v":""}]
[null,{"$f":"IF('Generated list'!B694=\"\",\"\",'Generated list'!B694)","v":""},{"$f":"IF('Generated list'!C694=\"\",\"\",'Generated list'!C694)","v":""},{"$f":"IF('Generated list'!D694=\"\",\"\",'Generated list'!D694)","v":""}]
[null,{"$f":"IF('Generated list'!B695=\"\",\"\",'Generated list'!B695)","v":""},{"$f":"IF('Generated list'!C695=\"\",\"\",'Generated list'!C695)","v":""},{"$f":"IF('Generated list'!D695=\"\",\"\",'Generated list'!D695)","v":""}]
[null,{"$f":"IF('Generated list'!B696=\"\",\"\",'Generated list'!B696)","v":""},{"$f":"IF('Generated list'!C696=\"\",\"\",'Generated list'!C696)","v":""},{"$f":"IF('Generated list'!D696=\"\",\"\",'Generated list'!D696)","v":""}]
[null,{"$f":"IF('Generated list'!B697=\"\",\"\",'Generated list'!B697)","v":""},{"$f":"IF('Generated list'!C697=\"\",\"\",'Generated list'!C697)","v":""},{"$f":"IF('Generated list'!D697=\"\",\"\",'Generated list'!D697)","v":""}]
[null,{"$f":"IF('Generated list'!B698=\"\",\"\",'Generated list'!B698)","v":""},{"$f":"IF('Generated list'!C698=\"\",\"\",'Generated list'!C698)","v":""},{"$f":"IF('Generated list'!D698=\"\",\"\",'Generated list'!D698)","v":""}]
[null,{"$f":"IF('Generated list'!B699=\"\",\"\",'Generated list'!B699)","v":""},{"$f":"IF('Generated list'!C699=\"\",\"\",'Generated list'!C699)","v":""},{"$f":"IF('Generated list'!D699=\"\",\"\",'Generated list'!D699)","v":""}]
[null,{"$f":"IF('Generated list'!B700=\"\",\"\",'Generated list'!B700)","v":""},{"$f":"IF('Generated list'!C700=\"\",\"\",'Generated list'!C700)","v":""},{"$f":"IF('Generated list'!D700=\"\",\"\",'Generated list'!D700)","v":""}]
[null,{"$f":"IF('Generated list'!B701=\"\",\"\",'Generated list'!B701)","v":""},{"$f":"IF('Generated list'!C701=\"\",\"\",'Generated list'!C701)","v":""},{"$f":"IF('Generated list'!D701=\"\",\"\",'Generated list'!D701)","v":""}]
[null,{"$f":"IF('Generated list'!B702=\"\",\"\",'Generated list'!B702)","v":""},{"$f":"IF('Generated list'!C702=\"\",\"\",'Generated list'!C702)","v":""},{"$f":"IF('Generated list'!D702=\"\",\"\",'Generated list'!D702)","v":""}]
[null,{"$f":"IF('Generated list'!B703=\"\",\"\",'Generated list'!B703)","v":""},{"$f":"IF('Generated list'!C703=\"\",\"\",'Generated list'!C703)","v":""},{"$f":"IF('Generated list'!D703=\"\",\"\",'Generated list'!D703)","v":""}]
[null,{"$f":"IF('Generated list'!B704=\"\",\"\",'Generated list'!B704)","v":""},{"$f":"IF('Generated list'!C704=\"\",\"\",'Generated list'!C704)","v":""},{"$f":"IF('Generated list'!D704=\"\",\"\",'Generated list'!D704)","v":""}]
[null,{"$f":"IF('Generated list'!B705=\"\",\"\",'Generated list'!B705)","v":""},{"$f":"IF('Generated list'!C705=\"\",\"\",'Generated list'!C705)","v":""},{"$f":"IF('Generated list'!D705=\"\",\"\",'Generated list'!D705)","v":""}]
[null,{"$f":"IF('Generated list'!B706=\"\",\"\",'Generated list'!B706)","v":""},{"$f":"IF('Generated list'!C706=\"\",\"\",'Generated list'!C706)","v":""},{"$f":"IF('Generated list'!D706=\"\",\"\",'Generated list'!D706)","v":""}]
[null,{"$f":"IF('Generated list'!B707=\"\",\"\",'Generated list'!B707)","v":""},{"$f":"IF('Generated list'!C707=\"\",\"\",'Generated list'!C707)","v":""},{"$f":"IF('Generated list'!D707=\"\",\"\",'Generated list'!D707)","v":""}]
[null,{"$f":"IF('Generated list'!B708=\"\",\"\",'Generated list'!B708)","v":""},{"$f":"IF('Generated list'!C708=\"\",\"\",'Generated list'!C708)","v":""},{"$f":"IF('Generated list'!D708=\"\",\"\",'Generated list'!D708)","v":""}]
[null,{"$f":"IF('Generated list'!B709=\"\",\"\",'Generated list'!B709)","v":""},{"$f":"IF('Generated list'!C709=\"\",\"\",'Generated list'!C709)","v":""},{"$f":"IF('Generated list'!D709=\"\",\"\",'Generated list'!D709)","v":""}]
[null,{"$f":"IF('Generated list'!B710=\"\",\"\",'Generated list'!B710)","v":""},{"$f":"IF('Generated list'!C710=\"\",\"\",'Generated list'!C710)","v":""},{"$f":"IF('Generated list'!D710=\"\",\"\",'Generated list'!D710)","v":""}]
[null,{"$f":"IF('Generated list'!B711=\"\",\"\",'Generated list'!B711)","v":""},{"$f":"IF('Generated list'!C711=\"\",\"\",'Generated list'!C711)","v":""},{"$f":"IF('Generated list'!D711=\"\",\"\",'Generated list'!D711)","v":""}]
[null,{"$f":"IF('Generated list'!B712=\"\",\"\",'Generated list'!B712)","v":""},{"$f":"IF('Generated list'!C712=\"\",\"\",'Generated list'!C712)","v":""},{"$f":"IF('Generated list'!D712=\"\",\"\",'Generated list'!D712)","v":""}]
[null,{"$f":"IF('Generated list'!B713=\"\",\"\",'Generated list'!B713)","v":""},{"$f":"IF('Generated list'!C713=\"\",\"\",'Generated list'!C713)","v":""},{"$f":"IF('Generated list'!D713=\"\",\"\",'Generated list'!D713)","v":""}]
[null,{"$f":"IF('Generated list'!B714=\"\",\"\",'Generated list'!B714)","v":""},{"$f":"IF('Generated list'!C714=\"\",\"\",'Generated list'!C714)","v":""},{"$f":"IF('Generated list'!D714=\"\",\"\",'Generated list'!D714)","v":""}]
[null,{"$f":"IF('Generated list'!B715=\"\",\"\",'Generated list'!B715)","v":""},{"$f":"IF('Generated list'!C715=\"\",\"\",'Generated list'!C715)","v":""},{"$f":"IF('Generated list'!D715=\"\",\"\",'Generated list'!D715)","v":""}]
[null,{"$f":"IF('Generated list'!B716=\"\",\"\",'Generated list'!B716)","v":""},{"$f":"IF('Generated list'!C716=\"\",\"\",'Generated list'!C716)","v":""},{"$f":"IF('Generated list'!D716=\"\",\"\",'Generated list'!D716)","v":""}]
[null,{"$f":"IF('Generated list'!B717=\"\",\"\",'Generated list'!B717)","v":""},{"$f":"IF('Generated list'!C717=\"\",\"\",'Generated list'!C717)","v":""},{"$f":"IF('Generated list'!D717=\"\",\"\",'Generated list'!D717)","v":""}]
[null,{"$f":"IF('Generated list'!B718=\"\",\"\",'Generated list'!B718)","v":""},{"$f":"IF('Generated list'!C718=\"\",\"\",'Generated list'!C718)","v":""},{"$f":"IF('Generated list'!D718=\"\",\"\",'Generated list'!D718)","v":""}]
[null,{"$f":"IF('Generated list'!B719=\"\",\"\",'Generated list'!B719)","v":""},{"$f":"IF('Generated list'!C719=\"\",\"\",'Generated list'!C719)","v":""},{"$f":"IF('Generated list'!D719=\"\",\"\",'Generated list'!D719)","v":""}]
[null,{"$f":"IF('Generated list'!B720=\"\",\"\",'Generated list'!B720)","v":""},{"$f":"IF('Generated list'!C720=\"\",\"\",'Generated list'!C720)","v":""},{"$f":"IF('Generated list'!D720=\"\",\"\",'Generated list'!D720)","v":""}]
[null,{"$f":"IF('Generated list'!B721=\"\",\"\",'Generated list'!B721)","v":""},{"$f":"IF('Generated list'!C721=\"\",\"\",'Generated list'!C721)","v":""},{"$f":"IF('Generated list'!D721=\"\",\"\",'Generated list'!D721)","v":""}]
[null,{"$f":"IF('Generated list'!B722=\"\",\"\",'Generated list'!B722)","v":""},{"$f":"IF('Generated list'!C722=\"\",\"\",'Generated list'!C722)","v":""},{"$f":"IF('Generated list'!D722=\"\",\"\",'Generated list'!D722)","v":""}]
[null,{"$f":"IF('Generated list'!B723=\"\",\"\",'Generated list'!B723)","v":""},{"$f":"IF('Generated list'!C723=\"\",\"\",'Generated list'!C723)","v":""},{"$f":"IF('Generated list'!D723=\"\",\"\",'Generated list'!D723)","v":""}]
[null,{"$f":"IF('Generated list'!B724=\"\",\"\",'Generated list'!B724)","v":""},{"$f":"IF('Generated list'!C724=\"\",\"\",'Generated list'!C724)","v":""},{"$f":"IF('Generated list'!D724=\"\",\"\",'Generated list'!D724)","v":""}]
[null,{"$f":"IF('Generated list'!B725=\"\",\"\",'Generated list'!B725)","v":""},{"$f":"IF('Generated list'!C725=\"\",\"\",'Generated list'!C725)","v":""},{"$f":"IF('Generated list'!D725=\"\",\"\",'Generated list'!D725)","v":""}]
[null,{"$f":"IF('Generated list'!B726=\"\",\"\",'Generated list'!B726)","v":""},{"$f":"IF('Generated list'!C726=\"\",\"\",'Generated list'!C726)","v":""},{"$f":"IF('Generated list'!D726=\"\",\"\",'Generated list'!D726)","v":""}]
[null,{"$f":"IF('Generated list'!B727=\"\",\"\",'Generated list'!B727)","v":""},{"$f":"IF('Generated list'!C727=\"\",\"\",'Generated list'!C727)","v":""},{"$f":"IF('Generated list'!D727=\"\",\"\",'Generated list'!D727)","v":""}]
[null,{"$f":"IF('Generated list'!B728=\"\",\"\",'Generated list'!B728)","v":""},{"$f":"IF('Generated list'!C728=\"\",\"\",'Generated list'!C728)","v":""},{"$f":"IF('Generated list'!D728=\"\",\"\",'Generated list'!D728)","v":""}]
[null,{"$f":"IF('Generated list'!B729=\"\",\"\",'Generated list'!B729)","v":""},{"$f":"IF('Generated list'!C729=\"\",\"\",'Generated list'!C729)","v":""},{"$f":"IF('Generated list'!D729=\"\",\"\",'Generated list'!D729)","v":""}]
[null,{"$f":"IF('Generated list'!B730=\"\",\"\",'Generated list'!B730)","v":""},{"$f":"IF('Generated list'!C730=\"\",\"\",'Generated list'!C730)","v":""},{"$f":"IF('Generated list'!D730=\"\",\"\",'Generated list'!D730)","v":""}]
[null,{"$f":"IF('Generated list'!B731=\"\",\"\",'Generated list'!B731)","v":""},{"$f":"IF('Generated list'!C731=\"\",\"\",'Generated list'!C731)","v":""},{"$f":"IF('Generated list'!D731=\"\",\"\",'Generated list'!D731)","v":""}]
[null,{"$f":"IF('Generated list'!B732=\"\",\"\",'Generated list'!B732)","v":""},{"$f":"IF('Generated list'!C732=\"\",\"\",'Generated list'!C732)","v":""},{"$f":"IF('Generated list'!D732=\"\",\"\",'Generated list'!D732)","v":""}]
[null,{"$f":"IF('Generated list'!B733=\"\",\"\",'Generated list'!B733)","v":""},{"$f":"IF('Generated list'!C733=\"\",\"\",'Generated list'!C733)","v":""},{"$f":"IF('Generated list'!D733=\"\",\"\",'Generated list'!D733)","v":""}]
[null,{"$f":"IF('Generated list'!B734=\"\",\"\",'Generated list'!B734)","v":""},{"$f":"IF('Generated list'!C734=\"\",\"\",'Generated list'!C734)","v":""},{"$f":"IF('Generated list'!D734=\"\",\"\",'Generated list'!D734)","v":""}]
[null,{"$f":"IF('Generated list'!B735=\"\",\"\",'Generated list'!B735)","v":""},{"$f":"IF('Generated list'!C735=\"\",\"\",'Generated list'!C735)","v":""},{"$f":"IF('Generated list'!D735=\"\",\"\",'Generated list'!D735)","v":""}]
[null,{"$f":"IF('Generated list'!B736=\"\",\"\",'Generated list'!B736)","v":""},{"$f":"IF('Generated list'!C736=\"\",\"\",'Generated list'!C736)","v":""},{"$f":"IF('Generated list'!D736=\"\",\"\",'Generated list'!D736)","v":""}]
[null,{"$f":"IF('Generated list'!B737=\"\",\"\",'Generated list'!B737)","v":""},{"$f":"IF('Generated list'!C737=\"\",\"\",'Generated list'!C737)","v":""},{"$f":"IF('Generated list'!D737=\"\",\"\",'Generated list'!D737)","v":""}]
[null,{"$f":"IF('Generated list'!B738=\"\",\"\",'Generated list'!B738)","v":""},{"$f":"IF('Generated list'!C738=\"\",\"\",'Generated list'!C738)","v":""},{"$f":"IF('Generated list'!D738=\"\",\"\",'Generated list'!D738)","v":""}]
[null,{"$f":"IF('Generated list'!B739=\"\",\"\",'Generated list'!B739)","v":""},{"$f":"IF('Generated list'!C739=\"\",\"\",'Generated list'!C739)","v":""},{"$f":"IF('Generated list'!D739=\"\",\"\",'Generated list'!D739)","v":""}]
[null,{"$f":"IF('Generated list'!B740=\"\",\"\",'Generated list'!B740)","v":""},{"$f":"IF('Generated list'!C740=\"\",\"\",'Generated list'!C740)","v":""},{"$f":"IF('Generated list'!D740=\"\",\"\",'Generated list'!D740)","v":""}]
[null,{"$f":"IF('Generated list'!B741=\"\",\"\",'Generated list'!B741)","v":""},{"$f":"IF('Generated list'!C741=\"\",\"\",'Generated list'!C741)","v":""},{"$f":"IF('Generated list'!D741=\"\",\"\",'Generated list'!D741)","v":""}]
[null,{"$f":"IF('Generated list'!B742=\"\",\"\",'Generated list'!B742)","v":""},{"$f":"IF('Generated list'!C742=\"\",\"\",'Generated list'!C742)","v":""},{"$f":"IF('Generated list'!D742=\"\",\"\",'Generated list'!D742)","v":""}]
[null,{"$f":"IF('Generated list'!B743=\"\",\"\",'Generated list'!B743)","v":""},{"$f":"IF('Generated list'!C743=\"\",\"\",'Generated list'!C743)","v":""},{"$f":"IF('Generated list'!D743=\"\",\"\",'Generated list'!D743)","v":""}]
[null,{"$f":"IF('Generated list'!B744=\"\",\"\",'Generated list'!B744)","v":""},{"$f":"IF('Generated list'!C744=\"\",\"\",'Generated list'!C744)","v":""},{"$f":"IF('Generated list'!D744=\"\",\"\",'Generated list'!D744)","v":""}]
[null,{"$f":"IF('Generated list'!B745=\"\",\"\",'Generated list'!B745)","v":""},{"$f":"IF('Generated list'!C745=\"\",\"\",'Generated list'!C745)","v":""},{"$f":"IF('Generated list'!D745=\"\",\"\",'Generated list'!D745)","v":""}]
[null,{"$f":"IF('Generated list'!B746=\"\",\"\",'Generated list'!B746)","v":""},{"$f":"IF('Generated list'!C746=\"\",\"\",'Generated list'!C746)","v":""},{"$f":"IF('Generated list'!D746=\"\",\"\",'Generated list'!D746)","v":""}]
[null,{"$f":"IF('Generated list'!B747=\"\",\"\",'Generated list'!B747)","v":""},{"$f":"IF('Generated list'!C747=\"\",\"\",'Generated list'!C747)","v":""},{"$f":"IF('Generated list'!D747=\"\",\"\",'Generated list'!D747)","v":""}]
[null,{"$f":"IF('Generated list'!B748=\"\",\"\",'Generated list'!B748)","v":""},{"$f":"IF('Generated list'!C748=\"\",\"\",'Generated list'!C748)","v":""},{"$f":"IF('Generated list'!D748=\"\",\"\",'Generated list'!D748)","v":""}]
[null,{"$f":"IF('Generated list'!B749=\"\",\"\",'Generated list'!B749)","v":""},{"$f":"IF('Generated list'!C749=\"\",\"\",'Generated list'!C749)","v":""},{"$f":"IF('Generated list'!D749=\"\",\"\",'Generated list'!D749)","v":""}]
[null,{"$f":"IF('Generated list'!B750=\"\",\"\",'Generated list'!B750)","v":""},{"$f":"IF('Generated list'!C750=\"\",\"\",'Generated list'!C750)","v":""},{"$f":"IF('Generated list'!D750=\"\",\"\",'Generated list'!D750)","v":""}]
[null,{"$f":"IF('Generated list'!B751=\"\",\"\",'Generated list'!B751)","v":""},{"$f":"IF('Generated list'!C751=\"\",\"\",'Generated list'!C751)","v":""},{"$f":"IF('Generated list'!D751=\"\",\"\",'Generated list'!D751)","v":""}]
[null,{"$f":"IF('Generated list'!B752=\"\",\"\",'Generated list'!B752)","v":""},{"$f":"IF('Generated list'!C752=\"\",\"\",'Generated list'!C752)","v":""},{"$f":"IF('Generated list'!D752=\"\",\"\",'Generated list'!D752)","v":""}]
[null,{"$f":"IF('Generated list'!B753=\"\",\"\",'Generated list'!B753)","v":""},{"$f":"IF('Generated list'!C753=\"\",\"\",'Generated list'!C753)","v":""},{"$f":"IF('Generated list'!D753=\"\",\"\",'Generated list'!D753)","v":""}]
[null,{"$f":"IF('Generated list'!B754=\"\",\"\",'Generated list'!B754)","v":""},{"$f":"IF('Generated list'!C754=\"\",\"\",'Generated list'!C754)","v":""},{"$f":"IF('Generated list'!D754=\"\",\"\",'Generated list'!D754)","v":""}]
[null,{"$f":"IF('Generated list'!B755=\"\",\"\",'Generated list'!B755)","v":""},{"$f":"IF('Generated list'!C755=\"\",\"\",'Generated list'!C755)","v":""},{"$f":"IF('Generated list'!D755=\"\",\"\",'Generated list'!D755)","v":""}]
[null,{"$f":"IF('Generated list'!B756=\"\",\"\",'Generated list'!B756)","v":""},{"$f":"IF('Generated list'!C756=\"\",\"\",'Generated list'!C756)","v":""},{"$f":"IF('Generated list'!D756=\"\",\"\",'Generated list'!D756)","v":""}]
[null,{"$f":"IF('Generated list'!B757=\"\",\"\",'Generated list'!B757)","v":""},{"$f":"IF('Generated list'!C757=\"\",\"\",'Generated list'!C757)","v":""},{"$f":"IF('Generated list'!D757=\"\",\"\",'Generated list'!D757)","v":""}]
[null,{"$f":"IF('Generated list'!B758=\"\",\"\",'Generated list'!B758)","v":""},{"$f":"IF('Generated list'!C758=\"\",\"\",'Generated list'!C758)","v":""},{"$f":"IF('Generated list'!D758=\"\",\"\",'Generated list'!D758)","v":""}]
[null,{"$f":"IF('Generated list'!B759=\"\",\"\",'Generated list'!B759)","v":""},{"$f":"IF('Generated list'!C759=\"\",\"\",'Generated list'!C759)","v":""},{"$f":"IF('Generated list'!D759=\"\",\"\",'Generated list'!D759)","v":""}]
[null,{"$f":"IF('Generated list'!B760=\"\",\"\",'Generated list'!B760)","v":""},{"$f":"IF('Generated list'!C760=\"\",\"\",'Generated list'!C760)","v":""},{"$f":"IF('Generated list'!D760=\"\",\"\",'Generated list'!D760)","v":""}]
[null,{"$f":"IF('Generated list'!B761=\"\",\"\",'Generated list'!B761)","v":""},{"$f":"IF('Generated list'!C761=\"\",\"\",'Generated list'!C761)","v":""},{"$f":"IF('Generated list'!D761=\"\",\"\",'Generated list'!D761)","v":""}]
[null,{"$f":"IF('Generated list'!B762=\"\",\"\",'Generated list'!B762)","v":""},{"$f":"IF('Generated list'!C762=\"\",\"\",'Generated list'!C762)","v":""},{"$f":"IF('Generated list'!D762=\"\",\"\",'Generated list'!D762)","v":""}]
[null,{"$f":"IF('Generated list'!B763=\"\",\"\",'Generated list'!B763)","v":""},{"$f":"IF('Generated list'!C763=\"\",\"\",'Generated list'!C763)","v":""},{"$f":"IF('Generated list'!D763=\"\",\"\",'Generated list'!D763)","v":""}]
[null,{"$f":"IF('Generated list'!B764=\"\",\"\",'Generated list'!B764)","v":""},{"$f":"IF('Generated list'!C764=\"\",\"\",'Generated list'!C764)","v":""},{"$f":"IF('Generated list'!D764=\"\",\"\",'Generated list'!D764)","v":""}]
[null,{"$f":"IF('Generated list'!B765=\"\",\"\",'Generated list'!B765)","v":""},{"$f":"IF('Generated list'!C765=\"\",\"\",'Generated list'!C765)","v":""},{"$f":"IF('Generated list'!D765=\"\",\"\",'Generated list'!D765)","v":""}]
[null,{"$f":"IF('Generated list'!B766=\"\",\"\",'Generated list'!B766)","v":""},{"$f":"IF('Generated list'!C766=\"\",\"\",'Generated list'!C766)","v":""},{"$f":"IF('Generated list'!D766=\"\",\"\",'Generated list'!D766)","v":""}]
[null,{"$f":"IF('Generated list'!B767=\"\",\"\",'Generated list'!B767)","v":""},{"$f":"IF('Generated list'!C767=\"\",\"\",'Generated list'!C767)","v":""},{"$f":"IF('Generated list'!D767=\"\",\"\",'Generated list'!D767)","v":""}]
[null,{"$f":"IF('Generated list'!B768=\"\",\"\",'Generated list'!B768)","v":""},{"$f":"IF('Generated list'!C768=\"\",\"\",'Generated list'!C768)","v":""},{"$f":"IF('Generated list'!D768=\"\",\"\",'Generated list'!D768)","v":""}]
[null,{"$f":"IF('Generated list'!B769=\"\",\"\",'Generated list'!B769)","v":""},{"$f":"IF('Generated list'!C769=\"\",\"\",'Generated list'!C769)","v":""},{"$f":"IF('Generated list'!D769=\"\",\"\",'Generated list'!D769)","v":""}]
[null,{"$f":"IF('Generated list'!B770=\"\",\"\",'Generated list'!B770)","v":""},{"$f":"IF('Generated list'!C770=\"\",\"\",'Generated list'!C770)","v":""},{"$f":"IF('Generated list'!D770=\"\",\"\",'Generated list'!D770)","v":""}]
[null,{"$f":"IF('Generated list'!B771=\"\",\"\",'Generated list'!B771)","v":""},{"$f":"IF('Generated list'!C771=\"\",\"\",'Generated list'!C771)","v":""},{"$f":"IF('Generated list'!D771=\"\",\"\",'Generated list'!D771)","v":""}]
[null,{"$f":"IF('Generated list'!B772=\"\",\"\",'Generated list'!B772)","v":""},{"$f":"IF('Generated list'!C772=\"\",\"\",'Generated list'!C772)","v":""},{"$f":"IF('Generated list'!D772=\"\",\"\",'Generated list'!D772)","v":""}]
[null,{"$f":"IF('Generated list'!B773=\"\",\"\",'Generated list'!B773)","v":""},{"$f":"IF('Generated list'!C773=\"\",\"\",'Generated list'!C773)","v":""},{"$f":"IF('Generated list'!D773=\"\",\"\",'Generated list'!D773)","v":""}]
[null,{"$f":"IF('Generated list'!B774=\"\",\"\",'Generated list'!B774)","v":""},{"$f":"IF('Generated list'!C774=\"\",\"\",'Generated list'!C774)","v":""},{"$f":"IF('Generated list'!D774=\"\",\"\",'Generated list'!D774)","v":""}]
[null,{"$f":"IF('Generated list'!B775=\"\",\"\",'Generated list'!B775)","v":""},{"$f":"IF('Generated list'!C775=\"\",\"\",'Generated list'!C775)","v":""},{"$f":"IF('Generated list'!D775=\"\",\"\",'Generated list'!D775)","v":""}]
[null,{"$f":"IF('Generated list'!B776=\"\",\"\",'Generated list'!B776)","v":""},{"$f":"IF('Generated list'!C776=\"\",\"\",'Generated list'!C776)","v":""},{"$f":"IF('Generated list'!D776=\"\",\"\",'Generated list'!D776)","v":""}]
[null,{"$f":"IF('Generated list'!B777=\"\",\"\",'Generated list'!B777)","v":""},{"$f":"IF('Generated list'!C777=\"\",\"\",'Generated list'!C777)","v":""},{"$f":"IF('Generated list'!D777=\"\",\"\",'Generated list'!D777)","v":""}]
[null,{"$f":"IF('Generated list'!B778=\"\",\"\",'Generated list'!B778)","v":""},{"$f":"IF('Generated list'!C778=\"\",\"\",'Generated list'!C778)","v":""},{"$f":"IF('Generated list'!D778=\"\",\"\",'Generated list'!D778)","v":""}]
[null,{"$f":"IF('Generated list'!B779=\"\",\"\",'Generated list'!B779)","v":""},{"$f":"IF('Generated list'!C779=\"\",\"\",'Generated list'!C779)","v":""},{"$f":"IF('Generated list'!D779=\"\",\"\",'Generated list'!D779)","v":""}]
[null,{"$f":"IF('Generated list'!B780=\"\",\"\",'Generated list'!B780)","v":""},{"$f":"IF('Generated list'!C780=\"\",\"\",'Generated list'!C780)","v":""},{"$f":"IF('Generated list'!D780=\"\",\"\",'Generated list'!D780)","v":""}]
[null,{"$f":"IF('Generated list'!B781=\"\",\"\",'Generated list'!B781)","v":""},{"$f":"IF('Generated list'!C781=\"\",\"\",'Generated list'!C781)","v":""},{"$f":"IF('Generated list'!D781=\"\",\"\",'Generated list'!D781)","v":""}]
[null,{"$f":"IF('Generated list'!B782=\"\",\"\",'Generated list'!B782)","v":""},{"$f":"IF('Generated list'!C782=\"\",\"\",'Generated list'!C782)","v":""},{"$f":"IF('Generated list'!D782=\"\",\"\",'Generated list'!D782)","v":""}]
[null,{"$f":"IF('Generated list'!B783=\"\",\"\",'Generated list'!B783)","v":""},{"$f":"IF('Generated list'!C783=\"\",\"\",'Generated list'!C783)","v":""},{"$f":"IF('Generated list'!D783=\"\",\"\",'Generated list'!D783)","v":""}]
[null,{"$f":"IF('Generated list'!B784=\"\",\"\",'Generated list'!B784)","v":""},{"$f":"IF('Generated list'!C784=\"\",\"\",'Generated list'!C784)","v":""},{"$f":"IF('Generated list'!D784=\"\",\"\",'Generated list'!D784)","v":""}]
[null,{"$f":"IF('Generated list'!B785=\"\",\"\",'Generated list'!B785)","v":""},{"$f":"IF('Generated list'!C785=\"\",\"\",'Generated list'!C785)","v":""},{"$f":"IF('Generated list'!D785=\"\",\"\",'Generated list'!D785)","v":""}]
[null,{"$f":"IF('Generated list'!B786=\"\",\"\",'Generated list'!B786)","v":""},{"$f":"IF('Generated list'!C786=\"\",\"\",'Generated list'!C786)","v":""},{"$f":"IF('Generated list'!D786=\"\",\"\",'Generated list'!D786)","v":""}]
[null,{"$f":"IF('Generated list'!B787=\"\",\"\",'Generated list'!B787)","v":""},{"$f":"IF('Generated list'!C787=\"\",\"\",'Generated list'!C787)","v":""},{"$f":"IF('Generated list'!D787=\"\",\"\",'Generated list'!D787)","v":""}]
[null,{"$f":"IF('Generated list'!B788=\"\",\"\",'Generated list'!B788)","v":""},{"$f":"IF('Generated list'!C788=\"\",\"\",'Generated list'!C788)","v":""},{"$f":"IF('Generated list'!D788=\"\",\"\",'Generated list'!D788)","v":""}]
[null,{"$f":"IF('Generated list'!B789=\"\",\"\",'Generated list'!B789)","v":""},{"$f":"IF('Generated list'!C789=\"\",\"\",'Generated list'!C789)","v":""},{"$f":"IF('Generated list'!D789=\"\",\"\",'Generated list'!D789)","v":""}]
[null,{"$f":"IF('Generated list'!B790=\"\",\"\",'Generated list'!B790)","v":""},{"$f":"IF('Generated list'!C790=\"\",\"\",'Generated list'!C790)","v":""},{"$f":"IF('Generated list'!D790=\"\",\"\",'Generated list'!D790)","v":""}]
[null,{"$f":"IF('Generated list'!B791=\"\",\"\",'Generated list'!B791)","v":""},{"$f":"IF('Generated list'!C791=\"\",\"\",'Generated list'!C791)","v":""},{"$f":"IF('Generated list'!D791=\"\",\"\",'Generated list'!D791)","v":""}]
[null,{"$f":"IF('Generated list'!B792=\"\",\"\",'Generated list'!B792)","v":""},{"$f":"IF('Generated list'!C792=\"\",\"\",'Generated list'!C792)","v":""},{"$f":"IF('Generated list'!D792=\"\",\"\",'Generated list'!D792)","v":""}]
[null,{"$f":"IF('Generated list'!B793=\"\",\"\",'Generated list'!B793)","v":""},{"$f":"IF('Generated list'!C793=\"\",\"\",'Generated list'!C793)","v":""},{"$f":"IF('Generated list'!D793=\"\",\"\",'Generated list'!D793)","v":""}]
[null,{"$f":"IF('Generated list'!B794=\"\",\"\",'Generated list'!B794)","v":""},{"$f":"IF('Generated list'!C794=\"\",\"\",'Generated list'!C794)","v":""},{"$f":"IF('Generated list'!D794=\"\",\"\",'Generated list'!D794)","v":""}]
[null,{"$f":"IF('Generated list'!B795=\"\",\"\",'Generated list'!B795)","v":""},{"$f":"IF('Generated list'!C795=\"\",\"\",'Generated list'!C795)","v":""},{"$f":"IF('Generated list'!D795=\"\",\"\",'Generated list'!D795)","v":""}]
[null,{"$f":"IF('Generated list'!B796=\"\",\"\",'Generated list'!B796)","v":""},{"$f":"IF('Generated list'!C796=\"\",\"\",'Generated list'!C796)","v":""},{"$f":"IF('Generated list'!D796=\"\",\"\",'Generated list'!D796)","v":""}]
[null,{"$f":"IF('Generated list'!B797=\"\",\"\",'Generated list'!B797)","v":""},{"$f":"IF('Generated list'!C797=\"\",\"\",'Generated list'!C797)","v":""},{"$f":"IF('Generated list'!D797=\"\",\"\",'Generated list'!D797)","v":""}]
[null,{"$f":"IF('Generated list'!B798=\"\",\"\",'Generated list'!B798)","v":""},{"$f":"IF('Generated list'!C798=\"\",\"\",'Generated list'!C798)","v":""},{"$f":"IF('Generated list'!D798=\"\",\"\",'Generated list'!D798)","v":""}]
[null,{"$f":"IF('Generated list'!B799=\"\",\"\",'Generated list'!B799)","v":""},{"$f":"IF('Generated list'!C799=\"\",\"\",'Generated list'!C799)","v":""},{"$f":"IF('Generated list'!D799=\"\",\"\",'Generated list'!D799)","v":""}]
[null,{"$f":"IF('Generated list'!B800=\"\",\"\",'Generated list'!B800)","v":""},{"$f":"IF('Generated list'!C800=\"\",\"\",'Generated list'!C800)","v":""},{"$f":"IF('Generated list'!D800=\"\",\"\",'Generated list'!D800)","v":""}]
[null,{"$f":"IF('Generated list'!B801=\"\",\"\",'Generated list'!B801)","v":""},{"$f":"IF('Generated list'!C801=\"\",\"\",'Generated list'!C801)","v":""},{"$f":"IF('Generated list'!D801=\"\",\"\",'Generated list'!D801)","v":""}]
[null,{"$f":"IF('Generated list'!B802=\"\",\"\",'Generated list'!B802)","v":""},{"$f":"IF('Generated list'!C802=\"\",\"\",'Generated list'!C802)","v":""},{"$f":"IF('Generated list'!D802=\"\",\"\",'Generated list'!D802)","v":""}]
[null,{"$f":"IF('Generated list'!B803=\"\",\"\",'Generated list'!B803)","v":""},{"$f":"IF('Generated list'!C803=\"\",\"\",'Generated list'!C803)","v":""},{"$f":"IF('Generated list'!D803=\"\",\"\",'Generated list'!D803)","v":""}]
[null,{"$f":"IF('Generated list'!B804=\"\",\"\",'Generated list'!B804)","v":""},{"$f":"IF('Generated list'!C804=\"\",\"\",'Generated list'!C804)","v":""},{"$f":"IF('Generated list'!D804=\"\",\"\",'Generated list'!D804)","v":""}]
[null,{"$f":"IF('Generated list'!B805=\"\",\"\",'Generated list'!B805)","v":""},{"$f":"IF('Generated list'!C805=\"\",\"\",'Generated list'!C805)","v":""},{"$f":"IF('Generated list'!D805=\"\",\"\",'Generated list'!D805)","v":""}]
[null,{"$f":"IF('Generated list'!B806=\"\",\"\",'Generated list'!B806)","v":""},{"$f":"IF('Generated list'!C806=\"\",\"\",'Generated list'!C806)","v":""},{"$f":"IF('Generated list'!D806=\"\",\"\",'Generated list'!D806)","v":""}]
[null,{"$f":"IF('Generated list'!B807=\"\",\"\",'Generated list'!B807)","v":""},{"$f":"IF('Generated list'!C807=\"\",\"\",'Generated list'!C807)","v":""},{"$f":"IF('Generated list'!D807=\"\",\"\",'Generated list'!D807)","v":""}]
[null,{"$f":"IF('Generated list'!B808=\"\",\"\",'Generated list'!B808)","v":""},{"$f":"IF('Generated list'!C808=\"\",\"\",'Generated list'!C808)","v":""},{"$f":"IF('Generated list'!D808=\"\",\"\",'Generated list'!D808)","v":""}]
[null,{"$f":"IF('Generated list'!B809=\"\",\"\",'Generated list'!B809)","v":""},{"$f":"IF('Generated list'!C809=\"\",\"\",'Generated list'!C809)","v":""},{"$f":"IF('Generated list'!D809=\"\",\"\",'Generated list'!D809)","v":""}]
[null,{"$f":"IF('Generated list'!B810=\"\",\"\",'Generated list'!B810)","v":""},{"$f":"IF('Generated list'!C810=\"\",\"\",'Generated list'!C810)","v":""},{"$f":"IF('Generated list'!D810=\"\",\"\",'Generated list'!D810)","v":""}]
[null,{"$f":"IF('Generated list'!B811=\"\",\"\",'Generated list'!B811)","v":""},{"$f":"IF('Generated list'!C811=\"\",\"\",'Generated list'!C811)","v":""},{"$f":"IF('Generated list'!D811=\"\",\"\",'Generated list'!D811)","v":""}]
[null,{"$f":"IF('Generated list'!B812=\"\",\"\",'Generated list'!B812)","v":""},{"$f":"IF('Generated list'!C812=\"\",\"\",'Generated list'!C812)","v":""},{"$f":"IF('Generated list'!D812=\"\",\"\",'Generated list'!D812)","v":""}]
[null,{"$f":"IF('Generated list'!B813=\"\",\"\",'Generated list'!B813)","v":""},{"$f":"IF('Generated list'!C813=\"\",\"\",'Generated list'!C813)","v":""},{"$f":"IF('Generated list'!D813=\"\",\"\",'Generated list'!D813)","v":""}]
[null,{"$f":"IF('Generated list'!B814=\"\",\"\",'Generated list'!B814)","v":""},{"$f":"IF('Generated list'!C814=\"\",\"\",'Generated list'!C814)","v":""},{"$f":"IF('Generated list'!D814=\"\",\"\",'Generated list'!D814)","v":""}]
[null,{"$f":"IF('Generated list'!B815=\"\",\"\",'Generated list'!B815)","v":""},{"$f":"IF('Generated list'!C815=\"\",\"\",'Generated list'!C815)","v":""},{"$f":"IF('Generated list'!D815=\"\",\"\",'Generated list'!D815)","v":""}]
[null,{"$f":"IF('Generated list'!B816=\"\",\"\",'Generated list'!B816)","v":""},{"$f":"IF('Generated list'!C816=\"\",\"\",'Generated list'!C816)","v":""},{"$f":"IF('Generated list'!D816=\"\",\"\",'Generated list'!D816)","v":""}]
[null,{"$f":"IF('Generated list'!B817=\"\",\"\",'Generated list'!B817)","v":""},{"$f":"IF('Generated list'!C817=\"\",\"\",'Generated list'!C817)","v":""},{"$f":"IF('Generated list'!D817=\"\",\"\",'Generated list'!D817)","v":""}]
[null,{"$f":"IF('Generated list'!B818=\"\",\"\",'Generated list'!B818)","v":""},{"$f":"IF('Generated list'!C818=\"\",\"\",'Generated list'!C818)","v":""},{"$f":"IF('Generated list'!D818=\"\",\"\",'Generated list'!D818)","v":""}]
[null,{"$f":"IF('Generated list'!B819=\"\",\"\",'Generated list'!B819)","v":""},{"$f":"IF('Generated list'!C819=\"\",\"\",'Generated list'!C819)","v":""},{"$f":"IF('Generated list'!D819=\"\",\"\",'Generated list'!D819)","v":""}]
[null,{"$f":"IF('Generated list'!B820=\"\",\"\",'Generated list'!B820)","v":""},{"$f":"IF('Generated list'!C820=\"\",\"\",'Generated list'!C820)","v":""},{"$f":"IF('Generated list'!D820=\"\",\"\",'Generated list'!D820)","v":""}]
[null,{"$f":"IF('Generated list'!B821=\"\",\"\",'Generated list'!B821)","v":""},{"$f":"IF('Generated list'!C821=\"\",\"\",'Generated list'!C821)","v":""},{"$f":"IF('Generated list'!D821=\"\",\"\",'Generated list'!D821)","v":""}]
[null,{"$f":"IF('Generated list'!B822=\"\",\"\",'Generated list'!B822)","v":""},{"$f":"IF('Generated list'!C822=\"\",\"\",'Generated list'!C822)","v":""},{"$f":"IF('Generated list'!D822=\"\",\"\",'Generated list'!D822)","v":""}]
[null,{"$f":"IF('Generated list'!B823=\"\",\"\",'Generated list'!B823)","v":""},{"$f":"IF('Generated list'!C823=\"\",\"\",'Generated list'!C823)","v":""},{"$f":"IF('Generated list'!D823=\"\",\"\",'Generated list'!D823)","v":""}]
[null,{"$f":"IF('Generated list'!B824=\"\",\"\",'Generated list'!B824)","v":""},{"$f":"IF('Generated list'!C824=\"\",\"\",'Generated list'!C824)","v":""},{"$f":"IF('Generated list'!D824=\"\",\"\",'Generated list'!D824)","v":""}]
[null,{"$f":"IF('Generated list'!B825=\"\",\"\",'Generated list'!B825)","v":""},{"$f":"IF('Generated list'!C825=\"\",\"\",'Generated list'!C825)","v":""},{"$f":"IF('Generated list'!D825=\"\",\"\",'Generated list'!D825)","v":""}]
[null,{"$f":"IF('Generated list'!B826=\"\",\"\",'Generated list'!B826)","v":""},{"$f":"IF('Generated list'!C826=\"\",\"\",'Generated list'!C826)","v":""},{"$f":"IF('Generated list'!D826=\"\",\"\",'Generated list'!D826)","v":""}]
[null,{"$f":"IF('Generated list'!B827=\"\",\"\",'Generated list'!B827)","v":""},{"$f":"IF('Generated list'!C827=\"\",\"\",'Generated list'!C827)","v":""},{"$f":"IF('Generated list'!D827=\"\",\"\",'Generated list'!D827)","v":""}]
[null,{"$f":"IF('Generated list'!B828=\"\",\"\",'Generated list'!B828)","v":""},{"$f":"IF('Generated list'!C828=\"\",\"\",'Generated list'!C828)","v":""},{"$f":"IF('Generated list'!D828=\"\",\"\",'Generated list'!D828)","v":""}]
[null,{"$f":"IF('Generated list'!B829=\"\",\"\",'Generated list'!B829)","v":""},{"$f":"IF('Generated list'!C829=\"\",\"\",'Generated list'!C829)","v":""},{"$f":"IF('Generated list'!D829=\"\",\"\",'Generated list'!D829)","v":""}]
[null,{"$f":"IF('Generated list'!B830=\"\",\"\",'Generated list'!B830)","v":""},{"$f":"IF('Generated list'!C830=\"\",\"\",'Generated list'!C830)","v":""},{"$f":"IF('Generated list'!D830=\"\",\"\",'Generated list'!D830)","v":""}]
[null,{"$f":"IF('Generated list'!B831=\"\",\"\",'Generated list'!B831)","v":""},{"$f":"IF('Generated list'!C831=\"\",\"\",'Generated list'!C831)","v":""},{"$f":"IF('Generated list'!D831=\"\",\"\",'Generated list'!D831)","v":""}]
[null,{"$f":"IF('Generated list'!B832=\"\",\"\",'Generated list'!B832)","v":""},{"$f":"IF('Generated list'!C832=\"\",\"\",'Generated list'!C832)","v":""},{"$f":"IF('Generated list'!D832=\"\",\"\",'Generated list'!D832)","v":""}]
[null,{"$f":"IF('Generated list'!B833=\"\",\"\",'Generated list'!B833)","v":""},{"$f":"IF('Generated list'!C833=\"\",\"\",'Generated list'!C833)","v":""},{"$f":"IF('Generated list'!D833=\"\",\"\",'Generated list'!D833)","v":""}]
[null,{"$f":"IF('Generated list'!B834=\"\",\"\",'Generated list'!B834)","v":""},{"$f":"IF('Generated list'!C834=\"\",\"\",'Generated list'!C834)","v":""},{"$f":"IF('Generated list'!D834=\"\",\"\",'Generated list'!D834)","v":""}]
[null,{"$f":"IF('Generated list'!B835=\"\",\"\",'Generated list'!B835)","v":""},{"$f":"IF('Generated list'!C835=\"\",\"\",'Generated list'!C835)","v":""},{"$f":"IF('Generated list'!D835=\"\",\"\",'Generated list'!D835)","v":""}]
[null,{"$f":"IF('Generated list'!B836=\"\",\"\",'Generated list'!B836)","v":""},{"$f":"IF('Generated list'!C836=\"\",\"\",'Generated list'!C836)","v":""},{"$f":"IF('Generated list'!D836=\"\",\"\",'Generated list'!D836)","v":""}]
[null,{"$f":"IF('Generated list'!B837=\"\",\"\",'Generated list'!B837)","v":""},{"$f":"IF('Generated list'!C837=\"\",\"\",'Generated list'!C837)","v":""},{"$f":"IF('Generated list'!D837=\"\",\"\",'Generated list'!D837)","v":""}]
[null,{"$f":"IF('Generated list'!B838=\"\",\"\",'Generated list'!B838)","v":""},{"$f":"IF('Generated list'!C838=\"\",\"\",'Generated list'!C838)","v":""},{"$f":"IF('Generated list'!D838=\"\",\"\",'Generated list'!D838)","v":""}]
[null,{"$f":"IF('Generated list'!B839=\"\",\"\",'Generated list'!B839)","v":""},{"$f":"IF('Generated list'!C839=\"\",\"\",'Generated list'!C839)","v":""},{"$f":"IF('Generated list'!D839=\"\",\"\",'Generated list'!D839)","v":""}]
[null,{"$f":"IF('Generated list'!B840=\"\",\"\",'Generated list'!B840)","v":""},{"$f":"IF('Generated list'!C840=\"\",\"\",'Generated list'!C840)","v":""},{"$f":"IF('Generated list'!D840=\"\",\"\",'Generated list'!D840)","v":""}]
[null,{"$f":"IF('Generated list'!B841=\"\",\"\",'Generated list'!B841)","v":""},{"$f":"IF('Generated list'!C841=\"\",\"\",'Generated list'!C841)","v":""},{"$f":"IF('Generated list'!D841=\"\",\"\",'Generated list'!D841)","v":""}]
[null,{"$f":"IF('Generated list'!B842=\"\",\"\",'Generated list'!B842)","v":""},{"$f":"IF('Generated list'!C842=\"\",\"\",'Generated list'!C842)","v":""},{"$f":"IF('Generated list'!D842=\"\",\"\",'Generated list'!D842)","v":""}]
[null,{"$f":"IF('Generated list'!B843=\"\",\"\",'Generated list'!B843)","v":""},{"$f":"IF('Generated list'!C843=\"\",\"\",'Generated list'!C843)","v":""},{"$f":"IF('Generated list'!D843=\"\",\"\",'Generated list'!D843)","v":""}]
[null,{"$f":"IF('Generated list'!B844=\"\",\"\",'Generated list'!B844)","v":""},{"$f":"IF('Generated list'!C844=\"\",\"\",'Generated list'!C844)","v":""},{"$f":"IF('Generated list'!D844=\"\",\"\",'Generated list'!D844)","v":""}]
[null,{"$f":"IF('Generated list'!B845=\"\",\"\",'Generated list'!B845)","v":""},{"$f":"IF('Generated list'!C845=\"\",\"\",'Generated list'!C845)","v":""},{"$f":"IF('Generated list'!D845=\"\",\"\",'Generated list'!D845)","v":""}]
[null,{"$f":"IF('Generated list'!B846=\"\",\"\",'Generated list'!B846)","v":""},{"$f":"IF('Generated list'!C846=\"\",\"\",'Generated list'!C846)","v":""},{"$f":"IF('Generated list'!D846=\"\",\"\",'Generated list'!D846)","v":""}]
[null,{"$f":"IF('Generated list'!B847=\"\",\"\",'Generated list'!B847)","v":""},{"$f":"IF('Generated list'!C847=\"\",\"\",'Generated list'!C847)","v":""},{"$f":"IF('Generated list'!D847=\"\",\"\",'Generated list'!D847)","v":""}]
[null,{"$f":"IF('Generated list'!B848=\"\",\"\",'Generated list'!B848)","v":""},{"$f":"IF('Generated list'!C848=\"\",\"\",'Generated list'!C848)","v":""},{"$f":"IF('Generated list'!D848=\"\",\"\",'Generated list'!D848)","v":""}]
[null,{"$f":"IF('Generated list'!B849=\"\",\"\",'Generated list'!B849)","v":""},{"$f":"IF('Generated list'!C849=\"\",\"\",'Generated list'!C849)","v":""},{"$f":"IF('Generated list'!D849=\"\",\"\",'Generated list'!D849)","v":""}]
[null,{"$f":"IF('Generated list'!B850=\"\",\"\",'Generated list'!B850)","v":""},{"$f":"IF('Generated list'!C850=\"\",\"\",'Generated list'!C850)","v":""},{"$f":"IF('Generated list'!D850=\"\",\"\",'Generated list'!D850)","v":""}]
[null,{"$f":"IF('Generated list'!B851=\"\",\"\",'Generated list'!B851)","v":""},{"$f":"IF('Generated list'!C851=\"\",\"\",'Generated list'!C851)","v":""},{"$f":"IF('Generated list'!D851=\"\",\"\",'Generated list'!D851)","v":""}]
[null,{"$f":"IF('Generated list'!B852=\"\",\"\",'Generated list'!B852)","v":""},{"$f":"IF('Generated list'!C852=\"\",\"\",'Generated list'!C852)","v":""},{"$f":"IF('Generated list'!D852=\"\",\"\",'Generated list'!D852)","v":""}]
[null,{"$f":"IF('Generated list'!B853=\"\",\"\",'Generated list'!B853)","v":""},{"$f":"IF('Generated list'!C853=\"\",\"\",'Generated list'!C853)","v":""},{"$f":"IF('Generated list'!D853=\"\",\"\",'Generated list'!D853)","v":""}]
[null,{"$f":"IF('Generated list'!B854=\"\",\"\",'Generated list'!B854)","v":""},{"$f":"IF('Generated list'!C854=\"\",\"\",'Generated list'!C854)","v":""},{"$f":"IF('Generated list'!D854=\"\",\"\",'Generated list'!D854)","v":""}]
[null,{"$f":"IF('Generated list'!B855=\"\",\"\",'Generated list'!B855)","v":""},{"$f":"IF('Generated list'!C855=\"\",\"\",'Generated list'!C855)","v":""},{"$f":"IF('Generated list'!D855=\"\",\"\",'Generated list'!D855)","v":""}]
[null,{"$f":"IF('Generated list'!B856=\"\",\"\",'Generated list'!B856)","v":""},{"$f":"IF('Generated list'!C856=\"\",\"\",'Generated list'!C856)","v":""},{"$f":"IF('Generated list'!D856=\"\",\"\",'Generated list'!D856)","v":""}]
[null,{"$f":"IF('Generated list'!B857=\"\",\"\",'Generated list'!B857)","v":""},{"$f":"IF('Generated list'!C857=\"\",\"\",'Generated list'!C857)","v":""},{"$f":"IF('Generated list'!D857=\"\",\"\",'Generated list'!D857)","v":""}]
[null,{"$f":"IF('Generated list'!B858=\"\",\"\",'Generated list'!B858)","v":""},{"$f":"IF('Generated list'!C858=\"\",\"\",'Generated list'!C858)","v":""},{"$f":"IF('Generated list'!D858=\"\",\"\",'Generated list'!D858)","v":""}]
[null,{"$f":"IF('Generated list'!B859=\"\",\"\",'Generated list'!B859)","v":""},{"$f":"IF('Generated list'!C859=\"\",\"\",'Generated list'!C859)","v":""},{"$f":"IF('Generated list'!D859=\"\",\"\",'Generated list'!D859)","v":""}]
[null,{"$f":"IF('Generated list'!B860=\"\",\"\",'Generated list'!B860)","v":""},{"$f":"IF('Generated list'!C860=\"\",\"\",'Generated list'!C860)","v":""},{"$f":"IF('Generated list'!D860=\"\",\"\",'Generated list'!D860)","v":""}]
[null,{"$f":"IF('Generated list'!B861=\"\",\"\",'Generated list'!B861)","v":""},{"$f":"IF('Generated list'!C861=\"\",\"\",'Generated list'!C861)","v":""},{"$f":"IF('Generated list'!D861=\"\",\"\",'Generated list'!D861)","v":""}]
[null,{"$f":"IF('Generated list'!B862=\"\",\"\",'Generated list'!B862)","v":""},{"$f":"IF('Generated list'!C862=\"\",\"\",'Generated list'!C862)","v":""},{"$f":"IF('Generated list'!D862=\"\",\"\",'Generated list'!D862)","v":""}]
[null,{"$f":"IF('Generated list'!B863=\"\",\"\",'Generated list'!B863)","v":""},{"$f":"IF('Generated list'!C863=\"\",\"\",'Generated list'!C863)","v":""},{"$f":"IF('Generated list'!D863=\"\",\"\",'Generated list'!D863)","v":""}]
[null,{"$f":"IF('Generated list'!B864=\"\",\"\",'Generated list'!B864)","v":""},{"$f":"IF('Generated list'!C864=\"\",\"\",'Generated list'!C864)","v":""},{"$f":"IF('Generated list'!D864=\"\",\"\",'Generated list'!D864)","v":""}]
[null,{"$f":"IF('Generated list'!B865=\"\",\"\",'Generated list'!B865)","v":""},{"$f":"IF('Generated list'!C865=\"\",\"\",'Generated list'!C865)","v":""},{"$f":"IF('Generated list'!D865=\"\",\"\",'Generated list'!D865)","v":""}]
[null,{"$f":"IF('Generated list'!B866=\"\",\"\",'Generated list'!B866)","v":""},{"$f":"IF('Generated list'!C866=\"\",\"\",'Generated list'!C866)","v":""},{"$f":"IF('Generated list'!D866=\"\",\"\",'Generated list'!D866)","v":""}]
[null,{"$f":"IF('Generated list'!B867=\"\",\"\",'Generated list'!B867)","v":""},{"$f":"IF('Generated list'!C867=\"\",\"\",'Generated list'!C867)","v":""},{"$f":"IF('Generated list'!D867=\"\",\"\",'Generated list'!D867)","v":""}]
[null,{"$f":"IF('Generated list'!B868=\"\",\"\",'Generated list'!B868)","v":""},{"$f":"IF('Generated list'!C868=\"\",\"\",'Generated list'!C868)","v":""},{"$f":"IF('Generated list'!D868=\"\",\"\",'Generated list'!D868)","v":""}]
[null,{"$f":"IF('Generated list'!B869=\"\",\"\",'Generated list'!B869)","v":""},{"$f":"IF('Generated list'!C869=\"\",\"\",'Generated list'!C869)","v":""},{"$f":"IF('Generated list'!D869=\"\",\"\",'Generated list'!D869)","v":""}]
[null,{"$f":"IF('Generated list'!B870=\"\",\"\",'Generated list'!B870)","v":""},{"$f":"IF('Generated list'!C870=\"\",\"\",'Generated list'!C870)","v":""},{"$f":"IF('Generated list'!D870=\"\",\"\",'Generated list'!D870)","v":""}]
[null,{"$f":"IF('Generated list'!B871=\"\",\"\",'Generated list'!B871)","v":""},{"$f":"IF('Generated list'!C871=\"\",\"\",'Generated list'!C871)","v":""},{"$f":"IF('Generated list'!D871=\"\",\"\",'Generated list'!D871)","v":""}]
[null,{"$f":"IF('Generated list'!B872=\"\",\"\",'Generated list'!B872)","v":""},{"$f":"IF('Generated list'!C872=\"\",\"\",'Generated list'!C872)","v":""},{"$f":"IF('Generated list'!D872=\"\",\"\",'Generated list'!D872)","v":""}]
[null,{"$f":"IF('Generated list'!B873=\"\",\"\",'Generated list'!B873)","v":""},{"$f":"IF('Generated list'!C873=\"\",\"\",'Generated list'!C873)","v":""},{"$f":"IF('Generated list'!D873=\"\",\"\",'Generated list'!D873)","v":""}]
[null,{"$f":"IF('Generated list'!B874=\"\",\"\",'Generated list'!B874)","v":""},{"$f":"IF('Generated list'!C874=\"\",\"\",'Generated list'!C874)","v":""},{"$f":"IF('Generated list'!D874=\"\",\"\",'Generated list'!D874)","v":""}]
[null,{"$f":"IF('Generated list'!B875=\"\",\"\",'Generated list'!B875)","v":""},{"$f":"IF('Generated list'!C875=\"\",\"\",'Generated list'!C875)","v":""},{"$f":"IF('Generated list'!D875=\"\",\"\",'Generated list'!D875)","v":""}]
[null,{"$f":"IF('Generated list'!B876=\"\",\"\",'Generated list'!B876)","v":""},{"$f":"IF('Generated list'!C876=\"\",\"\",'Generated list'!C876)","v":""},{"$f":"IF('Generated list'!D876=\"\",\"\",'Generated list'!D876)","v":""}]
[null,{"$f":"IF('Generated list'!B877=\"\",\"\",'Generated list'!B877)","v":""},{"$f":"IF('Generated list'!C877=\"\",\"\",'Generated list'!C877)","v":""},{"$f":"IF('Generated list'!D877=\"\",\"\",'Generated list'!D877)","v":""}]
[null,{"$f":"IF('Generated list'!B878=\"\",\"\",'Generated list'!B878)","v":""},{"$f":"IF('Generated list'!C878=\"\",\"\",'Generated list'!C878)","v":""},{"$f":"IF('Generated list'!D878=\"\",\"\",'Generated list'!D878)","v":""}]
[null,{"$f":"IF('Generated list'!B879=\"\",\"\",'Generated list'!B879)","v":""},{"$f":"IF('Generated list'!C879=\"\",\"\",'Generated list'!C879)","v":""},{"$f":"IF('Generated list'!D879=\"\",\"\",'Generated list'!D879)","v":""}]
[null,{"$f":"IF('Generated list'!B880=\"\",\"\",'Generated list'!B880)","v":""},{"$f":"IF('Generated list'!C880=\"\",\"\",'Generated list'!C880)","v":""},{"$f":"IF('Generated list'!D880=\"\",\"\",'Generated list'!D880)","v":""}]
[null,{"$f":"IF('Generated list'!B881=\"\",\"\",'Generated list'!B881)","v":""},{"$f":"IF('Generated list'!C881=\"\",\"\",'Generated list'!C881)","v":""},{"$f":"IF('Generated list'!D881=\"\",\"\",'Generated list'!D881)","v":""}]
[null,{"$f":"IF('Generated list'!B882=\"\",\"\",'Generated list'!B882)","v":""},{"$f":"IF('Generated list'!C882=\"\",\"\",'Generated list'!C882)","v":""},{"$f":"IF('Generated list'!D882=\"\",\"\",'Generated list'!D882)","v":""}]
[null,{"$f":"IF('Generated list'!B883=\"\",\"\",'Generated list'!B883)","v":""},{"$f":"IF('Generated list'!C883=\"\",\"\",'Generated list'!C883)","v":""},{"$f":"IF('Generated list'!D883=\"\",\"\",'Generated list'!D883)","v":""}]
[null,{"$f":"IF('Generated list'!B884=\"\",\"\",'Generated list'!B884)","v":""},{"$f":"IF('Generated list'!C884=\"\",\"\",'Generated list'!C884)","v":""},{"$f":"IF('Generated list'!D884=\"\",\"\",'Generated list'!D884)","v":""}]
[null,{"$f":"IF('Generated list'!B885=\"\",\"\",'Generated list'!B885)","v":""},{"$f":"IF('Generated list'!C885=\"\",\"\",'Generated list'!C885)","v":""},{"$f":"IF('Generated list'!D885=\"\",\"\",'Generated list'!D885)","v":""}]
[null,{"$f":"IF('Generated list'!B886=\"\",\"\",'Generated list'!B886)","v":""},{"$f":"IF('Generated list'!C886=\"\",\"\",'Generated list'!C886)","v":""},{"$f":"IF('Generated list'!D886=\"\",\"\",'Generated list'!D886)","v":""}]
[null,{"$f":"IF('Generated list'!B887=\"\",\"\",'Generated list'!B887)","v":""},{"$f":"IF('Generated list'!C887=\"\",\"\",'Generated list'!C887)","v":""},{"$f":"IF('Generated list'!D887=\"\",\"\",'Generated list'!D887)","v":""}]
[null,{"$f":"IF('Generated list'!B888=\"\",\"\",'Generated list'!B888)","v":""},{"$f":"IF('Generated list'!C888=\"\",\"\",'Generated list'!C888)","v":""},{"$f":"IF('Generated list'!D888=\"\",\"\",'Generated list'!D888)","v":""}]
[null,{"$f":"IF('Generated list'!B889=\"\",\"\",'Generated list'!B889)","v":""},{"$f":"IF('Generated list'!C889=\"\",\"\",'Generated list'!C889)","v":""},{"$f":"IF('Generated list'!D889=\"\",\"\",'Generated list'!D889)","v":""}]
[null,{"$f":"IF('Generated list'!B890=\"\",\"\",'Generated list'!B890)","v":""},{"$f":"IF('Generated list'!C890=\"\",\"\",'Generated list'!C890)","v":""},{"$f":"IF('Generated list'!D890=\"\",\"\",'Generated list'!D890)","v":""}]
[null,{"$f":"IF('Generated list'!B891=\"\",\"\",'Generated list'!B891)","v":""},{"$f":"IF('Generated list'!C891=\"\",\"\",'Generated list'!C891)","v":""},{"$f":"IF('Generated list'!D891=\"\",\"\",'Generated list'!D891)","v":""}]
[null,{"$f":"IF('Generated list'!B892=\"\",\"\",'Generated list'!B892)","v":""},{"$f":"IF('Generated list'!C892=\"\",\"\",'Generated list'!C892)","v":""},{"$f":"IF('Generated list'!D892=\"\",\"\",'Generated list'!D892)","v":""}]
[null,{"$f":"IF('Generated list'!B893=\"\",\"\",'Generated list'!B893)","v":""},{"$f":"IF('Generated list'!C893=\"\",\"\",'Generated list'!C893)","v":""},{"$f":"IF('Generated list'!D893=\"\",\"\",'Generated list'!D893)","v":""}]
[null,{"$f":"IF('Generated list'!B894=\"\",\"\",'Generated list'!B894)","v":""},{"$f":"IF('Generated list'!C894=\"\",\"\",'Generated list'!C894)","v":""},{"$f":"IF('Generated list'!D894=\"\",\"\",'Generated list'!D894)","v":""}]
[null,{"$f":"IF('Generated list'!B895=\"\",\"\",'Generated list'!B895)","v":""},{"$f":"IF('Generated list'!C895=\"\",\"\",'Generated list'!C895)","v":""},{"$f":"IF('Generated list'!D895=\"\",\"\",'Generated list'!D895)","v":""}]
[null,{"$f":"IF('Generated list'!B896=\"\",\"\",'Generated list'!B896)","v":""},{"$f":"IF('Generated list'!C896=\"\",\"\",'Generated list'!C896)","v":""},{"$f":"IF('Generated list'!D896=\"\",\"\",'Generated list'!D896)","v":""}]
[null,{"$f":"IF('Generated list'!B897=\"\",\"\",'Generated list'!B897)","v":""},{"$f":"IF('Generated list'!C897=\"\",\"\",'Generated list'!C897)","v":""},{"$f":"IF('Generated list'!D897=\"\",\"\",'Generated list'!D897)","v":""}]
[null,{"$f":"IF('Generated list'!B898=\"\",\"\",'Generated list'!B898)","v":""},{"$f":"IF('Generated list'!C898=\"\",\"\",'Generated list'!C898)","v":""},{"$f":"IF('Generated list'!D898=\"\",\"\",'Generated list'!D898)","v":""}]
[null,{"$f":"IF('Generated list'!B899=\"\",\"\",'Generated list'!B899)","v":""},{"$f":"IF('Generated list'!C899=\"\",\"\",'Generated list'!C899)","v":""},{"$f":"IF('Generated list'!D899=\"\",\"\",'Generated list'!D899)","v":""}]
[null,{"$f":"IF('Generated list'!B900=\"\",\"\",'Generated list'!B900)","v":""},{"$f":"IF('Generated list'!C900=\"\",\"\",'Generated list'!C900)","v":""},{"$f":"IF('Generated list'!D900=\"\",\"\",'Generated list'!D900)","v":""}]
[null,{"$f":"IF('Generated list'!B901=\"\",\"\",'Generated list'!B901)","v":""},{"$f":"IF('Generated list'!C901=\"\",\"\",'Generated list'!C901)","v":""},{"$f":"IF('Generated list'!D901=\"\",\"\",'Generated list'!D901)","v":""}]
[null,{"$f":"IF('Generated list'!B902=\"\",\"\",'Generated list'!B902)","v":""},{"$f":"IF('Generated list'!C902=\"\",\"\",'Generated list'!C902)","v":""},{"$f":"IF('Generated list'!D902=\"\",\"\",'Generated list'!D902)","v":""}]
[null,{"$f":"IF('Generated list'!B903=\"\",\"\",'Generated list'!B903)","v":""},{"$f":"IF('Generated list'!C903=\"\",\"\",'Generated list'!C903)","v":""},{"$f":"IF('Generated list'!D903=\"\",\"\",'Generated list'!D903)","v":""}]
[null,{"$f":"IF('Generated list'!B904=\"\",\"\",'Generated list'!B904)","v":""},{"$f":"IF('Generated list'!C904=\"\",\"\",'Generated list'!C904)","v":""},{"$f":"IF('Generated list'!D904=\"\",\"\",'Generated list'!D904)","v":""}]
[null,{"$f":"IF('Generated list'!B905=\"\",\"\",'Generated list'!B905)","v":""},{"$f":"IF('Generated list'!C905=\"\",\"\",'Generated list'!C905)","v":""},{"$f":"IF('Generated list'!D905=\"\",\"\",'Generated list'!D905)","v":""}]
[null,{"$f":"IF('Generated list'!B906=\"\",\"\",'Generated list'!B906)","v":""},{"$f":"IF('Generated list'!C906=\"\",\"\",'Generated list'!C906)","v":""},{"$f":"IF('Generated list'!D906=\"\",\"\",'Generated list'!D906)","v":""}]
[null,{"$f":"IF('Generated list'!B907=\"\",\"\",'Generated list'!B907)","v":""},{"$f":"IF('Generated list'!C907=\"\",\"\",'Generated list'!C907)","v":""},{"$f":"IF('Generated list'!D907=\"\",\"\",'Generated list'!D907)","v":""}]
[null,{"$f":"IF('Generated list'!B908=\"\",\"\",'Generated list'!B908)","v":""},{"$f":"IF('Generated list'!C908=\"\",\"\",'Generated list'!C908)","v":""},{"$f":"IF('Generated list'!D908=\"\",\"\",'Generated list'!D908)","v":""}]
[null,{"$f":"IF('Generated list'!B909=\"\",\"\",'Generated list'!B909)","v":""},{"$f":"IF('Generated list'!C909=\"\",\"\",'Generated list'!C909)","v":""},{"$f":"IF('Generated list'!D909=\"\",\"\",'Generated list'!D909)","v":""}]
[null,{"$f":"IF('Generated list'!B910=\"\",\"\",'Generated list'!B910)","v":""},{"$f":"IF('Generated list'!C910=\"\",\"\",'Generated list'!C910)","v":""},{"$f":"IF('Generated list'!D910=\"\",\"\",'Generated list'!D910)","v":""}]
[null,{"$f":"IF('Generated list'!B911=\"\",\"\",'Generated list'!B911)","v":""},{"$f":"IF('Generated list'!C911=\"\",\"\",'Generated list'!C911)","v":""},{"$f":"IF('Generated list'!D911=\"\",\"\",'Generated list'!D911)","v":""}]
[null,{"$f":"IF('Generated list'!B912=\"\",\"\",'Generated list'!B912)","v":""},{"$f":"IF('Generated list'!C912=\"\",\"\",'Generated list'!C912)","v":""},{"$f":"IF('Generated list'!D912=\"\",\"\",'Generated list'!D912)","v":""}]
[null,{"$f":"IF('Generated list'!B913=\"\",\"\",'Generated list'!B913)","v":""},{"$f":"IF('Generated list'!C913=\"\",\"\",'Generated list'!C913)","v":""},{"$f":"IF('Generated list'!D913=\"\",\"\",'Generated list'!D913)","v":""}]
[null,{"$f":"IF('Generated list'!B914=\"\",\"\",'Generated list'!B914)","v":""},{"$f":"IF('Generated list'!C914=\"\",\"\",'Generated list'!C914)","v":""},{"$f":"IF('Generated list'!D914=\"\",\"\",'Generated list'!D914)","v":""}]
[null,{"$f":"IF('Generated list'!B915=\"\",\"\",'Generated list'!B915)","v":""},{"$f":"IF('Generated list'!C915=\"\",\"\",'Generated list'!C915)","v":""},{"$f":"IF('Generated list'!D915=\"\",\"\",'Generated list'!D915)","v":""}]
[null,{"$f":"IF('Generated list'!B916=\"\",\"\",'Generated list'!B916)","v":""},{"$f":"IF('Generated list'!C916=\"\",\"\",'Generated list'!C916)","v":""},{"$f":"IF('Generated list'!D916=\"\",\"\",'Generated list'!D916)","v":""}]
[null,{"$f":"IF('Generated list'!B917=\"\",\"\",'Generated list'!B917)","v":""},{"$f":"IF('Generated list'!C917=\"\",\"\",'Generated list'!C917)","v":""},{"$f":"IF('Generated list'!D917=\"\",\"\",'Generated list'!D917)","v":""}]
[null,{"$f":"IF('Generated list'!B918=\"\",\"\",'Generated list'!B918)","v":""},{"$f":"IF('Generated list'!C918=\"\",\"\",'Generated list'!C918)","v":""},{"$f":"IF('Generated list'!D918=\"\",\"\",'Generated list'!D918)","v":""}]
[null,{"$f":"IF('Generated list'!B919=\"\",\"\",'Generated list'!B919)","v":""},{"$f":"IF('Generated list'!C919=\"\",\"\",'Generated list'!C919)","v":""},{"$f":"IF('Generated list'!D919=\"\",\"\",'Generated list'!D919)","v":""}]
[null,{"$f":"IF('Generated list'!B920=\"\",\"\",'Generated list'!B920)","v":""},{"$f":"IF('Generated list'!C920=\"\",\"\",'Generated list'!C920)","v":""},{"$f":"IF('Generated list'!D920=\"\",\"\",'Generated list'!D920)","v":""}]
[null,{"$f":"IF('Generated list'!B921=\"\",\"\",'Generated list'!B921)","v":""},{"$f":"IF('Generated list'!C921=\"\",\"\",'Generated list'!C921)","v":""},{"$f":"IF('Generated list'!D921=\"\",\"\",'Generated list'!D921)","v":""}]
[null,{"$f":"IF('Generated list'!B922=\"\",\"\",'Generated list'!B922)","v":""},{"$f":"IF('Generated list'!C922=\"\",\"\",'Generated list'!C922)","v":""},{"$f":"IF('Generated list'!D922=\"\",\"\",'Generated list'!D922)","v":""}]
[null,{"$f":"IF('Generated list'!B923=\"\",\"\",'Generated list'!B923)","v":""},{"$f":"IF('Generated list'!C923=\"\",\"\",'Generated list'!C923)","v":""},{"$f":"IF('Generated list'!D923=\"\",\"\",'Generated list'!D923)","v":""}]
[null,{"$f":"IF('Generated list'!B924=\"\",\"\",'Generated list'!B924)","v":""},{"$f":"IF('Generated list'!C924=\"\",\"\",'Generated list'!C924)","v":""},{"$f":"IF('Generated list'!D924=\"\",\"\",'Generated list'!D924)","v":""}]
[null,{"$f":"IF('Generated list'!B925=\"\",\"\",'Generated list'!B925)","v":""},{"$f":"IF('Generated list'!C925=\"\",\"\",'Generated list'!C925)","v":""},{"$f":"IF('Generated list'!D925=\"\",\"\",'Generated list'!D925)","v":""}]
[null,{"$f":"IF('Generated list'!B926=\"\",\"\",'Generated list'!B926)","v":""},{"$f":"IF('Generated list'!C926=\"\",\"\",'Generated list'!C926)","v":""},{"$f":"IF('Generated list'!D926=\"\",\"\",'Generated list'!D926)","v":""}]
[null,{"$f":"IF('Generated list'!B927=\"\",\"\",'Generated list'!B927)","v":""},{"$f":"IF('Generated list'!C927=\"\",\"\",'Generated list'!C927)","v":""},{"$f":"IF('Generated list'!D927=\"\",\"\",'Generated list'!D927)","v":""}]
[null,{"$f":"IF('Generated list'!B928=\"\",\"\",'Generated list'!B928)","v":""},{"$f":"IF('Generated list'!C928=\"\",\"\",'Generated list'!C928)","v":""},{"$f":"IF('Generated list'!D928=\"\",\"\",'Generated list'!D928)","v":""}]
[null,{"$f":"IF('Generated list'!B929=\"\",\"\",'Generated list'!B929)","v":""},{"$f":"IF('Generated list'!C929=\"\",\"\",'Generated list'!C929)","v":""},{"$f":"IF('Generated list'!D929=\"\",\"\",'Generated list'!D929)","v":""}]
[null,{"$f":"IF('Generated list'!B930=\"\",\"\",'Generated list'!B930)","v":""},{"$f":"IF('Generated list'!C930=\"\",\"\",'Generated list'!C930)","v":""},{"$f":"IF('Generated list'!D930=\"\",\"\",'Generated list'!D930)","v":""}]
[null,{"$f":"IF('Generated list'!B931=\"\",\"\",'Generated list'!B931)","v":""},{"$f":"IF('Generated list'!C931=\"\",\"\",'Generated list'!C931)","v":""},{"$f":"IF('Generated list'!D931=\"\",\"\",'Generated list'!D931)","v":""}]
[null,{"$f":"IF('Generated list'!B932=\"\",\"\",'Generated list'!B932)","v":""},{"$f":"IF('Generated list'!C932=\"\",\"\",'Generated list'!C932)","v":""},{"$f":"IF('Generated list'!D932=\"\",\"\",'Generated list'!D932)","v":""}]
[null,{"$f":"IF('Generated list'!B933=\"\",\"\",'Generated list'!B933)","v":""},{"$f":"IF('Generated list'!C933=\"\",\"\",'Generated list'!C933)","v":""},{"$f":"IF('Generated list'!D933=\"\",\"\",'Generated list'!D933)","v":""}]
[null,{"$f":"IF('Generated list'!B934=\"\",\"\",'Generated list'!B934)","v":""},{"$f":"IF('Generated list'!C934=\"\",\"\",'Generated list'!C934)","v":""},{"$f":"IF('Generated list'!D934=\"\",\"\",'Generated list'!D934)","v":""}]
[null,{"$f":"IF('Generated list'!B935=\"\",\"\",'Generated list'!B935)","v":""},{"$f":"IF('Generated list'!C935=\"\",\"\",'Generated list'!C935)","v":""},{"$f":"IF('Generated list'!D935=\"\",\"\",'Generated list'!D935)","v":""}]
[null,{"$f":"IF('Generated list'!B936=\"\",\"\",'Generated list'!B936)","v":""},{"$f":"IF('Generated list'!C936=\"\",\"\",'Generated list'!C936)","v":""},{"$f":"IF('Generated list'!D936=\"\",\"\",'Generated list'!D936)","v":""}]
[null,{"$f":"IF('Generated list'!B937=\"\",\"\",'Generated list'!B937)","v":""},{"$f":"IF('Generated list'!C937=\"\",\"\",'Generated list'!C937)","v":""},{"$f":"IF('Generated list'!D937=\"\",\"\",'Generated list'!D937)","v":""}]
[null,{"$f":"IF('Generated list'!B938=\"\",\"\",'Generated list'!B938)","v":""},{"$f":"IF('Generated list'!C938=\"\",\"\",'Generated list'!C938)","v":""},{"$f":"IF('Generated list'!D938=\"\",\"\",'Generated list'!D938)","v":""}]
[null,{"$f":"IF('Generated list'!B939=\"\",\"\",'Generated list'!B939)","v":""},{"$f":"IF('Generated list'!C939=\"\",\"\",'Generated list'!C939)","v":""},{"$f":"IF('Generated list'!D939=\"\",\"\",'Generated list'!D939)","v":""}]
[null,{"$f":"IF('Generated list'!B940=\"\",\"\",'Generated list'!B940)","v":""},{"$f":"IF('Generated list'!C940=\"\",\"\",'Generated list'!C940)","v":""},{"$f":"IF('Generated list'!D940=\"\",\"\",'Generated list'!D940)","v":""}]
[null,{"$f":"IF('Generated list'!B941=\"\",\"\",'Generated list'!B941)","v":""},{"$f":"IF('Generated list'!C941=\"\",\"\",'Generated list'!C941)","v":""},{"$f":"IF('Generated list'!D941=\"\",\"\",'Generated list'!D941)","v":""}]
[null,{"$f":"IF('Generated list'!B942=\"\",\"\",'Generated list'!B942)","v":""},{"$f":"IF('Generated list'!C942=\"\",\"\",'Generated list'!C942)","v":""},{"$f":"IF('Generated list'!D942=\"\",\"\",'Generated list'!D942)","v":""}]
[null,{"$f":"IF('Generated list'!B943=\"\",\"\",'Generated list'!B943)","v":""},{"$f":"IF('Generated list'!C943=\"\",\"\",'Generated list'!C943)","v":""},{"$f":"IF('Generated list'!D943=\"\",\"\",'Generated list'!D943)","v":""}]
[null,{"$f":"IF('Generated list'!B944=\"\",\"\",'Generated list'!B944)","v":""},{"$f":"IF('Generated list'!C944=\"\",\"\",'Generated list'!C944)","v":""},{"$f":"IF('Generated list'!D944=\"\",\"\",'Generated list'!D944)","v":""}]
[null,{"$f":"IF('Generated list'!B945=\"\",\"\",'Generated list'!B945)","v":""},{"$f":"IF('Generated list'!C945=\"\",\"\",'Generated list'!C945)","v":""},{"$f":"IF('Generated list'!D945=\"\",\"\",'Generated list'!D945)","v":""}]
[null,{"$f":"IF('Generated list'!B946=\"\",\"\",'Generated list'!B946)","v":""},{"$f":"IF('Generated list'!C946=\"\",\"\",'Generated list'!C946)","v":""},{"$f":"IF('Generated list'!D946=\"\",\"\",'Generated list'!D946)","v":""}]
[null,{"$f":"IF('Generated list'!B947=\"\",\"\",'Generated list'!B947)","v":""},{"$f":"IF('Generated list'!C947=\"\",\"\",'Generated list'!C947)","v":""},{"$f":"IF('Generated list'!D947=\"\",\"\",'Generated list'!D947)","v":""}]
[null,{"$f":"IF('Generated list'!B948=\"\",\"\",'Generated list'!B948)","v":""},{"$f":"IF('Generated list'!C948=\"\",\"\",'Generated list'!C948)","v":""},{"$f":"IF('Generated list'!D948=\"\",\"\",'Generated list'!D948)","v":""}]
[null,{"$f":"IF('Generated list'!B949=\"\",\"\",'Generated list'!B949)","v":""},{"$f":"IF('Generated list'!C949=\"\",\"\",'Generated list'!C949)","v":""},{"$f":"IF('Generated list'!D949=\"\",\"\",'Generated list'!D949)","v":""}]
[null,{"$f":"IF('Generated list'!B950=\"\",\"\",'Generated list'!B950)","v":""},{"$f":"IF('Generated list'!C950=\"\",\"\",'Generated list'!C950)","v":""},{"$f":"IF('Generated list'!D950=\"\",\"\",'Generated list'!D950)","v":""}]
[null,{"$f":"IF('Generated list'!B951=\"\",\"\",'Generated list'!B951)","v":""},{"$f":"IF('Generated list'!C951=\"\",\"\",'Generated list'!C951)","v":""},{"$f":"IF('Generated list'!D951=\"\",\"\",'Generated list'!D951)","v":""}]
[null,{"$f":"IF('Generated list'!B952=\"\",\"\",'Generated list'!B952)","v":""},{"$f":"IF('Generated list'!C952=\"\",\"\",'Generated list'!C952)","v":""},{"$f":"IF('Generated list'!D952=\"\",\"\",'Generated list'!D952)","v":""}]
[null,{"$f":"IF('Generated list'!B953=\"\",\"\",'Generated list'!B953)","v":""},{"$f":"IF('Generated list'!C953=\"\",\"\",'Generated list'!C953)","v":""},{"$f":"IF('Generated list'!D953=\"\",\"\",'Generated list'!D953)","v":""}]
[null,{"$f":"IF('Generated list'!B954=\"\",\"\",'Generated list'!B954)","v":""},{"$f":"IF('Generated list'!C954=\"\",\"\",'Generated list'!C954)","v":""},{"$f":"IF('Generated list'!D954=\"\",\"\",'Generated list'!D954)","v":""}]
[null,{"$f":"IF('Generated list'!B955=\"\",\"\",'Generated list'!B955)","v":""},{"$f":"IF('Generated list'!C955=\"\",\"\",'Generated list'!C955)","v":""},{"$f":"IF('Generated list'!D955=\"\",\"\",'Generated list'!D955)","v":""}]
[null,{"$f":"IF('Generated list'!B956=\"\",\"\",'Generated list'!B956)","v":""},{"$f":"IF('Generated list'!C956=\"\",\"\",'Generated list'!C956)","v":""},{"$f":"IF('Generated list'!D956=\"\",\"\",'Generated list'!D956)","v":""}]
[null,{"$f":"IF('Generated list'!B957=\"\",\"\",'Generated list'!B957)","v":""},{"$f":"IF('Generated list'!C957=\"\",\"\",'Generated list'!C957)","v":""},{"$f":"IF('Generated list'!D957=\"\",\"\",'Generated list'!D957)","v":""}]
[null,{"$f":"IF('Generated list'!B958=\"\",\"\",'Generated list'!B958)","v":""},{"$f":"IF('Generated list'!C958=\"\",\"\",'Generated list'!C958)","v":""},{"$f":"IF('Generated list'!D958=\"\",\"\",'Generated list'!D958)","v":""}]
[null,{"$f":"IF('Generated list'!B959=\"\",\"\",'Generated list'!B959)","v":""},{"$f":"IF('Generated list'!C959=\"\",\"\",'Generated list'!C959)","v":""},{"$f":"IF('Generated list'!D959=\"\",\"\",'Generated list'!D959)","v":""}]
[null,{"$f":"IF('Generated list'!B960=\"\",\"\",'Generated list'!B960)","v":""},{"$f":"IF('Generated list'!C960=\"\",\"\",'Generated list'!C960)","v":""},{"$f":"IF('Generated list'!D960=\"\",\"\",'Generated list'!D960)","v":""}]
[null,{"$f":"IF('Generated list'!B961=\"\",\"\",'Generated list'!B961)","v":""},{"$f":"IF('Generated list'!C961=\"\",\"\",'Generated list'!C961)","v":""},{"$f":"IF('Generated list'!D961=\"\",\"\",'Generated list'!D961)","v":""}]
[null,{"$f":"IF('Generated list'!B962=\"\",\"\",'Generated list'!B962)","v":""},{"$f":"IF('Generated list'!C962=\"\",\"\",'Generated list'!C962)","v":""},{"$f":"IF('Generated list'!D962=\"\",\"\",'Generated list'!D962)","v":""}]
[null,{"$f":"IF('Generated list'!B963=\"\",\"\",'Generated list'!B963)","v":""},{"$f":"IF('Generated list'!C963=\"\",\"\",'Generated list'!C963)","v":""},{"$f":"IF('Generated list'!D963=\"\",\"\",'Generated list'!D963)","v":""}]
[null,{"$f":"IF('Generated list'!B964=\"\",\"\",'Generated list'!B964)","v":""},{"$f":"IF('Generated list'!C964=\"\",\"\",'Generated list'!C964)","v":""},{"$f":"IF('Generated list'!D964=\"\",\"\",'Generated list'!D964)","v":""}]
[null,{"$f":"IF('Generated list'!B965=\"\",\"\",'Generated list'!B965)","v":""},{"$f":"IF('Generated list'!C965=\"\",\"\",'Generated list'!C965)","v":""},{"$f":"IF('Generated list'!D965=\"\",\"\",'Generated list'!D965)","v":""}]
[null,{"$f":"IF('Generated list'!B966=\"\",\"\",'Generated list'!B966)","v":""},{"$f":"IF('Generated list'!C966=\"\",\"\",'Generated list'!C966)","v":""},{"$f":"IF('Generated list'!D966=\"\",\"\",'Generated list'!D966)","v":""}]
[null,{"$f":"IF('Generated list'!B967=\"\",\"\",'Generated list'!B967)","v":""},{"$f":"IF('Generated list'!C967=\"\",\"\",'Generated list'!C967)","v":""},{"$f":"IF('Generated list'!D967=\"\",\"\",'Generated list'!D967)","v":""}]
[null,{"$f":"IF('Generated list'!B968=\"\",\"\",'Generated list'!B968)","v":""},{"$f":"IF('Generated list'!C968=\"\",\"\",'Generated list'!C968)","v":""},{"$f":"IF('Generated list'!D968=\"\",\"\",'Generated list'!D968)","v":""}]
[null,{"$f":"IF('Generated list'!B969=\"\",\"\",'Generated list'!B969)","v":""},{"$f":"IF('Generated list'!C969=\"\",\"\",'Generated list'!C969)","v":""},{"$f":"IF('Generated list'!D969=\"\",\"\",'Generated list'!D969)","v":""}]
[null,{"$f":"IF('Generated list'!B970=\"\",\"\",'Generated list'!B970)","v":""},{"$f":"IF('Generated list'!C970=\"\",\"\",'Generated list'!C970)","v":""},{"$f":"IF('Generated list'!D970=\"\",\"\",'Generated list'!D970)","v":""}]
[null,{"$f":"IF('Generated list'!B971=\"\",\"\",'Generated list'!B971)","v":""},{"$f":"IF('Generated list'!C971=\"\",\"\",'Generated list'!C971)","v":""},{"$f":"IF('Generated list'!D971=\"\",\"\",'Generated list'!D971)","v":""}]
[null,{"$f":"IF('Generated list'!B972=\"\",\"\",'Generated list'!B972)","v":""},{"$f":"IF('Generated list'!C972=\"\",\"\",'Generated list'!C972)","v":""},{"$f":"IF('Generated list'!D972=\"\",\"\",'Generated list'!D972)","v":""}]
[null,{"$f":"IF('Generated list'!B973=\"\",\"\",'Generated list'!B973)","v":""},{"$f":"IF('Generated list'!C973=\"\",\"\",'Generated list'!C973)","v":""},{"$f":"IF('Generated list'!D973=\"\",\"\",'Generated list'!D973)","v":""}]
[null,{"$f":"IF('Generated list'!B974=\"\",\"\",'Generated list'!B974)","v":""},{"$f":"IF('Generated list'!C974=\"\",\"\",'Generated list'!C974)","v":""},{"$f":"IF('Generated list'!D974=\"\",\"\",'Generated list'!D974)","v":""}]
[null,{"$f":"IF('Generated list'!B975=\"\",\"\",'Generated list'!B975)","v":""},{"$f":"IF('Generated list'!C975=\"\",\"\",'Generated list'!C975)","v":""},{"$f":"IF('Generated list'!D975=\"\",\"\",'Generated list'!D975)","v":""}]
[null,{"$f":"IF('Generated list'!B976=\"\",\"\",'Generated list'!B976)","v":""},{"$f":"IF('Generated list'!C976=\"\",\"\",'Generated list'!C976)","v":""},{"$f":"IF('Generated list'!D976=\"\",\"\",'Generated list'!D976)","v":""}]
[null,{"$f":"IF('Generated list'!B977=\"\",\"\",'Generated list'!B977)","v":""},{"$f":"IF('Generated list'!C977=\"\",\"\",'Generated list'!C977)","v":""},{"$f":"IF('Generated list'!D977=\"\",\"\",'Generated list'!D977)","v":""}]
[null,{"$f":"IF('Generated list'!B978=\"\",\"\",'Generated list'!B978)","v":""},{"$f":"IF('Generated list'!C978=\"\",\"\",'Generated list'!C978)","v":""},{"$f":"IF('Generated list'!D978=\"\",\"\",'Generated list'!D978)","v":""}]
[null,{"$f":"IF('Generated list'!B979=\"\",\"\",'Generated list'!B979)","v":""},{"$f":"IF('Generated list'!C979=\"\",\"\",'Generated list'!C979)","v":""},{"$f":"IF('Generated list'!D979=\"\",\"\",'Generated list'!D979)","v":""}]
[null,{"$f":"IF('Generated list'!B980=\"\",\"\",'Generated list'!B980)","v":""},{"$f":"IF('Generated list'!C980=\"\",\"\",'Generated list'!C980)","v":""},{"$f":"IF('Generated list'!D980=\"\",\"\",'Generated list'!D980)","v":""}]
[null,{"$f":"IF('Generated list'!B981=\"\",\"\",'Generated list'!B981)","v":""},{"$f":"IF('Generated list'!C981=\"\",\"\",'Generated list'!C981)","v":""},{"$f":"IF('Generated list'!D981=\"\",\"\",'Generated list'!D981)","v":""}]
[null,{"$f":"IF('Generated list'!B982=\"\",\"\",'Generated list'!B982)","v":""},{"$f":"IF('Generated list'!C982=\"\",\"\",'Generated list'!C982)","v":""},{"$f":"IF('Generated list'!D982=\"\",\"\",'Generated list'!D982)","v":""}]
[null,{"$f":"IF('Generated list'!B983=\"\",\"\",'Generated list'!B983)","v":""},{"$f":"IF('Generated list'!C983=\"\",\"\",'Generated list'!C983)","v":""},{"$f":"IF('Generated list'!D983=\"\",\"\",'Generated list'!D983)","v":""}]
[null,{"$f":"IF('Generated list'!B984=\"\",\"\",'Generated list'!B984)","v":""},{"$f":"IF('Generated list'!C984=\"\",\"\",'Generated list'!C984)","v":""},{"$f":"IF('Generated list'!D984=\"\",\"\",'Generated list'!D984)","v":""}]
[null,{"$f":"IF('Generated list'!B985=\"\",\"\",'Generated list'!B985)","v":""},{"$f":"IF('Generated list'!C985=\"\",\"\",'Generated list'!C985)","v":""},{"$f":"IF('Generated list'!D985=\"\",\"\",'Generated list'!D985)","v":""}]
[null,{"$f":"IF('Generated list'!B986=\"\",\"\",'Generated list'!B986)","v":""},{"$f":"IF('Generated list'!C986=\"\",\"\",'Generated list'!C986)","v":""},{"$f":"IF('Generated list'!D986=\"\",\"\",'Generated list'!D986)","v":""}]
[null,{"$f":"IF('Generated list'!B987=\"\",\"\",'Generated list'!B987)","v":""},{"$f":"IF('Generated list'!C987=\"\",\"\",'Generated list'!C987)","v":""},{"$f":"IF('Generated list'!D987=\"\",\"\",'Generated list'!D987)","v":""}]
[null,{"$f":"IF('Generated list'!B988=\"\",\"\",'Generated list'!B988)","v":""},{"$f":"IF('Generated list'!C988=\"\",\"\",'Generated list'!C988)","v":""},{"$f":"IF('Generated list'!D988=\"\",\"\",'Generated list'!D988)","v":""}]
[null,{"$f":"IF('Generated list'!B989=\"\",\"\",'Generated list'!B989)","v":""},{"$f":"IF('Generated list'!C989=\"\",\"\",'Generated list'!C989)","v":""},{"$f":"IF('Generated list'!D989=\"\",\"\",'Generated list'!D989)","v":""}]
[null,{"$f":"IF('Generated list'!B990=\"\",\"\",'Generated list'!B990)","v":""},{"$f":"IF('Generated list'!C990=\"\",\"\",'Generated list'!C990)","v":""},{"$f":"IF('Generated list'!D990=\"\",\"\",'Generated list'!D990)","v":""}]
[null,{"$f":"IF('Generated list'!B991=\"\",\"\",'Generated list'!B991)","v":""},{"$f":"IF('Generated list'!C991=\"\",\"\",'Generated list'!C991)","v":""},{"$f":"IF('Generated list'!D991=\"\",\"\",'Generated list'!D991)","v":""}]
[null,{"$f":"IF('Generated list'!B992=\"\",\"\",'Generated list'!B992)","v":""},{"$f":"IF('Generated list'!C992=\"\",\"\",'Generated list'!C992)","v":""},{"$f":"IF('Generated list'!D992=\"\",\"\",'Generated list'!D992)","v":""}]
[null,{"$f":"IF('Generated list'!B993=\"\",\"\",'Generated list'!B993)","v":""},{"$f":"IF('Generated list'!C993=\"\",\"\",'Generated list'!C993)","v":""},{"$f":"IF('Generated list'!D993=\"\",\"\",'Generated list'!D993)","v":""}]
[null,{"$f":"IF('Generated list'!B994=\"\",\"\",'Generated list'!B994)","v":""},{"$f":"IF('Generated list'!C994=\"\",\"\",'Generated list'!C994)","v":""},{"$f":"IF('Generated list'!D994=\"\",\"\",'Generated list'!D994)","v":""}]
[null,{"$f":"IF('Generated list'!B995=\"\",\"\",'Generated list'!B995)","v":""},{"$f":"IF('Generated list'!C995=\"\",\"\",'Generated list'!C995)","v":""},{"$f":"IF('Generated list'!D995=\"\",\"\",'Generated list'!D995)","v":""}]
[null,{"$f":"IF('Generated list'!B996=\"\",\"\",'Generated list'!B996)","v":""},{"$f":"IF('Generated list'!C996=\"\",\"\",'Generated list'!C996)","v":""},{"$f":"IF('Generated list'!D996=\"\",\"\",'Generated list'!D996)","v":""}]
[null,{"$f":"IF('Generated list'!B997=\"\",\"\",'Generated list'!B997)","v":""},{"$f":"IF('Generated list'!C997=\"\",\"\",'Generated list'!C997)","v":""},{"$f":"IF('Generated list'!D997=\"\",\"\",'Generated list'!D997)","v":""}]
[null,{"$f":"IF('Generated list'!B998=\"\",\"\",'Generated list'!B998)","v":""},{"$f":"IF('Generated list'!C998=\"\",\"\",'Generated list'!C998)","v":""},{"$f":"IF('Generated list'!D998=\"\",\"\",'Generated list'!D998)","v":""}]
[null,{"$f":"IF('Generated list'!B999=\"\",\"\",'Generated list'!B999)","v":""},{"$f":"IF('Generated list'!C999=\"\",\"\",'Generated list'!C999)","v":""},{"$f":"IF('Generated list'!D999=\"\",\"\",'Generated list'!D999)","v":""}]
[null,{"$f":"IF('Generated list'!B1000=\"\",\"\",'Generated list'!B1000)","v":""},{"$f":"IF('Generated list'!C1000=\"\",\"\",'Generated list'!C1000)","v":""},{"$f":"IF('Generated list'!D1000=\"\",\"\",'Generated list'!D1000)","v":""}]
[null,{"$f":"IF('Generated list'!B1001=\"\",\"\",'Generated list'!B1001)","v":""},{"$f":"IF('Generated list'!C1001=\"\",\"\",'Generated list'!C1001)","v":""},{"$f":"IF('Generated list'!D1001=\"\",\"\",'Generated list'!D1001)","v":""}]
[null,{"$f":"IF('Generated list'!B1002=\"\",\"\",'Generated list'!B1002)","v":""},{"$f":"IF('Generated list'!C1002=\"\",\"\",'Generated list'!C1002)","v":""},{"$f":"IF('Generated list'!D1002=\"\",\"\",'Generated list'!D1002)","v":""}]
[null,{"$f":"IF('Generated list'!B1003=\"\",\"\",'Generated list'!B1003)","v":""},{"$f":"IF('Generated list'!C1003=\"\",\"\",'Generated list'!C1003)","v":""},{"$f":"IF('Generated list'!D1003=\"\",\"\",'Generated list'!D1003)","v":""}]
[null,{"$f":"IF('Generated list'!B1004=\"\",\"\",'Generated list'!B1004)","v":""},{"$f":"IF('Generated list'!C1004=\"\",\"\",'Generated list'!C1004)","v":""},{"$f":"IF('Generated list'!D1004=\"\",\"\",'Generated list'!D1004)","v":""}]
[null,{"$f":"IF('Generated list'!B1005=\"\",\"\",'Generated list'!B1005)","v":""},{"$f":"IF('Generated list'!C1005=\"\",\"\",'Generated list'!C1005)","v":""},{"$f":"IF('Generated list'!D1005=\"\",\"\",'Generated list'!D1005)","v":""}]
[null,{"$f":"IF('Generated list'!B1006=\"\",\"\",'Generated list'!B1006)","v":""},{"$f":"IF('Generated list'!C1006=\"\",\"\",'Generated list'!C1006)","v":""},{"$f":"IF('Generated list'!D1006=\"\",\"\",'Generated list'!D1006)","v":""}]
[null,{"$f":"IF('Generated list'!B1007=\"\",\"\",'Generated list'!B1007)","v":""},{"$f":"IF('Generated list'!C1007=\"\",\"\",'Generated list'!C1007)","v":""},{"$f":"IF('Generated list'!D1007=\"\",\"\",'Generated list'!D1007)","v":""}]
[null,{"$f":"IF('Generated list'!B1008=\"\",\"\",'Generated list'!B1008)","v":""},{"$f":"IF('Generated list'!C1008=\"\",\"\",'Generated list'!C1008)","v":""},{"$f":"IF('Generated list'!D1008=\"\",\"\",'Generated list'!D1008)","v":""}]
[null,{"$f":"IF('Generated list'!B1009=\"\",\"\",'Generated list'!B1009)","v":""},{"$f":"IF('Generated list'!C1009=\"\",\"\",'Generated list'!C1009)","v":""},{"$f":"IF('Generated list'!D1009=\"\",\"\",'Generated list'!D1009)","v":""}]
[null,{"$f":"IF('Generated list'!B1010=\"\",\"\",'Generated list'!B1010)","v":""},{"$f":"IF('Generated list'!C1010=\"\",\"\",'Generated list'!C1010)","v":""},{"$f":"IF('Generated list'!D1010=\"\",\"\",'Generated list'!D1010)","v":""}]
[null,{"$f":"IF('Generated list'!B1011=\"\",\"\",'Generated list'!B1011)","v":""},{"$f":"IF('Generated list'!C1011=\"\",\"\",'Generated list'!C1011)","v":""},{"$f":"IF('Generated list'!D1011=\"\",\"\",'Generated list'!D1011)","v":""}]
[null,{"$f":"IF('Generated list'!B1012=\"\",\"\",'Generated list'!B1012)","v":""},{"$f":"IF('Generated list'!C1012=\"\",\"\",'Generated list'!C1012)","v":""},{"$f":"IF('Generated list'!D1012=\"\",\"\",'Generated list'!D1012)","v":""}]
[null,{"$f":"IF('Generated list'!B1013=\"\",\"\",'Generated list'!B1013)","v":""},{"$f":"IF('Generated list'!C1013=\"\",\"\",'Generated list'!C1013)","v":""},{"$f":"IF('Generated list'!D1013=\"\",\"\",'Generated list'!D1013)","v":""}]
[null,{"$f":"IF('Generated list'!B1014=\"\",\"\",'Generated list'!B1014)","v":""},{"$f":"IF('Generated list'!C1014=\"\",\"\",'Generated list'!C1014)","v":""},{"$f":"IF('Generated list'!D1014=\"\",\"\",'Generated list'!D1014)","v":""}]
[null,{"$f":"IF('Generated list'!B1015=\"\",\"\",'Generated list'!B1015)","v":""},{"$f":"IF('Generated list'!C1015=\"\",\"\",'Generated list'!C1015)","v":""},{"$f":"IF('Generated list'!D1015=\"\",\"\",'Generated list'!D1015)","v":""}]
[null,{"$f":"IF('Generated list'!B1016=\"\",\"\",'Generated list'!B1016)","v":""},{"$f":"IF('Generated list'!C1016=\"\",\"\",'Generated list'!C1016)","v":""},{"$f":"IF('Generated list'!D1016=\"\",\"\",'Generated list'!D1016)","v":""}]
[null,{"$f":"IF('Generated list'!B1017=\"\",\"\",'Generated list'!B1017)","v":""},{"$f":"IF('Generated list'!C1017=\"\",\"\",'Generated list'!C1017)","v":""},{"$f":"IF('Generated list'!D1017=\"\",\"\",'Generated list'!D1017)","v":""}]
[null,{"$f":"IF('Generated list'!B1018=\"\",\"\",'Generated list'!B1018)","v":""},{"$f":"IF('Generated list'!C1018=\"\",\"\",'Generated list'!C1018)","v":""},{"$f":"IF('Generated list'!D1018=\"\",\"\",'Generated list'!D1018)","v":""}]
[null,{"$f":"IF('Generated list'!B1019=\"\",\"\",'Generated list'!B1019)","v":""},{"$f":"IF('Generated list'!C1019=\"\",\"\",'Generated list'!C1019)","v":""},{"$f":"IF('Generated list'!D1019=\"\",\"\",'Generated list'!D1019)","v":""}]
[null,{"$f":"IF('Generated list'!B1020=\"\",\"\",'Generated list'!B1020)","v":""},{"$f":"IF('Generated list'!C1020=\"\",\"\",'Generated list'!C1020)","v":""},{"$f":"IF('Generated list'!D1020=\"\",\"\",'Generated list'!D1020)","v":""}]
[null,{"$f":"IF('Generated list'!B1021=\"\",\"\",'Generated list'!B1021)","v":""},{"$f":"IF('Generated list'!C1021=\"\",\"\",'Generated list'!C1021)","v":""},{"$f":"IF('Generated list'!D1021=\"\",\"\",'Generated list'!D1021)","v":""}]
[null,{"$f":"IF('Generated list'!B1022=\"\",\"\",'Generated list'!B1022)","v":""},{"$f":"IF('Generated list'!C1022=\"\",\"\",'Generated list'!C1022)","v":""},{"$f":"IF('Generated list'!D1022=\"\",\"\",'Generated list'!D1022)","v":""}]
[null,{"$f":"IF('Generated list'!B1023=\"\",\"\",'Generated list'!B1023)","v":""},{"$f":"IF('Generated list'!C1023=\"\",\"\",'Generated list'!C1023)","v":""},{"$f":"IF('Generated list'!D1023=\"\",\"\",'Generated list'!D1023)","v":""}]
[null,{"$f":"IF('Generated list'!B1024=\"\",\"\",'Generated list'!B1024)","v":""},{"$f":"IF('Generated list'!C1024=\"\",\"\",'Generated list'!C1024)","v":""},{"$f":"IF('Generated list'!D1024=\"\",\"\",'Generated list'!D1024)","v":""}]
[null,{"$f":"IF('Generated list'!B1025=\"\",\"\",'Generated list'!B1025)","v":""},{"$f":"IF('Generated list'!C1025=\"\",\"\",'Generated list'!C1025)","v":""},{"$f":"IF('Generated list'!D1025=\"\",\"\",'Generated list'!D1025)","v":""}]
[null,{"$f":"IF('Generated list'!B1026=\"\",\"\",'Generated list'!B1026)","v":""},{"$f":"IF('Generated list'!C1026=\"\",\"\",'Generated list'!C1026)","v":""},{"$f":"IF('Generated list'!D1026=\"\",\"\",'Generated list'!D1026)","v":""}]
[null,{"$f":"IF('Generated list'!B1027=\"\",\"\",'Generated list'!B1027)","v":""},{"$f":"IF('Generated list'!C1027=\"\",\"\",'Generated list'!C1027)","v":""},{"$f":"IF('Generated list'!D1027=\"\",\"\",'Generated list'!D1027)","v":""}]
[null,{"$f":"IF('Generated list'!B1028=\"\",\"\",'Generated list'!B1028)","v":""},{"$f":"IF('Generated list'!C1028=\"\",\"\",'Generated list'!C1028)","v":""},{"$f":"IF('Generated list'!D1028=\"\",\"\",'Generated list'!D1028)","v":""}]
[null,{"$f":"IF('Generated list'!B1029=\"\",\"\",'Generated list'!B1029)","v":""},{"$f":"IF('Generated list'!C1029=\"\",\"\",'Generated list'!C1029)","v":""},{"$f":"IF('Generated list'!D1029=\"\",\"\",'Generated list'!D1029)","v":""}]
[null,{"$f":"IF('Generated list'!B1030=\"\",\"\",'Generated list'!B1030)","v":""},{"$f":"IF('Generated list'!C1030=\"\",\"\",'Generated list'!C1030)","v":""},{"$f":"IF('Generated list'!D1030=\"\",\"\",'Generated list'!D1030)","v":""}]
[null,{"$f":"IF('Generated list'!B1031=\"\",\"\",'Generated list'!B1031)","v":""},{"$f":"IF('Generated list'!C1031=\"\",\"\",'Generated list'!C1031)","v":""},{"$f":"IF('Generated list'!D1031=\"\",\"\",'Generated list'!D1031)","v":""}]
[null,{"$f":"IF('Generated list'!B1032=\"\",\"\",'Generated list'!B1032)","v":""},{"$f":"IF('Generated list'!C1032=\"\",\"\",'Generated list'!C1032)","v":""},{"$f":"IF('Generated list'!D1032=\"\",\"\",'Generated list'!D1032)","v":""}]
[null,{"$f":"IF('Generated list'!B1033=\"\",\"\",'Generated list'!B1033)","v":""},{"$f":"IF('Generated list'!C1033=\"\",\"\",'Generated list'!C1033)","v":""},{"$f":"IF('Generated list'!D1033=\"\",\"\",'Generated list'!D1033)","v":""}]
[null,{"$f":"IF('Generated list'!B1034=\"\",\"\",'Generated list'!B1034)","v":""},{"$f":"IF('Generated list'!C1034=\"\",\"\",'Generated list'!C1034)","v":""},{"$f":"IF('Generated list'!D1034=\"\",\"\",'Generated list'!D1034)","v":""}]
[null,{"$f":"IF('Generated list'!B1035=\"\",\"\",'Generated list'!B1035)","v":""},{"$f":"IF('Generated list'!C1035=\"\",\"\",'Generated list'!C1035)","v":""},{"$f":"IF('Generated list'!D1035=\"\",\"\",'Generated list'!D1035)","v":""}]
[null,{"$f":"IF('Generated list'!B1036=\"\",\"\",'Generated list'!B1036)","v":""},{"$f":"IF('Generated list'!C1036=\"\",\"\",'Generated list'!C1036)","v":""},{"$f":"IF('Generated list'!D1036=\"\",\"\",'Generated list'!D1036)","v":""}]
[null,{"$f":"IF('Generated list'!B1037=\"\",\"\",'Generated list'!B1037)","v":""},{"$f":"IF('Generated list'!C1037=\"\",\"\",'Generated list'!C1037)","v":""},{"$f":"IF('Generated list'!D1037=\"\",\"\",'Generated list'!D1037)","v":""}]
[null,{"$f":"IF('Generated list'!B1038=\"\",\"\",'Generated list'!B1038)","v":""},{"$f":"IF('Generated list'!C1038=\"\",\"\",'Generated list'!C1038)","v":""},{"$f":"IF('Generated list'!D1038=\"\",\"\",'Generated list'!D1038)","v":""}]
[null,{"$f":"IF('Generated list'!B1039=\"\",\"\",'Generated list'!B1039)","v":""},{"$f":"IF('Generated list'!C1039=\"\",\"\",'Generated list'!C1039)","v":""},{"$f":"IF('Generated list'!D1039=\"\",\"\",'Generated list'!D1039)","v":""}]
[null,{"$f":"IF('Generated list'!B1040=\"\",\"\",'Generated list'!B1040)","v":""},{"$f":"IF('Generated list'!C1040=\"\",\"\",'Generated list'!C1040)","v":""},{"$f":"IF('Generated list'!D1040=\"\",\"\",'Generated list'!D1040)","v":""}]
[null,{"$f":"IF('Generated list'!B1041=\"\",\"\",'Generated list'!B1041)","v":""},{"$f":"IF('Generated list'!C1041=\"\",\"\",'Generated list'!C1041)","v":""},{"$f":"IF('Generated list'!D1041=\"\",\"\",'Generated list'!D1041)","v":""}]
[null,{"$f":"IF('Generated list'!B1042=\"\",\"\",'Generated list'!B1042)","v":""},{"$f":"IF('Generated list'!C1042=\"\",\"\",'Generated list'!C1042)","v":""},{"$f":"IF('Generated list'!D1042=\"\",\"\",'Generated list'!D1042)","v":""}]
[null,{"$f":"IF('Generated list'!B1043=\"\",\"\",'Generated list'!B1043)","v":""},{"$f":"IF('Generated list'!C1043=\"\",\"\",'Generated list'!C1043)","v":""},{"$f":"IF('Generated list'!D1043=\"\",\"\",'Generated list'!D1043)","v":""}]
[null,{"$f":"IF('Generated list'!B1044=\"\",\"\",'Generated list'!B1044)","v":""},{"$f":"IF('Generated list'!C1044=\"\",\"\",'Generated list'!C1044)","v":""},{"$f":"IF('Generated list'!D1044=\"\",\"\",'Generated list'!D1044)","v":""}]
[null,{"$f":"IF('Generated list'!B1045=\"\",\"\",'Generated list'!B1045)","v":""},{"$f":"IF('Generated list'!C1045=\"\",\"\",'Generated list'!C1045)","v":""},{"$f":"IF('Generated list'!D1045=\"\",\"\",'Generated list'!D1045)","v":""}]
[null,{"$f":"IF('Generated list'!B1046=\"\",\"\",'Generated list'!B1046)","v":""},{"$f":"IF('Generated list'!C1046=\"\",\"\",'Generated list'!C1046)","v":""},{"$f":"IF('Generated list'!D1046=\"\",\"\",'Generated list'!D1046)","v":""}]
[null,{"$f":"IF('Generated list'!B1047=\"\",\"\",'Generated list'!B1047)","v":""},{"$f":"IF('Generated list'!C1047=\"\",\"\",'Generated list'!C1047)","v":""},{"$f":"IF('Generated list'!D1047=\"\",\"\",'Generated list'!D1047)","v":""}]
[null,{"$f":"IF('Generated list'!B1048=\"\",\"\",'Generated list'!B1048)","v":""},{"$f":"IF('Generated list'!C1048=\"\",\"\",'Generated list'!C1048)","v":""},{"$f":"IF('Generated list'!D1048=\"\",\"\",'Generated list'!D1048)","v":""}]
[null,{"$f":"IF('Generated list'!B1049=\"\",\"\",'Generated list'!B1049)","v":""},{"$f":"IF('Generated list'!C1049=\"\",\"\",'Generated list'!C1049)","v":""},{"$f":"IF('Generated list'!D1049=\"\",\"\",'Generated list'!D1049)","v":""}]
[null,{"$f":"IF('Generated list'!B1050=\"\",\"\",'Generated list'!B1050)","v":""},{"$f":"IF('Generated list'!C1050=\"\",\"\",'Generated list'!C1050)","v":""},{"$f":"IF('Generated list'!D1050=\"\",\"\",'Generated list'!D1050)","v":""}]
[null,{"$f":"IF('Generated list'!B1051=\"\",\"\",'Generated list'!B1051)","v":""},{"$f":"IF('Generated list'!C1051=\"\",\"\",'Generated list'!C1051)","v":""},{"$f":"IF('Generated list'!D1051=\"\",\"\",'Generated list'!D1051)","v":""}]
[null,{"$f":"IF('Generated list'!B1052=\"\",\"\",'Generated list'!B1052)","v":""},{"$f":"IF('Generated list'!C1052=\"\",\"\",'Generated list'!C1052)","v":""},{"$f":"IF('Generated list'!D1052=\"\",\"\",'Generated list'!D1052)","v":""}]
[null,{"$f":"IF('Generated list'!B1053=\"\",\"\",'Generated list'!B1053)","v":""},{"$f":"IF('Generated list'!C1053=\"\",\"\",'Generated list'!C1053)","v":""},{"$f":"IF('Generated list'!D1053=\"\",\"\",'Generated list'!D1053)","v":""}]
[null,{"$f":"IF('Generated list'!B1054=\"\",\"\",'Generated list'!B1054)","v":""},{"$f":"IF('Generated list'!C1054=\"\",\"\",'Generated list'!C1054)","v":""},{"$f":"IF('Generated list'!D1054=\"\",\"\",'Generated list'!D1054)","v":""}]
[null,{"$f":"IF('Generated list'!B1055=\"\",\"\",'Generated list'!B1055)","v":""},{"$f":"IF('Generated list'!C1055=\"\",\"\",'Generated list'!C1055)","v":""},{"$f":"IF('Generated list'!D1055=\"\",\"\",'Generated list'!D1055)","v":""}]
[null,{"$f":"IF('Generated list'!B1056=\"\",\"\",'Generated list'!B1056)","v":""},{"$f":"IF('Generated list'!C1056=\"\",\"\",'Generated list'!C1056)","v":""},{"$f":"IF('Generated list'!D1056=\"\",\"\",'Generated list'!D1056)","v":""}]
[null,{"$f":"IF('Generated list'!B1057=\"\",\"\",'Generated list'!B1057)","v":""},{"$f":"IF('Generated list'!C1057=\"\",\"\",'Generated list'!C1057)","v":""},{"$f":"IF('Generated list'!D1057=\"\",\"\",'Generated list'!D1057)","v":""}]
[null,{"$f":"IF('Generated list'!B1058=\"\",\"\",'Generated list'!B1058)","v":""},{"$f":"IF('Generated list'!C1058=\"\",\"\",'Generated list'!C1058)","v":""},{"$f":"IF('Generated list'!D1058=\"\",\"\",'Generated list'!D1058)","v":""}]
[null,{"$f":"IF('Generated list'!B1059=\"\",\"\",'Generated list'!B1059)","v":""},{"$f":"IF('Generated list'!C1059=\"\",\"\",'Generated list'!C1059)","v":""},{"$f":"IF('Generated list'!D1059=\"\",\"\",'Generated list'!D1059)","v":""}]
[null,{"$f":"IF('Generated list'!B1060=\"\",\"\",'Generated list'!B1060)","v":""},{"$f":"IF('Generated list'!C1060=\"\",\"\",'Generated list'!C1060)","v":""},{"$f":"IF('Generated list'!D1060=\"\",\"\",'Generated list'!D1060)","v":""}]
[null,{"$f":"IF('Generated list'!B1061=\"\",\"\",'Generated list'!B1061)","v":""},{"$f":"IF('Generated list'!C1061=\"\",\"\",'Generated list'!C1061)","v":""},{"$f":"IF('Generated list'!D1061=\"\",\"\",'Generated list'!D1061)","v":""}]
[null,{"$f":"IF('Generated list'!B1062=\"\",\"\",'Generated list'!B1062)","v":""},{"$f":"IF('Generated list'!C1062=\"\",\"\",'Generated list'!C1062)","v":""},{"$f":"IF('Generated list'!D1062=\"\",\"\",'Generated list'!D1062)","v":""}]
[null,{"$f":"IF('Generated list'!B1063=\"\",\"\",'Generated list'!B1063)","v":""},{"$f":"IF('Generated list'!C1063=\"\",\"\",'Generated list'!C1063)","v":""},{"$f":"IF('Generated list'!D1063=\"\",\"\",'Generated list'!D1063)","v":""}]
[null,{"$f":"IF('Generated list'!B1064=\"\",\"\",'Generated list'!B1064)","v":""},{"$f":"IF('Generated list'!C1064=\"\",\"\",'Generated list'!C1064)","v":""},{"$f":"IF('Generated list'!D1064=\"\",\"\",'Generated list'!D1064)","v":""}]
[null,{"$f":"IF('Generated list'!B1065=\"\",\"\",'Generated list'!B1065)","v":""},{"$f":"IF('Generated list'!C1065=\"\",\"\",'Generated list'!C1065)","v":""},{"$f":"IF('Generated list'!D1065=\"\",\"\",'Generated list'!D1065)","v":""}]
[null,{"$f":"IF('Generated list'!B1066=\"\",\"\",'Generated list'!B1066)","v":""},{"$f":"IF('Generated list'!C1066=\"\",\"\",'Generated list'!C1066)","v":""},{"$f":"IF('Generated list'!D1066=\"\",\"\",'Generated list'!D1066)","v":""}]
[null,{"$f":"IF('Generated list'!B1067=\"\",\"\",'Generated list'!B1067)","v":""},{"$f":"IF('Generated list'!C1067=\"\",\"\",'Generated list'!C1067)","v":""},{"$f":"IF('Generated list'!D1067=\"\",\"\",'Generated list'!D1067)","v":""}]
[null,{"$f":"IF('Generated list'!B1068=\"\",\"\",'Generated list'!B1068)","v":""},{"$f":"IF('Generated list'!C1068=\"\",\"\",'Generated list'!C1068)","v":""},{"$f":"IF('Generated list'!D1068=\"\",\"\",'Generated list'!D1068)","v":""}]
[null,{"$f":"IF('Generated list'!B1069=\"\",\"\",'Generated list'!B1069)","v":""},{"$f":"IF('Generated list'!C1069=\"\",\"\",'Generated list'!C1069)","v":""},{"$f":"IF('Generated list'!D1069=\"\",\"\",'Generated list'!D1069)","v":""}]
[null,{"$f":"IF('Generated list'!B1070=\"\",\"\",'Generated list'!B1070)","v":""},{"$f":"IF('Generated list'!C1070=\"\",\"\",'Generated list'!C1070)","v":""},{"$f":"IF('Generated list'!D1070=\"\",\"\",'Generated list'!D1070)","v":""}]
[null,{"$f":"IF('Generated list'!B1071=\"\",\"\",'Generated list'!B1071)","v":""},{"$f":"IF('Generated list'!C1071=\"\",\"\",'Generated list'!C1071)","v":""},{"$f":"IF('Generated list'!D1071=\"\",\"\",'Generated list'!D1071)","v":""}]
[null,{"$f":"IF('Generated list'!B1072=\"\",\"\",'Generated list'!B1072)","v":""},{"$f":"IF('Generated list'!C1072=\"\",\"\",'Generated list'!C1072)","v":""},{"$f":"IF('Generated list'!D1072=\"\",\"\",'Generated list'!D1072)","v":""}]
[null,{"$f":"IF('Generated list'!B1073=\"\",\"\",'Generated list'!B1073)","v":""},{"$f":"IF('Generated list'!C1073=\"\",\"\",'Generated list'!C1073)","v":""},{"$f":"IF('Generated list'!D1073=\"\",\"\",'Generated list'!D1073)","v":""}]
[null,{"$f":"IF('Generated list'!B1074=\"\",\"\",'Generated list'!B1074)","v":""},{"$f":"IF('Generated list'!C1074=\"\",\"\",'Generated list'!C1074)","v":""},{"$f":"IF('Generated list'!D1074=\"\",\"\",'Generated list'!D1074)","v":""}]
[null,{"$f":"IF('Generated list'!B1075=\"\",\"\",'Generated list'!B1075)","v":""},{"$f":"IF('Generated list'!C1075=\"\",\"\",'Generated list'!C1075)","v":""},{"$f":"IF('Generated list'!D1075=\"\",\"\",'Generated list'!D1075)","v":""}]
[null,{"$f":"IF('Generated list'!B1076=\"\",\"\",'Generated list'!B1076)","v":""},{"$f":"IF('Generated list'!C1076=\"\",\"\",'Generated list'!C1076)","v":""},{"$f":"IF('Generated list'!D1076=\"\",\"\",'Generated list'!D1076)","v":""}]
[null,{"$f":"IF('Generated list'!B1077=\"\",\"\",'Generated list'!B1077)","v":""},{"$f":"IF('Generated list'!C1077=\"\",\"\",'Generated list'!C1077)","v":""},{"$f":"IF('Generated list'!D1077=\"\",\"\",'Generated list'!D1077)","v":""}]
[null,{"$f":"IF('Generated list'!B1078=\"\",\"\",'Generated list'!B1078)","v":""},{"$f":"IF('Generated list'!C1078=\"\",\"\",'Generated list'!C1078)","v":""},{"$f":"IF('Generated list'!D1078=\"\",\"\",'Generated list'!D1078)","v":""}]
[null,{"$f":"IF('Generated list'!B1079=\"\",\"\",'Generated list'!B1079)","v":""},{"$f":"IF('Generated list'!C1079=\"\",\"\",'Generated list'!C1079)","v":""},{"$f":"IF('Generated list'!D1079=\"\",\"\",'Generated list'!D1079)","v":""}]
[null,{"$f":"IF('Generated list'!B1080=\"\",\"\",'Generated list'!B1080)","v":""},{"$f":"IF('Generated list'!C1080=\"\",\"\",'Generated list'!C1080)","v":""},{"$f":"IF('Generated list'!D1080=\"\",\"\",'Generated list'!D1080)","v":""}]
[null,{"$f":"IF('Generated list'!B1081=\"\",\"\",'Generated list'!B1081)","v":""},{"$f":"IF('Generated list'!C1081=\"\",\"\",'Generated list'!C1081)","v":""},{"$f":"IF('Generated list'!D1081=\"\",\"\",'Generated list'!D1081)","v":""}]
[null,{"$f":"IF('Generated list'!B1082=\"\",\"\",'Generated list'!B1082)","v":""},{"$f":"IF('Generated list'!C1082=\"\",\"\",'Generated list'!C1082)","v":""},{"$f":"IF('Generated list'!D1082=\"\",\"\",'Generated list'!D1082)","v":""}]
[null,{"$f":"IF('Generated list'!B1083=\"\",\"\",'Generated list'!B1083)","v":""},{"$f":"IF('Generated list'!C1083=\"\",\"\",'Generated list'!C1083)","v":""},{"$f":"IF('Generated list'!D1083=\"\",\"\",'Generated list'!D1083)","v":""}]
[null,{"$f":"IF('Generated list'!B1084=\"\",\"\",'Generated list'!B1084)","v":""},{"$f":"IF('Generated list'!C1084=\"\",\"\",'Generated list'!C1084)","v":""},{"$f":"IF('Generated list'!D1084=\"\",\"\",'Generated list'!D1084)","v":""}]
[null,{"$f":"IF('Generated list'!B1085=\"\",\"\",'Generated list'!B1085)","v":""},{"$f":"IF('Generated list'!C1085=\"\",\"\",'Generated list'!C1085)","v":""},{"$f":"IF('Generated list'!D1085=\"\",\"\",'Generated list'!D1085)","v":""}]
[null,{"$f":"IF('Generated list'!B1086=\"\",\"\",'Generated list'!B1086)","v":""},{"$f":"IF('Generated list'!C1086=\"\",\"\",'Generated list'!C1086)","v":""},{"$f":"IF('Generated list'!D1086=\"\",\"\",'Generated list'!D1086)","v":""}]
[null,{"$f":"IF('Generated list'!B1087=\"\",\"\",'Generated list'!B1087)","v":""},{"$f":"IF('Generated list'!C1087=\"\",\"\",'Generated list'!C1087)","v":""},{"$f":"IF('Generated list'!D1087=\"\",\"\",'Generated list'!D1087)","v":""}]
[null,{"$f":"IF('Generated list'!B1088=\"\",\"\",'Generated list'!B1088)","v":""},{"$f":"IF('Generated list'!C1088=\"\",\"\",'Generated list'!C1088)","v":""},{"$f":"IF('Generated list'!D1088=\"\",\"\",'Generated list'!D1088)","v":""}]
[null,{"$f":"IF('Generated list'!B1089=\"\",\"\",'Generated list'!B1089)","v":""},{"$f":"IF('Generated list'!C1089=\"\",\"\",'Generated list'!C1089)","v":""},{"$f":"IF('Generated list'!D1089=\"\",\"\",'Generated list'!D1089)","v":""}]
[null,{"$f":"IF('Generated list'!B1090=\"\",\"\",'Generated list'!B1090)","v":""},{"$f":"IF('Generated list'!C1090=\"\",\"\",'Generated list'!C1090)","v":""},{"$f":"IF('Generated list'!D1090=\"\",\"\",'Generated list'!D1090)","v":""}]
[null,{"$f":"IF('Generated list'!B1091=\"\",\"\",'Generated list'!B1091)","v":""},{"$f":"IF('Generated list'!C1091=\"\",\"\",'Generated list'!C1091)","v":""},{"$f":"IF('Generated list'!D1091=\"\",\"\",'Generated list'!D1091)","v":""}]
[null,{"$f":"IF('Generated list'!B1092=\"\",\"\",'Generated list'!B1092)","v":""},{"$f":"IF('Generated list'!C1092=\"\",\"\",'Generated list'!C1092)","v":""},{"$f":"IF('Generated list'!D1092=\"\",\"\",'Generated list'!D1092)","v":""}]
[null,{"$f":"IF('Generated list'!B1093=\"\",\"\",'Generated list'!B1093)","v":""},{"$f":"IF('Generated list'!C1093=\"\",\"\",'Generated list'!C1093)","v":""},{"$f":"IF('Generated list'!D1093=\"\",\"\",'Generated list'!D1093)","v":""}]
[null,{"$f":"IF('Generated list'!B1094=\"\",\"\",'Generated list'!B1094)","v":""},{"$f":"IF('Generated list'!C1094=\"\",\"\",'Generated list'!C1094)","v":""},{"$f":"IF('Generated list'!D1094=\"\",\"\",'Generated list'!D1094)","v":""}]
[null,{"$f":"IF('Generated list'!B1095=\"\",\"\",'Generated list'!B1095)","v":""},{"$f":"IF('Generated list'!C1095=\"\",\"\",'Generated list'!C1095)","v":""},{"$f":"IF('Generated list'!D1095=\"\",\"\",'Generated list'!D1095)","v":""}]
[null,{"$f":"IF('Generated list'!B1096=\"\",\"\",'Generated list'!B1096)","v":""},{"$f":"IF('Generated list'!C1096=\"\",\"\",'Generated list'!C1096)","v":""},{"$f":"IF('Generated list'!D1096=\"\",\"\",'Generated list'!D1096)","v":""}]
[null,{"$f":"IF('Generated list'!B1097=\"\",\"\",'Generated list'!B1097)","v":""},{"$f":"IF('Generated list'!C1097=\"\",\"\",'Generated list'!C1097)","v":""},{"$f":"IF('Generated list'!D1097=\"\",\"\",'Generated list'!D1097)","v":""}]
[null,{"$f":"IF('Generated list'!B1098=\"\",\"\",'Generated list'!B1098)","v":""},{"$f":"IF('Generated list'!C1098=\"\",\"\",'Generated list'!C1098)","v":""},{"$f":"IF('Generated list'!D1098=\"\",\"\",'Generated list'!D1098)","v":""}]
[null,{"$f":"IF('Generated list'!B1099=\"\",\"\",'Generated list'!B1099)","v":""},{"$f":"IF('Generated list'!C1099=\"\",\"\",'Generated list'!C1099)","v":""},{"$f":"IF('Generated list'!D1099=\"\",\"\",'Generated list'!D1099)","v":""}]
[null,{"$f":"IF('Generated list'!B1100=\"\",\"\",'Generated list'!B1100)","v":""},{"$f":"IF('Generated list'!C1100=\"\",\"\",'Generated list'!C1100)","v":""},{"$f":"IF('Generated list'!D1100=\"\",\"\",'Generated list'!D1100)","v":""}]
[null,{"$f":"IF('Generated list'!B1101=\"\",\"\",'Generated list'!B1101)","v":""},{"$f":"IF('Generated list'!C1101=\"\",\"\",'Generated list'!C1101)","v":""},{"$f":"IF('Generated list'!D1101=\"\",\"\",'Generated list'!D1101)","v":""}]
[null,{"$f":"IF('Generated list'!B1102=\"\",\"\",'Generated list'!B1102)","v":""},{"$f":"IF('Generated list'!C1102=\"\",\"\",'Generated list'!C1102)","v":""},{"$f":"IF('Generated list'!D1102=\"\",\"\",'Generated list'!D1102)","v":""}]
[null,{"$f":"IF('Generated list'!B1103=\"\",\"\",'Generated list'!B1103)","v":""},{"$f":"IF('Generated list'!C1103=\"\",\"\",'Generated list'!C1103)","v":""},{"$f":"IF('Generated list'!D1103=\"\",\"\",'Generated list'!D1103)","v":""}]
[null,{"$f":"IF('Generated list'!B1104=\"\",\"\",'Generated list'!B1104)","v":""},{"$f":"IF('Generated list'!C1104=\"\",\"\",'Generated list'!C1104)","v":""},{"$f":"IF('Generated list'!D1104=\"\",\"\",'Generated list'!D1104)","v":""}]
[null,{"$f":"IF('Generated list'!B1105=\"\",\"\",'Generated list'!B1105)","v":""},{"$f":"IF('Generated list'!C1105=\"\",\"\",'Generated list'!C1105)","v":""},{"$f":"IF('Generated list'!D1105=\"\",\"\",'Generated list'!D1105)","v":""}]
[null,{"$f":"IF('Generated list'!B1106=\"\",\"\",'Generated list'!B1106)","v":""},{"$f":"IF('Generated list'!C1106=\"\",\"\",'Generated list'!C1106)","v":""},{"$f":"IF('Generated list'!D1106=\"\",\"\",'Generated list'!D1106)","v":""}]
[null,{"$f":"IF('Generated list'!B1107=\"\",\"\",'Generated list'!B1107)","v":""},{"$f":"IF('Generated list'!C1107=\"\",\"\",'Generated list'!C1107)","v":""},{"$f":"IF('Generated list'!D1107=\"\",\"\",'Generated list'!D1107)","v":""}]
[null,{"$f":"IF('Generated list'!B1108=\"\",\"\",'Generated list'!B1108)","v":""},{"$f":"IF('Generated list'!C1108=\"\",\"\",'Generated list'!C1108)","v":""},{"$f":"IF('Generated list'!D1108=\"\",\"\",'Generated list'!D1108)","v":""}]
[null,{"$f":"IF('Generated list'!B1109=\"\",\"\",'Generated list'!B1109)","v":""},{"$f":"IF('Generated list'!C1109=\"\",\"\",'Generated list'!C1109)","v":""},{"$f":"IF('Generated list'!D1109=\"\",\"\",'Generated list'!D1109)","v":""}]
[null,{"$f":"IF('Generated list'!B1110=\"\",\"\",'Generated list'!B1110)","v":""},{"$f":"IF('Generated list'!C1110=\"\",\"\",'Generated list'!C1110)","v":""},{"$f":"IF('Generated list'!D1110=\"\",\"\",'Generated list'!D1110)","v":""}]
[null,{"$f":"IF('Generated list'!B1111=\"\",\"\",'Generated list'!B1111)","v":""},{"$f":"IF('Generated list'!C1111=\"\",\"\",'Generated list'!C1111)","v":""},{"$f":"IF('Generated list'!D1111=\"\",\"\",'Generated list'!D1111)","v":""}]
[null,{"$f":"IF('Generated list'!B1112=\"\",\"\",'Generated list'!B1112)","v":""},{"$f":"IF('Generated list'!C1112=\"\",\"\",'Generated list'!C1112)","v":""},{"$f":"IF('Generated list'!D1112=\"\",\"\",'Generated list'!D1112)","v":""}]
[null,{"$f":"IF('Generated list'!B1113=\"\",\"\",'Generated list'!B1113)","v":""},{"$f":"IF('Generated list'!C1113=\"\",\"\",'Generated list'!C1113)","v":""},{"$f":"IF('Generated list'!D1113=\"\",\"\",'Generated list'!D1113)","v":""}]
[null,{"$f":"IF('Generated list'!B1114=\"\",\"\",'Generated list'!B1114)","v":""},{"$f":"IF('Generated list'!C1114=\"\",\"\",'Generated list'!C1114)","v":""},{"$f":"IF('Generated list'!D1114=\"\",\"\",'Generated list'!D1114)","v":""}]
[null,{"$f":"IF('Generated list'!B1115=\"\",\"\",'Generated list'!B1115)","v":""},{"$f":"IF('Generated list'!C1115=\"\",\"\",'Generated list'!C1115)","v":""},{"$f":"IF('Generated list'!D1115=\"\",\"\",'Generated list'!D1115)","v":""}]
[null,{"$f":"IF('Generated list'!B1116=\"\",\"\",'Generated list'!B1116)","v":""},{"$f":"IF('Generated list'!C1116=\"\",\"\",'Generated list'!C1116)","v":""},{"$f":"IF('Generated list'!D1116=\"\",\"\",'Generated list'!D1116)","v":""}]
[null,{"$f":"IF('Generated list'!B1117=\"\",\"\",'Generated list'!B1117)","v":""},{"$f":"IF('Generated list'!C1117=\"\",\"\",'Generated list'!C1117)","v":""},{"$f":"IF('Generated list'!D1117=\"\",\"\",'Generated list'!D1117)","v":""}]
[null,{"$f":"IF('Generated list'!B1118=\"\",\"\",'Generated list'!B1118)","v":""},{"$f":"IF('Generated list'!C1118=\"\",\"\",'Generated list'!C1118)","v":""},{"$f":"IF('Generated list'!D1118=\"\",\"\",'Generated list'!D1118)","v":""}]
[null,{"$f":"IF('Generated list'!B1119=\"\",\"\",'Generated list'!B1119)","v":""},{"$f":"IF('Generated list'!C1119=\"\",\"\",'Generated list'!C1119)","v":""},{"$f":"IF('Generated list'!D1119=\"\",\"\",'Generated list'!D1119)","v":""}]
[null,{"$f":"IF('Generated list'!B1120=\"\",\"\",'Generated list'!B1120)","v":""},{"$f":"IF('Generated list'!C1120=\"\",\"\",'Generated list'!C1120)","v":""},{"$f":"IF('Generated list'!D1120=\"\",\"\",'Generated list'!D1120)","v":""}]
[null,{"$f":"IF('Generated list'!B1121=\"\",\"\",'Generated list'!B1121)","v":""},{"$f":"IF('Generated list'!C1121=\"\",\"\",'Generated list'!C1121)","v":""},{"$f":"IF('Generated list'!D1121=\"\",\"\",'Generated list'!D1121)","v":""}]
[null,{"$f":"IF('Generated list'!B1122=\"\",\"\",'Generated list'!B1122)","v":""},{"$f":"IF('Generated list'!C1122=\"\",\"\",'Generated list'!C1122)","v":""},{"$f":"IF('Generated list'!D1122=\"\",\"\",'Generated list'!D1122)","v":""}]
[null,{"$f":"IF('Generated list'!B1123=\"\",\"\",'Generated list'!B1123)","v":""},{"$f":"IF('Generated list'!C1123=\"\",\"\",'Generated list'!C1123)","v":""},{"$f":"IF('Generated list'!D1123=\"\",\"\",'Generated list'!D1123)","v":""}]
[null,{"$f":"IF('Generated list'!B1124=\"\",\"\",'Generated list'!B1124)","v":""},{"$f":"IF('Generated list'!C1124=\"\",\"\",'Generated list'!C1124)","v":""},{"$f":"IF('Generated list'!D1124=\"\",\"\",'Generated list'!D1124)","v":""}]
[null,{"$f":"IF('Generated list'!B1125=\"\",\"\",'Generated list'!B1125)","v":""},{"$f":"IF('Generated list'!C1125=\"\",\"\",'Generated list'!C1125)","v":""},{"$f":"IF('Generated list'!D1125=\"\",\"\",'Generated list'!D1125)","v":""}]
[null,{"$f":"IF('Generated list'!B1126=\"\",\"\",'Generated list'!B1126)","v":""},{"$f":"IF('Generated list'!C1126=\"\",\"\",'Generated list'!C1126)","v":""},{"$f":"IF('Generated list'!D1126=\"\",\"\",'Generated list'!D1126)","v":""}]
[null,{"$f":"IF('Generated list'!B1127=\"\",\"\",'Generated list'!B1127)","v":""},{"$f":"IF('Generated list'!C1127=\"\",\"\",'Generated list'!C1127)","v":""},{"$f":"IF('Generated list'!D1127=\"\",\"\",'Generated list'!D1127)","v":""}]
[null,{"$f":"IF('Generated list'!B1128=\"\",\"\",'Generated list'!B1128)","v":""},{"$f":"IF('Generated list'!C1128=\"\",\"\",'Generated list'!C1128)","v":""},{"$f":"IF('Generated list'!D1128=\"\",\"\",'Generated list'!D1128)","v":""}]
[null,{"$f":"IF('Generated list'!B1129=\"\",\"\",'Generated list'!B1129)","v":""},{"$f":"IF('Generated list'!C1129=\"\",\"\",'Generated list'!C1129)","v":""},{"$f":"IF('Generated list'!D1129=\"\",\"\",'Generated list'!D1129)","v":""}]
[null,{"$f":"IF('Generated list'!B1130=\"\",\"\",'Generated list'!B1130)","v":""},{"$f":"IF('Generated list'!C1130=\"\",\"\",'Generated list'!C1130)","v":""},{"$f":"IF('Generated list'!D1130=\"\",\"\",'Generated list'!D1130)","v":""}]
[null,{"$f":"IF('Generated list'!B1131=\"\",\"\",'Generated list'!B1131)","v":""},{"$f":"IF('Generated list'!C1131=\"\",\"\",'Generated list'!C1131)","v":""},{"$f":"IF('Generated list'!D1131=\"\",\"\",'Generated list'!D1131)","v":""}]
[null,{"$f":"IF('Generated list'!B1132=\"\",\"\",'Generated list'!B1132)","v":""},{"$f":"IF('Generated list'!C1132=\"\",\"\",'Generated list'!C1132)","v":""},{"$f":"IF('Generated list'!D1132=\"\",\"\",'Generated list'!D1132)","v":""}]
[null,{"$f":"IF('Generated list'!B1133=\"\",\"\",'Generated list'!B1133)","v":""},{"$f":"IF('Generated list'!C1133=\"\",\"\",'Generated list'!C1133)","v":""},{"$f":"IF('Generated list'!D1133=\"\",\"\",'Generated list'!D1133)","v":""}]
[null,{"$f":"IF('Generated list'!B1134=\"\",\"\",'Generated list'!B1134)","v":""},{"$f":"IF('Generated list'!C1134=\"\",\"\",'Generated list'!C1134)","v":""},{"$f":"IF('Generated list'!D1134=\"\",\"\",'Generated list'!D1134)","v":""}]
[null,{"$f":"IF('Generated list'!B1135=\"\",\"\",'Generated list'!B1135)","v":""},{"$f":"IF('Generated list'!C1135=\"\",\"\",'Generated list'!C1135)","v":""},{"$f":"IF('Generated list'!D1135=\"\",\"\",'Generated list'!D1135)","v":""}]
[null,{"$f":"IF('Generated list'!B1136=\"\",\"\",'Generated list'!B1136)","v":""},{"$f":"IF('Generated list'!C1136=\"\",\"\",'Generated list'!C1136)","v":""},{"$f":"IF('Generated list'!D1136=\"\",\"\",'Generated list'!D1136)","v":""}]
[null,{"$f":"IF('Generated list'!B1137=\"\",\"\",'Generated list'!B1137)","v":""},{"$f":"IF('Generated list'!C1137=\"\",\"\",'Generated list'!C1137)","v":""},{"$f":"IF('Generated list'!D1137=\"\",\"\",'Generated list'!D1137)","v":""}]
[null,{"$f":"IF('Generated list'!B1138=\"\",\"\",'Generated list'!B1138)","v":""},{"$f":"IF('Generated list'!C1138=\"\",\"\",'Generated list'!C1138)","v":""},{"$f":"IF('Generated list'!D1138=\"\",\"\",'Generated list'!D1138)","v":""}]
[null,{"$f":"IF('Generated list'!B1139=\"\",\"\",'Generated list'!B1139)","v":""},{"$f":"IF('Generated list'!C1139=\"\",\"\",'Generated list'!C1139)","v":""},{"$f":"IF('Generated list'!D1139=\"\",\"\",'Generated list'!D1139)","v":""}]
[null,{"$f":"IF('Generated list'!B1140=\"\",\"\",'Generated list'!B1140)","v":""},{"$f":"IF('Generated list'!C1140=\"\",\"\",'Generated list'!C1140)","v":""},{"$f":"IF('Generated list'!D1140=\"\",\"\",'Generated list'!D1140)","v":""}]
[null,{"$f":"IF('Generated list'!B1141=\"\",\"\",'Generated list'!B1141)","v":""},{"$f":"IF('Generated list'!C1141=\"\",\"\",'Generated list'!C1141)","v":""},{"$f":"IF('Generated list'!D1141=\"\",\"\",'Generated list'!D1141)","v":""}]
[null,{"$f":"IF('Generated list'!B1142=\"\",\"\",'Generated list'!B1142)","v":""},{"$f":"IF('Generated list'!C1142=\"\",\"\",'Generated list'!C1142)","v":""},{"$f":"IF('Generated list'!D1142=\"\",\"\",'Generated list'!D1142)","v":""}]
[null,{"$f":"IF('Generated list'!B1143=\"\",\"\",'Generated list'!B1143)","v":""},{"$f":"IF('Generated list'!C1143=\"\",\"\",'Generated list'!C1143)","v":""},{"$f":"IF('Generated list'!D1143=\"\",\"\",'Generated list'!D1143)","v":""}]
[null,{"$f":"IF('Generated list'!B1144=\"\",\"\",'Generated list'!B1144)","v":""},{"$f":"IF('Generated list'!C1144=\"\",\"\",'Generated list'!C1144)","v":""},{"$f":"IF('Generated list'!D1144=\"\",\"\",'Generated list'!D1144)","v":""}]
[null,{"$f":"IF('Generated list'!B1145=\"\",\"\",'Generated list'!B1145)","v":""},{"$f":"IF('Generated list'!C1145=\"\",\"\",'Generated list'!C1145)","v":""},{"$f":"IF('Generated list'!D1145=\"\",\"\",'Generated list'!D1145)","v":""}]
[null,{"$f":"IF('Generated list'!B1146=\"\",\"\",'Generated list'!B1146)","v":""},{"$f":"IF('Generated list'!C1146=\"\",\"\",'Generated list'!C1146)","v":""},{"$f":"IF('Generated list'!D1146=\"\",\"\",'Generated list'!D1146)","v":""}]
[null,{"$f":"IF('Generated list'!B1147=\"\",\"\",'Generated list'!B1147)","v":""},{"$f":"IF('Generated list'!C1147=\"\",\"\",'Generated list'!C1147)","v":""},{"$f":"IF('Generated list'!D1147=\"\",\"\",'Generated list'!D1147)","v":""}]
[null,{"$f":"IF('Generated list'!B1148=\"\",\"\",'Generated list'!B1148)","v":""},{"$f":"IF('Generated list'!C1148=\"\",\"\",'Generated list'!C1148)","v":""},{"$f":"IF('Generated list'!D1148=\"\",\"\",'Generated list'!D1148)","v":""}]
[null,{"$f":"IF('Generated list'!B1149=\"\",\"\",'Generated list'!B1149)","v":""},{"$f":"IF('Generated list'!C1149=\"\",\"\",'Generated list'!C1149)","v":""},{"$f":"IF('Generated list'!D1149=\"\",\"\",'Generated list'!D1149)","v":""}]
[null,{"$f":"IF('Generated list'!B1150=\"\",\"\",'Generated list'!B1150)","v":""},{"$f":"IF('Generated list'!C1150=\"\",\"\",'Generated list'!C1150)","v":""},{"$f":"IF('Generated list'!D1150=\"\",\"\",'Generated list'!D1150)","v":""}]
[null,{"$f":"IF('Generated list'!B1151=\"\",\"\",'Generated list'!B1151)","v":""},{"$f":"IF('Generated list'!C1151=\"\",\"\",'Generated list'!C1151)","v":""},{"$f":"IF('Generated list'!D1151=\"\",\"\",'Generated list'!D1151)","v":""}]
[null,{"$f":"IF('Generated list'!B1152=\"\",\"\",'Generated list'!B1152)","v":""},{"$f":"IF('Generated list'!C1152=\"\",\"\",'Generated list'!C1152)","v":""},{"$f":"IF('Generated list'!D1152=\"\",\"\",'Generated list'!D1152)","v":""}]
[null,{"$f":"IF('Generated list'!B1153=\"\",\"\",'Generated list'!B1153)","v":""},{"$f":"IF('Generated list'!C1153=\"\",\"\",'Generated list'!C1153)","v":""},{"$f":"IF('Generated list'!D1153=\"\",\"\",'Generated list'!D1153)","v":""}]
[null,{"$f":"IF('Generated list'!B1154=\"\",\"\",'Generated list'!B1154)","v":""},{"$f":"IF('Generated list'!C1154=\"\",\"\",'Generated list'!C1154)","v":""},{"$f":"IF('Generated list'!D1154=\"\",\"\",'Generated list'!D1154)","v":""}]
[null,{"$f":"IF('Generated list'!B1155=\"\",\"\",'Generated list'!B1155)","v":""},{"$f":"IF('Generated list'!C1155=\"\",\"\",'Generated list'!C1155)","v":""},{"$f":"IF('Generated list'!D1155=\"\",\"\",'Generated list'!D1155)","v":""}]
[null,{"$f":"IF('Generated list'!B1156=\"\",\"\",'Generated list'!B1156)","v":""},{"$f":"IF('Generated list'!C1156=\"\",\"\",'Generated list'!C1156)","v":""},{"$f":"IF('Generated list'!D1156=\"\",\"\",'Generated list'!D1156)","v":""}]
[null,{"$f":"IF('Generated list'!B1157=\"\",\"\",'Generated list'!B1157)","v":""},{"$f":"IF('Generated list'!C1157=\"\",\"\",'Generated list'!C1157)","v":""},{"$f":"IF('Generated list'!D1157=\"\",\"\",'Generated list'!D1157)","v":""}]
[null,{"$f":"IF('Generated list'!B1158=\"\",\"\",'Generated list'!B1158)","v":""},{"$f":"IF('Generated list'!C1158=\"\",\"\",'Generated list'!C1158)","v":""},{"$f":"IF('Generated list'!D1158=\"\",\"\",'Generated list'!D1158)","v":""}]
[null,{"$f":"IF('Generated list'!B1159=\"\",\"\",'Generated list'!B1159)","v":""},{"$f":"IF('Generated list'!C1159=\"\",\"\",'Generated list'!C1159)","v":""},{"$f":"IF('Generated list'!D1159=\"\",\"\",'Generated list'!D1159)","v":""}]
[null,{"$f":"IF('Generated list'!B1160=\"\",\"\",'Generated list'!B1160)","v":""},{"$f":"IF('Generated list'!C1160=\"\",\"\",'Generated list'!C1160)","v":""},{"$f":"IF('Generated list'!D1160=\"\",\"\",'Generated list'!D1160)","v":""}]
[null,{"$f":"IF('Generated list'!B1161=\"\",\"\",'Generated list'!B1161)","v":""},{"$f":"IF('Generated list'!C1161=\"\",\"\",'Generated list'!C1161)","v":""},{"$f":"IF('Generated list'!D1161=\"\",\"\",'Generated list'!D1161)","v":""}]
[null,{"$f":"IF('Generated list'!B1162=\"\",\"\",'Generated list'!B1162)","v":""},{"$f":"IF('Generated list'!C1162=\"\",\"\",'Generated list'!C1162)","v":""},{"$f":"IF('Generated list'!D1162=\"\",\"\",'Generated list'!D1162)","v":""}]
[null,{"$f":"IF('Generated list'!B1163=\"\",\"\",'Generated list'!B1163)","v":""},{"$f":"IF('Generated list'!C1163=\"\",\"\",'Generated list'!C1163)","v":""},{"$f":"IF('Generated list'!D1163=\"\",\"\",'Generated list'!D1163)","v":""}]
[null,{"$f":"IF('Generated list'!B1164=\"\",\"\",'Generated list'!B1164)","v":""},{"$f":"IF('Generated list'!C1164=\"\",\"\",'Generated list'!C1164)","v":""},{"$f":"IF('Generated list'!D1164=\"\",\"\",'Generated list'!D1164)","v":""}]
[null,{"$f":"IF('Generated list'!B1165=\"\",\"\",'Generated list'!B1165)","v":""},{"$f":"IF('Generated list'!C1165=\"\",\"\",'Generated list'!C1165)","v":""},{"$f":"IF('Generated list'!D1165=\"\",\"\",'Generated list'!D1165)","v":""}]
[null,{"$f":"IF('Generated list'!B1166=\"\",\"\",'Generated list'!B1166)","v":""},{"$f":"IF('Generated list'!C1166=\"\",\"\",'Generated list'!C1166)","v":""},{"$f":"IF('Generated list'!D1166=\"\",\"\",'Generated list'!D1166)","v":""}]
[null,{"$f":"IF('Generated list'!B1167=\"\",\"\",'Generated list'!B1167)","v":""},{"$f":"IF('Generated list'!C1167=\"\",\"\",'Generated list'!C1167)","v":""},{"$f":"IF('Generated list'!D1167=\"\",\"\",'Generated list'!D1167)","v":""}]
[null,{"$f":"IF('Generated list'!B1168=\"\",\"\",'Generated list'!B1168)","v":""},{"$f":"IF('Generated list'!C1168=\"\",\"\",'Generated list'!C1168)","v":""},{"$f":"IF('Generated list'!D1168=\"\",\"\",'Generated list'!D1168)","v":""}]
[null,{"$f":"IF('Generated list'!B1169=\"\",\"\",'Generated list'!B1169)","v":""},{"$f":"IF('Generated list'!C1169=\"\",\"\",'Generated list'!C1169)","v":""},{"$f":"IF('Generated list'!D1169=\"\",\"\",'Generated list'!D1169)","v":""}]
[null,{"$f":"IF('Generated list'!B1170=\"\",\"\",'Generated list'!B1170)","v":""},{"$f":"IF('Generated list'!C1170=\"\",\"\",'Generated list'!C1170)","v":""},{"$f":"IF('Generated list'!D1170=\"\",\"\",'Generated list'!D1170)","v":""}]
[null,{"$f":"IF('Generated list'!B1171=\"\",\"\",'Generated list'!B1171)","v":""},{"$f":"IF('Generated list'!C1171=\"\",\"\",'Generated list'!C1171)","v":""},{"$f":"IF('Generated list'!D1171=\"\",\"\",'Generated list'!D1171)","v":""}]
[null,{"$f":"IF('Generated list'!B1172=\"\",\"\",'Generated list'!B1172)","v":""},{"$f":"IF('Generated list'!C1172=\"\",\"\",'Generated list'!C1172)","v":""},{"$f":"IF('Generated list'!D1172=\"\",\"\",'Generated list'!D1172)","v":""}]
[null,{"$f":"IF('Generated list'!B1173=\"\",\"\",'Generated list'!B1173)","v":""},{"$f":"IF('Generated list'!C1173=\"\",\"\",'Generated list'!C1173)","v":""},{"$f":"IF('Generated list'!D1173=\"\",\"\",'Generated list'!D1173)","v":""}]
[null,{"$f":"IF('Generated list'!B1174=\"\",\"\",'Generated list'!B1174)","v":""},{"$f":"IF('Generated list'!C1174=\"\",\"\",'Generated list'!C1174)","v":""},{"$f":"IF('Generated list'!D1174=\"\",\"\",'Generated list'!D1174)","v":""}]
[null,{"$f":"IF('Generated list'!B1175=\"\",\"\",'Generated list'!B1175)","v":""},{"$f":"IF('Generated list'!C1175=\"\",\"\",'Generated list'!C1175)","v":""},{"$f":"IF('Generated list'!D1175=\"\",\"\",'Generated list'!D1175)","v":""}]
[null,{"$f":"IF('Generated list'!B1176=\"\",\"\",'Generated list'!B1176)","v":""},{"$f":"IF('Generated list'!C1176=\"\",\"\",'Generated list'!C1176)","v":""},{"$f":"IF('Generated list'!D1176=\"\",\"\",'Generated list'!D1176)","v":""}]
[null,{"$f":"IF('Generated list'!B1177=\"\",\"\",'Generated list'!B1177)","v":""},{"$f":"IF('Generated list'!C1177=\"\",\"\",'Generated list'!C1177)","v":""},{"$f":"IF('Generated list'!D1177=\"\",\"\",'Generated list'!D1177)","v":""}]
[null,{"$f":"IF('Generated list'!B1178=\"\",\"\",'Generated list'!B1178)","v":""},{"$f":"IF('Generated list'!C1178=\"\",\"\",'Generated list'!C1178)","v":""},{"$f":"IF('Generated list'!D1178=\"\",\"\",'Generated list'!D1178)","v":""}]
[null,{"$f":"IF('Generated list'!B1179=\"\",\"\",'Generated list'!B1179)","v":""},{"$f":"IF('Generated list'!C1179=\"\",\"\",'Generated list'!C1179)","v":""},{"$f":"IF('Generated list'!D1179=\"\",\"\",'Generated list'!D1179)","v":""}]
[null,{"$f":"IF('Generated list'!B1180=\"\",\"\",'Generated list'!B1180)","v":""},{"$f":"IF('Generated list'!C1180=\"\",\"\",'Generated list'!C1180)","v":""},{"$f":"IF('Generated list'!D1180=\"\",\"\",'Generated list'!D1180)","v":""}]
[null,{"$f":"IF('Generated list'!B1181=\"\",\"\",'Generated list'!B1181)","v":""},{"$f":"IF('Generated list'!C1181=\"\",\"\",'Generated list'!C1181)","v":""},{"$f":"IF('Generated list'!D1181=\"\",\"\",'Generated list'!D1181)","v":""}]
[null,{"$f":"IF('Generated list'!B1182=\"\",\"\",'Generated list'!B1182)","v":""},{"$f":"IF('Generated list'!C1182=\"\",\"\",'Generated list'!C1182)","v":""},{"$f":"IF('Generated list'!D1182=\"\",\"\",'Generated list'!D1182)","v":""}]
[null,{"$f":"IF('Generated list'!B1183=\"\",\"\",'Generated list'!B1183)","v":""},{"$f":"IF('Generated list'!C1183=\"\",\"\",'Generated list'!C1183)","v":""},{"$f":"IF('Generated list'!D1183=\"\",\"\",'Generated list'!D1183)","v":""}]
[null,{"$f":"IF('Generated list'!B1184=\"\",\"\",'Generated list'!B1184)","v":""},{"$f":"IF('Generated list'!C1184=\"\",\"\",'Generated list'!C1184)","v":""},{"$f":"IF('Generated list'!D1184=\"\",\"\",'Generated list'!D1184)","v":""}]
[null,{"$f":"IF('Generated list'!B1185=\"\",\"\",'Generated list'!B1185)","v":""},{"$f":"IF('Generated list'!C1185=\"\",\"\",'Generated list'!C1185)","v":""},{"$f":"IF('Generated list'!D1185=\"\",\"\",'Generated list'!D1185)","v":""}]
[null,{"$f":"IF('Generated list'!B1186=\"\",\"\",'Generated list'!B1186)","v":""},{"$f":"IF('Generated list'!C1186=\"\",\"\",'Generated list'!C1186)","v":""},{"$f":"IF('Generated list'!D1186=\"\",\"\",'Generated list'!D1186)","v":""}]
[null,{"$f":"IF('Generated list'!B1187=\"\",\"\",'Generated list'!B1187)","v":""},{"$f":"IF('Generated list'!C1187=\"\",\"\",'Generated list'!C1187)","v":""},{"$f":"IF('Generated list'!D1187=\"\",\"\",'Generated list'!D1187)","v":""}]
[null,{"$f":"IF('Generated list'!B1188=\"\",\"\",'Generated list'!B1188)","v":""},{"$f":"IF('Generated list'!C1188=\"\",\"\",'Generated list'!C1188)","v":""},{"$f":"IF('Generated list'!D1188=\"\",\"\",'Generated list'!D1188)","v":""}]
[null,{"$f":"IF('Generated list'!B1189=\"\",\"\",'Generated list'!B1189)","v":""},{"$f":"IF('Generated list'!C1189=\"\",\"\",'Generated list'!C1189)","v":""},{"$f":"IF('Generated list'!D1189=\"\",\"\",'Generated list'!D1189)","v":""}]
[null,{"$f":"IF('Generated list'!B1190=\"\",\"\",'Generated list'!B1190)","v":""},{"$f":"IF('Generated list'!C1190=\"\",\"\",'Generated list'!C1190)","v":""},{"$f":"IF('Generated list'!D1190=\"\",\"\",'Generated list'!D1190)","v":""}]
[null,{"$f":"IF('Generated list'!B1191=\"\",\"\",'Generated list'!B1191)","v":""},{"$f":"IF('Generated list'!C1191=\"\",\"\",'Generated list'!C1191)","v":""},{"$f":"IF('Generated list'!D1191=\"\",\"\",'Generated list'!D1191)","v":""}]
[null,{"$f":"IF('Generated list'!B1192=\"\",\"\",'Generated list'!B1192)","v":""},{"$f":"IF('Generated list'!C1192=\"\",\"\",'Generated list'!C1192)","v":""},{"$f":"IF('Generated list'!D1192=\"\",\"\",'Generated list'!D1192)","v":""}]
[null,{"$f":"IF('Generated list'!B1193=\"\",\"\",'Generated list'!B1193)","v":""},{"$f":"IF('Generated list'!C1193=\"\",\"\",'Generated list'!C1193)","v":""},{"$f":"IF('Generated list'!D1193=\"\",\"\",'Generated list'!D1193)","v":""}]
[null,{"$f":"IF('Generated list'!B1194=\"\",\"\",'Generated list'!B1194)","v":""},{"$f":"IF('Generated list'!C1194=\"\",\"\",'Generated list'!C1194)","v":""},{"$f":"IF('Generated list'!D1194=\"\",\"\",'Generated list'!D1194)","v":""}]
[null,{"$f":"IF('Generated list'!B1195=\"\",\"\",'Generated list'!B1195)","v":""},{"$f":"IF('Generated list'!C1195=\"\",\"\",'Generated list'!C1195)","v":""},{"$f":"IF('Generated list'!D1195=\"\",\"\",'Generated list'!D1195)","v":""}]
[null,{"$f":"IF('Generated list'!B1196=\"\",\"\",'Generated list'!B1196)","v":""},{"$f":"IF('Generated list'!C1196=\"\",\"\",'Generated list'!C1196)","v":""},{"$f":"IF('Generated list'!D1196=\"\",\"\",'Generated list'!D1196)","v":""}]
[null,{"$f":"IF('Generated list'!B1197=\"\",\"\",'Generated list'!B1197)","v":""},{"$f":"IF('Generated list'!C1197=\"\",\"\",'Generated list'!C1197)","v":""},{"$f":"IF('Generated list'!D1197=\"\",\"\",'Generated list'!D1197)","v":""}]
[null,{"$f":"IF('Generated list'!B1198=\"\",\"\",'Generated list'!B1198)","v":""},{"$f":"IF('Generated list'!C1198=\"\",\"\",'Generated list'!C1198)","v":""},{"$f":"IF('Generated list'!D1198=\"\",\"\",'Generated list'!D1198)","v":""}]
[null,{"$f":"IF('Generated list'!B1199=\"\",\"\",'Generated list'!B1199)","v":""},{"$f":"IF('Generated list'!C1199=\"\",\"\",'Generated list'!C1199)","v":""},{"$f":"IF('Generated list'!D1199=\"\",\"\",'Generated list'!D1199)","v":""}]
[null,{"$f":"IF('Generated list'!B1200=\"\",\"\",'Generated list'!B1200)","v":""},{"$f":"IF('Generated list'!C1200=\"\",\"\",'Generated list'!C1200)","v":""},{"$f":"IF('Generated list'!D1200=\"\",\"\",'Generated list'!D1200)","v":""}]
[null,{"$f":"IF('Generated list'!B1201=\"\",\"\",'Generated list'!B1201)","v":""},{"$f":"IF('Generated list'!C1201=\"\",\"\",'Generated list'!C1201)","v":""},{"$f":"IF('Generated list'!D1201=\"\",\"\",'Generated list'!D1201)","v":""}]
[null,{"$f":"IF('Generated list'!B1202=\"\",\"\",'Generated list'!B1202)","v":""},{"$f":"IF('Generated list'!C1202=\"\",\"\",'Generated list'!C1202)","v":""},{"$f":"IF('Generated list'!D1202=\"\",\"\",'Generated list'!D1202)","v":""}]
[null,{"$f":"IF('Generated list'!B1203=\"\",\"\",'Generated list'!B1203)","v":""},{"$f":"IF('Generated list'!C1203=\"\",\"\",'Generated list'!C1203)","v":""},{"$f":"IF('Generated list'!D1203=\"\",\"\",'Generated list'!D1203)","v":""}]
[null,{"$f":"IF('Generated list'!B1204=\"\",\"\",'Generated list'!B1204)","v":""},{"$f":"IF('Generated list'!C1204=\"\",\"\",'Generated list'!C1204)","v":""},{"$f":"IF('Generated list'!D1204=\"\",\"\",'Generated list'!D1204)","v":""}]
[null,{"$f":"IF('Generated list'!B1205=\"\",\"\",'Generated list'!B1205)","v":""},{"$f":"IF('Generated list'!C1205=\"\",\"\",'Generated list'!C1205)","v":""},{"$f":"IF('Generated list'!D1205=\"\",\"\",'Generated list'!D1205)","v":""}]
[null,{"$f":"IF('Generated list'!B1206=\"\",\"\",'Generated list'!B1206)","v":""},{"$f":"IF('Generated list'!C1206=\"\",\"\",'Generated list'!C1206)","v":""},{"$f":"IF('Generated list'!D1206=\"\",\"\",'Generated list'!D1206)","v":""}]
[null,{"$f":"IF('Generated list'!B1207=\"\",\"\",'Generated list'!B1207)","v":""},{"$f":"IF('Generated list'!C1207=\"\",\"\",'Generated list'!C1207)","v":""},{"$f":"IF('Generated list'!D1207=\"\",\"\",'Generated list'!D1207)","v":""}]
[null,{"$f":"IF('Generated list'!B1208=\"\",\"\",'Generated list'!B1208)","v":""},{"$f":"IF('Generated list'!C1208=\"\",\"\",'Generated list'!C1208)","v":""},{"$f":"IF('Generated list'!D1208=\"\",\"\",'Generated list'!D1208)","v":""}]
[null,{"$f":"IF('Generated list'!B1209=\"\",\"\",'Generated list'!B1209)","v":""},{"$f":"IF('Generated list'!C1209=\"\",\"\",'Generated list'!C1209)","v":""},{"$f":"IF('Generated list'!D1209=\"\",\"\",'Generated list'!D1209)","v":""}]
[null,{"$f":"IF('Generated list'!B1210=\"\",\"\",'Generated list'!B1210)","v":""},{"$f":"IF('Generated list'!C1210=\"\",\"\",'Generated list'!C1210)","v":""},{"$f":"IF('Generated list'!D1210=\"\",\"\",'Generated list'!D1210)","v":""}]
[null,{"$f":"IF('Generated list'!B1211=\"\",\"\",'Generated list'!B1211)","v":""},{"$f":"IF('Generated list'!C1211=\"\",\"\",'Generated list'!C1211)","v":""},{"$f":"IF('Generated list'!D1211=\"\",\"\",'Generated list'!D1211)","v":""}]
[null,{"$f":"IF('Generated list'!B1212=\"\",\"\",'Generated list'!B1212)","v":""},{"$f":"IF('Generated list'!C1212=\"\",\"\",'Generated list'!C1212)","v":""},{"$f":"IF('Generated list'!D1212=\"\",\"\",'Generated list'!D1212)","v":""}]
[null,{"$f":"IF('Generated list'!B1213=\"\",\"\",'Generated list'!B1213)","v":""},{"$f":"IF('Generated list'!C1213=\"\",\"\",'Generated list'!C1213)","v":""},{"$f":"IF('Generated list'!D1213=\"\",\"\",'Generated list'!D1213)","v":""}]
[null,{"$f":"IF('Generated list'!B1214=\"\",\"\",'Generated list'!B1214)","v":""},{"$f":"IF('Generated list'!C1214=\"\",\"\",'Generated list'!C1214)","v":""},{"$f":"IF('Generated list'!D1214=\"\",\"\",'Generated list'!D1214)","v":""}]
[null,{"$f":"IF('Generated list'!B1215=\"\",\"\",'Generated list'!B1215)","v":""},{"$f":"IF('Generated list'!C1215=\"\",\"\",'Generated list'!C1215)","v":""},{"$f":"IF('Generated list'!D1215=\"\",\"\",'Generated list'!D1215)","v":""}]
[null,{"$f":"IF('Generated list'!B1216=\"\",\"\",'Generated list'!B1216)","v":""},{"$f":"IF('Generated list'!C1216=\"\",\"\",'Generated list'!C1216)","v":""},{"$f":"IF('Generated list'!D1216=\"\",\"\",'Generated list'!D1216)","v":""}]
[null,{"$f":"IF('Generated list'!B1217=\"\",\"\",'Generated list'!B1217)","v":""},{"$f":"IF('Generated list'!C1217=\"\",\"\",'Generated list'!C1217)","v":""},{"$f":"IF('Generated list'!D1217=\"\",\"\",'Generated list'!D1217)","v":""}]
[null,{"$f":"IF('Generated list'!B1218=\"\",\"\",'Generated list'!B1218)","v":""},{"$f":"IF('Generated list'!C1218=\"\",\"\",'Generated list'!C1218)","v":""},{"$f":"IF('Generated list'!D1218=\"\",\"\",'Generated list'!D1218)","v":""}]
[null,{"$f":"IF('Generated list'!B1219=\"\",\"\",'Generated list'!B1219)","v":""},{"$f":"IF('Generated list'!C1219=\"\",\"\",'Generated list'!C1219)","v":""},{"$f":"IF('Generated list'!D1219=\"\",\"\",'Generated list'!D1219)","v":""}]
[null,{"$f":"IF('Generated list'!B1220=\"\",\"\",'Generated list'!B1220)","v":""},{"$f":"IF('Generated list'!C1220=\"\",\"\",'Generated list'!C1220)","v":""},{"$f":"IF('Generated list'!D1220=\"\",\"\",'Generated list'!D1220)","v":""}]
[null,{"$f":"IF('Generated list'!B1221=\"\",\"\",'Generated list'!B1221)","v":""},{"$f":"IF('Generated list'!C1221=\"\",\"\",'Generated list'!C1221)","v":""},{"$f":"IF('Generated list'!D1221=\"\",\"\",'Generated list'!D1221)","v":""}]
[null,{"$f":"IF('Generated list'!B1222=\"\",\"\",'Generated list'!B1222)","v":""},{"$f":"IF('Generated list'!C1222=\"\",\"\",'Generated list'!C1222)","v":""},{"$f":"IF('Generated list'!D1222=\"\",\"\",'Generated list'!D1222)","v":""}]
[null,{"$f":"IF('Generated list'!B1223=\"\",\"\",'Generated list'!B1223)","v":""},{"$f":"IF('Generated list'!C1223=\"\",\"\",'Generated list'!C1223)","v":""},{"$f":"IF('Generated list'!D1223=\"\",\"\",'Generated list'!D1223)","v":""}]
[null,{"$f":"IF('Generated list'!B1224=\"\",\"\",'Generated list'!B1224)","v":""},{"$f":"IF('Generated list'!C1224=\"\",\"\",'Generated list'!C1224)","v":""},{"$f":"IF('Generated list'!D1224=\"\",\"\",'Generated list'!D1224)","v":""}]
[null,{"$f":"IF('Generated list'!B1225=\"\",\"\",'Generated list'!B1225)","v":""},{"$f":"IF('Generated list'!C1225=\"\",\"\",'Generated list'!C1225)","v":""},{"$f":"IF('Generated list'!D1225=\"\",\"\",'Generated list'!D1225)","v":""}]
[null,{"$f":"IF('Generated list'!B1226=\"\",\"\",'Generated list'!B1226)","v":""},{"$f":"IF('Generated list'!C1226=\"\",\"\",'Generated list'!C1226)","v":""},{"$f":"IF('Generated list'!D1226=\"\",\"\",'Generated list'!D1226)","v":""}]
[null,{"$f":"IF('Generated list'!B1227=\"\",\"\",'Generated list'!B1227)","v":""},{"$f":"IF('Generated list'!C1227=\"\",\"\",'Generated list'!C1227)","v":""},{"$f":"IF('Generated list'!D1227=\"\",\"\",'Generated list'!D1227)","v":""}]
[null,{"$f":"IF('Generated list'!B1228=\"\",\"\",'Generated list'!B1228)","v":""},{"$f":"IF('Generated list'!C1228=\"\",\"\",'Generated list'!C1228)","v":""},{"$f":"IF('Generated list'!D1228=\"\",\"\",'Generated list'!D1228)","v":""}]
[null,{"$f":"IF('Generated list'!B1229=\"\",\"\",'Generated list'!B1229)","v":""},{"$f":"IF('Generated list'!C1229=\"\",\"\",'Generated list'!C1229)","v":""},{"$f":"IF('Generated list'!D1229=\"\",\"\",'Generated list'!D1229)","v":""}]
[null,{"$f":"IF('Generated list'!B1230=\"\",\"\",'Generated list'!B1230)","v":""},{"$f":"IF('Generated list'!C1230=\"\",\"\",'Generated list'!C1230)","v":""},{"$f":"IF('Generated list'!D1230=\"\",\"\",'Generated list'!D1230)","v":""}]
[null,{"$f":"IF('Generated list'!B1231=\"\",\"\",'Generated list'!B1231)","v":""},{"$f":"IF('Generated list'!C1231=\"\",\"\",'Generated list'!C1231)","v":""},{"$f":"IF('Generated list'!D1231=\"\",\"\",'Generated list'!D1231)","v":""}]
[null,{"$f":"IF('Generated list'!B1232=\"\",\"\",'Generated list'!B1232)","v":""},{"$f":"IF('Generated list'!C1232=\"\",\"\",'Generated list'!C1232)","v":""},{"$f":"IF('Generated list'!D1232=\"\",\"\",'Generated list'!D1232)","v":""}]
[null,{"$f":"IF('Generated list'!B1233=\"\",\"\",'Generated list'!B1233)","v":""},{"$f":"IF('Generated list'!C1233=\"\",\"\",'Generated list'!C1233)","v":""},{"$f":"IF('Generated list'!D1233=\"\",\"\",'Generated list'!D1233)","v":""}]
[null,{"$f":"IF('Generated list'!B1234=\"\",\"\",'Generated list'!B1234)","v":""},{"$f":"IF('Generated list'!C1234=\"\",\"\",'Generated list'!C1234)","v":""},{"$f":"IF('Generated list'!D1234=\"\",\"\",'Generated list'!D1234)","v":""}]
[null,{"$f":"IF('Generated list'!B1235=\"\",\"\",'Generated list'!B1235)","v":""},{"$f":"IF('Generated list'!C1235=\"\",\"\",'Generated list'!C1235)","v":""},{"$f":"IF('Generated list'!D1235=\"\",\"\",'Generated list'!D1235)","v":""}]
[null,{"$f":"IF('Generated list'!B1236=\"\",\"\",'Generated list'!B1236)","v":""},{"$f":"IF('Generated list'!C1236=\"\",\"\",'Generated list'!C1236)","v":""},{"$f":"IF('Generated list'!D1236=\"\",\"\",'Generated list'!D1236)","v":""}]
[null,{"$f":"IF('Generated list'!B1237=\"\",\"\",'Generated list'!B1237)","v":""},{"$f":"IF('Generated list'!C1237=\"\",\"\",'Generated list'!C1237)","v":""},{"$f":"IF('Generated list'!D1237=\"\",\"\",'Generated list'!D1237)","v":""}]
[null,{"$f":"IF('Generated list'!B1238=\"\",\"\",'Generated list'!B1238)","v":""},{"$f":"IF('Generated list'!C1238=\"\",\"\",'Generated list'!C1238)","v":""},{"$f":"IF('Generated list'!D1238=\"\",\"\",'Generated list'!D1238)","v":""}]
[null,{"$f":"IF('Generated list'!B1239=\"\",\"\",'Generated list'!B1239)","v":""},{"$f":"IF('Generated list'!C1239=\"\",\"\",'Generated list'!C1239)","v":""},{"$f":"IF('Generated list'!D1239=\"\",\"\",'Generated list'!D1239)","v":""}]
[null,{"$f":"IF('Generated list'!B1240=\"\",\"\",'Generated list'!B1240)","v":""},{"$f":"IF('Generated list'!C1240=\"\",\"\",'Generated list'!C1240)","v":""},{"$f":"IF('Generated list'!D1240=\"\",\"\",'Generated list'!D1240)","v":""}]
[null,{"$f":"IF('Generated list'!B1241=\"\",\"\",'Generated list'!B1241)","v":""},{"$f":"IF('Generated list'!C1241=\"\",\"\",'Generated list'!C1241)","v":""},{"$f":"IF('Generated list'!D1241=\"\",\"\",'Generated list'!D1241)","v":""}]
[null,{"$f":"IF('Generated list'!B1242=\"\",\"\",'Generated list'!B1242)","v":""},{"$f":"IF('Generated list'!C1242=\"\",\"\",'Generated list'!C1242)","v":""},{"$f":"IF('Generated list'!D1242=\"\",\"\",'Generated list'!D1242)","v":""}]
[null,{"$f":"IF('Generated list'!B1243=\"\",\"\",'Generated list'!B1243)","v":""},{"$f":"IF('Generated list'!C1243=\"\",\"\",'Generated list'!C1243)","v":""},{"$f":"IF('Generated list'!D1243=\"\",\"\",'Generated list'!D1243)","v":""}]
[null,{"$f":"IF('Generated list'!B1244=\"\",\"\",'Generated list'!B1244)","v":""},{"$f":"IF('Generated list'!C1244=\"\",\"\",'Generated list'!C1244)","v":""},{"$f":"IF('Generated list'!D1244=\"\",\"\",'Generated list'!D1244)","v":""}]
[null,{"$f":"IF('Generated list'!B1245=\"\",\"\",'Generated list'!B1245)","v":""},{"$f":"IF('Generated list'!C1245=\"\",\"\",'Generated list'!C1245)","v":""},{"$f":"IF('Generated list'!D1245=\"\",\"\",'Generated list'!D1245)","v":""}]
[null,{"$f":"IF('Generated list'!B1246=\"\",\"\",'Generated list'!B1246)","v":""},{"$f":"IF('Generated list'!C1246=\"\",\"\",'Generated list'!C1246)","v":""},{"$f":"IF('Generated list'!D1246=\"\",\"\",'Generated list'!D1246)","v":""}]
[null,{"$f":"IF('Generated list'!B1247=\"\",\"\",'Generated list'!B1247)","v":""},{"$f":"IF('Generated list'!C1247=\"\",\"\",'Generated list'!C1247)","v":""},{"$f":"IF('Generated list'!D1247=\"\",\"\",'Generated list'!D1247)","v":""}]
[null,{"$f":"IF('Generated list'!B1248=\"\",\"\",'Generated list'!B1248)","v":""},{"$f":"IF('Generated list'!C1248=\"\",\"\",'Generated list'!C1248)","v":""},{"$f":"IF('Generated list'!D1248=\"\",\"\",'Generated list'!D1248)","v":""}]
[null,{"$f":"IF('Generated list'!B1249=\"\",\"\",'Generated list'!B1249)","v":""},{"$f":"IF('Generated list'!C1249=\"\",\"\",'Generated list'!C1249)","v":""},{"$f":"IF('Generated list'!D1249=\"\",\"\",'Generated list'!D1249)","v":""}]
[null,{"$f":"IF('Generated list'!B1250=\"\",\"\",'Generated list'!B1250)","v":""},{"$f":"IF('Generated list'!C1250=\"\",\"\",'Generated list'!C1250)","v":""},{"$f":"IF('Generated list'!D1250=\"\",\"\",'Generated list'!D1250)","v":""}]
[null,{"$f":"IF('Generated list'!B1251=\"\",\"\",'Generated list'!B1251)","v":""},{"$f":"IF('Generated list'!C1251=\"\",\"\",'Generated list'!C1251)","v":""},{"$f":"IF('Generated list'!D1251=\"\",\"\",'Generated list'!D1251)","v":""}]
[null,{"$f":"IF('Generated list'!B1252=\"\",\"\",'Generated list'!B1252)","v":""},{"$f":"IF('Generated list'!C1252=\"\",\"\",'Generated list'!C1252)","v":""},{"$f":"IF('Generated list'!D1252=\"\",\"\",'Generated list'!D1252)","v":""}]
[null,{"$f":"IF('Generated list'!B1253=\"\",\"\",'Generated list'!B1253)","v":""},{"$f":"IF('Generated list'!C1253=\"\",\"\",'Generated list'!C1253)","v":""},{"$f":"IF('Generated list'!D1253=\"\",\"\",'Generated list'!D1253)","v":""}]
[null,{"$f":"IF('Generated list'!B1254=\"\",\"\",'Generated list'!B1254)","v":""},{"$f":"IF('Generated list'!C1254=\"\",\"\",'Generated list'!C1254)","v":""},{"$f":"IF('Generated list'!D1254=\"\",\"\",'Generated list'!D1254)","v":""}]
[null,{"$f":"IF('Generated list'!B1255=\"\",\"\",'Generated list'!B1255)","v":""},{"$f":"IF('Generated list'!C1255=\"\",\"\",'Generated list'!C1255)","v":""},{"$f":"IF('Generated list'!D1255=\"\",\"\",'Generated list'!D1255)","v":""}]
[null,{"$f":"IF('Generated list'!B1256=\"\",\"\",'Generated list'!B1256)","v":""},{"$f":"IF('Generated list'!C1256=\"\",\"\",'Generated list'!C1256)","v":""},{"$f":"IF('Generated list'!D1256=\"\",\"\",'Generated list'!D1256)","v":""}]
[null,{"$f":"IF('Generated list'!B1257=\"\",\"\",'Generated list'!B1257)","v":""},{"$f":"IF('Generated list'!C1257=\"\",\"\",'Generated list'!C1257)","v":""},{"$f":"IF('Generated list'!D1257=\"\",\"\",'Generated list'!D1257)","v":""}]
[null,{"$f":"IF('Generated list'!B1258=\"\",\"\",'Generated list'!B1258)","v":""},{"$f":"IF('Generated list'!C1258=\"\",\"\",'Generated list'!C1258)","v":""},{"$f":"IF('Generated list'!D1258=\"\",\"\",'Generated list'!D1258)","v":""}]
[null,{"$f":"IF('Generated list'!B1259=\"\",\"\",'Generated list'!B1259)","v":""},{"$f":"IF('Generated list'!C1259=\"\",\"\",'Generated list'!C1259)","v":""},{"$f":"IF('Generated list'!D1259=\"\",\"\",'Generated list'!D1259)","v":""}]
[null,{"$f":"IF('Generated list'!B1260=\"\",\"\",'Generated list'!B1260)","v":""},{"$f":"IF('Generated list'!C1260=\"\",\"\",'Generated list'!C1260)","v":""},{"$f":"IF('Generated list'!D1260=\"\",\"\",'Generated list'!D1260)","v":""}]
[null,{"$f":"IF('Generated list'!B1261=\"\",\"\",'Generated list'!B1261)","v":""},{"$f":"IF('Generated list'!C1261=\"\",\"\",'Generated list'!C1261)","v":""},{"$f":"IF('Generated list'!D1261=\"\",\"\",'Generated list'!D1261)","v":""}]
[null,{"$f":"IF('Generated list'!B1262=\"\",\"\",'Generated list'!B1262)","v":""},{"$f":"IF('Generated list'!C1262=\"\",\"\",'Generated list'!C1262)","v":""},{"$f":"IF('Generated list'!D1262=\"\",\"\",'Generated list'!D1262)","v":""}]
[null,{"$f":"IF('Generated list'!B1263=\"\",\"\",'Generated list'!B1263)","v":""},{"$f":"IF('Generated list'!C1263=\"\",\"\",'Generated list'!C1263)","v":""},{"$f":"IF('Generated list'!D1263=\"\",\"\",'Generated list'!D1263)","v":""}]
[null,{"$f":"IF('Generated list'!B1264=\"\",\"\",'Generated list'!B1264)","v":""},{"$f":"IF('Generated list'!C1264=\"\",\"\",'Generated list'!C1264)","v":""},{"$f":"IF('Generated list'!D1264=\"\",\"\",'Generated list'!D1264)","v":""}]
[null,{"$f":"IF('Generated list'!B1265=\"\",\"\",'Generated list'!B1265)","v":""},{"$f":"IF('Generated list'!C1265=\"\",\"\",'Generated list'!C1265)","v":""},{"$f":"IF('Generated list'!D1265=\"\",\"\",'Generated list'!D1265)","v":""}]
[null,{"$f":"IF('Generated list'!B1266=\"\",\"\",'Generated list'!B1266)","v":""},{"$f":"IF('Generated list'!C1266=\"\",\"\",'Generated list'!C1266)","v":""},{"$f":"IF('Generated list'!D1266=\"\",\"\",'Generated list'!D1266)","v":""}]
[null,{"$f":"IF('Generated list'!B1267=\"\",\"\",'Generated list'!B1267)","v":""},{"$f":"IF('Generated list'!C1267=\"\",\"\",'Generated list'!C1267)","v":""},{"$f":"IF('Generated list'!D1267=\"\",\"\",'Generated list'!D1267)","v":""}]
[null,{"$f":"IF('Generated list'!B1268=\"\",\"\",'Generated list'!B1268)","v":""},{"$f":"IF('Generated list'!C1268=\"\",\"\",'Generated list'!C1268)","v":""},{"$f":"IF('Generated list'!D1268=\"\",\"\",'Generated list'!D1268)","v":""}]
[null,{"$f":"IF('Generated list'!B1269=\"\",\"\",'Generated list'!B1269)","v":""},{"$f":"IF('Generated list'!C1269=\"\",\"\",'Generated list'!C1269)","v":""},{"$f":"IF('Generated list'!D1269=\"\",\"\",'Generated list'!D1269)","v":""}]
[null,{"$f":"IF('Generated list'!B1270=\"\",\"\",'Generated list'!B1270)","v":""},{"$f":"IF('Generated list'!C1270=\"\",\"\",'Generated list'!C1270)","v":""},{"$f":"IF('Generated list'!D1270=\"\",\"\",'Generated list'!D1270)","v":""}]
[null,{"$f":"IF('Generated list'!B1271=\"\",\"\",'Generated list'!B1271)","v":""},{"$f":"IF('Generated list'!C1271=\"\",\"\",'Generated list'!C1271)","v":""},{"$f":"IF('Generated list'!D1271=\"\",\"\",'Generated list'!D1271)","v":""}]
[null,{"$f":"IF('Generated list'!B1272=\"\",\"\",'Generated list'!B1272)","v":""},{"$f":"IF('Generated list'!C1272=\"\",\"\",'Generated list'!C1272)","v":""},{"$f":"IF('Generated list'!D1272=\"\",\"\",'Generated list'!D1272)","v":""}]
[null,{"$f":"IF('Generated list'!B1273=\"\",\"\",'Generated list'!B1273)","v":""},{"$f":"IF('Generated list'!C1273=\"\",\"\",'Generated list'!C1273)","v":""},{"$f":"IF('Generated list'!D1273=\"\",\"\",'Generated list'!D1273)","v":""}]
[null,{"$f":"IF('Generated list'!B1274=\"\",\"\",'Generated list'!B1274)","v":""},{"$f":"IF('Generated list'!C1274=\"\",\"\",'Generated list'!C1274)","v":""},{"$f":"IF('Generated list'!D1274=\"\",\"\",'Generated list'!D1274)","v":""}]
[null,{"$f":"IF('Generated list'!B1275=\"\",\"\",'Generated list'!B1275)","v":""},{"$f":"IF('Generated list'!C1275=\"\",\"\",'Generated list'!C1275)","v":""},{"$f":"IF('Generated list'!D1275=\"\",\"\",'Generated list'!D1275)","v":""}]
[null,{"$f":"IF('Generated list'!B1276=\"\",\"\",'Generated list'!B1276)","v":""},{"$f":"IF('Generated list'!C1276=\"\",\"\",'Generated list'!C1276)","v":""},{"$f":"IF('Generated list'!D1276=\"\",\"\",'Generated list'!D1276)","v":""}]
[null,{"$f":"IF('Generated list'!B1277=\"\",\"\",'Generated list'!B1277)","v":""},{"$f":"IF('Generated list'!C1277=\"\",\"\",'Generated list'!C1277)","v":""},{"$f":"IF('Generated list'!D1277=\"\",\"\",'Generated list'!D1277)","v":""}]
[null,{"$f":"IF('Generated list'!B1278=\"\",\"\",'Generated list'!B1278)","v":""},{"$f":"IF('Generated list'!C1278=\"\",\"\",'Generated list'!C1278)","v":""},{"$f":"IF('Generated list'!D1278=\"\",\"\",'Generated list'!D1278)","v":""}]
[null,{"$f":"IF('Generated list'!B1279=\"\",\"\",'Generated list'!B1279)","v":""},{"$f":"IF('Generated list'!C1279=\"\",\"\",'Generated list'!C1279)","v":""},{"$f":"IF('Generated list'!D1279=\"\",\"\",'Generated list'!D1279)","v":""}]
[null,{"$f":"IF('Generated list'!B1280=\"\",\"\",'Generated list'!B1280)","v":""},{"$f":"IF('Generated list'!C1280=\"\",\"\",'Generated list'!C1280)","v":""},{"$f":"IF('Generated list'!D1280=\"\",\"\",'Generated list'!D1280)","v":""}]
[null,{"$f":"IF('Generated list'!B1281=\"\",\"\",'Generated list'!B1281)","v":""},{"$f":"IF('Generated list'!C1281=\"\",\"\",'Generated list'!C1281)","v":""},{"$f":"IF('Generated list'!D1281=\"\",\"\",'Generated list'!D1281)","v":""}]
[null,{"$f":"IF('Generated list'!B1282=\"\",\"\",'Generated list'!B1282)","v":""},{"$f":"IF('Generated list'!C1282=\"\",\"\",'Generated list'!C1282)","v":""},{"$f":"IF('Generated list'!D1282=\"\",\"\",'Generated list'!D1282)","v":""}]
[null,{"$f":"IF('Generated list'!B1283=\"\",\"\",'Generated list'!B1283)","v":""},{"$f":"IF('Generated list'!C1283=\"\",\"\",'Generated list'!C1283)","v":""},{"$f":"IF('Generated list'!D1283=\"\",\"\",'Generated list'!D1283)","v":""}]
[null,{"$f":"IF('Generated list'!B1284=\"\",\"\",'Generated list'!B1284)","v":""},{"$f":"IF('Generated list'!C1284=\"\",\"\",'Generated list'!C1284)","v":""},{"$f":"IF('Generated list'!D1284=\"\",\"\",'Generated list'!D1284)","v":""}]
[null,{"$f":"IF('Generated list'!B1285=\"\",\"\",'Generated list'!B1285)","v":""},{"$f":"IF('Generated list'!C1285=\"\",\"\",'Generated list'!C1285)","v":""},{"$f":"IF('Generated list'!D1285=\"\",\"\",'Generated list'!D1285)","v":""}]
[null,{"$f":"IF('Generated list'!B1286=\"\",\"\",'Generated list'!B1286)","v":""},{"$f":"IF('Generated list'!C1286=\"\",\"\",'Generated list'!C1286)","v":""},{"$f":"IF('Generated list'!D1286=\"\",\"\",'Generated list'!D1286)","v":""}]
[null,{"$f":"IF('Generated list'!B1287=\"\",\"\",'Generated list'!B1287)","v":""},{"$f":"IF('Generated list'!C1287=\"\",\"\",'Generated list'!C1287)","v":""},{"$f":"IF('Generated list'!D1287=\"\",\"\",'Generated list'!D1287)","v":""}]
[null,{"$f":"IF('Generated list'!B1288=\"\",\"\",'Generated list'!B1288)","v":""},{"$f":"IF('Generated list'!C1288=\"\",\"\",'Generated list'!C1288)","v":""},{"$f":"IF('Generated list'!D1288=\"\",\"\",'Generated list'!D1288)","v":""}]
[null,{"$f":"IF('Generated list'!B1289=\"\",\"\",'Generated list'!B1289)","v":""},{"$f":"IF('Generated list'!C1289=\"\",\"\",'Generated list'!C1289)","v":""},{"$f":"IF('Generated list'!D1289=\"\",\"\",'Generated list'!D1289)","v":""}]
[null,{"$f":"IF('Generated list'!B1290=\"\",\"\",'Generated list'!B1290)","v":""},{"$f":"IF('Generated list'!C1290=\"\",\"\",'Generated list'!C1290)","v":""},{"$f":"IF('Generated list'!D1290=\"\",\"\",'Generated list'!D1290)","v":""}]
[null,{"$f":"IF('Generated list'!B1291=\"\",\"\",'Generated list'!B1291)","v":""},{"$f":"IF('Generated list'!C1291=\"\",\"\",'Generated list'!C1291)","v":""},{"$f":"IF('Generated list'!D1291=\"\",\"\",'Generated list'!D1291)","v":""}]
[null,{"$f":"IF('Generated list'!B1292=\"\",\"\",'Generated list'!B1292)","v":""},{"$f":"IF('Generated list'!C1292=\"\",\"\",'Generated list'!C1292)","v":""},{"$f":"IF('Generated list'!D1292=\"\",\"\",'Generated list'!D1292)","v":""}]
[null,{"$f":"IF('Generated list'!B1293=\"\",\"\",'Generated list'!B1293)","v":""},{"$f":"IF('Generated list'!C1293=\"\",\"\",'Generated list'!C1293)","v":""},{"$f":"IF('Generated list'!D1293=\"\",\"\",'Generated list'!D1293)","v":""}]
[null,{"$f":"IF('Generated list'!B1294=\"\",\"\",'Generated list'!B1294)","v":""},{"$f":"IF('Generated list'!C1294=\"\",\"\",'Generated list'!C1294)","v":""},{"$f":"IF('Generated list'!D1294=\"\",\"\",'Generated list'!D1294)","v":""}]
[null,{"$f":"IF('Generated list'!B1295=\"\",\"\",'Generated list'!B1295)","v":""},{"$f":"IF('Generated list'!C1295=\"\",\"\",'Generated list'!C1295)","v":""},{"$f":"IF('Generated list'!D1295=\"\",\"\",'Generated list'!D1295)","v":""}]
[null,{"$f":"IF('Generated list'!B1296=\"\",\"\",'Generated list'!B1296)","v":""},{"$f":"IF('Generated list'!C1296=\"\",\"\",'Generated list'!C1296)","v":""},{"$f":"IF('Generated list'!D1296=\"\",\"\",'Generated list'!D1296)","v":""}]
[null,{"$f":"IF('Generated list'!B1297=\"\",\"\",'Generated list'!B1297)","v":""},{"$f":"IF('Generated list'!C1297=\"\",\"\",'Generated list'!C1297)","v":""},{"$f":"IF('Generated list'!D1297=\"\",\"\",'Generated list'!D1297)","v":""}]
[null,{"$f":"IF('Generated list'!B1298=\"\",\"\",'Generated list'!B1298)","v":""},{"$f":"IF('Generated list'!C1298=\"\",\"\",'Generated list'!C1298)","v":""},{"$f":"IF('Generated list'!D1298=\"\",\"\",'Generated list'!D1298)","v":""}]
[null,{"$f":"IF('Generated list'!B1299=\"\",\"\",'Generated list'!B1299)","v":""},{"$f":"IF('Generated list'!C1299=\"\",\"\",'Generated list'!C1299)","v":""},{"$f":"IF('Generated list'!D1299=\"\",\"\",'Generated list'!D1299)","v":""}]
[null,{"$f":"IF('Generated list'!B1300=\"\",\"\",'Generated list'!B1300)","v":""},{"$f":"IF('Generated list'!C1300=\"\",\"\",'Generated list'!C1300)","v":""},{"$f":"IF('Generated list'!D1300=\"\",\"\",'Generated list'!D1300)","v":""}]
[null,{"$f":"IF('Generated list'!B1301=\"\",\"\",'Generated list'!B1301)","v":""},{"$f":"IF('Generated list'!C1301=\"\",\"\",'Generated list'!C1301)","v":""},{"$f":"IF('Generated list'!D1301=\"\",\"\",'Generated list'!D1301)","v":""}]
[null,{"$f":"IF('Generated list'!B1302=\"\",\"\",'Generated list'!B1302)","v":""},{"$f":"IF('Generated list'!C1302=\"\",\"\",'Generated list'!C1302)","v":""},{"$f":"IF('Generated list'!D1302=\"\",\"\",'Generated list'!D1302)","v":""}]
[null,{"$f":"IF('Generated list'!B1303=\"\",\"\",'Generated list'!B1303)","v":""},{"$f":"IF('Generated list'!C1303=\"\",\"\",'Generated list'!C1303)","v":""},{"$f":"IF('Generated list'!D1303=\"\",\"\",'Generated list'!D1303)","v":""}]
[null,{"$f":"IF('Generated list'!B1304=\"\",\"\",'Generated list'!B1304)","v":""},{"$f":"IF('Generated list'!C1304=\"\",\"\",'Generated list'!C1304)","v":""},{"$f":"IF('Generated list'!D1304=\"\",\"\",'Generated list'!D1304)","v":""}]
[null,{"$f":"IF('Generated list'!B1305=\"\",\"\",'Generated list'!B1305)","v":""},{"$f":"IF('Generated list'!C1305=\"\",\"\",'Generated list'!C1305)","v":""},{"$f":"IF('Generated list'!D1305=\"\",\"\",'Generated list'!D1305)","v":""}]
[null,{"$f":"IF('Generated list'!B1306=\"\",\"\",'Generated list'!B1306)","v":""},{"$f":"IF('Generated list'!C1306=\"\",\"\",'Generated list'!C1306)","v":""},{"$f":"IF('Generated list'!D1306=\"\",\"\",'Generated list'!D1306)","v":""}]
[null,{"$f":"IF('Generated list'!B1307=\"\",\"\",'Generated list'!B1307)","v":""},{"$f":"IF('Generated list'!C1307=\"\",\"\",'Generated list'!C1307)","v":""},{"$f":"IF('Generated list'!D1307=\"\",\"\",'Generated list'!D1307)","v":""}]
[null,{"$f":"IF('Generated list'!B1308=\"\",\"\",'Generated list'!B1308)","v":""},{"$f":"IF('Generated list'!C1308=\"\",\"\",'Generated list'!C1308)","v":""},{"$f":"IF('Generated list'!D1308=\"\",\"\",'Generated list'!D1308)","v":""}]
[null,{"$f":"IF('Generated list'!B1309=\"\",\"\",'Generated list'!B1309)","v":""},{"$f":"IF('Generated list'!C1309=\"\",\"\",'Generated list'!C1309)","v":""},{"$f":"IF('Generated list'!D1309=\"\",\"\",'Generated list'!D1309)","v":""}]
[null,{"$f":"IF('Generated list'!B1310=\"\",\"\",'Generated list'!B1310)","v":""},{"$f":"IF('Generated list'!C1310=\"\",\"\",'Generated list'!C1310)","v":""},{"$f":"IF('Generated list'!D1310=\"\",\"\",'Generated list'!D1310)","v":""}]
[null,{"$f":"IF('Generated list'!B1311=\"\",\"\",'Generated list'!B1311)","v":""},{"$f":"IF('Generated list'!C1311=\"\",\"\",'Generated list'!C1311)","v":""},{"$f":"IF('Generated list'!D1311=\"\",\"\",'Generated list'!D1311)","v":""}]
[null,{"$f":"IF('Generated list'!B1312=\"\",\"\",'Generated list'!B1312)","v":""},{"$f":"IF('Generated list'!C1312=\"\",\"\",'Generated list'!C1312)","v":""},{"$f":"IF('Generated list'!D1312=\"\",\"\",'Generated list'!D1312)","v":""}]
[null,{"$f":"IF('Generated list'!B1313=\"\",\"\",'Generated list'!B1313)","v":""},{"$f":"IF('Generated list'!C1313=\"\",\"\",'Generated list'!C1313)","v":""},{"$f":"IF('Generated list'!D1313=\"\",\"\",'Generated list'!D1313)","v":""}]
[null,{"$f":"IF('Generated list'!B1314=\"\",\"\",'Generated list'!B1314)","v":""},{"$f":"IF('Generated list'!C1314=\"\",\"\",'Generated list'!C1314)","v":""},{"$f":"IF('Generated list'!D1314=\"\",\"\",'Generated list'!D1314)","v":""}]
[null,{"$f":"IF('Generated list'!B1315=\"\",\"\",'Generated list'!B1315)","v":""},{"$f":"IF('Generated list'!C1315=\"\",\"\",'Generated list'!C1315)","v":""},{"$f":"IF('Generated list'!D1315=\"\",\"\",'Generated list'!D1315)","v":""}]
[null,{"$f":"IF('Generated list'!B1316=\"\",\"\",'Generated list'!B1316)","v":""},{"$f":"IF('Generated list'!C1316=\"\",\"\",'Generated list'!C1316)","v":""},{"$f":"IF('Generated list'!D1316=\"\",\"\",'Generated list'!D1316)","v":""}]
[null,{"$f":"IF('Generated list'!B1317=\"\",\"\",'Generated list'!B1317)","v":""},{"$f":"IF('Generated list'!C1317=\"\",\"\",'Generated list'!C1317)","v":""},{"$f":"IF('Generated list'!D1317=\"\",\"\",'Generated list'!D1317)","v":""}]
[null,{"$f":"IF('Generated list'!B1318=\"\",\"\",'Generated list'!B1318)","v":""},{"$f":"IF('Generated list'!C1318=\"\",\"\",'Generated list'!C1318)","v":""},{"$f":"IF('Generated list'!D1318=\"\",\"\",'Generated list'!D1318)","v":""}]
[null,{"$f":"IF('Generated list'!B1319=\"\",\"\",'Generated list'!B1319)","v":""},{"$f":"IF('Generated list'!C1319=\"\",\"\",'Generated list'!C1319)","v":""},{"$f":"IF('Generated list'!D1319=\"\",\"\",'Generated list'!D1319)","v":""}]
[null,{"$f":"IF('Generated list'!B1320=\"\",\"\",'Generated list'!B1320)","v":""},{"$f":"IF('Generated list'!C1320=\"\",\"\",'Generated list'!C1320)","v":""},{"$f":"IF('Generated list'!D1320=\"\",\"\",'Generated list'!D1320)","v":""}]
[null,{"$f":"IF('Generated list'!B1321=\"\",\"\",'Generated list'!B1321)","v":""},{"$f":"IF('Generated list'!C1321=\"\",\"\",'Generated list'!C1321)","v":""},{"$f":"IF('Generated list'!D1321=\"\",\"\",'Generated list'!D1321)","v":""}]
[null,{"$f":"IF('Generated list'!B1322=\"\",\"\",'Generated list'!B1322)","v":""},{"$f":"IF('Generated list'!C1322=\"\",\"\",'Generated list'!C1322)","v":""},{"$f":"IF('Generated list'!D1322=\"\",\"\",'Generated list'!D1322)","v":""}]
[null,{"$f":"IF('Generated list'!B1323=\"\",\"\",'Generated list'!B1323)","v":""},{"$f":"IF('Generated list'!C1323=\"\",\"\",'Generated list'!C1323)","v":""},{"$f":"IF('Generated list'!D1323=\"\",\"\",'Generated list'!D1323)","v":""}]
[null,{"$f":"IF('Generated list'!B1324=\"\",\"\",'Generated list'!B1324)","v":""},{"$f":"IF('Generated list'!C1324=\"\",\"\",'Generated list'!C1324)","v":""},{"$f":"IF('Generated list'!D1324=\"\",\"\",'Generated list'!D1324)","v":""}]
[null,{"$f":"IF('Generated list'!B1325=\"\",\"\",'Generated list'!B1325)","v":""},{"$f":"IF('Generated list'!C1325=\"\",\"\",'Generated list'!C1325)","v":""},{"$f":"IF('Generated list'!D1325=\"\",\"\",'Generated list'!D1325)","v":""}]
[null,{"$f":"IF('Generated list'!B1326=\"\",\"\",'Generated list'!B1326)","v":""},{"$f":"IF('Generated list'!C1326=\"\",\"\",'Generated list'!C1326)","v":""},{"$f":"IF('Generated list'!D1326=\"\",\"\",'Generated list'!D1326)","v":""}]
[null,{"$f":"IF('Generated list'!B1327=\"\",\"\",'Generated list'!B1327)","v":""},{"$f":"IF('Generated list'!C1327=\"\",\"\",'Generated list'!C1327)","v":""},{"$f":"IF('Generated list'!D1327=\"\",\"\",'Generated list'!D1327)","v":""}]
[null,{"$f":"IF('Generated list'!B1328=\"\",\"\",'Generated list'!B1328)","v":""},{"$f":"IF('Generated list'!C1328=\"\",\"\",'Generated list'!C1328)","v":""},{"$f":"IF('Generated list'!D1328=\"\",\"\",'Generated list'!D1328)","v":""}]
[null,{"$f":"IF('Generated list'!B1329=\"\",\"\",'Generated list'!B1329)","v":""},{"$f":"IF('Generated list'!C1329=\"\",\"\",'Generated list'!C1329)","v":""},{"$f":"IF('Generated list'!D1329=\"\",\"\",'Generated list'!D1329)","v":""}]
[null,{"$f":"IF('Generated list'!B1330=\"\",\"\",'Generated list'!B1330)","v":""},{"$f":"IF('Generated list'!C1330=\"\",\"\",'Generated list'!C1330)","v":""},{"$f":"IF('Generated list'!D1330=\"\",\"\",'Generated list'!D1330)","v":""}]
[null,{"$f":"IF('Generated list'!B1331=\"\",\"\",'Generated list'!B1331)","v":""},{"$f":"IF('Generated list'!C1331=\"\",\"\",'Generated list'!C1331)","v":""},{"$f":"IF('Generated list'!D1331=\"\",\"\",'Generated list'!D1331)","v":""}]
[null,{"$f":"IF('Generated list'!B1332=\"\",\"\",'Generated list'!B1332)","v":""},{"$f":"IF('Generated list'!C1332=\"\",\"\",'Generated list'!C1332)","v":""},{"$f":"IF('Generated list'!D1332=\"\",\"\",'Generated list'!D1332)","v":""}]
[null,{"$f":"IF('Generated list'!B1333=\"\",\"\",'Generated list'!B1333)","v":""},{"$f":"IF('Generated list'!C1333=\"\",\"\",'Generated list'!C1333)","v":""},{"$f":"IF('Generated list'!D1333=\"\",\"\",'Generated list'!D1333)","v":""}]
[null,{"$f":"IF('Generated list'!B1334=\"\",\"\",'Generated list'!B1334)","v":""},{"$f":"IF('Generated list'!C1334=\"\",\"\",'Generated list'!C1334)","v":""},{"$f":"IF('Generated list'!D1334=\"\",\"\",'Generated list'!D1334)","v":""}]
[null,{"$f":"IF('Generated list'!B1335=\"\",\"\",'Generated list'!B1335)","v":""},{"$f":"IF('Generated list'!C1335=\"\",\"\",'Generated list'!C1335)","v":""},{"$f":"IF('Generated list'!D1335=\"\",\"\",'Generated list'!D1335)","v":""}]
[null,{"$f":"IF('Generated list'!B1336=\"\",\"\",'Generated list'!B1336)","v":""},{"$f":"IF('Generated list'!C1336=\"\",\"\",'Generated list'!C1336)","v":""},{"$f":"IF('Generated list'!D1336=\"\",\"\",'Generated list'!D1336)","v":""}]
[null,{"$f":"IF('Generated list'!B1337=\"\",\"\",'Generated list'!B1337)","v":""},{"$f":"IF('Generated list'!C1337=\"\",\"\",'Generated list'!C1337)","v":""},{"$f":"IF('Generated list'!D1337=\"\",\"\",'Generated list'!D1337)","v":""}]
[null,{"$f":"IF('Generated list'!B1338=\"\",\"\",'Generated list'!B1338)","v":""},{"$f":"IF('Generated list'!C1338=\"\",\"\",'Generated list'!C1338)","v":""},{"$f":"IF('Generated list'!D1338=\"\",\"\",'Generated list'!D1338)","v":""}]
[null,{"$f":"IF('Generated list'!B1339=\"\",\"\",'Generated list'!B1339)","v":""},{"$f":"IF('Generated list'!C1339=\"\",\"\",'Generated list'!C1339)","v":""},{"$f":"IF('Generated list'!D1339=\"\",\"\",'Generated list'!D1339)","v":""}]
[null,{"$f":"IF('Generated list'!B1340=\"\",\"\",'Generated list'!B1340)","v":""},{"$f":"IF('Generated list'!C1340=\"\",\"\",'Generated list'!C1340)","v":""},{"$f":"IF('Generated list'!D1340=\"\",\"\",'Generated list'!D1340)","v":""}]
[null,{"$f":"IF('Generated list'!B1341=\"\",\"\",'Generated list'!B1341)","v":""},{"$f":"IF('Generated list'!C1341=\"\",\"\",'Generated list'!C1341)","v":""},{"$f":"IF('Generated list'!D1341=\"\",\"\",'Generated list'!D1341)","v":""}]
[null,{"$f":"IF('Generated list'!B1342=\"\",\"\",'Generated list'!B1342)","v":""},{"$f":"IF('Generated list'!C1342=\"\",\"\",'Generated list'!C1342)","v":""},{"$f":"IF('Generated list'!D1342=\"\",\"\",'Generated list'!D1342)","v":""}]
[null,{"$f":"IF('Generated list'!B1343=\"\",\"\",'Generated list'!B1343)","v":""},{"$f":"IF('Generated list'!C1343=\"\",\"\",'Generated list'!C1343)","v":""},{"$f":"IF('Generated list'!D1343=\"\",\"\",'Generated list'!D1343)","v":""}]
[null,{"$f":"IF('Generated list'!B1344=\"\",\"\",'Generated list'!B1344)","v":""},{"$f":"IF('Generated list'!C1344=\"\",\"\",'Generated list'!C1344)","v":""},{"$f":"IF('Generated list'!D1344=\"\",\"\",'Generated list'!D1344)","v":""}]
[null,{"$f":"IF('Generated list'!B1345=\"\",\"\",'Generated list'!B1345)","v":""},{"$f":"IF('Generated list'!C1345=\"\",\"\",'Generated list'!C1345)","v":""},{"$f":"IF('Generated list'!D1345=\"\",\"\",'Generated list'!D1345)","v":""}]
[null,{"$f":"IF('Generated list'!B1346=\"\",\"\",'Generated list'!B1346)","v":""},{"$f":"IF('Generated list'!C1346=\"\",\"\",'Generated list'!C1346)","v":""},{"$f":"IF('Generated list'!D1346=\"\",\"\",'Generated list'!D1346)","v":""}]
[null,{"$f":"IF('Generated list'!B1347=\"\",\"\",'Generated list'!B1347)","v":""},{"$f":"IF('Generated list'!C1347=\"\",\"\",'Generated list'!C1347)","v":""},{"$f":"IF('Generated list'!D1347=\"\",\"\",'Generated list'!D1347)","v":""}]
[null,{"$f":"IF('Generated list'!B1348=\"\",\"\",'Generated list'!B1348)","v":""},{"$f":"IF('Generated list'!C1348=\"\",\"\",'Generated list'!C1348)","v":""},{"$f":"IF('Generated list'!D1348=\"\",\"\",'Generated list'!D1348)","v":""}]
[null,{"$f":"IF('Generated list'!B1349=\"\",\"\",'Generated list'!B1349)","v":""},{"$f":"IF('Generated list'!C1349=\"\",\"\",'Generated list'!C1349)","v":""},{"$f":"IF('Generated list'!D1349=\"\",\"\",'Generated list'!D1349)","v":""}]
[null,{"$f":"IF('Generated list'!B1350=\"\",\"\",'Generated list'!B1350)","v":""},{"$f":"IF('Generated list'!C1350=\"\",\"\",'Generated list'!C1350)","v":""},{"$f":"IF('Generated list'!D1350=\"\",\"\",'Generated list'!D1350)","v":""}]
[null,{"$f":"IF('Generated list'!B1351=\"\",\"\",'Generated list'!B1351)","v":""},{"$f":"IF('Generated list'!C1351=\"\",\"\",'Generated list'!C1351)","v":""},{"$f":"IF('Generated list'!D1351=\"\",\"\",'Generated list'!D1351)","v":""}]
[null,{"$f":"IF('Generated list'!B1352=\"\",\"\",'Generated list'!B1352)","v":""},{"$f":"IF('Generated list'!C1352=\"\",\"\",'Generated list'!C1352)","v":""},{"$f":"IF('Generated list'!D1352=\"\",\"\",'Generated list'!D1352)","v":""}]
[null,{"$f":"IF('Generated list'!B1353=\"\",\"\",'Generated list'!B1353)","v":""},{"$f":"IF('Generated list'!C1353=\"\",\"\",'Generated list'!C1353)","v":""},{"$f":"IF('Generated list'!D1353=\"\",\"\",'Generated list'!D1353)","v":""}]
[null,{"$f":"IF('Generated list'!B1354=\"\",\"\",'Generated list'!B1354)","v":""},{"$f":"IF('Generated list'!C1354=\"\",\"\",'Generated list'!C1354)","v":""},{"$f":"IF('Generated list'!D1354=\"\",\"\",'Generated list'!D1354)","v":""}]
[null,{"$f":"IF('Generated list'!B1355=\"\",\"\",'Generated list'!B1355)","v":""},{"$f":"IF('Generated list'!C1355=\"\",\"\",'Generated list'!C1355)","v":""},{"$f":"IF('Generated list'!D1355=\"\",\"\",'Generated list'!D1355)","v":""}]
[null,{"$f":"IF('Generated list'!B1356=\"\",\"\",'Generated list'!B1356)","v":""},{"$f":"IF('Generated list'!C1356=\"\",\"\",'Generated list'!C1356)","v":""},{"$f":"IF('Generated list'!D1356=\"\",\"\",'Generated list'!D1356)","v":""}]
[null,{"$f":"IF('Generated list'!B1357=\"\",\"\",'Generated list'!B1357)","v":""},{"$f":"IF('Generated list'!C1357=\"\",\"\",'Generated list'!C1357)","v":""},{"$f":"IF('Generated list'!D1357=\"\",\"\",'Generated list'!D1357)","v":""}]
[null,{"$f":"IF('Generated list'!B1358=\"\",\"\",'Generated list'!B1358)","v":""},{"$f":"IF('Generated list'!C1358=\"\",\"\",'Generated list'!C1358)","v":""},{"$f":"IF('Generated list'!D1358=\"\",\"\",'Generated list'!D1358)","v":""}]
[null,{"$f":"IF('Generated list'!B1359=\"\",\"\",'Generated list'!B1359)","v":""},{"$f":"IF('Generated list'!C1359=\"\",\"\",'Generated list'!C1359)","v":""},{"$f":"IF('Generated list'!D1359=\"\",\"\",'Generated list'!D1359)","v":""}]
[null,{"$f":"IF('Generated list'!B1360=\"\",\"\",'Generated list'!B1360)","v":""},{"$f":"IF('Generated list'!C1360=\"\",\"\",'Generated list'!C1360)","v":""},{"$f":"IF('Generated list'!D1360=\"\",\"\",'Generated list'!D1360)","v":""}]
[null,{"$f":"IF('Generated list'!B1361=\"\",\"\",'Generated list'!B1361)","v":""},{"$f":"IF('Generated list'!C1361=\"\",\"\",'Generated list'!C1361)","v":""},{"$f":"IF('Generated list'!D1361=\"\",\"\",'Generated list'!D1361)","v":""}]
[null,{"$f":"IF('Generated list'!B1362=\"\",\"\",'Generated list'!B1362)","v":""},{"$f":"IF('Generated list'!C1362=\"\",\"\",'Generated list'!C1362)","v":""},{"$f":"IF('Generated list'!D1362=\"\",\"\",'Generated list'!D1362)","v":""}]
[null,{"$f":"IF('Generated list'!B1363=\"\",\"\",'Generated list'!B1363)","v":""},{"$f":"IF('Generated list'!C1363=\"\",\"\",'Generated list'!C1363)","v":""},{"$f":"IF('Generated list'!D1363=\"\",\"\",'Generated list'!D1363)","v":""}]
[null,{"$f":"IF('Generated list'!B1364=\"\",\"\",'Generated list'!B1364)","v":""},{"$f":"IF('Generated list'!C1364=\"\",\"\",'Generated list'!C1364)","v":""},{"$f":"IF('Generated list'!D1364=\"\",\"\",'Generated list'!D1364)","v":""}]
[null,{"$f":"IF('Generated list'!B1365=\"\",\"\",'Generated list'!B1365)","v":""},{"$f":"IF('Generated list'!C1365=\"\",\"\",'Generated list'!C1365)","v":""},{"$f":"IF('Generated list'!D1365=\"\",\"\",'Generated list'!D1365)","v":""}]
[null,{"$f":"IF('Generated list'!B1366=\"\",\"\",'Generated list'!B1366)","v":""},{"$f":"IF('Generated list'!C1366=\"\",\"\",'Generated list'!C1366)","v":""},{"$f":"IF('Generated list'!D1366=\"\",\"\",'Generated list'!D1366)","v":""}]
[null,{"$f":"IF('Generated list'!B1367=\"\",\"\",'Generated list'!B1367)","v":""},{"$f":"IF('Generated list'!C1367=\"\",\"\",'Generated list'!C1367)","v":""},{"$f":"IF('Generated list'!D1367=\"\",\"\",'Generated list'!D1367)","v":""}]
[null,{"$f":"IF('Generated list'!B1368=\"\",\"\",'Generated list'!B1368)","v":""},{"$f":"IF('Generated list'!C1368=\"\",\"\",'Generated list'!C1368)","v":""},{"$f":"IF('Generated list'!D1368=\"\",\"\",'Generated list'!D1368)","v":""}]
[null,{"$f":"IF('Generated list'!B1369=\"\",\"\",'Generated list'!B1369)","v":""},{"$f":"IF('Generated list'!C1369=\"\",\"\",'Generated list'!C1369)","v":""},{"$f":"IF('Generated list'!D1369=\"\",\"\",'Generated list'!D1369)","v":""}]
[null,{"$f":"IF('Generated list'!B1370=\"\",\"\",'Generated list'!B1370)","v":""},{"$f":"IF('Generated list'!C1370=\"\",\"\",'Generated list'!C1370)","v":""},{"$f":"IF('Generated list'!D1370=\"\",\"\",'Generated list'!D1370)","v":""}]
[null,{"$f":"IF('Generated list'!B1371=\"\",\"\",'Generated list'!B1371)","v":""},{"$f":"IF('Generated list'!C1371=\"\",\"\",'Generated list'!C1371)","v":""},{"$f":"IF('Generated list'!D1371=\"\",\"\",'Generated list'!D1371)","v":""}]
[null,{"$f":"IF('Generated list'!B1372=\"\",\"\",'Generated list'!B1372)","v":""},{"$f":"IF('Generated list'!C1372=\"\",\"\",'Generated list'!C1372)","v":""},{"$f":"IF('Generated list'!D1372=\"\",\"\",'Generated list'!D1372)","v":""}]
[null,{"$f":"IF('Generated list'!B1373=\"\",\"\",'Generated list'!B1373)","v":""},{"$f":"IF('Generated list'!C1373=\"\",\"\",'Generated list'!C1373)","v":""},{"$f":"IF('Generated list'!D1373=\"\",\"\",'Generated list'!D1373)","v":""}]
[null,{"$f":"IF('Generated list'!B1374=\"\",\"\",'Generated list'!B1374)","v":""},{"$f":"IF('Generated list'!C1374=\"\",\"\",'Generated list'!C1374)","v":""},{"$f":"IF('Generated list'!D1374=\"\",\"\",'Generated list'!D1374)","v":""}]
[null,{"$f":"IF('Generated list'!B1375=\"\",\"\",'Generated list'!B1375)","v":""},{"$f":"IF('Generated list'!C1375=\"\",\"\",'Generated list'!C1375)","v":""},{"$f":"IF('Generated list'!D1375=\"\",\"\",'Generated list'!D1375)","v":""}]
[null,{"$f":"IF('Generated list'!B1376=\"\",\"\",'Generated list'!B1376)","v":""},{"$f":"IF('Generated list'!C1376=\"\",\"\",'Generated list'!C1376)","v":""},{"$f":"IF('Generated list'!D1376=\"\",\"\",'Generated list'!D1376)","v":""}]
[null,{"$f":"IF('Generated list'!B1377=\"\",\"\",'Generated list'!B1377)","v":""},{"$f":"IF('Generated list'!C1377=\"\",\"\",'Generated list'!C1377)","v":""},{"$f":"IF('Generated list'!D1377=\"\",\"\",'Generated list'!D1377)","v":""}]
[null,{"$f":"IF('Generated list'!B1378=\"\",\"\",'Generated list'!B1378)","v":""},{"$f":"IF('Generated list'!C1378=\"\",\"\",'Generated list'!C1378)","v":""},{"$f":"IF('Generated list'!D1378=\"\",\"\",'Generated list'!D1378)","v":""}]
[null,{"$f":"IF('Generated list'!B1379=\"\",\"\",'Generated list'!B1379)","v":""},{"$f":"IF('Generated list'!C1379=\"\",\"\",'Generated list'!C1379)","v":""},{"$f":"IF('Generated list'!D1379=\"\",\"\",'Generated list'!D1379)","v":""}]
[null,{"$f":"IF('Generated list'!B1380=\"\",\"\",'Generated list'!B1380)","v":""},{"$f":"IF('Generated list'!C1380=\"\",\"\",'Generated list'!C1380)","v":""},{"$f":"IF('Generated list'!D1380=\"\",\"\",'Generated list'!D1380)","v":""}]
[null,{"$f":"IF('Generated list'!B1381=\"\",\"\",'Generated list'!B1381)","v":""},{"$f":"IF('Generated list'!C1381=\"\",\"\",'Generated list'!C1381)","v":""},{"$f":"IF('Generated list'!D1381=\"\",\"\",'Generated list'!D1381)","v":""}]
[null,{"$f":"IF('Generated list'!B1382=\"\",\"\",'Generated list'!B1382)","v":""},{"$f":"IF('Generated list'!C1382=\"\",\"\",'Generated list'!C1382)","v":""},{"$f":"IF('Generated list'!D1382=\"\",\"\",'Generated list'!D1382)","v":""}]
[null,{"$f":"IF('Generated list'!B1383=\"\",\"\",'Generated list'!B1383)","v":""},{"$f":"IF('Generated list'!C1383=\"\",\"\",'Generated list'!C1383)","v":""},{"$f":"IF('Generated list'!D1383=\"\",\"\",'Generated list'!D1383)","v":""}]
[null,{"$f":"IF('Generated list'!B1384=\"\",\"\",'Generated list'!B1384)","v":""},{"$f":"IF('Generated list'!C1384=\"\",\"\",'Generated list'!C1384)","v":""},{"$f":"IF('Generated list'!D1384=\"\",\"\",'Generated list'!D1384)","v":""}]
[null,{"$f":"IF('Generated list'!B1385=\"\",\"\",'Generated list'!B1385)","v":""},{"$f":"IF('Generated list'!C1385=\"\",\"\",'Generated list'!C1385)","v":""},{"$f":"IF('Generated list'!D1385=\"\",\"\",'Generated list'!D1385)","v":""}]
[null,{"$f":"IF('Generated list'!B1386=\"\",\"\",'Generated list'!B1386)","v":""},{"$f":"IF('Generated list'!C1386=\"\",\"\",'Generated list'!C1386)","v":""},{"$f":"IF('Generated list'!D1386=\"\",\"\",'Generated list'!D1386)","v":""}]
[null,{"$f":"IF('Generated list'!B1387=\"\",\"\",'Generated list'!B1387)","v":""},{"$f":"IF('Generated list'!C1387=\"\",\"\",'Generated list'!C1387)","v":""},{"$f":"IF('Generated list'!D1387=\"\",\"\",'Generated list'!D1387)","v":""}]
[null,{"$f":"IF('Generated list'!B1388=\"\",\"\",'Generated list'!B1388)","v":""},{"$f":"IF('Generated list'!C1388=\"\",\"\",'Generated list'!C1388)","v":""},{"$f":"IF('Generated list'!D1388=\"\",\"\",'Generated list'!D1388)","v":""}]
[null,{"$f":"IF('Generated list'!B1389=\"\",\"\",'Generated list'!B1389)","v":""},{"$f":"IF('Generated list'!C1389=\"\",\"\",'Generated list'!C1389)","v":""},{"$f":"IF('Generated list'!D1389=\"\",\"\",'Generated list'!D1389)","v":""}]
[null,{"$f":"IF('Generated list'!B1390=\"\",\"\",'Generated list'!B1390)","v":""},{"$f":"IF('Generated list'!C1390=\"\",\"\",'Generated list'!C1390)","v":""},{"$f":"IF('Generated list'!D1390=\"\",\"\",'Generated list'!D1390)","v":""}]
[null,{"$f":"IF('Generated list'!B1391=\"\",\"\",'Generated list'!B1391)","v":""},{"$f":"IF('Generated list'!C1391=\"\",\"\",'Generated list'!C1391)","v":""},{"$f":"IF('Generated list'!D1391=\"\",\"\",'Generated list'!D1391)","v":""}]
[null,{"$f":"IF('Generated list'!B1392=\"\",\"\",'Generated list'!B1392)","v":""},{"$f":"IF('Generated list'!C1392=\"\",\"\",'Generated list'!C1392)","v":""},{"$f":"IF('Generated list'!D1392=\"\",\"\",'Generated list'!D1392)","v":""}]
[null,{"$f":"IF('Generated list'!B1393=\"\",\"\",'Generated list'!B1393)","v":""},{"$f":"IF('Generated list'!C1393=\"\",\"\",'Generated list'!C1393)","v":""},{"$f":"IF('Generated list'!D1393=\"\",\"\",'Generated list'!D1393)","v":""}]
[null,{"$f":"IF('Generated list'!B1394=\"\",\"\",'Generated list'!B1394)","v":""},{"$f":"IF('Generated list'!C1394=\"\",\"\",'Generated list'!C1394)","v":""},{"$f":"IF('Generated list'!D1394=\"\",\"\",'Generated list'!D1394)","v":""}]
[null,{"$f":"IF('Generated list'!B1395=\"\",\"\",'Generated list'!B1395)","v":""},{"$f":"IF('Generated list'!C1395=\"\",\"\",'Generated list'!C1395)","v":""},{"$f":"IF('Generated list'!D1395=\"\",\"\",'Generated list'!D1395)","v":""}]
[null,{"$f":"IF('Generated list'!B1396=\"\",\"\",'Generated list'!B1396)","v":""},{"$f":"IF('Generated list'!C1396=\"\",\"\",'Generated list'!C1396)","v":""},{"$f":"IF('Generated list'!D1396=\"\",\"\",'Generated list'!D1396)","v":""}]
[null,{"$f":"IF('Generated list'!B1397=\"\",\"\",'Generated list'!B1397)","v":""},{"$f":"IF('Generated list'!C1397=\"\",\"\",'Generated list'!C1397)","v":""},{"$f":"IF('Generated list'!D1397=\"\",\"\",'Generated list'!D1397)","v":""}]
[null,{"$f":"IF('Generated list'!B1398=\"\",\"\",'Generated list'!B1398)","v":""},{"$f":"IF('Generated list'!C1398=\"\",\"\",'Generated list'!C1398)","v":""},{"$f":"IF('Generated list'!D1398=\"\",\"\",'Generated list'!D1398)","v":""}]
[null,{"$f":"IF('Generated list'!B1399=\"\",\"\",'Generated list'!B1399)","v":""},{"$f":"IF('Generated list'!C1399=\"\",\"\",'Generated list'!C1399)","v":""},{"$f":"IF('Generated list'!D1399=\"\",\"\",'Generated list'!D1399)","v":""}]
[null,{"$f":"IF('Generated list'!B1400=\"\",\"\",'Generated list'!B1400)","v":""},{"$f":"IF('Generated list'!C1400=\"\",\"\",'Generated list'!C1400)","v":""},{"$f":"IF('Generated list'!D1400=\"\",\"\",'Generated list'!D1400)","v":""}]
[null,{"$f":"IF('Generated list'!B1401=\"\",\"\",'Generated list'!B1401)","v":""},{"$f":"IF('Generated list'!C1401=\"\",\"\",'Generated list'!C1401)","v":""},{"$f":"IF('Generated list'!D1401=\"\",\"\",'Generated list'!D1401)","v":""}]
[null,{"$f":"IF('Generated list'!B1402=\"\",\"\",'Generated list'!B1402)","v":""},{"$f":"IF('Generated list'!C1402=\"\",\"\",'Generated list'!C1402)","v":""},{"$f":"IF('Generated list'!D1402=\"\",\"\",'Generated list'!D1402)","v":""}]
[null,{"$f":"IF('Generated list'!B1403=\"\",\"\",'Generated list'!B1403)","v":""},{"$f":"IF('Generated list'!C1403=\"\",\"\",'Generated list'!C1403)","v":""},{"$f":"IF('Generated list'!D1403=\"\",\"\",'Generated list'!D1403)","v":""}]
[null,{"$f":"IF('Generated list'!B1404=\"\",\"\",'Generated list'!B1404)","v":""},{"$f":"IF('Generated list'!C1404=\"\",\"\",'Generated list'!C1404)","v":""},{"$f":"IF('Generated list'!D1404=\"\",\"\",'Generated list'!D1404)","v":""}]
[null,{"$f":"IF('Generated list'!B1405=\"\",\"\",'Generated list'!B1405)","v":""},{"$f":"IF('Generated list'!C1405=\"\",\"\",'Generated list'!C1405)","v":""},{"$f":"IF('Generated list'!D1405=\"\",\"\",'Generated list'!D1405)","v":""}]
[null,{"$f":"IF('Generated list'!B1406=\"\",\"\",'Generated list'!B1406)","v":""},{"$f":"IF('Generated list'!C1406=\"\",\"\",'Generated list'!C1406)","v":""},{"$f":"IF('Generated list'!D1406=\"\",\"\",'Generated list'!D1406)","v":""}]
[null,{"$f":"IF('Generated list'!B1407=\"\",\"\",'Generated list'!B1407)","v":""},{"$f":"IF('Generated list'!C1407=\"\",\"\",'Generated list'!C1407)","v":""},{"$f":"IF('Generated list'!D1407=\"\",\"\",'Generated list'!D1407)","v":""}]
[null,{"$f":"IF('Generated list'!B1408=\"\",\"\",'Generated list'!B1408)","v":""},{"$f":"IF('Generated list'!C1408=\"\",\"\",'Generated list'!C1408)","v":""},{"$f":"IF('Generated list'!D1408=\"\",\"\",'Generated list'!D1408)","v":""}]
[null,{"$f":"IF('Generated list'!B1409=\"\",\"\",'Generated list'!B1409)","v":""},{"$f":"IF('Generated list'!C1409=\"\",\"\",'Generated list'!C1409)","v":""},{"$f":"IF('Generated list'!D1409=\"\",\"\",'Generated list'!D1409)","v":""}]
[null,{"$f":"IF('Generated list'!B1410=\"\",\"\",'Generated list'!B1410)","v":""},{"$f":"IF('Generated list'!C1410=\"\",\"\",'Generated list'!C1410)","v":""},{"$f":"IF('Generated list'!D1410=\"\",\"\",'Generated list'!D1410)","v":""}]
[null,{"$f":"IF('Generated list'!B1411=\"\",\"\",'Generated list'!B1411)","v":""},{"$f":"IF('Generated list'!C1411=\"\",\"\",'Generated list'!C1411)","v":""},{"$f":"IF('Generated list'!D1411=\"\",\"\",'Generated list'!D1411)","v":""}]
[null,{"$f":"IF('Generated list'!B1412=\"\",\"\",'Generated list'!B1412)","v":""},{"$f":"IF('Generated list'!C1412=\"\",\"\",'Generated list'!C1412)","v":""},{"$f":"IF('Generated list'!D1412=\"\",\"\",'Generated list'!D1412)","v":""}]
[null,{"$f":"IF('Generated list'!B1413=\"\",\"\",'Generated list'!B1413)","v":""},{"$f":"IF('Generated list'!C1413=\"\",\"\",'Generated list'!C1413)","v":""},{"$f":"IF('Generated list'!D1413=\"\",\"\",'Generated list'!D1413)","v":""}]
[null,{"$f":"IF('Generated list'!B1414=\"\",\"\",'Generated list'!B1414)","v":""},{"$f":"IF('Generated list'!C1414=\"\",\"\",'Generated list'!C1414)","v":""},{"$f":"IF('Generated list'!D1414=\"\",\"\",'Generated list'!D1414)","v":""}]
[null,{"$f":"IF('Generated list'!B1415=\"\",\"\",'Generated list'!B1415)","v":""},{"$f":"IF('Generated list'!C1415=\"\",\"\",'Generated list'!C1415)","v":""},{"$f":"IF('Generated list'!D1415=\"\",\"\",'Generated list'!D1415)","v":""}]
[null,{"$f":"IF('Generated list'!B1416=\"\",\"\",'Generated list'!B1416)","v":""},{"$f":"IF('Generated list'!C1416=\"\",\"\",'Generated list'!C1416)","v":""},{"$f":"IF('Generated list'!D1416=\"\",\"\",'Generated list'!D1416)","v":""}]
[null,{"$f":"IF('Generated list'!B1417=\"\",\"\",'Generated list'!B1417)","v":""},{"$f":"IF('Generated list'!C1417=\"\",\"\",'Generated list'!C1417)","v":""},{"$f":"IF('Generated list'!D1417=\"\",\"\",'Generated list'!D1417)","v":""}]
[null,{"$f":"IF('Generated list'!B1418=\"\",\"\",'Generated list'!B1418)","v":""},{"$f":"IF('Generated list'!C1418=\"\",\"\",'Generated list'!C1418)","v":""},{"$f":"IF('Generated list'!D1418=\"\",\"\",'Generated list'!D1418)","v":""}]
[null,{"$f":"IF('Generated list'!B1419=\"\",\"\",'Generated list'!B1419)","v":""},{"$f":"IF('Generated list'!C1419=\"\",\"\",'Generated list'!C1419)","v":""},{"$f":"IF('Generated list'!D1419=\"\",\"\",'Generated list'!D1419)","v":""}]
[null,{"$f":"IF('Generated list'!B1420=\"\",\"\",'Generated list'!B1420)","v":""},{"$f":"IF('Generated list'!C1420=\"\",\"\",'Generated list'!C1420)","v":""},{"$f":"IF('Generated list'!D1420=\"\",\"\",'Generated list'!D1420)","v":""}]
[null,{"$f":"IF('Generated list'!B1421=\"\",\"\",'Generated list'!B1421)","v":""},{"$f":"IF('Generated list'!C1421=\"\",\"\",'Generated list'!C1421)","v":""},{"$f":"IF('Generated list'!D1421=\"\",\"\",'Generated list'!D1421)","v":""}]
[null,{"$f":"IF('Generated list'!B1422=\"\",\"\",'Generated list'!B1422)","v":""},{"$f":"IF('Generated list'!C1422=\"\",\"\",'Generated list'!C1422)","v":""},{"$f":"IF('Generated list'!D1422=\"\",\"\",'Generated list'!D1422)","v":""}]
[null,{"$f":"IF('Generated list'!B1423=\"\",\"\",'Generated list'!B1423)","v":""},{"$f":"IF('Generated list'!C1423=\"\",\"\",'Generated list'!C1423)","v":""},{"$f":"IF('Generated list'!D1423=\"\",\"\",'Generated list'!D1423)","v":""}]
[null,{"$f":"IF('Generated list'!B1424=\"\",\"\",'Generated list'!B1424)","v":""},{"$f":"IF('Generated list'!C1424=\"\",\"\",'Generated list'!C1424)","v":""},{"$f":"IF('Generated list'!D1424=\"\",\"\",'Generated list'!D1424)","v":""}]
[null,{"$f":"IF('Generated list'!B1425=\"\",\"\",'Generated list'!B1425)","v":""},{"$f":"IF('Generated list'!C1425=\"\",\"\",'Generated list'!C1425)","v":""},{"$f":"IF('Generated list'!D1425=\"\",\"\",'Generated list'!D1425)","v":""}]
[null,{"$f":"IF('Generated list'!B1426=\"\",\"\",'Generated list'!B1426)","v":""},{"$f":"IF('Generated list'!C1426=\"\",\"\",'Generated list'!C1426)","v":""},{"$f":"IF('Generated list'!D1426=\"\",\"\",'Generated list'!D1426)","v":""}]
[null,{"$f":"IF('Generated list'!B1427=\"\",\"\",'Generated list'!B1427)","v":""},{"$f":"IF('Generated list'!C1427=\"\",\"\",'Generated list'!C1427)","v":""},{"$f":"IF('Generated list'!D1427=\"\",\"\",'Generated list'!D1427)","v":""}]
[null,{"$f":"IF('Generated list'!B1428=\"\",\"\",'Generated list'!B1428)","v":""},{"$f":"IF('Generated list'!C1428=\"\",\"\",'Generated list'!C1428)","v":""},{"$f":"IF('Generated list'!D1428=\"\",\"\",'Generated list'!D1428)","v":""}]
[null,{"$f":"IF('Generated list'!B1429=\"\",\"\",'Generated list'!B1429)","v":""},{"$f":"IF('Generated list'!C1429=\"\",\"\",'Generated list'!C1429)","v":""},{"$f":"IF('Generated list'!D1429=\"\",\"\",'Generated list'!D1429)","v":""}]
[null,{"$f":"IF('Generated list'!B1430=\"\",\"\",'Generated list'!B1430)","v":""},{"$f":"IF('Generated list'!C1430=\"\",\"\",'Generated list'!C1430)","v":""},{"$f":"IF('Generated list'!D1430=\"\",\"\",'Generated list'!D1430)","v":""}]
[null,{"$f":"IF('Generated list'!B1431=\"\",\"\",'Generated list'!B1431)","v":""},{"$f":"IF('Generated list'!C1431=\"\",\"\",'Generated list'!C1431)","v":""},{"$f":"IF('Generated list'!D1431=\"\",\"\",'Generated list'!D1431)","v":""}]
[null,{"$f":"IF('Generated list'!B1432=\"\",\"\",'Generated list'!B1432)","v":""},{"$f":"IF('Generated list'!C1432=\"\",\"\",'Generated list'!C1432)","v":""},{"$f":"IF('Generated list'!D1432=\"\",\"\",'Generated list'!D1432)","v":""}]
[null,{"$f":"IF('Generated list'!B1433=\"\",\"\",'Generated list'!B1433)","v":""},{"$f":"IF('Generated list'!C1433=\"\",\"\",'Generated list'!C1433)","v":""},{"$f":"IF('Generated list'!D1433=\"\",\"\",'Generated list'!D1433)","v":""}]
[null,{"$f":"IF('Generated list'!B1434=\"\",\"\",'Generated list'!B1434)","v":""},{"$f":"IF('Generated list'!C1434=\"\",\"\",'Generated list'!C1434)","v":""},{"$f":"IF('Generated list'!D1434=\"\",\"\",'Generated list'!D1434)","v":""}]
[null,{"$f":"IF('Generated list'!B1435=\"\",\"\",'Generated list'!B1435)","v":""},{"$f":"IF('Generated list'!C1435=\"\",\"\",'Generated list'!C1435)","v":""},{"$f":"IF('Generated list'!D1435=\"\",\"\",'Generated list'!D1435)","v":""}]
[null,{"$f":"IF('Generated list'!B1436=\"\",\"\",'Generated list'!B1436)","v":""},{"$f":"IF('Generated list'!C1436=\"\",\"\",'Generated list'!C1436)","v":""},{"$f":"IF('Generated list'!D1436=\"\",\"\",'Generated list'!D1436)","v":""}]
[null,{"$f":"IF('Generated list'!B1437=\"\",\"\",'Generated list'!B1437)","v":""},{"$f":"IF('Generated list'!C1437=\"\",\"\",'Generated list'!C1437)","v":""},{"$f":"IF('Generated list'!D1437=\"\",\"\",'Generated list'!D1437)","v":""}]
[null,{"$f":"IF('Generated list'!B1438=\"\",\"\",'Generated list'!B1438)","v":""},{"$f":"IF('Generated list'!C1438=\"\",\"\",'Generated list'!C1438)","v":""},{"$f":"IF('Generated list'!D1438=\"\",\"\",'Generated list'!D1438)","v":""}]
[null,{"$f":"IF('Generated list'!B1439=\"\",\"\",'Generated list'!B1439)","v":""},{"$f":"IF('Generated list'!C1439=\"\",\"\",'Generated list'!C1439)","v":""},{"$f":"IF('Generated list'!D1439=\"\",\"\",'Generated list'!D1439)","v":""}]
[null,{"$f":"IF('Generated list'!B1440=\"\",\"\",'Generated list'!B1440)","v":""},{"$f":"IF('Generated list'!C1440=\"\",\"\",'Generated list'!C1440)","v":""},{"$f":"IF('Generated list'!D1440=\"\",\"\",'Generated list'!D1440)","v":""}]
[null,{"$f":"IF('Generated list'!B1441=\"\",\"\",'Generated list'!B1441)","v":""},{"$f":"IF('Generated list'!C1441=\"\",\"\",'Generated list'!C1441)","v":""},{"$f":"IF('Generated list'!D1441=\"\",\"\",'Generated list'!D1441)","v":""}]
[null,{"$f":"IF('Generated list'!B1442=\"\",\"\",'Generated list'!B1442)","v":""},{"$f":"IF('Generated list'!C1442=\"\",\"\",'Generated list'!C1442)","v":""},{"$f":"IF('Generated list'!D1442=\"\",\"\",'Generated list'!D1442)","v":""}]
[null,{"$f":"IF('Generated list'!B1443=\"\",\"\",'Generated list'!B1443)","v":""},{"$f":"IF('Generated list'!C1443=\"\",\"\",'Generated list'!C1443)","v":""},{"$f":"IF('Generated list'!D1443=\"\",\"\",'Generated list'!D1443)","v":""}]
[null,{"$f":"IF('Generated list'!B1444=\"\",\"\",'Generated list'!B1444)","v":""},{"$f":"IF('Generated list'!C1444=\"\",\"\",'Generated list'!C1444)","v":""},{"$f":"IF('Generated list'!D1444=\"\",\"\",'Generated list'!D1444)","v":""}]
[null,{"$f":"IF('Generated list'!B1445=\"\",\"\",'Generated list'!B1445)","v":""},{"$f":"IF('Generated list'!C1445=\"\",\"\",'Generated list'!C1445)","v":""},{"$f":"IF('Generated list'!D1445=\"\",\"\",'Generated list'!D1445)","v":""}]
[null,{"$f":"IF('Generated list'!B1446=\"\",\"\",'Generated list'!B1446)","v":""},{"$f":"IF('Generated list'!C1446=\"\",\"\",'Generated list'!C1446)","v":""},{"$f":"IF('Generated list'!D1446=\"\",\"\",'Generated list'!D1446)","v":""}]
[null,{"$f":"IF('Generated list'!B1447=\"\",\"\",'Generated list'!B1447)","v":""},{"$f":"IF('Generated list'!C1447=\"\",\"\",'Generated list'!C1447)","v":""},{"$f":"IF('Generated list'!D1447=\"\",\"\",'Generated list'!D1447)","v":""}]
[null,{"$f":"IF('Generated list'!B1448=\"\",\"\",'Generated list'!B1448)","v":""},{"$f":"IF('Generated list'!C1448=\"\",\"\",'Generated list'!C1448)","v":""},{"$f":"IF('Generated list'!D1448=\"\",\"\",'Generated list'!D1448)","v":""}]
[null,{"$f":"IF('Generated list'!B1449=\"\",\"\",'Generated list'!B1449)","v":""},{"$f":"IF('Generated list'!C1449=\"\",\"\",'Generated list'!C1449)","v":""},{"$f":"IF('Generated list'!D1449=\"\",\"\",'Generated list'!D1449)","v":""}]
[null,{"$f":"IF('Generated list'!B1450=\"\",\"\",'Generated list'!B1450)","v":""},{"$f":"IF('Generated list'!C1450=\"\",\"\",'Generated list'!C1450)","v":""},{"$f":"IF('Generated list'!D1450=\"\",\"\",'Generated list'!D1450)","v":""}]
[null,{"$f":"IF('Generated list'!B1451=\"\",\"\",'Generated list'!B1451)","v":""},{"$f":"IF('Generated list'!C1451=\"\",\"\",'Generated list'!C1451)","v":""},{"$f":"IF('Generated list'!D1451=\"\",\"\",'Generated list'!D1451)","v":""}]
[null,{"$f":"IF('Generated list'!B1452=\"\",\"\",'Generated list'!B1452)","v":""},{"$f":"IF('Generated list'!C1452=\"\",\"\",'Generated list'!C1452)","v":""},{"$f":"IF('Generated list'!D1452=\"\",\"\",'Generated list'!D1452)","v":""}]
[null,{"$f":"IF('Generated list'!B1453=\"\",\"\",'Generated list'!B1453)","v":""},{"$f":"IF('Generated list'!C1453=\"\",\"\",'Generated list'!C1453)","v":""},{"$f":"IF('Generated list'!D1453=\"\",\"\",'Generated list'!D1453)","v":""}]
[null,{"$f":"IF('Generated list'!B1454=\"\",\"\",'Generated list'!B1454)","v":""},{"$f":"IF('Generated list'!C1454=\"\",\"\",'Generated list'!C1454)","v":""},{"$f":"IF('Generated list'!D1454=\"\",\"\",'Generated list'!D1454)","v":""}]
[null,{"$f":"IF('Generated list'!B1455=\"\",\"\",'Generated list'!B1455)","v":""},{"$f":"IF('Generated list'!C1455=\"\",\"\",'Generated list'!C1455)","v":""},{"$f":"IF('Generated list'!D1455=\"\",\"\",'Generated list'!D1455)","v":""}]
[null,{"$f":"IF('Generated list'!B1456=\"\",\"\",'Generated list'!B1456)","v":""},{"$f":"IF('Generated list'!C1456=\"\",\"\",'Generated list'!C1456)","v":""},{"$f":"IF('Generated list'!D1456=\"\",\"\",'Generated list'!D1456)","v":""}]
[null,{"$f":"IF('Generated list'!B1457=\"\",\"\",'Generated list'!B1457)","v":""},{"$f":"IF('Generated list'!C1457=\"\",\"\",'Generated list'!C1457)","v":""},{"$f":"IF('Generated list'!D1457=\"\",\"\",'Generated list'!D1457)","v":""}]
[null,{"$f":"IF('Generated list'!B1458=\"\",\"\",'Generated list'!B1458)","v":""},{"$f":"IF('Generated list'!C1458=\"\",\"\",'Generated list'!C1458)","v":""},{"$f":"IF('Generated list'!D1458=\"\",\"\",'Generated list'!D1458)","v":""}]
[null,{"$f":"IF('Generated list'!B1459=\"\",\"\",'Generated list'!B1459)","v":""},{"$f":"IF('Generated list'!C1459=\"\",\"\",'Generated list'!C1459)","v":""},{"$f":"IF('Generated list'!D1459=\"\",\"\",'Generated list'!D1459)","v":""}]
[null,{"$f":"IF('Generated list'!B1460=\"\",\"\",'Generated list'!B1460)","v":""},{"$f":"IF('Generated list'!C1460=\"\",\"\",'Generated list'!C1460)","v":""},{"$f":"IF('Generated list'!D1460=\"\",\"\",'Generated list'!D1460)","v":""}]
[null,{"$f":"IF('Generated list'!B1461=\"\",\"\",'Generated list'!B1461)","v":""},{"$f":"IF('Generated list'!C1461=\"\",\"\",'Generated list'!C1461)","v":""},{"$f":"IF('Generated list'!D1461=\"\",\"\",'Generated list'!D1461)","v":""}]
[null,{"$f":"IF('Generated list'!B1462=\"\",\"\",'Generated list'!B1462)","v":""},{"$f":"IF('Generated list'!C1462=\"\",\"\",'Generated list'!C1462)","v":""},{"$f":"IF('Generated list'!D1462=\"\",\"\",'Generated list'!D1462)","v":""}]
[null,{"$f":"IF('Generated list'!B1463=\"\",\"\",'Generated list'!B1463)","v":""},{"$f":"IF('Generated list'!C1463=\"\",\"\",'Generated list'!C1463)","v":""},{"$f":"IF('Generated list'!D1463=\"\",\"\",'Generated list'!D1463)","v":""}]
[null,{"$f":"IF('Generated list'!B1464=\"\",\"\",'Generated list'!B1464)","v":""},{"$f":"IF('Generated list'!C1464=\"\",\"\",'Generated list'!C1464)","v":""},{"$f":"IF('Generated list'!D1464=\"\",\"\",'Generated list'!D1464)","v":""}]
[null,{"$f":"IF('Generated list'!B1465=\"\",\"\",'Generated list'!B1465)","v":""},{"$f":"IF('Generated list'!C1465=\"\",\"\",'Generated list'!C1465)","v":""},{"$f":"IF('Generated list'!D1465=\"\",\"\",'Generated list'!D1465)","v":""}]
[null,{"$f":"IF('Generated list'!B1466=\"\",\"\",'Generated list'!B1466)","v":""},{"$f":"IF('Generated list'!C1466=\"\",\"\",'Generated list'!C1466)","v":""},{"$f":"IF('Generated list'!D1466=\"\",\"\",'Generated list'!D1466)","v":""}]
[null,{"$f":"IF('Generated list'!B1467=\"\",\"\",'Generated list'!B1467)","v":""},{"$f":"IF('Generated list'!C1467=\"\",\"\",'Generated list'!C1467)","v":""},{"$f":"IF('Generated list'!D1467=\"\",\"\",'Generated list'!D1467)","v":""}]
[null,{"$f":"IF('Generated list'!B1468=\"\",\"\",'Generated list'!B1468)","v":""},{"$f":"IF('Generated list'!C1468=\"\",\"\",'Generated list'!C1468)","v":""},{"$f":"IF('Generated list'!D1468=\"\",\"\",'Generated list'!D1468)","v":""}]
[null,{"$f":"IF('Generated list'!B1469=\"\",\"\",'Generated list'!B1469)","v":""},{"$f":"IF('Generated list'!C1469=\"\",\"\",'Generated list'!C1469)","v":""},{"$f":"IF('Generated list'!D1469=\"\",\"\",'Generated list'!D1469)","v":""}]
[null,{"$f":"IF('Generated list'!B1470=\"\",\"\",'Generated list'!B1470)","v":""},{"$f":"IF('Generated list'!C1470=\"\",\"\",'Generated list'!C1470)","v":""},{"$f":"IF('Generated list'!D1470=\"\",\"\",'Generated list'!D1470)","v":""}]
[null,{"$f":"IF('Generated list'!B1471=\"\",\"\",'Generated list'!B1471)","v":""},{"$f":"IF('Generated list'!C1471=\"\",\"\",'Generated list'!C1471)","v":""},{"$f":"IF('Generated list'!D1471=\"\",\"\",'Generated list'!D1471)","v":""}]
[null,{"$f":"IF('Generated list'!B1472=\"\",\"\",'Generated list'!B1472)","v":""},{"$f":"IF('Generated list'!C1472=\"\",\"\",'Generated list'!C1472)","v":""},{"$f":"IF('Generated list'!D1472=\"\",\"\",'Generated list'!D1472)","v":""}]
[null,{"$f":"IF('Generated list'!B1473=\"\",\"\",'Generated list'!B1473)","v":""},{"$f":"IF('Generated list'!C1473=\"\",\"\",'Generated list'!C1473)","v":""},{"$f":"IF('Generated list'!D1473=\"\",\"\",'Generated list'!D1473)","v":""}]
[null,{"$f":"IF('Generated list'!B1474=\"\",\"\",'Generated list'!B1474)","v":""},{"$f":"IF('Generated list'!C1474=\"\",\"\",'Generated list'!C1474)","v":""},{"$f":"IF('Generated list'!D1474=\"\",\"\",'Generated list'!D1474)","v":""}]
[null,{"$f":"IF('Generated list'!B1475=\"\",\"\",'Generated list'!B1475)","v":""},{"$f":"IF('Generated list'!C1475=\"\",\"\",'Generated list'!C1475)","v":""},{"$f":"IF('Generated list'!D1475=\"\",\"\",'Generated list'!D1475)","v":""}]
[null,{"$f":"IF('Generated list'!B1476=\"\",\"\",'Generated list'!B1476)","v":""},{"$f":"IF('Generated list'!C1476=\"\",\"\",'Generated list'!C1476)","v":""},{"$f":"IF('Generated list'!D1476=\"\",\"\",'Generated list'!D1476)","v":""}]
[null,{"$f":"IF('Generated list'!B1477=\"\",\"\",'Generated list'!B1477)","v":""},{"$f":"IF('Generated list'!C1477=\"\",\"\",'Generated list'!C1477)","v":""},{"$f":"IF('Generated list'!D1477=\"\",\"\",'Generated list'!D1477)","v":""}]
[null,{"$f":"IF('Generated list'!B1478=\"\",\"\",'Generated list'!B1478)","v":""},{"$f":"IF('Generated list'!C1478=\"\",\"\",'Generated list'!C1478)","v":""},{"$f":"IF('Generated list'!D1478=\"\",\"\",'Generated list'!D1478)","v":""}]
[null,{"$f":"IF('Generated list'!B1479=\"\",\"\",'Generated list'!B1479)","v":""},{"$f":"IF('Generated list'!C1479=\"\",\"\",'Generated list'!C1479)","v":""},{"$f":"IF('Generated list'!D1479=\"\",\"\",'Generated list'!D1479)","v":""}]
[null,{"$f":"IF('Generated list'!B1480=\"\",\"\",'Generated list'!B1480)","v":""},{"$f":"IF('Generated list'!C1480=\"\",\"\",'Generated list'!C1480)","v":""},{"$f":"IF('Generated list'!D1480=\"\",\"\",'Generated list'!D1480)","v":""}]
[null,{"$f":"IF('Generated list'!B1481=\"\",\"\",'Generated list'!B1481)","v":""},{"$f":"IF('Generated list'!C1481=\"\",\"\",'Generated list'!C1481)","v":""},{"$f":"IF('Generated list'!D1481=\"\",\"\",'Generated list'!D1481)","v":""}]
[null,{"$f":"IF('Generated list'!B1482=\"\",\"\",'Generated list'!B1482)","v":""},{"$f":"IF('Generated list'!C1482=\"\",\"\",'Generated list'!C1482)","v":""},{"$f":"IF('Generated list'!D1482=\"\",\"\",'Generated list'!D1482)","v":""}]
[null,{"$f":"IF('Generated list'!B1483=\"\",\"\",'Generated list'!B1483)","v":""},{"$f":"IF('Generated list'!C1483=\"\",\"\",'Generated list'!C1483)","v":""},{"$f":"IF('Generated list'!D1483=\"\",\"\",'Generated list'!D1483)","v":""}]
[null,{"$f":"IF('Generated list'!B1484=\"\",\"\",'Generated list'!B1484)","v":""},{"$f":"IF('Generated list'!C1484=\"\",\"\",'Generated list'!C1484)","v":""},{"$f":"IF('Generated list'!D1484=\"\",\"\",'Generated list'!D1484)","v":""}]
[null,{"$f":"IF('Generated list'!B1485=\"\",\"\",'Generated list'!B1485)","v":""},{"$f":"IF('Generated list'!C1485=\"\",\"\",'Generated list'!C1485)","v":""},{"$f":"IF('Generated list'!D1485=\"\",\"\",'Generated list'!D1485)","v":""}]
[null,{"$f":"IF('Generated list'!B1486=\"\",\"\",'Generated list'!B1486)","v":""},{"$f":"IF('Generated list'!C1486=\"\",\"\",'Generated list'!C1486)","v":""},{"$f":"IF('Generated list'!D1486=\"\",\"\",'Generated list'!D1486)","v":""}]
[null,{"$f":"IF('Generated list'!B1487=\"\",\"\",'Generated list'!B1487)","v":""},{"$f":"IF('Generated list'!C1487=\"\",\"\",'Generated list'!C1487)","v":""},{"$f":"IF('Generated list'!D1487=\"\",\"\",'Generated list'!D1487)","v":""}]
[null,{"$f":"IF('Generated list'!B1488=\"\",\"\",'Generated list'!B1488)","v":""},{"$f":"IF('Generated list'!C1488=\"\",\"\",'Generated list'!C1488)","v":""},{"$f":"IF('Generated list'!D1488=\"\",\"\",'Generated list'!D1488)","v":""}]
[null,{"$f":"IF('Generated list'!B1489=\"\",\"\",'Generated list'!B1489)","v":""},{"$f":"IF('Generated list'!C1489=\"\",\"\",'Generated list'!C1489)","v":""},{"$f":"IF('Generated list'!D1489=\"\",\"\",'Generated list'!D1489)","v":""}]
[null,{"$f":"IF('Generated list'!B1490=\"\",\"\",'Generated list'!B1490)","v":""},{"$f":"IF('Generated list'!C1490=\"\",\"\",'Generated list'!C1490)","v":""},{"$f":"IF('Generated list'!D1490=\"\",\"\",'Generated list'!D1490)","v":""}]
[null,{"$f":"IF('Generated list'!B1491=\"\",\"\",'Generated list'!B1491)","v":""},{"$f":"IF('Generated list'!C1491=\"\",\"\",'Generated list'!C1491)","v":""},{"$f":"IF('Generated list'!D1491=\"\",\"\",'Generated list'!D1491)","v":""}]
[null,{"$f":"IF('Generated list'!B1492=\"\",\"\",'Generated list'!B1492)","v":""},{"$f":"IF('Generated list'!C1492=\"\",\"\",'Generated list'!C1492)","v":""},{"$f":"IF('Generated list'!D1492=\"\",\"\",'Generated list'!D1492)","v":""}]
[null,{"$f":"IF('Generated list'!B1493=\"\",\"\",'Generated list'!B1493)","v":""},{"$f":"IF('Generated list'!C1493=\"\",\"\",'Generated list'!C1493)","v":""},{"$f":"IF('Generated list'!D1493=\"\",\"\",'Generated list'!D1493)","v":""}]
[null,{"$f":"IF('Generated list'!B1494=\"\",\"\",'Generated list'!B1494)","v":""},{"$f":"IF('Generated list'!C1494=\"\",\"\",'Generated list'!C1494)","v":""},{"$f":"IF('Generated list'!D1494=\"\",\"\",'Generated list'!D1494)","v":""}]
[null,{"$f":"IF('Generated list'!B1495=\"\",\"\",'Generated list'!B1495)","v":""},{"$f":"IF('Generated list'!C1495=\"\",\"\",'Generated list'!C1495)","v":""},{"$f":"IF('Generated list'!D1495=\"\",\"\",'Generated list'!D1495)","v":""}]
[null,{"$f":"IF('Generated list'!B1496=\"\",\"\",'Generated list'!B1496)","v":""},{"$f":"IF('Generated list'!C1496=\"\",\"\",'Generated list'!C1496)","v":""},{"$f":"IF('Generated list'!D1496=\"\",\"\",'Generated list'!D1496)","v":""}]
[null,{"$f":"IF('Generated list'!B1497=\"\",\"\",'Generated list'!B1497)","v":""},{"$f":"IF('Generated list'!C1497=\"\",\"\",'Generated list'!C1497)","v":""},{"$f":"IF('Generated list'!D1497=\"\",\"\",'Generated list'!D1497)","v":""}]
[null,{"$f":"IF('Generated list'!B1498=\"\",\"\",'Generated list'!B1498)","v":""},{"$f":"IF('Generated list'!C1498=\"\",\"\",'Generated list'!C1498)","v":""},{"$f":"IF('Generated list'!D1498=\"\",\"\",'Generated list'!D1498)","v":""}]
[null,{"$f":"IF('Generated list'!B1499=\"\",\"\",'Generated list'!B1499)","v":""},{"$f":"IF('Generated list'!C1499=\"\",\"\",'Generated list'!C1499)","v":""},{"$f":"IF('Generated list'!D1499=\"\",\"\",'Generated list'!D1499)","v":""}]
[null,{"$f":"IF('Generated list'!B1500=\"\",\"\",'Generated list'!B1500)","v":""},{"$f":"IF('Generated list'!C1500=\"\",\"\",'Generated list'!C1500)","v":""},{"$f":"IF('Generated list'!D1500=\"\",\"\",'Generated list'!D1500)","v":""}]
[null,{"$f":"IF('Generated list'!B1501=\"\",\"\",'Generated list'!B1501)","v":""},{"$f":"IF('Generated list'!C1501=\"\",\"\",'Generated list'!C1501)","v":""},{"$f":"IF('Generated list'!D1501=\"\",\"\",'Generated list'!D1501)","v":""}]
[null,{"$f":"IF('Generated list'!B1502=\"\",\"\",'Generated list'!B1502)","v":""},{"$f":"IF('Generated list'!C1502=\"\",\"\",'Generated list'!C1502)","v":""},{"$f":"IF('Generated list'!D1502=\"\",\"\",'Generated list'!D1502)","v":""}]
[null,{"$f":"IF('Generated list'!B1503=\"\",\"\",'Generated list'!B1503)","v":""},{"$f":"IF('Generated list'!C1503=\"\",\"\",'Generated list'!C1503)","v":""},{"$f":"IF('Generated list'!D1503=\"\",\"\",'Generated list'!D1503)","v":""}]
[null,{"$f":"IF('Generated list'!B1504=\"\",\"\",'Generated list'!B1504)","v":""},{"$f":"IF('Generated list'!C1504=\"\",\"\",'Generated list'!C1504)","v":""},{"$f":"IF('Generated list'!D1504=\"\",\"\",'Generated list'!D1504)","v":""}]
[null,{"$f":"IF('Generated list'!B1505=\"\",\"\",'Generated list'!B1505)","v":""},{"$f":"IF('Generated list'!C1505=\"\",\"\",'Generated list'!C1505)","v":""},{"$f":"IF('Generated list'!D1505=\"\",\"\",'Generated list'!D1505)","v":""}]
[null,{"$f":"IF('Generated list'!B1506=\"\",\"\",'Generated list'!B1506)","v":""},{"$f":"IF('Generated list'!C1506=\"\",\"\",'Generated list'!C1506)","v":""},{"$f":"IF('Generated list'!D1506=\"\",\"\",'Generated list'!D1506)","v":""}]
[null,{"$f":"IF('Generated list'!B1507=\"\",\"\",'Generated list'!B1507)","v":""},{"$f":"IF('Generated list'!C1507=\"\",\"\",'Generated list'!C1507)","v":""},{"$f":"IF('Generated list'!D1507=\"\",\"\",'Generated list'!D1507)","v":""}]
[null,{"$f":"IF('Generated list'!B1508=\"\",\"\",'Generated list'!B1508)","v":""},{"$f":"IF('Generated list'!C1508=\"\",\"\",'Generated list'!C1508)","v":""},{"$f":"IF('Generated list'!D1508=\"\",\"\",'Generated list'!D1508)","v":""}]
[null,{"$f":"IF('Generated list'!B1509=\"\",\"\",'Generated list'!B1509)","v":""},{"$f":"IF('Generated list'!C1509=\"\",\"\",'Generated list'!C1509)","v":""},{"$f":"IF('Generated list'!D1509=\"\",\"\",'Generated list'!D1509)","v":""}]
[null,{"$f":"IF('Generated list'!B1510=\"\",\"\",'Generated list'!B1510)","v":""},{"$f":"IF('Generated list'!C1510=\"\",\"\",'Generated list'!C1510)","v":""},{"$f":"IF('Generated list'!D1510=\"\",\"\",'Generated list'!D1510)","v":""}]
[null,{"$f":"IF('Generated list'!B1511=\"\",\"\",'Generated list'!B1511)","v":""},{"$f":"IF('Generated list'!C1511=\"\",\"\",'Generated list'!C1511)","v":""},{"$f":"IF('Generated list'!D1511=\"\",\"\",'Generated list'!D1511)","v":""}]
[null,{"$f":"IF('Generated list'!B1512=\"\",\"\",'Generated list'!B1512)","v":""},{"$f":"IF('Generated list'!C1512=\"\",\"\",'Generated list'!C1512)","v":""},{"$f":"IF('Generated list'!D1512=\"\",\"\",'Generated list'!D1512)","v":""}]
[null,{"$f":"IF('Generated list'!B1513=\"\",\"\",'Generated list'!B1513)","v":""},{"$f":"IF('Generated list'!C1513=\"\",\"\",'Generated list'!C1513)","v":""},{"$f":"IF('Generated list'!D1513=\"\",\"\",'Generated list'!D1513)","v":""}]
[null,{"$f":"IF('Generated list'!B1514=\"\",\"\",'Generated list'!B1514)","v":""},{"$f":"IF('Generated list'!C1514=\"\",\"\",'Generated list'!C1514)","v":""},{"$f":"IF('Generated list'!D1514=\"\",\"\",'Generated list'!D1514)","v":""}]
[null,{"$f":"IF('Generated list'!B1515=\"\",\"\",'Generated list'!B1515)","v":""},{"$f":"IF('Generated list'!C1515=\"\",\"\",'Generated list'!C1515)","v":""},{"$f":"IF('Generated list'!D1515=\"\",\"\",'Generated list'!D1515)","v":""}]
[null,{"$f":"IF('Generated list'!B1516=\"\",\"\",'Generated list'!B1516)","v":""},{"$f":"IF('Generated list'!C1516=\"\",\"\",'Generated list'!C1516)","v":""},{"$f":"IF('Generated list'!D1516=\"\",\"\",'Generated list'!D1516)","v":""}]
[null,{"$f":"IF('Generated list'!B1517=\"\",\"\",'Generated list'!B1517)","v":""},{"$f":"IF('Generated list'!C1517=\"\",\"\",'Generated list'!C1517)","v":""},{"$f":"IF('Generated list'!D1517=\"\",\"\",'Generated list'!D1517)","v":""}]
[null,{"$f":"IF('Generated list'!B1518=\"\",\"\",'Generated list'!B1518)","v":""},{"$f":"IF('Generated list'!C1518=\"\",\"\",'Generated list'!C1518)","v":""},{"$f":"IF('Generated list'!D1518=\"\",\"\",'Generated list'!D1518)","v":""}]
[null,{"$f":"IF('Generated list'!B1519=\"\",\"\",'Generated list'!B1519)","v":""},{"$f":"IF('Generated list'!C1519=\"\",\"\",'Generated list'!C1519)","v":""},{"$f":"IF('Generated list'!D1519=\"\",\"\",'Generated list'!D1519)","v":""}]
[null,{"$f":"IF('Generated list'!B1520=\"\",\"\",'Generated list'!B1520)","v":""},{"$f":"IF('Generated list'!C1520=\"\",\"\",'Generated list'!C1520)","v":""},{"$f":"IF('Generated list'!D1520=\"\",\"\",'Generated list'!D1520)","v":""}]
[null,{"$f":"IF('Generated list'!B1521=\"\",\"\",'Generated list'!B1521)","v":""},{"$f":"IF('Generated list'!C1521=\"\",\"\",'Generated list'!C1521)","v":""},{"$f":"IF('Generated list'!D1521=\"\",\"\",'Generated list'!D1521)","v":""}]
[null,{"$f":"IF('Generated list'!B1522=\"\",\"\",'Generated list'!B1522)","v":""},{"$f":"IF('Generated list'!C1522=\"\",\"\",'Generated list'!C1522)","v":""},{"$f":"IF('Generated list'!D1522=\"\",\"\",'Generated list'!D1522)","v":""}]
[null,{"$f":"IF('Generated list'!B1523=\"\",\"\",'Generated list'!B1523)","v":""},{"$f":"IF('Generated list'!C1523=\"\",\"\",'Generated list'!C1523)","v":""},{"$f":"IF('Generated list'!D1523=\"\",\"\",'Generated list'!D1523)","v":""}]
[null,{"$f":"IF('Generated list'!B1524=\"\",\"\",'Generated list'!B1524)","v":""},{"$f":"IF('Generated list'!C1524=\"\",\"\",'Generated list'!C1524)","v":""},{"$f":"IF('Generated list'!D1524=\"\",\"\",'Generated list'!D1524)","v":""}]
[null,{"$f":"IF('Generated list'!B1525=\"\",\"\",'Generated list'!B1525)","v":""},{"$f":"IF('Generated list'!C1525=\"\",\"\",'Generated list'!C1525)","v":""},{"$f":"IF('Generated list'!D1525=\"\",\"\",'Generated list'!D1525)","v":""}]
[null,{"$f":"IF('Generated list'!B1526=\"\",\"\",'Generated list'!B1526)","v":""},{"$f":"IF('Generated list'!C1526=\"\",\"\",'Generated list'!C1526)","v":""},{"$f":"IF('Generated list'!D1526=\"\",\"\",'Generated list'!D1526)","v":""}]
[null,{"$f":"IF('Generated list'!B1527=\"\",\"\",'Generated list'!B1527)","v":""},{"$f":"IF('Generated list'!C1527=\"\",\"\",'Generated list'!C1527)","v":""},{"$f":"IF('Generated list'!D1527=\"\",\"\",'Generated list'!D1527)","v":""}]
[null,{"$f":"IF('Generated list'!B1528=\"\",\"\",'Generated list'!B1528)","v":""},{"$f":"IF('Generated list'!C1528=\"\",\"\",'Generated list'!C1528)","v":""},{"$f":"IF('Generated list'!D1528=\"\",\"\",'Generated list'!D1528)","v":""}]
[null,{"$f":"IF('Generated list'!B1529=\"\",\"\",'Generated list'!B1529)","v":""},{"$f":"IF('Generated list'!C1529=\"\",\"\",'Generated list'!C1529)","v":""},{"$f":"IF('Generated list'!D1529=\"\",\"\",'Generated list'!D1529)","v":""}]
[null,{"$f":"IF('Generated list'!B1530=\"\",\"\",'Generated list'!B1530)","v":""},{"$f":"IF('Generated list'!C1530=\"\",\"\",'Generated list'!C1530)","v":""},{"$f":"IF('Generated list'!D1530=\"\",\"\",'Generated list'!D1530)","v":""}]
[null,{"$f":"IF('Generated list'!B1531=\"\",\"\",'Generated list'!B1531)","v":""},{"$f":"IF('Generated list'!C1531=\"\",\"\",'Generated list'!C1531)","v":""},{"$f":"IF('Generated list'!D1531=\"\",\"\",'Generated list'!D1531)","v":""}]
[null,{"$f":"IF('Generated list'!B1532=\"\",\"\",'Generated list'!B1532)","v":""},{"$f":"IF('Generated list'!C1532=\"\",\"\",'Generated list'!C1532)","v":""},{"$f":"IF('Generated list'!D1532=\"\",\"\",'Generated list'!D1532)","v":""}]
[null,{"$f":"IF('Generated list'!B1533=\"\",\"\",'Generated list'!B1533)","v":""},{"$f":"IF('Generated list'!C1533=\"\",\"\",'Generated list'!C1533)","v":""},{"$f":"IF('Generated list'!D1533=\"\",\"\",'Generated list'!D1533)","v":""}]
[null,{"$f":"IF('Generated list'!B1534=\"\",\"\",'Generated list'!B1534)","v":""},{"$f":"IF('Generated list'!C1534=\"\",\"\",'Generated list'!C1534)","v":""},{"$f":"IF('Generated list'!D1534=\"\",\"\",'Generated list'!D1534)","v":""}]
[null,{"$f":"IF('Generated list'!B1535=\"\",\"\",'Generated list'!B1535)","v":""},{"$f":"IF('Generated list'!C1535=\"\",\"\",'Generated list'!C1535)","v":""},{"$f":"IF('Generated list'!D1535=\"\",\"\",'Generated list'!D1535)","v":""}]
[null,{"$f":"IF('Generated list'!B1536=\"\",\"\",'Generated list'!B1536)","v":""},{"$f":"IF('Generated list'!C1536=\"\",\"\",'Generated list'!C1536)","v":""},{"$f":"IF('Generated list'!D1536=\"\",\"\",'Generated list'!D1536)","v":""}]
[null,{"$f":"IF('Generated list'!B1537=\"\",\"\",'Generated list'!B1537)","v":""},{"$f":"IF('Generated list'!C1537=\"\",\"\",'Generated list'!C1537)","v":""},{"$f":"IF('Generated list'!D1537=\"\",\"\",'Generated list'!D1537)","v":""}]
[null,{"$f":"IF('Generated list'!B1538=\"\",\"\",'Generated list'!B1538)","v":""},{"$f":"IF('Generated list'!C1538=\"\",\"\",'Generated list'!C1538)","v":""},{"$f":"IF('Generated list'!D1538=\"\",\"\",'Generated list'!D1538)","v":""}]
[null,{"$f":"IF('Generated list'!B1539=\"\",\"\",'Generated list'!B1539)","v":""},{"$f":"IF('Generated list'!C1539=\"\",\"\",'Generated list'!C1539)","v":""},{"$f":"IF('Generated list'!D1539=\"\",\"\",'Generated list'!D1539)","v":""}]
[null,{"$f":"IF('Generated list'!B1540=\"\",\"\",'Generated list'!B1540)","v":""},{"$f":"IF('Generated list'!C1540=\"\",\"\",'Generated list'!C1540)","v":""},{"$f":"IF('Generated list'!D1540=\"\",\"\",'Generated list'!D1540)","v":""}]
[null,{"$f":"IF('Generated list'!B1541=\"\",\"\",'Generated list'!B1541)","v":""},{"$f":"IF('Generated list'!C1541=\"\",\"\",'Generated list'!C1541)","v":""},{"$f":"IF('Generated list'!D1541=\"\",\"\",'Generated list'!D1541)","v":""}]
[null,{"$f":"IF('Generated list'!B1542=\"\",\"\",'Generated list'!B1542)","v":""},{"$f":"IF('Generated list'!C1542=\"\",\"\",'Generated list'!C1542)","v":""},{"$f":"IF('Generated list'!D1542=\"\",\"\",'Generated list'!D1542)","v":""}]
[null,{"$f":"IF('Generated list'!B1543=\"\",\"\",'Generated list'!B1543)","v":""},{"$f":"IF('Generated list'!C1543=\"\",\"\",'Generated list'!C1543)","v":""},{"$f":"IF('Generated list'!D1543=\"\",\"\",'Generated list'!D1543)","v":""}]
[null,{"$f":"IF('Generated list'!B1544=\"\",\"\",'Generated list'!B1544)","v":""},{"$f":"IF('Generated list'!C1544=\"\",\"\",'Generated list'!C1544)","v":""},{"$f":"IF('Generated list'!D1544=\"\",\"\",'Generated list'!D1544)","v":""}]
[null,{"$f":"IF('Generated list'!B1545=\"\",\"\",'Generated list'!B1545)","v":""},{"$f":"IF('Generated list'!C1545=\"\",\"\",'Generated list'!C1545)","v":""},{"$f":"IF('Generated list'!D1545=\"\",\"\",'Generated list'!D1545)","v":""}]
[null,{"$f":"IF('Generated list'!B1546=\"\",\"\",'Generated list'!B1546)","v":""},{"$f":"IF('Generated list'!C1546=\"\",\"\",'Generated list'!C1546)","v":""},{"$f":"IF('Generated list'!D1546=\"\",\"\",'Generated list'!D1546)","v":""}]
[null,{"$f":"IF('Generated list'!B1547=\"\",\"\",'Generated list'!B1547)","v":""},{"$f":"IF('Generated list'!C1547=\"\",\"\",'Generated list'!C1547)","v":""},{"$f":"IF('Generated list'!D1547=\"\",\"\",'Generated list'!D1547)","v":""}]
[null,{"$f":"IF('Generated list'!B1548=\"\",\"\",'Generated list'!B1548)","v":""},{"$f":"IF('Generated list'!C1548=\"\",\"\",'Generated list'!C1548)","v":""},{"$f":"IF('Generated list'!D1548=\"\",\"\",'Generated list'!D1548)","v":""}]
[null,{"$f":"IF('Generated list'!B1549=\"\",\"\",'Generated list'!B1549)","v":""},{"$f":"IF('Generated list'!C1549=\"\",\"\",'Generated list'!C1549)","v":""},{"$f":"IF('Generated list'!D1549=\"\",\"\",'Generated list'!D1549)","v":""}]
[null,{"$f":"IF('Generated list'!B1550=\"\",\"\",'Generated list'!B1550)","v":""},{"$f":"IF('Generated list'!C1550=\"\",\"\",'Generated list'!C1550)","v":""},{"$f":"IF('Generated list'!D1550=\"\",\"\",'Generated list'!D1550)","v":""}]
[null,{"$f":"IF('Generated list'!B1551=\"\",\"\",'Generated list'!B1551)","v":""},{"$f":"IF('Generated list'!C1551=\"\",\"\",'Generated list'!C1551)","v":""},{"$f":"IF('Generated list'!D1551=\"\",\"\",'Generated list'!D1551)","v":""}]
[null,{"$f":"IF('Generated list'!B1552=\"\",\"\",'Generated list'!B1552)","v":""},{"$f":"IF('Generated list'!C1552=\"\",\"\",'Generated list'!C1552)","v":""},{"$f":"IF('Generated list'!D1552=\"\",\"\",'Generated list'!D1552)","v":""}]
[null,{"$f":"IF('Generated list'!B1553=\"\",\"\",'Generated list'!B1553)","v":""},{"$f":"IF('Generated list'!C1553=\"\",\"\",'Generated list'!C1553)","v":""},{"$f":"IF('Generated list'!D1553=\"\",\"\",'Generated list'!D1553)","v":""}]
[null,{"$f":"IF('Generated list'!B1554=\"\",\"\",'Generated list'!B1554)","v":""},{"$f":"IF('Generated list'!C1554=\"\",\"\",'Generated list'!C1554)","v":""},{"$f":"IF('Generated list'!D1554=\"\",\"\",'Generated list'!D1554)","v":""}]
[null,{"$f":"IF('Generated list'!B1555=\"\",\"\",'Generated list'!B1555)","v":""},{"$f":"IF('Generated list'!C1555=\"\",\"\",'Generated list'!C1555)","v":""},{"$f":"IF('Generated list'!D1555=\"\",\"\",'Generated list'!D1555)","v":""}]
[null,{"$f":"IF('Generated list'!B1556=\"\",\"\",'Generated list'!B1556)","v":""},{"$f":"IF('Generated list'!C1556=\"\",\"\",'Generated list'!C1556)","v":""},{"$f":"IF('Generated list'!D1556=\"\",\"\",'Generated list'!D1556)","v":""}]
[null,{"$f":"IF('Generated list'!B1557=\"\",\"\",'Generated list'!B1557)","v":""},{"$f":"IF('Generated list'!C1557=\"\",\"\",'Generated list'!C1557)","v":""},{"$f":"IF('Generated list'!D1557=\"\",\"\",'Generated list'!D1557)","v":""}]
[null,{"$f":"IF('Generated list'!B1558=\"\",\"\",'Generated list'!B1558)","v":""},{"$f":"IF('Generated list'!C1558=\"\",\"\",'Generated list'!C1558)","v":""},{"$f":"IF('Generated list'!D1558=\"\",\"\",'Generated list'!D1558)","v":""}]
[null,{"$f":"IF('Generated list'!B1559=\"\",\"\",'Generated list'!B1559)","v":""},{"$f":"IF('Generated list'!C1559=\"\",\"\",'Generated list'!C1559)","v":""},{"$f":"IF('Generated list'!D1559=\"\",\"\",'Generated list'!D1559)","v":""}]
[null,{"$f":"IF('Generated list'!B1560=\"\",\"\",'Generated list'!B1560)","v":""},{"$f":"IF('Generated list'!C1560=\"\",\"\",'Generated list'!C1560)","v":""},{"$f":"IF('Generated list'!D1560=\"\",\"\",'Generated list'!D1560)","v":""}]
[null,{"$f":"IF('Generated list'!B1561=\"\",\"\",'Generated list'!B1561)","v":""},{"$f":"IF('Generated list'!C1561=\"\",\"\",'Generated list'!C1561)","v":""},{"$f":"IF('Generated list'!D1561=\"\",\"\",'Generated list'!D1561)","v":""}]
[null,{"$f":"IF('Generated list'!B1562=\"\",\"\",'Generated list'!B1562)","v":""},{"$f":"IF('Generated list'!C1562=\"\",\"\",'Generated list'!C1562)","v":""},{"$f":"IF('Generated list'!D1562=\"\",\"\",'Generated list'!D1562)","v":""}]
[null,{"$f":"IF('Generated list'!B1563=\"\",\"\",'Generated list'!B1563)","v":""},{"$f":"IF('Generated list'!C1563=\"\",\"\",'Generated list'!C1563)","v":""},{"$f":"IF('Generated list'!D1563=\"\",\"\",'Generated list'!D1563)","v":""}]
[null,{"$f":"IF('Generated list'!B1564=\"\",\"\",'Generated list'!B1564)","v":""},{"$f":"IF('Generated list'!C1564=\"\",\"\",'Generated list'!C1564)","v":""},{"$f":"IF('Generated list'!D1564=\"\",\"\",'Generated list'!D1564)","v":""}]
[null,{"$f":"IF('Generated list'!B1565=\"\",\"\",'Generated list'!B1565)","v":""},{"$f":"IF('Generated list'!C1565=\"\",\"\",'Generated list'!C1565)","v":""},{"$f":"IF('Generated list'!D1565=\"\",\"\",'Generated list'!D1565)","v":""}]
[null,{"$f":"IF('Generated list'!B1566=\"\",\"\",'Generated list'!B1566)","v":""},{"$f":"IF('Generated list'!C1566=\"\",\"\",'Generated list'!C1566)","v":""},{"$f":"IF('Generated list'!D1566=\"\",\"\",'Generated list'!D1566)","v":""}]
[null,{"$f":"IF('Generated list'!B1567=\"\",\"\",'Generated list'!B1567)","v":""},{"$f":"IF('Generated list'!C1567=\"\",\"\",'Generated list'!C1567)","v":""},{"$f":"IF('Generated list'!D1567=\"\",\"\",'Generated list'!D1567)","v":""}]
[null,{"$f":"IF('Generated list'!B1568=\"\",\"\",'Generated list'!B1568)","v":""},{"$f":"IF('Generated list'!C1568=\"\",\"\",'Generated list'!C1568)","v":""},{"$f":"IF('Generated list'!D1568=\"\",\"\",'Generated list'!D1568)","v":""}]
[null,{"$f":"IF('Generated list'!B1569=\"\",\"\",'Generated list'!B1569)","v":""},{"$f":"IF('Generated list'!C1569=\"\",\"\",'Generated list'!C1569)","v":""},{"$f":"IF('Generated list'!D1569=\"\",\"\",'Generated list'!D1569)","v":""}]
[null,{"$f":"IF('Generated list'!B1570=\"\",\"\",'Generated list'!B1570)","v":""},{"$f":"IF('Generated list'!C1570=\"\",\"\",'Generated list'!C1570)","v":""},{"$f":"IF('Generated list'!D1570=\"\",\"\",'Generated list'!D1570)","v":""}]
[null,{"$f":"IF('Generated list'!B1571=\"\",\"\",'Generated list'!B1571)","v":""},{"$f":"IF('Generated list'!C1571=\"\",\"\",'Generated list'!C1571)","v":""},{"$f":"IF('Generated list'!D1571=\"\",\"\",'Generated list'!D1571)","v":""}]
[null,{"$f":"IF('Generated list'!B1572=\"\",\"\",'Generated list'!B1572)","v":""},{"$f":"IF('Generated list'!C1572=\"\",\"\",'Generated list'!C1572)","v":""},{"$f":"IF('Generated list'!D1572=\"\",\"\",'Generated list'!D1572)","v":""}]
[null,{"$f":"IF('Generated list'!B1573=\"\",\"\",'Generated list'!B1573)","v":""},{"$f":"IF('Generated list'!C1573=\"\",\"\",'Generated list'!C1573)","v":""},{"$f":"IF('Generated list'!D1573=\"\",\"\",'Generated list'!D1573)","v":""}]
[null,{"$f":"IF('Generated list'!B1574=\"\",\"\",'Generated list'!B1574)","v":""},{"$f":"IF('Generated list'!C1574=\"\",\"\",'Generated list'!C1574)","v":""},{"$f":"IF('Generated list'!D1574=\"\",\"\",'Generated list'!D1574)","v":""}]
[null,{"$f":"IF('Generated list'!B1575=\"\",\"\",'Generated list'!B1575)","v":""},{"$f":"IF('Generated list'!C1575=\"\",\"\",'Generated list'!C1575)","v":""},{"$f":"IF('Generated list'!D1575=\"\",\"\",'Generated list'!D1575)","v":""}]
[null,{"$f":"IF('Generated list'!B1576=\"\",\"\",'Generated list'!B1576)","v":""},{"$f":"IF('Generated list'!C1576=\"\",\"\",'Generated list'!C1576)","v":""},{"$f":"IF('Generated list'!D1576=\"\",\"\",'Generated list'!D1576)","v":""}]
[null,{"$f":"IF('Generated list'!B1577=\"\",\"\",'Generated list'!B1577)","v":""},{"$f":"IF('Generated list'!C1577=\"\",\"\",'Generated list'!C1577)","v":""},{"$f":"IF('Generated list'!D1577=\"\",\"\",'Generated list'!D1577)","v":""}]
[null,{"$f":"IF('Generated list'!B1578=\"\",\"\",'Generated list'!B1578)","v":""},{"$f":"IF('Generated list'!C1578=\"\",\"\",'Generated list'!C1578)","v":""},{"$f":"IF('Generated list'!D1578=\"\",\"\",'Generated list'!D1578)","v":""}]
[null,{"$f":"IF('Generated list'!B1579=\"\",\"\",'Generated list'!B1579)","v":""},{"$f":"IF('Generated list'!C1579=\"\",\"\",'Generated list'!C1579)","v":""},{"$f":"IF('Generated list'!D1579=\"\",\"\",'Generated list'!D1579)","v":""}]
[null,{"$f":"IF('Generated list'!B1580=\"\",\"\",'Generated list'!B1580)","v":""},{"$f":"IF('Generated list'!C1580=\"\",\"\",'Generated list'!C1580)","v":""},{"$f":"IF('Generated list'!D1580=\"\",\"\",'Generated list'!D1580)","v":""}]
[null,{"$f":"IF('Generated list'!B1581=\"\",\"\",'Generated list'!B1581)","v":""},{"$f":"IF('Generated list'!C1581=\"\",\"\",'Generated list'!C1581)","v":""},{"$f":"IF('Generated list'!D1581=\"\",\"\",'Generated list'!D1581)","v":""}]
[null,{"$f":"IF('Generated list'!B1582=\"\",\"\",'Generated list'!B1582)","v":""},{"$f":"IF('Generated list'!C1582=\"\",\"\",'Generated list'!C1582)","v":""},{"$f":"IF('Generated list'!D1582=\"\",\"\",'Generated list'!D1582)","v":""}]
[null,{"$f":"IF('Generated list'!B1583=\"\",\"\",'Generated list'!B1583)","v":""},{"$f":"IF('Generated list'!C1583=\"\",\"\",'Generated list'!C1583)","v":""},{"$f":"IF('Generated list'!D1583=\"\",\"\",'Generated list'!D1583)","v":""}]
[null,{"$f":"IF('Generated list'!B1584=\"\",\"\",'Generated list'!B1584)","v":""},{"$f":"IF('Generated list'!C1584=\"\",\"\",'Generated list'!C1584)","v":""},{"$f":"IF('Generated list'!D1584=\"\",\"\",'Generated list'!D1584)","v":""}]
[null,{"$f":"IF('Generated list'!B1585=\"\",\"\",'Generated list'!B1585)","v":""},{"$f":"IF('Generated list'!C1585=\"\",\"\",'Generated list'!C1585)","v":""},{"$f":"IF('Generated list'!D1585=\"\",\"\",'Generated list'!D1585)","v":""}]
[null,{"$f":"IF('Generated list'!B1586=\"\",\"\",'Generated list'!B1586)","v":""},{"$f":"IF('Generated list'!C1586=\"\",\"\",'Generated list'!C1586)","v":""},{"$f":"IF('Generated list'!D1586=\"\",\"\",'Generated list'!D1586)","v":""}]
[null,{"$f":"IF('Generated list'!B1587=\"\",\"\",'Generated list'!B1587)","v":""},{"$f":"IF('Generated list'!C1587=\"\",\"\",'Generated list'!C1587)","v":""},{"$f":"IF('Generated list'!D1587=\"\",\"\",'Generated list'!D1587)","v":""}]
[null,{"$f":"IF('Generated list'!B1588=\"\",\"\",'Generated list'!B1588)","v":""},{"$f":"IF('Generated list'!C1588=\"\",\"\",'Generated list'!C1588)","v":""},{"$f":"IF('Generated list'!D1588=\"\",\"\",'Generated list'!D1588)","v":""}]
[null,{"$f":"IF('Generated list'!B1589=\"\",\"\",'Generated list'!B1589)","v":""},{"$f":"IF('Generated list'!C1589=\"\",\"\",'Generated list'!C1589)","v":""},{"$f":"IF('Generated list'!D1589=\"\",\"\",'Generated list'!D1589)","v":""}]
[null,{"$f":"IF('Generated list'!B1590=\"\",\"\",'Generated list'!B1590)","v":""},{"$f":"IF('Generated list'!C1590=\"\",\"\",'Generated list'!C1590)","v":""},{"$f":"IF('Generated list'!D1590=\"\",\"\",'Generated list'!D1590)","v":""}]
[null,{"$f":"IF('Generated list'!B1591=\"\",\"\",'Generated list'!B1591)","v":""},{"$f":"IF('Generated list'!C1591=\"\",\"\",'Generated list'!C1591)","v":""},{"$f":"IF('Generated list'!D1591=\"\",\"\",'Generated list'!D1591)","v":""}]
[null,{"$f":"IF('Generated list'!B1592=\"\",\"\",'Generated list'!B1592)","v":""},{"$f":"IF('Generated list'!C1592=\"\",\"\",'Generated list'!C1592)","v":""},{"$f":"IF('Generated list'!D1592=\"\",\"\",'Generated list'!D1592)","v":""}]
[null,{"$f":"IF('Generated list'!B1593=\"\",\"\",'Generated list'!B1593)","v":""},{"$f":"IF('Generated list'!C1593=\"\",\"\",'Generated list'!C1593)","v":""},{"$f":"IF('Generated list'!D1593=\"\",\"\",'Generated list'!D1593)","v":""}]
[null,{"$f":"IF('Generated list'!B1594=\"\",\"\",'Generated list'!B1594)","v":""},{"$f":"IF('Generated list'!C1594=\"\",\"\",'Generated list'!C1594)","v":""},{"$f":"IF('Generated list'!D1594=\"\",\"\",'Generated list'!D1594)","v":""}]
[null,{"$f":"IF('Generated list'!B1595=\"\",\"\",'Generated list'!B1595)","v":""},{"$f":"IF('Generated list'!C1595=\"\",\"\",'Generated list'!C1595)","v":""},{"$f":"IF('Generated list'!D1595=\"\",\"\",'Generated list'!D1595)","v":""}]
[null,{"$f":"IF('Generated list'!B1596=\"\",\"\",'Generated list'!B1596)","v":""},{"$f":"IF('Generated list'!C1596=\"\",\"\",'Generated list'!C1596)","v":""},{"$f":"IF('Generated list'!D1596=\"\",\"\",'Generated list'!D1596)","v":""}]
[null,{"$f":"IF('Generated list'!B1597=\"\",\"\",'Generated list'!B1597)","v":""},{"$f":"IF('Generated list'!C1597=\"\",\"\",'Generated list'!C1597)","v":""},{"$f":"IF('Generated list'!D1597=\"\",\"\",'Generated list'!D1597)","v":""}]
[null,{"$f":"IF('Generated list'!B1598=\"\",\"\",'Generated list'!B1598)","v":""},{"$f":"IF('Generated list'!C1598=\"\",\"\",'Generated list'!C1598)","v":""},{"$f":"IF('Generated list'!D1598=\"\",\"\",'Generated list'!D1598)","v":""}]
[null,{"$f":"IF('Generated list'!B1599=\"\",\"\",'Generated list'!B1599)","v":""},{"$f":"IF('Generated list'!C1599=\"\",\"\",'Generated list'!C1599)","v":""},{"$f":"IF('Generated list'!D1599=\"\",\"\",'Generated list'!D1599)","v":""}]
[null,{"$f":"IF('Generated list'!B1600=\"\",\"\",'Generated list'!B1600)","v":""},{"$f":"IF('Generated list'!C1600=\"\",\"\",'Generated list'!C1600)","v":""},{"$f":"IF('Generated list'!D1600=\"\",\"\",'Generated list'!D1600)","v":""}]
[null,{"$f":"IF('Generated list'!B1601=\"\",\"\",'Generated list'!B1601)","v":""},{"$f":"IF('Generated list'!C1601=\"\",\"\",'Generated list'!C1601)","v":""},{"$f":"IF('Generated list'!D1601=\"\",\"\",'Generated list'!D1601)","v":""}]
[null,{"$f":"IF('Generated list'!B1602=\"\",\"\",'Generated list'!B1602)","v":""},{"$f":"IF('Generated list'!C1602=\"\",\"\",'Generated list'!C1602)","v":""},{"$f":"IF('Generated list'!D1602=\"\",\"\",'Generated list'!D1602)","v":""}]
[null,{"$f":"IF('Generated list'!B1603=\"\",\"\",'Generated list'!B1603)","v":""},{"$f":"IF('Generated list'!C1603=\"\",\"\",'Generated list'!C1603)","v":""},{"$f":"IF('Generated list'!D1603=\"\",\"\",'Generated list'!D1603)","v":""}]
[null,{"$f":"IF('Generated list'!B1604=\"\",\"\",'Generated list'!B1604)","v":""},{"$f":"IF('Generated list'!C1604=\"\",\"\",'Generated list'!C1604)","v":""},{"$f":"IF('Generated list'!D1604=\"\",\"\",'Generated list'!D1604)","v":""}]
[null,{"$f":"IF('Generated list'!B1605=\"\",\"\",'Generated list'!B1605)","v":""},{"$f":"IF('Generated list'!C1605=\"\",\"\",'Generated list'!C1605)","v":""},{"$f":"IF('Generated list'!D1605=\"\",\"\",'Generated list'!D1605)","v":""}]
[null,{"$f":"IF('Generated list'!B1606=\"\",\"\",'Generated list'!B1606)","v":""},{"$f":"IF('Generated list'!C1606=\"\",\"\",'Generated list'!C1606)","v":""},{"$f":"IF('Generated list'!D1606=\"\",\"\",'Generated list'!D1606)","v":""}]
[null,{"$f":"IF('Generated list'!B1607=\"\",\"\",'Generated list'!B1607)","v":""},{"$f":"IF('Generated list'!C1607=\"\",\"\",'Generated list'!C1607)","v":""},{"$f":"IF('Generated list'!D1607=\"\",\"\",'Generated list'!D1607)","v":""}]
[null,{"$f":"IF('Generated list'!B1608=\"\",\"\",'Generated list'!B1608)","v":""},{"$f":"IF('Generated list'!C1608=\"\",\"\",'Generated list'!C1608)","v":""},{"$f":"IF('Generated list'!D1608=\"\",\"\",'Generated list'!D1608)","v":""}]
[null,{"$f":"IF('Generated list'!B1609=\"\",\"\",'Generated list'!B1609)","v":""},{"$f":"IF('Generated list'!C1609=\"\",\"\",'Generated list'!C1609)","v":""},{"$f":"IF('Generated list'!D1609=\"\",\"\",'Generated list'!D1609)","v":""}]
[null,{"$f":"IF('Generated list'!B1610=\"\",\"\",'Generated list'!B1610)","v":""},{"$f":"IF('Generated list'!C1610=\"\",\"\",'Generated list'!C1610)","v":""},{"$f":"IF('Generated list'!D1610=\"\",\"\",'Generated list'!D1610)","v":""}]
[null,{"$f":"IF('Generated list'!B1611=\"\",\"\",'Generated list'!B1611)","v":""},{"$f":"IF('Generated list'!C1611=\"\",\"\",'Generated list'!C1611)","v":""},{"$f":"IF('Generated list'!D1611=\"\",\"\",'Generated list'!D1611)","v":""}]
[null,{"$f":"IF('Generated list'!B1612=\"\",\"\",'Generated list'!B1612)","v":""},{"$f":"IF('Generated list'!C1612=\"\",\"\",'Generated list'!C1612)","v":""},{"$f":"IF('Generated list'!D1612=\"\",\"\",'Generated list'!D1612)","v":""}]
[null,{"$f":"IF('Generated list'!B1613=\"\",\"\",'Generated list'!B1613)","v":""},{"$f":"IF('Generated list'!C1613=\"\",\"\",'Generated list'!C1613)","v":""},{"$f":"IF('Generated list'!D1613=\"\",\"\",'Generated list'!D1613)","v":""}]
[null,{"$f":"IF('Generated list'!B1614=\"\",\"\",'Generated list'!B1614)","v":""},{"$f":"IF('Generated list'!C1614=\"\",\"\",'Generated list'!C1614)","v":""},{"$f":"IF('Generated list'!D1614=\"\",\"\",'Generated list'!D1614)","v":""}]
[null,{"$f":"IF('Generated list'!B1615=\"\",\"\",'Generated list'!B1615)","v":""},{"$f":"IF('Generated list'!C1615=\"\",\"\",'Generated list'!C1615)","v":""},{"$f":"IF('Generated list'!D1615=\"\",\"\",'Generated list'!D1615)","v":""}]
[null,{"$f":"IF('Generated list'!B1616=\"\",\"\",'Generated list'!B1616)","v":""},{"$f":"IF('Generated list'!C1616=\"\",\"\",'Generated list'!C1616)","v":""},{"$f":"IF('Generated list'!D1616=\"\",\"\",'Generated list'!D1616)","v":""}]
[null,{"$f":"IF('Generated list'!B1617=\"\",\"\",'Generated list'!B1617)","v":""},{"$f":"IF('Generated list'!C1617=\"\",\"\",'Generated list'!C1617)","v":""},{"$f":"IF('Generated list'!D1617=\"\",\"\",'Generated list'!D1617)","v":""}]
[null,{"$f":"IF('Generated list'!B1618=\"\",\"\",'Generated list'!B1618)","v":""},{"$f":"IF('Generated list'!C1618=\"\",\"\",'Generated list'!C1618)","v":""},{"$f":"IF('Generated list'!D1618=\"\",\"\",'Generated list'!D1618)","v":""}]
[null,{"$f":"IF('Generated list'!B1619=\"\",\"\",'Generated list'!B1619)","v":""},{"$f":"IF('Generated list'!C1619=\"\",\"\",'Generated list'!C1619)","v":""},{"$f":"IF('Generated list'!D1619=\"\",\"\",'Generated list'!D1619)","v":""}]
[null,{"$f":"IF('Generated list'!B1620=\"\",\"\",'Generated list'!B1620)","v":""},{"$f":"IF('Generated list'!C1620=\"\",\"\",'Generated list'!C1620)","v":""},{"$f":"IF('Generated list'!D1620=\"\",\"\",'Generated list'!D1620)","v":""}]
[null,{"$f":"IF('Generated list'!B1621=\"\",\"\",'Generated list'!B1621)","v":""},{"$f":"IF('Generated list'!C1621=\"\",\"\",'Generated list'!C1621)","v":""},{"$f":"IF('Generated list'!D1621=\"\",\"\",'Generated list'!D1621)","v":""}]
[null,{"$f":"IF('Generated list'!B1622=\"\",\"\",'Generated list'!B1622)","v":""},{"$f":"IF('Generated list'!C1622=\"\",\"\",'Generated list'!C1622)","v":""},{"$f":"IF('Generated list'!D1622=\"\",\"\",'Generated list'!D1622)","v":""}]
[null,{"$f":"IF('Generated list'!B1623=\"\",\"\",'Generated list'!B1623)","v":""},{"$f":"IF('Generated list'!C1623=\"\",\"\",'Generated list'!C1623)","v":""},{"$f":"IF('Generated list'!D1623=\"\",\"\",'Generated list'!D1623)","v":""}]
[null,{"$f":"IF('Generated list'!B1624=\"\",\"\",'Generated list'!B1624)","v":""},{"$f":"IF('Generated list'!C1624=\"\",\"\",'Generated list'!C1624)","v":""},{"$f":"IF('Generated list'!D1624=\"\",\"\",'Generated list'!D1624)","v":""}]
[null,{"$f":"IF('Generated list'!B1625=\"\",\"\",'Generated list'!B1625)","v":""},{"$f":"IF('Generated list'!C1625=\"\",\"\",'Generated list'!C1625)","v":""},{"$f":"IF('Generated list'!D1625=\"\",\"\",'Generated list'!D1625)","v":""}]
[null,{"$f":"IF('Generated list'!B1626=\"\",\"\",'Generated list'!B1626)","v":""},{"$f":"IF('Generated list'!C1626=\"\",\"\",'Generated list'!C1626)","v":""},{"$f":"IF('Generated list'!D1626=\"\",\"\",'Generated list'!D1626)","v":""}]
[null,{"$f":"IF('Generated list'!B1627=\"\",\"\",'Generated list'!B1627)","v":""},{"$f":"IF('Generated list'!C1627=\"\",\"\",'Generated list'!C1627)","v":""},{"$f":"IF('Generated list'!D1627=\"\",\"\",'Generated list'!D1627)","v":""}]
[null,{"$f":"IF('Generated list'!B1628=\"\",\"\",'Generated list'!B1628)","v":""},{"$f":"IF('Generated list'!C1628=\"\",\"\",'Generated list'!C1628)","v":""},{"$f":"IF('Generated list'!D1628=\"\",\"\",'Generated list'!D1628)","v":""}]
[null,{"$f":"IF('Generated list'!B1629=\"\",\"\",'Generated list'!B1629)","v":""},{"$f":"IF('Generated list'!C1629=\"\",\"\",'Generated list'!C1629)","v":""},{"$f":"IF('Generated list'!D1629=\"\",\"\",'Generated list'!D1629)","v":""}]
[null,{"$f":"IF('Generated list'!B1630=\"\",\"\",'Generated list'!B1630)","v":""},{"$f":"IF('Generated list'!C1630=\"\",\"\",'Generated list'!C1630)","v":""},{"$f":"IF('Generated list'!D1630=\"\",\"\",'Generated list'!D1630)","v":""}]
[null,{"$f":"IF('Generated list'!B1631=\"\",\"\",'Generated list'!B1631)","v":""},{"$f":"IF('Generated list'!C1631=\"\",\"\",'Generated list'!C1631)","v":""},{"$f":"IF('Generated list'!D1631=\"\",\"\",'Generated list'!D1631)","v":""}]
[null,{"$f":"IF('Generated list'!B1632=\"\",\"\",'Generated list'!B1632)","v":""},{"$f":"IF('Generated list'!C1632=\"\",\"\",'Generated list'!C1632)","v":""},{"$f":"IF('Generated list'!D1632=\"\",\"\",'Generated list'!D1632)","v":""}]
[null,{"$f":"IF('Generated list'!B1633=\"\",\"\",'Generated list'!B1633)","v":""},{"$f":"IF('Generated list'!C1633=\"\",\"\",'Generated list'!C1633)","v":""},{"$f":"IF('Generated list'!D1633=\"\",\"\",'Generated list'!D1633)","v":""}]
[null,{"$f":"IF('Generated list'!B1634=\"\",\"\",'Generated list'!B1634)","v":""},{"$f":"IF('Generated list'!C1634=\"\",\"\",'Generated list'!C1634)","v":""},{"$f":"IF('Generated list'!D1634=\"\",\"\",'Generated list'!D1634)","v":""}]
[null,{"$f":"IF('Generated list'!B1635=\"\",\"\",'Generated list'!B1635)","v":""},{"$f":"IF('Generated list'!C1635=\"\",\"\",'Generated list'!C1635)","v":""},{"$f":"IF('Generated list'!D1635=\"\",\"\",'Generated list'!D1635)","v":""}]
[null,{"$f":"IF('Generated list'!B1636=\"\",\"\",'Generated list'!B1636)","v":""},{"$f":"IF('Generated list'!C1636=\"\",\"\",'Generated list'!C1636)","v":""},{"$f":"IF('Generated list'!D1636=\"\",\"\",'Generated list'!D1636)","v":""}]
[null,{"$f":"IF('Generated list'!B1637=\"\",\"\",'Generated list'!B1637)","v":""},{"$f":"IF('Generated list'!C1637=\"\",\"\",'Generated list'!C1637)","v":""},{"$f":"IF('Generated list'!D1637=\"\",\"\",'Generated list'!D1637)","v":""}]
[null,{"$f":"IF('Generated list'!B1638=\"\",\"\",'Generated list'!B1638)","v":""},{"$f":"IF('Generated list'!C1638=\"\",\"\",'Generated list'!C1638)","v":""},{"$f":"IF('Generated list'!D1638=\"\",\"\",'Generated list'!D1638)","v":""}]
[null,{"$f":"IF('Generated list'!B1639=\"\",\"\",'Generated list'!B1639)","v":""},{"$f":"IF('Generated list'!C1639=\"\",\"\",'Generated list'!C1639)","v":""},{"$f":"IF('Generated list'!D1639=\"\",\"\",'Generated list'!D1639)","v":""}]
[null,{"$f":"IF('Generated list'!B1640=\"\",\"\",'Generated list'!B1640)","v":""},{"$f":"IF('Generated list'!C1640=\"\",\"\",'Generated list'!C1640)","v":""},{"$f":"IF('Generated list'!D1640=\"\",\"\",'Generated list'!D1640)","v":""}]
[null,{"$f":"IF('Generated list'!B1641=\"\",\"\",'Generated list'!B1641)","v":""},{"$f":"IF('Generated list'!C1641=\"\",\"\",'Generated list'!C1641)","v":""},{"$f":"IF('Generated list'!D1641=\"\",\"\",'Generated list'!D1641)","v":""}]
[null,{"$f":"IF('Generated list'!B1642=\"\",\"\",'Generated list'!B1642)","v":""},{"$f":"IF('Generated list'!C1642=\"\",\"\",'Generated list'!C1642)","v":""},{"$f":"IF('Generated list'!D1642=\"\",\"\",'Generated list'!D1642)","v":""}]
[null,{"$f":"IF('Generated list'!B1643=\"\",\"\",'Generated list'!B1643)","v":""},{"$f":"IF('Generated list'!C1643=\"\",\"\",'Generated list'!C1643)","v":""},{"$f":"IF('Generated list'!D1643=\"\",\"\",'Generated list'!D1643)","v":""}]
[null,{"$f":"IF('Generated list'!B1644=\"\",\"\",'Generated list'!B1644)","v":""},{"$f":"IF('Generated list'!C1644=\"\",\"\",'Generated list'!C1644)","v":""},{"$f":"IF('Generated list'!D1644=\"\",\"\",'Generated list'!D1644)","v":""}]
[null,{"$f":"IF('Generated list'!B1645=\"\",\"\",'Generated list'!B1645)","v":""},{"$f":"IF('Generated list'!C1645=\"\",\"\",'Generated list'!C1645)","v":""},{"$f":"IF('Generated list'!D1645=\"\",\"\",'Generated list'!D1645)","v":""}]
[null,{"$f":"IF('Generated list'!B1646=\"\",\"\",'Generated list'!B1646)","v":""},{"$f":"IF('Generated list'!C1646=\"\",\"\",'Generated list'!C1646)","v":""},{"$f":"IF('Generated list'!D1646=\"\",\"\",'Generated list'!D1646)","v":""}]
[null,{"$f":"IF('Generated list'!B1647=\"\",\"\",'Generated list'!B1647)","v":""},{"$f":"IF('Generated list'!C1647=\"\",\"\",'Generated list'!C1647)","v":""},{"$f":"IF('Generated list'!D1647=\"\",\"\",'Generated list'!D1647)","v":""}]
[null,{"$f":"IF('Generated list'!B1648=\"\",\"\",'Generated list'!B1648)","v":""},{"$f":"IF('Generated list'!C1648=\"\",\"\",'Generated list'!C1648)","v":""},{"$f":"IF('Generated list'!D1648=\"\",\"\",'Generated list'!D1648)","v":""}]
[null,{"$f":"IF('Generated list'!B1649=\"\",\"\",'Generated list'!B1649)","v":""},{"$f":"IF('Generated list'!C1649=\"\",\"\",'Generated list'!C1649)","v":""},{"$f":"IF('Generated list'!D1649=\"\",\"\",'Generated list'!D1649)","v":""}]
[null,{"$f":"IF('Generated list'!B1650=\"\",\"\",'Generated list'!B1650)","v":""},{"$f":"IF('Generated list'!C1650=\"\",\"\",'Generated list'!C1650)","v":""},{"$f":"IF('Generated list'!D1650=\"\",\"\",'Generated list'!D1650)","v":""}]
[null,{"$f":"IF('Generated list'!B1651=\"\",\"\",'Generated list'!B1651)","v":""},{"$f":"IF('Generated list'!C1651=\"\",\"\",'Generated list'!C1651)","v":""},{"$f":"IF('Generated list'!D1651=\"\",\"\",'Generated list'!D1651)","v":""}]
[null,{"$f":"IF('Generated list'!B1652=\"\",\"\",'Generated list'!B1652)","v":""},{"$f":"IF('Generated list'!C1652=\"\",\"\",'Generated list'!C1652)","v":""},{"$f":"IF('Generated list'!D1652=\"\",\"\",'Generated list'!D1652)","v":""}]
[null,{"$f":"IF('Generated list'!B1653=\"\",\"\",'Generated list'!B1653)","v":""},{"$f":"IF('Generated list'!C1653=\"\",\"\",'Generated list'!C1653)","v":""},{"$f":"IF('Generated list'!D1653=\"\",\"\",'Generated list'!D1653)","v":""}]
[null,{"$f":"IF('Generated list'!B1654=\"\",\"\",'Generated list'!B1654)","v":""},{"$f":"IF('Generated list'!C1654=\"\",\"\",'Generated list'!C1654)","v":""},{"$f":"IF('Generated list'!D1654=\"\",\"\",'Generated list'!D1654)","v":""}]
[null,{"$f":"IF('Generated list'!B1655=\"\",\"\",'Generated list'!B1655)","v":""},{"$f":"IF('Generated list'!C1655=\"\",\"\",'Generated list'!C1655)","v":""},{"$f":"IF('Generated list'!D1655=\"\",\"\",'Generated list'!D1655)","v":""}]
[null,{"$f":"IF('Generated list'!B1656=\"\",\"\",'Generated list'!B1656)","v":""},{"$f":"IF('Generated list'!C1656=\"\",\"\",'Generated list'!C1656)","v":""},{"$f":"IF('Generated list'!D1656=\"\",\"\",'Generated list'!D1656)","v":""}]
[null,{"$f":"IF('Generated list'!B1657=\"\",\"\",'Generated list'!B1657)","v":""},{"$f":"IF('Generated list'!C1657=\"\",\"\",'Generated list'!C1657)","v":""},{"$f":"IF('Generated list'!D1657=\"\",\"\",'Generated list'!D1657)","v":""}]
[null,{"$f":"IF('Generated list'!B1658=\"\",\"\",'Generated list'!B1658)","v":""},{"$f":"IF('Generated list'!C1658=\"\",\"\",'Generated list'!C1658)","v":""},{"$f":"IF('Generated list'!D1658=\"\",\"\",'Generated list'!D1658)","v":""}]
[null,{"$f":"IF('Generated list'!B1659=\"\",\"\",'Generated list'!B1659)","v":""},{"$f":"IF('Generated list'!C1659=\"\",\"\",'Generated list'!C1659)","v":""},{"$f":"IF('Generated list'!D1659=\"\",\"\",'Generated list'!D1659)","v":""}]
[null,{"$f":"IF('Generated list'!B1660=\"\",\"\",'Generated list'!B1660)","v":""},{"$f":"IF('Generated list'!C1660=\"\",\"\",'Generated list'!C1660)","v":""},{"$f":"IF('Generated list'!D1660=\"\",\"\",'Generated list'!D1660)","v":""}]
[null,{"$f":"IF('Generated list'!B1661=\"\",\"\",'Generated list'!B1661)","v":""},{"$f":"IF('Generated list'!C1661=\"\",\"\",'Generated list'!C1661)","v":""},{"$f":"IF('Generated list'!D1661=\"\",\"\",'Generated list'!D1661)","v":""}]
[null,{"$f":"IF('Generated list'!B1662=\"\",\"\",'Generated list'!B1662)","v":""},{"$f":"IF('Generated list'!C1662=\"\",\"\",'Generated list'!C1662)","v":""},{"$f":"IF('Generated list'!D1662=\"\",\"\",'Generated list'!D1662)","v":""}]
[null,{"$f":"IF('Generated list'!B1663=\"\",\"\",'Generated list'!B1663)","v":""},{"$f":"IF('Generated list'!C1663=\"\",\"\",'Generated list'!C1663)","v":""},{"$f":"IF('Generated list'!D1663=\"\",\"\",'Generated list'!D1663)","v":""}]
[null,{"$f":"IF('Generated list'!B1664=\"\",\"\",'Generated list'!B1664)","v":""},{"$f":"IF('Generated list'!C1664=\"\",\"\",'Generated list'!C1664)","v":""},{"$f":"IF('Generated list'!D1664=\"\",\"\",'Generated list'!D1664)","v":""}]
[null,{"$f":"IF('Generated list'!B1665=\"\",\"\",'Generated list'!B1665)","v":""},{"$f":"IF('Generated list'!C1665=\"\",\"\",'Generated list'!C1665)","v":""},{"$f":"IF('Generated list'!D1665=\"\",\"\",'Generated list'!D1665)","v":""}]
[null,{"$f":"IF('Generated list'!B1666=\"\",\"\",'Generated list'!B1666)","v":""},{"$f":"IF('Generated list'!C1666=\"\",\"\",'Generated list'!C1666)","v":""},{"$f":"IF('Generated list'!D1666=\"\",\"\",'Generated list'!D1666)","v":""}]
[null,{"$f":"IF('Generated list'!B1667=\"\",\"\",'Generated list'!B1667)","v":""},{"$f":"IF('Generated list'!C1667=\"\",\"\",'Generated list'!C1667)","v":""},{"$f":"IF('Generated list'!D1667=\"\",\"\",'Generated list'!D1667)","v":""}]
[null,{"$f":"IF('Generated list'!B1668=\"\",\"\",'Generated list'!B1668)","v":""},{"$f":"IF('Generated list'!C1668=\"\",\"\",'Generated list'!C1668)","v":""},{"$f":"IF('Generated list'!D1668=\"\",\"\",'Generated list'!D1668)","v":""}]
[null,{"$f":"IF('Generated list'!B1669=\"\",\"\",'Generated list'!B1669)","v":""},{"$f":"IF('Generated list'!C1669=\"\",\"\",'Generated list'!C1669)","v":""},{"$f":"IF('Generated list'!D1669=\"\",\"\",'Generated list'!D1669)","v":""}]
[null,{"$f":"IF('Generated list'!B1670=\"\",\"\",'Generated list'!B1670)","v":""},{"$f":"IF('Generated list'!C1670=\"\",\"\",'Generated list'!C1670)","v":""},{"$f":"IF('Generated list'!D1670=\"\",\"\",'Generated list'!D1670)","v":""}]
[null,{"$f":"IF('Generated list'!B1671=\"\",\"\",'Generated list'!B1671)","v":""},{"$f":"IF('Generated list'!C1671=\"\",\"\",'Generated list'!C1671)","v":""},{"$f":"IF('Generated list'!D1671=\"\",\"\",'Generated list'!D1671)","v":""}]
[null,{"$f":"IF('Generated list'!B1672=\"\",\"\",'Generated list'!B1672)","v":""},{"$f":"IF('Generated list'!C1672=\"\",\"\",'Generated list'!C1672)","v":""},{"$f":"IF('Generated list'!D1672=\"\",\"\",'Generated list'!D1672)","v":""}]
[null,{"$f":"IF('Generated list'!B1673=\"\",\"\",'Generated list'!B1673)","v":""},{"$f":"IF('Generated list'!C1673=\"\",\"\",'Generated list'!C1673)","v":""},{"$f":"IF('Generated list'!D1673=\"\",\"\",'Generated list'!D1673)","v":""}]
[null,{"$f":"IF('Generated list'!B1674=\"\",\"\",'Generated list'!B1674)","v":""},{"$f":"IF('Generated list'!C1674=\"\",\"\",'Generated list'!C1674)","v":""},{"$f":"IF('Generated list'!D1674=\"\",\"\",'Generated list'!D1674)","v":""}]
[null,{"$f":"IF('Generated list'!B1675=\"\",\"\",'Generated list'!B1675)","v":""},{"$f":"IF('Generated list'!C1675=\"\",\"\",'Generated list'!C1675)","v":""},{"$f":"IF('Generated list'!D1675=\"\",\"\",'Generated list'!D1675)","v":""}]
[null,{"$f":"IF('Generated list'!B1676=\"\",\"\",'Generated list'!B1676)","v":""},{"$f":"IF('Generated list'!C1676=\"\",\"\",'Generated list'!C1676)","v":""},{"$f":"IF('Generated list'!D1676=\"\",\"\",'Generated list'!D1676)","v":""}]
[null,{"$f":"IF('Generated list'!B1677=\"\",\"\",'Generated list'!B1677)","v":""},{"$f":"IF('Generated list'!C1677=\"\",\"\",'Generated list'!C1677)","v":""},{"$f":"IF('Generated list'!D1677=\"\",\"\",'Generated list'!D1677)","v":""}]
[null,{"$f":"IF('Generated list'!B1678=\"\",\"\",'Generated list'!B1678)","v":""},{"$f":"IF('Generated list'!C1678=\"\",\"\",'Generated list'!C1678)","v":""},{"$f":"IF('Generated list'!D1678=\"\",\"\",'Generated list'!D1678)","v":""}]
[null,{"$f":"IF('Generated list'!B1679=\"\",\"\",'Generated list'!B1679)","v":""},{"$f":"IF('Generated list'!C1679=\"\",\"\",'Generated list'!C1679)","v":""},{"$f":"IF('Generated list'!D1679=\"\",\"\",'Generated list'!D1679)","v":""}]
[null,{"$f":"IF('Generated list'!B1680=\"\",\"\",'Generated list'!B1680)","v":""},{"$f":"IF('Generated list'!C1680=\"\",\"\",'Generated list'!C1680)","v":""},{"$f":"IF('Generated list'!D1680=\"\",\"\",'Generated list'!D1680)","v":""}]
[null,{"$f":"IF('Generated list'!B1681=\"\",\"\",'Generated list'!B1681)","v":""},{"$f":"IF('Generated list'!C1681=\"\",\"\",'Generated list'!C1681)","v":""},{"$f":"IF('Generated list'!D1681=\"\",\"\",'Generated list'!D1681)","v":""}]
[null,{"$f":"IF('Generated list'!B1682=\"\",\"\",'Generated list'!B1682)","v":""},{"$f":"IF('Generated list'!C1682=\"\",\"\",'Generated list'!C1682)","v":""},{"$f":"IF('Generated list'!D1682=\"\",\"\",'Generated list'!D1682)","v":""}]
[null,{"$f":"IF('Generated list'!B1683=\"\",\"\",'Generated list'!B1683)","v":""},{"$f":"IF('Generated list'!C1683=\"\",\"\",'Generated list'!C1683)","v":""},{"$f":"IF('Generated list'!D1683=\"\",\"\",'Generated list'!D1683)","v":""}]
[null,{"$f":"IF('Generated list'!B1684=\"\",\"\",'Generated list'!B1684)","v":""},{"$f":"IF('Generated list'!C1684=\"\",\"\",'Generated list'!C1684)","v":""},{"$f":"IF('Generated list'!D1684=\"\",\"\",'Generated list'!D1684)","v":""}]
[null,{"$f":"IF('Generated list'!B1685=\"\",\"\",'Generated list'!B1685)","v":""},{"$f":"IF('Generated list'!C1685=\"\",\"\",'Generated list'!C1685)","v":""},{"$f":"IF('Generated list'!D1685=\"\",\"\",'Generated list'!D1685)","v":""}]
[null,{"$f":"IF('Generated list'!B1686=\"\",\"\",'Generated list'!B1686)","v":""},{"$f":"IF('Generated list'!C1686=\"\",\"\",'Generated list'!C1686)","v":""},{"$f":"IF('Generated list'!D1686=\"\",\"\",'Generated list'!D1686)","v":""}]
[null,{"$f":"IF('Generated list'!B1687=\"\",\"\",'Generated list'!B1687)","v":""},{"$f":"IF('Generated list'!C1687=\"\",\"\",'Generated list'!C1687)","v":""},{"$f":"IF('Generated list'!D1687=\"\",\"\",'Generated list'!D1687)","v":""}]
[null,{"$f":"IF('Generated list'!B1688=\"\",\"\",'Generated list'!B1688)","v":""},{"$f":"IF('Generated list'!C1688=\"\",\"\",'Generated list'!C1688)","v":""},{"$f":"IF('Generated list'!D1688=\"\",\"\",'Generated list'!D1688)","v":""}]
[null,{"$f":"IF('Generated list'!B1689=\"\",\"\",'Generated list'!B1689)","v":""},{"$f":"IF('Generated list'!C1689=\"\",\"\",'Generated list'!C1689)","v":""},{"$f":"IF('Generated list'!D1689=\"\",\"\",'Generated list'!D1689)","v":""}]
[null,{"$f":"IF('Generated list'!B1690=\"\",\"\",'Generated list'!B1690)","v":""},{"$f":"IF('Generated list'!C1690=\"\",\"\",'Generated list'!C1690)","v":""},{"$f":"IF('Generated list'!D1690=\"\",\"\",'Generated list'!D1690)","v":""}]
[null,{"$f":"IF('Generated list'!B1691=\"\",\"\",'Generated list'!B1691)","v":""},{"$f":"IF('Generated list'!C1691=\"\",\"\",'Generated list'!C1691)","v":""},{"$f":"IF('Generated list'!D1691=\"\",\"\",'Generated list'!D1691)","v":""}]
[null,{"$f":"IF('Generated list'!B1692=\"\",\"\",'Generated list'!B1692)","v":""},{"$f":"IF('Generated list'!C1692=\"\",\"\",'Generated list'!C1692)","v":""},{"$f":"IF('Generated list'!D1692=\"\",\"\",'Generated list'!D1692)","v":""}]
[null,{"$f":"IF('Generated list'!B1693=\"\",\"\",'Generated list'!B1693)","v":""},{"$f":"IF('Generated list'!C1693=\"\",\"\",'Generated list'!C1693)","v":""},{"$f":"IF('Generated list'!D1693=\"\",\"\",'Generated list'!D1693)","v":""}]
[null,{"$f":"IF('Generated list'!B1694=\"\",\"\",'Generated list'!B1694)","v":""},{"$f":"IF('Generated list'!C1694=\"\",\"\",'Generated list'!C1694)","v":""},{"$f":"IF('Generated list'!D1694=\"\",\"\",'Generated list'!D1694)","v":""}]
[null,{"$f":"IF('Generated list'!B1695=\"\",\"\",'Generated list'!B1695)","v":""},{"$f":"IF('Generated list'!C1695=\"\",\"\",'Generated list'!C1695)","v":""},{"$f":"IF('Generated list'!D1695=\"\",\"\",'Generated list'!D1695)","v":""}]
[null,{"$f":"IF('Generated list'!B1696=\"\",\"\",'Generated list'!B1696)","v":""},{"$f":"IF('Generated list'!C1696=\"\",\"\",'Generated list'!C1696)","v":""},{"$f":"IF('Generated list'!D1696=\"\",\"\",'Generated list'!D1696)","v":""}]
[null,{"$f":"IF('Generated list'!B1697=\"\",\"\",'Generated list'!B1697)","v":""},{"$f":"IF('Generated list'!C1697=\"\",\"\",'Generated list'!C1697)","v":""},{"$f":"IF('Generated list'!D1697=\"\",\"\",'Generated list'!D1697)","v":""}]
[null,{"$f":"IF('Generated list'!B1698=\"\",\"\",'Generated list'!B1698)","v":""},{"$f":"IF('Generated list'!C1698=\"\",\"\",'Generated list'!C1698)","v":""},{"$f":"IF('Generated list'!D1698=\"\",\"\",'Generated list'!D1698)","v":""}]
[null,{"$f":"IF('Generated list'!B1699=\"\",\"\",'Generated list'!B1699)","v":""},{"$f":"IF('Generated list'!C1699=\"\",\"\",'Generated list'!C1699)","v":""},{"$f":"IF('Generated list'!D1699=\"\",\"\",'Generated list'!D1699)","v":""}]
[null,{"$f":"IF('Generated list'!B1700=\"\",\"\",'Generated list'!B1700)","v":""},{"$f":"IF('Generated list'!C1700=\"\",\"\",'Generated list'!C1700)","v":""},{"$f":"IF('Generated list'!D1700=\"\",\"\",'Generated list'!D1700)","v":""}]
[null,{"$f":"IF('Generated list'!B1701=\"\",\"\",'Generated list'!B1701)","v":""},{"$f":"IF('Generated list'!C1701=\"\",\"\",'Generated list'!C1701)","v":""},{"$f":"IF('Generated list'!D1701=\"\",\"\",'Generated list'!D1701)","v":""}]
[null,{"$f":"IF('Generated list'!B1702=\"\",\"\",'Generated list'!B1702)","v":""},{"$f":"IF('Generated list'!C1702=\"\",\"\",'Generated list'!C1702)","v":""},{"$f":"IF('Generated list'!D1702=\"\",\"\",'Generated list'!D1702)","v":""}]
[null,{"$f":"IF('Generated list'!B1703=\"\",\"\",'Generated list'!B1703)","v":""},{"$f":"IF('Generated list'!C1703=\"\",\"\",'Generated list'!C1703)","v":""},{"$f":"IF('Generated list'!D1703=\"\",\"\",'Generated list'!D1703)","v":""}]
[null,{"$f":"IF('Generated list'!B1704=\"\",\"\",'Generated list'!B1704)","v":""},{"$f":"IF('Generated list'!C1704=\"\",\"\",'Generated list'!C1704)","v":""},{"$f":"IF('Generated list'!D1704=\"\",\"\",'Generated list'!D1704)","v":""}]
[null,{"$f":"IF('Generated list'!B1705=\"\",\"\",'Generated list'!B1705)","v":""},{"$f":"IF('Generated list'!C1705=\"\",\"\",'Generated list'!C1705)","v":""},{"$f":"IF('Generated list'!D1705=\"\",\"\",'Generated list'!D1705)","v":""}]
[null,{"$f":"IF('Generated list'!B1706=\"\",\"\",'Generated list'!B1706)","v":""},{"$f":"IF('Generated list'!C1706=\"\",\"\",'Generated list'!C1706)","v":""},{"$f":"IF('Generated list'!D1706=\"\",\"\",'Generated list'!D1706)","v":""}]
[null,{"$f":"IF('Generated list'!B1707=\"\",\"\",'Generated list'!B1707)","v":""},{"$f":"IF('Generated list'!C1707=\"\",\"\",'Generated list'!C1707)","v":""},{"$f":"IF('Generated list'!D1707=\"\",\"\",'Generated list'!D1707)","v":""}]
[null,{"$f":"IF('Generated list'!B1708=\"\",\"\",'Generated list'!B1708)","v":""},{"$f":"IF('Generated list'!C1708=\"\",\"\",'Generated list'!C1708)","v":""},{"$f":"IF('Generated list'!D1708=\"\",\"\",'Generated list'!D1708)","v":""}]
[null,{"$f":"IF('Generated list'!B1709=\"\",\"\",'Generated list'!B1709)","v":""},{"$f":"IF('Generated list'!C1709=\"\",\"\",'Generated list'!C1709)","v":""},{"$f":"IF('Generated list'!D1709=\"\",\"\",'Generated list'!D1709)","v":""}]
[null,{"$f":"IF('Generated list'!B1710=\"\",\"\",'Generated list'!B1710)","v":""},{"$f":"IF('Generated list'!C1710=\"\",\"\",'Generated list'!C1710)","v":""},{"$f":"IF('Generated list'!D1710=\"\",\"\",'Generated list'!D1710)","v":""}]
[null,{"$f":"IF('Generated list'!B1711=\"\",\"\",'Generated list'!B1711)","v":""},{"$f":"IF('Generated list'!C1711=\"\",\"\",'Generated list'!C1711)","v":""},{"$f":"IF('Generated list'!D1711=\"\",\"\",'Generated list'!D1711)","v":""}]
[null,{"$f":"IF('Generated list'!B1712=\"\",\"\",'Generated list'!B1712)","v":""},{"$f":"IF('Generated list'!C1712=\"\",\"\",'Generated list'!C1712)","v":""},{"$f":"IF('Generated list'!D1712=\"\",\"\",'Generated list'!D1712)","v":""}]
[null,{"$f":"IF('Generated list'!B1713=\"\",\"\",'Generated list'!B1713)","v":""},{"$f":"IF('Generated list'!C1713=\"\",\"\",'Generated list'!C1713)","v":""},{"$f":"IF('Generated list'!D1713=\"\",\"\",'Generated list'!D1713)","v":""}]
[null,{"$f":"IF('Generated list'!B1714=\"\",\"\",'Generated list'!B1714)","v":""},{"$f":"IF('Generated list'!C1714=\"\",\"\",'Generated list'!C1714)","v":""},{"$f":"IF('Generated list'!D1714=\"\",\"\",'Generated list'!D1714)","v":""}]
[null,{"$f":"IF('Generated list'!B1715=\"\",\"\",'Generated list'!B1715)","v":""},{"$f":"IF('Generated list'!C1715=\"\",\"\",'Generated list'!C1715)","v":""},{"$f":"IF('Generated list'!D1715=\"\",\"\",'Generated list'!D1715)","v":""}]
[null,{"$f":"IF('Generated list'!B1716=\"\",\"\",'Generated list'!B1716)","v":""},{"$f":"IF('Generated list'!C1716=\"\",\"\",'Generated list'!C1716)","v":""},{"$f":"IF('Generated list'!D1716=\"\",\"\",'Generated list'!D1716)","v":""}]
[null,{"$f":"IF('Generated list'!B1717=\"\",\"\",'Generated list'!B1717)","v":""},{"$f":"IF('Generated list'!C1717=\"\",\"\",'Generated list'!C1717)","v":""},{"$f":"IF('Generated list'!D1717=\"\",\"\",'Generated list'!D1717)","v":""}]
[null,{"$f":"IF('Generated list'!B1718=\"\",\"\",'Generated list'!B1718)","v":""},{"$f":"IF('Generated list'!C1718=\"\",\"\",'Generated list'!C1718)","v":""},{"$f":"IF('Generated list'!D1718=\"\",\"\",'Generated list'!D1718)","v":""}]
[null,{"$f":"IF('Generated list'!B1719=\"\",\"\",'Generated list'!B1719)","v":""},{"$f":"IF('Generated list'!C1719=\"\",\"\",'Generated list'!C1719)","v":""},{"$f":"IF('Generated list'!D1719=\"\",\"\",'Generated list'!D1719)","v":""}]
[null,{"$f":"IF('Generated list'!B1720=\"\",\"\",'Generated list'!B1720)","v":""},{"$f":"IF('Generated list'!C1720=\"\",\"\",'Generated list'!C1720)","v":""},{"$f":"IF('Generated list'!D1720=\"\",\"\",'Generated list'!D1720)","v":""}]
[null,{"$f":"IF('Generated list'!B1721=\"\",\"\",'Generated list'!B1721)","v":""},{"$f":"IF('Generated list'!C1721=\"\",\"\",'Generated list'!C1721)","v":""},{"$f":"IF('Generated list'!D1721=\"\",\"\",'Generated list'!D1721)","v":""}]
[null,{"$f":"IF('Generated list'!B1722=\"\",\"\",'Generated list'!B1722)","v":""},{"$f":"IF('Generated list'!C1722=\"\",\"\",'Generated list'!C1722)","v":""},{"$f":"IF('Generated list'!D1722=\"\",\"\",'Generated list'!D1722)","v":""}]
[null,{"$f":"IF('Generated list'!B1723=\"\",\"\",'Generated list'!B1723)","v":""},{"$f":"IF('Generated list'!C1723=\"\",\"\",'Generated list'!C1723)","v":""},{"$f":"IF('Generated list'!D1723=\"\",\"\",'Generated list'!D1723)","v":""}]
[null,{"$f":"IF('Generated list'!B1724=\"\",\"\",'Generated list'!B1724)","v":""},{"$f":"IF('Generated list'!C1724=\"\",\"\",'Generated list'!C1724)","v":""},{"$f":"IF('Generated list'!D1724=\"\",\"\",'Generated list'!D1724)","v":""}]
[null,{"$f":"IF('Generated list'!B1725=\"\",\"\",'Generated list'!B1725)","v":""},{"$f":"IF('Generated list'!C1725=\"\",\"\",'Generated list'!C1725)","v":""},{"$f":"IF('Generated list'!D1725=\"\",\"\",'Generated list'!D1725)","v":""}]
[null,{"$f":"IF('Generated list'!B1726=\"\",\"\",'Generated list'!B1726)","v":""},{"$f":"IF('Generated list'!C1726=\"\",\"\",'Generated list'!C1726)","v":""},{"$f":"IF('Generated list'!D1726=\"\",\"\",'Generated list'!D1726)","v":""}]
[null,{"$f":"IF('Generated list'!B1727=\"\",\"\",'Generated list'!B1727)","v":""},{"$f":"IF('Generated list'!C1727=\"\",\"\",'Generated list'!C1727)","v":""},{"$f":"IF('Generated list'!D1727=\"\",\"\",'Generated list'!D1727)","v":""}]
[null,{"$f":"IF('Generated list'!B1728=\"\",\"\",'Generated list'!B1728)","v":""},{"$f":"IF('Generated list'!C1728=\"\",\"\",'Generated list'!C1728)","v":""},{"$f":"IF('Generated list'!D1728=\"\",\"\",'Generated list'!D1728)","v":""}]
[null,{"$f":"IF('Generated list'!B1729=\"\",\"\",'Generated list'!B1729)","v":""},{"$f":"IF('Generated list'!C1729=\"\",\"\",'Generated list'!C1729)","v":""},{"$f":"IF('Generated list'!D1729=\"\",\"\",'Generated list'!D1729)","v":""}]
[null,{"$f":"IF('Generated list'!B1730=\"\",\"\",'Generated list'!B1730)","v":""},{"$f":"IF('Generated list'!C1730=\"\",\"\",'Generated list'!C1730)","v":""},{"$f":"IF('Generated list'!D1730=\"\",\"\",'Generated list'!D1730)","v":""}]
[null,{"$f":"IF('Generated list'!B1731=\"\",\"\",'Generated list'!B1731)","v":""},{"$f":"IF('Generated list'!C1731=\"\",\"\",'Generated list'!C1731)","v":""},{"$f":"IF('Generated list'!D1731=\"\",\"\",'Generated list'!D1731)","v":""}]
[null,{"$f":"IF('Generated list'!B1732=\"\",\"\",'Generated list'!B1732)","v":""},{"$f":"IF('Generated list'!C1732=\"\",\"\",'Generated list'!C1732)","v":""},{"$f":"IF('Generated list'!D1732=\"\",\"\",'Generated list'!D1732)","v":""}]
[null,{"$f":"IF('Generated list'!B1733=\"\",\"\",'Generated list'!B1733)","v":""},{"$f":"IF('Generated list'!C1733=\"\",\"\",'Generated list'!C1733)","v":""},{"$f":"IF('Generated list'!D1733=\"\",\"\",'Generated list'!D1733)","v":""}]
[null,{"$f":"IF('Generated list'!B1734=\"\",\"\",'Generated list'!B1734)","v":""},{"$f":"IF('Generated list'!C1734=\"\",\"\",'Generated list'!C1734)","v":""},{"$f":"IF('Generated list'!D1734=\"\",\"\",'Generated list'!D1734)","v":""}]
[null,{"$f":"IF('Generated list'!B1735=\"\",\"\",'Generated list'!B1735)","v":""},{"$f":"IF('Generated list'!C1735=\"\",\"\",'Generated list'!C1735)","v":""},{"$f":"IF('Generated list'!D1735=\"\",\"\",'Generated list'!D1735)","v":""}]
[null,{"$f":"IF('Generated list'!B1736=\"\",\"\",'Generated list'!B1736)","v":""},{"$f":"IF('Generated list'!C1736=\"\",\"\",'Generated list'!C1736)","v":""},{"$f":"IF('Generated list'!D1736=\"\",\"\",'Generated list'!D1736)","v":""}]
[null,{"$f":"IF('Generated list'!B1737=\"\",\"\",'Generated list'!B1737)","v":""},{"$f":"IF('Generated list'!C1737=\"\",\"\",'Generated list'!C1737)","v":""},{"$f":"IF('Generated list'!D1737=\"\",\"\",'Generated list'!D1737)","v":""}]
[null,{"$f":"IF('Generated list'!B1738=\"\",\"\",'Generated list'!B1738)","v":""},{"$f":"IF('Generated list'!C1738=\"\",\"\",'Generated list'!C1738)","v":""},{"$f":"IF('Generated list'!D1738=\"\",\"\",'Generated list'!D1738)","v":""}]
[null,{"$f":"IF('Generated list'!B1739=\"\",\"\",'Generated list'!B1739)","v":""},{"$f":"IF('Generated list'!C1739=\"\",\"\",'Generated list'!C1739)","v":""},{"$f":"IF('Generated list'!D1739=\"\",\"\",'Generated list'!D1739)","v":""}]
[null,{"$f":"IF('Generated list'!B1740=\"\",\"\",'Generated list'!B1740)","v":""},{"$f":"IF('Generated list'!C1740=\"\",\"\",'Generated list'!C1740)","v":""},{"$f":"IF('Generated list'!D1740=\"\",\"\",'Generated list'!D1740)","v":""}]
[null,{"$f":"IF('Generated list'!B1741=\"\",\"\",'Generated list'!B1741)","v":""},{"$f":"IF('Generated list'!C1741=\"\",\"\",'Generated list'!C1741)","v":""},{"$f":"IF('Generated list'!D1741=\"\",\"\",'Generated list'!D1741)","v":""}]
[null,{"$f":"IF('Generated list'!B1742=\"\",\"\",'Generated list'!B1742)","v":""},{"$f":"IF('Generated list'!C1742=\"\",\"\",'Generated list'!C1742)","v":""},{"$f":"IF('Generated list'!D1742=\"\",\"\",'Generated list'!D1742)","v":""}]
[null,{"$f":"IF('Generated list'!B1743=\"\",\"\",'Generated list'!B1743)","v":""},{"$f":"IF('Generated list'!C1743=\"\",\"\",'Generated list'!C1743)","v":""},{"$f":"IF('Generated list'!D1743=\"\",\"\",'Generated list'!D1743)","v":""}]
[null,{"$f":"IF('Generated list'!B1744=\"\",\"\",'Generated list'!B1744)","v":""},{"$f":"IF('Generated list'!C1744=\"\",\"\",'Generated list'!C1744)","v":""},{"$f":"IF('Generated list'!D1744=\"\",\"\",'Generated list'!D1744)","v":""}]
[null,{"$f":"IF('Generated list'!B1745=\"\",\"\",'Generated list'!B1745)","v":""},{"$f":"IF('Generated list'!C1745=\"\",\"\",'Generated list'!C1745)","v":""},{"$f":"IF('Generated list'!D1745=\"\",\"\",'Generated list'!D1745)","v":""}]
[null,{"$f":"IF('Generated list'!B1746=\"\",\"\",'Generated list'!B1746)","v":""},{"$f":"IF('Generated list'!C1746=\"\",\"\",'Generated list'!C1746)","v":""},{"$f":"IF('Generated list'!D1746=\"\",\"\",'Generated list'!D1746)","v":""}]
[null,{"$f":"IF('Generated list'!B1747=\"\",\"\",'Generated list'!B1747)","v":""},{"$f":"IF('Generated list'!C1747=\"\",\"\",'Generated list'!C1747)","v":""},{"$f":"IF('Generated list'!D1747=\"\",\"\",'Generated list'!D1747)","v":""}]
[null,{"$f":"IF('Generated list'!B1748=\"\",\"\",'Generated list'!B1748)","v":""},{"$f":"IF('Generated list'!C1748=\"\",\"\",'Generated list'!C1748)","v":""},{"$f":"IF('Generated list'!D1748=\"\",\"\",'Generated list'!D1748)","v":""}]
[null,{"$f":"IF('Generated list'!B1749=\"\",\"\",'Generated list'!B1749)","v":""},{"$f":"IF('Generated list'!C1749=\"\",\"\",'Generated list'!C1749)","v":""},{"$f":"IF('Generated list'!D1749=\"\",\"\",'Generated list'!D1749)","v":""}]
[null,{"$f":"IF('Generated list'!B1750=\"\",\"\",'Generated list'!B1750)","v":""},{"$f":"IF('Generated list'!C1750=\"\",\"\",'Generated list'!C1750)","v":""},{"$f":"IF('Generated list'!D1750=\"\",\"\",'Generated list'!D1750)","v":""}]
[null,{"$f":"IF('Generated list'!B1751=\"\",\"\",'Generated list'!B1751)","v":""},{"$f":"IF('Generated list'!C1751=\"\",\"\",'Generated list'!C1751)","v":""},{"$f":"IF('Generated list'!D1751=\"\",\"\",'Generated list'!D1751)","v":""}]
[null,{"$f":"IF('Generated list'!B1752=\"\",\"\",'Generated list'!B1752)","v":""},{"$f":"IF('Generated list'!C1752=\"\",\"\",'Generated list'!C1752)","v":""},{"$f":"IF('Generated list'!D1752=\"\",\"\",'Generated list'!D1752)","v":""}]
[null,{"$f":"IF('Generated list'!B1753=\"\",\"\",'Generated list'!B1753)","v":""},{"$f":"IF('Generated list'!C1753=\"\",\"\",'Generated list'!C1753)","v":""},{"$f":"IF('Generated list'!D1753=\"\",\"\",'Generated list'!D1753)","v":""}]
[null,{"$f":"IF('Generated list'!B1754=\"\",\"\",'Generated list'!B1754)","v":""},{"$f":"IF('Generated list'!C1754=\"\",\"\",'Generated list'!C1754)","v":""},{"$f":"IF('Generated list'!D1754=\"\",\"\",'Generated list'!D1754)","v":""}]
[null,{"$f":"IF('Generated list'!B1755=\"\",\"\",'Generated list'!B1755)","v":""},{"$f":"IF('Generated list'!C1755=\"\",\"\",'Generated list'!C1755)","v":""},{"$f":"IF('Generated list'!D1755=\"\",\"\",'Generated list'!D1755)","v":""}]
[null,{"$f":"IF('Generated list'!B1756=\"\",\"\",'Generated list'!B1756)","v":""},{"$f":"IF('Generated list'!C1756=\"\",\"\",'Generated list'!C1756)","v":""},{"$f":"IF('Generated list'!D1756=\"\",\"\",'Generated list'!D1756)","v":""}]
[null,{"$f":"IF('Generated list'!B1757=\"\",\"\",'Generated list'!B1757)","v":""},{"$f":"IF('Generated list'!C1757=\"\",\"\",'Generated list'!C1757)","v":""},{"$f":"IF('Generated list'!D1757=\"\",\"\",'Generated list'!D1757)","v":""}]
[null,{"$f":"IF('Generated list'!B1758=\"\",\"\",'Generated list'!B1758)","v":""},{"$f":"IF('Generated list'!C1758=\"\",\"\",'Generated list'!C1758)","v":""},{"$f":"IF('Generated list'!D1758=\"\",\"\",'Generated list'!D1758)","v":""}]
[null,{"$f":"IF('Generated list'!B1759=\"\",\"\",'Generated list'!B1759)","v":""},{"$f":"IF('Generated list'!C1759=\"\",\"\",'Generated list'!C1759)","v":""},{"$f":"IF('Generated list'!D1759=\"\",\"\",'Generated list'!D1759)","v":""}]
[null,{"$f":"IF('Generated list'!B1760=\"\",\"\",'Generated list'!B1760)","v":""},{"$f":"IF('Generated list'!C1760=\"\",\"\",'Generated list'!C1760)","v":""},{"$f":"IF('Generated list'!D1760=\"\",\"\",'Generated list'!D1760)","v":""}]
[null,{"$f":"IF('Generated list'!B1761=\"\",\"\",'Generated list'!B1761)","v":""},{"$f":"IF('Generated list'!C1761=\"\",\"\",'Generated list'!C1761)","v":""},{"$f":"IF('Generated list'!D1761=\"\",\"\",'Generated list'!D1761)","v":""}]
[null,{"$f":"IF('Generated list'!B1762=\"\",\"\",'Generated list'!B1762)","v":""},{"$f":"IF('Generated list'!C1762=\"\",\"\",'Generated list'!C1762)","v":""},{"$f":"IF('Generated list'!D1762=\"\",\"\",'Generated list'!D1762)","v":""}]
[null,{"$f":"IF('Generated list'!B1763=\"\",\"\",'Generated list'!B1763)","v":""},{"$f":"IF('Generated list'!C1763=\"\",\"\",'Generated list'!C1763)","v":""},{"$f":"IF('Generated list'!D1763=\"\",\"\",'Generated list'!D1763)","v":""}]
[null,{"$f":"IF('Generated list'!B1764=\"\",\"\",'Generated list'!B1764)","v":""},{"$f":"IF('Generated list'!C1764=\"\",\"\",'Generated list'!C1764)","v":""},{"$f":"IF('Generated list'!D1764=\"\",\"\",'Generated list'!D1764)","v":""}]
[null,{"$f":"IF('Generated list'!B1765=\"\",\"\",'Generated list'!B1765)","v":""},{"$f":"IF('Generated list'!C1765=\"\",\"\",'Generated list'!C1765)","v":""},{"$f":"IF('Generated list'!D1765=\"\",\"\",'Generated list'!D1765)","v":""}]
[null,{"$f":"IF('Generated list'!B1766=\"\",\"\",'Generated list'!B1766)","v":""},{"$f":"IF('Generated list'!C1766=\"\",\"\",'Generated list'!C1766)","v":""},{"$f":"IF('Generated list'!D1766=\"\",\"\",'Generated list'!D1766)","v":""}]
[null,{"$f":"IF('Generated list'!B1767=\"\",\"\",'Generated list'!B1767)","v":""},{"$f":"IF('Generated list'!C1767=\"\",\"\",'Generated list'!C1767)","v":""},{"$f":"IF('Generated list'!D1767=\"\",\"\",'Generated list'!D1767)","v":""}]
[null,{"$f":"IF('Generated list'!B1768=\"\",\"\",'Generated list'!B1768)","v":""},{"$f":"IF('Generated list'!C1768=\"\",\"\",'Generated list'!C1768)","v":""},{"$f":"IF('Generated list'!D1768=\"\",\"\",'Generated list'!D1768)","v":""}]
[null,{"$f":"IF('Generated list'!B1769=\"\",\"\",'Generated list'!B1769)","v":""},{"$f":"IF('Generated list'!C1769=\"\",\"\",'Generated list'!C1769)","v":""},{"$f":"IF('Generated list'!D1769=\"\",\"\",'Generated list'!D1769)","v":""}]
[null,{"$f":"IF('Generated list'!B1770=\"\",\"\",'Generated list'!B1770)","v":""},{"$f":"IF('Generated list'!C1770=\"\",\"\",'Generated list'!C1770)","v":""},{"$f":"IF('Generated list'!D1770=\"\",\"\",'Generated list'!D1770)","v":""}]
[null,{"$f":"IF('Generated list'!B1771=\"\",\"\",'Generated list'!B1771)","v":""},{"$f":"IF('Generated list'!C1771=\"\",\"\",'Generated list'!C1771)","v":""},{"$f":"IF('Generated list'!D1771=\"\",\"\",'Generated list'!D1771)","v":""}]
[null,{"$f":"IF('Generated list'!B1772=\"\",\"\",'Generated list'!B1772)","v":""},{"$f":"IF('Generated list'!C1772=\"\",\"\",'Generated list'!C1772)","v":""},{"$f":"IF('Generated list'!D1772=\"\",\"\",'Generated list'!D1772)","v":""}]
[null,{"$f":"IF('Generated list'!B1773=\"\",\"\",'Generated list'!B1773)","v":""},{"$f":"IF('Generated list'!C1773=\"\",\"\",'Generated list'!C1773)","v":""},{"$f":"IF('Generated list'!D1773=\"\",\"\",'Generated list'!D1773)","v":""}]
[null,{"$f":"IF('Generated list'!B1774=\"\",\"\",'Generated list'!B1774)","v":""},{"$f":"IF('Generated list'!C1774=\"\",\"\",'Generated list'!C1774)","v":""},{"$f":"IF('Generated list'!D1774=\"\",\"\",'Generated list'!D1774)","v":""}]
[null,{"$f":"IF('Generated list'!B1775=\"\",\"\",'Generated list'!B1775)","v":""},{"$f":"IF('Generated list'!C1775=\"\",\"\",'Generated list'!C1775)","v":""},{"$f":"IF('Generated list'!D1775=\"\",\"\",'Generated list'!D1775)","v":""}]
[null,{"$f":"IF('Generated list'!B1776=\"\",\"\",'Generated list'!B1776)","v":""},{"$f":"IF('Generated list'!C1776=\"\",\"\",'Generated list'!C1776)","v":""},{"$f":"IF('Generated list'!D1776=\"\",\"\",'Generated list'!D1776)","v":""}]
[null,{"$f":"IF('Generated list'!B1777=\"\",\"\",'Generated list'!B1777)","v":""},{"$f":"IF('Generated list'!C1777=\"\",\"\",'Generated list'!C1777)","v":""},{"$f":"IF('Generated list'!D1777=\"\",\"\",'Generated list'!D1777)","v":""}]
[null,{"$f":"IF('Generated list'!B1778=\"\",\"\",'Generated list'!B1778)","v":""},{"$f":"IF('Generated list'!C1778=\"\",\"\",'Generated list'!C1778)","v":""},{"$f":"IF('Generated list'!D1778=\"\",\"\",'Generated list'!D1778)","v":""}]
[null,{"$f":"IF('Generated list'!B1779=\"\",\"\",'Generated list'!B1779)","v":""},{"$f":"IF('Generated list'!C1779=\"\",\"\",'Generated list'!C1779)","v":""},{"$f":"IF('Generated list'!D1779=\"\",\"\",'Generated list'!D1779)","v":""}]
[null,{"$f":"IF('Generated list'!B1780=\"\",\"\",'Generated list'!B1780)","v":""},{"$f":"IF('Generated list'!C1780=\"\",\"\",'Generated list'!C1780)","v":""},{"$f":"IF('Generated list'!D1780=\"\",\"\",'Generated list'!D1780)","v":""}]
[null,{"$f":"IF('Generated list'!B1781=\"\",\"\",'Generated list'!B1781)","v":""},{"$f":"IF('Generated list'!C1781=\"\",\"\",'Generated list'!C1781)","v":""},{"$f":"IF('Generated list'!D1781=\"\",\"\",'Generated list'!D1781)","v":""}]
[null,{"$f":"IF('Generated list'!B1782=\"\",\"\",'Generated list'!B1782)","v":""},{"$f":"IF('Generated list'!C1782=\"\",\"\",'Generated list'!C1782)","v":""},{"$f":"IF('Generated list'!D1782=\"\",\"\",'Generated list'!D1782)","v":""}]
[null,{"$f":"IF('Generated list'!B1783=\"\",\"\",'Generated list'!B1783)","v":""},{"$f":"IF('Generated list'!C1783=\"\",\"\",'Generated list'!C1783)","v":""},{"$f":"IF('Generated list'!D1783=\"\",\"\",'Generated list'!D1783)","v":""}]
[null,{"$f":"IF('Generated list'!B1784=\"\",\"\",'Generated list'!B1784)","v":""},{"$f":"IF('Generated list'!C1784=\"\",\"\",'Generated list'!C1784)","v":""},{"$f":"IF('Generated list'!D1784=\"\",\"\",'Generated list'!D1784)","v":""}]
[null,{"$f":"IF('Generated list'!B1785=\"\",\"\",'Generated list'!B1785)","v":""},{"$f":"IF('Generated list'!C1785=\"\",\"\",'Generated list'!C1785)","v":""},{"$f":"IF('Generated list'!D1785=\"\",\"\",'Generated list'!D1785)","v":""}]
[null,{"$f":"IF('Generated list'!B1786=\"\",\"\",'Generated list'!B1786)","v":""},{"$f":"IF('Generated list'!C1786=\"\",\"\",'Generated list'!C1786)","v":""},{"$f":"IF('Generated list'!D1786=\"\",\"\",'Generated list'!D1786)","v":""}]
[null,{"$f":"IF('Generated list'!B1787=\"\",\"\",'Generated list'!B1787)","v":""},{"$f":"IF('Generated list'!C1787=\"\",\"\",'Generated list'!C1787)","v":""},{"$f":"IF('Generated list'!D1787=\"\",\"\",'Generated list'!D1787)","v":""}]
[null,{"$f":"IF('Generated list'!B1788=\"\",\"\",'Generated list'!B1788)","v":""},{"$f":"IF('Generated list'!C1788=\"\",\"\",'Generated list'!C1788)","v":""},{"$f":"IF('Generated list'!D1788=\"\",\"\",'Generated list'!D1788)","v":""}]
[null,{"$f":"IF('Generated list'!B1789=\"\",\"\",'Generated list'!B1789)","v":""},{"$f":"IF('Generated list'!C1789=\"\",\"\",'Generated list'!C1789)","v":""},{"$f":"IF('Generated list'!D1789=\"\",\"\",'Generated list'!D1789)","v":""}]
[null,{"$f":"IF('Generated list'!B1790=\"\",\"\",'Generated list'!B1790)","v":""},{"$f":"IF('Generated list'!C1790=\"\",\"\",'Generated list'!C1790)","v":""},{"$f":"IF('Generated list'!D1790=\"\",\"\",'Generated list'!D1790)","v":""}]
[null,{"$f":"IF('Generated list'!B1791=\"\",\"\",'Generated list'!B1791)","v":""},{"$f":"IF('Generated list'!C1791=\"\",\"\",'Generated list'!C1791)","v":""},{"$f":"IF('Generated list'!D1791=\"\",\"\",'Generated list'!D1791)","v":""}]
[null,{"$f":"IF('Generated list'!B1792=\"\",\"\",'Generated list'!B1792)","v":""},{"$f":"IF('Generated list'!C1792=\"\",\"\",'Generated list'!C1792)","v":""},{"$f":"IF('Generated list'!D1792=\"\",\"\",'Generated list'!D1792)","v":""}]
[null,{"$f":"IF('Generated list'!B1793=\"\",\"\",'Generated list'!B1793)","v":""},{"$f":"IF('Generated list'!C1793=\"\",\"\",'Generated list'!C1793)","v":""},{"$f":"IF('Generated list'!D1793=\"\",\"\",'Generated list'!D1793)","v":""}]
[null,{"$f":"IF('Generated list'!B1794=\"\",\"\",'Generated list'!B1794)","v":""},{"$f":"IF('Generated list'!C1794=\"\",\"\",'Generated list'!C1794)","v":""},{"$f":"IF('Generated list'!D1794=\"\",\"\",'Generated list'!D1794)","v":""}]
[null,{"$f":"IF('Generated list'!B1795=\"\",\"\",'Generated list'!B1795)","v":""},{"$f":"IF('Generated list'!C1795=\"\",\"\",'Generated list'!C1795)","v":""},{"$f":"IF('Generated list'!D1795=\"\",\"\",'Generated list'!D1795)","v":""}]
[null,{"$f":"IF('Generated list'!B1796=\"\",\"\",'Generated list'!B1796)","v":""},{"$f":"IF('Generated list'!C1796=\"\",\"\",'Generated list'!C1796)","v":""},{"$f":"IF('Generated list'!D1796=\"\",\"\",'Generated list'!D1796)","v":""}]
[null,{"$f":"IF('Generated list'!B1797=\"\",\"\",'Generated list'!B1797)","v":""},{"$f":"IF('Generated list'!C1797=\"\",\"\",'Generated list'!C1797)","v":""},{"$f":"IF('Generated list'!D1797=\"\",\"\",'Generated list'!D1797)","v":""}]
[null,{"$f":"IF('Generated list'!B1798=\"\",\"\",'Generated list'!B1798)","v":""},{"$f":"IF('Generated list'!C1798=\"\",\"\",'Generated list'!C1798)","v":""},{"$f":"IF('Generated list'!D1798=\"\",\"\",'Generated list'!D1798)","v":""}]
[null,{"$f":"IF('Generated list'!B1799=\"\",\"\",'Generated list'!B1799)","v":""},{"$f":"IF('Generated list'!C1799=\"\",\"\",'Generated list'!C1799)","v":""},{"$f":"IF('Generated list'!D1799=\"\",\"\",'Generated list'!D1799)","v":""}]
[null,{"$f":"IF('Generated list'!B1800=\"\",\"\",'Generated list'!B1800)","v":""},{"$f":"IF('Generated list'!C1800=\"\",\"\",'Generated list'!C1800)","v":""},{"$f":"IF('Generated list'!D1800=\"\",\"\",'Generated list'!D1800)","v":""}]
[null,{"$f":"IF('Generated list'!B1801=\"\",\"\",'Generated list'!B1801)","v":""},{"$f":"IF('Generated list'!C1801=\"\",\"\",'Generated list'!C1801)","v":""},{"$f":"IF('Generated list'!D1801=\"\",\"\",'Generated list'!D1801)","v":""}]
[null,{"$f":"IF('Generated list'!B1802=\"\",\"\",'Generated list'!B1802)","v":""},{"$f":"IF('Generated list'!C1802=\"\",\"\",'Generated list'!C1802)","v":""},{"$f":"IF('Generated list'!D1802=\"\",\"\",'Generated list'!D1802)","v":""}]
[null,{"$f":"IF('Generated list'!B1803=\"\",\"\",'Generated list'!B1803)","v":""},{"$f":"IF('Generated list'!C1803=\"\",\"\",'Generated list'!C1803)","v":""},{"$f":"IF('Generated list'!D1803=\"\",\"\",'Generated list'!D1803)","v":""}]
[null,{"$f":"IF('Generated list'!B1804=\"\",\"\",'Generated list'!B1804)","v":""},{"$f":"IF('Generated list'!C1804=\"\",\"\",'Generated list'!C1804)","v":""},{"$f":"IF('Generated list'!D1804=\"\",\"\",'Generated list'!D1804)","v":""}]
[null,{"$f":"IF('Generated list'!B1805=\"\",\"\",'Generated list'!B1805)","v":""},{"$f":"IF('Generated list'!C1805=\"\",\"\",'Generated list'!C1805)","v":""},{"$f":"IF('Generated list'!D1805=\"\",\"\",'Generated list'!D1805)","v":""}]
[null,{"$f":"IF('Generated list'!B1806=\"\",\"\",'Generated list'!B1806)","v":""},{"$f":"IF('Generated list'!C1806=\"\",\"\",'Generated list'!C1806)","v":""},{"$f":"IF('Generated list'!D1806=\"\",\"\",'Generated list'!D1806)","v":""}]
[null,{"$f":"IF('Generated list'!B1807=\"\",\"\",'Generated list'!B1807)","v":""},{"$f":"IF('Generated list'!C1807=\"\",\"\",'Generated list'!C1807)","v":""},{"$f":"IF('Generated list'!D1807=\"\",\"\",'Generated list'!D1807)","v":""}]
[null,{"$f":"IF('Generated list'!B1808=\"\",\"\",'Generated list'!B1808)","v":""},{"$f":"IF('Generated list'!C1808=\"\",\"\",'Generated list'!C1808)","v":""},{"$f":"IF('Generated list'!D1808=\"\",\"\",'Generated list'!D1808)","v":""}]
[null,{"$f":"IF('Generated list'!B1809=\"\",\"\",'Generated list'!B1809)","v":""},{"$f":"IF('Generated list'!C1809=\"\",\"\",'Generated list'!C1809)","v":""},{"$f":"IF('Generated list'!D1809=\"\",\"\",'Generated list'!D1809)","v":""}]
[null,{"$f":"IF('Generated list'!B1810=\"\",\"\",'Generated list'!B1810)","v":""},{"$f":"IF('Generated list'!C1810=\"\",\"\",'Generated list'!C1810)","v":""},{"$f":"IF('Generated list'!D1810=\"\",\"\",'Generated list'!D1810)","v":""}]
[null,{"$f":"IF('Generated list'!B1811=\"\",\"\",'Generated list'!B1811)","v":""},{"$f":"IF('Generated list'!C1811=\"\",\"\",'Generated list'!C1811)","v":""},{"$f":"IF('Generated list'!D1811=\"\",\"\",'Generated list'!D1811)","v":""}]
[null,{"$f":"IF('Generated list'!B1812=\"\",\"\",'Generated list'!B1812)","v":""},{"$f":"IF('Generated list'!C1812=\"\",\"\",'Generated list'!C1812)","v":""},{"$f":"IF('Generated list'!D1812=\"\",\"\",'Generated list'!D1812)","v":""}]
[null,{"$f":"IF('Generated list'!B1813=\"\",\"\",'Generated list'!B1813)","v":""},{"$f":"IF('Generated list'!C1813=\"\",\"\",'Generated list'!C1813)","v":""},{"$f":"IF('Generated list'!D1813=\"\",\"\",'Generated list'!D1813)","v":""}]
[null,{"$f":"IF('Generated list'!B1814=\"\",\"\",'Generated list'!B1814)","v":""},{"$f":"IF('Generated list'!C1814=\"\",\"\",'Generated list'!C1814)","v":""},{"$f":"IF('Generated list'!D1814=\"\",\"\",'Generated list'!D1814)","v":""}]
[null,{"$f":"IF('Generated list'!B1815=\"\",\"\",'Generated list'!B1815)","v":""},{"$f":"IF('Generated list'!C1815=\"\",\"\",'Generated list'!C1815)","v":""},{"$f":"IF('Generated list'!D1815=\"\",\"\",'Generated list'!D1815)","v":""}]
[null,{"$f":"IF('Generated list'!B1816=\"\",\"\",'Generated list'!B1816)","v":""},{"$f":"IF('Generated list'!C1816=\"\",\"\",'Generated list'!C1816)","v":""},{"$f":"IF('Generated list'!D1816=\"\",\"\",'Generated list'!D1816)","v":""}]
[null,{"$f":"IF('Generated list'!B1817=\"\",\"\",'Generated list'!B1817)","v":""},{"$f":"IF('Generated list'!C1817=\"\",\"\",'Generated list'!C1817)","v":""},{"$f":"IF('Generated list'!D1817=\"\",\"\",'Generated list'!D1817)","v":""}]
[null,{"$f":"IF('Generated list'!B1818=\"\",\"\",'Generated list'!B1818)","v":""},{"$f":"IF('Generated list'!C1818=\"\",\"\",'Generated list'!C1818)","v":""},{"$f":"IF('Generated list'!D1818=\"\",\"\",'Generated list'!D1818)","v":""}]
[null,{"$f":"IF('Generated list'!B1819=\"\",\"\",'Generated list'!B1819)","v":""},{"$f":"IF('Generated list'!C1819=\"\",\"\",'Generated list'!C1819)","v":""},{"$f":"IF('Generated list'!D1819=\"\",\"\",'Generated list'!D1819)","v":""}]
[null,{"$f":"IF('Generated list'!B1820=\"\",\"\",'Generated list'!B1820)","v":""},{"$f":"IF('Generated list'!C1820=\"\",\"\",'Generated list'!C1820)","v":""},{"$f":"IF('Generated list'!D1820=\"\",\"\",'Generated list'!D1820)","v":""}]
[null,{"$f":"IF('Generated list'!B1821=\"\",\"\",'Generated list'!B1821)","v":""},{"$f":"IF('Generated list'!C1821=\"\",\"\",'Generated list'!C1821)","v":""},{"$f":"IF('Generated list'!D1821=\"\",\"\",'Generated list'!D1821)","v":""}]
[null,{"$f":"IF('Generated list'!B1822=\"\",\"\",'Generated list'!B1822)","v":""},{"$f":"IF('Generated list'!C1822=\"\",\"\",'Generated list'!C1822)","v":""},{"$f":"IF('Generated list'!D1822=\"\",\"\",'Generated list'!D1822)","v":""}]
[null,{"$f":"IF('Generated list'!B1823=\"\",\"\",'Generated list'!B1823)","v":""},{"$f":"IF('Generated list'!C1823=\"\",\"\",'Generated list'!C1823)","v":""},{"$f":"IF('Generated list'!D1823=\"\",\"\",'Generated list'!D1823)","v":""}]
[null,{"$f":"IF('Generated list'!B1824=\"\",\"\",'Generated list'!B1824)","v":""},{"$f":"IF('Generated list'!C1824=\"\",\"\",'Generated list'!C1824)","v":""},{"$f":"IF('Generated list'!D1824=\"\",\"\",'Generated list'!D1824)","v":""}]
[null,{"$f":"IF('Generated list'!B1825=\"\",\"\",'Generated list'!B1825)","v":""},{"$f":"IF('Generated list'!C1825=\"\",\"\",'Generated list'!C1825)","v":""},{"$f":"IF('Generated list'!D1825=\"\",\"\",'Generated list'!D1825)","v":""}]
[null,{"$f":"IF('Generated list'!B1826=\"\",\"\",'Generated list'!B1826)","v":""},{"$f":"IF('Generated list'!C1826=\"\",\"\",'Generated list'!C1826)","v":""},{"$f":"IF('Generated list'!D1826=\"\",\"\",'Generated list'!D1826)","v":""}]
[null,{"$f":"IF('Generated list'!B1827=\"\",\"\",'Generated list'!B1827)","v":""},{"$f":"IF('Generated list'!C1827=\"\",\"\",'Generated list'!C1827)","v":""},{"$f":"IF('Generated list'!D1827=\"\",\"\",'Generated list'!D1827)","v":""}]
[null,{"$f":"IF('Generated list'!B1828=\"\",\"\",'Generated list'!B1828)","v":""},{"$f":"IF('Generated list'!C1828=\"\",\"\",'Generated list'!C1828)","v":""},{"$f":"IF('Generated list'!D1828=\"\",\"\",'Generated list'!D1828)","v":""}]
[null,{"$f":"IF('Generated list'!B1829=\"\",\"\",'Generated list'!B1829)","v":""},{"$f":"IF('Generated list'!C1829=\"\",\"\",'Generated list'!C1829)","v":""},{"$f":"IF('Generated list'!D1829=\"\",\"\",'Generated list'!D1829)","v":""}]
[null,{"$f":"IF('Generated list'!B1830=\"\",\"\",'Generated list'!B1830)","v":""},{"$f":"IF('Generated list'!C1830=\"\",\"\",'Generated list'!C1830)","v":""},{"$f":"IF('Generated list'!D1830=\"\",\"\",'Generated list'!D1830)","v":""}]
[null,{"$f":"IF('Generated list'!B1831=\"\",\"\",'Generated list'!B1831)","v":""},{"$f":"IF('Generated list'!C1831=\"\",\"\",'Generated list'!C1831)","v":""},{"$f":"IF('Generated list'!D1831=\"\",\"\",'Generated list'!D1831)","v":""}]
[null,{"$f":"IF('Generated list'!B1832=\"\",\"\",'Generated list'!B1832)","v":""},{"$f":"IF('Generated list'!C1832=\"\",\"\",'Generated list'!C1832)","v":""},{"$f":"IF('Generated list'!D1832=\"\",\"\",'Generated list'!D1832)","v":""}]
[null,{"$f":"IF('Generated list'!B1833=\"\",\"\",'Generated list'!B1833)","v":""},{"$f":"IF('Generated list'!C1833=\"\",\"\",'Generated list'!C1833)","v":""},{"$f":"IF('Generated list'!D1833=\"\",\"\",'Generated list'!D1833)","v":""}]
[null,{"$f":"IF('Generated list'!B1834=\"\",\"\",'Generated list'!B1834)","v":""},{"$f":"IF('Generated list'!C1834=\"\",\"\",'Generated list'!C1834)","v":""},{"$f":"IF('Generated list'!D1834=\"\",\"\",'Generated list'!D1834)","v":""}]
[null,{"$f":"IF('Generated list'!B1835=\"\",\"\",'Generated list'!B1835)","v":""},{"$f":"IF('Generated list'!C1835=\"\",\"\",'Generated list'!C1835)","v":""},{"$f":"IF('Generated list'!D1835=\"\",\"\",'Generated list'!D1835)","v":""}]
[null,{"$f":"IF('Generated list'!B1836=\"\",\"\",'Generated list'!B1836)","v":""},{"$f":"IF('Generated list'!C1836=\"\",\"\",'Generated list'!C1836)","v":""},{"$f":"IF('Generated list'!D1836=\"\",\"\",'Generated list'!D1836)","v":""}]
[null,{"$f":"IF('Generated list'!B1837=\"\",\"\",'Generated list'!B1837)","v":""},{"$f":"IF('Generated list'!C1837=\"\",\"\",'Generated list'!C1837)","v":""},{"$f":"IF('Generated list'!D1837=\"\",\"\",'Generated list'!D1837)","v":""}]
[null,{"$f":"IF('Generated list'!B1838=\"\",\"\",'Generated list'!B1838)","v":""},{"$f":"IF('Generated list'!C1838=\"\",\"\",'Generated list'!C1838)","v":""},{"$f":"IF('Generated list'!D1838=\"\",\"\",'Generated list'!D1838)","v":""}]
[null,{"$f":"IF('Generated list'!B1839=\"\",\"\",'Generated list'!B1839)","v":""},{"$f":"IF('Generated list'!C1839=\"\",\"\",'Generated list'!C1839)","v":""},{"$f":"IF('Generated list'!D1839=\"\",\"\",'Generated list'!D1839)","v":""}]
[null,{"$f":"IF('Generated list'!B1840=\"\",\"\",'Generated list'!B1840)","v":""},{"$f":"IF('Generated list'!C1840=\"\",\"\",'Generated list'!C1840)","v":""},{"$f":"IF('Generated list'!D1840=\"\",\"\",'Generated list'!D1840)","v":""}]
[null,{"$f":"IF('Generated list'!B1841=\"\",\"\",'Generated list'!B1841)","v":""},{"$f":"IF('Generated list'!C1841=\"\",\"\",'Generated list'!C1841)","v":""},{"$f":"IF('Generated list'!D1841=\"\",\"\",'Generated list'!D1841)","v":""}]
[null,{"$f":"IF('Generated list'!B1842=\"\",\"\",'Generated list'!B1842)","v":""},{"$f":"IF('Generated list'!C1842=\"\",\"\",'Generated list'!C1842)","v":""},{"$f":"IF('Generated list'!D1842=\"\",\"\",'Generated list'!D1842)","v":""}]
[null,{"$f":"IF('Generated list'!B1843=\"\",\"\",'Generated list'!B1843)","v":""},{"$f":"IF('Generated list'!C1843=\"\",\"\",'Generated list'!C1843)","v":""},{"$f":"IF('Generated list'!D1843=\"\",\"\",'Generated list'!D1843)","v":""}]
[null,{"$f":"IF('Generated list'!B1844=\"\",\"\",'Generated list'!B1844)","v":""},{"$f":"IF('Generated list'!C1844=\"\",\"\",'Generated list'!C1844)","v":""},{"$f":"IF('Generated list'!D1844=\"\",\"\",'Generated list'!D1844)","v":""}]
[null,{"$f":"IF('Generated list'!B1845=\"\",\"\",'Generated list'!B1845)","v":""},{"$f":"IF('Generated list'!C1845=\"\",\"\",'Generated list'!C1845)","v":""},{"$f":"IF('Generated list'!D1845=\"\",\"\",'Generated list'!D1845)","v":""}]
[null,{"$f":"IF('Generated list'!B1846=\"\",\"\",'Generated list'!B1846)","v":""},{"$f":"IF('Generated list'!C1846=\"\",\"\",'Generated list'!C1846)","v":""},{"$f":"IF('Generated list'!D1846=\"\",\"\",'Generated list'!D1846)","v":""}]
[null,{"$f":"IF('Generated list'!B1847=\"\",\"\",'Generated list'!B1847)","v":""},{"$f":"IF('Generated list'!C1847=\"\",\"\",'Generated list'!C1847)","v":""},{"$f":"IF('Generated list'!D1847=\"\",\"\",'Generated list'!D1847)","v":""}]
[null,{"$f":"IF('Generated list'!B1848=\"\",\"\",'Generated list'!B1848)","v":""},{"$f":"IF('Generated list'!C1848=\"\",\"\",'Generated list'!C1848)","v":""},{"$f":"IF('Generated list'!D1848=\"\",\"\",'Generated list'!D1848)","v":""}]
[null,{"$f":"IF('Generated list'!B1849=\"\",\"\",'Generated list'!B1849)","v":""},{"$f":"IF('Generated list'!C1849=\"\",\"\",'Generated list'!C1849)","v":""},{"$f":"IF('Generated list'!D1849=\"\",\"\",'Generated list'!D1849)","v":""}]
[null,{"$f":"IF('Generated list'!B1850=\"\",\"\",'Generated list'!B1850)","v":""},{"$f":"IF('Generated list'!C1850=\"\",\"\",'Generated list'!C1850)","v":""},{"$f":"IF('Generated list'!D1850=\"\",\"\",'Generated list'!D1850)","v":""}]
[null,{"$f":"IF('Generated list'!B1851=\"\",\"\",'Generated list'!B1851)","v":""},{"$f":"IF('Generated list'!C1851=\"\",\"\",'Generated list'!C1851)","v":""},{"$f":"IF('Generated list'!D1851=\"\",\"\",'Generated list'!D1851)","v":""}]
[null,{"$f":"IF('Generated list'!B1852=\"\",\"\",'Generated list'!B1852)","v":""},{"$f":"IF('Generated list'!C1852=\"\",\"\",'Generated list'!C1852)","v":""},{"$f":"IF('Generated list'!D1852=\"\",\"\",'Generated list'!D1852)","v":""}]
[null,{"$f":"IF('Generated list'!B1853=\"\",\"\",'Generated list'!B1853)","v":""},{"$f":"IF('Generated list'!C1853=\"\",\"\",'Generated list'!C1853)","v":""},{"$f":"IF('Generated list'!D1853=\"\",\"\",'Generated list'!D1853)","v":""}]
[null,{"$f":"IF('Generated list'!B1854=\"\",\"\",'Generated list'!B1854)","v":""},{"$f":"IF('Generated list'!C1854=\"\",\"\",'Generated list'!C1854)","v":""},{"$f":"IF('Generated list'!D1854=\"\",\"\",'Generated list'!D1854)","v":""}]
[null,{"$f":"IF('Generated list'!B1855=\"\",\"\",'Generated list'!B1855)","v":""},{"$f":"IF('Generated list'!C1855=\"\",\"\",'Generated list'!C1855)","v":""},{"$f":"IF('Generated list'!D1855=\"\",\"\",'Generated list'!D1855)","v":""}]
[null,{"$f":"IF('Generated list'!B1856=\"\",\"\",'Generated list'!B1856)","v":""},{"$f":"IF('Generated list'!C1856=\"\",\"\",'Generated list'!C1856)","v":""},{"$f":"IF('Generated list'!D1856=\"\",\"\",'Generated list'!D1856)","v":""}]
[null,{"$f":"IF('Generated list'!B1857=\"\",\"\",'Generated list'!B1857)","v":""},{"$f":"IF('Generated list'!C1857=\"\",\"\",'Generated list'!C1857)","v":""},{"$f":"IF('Generated list'!D1857=\"\",\"\",'Generated list'!D1857)","v":""}]
[null,{"$f":"IF('Generated list'!B1858=\"\",\"\",'Generated list'!B1858)","v":""},{"$f":"IF('Generated list'!C1858=\"\",\"\",'Generated list'!C1858)","v":""},{"$f":"IF('Generated list'!D1858=\"\",\"\",'Generated list'!D1858)","v":""}]
[null,{"$f":"IF('Generated list'!B1859=\"\",\"\",'Generated list'!B1859)","v":""},{"$f":"IF('Generated list'!C1859=\"\",\"\",'Generated list'!C1859)","v":""},{"$f":"IF('Generated list'!D1859=\"\",\"\",'Generated list'!D1859)","v":""}]
[null,{"$f":"IF('Generated list'!B1860=\"\",\"\",'Generated list'!B1860)","v":""},{"$f":"IF('Generated list'!C1860=\"\",\"\",'Generated list'!C1860)","v":""},{"$f":"IF('Generated list'!D1860=\"\",\"\",'Generated list'!D1860)","v":""}]
[null,{"$f":"IF('Generated list'!B1861=\"\",\"\",'Generated list'!B1861)","v":""},{"$f":"IF('Generated list'!C1861=\"\",\"\",'Generated list'!C1861)","v":""},{"$f":"IF('Generated list'!D1861=\"\",\"\",'Generated list'!D1861)","v":""}]
[null,{"$f":"IF('Generated list'!B1862=\"\",\"\",'Generated list'!B1862)","v":""},{"$f":"IF('Generated list'!C1862=\"\",\"\",'Generated list'!C1862)","v":""},{"$f":"IF('Generated list'!D1862=\"\",\"\",'Generated list'!D1862)","v":""}]
[null,{"$f":"IF('Generated list'!B1863=\"\",\"\",'Generated list'!B1863)","v":""},{"$f":"IF('Generated list'!C1863=\"\",\"\",'Generated list'!C1863)","v":""},{"$f":"IF('Generated list'!D1863=\"\",\"\",'Generated list'!D1863)","v":""}]
[null,{"$f":"IF('Generated list'!B1864=\"\",\"\",'Generated list'!B1864)","v":""},{"$f":"IF('Generated list'!C1864=\"\",\"\",'Generated list'!C1864)","v":""},{"$f":"IF('Generated list'!D1864=\"\",\"\",'Generated list'!D1864)","v":""}]
[null,{"$f":"IF('Generated list'!B1865=\"\",\"\",'Generated list'!B1865)","v":""},{"$f":"IF('Generated list'!C1865=\"\",\"\",'Generated list'!C1865)","v":""},{"$f":"IF('Generated list'!D1865=\"\",\"\",'Generated list'!D1865)","v":""}]
[null,{"$f":"IF('Generated list'!B1866=\"\",\"\",'Generated list'!B1866)","v":""},{"$f":"IF('Generated list'!C1866=\"\",\"\",'Generated list'!C1866)","v":""},{"$f":"IF('Generated list'!D1866=\"\",\"\",'Generated list'!D1866)","v":""}]
[null,{"$f":"IF('Generated list'!B1867=\"\",\"\",'Generated list'!B1867)","v":""},{"$f":"IF('Generated list'!C1867=\"\",\"\",'Generated list'!C1867)","v":""},{"$f":"IF('Generated list'!D1867=\"\",\"\",'Generated list'!D1867)","v":""}]
[null,{"$f":"IF('Generated list'!B1868=\"\",\"\",'Generated list'!B1868)","v":""},{"$f":"IF('Generated list'!C1868=\"\",\"\",'Generated list'!C1868)","v":""},{"$f":"IF('Generated list'!D1868=\"\",\"\",'Generated list'!D1868)","v":""}]
[null,{"$f":"IF('Generated list'!B1869=\"\",\"\",'Generated list'!B1869)","v":""},{"$f":"IF('Generated list'!C1869=\"\",\"\",'Generated list'!C1869)","v":""},{"$f":"IF('Generated list'!D1869=\"\",\"\",'Generated list'!D1869)","v":""}]
[null,{"$f":"IF('Generated list'!B1870=\"\",\"\",'Generated list'!B1870)","v":""},{"$f":"IF('Generated list'!C1870=\"\",\"\",'Generated list'!C1870)","v":""},{"$f":"IF('Generated list'!D1870=\"\",\"\",'Generated list'!D1870)","v":""}]
[null,{"$f":"IF('Generated list'!B1871=\"\",\"\",'Generated list'!B1871)","v":""},{"$f":"IF('Generated list'!C1871=\"\",\"\",'Generated list'!C1871)","v":""},{"$f":"IF('Generated list'!D1871=\"\",\"\",'Generated list'!D1871)","v":""}]
[null,{"$f":"IF('Generated list'!B1872=\"\",\"\",'Generated list'!B1872)","v":""},{"$f":"IF('Generated list'!C1872=\"\",\"\",'Generated list'!C1872)","v":""},{"$f":"IF('Generated list'!D1872=\"\",\"\",'Generated list'!D1872)","v":""}]
[null,{"$f":"IF('Generated list'!B1873=\"\",\"\",'Generated list'!B1873)","v":""},{"$f":"IF('Generated list'!C1873=\"\",\"\",'Generated list'!C1873)","v":""},{"$f":"IF('Generated list'!D1873=\"\",\"\",'Generated list'!D1873)","v":""}]
[null,{"$f":"IF('Generated list'!B1874=\"\",\"\",'Generated list'!B1874)","v":""},{"$f":"IF('Generated list'!C1874=\"\",\"\",'Generated list'!C1874)","v":""},{"$f":"IF('Generated list'!D1874=\"\",\"\",'Generated list'!D1874)","v":""}]
[null,{"$f":"IF('Generated list'!B1875=\"\",\"\",'Generated list'!B1875)","v":""},{"$f":"IF('Generated list'!C1875=\"\",\"\",'Generated list'!C1875)","v":""},{"$f":"IF('Generated list'!D1875=\"\",\"\",'Generated list'!D1875)","v":""}]
[null,{"$f":"IF('Generated list'!B1876=\"\",\"\",'Generated list'!B1876)","v":""},{"$f":"IF('Generated list'!C1876=\"\",\"\",'Generated list'!C1876)","v":""},{"$f":"IF('Generated list'!D1876=\"\",\"\",'Generated list'!D1876)","v":""}]
[null,{"$f":"IF('Generated list'!B1877=\"\",\"\",'Generated list'!B1877)","v":""},{"$f":"IF('Generated list'!C1877=\"\",\"\",'Generated list'!C1877)","v":""},{"$f":"IF('Generated list'!D1877=\"\",\"\",'Generated list'!D1877)","v":""}]
[null,{"$f":"IF('Generated list'!B1878=\"\",\"\",'Generated list'!B1878)","v":""},{"$f":"IF('Generated list'!C1878=\"\",\"\",'Generated list'!C1878)","v":""},{"$f":"IF('Generated list'!D1878=\"\",\"\",'Generated list'!D1878)","v":""}]
[null,{"$f":"IF('Generated list'!B1879=\"\",\"\",'Generated list'!B1879)","v":""},{"$f":"IF('Generated list'!C1879=\"\",\"\",'Generated list'!C1879)","v":""},{"$f":"IF('Generated list'!D1879=\"\",\"\",'Generated list'!D1879)","v":""}]
[null,{"$f":"IF('Generated list'!B1880=\"\",\"\",'Generated list'!B1880)","v":""},{"$f":"IF('Generated list'!C1880=\"\",\"\",'Generated list'!C1880)","v":""},{"$f":"IF('Generated list'!D1880=\"\",\"\",'Generated list'!D1880)","v":""}]
[null,{"$f":"IF('Generated list'!B1881=\"\",\"\",'Generated list'!B1881)","v":""},{"$f":"IF('Generated list'!C1881=\"\",\"\",'Generated list'!C1881)","v":""},{"$f":"IF('Generated list'!D1881=\"\",\"\",'Generated list'!D1881)","v":""}]
[null,{"$f":"IF('Generated list'!B1882=\"\",\"\",'Generated list'!B1882)","v":""},{"$f":"IF('Generated list'!C1882=\"\",\"\",'Generated list'!C1882)","v":""},{"$f":"IF('Generated list'!D1882=\"\",\"\",'Generated list'!D1882)","v":""}]
[null,{"$f":"IF('Generated list'!B1883=\"\",\"\",'Generated list'!B1883)","v":""},{"$f":"IF('Generated list'!C1883=\"\",\"\",'Generated list'!C1883)","v":""},{"$f":"IF('Generated list'!D1883=\"\",\"\",'Generated list'!D1883)","v":""}]
[null,{"$f":"IF('Generated list'!B1884=\"\",\"\",'Generated list'!B1884)","v":""},{"$f":"IF('Generated list'!C1884=\"\",\"\",'Generated list'!C1884)","v":""},{"$f":"IF('Generated list'!D1884=\"\",\"\",'Generated list'!D1884)","v":""}]
[null,{"$f":"IF('Generated list'!B1885=\"\",\"\",'Generated list'!B1885)","v":""},{"$f":"IF('Generated list'!C1885=\"\",\"\",'Generated list'!C1885)","v":""},{"$f":"IF('Generated list'!D1885=\"\",\"\",'Generated list'!D1885)","v":""}]
[null,{"$f":"IF('Generated list'!B1886=\"\",\"\",'Generated list'!B1886)","v":""},{"$f":"IF('Generated list'!C1886=\"\",\"\",'Generated list'!C1886)","v":""},{"$f":"IF('Generated list'!D1886=\"\",\"\",'Generated list'!D1886)","v":""}]
[null,{"$f":"IF('Generated list'!B1887=\"\",\"\",'Generated list'!B1887)","v":""},{"$f":"IF('Generated list'!C1887=\"\",\"\",'Generated list'!C1887)","v":""},{"$f":"IF('Generated list'!D1887=\"\",\"\",'Generated list'!D1887)","v":""}]
[null,{"$f":"IF('Generated list'!B1888=\"\",\"\",'Generated list'!B1888)","v":""},{"$f":"IF('Generated list'!C1888=\"\",\"\",'Generated list'!C1888)","v":""},{"$f":"IF('Generated list'!D1888=\"\",\"\",'Generated list'!D1888)","v":""}]
[null,{"$f":"IF('Generated list'!B1889=\"\",\"\",'Generated list'!B1889)","v":""},{"$f":"IF('Generated list'!C1889=\"\",\"\",'Generated list'!C1889)","v":""},{"$f":"IF('Generated list'!D1889=\"\",\"\",'Generated list'!D1889)","v":""}]
[null,{"$f":"IF('Generated list'!B1890=\"\",\"\",'Generated list'!B1890)","v":""},{"$f":"IF('Generated list'!C1890=\"\",\"\",'Generated list'!C1890)","v":""},{"$f":"IF('Generated list'!D1890=\"\",\"\",'Generated list'!D1890)","v":""}]
[null,{"$f":"IF('Generated list'!B1891=\"\",\"\",'Generated list'!B1891)","v":""},{"$f":"IF('Generated list'!C1891=\"\",\"\",'Generated list'!C1891)","v":""},{"$f":"IF('Generated list'!D1891=\"\",\"\",'Generated list'!D1891)","v":""}]
[null,{"$f":"IF('Generated list'!B1892=\"\",\"\",'Generated list'!B1892)","v":""},{"$f":"IF('Generated list'!C1892=\"\",\"\",'Generated list'!C1892)","v":""},{"$f":"IF('Generated list'!D1892=\"\",\"\",'Generated list'!D1892)","v":""}]
[null,{"$f":"IF('Generated list'!B1893=\"\",\"\",'Generated list'!B1893)","v":""},{"$f":"IF('Generated list'!C1893=\"\",\"\",'Generated list'!C1893)","v":""},{"$f":"IF('Generated list'!D1893=\"\",\"\",'Generated list'!D1893)","v":""}]
[null,{"$f":"IF('Generated list'!B1894=\"\",\"\",'Generated list'!B1894)","v":""},{"$f":"IF('Generated list'!C1894=\"\",\"\",'Generated list'!C1894)","v":""},{"$f":"IF('Generated list'!D1894=\"\",\"\",'Generated list'!D1894)","v":""}]
[null,{"$f":"IF('Generated list'!B1895=\"\",\"\",'Generated list'!B1895)","v":""},{"$f":"IF('Generated list'!C1895=\"\",\"\",'Generated list'!C1895)","v":""},{"$f":"IF('Generated list'!D1895=\"\",\"\",'Generated list'!D1895)","v":""}]
[null,{"$f":"IF('Generated list'!B1896=\"\",\"\",'Generated list'!B1896)","v":""},{"$f":"IF('Generated list'!C1896=\"\",\"\",'Generated list'!C1896)","v":""},{"$f":"IF('Generated list'!D1896=\"\",\"\",'Generated list'!D1896)","v":""}]
[null,{"$f":"IF('Generated list'!B1897=\"\",\"\",'Generated list'!B1897)","v":""},{"$f":"IF('Generated list'!C1897=\"\",\"\",'Generated list'!C1897)","v":""},{"$f":"IF('Generated list'!D1897=\"\",\"\",'Generated list'!D1897)","v":""}]
[null,{"$f":"IF('Generated list'!B1898=\"\",\"\",'Generated list'!B1898)","v":""},{"$f":"IF('Generated list'!C1898=\"\",\"\",'Generated list'!C1898)","v":""},{"$f":"IF('Generated list'!D1898=\"\",\"\",'Generated list'!D1898)","v":""}]
[null,{"$f":"IF('Generated list'!B1899=\"\",\"\",'Generated list'!B1899)","v":""},{"$f":"IF('Generated list'!C1899=\"\",\"\",'Generated list'!C1899)","v":""},{"$f":"IF('Generated list'!D1899=\"\",\"\",'Generated list'!D1899)","v":""}]
[null,{"$f":"IF('Generated list'!B1900=\"\",\"\",'Generated list'!B1900)","v":""},{"$f":"IF('Generated list'!C1900=\"\",\"\",'Generated list'!C1900)","v":""},{"$f":"IF('Generated list'!D1900=\"\",\"\",'Generated list'!D1900)","v":""}]
[null,{"$f":"IF('Generated list'!B1901=\"\",\"\",'Generated list'!B1901)","v":""},{"$f":"IF('Generated list'!C1901=\"\",\"\",'Generated list'!C1901)","v":""},{"$f":"IF('Generated list'!D1901=\"\",\"\",'Generated list'!D1901)","v":""}]
[null,{"$f":"IF('Generated list'!B1902=\"\",\"\",'Generated list'!B1902)","v":""},{"$f":"IF('Generated list'!C1902=\"\",\"\",'Generated list'!C1902)","v":""},{"$f":"IF('Generated list'!D1902=\"\",\"\",'Generated list'!D1902)","v":""}]
[null,{"$f":"IF('Generated list'!B1903=\"\",\"\",'Generated list'!B1903)","v":""},{"$f":"IF('Generated list'!C1903=\"\",\"\",'Generated list'!C1903)","v":""},{"$f":"IF('Generated list'!D1903=\"\",\"\",'Generated list'!D1903)","v":""}]
[null,{"$f":"IF('Generated list'!B1904=\"\",\"\",'Generated list'!B1904)","v":""},{"$f":"IF('Generated list'!C1904=\"\",\"\",'Generated list'!C1904)","v":""},{"$f":"IF('Generated list'!D1904=\"\",\"\",'Generated list'!D1904)","v":""}]
[null,{"$f":"IF('Generated list'!B1905=\"\",\"\",'Generated list'!B1905)","v":""},{"$f":"IF('Generated list'!C1905=\"\",\"\",'Generated list'!C1905)","v":""},{"$f":"IF('Generated list'!D1905=\"\",\"\",'Generated list'!D1905)","v":""}]
[null,{"$f":"IF('Generated list'!B1906=\"\",\"\",'Generated list'!B1906)","v":""},{"$f":"IF('Generated list'!C1906=\"\",\"\",'Generated list'!C1906)","v":""},{"$f":"IF('Generated list'!D1906=\"\",\"\",'Generated list'!D1906)","v":""}]
[null,{"$f":"IF('Generated list'!B1907=\"\",\"\",'Generated list'!B1907)","v":""},{"$f":"IF('Generated list'!C1907=\"\",\"\",'Generated list'!C1907)","v":""},{"$f":"IF('Generated list'!D1907=\"\",\"\",'Generated list'!D1907)","v":""}]
[null,{"$f":"IF('Generated list'!B1908=\"\",\"\",'Generated list'!B1908)","v":""},{"$f":"IF('Generated list'!C1908=\"\",\"\",'Generated list'!C1908)","v":""},{"$f":"IF('Generated list'!D1908=\"\",\"\",'Generated list'!D1908)","v":""}]
[null,{"$f":"IF('Generated list'!B1909=\"\",\"\",'Generated list'!B1909)","v":""},{"$f":"IF('Generated list'!C1909=\"\",\"\",'Generated list'!C1909)","v":""},{"$f":"IF('Generated list'!D1909=\"\",\"\",'Generated list'!D1909)","v":""}]
[null,{"$f":"IF('Generated list'!B1910=\"\",\"\",'Generated list'!B1910)","v":""},{"$f":"IF('Generated list'!C1910=\"\",\"\",'Generated list'!C1910)","v":""},{"$f":"IF('Generated list'!D1910=\"\",\"\",'Generated list'!D1910)","v":""}]
[null,{"$f":"IF('Generated list'!B1911=\"\",\"\",'Generated list'!B1911)","v":""},{"$f":"IF('Generated list'!C1911=\"\",\"\",'Generated list'!C1911)","v":""},{"$f":"IF('Generated list'!D1911=\"\",\"\",'Generated list'!D1911)","v":""}]
[null,{"$f":"IF('Generated list'!B1912=\"\",\"\",'Generated list'!B1912)","v":""},{"$f":"IF('Generated list'!C1912=\"\",\"\",'Generated list'!C1912)","v":""},{"$f":"IF('Generated list'!D1912=\"\",\"\",'Generated list'!D1912)","v":""}]
[null,{"$f":"IF('Generated list'!B1913=\"\",\"\",'Generated list'!B1913)","v":""},{"$f":"IF('Generated list'!C1913=\"\",\"\",'Generated list'!C1913)","v":""},{"$f":"IF('Generated list'!D1913=\"\",\"\",'Generated list'!D1913)","v":""}]
[null,{"$f":"IF('Generated list'!B1914=\"\",\"\",'Generated list'!B1914)","v":""},{"$f":"IF('Generated list'!C1914=\"\",\"\",'Generated list'!C1914)","v":""},{"$f":"IF('Generated list'!D1914=\"\",\"\",'Generated list'!D1914)","v":""}]
[null,{"$f":"IF('Generated list'!B1915=\"\",\"\",'Generated list'!B1915)","v":""},{"$f":"IF('Generated list'!C1915=\"\",\"\",'Generated list'!C1915)","v":""},{"$f":"IF('Generated list'!D1915=\"\",\"\",'Generated list'!D1915)","v":""}]
[null,{"$f":"IF('Generated list'!B1916=\"\",\"\",'Generated list'!B1916)","v":""},{"$f":"IF('Generated list'!C1916=\"\",\"\",'Generated list'!C1916)","v":""},{"$f":"IF('Generated list'!D1916=\"\",\"\",'Generated list'!D1916)","v":""}]
[null,{"$f":"IF('Generated list'!B1917=\"\",\"\",'Generated list'!B1917)","v":""},{"$f":"IF('Generated list'!C1917=\"\",\"\",'Generated list'!C1917)","v":""},{"$f":"IF('Generated list'!D1917=\"\",\"\",'Generated list'!D1917)","v":""}]
[null,{"$f":"IF('Generated list'!B1918=\"\",\"\",'Generated list'!B1918)","v":""},{"$f":"IF('Generated list'!C1918=\"\",\"\",'Generated list'!C1918)","v":""},{"$f":"IF('Generated list'!D1918=\"\",\"\",'Generated list'!D1918)","v":""}]
[null,{"$f":"IF('Generated list'!B1919=\"\",\"\",'Generated list'!B1919)","v":""},{"$f":"IF('Generated list'!C1919=\"\",\"\",'Generated list'!C1919)","v":""},{"$f":"IF('Generated list'!D1919=\"\",\"\",'Generated list'!D1919)","v":""}]
[null,{"$f":"IF('Generated list'!B1920=\"\",\"\",'Generated list'!B1920)","v":""},{"$f":"IF('Generated list'!C1920=\"\",\"\",'Generated list'!C1920)","v":""},{"$f":"IF('Generated list'!D1920=\"\",\"\",'Generated list'!D1920)","v":""}]
[null,{"$f":"IF('Generated list'!B1921=\"\",\"\",'Generated list'!B1921)","v":""},{"$f":"IF('Generated list'!C1921=\"\",\"\",'Generated list'!C1921)","v":""},{"$f":"IF('Generated list'!D1921=\"\",\"\",'Generated list'!D1921)","v":""}]
[null,{"$f":"IF('Generated list'!B1922=\"\",\"\",'Generated list'!B1922)","v":""},{"$f":"IF('Generated list'!C1922=\"\",\"\",'Generated list'!C1922)","v":""},{"$f":"IF('Generated list'!D1922=\"\",\"\",'Generated list'!D1922)","v":""}]
[null,{"$f":"IF('Generated list'!B1923=\"\",\"\",'Generated list'!B1923)","v":""},{"$f":"IF('Generated list'!C1923=\"\",\"\",'Generated list'!C1923)","v":""},{"$f":"IF('Generated list'!D1923=\"\",\"\",'Generated list'!D1923)","v":""}]
[null,{"$f":"IF('Generated list'!B1924=\"\",\"\",'Generated list'!B1924)","v":""},{"$f":"IF('Generated list'!C1924=\"\",\"\",'Generated list'!C1924)","v":""},{"$f":"IF('Generated list'!D1924=\"\",\"\",'Generated list'!D1924)","v":""}]
[null,{"$f":"IF('Generated list'!B1925=\"\",\"\",'Generated list'!B1925)","v":""},{"$f":"IF('Generated list'!C1925=\"\",\"\",'Generated list'!C1925)","v":""},{"$f":"IF('Generated list'!D1925=\"\",\"\",'Generated list'!D1925)","v":""}]
[null,{"$f":"IF('Generated list'!B1926=\"\",\"\",'Generated list'!B1926)","v":""},{"$f":"IF('Generated list'!C1926=\"\",\"\",'Generated list'!C1926)","v":""},{"$f":"IF('Generated list'!D1926=\"\",\"\",'Generated list'!D1926)","v":""}]
[null,{"$f":"IF('Generated list'!B1927=\"\",\"\",'Generated list'!B1927)","v":""},{"$f":"IF('Generated list'!C1927=\"\",\"\",'Generated list'!C1927)","v":""},{"$f":"IF('Generated list'!D1927=\"\",\"\",'Generated list'!D1927)","v":""}]
[null,{"$f":"IF('Generated list'!B1928=\"\",\"\",'Generated list'!B1928)","v":""},{"$f":"IF('Generated list'!C1928=\"\",\"\",'Generated list'!C1928)","v":""},{"$f":"IF('Generated list'!D1928=\"\",\"\",'Generated list'!D1928)","v":""}]
[null,{"$f":"IF('Generated list'!B1929=\"\",\"\",'Generated list'!B1929)","v":""},{"$f":"IF('Generated list'!C1929=\"\",\"\",'Generated list'!C1929)","v":""},{"$f":"IF('Generated list'!D1929=\"\",\"\",'Generated list'!D1929)","v":""}]
[null,{"$f":"IF('Generated list'!B1930=\"\",\"\",'Generated list'!B1930)","v":""},{"$f":"IF('Generated list'!C1930=\"\",\"\",'Generated list'!C1930)","v":""},{"$f":"IF('Generated list'!D1930=\"\",\"\",'Generated list'!D1930)","v":""}]
[null,{"$f":"IF('Generated list'!B1931=\"\",\"\",'Generated list'!B1931)","v":""},{"$f":"IF('Generated list'!C1931=\"\",\"\",'Generated list'!C1931)","v":""},{"$f":"IF('Generated list'!D1931=\"\",\"\",'Generated list'!D1931)","v":""}]
[null,{"$f":"IF('Generated list'!B1932=\"\",\"\",'Generated list'!B1932)","v":""},{"$f":"IF('Generated list'!C1932=\"\",\"\",'Generated list'!C1932)","v":""},{"$f":"IF('Generated list'!D1932=\"\",\"\",'Generated list'!D1932)","v":""}]
[null,{"$f":"IF('Generated list'!B1933=\"\",\"\",'Generated list'!B1933)","v":""},{"$f":"IF('Generated list'!C1933=\"\",\"\",'Generated list'!C1933)","v":""},{"$f":"IF('Generated list'!D1933=\"\",\"\",'Generated list'!D1933)","v":""}]
[null,{"$f":"IF('Generated list'!B1934=\"\",\"\",'Generated list'!B1934)","v":""},{"$f":"IF('Generated list'!C1934=\"\",\"\",'Generated list'!C1934)","v":""},{"$f":"IF('Generated list'!D1934=\"\",\"\",'Generated list'!D1934)","v":""}]
[null,{"$f":"IF('Generated list'!B1935=\"\",\"\",'Generated list'!B1935)","v":""},{"$f":"IF('Generated list'!C1935=\"\",\"\",'Generated list'!C1935)","v":""},{"$f":"IF('Generated list'!D1935=\"\",\"\",'Generated list'!D1935)","v":""}]
[null,{"$f":"IF('Generated list'!B1936=\"\",\"\",'Generated list'!B1936)","v":""},{"$f":"IF('Generated list'!C1936=\"\",\"\",'Generated list'!C1936)","v":""},{"$f":"IF('Generated list'!D1936=\"\",\"\",'Generated list'!D1936)","v":""}]
[null,{"$f":"IF('Generated list'!B1937=\"\",\"\",'Generated list'!B1937)","v":""},{"$f":"IF('Generated list'!C1937=\"\",\"\",'Generated list'!C1937)","v":""},{"$f":"IF('Generated list'!D1937=\"\",\"\",'Generated list'!D1937)","v":""}]
[null,{"$f":"IF('Generated list'!B1938=\"\",\"\",'Generated list'!B1938)","v":""},{"$f":"IF('Generated list'!C1938=\"\",\"\",'Generated list'!C1938)","v":""},{"$f":"IF('Generated list'!D1938=\"\",\"\",'Generated list'!D1938)","v":""}]
[null,{"$f":"IF('Generated list'!B1939=\"\",\"\",'Generated list'!B1939)","v":""},{"$f":"IF('Generated list'!C1939=\"\",\"\",'Generated list'!C1939)","v":""},{"$f":"IF('Generated list'!D1939=\"\",\"\",'Generated list'!D1939)","v":""}]
[null,{"$f":"IF('Generated list'!B1940=\"\",\"\",'Generated list'!B1940)","v":""},{"$f":"IF('Generated list'!C1940=\"\",\"\",'Generated list'!C1940)","v":""},{"$f":"IF('Generated list'!D1940=\"\",\"\",'Generated list'!D1940)","v":""}]
[null,{"$f":"IF('Generated list'!B1941=\"\",\"\",'Generated list'!B1941)","v":""},{"$f":"IF('Generated list'!C1941=\"\",\"\",'Generated list'!C1941)","v":""},{"$f":"IF('Generated list'!D1941=\"\",\"\",'Generated list'!D1941)","v":""}]
[null,{"$f":"IF('Generated list'!B1942=\"\",\"\",'Generated list'!B1942)","v":""},{"$f":"IF('Generated list'!C1942=\"\",\"\",'Generated list'!C1942)","v":""},{"$f":"IF('Generated list'!D1942=\"\",\"\",'Generated list'!D1942)","v":""}]
[null,{"$f":"IF('Generated list'!B1943=\"\",\"\",'Generated list'!B1943)","v":""},{"$f":"IF('Generated list'!C1943=\"\",\"\",'Generated list'!C1943)","v":""},{"$f":"IF('Generated list'!D1943=\"\",\"\",'Generated list'!D1943)","v":""}]
[null,{"$f":"IF('Generated list'!B1944=\"\",\"\",'Generated list'!B1944)","v":""},{"$f":"IF('Generated list'!C1944=\"\",\"\",'Generated list'!C1944)","v":""},{"$f":"IF('Generated list'!D1944=\"\",\"\",'Generated list'!D1944)","v":""}]
[null,{"$f":"IF('Generated list'!B1945=\"\",\"\",'Generated list'!B1945)","v":""},{"$f":"IF('Generated list'!C1945=\"\",\"\",'Generated list'!C1945)","v":""},{"$f":"IF('Generated list'!D1945=\"\",\"\",'Generated list'!D1945)","v":""}]
[null,{"$f":"IF('Generated list'!B1946=\"\",\"\",'Generated list'!B1946)","v":""},{"$f":"IF('Generated list'!C1946=\"\",\"\",'Generated list'!C1946)","v":""},{"$f":"IF('Generated list'!D1946=\"\",\"\",'Generated list'!D1946)","v":""}]
[null,{"$f":"IF('Generated list'!B1947=\"\",\"\",'Generated list'!B1947)","v":""},{"$f":"IF('Generated list'!C1947=\"\",\"\",'Generated list'!C1947)","v":""},{"$f":"IF('Generated list'!D1947=\"\",\"\",'Generated list'!D1947)","v":""}]
[null,{"$f":"IF('Generated list'!B1948=\"\",\"\",'Generated list'!B1948)","v":""},{"$f":"IF('Generated list'!C1948=\"\",\"\",'Generated list'!C1948)","v":""},{"$f":"IF('Generated list'!D1948=\"\",\"\",'Generated list'!D1948)","v":""}]
[null,{"$f":"IF('Generated list'!B1949=\"\",\"\",'Generated list'!B1949)","v":""},{"$f":"IF('Generated list'!C1949=\"\",\"\",'Generated list'!C1949)","v":""},{"$f":"IF('Generated list'!D1949=\"\",\"\",'Generated list'!D1949)","v":""}]
[null,{"$f":"IF('Generated list'!B1950=\"\",\"\",'Generated list'!B1950)","v":""},{"$f":"IF('Generated list'!C1950=\"\",\"\",'Generated list'!C1950)","v":""},{"$f":"IF('Generated list'!D1950=\"\",\"\",'Generated list'!D1950)","v":""}]
[null,{"$f":"IF('Generated list'!B1951=\"\",\"\",'Generated list'!B1951)","v":""},{"$f":"IF('Generated list'!C1951=\"\",\"\",'Generated list'!C1951)","v":""},{"$f":"IF('Generated list'!D1951=\"\",\"\",'Generated list'!D1951)","v":""}]
[null,{"$f":"IF('Generated list'!B1952=\"\",\"\",'Generated list'!B1952)","v":""},{"$f":"IF('Generated list'!C1952=\"\",\"\",'Generated list'!C1952)","v":""},{"$f":"IF('Generated list'!D1952=\"\",\"\",'Generated list'!D1952)","v":""}]
[null,{"$f":"IF('Generated list'!B1953=\"\",\"\",'Generated list'!B1953)","v":""},{"$f":"IF('Generated list'!C1953=\"\",\"\",'Generated list'!C1953)","v":""},{"$f":"IF('Generated list'!D1953=\"\",\"\",'Generated list'!D1953)","v":""}]
[null,{"$f":"IF('Generated list'!B1954=\"\",\"\",'Generated list'!B1954)","v":""},{"$f":"IF('Generated list'!C1954=\"\",\"\",'Generated list'!C1954)","v":""},{"$f":"IF('Generated list'!D1954=\"\",\"\",'Generated list'!D1954)","v":""}]
[null,{"$f":"IF('Generated list'!B1955=\"\",\"\",'Generated list'!B1955)","v":""},{"$f":"IF('Generated list'!C1955=\"\",\"\",'Generated list'!C1955)","v":""},{"$f":"IF('Generated list'!D1955=\"\",\"\",'Generated list'!D1955)","v":""}]
[null,{"$f":"IF('Generated list'!B1956=\"\",\"\",'Generated list'!B1956)","v":""},{"$f":"IF('Generated list'!C1956=\"\",\"\",'Generated list'!C1956)","v":""},{"$f":"IF('Generated list'!D1956=\"\",\"\",'Generated list'!D1956)","v":""}]
[null,{"$f":"IF('Generated list'!B1957=\"\",\"\",'Generated list'!B1957)","v":""},{"$f":"IF('Generated list'!C1957=\"\",\"\",'Generated list'!C1957)","v":""},{"$f":"IF('Generated list'!D1957=\"\",\"\",'Generated list'!D1957)","v":""}]
[null,{"$f":"IF('Generated list'!B1958=\"\",\"\",'Generated list'!B1958)","v":""},{"$f":"IF('Generated list'!C1958=\"\",\"\",'Generated list'!C1958)","v":""},{"$f":"IF('Generated list'!D1958=\"\",\"\",'Generated list'!D1958)","v":""}]
[null,{"$f":"IF('Generated list'!B1959=\"\",\"\",'Generated list'!B1959)","v":""},{"$f":"IF('Generated list'!C1959=\"\",\"\",'Generated list'!C1959)","v":""},{"$f":"IF('Generated list'!D1959=\"\",\"\",'Generated list'!D1959)","v":""}]
[null,{"$f":"IF('Generated list'!B1960=\"\",\"\",'Generated list'!B1960)","v":""},{"$f":"IF('Generated list'!C1960=\"\",\"\",'Generated list'!C1960)","v":""},{"$f":"IF('Generated list'!D1960=\"\",\"\",'Generated list'!D1960)","v":""}]
[null,{"$f":"IF('Generated list'!B1961=\"\",\"\",'Generated list'!B1961)","v":""},{"$f":"IF('Generated list'!C1961=\"\",\"\",'Generated list'!C1961)","v":""},{"$f":"IF('Generated list'!D1961=\"\",\"\",'Generated list'!D1961)","v":""}]
[null,{"$f":"IF('Generated list'!B1962=\"\",\"\",'Generated list'!B1962)","v":""},{"$f":"IF('Generated list'!C1962=\"\",\"\",'Generated list'!C1962)","v":""},{"$f":"IF('Generated list'!D1962=\"\",\"\",'Generated list'!D1962)","v":""}]
[null,{"$f":"IF('Generated list'!B1963=\"\",\"\",'Generated list'!B1963)","v":""},{"$f":"IF('Generated list'!C1963=\"\",\"\",'Generated list'!C1963)","v":""},{"$f":"IF('Generated list'!D1963=\"\",\"\",'Generated list'!D1963)","v":""}]
[null,{"$f":"IF('Generated list'!B1964=\"\",\"\",'Generated list'!B1964)","v":""},{"$f":"IF('Generated list'!C1964=\"\",\"\",'Generated list'!C1964)","v":""},{"$f":"IF('Generated list'!D1964=\"\",\"\",'Generated list'!D1964)","v":""}]
[null,{"$f":"IF('Generated list'!B1965=\"\",\"\",'Generated list'!B1965)","v":""},{"$f":"IF('Generated list'!C1965=\"\",\"\",'Generated list'!C1965)","v":""},{"$f":"IF('Generated list'!D1965=\"\",\"\",'Generated list'!D1965)","v":""}]
[null,{"$f":"IF('Generated list'!B1966=\"\",\"\",'Generated list'!B1966)","v":""},{"$f":"IF('Generated list'!C1966=\"\",\"\",'Generated list'!C1966)","v":""},{"$f":"IF('Generated list'!D1966=\"\",\"\",'Generated list'!D1966)","v":""}]
[null,{"$f":"IF('Generated list'!B1967=\"\",\"\",'Generated list'!B1967)","v":""},{"$f":"IF('Generated list'!C1967=\"\",\"\",'Generated list'!C1967)","v":""},{"$f":"IF('Generated list'!D1967=\"\",\"\",'Generated list'!D1967)","v":""}]
[null,{"$f":"IF('Generated list'!B1968=\"\",\"\",'Generated list'!B1968)","v":""},{"$f":"IF('Generated list'!C1968=\"\",\"\",'Generated list'!C1968)","v":""},{"$f":"IF('Generated list'!D1968=\"\",\"\",'Generated list'!D1968)","v":""}]
[null,{"$f":"IF('Generated list'!B1969=\"\",\"\",'Generated list'!B1969)","v":""},{"$f":"IF('Generated list'!C1969=\"\",\"\",'Generated list'!C1969)","v":""},{"$f":"IF('Generated list'!D1969=\"\",\"\",'Generated list'!D1969)","v":""}]
[null,{"$f":"IF('Generated list'!B1970=\"\",\"\",'Generated list'!B1970)","v":""},{"$f":"IF('Generated list'!C1970=\"\",\"\",'Generated list'!C1970)","v":""},{"$f":"IF('Generated list'!D1970=\"\",\"\",'Generated list'!D1970)","v":""}]
[null,{"$f":"IF('Generated list'!B1971=\"\",\"\",'Generated list'!B1971)","v":""},{"$f":"IF('Generated list'!C1971=\"\",\"\",'Generated list'!C1971)","v":""},{"$f":"IF('Generated list'!D1971=\"\",\"\",'Generated list'!D1971)","v":""}]
[null,{"$f":"IF('Generated list'!B1972=\"\",\"\",'Generated list'!B1972)","v":""},{"$f":"IF('Generated list'!C1972=\"\",\"\",'Generated list'!C1972)","v":""},{"$f":"IF('Generated list'!D1972=\"\",\"\",'Generated list'!D1972)","v":""}]
[null,{"$f":"IF('Generated list'!B1973=\"\",\"\",'Generated list'!B1973)","v":""},{"$f":"IF('Generated list'!C1973=\"\",\"\",'Generated list'!C1973)","v":""},{"$f":"IF('Generated list'!D1973=\"\",\"\",'Generated list'!D1973)","v":""}]
[null,{"$f":"IF('Generated list'!B1974=\"\",\"\",'Generated list'!B1974)","v":""},{"$f":"IF('Generated list'!C1974=\"\",\"\",'Generated list'!C1974)","v":""},{"$f":"IF('Generated list'!D1974=\"\",\"\",'Generated list'!D1974)","v":""}]
[null,{"$f":"IF('Generated list'!B1975=\"\",\"\",'Generated list'!B1975)","v":""},{"$f":"IF('Generated list'!C1975=\"\",\"\",'Generated list'!C1975)","v":""},{"$f":"IF('Generated list'!D1975=\"\",\"\",'Generated list'!D1975)","v":""}]
[null,{"$f":"IF('Generated list'!B1976=\"\",\"\",'Generated list'!B1976)","v":""},{"$f":"IF('Generated list'!C1976=\"\",\"\",'Generated list'!C1976)","v":""},{"$f":"IF('Generated list'!D1976=\"\",\"\",'Generated list'!D1976)","v":""}]
[null,{"$f":"IF('Generated list'!B1977=\"\",\"\",'Generated list'!B1977)","v":""},{"$f":"IF('Generated list'!C1977=\"\",\"\",'Generated list'!C1977)","v":""},{"$f":"IF('Generated list'!D1977=\"\",\"\",'Generated list'!D1977)","v":""}]
[null,{"$f":"IF('Generated list'!B1978=\"\",\"\",'Generated list'!B1978)","v":""},{"$f":"IF('Generated list'!C1978=\"\",\"\",'Generated list'!C1978)","v":""},{"$f":"IF('Generated list'!D1978=\"\",\"\",'Generated list'!D1978)","v":""}]
[null,{"$f":"IF('Generated list'!B1979=\"\",\"\",'Generated list'!B1979)","v":""},{"$f":"IF('Generated list'!C1979=\"\",\"\",'Generated list'!C1979)","v":""},{"$f":"IF('Generated list'!D1979=\"\",\"\",'Generated list'!D1979)","v":""}]
[null,{"$f":"IF('Generated list'!B1980=\"\",\"\",'Generated list'!B1980)","v":""},{"$f":"IF('Generated list'!C1980=\"\",\"\",'Generated list'!C1980)","v":""},{"$f":"IF('Generated list'!D1980=\"\",\"\",'Generated list'!D1980)","v":""}]
[null,{"$f":"IF('Generated list'!B1981=\"\",\"\",'Generated list'!B1981)","v":""},{"$f":"IF('Generated list'!C1981=\"\",\"\",'Generated list'!C1981)","v":""},{"$f":"IF('Generated list'!D1981=\"\",\"\",'Generated list'!D1981)","v":""}]
[null,{"$f":"IF('Generated list'!B1982=\"\",\"\",'Generated list'!B1982)","v":""},{"$f":"IF('Generated list'!C1982=\"\",\"\",'Generated list'!C1982)","v":""},{"$f":"IF('Generated list'!D1982=\"\",\"\",'Generated list'!D1982)","v":""}]
[null,{"$f":"IF('Generated list'!B1983=\"\",\"\",'Generated list'!B1983)","v":""},{"$f":"IF('Generated list'!C1983=\"\",\"\",'Generated list'!C1983)","v":""},{"$f":"IF('Generated list'!D1983=\"\",\"\",'Generated list'!D1983)","v":""}]
[null,{"$f":"IF('Generated list'!B1984=\"\",\"\",'Generated list'!B1984)","v":""},{"$f":"IF('Generated list'!C1984=\"\",\"\",'Generated list'!C1984)","v":""},{"$f":"IF('Generated list'!D1984=\"\",\"\",'Generated list'!D1984)","v":""}]
[null,{"$f":"IF('Generated list'!B1985=\"\",\"\",'Generated list'!B1985)","v":""},{"$f":"IF('Generated list'!C1985=\"\",\"\",'Generated list'!C1985)","v":""},{"$f":"IF('Generated list'!D1985=\"\",\"\",'Generated list'!D1985)","v":""}]
[null,{"$f":"IF('Generated list'!B1986=\"\",\"\",'Generated list'!B1986)","v":""},{"$f":"IF('Generated list'!C1986=\"\",\"\",'Generated list'!C1986)","v":""},{"$f":"IF('Generated list'!D1986=\"\",\"\",'Generated list'!D1986)","v":""}]
[null,{"$f":"IF('Generated list'!B1987=\"\",\"\",'Generated list'!B1987)","v":""},{"$f":"IF('Generated list'!C1987=\"\",\"\",'Generated list'!C1987)","v":""},{"$f":"IF('Generated list'!D1987=\"\",\"\",'Generated list'!D1987)","v":""}]
[null,{"$f":"IF('Generated list'!B1988=\"\",\"\",'Generated list'!B1988)","v":""},{"$f":"IF('Generated list'!C1988=\"\",\"\",'Generated list'!C1988)","v":""},{"$f":"IF('Generated list'!D1988=\"\",\"\",'Generated list'!D1988)","v":""}]
[null,{"$f":"IF('Generated list'!B1989=\"\",\"\",'Generated list'!B1989)","v":""},{"$f":"IF('Generated list'!C1989=\"\",\"\",'Generated list'!C1989)","v":""},{"$f":"IF('Generated list'!D1989=\"\",\"\",'Generated list'!D1989)","v":""}]
[null,{"$f":"IF('Generated list'!B1990=\"\",\"\",'Generated list'!B1990)","v":""},{"$f":"IF('Generated list'!C1990=\"\",\"\",'Generated list'!C1990)","v":""},{"$f":"IF('Generated list'!D1990=\"\",\"\",'Generated list'!D1990)","v":""}]
[null,{"$f":"IF('Generated list'!B1991=\"\",\"\",'Generated list'!B1991)","v":""},{"$f":"IF('Generated list'!C1991=\"\",\"\",'Generated list'!C1991)","v":""},{"$f":"IF('Generated list'!D1991=\"\",\"\",'Generated list'!D1991)","v":""}]
[null,{"$f":"IF('Generated list'!B1992=\"\",\"\",'Generated list'!B1992)","v":""},{"$f":"IF('Generated list'!C1992=\"\",\"\",'Generated list'!C1992)","v":""},{"$f":"IF('Generated list'!D1992=\"\",\"\",'Generated list'!D1992)","v":""}]
[null,{"$f":"IF('Generated list'!B1993=\"\",\"\",'Generated list'!B1993)","v":""},{"$f":"IF('Generated list'!C1993=\"\",\"\",'Generated list'!C1993)","v":""},{"$f":"IF('Generated list'!D1993=\"\",\"\",'Generated list'!D1993)","v":""}]
[null,{"$f":"IF('Generated list'!B1994=\"\",\"\",'Generated list'!B1994)","v":""},{"$f":"IF('Generated list'!C1994=\"\",\"\",'Generated list'!C1994)","v":""},{"$f":"IF('Generated list'!D1994=\"\",\"\",'Generated list'!D1994)","v":""}]
[null,{"$f":"IF('Generated list'!B1995=\"\",\"\",'Generated list'!B1995)","v":""},{"$f":"IF('Generated list'!C1995=\"\",\"\",'Generated list'!C1995)","v":""},{"$f":"IF('Generated list'!D1995=\"\",\"\",'Generated list'!D1995)","v":""}]
[null,{"$f":"IF('Generated list'!B1996=\"\",\"\",'Generated list'!B1996)","v":""},{"$f":"IF('Generated list'!C1996=\"\",\"\",'Generated list'!C1996)","v":""},{"$f":"IF('Generated list'!D1996=\"\",\"\",'Generated list'!D1996)","v":""}]
[null,{"$f":"IF('Generated list'!B1997=\"\",\"\",'Generated list'!B1997)","v":""},{"$f":"IF('Generated list'!C1997=\"\",\"\",'Generated list'!C1997)","v":""},{"$f":"IF('Generated list'!D1997=\"\",\"\",'Generated list'!D1997)","v":""}]
[null,{"$f":"IF('Generated list'!B1998=\"\",\"\",'Generated list'!B1998)","v":""},{"$f":"IF('Generated list'!C1998=\"\",\"\",'Generated list'!C1998)","v":""},{"$f":"IF('Generated list'!D1998=\"\",\"\",'Generated list'!D1998)","v":""}]
[null,{"$f":"IF('Generated list'!B1999=\"\",\"\",'Generated list'!B1999)","v":""},{"$f":"IF('Generated list'!C1999=\"\",\"\",'Generated list'!C1999)","v":""},{"$f":"IF('Generated list'!D1999=\"\",\"\",'Generated list'!D1999)","v":""}]
[null,{"$f":"IF('Generated list'!B2000=\"\",\"\",'Generated list'!B2000)","v":""},{"$f":"IF('Generated list'!C2000=\"\",\"\",'Generated list'!C2000)","v":""},{"$f":"IF('Generated list'!D2000=\"\",\"\",'Generated list'!D2000)","v":""}]
[null,{"$f":"IF('Generated list'!B2001=\"\",\"\",'Generated list'!B2001)","v":""},{"$f":"IF('Generated list'!C2001=\"\",\"\",'Generated list'!C2001)","v":""},{"$f":"IF('Generated list'!D2001=\"\",\"\",'Generated list'!D2001)","v":""}]
[null,{"$f":"IF('Generated list'!B2002=\"\",\"\",'Generated list'!B2002)","v":""},{"$f":"IF('Generated list'!C2002=\"\",\"\",'Generated list'!C2002)","v":""},{"$f":"IF('Generated list'!D2002=\"\",\"\",'Generated list'!D2002)","v":""}]
[null,{"$f":"IF('Generated list'!B2003=\"\",\"\",'Generated list'!B2003)","v":""},{"$f":"IF('Generated list'!C2003=\"\",\"\",'Generated list'!C2003)","v":""},{"$f":"IF('Generated list'!D2003=\"\",\"\",'Generated list'!D2003)","v":""}]
[null,{"$f":"IF('Generated list'!B2004=\"\",\"\",'Generated list'!B2004)","v":""},{"$f":"IF('Generated list'!C2004=\"\",\"\",'Generated list'!C2004)","v":""},{"$f":"IF('Generated list'!D2004=\"\",\"\",'Generated list'!D2004)","v":""}]
[null,{"$f":"IF('Generated list'!B2005=\"\",\"\",'Generated list'!B2005)","v":""},{"$f":"IF('Generated list'!C2005=\"\",\"\",'Generated list'!C2005)","v":""},{"$f":"IF('Generated list'!D2005=\"\",\"\",'Generated list'!D2005)","v":""}]
[null,{"$f":"IF('Generated list'!B2006=\"\",\"\",'Generated list'!B2006)","v":""},{"$f":"IF('Generated list'!C2006=\"\",\"\",'Generated list'!C2006)","v":""},{"$f":"IF('Generated list'!D2006=\"\",\"\",'Generated list'!D2006)","v":""}]
[null,{"$f":"IF('Generated list'!B2007=\"\",\"\",'Generated list'!B2007)","v":""},{"$f":"IF('Generated list'!C2007=\"\",\"\",'Generated list'!C2007)","v":""},{"$f":"IF('Generated list'!D2007=\"\",\"\",'Generated list'!D2007)","v":""}]
[null,{"$f":"IF('Generated list'!B2008=\"\",\"\",'Generated list'!B2008)","v":""},{"$f":"IF('Generated list'!C2008=\"\",\"\",'Generated list'!C2008)","v":""},{"$f":"IF('Generated list'!D2008=\"\",\"\",'Generated list'!D2008)","v":""}]
[null,{"$f":"IF('Generated list'!B2009=\"\",\"\",'Generated list'!B2009)","v":""},{"$f":"IF('Generated list'!C2009=\"\",\"\",'Generated list'!C2009)","v":""},{"$f":"IF('Generated list'!D2009=\"\",\"\",'Generated list'!D2009)","v":""}]
[null,{"$f":"IF('Generated list'!B2010=\"\",\"\",'Generated list'!B2010)","v":""},{"$f":"IF('Generated list'!C2010=\"\",\"\",'Generated list'!C2010)","v":""},{"$f":"IF('Generated list'!D2010=\"\",\"\",'Generated list'!D2010)","v":""}]
[null,{"$f":"IF('Generated list'!B2011=\"\",\"\",'Generated list'!B2011)","v":""},{"$f":"IF('Generated list'!C2011=\"\",\"\",'Generated list'!C2011)","v":""},{"$f":"IF('Generated list'!D2011=\"\",\"\",'Generated list'!D2011)","v":""}]
[null,{"$f":"IF('Generated list'!B2012=\"\",\"\",'Generated list'!B2012)","v":""},{"$f":"IF('Generated list'!C2012=\"\",\"\",'Generated list'!C2012)","v":""},{"$f":"IF('Generated list'!D2012=\"\",\"\",'Generated list'!D2012)","v":""}]
[null,{"$f":"IF('Generated list'!B2013=\"\",\"\",'Generated list'!B2013)","v":""},{"$f":"IF('Generated list'!C2013=\"\",\"\",'Generated list'!C2013)","v":""},{"$f":"IF('Generated list'!D2013=\"\",\"\",'Generated list'!D2013)","v":""}]
[null,{"$f":"IF('Generated list'!B2014=\"\",\"\",'Generated list'!B2014)","v":""},{"$f":"IF('Generated list'!C2014=\"\",\"\",'Generated list'!C2014)","v":""},{"$f":"IF('Generated list'!D2014=\"\",\"\",'Generated list'!D2014)","v":""}]
[null,{"$f":"IF('Generated list'!B2015=\"\",\"\",'Generated list'!B2015)","v":""},{"$f":"IF('Generated list'!C2015=\"\",\"\",'Generated list'!C2015)","v":""},{"$f":"IF('Generated list'!D2015=\"\",\"\",'Generated list'!D2015)","v":""}]
[null,{"$f":"IF('Generated list'!B2016=\"\",\"\",'Generated list'!B2016)","v":""},{"$f":"IF('Generated list'!C2016=\"\",\"\",'Generated list'!C2016)","v":""},{"$f":"IF('Generated list'!D2016=\"\",\"\",'Generated list'!D2016)","v":""}]
[null,{"$f":"IF('Generated list'!B2017=\"\",\"\",'Generated list'!B2017)","v":""},{"$f":"IF('Generated list'!C2017=\"\",\"\",'Generated list'!C2017)","v":""},{"$f":"IF('Generated list'!D2017=\"\",\"\",'Generated list'!D2017)","v":""}]
[null,{"$f":"IF('Generated list'!B2018=\"\",\"\",'Generated list'!B2018)","v":""},{"$f":"IF('Generated list'!C2018=\"\",\"\",'Generated list'!C2018)","v":""},{"$f":"IF('Generated list'!D2018=\"\",\"\",'Generated list'!D2018)","v":""}]
[null,{"$f":"IF('Generated list'!B2019=\"\",\"\",'Generated list'!B2019)","v":""},{"$f":"IF('Generated list'!C2019=\"\",\"\",'Generated list'!C2019)","v":""},{"$f":"IF('Generated list'!D2019=\"\",\"\",'Generated list'!D2019)","v":""}]
[null,{"$f":"IF('Generated list'!B2020=\"\",\"\",'Generated list'!B2020)","v":""},{"$f":"IF('Generated list'!C2020=\"\",\"\",'Generated list'!C2020)","v":""},{"$f":"IF('Generated list'!D2020=\"\",\"\",'Generated list'!D2020)","v":""}]
[null,{"$f":"IF('Generated list'!B2021=\"\",\"\",'Generated list'!B2021)","v":""},{"$f":"IF('Generated list'!C2021=\"\",\"\",'Generated list'!C2021)","v":""},{"$f":"IF('Generated list'!D2021=\"\",\"\",'Generated list'!D2021)","v":""}]
[null,{"$f":"IF('Generated list'!B2022=\"\",\"\",'Generated list'!B2022)","v":""},{"$f":"IF('Generated list'!C2022=\"\",\"\",'Generated list'!C2022)","v":""},{"$f":"IF('Generated list'!D2022=\"\",\"\",'Generated list'!D2022)","v":""}]
[null,{"$f":"IF('Generated list'!B2023=\"\",\"\",'Generated list'!B2023)","v":""},{"$f":"IF('Generated list'!C2023=\"\",\"\",'Generated list'!C2023)","v":""},{"$f":"IF('Generated list'!D2023=\"\",\"\",'Generated list'!D2023)","v":""}]
[null,{"$f":"IF('Generated list'!B2024=\"\",\"\",'Generated list'!B2024)","v":""},{"$f":"IF('Generated list'!C2024=\"\",\"\",'Generated list'!C2024)","v":""},{"$f":"IF('Generated list'!D2024=\"\",\"\",'Generated list'!D2024)","v":""}]
[null,{"$f":"IF('Generated list'!B2025=\"\",\"\",'Generated list'!B2025)","v":""},{"$f":"IF('Generated list'!C2025=\"\",\"\",'Generated list'!C2025)","v":""},{"$f":"IF('Generated list'!D2025=\"\",\"\",'Generated list'!D2025)","v":""}]
[null,{"$f":"IF('Generated list'!B2026=\"\",\"\",'Generated list'!B2026)","v":""},{"$f":"IF('Generated list'!C2026=\"\",\"\",'Generated list'!C2026)","v":""},{"$f":"IF('Generated list'!D2026=\"\",\"\",'Generated list'!D2026)","v":""}]
[null,{"$f":"IF('Generated list'!B2027=\"\",\"\",'Generated list'!B2027)","v":""},{"$f":"IF('Generated list'!C2027=\"\",\"\",'Generated list'!C2027)","v":""},{"$f":"IF('Generated list'!D2027=\"\",\"\",'Generated list'!D2027)","v":""}]
[null,{"$f":"IF('Generated list'!B2028=\"\",\"\",'Generated list'!B2028)","v":""},{"$f":"IF('Generated list'!C2028=\"\",\"\",'Generated list'!C2028)","v":""},{"$f":"IF('Generated list'!D2028=\"\",\"\",'Generated list'!D2028)","v":""}]
[null,{"$f":"IF('Generated list'!B2029=\"\",\"\",'Generated list'!B2029)","v":""},{"$f":"IF('Generated list'!C2029=\"\",\"\",'Generated list'!C2029)","v":""},{"$f":"IF('Generated list'!D2029=\"\",\"\",'Generated list'!D2029)","v":""}]
[null,{"$f":"IF('Generated list'!B2030=\"\",\"\",'Generated list'!B2030)","v":""},{"$f":"IF('Generated list'!C2030=\"\",\"\",'Generated list'!C2030)","v":""},{"$f":"IF('Generated list'!D2030=\"\",\"\",'Generated list'!D2030)","v":""}]
[null,{"$f":"IF('Generated list'!B2031=\"\",\"\",'Generated list'!B2031)","v":""},{"$f":"IF('Generated list'!C2031=\"\",\"\",'Generated list'!C2031)","v":""},{"$f":"IF('Generated list'!D2031=\"\",\"\",'Generated list'!D2031)","v":""}]
[null,{"$f":"IF('Generated list'!B2032=\"\",\"\",'Generated list'!B2032)","v":""},{"$f":"IF('Generated list'!C2032=\"\",\"\",'Generated list'!C2032)","v":""},{"$f":"IF('Generated list'!D2032=\"\",\"\",'Generated list'!D2032)","v":""}]
[null,{"$f":"IF('Generated list'!B2033=\"\",\"\",'Generated list'!B2033)","v":""},{"$f":"IF('Generated list'!C2033=\"\",\"\",'Generated list'!C2033)","v":""},{"$f":"IF('Generated list'!D2033=\"\",\"\",'Generated list'!D2033)","v":""}]
[null,{"$f":"IF('Generated list'!B2034=\"\",\"\",'Generated list'!B2034)","v":""},{"$f":"IF('Generated list'!C2034=\"\",\"\",'Generated list'!C2034)","v":""},{"$f":"IF('Generated list'!D2034=\"\",\"\",'Generated list'!D2034)","v":""}]
[null,{"$f":"IF('Generated list'!B2035=\"\",\"\",'Generated list'!B2035)","v":""},{"$f":"IF('Generated list'!C2035=\"\",\"\",'Generated list'!C2035)","v":""},{"$f":"IF('Generated list'!D2035=\"\",\"\",'Generated list'!D2035)","v":""}]
[null,{"$f":"IF('Generated list'!B2036=\"\",\"\",'Generated list'!B2036)","v":""},{"$f":"IF('Generated list'!C2036=\"\",\"\",'Generated list'!C2036)","v":""},{"$f":"IF('Generated list'!D2036=\"\",\"\",'Generated list'!D2036)","v":""}]
[null,{"$f":"IF('Generated list'!B2037=\"\",\"\",'Generated list'!B2037)","v":""},{"$f":"IF('Generated list'!C2037=\"\",\"\",'Generated list'!C2037)","v":""},{"$f":"IF('Generated list'!D2037=\"\",\"\",'Generated list'!D2037)","v":""}]
[null,{"$f":"IF('Generated list'!B2038=\"\",\"\",'Generated list'!B2038)","v":""},{"$f":"IF('Generated list'!C2038=\"\",\"\",'Generated list'!C2038)","v":""},{"$f":"IF('Generated list'!D2038=\"\",\"\",'Generated list'!D2038)","v":""}]
[null,{"$f":"IF('Generated list'!B2039=\"\",\"\",'Generated list'!B2039)","v":""},{"$f":"IF('Generated list'!C2039=\"\",\"\",'Generated list'!C2039)","v":""},{"$f":"IF('Generated list'!D2039=\"\",\"\",'Generated list'!D2039)","v":""}]
[null,{"$f":"IF('Generated list'!B2040=\"\",\"\",'Generated list'!B2040)","v":""},{"$f":"IF('Generated list'!C2040=\"\",\"\",'Generated list'!C2040)","v":""},{"$f":"IF('Generated list'!D2040=\"\",\"\",'Generated list'!D2040)","v":""}]
[null,{"$f":"IF('Generated list'!B2041=\"\",\"\",'Generated list'!B2041)","v":""},{"$f":"IF('Generated list'!C2041=\"\",\"\",'Generated list'!C2041)","v":""},{"$f":"IF('Generated list'!D2041=\"\",\"\",'Generated list'!D2041)","v":""}]
[null,{"$f":"IF('Generated list'!B2042=\"\",\"\",'Generated list'!B2042)","v":""},{"$f":"IF('Generated list'!C2042=\"\",\"\",'Generated list'!C2042)","v":""},{"$f":"IF('Generated list'!D2042=\"\",\"\",'Generated list'!D2042)","v":""}]
[null,{"$f":"IF('Generated list'!B2043=\"\",\"\",'Generated list'!B2043)","v":""},{"$f":"IF('Generated list'!C2043=\"\",\"\",'Generated list'!C2043)","v":""},{"$f":"IF('Generated list'!D2043=\"\",\"\",'Generated list'!D2043)","v":""}]
[null,{"$f":"IF('Generated list'!B2044=\"\",\"\",'Generated list'!B2044)","v":""},{"$f":"IF('Generated list'!C2044=\"\",\"\",'Generated list'!C2044)","v":""},{"$f":"IF('Generated list'!D2044=\"\",\"\",'Generated list'!D2044)","v":""}]
[null,{"$f":"IF('Generated list'!B2045=\"\",\"\",'Generated list'!B2045)","v":""},{"$f":"IF('Generated list'!C2045=\"\",\"\",'Generated list'!C2045)","v":""},{"$f":"IF('Generated list'!D2045=\"\",\"\",'Generated list'!D2045)","v":""}]
[null,{"$f":"IF('Generated list'!B2046=\"\",\"\",'Generated list'!B2046)","v":""},{"$f":"IF('Generated list'!C2046=\"\",\"\",'Generated list'!C2046)","v":""},{"$f":"IF('Generated list'!D2046=\"\",\"\",'Generated list'!D2046)","v":""}]
[null,{"$f":"IF('Generated list'!B2047=\"\",\"\",'Generated list'!B2047)","v":""},{"$f":"IF('Generated list'!C2047=\"\",\"\",'Generated list'!C2047)","v":""},{"$f":"IF('Generated list'!D2047=\"\",\"\",'Generated list'!D2047)","v":""}]
[null,{"$f":"IF('Generated list'!B2048=\"\",\"\",'Generated list'!B2048)","v":""},{"$f":"IF('Generated list'!C2048=\"\",\"\",'Generated list'!C2048)","v":""},{"$f":"IF('Generated list'!D2048=\"\",\"\",'Generated list'!D2048)","v":""}]
[null,{"$f":"IF('Generated list'!B2049=\"\",\"\",'Generated list'!B2049)","v":""},{"$f":"IF('Generated list'!C2049=\"\",\"\",'Generated list'!C2049)","v":""},{"$f":"IF('Generated list'!D2049=\"\",\"\",'Generated list'!D2049)","v":""}]
[null,{"$f":"IF('Generated list'!B2050=\"\",\"\",'Generated list'!B2050)","v":""},{"$f":"IF('Generated list'!C2050=\"\",\"\",'Generated list'!C2050)","v":""},{"$f":"IF('Generated list'!D2050=\"\",\"\",'Generated list'!D2050)","v":""}]
[null,{"$f":"IF('Generated list'!B2051=\"\",\"\",'Generated list'!B2051)","v":""},{"$f":"IF('Generated list'!C2051=\"\",\"\",'Generated list'!C2051)","v":""},{"$f":"IF('Generated list'!D2051=\"\",\"\",'Generated list'!D2051)","v":""}]
[null,{"$f":"IF('Generated list'!B2052=\"\",\"\",'Generated list'!B2052)","v":""},{"$f":"IF('Generated list'!C2052=\"\",\"\",'Generated list'!C2052)","v":""},{"$f":"IF('Generated list'!D2052=\"\",\"\",'Generated list'!D2052)","v":""}]
[null,{"$f":"IF('Generated list'!B2053=\"\",\"\",'Generated list'!B2053)","v":""},{"$f":"IF('Generated list'!C2053=\"\",\"\",'Generated list'!C2053)","v":""},{"$f":"IF('Generated list'!D2053=\"\",\"\",'Generated list'!D2053)","v":""}]
[null,{"$f":"IF('Generated list'!B2054=\"\",\"\",'Generated list'!B2054)","v":""},{"$f":"IF('Generated list'!C2054=\"\",\"\",'Generated list'!C2054)","v":""},{"$f":"IF('Generated list'!D2054=\"\",\"\",'Generated list'!D2054)","v":""}]
[null,{"$f":"IF('Generated list'!B2055=\"\",\"\",'Generated list'!B2055)","v":""},{"$f":"IF('Generated list'!C2055=\"\",\"\",'Generated list'!C2055)","v":""},{"$f":"IF('Generated list'!D2055=\"\",\"\",'Generated list'!D2055)","v":""}]
[null,{"$f":"IF('Generated list'!B2056=\"\",\"\",'Generated list'!B2056)","v":""},{"$f":"IF('Generated list'!C2056=\"\",\"\",'Generated list'!C2056)","v":""},{"$f":"IF('Generated list'!D2056=\"\",\"\",'Generated list'!D2056)","v":""}]
[null,{"$f":"IF('Generated list'!B2057=\"\",\"\",'Generated list'!B2057)","v":""},{"$f":"IF('Generated list'!C2057=\"\",\"\",'Generated list'!C2057)","v":""},{"$f":"IF('Generated list'!D2057=\"\",\"\",'Generated list'!D2057)","v":""}]
[null,{"$f":"IF('Generated list'!B2058=\"\",\"\",'Generated list'!B2058)","v":""},{"$f":"IF('Generated list'!C2058=\"\",\"\",'Generated list'!C2058)","v":""},{"$f":"IF('Generated list'!D2058=\"\",\"\",'Generated list'!D2058)","v":""}]
[null,{"$f":"IF('Generated list'!B2059=\"\",\"\",'Generated list'!B2059)","v":""},{"$f":"IF('Generated list'!C2059=\"\",\"\",'Generated list'!C2059)","v":""},{"$f":"IF('Generated list'!D2059=\"\",\"\",'Generated list'!D2059)","v":""}]
[null,{"$f":"IF('Generated list'!B2060=\"\",\"\",'Generated list'!B2060)","v":""},{"$f":"IF('Generated list'!C2060=\"\",\"\",'Generated list'!C2060)","v":""},{"$f":"IF('Generated list'!D2060=\"\",\"\",'Generated list'!D2060)","v":""}]
[null,{"$f":"IF('Generated list'!B2061=\"\",\"\",'Generated list'!B2061)","v":""},{"$f":"IF('Generated list'!C2061=\"\",\"\",'Generated list'!C2061)","v":""},{"$f":"IF('Generated list'!D2061=\"\",\"\",'Generated list'!D2061)","v":""}]
[null,{"$f":"IF('Generated list'!B2062=\"\",\"\",'Generated list'!B2062)","v":""},{"$f":"IF('Generated list'!C2062=\"\",\"\",'Generated list'!C2062)","v":""},{"$f":"IF('Generated list'!D2062=\"\",\"\",'Generated list'!D2062)","v":""}]
[null,{"$f":"IF('Generated list'!B2063=\"\",\"\",'Generated list'!B2063)","v":""},{"$f":"IF('Generated list'!C2063=\"\",\"\",'Generated list'!C2063)","v":""},{"$f":"IF('Generated list'!D2063=\"\",\"\",'Generated list'!D2063)","v":""}]
[null,{"$f":"IF('Generated list'!B2064=\"\",\"\",'Generated list'!B2064)","v":""},{"$f":"IF('Generated list'!C2064=\"\",\"\",'Generated list'!C2064)","v":""},{"$f":"IF('Generated list'!D2064=\"\",\"\",'Generated list'!D2064)","v":""}]
[null,{"$f":"IF('Generated list'!B2065=\"\",\"\",'Generated list'!B2065)","v":""},{"$f":"IF('Generated list'!C2065=\"\",\"\",'Generated list'!C2065)","v":""},{"$f":"IF('Generated list'!D2065=\"\",\"\",'Generated list'!D2065)","v":""}]
[null,{"$f":"IF('Generated list'!B2066=\"\",\"\",'Generated list'!B2066)","v":""},{"$f":"IF('Generated list'!C2066=\"\",\"\",'Generated list'!C2066)","v":""},{"$f":"IF('Generated list'!D2066=\"\",\"\",'Generated list'!D2066)","v":""}]
[null,{"$f":"IF('Generated list'!B2067=\"\",\"\",'Generated list'!B2067)","v":""},{"$f":"IF('Generated list'!C2067=\"\",\"\",'Generated list'!C2067)","v":""},{"$f":"IF('Generated list'!D2067=\"\",\"\",'Generated list'!D2067)","v":""}]
[null,{"$f":"IF('Generated list'!B2068=\"\",\"\",'Generated list'!B2068)","v":""},{"$f":"IF('Generated list'!C2068=\"\",\"\",'Generated list'!C2068)","v":""},{"$f":"IF('Generated list'!D2068=\"\",\"\",'Generated list'!D2068)","v":""}]
[null,{"$f":"IF('Generated list'!B2069=\"\",\"\",'Generated list'!B2069)","v":""},{"$f":"IF('Generated list'!C2069=\"\",\"\",'Generated list'!C2069)","v":""},{"$f":"IF('Generated list'!D2069=\"\",\"\",'Generated list'!D2069)","v":""}]
[null,{"$f":"IF('Generated list'!B2070=\"\",\"\",'Generated list'!B2070)","v":""},{"$f":"IF('Generated list'!C2070=\"\",\"\",'Generated list'!C2070)","v":""},{"$f":"IF('Generated list'!D2070=\"\",\"\",'Generated list'!D2070)","v":""}]
[null,{"$f":"IF('Generated list'!B2071=\"\",\"\",'Generated list'!B2071)","v":""},{"$f":"IF('Generated list'!C2071=\"\",\"\",'Generated list'!C2071)","v":""},{"$f":"IF('Generated list'!D2071=\"\",\"\",'Generated list'!D2071)","v":""}]
[null,{"$f":"IF('Generated list'!B2072=\"\",\"\",'Generated list'!B2072)","v":""},{"$f":"IF('Generated list'!C2072=\"\",\"\",'Generated list'!C2072)","v":""},{"$f":"IF('Generated list'!D2072=\"\",\"\",'Generated list'!D2072)","v":""}]
[null,{"$f":"IF('Generated list'!B2073=\"\",\"\",'Generated list'!B2073)","v":""},{"$f":"IF('Generated list'!C2073=\"\",\"\",'Generated list'!C2073)","v":""},{"$f":"IF('Generated list'!D2073=\"\",\"\",'Generated list'!D2073)","v":""}]
[null,{"$f":"IF('Generated list'!B2074=\"\",\"\",'Generated list'!B2074)","v":""},{"$f":"IF('Generated list'!C2074=\"\",\"\",'Generated list'!C2074)","v":""},{"$f":"IF('Generated list'!D2074=\"\",\"\",'Generated list'!D2074)","v":""}]
[null,{"$f":"IF('Generated list'!B2075=\"\",\"\",'Generated list'!B2075)","v":""},{"$f":"IF('Generated list'!C2075=\"\",\"\",'Generated list'!C2075)","v":""},{"$f":"IF('Generated list'!D2075=\"\",\"\",'Generated list'!D2075)","v":""}]
[null,{"$f":"IF('Generated list'!B2076=\"\",\"\",'Generated list'!B2076)","v":""},{"$f":"IF('Generated list'!C2076=\"\",\"\",'Generated list'!C2076)","v":""},{"$f":"IF('Generated list'!D2076=\"\",\"\",'Generated list'!D2076)","v":""}]
[null,{"$f":"IF('Generated list'!B2077=\"\",\"\",'Generated list'!B2077)","v":""},{"$f":"IF('Generated list'!C2077=\"\",\"\",'Generated list'!C2077)","v":""},{"$f":"IF('Generated list'!D2077=\"\",\"\",'Generated list'!D2077)","v":""}]
[null,{"$f":"IF('Generated list'!B2078=\"\",\"\",'Generated list'!B2078)","v":""},{"$f":"IF('Generated list'!C2078=\"\",\"\",'Generated list'!C2078)","v":""},{"$f":"IF('Generated list'!D2078=\"\",\"\",'Generated list'!D2078)","v":""}]
[null,{"$f":"IF('Generated list'!B2079=\"\",\"\",'Generated list'!B2079)","v":""},{"$f":"IF('Generated list'!C2079=\"\",\"\",'Generated list'!C2079)","v":""},{"$f":"IF('Generated list'!D2079=\"\",\"\",'Generated list'!D2079)","v":""}]
[null,{"$f":"IF('Generated list'!B2080=\"\",\"\",'Generated list'!B2080)","v":""},{"$f":"IF('Generated list'!C2080=\"\",\"\",'Generated list'!C2080)","v":""},{"$f":"IF('Generated list'!D2080=\"\",\"\",'Generated list'!D2080)","v":""}]
[null,{"$f":"IF('Generated list'!B2081=\"\",\"\",'Generated list'!B2081)","v":""},{"$f":"IF('Generated list'!C2081=\"\",\"\",'Generated list'!C2081)","v":""},{"$f":"IF('Generated list'!D2081=\"\",\"\",'Generated list'!D2081)","v":""}]
[null,{"$f":"IF('Generated list'!B2082=\"\",\"\",'Generated list'!B2082)","v":""},{"$f":"IF('Generated list'!C2082=\"\",\"\",'Generated list'!C2082)","v":""},{"$f":"IF('Generated list'!D2082=\"\",\"\",'Generated list'!D2082)","v":""}]
[null,{"$f":"IF('Generated list'!B2083=\"\",\"\",'Generated list'!B2083)","v":""},{"$f":"IF('Generated list'!C2083=\"\",\"\",'Generated list'!C2083)","v":""},{"$f":"IF('Generated list'!D2083=\"\",\"\",'Generated list'!D2083)","v":""}]
[null,{"$f":"IF('Generated list'!B2084=\"\",\"\",'Generated list'!B2084)","v":""},{"$f":"IF('Generated list'!C2084=\"\",\"\",'Generated list'!C2084)","v":""},{"$f":"IF('Generated list'!D2084=\"\",\"\",'Generated list'!D2084)","v":""}]
[null,{"$f":"IF('Generated list'!B2085=\"\",\"\",'Generated list'!B2085)","v":""},{"$f":"IF('Generated list'!C2085=\"\",\"\",'Generated list'!C2085)","v":""},{"$f":"IF('Generated list'!D2085=\"\",\"\",'Generated list'!D2085)","v":""}]
[null,{"$f":"IF('Generated list'!B2086=\"\",\"\",'Generated list'!B2086)","v":""},{"$f":"IF('Generated list'!C2086=\"\",\"\",'Generated list'!C2086)","v":""},{"$f":"IF('Generated list'!D2086=\"\",\"\",'Generated list'!D2086)","v":""}]
[null,{"$f":"IF('Generated list'!B2087=\"\",\"\",'Generated list'!B2087)","v":""},{"$f":"IF('Generated list'!C2087=\"\",\"\",'Generated list'!C2087)","v":""},{"$f":"IF('Generated list'!D2087=\"\",\"\",'Generated list'!D2087)","v":""}]
[null,{"$f":"IF('Generated list'!B2088=\"\",\"\",'Generated list'!B2088)","v":""},{"$f":"IF('Generated list'!C2088=\"\",\"\",'Generated list'!C2088)","v":""},{"$f":"IF('Generated list'!D2088=\"\",\"\",'Generated list'!D2088)","v":""}]
[null,{"$f":"IF('Generated list'!B2089=\"\",\"\",'Generated list'!B2089)","v":""},{"$f":"IF('Generated list'!C2089=\"\",\"\",'Generated list'!C2089)","v":""},{"$f":"IF('Generated list'!D2089=\"\",\"\",'Generated list'!D2089)","v":""}]
[null,{"$f":"IF('Generated list'!B2090=\"\",\"\",'Generated list'!B2090)","v":""},{"$f":"IF('Generated list'!C2090=\"\",\"\",'Generated list'!C2090)","v":""},{"$f":"IF('Generated list'!D2090=\"\",\"\",'Generated list'!D2090)","v":""}]
[null,{"$f":"IF('Generated list'!B2091=\"\",\"\",'Generated list'!B2091)","v":""},{"$f":"IF('Generated list'!C2091=\"\",\"\",'Generated list'!C2091)","v":""},{"$f":"IF('Generated list'!D2091=\"\",\"\",'Generated list'!D2091)","v":""}]
[null,{"$f":"IF('Generated list'!B2092=\"\",\"\",'Generated list'!B2092)","v":""},{"$f":"IF('Generated list'!C2092=\"\",\"\",'Generated list'!C2092)","v":""},{"$f":"IF('Generated list'!D2092=\"\",\"\",'Generated list'!D2092)","v":""}]
[null,{"$f":"IF('Generated list'!B2093=\"\",\"\",'Generated list'!B2093)","v":""},{"$f":"IF('Generated list'!C2093=\"\",\"\",'Generated list'!C2093)","v":""},{"$f":"IF('Generated list'!D2093=\"\",\"\",'Generated list'!D2093)","v":""}]
[null,{"$f":"IF('Generated list'!B2094=\"\",\"\",'Generated list'!B2094)","v":""},{"$f":"IF('Generated list'!C2094=\"\",\"\",'Generated list'!C2094)","v":""},{"$f":"IF('Generated list'!D2094=\"\",\"\",'Generated list'!D2094)","v":""}]
[null,{"$f":"IF('Generated list'!B2095=\"\",\"\",'Generated list'!B2095)","v":""},{"$f":"IF('Generated list'!C2095=\"\",\"\",'Generated list'!C2095)","v":""},{"$f":"IF('Generated list'!D2095=\"\",\"\",'Generated list'!D2095)","v":""}]
[null,{"$f":"IF('Generated list'!B2096=\"\",\"\",'Generated list'!B2096)","v":""},{"$f":"IF('Generated list'!C2096=\"\",\"\",'Generated list'!C2096)","v":""},{"$f":"IF('Generated list'!D2096=\"\",\"\",'Generated list'!D2096)","v":""}]
[null,{"$f":"IF('Generated list'!B2097=\"\",\"\",'Generated list'!B2097)","v":""},{"$f":"IF('Generated list'!C2097=\"\",\"\",'Generated list'!C2097)","v":""},{"$f":"IF('Generated list'!D2097=\"\",\"\",'Generated list'!D2097)","v":""}]
[null,{"$f":"IF('Generated list'!B2098=\"\",\"\",'Generated list'!B2098)","v":""},{"$f":"IF('Generated list'!C2098=\"\",\"\",'Generated list'!C2098)","v":""},{"$f":"IF('Generated list'!D2098=\"\",\"\",'Generated list'!D2098)","v":""}]
[null,{"$f":"IF('Generated list'!B2099=\"\",\"\",'Generated list'!B2099)","v":""},{"$f":"IF('Generated list'!C2099=\"\",\"\",'Generated list'!C2099)","v":""},{"$f":"IF('Generated list'!D2099=\"\",\"\",'Generated list'!D2099)","v":""}]
[null,{"$f":"IF('Generated list'!B2100=\"\",\"\",'Generated list'!B2100)","v":""},{"$f":"IF('Generated list'!C2100=\"\",\"\",'Generated list'!C2100)","v":""},{"$f":"IF('Generated list'!D2100=\"\",\"\",'Generated list'!D2100)","v":""}]
[null,{"$f":"IF('Generated list'!B2101=\"\",\"\",'Generated list'!B2101)","v":""},{"$f":"IF('Generated list'!C2101=\"\",\"\",'Generated list'!C2101)","v":""},{"$f":"IF('Generated list'!D2101=\"\",\"\",'Generated list'!D2101)","v":""}]
[null,{"$f":"IF('Generated list'!B2102=\"\",\"\",'Generated list'!B2102)","v":""},{"$f":"IF('Generated list'!C2102=\"\",\"\",'Generated list'!C2102)","v":""},{"$f":"IF('Generated list'!D2102=\"\",\"\",'Generated list'!D2102)","v":""}]
[null,{"$f":"IF('Generated list'!B2103=\"\",\"\",'Generated list'!B2103)","v":""},{"$f":"IF('Generated list'!C2103=\"\",\"\",'Generated list'!C2103)","v":""},{"$f":"IF('Generated list'!D2103=\"\",\"\",'Generated list'!D2103)","v":""}]
[null,{"$f":"IF('Generated list'!B2104=\"\",\"\",'Generated list'!B2104)","v":""},{"$f":"IF('Generated list'!C2104=\"\",\"\",'Generated list'!C2104)","v":""},{"$f":"IF('Generated list'!D2104=\"\",\"\",'Generated list'!D2104)","v":""}]
[null,{"$f":"IF('Generated list'!B2105=\"\",\"\",'Generated list'!B2105)","v":""},{"$f":"IF('Generated list'!C2105=\"\",\"\",'Generated list'!C2105)","v":""},{"$f":"IF('Generated list'!D2105=\"\",\"\",'Generated list'!D2105)","v":""}]
[null,{"$f":"IF('Generated list'!B2106=\"\",\"\",'Generated list'!B2106)","v":""},{"$f":"IF('Generated list'!C2106=\"\",\"\",'Generated list'!C2106)","v":""},{"$f":"IF('Generated list'!D2106=\"\",\"\",'Generated list'!D2106)","v":""}]
[null,{"$f":"IF('Generated list'!B2107=\"\",\"\",'Generated list'!B2107)","v":""},{"$f":"IF('Generated list'!C2107=\"\",\"\",'Generated list'!C2107)","v":""},{"$f":"IF('Generated list'!D2107=\"\",\"\",'Generated list'!D2107)","v":""}]
[null,{"$f":"IF('Generated list'!B2108=\"\",\"\",'Generated list'!B2108)","v":""},{"$f":"IF('Generated list'!C2108=\"\",\"\",'Generated list'!C2108)","v":""},{"$f":"IF('Generated list'!D2108=\"\",\"\",'Generated list'!D2108)","v":""}]
[null,{"$f":"IF('Generated list'!B2109=\"\",\"\",'Generated list'!B2109)","v":""},{"$f":"IF('Generated list'!C2109=\"\",\"\",'Generated list'!C2109)","v":""},{"$f":"IF('Generated list'!D2109=\"\",\"\",'Generated list'!D2109)","v":""}]
[null,{"$f":"IF('Generated list'!B2110=\"\",\"\",'Generated list'!B2110)","v":""},{"$f":"IF('Generated list'!C2110=\"\",\"\",'Generated list'!C2110)","v":""},{"$f":"IF('Generated list'!D2110=\"\",\"\",'Generated list'!D2110)","v":""}]
[null,{"$f":"IF('Generated list'!B2111=\"\",\"\",'Generated list'!B2111)","v":""},{"$f":"IF('Generated list'!C2111=\"\",\"\",'Generated list'!C2111)","v":""},{"$f":"IF('Generated list'!D2111=\"\",\"\",'Generated list'!D2111)","v":""}]
[null,{"$f":"IF('Generated list'!B2112=\"\",\"\",'Generated list'!B2112)","v":""},{"$f":"IF('Generated list'!C2112=\"\",\"\",'Generated list'!C2112)","v":""},{"$f":"IF('Generated list'!D2112=\"\",\"\",'Generated list'!D2112)","v":""}]
[null,{"$f":"IF('Generated list'!B2113=\"\",\"\",'Generated list'!B2113)","v":""},{"$f":"IF('Generated list'!C2113=\"\",\"\",'Generated list'!C2113)","v":""},{"$f":"IF('Generated list'!D2113=\"\",\"\",'Generated list'!D2113)","v":""}]
[null,{"$f":"IF('Generated list'!B2114=\"\",\"\",'Generated list'!B2114)","v":""},{"$f":"IF('Generated list'!C2114=\"\",\"\",'Generated list'!C2114)","v":""},{"$f":"IF('Generated list'!D2114=\"\",\"\",'Generated list'!D2114)","v":""}]
[null,{"$f":"IF('Generated list'!B2115=\"\",\"\",'Generated list'!B2115)","v":""},{"$f":"IF('Generated list'!C2115=\"\",\"\",'Generated list'!C2115)","v":""},{"$f":"IF('Generated list'!D2115=\"\",\"\",'Generated list'!D2115)","v":""}]
[null,{"$f":"IF('Generated list'!B2116=\"\",\"\",'Generated list'!B2116)","v":""},{"$f":"IF('Generated list'!C2116=\"\",\"\",'Generated list'!C2116)","v":""},{"$f":"IF('Generated list'!D2116=\"\",\"\",'Generated list'!D2116)","v":""}]
[null,{"$f":"IF('Generated list'!B2117=\"\",\"\",'Generated list'!B2117)","v":""},{"$f":"IF('Generated list'!C2117=\"\",\"\",'Generated list'!C2117)","v":""},{"$f":"IF('Generated list'!D2117=\"\",\"\",'Generated list'!D2117)","v":""}]
[null,{"$f":"IF('Generated list'!B2118=\"\",\"\",'Generated list'!B2118)","v":""},{"$f":"IF('Generated list'!C2118=\"\",\"\",'Generated list'!C2118)","v":""},{"$f":"IF('Generated list'!D2118=\"\",\"\",'Generated list'!D2118)","v":""}]
[null,{"$f":"IF('Generated list'!B2119=\"\",\"\",'Generated list'!B2119)","v":""},{"$f":"IF('Generated list'!C2119=\"\",\"\",'Generated list'!C2119)","v":""},{"$f":"IF('Generated list'!D2119=\"\",\"\",'Generated list'!D2119)","v":""}]
[null,{"$f":"IF('Generated list'!B2120=\"\",\"\",'Generated list'!B2120)","v":""},{"$f":"IF('Generated list'!C2120=\"\",\"\",'Generated list'!C2120)","v":""},{"$f":"IF('Generated list'!D2120=\"\",\"\",'Generated list'!D2120)","v":""}]
[null,{"$f":"IF('Generated list'!B2121=\"\",\"\",'Generated list'!B2121)","v":""},{"$f":"IF('Generated list'!C2121=\"\",\"\",'Generated list'!C2121)","v":""},{"$f":"IF('Generated list'!D2121=\"\",\"\",'Generated list'!D2121)","v":""}]
[null,{"$f":"IF('Generated list'!B2122=\"\",\"\",'Generated list'!B2122)","v":""},{"$f":"IF('Generated list'!C2122=\"\",\"\",'Generated list'!C2122)","v":""},{"$f":"IF('Generated list'!D2122=\"\",\"\",'Generated list'!D2122)","v":""}]
[null,{"$f":"IF('Generated list'!B2123=\"\",\"\",'Generated list'!B2123)","v":""},{"$f":"IF('Generated list'!C2123=\"\",\"\",'Generated list'!C2123)","v":""},{"$f":"IF('Generated list'!D2123=\"\",\"\",'Generated list'!D2123)","v":""}]
[null,{"$f":"IF('Generated list'!B2124=\"\",\"\",'Generated list'!B2124)","v":""},{"$f":"IF('Generated list'!C2124=\"\",\"\",'Generated list'!C2124)","v":""},{"$f":"IF('Generated list'!D2124=\"\",\"\",'Generated list'!D2124)","v":""}]
[null,{"$f":"IF('Generated list'!B2125=\"\",\"\",'Generated list'!B2125)","v":""},{"$f":"IF('Generated list'!C2125=\"\",\"\",'Generated list'!C2125)","v":""},{"$f":"IF('Generated list'!D2125=\"\",\"\",'Generated list'!D2125)","v":""}]
[null,{"$f":"IF('Generated list'!B2126=\"\",\"\",'Generated list'!B2126)","v":""},{"$f":"IF('Generated list'!C2126=\"\",\"\",'Generated list'!C2126)","v":""},{"$f":"IF('Generated list'!D2126=\"\",\"\",'Generated list'!D2126)","v":""}]
[null,{"$f":"IF('Generated list'!B2127=\"\",\"\",'Generated list'!B2127)","v":""},{"$f":"IF('Generated list'!C2127=\"\",\"\",'Generated list'!C2127)","v":""},{"$f":"IF('Generated list'!D2127=\"\",\"\",'Generated list'!D2127)","v":""}]
[null,{"$f":"IF('Generated list'!B2128=\"\",\"\",'Generated list'!B2128)","v":""},{"$f":"IF('Generated list'!C2128=\"\",\"\",'Generated list'!C2128)","v":""},{"$f":"IF('Generated list'!D2128=\"\",\"\",'Generated list'!D2128)","v":""}]
[null,{"$f":"IF('Generated list'!B2129=\"\",\"\",'Generated list'!B2129)","v":""},{"$f":"IF('Generated list'!C2129=\"\",\"\",'Generated list'!C2129)","v":""},{"$f":"IF('Generated list'!D2129=\"\",\"\",'Generated list'!D2129)","v":""}]
[null,{"$f":"IF('Generated list'!B2130=\"\",\"\",'Generated list'!B2130)","v":""},{"$f":"IF('Generated list'!C2130=\"\",\"\",'Generated list'!C2130)","v":""},{"$f":"IF('Generated list'!D2130=\"\",\"\",'Generated list'!D2130)","v":""}]
[null,{"$f":"IF('Generated list'!B2131=\"\",\"\",'Generated list'!B2131)","v":""},{"$f":"IF('Generated list'!C2131=\"\",\"\",'Generated list'!C2131)","v":""},{"$f":"IF('Generated list'!D2131=\"\",\"\",'Generated list'!D2131)","v":""}]
[null,{"$f":"IF('Generated list'!B2132=\"\",\"\",'Generated list'!B2132)","v":""},{"$f":"IF('Generated list'!C2132=\"\",\"\",'Generated list'!C2132)","v":""},{"$f":"IF('Generated list'!D2132=\"\",\"\",'Generated list'!D2132)","v":""}]
[null,{"$f":"IF('Generated list'!B2133=\"\",\"\",'Generated list'!B2133)","v":""},{"$f":"IF('Generated list'!C2133=\"\",\"\",'Generated list'!C2133)","v":""},{"$f":"IF('Generated list'!D2133=\"\",\"\",'Generated list'!D2133)","v":""}]
[null,{"$f":"IF('Generated list'!B2134=\"\",\"\",'Generated list'!B2134)","v":""},{"$f":"IF('Generated list'!C2134=\"\",\"\",'Generated list'!C2134)","v":""},{"$f":"IF('Generated list'!D2134=\"\",\"\",'Generated list'!D2134)","v":""}]
[null,{"$f":"IF('Generated list'!B2135=\"\",\"\",'Generated list'!B2135)","v":""},{"$f":"IF('Generated list'!C2135=\"\",\"\",'Generated list'!C2135)","v":""},{"$f":"IF('Generated list'!D2135=\"\",\"\",'Generated list'!D2135)","v":""}]
[null,{"$f":"IF('Generated list'!B2136=\"\",\"\",'Generated list'!B2136)","v":""},{"$f":"IF('Generated list'!C2136=\"\",\"\",'Generated list'!C2136)","v":""},{"$f":"IF('Generated list'!D2136=\"\",\"\",'Generated list'!D2136)","v":""}]
[null,{"$f":"IF('Generated list'!B2137=\"\",\"\",'Generated list'!B2137)","v":""},{"$f":"IF('Generated list'!C2137=\"\",\"\",'Generated list'!C2137)","v":""},{"$f":"IF('Generated list'!D2137=\"\",\"\",'Generated list'!D2137)","v":""}]
[null,{"$f":"IF('Generated list'!B2138=\"\",\"\",'Generated list'!B2138)","v":""},{"$f":"IF('Generated list'!C2138=\"\",\"\",'Generated list'!C2138)","v":""},{"$f":"IF('Generated list'!D2138=\"\",\"\",'Generated list'!D2138)","v":""}]
[null,{"$f":"IF('Generated list'!B2139=\"\",\"\",'Generated list'!B2139)","v":""},{"$f":"IF('Generated list'!C2139=\"\",\"\",'Generated list'!C2139)","v":""},{"$f":"IF('Generated list'!D2139=\"\",\"\",'Generated list'!D2139)","v":""}]
[null,{"$f":"IF('Generated list'!B2140=\"\",\"\",'Generated list'!B2140)","v":""},{"$f":"IF('Generated list'!C2140=\"\",\"\",'Generated list'!C2140)","v":""},{"$f":"IF('Generated list'!D2140=\"\",\"\",'Generated list'!D2140)","v":""}]
[null,{"$f":"IF('Generated list'!B2141=\"\",\"\",'Generated list'!B2141)","v":""},{"$f":"IF('Generated list'!C2141=\"\",\"\",'Generated list'!C2141)","v":""},{"$f":"IF('Generated list'!D2141=\"\",\"\",'Generated list'!D2141)","v":""}]
[null,{"$f":"IF('Generated list'!B2142=\"\",\"\",'Generated list'!B2142)","v":""},{"$f":"IF('Generated list'!C2142=\"\",\"\",'Generated list'!C2142)","v":""},{"$f":"IF('Generated list'!D2142=\"\",\"\",'Generated list'!D2142)","v":""}]
[null,{"$f":"IF('Generated list'!B2143=\"\",\"\",'Generated list'!B2143)","v":""},{"$f":"IF('Generated list'!C2143=\"\",\"\",'Generated list'!C2143)","v":""},{"$f":"IF('Generated list'!D2143=\"\",\"\",'Generated list'!D2143)","v":""}]
[null,{"$f":"IF('Generated list'!B2144=\"\",\"\",'Generated list'!B2144)","v":""},{"$f":"IF('Generated list'!C2144=\"\",\"\",'Generated list'!C2144)","v":""},{"$f":"IF('Generated list'!D2144=\"\",\"\",'Generated list'!D2144)","v":""}]
[null,{"$f":"IF('Generated list'!B2145=\"\",\"\",'Generated list'!B2145)","v":""},{"$f":"IF('Generated list'!C2145=\"\",\"\",'Generated list'!C2145)","v":""},{"$f":"IF('Generated list'!D2145=\"\",\"\",'Generated list'!D2145)","v":""}]
[null,{"$f":"IF('Generated list'!B2146=\"\",\"\",'Generated list'!B2146)","v":""},{"$f":"IF('Generated list'!C2146=\"\",\"\",'Generated list'!C2146)","v":""},{"$f":"IF('Generated list'!D2146=\"\",\"\",'Generated list'!D2146)","v":""}]
[null,{"$f":"IF('Generated list'!B2147=\"\",\"\",'Generated list'!B2147)","v":""},{"$f":"IF('Generated list'!C2147=\"\",\"\",'Generated list'!C2147)","v":""},{"$f":"IF('Generated list'!D2147=\"\",\"\",'Generated list'!D2147)","v":""}]
[null,{"$f":"IF('Generated list'!B2148=\"\",\"\",'Generated list'!B2148)","v":""},{"$f":"IF('Generated list'!C2148=\"\",\"\",'Generated list'!C2148)","v":""},{"$f":"IF('Generated list'!D2148=\"\",\"\",'Generated list'!D2148)","v":""}]
[null,{"$f":"IF('Generated list'!B2149=\"\",\"\",'Generated list'!B2149)","v":""},{"$f":"IF('Generated list'!C2149=\"\",\"\",'Generated list'!C2149)","v":""},{"$f":"IF('Generated list'!D2149=\"\",\"\",'Generated list'!D2149)","v":""}]
[null,{"$f":"IF('Generated list'!B2150=\"\",\"\",'Generated list'!B2150)","v":""},{"$f":"IF('Generated list'!C2150=\"\",\"\",'Generated list'!C2150)","v":""},{"$f":"IF('Generated list'!D2150=\"\",\"\",'Generated list'!D2150)","v":""}]
[null,{"$f":"IF('Generated list'!B2151=\"\",\"\",'Generated list'!B2151)","v":""},{"$f":"IF('Generated list'!C2151=\"\",\"\",'Generated list'!C2151)","v":""},{"$f":"IF('Generated list'!D2151=\"\",\"\",'Generated list'!D2151)","v":""}]
[null,{"$f":"IF('Generated list'!B2152=\"\",\"\",'Generated list'!B2152)","v":""},{"$f":"IF('Generated list'!C2152=\"\",\"\",'Generated list'!C2152)","v":""},{"$f":"IF('Generated list'!D2152=\"\",\"\",'Generated list'!D2152)","v":""}]
[null,{"$f":"IF('Generated list'!B2153=\"\",\"\",'Generated list'!B2153)","v":""},{"$f":"IF('Generated list'!C2153=\"\",\"\",'Generated list'!C2153)","v":""},{"$f":"IF('Generated list'!D2153=\"\",\"\",'Generated list'!D2153)","v":""}]
[null,{"$f":"IF('Generated list'!B2154=\"\",\"\",'Generated list'!B2154)","v":""},{"$f":"IF('Generated list'!C2154=\"\",\"\",'Generated list'!C2154)","v":""},{"$f":"IF('Generated list'!D2154=\"\",\"\",'Generated list'!D2154)","v":""}]
[null,{"$f":"IF('Generated list'!B2155=\"\",\"\",'Generated list'!B2155)","v":""},{"$f":"IF('Generated list'!C2155=\"\",\"\",'Generated list'!C2155)","v":""},{"$f":"IF('Generated list'!D2155=\"\",\"\",'Generated list'!D2155)","v":""}]
[null,{"$f":"IF('Generated list'!B2156=\"\",\"\",'Generated list'!B2156)","v":""},{"$f":"IF('Generated list'!C2156=\"\",\"\",'Generated list'!C2156)","v":""},{"$f":"IF('Generated list'!D2156=\"\",\"\",'Generated list'!D2156)","v":""}]
[null,{"$f":"IF('Generated list'!B2157=\"\",\"\",'Generated list'!B2157)","v":""},{"$f":"IF('Generated list'!C2157=\"\",\"\",'Generated list'!C2157)","v":""},{"$f":"IF('Generated list'!D2157=\"\",\"\",'Generated list'!D2157)","v":""}]
[null,{"$f":"IF('Generated list'!B2158=\"\",\"\",'Generated list'!B2158)","v":""},{"$f":"IF('Generated list'!C2158=\"\",\"\",'Generated list'!C2158)","v":""},{"$f":"IF('Generated list'!D2158=\"\",\"\",'Generated list'!D2158)","v":""}]
[null,{"$f":"IF('Generated list'!B2159=\"\",\"\",'Generated list'!B2159)","v":""},{"$f":"IF('Generated list'!C2159=\"\",\"\",'Generated list'!C2159)","v":""},{"$f":"IF('Generated list'!D2159=\"\",\"\",'Generated list'!D2159)","v":""}]
[null,{"$f":"IF('Generated list'!B2160=\"\",\"\",'Generated list'!B2160)","v":""},{"$f":"IF('Generated list'!C2160=\"\",\"\",'Generated list'!C2160)","v":""},{"$f":"IF('Generated list'!D2160=\"\",\"\",'Generated list'!D2160)","v":""}]
[null,{"$f":"IF('Generated list'!B2161=\"\",\"\",'Generated list'!B2161)","v":""},{"$f":"IF('Generated list'!C2161=\"\",\"\",'Generated list'!C2161)","v":""},{"$f":"IF('Generated list'!D2161=\"\",\"\",'Generated list'!D2161)","v":""}]
[null,{"$f":"IF('Generated list'!B2162=\"\",\"\",'Generated list'!B2162)","v":""},{"$f":"IF('Generated list'!C2162=\"\",\"\",'Generated list'!C2162)","v":""},{"$f":"IF('Generated list'!D2162=\"\",\"\",'Generated list'!D2162)","v":""}]
[null,{"$f":"IF('Generated list'!B2163=\"\",\"\",'Generated list'!B2163)","v":""},{"$f":"IF('Generated list'!C2163=\"\",\"\",'Generated list'!C2163)","v":""},{"$f":"IF('Generated list'!D2163=\"\",\"\",'Generated list'!D2163)","v":""}]
[null,{"$f":"IF('Generated list'!B2164=\"\",\"\",'Generated list'!B2164)","v":""},{"$f":"IF('Generated list'!C2164=\"\",\"\",'Generated list'!C2164)","v":""},{"$f":"IF('Generated list'!D2164=\"\",\"\",'Generated list'!D2164)","v":""}]
[null,{"$f":"IF('Generated list'!B2165=\"\",\"\",'Generated list'!B2165)","v":""},{"$f":"IF('Generated list'!C2165=\"\",\"\",'Generated list'!C2165)","v":""},{"$f":"IF('Generated list'!D2165=\"\",\"\",'Generated list'!D2165)","v":""}]
[null,{"$f":"IF('Generated list'!B2166=\"\",\"\",'Generated list'!B2166)","v":""},{"$f":"IF('Generated list'!C2166=\"\",\"\",'Generated list'!C2166)","v":""},{"$f":"IF('Generated list'!D2166=\"\",\"\",'Generated list'!D2166)","v":""}]
[null,{"$f":"IF('Generated list'!B2167=\"\",\"\",'Generated list'!B2167)","v":""},{"$f":"IF('Generated list'!C2167=\"\",\"\",'Generated list'!C2167)","v":""},{"$f":"IF('Generated list'!D2167=\"\",\"\",'Generated list'!D2167)","v":""}]
[null,{"$f":"IF('Generated list'!B2168=\"\",\"\",'Generated list'!B2168)","v":""},{"$f":"IF('Generated list'!C2168=\"\",\"\",'Generated list'!C2168)","v":""},{"$f":"IF('Generated list'!D2168=\"\",\"\",'Generated list'!D2168)","v":""}]
[null,{"$f":"IF('Generated list'!B2169=\"\",\"\",'Generated list'!B2169)","v":""},{"$f":"IF('Generated list'!C2169=\"\",\"\",'Generated list'!C2169)","v":""},{"$f":"IF('Generated list'!D2169=\"\",\"\",'Generated list'!D2169)","v":""}]
[null,{"$f":"IF('Generated list'!B2170=\"\",\"\",'Generated list'!B2170)","v":""},{"$f":"IF('Generated list'!C2170=\"\",\"\",'Generated list'!C2170)","v":""},{"$f":"IF('Generated list'!D2170=\"\",\"\",'Generated list'!D2170)","v":""}]
[null,{"$f":"IF('Generated list'!B2171=\"\",\"\",'Generated list'!B2171)","v":""},{"$f":"IF('Generated list'!C2171=\"\",\"\",'Generated list'!C2171)","v":""},{"$f":"IF('Generated list'!D2171=\"\",\"\",'Generated list'!D2171)","v":""}]
[null,{"$f":"IF('Generated list'!B2172=\"\",\"\",'Generated list'!B2172)","v":""},{"$f":"IF('Generated list'!C2172=\"\",\"\",'Generated list'!C2172)","v":""},{"$f":"IF('Generated list'!D2172=\"\",\"\",'Generated list'!D2172)","v":""}]
[null,{"$f":"IF('Generated list'!B2173=\"\",\"\",'Generated list'!B2173)","v":""},{"$f":"IF('Generated list'!C2173=\"\",\"\",'Generated list'!C2173)","v":""},{"$f":"IF('Generated list'!D2173=\"\",\"\",'Generated list'!D2173)","v":""}]
[null,{"$f":"IF('Generated list'!B2174=\"\",\"\",'Generated list'!B2174)","v":""},{"$f":"IF('Generated list'!C2174=\"\",\"\",'Generated list'!C2174)","v":""},{"$f":"IF('Generated list'!D2174=\"\",\"\",'Generated list'!D2174)","v":""}]
[null,{"$f":"IF('Generated list'!B2175=\"\",\"\",'Generated list'!B2175)","v":""},{"$f":"IF('Generated list'!C2175=\"\",\"\",'Generated list'!C2175)","v":""},{"$f":"IF('Generated list'!D2175=\"\",\"\",'Generated list'!D2175)","v":""}]
[null,{"$f":"IF('Generated list'!B2176=\"\",\"\",'Generated list'!B2176)","v":""},{"$f":"IF('Generated list'!C2176=\"\",\"\",'Generated list'!C2176)","v":""},{"$f":"IF('Generated list'!D2176=\"\",\"\",'Generated list'!D2176)","v":""}]
[null,{"$f":"IF('Generated list'!B2177=\"\",\"\",'Generated list'!B2177)","v":""},{"$f":"IF('Generated list'!C2177=\"\",\"\",'Generated list'!C2177)","v":""},{"$f":"IF('Generated list'!D2177=\"\",\"\",'Generated list'!D2177)","v":""}]
[null,{"$f":"IF('Generated list'!B2178=\"\",\"\",'Generated list'!B2178)","v":""},{"$f":"IF('Generated list'!C2178=\"\",\"\",'Generated list'!C2178)","v":""},{"$f":"IF('Generated list'!D2178=\"\",\"\",'Generated list'!D2178)","v":""}]
[null,{"$f":"IF('Generated list'!B2179=\"\",\"\",'Generated list'!B2179)","v":""},{"$f":"IF('Generated list'!C2179=\"\",\"\",'Generated list'!C2179)","v":""},{"$f":"IF('Generated list'!D2179=\"\",\"\",'Generated list'!D2179)","v":""}]
[null,{"$f":"IF('Generated list'!B2180=\"\",\"\",'Generated list'!B2180)","v":""},{"$f":"IF('Generated list'!C2180=\"\",\"\",'Generated list'!C2180)","v":""},{"$f":"IF('Generated list'!D2180=\"\",\"\",'Generated list'!D2180)","v":""}]
[null,{"$f":"IF('Generated list'!B2181=\"\",\"\",'Generated list'!B2181)","v":""},{"$f":"IF('Generated list'!C2181=\"\",\"\",'Generated list'!C2181)","v":""},{"$f":"IF('Generated list'!D2181=\"\",\"\",'Generated list'!D2181)","v":""}]
[null,{"$f":"IF('Generated list'!B2182=\"\",\"\",'Generated list'!B2182)","v":""},{"$f":"IF('Generated list'!C2182=\"\",\"\",'Generated list'!C2182)","v":""},{"$f":"IF('Generated list'!D2182=\"\",\"\",'Generated list'!D2182)","v":""}]
[null,{"$f":"IF('Generated list'!B2183=\"\",\"\",'Generated list'!B2183)","v":""},{"$f":"IF('Generated list'!C2183=\"\",\"\",'Generated list'!C2183)","v":""},{"$f":"IF('Generated list'!D2183=\"\",\"\",'Generated list'!D2183)","v":""}]
[null,{"$f":"IF('Generated list'!B2184=\"\",\"\",'Generated list'!B2184)","v":""},{"$f":"IF('Generated list'!C2184=\"\",\"\",'Generated list'!C2184)","v":""},{"$f":"IF('Generated list'!D2184=\"\",\"\",'Generated list'!D2184)","v":""}]
[null,{"$f":"IF('Generated list'!B2185=\"\",\"\",'Generated list'!B2185)","v":""},{"$f":"IF('Generated list'!C2185=\"\",\"\",'Generated list'!C2185)","v":""},{"$f":"IF('Generated list'!D2185=\"\",\"\",'Generated list'!D2185)","v":""}]
[null,{"$f":"IF('Generated list'!B2186=\"\",\"\",'Generated list'!B2186)","v":""},{"$f":"IF('Generated list'!C2186=\"\",\"\",'Generated list'!C2186)","v":""},{"$f":"IF('Generated list'!D2186=\"\",\"\",'Generated list'!D2186)","v":""}]
[null,{"$f":"IF('Generated list'!B2187=\"\",\"\",'Generated list'!B2187)","v":""},{"$f":"IF('Generated list'!C2187=\"\",\"\",'Generated list'!C2187)","v":""},{"$f":"IF('Generated list'!D2187=\"\",\"\",'Generated list'!D2187)","v":""}]
[null,{"$f":"IF('Generated list'!B2188=\"\",\"\",'Generated list'!B2188)","v":""},{"$f":"IF('Generated list'!C2188=\"\",\"\",'Generated list'!C2188)","v":""},{"$f":"IF('Generated list'!D2188=\"\",\"\",'Generated list'!D2188)","v":""}]
[null,{"$f":"IF('Generated list'!B2189=\"\",\"\",'Generated list'!B2189)","v":""},{"$f":"IF('Generated list'!C2189=\"\",\"\",'Generated list'!C2189)","v":""},{"$f":"IF('Generated list'!D2189=\"\",\"\",'Generated list'!D2189)","v":""}]
[null,{"$f":"IF('Generated list'!B2190=\"\",\"\",'Generated list'!B2190)","v":""},{"$f":"IF('Generated list'!C2190=\"\",\"\",'Generated list'!C2190)","v":""},{"$f":"IF('Generated list'!D2190=\"\",\"\",'Generated list'!D2190)","v":""}]
[null,{"$f":"IF('Generated list'!B2191=\"\",\"\",'Generated list'!B2191)","v":""},{"$f":"IF('Generated list'!C2191=\"\",\"\",'Generated list'!C2191)","v":""},{"$f":"IF('Generated list'!D2191=\"\",\"\",'Generated list'!D2191)","v":""}]
[null,{"$f":"IF('Generated list'!B2192=\"\",\"\",'Generated list'!B2192)","v":""},{"$f":"IF('Generated list'!C2192=\"\",\"\",'Generated list'!C2192)","v":""},{"$f":"IF('Generated list'!D2192=\"\",\"\",'Generated list'!D2192)","v":""}]
[null,{"$f":"IF('Generated list'!B2193=\"\",\"\",'Generated list'!B2193)","v":""},{"$f":"IF('Generated list'!C2193=\"\",\"\",'Generated list'!C2193)","v":""},{"$f":"IF('Generated list'!D2193=\"\",\"\",'Generated list'!D2193)","v":""}]
[null,{"$f":"IF('Generated list'!B2194=\"\",\"\",'Generated list'!B2194)","v":""},{"$f":"IF('Generated list'!C2194=\"\",\"\",'Generated list'!C2194)","v":""},{"$f":"IF('Generated list'!D2194=\"\",\"\",'Generated list'!D2194)","v":""}]
[null,{"$f":"IF('Generated list'!B2195=\"\",\"\",'Generated list'!B2195)","v":""},{"$f":"IF('Generated list'!C2195=\"\",\"\",'Generated list'!C2195)","v":""},{"$f":"IF('Generated list'!D2195=\"\",\"\",'Generated list'!D2195)","v":""}]
[null,{"$f":"IF('Generated list'!B2196=\"\",\"\",'Generated list'!B2196)","v":""},{"$f":"IF('Generated list'!C2196=\"\",\"\",'Generated list'!C2196)","v":""},{"$f":"IF('Generated list'!D2196=\"\",\"\",'Generated list'!D2196)","v":""}]
[null,{"$f":"IF('Generated list'!B2197=\"\",\"\",'Generated list'!B2197)","v":""},{"$f":"IF('Generated list'!C2197=\"\",\"\",'Generated list'!C2197)","v":""},{"$f":"IF('Generated list'!D2197=\"\",\"\",'Generated list'!D2197)","v":""}]
[null,{"$f":"IF('Generated list'!B2198=\"\",\"\",'Generated list'!B2198)","v":""},{"$f":"IF('Generated list'!C2198=\"\",\"\",'Generated list'!C2198)","v":""},{"$f":"IF('Generated list'!D2198=\"\",\"\",'Generated list'!D2198)","v":""}]
[null,{"$f":"IF('Generated list'!B2199=\"\",\"\",'Generated list'!B2199)","v":""},{"$f":"IF('Generated list'!C2199=\"\",\"\",'Generated list'!C2199)","v":""},{"$f":"IF('Generated list'!D2199=\"\",\"\",'Generated list'!D2199)","v":""}]
[null,{"$f":"IF('Generated list'!B2200=\"\",\"\",'Generated list'!B2200)","v":""},{"$f":"IF('Generated list'!C2200=\"\",\"\",'Generated list'!C2200)","v":""},{"$f":"IF('Generated list'!D2200=\"\",\"\",'Generated list'!D2200)","v":""}]
[null,{"$f":"IF('Generated list'!B2201=\"\",\"\",'Generated list'!B2201)","v":""},{"$f":"IF('Generated list'!C2201=\"\",\"\",'Generated list'!C2201)","v":""},{"$f":"IF('Generated list'!D2201=\"\",\"\",'Generated list'!D2201)","v":""}]
[null,{"$f":"IF('Generated list'!B2202=\"\",\"\",'Generated list'!B2202)","v":""},{"$f":"IF('Generated list'!C2202=\"\",\"\",'Generated list'!C2202)","v":""},{"$f":"IF('Generated list'!D2202=\"\",\"\",'Generated list'!D2202)","v":""}]
[null,{"$f":"IF('Generated list'!B2203=\"\",\"\",'Generated list'!B2203)","v":""},{"$f":"IF('Generated list'!C2203=\"\",\"\",'Generated list'!C2203)","v":""},{"$f":"IF('Generated list'!D2203=\"\",\"\",'Generated list'!D2203)","v":""}]
[null,{"$f":"IF('Generated list'!B2204=\"\",\"\",'Generated list'!B2204)","v":""},{"$f":"IF('Generated list'!C2204=\"\",\"\",'Generated list'!C2204)","v":""},{"$f":"IF('Generated list'!D2204=\"\",\"\",'Generated list'!D2204)","v":""}]
[null,{"$f":"IF('Generated list'!B2205=\"\",\"\",'Generated list'!B2205)","v":""},{"$f":"IF('Generated list'!C2205=\"\",\"\",'Generated list'!C2205)","v":""},{"$f":"IF('Generated list'!D2205=\"\",\"\",'Generated list'!D2205)","v":""}]
[null,{"$f":"IF('Generated list'!B2206=\"\",\"\",'Generated list'!B2206)","v":""},{"$f":"IF('Generated list'!C2206=\"\",\"\",'Generated list'!C2206)","v":""},{"$f":"IF('Generated list'!D2206=\"\",\"\",'Generated list'!D2206)","v":""}]
[null,{"$f":"IF('Generated list'!B2207=\"\",\"\",'Generated list'!B2207)","v":""},{"$f":"IF('Generated list'!C2207=\"\",\"\",'Generated list'!C2207)","v":""},{"$f":"IF('Generated list'!D2207=\"\",\"\",'Generated list'!D2207)","v":""}]
[null,{"$f":"IF('Generated list'!B2208=\"\",\"\",'Generated list'!B2208)","v":""},{"$f":"IF('Generated list'!C2208=\"\",\"\",'Generated list'!C2208)","v":""},{"$f":"IF('Generated list'!D2208=\"\",\"\",'Generated list'!D2208)","v":""}]
[null,{"$f":"IF('Generated list'!B2209=\"\",\"\",'Generated list'!B2209)","v":""},{"$f":"IF('Generated list'!C2209=\"\",\"\",'Generated list'!C2209)","v":""},{"$f":"IF('Generated list'!D2209=\"\",\"\",'Generated list'!D2209)","v":""}]
[null,{"$f":"IF('Generated list'!B2210=\"\",\"\",'Generated list'!B2210)","v":""},{"$f":"IF('Generated list'!C2210=\"\",\"\",'Generated list'!C2210)","v":""},{"$f":"IF('Generated list'!D2210=\"\",\"\",'Generated list'!D2210)","v":""}]
[null,{"$f":"IF('Generated list'!B2211=\"\",\"\",'Generated list'!B2211)","v":""},{"$f":"IF('Generated list'!C2211=\"\",\"\",'Generated list'!C2211)","v":""},{"$f":"IF('Generated list'!D2211=\"\",\"\",'Generated list'!D2211)","v":""}]
[null,{"$f":"IF('Generated list'!B2212=\"\",\"\",'Generated list'!B2212)","v":""},{"$f":"IF('Generated list'!C2212=\"\",\"\",'Generated list'!C2212)","v":""},{"$f":"IF('Generated list'!D2212=\"\",\"\",'Generated list'!D2212)","v":""}]
[null,{"$f":"IF('Generated list'!B2213=\"\",\"\",'Generated list'!B2213)","v":""},{"$f":"IF('Generated list'!C2213=\"\",\"\",'Generated list'!C2213)","v":""},{"$f":"IF('Generated list'!D2213=\"\",\"\",'Generated list'!D2213)","v":""}]
[null,{"$f":"IF('Generated list'!B2214=\"\",\"\",'Generated list'!B2214)","v":""},{"$f":"IF('Generated list'!C2214=\"\",\"\",'Generated list'!C2214)","v":""},{"$f":"IF('Generated list'!D2214=\"\",\"\",'Generated list'!D2214)","v":""}]
[null,{"$f":"IF('Generated list'!B2215=\"\",\"\",'Generated list'!B2215)","v":""},{"$f":"IF('Generated list'!C2215=\"\",\"\",'Generated list'!C2215)","v":""},{"$f":"IF('Generated list'!D2215=\"\",\"\",'Generated list'!D2215)","v":""}]
[null,{"$f":"IF('Generated list'!B2216=\"\",\"\",'Generated list'!B2216)","v":""},{"$f":"IF('Generated list'!C2216=\"\",\"\",'Generated list'!C2216)","v":""},{"$f":"IF('Generated list'!D2216=\"\",\"\",'Generated list'!D2216)","v":""}]
[null,{"$f":"IF('Generated list'!B2217=\"\",\"\",'Generated list'!B2217)","v":""},{"$f":"IF('Generated list'!C2217=\"\",\"\",'Generated list'!C2217)","v":""},{"$f":"IF('Generated list'!D2217=\"\",\"\",'Generated list'!D2217)","v":""}]
[null,{"$f":"IF('Generated list'!B2218=\"\",\"\",'Generated list'!B2218)","v":""},{"$f":"IF('Generated list'!C2218=\"\",\"\",'Generated list'!C2218)","v":""},{"$f":"IF('Generated list'!D2218=\"\",\"\",'Generated list'!D2218)","v":""}]
[null,{"$f":"IF('Generated list'!B2219=\"\",\"\",'Generated list'!B2219)","v":""},{"$f":"IF('Generated list'!C2219=\"\",\"\",'Generated list'!C2219)","v":""},{"$f":"IF('Generated list'!D2219=\"\",\"\",'Generated list'!D2219)","v":""}]
[null,{"$f":"IF('Generated list'!B2220=\"\",\"\",'Generated list'!B2220)","v":""},{"$f":"IF('Generated list'!C2220=\"\",\"\",'Generated list'!C2220)","v":""},{"$f":"IF('Generated list'!D2220=\"\",\"\",'Generated list'!D2220)","v":""}]
[null,{"$f":"IF('Generated list'!B2221=\"\",\"\",'Generated list'!B2221)","v":""},{"$f":"IF('Generated list'!C2221=\"\",\"\",'Generated list'!C2221)","v":""},{"$f":"IF('Generated list'!D2221=\"\",\"\",'Generated list'!D2221)","v":""}]
[null,{"$f":"IF('Generated list'!B2222=\"\",\"\",'Generated list'!B2222)","v":""},{"$f":"IF('Generated list'!C2222=\"\",\"\",'Generated list'!C2222)","v":""},{"$f":"IF('Generated list'!D2222=\"\",\"\",'Generated list'!D2222)","v":""}]
[null,{"$f":"IF('Generated list'!B2223=\"\",\"\",'Generated list'!B2223)","v":""},{"$f":"IF('Generated list'!C2223=\"\",\"\",'Generated list'!C2223)","v":""},{"$f":"IF('Generated list'!D2223=\"\",\"\",'Generated list'!D2223)","v":""}]
[null,{"$f":"IF('Generated list'!B2224=\"\",\"\",'Generated list'!B2224)","v":""},{"$f":"IF('Generated list'!C2224=\"\",\"\",'Generated list'!C2224)","v":""},{"$f":"IF('Generated list'!D2224=\"\",\"\",'Generated list'!D2224)","v":""}]
[null,{"$f":"IF('Generated list'!B2225=\"\",\"\",'Generated list'!B2225)","v":""},{"$f":"IF('Generated list'!C2225=\"\",\"\",'Generated list'!C2225)","v":""},{"$f":"IF('Generated list'!D2225=\"\",\"\",'Generated list'!D2225)","v":""}]
[null,{"$f":"IF('Generated list'!B2226=\"\",\"\",'Generated list'!B2226)","v":""},{"$f":"IF('Generated list'!C2226=\"\",\"\",'Generated list'!C2226)","v":""},{"$f":"IF('Generated list'!D2226=\"\",\"\",'Generated list'!D2226)","v":""}]
[null,{"$f":"IF('Generated list'!B2227=\"\",\"\",'Generated list'!B2227)","v":""},{"$f":"IF('Generated list'!C2227=\"\",\"\",'Generated list'!C2227)","v":""},{"$f":"IF('Generated list'!D2227=\"\",\"\",'Generated list'!D2227)","v":""}]
[null,{"$f":"IF('Generated list'!B2228=\"\",\"\",'Generated list'!B2228)","v":""},{"$f":"IF('Generated list'!C2228=\"\",\"\",'Generated list'!C2228)","v":""},{"$f":"IF('Generated list'!D2228=\"\",\"\",'Generated list'!D2228)","v":""}]
[null,{"$f":"IF('Generated list'!B2229=\"\",\"\",'Generated list'!B2229)","v":""},{"$f":"IF('Generated list'!C2229=\"\",\"\",'Generated list'!C2229)","v":""},{"$f":"IF('Generated list'!D2229=\"\",\"\",'Generated list'!D2229)","v":""}]
[null,{"$f":"IF('Generated list'!B2230=\"\",\"\",'Generated list'!B2230)","v":""},{"$f":"IF('Generated list'!C2230=\"\",\"\",'Generated list'!C2230)","v":""},{"$f":"IF('Generated list'!D2230=\"\",\"\",'Generated list'!D2230)","v":""}]
[null,{"$f":"IF('Generated list'!B2231=\"\",\"\",'Generated list'!B2231)","v":""},{"$f":"IF('Generated list'!C2231=\"\",\"\",'Generated list'!C2231)","v":""},{"$f":"IF('Generated list'!D2231=\"\",\"\",'Generated list'!D2231)","v":""}]
[null,{"$f":"IF('Generated list'!B2232=\"\",\"\",'Generated list'!B2232)","v":""},{"$f":"IF('Generated list'!C2232=\"\",\"\",'Generated list'!C2232)","v":""},{"$f":"IF('Generated list'!D2232=\"\",\"\",'Generated list'!D2232)","v":""}]
[null,{"$f":"IF('Generated list'!B2233=\"\",\"\",'Generated list'!B2233)","v":""},{"$f":"IF('Generated list'!C2233=\"\",\"\",'Generated list'!C2233)","v":""},{"$f":"IF('Generated list'!D2233=\"\",\"\",'Generated list'!D2233)","v":""}]
[null,{"$f":"IF('Generated list'!B2234=\"\",\"\",'Generated list'!B2234)","v":""},{"$f":"IF('Generated list'!C2234=\"\",\"\",'Generated list'!C2234)","v":""},{"$f":"IF('Generated list'!D2234=\"\",\"\",'Generated list'!D2234)","v":""}]
[null,{"$f":"IF('Generated list'!B2235=\"\",\"\",'Generated list'!B2235)","v":""},{"$f":"IF('Generated list'!C2235=\"\",\"\",'Generated list'!C2235)","v":""},{"$f":"IF('Generated list'!D2235=\"\",\"\",'Generated list'!D2235)","v":""}]
[null,{"$f":"IF('Generated list'!B2236=\"\",\"\",'Generated list'!B2236)","v":""},{"$f":"IF('Generated list'!C2236=\"\",\"\",'Generated list'!C2236)","v":""},{"$f":"IF('Generated list'!D2236=\"\",\"\",'Generated list'!D2236)","v":""}]
[null,{"$f":"IF('Generated list'!B2237=\"\",\"\",'Generated list'!B2237)","v":""},{"$f":"IF('Generated list'!C2237=\"\",\"\",'Generated list'!C2237)","v":""},{"$f":"IF('Generated list'!D2237=\"\",\"\",'Generated list'!D2237)","v":""}]
[null,{"$f":"IF('Generated list'!B2238=\"\",\"\",'Generated list'!B2238)","v":""},{"$f":"IF('Generated list'!C2238=\"\",\"\",'Generated list'!C2238)","v":""},{"$f":"IF('Generated list'!D2238=\"\",\"\",'Generated list'!D2238)","v":""}]
[null,{"$f":"IF('Generated list'!B2239=\"\",\"\",'Generated list'!B2239)","v":""},{"$f":"IF('Generated list'!C2239=\"\",\"\",'Generated list'!C2239)","v":""},{"$f":"IF('Generated list'!D2239=\"\",\"\",'Generated list'!D2239)","v":""}]
[null,{"$f":"IF('Generated list'!B2240=\"\",\"\",'Generated list'!B2240)","v":""},{"$f":"IF('Generated list'!C2240=\"\",\"\",'Generated list'!C2240)","v":""},{"$f":"IF('Generated list'!D2240=\"\",\"\",'Generated list'!D2240)","v":""}]
[null,{"$f":"IF('Generated list'!B2241=\"\",\"\",'Generated list'!B2241)","v":""},{"$f":"IF('Generated list'!C2241=\"\",\"\",'Generated list'!C2241)","v":""},{"$f":"IF('Generated list'!D2241=\"\",\"\",'Generated list'!D2241)","v":""}]
[null,{"$f":"IF('Generated list'!B2242=\"\",\"\",'Generated list'!B2242)","v":""},{"$f":"IF('Generated list'!C2242=\"\",\"\",'Generated list'!C2242)","v":""},{"$f":"IF('Generated list'!D2242=\"\",\"\",'Generated list'!D2242)","v":""}]
[null,{"$f":"IF('Generated list'!B2243=\"\",\"\",'Generated list'!B2243)","v":""},{"$f":"IF('Generated list'!C2243=\"\",\"\",'Generated list'!C2243)","v":""},{"$f":"IF('Generated list'!D2243=\"\",\"\",'Generated list'!D2243)","v":""}]
[null,{"$f":"IF('Generated list'!B2244=\"\",\"\",'Generated list'!B2244)","v":""},{"$f":"IF('Generated list'!C2244=\"\",\"\",'Generated list'!C2244)","v":""},{"$f":"IF('Generated list'!D2244=\"\",\"\",'Generated list'!D2244)","v":""}]
[null,{"$f":"IF('Generated list'!B2245=\"\",\"\",'Generated list'!B2245)","v":""},{"$f":"IF('Generated list'!C2245=\"\",\"\",'Generated list'!C2245)","v":""},{"$f":"IF('Generated list'!D2245=\"\",\"\",'Generated list'!D2245)","v":""}]
[null,{"$f":"IF('Generated list'!B2246=\"\",\"\",'Generated list'!B2246)","v":""},{"$f":"IF('Generated list'!C2246=\"\",\"\",'Generated list'!C2246)","v":""},{"$f":"IF('Generated list'!D2246=\"\",\"\",'Generated list'!D2246)","v":""}]
[null,{"$f":"IF('Generated list'!B2247=\"\",\"\",'Generated list'!B2247)","v":""},{"$f":"IF('Generated list'!C2247=\"\",\"\",'Generated list'!C2247)","v":""},{"$f":"IF('Generated list'!D2247=\"\",\"\",'Generated list'!D2247)","v":""}]
[null,{"$f":"IF('Generated list'!B2248=\"\",\"\",'Generated list'!B2248)","v":""},{"$f":"IF('Generated list'!C2248=\"\",\"\",'Generated list'!C2248)","v":""},{"$f":"IF('Generated list'!D2248=\"\",\"\",'Generated list'!D2248)","v":""}]
[null,{"$f":"IF('Generated list'!B2249=\"\",\"\",'Generated list'!B2249)","v":""},{"$f":"IF('Generated list'!C2249=\"\",\"\",'Generated list'!C2249)","v":""},{"$f":"IF('Generated list'!D2249=\"\",\"\",'Generated list'!D2249)","v":""}]
[null,{"$f":"IF('Generated list'!B2250=\"\",\"\",'Generated list'!B2250)","v":""},{"$f":"IF('Generated list'!C2250=\"\",\"\",'Generated list'!C2250)","v":""},{"$f":"IF('Generated list'!D2250=\"\",\"\",'Generated list'!D2250)","v":""}]
[null,{"$f":"IF('Generated list'!B2251=\"\",\"\",'Generated list'!B2251)","v":""},{"$f":"IF('Generated list'!C2251=\"\",\"\",'Generated list'!C2251)","v":""},{"$f":"IF('Generated list'!D2251=\"\",\"\",'Generated list'!D2251)","v":""}]
[null,{"$f":"IF('Generated list'!B2252=\"\",\"\",'Generated list'!B2252)","v":""},{"$f":"IF('Generated list'!C2252=\"\",\"\",'Generated list'!C2252)","v":""},{"$f":"IF('Generated list'!D2252=\"\",\"\",'Generated list'!D2252)","v":""}]
[null,{"$f":"IF('Generated list'!B2253=\"\",\"\",'Generated list'!B2253)","v":""},{"$f":"IF('Generated list'!C2253=\"\",\"\",'Generated list'!C2253)","v":""},{"$f":"IF('Generated list'!D2253=\"\",\"\",'Generated list'!D2253)","v":""}]
[null,{"$f":"IF('Generated list'!B2254=\"\",\"\",'Generated list'!B2254)","v":""},{"$f":"IF('Generated list'!C2254=\"\",\"\",'Generated list'!C2254)","v":""},{"$f":"IF('Generated list'!D2254=\"\",\"\",'Generated list'!D2254)","v":""}]
[null,{"$f":"IF('Generated list'!B2255=\"\",\"\",'Generated list'!B2255)","v":""},{"$f":"IF('Generated list'!C2255=\"\",\"\",'Generated list'!C2255)","v":""},{"$f":"IF('Generated list'!D2255=\"\",\"\",'Generated list'!D2255)","v":""}]
[null,{"$f":"IF('Generated list'!B2256=\"\",\"\",'Generated list'!B2256)","v":""},{"$f":"IF('Generated list'!C2256=\"\",\"\",'Generated list'!C2256)","v":""},{"$f":"IF('Generated list'!D2256=\"\",\"\",'Generated list'!D2256)","v":""}]
[null,{"$f":"IF('Generated list'!B2257=\"\",\"\",'Generated list'!B2257)","v":""},{"$f":"IF('Generated list'!C2257=\"\",\"\",'Generated list'!C2257)","v":""},{"$f":"IF('Generated list'!D2257=\"\",\"\",'Generated list'!D2257)","v":""}]
[null,{"$f":"IF('Generated list'!B2258=\"\",\"\",'Generated list'!B2258)","v":""},{"$f":"IF('Generated list'!C2258=\"\",\"\",'Generated list'!C2258)","v":""},{"$f":"IF('Generated list'!D2258=\"\",\"\",'Generated list'!D2258)","v":""}]
[null,{"$f":"IF('Generated list'!B2259=\"\",\"\",'Generated list'!B2259)","v":""},{"$f":"IF('Generated list'!C2259=\"\",\"\",'Generated list'!C2259)","v":""},{"$f":"IF('Generated list'!D2259=\"\",\"\",'Generated list'!D2259)","v":""}]
[null,{"$f":"IF('Generated list'!B2260=\"\",\"\",'Generated list'!B2260)","v":""},{"$f":"IF('Generated list'!C2260=\"\",\"\",'Generated list'!C2260)","v":""},{"$f":"IF('Generated list'!D2260=\"\",\"\",'Generated list'!D2260)","v":""}]
[null,{"$f":"IF('Generated list'!B2261=\"\",\"\",'Generated list'!B2261)","v":""},{"$f":"IF('Generated list'!C2261=\"\",\"\",'Generated list'!C2261)","v":""},{"$f":"IF('Generated list'!D2261=\"\",\"\",'Generated list'!D2261)","v":""}]
[null,{"$f":"IF('Generated list'!B2262=\"\",\"\",'Generated list'!B2262)","v":""},{"$f":"IF('Generated list'!C2262=\"\",\"\",'Generated list'!C2262)","v":""},{"$f":"IF('Generated list'!D2262=\"\",\"\",'Generated list'!D2262)","v":""}]
[null,{"$f":"IF('Generated list'!B2263=\"\",\"\",'Generated list'!B2263)","v":""},{"$f":"IF('Generated list'!C2263=\"\",\"\",'Generated list'!C2263)","v":""},{"$f":"IF('Generated list'!D2263=\"\",\"\",'Generated list'!D2263)","v":""}]
[null,{"$f":"IF('Generated list'!B2264=\"\",\"\",'Generated list'!B2264)","v":""},{"$f":"IF('Generated list'!C2264=\"\",\"\",'Generated list'!C2264)","v":""},{"$f":"IF('Generated list'!D2264=\"\",\"\",'Generated list'!D2264)","v":""}]
[null,{"$f":"IF('Generated list'!B2265=\"\",\"\",'Generated list'!B2265)","v":""},{"$f":"IF('Generated list'!C2265=\"\",\"\",'Generated list'!C2265)","v":""},{"$f":"IF('Generated list'!D2265=\"\",\"\",'Generated list'!D2265)","v":""}]
[null,{"$f":"IF('Generated list'!B2266=\"\",\"\",'Generated list'!B2266)","v":""},{"$f":"IF('Generated list'!C2266=\"\",\"\",'Generated list'!C2266)","v":""},{"$f":"IF('Generated list'!D2266=\"\",\"\",'Generated list'!D2266)","v":""}]
[null,{"$f":"IF('Generated list'!B2267=\"\",\"\",'Generated list'!B2267)","v":""},{"$f":"IF('Generated list'!C2267=\"\",\"\",'Generated list'!C2267)","v":""},{"$f":"IF('Generated list'!D2267=\"\",\"\",'Generated list'!D2267)","v":""}]
[null,{"$f":"IF('Generated list'!B2268=\"\",\"\",'Generated list'!B2268)","v":""},{"$f":"IF('Generated list'!C2268=\"\",\"\",'Generated list'!C2268)","v":""},{"$f":"IF('Generated list'!D2268=\"\",\"\",'Generated list'!D2268)","v":""}]
[null,{"$f":"IF('Generated list'!B2269=\"\",\"\",'Generated list'!B2269)","v":""},{"$f":"IF('Generated list'!C2269=\"\",\"\",'Generated list'!C2269)","v":""},{"$f":"IF('Generated list'!D2269=\"\",\"\",'Generated list'!D2269)","v":""}]
[null,{"$f":"IF('Generated list'!B2270=\"\",\"\",'Generated list'!B2270)","v":""},{"$f":"IF('Generated list'!C2270=\"\",\"\",'Generated list'!C2270)","v":""},{"$f":"IF('Generated list'!D2270=\"\",\"\",'Generated list'!D2270)","v":""}]
[null,{"$f":"IF('Generated list'!B2271=\"\",\"\",'Generated list'!B2271)","v":""},{"$f":"IF('Generated list'!C2271=\"\",\"\",'Generated list'!C2271)","v":""},{"$f":"IF('Generated list'!D2271=\"\",\"\",'Generated list'!D2271)","v":""}]
[null,{"$f":"IF('Generated list'!B2272=\"\",\"\",'Generated list'!B2272)","v":""},{"$f":"IF('Generated list'!C2272=\"\",\"\",'Generated list'!C2272)","v":""},{"$f":"IF('Generated list'!D2272=\"\",\"\",'Generated list'!D2272)","v":""}]
[null,{"$f":"IF('Generated list'!B2273=\"\",\"\",'Generated list'!B2273)","v":""},{"$f":"IF('Generated list'!C2273=\"\",\"\",'Generated list'!C2273)","v":""},{"$f":"IF('Generated list'!D2273=\"\",\"\",'Generated list'!D2273)","v":""}]
[null,{"$f":"IF('Generated list'!B2274=\"\",\"\",'Generated list'!B2274)","v":""},{"$f":"IF('Generated list'!C2274=\"\",\"\",'Generated list'!C2274)","v":""},{"$f":"IF('Generated list'!D2274=\"\",\"\",'Generated list'!D2274)","v":""}]
[null,{"$f":"IF('Generated list'!B2275=\"\",\"\",'Generated list'!B2275)","v":""},{"$f":"IF('Generated list'!C2275=\"\",\"\",'Generated list'!C2275)","v":""},{"$f":"IF('Generated list'!D2275=\"\",\"\",'Generated list'!D2275)","v":""}]
[null,{"$f":"IF('Generated list'!B2276=\"\",\"\",'Generated list'!B2276)","v":""},{"$f":"IF('Generated list'!C2276=\"\",\"\",'Generated list'!C2276)","v":""},{"$f":"IF('Generated list'!D2276=\"\",\"\",'Generated list'!D2276)","v":""}]
[null,{"$f":"IF('Generated list'!B2277=\"\",\"\",'Generated list'!B2277)","v":""},{"$f":"IF('Generated list'!C2277=\"\",\"\",'Generated list'!C2277)","v":""},{"$f":"IF('Generated list'!D2277=\"\",\"\",'Generated list'!D2277)","v":""}]
[null,{"$f":"IF('Generated list'!B2278=\"\",\"\",'Generated list'!B2278)","v":""},{"$f":"IF('Generated list'!C2278=\"\",\"\",'Generated list'!C2278)","v":""},{"$f":"IF('Generated list'!D2278=\"\",\"\",'Generated list'!D2278)","v":""}]
[null,{"$f":"IF('Generated list'!B2279=\"\",\"\",'Generated list'!B2279)","v":""},{"$f":"IF('Generated list'!C2279=\"\",\"\",'Generated list'!C2279)","v":""},{"$f":"IF('Generated list'!D2279=\"\",\"\",'Generated list'!D2279)","v":""}]
[null,{"$f":"IF('Generated list'!B2280=\"\",\"\",'Generated list'!B2280)","v":""},{"$f":"IF('Generated list'!C2280=\"\",\"\",'Generated list'!C2280)","v":""},{"$f":"IF('Generated list'!D2280=\"\",\"\",'Generated list'!D2280)","v":""}]
[null,{"$f":"IF('Generated list'!B2281=\"\",\"\",'Generated list'!B2281)","v":""},{"$f":"IF('Generated list'!C2281=\"\",\"\",'Generated list'!C2281)","v":""},{"$f":"IF('Generated list'!D2281=\"\",\"\",'Generated list'!D2281)","v":""}]
[null,{"$f":"IF('Generated list'!B2282=\"\",\"\",'Generated list'!B2282)","v":""},{"$f":"IF('Generated list'!C2282=\"\",\"\",'Generated list'!C2282)","v":""},{"$f":"IF('Generated list'!D2282=\"\",\"\",'Generated list'!D2282)","v":""}]
[null,{"$f":"IF('Generated list'!B2283=\"\",\"\",'Generated list'!B2283)","v":""},{"$f":"IF('Generated list'!C2283=\"\",\"\",'Generated list'!C2283)","v":""},{"$f":"IF('Generated list'!D2283=\"\",\"\",'Generated list'!D2283)","v":""}]
[null,{"$f":"IF('Generated list'!B2284=\"\",\"\",'Generated list'!B2284)","v":""},{"$f":"IF('Generated list'!C2284=\"\",\"\",'Generated list'!C2284)","v":""},{"$f":"IF('Generated list'!D2284=\"\",\"\",'Generated list'!D2284)","v":""}]
[null,{"$f":"IF('Generated list'!B2285=\"\",\"\",'Generated list'!B2285)","v":""},{"$f":"IF('Generated list'!C2285=\"\",\"\",'Generated list'!C2285)","v":""},{"$f":"IF('Generated list'!D2285=\"\",\"\",'Generated list'!D2285)","v":""}]
[null,{"$f":"IF('Generated list'!B2286=\"\",\"\",'Generated list'!B2286)","v":""},{"$f":"IF('Generated list'!C2286=\"\",\"\",'Generated list'!C2286)","v":""},{"$f":"IF('Generated list'!D2286=\"\",\"\",'Generated list'!D2286)","v":""}]
[null,{"$f":"IF('Generated list'!B2287=\"\",\"\",'Generated list'!B2287)","v":""},{"$f":"IF('Generated list'!C2287=\"\",\"\",'Generated list'!C2287)","v":""},{"$f":"IF('Generated list'!D2287=\"\",\"\",'Generated list'!D2287)","v":""}]
[null,{"$f":"IF('Generated list'!B2288=\"\",\"\",'Generated list'!B2288)","v":""},{"$f":"IF('Generated list'!C2288=\"\",\"\",'Generated list'!C2288)","v":""},{"$f":"IF('Generated list'!D2288=\"\",\"\",'Generated list'!D2288)","v":""}]
[null,{"$f":"IF('Generated list'!B2289=\"\",\"\",'Generated list'!B2289)","v":""},{"$f":"IF('Generated list'!C2289=\"\",\"\",'Generated list'!C2289)","v":""},{"$f":"IF('Generated list'!D2289=\"\",\"\",'Generated list'!D2289)","v":""}]
[null,{"$f":"IF('Generated list'!B2290=\"\",\"\",'Generated list'!B2290)","v":""},{"$f":"IF('Generated list'!C2290=\"\",\"\",'Generated list'!C2290)","v":""},{"$f":"IF('Generated list'!D2290=\"\",\"\",'Generated list'!D2290)","v":""}]
[null,{"$f":"IF('Generated list'!B2291=\"\",\"\",'Generated list'!B2291)","v":""},{"$f":"IF('Generated list'!C2291=\"\",\"\",'Generated list'!C2291)","v":""},{"$f":"IF('Generated list'!D2291=\"\",\"\",'Generated list'!D2291)","v":""}]
[null,{"$f":"IF('Generated list'!B2292=\"\",\"\",'Generated list'!B2292)","v":""},{"$f":"IF('Generated list'!C2292=\"\",\"\",'Generated list'!C2292)","v":""},{"$f":"IF('Generated list'!D2292=\"\",\"\",'Generated list'!D2292)","v":""}]
[null,{"$f":"IF('Generated list'!B2293=\"\",\"\",'Generated list'!B2293)","v":""},{"$f":"IF('Generated list'!C2293=\"\",\"\",'Generated list'!C2293)","v":""},{"$f":"IF('Generated list'!D2293=\"\",\"\",'Generated list'!D2293)","v":""}]
[null,{"$f":"IF('Generated list'!B2294=\"\",\"\",'Generated list'!B2294)","v":""},{"$f":"IF('Generated list'!C2294=\"\",\"\",'Generated list'!C2294)","v":""},{"$f":"IF('Generated list'!D2294=\"\",\"\",'Generated list'!D2294)","v":""}]
[null,{"$f":"IF('Generated list'!B2295=\"\",\"\",'Generated list'!B2295)","v":""},{"$f":"IF('Generated list'!C2295=\"\",\"\",'Generated list'!C2295)","v":""},{"$f":"IF('Generated list'!D2295=\"\",\"\",'Generated list'!D2295)","v":""}]
[null,{"$f":"IF('Generated list'!B2296=\"\",\"\",'Generated list'!B2296)","v":""},{"$f":"IF('Generated list'!C2296=\"\",\"\",'Generated list'!C2296)","v":""},{"$f":"IF('Generated list'!D2296=\"\",\"\",'Generated list'!D2296)","v":""}]
[null,{"$f":"IF('Generated list'!B2297=\"\",\"\",'Generated list'!B2297)","v":""},{"$f":"IF('Generated list'!C2297=\"\",\"\",'Generated list'!C2297)","v":""},{"$f":"IF('Generated list'!D2297=\"\",\"\",'Generated list'!D2297)","v":""}]
[null,{"$f":"IF('Generated list'!B2298=\"\",\"\",'Generated list'!B2298)","v":""},{"$f":"IF('Generated list'!C2298=\"\",\"\",'Generated list'!C2298)","v":""},{"$f":"IF('Generated list'!D2298=\"\",\"\",'Generated list'!D2298)","v":""}]
[null,{"$f":"IF('Generated list'!B2299=\"\",\"\",'Generated list'!B2299)","v":""},{"$f":"IF('Generated list'!C2299=\"\",\"\",'Generated list'!C2299)","v":""},{"$f":"IF('Generated list'!D2299=\"\",\"\",'Generated list'!D2299)","v":""}]
[null,{"$f":"IF('Generated list'!B2300=\"\",\"\",'Generated list'!B2300)","v":""},{"$f":"IF('Generated list'!C2300=\"\",\"\",'Generated list'!C2300)","v":""},{"$f":"IF('Generated list'!D2300=\"\",\"\",'Generated list'!D2300)","v":""}]
[null,{"$f":"IF('Generated list'!B2301=\"\",\"\",'Generated list'!B2301)","v":""},{"$f":"IF('Generated list'!C2301=\"\",\"\",'Generated list'!C2301)","v":""},{"$f":"IF('Generated list'!D2301=\"\",\"\",'Generated list'!D2301)","v":""}]
[null,{"$f":"IF('Generated list'!B2302=\"\",\"\",'Generated list'!B2302)","v":""},{"$f":"IF('Generated list'!C2302=\"\",\"\",'Generated list'!C2302)","v":""},{"$f":"IF('Generated list'!D2302=\"\",\"\",'Generated list'!D2302)","v":""}]
[null,{"$f":"IF('Generated list'!B2303=\"\",\"\",'Generated list'!B2303)","v":""},{"$f":"IF('Generated list'!C2303=\"\",\"\",'Generated list'!C2303)","v":""},{"$f":"IF('Generated list'!D2303=\"\",\"\",'Generated list'!D2303)","v":""}]
[null,{"$f":"IF('Generated list'!B2304=\"\",\"\",'Generated list'!B2304)","v":""},{"$f":"IF('Generated list'!C2304=\"\",\"\",'Generated list'!C2304)","v":""},{"$f":"IF('Generated list'!D2304=\"\",\"\",'Generated list'!D2304)","v":""}]
[null,{"$f":"IF('Generated list'!B2305=\"\",\"\",'Generated list'!B2305)","v":""},{"$f":"IF('Generated list'!C2305=\"\",\"\",'Generated list'!C2305)","v":""},{"$f":"IF('Generated list'!D2305=\"\",\"\",'Generated list'!D2305)","v":""}]
[null,{"$f":"IF('Generated list'!B2306=\"\",\"\",'Generated list'!B2306)","v":""},{"$f":"IF('Generated list'!C2306=\"\",\"\",'Generated list'!C2306)","v":""},{"$f":"IF('Generated list'!D2306=\"\",\"\",'Generated list'!D2306)","v":""}]
[null,{"$f":"IF('Generated list'!B2307=\"\",\"\",'Generated list'!B2307)","v":""},{"$f":"IF('Generated list'!C2307=\"\",\"\",'Generated list'!C2307)","v":""},{"$f":"IF('Generated list'!D2307=\"\",\"\",'Generated list'!D2307)","v":""}]
[null,{"$f":"IF('Generated list'!B2308=\"\",\"\",'Generated list'!B2308)","v":""},{"$f":"IF('Generated list'!C2308=\"\",\"\",'Generated list'!C2308)","v":""},{"$f":"IF('Generated list'!D2308=\"\",\"\",'Generated list'!D2308)","v":""}]
[null,{"$f":"IF('Generated list'!B2309=\"\",\"\",'Generated list'!B2309)","v":""},{"$f":"IF('Generated list'!C2309=\"\",\"\",'Generated list'!C2309)","v":""},{"$f":"IF('Generated list'!D2309=\"\",\"\",'Generated list'!D2309)","v":""}]
[null,{"$f":"IF('Generated list'!B2310=\"\",\"\",'Generated list'!B2310)","v":""},{"$f":"IF('Generated list'!C2310=\"\",\"\",'Generated list'!C2310)","v":""},{"$f":"IF('Generated list'!D2310=\"\",\"\",'Generated list'!D2310)","v":""}]
[null,{"$f":"IF('Generated list'!B2311=\"\",\"\",'Generated list'!B2311)","v":""},{"$f":"IF('Generated list'!C2311=\"\",\"\",'Generated list'!C2311)","v":""},{"$f":"IF('Generated list'!D2311=\"\",\"\",'Generated list'!D2311)","v":""}]
[null,{"$f":"IF('Generated list'!B2312=\"\",\"\",'Generated list'!B2312)","v":""},{"$f":"IF('Generated list'!C2312=\"\",\"\",'Generated list'!C2312)","v":""},{"$f":"IF('Generated list'!D2312=\"\",\"\",'Generated list'!D2312)","v":""}]
[null,{"$f":"IF('Generated list'!B2313=\"\",\"\",'Generated list'!B2313)","v":""},{"$f":"IF('Generated list'!C2313=\"\",\"\",'Generated list'!C2313)","v":""},{"$f":"IF('Generated list'!D2313=\"\",\"\",'Generated list'!D2313)","v":""}]
[null,{"$f":"IF('Generated list'!B2314=\"\",\"\",'Generated list'!B2314)","v":""},{"$f":"IF('Generated list'!C2314=\"\",\"\",'Generated list'!C2314)","v":""},{"$f":"IF('Generated list'!D2314=\"\",\"\",'Generated list'!D2314)","v":""}]
[null,{"$f":"IF('Generated list'!B2315=\"\",\"\",'Generated list'!B2315)","v":""},{"$f":"IF('Generated list'!C2315=\"\",\"\",'Generated list'!C2315)","v":""},{"$f":"IF('Generated list'!D2315=\"\",\"\",'Generated list'!D2315)","v":""}]
[null,{"$f":"IF('Generated list'!B2316=\"\",\"\",'Generated list'!B2316)","v":""},{"$f":"IF('Generated list'!C2316=\"\",\"\",'Generated list'!C2316)","v":""},{"$f":"IF('Generated list'!D2316=\"\",\"\",'Generated list'!D2316)","v":""}]
[null,{"$f":"IF('Generated list'!B2317=\"\",\"\",'Generated list'!B2317)","v":""},{"$f":"IF('Generated list'!C2317=\"\",\"\",'Generated list'!C2317)","v":""},{"$f":"IF('Generated list'!D2317=\"\",\"\",'Generated list'!D2317)","v":""}]
[null,{"$f":"IF('Generated list'!B2318=\"\",\"\",'Generated list'!B2318)","v":""},{"$f":"IF('Generated list'!C2318=\"\",\"\",'Generated list'!C2318)","v":""},{"$f":"IF('Generated list'!D2318=\"\",\"\",'Generated list'!D2318)","v":""}]
[null,{"$f":"IF('Generated list'!B2319=\"\",\"\",'Generated list'!B2319)","v":""},{"$f":"IF('Generated list'!C2319=\"\",\"\",'Generated list'!C2319)","v":""},{"$f":"IF('Generated list'!D2319=\"\",\"\",'Generated list'!D2319)","v":""}]
[null,{"$f":"IF('Generated list'!B2320=\"\",\"\",'Generated list'!B2320)","v":""},{"$f":"IF('Generated list'!C2320=\"\",\"\",'Generated list'!C2320)","v":""},{"$f":"IF('Generated list'!D2320=\"\",\"\",'Generated list'!D2320)","v":""}]
[null,{"$f":"IF('Generated list'!B2321=\"\",\"\",'Generated list'!B2321)","v":""},{"$f":"IF('Generated list'!C2321=\"\",\"\",'Generated list'!C2321)","v":""},{"$f":"IF('Generated list'!D2321=\"\",\"\",'Generated list'!D2321)","v":""}]
[null,{"$f":"IF('Generated list'!B2322=\"\",\"\",'Generated list'!B2322)","v":""},{"$f":"IF('Generated list'!C2322=\"\",\"\",'Generated list'!C2322)","v":""},{"$f":"IF('Generated list'!D2322=\"\",\"\",'Generated list'!D2322)","v":""}]
[null,{"$f":"IF('Generated list'!B2323=\"\",\"\",'Generated list'!B2323)","v":""},{"$f":"IF('Generated list'!C2323=\"\",\"\",'Generated list'!C2323)","v":""},{"$f":"IF('Generated list'!D2323=\"\",\"\",'Generated list'!D2323)","v":""}]
[null,{"$f":"IF('Generated list'!B2324=\"\",\"\",'Generated list'!B2324)","v":""},{"$f":"IF('Generated list'!C2324=\"\",\"\",'Generated list'!C2324)","v":""},{"$f":"IF('Generated list'!D2324=\"\",\"\",'Generated list'!D2324)","v":""}]
[null,{"$f":"IF('Generated list'!B2325=\"\",\"\",'Generated list'!B2325)","v":""},{"$f":"IF('Generated list'!C2325=\"\",\"\",'Generated list'!C2325)","v":""},{"$f":"IF('Generated list'!D2325=\"\",\"\",'Generated list'!D2325)","v":""}]
[null,{"$f":"IF('Generated list'!B2326=\"\",\"\",'Generated list'!B2326)","v":""},{"$f":"IF('Generated list'!C2326=\"\",\"\",'Generated list'!C2326)","v":""},{"$f":"IF('Generated list'!D2326=\"\",\"\",'Generated list'!D2326)","v":""}]
[null,{"$f":"IF('Generated list'!B2327=\"\",\"\",'Generated list'!B2327)","v":""},{"$f":"IF('Generated list'!C2327=\"\",\"\",'Generated list'!C2327)","v":""},{"$f":"IF('Generated list'!D2327=\"\",\"\",'Generated list'!D2327)","v":""}]
[null,{"$f":"IF('Generated list'!B2328=\"\",\"\",'Generated list'!B2328)","v":""},{"$f":"IF('Generated list'!C2328=\"\",\"\",'Generated list'!C2328)","v":""},{"$f":"IF('Generated list'!D2328=\"\",\"\",'Generated list'!D2328)","v":""}]
[null,{"$f":"IF('Generated list'!B2329=\"\",\"\",'Generated list'!B2329)","v":""},{"$f":"IF('Generated list'!C2329=\"\",\"\",'Generated list'!C2329)","v":""},{"$f":"IF('Generated list'!D2329=\"\",\"\",'Generated list'!D2329)","v":""}]
[null,{"$f":"IF('Generated list'!B2330=\"\",\"\",'Generated list'!B2330)","v":""},{"$f":"IF('Generated list'!C2330=\"\",\"\",'Generated list'!C2330)","v":""},{"$f":"IF('Generated list'!D2330=\"\",\"\",'Generated list'!D2330)","v":""}]
[null,{"$f":"IF('Generated list'!B2331=\"\",\"\",'Generated list'!B2331)","v":""},{"$f":"IF('Generated list'!C2331=\"\",\"\",'Generated list'!C2331)","v":""},{"$f":"IF('Generated list'!D2331=\"\",\"\",'Generated list'!D2331)","v":""}]
[null,{"$f":"IF('Generated list'!B2332=\"\",\"\",'Generated list'!B2332)","v":""},{"$f":"IF('Generated list'!C2332=\"\",\"\",'Generated list'!C2332)","v":""},{"$f":"IF('Generated list'!D2332=\"\",\"\",'Generated list'!D2332)","v":""}]
[null,{"$f":"IF('Generated list'!B2333=\"\",\"\",'Generated list'!B2333)","v":""},{"$f":"IF('Generated list'!C2333=\"\",\"\",'Generated list'!C2333)","v":""},{"$f":"IF('Generated list'!D2333=\"\",\"\",'Generated list'!D2333)","v":""}]
[null,{"$f":"IF('Generated list'!B2334=\"\",\"\",'Generated list'!B2334)","v":""},{"$f":"IF('Generated list'!C2334=\"\",\"\",'Generated list'!C2334)","v":""},{"$f":"IF('Generated list'!D2334=\"\",\"\",'Generated list'!D2334)","v":""}]
[null,{"$f":"IF('Generated list'!B2335=\"\",\"\",'Generated list'!B2335)","v":""},{"$f":"IF('Generated list'!C2335=\"\",\"\",'Generated list'!C2335)","v":""},{"$f":"IF('Generated list'!D2335=\"\",\"\",'Generated list'!D2335)","v":""}]
[null,{"$f":"IF('Generated list'!B2336=\"\",\"\",'Generated list'!B2336)","v":""},{"$f":"IF('Generated list'!C2336=\"\",\"\",'Generated list'!C2336)","v":""},{"$f":"IF('Generated list'!D2336=\"\",\"\",'Generated list'!D2336)","v":""}]
[null,{"$f":"IF('Generated list'!B2337=\"\",\"\",'Generated list'!B2337)","v":""},{"$f":"IF('Generated list'!C2337=\"\",\"\",'Generated list'!C2337)","v":""},{"$f":"IF('Generated list'!D2337=\"\",\"\",'Generated list'!D2337)","v":""}]
[null,{"$f":"IF('Generated list'!B2338=\"\",\"\",'Generated list'!B2338)","v":""},{"$f":"IF('Generated list'!C2338=\"\",\"\",'Generated list'!C2338)","v":""},{"$f":"IF('Generated list'!D2338=\"\",\"\",'Generated list'!D2338)","v":""}]
[null,{"$f":"IF('Generated list'!B2339=\"\",\"\",'Generated list'!B2339)","v":""},{"$f":"IF('Generated list'!C2339=\"\",\"\",'Generated list'!C2339)","v":""},{"$f":"IF('Generated list'!D2339=\"\",\"\",'Generated list'!D2339)","v":""}]
[null,{"$f":"IF('Generated list'!B2340=\"\",\"\",'Generated list'!B2340)","v":""},{"$f":"IF('Generated list'!C2340=\"\",\"\",'Generated list'!C2340)","v":""},{"$f":"IF('Generated list'!D2340=\"\",\"\",'Generated list'!D2340)","v":""}]
[null,{"$f":"IF('Generated list'!B2341=\"\",\"\",'Generated list'!B2341)","v":""},{"$f":"IF('Generated list'!C2341=\"\",\"\",'Generated list'!C2341)","v":""},{"$f":"IF('Generated list'!D2341=\"\",\"\",'Generated list'!D2341)","v":""}]
[null,{"$f":"IF('Generated list'!B2342=\"\",\"\",'Generated list'!B2342)","v":""},{"$f":"IF('Generated list'!C2342=\"\",\"\",'Generated list'!C2342)","v":""},{"$f":"IF('Generated list'!D2342=\"\",\"\",'Generated list'!D2342)","v":""}]
[null,{"$f":"IF('Generated list'!B2343=\"\",\"\",'Generated list'!B2343)","v":""},{"$f":"IF('Generated list'!C2343=\"\",\"\",'Generated list'!C2343)","v":""},{"$f":"IF('Generated list'!D2343=\"\",\"\",'Generated list'!D2343)","v":""}]
[null,{"$f":"IF('Generated list'!B2344=\"\",\"\",'Generated list'!B2344)","v":""},{"$f":"IF('Generated list'!C2344=\"\",\"\",'Generated list'!C2344)","v":""},{"$f":"IF('Generated list'!D2344=\"\",\"\",'Generated list'!D2344)","v":""}]
[null,{"$f":"IF('Generated list'!B2345=\"\",\"\",'Generated list'!B2345)","v":""},{"$f":"IF('Generated list'!C2345=\"\",\"\",'Generated list'!C2345)","v":""},{"$f":"IF('Generated list'!D2345=\"\",\"\",'Generated list'!D2345)","v":""}]
[null,{"$f":"IF('Generated list'!B2346=\"\",\"\",'Generated list'!B2346)","v":""},{"$f":"IF('Generated list'!C2346=\"\",\"\",'Generated list'!C2346)","v":""},{"$f":"IF('Generated list'!D2346=\"\",\"\",'Generated list'!D2346)","v":""}]
[null,{"$f":"IF('Generated list'!B2347=\"\",\"\",'Generated list'!B2347)","v":""},{"$f":"IF('Generated list'!C2347=\"\",\"\",'Generated list'!C2347)","v":""},{"$f":"IF('Generated list'!D2347=\"\",\"\",'Generated list'!D2347)","v":""}]
[null,{"$f":"IF('Generated list'!B2348=\"\",\"\",'Generated list'!B2348)","v":""},{"$f":"IF('Generated list'!C2348=\"\",\"\",'Generated list'!C2348)","v":""},{"$f":"IF('Generated list'!D2348=\"\",\"\",'Generated list'!D2348)","v":""}]
[null,{"$f":"IF('Generated list'!B2349=\"\",\"\",'Generated list'!B2349)","v":""},{"$f":"IF('Generated list'!C2349=\"\",\"\",'Generated list'!C2349)","v":""},{"$f":"IF('Generated list'!D2349=\"\",\"\",'Generated list'!D2349)","v":""}]
[null,{"$f":"IF('Generated list'!B2350=\"\",\"\",'Generated list'!B2350)","v":""},{"$f":"IF('Generated list'!C2350=\"\",\"\",'Generated list'!C2350)","v":""},{"$f":"IF('Generated list'!D2350=\"\",\"\",'Generated list'!D2350)","v":""}]
[null,{"$f":"IF('Generated list'!B2351=\"\",\"\",'Generated list'!B2351)","v":""},{"$f":"IF('Generated list'!C2351=\"\",\"\",'Generated list'!C2351)","v":""},{"$f":"IF('Generated list'!D2351=\"\",\"\",'Generated list'!D2351)","v":""}]
[null,{"$f":"IF('Generated list'!B2352=\"\",\"\",'Generated list'!B2352)","v":""},{"$f":"IF('Generated list'!C2352=\"\",\"\",'Generated list'!C2352)","v":""},{"$f":"IF('Generated list'!D2352=\"\",\"\",'Generated list'!D2352)","v":""}]
[null,{"$f":"IF('Generated list'!B2353=\"\",\"\",'Generated list'!B2353)","v":""},{"$f":"IF('Generated list'!C2353=\"\",\"\",'Generated list'!C2353)","v":""},{"$f":"IF('Generated list'!D2353=\"\",\"\",'Generated list'!D2353)","v":""}]
[null,{"$f":"IF('Generated list'!B2354=\"\",\"\",'Generated list'!B2354)","v":""},{"$f":"IF('Generated list'!C2354=\"\",\"\",'Generated list'!C2354)","v":""},{"$f":"IF('Generated list'!D2354=\"\",\"\",'Generated list'!D2354)","v":""}]
[null,{"$f":"IF('Generated list'!B2355=\"\",\"\",'Generated list'!B2355)","v":""},{"$f":"IF('Generated list'!C2355=\"\",\"\",'Generated list'!C2355)","v":""},{"$f":"IF('Generated list'!D2355=\"\",\"\",'Generated list'!D2355)","v":""}]
[null,{"$f":"IF('Generated list'!B2356=\"\",\"\",'Generated list'!B2356)","v":""},{"$f":"IF('Generated list'!C2356=\"\",\"\",'Generated list'!C2356)","v":""},{"$f":"IF('Generated list'!D2356=\"\",\"\",'Generated list'!D2356)","v":""}]
[null,{"$f":"IF('Generated list'!B2357=\"\",\"\",'Generated list'!B2357)","v":""},{"$f":"IF('Generated list'!C2357=\"\",\"\",'Generated list'!C2357)","v":""},{"$f":"IF('Generated list'!D2357=\"\",\"\",'Generated list'!D2357)","v":""}]
[null,{"$f":"IF('Generated list'!B2358=\"\",\"\",'Generated list'!B2358)","v":""},{"$f":"IF('Generated list'!C2358=\"\",\"\",'Generated list'!C2358)","v":""},{"$f":"IF('Generated list'!D2358=\"\",\"\",'Generated list'!D2358)","v":""}]
[null,{"$f":"IF('Generated list'!B2359=\"\",\"\",'Generated list'!B2359)","v":""},{"$f":"IF('Generated list'!C2359=\"\",\"\",'Generated list'!C2359)","v":""},{"$f":"IF('Generated list'!D2359=\"\",\"\",'Generated list'!D2359)","v":""}]
[null,{"$f":"IF('Generated list'!B2360=\"\",\"\",'Generated list'!B2360)","v":""},{"$f":"IF('Generated list'!C2360=\"\",\"\",'Generated list'!C2360)","v":""},{"$f":"IF('Generated list'!D2360=\"\",\"\",'Generated list'!D2360)","v":""}]
[null,{"$f":"IF('Generated list'!B2361=\"\",\"\",'Generated list'!B2361)","v":""},{"$f":"IF('Generated list'!C2361=\"\",\"\",'Generated list'!C2361)","v":""},{"$f":"IF('Generated list'!D2361=\"\",\"\",'Generated list'!D2361)","v":""}]
[null,{"$f":"IF('Generated list'!B2362=\"\",\"\",'Generated list'!B2362)","v":""},{"$f":"IF('Generated list'!C2362=\"\",\"\",'Generated list'!C2362)","v":""},{"$f":"IF('Generated list'!D2362=\"\",\"\",'Generated list'!D2362)","v":""}]
[null,{"$f":"IF('Generated list'!B2363=\"\",\"\",'Generated list'!B2363)","v":""},{"$f":"IF('Generated list'!C2363=\"\",\"\",'Generated list'!C2363)","v":""},{"$f":"IF('Generated list'!D2363=\"\",\"\",'Generated list'!D2363)","v":""}]
[null,{"$f":"IF('Generated list'!B2364=\"\",\"\",'Generated list'!B2364)","v":""},{"$f":"IF('Generated list'!C2364=\"\",\"\",'Generated list'!C2364)","v":""},{"$f":"IF('Generated list'!D2364=\"\",\"\",'Generated list'!D2364)","v":""}]
[null,{"$f":"IF('Generated list'!B2365=\"\",\"\",'Generated list'!B2365)","v":""},{"$f":"IF('Generated list'!C2365=\"\",\"\",'Generated list'!C2365)","v":""},{"$f":"IF('Generated list'!D2365=\"\",\"\",'Generated list'!D2365)","v":""}]
[null,{"$f":"IF('Generated list'!B2366=\"\",\"\",'Generated list'!B2366)","v":""},{"$f":"IF('Generated list'!C2366=\"\",\"\",'Generated list'!C2366)","v":""},{"$f":"IF('Generated list'!D2366=\"\",\"\",'Generated list'!D2366)","v":""}]
[null,{"$f":"IF('Generated list'!B2367=\"\",\"\",'Generated list'!B2367)","v":""},{"$f":"IF('Generated list'!C2367=\"\",\"\",'Generated list'!C2367)","v":""},{"$f":"IF('Generated list'!D2367=\"\",\"\",'Generated list'!D2367)","v":""}]
[null,{"$f":"IF('Generated list'!B2368=\"\",\"\",'Generated list'!B2368)","v":""},{"$f":"IF('Generated list'!C2368=\"\",\"\",'Generated list'!C2368)","v":""},{"$f":"IF('Generated list'!D2368=\"\",\"\",'Generated list'!D2368)","v":""}]
[null,{"$f":"IF('Generated list'!B2369=\"\",\"\",'Generated list'!B2369)","v":""},{"$f":"IF('Generated list'!C2369=\"\",\"\",'Generated list'!C2369)","v":""},{"$f":"IF('Generated list'!D2369=\"\",\"\",'Generated list'!D2369)","v":""}]
[null,{"$f":"IF('Generated list'!B2370=\"\",\"\",'Generated list'!B2370)","v":""},{"$f":"IF('Generated list'!C2370=\"\",\"\",'Generated list'!C2370)","v":""},{"$f":"IF('Generated list'!D2370=\"\",\"\",'Generated list'!D2370)","v":""}]
[null,{"$f":"IF('Generated list'!B2371=\"\",\"\",'Generated list'!B2371)","v":""},{"$f":"IF('Generated list'!C2371=\"\",\"\",'Generated list'!C2371)","v":""},{"$f":"IF('Generated list'!D2371=\"\",\"\",'Generated list'!D2371)","v":""}]
[null,{"$f":"IF('Generated list'!B2372=\"\",\"\",'Generated list'!B2372)","v":""},{"$f":"IF('Generated list'!C2372=\"\",\"\",'Generated list'!C2372)","v":""},{"$f":"IF('Generated list'!D2372=\"\",\"\",'Generated list'!D2372)","v":""}]
[null,{"$f":"IF('Generated list'!B2373=\"\",\"\",'Generated list'!B2373)","v":""},{"$f":"IF('Generated list'!C2373=\"\",\"\",'Generated list'!C2373)","v":""},{"$f":"IF('Generated list'!D2373=\"\",\"\",'Generated list'!D2373)","v":""}]
[null,{"$f":"IF('Generated list'!B2374=\"\",\"\",'Generated list'!B2374)","v":""},{"$f":"IF('Generated list'!C2374=\"\",\"\",'Generated list'!C2374)","v":""},{"$f":"IF('Generated list'!D2374=\"\",\"\",'Generated list'!D2374)","v":""}]
[null,{"$f":"IF('Generated list'!B2375=\"\",\"\",'Generated list'!B2375)","v":""},{"$f":"IF('Generated list'!C2375=\"\",\"\",'Generated list'!C2375)","v":""},{"$f":"IF('Generated list'!D2375=\"\",\"\",'Generated list'!D2375)","v":""}]
[null,{"$f":"IF('Generated list'!B2376=\"\",\"\",'Generated list'!B2376)","v":""},{"$f":"IF('Generated list'!C2376=\"\",\"\",'Generated list'!C2376)","v":""},{"$f":"IF('Generated list'!D2376=\"\",\"\",'Generated list'!D2376)","v":""}]
[null,{"$f":"IF('Generated list'!B2377=\"\",\"\",'Generated list'!B2377)","v":""},{"$f":"IF('Generated list'!C2377=\"\",\"\",'Generated list'!C2377)","v":""},{"$f":"IF('Generated list'!D2377=\"\",\"\",'Generated list'!D2377)","v":""}]
[null,{"$f":"IF('Generated list'!B2378=\"\",\"\",'Generated list'!B2378)","v":""},{"$f":"IF('Generated list'!C2378=\"\",\"\",'Generated list'!C2378)","v":""},{"$f":"IF('Generated list'!D2378=\"\",\"\",'Generated list'!D2378)","v":""}]
[null,{"$f":"IF('Generated list'!B2379=\"\",\"\",'Generated list'!B2379)","v":""},{"$f":"IF('Generated list'!C2379=\"\",\"\",'Generated list'!C2379)","v":""},{"$f":"IF('Generated list'!D2379=\"\",\"\",'Generated list'!D2379)","v":""}]
[null,{"$f":"IF('Generated list'!B2380=\"\",\"\",'Generated list'!B2380)","v":""},{"$f":"IF('Generated list'!C2380=\"\",\"\",'Generated list'!C2380)","v":""},{"$f":"IF('Generated list'!D2380=\"\",\"\",'Generated list'!D2380)","v":""}]
[null,{"$f":"IF('Generated list'!B2381=\"\",\"\",'Generated list'!B2381)","v":""},{"$f":"IF('Generated list'!C2381=\"\",\"\",'Generated list'!C2381)","v":""},{"$f":"IF('Generated list'!D2381=\"\",\"\",'Generated list'!D2381)","v":""}]
[null,{"$f":"IF('Generated list'!B2382=\"\",\"\",'Generated list'!B2382)","v":""},{"$f":"IF('Generated list'!C2382=\"\",\"\",'Generated list'!C2382)","v":""},{"$f":"IF('Generated list'!D2382=\"\",\"\",'Generated list'!D2382)","v":""}]
[null,{"$f":"IF('Generated list'!B2383=\"\",\"\",'Generated list'!B2383)","v":""},{"$f":"IF('Generated list'!C2383=\"\",\"\",'Generated list'!C2383)","v":""},{"$f":"IF('Generated list'!D2383=\"\",\"\",'Generated list'!D2383)","v":""}]
[null,{"$f":"IF('Generated list'!B2384=\"\",\"\",'Generated list'!B2384)","v":""},{"$f":"IF('Generated list'!C2384=\"\",\"\",'Generated list'!C2384)","v":""},{"$f":"IF('Generated list'!D2384=\"\",\"\",'Generated list'!D2384)","v":""}]
[null,{"$f":"IF('Generated list'!B2385=\"\",\"\",'Generated list'!B2385)","v":""},{"$f":"IF('Generated list'!C2385=\"\",\"\",'Generated list'!C2385)","v":""},{"$f":"IF('Generated list'!D2385=\"\",\"\",'Generated list'!D2385)","v":""}]
[null,{"$f":"IF('Generated list'!B2386=\"\",\"\",'Generated list'!B2386)","v":""},{"$f":"IF('Generated list'!C2386=\"\",\"\",'Generated list'!C2386)","v":""},{"$f":"IF('Generated list'!D2386=\"\",\"\",'Generated list'!D2386)","v":""}]
[null,{"$f":"IF('Generated list'!B2387=\"\",\"\",'Generated list'!B2387)","v":""},{"$f":"IF('Generated list'!C2387=\"\",\"\",'Generated list'!C2387)","v":""},{"$f":"IF('Generated list'!D2387=\"\",\"\",'Generated list'!D2387)","v":""}]
[null,{"$f":"IF('Generated list'!B2388=\"\",\"\",'Generated list'!B2388)","v":""},{"$f":"IF('Generated list'!C2388=\"\",\"\",'Generated list'!C2388)","v":""},{"$f":"IF('Generated list'!D2388=\"\",\"\",'Generated list'!D2388)","v":""}]
[null,{"$f":"IF('Generated list'!B2389=\"\",\"\",'Generated list'!B2389)","v":""},{"$f":"IF('Generated list'!C2389=\"\",\"\",'Generated list'!C2389)","v":""},{"$f":"IF('Generated list'!D2389=\"\",\"\",'Generated list'!D2389)","v":""}]
[null,{"$f":"IF('Generated list'!B2390=\"\",\"\",'Generated list'!B2390)","v":""},{"$f":"IF('Generated list'!C2390=\"\",\"\",'Generated list'!C2390)","v":""},{"$f":"IF('Generated list'!D2390=\"\",\"\",'Generated list'!D2390)","v":""}]
[null,{"$f":"IF('Generated list'!B2391=\"\",\"\",'Generated list'!B2391)","v":""},{"$f":"IF('Generated list'!C2391=\"\",\"\",'Generated list'!C2391)","v":""},{"$f":"IF('Generated list'!D2391=\"\",\"\",'Generated list'!D2391)","v":""}]
[null,{"$f":"IF('Generated list'!B2392=\"\",\"\",'Generated list'!B2392)","v":""},{"$f":"IF('Generated list'!C2392=\"\",\"\",'Generated list'!C2392)","v":""},{"$f":"IF('Generated list'!D2392=\"\",\"\",'Generated list'!D2392)","v":""}]
[null,{"$f":"IF('Generated list'!B2393=\"\",\"\",'Generated list'!B2393)","v":""},{"$f":"IF('Generated list'!C2393=\"\",\"\",'Generated list'!C2393)","v":""},{"$f":"IF('Generated list'!D2393=\"\",\"\",'Generated list'!D2393)","v":""}]
[null,{"$f":"IF('Generated list'!B2394=\"\",\"\",'Generated list'!B2394)","v":""},{"$f":"IF('Generated list'!C2394=\"\",\"\",'Generated list'!C2394)","v":""},{"$f":"IF('Generated list'!D2394=\"\",\"\",'Generated list'!D2394)","v":""}]
[null,{"$f":"IF('Generated list'!B2395=\"\",\"\",'Generated list'!B2395)","v":""},{"$f":"IF('Generated list'!C2395=\"\",\"\",'Generated list'!C2395)","v":""},{"$f":"IF('Generated list'!D2395=\"\",\"\",'Generated list'!D2395)","v":""}]
[null,{"$f":"IF('Generated list'!B2396=\"\",\"\",'Generated list'!B2396)","v":""},{"$f":"IF('Generated list'!C2396=\"\",\"\",'Generated list'!C2396)","v":""},{"$f":"IF('Generated list'!D2396=\"\",\"\",'Generated list'!D2396)","v":""}]
[null,{"$f":"IF('Generated list'!B2397=\"\",\"\",'Generated list'!B2397)","v":""},{"$f":"IF('Generated list'!C2397=\"\",\"\",'Generated list'!C2397)","v":""},{"$f":"IF('Generated list'!D2397=\"\",\"\",'Generated list'!D2397)","v":""}]
[null,{"$f":"IF('Generated list'!B2398=\"\",\"\",'Generated list'!B2398)","v":""},{"$f":"IF('Generated list'!C2398=\"\",\"\",'Generated list'!C2398)","v":""},{"$f":"IF('Generated list'!D2398=\"\",\"\",'Generated list'!D2398)","v":""}]
[null,{"$f":"IF('Generated list'!B2399=\"\",\"\",'Generated list'!B2399)","v":""},{"$f":"IF('Generated list'!C2399=\"\",\"\",'Generated list'!C2399)","v":""},{"$f":"IF('Generated list'!D2399=\"\",\"\",'Generated list'!D2399)","v":""}]
[null,{"$f":"IF('Generated list'!B2400=\"\",\"\",'Generated list'!B2400)","v":""},{"$f":"IF('Generated list'!C2400=\"\",\"\",'Generated list'!C2400)","v":""},{"$f":"IF('Generated list'!D2400=\"\",\"\",'Generated list'!D2400)","v":""}]
[null,{"$f":"IF('Generated list'!B2401=\"\",\"\",'Generated list'!B2401)","v":""},{"$f":"IF('Generated list'!C2401=\"\",\"\",'Generated list'!C2401)","v":""},{"$f":"IF('Generated list'!D2401=\"\",\"\",'Generated list'!D2401)","v":""}]
[null,{"$f":"IF('Generated list'!B2402=\"\",\"\",'Generated list'!B2402)","v":""},{"$f":"IF('Generated list'!C2402=\"\",\"\",'Generated list'!C2402)","v":""},{"$f":"IF('Generated list'!D2402=\"\",\"\",'Generated list'!D2402)","v":""}]
[null,{"$f":"IF('Generated list'!B2403=\"\",\"\",'Generated list'!B2403)","v":""},{"$f":"IF('Generated list'!C2403=\"\",\"\",'Generated list'!C2403)","v":""},{"$f":"IF('Generated list'!D2403=\"\",\"\",'Generated list'!D2403)","v":""}]
[null,{"$f":"IF('Generated list'!B2404=\"\",\"\",'Generated list'!B2404)","v":""},{"$f":"IF('Generated list'!C2404=\"\",\"\",'Generated list'!C2404)","v":""},{"$f":"IF('Generated list'!D2404=\"\",\"\",'Generated list'!D2404)","v":""}]
[null,{"$f":"IF('Generated list'!B2405=\"\",\"\",'Generated list'!B2405)","v":""},{"$f":"IF('Generated list'!C2405=\"\",\"\",'Generated list'!C2405)","v":""},{"$f":"IF('Generated list'!D2405=\"\",\"\",'Generated list'!D2405)","v":""}]
[null,{"$f":"IF('Generated list'!B2406=\"\",\"\",'Generated list'!B2406)","v":""},{"$f":"IF('Generated list'!C2406=\"\",\"\",'Generated list'!C2406)","v":""},{"$f":"IF('Generated list'!D2406=\"\",\"\",'Generated list'!D2406)","v":""}]
[null,{"$f":"IF('Generated list'!B2407=\"\",\"\",'Generated list'!B2407)","v":""},{"$f":"IF('Generated list'!C2407=\"\",\"\",'Generated list'!C2407)","v":""},{"$f":"IF('Generated list'!D2407=\"\",\"\",'Generated list'!D2407)","v":""}]
[null,{"$f":"IF('Generated list'!B2408=\"\",\"\",'Generated list'!B2408)","v":""},{"$f":"IF('Generated list'!C2408=\"\",\"\",'Generated list'!C2408)","v":""},{"$f":"IF('Generated list'!D2408=\"\",\"\",'Generated list'!D2408)","v":""}]
[null,{"$f":"IF('Generated list'!B2409=\"\",\"\",'Generated list'!B2409)","v":""},{"$f":"IF('Generated list'!C2409=\"\",\"\",'Generated list'!C2409)","v":""},{"$f":"IF('Generated list'!D2409=\"\",\"\",'Generated list'!D2409)","v":""}]
[null,{"$f":"IF('Generated list'!B2410=\"\",\"\",'Generated list'!B2410)","v":""},{"$f":"IF('Generated list'!C2410=\"\",\"\",'Generated list'!C2410)","v":""},{"$f":"IF('Generated list'!D2410=\"\",\"\",'Generated list'!D2410)","v":""}]
[null,{"$f":"IF('Generated list'!B2411=\"\",\"\",'Generated list'!B2411)","v":""},{"$f":"IF('Generated list'!C2411=\"\",\"\",'Generated list'!C2411)","v":""},{"$f":"IF('Generated list'!D2411=\"\",\"\",'Generated list'!D2411)","v":""}]
[null,{"$f":"IF('Generated list'!B2412=\"\",\"\",'Generated list'!B2412)","v":""},{"$f":"IF('Generated list'!C2412=\"\",\"\",'Generated list'!C2412)","v":""},{"$f":"IF('Generated list'!D2412=\"\",\"\",'Generated list'!D2412)","v":""}]
[null,{"$f":"IF('Generated list'!B2413=\"\",\"\",'Generated list'!B2413)","v":""},{"$f":"IF('Generated list'!C2413=\"\",\"\",'Generated list'!C2413)","v":""},{"$f":"IF('Generated list'!D2413=\"\",\"\",'Generated list'!D2413)","v":""}]
[null,{"$f":"IF('Generated list'!B2414=\"\",\"\",'Generated list'!B2414)","v":""},{"$f":"IF('Generated list'!C2414=\"\",\"\",'Generated list'!C2414)","v":""},{"$f":"IF('Generated list'!D2414=\"\",\"\",'Generated list'!D2414)","v":""}]
[null,{"$f":"IF('Generated list'!B2415=\"\",\"\",'Generated list'!B2415)","v":""},{"$f":"IF('Generated list'!C2415=\"\",\"\",'Generated list'!C2415)","v":""},{"$f":"IF('Generated list'!D2415=\"\",\"\",'Generated list'!D2415)","v":""}]
[null,{"$f":"IF('Generated list'!B2416=\"\",\"\",'Generated list'!B2416)","v":""},{"$f":"IF('Generated list'!C2416=\"\",\"\",'Generated list'!C2416)","v":""},{"$f":"IF('Generated list'!D2416=\"\",\"\",'Generated list'!D2416)","v":""}]
[null,{"$f":"IF('Generated list'!B2417=\"\",\"\",'Generated list'!B2417)","v":""},{"$f":"IF('Generated list'!C2417=\"\",\"\",'Generated list'!C2417)","v":""},{"$f":"IF('Generated list'!D2417=\"\",\"\",'Generated list'!D2417)","v":""}]
[null,{"$f":"IF('Generated list'!B2418=\"\",\"\",'Generated list'!B2418)","v":""},{"$f":"IF('Generated list'!C2418=\"\",\"\",'Generated list'!C2418)","v":""},{"$f":"IF('Generated list'!D2418=\"\",\"\",'Generated list'!D2418)","v":""}]
[null,{"$f":"IF('Generated list'!B2419=\"\",\"\",'Generated list'!B2419)","v":""},{"$f":"IF('Generated list'!C2419=\"\",\"\",'Generated list'!C2419)","v":""},{"$f":"IF('Generated list'!D2419=\"\",\"\",'Generated list'!D2419)","v":""}]
[null,{"$f":"IF('Generated list'!B2420=\"\",\"\",'Generated list'!B2420)","v":""},{"$f":"IF('Generated list'!C2420=\"\",\"\",'Generated list'!C2420)","v":""},{"$f":"IF('Generated list'!D2420=\"\",\"\",'Generated list'!D2420)","v":""}]
[null,{"$f":"IF('Generated list'!B2421=\"\",\"\",'Generated list'!B2421)","v":""},{"$f":"IF('Generated list'!C2421=\"\",\"\",'Generated list'!C2421)","v":""},{"$f":"IF('Generated list'!D2421=\"\",\"\",'Generated list'!D2421)","v":""}]
[null,{"$f":"IF('Generated list'!B2422=\"\",\"\",'Generated list'!B2422)","v":""},{"$f":"IF('Generated list'!C2422=\"\",\"\",'Generated list'!C2422)","v":""},{"$f":"IF('Generated list'!D2422=\"\",\"\",'Generated list'!D2422)","v":""}]
[null,{"$f":"IF('Generated list'!B2423=\"\",\"\",'Generated list'!B2423)","v":""},{"$f":"IF('Generated list'!C2423=\"\",\"\",'Generated list'!C2423)","v":""},{"$f":"IF('Generated list'!D2423=\"\",\"\",'Generated list'!D2423)","v":""}]
[null,{"$f":"IF('Generated list'!B2424=\"\",\"\",'Generated list'!B2424)","v":""},{"$f":"IF('Generated list'!C2424=\"\",\"\",'Generated list'!C2424)","v":""},{"$f":"IF('Generated list'!D2424=\"\",\"\",'Generated list'!D2424)","v":""}]
[null,{"$f":"IF('Generated list'!B2425=\"\",\"\",'Generated list'!B2425)","v":""},{"$f":"IF('Generated list'!C2425=\"\",\"\",'Generated list'!C2425)","v":""},{"$f":"IF('Generated list'!D2425=\"\",\"\",'Generated list'!D2425)","v":""}]
[null,{"$f":"IF('Generated list'!B2426=\"\",\"\",'Generated list'!B2426)","v":""},{"$f":"IF('Generated list'!C2426=\"\",\"\",'Generated list'!C2426)","v":""},{"$f":"IF('Generated list'!D2426=\"\",\"\",'Generated list'!D2426)","v":""}]
[null,{"$f":"IF('Generated list'!B2427=\"\",\"\",'Generated list'!B2427)","v":""},{"$f":"IF('Generated list'!C2427=\"\",\"\",'Generated list'!C2427)","v":""},{"$f":"IF('Generated list'!D2427=\"\",\"\",'Generated list'!D2427)","v":""}]
[null,{"$f":"IF('Generated list'!B2428=\"\",\"\",'Generated list'!B2428)","v":""},{"$f":"IF('Generated list'!C2428=\"\",\"\",'Generated list'!C2428)","v":""},{"$f":"IF('Generated list'!D2428=\"\",\"\",'Generated list'!D2428)","v":""}]
[null,{"$f":"IF('Generated list'!B2429=\"\",\"\",'Generated list'!B2429)","v":""},{"$f":"IF('Generated list'!C2429=\"\",\"\",'Generated list'!C2429)","v":""},{"$f":"IF('Generated list'!D2429=\"\",\"\",'Generated list'!D2429)","v":""}]
[null,{"$f":"IF('Generated list'!B2430=\"\",\"\",'Generated list'!B2430)","v":""},{"$f":"IF('Generated list'!C2430=\"\",\"\",'Generated list'!C2430)","v":""},{"$f":"IF('Generated list'!D2430=\"\",\"\",'Generated list'!D2430)","v":""}]
[null,{"$f":"IF('Generated list'!B2431=\"\",\"\",'Generated list'!B2431)","v":""},{"$f":"IF('Generated list'!C2431=\"\",\"\",'Generated list'!C2431)","v":""},{"$f":"IF('Generated list'!D2431=\"\",\"\",'Generated list'!D2431)","v":""}]
[null,{"$f":"IF('Generated list'!B2432=\"\",\"\",'Generated list'!B2432)","v":""},{"$f":"IF('Generated list'!C2432=\"\",\"\",'Generated list'!C2432)","v":""},{"$f":"IF('Generated list'!D2432=\"\",\"\",'Generated list'!D2432)","v":""}]
[null,{"$f":"IF('Generated list'!B2433=\"\",\"\",'Generated list'!B2433)","v":""},{"$f":"IF('Generated list'!C2433=\"\",\"\",'Generated list'!C2433)","v":""},{"$f":"IF('Generated list'!D2433=\"\",\"\",'Generated list'!D2433)","v":""}]
[null,{"$f":"IF('Generated list'!B2434=\"\",\"\",'Generated list'!B2434)","v":""},{"$f":"IF('Generated list'!C2434=\"\",\"\",'Generated list'!C2434)","v":""},{"$f":"IF('Generated list'!D2434=\"\",\"\",'Generated list'!D2434)","v":""}]
[null,{"$f":"IF('Generated list'!B2435=\"\",\"\",'Generated list'!B2435)","v":""},{"$f":"IF('Generated list'!C2435=\"\",\"\",'Generated list'!C2435)","v":""},{"$f":"IF('Generated list'!D2435=\"\",\"\",'Generated list'!D2435)","v":""}]
[null,{"$f":"IF('Generated list'!B2436=\"\",\"\",'Generated list'!B2436)","v":""},{"$f":"IF('Generated list'!C2436=\"\",\"\",'Generated list'!C2436)","v":""},{"$f":"IF('Generated list'!D2436=\"\",\"\",'Generated list'!D2436)","v":""}]
[null,{"$f":"IF('Generated list'!B2437=\"\",\"\",'Generated list'!B2437)","v":""},{"$f":"IF('Generated list'!C2437=\"\",\"\",'Generated list'!C2437)","v":""},{"$f":"IF('Generated list'!D2437=\"\",\"\",'Generated list'!D2437)","v":""}]
[null,{"$f":"IF('Generated list'!B2438=\"\",\"\",'Generated list'!B2438)","v":""},{"$f":"IF('Generated list'!C2438=\"\",\"\",'Generated list'!C2438)","v":""},{"$f":"IF('Generated list'!D2438=\"\",\"\",'Generated list'!D2438)","v":""}]
[null,{"$f":"IF('Generated list'!B2439=\"\",\"\",'Generated list'!B2439)","v":""},{"$f":"IF('Generated list'!C2439=\"\",\"\",'Generated list'!C2439)","v":""},{"$f":"IF('Generated list'!D2439=\"\",\"\",'Generated list'!D2439)","v":""}]
[null,{"$f":"IF('Generated list'!B2440=\"\",\"\",'Generated list'!B2440)","v":""},{"$f":"IF('Generated list'!C2440=\"\",\"\",'Generated list'!C2440)","v":""},{"$f":"IF('Generated list'!D2440=\"\",\"\",'Generated list'!D2440)","v":""}]
[null,{"$f":"IF('Generated list'!B2441=\"\",\"\",'Generated list'!B2441)","v":""},{"$f":"IF('Generated list'!C2441=\"\",\"\",'Generated list'!C2441)","v":""},{"$f":"IF('Generated list'!D2441=\"\",\"\",'Generated list'!D2441)","v":""}]
[null,{"$f":"IF('Generated list'!B2442=\"\",\"\",'Generated list'!B2442)","v":""},{"$f":"IF('Generated list'!C2442=\"\",\"\",'Generated list'!C2442)","v":""},{"$f":"IF('Generated list'!D2442=\"\",\"\",'Generated list'!D2442)","v":""}]
[null,{"$f":"IF('Generated list'!B2443=\"\",\"\",'Generated list'!B2443)","v":""},{"$f":"IF('Generated list'!C2443=\"\",\"\",'Generated list'!C2443)","v":""},{"$f":"IF('Generated list'!D2443=\"\",\"\",'Generated list'!D2443)","v":""}]
[null,{"$f":"IF('Generated list'!B2444=\"\",\"\",'Generated list'!B2444)","v":""},{"$f":"IF('Generated list'!C2444=\"\",\"\",'Generated list'!C2444)","v":""},{"$f":"IF('Generated list'!D2444=\"\",\"\",'Generated list'!D2444)","v":""}]
[null,{"$f":"IF('Generated list'!B2445=\"\",\"\",'Generated list'!B2445)","v":""},{"$f":"IF('Generated list'!C2445=\"\",\"\",'Generated list'!C2445)","v":""},{"$f":"IF('Generated list'!D2445=\"\",\"\",'Generated list'!D2445)","v":""}]
[null,{"$f":"IF('Generated list'!B2446=\"\",\"\",'Generated list'!B2446)","v":""},{"$f":"IF('Generated list'!C2446=\"\",\"\",'Generated list'!C2446)","v":""},{"$f":"IF('Generated list'!D2446=\"\",\"\",'Generated list'!D2446)","v":""}]
[null,{"$f":"IF('Generated list'!B2447=\"\",\"\",'Generated list'!B2447)","v":""},{"$f":"IF('Generated list'!C2447=\"\",\"\",'Generated list'!C2447)","v":""},{"$f":"IF('Generated list'!D2447=\"\",\"\",'Generated list'!D2447)","v":""}]
[null,{"$f":"IF('Generated list'!B2448=\"\",\"\",'Generated list'!B2448)","v":""},{"$f":"IF('Generated list'!C2448=\"\",\"\",'Generated list'!C2448)","v":""},{"$f":"IF('Generated list'!D2448=\"\",\"\",'Generated list'!D2448)","v":""}]
[null,{"$f":"IF('Generated list'!B2449=\"\",\"\",'Generated list'!B2449)","v":""},{"$f":"IF('Generated list'!C2449=\"\",\"\",'Generated list'!C2449)","v":""},{"$f":"IF('Generated list'!D2449=\"\",\"\",'Generated list'!D2449)","v":""}]
[null,{"$f":"IF('Generated list'!B2450=\"\",\"\",'Generated list'!B2450)","v":""},{"$f":"IF('Generated list'!C2450=\"\",\"\",'Generated list'!C2450)","v":""},{"$f":"IF('Generated list'!D2450=\"\",\"\",'Generated list'!D2450)","v":""}]
[null,{"$f":"IF('Generated list'!B2451=\"\",\"\",'Generated list'!B2451)","v":""},{"$f":"IF('Generated list'!C2451=\"\",\"\",'Generated list'!C2451)","v":""},{"$f":"IF('Generated list'!D2451=\"\",\"\",'Generated list'!D2451)","v":""}]
[null,{"$f":"IF('Generated list'!B2452=\"\",\"\",'Generated list'!B2452)","v":""},{"$f":"IF('Generated list'!C2452=\"\",\"\",'Generated list'!C2452)","v":""},{"$f":"IF('Generated list'!D2452=\"\",\"\",'Generated list'!D2452)","v":""}]
[null,{"$f":"IF('Generated list'!B2453=\"\",\"\",'Generated list'!B2453)","v":""},{"$f":"IF('Generated list'!C2453=\"\",\"\",'Generated list'!C2453)","v":""},{"$f":"IF('Generated list'!D2453=\"\",\"\",'Generated list'!D2453)","v":""}]
[null,{"$f":"IF('Generated list'!B2454=\"\",\"\",'Generated list'!B2454)","v":""},{"$f":"IF('Generated list'!C2454=\"\",\"\",'Generated list'!C2454)","v":""},{"$f":"IF('Generated list'!D2454=\"\",\"\",'Generated list'!D2454)","v":""}]
[null,{"$f":"IF('Generated list'!B2455=\"\",\"\",'Generated list'!B2455)","v":""},{"$f":"IF('Generated list'!C2455=\"\",\"\",'Generated list'!C2455)","v":""},{"$f":"IF('Generated list'!D2455=\"\",\"\",'Generated list'!D2455)","v":""}]
[null,{"$f":"IF('Generated list'!B2456=\"\",\"\",'Generated list'!B2456)","v":""},{"$f":"IF('Generated list'!C2456=\"\",\"\",'Generated list'!C2456)","v":""},{"$f":"IF('Generated list'!D2456=\"\",\"\",'Generated list'!D2456)","v":""}]
[null,{"$f":"IF('Generated list'!B2457=\"\",\"\",'Generated list'!B2457)","v":""},{"$f":"IF('Generated list'!C2457=\"\",\"\",'Generated list'!C2457)","v":""},{"$f":"IF('Generated list'!D2457=\"\",\"\",'Generated list'!D2457)","v":""}]
[null,{"$f":"IF('Generated list'!B2458=\"\",\"\",'Generated list'!B2458)","v":""},{"$f":"IF('Generated list'!C2458=\"\",\"\",'Generated list'!C2458)","v":""},{"$f":"IF('Generated list'!D2458=\"\",\"\",'Generated list'!D2458)","v":""}]
[null,{"$f":"IF('Generated list'!B2459=\"\",\"\",'Generated list'!B2459)","v":""},{"$f":"IF('Generated list'!C2459=\"\",\"\",'Generated list'!C2459)","v":""},{"$f":"IF('Generated list'!D2459=\"\",\"\",'Generated list'!D2459)","v":""}]
[null,{"$f":"IF('Generated list'!B2460=\"\",\"\",'Generated list'!B2460)","v":""},{"$f":"IF('Generated list'!C2460=\"\",\"\",'Generated list'!C2460)","v":""},{"$f":"IF('Generated list'!D2460=\"\",\"\",'Generated list'!D2460)","v":""}]
[null,{"$f":"IF('Generated list'!B2461=\"\",\"\",'Generated list'!B2461)","v":""},{"$f":"IF('Generated list'!C2461=\"\",\"\",'Generated list'!C2461)","v":""},{"$f":"IF('Generated list'!D2461=\"\",\"\",'Generated list'!D2461)","v":""}]
[null,{"$f":"IF('Generated list'!B2462=\"\",\"\",'Generated list'!B2462)","v":""},{"$f":"IF('Generated list'!C2462=\"\",\"\",'Generated list'!C2462)","v":""},{"$f":"IF('Generated list'!D2462=\"\",\"\",'Generated list'!D2462)","v":""}]
[null,{"$f":"IF('Generated list'!B2463=\"\",\"\",'Generated list'!B2463)","v":""},{"$f":"IF('Generated list'!C2463=\"\",\"\",'Generated list'!C2463)","v":""},{"$f":"IF('Generated list'!D2463=\"\",\"\",'Generated list'!D2463)","v":""}]
[null,{"$f":"IF('Generated list'!B2464=\"\",\"\",'Generated list'!B2464)","v":""},{"$f":"IF('Generated list'!C2464=\"\",\"\",'Generated list'!C2464)","v":""},{"$f":"IF('Generated list'!D2464=\"\",\"\",'Generated list'!D2464)","v":""}]
[null,{"$f":"IF('Generated list'!B2465=\"\",\"\",'Generated list'!B2465)","v":""},{"$f":"IF('Generated list'!C2465=\"\",\"\",'Generated list'!C2465)","v":""},{"$f":"IF('Generated list'!D2465=\"\",\"\",'Generated list'!D2465)","v":""}]
[null,{"$f":"IF('Generated list'!B2466=\"\",\"\",'Generated list'!B2466)","v":""},{"$f":"IF('Generated list'!C2466=\"\",\"\",'Generated list'!C2466)","v":""},{"$f":"IF('Generated list'!D2466=\"\",\"\",'Generated list'!D2466)","v":""}]
[null,{"$f":"IF('Generated list'!B2467=\"\",\"\",'Generated list'!B2467)","v":""},{"$f":"IF('Generated list'!C2467=\"\",\"\",'Generated list'!C2467)","v":""},{"$f":"IF('Generated list'!D2467=\"\",\"\",'Generated list'!D2467)","v":""}]
[null,{"$f":"IF('Generated list'!B2468=\"\",\"\",'Generated list'!B2468)","v":""},{"$f":"IF('Generated list'!C2468=\"\",\"\",'Generated list'!C2468)","v":""},{"$f":"IF('Generated list'!D2468=\"\",\"\",'Generated list'!D2468)","v":""}]
[null,{"$f":"IF('Generated list'!B2469=\"\",\"\",'Generated list'!B2469)","v":""},{"$f":"IF('Generated list'!C2469=\"\",\"\",'Generated list'!C2469)","v":""},{"$f":"IF('Generated list'!D2469=\"\",\"\",'Generated list'!D2469)","v":""}]
[null,{"$f":"IF('Generated list'!B2470=\"\",\"\",'Generated list'!B2470)","v":""},{"$f":"IF('Generated list'!C2470=\"\",\"\",'Generated list'!C2470)","v":""},{"$f":"IF('Generated list'!D2470=\"\",\"\",'Generated list'!D2470)","v":""}]
[null,{"$f":"IF('Generated list'!B2471=\"\",\"\",'Generated list'!B2471)","v":""},{"$f":"IF('Generated list'!C2471=\"\",\"\",'Generated list'!C2471)","v":""},{"$f":"IF('Generated list'!D2471=\"\",\"\",'Generated list'!D2471)","v":""}]
[null,{"$f":"IF('Generated list'!B2472=\"\",\"\",'Generated list'!B2472)","v":""},{"$f":"IF('Generated list'!C2472=\"\",\"\",'Generated list'!C2472)","v":""},{"$f":"IF('Generated list'!D2472=\"\",\"\",'Generated list'!D2472)","v":""}]
[null,{"$f":"IF('Generated list'!B2473=\"\",\"\",'Generated list'!B2473)","v":""},{"$f":"IF('Generated list'!C2473=\"\",\"\",'Generated list'!C2473)","v":""},{"$f":"IF('Generated list'!D2473=\"\",\"\",'Generated list'!D2473)","v":""}]
[null,{"$f":"IF('Generated list'!B2474=\"\",\"\",'Generated list'!B2474)","v":""},{"$f":"IF('Generated list'!C2474=\"\",\"\",'Generated list'!C2474)","v":""},{"$f":"IF('Generated list'!D2474=\"\",\"\",'Generated list'!D2474)","v":""}]
[null,{"$f":"IF('Generated list'!B2475=\"\",\"\",'Generated list'!B2475)","v":""},{"$f":"IF('Generated list'!C2475=\"\",\"\",'Generated list'!C2475)","v":""},{"$f":"IF('Generated list'!D2475=\"\",\"\",'Generated list'!D2475)","v":""}]
[null,{"$f":"IF('Generated list'!B2476=\"\",\"\",'Generated list'!B2476)","v":""},{"$f":"IF('Generated list'!C2476=\"\",\"\",'Generated list'!C2476)","v":""},{"$f":"IF('Generated list'!D2476=\"\",\"\",'Generated list'!D2476)","v":""}]
[null,{"$f":"IF('Generated list'!B2477=\"\",\"\",'Generated list'!B2477)","v":""},{"$f":"IF('Generated list'!C2477=\"\",\"\",'Generated list'!C2477)","v":""},{"$f":"IF('Generated list'!D2477=\"\",\"\",'Generated list'!D2477)","v":""}]
[null,{"$f":"IF('Generated list'!B2478=\"\",\"\",'Generated list'!B2478)","v":""},{"$f":"IF('Generated list'!C2478=\"\",\"\",'Generated list'!C2478)","v":""},{"$f":"IF('Generated list'!D2478=\"\",\"\",'Generated list'!D2478)","v":""}]
[null,{"$f":"IF('Generated list'!B2479=\"\",\"\",'Generated list'!B2479)","v":""},{"$f":"IF('Generated list'!C2479=\"\",\"\",'Generated list'!C2479)","v":""},{"$f":"IF('Generated list'!D2479=\"\",\"\",'Generated list'!D2479)","v":""}]
[null,{"$f":"IF('Generated list'!B2480=\"\",\"\",'Generated list'!B2480)","v":""},{"$f":"IF('Generated list'!C2480=\"\",\"\",'Generated list'!C2480)","v":""},{"$f":"IF('Generated list'!D2480=\"\",\"\",'Generated list'!D2480)","v":""}]
[null,{"$f":"IF('Generated list'!B2481=\"\",\"\",'Generated list'!B2481)","v":""},{"$f":"IF('Generated list'!C2481=\"\",\"\",'Generated list'!C2481)","v":""},{"$f":"IF('Generated list'!D2481=\"\",\"\",'Generated list'!D2481)","v":""}]
[null,{"$f":"IF('Generated list'!B2482=\"\",\"\",'Generated list'!B2482)","v":""},{"$f":"IF('Generated list'!C2482=\"\",\"\",'Generated list'!C2482)","v":""},{"$f":"IF('Generated list'!D2482=\"\",\"\",'Generated list'!D2482)","v":""}]
[null,{"$f":"IF('Generated list'!B2483=\"\",\"\",'Generated list'!B2483)","v":""},{"$f":"IF('Generated list'!C2483=\"\",\"\",'Generated list'!C2483)","v":""},{"$f":"IF('Generated list'!D2483=\"\",\"\",'Generated list'!D2483)","v":""}]
[null,{"$f":"IF('Generated list'!B2484=\"\",\"\",'Generated list'!B2484)","v":""},{"$f":"IF('Generated list'!C2484=\"\",\"\",'Generated list'!C2484)","v":""},{"$f":"IF('Generated list'!D2484=\"\",\"\",'Generated list'!D2484)","v":""}]
[null,{"$f":"IF('Generated list'!B2485=\"\",\"\",'Generated list'!B2485)","v":""},{"$f":"IF('Generated list'!C2485=\"\",\"\",'Generated list'!C2485)","v":""},{"$f":"IF('Generated list'!D2485=\"\",\"\",'Generated list'!D2485)","v":""}]
[null,{"$f":"IF('Generated list'!B2486=\"\",\"\",'Generated list'!B2486)","v":""},{"$f":"IF('Generated list'!C2486=\"\",\"\",'Generated list'!C2486)","v":""},{"$f":"IF('Generated list'!D2486=\"\",\"\",'Generated list'!D2486)","v":""}]
[null,{"$f":"IF('Generated list'!B2487=\"\",\"\",'Generated list'!B2487)","v":""},{"$f":"IF('Generated list'!C2487=\"\",\"\",'Generated list'!C2487)","v":""},{"$f":"IF('Generated list'!D2487=\"\",\"\",'Generated list'!D2487)","v":""}]
[null,{"$f":"IF('Generated list'!B2488=\"\",\"\",'Generated list'!B2488)","v":""},{"$f":"IF('Generated list'!C2488=\"\",\"\",'Generated list'!C2488)","v":""},{"$f":"IF('Generated list'!D2488=\"\",\"\",'Generated list'!D2488)","v":""}]
[null,{"$f":"IF('Generated list'!B2489=\"\",\"\",'Generated list'!B2489)","v":""},{"$f":"IF('Generated list'!C2489=\"\",\"\",'Generated list'!C2489)","v":""},{"$f":"IF('Generated list'!D2489=\"\",\"\",'Generated list'!D2489)","v":""}]
[null,{"$f":"IF('Generated list'!B2490=\"\",\"\",'Generated list'!B2490)","v":""},{"$f":"IF('Generated list'!C2490=\"\",\"\",'Generated list'!C2490)","v":""},{"$f":"IF('Generated list'!D2490=\"\",\"\",'Generated list'!D2490)","v":""}]
[null,{"$f":"IF('Generated list'!B2491=\"\",\"\",'Generated list'!B2491)","v":""},{"$f":"IF('Generated list'!C2491=\"\",\"\",'Generated list'!C2491)","v":""},{"$f":"IF('Generated list'!D2491=\"\",\"\",'Generated list'!D2491)","v":""}]
[null,{"$f":"IF('Generated list'!B2492=\"\",\"\",'Generated list'!B2492)","v":""},{"$f":"IF('Generated list'!C2492=\"\",\"\",'Generated list'!C2492)","v":""},{"$f":"IF('Generated list'!D2492=\"\",\"\",'Generated list'!D2492)","v":""}]
[null,{"$f":"IF('Generated list'!B2493=\"\",\"\",'Generated list'!B2493)","v":""},{"$f":"IF('Generated list'!C2493=\"\",\"\",'Generated list'!C2493)","v":""},{"$f":"IF('Generated list'!D2493=\"\",\"\",'Generated list'!D2493)","v":""}]
[null,{"$f":"IF('Generated list'!B2494=\"\",\"\",'Generated list'!B2494)","v":""},{"$f":"IF('Generated list'!C2494=\"\",\"\",'Generated list'!C2494)","v":""},{"$f":"IF('Generated list'!D2494=\"\",\"\",'Generated list'!D2494)","v":""}]
[null,{"$f":"IF('Generated list'!B2495=\"\",\"\",'Generated list'!B2495)","v":""},{"$f":"IF('Generated list'!C2495=\"\",\"\",'Generated list'!C2495)","v":""},{"$f":"IF('Generated list'!D2495=\"\",\"\",'Generated list'!D2495)","v":""}]
[null,{"$f":"IF('Generated list'!B2496=\"\",\"\",'Generated list'!B2496)","v":""},{"$f":"IF('Generated list'!C2496=\"\",\"\",'Generated list'!C2496)","v":""},{"$f":"IF('Generated list'!D2496=\"\",\"\",'Generated list'!D2496)","v":""}]
[null,{"$f":"IF('Generated list'!B2497=\"\",\"\",'Generated list'!B2497)","v":""},{"$f":"IF('Generated list'!C2497=\"\",\"\",'Generated list'!C2497)","v":""},{"$f":"IF('Generated list'!D2497=\"\",\"\",'Generated list'!D2497)","v":""}]
[null,{"$f":"IF('Generated list'!B2498=\"\",\"\",'Generated list'!B2498)","v":""},{"$f":"IF('Generated list'!C2498=\"\",\"\",'Generated list'!C2498)","v":""},{"$f":"IF('Generated list'!D2498=\"\",\"\",'Generated list'!D2498)","v":""}]
[null,{"$f":"IF('Generated list'!B2499=\"\",\"\",'Generated list'!B2499)","v":""},{"$f":"IF('Generated list'!C2499=\"\",\"\",'Generated list'!C2499)","v":""},{"$f":"IF('Generated list'!D2499=\"\",\"\",'Generated list'!D2499)","v":""}]
[null,{"$f":"IF('Generated list'!B2500=\"\",\"\",'Generated list'!B2500)","v":""},{"$f":"IF('Generated list'!C2500=\"\",\"\",'Generated list'!C2500)","v":""},{"$f":"IF('Generated list'!D2500=\"\",\"\",'Generated list'!D2500)","v":""}]
[null,{"$f":"IF('Generated list'!B2501=\"\",\"\",'Generated list'!B2501)","v":""},{"$f":"IF('Generated list'!C2501=\"\",\"\",'Generated list'!C2501)","v":""},{"$f":"IF('Generated list'!D2501=\"\",\"\",'Generated list'!D2501)","v":""}]
[null,{"$f":"IF('Generated list'!B2502=\"\",\"\",'Generated list'!B2502)","v":""},{"$f":"IF('Generated list'!C2502=\"\",\"\",'Generated list'!C2502)","v":""},{"$f":"IF('Generated list'!D2502=\"\",\"\",'Generated list'!D2502)","v":""}]
[null,{"$f":"IF('Generated list'!B2503=\"\",\"\",'Generated list'!B2503)","v":""},{"$f":"IF('Generated list'!C2503=\"\",\"\",'Generated list'!C2503)","v":""},{"$f":"IF('Generated list'!D2503=\"\",\"\",'Generated list'!D2503)","v":""}]
[null,{"$f":"IF('Generated list'!B2504=\"\",\"\",'Generated list'!B2504)","v":""},{"$f":"IF('Generated list'!C2504=\"\",\"\",'Generated list'!C2504)","v":""},{"$f":"IF('Generated list'!D2504=\"\",\"\",'Generated list'!D2504)","v":""}]
[null,{"$f":"IF('Generated list'!B2505=\"\",\"\",'Generated list'!B2505)","v":""},{"$f":"IF('Generated list'!C2505=\"\",\"\",'Generated list'!C2505)","v":""},{"$f":"IF('Generated list'!D2505=\"\",\"\",'Generated list'!D2505)","v":""}]
[null,{"$f":"IF('Generated list'!B2506=\"\",\"\",'Generated list'!B2506)","v":""},{"$f":"IF('Generated list'!C2506=\"\",\"\",'Generated list'!C2506)","v":""},{"$f":"IF('Generated list'!D2506=\"\",\"\",'Generated list'!D2506)","v":""}]
[null,{"$f":"IF('Generated list'!B2507=\"\",\"\",'Generated list'!B2507)","v":""},{"$f":"IF('Generated list'!C2507=\"\",\"\",'Generated list'!C2507)","v":""},{"$f":"IF('Generated list'!D2507=\"\",\"\",'Generated list'!D2507)","v":""}]
[null,{"$f":"IF('Generated list'!B2508=\"\",\"\",'Generated list'!B2508)","v":""},{"$f":"IF('Generated list'!C2508=\"\",\"\",'Generated list'!C2508)","v":""},{"$f":"IF('Generated list'!D2508=\"\",\"\",'Generated list'!D2508)","v":""}]
[null,{"$f":"IF('Generated list'!B2509=\"\",\"\",'Generated list'!B2509)","v":""},{"$f":"IF('Generated list'!C2509=\"\",\"\",'Generated list'!C2509)","v":""},{"$f":"IF('Generated list'!D2509=\"\",\"\",'Generated list'!D2509)","v":""}]
[null,{"$f":"IF('Generated list'!B2510=\"\",\"\",'Generated list'!B2510)","v":""},{"$f":"IF('Generated list'!C2510=\"\",\"\",'Generated list'!C2510)","v":""},{"$f":"IF('Generated list'!D2510=\"\",\"\",'Generated list'!D2510)","v":""}]
[null,{"$f":"IF('Generated list'!B2511=\"\",\"\",'Generated list'!B2511)","v":""},{"$f":"IF('Generated list'!C2511=\"\",\"\",'Generated list'!C2511)","v":""},{"$f":"IF('Generated list'!D2511=\"\",\"\",'Generated list'!D2511)","v":""}]
[null,{"$f":"IF('Generated list'!B2512=\"\",\"\",'Generated list'!B2512)","v":""},{"$f":"IF('Generated list'!C2512=\"\",\"\",'Generated list'!C2512)","v":""},{"$f":"IF('Generated list'!D2512=\"\",\"\",'Generated list'!D2512)","v":""}]
[null,{"$f":"IF('Generated list'!B2513=\"\",\"\",'Generated list'!B2513)","v":""},{"$f":"IF('Generated list'!C2513=\"\",\"\",'Generated list'!C2513)","v":""},{"$f":"IF('Generated list'!D2513=\"\",\"\",'Generated list'!D2513)","v":""}]
[null,{"$f":"IF('Generated list'!B2514=\"\",\"\",'Generated list'!B2514)","v":""},{"$f":"IF('Generated list'!C2514=\"\",\"\",'Generated list'!C2514)","v":""},{"$f":"IF('Generated list'!D2514=\"\",\"\",'Generated list'!D2514)","v":""}]
[null,{"$f":"IF('Generated list'!B2515=\"\",\"\",'Generated list'!B2515)","v":""},{"$f":"IF('Generated list'!C2515=\"\",\"\",'Generated list'!C2515)","v":""},{"$f":"IF('Generated list'!D2515=\"\",\"\",'Generated list'!D2515)","v":""}]
[null,{"$f":"IF('Generated list'!B2516=\"\",\"\",'Generated list'!B2516)","v":""},{"$f":"IF('Generated list'!C2516=\"\",\"\",'Generated list'!C2516)","v":""},{"$f":"IF('Generated list'!D2516=\"\",\"\",'Generated list'!D2516)","v":""}]
[null,{"$f":"IF('Generated list'!B2517=\"\",\"\",'Generated list'!B2517)","v":""},{"$f":"IF('Generated list'!C2517=\"\",\"\",'Generated list'!C2517)","v":""},{"$f":"IF('Generated list'!D2517=\"\",\"\",'Generated list'!D2517)","v":""}]
[null,{"$f":"IF('Generated list'!B2518=\"\",\"\",'Generated list'!B2518)","v":""},{"$f":"IF('Generated list'!C2518=\"\",\"\",'Generated list'!C2518)","v":""},{"$f":"IF('Generated list'!D2518=\"\",\"\",'Generated list'!D2518)","v":""}]
[null,{"$f":"IF('Generated list'!B2519=\"\",\"\",'Generated list'!B2519)","v":""},{"$f":"IF('Generated list'!C2519=\"\",\"\",'Generated list'!C2519)","v":""},{"$f":"IF('Generated list'!D2519=\"\",\"\",'Generated list'!D2519)","v":""}]
[null,{"$f":"IF('Generated list'!B2520=\"\",\"\",'Generated list'!B2520)","v":""},{"$f":"IF('Generated list'!C2520=\"\",\"\",'Generated list'!C2520)","v":""},{"$f":"IF('Generated list'!D2520=\"\",\"\",'Generated list'!D2520)","v":""}]
[null,{"$f":"IF('Generated list'!B2521=\"\",\"\",'Generated list'!B2521)","v":""},{"$f":"IF('Generated list'!C2521=\"\",\"\",'Generated list'!C2521)","v":""},{"$f":"IF('Generated list'!D2521=\"\",\"\",'Generated list'!D2521)","v":""}]
[null,{"$f":"IF('Generated list'!B2522=\"\",\"\",'Generated list'!B2522)","v":""},{"$f":"IF('Generated list'!C2522=\"\",\"\",'Generated list'!C2522)","v":""},{"$f":"IF('Generated list'!D2522=\"\",\"\",'Generated list'!D2522)","v":""}]
[null,{"$f":"IF('Generated list'!B2523=\"\",\"\",'Generated list'!B2523)","v":""},{"$f":"IF('Generated list'!C2523=\"\",\"\",'Generated list'!C2523)","v":""},{"$f":"IF('Generated list'!D2523=\"\",\"\",'Generated list'!D2523)","v":""}]
[null,{"$f":"IF('Generated list'!B2524=\"\",\"\",'Generated list'!B2524)","v":""},{"$f":"IF('Generated list'!C2524=\"\",\"\",'Generated list'!C2524)","v":""},{"$f":"IF('Generated list'!D2524=\"\",\"\",'Generated list'!D2524)","v":""}]
[null,{"$f":"IF('Generated list'!B2525=\"\",\"\",'Generated list'!B2525)","v":""},{"$f":"IF('Generated list'!C2525=\"\",\"\",'Generated list'!C2525)","v":""},{"$f":"IF('Generated list'!D2525=\"\",\"\",'Generated list'!D2525)","v":""}]
[null,{"$f":"IF('Generated list'!B2526=\"\",\"\",'Generated list'!B2526)","v":""},{"$f":"IF('Generated list'!C2526=\"\",\"\",'Generated list'!C2526)","v":""},{"$f":"IF('Generated list'!D2526=\"\",\"\",'Generated list'!D2526)","v":""}]
[null,{"$f":"IF('Generated list'!B2527=\"\",\"\",'Generated list'!B2527)","v":""},{"$f":"IF('Generated list'!C2527=\"\",\"\",'Generated list'!C2527)","v":""},{"$f":"IF('Generated list'!D2527=\"\",\"\",'Generated list'!D2527)","v":""}]
[null,{"$f":"IF('Generated list'!B2528=\"\",\"\",'Generated list'!B2528)","v":""},{"$f":"IF('Generated list'!C2528=\"\",\"\",'Generated list'!C2528)","v":""},{"$f":"IF('Generated list'!D2528=\"\",\"\",'Generated list'!D2528)","v":""}]
[null,{"$f":"IF('Generated list'!B2529=\"\",\"\",'Generated list'!B2529)","v":""},{"$f":"IF('Generated list'!C2529=\"\",\"\",'Generated list'!C2529)","v":""},{"$f":"IF('Generated list'!D2529=\"\",\"\",'Generated list'!D2529)","v":""}]
[null,{"$f":"IF('Generated list'!B2530=\"\",\"\",'Generated list'!B2530)","v":""},{"$f":"IF('Generated list'!C2530=\"\",\"\",'Generated list'!C2530)","v":""},{"$f":"IF('Generated list'!D2530=\"\",\"\",'Generated list'!D2530)","v":""}]
[null,{"$f":"IF('Generated list'!B2531=\"\",\"\",'Generated list'!B2531)","v":""},{"$f":"IF('Generated list'!C2531=\"\",\"\",'Generated list'!C2531)","v":""},{"$f":"IF('Generated list'!D2531=\"\",\"\",'Generated list'!D2531)","v":""}]
[null,{"$f":"IF('Generated list'!B2532=\"\",\"\",'Generated list'!B2532)","v":""},{"$f":"IF('Generated list'!C2532=\"\",\"\",'Generated list'!C2532)","v":""},{"$f":"IF('Generated list'!D2532=\"\",\"\",'Generated list'!D2532)","v":""}]
[null,{"$f":"IF('Generated list'!B2533=\"\",\"\",'Generated list'!B2533)","v":""},{"$f":"IF('Generated list'!C2533=\"\",\"\",'Generated list'!C2533)","v":""},{"$f":"IF('Generated list'!D2533=\"\",\"\",'Generated list'!D2533)","v":""}]
[null,{"$f":"IF('Generated list'!B2534=\"\",\"\",'Generated list'!B2534)","v":""},{"$f":"IF('Generated list'!C2534=\"\",\"\",'Generated list'!C2534)","v":""},{"$f":"IF('Generated list'!D2534=\"\",\"\",'Generated list'!D2534)","v":""}]
[null,{"$f":"IF('Generated list'!B2535=\"\",\"\",'Generated list'!B2535)","v":""},{"$f":"IF('Generated list'!C2535=\"\",\"\",'Generated list'!C2535)","v":""},{"$f":"IF('Generated list'!D2535=\"\",\"\",'Generated list'!D2535)","v":""}]
[null,{"$f":"IF('Generated list'!B2536=\"\",\"\",'Generated list'!B2536)","v":""},{"$f":"IF('Generated list'!C2536=\"\",\"\",'Generated list'!C2536)","v":""},{"$f":"IF('Generated list'!D2536=\"\",\"\",'Generated list'!D2536)","v":""}]
[null,{"$f":"IF('Generated list'!B2537=\"\",\"\",'Generated list'!B2537)","v":""},{"$f":"IF('Generated list'!C2537=\"\",\"\",'Generated list'!C2537)","v":""},{"$f":"IF('Generated list'!D2537=\"\",\"\",'Generated list'!D2537)","v":""}]
[null,{"$f":"IF('Generated list'!B2538=\"\",\"\",'Generated list'!B2538)","v":""},{"$f":"IF('Generated list'!C2538=\"\",\"\",'Generated list'!C2538)","v":""},{"$f":"IF('Generated list'!D2538=\"\",\"\",'Generated list'!D2538)","v":""}]
[null,{"$f":"IF('Generated list'!B2539=\"\",\"\",'Generated list'!B2539)","v":""},{"$f":"IF('Generated list'!C2539=\"\",\"\",'Generated list'!C2539)","v":""},{"$f":"IF('Generated list'!D2539=\"\",\"\",'Generated list'!D2539)","v":""}]
[null,{"$f":"IF('Generated list'!B2540=\"\",\"\",'Generated list'!B2540)","v":""},{"$f":"IF('Generated list'!C2540=\"\",\"\",'Generated list'!C2540)","v":""},{"$f":"IF('Generated list'!D2540=\"\",\"\",'Generated list'!D2540)","v":""}]
[null,{"$f":"IF('Generated list'!B2541=\"\",\"\",'Generated list'!B2541)","v":""},{"$f":"IF('Generated list'!C2541=\"\",\"\",'Generated list'!C2541)","v":""},{"$f":"IF('Generated list'!D2541=\"\",\"\",'Generated list'!D2541)","v":""}]
[null,{"$f":"IF('Generated list'!B2542=\"\",\"\",'Generated list'!B2542)","v":""},{"$f":"IF('Generated list'!C2542=\"\",\"\",'Generated list'!C2542)","v":""},{"$f":"IF('Generated list'!D2542=\"\",\"\",'Generated list'!D2542)","v":""}]
[null,{"$f":"IF('Generated list'!B2543=\"\",\"\",'Generated list'!B2543)","v":""},{"$f":"IF('Generated list'!C2543=\"\",\"\",'Generated list'!C2543)","v":""},{"$f":"IF('Generated list'!D2543=\"\",\"\",'Generated list'!D2543)","v":""}]
[null,{"$f":"IF('Generated list'!B2544=\"\",\"\",'Generated list'!B2544)","v":""},{"$f":"IF('Generated list'!C2544=\"\",\"\",'Generated list'!C2544)","v":""},{"$f":"IF('Generated list'!D2544=\"\",\"\",'Generated list'!D2544)","v":""}]
[null,{"$f":"IF('Generated list'!B2545=\"\",\"\",'Generated list'!B2545)","v":""},{"$f":"IF('Generated list'!C2545=\"\",\"\",'Generated list'!C2545)","v":""},{"$f":"IF('Generated list'!D2545=\"\",\"\",'Generated list'!D2545)","v":""}]
[null,{"$f":"IF('Generated list'!B2546=\"\",\"\",'Generated list'!B2546)","v":""},{"$f":"IF('Generated list'!C2546=\"\",\"\",'Generated list'!C2546)","v":""},{"$f":"IF('Generated list'!D2546=\"\",\"\",'Generated list'!D2546)","v":""}]
[null,{"$f":"IF('Generated list'!B2547=\"\",\"\",'Generated list'!B2547)","v":""},{"$f":"IF('Generated list'!C2547=\"\",\"\",'Generated list'!C2547)","v":""},{"$f":"IF('Generated list'!D2547=\"\",\"\",'Generated list'!D2547)","v":""}]
[null,{"$f":"IF('Generated list'!B2548=\"\",\"\",'Generated list'!B2548)","v":""},{"$f":"IF('Generated list'!C2548=\"\",\"\",'Generated list'!C2548)","v":""},{"$f":"IF('Generated list'!D2548=\"\",\"\",'Generated list'!D2548)","v":""}]
[null,{"$f":"IF('Generated list'!B2549=\"\",\"\",'Generated list'!B2549)","v":""},{"$f":"IF('Generated list'!C2549=\"\",\"\",'Generated list'!C2549)","v":""},{"$f":"IF('Generated list'!D2549=\"\",\"\",'Generated list'!D2549)","v":""}]
[null,{"$f":"IF('Generated list'!B2550=\"\",\"\",'Generated list'!B2550)","v":""},{"$f":"IF('Generated list'!C2550=\"\",\"\",'Generated list'!C2550)","v":""},{"$f":"IF('Generated list'!D2550=\"\",\"\",'Generated list'!D2550)","v":""}]
[null,{"$f":"IF('Generated list'!B2551=\"\",\"\",'Generated list'!B2551)","v":""},{"$f":"IF('Generated list'!C2551=\"\",\"\",'Generated list'!C2551)","v":""},{"$f":"IF('Generated list'!D2551=\"\",\"\",'Generated list'!D2551)","v":""}]
[null,{"$f":"IF('Generated list'!B2552=\"\",\"\",'Generated list'!B2552)","v":""},{"$f":"IF('Generated list'!C2552=\"\",\"\",'Generated list'!C2552)","v":""},{"$f":"IF('Generated list'!D2552=\"\",\"\",'Generated list'!D2552)","v":""}]
[null,{"$f":"IF('Generated list'!B2553=\"\",\"\",'Generated list'!B2553)","v":""},{"$f":"IF('Generated list'!C2553=\"\",\"\",'Generated list'!C2553)","v":""},{"$f":"IF('Generated list'!D2553=\"\",\"\",'Generated list'!D2553)","v":""}]
[null,{"$f":"IF('Generated list'!B2554=\"\",\"\",'Generated list'!B2554)","v":""},{"$f":"IF('Generated list'!C2554=\"\",\"\",'Generated list'!C2554)","v":""},{"$f":"IF('Generated list'!D2554=\"\",\"\",'Generated list'!D2554)","v":""}]
[null,{"$f":"IF('Generated list'!B2555=\"\",\"\",'Generated list'!B2555)","v":""},{"$f":"IF('Generated list'!C2555=\"\",\"\",'Generated list'!C2555)","v":""},{"$f":"IF('Generated list'!D2555=\"\",\"\",'Generated list'!D2555)","v":""}]
[null,{"$f":"IF('Generated list'!B2556=\"\",\"\",'Generated list'!B2556)","v":""},{"$f":"IF('Generated list'!C2556=\"\",\"\",'Generated list'!C2556)","v":""},{"$f":"IF('Generated list'!D2556=\"\",\"\",'Generated list'!D2556)","v":""}]
[null,{"$f":"IF('Generated list'!B2557=\"\",\"\",'Generated list'!B2557)","v":""},{"$f":"IF('Generated list'!C2557=\"\",\"\",'Generated list'!C2557)","v":""},{"$f":"IF('Generated list'!D2557=\"\",\"\",'Generated list'!D2557)","v":""}]
[null,{"$f":"IF('Generated list'!B2558=\"\",\"\",'Generated list'!B2558)","v":""},{"$f":"IF('Generated list'!C2558=\"\",\"\",'Generated list'!C2558)","v":""},{"$f":"IF('Generated list'!D2558=\"\",\"\",'Generated list'!D2558)","v":""}]
[null,{"$f":"IF('Generated list'!B2559=\"\",\"\",'Generated list'!B2559)","v":""},{"$f":"IF('Generated list'!C2559=\"\",\"\",'Generated list'!C2559)","v":""},{"$f":"IF('Generated list'!D2559=\"\",\"\",'Generated list'!D2559)","v":""}]
[null,{"$f":"IF('Generated list'!B2560=\"\",\"\",'Generated list'!B2560)","v":""},{"$f":"IF('Generated list'!C2560=\"\",\"\",'Generated list'!C2560)","v":""},{"$f":"IF('Generated list'!D2560=\"\",\"\",'Generated list'!D2560)","v":""}]
[null,{"$f":"IF('Generated list'!B2561=\"\",\"\",'Generated list'!B2561)","v":""},{"$f":"IF('Generated list'!C2561=\"\",\"\",'Generated list'!C2561)","v":""},{"$f":"IF('Generated list'!D2561=\"\",\"\",'Generated list'!D2561)","v":""}]
[null,{"$f":"IF('Generated list'!B2562=\"\",\"\",'Generated list'!B2562)","v":""},{"$f":"IF('Generated list'!C2562=\"\",\"\",'Generated list'!C2562)","v":""},{"$f":"IF('Generated list'!D2562=\"\",\"\",'Generated list'!D2562)","v":""}]
[null,{"$f":"IF('Generated list'!B2563=\"\",\"\",'Generated list'!B2563)","v":""},{"$f":"IF('Generated list'!C2563=\"\",\"\",'Generated list'!C2563)","v":""},{"$f":"IF('Generated list'!D2563=\"\",\"\",'Generated list'!D2563)","v":""}]
[null,{"$f":"IF('Generated list'!B2564=\"\",\"\",'Generated list'!B2564)","v":""},{"$f":"IF('Generated list'!C2564=\"\",\"\",'Generated list'!C2564)","v":""},{"$f":"IF('Generated list'!D2564=\"\",\"\",'Generated list'!D2564)","v":""}]
[null,{"$f":"IF('Generated list'!B2565=\"\",\"\",'Generated list'!B2565)","v":""},{"$f":"IF('Generated list'!C2565=\"\",\"\",'Generated list'!C2565)","v":""},{"$f":"IF('Generated list'!D2565=\"\",\"\",'Generated list'!D2565)","v":""}]
[null,{"$f":"IF('Generated list'!B2566=\"\",\"\",'Generated list'!B2566)","v":""},{"$f":"IF('Generated list'!C2566=\"\",\"\",'Generated list'!C2566)","v":""},{"$f":"IF('Generated list'!D2566=\"\",\"\",'Generated list'!D2566)","v":""}]
[null,{"$f":"IF('Generated list'!B2567=\"\",\"\",'Generated list'!B2567)","v":""},{"$f":"IF('Generated list'!C2567=\"\",\"\",'Generated list'!C2567)","v":""},{"$f":"IF('Generated list'!D2567=\"\",\"\",'Generated list'!D2567)","v":""}]
[null,{"$f":"IF('Generated list'!B2568=\"\",\"\",'Generated list'!B2568)","v":""},{"$f":"IF('Generated list'!C2568=\"\",\"\",'Generated list'!C2568)","v":""},{"$f":"IF('Generated list'!D2568=\"\",\"\",'Generated list'!D2568)","v":""}]
[null,{"$f":"IF('Generated list'!B2569=\"\",\"\",'Generated list'!B2569)","v":""},{"$f":"IF('Generated list'!C2569=\"\",\"\",'Generated list'!C2569)","v":""},{"$f":"IF('Generated list'!D2569=\"\",\"\",'Generated list'!D2569)","v":""}]
[null,{"$f":"IF('Generated list'!B2570=\"\",\"\",'Generated list'!B2570)","v":""},{"$f":"IF('Generated list'!C2570=\"\",\"\",'Generated list'!C2570)","v":""},{"$f":"IF('Generated list'!D2570=\"\",\"\",'Generated list'!D2570)","v":""}]
[null,{"$f":"IF('Generated list'!B2571=\"\",\"\",'Generated list'!B2571)","v":""},{"$f":"IF('Generated list'!C2571=\"\",\"\",'Generated list'!C2571)","v":""},{"$f":"IF('Generated list'!D2571=\"\",\"\",'Generated list'!D2571)","v":""}]
[null,{"$f":"IF('Generated list'!B2572=\"\",\"\",'Generated list'!B2572)","v":""},{"$f":"IF('Generated list'!C2572=\"\",\"\",'Generated list'!C2572)","v":""},{"$f":"IF('Generated list'!D2572=\"\",\"\",'Generated list'!D2572)","v":""}]
[null,{"$f":"IF('Generated list'!B2573=\"\",\"\",'Generated list'!B2573)","v":""},{"$f":"IF('Generated list'!C2573=\"\",\"\",'Generated list'!C2573)","v":""},{"$f":"IF('Generated list'!D2573=\"\",\"\",'Generated list'!D2573)","v":""}]
[null,{"$f":"IF('Generated list'!B2574=\"\",\"\",'Generated list'!B2574)","v":""},{"$f":"IF('Generated list'!C2574=\"\",\"\",'Generated list'!C2574)","v":""},{"$f":"IF('Generated list'!D2574=\"\",\"\",'Generated list'!D2574)","v":""}]
[null,{"$f":"IF('Generated list'!B2575=\"\",\"\",'Generated list'!B2575)","v":""},{"$f":"IF('Generated list'!C2575=\"\",\"\",'Generated list'!C2575)","v":""},{"$f":"IF('Generated list'!D2575=\"\",\"\",'Generated list'!D2575)","v":""}]
[null,{"$f":"IF('Generated list'!B2576=\"\",\"\",'Generated list'!B2576)","v":""},{"$f":"IF('Generated list'!C2576=\"\",\"\",'Generated list'!C2576)","v":""},{"$f":"IF('Generated list'!D2576=\"\",\"\",'Generated list'!D2576)","v":""}]
[null,{"$f":"IF('Generated list'!B2577=\"\",\"\",'Generated list'!B2577)","v":""},{"$f":"IF('Generated list'!C2577=\"\",\"\",'Generated list'!C2577)","v":""},{"$f":"IF('Generated list'!D2577=\"\",\"\",'Generated list'!D2577)","v":""}]
[null,{"$f":"IF('Generated list'!B2578=\"\",\"\",'Generated list'!B2578)","v":""},{"$f":"IF('Generated list'!C2578=\"\",\"\",'Generated list'!C2578)","v":""},{"$f":"IF('Generated list'!D2578=\"\",\"\",'Generated list'!D2578)","v":""}]
[null,{"$f":"IF('Generated list'!B2579=\"\",\"\",'Generated list'!B2579)","v":""},{"$f":"IF('Generated list'!C2579=\"\",\"\",'Generated list'!C2579)","v":""},{"$f":"IF('Generated list'!D2579=\"\",\"\",'Generated list'!D2579)","v":""}]
[null,{"$f":"IF('Generated list'!B2580=\"\",\"\",'Generated list'!B2580)","v":""},{"$f":"IF('Generated list'!C2580=\"\",\"\",'Generated list'!C2580)","v":""},{"$f":"IF('Generated list'!D2580=\"\",\"\",'Generated list'!D2580)","v":""}]
[null,{"$f":"IF('Generated list'!B2581=\"\",\"\",'Generated list'!B2581)","v":""},{"$f":"IF('Generated list'!C2581=\"\",\"\",'Generated list'!C2581)","v":""},{"$f":"IF('Generated list'!D2581=\"\",\"\",'Generated list'!D2581)","v":""}]
[null,{"$f":"IF('Generated list'!B2582=\"\",\"\",'Generated list'!B2582)","v":""},{"$f":"IF('Generated list'!C2582=\"\",\"\",'Generated list'!C2582)","v":""},{"$f":"IF('Generated list'!D2582=\"\",\"\",'Generated list'!D2582)","v":""}]
[null,{"$f":"IF('Generated list'!B2583=\"\",\"\",'Generated list'!B2583)","v":""},{"$f":"IF('Generated list'!C2583=\"\",\"\",'Generated list'!C2583)","v":""},{"$f":"IF('Generated list'!D2583=\"\",\"\",'Generated list'!D2583)","v":""}]
[null,{"$f":"IF('Generated list'!B2584=\"\",\"\",'Generated list'!B2584)","v":""},{"$f":"IF('Generated list'!C2584=\"\",\"\",'Generated list'!C2584)","v":""},{"$f":"IF('Generated list'!D2584=\"\",\"\",'Generated list'!D2584)","v":""}]
[null,{"$f":"IF('Generated list'!B2585=\"\",\"\",'Generated list'!B2585)","v":""},{"$f":"IF('Generated list'!C2585=\"\",\"\",'Generated list'!C2585)","v":""},{"$f":"IF('Generated list'!D2585=\"\",\"\",'Generated list'!D2585)","v":""}]
[null,{"$f":"IF('Generated list'!B2586=\"\",\"\",'Generated list'!B2586)","v":""},{"$f":"IF('Generated list'!C2586=\"\",\"\",'Generated list'!C2586)","v":""},{"$f":"IF('Generated list'!D2586=\"\",\"\",'Generated list'!D2586)","v":""}]
[null,{"$f":"IF('Generated list'!B2587=\"\",\"\",'Generated list'!B2587)","v":""},{"$f":"IF('Generated list'!C2587=\"\",\"\",'Generated list'!C2587)","v":""},{"$f":"IF('Generated list'!D2587=\"\",\"\",'Generated list'!D2587)","v":""}]
[null,{"$f":"IF('Generated list'!B2588=\"\",\"\",'Generated list'!B2588)","v":""},{"$f":"IF('Generated list'!C2588=\"\",\"\",'Generated list'!C2588)","v":""},{"$f":"IF('Generated list'!D2588=\"\",\"\",'Generated list'!D2588)","v":""}]
[null,{"$f":"IF('Generated list'!B2589=\"\",\"\",'Generated list'!B2589)","v":""},{"$f":"IF('Generated list'!C2589=\"\",\"\",'Generated list'!C2589)","v":""},{"$f":"IF('Generated list'!D2589=\"\",\"\",'Generated list'!D2589)","v":""}]
[null,{"$f":"IF('Generated list'!B2590=\"\",\"\",'Generated list'!B2590)","v":""},{"$f":"IF('Generated list'!C2590=\"\",\"\",'Generated list'!C2590)","v":""},{"$f":"IF('Generated list'!D2590=\"\",\"\",'Generated list'!D2590)","v":""}]
[null,{"$f":"IF('Generated list'!B2591=\"\",\"\",'Generated list'!B2591)","v":""},{"$f":"IF('Generated list'!C2591=\"\",\"\",'Generated list'!C2591)","v":""},{"$f":"IF('Generated list'!D2591=\"\",\"\",'Generated list'!D2591)","v":""}]
[null,{"$f":"IF('Generated list'!B2592=\"\",\"\",'Generated list'!B2592)","v":""},{"$f":"IF('Generated list'!C2592=\"\",\"\",'Generated list'!C2592)","v":""},{"$f":"IF('Generated list'!D2592=\"\",\"\",'Generated list'!D2592)","v":""}]
[null,{"$f":"IF('Generated list'!B2593=\"\",\"\",'Generated list'!B2593)","v":""},{"$f":"IF('Generated list'!C2593=\"\",\"\",'Generated list'!C2593)","v":""},{"$f":"IF('Generated list'!D2593=\"\",\"\",'Generated list'!D2593)","v":""}]
[null,{"$f":"IF('Generated list'!B2594=\"\",\"\",'Generated list'!B2594)","v":""},{"$f":"IF('Generated list'!C2594=\"\",\"\",'Generated list'!C2594)","v":""},{"$f":"IF('Generated list'!D2594=\"\",\"\",'Generated list'!D2594)","v":""}]
[null,{"$f":"IF('Generated list'!B2595=\"\",\"\",'Generated list'!B2595)","v":""},{"$f":"IF('Generated list'!C2595=\"\",\"\",'Generated list'!C2595)","v":""},{"$f":"IF('Generated list'!D2595=\"\",\"\",'Generated list'!D2595)","v":""}]
[null,{"$f":"IF('Generated list'!B2596=\"\",\"\",'Generated list'!B2596)","v":""},{"$f":"IF('Generated list'!C2596=\"\",\"\",'Generated list'!C2596)","v":""},{"$f":"IF('Generated list'!D2596=\"\",\"\",'Generated list'!D2596)","v":""}]
[null,{"$f":"IF('Generated list'!B2597=\"\",\"\",'Generated list'!B2597)","v":""},{"$f":"IF('Generated list'!C2597=\"\",\"\",'Generated list'!C2597)","v":""},{"$f":"IF('Generated list'!D2597=\"\",\"\",'Generated list'!D2597)","v":""}]
[null,{"$f":"IF('Generated list'!B2598=\"\",\"\",'Generated list'!B2598)","v":""},{"$f":"IF('Generated list'!C2598=\"\",\"\",'Generated list'!C2598)","v":""},{"$f":"IF('Generated list'!D2598=\"\",\"\",'Generated list'!D2598)","v":""}]
[null,{"$f":"IF('Generated list'!B2599=\"\",\"\",'Generated list'!B2599)","v":""},{"$f":"IF('Generated list'!C2599=\"\",\"\",'Generated list'!C2599)","v":""},{"$f":"IF('Generated list'!D2599=\"\",\"\",'Generated list'!D2599)","v":""}]
[null,{"$f":"IF('Generated list'!B2600=\"\",\"\",'Generated list'!B2600)","v":""},{"$f":"IF('Generated list'!C2600=\"\",\"\",'Generated list'!C2600)","v":""},{"$f":"IF('Generated list'!D2600=\"\",\"\",'Generated list'!D2600)","v":""}]
[null,{"$f":"IF('Generated list'!B2601=\"\",\"\",'Generated list'!B2601)","v":""},{"$f":"IF('Generated list'!C2601=\"\",\"\",'Generated list'!C2601)","v":""},{"$f":"IF('Generated list'!D2601=\"\",\"\",'Generated list'!D2601)","v":""}]
[null,{"$f":"IF('Generated list'!B2602=\"\",\"\",'Generated list'!B2602)","v":""},{"$f":"IF('Generated list'!C2602=\"\",\"\",'Generated list'!C2602)","v":""},{"$f":"IF('Generated list'!D2602=\"\",\"\",'Generated list'!D2602)","v":""}]
[null,{"$f":"IF('Generated list'!B2603=\"\",\"\",'Generated list'!B2603)","v":""},{"$f":"IF('Generated list'!C2603=\"\",\"\",'Generated list'!C2603)","v":""},{"$f":"IF('Generated list'!D2603=\"\",\"\",'Generated list'!D2603)","v":""}]
[null,{"$f":"IF('Generated list'!B2604=\"\",\"\",'Generated list'!B2604)","v":""},{"$f":"IF('Generated list'!C2604=\"\",\"\",'Generated list'!C2604)","v":""},{"$f":"IF('Generated list'!D2604=\"\",\"\",'Generated list'!D2604)","v":""}]
[null,{"$f":"IF('Generated list'!B2605=\"\",\"\",'Generated list'!B2605)","v":""},{"$f":"IF('Generated list'!C2605=\"\",\"\",'Generated list'!C2605)","v":""},{"$f":"IF('Generated list'!D2605=\"\",\"\",'Generated list'!D2605)","v":""}]
[null,{"$f":"IF('Generated list'!B2606=\"\",\"\",'Generated list'!B2606)","v":""},{"$f":"IF('Generated list'!C2606=\"\",\"\",'Generated list'!C2606)","v":""},{"$f":"IF('Generated list'!D2606=\"\",\"\",'Generated list'!D2606)","v":""}]
[null,{"$f":"IF('Generated list'!B2607=\"\",\"\",'Generated list'!B2607)","v":""},{"$f":"IF('Generated list'!C2607=\"\",\"\",'Generated list'!C2607)","v":""},{"$f":"IF('Generated list'!D2607=\"\",\"\",'Generated list'!D2607)","v":""}]
[null,{"$f":"IF('Generated list'!B2608=\"\",\"\",'Generated list'!B2608)","v":""},{"$f":"IF('Generated list'!C2608=\"\",\"\",'Generated list'!C2608)","v":""},{"$f":"IF('Generated list'!D2608=\"\",\"\",'Generated list'!D2608)","v":""}]
[null,{"$f":"IF('Generated list'!B2609=\"\",\"\",'Generated list'!B2609)","v":""},{"$f":"IF('Generated list'!C2609=\"\",\"\",'Generated list'!C2609)","v":""},{"$f":"IF('Generated list'!D2609=\"\",\"\",'Generated list'!D2609)","v":""}]
[null,{"$f":"IF('Generated list'!B2610=\"\",\"\",'Generated list'!B2610)","v":""},{"$f":"IF('Generated list'!C2610=\"\",\"\",'Generated list'!C2610)","v":""},{"$f":"IF('Generated list'!D2610=\"\",\"\",'Generated list'!D2610)","v":""}]
[null,{"$f":"IF('Generated list'!B2611=\"\",\"\",'Generated list'!B2611)","v":""},{"$f":"IF('Generated list'!C2611=\"\",\"\",'Generated list'!C2611)","v":""},{"$f":"IF('Generated list'!D2611=\"\",\"\",'Generated list'!D2611)","v":""}]
[null,{"$f":"IF('Generated list'!B2612=\"\",\"\",'Generated list'!B2612)","v":""},{"$f":"IF('Generated list'!C2612=\"\",\"\",'Generated list'!C2612)","v":""},{"$f":"IF('Generated list'!D2612=\"\",\"\",'Generated list'!D2612)","v":""}]
[null,{"$f":"IF('Generated list'!B2613=\"\",\"\",'Generated list'!B2613)","v":""},{"$f":"IF('Generated list'!C2613=\"\",\"\",'Generated list'!C2613)","v":""},{"$f":"IF('Generated list'!D2613=\"\",\"\",'Generated list'!D2613)","v":""}]
[null,{"$f":"IF('Generated list'!B2614=\"\",\"\",'Generated list'!B2614)","v":""},{"$f":"IF('Generated list'!C2614=\"\",\"\",'Generated list'!C2614)","v":""},{"$f":"IF('Generated list'!D2614=\"\",\"\",'Generated list'!D2614)","v":""}]
[null,{"$f":"IF('Generated list'!B2615=\"\",\"\",'Generated list'!B2615)","v":""},{"$f":"IF('Generated list'!C2615=\"\",\"\",'Generated list'!C2615)","v":""},{"$f":"IF('Generated list'!D2615=\"\",\"\",'Generated list'!D2615)","v":""}]
[null,{"$f":"IF('Generated list'!B2616=\"\",\"\",'Generated list'!B2616)","v":""},{"$f":"IF('Generated list'!C2616=\"\",\"\",'Generated list'!C2616)","v":""},{"$f":"IF('Generated list'!D2616=\"\",\"\",'Generated list'!D2616)","v":""}]
[null,{"$f":"IF('Generated list'!B2617=\"\",\"\",'Generated list'!B2617)","v":""},{"$f":"IF('Generated list'!C2617=\"\",\"\",'Generated list'!C2617)","v":""},{"$f":"IF('Generated list'!D2617=\"\",\"\",'Generated list'!D2617)","v":""}]
[null,{"$f":"IF('Generated list'!B2618=\"\",\"\",'Generated list'!B2618)","v":""},{"$f":"IF('Generated list'!C2618=\"\",\"\",'Generated list'!C2618)","v":""},{"$f":"IF('Generated list'!D2618=\"\",\"\",'Generated list'!D2618)","v":""}]
[null,{"$f":"IF('Generated list'!B2619=\"\",\"\",'Generated list'!B2619)","v":""},{"$f":"IF('Generated list'!C2619=\"\",\"\",'Generated list'!C2619)","v":""},{"$f":"IF('Generated list'!D2619=\"\",\"\",'Generated list'!D2619)","v":""}]
[null,{"$f":"IF('Generated list'!B2620=\"\",\"\",'Generated list'!B2620)","v":""},{"$f":"IF('Generated list'!C2620=\"\",\"\",'Generated list'!C2620)","v":""},{"$f":"IF('Generated list'!D2620=\"\",\"\",'Generated list'!D2620)","v":""}]
[null,{"$f":"IF('Generated list'!B2621=\"\",\"\",'Generated list'!B2621)","v":""},{"$f":"IF('Generated list'!C2621=\"\",\"\",'Generated list'!C2621)","v":""},{"$f":"IF('Generated list'!D2621=\"\",\"\",'Generated list'!D2621)","v":""}]
[null,{"$f":"IF('Generated list'!B2622=\"\",\"\",'Generated list'!B2622)","v":""},{"$f":"IF('Generated list'!C2622=\"\",\"\",'Generated list'!C2622)","v":""},{"$f":"IF('Generated list'!D2622=\"\",\"\",'Generated list'!D2622)","v":""}]
[null,{"$f":"IF('Generated list'!B2623=\"\",\"\",'Generated list'!B2623)","v":""},{"$f":"IF('Generated list'!C2623=\"\",\"\",'Generated list'!C2623)","v":""},{"$f":"IF('Generated list'!D2623=\"\",\"\",'Generated list'!D2623)","v":""}]
[null,{"$f":"IF('Generated list'!B2624=\"\",\"\",'Generated list'!B2624)","v":""},{"$f":"IF('Generated list'!C2624=\"\",\"\",'Generated list'!C2624)","v":""},{"$f":"IF('Generated list'!D2624=\"\",\"\",'Generated list'!D2624)","v":""}]
[null,{"$f":"IF('Generated list'!B2625=\"\",\"\",'Generated list'!B2625)","v":""},{"$f":"IF('Generated list'!C2625=\"\",\"\",'Generated list'!C2625)","v":""},{"$f":"IF('Generated list'!D2625=\"\",\"\",'Generated list'!D2625)","v":""}]
[null,{"$f":"IF('Generated list'!B2626=\"\",\"\",'Generated list'!B2626)","v":""},{"$f":"IF('Generated list'!C2626=\"\",\"\",'Generated list'!C2626)","v":""},{"$f":"IF('Generated list'!D2626=\"\",\"\",'Generated list'!D2626)","v":""}]
[null,{"$f":"IF('Generated list'!B2627=\"\",\"\",'Generated list'!B2627)","v":""},{"$f":"IF('Generated list'!C2627=\"\",\"\",'Generated list'!C2627)","v":""},{"$f":"IF('Generated list'!D2627=\"\",\"\",'Generated list'!D2627)","v":""}]
[null,{"$f":"IF('Generated list'!B2628=\"\",\"\",'Generated list'!B2628)","v":""},{"$f":"IF('Generated list'!C2628=\"\",\"\",'Generated list'!C2628)","v":""},{"$f":"IF('Generated list'!D2628=\"\",\"\",'Generated list'!D2628)","v":""}]
[null,{"$f":"IF('Generated list'!B2629=\"\",\"\",'Generated list'!B2629)","v":""},{"$f":"IF('Generated list'!C2629=\"\",\"\",'Generated list'!C2629)","v":""},{"$f":"IF('Generated list'!D2629=\"\",\"\",'Generated list'!D2629)","v":""}]
[null,{"$f":"IF('Generated list'!B2630=\"\",\"\",'Generated list'!B2630)","v":""},{"$f":"IF('Generated list'!C2630=\"\",\"\",'Generated list'!C2630)","v":""},{"$f":"IF('Generated list'!D2630=\"\",\"\",'Generated list'!D2630)","v":""}]
[null,{"$f":"IF('Generated list'!B2631=\"\",\"\",'Generated list'!B2631)","v":""},{"$f":"IF('Generated list'!C2631=\"\",\"\",'Generated list'!C2631)","v":""},{"$f":"IF('Generated list'!D2631=\"\",\"\",'Generated list'!D2631)","v":""}]
[null,{"$f":"IF('Generated list'!B2632=\"\",\"\",'Generated list'!B2632)","v":""},{"$f":"IF('Generated list'!C2632=\"\",\"\",'Generated list'!C2632)","v":""},{"$f":"IF('Generated list'!D2632=\"\",\"\",'Generated list'!D2632)","v":""}]
[null,{"$f":"IF('Generated list'!B2633=\"\",\"\",'Generated list'!B2633)","v":""},{"$f":"IF('Generated list'!C2633=\"\",\"\",'Generated list'!C2633)","v":""},{"$f":"IF('Generated list'!D2633=\"\",\"\",'Generated list'!D2633)","v":""}]
[null,{"$f":"IF('Generated list'!B2634=\"\",\"\",'Generated list'!B2634)","v":""},{"$f":"IF('Generated list'!C2634=\"\",\"\",'Generated list'!C2634)","v":""},{"$f":"IF('Generated list'!D2634=\"\",\"\",'Generated list'!D2634)","v":""}]
[null,{"$f":"IF('Generated list'!B2635=\"\",\"\",'Generated list'!B2635)","v":""},{"$f":"IF('Generated list'!C2635=\"\",\"\",'Generated list'!C2635)","v":""},{"$f":"IF('Generated list'!D2635=\"\",\"\",'Generated list'!D2635)","v":""}]
[null,{"$f":"IF('Generated list'!B2636=\"\",\"\",'Generated list'!B2636)","v":""},{"$f":"IF('Generated list'!C2636=\"\",\"\",'Generated list'!C2636)","v":""},{"$f":"IF('Generated list'!D2636=\"\",\"\",'Generated list'!D2636)","v":""}]
[null,{"$f":"IF('Generated list'!B2637=\"\",\"\",'Generated list'!B2637)","v":""},{"$f":"IF('Generated list'!C2637=\"\",\"\",'Generated list'!C2637)","v":""},{"$f":"IF('Generated list'!D2637=\"\",\"\",'Generated list'!D2637)","v":""}]
[null,{"$f":"IF('Generated list'!B2638=\"\",\"\",'Generated list'!B2638)","v":""},{"$f":"IF('Generated list'!C2638=\"\",\"\",'Generated list'!C2638)","v":""},{"$f":"IF('Generated list'!D2638=\"\",\"\",'Generated list'!D2638)","v":""}]
[null,{"$f":"IF('Generated list'!B2639=\"\",\"\",'Generated list'!B2639)","v":""},{"$f":"IF('Generated list'!C2639=\"\",\"\",'Generated list'!C2639)","v":""},{"$f":"IF('Generated list'!D2639=\"\",\"\",'Generated list'!D2639)","v":""}]
[null,{"$f":"IF('Generated list'!B2640=\"\",\"\",'Generated list'!B2640)","v":""},{"$f":"IF('Generated list'!C2640=\"\",\"\",'Generated list'!C2640)","v":""},{"$f":"IF('Generated list'!D2640=\"\",\"\",'Generated list'!D2640)","v":""}]
[null,{"$f":"IF('Generated list'!B2641=\"\",\"\",'Generated list'!B2641)","v":""},{"$f":"IF('Generated list'!C2641=\"\",\"\",'Generated list'!C2641)","v":""},{"$f":"IF('Generated list'!D2641=\"\",\"\",'Generated list'!D2641)","v":""}]
[null,{"$f":"IF('Generated list'!B2642=\"\",\"\",'Generated list'!B2642)","v":""},{"$f":"IF('Generated list'!C2642=\"\",\"\",'Generated list'!C2642)","v":""},{"$f":"IF('Generated list'!D2642=\"\",\"\",'Generated list'!D2642)","v":""}]
[null,{"$f":"IF('Generated list'!B2643=\"\",\"\",'Generated list'!B2643)","v":""},{"$f":"IF('Generated list'!C2643=\"\",\"\",'Generated list'!C2643)","v":""},{"$f":"IF('Generated list'!D2643=\"\",\"\",'Generated list'!D2643)","v":""}]
[null,{"$f":"IF('Generated list'!B2644=\"\",\"\",'Generated list'!B2644)","v":""},{"$f":"IF('Generated list'!C2644=\"\",\"\",'Generated list'!C2644)","v":""},{"$f":"IF('Generated list'!D2644=\"\",\"\",'Generated list'!D2644)","v":""}]
[null,{"$f":"IF('Generated list'!B2645=\"\",\"\",'Generated list'!B2645)","v":""},{"$f":"IF('Generated list'!C2645=\"\",\"\",'Generated list'!C2645)","v":""},{"$f":"IF('Generated list'!D2645=\"\",\"\",'Generated list'!D2645)","v":""}]
[null,{"$f":"IF('Generated list'!B2646=\"\",\"\",'Generated list'!B2646)","v":""},{"$f":"IF('Generated list'!C2646=\"\",\"\",'Generated list'!C2646)","v":""},{"$f":"IF('Generated list'!D2646=\"\",\"\",'Generated list'!D2646)","v":""}]
[null,{"$f":"IF('Generated list'!B2647=\"\",\"\",'Generated list'!B2647)","v":""},{"$f":"IF('Generated list'!C2647=\"\",\"\",'Generated list'!C2647)","v":""},{"$f":"IF('Generated list'!D2647=\"\",\"\",'Generated list'!D2647)","v":""}]
[null,{"$f":"IF('Generated list'!B2648=\"\",\"\",'Generated list'!B2648)","v":""},{"$f":"IF('Generated list'!C2648=\"\",\"\",'Generated list'!C2648)","v":""},{"$f":"IF('Generated list'!D2648=\"\",\"\",'Generated list'!D2648)","v":""}]
[null,{"$f":"IF('Generated list'!B2649=\"\",\"\",'Generated list'!B2649)","v":""},{"$f":"IF('Generated list'!C2649=\"\",\"\",'Generated list'!C2649)","v":""},{"$f":"IF('Generated list'!D2649=\"\",\"\",'Generated list'!D2649)","v":""}]
[null,{"$f":"IF('Generated list'!B2650=\"\",\"\",'Generated list'!B2650)","v":""},{"$f":"IF('Generated list'!C2650=\"\",\"\",'Generated list'!C2650)","v":""},{"$f":"IF('Generated list'!D2650=\"\",\"\",'Generated list'!D2650)","v":""}]
[null,{"$f":"IF('Generated list'!B2651=\"\",\"\",'Generated list'!B2651)","v":""},{"$f":"IF('Generated list'!C2651=\"\",\"\",'Generated list'!C2651)","v":""},{"$f":"IF('Generated list'!D2651=\"\",\"\",'Generated list'!D2651)","v":""}]
[null,{"$f":"IF('Generated list'!B2652=\"\",\"\",'Generated list'!B2652)","v":""},{"$f":"IF('Generated list'!C2652=\"\",\"\",'Generated list'!C2652)","v":""},{"$f":"IF('Generated list'!D2652=\"\",\"\",'Generated list'!D2652)","v":""}]
[null,{"$f":"IF('Generated list'!B2653=\"\",\"\",'Generated list'!B2653)","v":""},{"$f":"IF('Generated list'!C2653=\"\",\"\",'Generated list'!C2653)","v":""},{"$f":"IF('Generated list'!D2653=\"\",\"\",'Generated list'!D2653)","v":""}]
[null,{"$f":"IF('Generated list'!B2654=\"\",\"\",'Generated list'!B2654)","v":""},{"$f":"IF('Generated list'!C2654=\"\",\"\",'Generated list'!C2654)","v":""},{"$f":"IF('Generated list'!D2654=\"\",\"\",'Generated list'!D2654)","v":""}]
[null,{"$f":"IF('Generated list'!B2655=\"\",\"\",'Generated list'!B2655)","v":""},{"$f":"IF('Generated list'!C2655=\"\",\"\",'Generated list'!C2655)","v":""},{"$f":"IF('Generated list'!D2655=\"\",\"\",'Generated list'!D2655)","v":""}]
[null,{"$f":"IF('Generated list'!B2656=\"\",\"\",'Generated list'!B2656)","v":""},{"$f":"IF('Generated list'!C2656=\"\",\"\",'Generated list'!C2656)","v":""},{"$f":"IF('Generated list'!D2656=\"\",\"\",'Generated list'!D2656)","v":""}]
[null,{"$f":"IF('Generated list'!B2657=\"\",\"\",'Generated list'!B2657)","v":""},{"$f":"IF('Generated list'!C2657=\"\",\"\",'Generated list'!C2657)","v":""},{"$f":"IF('Generated list'!D2657=\"\",\"\",'Generated list'!D2657)","v":""}]
[null,{"$f":"IF('Generated list'!B2658=\"\",\"\",'Generated list'!B2658)","v":""},{"$f":"IF('Generated list'!C2658=\"\",\"\",'Generated list'!C2658)","v":""},{"$f":"IF('Generated list'!D2658=\"\",\"\",'Generated list'!D2658)","v":""}]
[null,{"$f":"IF('Generated list'!B2659=\"\",\"\",'Generated list'!B2659)","v":""},{"$f":"IF('Generated list'!C2659=\"\",\"\",'Generated list'!C2659)","v":""},{"$f":"IF('Generated list'!D2659=\"\",\"\",'Generated list'!D2659)","v":""}]
[null,{"$f":"IF('Generated list'!B2660=\"\",\"\",'Generated list'!B2660)","v":""},{"$f":"IF('Generated list'!C2660=\"\",\"\",'Generated list'!C2660)","v":""},{"$f":"IF('Generated list'!D2660=\"\",\"\",'Generated list'!D2660)","v":""}]
[null,{"$f":"IF('Generated list'!B2661=\"\",\"\",'Generated list'!B2661)","v":""},{"$f":"IF('Generated list'!C2661=\"\",\"\",'Generated list'!C2661)","v":""},{"$f":"IF('Generated list'!D2661=\"\",\"\",'Generated list'!D2661)","v":""}]
[null,{"$f":"IF('Generated list'!B2662=\"\",\"\",'Generated list'!B2662)","v":""},{"$f":"IF('Generated list'!C2662=\"\",\"\",'Generated list'!C2662)","v":""},{"$f":"IF('Generated list'!D2662=\"\",\"\",'Generated list'!D2662)","v":""}]
[null,{"$f":"IF('Generated list'!B2663=\"\",\"\",'Generated list'!B2663)","v":""},{"$f":"IF('Generated list'!C2663=\"\",\"\",'Generated list'!C2663)","v":""},{"$f":"IF('Generated list'!D2663=\"\",\"\",'Generated list'!D2663)","v":""}]
[null,{"$f":"IF('Generated list'!B2664=\"\",\"\",'Generated list'!B2664)","v":""},{"$f":"IF('Generated list'!C2664=\"\",\"\",'Generated list'!C2664)","v":""},{"$f":"IF('Generated list'!D2664=\"\",\"\",'Generated list'!D2664)","v":""}]
[null,{"$f":"IF('Generated list'!B2665=\"\",\"\",'Generated list'!B2665)","v":""},{"$f":"IF('Generated list'!C2665=\"\",\"\",'Generated list'!C2665)","v":""},{"$f":"IF('Generated list'!D2665=\"\",\"\",'Generated list'!D2665)","v":""}]
[null,{"$f":"IF('Generated list'!B2666=\"\",\"\",'Generated list'!B2666)","v":""},{"$f":"IF('Generated list'!C2666=\"\",\"\",'Generated list'!C2666)","v":""},{"$f":"IF('Generated list'!D2666=\"\",\"\",'Generated list'!D2666)","v":""}]
[null,{"$f":"IF('Generated list'!B2667=\"\",\"\",'Generated list'!B2667)","v":""},{"$f":"IF('Generated list'!C2667=\"\",\"\",'Generated list'!C2667)","v":""},{"$f":"IF('Generated list'!D2667=\"\",\"\",'Generated list'!D2667)","v":""}]
[null,{"$f":"IF('Generated list'!B2668=\"\",\"\",'Generated list'!B2668)","v":""},{"$f":"IF('Generated list'!C2668=\"\",\"\",'Generated list'!C2668)","v":""},{"$f":"IF('Generated list'!D2668=\"\",\"\",'Generated list'!D2668)","v":""}]
[null,{"$f":"IF('Generated list'!B2669=\"\",\"\",'Generated list'!B2669)","v":""},{"$f":"IF('Generated list'!C2669=\"\",\"\",'Generated list'!C2669)","v":""},{"$f":"IF('Generated list'!D2669=\"\",\"\",'Generated list'!D2669)","v":""}]
[null,{"$f":"IF('Generated list'!B2670=\"\",\"\",'Generated list'!B2670)","v":""},{"$f":"IF('Generated list'!C2670=\"\",\"\",'Generated list'!C2670)","v":""},{"$f":"IF('Generated list'!D2670=\"\",\"\",'Generated list'!D2670)","v":""}]
[null,{"$f":"IF('Generated list'!B2671=\"\",\"\",'Generated list'!B2671)","v":""},{"$f":"IF('Generated list'!C2671=\"\",\"\",'Generated list'!C2671)","v":""},{"$f":"IF('Generated list'!D2671=\"\",\"\",'Generated list'!D2671)","v":""}]
[null,{"$f":"IF('Generated list'!B2672=\"\",\"\",'Generated list'!B2672)","v":""},{"$f":"IF('Generated list'!C2672=\"\",\"\",'Generated list'!C2672)","v":""},{"$f":"IF('Generated list'!D2672=\"\",\"\",'Generated list'!D2672)","v":""}]
[null,{"$f":"IF('Generated list'!B2673=\"\",\"\",'Generated list'!B2673)","v":""},{"$f":"IF('Generated list'!C2673=\"\",\"\",'Generated list'!C2673)","v":""},{"$f":"IF('Generated list'!D2673=\"\",\"\",'Generated list'!D2673)","v":""}]
[null,{"$f":"IF('Generated list'!B2674=\"\",\"\",'Generated list'!B2674)","v":""},{"$f":"IF('Generated list'!C2674=\"\",\"\",'Generated list'!C2674)","v":""},{"$f":"IF('Generated list'!D2674=\"\",\"\",'Generated list'!D2674)","v":""}]
[null,{"$f":"IF('Generated list'!B2675=\"\",\"\",'Generated list'!B2675)","v":""},{"$f":"IF('Generated list'!C2675=\"\",\"\",'Generated list'!C2675)","v":""},{"$f":"IF('Generated list'!D2675=\"\",\"\",'Generated list'!D2675)","v":""}]
[null,{"$f":"IF('Generated list'!B2676=\"\",\"\",'Generated list'!B2676)","v":""},{"$f":"IF('Generated list'!C2676=\"\",\"\",'Generated list'!C2676)","v":""},{"$f":"IF('Generated list'!D2676=\"\",\"\",'Generated list'!D2676)","v":""}]
[null,{"$f":"IF('Generated list'!B2677=\"\",\"\",'Generated list'!B2677)","v":""},{"$f":"IF('Generated list'!C2677=\"\",\"\",'Generated list'!C2677)","v":""},{"$f":"IF('Generated list'!D2677=\"\",\"\",'Generated list'!D2677)","v":""}]
[null,{"$f":"IF('Generated list'!B2678=\"\",\"\",'Generated list'!B2678)","v":""},{"$f":"IF('Generated list'!C2678=\"\",\"\",'Generated list'!C2678)","v":""},{"$f":"IF('Generated list'!D2678=\"\",\"\",'Generated list'!D2678)","v":""}]
[null,{"$f":"IF('Generated list'!B2679=\"\",\"\",'Generated list'!B2679)","v":""},{"$f":"IF('Generated list'!C2679=\"\",\"\",'Generated list'!C2679)","v":""},{"$f":"IF('Generated list'!D2679=\"\",\"\",'Generated list'!D2679)","v":""}]
[null,{"$f":"IF('Generated list'!B2680=\"\",\"\",'Generated list'!B2680)","v":""},{"$f":"IF('Generated list'!C2680=\"\",\"\",'Generated list'!C2680)","v":""},{"$f":"IF('Generated list'!D2680=\"\",\"\",'Generated list'!D2680)","v":""}]
[null,{"$f":"IF('Generated list'!B2681=\"\",\"\",'Generated list'!B2681)","v":""},{"$f":"IF('Generated list'!C2681=\"\",\"\",'Generated list'!C2681)","v":""},{"$f":"IF('Generated list'!D2681=\"\",\"\",'Generated list'!D2681)","v":""}]
[null,{"$f":"IF('Generated list'!B2682=\"\",\"\",'Generated list'!B2682)","v":""},{"$f":"IF('Generated list'!C2682=\"\",\"\",'Generated list'!C2682)","v":""},{"$f":"IF('Generated list'!D2682=\"\",\"\",'Generated list'!D2682)","v":""}]
[null,{"$f":"IF('Generated list'!B2683=\"\",\"\",'Generated list'!B2683)","v":""},{"$f":"IF('Generated list'!C2683=\"\",\"\",'Generated list'!C2683)","v":""},{"$f":"IF('Generated list'!D2683=\"\",\"\",'Generated list'!D2683)","v":""}]
[null,{"$f":"IF('Generated list'!B2684=\"\",\"\",'Generated list'!B2684)","v":""},{"$f":"IF('Generated list'!C2684=\"\",\"\",'Generated list'!C2684)","v":""},{"$f":"IF('Generated list'!D2684=\"\",\"\",'Generated list'!D2684)","v":""}]
[null,{"$f":"IF('Generated list'!B2685=\"\",\"\",'Generated list'!B2685)","v":""},{"$f":"IF('Generated list'!C2685=\"\",\"\",'Generated list'!C2685)","v":""},{"$f":"IF('Generated list'!D2685=\"\",\"\",'Generated list'!D2685)","v":""}]
[null,{"$f":"IF('Generated list'!B2686=\"\",\"\",'Generated list'!B2686)","v":""},{"$f":"IF('Generated list'!C2686=\"\",\"\",'Generated list'!C2686)","v":""},{"$f":"IF('Generated list'!D2686=\"\",\"\",'Generated list'!D2686)","v":""}]
[null,{"$f":"IF('Generated list'!B2687=\"\",\"\",'Generated list'!B2687)","v":""},{"$f":"IF('Generated list'!C2687=\"\",\"\",'Generated list'!C2687)","v":""},{"$f":"IF('Generated list'!D2687=\"\",\"\",'Generated list'!D2687)","v":""}]
[null,{"$f":"IF('Generated list'!B2688=\"\",\"\",'Generated list'!B2688)","v":""},{"$f":"IF('Generated list'!C2688=\"\",\"\",'Generated list'!C2688)","v":""},{"$f":"IF('Generated list'!D2688=\"\",\"\",'Generated list'!D2688)","v":""}]
[null,{"$f":"IF('Generated list'!B2689=\"\",\"\",'Generated list'!B2689)","v":""},{"$f":"IF('Generated list'!C2689=\"\",\"\",'Generated list'!C2689)","v":""},{"$f":"IF('Generated list'!D2689=\"\",\"\",'Generated list'!D2689)","v":""}]
[null,{"$f":"IF('Generated list'!B2690=\"\",\"\",'Generated list'!B2690)","v":""},{"$f":"IF('Generated list'!C2690=\"\",\"\",'Generated list'!C2690)","v":""},{"$f":"IF('Generated list'!D2690=\"\",\"\",'Generated list'!D2690)","v":""}]
[null,{"$f":"IF('Generated list'!B2691=\"\",\"\",'Generated list'!B2691)","v":""},{"$f":"IF('Generated list'!C2691=\"\",\"\",'Generated list'!C2691)","v":""},{"$f":"IF('Generated list'!D2691=\"\",\"\",'Generated list'!D2691)","v":""}]
[null,{"$f":"IF('Generated list'!B2692=\"\",\"\",'Generated list'!B2692)","v":""},{"$f":"IF('Generated list'!C2692=\"\",\"\",'Generated list'!C2692)","v":""},{"$f":"IF('Generated list'!D2692=\"\",\"\",'Generated list'!D2692)","v":""}]
[null,{"$f":"IF('Generated list'!B2693=\"\",\"\",'Generated list'!B2693)","v":""},{"$f":"IF('Generated list'!C2693=\"\",\"\",'Generated list'!C2693)","v":""},{"$f":"IF('Generated list'!D2693=\"\",\"\",'Generated list'!D2693)","v":""}]
[null,{"$f":"IF('Generated list'!B2694=\"\",\"\",'Generated list'!B2694)","v":""},{"$f":"IF('Generated list'!C2694=\"\",\"\",'Generated list'!C2694)","v":""},{"$f":"IF('Generated list'!D2694=\"\",\"\",'Generated list'!D2694)","v":""}]
[null,{"$f":"IF('Generated list'!B2695=\"\",\"\",'Generated list'!B2695)","v":""},{"$f":"IF('Generated list'!C2695=\"\",\"\",'Generated list'!C2695)","v":""},{"$f":"IF('Generated list'!D2695=\"\",\"\",'Generated list'!D2695)","v":""}]
[null,{"$f":"IF('Generated list'!B2696=\"\",\"\",'Generated list'!B2696)","v":""},{"$f":"IF('Generated list'!C2696=\"\",\"\",'Generated list'!C2696)","v":""},{"$f":"IF('Generated list'!D2696=\"\",\"\",'Generated list'!D2696)","v":""}]
[null,{"$f":"IF('Generated list'!B2697=\"\",\"\",'Generated list'!B2697)","v":""},{"$f":"IF('Generated list'!C2697=\"\",\"\",'Generated list'!C2697)","v":""},{"$f":"IF('Generated list'!D2697=\"\",\"\",'Generated list'!D2697)","v":""}]
[null,{"$f":"IF('Generated list'!B2698=\"\",\"\",'Generated list'!B2698)","v":""},{"$f":"IF('Generated list'!C2698=\"\",\"\",'Generated list'!C2698)","v":""},{"$f":"IF('Generated list'!D2698=\"\",\"\",'Generated list'!D2698)","v":""}]
[null,{"$f":"IF('Generated list'!B2699=\"\",\"\",'Generated list'!B2699)","v":""},{"$f":"IF('Generated list'!C2699=\"\",\"\",'Generated list'!C2699)","v":""},{"$f":"IF('Generated list'!D2699=\"\",\"\",'Generated list'!D2699)","v":""}]
[null,{"$f":"IF('Generated list'!B2700=\"\",\"\",'Generated list'!B2700)","v":""},{"$f":"IF('Generated list'!C2700=\"\",\"\",'Generated list'!C2700)","v":""},{"$f":"IF('Generated list'!D2700=\"\",\"\",'Generated list'!D2700)","v":""}]
[null,{"$f":"IF('Generated list'!B2701=\"\",\"\",'Generated list'!B2701)","v":""},{"$f":"IF('Generated list'!C2701=\"\",\"\",'Generated list'!C2701)","v":""},{"$f":"IF('Generated list'!D2701=\"\",\"\",'Generated list'!D2701)","v":""}]
[null,{"$f":"IF('Generated list'!B2702=\"\",\"\",'Generated list'!B2702)","v":""},{"$f":"IF('Generated list'!C2702=\"\",\"\",'Generated list'!C2702)","v":""},{"$f":"IF('Generated list'!D2702=\"\",\"\",'Generated list'!D2702)","v":""}]
[null,{"$f":"IF('Generated list'!B2703=\"\",\"\",'Generated list'!B2703)","v":""},{"$f":"IF('Generated list'!C2703=\"\",\"\",'Generated list'!C2703)","v":""},{"$f":"IF('Generated list'!D2703=\"\",\"\",'Generated list'!D2703)","v":""}]
[null,{"$f":"IF('Generated list'!B2704=\"\",\"\",'Generated list'!B2704)","v":""},{"$f":"IF('Generated list'!C2704=\"\",\"\",'Generated list'!C2704)","v":""},{"$f":"IF('Generated list'!D2704=\"\",\"\",'Generated list'!D2704)","v":""}]
[null,{"$f":"IF('Generated list'!B2705=\"\",\"\",'Generated list'!B2705)","v":""},{"$f":"IF('Generated list'!C2705=\"\",\"\",'Generated list'!C2705)","v":""},{"$f":"IF('Generated list'!D2705=\"\",\"\",'Generated list'!D2705)","v":""}]
[null,{"$f":"IF('Generated list'!B2706=\"\",\"\",'Generated list'!B2706)","v":""},{"$f":"IF('Generated list'!C2706=\"\",\"\",'Generated list'!C2706)","v":""},{"$f":"IF('Generated list'!D2706=\"\",\"\",'Generated list'!D2706)","v":""}]
[null,{"$f":"IF('Generated list'!B2707=\"\",\"\",'Generated list'!B2707)","v":""},{"$f":"IF('Generated list'!C2707=\"\",\"\",'Generated list'!C2707)","v":""},{"$f":"IF('Generated list'!D2707=\"\",\"\",'Generated list'!D2707)","v":""}]
[null,{"$f":"IF('Generated list'!B2708=\"\",\"\",'Generated list'!B2708)","v":""},{"$f":"IF('Generated list'!C2708=\"\",\"\",'Generated list'!C2708)","v":""},{"$f":"IF('Generated list'!D2708=\"\",\"\",'Generated list'!D2708)","v":""}]
[null,{"$f":"IF('Generated list'!B2709=\"\",\"\",'Generated list'!B2709)","v":""},{"$f":"IF('Generated list'!C2709=\"\",\"\",'Generated list'!C2709)","v":""},{"$f":"IF('Generated list'!D2709=\"\",\"\",'Generated list'!D2709)","v":""}]
[null,{"$f":"IF('Generated list'!B2710=\"\",\"\",'Generated list'!B2710)","v":""},{"$f":"IF('Generated list'!C2710=\"\",\"\",'Generated list'!C2710)","v":""},{"$f":"IF('Generated list'!D2710=\"\",\"\",'Generated list'!D2710)","v":""}]
[null,{"$f":"IF('Generated list'!B2711=\"\",\"\",'Generated list'!B2711)","v":""},{"$f":"IF('Generated list'!C2711=\"\",\"\",'Generated list'!C2711)","v":""},{"$f":"IF('Generated list'!D2711=\"\",\"\",'Generated list'!D2711)","v":""}]
[null,{"$f":"IF('Generated list'!B2712=\"\",\"\",'Generated list'!B2712)","v":""},{"$f":"IF('Generated list'!C2712=\"\",\"\",'Generated list'!C2712)","v":""},{"$f":"IF('Generated list'!D2712=\"\",\"\",'Generated list'!D2712)","v":""}]
[null,{"$f":"IF('Generated list'!B2713=\"\",\"\",'Generated list'!B2713)","v":""},{"$f":"IF('Generated list'!C2713=\"\",\"\",'Generated list'!C2713)","v":""},{"$f":"IF('Generated list'!D2713=\"\",\"\",'Generated list'!D2713)","v":""}]
[null,{"$f":"IF('Generated list'!B2714=\"\",\"\",'Generated list'!B2714)","v":""},{"$f":"IF('Generated list'!C2714=\"\",\"\",'Generated list'!C2714)","v":""},{"$f":"IF('Generated list'!D2714=\"\",\"\",'Generated list'!D2714)","v":""}]
[null,{"$f":"IF('Generated list'!B2715=\"\",\"\",'Generated list'!B2715)","v":""},{"$f":"IF('Generated list'!C2715=\"\",\"\",'Generated list'!C2715)","v":""},{"$f":"IF('Generated list'!D2715=\"\",\"\",'Generated list'!D2715)","v":""}]
[null,{"$f":"IF('Generated list'!B2716=\"\",\"\",'Generated list'!B2716)","v":""},{"$f":"IF('Generated list'!C2716=\"\",\"\",'Generated list'!C2716)","v":""},{"$f":"IF('Generated list'!D2716=\"\",\"\",'Generated list'!D2716)","v":""}]
[null,{"$f":"IF('Generated list'!B2717=\"\",\"\",'Generated list'!B2717)","v":""},{"$f":"IF('Generated list'!C2717=\"\",\"\",'Generated list'!C2717)","v":""},{"$f":"IF('Generated list'!D2717=\"\",\"\",'Generated list'!D2717)","v":""}]
[null,{"$f":"IF('Generated list'!B2718=\"\",\"\",'Generated list'!B2718)","v":""},{"$f":"IF('Generated list'!C2718=\"\",\"\",'Generated list'!C2718)","v":""},{"$f":"IF('Generated list'!D2718=\"\",\"\",'Generated list'!D2718)","v":""}]
[null,{"$f":"IF('Generated list'!B2719=\"\",\"\",'Generated list'!B2719)","v":""},{"$f":"IF('Generated list'!C2719=\"\",\"\",'Generated list'!C2719)","v":""},{"$f":"IF('Generated list'!D2719=\"\",\"\",'Generated list'!D2719)","v":""}]
[null,{"$f":"IF('Generated list'!B2720=\"\",\"\",'Generated list'!B2720)","v":""},{"$f":"IF('Generated list'!C2720=\"\",\"\",'Generated list'!C2720)","v":""},{"$f":"IF('Generated list'!D2720=\"\",\"\",'Generated list'!D2720)","v":""}]
[null,{"$f":"IF('Generated list'!B2721=\"\",\"\",'Generated list'!B2721)","v":""},{"$f":"IF('Generated list'!C2721=\"\",\"\",'Generated list'!C2721)","v":""},{"$f":"IF('Generated list'!D2721=\"\",\"\",'Generated list'!D2721)","v":""}]
[null,{"$f":"IF('Generated list'!B2722=\"\",\"\",'Generated list'!B2722)","v":""},{"$f":"IF('Generated list'!C2722=\"\",\"\",'Generated list'!C2722)","v":""},{"$f":"IF('Generated list'!D2722=\"\",\"\",'Generated list'!D2722)","v":""}]
[null,{"$f":"IF('Generated list'!B2723=\"\",\"\",'Generated list'!B2723)","v":""},{"$f":"IF('Generated list'!C2723=\"\",\"\",'Generated list'!C2723)","v":""},{"$f":"IF('Generated list'!D2723=\"\",\"\",'Generated list'!D2723)","v":""}]
[null,{"$f":"IF('Generated list'!B2724=\"\",\"\",'Generated list'!B2724)","v":""},{"$f":"IF('Generated list'!C2724=\"\",\"\",'Generated list'!C2724)","v":""},{"$f":"IF('Generated list'!D2724=\"\",\"\",'Generated list'!D2724)","v":""}]
[null,{"$f":"IF('Generated list'!B2725=\"\",\"\",'Generated list'!B2725)","v":""},{"$f":"IF('Generated list'!C2725=\"\",\"\",'Generated list'!C2725)","v":""},{"$f":"IF('Generated list'!D2725=\"\",\"\",'Generated list'!D2725)","v":""}]
[null,{"$f":"IF('Generated list'!B2726=\"\",\"\",'Generated list'!B2726)","v":""},{"$f":"IF('Generated list'!C2726=\"\",\"\",'Generated list'!C2726)","v":""},{"$f":"IF('Generated list'!D2726=\"\",\"\",'Generated list'!D2726)","v":""}]
[null,{"$f":"IF('Generated list'!B2727=\"\",\"\",'Generated list'!B2727)","v":""},{"$f":"IF('Generated list'!C2727=\"\",\"\",'Generated list'!C2727)","v":""},{"$f":"IF('Generated list'!D2727=\"\",\"\",'Generated list'!D2727)","v":""}]
[null,{"$f":"IF('Generated list'!B2728=\"\",\"\",'Generated list'!B2728)","v":""},{"$f":"IF('Generated list'!C2728=\"\",\"\",'Generated list'!C2728)","v":""},{"$f":"IF('Generated list'!D2728=\"\",\"\",'Generated list'!D2728)","v":""}]
[null,{"$f":"IF('Generated list'!B2729=\"\",\"\",'Generated list'!B2729)","v":""},{"$f":"IF('Generated list'!C2729=\"\",\"\",'Generated list'!C2729)","v":""},{"$f":"IF('Generated list'!D2729=\"\",\"\",'Generated list'!D2729)","v":""}]
[null,{"$f":"IF('Generated list'!B2730=\"\",\"\",'Generated list'!B2730)","v":""},{"$f":"IF('Generated list'!C2730=\"\",\"\",'Generated list'!C2730)","v":""},{"$f":"IF('Generated list'!D2730=\"\",\"\",'Generated list'!D2730)","v":""}]
[null,{"$f":"IF('Generated list'!B2731=\"\",\"\",'Generated list'!B2731)","v":""},{"$f":"IF('Generated list'!C2731=\"\",\"\",'Generated list'!C2731)","v":""},{"$f":"IF('Generated list'!D2731=\"\",\"\",'Generated list'!D2731)","v":""}]
[null,{"$f":"IF('Generated list'!B2732=\"\",\"\",'Generated list'!B2732)","v":""},{"$f":"IF('Generated list'!C2732=\"\",\"\",'Generated list'!C2732)","v":""},{"$f":"IF('Generated list'!D2732=\"\",\"\",'Generated list'!D2732)","v":""}]
[null,{"$f":"IF('Generated list'!B2733=\"\",\"\",'Generated list'!B2733)","v":""},{"$f":"IF('Generated list'!C2733=\"\",\"\",'Generated list'!C2733)","v":""},{"$f":"IF('Generated list'!D2733=\"\",\"\",'Generated list'!D2733)","v":""}]
[null,{"$f":"IF('Generated list'!B2734=\"\",\"\",'Generated list'!B2734)","v":""},{"$f":"IF('Generated list'!C2734=\"\",\"\",'Generated list'!C2734)","v":""},{"$f":"IF('Generated list'!D2734=\"\",\"\",'Generated list'!D2734)","v":""}]
[null,{"$f":"IF('Generated list'!B2735=\"\",\"\",'Generated list'!B2735)","v":""},{"$f":"IF('Generated list'!C2735=\"\",\"\",'Generated list'!C2735)","v":""},{"$f":"IF('Generated list'!D2735=\"\",\"\",'Generated list'!D2735)","v":""}]
[null,{"$f":"IF('Generated list'!B2736=\"\",\"\",'Generated list'!B2736)","v":""},{"$f":"IF('Generated list'!C2736=\"\",\"\",'Generated list'!C2736)","v":""},{"$f":"IF('Generated list'!D2736=\"\",\"\",'Generated list'!D2736)","v":""}]
[null,{"$f":"IF('Generated list'!B2737=\"\",\"\",'Generated list'!B2737)","v":""},{"$f":"IF('Generated list'!C2737=\"\",\"\",'Generated list'!C2737)","v":""},{"$f":"IF('Generated list'!D2737=\"\",\"\",'Generated list'!D2737)","v":""}]
[null,{"$f":"IF('Generated list'!B2738=\"\",\"\",'Generated list'!B2738)","v":""},{"$f":"IF('Generated list'!C2738=\"\",\"\",'Generated list'!C2738)","v":""},{"$f":"IF('Generated list'!D2738=\"\",\"\",'Generated list'!D2738)","v":""}]
[null,{"$f":"IF('Generated list'!B2739=\"\",\"\",'Generated list'!B2739)","v":""},{"$f":"IF('Generated list'!C2739=\"\",\"\",'Generated list'!C2739)","v":""},{"$f":"IF('Generated list'!D2739=\"\",\"\",'Generated list'!D2739)","v":""}]
[null,{"$f":"IF('Generated list'!B2740=\"\",\"\",'Generated list'!B2740)","v":""},{"$f":"IF('Generated list'!C2740=\"\",\"\",'Generated list'!C2740)","v":""},{"$f":"IF('Generated list'!D2740=\"\",\"\",'Generated list'!D2740)","v":""}]
[null,{"$f":"IF('Generated list'!B2741=\"\",\"\",'Generated list'!B2741)","v":""},{"$f":"IF('Generated list'!C2741=\"\",\"\",'Generated list'!C2741)","v":""},{"$f":"IF('Generated list'!D2741=\"\",\"\",'Generated list'!D2741)","v":""}]
[null,{"$f":"IF('Generated list'!B2742=\"\",\"\",'Generated list'!B2742)","v":""},{"$f":"IF('Generated list'!C2742=\"\",\"\",'Generated list'!C2742)","v":""},{"$f":"IF('Generated list'!D2742=\"\",\"\",'Generated list'!D2742)","v":""}]
[null,{"$f":"IF('Generated list'!B2743=\"\",\"\",'Generated list'!B2743)","v":""},{"$f":"IF('Generated list'!C2743=\"\",\"\",'Generated list'!C2743)","v":""},{"$f":"IF('Generated list'!D2743=\"\",\"\",'Generated list'!D2743)","v":""}]
[null,{"$f":"IF('Generated list'!B2744=\"\",\"\",'Generated list'!B2744)","v":""},{"$f":"IF('Generated list'!C2744=\"\",\"\",'Generated list'!C2744)","v":""},{"$f":"IF('Generated list'!D2744=\"\",\"\",'Generated list'!D2744)","v":""}]
[null,{"$f":"IF('Generated list'!B2745=\"\",\"\",'Generated list'!B2745)","v":""},{"$f":"IF('Generated list'!C2745=\"\",\"\",'Generated list'!C2745)","v":""},{"$f":"IF('Generated list'!D2745=\"\",\"\",'Generated list'!D2745)","v":""}]
[null,{"$f":"IF('Generated list'!B2746=\"\",\"\",'Generated list'!B2746)","v":""},{"$f":"IF('Generated list'!C2746=\"\",\"\",'Generated list'!C2746)","v":""},{"$f":"IF('Generated list'!D2746=\"\",\"\",'Generated list'!D2746)","v":""}]
[null,{"$f":"IF('Generated list'!B2747=\"\",\"\",'Generated list'!B2747)","v":""},{"$f":"IF('Generated list'!C2747=\"\",\"\",'Generated list'!C2747)","v":""},{"$f":"IF('Generated list'!D2747=\"\",\"\",'Generated list'!D2747)","v":""}]
[null,{"$f":"IF('Generated list'!B2748=\"\",\"\",'Generated list'!B2748)","v":""},{"$f":"IF('Generated list'!C2748=\"\",\"\",'Generated list'!C2748)","v":""},{"$f":"IF('Generated list'!D2748=\"\",\"\",'Generated list'!D2748)","v":""}]
[null,{"$f":"IF('Generated list'!B2749=\"\",\"\",'Generated list'!B2749)","v":""},{"$f":"IF('Generated list'!C2749=\"\",\"\",'Generated list'!C2749)","v":""},{"$f":"IF('Generated list'!D2749=\"\",\"\",'Generated list'!D2749)","v":""}]
[null,{"$f":"IF('Generated list'!B2750=\"\",\"\",'Generated list'!B2750)","v":""},{"$f":"IF('Generated list'!C2750=\"\",\"\",'Generated list'!C2750)","v":""},{"$f":"IF('Generated list'!D2750=\"\",\"\",'Generated list'!D2750)","v":""}]
[null,{"$f":"IF('Generated list'!B2751=\"\",\"\",'Generated list'!B2751)","v":""},{"$f":"IF('Generated list'!C2751=\"\",\"\",'Generated list'!C2751)","v":""},{"$f":"IF('Generated list'!D2751=\"\",\"\",'Generated list'!D2751)","v":""}]
[null,{"$f":"IF('Generated list'!B2752=\"\",\"\",'Generated list'!B2752)","v":""},{"$f":"IF('Generated list'!C2752=\"\",\"\",'Generated list'!C2752)","v":""},{"$f":"IF('Generated list'!D2752=\"\",\"\",'Generated list'!D2752)","v":""}]
[null,{"$f":"IF('Generated list'!B2753=\"\",\"\",'Generated list'!B2753)","v":""},{"$f":"IF('Generated list'!C2753=\"\",\"\",'Generated list'!C2753)","v":""},{"$f":"IF('Generated list'!D2753=\"\",\"\",'Generated list'!D2753)","v":""}]
[null,{"$f":"IF('Generated list'!B2754=\"\",\"\",'Generated list'!B2754)","v":""},{"$f":"IF('Generated list'!C2754=\"\",\"\",'Generated list'!C2754)","v":""},{"$f":"IF('Generated list'!D2754=\"\",\"\",'Generated list'!D2754)","v":""}]
[null,{"$f":"IF('Generated list'!B2755=\"\",\"\",'Generated list'!B2755)","v":""},{"$f":"IF('Generated list'!C2755=\"\",\"\",'Generated list'!C2755)","v":""},{"$f":"IF('Generated list'!D2755=\"\",\"\",'Generated list'!D2755)","v":""}]
[null,{"$f":"IF('Generated list'!B2756=\"\",\"\",'Generated list'!B2756)","v":""},{"$f":"IF('Generated list'!C2756=\"\",\"\",'Generated list'!C2756)","v":""},{"$f":"IF('Generated list'!D2756=\"\",\"\",'Generated list'!D2756)","v":""}]
[null,{"$f":"IF('Generated list'!B2757=\"\",\"\",'Generated list'!B2757)","v":""},{"$f":"IF('Generated list'!C2757=\"\",\"\",'Generated list'!C2757)","v":""},{"$f":"IF('Generated list'!D2757=\"\",\"\",'Generated list'!D2757)","v":""}]
[null,{"$f":"IF('Generated list'!B2758=\"\",\"\",'Generated list'!B2758)","v":""},{"$f":"IF('Generated list'!C2758=\"\",\"\",'Generated list'!C2758)","v":""},{"$f":"IF('Generated list'!D2758=\"\",\"\",'Generated list'!D2758)","v":""}]
[null,{"$f":"IF('Generated list'!B2759=\"\",\"\",'Generated list'!B2759)","v":""},{"$f":"IF('Generated list'!C2759=\"\",\"\",'Generated list'!C2759)","v":""},{"$f":"IF('Generated list'!D2759=\"\",\"\",'Generated list'!D2759)","v":""}]
[null,{"$f":"IF('Generated list'!B2760=\"\",\"\",'Generated list'!B2760)","v":""},{"$f":"IF('Generated list'!C2760=\"\",\"\",'Generated list'!C2760)","v":""},{"$f":"IF('Generated list'!D2760=\"\",\"\",'Generated list'!D2760)","v":""}]
[null,{"$f":"IF('Generated list'!B2761=\"\",\"\",'Generated list'!B2761)","v":""},{"$f":"IF('Generated list'!C2761=\"\",\"\",'Generated list'!C2761)","v":""},{"$f":"IF('Generated list'!D2761=\"\",\"\",'Generated list'!D2761)","v":""}]
[null,{"$f":"IF('Generated list'!B2762=\"\",\"\",'Generated list'!B2762)","v":""},{"$f":"IF('Generated list'!C2762=\"\",\"\",'Generated list'!C2762)","v":""},{"$f":"IF('Generated list'!D2762=\"\",\"\",'Generated list'!D2762)","v":""}]
[null,{"$f":"IF('Generated list'!B2763=\"\",\"\",'Generated list'!B2763)","v":""},{"$f":"IF('Generated list'!C2763=\"\",\"\",'Generated list'!C2763)","v":""},{"$f":"IF('Generated list'!D2763=\"\",\"\",'Generated list'!D2763)","v":""}]
[null,{"$f":"IF('Generated list'!B2764=\"\",\"\",'Generated list'!B2764)","v":""},{"$f":"IF('Generated list'!C2764=\"\",\"\",'Generated list'!C2764)","v":""},{"$f":"IF('Generated list'!D2764=\"\",\"\",'Generated list'!D2764)","v":""}]
[null,{"$f":"IF('Generated list'!B2765=\"\",\"\",'Generated list'!B2765)","v":""},{"$f":"IF('Generated list'!C2765=\"\",\"\",'Generated list'!C2765)","v":""},{"$f":"IF('Generated list'!D2765=\"\",\"\",'Generated list'!D2765)","v":""}]
[null,{"$f":"IF('Generated list'!B2766=\"\",\"\",'Generated list'!B2766)","v":""},{"$f":"IF('Generated list'!C2766=\"\",\"\",'Generated list'!C2766)","v":""},{"$f":"IF('Generated list'!D2766=\"\",\"\",'Generated list'!D2766)","v":""}]
[null,{"$f":"IF('Generated list'!B2767=\"\",\"\",'Generated list'!B2767)","v":""},{"$f":"IF('Generated list'!C2767=\"\",\"\",'Generated list'!C2767)","v":""},{"$f":"IF('Generated list'!D2767=\"\",\"\",'Generated list'!D2767)","v":""}]
[null,{"$f":"IF('Generated list'!B2768=\"\",\"\",'Generated list'!B2768)","v":""},{"$f":"IF('Generated list'!C2768=\"\",\"\",'Generated list'!C2768)","v":""},{"$f":"IF('Generated list'!D2768=\"\",\"\",'Generated list'!D2768)","v":""}]
[null,{"$f":"IF('Generated list'!B2769=\"\",\"\",'Generated list'!B2769)","v":""},{"$f":"IF('Generated list'!C2769=\"\",\"\",'Generated list'!C2769)","v":""},{"$f":"IF('Generated list'!D2769=\"\",\"\",'Generated list'!D2769)","v":""}]
[null,{"$f":"IF('Generated list'!B2770=\"\",\"\",'Generated list'!B2770)","v":""},{"$f":"IF('Generated list'!C2770=\"\",\"\",'Generated list'!C2770)","v":""},{"$f":"IF('Generated list'!D2770=\"\",\"\",'Generated list'!D2770)","v":""}]
[null,{"$f":"IF('Generated list'!B2771=\"\",\"\",'Generated list'!B2771)","v":""},{"$f":"IF('Generated list'!C2771=\"\",\"\",'Generated list'!C2771)","v":""},{"$f":"IF('Generated list'!D2771=\"\",\"\",'Generated list'!D2771)","v":""}]
[null,{"$f":"IF('Generated list'!B2772=\"\",\"\",'Generated list'!B2772)","v":""},{"$f":"IF('Generated list'!C2772=\"\",\"\",'Generated list'!C2772)","v":""},{"$f":"IF('Generated list'!D2772=\"\",\"\",'Generated list'!D2772)","v":""}]
[null,{"$f":"IF('Generated list'!B2773=\"\",\"\",'Generated list'!B2773)","v":""},{"$f":"IF('Generated list'!C2773=\"\",\"\",'Generated list'!C2773)","v":""},{"$f":"IF('Generated list'!D2773=\"\",\"\",'Generated list'!D2773)","v":""}]
[null,{"$f":"IF('Generated list'!B2774=\"\",\"\",'Generated list'!B2774)","v":""},{"$f":"IF('Generated list'!C2774=\"\",\"\",'Generated list'!C2774)","v":""},{"$f":"IF('Generated list'!D2774=\"\",\"\",'Generated list'!D2774)","v":""}]
[null,{"$f":"IF('Generated list'!B2775=\"\",\"\",'Generated list'!B2775)","v":""},{"$f":"IF('Generated list'!C2775=\"\",\"\",'Generated list'!C2775)","v":""},{"$f":"IF('Generated list'!D2775=\"\",\"\",'Generated list'!D2775)","v":""}]
[null,{"$f":"IF('Generated list'!B2776=\"\",\"\",'Generated list'!B2776)","v":""},{"$f":"IF('Generated list'!C2776=\"\",\"\",'Generated list'!C2776)","v":""},{"$f":"IF('Generated list'!D2776=\"\",\"\",'Generated list'!D2776)","v":""}]
[null,{"$f":"IF('Generated list'!B2777=\"\",\"\",'Generated list'!B2777)","v":""},{"$f":"IF('Generated list'!C2777=\"\",\"\",'Generated list'!C2777)","v":""},{"$f":"IF('Generated list'!D2777=\"\",\"\",'Generated list'!D2777)","v":""}]
[null,{"$f":"IF('Generated list'!B2778=\"\",\"\",'Generated list'!B2778)","v":""},{"$f":"IF('Generated list'!C2778=\"\",\"\",'Generated list'!C2778)","v":""},{"$f":"IF('Generated list'!D2778=\"\",\"\",'Generated list'!D2778)","v":""}]
[null,{"$f":"IF('Generated list'!B2779=\"\",\"\",'Generated list'!B2779)","v":""},{"$f":"IF('Generated list'!C2779=\"\",\"\",'Generated list'!C2779)","v":""},{"$f":"IF('Generated list'!D2779=\"\",\"\",'Generated list'!D2779)","v":""}]
[null,{"$f":"IF('Generated list'!B2780=\"\",\"\",'Generated list'!B2780)","v":""},{"$f":"IF('Generated list'!C2780=\"\",\"\",'Generated list'!C2780)","v":""},{"$f":"IF('Generated list'!D2780=\"\",\"\",'Generated list'!D2780)","v":""}]
[null,{"$f":"IF('Generated list'!B2781=\"\",\"\",'Generated list'!B2781)","v":""},{"$f":"IF('Generated list'!C2781=\"\",\"\",'Generated list'!C2781)","v":""},{"$f":"IF('Generated list'!D2781=\"\",\"\",'Generated list'!D2781)","v":""}]
[null,{"$f":"IF('Generated list'!B2782=\"\",\"\",'Generated list'!B2782)","v":""},{"$f":"IF('Generated list'!C2782=\"\",\"\",'Generated list'!C2782)","v":""},{"$f":"IF('Generated list'!D2782=\"\",\"\",'Generated list'!D2782)","v":""}]
[null,{"$f":"IF('Generated list'!B2783=\"\",\"\",'Generated list'!B2783)","v":""},{"$f":"IF('Generated list'!C2783=\"\",\"\",'Generated list'!C2783)","v":""},{"$f":"IF('Generated list'!D2783=\"\",\"\",'Generated list'!D2783)","v":""}]
[null,{"$f":"IF('Generated list'!B2784=\"\",\"\",'Generated list'!B2784)","v":""},{"$f":"IF('Generated list'!C2784=\"\",\"\",'Generated list'!C2784)","v":""},{"$f":"IF('Generated list'!D2784=\"\",\"\",'Generated list'!D2784)","v":""}]
[null,{"$f":"IF('Generated list'!B2785=\"\",\"\",'Generated list'!B2785)","v":""},{"$f":"IF('Generated list'!C2785=\"\",\"\",'Generated list'!C2785)","v":""},{"$f":"IF('Generated list'!D2785=\"\",\"\",'Generated list'!D2785)","v":""}]
[null,{"$f":"IF('Generated list'!B2786=\"\",\"\",'Generated list'!B2786)","v":""},{"$f":"IF('Generated list'!C2786=\"\",\"\",'Generated list'!C2786)","v":""},{"$f":"IF('Generated list'!D2786=\"\",\"\",'Generated list'!D2786)","v":""}]
[null,{"$f":"IF('Generated list'!B2787=\"\",\"\",'Generated list'!B2787)","v":""},{"$f":"IF('Generated list'!C2787=\"\",\"\",'Generated list'!C2787)","v":""},{"$f":"IF('Generated list'!D2787=\"\",\"\",'Generated list'!D2787)","v":""}]
[null,{"$f":"IF('Generated list'!B2788=\"\",\"\",'Generated list'!B2788)","v":""},{"$f":"IF('Generated list'!C2788=\"\",\"\",'Generated list'!C2788)","v":""},{"$f":"IF('Generated list'!D2788=\"\",\"\",'Generated list'!D2788)","v":""}]
[null,{"$f":"IF('Generated list'!B2789=\"\",\"\",'Generated list'!B2789)","v":""},{"$f":"IF('Generated list'!C2789=\"\",\"\",'Generated list'!C2789)","v":""},{"$f":"IF('Generated list'!D2789=\"\",\"\",'Generated list'!D2789)","v":""}]
[null,{"$f":"IF('Generated list'!B2790=\"\",\"\",'Generated list'!B2790)","v":""},{"$f":"IF('Generated list'!C2790=\"\",\"\",'Generated list'!C2790)","v":""},{"$f":"IF('Generated list'!D2790=\"\",\"\",'Generated list'!D2790)","v":""}]
[null,{"$f":"IF('Generated list'!B2791=\"\",\"\",'Generated list'!B2791)","v":""},{"$f":"IF('Generated list'!C2791=\"\",\"\",'Generated list'!C2791)","v":""},{"$f":"IF('Generated list'!D2791=\"\",\"\",'Generated list'!D2791)","v":""}]
[null,{"$f":"IF('Generated list'!B2792=\"\",\"\",'Generated list'!B2792)","v":""},{"$f":"IF('Generated list'!C2792=\"\",\"\",'Generated list'!C2792)","v":""},{"$f":"IF('Generated list'!D2792=\"\",\"\",'Generated list'!D2792)","v":""}]
[null,{"$f":"IF('Generated list'!B2793=\"\",\"\",'Generated list'!B2793)","v":""},{"$f":"IF('Generated list'!C2793=\"\",\"\",'Generated list'!C2793)","v":""},{"$f":"IF('Generated list'!D2793=\"\",\"\",'Generated list'!D2793)","v":""}]
[null,{"$f":"IF('Generated list'!B2794=\"\",\"\",'Generated list'!B2794)","v":""},{"$f":"IF('Generated list'!C2794=\"\",\"\",'Generated list'!C2794)","v":""},{"$f":"IF('Generated list'!D2794=\"\",\"\",'Generated list'!D2794)","v":""}]
[null,{"$f":"IF('Generated list'!B2795=\"\",\"\",'Generated list'!B2795)","v":""},{"$f":"IF('Generated list'!C2795=\"\",\"\",'Generated list'!C2795)","v":""},{"$f":"IF('Generated list'!D2795=\"\",\"\",'Generated list'!D2795)","v":""}]
[null,{"$f":"IF('Generated list'!B2796=\"\",\"\",'Generated list'!B2796)","v":""},{"$f":"IF('Generated list'!C2796=\"\",\"\",'Generated list'!C2796)","v":""},{"$f":"IF('Generated list'!D2796=\"\",\"\",'Generated list'!D2796)","v":""}]
[null,{"$f":"IF('Generated list'!B2797=\"\",\"\",'Generated list'!B2797)","v":""},{"$f":"IF('Generated list'!C2797=\"\",\"\",'Generated list'!C2797)","v":""},{"$f":"IF('Generated list'!D2797=\"\",\"\",'Generated list'!D2797)","v":""}]
[null,{"$f":"IF('Generated list'!B2798=\"\",\"\",'Generated list'!B2798)","v":""},{"$f":"IF('Generated list'!C2798=\"\",\"\",'Generated list'!C2798)","v":""},{"$f":"IF('Generated list'!D2798=\"\",\"\",'Generated list'!D2798)","v":""}]
[null,{"$f":"IF('Generated list'!B2799=\"\",\"\",'Generated list'!B2799)","v":""},{"$f":"IF('Generated list'!C2799=\"\",\"\",'Generated list'!C2799)","v":""},{"$f":"IF('Generated list'!D2799=\"\",\"\",'Generated list'!D2799)","v":""}]
[null,{"$f":"IF('Generated list'!B2800=\"\",\"\",'Generated list'!B2800)","v":""},{"$f":"IF('Generated list'!C2800=\"\",\"\",'Generated list'!C2800)","v":""},{"$f":"IF('Generated list'!D2800=\"\",\"\",'Generated list'!D2800)","v":""}]
[null,{"$f":"IF('Generated list'!B2801=\"\",\"\",'Generated list'!B2801)","v":""},{"$f":"IF('Generated list'!C2801=\"\",\"\",'Generated list'!C2801)","v":""},{"$f":"IF('Generated list'!D2801=\"\",\"\",'Generated list'!D2801)","v":""}]
[null,{"$f":"IF('Generated list'!B2802=\"\",\"\",'Generated list'!B2802)","v":""},{"$f":"IF('Generated list'!C2802=\"\",\"\",'Generated list'!C2802)","v":""},{"$f":"IF('Generated list'!D2802=\"\",\"\",'Generated list'!D2802)","v":""}]
[null,{"$f":"IF('Generated list'!B2803=\"\",\"\",'Generated list'!B2803)","v":""},{"$f":"IF('Generated list'!C2803=\"\",\"\",'Generated list'!C2803)","v":""},{"$f":"IF('Generated list'!D2803=\"\",\"\",'Generated list'!D2803)","v":""}]
[null,{"$f":"IF('Generated list'!B2804=\"\",\"\",'Generated list'!B2804)","v":""},{"$f":"IF('Generated list'!C2804=\"\",\"\",'Generated list'!C2804)","v":""},{"$f":"IF('Generated list'!D2804=\"\",\"\",'Generated list'!D2804)","v":""}]
[null,{"$f":"IF('Generated list'!B2805=\"\",\"\",'Generated list'!B2805)","v":""},{"$f":"IF('Generated list'!C2805=\"\",\"\",'Generated list'!C2805)","v":""},{"$f":"IF('Generated list'!D2805=\"\",\"\",'Generated list'!D2805)","v":""}]
[null,{"$f":"IF('Generated list'!B2806=\"\",\"\",'Generated list'!B2806)","v":""},{"$f":"IF('Generated list'!C2806=\"\",\"\",'Generated list'!C2806)","v":""},{"$f":"IF('Generated list'!D2806=\"\",\"\",'Generated list'!D2806)","v":""}]
[null,{"$f":"IF('Generated list'!B2807=\"\",\"\",'Generated list'!B2807)","v":""},{"$f":"IF('Generated list'!C2807=\"\",\"\",'Generated list'!C2807)","v":""},{"$f":"IF('Generated list'!D2807=\"\",\"\",'Generated list'!D2807)","v":""}]
[null,{"$f":"IF('Generated list'!B2808=\"\",\"\",'Generated list'!B2808)","v":""},{"$f":"IF('Generated list'!C2808=\"\",\"\",'Generated list'!C2808)","v":""},{"$f":"IF('Generated list'!D2808=\"\",\"\",'Generated list'!D2808)","v":""}]
[null,{"$f":"IF('Generated list'!B2809=\"\",\"\",'Generated list'!B2809)","v":""},{"$f":"IF('Generated list'!C2809=\"\",\"\",'Generated list'!C2809)","v":""},{"$f":"IF('Generated list'!D2809=\"\",\"\",'Generated list'!D2809)","v":""}]
[null,{"$f":"IF('Generated list'!B2810=\"\",\"\",'Generated list'!B2810)","v":""},{"$f":"IF('Generated list'!C2810=\"\",\"\",'Generated list'!C2810)","v":""},{"$f":"IF('Generated list'!D2810=\"\",\"\",'Generated list'!D2810)","v":""}]
[null,{"$f":"IF('Generated list'!B2811=\"\",\"\",'Generated list'!B2811)","v":""},{"$f":"IF('Generated list'!C2811=\"\",\"\",'Generated list'!C2811)","v":""},{"$f":"IF('Generated list'!D2811=\"\",\"\",'Generated list'!D2811)","v":""}]
[null,{"$f":"IF('Generated list'!B2812=\"\",\"\",'Generated list'!B2812)","v":""},{"$f":"IF('Generated list'!C2812=\"\",\"\",'Generated list'!C2812)","v":""},{"$f":"IF('Generated list'!D2812=\"\",\"\",'Generated list'!D2812)","v":""}]
[null,{"$f":"IF('Generated list'!B2813=\"\",\"\",'Generated list'!B2813)","v":""},{"$f":"IF('Generated list'!C2813=\"\",\"\",'Generated list'!C2813)","v":""},{"$f":"IF('Generated list'!D2813=\"\",\"\",'Generated list'!D2813)","v":""}]
[null,{"$f":"IF('Generated list'!B2814=\"\",\"\",'Generated list'!B2814)","v":""},{"$f":"IF('Generated list'!C2814=\"\",\"\",'Generated list'!C2814)","v":""},{"$f":"IF('Generated list'!D2814=\"\",\"\",'Generated list'!D2814)","v":""}]
[null,{"$f":"IF('Generated list'!B2815=\"\",\"\",'Generated list'!B2815)","v":""},{"$f":"IF('Generated list'!C2815=\"\",\"\",'Generated list'!C2815)","v":""},{"$f":"IF('Generated list'!D2815=\"\",\"\",'Generated list'!D2815)","v":""}]
[null,{"$f":"IF('Generated list'!B2816=\"\",\"\",'Generated list'!B2816)","v":""},{"$f":"IF('Generated list'!C2816=\"\",\"\",'Generated list'!C2816)","v":""},{"$f":"IF('Generated list'!D2816=\"\",\"\",'Generated list'!D2816)","v":""}]
[null,{"$f":"IF('Generated list'!B2817=\"\",\"\",'Generated list'!B2817)","v":""},{"$f":"IF('Generated list'!C2817=\"\",\"\",'Generated list'!C2817)","v":""},{"$f":"IF('Generated list'!D2817=\"\",\"\",'Generated list'!D2817)","v":""}]
[null,{"$f":"IF('Generated list'!B2818=\"\",\"\",'Generated list'!B2818)","v":""},{"$f":"IF('Generated list'!C2818=\"\",\"\",'Generated list'!C2818)","v":""},{"$f":"IF('Generated list'!D2818=\"\",\"\",'Generated list'!D2818)","v":""}]
[null,{"$f":"IF('Generated list'!B2819=\"\",\"\",'Generated list'!B2819)","v":""},{"$f":"IF('Generated list'!C2819=\"\",\"\",'Generated list'!C2819)","v":""},{"$f":"IF('Generated list'!D2819=\"\",\"\",'Generated list'!D2819)","v":""}]
[null,{"$f":"IF('Generated list'!B2820=\"\",\"\",'Generated list'!B2820)","v":""},{"$f":"IF('Generated list'!C2820=\"\",\"\",'Generated list'!C2820)","v":""},{"$f":"IF('Generated list'!D2820=\"\",\"\",'Generated list'!D2820)","v":""}]
[null,{"$f":"IF('Generated list'!B2821=\"\",\"\",'Generated list'!B2821)","v":""},{"$f":"IF('Generated list'!C2821=\"\",\"\",'Generated list'!C2821)","v":""},{"$f":"IF('Generated list'!D2821=\"\",\"\",'Generated list'!D2821)","v":""}]
[null,{"$f":"IF('Generated list'!B2822=\"\",\"\",'Generated list'!B2822)","v":""},{"$f":"IF('Generated list'!C2822=\"\",\"\",'Generated list'!C2822)","v":""},{"$f":"IF('Generated list'!D2822=\"\",\"\",'Generated list'!D2822)","v":""}]
[null,{"$f":"IF('Generated list'!B2823=\"\",\"\",'Generated list'!B2823)","v":""},{"$f":"IF('Generated list'!C2823=\"\",\"\",'Generated list'!C2823)","v":""},{"$f":"IF('Generated list'!D2823=\"\",\"\",'Generated list'!D2823)","v":""}]
[null,{"$f":"IF('Generated list'!B2824=\"\",\"\",'Generated list'!B2824)","v":""},{"$f":"IF('Generated list'!C2824=\"\",\"\",'Generated list'!C2824)","v":""},{"$f":"IF('Generated list'!D2824=\"\",\"\",'Generated list'!D2824)","v":""}]
[null,{"$f":"IF('Generated list'!B2825=\"\",\"\",'Generated list'!B2825)","v":""},{"$f":"IF('Generated list'!C2825=\"\",\"\",'Generated list'!C2825)","v":""},{"$f":"IF('Generated list'!D2825=\"\",\"\",'Generated list'!D2825)","v":""}]
[null,{"$f":"IF('Generated list'!B2826=\"\",\"\",'Generated list'!B2826)","v":""},{"$f":"IF('Generated list'!C2826=\"\",\"\",'Generated list'!C2826)","v":""},{"$f":"IF('Generated list'!D2826=\"\",\"\",'Generated list'!D2826)","v":""}]
[null,{"$f":"IF('Generated list'!B2827=\"\",\"\",'Generated list'!B2827)","v":""},{"$f":"IF('Generated list'!C2827=\"\",\"\",'Generated list'!C2827)","v":""},{"$f":"IF('Generated list'!D2827=\"\",\"\",'Generated list'!D2827)","v":""}]
[null,{"$f":"IF('Generated list'!B2828=\"\",\"\",'Generated list'!B2828)","v":""},{"$f":"IF('Generated list'!C2828=\"\",\"\",'Generated list'!C2828)","v":""},{"$f":"IF('Generated list'!D2828=\"\",\"\",'Generated list'!D2828)","v":""}]
[null,{"$f":"IF('Generated list'!B2829=\"\",\"\",'Generated list'!B2829)","v":""},{"$f":"IF('Generated list'!C2829=\"\",\"\",'Generated list'!C2829)","v":""},{"$f":"IF('Generated list'!D2829=\"\",\"\",'Generated list'!D2829)","v":""}]
[null,{"$f":"IF('Generated list'!B2830=\"\",\"\",'Generated list'!B2830)","v":""},{"$f":"IF('Generated list'!C2830=\"\",\"\",'Generated list'!C2830)","v":""},{"$f":"IF('Generated list'!D2830=\"\",\"\",'Generated list'!D2830)","v":""}]
[null,{"$f":"IF('Generated list'!B2831=\"\",\"\",'Generated list'!B2831)","v":""},{"$f":"IF('Generated list'!C2831=\"\",\"\",'Generated list'!C2831)","v":""},{"$f":"IF('Generated list'!D2831=\"\",\"\",'Generated list'!D2831)","v":""}]
[null,{"$f":"IF('Generated list'!B2832=\"\",\"\",'Generated list'!B2832)","v":""},{"$f":"IF('Generated list'!C2832=\"\",\"\",'Generated list'!C2832)","v":""},{"$f":"IF('Generated list'!D2832=\"\",\"\",'Generated list'!D2832)","v":""}]
[null,{"$f":"IF('Generated list'!B2833=\"\",\"\",'Generated list'!B2833)","v":""},{"$f":"IF('Generated list'!C2833=\"\",\"\",'Generated list'!C2833)","v":""},{"$f":"IF('Generated list'!D2833=\"\",\"\",'Generated list'!D2833)","v":""}]
[null,{"$f":"IF('Generated list'!B2834=\"\",\"\",'Generated list'!B2834)","v":""},{"$f":"IF('Generated list'!C2834=\"\",\"\",'Generated list'!C2834)","v":""},{"$f":"IF('Generated list'!D2834=\"\",\"\",'Generated list'!D2834)","v":""}]
[null,{"$f":"IF('Generated list'!B2835=\"\",\"\",'Generated list'!B2835)","v":""},{"$f":"IF('Generated list'!C2835=\"\",\"\",'Generated list'!C2835)","v":""},{"$f":"IF('Generated list'!D2835=\"\",\"\",'Generated list'!D2835)","v":""}]
[null,{"$f":"IF('Generated list'!B2836=\"\",\"\",'Generated list'!B2836)","v":""},{"$f":"IF('Generated list'!C2836=\"\",\"\",'Generated list'!C2836)","v":""},{"$f":"IF('Generated list'!D2836=\"\",\"\",'Generated list'!D2836)","v":""}]
[null,{"$f":"IF('Generated list'!B2837=\"\",\"\",'Generated list'!B2837)","v":""},{"$f":"IF('Generated list'!C2837=\"\",\"\",'Generated list'!C2837)","v":""},{"$f":"IF('Generated list'!D2837=\"\",\"\",'Generated list'!D2837)","v":""}]
[null,{"$f":"IF('Generated list'!B2838=\"\",\"\",'Generated list'!B2838)","v":""},{"$f":"IF('Generated list'!C2838=\"\",\"\",'Generated list'!C2838)","v":""},{"$f":"IF('Generated list'!D2838=\"\",\"\",'Generated list'!D2838)","v":""}]
[null,{"$f":"IF('Generated list'!B2839=\"\",\"\",'Generated list'!B2839)","v":""},{"$f":"IF('Generated list'!C2839=\"\",\"\",'Generated list'!C2839)","v":""},{"$f":"IF('Generated list'!D2839=\"\",\"\",'Generated list'!D2839)","v":""}]
[null,{"$f":"IF('Generated list'!B2840=\"\",\"\",'Generated list'!B2840)","v":""},{"$f":"IF('Generated list'!C2840=\"\",\"\",'Generated list'!C2840)","v":""},{"$f":"IF('Generated list'!D2840=\"\",\"\",'Generated list'!D2840)","v":""}]
[null,{"$f":"IF('Generated list'!B2841=\"\",\"\",'Generated list'!B2841)","v":""},{"$f":"IF('Generated list'!C2841=\"\",\"\",'Generated list'!C2841)","v":""},{"$f":"IF('Generated list'!D2841=\"\",\"\",'Generated list'!D2841)","v":""}]
[null,{"$f":"IF('Generated list'!B2842=\"\",\"\",'Generated list'!B2842)","v":""},{"$f":"IF('Generated list'!C2842=\"\",\"\",'Generated list'!C2842)","v":""},{"$f":"IF('Generated list'!D2842=\"\",\"\",'Generated list'!D2842)","v":""}]
[null,{"$f":"IF('Generated list'!B2843=\"\",\"\",'Generated list'!B2843)","v":""},{"$f":"IF('Generated list'!C2843=\"\",\"\",'Generated list'!C2843)","v":""},{"$f":"IF('Generated list'!D2843=\"\",\"\",'Generated list'!D2843)","v":""}]
[null,{"$f":"IF('Generated list'!B2844=\"\",\"\",'Generated list'!B2844)","v":""},{"$f":"IF('Generated list'!C2844=\"\",\"\",'Generated list'!C2844)","v":""},{"$f":"IF('Generated list'!D2844=\"\",\"\",'Generated list'!D2844)","v":""}]
[null,{"$f":"IF('Generated list'!B2845=\"\",\"\",'Generated list'!B2845)","v":""},{"$f":"IF('Generated list'!C2845=\"\",\"\",'Generated list'!C2845)","v":""},{"$f":"IF('Generated list'!D2845=\"\",\"\",'Generated list'!D2845)","v":""}]
[null,{"$f":"IF('Generated list'!B2846=\"\",\"\",'Generated list'!B2846)","v":""},{"$f":"IF('Generated list'!C2846=\"\",\"\",'Generated list'!C2846)","v":""},{"$f":"IF('Generated list'!D2846=\"\",\"\",'Generated list'!D2846)","v":""}]
[null,{"$f":"IF('Generated list'!B2847=\"\",\"\",'Generated list'!B2847)","v":""},{"$f":"IF('Generated list'!C2847=\"\",\"\",'Generated list'!C2847)","v":""},{"$f":"IF('Generated list'!D2847=\"\",\"\",'Generated list'!D2847)","v":""}]
[null,{"$f":"IF('Generated list'!B2848=\"\",\"\",'Generated list'!B2848)","v":""},{"$f":"IF('Generated list'!C2848=\"\",\"\",'Generated list'!C2848)","v":""},{"$f":"IF('Generated list'!D2848=\"\",\"\",'Generated list'!D2848)","v":""}]
[null,{"$f":"IF('Generated list'!B2849=\"\",\"\",'Generated list'!B2849)","v":""},{"$f":"IF('Generated list'!C2849=\"\",\"\",'Generated list'!C2849)","v":""},{"$f":"IF('Generated list'!D2849=\"\",\"\",'Generated list'!D2849)","v":""}]
[null,{"$f":"IF('Generated list'!B2850=\"\",\"\",'Generated list'!B2850)","v":""},{"$f":"IF('Generated list'!C2850=\"\",\"\",'Generated list'!C2850)","v":""},{"$f":"IF('Generated list'!D2850=\"\",\"\",'Generated list'!D2850)","v":""}]
[null,{"$f":"IF('Generated list'!B2851=\"\",\"\",'Generated list'!B2851)","v":""},{"$f":"IF('Generated list'!C2851=\"\",\"\",'Generated list'!C2851)","v":""},{"$f":"IF('Generated list'!D2851=\"\",\"\",'Generated list'!D2851)","v":""}]
[null,{"$f":"IF('Generated list'!B2852=\"\",\"\",'Generated list'!B2852)","v":""},{"$f":"IF('Generated list'!C2852=\"\",\"\",'Generated list'!C2852)","v":""},{"$f":"IF('Generated list'!D2852=\"\",\"\",'Generated list'!D2852)","v":""}]
[null,{"$f":"IF('Generated list'!B2853=\"\",\"\",'Generated list'!B2853)","v":""},{"$f":"IF('Generated list'!C2853=\"\",\"\",'Generated list'!C2853)","v":""},{"$f":"IF('Generated list'!D2853=\"\",\"\",'Generated list'!D2853)","v":""}]
[null,{"$f":"IF('Generated list'!B2854=\"\",\"\",'Generated list'!B2854)","v":""},{"$f":"IF('Generated list'!C2854=\"\",\"\",'Generated list'!C2854)","v":""},{"$f":"IF('Generated list'!D2854=\"\",\"\",'Generated list'!D2854)","v":""}]
[null,{"$f":"IF('Generated list'!B2855=\"\",\"\",'Generated list'!B2855)","v":""},{"$f":"IF('Generated list'!C2855=\"\",\"\",'Generated list'!C2855)","v":""},{"$f":"IF('Generated list'!D2855=\"\",\"\",'Generated list'!D2855)","v":""}]
[null,{"$f":"IF('Generated list'!B2856=\"\",\"\",'Generated list'!B2856)","v":""},{"$f":"IF('Generated list'!C2856=\"\",\"\",'Generated list'!C2856)","v":""},{"$f":"IF('Generated list'!D2856=\"\",\"\",'Generated list'!D2856)","v":""}]
[null,{"$f":"IF('Generated list'!B2857=\"\",\"\",'Generated list'!B2857)","v":""},{"$f":"IF('Generated list'!C2857=\"\",\"\",'Generated list'!C2857)","v":""},{"$f":"IF('Generated list'!D2857=\"\",\"\",'Generated list'!D2857)","v":""}]
[null,{"$f":"IF('Generated list'!B2858=\"\",\"\",'Generated list'!B2858)","v":""},{"$f":"IF('Generated list'!C2858=\"\",\"\",'Generated list'!C2858)","v":""},{"$f":"IF('Generated list'!D2858=\"\",\"\",'Generated list'!D2858)","v":""}]
[null,{"$f":"IF('Generated list'!B2859=\"\",\"\",'Generated list'!B2859)","v":""},{"$f":"IF('Generated list'!C2859=\"\",\"\",'Generated list'!C2859)","v":""},{"$f":"IF('Generated list'!D2859=\"\",\"\",'Generated list'!D2859)","v":""}]
[null,{"$f":"IF('Generated list'!B2860=\"\",\"\",'Generated list'!B2860)","v":""},{"$f":"IF('Generated list'!C2860=\"\",\"\",'Generated list'!C2860)","v":""},{"$f":"IF('Generated list'!D2860=\"\",\"\",'Generated list'!D2860)","v":""}]
[null,{"$f":"IF('Generated list'!B2861=\"\",\"\",'Generated list'!B2861)","v":""},{"$f":"IF('Generated list'!C2861=\"\",\"\",'Generated list'!C2861)","v":""},{"$f":"IF('Generated list'!D2861=\"\",\"\",'Generated list'!D2861)","v":""}]
[null,{"$f":"IF('Generated list'!B2862=\"\",\"\",'Generated list'!B2862)","v":""},{"$f":"IF('Generated list'!C2862=\"\",\"\",'Generated list'!C2862)","v":""},{"$f":"IF('Generated list'!D2862=\"\",\"\",'Generated list'!D2862)","v":""}]
[null,{"$f":"IF('Generated list'!B2863=\"\",\"\",'Generated list'!B2863)","v":""},{"$f":"IF('Generated list'!C2863=\"\",\"\",'Generated list'!C2863)","v":""},{"$f":"IF('Generated list'!D2863=\"\",\"\",'Generated list'!D2863)","v":""}]
[null,{"$f":"IF('Generated list'!B2864=\"\",\"\",'Generated list'!B2864)","v":""},{"$f":"IF('Generated list'!C2864=\"\",\"\",'Generated list'!C2864)","v":""},{"$f":"IF('Generated list'!D2864=\"\",\"\",'Generated list'!D2864)","v":""}]
[null,{"$f":"IF('Generated list'!B2865=\"\",\"\",'Generated list'!B2865)","v":""},{"$f":"IF('Generated list'!C2865=\"\",\"\",'Generated list'!C2865)","v":""},{"$f":"IF('Generated list'!D2865=\"\",\"\",'Generated list'!D2865)","v":""}]
[null,{"$f":"IF('Generated list'!B2866=\"\",\"\",'Generated list'!B2866)","v":""},{"$f":"IF('Generated list'!C2866=\"\",\"\",'Generated list'!C2866)","v":""},{"$f":"IF('Generated list'!D2866=\"\",\"\",'Generated list'!D2866)","v":""}]
[null,{"$f":"IF('Generated list'!B2867=\"\",\"\",'Generated list'!B2867)","v":""},{"$f":"IF('Generated list'!C2867=\"\",\"\",'Generated list'!C2867)","v":""},{"$f":"IF('Generated list'!D2867=\"\",\"\",'Generated list'!D2867)","v":""}]
[null,{"$f":"IF('Generated list'!B2868=\"\",\"\",'Generated list'!B2868)","v":""},{"$f":"IF('Generated list'!C2868=\"\",\"\",'Generated list'!C2868)","v":""},{"$f":"IF('Generated list'!D2868=\"\",\"\",'Generated list'!D2868)","v":""}]
[null,{"$f":"IF('Generated list'!B2869=\"\",\"\",'Generated list'!B2869)","v":""},{"$f":"IF('Generated list'!C2869=\"\",\"\",'Generated list'!C2869)","v":""},{"$f":"IF('Generated list'!D2869=\"\",\"\",'Generated list'!D2869)","v":""}]
[null,{"$f":"IF('Generated list'!B2870=\"\",\"\",'Generated list'!B2870)","v":""},{"$f":"IF('Generated list'!C2870=\"\",\"\",'Generated list'!C2870)","v":""},{"$f":"IF('Generated list'!D2870=\"\",\"\",'Generated list'!D2870)","v":""}]
[null,{"$f":"IF('Generated list'!B2871=\"\",\"\",'Generated list'!B2871)","v":""},{"$f":"IF('Generated list'!C2871=\"\",\"\",'Generated list'!C2871)","v":""},{"$f":"IF('Generated list'!D2871=\"\",\"\",'Generated list'!D2871)","v":""}]
[null,{"$f":"IF('Generated list'!B2872=\"\",\"\",'Generated list'!B2872)","v":""},{"$f":"IF('Generated list'!C2872=\"\",\"\",'Generated list'!C2872)","v":""},{"$f":"IF('Generated list'!D2872=\"\",\"\",'Generated list'!D2872)","v":""}]
[null,{"$f":"IF('Generated list'!B2873=\"\",\"\",'Generated list'!B2873)","v":""},{"$f":"IF('Generated list'!C2873=\"\",\"\",'Generated list'!C2873)","v":""},{"$f":"IF('Generated list'!D2873=\"\",\"\",'Generated list'!D2873)","v":""}]
[null,{"$f":"IF('Generated list'!B2874=\"\",\"\",'Generated list'!B2874)","v":""},{"$f":"IF('Generated list'!C2874=\"\",\"\",'Generated list'!C2874)","v":""},{"$f":"IF('Generated list'!D2874=\"\",\"\",'Generated list'!D2874)","v":""}]
[null,{"$f":"IF('Generated list'!B2875=\"\",\"\",'Generated list'!B2875)","v":""},{"$f":"IF('Generated list'!C2875=\"\",\"\",'Generated list'!C2875)","v":""},{"$f":"IF('Generated list'!D2875=\"\",\"\",'Generated list'!D2875)","v":""}]
[null,{"$f":"IF('Generated list'!B2876=\"\",\"\",'Generated list'!B2876)","v":""},{"$f":"IF('Generated list'!C2876=\"\",\"\",'Generated list'!C2876)","v":""},{"$f":"IF('Generated list'!D2876=\"\",\"\",'Generated list'!D2876)","v":""}]
[null,{"$f":"IF('Generated list'!B2877=\"\",\"\",'Generated list'!B2877)","v":""},{"$f":"IF('Generated list'!C2877=\"\",\"\",'Generated list'!C2877)","v":""},{"$f":"IF('Generated list'!D2877=\"\",\"\",'Generated list'!D2877)","v":""}]
[null,{"$f":"IF('Generated list'!B2878=\"\",\"\",'Generated list'!B2878)","v":""},{"$f":"IF('Generated list'!C2878=\"\",\"\",'Generated list'!C2878)","v":""},{"$f":"IF('Generated list'!D2878=\"\",\"\",'Generated list'!D2878)","v":""}]
[null,{"$f":"IF('Generated list'!B2879=\"\",\"\",'Generated list'!B2879)","v":""},{"$f":"IF('Generated list'!C2879=\"\",\"\",'Generated list'!C2879)","v":""},{"$f":"IF('Generated list'!D2879=\"\",\"\",'Generated list'!D2879)","v":""}]
[null,{"$f":"IF('Generated list'!B2880=\"\",\"\",'Generated list'!B2880)","v":""},{"$f":"IF('Generated list'!C2880=\"\",\"\",'Generated list'!C2880)","v":""},{"$f":"IF('Generated list'!D2880=\"\",\"\",'Generated list'!D2880)","v":""}]
[null,{"$f":"IF('Generated list'!B2881=\"\",\"\",'Generated list'!B2881)","v":""},{"$f":"IF('Generated list'!C2881=\"\",\"\",'Generated list'!C2881)","v":""},{"$f":"IF('Generated list'!D2881=\"\",\"\",'Generated list'!D2881)","v":""}]
[null,{"$f":"IF('Generated list'!B2882=\"\",\"\",'Generated list'!B2882)","v":""},{"$f":"IF('Generated list'!C2882=\"\",\"\",'Generated list'!C2882)","v":""},{"$f":"IF('Generated list'!D2882=\"\",\"\",'Generated list'!D2882)","v":""}]
[null,{"$f":"IF('Generated list'!B2883=\"\",\"\",'Generated list'!B2883)","v":""},{"$f":"IF('Generated list'!C2883=\"\",\"\",'Generated list'!C2883)","v":""},{"$f":"IF('Generated list'!D2883=\"\",\"\",'Generated list'!D2883)","v":""}]
[null,{"$f":"IF('Generated list'!B2884=\"\",\"\",'Generated list'!B2884)","v":""},{"$f":"IF('Generated list'!C2884=\"\",\"\",'Generated list'!C2884)","v":""},{"$f":"IF('Generated list'!D2884=\"\",\"\",'Generated list'!D2884)","v":""}]
[null,{"$f":"IF('Generated list'!B2885=\"\",\"\",'Generated list'!B2885)","v":""},{"$f":"IF('Generated list'!C2885=\"\",\"\",'Generated list'!C2885)","v":""},{"$f":"IF('Generated list'!D2885=\"\",\"\",'Generated list'!D2885)","v":""}]
[null,{"$f":"IF('Generated list'!B2886=\"\",\"\",'Generated list'!B2886)","v":""},{"$f":"IF('Generated list'!C2886=\"\",\"\",'Generated list'!C2886)","v":""},{"$f":"IF('Generated list'!D2886=\"\",\"\",'Generated list'!D2886)","v":""}]
[null,{"$f":"IF('Generated list'!B2887=\"\",\"\",'Generated list'!B2887)","v":""},{"$f":"IF('Generated list'!C2887=\"\",\"\",'Generated list'!C2887)","v":""},{"$f":"IF('Generated list'!D2887=\"\",\"\",'Generated list'!D2887)","v":""}]
[null,{"$f":"IF('Generated list'!B2888=\"\",\"\",'Generated list'!B2888)","v":""},{"$f":"IF('Generated list'!C2888=\"\",\"\",'Generated list'!C2888)","v":""},{"$f":"IF('Generated list'!D2888=\"\",\"\",'Generated list'!D2888)","v":""}]
[null,{"$f":"IF('Generated list'!B2889=\"\",\"\",'Generated list'!B2889)","v":""},{"$f":"IF('Generated list'!C2889=\"\",\"\",'Generated list'!C2889)","v":""},{"$f":"IF('Generated list'!D2889=\"\",\"\",'Generated list'!D2889)","v":""}]
[null,{"$f":"IF('Generated list'!B2890=\"\",\"\",'Generated list'!B2890)","v":""},{"$f":"IF('Generated list'!C2890=\"\",\"\",'Generated list'!C2890)","v":""},{"$f":"IF('Generated list'!D2890=\"\",\"\",'Generated list'!D2890)","v":""}]
[null,{"$f":"IF('Generated list'!B2891=\"\",\"\",'Generated list'!B2891)","v":""},{"$f":"IF('Generated list'!C2891=\"\",\"\",'Generated list'!C2891)","v":""},{"$f":"IF('Generated list'!D2891=\"\",\"\",'Generated list'!D2891)","v":""}]
[null,{"$f":"IF('Generated list'!B2892=\"\",\"\",'Generated list'!B2892)","v":""},{"$f":"IF('Generated list'!C2892=\"\",\"\",'Generated list'!C2892)","v":""},{"$f":"IF('Generated list'!D2892=\"\",\"\",'Generated list'!D2892)","v":""}]
[null,{"$f":"IF('Generated list'!B2893=\"\",\"\",'Generated list'!B2893)","v":""},{"$f":"IF('Generated list'!C2893=\"\",\"\",'Generated list'!C2893)","v":""},{"$f":"IF('Generated list'!D2893=\"\",\"\",'Generated list'!D2893)","v":""}]
[null,{"$f":"IF('Generated list'!B2894=\"\",\"\",'Generated list'!B2894)","v":""},{"$f":"IF('Generated list'!C2894=\"\",\"\",'Generated list'!C2894)","v":""},{"$f":"IF('Generated list'!D2894=\"\",\"\",'Generated list'!D2894)","v":""}]
[null,{"$f":"IF('Generated list'!B2895=\"\",\"\",'Generated list'!B2895)","v":""},{"$f":"IF('Generated list'!C2895=\"\",\"\",'Generated list'!C2895)","v":""},{"$f":"IF('Generated list'!D2895=\"\",\"\",'Generated list'!D2895)","v":""}]
[null,{"$f":"IF('Generated list'!B2896=\"\",\"\",'Generated list'!B2896)","v":""},{"$f":"IF('Generated list'!C2896=\"\",\"\",'Generated list'!C2896)","v":""},{"$f":"IF('Generated list'!D2896=\"\",\"\",'Generated list'!D2896)","v":""}]
[null,{"$f":"IF('Generated list'!B2897=\"\",\"\",'Generated list'!B2897)","v":""},{"$f":"IF('Generated list'!C2897=\"\",\"\",'Generated list'!C2897)","v":""},{"$f":"IF('Generated list'!D2897=\"\",\"\",'Generated list'!D2897)","v":""}]
[null,{"$f":"IF('Generated list'!B2898=\"\",\"\",'Generated list'!B2898)","v":""},{"$f":"IF('Generated list'!C2898=\"\",\"\",'Generated list'!C2898)","v":""},{"$f":"IF('Generated list'!D2898=\"\",\"\",'Generated list'!D2898)","v":""}]
[null,{"$f":"IF('Generated list'!B2899=\"\",\"\",'Generated list'!B2899)","v":""},{"$f":"IF('Generated list'!C2899=\"\",\"\",'Generated list'!C2899)","v":""},{"$f":"IF('Generated list'!D2899=\"\",\"\",'Generated list'!D2899)","v":""}]
[null,{"$f":"IF('Generated list'!B2900=\"\",\"\",'Generated list'!B2900)","v":""},{"$f":"IF('Generated list'!C2900=\"\",\"\",'Generated list'!C2900)","v":""},{"$f":"IF('Generated list'!D2900=\"\",\"\",'Generated list'!D2900)","v":""}]
[null,{"$f":"IF('Generated list'!B2901=\"\",\"\",'Generated list'!B2901)","v":""},{"$f":"IF('Generated list'!C2901=\"\",\"\",'Generated list'!C2901)","v":""},{"$f":"IF('Generated list'!D2901=\"\",\"\",'Generated list'!D2901)","v":""}]
[null,{"$f":"IF('Generated list'!B2902=\"\",\"\",'Generated list'!B2902)","v":""},{"$f":"IF('Generated list'!C2902=\"\",\"\",'Generated list'!C2902)","v":""},{"$f":"IF('Generated list'!D2902=\"\",\"\",'Generated list'!D2902)","v":""}]
[null,{"$f":"IF('Generated list'!B2903=\"\",\"\",'Generated list'!B2903)","v":""},{"$f":"IF('Generated list'!C2903=\"\",\"\",'Generated list'!C2903)","v":""},{"$f":"IF('Generated list'!D2903=\"\",\"\",'Generated list'!D2903)","v":""}]
[null,{"$f":"IF('Generated list'!B2904=\"\",\"\",'Generated list'!B2904)","v":""},{"$f":"IF('Generated list'!C2904=\"\",\"\",'Generated list'!C2904)","v":""},{"$f":"IF('Generated list'!D2904=\"\",\"\",'Generated list'!D2904)","v":""}]
[null,{"$f":"IF('Generated list'!B2905=\"\",\"\",'Generated list'!B2905)","v":""},{"$f":"IF('Generated list'!C2905=\"\",\"\",'Generated list'!C2905)","v":""},{"$f":"IF('Generated list'!D2905=\"\",\"\",'Generated list'!D2905)","v":""}]
[null,{"$f":"IF('Generated list'!B2906=\"\",\"\",'Generated list'!B2906)","v":""},{"$f":"IF('Generated list'!C2906=\"\",\"\",'Generated list'!C2906)","v":""},{"$f":"IF('Generated list'!D2906=\"\",\"\",'Generated list'!D2906)","v":""}]
[null,{"$f":"IF('Generated list'!B2907=\"\",\"\",'Generated list'!B2907)","v":""},{"$f":"IF('Generated list'!C2907=\"\",\"\",'Generated list'!C2907)","v":""},{"$f":"IF('Generated list'!D2907=\"\",\"\",'Generated list'!D2907)","v":""}]
[null,{"$f":"IF('Generated list'!B2908=\"\",\"\",'Generated list'!B2908)","v":""},{"$f":"IF('Generated list'!C2908=\"\",\"\",'Generated list'!C2908)","v":""},{"$f":"IF('Generated list'!D2908=\"\",\"\",'Generated list'!D2908)","v":""}]
[null,{"$f":"IF('Generated list'!B2909=\"\",\"\",'Generated list'!B2909)","v":""},{"$f":"IF('Generated list'!C2909=\"\",\"\",'Generated list'!C2909)","v":""},{"$f":"IF('Generated list'!D2909=\"\",\"\",'Generated list'!D2909)","v":""}]
[null,{"$f":"IF('Generated list'!B2910=\"\",\"\",'Generated list'!B2910)","v":""},{"$f":"IF('Generated list'!C2910=\"\",\"\",'Generated list'!C2910)","v":""},{"$f":"IF('Generated list'!D2910=\"\",\"\",'Generated list'!D2910)","v":""}]
[null,{"$f":"IF('Generated list'!B2911=\"\",\"\",'Generated list'!B2911)","v":""},{"$f":"IF('Generated list'!C2911=\"\",\"\",'Generated list'!C2911)","v":""},{"$f":"IF('Generated list'!D2911=\"\",\"\",'Generated list'!D2911)","v":""}]
[null,{"$f":"IF('Generated list'!B2912=\"\",\"\",'Generated list'!B2912)","v":""},{"$f":"IF('Generated list'!C2912=\"\",\"\",'Generated list'!C2912)","v":""},{"$f":"IF('Generated list'!D2912=\"\",\"\",'Generated list'!D2912)","v":""}]
[null,{"$f":"IF('Generated list'!B2913=\"\",\"\",'Generated list'!B2913)","v":""},{"$f":"IF('Generated list'!C2913=\"\",\"\",'Generated list'!C2913)","v":""},{"$f":"IF('Generated list'!D2913=\"\",\"\",'Generated list'!D2913)","v":""}]
[null,{"$f":"IF('Generated list'!B2914=\"\",\"\",'Generated list'!B2914)","v":""},{"$f":"IF('Generated list'!C2914=\"\",\"\",'Generated list'!C2914)","v":""},{"$f":"IF('Generated list'!D2914=\"\",\"\",'Generated list'!D2914)","v":""}]
[null,{"$f":"IF('Generated list'!B2915=\"\",\"\",'Generated list'!B2915)","v":""},{"$f":"IF('Generated list'!C2915=\"\",\"\",'Generated list'!C2915)","v":""},{"$f":"IF('Generated list'!D2915=\"\",\"\",'Generated list'!D2915)","v":""}]
[null,{"$f":"IF('Generated list'!B2916=\"\",\"\",'Generated list'!B2916)","v":""},{"$f":"IF('Generated list'!C2916=\"\",\"\",'Generated list'!C2916)","v":""},{"$f":"IF('Generated list'!D2916=\"\",\"\",'Generated list'!D2916)","v":""}]
[null,{"$f":"IF('Generated list'!B2917=\"\",\"\",'Generated list'!B2917)","v":""},{"$f":"IF('Generated list'!C2917=\"\",\"\",'Generated list'!C2917)","v":""},{"$f":"IF('Generated list'!D2917=\"\",\"\",'Generated list'!D2917)","v":""}]
[null,{"$f":"IF('Generated list'!B2918=\"\",\"\",'Generated list'!B2918)","v":""},{"$f":"IF('Generated list'!C2918=\"\",\"\",'Generated list'!C2918)","v":""},{"$f":"IF('Generated list'!D2918=\"\",\"\",'Generated list'!D2918)","v":""}]
[null,{"$f":"IF('Generated list'!B2919=\"\",\"\",'Generated list'!B2919)","v":""},{"$f":"IF('Generated list'!C2919=\"\",\"\",'Generated list'!C2919)","v":""},{"$f":"IF('Generated list'!D2919=\"\",\"\",'Generated list'!D2919)","v":""}]
[null,{"$f":"IF('Generated list'!B2920=\"\",\"\",'Generated list'!B2920)","v":""},{"$f":"IF('Generated list'!C2920=\"\",\"\",'Generated list'!C2920)","v":""},{"$f":"IF('Generated list'!D2920=\"\",\"\",'Generated list'!D2920)","v":""}]
[null,{"$f":"IF('Generated list'!B2921=\"\",\"\",'Generated list'!B2921)","v":""},{"$f":"IF('Generated list'!C2921=\"\",\"\",'Generated list'!C2921)","v":""},{"$f":"IF('Generated list'!D2921=\"\",\"\",'Generated list'!D2921)","v":""}]
[null,{"$f":"IF('Generated list'!B2922=\"\",\"\",'Generated list'!B2922)","v":""},{"$f":"IF('Generated list'!C2922=\"\",\"\",'Generated list'!C2922)","v":""},{"$f":"IF('Generated list'!D2922=\"\",\"\",'Generated list'!D2922)","v":""}]
[null,{"$f":"IF('Generated list'!B2923=\"\",\"\",'Generated list'!B2923)","v":""},{"$f":"IF('Generated list'!C2923=\"\",\"\",'Generated list'!C2923)","v":""},{"$f":"IF('Generated list'!D2923=\"\",\"\",'Generated list'!D2923)","v":""}]
[null,{"$f":"IF('Generated list'!B2924=\"\",\"\",'Generated list'!B2924)","v":""},{"$f":"IF('Generated list'!C2924=\"\",\"\",'Generated list'!C2924)","v":""},{"$f":"IF('Generated list'!D2924=\"\",\"\",'Generated list'!D2924)","v":""}]
[null,{"$f":"IF('Generated list'!B2925=\"\",\"\",'Generated list'!B2925)","v":""},{"$f":"IF('Generated list'!C2925=\"\",\"\",'Generated list'!C2925)","v":""},{"$f":"IF('Generated list'!D2925=\"\",\"\",'Generated list'!D2925)","v":""}]
[null,{"$f":"IF('Generated list'!B2926=\"\",\"\",'Generated list'!B2926)","v":""},{"$f":"IF('Generated list'!C2926=\"\",\"\",'Generated list'!C2926)","v":""},{"$f":"IF('Generated list'!D2926=\"\",\"\",'Generated list'!D2926)","v":""}]
[null,{"$f":"IF('Generated list'!B2927=\"\",\"\",'Generated list'!B2927)","v":""},{"$f":"IF('Generated list'!C2927=\"\",\"\",'Generated list'!C2927)","v":""},{"$f":"IF('Generated list'!D2927=\"\",\"\",'Generated list'!D2927)","v":""}]
[null,{"$f":"IF('Generated list'!B2928=\"\",\"\",'Generated list'!B2928)","v":""},{"$f":"IF('Generated list'!C2928=\"\",\"\",'Generated list'!C2928)","v":""},{"$f":"IF('Generated list'!D2928=\"\",\"\",'Generated list'!D2928)","v":""}]
[null,{"$f":"IF('Generated list'!B2929=\"\",\"\",'Generated list'!B2929)","v":""},{"$f":"IF('Generated list'!C2929=\"\",\"\",'Generated list'!C2929)","v":""},{"$f":"IF('Generated list'!D2929=\"\",\"\",'Generated list'!D2929)","v":""}]
[null,{"$f":"IF('Generated list'!B2930=\"\",\"\",'Generated list'!B2930)","v":""},{"$f":"IF('Generated list'!C2930=\"\",\"\",'Generated list'!C2930)","v":""},{"$f":"IF('Generated list'!D2930=\"\",\"\",'Generated list'!D2930)","v":""}]
[null,{"$f":"IF('Generated list'!B2931=\"\",\"\",'Generated list'!B2931)","v":""},{"$f":"IF('Generated list'!C2931=\"\",\"\",'Generated list'!C2931)","v":""},{"$f":"IF('Generated list'!D2931=\"\",\"\",'Generated list'!D2931)","v":""}]
[null,{"$f":"IF('Generated list'!B2932=\"\",\"\",'Generated list'!B2932)","v":""},{"$f":"IF('Generated list'!C2932=\"\",\"\",'Generated list'!C2932)","v":""},{"$f":"IF('Generated list'!D2932=\"\",\"\",'Generated list'!D2932)","v":""}]
[null,{"$f":"IF('Generated list'!B2933=\"\",\"\",'Generated list'!B2933)","v":""},{"$f":"IF('Generated list'!C2933=\"\",\"\",'Generated list'!C2933)","v":""},{"$f":"IF('Generated list'!D2933=\"\",\"\",'Generated list'!D2933)","v":""}]
[null,{"$f":"IF('Generated list'!B2934=\"\",\"\",'Generated list'!B2934)","v":""},{"$f":"IF('Generated list'!C2934=\"\",\"\",'Generated list'!C2934)","v":""},{"$f":"IF('Generated list'!D2934=\"\",\"\",'Generated list'!D2934)","v":""}]
[null,{"$f":"IF('Generated list'!B2935=\"\",\"\",'Generated list'!B2935)","v":""},{"$f":"IF('Generated list'!C2935=\"\",\"\",'Generated list'!C2935)","v":""},{"$f":"IF('Generated list'!D2935=\"\",\"\",'Generated list'!D2935)","v":""}]
[null,{"$f":"IF('Generated list'!B2936=\"\",\"\",'Generated list'!B2936)","v":""},{"$f":"IF('Generated list'!C2936=\"\",\"\",'Generated list'!C2936)","v":""},{"$f":"IF('Generated list'!D2936=\"\",\"\",'Generated list'!D2936)","v":""}]
[null,{"$f":"IF('Generated list'!B2937=\"\",\"\",'Generated list'!B2937)","v":""},{"$f":"IF('Generated list'!C2937=\"\",\"\",'Generated list'!C2937)","v":""},{"$f":"IF('Generated list'!D2937=\"\",\"\",'Generated list'!D2937)","v":""}]
[null,{"$f":"IF('Generated list'!B2938=\"\",\"\",'Generated list'!B2938)","v":""},{"$f":"IF('Generated list'!C2938=\"\",\"\",'Generated list'!C2938)","v":""},{"$f":"IF('Generated list'!D2938=\"\",\"\",'Generated list'!D2938)","v":""}]
[null,{"$f":"IF('Generated list'!B2939=\"\",\"\",'Generated list'!B2939)","v":""},{"$f":"IF('Generated list'!C2939=\"\",\"\",'Generated list'!C2939)","v":""},{"$f":"IF('Generated list'!D2939=\"\",\"\",'Generated list'!D2939)","v":""}]
[null,{"$f":"IF('Generated list'!B2940=\"\",\"\",'Generated list'!B2940)","v":""},{"$f":"IF('Generated list'!C2940=\"\",\"\",'Generated list'!C2940)","v":""},{"$f":"IF('Generated list'!D2940=\"\",\"\",'Generated list'!D2940)","v":""}]
[null,{"$f":"IF('Generated list'!B2941=\"\",\"\",'Generated list'!B2941)","v":""},{"$f":"IF('Generated list'!C2941=\"\",\"\",'Generated list'!C2941)","v":""},{"$f":"IF('Generated list'!D2941=\"\",\"\",'Generated list'!D2941)","v":""}]
[null,{"$f":"IF('Generated list'!B2942=\"\",\"\",'Generated list'!B2942)","v":""},{"$f":"IF('Generated list'!C2942=\"\",\"\",'Generated list'!C2942)","v":""},{"$f":"IF('Generated list'!D2942=\"\",\"\",'Generated list'!D2942)","v":""}]
[null,{"$f":"IF('Generated list'!B2943=\"\",\"\",'Generated list'!B2943)","v":""},{"$f":"IF('Generated list'!C2943=\"\",\"\",'Generated list'!C2943)","v":""},{"$f":"IF('Generated list'!D2943=\"\",\"\",'Generated list'!D2943)","v":""}]
[null,{"$f":"IF('Generated list'!B2944=\"\",\"\",'Generated list'!B2944)","v":""},{"$f":"IF('Generated list'!C2944=\"\",\"\",'Generated list'!C2944)","v":""},{"$f":"IF('Generated list'!D2944=\"\",\"\",'Generated list'!D2944)","v":""}]
[null,{"$f":"IF('Generated list'!B2945=\"\",\"\",'Generated list'!B2945)","v":""},{"$f":"IF('Generated list'!C2945=\"\",\"\",'Generated list'!C2945)","v":""},{"$f":"IF('Generated list'!D2945=\"\",\"\",'Generated list'!D2945)","v":""}]
[null,{"$f":"IF('Generated list'!B2946=\"\",\"\",'Generated list'!B2946)","v":""},{"$f":"IF('Generated list'!C2946=\"\",\"\",'Generated list'!C2946)","v":""},{"$f":"IF('Generated list'!D2946=\"\",\"\",'Generated list'!D2946)","v":""}]
[null,{"$f":"IF('Generated list'!B2947=\"\",\"\",'Generated list'!B2947)","v":""},{"$f":"IF('Generated list'!C2947=\"\",\"\",'Generated list'!C2947)","v":""},{"$f":"IF('Generated list'!D2947=\"\",\"\",'Generated list'!D2947)","v":""}]
[null,{"$f":"IF('Generated list'!B2948=\"\",\"\",'Generated list'!B2948)","v":""},{"$f":"IF('Generated list'!C2948=\"\",\"\",'Generated list'!C2948)","v":""},{"$f":"IF('Generated list'!D2948=\"\",\"\",'Generated list'!D2948)","v":""}]
[null,{"$f":"IF('Generated list'!B2949=\"\",\"\",'Generated list'!B2949)","v":""},{"$f":"IF('Generated list'!C2949=\"\",\"\",'Generated list'!C2949)","v":""},{"$f":"IF('Generated list'!D2949=\"\",\"\",'Generated list'!D2949)","v":""}]
[null,{"$f":"IF('Generated list'!B2950=\"\",\"\",'Generated list'!B2950)","v":""},{"$f":"IF('Generated list'!C2950=\"\",\"\",'Generated list'!C2950)","v":""},{"$f":"IF('Generated list'!D2950=\"\",\"\",'Generated list'!D2950)","v":""}]
[null,{"$f":"IF('Generated list'!B2951=\"\",\"\",'Generated list'!B2951)","v":""},{"$f":"IF('Generated list'!C2951=\"\",\"\",'Generated list'!C2951)","v":""},{"$f":"IF('Generated list'!D2951=\"\",\"\",'Generated list'!D2951)","v":""}]
[null,{"$f":"IF('Generated list'!B2952=\"\",\"\",'Generated list'!B2952)","v":""},{"$f":"IF('Generated list'!C2952=\"\",\"\",'Generated list'!C2952)","v":""},{"$f":"IF('Generated list'!D2952=\"\",\"\",'Generated list'!D2952)","v":""}]
[null,{"$f":"IF('Generated list'!B2953=\"\",\"\",'Generated list'!B2953)","v":""},{"$f":"IF('Generated list'!C2953=\"\",\"\",'Generated list'!C2953)","v":""},{"$f":"IF('Generated list'!D2953=\"\",\"\",'Generated list'!D2953)","v":""}]
[null,{"$f":"IF('Generated list'!B2954=\"\",\"\",'Generated list'!B2954)","v":""},{"$f":"IF('Generated list'!C2954=\"\",\"\",'Generated list'!C2954)","v":""},{"$f":"IF('Generated list'!D2954=\"\",\"\",'Generated list'!D2954)","v":""}]
[null,{"$f":"IF('Generated list'!B2955=\"\",\"\",'Generated list'!B2955)","v":""},{"$f":"IF('Generated list'!C2955=\"\",\"\",'Generated list'!C2955)","v":""},{"$f":"IF('Generated list'!D2955=\"\",\"\",'Generated list'!D2955)","v":""}]
[null,{"$f":"IF('Generated list'!B2956=\"\",\"\",'Generated list'!B2956)","v":""},{"$f":"IF('Generated list'!C2956=\"\",\"\",'Generated list'!C2956)","v":""},{"$f":"IF('Generated list'!D2956=\"\",\"\",'Generated list'!D2956)","v":""}]
[null,{"$f":"IF('Generated list'!B2957=\"\",\"\",'Generated list'!B2957)","v":""},{"$f":"IF('Generated list'!C2957=\"\",\"\",'Generated list'!C2957)","v":""},{"$f":"IF('Generated list'!D2957=\"\",\"\",'Generated list'!D2957)","v":""}]
[null,{"$f":"IF('Generated list'!B2958=\"\",\"\",'Generated list'!B2958)","v":""},{"$f":"IF('Generated list'!C2958=\"\",\"\",'Generated list'!C2958)","v":""},{"$f":"IF('Generated list'!D2958=\"\",\"\",'Generated list'!D2958)","v":""}]
[null,{"$f":"IF('Generated list'!B2959=\"\",\"\",'Generated list'!B2959)","v":""},{"$f":"IF('Generated list'!C2959=\"\",\"\",'Generated list'!C2959)","v":""},{"$f":"IF('Generated list'!D2959=\"\",\"\",'Generated list'!D2959)","v":""}]
[null,{"$f":"IF('Generated list'!B2960=\"\",\"\",'Generated list'!B2960)","v":""},{"$f":"IF('Generated list'!C2960=\"\",\"\",'Generated list'!C2960)","v":""},{"$f":"IF('Generated list'!D2960=\"\",\"\",'Generated list'!D2960)","v":""}]
[null,{"$f":"IF('Generated list'!B2961=\"\",\"\",'Generated list'!B2961)","v":""},{"$f":"IF('Generated list'!C2961=\"\",\"\",'Generated list'!C2961)","v":""},{"$f":"IF('Generated list'!D2961=\"\",\"\",'Generated list'!D2961)","v":""}]
[null,{"$f":"IF('Generated list'!B2962=\"\",\"\",'Generated list'!B2962)","v":""},{"$f":"IF('Generated list'!C2962=\"\",\"\",'Generated list'!C2962)","v":""},{"$f":"IF('Generated list'!D2962=\"\",\"\",'Generated list'!D2962)","v":""}]
[null,{"$f":"IF('Generated list'!B2963=\"\",\"\",'Generated list'!B2963)","v":""},{"$f":"IF('Generated list'!C2963=\"\",\"\",'Generated list'!C2963)","v":""},{"$f":"IF('Generated list'!D2963=\"\",\"\",'Generated list'!D2963)","v":""}]
[null,{"$f":"IF('Generated list'!B2964=\"\",\"\",'Generated list'!B2964)","v":""},{"$f":"IF('Generated list'!C2964=\"\",\"\",'Generated list'!C2964)","v":""},{"$f":"IF('Generated list'!D2964=\"\",\"\",'Generated list'!D2964)","v":""}]
[null,{"$f":"IF('Generated list'!B2965=\"\",\"\",'Generated list'!B2965)","v":""},{"$f":"IF('Generated list'!C2965=\"\",\"\",'Generated list'!C2965)","v":""},{"$f":"IF('Generated list'!D2965=\"\",\"\",'Generated list'!D2965)","v":""}]
[null,{"$f":"IF('Generated list'!B2966=\"\",\"\",'Generated list'!B2966)","v":""},{"$f":"IF('Generated list'!C2966=\"\",\"\",'Generated list'!C2966)","v":""},{"$f":"IF('Generated list'!D2966=\"\",\"\",'Generated list'!D2966)","v":""}]
[null,{"$f":"IF('Generated list'!B2967=\"\",\"\",'Generated list'!B2967)","v":""},{"$f":"IF('Generated list'!C2967=\"\",\"\",'Generated list'!C2967)","v":""},{"$f":"IF('Generated list'!D2967=\"\",\"\",'Generated list'!D2967)","v":""}]
[null,{"$f":"IF('Generated list'!B2968=\"\",\"\",'Generated list'!B2968)","v":""},{"$f":"IF('Generated list'!C2968=\"\",\"\",'Generated list'!C2968)","v":""},{"$f":"IF('Generated list'!D2968=\"\",\"\",'Generated list'!D2968)","v":""}]
[null,{"$f":"IF('Generated list'!B2969=\"\",\"\",'Generated list'!B2969)","v":""},{"$f":"IF('Generated list'!C2969=\"\",\"\",'Generated list'!C2969)","v":""},{"$f":"IF('Generated list'!D2969=\"\",\"\",'Generated list'!D2969)","v":""}]
[null,{"$f":"IF('Generated list'!B2970=\"\",\"\",'Generated list'!B2970)","v":""},{"$f":"IF('Generated list'!C2970=\"\",\"\",'Generated list'!C2970)","v":""},{"$f":"IF('Generated list'!D2970=\"\",\"\",'Generated list'!D2970)","v":""}]
[null,{"$f":"IF('Generated list'!B2971=\"\",\"\",'Generated list'!B2971)","v":""},{"$f":"IF('Generated list'!C2971=\"\",\"\",'Generated list'!C2971)","v":""},{"$f":"IF('Generated list'!D2971=\"\",\"\",'Generated list'!D2971)","v":""}]
[null,{"$f":"IF('Generated list'!B2972=\"\",\"\",'Generated list'!B2972)","v":""},{"$f":"IF('Generated list'!C2972=\"\",\"\",'Generated list'!C2972)","v":""},{"$f":"IF('Generated list'!D2972=\"\",\"\",'Generated list'!D2972)","v":""}]
[null,{"$f":"IF('Generated list'!B2973=\"\",\"\",'Generated list'!B2973)","v":""},{"$f":"IF('Generated list'!C2973=\"\",\"\",'Generated list'!C2973)","v":""},{"$f":"IF('Generated list'!D2973=\"\",\"\",'Generated list'!D2973)","v":""}]
[null,{"$f":"IF('Generated list'!B2974=\"\",\"\",'Generated list'!B2974)","v":""},{"$f":"IF('Generated list'!C2974=\"\",\"\",'Generated list'!C2974)","v":""},{"$f":"IF('Generated list'!D2974=\"\",\"\",'Generated list'!D2974)","v":""}]
[null,{"$f":"IF('Generated list'!B2975=\"\",\"\",'Generated list'!B2975)","v":""},{"$f":"IF('Generated list'!C2975=\"\",\"\",'Generated list'!C2975)","v":""},{"$f":"IF('Generated list'!D2975=\"\",\"\",'Generated list'!D2975)","v":""}]
[null,{"$f":"IF('Generated list'!B2976=\"\",\"\",'Generated list'!B2976)","v":""},{"$f":"IF('Generated list'!C2976=\"\",\"\",'Generated list'!C2976)","v":""},{"$f":"IF('Generated list'!D2976=\"\",\"\",'Generated list'!D2976)","v":""}]
[null,{"$f":"IF('Generated list'!B2977=\"\",\"\",'Generated list'!B2977)","v":""},{"$f":"IF('Generated list'!C2977=\"\",\"\",'Generated list'!C2977)","v":""},{"$f":"IF('Generated list'!D2977=\"\",\"\",'Generated list'!D2977)","v":""}]
[null,{"$f":"IF('Generated list'!B2978=\"\",\"\",'Generated list'!B2978)","v":""},{"$f":"IF('Generated list'!C2978=\"\",\"\",'Generated list'!C2978)","v":""},{"$f":"IF('Generated list'!D2978=\"\",\"\",'Generated list'!D2978)","v":""}]
[null,{"$f":"IF('Generated list'!B2979=\"\",\"\",'Generated list'!B2979)","v":""},{"$f":"IF('Generated list'!C2979=\"\",\"\",'Generated list'!C2979)","v":""},{"$f":"IF('Generated list'!D2979=\"\",\"\",'Generated list'!D2979)","v":""}]
[null,{"$f":"IF('Generated list'!B2980=\"\",\"\",'Generated list'!B2980)","v":""},{"$f":"IF('Generated list'!C2980=\"\",\"\",'Generated list'!C2980)","v":""},{"$f":"IF('Generated list'!D2980=\"\",\"\",'Generated list'!D2980)","v":""}]
[null,{"$f":"IF('Generated list'!B2981=\"\",\"\",'Generated list'!B2981)","v":""},{"$f":"IF('Generated list'!C2981=\"\",\"\",'Generated list'!C2981)","v":""},{"$f":"IF('Generated list'!D2981=\"\",\"\",'Generated list'!D2981)","v":""}]
[null,{"$f":"IF('Generated list'!B2982=\"\",\"\",'Generated list'!B2982)","v":""},{"$f":"IF('Generated list'!C2982=\"\",\"\",'Generated list'!C2982)","v":""},{"$f":"IF('Generated list'!D2982=\"\",\"\",'Generated list'!D2982)","v":""}]
[null,{"$f":"IF('Generated list'!B2983=\"\",\"\",'Generated list'!B2983)","v":""},{"$f":"IF('Generated list'!C2983=\"\",\"\",'Generated list'!C2983)","v":""},{"$f":"IF('Generated list'!D2983=\"\",\"\",'Generated list'!D2983)","v":""}]
[null,{"$f":"IF('Generated list'!B2984=\"\",\"\",'Generated list'!B2984)","v":""},{"$f":"IF('Generated list'!C2984=\"\",\"\",'Generated list'!C2984)","v":""},{"$f":"IF('Generated list'!D2984=\"\",\"\",'Generated list'!D2984)","v":""}]
[null,{"$f":"IF('Generated list'!B2985=\"\",\"\",'Generated list'!B2985)","v":""},{"$f":"IF('Generated list'!C2985=\"\",\"\",'Generated list'!C2985)","v":""},{"$f":"IF('Generated list'!D2985=\"\",\"\",'Generated list'!D2985)","v":""}]
[null,{"$f":"IF('Generated list'!B2986=\"\",\"\",'Generated list'!B2986)","v":""},{"$f":"IF('Generated list'!C2986=\"\",\"\",'Generated list'!C2986)","v":""},{"$f":"IF('Generated list'!D2986=\"\",\"\",'Generated list'!D2986)","v":""}]
[null,{"$f":"IF('Generated list'!B2987=\"\",\"\",'Generated list'!B2987)","v":""},{"$f":"IF('Generated list'!C2987=\"\",\"\",'Generated list'!C2987)","v":""},{"$f":"IF('Generated list'!D2987=\"\",\"\",'Generated list'!D2987)","v":""}]
[null,{"$f":"IF('Generated list'!B2988=\"\",\"\",'Generated list'!B2988)","v":""},{"$f":"IF('Generated list'!C2988=\"\",\"\",'Generated list'!C2988)","v":""},{"$f":"IF('Generated list'!D2988=\"\",\"\",'Generated list'!D2988)","v":""}]
[null,{"$f":"IF('Generated list'!B2989=\"\",\"\",'Generated list'!B2989)","v":""},{"$f":"IF('Generated list'!C2989=\"\",\"\",'Generated list'!C2989)","v":""},{"$f":"IF('Generated list'!D2989=\"\",\"\",'Generated list'!D2989)","v":""}]
[null,{"$f":"IF('Generated list'!B2990=\"\",\"\",'Generated list'!B2990)","v":""},{"$f":"IF('Generated list'!C2990=\"\",\"\",'Generated list'!C2990)","v":""},{"$f":"IF('Generated list'!D2990=\"\",\"\",'Generated list'!D2990)","v":""}]
[null,{"$f":"IF('Generated list'!B2991=\"\",\"\",'Generated list'!B2991)","v":""},{"$f":"IF('Generated list'!C2991=\"\",\"\",'Generated list'!C2991)","v":""},{"$f":"IF('Generated list'!D2991=\"\",\"\",'Generated list'!D2991)","v":""}]
[null,{"$f":"IF('Generated list'!B2992=\"\",\"\",'Generated list'!B2992)","v":""},{"$f":"IF('Generated list'!C2992=\"\",\"\",'Generated list'!C2992)","v":""},{"$f":"IF('Generated list'!D2992=\"\",\"\",'Generated list'!D2992)","v":""}]
[null,{"$f":"IF('Generated list'!B2993=\"\",\"\",'Generated list'!B2993)","v":""},{"$f":"IF('Generated list'!C2993=\"\",\"\",'Generated list'!C2993)","v":""},{"$f":"IF('Generated list'!D2993=\"\",\"\",'Generated list'!D2993)","v":""}]
[null,{"$f":"IF('Generated list'!B2994=\"\",\"\",'Generated list'!B2994)","v":""},{"$f":"IF('Generated list'!C2994=\"\",\"\",'Generated list'!C2994)","v":""},{"$f":"IF('Generated list'!D2994=\"\",\"\",'Generated list'!D2994)","v":""}]
[null,{"$f":"IF('Generated list'!B2995=\"\",\"\",'Generated list'!B2995)","v":""},{"$f":"IF('Generated list'!C2995=\"\",\"\",'Generated list'!C2995)","v":""},{"$f":"IF('Generated list'!D2995=\"\",\"\",'Generated list'!D2995)","v":""}]
[null,{"$f":"IF('Generated list'!B2996=\"\",\"\",'Generated list'!B2996)","v":""},{"$f":"IF('Generated list'!C2996=\"\",\"\",'Generated list'!C2996)","v":""},{"$f":"IF('Generated list'!D2996=\"\",\"\",'Generated list'!D2996)","v":""}]
[null,{"$f":"IF('Generated list'!B2997=\"\",\"\",'Generated list'!B2997)","v":""},{"$f":"IF('Generated list'!C2997=\"\",\"\",'Generated list'!C2997)","v":""},{"$f":"IF('Generated list'!D2997=\"\",\"\",'Generated list'!D2997)","v":""}]
[null,{"$f":"IF('Generated list'!B2998=\"\",\"\",'Generated list'!B2998)","v":""},{"$f":"IF('Generated list'!C2998=\"\",\"\",'Generated list'!C2998)","v":""},{"$f":"IF('Generated list'!D2998=\"\",\"\",'Generated list'!D2998)","v":""}]
[null,{"$f":"IF('Generated list'!B2999=\"\",\"\",'Generated list'!B2999)","v":""},{"$f":"IF('Generated list'!C2999=\"\",\"\",'Generated list'!C2999)","v":""},{"$f":"IF('Generated list'!D2999=\"\",\"\",'Generated list'!D2999)","v":""}]
[null,{"$f":"IF('Generated list'!B3000=\"\",\"\",'Generated list'!B3000)","v":""},{"$f":"IF('Generated list'!C3000=\"\",\"\",'Generated list'!C3000)","v":""},{"$f":"IF('Generated list'!D3000=\"\",\"\",'Generated list'!D3000)","v":""}]
[null,{"$f":"IF('Generated list'!B3001=\"\",\"\",'Generated list'!B3001)","v":""},{"$f":"IF('Generated list'!C3001=\"\",\"\",'Generated list'!C3001)","v":""},{"$f":"IF('Generated list'!D3001=\"\",\"\",'Generated list'!D3001)","v":""}]
[null,{"$f":"IF('Generated list'!B3002=\"\",\"\",'Generated list'!B3002)","v":""},{"$f":"IF('Generated list'!C3002=\"\",\"\",'Generated list'!C3002)","v":""},{"$f":"IF('Generated list'!D3002=\"\",\"\",'Generated list'!D3002)","v":""}]
[null,{"$f":"IF('Generated list'!B3003=\"\",\"\",'Generated list'!B3003)","v":""},{"$f":"IF('Generated list'!C3003=\"\",\"\",'Generated list'!C3003)","v":""},{"$f":"IF('Generated list'!D3003=\"\",\"\",'Generated list'!D3003)","v":""}]
[null,{"$f":"IF('Generated list'!B3004=\"\",\"\",'Generated list'!B3004)","v":""},{"$f":"IF('Generated list'!C3004=\"\",\"\",'Generated list'!C3004)","v":""},{"$f":"IF('Generated list'!D3004=\"\",\"\",'Generated list'!D3004)","v":""}]
[null,{"$f":"IF('Generated list'!B3005=\"\",\"\",'Generated list'!B3005)","v":""},{"$f":"IF('Generated list'!C3005=\"\",\"\",'Generated list'!C3005)","v":""},{"$f":"IF('Generated list'!D3005=\"\",\"\",'Generated list'!D3005)","v":""}]
[null,{"$f":"IF('Generated list'!B3006=\"\",\"\",'Generated list'!B3006)","v":""},{"$f":"IF('Generated list'!C3006=\"\",\"\",'Generated list'!C3006)","v":""},{"$f":"IF('Generated list'!D3006=\"\",\"\",'Generated list'!D3006)","v":""}]
[null,{"$f":"IF('Generated list'!B3007=\"\",\"\",'Generated list'!B3007)","v":""},{"$f":"IF('Generated list'!C3007=\"\",\"\",'Generated list'!C3007)","v":""},{"$f":"IF('Generated list'!D3007=\"\",\"\",'Generated list'!D3007)","v":""}]
[null,{"$f":"IF('Generated list'!B3008=\"\",\"\",'Generated list'!B3008)","v":""},{"$f":"IF('Generated list'!C3008=\"\",\"\",'Generated list'!C3008)","v":""},{"$f":"IF('Generated list'!D3008=\"\",\"\",'Generated list'!D3008)","v":""}]
[null,{"$f":"IF('Generated list'!B3009=\"\",\"\",'Generated list'!B3009)","v":""},{"$f":"IF('Generated list'!C3009=\"\",\"\",'Generated list'!C3009)","v":""},{"$f":"IF('Generated list'!D3009=\"\",\"\",'Generated list'!D3009)","v":""}]
[null,{"$f":"IF('Generated list'!B3010=\"\",\"\",'Generated list'!B3010)","v":""},{"$f":"IF('Generated list'!C3010=\"\",\"\",'Generated list'!C3010)","v":""},{"$f":"IF('Generated list'!D3010=\"\",\"\",'Generated list'!D3010)","v":""}]
[null,{"$f":"IF('Generated list'!B3011=\"\",\"\",'Generated list'!B3011)","v":""},{"$f":"IF('Generated list'!C3011=\"\",\"\",'Generated list'!C3011)","v":""},{"$f":"IF('Generated list'!D3011=\"\",\"\",'Generated list'!D3011)","v":""}]
[null,{"$f":"IF('Generated list'!B3012=\"\",\"\",'Generated list'!B3012)","v":""},{"$f":"IF('Generated list'!C3012=\"\",\"\",'Generated list'!C3012)","v":""},{"$f":"IF('Generated list'!D3012=\"\",\"\",'Generated list'!D3012)","v":""}]
[null,{"$f":"IF('Generated list'!B3013=\"\",\"\",'Generated list'!B3013)","v":""},{"$f":"IF('Generated list'!C3013=\"\",\"\",'Generated list'!C3013)","v":""},{"$f":"IF('Generated list'!D3013=\"\",\"\",'Generated list'!D3013)","v":""}]
[null,{"$f":"IF('Generated list'!B3014=\"\",\"\",'Generated list'!B3014)","v":""},{"$f":"IF('Generated list'!C3014=\"\",\"\",'Generated list'!C3014)","v":""},{"$f":"IF('Generated list'!D3014=\"\",\"\",'Generated list'!D3014)","v":""}]
[null,{"$f":"IF('Generated list'!B3015=\"\",\"\",'Generated list'!B3015)","v":""},{"$f":"IF('Generated list'!C3015=\"\",\"\",'Generated list'!C3015)","v":""},{"$f":"IF('Generated list'!D3015=\"\",\"\",'Generated list'!D3015)","v":""}]
[null,{"$f":"IF('Generated list'!B3016=\"\",\"\",'Generated list'!B3016)","v":""},{"$f":"IF('Generated list'!C3016=\"\",\"\",'Generated list'!C3016)","v":""},{"$f":"IF('Generated list'!D3016=\"\",\"\",'Generated list'!D3016)","v":""}]
[null,{"$f":"IF('Generated list'!B3017=\"\",\"\",'Generated list'!B3017)","v":""},{"$f":"IF('Generated list'!C3017=\"\",\"\",'Generated list'!C3017)","v":""},{"$f":"IF('Generated list'!D3017=\"\",\"\",'Generated list'!D3017)","v":""}]
[null,{"$f":"IF('Generated list'!B3018=\"\",\"\",'Generated list'!B3018)","v":""},{"$f":"IF('Generated list'!C3018=\"\",\"\",'Generated list'!C3018)","v":""},{"$f":"IF('Generated list'!D3018=\"\",\"\",'Generated list'!D3018)","v":""}]
[null,{"$f":"IF('Generated list'!B3019=\"\",\"\",'Generated list'!B3019)","v":""},{"$f":"IF('Generated list'!C3019=\"\",\"\",'Generated list'!C3019)","v":""},{"$f":"IF('Generated list'!D3019=\"\",\"\",'Generated list'!D3019)","v":""}]
[null,{"$f":"IF('Generated list'!B3020=\"\",\"\",'Generated list'!B3020)","v":""},{"$f":"IF('Generated list'!C3020=\"\",\"\",'Generated list'!C3020)","v":""},{"$f":"IF('Generated list'!D3020=\"\",\"\",'Generated list'!D3020)","v":""}]
[null,{"$f":"IF('Generated list'!B3021=\"\",\"\",'Generated list'!B3021)","v":""},{"$f":"IF('Generated list'!C3021=\"\",\"\",'Generated list'!C3021)","v":""},{"$f":"IF('Generated list'!D3021=\"\",\"\",'Generated list'!D3021)","v":""}]
[null,{"$f":"IF('Generated list'!B3022=\"\",\"\",'Generated list'!B3022)","v":""},{"$f":"IF('Generated list'!C3022=\"\",\"\",'Generated list'!C3022)","v":""},{"$f":"IF('Generated list'!D3022=\"\",\"\",'Generated list'!D3022)","v":""}]
[null,{"$f":"IF('Generated list'!B3023=\"\",\"\",'Generated list'!B3023)","v":""},{"$f":"IF('Generated list'!C3023=\"\",\"\",'Generated list'!C3023)","v":""},{"$f":"IF('Generated list'!D3023=\"\",\"\",'Generated list'!D3023)","v":""}]
[null,{"$f":"IF('Generated list'!B3024=\"\",\"\",'Generated list'!B3024)","v":""},{"$f":"IF('Generated list'!C3024=\"\",\"\",'Generated list'!C3024)","v":""},{"$f":"IF('Generated list'!D3024=\"\",\"\",'Generated list'!D3024)","v":""}]
[null,{"$f":"IF('Generated list'!B3025=\"\",\"\",'Generated list'!B3025)","v":""},{"$f":"IF('Generated list'!C3025=\"\",\"\",'Generated list'!C3025)","v":""},{"$f":"IF('Generated list'!D3025=\"\",\"\",'Generated list'!D3025)","v":""}]
[null,{"$f":"IF('Generated list'!B3026=\"\",\"\",'Generated list'!B3026)","v":""},{"$f":"IF('Generated list'!C3026=\"\",\"\",'Generated list'!C3026)","v":""},{"$f":"IF('Generated list'!D3026=\"\",\"\",'Generated list'!D3026)","v":""}]
[null,{"$f":"IF('Generated list'!B3027=\"\",\"\",'Generated list'!B3027)","v":""},{"$f":"IF('Generated list'!C3027=\"\",\"\",'Generated list'!C3027)","v":""},{"$f":"IF('Generated list'!D3027=\"\",\"\",'Generated list'!D3027)","v":""}]
[null,{"$f":"IF('Generated list'!B3028=\"\",\"\",'Generated list'!B3028)","v":""},{"$f":"IF('Generated list'!C3028=\"\",\"\",'Generated list'!C3028)","v":""},{"$f":"IF('Generated list'!D3028=\"\",\"\",'Generated list'!D3028)","v":""}]
[null,{"$f":"IF('Generated list'!B3029=\"\",\"\",'Generated list'!B3029)","v":""},{"$f":"IF('Generated list'!C3029=\"\",\"\",'Generated list'!C3029)","v":""},{"$f":"IF('Generated list'!D3029=\"\",\"\",'Generated list'!D3029)","v":""}]
[null,{"$f":"IF('Generated list'!B3030=\"\",\"\",'Generated list'!B3030)","v":""},{"$f":"IF('Generated list'!C3030=\"\",\"\",'Generated list'!C3030)","v":""},{"$f":"IF('Generated list'!D3030=\"\",\"\",'Generated list'!D3030)","v":""}]
[null,{"$f":"IF('Generated list'!B3031=\"\",\"\",'Generated list'!B3031)","v":""},{"$f":"IF('Generated list'!C3031=\"\",\"\",'Generated list'!C3031)","v":""},{"$f":"IF('Generated list'!D3031=\"\",\"\",'Generated list'!D3031)","v":""}]
[null,{"$f":"IF('Generated list'!B3032=\"\",\"\",'Generated list'!B3032)","v":""},{"$f":"IF('Generated list'!C3032=\"\",\"\",'Generated list'!C3032)","v":""},{"$f":"IF('Generated list'!D3032=\"\",\"\",'Generated list'!D3032)","v":""}]
[null,{"$f":"IF('Generated list'!B3033=\"\",\"\",'Generated list'!B3033)","v":""},{"$f":"IF('Generated list'!C3033=\"\",\"\",'Generated list'!C3033)","v":""},{"$f":"IF('Generated list'!D3033=\"\",\"\",'Generated list'!D3033)","v":""}]
[null,{"$f":"IF('Generated list'!B3034=\"\",\"\",'Generated list'!B3034)","v":""},{"$f":"IF('Generated list'!C3034=\"\",\"\",'Generated list'!C3034)","v":""},{"$f":"IF('Generated list'!D3034=\"\",\"\",'Generated list'!D3034)","v":""}]
[null,{"$f":"IF('Generated list'!B3035=\"\",\"\",'Generated list'!B3035)","v":""},{"$f":"IF('Generated list'!C3035=\"\",\"\",'Generated list'!C3035)","v":""},{"$f":"IF('Generated list'!D3035=\"\",\"\",'Generated list'!D3035)","v":""}]
[null,{"$f":"IF('Generated list'!B3036=\"\",\"\",'Generated list'!B3036)","v":""},{"$f":"IF('Generated list'!C3036=\"\",\"\",'Generated list'!C3036)","v":""},{"$f":"IF('Generated list'!D3036=\"\",\"\",'Generated list'!D3036)","v":""}]
[null,{"$f":"IF('Generated list'!B3037=\"\",\"\",'Generated list'!B3037)","v":""},{"$f":"IF('Generated list'!C3037=\"\",\"\",'Generated list'!C3037)","v":""},{"$f":"IF('Generated list'!D3037=\"\",\"\",'Generated list'!D3037)","v":""}]
[null,{"$f":"IF('Generated list'!B3038=\"\",\"\",'Generated list'!B3038)","v":""},{"$f":"IF('Generated list'!C3038=\"\",\"\",'Generated list'!C3038)","v":""},{"$f":"IF('Generated list'!D3038=\"\",\"\",'Generated list'!D3038)","v":""}]
[null,{"$f":"IF('Generated list'!B3039=\"\",\"\",'Generated list'!B3039)","v":""},{"$f":"IF('Generated list'!C3039=\"\",\"\",'Generated list'!C3039)","v":""},{"$f":"IF('Generated list'!D3039=\"\",\"\",'Generated list'!D3039)","v":""}]
[null,{"$f":"IF('Generated list'!B3040=\"\",\"\",'Generated list'!B3040)","v":""},{"$f":"IF('Generated list'!C3040=\"\",\"\",'Generated list'!C3040)","v":""},{"$f":"IF('Generated list'!D3040=\"\",\"\",'Generated list'!D3040)","v":""}]
[null,{"$f":"IF('Generated list'!B3041=\"\",\"\",'Generated list'!B3041)","v":""},{"$f":"IF('Generated list'!C3041=\"\",\"\",'Generated list'!C3041)","v":""},{"$f":"IF('Generated list'!D3041=\"\",\"\",'Generated list'!D3041)","v":""}]
[null,{"$f":"IF('Generated list'!B3042=\"\",\"\",'Generated list'!B3042)","v":""},{"$f":"IF('Generated list'!C3042=\"\",\"\",'Generated list'!C3042)","v":""},{"$f":"IF('Generated list'!D3042=\"\",\"\",'Generated list'!D3042)","v":""}]
[null,{"$f":"IF('Generated list'!B3043=\"\",\"\",'Generated list'!B3043)","v":""},{"$f":"IF('Generated list'!C3043=\"\",\"\",'Generated list'!C3043)","v":""},{"$f":"IF('Generated list'!D3043=\"\",\"\",'Generated list'!D3043)","v":""}]
[null,{"$f":"IF('Generated list'!B3044=\"\",\"\",'Generated list'!B3044)","v":""},{"$f":"IF('Generated list'!C3044=\"\",\"\",'Generated list'!C3044)","v":""},{"$f":"IF('Generated list'!D3044=\"\",\"\",'Generated list'!D3044)","v":""}]
[null,{"$f":"IF('Generated list'!B3045=\"\",\"\",'Generated list'!B3045)","v":""},{"$f":"IF('Generated list'!C3045=\"\",\"\",'Generated list'!C3045)","v":""},{"$f":"IF('Generated list'!D3045=\"\",\"\",'Generated list'!D3045)","v":""}]
[null,{"$f":"IF('Generated list'!B3046=\"\",\"\",'Generated list'!B3046)","v":""},{"$f":"IF('Generated list'!C3046=\"\",\"\",'Generated list'!C3046)","v":""},{"$f":"IF('Generated list'!D3046=\"\",\"\",'Generated list'!D3046)","v":""}]
[null,{"$f":"IF('Generated list'!B3047=\"\",\"\",'Generated list'!B3047)","v":""},{"$f":"IF('Generated list'!C3047=\"\",\"\",'Generated list'!C3047)","v":""},{"$f":"IF('Generated list'!D3047=\"\",\"\",'Generated list'!D3047)","v":""}]
[null,{"$f":"IF('Generated list'!B3048=\"\",\"\",'Generated list'!B3048)","v":""},{"$f":"IF('Generated list'!C3048=\"\",\"\",'Generated list'!C3048)","v":""},{"$f":"IF('Generated list'!D3048=\"\",\"\",'Generated list'!D3048)","v":""}]
[null,{"$f":"IF('Generated list'!B3049=\"\",\"\",'Generated list'!B3049)","v":""},{"$f":"IF('Generated list'!C3049=\"\",\"\",'Generated list'!C3049)","v":""},{"$f":"IF('Generated list'!D3049=\"\",\"\",'Generated list'!D3049)","v":""}]
[null,{"$f":"IF('Generated list'!B3050=\"\",\"\",'Generated list'!B3050)","v":""},{"$f":"IF('Generated list'!C3050=\"\",\"\",'Generated list'!C3050)","v":""},{"$f":"IF('Generated list'!D3050=\"\",\"\",'Generated list'!D3050)","v":""}]
[null,{"$f":"IF('Generated list'!B3051=\"\",\"\",'Generated list'!B3051)","v":""},{"$f":"IF('Generated list'!C3051=\"\",\"\",'Generated list'!C3051)","v":""},{"$f":"IF('Generated list'!D3051=\"\",\"\",'Generated list'!D3051)","v":""}]
[null,{"$f":"IF('Generated list'!B3052=\"\",\"\",'Generated list'!B3052)","v":""},{"$f":"IF('Generated list'!C3052=\"\",\"\",'Generated list'!C3052)","v":""},{"$f":"IF('Generated list'!D3052=\"\",\"\",'Generated list'!D3052)","v":""}]
[null,{"$f":"IF('Generated list'!B3053=\"\",\"\",'Generated list'!B3053)","v":""},{"$f":"IF('Generated list'!C3053=\"\",\"\",'Generated list'!C3053)","v":""},{"$f":"IF('Generated list'!D3053=\"\",\"\",'Generated list'!D3053)","v":""}]
[null,{"$f":"IF('Generated list'!B3054=\"\",\"\",'Generated list'!B3054)","v":""},{"$f":"IF('Generated list'!C3054=\"\",\"\",'Generated list'!C3054)","v":""},{"$f":"IF('Generated list'!D3054=\"\",\"\",'Generated list'!D3054)","v":""}]
[null,{"$f":"IF('Generated list'!B3055=\"\",\"\",'Generated list'!B3055)","v":""},{"$f":"IF('Generated list'!C3055=\"\",\"\",'Generated list'!C3055)","v":""},{"$f":"IF('Generated list'!D3055=\"\",\"\",'Generated list'!D3055)","v":""}]
[null,{"$f":"IF('Generated list'!B3056=\"\",\"\",'Generated list'!B3056)","v":""},{"$f":"IF('Generated list'!C3056=\"\",\"\",'Generated list'!C3056)","v":""},{"$f":"IF('Generated list'!D3056=\"\",\"\",'Generated list'!D3056)","v":""}]
[null,{"$f":"IF('Generated list'!B3057=\"\",\"\",'Generated list'!B3057)","v":""},{"$f":"IF('Generated list'!C3057=\"\",\"\",'Generated list'!C3057)","v":""},{"$f":"IF('Generated list'!D3057=\"\",\"\",'Generated list'!D3057)","v":""}]
[null,{"$f":"IF('Generated list'!B3058=\"\",\"\",'Generated list'!B3058)","v":""},{"$f":"IF('Generated list'!C3058=\"\",\"\",'Generated list'!C3058)","v":""},{"$f":"IF('Generated list'!D3058=\"\",\"\",'Generated list'!D3058)","v":""}]
[null,{"$f":"IF('Generated list'!B3059=\"\",\"\",'Generated list'!B3059)","v":""},{"$f":"IF('Generated list'!C3059=\"\",\"\",'Generated list'!C3059)","v":""},{"$f":"IF('Generated list'!D3059=\"\",\"\",'Generated list'!D3059)","v":""}]
[null,{"$f":"IF('Generated list'!B3060=\"\",\"\",'Generated list'!B3060)","v":""},{"$f":"IF('Generated list'!C3060=\"\",\"\",'Generated list'!C3060)","v":""},{"$f":"IF('Generated list'!D3060=\"\",\"\",'Generated list'!D3060)","v":""}]
[null,{"$f":"IF('Generated list'!B3061=\"\",\"\",'Generated list'!B3061)","v":""},{"$f":"IF('Generated list'!C3061=\"\",\"\",'Generated list'!C3061)","v":""},{"$f":"IF('Generated list'!D3061=\"\",\"\",'Generated list'!D3061)","v":""}]
[null,{"$f":"IF('Generated list'!B3062=\"\",\"\",'Generated list'!B3062)","v":""},{"$f":"IF('Generated list'!C3062=\"\",\"\",'Generated list'!C3062)","v":""},{"$f":"IF('Generated list'!D3062=\"\",\"\",'Generated list'!D3062)","v":""}]
[null,{"$f":"IF('Generated list'!B3063=\"\",\"\",'Generated list'!B3063)","v":""},{"$f":"IF('Generated list'!C3063=\"\",\"\",'Generated list'!C3063)","v":""},{"$f":"IF('Generated list'!D3063=\"\",\"\",'Generated list'!D3063)","v":""}]
[null,{"$f":"IF('Generated list'!B3064=\"\",\"\",'Generated list'!B3064)","v":""},{"$f":"IF('Generated list'!C3064=\"\",\"\",'Generated list'!C3064)","v":""},{"$f":"IF('Generated list'!D3064=\"\",\"\",'Generated list'!D3064)","v":""}]
[null,{"$f":"IF('Generated list'!B3065=\"\",\"\",'Generated list'!B3065)","v":""},{"$f":"IF('Generated list'!C3065=\"\",\"\",'Generated list'!C3065)","v":""},{"$f":"IF('Generated list'!D3065=\"\",\"\",'Generated list'!D3065)","v":""}]
[null,{"$f":"IF('Generated list'!B3066=\"\",\"\",'Generated list'!B3066)","v":""},{"$f":"IF('Generated list'!C3066=\"\",\"\",'Generated list'!C3066)","v":""},{"$f":"IF('Generated list'!D3066=\"\",\"\",'Generated list'!D3066)","v":""}]
[null,{"$f":"IF('Generated list'!B3067=\"\",\"\",'Generated list'!B3067)","v":""},{"$f":"IF('Generated list'!C3067=\"\",\"\",'Generated list'!C3067)","v":""},{"$f":"IF('Generated list'!D3067=\"\",\"\",'Generated list'!D3067)","v":""}]
[null,{"$f":"IF('Generated list'!B3068=\"\",\"\",'Generated list'!B3068)","v":""},{"$f":"IF('Generated list'!C3068=\"\",\"\",'Generated list'!C3068)","v":""},{"$f":"IF('Generated list'!D3068=\"\",\"\",'Generated list'!D3068)","v":""}]
[null,{"$f":"IF('Generated list'!B3069=\"\",\"\",'Generated list'!B3069)","v":""},{"$f":"IF('Generated list'!C3069=\"\",\"\",'Generated list'!C3069)","v":""},{"$f":"IF('Generated list'!D3069=\"\",\"\",'Generated list'!D3069)","v":""}]
[null,{"$f":"IF('Generated list'!B3070=\"\",\"\",'Generated list'!B3070)","v":""},{"$f":"IF('Generated list'!C3070=\"\",\"\",'Generated list'!C3070)","v":""},{"$f":"IF('Generated list'!D3070=\"\",\"\",'Generated list'!D3070)","v":""}]
[null,{"$f":"IF('Generated list'!B3071=\"\",\"\",'Generated list'!B3071)","v":""},{"$f":"IF('Generated list'!C3071=\"\",\"\",'Generated list'!C3071)","v":""},{"$f":"IF('Generated list'!D3071=\"\",\"\",'Generated list'!D3071)","v":""}]
[null,{"$f":"IF('Generated list'!B3072=\"\",\"\",'Generated list'!B3072)","v":""},{"$f":"IF('Generated list'!C3072=\"\",\"\",'Generated list'!C3072)","v":""},{"$f":"IF('Generated list'!D3072=\"\",\"\",'Generated list'!D3072)","v":""}]
[null,{"$f":"IF('Generated list'!B3073=\"\",\"\",'Generated list'!B3073)","v":""},{"$f":"IF('Generated list'!C3073=\"\",\"\",'Generated list'!C3073)","v":""},{"$f":"IF('Generated list'!D3073=\"\",\"\",'Generated list'!D3073)","v":""}]
[null,{"$f":"IF('Generated list'!B3074=\"\",\"\",'Generated list'!B3074)","v":""},{"$f":"IF('Generated list'!C3074=\"\",\"\",'Generated list'!C3074)","v":""},{"$f":"IF('Generated list'!D3074=\"\",\"\",'Generated list'!D3074)","v":""}]
[null,{"$f":"IF('Generated list'!B3075=\"\",\"\",'Generated list'!B3075)","v":""},{"$f":"IF('Generated list'!C3075=\"\",\"\",'Generated list'!C3075)","v":""},{"$f":"IF('Generated list'!D3075=\"\",\"\",'Generated list'!D3075)","v":""}]
[null,{"$f":"IF('Generated list'!B3076=\"\",\"\",'Generated list'!B3076)","v":""},{"$f":"IF('Generated list'!C3076=\"\",\"\",'Generated list'!C3076)","v":""},{"$f":"IF('Generated list'!D3076=\"\",\"\",'Generated list'!D3076)","v":""}]
[null,{"$f":"IF('Generated list'!B3077=\"\",\"\",'Generated list'!B3077)","v":""},{"$f":"IF('Generated list'!C3077=\"\",\"\",'Generated list'!C3077)","v":""},{"$f":"IF('Generated list'!D3077=\"\",\"\",'Generated list'!D3077)","v":""}]
[null,{"$f":"IF('Generated list'!B3078=\"\",\"\",'Generated list'!B3078)","v":""},{"$f":"IF('Generated list'!C3078=\"\",\"\",'Generated list'!C3078)","v":""},{"$f":"IF('Generated list'!D3078=\"\",\"\",'Generated list'!D3078)","v":""}]
[null,{"$f":"IF('Generated list'!B3079=\"\",\"\",'Generated list'!B3079)","v":""},{"$f":"IF('Generated list'!C3079=\"\",\"\",'Generated list'!C3079)","v":""},{"$f":"IF('Generated list'!D3079=\"\",\"\",'Generated list'!D3079)","v":""}]
[null,{"$f":"IF('Generated list'!B3080=\"\",\"\",'Generated list'!B3080)","v":""},{"$f":"IF('Generated list'!C3080=\"\",\"\",'Generated list'!C3080)","v":""},{"$f":"IF('Generated list'!D3080=\"\",\"\",'Generated list'!D3080)","v":""}]
[null,{"$f":"IF('Generated list'!B3081=\"\",\"\",'Generated list'!B3081)","v":""},{"$f":"IF('Generated list'!C3081=\"\",\"\",'Generated list'!C3081)","v":""},{"$f":"IF('Generated list'!D3081=\"\",\"\",'Generated list'!D3081)","v":""}]
[null,{"$f":"IF('Generated list'!B3082=\"\",\"\",'Generated list'!B3082)","v":""},{"$f":"IF('Generated list'!C3082=\"\",\"\",'Generated list'!C3082)","v":""},{"$f":"IF('Generated list'!D3082=\"\",\"\",'Generated list'!D3082)","v":""}]
[null,{"$f":"IF('Generated list'!B3083=\"\",\"\",'Generated list'!B3083)","v":""},{"$f":"IF('Generated list'!C3083=\"\",\"\",'Generated list'!C3083)","v":""},{"$f":"IF('Generated list'!D3083=\"\",\"\",'Generated list'!D3083)","v":""}]
[null,{"$f":"IF('Generated list'!B3084=\"\",\"\",'Generated list'!B3084)","v":""},{"$f":"IF('Generated list'!C3084=\"\",\"\",'Generated list'!C3084)","v":""},{"$f":"IF('Generated list'!D3084=\"\",\"\",'Generated list'!D3084)","v":""}]
[null,{"$f":"IF('Generated list'!B3085=\"\",\"\",'Generated list'!B3085)","v":""},{"$f":"IF('Generated list'!C3085=\"\",\"\",'Generated list'!C3085)","v":""},{"$f":"IF('Generated list'!D3085=\"\",\"\",'Generated list'!D3085)","v":""}]
[null,{"$f":"IF('Generated list'!B3086=\"\",\"\",'Generated list'!B3086)","v":""},{"$f":"IF('Generated list'!C3086=\"\",\"\",'Generated list'!C3086)","v":""},{"$f":"IF('Generated list'!D3086=\"\",\"\",'Generated list'!D3086)","v":""}]
[null,{"$f":"IF('Generated list'!B3087=\"\",\"\",'Generated list'!B3087)","v":""},{"$f":"IF('Generated list'!C3087=\"\",\"\",'Generated list'!C3087)","v":""},{"$f":"IF('Generated list'!D3087=\"\",\"\",'Generated list'!D3087)","v":""}]
[null,{"$f":"IF('Generated list'!B3088=\"\",\"\",'Generated list'!B3088)","v":""},{"$f":"IF('Generated list'!C3088=\"\",\"\",'Generated list'!C3088)","v":""},{"$f":"IF('Generated list'!D3088=\"\",\"\",'Generated list'!D3088)","v":""}]
[null,{"$f":"IF('Generated list'!B3089=\"\",\"\",'Generated list'!B3089)","v":""},{"$f":"IF('Generated list'!C3089=\"\",\"\",'Generated list'!C3089)","v":""},{"$f":"IF('Generated list'!D3089=\"\",\"\",'Generated list'!D3089)","v":""}]
[null,{"$f":"IF('Generated list'!B3090=\"\",\"\",'Generated list'!B3090)","v":""},{"$f":"IF('Generated list'!C3090=\"\",\"\",'Generated list'!C3090)","v":""},{"$f":"IF('Generated list'!D3090=\"\",\"\",'Generated list'!D3090)","v":""}]
[null,{"$f":"IF('Generated list'!B3091=\"\",\"\",'Generated list'!B3091)","v":""},{"$f":"IF('Generated list'!C3091=\"\",\"\",'Generated list'!C3091)","v":""},{"$f":"IF('Generated list'!D3091=\"\",\"\",'Generated list'!D3091)","v":""}]
[null,{"$f":"IF('Generated list'!B3092=\"\",\"\",'Generated list'!B3092)","v":""},{"$f":"IF('Generated list'!C3092=\"\",\"\",'Generated list'!C3092)","v":""},{"$f":"IF('Generated list'!D3092=\"\",\"\",'Generated list'!D3092)","v":""}]
[null,{"$f":"IF('Generated list'!B3093=\"\",\"\",'Generated list'!B3093)","v":""},{"$f":"IF('Generated list'!C3093=\"\",\"\",'Generated list'!C3093)","v":""},{"$f":"IF('Generated list'!D3093=\"\",\"\",'Generated list'!D3093)","v":""}]
[null,{"$f":"IF('Generated list'!B3094=\"\",\"\",'Generated list'!B3094)","v":""},{"$f":"IF('Generated list'!C3094=\"\",\"\",'Generated list'!C3094)","v":""},{"$f":"IF('Generated list'!D3094=\"\",\"\",'Generated list'!D3094)","v":""}]
[null,{"$f":"IF('Generated list'!B3095=\"\",\"\",'Generated list'!B3095)","v":""},{"$f":"IF('Generated list'!C3095=\"\",\"\",'Generated list'!C3095)","v":""},{"$f":"IF('Generated list'!D3095=\"\",\"\",'Generated list'!D3095)","v":""}]
[null,{"$f":"IF('Generated list'!B3096=\"\",\"\",'Generated list'!B3096)","v":""},{"$f":"IF('Generated list'!C3096=\"\",\"\",'Generated list'!C3096)","v":""},{"$f":"IF('Generated list'!D3096=\"\",\"\",'Generated list'!D3096)","v":""}]
[null,{"$f":"IF('Generated list'!B3097=\"\",\"\",'Generated list'!B3097)","v":""},{"$f":"IF('Generated list'!C3097=\"\",\"\",'Generated list'!C3097)","v":""},{"$f":"IF('Generated list'!D3097=\"\",\"\",'Generated list'!D3097)","v":""}]
[null,{"$f":"IF('Generated list'!B3098=\"\",\"\",'Generated list'!B3098)","v":""},{"$f":"IF('Generated list'!C3098=\"\",\"\",'Generated list'!C3098)","v":""},{"$f":"IF('Generated list'!D3098=\"\",\"\",'Generated list'!D3098)","v":""}]
[null,{"$f":"IF('Generated list'!B3099=\"\",\"\",'Generated list'!B3099)","v":""},{"$f":"IF('Generated list'!C3099=\"\",\"\",'Generated list'!C3099)","v":""},{"$f":"IF('Generated list'!D3099=\"\",\"\",'Generated list'!D3099)","v":""}]
[null,{"$f":"IF('Generated list'!B3100=\"\",\"\",'Generated list'!B3100)","v":""},{"$f":"IF('Generated list'!C3100=\"\",\"\",'Generated list'!C3100)","v":""},{"$f":"IF('Generated list'!D3100=\"\",\"\",'Generated list'!D3100)","v":""}]
[null,{"$f":"IF('Generated list'!B3101=\"\",\"\",'Generated list'!B3101)","v":""},{"$f":"IF('Generated list'!C3101=\"\",\"\",'Generated list'!C3101)","v":""},{"$f":"IF('Generated list'!D3101=\"\",\"\",'Generated list'!D3101)","v":""}]
[null,{"$f":"IF('Generated list'!B3102=\"\",\"\",'Generated list'!B3102)","v":""},{"$f":"IF('Generated list'!C3102=\"\",\"\",'Generated list'!C3102)","v":""},{"$f":"IF('Generated list'!D3102=\"\",\"\",'Generated list'!D3102)","v":""}]
[null,{"$f":"IF('Generated list'!B3103=\"\",\"\",'Generated list'!B3103)","v":""},{"$f":"IF('Generated list'!C3103=\"\",\"\",'Generated list'!C3103)","v":""},{"$f":"IF('Generated list'!D3103=\"\",\"\",'Generated list'!D3103)","v":""}]
[null,{"$f":"IF('Generated list'!B3104=\"\",\"\",'Generated list'!B3104)","v":""},{"$f":"IF('Generated list'!C3104=\"\",\"\",'Generated list'!C3104)","v":""},{"$f":"IF('Generated list'!D3104=\"\",\"\",'Generated list'!D3104)","v":""}]
[null,{"$f":"IF('Generated list'!B3105=\"\",\"\",'Generated list'!B3105)","v":""},{"$f":"IF('Generated list'!C3105=\"\",\"\",'Generated list'!C3105)","v":""},{"$f":"IF('Generated list'!D3105=\"\",\"\",'Generated list'!D3105)","v":""}]
[null,{"$f":"IF('Generated list'!B3106=\"\",\"\",'Generated list'!B3106)","v":""},{"$f":"IF('Generated list'!C3106=\"\",\"\",'Generated list'!C3106)","v":""},{"$f":"IF('Generated list'!D3106=\"\",\"\",'Generated list'!D3106)","v":""}]
[null,{"$f":"IF('Generated list'!B3107=\"\",\"\",'Generated list'!B3107)","v":""},{"$f":"IF('Generated list'!C3107=\"\",\"\",'Generated list'!C3107)","v":""},{"$f":"IF('Generated list'!D3107=\"\",\"\",'Generated list'!D3107)","v":""}]
[null,{"$f":"IF('Generated list'!B3108=\"\",\"\",'Generated list'!B3108)","v":""},{"$f":"IF('Generated list'!C3108=\"\",\"\",'Generated list'!C3108)","v":""},{"$f":"IF('Generated list'!D3108=\"\",\"\",'Generated list'!D3108)","v":""}]
[null,{"$f":"IF('Generated list'!B3109=\"\",\"\",'Generated list'!B3109)","v":""},{"$f":"IF('Generated list'!C3109=\"\",\"\",'Generated list'!C3109)","v":""},{"$f":"IF('Generated list'!D3109=\"\",\"\",'Generated list'!D3109)","v":""}]
[null,{"$f":"IF('Generated list'!B3110=\"\",\"\",'Generated list'!B3110)","v":""},{"$f":"IF('Generated list'!C3110=\"\",\"\",'Generated list'!C3110)","v":""},{"$f":"IF('Generated list'!D3110=\"\",\"\",'Generated list'!D3110)","v":""}]
[null,{"$f":"IF('Generated list'!B3111=\"\",\"\",'Generated list'!B3111)","v":""},{"$f":"IF('Generated list'!C3111=\"\",\"\",'Generated list'!C3111)","v":""},{"$f":"IF('Generated list'!D3111=\"\",\"\",'Generated list'!D3111)","v":""}]
[null,{"$f":"IF('Generated list'!B3112=\"\",\"\",'Generated list'!B3112)","v":""},{"$f":"IF('Generated list'!C3112=\"\",\"\",'Generated list'!C3112)","v":""},{"$f":"IF('Generated list'!D3112=\"\",\"\",'Generated list'!D3112)","v":""}]
[null,{"$f":"IF('Generated list'!B3113=\"\",\"\",'Generated list'!B3113)","v":""},{"$f":"IF('Generated list'!C3113=\"\",\"\",'Generated list'!C3113)","v":""},{"$f":"IF('Generated list'!D3113=\"\",\"\",'Generated list'!D3113)","v":""}]
[null,{"$f":"IF('Generated list'!B3114=\"\",\"\",'Generated list'!B3114)","v":""},{"$f":"IF('Generated list'!C3114=\"\",\"\",'Generated list'!C3114)","v":""},{"$f":"IF('Generated list'!D3114=\"\",\"\",'Generated list'!D3114)","v":""}]
[null,{"$f":"IF('Generated list'!B3115=\"\",\"\",'Generated list'!B3115)","v":""},{"$f":"IF('Generated list'!C3115=\"\",\"\",'Generated list'!C3115)","v":""},{"$f":"IF('Generated list'!D3115=\"\",\"\",'Generated list'!D3115)","v":""}]
[null,{"$f":"IF('Generated list'!B3116=\"\",\"\",'Generated list'!B3116)","v":""},{"$f":"IF('Generated list'!C3116=\"\",\"\",'Generated list'!C3116)","v":""},{"$f":"IF('Generated list'!D3116=\"\",\"\",'Generated list'!D3116)","v":""}]
[null,{"$f":"IF('Generated list'!B3117=\"\",\"\",'Generated list'!B3117)","v":""},{"$f":"IF('Generated list'!C3117=\"\",\"\",'Generated list'!C3117)","v":""},{"$f":"IF('Generated list'!D3117=\"\",\"\",'Generated list'!D3117)","v":""}]
[null,{"$f":"IF('Generated list'!B3118=\"\",\"\",'Generated list'!B3118)","v":""},{"$f":"IF('Generated list'!C3118=\"\",\"\",'Generated list'!C3118)","v":""},{"$f":"IF('Generated list'!D3118=\"\",\"\",'Generated list'!D3118)","v":""}]
[null,{"$f":"IF('Generated list'!B3119=\"\",\"\",'Generated list'!B3119)","v":""},{"$f":"IF('Generated list'!C3119=\"\",\"\",'Generated list'!C3119)","v":""},{"$f":"IF('Generated list'!D3119=\"\",\"\",'Generated list'!D3119)","v":""}]
[null,{"$f":"IF('Generated list'!B3120=\"\",\"\",'Generated list'!B3120)","v":""},{"$f":"IF('Generated list'!C3120=\"\",\"\",'Generated list'!C3120)","v":""},{"$f":"IF('Generated list'!D3120=\"\",\"\",'Generated list'!D3120)","v":""}]
[null,{"$f":"IF('Generated list'!B3121=\"\",\"\",'Generated list'!B3121)","v":""},{"$f":"IF('Generated list'!C3121=\"\",\"\",'Generated list'!C3121)","v":""},{"$f":"IF('Generated list'!D3121=\"\",\"\",'Generated list'!D3121)","v":""}]
[null,{"$f":"IF('Generated list'!B3122=\"\",\"\",'Generated list'!B3122)","v":""},{"$f":"IF('Generated list'!C3122=\"\",\"\",'Generated list'!C3122)","v":""},{"$f":"IF('Generated list'!D3122=\"\",\"\",'Generated list'!D3122)","v":""}]
[null,{"$f":"IF('Generated list'!B3123=\"\",\"\",'Generated list'!B3123)","v":""},{"$f":"IF('Generated list'!C3123=\"\",\"\",'Generated list'!C3123)","v":""},{"$f":"IF('Generated list'!D3123=\"\",\"\",'Generated list'!D3123)","v":""}]
[null,{"$f":"IF('Generated list'!B3124=\"\",\"\",'Generated list'!B3124)","v":""},{"$f":"IF('Generated list'!C3124=\"\",\"\",'Generated list'!C3124)","v":""},{"$f":"IF('Generated list'!D3124=\"\",\"\",'Generated list'!D3124)","v":""}]
[null,{"$f":"IF('Generated list'!B3125=\"\",\"\",'Generated list'!B3125)","v":""},{"$f":"IF('Generated list'!C3125=\"\",\"\",'Generated list'!C3125)","v":""},{"$f":"IF('Generated list'!D3125=\"\",\"\",'Generated list'!D3125)","v":""}]
[null,{"$f":"IF('Generated list'!B3126=\"\",\"\",'Generated list'!B3126)","v":""},{"$f":"IF('Generated list'!C3126=\"\",\"\",'Generated list'!C3126)","v":""},{"$f":"IF('Generated list'!D3126=\"\",\"\",'Generated list'!D3126)","v":""}]
[null,{"$f":"IF('Generated list'!B3127=\"\",\"\",'Generated list'!B3127)","v":""},{"$f":"IF('Generated list'!C3127=\"\",\"\",'Generated list'!C3127)","v":""},{"$f":"IF('Generated list'!D3127=\"\",\"\",'Generated list'!D3127)","v":""}]
[null,{"$f":"IF('Generated list'!B3128=\"\",\"\",'Generated list'!B3128)","v":""},{"$f":"IF('Generated list'!C3128=\"\",\"\",'Generated list'!C3128)","v":""},{"$f":"IF('Generated list'!D3128=\"\",\"\",'Generated list'!D3128)","v":""}]
[null,{"$f":"IF('Generated list'!B3129=\"\",\"\",'Generated list'!B3129)","v":""},{"$f":"IF('Generated list'!C3129=\"\",\"\",'Generated list'!C3129)","v":""},{"$f":"IF('Generated list'!D3129=\"\",\"\",'Generated list'!D3129)","v":""}]
[null,{"$f":"IF('Generated list'!B3130=\"\",\"\",'Generated list'!B3130)","v":""},{"$f":"IF('Generated list'!C3130=\"\",\"\",'Generated list'!C3130)","v":""},{"$f":"IF('Generated list'!D3130=\"\",\"\",'Generated list'!D3130)","v":""}]
[null,{"$f":"IF('Generated list'!B3131=\"\",\"\",'Generated list'!B3131)","v":""},{"$f":"IF('Generated list'!C3131=\"\",\"\",'Generated list'!C3131)","v":""},{"$f":"IF('Generated list'!D3131=\"\",\"\",'Generated list'!D3131)","v":""}]
[null,{"$f":"IF('Generated list'!B3132=\"\",\"\",'Generated list'!B3132)","v":""},{"$f":"IF('Generated list'!C3132=\"\",\"\",'Generated list'!C3132)","v":""},{"$f":"IF('Generated list'!D3132=\"\",\"\",'Generated list'!D3132)","v":""}]
[null,{"$f":"IF('Generated list'!B3133=\"\",\"\",'Generated list'!B3133)","v":""},{"$f":"IF('Generated list'!C3133=\"\",\"\",'Generated list'!C3133)","v":""},{"$f":"IF('Generated list'!D3133=\"\",\"\",'Generated list'!D3133)","v":""}]
[null,{"$f":"IF('Generated list'!B3134=\"\",\"\",'Generated list'!B3134)","v":""},{"$f":"IF('Generated list'!C3134=\"\",\"\",'Generated list'!C3134)","v":""},{"$f":"IF('Generated list'!D3134=\"\",\"\",'Generated list'!D3134)","v":""}]
[null,{"$f":"IF('Generated list'!B3135=\"\",\"\",'Generated list'!B3135)","v":""},{"$f":"IF('Generated list'!C3135=\"\",\"\",'Generated list'!C3135)","v":""},{"$f":"IF('Generated list'!D3135=\"\",\"\",'Generated list'!D3135)","v":""}]
[null,{"$f":"IF('Generated list'!B3136=\"\",\"\",'Generated list'!B3136)","v":""},{"$f":"IF('Generated list'!C3136=\"\",\"\",'Generated list'!C3136)","v":""},{"$f":"IF('Generated list'!D3136=\"\",\"\",'Generated list'!D3136)","v":""}]
[null,{"$f":"IF('Generated list'!B3137=\"\",\"\",'Generated list'!B3137)","v":""},{"$f":"IF('Generated list'!C3137=\"\",\"\",'Generated list'!C3137)","v":""},{"$f":"IF('Generated list'!D3137=\"\",\"\",'Generated list'!D3137)","v":""}]
[null,{"$f":"IF('Generated list'!B3138=\"\",\"\",'Generated list'!B3138)","v":""},{"$f":"IF('Generated list'!C3138=\"\",\"\",'Generated list'!C3138)","v":""},{"$f":"IF('Generated list'!D3138=\"\",\"\",'Generated list'!D3138)","v":""}]
[null,{"$f":"IF('Generated list'!B3139=\"\",\"\",'Generated list'!B3139)","v":""},{"$f":"IF('Generated list'!C3139=\"\",\"\",'Generated list'!C3139)","v":""},{"$f":"IF('Generated list'!D3139=\"\",\"\",'Generated list'!D3139)","v":""}]
[null,{"$f":"IF('Generated list'!B3140=\"\",\"\",'Generated list'!B3140)","v":""},{"$f":"IF('Generated list'!C3140=\"\",\"\",'Generated list'!C3140)","v":""},{"$f":"IF('Generated list'!D3140=\"\",\"\",'Generated list'!D3140)","v":""}]
[null,{"$f":"IF('Generated list'!B3141=\"\",\"\",'Generated list'!B3141)","v":""},{"$f":"IF('Generated list'!C3141=\"\",\"\",'Generated list'!C3141)","v":""},{"$f":"IF('Generated list'!D3141=\"\",\"\",'Generated list'!D3141)","v":""}]
[null,{"$f":"IF('Generated list'!B3142=\"\",\"\",'Generated list'!B3142)","v":""},{"$f":"IF('Generated list'!C3142=\"\",\"\",'Generated list'!C3142)","v":""},{"$f":"IF('Generated list'!D3142=\"\",\"\",'Generated list'!D3142)","v":""}]
[null,{"$f":"IF('Generated list'!B3143=\"\",\"\",'Generated list'!B3143)","v":""},{"$f":"IF('Generated list'!C3143=\"\",\"\",'Generated list'!C3143)","v":""},{"$f":"IF('Generated list'!D3143=\"\",\"\",'Generated list'!D3143)","v":""}]
[null,{"$f":"IF('Generated list'!B3144=\"\",\"\",'Generated list'!B3144)","v":""},{"$f":"IF('Generated list'!C3144=\"\",\"\",'Generated list'!C3144)","v":""},{"$f":"IF('Generated list'!D3144=\"\",\"\",'Generated list'!D3144)","v":""}]
[null,{"$f":"IF('Generated list'!B3145=\"\",\"\",'Generated list'!B3145)","v":""},{"$f":"IF('Generated list'!C3145=\"\",\"\",'Generated list'!C3145)","v":""},{"$f":"IF('Generated list'!D3145=\"\",\"\",'Generated list'!D3145)","v":""}]
[null,{"$f":"IF('Generated list'!B3146=\"\",\"\",'Generated list'!B3146)","v":""},{"$f":"IF('Generated list'!C3146=\"\",\"\",'Generated list'!C3146)","v":""},{"$f":"IF('Generated list'!D3146=\"\",\"\",'Generated list'!D3146)","v":""}]
[null,{"$f":"IF('Generated list'!B3147=\"\",\"\",'Generated list'!B3147)","v":""},{"$f":"IF('Generated list'!C3147=\"\",\"\",'Generated list'!C3147)","v":""},{"$f":"IF('Generated list'!D3147=\"\",\"\",'Generated list'!D3147)","v":""}]
[null,{"$f":"IF('Generated list'!B3148=\"\",\"\",'Generated list'!B3148)","v":""},{"$f":"IF('Generated list'!C3148=\"\",\"\",'Generated list'!C3148)","v":""},{"$f":"IF('Generated list'!D3148=\"\",\"\",'Generated list'!D3148)","v":""}]
[null,{"$f":"IF('Generated list'!B3149=\"\",\"\",'Generated list'!B3149)","v":""},{"$f":"IF('Generated list'!C3149=\"\",\"\",'Generated list'!C3149)","v":""},{"$f":"IF('Generated list'!D3149=\"\",\"\",'Generated list'!D3149)","v":""}]
[null,{"$f":"IF('Generated list'!B3150=\"\",\"\",'Generated list'!B3150)","v":""},{"$f":"IF('Generated list'!C3150=\"\",\"\",'Generated list'!C3150)","v":""},{"$f":"IF('Generated list'!D3150=\"\",\"\",'Generated list'!D3150)","v":""}]
[null,{"$f":"IF('Generated list'!B3151=\"\",\"\",'Generated list'!B3151)","v":""},{"$f":"IF('Generated list'!C3151=\"\",\"\",'Generated list'!C3151)","v":""},{"$f":"IF('Generated list'!D3151=\"\",\"\",'Generated list'!D3151)","v":""}]
[null,{"$f":"IF('Generated list'!B3152=\"\",\"\",'Generated list'!B3152)","v":""},{"$f":"IF('Generated list'!C3152=\"\",\"\",'Generated list'!C3152)","v":""},{"$f":"IF('Generated list'!D3152=\"\",\"\",'Generated list'!D3152)","v":""}]
[null,{"$f":"IF('Generated list'!B3153=\"\",\"\",'Generated list'!B3153)","v":""},{"$f":"IF('Generated list'!C3153=\"\",\"\",'Generated list'!C3153)","v":""},{"$f":"IF('Generated list'!D3153=\"\",\"\",'Generated list'!D3153)","v":""}]
[null,{"$f":"IF('Generated list'!B3154=\"\",\"\",'Generated list'!B3154)","v":""},{"$f":"IF('Generated list'!C3154=\"\",\"\",'Generated list'!C3154)","v":""},{"$f":"IF('Generated list'!D3154=\"\",\"\",'Generated list'!D3154)","v":""}]
[null,{"$f":"IF('Generated list'!B3155=\"\",\"\",'Generated list'!B3155)","v":""},{"$f":"IF('Generated list'!C3155=\"\",\"\",'Generated list'!C3155)","v":""},{"$f":"IF('Generated list'!D3155=\"\",\"\",'Generated list'!D3155)","v":""}]
[null,{"$f":"IF('Generated list'!B3156=\"\",\"\",'Generated list'!B3156)","v":""},{"$f":"IF('Generated list'!C3156=\"\",\"\",'Generated list'!C3156)","v":""},{"$f":"IF('Generated list'!D3156=\"\",\"\",'Generated list'!D3156)","v":""}]
[null,{"$f":"IF('Generated list'!B3157=\"\",\"\",'Generated list'!B3157)","v":""},{"$f":"IF('Generated list'!C3157=\"\",\"\",'Generated list'!C3157)","v":""},{"$f":"IF('Generated list'!D3157=\"\",\"\",'Generated list'!D3157)","v":""}]
[null,{"$f":"IF('Generated list'!B3158=\"\",\"\",'Generated list'!B3158)","v":""},{"$f":"IF('Generated list'!C3158=\"\",\"\",'Generated list'!C3158)","v":""},{"$f":"IF('Generated list'!D3158=\"\",\"\",'Generated list'!D3158)","v":""}]
[null,{"$f":"IF('Generated list'!B3159=\"\",\"\",'Generated list'!B3159)","v":""},{"$f":"IF('Generated list'!C3159=\"\",\"\",'Generated list'!C3159)","v":""},{"$f":"IF('Generated list'!D3159=\"\",\"\",'Generated list'!D3159)","v":""}]
[null,{"$f":"IF('Generated list'!B3160=\"\",\"\",'Generated list'!B3160)","v":""},{"$f":"IF('Generated list'!C3160=\"\",\"\",'Generated list'!C3160)","v":""},{"$f":"IF('Generated list'!D3160=\"\",\"\",'Generated list'!D3160)","v":""}]
[null,{"$f":"IF('Generated list'!B3161=\"\",\"\",'Generated list'!B3161)","v":""},{"$f":"IF('Generated list'!C3161=\"\",\"\",'Generated list'!C3161)","v":""},{"$f":"IF('Generated list'!D3161=\"\",\"\",'Generated list'!D3161)","v":""}]
[null,{"$f":"IF('Generated list'!B3162=\"\",\"\",'Generated list'!B3162)","v":""},{"$f":"IF('Generated list'!C3162=\"\",\"\",'Generated list'!C3162)","v":""},{"$f":"IF('Generated list'!D3162=\"\",\"\",'Generated list'!D3162)","v":""}]
[null,{"$f":"IF('Generated list'!B3163=\"\",\"\",'Generated list'!B3163)","v":""},{"$f":"IF('Generated list'!C3163=\"\",\"\",'Generated list'!C3163)","v":""},{"$f":"IF('Generated list'!D3163=\"\",\"\",'Generated list'!D3163)","v":""}]
[null,{"$f":"IF('Generated list'!B3164=\"\",\"\",'Generated list'!B3164)","v":""},{"$f":"IF('Generated list'!C3164=\"\",\"\",'Generated list'!C3164)","v":""},{"$f":"IF('Generated list'!D3164=\"\",\"\",'Generated list'!D3164)","v":""}]
[null,{"$f":"IF('Generated list'!B3165=\"\",\"\",'Generated list'!B3165)","v":""},{"$f":"IF('Generated list'!C3165=\"\",\"\",'Generated list'!C3165)","v":""},{"$f":"IF('Generated list'!D3165=\"\",\"\",'Generated list'!D3165)","v":""}]
[null,{"$f":"IF('Generated list'!B3166=\"\",\"\",'Generated list'!B3166)","v":""},{"$f":"IF('Generated list'!C3166=\"\",\"\",'Generated list'!C3166)","v":""},{"$f":"IF('Generated list'!D3166=\"\",\"\",'Generated list'!D3166)","v":""}]
[null,{"$f":"IF('Generated list'!B3167=\"\",\"\",'Generated list'!B3167)","v":""},{"$f":"IF('Generated list'!C3167=\"\",\"\",'Generated list'!C3167)","v":""},{"$f":"IF('Generated list'!D3167=\"\",\"\",'Generated list'!D3167)","v":""}]
[null,{"$f":"IF('Generated list'!B3168=\"\",\"\",'Generated list'!B3168)","v":""},{"$f":"IF('Generated list'!C3168=\"\",\"\",'Generated list'!C3168)","v":""},{"$f":"IF('Generated list'!D3168=\"\",\"\",'Generated list'!D3168)","v":""}]
[null,{"$f":"IF('Generated list'!B3169=\"\",\"\",'Generated list'!B3169)","v":""},{"$f":"IF('Generated list'!C3169=\"\",\"\",'Generated list'!C3169)","v":""},{"$f":"IF('Generated list'!D3169=\"\",\"\",'Generated list'!D3169)","v":""}]
[null,{"$f":"IF('Generated list'!B3170=\"\",\"\",'Generated list'!B3170)","v":""},{"$f":"IF('Generated list'!C3170=\"\",\"\",'Generated list'!C3170)","v":""},{"$f":"IF('Generated list'!D3170=\"\",\"\",'Generated list'!D3170)","v":""}]
[null,{"$f":"IF('Generated list'!B3171=\"\",\"\",'Generated list'!B3171)","v":""},{"$f":"IF('Generated list'!C3171=\"\",\"\",'Generated list'!C3171)","v":""},{"$f":"IF('Generated list'!D3171=\"\",\"\",'Generated list'!D3171)","v":""}]
[null,{"$f":"IF('Generated list'!B3172=\"\",\"\",'Generated list'!B3172)","v":""},{"$f":"IF('Generated list'!C3172=\"\",\"\",'Generated list'!C3172)","v":""},{"$f":"IF('Generated list'!D3172=\"\",\"\",'Generated list'!D3172)","v":""}]
[null,{"$f":"IF('Generated list'!B3173=\"\",\"\",'Generated list'!B3173)","v":""},{"$f":"IF('Generated list'!C3173=\"\",\"\",'Generated list'!C3173)","v":""},{"$f":"IF('Generated list'!D3173=\"\",\"\",'Generated list'!D3173)","v":""}]
[null,{"$f":"IF('Generated list'!B3174=\"\",\"\",'Generated list'!B3174)","v":""},{"$f":"IF('Generated list'!C3174=\"\",\"\",'Generated list'!C3174)","v":""},{"$f":"IF('Generated list'!D3174=\"\",\"\",'Generated list'!D3174)","v":""}]
[null,{"$f":"IF('Generated list'!B3175=\"\",\"\",'Generated list'!B3175)","v":""},{"$f":"IF('Generated list'!C3175=\"\",\"\",'Generated list'!C3175)","v":""},{"$f":"IF('Generated list'!D3175=\"\",\"\",'Generated list'!D3175)","v":""}]
[null,{"$f":"IF('Generated list'!B3176=\"\",\"\",'Generated list'!B3176)","v":""},{"$f":"IF('Generated list'!C3176=\"\",\"\",'Generated list'!C3176)","v":""},{"$f":"IF('Generated list'!D3176=\"\",\"\",'Generated list'!D3176)","v":""}]
[null,{"$f":"IF('Generated list'!B3177=\"\",\"\",'Generated list'!B3177)","v":""},{"$f":"IF('Generated list'!C3177=\"\",\"\",'Generated list'!C3177)","v":""},{"$f":"IF('Generated list'!D3177=\"\",\"\",'Generated list'!D3177)","v":""}]
[null,{"$f":"IF('Generated list'!B3178=\"\",\"\",'Generated list'!B3178)","v":""},{"$f":"IF('Generated list'!C3178=\"\",\"\",'Generated list'!C3178)","v":""},{"$f":"IF('Generated list'!D3178=\"\",\"\",'Generated list'!D3178)","v":""}]
[null,{"$f":"IF('Generated list'!B3179=\"\",\"\",'Generated list'!B3179)","v":""},{"$f":"IF('Generated list'!C3179=\"\",\"\",'Generated list'!C3179)","v":""},{"$f":"IF('Generated list'!D3179=\"\",\"\",'Generated list'!D3179)","v":""}]
[null,{"$f":"IF('Generated list'!B3180=\"\",\"\",'Generated list'!B3180)","v":""},{"$f":"IF('Generated list'!C3180=\"\",\"\",'Generated list'!C3180)","v":""},{"$f":"IF('Generated list'!D3180=\"\",\"\",'Generated list'!D3180)","v":""}]
[null,{"$f":"IF('Generated list'!B3181=\"\",\"\",'Generated list'!B3181)","v":""},{"$f":"IF('Generated list'!C3181=\"\",\"\",'Generated list'!C3181)","v":""},{"$f":"IF('Generated list'!D3181=\"\",\"\",'Generated list'!D3181)","v":""}]
[null,{"$f":"IF('Generated list'!B3182=\"\",\"\",'Generated list'!B3182)","v":""},{"$f":"IF('Generated list'!C3182=\"\",\"\",'Generated list'!C3182)","v":""},{"$f":"IF('Generated list'!D3182=\"\",\"\",'Generated list'!D3182)","v":""}]
[null,{"$f":"IF('Generated list'!B3183=\"\",\"\",'Generated list'!B3183)","v":""},{"$f":"IF('Generated list'!C3183=\"\",\"\",'Generated list'!C3183)","v":""},{"$f":"IF('Generated list'!D3183=\"\",\"\",'Generated list'!D3183)","v":""}]
[null,{"$f":"IF('Generated list'!B3184=\"\",\"\",'Generated list'!B3184)","v":""},{"$f":"IF('Generated list'!C3184=\"\",\"\",'Generated list'!C3184)","v":""},{"$f":"IF('Generated list'!D3184=\"\",\"\",'Generated list'!D3184)","v":""}]
[null,{"$f":"IF('Generated list'!B3185=\"\",\"\",'Generated list'!B3185)","v":""},{"$f":"IF('Generated list'!C3185=\"\",\"\",'Generated list'!C3185)","v":""},{"$f":"IF('Generated list'!D3185=\"\",\"\",'Generated list'!D3185)","v":""}]
[null,{"$f":"IF('Generated list'!B3186=\"\",\"\",'Generated list'!B3186)","v":""},{"$f":"IF('Generated list'!C3186=\"\",\"\",'Generated list'!C3186)","v":""},{"$f":"IF('Generated list'!D3186=\"\",\"\",'Generated list'!D3186)","v":""}]
[null,{"$f":"IF('Generated list'!B3187=\"\",\"\",'Generated list'!B3187)","v":""},{"$f":"IF('Generated list'!C3187=\"\",\"\",'Generated list'!C3187)","v":""},{"$f":"IF('Generated list'!D3187=\"\",\"\",'Generated list'!D3187)","v":""}]
[null,{"$f":"IF('Generated list'!B3188=\"\",\"\",'Generated list'!B3188)","v":""},{"$f":"IF('Generated list'!C3188=\"\",\"\",'Generated list'!C3188)","v":""},{"$f":"IF('Generated list'!D3188=\"\",\"\",'Generated list'!D3188)","v":""}]
[null,{"$f":"IF('Generated list'!B3189=\"\",\"\",'Generated list'!B3189)","v":""},{"$f":"IF('Generated list'!C3189=\"\",\"\",'Generated list'!C3189)","v":""},{"$f":"IF('Generated list'!D3189=\"\",\"\",'Generated list'!D3189)","v":""}]
[null,{"$f":"IF('Generated list'!B3190=\"\",\"\",'Generated list'!B3190)","v":""},{"$f":"IF('Generated list'!C3190=\"\",\"\",'Generated list'!C3190)","v":""},{"$f":"IF('Generated list'!D3190=\"\",\"\",'Generated list'!D3190)","v":""}]
[null,{"$f":"IF('Generated list'!B3191=\"\",\"\",'Generated list'!B3191)","v":""},{"$f":"IF('Generated list'!C3191=\"\",\"\",'Generated list'!C3191)","v":""},{"$f":"IF('Generated list'!D3191=\"\",\"\",'Generated list'!D3191)","v":""}]
[null,{"$f":"IF('Generated list'!B3192=\"\",\"\",'Generated list'!B3192)","v":""},{"$f":"IF('Generated list'!C3192=\"\",\"\",'Generated list'!C3192)","v":""},{"$f":"IF('Generated list'!D3192=\"\",\"\",'Generated list'!D3192)","v":""}]
[null,{"$f":"IF('Generated list'!B3193=\"\",\"\",'Generated list'!B3193)","v":""},{"$f":"IF('Generated list'!C3193=\"\",\"\",'Generated list'!C3193)","v":""},{"$f":"IF('Generated list'!D3193=\"\",\"\",'Generated list'!D3193)","v":""}]
[null,{"$f":"IF('Generated list'!B3194=\"\",\"\",'Generated list'!B3194)","v":""},{"$f":"IF('Generated list'!C3194=\"\",\"\",'Generated list'!C3194)","v":""},{"$f":"IF('Generated list'!D3194=\"\",\"\",'Generated list'!D3194)","v":""}]
[null,{"$f":"IF('Generated list'!B3195=\"\",\"\",'Generated list'!B3195)","v":""},{"$f":"IF('Generated list'!C3195=\"\",\"\",'Generated list'!C3195)","v":""},{"$f":"IF('Generated list'!D3195=\"\",\"\",'Generated list'!D3195)","v":""}]
[null,{"$f":"IF('Generated list'!B3196=\"\",\"\",'Generated list'!B3196)","v":""},{"$f":"IF('Generated list'!C3196=\"\",\"\",'Generated list'!C3196)","v":""},{"$f":"IF('Generated list'!D3196=\"\",\"\",'Generated list'!D3196)","v":""}]
[null,{"$f":"IF('Generated list'!B3197=\"\",\"\",'Generated list'!B3197)","v":""},{"$f":"IF('Generated list'!C3197=\"\",\"\",'Generated list'!C3197)","v":""},{"$f":"IF('Generated list'!D3197=\"\",\"\",'Generated list'!D3197)","v":""}]
[null,{"$f":"IF('Generated list'!B3198=\"\",\"\",'Generated list'!B3198)","v":""},{"$f":"IF('Generated list'!C3198=\"\",\"\",'Generated list'!C3198)","v":""},{"$f":"IF('Generated list'!D3198=\"\",\"\",'Generated list'!D3198)","v":""}]
[null,{"$f":"IF('Generated list'!B3199=\"\",\"\",'Generated list'!B3199)","v":""},{"$f":"IF('Generated list'!C3199=\"\",\"\",'Generated list'!C3199)","v":""},{"$f":"IF('Generated list'!D3199=\"\",\"\",'Generated list'!D3199)","v":""}]
[null,{"$f":"IF('Generated list'!B3200=\"\",\"\",'Generated list'!B3200)","v":""},{"$f":"IF('Generated list'!C3200=\"\",\"\",'Generated list'!C3200)","v":""},{"$f":"IF('Generated list'!D3200=\"\",\"\",'Generated list'!D3200)","v":""}]
[null,{"$f":"IF('Generated list'!B3201=\"\",\"\",'Generated list'!B3201)","v":""},{"$f":"IF('Generated list'!C3201=\"\",\"\",'Generated list'!C3201)","v":""},{"$f":"IF('Generated list'!D3201=\"\",\"\",'Generated list'!D3201)","v":""}]
[null,{"$f":"IF('Generated list'!B3202=\"\",\"\",'Generated list'!B3202)","v":""},{"$f":"IF('Generated list'!C3202=\"\",\"\",'Generated list'!C3202)","v":""},{"$f":"IF('Generated list'!D3202=\"\",\"\",'Generated list'!D3202)","v":""}]
[null,{"$f":"IF('Generated list'!B3203=\"\",\"\",'Generated list'!B3203)","v":""},{"$f":"IF('Generated list'!C3203=\"\",\"\",'Generated list'!C3203)","v":""},{"$f":"IF('Generated list'!D3203=\"\",\"\",'Generated list'!D3203)","v":""}]
[null,{"$f":"IF('Generated list'!B3204=\"\",\"\",'Generated list'!B3204)","v":""},{"$f":"IF('Generated list'!C3204=\"\",\"\",'Generated list'!C3204)","v":""},{"$f":"IF('Generated list'!D3204=\"\",\"\",'Generated list'!D3204)","v":""}]
[null,{"$f":"IF('Generated list'!B3205=\"\",\"\",'Generated list'!B3205)","v":""},{"$f":"IF('Generated list'!C3205=\"\",\"\",'Generated list'!C3205)","v":""},{"$f":"IF('Generated list'!D3205=\"\",\"\",'Generated list'!D3205)","v":""}]
[null,{"$f":"IF('Generated list'!B3206=\"\",\"\",'Generated list'!B3206)","v":""},{"$f":"IF('Generated list'!C3206=\"\",\"\",'Generated list'!C3206)","v":""},{"$f":"IF('Generated list'!D3206=\"\",\"\",'Generated list'!D3206)","v":""}]
[null,{"$f":"IF('Generated list'!B3207=\"\",\"\",'Generated list'!B3207)","v":""},{"$f":"IF('Generated list'!C3207=\"\",\"\",'Generated list'!C3207)","v":""},{"$f":"IF('Generated list'!D3207=\"\",\"\",'Generated list'!D3207)","v":""}]
[null,{"$f":"IF('Generated list'!B3208=\"\",\"\",'Generated list'!B3208)","v":""},{"$f":"IF('Generated list'!C3208=\"\",\"\",'Generated list'!C3208)","v":""},{"$f":"IF('Generated list'!D3208=\"\",\"\",'Generated list'!D3208)","v":""}]
[null,{"$f":"IF('Generated list'!B3209=\"\",\"\",'Generated list'!B3209)","v":""},{"$f":"IF('Generated list'!C3209=\"\",\"\",'Generated list'!C3209)","v":""},{"$f":"IF('Generated list'!D3209=\"\",\"\",'Generated list'!D3209)","v":""}]
[null,{"$f":"IF('Generated list'!B3210=\"\",\"\",'Generated list'!B3210)","v":""},{"$f":"IF('Generated list'!C3210=\"\",\"\",'Generated list'!C3210)","v":""},{"$f":"IF('Generated list'!D3210=\"\",\"\",'Generated list'!D3210)","v":""}]
[null,{"$f":"IF('Generated list'!B3211=\"\",\"\",'Generated list'!B3211)","v":""},{"$f":"IF('Generated list'!C3211=\"\",\"\",'Generated list'!C3211)","v":""},{"$f":"IF('Generated list'!D3211=\"\",\"\",'Generated list'!D3211)","v":""}]
[null,{"$f":"IF('Generated list'!B3212=\"\",\"\",'Generated list'!B3212)","v":""},{"$f":"IF('Generated list'!C3212=\"\",\"\",'Generated list'!C3212)","v":""},{"$f":"IF('Generated list'!D3212=\"\",\"\",'Generated list'!D3212)","v":""}]
[null,{"$f":"IF('Generated list'!B3213=\"\",\"\",'Generated list'!B3213)","v":""},{"$f":"IF('Generated list'!C3213=\"\",\"\",'Generated list'!C3213)","v":""},{"$f":"IF('Generated list'!D3213=\"\",\"\",'Generated list'!D3213)","v":""}]
[null,{"$f":"IF('Generated list'!B3214=\"\",\"\",'Generated list'!B3214)","v":""},{"$f":"IF('Generated list'!C3214=\"\",\"\",'Generated list'!C3214)","v":""},{"$f":"IF('Generated list'!D3214=\"\",\"\",'Generated list'!D3214)","v":""}]
[null,{"$f":"IF('Generated list'!B3215=\"\",\"\",'Generated list'!B3215)","v":""},{"$f":"IF('Generated list'!C3215=\"\",\"\",'Generated list'!C3215)","v":""},{"$f":"IF('Generated list'!D3215=\"\",\"\",'Generated list'!D3215)","v":""}]
[null,{"$f":"IF('Generated list'!B3216=\"\",\"\",'Generated list'!B3216)","v":""},{"$f":"IF('Generated list'!C3216=\"\",\"\",'Generated list'!C3216)","v":""},{"$f":"IF('Generated list'!D3216=\"\",\"\",'Generated list'!D3216)","v":""}]
[null,{"$f":"IF('Generated list'!B3217=\"\",\"\",'Generated list'!B3217)","v":""},{"$f":"IF('Generated list'!C3217=\"\",\"\",'Generated list'!C3217)","v":""},{"$f":"IF('Generated list'!D3217=\"\",\"\",'Generated list'!D3217)","v":""}]
[null,{"$f":"IF('Generated list'!B3218=\"\",\"\",'Generated list'!B3218)","v":""},{"$f":"IF('Generated list'!C3218=\"\",\"\",'Generated list'!C3218)","v":""},{"$f":"IF('Generated list'!D3218=\"\",\"\",'Generated list'!D3218)","v":""}]
[null,{"$f":"IF('Generated list'!B3219=\"\",\"\",'Generated list'!B3219)","v":""},{"$f":"IF('Generated list'!C3219=\"\",\"\",'Generated list'!C3219)","v":""},{"$f":"IF('Generated list'!D3219=\"\",\"\",'Generated list'!D3219)","v":""}]
[null,{"$f":"IF('Generated list'!B3220=\"\",\"\",'Generated list'!B3220)","v":""},{"$f":"IF('Generated list'!C3220=\"\",\"\",'Generated list'!C3220)","v":""},{"$f":"IF('Generated list'!D3220=\"\",\"\",'Generated list'!D3220)","v":""}]
[null,{"$f":"IF('Generated list'!B3221=\"\",\"\",'Generated list'!B3221)","v":""},{"$f":"IF('Generated list'!C3221=\"\",\"\",'Generated list'!C3221)","v":""},{"$f":"IF('Generated list'!D3221=\"\",\"\",'Generated list'!D3221)","v":""}]
[null,{"$f":"IF('Generated list'!B3222=\"\",\"\",'Generated list'!B3222)","v":""},{"$f":"IF('Generated list'!C3222=\"\",\"\",'Generated list'!C3222)","v":""},{"$f":"IF('Generated list'!D3222=\"\",\"\",'Generated list'!D3222)","v":""}]
[null,{"$f":"IF('Generated list'!B3223=\"\",\"\",'Generated list'!B3223)","v":""},{"$f":"IF('Generated list'!C3223=\"\",\"\",'Generated list'!C3223)","v":""},{"$f":"IF('Generated list'!D3223=\"\",\"\",'Generated list'!D3223)","v":""}]
[null,{"$f":"IF('Generated list'!B3224=\"\",\"\",'Generated list'!B3224)","v":""},{"$f":"IF('Generated list'!C3224=\"\",\"\",'Generated list'!C3224)","v":""},{"$f":"IF('Generated list'!D3224=\"\",\"\",'Generated list'!D3224)","v":""}]
[null,{"$f":"IF('Generated list'!B3225=\"\",\"\",'Generated list'!B3225)","v":""},{"$f":"IF('Generated list'!C3225=\"\",\"\",'Generated list'!C3225)","v":""},{"$f":"IF('Generated list'!D3225=\"\",\"\",'Generated list'!D3225)","v":""}]
[null,{"$f":"IF('Generated list'!B3226=\"\",\"\",'Generated list'!B3226)","v":""},{"$f":"IF('Generated list'!C3226=\"\",\"\",'Generated list'!C3226)","v":""},{"$f":"IF('Generated list'!D3226=\"\",\"\",'Generated list'!D3226)","v":""}]
[null,{"$f":"IF('Generated list'!B3227=\"\",\"\",'Generated list'!B3227)","v":""},{"$f":"IF('Generated list'!C3227=\"\",\"\",'Generated list'!C3227)","v":""},{"$f":"IF('Generated list'!D3227=\"\",\"\",'Generated list'!D3227)","v":""}]
[null,{"$f":"IF('Generated list'!B3228=\"\",\"\",'Generated list'!B3228)","v":""},{"$f":"IF('Generated list'!C3228=\"\",\"\",'Generated list'!C3228)","v":""},{"$f":"IF('Generated list'!D3228=\"\",\"\",'Generated list'!D3228)","v":""}]
[null,{"$f":"IF('Generated list'!B3229=\"\",\"\",'Generated list'!B3229)","v":""},{"$f":"IF('Generated list'!C3229=\"\",\"\",'Generated list'!C3229)","v":""},{"$f":"IF('Generated list'!D3229=\"\",\"\",'Generated list'!D3229)","v":""}]
[null,{"$f":"IF('Generated list'!B3230=\"\",\"\",'Generated list'!B3230)","v":""},{"$f":"IF('Generated list'!C3230=\"\",\"\",'Generated list'!C3230)","v":""},{"$f":"IF('Generated list'!D3230=\"\",\"\",'Generated list'!D3230)","v":""}]
[null,{"$f":"IF('Generated list'!B3231=\"\",\"\",'Generated list'!B3231)","v":""},{"$f":"IF('Generated list'!C3231=\"\",\"\",'Generated list'!C3231)","v":""},{"$f":"IF('Generated list'!D3231=\"\",\"\",'Generated list'!D3231)","v":""}]
[null,{"$f":"IF('Generated list'!B3232=\"\",\"\",'Generated list'!B3232)","v":""},{"$f":"IF('Generated list'!C3232=\"\",\"\",'Generated list'!C3232)","v":""},{"$f":"IF('Generated list'!D3232=\"\",\"\",'Generated list'!D3232)","v":""}]
[null,{"$f":"IF('Generated list'!B3233=\"\",\"\",'Generated list'!B3233)","v":""},{"$f":"IF('Generated list'!C3233=\"\",\"\",'Generated list'!C3233)","v":""},{"$f":"IF('Generated list'!D3233=\"\",\"\",'Generated list'!D3233)","v":""}]
[null,{"$f":"IF('Generated list'!B3234=\"\",\"\",'Generated list'!B3234)","v":""},{"$f":"IF('Generated list'!C3234=\"\",\"\",'Generated list'!C3234)","v":""},{"$f":"IF('Generated list'!D3234=\"\",\"\",'Generated list'!D3234)","v":""}]
[null,{"$f":"IF('Generated list'!B3235=\"\",\"\",'Generated list'!B3235)","v":""},{"$f":"IF('Generated list'!C3235=\"\",\"\",'Generated list'!C3235)","v":""},{"$f":"IF('Generated list'!D3235=\"\",\"\",'Generated list'!D3235)","v":""}]
[null,{"$f":"IF('Generated list'!B3236=\"\",\"\",'Generated list'!B3236)","v":""},{"$f":"IF('Generated list'!C3236=\"\",\"\",'Generated list'!C3236)","v":""},{"$f":"IF('Generated list'!D3236=\"\",\"\",'Generated list'!D3236)","v":""}]
[null,{"$f":"IF('Generated list'!B3237=\"\",\"\",'Generated list'!B3237)","v":""},{"$f":"IF('Generated list'!C3237=\"\",\"\",'Generated list'!C3237)","v":""},{"$f":"IF('Generated list'!D3237=\"\",\"\",'Generated list'!D3237)","v":""}]
[null,{"$f":"IF('Generated list'!B3238=\"\",\"\",'Generated list'!B3238)","v":""},{"$f":"IF('Generated list'!C3238=\"\",\"\",'Generated list'!C3238)","v":""},{"$f":"IF('Generated list'!D3238=\"\",\"\",'Generated list'!D3238)","v":""}]
[null,{"$f":"IF('Generated list'!B3239=\"\",\"\",'Generated list'!B3239)","v":""},{"$f":"IF('Generated list'!C3239=\"\",\"\",'Generated list'!C3239)","v":""},{"$f":"IF('Generated list'!D3239=\"\",\"\",'Generated list'!D3239)","v":""}]
[null,{"$f":"IF('Generated list'!B3240=\"\",\"\",'Generated list'!B3240)","v":""},{"$f":"IF('Generated list'!C3240=\"\",\"\",'Generated list'!C3240)","v":""},{"$f":"IF('Generated list'!D3240=\"\",\"\",'Generated list'!D3240)","v":""}]
[null,{"$f":"IF('Generated list'!B3241=\"\",\"\",'Generated list'!B3241)","v":""},{"$f":"IF('Generated list'!C3241=\"\",\"\",'Generated list'!C3241)","v":""},{"$f":"IF('Generated list'!D3241=\"\",\"\",'Generated list'!D3241)","v":""}]
[null,{"$f":"IF('Generated list'!B3242=\"\",\"\",'Generated list'!B3242)","v":""},{"$f":"IF('Generated list'!C3242=\"\",\"\",'Generated list'!C3242)","v":""},{"$f":"IF('Generated list'!D3242=\"\",\"\",'Generated list'!D3242)","v":""}]
[null,{"$f":"IF('Generated list'!B3243=\"\",\"\",'Generated list'!B3243)","v":""},{"$f":"IF('Generated list'!C3243=\"\",\"\",'Generated list'!C3243)","v":""},{"$f":"IF('Generated list'!D3243=\"\",\"\",'Generated list'!D3243)","v":""}]
[null,{"$f":"IF('Generated list'!B3244=\"\",\"\",'Generated list'!B3244)","v":""},{"$f":"IF('Generated list'!C3244=\"\",\"\",'Generated list'!C3244)","v":""},{"$f":"IF('Generated list'!D3244=\"\",\"\",'Generated list'!D3244)","v":""}]
[null,{"$f":"IF('Generated list'!B3245=\"\",\"\",'Generated list'!B3245)","v":""},{"$f":"IF('Generated list'!C3245=\"\",\"\",'Generated list'!C3245)","v":""},{"$f":"IF('Generated list'!D3245=\"\",\"\",'Generated list'!D3245)","v":""}]
[null,{"$f":"IF('Generated list'!B3246=\"\",\"\",'Generated list'!B3246)","v":""},{"$f":"IF('Generated list'!C3246=\"\",\"\",'Generated list'!C3246)","v":""},{"$f":"IF('Generated list'!D3246=\"\",\"\",'Generated list'!D3246)","v":""}]
[null,{"$f":"IF('Generated list'!B3247=\"\",\"\",'Generated list'!B3247)","v":""},{"$f":"IF('Generated list'!C3247=\"\",\"\",'Generated list'!C3247)","v":""},{"$f":"IF('Generated list'!D3247=\"\",\"\",'Generated list'!D3247)","v":""}]
[null,{"$f":"IF('Generated list'!B3248=\"\",\"\",'Generated list'!B3248)","v":""},{"$f":"IF('Generated list'!C3248=\"\",\"\",'Generated list'!C3248)","v":""},{"$f":"IF('Generated list'!D3248=\"\",\"\",'Generated list'!D3248)","v":""}]
[null,{"$f":"IF('Generated list'!B3249=\"\",\"\",'Generated list'!B3249)","v":""},{"$f":"IF('Generated list'!C3249=\"\",\"\",'Generated list'!C3249)","v":""},{"$f":"IF('Generated list'!D3249=\"\",\"\",'Generated list'!D3249)","v":""}]
[null,{"$f":"IF('Generated list'!B3250=\"\",\"\",'Generated list'!B3250)","v":""},{"$f":"IF('Generated list'!C3250=\"\",\"\",'Generated list'!C3250)","v":""},{"$f":"IF('Generated list'!D3250=\"\",\"\",'Generated list'!D3250)","v":""}]
[null,{"$f":"IF('Generated list'!B3251=\"\",\"\",'Generated list'!B3251)","v":""},{"$f":"IF('Generated list'!C3251=\"\",\"\",'Generated list'!C3251)","v":""},{"$f":"IF('Generated list'!D3251=\"\",\"\",'Generated list'!D3251)","v":""}]
[null,{"$f":"IF('Generated list'!B3252=\"\",\"\",'Generated list'!B3252)","v":""},{"$f":"IF('Generated list'!C3252=\"\",\"\",'Generated list'!C3252)","v":""},{"$f":"IF('Generated list'!D3252=\"\",\"\",'Generated list'!D3252)","v":""}]
[null,{"$f":"IF('Generated list'!B3253=\"\",\"\",'Generated list'!B3253)","v":""},{"$f":"IF('Generated list'!C3253=\"\",\"\",'Generated list'!C3253)","v":""},{"$f":"IF('Generated list'!D3253=\"\",\"\",'Generated list'!D3253)","v":""}]
[null,{"$f":"IF('Generated list'!B3254=\"\",\"\",'Generated list'!B3254)","v":""},{"$f":"IF('Generated list'!C3254=\"\",\"\",'Generated list'!C3254)","v":""},{"$f":"IF('Generated list'!D3254=\"\",\"\",'Generated list'!D3254)","v":""}]
[null,{"$f":"IF('Generated list'!B3255=\"\",\"\",'Generated list'!B3255)","v":""},{"$f":"IF('Generated list'!C3255=\"\",\"\",'Generated list'!C3255)","v":""},{"$f":"IF('Generated list'!D3255=\"\",\"\",'Generated list'!D3255)","v":""}]
[null,{"$f":"IF('Generated list'!B3256=\"\",\"\",'Generated list'!B3256)","v":""},{"$f":"IF('Generated list'!C3256=\"\",\"\",'Generated list'!C3256)","v":""},{"$f":"IF('Generated list'!D3256=\"\",\"\",'Generated list'!D3256)","v":""}]
[null,{"$f":"IF('Generated list'!B3257=\"\",\"\",'Generated list'!B3257)","v":""},{"$f":"IF('Generated list'!C3257=\"\",\"\",'Generated list'!C3257)","v":""},{"$f":"IF('Generated list'!D3257=\"\",\"\",'Generated list'!D3257)","v":""}]
[null,{"$f":"IF('Generated list'!B3258=\"\",\"\",'Generated list'!B3258)","v":""},{"$f":"IF('Generated list'!C3258=\"\",\"\",'Generated list'!C3258)","v":""},{"$f":"IF('Generated list'!D3258=\"\",\"\",'Generated list'!D3258)","v":""}]
[null,{"$f":"IF('Generated list'!B3259=\"\",\"\",'Generated list'!B3259)","v":""},{"$f":"IF('Generated list'!C3259=\"\",\"\",'Generated list'!C3259)","v":""},{"$f":"IF('Generated list'!D3259=\"\",\"\",'Generated list'!D3259)","v":""}]
[null,{"$f":"IF('Generated list'!B3260=\"\",\"\",'Generated list'!B3260)","v":""},{"$f":"IF('Generated list'!C3260=\"\",\"\",'Generated list'!C3260)","v":""},{"$f":"IF('Generated list'!D3260=\"\",\"\",'Generated list'!D3260)","v":""}]
[null,{"$f":"IF('Generated list'!B3261=\"\",\"\",'Generated list'!B3261)","v":""},{"$f":"IF('Generated list'!C3261=\"\",\"\",'Generated list'!C3261)","v":""},{"$f":"IF('Generated list'!D3261=\"\",\"\",'Generated list'!D3261)","v":""}]
[null,{"$f":"IF('Generated list'!B3262=\"\",\"\",'Generated list'!B3262)","v":""},{"$f":"IF('Generated list'!C3262=\"\",\"\",'Generated list'!C3262)","v":""},{"$f":"IF('Generated list'!D3262=\"\",\"\",'Generated list'!D3262)","v":""}]
[null,{"$f":"IF('Generated list'!B3263=\"\",\"\",'Generated list'!B3263)","v":""},{"$f":"IF('Generated list'!C3263=\"\",\"\",'Generated list'!C3263)","v":""},{"$f":"IF('Generated list'!D3263=\"\",\"\",'Generated list'!D3263)","v":""}]
[null,{"$f":"IF('Generated list'!B3264=\"\",\"\",'Generated list'!B3264)","v":""},{"$f":"IF('Generated list'!C3264=\"\",\"\",'Generated list'!C3264)","v":""},{"$f":"IF('Generated list'!D3264=\"\",\"\",'Generated list'!D3264)","v":""}]
[null,{"$f":"IF('Generated list'!B3265=\"\",\"\",'Generated list'!B3265)","v":""},{"$f":"IF('Generated list'!C3265=\"\",\"\",'Generated list'!C3265)","v":""},{"$f":"IF('Generated list'!D3265=\"\",\"\",'Generated list'!D3265)","v":""}]
[null,{"$f":"IF('Generated list'!B3266=\"\",\"\",'Generated list'!B3266)","v":""},{"$f":"IF('Generated list'!C3266=\"\",\"\",'Generated list'!C3266)","v":""},{"$f":"IF('Generated list'!D3266=\"\",\"\",'Generated list'!D3266)","v":""}]
[null,{"$f":"IF('Generated list'!B3267=\"\",\"\",'Generated list'!B3267)","v":""},{"$f":"IF('Generated list'!C3267=\"\",\"\",'Generated list'!C3267)","v":""},{"$f":"IF('Generated list'!D3267=\"\",\"\",'Generated list'!D3267)","v":""}]
[null,{"$f":"IF('Generated list'!B3268=\"\",\"\",'Generated list'!B3268)","v":""},{"$f":"IF('Generated list'!C3268=\"\",\"\",'Generated list'!C3268)","v":""},{"$f":"IF('Generated list'!D3268=\"\",\"\",'Generated list'!D3268)","v":""}]
[null,{"$f":"IF('Generated list'!B3269=\"\",\"\",'Generated list'!B3269)","v":""},{"$f":"IF('Generated list'!C3269=\"\",\"\",'Generated list'!C3269)","v":""},{"$f":"IF('Generated list'!D3269=\"\",\"\",'Generated list'!D3269)","v":""}]
[null,{"$f":"IF('Generated list'!B3270=\"\",\"\",'Generated list'!B3270)","v":""},{"$f":"IF('Generated list'!C3270=\"\",\"\",'Generated list'!C3270)","v":""},{"$f":"IF('Generated list'!D3270=\"\",\"\",'Generated list'!D3270)","v":""}]
[null,{"$f":"IF('Generated list'!B3271=\"\",\"\",'Generated list'!B3271)","v":""},{"$f":"IF('Generated list'!C3271=\"\",\"\",'Generated list'!C3271)","v":""},{"$f":"IF('Generated list'!D3271=\"\",\"\",'Generated list'!D3271)","v":""}]
[null,{"$f":"IF('Generated list'!B3272=\"\",\"\",'Generated list'!B3272)","v":""},{"$f":"IF('Generated list'!C3272=\"\",\"\",'Generated list'!C3272)","v":""},{"$f":"IF('Generated list'!D3272=\"\",\"\",'Generated list'!D3272)","v":""}]
[null,{"$f":"IF('Generated list'!B3273=\"\",\"\",'Generated list'!B3273)","v":""},{"$f":"IF('Generated list'!C3273=\"\",\"\",'Generated list'!C3273)","v":""},{"$f":"IF('Generated list'!D3273=\"\",\"\",'Generated list'!D3273)","v":""}]
[null,{"$f":"IF('Generated list'!B3274=\"\",\"\",'Generated list'!B3274)","v":""},{"$f":"IF('Generated list'!C3274=\"\",\"\",'Generated list'!C3274)","v":""},{"$f":"IF('Generated list'!D3274=\"\",\"\",'Generated list'!D3274)","v":""}]
[null,{"$f":"IF('Generated list'!B3275=\"\",\"\",'Generated list'!B3275)","v":""},{"$f":"IF('Generated list'!C3275=\"\",\"\",'Generated list'!C3275)","v":""},{"$f":"IF('Generated list'!D3275=\"\",\"\",'Generated list'!D3275)","v":""}]
[null,{"$f":"IF('Generated list'!B3276=\"\",\"\",'Generated list'!B3276)","v":""},{"$f":"IF('Generated list'!C3276=\"\",\"\",'Generated list'!C3276)","v":""},{"$f":"IF('Generated list'!D3276=\"\",\"\",'Generated list'!D3276)","v":""}]
[null,{"$f":"IF('Generated list'!B3277=\"\",\"\",'Generated list'!B3277)","v":""},{"$f":"IF('Generated list'!C3277=\"\",\"\",'Generated list'!C3277)","v":""},{"$f":"IF('Generated list'!D3277=\"\",\"\",'Generated list'!D3277)","v":""}]
[null,{"$f":"IF('Generated list'!B3278=\"\",\"\",'Generated list'!B3278)","v":""},{"$f":"IF('Generated list'!C3278=\"\",\"\",'Generated list'!C3278)","v":""},{"$f":"IF('Generated list'!D3278=\"\",\"\",'Generated list'!D3278)","v":""}]
[null,{"$f":"IF('Generated list'!B3279=\"\",\"\",'Generated list'!B3279)","v":""},{"$f":"IF('Generated list'!C3279=\"\",\"\",'Generated list'!C3279)","v":""},{"$f":"IF('Generated list'!D3279=\"\",\"\",'Generated list'!D3279)","v":""}]
[null,{"$f":"IF('Generated list'!B3280=\"\",\"\",'Generated list'!B3280)","v":""},{"$f":"IF('Generated list'!C3280=\"\",\"\",'Generated list'!C3280)","v":""},{"$f":"IF('Generated list'!D3280=\"\",\"\",'Generated list'!D3280)","v":""}]
[null,{"$f":"IF('Generated list'!B3281=\"\",\"\",'Generated list'!B3281)","v":""},{"$f":"IF('Generated list'!C3281=\"\",\"\",'Generated list'!C3281)","v":""},{"$f":"IF('Generated list'!D3281=\"\",\"\",'Generated list'!D3281)","v":""}]
[null,{"$f":"IF('Generated list'!B3282=\"\",\"\",'Generated list'!B3282)","v":""},{"$f":"IF('Generated list'!C3282=\"\",\"\",'Generated list'!C3282)","v":""},{"$f":"IF('Generated list'!D3282=\"\",\"\",'Generated list'!D3282)","v":""}]
[null,{"$f":"IF('Generated list'!B3283=\"\",\"\",'Generated list'!B3283)","v":""},{"$f":"IF('Generated list'!C3283=\"\",\"\",'Generated list'!C3283)","v":""},{"$f":"IF('Generated list'!D3283=\"\",\"\",'Generated list'!D3283)","v":""}]
[null,{"$f":"IF('Generated list'!B3284=\"\",\"\",'Generated list'!B3284)","v":""},{"$f":"IF('Generated list'!C3284=\"\",\"\",'Generated list'!C3284)","v":""},{"$f":"IF('Generated list'!D3284=\"\",\"\",'Generated list'!D3284)","v":""}]
[null,{"$f":"IF('Generated list'!B3285=\"\",\"\",'Generated list'!B3285)","v":""},{"$f":"IF('Generated list'!C3285=\"\",\"\",'Generated list'!C3285)","v":""},{"$f":"IF('Generated list'!D3285=\"\",\"\",'Generated list'!D3285)","v":""}]
[null,{"$f":"IF('Generated list'!B3286=\"\",\"\",'Generated list'!B3286)","v":""},{"$f":"IF('Generated list'!C3286=\"\",\"\",'Generated list'!C3286)","v":""},{"$f":"IF('Generated list'!D3286=\"\",\"\",'Generated list'!D3286)","v":""}]
[null,{"$f":"IF('Generated list'!B3287=\"\",\"\",'Generated list'!B3287)","v":""},{"$f":"IF('Generated list'!C3287=\"\",\"\",'Generated list'!C3287)","v":""},{"$f":"IF('Generated list'!D3287=\"\",\"\",'Generated list'!D3287)","v":""}]
[null,{"$f":"IF('Generated list'!B3288=\"\",\"\",'Generated list'!B3288)","v":""},{"$f":"IF('Generated list'!C3288=\"\",\"\",'Generated list'!C3288)","v":""},{"$f":"IF('Generated list'!D3288=\"\",\"\",'Generated list'!D3288)","v":""}]
[null,{"$f":"IF('Generated list'!B3289=\"\",\"\",'Generated list'!B3289)","v":""},{"$f":"IF('Generated list'!C3289=\"\",\"\",'Generated list'!C3289)","v":""},{"$f":"IF('Generated list'!D3289=\"\",\"\",'Generated list'!D3289)","v":""}]
[null,{"$f":"IF('Generated list'!B3290=\"\",\"\",'Generated list'!B3290)","v":""},{"$f":"IF('Generated list'!C3290=\"\",\"\",'Generated list'!C3290)","v":""},{"$f":"IF('Generated list'!D3290=\"\",\"\",'Generated list'!D3290)","v":""}]
[null,{"$f":"IF('Generated list'!B3291=\"\",\"\",'Generated list'!B3291)","v":""},{"$f":"IF('Generated list'!C3291=\"\",\"\",'Generated list'!C3291)","v":""},{"$f":"IF('Generated list'!D3291=\"\",\"\",'Generated list'!D3291)","v":""}]
[null,{"$f":"IF('Generated list'!B3292=\"\",\"\",'Generated list'!B3292)","v":""},{"$f":"IF('Generated list'!C3292=\"\",\"\",'Generated list'!C3292)","v":""},{"$f":"IF('Generated list'!D3292=\"\",\"\",'Generated list'!D3292)","v":""}]
[null,{"$f":"IF('Generated list'!B3293=\"\",\"\",'Generated list'!B3293)","v":""},{"$f":"IF('Generated list'!C3293=\"\",\"\",'Generated list'!C3293)","v":""},{"$f":"IF('Generated list'!D3293=\"\",\"\",'Generated list'!D3293)","v":""}]
[null,{"$f":"IF('Generated list'!B3294=\"\",\"\",'Generated list'!B3294)","v":""},{"$f":"IF('Generated list'!C3294=\"\",\"\",'Generated list'!C3294)","v":""},{"$f":"IF('Generated list'!D3294=\"\",\"\",'Generated list'!D3294)","v":""}]
[null,{"$f":"IF('Generated list'!B3295=\"\",\"\",'Generated list'!B3295)","v":""},{"$f":"IF('Generated list'!C3295=\"\",\"\",'Generated list'!C3295)","v":""},{"$f":"IF('Generated list'!D3295=\"\",\"\",'Generated list'!D3295)","v":""}]
[null,{"$f":"IF('Generated list'!B3296=\"\",\"\",'Generated list'!B3296)","v":""},{"$f":"IF('Generated list'!C3296=\"\",\"\",'Generated list'!C3296)","v":""},{"$f":"IF('Generated list'!D3296=\"\",\"\",'Generated list'!D3296)","v":""}]
[null,{"$f":"IF('Generated list'!B3297=\"\",\"\",'Generated list'!B3297)","v":""},{"$f":"IF('Generated list'!C3297=\"\",\"\",'Generated list'!C3297)","v":""},{"$f":"IF('Generated list'!D3297=\"\",\"\",'Generated list'!D3297)","v":""}]
[null,{"$f":"IF('Generated list'!B3298=\"\",\"\",'Generated list'!B3298)","v":""},{"$f":"IF('Generated list'!C3298=\"\",\"\",'Generated list'!C3298)","v":""},{"$f":"IF('Generated list'!D3298=\"\",\"\",'Generated list'!D3298)","v":""}]
[null,{"$f":"IF('Generated list'!B3299=\"\",\"\",'Generated list'!B3299)","v":""},{"$f":"IF('Generated list'!C3299=\"\",\"\",'Generated list'!C3299)","v":""},{"$f":"IF('Generated list'!D3299=\"\",\"\",'Generated list'!D3299)","v":""}]
[null,{"$f":"IF('Generated list'!B3300=\"\",\"\",'Generated list'!B3300)","v":""},{"$f":"IF('Generated list'!C3300=\"\",\"\",'Generated list'!C3300)","v":""},{"$f":"IF('Generated list'!D3300=\"\",\"\",'Generated list'!D3300)","v":""}]
[null,{"$f":"IF('Generated list'!B3301=\"\",\"\",'Generated list'!B3301)","v":""},{"$f":"IF('Generated list'!C3301=\"\",\"\",'Generated list'!C3301)","v":""},{"$f":"IF('Generated list'!D3301=\"\",\"\",'Generated list'!D3301)","v":""}]
[null,{"$f":"IF('Generated list'!B3302=\"\",\"\",'Generated list'!B3302)","v":""},{"$f":"IF('Generated list'!C3302=\"\",\"\",'Generated list'!C3302)","v":""},{"$f":"IF('Generated list'!D3302=\"\",\"\",'Generated list'!D3302)","v":""}]
[null,{"$f":"IF('Generated list'!B3303=\"\",\"\",'Generated list'!B3303)","v":""},{"$f":"IF('Generated list'!C3303=\"\",\"\",'Generated list'!C3303)","v":""},{"$f":"IF('Generated list'!D3303=\"\",\"\",'Generated list'!D3303)","v":""}]
[null,{"$f":"IF('Generated list'!B3304=\"\",\"\",'Generated list'!B3304)","v":""},{"$f":"IF('Generated list'!C3304=\"\",\"\",'Generated list'!C3304)","v":""},{"$f":"IF('Generated list'!D3304=\"\",\"\",'Generated list'!D3304)","v":""}]
[null,{"$f":"IF('Generated list'!B3305=\"\",\"\",'Generated list'!B3305)","v":""},{"$f":"IF('Generated list'!C3305=\"\",\"\",'Generated list'!C3305)","v":""},{"$f":"IF('Generated list'!D3305=\"\",\"\",'Generated list'!D3305)","v":""}]
[null,{"$f":"IF('Generated list'!B3306=\"\",\"\",'Generated list'!B3306)","v":""},{"$f":"IF('Generated list'!C3306=\"\",\"\",'Generated list'!C3306)","v":""},{"$f":"IF('Generated list'!D3306=\"\",\"\",'Generated list'!D3306)","v":""}]
[null,{"$f":"IF('Generated list'!B3307=\"\",\"\",'Generated list'!B3307)","v":""},{"$f":"IF('Generated list'!C3307=\"\",\"\",'Generated list'!C3307)","v":""},{"$f":"IF('Generated list'!D3307=\"\",\"\",'Generated list'!D3307)","v":""}]
[null,{"$f":"IF('Generated list'!B3308=\"\",\"\",'Generated list'!B3308)","v":""},{"$f":"IF('Generated list'!C3308=\"\",\"\",'Generated list'!C3308)","v":""},{"$f":"IF('Generated list'!D3308=\"\",\"\",'Generated list'!D3308)","v":""}]
[null,{"$f":"IF('Generated list'!B3309=\"\",\"\",'Generated list'!B3309)","v":""},{"$f":"IF('Generated list'!C3309=\"\",\"\",'Generated list'!C3309)","v":""},{"$f":"IF('Generated list'!D3309=\"\",\"\",'Generated list'!D3309)","v":""}]
[null,{"$f":"IF('Generated list'!B3310=\"\",\"\",'Generated list'!B3310)","v":""},{"$f":"IF('Generated list'!C3310=\"\",\"\",'Generated list'!C3310)","v":""},{"$f":"IF('Generated list'!D3310=\"\",\"\",'Generated list'!D3310)","v":""}]
[null,{"$f":"IF('Generated list'!B3311=\"\",\"\",'Generated list'!B3311)","v":""},{"$f":"IF('Generated list'!C3311=\"\",\"\",'Generated list'!C3311)","v":""},{"$f":"IF('Generated list'!D3311=\"\",\"\",'Generated list'!D3311)","v":""}]
[null,{"$f":"IF('Generated list'!B3312=\"\",\"\",'Generated list'!B3312)","v":""},{"$f":"IF('Generated list'!C3312=\"\",\"\",'Generated list'!C3312)","v":""},{"$f":"IF('Generated list'!D3312=\"\",\"\",'Generated list'!D3312)","v":""}]
[null,{"$f":"IF('Generated list'!B3313=\"\",\"\",'Generated list'!B3313)","v":""},{"$f":"IF('Generated list'!C3313=\"\",\"\",'Generated list'!C3313)","v":""},{"$f":"IF('Generated list'!D3313=\"\",\"\",'Generated list'!D3313)","v":""}]
[null,{"$f":"IF('Generated list'!B3314=\"\",\"\",'Generated list'!B3314)","v":""},{"$f":"IF('Generated list'!C3314=\"\",\"\",'Generated list'!C3314)","v":""},{"$f":"IF('Generated list'!D3314=\"\",\"\",'Generated list'!D3314)","v":""}]
[null,{"$f":"IF('Generated list'!B3315=\"\",\"\",'Generated list'!B3315)","v":""},{"$f":"IF('Generated list'!C3315=\"\",\"\",'Generated list'!C3315)","v":""},{"$f":"IF('Generated list'!D3315=\"\",\"\",'Generated list'!D3315)","v":""}]
[null,{"$f":"IF('Generated list'!B3316=\"\",\"\",'Generated list'!B3316)","v":""},{"$f":"IF('Generated list'!C3316=\"\",\"\",'Generated list'!C3316)","v":""},{"$f":"IF('Generated list'!D3316=\"\",\"\",'Generated list'!D3316)","v":""}]
[null,{"$f":"IF('Generated list'!B3317=\"\",\"\",'Generated list'!B3317)","v":""},{"$f":"IF('Generated list'!C3317=\"\",\"\",'Generated list'!C3317)","v":""},{"$f":"IF('Generated list'!D3317=\"\",\"\",'Generated list'!D3317)","v":""}]
[null,{"$f":"IF('Generated list'!B3318=\"\",\"\",'Generated list'!B3318)","v":""},{"$f":"IF('Generated list'!C3318=\"\",\"\",'Generated list'!C3318)","v":""},{"$f":"IF('Generated list'!D3318=\"\",\"\",'Generated list'!D3318)","v":""}]
[null,{"$f":"IF('Generated list'!B3319=\"\",\"\",'Generated list'!B3319)","v":""},{"$f":"IF('Generated list'!C3319=\"\",\"\",'Generated list'!C3319)","v":""},{"$f":"IF('Generated list'!D3319=\"\",\"\",'Generated list'!D3319)","v":""}]
[null,{"$f":"IF('Generated list'!B3320=\"\",\"\",'Generated list'!B3320)","v":""},{"$f":"IF('Generated list'!C3320=\"\",\"\",'Generated list'!C3320)","v":""},{"$f":"IF('Generated list'!D3320=\"\",\"\",'Generated list'!D3320)","v":""}]
[null,{"$f":"IF('Generated list'!B3321=\"\",\"\",'Generated list'!B3321)","v":""},{"$f":"IF('Generated list'!C3321=\"\",\"\",'Generated list'!C3321)","v":""},{"$f":"IF('Generated list'!D3321=\"\",\"\",'Generated list'!D3321)","v":""}]
[null,{"$f":"IF('Generated list'!B3322=\"\",\"\",'Generated list'!B3322)","v":""},{"$f":"IF('Generated list'!C3322=\"\",\"\",'Generated list'!C3322)","v":""},{"$f":"IF('Generated list'!D3322=\"\",\"\",'Generated list'!D3322)","v":""}]
[null,{"$f":"IF('Generated list'!B3323=\"\",\"\",'Generated list'!B3323)","v":""},{"$f":"IF('Generated list'!C3323=\"\",\"\",'Generated list'!C3323)","v":""},{"$f":"IF('Generated list'!D3323=\"\",\"\",'Generated list'!D3323)","v":""}]
[null,{"$f":"IF('Generated list'!B3324=\"\",\"\",'Generated list'!B3324)","v":""},{"$f":"IF('Generated list'!C3324=\"\",\"\",'Generated list'!C3324)","v":""},{"$f":"IF('Generated list'!D3324=\"\",\"\",'Generated list'!D3324)","v":""}]
[null,{"$f":"IF('Generated list'!B3325=\"\",\"\",'Generated list'!B3325)","v":""},{"$f":"IF('Generated list'!C3325=\"\",\"\",'Generated list'!C3325)","v":""},{"$f":"IF('Generated list'!D3325=\"\",\"\",'Generated list'!D3325)","v":""}]
[null,{"$f":"IF('Generated list'!B3326=\"\",\"\",'Generated list'!B3326)","v":""},{"$f":"IF('Generated list'!C3326=\"\",\"\",'Generated list'!C3326)","v":""},{"$f":"IF('Generated list'!D3326=\"\",\"\",'Generated list'!D3326)","v":""}]
[null,{"$f":"IF('Generated list'!B3327=\"\",\"\",'Generated list'!B3327)","v":""},{"$f":"IF('Generated list'!C3327=\"\",\"\",'Generated list'!C3327)","v":""},{"$f":"IF('Generated list'!D3327=\"\",\"\",'Generated list'!D3327)","v":""}]
[null,{"$f":"IF('Generated list'!B3328=\"\",\"\",'Generated list'!B3328)","v":""},{"$f":"IF('Generated list'!C3328=\"\",\"\",'Generated list'!C3328)","v":""},{"$f":"IF('Generated list'!D3328=\"\",\"\",'Generated list'!D3328)","v":""}]
[null,{"$f":"IF('Generated list'!B3329=\"\",\"\",'Generated list'!B3329)","v":""},{"$f":"IF('Generated list'!C3329=\"\",\"\",'Generated list'!C3329)","v":""},{"$f":"IF('Generated list'!D3329=\"\",\"\",'Generated list'!D3329)","v":""}]
[null,{"$f":"IF('Generated list'!B3330=\"\",\"\",'Generated list'!B3330)","v":""},{"$f":"IF('Generated list'!C3330=\"\",\"\",'Generated list'!C3330)","v":""},{"$f":"IF('Generated list'!D3330=\"\",\"\",'Generated list'!D3330)","v":""}]
[null,{"$f":"IF('Generated list'!B3331=\"\",\"\",'Generated list'!B3331)","v":""},{"$f":"IF('Generated list'!C3331=\"\",\"\",'Generated list'!C3331)","v":""},{"$f":"IF('Generated list'!D3331=\"\",\"\",'Generated list'!D3331)","v":""}]
[null,{"$f":"IF('Generated list'!B3332=\"\",\"\",'Generated list'!B3332)","v":""},{"$f":"IF('Generated list'!C3332=\"\",\"\",'Generated list'!C3332)","v":""},{"$f":"IF('Generated list'!D3332=\"\",\"\",'Generated list'!D3332)","v":""}]
[null,{"$f":"IF('Generated list'!B3333=\"\",\"\",'Generated list'!B3333)","v":""},{"$f":"IF('Generated list'!C3333=\"\",\"\",'Generated list'!C3333)","v":""},{"$f":"IF('Generated list'!D3333=\"\",\"\",'Generated list'!D3333)","v":""}]
[null,{"$f":"IF('Generated list'!B3334=\"\",\"\",'Generated list'!B3334)","v":""},{"$f":"IF('Generated list'!C3334=\"\",\"\",'Generated list'!C3334)","v":""},{"$f":"IF('Generated list'!D3334=\"\",\"\",'Generated list'!D3334)","v":""}]
[null,{"$f":"IF('Generated list'!B3335=\"\",\"\",'Generated list'!B3335)","v":""},{"$f":"IF('Generated list'!C3335=\"\",\"\",'Generated list'!C3335)","v":""},{"$f":"IF('Generated list'!D3335=\"\",\"\",'Generated list'!D3335)","v":""}]
[null,{"$f":"IF('Generated list'!B3336=\"\",\"\",'Generated list'!B3336)","v":""},{"$f":"IF('Generated list'!C3336=\"\",\"\",'Generated list'!C3336)","v":""},{"$f":"IF('Generated list'!D3336=\"\",\"\",'Generated list'!D3336)","v":""}]
[null,{"$f":"IF('Generated list'!B3337=\"\",\"\",'Generated list'!B3337)","v":""},{"$f":"IF('Generated list'!C3337=\"\",\"\",'Generated list'!C3337)","v":""},{"$f":"IF('Generated list'!D3337=\"\",\"\",'Generated list'!D3337)","v":""}]
[null,{"$f":"IF('Generated list'!B3338=\"\",\"\",'Generated list'!B3338)","v":""},{"$f":"IF('Generated list'!C3338=\"\",\"\",'Generated list'!C3338)","v":""},{"$f":"IF('Generated list'!D3338=\"\",\"\",'Generated list'!D3338)","v":""}]
[null,{"$f":"IF('Generated list'!B3339=\"\",\"\",'Generated list'!B3339)","v":""},{"$f":"IF('Generated list'!C3339=\"\",\"\",'Generated list'!C3339)","v":""},{"$f":"IF('Generated list'!D3339=\"\",\"\",'Generated list'!D3339)","v":""}]
[null,{"$f":"IF('Generated list'!B3340=\"\",\"\",'Generated list'!B3340)","v":""},{"$f":"IF('Generated list'!C3340=\"\",\"\",'Generated list'!C3340)","v":""},{"$f":"IF('Generated list'!D3340=\"\",\"\",'Generated list'!D3340)","v":""}]
[null,{"$f":"IF('Generated list'!B3341=\"\",\"\",'Generated list'!B3341)","v":""},{"$f":"IF('Generated list'!C3341=\"\",\"\",'Generated list'!C3341)","v":""},{"$f":"IF('Generated list'!D3341=\"\",\"\",'Generated list'!D3341)","v":""}]
[null,{"$f":"IF('Generated list'!B3342=\"\",\"\",'Generated list'!B3342)","v":""},{"$f":"IF('Generated list'!C3342=\"\",\"\",'Generated list'!C3342)","v":""},{"$f":"IF('Generated list'!D3342=\"\",\"\",'Generated list'!D3342)","v":""}]
[null,{"$f":"IF('Generated list'!B3343=\"\",\"\",'Generated list'!B3343)","v":""},{"$f":"IF('Generated list'!C3343=\"\",\"\",'Generated list'!C3343)","v":""},{"$f":"IF('Generated list'!D3343=\"\",\"\",'Generated list'!D3343)","v":""}]
[null,{"$f":"IF('Generated list'!B3344=\"\",\"\",'Generated list'!B3344)","v":""},{"$f":"IF('Generated list'!C3344=\"\",\"\",'Generated list'!C3344)","v":""},{"$f":"IF('Generated list'!D3344=\"\",\"\",'Generated list'!D3344)","v":""}]
[null,{"$f":"IF('Generated list'!B3345=\"\",\"\",'Generated list'!B3345)","v":""},{"$f":"IF('Generated list'!C3345=\"\",\"\",'Generated list'!C3345)","v":""},{"$f":"IF('Generated list'!D3345=\"\",\"\",'Generated list'!D3345)","v":""}]
[null,{"$f":"IF('Generated list'!B3346=\"\",\"\",'Generated list'!B3346)","v":""},{"$f":"IF('Generated list'!C3346=\"\",\"\",'Generated list'!C3346)","v":""},{"$f":"IF('Generated list'!D3346=\"\",\"\",'Generated list'!D3346)","v":""}]
[null,{"$f":"IF('Generated list'!B3347=\"\",\"\",'Generated list'!B3347)","v":""},{"$f":"IF('Generated list'!C3347=\"\",\"\",'Generated list'!C3347)","v":""},{"$f":"IF('Generated list'!D3347=\"\",\"\",'Generated list'!D3347)","v":""}]
[null,{"$f":"IF('Generated list'!B3348=\"\",\"\",'Generated list'!B3348)","v":""},{"$f":"IF('Generated list'!C3348=\"\",\"\",'Generated list'!C3348)","v":""},{"$f":"IF('Generated list'!D3348=\"\",\"\",'Generated list'!D3348)","v":""}]
[null,{"$f":"IF('Generated list'!B3349=\"\",\"\",'Generated list'!B3349)","v":""},{"$f":"IF('Generated list'!C3349=\"\",\"\",'Generated list'!C3349)","v":""},{"$f":"IF('Generated list'!D3349=\"\",\"\",'Generated list'!D3349)","v":""}]
[null,{"$f":"IF('Generated list'!B3350=\"\",\"\",'Generated list'!B3350)","v":""},{"$f":"IF('Generated list'!C3350=\"\",\"\",'Generated list'!C3350)","v":""},{"$f":"IF('Generated list'!D3350=\"\",\"\",'Generated list'!D3350)","v":""}]
[null,{"$f":"IF('Generated list'!B3351=\"\",\"\",'Generated list'!B3351)","v":""},{"$f":"IF('Generated list'!C3351=\"\",\"\",'Generated list'!C3351)","v":""},{"$f":"IF('Generated list'!D3351=\"\",\"\",'Generated list'!D3351)","v":""}]
[null,{"$f":"IF('Generated list'!B3352=\"\",\"\",'Generated list'!B3352)","v":""},{"$f":"IF('Generated list'!C3352=\"\",\"\",'Generated list'!C3352)","v":""},{"$f":"IF('Generated list'!D3352=\"\",\"\",'Generated list'!D3352)","v":""}]
[null,{"$f":"IF('Generated list'!B3353=\"\",\"\",'Generated list'!B3353)","v":""},{"$f":"IF('Generated list'!C3353=\"\",\"\",'Generated list'!C3353)","v":""},{"$f":"IF('Generated list'!D3353=\"\",\"\",'Generated list'!D3353)","v":""}]
[null,{"$f":"IF('Generated list'!B3354=\"\",\"\",'Generated list'!B3354)","v":""},{"$f":"IF('Generated list'!C3354=\"\",\"\",'Generated list'!C3354)","v":""},{"$f":"IF('Generated list'!D3354=\"\",\"\",'Generated list'!D3354)","v":""}]
[null,{"$f":"IF('Generated list'!B3355=\"\",\"\",'Generated list'!B3355)","v":""},{"$f":"IF('Generated list'!C3355=\"\",\"\",'Generated list'!C3355)","v":""},{"$f":"IF('Generated list'!D3355=\"\",\"\",'Generated list'!D3355)","v":""}]
[null,{"$f":"IF('Generated list'!B3356=\"\",\"\",'Generated list'!B3356)","v":""},{"$f":"IF('Generated list'!C3356=\"\",\"\",'Generated list'!C3356)","v":""},{"$f":"IF('Generated list'!D3356=\"\",\"\",'Generated list'!D3356)","v":""}]
[null,{"$f":"IF('Generated list'!B3357=\"\",\"\",'Generated list'!B3357)","v":""},{"$f":"IF('Generated list'!C3357=\"\",\"\",'Generated list'!C3357)","v":""},{"$f":"IF('Generated list'!D3357=\"\",\"\",'Generated list'!D3357)","v":""}]
[null,{"$f":"IF('Generated list'!B3358=\"\",\"\",'Generated list'!B3358)","v":""},{"$f":"IF('Generated list'!C3358=\"\",\"\",'Generated list'!C3358)","v":""},{"$f":"IF('Generated list'!D3358=\"\",\"\",'Generated list'!D3358)","v":""}]
[null,{"$f":"IF('Generated list'!B3359=\"\",\"\",'Generated list'!B3359)","v":""},{"$f":"IF('Generated list'!C3359=\"\",\"\",'Generated list'!C3359)","v":""},{"$f":"IF('Generated list'!D3359=\"\",\"\",'Generated list'!D3359)","v":""}]
[null,{"$f":"IF('Generated list'!B3360=\"\",\"\",'Generated list'!B3360)","v":""},{"$f":"IF('Generated list'!C3360=\"\",\"\",'Generated list'!C3360)","v":""},{"$f":"IF('Generated list'!D3360=\"\",\"\",'Generated list'!D3360)","v":""}]
[null,{"$f":"IF('Generated list'!B3361=\"\",\"\",'Generated list'!B3361)","v":""},{"$f":"IF('Generated list'!C3361=\"\",\"\",'Generated list'!C3361)","v":""},{"$f":"IF('Generated list'!D3361=\"\",\"\",'Generated list'!D3361)","v":""}]
[null,{"$f":"IF('Generated list'!B3362=\"\",\"\",'Generated list'!B3362)","v":""},{"$f":"IF('Generated list'!C3362=\"\",\"\",'Generated list'!C3362)","v":""},{"$f":"IF('Generated list'!D3362=\"\",\"\",'Generated list'!D3362)","v":""}]
[null,{"$f":"IF('Generated list'!B3363=\"\",\"\",'Generated list'!B3363)","v":""},{"$f":"IF('Generated list'!C3363=\"\",\"\",'Generated list'!C3363)","v":""},{"$f":"IF('Generated list'!D3363=\"\",\"\",'Generated list'!D3363)","v":""}]
[null,{"$f":"IF('Generated list'!B3364=\"\",\"\",'Generated list'!B3364)","v":""},{"$f":"IF('Generated list'!C3364=\"\",\"\",'Generated list'!C3364)","v":""},{"$f":"IF('Generated list'!D3364=\"\",\"\",'Generated list'!D3364)","v":""}]
[null,{"$f":"IF('Generated list'!B3365=\"\",\"\",'Generated list'!B3365)","v":""},{"$f":"IF('Generated list'!C3365=\"\",\"\",'Generated list'!C3365)","v":""},{"$f":"IF('Generated list'!D3365=\"\",\"\",'Generated list'!D3365)","v":""}]
[null,{"$f":"IF('Generated list'!B3366=\"\",\"\",'Generated list'!B3366)","v":""},{"$f":"IF('Generated list'!C3366=\"\",\"\",'Generated list'!C3366)","v":""},{"$f":"IF('Generated list'!D3366=\"\",\"\",'Generated list'!D3366)","v":""}]
[null,{"$f":"IF('Generated list'!B3367=\"\",\"\",'Generated list'!B3367)","v":""},{"$f":"IF('Generated list'!C3367=\"\",\"\",'Generated list'!C3367)","v":""},{"$f":"IF('Generated list'!D3367=\"\",\"\",'Generated list'!D3367)","v":""}]
[null,{"$f":"IF('Generated list'!B3368=\"\",\"\",'Generated list'!B3368)","v":""},{"$f":"IF('Generated list'!C3368=\"\",\"\",'Generated list'!C3368)","v":""},{"$f":"IF('Generated list'!D3368=\"\",\"\",'Generated list'!D3368)","v":""}]
[null,{"$f":"IF('Generated list'!B3369=\"\",\"\",'Generated list'!B3369)","v":""},{"$f":"IF('Generated list'!C3369=\"\",\"\",'Generated list'!C3369)","v":""},{"$f":"IF('Generated list'!D3369=\"\",\"\",'Generated list'!D3369)","v":""}]
[null,{"$f":"IF('Generated list'!B3370=\"\",\"\",'Generated list'!B3370)","v":""},{"$f":"IF('Generated list'!C3370=\"\",\"\",'Generated list'!C3370)","v":""},{"$f":"IF('Generated list'!D3370=\"\",\"\",'Generated list'!D3370)","v":""}]
[null,{"$f":"IF('Generated list'!B3371=\"\",\"\",'Generated list'!B3371)","v":""},{"$f":"IF('Generated list'!C3371=\"\",\"\",'Generated list'!C3371)","v":""},{"$f":"IF('Generated list'!D3371=\"\",\"\",'Generated list'!D3371)","v":""}]
[null,{"$f":"IF('Generated list'!B3372=\"\",\"\",'Generated list'!B3372)","v":""},{"$f":"IF('Generated list'!C3372=\"\",\"\",'Generated list'!C3372)","v":""},{"$f":"IF('Generated list'!D3372=\"\",\"\",'Generated list'!D3372)","v":""}]
[null,{"$f":"IF('Generated list'!B3373=\"\",\"\",'Generated list'!B3373)","v":""},{"$f":"IF('Generated list'!C3373=\"\",\"\",'Generated list'!C3373)","v":""},{"$f":"IF('Generated list'!D3373=\"\",\"\",'Generated list'!D3373)","v":""}]
[null,{"$f":"IF('Generated list'!B3374=\"\",\"\",'Generated list'!B3374)","v":""},{"$f":"IF('Generated list'!C3374=\"\",\"\",'Generated list'!C3374)","v":""},{"$f":"IF('Generated list'!D3374=\"\",\"\",'Generated list'!D3374)","v":""}]
[null,{"$f":"IF('Generated list'!B3375=\"\",\"\",'Generated list'!B3375)","v":""},{"$f":"IF('Generated list'!C3375=\"\",\"\",'Generated list'!C3375)","v":""},{"$f":"IF('Generated list'!D3375=\"\",\"\",'Generated list'!D3375)","v":""}]
[null,{"$f":"IF('Generated list'!B3376=\"\",\"\",'Generated list'!B3376)","v":""},{"$f":"IF('Generated list'!C3376=\"\",\"\",'Generated list'!C3376)","v":""},{"$f":"IF('Generated list'!D3376=\"\",\"\",'Generated list'!D3376)","v":""}]
[null,{"$f":"IF('Generated list'!B3377=\"\",\"\",'Generated list'!B3377)","v":""},{"$f":"IF('Generated list'!C3377=\"\",\"\",'Generated list'!C3377)","v":""},{"$f":"IF('Generated list'!D3377=\"\",\"\",'Generated list'!D3377)","v":""}]
[null,{"$f":"IF('Generated list'!B3378=\"\",\"\",'Generated list'!B3378)","v":""},{"$f":"IF('Generated list'!C3378=\"\",\"\",'Generated list'!C3378)","v":""},{"$f":"IF('Generated list'!D3378=\"\",\"\",'Generated list'!D3378)","v":""}]
[null,{"$f":"IF('Generated list'!B3379=\"\",\"\",'Generated list'!B3379)","v":""},{"$f":"IF('Generated list'!C3379=\"\",\"\",'Generated list'!C3379)","v":""},{"$f":"IF('Generated list'!D3379=\"\",\"\",'Generated list'!D3379)","v":""}]
[null,{"$f":"IF('Generated list'!B3380=\"\",\"\",'Generated list'!B3380)","v":""},{"$f":"IF('Generated list'!C3380=\"\",\"\",'Generated list'!C3380)","v":""},{"$f":"IF('Generated list'!D3380=\"\",\"\",'Generated list'!D3380)","v":""}]
[null,{"$f":"IF('Generated list'!B3381=\"\",\"\",'Generated list'!B3381)","v":""},{"$f":"IF('Generated list'!C3381=\"\",\"\",'Generated list'!C3381)","v":""},{"$f":"IF('Generated list'!D3381=\"\",\"\",'Generated list'!D3381)","v":""}]
[null,{"$f":"IF('Generated list'!B3382=\"\",\"\",'Generated list'!B3382)","v":""},{"$f":"IF('Generated list'!C3382=\"\",\"\",'Generated list'!C3382)","v":""},{"$f":"IF('Generated list'!D3382=\"\",\"\",'Generated list'!D3382)","v":""}]
[null,{"$f":"IF('Generated list'!B3383=\"\",\"\",'Generated list'!B3383)","v":""},{"$f":"IF('Generated list'!C3383=\"\",\"\",'Generated list'!C3383)","v":""},{"$f":"IF('Generated list'!D3383=\"\",\"\",'Generated list'!D3383)","v":""}]
[null,{"$f":"IF('Generated list'!B3384=\"\",\"\",'Generated list'!B3384)","v":""},{"$f":"IF('Generated list'!C3384=\"\",\"\",'Generated list'!C3384)","v":""},{"$f":"IF('Generated list'!D3384=\"\",\"\",'Generated list'!D3384)","v":""}]
[null,{"$f":"IF('Generated list'!B3385=\"\",\"\",'Generated list'!B3385)","v":""},{"$f":"IF('Generated list'!C3385=\"\",\"\",'Generated list'!C3385)","v":""},{"$f":"IF('Generated list'!D3385=\"\",\"\",'Generated list'!D3385)","v":""}]
[null,{"$f":"IF('Generated list'!B3386=\"\",\"\",'Generated list'!B3386)","v":""},{"$f":"IF('Generated list'!C3386=\"\",\"\",'Generated list'!C3386)","v":""},{"$f":"IF('Generated list'!D3386=\"\",\"\",'Generated list'!D3386)","v":""}]
[null,{"$f":"IF('Generated list'!B3387=\"\",\"\",'Generated list'!B3387)","v":""},{"$f":"IF('Generated list'!C3387=\"\",\"\",'Generated list'!C3387)","v":""},{"$f":"IF('Generated list'!D3387=\"\",\"\",'Generated list'!D3387)","v":""}]
[null,{"$f":"IF('Generated list'!B3388=\"\",\"\",'Generated list'!B3388)","v":""},{"$f":"IF('Generated list'!C3388=\"\",\"\",'Generated list'!C3388)","v":""},{"$f":"IF('Generated list'!D3388=\"\",\"\",'Generated list'!D3388)","v":""}]
[null,{"$f":"IF('Generated list'!B3389=\"\",\"\",'Generated list'!B3389)","v":""},{"$f":"IF('Generated list'!C3389=\"\",\"\",'Generated list'!C3389)","v":""},{"$f":"IF('Generated list'!D3389=\"\",\"\",'Generated list'!D3389)","v":""}]
[null,{"$f":"IF('Generated list'!B3390=\"\",\"\",'Generated list'!B3390)","v":""},{"$f":"IF('Generated list'!C3390=\"\",\"\",'Generated list'!C3390)","v":""},{"$f":"IF('Generated list'!D3390=\"\",\"\",'Generated list'!D3390)","v":""}]
[null,{"$f":"IF('Generated list'!B3391=\"\",\"\",'Generated list'!B3391)","v":""},{"$f":"IF('Generated list'!C3391=\"\",\"\",'Generated list'!C3391)","v":""},{"$f":"IF('Generated list'!D3391=\"\",\"\",'Generated list'!D3391)","v":""}]
[null,{"$f":"IF('Generated list'!B3392=\"\",\"\",'Generated list'!B3392)","v":""},{"$f":"IF('Generated list'!C3392=\"\",\"\",'Generated list'!C3392)","v":""},{"$f":"IF('Generated list'!D3392=\"\",\"\",'Generated list'!D3392)","v":""}]
[null,{"$f":"IF('Generated list'!B3393=\"\",\"\",'Generated list'!B3393)","v":""},{"$f":"IF('Generated list'!C3393=\"\",\"\",'Generated list'!C3393)","v":""},{"$f":"IF('Generated list'!D3393=\"\",\"\",'Generated list'!D3393)","v":""}]
[null,{"$f":"IF('Generated list'!B3394=\"\",\"\",'Generated list'!B3394)","v":""},{"$f":"IF('Generated list'!C3394=\"\",\"\",'Generated list'!C3394)","v":""},{"$f":"IF('Generated list'!D3394=\"\",\"\",'Generated list'!D3394)","v":""}]
[null,{"$f":"IF('Generated list'!B3395=\"\",\"\",'Generated list'!B3395)","v":""},{"$f":"IF('Generated list'!C3395=\"\",\"\",'Generated list'!C3395)","v":""},{"$f":"IF('Generated list'!D3395=\"\",\"\",'Generated list'!D3395)","v":""}]
[null,{"$f":"IF('Generated list'!B3396=\"\",\"\",'Generated list'!B3396)","v":""},{"$f":"IF('Generated list'!C3396=\"\",\"\",'Generated list'!C3396)","v":""},{"$f":"IF('Generated list'!D3396=\"\",\"\",'Generated list'!D3396)","v":""}]
[null,{"$f":"IF('Generated list'!B3397=\"\",\"\",'Generated list'!B3397)","v":""},{"$f":"IF('Generated list'!C3397=\"\",\"\",'Generated list'!C3397)","v":""},{"$f":"IF('Generated list'!D3397=\"\",\"\",'Generated list'!D3397)","v":""}]
[null,{"$f":"IF('Generated list'!B3398=\"\",\"\",'Generated list'!B3398)","v":""},{"$f":"IF('Generated list'!C3398=\"\",\"\",'Generated list'!C3398)","v":""},{"$f":"IF('Generated list'!D3398=\"\",\"\",'Generated list'!D3398)","v":""}]
[null,{"$f":"IF('Generated list'!B3399=\"\",\"\",'Generated list'!B3399)","v":""},{"$f":"IF('Generated list'!C3399=\"\",\"\",'Generated list'!C3399)","v":""},{"$f":"IF('Generated list'!D3399=\"\",\"\",'Generated list'!D3399)","v":""}]
[null,{"$f":"IF('Generated list'!B3400=\"\",\"\",'Generated list'!B3400)","v":""},{"$f":"IF('Generated list'!C3400=\"\",\"\",'Generated list'!C3400)","v":""},{"$f":"IF('Generated list'!D3400=\"\",\"\",'Generated list'!D3400)","v":""}]
[null,{"$f":"IF('Generated list'!B3401=\"\",\"\",'Generated list'!B3401)","v":""},{"$f":"IF('Generated list'!C3401=\"\",\"\",'Generated list'!C3401)","v":""},{"$f":"IF('Generated list'!D3401=\"\",\"\",'Generated list'!D3401)","v":""}]
[null,{"$f":"IF('Generated list'!B3402=\"\",\"\",'Generated list'!B3402)","v":""},{"$f":"IF('Generated list'!C3402=\"\",\"\",'Generated list'!C3402)","v":""},{"$f":"IF('Generated list'!D3402=\"\",\"\",'Generated list'!D3402)","v":""}]
[null,{"$f":"IF('Generated list'!B3403=\"\",\"\",'Generated list'!B3403)","v":""},{"$f":"IF('Generated list'!C3403=\"\",\"\",'Generated list'!C3403)","v":""},{"$f":"IF('Generated list'!D3403=\"\",\"\",'Generated list'!D3403)","v":""}]
[null,{"$f":"IF('Generated list'!B3404=\"\",\"\",'Generated list'!B3404)","v":""},{"$f":"IF('Generated list'!C3404=\"\",\"\",'Generated list'!C3404)","v":""},{"$f":"IF('Generated list'!D3404=\"\",\"\",'Generated list'!D3404)","v":""}]
[null,{"$f":"IF('Generated list'!B3405=\"\",\"\",'Generated list'!B3405)","v":""},{"$f":"IF('Generated list'!C3405=\"\",\"\",'Generated list'!C3405)","v":""},{"$f":"IF('Generated list'!D3405=\"\",\"\",'Generated list'!D3405)","v":""}]
[null,{"$f":"IF('Generated list'!B3406=\"\",\"\",'Generated list'!B3406)","v":""},{"$f":"IF('Generated list'!C3406=\"\",\"\",'Generated list'!C3406)","v":""},{"$f":"IF('Generated list'!D3406=\"\",\"\",'Generated list'!D3406)","v":""}]
[null,{"$f":"IF('Generated list'!B3407=\"\",\"\",'Generated list'!B3407)","v":""},{"$f":"IF('Generated list'!C3407=\"\",\"\",'Generated list'!C3407)","v":""},{"$f":"IF('Generated list'!D3407=\"\",\"\",'Generated list'!D3407)","v":""}]
[null,{"$f":"IF('Generated list'!B3408=\"\",\"\",'Generated list'!B3408)","v":""},{"$f":"IF('Generated list'!C3408=\"\",\"\",'Generated list'!C3408)","v":""},{"$f":"IF('Generated list'!D3408=\"\",\"\",'Generated list'!D3408)","v":""}]
[null,{"$f":"IF('Generated list'!B3409=\"\",\"\",'Generated list'!B3409)","v":""},{"$f":"IF('Generated list'!C3409=\"\",\"\",'Generated list'!C3409)","v":""},{"$f":"IF('Generated list'!D3409=\"\",\"\",'Generated list'!D3409)","v":""}]
[null,{"$f":"IF('Generated list'!B3410=\"\",\"\",'Generated list'!B3410)","v":""},{"$f":"IF('Generated list'!C3410=\"\",\"\",'Generated list'!C3410)","v":""},{"$f":"IF('Generated list'!D3410=\"\",\"\",'Generated list'!D3410)","v":""}]
[null,{"$f":"IF('Generated list'!B3411=\"\",\"\",'Generated list'!B3411)","v":""},{"$f":"IF('Generated list'!C3411=\"\",\"\",'Generated list'!C3411)","v":""},{"$f":"IF('Generated list'!D3411=\"\",\"\",'Generated list'!D3411)","v":""}]
[null,{"$f":"IF('Generated list'!B3412=\"\",\"\",'Generated list'!B3412)","v":""},{"$f":"IF('Generated list'!C3412=\"\",\"\",'Generated list'!C3412)","v":""},{"$f":"IF('Generated list'!D3412=\"\",\"\",'Generated list'!D3412)","v":""}]
[null,{"$f":"IF('Generated list'!B3413=\"\",\"\",'Generated list'!B3413)","v":""},{"$f":"IF('Generated list'!C3413=\"\",\"\",'Generated list'!C3413)","v":""},{"$f":"IF('Generated list'!D3413=\"\",\"\",'Generated list'!D3413)","v":""}]
[null,{"$f":"IF('Generated list'!B3414=\"\",\"\",'Generated list'!B3414)","v":""},{"$f":"IF('Generated list'!C3414=\"\",\"\",'Generated list'!C3414)","v":""},{"$f":"IF('Generated list'!D3414=\"\",\"\",'Generated list'!D3414)","v":""}]
[null,{"$f":"IF('Generated list'!B3415=\"\",\"\",'Generated list'!B3415)","v":""},{"$f":"IF('Generated list'!C3415=\"\",\"\",'Generated list'!C3415)","v":""},{"$f":"IF('Generated list'!D3415=\"\",\"\",'Generated list'!D3415)","v":""}]
[null,{"$f":"IF('Generated list'!B3416=\"\",\"\",'Generated list'!B3416)","v":""},{"$f":"IF('Generated list'!C3416=\"\",\"\",'Generated list'!C3416)","v":""},{"$f":"IF('Generated list'!D3416=\"\",\"\",'Generated list'!D3416)","v":""}]
[null,{"$f":"IF('Generated list'!B3417=\"\",\"\",'Generated list'!B3417)","v":""},{"$f":"IF('Generated list'!C3417=\"\",\"\",'Generated list'!C3417)","v":""},{"$f":"IF('Generated list'!D3417=\"\",\"\",'Generated list'!D3417)","v":""}]
[null,{"$f":"IF('Generated list'!B3418=\"\",\"\",'Generated list'!B3418)","v":""},{"$f":"IF('Generated list'!C3418=\"\",\"\",'Generated list'!C3418)","v":""},{"$f":"IF('Generated list'!D3418=\"\",\"\",'Generated list'!D3418)","v":""}]
[null,{"$f":"IF('Generated list'!B3419=\"\",\"\",'Generated list'!B3419)","v":""},{"$f":"IF('Generated list'!C3419=\"\",\"\",'Generated list'!C3419)","v":""},{"$f":"IF('Generated list'!D3419=\"\",\"\",'Generated list'!D3419)","v":""}]
[null,{"$f":"IF('Generated list'!B3420=\"\",\"\",'Generated list'!B3420)","v":""},{"$f":"IF('Generated list'!C3420=\"\",\"\",'Generated list'!C3420)","v":""},{"$f":"IF('Generated list'!D3420=\"\",\"\",'Generated list'!D3420)","v":""}]
[null,{"$f":"IF('Generated list'!B3421=\"\",\"\",'Generated list'!B3421)","v":""},{"$f":"IF('Generated list'!C3421=\"\",\"\",'Generated list'!C3421)","v":""},{"$f":"IF('Generated list'!D3421=\"\",\"\",'Generated list'!D3421)","v":""}]
[null,{"$f":"IF('Generated list'!B3422=\"\",\"\",'Generated list'!B3422)","v":""},{"$f":"IF('Generated list'!C3422=\"\",\"\",'Generated list'!C3422)","v":""},{"$f":"IF('Generated list'!D3422=\"\",\"\",'Generated list'!D3422)","v":""}]
[null,{"$f":"IF('Generated list'!B3423=\"\",\"\",'Generated list'!B3423)","v":""},{"$f":"IF('Generated list'!C3423=\"\",\"\",'Generated list'!C3423)","v":""},{"$f":"IF('Generated list'!D3423=\"\",\"\",'Generated list'!D3423)","v":""}]
[null,{"$f":"IF('Generated list'!B3424=\"\",\"\",'Generated list'!B3424)","v":""},{"$f":"IF('Generated list'!C3424=\"\",\"\",'Generated list'!C3424)","v":""},{"$f":"IF('Generated list'!D3424=\"\",\"\",'Generated list'!D3424)","v":""}]
[null,{"$f":"IF('Generated list'!B3425=\"\",\"\",'Generated list'!B3425)","v":""},{"$f":"IF('Generated list'!C3425=\"\",\"\",'Generated list'!C3425)","v":""},{"$f":"IF('Generated list'!D3425=\"\",\"\",'Generated list'!D3425)","v":""}]
[null,{"$f":"IF('Generated list'!B3426=\"\",\"\",'Generated list'!B3426)","v":""},{"$f":"IF('Generated list'!C3426=\"\",\"\",'Generated list'!C3426)","v":""},{"$f":"IF('Generated list'!D3426=\"\",\"\",'Generated list'!D3426)","v":""}]
[null,{"$f":"IF('Generated list'!B3427=\"\",\"\",'Generated list'!B3427)","v":""},{"$f":"IF('Generated list'!C3427=\"\",\"\",'Generated list'!C3427)","v":""},{"$f":"IF('Generated list'!D3427=\"\",\"\",'Generated list'!D3427)","v":""}]
[null,{"$f":"IF('Generated list'!B3428=\"\",\"\",'Generated list'!B3428)","v":""},{"$f":"IF('Generated list'!C3428=\"\",\"\",'Generated list'!C3428)","v":""},{"$f":"IF('Generated list'!D3428=\"\",\"\",'Generated list'!D3428)","v":""}]
[null,{"$f":"IF('Generated list'!B3429=\"\",\"\",'Generated list'!B3429)","v":""},{"$f":"IF('Generated list'!C3429=\"\",\"\",'Generated list'!C3429)","v":""},{"$f":"IF('Generated list'!D3429=\"\",\"\",'Generated list'!D3429)","v":""}]
[null,{"$f":"IF('Generated list'!B3430=\"\",\"\",'Generated list'!B3430)","v":""},{"$f":"IF('Generated list'!C3430=\"\",\"\",'Generated list'!C3430)","v":""},{"$f":"IF('Generated list'!D3430=\"\",\"\",'Generated list'!D3430)","v":""}]
[null,{"$f":"IF('Generated list'!B3431=\"\",\"\",'Generated list'!B3431)","v":""},{"$f":"IF('Generated list'!C3431=\"\",\"\",'Generated list'!C3431)","v":""},{"$f":"IF('Generated list'!D3431=\"\",\"\",'Generated list'!D3431)","v":""}]
[null,{"$f":"IF('Generated list'!B3432=\"\",\"\",'Generated list'!B3432)","v":""},{"$f":"IF('Generated list'!C3432=\"\",\"\",'Generated list'!C3432)","v":""},{"$f":"IF('Generated list'!D3432=\"\",\"\",'Generated list'!D3432)","v":""}]
[null,{"$f":"IF('Generated list'!B3433=\"\",\"\",'Generated list'!B3433)","v":""},{"$f":"IF('Generated list'!C3433=\"\",\"\",'Generated list'!C3433)","v":""},{"$f":"IF('Generated list'!D3433=\"\",\"\",'Generated list'!D3433)","v":""}]
[null,{"$f":"IF('Generated list'!B3434=\"\",\"\",'Generated list'!B3434)","v":""},{"$f":"IF('Generated list'!C3434=\"\",\"\",'Generated list'!C3434)","v":""},{"$f":"IF('Generated list'!D3434=\"\",\"\",'Generated list'!D3434)","v":""}]
[null,{"$f":"IF('Generated list'!B3435=\"\",\"\",'Generated list'!B3435)","v":""},{"$f":"IF('Generated list'!C3435=\"\",\"\",'Generated list'!C3435)","v":""},{"$f":"IF('Generated list'!D3435=\"\",\"\",'Generated list'!D3435)","v":""}]
[null,{"$f":"IF('Generated list'!B3436=\"\",\"\",'Generated list'!B3436)","v":""},{"$f":"IF('Generated list'!C3436=\"\",\"\",'Generated list'!C3436)","v":""},{"$f":"IF('Generated list'!D3436=\"\",\"\",'Generated list'!D3436)","v":""}]
[null,{"$f":"IF('Generated list'!B3437=\"\",\"\",'Generated list'!B3437)","v":""},{"$f":"IF('Generated list'!C3437=\"\",\"\",'Generated list'!C3437)","v":""},{"$f":"IF('Generated list'!D3437=\"\",\"\",'Generated list'!D3437)","v":""}]
[null,{"$f":"IF('Generated list'!B3438=\"\",\"\",'Generated list'!B3438)","v":""},{"$f":"IF('Generated list'!C3438=\"\",\"\",'Generated list'!C3438)","v":""},{"$f":"IF('Generated list'!D3438=\"\",\"\",'Generated list'!D3438)","v":""}]
[null,{"$f":"IF('Generated list'!B3439=\"\",\"\",'Generated list'!B3439)","v":""},{"$f":"IF('Generated list'!C3439=\"\",\"\",'Generated list'!C3439)","v":""},{"$f":"IF('Generated list'!D3439=\"\",\"\",'Generated list'!D3439)","v":""}]
[null,{"$f":"IF('Generated list'!B3440=\"\",\"\",'Generated list'!B3440)","v":""},{"$f":"IF('Generated list'!C3440=\"\",\"\",'Generated list'!C3440)","v":""},{"$f":"IF('Generated list'!D3440=\"\",\"\",'Generated list'!D3440)","v":""}]
[null,{"$f":"IF('Generated list'!B3441=\"\",\"\",'Generated list'!B3441)","v":""},{"$f":"IF('Generated list'!C3441=\"\",\"\",'Generated list'!C3441)","v":""},{"$f":"IF('Generated list'!D3441=\"\",\"\",'Generated list'!D3441)","v":""}]
[null,{"$f":"IF('Generated list'!B3442=\"\",\"\",'Generated list'!B3442)","v":""},{"$f":"IF('Generated list'!C3442=\"\",\"\",'Generated list'!C3442)","v":""},{"$f":"IF('Generated list'!D3442=\"\",\"\",'Generated list'!D3442)","v":""}]
[null,{"$f":"IF('Generated list'!B3443=\"\",\"\",'Generated list'!B3443)","v":""},{"$f":"IF('Generated list'!C3443=\"\",\"\",'Generated list'!C3443)","v":""},{"$f":"IF('Generated list'!D3443=\"\",\"\",'Generated list'!D3443)","v":""}]
[null,{"$f":"IF('Generated list'!B3444=\"\",\"\",'Generated list'!B3444)","v":""},{"$f":"IF('Generated list'!C3444=\"\",\"\",'Generated list'!C3444)","v":""},{"$f":"IF('Generated list'!D3444=\"\",\"\",'Generated list'!D3444)","v":""}]
[null,{"$f":"IF('Generated list'!B3445=\"\",\"\",'Generated list'!B3445)","v":""},{"$f":"IF('Generated list'!C3445=\"\",\"\",'Generated list'!C3445)","v":""},{"$f":"IF('Generated list'!D3445=\"\",\"\",'Generated list'!D3445)","v":""}]
[null,{"$f":"IF('Generated list'!B3446=\"\",\"\",'Generated list'!B3446)","v":""},{"$f":"IF('Generated list'!C3446=\"\",\"\",'Generated list'!C3446)","v":""},{"$f":"IF('Generated list'!D3446=\"\",\"\",'Generated list'!D3446)","v":""}]
[null,{"$f":"IF('Generated list'!B3447=\"\",\"\",'Generated list'!B3447)","v":""},{"$f":"IF('Generated list'!C3447=\"\",\"\",'Generated list'!C3447)","v":""},{"$f":"IF('Generated list'!D3447=\"\",\"\",'Generated list'!D3447)","v":""}]
[null,{"$f":"IF('Generated list'!B3448=\"\",\"\",'Generated list'!B3448)","v":""},{"$f":"IF('Generated list'!C3448=\"\",\"\",'Generated list'!C3448)","v":""},{"$f":"IF('Generated list'!D3448=\"\",\"\",'Generated list'!D3448)","v":""}]
[null,{"$f":"IF('Generated list'!B3449=\"\",\"\",'Generated list'!B3449)","v":""},{"$f":"IF('Generated list'!C3449=\"\",\"\",'Generated list'!C3449)","v":""},{"$f":"IF('Generated list'!D3449=\"\",\"\",'Generated list'!D3449)","v":""}]
[null,{"$f":"IF('Generated list'!B3450=\"\",\"\",'Generated list'!B3450)","v":""},{"$f":"IF('Generated list'!C3450=\"\",\"\",'Generated list'!C3450)","v":""},{"$f":"IF('Generated list'!D3450=\"\",\"\",'Generated list'!D3450)","v":""}]
[null,{"$f":"IF('Generated list'!B3451=\"\",\"\",'Generated list'!B3451)","v":""},{"$f":"IF('Generated list'!C3451=\"\",\"\",'Generated list'!C3451)","v":""},{"$f":"IF('Generated list'!D3451=\"\",\"\",'Generated list'!D3451)","v":""}]
[null,{"$f":"IF('Generated list'!B3452=\"\",\"\",'Generated list'!B3452)","v":""},{"$f":"IF('Generated list'!C3452=\"\",\"\",'Generated list'!C3452)","v":""},{"$f":"IF('Generated list'!D3452=\"\",\"\",'Generated list'!D3452)","v":""}]
[null,{"$f":"IF('Generated list'!B3453=\"\",\"\",'Generated list'!B3453)","v":""},{"$f":"IF('Generated list'!C3453=\"\",\"\",'Generated list'!C3453)","v":""},{"$f":"IF('Generated list'!D3453=\"\",\"\",'Generated list'!D3453)","v":""}]
[null,{"$f":"IF('Generated list'!B3454=\"\",\"\",'Generated list'!B3454)","v":""},{"$f":"IF('Generated list'!C3454=\"\",\"\",'Generated list'!C3454)","v":""},{"$f":"IF('Generated list'!D3454=\"\",\"\",'Generated list'!D3454)","v":""}]
[null,{"$f":"IF('Generated list'!B3455=\"\",\"\",'Generated list'!B3455)","v":""},{"$f":"IF('Generated list'!C3455=\"\",\"\",'Generated list'!C3455)","v":""},{"$f":"IF('Generated list'!D3455=\"\",\"\",'Generated list'!D3455)","v":""}]
[null,{"$f":"IF('Generated list'!B3456=\"\",\"\",'Generated list'!B3456)","v":""},{"$f":"IF('Generated list'!C3456=\"\",\"\",'Generated list'!C3456)","v":""},{"$f":"IF('Generated list'!D3456=\"\",\"\",'Generated list'!D3456)","v":""}]
[null,{"$f":"IF('Generated list'!B3457=\"\",\"\",'Generated list'!B3457)","v":""},{"$f":"IF('Generated list'!C3457=\"\",\"\",'Generated list'!C3457)","v":""},{"$f":"IF('Generated list'!D3457=\"\",\"\",'Generated list'!D3457)","v":""}]
[null,{"$f":"IF('Generated list'!B3458=\"\",\"\",'Generated list'!B3458)","v":""},{"$f":"IF('Generated list'!C3458=\"\",\"\",'Generated list'!C3458)","v":""},{"$f":"IF('Generated list'!D3458=\"\",\"\",'Generated list'!D3458)","v":""}]
[null,{"$f":"IF('Generated list'!B3459=\"\",\"\",'Generated list'!B3459)","v":""},{"$f":"IF('Generated list'!C3459=\"\",\"\",'Generated list'!C3459)","v":""},{"$f":"IF('Generated list'!D3459=\"\",\"\",'Generated list'!D3459)","v":""}]
[null,{"$f":"IF('Generated list'!B3460=\"\",\"\",'Generated list'!B3460)","v":""},{"$f":"IF('Generated list'!C3460=\"\",\"\",'Generated list'!C3460)","v":""},{"$f":"IF('Generated list'!D3460=\"\",\"\",'Generated list'!D3460)","v":""}]
[null,{"$f":"IF('Generated list'!B3461=\"\",\"\",'Generated list'!B3461)","v":""},{"$f":"IF('Generated list'!C3461=\"\",\"\",'Generated list'!C3461)","v":""},{"$f":"IF('Generated list'!D3461=\"\",\"\",'Generated list'!D3461)","v":""}]
[null,{"$f":"IF('Generated list'!B3462=\"\",\"\",'Generated list'!B3462)","v":""},{"$f":"IF('Generated list'!C3462=\"\",\"\",'Generated list'!C3462)","v":""},{"$f":"IF('Generated list'!D3462=\"\",\"\",'Generated list'!D3462)","v":""}]
[null,{"$f":"IF('Generated list'!B3463=\"\",\"\",'Generated list'!B3463)","v":""},{"$f":"IF('Generated list'!C3463=\"\",\"\",'Generated list'!C3463)","v":""},{"$f":"IF('Generated list'!D3463=\"\",\"\",'Generated list'!D3463)","v":""}]
[null,{"$f":"IF('Generated list'!B3464=\"\",\"\",'Generated list'!B3464)","v":""},{"$f":"IF('Generated list'!C3464=\"\",\"\",'Generated list'!C3464)","v":""},{"$f":"IF('Generated list'!D3464=\"\",\"\",'Generated list'!D3464)","v":""}]
[null,{"$f":"IF('Generated list'!B3465=\"\",\"\",'Generated list'!B3465)","v":""},{"$f":"IF('Generated list'!C3465=\"\",\"\",'Generated list'!C3465)","v":""},{"$f":"IF('Generated list'!D3465=\"\",\"\",'Generated list'!D3465)","v":""}]
[null,{"$f":"IF('Generated list'!B3466=\"\",\"\",'Generated list'!B3466)","v":""},{"$f":"IF('Generated list'!C3466=\"\",\"\",'Generated list'!C3466)","v":""},{"$f":"IF('Generated list'!D3466=\"\",\"\",'Generated list'!D3466)","v":""}]
[null,{"$f":"IF('Generated list'!B3467=\"\",\"\",'Generated list'!B3467)","v":""},{"$f":"IF('Generated list'!C3467=\"\",\"\",'Generated list'!C3467)","v":""},{"$f":"IF('Generated list'!D3467=\"\",\"\",'Generated list'!D3467)","v":""}]
[null,{"$f":"IF('Generated list'!B3468=\"\",\"\",'Generated list'!B3468)","v":""},{"$f":"IF('Generated list'!C3468=\"\",\"\",'Generated list'!C3468)","v":""},{"$f":"IF('Generated list'!D3468=\"\",\"\",'Generated list'!D3468)","v":""}]
[null,{"$f":"IF('Generated list'!B3469=\"\",\"\",'Generated list'!B3469)","v":""},{"$f":"IF('Generated list'!C3469=\"\",\"\",'Generated list'!C3469)","v":""},{"$f":"IF('Generated list'!D3469=\"\",\"\",'Generated list'!D3469)","v":""}]
[null,{"$f":"IF('Generated list'!B3470=\"\",\"\",'Generated list'!B3470)","v":""},{"$f":"IF('Generated list'!C3470=\"\",\"\",'Generated list'!C3470)","v":""},{"$f":"IF('Generated list'!D3470=\"\",\"\",'Generated list'!D3470)","v":""}]
[null,{"$f":"IF('Generated list'!B3471=\"\",\"\",'Generated list'!B3471)","v":""},{"$f":"IF('Generated list'!C3471=\"\",\"\",'Generated list'!C3471)","v":""},{"$f":"IF('Generated list'!D3471=\"\",\"\",'Generated list'!D3471)","v":""}]
[null,{"$f":"IF('Generated list'!B3472=\"\",\"\",'Generated list'!B3472)","v":""},{"$f":"IF('Generated list'!C3472=\"\",\"\",'Generated list'!C3472)","v":""},{"$f":"IF('Generated list'!D3472=\"\",\"\",'Generated list'!D3472)","v":""}]
[null,{"$f":"IF('Generated list'!B3473=\"\",\"\",'Generated list'!B3473)","v":""},{"$f":"IF('Generated list'!C3473=\"\",\"\",'Generated list'!C3473)","v":""},{"$f":"IF('Generated list'!D3473=\"\",\"\",'Generated list'!D3473)","v":""}]
[null,{"$f":"IF('Generated list'!B3474=\"\",\"\",'Generated list'!B3474)","v":""},{"$f":"IF('Generated list'!C3474=\"\",\"\",'Generated list'!C3474)","v":""},{"$f":"IF('Generated list'!D3474=\"\",\"\",'Generated list'!D3474)","v":""}]
[null,{"$f":"IF('Generated list'!B3475=\"\",\"\",'Generated list'!B3475)","v":""},{"$f":"IF('Generated list'!C3475=\"\",\"\",'Generated list'!C3475)","v":""},{"$f":"IF('Generated list'!D3475=\"\",\"\",'Generated list'!D3475)","v":""}]
[null,{"$f":"IF('Generated list'!B3476=\"\",\"\",'Generated list'!B3476)","v":""},{"$f":"IF('Generated list'!C3476=\"\",\"\",'Generated list'!C3476)","v":""},{"$f":"IF('Generated list'!D3476=\"\",\"\",'Generated list'!D3476)","v":""}]
[null,{"$f":"IF('Generated list'!B3477=\"\",\"\",'Generated list'!B3477)","v":""},{"$f":"IF('Generated list'!C3477=\"\",\"\",'Generated list'!C3477)","v":""},{"$f":"IF('Generated list'!D3477=\"\",\"\",'Generated list'!D3477)","v":""}]
[null,{"$f":"IF('Generated list'!B3478=\"\",\"\",'Generated list'!B3478)","v":""},{"$f":"IF('Generated list'!C3478=\"\",\"\",'Generated list'!C3478)","v":""},{"$f":"IF('Generated list'!D3478=\"\",\"\",'Generated list'!D3478)","v":""}]
[null,{"$f":"IF('Generated list'!B3479=\"\",\"\",'Generated list'!B3479)","v":""},{"$f":"IF('Generated list'!C3479=\"\",\"\",'Generated list'!C3479)","v":""},{"$f":"IF('Generated list'!D3479=\"\",\"\",'Generated list'!D3479)","v":""}]
[null,{"$f":"IF('Generated list'!B3480=\"\",\"\",'Generated list'!B3480)","v":""},{"$f":"IF('Generated list'!C3480=\"\",\"\",'Generated list'!C3480)","v":""},{"$f":"IF('Generated list'!D3480=\"\",\"\",'Generated list'!D3480)","v":""}]
[null,{"$f":"IF('Generated list'!B3481=\"\",\"\",'Generated list'!B3481)","v":""},{"$f":"IF('Generated list'!C3481=\"\",\"\",'Generated list'!C3481)","v":""},{"$f":"IF('Generated list'!D3481=\"\",\"\",'Generated list'!D3481)","v":""}]
[null,{"$f":"IF('Generated list'!B3482=\"\",\"\",'Generated list'!B3482)","v":""},{"$f":"IF('Generated list'!C3482=\"\",\"\",'Generated list'!C3482)","v":""},{"$f":"IF('Generated list'!D3482=\"\",\"\",'Generated list'!D3482)","v":""}]
[null,{"$f":"IF('Generated list'!B3483=\"\",\"\",'Generated list'!B3483)","v":""},{"$f":"IF('Generated list'!C3483=\"\",\"\",'Generated list'!C3483)","v":""},{"$f":"IF('Generated list'!D3483=\"\",\"\",'Generated list'!D3483)","v":""}]
[null,{"$f":"IF('Generated list'!B3484=\"\",\"\",'Generated list'!B3484)","v":""},{"$f":"IF('Generated list'!C3484=\"\",\"\",'Generated list'!C3484)","v":""},{"$f":"IF('Generated list'!D3484=\"\",\"\",'Generated list'!D3484)","v":""}]
[null,{"$f":"IF('Generated list'!B3485=\"\",\"\",'Generated list'!B3485)","v":""},{"$f":"IF('Generated list'!C3485=\"\",\"\",'Generated list'!C3485)","v":""},{"$f":"IF('Generated list'!D3485=\"\",\"\",'Generated list'!D3485)","v":""}]
[null,{"$f":"IF('Generated list'!B3486=\"\",\"\",'Generated list'!B3486)","v":""},{"$f":"IF('Generated list'!C3486=\"\",\"\",'Generated list'!C3486)","v":""},{"$f":"IF('Generated list'!D3486=\"\",\"\",'Generated list'!D3486)","v":""}]
[null,{"$f":"IF('Generated list'!B3487=\"\",\"\",'Generated list'!B3487)","v":""},{"$f":"IF('Generated list'!C3487=\"\",\"\",'Generated list'!C3487)","v":""},{"$f":"IF('Generated list'!D3487=\"\",\"\",'Generated list'!D3487)","v":""}]
[null,{"$f":"IF('Generated list'!B3488=\"\",\"\",'Generated list'!B3488)","v":""},{"$f":"IF('Generated list'!C3488=\"\",\"\",'Generated list'!C3488)","v":""},{"$f":"IF('Generated list'!D3488=\"\",\"\",'Generated list'!D3488)","v":""}]
[null,{"$f":"IF('Generated list'!B3489=\"\",\"\",'Generated list'!B3489)","v":""},{"$f":"IF('Generated list'!C3489=\"\",\"\",'Generated list'!C3489)","v":""},{"$f":"IF('Generated list'!D3489=\"\",\"\",'Generated list'!D3489)","v":""}]
[null,{"$f":"IF('Generated list'!B3490=\"\",\"\",'Generated list'!B3490)","v":""},{"$f":"IF('Generated list'!C3490=\"\",\"\",'Generated list'!C3490)","v":""},{"$f":"IF('Generated list'!D3490=\"\",\"\",'Generated list'!D3490)","v":""}]
[null,{"$f":"IF('Generated list'!B3491=\"\",\"\",'Generated list'!B3491)","v":""},{"$f":"IF('Generated list'!C3491=\"\",\"\",'Generated list'!C3491)","v":""},{"$f":"IF('Generated list'!D3491=\"\",\"\",'Generated list'!D3491)","v":""}]
[null,{"$f":"IF('Generated list'!B3492=\"\",\"\",'Generated list'!B3492)","v":""},{"$f":"IF('Generated list'!C3492=\"\",\"\",'Generated list'!C3492)","v":""},{"$f":"IF('Generated list'!D3492=\"\",\"\",'Generated list'!D3492)","v":""}]
[null,{"$f":"IF('Generated list'!B3493=\"\",\"\",'Generated list'!B3493)","v":""},{"$f":"IF('Generated list'!C3493=\"\",\"\",'Generated list'!C3493)","v":""},{"$f":"IF('Generated list'!D3493=\"\",\"\",'Generated list'!D3493)","v":""}]
[null,{"$f":"IF('Generated list'!B3494=\"\",\"\",'Generated list'!B3494)","v":""},{"$f":"IF('Generated list'!C3494=\"\",\"\",'Generated list'!C3494)","v":""},{"$f":"IF('Generated list'!D3494=\"\",\"\",'Generated list'!D3494)","v":""}]
[null,{"$f":"IF('Generated list'!B3495=\"\",\"\",'Generated list'!B3495)","v":""},{"$f":"IF('Generated list'!C3495=\"\",\"\",'Generated list'!C3495)","v":""},{"$f":"IF('Generated list'!D3495=\"\",\"\",'Generated list'!D3495)","v":""}]
[null,{"$f":"IF('Generated list'!B3496=\"\",\"\",'Generated list'!B3496)","v":""},{"$f":"IF('Generated list'!C3496=\"\",\"\",'Generated list'!C3496)","v":""},{"$f":"IF('Generated list'!D3496=\"\",\"\",'Generated list'!D3496)","v":""}]
[null,{"$f":"IF('Generated list'!B3497=\"\",\"\",'Generated list'!B3497)","v":""},{"$f":"IF('Generated list'!C3497=\"\",\"\",'Generated list'!C3497)","v":""},{"$f":"IF('Generated list'!D3497=\"\",\"\",'Generated list'!D3497)","v":""}]
[null,{"$f":"IF('Generated list'!B3498=\"\",\"\",'Generated list'!B3498)","v":""},{"$f":"IF('Generated list'!C3498=\"\",\"\",'Generated list'!C3498)","v":""},{"$f":"IF('Generated list'!D3498=\"\",\"\",'Generated list'!D3498)","v":""}]
[null,{"$f":"IF('Generated list'!B3499=\"\",\"\",'Generated list'!B3499)","v":""},{"$f":"IF('Generated list'!C3499=\"\",\"\",'Generated list'!C3499)","v":""},{"$f":"IF('Generated list'!D3499=\"\",\"\",'Generated list'!D3499)","v":""}]
[null,{"$f":"IF('Generated list'!B3500=\"\",\"\",'Generated list'!B3500)","v":""},{"$f":"IF('Generated list'!C3500=\"\",\"\",'Generated list'!C3500)","v":""},{"$f":"IF('Generated list'!D3500=\"\",\"\",'Generated list'!D3500)","v":""}]
[null,{"$f":"IF('Generated list'!B3501=\"\",\"\",'Generated list'!B3501)","v":""},{"$f":"IF('Generated list'!C3501=\"\",\"\",'Generated list'!C3501)","v":""},{"$f":"IF('Generated list'!D3501=\"\",\"\",'Generated list'!D3501)","v":""}]
[null,{"$f":"IF('Generated list'!B3502=\"\",\"\",'Generated list'!B3502)","v":""},{"$f":"IF('Generated list'!C3502=\"\",\"\",'Generated list'!C3502)","v":""},{"$f":"IF('Generated list'!D3502=\"\",\"\",'Generated list'!D3502)","v":""}]
[null,{"$f":"IF('Generated list'!B3503=\"\",\"\",'Generated list'!B3503)","v":""},{"$f":"IF('Generated list'!C3503=\"\",\"\",'Generated list'!C3503)","v":""},{"$f":"IF('Generated list'!D3503=\"\",\"\",'Generated list'!D3503)","v":""}]
[null,{"$f":"IF('Generated list'!B3504=\"\",\"\",'Generated list'!B3504)","v":""},{"$f":"IF('Generated list'!C3504=\"\",\"\",'Generated list'!C3504)","v":""},{"$f":"IF('Generated list'!D3504=\"\",\"\",'Generated list'!D3504)","v":""}]
[null,{"$f":"IF('Generated list'!B3505=\"\",\"\",'Generated list'!B3505)","v":""},{"$f":"IF('Generated list'!C3505=\"\",\"\",'Generated list'!C3505)","v":""},{"$f":"IF('Generated list'!D3505=\"\",\"\",'Generated list'!D3505)","v":""}]
[null,{"$f":"IF('Generated list'!B3506=\"\",\"\",'Generated list'!B3506)","v":""},{"$f":"IF('Generated list'!C3506=\"\",\"\",'Generated list'!C3506)","v":""},{"$f":"IF('Generated list'!D3506=\"\",\"\",'Generated list'!D3506)","v":""}]
[null,{"$f":"IF('Generated list'!B3507=\"\",\"\",'Generated list'!B3507)","v":""},{"$f":"IF('Generated list'!C3507=\"\",\"\",'Generated list'!C3507)","v":""},{"$f":"IF('Generated list'!D3507=\"\",\"\",'Generated list'!D3507)","v":""}]
[null,{"$f":"IF('Generated list'!B3508=\"\",\"\",'Generated list'!B3508)","v":""},{"$f":"IF('Generated list'!C3508=\"\",\"\",'Generated list'!C3508)","v":""},{"$f":"IF('Generated list'!D3508=\"\",\"\",'Generated list'!D3508)","v":""}]
[null,{"$f":"IF('Generated list'!B3509=\"\",\"\",'Generated list'!B3509)","v":""},{"$f":"IF('Generated list'!C3509=\"\",\"\",'Generated list'!C3509)","v":""},{"$f":"IF('Generated list'!D3509=\"\",\"\",'Generated list'!D3509)","v":""}]
[null,{"$f":"IF('Generated list'!B3510=\"\",\"\",'Generated list'!B3510)","v":""},{"$f":"IF('Generated list'!C3510=\"\",\"\",'Generated list'!C3510)","v":""},{"$f":"IF('Generated list'!D3510=\"\",\"\",'Generated list'!D3510)","v":""}]
[null,{"$f":"IF('Generated list'!B3511=\"\",\"\",'Generated list'!B3511)","v":""},{"$f":"IF('Generated list'!C3511=\"\",\"\",'Generated list'!C3511)","v":""},{"$f":"IF('Generated list'!D3511=\"\",\"\",'Generated list'!D3511)","v":""}]
[null,{"$f":"IF('Generated list'!B3512=\"\",\"\",'Generated list'!B3512)","v":""},{"$f":"IF('Generated list'!C3512=\"\",\"\",'Generated list'!C3512)","v":""},{"$f":"IF('Generated list'!D3512=\"\",\"\",'Generated list'!D3512)","v":""}]
[null,{"$f":"IF('Generated list'!B3513=\"\",\"\",'Generated list'!B3513)","v":""},{"$f":"IF('Generated list'!C3513=\"\",\"\",'Generated list'!C3513)","v":""},{"$f":"IF('Generated list'!D3513=\"\",\"\",'Generated list'!D3513)","v":""}]
[null,{"$f":"IF('Generated list'!B3514=\"\",\"\",'Generated list'!B3514)","v":""},{"$f":"IF('Generated list'!C3514=\"\",\"\",'Generated list'!C3514)","v":""},{"$f":"IF('Generated list'!D3514=\"\",\"\",'Generated list'!D3514)","v":""}]
[null,{"$f":"IF('Generated list'!B3515=\"\",\"\",'Generated list'!B3515)","v":""},{"$f":"IF('Generated list'!C3515=\"\",\"\",'Generated list'!C3515)","v":""},{"$f":"IF('Generated list'!D3515=\"\",\"\",'Generated list'!D3515)","v":""}]
[null,{"$f":"IF('Generated list'!B3516=\"\",\"\",'Generated list'!B3516)","v":""},{"$f":"IF('Generated list'!C3516=\"\",\"\",'Generated list'!C3516)","v":""},{"$f":"IF('Generated list'!D3516=\"\",\"\",'Generated list'!D3516)","v":""}]
[null,{"$f":"IF('Generated list'!B3517=\"\",\"\",'Generated list'!B3517)","v":""},{"$f":"IF('Generated list'!C3517=\"\",\"\",'Generated list'!C3517)","v":""},{"$f":"IF('Generated list'!D3517=\"\",\"\",'Generated list'!D3517)","v":""}]
[null,{"$f":"IF('Generated list'!B3518=\"\",\"\",'Generated list'!B3518)","v":""},{"$f":"IF('Generated list'!C3518=\"\",\"\",'Generated list'!C3518)","v":""},{"$f":"IF('Generated list'!D3518=\"\",\"\",'Generated list'!D3518)","v":""}]
[null,{"$f":"IF('Generated list'!B3519=\"\",\"\",'Generated list'!B3519)","v":""},{"$f":"IF('Generated list'!C3519=\"\",\"\",'Generated list'!C3519)","v":""},{"$f":"IF('Generated list'!D3519=\"\",\"\",'Generated list'!D3519)","v":""}]
[null,{"$f":"IF('Generated list'!B3520=\"\",\"\",'Generated list'!B3520)","v":""},{"$f":"IF('Generated list'!C3520=\"\",\"\",'Generated list'!C3520)","v":""},{"$f":"IF('Generated list'!D3520=\"\",\"\",'Generated list'!D3520)","v":""}]
[null,{"$f":"IF('Generated list'!B3521=\"\",\"\",'Generated list'!B3521)","v":""},{"$f":"IF('Generated list'!C3521=\"\",\"\",'Generated list'!C3521)","v":""},{"$f":"IF('Generated list'!D3521=\"\",\"\",'Generated list'!D3521)","v":""}]
[null,{"$f":"IF('Generated list'!B3522=\"\",\"\",'Generated list'!B3522)","v":""},{"$f":"IF('Generated list'!C3522=\"\",\"\",'Generated list'!C3522)","v":""},{"$f":"IF('Generated list'!D3522=\"\",\"\",'Generated list'!D3522)","v":""}]
[null,{"$f":"IF('Generated list'!B3523=\"\",\"\",'Generated list'!B3523)","v":""},{"$f":"IF('Generated list'!C3523=\"\",\"\",'Generated list'!C3523)","v":""},{"$f":"IF('Generated list'!D3523=\"\",\"\",'Generated list'!D3523)","v":""}]
[null,{"$f":"IF('Generated list'!B3524=\"\",\"\",'Generated list'!B3524)","v":""},{"$f":"IF('Generated list'!C3524=\"\",\"\",'Generated list'!C3524)","v":""},{"$f":"IF('Generated list'!D3524=\"\",\"\",'Generated list'!D3524)","v":""}]
[null,{"$f":"IF('Generated list'!B3525=\"\",\"\",'Generated list'!B3525)","v":""},{"$f":"IF('Generated list'!C3525=\"\",\"\",'Generated list'!C3525)","v":""},{"$f":"IF('Generated list'!D3525=\"\",\"\",'Generated list'!D3525)","v":""}]
[null,{"$f":"IF('Generated list'!B3526=\"\",\"\",'Generated list'!B3526)","v":""},{"$f":"IF('Generated list'!C3526=\"\",\"\",'Generated list'!C3526)","v":""},{"$f":"IF('Generated list'!D3526=\"\",\"\",'Generated list'!D3526)","v":""}]
[null,{"$f":"IF('Generated list'!B3527=\"\",\"\",'Generated list'!B3527)","v":""},{"$f":"IF('Generated list'!C3527=\"\",\"\",'Generated list'!C3527)","v":""},{"$f":"IF('Generated list'!D3527=\"\",\"\",'Generated list'!D3527)","v":""}]
[null,{"$f":"IF('Generated list'!B3528=\"\",\"\",'Generated list'!B3528)","v":""},{"$f":"IF('Generated list'!C3528=\"\",\"\",'Generated list'!C3528)","v":""},{"$f":"IF('Generated list'!D3528=\"\",\"\",'Generated list'!D3528)","v":""}]
[null,{"$f":"IF('Generated list'!B3529=\"\",\"\",'Generated list'!B3529)","v":""},{"$f":"IF('Generated list'!C3529=\"\",\"\",'Generated list'!C3529)","v":""},{"$f":"IF('Generated list'!D3529=\"\",\"\",'Generated list'!D3529)","v":""}]
[null,{"$f":"IF('Generated list'!B3530=\"\",\"\",'Generated list'!B3530)","v":""},{"$f":"IF('Generated list'!C3530=\"\",\"\",'Generated list'!C3530)","v":""},{"$f":"IF('Generated list'!D3530=\"\",\"\",'Generated list'!D3530)","v":""}]
[null,{"$f":"IF('Generated list'!B3531=\"\",\"\",'Generated list'!B3531)","v":""},{"$f":"IF('Generated list'!C3531=\"\",\"\",'Generated list'!C3531)","v":""},{"$f":"IF('Generated list'!D3531=\"\",\"\",'Generated list'!D3531)","v":""}]
[null,{"$f":"IF('Generated list'!B3532=\"\",\"\",'Generated list'!B3532)","v":""},{"$f":"IF('Generated list'!C3532=\"\",\"\",'Generated list'!C3532)","v":""},{"$f":"IF('Generated list'!D3532=\"\",\"\",'Generated list'!D3532)","v":""}]
[null,{"$f":"IF('Generated list'!B3533=\"\",\"\",'Generated list'!B3533)","v":""},{"$f":"IF('Generated list'!C3533=\"\",\"\",'Generated list'!C3533)","v":""},{"$f":"IF('Generated list'!D3533=\"\",\"\",'Generated list'!D3533)","v":""}]
[null,{"$f":"IF('Generated list'!B3534=\"\",\"\",'Generated list'!B3534)","v":""},{"$f":"IF('Generated list'!C3534=\"\",\"\",'Generated list'!C3534)","v":""},{"$f":"IF('Generated list'!D3534=\"\",\"\",'Generated list'!D3534)","v":""}]
[null,{"$f":"IF('Generated list'!B3535=\"\",\"\",'Generated list'!B3535)","v":""},{"$f":"IF('Generated list'!C3535=\"\",\"\",'Generated list'!C3535)","v":""},{"$f":"IF('Generated list'!D3535=\"\",\"\",'Generated list'!D3535)","v":""}]
[null,{"$f":"IF('Generated list'!B3536=\"\",\"\",'Generated list'!B3536)","v":""},{"$f":"IF('Generated list'!C3536=\"\",\"\",'Generated list'!C3536)","v":""},{"$f":"IF('Generated list'!D3536=\"\",\"\",'Generated list'!D3536)","v":""}]
[null,{"$f":"IF('Generated list'!B3537=\"\",\"\",'Generated list'!B3537)","v":""},{"$f":"IF('Generated list'!C3537=\"\",\"\",'Generated list'!C3537)","v":""},{"$f":"IF('Generated list'!D3537=\"\",\"\",'Generated list'!D3537)","v":""}]
[null,{"$f":"IF('Generated list'!B3538=\"\",\"\",'Generated list'!B3538)","v":""},{"$f":"IF('Generated list'!C3538=\"\",\"\",'Generated list'!C3538)","v":""},{"$f":"IF('Generated list'!D3538=\"\",\"\",'Generated list'!D3538)","v":""}]
[null,{"$f":"IF('Generated list'!B3539=\"\",\"\",'Generated list'!B3539)","v":""},{"$f":"IF('Generated list'!C3539=\"\",\"\",'Generated list'!C3539)","v":""},{"$f":"IF('Generated list'!D3539=\"\",\"\",'Generated list'!D3539)","v":""}]
[null,{"$f":"IF('Generated list'!B3540=\"\",\"\",'Generated list'!B3540)","v":""},{"$f":"IF('Generated list'!C3540=\"\",\"\",'Generated list'!C3540)","v":""},{"$f":"IF('Generated list'!D3540=\"\",\"\",'Generated list'!D3540)","v":""}]
[null,{"$f":"IF('Generated list'!B3541=\"\",\"\",'Generated list'!B3541)","v":""},{"$f":"IF('Generated list'!C3541=\"\",\"\",'Generated list'!C3541)","v":""},{"$f":"IF('Generated list'!D3541=\"\",\"\",'Generated list'!D3541)","v":""}]
[null,{"$f":"IF('Generated list'!B3542=\"\",\"\",'Generated list'!B3542)","v":""},{"$f":"IF('Generated list'!C3542=\"\",\"\",'Generated list'!C3542)","v":""},{"$f":"IF('Generated list'!D3542=\"\",\"\",'Generated list'!D3542)","v":""}]
[null,{"$f":"IF('Generated list'!B3543=\"\",\"\",'Generated list'!B3543)","v":""},{"$f":"IF('Generated list'!C3543=\"\",\"\",'Generated list'!C3543)","v":""},{"$f":"IF('Generated list'!D3543=\"\",\"\",'Generated list'!D3543)","v":""}]
[null,{"$f":"IF('Generated list'!B3544=\"\",\"\",'Generated list'!B3544)","v":""},{"$f":"IF('Generated list'!C3544=\"\",\"\",'Generated list'!C3544)","v":""},{"$f":"IF('Generated list'!D3544=\"\",\"\",'Generated list'!D3544)","v":""}]
[null,{"$f":"IF('Generated list'!B3545=\"\",\"\",'Generated list'!B3545)","v":""},{"$f":"IF('Generated list'!C3545=\"\",\"\",'Generated list'!C3545)","v":""},{"$f":"IF('Generated list'!D3545=\"\",\"\",'Generated list'!D3545)","v":""}]
[null,{"$f":"IF('Generated list'!B3546=\"\",\"\",'Generated list'!B3546)","v":""},{"$f":"IF('Generated list'!C3546=\"\",\"\",'Generated list'!C3546)","v":""},{"$f":"IF('Generated list'!D3546=\"\",\"\",'Generated list'!D3546)","v":""}]
[null,{"$f":"IF('Generated list'!B3547=\"\",\"\",'Generated list'!B3547)","v":""},{"$f":"IF('Generated list'!C3547=\"\",\"\",'Generated list'!C3547)","v":""},{"$f":"IF('Generated list'!D3547=\"\",\"\",'Generated list'!D3547)","v":""}]
[null,{"$f":"IF('Generated list'!B3548=\"\",\"\",'Generated list'!B3548)","v":""},{"$f":"IF('Generated list'!C3548=\"\",\"\",'Generated list'!C3548)","v":""},{"$f":"IF('Generated list'!D3548=\"\",\"\",'Generated list'!D3548)","v":""}]
[null,{"$f":"IF('Generated list'!B3549=\"\",\"\",'Generated list'!B3549)","v":""},{"$f":"IF('Generated list'!C3549=\"\",\"\",'Generated list'!C3549)","v":""},{"$f":"IF('Generated list'!D3549=\"\",\"\",'Generated list'!D3549)","v":""}]
[null,{"$f":"IF('Generated list'!B3550=\"\",\"\",'Generated list'!B3550)","v":""},{"$f":"IF('Generated list'!C3550=\"\",\"\",'Generated list'!C3550)","v":""},{"$f":"IF('Generated list'!D3550=\"\",\"\",'Generated list'!D3550)","v":""}]
[null,{"$f":"IF('Generated list'!B3551=\"\",\"\",'Generated list'!B3551)","v":""},{"$f":"IF('Generated list'!C3551=\"\",\"\",'Generated list'!C3551)","v":""},{"$f":"IF('Generated list'!D3551=\"\",\"\",'Generated list'!D3551)","v":""}]
[null,{"$f":"IF('Generated list'!B3552=\"\",\"\",'Generated list'!B3552)","v":""},{"$f":"IF('Generated list'!C3552=\"\",\"\",'Generated list'!C3552)","v":""},{"$f":"IF('Generated list'!D3552=\"\",\"\",'Generated list'!D3552)","v":""}]
[null,{"$f":"IF('Generated list'!B3553=\"\",\"\",'Generated list'!B3553)","v":""},{"$f":"IF('Generated list'!C3553=\"\",\"\",'Generated list'!C3553)","v":""},{"$f":"IF('Generated list'!D3553=\"\",\"\",'Generated list'!D3553)","v":""}]
[null,{"$f":"IF('Generated list'!B3554=\"\",\"\",'Generated list'!B3554)","v":""},{"$f":"IF('Generated list'!C3554=\"\",\"\",'Generated list'!C3554)","v":""},{"$f":"IF('Generated list'!D3554=\"\",\"\",'Generated list'!D3554)","v":""}]
[null,{"$f":"IF('Generated list'!B3555=\"\",\"\",'Generated list'!B3555)","v":""},{"$f":"IF('Generated list'!C3555=\"\",\"\",'Generated list'!C3555)","v":""},{"$f":"IF('Generated list'!D3555=\"\",\"\",'Generated list'!D3555)","v":""}]
[null,{"$f":"IF('Generated list'!B3556=\"\",\"\",'Generated list'!B3556)","v":""},{"$f":"IF('Generated list'!C3556=\"\",\"\",'Generated list'!C3556)","v":""},{"$f":"IF('Generated list'!D3556=\"\",\"\",'Generated list'!D3556)","v":""}]
[null,{"$f":"IF('Generated list'!B3557=\"\",\"\",'Generated list'!B3557)","v":""},{"$f":"IF('Generated list'!C3557=\"\",\"\",'Generated list'!C3557)","v":""},{"$f":"IF('Generated list'!D3557=\"\",\"\",'Generated list'!D3557)","v":""}]
[null,{"$f":"IF('Generated list'!B3558=\"\",\"\",'Generated list'!B3558)","v":""},{"$f":"IF('Generated list'!C3558=\"\",\"\",'Generated list'!C3558)","v":""},{"$f":"IF('Generated list'!D3558=\"\",\"\",'Generated list'!D3558)","v":""}]
[null,{"$f":"IF('Generated list'!B3559=\"\",\"\",'Generated list'!B3559)","v":""},{"$f":"IF('Generated list'!C3559=\"\",\"\",'Generated list'!C3559)","v":""},{"$f":"IF('Generated list'!D3559=\"\",\"\",'Generated list'!D3559)","v":""}]
[null,{"$f":"IF('Generated list'!B3560=\"\",\"\",'Generated list'!B3560)","v":""},{"$f":"IF('Generated list'!C3560=\"\",\"\",'Generated list'!C3560)","v":""},{"$f":"IF('Generated list'!D3560=\"\",\"\",'Generated list'!D3560)","v":""}]
[null,{"$f":"IF('Generated list'!B3561=\"\",\"\",'Generated list'!B3561)","v":""},{"$f":"IF('Generated list'!C3561=\"\",\"\",'Generated list'!C3561)","v":""},{"$f":"IF('Generated list'!D3561=\"\",\"\",'Generated list'!D3561)","v":""}]
[null,{"$f":"IF('Generated list'!B3562=\"\",\"\",'Generated list'!B3562)","v":""},{"$f":"IF('Generated list'!C3562=\"\",\"\",'Generated list'!C3562)","v":""},{"$f":"IF('Generated list'!D3562=\"\",\"\",'Generated list'!D3562)","v":""}]
[null,{"$f":"IF('Generated list'!B3563=\"\",\"\",'Generated list'!B3563)","v":""},{"$f":"IF('Generated list'!C3563=\"\",\"\",'Generated list'!C3563)","v":""},{"$f":"IF('Generated list'!D3563=\"\",\"\",'Generated list'!D3563)","v":""}]
[null,{"$f":"IF('Generated list'!B3564=\"\",\"\",'Generated list'!B3564)","v":""},{"$f":"IF('Generated list'!C3564=\"\",\"\",'Generated list'!C3564)","v":""},{"$f":"IF('Generated list'!D3564=\"\",\"\",'Generated list'!D3564)","v":""}]
[null,{"$f":"IF('Generated list'!B3565=\"\",\"\",'Generated list'!B3565)","v":""},{"$f":"IF('Generated list'!C3565=\"\",\"\",'Generated list'!C3565)","v":""},{"$f":"IF('Generated list'!D3565=\"\",\"\",'Generated list'!D3565)","v":""}]
[null,{"$f":"IF('Generated list'!B3566=\"\",\"\",'Generated list'!B3566)","v":""},{"$f":"IF('Generated list'!C3566=\"\",\"\",'Generated list'!C3566)","v":""},{"$f":"IF('Generated list'!D3566=\"\",\"\",'Generated list'!D3566)","v":""}]
[null,{"$f":"IF('Generated list'!B3567=\"\",\"\",'Generated list'!B3567)","v":""},{"$f":"IF('Generated list'!C3567=\"\",\"\",'Generated list'!C3567)","v":""},{"$f":"IF('Generated list'!D3567=\"\",\"\",'Generated list'!D3567)","v":""}]
[null,{"$f":"IF('Generated list'!B3568=\"\",\"\",'Generated list'!B3568)","v":""},{"$f":"IF('Generated list'!C3568=\"\",\"\",'Generated list'!C3568)","v":""},{"$f":"IF('Generated list'!D3568=\"\",\"\",'Generated list'!D3568)","v":""}]
[null,{"$f":"IF('Generated list'!B3569=\"\",\"\",'Generated list'!B3569)","v":""},{"$f":"IF('Generated list'!C3569=\"\",\"\",'Generated list'!C3569)","v":""},{"$f":"IF('Generated list'!D3569=\"\",\"\",'Generated list'!D3569)","v":""}]
[null,{"$f":"IF('Generated list'!B3570=\"\",\"\",'Generated list'!B3570)","v":""},{"$f":"IF('Generated list'!C3570=\"\",\"\",'Generated list'!C3570)","v":""},{"$f":"IF('Generated list'!D3570=\"\",\"\",'Generated list'!D3570)","v":""}]
[null,{"$f":"IF('Generated list'!B3571=\"\",\"\",'Generated list'!B3571)","v":""},{"$f":"IF('Generated list'!C3571=\"\",\"\",'Generated list'!C3571)","v":""},{"$f":"IF('Generated list'!D3571=\"\",\"\",'Generated list'!D3571)","v":""}]
[null,{"$f":"IF('Generated list'!B3572=\"\",\"\",'Generated list'!B3572)","v":""},{"$f":"IF('Generated list'!C3572=\"\",\"\",'Generated list'!C3572)","v":""},{"$f":"IF('Generated list'!D3572=\"\",\"\",'Generated list'!D3572)","v":""}]
[null,{"$f":"IF('Generated list'!B3573=\"\",\"\",'Generated list'!B3573)","v":""},{"$f":"IF('Generated list'!C3573=\"\",\"\",'Generated list'!C3573)","v":""},{"$f":"IF('Generated list'!D3573=\"\",\"\",'Generated list'!D3573)","v":""}]
[null,{"$f":"IF('Generated list'!B3574=\"\",\"\",'Generated list'!B3574)","v":""},{"$f":"IF('Generated list'!C3574=\"\",\"\",'Generated list'!C3574)","v":""},{"$f":"IF('Generated list'!D3574=\"\",\"\",'Generated list'!D3574)","v":""}]
[null,{"$f":"IF('Generated list'!B3575=\"\",\"\",'Generated list'!B3575)","v":""},{"$f":"IF('Generated list'!C3575=\"\",\"\",'Generated list'!C3575)","v":""},{"$f":"IF('Generated list'!D3575=\"\",\"\",'Generated list'!D3575)","v":""}]
[null,{"$f":"IF('Generated list'!B3576=\"\",\"\",'Generated list'!B3576)","v":""},{"$f":"IF('Generated list'!C3576=\"\",\"\",'Generated list'!C3576)","v":""},{"$f":"IF('Generated list'!D3576=\"\",\"\",'Generated list'!D3576)","v":""}]
[null,{"$f":"IF('Generated list'!B3577=\"\",\"\",'Generated list'!B3577)","v":""},{"$f":"IF('Generated list'!C3577=\"\",\"\",'Generated list'!C3577)","v":""},{"$f":"IF('Generated list'!D3577=\"\",\"\",'Generated list'!D3577)","v":""}]
[null,{"$f":"IF('Generated list'!B3578=\"\",\"\",'Generated list'!B3578)","v":""},{"$f":"IF('Generated list'!C3578=\"\",\"\",'Generated list'!C3578)","v":""},{"$f":"IF('Generated list'!D3578=\"\",\"\",'Generated list'!D3578)","v":""}]
[null,{"$f":"IF('Generated list'!B3579=\"\",\"\",'Generated list'!B3579)","v":""},{"$f":"IF('Generated list'!C3579=\"\",\"\",'Generated list'!C3579)","v":""},{"$f":"IF('Generated list'!D3579=\"\",\"\",'Generated list'!D3579)","v":""}]
[null,{"$f":"IF('Generated list'!B3580=\"\",\"\",'Generated list'!B3580)","v":""},{"$f":"IF('Generated list'!C3580=\"\",\"\",'Generated list'!C3580)","v":""},{"$f":"IF('Generated list'!D3580=\"\",\"\",'Generated list'!D3580)","v":""}]
[null,{"$f":"IF('Generated list'!B3581=\"\",\"\",'Generated list'!B3581)","v":""},{"$f":"IF('Generated list'!C3581=\"\",\"\",'Generated list'!C3581)","v":""},{"$f":"IF('Generated list'!D3581=\"\",\"\",'Generated list'!D3581)","v":""}]
[null,{"$f":"IF('Generated list'!B3582=\"\",\"\",'Generated list'!B3582)","v":""},{"$f":"IF('Generated list'!C3582=\"\",\"\",'Generated list'!C3582)","v":""},{"$f":"IF('Generated list'!D3582=\"\",\"\",'Generated list'!D3582)","v":""}]
[null,{"$f":"IF('Generated list'!B3583=\"\",\"\",'Generated list'!B3583)","v":""},{"$f":"IF('Generated list'!C3583=\"\",\"\",'Generated list'!C3583)","v":""},{"$f":"IF('Generated list'!D3583=\"\",\"\",'Generated list'!D3583)","v":""}]
[null,{"$f":"IF('Generated list'!B3584=\"\",\"\",'Generated list'!B3584)","v":""},{"$f":"IF('Generated list'!C3584=\"\",\"\",'Generated list'!C3584)","v":""},{"$f":"IF('Generated list'!D3584=\"\",\"\",'Generated list'!D3584)","v":""}]
[null,{"$f":"IF('Generated list'!B3585=\"\",\"\",'Generated list'!B3585)","v":""},{"$f":"IF('Generated list'!C3585=\"\",\"\",'Generated list'!C3585)","v":""},{"$f":"IF('Generated list'!D3585=\"\",\"\",'Generated list'!D3585)","v":""}]
[null,{"$f":"IF('Generated list'!B3586=\"\",\"\",'Generated list'!B3586)","v":""},{"$f":"IF('Generated list'!C3586=\"\",\"\",'Generated list'!C3586)","v":""},{"$f":"IF('Generated list'!D3586=\"\",\"\",'Generated list'!D3586)","v":""}]
[null,{"$f":"IF('Generated list'!B3587=\"\",\"\",'Generated list'!B3587)","v":""},{"$f":"IF('Generated list'!C3587=\"\",\"\",'Generated list'!C3587)","v":""},{"$f":"IF('Generated list'!D3587=\"\",\"\",'Generated list'!D3587)","v":""}]
[null,{"$f":"IF('Generated list'!B3588=\"\",\"\",'Generated list'!B3588)","v":""},{"$f":"IF('Generated list'!C3588=\"\",\"\",'Generated list'!C3588)","v":""},{"$f":"IF('Generated list'!D3588=\"\",\"\",'Generated list'!D3588)","v":""}]
[null,{"$f":"IF('Generated list'!B3589=\"\",\"\",'Generated list'!B3589)","v":""},{"$f":"IF('Generated list'!C3589=\"\",\"\",'Generated list'!C3589)","v":""},{"$f":"IF('Generated list'!D3589=\"\",\"\",'Generated list'!D3589)","v":""}]
[null,{"$f":"IF('Generated list'!B3590=\"\",\"\",'Generated list'!B3590)","v":""},{"$f":"IF('Generated list'!C3590=\"\",\"\",'Generated list'!C3590)","v":""},{"$f":"IF('Generated list'!D3590=\"\",\"\",'Generated list'!D3590)","v":""}]
[null,{"$f":"IF('Generated list'!B3591=\"\",\"\",'Generated list'!B3591)","v":""},{"$f":"IF('Generated list'!C3591=\"\",\"\",'Generated list'!C3591)","v":""},{"$f":"IF('Generated list'!D3591=\"\",\"\",'Generated list'!D3591)","v":""}]
[null,{"$f":"IF('Generated list'!B3592=\"\",\"\",'Generated list'!B3592)","v":""},{"$f":"IF('Generated list'!C3592=\"\",\"\",'Generated list'!C3592)","v":""},{"$f":"IF('Generated list'!D3592=\"\",\"\",'Generated list'!D3592)","v":""}]
[null,{"$f":"IF('Generated list'!B3593=\"\",\"\",'Generated list'!B3593)","v":""},{"$f":"IF('Generated list'!C3593=\"\",\"\",'Generated list'!C3593)","v":""},{"$f":"IF('Generated list'!D3593=\"\",\"\",'Generated list'!D3593)","v":""}]
[null,{"$f":"IF('Generated list'!B3594=\"\",\"\",'Generated list'!B3594)","v":""},{"$f":"IF('Generated list'!C3594=\"\",\"\",'Generated list'!C3594)","v":""},{"$f":"IF('Generated list'!D3594=\"\",\"\",'Generated list'!D3594)","v":""}]
[null,{"$f":"IF('Generated list'!B3595=\"\",\"\",'Generated list'!B3595)","v":""},{"$f":"IF('Generated list'!C3595=\"\",\"\",'Generated list'!C3595)","v":""},{"$f":"IF('Generated list'!D3595=\"\",\"\",'Generated list'!D3595)","v":""}]
[null,{"$f":"IF('Generated list'!B3596=\"\",\"\",'Generated list'!B3596)","v":""},{"$f":"IF('Generated list'!C3596=\"\",\"\",'Generated list'!C3596)","v":""},{"$f":"IF('Generated list'!D3596=\"\",\"\",'Generated list'!D3596)","v":""}]
[null,{"$f":"IF('Generated list'!B3597=\"\",\"\",'Generated list'!B3597)","v":""},{"$f":"IF('Generated list'!C3597=\"\",\"\",'Generated list'!C3597)","v":""},{"$f":"IF('Generated list'!D3597=\"\",\"\",'Generated list'!D3597)","v":""}]
[null,{"$f":"IF('Generated list'!B3598=\"\",\"\",'Generated list'!B3598)","v":""},{"$f":"IF('Generated list'!C3598=\"\",\"\",'Generated list'!C3598)","v":""},{"$f":"IF('Generated list'!D3598=\"\",\"\",'Generated list'!D3598)","v":""}]
[null,{"$f":"IF('Generated list'!B3599=\"\",\"\",'Generated list'!B3599)","v":""},{"$f":"IF('Generated list'!C3599=\"\",\"\",'Generated list'!C3599)","v":""},{"$f":"IF('Generated list'!D3599=\"\",\"\",'Generated list'!D3599)","v":""}]
[null,{"$f":"IF('Generated list'!B3600=\"\",\"\",'Generated list'!B3600)","v":""},{"$f":"IF('Generated list'!C3600=\"\",\"\",'Generated list'!C3600)","v":""},{"$f":"IF('Generated list'!D3600=\"\",\"\",'Generated list'!D3600)","v":""}]
[null,{"$f":"IF('Generated list'!B3601=\"\",\"\",'Generated list'!B3601)","v":""},{"$f":"IF('Generated list'!C3601=\"\",\"\",'Generated list'!C3601)","v":""},{"$f":"IF('Generated list'!D3601=\"\",\"\",'Generated list'!D3601)","v":""}]
[null,{"$f":"IF('Generated list'!B3602=\"\",\"\",'Generated list'!B3602)","v":""},{"$f":"IF('Generated list'!C3602=\"\",\"\",'Generated list'!C3602)","v":""},{"$f":"IF('Generated list'!D3602=\"\",\"\",'Generated list'!D3602)","v":""}]
[null,{"$f":"IF('Generated list'!B3603=\"\",\"\",'Generated list'!B3603)","v":""},{"$f":"IF('Generated list'!C3603=\"\",\"\",'Generated list'!C3603)","v":""},{"$f":"IF('Generated list'!D3603=\"\",\"\",'Generated list'!D3603)","v":""}]
[null,{"$f":"IF('Generated list'!B3604=\"\",\"\",'Generated list'!B3604)","v":""},{"$f":"IF('Generated list'!C3604=\"\",\"\",'Generated list'!C3604)","v":""},{"$f":"IF('Generated list'!D3604=\"\",\"\",'Generated list'!D3604)","v":""}]
[null,{"$f":"IF('Generated list'!B3605=\"\",\"\",'Generated list'!B3605)","v":""},{"$f":"IF('Generated list'!C3605=\"\",\"\",'Generated list'!C3605)","v":""},{"$f":"IF('Generated list'!D3605=\"\",\"\",'Generated list'!D3605)","v":""}]
[null,{"$f":"IF('Generated list'!B3606=\"\",\"\",'Generated list'!B3606)","v":""},{"$f":"IF('Generated list'!C3606=\"\",\"\",'Generated list'!C3606)","v":""},{"$f":"IF('Generated list'!D3606=\"\",\"\",'Generated list'!D3606)","v":""}]
[null,{"$f":"IF('Generated list'!B3607=\"\",\"\",'Generated list'!B3607)","v":""},{"$f":"IF('Generated list'!C3607=\"\",\"\",'Generated list'!C3607)","v":""},{"$f":"IF('Generated list'!D3607=\"\",\"\",'Generated list'!D3607)","v":""}]
[null,{"$f":"IF('Generated list'!B3608=\"\",\"\",'Generated list'!B3608)","v":""},{"$f":"IF('Generated list'!C3608=\"\",\"\",'Generated list'!C3608)","v":""},{"$f":"IF('Generated list'!D3608=\"\",\"\",'Generated list'!D3608)","v":""}]
[null,{"$f":"IF('Generated list'!B3609=\"\",\"\",'Generated list'!B3609)","v":""},{"$f":"IF('Generated list'!C3609=\"\",\"\",'Generated list'!C3609)","v":""},{"$f":"IF('Generated list'!D3609=\"\",\"\",'Generated list'!D3609)","v":""}]
[null,{"$f":"IF('Generated list'!B3610=\"\",\"\",'Generated list'!B3610)","v":""},{"$f":"IF('Generated list'!C3610=\"\",\"\",'Generated list'!C3610)","v":""},{"$f":"IF('Generated list'!D3610=\"\",\"\",'Generated list'!D3610)","v":""}]
[null,{"$f":"IF('Generated list'!B3611=\"\",\"\",'Generated list'!B3611)","v":""},{"$f":"IF('Generated list'!C3611=\"\",\"\",'Generated list'!C3611)","v":""},{"$f":"IF('Generated list'!D3611=\"\",\"\",'Generated list'!D3611)","v":""}]
[null,{"$f":"IF('Generated list'!B3612=\"\",\"\",'Generated list'!B3612)","v":""},{"$f":"IF('Generated list'!C3612=\"\",\"\",'Generated list'!C3612)","v":""},{"$f":"IF('Generated list'!D3612=\"\",\"\",'Generated list'!D3612)","v":""}]
[null,{"$f":"IF('Generated list'!B3613=\"\",\"\",'Generated list'!B3613)","v":""},{"$f":"IF('Generated list'!C3613=\"\",\"\",'Generated list'!C3613)","v":""},{"$f":"IF('Generated list'!D3613=\"\",\"\",'Generated list'!D3613)","v":""}]
[null,{"$f":"IF('Generated list'!B3614=\"\",\"\",'Generated list'!B3614)","v":""},{"$f":"IF('Generated list'!C3614=\"\",\"\",'Generated list'!C3614)","v":""},{"$f":"IF('Generated list'!D3614=\"\",\"\",'Generated list'!D3614)","v":""}]
[null,{"$f":"IF('Generated list'!B3615=\"\",\"\",'Generated list'!B3615)","v":""},{"$f":"IF('Generated list'!C3615=\"\",\"\",'Generated list'!C3615)","v":""},{"$f":"IF('Generated list'!D3615=\"\",\"\",'Generated list'!D3615)","v":""}]
[null,{"$f":"IF('Generated list'!B3616=\"\",\"\",'Generated list'!B3616)","v":""},{"$f":"IF('Generated list'!C3616=\"\",\"\",'Generated list'!C3616)","v":""},{"$f":"IF('Generated list'!D3616=\"\",\"\",'Generated list'!D3616)","v":""}]
[null,{"$f":"IF('Generated list'!B3617=\"\",\"\",'Generated list'!B3617)","v":""},{"$f":"IF('Generated list'!C3617=\"\",\"\",'Generated list'!C3617)","v":""},{"$f":"IF('Generated list'!D3617=\"\",\"\",'Generated list'!D3617)","v":""}]
[null,{"$f":"IF('Generated list'!B3618=\"\",\"\",'Generated list'!B3618)","v":""},{"$f":"IF('Generated list'!C3618=\"\",\"\",'Generated list'!C3618)","v":""},{"$f":"IF('Generated list'!D3618=\"\",\"\",'Generated list'!D3618)","v":""}]
[null,{"$f":"IF('Generated list'!B3619=\"\",\"\",'Generated list'!B3619)","v":""},{"$f":"IF('Generated list'!C3619=\"\",\"\",'Generated list'!C3619)","v":""},{"$f":"IF('Generated list'!D3619=\"\",\"\",'Generated list'!D3619)","v":""}]
[null,{"$f":"IF('Generated list'!B3620=\"\",\"\",'Generated list'!B3620)","v":""},{"$f":"IF('Generated list'!C3620=\"\",\"\",'Generated list'!C3620)","v":""},{"$f":"IF('Generated list'!D3620=\"\",\"\",'Generated list'!D3620)","v":""}]
[null,{"$f":"IF('Generated list'!B3621=\"\",\"\",'Generated list'!B3621)","v":""},{"$f":"IF('Generated list'!C3621=\"\",\"\",'Generated list'!C3621)","v":""},{"$f":"IF('Generated list'!D3621=\"\",\"\",'Generated list'!D3621)","v":""}]
[null,{"$f":"IF('Generated list'!B3622=\"\",\"\",'Generated list'!B3622)","v":""},{"$f":"IF('Generated list'!C3622=\"\",\"\",'Generated list'!C3622)","v":""},{"$f":"IF('Generated list'!D3622=\"\",\"\",'Generated list'!D3622)","v":""}]
[null,{"$f":"IF('Generated list'!B3623=\"\",\"\",'Generated list'!B3623)","v":""},{"$f":"IF('Generated list'!C3623=\"\",\"\",'Generated list'!C3623)","v":""},{"$f":"IF('Generated list'!D3623=\"\",\"\",'Generated list'!D3623)","v":""}]
[null,{"$f":"IF('Generated list'!B3624=\"\",\"\",'Generated list'!B3624)","v":""},{"$f":"IF('Generated list'!C3624=\"\",\"\",'Generated list'!C3624)","v":""},{"$f":"IF('Generated list'!D3624=\"\",\"\",'Generated list'!D3624)","v":""}]
[null,{"$f":"IF('Generated list'!B3625=\"\",\"\",'Generated list'!B3625)","v":""},{"$f":"IF('Generated list'!C3625=\"\",\"\",'Generated list'!C3625)","v":""},{"$f":"IF('Generated list'!D3625=\"\",\"\",'Generated list'!D3625)","v":""}]
[null,{"$f":"IF('Generated list'!B3626=\"\",\"\",'Generated list'!B3626)","v":""},{"$f":"IF('Generated list'!C3626=\"\",\"\",'Generated list'!C3626)","v":""},{"$f":"IF('Generated list'!D3626=\"\",\"\",'Generated list'!D3626)","v":""}]
[null,{"$f":"IF('Generated list'!B3627=\"\",\"\",'Generated list'!B3627)","v":""},{"$f":"IF('Generated list'!C3627=\"\",\"\",'Generated list'!C3627)","v":""},{"$f":"IF('Generated list'!D3627=\"\",\"\",'Generated list'!D3627)","v":""}]
[null,{"$f":"IF('Generated list'!B3628=\"\",\"\",'Generated list'!B3628)","v":""},{"$f":"IF('Generated list'!C3628=\"\",\"\",'Generated list'!C3628)","v":""},{"$f":"IF('Generated list'!D3628=\"\",\"\",'Generated list'!D3628)","v":""}]
[null,{"$f":"IF('Generated list'!B3629=\"\",\"\",'Generated list'!B3629)","v":""},{"$f":"IF('Generated list'!C3629=\"\",\"\",'Generated list'!C3629)","v":""},{"$f":"IF('Generated list'!D3629=\"\",\"\",'Generated list'!D3629)","v":""}]
[null,{"$f":"IF('Generated list'!B3630=\"\",\"\",'Generated list'!B3630)","v":""},{"$f":"IF('Generated list'!C3630=\"\",\"\",'Generated list'!C3630)","v":""},{"$f":"IF('Generated list'!D3630=\"\",\"\",'Generated list'!D3630)","v":""}]
[null,{"$f":"IF('Generated list'!B3631=\"\",\"\",'Generated list'!B3631)","v":""},{"$f":"IF('Generated list'!C3631=\"\",\"\",'Generated list'!C3631)","v":""},{"$f":"IF('Generated list'!D3631=\"\",\"\",'Generated list'!D3631)","v":""}]
[null,{"$f":"IF('Generated list'!B3632=\"\",\"\",'Generated list'!B3632)","v":""},{"$f":"IF('Generated list'!C3632=\"\",\"\",'Generated list'!C3632)","v":""},{"$f":"IF('Generated list'!D3632=\"\",\"\",'Generated list'!D3632)","v":""}]
[null,{"$f":"IF('Generated list'!B3633=\"\",\"\",'Generated list'!B3633)","v":""},{"$f":"IF('Generated list'!C3633=\"\",\"\",'Generated list'!C3633)","v":""},{"$f":"IF('Generated list'!D3633=\"\",\"\",'Generated list'!D3633)","v":""}]
[null,{"$f":"IF('Generated list'!B3634=\"\",\"\",'Generated list'!B3634)","v":""},{"$f":"IF('Generated list'!C3634=\"\",\"\",'Generated list'!C3634)","v":""},{"$f":"IF('Generated list'!D3634=\"\",\"\",'Generated list'!D3634)","v":""}]
[null,{"$f":"IF('Generated list'!B3635=\"\",\"\",'Generated list'!B3635)","v":""},{"$f":"IF('Generated list'!C3635=\"\",\"\",'Generated list'!C3635)","v":""},{"$f":"IF('Generated list'!D3635=\"\",\"\",'Generated list'!D3635)","v":""}]
[null,{"$f":"IF('Generated list'!B3636=\"\",\"\",'Generated list'!B3636)","v":""},{"$f":"IF('Generated list'!C3636=\"\",\"\",'Generated list'!C3636)","v":""},{"$f":"IF('Generated list'!D3636=\"\",\"\",'Generated list'!D3636)","v":""}]
[null,{"$f":"IF('Generated list'!B3637=\"\",\"\",'Generated list'!B3637)","v":""},{"$f":"IF('Generated list'!C3637=\"\",\"\",'Generated list'!C3637)","v":""},{"$f":"IF('Generated list'!D3637=\"\",\"\",'Generated list'!D3637)","v":""}]
[null,{"$f":"IF('Generated list'!B3638=\"\",\"\",'Generated list'!B3638)","v":""},{"$f":"IF('Generated list'!C3638=\"\",\"\",'Generated list'!C3638)","v":""},{"$f":"IF('Generated list'!D3638=\"\",\"\",'Generated list'!D3638)","v":""}]
[null,{"$f":"IF('Generated list'!B3639=\"\",\"\",'Generated list'!B3639)","v":""},{"$f":"IF('Generated list'!C3639=\"\",\"\",'Generated list'!C3639)","v":""},{"$f":"IF('Generated list'!D3639=\"\",\"\",'Generated list'!D3639)","v":""}]
[null,{"$f":"IF('Generated list'!B3640=\"\",\"\",'Generated list'!B3640)","v":""},{"$f":"IF('Generated list'!C3640=\"\",\"\",'Generated list'!C3640)","v":""},{"$f":"IF('Generated list'!D3640=\"\",\"\",'Generated list'!D3640)","v":""}]
[null,{"$f":"IF('Generated list'!B3641=\"\",\"\",'Generated list'!B3641)","v":""},{"$f":"IF('Generated list'!C3641=\"\",\"\",'Generated list'!C3641)","v":""},{"$f":"IF('Generated list'!D3641=\"\",\"\",'Generated list'!D3641)","v":""}]
[null,{"$f":"IF('Generated list'!B3642=\"\",\"\",'Generated list'!B3642)","v":""},{"$f":"IF('Generated list'!C3642=\"\",\"\",'Generated list'!C3642)","v":""},{"$f":"IF('Generated list'!D3642=\"\",\"\",'Generated list'!D3642)","v":""}]
[null,{"$f":"IF('Generated list'!B3643=\"\",\"\",'Generated list'!B3643)","v":""},{"$f":"IF('Generated list'!C3643=\"\",\"\",'Generated list'!C3643)","v":""},{"$f":"IF('Generated list'!D3643=\"\",\"\",'Generated list'!D3643)","v":""}]
[null,{"$f":"IF('Generated list'!B3644=\"\",\"\",'Generated list'!B3644)","v":""},{"$f":"IF('Generated list'!C3644=\"\",\"\",'Generated list'!C3644)","v":""},{"$f":"IF('Generated list'!D3644=\"\",\"\",'Generated list'!D3644)","v":""}]
[null,{"$f":"IF('Generated list'!B3645=\"\",\"\",'Generated list'!B3645)","v":""},{"$f":"IF('Generated list'!C3645=\"\",\"\",'Generated list'!C3645)","v":""},{"$f":"IF('Generated list'!D3645=\"\",\"\",'Generated list'!D3645)","v":""}]
[null,{"$f":"IF('Generated list'!B3646=\"\",\"\",'Generated list'!B3646)","v":""},{"$f":"IF('Generated list'!C3646=\"\",\"\",'Generated list'!C3646)","v":""},{"$f":"IF('Generated list'!D3646=\"\",\"\",'Generated list'!D3646)","v":""}]
[null,{"$f":"IF('Generated list'!B3647=\"\",\"\",'Generated list'!B3647)","v":""},{"$f":"IF('Generated list'!C3647=\"\",\"\",'Generated list'!C3647)","v":""},{"$f":"IF('Generated list'!D3647=\"\",\"\",'Generated list'!D3647)","v":""}]
[null,{"$f":"IF('Generated list'!B3648=\"\",\"\",'Generated list'!B3648)","v":""},{"$f":"IF('Generated list'!C3648=\"\",\"\",'Generated list'!C3648)","v":""},{"$f":"IF('Generated list'!D3648=\"\",\"\",'Generated list'!D3648)","v":""}]
[null,{"$f":"IF('Generated list'!B3649=\"\",\"\",'Generated list'!B3649)","v":""},{"$f":"IF('Generated list'!C3649=\"\",\"\",'Generated list'!C3649)","v":""},{"$f":"IF('Generated list'!D3649=\"\",\"\",'Generated list'!D3649)","v":""}]
[null,{"$f":"IF('Generated list'!B3650=\"\",\"\",'Generated list'!B3650)","v":""},{"$f":"IF('Generated list'!C3650=\"\",\"\",'Generated list'!C3650)","v":""},{"$f":"IF('Generated list'!D3650=\"\",\"\",'Generated list'!D3650)","v":""}]
[null,{"$f":"IF('Generated list'!B3651=\"\",\"\",'Generated list'!B3651)","v":""},{"$f":"IF('Generated list'!C3651=\"\",\"\",'Generated list'!C3651)","v":""},{"$f":"IF('Generated list'!D3651=\"\",\"\",'Generated list'!D3651)","v":""}]
[null,{"$f":"IF('Generated list'!B3652=\"\",\"\",'Generated list'!B3652)","v":""},{"$f":"IF('Generated list'!C3652=\"\",\"\",'Generated list'!C3652)","v":""},{"$f":"IF('Generated list'!D3652=\"\",\"\",'Generated list'!D3652)","v":""}]
[null,{"$f":"IF('Generated list'!B3653=\"\",\"\",'Generated list'!B3653)","v":""},{"$f":"IF('Generated list'!C3653=\"\",\"\",'Generated list'!C3653)","v":""},{"$f":"IF('Generated list'!D3653=\"\",\"\",'Generated list'!D3653)","v":""}]
[null,{"$f":"IF('Generated list'!B3654=\"\",\"\",'Generated list'!B3654)","v":""},{"$f":"IF('Generated list'!C3654=\"\",\"\",'Generated list'!C3654)","v":""},{"$f":"IF('Generated list'!D3654=\"\",\"\",'Generated list'!D3654)","v":""}]
[null,{"$f":"IF('Generated list'!B3655=\"\",\"\",'Generated list'!B3655)","v":""},{"$f":"IF('Generated list'!C3655=\"\",\"\",'Generated list'!C3655)","v":""},{"$f":"IF('Generated list'!D3655=\"\",\"\",'Generated list'!D3655)","v":""}]
[null,{"$f":"IF('Generated list'!B3656=\"\",\"\",'Generated list'!B3656)","v":""},{"$f":"IF('Generated list'!C3656=\"\",\"\",'Generated list'!C3656)","v":""},{"$f":"IF('Generated list'!D3656=\"\",\"\",'Generated list'!D3656)","v":""}]
[null,{"$f":"IF('Generated list'!B3657=\"\",\"\",'Generated list'!B3657)","v":""},{"$f":"IF('Generated list'!C3657=\"\",\"\",'Generated list'!C3657)","v":""},{"$f":"IF('Generated list'!D3657=\"\",\"\",'Generated list'!D3657)","v":""}]
[null,{"$f":"IF('Generated list'!B3658=\"\",\"\",'Generated list'!B3658)","v":""},{"$f":"IF('Generated list'!C3658=\"\",\"\",'Generated list'!C3658)","v":""},{"$f":"IF('Generated list'!D3658=\"\",\"\",'Generated list'!D3658)","v":""}]
[null,{"$f":"IF('Generated list'!B3659=\"\",\"\",'Generated list'!B3659)","v":""},{"$f":"IF('Generated list'!C3659=\"\",\"\",'Generated list'!C3659)","v":""},{"$f":"IF('Generated list'!D3659=\"\",\"\",'Generated list'!D3659)","v":""}]
[null,{"$f":"IF('Generated list'!B3660=\"\",\"\",'Generated list'!B3660)","v":""},{"$f":"IF('Generated list'!C3660=\"\",\"\",'Generated list'!C3660)","v":""},{"$f":"IF('Generated list'!D3660=\"\",\"\",'Generated list'!D3660)","v":""}]
[null,{"$f":"IF('Generated list'!B3661=\"\",\"\",'Generated list'!B3661)","v":""},{"$f":"IF('Generated list'!C3661=\"\",\"\",'Generated list'!C3661)","v":""},{"$f":"IF('Generated list'!D3661=\"\",\"\",'Generated list'!D3661)","v":""}]
[null,{"$f":"IF('Generated list'!B3662=\"\",\"\",'Generated list'!B3662)","v":""},{"$f":"IF('Generated list'!C3662=\"\",\"\",'Generated list'!C3662)","v":""},{"$f":"IF('Generated list'!D3662=\"\",\"\",'Generated list'!D3662)","v":""}]
[null,{"$f":"IF('Generated list'!B3663=\"\",\"\",'Generated list'!B3663)","v":""},{"$f":"IF('Generated list'!C3663=\"\",\"\",'Generated list'!C3663)","v":""},{"$f":"IF('Generated list'!D3663=\"\",\"\",'Generated list'!D3663)","v":""}]
[null,{"$f":"IF('Generated list'!B3664=\"\",\"\",'Generated list'!B3664)","v":""},{"$f":"IF('Generated list'!C3664=\"\",\"\",'Generated list'!C3664)","v":""},{"$f":"IF('Generated list'!D3664=\"\",\"\",'Generated list'!D3664)","v":""}]
[null,{"$f":"IF('Generated list'!B3665=\"\",\"\",'Generated list'!B3665)","v":""},{"$f":"IF('Generated list'!C3665=\"\",\"\",'Generated list'!C3665)","v":""},{"$f":"IF('Generated list'!D3665=\"\",\"\",'Generated list'!D3665)","v":""}]
[null,{"$f":"IF('Generated list'!B3666=\"\",\"\",'Generated list'!B3666)","v":""},{"$f":"IF('Generated list'!C3666=\"\",\"\",'Generated list'!C3666)","v":""},{"$f":"IF('Generated list'!D3666=\"\",\"\",'Generated list'!D3666)","v":""}]
[null,{"$f":"IF('Generated list'!B3667=\"\",\"\",'Generated list'!B3667)","v":""},{"$f":"IF('Generated list'!C3667=\"\",\"\",'Generated list'!C3667)","v":""},{"$f":"IF('Generated list'!D3667=\"\",\"\",'Generated list'!D3667)","v":""}]
[null,{"$f":"IF('Generated list'!B3668=\"\",\"\",'Generated list'!B3668)","v":""},{"$f":"IF('Generated list'!C3668=\"\",\"\",'Generated list'!C3668)","v":""},{"$f":"IF('Generated list'!D3668=\"\",\"\",'Generated list'!D3668)","v":""}]
[null,{"$f":"IF('Generated list'!B3669=\"\",\"\",'Generated list'!B3669)","v":""},{"$f":"IF('Generated list'!C3669=\"\",\"\",'Generated list'!C3669)","v":""},{"$f":"IF('Generated list'!D3669=\"\",\"\",'Generated list'!D3669)","v":""}]
[null,{"$f":"IF('Generated list'!B3670=\"\",\"\",'Generated list'!B3670)","v":""},{"$f":"IF('Generated list'!C3670=\"\",\"\",'Generated list'!C3670)","v":""},{"$f":"IF('Generated list'!D3670=\"\",\"\",'Generated list'!D3670)","v":""}]
[null,{"$f":"IF('Generated list'!B3671=\"\",\"\",'Generated list'!B3671)","v":""},{"$f":"IF('Generated list'!C3671=\"\",\"\",'Generated list'!C3671)","v":""},{"$f":"IF('Generated list'!D3671=\"\",\"\",'Generated list'!D3671)","v":""}]
[null,{"$f":"IF('Generated list'!B3672=\"\",\"\",'Generated list'!B3672)","v":""},{"$f":"IF('Generated list'!C3672=\"\",\"\",'Generated list'!C3672)","v":""},{"$f":"IF('Generated list'!D3672=\"\",\"\",'Generated list'!D3672)","v":""}]
[null,{"$f":"IF('Generated list'!B3673=\"\",\"\",'Generated list'!B3673)","v":""},{"$f":"IF('Generated list'!C3673=\"\",\"\",'Generated list'!C3673)","v":""},{"$f":"IF('Generated list'!D3673=\"\",\"\",'Generated list'!D3673)","v":""}]
[null,{"$f":"IF('Generated list'!B3674=\"\",\"\",'Generated list'!B3674)","v":""},{"$f":"IF('Generated list'!C3674=\"\",\"\",'Generated list'!C3674)","v":""},{"$f":"IF('Generated list'!D3674=\"\",\"\",'Generated list'!D3674)","v":""}]
[null,{"$f":"IF('Generated list'!B3675=\"\",\"\",'Generated list'!B3675)","v":""},{"$f":"IF('Generated list'!C3675=\"\",\"\",'Generated list'!C3675)","v":""},{"$f":"IF('Generated list'!D3675=\"\",\"\",'Generated list'!D3675)","v":""}]
[null,{"$f":"IF('Generated list'!B3676=\"\",\"\",'Generated list'!B3676)","v":""},{"$f":"IF('Generated list'!C3676=\"\",\"\",'Generated list'!C3676)","v":""},{"$f":"IF('Generated list'!D3676=\"\",\"\",'Generated list'!D3676)","v":""}]
[null,{"$f":"IF('Generated list'!B3677=\"\",\"\",'Generated list'!B3677)","v":""},{"$f":"IF('Generated list'!C3677=\"\",\"\",'Generated list'!C3677)","v":""},{"$f":"IF('Generated list'!D3677=\"\",\"\",'Generated list'!D3677)","v":""}]
[null,{"$f":"IF('Generated list'!B3678=\"\",\"\",'Generated list'!B3678)","v":""},{"$f":"IF('Generated list'!C3678=\"\",\"\",'Generated list'!C3678)","v":""},{"$f":"IF('Generated list'!D3678=\"\",\"\",'Generated list'!D3678)","v":""}]
[null,{"$f":"IF('Generated list'!B3679=\"\",\"\",'Generated list'!B3679)","v":""},{"$f":"IF('Generated list'!C3679=\"\",\"\",'Generated list'!C3679)","v":""},{"$f":"IF('Generated list'!D3679=\"\",\"\",'Generated list'!D3679)","v":""}]
[null,{"$f":"IF('Generated list'!B3680=\"\",\"\",'Generated list'!B3680)","v":""},{"$f":"IF('Generated list'!C3680=\"\",\"\",'Generated list'!C3680)","v":""},{"$f":"IF('Generated list'!D3680=\"\",\"\",'Generated list'!D3680)","v":""}]
[null,{"$f":"IF('Generated list'!B3681=\"\",\"\",'Generated list'!B3681)","v":""},{"$f":"IF('Generated list'!C3681=\"\",\"\",'Generated list'!C3681)","v":""},{"$f":"IF('Generated list'!D3681=\"\",\"\",'Generated list'!D3681)","v":""}]
[null,{"$f":"IF('Generated list'!B3682=\"\",\"\",'Generated list'!B3682)","v":""},{"$f":"IF('Generated list'!C3682=\"\",\"\",'Generated list'!C3682)","v":""},{"$f":"IF('Generated list'!D3682=\"\",\"\",'Generated list'!D3682)","v":""}]
[null,{"$f":"IF('Generated list'!B3683=\"\",\"\",'Generated list'!B3683)","v":""},{"$f":"IF('Generated list'!C3683=\"\",\"\",'Generated list'!C3683)","v":""},{"$f":"IF('Generated list'!D3683=\"\",\"\",'Generated list'!D3683)","v":""}]
[null,{"$f":"IF('Generated list'!B3684=\"\",\"\",'Generated list'!B3684)","v":""},{"$f":"IF('Generated list'!C3684=\"\",\"\",'Generated list'!C3684)","v":""},{"$f":"IF('Generated list'!D3684=\"\",\"\",'Generated list'!D3684)","v":""}]
[null,{"$f":"IF('Generated list'!B3685=\"\",\"\",'Generated list'!B3685)","v":""},{"$f":"IF('Generated list'!C3685=\"\",\"\",'Generated list'!C3685)","v":""},{"$f":"IF('Generated list'!D3685=\"\",\"\",'Generated list'!D3685)","v":""}]
[null,{"$f":"IF('Generated list'!B3686=\"\",\"\",'Generated list'!B3686)","v":""},{"$f":"IF('Generated list'!C3686=\"\",\"\",'Generated list'!C3686)","v":""},{"$f":"IF('Generated list'!D3686=\"\",\"\",'Generated list'!D3686)","v":""}]
[null,{"$f":"IF('Generated list'!B3687=\"\",\"\",'Generated list'!B3687)","v":""},{"$f":"IF('Generated list'!C3687=\"\",\"\",'Generated list'!C3687)","v":""},{"$f":"IF('Generated list'!D3687=\"\",\"\",'Generated list'!D3687)","v":""}]
[null,{"$f":"IF('Generated list'!B3688=\"\",\"\",'Generated list'!B3688)","v":""},{"$f":"IF('Generated list'!C3688=\"\",\"\",'Generated list'!C3688)","v":""},{"$f":"IF('Generated list'!D3688=\"\",\"\",'Generated list'!D3688)","v":""}]
[null,{"$f":"IF('Generated list'!B3689=\"\",\"\",'Generated list'!B3689)","v":""},{"$f":"IF('Generated list'!C3689=\"\",\"\",'Generated list'!C3689)","v":""},{"$f":"IF('Generated list'!D3689=\"\",\"\",'Generated list'!D3689)","v":""}]
[null,{"$f":"IF('Generated list'!B3690=\"\",\"\",'Generated list'!B3690)","v":""},{"$f":"IF('Generated list'!C3690=\"\",\"\",'Generated list'!C3690)","v":""},{"$f":"IF('Generated list'!D3690=\"\",\"\",'Generated list'!D3690)","v":""}]
[null,{"$f":"IF('Generated list'!B3691=\"\",\"\",'Generated list'!B3691)","v":""},{"$f":"IF('Generated list'!C3691=\"\",\"\",'Generated list'!C3691)","v":""},{"$f":"IF('Generated list'!D3691=\"\",\"\",'Generated list'!D3691)","v":""}]
[null,{"$f":"IF('Generated list'!B3692=\"\",\"\",'Generated list'!B3692)","v":""},{"$f":"IF('Generated list'!C3692=\"\",\"\",'Generated list'!C3692)","v":""},{"$f":"IF('Generated list'!D3692=\"\",\"\",'Generated list'!D3692)","v":""}]
[null,{"$f":"IF('Generated list'!B3693=\"\",\"\",'Generated list'!B3693)","v":""},{"$f":"IF('Generated list'!C3693=\"\",\"\",'Generated list'!C3693)","v":""},{"$f":"IF('Generated list'!D3693=\"\",\"\",'Generated list'!D3693)","v":""}]
[null,{"$f":"IF('Generated list'!B3694=\"\",\"\",'Generated list'!B3694)","v":""},{"$f":"IF('Generated list'!C3694=\"\",\"\",'Generated list'!C3694)","v":""},{"$f":"IF('Generated list'!D3694=\"\",\"\",'Generated list'!D3694)","v":""}]
[null,{"$f":"IF('Generated list'!B3695=\"\",\"\",'Generated list'!B3695)","v":""},{"$f":"IF('Generated list'!C3695=\"\",\"\",'Generated list'!C3695)","v":""},{"$f":"IF('Generated list'!D3695=\"\",\"\",'Generated list'!D3695)","v":""}]
[null,{"$f":"IF('Generated list'!B3696=\"\",\"\",'Generated list'!B3696)","v":""},{"$f":"IF('Generated list'!C3696=\"\",\"\",'Generated list'!C3696)","v":""},{"$f":"IF('Generated list'!D3696=\"\",\"\",'Generated list'!D3696)","v":""}]
[null,{"$f":"IF('Generated list'!B3697=\"\",\"\",'Generated list'!B3697)","v":""},{"$f":"IF('Generated list'!C3697=\"\",\"\",'Generated list'!C3697)","v":""},{"$f":"IF('Generated list'!D3697=\"\",\"\",'Generated list'!D3697)","v":""}]
[null,{"$f":"IF('Generated list'!B3698=\"\",\"\",'Generated list'!B3698)","v":""},{"$f":"IF('Generated list'!C3698=\"\",\"\",'Generated list'!C3698)","v":""},{"$f":"IF('Generated list'!D3698=\"\",\"\",'Generated list'!D3698)","v":""}]
[null,{"$f":"IF('Generated list'!B3699=\"\",\"\",'Generated list'!B3699)","v":""},{"$f":"IF('Generated list'!C3699=\"\",\"\",'Generated list'!C3699)","v":""},{"$f":"IF('Generated list'!D3699=\"\",\"\",'Generated list'!D3699)","v":""}]
[null,{"$f":"IF('Generated list'!B3700=\"\",\"\",'Generated list'!B3700)","v":""},{"$f":"IF('Generated list'!C3700=\"\",\"\",'Generated list'!C3700)","v":""},{"$f":"IF('Generated list'!D3700=\"\",\"\",'Generated list'!D3700)","v":""}]
[null,{"$f":"IF('Generated list'!B3701=\"\",\"\",'Generated list'!B3701)","v":""},{"$f":"IF('Generated list'!C3701=\"\",\"\",'Generated list'!C3701)","v":""},{"$f":"IF('Generated list'!D3701=\"\",\"\",'Generated list'!D3701)","v":""}]
[null,{"$f":"IF('Generated list'!B3702=\"\",\"\",'Generated list'!B3702)","v":""},{"$f":"IF('Generated list'!C3702=\"\",\"\",'Generated list'!C3702)","v":""},{"$f":"IF('Generated list'!D3702=\"\",\"\",'Generated list'!D3702)","v":""}]
[null,{"$f":"IF('Generated list'!B3703=\"\",\"\",'Generated list'!B3703)","v":""},{"$f":"IF('Generated list'!C3703=\"\",\"\",'Generated list'!C3703)","v":""},{"$f":"IF('Generated list'!D3703=\"\",\"\",'Generated list'!D3703)","v":""}]
[null,{"$f":"IF('Generated list'!B3704=\"\",\"\",'Generated list'!B3704)","v":""},{"$f":"IF('Generated list'!C3704=\"\",\"\",'Generated list'!C3704)","v":""},{"$f":"IF('Generated list'!D3704=\"\",\"\",'Generated list'!D3704)","v":""}]
[null,{"$f":"IF('Generated list'!B3705=\"\",\"\",'Generated list'!B3705)","v":""},{"$f":"IF('Generated list'!C3705=\"\",\"\",'Generated list'!C3705)","v":""},{"$f":"IF('Generated list'!D3705=\"\",\"\",'Generated list'!D3705)","v":""}]
[null,{"$f":"IF('Generated list'!B3706=\"\",\"\",'Generated list'!B3706)","v":""},{"$f":"IF('Generated list'!C3706=\"\",\"\",'Generated list'!C3706)","v":""},{"$f":"IF('Generated list'!D3706=\"\",\"\",'Generated list'!D3706)","v":""}]
[null,{"$f":"IF('Generated list'!B3707=\"\",\"\",'Generated list'!B3707)","v":""},{"$f":"IF('Generated list'!C3707=\"\",\"\",'Generated list'!C3707)","v":""},{"$f":"IF('Generated list'!D3707=\"\",\"\",'Generated list'!D3707)","v":""}]
[null,{"$f":"IF('Generated list'!B3708=\"\",\"\",'Generated list'!B3708)","v":""},{"$f":"IF('Generated list'!C3708=\"\",\"\",'Generated list'!C3708)","v":""},{"$f":"IF('Generated list'!D3708=\"\",\"\",'Generated list'!D3708)","v":""}]
[null,{"$f":"IF('Generated list'!B3709=\"\",\"\",'Generated list'!B3709)","v":""},{"$f":"IF('Generated list'!C3709=\"\",\"\",'Generated list'!C3709)","v":""},{"$f":"IF('Generated list'!D3709=\"\",\"\",'Generated list'!D3709)","v":""}]
[null,{"$f":"IF('Generated list'!B3710=\"\",\"\",'Generated list'!B3710)","v":""},{"$f":"IF('Generated list'!C3710=\"\",\"\",'Generated list'!C3710)","v":""},{"$f":"IF('Generated list'!D3710=\"\",\"\",'Generated list'!D3710)","v":""}]
[null,{"$f":"IF('Generated list'!B3711=\"\",\"\",'Generated list'!B3711)","v":""},{"$f":"IF('Generated list'!C3711=\"\",\"\",'Generated list'!C3711)","v":""},{"$f":"IF('Generated list'!D3711=\"\",\"\",'Generated list'!D3711)","v":""}]
[null,{"$f":"IF('Generated list'!B3712=\"\",\"\",'Generated list'!B3712)","v":""},{"$f":"IF('Generated list'!C3712=\"\",\"\",'Generated list'!C3712)","v":""},{"$f":"IF('Generated list'!D3712=\"\",\"\",'Generated list'!D3712)","v":""}]
[null,{"$f":"IF('Generated list'!B3713=\"\",\"\",'Generated list'!B3713)","v":""},{"$f":"IF('Generated list'!C3713=\"\",\"\",'Generated list'!C3713)","v":""},{"$f":"IF('Generated list'!D3713=\"\",\"\",'Generated list'!D3713)","v":""}]
[null,{"$f":"IF('Generated list'!B3714=\"\",\"\",'Generated list'!B3714)","v":""},{"$f":"IF('Generated list'!C3714=\"\",\"\",'Generated list'!C3714)","v":""},{"$f":"IF('Generated list'!D3714=\"\",\"\",'Generated list'!D3714)","v":""}]
[null,{"$f":"IF('Generated list'!B3715=\"\",\"\",'Generated list'!B3715)","v":""},{"$f":"IF('Generated list'!C3715=\"\",\"\",'Generated list'!C3715)","v":""},{"$f":"IF('Generated list'!D3715=\"\",\"\",'Generated list'!D3715)","v":""}]
[null,{"$f":"IF('Generated list'!B3716=\"\",\"\",'Generated list'!B3716)","v":""},{"$f":"IF('Generated list'!C3716=\"\",\"\",'Generated list'!C3716)","v":""},{"$f":"IF('Generated list'!D3716=\"\",\"\",'Generated list'!D3716)","v":""}]
[null,{"$f":"IF('Generated list'!B3717=\"\",\"\",'Generated list'!B3717)","v":""},{"$f":"IF('Generated list'!C3717=\"\",\"\",'Generated list'!C3717)","v":""},{"$f":"IF('Generated list'!D3717=\"\",\"\",'Generated list'!D3717)","v":""}]
[null,{"$f":"IF('Generated list'!B3718=\"\",\"\",'Generated list'!B3718)","v":""},{"$f":"IF('Generated list'!C3718=\"\",\"\",'Generated list'!C3718)","v":""},{"$f":"IF('Generated list'!D3718=\"\",\"\",'Generated list'!D3718)","v":""}]
[null,{"$f":"IF('Generated list'!B3719=\"\",\"\",'Generated list'!B3719)","v":""},{"$f":"IF('Generated list'!C3719=\"\",\"\",'Generated list'!C3719)","v":""},{"$f":"IF('Generated list'!D3719=\"\",\"\",'Generated list'!D3719)","v":""}]
[null,{"$f":"IF('Generated list'!B3720=\"\",\"\",'Generated list'!B3720)","v":""},{"$f":"IF('Generated list'!C3720=\"\",\"\",'Generated list'!C3720)","v":""},{"$f":"IF('Generated list'!D3720=\"\",\"\",'Generated list'!D3720)","v":""}]
[null,{"$f":"IF('Generated list'!B3721=\"\",\"\",'Generated list'!B3721)","v":""},{"$f":"IF('Generated list'!C3721=\"\",\"\",'Generated list'!C3721)","v":""},{"$f":"IF('Generated list'!D3721=\"\",\"\",'Generated list'!D3721)","v":""}]
[null,{"$f":"IF('Generated list'!B3722=\"\",\"\",'Generated list'!B3722)","v":""},{"$f":"IF('Generated list'!C3722=\"\",\"\",'Generated list'!C3722)","v":""},{"$f":"IF('Generated list'!D3722=\"\",\"\",'Generated list'!D3722)","v":""}]
[null,{"$f":"IF('Generated list'!B3723=\"\",\"\",'Generated list'!B3723)","v":""},{"$f":"IF('Generated list'!C3723=\"\",\"\",'Generated list'!C3723)","v":""},{"$f":"IF('Generated list'!D3723=\"\",\"\",'Generated list'!D3723)","v":""}]
[null,{"$f":"IF('Generated list'!B3724=\"\",\"\",'Generated list'!B3724)","v":""},{"$f":"IF('Generated list'!C3724=\"\",\"\",'Generated list'!C3724)","v":""},{"$f":"IF('Generated list'!D3724=\"\",\"\",'Generated list'!D3724)","v":""}]
[null,{"$f":"IF('Generated list'!B3725=\"\",\"\",'Generated list'!B3725)","v":""},{"$f":"IF('Generated list'!C3725=\"\",\"\",'Generated list'!C3725)","v":""},{"$f":"IF('Generated list'!D3725=\"\",\"\",'Generated list'!D3725)","v":""}]
[null,{"$f":"IF('Generated list'!B3726=\"\",\"\",'Generated list'!B3726)","v":""},{"$f":"IF('Generated list'!C3726=\"\",\"\",'Generated list'!C3726)","v":""},{"$f":"IF('Generated list'!D3726=\"\",\"\",'Generated list'!D3726)","v":""}]
[null,{"$f":"IF('Generated list'!B3727=\"\",\"\",'Generated list'!B3727)","v":""},{"$f":"IF('Generated list'!C3727=\"\",\"\",'Generated list'!C3727)","v":""},{"$f":"IF('Generated list'!D3727=\"\",\"\",'Generated list'!D3727)","v":""}]
[null,{"$f":"IF('Generated list'!B3728=\"\",\"\",'Generated list'!B3728)","v":""},{"$f":"IF('Generated list'!C3728=\"\",\"\",'Generated list'!C3728)","v":""},{"$f":"IF('Generated list'!D3728=\"\",\"\",'Generated list'!D3728)","v":""}]
[null,{"$f":"IF('Generated list'!B3729=\"\",\"\",'Generated list'!B3729)","v":""},{"$f":"IF('Generated list'!C3729=\"\",\"\",'Generated list'!C3729)","v":""},{"$f":"IF('Generated list'!D3729=\"\",\"\",'Generated list'!D3729)","v":""}]
[null,{"$f":"IF('Generated list'!B3730=\"\",\"\",'Generated list'!B3730)","v":""},{"$f":"IF('Generated list'!C3730=\"\",\"\",'Generated list'!C3730)","v":""},{"$f":"IF('Generated list'!D3730=\"\",\"\",'Generated list'!D3730)","v":""}]
[null,{"$f":"IF('Generated list'!B3731=\"\",\"\",'Generated list'!B3731)","v":""},{"$f":"IF('Generated list'!C3731=\"\",\"\",'Generated list'!C3731)","v":""},{"$f":"IF('Generated list'!D3731=\"\",\"\",'Generated list'!D3731)","v":""}]
[null,{"$f":"IF('Generated list'!B3732=\"\",\"\",'Generated list'!B3732)","v":""},{"$f":"IF('Generated list'!C3732=\"\",\"\",'Generated list'!C3732)","v":""},{"$f":"IF('Generated list'!D3732=\"\",\"\",'Generated list'!D3732)","v":""}]
[null,{"$f":"IF('Generated list'!B3733=\"\",\"\",'Generated list'!B3733)","v":""},{"$f":"IF('Generated list'!C3733=\"\",\"\",'Generated list'!C3733)","v":""},{"$f":"IF('Generated list'!D3733=\"\",\"\",'Generated list'!D3733)","v":""}]
[null,{"$f":"IF('Generated list'!B3734=\"\",\"\",'Generated list'!B3734)","v":""},{"$f":"IF('Generated list'!C3734=\"\",\"\",'Generated list'!C3734)","v":""},{"$f":"IF('Generated list'!D3734=\"\",\"\",'Generated list'!D3734)","v":""}]
[null,{"$f":"IF('Generated list'!B3735=\"\",\"\",'Generated list'!B3735)","v":""},{"$f":"IF('Generated list'!C3735=\"\",\"\",'Generated list'!C3735)","v":""},{"$f":"IF('Generated list'!D3735=\"\",\"\",'Generated list'!D3735)","v":""}]
[null,{"$f":"IF('Generated list'!B3736=\"\",\"\",'Generated list'!B3736)","v":""},{"$f":"IF('Generated list'!C3736=\"\",\"\",'Generated list'!C3736)","v":""},{"$f":"IF('Generated list'!D3736=\"\",\"\",'Generated list'!D3736)","v":""}]
[null,{"$f":"IF('Generated list'!B3737=\"\",\"\",'Generated list'!B3737)","v":""},{"$f":"IF('Generated list'!C3737=\"\",\"\",'Generated list'!C3737)","v":""},{"$f":"IF('Generated list'!D3737=\"\",\"\",'Generated list'!D3737)","v":""}]
[null,{"$f":"IF('Generated list'!B3738=\"\",\"\",'Generated list'!B3738)","v":""},{"$f":"IF('Generated list'!C3738=\"\",\"\",'Generated list'!C3738)","v":""},{"$f":"IF('Generated list'!D3738=\"\",\"\",'Generated list'!D3738)","v":""}]
[null,{"$f":"IF('Generated list'!B3739=\"\",\"\",'Generated list'!B3739)","v":""},{"$f":"IF('Generated list'!C3739=\"\",\"\",'Generated list'!C3739)","v":""},{"$f":"IF('Generated list'!D3739=\"\",\"\",'Generated list'!D3739)","v":""}]
[null,{"$f":"IF('Generated list'!B3740=\"\",\"\",'Generated list'!B3740)","v":""},{"$f":"IF('Generated list'!C3740=\"\",\"\",'Generated list'!C3740)","v":""},{"$f":"IF('Generated list'!D3740=\"\",\"\",'Generated list'!D3740)","v":""}]
[null,{"$f":"IF('Generated list'!B3741=\"\",\"\",'Generated list'!B3741)","v":""},{"$f":"IF('Generated list'!C3741=\"\",\"\",'Generated list'!C3741)","v":""},{"$f":"IF('Generated list'!D3741=\"\",\"\",'Generated list'!D3741)","v":""}]
[null,{"$f":"IF('Generated list'!B3742=\"\",\"\",'Generated list'!B3742)","v":""},{"$f":"IF('Generated list'!C3742=\"\",\"\",'Generated list'!C3742)","v":""},{"$f":"IF('Generated list'!D3742=\"\",\"\",'Generated list'!D3742)","v":""}]
[null,{"$f":"IF('Generated list'!B3743=\"\",\"\",'Generated list'!B3743)","v":""},{"$f":"IF('Generated list'!C3743=\"\",\"\",'Generated list'!C3743)","v":""},{"$f":"IF('Generated list'!D3743=\"\",\"\",'Generated list'!D3743)","v":""}]
[null,{"$f":"IF('Generated list'!B3744=\"\",\"\",'Generated list'!B3744)","v":""},{"$f":"IF('Generated list'!C3744=\"\",\"\",'Generated list'!C3744)","v":""},{"$f":"IF('Generated list'!D3744=\"\",\"\",'Generated list'!D3744)","v":""}]
[null,{"$f":"IF('Generated list'!B3745=\"\",\"\",'Generated list'!B3745)","v":""},{"$f":"IF('Generated list'!C3745=\"\",\"\",'Generated list'!C3745)","v":""},{"$f":"IF('Generated list'!D3745=\"\",\"\",'Generated list'!D3745)","v":""}]
[null,{"$f":"IF('Generated list'!B3746=\"\",\"\",'Generated list'!B3746)","v":""},{"$f":"IF('Generated list'!C3746=\"\",\"\",'Generated list'!C3746)","v":""},{"$f":"IF('Generated list'!D3746=\"\",\"\",'Generated list'!D3746)","v":""}]
[null,{"$f":"IF('Generated list'!B3747=\"\",\"\",'Generated list'!B3747)","v":""},{"$f":"IF('Generated list'!C3747=\"\",\"\",'Generated list'!C3747)","v":""},{"$f":"IF('Generated list'!D3747=\"\",\"\",'Generated list'!D3747)","v":""}]
[null,{"$f":"IF('Generated list'!B3748=\"\",\"\",'Generated list'!B3748)","v":""},{"$f":"IF('Generated list'!C3748=\"\",\"\",'Generated list'!C3748)","v":""},{"$f":"IF('Generated list'!D3748=\"\",\"\",'Generated list'!D3748)","v":""}]
[null,{"$f":"IF('Generated list'!B3749=\"\",\"\",'Generated list'!B3749)","v":""},{"$f":"IF('Generated list'!C3749=\"\",\"\",'Generated list'!C3749)","v":""},{"$f":"IF('Generated list'!D3749=\"\",\"\",'Generated list'!D3749)","v":""}]
[null,{"$f":"IF('Generated list'!B3750=\"\",\"\",'Generated list'!B3750)","v":""},{"$f":"IF('Generated list'!C3750=\"\",\"\",'Generated list'!C3750)","v":""},{"$f":"IF('Generated list'!D3750=\"\",\"\",'Generated list'!D3750)","v":""}]
[null,{"$f":"IF('Generated list'!B3751=\"\",\"\",'Generated list'!B3751)","v":""},{"$f":"IF('Generated list'!C3751=\"\",\"\",'Generated list'!C3751)","v":""},{"$f":"IF('Generated list'!D3751=\"\",\"\",'Generated list'!D3751)","v":""}]
[null,{"$f":"IF('Generated list'!B3752=\"\",\"\",'Generated list'!B3752)","v":""},{"$f":"IF('Generated list'!C3752=\"\",\"\",'Generated list'!C3752)","v":""},{"$f":"IF('Generated list'!D3752=\"\",\"\",'Generated list'!D3752)","v":""}]
[null,{"$f":"IF('Generated list'!B3753=\"\",\"\",'Generated list'!B3753)","v":""},{"$f":"IF('Generated list'!C3753=\"\",\"\",'Generated list'!C3753)","v":""},{"$f":"IF('Generated list'!D3753=\"\",\"\",'Generated list'!D3753)","v":""}]
[null,{"$f":"IF('Generated list'!B3754=\"\",\"\",'Generated list'!B3754)","v":""},{"$f":"IF('Generated list'!C3754=\"\",\"\",'Generated list'!C3754)","v":""},{"$f":"IF('Generated list'!D3754=\"\",\"\",'Generated list'!D3754)","v":""}]
[null,{"$f":"IF('Generated list'!B3755=\"\",\"\",'Generated list'!B3755)","v":""},{"$f":"IF('Generated list'!C3755=\"\",\"\",'Generated list'!C3755)","v":""},{"$f":"IF('Generated list'!D3755=\"\",\"\",'Generated list'!D3755)","v":""}]
[null,{"$f":"IF('Generated list'!B3756=\"\",\"\",'Generated list'!B3756)","v":""},{"$f":"IF('Generated list'!C3756=\"\",\"\",'Generated list'!C3756)","v":""},{"$f":"IF('Generated list'!D3756=\"\",\"\",'Generated list'!D3756)","v":""}]
[null,{"$f":"IF('Generated list'!B3757=\"\",\"\",'Generated list'!B3757)","v":""},{"$f":"IF('Generated list'!C3757=\"\",\"\",'Generated list'!C3757)","v":""},{"$f":"IF('Generated list'!D3757=\"\",\"\",'Generated list'!D3757)","v":""}]
[null,{"$f":"IF('Generated list'!B3758=\"\",\"\",'Generated list'!B3758)","v":""},{"$f":"IF('Generated list'!C3758=\"\",\"\",'Generated list'!C3758)","v":""},{"$f":"IF('Generated list'!D3758=\"\",\"\",'Generated list'!D3758)","v":""}]
[null,{"$f":"IF('Generated list'!B3759=\"\",\"\",'Generated list'!B3759)","v":""},{"$f":"IF('Generated list'!C3759=\"\",\"\",'Generated list'!C3759)","v":""},{"$f":"IF('Generated list'!D3759=\"\",\"\",'Generated list'!D3759)","v":""}]
[null,{"$f":"IF('Generated list'!B3760=\"\",\"\",'Generated list'!B3760)","v":""},{"$f":"IF('Generated list'!C3760=\"\",\"\",'Generated list'!C3760)","v":""},{"$f":"IF('Generated list'!D3760=\"\",\"\",'Generated list'!D3760)","v":""}]
[null,{"$f":"IF('Generated list'!B3761=\"\",\"\",'Generated list'!B3761)","v":""},{"$f":"IF('Generated list'!C3761=\"\",\"\",'Generated list'!C3761)","v":""},{"$f":"IF('Generated list'!D3761=\"\",\"\",'Generated list'!D3761)","v":""}]
[null,{"$f":"IF('Generated list'!B3762=\"\",\"\",'Generated list'!B3762)","v":""},{"$f":"IF('Generated list'!C3762=\"\",\"\",'Generated list'!C3762)","v":""},{"$f":"IF('Generated list'!D3762=\"\",\"\",'Generated list'!D3762)","v":""}]
[null,{"$f":"IF('Generated list'!B3763=\"\",\"\",'Generated list'!B3763)","v":""},{"$f":"IF('Generated list'!C3763=\"\",\"\",'Generated list'!C3763)","v":""},{"$f":"IF('Generated list'!D3763=\"\",\"\",'Generated list'!D3763)","v":""}]
[null,{"$f":"IF('Generated list'!B3764=\"\",\"\",'Generated list'!B3764)","v":""},{"$f":"IF('Generated list'!C3764=\"\",\"\",'Generated list'!C3764)","v":""},{"$f":"IF('Generated list'!D3764=\"\",\"\",'Generated list'!D3764)","v":""}]
[null,{"$f":"IF('Generated list'!B3765=\"\",\"\",'Generated list'!B3765)","v":""},{"$f":"IF('Generated list'!C3765=\"\",\"\",'Generated list'!C3765)","v":""},{"$f":"IF('Generated list'!D3765=\"\",\"\",'Generated list'!D3765)","v":""}]
[null,{"$f":"IF('Generated list'!B3766=\"\",\"\",'Generated list'!B3766)","v":""},{"$f":"IF('Generated list'!C3766=\"\",\"\",'Generated list'!C3766)","v":""},{"$f":"IF('Generated list'!D3766=\"\",\"\",'Generated list'!D3766)","v":""}]
[null,{"$f":"IF('Generated list'!B3767=\"\",\"\",'Generated list'!B3767)","v":""},{"$f":"IF('Generated list'!C3767=\"\",\"\",'Generated list'!C3767)","v":""},{"$f":"IF('Generated list'!D3767=\"\",\"\",'Generated list'!D3767)","v":""}]
[null,{"$f":"IF('Generated list'!B3768=\"\",\"\",'Generated list'!B3768)","v":""},{"$f":"IF('Generated list'!C3768=\"\",\"\",'Generated list'!C3768)","v":""},{"$f":"IF('Generated list'!D3768=\"\",\"\",'Generated list'!D3768)","v":""}]
[null,{"$f":"IF('Generated list'!B3769=\"\",\"\",'Generated list'!B3769)","v":""},{"$f":"IF('Generated list'!C3769=\"\",\"\",'Generated list'!C3769)","v":""},{"$f":"IF('Generated list'!D3769=\"\",\"\",'Generated list'!D3769)","v":""}]
[null,{"$f":"IF('Generated list'!B3770=\"\",\"\",'Generated list'!B3770)","v":""},{"$f":"IF('Generated list'!C3770=\"\",\"\",'Generated list'!C3770)","v":""},{"$f":"IF('Generated list'!D3770=\"\",\"\",'Generated list'!D3770)","v":""}]
[null,{"$f":"IF('Generated list'!B3771=\"\",\"\",'Generated list'!B3771)","v":""},{"$f":"IF('Generated list'!C3771=\"\",\"\",'Generated list'!C3771)","v":""},{"$f":"IF('Generated list'!D3771=\"\",\"\",'Generated list'!D3771)","v":""}]
[null,{"$f":"IF('Generated list'!B3772=\"\",\"\",'Generated list'!B3772)","v":""},{"$f":"IF('Generated list'!C3772=\"\",\"\",'Generated list'!C3772)","v":""},{"$f":"IF('Generated list'!D3772=\"\",\"\",'Generated list'!D3772)","v":""}]
[null,{"$f":"IF('Generated list'!B3773=\"\",\"\",'Generated list'!B3773)","v":""},{"$f":"IF('Generated list'!C3773=\"\",\"\",'Generated list'!C3773)","v":""},{"$f":"IF('Generated list'!D3773=\"\",\"\",'Generated list'!D3773)","v":""}]
[null,{"$f":"IF('Generated list'!B3774=\"\",\"\",'Generated list'!B3774)","v":""},{"$f":"IF('Generated list'!C3774=\"\",\"\",'Generated list'!C3774)","v":""},{"$f":"IF('Generated list'!D3774=\"\",\"\",'Generated list'!D3774)","v":""}]
[null,{"$f":"IF('Generated list'!B3775=\"\",\"\",'Generated list'!B3775)","v":""},{"$f":"IF('Generated list'!C3775=\"\",\"\",'Generated list'!C3775)","v":""},{"$f":"IF('Generated list'!D3775=\"\",\"\",'Generated list'!D3775)","v":""}]
[null,{"$f":"IF('Generated list'!B3776=\"\",\"\",'Generated list'!B3776)","v":""},{"$f":"IF('Generated list'!C3776=\"\",\"\",'Generated list'!C3776)","v":""},{"$f":"IF('Generated list'!D3776=\"\",\"\",'Generated list'!D3776)","v":""}]
[null,{"$f":"IF('Generated list'!B3777=\"\",\"\",'Generated list'!B3777)","v":""},{"$f":"IF('Generated list'!C3777=\"\",\"\",'Generated list'!C3777)","v":""},{"$f":"IF('Generated list'!D3777=\"\",\"\",'Generated list'!D3777)","v":""}]
[null,{"$f":"IF('Generated list'!B3778=\"\",\"\",'Generated list'!B3778)","v":""},{"$f":"IF('Generated list'!C3778=\"\",\"\",'Generated list'!C3778)","v":""},{"$f":"IF('Generated list'!D3778=\"\",\"\",'Generated list'!D3778)","v":""}]
[null,{"$f":"IF('Generated list'!B3779=\"\",\"\",'Generated list'!B3779)","v":""},{"$f":"IF('Generated list'!C3779=\"\",\"\",'Generated list'!C3779)","v":""},{"$f":"IF('Generated list'!D3779=\"\",\"\",'Generated list'!D3779)","v":""}]
[null,{"$f":"IF('Generated list'!B3780=\"\",\"\",'Generated list'!B3780)","v":""},{"$f":"IF('Generated list'!C3780=\"\",\"\",'Generated list'!C3780)","v":""},{"$f":"IF('Generated list'!D3780=\"\",\"\",'Generated list'!D3780)","v":""}]
[null,{"$f":"IF('Generated list'!B3781=\"\",\"\",'Generated list'!B3781)","v":""},{"$f":"IF('Generated list'!C3781=\"\",\"\",'Generated list'!C3781)","v":""},{"$f":"IF('Generated list'!D3781=\"\",\"\",'Generated list'!D3781)","v":""}]
[null,{"$f":"IF('Generated list'!B3782=\"\",\"\",'Generated list'!B3782)","v":""},{"$f":"IF('Generated list'!C3782=\"\",\"\",'Generated list'!C3782)","v":""},{"$f":"IF('Generated list'!D3782=\"\",\"\",'Generated list'!D3782)","v":""}]
[null,{"$f":"IF('Generated list'!B3783=\"\",\"\",'Generated list'!B3783)","v":""},{"$f":"IF('Generated list'!C3783=\"\",\"\",'Generated list'!C3783)","v":""},{"$f":"IF('Generated list'!D3783=\"\",\"\",'Generated list'!D3783)","v":""}]
[null,{"$f":"IF('Generated list'!B3784=\"\",\"\",'Generated list'!B3784)","v":""},{"$f":"IF('Generated list'!C3784=\"\",\"\",'Generated list'!C3784)","v":""},{"$f":"IF('Generated list'!D3784=\"\",\"\",'Generated list'!D3784)","v":""}]
[null,{"$f":"IF('Generated list'!B3785=\"\",\"\",'Generated list'!B3785)","v":""},{"$f":"IF('Generated list'!C3785=\"\",\"\",'Generated list'!C3785)","v":""},{"$f":"IF('Generated list'!D3785=\"\",\"\",'Generated list'!D3785)","v":""}]
[null,{"$f":"IF('Generated list'!B3786=\"\",\"\",'Generated list'!B3786)","v":""},{"$f":"IF('Generated list'!C3786=\"\",\"\",'Generated list'!C3786)","v":""},{"$f":"IF('Generated list'!D3786=\"\",\"\",'Generated list'!D3786)","v":""}]
[null,{"$f":"IF('Generated list'!B3787=\"\",\"\",'Generated list'!B3787)","v":""},{"$f":"IF('Generated list'!C3787=\"\",\"\",'Generated list'!C3787)","v":""},{"$f":"IF('Generated list'!D3787=\"\",\"\",'Generated list'!D3787)","v":""}]
[null,{"$f":"IF('Generated list'!B3788=\"\",\"\",'Generated list'!B3788)","v":""},{"$f":"IF('Generated list'!C3788=\"\",\"\",'Generated list'!C3788)","v":""},{"$f":"IF('Generated list'!D3788=\"\",\"\",'Generated list'!D3788)","v":""}]
[null,{"$f":"IF('Generated list'!B3789=\"\",\"\",'Generated list'!B3789)","v":""},{"$f":"IF('Generated list'!C3789=\"\",\"\",'Generated list'!C3789)","v":""},{"$f":"IF('Generated list'!D3789=\"\",\"\",'Generated list'!D3789)","v":""}]
[null,{"$f":"IF('Generated list'!B3790=\"\",\"\",'Generated list'!B3790)","v":""},{"$f":"IF('Generated list'!C3790=\"\",\"\",'Generated list'!C3790)","v":""},{"$f":"IF('Generated list'!D3790=\"\",\"\",'Generated list'!D3790)","v":""}]
[null,{"$f":"IF('Generated list'!B3791=\"\",\"\",'Generated list'!B3791)","v":""},{"$f":"IF('Generated list'!C3791=\"\",\"\",'Generated list'!C3791)","v":""},{"$f":"IF('Generated list'!D3791=\"\",\"\",'Generated list'!D3791)","v":""}]
[null,{"$f":"IF('Generated list'!B3792=\"\",\"\",'Generated list'!B3792)","v":""},{"$f":"IF('Generated list'!C3792=\"\",\"\",'Generated list'!C3792)","v":""},{"$f":"IF('Generated list'!D3792=\"\",\"\",'Generated list'!D3792)","v":""}]
[null,{"$f":"IF('Generated list'!B3793=\"\",\"\",'Generated list'!B3793)","v":""},{"$f":"IF('Generated list'!C3793=\"\",\"\",'Generated list'!C3793)","v":""},{"$f":"IF('Generated list'!D3793=\"\",\"\",'Generated list'!D3793)","v":""}]
[null,{"$f":"IF('Generated list'!B3794=\"\",\"\",'Generated list'!B3794)","v":""},{"$f":"IF('Generated list'!C3794=\"\",\"\",'Generated list'!C3794)","v":""},{"$f":"IF('Generated list'!D3794=\"\",\"\",'Generated list'!D3794)","v":""}]
[null,{"$f":"IF('Generated list'!B3795=\"\",\"\",'Generated list'!B3795)","v":""},{"$f":"IF('Generated list'!C3795=\"\",\"\",'Generated list'!C3795)","v":""},{"$f":"IF('Generated list'!D3795=\"\",\"\",'Generated list'!D3795)","v":""}]
[null,{"$f":"IF('Generated list'!B3796=\"\",\"\",'Generated list'!B3796)","v":""},{"$f":"IF('Generated list'!C3796=\"\",\"\",'Generated list'!C3796)","v":""},{"$f":"IF('Generated list'!D3796=\"\",\"\",'Generated list'!D3796)","v":""}]
[null,{"$f":"IF('Generated list'!B3797=\"\",\"\",'Generated list'!B3797)","v":""},{"$f":"IF('Generated list'!C3797=\"\",\"\",'Generated list'!C3797)","v":""},{"$f":"IF('Generated list'!D3797=\"\",\"\",'Generated list'!D3797)","v":""}]
[null,{"$f":"IF('Generated list'!B3798=\"\",\"\",'Generated list'!B3798)","v":""},{"$f":"IF('Generated list'!C3798=\"\",\"\",'Generated list'!C3798)","v":""},{"$f":"IF('Generated list'!D3798=\"\",\"\",'Generated list'!D3798)","v":""}]
[null,{"$f":"IF('Generated list'!B3799=\"\",\"\",'Generated list'!B3799)","v":""},{"$f":"IF('Generated list'!C3799=\"\",\"\",'Generated list'!C3799)","v":""},{"$f":"IF('Generated list'!D3799=\"\",\"\",'Generated list'!D3799)","v":""}]
[null,{"$f":"IF('Generated list'!B3800=\"\",\"\",'Generated list'!B3800)","v":""},{"$f":"IF('Generated list'!C3800=\"\",\"\",'Generated list'!C3800)","v":""},{"$f":"IF('Generated list'!D3800=\"\",\"\",'Generated list'!D3800)","v":""}]
[null,{"$f":"IF('Generated list'!B3801=\"\",\"\",'Generated list'!B3801)","v":""},{"$f":"IF('Generated list'!C3801=\"\",\"\",'Generated list'!C3801)","v":""},{"$f":"IF('Generated list'!D3801=\"\",\"\",'Generated list'!D3801)","v":""}]
[null,{"$f":"IF('Generated list'!B3802=\"\",\"\",'Generated list'!B3802)","v":""},{"$f":"IF('Generated list'!C3802=\"\",\"\",'Generated list'!C3802)","v":""},{"$f":"IF('Generated list'!D3802=\"\",\"\",'Generated list'!D3802)","v":""}]
[null,{"$f":"IF('Generated list'!B3803=\"\",\"\",'Generated list'!B3803)","v":""},{"$f":"IF('Generated list'!C3803=\"\",\"\",'Generated list'!C3803)","v":""},{"$f":"IF('Generated list'!D3803=\"\",\"\",'Generated list'!D3803)","v":""}]
[null,{"$f":"IF('Generated list'!B3804=\"\",\"\",'Generated list'!B3804)","v":""},{"$f":"IF('Generated list'!C3804=\"\",\"\",'Generated list'!C3804)","v":""},{"$f":"IF('Generated list'!D3804=\"\",\"\",'Generated list'!D3804)","v":""}]
[null,{"$f":"IF('Generated list'!B3805=\"\",\"\",'Generated list'!B3805)","v":""},{"$f":"IF('Generated list'!C3805=\"\",\"\",'Generated list'!C3805)","v":""},{"$f":"IF('Generated list'!D3805=\"\",\"\",'Generated list'!D3805)","v":""}]
[null,{"$f":"IF('Generated list'!B3806=\"\",\"\",'Generated list'!B3806)","v":""},{"$f":"IF('Generated list'!C3806=\"\",\"\",'Generated list'!C3806)","v":""},{"$f":"IF('Generated list'!D3806=\"\",\"\",'Generated list'!D3806)","v":""}]
[null,{"$f":"IF('Generated list'!B3807=\"\",\"\",'Generated list'!B3807)","v":""},{"$f":"IF('Generated list'!C3807=\"\",\"\",'Generated list'!C3807)","v":""},{"$f":"IF('Generated list'!D3807=\"\",\"\",'Generated list'!D3807)","v":""}]
[null,{"$f":"IF('Generated list'!B3808=\"\",\"\",'Generated list'!B3808)","v":""},{"$f":"IF('Generated list'!C3808=\"\",\"\",'Generated list'!C3808)","v":""},{"$f":"IF('Generated list'!D3808=\"\",\"\",'Generated list'!D3808)","v":""}]
[null,{"$f":"IF('Generated list'!B3809=\"\",\"\",'Generated list'!B3809)","v":""},{"$f":"IF('Generated list'!C3809=\"\",\"\",'Generated list'!C3809)","v":""},{"$f":"IF('Generated list'!D3809=\"\",\"\",'Generated list'!D3809)","v":""}]
[null,{"$f":"IF('Generated list'!B3810=\"\",\"\",'Generated list'!B3810)","v":""},{"$f":"IF('Generated list'!C3810=\"\",\"\",'Generated list'!C3810)","v":""},{"$f":"IF('Generated list'!D3810=\"\",\"\",'Generated list'!D3810)","v":""}]
[null,{"$f":"IF('Generated list'!B3811=\"\",\"\",'Generated list'!B3811)","v":""},{"$f":"IF('Generated list'!C3811=\"\",\"\",'Generated list'!C3811)","v":""},{"$f":"IF('Generated list'!D3811=\"\",\"\",'Generated list'!D3811)","v":""}]
[null,{"$f":"IF('Generated list'!B3812=\"\",\"\",'Generated list'!B3812)","v":""},{"$f":"IF('Generated list'!C3812=\"\",\"\",'Generated list'!C3812)","v":""},{"$f":"IF('Generated list'!D3812=\"\",\"\",'Generated list'!D3812)","v":""}]
[null,{"$f":"IF('Generated list'!B3813=\"\",\"\",'Generated list'!B3813)","v":""},{"$f":"IF('Generated list'!C3813=\"\",\"\",'Generated list'!C3813)","v":""},{"$f":"IF('Generated list'!D3813=\"\",\"\",'Generated list'!D3813)","v":""}]
[null,{"$f":"IF('Generated list'!B3814=\"\",\"\",'Generated list'!B3814)","v":""},{"$f":"IF('Generated list'!C3814=\"\",\"\",'Generated list'!C3814)","v":""},{"$f":"IF('Generated list'!D3814=\"\",\"\",'Generated list'!D3814)","v":""}]
[null,{"$f":"IF('Generated list'!B3815=\"\",\"\",'Generated list'!B3815)","v":""},{"$f":"IF('Generated list'!C3815=\"\",\"\",'Generated list'!C3815)","v":""},{"$f":"IF('Generated list'!D3815=\"\",\"\",'Generated list'!D3815)","v":""}]
[null,{"$f":"IF('Generated list'!B3816=\"\",\"\",'Generated list'!B3816)","v":""},{"$f":"IF('Generated list'!C3816=\"\",\"\",'Generated list'!C3816)","v":""},{"$f":"IF('Generated list'!D3816=\"\",\"\",'Generated list'!D3816)","v":""}]
[null,{"$f":"IF('Generated list'!B3817=\"\",\"\",'Generated list'!B3817)","v":""},{"$f":"IF('Generated list'!C3817=\"\",\"\",'Generated list'!C3817)","v":""},{"$f":"IF('Generated list'!D3817=\"\",\"\",'Generated list'!D3817)","v":""}]
[null,{"$f":"IF('Generated list'!B3818=\"\",\"\",'Generated list'!B3818)","v":""},{"$f":"IF('Generated list'!C3818=\"\",\"\",'Generated list'!C3818)","v":""},{"$f":"IF('Generated list'!D3818=\"\",\"\",'Generated list'!D3818)","v":""}]
[null,{"$f":"IF('Generated list'!B3819=\"\",\"\",'Generated list'!B3819)","v":""},{"$f":"IF('Generated list'!C3819=\"\",\"\",'Generated list'!C3819)","v":""},{"$f":"IF('Generated list'!D3819=\"\",\"\",'Generated list'!D3819)","v":""}]
[null,{"$f":"IF('Generated list'!B3820=\"\",\"\",'Generated list'!B3820)","v":""},{"$f":"IF('Generated list'!C3820=\"\",\"\",'Generated list'!C3820)","v":""},{"$f":"IF('Generated list'!D3820=\"\",\"\",'Generated list'!D3820)","v":""}]
[null,{"$f":"IF('Generated list'!B3821=\"\",\"\",'Generated list'!B3821)","v":""},{"$f":"IF('Generated list'!C3821=\"\",\"\",'Generated list'!C3821)","v":""},{"$f":"IF('Generated list'!D3821=\"\",\"\",'Generated list'!D3821)","v":""}]
[null,{"$f":"IF('Generated list'!B3822=\"\",\"\",'Generated list'!B3822)","v":""},{"$f":"IF('Generated list'!C3822=\"\",\"\",'Generated list'!C3822)","v":""},{"$f":"IF('Generated list'!D3822=\"\",\"\",'Generated list'!D3822)","v":""}]
[null,{"$f":"IF('Generated list'!B3823=\"\",\"\",'Generated list'!B3823)","v":""},{"$f":"IF('Generated list'!C3823=\"\",\"\",'Generated list'!C3823)","v":""},{"$f":"IF('Generated list'!D3823=\"\",\"\",'Generated list'!D3823)","v":""}]
[null,{"$f":"IF('Generated list'!B3824=\"\",\"\",'Generated list'!B3824)","v":""},{"$f":"IF('Generated list'!C3824=\"\",\"\",'Generated list'!C3824)","v":""},{"$f":"IF('Generated list'!D3824=\"\",\"\",'Generated list'!D3824)","v":""}]
[null,{"$f":"IF('Generated list'!B3825=\"\",\"\",'Generated list'!B3825)","v":""},{"$f":"IF('Generated list'!C3825=\"\",\"\",'Generated list'!C3825)","v":""},{"$f":"IF('Generated list'!D3825=\"\",\"\",'Generated list'!D3825)","v":""}]
[null,{"$f":"IF('Generated list'!B3826=\"\",\"\",'Generated list'!B3826)","v":""},{"$f":"IF('Generated list'!C3826=\"\",\"\",'Generated list'!C3826)","v":""},{"$f":"IF('Generated list'!D3826=\"\",\"\",'Generated list'!D3826)","v":""}]
[null,{"$f":"IF('Generated list'!B3827=\"\",\"\",'Generated list'!B3827)","v":""},{"$f":"IF('Generated list'!C3827=\"\",\"\",'Generated list'!C3827)","v":""},{"$f":"IF('Generated list'!D3827=\"\",\"\",'Generated list'!D3827)","v":""}]
[null,{"$f":"IF('Generated list'!B3828=\"\",\"\",'Generated list'!B3828)","v":""},{"$f":"IF('Generated list'!C3828=\"\",\"\",'Generated list'!C3828)","v":""},{"$f":"IF('Generated list'!D3828=\"\",\"\",'Generated list'!D3828)","v":""}]
[null,{"$f":"IF('Generated list'!B3829=\"\",\"\",'Generated list'!B3829)","v":""},{"$f":"IF('Generated list'!C3829=\"\",\"\",'Generated list'!C3829)","v":""},{"$f":"IF('Generated list'!D3829=\"\",\"\",'Generated list'!D3829)","v":""}]
[null,{"$f":"IF('Generated list'!B3830=\"\",\"\",'Generated list'!B3830)","v":""},{"$f":"IF('Generated list'!C3830=\"\",\"\",'Generated list'!C3830)","v":""},{"$f":"IF('Generated list'!D3830=\"\",\"\",'Generated list'!D3830)","v":""}]
[null,{"$f":"IF('Generated list'!B3831=\"\",\"\",'Generated list'!B3831)","v":""},{"$f":"IF('Generated list'!C3831=\"\",\"\",'Generated list'!C3831)","v":""},{"$f":"IF('Generated list'!D3831=\"\",\"\",'Generated list'!D3831)","v":""}]
[null,{"$f":"IF('Generated list'!B3832=\"\",\"\",'Generated list'!B3832)","v":""},{"$f":"IF('Generated list'!C3832=\"\",\"\",'Generated list'!C3832)","v":""},{"$f":"IF('Generated list'!D3832=\"\",\"\",'Generated list'!D3832)","v":""}]
[null,{"$f":"IF('Generated list'!B3833=\"\",\"\",'Generated list'!B3833)","v":""},{"$f":"IF('Generated list'!C3833=\"\",\"\",'Generated list'!C3833)","v":""},{"$f":"IF('Generated list'!D3833=\"\",\"\",'Generated list'!D3833)","v":""}]
[null,{"$f":"IF('Generated list'!B3834=\"\",\"\",'Generated list'!B3834)","v":""},{"$f":"IF('Generated list'!C3834=\"\",\"\",'Generated list'!C3834)","v":""},{"$f":"IF('Generated list'!D3834=\"\",\"\",'Generated list'!D3834)","v":""}]
[null,{"$f":"IF('Generated list'!B3835=\"\",\"\",'Generated list'!B3835)","v":""},{"$f":"IF('Generated list'!C3835=\"\",\"\",'Generated list'!C3835)","v":""},{"$f":"IF('Generated list'!D3835=\"\",\"\",'Generated list'!D3835)","v":""}]
[null,{"$f":"IF('Generated list'!B3836=\"\",\"\",'Generated list'!B3836)","v":""},{"$f":"IF('Generated list'!C3836=\"\",\"\",'Generated list'!C3836)","v":""},{"$f":"IF('Generated list'!D3836=\"\",\"\",'Generated list'!D3836)","v":""}]
[null,{"$f":"IF('Generated list'!B3837=\"\",\"\",'Generated list'!B3837)","v":""},{"$f":"IF('Generated list'!C3837=\"\",\"\",'Generated list'!C3837)","v":""},{"$f":"IF('Generated list'!D3837=\"\",\"\",'Generated list'!D3837)","v":""}]
[null,{"$f":"IF('Generated list'!B3838=\"\",\"\",'Generated list'!B3838)","v":""},{"$f":"IF('Generated list'!C3838=\"\",\"\",'Generated list'!C3838)","v":""},{"$f":"IF('Generated list'!D3838=\"\",\"\",'Generated list'!D3838)","v":""}]
[null,{"$f":"IF('Generated list'!B3839=\"\",\"\",'Generated list'!B3839)","v":""},{"$f":"IF('Generated list'!C3839=\"\",\"\",'Generated list'!C3839)","v":""},{"$f":"IF('Generated list'!D3839=\"\",\"\",'Generated list'!D3839)","v":""}]
[null,{"$f":"IF('Generated list'!B3840=\"\",\"\",'Generated list'!B3840)","v":""},{"$f":"IF('Generated list'!C3840=\"\",\"\",'Generated list'!C3840)","v":""},{"$f":"IF('Generated list'!D3840=\"\",\"\",'Generated list'!D3840)","v":""}]
[null,{"$f":"IF('Generated list'!B3841=\"\",\"\",'Generated list'!B3841)","v":""},{"$f":"IF('Generated list'!C3841=\"\",\"\",'Generated list'!C3841)","v":""},{"$f":"IF('Generated list'!D3841=\"\",\"\",'Generated list'!D3841)","v":""}]
[null,{"$f":"IF('Generated list'!B3842=\"\",\"\",'Generated list'!B3842)","v":""},{"$f":"IF('Generated list'!C3842=\"\",\"\",'Generated list'!C3842)","v":""},{"$f":"IF('Generated list'!D3842=\"\",\"\",'Generated list'!D3842)","v":""}]
[null,{"$f":"IF('Generated list'!B3843=\"\",\"\",'Generated list'!B3843)","v":""},{"$f":"IF('Generated list'!C3843=\"\",\"\",'Generated list'!C3843)","v":""},{"$f":"IF('Generated list'!D3843=\"\",\"\",'Generated list'!D3843)","v":""}]
[null,{"$f":"IF('Generated list'!B3844=\"\",\"\",'Generated list'!B3844)","v":""},{"$f":"IF('Generated list'!C3844=\"\",\"\",'Generated list'!C3844)","v":""},{"$f":"IF('Generated list'!D3844=\"\",\"\",'Generated list'!D3844)","v":""}]
[null,{"$f":"IF('Generated list'!B3845=\"\",\"\",'Generated list'!B3845)","v":""},{"$f":"IF('Generated list'!C3845=\"\",\"\",'Generated list'!C3845)","v":""},{"$f":"IF('Generated list'!D3845=\"\",\"\",'Generated list'!D3845)","v":""}]
[null,{"$f":"IF('Generated list'!B3846=\"\",\"\",'Generated list'!B3846)","v":""},{"$f":"IF('Generated list'!C3846=\"\",\"\",'Generated list'!C3846)","v":""},{"$f":"IF('Generated list'!D3846=\"\",\"\",'Generated list'!D3846)","v":""}]
[null,{"$f":"IF('Generated list'!B3847=\"\",\"\",'Generated list'!B3847)","v":""},{"$f":"IF('Generated list'!C3847=\"\",\"\",'Generated list'!C3847)","v":""},{"$f":"IF('Generated list'!D3847=\"\",\"\",'Generated list'!D3847)","v":""}]
[null,{"$f":"IF('Generated list'!B3848=\"\",\"\",'Generated list'!B3848)","v":""},{"$f":"IF('Generated list'!C3848=\"\",\"\",'Generated list'!C3848)","v":""},{"$f":"IF('Generated list'!D3848=\"\",\"\",'Generated list'!D3848)","v":""}]
[null,{"$f":"IF('Generated list'!B3849=\"\",\"\",'Generated list'!B3849)","v":""},{"$f":"IF('Generated list'!C3849=\"\",\"\",'Generated list'!C3849)","v":""},{"$f":"IF('Generated list'!D3849=\"\",\"\",'Generated list'!D3849)","v":""}]
[null,{"$f":"IF('Generated list'!B3850=\"\",\"\",'Generated list'!B3850)","v":""},{"$f":"IF('Generated list'!C3850=\"\",\"\",'Generated list'!C3850)","v":""},{"$f":"IF('Generated list'!D3850=\"\",\"\",'Generated list'!D3850)","v":""}]
[null,{"$f":"IF('Generated list'!B3851=\"\",\"\",'Generated list'!B3851)","v":""},{"$f":"IF('Generated list'!C3851=\"\",\"\",'Generated list'!C3851)","v":""},{"$f":"IF('Generated list'!D3851=\"\",\"\",'Generated list'!D3851)","v":""}]
[null,{"$f":"IF('Generated list'!B3852=\"\",\"\",'Generated list'!B3852)","v":""},{"$f":"IF('Generated list'!C3852=\"\",\"\",'Generated list'!C3852)","v":""},{"$f":"IF('Generated list'!D3852=\"\",\"\",'Generated list'!D3852)","v":""}]
[null,{"$f":"IF('Generated list'!B3853=\"\",\"\",'Generated list'!B3853)","v":""},{"$f":"IF('Generated list'!C3853=\"\",\"\",'Generated list'!C3853)","v":""},{"$f":"IF('Generated list'!D3853=\"\",\"\",'Generated list'!D3853)","v":""}]
[null,{"$f":"IF('Generated list'!B3854=\"\",\"\",'Generated list'!B3854)","v":""},{"$f":"IF('Generated list'!C3854=\"\",\"\",'Generated list'!C3854)","v":""},{"$f":"IF('Generated list'!D3854=\"\",\"\",'Generated list'!D3854)","v":""}]
[null,{"$f":"IF('Generated list'!B3855=\"\",\"\",'Generated list'!B3855)","v":""},{"$f":"IF('Generated list'!C3855=\"\",\"\",'Generated list'!C3855)","v":""},{"$f":"IF('Generated list'!D3855=\"\",\"\",'Generated list'!D3855)","v":""}]
[null,{"$f":"IF('Generated list'!B3856=\"\",\"\",'Generated list'!B3856)","v":""},{"$f":"IF('Generated list'!C3856=\"\",\"\",'Generated list'!C3856)","v":""},{"$f":"IF('Generated list'!D3856=\"\",\"\",'Generated list'!D3856)","v":""}]
[null,{"$f":"IF('Generated list'!B3857=\"\",\"\",'Generated list'!B3857)","v":""},{"$f":"IF('Generated list'!C3857=\"\",\"\",'Generated list'!C3857)","v":""},{"$f":"IF('Generated list'!D3857=\"\",\"\",'Generated list'!D3857)","v":""}]
[null,{"$f":"IF('Generated list'!B3858=\"\",\"\",'Generated list'!B3858)","v":""},{"$f":"IF('Generated list'!C3858=\"\",\"\",'Generated list'!C3858)","v":""},{"$f":"IF('Generated list'!D3858=\"\",\"\",'Generated list'!D3858)","v":""}]
[null,{"$f":"IF('Generated list'!B3859=\"\",\"\",'Generated list'!B3859)","v":""},{"$f":"IF('Generated list'!C3859=\"\",\"\",'Generated list'!C3859)","v":""},{"$f":"IF('Generated list'!D3859=\"\",\"\",'Generated list'!D3859)","v":""}]
[null,{"$f":"IF('Generated list'!B3860=\"\",\"\",'Generated list'!B3860)","v":""},{"$f":"IF('Generated list'!C3860=\"\",\"\",'Generated list'!C3860)","v":""},{"$f":"IF('Generated list'!D3860=\"\",\"\",'Generated list'!D3860)","v":""}]
[null,{"$f":"IF('Generated list'!B3861=\"\",\"\",'Generated list'!B3861)","v":""},{"$f":"IF('Generated list'!C3861=\"\",\"\",'Generated list'!C3861)","v":""},{"$f":"IF('Generated list'!D3861=\"\",\"\",'Generated list'!D3861)","v":""}]
[null,{"$f":"IF('Generated list'!B3862=\"\",\"\",'Generated list'!B3862)","v":""},{"$f":"IF('Generated list'!C3862=\"\",\"\",'Generated list'!C3862)","v":""},{"$f":"IF('Generated list'!D3862=\"\",\"\",'Generated list'!D3862)","v":""}]
[null,{"$f":"IF('Generated list'!B3863=\"\",\"\",'Generated list'!B3863)","v":""},{"$f":"IF('Generated list'!C3863=\"\",\"\",'Generated list'!C3863)","v":""},{"$f":"IF('Generated list'!D3863=\"\",\"\",'Generated list'!D3863)","v":""}]
[null,{"$f":"IF('Generated list'!B3864=\"\",\"\",'Generated list'!B3864)","v":""},{"$f":"IF('Generated list'!C3864=\"\",\"\",'Generated list'!C3864)","v":""},{"$f":"IF('Generated list'!D3864=\"\",\"\",'Generated list'!D3864)","v":""}]
[null,{"$f":"IF('Generated list'!B3865=\"\",\"\",'Generated list'!B3865)","v":""},{"$f":"IF('Generated list'!C3865=\"\",\"\",'Generated list'!C3865)","v":""},{"$f":"IF('Generated list'!D3865=\"\",\"\",'Generated list'!D3865)","v":""}]
[null,{"$f":"IF('Generated list'!B3866=\"\",\"\",'Generated list'!B3866)","v":""},{"$f":"IF('Generated list'!C3866=\"\",\"\",'Generated list'!C3866)","v":""},{"$f":"IF('Generated list'!D3866=\"\",\"\",'Generated list'!D3866)","v":""}]
[null,{"$f":"IF('Generated list'!B3867=\"\",\"\",'Generated list'!B3867)","v":""},{"$f":"IF('Generated list'!C3867=\"\",\"\",'Generated list'!C3867)","v":""},{"$f":"IF('Generated list'!D3867=\"\",\"\",'Generated list'!D3867)","v":""}]
[null,{"$f":"IF('Generated list'!B3868=\"\",\"\",'Generated list'!B3868)","v":""},{"$f":"IF('Generated list'!C3868=\"\",\"\",'Generated list'!C3868)","v":""},{"$f":"IF('Generated list'!D3868=\"\",\"\",'Generated list'!D3868)","v":""}]
[null,{"$f":"IF('Generated list'!B3869=\"\",\"\",'Generated list'!B3869)","v":""},{"$f":"IF('Generated list'!C3869=\"\",\"\",'Generated list'!C3869)","v":""},{"$f":"IF('Generated list'!D3869=\"\",\"\",'Generated list'!D3869)","v":""}]
[null,{"$f":"IF('Generated list'!B3870=\"\",\"\",'Generated list'!B3870)","v":""},{"$f":"IF('Generated list'!C3870=\"\",\"\",'Generated list'!C3870)","v":""},{"$f":"IF('Generated list'!D3870=\"\",\"\",'Generated list'!D3870)","v":""}]
[null,{"$f":"IF('Generated list'!B3871=\"\",\"\",'Generated list'!B3871)","v":""},{"$f":"IF('Generated list'!C3871=\"\",\"\",'Generated list'!C3871)","v":""},{"$f":"IF('Generated list'!D3871=\"\",\"\",'Generated list'!D3871)","v":""}]
[null,{"$f":"IF('Generated list'!B3872=\"\",\"\",'Generated list'!B3872)","v":""},{"$f":"IF('Generated list'!C3872=\"\",\"\",'Generated list'!C3872)","v":""},{"$f":"IF('Generated list'!D3872=\"\",\"\",'Generated list'!D3872)","v":""}]
[null,{"$f":"IF('Generated list'!B3873=\"\",\"\",'Generated list'!B3873)","v":""},{"$f":"IF('Generated list'!C3873=\"\",\"\",'Generated list'!C3873)","v":""},{"$f":"IF('Generated list'!D3873=\"\",\"\",'Generated list'!D3873)","v":""}]
[null,{"$f":"IF('Generated list'!B3874=\"\",\"\",'Generated list'!B3874)","v":""},{"$f":"IF('Generated list'!C3874=\"\",\"\",'Generated list'!C3874)","v":""},{"$f":"IF('Generated list'!D3874=\"\",\"\",'Generated list'!D3874)","v":""}]
[null,{"$f":"IF('Generated list'!B3875=\"\",\"\",'Generated list'!B3875)","v":""},{"$f":"IF('Generated list'!C3875=\"\",\"\",'Generated list'!C3875)","v":""},{"$f":"IF('Generated list'!D3875=\"\",\"\",'Generated list'!D3875)","v":""}]
[null,{"$f":"IF('Generated list'!B3876=\"\",\"\",'Generated list'!B3876)","v":""},{"$f":"IF('Generated list'!C3876=\"\",\"\",'Generated list'!C3876)","v":""},{"$f":"IF('Generated list'!D3876=\"\",\"\",'Generated list'!D3876)","v":""}]
[null,{"$f":"IF('Generated list'!B3877=\"\",\"\",'Generated list'!B3877)","v":""},{"$f":"IF('Generated list'!C3877=\"\",\"\",'Generated list'!C3877)","v":""},{"$f":"IF('Generated list'!D3877=\"\",\"\",'Generated list'!D3877)","v":""}]
[null,{"$f":"IF('Generated list'!B3878=\"\",\"\",'Generated list'!B3878)","v":""},{"$f":"IF('Generated list'!C3878=\"\",\"\",'Generated list'!C3878)","v":""},{"$f":"IF('Generated list'!D3878=\"\",\"\",'Generated list'!D3878)","v":""}]
[null,{"$f":"IF('Generated list'!B3879=\"\",\"\",'Generated list'!B3879)","v":""},{"$f":"IF('Generated list'!C3879=\"\",\"\",'Generated list'!C3879)","v":""},{"$f":"IF('Generated list'!D3879=\"\",\"\",'Generated list'!D3879)","v":""}]
[null,{"$f":"IF('Generated list'!B3880=\"\",\"\",'Generated list'!B3880)","v":""},{"$f":"IF('Generated list'!C3880=\"\",\"\",'Generated list'!C3880)","v":""},{"$f":"IF('Generated list'!D3880=\"\",\"\",'Generated list'!D3880)","v":""}]
[null,{"$f":"IF('Generated list'!B3881=\"\",\"\",'Generated list'!B3881)","v":""},{"$f":"IF('Generated list'!C3881=\"\",\"\",'Generated list'!C3881)","v":""},{"$f":"IF('Generated list'!D3881=\"\",\"\",'Generated list'!D3881)","v":""}]
[null,{"$f":"IF('Generated list'!B3882=\"\",\"\",'Generated list'!B3882)","v":""},{"$f":"IF('Generated list'!C3882=\"\",\"\",'Generated list'!C3882)","v":""},{"$f":"IF('Generated list'!D3882=\"\",\"\",'Generated list'!D3882)","v":""}]
[null,{"$f":"IF('Generated list'!B3883=\"\",\"\",'Generated list'!B3883)","v":""},{"$f":"IF('Generated list'!C3883=\"\",\"\",'Generated list'!C3883)","v":""},{"$f":"IF('Generated list'!D3883=\"\",\"\",'Generated list'!D3883)","v":""}]
[null,{"$f":"IF('Generated list'!B3884=\"\",\"\",'Generated list'!B3884)","v":""},{"$f":"IF('Generated list'!C3884=\"\",\"\",'Generated list'!C3884)","v":""},{"$f":"IF('Generated list'!D3884=\"\",\"\",'Generated list'!D3884)","v":""}]
[null,{"$f":"IF('Generated list'!B3885=\"\",\"\",'Generated list'!B3885)","v":""},{"$f":"IF('Generated list'!C3885=\"\",\"\",'Generated list'!C3885)","v":""},{"$f":"IF('Generated list'!D3885=\"\",\"\",'Generated list'!D3885)","v":""}]
[null,{"$f":"IF('Generated list'!B3886=\"\",\"\",'Generated list'!B3886)","v":""},{"$f":"IF('Generated list'!C3886=\"\",\"\",'Generated list'!C3886)","v":""},{"$f":"IF('Generated list'!D3886=\"\",\"\",'Generated list'!D3886)","v":""}]
[null,{"$f":"IF('Generated list'!B3887=\"\",\"\",'Generated list'!B3887)","v":""},{"$f":"IF('Generated list'!C3887=\"\",\"\",'Generated list'!C3887)","v":""},{"$f":"IF('Generated list'!D3887=\"\",\"\",'Generated list'!D3887)","v":""}]
[null,{"$f":"IF('Generated list'!B3888=\"\",\"\",'Generated list'!B3888)","v":""},{"$f":"IF('Generated list'!C3888=\"\",\"\",'Generated list'!C3888)","v":""},{"$f":"IF('Generated list'!D3888=\"\",\"\",'Generated list'!D3888)","v":""}]
[null,{"$f":"IF('Generated list'!B3889=\"\",\"\",'Generated list'!B3889)","v":""},{"$f":"IF('Generated list'!C3889=\"\",\"\",'Generated list'!C3889)","v":""},{"$f":"IF('Generated list'!D3889=\"\",\"\",'Generated list'!D3889)","v":""}]
[null,{"$f":"IF('Generated list'!B3890=\"\",\"\",'Generated list'!B3890)","v":""},{"$f":"IF('Generated list'!C3890=\"\",\"\",'Generated list'!C3890)","v":""},{"$f":"IF('Generated list'!D3890=\"\",\"\",'Generated list'!D3890)","v":""}]
[null,{"$f":"IF('Generated list'!B3891=\"\",\"\",'Generated list'!B3891)","v":""},{"$f":"IF('Generated list'!C3891=\"\",\"\",'Generated list'!C3891)","v":""},{"$f":"IF('Generated list'!D3891=\"\",\"\",'Generated list'!D3891)","v":""}]
[null,{"$f":"IF('Generated list'!B3892=\"\",\"\",'Generated list'!B3892)","v":""},{"$f":"IF('Generated list'!C3892=\"\",\"\",'Generated list'!C3892)","v":""},{"$f":"IF('Generated list'!D3892=\"\",\"\",'Generated list'!D3892)","v":""}]
[null,{"$f":"IF('Generated list'!B3893=\"\",\"\",'Generated list'!B3893)","v":""},{"$f":"IF('Generated list'!C3893=\"\",\"\",'Generated list'!C3893)","v":""},{"$f":"IF('Generated list'!D3893=\"\",\"\",'Generated list'!D3893)","v":""}]
[null,{"$f":"IF('Generated list'!B3894=\"\",\"\",'Generated list'!B3894)","v":""},{"$f":"IF('Generated list'!C3894=\"\",\"\",'Generated list'!C3894)","v":""},{"$f":"IF('Generated list'!D3894=\"\",\"\",'Generated list'!D3894)","v":""}]
[null,{"$f":"IF('Generated list'!B3895=\"\",\"\",'Generated list'!B3895)","v":""},{"$f":"IF('Generated list'!C3895=\"\",\"\",'Generated list'!C3895)","v":""},{"$f":"IF('Generated list'!D3895=\"\",\"\",'Generated list'!D3895)","v":""}]
[null,{"$f":"IF('Generated list'!B3896=\"\",\"\",'Generated list'!B3896)","v":""},{"$f":"IF('Generated list'!C3896=\"\",\"\",'Generated list'!C3896)","v":""},{"$f":"IF('Generated list'!D3896=\"\",\"\",'Generated list'!D3896)","v":""}]
[null,{"$f":"IF('Generated list'!B3897=\"\",\"\",'Generated list'!B3897)","v":""},{"$f":"IF('Generated list'!C3897=\"\",\"\",'Generated list'!C3897)","v":""},{"$f":"IF('Generated list'!D3897=\"\",\"\",'Generated list'!D3897)","v":""}]
[null,{"$f":"IF('Generated list'!B3898=\"\",\"\",'Generated list'!B3898)","v":""},{"$f":"IF('Generated list'!C3898=\"\",\"\",'Generated list'!C3898)","v":""},{"$f":"IF('Generated list'!D3898=\"\",\"\",'Generated list'!D3898)","v":""}]
[null,{"$f":"IF('Generated list'!B3899=\"\",\"\",'Generated list'!B3899)","v":""},{"$f":"IF('Generated list'!C3899=\"\",\"\",'Generated list'!C3899)","v":""},{"$f":"IF('Generated list'!D3899=\"\",\"\",'Generated list'!D3899)","v":""}]
[null,{"$f":"IF('Generated list'!B3900=\"\",\"\",'Generated list'!B3900)","v":""},{"$f":"IF('Generated list'!C3900=\"\",\"\",'Generated list'!C3900)","v":""},{"$f":"IF('Generated list'!D3900=\"\",\"\",'Generated list'!D3900)","v":""}]
[null,{"$f":"IF('Generated list'!B3901=\"\",\"\",'Generated list'!B3901)","v":""},{"$f":"IF('Generated list'!C3901=\"\",\"\",'Generated list'!C3901)","v":""},{"$f":"IF('Generated list'!D3901=\"\",\"\",'Generated list'!D3901)","v":""}]
[null,{"$f":"IF('Generated list'!B3902=\"\",\"\",'Generated list'!B3902)","v":""},{"$f":"IF('Generated list'!C3902=\"\",\"\",'Generated list'!C3902)","v":""},{"$f":"IF('Generated list'!D3902=\"\",\"\",'Generated list'!D3902)","v":""}]
[null,{"$f":"IF('Generated list'!B3903=\"\",\"\",'Generated list'!B3903)","v":""},{"$f":"IF('Generated list'!C3903=\"\",\"\",'Generated list'!C3903)","v":""},{"$f":"IF('Generated list'!D3903=\"\",\"\",'Generated list'!D3903)","v":""}]
[null,{"$f":"IF('Generated list'!B3904=\"\",\"\",'Generated list'!B3904)","v":""},{"$f":"IF('Generated list'!C3904=\"\",\"\",'Generated list'!C3904)","v":""},{"$f":"IF('Generated list'!D3904=\"\",\"\",'Generated list'!D3904)","v":""}]
[null,{"$f":"IF('Generated list'!B3905=\"\",\"\",'Generated list'!B3905)","v":""},{"$f":"IF('Generated list'!C3905=\"\",\"\",'Generated list'!C3905)","v":""},{"$f":"IF('Generated list'!D3905=\"\",\"\",'Generated list'!D3905)","v":""}]
[null,{"$f":"IF('Generated list'!B3906=\"\",\"\",'Generated list'!B3906)","v":""},{"$f":"IF('Generated list'!C3906=\"\",\"\",'Generated list'!C3906)","v":""},{"$f":"IF('Generated list'!D3906=\"\",\"\",'Generated list'!D3906)","v":""}]
[null,{"$f":"IF('Generated list'!B3907=\"\",\"\",'Generated list'!B3907)","v":""},{"$f":"IF('Generated list'!C3907=\"\",\"\",'Generated list'!C3907)","v":""},{"$f":"IF('Generated list'!D3907=\"\",\"\",'Generated list'!D3907)","v":""}]
[null,{"$f":"IF('Generated list'!B3908=\"\",\"\",'Generated list'!B3908)","v":""},{"$f":"IF('Generated list'!C3908=\"\",\"\",'Generated list'!C3908)","v":""},{"$f":"IF('Generated list'!D3908=\"\",\"\",'Generated list'!D3908)","v":""}]
[null,{"$f":"IF('Generated list'!B3909=\"\",\"\",'Generated list'!B3909)","v":""},{"$f":"IF('Generated list'!C3909=\"\",\"\",'Generated list'!C3909)","v":""},{"$f":"IF('Generated list'!D3909=\"\",\"\",'Generated list'!D3909)","v":""}]
[null,{"$f":"IF('Generated list'!B3910=\"\",\"\",'Generated list'!B3910)","v":""},{"$f":"IF('Generated list'!C3910=\"\",\"\",'Generated list'!C3910)","v":""},{"$f":"IF('Generated list'!D3910=\"\",\"\",'Generated list'!D3910)","v":""}]
[null,{"$f":"IF('Generated list'!B3911=\"\",\"\",'Generated list'!B3911)","v":""},{"$f":"IF('Generated list'!C3911=\"\",\"\",'Generated list'!C3911)","v":""},{"$f":"IF('Generated list'!D3911=\"\",\"\",'Generated list'!D3911)","v":""}]
[null,{"$f":"IF('Generated list'!B3912=\"\",\"\",'Generated list'!B3912)","v":""},{"$f":"IF('Generated list'!C3912=\"\",\"\",'Generated list'!C3912)","v":""},{"$f":"IF('Generated list'!D3912=\"\",\"\",'Generated list'!D3912)","v":""}]
[null,{"$f":"IF('Generated list'!B3913=\"\",\"\",'Generated list'!B3913)","v":""},{"$f":"IF('Generated list'!C3913=\"\",\"\",'Generated list'!C3913)","v":""},{"$f":"IF('Generated list'!D3913=\"\",\"\",'Generated list'!D3913)","v":""}]
[null,{"$f":"IF('Generated list'!B3914=\"\",\"\",'Generated list'!B3914)","v":""},{"$f":"IF('Generated list'!C3914=\"\",\"\",'Generated list'!C3914)","v":""},{"$f":"IF('Generated list'!D3914=\"\",\"\",'Generated list'!D3914)","v":""}]
[null,{"$f":"IF('Generated list'!B3915=\"\",\"\",'Generated list'!B3915)","v":""},{"$f":"IF('Generated list'!C3915=\"\",\"\",'Generated list'!C3915)","v":""},{"$f":"IF('Generated list'!D3915=\"\",\"\",'Generated list'!D3915)","v":""}]
[null,{"$f":"IF('Generated list'!B3916=\"\",\"\",'Generated list'!B3916)","v":""},{"$f":"IF('Generated list'!C3916=\"\",\"\",'Generated list'!C3916)","v":""},{"$f":"IF('Generated list'!D3916=\"\",\"\",'Generated list'!D3916)","v":""}]
[null,{"$f":"IF('Generated list'!B3917=\"\",\"\",'Generated list'!B3917)","v":""},{"$f":"IF('Generated list'!C3917=\"\",\"\",'Generated list'!C3917)","v":""},{"$f":"IF('Generated list'!D3917=\"\",\"\",'Generated list'!D3917)","v":""}]
[null,{"$f":"IF('Generated list'!B3918=\"\",\"\",'Generated list'!B3918)","v":""},{"$f":"IF('Generated list'!C3918=\"\",\"\",'Generated list'!C3918)","v":""},{"$f":"IF('Generated list'!D3918=\"\",\"\",'Generated list'!D3918)","v":""}]
[null,{"$f":"IF('Generated list'!B3919=\"\",\"\",'Generated list'!B3919)","v":""},{"$f":"IF('Generated list'!C3919=\"\",\"\",'Generated list'!C3919)","v":""},{"$f":"IF('Generated list'!D3919=\"\",\"\",'Generated list'!D3919)","v":""}]
[null,{"$f":"IF('Generated list'!B3920=\"\",\"\",'Generated list'!B3920)","v":""},{"$f":"IF('Generated list'!C3920=\"\",\"\",'Generated list'!C3920)","v":""},{"$f":"IF('Generated list'!D3920=\"\",\"\",'Generated list'!D3920)","v":""}]
[null,{"$f":"IF('Generated list'!B3921=\"\",\"\",'Generated list'!B3921)","v":""},{"$f":"IF('Generated list'!C3921=\"\",\"\",'Generated list'!C3921)","v":""},{"$f":"IF('Generated list'!D3921=\"\",\"\",'Generated list'!D3921)","v":""}]
[null,{"$f":"IF('Generated list'!B3922=\"\",\"\",'Generated list'!B3922)","v":""},{"$f":"IF('Generated list'!C3922=\"\",\"\",'Generated list'!C3922)","v":""},{"$f":"IF('Generated list'!D3922=\"\",\"\",'Generated list'!D3922)","v":""}]
[null,{"$f":"IF('Generated list'!B3923=\"\",\"\",'Generated list'!B3923)","v":""},{"$f":"IF('Generated list'!C3923=\"\",\"\",'Generated list'!C3923)","v":""},{"$f":"IF('Generated list'!D3923=\"\",\"\",'Generated list'!D3923)","v":""}]
[null,{"$f":"IF('Generated list'!B3924=\"\",\"\",'Generated list'!B3924)","v":""},{"$f":"IF('Generated list'!C3924=\"\",\"\",'Generated list'!C3924)","v":""},{"$f":"IF('Generated list'!D3924=\"\",\"\",'Generated list'!D3924)","v":""}]
[null,{"$f":"IF('Generated list'!B3925=\"\",\"\",'Generated list'!B3925)","v":""},{"$f":"IF('Generated list'!C3925=\"\",\"\",'Generated list'!C3925)","v":""},{"$f":"IF('Generated list'!D3925=\"\",\"\",'Generated list'!D3925)","v":""}]
[null,{"$f":"IF('Generated list'!B3926=\"\",\"\",'Generated list'!B3926)","v":""},{"$f":"IF('Generated list'!C3926=\"\",\"\",'Generated list'!C3926)","v":""},{"$f":"IF('Generated list'!D3926=\"\",\"\",'Generated list'!D3926)","v":""}]
[null,{"$f":"IF('Generated list'!B3927=\"\",\"\",'Generated list'!B3927)","v":""},{"$f":"IF('Generated list'!C3927=\"\",\"\",'Generated list'!C3927)","v":""},{"$f":"IF('Generated list'!D3927=\"\",\"\",'Generated list'!D3927)","v":""}]
[null,{"$f":"IF('Generated list'!B3928=\"\",\"\",'Generated list'!B3928)","v":""},{"$f":"IF('Generated list'!C3928=\"\",\"\",'Generated list'!C3928)","v":""},{"$f":"IF('Generated list'!D3928=\"\",\"\",'Generated list'!D3928)","v":""}]
[null,{"$f":"IF('Generated list'!B3929=\"\",\"\",'Generated list'!B3929)","v":""},{"$f":"IF('Generated list'!C3929=\"\",\"\",'Generated list'!C3929)","v":""},{"$f":"IF('Generated list'!D3929=\"\",\"\",'Generated list'!D3929)","v":""}]
[null,{"$f":"IF('Generated list'!B3930=\"\",\"\",'Generated list'!B3930)","v":""},{"$f":"IF('Generated list'!C3930=\"\",\"\",'Generated list'!C3930)","v":""},{"$f":"IF('Generated list'!D3930=\"\",\"\",'Generated list'!D3930)","v":""}]
[null,{"$f":"IF('Generated list'!B3931=\"\",\"\",'Generated list'!B3931)","v":""},{"$f":"IF('Generated list'!C3931=\"\",\"\",'Generated list'!C3931)","v":""},{"$f":"IF('Generated list'!D3931=\"\",\"\",'Generated list'!D3931)","v":""}]
[null,{"$f":"IF('Generated list'!B3932=\"\",\"\",'Generated list'!B3932)","v":""},{"$f":"IF('Generated list'!C3932=\"\",\"\",'Generated list'!C3932)","v":""},{"$f":"IF('Generated list'!D3932=\"\",\"\",'Generated list'!D3932)","v":""}]
[null,{"$f":"IF('Generated list'!B3933=\"\",\"\",'Generated list'!B3933)","v":""},{"$f":"IF('Generated list'!C3933=\"\",\"\",'Generated list'!C3933)","v":""},{"$f":"IF('Generated list'!D3933=\"\",\"\",'Generated list'!D3933)","v":""}]
[null,{"$f":"IF('Generated list'!B3934=\"\",\"\",'Generated list'!B3934)","v":""},{"$f":"IF('Generated list'!C3934=\"\",\"\",'Generated list'!C3934)","v":""},{"$f":"IF('Generated list'!D3934=\"\",\"\",'Generated list'!D3934)","v":""}]
[null,{"$f":"IF('Generated list'!B3935=\"\",\"\",'Generated list'!B3935)","v":""},{"$f":"IF('Generated list'!C3935=\"\",\"\",'Generated list'!C3935)","v":""},{"$f":"IF('Generated list'!D3935=\"\",\"\",'Generated list'!D3935)","v":""}]
[null,{"$f":"IF('Generated list'!B3936=\"\",\"\",'Generated list'!B3936)","v":""},{"$f":"IF('Generated list'!C3936=\"\",\"\",'Generated list'!C3936)","v":""},{"$f":"IF('Generated list'!D3936=\"\",\"\",'Generated list'!D3936)","v":""}]
[null,{"$f":"IF('Generated list'!B3937=\"\",\"\",'Generated list'!B3937)","v":""},{"$f":"IF('Generated list'!C3937=\"\",\"\",'Generated list'!C3937)","v":""},{"$f":"IF('Generated list'!D3937=\"\",\"\",'Generated list'!D3937)","v":""}]
[null,{"$f":"IF('Generated list'!B3938=\"\",\"\",'Generated list'!B3938)","v":""},{"$f":"IF('Generated list'!C3938=\"\",\"\",'Generated list'!C3938)","v":""},{"$f":"IF('Generated list'!D3938=\"\",\"\",'Generated list'!D3938)","v":""}]
[null,{"$f":"IF('Generated list'!B3939=\"\",\"\",'Generated list'!B3939)","v":""},{"$f":"IF('Generated list'!C3939=\"\",\"\",'Generated list'!C3939)","v":""},{"$f":"IF('Generated list'!D3939=\"\",\"\",'Generated list'!D3939)","v":""}]
[null,{"$f":"IF('Generated list'!B3940=\"\",\"\",'Generated list'!B3940)","v":""},{"$f":"IF('Generated list'!C3940=\"\",\"\",'Generated list'!C3940)","v":""},{"$f":"IF('Generated list'!D3940=\"\",\"\",'Generated list'!D3940)","v":""}]
[null,{"$f":"IF('Generated list'!B3941=\"\",\"\",'Generated list'!B3941)","v":""},{"$f":"IF('Generated list'!C3941=\"\",\"\",'Generated list'!C3941)","v":""},{"$f":"IF('Generated list'!D3941=\"\",\"\",'Generated list'!D3941)","v":""}]
[null,{"$f":"IF('Generated list'!B3942=\"\",\"\",'Generated list'!B3942)","v":""},{"$f":"IF('Generated list'!C3942=\"\",\"\",'Generated list'!C3942)","v":""},{"$f":"IF('Generated list'!D3942=\"\",\"\",'Generated list'!D3942)","v":""}]
[null,{"$f":"IF('Generated list'!B3943=\"\",\"\",'Generated list'!B3943)","v":""},{"$f":"IF('Generated list'!C3943=\"\",\"\",'Generated list'!C3943)","v":""},{"$f":"IF('Generated list'!D3943=\"\",\"\",'Generated list'!D3943)","v":""}]
[null,{"$f":"IF('Generated list'!B3944=\"\",\"\",'Generated list'!B3944)","v":""},{"$f":"IF('Generated list'!C3944=\"\",\"\",'Generated list'!C3944)","v":""},{"$f":"IF('Generated list'!D3944=\"\",\"\",'Generated list'!D3944)","v":""}]
[null,{"$f":"IF('Generated list'!B3945=\"\",\"\",'Generated list'!B3945)","v":""},{"$f":"IF('Generated list'!C3945=\"\",\"\",'Generated list'!C3945)","v":""},{"$f":"IF('Generated list'!D3945=\"\",\"\",'Generated list'!D3945)","v":""}]
[null,{"$f":"IF('Generated list'!B3946=\"\",\"\",'Generated list'!B3946)","v":""},{"$f":"IF('Generated list'!C3946=\"\",\"\",'Generated list'!C3946)","v":""},{"$f":"IF('Generated list'!D3946=\"\",\"\",'Generated list'!D3946)","v":""}]
[null,{"$f":"IF('Generated list'!B3947=\"\",\"\",'Generated list'!B3947)","v":""},{"$f":"IF('Generated list'!C3947=\"\",\"\",'Generated list'!C3947)","v":""},{"$f":"IF('Generated list'!D3947=\"\",\"\",'Generated list'!D3947)","v":""}]
[null,{"$f":"IF('Generated list'!B3948=\"\",\"\",'Generated list'!B3948)","v":""},{"$f":"IF('Generated list'!C3948=\"\",\"\",'Generated list'!C3948)","v":""},{"$f":"IF('Generated list'!D3948=\"\",\"\",'Generated list'!D3948)","v":""}]
[null,{"$f":"IF('Generated list'!B3949=\"\",\"\",'Generated list'!B3949)","v":""},{"$f":"IF('Generated list'!C3949=\"\",\"\",'Generated list'!C3949)","v":""},{"$f":"IF('Generated list'!D3949=\"\",\"\",'Generated list'!D3949)","v":""}]
[null,{"$f":"IF('Generated list'!B3950=\"\",\"\",'Generated list'!B3950)","v":""},{"$f":"IF('Generated list'!C3950=\"\",\"\",'Generated list'!C3950)","v":""},{"$f":"IF('Generated list'!D3950=\"\",\"\",'Generated list'!D3950)","v":""}]
[null,{"$f":"IF('Generated list'!B3951=\"\",\"\",'Generated list'!B3951)","v":""},{"$f":"IF('Generated list'!C3951=\"\",\"\",'Generated list'!C3951)","v":""},{"$f":"IF('Generated list'!D3951=\"\",\"\",'Generated list'!D3951)","v":""}]
[null,{"$f":"IF('Generated list'!B3952=\"\",\"\",'Generated list'!B3952)","v":""},{"$f":"IF('Generated list'!C3952=\"\",\"\",'Generated list'!C3952)","v":""},{"$f":"IF('Generated list'!D3952=\"\",\"\",'Generated list'!D3952)","v":""}]
[null,{"$f":"IF('Generated list'!B3953=\"\",\"\",'Generated list'!B3953)","v":""},{"$f":"IF('Generated list'!C3953=\"\",\"\",'Generated list'!C3953)","v":""},{"$f":"IF('Generated list'!D3953=\"\",\"\",'Generated list'!D3953)","v":""}]
[null,{"$f":"IF('Generated list'!B3954=\"\",\"\",'Generated list'!B3954)","v":""},{"$f":"IF('Generated list'!C3954=\"\",\"\",'Generated list'!C3954)","v":""},{"$f":"IF('Generated list'!D3954=\"\",\"\",'Generated list'!D3954)","v":""}]
[null,{"$f":"IF('Generated list'!B3955=\"\",\"\",'Generated list'!B3955)","v":""},{"$f":"IF('Generated list'!C3955=\"\",\"\",'Generated list'!C3955)","v":""},{"$f":"IF('Generated list'!D3955=\"\",\"\",'Generated list'!D3955)","v":""}]
[null,{"$f":"IF('Generated list'!B3956=\"\",\"\",'Generated list'!B3956)","v":""},{"$f":"IF('Generated list'!C3956=\"\",\"\",'Generated list'!C3956)","v":""},{"$f":"IF('Generated list'!D3956=\"\",\"\",'Generated list'!D3956)","v":""}]
[null,{"$f":"IF('Generated list'!B3957=\"\",\"\",'Generated list'!B3957)","v":""},{"$f":"IF('Generated list'!C3957=\"\",\"\",'Generated list'!C3957)","v":""},{"$f":"IF('Generated list'!D3957=\"\",\"\",'Generated list'!D3957)","v":""}]
[null,{"$f":"IF('Generated list'!B3958=\"\",\"\",'Generated list'!B3958)","v":""},{"$f":"IF('Generated list'!C3958=\"\",\"\",'Generated list'!C3958)","v":""},{"$f":"IF('Generated list'!D3958=\"\",\"\",'Generated list'!D3958)","v":""}]
[null,{"$f":"IF('Generated list'!B3959=\"\",\"\",'Generated list'!B3959)","v":""},{"$f":"IF('Generated list'!C3959=\"\",\"\",'Generated list'!C3959)","v":""},{"$f":"IF('Generated list'!D3959=\"\",\"\",'Generated list'!D3959)","v":""}]
[null,{"$f":"IF('Generated list'!B3960=\"\",\"\",'Generated list'!B3960)","v":""},{"$f":"IF('Generated list'!C3960=\"\",\"\",'Generated list'!C3960)","v":""},{"$f":"IF('Generated list'!D3960=\"\",\"\",'Generated list'!D3960)","v":""}]
[null,{"$f":"IF('Generated list'!B3961=\"\",\"\",'Generated list'!B3961)","v":""},{"$f":"IF('Generated list'!C3961=\"\",\"\",'Generated list'!C3961)","v":""},{"$f":"IF('Generated list'!D3961=\"\",\"\",'Generated list'!D3961)","v":""}]
[null,{"$f":"IF('Generated list'!B3962=\"\",\"\",'Generated list'!B3962)","v":""},{"$f":"IF('Generated list'!C3962=\"\",\"\",'Generated list'!C3962)","v":""},{"$f":"IF('Generated list'!D3962=\"\",\"\",'Generated list'!D3962)","v":""}]
[null,{"$f":"IF('Generated list'!B3963=\"\",\"\",'Generated list'!B3963)","v":""},{"$f":"IF('Generated list'!C3963=\"\",\"\",'Generated list'!C3963)","v":""},{"$f":"IF('Generated list'!D3963=\"\",\"\",'Generated list'!D3963)","v":""}]
[null,{"$f":"IF('Generated list'!B3964=\"\",\"\",'Generated list'!B3964)","v":""},{"$f":"IF('Generated list'!C3964=\"\",\"\",'Generated list'!C3964)","v":""},{"$f":"IF('Generated list'!D3964=\"\",\"\",'Generated list'!D3964)","v":""}]
[null,{"$f":"IF('Generated list'!B3965=\"\",\"\",'Generated list'!B3965)","v":""},{"$f":"IF('Generated list'!C3965=\"\",\"\",'Generated list'!C3965)","v":""},{"$f":"IF('Generated list'!D3965=\"\",\"\",'Generated list'!D3965)","v":""}]
[null,{"$f":"IF('Generated list'!B3966=\"\",\"\",'Generated list'!B3966)","v":""},{"$f":"IF('Generated list'!C3966=\"\",\"\",'Generated list'!C3966)","v":""},{"$f":"IF('Generated list'!D3966=\"\",\"\",'Generated list'!D3966)","v":""}]
[null,{"$f":"IF('Generated list'!B3967=\"\",\"\",'Generated list'!B3967)","v":""},{"$f":"IF('Generated list'!C3967=\"\",\"\",'Generated list'!C3967)","v":""},{"$f":"IF('Generated list'!D3967=\"\",\"\",'Generated list'!D3967)","v":""}]
[null,{"$f":"IF('Generated list'!B3968=\"\",\"\",'Generated list'!B3968)","v":""},{"$f":"IF('Generated list'!C3968=\"\",\"\",'Generated list'!C3968)","v":""},{"$f":"IF('Generated list'!D3968=\"\",\"\",'Generated list'!D3968)","v":""}]
[null,{"$f":"IF('Generated list'!B3969=\"\",\"\",'Generated list'!B3969)","v":""},{"$f":"IF('Generated list'!C3969=\"\",\"\",'Generated list'!C3969)","v":""},{"$f":"IF('Generated list'!D3969=\"\",\"\",'Generated list'!D3969)","v":""}]
[null,{"$f":"IF('Generated list'!B3970=\"\",\"\",'Generated list'!B3970)","v":""},{"$f":"IF('Generated list'!C3970=\"\",\"\",'Generated list'!C3970)","v":""},{"$f":"IF('Generated list'!D3970=\"\",\"\",'Generated list'!D3970)","v":""}]
[null,{"$f":"IF('Generated list'!B3971=\"\",\"\",'Generated list'!B3971)","v":""},{"$f":"IF('Generated list'!C3971=\"\",\"\",'Generated list'!C3971)","v":""},{"$f":"IF('Generated list'!D3971=\"\",\"\",'Generated list'!D3971)","v":""}]
[null,{"$f":"IF('Generated list'!B3972=\"\",\"\",'Generated list'!B3972)","v":""},{"$f":"IF('Generated list'!C3972=\"\",\"\",'Generated list'!C3972)","v":""},{"$f":"IF('Generated list'!D3972=\"\",\"\",'Generated list'!D3972)","v":""}]
[null,{"$f":"IF('Generated list'!B3973=\"\",\"\",'Generated list'!B3973)","v":""},{"$f":"IF('Generated list'!C3973=\"\",\"\",'Generated list'!C3973)","v":""},{"$f":"IF('Generated list'!D3973=\"\",\"\",'Generated list'!D3973)","v":""}]
[null,{"$f":"IF('Generated list'!B3974=\"\",\"\",'Generated list'!B3974)","v":""},{"$f":"IF('Generated list'!C3974=\"\",\"\",'Generated list'!C3974)","v":""},{"$f":"IF('Generated list'!D3974=\"\",\"\",'Generated list'!D3974)","v":""}]
[null,{"$f":"IF('Generated list'!B3975=\"\",\"\",'Generated list'!B3975)","v":""},{"$f":"IF('Generated list'!C3975=\"\",\"\",'Generated list'!C3975)","v":""},{"$f":"IF('Generated list'!D3975=\"\",\"\",'Generated list'!D3975)","v":""}]
[null,{"$f":"IF('Generated list'!B3976=\"\",\"\",'Generated list'!B3976)","v":""},{"$f":"IF('Generated list'!C3976=\"\",\"\",'Generated list'!C3976)","v":""},{"$f":"IF('Generated list'!D3976=\"\",\"\",'Generated list'!D3976)","v":""}]
[null,{"$f":"IF('Generated list'!B3977=\"\",\"\",'Generated list'!B3977)","v":""},{"$f":"IF('Generated list'!C3977=\"\",\"\",'Generated list'!C3977)","v":""},{"$f":"IF('Generated list'!D3977=\"\",\"\",'Generated list'!D3977)","v":""}]
[null,{"$f":"IF('Generated list'!B3978=\"\",\"\",'Generated list'!B3978)","v":""},{"$f":"IF('Generated list'!C3978=\"\",\"\",'Generated list'!C3978)","v":""},{"$f":"IF('Generated list'!D3978=\"\",\"\",'Generated list'!D3978)","v":""}]
[null,{"$f":"IF('Generated list'!B3979=\"\",\"\",'Generated list'!B3979)","v":""},{"$f":"IF('Generated list'!C3979=\"\",\"\",'Generated list'!C3979)","v":""},{"$f":"IF('Generated list'!D3979=\"\",\"\",'Generated list'!D3979)","v":""}]
[null,{"$f":"IF('Generated list'!B3980=\"\",\"\",'Generated list'!B3980)","v":""},{"$f":"IF('Generated list'!C3980=\"\",\"\",'Generated list'!C3980)","v":""},{"$f":"IF('Generated list'!D3980=\"\",\"\",'Generated list'!D3980)","v":""}]
[null,{"$f":"IF('Generated list'!B3981=\"\",\"\",'Generated list'!B3981)","v":""},{"$f":"IF('Generated list'!C3981=\"\",\"\",'Generated list'!C3981)","v":""},{"$f":"IF('Generated list'!D3981=\"\",\"\",'Generated list'!D3981)","v":""}]
[null,{"$f":"IF('Generated list'!B3982=\"\",\"\",'Generated list'!B3982)","v":""},{"$f":"IF('Generated list'!C3982=\"\",\"\",'Generated list'!C3982)","v":""},{"$f":"IF('Generated list'!D3982=\"\",\"\",'Generated list'!D3982)","v":""}]
[null,{"$f":"IF('Generated list'!B3983=\"\",\"\",'Generated list'!B3983)","v":""},{"$f":"IF('Generated list'!C3983=\"\",\"\",'Generated list'!C3983)","v":""},{"$f":"IF('Generated list'!D3983=\"\",\"\",'Generated list'!D3983)","v":""}]
[null,{"$f":"IF('Generated list'!B3984=\"\",\"\",'Generated list'!B3984)","v":""},{"$f":"IF('Generated list'!C3984=\"\",\"\",'Generated list'!C3984)","v":""},{"$f":"IF('Generated list'!D3984=\"\",\"\",'Generated list'!D3984)","v":""}]
[null,{"$f":"IF('Generated list'!B3985=\"\",\"\",'Generated list'!B3985)","v":""},{"$f":"IF('Generated list'!C3985=\"\",\"\",'Generated list'!C3985)","v":""},{"$f":"IF('Generated list'!D3985=\"\",\"\",'Generated list'!D3985)","v":""}]
[null,{"$f":"IF('Generated list'!B3986=\"\",\"\",'Generated list'!B3986)","v":""},{"$f":"IF('Generated list'!C3986=\"\",\"\",'Generated list'!C3986)","v":""},{"$f":"IF('Generated list'!D3986=\"\",\"\",'Generated list'!D3986)","v":""}]
[null,{"$f":"IF('Generated list'!B3987=\"\",\"\",'Generated list'!B3987)","v":""},{"$f":"IF('Generated list'!C3987=\"\",\"\",'Generated list'!C3987)","v":""},{"$f":"IF('Generated list'!D3987=\"\",\"\",'Generated list'!D3987)","v":""}]
[null,{"$f":"IF('Generated list'!B3988=\"\",\"\",'Generated list'!B3988)","v":""},{"$f":"IF('Generated list'!C3988=\"\",\"\",'Generated list'!C3988)","v":""},{"$f":"IF('Generated list'!D3988=\"\",\"\",'Generated list'!D3988)","v":""}]
[null,{"$f":"IF('Generated list'!B3989=\"\",\"\",'Generated list'!B3989)","v":""},{"$f":"IF('Generated list'!C3989=\"\",\"\",'Generated list'!C3989)","v":""},{"$f":"IF('Generated list'!D3989=\"\",\"\",'Generated list'!D3989)","v":""}]
[null,{"$f":"IF('Generated list'!B3990=\"\",\"\",'Generated list'!B3990)","v":""},{"$f":"IF('Generated list'!C3990=\"\",\"\",'Generated list'!C3990)","v":""},{"$f":"IF('Generated list'!D3990=\"\",\"\",'Generated list'!D3990)","v":""}]
[null,{"$f":"IF('Generated list'!B3991=\"\",\"\",'Generated list'!B3991)","v":""},{"$f":"IF('Generated list'!C3991=\"\",\"\",'Generated list'!C3991)","v":""},{"$f":"IF('Generated list'!D3991=\"\",\"\",'Generated list'!D3991)","v":""}]
[null,{"$f":"IF('Generated list'!B3992=\"\",\"\",'Generated list'!B3992)","v":""},{"$f":"IF('Generated list'!C3992=\"\",\"\",'Generated list'!C3992)","v":""},{"$f":"IF('Generated list'!D3992=\"\",\"\",'Generated list'!D3992)","v":""}]
[null,{"$f":"IF('Generated list'!B3993=\"\",\"\",'Generated list'!B3993)","v":""},{"$f":"IF('Generated list'!C3993=\"\",\"\",'Generated list'!C3993)","v":""},{"$f":"IF('Generated list'!D3993=\"\",\"\",'Generated list'!D3993)","v":""}]
[null,{"$f":"IF('Generated list'!B3994=\"\",\"\",'Generated list'!B3994)","v":""},{"$f":"IF('Generated list'!C3994=\"\",\"\",'Generated list'!C3994)","v":""},{"$f":"IF('Generated list'!D3994=\"\",\"\",'Generated list'!D3994)","v":""}]
[null,{"$f":"IF('Generated list'!B3995=\"\",\"\",'Generated list'!B3995)","v":""},{"$f":"IF('Generated list'!C3995=\"\",\"\",'Generated list'!C3995)","v":""},{"$f":"IF('Generated list'!D3995=\"\",\"\",'Generated list'!D3995)","v":""}]
[null,{"$f":"IF('Generated list'!B3996=\"\",\"\",'Generated list'!B3996)","v":""},{"$f":"IF('Generated list'!C3996=\"\",\"\",'Generated list'!C3996)","v":""},{"$f":"IF('Generated list'!D3996=\"\",\"\",'Generated list'!D3996)","v":""}]
[null,{"$f":"IF('Generated list'!B3997=\"\",\"\",'Generated list'!B3997)","v":""},{"$f":"IF('Generated list'!C3997=\"\",\"\",'Generated list'!C3997)","v":""},{"$f":"IF('Generated list'!D3997=\"\",\"\",'Generated list'!D3997)","v":""}]
[null,{"$f":"IF('Generated list'!B3998=\"\",\"\",'Generated list'!B3998)","v":""},{"$f":"IF('Generated list'!C3998=\"\",\"\",'Generated list'!C3998)","v":""},{"$f":"IF('Generated list'!D3998=\"\",\"\",'Generated list'!D3998)","v":""}]
[null,{"$f":"IF('Generated list'!B3999=\"\",\"\",'Generated list'!B3999)","v":""},{"$f":"IF('Generated list'!C3999=\"\",\"\",'Generated list'!C3999)","v":""},{"$f":"IF('Generated list'!D3999=\"\",\"\",'Generated list'!D3999)","v":""}]
[null,{"$f":"IF('Generated list'!B4000=\"\",\"\",'Generated list'!B4000)","v":""},{"$f":"IF('Generated list'!C4000=\"\",\"\",'Generated list'!C4000)","v":""},{"$f":"IF('Generated list'!D4000=\"\",\"\",'Generated list'!D4000)","v":""}]
[null,{"$f":"IF('Generated list'!B4001=\"\",\"\",'Generated list'!B4001)","v":""},{"$f":"IF('Generated list'!C4001=\"\",\"\",'Generated list'!C4001)","v":""},{"$f":"IF('Generated list'!D4001=\"\",\"\",'Generated list'!D4001)","v":""}]
[null,{"$f":"IF('Generated list'!B4002=\"\",\"\",'Generated list'!B4002)","v":""},{"$f":"IF('Generated list'!C4002=\"\",\"\",'Generated list'!C4002)","v":""},{"$f":"IF('Generated list'!D4002=\"\",\"\",'Generated list'!D4002)","v":""}]
[null,{"$f":"IF('Generated list'!B4003=\"\",\"\",'Generated list'!B4003)","v":""},{"$f":"IF('Generated list'!C4003=\"\",\"\",'Generated list'!C4003)","v":""},{"$f":"IF('Generated list'!D4003=\"\",\"\",'Generated list'!D4003)","v":""}]
[null,{"$f":"IF('Generated list'!B4004=\"\",\"\",'Generated list'!B4004)","v":""},{"$f":"IF('Generated list'!C4004=\"\",\"\",'Generated list'!C4004)","v":""},{"$f":"IF('Generated list'!D4004=\"\",\"\",'Generated list'!D4004)","v":""}]
[null,{"$f":"IF('Generated list'!B4005=\"\",\"\",'Generated list'!B4005)","v":""},{"$f":"IF('Generated list'!C4005=\"\",\"\",'Generated list'!C4005)","v":""},{"$f":"IF('Generated list'!D4005=\"\",\"\",'Generated list'!D4005)","v":""}]
[null,{"$f":"IF('Generated list'!B4006=\"\",\"\",'Generated list'!B4006)","v":""},{"$f":"IF('Generated list'!C4006=\"\",\"\",'Generated list'!C4006)","v":""},{"$f":"IF('Generated list'!D4006=\"\",\"\",'Generated list'!D4006)","v":""}]
[null,{"$f":"IF('Generated list'!B4007=\"\",\"\",'Generated list'!B4007)","v":""},{"$f":"IF('Generated list'!C4007=\"\",\"\",'Generated list'!C4007)","v":""},{"$f":"IF('Generated list'!D4007=\"\",\"\",'Generated list'!D4007)","v":""}]
[null,{"$f":"IF('Generated list'!B4008=\"\",\"\",'Generated list'!B4008)","v":""},{"$f":"IF('Generated list'!C4008=\"\",\"\",'Generated list'!C4008)","v":""},{"$f":"IF('Generated list'!D4008=\"\",\"\",'Generated list'!D4008)","v":""}]
[null,{"$f":"IF('Generated list'!B4009=\"\",\"\",'Generated list'!B4009)","v":""},{"$f":"IF('Generated list'!C4009=\"\",\"\",'Generated list'!C4009)","v":""},{"$f":"IF('Generated list'!D4009=\"\",\"\",'Generated list'!D4009)","v":""}]
[null,{"$f":"IF('Generated list'!B4010=\"\",\"\",'Generated list'!B4010)","v":""},{"$f":"IF('Generated list'!C4010=\"\",\"\",'Generated list'!C4010)","v":""},{"$f":"IF('Generated list'!D4010=\"\",\"\",'Generated list'!D4010)","v":""}]
[null,{"$f":"IF('Generated list'!B4011=\"\",\"\",'Generated list'!B4011)","v":""},{"$f":"IF('Generated list'!C4011=\"\",\"\",'Generated list'!C4011)","v":""},{"$f":"IF('Generated list'!D4011=\"\",\"\",'Generated list'!D4011)","v":""}]
[null,{"$f":"IF('Generated list'!B4012=\"\",\"\",'Generated list'!B4012)","v":""},{"$f":"IF('Generated list'!C4012=\"\",\"\",'Generated list'!C4012)","v":""},{"$f":"IF('Generated list'!D4012=\"\",\"\",'Generated list'!D4012)","v":""}]
[null,{"$f":"IF('Generated list'!B4013=\"\",\"\",'Generated list'!B4013)","v":""},{"$f":"IF('Generated list'!C4013=\"\",\"\",'Generated list'!C4013)","v":""},{"$f":"IF('Generated list'!D4013=\"\",\"\",'Generated list'!D4013)","v":""}]
[null,{"$f":"IF('Generated list'!B4014=\"\",\"\",'Generated list'!B4014)","v":""},{"$f":"IF('Generated list'!C4014=\"\",\"\",'Generated list'!C4014)","v":""},{"$f":"IF('Generated list'!D4014=\"\",\"\",'Generated list'!D4014)","v":""}]
[null,{"$f":"IF('Generated list'!B4015=\"\",\"\",'Generated list'!B4015)","v":""},{"$f":"IF('Generated list'!C4015=\"\",\"\",'Generated list'!C4015)","v":""},{"$f":"IF('Generated list'!D4015=\"\",\"\",'Generated list'!D4015)","v":""}]
[null,{"$f":"IF('Generated list'!B4016=\"\",\"\",'Generated list'!B4016)","v":""},{"$f":"IF('Generated list'!C4016=\"\",\"\",'Generated list'!C4016)","v":""},{"$f":"IF('Generated list'!D4016=\"\",\"\",'Generated list'!D4016)","v":""}]
[null,{"$f":"IF('Generated list'!B4017=\"\",\"\",'Generated list'!B4017)","v":""},{"$f":"IF('Generated list'!C4017=\"\",\"\",'Generated list'!C4017)","v":""},{"$f":"IF('Generated list'!D4017=\"\",\"\",'Generated list'!D4017)","v":""}]
[null,{"$f":"IF('Generated list'!B4018=\"\",\"\",'Generated list'!B4018)","v":""},{"$f":"IF('Generated list'!C4018=\"\",\"\",'Generated list'!C4018)","v":""},{"$f":"IF('Generated list'!D4018=\"\",\"\",'Generated list'!D4018)","v":""}]
[null,{"$f":"IF('Generated list'!B4019=\"\",\"\",'Generated list'!B4019)","v":""},{"$f":"IF('Generated list'!C4019=\"\",\"\",'Generated list'!C4019)","v":""},{"$f":"IF('Generated list'!D4019=\"\",\"\",'Generated list'!D4019)","v":""}]
[null,{"$f":"IF('Generated list'!B4020=\"\",\"\",'Generated list'!B4020)","v":""},{"$f":"IF('Generated list'!C4020=\"\",\"\",'Generated list'!C4020)","v":""},{"$f":"IF('Generated list'!D4020=\"\",\"\",'Generated list'!D4020)","v":""}]
[null,{"$f":"IF('Generated list'!B4021=\"\",\"\",'Generated list'!B4021)","v":""},{"$f":"IF('Generated list'!C4021=\"\",\"\",'Generated list'!C4021)","v":""},{"$f":"IF('Generated list'!D4021=\"\",\"\",'Generated list'!D4021)","v":""}]
[null,{"$f":"IF('Generated list'!B4022=\"\",\"\",'Generated list'!B4022)","v":""},{"$f":"IF('Generated list'!C4022=\"\",\"\",'Generated list'!C4022)","v":""},{"$f":"IF('Generated list'!D4022=\"\",\"\",'Generated list'!D4022)","v":""}]
[null,{"$f":"IF('Generated list'!B4023=\"\",\"\",'Generated list'!B4023)","v":""},{"$f":"IF('Generated list'!C4023=\"\",\"\",'Generated list'!C4023)","v":""},{"$f":"IF('Generated list'!D4023=\"\",\"\",'Generated list'!D4023)","v":""}]
[null,{"$f":"IF('Generated list'!B4024=\"\",\"\",'Generated list'!B4024)","v":""},{"$f":"IF('Generated list'!C4024=\"\",\"\",'Generated list'!C4024)","v":""},{"$f":"IF('Generated list'!D4024=\"\",\"\",'Generated list'!D4024)","v":""}]
[null,{"$f":"IF('Generated list'!B4025=\"\",\"\",'Generated list'!B4025)","v":""},{"$f":"IF('Generated list'!C4025=\"\",\"\",'Generated list'!C4025)","v":""},{"$f":"IF('Generated list'!D4025=\"\",\"\",'Generated list'!D4025)","v":""}]
[null,{"$f":"IF('Generated list'!B4026=\"\",\"\",'Generated list'!B4026)","v":""},{"$f":"IF('Generated list'!C4026=\"\",\"\",'Generated list'!C4026)","v":""},{"$f":"IF('Generated list'!D4026=\"\",\"\",'Generated list'!D4026)","v":""}]
[null,{"$f":"IF('Generated list'!B4027=\"\",\"\",'Generated list'!B4027)","v":""},{"$f":"IF('Generated list'!C4027=\"\",\"\",'Generated list'!C4027)","v":""},{"$f":"IF('Generated list'!D4027=\"\",\"\",'Generated list'!D4027)","v":""}]
[null,{"$f":"IF('Generated list'!B4028=\"\",\"\",'Generated list'!B4028)","v":""},{"$f":"IF('Generated list'!C4028=\"\",\"\",'Generated list'!C4028)","v":""},{"$f":"IF('Generated list'!D4028=\"\",\"\",'Generated list'!D4028)","v":""}]
[null,{"$f":"IF('Generated list'!B4029=\"\",\"\",'Generated list'!B4029)","v":""},{"$f":"IF('Generated list'!C4029=\"\",\"\",'Generated list'!C4029)","v":""},{"$f":"IF('Generated list'!D4029=\"\",\"\",'Generated list'!D4029)","v":""}]
[null,{"$f":"IF('Generated list'!B4030=\"\",\"\",'Generated list'!B4030)","v":""},{"$f":"IF('Generated list'!C4030=\"\",\"\",'Generated list'!C4030)","v":""},{"$f":"IF('Generated list'!D4030=\"\",\"\",'Generated list'!D4030)","v":""}]
[null,{"$f":"IF('Generated list'!B4031=\"\",\"\",'Generated list'!B4031)","v":""},{"$f":"IF('Generated list'!C4031=\"\",\"\",'Generated list'!C4031)","v":""},{"$f":"IF('Generated list'!D4031=\"\",\"\",'Generated list'!D4031)","v":""}]
[null,{"$f":"IF('Generated list'!B4032=\"\",\"\",'Generated list'!B4032)","v":""},{"$f":"IF('Generated list'!C4032=\"\",\"\",'Generated list'!C4032)","v":""},{"$f":"IF('Generated list'!D4032=\"\",\"\",'Generated list'!D4032)","v":""}]
[null,{"$f":"IF('Generated list'!B4033=\"\",\"\",'Generated list'!B4033)","v":""},{"$f":"IF('Generated list'!C4033=\"\",\"\",'Generated list'!C4033)","v":""},{"$f":"IF('Generated list'!D4033=\"\",\"\",'Generated list'!D4033)","v":""}]
[null,{"$f":"IF('Generated list'!B4034=\"\",\"\",'Generated list'!B4034)","v":""},{"$f":"IF('Generated list'!C4034=\"\",\"\",'Generated list'!C4034)","v":""},{"$f":"IF('Generated list'!D4034=\"\",\"\",'Generated list'!D4034)","v":""}]
[null,{"$f":"IF('Generated list'!B4035=\"\",\"\",'Generated list'!B4035)","v":""},{"$f":"IF('Generated list'!C4035=\"\",\"\",'Generated list'!C4035)","v":""},{"$f":"IF('Generated list'!D4035=\"\",\"\",'Generated list'!D4035)","v":""}]
[null,{"$f":"IF('Generated list'!B4036=\"\",\"\",'Generated list'!B4036)","v":""},{"$f":"IF('Generated list'!C4036=\"\",\"\",'Generated list'!C4036)","v":""},{"$f":"IF('Generated list'!D4036=\"\",\"\",'Generated list'!D4036)","v":""}]
[null,{"$f":"IF('Generated list'!B4037=\"\",\"\",'Generated list'!B4037)","v":""},{"$f":"IF('Generated list'!C4037=\"\",\"\",'Generated list'!C4037)","v":""},{"$f":"IF('Generated list'!D4037=\"\",\"\",'Generated list'!D4037)","v":""}]
[null,{"$f":"IF('Generated list'!B4038=\"\",\"\",'Generated list'!B4038)","v":""},{"$f":"IF('Generated list'!C4038=\"\",\"\",'Generated list'!C4038)","v":""},{"$f":"IF('Generated list'!D4038=\"\",\"\",'Generated list'!D4038)","v":""}]
[null,{"$f":"IF('Generated list'!B4039=\"\",\"\",'Generated list'!B4039)","v":""},{"$f":"IF('Generated list'!C4039=\"\",\"\",'Generated list'!C4039)","v":""},{"$f":"IF('Generated list'!D4039=\"\",\"\",'Generated list'!D4039)","v":""}]
[null,{"$f":"IF('Generated list'!B4040=\"\",\"\",'Generated list'!B4040)","v":""},{"$f":"IF('Generated list'!C4040=\"\",\"\",'Generated list'!C4040)","v":""},{"$f":"IF('Generated list'!D4040=\"\",\"\",'Generated list'!D4040)","v":""}]
[null,{"$f":"IF('Generated list'!B4041=\"\",\"\",'Generated list'!B4041)","v":""},{"$f":"IF('Generated list'!C4041=\"\",\"\",'Generated list'!C4041)","v":""},{"$f":"IF('Generated list'!D4041=\"\",\"\",'Generated list'!D4041)","v":""}]
[null,{"$f":"IF('Generated list'!B4042=\"\",\"\",'Generated list'!B4042)","v":""},{"$f":"IF('Generated list'!C4042=\"\",\"\",'Generated list'!C4042)","v":""},{"$f":"IF('Generated list'!D4042=\"\",\"\",'Generated list'!D4042)","v":""}]
[null,{"$f":"IF('Generated list'!B4043=\"\",\"\",'Generated list'!B4043)","v":""},{"$f":"IF('Generated list'!C4043=\"\",\"\",'Generated list'!C4043)","v":""},{"$f":"IF('Generated list'!D4043=\"\",\"\",'Generated list'!D4043)","v":""}]
[null,{"$f":"IF('Generated list'!B4044=\"\",\"\",'Generated list'!B4044)","v":""},{"$f":"IF('Generated list'!C4044=\"\",\"\",'Generated list'!C4044)","v":""},{"$f":"IF('Generated list'!D4044=\"\",\"\",'Generated list'!D4044)","v":""}]
[null,{"$f":"IF('Generated list'!B4045=\"\",\"\",'Generated list'!B4045)","v":""},{"$f":"IF('Generated list'!C4045=\"\",\"\",'Generated list'!C4045)","v":""},{"$f":"IF('Generated list'!D4045=\"\",\"\",'Generated list'!D4045)","v":""}]
[null,{"$f":"IF('Generated list'!B4046=\"\",\"\",'Generated list'!B4046)","v":""},{"$f":"IF('Generated list'!C4046=\"\",\"\",'Generated list'!C4046)","v":""},{"$f":"IF('Generated list'!D4046=\"\",\"\",'Generated list'!D4046)","v":""}]
[null,{"$f":"IF('Generated list'!B4047=\"\",\"\",'Generated list'!B4047)","v":""},{"$f":"IF('Generated list'!C4047=\"\",\"\",'Generated list'!C4047)","v":""},{"$f":"IF('Generated list'!D4047=\"\",\"\",'Generated list'!D4047)","v":""}]
[null,{"$f":"IF('Generated list'!B4048=\"\",\"\",'Generated list'!B4048)","v":""},{"$f":"IF('Generated list'!C4048=\"\",\"\",'Generated list'!C4048)","v":""},{"$f":"IF('Generated list'!D4048=\"\",\"\",'Generated list'!D4048)","v":""}]
[null,{"$f":"IF('Generated list'!B4049=\"\",\"\",'Generated list'!B4049)","v":""},{"$f":"IF('Generated list'!C4049=\"\",\"\",'Generated list'!C4049)","v":""},{"$f":"IF('Generated list'!D4049=\"\",\"\",'Generated list'!D4049)","v":""}]
[null,{"$f":"IF('Generated list'!B4050=\"\",\"\",'Generated list'!B4050)","v":""},{"$f":"IF('Generated list'!C4050=\"\",\"\",'Generated list'!C4050)","v":""},{"$f":"IF('Generated list'!D4050=\"\",\"\",'Generated list'!D4050)","v":""}]
[null,{"$f":"IF('Generated list'!B4051=\"\",\"\",'Generated list'!B4051)","v":""},{"$f":"IF('Generated list'!C4051=\"\",\"\",'Generated list'!C4051)","v":""},{"$f":"IF('Generated list'!D4051=\"\",\"\",'Generated list'!D4051)","v":""}]
[null,{"$f":"IF('Generated list'!B4052=\"\",\"\",'Generated list'!B4052)","v":""},{"$f":"IF('Generated list'!C4052=\"\",\"\",'Generated list'!C4052)","v":""},{"$f":"IF('Generated list'!D4052=\"\",\"\",'Generated list'!D4052)","v":""}]
[null,{"$f":"IF('Generated list'!B4053=\"\",\"\",'Generated list'!B4053)","v":""},{"$f":"IF('Generated list'!C4053=\"\",\"\",'Generated list'!C4053)","v":""},{"$f":"IF('Generated list'!D4053=\"\",\"\",'Generated list'!D4053)","v":""}]
[null,{"$f":"IF('Generated list'!B4054=\"\",\"\",'Generated list'!B4054)","v":""},{"$f":"IF('Generated list'!C4054=\"\",\"\",'Generated list'!C4054)","v":""},{"$f":"IF('Generated list'!D4054=\"\",\"\",'Generated list'!D4054)","v":""}]
[null,{"$f":"IF('Generated list'!B4055=\"\",\"\",'Generated list'!B4055)","v":""},{"$f":"IF('Generated list'!C4055=\"\",\"\",'Generated list'!C4055)","v":""},{"$f":"IF('Generated list'!D4055=\"\",\"\",'Generated list'!D4055)","v":""}]
[null,{"$f":"IF('Generated list'!B4056=\"\",\"\",'Generated list'!B4056)","v":""},{"$f":"IF('Generated list'!C4056=\"\",\"\",'Generated list'!C4056)","v":""},{"$f":"IF('Generated list'!D4056=\"\",\"\",'Generated list'!D4056)","v":""}]
[null,{"$f":"IF('Generated list'!B4057=\"\",\"\",'Generated list'!B4057)","v":""},{"$f":"IF('Generated list'!C4057=\"\",\"\",'Generated list'!C4057)","v":""},{"$f":"IF('Generated list'!D4057=\"\",\"\",'Generated list'!D4057)","v":""}]
[null,{"$f":"IF('Generated list'!B4058=\"\",\"\",'Generated list'!B4058)","v":""},{"$f":"IF('Generated list'!C4058=\"\",\"\",'Generated list'!C4058)","v":""},{"$f":"IF('Generated list'!D4058=\"\",\"\",'Generated list'!D4058)","v":""}]
[null,{"$f":"IF('Generated list'!B4059=\"\",\"\",'Generated list'!B4059)","v":""},{"$f":"IF('Generated list'!C4059=\"\",\"\",'Generated list'!C4059)","v":""},{"$f":"IF('Generated list'!D4059=\"\",\"\",'Generated list'!D4059)","v":""}]
[null,{"$f":"IF('Generated list'!B4060=\"\",\"\",'Generated list'!B4060)","v":""},{"$f":"IF('Generated list'!C4060=\"\",\"\",'Generated list'!C4060)","v":""},{"$f":"IF('Generated list'!D4060=\"\",\"\",'Generated list'!D4060)","v":""}]
[null,{"$f":"IF('Generated list'!B4061=\"\",\"\",'Generated list'!B4061)","v":""},{"$f":"IF('Generated list'!C4061=\"\",\"\",'Generated list'!C4061)","v":""},{"$f":"IF('Generated list'!D4061=\"\",\"\",'Generated list'!D4061)","v":""}]
[null,{"$f":"IF('Generated list'!B4062=\"\",\"\",'Generated list'!B4062)","v":""},{"$f":"IF('Generated list'!C4062=\"\",\"\",'Generated list'!C4062)","v":""},{"$f":"IF('Generated list'!D4062=\"\",\"\",'Generated list'!D4062)","v":""}]
[null,{"$f":"IF('Generated list'!B4063=\"\",\"\",'Generated list'!B4063)","v":""},{"$f":"IF('Generated list'!C4063=\"\",\"\",'Generated list'!C4063)","v":""},{"$f":"IF('Generated list'!D4063=\"\",\"\",'Generated list'!D4063)","v":""}]
[null,{"$f":"IF('Generated list'!B4064=\"\",\"\",'Generated list'!B4064)","v":""},{"$f":"IF('Generated list'!C4064=\"\",\"\",'Generated list'!C4064)","v":""},{"$f":"IF('Generated list'!D4064=\"\",\"\",'Generated list'!D4064)","v":""}]
[null,{"$f":"IF('Generated list'!B4065=\"\",\"\",'Generated list'!B4065)","v":""},{"$f":"IF('Generated list'!C4065=\"\",\"\",'Generated list'!C4065)","v":""},{"$f":"IF('Generated list'!D4065=\"\",\"\",'Generated list'!D4065)","v":""}]
[null,{"$f":"IF('Generated list'!B4066=\"\",\"\",'Generated list'!B4066)","v":""},{"$f":"IF('Generated list'!C4066=\"\",\"\",'Generated list'!C4066)","v":""},{"$f":"IF('Generated list'!D4066=\"\",\"\",'Generated list'!D4066)","v":""}]
[null,{"$f":"IF('Generated list'!B4067=\"\",\"\",'Generated list'!B4067)","v":""},{"$f":"IF('Generated list'!C4067=\"\",\"\",'Generated list'!C4067)","v":""},{"$f":"IF('Generated list'!D4067=\"\",\"\",'Generated list'!D4067)","v":""}]
[null,{"$f":"IF('Generated list'!B4068=\"\",\"\",'Generated list'!B4068)","v":""},{"$f":"IF('Generated list'!C4068=\"\",\"\",'Generated list'!C4068)","v":""},{"$f":"IF('Generated list'!D4068=\"\",\"\",'Generated list'!D4068)","v":""}]
[null,{"$f":"IF('Generated list'!B4069=\"\",\"\",'Generated list'!B4069)","v":""},{"$f":"IF('Generated list'!C4069=\"\",\"\",'Generated list'!C4069)","v":""},{"$f":"IF('Generated list'!D4069=\"\",\"\",'Generated list'!D4069)","v":""}]
[null,{"$f":"IF('Generated list'!B4070=\"\",\"\",'Generated list'!B4070)","v":""},{"$f":"IF('Generated list'!C4070=\"\",\"\",'Generated list'!C4070)","v":""},{"$f":"IF('Generated list'!D4070=\"\",\"\",'Generated list'!D4070)","v":""}]
[null,{"$f":"IF('Generated list'!B4071=\"\",\"\",'Generated list'!B4071)","v":""},{"$f":"IF('Generated list'!C4071=\"\",\"\",'Generated list'!C4071)","v":""},{"$f":"IF('Generated list'!D4071=\"\",\"\",'Generated list'!D4071)","v":""}]
[null,{"$f":"IF('Generated list'!B4072=\"\",\"\",'Generated list'!B4072)","v":""},{"$f":"IF('Generated list'!C4072=\"\",\"\",'Generated list'!C4072)","v":""},{"$f":"IF('Generated list'!D4072=\"\",\"\",'Generated list'!D4072)","v":""}]
[null,{"$f":"IF('Generated list'!B4073=\"\",\"\",'Generated list'!B4073)","v":""},{"$f":"IF('Generated list'!C4073=\"\",\"\",'Generated list'!C4073)","v":""},{"$f":"IF('Generated list'!D4073=\"\",\"\",'Generated list'!D4073)","v":""}]
[null,{"$f":"IF('Generated list'!B4074=\"\",\"\",'Generated list'!B4074)","v":""},{"$f":"IF('Generated list'!C4074=\"\",\"\",'Generated list'!C4074)","v":""},{"$f":"IF('Generated list'!D4074=\"\",\"\",'Generated list'!D4074)","v":""}]
[null,{"$f":"IF('Generated list'!B4075=\"\",\"\",'Generated list'!B4075)","v":""},{"$f":"IF('Generated list'!C4075=\"\",\"\",'Generated list'!C4075)","v":""},{"$f":"IF('Generated list'!D4075=\"\",\"\",'Generated list'!D4075)","v":""}]
[null,{"$f":"IF('Generated list'!B4076=\"\",\"\",'Generated list'!B4076)","v":""},{"$f":"IF('Generated list'!C4076=\"\",\"\",'Generated list'!C4076)","v":""},{"$f":"IF('Generated list'!D4076=\"\",\"\",'Generated list'!D4076)","v":""}]
[null,{"$f":"IF('Generated list'!B4077=\"\",\"\",'Generated list'!B4077)","v":""},{"$f":"IF('Generated list'!C4077=\"\",\"\",'Generated list'!C4077)","v":""},{"$f":"IF('Generated list'!D4077=\"\",\"\",'Generated list'!D4077)","v":""}]
[null,{"$f":"IF('Generated list'!B4078=\"\",\"\",'Generated list'!B4078)","v":""},{"$f":"IF('Generated list'!C4078=\"\",\"\",'Generated list'!C4078)","v":""},{"$f":"IF('Generated list'!D4078=\"\",\"\",'Generated list'!D4078)","v":""}]
[null,{"$f":"IF('Generated list'!B4079=\"\",\"\",'Generated list'!B4079)","v":""},{"$f":"IF('Generated list'!C4079=\"\",\"\",'Generated list'!C4079)","v":""},{"$f":"IF('Generated list'!D4079=\"\",\"\",'Generated list'!D4079)","v":""}]
[null,{"$f":"IF('Generated list'!B4080=\"\",\"\",'Generated list'!B4080)","v":""},{"$f":"IF('Generated list'!C4080=\"\",\"\",'Generated list'!C4080)","v":""},{"$f":"IF('Generated list'!D4080=\"\",\"\",'Generated list'!D4080)","v":""}]
[null,{"$f":"IF('Generated list'!B4081=\"\",\"\",'Generated list'!B4081)","v":""},{"$f":"IF('Generated list'!C4081=\"\",\"\",'Generated list'!C4081)","v":""},{"$f":"IF('Generated list'!D4081=\"\",\"\",'Generated list'!D4081)","v":""}]
[null,{"$f":"IF('Generated list'!B4082=\"\",\"\",'Generated list'!B4082)","v":""},{"$f":"IF('Generated list'!C4082=\"\",\"\",'Generated list'!C4082)","v":""},{"$f":"IF('Generated list'!D4082=\"\",\"\",'Generated list'!D4082)","v":""}]
[null,{"$f":"IF('Generated list'!B4083=\"\",\"\",'Generated list'!B4083)","v":""},{"$f":"IF('Generated list'!C4083=\"\",\"\",'Generated list'!C4083)","v":""},{"$f":"IF('Generated list'!D4083=\"\",\"\",'Generated list'!D4083)","v":""}]
[null,{"$f":"IF('Generated list'!B4084=\"\",\"\",'Generated list'!B4084)","v":""},{"$f":"IF('Generated list'!C4084=\"\",\"\",'Generated list'!C4084)","v":""},{"$f":"IF('Generated list'!D4084=\"\",\"\",'Generated list'!D4084)","v":""}]
[null,{"$f":"IF('Generated list'!B4085=\"\",\"\",'Generated list'!B4085)","v":""},{"$f":"IF('Generated list'!C4085=\"\",\"\",'Generated list'!C4085)","v":""},{"$f":"IF('Generated list'!D4085=\"\",\"\",'Generated list'!D4085)","v":""}]
[null,{"$f":"IF('Generated list'!B4086=\"\",\"\",'Generated list'!B4086)","v":""},{"$f":"IF('Generated list'!C4086=\"\",\"\",'Generated list'!C4086)","v":""},{"$f":"IF('Generated list'!D4086=\"\",\"\",'Generated list'!D4086)","v":""}]
[null,{"$f":"IF('Generated list'!B4087=\"\",\"\",'Generated list'!B4087)","v":""},{"$f":"IF('Generated list'!C4087=\"\",\"\",'Generated list'!C4087)","v":""},{"$f":"IF('Generated list'!D4087=\"\",\"\",'Generated list'!D4087)","v":""}]
[null,{"$f":"IF('Generated list'!B4088=\"\",\"\",'Generated list'!B4088)","v":""},{"$f":"IF('Generated list'!C4088=\"\",\"\",'Generated list'!C4088)","v":""},{"$f":"IF('Generated list'!D4088=\"\",\"\",'Generated list'!D4088)","v":""}]
[null,{"$f":"IF('Generated list'!B4089=\"\",\"\",'Generated list'!B4089)","v":""},{"$f":"IF('Generated list'!C4089=\"\",\"\",'Generated list'!C4089)","v":""},{"$f":"IF('Generated list'!D4089=\"\",\"\",'Generated list'!D4089)","v":""}]
[null,{"$f":"IF('Generated list'!B4090=\"\",\"\",'Generated list'!B4090)","v":""},{"$f":"IF('Generated list'!C4090=\"\",\"\",'Generated list'!C4090)","v":""},{"$f":"IF('Generated list'!D4090=\"\",\"\",'Generated list'!D4090)","v":""}]
[null,{"$f":"IF('Generated list'!B4091=\"\",\"\",'Generated list'!B4091)","v":""},{"$f":"IF('Generated list'!C4091=\"\",\"\",'Generated list'!C4091)","v":""},{"$f":"IF('Generated list'!D4091=\"\",\"\",'Generated list'!D4091)","v":""}]
[null,{"$f":"IF('Generated list'!B4092=\"\",\"\",'Generated list'!B4092)","v":""},{"$f":"IF('Generated list'!C4092=\"\",\"\",'Generated list'!C4092)","v":""},{"$f":"IF('Generated list'!D4092=\"\",\"\",'Generated list'!D4092)","v":""}]
[null,{"$f":"IF('Generated list'!B4093=\"\",\"\",'Generated list'!B4093)","v":""},{"$f":"IF('Generated list'!C4093=\"\",\"\",'Generated list'!C4093)","v":""},{"$f":"IF('Generated list'!D4093=\"\",\"\",'Generated list'!D4093)","v":""}]
[null,{"$f":"IF('Generated list'!B4094=\"\",\"\",'Generated list'!B4094)","v":""},{"$f":"IF('Generated list'!C4094=\"\",\"\",'Generated list'!C4094)","v":""},{"$f":"IF('Generated list'!D4094=\"\",\"\",'Generated list'!D4094)","v":""}]
[null,{"$f":"IF('Generated list'!B4095=\"\",\"\",'Generated list'!B4095)","v":""},{"$f":"IF('Generated list'!C4095=\"\",\"\",'Generated list'!C4095)","v":""},{"$f":"IF('Generated list'!D4095=\"\",\"\",'Generated list'!D4095)","v":""}]
[null,{"$f":"IF('Generated list'!B4096=\"\",\"\",'Generated list'!B4096)","v":""},{"$f":"IF('Generated list'!C4096=\"\",\"\",'Generated list'!C4096)","v":""},{"$f":"IF('Generated list'!D4096=\"\",\"\",'Generated list'!D4096)","v":""}]
[null,{"$f":"IF('Generated list'!B4097=\"\",\"\",'Generated list'!B4097)","v":""},{"$f":"IF('Generated list'!C4097=\"\",\"\",'Generated list'!C4097)","v":""},{"$f":"IF('Generated list'!D4097=\"\",\"\",'Generated list'!D4097)","v":""}]
[null,{"$f":"IF('Generated list'!B4098=\"\",\"\",'Generated list'!B4098)","v":""},{"$f":"IF('Generated list'!C4098=\"\",\"\",'Generated list'!C4098)","v":""},{"$f":"IF('Generated list'!D4098=\"\",\"\",'Generated list'!D4098)","v":""}]
[null,{"$f":"IF('Generated list'!B4099=\"\",\"\",'Generated list'!B4099)","v":""},{"$f":"IF('Generated list'!C4099=\"\",\"\",'Generated list'!C4099)","v":""},{"$f":"IF('Generated list'!D4099=\"\",\"\",'Generated list'!D4099)","v":""}]
[null,{"$f":"IF('Generated list'!B4100=\"\",\"\",'Generated list'!B4100)","v":""},{"$f":"IF('Generated list'!C4100=\"\",\"\",'Generated list'!C4100)","v":""},{"$f":"IF('Generated list'!D4100=\"\",\"\",'Generated list'!D4100)","v":""}]
[null,{"$f":"IF('Generated list'!B4101=\"\",\"\",'Generated list'!B4101)","v":""},{"$f":"IF('Generated list'!C4101=\"\",\"\",'Generated list'!C4101)","v":""},{"$f":"IF('Generated list'!D4101=\"\",\"\",'Generated list'!D4101)","v":""}]
[null,{"$f":"IF('Generated list'!B4102=\"\",\"\",'Generated list'!B4102)","v":""},{"$f":"IF('Generated list'!C4102=\"\",\"\",'Generated list'!C4102)","v":""},{"$f":"IF('Generated list'!D4102=\"\",\"\",'Generated list'!D4102)","v":""}]
[null,{"$f":"IF('Generated list'!B4103=\"\",\"\",'Generated list'!B4103)","v":""},{"$f":"IF('Generated list'!C4103=\"\",\"\",'Generated list'!C4103)","v":""},{"$f":"IF('Generated list'!D4103=\"\",\"\",'Generated list'!D4103)","v":""}]
[null,{"$f":"IF('Generated list'!B4104=\"\",\"\",'Generated list'!B4104)","v":""},{"$f":"IF('Generated list'!C4104=\"\",\"\",'Generated list'!C4104)","v":""},{"$f":"IF('Generated list'!D4104=\"\",\"\",'Generated list'!D4104)","v":""}]
[null,{"$f":"IF('Generated list'!B4105=\"\",\"\",'Generated list'!B4105)","v":""},{"$f":"IF('Generated list'!C4105=\"\",\"\",'Generated list'!C4105)","v":""},{"$f":"IF('Generated list'!D4105=\"\",\"\",'Generated list'!D4105)","v":""}]
[null,{"$f":"IF('Generated list'!B4106=\"\",\"\",'Generated list'!B4106)","v":""},{"$f":"IF('Generated list'!C4106=\"\",\"\",'Generated list'!C4106)","v":""},{"$f":"IF('Generated list'!D4106=\"\",\"\",'Generated list'!D4106)","v":""}]
[null,{"$f":"IF('Generated list'!B4107=\"\",\"\",'Generated list'!B4107)","v":""},{"$f":"IF('Generated list'!C4107=\"\",\"\",'Generated list'!C4107)","v":""},{"$f":"IF('Generated list'!D4107=\"\",\"\",'Generated list'!D4107)","v":""}]
[null,{"$f":"IF('Generated list'!B4108=\"\",\"\",'Generated list'!B4108)","v":""},{"$f":"IF('Generated list'!C4108=\"\",\"\",'Generated list'!C4108)","v":""},{"$f":"IF('Generated list'!D4108=\"\",\"\",'Generated list'!D4108)","v":""}]
[null,{"$f":"IF('Generated list'!B4109=\"\",\"\",'Generated list'!B4109)","v":""},{"$f":"IF('Generated list'!C4109=\"\",\"\",'Generated list'!C4109)","v":""},{"$f":"IF('Generated list'!D4109=\"\",\"\",'Generated list'!D4109)","v":""}]
[null,{"$f":"IF('Generated list'!B4110=\"\",\"\",'Generated list'!B4110)","v":""},{"$f":"IF('Generated list'!C4110=\"\",\"\",'Generated list'!C4110)","v":""},{"$f":"IF('Generated list'!D4110=\"\",\"\",'Generated list'!D4110)","v":""}]
[null,{"$f":"IF('Generated list'!B4111=\"\",\"\",'Generated list'!B4111)","v":""},{"$f":"IF('Generated list'!C4111=\"\",\"\",'Generated list'!C4111)","v":""},{"$f":"IF('Generated list'!D4111=\"\",\"\",'Generated list'!D4111)","v":""}]
[null,{"$f":"IF('Generated list'!B4112=\"\",\"\",'Generated list'!B4112)","v":""},{"$f":"IF('Generated list'!C4112=\"\",\"\",'Generated list'!C4112)","v":""},{"$f":"IF('Generated list'!D4112=\"\",\"\",'Generated list'!D4112)","v":""}]
[null,{"$f":"IF('Generated list'!B4113=\"\",\"\",'Generated list'!B4113)","v":""},{"$f":"IF('Generated list'!C4113=\"\",\"\",'Generated list'!C4113)","v":""},{"$f":"IF('Generated list'!D4113=\"\",\"\",'Generated list'!D4113)","v":""}]
[null,{"$f":"IF('Generated list'!B4114=\"\",\"\",'Generated list'!B4114)","v":""},{"$f":"IF('Generated list'!C4114=\"\",\"\",'Generated list'!C4114)","v":""},{"$f":"IF('Generated list'!D4114=\"\",\"\",'Generated list'!D4114)","v":""}]
[null,{"$f":"IF('Generated list'!B4115=\"\",\"\",'Generated list'!B4115)","v":""},{"$f":"IF('Generated list'!C4115=\"\",\"\",'Generated list'!C4115)","v":""},{"$f":"IF('Generated list'!D4115=\"\",\"\",'Generated list'!D4115)","v":""}]
[null,{"$f":"IF('Generated list'!B4116=\"\",\"\",'Generated list'!B4116)","v":""},{"$f":"IF('Generated list'!C4116=\"\",\"\",'Generated list'!C4116)","v":""},{"$f":"IF('Generated list'!D4116=\"\",\"\",'Generated list'!D4116)","v":""}]
[null,{"$f":"IF('Generated list'!B4117=\"\",\"\",'Generated list'!B4117)","v":""},{"$f":"IF('Generated list'!C4117=\"\",\"\",'Generated list'!C4117)","v":""},{"$f":"IF('Generated list'!D4117=\"\",\"\",'Generated list'!D4117)","v":""}]
[null,{"$f":"IF('Generated list'!B4118=\"\",\"\",'Generated list'!B4118)","v":""},{"$f":"IF('Generated list'!C4118=\"\",\"\",'Generated list'!C4118)","v":""},{"$f":"IF('Generated list'!D4118=\"\",\"\",'Generated list'!D4118)","v":""}]
[null,{"$f":"IF('Generated list'!B4119=\"\",\"\",'Generated list'!B4119)","v":""},{"$f":"IF('Generated list'!C4119=\"\",\"\",'Generated list'!C4119)","v":""},{"$f":"IF('Generated list'!D4119=\"\",\"\",'Generated list'!D4119)","v":""}]
[null,{"$f":"IF('Generated list'!B4120=\"\",\"\",'Generated list'!B4120)","v":""},{"$f":"IF('Generated list'!C4120=\"\",\"\",'Generated list'!C4120)","v":""},{"$f":"IF('Generated list'!D4120=\"\",\"\",'Generated list'!D4120)","v":""}]
[null,{"$f":"IF('Generated list'!B4121=\"\",\"\",'Generated list'!B4121)","v":""},{"$f":"IF('Generated list'!C4121=\"\",\"\",'Generated list'!C4121)","v":""},{"$f":"IF('Generated list'!D4121=\"\",\"\",'Generated list'!D4121)","v":""}]
[null,{"$f":"IF('Generated list'!B4122=\"\",\"\",'Generated list'!B4122)","v":""},{"$f":"IF('Generated list'!C4122=\"\",\"\",'Generated list'!C4122)","v":""},{"$f":"IF('Generated list'!D4122=\"\",\"\",'Generated list'!D4122)","v":""}]
[null,{"$f":"IF('Generated list'!B4123=\"\",\"\",'Generated list'!B4123)","v":""},{"$f":"IF('Generated list'!C4123=\"\",\"\",'Generated list'!C4123)","v":""},{"$f":"IF('Generated list'!D4123=\"\",\"\",'Generated list'!D4123)","v":""}]
[null,{"$f":"IF('Generated list'!B4124=\"\",\"\",'Generated list'!B4124)","v":""},{"$f":"IF('Generated list'!C4124=\"\",\"\",'Generated list'!C4124)","v":""},{"$f":"IF('Generated list'!D4124=\"\",\"\",'Generated list'!D4124)","v":""}]
[null,{"$f":"IF('Generated list'!B4125=\"\",\"\",'Generated list'!B4125)","v":""},{"$f":"IF('Generated list'!C4125=\"\",\"\",'Generated list'!C4125)","v":""},{"$f":"IF('Generated list'!D4125=\"\",\"\",'Generated list'!D4125)","v":""}]
[null,{"$f":"IF('Generated list'!B4126=\"\",\"\",'Generated list'!B4126)","v":""},{"$f":"IF('Generated list'!C4126=\"\",\"\",'Generated list'!C4126)","v":""},{"$f":"IF('Generated list'!D4126=\"\",\"\",'Generated list'!D4126)","v":""}]
[null,{"$f":"IF('Generated list'!B4127=\"\",\"\",'Generated list'!B4127)","v":""},{"$f":"IF('Generated list'!C4127=\"\",\"\",'Generated list'!C4127)","v":""},{"$f":"IF('Generated list'!D4127=\"\",\"\",'Generated list'!D4127)","v":""}]
[null,{"$f":"IF('Generated list'!B4128=\"\",\"\",'Generated list'!B4128)","v":""},{"$f":"IF('Generated list'!C4128=\"\",\"\",'Generated list'!C4128)","v":""},{"$f":"IF('Generated list'!D4128=\"\",\"\",'Generated list'!D4128)","v":""}]
[null,{"$f":"IF('Generated list'!B4129=\"\",\"\",'Generated list'!B4129)","v":""},{"$f":"IF('Generated list'!C4129=\"\",\"\",'Generated list'!C4129)","v":""},{"$f":"IF('Generated list'!D4129=\"\",\"\",'Generated list'!D4129)","v":""}]
[null,{"$f":"IF('Generated list'!B4130=\"\",\"\",'Generated list'!B4130)","v":""},{"$f":"IF('Generated list'!C4130=\"\",\"\",'Generated list'!C4130)","v":""},{"$f":"IF('Generated list'!D4130=\"\",\"\",'Generated list'!D4130)","v":""}]
[null,{"$f":"IF('Generated list'!B4131=\"\",\"\",'Generated list'!B4131)","v":""},{"$f":"IF('Generated list'!C4131=\"\",\"\",'Generated list'!C4131)","v":""},{"$f":"IF('Generated list'!D4131=\"\",\"\",'Generated list'!D4131)","v":""}]
[null,{"$f":"IF('Generated list'!B4132=\"\",\"\",'Generated list'!B4132)","v":""},{"$f":"IF('Generated list'!C4132=\"\",\"\",'Generated list'!C4132)","v":""},{"$f":"IF('Generated list'!D4132=\"\",\"\",'Generated list'!D4132)","v":""}]
[null,{"$f":"IF('Generated list'!B4133=\"\",\"\",'Generated list'!B4133)","v":""},{"$f":"IF('Generated list'!C4133=\"\",\"\",'Generated list'!C4133)","v":""},{"$f":"IF('Generated list'!D4133=\"\",\"\",'Generated list'!D4133)","v":""}]
[null,{"$f":"IF('Generated list'!B4134=\"\",\"\",'Generated list'!B4134)","v":""},{"$f":"IF('Generated list'!C4134=\"\",\"\",'Generated list'!C4134)","v":""},{"$f":"IF('Generated list'!D4134=\"\",\"\",'Generated list'!D4134)","v":""}]
[null,{"$f":"IF('Generated list'!B4135=\"\",\"\",'Generated list'!B4135)","v":""},{"$f":"IF('Generated list'!C4135=\"\",\"\",'Generated list'!C4135)","v":""},{"$f":"IF('Generated list'!D4135=\"\",\"\",'Generated list'!D4135)","v":""}]
[null,{"$f":"IF('Generated list'!B4136=\"\",\"\",'Generated list'!B4136)","v":""},{"$f":"IF('Generated list'!C4136=\"\",\"\",'Generated list'!C4136)","v":""},{"$f":"IF('Generated list'!D4136=\"\",\"\",'Generated list'!D4136)","v":""}]
[null,{"$f":"IF('Generated list'!B4137=\"\",\"\",'Generated list'!B4137)","v":""},{"$f":"IF('Generated list'!C4137=\"\",\"\",'Generated list'!C4137)","v":""},{"$f":"IF('Generated list'!D4137=\"\",\"\",'Generated list'!D4137)","v":""}]
[null,{"$f":"IF('Generated list'!B4138=\"\",\"\",'Generated list'!B4138)","v":""},{"$f":"IF('Generated list'!C4138=\"\",\"\",'Generated list'!C4138)","v":""},{"$f":"IF('Generated list'!D4138=\"\",\"\",'Generated list'!D4138)","v":""}]
[null,{"$f":"IF('Generated list'!B4139=\"\",\"\",'Generated list'!B4139)","v":""},{"$f":"IF('Generated list'!C4139=\"\",\"\",'Generated list'!C4139)","v":""},{"$f":"IF('Generated list'!D4139=\"\",\"\",'Generated list'!D4139)","v":""}]
[null,{"$f":"IF('Generated list'!B4140=\"\",\"\",'Generated list'!B4140)","v":""},{"$f":"IF('Generated list'!C4140=\"\",\"\",'Generated list'!C4140)","v":""},{"$f":"IF('Generated list'!D4140=\"\",\"\",'Generated list'!D4140)","v":""}]
[null,{"$f":"IF('Generated list'!B4141=\"\",\"\",'Generated list'!B4141)","v":""},{"$f":"IF('Generated list'!C4141=\"\",\"\",'Generated list'!C4141)","v":""},{"$f":"IF('Generated list'!D4141=\"\",\"\",'Generated list'!D4141)","v":""}]
[null,{"$f":"IF('Generated list'!B4142=\"\",\"\",'Generated list'!B4142)","v":""},{"$f":"IF('Generated list'!C4142=\"\",\"\",'Generated list'!C4142)","v":""},{"$f":"IF('Generated list'!D4142=\"\",\"\",'Generated list'!D4142)","v":""}]
[null,{"$f":"IF('Generated list'!B4143=\"\",\"\",'Generated list'!B4143)","v":""},{"$f":"IF('Generated list'!C4143=\"\",\"\",'Generated list'!C4143)","v":""},{"$f":"IF('Generated list'!D4143=\"\",\"\",'Generated list'!D4143)","v":""}]
[null,{"$f":"IF('Generated list'!B4144=\"\",\"\",'Generated list'!B4144)","v":""},{"$f":"IF('Generated list'!C4144=\"\",\"\",'Generated list'!C4144)","v":""},{"$f":"IF('Generated list'!D4144=\"\",\"\",'Generated list'!D4144)","v":""}]
[null,{"$f":"IF('Generated list'!B4145=\"\",\"\",'Generated list'!B4145)","v":""},{"$f":"IF('Generated list'!C4145=\"\",\"\",'Generated list'!C4145)","v":""},{"$f":"IF('Generated list'!D4145=\"\",\"\",'Generated list'!D4145)","v":""}]
[null,{"$f":"IF('Generated list'!B4146=\"\",\"\",'Generated list'!B4146)","v":""},{"$f":"IF('Generated list'!C4146=\"\",\"\",'Generated list'!C4146)","v":""},{"$f":"IF('Generated list'!D4146=\"\",\"\",'Generated list'!D4146)","v":""}]
[null,{"$f":"IF('Generated list'!B4147=\"\",\"\",'Generated list'!B4147)","v":""},{"$f":"IF('Generated list'!C4147=\"\",\"\",'Generated list'!C4147)","v":""},{"$f":"IF('Generated list'!D4147=\"\",\"\",'Generated list'!D4147)","v":""}]
[null,{"$f":"IF('Generated list'!B4148=\"\",\"\",'Generated list'!B4148)","v":""},{"$f":"IF('Generated list'!C4148=\"\",\"\",'Generated list'!C4148)","v":""},{"$f":"IF('Generated list'!D4148=\"\",\"\",'Generated list'!D4148)","v":""}]
[null,{"$f":"IF('Generated list'!B4149=\"\",\"\",'Generated list'!B4149)","v":""},{"$f":"IF('Generated list'!C4149=\"\",\"\",'Generated list'!C4149)","v":""},{"$f":"IF('Generated list'!D4149=\"\",\"\",'Generated list'!D4149)","v":""}]
[null,{"$f":"IF('Generated list'!B4150=\"\",\"\",'Generated list'!B4150)","v":""},{"$f":"IF('Generated list'!C4150=\"\",\"\",'Generated list'!C4150)","v":""},{"$f":"IF('Generated list'!D4150=\"\",\"\",'Generated list'!D4150)","v":""}]
[null,{"$f":"IF('Generated list'!B4151=\"\",\"\",'Generated list'!B4151)","v":""},{"$f":"IF('Generated list'!C4151=\"\",\"\",'Generated list'!C4151)","v":""},{"$f":"IF('Generated list'!D4151=\"\",\"\",'Generated list'!D4151)","v":""}]
[null,{"$f":"IF('Generated list'!B4152=\"\",\"\",'Generated list'!B4152)","v":""},{"$f":"IF('Generated list'!C4152=\"\",\"\",'Generated list'!C4152)","v":""},{"$f":"IF('Generated list'!D4152=\"\",\"\",'Generated list'!D4152)","v":""}]
[null,{"$f":"IF('Generated list'!B4153=\"\",\"\",'Generated list'!B4153)","v":""},{"$f":"IF('Generated list'!C4153=\"\",\"\",'Generated list'!C4153)","v":""},{"$f":"IF('Generated list'!D4153=\"\",\"\",'Generated list'!D4153)","v":""}]
[null,{"$f":"IF('Generated list'!B4154=\"\",\"\",'Generated list'!B4154)","v":""},{"$f":"IF('Generated list'!C4154=\"\",\"\",'Generated list'!C4154)","v":""},{"$f":"IF('Generated list'!D4154=\"\",\"\",'Generated list'!D4154)","v":""}]
[null,{"$f":"IF('Generated list'!B4155=\"\",\"\",'Generated list'!B4155)","v":""},{"$f":"IF('Generated list'!C4155=\"\",\"\",'Generated list'!C4155)","v":""},{"$f":"IF('Generated list'!D4155=\"\",\"\",'Generated list'!D4155)","v":""}]
[null,{"$f":"IF('Generated list'!B4156=\"\",\"\",'Generated list'!B4156)","v":""},{"$f":"IF('Generated list'!C4156=\"\",\"\",'Generated list'!C4156)","v":""},{"$f":"IF('Generated list'!D4156=\"\",\"\",'Generated list'!D4156)","v":""}]
[null,{"$f":"IF('Generated list'!B4157=\"\",\"\",'Generated list'!B4157)","v":""},{"$f":"IF('Generated list'!C4157=\"\",\"\",'Generated list'!C4157)","v":""},{"$f":"IF('Generated list'!D4157=\"\",\"\",'Generated list'!D4157)","v":""}]
[null,{"$f":"IF('Generated list'!B4158=\"\",\"\",'Generated list'!B4158)","v":""},{"$f":"IF('Generated list'!C4158=\"\",\"\",'Generated list'!C4158)","v":""},{"$f":"IF('Generated list'!D4158=\"\",\"\",'Generated list'!D4158)","v":""}]
[null,{"$f":"IF('Generated list'!B4159=\"\",\"\",'Generated list'!B4159)","v":""},{"$f":"IF('Generated list'!C4159=\"\",\"\",'Generated list'!C4159)","v":""},{"$f":"IF('Generated list'!D4159=\"\",\"\",'Generated list'!D4159)","v":""}]
[null,{"$f":"IF('Generated list'!B4160=\"\",\"\",'Generated list'!B4160)","v":""},{"$f":"IF('Generated list'!C4160=\"\",\"\",'Generated list'!C4160)","v":""},{"$f":"IF('Generated list'!D4160=\"\",\"\",'Generated list'!D4160)","v":""}]
[null,{"$f":"IF('Generated list'!B4161=\"\",\"\",'Generated list'!B4161)","v":""},{"$f":"IF('Generated list'!C4161=\"\",\"\",'Generated list'!C4161)","v":""},{"$f":"IF('Generated list'!D4161=\"\",\"\",'Generated list'!D4161)","v":""}]
[null,{"$f":"IF('Generated list'!B4162=\"\",\"\",'Generated list'!B4162)","v":""},{"$f":"IF('Generated list'!C4162=\"\",\"\",'Generated list'!C4162)","v":""},{"$f":"IF('Generated list'!D4162=\"\",\"\",'Generated list'!D4162)","v":""}]
[null,{"$f":"IF('Generated list'!B4163=\"\",\"\",'Generated list'!B4163)","v":""},{"$f":"IF('Generated list'!C4163=\"\",\"\",'Generated list'!C4163)","v":""},{"$f":"IF('Generated list'!D4163=\"\",\"\",'Generated list'!D4163)","v":""}]
[null,{"$f":"IF('Generated list'!B4164=\"\",\"\",'Generated list'!B4164)","v":""},{"$f":"IF('Generated list'!C4164=\"\",\"\",'Generated list'!C4164)","v":""},{"$f":"IF('Generated list'!D4164=\"\",\"\",'Generated list'!D4164)","v":""}]
[null,{"$f":"IF('Generated list'!B4165=\"\",\"\",'Generated list'!B4165)","v":""},{"$f":"IF('Generated list'!C4165=\"\",\"\",'Generated list'!C4165)","v":""},{"$f":"IF('Generated list'!D4165=\"\",\"\",'Generated list'!D4165)","v":""}]
[null,{"$f":"IF('Generated list'!B4166=\"\",\"\",'Generated list'!B4166)","v":""},{"$f":"IF('Generated list'!C4166=\"\",\"\",'Generated list'!C4166)","v":""},{"$f":"IF('Generated list'!D4166=\"\",\"\",'Generated list'!D4166)","v":""}]
[null,{"$f":"IF('Generated list'!B4167=\"\",\"\",'Generated list'!B4167)","v":""},{"$f":"IF('Generated list'!C4167=\"\",\"\",'Generated list'!C4167)","v":""},{"$f":"IF('Generated list'!D4167=\"\",\"\",'Generated list'!D4167)","v":""}]
[null,{"$f":"IF('Generated list'!B4168=\"\",\"\",'Generated list'!B4168)","v":""},{"$f":"IF('Generated list'!C4168=\"\",\"\",'Generated list'!C4168)","v":""},{"$f":"IF('Generated list'!D4168=\"\",\"\",'Generated list'!D4168)","v":""}]
[null,{"$f":"IF('Generated list'!B4169=\"\",\"\",'Generated list'!B4169)","v":""},{"$f":"IF('Generated list'!C4169=\"\",\"\",'Generated list'!C4169)","v":""},{"$f":"IF('Generated list'!D4169=\"\",\"\",'Generated list'!D4169)","v":""}]
[null,{"$f":"IF('Generated list'!B4170=\"\",\"\",'Generated list'!B4170)","v":""},{"$f":"IF('Generated list'!C4170=\"\",\"\",'Generated list'!C4170)","v":""},{"$f":"IF('Generated list'!D4170=\"\",\"\",'Generated list'!D4170)","v":""}]
[null,{"$f":"IF('Generated list'!B4171=\"\",\"\",'Generated list'!B4171)","v":""},{"$f":"IF('Generated list'!C4171=\"\",\"\",'Generated list'!C4171)","v":""},{"$f":"IF('Generated list'!D4171=\"\",\"\",'Generated list'!D4171)","v":""}]
[null,{"$f":"IF('Generated list'!B4172=\"\",\"\",'Generated list'!B4172)","v":""},{"$f":"IF('Generated list'!C4172=\"\",\"\",'Generated list'!C4172)","v":""},{"$f":"IF('Generated list'!D4172=\"\",\"\",'Generated list'!D4172)","v":""}]
[null,{"$f":"IF('Generated list'!B4173=\"\",\"\",'Generated list'!B4173)","v":""},{"$f":"IF('Generated list'!C4173=\"\",\"\",'Generated list'!C4173)","v":""},{"$f":"IF('Generated list'!D4173=\"\",\"\",'Generated list'!D4173)","v":""}]
[null,{"$f":"IF('Generated list'!B4174=\"\",\"\",'Generated list'!B4174)","v":""},{"$f":"IF('Generated list'!C4174=\"\",\"\",'Generated list'!C4174)","v":""},{"$f":"IF('Generated list'!D4174=\"\",\"\",'Generated list'!D4174)","v":""}]
[null,{"$f":"IF('Generated list'!B4175=\"\",\"\",'Generated list'!B4175)","v":""},{"$f":"IF('Generated list'!C4175=\"\",\"\",'Generated list'!C4175)","v":""},{"$f":"IF('Generated list'!D4175=\"\",\"\",'Generated list'!D4175)","v":""}]
[null,{"$f":"IF('Generated list'!B4176=\"\",\"\",'Generated list'!B4176)","v":""},{"$f":"IF('Generated list'!C4176=\"\",\"\",'Generated list'!C4176)","v":""},{"$f":"IF('Generated list'!D4176=\"\",\"\",'Generated list'!D4176)","v":""}]
[null,{"$f":"IF('Generated list'!B4177=\"\",\"\",'Generated list'!B4177)","v":""},{"$f":"IF('Generated list'!C4177=\"\",\"\",'Generated list'!C4177)","v":""},{"$f":"IF('Generated list'!D4177=\"\",\"\",'Generated list'!D4177)","v":""}]
[null,{"$f":"IF('Generated list'!B4178=\"\",\"\",'Generated list'!B4178)","v":""},{"$f":"IF('Generated list'!C4178=\"\",\"\",'Generated list'!C4178)","v":""},{"$f":"IF('Generated list'!D4178=\"\",\"\",'Generated list'!D4178)","v":""}]
[null,{"$f":"IF('Generated list'!B4179=\"\",\"\",'Generated list'!B4179)","v":""},{"$f":"IF('Generated list'!C4179=\"\",\"\",'Generated list'!C4179)","v":""},{"$f":"IF('Generated list'!D4179=\"\",\"\",'Generated list'!D4179)","v":""}]
[null,{"$f":"IF('Generated list'!B4180=\"\",\"\",'Generated list'!B4180)","v":""},{"$f":"IF('Generated list'!C4180=\"\",\"\",'Generated list'!C4180)","v":""},{"$f":"IF('Generated list'!D4180=\"\",\"\",'Generated list'!D4180)","v":""}]
[null,{"$f":"IF('Generated list'!B4181=\"\",\"\",'Generated list'!B4181)","v":""},{"$f":"IF('Generated list'!C4181=\"\",\"\",'Generated list'!C4181)","v":""},{"$f":"IF('Generated list'!D4181=\"\",\"\",'Generated list'!D4181)","v":""}]
[null,{"$f":"IF('Generated list'!B4182=\"\",\"\",'Generated list'!B4182)","v":""},{"$f":"IF('Generated list'!C4182=\"\",\"\",'Generated list'!C4182)","v":""},{"$f":"IF('Generated list'!D4182=\"\",\"\",'Generated list'!D4182)","v":""}]
[null,{"$f":"IF('Generated list'!B4183=\"\",\"\",'Generated list'!B4183)","v":""},{"$f":"IF('Generated list'!C4183=\"\",\"\",'Generated list'!C4183)","v":""},{"$f":"IF('Generated list'!D4183=\"\",\"\",'Generated list'!D4183)","v":""}]
[null,{"$f":"IF('Generated list'!B4184=\"\",\"\",'Generated list'!B4184)","v":""},{"$f":"IF('Generated list'!C4184=\"\",\"\",'Generated list'!C4184)","v":""},{"$f":"IF('Generated list'!D4184=\"\",\"\",'Generated list'!D4184)","v":""}]
[null,{"$f":"IF('Generated list'!B4185=\"\",\"\",'Generated list'!B4185)","v":""},{"$f":"IF('Generated list'!C4185=\"\",\"\",'Generated list'!C4185)","v":""},{"$f":"IF('Generated list'!D4185=\"\",\"\",'Generated list'!D4185)","v":""}]
[null,{"$f":"IF('Generated list'!B4186=\"\",\"\",'Generated list'!B4186)","v":""},{"$f":"IF('Generated list'!C4186=\"\",\"\",'Generated list'!C4186)","v":""},{"$f":"IF('Generated list'!D4186=\"\",\"\",'Generated list'!D4186)","v":""}]
[null,{"$f":"IF('Generated list'!B4187=\"\",\"\",'Generated list'!B4187)","v":""},{"$f":"IF('Generated list'!C4187=\"\",\"\",'Generated list'!C4187)","v":""},{"$f":"IF('Generated list'!D4187=\"\",\"\",'Generated list'!D4187)","v":""}]
[null,{"$f":"IF('Generated list'!B4188=\"\",\"\",'Generated list'!B4188)","v":""},{"$f":"IF('Generated list'!C4188=\"\",\"\",'Generated list'!C4188)","v":""},{"$f":"IF('Generated list'!D4188=\"\",\"\",'Generated list'!D4188)","v":""}]
[null,{"$f":"IF('Generated list'!B4189=\"\",\"\",'Generated list'!B4189)","v":""},{"$f":"IF('Generated list'!C4189=\"\",\"\",'Generated list'!C4189)","v":""},{"$f":"IF('Generated list'!D4189=\"\",\"\",'Generated list'!D4189)","v":""}]
[null,{"$f":"IF('Generated list'!B4190=\"\",\"\",'Generated list'!B4190)","v":""},{"$f":"IF('Generated list'!C4190=\"\",\"\",'Generated list'!C4190)","v":""},{"$f":"IF('Generated list'!D4190=\"\",\"\",'Generated list'!D4190)","v":""}]
[null,{"$f":"IF('Generated list'!B4191=\"\",\"\",'Generated list'!B4191)","v":""},{"$f":"IF('Generated list'!C4191=\"\",\"\",'Generated list'!C4191)","v":""},{"$f":"IF('Generated list'!D4191=\"\",\"\",'Generated list'!D4191)","v":""}]
[null,{"$f":"IF('Generated list'!B4192=\"\",\"\",'Generated list'!B4192)","v":""},{"$f":"IF('Generated list'!C4192=\"\",\"\",'Generated list'!C4192)","v":""},{"$f":"IF('Generated list'!D4192=\"\",\"\",'Generated list'!D4192)","v":""}]
[null,{"$f":"IF('Generated list'!B4193=\"\",\"\",'Generated list'!B4193)","v":""},{"$f":"IF('Generated list'!C4193=\"\",\"\",'Generated list'!C4193)","v":""},{"$f":"IF('Generated list'!D4193=\"\",\"\",'Generated list'!D4193)","v":""}]
[null,{"$f":"IF('Generated list'!B4194=\"\",\"\",'Generated list'!B4194)","v":""},{"$f":"IF('Generated list'!C4194=\"\",\"\",'Generated list'!C4194)","v":""},{"$f":"IF('Generated list'!D4194=\"\",\"\",'Generated list'!D4194)","v":""}]
[null,{"$f":"IF('Generated list'!B4195=\"\",\"\",'Generated list'!B4195)","v":""},{"$f":"IF('Generated list'!C4195=\"\",\"\",'Generated list'!C4195)","v":""},{"$f":"IF('Generated list'!D4195=\"\",\"\",'Generated list'!D4195)","v":""}]
[null,{"$f":"IF('Generated list'!B4196=\"\",\"\",'Generated list'!B4196)","v":""},{"$f":"IF('Generated list'!C4196=\"\",\"\",'Generated list'!C4196)","v":""},{"$f":"IF('Generated list'!D4196=\"\",\"\",'Generated list'!D4196)","v":""}]
[null,{"$f":"IF('Generated list'!B4197=\"\",\"\",'Generated list'!B4197)","v":""},{"$f":"IF('Generated list'!C4197=\"\",\"\",'Generated list'!C4197)","v":""},{"$f":"IF('Generated list'!D4197=\"\",\"\",'Generated list'!D4197)","v":""}]
[null,{"$f":"IF('Generated list'!B4198=\"\",\"\",'Generated list'!B4198)","v":""},{"$f":"IF('Generated list'!C4198=\"\",\"\",'Generated list'!C4198)","v":""},{"$f":"IF('Generated list'!D4198=\"\",\"\",'Generated list'!D4198)","v":""}]
[null,{"$f":"IF('Generated list'!B4199=\"\",\"\",'Generated list'!B4199)","v":""},{"$f":"IF('Generated list'!C4199=\"\",\"\",'Generated list'!C4199)","v":""},{"$f":"IF('Generated list'!D4199=\"\",\"\",'Generated list'!D4199)","v":""}]
[null,{"$f":"IF('Generated list'!B4200=\"\",\"\",'Generated list'!B4200)","v":""},{"$f":"IF('Generated list'!C4200=\"\",\"\",'Generated list'!C4200)","v":""},{"$f":"IF('Generated list'!D4200=\"\",\"\",'Generated list'!D4200)","v":""}]
[null,{"$f":"IF('Generated list'!B4201=\"\",\"\",'Generated list'!B4201)","v":""},{"$f":"IF('Generated list'!C4201=\"\",\"\",'Generated list'!C4201)","v":""},{"$f":"IF('Generated list'!D4201=\"\",\"\",'Generated list'!D4201)","v":""}]
[null,{"$f":"IF('Generated list'!B4202=\"\",\"\",'Generated list'!B4202)","v":""},{"$f":"IF('Generated list'!C4202=\"\",\"\",'Generated list'!C4202)","v":""},{"$f":"IF('Generated list'!D4202=\"\",\"\",'Generated list'!D4202)","v":""}]
[null,{"$f":"IF('Generated list'!B4203=\"\",\"\",'Generated list'!B4203)","v":""},{"$f":"IF('Generated list'!C4203=\"\",\"\",'Generated list'!C4203)","v":""},{"$f":"IF('Generated list'!D4203=\"\",\"\",'Generated list'!D4203)","v":""}]
[null,{"$f":"IF('Generated list'!B4204=\"\",\"\",'Generated list'!B4204)","v":""},{"$f":"IF('Generated list'!C4204=\"\",\"\",'Generated list'!C4204)","v":""},{"$f":"IF('Generated list'!D4204=\"\",\"\",'Generated list'!D4204)","v":""}]
[null,{"$f":"IF('Generated list'!B4205=\"\",\"\",'Generated list'!B4205)","v":""},{"$f":"IF('Generated list'!C4205=\"\",\"\",'Generated list'!C4205)","v":""},{"$f":"IF('Generated list'!D4205=\"\",\"\",'Generated list'!D4205)","v":""}]
[null,{"$f":"IF('Generated list'!B4206=\"\",\"\",'Generated list'!B4206)","v":""},{"$f":"IF('Generated list'!C4206=\"\",\"\",'Generated list'!C4206)","v":""},{"$f":"IF('Generated list'!D4206=\"\",\"\",'Generated list'!D4206)","v":""}]
[null,{"$f":"IF('Generated list'!B4207=\"\",\"\",'Generated list'!B4207)","v":""},{"$f":"IF('Generated list'!C4207=\"\",\"\",'Generated list'!C4207)","v":""},{"$f":"IF('Generated list'!D4207=\"\",\"\",'Generated list'!D4207)","v":""}]
[null,{"$f":"IF('Generated list'!B4208=\"\",\"\",'Generated list'!B4208)","v":""},{"$f":"IF('Generated list'!C4208=\"\",\"\",'Generated list'!C4208)","v":""},{"$f":"IF('Generated list'!D4208=\"\",\"\",'Generated list'!D4208)","v":""}]
[null,{"$f":"IF('Generated list'!B4209=\"\",\"\",'Generated list'!B4209)","v":""},{"$f":"IF('Generated list'!C4209=\"\",\"\",'Generated list'!C4209)","v":""},{"$f":"IF('Generated list'!D4209=\"\",\"\",'Generated list'!D4209)","v":""}]
[null,{"$f":"IF('Generated list'!B4210=\"\",\"\",'Generated list'!B4210)","v":""},{"$f":"IF('Generated list'!C4210=\"\",\"\",'Generated list'!C4210)","v":""},{"$f":"IF('Generated list'!D4210=\"\",\"\",'Generated list'!D4210)","v":""}]
[null,{"$f":"IF('Generated list'!B4211=\"\",\"\",'Generated list'!B4211)","v":""},{"$f":"IF('Generated list'!C4211=\"\",\"\",'Generated list'!C4211)","v":""},{"$f":"IF('Generated list'!D4211=\"\",\"\",'Generated list'!D4211)","v":""}]
[null,{"$f":"IF('Generated list'!B4212=\"\",\"\",'Generated list'!B4212)","v":""},{"$f":"IF('Generated list'!C4212=\"\",\"\",'Generated list'!C4212)","v":""},{"$f":"IF('Generated list'!D4212=\"\",\"\",'Generated list'!D4212)","v":""}]
[null,{"$f":"IF('Generated list'!B4213=\"\",\"\",'Generated list'!B4213)","v":""},{"$f":"IF('Generated list'!C4213=\"\",\"\",'Generated list'!C4213)","v":""},{"$f":"IF('Generated list'!D4213=\"\",\"\",'Generated list'!D4213)","v":""}]
[null,{"$f":"IF('Generated list'!B4214=\"\",\"\",'Generated list'!B4214)","v":""},{"$f":"IF('Generated list'!C4214=\"\",\"\",'Generated list'!C4214)","v":""},{"$f":"IF('Generated list'!D4214=\"\",\"\",'Generated list'!D4214)","v":""}]
[null,{"$f":"IF('Generated list'!B4215=\"\",\"\",'Generated list'!B4215)","v":""},{"$f":"IF('Generated list'!C4215=\"\",\"\",'Generated list'!C4215)","v":""},{"$f":"IF('Generated list'!D4215=\"\",\"\",'Generated list'!D4215)","v":""}]
[null,{"$f":"IF('Generated list'!B4216=\"\",\"\",'Generated list'!B4216)","v":""},{"$f":"IF('Generated list'!C4216=\"\",\"\",'Generated list'!C4216)","v":""},{"$f":"IF('Generated list'!D4216=\"\",\"\",'Generated list'!D4216)","v":""}]
[null,{"$f":"IF('Generated list'!B4217=\"\",\"\",'Generated list'!B4217)","v":""},{"$f":"IF('Generated list'!C4217=\"\",\"\",'Generated list'!C4217)","v":""},{"$f":"IF('Generated list'!D4217=\"\",\"\",'Generated list'!D4217)","v":""}]
[null,{"$f":"IF('Generated list'!B4218=\"\",\"\",'Generated list'!B4218)","v":""},{"$f":"IF('Generated list'!C4218=\"\",\"\",'Generated list'!C4218)","v":""},{"$f":"IF('Generated list'!D4218=\"\",\"\",'Generated list'!D4218)","v":""}]
[null,{"$f":"IF('Generated list'!B4219=\"\",\"\",'Generated list'!B4219)","v":""},{"$f":"IF('Generated list'!C4219=\"\",\"\",'Generated list'!C4219)","v":""},{"$f":"IF('Generated list'!D4219=\"\",\"\",'Generated list'!D4219)","v":""}]
[null,{"$f":"IF('Generated list'!B4220=\"\",\"\",'Generated list'!B4220)","v":""},{"$f":"IF('Generated list'!C4220=\"\",\"\",'Generated list'!C4220)","v":""},{"$f":"IF('Generated list'!D4220=\"\",\"\",'Generated list'!D4220)","v":""}]
[null,{"$f":"IF('Generated list'!B4221=\"\",\"\",'Generated list'!B4221)","v":""},{"$f":"IF('Generated list'!C4221=\"\",\"\",'Generated list'!C4221)","v":""},{"$f":"IF('Generated list'!D4221=\"\",\"\",'Generated list'!D4221)","v":""}]
[null,{"$f":"IF('Generated list'!B4222=\"\",\"\",'Generated list'!B4222)","v":""},{"$f":"IF('Generated list'!C4222=\"\",\"\",'Generated list'!C4222)","v":""},{"$f":"IF('Generated list'!D4222=\"\",\"\",'Generated list'!D4222)","v":""}]
[null,{"$f":"IF('Generated list'!B4223=\"\",\"\",'Generated list'!B4223)","v":""},{"$f":"IF('Generated list'!C4223=\"\",\"\",'Generated list'!C4223)","v":""},{"$f":"IF('Generated list'!D4223=\"\",\"\",'Generated list'!D4223)","v":""}]
[null,{"$f":"IF('Generated list'!B4224=\"\",\"\",'Generated list'!B4224)","v":""},{"$f":"IF('Generated list'!C4224=\"\",\"\",'Generated list'!C4224)","v":""},{"$f":"IF('Generated list'!D4224=\"\",\"\",'Generated list'!D4224)","v":""}]
[null,{"$f":"IF('Generated list'!B4225=\"\",\"\",'Generated list'!B4225)","v":""},{"$f":"IF('Generated list'!C4225=\"\",\"\",'Generated list'!C4225)","v":""},{"$f":"IF('Generated list'!D4225=\"\",\"\",'Generated list'!D4225)","v":""}]
[null,{"$f":"IF('Generated list'!B4226=\"\",\"\",'Generated list'!B4226)","v":""},{"$f":"IF('Generated list'!C4226=\"\",\"\",'Generated list'!C4226)","v":""},{"$f":"IF('Generated list'!D4226=\"\",\"\",'Generated list'!D4226)","v":""}]
[null,{"$f":"IF('Generated list'!B4227=\"\",\"\",'Generated list'!B4227)","v":""},{"$f":"IF('Generated list'!C4227=\"\",\"\",'Generated list'!C4227)","v":""},{"$f":"IF('Generated list'!D4227=\"\",\"\",'Generated list'!D4227)","v":""}]
[null,{"$f":"IF('Generated list'!B4228=\"\",\"\",'Generated list'!B4228)","v":""},{"$f":"IF('Generated list'!C4228=\"\",\"\",'Generated list'!C4228)","v":""},{"$f":"IF('Generated list'!D4228=\"\",\"\",'Generated list'!D4228)","v":""}]
[null,{"$f":"IF('Generated list'!B4229=\"\",\"\",'Generated list'!B4229)","v":""},{"$f":"IF('Generated list'!C4229=\"\",\"\",'Generated list'!C4229)","v":""},{"$f":"IF('Generated list'!D4229=\"\",\"\",'Generated list'!D4229)","v":""}]
[null,{"$f":"IF('Generated list'!B4230=\"\",\"\",'Generated list'!B4230)","v":""},{"$f":"IF('Generated list'!C4230=\"\",\"\",'Generated list'!C4230)","v":""},{"$f":"IF('Generated list'!D4230=\"\",\"\",'Generated list'!D4230)","v":""}]
[null,{"$f":"IF('Generated list'!B4231=\"\",\"\",'Generated list'!B4231)","v":""},{"$f":"IF('Generated list'!C4231=\"\",\"\",'Generated list'!C4231)","v":""},{"$f":"IF('Generated list'!D4231=\"\",\"\",'Generated list'!D4231)","v":""}]
[null,{"$f":"IF('Generated list'!B4232=\"\",\"\",'Generated list'!B4232)","v":""},{"$f":"IF('Generated list'!C4232=\"\",\"\",'Generated list'!C4232)","v":""},{"$f":"IF('Generated list'!D4232=\"\",\"\",'Generated list'!D4232)","v":""}]
[null,{"$f":"IF('Generated list'!B4233=\"\",\"\",'Generated list'!B4233)","v":""},{"$f":"IF('Generated list'!C4233=\"\",\"\",'Generated list'!C4233)","v":""},{"$f":"IF('Generated list'!D4233=\"\",\"\",'Generated list'!D4233)","v":""}]
[null,{"$f":"IF('Generated list'!B4234=\"\",\"\",'Generated list'!B4234)","v":""},{"$f":"IF('Generated list'!C4234=\"\",\"\",'Generated list'!C4234)","v":""},{"$f":"IF('Generated list'!D4234=\"\",\"\",'Generated list'!D4234)","v":""}]
[null,{"$f":"IF('Generated list'!B4235=\"\",\"\",'Generated list'!B4235)","v":""},{"$f":"IF('Generated list'!C4235=\"\",\"\",'Generated list'!C4235)","v":""},{"$f":"IF('Generated list'!D4235=\"\",\"\",'Generated list'!D4235)","v":""}]
[null,{"$f":"IF('Generated list'!B4236=\"\",\"\",'Generated list'!B4236)","v":""},{"$f":"IF('Generated list'!C4236=\"\",\"\",'Generated list'!C4236)","v":""},{"$f":"IF('Generated list'!D4236=\"\",\"\",'Generated list'!D4236)","v":""}]
[null,{"$f":"IF('Generated list'!B4237=\"\",\"\",'Generated list'!B4237)","v":""},{"$f":"IF('Generated list'!C4237=\"\",\"\",'Generated list'!C4237)","v":""},{"$f":"IF('Generated list'!D4237=\"\",\"\",'Generated list'!D4237)","v":""}]
[null,{"$f":"IF('Generated list'!B4238=\"\",\"\",'Generated list'!B4238)","v":""},{"$f":"IF('Generated list'!C4238=\"\",\"\",'Generated list'!C4238)","v":""},{"$f":"IF('Generated list'!D4238=\"\",\"\",'Generated list'!D4238)","v":""}]
[null,{"$f":"IF('Generated list'!B4239=\"\",\"\",'Generated list'!B4239)","v":""},{"$f":"IF('Generated list'!C4239=\"\",\"\",'Generated list'!C4239)","v":""},{"$f":"IF('Generated list'!D4239=\"\",\"\",'Generated list'!D4239)","v":""}]
[null,{"$f":"IF('Generated list'!B4240=\"\",\"\",'Generated list'!B4240)","v":""},{"$f":"IF('Generated list'!C4240=\"\",\"\",'Generated list'!C4240)","v":""},{"$f":"IF('Generated list'!D4240=\"\",\"\",'Generated list'!D4240)","v":""}]
[null,{"$f":"IF('Generated list'!B4241=\"\",\"\",'Generated list'!B4241)","v":""},{"$f":"IF('Generated list'!C4241=\"\",\"\",'Generated list'!C4241)","v":""},{"$f":"IF('Generated list'!D4241=\"\",\"\",'Generated list'!D4241)","v":""}]
[null,{"$f":"IF('Generated list'!B4242=\"\",\"\",'Generated list'!B4242)","v":""},{"$f":"IF('Generated list'!C4242=\"\",\"\",'Generated list'!C4242)","v":""},{"$f":"IF('Generated list'!D4242=\"\",\"\",'Generated list'!D4242)","v":""}]
[null,{"$f":"IF('Generated list'!B4243=\"\",\"\",'Generated list'!B4243)","v":""},{"$f":"IF('Generated list'!C4243=\"\",\"\",'Generated list'!C4243)","v":""},{"$f":"IF('Generated list'!D4243=\"\",\"\",'Generated list'!D4243)","v":""}]
[null,{"$f":"IF('Generated list'!B4244=\"\",\"\",'Generated list'!B4244)","v":""},{"$f":"IF('Generated list'!C4244=\"\",\"\",'Generated list'!C4244)","v":""},{"$f":"IF('Generated list'!D4244=\"\",\"\",'Generated list'!D4244)","v":""}]
[null,{"$f":"IF('Generated list'!B4245=\"\",\"\",'Generated list'!B4245)","v":""},{"$f":"IF('Generated list'!C4245=\"\",\"\",'Generated list'!C4245)","v":""},{"$f":"IF('Generated list'!D4245=\"\",\"\",'Generated list'!D4245)","v":""}]
[null,{"$f":"IF('Generated list'!B4246=\"\",\"\",'Generated list'!B4246)","v":""},{"$f":"IF('Generated list'!C4246=\"\",\"\",'Generated list'!C4246)","v":""},{"$f":"IF('Generated list'!D4246=\"\",\"\",'Generated list'!D4246)","v":""}]
[null,{"$f":"IF('Generated list'!B4247=\"\",\"\",'Generated list'!B4247)","v":""},{"$f":"IF('Generated list'!C4247=\"\",\"\",'Generated list'!C4247)","v":""},{"$f":"IF('Generated list'!D4247=\"\",\"\",'Generated list'!D4247)","v":""}]
[null,{"$f":"IF('Generated list'!B4248=\"\",\"\",'Generated list'!B4248)","v":""},{"$f":"IF('Generated list'!C4248=\"\",\"\",'Generated list'!C4248)","v":""},{"$f":"IF('Generated list'!D4248=\"\",\"\",'Generated list'!D4248)","v":""}]
[null,{"$f":"IF('Generated list'!B4249=\"\",\"\",'Generated list'!B4249)","v":""},{"$f":"IF('Generated list'!C4249=\"\",\"\",'Generated list'!C4249)","v":""},{"$f":"IF('Generated list'!D4249=\"\",\"\",'Generated list'!D4249)","v":""}]
[null,{"$f":"IF('Generated list'!B4250=\"\",\"\",'Generated list'!B4250)","v":""},{"$f":"IF('Generated list'!C4250=\"\",\"\",'Generated list'!C4250)","v":""},{"$f":"IF('Generated list'!D4250=\"\",\"\",'Generated list'!D4250)","v":""}]
[null,{"$f":"IF('Generated list'!B4251=\"\",\"\",'Generated list'!B4251)","v":""},{"$f":"IF('Generated list'!C4251=\"\",\"\",'Generated list'!C4251)","v":""},{"$f":"IF('Generated list'!D4251=\"\",\"\",'Generated list'!D4251)","v":""}]
[null,{"$f":"IF('Generated list'!B4252=\"\",\"\",'Generated list'!B4252)","v":""},{"$f":"IF('Generated list'!C4252=\"\",\"\",'Generated list'!C4252)","v":""},{"$f":"IF('Generated list'!D4252=\"\",\"\",'Generated list'!D4252)","v":""}]
[null,{"$f":"IF('Generated list'!B4253=\"\",\"\",'Generated list'!B4253)","v":""},{"$f":"IF('Generated list'!C4253=\"\",\"\",'Generated list'!C4253)","v":""},{"$f":"IF('Generated list'!D4253=\"\",\"\",'Generated list'!D4253)","v":""}]
[null,{"$f":"IF('Generated list'!B4254=\"\",\"\",'Generated list'!B4254)","v":""},{"$f":"IF('Generated list'!C4254=\"\",\"\",'Generated list'!C4254)","v":""},{"$f":"IF('Generated list'!D4254=\"\",\"\",'Generated list'!D4254)","v":""}]
[null,{"$f":"IF('Generated list'!B4255=\"\",\"\",'Generated list'!B4255)","v":""},{"$f":"IF('Generated list'!C4255=\"\",\"\",'Generated list'!C4255)","v":""},{"$f":"IF('Generated list'!D4255=\"\",\"\",'Generated list'!D4255)","v":""}]
[null,{"$f":"IF('Generated list'!B4256=\"\",\"\",'Generated list'!B4256)","v":""},{"$f":"IF('Generated list'!C4256=\"\",\"\",'Generated list'!C4256)","v":""},{"$f":"IF('Generated list'!D4256=\"\",\"\",'Generated list'!D4256)","v":""}]
[null,{"$f":"IF('Generated list'!B4257=\"\",\"\",'Generated list'!B4257)","v":""},{"$f":"IF('Generated list'!C4257=\"\",\"\",'Generated list'!C4257)","v":""},{"$f":"IF('Generated list'!D4257=\"\",\"\",'Generated list'!D4257)","v":""}]
[null,{"$f":"IF('Generated list'!B4258=\"\",\"\",'Generated list'!B4258)","v":""},{"$f":"IF('Generated list'!C4258=\"\",\"\",'Generated list'!C4258)","v":""},{"$f":"IF('Generated list'!D4258=\"\",\"\",'Generated list'!D4258)","v":""}]
[null,{"$f":"IF('Generated list'!B4259=\"\",\"\",'Generated list'!B4259)","v":""},{"$f":"IF('Generated list'!C4259=\"\",\"\",'Generated list'!C4259)","v":""},{"$f":"IF('Generated list'!D4259=\"\",\"\",'Generated list'!D4259)","v":""}]
[null,{"$f":"IF('Generated list'!B4260=\"\",\"\",'Generated list'!B4260)","v":""},{"$f":"IF('Generated list'!C4260=\"\",\"\",'Generated list'!C4260)","v":""},{"$f":"IF('Generated list'!D4260=\"\",\"\",'Generated list'!D4260)","v":""}]
[null,{"$f":"IF('Generated list'!B4261=\"\",\"\",'Generated list'!B4261)","v":""},{"$f":"IF('Generated list'!C4261=\"\",\"\",'Generated list'!C4261)","v":""},{"$f":"IF('Generated list'!D4261=\"\",\"\",'Generated list'!D4261)","v":""}]
[null,{"$f":"IF('Generated list'!B4262=\"\",\"\",'Generated list'!B4262)","v":""},{"$f":"IF('Generated list'!C4262=\"\",\"\",'Generated list'!C4262)","v":""},{"$f":"IF('Generated list'!D4262=\"\",\"\",'Generated list'!D4262)","v":""}]
[null,{"$f":"IF('Generated list'!B4263=\"\",\"\",'Generated list'!B4263)","v":""},{"$f":"IF('Generated list'!C4263=\"\",\"\",'Generated list'!C4263)","v":""},{"$f":"IF('Generated list'!D4263=\"\",\"\",'Generated list'!D4263)","v":""}]
[null,{"$f":"IF('Generated list'!B4264=\"\",\"\",'Generated list'!B4264)","v":""},{"$f":"IF('Generated list'!C4264=\"\",\"\",'Generated list'!C4264)","v":""},{"$f":"IF('Generated list'!D4264=\"\",\"\",'Generated list'!D4264)","v":""}]
[null,{"$f":"IF('Generated list'!B4265=\"\",\"\",'Generated list'!B4265)","v":""},{"$f":"IF('Generated list'!C4265=\"\",\"\",'Generated list'!C4265)","v":""},{"$f":"IF('Generated list'!D4265=\"\",\"\",'Generated list'!D4265)","v":""}]
[null,{"$f":"IF('Generated list'!B4266=\"\",\"\",'Generated list'!B4266)","v":""},{"$f":"IF('Generated list'!C4266=\"\",\"\",'Generated list'!C4266)","v":""},{"$f":"IF('Generated list'!D4266=\"\",\"\",'Generated list'!D4266)","v":""}]
[null,{"$f":"IF('Generated list'!B4267=\"\",\"\",'Generated list'!B4267)","v":""},{"$f":"IF('Generated list'!C4267=\"\",\"\",'Generated list'!C4267)","v":""},{"$f":"IF('Generated list'!D4267=\"\",\"\",'Generated list'!D4267)","v":""}]
[null,{"$f":"IF('Generated list'!B4268=\"\",\"\",'Generated list'!B4268)","v":""},{"$f":"IF('Generated list'!C4268=\"\",\"\",'Generated list'!C4268)","v":""},{"$f":"IF('Generated list'!D4268=\"\",\"\",'Generated list'!D4268)","v":""}]
[null,{"$f":"IF('Generated list'!B4269=\"\",\"\",'Generated list'!B4269)","v":""},{"$f":"IF('Generated list'!C4269=\"\",\"\",'Generated list'!C4269)","v":""},{"$f":"IF('Generated list'!D4269=\"\",\"\",'Generated list'!D4269)","v":""}]
[null,{"$f":"IF('Generated list'!B4270=\"\",\"\",'Generated list'!B4270)","v":""},{"$f":"IF('Generated list'!C4270=\"\",\"\",'Generated list'!C4270)","v":""},{"$f":"IF('Generated list'!D4270=\"\",\"\",'Generated list'!D4270)","v":""}]
[null,{"$f":"IF('Generated list'!B4271=\"\",\"\",'Generated list'!B4271)","v":""},{"$f":"IF('Generated list'!C4271=\"\",\"\",'Generated list'!C4271)","v":""},{"$f":"IF('Generated list'!D4271=\"\",\"\",'Generated list'!D4271)","v":""}]
[null,{"$f":"IF('Generated list'!B4272=\"\",\"\",'Generated list'!B4272)","v":""},{"$f":"IF('Generated list'!C4272=\"\",\"\",'Generated list'!C4272)","v":""},{"$f":"IF('Generated list'!D4272=\"\",\"\",'Generated list'!D4272)","v":""}]
[null,{"$f":"IF('Generated list'!B4273=\"\",\"\",'Generated list'!B4273)","v":""},{"$f":"IF('Generated list'!C4273=\"\",\"\",'Generated list'!C4273)","v":""},{"$f":"IF('Generated list'!D4273=\"\",\"\",'Generated list'!D4273)","v":""}]
[null,{"$f":"IF('Generated list'!B4274=\"\",\"\",'Generated list'!B4274)","v":""},{"$f":"IF('Generated list'!C4274=\"\",\"\",'Generated list'!C4274)","v":""},{"$f":"IF('Generated list'!D4274=\"\",\"\",'Generated list'!D4274)","v":""}]
[null,{"$f":"IF('Generated list'!B4275=\"\",\"\",'Generated list'!B4275)","v":""},{"$f":"IF('Generated list'!C4275=\"\",\"\",'Generated list'!C4275)","v":""},{"$f":"IF('Generated list'!D4275=\"\",\"\",'Generated list'!D4275)","v":""}]
[null,{"$f":"IF('Generated list'!B4276=\"\",\"\",'Generated list'!B4276)","v":""},{"$f":"IF('Generated list'!C4276=\"\",\"\",'Generated list'!C4276)","v":""},{"$f":"IF('Generated list'!D4276=\"\",\"\",'Generated list'!D4276)","v":""}]
[null,{"$f":"IF('Generated list'!B4277=\"\",\"\",'Generated list'!B4277)","v":""},{"$f":"IF('Generated list'!C4277=\"\",\"\",'Generated list'!C4277)","v":""},{"$f":"IF('Generated list'!D4277=\"\",\"\",'Generated list'!D4277)","v":""}]
[null,{"$f":"IF('Generated list'!B4278=\"\",\"\",'Generated list'!B4278)","v":""},{"$f":"IF('Generated list'!C4278=\"\",\"\",'Generated list'!C4278)","v":""},{"$f":"IF('Generated list'!D4278=\"\",\"\",'Generated list'!D4278)","v":""}]
[null,{"$f":"IF('Generated list'!B4279=\"\",\"\",'Generated list'!B4279)","v":""},{"$f":"IF('Generated list'!C4279=\"\",\"\",'Generated list'!C4279)","v":""},{"$f":"IF('Generated list'!D4279=\"\",\"\",'Generated list'!D4279)","v":""}]
[null,{"$f":"IF('Generated list'!B4280=\"\",\"\",'Generated list'!B4280)","v":""},{"$f":"IF('Generated list'!C4280=\"\",\"\",'Generated list'!C4280)","v":""},{"$f":"IF('Generated list'!D4280=\"\",\"\",'Generated list'!D4280)","v":""}]
[null,{"$f":"IF('Generated list'!B4281=\"\",\"\",'Generated list'!B4281)","v":""},{"$f":"IF('Generated list'!C4281=\"\",\"\",'Generated list'!C4281)","v":""},{"$f":"IF('Generated list'!D4281=\"\",\"\",'Generated list'!D4281)","v":""}]
[null,{"$f":"IF('Generated list'!B4282=\"\",\"\",'Generated list'!B4282)","v":""},{"$f":"IF('Generated list'!C4282=\"\",\"\",'Generated list'!C4282)","v":""},{"$f":"IF('Generated list'!D4282=\"\",\"\",'Generated list'!D4282)","v":""}]
[null,{"$f":"IF('Generated list'!B4283=\"\",\"\",'Generated list'!B4283)","v":""},{"$f":"IF('Generated list'!C4283=\"\",\"\",'Generated list'!C4283)","v":""},{"$f":"IF('Generated list'!D4283=\"\",\"\",'Generated list'!D4283)","v":""}]
[null,{"$f":"IF('Generated list'!B4284=\"\",\"\",'Generated list'!B4284)","v":""},{"$f":"IF('Generated list'!C4284=\"\",\"\",'Generated list'!C4284)","v":""},{"$f":"IF('Generated list'!D4284=\"\",\"\",'Generated list'!D4284)","v":""}]
[null,{"$f":"IF('Generated list'!B4285=\"\",\"\",'Generated list'!B4285)","v":""},{"$f":"IF('Generated list'!C4285=\"\",\"\",'Generated list'!C4285)","v":""},{"$f":"IF('Generated list'!D4285=\"\",\"\",'Generated list'!D4285)","v":""}]
[null,{"$f":"IF('Generated list'!B4286=\"\",\"\",'Generated list'!B4286)","v":""},{"$f":"IF('Generated list'!C4286=\"\",\"\",'Generated list'!C4286)","v":""},{"$f":"IF('Generated list'!D4286=\"\",\"\",'Generated list'!D4286)","v":""}]
[null,{"$f":"IF('Generated list'!B4287=\"\",\"\",'Generated list'!B4287)","v":""},{"$f":"IF('Generated list'!C4287=\"\",\"\",'Generated list'!C4287)","v":""},{"$f":"IF('Generated list'!D4287=\"\",\"\",'Generated list'!D4287)","v":""}]
[null,{"$f":"IF('Generated list'!B4288=\"\",\"\",'Generated list'!B4288)","v":""},{"$f":"IF('Generated list'!C4288=\"\",\"\",'Generated list'!C4288)","v":""},{"$f":"IF('Generated list'!D4288=\"\",\"\",'Generated list'!D4288)","v":""}]
[null,{"$f":"IF('Generated list'!B4289=\"\",\"\",'Generated list'!B4289)","v":""},{"$f":"IF('Generated list'!C4289=\"\",\"\",'Generated list'!C4289)","v":""},{"$f":"IF('Generated list'!D4289=\"\",\"\",'Generated list'!D4289)","v":""}]
[null,{"$f":"IF('Generated list'!B4290=\"\",\"\",'Generated list'!B4290)","v":""},{"$f":"IF('Generated list'!C4290=\"\",\"\",'Generated list'!C4290)","v":""},{"$f":"IF('Generated list'!D4290=\"\",\"\",'Generated list'!D4290)","v":""}]
[null,{"$f":"IF('Generated list'!B4291=\"\",\"\",'Generated list'!B4291)","v":""},{"$f":"IF('Generated list'!C4291=\"\",\"\",'Generated list'!C4291)","v":""},{"$f":"IF('Generated list'!D4291=\"\",\"\",'Generated list'!D4291)","v":""}]
[null,{"$f":"IF('Generated list'!B4292=\"\",\"\",'Generated list'!B4292)","v":""},{"$f":"IF('Generated list'!C4292=\"\",\"\",'Generated list'!C4292)","v":""},{"$f":"IF('Generated list'!D4292=\"\",\"\",'Generated list'!D4292)","v":""}]
[null,{"$f":"IF('Generated list'!B4293=\"\",\"\",'Generated list'!B4293)","v":""},{"$f":"IF('Generated list'!C4293=\"\",\"\",'Generated list'!C4293)","v":""},{"$f":"IF('Generated list'!D4293=\"\",\"\",'Generated list'!D4293)","v":""}]
[null,{"$f":"IF('Generated list'!B4294=\"\",\"\",'Generated list'!B4294)","v":""},{"$f":"IF('Generated list'!C4294=\"\",\"\",'Generated list'!C4294)","v":""},{"$f":"IF('Generated list'!D4294=\"\",\"\",'Generated list'!D4294)","v":""}]
[null,{"$f":"IF('Generated list'!B4295=\"\",\"\",'Generated list'!B4295)","v":""},{"$f":"IF('Generated list'!C4295=\"\",\"\",'Generated list'!C4295)","v":""},{"$f":"IF('Generated list'!D4295=\"\",\"\",'Generated list'!D4295)","v":""}]
[null,{"$f":"IF('Generated list'!B4296=\"\",\"\",'Generated list'!B4296)","v":""},{"$f":"IF('Generated list'!C4296=\"\",\"\",'Generated list'!C4296)","v":""},{"$f":"IF('Generated list'!D4296=\"\",\"\",'Generated list'!D4296)","v":""}]
[null,{"$f":"IF('Generated list'!B4297=\"\",\"\",'Generated list'!B4297)","v":""},{"$f":"IF('Generated list'!C4297=\"\",\"\",'Generated list'!C4297)","v":""},{"$f":"IF('Generated list'!D4297=\"\",\"\",'Generated list'!D4297)","v":""}]
[null,{"$f":"IF('Generated list'!B4298=\"\",\"\",'Generated list'!B4298)","v":""},{"$f":"IF('Generated list'!C4298=\"\",\"\",'Generated list'!C4298)","v":""},{"$f":"IF('Generated list'!D4298=\"\",\"\",'Generated list'!D4298)","v":""}]
[null,{"$f":"IF('Generated list'!B4299=\"\",\"\",'Generated list'!B4299)","v":""},{"$f":"IF('Generated list'!C4299=\"\",\"\",'Generated list'!C4299)","v":""},{"$f":"IF('Generated list'!D4299=\"\",\"\",'Generated list'!D4299)","v":""}]
[null,{"$f":"IF('Generated list'!B4300=\"\",\"\",'Generated list'!B4300)","v":""},{"$f":"IF('Generated list'!C4300=\"\",\"\",'Generated list'!C4300)","v":""},{"$f":"IF('Generated list'!D4300=\"\",\"\",'Generated list'!D4300)","v":""}]
[null,{"$f":"IF('Generated list'!B4301=\"\",\"\",'Generated list'!B4301)","v":""},{"$f":"IF('Generated list'!C4301=\"\",\"\",'Generated list'!C4301)","v":""},{"$f":"IF('Generated list'!D4301=\"\",\"\",'Generated list'!D4301)","v":""}]
[null,{"$f":"IF('Generated list'!B4302=\"\",\"\",'Generated list'!B4302)","v":""},{"$f":"IF('Generated list'!C4302=\"\",\"\",'Generated list'!C4302)","v":""},{"$f":"IF('Generated list'!D4302=\"\",\"\",'Generated list'!D4302)","v":""}]
[null,{"$f":"IF('Generated list'!B4303=\"\",\"\",'Generated list'!B4303)","v":""},{"$f":"IF('Generated list'!C4303=\"\",\"\",'Generated list'!C4303)","v":""},{"$f":"IF('Generated list'!D4303=\"\",\"\",'Generated list'!D4303)","v":""}]
[null,{"$f":"IF('Generated list'!B4304=\"\",\"\",'Generated list'!B4304)","v":""},{"$f":"IF('Generated list'!C4304=\"\",\"\",'Generated list'!C4304)","v":""},{"$f":"IF('Generated list'!D4304=\"\",\"\",'Generated list'!D4304)","v":""}]
[null,{"$f":"IF('Generated list'!B4305=\"\",\"\",'Generated list'!B4305)","v":""},{"$f":"IF('Generated list'!C4305=\"\",\"\",'Generated list'!C4305)","v":""},{"$f":"IF('Generated list'!D4305=\"\",\"\",'Generated list'!D4305)","v":""}]
[null,{"$f":"IF('Generated list'!B4306=\"\",\"\",'Generated list'!B4306)","v":""},{"$f":"IF('Generated list'!C4306=\"\",\"\",'Generated list'!C4306)","v":""},{"$f":"IF('Generated list'!D4306=\"\",\"\",'Generated list'!D4306)","v":""}]
[null,{"$f":"IF('Generated list'!B4307=\"\",\"\",'Generated list'!B4307)","v":""},{"$f":"IF('Generated list'!C4307=\"\",\"\",'Generated list'!C4307)","v":""},{"$f":"IF('Generated list'!D4307=\"\",\"\",'Generated list'!D4307)","v":""}]
[null,{"$f":"IF('Generated list'!B4308=\"\",\"\",'Generated list'!B4308)","v":""},{"$f":"IF('Generated list'!C4308=\"\",\"\",'Generated list'!C4308)","v":""},{"$f":"IF('Generated list'!D4308=\"\",\"\",'Generated list'!D4308)","v":""}]
[null,{"$f":"IF('Generated list'!B4309=\"\",\"\",'Generated list'!B4309)","v":""},{"$f":"IF('Generated list'!C4309=\"\",\"\",'Generated list'!C4309)","v":""},{"$f":"IF('Generated list'!D4309=\"\",\"\",'Generated list'!D4309)","v":""}]
[null,{"$f":"IF('Generated list'!B4310=\"\",\"\",'Generated list'!B4310)","v":""},{"$f":"IF('Generated list'!C4310=\"\",\"\",'Generated list'!C4310)","v":""},{"$f":"IF('Generated list'!D4310=\"\",\"\",'Generated list'!D4310)","v":""}]
[null,{"$f":"IF('Generated list'!B4311=\"\",\"\",'Generated list'!B4311)","v":""},{"$f":"IF('Generated list'!C4311=\"\",\"\",'Generated list'!C4311)","v":""},{"$f":"IF('Generated list'!D4311=\"\",\"\",'Generated list'!D4311)","v":""}]
[null,{"$f":"IF('Generated list'!B4312=\"\",\"\",'Generated list'!B4312)","v":""},{"$f":"IF('Generated list'!C4312=\"\",\"\",'Generated list'!C4312)","v":""},{"$f":"IF('Generated list'!D4312=\"\",\"\",'Generated list'!D4312)","v":""}]
[null,{"$f":"IF('Generated list'!B4313=\"\",\"\",'Generated list'!B4313)","v":""},{"$f":"IF('Generated list'!C4313=\"\",\"\",'Generated list'!C4313)","v":""},{"$f":"IF('Generated list'!D4313=\"\",\"\",'Generated list'!D4313)","v":""}]
[null,{"$f":"IF('Generated list'!B4314=\"\",\"\",'Generated list'!B4314)","v":""},{"$f":"IF('Generated list'!C4314=\"\",\"\",'Generated list'!C4314)","v":""},{"$f":"IF('Generated list'!D4314=\"\",\"\",'Generated list'!D4314)","v":""}]
[null,{"$f":"IF('Generated list'!B4315=\"\",\"\",'Generated list'!B4315)","v":""},{"$f":"IF('Generated list'!C4315=\"\",\"\",'Generated list'!C4315)","v":""},{"$f":"IF('Generated list'!D4315=\"\",\"\",'Generated list'!D4315)","v":""}]
[null,{"$f":"IF('Generated list'!B4316=\"\",\"\",'Generated list'!B4316)","v":""},{"$f":"IF('Generated list'!C4316=\"\",\"\",'Generated list'!C4316)","v":""},{"$f":"IF('Generated list'!D4316=\"\",\"\",'Generated list'!D4316)","v":""}]
[null,{"$f":"IF('Generated list'!B4317=\"\",\"\",'Generated list'!B4317)","v":""},{"$f":"IF('Generated list'!C4317=\"\",\"\",'Generated list'!C4317)","v":""},{"$f":"IF('Generated list'!D4317=\"\",\"\",'Generated list'!D4317)","v":""}]
[null,{"$f":"IF('Generated list'!B4318=\"\",\"\",'Generated list'!B4318)","v":""},{"$f":"IF('Generated list'!C4318=\"\",\"\",'Generated list'!C4318)","v":""},{"$f":"IF('Generated list'!D4318=\"\",\"\",'Generated list'!D4318)","v":""}]
[null,{"$f":"IF('Generated list'!B4319=\"\",\"\",'Generated list'!B4319)","v":""},{"$f":"IF('Generated list'!C4319=\"\",\"\",'Generated list'!C4319)","v":""},{"$f":"IF('Generated list'!D4319=\"\",\"\",'Generated list'!D4319)","v":""}]
[null,{"$f":"IF('Generated list'!B4320=\"\",\"\",'Generated list'!B4320)","v":""},{"$f":"IF('Generated list'!C4320=\"\",\"\",'Generated list'!C4320)","v":""},{"$f":"IF('Generated list'!D4320=\"\",\"\",'Generated list'!D4320)","v":""}]
[null,{"$f":"IF('Generated list'!B4321=\"\",\"\",'Generated list'!B4321)","v":""},{"$f":"IF('Generated list'!C4321=\"\",\"\",'Generated list'!C4321)","v":""},{"$f":"IF('Generated list'!D4321=\"\",\"\",'Generated list'!D4321)","v":""}]
[null,{"$f":"IF('Generated list'!B4322=\"\",\"\",'Generated list'!B4322)","v":""},{"$f":"IF('Generated list'!C4322=\"\",\"\",'Generated list'!C4322)","v":""},{"$f":"IF('Generated list'!D4322=\"\",\"\",'Generated list'!D4322)","v":""}]
[null,{"$f":"IF('Generated list'!B4323=\"\",\"\",'Generated list'!B4323)","v":""},{"$f":"IF('Generated list'!C4323=\"\",\"\",'Generated list'!C4323)","v":""},{"$f":"IF('Generated list'!D4323=\"\",\"\",'Generated list'!D4323)","v":""}]
[null,{"$f":"IF('Generated list'!B4324=\"\",\"\",'Generated list'!B4324)","v":""},{"$f":"IF('Generated list'!C4324=\"\",\"\",'Generated list'!C4324)","v":""},{"$f":"IF('Generated list'!D4324=\"\",\"\",'Generated list'!D4324)","v":""}]
[null,{"$f":"IF('Generated list'!B4325=\"\",\"\",'Generated list'!B4325)","v":""},{"$f":"IF('Generated list'!C4325=\"\",\"\",'Generated list'!C4325)","v":""},{"$f":"IF('Generated list'!D4325=\"\",\"\",'Generated list'!D4325)","v":""}]
[null,{"$f":"IF('Generated list'!B4326=\"\",\"\",'Generated list'!B4326)","v":""},{"$f":"IF('Generated list'!C4326=\"\",\"\",'Generated list'!C4326)","v":""},{"$f":"IF('Generated list'!D4326=\"\",\"\",'Generated list'!D4326)","v":""}]
[null,{"$f":"IF('Generated list'!B4327=\"\",\"\",'Generated list'!B4327)","v":""},{"$f":"IF('Generated list'!C4327=\"\",\"\",'Generated list'!C4327)","v":""},{"$f":"IF('Generated list'!D4327=\"\",\"\",'Generated list'!D4327)","v":""}]
[null,{"$f":"IF('Generated list'!B4328=\"\",\"\",'Generated list'!B4328)","v":""},{"$f":"IF('Generated list'!C4328=\"\",\"\",'Generated list'!C4328)","v":""},{"$f":"IF('Generated list'!D4328=\"\",\"\",'Generated list'!D4328)","v":""}]
[null,{"$f":"IF('Generated list'!B4329=\"\",\"\",'Generated list'!B4329)","v":""},{"$f":"IF('Generated list'!C4329=\"\",\"\",'Generated list'!C4329)","v":""},{"$f":"IF('Generated list'!D4329=\"\",\"\",'Generated list'!D4329)","v":""}]
[null,{"$f":"IF('Generated list'!B4330=\"\",\"\",'Generated list'!B4330)","v":""},{"$f":"IF('Generated list'!C4330=\"\",\"\",'Generated list'!C4330)","v":""},{"$f":"IF('Generated list'!D4330=\"\",\"\",'Generated list'!D4330)","v":""}]
[null,{"$f":"IF('Generated list'!B4331=\"\",\"\",'Generated list'!B4331)","v":""},{"$f":"IF('Generated list'!C4331=\"\",\"\",'Generated list'!C4331)","v":""},{"$f":"IF('Generated list'!D4331=\"\",\"\",'Generated list'!D4331)","v":""}]
[null,{"$f":"IF('Generated list'!B4332=\"\",\"\",'Generated list'!B4332)","v":""},{"$f":"IF('Generated list'!C4332=\"\",\"\",'Generated list'!C4332)","v":""},{"$f":"IF('Generated list'!D4332=\"\",\"\",'Generated list'!D4332)","v":""}]
[null,{"$f":"IF('Generated list'!B4333=\"\",\"\",'Generated list'!B4333)","v":""},{"$f":"IF('Generated list'!C4333=\"\",\"\",'Generated list'!C4333)","v":""},{"$f":"IF('Generated list'!D4333=\"\",\"\",'Generated list'!D4333)","v":""}]
[null,{"$f":"IF('Generated list'!B4334=\"\",\"\",'Generated list'!B4334)","v":""},{"$f":"IF('Generated list'!C4334=\"\",\"\",'Generated list'!C4334)","v":""},{"$f":"IF('Generated list'!D4334=\"\",\"\",'Generated list'!D4334)","v":""}]
[null,{"$f":"IF('Generated list'!B4335=\"\",\"\",'Generated list'!B4335)","v":""},{"$f":"IF('Generated list'!C4335=\"\",\"\",'Generated list'!C4335)","v":""},{"$f":"IF('Generated list'!D4335=\"\",\"\",'Generated list'!D4335)","v":""}]
[null,{"$f":"IF('Generated list'!B4336=\"\",\"\",'Generated list'!B4336)","v":""},{"$f":"IF('Generated list'!C4336=\"\",\"\",'Generated list'!C4336)","v":""},{"$f":"IF('Generated list'!D4336=\"\",\"\",'Generated list'!D4336)","v":""}]
[null,{"$f":"IF('Generated list'!B4337=\"\",\"\",'Generated list'!B4337)","v":""},{"$f":"IF('Generated list'!C4337=\"\",\"\",'Generated list'!C4337)","v":""},{"$f":"IF('Generated list'!D4337=\"\",\"\",'Generated list'!D4337)","v":""}]
[null,{"$f":"IF('Generated list'!B4338=\"\",\"\",'Generated list'!B4338)","v":""},{"$f":"IF('Generated list'!C4338=\"\",\"\",'Generated list'!C4338)","v":""},{"$f":"IF('Generated list'!D4338=\"\",\"\",'Generated list'!D4338)","v":""}]
[null,{"$f":"IF('Generated list'!B4339=\"\",\"\",'Generated list'!B4339)","v":""},{"$f":"IF('Generated list'!C4339=\"\",\"\",'Generated list'!C4339)","v":""},{"$f":"IF('Generated list'!D4339=\"\",\"\",'Generated list'!D4339)","v":""}]
[null,{"$f":"IF('Generated list'!B4340=\"\",\"\",'Generated list'!B4340)","v":""},{"$f":"IF('Generated list'!C4340=\"\",\"\",'Generated list'!C4340)","v":""},{"$f":"IF('Generated list'!D4340=\"\",\"\",'Generated list'!D4340)","v":""}]
[null,{"$f":"IF('Generated list'!B4341=\"\",\"\",'Generated list'!B4341)","v":""},{"$f":"IF('Generated list'!C4341=\"\",\"\",'Generated list'!C4341)","v":""},{"$f":"IF('Generated list'!D4341=\"\",\"\",'Generated list'!D4341)","v":""}]
[null,{"$f":"IF('Generated list'!B4342=\"\",\"\",'Generated list'!B4342)","v":""},{"$f":"IF('Generated list'!C4342=\"\",\"\",'Generated list'!C4342)","v":""},{"$f":"IF('Generated list'!D4342=\"\",\"\",'Generated list'!D4342)","v":""}]
[null,{"$f":"IF('Generated list'!B4343=\"\",\"\",'Generated list'!B4343)","v":""},{"$f":"IF('Generated list'!C4343=\"\",\"\",'Generated list'!C4343)","v":""},{"$f":"IF('Generated list'!D4343=\"\",\"\",'Generated list'!D4343)","v":""}]
[null,{"$f":"IF('Generated list'!B4344=\"\",\"\",'Generated list'!B4344)","v":""},{"$f":"IF('Generated list'!C4344=\"\",\"\",'Generated list'!C4344)","v":""},{"$f":"IF('Generated list'!D4344=\"\",\"\",'Generated list'!D4344)","v":""}]
[null,{"$f":"IF('Generated list'!B4345=\"\",\"\",'Generated list'!B4345)","v":""},{"$f":"IF('Generated list'!C4345=\"\",\"\",'Generated list'!C4345)","v":""},{"$f":"IF('Generated list'!D4345=\"\",\"\",'Generated list'!D4345)","v":""}]
[null,{"$f":"IF('Generated list'!B4346=\"\",\"\",'Generated list'!B4346)","v":""},{"$f":"IF('Generated list'!C4346=\"\",\"\",'Generated list'!C4346)","v":""},{"$f":"IF('Generated list'!D4346=\"\",\"\",'Generated list'!D4346)","v":""}]
[null,{"$f":"IF('Generated list'!B4347=\"\",\"\",'Generated list'!B4347)","v":""},{"$f":"IF('Generated list'!C4347=\"\",\"\",'Generated list'!C4347)","v":""},{"$f":"IF('Generated list'!D4347=\"\",\"\",'Generated list'!D4347)","v":""}]
[null,{"$f":"IF('Generated list'!B4348=\"\",\"\",'Generated list'!B4348)","v":""},{"$f":"IF('Generated list'!C4348=\"\",\"\",'Generated list'!C4348)","v":""},{"$f":"IF('Generated list'!D4348=\"\",\"\",'Generated list'!D4348)","v":""}]
[null,{"$f":"IF('Generated list'!B4349=\"\",\"\",'Generated list'!B4349)","v":""},{"$f":"IF('Generated list'!C4349=\"\",\"\",'Generated list'!C4349)","v":""},{"$f":"IF('Generated list'!D4349=\"\",\"\",'Generated list'!D4349)","v":""}]
[null,{"$f":"IF('Generated list'!B4350=\"\",\"\",'Generated list'!B4350)","v":""},{"$f":"IF('Generated list'!C4350=\"\",\"\",'Generated list'!C4350)","v":""},{"$f":"IF('Generated list'!D4350=\"\",\"\",'Generated list'!D4350)","v":""}]
[null,{"$f":"IF('Generated list'!B4351=\"\",\"\",'Generated list'!B4351)","v":""},{"$f":"IF('Generated list'!C4351=\"\",\"\",'Generated list'!C4351)","v":""},{"$f":"IF('Generated list'!D4351=\"\",\"\",'Generated list'!D4351)","v":""}]
[null,{"$f":"IF('Generated list'!B4352=\"\",\"\",'Generated list'!B4352)","v":""},{"$f":"IF('Generated list'!C4352=\"\",\"\",'Generated list'!C4352)","v":""},{"$f":"IF('Generated list'!D4352=\"\",\"\",'Generated list'!D4352)","v":""}]
[null,{"$f":"IF('Generated list'!B4353=\"\",\"\",'Generated list'!B4353)","v":""},{"$f":"IF('Generated list'!C4353=\"\",\"\",'Generated list'!C4353)","v":""},{"$f":"IF('Generated list'!D4353=\"\",\"\",'Generated list'!D4353)","v":""}]
[null,{"$f":"IF('Generated list'!B4354=\"\",\"\",'Generated list'!B4354)","v":""},{"$f":"IF('Generated list'!C4354=\"\",\"\",'Generated list'!C4354)","v":""},{"$f":"IF('Generated list'!D4354=\"\",\"\",'Generated list'!D4354)","v":""}]
[null,{"$f":"IF('Generated list'!B4355=\"\",\"\",'Generated list'!B4355)","v":""},{"$f":"IF('Generated list'!C4355=\"\",\"\",'Generated list'!C4355)","v":""},{"$f":"IF('Generated list'!D4355=\"\",\"\",'Generated list'!D4355)","v":""}]
[null,{"$f":"IF('Generated list'!B4356=\"\",\"\",'Generated list'!B4356)","v":""},{"$f":"IF('Generated list'!C4356=\"\",\"\",'Generated list'!C4356)","v":""},{"$f":"IF('Generated list'!D4356=\"\",\"\",'Generated list'!D4356)","v":""}]
[null,{"$f":"IF('Generated list'!B4357=\"\",\"\",'Generated list'!B4357)","v":""},{"$f":"IF('Generated list'!C4357=\"\",\"\",'Generated list'!C4357)","v":""},{"$f":"IF('Generated list'!D4357=\"\",\"\",'Generated list'!D4357)","v":""}]
[null,{"$f":"IF('Generated list'!B4358=\"\",\"\",'Generated list'!B4358)","v":""},{"$f":"IF('Generated list'!C4358=\"\",\"\",'Generated list'!C4358)","v":""},{"$f":"IF('Generated list'!D4358=\"\",\"\",'Generated list'!D4358)","v":""}]
[null,{"$f":"IF('Generated list'!B4359=\"\",\"\",'Generated list'!B4359)","v":""},{"$f":"IF('Generated list'!C4359=\"\",\"\",'Generated list'!C4359)","v":""},{"$f":"IF('Generated list'!D4359=\"\",\"\",'Generated list'!D4359)","v":""}]
[null,{"$f":"IF('Generated list'!B4360=\"\",\"\",'Generated list'!B4360)","v":""},{"$f":"IF('Generated list'!C4360=\"\",\"\",'Generated list'!C4360)","v":""},{"$f":"IF('Generated list'!D4360=\"\",\"\",'Generated list'!D4360)","v":""}]
[null,{"$f":"IF('Generated list'!B4361=\"\",\"\",'Generated list'!B4361)","v":""},{"$f":"IF('Generated list'!C4361=\"\",\"\",'Generated list'!C4361)","v":""},{"$f":"IF('Generated list'!D4361=\"\",\"\",'Generated list'!D4361)","v":""}]
[null,{"$f":"IF('Generated list'!B4362=\"\",\"\",'Generated list'!B4362)","v":""},{"$f":"IF('Generated list'!C4362=\"\",\"\",'Generated list'!C4362)","v":""},{"$f":"IF('Generated list'!D4362=\"\",\"\",'Generated list'!D4362)","v":""}]
[null,{"$f":"IF('Generated list'!B4363=\"\",\"\",'Generated list'!B4363)","v":""},{"$f":"IF('Generated list'!C4363=\"\",\"\",'Generated list'!C4363)","v":""},{"$f":"IF('Generated list'!D4363=\"\",\"\",'Generated list'!D4363)","v":""}]
[null,{"$f":"IF('Generated list'!B4364=\"\",\"\",'Generated list'!B4364)","v":""},{"$f":"IF('Generated list'!C4364=\"\",\"\",'Generated list'!C4364)","v":""},{"$f":"IF('Generated list'!D4364=\"\",\"\",'Generated list'!D4364)","v":""}]
[null,{"$f":"IF('Generated list'!B4365=\"\",\"\",'Generated list'!B4365)","v":""},{"$f":"IF('Generated list'!C4365=\"\",\"\",'Generated list'!C4365)","v":""},{"$f":"IF('Generated list'!D4365=\"\",\"\",'Generated list'!D4365)","v":""}]
[null,{"$f":"IF('Generated list'!B4366=\"\",\"\",'Generated list'!B4366)","v":""},{"$f":"IF('Generated list'!C4366=\"\",\"\",'Generated list'!C4366)","v":""},{"$f":"IF('Generated list'!D4366=\"\",\"\",'Generated list'!D4366)","v":""}]
[null,{"$f":"IF('Generated list'!B4367=\"\",\"\",'Generated list'!B4367)","v":""},{"$f":"IF('Generated list'!C4367=\"\",\"\",'Generated list'!C4367)","v":""},{"$f":"IF('Generated list'!D4367=\"\",\"\",'Generated list'!D4367)","v":""}]
[null,{"$f":"IF('Generated list'!B4368=\"\",\"\",'Generated list'!B4368)","v":""},{"$f":"IF('Generated list'!C4368=\"\",\"\",'Generated list'!C4368)","v":""},{"$f":"IF('Generated list'!D4368=\"\",\"\",'Generated list'!D4368)","v":""}]
[null,{"$f":"IF('Generated list'!B4369=\"\",\"\",'Generated list'!B4369)","v":""},{"$f":"IF('Generated list'!C4369=\"\",\"\",'Generated list'!C4369)","v":""},{"$f":"IF('Generated list'!D4369=\"\",\"\",'Generated list'!D4369)","v":""}]
[null,{"$f":"IF('Generated list'!B4370=\"\",\"\",'Generated list'!B4370)","v":""},{"$f":"IF('Generated list'!C4370=\"\",\"\",'Generated list'!C4370)","v":""},{"$f":"IF('Generated list'!D4370=\"\",\"\",'Generated list'!D4370)","v":""}]
[null,{"$f":"IF('Generated list'!B4371=\"\",\"\",'Generated list'!B4371)","v":""},{"$f":"IF('Generated list'!C4371=\"\",\"\",'Generated list'!C4371)","v":""},{"$f":"IF('Generated list'!D4371=\"\",\"\",'Generated list'!D4371)","v":""}]
[null,{"$f":"IF('Generated list'!B4372=\"\",\"\",'Generated list'!B4372)","v":""},{"$f":"IF('Generated list'!C4372=\"\",\"\",'Generated list'!C4372)","v":""},{"$f":"IF('Generated list'!D4372=\"\",\"\",'Generated list'!D4372)","v":""}]
[null,{"$f":"IF('Generated list'!B4373=\"\",\"\",'Generated list'!B4373)","v":""},{"$f":"IF('Generated list'!C4373=\"\",\"\",'Generated list'!C4373)","v":""},{"$f":"IF('Generated list'!D4373=\"\",\"\",'Generated list'!D4373)","v":""}]
[null,{"$f":"IF('Generated list'!B4374=\"\",\"\",'Generated list'!B4374)","v":""},{"$f":"IF('Generated list'!C4374=\"\",\"\",'Generated list'!C4374)","v":""},{"$f":"IF('Generated list'!D4374=\"\",\"\",'Generated list'!D4374)","v":""}]
[null,{"$f":"IF('Generated list'!B4375=\"\",\"\",'Generated list'!B4375)","v":""},{"$f":"IF('Generated list'!C4375=\"\",\"\",'Generated list'!C4375)","v":""},{"$f":"IF('Generated list'!D4375=\"\",\"\",'Generated list'!D4375)","v":""}]
[null,{"$f":"IF('Generated list'!B4376=\"\",\"\",'Generated list'!B4376)","v":""},{"$f":"IF('Generated list'!C4376=\"\",\"\",'Generated list'!C4376)","v":""},{"$f":"IF('Generated list'!D4376=\"\",\"\",'Generated list'!D4376)","v":""}]
[null,{"$f":"IF('Generated list'!B4377=\"\",\"\",'Generated list'!B4377)","v":""},{"$f":"IF('Generated list'!C4377=\"\",\"\",'Generated list'!C4377)","v":""},{"$f":"IF('Generated list'!D4377=\"\",\"\",'Generated list'!D4377)","v":""}]
[null,{"$f":"IF('Generated list'!B4378=\"\",\"\",'Generated list'!B4378)","v":""},{"$f":"IF('Generated list'!C4378=\"\",\"\",'Generated list'!C4378)","v":""},{"$f":"IF('Generated list'!D4378=\"\",\"\",'Generated list'!D4378)","v":""}]
[null,{"$f":"IF('Generated list'!B4379=\"\",\"\",'Generated list'!B4379)","v":""},{"$f":"IF('Generated list'!C4379=\"\",\"\",'Generated list'!C4379)","v":""},{"$f":"IF('Generated list'!D4379=\"\",\"\",'Generated list'!D4379)","v":""}]
[null,{"$f":"IF('Generated list'!B4380=\"\",\"\",'Generated list'!B4380)","v":""},{"$f":"IF('Generated list'!C4380=\"\",\"\",'Generated list'!C4380)","v":""},{"$f":"IF('Generated list'!D4380=\"\",\"\",'Generated list'!D4380)","v":""}]
[null,{"$f":"IF('Generated list'!B4381=\"\",\"\",'Generated list'!B4381)","v":""},{"$f":"IF('Generated list'!C4381=\"\",\"\",'Generated list'!C4381)","v":""},{"$f":"IF('Generated list'!D4381=\"\",\"\",'Generated list'!D4381)","v":""}]
[null,{"$f":"IF('Generated list'!B4382=\"\",\"\",'Generated list'!B4382)","v":""},{"$f":"IF('Generated list'!C4382=\"\",\"\",'Generated list'!C4382)","v":""},{"$f":"IF('Generated list'!D4382=\"\",\"\",'Generated list'!D4382)","v":""}]
[null,{"$f":"IF('Generated list'!B4383=\"\",\"\",'Generated list'!B4383)","v":""},{"$f":"IF('Generated list'!C4383=\"\",\"\",'Generated list'!C4383)","v":""},{"$f":"IF('Generated list'!D4383=\"\",\"\",'Generated list'!D4383)","v":""}]
[null,{"$f":"IF('Generated list'!B4384=\"\",\"\",'Generated list'!B4384)","v":""},{"$f":"IF('Generated list'!C4384=\"\",\"\",'Generated list'!C4384)","v":""},{"$f":"IF('Generated list'!D4384=\"\",\"\",'Generated list'!D4384)","v":""}]
[null,{"$f":"IF('Generated list'!B4385=\"\",\"\",'Generated list'!B4385)","v":""},{"$f":"IF('Generated list'!C4385=\"\",\"\",'Generated list'!C4385)","v":""},{"$f":"IF('Generated list'!D4385=\"\",\"\",'Generated list'!D4385)","v":""}]
[null,{"$f":"IF('Generated list'!B4386=\"\",\"\",'Generated list'!B4386)","v":""},{"$f":"IF('Generated list'!C4386=\"\",\"\",'Generated list'!C4386)","v":""},{"$f":"IF('Generated list'!D4386=\"\",\"\",'Generated list'!D4386)","v":""}]
[null,{"$f":"IF('Generated list'!B4387=\"\",\"\",'Generated list'!B4387)","v":""},{"$f":"IF('Generated list'!C4387=\"\",\"\",'Generated list'!C4387)","v":""},{"$f":"IF('Generated list'!D4387=\"\",\"\",'Generated list'!D4387)","v":""}]
[null,{"$f":"IF('Generated list'!B4388=\"\",\"\",'Generated list'!B4388)","v":""},{"$f":"IF('Generated list'!C4388=\"\",\"\",'Generated list'!C4388)","v":""},{"$f":"IF('Generated list'!D4388=\"\",\"\",'Generated list'!D4388)","v":""}]
[null,{"$f":"IF('Generated list'!B4389=\"\",\"\",'Generated list'!B4389)","v":""},{"$f":"IF('Generated list'!C4389=\"\",\"\",'Generated list'!C4389)","v":""},{"$f":"IF('Generated list'!D4389=\"\",\"\",'Generated list'!D4389)","v":""}]
[null,{"$f":"IF('Generated list'!B4390=\"\",\"\",'Generated list'!B4390)","v":""},{"$f":"IF('Generated list'!C4390=\"\",\"\",'Generated list'!C4390)","v":""},{"$f":"IF('Generated list'!D4390=\"\",\"\",'Generated list'!D4390)","v":""}]
[null,{"$f":"IF('Generated list'!B4391=\"\",\"\",'Generated list'!B4391)","v":""},{"$f":"IF('Generated list'!C4391=\"\",\"\",'Generated list'!C4391)","v":""},{"$f":"IF('Generated list'!D4391=\"\",\"\",'Generated list'!D4391)","v":""}]
[null,{"$f":"IF('Generated list'!B4392=\"\",\"\",'Generated list'!B4392)","v":""},{"$f":"IF('Generated list'!C4392=\"\",\"\",'Generated list'!C4392)","v":""},{"$f":"IF('Generated list'!D4392=\"\",\"\",'Generated list'!D4392)","v":""}]
[null,{"$f":"IF('Generated list'!B4393=\"\",\"\",'Generated list'!B4393)","v":""},{"$f":"IF('Generated list'!C4393=\"\",\"\",'Generated list'!C4393)","v":""},{"$f":"IF('Generated list'!D4393=\"\",\"\",'Generated list'!D4393)","v":""}]
[null,{"$f":"IF('Generated list'!B4394=\"\",\"\",'Generated list'!B4394)","v":""},{"$f":"IF('Generated list'!C4394=\"\",\"\",'Generated list'!C4394)","v":""},{"$f":"IF('Generated list'!D4394=\"\",\"\",'Generated list'!D4394)","v":""}]
[null,{"$f":"IF('Generated list'!B4395=\"\",\"\",'Generated list'!B4395)","v":""},{"$f":"IF('Generated list'!C4395=\"\",\"\",'Generated list'!C4395)","v":""},{"$f":"IF('Generated list'!D4395=\"\",\"\",'Generated list'!D4395)","v":""}]
[null,{"$f":"IF('Generated list'!B4396=\"\",\"\",'Generated list'!B4396)","v":""},{"$f":"IF('Generated list'!C4396=\"\",\"\",'Generated list'!C4396)","v":""},{"$f":"IF('Generated list'!D4396=\"\",\"\",'Generated list'!D4396)","v":""}]
[null,{"$f":"IF('Generated list'!B4397=\"\",\"\",'Generated list'!B4397)","v":""},{"$f":"IF('Generated list'!C4397=\"\",\"\",'Generated list'!C4397)","v":""},{"$f":"IF('Generated list'!D4397=\"\",\"\",'Generated list'!D4397)","v":""}]
[null,{"$f":"IF('Generated list'!B4398=\"\",\"\",'Generated list'!B4398)","v":""},{"$f":"IF('Generated list'!C4398=\"\",\"\",'Generated list'!C4398)","v":""},{"$f":"IF('Generated list'!D4398=\"\",\"\",'Generated list'!D4398)","v":""}]
[null,{"$f":"IF('Generated list'!B4399=\"\",\"\",'Generated list'!B4399)","v":""},{"$f":"IF('Generated list'!C4399=\"\",\"\",'Generated list'!C4399)","v":""},{"$f":"IF('Generated list'!D4399=\"\",\"\",'Generated list'!D4399)","v":""}]
[null,{"$f":"IF('Generated list'!B4400=\"\",\"\",'Generated list'!B4400)","v":""},{"$f":"IF('Generated list'!C4400=\"\",\"\",'Generated list'!C4400)","v":""},{"$f":"IF('Generated list'!D4400=\"\",\"\",'Generated list'!D4400)","v":""}]
[null,{"$f":"IF('Generated list'!B4401=\"\",\"\",'Generated list'!B4401)","v":""},{"$f":"IF('Generated list'!C4401=\"\",\"\",'Generated list'!C4401)","v":""},{"$f":"IF('Generated list'!D4401=\"\",\"\",'Generated list'!D4401)","v":""}]
[null,{"$f":"IF('Generated list'!B4402=\"\",\"\",'Generated list'!B4402)","v":""},{"$f":"IF('Generated list'!C4402=\"\",\"\",'Generated list'!C4402)","v":""},{"$f":"IF('Generated list'!D4402=\"\",\"\",'Generated list'!D4402)","v":""}]
[null,{"$f":"IF('Generated list'!B4403=\"\",\"\",'Generated list'!B4403)","v":""},{"$f":"IF('Generated list'!C4403=\"\",\"\",'Generated list'!C4403)","v":""},{"$f":"IF('Generated list'!D4403=\"\",\"\",'Generated list'!D4403)","v":""}]
[null,{"$f":"IF('Generated list'!B4404=\"\",\"\",'Generated list'!B4404)","v":""},{"$f":"IF('Generated list'!C4404=\"\",\"\",'Generated list'!C4404)","v":""},{"$f":"IF('Generated list'!D4404=\"\",\"\",'Generated list'!D4404)","v":""}]
[null,{"$f":"IF('Generated list'!B4405=\"\",\"\",'Generated list'!B4405)","v":""},{"$f":"IF('Generated list'!C4405=\"\",\"\",'Generated list'!C4405)","v":""},{"$f":"IF('Generated list'!D4405=\"\",\"\",'Generated list'!D4405)","v":""}]
[null,{"$f":"IF('Generated list'!B4406=\"\",\"\",'Generated list'!B4406)","v":""},{"$f":"IF('Generated list'!C4406=\"\",\"\",'Generated list'!C4406)","v":""},{"$f":"IF('Generated list'!D4406=\"\",\"\",'Generated list'!D4406)","v":""}]
[null,{"$f":"IF('Generated list'!B4407=\"\",\"\",'Generated list'!B4407)","v":""},{"$f":"IF('Generated list'!C4407=\"\",\"\",'Generated list'!C4407)","v":""},{"$f":"IF('Generated list'!D4407=\"\",\"\",'Generated list'!D4407)","v":""}]
[null,{"$f":"IF('Generated list'!B4408=\"\",\"\",'Generated list'!B4408)","v":""},{"$f":"IF('Generated list'!C4408=\"\",\"\",'Generated list'!C4408)","v":""},{"$f":"IF('Generated list'!D4408=\"\",\"\",'Generated list'!D4408)","v":""}]
[null,{"$f":"IF('Generated list'!B4409=\"\",\"\",'Generated list'!B4409)","v":""},{"$f":"IF('Generated list'!C4409=\"\",\"\",'Generated list'!C4409)","v":""},{"$f":"IF('Generated list'!D4409=\"\",\"\",'Generated list'!D4409)","v":""}]
[null,{"$f":"IF('Generated list'!B4410=\"\",\"\",'Generated list'!B4410)","v":""},{"$f":"IF('Generated list'!C4410=\"\",\"\",'Generated list'!C4410)","v":""},{"$f":"IF('Generated list'!D4410=\"\",\"\",'Generated list'!D4410)","v":""}]
[null,{"$f":"IF('Generated list'!B4411=\"\",\"\",'Generated list'!B4411)","v":""},{"$f":"IF('Generated list'!C4411=\"\",\"\",'Generated list'!C4411)","v":""},{"$f":"IF('Generated list'!D4411=\"\",\"\",'Generated list'!D4411)","v":""}]
[null,{"$f":"IF('Generated list'!B4412=\"\",\"\",'Generated list'!B4412)","v":""},{"$f":"IF('Generated list'!C4412=\"\",\"\",'Generated list'!C4412)","v":""},{"$f":"IF('Generated list'!D4412=\"\",\"\",'Generated list'!D4412)","v":""}]
[null,{"$f":"IF('Generated list'!B4413=\"\",\"\",'Generated list'!B4413)","v":""},{"$f":"IF('Generated list'!C4413=\"\",\"\",'Generated list'!C4413)","v":""},{"$f":"IF('Generated list'!D4413=\"\",\"\",'Generated list'!D4413)","v":""}]
[null,{"$f":"IF('Generated list'!B4414=\"\",\"\",'Generated list'!B4414)","v":""},{"$f":"IF('Generated list'!C4414=\"\",\"\",'Generated list'!C4414)","v":""},{"$f":"IF('Generated list'!D4414=\"\",\"\",'Generated list'!D4414)","v":""}]
[null,{"$f":"IF('Generated list'!B4415=\"\",\"\",'Generated list'!B4415)","v":""},{"$f":"IF('Generated list'!C4415=\"\",\"\",'Generated list'!C4415)","v":""},{"$f":"IF('Generated list'!D4415=\"\",\"\",'Generated list'!D4415)","v":""}]
[null,{"$f":"IF('Generated list'!B4416=\"\",\"\",'Generated list'!B4416)","v":""},{"$f":"IF('Generated list'!C4416=\"\",\"\",'Generated list'!C4416)","v":""},{"$f":"IF('Generated list'!D4416=\"\",\"\",'Generated list'!D4416)","v":""}]
[null,{"$f":"IF('Generated list'!B4417=\"\",\"\",'Generated list'!B4417)","v":""},{"$f":"IF('Generated list'!C4417=\"\",\"\",'Generated list'!C4417)","v":""},{"$f":"IF('Generated list'!D4417=\"\",\"\",'Generated list'!D4417)","v":""}]
[null,{"$f":"IF('Generated list'!B4418=\"\",\"\",'Generated list'!B4418)","v":""},{"$f":"IF('Generated list'!C4418=\"\",\"\",'Generated list'!C4418)","v":""},{"$f":"IF('Generated list'!D4418=\"\",\"\",'Generated list'!D4418)","v":""}]
[null,{"$f":"IF('Generated list'!B4419=\"\",\"\",'Generated list'!B4419)","v":""},{"$f":"IF('Generated list'!C4419=\"\",\"\",'Generated list'!C4419)","v":""},{"$f":"IF('Generated list'!D4419=\"\",\"\",'Generated list'!D4419)","v":""}]
[null,{"$f":"IF('Generated list'!B4420=\"\",\"\",'Generated list'!B4420)","v":""},{"$f":"IF('Generated list'!C4420=\"\",\"\",'Generated list'!C4420)","v":""},{"$f":"IF('Generated list'!D4420=\"\",\"\",'Generated list'!D4420)","v":""}]
[null,{"$f":"IF('Generated list'!B4421=\"\",\"\",'Generated list'!B4421)","v":""},{"$f":"IF('Generated list'!C4421=\"\",\"\",'Generated list'!C4421)","v":""},{"$f":"IF('Generated list'!D4421=\"\",\"\",'Generated list'!D4421)","v":""}]
[null,{"$f":"IF('Generated list'!B4422=\"\",\"\",'Generated list'!B4422)","v":""},{"$f":"IF('Generated list'!C4422=\"\",\"\",'Generated list'!C4422)","v":""},{"$f":"IF('Generated list'!D4422=\"\",\"\",'Generated list'!D4422)","v":""}]
[null,{"$f":"IF('Generated list'!B4423=\"\",\"\",'Generated list'!B4423)","v":""},{"$f":"IF('Generated list'!C4423=\"\",\"\",'Generated list'!C4423)","v":""},{"$f":"IF('Generated list'!D4423=\"\",\"\",'Generated list'!D4423)","v":""}]
[null,{"$f":"IF('Generated list'!B4424=\"\",\"\",'Generated list'!B4424)","v":""},{"$f":"IF('Generated list'!C4424=\"\",\"\",'Generated list'!C4424)","v":""},{"$f":"IF('Generated list'!D4424=\"\",\"\",'Generated list'!D4424)","v":""}]
[null,{"$f":"IF('Generated list'!B4425=\"\",\"\",'Generated list'!B4425)","v":""},{"$f":"IF('Generated list'!C4425=\"\",\"\",'Generated list'!C4425)","v":""},{"$f":"IF('Generated list'!D4425=\"\",\"\",'Generated list'!D4425)","v":""}]
[null,{"$f":"IF('Generated list'!B4426=\"\",\"\",'Generated list'!B4426)","v":""},{"$f":"IF('Generated list'!C4426=\"\",\"\",'Generated list'!C4426)","v":""},{"$f":"IF('Generated list'!D4426=\"\",\"\",'Generated list'!D4426)","v":""}]
[null,{"$f":"IF('Generated list'!B4427=\"\",\"\",'Generated list'!B4427)","v":""},{"$f":"IF('Generated list'!C4427=\"\",\"\",'Generated list'!C4427)","v":""},{"$f":"IF('Generated list'!D4427=\"\",\"\",'Generated list'!D4427)","v":""}]
[null,{"$f":"IF('Generated list'!B4428=\"\",\"\",'Generated list'!B4428)","v":""},{"$f":"IF('Generated list'!C4428=\"\",\"\",'Generated list'!C4428)","v":""},{"$f":"IF('Generated list'!D4428=\"\",\"\",'Generated list'!D4428)","v":""}]
[null,{"$f":"IF('Generated list'!B4429=\"\",\"\",'Generated list'!B4429)","v":""},{"$f":"IF('Generated list'!C4429=\"\",\"\",'Generated list'!C4429)","v":""},{"$f":"IF('Generated list'!D4429=\"\",\"\",'Generated list'!D4429)","v":""}]
[null,{"$f":"IF('Generated list'!B4430=\"\",\"\",'Generated list'!B4430)","v":""},{"$f":"IF('Generated list'!C4430=\"\",\"\",'Generated list'!C4430)","v":""},{"$f":"IF('Generated list'!D4430=\"\",\"\",'Generated list'!D4430)","v":""}]
[null,{"$f":"IF('Generated list'!B4431=\"\",\"\",'Generated list'!B4431)","v":""},{"$f":"IF('Generated list'!C4431=\"\",\"\",'Generated list'!C4431)","v":""},{"$f":"IF('Generated list'!D4431=\"\",\"\",'Generated list'!D4431)","v":""}]
[null,{"$f":"IF('Generated list'!B4432=\"\",\"\",'Generated list'!B4432)","v":""},{"$f":"IF('Generated list'!C4432=\"\",\"\",'Generated list'!C4432)","v":""},{"$f":"IF('Generated list'!D4432=\"\",\"\",'Generated list'!D4432)","v":""}]
[null,{"$f":"IF('Generated list'!B4433=\"\",\"\",'Generated list'!B4433)","v":""},{"$f":"IF('Generated list'!C4433=\"\",\"\",'Generated list'!C4433)","v":""},{"$f":"IF('Generated list'!D4433=\"\",\"\",'Generated list'!D4433)","v":""}]
[null,{"$f":"IF('Generated list'!B4434=\"\",\"\",'Generated list'!B4434)","v":""},{"$f":"IF('Generated list'!C4434=\"\",\"\",'Generated list'!C4434)","v":""},{"$f":"IF('Generated list'!D4434=\"\",\"\",'Generated list'!D4434)","v":""}]
[null,{"$f":"IF('Generated list'!B4435=\"\",\"\",'Generated list'!B4435)","v":""},{"$f":"IF('Generated list'!C4435=\"\",\"\",'Generated list'!C4435)","v":""},{"$f":"IF('Generated list'!D4435=\"\",\"\",'Generated list'!D4435)","v":""}]
[null,{"$f":"IF('Generated list'!B4436=\"\",\"\",'Generated list'!B4436)","v":""},{"$f":"IF('Generated list'!C4436=\"\",\"\",'Generated list'!C4436)","v":""},{"$f":"IF('Generated list'!D4436=\"\",\"\",'Generated list'!D4436)","v":""}]
[null,{"$f":"IF('Generated list'!B4437=\"\",\"\",'Generated list'!B4437)","v":""},{"$f":"IF('Generated list'!C4437=\"\",\"\",'Generated list'!C4437)","v":""},{"$f":"IF('Generated list'!D4437=\"\",\"\",'Generated list'!D4437)","v":""}]
[null,{"$f":"IF('Generated list'!B4438=\"\",\"\",'Generated list'!B4438)","v":""},{"$f":"IF('Generated list'!C4438=\"\",\"\",'Generated list'!C4438)","v":""},{"$f":"IF('Generated list'!D4438=\"\",\"\",'Generated list'!D4438)","v":""}]
[null,{"$f":"IF('Generated list'!B4439=\"\",\"\",'Generated list'!B4439)","v":""},{"$f":"IF('Generated list'!C4439=\"\",\"\",'Generated list'!C4439)","v":""},{"$f":"IF('Generated list'!D4439=\"\",\"\",'Generated list'!D4439)","v":""}]
[null,{"$f":"IF('Generated list'!B4440=\"\",\"\",'Generated list'!B4440)","v":""},{"$f":"IF('Generated list'!C4440=\"\",\"\",'Generated list'!C4440)","v":""},{"$f":"IF('Generated list'!D4440=\"\",\"\",'Generated list'!D4440)","v":""}]
[null,{"$f":"IF('Generated list'!B4441=\"\",\"\",'Generated list'!B4441)","v":""},{"$f":"IF('Generated list'!C4441=\"\",\"\",'Generated list'!C4441)","v":""},{"$f":"IF('Generated list'!D4441=\"\",\"\",'Generated list'!D4441)","v":""}]
[null,{"$f":"IF('Generated list'!B4442=\"\",\"\",'Generated list'!B4442)","v":""},{"$f":"IF('Generated list'!C4442=\"\",\"\",'Generated list'!C4442)","v":""},{"$f":"IF('Generated list'!D4442=\"\",\"\",'Generated list'!D4442)","v":""}]
[null,{"$f":"IF('Generated list'!B4443=\"\",\"\",'Generated list'!B4443)","v":""},{"$f":"IF('Generated list'!C4443=\"\",\"\",'Generated list'!C4443)","v":""},{"$f":"IF('Generated list'!D4443=\"\",\"\",'Generated list'!D4443)","v":""}]
[null,{"$f":"IF('Generated list'!B4444=\"\",\"\",'Generated list'!B4444)","v":""},{"$f":"IF('Generated list'!C4444=\"\",\"\",'Generated list'!C4444)","v":""},{"$f":"IF('Generated list'!D4444=\"\",\"\",'Generated list'!D4444)","v":""}]
[null,{"$f":"IF('Generated list'!B4445=\"\",\"\",'Generated list'!B4445)","v":""},{"$f":"IF('Generated list'!C4445=\"\",\"\",'Generated list'!C4445)","v":""},{"$f":"IF('Generated list'!D4445=\"\",\"\",'Generated list'!D4445)","v":""}]
[null,{"$f":"IF('Generated list'!B4446=\"\",\"\",'Generated list'!B4446)","v":""},{"$f":"IF('Generated list'!C4446=\"\",\"\",'Generated list'!C4446)","v":""},{"$f":"IF('Generated list'!D4446=\"\",\"\",'Generated list'!D4446)","v":""}]
[null,{"$f":"IF('Generated list'!B4447=\"\",\"\",'Generated list'!B4447)","v":""},{"$f":"IF('Generated list'!C4447=\"\",\"\",'Generated list'!C4447)","v":""},{"$f":"IF('Generated list'!D4447=\"\",\"\",'Generated list'!D4447)","v":""}]
[null,{"$f":"IF('Generated list'!B4448=\"\",\"\",'Generated list'!B4448)","v":""},{"$f":"IF('Generated list'!C4448=\"\",\"\",'Generated list'!C4448)","v":""},{"$f":"IF('Generated list'!D4448=\"\",\"\",'Generated list'!D4448)","v":""}]
[null,{"$f":"IF('Generated list'!B4449=\"\",\"\",'Generated list'!B4449)","v":""},{"$f":"IF('Generated list'!C4449=\"\",\"\",'Generated list'!C4449)","v":""},{"$f":"IF('Generated list'!D4449=\"\",\"\",'Generated list'!D4449)","v":""}]
[null,{"$f":"IF('Generated list'!B4450=\"\",\"\",'Generated list'!B4450)","v":""},{"$f":"IF('Generated list'!C4450=\"\",\"\",'Generated list'!C4450)","v":""},{"$f":"IF('Generated list'!D4450=\"\",\"\",'Generated list'!D4450)","v":""}]
[null,{"$f":"IF('Generated list'!B4451=\"\",\"\",'Generated list'!B4451)","v":""},{"$f":"IF('Generated list'!C4451=\"\",\"\",'Generated list'!C4451)","v":""},{"$f":"IF('Generated list'!D4451=\"\",\"\",'Generated list'!D4451)","v":""}]
[null,{"$f":"IF('Generated list'!B4452=\"\",\"\",'Generated list'!B4452)","v":""},{"$f":"IF('Generated list'!C4452=\"\",\"\",'Generated list'!C4452)","v":""},{"$f":"IF('Generated list'!D4452=\"\",\"\",'Generated list'!D4452)","v":""}]
[null,{"$f":"IF('Generated list'!B4453=\"\",\"\",'Generated list'!B4453)","v":""},{"$f":"IF('Generated list'!C4453=\"\",\"\",'Generated list'!C4453)","v":""},{"$f":"IF('Generated list'!D4453=\"\",\"\",'Generated list'!D4453)","v":""}]
[null,{"$f":"IF('Generated list'!B4454=\"\",\"\",'Generated list'!B4454)","v":""},{"$f":"IF('Generated list'!C4454=\"\",\"\",'Generated list'!C4454)","v":""},{"$f":"IF('Generated list'!D4454=\"\",\"\",'Generated list'!D4454)","v":""}]
[null,{"$f":"IF('Generated list'!B4455=\"\",\"\",'Generated list'!B4455)","v":""},{"$f":"IF('Generated list'!C4455=\"\",\"\",'Generated list'!C4455)","v":""},{"$f":"IF('Generated list'!D4455=\"\",\"\",'Generated list'!D4455)","v":""}]
[null,{"$f":"IF('Generated list'!B4456=\"\",\"\",'Generated list'!B4456)","v":""},{"$f":"IF('Generated list'!C4456=\"\",\"\",'Generated list'!C4456)","v":""},{"$f":"IF('Generated list'!D4456=\"\",\"\",'Generated list'!D4456)","v":""}]
[null,{"$f":"IF('Generated list'!B4457=\"\",\"\",'Generated list'!B4457)","v":""},{"$f":"IF('Generated list'!C4457=\"\",\"\",'Generated list'!C4457)","v":""},{"$f":"IF('Generated list'!D4457=\"\",\"\",'Generated list'!D4457)","v":""}]
[null,{"$f":"IF('Generated list'!B4458=\"\",\"\",'Generated list'!B4458)","v":""},{"$f":"IF('Generated list'!C4458=\"\",\"\",'Generated list'!C4458)","v":""},{"$f":"IF('Generated list'!D4458=\"\",\"\",'Generated list'!D4458)","v":""}]
[null,{"$f":"IF('Generated list'!B4459=\"\",\"\",'Generated list'!B4459)","v":""},{"$f":"IF('Generated list'!C4459=\"\",\"\",'Generated list'!C4459)","v":""},{"$f":"IF('Generated list'!D4459=\"\",\"\",'Generated list'!D4459)","v":""}]
[null,{"$f":"IF('Generated list'!B4460=\"\",\"\",'Generated list'!B4460)","v":""},{"$f":"IF('Generated list'!C4460=\"\",\"\",'Generated list'!C4460)","v":""},{"$f":"IF('Generated list'!D4460=\"\",\"\",'Generated list'!D4460)","v":""}]
[null,{"$f":"IF('Generated list'!B4461=\"\",\"\",'Generated list'!B4461)","v":""},{"$f":"IF('Generated list'!C4461=\"\",\"\",'Generated list'!C4461)","v":""},{"$f":"IF('Generated list'!D4461=\"\",\"\",'Generated list'!D4461)","v":""}]
[null,{"$f":"IF('Generated list'!B4462=\"\",\"\",'Generated list'!B4462)","v":""},{"$f":"IF('Generated list'!C4462=\"\",\"\",'Generated list'!C4462)","v":""},{"$f":"IF('Generated list'!D4462=\"\",\"\",'Generated list'!D4462)","v":""}]
[null,{"$f":"IF('Generated list'!B4463=\"\",\"\",'Generated list'!B4463)","v":""},{"$f":"IF('Generated list'!C4463=\"\",\"\",'Generated list'!C4463)","v":""},{"$f":"IF('Generated list'!D4463=\"\",\"\",'Generated list'!D4463)","v":""}]
[null,{"$f":"IF('Generated list'!B4464=\"\",\"\",'Generated list'!B4464)","v":""},{"$f":"IF('Generated list'!C4464=\"\",\"\",'Generated list'!C4464)","v":""},{"$f":"IF('Generated list'!D4464=\"\",\"\",'Generated list'!D4464)","v":""}]
[null,{"$f":"IF('Generated list'!B4465=\"\",\"\",'Generated list'!B4465)","v":""},{"$f":"IF('Generated list'!C4465=\"\",\"\",'Generated list'!C4465)","v":""},{"$f":"IF('Generated list'!D4465=\"\",\"\",'Generated list'!D4465)","v":""}]
[null,{"$f":"IF('Generated list'!B4466=\"\",\"\",'Generated list'!B4466)","v":""},{"$f":"IF('Generated list'!C4466=\"\",\"\",'Generated list'!C4466)","v":""},{"$f":"IF('Generated list'!D4466=\"\",\"\",'Generated list'!D4466)","v":""}]
[null,{"$f":"IF('Generated list'!B4467=\"\",\"\",'Generated list'!B4467)","v":""},{"$f":"IF('Generated list'!C4467=\"\",\"\",'Generated list'!C4467)","v":""},{"$f":"IF('Generated list'!D4467=\"\",\"\",'Generated list'!D4467)","v":""}]
[null,{"$f":"IF('Generated list'!B4468=\"\",\"\",'Generated list'!B4468)","v":""},{"$f":"IF('Generated list'!C4468=\"\",\"\",'Generated list'!C4468)","v":""},{"$f":"IF('Generated list'!D4468=\"\",\"\",'Generated list'!D4468)","v":""}]
[null,{"$f":"IF('Generated list'!B4469=\"\",\"\",'Generated list'!B4469)","v":""},{"$f":"IF('Generated list'!C4469=\"\",\"\",'Generated list'!C4469)","v":""},{"$f":"IF('Generated list'!D4469=\"\",\"\",'Generated list'!D4469)","v":""}]
[null,{"$f":"IF('Generated list'!B4470=\"\",\"\",'Generated list'!B4470)","v":""},{"$f":"IF('Generated list'!C4470=\"\",\"\",'Generated list'!C4470)","v":""},{"$f":"IF('Generated list'!D4470=\"\",\"\",'Generated list'!D4470)","v":""}]
[null,{"$f":"IF('Generated list'!B4471=\"\",\"\",'Generated list'!B4471)","v":""},{"$f":"IF('Generated list'!C4471=\"\",\"\",'Generated list'!C4471)","v":""},{"$f":"IF('Generated list'!D4471=\"\",\"\",'Generated list'!D4471)","v":""}]
[null,{"$f":"IF('Generated list'!B4472=\"\",\"\",'Generated list'!B4472)","v":""},{"$f":"IF('Generated list'!C4472=\"\",\"\",'Generated list'!C4472)","v":""},{"$f":"IF('Generated list'!D4472=\"\",\"\",'Generated list'!D4472)","v":""}]
[null,{"$f":"IF('Generated list'!B4473=\"\",\"\",'Generated list'!B4473)","v":""},{"$f":"IF('Generated list'!C4473=\"\",\"\",'Generated list'!C4473)","v":""},{"$f":"IF('Generated list'!D4473=\"\",\"\",'Generated list'!D4473)","v":""}]
[null,{"$f":"IF('Generated list'!B4474=\"\",\"\",'Generated list'!B4474)","v":""},{"$f":"IF('Generated list'!C4474=\"\",\"\",'Generated list'!C4474)","v":""},{"$f":"IF('Generated list'!D4474=\"\",\"\",'Generated list'!D4474)","v":""}]
[null,{"$f":"IF('Generated list'!B4475=\"\",\"\",'Generated list'!B4475)","v":""},{"$f":"IF('Generated list'!C4475=\"\",\"\",'Generated list'!C4475)","v":""},{"$f":"IF('Generated list'!D4475=\"\",\"\",'Generated list'!D4475)","v":""}]
[null,{"$f":"IF('Generated list'!B4476=\"\",\"\",'Generated list'!B4476)","v":""},{"$f":"IF('Generated list'!C4476=\"\",\"\",'Generated list'!C4476)","v":""},{"$f":"IF('Generated list'!D4476=\"\",\"\",'Generated list'!D4476)","v":""}]
[null,{"$f":"IF('Generated list'!B4477=\"\",\"\",'Generated list'!B4477)","v":""},{"$f":"IF('Generated list'!C4477=\"\",\"\",'Generated list'!C4477)","v":""},{"$f":"IF('Generated list'!D4477=\"\",\"\",'Generated list'!D4477)","v":""}]
[null,{"$f":"IF('Generated list'!B4478=\"\",\"\",'Generated list'!B4478)","v":""},{"$f":"IF('Generated list'!C4478=\"\",\"\",'Generated list'!C4478)","v":""},{"$f":"IF('Generated list'!D4478=\"\",\"\",'Generated list'!D4478)","v":""}]
[null,{"$f":"IF('Generated list'!B4479=\"\",\"\",'Generated list'!B4479)","v":""},{"$f":"IF('Generated list'!C4479=\"\",\"\",'Generated list'!C4479)","v":""},{"$f":"IF('Generated list'!D4479=\"\",\"\",'Generated list'!D4479)","v":""}]
[null,{"$f":"IF('Generated list'!B4480=\"\",\"\",'Generated list'!B4480)","v":""},{"$f":"IF('Generated list'!C4480=\"\",\"\",'Generated list'!C4480)","v":""},{"$f":"IF('Generated list'!D4480=\"\",\"\",'Generated list'!D4480)","v":""}]
[null,{"$f":"IF('Generated list'!B4481=\"\",\"\",'Generated list'!B4481)","v":""},{"$f":"IF('Generated list'!C4481=\"\",\"\",'Generated list'!C4481)","v":""},{"$f":"IF('Generated list'!D4481=\"\",\"\",'Generated list'!D4481)","v":""}]
[null,{"$f":"IF('Generated list'!B4482=\"\",\"\",'Generated list'!B4482)","v":""},{"$f":"IF('Generated list'!C4482=\"\",\"\",'Generated list'!C4482)","v":""},{"$f":"IF('Generated list'!D4482=\"\",\"\",'Generated list'!D4482)","v":""}]
[null,{"$f":"IF('Generated list'!B4483=\"\",\"\",'Generated list'!B4483)","v":""},{"$f":"IF('Generated list'!C4483=\"\",\"\",'Generated list'!C4483)","v":""},{"$f":"IF('Generated list'!D4483=\"\",\"\",'Generated list'!D4483)","v":""}]
[null,{"$f":"IF('Generated list'!B4484=\"\",\"\",'Generated list'!B4484)","v":""},{"$f":"IF('Generated list'!C4484=\"\",\"\",'Generated list'!C4484)","v":""},{"$f":"IF('Generated list'!D4484=\"\",\"\",'Generated list'!D4484)","v":""}]
[null,{"$f":"IF('Generated list'!B4485=\"\",\"\",'Generated list'!B4485)","v":""},{"$f":"IF('Generated list'!C4485=\"\",\"\",'Generated list'!C4485)","v":""},{"$f":"IF('Generated list'!D4485=\"\",\"\",'Generated list'!D4485)","v":""}]
[null,{"$f":"IF('Generated list'!B4486=\"\",\"\",'Generated list'!B4486)","v":""},{"$f":"IF('Generated list'!C4486=\"\",\"\",'Generated list'!C4486)","v":""},{"$f":"IF('Generated list'!D4486=\"\",\"\",'Generated list'!D4486)","v":""}]
[null,{"$f":"IF('Generated list'!B4487=\"\",\"\",'Generated list'!B4487)","v":""},{"$f":"IF('Generated list'!C4487=\"\",\"\",'Generated list'!C4487)","v":""},{"$f":"IF('Generated list'!D4487=\"\",\"\",'Generated list'!D4487)","v":""}]
[null,{"$f":"IF('Generated list'!B4488=\"\",\"\",'Generated list'!B4488)","v":""},{"$f":"IF('Generated list'!C4488=\"\",\"\",'Generated list'!C4488)","v":""},{"$f":"IF('Generated list'!D4488=\"\",\"\",'Generated list'!D4488)","v":""}]
[null,{"$f":"IF('Generated list'!B4489=\"\",\"\",'Generated list'!B4489)","v":""},{"$f":"IF('Generated list'!C4489=\"\",\"\",'Generated list'!C4489)","v":""},{"$f":"IF('Generated list'!D4489=\"\",\"\",'Generated list'!D4489)","v":""}]
[null,{"$f":"IF('Generated list'!B4490=\"\",\"\",'Generated list'!B4490)","v":""},{"$f":"IF('Generated list'!C4490=\"\",\"\",'Generated list'!C4490)","v":""},{"$f":"IF('Generated list'!D4490=\"\",\"\",'Generated list'!D4490)","v":""}]
[null,{"$f":"IF('Generated list'!B4491=\"\",\"\",'Generated list'!B4491)","v":""},{"$f":"IF('Generated list'!C4491=\"\",\"\",'Generated list'!C4491)","v":""},{"$f":"IF('Generated list'!D4491=\"\",\"\",'Generated list'!D4491)","v":""}]
[null,{"$f":"IF('Generated list'!B4492=\"\",\"\",'Generated list'!B4492)","v":""},{"$f":"IF('Generated list'!C4492=\"\",\"\",'Generated list'!C4492)","v":""},{"$f":"IF('Generated list'!D4492=\"\",\"\",'Generated list'!D4492)","v":""}]
[null,{"$f":"IF('Generated list'!B4493=\"\",\"\",'Generated list'!B4493)","v":""},{"$f":"IF('Generated list'!C4493=\"\",\"\",'Generated list'!C4493)","v":""},{"$f":"IF('Generated list'!D4493=\"\",\"\",'Generated list'!D4493)","v":""}]
[null,{"$f":"IF('Generated list'!B4494=\"\",\"\",'Generated list'!B4494)","v":""},{"$f":"IF('Generated list'!C4494=\"\",\"\",'Generated list'!C4494)","v":""},{"$f":"IF('Generated list'!D4494=\"\",\"\",'Generated list'!D4494)","v":""}]
[null,{"$f":"IF('Generated list'!B4495=\"\",\"\",'Generated list'!B4495)","v":""},{"$f":"IF('Generated list'!C4495=\"\",\"\",'Generated list'!C4495)","v":""},{"$f":"IF('Generated list'!D4495=\"\",\"\",'Generated list'!D4495)","v":""}]
[null,{"$f":"IF('Generated list'!B4496=\"\",\"\",'Generated list'!B4496)","v":""},{"$f":"IF('Generated list'!C4496=\"\",\"\",'Generated list'!C4496)","v":""},{"$f":"IF('Generated list'!D4496=\"\",\"\",'Generated list'!D4496)","v":""}]
[null,{"$f":"IF('Generated list'!B4497=\"\",\"\",'Generated list'!B4497)","v":""},{"$f":"IF('Generated list'!C4497=\"\",\"\",'Generated list'!C4497)","v":""},{"$f":"IF('Generated list'!D4497=\"\",\"\",'Generated list'!D4497)","v":""}]
[null,{"$f":"IF('Generated list'!B4498=\"\",\"\",'Generated list'!B4498)","v":""},{"$f":"IF('Generated list'!C4498=\"\",\"\",'Generated list'!C4498)","v":""},{"$f":"IF('Generated list'!D4498=\"\",\"\",'Generated list'!D4498)","v":""}]
[null,{"$f":"IF('Generated list'!B4499=\"\",\"\",'Generated list'!B4499)","v":""},{"$f":"IF('Generated list'!C4499=\"\",\"\",'Generated list'!C4499)","v":""},{"$f":"IF('Generated list'!D4499=\"\",\"\",'Generated list'!D4499)","v":""}]
[null,{"$f":"IF('Generated list'!B4500=\"\",\"\",'Generated list'!B4500)","v":""},{"$f":"IF('Generated list'!C4500=\"\",\"\",'Generated list'!C4500)","v":""},{"$f":"IF('Generated list'!D4500=\"\",\"\",'Generated list'!D4500)","v":""}]
[null,{"$f":"IF('Generated list'!B4501=\"\",\"\",'Generated list'!B4501)","v":""},{"$f":"IF('Generated list'!C4501=\"\",\"\",'Generated list'!C4501)","v":""},{"$f":"IF('Generated list'!D4501=\"\",\"\",'Generated list'!D4501)","v":""}]
[null,{"$f":"IF('Generated list'!B4502=\"\",\"\",'Generated list'!B4502)","v":""},{"$f":"IF('Generated list'!C4502=\"\",\"\",'Generated list'!C4502)","v":""},{"$f":"IF('Generated list'!D4502=\"\",\"\",'Generated list'!D4502)","v":""}]
[null,{"$f":"IF('Generated list'!B4503=\"\",\"\",'Generated list'!B4503)","v":""},{"$f":"IF('Generated list'!C4503=\"\",\"\",'Generated list'!C4503)","v":""},{"$f":"IF('Generated list'!D4503=\"\",\"\",'Generated list'!D4503)","v":""}]
[null,{"$f":"IF('Generated list'!B4504=\"\",\"\",'Generated list'!B4504)","v":""},{"$f":"IF('Generated list'!C4504=\"\",\"\",'Generated list'!C4504)","v":""},{"$f":"IF('Generated list'!D4504=\"\",\"\",'Generated list'!D4504)","v":""}]
[null,{"$f":"IF('Generated list'!B4505=\"\",\"\",'Generated list'!B4505)","v":""},{"$f":"IF('Generated list'!C4505=\"\",\"\",'Generated list'!C4505)","v":""},{"$f":"IF('Generated list'!D4505=\"\",\"\",'Generated list'!D4505)","v":""}]
[null,{"$f":"IF('Generated list'!B4506=\"\",\"\",'Generated list'!B4506)","v":""},{"$f":"IF('Generated list'!C4506=\"\",\"\",'Generated list'!C4506)","v":""},{"$f":"IF('Generated list'!D4506=\"\",\"\",'Generated list'!D4506)","v":""}]
[null,{"$f":"IF('Generated list'!B4507=\"\",\"\",'Generated list'!B4507)","v":""},{"$f":"IF('Generated list'!C4507=\"\",\"\",'Generated list'!C4507)","v":""},{"$f":"IF('Generated list'!D4507=\"\",\"\",'Generated list'!D4507)","v":""}]
[null,{"$f":"IF('Generated list'!B4508=\"\",\"\",'Generated list'!B4508)","v":""},{"$f":"IF('Generated list'!C4508=\"\",\"\",'Generated list'!C4508)","v":""},{"$f":"IF('Generated list'!D4508=\"\",\"\",'Generated list'!D4508)","v":""}]
[null,{"$f":"IF('Generated list'!B4509=\"\",\"\",'Generated list'!B4509)","v":""},{"$f":"IF('Generated list'!C4509=\"\",\"\",'Generated list'!C4509)","v":""},{"$f":"IF('Generated list'!D4509=\"\",\"\",'Generated list'!D4509)","v":""}]
[null,{"$f":"IF('Generated list'!B4510=\"\",\"\",'Generated list'!B4510)","v":""},{"$f":"IF('Generated list'!C4510=\"\",\"\",'Generated list'!C4510)","v":""},{"$f":"IF('Generated list'!D4510=\"\",\"\",'Generated list'!D4510)","v":""}]
[null,{"$f":"IF('Generated list'!B4511=\"\",\"\",'Generated list'!B4511)","v":""},{"$f":"IF('Generated list'!C4511=\"\",\"\",'Generated list'!C4511)","v":""},{"$f":"IF('Generated list'!D4511=\"\",\"\",'Generated list'!D4511)","v":""}]
[null,{"$f":"IF('Generated list'!B4512=\"\",\"\",'Generated list'!B4512)","v":""},{"$f":"IF('Generated list'!C4512=\"\",\"\",'Generated list'!C4512)","v":""},{"$f":"IF('Generated list'!D4512=\"\",\"\",'Generated list'!D4512)","v":""}]
[null,{"$f":"IF('Generated list'!B4513=\"\",\"\",'Generated list'!B4513)","v":""},{"$f":"IF('Generated list'!C4513=\"\",\"\",'Generated list'!C4513)","v":""},{"$f":"IF('Generated list'!D4513=\"\",\"\",'Generated list'!D4513)","v":""}]
[null,{"$f":"IF('Generated list'!B4514=\"\",\"\",'Generated list'!B4514)","v":""},{"$f":"IF('Generated list'!C4514=\"\",\"\",'Generated list'!C4514)","v":""},{"$f":"IF('Generated list'!D4514=\"\",\"\",'Generated list'!D4514)","v":""}]
[null,{"$f":"IF('Generated list'!B4515=\"\",\"\",'Generated list'!B4515)","v":""},{"$f":"IF('Generated list'!C4515=\"\",\"\",'Generated list'!C4515)","v":""},{"$f":"IF('Generated list'!D4515=\"\",\"\",'Generated list'!D4515)","v":""}]
[null,{"$f":"IF('Generated list'!B4516=\"\",\"\",'Generated list'!B4516)","v":""},{"$f":"IF('Generated list'!C4516=\"\",\"\",'Generated list'!C4516)","v":""},{"$f":"IF('Generated list'!D4516=\"\",\"\",'Generated list'!D4516)","v":""}]
[null,{"$f":"IF('Generated list'!B4517=\"\",\"\",'Generated list'!B4517)","v":""},{"$f":"IF('Generated list'!C4517=\"\",\"\",'Generated list'!C4517)","v":""},{"$f":"IF('Generated list'!D4517=\"\",\"\",'Generated list'!D4517)","v":""}]
[null,{"$f":"IF('Generated list'!B4518=\"\",\"\",'Generated list'!B4518)","v":""},{"$f":"IF('Generated list'!C4518=\"\",\"\",'Generated list'!C4518)","v":""},{"$f":"IF('Generated list'!D4518=\"\",\"\",'Generated list'!D4518)","v":""}]
[null,{"$f":"IF('Generated list'!B4519=\"\",\"\",'Generated list'!B4519)","v":""},{"$f":"IF('Generated list'!C4519=\"\",\"\",'Generated list'!C4519)","v":""},{"$f":"IF('Generated list'!D4519=\"\",\"\",'Generated list'!D4519)","v":""}]
[null,{"$f":"IF('Generated list'!B4520=\"\",\"\",'Generated list'!B4520)","v":""},{"$f":"IF('Generated list'!C4520=\"\",\"\",'Generated list'!C4520)","v":""},{"$f":"IF('Generated list'!D4520=\"\",\"\",'Generated list'!D4520)","v":""}]
[null,{"$f":"IF('Generated list'!B4521=\"\",\"\",'Generated list'!B4521)","v":""},{"$f":"IF('Generated list'!C4521=\"\",\"\",'Generated list'!C4521)","v":""},{"$f":"IF('Generated list'!D4521=\"\",\"\",'Generated list'!D4521)","v":""}]
[null,{"$f":"IF('Generated list'!B4522=\"\",\"\",'Generated list'!B4522)","v":""},{"$f":"IF('Generated list'!C4522=\"\",\"\",'Generated list'!C4522)","v":""},{"$f":"IF('Generated list'!D4522=\"\",\"\",'Generated list'!D4522)","v":""}]
[null,{"$f":"IF('Generated list'!B4523=\"\",\"\",'Generated list'!B4523)","v":""},{"$f":"IF('Generated list'!C4523=\"\",\"\",'Generated list'!C4523)","v":""},{"$f":"IF('Generated list'!D4523=\"\",\"\",'Generated list'!D4523)","v":""}]
[null,{"$f":"IF('Generated list'!B4524=\"\",\"\",'Generated list'!B4524)","v":""},{"$f":"IF('Generated list'!C4524=\"\",\"\",'Generated list'!C4524)","v":""},{"$f":"IF('Generated list'!D4524=\"\",\"\",'Generated list'!D4524)","v":""}]
[null,{"$f":"IF('Generated list'!B4525=\"\",\"\",'Generated list'!B4525)","v":""},{"$f":"IF('Generated list'!C4525=\"\",\"\",'Generated list'!C4525)","v":""},{"$f":"IF('Generated list'!D4525=\"\",\"\",'Generated list'!D4525)","v":""}]
[null,{"$f":"IF('Generated list'!B4526=\"\",\"\",'Generated list'!B4526)","v":""},{"$f":"IF('Generated list'!C4526=\"\",\"\",'Generated list'!C4526)","v":""},{"$f":"IF('Generated list'!D4526=\"\",\"\",'Generated list'!D4526)","v":""}]
[null,{"$f":"IF('Generated list'!B4527=\"\",\"\",'Generated list'!B4527)","v":""},{"$f":"IF('Generated list'!C4527=\"\",\"\",'Generated list'!C4527)","v":""},{"$f":"IF('Generated list'!D4527=\"\",\"\",'Generated list'!D4527)","v":""}]
[null,{"$f":"IF('Generated list'!B4528=\"\",\"\",'Generated list'!B4528)","v":""},{"$f":"IF('Generated list'!C4528=\"\",\"\",'Generated list'!C4528)","v":""},{"$f":"IF('Generated list'!D4528=\"\",\"\",'Generated list'!D4528)","v":""}]
[null,{"$f":"IF('Generated list'!B4529=\"\",\"\",'Generated list'!B4529)","v":""},{"$f":"IF('Generated list'!C4529=\"\",\"\",'Generated list'!C4529)","v":""},{"$f":"IF('Generated list'!D4529=\"\",\"\",'Generated list'!D4529)","v":""}]
[null,{"$f":"IF('Generated list'!B4530=\"\",\"\",'Generated list'!B4530)","v":""},{"$f":"IF('Generated list'!C4530=\"\",\"\",'Generated list'!C4530)","v":""},{"$f":"IF('Generated list'!D4530=\"\",\"\",'Generated list'!D4530)","v":""}]
[null,{"$f":"IF('Generated list'!B4531=\"\",\"\",'Generated list'!B4531)","v":""},{"$f":"IF('Generated list'!C4531=\"\",\"\",'Generated list'!C4531)","v":""},{"$f":"IF('Generated list'!D4531=\"\",\"\",'Generated list'!D4531)","v":""}]
[null,{"$f":"IF('Generated list'!B4532=\"\",\"\",'Generated list'!B4532)","v":""},{"$f":"IF('Generated list'!C4532=\"\",\"\",'Generated list'!C4532)","v":""},{"$f":"IF('Generated list'!D4532=\"\",\"\",'Generated list'!D4532)","v":""}]
[null,{"$f":"IF('Generated list'!B4533=\"\",\"\",'Generated list'!B4533)","v":""},{"$f":"IF('Generated list'!C4533=\"\",\"\",'Generated list'!C4533)","v":""},{"$f":"IF('Generated list'!D4533=\"\",\"\",'Generated list'!D4533)","v":""}]
[null,{"$f":"IF('Generated list'!B4534=\"\",\"\",'Generated list'!B4534)","v":""},{"$f":"IF('Generated list'!C4534=\"\",\"\",'Generated list'!C4534)","v":""},{"$f":"IF('Generated list'!D4534=\"\",\"\",'Generated list'!D4534)","v":""}]
[null,{"$f":"IF('Generated list'!B4535=\"\",\"\",'Generated list'!B4535)","v":""},{"$f":"IF('Generated list'!C4535=\"\",\"\",'Generated list'!C4535)","v":""},{"$f":"IF('Generated list'!D4535=\"\",\"\",'Generated list'!D4535)","v":""}]
[null,{"$f":"IF('Generated list'!B4536=\"\",\"\",'Generated list'!B4536)","v":""},{"$f":"IF('Generated list'!C4536=\"\",\"\",'Generated list'!C4536)","v":""},{"$f":"IF('Generated list'!D4536=\"\",\"\",'Generated list'!D4536)","v":""}]
[null,{"$f":"IF('Generated list'!B4537=\"\",\"\",'Generated list'!B4537)","v":""},{"$f":"IF('Generated list'!C4537=\"\",\"\",'Generated list'!C4537)","v":""},{"$f":"IF('Generated list'!D4537=\"\",\"\",'Generated list'!D4537)","v":""}]
[null,{"$f":"IF('Generated list'!B4538=\"\",\"\",'Generated list'!B4538)","v":""},{"$f":"IF('Generated list'!C4538=\"\",\"\",'Generated list'!C4538)","v":""},{"$f":"IF('Generated list'!D4538=\"\",\"\",'Generated list'!D4538)","v":""}]
[null,{"$f":"IF('Generated list'!B4539=\"\",\"\",'Generated list'!B4539)","v":""},{"$f":"IF('Generated list'!C4539=\"\",\"\",'Generated list'!C4539)","v":""},{"$f":"IF('Generated list'!D4539=\"\",\"\",'Generated list'!D4539)","v":""}]
[null,{"$f":"IF('Generated list'!B4540=\"\",\"\",'Generated list'!B4540)","v":""},{"$f":"IF('Generated list'!C4540=\"\",\"\",'Generated list'!C4540)","v":""},{"$f":"IF('Generated list'!D4540=\"\",\"\",'Generated list'!D4540)","v":""}]
[null,{"$f":"IF('Generated list'!B4541=\"\",\"\",'Generated list'!B4541)","v":""},{"$f":"IF('Generated list'!C4541=\"\",\"\",'Generated list'!C4541)","v":""},{"$f":"IF('Generated list'!D4541=\"\",\"\",'Generated list'!D4541)","v":""}]
[null,{"$f":"IF('Generated list'!B4542=\"\",\"\",'Generated list'!B4542)","v":""},{"$f":"IF('Generated list'!C4542=\"\",\"\",'Generated list'!C4542)","v":""},{"$f":"IF('Generated list'!D4542=\"\",\"\",'Generated list'!D4542)","v":""}]
[null,{"$f":"IF('Generated list'!B4543=\"\",\"\",'Generated list'!B4543)","v":""},{"$f":"IF('Generated list'!C4543=\"\",\"\",'Generated list'!C4543)","v":""},{"$f":"IF('Generated list'!D4543=\"\",\"\",'Generated list'!D4543)","v":""}]
[null,{"$f":"IF('Generated list'!B4544=\"\",\"\",'Generated list'!B4544)","v":""},{"$f":"IF('Generated list'!C4544=\"\",\"\",'Generated list'!C4544)","v":""},{"$f":"IF('Generated list'!D4544=\"\",\"\",'Generated list'!D4544)","v":""}]
[null,{"$f":"IF('Generated list'!B4545=\"\",\"\",'Generated list'!B4545)","v":""},{"$f":"IF('Generated list'!C4545=\"\",\"\",'Generated list'!C4545)","v":""},{"$f":"IF('Generated list'!D4545=\"\",\"\",'Generated list'!D4545)","v":""}]
[null,{"$f":"IF('Generated list'!B4546=\"\",\"\",'Generated list'!B4546)","v":""},{"$f":"IF('Generated list'!C4546=\"\",\"\",'Generated list'!C4546)","v":""},{"$f":"IF('Generated list'!D4546=\"\",\"\",'Generated list'!D4546)","v":""}]
[null,{"$f":"IF('Generated list'!B4547=\"\",\"\",'Generated list'!B4547)","v":""},{"$f":"IF('Generated list'!C4547=\"\",\"\",'Generated list'!C4547)","v":""},{"$f":"IF('Generated list'!D4547=\"\",\"\",'Generated list'!D4547)","v":""}]
[null,{"$f":"IF('Generated list'!B4548=\"\",\"\",'Generated list'!B4548)","v":""},{"$f":"IF('Generated list'!C4548=\"\",\"\",'Generated list'!C4548)","v":""},{"$f":"IF('Generated list'!D4548=\"\",\"\",'Generated list'!D4548)","v":""}]
[null,{"$f":"IF('Generated list'!B4549=\"\",\"\",'Generated list'!B4549)","v":""},{"$f":"IF('Generated list'!C4549=\"\",\"\",'Generated list'!C4549)","v":""},{"$f":"IF('Generated list'!D4549=\"\",\"\",'Generated list'!D4549)","v":""}]
[null,{"$f":"IF('Generated list'!B4550=\"\",\"\",'Generated list'!B4550)","v":""},{"$f":"IF('Generated list'!C4550=\"\",\"\",'Generated list'!C4550)","v":""},{"$f":"IF('Generated list'!D4550=\"\",\"\",'Generated list'!D4550)","v":""}]
[null,{"$f":"IF('Generated list'!B4551=\"\",\"\",'Generated list'!B4551)","v":""},{"$f":"IF('Generated list'!C4551=\"\",\"\",'Generated list'!C4551)","v":""},{"$f":"IF('Generated list'!D4551=\"\",\"\",'Generated list'!D4551)","v":""}]
[null,{"$f":"IF('Generated list'!B4552=\"\",\"\",'Generated list'!B4552)","v":""},{"$f":"IF('Generated list'!C4552=\"\",\"\",'Generated list'!C4552)","v":""},{"$f":"IF('Generated list'!D4552=\"\",\"\",'Generated list'!D4552)","v":""}]
[null,{"$f":"IF('Generated list'!B4553=\"\",\"\",'Generated list'!B4553)","v":""},{"$f":"IF('Generated list'!C4553=\"\",\"\",'Generated list'!C4553)","v":""},{"$f":"IF('Generated list'!D4553=\"\",\"\",'Generated list'!D4553)","v":""}]
[null,{"$f":"IF('Generated list'!B4554=\"\",\"\",'Generated list'!B4554)","v":""},{"$f":"IF('Generated list'!C4554=\"\",\"\",'Generated list'!C4554)","v":""},{"$f":"IF('Generated list'!D4554=\"\",\"\",'Generated list'!D4554)","v":""}]
[null,{"$f":"IF('Generated list'!B4555=\"\",\"\",'Generated list'!B4555)","v":""},{"$f":"IF('Generated list'!C4555=\"\",\"\",'Generated list'!C4555)","v":""},{"$f":"IF('Generated list'!D4555=\"\",\"\",'Generated list'!D4555)","v":""}]
[null,{"$f":"IF('Generated list'!B4556=\"\",\"\",'Generated list'!B4556)","v":""},{"$f":"IF('Generated list'!C4556=\"\",\"\",'Generated list'!C4556)","v":""},{"$f":"IF('Generated list'!D4556=\"\",\"\",'Generated list'!D4556)","v":""}]
[null,{"$f":"IF('Generated list'!B4557=\"\",\"\",'Generated list'!B4557)","v":""},{"$f":"IF('Generated list'!C4557=\"\",\"\",'Generated list'!C4557)","v":""},{"$f":"IF('Generated list'!D4557=\"\",\"\",'Generated list'!D4557)","v":""}]
[null,{"$f":"IF('Generated list'!B4558=\"\",\"\",'Generated list'!B4558)","v":""},{"$f":"IF('Generated list'!C4558=\"\",\"\",'Generated list'!C4558)","v":""},{"$f":"IF('Generated list'!D4558=\"\",\"\",'Generated list'!D4558)","v":""}]
[null,{"$f":"IF('Generated list'!B4559=\"\",\"\",'Generated list'!B4559)","v":""},{"$f":"IF('Generated list'!C4559=\"\",\"\",'Generated list'!C4559)","v":""},{"$f":"IF('Generated list'!D4559=\"\",\"\",'Generated list'!D4559)","v":""}]
[null,{"$f":"IF('Generated list'!B4560=\"\",\"\",'Generated list'!B4560)","v":""},{"$f":"IF('Generated list'!C4560=\"\",\"\",'Generated list'!C4560)","v":""},{"$f":"IF('Generated list'!D4560=\"\",\"\",'Generated list'!D4560)","v":""}]
[null,{"$f":"IF('Generated list'!B4561=\"\",\"\",'Generated list'!B4561)","v":""},{"$f":"IF('Generated list'!C4561=\"\",\"\",'Generated list'!C4561)","v":""},{"$f":"IF('Generated list'!D4561=\"\",\"\",'Generated list'!D4561)","v":""}]
[null,{"$f":"IF('Generated list'!B4562=\"\",\"\",'Generated list'!B4562)","v":""},{"$f":"IF('Generated list'!C4562=\"\",\"\",'Generated list'!C4562)","v":""},{"$f":"IF('Generated list'!D4562=\"\",\"\",'Generated list'!D4562)","v":""}]
[null,{"$f":"IF('Generated list'!B4563=\"\",\"\",'Generated list'!B4563)","v":""},{"$f":"IF('Generated list'!C4563=\"\",\"\",'Generated list'!C4563)","v":""},{"$f":"IF('Generated list'!D4563=\"\",\"\",'Generated list'!D4563)","v":""}]
[null,{"$f":"IF('Generated list'!B4564=\"\",\"\",'Generated list'!B4564)","v":""},{"$f":"IF('Generated list'!C4564=\"\",\"\",'Generated list'!C4564)","v":""},{"$f":"IF('Generated list'!D4564=\"\",\"\",'Generated list'!D4564)","v":""}]
[null,{"$f":"IF('Generated list'!B4565=\"\",\"\",'Generated list'!B4565)","v":""},{"$f":"IF('Generated list'!C4565=\"\",\"\",'Generated list'!C4565)","v":""},{"$f":"IF('Generated list'!D4565=\"\",\"\",'Generated list'!D4565)","v":""}]
[null,{"$f":"IF('Generated list'!B4566=\"\",\"\",'Generated list'!B4566)","v":""},{"$f":"IF('Generated list'!C4566=\"\",\"\",'Generated list'!C4566)","v":""},{"$f":"IF('Generated list'!D4566=\"\",\"\",'Generated list'!D4566)","v":""}]
[null,{"$f":"IF('Generated list'!B4567=\"\",\"\",'Generated list'!B4567)","v":""},{"$f":"IF('Generated list'!C4567=\"\",\"\",'Generated list'!C4567)","v":""},{"$f":"IF('Generated list'!D4567=\"\",\"\",'Generated list'!D4567)","v":""}]
[null,{"$f":"IF('Generated list'!B4568=\"\",\"\",'Generated list'!B4568)","v":""},{"$f":"IF('Generated list'!C4568=\"\",\"\",'Generated list'!C4568)","v":""},{"$f":"IF('Generated list'!D4568=\"\",\"\",'Generated list'!D4568)","v":""}]
[null,{"$f":"IF('Generated list'!B4569=\"\",\"\",'Generated list'!B4569)","v":""},{"$f":"IF('Generated list'!C4569=\"\",\"\",'Generated list'!C4569)","v":""},{"$f":"IF('Generated list'!D4569=\"\",\"\",'Generated list'!D4569)","v":""}]
[null,{"$f":"IF('Generated list'!B4570=\"\",\"\",'Generated list'!B4570)","v":""},{"$f":"IF('Generated list'!C4570=\"\",\"\",'Generated list'!C4570)","v":""},{"$f":"IF('Generated list'!D4570=\"\",\"\",'Generated list'!D4570)","v":""}]
[null,{"$f":"IF('Generated list'!B4571=\"\",\"\",'Generated list'!B4571)","v":""},{"$f":"IF('Generated list'!C4571=\"\",\"\",'Generated list'!C4571)","v":""},{"$f":"IF('Generated list'!D4571=\"\",\"\",'Generated list'!D4571)","v":""}]
[null,{"$f":"IF('Generated list'!B4572=\"\",\"\",'Generated list'!B4572)","v":""},{"$f":"IF('Generated list'!C4572=\"\",\"\",'Generated list'!C4572)","v":""},{"$f":"IF('Generated list'!D4572=\"\",\"\",'Generated list'!D4572)","v":""}]
[null,{"$f":"IF('Generated list'!B4573=\"\",\"\",'Generated list'!B4573)","v":""},{"$f":"IF('Generated list'!C4573=\"\",\"\",'Generated list'!C4573)","v":""},{"$f":"IF('Generated list'!D4573=\"\",\"\",'Generated list'!D4573)","v":""}]
[null,{"$f":"IF('Generated list'!B4574=\"\",\"\",'Generated list'!B4574)","v":""},{"$f":"IF('Generated list'!C4574=\"\",\"\",'Generated list'!C4574)","v":""},{"$f":"IF('Generated list'!D4574=\"\",\"\",'Generated list'!D4574)","v":""}]
[null,{"$f":"IF('Generated list'!B4575=\"\",\"\",'Generated list'!B4575)","v":""},{"$f":"IF('Generated list'!C4575=\"\",\"\",'Generated list'!C4575)","v":""},{"$f":"IF('Generated list'!D4575=\"\",\"\",'Generated list'!D4575)","v":""}]
[null,{"$f":"IF('Generated list'!B4576=\"\",\"\",'Generated list'!B4576)","v":""},{"$f":"IF('Generated list'!C4576=\"\",\"\",'Generated list'!C4576)","v":""},{"$f":"IF('Generated list'!D4576=\"\",\"\",'Generated list'!D4576)","v":""}]
[null,{"$f":"IF('Generated list'!B4577=\"\",\"\",'Generated list'!B4577)","v":""},{"$f":"IF('Generated list'!C4577=\"\",\"\",'Generated list'!C4577)","v":""},{"$f":"IF('Generated list'!D4577=\"\",\"\",'Generated list'!D4577)","v":""}]
[null,{"$f":"IF('Generated list'!B4578=\"\",\"\",'Generated list'!B4578)","v":""},{"$f":"IF('Generated list'!C4578=\"\",\"\",'Generated list'!C4578)","v":""},{"$f":"IF('Generated list'!D4578=\"\",\"\",'Generated list'!D4578)","v":""}]
[null,{"$f":"IF('Generated list'!B4579=\"\",\"\",'Generated list'!B4579)","v":""},{"$f":"IF('Generated list'!C4579=\"\",\"\",'Generated list'!C4579)","v":""},{"$f":"IF('Generated list'!D4579=\"\",\"\",'Generated list'!D4579)","v":""}]
[null,{"$f":"IF('Generated list'!B4580=\"\",\"\",'Generated list'!B4580)","v":""},{"$f":"IF('Generated list'!C4580=\"\",\"\",'Generated list'!C4580)","v":""},{"$f":"IF('Generated list'!D4580=\"\",\"\",'Generated list'!D4580)","v":""}]
[null,{"$f":"IF('Generated list'!B4581=\"\",\"\",'Generated list'!B4581)","v":""},{"$f":"IF('Generated list'!C4581=\"\",\"\",'Generated list'!C4581)","v":""},{"$f":"IF('Generated list'!D4581=\"\",\"\",'Generated list'!D4581)","v":""}]
[null,{"$f":"IF('Generated list'!B4582=\"\",\"\",'Generated list'!B4582)","v":""},{"$f":"IF('Generated list'!C4582=\"\",\"\",'Generated list'!C4582)","v":""},{"$f":"IF('Generated list'!D4582=\"\",\"\",'Generated list'!D4582)","v":""}]
[null,{"$f":"IF('Generated list'!B4583=\"\",\"\",'Generated list'!B4583)","v":""},{"$f":"IF('Generated list'!C4583=\"\",\"\",'Generated list'!C4583)","v":""},{"$f":"IF('Generated list'!D4583=\"\",\"\",'Generated list'!D4583)","v":""}]
[null,{"$f":"IF('Generated list'!B4584=\"\",\"\",'Generated list'!B4584)","v":""},{"$f":"IF('Generated list'!C4584=\"\",\"\",'Generated list'!C4584)","v":""},{"$f":"IF('Generated list'!D4584=\"\",\"\",'Generated list'!D4584)","v":""}]
[null,{"$f":"IF('Generated list'!B4585=\"\",\"\",'Generated list'!B4585)","v":""},{"$f":"IF('Generated list'!C4585=\"\",\"\",'Generated list'!C4585)","v":""},{"$f":"IF('Generated list'!D4585=\"\",\"\",'Generated list'!D4585)","v":""}]
[null,{"$f":"IF('Generated list'!B4586=\"\",\"\",'Generated list'!B4586)","v":""},{"$f":"IF('Generated list'!C4586=\"\",\"\",'Generated list'!C4586)","v":""},{"$f":"IF('Generated list'!D4586=\"\",\"\",'Generated list'!D4586)","v":""}]
[null,{"$f":"IF('Generated list'!B4587=\"\",\"\",'Generated list'!B4587)","v":""},{"$f":"IF('Generated list'!C4587=\"\",\"\",'Generated list'!C4587)","v":""},{"$f":"IF('Generated list'!D4587=\"\",\"\",'Generated list'!D4587)","v":""}]
[null,{"$f":"IF('Generated list'!B4588=\"\",\"\",'Generated list'!B4588)","v":""},{"$f":"IF('Generated list'!C4588=\"\",\"\",'Generated list'!C4588)","v":""},{"$f":"IF('Generated list'!D4588=\"\",\"\",'Generated list'!D4588)","v":""}]
[null,{"$f":"IF('Generated list'!B4589=\"\",\"\",'Generated list'!B4589)","v":""},{"$f":"IF('Generated list'!C4589=\"\",\"\",'Generated list'!C4589)","v":""},{"$f":"IF('Generated list'!D4589=\"\",\"\",'Generated list'!D4589)","v":""}]
[null,{"$f":"IF('Generated list'!B4590=\"\",\"\",'Generated list'!B4590)","v":""},{"$f":"IF('Generated list'!C4590=\"\",\"\",'Generated list'!C4590)","v":""},{"$f":"IF('Generated list'!D4590=\"\",\"\",'Generated list'!D4590)","v":""}]
[null,{"$f":"IF('Generated list'!B4591=\"\",\"\",'Generated list'!B4591)","v":""},{"$f":"IF('Generated list'!C4591=\"\",\"\",'Generated list'!C4591)","v":""},{"$f":"IF('Generated list'!D4591=\"\",\"\",'Generated list'!D4591)","v":""}]
[null,{"$f":"IF('Generated list'!B4592=\"\",\"\",'Generated list'!B4592)","v":""},{"$f":"IF('Generated list'!C4592=\"\",\"\",'Generated list'!C4592)","v":""},{"$f":"IF('Generated list'!D4592=\"\",\"\",'Generated list'!D4592)","v":""}]
[null,{"$f":"IF('Generated list'!B4593=\"\",\"\",'Generated list'!B4593)","v":""},{"$f":"IF('Generated list'!C4593=\"\",\"\",'Generated list'!C4593)","v":""},{"$f":"IF('Generated list'!D4593=\"\",\"\",'Generated list'!D4593)","v":""}]
[null,{"$f":"IF('Generated list'!B4594=\"\",\"\",'Generated list'!B4594)","v":""},{"$f":"IF('Generated list'!C4594=\"\",\"\",'Generated list'!C4594)","v":""},{"$f":"IF('Generated list'!D4594=\"\",\"\",'Generated list'!D4594)","v":""}]
[null,{"$f":"IF('Generated list'!B4595=\"\",\"\",'Generated list'!B4595)","v":""},{"$f":"IF('Generated list'!C4595=\"\",\"\",'Generated list'!C4595)","v":""},{"$f":"IF('Generated list'!D4595=\"\",\"\",'Generated list'!D4595)","v":""}]
[null,{"$f":"IF('Generated list'!B4596=\"\",\"\",'Generated list'!B4596)","v":""},{"$f":"IF('Generated list'!C4596=\"\",\"\",'Generated list'!C4596)","v":""},{"$f":"IF('Generated list'!D4596=\"\",\"\",'Generated list'!D4596)","v":""}]
[null,{"$f":"IF('Generated list'!B4597=\"\",\"\",'Generated list'!B4597)","v":""},{"$f":"IF('Generated list'!C4597=\"\",\"\",'Generated list'!C4597)","v":""},{"$f":"IF('Generated list'!D4597=\"\",\"\",'Generated list'!D4597)","v":""}]
[null,{"$f":"IF('Generated list'!B4598=\"\",\"\",'Generated list'!B4598)","v":""},{"$f":"IF('Generated list'!C4598=\"\",\"\",'Generated list'!C4598)","v":""},{"$f":"IF('Generated list'!D4598=\"\",\"\",'Generated list'!D4598)","v":""}]
[null,{"$f":"IF('Generated list'!B4599=\"\",\"\",'Generated list'!B4599)","v":""},{"$f":"IF('Generated list'!C4599=\"\",\"\",'Generated list'!C4599)","v":""},{"$f":"IF('Generated list'!D4599=\"\",\"\",'Generated list'!D4599)","v":""}]
[null,{"$f":"IF('Generated list'!B4600=\"\",\"\",'Generated list'!B4600)","v":""},{"$f":"IF('Generated list'!C4600=\"\",\"\",'Generated list'!C4600)","v":""},{"$f":"IF('Generated list'!D4600=\"\",\"\",'Generated list'!D4600)","v":""}]
[null,{"$f":"IF('Generated list'!B4601=\"\",\"\",'Generated list'!B4601)","v":""},{"$f":"IF('Generated list'!C4601=\"\",\"\",'Generated list'!C4601)","v":""},{"$f":"IF('Generated list'!D4601=\"\",\"\",'Generated list'!D4601)","v":""}]
[null,{"$f":"IF('Generated list'!B4602=\"\",\"\",'Generated list'!B4602)","v":""},{"$f":"IF('Generated list'!C4602=\"\",\"\",'Generated list'!C4602)","v":""},{"$f":"IF('Generated list'!D4602=\"\",\"\",'Generated list'!D4602)","v":""}]
[null,{"$f":"IF('Generated list'!B4603=\"\",\"\",'Generated list'!B4603)","v":""},{"$f":"IF('Generated list'!C4603=\"\",\"\",'Generated list'!C4603)","v":""},{"$f":"IF('Generated list'!D4603=\"\",\"\",'Generated list'!D4603)","v":""}]
[null,{"$f":"IF('Generated list'!B4604=\"\",\"\",'Generated list'!B4604)","v":""},{"$f":"IF('Generated list'!C4604=\"\",\"\",'Generated list'!C4604)","v":""},{"$f":"IF('Generated list'!D4604=\"\",\"\",'Generated list'!D4604)","v":""}]
[null,{"$f":"IF('Generated list'!B4605=\"\",\"\",'Generated list'!B4605)","v":""},{"$f":"IF('Generated list'!C4605=\"\",\"\",'Generated list'!C4605)","v":""},{"$f":"IF('Generated list'!D4605=\"\",\"\",'Generated list'!D4605)","v":""}]
[null,{"$f":"IF('Generated list'!B4606=\"\",\"\",'Generated list'!B4606)","v":""},{"$f":"IF('Generated list'!C4606=\"\",\"\",'Generated list'!C4606)","v":""},{"$f":"IF('Generated list'!D4606=\"\",\"\",'Generated list'!D4606)","v":""}]
[null,{"$f":"IF('Generated list'!B4607=\"\",\"\",'Generated list'!B4607)","v":""},{"$f":"IF('Generated list'!C4607=\"\",\"\",'Generated list'!C4607)","v":""},{"$f":"IF('Generated list'!D4607=\"\",\"\",'Generated list'!D4607)","v":""}]
[null,{"$f":"IF('Generated list'!B4608=\"\",\"\",'Generated list'!B4608)","v":""},{"$f":"IF('Generated list'!C4608=\"\",\"\",'Generated list'!C4608)","v":""},{"$f":"IF('Generated list'!D4608=\"\",\"\",'Generated list'!D4608)","v":""}]
[null,{"$f":"IF('Generated list'!B4609=\"\",\"\",'Generated list'!B4609)","v":""},{"$f":"IF('Generated list'!C4609=\"\",\"\",'Generated list'!C4609)","v":""},{"$f":"IF('Generated list'!D4609=\"\",\"\",'Generated list'!D4609)","v":""}]
[null,{"$f":"IF('Generated list'!B4610=\"\",\"\",'Generated list'!B4610)","v":""},{"$f":"IF('Generated list'!C4610=\"\",\"\",'Generated list'!C4610)","v":""},{"$f":"IF('Generated list'!D4610=\"\",\"\",'Generated list'!D4610)","v":""}]
[null,{"$f":"IF('Generated list'!B4611=\"\",\"\",'Generated list'!B4611)","v":""},{"$f":"IF('Generated list'!C4611=\"\",\"\",'Generated list'!C4611)","v":""},{"$f":"IF('Generated list'!D4611=\"\",\"\",'Generated list'!D4611)","v":""}]
[null,{"$f":"IF('Generated list'!B4612=\"\",\"\",'Generated list'!B4612)","v":""},{"$f":"IF('Generated list'!C4612=\"\",\"\",'Generated list'!C4612)","v":""},{"$f":"IF('Generated list'!D4612=\"\",\"\",'Generated list'!D4612)","v":""}]
[null,{"$f":"IF('Generated list'!B4613=\"\",\"\",'Generated list'!B4613)","v":""},{"$f":"IF('Generated list'!C4613=\"\",\"\",'Generated list'!C4613)","v":""},{"$f":"IF('Generated list'!D4613=\"\",\"\",'Generated list'!D4613)","v":""}]
[null,{"$f":"IF('Generated list'!B4614=\"\",\"\",'Generated list'!B4614)","v":""},{"$f":"IF('Generated list'!C4614=\"\",\"\",'Generated list'!C4614)","v":""},{"$f":"IF('Generated list'!D4614=\"\",\"\",'Generated list'!D4614)","v":""}]
[null,{"$f":"IF('Generated list'!B4615=\"\",\"\",'Generated list'!B4615)","v":""},{"$f":"IF('Generated list'!C4615=\"\",\"\",'Generated list'!C4615)","v":""},{"$f":"IF('Generated list'!D4615=\"\",\"\",'Generated list'!D4615)","v":""}]
[null,{"$f":"IF('Generated list'!B4616=\"\",\"\",'Generated list'!B4616)","v":""},{"$f":"IF('Generated list'!C4616=\"\",\"\",'Generated list'!C4616)","v":""},{"$f":"IF('Generated list'!D4616=\"\",\"\",'Generated list'!D4616)","v":""}]
[null,{"$f":"IF('Generated list'!B4617=\"\",\"\",'Generated list'!B4617)","v":""},{"$f":"IF('Generated list'!C4617=\"\",\"\",'Generated list'!C4617)","v":""},{"$f":"IF('Generated list'!D4617=\"\",\"\",'Generated list'!D4617)","v":""}]
[null,{"$f":"IF('Generated list'!B4618=\"\",\"\",'Generated list'!B4618)","v":""},{"$f":"IF('Generated list'!C4618=\"\",\"\",'Generated list'!C4618)","v":""},{"$f":"IF('Generated list'!D4618=\"\",\"\",'Generated list'!D4618)","v":""}]
[null,{"$f":"IF('Generated list'!B4619=\"\",\"\",'Generated list'!B4619)","v":""},{"$f":"IF('Generated list'!C4619=\"\",\"\",'Generated list'!C4619)","v":""},{"$f":"IF('Generated list'!D4619=\"\",\"\",'Generated list'!D4619)","v":""}]
[null,{"$f":"IF('Generated list'!B4620=\"\",\"\",'Generated list'!B4620)","v":""},{"$f":"IF('Generated list'!C4620=\"\",\"\",'Generated list'!C4620)","v":""},{"$f":"IF('Generated list'!D4620=\"\",\"\",'Generated list'!D4620)","v":""}]
[null,{"$f":"IF('Generated list'!B4621=\"\",\"\",'Generated list'!B4621)","v":""},{"$f":"IF('Generated list'!C4621=\"\",\"\",'Generated list'!C4621)","v":""},{"$f":"IF('Generated list'!D4621=\"\",\"\",'Generated list'!D4621)","v":""}]
[null,{"$f":"IF('Generated list'!B4622=\"\",\"\",'Generated list'!B4622)","v":""},{"$f":"IF('Generated list'!C4622=\"\",\"\",'Generated list'!C4622)","v":""},{"$f":"IF('Generated list'!D4622=\"\",\"\",'Generated list'!D4622)","v":""}]
[null,{"$f":"IF('Generated list'!B4623=\"\",\"\",'Generated list'!B4623)","v":""},{"$f":"IF('Generated list'!C4623=\"\",\"\",'Generated list'!C4623)","v":""},{"$f":"IF('Generated list'!D4623=\"\",\"\",'Generated list'!D4623)","v":""}]
[null,{"$f":"IF('Generated list'!B4624=\"\",\"\",'Generated list'!B4624)","v":""},{"$f":"IF('Generated list'!C4624=\"\",\"\",'Generated list'!C4624)","v":""},{"$f":"IF('Generated list'!D4624=\"\",\"\",'Generated list'!D4624)","v":""}]
[null,{"$f":"IF('Generated list'!B4625=\"\",\"\",'Generated list'!B4625)","v":""},{"$f":"IF('Generated list'!C4625=\"\",\"\",'Generated list'!C4625)","v":""},{"$f":"IF('Generated list'!D4625=\"\",\"\",'Generated list'!D4625)","v":""}]
[null,{"$f":"IF('Generated list'!B4626=\"\",\"\",'Generated list'!B4626)","v":""},{"$f":"IF('Generated list'!C4626=\"\",\"\",'Generated list'!C4626)","v":""},{"$f":"IF('Generated list'!D4626=\"\",\"\",'Generated list'!D4626)","v":""}]
[null,{"$f":"IF('Generated list'!B4627=\"\",\"\",'Generated list'!B4627)","v":""},{"$f":"IF('Generated list'!C4627=\"\",\"\",'Generated list'!C4627)","v":""},{"$f":"IF('Generated list'!D4627=\"\",\"\",'Generated list'!D4627)","v":""}]
[null,{"$f":"IF('Generated list'!B4628=\"\",\"\",'Generated list'!B4628)","v":""},{"$f":"IF('Generated list'!C4628=\"\",\"\",'Generated list'!C4628)","v":""},{"$f":"IF('Generated list'!D4628=\"\",\"\",'Generated list'!D4628)","v":""}]
[null,{"$f":"IF('Generated list'!B4629=\"\",\"\",'Generated list'!B4629)","v":""},{"$f":"IF('Generated list'!C4629=\"\",\"\",'Generated list'!C4629)","v":""},{"$f":"IF('Generated list'!D4629=\"\",\"\",'Generated list'!D4629)","v":""}]
[null,{"$f":"IF('Generated list'!B4630=\"\",\"\",'Generated list'!B4630)","v":""},{"$f":"IF('Generated list'!C4630=\"\",\"\",'Generated list'!C4630)","v":""},{"$f":"IF('Generated list'!D4630=\"\",\"\",'Generated list'!D4630)","v":""}]
[null,{"$f":"IF('Generated list'!B4631=\"\",\"\",'Generated list'!B4631)","v":""},{"$f":"IF('Generated list'!C4631=\"\",\"\",'Generated list'!C4631)","v":""},{"$f":"IF('Generated list'!D4631=\"\",\"\",'Generated list'!D4631)","v":""}]
[null,{"$f":"IF('Generated list'!B4632=\"\",\"\",'Generated list'!B4632)","v":""},{"$f":"IF('Generated list'!C4632=\"\",\"\",'Generated list'!C4632)","v":""},{"$f":"IF('Generated list'!D4632=\"\",\"\",'Generated list'!D4632)","v":""}]
[null,{"$f":"IF('Generated list'!B4633=\"\",\"\",'Generated list'!B4633)","v":""},{"$f":"IF('Generated list'!C4633=\"\",\"\",'Generated list'!C4633)","v":""},{"$f":"IF('Generated list'!D4633=\"\",\"\",'Generated list'!D4633)","v":""}]
[null,{"$f":"IF('Generated list'!B4634=\"\",\"\",'Generated list'!B4634)","v":""},{"$f":"IF('Generated list'!C4634=\"\",\"\",'Generated list'!C4634)","v":""},{"$f":"IF('Generated list'!D4634=\"\",\"\",'Generated list'!D4634)","v":""}]
[null,{"$f":"IF('Generated list'!B4635=\"\",\"\",'Generated list'!B4635)","v":""},{"$f":"IF('Generated list'!C4635=\"\",\"\",'Generated list'!C4635)","v":""},{"$f":"IF('Generated list'!D4635=\"\",\"\",'Generated list'!D4635)","v":""}]
[null,{"$f":"IF('Generated list'!B4636=\"\",\"\",'Generated list'!B4636)","v":""},{"$f":"IF('Generated list'!C4636=\"\",\"\",'Generated list'!C4636)","v":""},{"$f":"IF('Generated list'!D4636=\"\",\"\",'Generated list'!D4636)","v":""}]
[null,{"$f":"IF('Generated list'!B4637=\"\",\"\",'Generated list'!B4637)","v":""},{"$f":"IF('Generated list'!C4637=\"\",\"\",'Generated list'!C4637)","v":""},{"$f":"IF('Generated list'!D4637=\"\",\"\",'Generated list'!D4637)","v":""}]
[null,{"$f":"IF('Generated list'!B4638=\"\",\"\",'Generated list'!B4638)","v":""},{"$f":"IF('Generated list'!C4638=\"\",\"\",'Generated list'!C4638)","v":""},{"$f":"IF('Generated list'!D4638=\"\",\"\",'Generated list'!D4638)","v":""}]
[null,{"$f":"IF('Generated list'!B4639=\"\",\"\",'Generated list'!B4639)","v":""},{"$f":"IF('Generated list'!C4639=\"\",\"\",'Generated list'!C4639)","v":""},{"$f":"IF('Generated list'!D4639=\"\",\"\",'Generated list'!D4639)","v":""}]
[null,{"$f":"IF('Generated list'!B4640=\"\",\"\",'Generated list'!B4640)","v":""},{"$f":"IF('Generated list'!C4640=\"\",\"\",'Generated list'!C4640)","v":""},{"$f":"IF('Generated list'!D4640=\"\",\"\",'Generated list'!D4640)","v":""}]
[null,{"$f":"IF('Generated list'!B4641=\"\",\"\",'Generated list'!B4641)","v":""},{"$f":"IF('Generated list'!C4641=\"\",\"\",'Generated list'!C4641)","v":""},{"$f":"IF('Generated list'!D4641=\"\",\"\",'Generated list'!D4641)","v":""}]
[null,{"$f":"IF('Generated list'!B4642=\"\",\"\",'Generated list'!B4642)","v":""},{"$f":"IF('Generated list'!C4642=\"\",\"\",'Generated list'!C4642)","v":""},{"$f":"IF('Generated list'!D4642=\"\",\"\",'Generated list'!D4642)","v":""}]
[null,{"$f":"IF('Generated list'!B4643=\"\",\"\",'Generated list'!B4643)","v":""},{"$f":"IF('Generated list'!C4643=\"\",\"\",'Generated list'!C4643)","v":""},{"$f":"IF('Generated list'!D4643=\"\",\"\",'Generated list'!D4643)","v":""}]
[null,{"$f":"IF('Generated list'!B4644=\"\",\"\",'Generated list'!B4644)","v":""},{"$f":"IF('Generated list'!C4644=\"\",\"\",'Generated list'!C4644)","v":""},{"$f":"IF('Generated list'!D4644=\"\",\"\",'Generated list'!D4644)","v":""}]
[null,{"$f":"IF('Generated list'!B4645=\"\",\"\",'Generated list'!B4645)","v":""},{"$f":"IF('Generated list'!C4645=\"\",\"\",'Generated list'!C4645)","v":""},{"$f":"IF('Generated list'!D4645=\"\",\"\",'Generated list'!D4645)","v":""}]
[null,{"$f":"IF('Generated list'!B4646=\"\",\"\",'Generated list'!B4646)","v":""},{"$f":"IF('Generated list'!C4646=\"\",\"\",'Generated list'!C4646)","v":""},{"$f":"IF('Generated list'!D4646=\"\",\"\",'Generated list'!D4646)","v":""}]
[null,{"$f":"IF('Generated list'!B4647=\"\",\"\",'Generated list'!B4647)","v":""},{"$f":"IF('Generated list'!C4647=\"\",\"\",'Generated list'!C4647)","v":""},{"$f":"IF('Generated list'!D4647=\"\",\"\",'Generated list'!D4647)","v":""}]
[null,{"$f":"IF('Generated list'!B4648=\"\",\"\",'Generated list'!B4648)","v":""},{"$f":"IF('Generated list'!C4648=\"\",\"\",'Generated list'!C4648)","v":""},{"$f":"IF('Generated list'!D4648=\"\",\"\",'Generated list'!D4648)","v":""}]
[null,{"$f":"IF('Generated list'!B4649=\"\",\"\",'Generated list'!B4649)","v":""},{"$f":"IF('Generated list'!C4649=\"\",\"\",'Generated list'!C4649)","v":""},{"$f":"IF('Generated list'!D4649=\"\",\"\",'Generated list'!D4649)","v":""}]
[null,{"$f":"IF('Generated list'!B4650=\"\",\"\",'Generated list'!B4650)","v":""},{"$f":"IF('Generated list'!C4650=\"\",\"\",'Generated list'!C4650)","v":""},{"$f":"IF('Generated list'!D4650=\"\",\"\",'Generated list'!D4650)","v":""}]
[null,{"$f":"IF('Generated list'!B4651=\"\",\"\",'Generated list'!B4651)","v":""},{"$f":"IF('Generated list'!C4651=\"\",\"\",'Generated list'!C4651)","v":""},{"$f":"IF('Generated list'!D4651=\"\",\"\",'Generated list'!D4651)","v":""}]
[null,{"$f":"IF('Generated list'!B4652=\"\",\"\",'Generated list'!B4652)","v":""},{"$f":"IF('Generated list'!C4652=\"\",\"\",'Generated list'!C4652)","v":""},{"$f":"IF('Generated list'!D4652=\"\",\"\",'Generated list'!D4652)","v":""}]
[null,{"$f":"IF('Generated list'!B4653=\"\",\"\",'Generated list'!B4653)","v":""},{"$f":"IF('Generated list'!C4653=\"\",\"\",'Generated list'!C4653)","v":""},{"$f":"IF('Generated list'!D4653=\"\",\"\",'Generated list'!D4653)","v":""}]
[null,{"$f":"IF('Generated list'!B4654=\"\",\"\",'Generated list'!B4654)","v":""},{"$f":"IF('Generated list'!C4654=\"\",\"\",'Generated list'!C4654)","v":""},{"$f":"IF('Generated list'!D4654=\"\",\"\",'Generated list'!D4654)","v":""}]
[null,{"$f":"IF('Generated list'!B4655=\"\",\"\",'Generated list'!B4655)","v":""},{"$f":"IF('Generated list'!C4655=\"\",\"\",'Generated list'!C4655)","v":""},{"$f":"IF('Generated list'!D4655=\"\",\"\",'Generated list'!D4655)","v":""}]
[null,{"$f":"IF('Generated list'!B4656=\"\",\"\",'Generated list'!B4656)","v":""},{"$f":"IF('Generated list'!C4656=\"\",\"\",'Generated list'!C4656)","v":""},{"$f":"IF('Generated list'!D4656=\"\",\"\",'Generated list'!D4656)","v":""}]
[null,{"$f":"IF('Generated list'!B4657=\"\",\"\",'Generated list'!B4657)","v":""},{"$f":"IF('Generated list'!C4657=\"\",\"\",'Generated list'!C4657)","v":""},{"$f":"IF('Generated list'!D4657=\"\",\"\",'Generated list'!D4657)","v":""}]
[null,{"$f":"IF('Generated list'!B4658=\"\",\"\",'Generated list'!B4658)","v":""},{"$f":"IF('Generated list'!C4658=\"\",\"\",'Generated list'!C4658)","v":""},{"$f":"IF('Generated list'!D4658=\"\",\"\",'Generated list'!D4658)","v":""}]
[null,{"$f":"IF('Generated list'!B4659=\"\",\"\",'Generated list'!B4659)","v":""},{"$f":"IF('Generated list'!C4659=\"\",\"\",'Generated list'!C4659)","v":""},{"$f":"IF('Generated list'!D4659=\"\",\"\",'Generated list'!D4659)","v":""}]
[null,{"$f":"IF('Generated list'!B4660=\"\",\"\",'Generated list'!B4660)","v":""},{"$f":"IF('Generated list'!C4660=\"\",\"\",'Generated list'!C4660)","v":""},{"$f":"IF('Generated list'!D4660=\"\",\"\",'Generated list'!D4660)","v":""}]
[null,{"$f":"IF('Generated list'!B4661=\"\",\"\",'Generated list'!B4661)","v":""},{"$f":"IF('Generated list'!C4661=\"\",\"\",'Generated list'!C4661)","v":""},{"$f":"IF('Generated list'!D4661=\"\",\"\",'Generated list'!D4661)","v":""}]
[null,{"$f":"IF('Generated list'!B4662=\"\",\"\",'Generated list'!B4662)","v":""},{"$f":"IF('Generated list'!C4662=\"\",\"\",'Generated list'!C4662)","v":""},{"$f":"IF('Generated list'!D4662=\"\",\"\",'Generated list'!D4662)","v":""}]
[null,{"$f":"IF('Generated list'!B4663=\"\",\"\",'Generated list'!B4663)","v":""},{"$f":"IF('Generated list'!C4663=\"\",\"\",'Generated list'!C4663)","v":""},{"$f":"IF('Generated list'!D4663=\"\",\"\",'Generated list'!D4663)","v":""}]
[null,{"$f":"IF('Generated list'!B4664=\"\",\"\",'Generated list'!B4664)","v":""},{"$f":"IF('Generated list'!C4664=\"\",\"\",'Generated list'!C4664)","v":""},{"$f":"IF('Generated list'!D4664=\"\",\"\",'Generated list'!D4664)","v":""}]
[null,{"$f":"IF('Generated list'!B4665=\"\",\"\",'Generated list'!B4665)","v":""},{"$f":"IF('Generated list'!C4665=\"\",\"\",'Generated list'!C4665)","v":""},{"$f":"IF('Generated list'!D4665=\"\",\"\",'Generated list'!D4665)","v":""}]
[null,{"$f":"IF('Generated list'!B4666=\"\",\"\",'Generated list'!B4666)","v":""},{"$f":"IF('Generated list'!C4666=\"\",\"\",'Generated list'!C4666)","v":""},{"$f":"IF('Generated list'!D4666=\"\",\"\",'Generated list'!D4666)","v":""}]
[null,{"$f":"IF('Generated list'!B4667=\"\",\"\",'Generated list'!B4667)","v":""},{"$f":"IF('Generated list'!C4667=\"\",\"\",'Generated list'!C4667)","v":""},{"$f":"IF('Generated list'!D4667=\"\",\"\",'Generated list'!D4667)","v":""}]
[null,{"$f":"IF('Generated list'!B4668=\"\",\"\",'Generated list'!B4668)","v":""},{"$f":"IF('Generated list'!C4668=\"\",\"\",'Generated list'!C4668)","v":""},{"$f":"IF('Generated list'!D4668=\"\",\"\",'Generated list'!D4668)","v":""}]
[null,{"$f":"IF('Generated list'!B4669=\"\",\"\",'Generated list'!B4669)","v":""},{"$f":"IF('Generated list'!C4669=\"\",\"\",'Generated list'!C4669)","v":""},{"$f":"IF('Generated list'!D4669=\"\",\"\",'Generated list'!D4669)","v":""}]
[null,{"$f":"IF('Generated list'!B4670=\"\",\"\",'Generated list'!B4670)","v":""},{"$f":"IF('Generated list'!C4670=\"\",\"\",'Generated list'!C4670)","v":""},{"$f":"IF('Generated list'!D4670=\"\",\"\",'Generated list'!D4670)","v":""}]
[null,{"$f":"IF('Generated list'!B4671=\"\",\"\",'Generated list'!B4671)","v":""},{"$f":"IF('Generated list'!C4671=\"\",\"\",'Generated list'!C4671)","v":""},{"$f":"IF('Generated list'!D4671=\"\",\"\",'Generated list'!D4671)","v":""}]
[null,{"$f":"IF('Generated list'!B4672=\"\",\"\",'Generated list'!B4672)","v":""},{"$f":"IF('Generated list'!C4672=\"\",\"\",'Generated list'!C4672)","v":""},{"$f":"IF('Generated list'!D4672=\"\",\"\",'Generated list'!D4672)","v":""}]
[null,{"$f":"IF('Generated list'!B4673=\"\",\"\",'Generated list'!B4673)","v":""},{"$f":"IF('Generated list'!C4673=\"\",\"\",'Generated list'!C4673)","v":""},{"$f":"IF('Generated list'!D4673=\"\",\"\",'Generated list'!D4673)","v":""}]
[null,{"$f":"IF('Generated list'!B4674=\"\",\"\",'Generated list'!B4674)","v":""},{"$f":"IF('Generated list'!C4674=\"\",\"\",'Generated list'!C4674)","v":""},{"$f":"IF('Generated list'!D4674=\"\",\"\",'Generated list'!D4674)","v":""}]
[null,{"$f":"IF('Generated list'!B4675=\"\",\"\",'Generated list'!B4675)","v":""},{"$f":"IF('Generated list'!C4675=\"\",\"\",'Generated list'!C4675)","v":""},{"$f":"IF('Generated list'!D4675=\"\",\"\",'Generated list'!D4675)","v":""}]
[null,{"$f":"IF('Generated list'!B4676=\"\",\"\",'Generated list'!B4676)","v":""},{"$f":"IF('Generated list'!C4676=\"\",\"\",'Generated list'!C4676)","v":""},{"$f":"IF('Generated list'!D4676=\"\",\"\",'Generated list'!D4676)","v":""}]
[null,{"$f":"IF('Generated list'!B4677=\"\",\"\",'Generated list'!B4677)","v":""},{"$f":"IF('Generated list'!C4677=\"\",\"\",'Generated list'!C4677)","v":""},{"$f":"IF('Generated list'!D4677=\"\",\"\",'Generated list'!D4677)","v":""}]
[null,{"$f":"IF('Generated list'!B4678=\"\",\"\",'Generated list'!B4678)","v":""},{"$f":"IF('Generated list'!C4678=\"\",\"\",'Generated list'!C4678)","v":""},{"$f":"IF('Generated list'!D4678=\"\",\"\",'Generated list'!D4678)","v":""}]
[null,{"$f":"IF('Generated list'!B4679=\"\",\"\",'Generated list'!B4679)","v":""},{"$f":"IF('Generated list'!C4679=\"\",\"\",'Generated list'!C4679)","v":""},{"$f":"IF('Generated list'!D4679=\"\",\"\",'Generated list'!D4679)","v":""}]
[null,{"$f":"IF('Generated list'!B4680=\"\",\"\",'Generated list'!B4680)","v":""},{"$f":"IF('Generated list'!C4680=\"\",\"\",'Generated list'!C4680)","v":""},{"$f":"IF('Generated list'!D4680=\"\",\"\",'Generated list'!D4680)","v":""}]
[null,{"$f":"IF('Generated list'!B4681=\"\",\"\",'Generated list'!B4681)","v":""},{"$f":"IF('Generated list'!C4681=\"\",\"\",'Generated list'!C4681)","v":""},{"$f":"IF('Generated list'!D4681=\"\",\"\",'Generated list'!D4681)","v":""}]
[null,{"$f":"IF('Generated list'!B4682=\"\",\"\",'Generated list'!B4682)","v":""},{"$f":"IF('Generated list'!C4682=\"\",\"\",'Generated list'!C4682)","v":""},{"$f":"IF('Generated list'!D4682=\"\",\"\",'Generated list'!D4682)","v":""}]
[null,{"$f":"IF('Generated list'!B4683=\"\",\"\",'Generated list'!B4683)","v":""},{"$f":"IF('Generated list'!C4683=\"\",\"\",'Generated list'!C4683)","v":""},{"$f":"IF('Generated list'!D4683=\"\",\"\",'Generated list'!D4683)","v":""}]
[null,{"$f":"IF('Generated list'!B4684=\"\",\"\",'Generated list'!B4684)","v":""},{"$f":"IF('Generated list'!C4684=\"\",\"\",'Generated list'!C4684)","v":""},{"$f":"IF('Generated list'!D4684=\"\",\"\",'Generated list'!D4684)","v":""}]
[null,{"$f":"IF('Generated list'!B4685=\"\",\"\",'Generated list'!B4685)","v":""},{"$f":"IF('Generated list'!C4685=\"\",\"\",'Generated list'!C4685)","v":""},{"$f":"IF('Generated list'!D4685=\"\",\"\",'Generated list'!D4685)","v":""}]
[null,{"$f":"IF('Generated list'!B4686=\"\",\"\",'Generated list'!B4686)","v":""},{"$f":"IF('Generated list'!C4686=\"\",\"\",'Generated list'!C4686)","v":""},{"$f":"IF('Generated list'!D4686=\"\",\"\",'Generated list'!D4686)","v":""}]
[null,{"$f":"IF('Generated list'!B4687=\"\",\"\",'Generated list'!B4687)","v":""},{"$f":"IF('Generated list'!C4687=\"\",\"\",'Generated list'!C4687)","v":""},{"$f":"IF('Generated list'!D4687=\"\",\"\",'Generated list'!D4687)","v":""}]
[null,{"$f":"IF('Generated list'!B4688=\"\",\"\",'Generated list'!B4688)","v":""},{"$f":"IF('Generated list'!C4688=\"\",\"\",'Generated list'!C4688)","v":""},{"$f":"IF('Generated list'!D4688=\"\",\"\",'Generated list'!D4688)","v":""}]
[null,{"$f":"IF('Generated list'!B4689=\"\",\"\",'Generated list'!B4689)","v":""},{"$f":"IF('Generated list'!C4689=\"\",\"\",'Generated list'!C4689)","v":""},{"$f":"IF('Generated list'!D4689=\"\",\"\",'Generated list'!D4689)","v":""}]
[null,{"$f":"IF('Generated list'!B4690=\"\",\"\",'Generated list'!B4690)","v":""},{"$f":"IF('Generated list'!C4690=\"\",\"\",'Generated list'!C4690)","v":""},{"$f":"IF('Generated list'!D4690=\"\",\"\",'Generated list'!D4690)","v":""}]
[null,{"$f":"IF('Generated list'!B4691=\"\",\"\",'Generated list'!B4691)","v":""},{"$f":"IF('Generated list'!C4691=\"\",\"\",'Generated list'!C4691)","v":""},{"$f":"IF('Generated list'!D4691=\"\",\"\",'Generated list'!D4691)","v":""}]
[null,{"$f":"IF('Generated list'!B4692=\"\",\"\",'Generated list'!B4692)","v":""},{"$f":"IF('Generated list'!C4692=\"\",\"\",'Generated list'!C4692)","v":""},{"$f":"IF('Generated list'!D4692=\"\",\"\",'Generated list'!D4692)","v":""}]
[null,{"$f":"IF('Generated list'!B4693=\"\",\"\",'Generated list'!B4693)","v":""},{"$f":"IF('Generated list'!C4693=\"\",\"\",'Generated list'!C4693)","v":""},{"$f":"IF('Generated list'!D4693=\"\",\"\",'Generated list'!D4693)","v":""}]
[null,{"$f":"IF('Generated list'!B4694=\"\",\"\",'Generated list'!B4694)","v":""},{"$f":"IF('Generated list'!C4694=\"\",\"\",'Generated list'!C4694)","v":""},{"$f":"IF('Generated list'!D4694=\"\",\"\",'Generated list'!D4694)","v":""}]
[null,{"$f":"IF('Generated list'!B4695=\"\",\"\",'Generated list'!B4695)","v":""},{"$f":"IF('Generated list'!C4695=\"\",\"\",'Generated list'!C4695)","v":""},{"$f":"IF('Generated list'!D4695=\"\",\"\",'Generated list'!D4695)","v":""}]
[null,{"$f":"IF('Generated list'!B4696=\"\",\"\",'Generated list'!B4696)","v":""},{"$f":"IF('Generated list'!C4696=\"\",\"\",'Generated list'!C4696)","v":""},{"$f":"IF('Generated list'!D4696=\"\",\"\",'Generated list'!D4696)","v":""}]
[null,{"$f":"IF('Generated list'!B4697=\"\",\"\",'Generated list'!B4697)","v":""},{"$f":"IF('Generated list'!C4697=\"\",\"\",'Generated list'!C4697)","v":""},{"$f":"IF('Generated list'!D4697=\"\",\"\",'Generated list'!D4697)","v":""}]
[null,{"$f":"IF('Generated list'!B4698=\"\",\"\",'Generated list'!B4698)","v":""},{"$f":"IF('Generated list'!C4698=\"\",\"\",'Generated list'!C4698)","v":""},{"$f":"IF('Generated list'!D4698=\"\",\"\",'Generated list'!D4698)","v":""}]
[null,{"$f":"IF('Generated list'!B4699=\"\",\"\",'Generated list'!B4699)","v":""},{"$f":"IF('Generated list'!C4699=\"\",\"\",'Generated list'!C4699)","v":""},{"$f":"IF('Generated list'!D4699=\"\",\"\",'Generated list'!D4699)","v":""}]
[null,{"$f":"IF('Generated list'!B4700=\"\",\"\",'Generated list'!B4700)","v":""},{"$f":"IF('Generated list'!C4700=\"\",\"\",'Generated list'!C4700)","v":""},{"$f":"IF('Generated list'!D4700=\"\",\"\",'Generated list'!D4700)","v":""}]
[null,{"$f":"IF('Generated list'!B4701=\"\",\"\",'Generated list'!B4701)","v":""},{"$f":"IF('Generated list'!C4701=\"\",\"\",'Generated list'!C4701)","v":""},{"$f":"IF('Generated list'!D4701=\"\",\"\",'Generated list'!D4701)","v":""}]
[null,{"$f":"IF('Generated list'!B4702=\"\",\"\",'Generated list'!B4702)","v":""},{"$f":"IF('Generated list'!C4702=\"\",\"\",'Generated list'!C4702)","v":""},{"$f":"IF('Generated list'!D4702=\"\",\"\",'Generated list'!D4702)","v":""}]
[null,{"$f":"IF('Generated list'!B4703=\"\",\"\",'Generated list'!B4703)","v":""},{"$f":"IF('Generated list'!C4703=\"\",\"\",'Generated list'!C4703)","v":""},{"$f":"IF('Generated list'!D4703=\"\",\"\",'Generated list'!D4703)","v":""}]
[null,{"$f":"IF('Generated list'!B4704=\"\",\"\",'Generated list'!B4704)","v":""},{"$f":"IF('Generated list'!C4704=\"\",\"\",'Generated list'!C4704)","v":""},{"$f":"IF('Generated list'!D4704=\"\",\"\",'Generated list'!D4704)","v":""}]
[null,{"$f":"IF('Generated list'!B4705=\"\",\"\",'Generated list'!B4705)","v":""},{"$f":"IF('Generated list'!C4705=\"\",\"\",'Generated list'!C4705)","v":""},{"$f":"IF('Generated list'!D4705=\"\",\"\",'Generated list'!D4705)","v":""}]
[null,{"$f":"IF('Generated list'!B4706=\"\",\"\",'Generated list'!B4706)","v":""},{"$f":"IF('Generated list'!C4706=\"\",\"\",'Generated list'!C4706)","v":""},{"$f":"IF('Generated list'!D4706=\"\",\"\",'Generated list'!D4706)","v":""}]
[null,{"$f":"IF('Generated list'!B4707=\"\",\"\",'Generated list'!B4707)","v":""},{"$f":"IF('Generated list'!C4707=\"\",\"\",'Generated list'!C4707)","v":""},{"$f":"IF('Generated list'!D4707=\"\",\"\",'Generated list'!D4707)","v":""}]
[null,{"$f":"IF('Generated list'!B4708=\"\",\"\",'Generated list'!B4708)","v":""},{"$f":"IF('Generated list'!C4708=\"\",\"\",'Generated list'!C4708)","v":""},{"$f":"IF('Generated list'!D4708=\"\",\"\",'Generated list'!D4708)","v":""}]
[null,{"$f":"IF('Generated list'!B4709=\"\",\"\",'Generated list'!B4709)","v":""},{"$f":"IF('Generated list'!C4709=\"\",\"\",'Generated list'!C4709)","v":""},{"$f":"IF('Generated list'!D4709=\"\",\"\",'Generated list'!D4709)","v":""}]
[null,{"$f":"IF('Generated list'!B4710=\"\",\"\",'Generated list'!B4710)","v":""},{"$f":"IF('Generated list'!C4710=\"\",\"\",'Generated list'!C4710)","v":""},{"$f":"IF('Generated list'!D4710=\"\",\"\",'Generated list'!D4710)","v":""}]
[null,{"$f":"IF('Generated list'!B4711=\"\",\"\",'Generated list'!B4711)","v":""},{"$f":"IF('Generated list'!C4711=\"\",\"\",'Generated list'!C4711)","v":""},{"$f":"IF('Generated list'!D4711=\"\",\"\",'Generated list'!D4711)","v":""}]
[null,{"$f":"IF('Generated list'!B4712=\"\",\"\",'Generated list'!B4712)","v":""},{"$f":"IF('Generated list'!C4712=\"\",\"\",'Generated list'!C4712)","v":""},{"$f":"IF('Generated list'!D4712=\"\",\"\",'Generated list'!D4712)","v":""}]
[null,{"$f":"IF('Generated list'!B4713=\"\",\"\",'Generated list'!B4713)","v":""},{"$f":"IF('Generated list'!C4713=\"\",\"\",'Generated list'!C4713)","v":""},{"$f":"IF('Generated list'!D4713=\"\",\"\",'Generated list'!D4713)","v":""}]
[null,{"$f":"IF('Generated list'!B4714=\"\",\"\",'Generated list'!B4714)","v":""},{"$f":"IF('Generated list'!C4714=\"\",\"\",'Generated list'!C4714)","v":""},{"$f":"IF('Generated list'!D4714=\"\",\"\",'Generated list'!D4714)","v":""}]
[null,{"$f":"IF('Generated list'!B4715=\"\",\"\",'Generated list'!B4715)","v":""},{"$f":"IF('Generated list'!C4715=\"\",\"\",'Generated list'!C4715)","v":""},{"$f":"IF('Generated list'!D4715=\"\",\"\",'Generated list'!D4715)","v":""}]
[null,{"$f":"IF('Generated list'!B4716=\"\",\"\",'Generated list'!B4716)","v":""},{"$f":"IF('Generated list'!C4716=\"\",\"\",'Generated list'!C4716)","v":""},{"$f":"IF('Generated list'!D4716=\"\",\"\",'Generated list'!D4716)","v":""}]
[null,{"$f":"IF('Generated list'!B4717=\"\",\"\",'Generated list'!B4717)","v":""},{"$f":"IF('Generated list'!C4717=\"\",\"\",'Generated list'!C4717)","v":""},{"$f":"IF('Generated list'!D4717=\"\",\"\",'Generated list'!D4717)","v":""}]
[null,{"$f":"IF('Generated list'!B4718=\"\",\"\",'Generated list'!B4718)","v":""},{"$f":"IF('Generated list'!C4718=\"\",\"\",'Generated list'!C4718)","v":""},{"$f":"IF('Generated list'!D4718=\"\",\"\",'Generated list'!D4718)","v":""}]
[null,{"$f":"IF('Generated list'!B4719=\"\",\"\",'Generated list'!B4719)","v":""},{"$f":"IF('Generated list'!C4719=\"\",\"\",'Generated list'!C4719)","v":""},{"$f":"IF('Generated list'!D4719=\"\",\"\",'Generated list'!D4719)","v":""}]
[null,{"$f":"IF('Generated list'!B4720=\"\",\"\",'Generated list'!B4720)","v":""},{"$f":"IF('Generated list'!C4720=\"\",\"\",'Generated list'!C4720)","v":""},{"$f":"IF('Generated list'!D4720=\"\",\"\",'Generated list'!D4720)","v":""}]
[null,{"$f":"IF('Generated list'!B4721=\"\",\"\",'Generated list'!B4721)","v":""},{"$f":"IF('Generated list'!C4721=\"\",\"\",'Generated list'!C4721)","v":""},{"$f":"IF('Generated list'!D4721=\"\",\"\",'Generated list'!D4721)","v":""}]
[null,{"$f":"IF('Generated list'!B4722=\"\",\"\",'Generated list'!B4722)","v":""},{"$f":"IF('Generated list'!C4722=\"\",\"\",'Generated list'!C4722)","v":""},{"$f":"IF('Generated list'!D4722=\"\",\"\",'Generated list'!D4722)","v":""}]
[null,{"$f":"IF('Generated list'!B4723=\"\",\"\",'Generated list'!B4723)","v":""},{"$f":"IF('Generated list'!C4723=\"\",\"\",'Generated list'!C4723)","v":""},{"$f":"IF('Generated list'!D4723=\"\",\"\",'Generated list'!D4723)","v":""}]
[null,{"$f":"IF('Generated list'!B4724=\"\",\"\",'Generated list'!B4724)","v":""},{"$f":"IF('Generated list'!C4724=\"\",\"\",'Generated list'!C4724)","v":""},{"$f":"IF('Generated list'!D4724=\"\",\"\",'Generated list'!D4724)","v":""}]
[null,{"$f":"IF('Generated list'!B4725=\"\",\"\",'Generated list'!B4725)","v":""},{"$f":"IF('Generated list'!C4725=\"\",\"\",'Generated list'!C4725)","v":""},{"$f":"IF('Generated list'!D4725=\"\",\"\",'Generated list'!D4725)","v":""}]
[null,{"$f":"IF('Generated list'!B4726=\"\",\"\",'Generated list'!B4726)","v":""},{"$f":"IF('Generated list'!C4726=\"\",\"\",'Generated list'!C4726)","v":""},{"$f":"IF('Generated list'!D4726=\"\",\"\",'Generated list'!D4726)","v":""}]
[null,{"$f":"IF('Generated list'!B4727=\"\",\"\",'Generated list'!B4727)","v":""},{"$f":"IF('Generated list'!C4727=\"\",\"\",'Generated list'!C4727)","v":""},{"$f":"IF('Generated list'!D4727=\"\",\"\",'Generated list'!D4727)","v":""}]
[null,{"$f":"IF('Generated list'!B4728=\"\",\"\",'Generated list'!B4728)","v":""},{"$f":"IF('Generated list'!C4728=\"\",\"\",'Generated list'!C4728)","v":""},{"$f":"IF('Generated list'!D4728=\"\",\"\",'Generated list'!D4728)","v":""}]
[null,{"$f":"IF('Generated list'!B4729=\"\",\"\",'Generated list'!B4729)","v":""},{"$f":"IF('Generated list'!C4729=\"\",\"\",'Generated list'!C4729)","v":""},{"$f":"IF('Generated list'!D4729=\"\",\"\",'Generated list'!D4729)","v":""}]
[null,{"$f":"IF('Generated list'!B4730=\"\",\"\",'Generated list'!B4730)","v":""},{"$f":"IF('Generated list'!C4730=\"\",\"\",'Generated list'!C4730)","v":""},{"$f":"IF('Generated list'!D4730=\"\",\"\",'Generated list'!D4730)","v":""}]
[null,{"$f":"IF('Generated list'!B4731=\"\",\"\",'Generated list'!B4731)","v":""},{"$f":"IF('Generated list'!C4731=\"\",\"\",'Generated list'!C4731)","v":""},{"$f":"IF('Generated list'!D4731=\"\",\"\",'Generated list'!D4731)","v":""}]
[null,{"$f":"IF('Generated list'!B4732=\"\",\"\",'Generated list'!B4732)","v":""},{"$f":"IF('Generated list'!C4732=\"\",\"\",'Generated list'!C4732)","v":""},{"$f":"IF('Generated list'!D4732=\"\",\"\",'Generated list'!D4732)","v":""}]
[null,{"$f":"IF('Generated list'!B4733=\"\",\"\",'Generated list'!B4733)","v":""},{"$f":"IF('Generated list'!C4733=\"\",\"\",'Generated list'!C4733)","v":""},{"$f":"IF('Generated list'!D4733=\"\",\"\",'Generated list'!D4733)","v":""}]
[null,{"$f":"IF('Generated list'!B4734=\"\",\"\",'Generated list'!B4734)","v":""},{"$f":"IF('Generated list'!C4734=\"\",\"\",'Generated list'!C4734)","v":""},{"$f":"IF('Generated list'!D4734=\"\",\"\",'Generated list'!D4734)","v":""}]
[null,{"$f":"IF('Generated list'!B4735=\"\",\"\",'Generated list'!B4735)","v":""},{"$f":"IF('Generated list'!C4735=\"\",\"\",'Generated list'!C4735)","v":""},{"$f":"IF('Generated list'!D4735=\"\",\"\",'Generated list'!D4735)","v":""}]
[null,{"$f":"IF('Generated list'!B4736=\"\",\"\",'Generated list'!B4736)","v":""},{"$f":"IF('Generated list'!C4736=\"\",\"\",'Generated list'!C4736)","v":""},{"$f":"IF('Generated list'!D4736=\"\",\"\",'Generated list'!D4736)","v":""}]
[null,{"$f":"IF('Generated list'!B4737=\"\",\"\",'Generated list'!B4737)","v":""},{"$f":"IF('Generated list'!C4737=\"\",\"\",'Generated list'!C4737)","v":""},{"$f":"IF('Generated list'!D4737=\"\",\"\",'Generated list'!D4737)","v":""}]
[null,{"$f":"IF('Generated list'!B4738=\"\",\"\",'Generated list'!B4738)","v":""},{"$f":"IF('Generated list'!C4738=\"\",\"\",'Generated list'!C4738)","v":""},{"$f":"IF('Generated list'!D4738=\"\",\"\",'Generated list'!D4738)","v":""}]
[null,{"$f":"IF('Generated list'!B4739=\"\",\"\",'Generated list'!B4739)","v":""},{"$f":"IF('Generated list'!C4739=\"\",\"\",'Generated list'!C4739)","v":""},{"$f":"IF('Generated list'!D4739=\"\",\"\",'Generated list'!D4739)","v":""}]
[null,{"$f":"IF('Generated list'!B4740=\"\",\"\",'Generated list'!B4740)","v":""},{"$f":"IF('Generated list'!C4740=\"\",\"\",'Generated list'!C4740)","v":""},{"$f":"IF('Generated list'!D4740=\"\",\"\",'Generated list'!D4740)","v":""}]
[null,{"$f":"IF('Generated list'!B4741=\"\",\"\",'Generated list'!B4741)","v":""},{"$f":"IF('Generated list'!C4741=\"\",\"\",'Generated list'!C4741)","v":""},{"$f":"IF('Generated list'!D4741=\"\",\"\",'Generated list'!D4741)","v":""}]
[null,{"$f":"IF('Generated list'!B4742=\"\",\"\",'Generated list'!B4742)","v":""},{"$f":"IF('Generated list'!C4742=\"\",\"\",'Generated list'!C4742)","v":""},{"$f":"IF('Generated list'!D4742=\"\",\"\",'Generated list'!D4742)","v":""}]
[null,{"$f":"IF('Generated list'!B4743=\"\",\"\",'Generated list'!B4743)","v":""},{"$f":"IF('Generated list'!C4743=\"\",\"\",'Generated list'!C4743)","v":""},{"$f":"IF('Generated list'!D4743=\"\",\"\",'Generated list'!D4743)","v":""}]
[null,{"$f":"IF('Generated list'!B4744=\"\",\"\",'Generated list'!B4744)","v":""},{"$f":"IF('Generated list'!C4744=\"\",\"\",'Generated list'!C4744)","v":""},{"$f":"IF('Generated list'!D4744=\"\",\"\",'Generated list'!D4744)","v":""}]
[null,{"$f":"IF('Generated list'!B4745=\"\",\"\",'Generated list'!B4745)","v":""},{"$f":"IF('Generated list'!C4745=\"\",\"\",'Generated list'!C4745)","v":""},{"$f":"IF('Generated list'!D4745=\"\",\"\",'Generated list'!D4745)","v":""}]
[null,{"$f":"IF('Generated list'!B4746=\"\",\"\",'Generated list'!B4746)","v":""},{"$f":"IF('Generated list'!C4746=\"\",\"\",'Generated list'!C4746)","v":""},{"$f":"IF('Generated list'!D4746=\"\",\"\",'Generated list'!D4746)","v":""}]
[null,{"$f":"IF('Generated list'!B4747=\"\",\"\",'Generated list'!B4747)","v":""},{"$f":"IF('Generated list'!C4747=\"\",\"\",'Generated list'!C4747)","v":""},{"$f":"IF('Generated list'!D4747=\"\",\"\",'Generated list'!D4747)","v":""}]
[null,{"$f":"IF('Generated list'!B4748=\"\",\"\",'Generated list'!B4748)","v":""},{"$f":"IF('Generated list'!C4748=\"\",\"\",'Generated list'!C4748)","v":""},{"$f":"IF('Generated list'!D4748=\"\",\"\",'Generated list'!D4748)","v":""}]
[null,{"$f":"IF('Generated list'!B4749=\"\",\"\",'Generated list'!B4749)","v":""},{"$f":"IF('Generated list'!C4749=\"\",\"\",'Generated list'!C4749)","v":""},{"$f":"IF('Generated list'!D4749=\"\",\"\",'Generated list'!D4749)","v":""}]
[null,{"$f":"IF('Generated list'!B4750=\"\",\"\",'Generated list'!B4750)","v":""},{"$f":"IF('Generated list'!C4750=\"\",\"\",'Generated list'!C4750)","v":""},{"$f":"IF('Generated list'!D4750=\"\",\"\",'Generated list'!D4750)","v":""}]
[null,{"$f":"IF('Generated list'!B4751=\"\",\"\",'Generated list'!B4751)","v":""},{"$f":"IF('Generated list'!C4751=\"\",\"\",'Generated list'!C4751)","v":""},{"$f":"IF('Generated list'!D4751=\"\",\"\",'Generated list'!D4751)","v":""}]
[null,{"$f":"IF('Generated list'!B4752=\"\",\"\",'Generated list'!B4752)","v":""},{"$f":"IF('Generated list'!C4752=\"\",\"\",'Generated list'!C4752)","v":""},{"$f":"IF('Generated list'!D4752=\"\",\"\",'Generated list'!D4752)","v":""}]
[null,{"$f":"IF('Generated list'!B4753=\"\",\"\",'Generated list'!B4753)","v":""},{"$f":"IF('Generated list'!C4753=\"\",\"\",'Generated list'!C4753)","v":""},{"$f":"IF('Generated list'!D4753=\"\",\"\",'Generated list'!D4753)","v":""}]
[null,{"$f":"IF('Generated list'!B4754=\"\",\"\",'Generated list'!B4754)","v":""},{"$f":"IF('Generated list'!C4754=\"\",\"\",'Generated list'!C4754)","v":""},{"$f":"IF('Generated list'!D4754=\"\",\"\",'Generated list'!D4754)","v":""}]
[null,{"$f":"IF('Generated list'!B4755=\"\",\"\",'Generated list'!B4755)","v":""},{"$f":"IF('Generated list'!C4755=\"\",\"\",'Generated list'!C4755)","v":""},{"$f":"IF('Generated list'!D4755=\"\",\"\",'Generated list'!D4755)","v":""}]
[null,{"$f":"IF('Generated list'!B4756=\"\",\"\",'Generated list'!B4756)","v":""},{"$f":"IF('Generated list'!C4756=\"\",\"\",'Generated list'!C4756)","v":""},{"$f":"IF('Generated list'!D4756=\"\",\"\",'Generated list'!D4756)","v":""}]
[null,{"$f":"IF('Generated list'!B4757=\"\",\"\",'Generated list'!B4757)","v":""},{"$f":"IF('Generated list'!C4757=\"\",\"\",'Generated list'!C4757)","v":""},{"$f":"IF('Generated list'!D4757=\"\",\"\",'Generated list'!D4757)","v":""}]
[null,{"$f":"IF('Generated list'!B4758=\"\",\"\",'Generated list'!B4758)","v":""},{"$f":"IF('Generated list'!C4758=\"\",\"\",'Generated list'!C4758)","v":""},{"$f":"IF('Generated list'!D4758=\"\",\"\",'Generated list'!D4758)","v":""}]
[null,{"$f":"IF('Generated list'!B4759=\"\",\"\",'Generated list'!B4759)","v":""},{"$f":"IF('Generated list'!C4759=\"\",\"\",'Generated list'!C4759)","v":""},{"$f":"IF('Generated list'!D4759=\"\",\"\",'Generated list'!D4759)","v":""}]
[null,{"$f":"IF('Generated list'!B4760=\"\",\"\",'Generated list'!B4760)","v":""},{"$f":"IF('Generated list'!C4760=\"\",\"\",'Generated list'!C4760)","v":""},{"$f":"IF('Generated list'!D4760=\"\",\"\",'Generated list'!D4760)","v":""}]
[null,{"$f":"IF('Generated list'!B4761=\"\",\"\",'Generated list'!B4761)","v":""},{"$f":"IF('Generated list'!C4761=\"\",\"\",'Generated list'!C4761)","v":""},{"$f":"IF('Generated list'!D4761=\"\",\"\",'Generated list'!D4761)","v":""}]
[null,{"$f":"IF('Generated list'!B4762=\"\",\"\",'Generated list'!B4762)","v":""},{"$f":"IF('Generated list'!C4762=\"\",\"\",'Generated list'!C4762)","v":""},{"$f":"IF('Generated list'!D4762=\"\",\"\",'Generated list'!D4762)","v":""}]
[null,{"$f":"IF('Generated list'!B4763=\"\",\"\",'Generated list'!B4763)","v":""},{"$f":"IF('Generated list'!C4763=\"\",\"\",'Generated list'!C4763)","v":""},{"$f":"IF('Generated list'!D4763=\"\",\"\",'Generated list'!D4763)","v":""}]
[null,{"$f":"IF('Generated list'!B4764=\"\",\"\",'Generated list'!B4764)","v":""},{"$f":"IF('Generated list'!C4764=\"\",\"\",'Generated list'!C4764)","v":""},{"$f":"IF('Generated list'!D4764=\"\",\"\",'Generated list'!D4764)","v":""}]
[null,{"$f":"IF('Generated list'!B4765=\"\",\"\",'Generated list'!B4765)","v":""},{"$f":"IF('Generated list'!C4765=\"\",\"\",'Generated list'!C4765)","v":""},{"$f":"IF('Generated list'!D4765=\"\",\"\",'Generated list'!D4765)","v":""}]
[null,{"$f":"IF('Generated list'!B4766=\"\",\"\",'Generated list'!B4766)","v":""},{"$f":"IF('Generated list'!C4766=\"\",\"\",'Generated list'!C4766)","v":""},{"$f":"IF('Generated list'!D4766=\"\",\"\",'Generated list'!D4766)","v":""}]
[null,{"$f":"IF('Generated list'!B4767=\"\",\"\",'Generated list'!B4767)","v":""},{"$f":"IF('Generated list'!C4767=\"\",\"\",'Generated list'!C4767)","v":""},{"$f":"IF('Generated list'!D4767=\"\",\"\",'Generated list'!D4767)","v":""}]
[null,{"$f":"IF('Generated list'!B4768=\"\",\"\",'Generated list'!B4768)","v":""},{"$f":"IF('Generated list'!C4768=\"\",\"\",'Generated list'!C4768)","v":""},{"$f":"IF('Generated list'!D4768=\"\",\"\",'Generated list'!D4768)","v":""}]
[null,{"$f":"IF('Generated list'!B4769=\"\",\"\",'Generated list'!B4769)","v":""},{"$f":"IF('Generated list'!C4769=\"\",\"\",'Generated list'!C4769)","v":""},{"$f":"IF('Generated list'!D4769=\"\",\"\",'Generated list'!D4769)","v":""}]
[null,{"$f":"IF('Generated list'!B4770=\"\",\"\",'Generated list'!B4770)","v":""},{"$f":"IF('Generated list'!C4770=\"\",\"\",'Generated list'!C4770)","v":""},{"$f":"IF('Generated list'!D4770=\"\",\"\",'Generated list'!D4770)","v":""}]
[null,{"$f":"IF('Generated list'!B4771=\"\",\"\",'Generated list'!B4771)","v":""},{"$f":"IF('Generated list'!C4771=\"\",\"\",'Generated list'!C4771)","v":""},{"$f":"IF('Generated list'!D4771=\"\",\"\",'Generated list'!D4771)","v":""}]
[null,{"$f":"IF('Generated list'!B4772=\"\",\"\",'Generated list'!B4772)","v":""},{"$f":"IF('Generated list'!C4772=\"\",\"\",'Generated list'!C4772)","v":""},{"$f":"IF('Generated list'!D4772=\"\",\"\",'Generated list'!D4772)","v":""}]
[null,{"$f":"IF('Generated list'!B4773=\"\",\"\",'Generated list'!B4773)","v":""},{"$f":"IF('Generated list'!C4773=\"\",\"\",'Generated list'!C4773)","v":""},{"$f":"IF('Generated list'!D4773=\"\",\"\",'Generated list'!D4773)","v":""}]
[null,{"$f":"IF('Generated list'!B4774=\"\",\"\",'Generated list'!B4774)","v":""},{"$f":"IF('Generated list'!C4774=\"\",\"\",'Generated list'!C4774)","v":""},{"$f":"IF('Generated list'!D4774=\"\",\"\",'Generated list'!D4774)","v":""}]
[null,{"$f":"IF('Generated list'!B4775=\"\",\"\",'Generated list'!B4775)","v":""},{"$f":"IF('Generated list'!C4775=\"\",\"\",'Generated list'!C4775)","v":""},{"$f":"IF('Generated list'!D4775=\"\",\"\",'Generated list'!D4775)","v":""}]
[null,{"$f":"IF('Generated list'!B4776=\"\",\"\",'Generated list'!B4776)","v":""},{"$f":"IF('Generated list'!C4776=\"\",\"\",'Generated list'!C4776)","v":""},{"$f":"IF('Generated list'!D4776=\"\",\"\",'Generated list'!D4776)","v":""}]
[null,{"$f":"IF('Generated list'!B4777=\"\",\"\",'Generated list'!B4777)","v":""},{"$f":"IF('Generated list'!C4777=\"\",\"\",'Generated list'!C4777)","v":""},{"$f":"IF('Generated list'!D4777=\"\",\"\",'Generated list'!D4777)","v":""}]
[null,{"$f":"IF('Generated list'!B4778=\"\",\"\",'Generated list'!B4778)","v":""},{"$f":"IF('Generated list'!C4778=\"\",\"\",'Generated list'!C4778)","v":""},{"$f":"IF('Generated list'!D4778=\"\",\"\",'Generated list'!D4778)","v":""}]
[null,{"$f":"IF('Generated list'!B4779=\"\",\"\",'Generated list'!B4779)","v":""},{"$f":"IF('Generated list'!C4779=\"\",\"\",'Generated list'!C4779)","v":""},{"$f":"IF('Generated list'!D4779=\"\",\"\",'Generated list'!D4779)","v":""}]
[null,{"$f":"IF('Generated list'!B4780=\"\",\"\",'Generated list'!B4780)","v":""},{"$f":"IF('Generated list'!C4780=\"\",\"\",'Generated list'!C4780)","v":""},{"$f":"IF('Generated list'!D4780=\"\",\"\",'Generated list'!D4780)","v":""}]
[null,{"$f":"IF('Generated list'!B4781=\"\",\"\",'Generated list'!B4781)","v":""},{"$f":"IF('Generated list'!C4781=\"\",\"\",'Generated list'!C4781)","v":""},{"$f":"IF('Generated list'!D4781=\"\",\"\",'Generated list'!D4781)","v":""}]
[null,{"$f":"IF('Generated list'!B4782=\"\",\"\",'Generated list'!B4782)","v":""},{"$f":"IF('Generated list'!C4782=\"\",\"\",'Generated list'!C4782)","v":""},{"$f":"IF('Generated list'!D4782=\"\",\"\",'Generated list'!D4782)","v":""}]
[null,{"$f":"IF('Generated list'!B4783=\"\",\"\",'Generated list'!B4783)","v":""},{"$f":"IF('Generated list'!C4783=\"\",\"\",'Generated list'!C4783)","v":""},{"$f":"IF('Generated list'!D4783=\"\",\"\",'Generated list'!D4783)","v":""}]
[null,{"$f":"IF('Generated list'!B4784=\"\",\"\",'Generated list'!B4784)","v":""},{"$f":"IF('Generated list'!C4784=\"\",\"\",'Generated list'!C4784)","v":""},{"$f":"IF('Generated list'!D4784=\"\",\"\",'Generated list'!D4784)","v":""}]
[null,{"$f":"IF('Generated list'!B4785=\"\",\"\",'Generated list'!B4785)","v":""},{"$f":"IF('Generated list'!C4785=\"\",\"\",'Generated list'!C4785)","v":""},{"$f":"IF('Generated list'!D4785=\"\",\"\",'Generated list'!D4785)","v":""}]
[null,{"$f":"IF('Generated list'!B4786=\"\",\"\",'Generated list'!B4786)","v":""},{"$f":"IF('Generated list'!C4786=\"\",\"\",'Generated list'!C4786)","v":""},{"$f":"IF('Generated list'!D4786=\"\",\"\",'Generated list'!D4786)","v":""}]
[null,{"$f":"IF('Generated list'!B4787=\"\",\"\",'Generated list'!B4787)","v":""},{"$f":"IF('Generated list'!C4787=\"\",\"\",'Generated list'!C4787)","v":""},{"$f":"IF('Generated list'!D4787=\"\",\"\",'Generated list'!D4787)","v":""}]
[null,{"$f":"IF('Generated list'!B4788=\"\",\"\",'Generated list'!B4788)","v":""},{"$f":"IF('Generated list'!C4788=\"\",\"\",'Generated list'!C4788)","v":""},{"$f":"IF('Generated list'!D4788=\"\",\"\",'Generated list'!D4788)","v":""}]
[null,{"$f":"IF('Generated list'!B4789=\"\",\"\",'Generated list'!B4789)","v":""},{"$f":"IF('Generated list'!C4789=\"\",\"\",'Generated list'!C4789)","v":""},{"$f":"IF('Generated list'!D4789=\"\",\"\",'Generated list'!D4789)","v":""}]
[null,{"$f":"IF('Generated list'!B4790=\"\",\"\",'Generated list'!B4790)","v":""},{"$f":"IF('Generated list'!C4790=\"\",\"\",'Generated list'!C4790)","v":""},{"$f":"IF('Generated list'!D4790=\"\",\"\",'Generated list'!D4790)","v":""}]
[null,{"$f":"IF('Generated list'!B4791=\"\",\"\",'Generated list'!B4791)","v":""},{"$f":"IF('Generated list'!C4791=\"\",\"\",'Generated list'!C4791)","v":""},{"$f":"IF('Generated list'!D4791=\"\",\"\",'Generated list'!D4791)","v":""}]
[null,{"$f":"IF('Generated list'!B4792=\"\",\"\",'Generated list'!B4792)","v":""},{"$f":"IF('Generated list'!C4792=\"\",\"\",'Generated list'!C4792)","v":""},{"$f":"IF('Generated list'!D4792=\"\",\"\",'Generated list'!D4792)","v":""}]
[null,{"$f":"IF('Generated list'!B4793=\"\",\"\",'Generated list'!B4793)","v":""},{"$f":"IF('Generated list'!C4793=\"\",\"\",'Generated list'!C4793)","v":""},{"$f":"IF('Generated list'!D4793=\"\",\"\",'Generated list'!D4793)","v":""}]
[null,{"$f":"IF('Generated list'!B4794=\"\",\"\",'Generated list'!B4794)","v":""},{"$f":"IF('Generated list'!C4794=\"\",\"\",'Generated list'!C4794)","v":""},{"$f":"IF('Generated list'!D4794=\"\",\"\",'Generated list'!D4794)","v":""}]
[null,{"$f":"IF('Generated list'!B4795=\"\",\"\",'Generated list'!B4795)","v":""},{"$f":"IF('Generated list'!C4795=\"\",\"\",'Generated list'!C4795)","v":""},{"$f":"IF('Generated list'!D4795=\"\",\"\",'Generated list'!D4795)","v":""}]
[null,{"$f":"IF('Generated list'!B4796=\"\",\"\",'Generated list'!B4796)","v":""},{"$f":"IF('Generated list'!C4796=\"\",\"\",'Generated list'!C4796)","v":""},{"$f":"IF('Generated list'!D4796=\"\",\"\",'Generated list'!D4796)","v":""}]
[null,{"$f":"IF('Generated list'!B4797=\"\",\"\",'Generated list'!B4797)","v":""},{"$f":"IF('Generated list'!C4797=\"\",\"\",'Generated list'!C4797)","v":""},{"$f":"IF('Generated list'!D4797=\"\",\"\",'Generated list'!D4797)","v":""}]
[null,{"$f":"IF('Generated list'!B4798=\"\",\"\",'Generated list'!B4798)","v":""},{"$f":"IF('Generated list'!C4798=\"\",\"\",'Generated list'!C4798)","v":""},{"$f":"IF('Generated list'!D4798=\"\",\"\",'Generated list'!D4798)","v":""}]
[null,{"$f":"IF('Generated list'!B4799=\"\",\"\",'Generated list'!B4799)","v":""},{"$f":"IF('Generated list'!C4799=\"\",\"\",'Generated list'!C4799)","v":""},{"$f":"IF('Generated list'!D4799=\"\",\"\",'Generated list'!D4799)","v":""}]
[null,{"$f":"IF('Generated list'!B4800=\"\",\"\",'Generated list'!B4800)","v":""},{"$f":"IF('Generated list'!C4800=\"\",\"\",'Generated list'!C4800)","v":""},{"$f":"IF('Generated list'!D4800=\"\",\"\",'Generated list'!D4800)","v":""}]
[null,{"$f":"IF('Generated list'!B4801=\"\",\"\",'Generated list'!B4801)","v":""},{"$f":"IF('Generated list'!C4801=\"\",\"\",'Generated list'!C4801)","v":""},{"$f":"IF('Generated list'!D4801=\"\",\"\",'Generated list'!D4801)","v":""}]
[null,{"$f":"IF('Generated list'!B4802=\"\",\"\",'Generated list'!B4802)","v":""},{"$f":"IF('Generated list'!C4802=\"\",\"\",'Generated list'!C4802)","v":""},{"$f":"IF('Generated list'!D4802=\"\",\"\",'Generated list'!D4802)","v":""}]
[null,{"$f":"IF('Generated list'!B4803=\"\",\"\",'Generated list'!B4803)","v":""},{"$f":"IF('Generated list'!C4803=\"\",\"\",'Generated list'!C4803)","v":""},{"$f":"IF('Generated list'!D4803=\"\",\"\",'Generated list'!D4803)","v":""}]
[null,{"$f":"IF('Generated list'!B4804=\"\",\"\",'Generated list'!B4804)","v":""},{"$f":"IF('Generated list'!C4804=\"\",\"\",'Generated list'!C4804)","v":""},{"$f":"IF('Generated list'!D4804=\"\",\"\",'Generated list'!D4804)","v":""}]
[null,{"$f":"IF('Generated list'!B4805=\"\",\"\",'Generated list'!B4805)","v":""},{"$f":"IF('Generated list'!C4805=\"\",\"\",'Generated list'!C4805)","v":""},{"$f":"IF('Generated list'!D4805=\"\",\"\",'Generated list'!D4805)","v":""}]
[null,{"$f":"IF('Generated list'!B4806=\"\",\"\",'Generated list'!B4806)","v":""},{"$f":"IF('Generated list'!C4806=\"\",\"\",'Generated list'!C4806)","v":""},{"$f":"IF('Generated list'!D4806=\"\",\"\",'Generated list'!D4806)","v":""}]
[null,{"$f":"IF('Generated list'!B4807=\"\",\"\",'Generated list'!B4807)","v":""},{"$f":"IF('Generated list'!C4807=\"\",\"\",'Generated list'!C4807)","v":""},{"$f":"IF('Generated list'!D4807=\"\",\"\",'Generated list'!D4807)","v":""}]
[null,{"$f":"IF('Generated list'!B4808=\"\",\"\",'Generated list'!B4808)","v":""},{"$f":"IF('Generated list'!C4808=\"\",\"\",'Generated list'!C4808)","v":""},{"$f":"IF('Generated list'!D4808=\"\",\"\",'Generated list'!D4808)","v":""}]
[null,{"$f":"IF('Generated list'!B4809=\"\",\"\",'Generated list'!B4809)","v":""},{"$f":"IF('Generated list'!C4809=\"\",\"\",'Generated list'!C4809)","v":""},{"$f":"IF('Generated list'!D4809=\"\",\"\",'Generated list'!D4809)","v":""}]
[null,{"$f":"IF('Generated list'!B4810=\"\",\"\",'Generated list'!B4810)","v":""},{"$f":"IF('Generated list'!C4810=\"\",\"\",'Generated list'!C4810)","v":""},{"$f":"IF('Generated list'!D4810=\"\",\"\",'Generated list'!D4810)","v":""}]
[null,{"$f":"IF('Generated list'!B4811=\"\",\"\",'Generated list'!B4811)","v":""},{"$f":"IF('Generated list'!C4811=\"\",\"\",'Generated list'!C4811)","v":""},{"$f":"IF('Generated list'!D4811=\"\",\"\",'Generated list'!D4811)","v":""}]
[null,{"$f":"IF('Generated list'!B4812=\"\",\"\",'Generated list'!B4812)","v":""},{"$f":"IF('Generated list'!C4812=\"\",\"\",'Generated list'!C4812)","v":""},{"$f":"IF('Generated list'!D4812=\"\",\"\",'Generated list'!D4812)","v":""}]
[null,{"$f":"IF('Generated list'!B4813=\"\",\"\",'Generated list'!B4813)","v":""},{"$f":"IF('Generated list'!C4813=\"\",\"\",'Generated list'!C4813)","v":""},{"$f":"IF('Generated list'!D4813=\"\",\"\",'Generated list'!D4813)","v":""}]
[null,{"$f":"IF('Generated list'!B4814=\"\",\"\",'Generated list'!B4814)","v":""},{"$f":"IF('Generated list'!C4814=\"\",\"\",'Generated list'!C4814)","v":""},{"$f":"IF('Generated list'!D4814=\"\",\"\",'Generated list'!D4814)","v":""}]
[null,{"$f":"IF('Generated list'!B4815=\"\",\"\",'Generated list'!B4815)","v":""},{"$f":"IF('Generated list'!C4815=\"\",\"\",'Generated list'!C4815)","v":""},{"$f":"IF('Generated list'!D4815=\"\",\"\",'Generated list'!D4815)","v":""}]
[null,{"$f":"IF('Generated list'!B4816=\"\",\"\",'Generated list'!B4816)","v":""},{"$f":"IF('Generated list'!C4816=\"\",\"\",'Generated list'!C4816)","v":""},{"$f":"IF('Generated list'!D4816=\"\",\"\",'Generated list'!D4816)","v":""}]
[null,{"$f":"IF('Generated list'!B4817=\"\",\"\",'Generated list'!B4817)","v":""},{"$f":"IF('Generated list'!C4817=\"\",\"\",'Generated list'!C4817)","v":""},{"$f":"IF('Generated list'!D4817=\"\",\"\",'Generated list'!D4817)","v":""}]
[null,{"$f":"IF('Generated list'!B4818=\"\",\"\",'Generated list'!B4818)","v":""},{"$f":"IF('Generated list'!C4818=\"\",\"\",'Generated list'!C4818)","v":""},{"$f":"IF('Generated list'!D4818=\"\",\"\",'Generated list'!D4818)","v":""}]
[null,{"$f":"IF('Generated list'!B4819=\"\",\"\",'Generated list'!B4819)","v":""},{"$f":"IF('Generated list'!C4819=\"\",\"\",'Generated list'!C4819)","v":""},{"$f":"IF('Generated list'!D4819=\"\",\"\",'Generated list'!D4819)","v":""}]
[null,{"$f":"IF('Generated list'!B4820=\"\",\"\",'Generated list'!B4820)","v":""},{"$f":"IF('Generated list'!C4820=\"\",\"\",'Generated list'!C4820)","v":""},{"$f":"IF('Generated list'!D4820=\"\",\"\",'Generated list'!D4820)","v":""}]
[null,{"$f":"IF('Generated list'!B4821=\"\",\"\",'Generated list'!B4821)","v":""},{"$f":"IF('Generated list'!C4821=\"\",\"\",'Generated list'!C4821)","v":""},{"$f":"IF('Generated list'!D4821=\"\",\"\",'Generated list'!D4821)","v":""}]
[null,{"$f":"IF('Generated list'!B4822=\"\",\"\",'Generated list'!B4822)","v":""},{"$f":"IF('Generated list'!C4822=\"\",\"\",'Generated list'!C4822)","v":""},{"$f":"IF('Generated list'!D4822=\"\",\"\",'Generated list'!D4822)","v":""}]
[null,{"$f":"IF('Generated list'!B4823=\"\",\"\",'Generated list'!B4823)","v":""},{"$f":"IF('Generated list'!C4823=\"\",\"\",'Generated list'!C4823)","v":""},{"$f":"IF('Generated list'!D4823=\"\",\"\",'Generated list'!D4823)","v":""}]
[null,{"$f":"IF('Generated list'!B4824=\"\",\"\",'Generated list'!B4824)","v":""},{"$f":"IF('Generated list'!C4824=\"\",\"\",'Generated list'!C4824)","v":""},{"$f":"IF('Generated list'!D4824=\"\",\"\",'Generated list'!D4824)","v":""}]
[null,{"$f":"IF('Generated list'!B4825=\"\",\"\",'Generated list'!B4825)","v":""},{"$f":"IF('Generated list'!C4825=\"\",\"\",'Generated list'!C4825)","v":""},{"$f":"IF('Generated list'!D4825=\"\",\"\",'Generated list'!D4825)","v":""}]
[null,{"$f":"IF('Generated list'!B4826=\"\",\"\",'Generated list'!B4826)","v":""},{"$f":"IF('Generated list'!C4826=\"\",\"\",'Generated list'!C4826)","v":""},{"$f":"IF('Generated list'!D4826=\"\",\"\",'Generated list'!D4826)","v":""}]
[null,{"$f":"IF('Generated list'!B4827=\"\",\"\",'Generated list'!B4827)","v":""},{"$f":"IF('Generated list'!C4827=\"\",\"\",'Generated list'!C4827)","v":""},{"$f":"IF('Generated list'!D4827=\"\",\"\",'Generated list'!D4827)","v":""}]
[null,{"$f":"IF('Generated list'!B4828=\"\",\"\",'Generated list'!B4828)","v":""},{"$f":"IF('Generated list'!C4828=\"\",\"\",'Generated list'!C4828)","v":""},{"$f":"IF('Generated list'!D4828=\"\",\"\",'Generated list'!D4828)","v":""}]
[null,{"$f":"IF('Generated list'!B4829=\"\",\"\",'Generated list'!B4829)","v":""},{"$f":"IF('Generated list'!C4829=\"\",\"\",'Generated list'!C4829)","v":""},{"$f":"IF('Generated list'!D4829=\"\",\"\",'Generated list'!D4829)","v":""}]
[null,{"$f":"IF('Generated list'!B4830=\"\",\"\",'Generated list'!B4830)","v":""},{"$f":"IF('Generated list'!C4830=\"\",\"\",'Generated list'!C4830)","v":""},{"$f":"IF('Generated list'!D4830=\"\",\"\",'Generated list'!D4830)","v":""}]
[null,{"$f":"IF('Generated list'!B4831=\"\",\"\",'Generated list'!B4831)","v":""},{"$f":"IF('Generated list'!C4831=\"\",\"\",'Generated list'!C4831)","v":""},{"$f":"IF('Generated list'!D4831=\"\",\"\",'Generated list'!D4831)","v":""}]
[null,{"$f":"IF('Generated list'!B4832=\"\",\"\",'Generated list'!B4832)","v":""},{"$f":"IF('Generated list'!C4832=\"\",\"\",'Generated list'!C4832)","v":""},{"$f":"IF('Generated list'!D4832=\"\",\"\",'Generated list'!D4832)","v":""}]
[null,{"$f":"IF('Generated list'!B4833=\"\",\"\",'Generated list'!B4833)","v":""},{"$f":"IF('Generated list'!C4833=\"\",\"\",'Generated list'!C4833)","v":""},{"$f":"IF('Generated list'!D4833=\"\",\"\",'Generated list'!D4833)","v":""}]
[null,{"$f":"IF('Generated list'!B4834=\"\",\"\",'Generated list'!B4834)","v":""},{"$f":"IF('Generated list'!C4834=\"\",\"\",'Generated list'!C4834)","v":""},{"$f":"IF('Generated list'!D4834=\"\",\"\",'Generated list'!D4834)","v":""}]
[null,{"$f":"IF('Generated list'!B4835=\"\",\"\",'Generated list'!B4835)","v":""},{"$f":"IF('Generated list'!C4835=\"\",\"\",'Generated list'!C4835)","v":""},{"$f":"IF('Generated list'!D4835=\"\",\"\",'Generated list'!D4835)","v":""}]
[null,{"$f":"IF('Generated list'!B4836=\"\",\"\",'Generated list'!B4836)","v":""},{"$f":"IF('Generated list'!C4836=\"\",\"\",'Generated list'!C4836)","v":""},{"$f":"IF('Generated list'!D4836=\"\",\"\",'Generated list'!D4836)","v":""}]
[null,{"$f":"IF('Generated list'!B4837=\"\",\"\",'Generated list'!B4837)","v":""},{"$f":"IF('Generated list'!C4837=\"\",\"\",'Generated list'!C4837)","v":""},{"$f":"IF('Generated list'!D4837=\"\",\"\",'Generated list'!D4837)","v":""}]
[null,{"$f":"IF('Generated list'!B4838=\"\",\"\",'Generated list'!B4838)","v":""},{"$f":"IF('Generated list'!C4838=\"\",\"\",'Generated list'!C4838)","v":""},{"$f":"IF('Generated list'!D4838=\"\",\"\",'Generated list'!D4838)","v":""}]
[null,{"$f":"IF('Generated list'!B4839=\"\",\"\",'Generated list'!B4839)","v":""},{"$f":"IF('Generated list'!C4839=\"\",\"\",'Generated list'!C4839)","v":""},{"$f":"IF('Generated list'!D4839=\"\",\"\",'Generated list'!D4839)","v":""}]
[null,{"$f":"IF('Generated list'!B4840=\"\",\"\",'Generated list'!B4840)","v":""},{"$f":"IF('Generated list'!C4840=\"\",\"\",'Generated list'!C4840)","v":""},{"$f":"IF('Generated list'!D4840=\"\",\"\",'Generated list'!D4840)","v":""}]
[null,{"$f":"IF('Generated list'!B4841=\"\",\"\",'Generated list'!B4841)","v":""},{"$f":"IF('Generated list'!C4841=\"\",\"\",'Generated list'!C4841)","v":""},{"$f":"IF('Generated list'!D4841=\"\",\"\",'Generated list'!D4841)","v":""}]
[null,{"$f":"IF('Generated list'!B4842=\"\",\"\",'Generated list'!B4842)","v":""},{"$f":"IF('Generated list'!C4842=\"\",\"\",'Generated list'!C4842)","v":""},{"$f":"IF('Generated list'!D4842=\"\",\"\",'Generated list'!D4842)","v":""}]
[null,{"$f":"IF('Generated list'!B4843=\"\",\"\",'Generated list'!B4843)","v":""},{"$f":"IF('Generated list'!C4843=\"\",\"\",'Generated list'!C4843)","v":""},{"$f":"IF('Generated list'!D4843=\"\",\"\",'Generated list'!D4843)","v":""}]
[null,{"$f":"IF('Generated list'!B4844=\"\",\"\",'Generated list'!B4844)","v":""},{"$f":"IF('Generated list'!C4844=\"\",\"\",'Generated list'!C4844)","v":""},{"$f":"IF('Generated list'!D4844=\"\",\"\",'Generated list'!D4844)","v":""}]
[null,{"$f":"IF('Generated list'!B4845=\"\",\"\",'Generated list'!B4845)","v":""},{"$f":"IF('Generated list'!C4845=\"\",\"\",'Generated list'!C4845)","v":""},{"$f":"IF('Generated list'!D4845=\"\",\"\",'Generated list'!D4845)","v":""}]
[null,{"$f":"IF('Generated list'!B4846=\"\",\"\",'Generated list'!B4846)","v":""},{"$f":"IF('Generated list'!C4846=\"\",\"\",'Generated list'!C4846)","v":""},{"$f":"IF('Generated list'!D4846=\"\",\"\",'Generated list'!D4846)","v":""}]
[null,{"$f":"IF('Generated list'!B4847=\"\",\"\",'Generated list'!B4847)","v":""},{"$f":"IF('Generated list'!C4847=\"\",\"\",'Generated list'!C4847)","v":""},{"$f":"IF('Generated list'!D4847=\"\",\"\",'Generated list'!D4847)","v":""}]
[null,{"$f":"IF('Generated list'!B4848=\"\",\"\",'Generated list'!B4848)","v":""},{"$f":"IF('Generated list'!C4848=\"\",\"\",'Generated list'!C4848)","v":""},{"$f":"IF('Generated list'!D4848=\"\",\"\",'Generated list'!D4848)","v":""}]
[null,{"$f":"IF('Generated list'!B4849=\"\",\"\",'Generated list'!B4849)","v":""},{"$f":"IF('Generated list'!C4849=\"\",\"\",'Generated list'!C4849)","v":""},{"$f":"IF('Generated list'!D4849=\"\",\"\",'Generated list'!D4849)","v":""}]
[null,{"$f":"IF('Generated list'!B4850=\"\",\"\",'Generated list'!B4850)","v":""},{"$f":"IF('Generated list'!C4850=\"\",\"\",'Generated list'!C4850)","v":""},{"$f":"IF('Generated list'!D4850=\"\",\"\",'Generated list'!D4850)","v":""}]
[null,{"$f":"IF('Generated list'!B4851=\"\",\"\",'Generated list'!B4851)","v":""},{"$f":"IF('Generated list'!C4851=\"\",\"\",'Generated list'!C4851)","v":""},{"$f":"IF('Generated list'!D4851=\"\",\"\",'Generated list'!D4851)","v":""}]
[null,{"$f":"IF('Generated list'!B4852=\"\",\"\",'Generated list'!B4852)","v":""},{"$f":"IF('Generated list'!C4852=\"\",\"\",'Generated list'!C4852)","v":""},{"$f":"IF('Generated list'!D4852=\"\",\"\",'Generated list'!D4852)","v":""}]
[null,{"$f":"IF('Generated list'!B4853=\"\",\"\",'Generated list'!B4853)","v":""},{"$f":"IF('Generated list'!C4853=\"\",\"\",'Generated list'!C4853)","v":""},{"$f":"IF('Generated list'!D4853=\"\",\"\",'Generated list'!D4853)","v":""}]
[null,{"$f":"IF('Generated list'!B4854=\"\",\"\",'Generated list'!B4854)","v":""},{"$f":"IF('Generated list'!C4854=\"\",\"\",'Generated list'!C4854)","v":""},{"$f":"IF('Generated list'!D4854=\"\",\"\",'Generated list'!D4854)","v":""}]
[null,{"$f":"IF('Generated list'!B4855=\"\",\"\",'Generated list'!B4855)","v":""},{"$f":"IF('Generated list'!C4855=\"\",\"\",'Generated list'!C4855)","v":""},{"$f":"IF('Generated list'!D4855=\"\",\"\",'Generated list'!D4855)","v":""}]
[null,{"$f":"IF('Generated list'!B4856=\"\",\"\",'Generated list'!B4856)","v":""},{"$f":"IF('Generated list'!C4856=\"\",\"\",'Generated list'!C4856)","v":""},{"$f":"IF('Generated list'!D4856=\"\",\"\",'Generated list'!D4856)","v":""}]
[null,{"$f":"IF('Generated list'!B4857=\"\",\"\",'Generated list'!B4857)","v":""},{"$f":"IF('Generated list'!C4857=\"\",\"\",'Generated list'!C4857)","v":""},{"$f":"IF('Generated list'!D4857=\"\",\"\",'Generated list'!D4857)","v":""}]
[null,{"$f":"IF('Generated list'!B4858=\"\",\"\",'Generated list'!B4858)","v":""},{"$f":"IF('Generated list'!C4858=\"\",\"\",'Generated list'!C4858)","v":""},{"$f":"IF('Generated list'!D4858=\"\",\"\",'Generated list'!D4858)","v":""}]
[null,{"$f":"IF('Generated list'!B4859=\"\",\"\",'Generated list'!B4859)","v":""},{"$f":"IF('Generated list'!C4859=\"\",\"\",'Generated list'!C4859)","v":""},{"$f":"IF('Generated list'!D4859=\"\",\"\",'Generated list'!D4859)","v":""}]
[null,{"$f":"IF('Generated list'!B4860=\"\",\"\",'Generated list'!B4860)","v":""},{"$f":"IF('Generated list'!C4860=\"\",\"\",'Generated list'!C4860)","v":""},{"$f":"IF('Generated list'!D4860=\"\",\"\",'Generated list'!D4860)","v":""}]
[null,{"$f":"IF('Generated list'!B4861=\"\",\"\",'Generated list'!B4861)","v":""},{"$f":"IF('Generated list'!C4861=\"\",\"\",'Generated list'!C4861)","v":""},{"$f":"IF('Generated list'!D4861=\"\",\"\",'Generated list'!D4861)","v":""}]
[null,{"$f":"IF('Generated list'!B4862=\"\",\"\",'Generated list'!B4862)","v":""},{"$f":"IF('Generated list'!C4862=\"\",\"\",'Generated list'!C4862)","v":""},{"$f":"IF('Generated list'!D4862=\"\",\"\",'Generated list'!D4862)","v":""}]
[null,{"$f":"IF('Generated list'!B4863=\"\",\"\",'Generated list'!B4863)","v":""},{"$f":"IF('Generated list'!C4863=\"\",\"\",'Generated list'!C4863)","v":""},{"$f":"IF('Generated list'!D4863=\"\",\"\",'Generated list'!D4863)","v":""}]
[null,{"$f":"IF('Generated list'!B4864=\"\",\"\",'Generated list'!B4864)","v":""},{"$f":"IF('Generated list'!C4864=\"\",\"\",'Generated list'!C4864)","v":""},{"$f":"IF('Generated list'!D4864=\"\",\"\",'Generated list'!D4864)","v":""}]
[null,{"$f":"IF('Generated list'!B4865=\"\",\"\",'Generated list'!B4865)","v":""},{"$f":"IF('Generated list'!C4865=\"\",\"\",'Generated list'!C4865)","v":""},{"$f":"IF('Generated list'!D4865=\"\",\"\",'Generated list'!D4865)","v":""}]
[null,{"$f":"IF('Generated list'!B4866=\"\",\"\",'Generated list'!B4866)","v":""},{"$f":"IF('Generated list'!C4866=\"\",\"\",'Generated list'!C4866)","v":""},{"$f":"IF('Generated list'!D4866=\"\",\"\",'Generated list'!D4866)","v":""}]
[null,{"$f":"IF('Generated list'!B4867=\"\",\"\",'Generated list'!B4867)","v":""},{"$f":"IF('Generated list'!C4867=\"\",\"\",'Generated list'!C4867)","v":""},{"$f":"IF('Generated list'!D4867=\"\",\"\",'Generated list'!D4867)","v":""}]
[null,{"$f":"IF('Generated list'!B4868=\"\",\"\",'Generated list'!B4868)","v":""},{"$f":"IF('Generated list'!C4868=\"\",\"\",'Generated list'!C4868)","v":""},{"$f":"IF('Generated list'!D4868=\"\",\"\",'Generated list'!D4868)","v":""}]
[null,{"$f":"IF('Generated list'!B4869=\"\",\"\",'Generated list'!B4869)","v":""},{"$f":"IF('Generated list'!C4869=\"\",\"\",'Generated list'!C4869)","v":""},{"$f":"IF('Generated list'!D4869=\"\",\"\",'Generated list'!D4869)","v":""}]
[null,{"$f":"IF('Generated list'!B4870=\"\",\"\",'Generated list'!B4870)","v":""},{"$f":"IF('Generated list'!C4870=\"\",\"\",'Generated list'!C4870)","v":""},{"$f":"IF('Generated list'!D4870=\"\",\"\",'Generated list'!D4870)","v":""}]
[null,{"$f":"IF('Generated list'!B4871=\"\",\"\",'Generated list'!B4871)","v":""},{"$f":"IF('Generated list'!C4871=\"\",\"\",'Generated list'!C4871)","v":""},{"$f":"IF('Generated list'!D4871=\"\",\"\",'Generated list'!D4871)","v":""}]
[null,{"$f":"IF('Generated list'!B4872=\"\",\"\",'Generated list'!B4872)","v":""},{"$f":"IF('Generated list'!C4872=\"\",\"\",'Generated list'!C4872)","v":""},{"$f":"IF('Generated list'!D4872=\"\",\"\",'Generated list'!D4872)","v":""}]
[null,{"$f":"IF('Generated list'!B4873=\"\",\"\",'Generated list'!B4873)","v":""},{"$f":"IF('Generated list'!C4873=\"\",\"\",'Generated list'!C4873)","v":""},{"$f":"IF('Generated list'!D4873=\"\",\"\",'Generated list'!D4873)","v":""}]
[null,{"$f":"IF('Generated list'!B4874=\"\",\"\",'Generated list'!B4874)","v":""},{"$f":"IF('Generated list'!C4874=\"\",\"\",'Generated list'!C4874)","v":""},{"$f":"IF('Generated list'!D4874=\"\",\"\",'Generated list'!D4874)","v":""}]
[null,{"$f":"IF('Generated list'!B4875=\"\",\"\",'Generated list'!B4875)","v":""},{"$f":"IF('Generated list'!C4875=\"\",\"\",'Generated list'!C4875)","v":""},{"$f":"IF('Generated list'!D4875=\"\",\"\",'Generated list'!D4875)","v":""}]
[null,{"$f":"IF('Generated list'!B4876=\"\",\"\",'Generated list'!B4876)","v":""},{"$f":"IF('Generated list'!C4876=\"\",\"\",'Generated list'!C4876)","v":""},{"$f":"IF('Generated list'!D4876=\"\",\"\",'Generated list'!D4876)","v":""}]
[null,{"$f":"IF('Generated list'!B4877=\"\",\"\",'Generated list'!B4877)","v":""},{"$f":"IF('Generated list'!C4877=\"\",\"\",'Generated list'!C4877)","v":""},{"$f":"IF('Generated list'!D4877=\"\",\"\",'Generated list'!D4877)","v":""}]
[null,{"$f":"IF('Generated list'!B4878=\"\",\"\",'Generated list'!B4878)","v":""},{"$f":"IF('Generated list'!C4878=\"\",\"\",'Generated list'!C4878)","v":""},{"$f":"IF('Generated list'!D4878=\"\",\"\",'Generated list'!D4878)","v":""}]
[null,{"$f":"IF('Generated list'!B4879=\"\",\"\",'Generated list'!B4879)","v":""},{"$f":"IF('Generated list'!C4879=\"\",\"\",'Generated list'!C4879)","v":""},{"$f":"IF('Generated list'!D4879=\"\",\"\",'Generated list'!D4879)","v":""}]
[null,{"$f":"IF('Generated list'!B4880=\"\",\"\",'Generated list'!B4880)","v":""},{"$f":"IF('Generated list'!C4880=\"\",\"\",'Generated list'!C4880)","v":""},{"$f":"IF('Generated list'!D4880=\"\",\"\",'Generated list'!D4880)","v":""}]
[null,{"$f":"IF('Generated list'!B4881=\"\",\"\",'Generated list'!B4881)","v":""},{"$f":"IF('Generated list'!C4881=\"\",\"\",'Generated list'!C4881)","v":""},{"$f":"IF('Generated list'!D4881=\"\",\"\",'Generated list'!D4881)","v":""}]
[null,{"$f":"IF('Generated list'!B4882=\"\",\"\",'Generated list'!B4882)","v":""},{"$f":"IF('Generated list'!C4882=\"\",\"\",'Generated list'!C4882)","v":""},{"$f":"IF('Generated list'!D4882=\"\",\"\",'Generated list'!D4882)","v":""}]
[null,{"$f":"IF('Generated list'!B4883=\"\",\"\",'Generated list'!B4883)","v":""},{"$f":"IF('Generated list'!C4883=\"\",\"\",'Generated list'!C4883)","v":""},{"$f":"IF('Generated list'!D4883=\"\",\"\",'Generated list'!D4883)","v":""}]
[null,{"$f":"IF('Generated list'!B4884=\"\",\"\",'Generated list'!B4884)","v":""},{"$f":"IF('Generated list'!C4884=\"\",\"\",'Generated list'!C4884)","v":""},{"$f":"IF('Generated list'!D4884=\"\",\"\",'Generated list'!D4884)","v":""}]
[null,{"$f":"IF('Generated list'!B4885=\"\",\"\",'Generated list'!B4885)","v":""},{"$f":"IF('Generated list'!C4885=\"\",\"\",'Generated list'!C4885)","v":""},{"$f":"IF('Generated list'!D4885=\"\",\"\",'Generated list'!D4885)","v":""}]
[null,{"$f":"IF('Generated list'!B4886=\"\",\"\",'Generated list'!B4886)","v":""},{"$f":"IF('Generated list'!C4886=\"\",\"\",'Generated list'!C4886)","v":""},{"$f":"IF('Generated list'!D4886=\"\",\"\",'Generated list'!D4886)","v":""}]
[null,{"$f":"IF('Generated list'!B4887=\"\",\"\",'Generated list'!B4887)","v":""},{"$f":"IF('Generated list'!C4887=\"\",\"\",'Generated list'!C4887)","v":""},{"$f":"IF('Generated list'!D4887=\"\",\"\",'Generated list'!D4887)","v":""}]
[null,{"$f":"IF('Generated list'!B4888=\"\",\"\",'Generated list'!B4888)","v":""},{"$f":"IF('Generated list'!C4888=\"\",\"\",'Generated list'!C4888)","v":""},{"$f":"IF('Generated list'!D4888=\"\",\"\",'Generated list'!D4888)","v":""}]
[null,{"$f":"IF('Generated list'!B4889=\"\",\"\",'Generated list'!B4889)","v":""},{"$f":"IF('Generated list'!C4889=\"\",\"\",'Generated list'!C4889)","v":""},{"$f":"IF('Generated list'!D4889=\"\",\"\",'Generated list'!D4889)","v":""}]
[null,{"$f":"IF('Generated list'!B4890=\"\",\"\",'Generated list'!B4890)","v":""},{"$f":"IF('Generated list'!C4890=\"\",\"\",'Generated list'!C4890)","v":""},{"$f":"IF('Generated list'!D4890=\"\",\"\",'Generated list'!D4890)","v":""}]
[null,{"$f":"IF('Generated list'!B4891=\"\",\"\",'Generated list'!B4891)","v":""},{"$f":"IF('Generated list'!C4891=\"\",\"\",'Generated list'!C4891)","v":""},{"$f":"IF('Generated list'!D4891=\"\",\"\",'Generated list'!D4891)","v":""}]
[null,{"$f":"IF('Generated list'!B4892=\"\",\"\",'Generated list'!B4892)","v":""},{"$f":"IF('Generated list'!C4892=\"\",\"\",'Generated list'!C4892)","v":""},{"$f":"IF('Generated list'!D4892=\"\",\"\",'Generated list'!D4892)","v":""}]
[null,{"$f":"IF('Generated list'!B4893=\"\",\"\",'Generated list'!B4893)","v":""},{"$f":"IF('Generated list'!C4893=\"\",\"\",'Generated list'!C4893)","v":""},{"$f":"IF('Generated list'!D4893=\"\",\"\",'Generated list'!D4893)","v":""}]
[null,{"$f":"IF('Generated list'!B4894=\"\",\"\",'Generated list'!B4894)","v":""},{"$f":"IF('Generated list'!C4894=\"\",\"\",'Generated list'!C4894)","v":""},{"$f":"IF('Generated list'!D4894=\"\",\"\",'Generated list'!D4894)","v":""}]
[null,{"$f":"IF('Generated list'!B4895=\"\",\"\",'Generated list'!B4895)","v":""},{"$f":"IF('Generated list'!C4895=\"\",\"\",'Generated list'!C4895)","v":""},{"$f":"IF('Generated list'!D4895=\"\",\"\",'Generated list'!D4895)","v":""}]
[null,{"$f":"IF('Generated list'!B4896=\"\",\"\",'Generated list'!B4896)","v":""},{"$f":"IF('Generated list'!C4896=\"\",\"\",'Generated list'!C4896)","v":""},{"$f":"IF('Generated list'!D4896=\"\",\"\",'Generated list'!D4896)","v":""}]
[null,{"$f":"IF('Generated list'!B4897=\"\",\"\",'Generated list'!B4897)","v":""},{"$f":"IF('Generated list'!C4897=\"\",\"\",'Generated list'!C4897)","v":""},{"$f":"IF('Generated list'!D4897=\"\",\"\",'Generated list'!D4897)","v":""}]
[null,{"$f":"IF('Generated list'!B4898=\"\",\"\",'Generated list'!B4898)","v":""},{"$f":"IF('Generated list'!C4898=\"\",\"\",'Generated list'!C4898)","v":""},{"$f":"IF('Generated list'!D4898=\"\",\"\",'Generated list'!D4898)","v":""}]
[null,{"$f":"IF('Generated list'!B4899=\"\",\"\",'Generated list'!B4899)","v":""},{"$f":"IF('Generated list'!C4899=\"\",\"\",'Generated list'!C4899)","v":""},{"$f":"IF('Generated list'!D4899=\"\",\"\",'Generated list'!D4899)","v":""}]
[null,{"$f":"IF('Generated list'!B4900=\"\",\"\",'Generated list'!B4900)","v":""},{"$f":"IF('Generated list'!C4900=\"\",\"\",'Generated list'!C4900)","v":""},{"$f":"IF('Generated list'!D4900=\"\",\"\",'Generated list'!D4900)","v":""}]
[null,{"$f":"IF('Generated list'!B4901=\"\",\"\",'Generated list'!B4901)","v":""},{"$f":"IF('Generated list'!C4901=\"\",\"\",'Generated list'!C4901)","v":""},{"$f":"IF('Generated list'!D4901=\"\",\"\",'Generated list'!D4901)","v":""}]
[null,{"$f":"IF('Generated list'!B4902=\"\",\"\",'Generated list'!B4902)","v":""},{"$f":"IF('Generated list'!C4902=\"\",\"\",'Generated list'!C4902)","v":""},{"$f":"IF('Generated list'!D4902=\"\",\"\",'Generated list'!D4902)","v":""}]
[null,{"$f":"IF('Generated list'!B4903=\"\",\"\",'Generated list'!B4903)","v":""},{"$f":"IF('Generated list'!C4903=\"\",\"\",'Generated list'!C4903)","v":""},{"$f":"IF('Generated list'!D4903=\"\",\"\",'Generated list'!D4903)","v":""}]
[null,{"$f":"IF('Generated list'!B4904=\"\",\"\",'Generated list'!B4904)","v":""},{"$f":"IF('Generated list'!C4904=\"\",\"\",'Generated list'!C4904)","v":""},{"$f":"IF('Generated list'!D4904=\"\",\"\",'Generated list'!D4904)","v":""}]
[null,{"$f":"IF('Generated list'!B4905=\"\",\"\",'Generated list'!B4905)","v":""},{"$f":"IF('Generated list'!C4905=\"\",\"\",'Generated list'!C4905)","v":""},{"$f":"IF('Generated list'!D4905=\"\",\"\",'Generated list'!D4905)","v":""}]
[null,{"$f":"IF('Generated list'!B4906=\"\",\"\",'Generated list'!B4906)","v":""},{"$f":"IF('Generated list'!C4906=\"\",\"\",'Generated list'!C4906)","v":""},{"$f":"IF('Generated list'!D4906=\"\",\"\",'Generated list'!D4906)","v":""}]
[null,{"$f":"IF('Generated list'!B4907=\"\",\"\",'Generated list'!B4907)","v":""},{"$f":"IF('Generated list'!C4907=\"\",\"\",'Generated list'!C4907)","v":""},{"$f":"IF('Generated list'!D4907=\"\",\"\",'Generated list'!D4907)","v":""}]
[null,{"$f":"IF('Generated list'!B4908=\"\",\"\",'Generated list'!B4908)","v":""},{"$f":"IF('Generated list'!C4908=\"\",\"\",'Generated list'!C4908)","v":""},{"$f":"IF('Generated list'!D4908=\"\",\"\",'Generated list'!D4908)","v":""}]
[null,{"$f":"IF('Generated list'!B4909=\"\",\"\",'Generated list'!B4909)","v":""},{"$f":"IF('Generated list'!C4909=\"\",\"\",'Generated list'!C4909)","v":""},{"$f":"IF('Generated list'!D4909=\"\",\"\",'Generated list'!D4909)","v":""}]
[null,{"$f":"IF('Generated list'!B4910=\"\",\"\",'Generated list'!B4910)","v":""},{"$f":"IF('Generated list'!C4910=\"\",\"\",'Generated list'!C4910)","v":""},{"$f":"IF('Generated list'!D4910=\"\",\"\",'Generated list'!D4910)","v":""}]
[null,{"$f":"IF('Generated list'!B4911=\"\",\"\",'Generated list'!B4911)","v":""},{"$f":"IF('Generated list'!C4911=\"\",\"\",'Generated list'!C4911)","v":""},{"$f":"IF('Generated list'!D4911=\"\",\"\",'Generated list'!D4911)","v":""}]
[null,{"$f":"IF('Generated list'!B4912=\"\",\"\",'Generated list'!B4912)","v":""},{"$f":"IF('Generated list'!C4912=\"\",\"\",'Generated list'!C4912)","v":""},{"$f":"IF('Generated list'!D4912=\"\",\"\",'Generated list'!D4912)","v":""}]
[null,{"$f":"IF('Generated list'!B4913=\"\",\"\",'Generated list'!B4913)","v":""},{"$f":"IF('Generated list'!C4913=\"\",\"\",'Generated list'!C4913)","v":""},{"$f":"IF('Generated list'!D4913=\"\",\"\",'Generated list'!D4913)","v":""}]
[null,{"$f":"IF('Generated list'!B4914=\"\",\"\",'Generated list'!B4914)","v":""},{"$f":"IF('Generated list'!C4914=\"\",\"\",'Generated list'!C4914)","v":""},{"$f":"IF('Generated list'!D4914=\"\",\"\",'Generated list'!D4914)","v":""}]
[null,{"$f":"IF('Generated list'!B4915=\"\",\"\",'Generated list'!B4915)","v":""},{"$f":"IF('Generated list'!C4915=\"\",\"\",'Generated list'!C4915)","v":""},{"$f":"IF('Generated list'!D4915=\"\",\"\",'Generated list'!D4915)","v":""}]
[null,{"$f":"IF('Generated list'!B4916=\"\",\"\",'Generated list'!B4916)","v":""},{"$f":"IF('Generated list'!C4916=\"\",\"\",'Generated list'!C4916)","v":""},{"$f":"IF('Generated list'!D4916=\"\",\"\",'Generated list'!D4916)","v":""}]
[null,{"$f":"IF('Generated list'!B4917=\"\",\"\",'Generated list'!B4917)","v":""},{"$f":"IF('Generated list'!C4917=\"\",\"\",'Generated list'!C4917)","v":""},{"$f":"IF('Generated list'!D4917=\"\",\"\",'Generated list'!D4917)","v":""}]
[null,{"$f":"IF('Generated list'!B4918=\"\",\"\",'Generated list'!B4918)","v":""},{"$f":"IF('Generated list'!C4918=\"\",\"\",'Generated list'!C4918)","v":""},{"$f":"IF('Generated list'!D4918=\"\",\"\",'Generated list'!D4918)","v":""}]
[null,{"$f":"IF('Generated list'!B4919=\"\",\"\",'Generated list'!B4919)","v":""},{"$f":"IF('Generated list'!C4919=\"\",\"\",'Generated list'!C4919)","v":""},{"$f":"IF('Generated list'!D4919=\"\",\"\",'Generated list'!D4919)","v":""}]
[null,{"$f":"IF('Generated list'!B4920=\"\",\"\",'Generated list'!B4920)","v":""},{"$f":"IF('Generated list'!C4920=\"\",\"\",'Generated list'!C4920)","v":""},{"$f":"IF('Generated list'!D4920=\"\",\"\",'Generated list'!D4920)","v":""}]
[null,{"$f":"IF('Generated list'!B4921=\"\",\"\",'Generated list'!B4921)","v":""},{"$f":"IF('Generated list'!C4921=\"\",\"\",'Generated list'!C4921)","v":""},{"$f":"IF('Generated list'!D4921=\"\",\"\",'Generated list'!D4921)","v":""}]
[null,{"$f":"IF('Generated list'!B4922=\"\",\"\",'Generated list'!B4922)","v":""},{"$f":"IF('Generated list'!C4922=\"\",\"\",'Generated list'!C4922)","v":""},{"$f":"IF('Generated list'!D4922=\"\",\"\",'Generated list'!D4922)","v":""}]
[null,{"$f":"IF('Generated list'!B4923=\"\",\"\",'Generated list'!B4923)","v":""},{"$f":"IF('Generated list'!C4923=\"\",\"\",'Generated list'!C4923)","v":""},{"$f":"IF('Generated list'!D4923=\"\",\"\",'Generated list'!D4923)","v":""}]
[null,{"$f":"IF('Generated list'!B4924=\"\",\"\",'Generated list'!B4924)","v":""},{"$f":"IF('Generated list'!C4924=\"\",\"\",'Generated list'!C4924)","v":""},{"$f":"IF('Generated list'!D4924=\"\",\"\",'Generated list'!D4924)","v":""}]
[null,{"$f":"IF('Generated list'!B4925=\"\",\"\",'Generated list'!B4925)","v":""},{"$f":"IF('Generated list'!C4925=\"\",\"\",'Generated list'!C4925)","v":""},{"$f":"IF('Generated list'!D4925=\"\",\"\",'Generated list'!D4925)","v":""}]
[null,{"$f":"IF('Generated list'!B4926=\"\",\"\",'Generated list'!B4926)","v":""},{"$f":"IF('Generated list'!C4926=\"\",\"\",'Generated list'!C4926)","v":""},{"$f":"IF('Generated list'!D4926=\"\",\"\",'Generated list'!D4926)","v":""}]
[null,{"$f":"IF('Generated list'!B4927=\"\",\"\",'Generated list'!B4927)","v":""},{"$f":"IF('Generated list'!C4927=\"\",\"\",'Generated list'!C4927)","v":""},{"$f":"IF('Generated list'!D4927=\"\",\"\",'Generated list'!D4927)","v":""}]
[null,{"$f":"IF('Generated list'!B4928=\"\",\"\",'Generated list'!B4928)","v":""},{"$f":"IF('Generated list'!C4928=\"\",\"\",'Generated list'!C4928)","v":""},{"$f":"IF('Generated list'!D4928=\"\",\"\",'Generated list'!D4928)","v":""}]
[null,{"$f":"IF('Generated list'!B4929=\"\",\"\",'Generated list'!B4929)","v":""},{"$f":"IF('Generated list'!C4929=\"\",\"\",'Generated list'!C4929)","v":""},{"$f":"IF('Generated list'!D4929=\"\",\"\",'Generated list'!D4929)","v":""}]
[null,{"$f":"IF('Generated list'!B4930=\"\",\"\",'Generated list'!B4930)","v":""},{"$f":"IF('Generated list'!C4930=\"\",\"\",'Generated list'!C4930)","v":""},{"$f":"IF('Generated list'!D4930=\"\",\"\",'Generated list'!D4930)","v":""}]
[null,{"$f":"IF('Generated list'!B4931=\"\",\"\",'Generated list'!B4931)","v":""},{"$f":"IF('Generated list'!C4931=\"\",\"\",'Generated list'!C4931)","v":""},{"$f":"IF('Generated list'!D4931=\"\",\"\",'Generated list'!D4931)","v":""}]
[null,{"$f":"IF('Generated list'!B4932=\"\",\"\",'Generated list'!B4932)","v":""},{"$f":"IF('Generated list'!C4932=\"\",\"\",'Generated list'!C4932)","v":""},{"$f":"IF('Generated list'!D4932=\"\",\"\",'Generated list'!D4932)","v":""}]
[null,{"$f":"IF('Generated list'!B4933=\"\",\"\",'Generated list'!B4933)","v":""},{"$f":"IF('Generated list'!C4933=\"\",\"\",'Generated list'!C4933)","v":""},{"$f":"IF('Generated list'!D4933=\"\",\"\",'Generated list'!D4933)","v":""}]
[null,{"$f":"IF('Generated list'!B4934=\"\",\"\",'Generated list'!B4934)","v":""},{"$f":"IF('Generated list'!C4934=\"\",\"\",'Generated list'!C4934)","v":""},{"$f":"IF('Generated list'!D4934=\"\",\"\",'Generated list'!D4934)","v":""}]
[null,{"$f":"IF('Generated list'!B4935=\"\",\"\",'Generated list'!B4935)","v":""},{"$f":"IF('Generated list'!C4935=\"\",\"\",'Generated list'!C4935)","v":""},{"$f":"IF('Generated list'!D4935=\"\",\"\",'Generated list'!D4935)","v":""}]
[null,{"$f":"IF('Generated list'!B4936=\"\",\"\",'Generated list'!B4936)","v":""},{"$f":"IF('Generated list'!C4936=\"\",\"\",'Generated list'!C4936)","v":""},{"$f":"IF('Generated list'!D4936=\"\",\"\",'Generated list'!D4936)","v":""}]
[null,{"$f":"IF('Generated list'!B4937=\"\",\"\",'Generated list'!B4937)","v":""},{"$f":"IF('Generated list'!C4937=\"\",\"\",'Generated list'!C4937)","v":""},{"$f":"IF('Generated list'!D4937=\"\",\"\",'Generated list'!D4937)","v":""}]
[null,{"$f":"IF('Generated list'!B4938=\"\",\"\",'Generated list'!B4938)","v":""},{"$f":"IF('Generated list'!C4938=\"\",\"\",'Generated list'!C4938)","v":""},{"$f":"IF('Generated list'!D4938=\"\",\"\",'Generated list'!D4938)","v":""}]
[null,{"$f":"IF('Generated list'!B4939=\"\",\"\",'Generated list'!B4939)","v":""},{"$f":"IF('Generated list'!C4939=\"\",\"\",'Generated list'!C4939)","v":""},{"$f":"IF('Generated list'!D4939=\"\",\"\",'Generated list'!D4939)","v":""}]
[null,{"$f":"IF('Generated list'!B4940=\"\",\"\",'Generated list'!B4940)","v":""},{"$f":"IF('Generated list'!C4940=\"\",\"\",'Generated list'!C4940)","v":""},{"$f":"IF('Generated list'!D4940=\"\",\"\",'Generated list'!D4940)","v":""}]
[null,{"$f":"IF('Generated list'!B4941=\"\",\"\",'Generated list'!B4941)","v":""},{"$f":"IF('Generated list'!C4941=\"\",\"\",'Generated list'!C4941)","v":""},{"$f":"IF('Generated list'!D4941=\"\",\"\",'Generated list'!D4941)","v":""}]
[null,{"$f":"IF('Generated list'!B4942=\"\",\"\",'Generated list'!B4942)","v":""},{"$f":"IF('Generated list'!C4942=\"\",\"\",'Generated list'!C4942)","v":""},{"$f":"IF('Generated list'!D4942=\"\",\"\",'Generated list'!D4942)","v":""}]
[null,{"$f":"IF('Generated list'!B4943=\"\",\"\",'Generated list'!B4943)","v":""},{"$f":"IF('Generated list'!C4943=\"\",\"\",'Generated list'!C4943)","v":""},{"$f":"IF('Generated list'!D4943=\"\",\"\",'Generated list'!D4943)","v":""}]
[null,{"$f":"IF('Generated list'!B4944=\"\",\"\",'Generated list'!B4944)","v":""},{"$f":"IF('Generated list'!C4944=\"\",\"\",'Generated list'!C4944)","v":""},{"$f":"IF('Generated list'!D4944=\"\",\"\",'Generated list'!D4944)","v":""}]
[null,{"$f":"IF('Generated list'!B4945=\"\",\"\",'Generated list'!B4945)","v":""},{"$f":"IF('Generated list'!C4945=\"\",\"\",'Generated list'!C4945)","v":""},{"$f":"IF('Generated list'!D4945=\"\",\"\",'Generated list'!D4945)","v":""}]
[null,{"$f":"IF('Generated list'!B4946=\"\",\"\",'Generated list'!B4946)","v":""},{"$f":"IF('Generated list'!C4946=\"\",\"\",'Generated list'!C4946)","v":""},{"$f":"IF('Generated list'!D4946=\"\",\"\",'Generated list'!D4946)","v":""}]
[null,{"$f":"IF('Generated list'!B4947=\"\",\"\",'Generated list'!B4947)","v":""},{"$f":"IF('Generated list'!C4947=\"\",\"\",'Generated list'!C4947)","v":""},{"$f":"IF('Generated list'!D4947=\"\",\"\",'Generated list'!D4947)","v":""}]
[null,{"$f":"IF('Generated list'!B4948=\"\",\"\",'Generated list'!B4948)","v":""},{"$f":"IF('Generated list'!C4948=\"\",\"\",'Generated list'!C4948)","v":""},{"$f":"IF('Generated list'!D4948=\"\",\"\",'Generated list'!D4948)","v":""}]
[null,{"$f":"IF('Generated list'!B4949=\"\",\"\",'Generated list'!B4949)","v":""},{"$f":"IF('Generated list'!C4949=\"\",\"\",'Generated list'!C4949)","v":""},{"$f":"IF('Generated list'!D4949=\"\",\"\",'Generated list'!D4949)","v":""}]
[null,{"$f":"IF('Generated list'!B4950=\"\",\"\",'Generated list'!B4950)","v":""},{"$f":"IF('Generated list'!C4950=\"\",\"\",'Generated list'!C4950)","v":""},{"$f":"IF('Generated list'!D4950=\"\",\"\",'Generated list'!D4950)","v":""}]
[null,{"$f":"IF('Generated list'!B4951=\"\",\"\",'Generated list'!B4951)","v":""},{"$f":"IF('Generated list'!C4951=\"\",\"\",'Generated list'!C4951)","v":""},{"$f":"IF('Generated list'!D4951=\"\",\"\",'Generated list'!D4951)","v":""}]
[null,{"$f":"IF('Generated list'!B4952=\"\",\"\",'Generated list'!B4952)","v":""},{"$f":"IF('Generated list'!C4952=\"\",\"\",'Generated list'!C4952)","v":""},{"$f":"IF('Generated list'!D4952=\"\",\"\",'Generated list'!D4952)","v":""}]
[null,{"$f":"IF('Generated list'!B4953=\"\",\"\",'Generated list'!B4953)","v":""},{"$f":"IF('Generated list'!C4953=\"\",\"\",'Generated list'!C4953)","v":""},{"$f":"IF('Generated list'!D4953=\"\",\"\",'Generated list'!D4953)","v":""}]
[null,{"$f":"IF('Generated list'!B4954=\"\",\"\",'Generated list'!B4954)","v":""},{"$f":"IF('Generated list'!C4954=\"\",\"\",'Generated list'!C4954)","v":""},{"$f":"IF('Generated list'!D4954=\"\",\"\",'Generated list'!D4954)","v":""}]
[null,{"$f":"IF('Generated list'!B4955=\"\",\"\",'Generated list'!B4955)","v":""},{"$f":"IF('Generated list'!C4955=\"\",\"\",'Generated list'!C4955)","v":""},{"$f":"IF('Generated list'!D4955=\"\",\"\",'Generated list'!D4955)","v":""}]
[null,{"$f":"IF('Generated list'!B4956=\"\",\"\",'Generated list'!B4956)","v":""},{"$f":"IF('Generated list'!C4956=\"\",\"\",'Generated list'!C4956)","v":""},{"$f":"IF('Generated list'!D4956=\"\",\"\",'Generated list'!D4956)","v":""}]
[null,{"$f":"IF('Generated list'!B4957=\"\",\"\",'Generated list'!B4957)","v":""},{"$f":"IF('Generated list'!C4957=\"\",\"\",'Generated list'!C4957)","v":""},{"$f":"IF('Generated list'!D4957=\"\",\"\",'Generated list'!D4957)","v":""}]
[null,{"$f":"IF('Generated list'!B4958=\"\",\"\",'Generated list'!B4958)","v":""},{"$f":"IF('Generated list'!C4958=\"\",\"\",'Generated list'!C4958)","v":""},{"$f":"IF('Generated list'!D4958=\"\",\"\",'Generated list'!D4958)","v":""}]
[null,{"$f":"IF('Generated list'!B4959=\"\",\"\",'Generated list'!B4959)","v":""},{"$f":"IF('Generated list'!C4959=\"\",\"\",'Generated list'!C4959)","v":""},{"$f":"IF('Generated list'!D4959=\"\",\"\",'Generated list'!D4959)","v":""}]
[null,{"$f":"IF('Generated list'!B4960=\"\",\"\",'Generated list'!B4960)","v":""},{"$f":"IF('Generated list'!C4960=\"\",\"\",'Generated list'!C4960)","v":""},{"$f":"IF('Generated list'!D4960=\"\",\"\",'Generated list'!D4960)","v":""}]
[null,{"$f":"IF('Generated list'!B4961=\"\",\"\",'Generated list'!B4961)","v":""},{"$f":"IF('Generated list'!C4961=\"\",\"\",'Generated list'!C4961)","v":""},{"$f":"IF('Generated list'!D4961=\"\",\"\",'Generated list'!D4961)","v":""}]
[null,{"$f":"IF('Generated list'!B4962=\"\",\"\",'Generated list'!B4962)","v":""},{"$f":"IF('Generated list'!C4962=\"\",\"\",'Generated list'!C4962)","v":""},{"$f":"IF('Generated list'!D4962=\"\",\"\",'Generated list'!D4962)","v":""}]
[null,{"$f":"IF('Generated list'!B4963=\"\",\"\",'Generated list'!B4963)","v":""},{"$f":"IF('Generated list'!C4963=\"\",\"\",'Generated list'!C4963)","v":""},{"$f":"IF('Generated list'!D4963=\"\",\"\",'Generated list'!D4963)","v":""}]
[null,{"$f":"IF('Generated list'!B4964=\"\",\"\",'Generated list'!B4964)","v":""},{"$f":"IF('Generated list'!C4964=\"\",\"\",'Generated list'!C4964)","v":""},{"$f":"IF('Generated list'!D4964=\"\",\"\",'Generated list'!D4964)","v":""}]
[null,{"$f":"IF('Generated list'!B4965=\"\",\"\",'Generated list'!B4965)","v":""},{"$f":"IF('Generated list'!C4965=\"\",\"\",'Generated list'!C4965)","v":""},{"$f":"IF('Generated list'!D4965=\"\",\"\",'Generated list'!D4965)","v":""}]
[null,{"$f":"IF('Generated list'!B4966=\"\",\"\",'Generated list'!B4966)","v":""},{"$f":"IF('Generated list'!C4966=\"\",\"\",'Generated list'!C4966)","v":""},{"$f":"IF('Generated list'!D4966=\"\",\"\",'Generated list'!D4966)","v":""}]
[null,{"$f":"IF('Generated list'!B4967=\"\",\"\",'Generated list'!B4967)","v":""},{"$f":"IF('Generated list'!C4967=\"\",\"\",'Generated list'!C4967)","v":""},{"$f":"IF('Generated list'!D4967=\"\",\"\",'Generated list'!D4967)","v":""}]
[null,{"$f":"IF('Generated list'!B4968=\"\",\"\",'Generated list'!B4968)","v":""},{"$f":"IF('Generated list'!C4968=\"\",\"\",'Generated list'!C4968)","v":""},{"$f":"IF('Generated list'!D4968=\"\",\"\",'Generated list'!D4968)","v":""}]
[null,{"$f":"IF('Generated list'!B4969=\"\",\"\",'Generated list'!B4969)","v":""},{"$f":"IF('Generated list'!C4969=\"\",\"\",'Generated list'!C4969)","v":""},{"$f":"IF('Generated list'!D4969=\"\",\"\",'Generated list'!D4969)","v":""}]
[null,{"$f":"IF('Generated list'!B4970=\"\",\"\",'Generated list'!B4970)","v":""},{"$f":"IF('Generated list'!C4970=\"\",\"\",'Generated list'!C4970)","v":""},{"$f":"IF('Generated list'!D4970=\"\",\"\",'Generated list'!D4970)","v":""}]
[null,{"$f":"IF('Generated list'!B4971=\"\",\"\",'Generated list'!B4971)","v":""},{"$f":"IF('Generated list'!C4971=\"\",\"\",'Generated list'!C4971)","v":""},{"$f":"IF('Generated list'!D4971=\"\",\"\",'Generated list'!D4971)","v":""}]
[null,{"$f":"IF('Generated list'!B4972=\"\",\"\",'Generated list'!B4972)","v":""},{"$f":"IF('Generated list'!C4972=\"\",\"\",'Generated list'!C4972)","v":""},{"$f":"IF('Generated list'!D4972=\"\",\"\",'Generated list'!D4972)","v":""}]
[null,{"$f":"IF('Generated list'!B4973=\"\",\"\",'Generated list'!B4973)","v":""},{"$f":"IF('Generated list'!C4973=\"\",\"\",'Generated list'!C4973)","v":""},{"$f":"IF('Generated list'!D4973=\"\",\"\",'Generated list'!D4973)","v":""}]
[null,{"$f":"IF('Generated list'!B4974=\"\",\"\",'Generated list'!B4974)","v":""},{"$f":"IF('Generated list'!C4974=\"\",\"\",'Generated list'!C4974)","v":""},{"$f":"IF('Generated list'!D4974=\"\",\"\",'Generated list'!D4974)","v":""}]
[null,{"$f":"IF('Generated list'!B4975=\"\",\"\",'Generated list'!B4975)","v":""},{"$f":"IF('Generated list'!C4975=\"\",\"\",'Generated list'!C4975)","v":""},{"$f":"IF('Generated list'!D4975=\"\",\"\",'Generated list'!D4975)","v":""}]
[null,{"$f":"IF('Generated list'!B4976=\"\",\"\",'Generated list'!B4976)","v":""},{"$f":"IF('Generated list'!C4976=\"\",\"\",'Generated list'!C4976)","v":""},{"$f":"IF('Generated list'!D4976=\"\",\"\",'Generated list'!D4976)","v":""}]
[null,{"$f":"IF('Generated list'!B4977=\"\",\"\",'Generated list'!B4977)","v":""},{"$f":"IF('Generated list'!C4977=\"\",\"\",'Generated list'!C4977)","v":""},{"$f":"IF('Generated list'!D4977=\"\",\"\",'Generated list'!D4977)","v":""}]
[null,{"$f":"IF('Generated list'!B4978=\"\",\"\",'Generated list'!B4978)","v":""},{"$f":"IF('Generated list'!C4978=\"\",\"\",'Generated list'!C4978)","v":""},{"$f":"IF('Generated list'!D4978=\"\",\"\",'Generated list'!D4978)","v":""}]
[null,{"$f":"IF('Generated list'!B4979=\"\",\"\",'Generated list'!B4979)","v":""},{"$f":"IF('Generated list'!C4979=\"\",\"\",'Generated list'!C4979)","v":""},{"$f":"IF('Generated list'!D4979=\"\",\"\",'Generated list'!D4979)","v":""}]
[null,{"$f":"IF('Generated list'!B4980=\"\",\"\",'Generated list'!B4980)","v":""},{"$f":"IF('Generated list'!C4980=\"\",\"\",'Generated list'!C4980)","v":""},{"$f":"IF('Generated list'!D4980=\"\",\"\",'Generated list'!D4980)","v":""}]
[null,{"$f":"IF('Generated list'!B4981=\"\",\"\",'Generated list'!B4981)","v":""},{"$f":"IF('Generated list'!C4981=\"\",\"\",'Generated list'!C4981)","v":""},{"$f":"IF('Generated list'!D4981=\"\",\"\",'Generated list'!D4981)","v":""}]
[null,{"$f":"IF('Generated list'!B4982=\"\",\"\",'Generated list'!B4982)","v":""},{"$f":"IF('Generated list'!C4982=\"\",\"\",'Generated list'!C4982)","v":""},{"$f":"IF('Generated list'!D4982=\"\",\"\",'Generated list'!D4982)","v":""}]
[null,{"$f":"IF('Generated list'!B4983=\"\",\"\",'Generated list'!B4983)","v":""},{"$f":"IF('Generated list'!C4983=\"\",\"\",'Generated list'!C4983)","v":""},{"$f":"IF('Generated list'!D4983=\"\",\"\",'Generated list'!D4983)","v":""}]
[null,{"$f":"IF('Generated list'!B4984=\"\",\"\",'Generated list'!B4984)","v":""},{"$f":"IF('Generated list'!C4984=\"\",\"\",'Generated list'!C4984)","v":""},{"$f":"IF('Generated list'!D4984=\"\",\"\",'Generated list'!D4984)","v":""}]
[null,{"$f":"IF('Generated list'!B4985=\"\",\"\",'Generated list'!B4985)","v":""},{"$f":"IF('Generated list'!C4985=\"\",\"\",'Generated list'!C4985)","v":""},{"$f":"IF('Generated list'!D4985=\"\",\"\",'Generated list'!D4985)","v":""}]
[null,{"$f":"IF('Generated list'!B4986=\"\",\"\",'Generated list'!B4986)","v":""},{"$f":"IF('Generated list'!C4986=\"\",\"\",'Generated list'!C4986)","v":""},{"$f":"IF('Generated list'!D4986=\"\",\"\",'Generated list'!D4986)","v":""}]
[null,{"$f":"IF('Generated list'!B4987=\"\",\"\",'Generated list'!B4987)","v":""},{"$f":"IF('Generated list'!C4987=\"\",\"\",'Generated list'!C4987)","v":""},{"$f":"IF('Generated list'!D4987=\"\",\"\",'Generated list'!D4987)","v":""}]
[null,{"$f":"IF('Generated list'!B4988=\"\",\"\",'Generated list'!B4988)","v":""},{"$f":"IF('Generated list'!C4988=\"\",\"\",'Generated list'!C4988)","v":""},{"$f":"IF('Generated list'!D4988=\"\",\"\",'Generated list'!D4988)","v":""}]
[null,{"$f":"IF('Generated list'!B4989=\"\",\"\",'Generated list'!B4989)","v":""},{"$f":"IF('Generated list'!C4989=\"\",\"\",'Generated list'!C4989)","v":""},{"$f":"IF('Generated list'!D4989=\"\",\"\",'Generated list'!D4989)","v":""}]
[null,{"$f":"IF('Generated list'!B4990=\"\",\"\",'Generated list'!B4990)","v":""},{"$f":"IF('Generated list'!C4990=\"\",\"\",'Generated list'!C4990)","v":""},{"$f":"IF('Generated list'!D4990=\"\",\"\",'Generated list'!D4990)","v":""}]
[null,{"$f":"IF('Generated list'!B4991=\"\",\"\",'Generated list'!B4991)","v":""},{"$f":"IF('Generated list'!C4991=\"\",\"\",'Generated list'!C4991)","v":""},{"$f":"IF('Generated list'!D4991=\"\",\"\",'Generated list'!D4991)","v":""}]
[null,{"$f":"IF('Generated list'!B4992=\"\",\"\",'Generated list'!B4992)","v":""},{"$f":"IF('Generated list'!C4992=\"\",\"\",'Generated list'!C4992)","v":""},{"$f":"IF('Generated list'!D4992=\"\",\"\",'Generated list'!D4992)","v":""}]
[null,{"$f":"IF('Generated list'!B4993=\"\",\"\",'Generated list'!B4993)","v":""},{"$f":"IF('Generated list'!C4993=\"\",\"\",'Generated list'!C4993)","v":""},{"$f":"IF('Generated list'!D4993=\"\",\"\",'Generated list'!D4993)","v":""}]
[null,{"$f":"IF('Generated list'!B4994=\"\",\"\",'Generated list'!B4994)","v":""},{"$f":"IF('Generated list'!C4994=\"\",\"\",'Generated list'!C4994)","v":""},{"$f":"IF('Generated list'!D4994=\"\",\"\",'Generated list'!D4994)","v":""}]
[null,{"$f":"IF('Generated list'!B4995=\"\",\"\",'Generated list'!B4995)","v":""},{"$f":"IF('Generated list'!C4995=\"\",\"\",'Generated list'!C4995)","v":""},{"$f":"IF('Generated list'!D4995=\"\",\"\",'Generated list'!D4995)","v":""}]
[null,{"$f":"IF('Generated list'!B4996=\"\",\"\",'Generated list'!B4996)","v":""},{"$f":"IF('Generated list'!C4996=\"\",\"\",'Generated list'!C4996)","v":""},{"$f":"IF('Generated list'!D4996=\"\",\"\",'Generated list'!D4996)","v":""}]
[null,{"$f":"IF('Generated list'!B4997=\"\",\"\",'Generated list'!B4997)","v":""},{"$f":"IF('Generated list'!C4997=\"\",\"\",'Generated list'!C4997)","v":""},{"$f":"IF('Generated list'!D4997=\"\",\"\",'Generated list'!D4997)","v":""}]
[null,{"$f":"IF('Generated list'!B4998=\"\",\"\",'Generated list'!B4998)","v":""},{"$f":"IF('Generated list'!C4998=\"\",\"\",'Generated list'!C4998)","v":""},{"$f":"IF('Generated list'!D4998=\"\",\"\",'Generated list'!D4998)","v":""}]
[null,{"$f":"IF('Generated list'!B4999=\"\",\"\",'Generated list'!B4999)","v":""},{"$f":"IF('Generated list'!C4999=\"\",\"\",'Generated list'!C4999)","v":""},{"$f":"IF('Generated list'!D4999=\"\",\"\",'Generated list'!D4999)","v":""}]
[null,{"$f":"IF('Generated list'!B5000=\"\",\"\",'Generated list'!B5000)","v":""},{"$f":"IF('Generated list'!C5000=\"\",\"\",'Generated list'!C5000)","v":""},{"$f":"IF('Generated list'!D5000=\"\",\"\",'Generated list'!D5000)","v":""}]
[null,{"$f":"IF('Generated list'!B5001=\"\",\"\",'Generated list'!B5001)","v":""},{"$f":"IF('Generated list'!C5001=\"\",\"\",'Generated list'!C5001)","v":""},{"$f":"IF('Generated list'!D5001=\"\",\"\",'Generated list'!D5001)","v":""}]
[null,{"$f":"IF('Generated list'!B5002=\"\",\"\",'Generated list'!B5002)","v":""},{"$f":"IF('Generated list'!C5002=\"\",\"\",'Generated list'!C5002)","v":""},{"$f":"IF('Generated list'!D5002=\"\",\"\",'Generated list'!D5002)","v":""}]
[null,{"$f":"IF('Generated list'!B5003=\"\",\"\",'Generated list'!B5003)","v":""},{"$f":"IF('Generated list'!C5003=\"\",\"\",'Generated list'!C5003)","v":""},{"$f":"IF('Generated list'!D5003=\"\",\"\",'Generated list'!D5003)","v":""}]
[null,{"$f":"IF('Generated list'!B5004=\"\",\"\",'Generated list'!B5004)","v":""},{"$f":"IF('Generated list'!C5004=\"\",\"\",'Generated list'!C5004)","v":""},{"$f":"IF('Generated list'!D5004=\"\",\"\",'Generated list'!D5004)","v":""}]
[null,{"$f":"IF('Generated list'!B5005=\"\",\"\",'Generated list'!B5005)","v":""},{"$f":"IF('Generated list'!C5005=\"\",\"\",'Generated list'!C5005)","v":""},{"$f":"IF('Generated list'!D5005=\"\",\"\",'Generated list'!D5005)","v":""}]
[null,{"$f":"IF('Generated list'!B5006=\"\",\"\",'Generated list'!B5006)","v":""},{"$f":"IF('Generated list'!C5006=\"\",\"\",'Generated list'!C5006)","v":""},{"$f":"IF('Generated list'!D5006=\"\",\"\",'Generated list'!D5006)","v":""}]
[null,{"$f":"IF('Generated list'!B5007=\"\",\"\",'Generated list'!B5007)","v":""},{"$f":"IF('Generated list'!C5007=\"\",\"\",'Generated list'!C5007)","v":""},{"$f":"IF('Generated list'!D5007=\"\",\"\",'Generated list'!D5007)","v":""}]
[null,{"$f":"IF('Generated list'!B5008=\"\",\"\",'Generated list'!B5008)","v":""},{"$f":"IF('Generated list'!C5008=\"\",\"\",'Generated list'!C5008)","v":""},{"$f":"IF('Generated list'!D5008=\"\",\"\",'Generated list'!D5008)","v":""}]
[null,{"$f":"IF('Generated list'!B5009=\"\",\"\",'Generated list'!B5009)","v":""},{"$f":"IF('Generated list'!C5009=\"\",\"\",'Generated list'!C5009)","v":""},{"$f":"IF('Generated list'!D5009=\"\",\"\",'Generated list'!D5009)","v":""}]
[null,{"$f":"IF('Generated list'!B5010=\"\",\"\",'Generated list'!B5010)","v":""},{"$f":"IF('Generated list'!C5010=\"\",\"\",'Generated list'!C5010)","v":""},{"$f":"IF('Generated list'!D5010=\"\",\"\",'Generated list'!D5010)","v":""}]
[null,{"$f":"IF('Generated list'!B5011=\"\",\"\",'Generated list'!B5011)","v":""},{"$f":"IF('Generated list'!C5011=\"\",\"\",'Generated list'!C5011)","v":""},{"$f":"IF('Generated list'!D5011=\"\",\"\",'Generated list'!D5011)","v":""}]
[null,{"$f":"IF('Generated list'!B5012=\"\",\"\",'Generated list'!B5012)","v":""},{"$f":"IF('Generated list'!C5012=\"\",\"\",'Generated list'!C5012)","v":""},{"$f":"IF('Generated list'!D5012=\"\",\"\",'Generated list'!D5012)","v":""}]
[null,{"$f":"IF('Generated list'!B5013=\"\",\"\",'Generated list'!B5013)","v":""},{"$f":"IF('Generated list'!C5013=\"\",\"\",'Generated list'!C5013)","v":""},{"$f":"IF('Generated list'!D5013=\"\",\"\",'Generated list'!D5013)","v":""}]
[null,{"$f":"IF('Generated list'!B5014=\"\",\"\",'Generated list'!B5014)","v":""},{"$f":"IF('Generated list'!C5014=\"\",\"\",'Generated list'!C5014)","v":""},{"$f":"IF('Generated list'!D5014=\"\",\"\",'Generated list'!D5014)","v":""}]
[null,{"$f":"IF('Generated list'!B5015=\"\",\"\",'Generated list'!B5015)","v":""},{"$f":"IF('Generated list'!C5015=\"\",\"\",'Generated list'!C5015)","v":""},{"$f":"IF('Generated list'!D5015=\"\",\"\",'Generated list'!D5015)","v":""}]
[null,{"$f":"IF('Generated list'!B5016=\"\",\"\",'Generated list'!B5016)","v":""},{"$f":"IF('Generated list'!C5016=\"\",\"\",'Generated list'!C5016)","v":""},{"$f":"IF('Generated list'!D5016=\"\",\"\",'Generated list'!D5016)","v":""}]
[null,{"$f":"IF('Generated list'!B5017=\"\",\"\",'Generated list'!B5017)","v":""},{"$f":"IF('Generated list'!C5017=\"\",\"\",'Generated list'!C5017)","v":""},{"$f":"IF('Generated list'!D5017=\"\",\"\",'Generated list'!D5017)","v":""}]
[null,{"$f":"IF('Generated list'!B5018=\"\",\"\",'Generated list'!B5018)","v":""},{"$f":"IF('Generated list'!C5018=\"\",\"\",'Generated list'!C5018)","v":""},{"$f":"IF('Generated list'!D5018=\"\",\"\",'Generated list'!D5018)","v":""}]
[null,{"$f":"IF('Generated list'!B5019=\"\",\"\",'Generated list'!B5019)","v":""},{"$f":"IF('Generated list'!C5019=\"\",\"\",'Generated list'!C5019)","v":""},{"$f":"IF('Generated list'!D5019=\"\",\"\",'Generated list'!D5019)","v":""}]
[null,{"$f":"IF('Generated list'!B5020=\"\",\"\",'Generated list'!B5020)","v":""},{"$f":"IF('Generated list'!C5020=\"\",\"\",'Generated list'!C5020)","v":""},{"$f":"IF('Generated list'!D5020=\"\",\"\",'Generated list'!D5020)","v":""}]
[null,{"$f":"IF('Generated list'!B5021=\"\",\"\",'Generated list'!B5021)","v":""},{"$f":"IF('Generated list'!C5021=\"\",\"\",'Generated list'!C5021)","v":""},{"$f":"IF('Generated list'!D5021=\"\",\"\",'Generated list'!D5021)","v":""}]
[null,{"$f":"IF('Generated list'!B5022=\"\",\"\",'Generated list'!B5022)","v":""},{"$f":"IF('Generated list'!C5022=\"\",\"\",'Generated list'!C5022)","v":""},{"$f":"IF('Generated list'!D5022=\"\",\"\",'Generated list'!D5022)","v":""}]
[null,{"$f":"IF('Generated list'!B5023=\"\",\"\",'Generated list'!B5023)","v":""},{"$f":"IF('Generated list'!C5023=\"\",\"\",'Generated list'!C5023)","v":""},{"$f":"IF('Generated list'!D5023=\"\",\"\",'Generated list'!D5023)","v":""}]
[null,{"$f":"IF('Generated list'!B5024=\"\",\"\",'Generated list'!B5024)","v":""},{"$f":"IF('Generated list'!C5024=\"\",\"\",'Generated list'!C5024)","v":""},{"$f":"IF('Generated list'!D5024=\"\",\"\",'Generated list'!D5024)","v":""}]
[null,{"$f":"IF('Generated list'!B5025=\"\",\"\",'Generated list'!B5025)","v":""},{"$f":"IF('Generated list'!C5025=\"\",\"\",'Generated list'!C5025)","v":""},{"$f":"IF('Generated list'!D5025=\"\",\"\",'Generated list'!D5025)","v":""}]
[null,{"$f":"IF('Generated list'!B5026=\"\",\"\",'Generated list'!B5026)","v":""},{"$f":"IF('Generated list'!C5026=\"\",\"\",'Generated list'!C5026)","v":""},{"$f":"IF('Generated list'!D5026=\"\",\"\",'Generated list'!D5026)","v":""}]
[null,{"$f":"IF('Generated list'!B5027=\"\",\"\",'Generated list'!B5027)","v":""},{"$f":"IF('Generated list'!C5027=\"\",\"\",'Generated list'!C5027)","v":""},{"$f":"IF('Generated list'!D5027=\"\",\"\",'Generated list'!D5027)","v":""}]
[null,{"$f":"IF('Generated list'!B5028=\"\",\"\",'Generated list'!B5028)","v":""},{"$f":"IF('Generated list'!C5028=\"\",\"\",'Generated list'!C5028)","v":""},{"$f":"IF('Generated list'!D5028=\"\",\"\",'Generated list'!D5028)","v":""}]
[null,{"$f":"IF('Generated list'!B5029=\"\",\"\",'Generated list'!B5029)","v":""},{"$f":"IF('Generated list'!C5029=\"\",\"\",'Generated list'!C5029)","v":""},{"$f":"IF('Generated list'!D5029=\"\",\"\",'Generated list'!D5029)","v":""}]
[null,{"$f":"IF('Generated list'!B5030=\"\",\"\",'Generated list'!B5030)","v":""},{"$f":"IF('Generated list'!C5030=\"\",\"\",'Generated list'!C5030)","v":""},{"$f":"IF('Generated list'!D5030=\"\",\"\",'Generated list'!D5030)","v":""}]
[null,{"$f":"IF('Generated list'!B5031=\"\",\"\",'Generated list'!B5031)","v":""},{"$f":"IF('Generated list'!C5031=\"\",\"\",'Generated list'!C5031)","v":""},{"$f":"IF('Generated list'!D5031=\"\",\"\",'Generated list'!D5031)","v":""}]
[null,{"$f":"IF('Generated list'!B5032=\"\",\"\",'Generated list'!B5032)","v":""},{"$f":"IF('Generated list'!C5032=\"\",\"\",'Generated list'!C5032)","v":""},{"$f":"IF('Generated list'!D5032=\"\",\"\",'Generated list'!D5032)","v":""}]
[null,{"$f":"IF('Generated list'!B5033=\"\",\"\",'Generated list'!B5033)","v":""},{"$f":"IF('Generated list'!C5033=\"\",\"\",'Generated list'!C5033)","v":""},{"$f":"IF('Generated list'!D5033=\"\",\"\",'Generated list'!D5033)","v":""}]
[null,{"$f":"IF('Generated list'!B5034=\"\",\"\",'Generated list'!B5034)","v":""},{"$f":"IF('Generated list'!C5034=\"\",\"\",'Generated list'!C5034)","v":""},{"$f":"IF('Generated list'!D5034=\"\",\"\",'Generated list'!D5034)","v":""}]
[null,{"$f":"IF('Generated list'!B5035=\"\",\"\",'Generated list'!B5035)","v":""},{"$f":"IF('Generated list'!C5035=\"\",\"\",'Generated list'!C5035)","v":""},{"$f":"IF('Generated list'!D5035=\"\",\"\",'Generated list'!D5035)","v":""}]
[null,{"$f":"IF('Generated list'!B5036=\"\",\"\",'Generated list'!B5036)","v":""},{"$f":"IF('Generated list'!C5036=\"\",\"\",'Generated list'!C5036)","v":""},{"$f":"IF('Generated list'!D5036=\"\",\"\",'Generated list'!D5036)","v":""}]
[null,{"$f":"IF('Generated list'!B5037=\"\",\"\",'Generated list'!B5037)","v":""},{"$f":"IF('Generated list'!C5037=\"\",\"\",'Generated list'!C5037)","v":""},{"$f":"IF('Generated list'!D5037=\"\",\"\",'Generated list'!D5037)","v":""}]
[null,{"$f":"IF('Generated list'!B5038=\"\",\"\",'Generated list'!B5038)","v":""},{"$f":"IF('Generated list'!C5038=\"\",\"\",'Generated list'!C5038)","v":""},{"$f":"IF('Generated list'!D5038=\"\",\"\",'Generated list'!D5038)","v":""}]
[null,{"$f":"IF('Generated list'!B5039=\"\",\"\",'Generated list'!B5039)","v":""},{"$f":"IF('Generated list'!C5039=\"\",\"\",'Generated list'!C5039)","v":""},{"$f":"IF('Generated list'!D5039=\"\",\"\",'Generated list'!D5039)","v":""}]
[null,{"$f":"IF('Generated list'!B5040=\"\",\"\",'Generated list'!B5040)","v":""},{"$f":"IF('Generated list'!C5040=\"\",\"\",'Generated list'!C5040)","v":""},{"$f":"IF('Generated list'!D5040=\"\",\"\",'Generated list'!D5040)","v":""}]
[null,{"$f":"IF('Generated list'!B5041=\"\",\"\",'Generated list'!B5041)","v":""},{"$f":"IF('Generated list'!C5041=\"\",\"\",'Generated list'!C5041)","v":""},{"$f":"IF('Generated list'!D5041=\"\",\"\",'Generated list'!D5041)","v":""}]
[null,{"$f":"IF('Generated list'!B5042=\"\",\"\",'Generated list'!B5042)","v":""},{"$f":"IF('Generated list'!C5042=\"\",\"\",'Generated list'!C5042)","v":""},{"$f":"IF('Generated list'!D5042=\"\",\"\",'Generated list'!D5042)","v":""}]
[null,{"$f":"IF('Generated list'!B5043=\"\",\"\",'Generated list'!B5043)","v":""},{"$f":"IF('Generated list'!C5043=\"\",\"\",'Generated list'!C5043)","v":""},{"$f":"IF('Generated list'!D5043=\"\",\"\",'Generated list'!D5043)","v":""}]
[null,{"$f":"IF('Generated list'!B5044=\"\",\"\",'Generated list'!B5044)","v":""},{"$f":"IF('Generated list'!C5044=\"\",\"\",'Generated list'!C5044)","v":""},{"$f":"IF('Generated list'!D5044=\"\",\"\",'Generated list'!D5044)","v":""}]
[null,{"$f":"IF('Generated list'!B5045=\"\",\"\",'Generated list'!B5045)","v":""},{"$f":"IF('Generated list'!C5045=\"\",\"\",'Generated list'!C5045)","v":""},{"$f":"IF('Generated list'!D5045=\"\",\"\",'Generated list'!D5045)","v":""}]
[null,{"$f":"IF('Generated list'!B5046=\"\",\"\",'Generated list'!B5046)","v":""},{"$f":"IF('Generated list'!C5046=\"\",\"\",'Generated list'!C5046)","v":""},{"$f":"IF('Generated list'!D5046=\"\",\"\",'Generated list'!D5046)","v":""}]
[null,{"$f":"IF('Generated list'!B5047=\"\",\"\",'Generated list'!B5047)","v":""},{"$f":"IF('Generated list'!C5047=\"\",\"\",'Generated list'!C5047)","v":""},{"$f":"IF('Generated list'!D5047=\"\",\"\",'Generated list'!D5047)","v":""}]
[null,{"$f":"IF('Generated list'!B5048=\"\",\"\",'Generated list'!B5048)","v":""},{"$f":"IF('Generated list'!C5048=\"\",\"\",'Generated list'!C5048)","v":""},{"$f":"IF('Generated list'!D5048=\"\",\"\",'Generated list'!D5048)","v":""}]
[null,{"$f":"IF('Generated list'!B5049=\"\",\"\",'Generated list'!B5049)","v":""},{"$f":"IF('Generated list'!C5049=\"\",\"\",'Generated list'!C5049)","v":""},{"$f":"IF('Generated list'!D5049=\"\",\"\",'Generated list'!D5049)","v":""}]
[null,{"$f":"IF('Generated list'!B5050=\"\",\"\",'Generated list'!B5050)","v":""},{"$f":"IF('Generated list'!C5050=\"\",\"\",'Generated list'!C5050)","v":""},{"$f":"IF('Generated list'!D5050=\"\",\"\",'Generated list'!D5050)","v":""}]
[null,{"$f":"IF('Generated list'!B5051=\"\",\"\",'Generated list'!B5051)","v":""},{"$f":"IF('Generated list'!C5051=\"\",\"\",'Generated list'!C5051)","v":""},{"$f":"IF('Generated list'!D5051=\"\",\"\",'Generated list'!D5051)","v":""}]
[null,{"$f":"IF('Generated list'!B5052=\"\",\"\",'Generated list'!B5052)","v":""},{"$f":"IF('Generated list'!C5052=\"\",\"\",'Generated list'!C5052)","v":""},{"$f":"IF('Generated list'!D5052=\"\",\"\",'Generated list'!D5052)","v":""}]
[null,{"$f":"IF('Generated list'!B5053=\"\",\"\",'Generated list'!B5053)","v":""},{"$f":"IF('Generated list'!C5053=\"\",\"\",'Generated list'!C5053)","v":""},{"$f":"IF('Generated list'!D5053=\"\",\"\",'Generated list'!D5053)","v":""}]
[null,{"$f":"IF('Generated list'!B5054=\"\",\"\",'Generated list'!B5054)","v":""},{"$f":"IF('Generated list'!C5054=\"\",\"\",'Generated list'!C5054)","v":""},{"$f":"IF('Generated list'!D5054=\"\",\"\",'Generated list'!D5054)","v":""}]
[null,{"$f":"IF('Generated list'!B5055=\"\",\"\",'Generated list'!B5055)","v":""},{"$f":"IF('Generated list'!C5055=\"\",\"\",'Generated list'!C5055)","v":""},{"$f":"IF('Generated list'!D5055=\"\",\"\",'Generated list'!D5055)","v":""}]
[null,{"$f":"IF('Generated list'!B5056=\"\",\"\",'Generated list'!B5056)","v":""},{"$f":"IF('Generated list'!C5056=\"\",\"\",'Generated list'!C5056)","v":""},{"$f":"IF('Generated list'!D5056=\"\",\"\",'Generated list'!D5056)","v":""}]
[null,{"$f":"IF('Generated list'!B5057=\"\",\"\",'Generated list'!B5057)","v":""},{"$f":"IF('Generated list'!C5057=\"\",\"\",'Generated list'!C5057)","v":""},{"$f":"IF('Generated list'!D5057=\"\",\"\",'Generated list'!D5057)","v":""}]
[null,{"$f":"IF('Generated list'!B5058=\"\",\"\",'Generated list'!B5058)","v":""},{"$f":"IF('Generated list'!C5058=\"\",\"\",'Generated list'!C5058)","v":""},{"$f":"IF('Generated list'!D5058=\"\",\"\",'Generated list'!D5058)","v":""}]
[null,{"$f":"IF('Generated list'!B5059=\"\",\"\",'Generated list'!B5059)","v":""},{"$f":"IF('Generated list'!C5059=\"\",\"\",'Generated list'!C5059)","v":""},{"$f":"IF('Generated list'!D5059=\"\",\"\",'Generated list'!D5059)","v":""}]
[null,{"$f":"IF('Generated list'!B5060=\"\",\"\",'Generated list'!B5060)","v":""},{"$f":"IF('Generated list'!C5060=\"\",\"\",'Generated list'!C5060)","v":""},{"$f":"IF('Generated list'!D5060=\"\",\"\",'Generated list'!D5060)","v":""}]
[null,{"$f":"IF('Generated list'!B5061=\"\",\"\",'Generated list'!B5061)","v":""},{"$f":"IF('Generated list'!C5061=\"\",\"\",'Generated list'!C5061)","v":""},{"$f":"IF('Generated list'!D5061=\"\",\"\",'Generated list'!D5061)","v":""}]
[null,{"$f":"IF('Generated list'!B5062=\"\",\"\",'Generated list'!B5062)","v":""},{"$f":"IF('Generated list'!C5062=\"\",\"\",'Generated list'!C5062)","v":""},{"$f":"IF('Generated list'!D5062=\"\",\"\",'Generated list'!D5062)","v":""}]
[null,{"$f":"IF('Generated list'!B5063=\"\",\"\",'Generated list'!B5063)","v":""},{"$f":"IF('Generated list'!C5063=\"\",\"\",'Generated list'!C5063)","v":""},{"$f":"IF('Generated list'!D5063=\"\",\"\",'Generated list'!D5063)","v":""}]
[null,{"$f":"IF('Generated list'!B5064=\"\",\"\",'Generated list'!B5064)","v":""},{"$f":"IF('Generated list'!C5064=\"\",\"\",'Generated list'!C5064)","v":""},{"$f":"IF('Generated list'!D5064=\"\",\"\",'Generated list'!D5064)","v":""}]
[null,{"$f":"IF('Generated list'!B5065=\"\",\"\",'Generated list'!B5065)","v":""},{"$f":"IF('Generated list'!C5065=\"\",\"\",'Generated list'!C5065)","v":""},{"$f":"IF('Generated list'!D5065=\"\",\"\",'Generated list'!D5065)","v":""}]
[null,{"$f":"IF('Generated list'!B5066=\"\",\"\",'Generated list'!B5066)","v":""},{"$f":"IF('Generated list'!C5066=\"\",\"\",'Generated list'!C5066)","v":""},{"$f":"IF('Generated list'!D5066=\"\",\"\",'Generated list'!D5066)","v":""}]
[null,{"$f":"IF('Generated list'!B5067=\"\",\"\",'Generated list'!B5067)","v":""},{"$f":"IF('Generated list'!C5067=\"\",\"\",'Generated list'!C5067)","v":""},{"$f":"IF('Generated list'!D5067=\"\",\"\",'Generated list'!D5067)","v":""}]
[null,{"$f":"IF('Generated list'!B5068=\"\",\"\",'Generated list'!B5068)","v":""},{"$f":"IF('Generated list'!C5068=\"\",\"\",'Generated list'!C5068)","v":""},{"$f":"IF('Generated list'!D5068=\"\",\"\",'Generated list'!D5068)","v":""}]
[null,{"$f":"IF('Generated list'!B5069=\"\",\"\",'Generated list'!B5069)","v":""},{"$f":"IF('Generated list'!C5069=\"\",\"\",'Generated list'!C5069)","v":""},{"$f":"IF('Generated list'!D5069=\"\",\"\",'Generated list'!D5069)","v":""}]
[null,{"$f":"IF('Generated list'!B5070=\"\",\"\",'Generated list'!B5070)","v":""},{"$f":"IF('Generated list'!C5070=\"\",\"\",'Generated list'!C5070)","v":""},{"$f":"IF('Generated list'!D5070=\"\",\"\",'Generated list'!D5070)","v":""}]
[null,{"$f":"IF('Generated list'!B5071=\"\",\"\",'Generated list'!B5071)","v":""},{"$f":"IF('Generated list'!C5071=\"\",\"\",'Generated list'!C5071)","v":""},{"$f":"IF('Generated list'!D5071=\"\",\"\",'Generated list'!D5071)","v":""}]
[null,{"$f":"IF('Generated list'!B5072=\"\",\"\",'Generated list'!B5072)","v":""},{"$f":"IF('Generated list'!C5072=\"\",\"\",'Generated list'!C5072)","v":""},{"$f":"IF('Generated list'!D5072=\"\",\"\",'Generated list'!D5072)","v":""}]
[null,{"$f":"IF('Generated list'!B5073=\"\",\"\",'Generated list'!B5073)","v":""},{"$f":"IF('Generated list'!C5073=\"\",\"\",'Generated list'!C5073)","v":""},{"$f":"IF('Generated list'!D5073=\"\",\"\",'Generated list'!D5073)","v":""}]
[null,{"$f":"IF('Generated list'!B5074=\"\",\"\",'Generated list'!B5074)","v":""},{"$f":"IF('Generated list'!C5074=\"\",\"\",'Generated list'!C5074)","v":""},{"$f":"IF('Generated list'!D5074=\"\",\"\",'Generated list'!D5074)","v":""}]
[null,{"$f":"IF('Generated list'!B5075=\"\",\"\",'Generated list'!B5075)","v":""},{"$f":"IF('Generated list'!C5075=\"\",\"\",'Generated list'!C5075)","v":""},{"$f":"IF('Generated list'!D5075=\"\",\"\",'Generated list'!D5075)","v":""}]
[null,{"$f":"IF('Generated list'!B5076=\"\",\"\",'Generated list'!B5076)","v":""},{"$f":"IF('Generated list'!C5076=\"\",\"\",'Generated list'!C5076)","v":""},{"$f":"IF('Generated list'!D5076=\"\",\"\",'Generated list'!D5076)","v":""}]
[null,{"$f":"IF('Generated list'!B5077=\"\",\"\",'Generated list'!B5077)","v":""},{"$f":"IF('Generated list'!C5077=\"\",\"\",'Generated list'!C5077)","v":""},{"$f":"IF('Generated list'!D5077=\"\",\"\",'Generated list'!D5077)","v":""}]
[null,{"$f":"IF('Generated list'!B5078=\"\",\"\",'Generated list'!B5078)","v":""},{"$f":"IF('Generated list'!C5078=\"\",\"\",'Generated list'!C5078)","v":""},{"$f":"IF('Generated list'!D5078=\"\",\"\",'Generated list'!D5078)","v":""}]
[null,{"$f":"IF('Generated list'!B5079=\"\",\"\",'Generated list'!B5079)","v":""},{"$f":"IF('Generated list'!C5079=\"\",\"\",'Generated list'!C5079)","v":""},{"$f":"IF('Generated list'!D5079=\"\",\"\",'Generated list'!D5079)","v":""}]
[null,{"$f":"IF('Generated list'!B5080=\"\",\"\",'Generated list'!B5080)","v":""},{"$f":"IF('Generated list'!C5080=\"\",\"\",'Generated list'!C5080)","v":""},{"$f":"IF('Generated list'!D5080=\"\",\"\",'Generated list'!D5080)","v":""}]
[null,{"$f":"IF('Generated list'!B5081=\"\",\"\",'Generated list'!B5081)","v":""},{"$f":"IF('Generated list'!C5081=\"\",\"\",'Generated list'!C5081)","v":""},{"$f":"IF('Generated list'!D5081=\"\",\"\",'Generated list'!D5081)","v":""}]
[null,{"$f":"IF('Generated list'!B5082=\"\",\"\",'Generated list'!B5082)","v":""},{"$f":"IF('Generated list'!C5082=\"\",\"\",'Generated list'!C5082)","v":""},{"$f":"IF('Generated list'!D5082=\"\",\"\",'Generated list'!D5082)","v":""}]
[null,{"$f":"IF('Generated list'!B5083=\"\",\"\",'Generated list'!B5083)","v":""},{"$f":"IF('Generated list'!C5083=\"\",\"\",'Generated list'!C5083)","v":""},{"$f":"IF('Generated list'!D5083=\"\",\"\",'Generated list'!D5083)","v":""}]
[null,{"$f":"IF('Generated list'!B5084=\"\",\"\",'Generated list'!B5084)","v":""},{"$f":"IF('Generated list'!C5084=\"\",\"\",'Generated list'!C5084)","v":""},{"$f":"IF('Generated list'!D5084=\"\",\"\",'Generated list'!D5084)","v":""}]
[null,{"$f":"IF('Generated list'!B5085=\"\",\"\",'Generated list'!B5085)","v":""},{"$f":"IF('Generated list'!C5085=\"\",\"\",'Generated list'!C5085)","v":""},{"$f":"IF('Generated list'!D5085=\"\",\"\",'Generated list'!D5085)","v":""}]
[null,{"$f":"IF('Generated list'!B5086=\"\",\"\",'Generated list'!B5086)","v":""},{"$f":"IF('Generated list'!C5086=\"\",\"\",'Generated list'!C5086)","v":""},{"$f":"IF('Generated list'!D5086=\"\",\"\",'Generated list'!D5086)","v":""}]
[null,{"$f":"IF('Generated list'!B5087=\"\",\"\",'Generated list'!B5087)","v":""},{"$f":"IF('Generated list'!C5087=\"\",\"\",'Generated list'!C5087)","v":""},{"$f":"IF('Generated list'!D5087=\"\",\"\",'Generated list'!D5087)","v":""}]
[null,{"$f":"IF('Generated list'!B5088=\"\",\"\",'Generated list'!B5088)","v":""},{"$f":"IF('Generated list'!C5088=\"\",\"\",'Generated list'!C5088)","v":""},{"$f":"IF('Generated list'!D5088=\"\",\"\",'Generated list'!D5088)","v":""}]
[null,{"$f":"IF('Generated list'!B5089=\"\",\"\",'Generated list'!B5089)","v":""},{"$f":"IF('Generated list'!C5089=\"\",\"\",'Generated list'!C5089)","v":""},{"$f":"IF('Generated list'!D5089=\"\",\"\",'Generated list'!D5089)","v":""}]
[null,{"$f":"IF('Generated list'!B5090=\"\",\"\",'Generated list'!B5090)","v":""},{"$f":"IF('Generated list'!C5090=\"\",\"\",'Generated list'!C5090)","v":""},{"$f":"IF('Generated list'!D5090=\"\",\"\",'Generated list'!D5090)","v":""}]
[null,{"$f":"IF('Generated list'!B5091=\"\",\"\",'Generated list'!B5091)","v":""},{"$f":"IF('Generated list'!C5091=\"\",\"\",'Generated list'!C5091)","v":""},{"$f":"IF('Generated list'!D5091=\"\",\"\",'Generated list'!D5091)","v":""}]
[null,{"$f":"IF('Generated list'!B5092=\"\",\"\",'Generated list'!B5092)","v":""},{"$f":"IF('Generated list'!C5092=\"\",\"\",'Generated list'!C5092)","v":""},{"$f":"IF('Generated list'!D5092=\"\",\"\",'Generated list'!D5092)","v":""}]
[null,{"$f":"IF('Generated list'!B5093=\"\",\"\",'Generated list'!B5093)","v":""},{"$f":"IF('Generated list'!C5093=\"\",\"\",'Generated list'!C5093)","v":""},{"$f":"IF('Generated list'!D5093=\"\",\"\",'Generated list'!D5093)","v":""}]
[null,{"$f":"IF('Generated list'!B5094=\"\",\"\",'Generated list'!B5094)","v":""},{"$f":"IF('Generated list'!C5094=\"\",\"\",'Generated list'!C5094)","v":""},{"$f":"IF('Generated list'!D5094=\"\",\"\",'Generated list'!D5094)","v":""}]
[null,{"$f":"IF('Generated list'!B5095=\"\",\"\",'Generated list'!B5095)","v":""},{"$f":"IF('Generated list'!C5095=\"\",\"\",'Generated list'!C5095)","v":""},{"$f":"IF('Generated list'!D5095=\"\",\"\",'Generated list'!D5095)","v":""}]
[null,{"$f":"IF('Generated list'!B5096=\"\",\"\",'Generated list'!B5096)","v":""},{"$f":"IF('Generated list'!C5096=\"\",\"\",'Generated list'!C5096)","v":""},{"$f":"IF('Generated list'!D5096=\"\",\"\",'Generated list'!D5096)","v":""}]
[null,{"$f":"IF('Generated list'!B5097=\"\",\"\",'Generated list'!B5097)","v":""},{"$f":"IF('Generated list'!C5097=\"\",\"\",'Generated list'!C5097)","v":""},{"$f":"IF('Generated list'!D5097=\"\",\"\",'Generated list'!D5097)","v":""}]
[null,{"$f":"IF('Generated list'!B5098=\"\",\"\",'Generated list'!B5098)","v":""},{"$f":"IF('Generated list'!C5098=\"\",\"\",'Generated list'!C5098)","v":""},{"$f":"IF('Generated list'!D5098=\"\",\"\",'Generated list'!D5098)","v":""}]
[null,{"$f":"IF('Generated list'!B5099=\"\",\"\",'Generated list'!B5099)","v":""},{"$f":"IF('Generated list'!C5099=\"\",\"\",'Generated list'!C5099)","v":""},{"$f":"IF('Generated list'!D5099=\"\",\"\",'Generated list'!D5099)","v":""}]
[null,{"$f":"IF('Generated list'!B5100=\"\",\"\",'Generated list'!B5100)","v":""},{"$f":"IF('Generated list'!C5100=\"\",\"\",'Generated list'!C5100)","v":""},{"$f":"IF('Generated list'!D5100=\"\",\"\",'Generated list'!D5100)","v":""}]
[null,{"$f":"IF('Generated list'!B5101=\"\",\"\",'Generated list'!B5101)","v":""},{"$f":"IF('Generated list'!C5101=\"\",\"\",'Generated list'!C5101)","v":""},{"$f":"IF('Generated list'!D5101=\"\",\"\",'Generated list'!D5101)","v":""}]
[null,{"$f":"IF('Generated list'!B5102=\"\",\"\",'Generated list'!B5102)","v":""},{"$f":"IF('Generated list'!C5102=\"\",\"\",'Generated list'!C5102)","v":""},{"$f":"IF('Generated list'!D5102=\"\",\"\",'Generated list'!D5102)","v":""}]
[null,{"$f":"IF('Generated list'!B5103=\"\",\"\",'Generated list'!B5103)","v":""},{"$f":"IF('Generated list'!C5103=\"\",\"\",'Generated list'!C5103)","v":""},{"$f":"IF('Generated list'!D5103=\"\",\"\",'Generated list'!D5103)","v":""}]
[null,{"$f":"IF('Generated list'!B5104=\"\",\"\",'Generated list'!B5104)","v":""},{"$f":"IF('Generated list'!C5104=\"\",\"\",'Generated list'!C5104)","v":""},{"$f":"IF('Generated list'!D5104=\"\",\"\",'Generated list'!D5104)","v":""}]
[null,{"$f":"IF('Generated list'!B5105=\"\",\"\",'Generated list'!B5105)","v":""},{"$f":"IF('Generated list'!C5105=\"\",\"\",'Generated list'!C5105)","v":""},{"$f":"IF('Generated list'!D5105=\"\",\"\",'Generated list'!D5105)","v":""}]
[null,{"$f":"IF('Generated list'!B5106=\"\",\"\",'Generated list'!B5106)","v":""},{"$f":"IF('Generated list'!C5106=\"\",\"\",'Generated list'!C5106)","v":""},{"$f":"IF('Generated list'!D5106=\"\",\"\",'Generated list'!D5106)","v":""}]
[null,{"$f":"IF('Generated list'!B5107=\"\",\"\",'Generated list'!B5107)","v":""},{"$f":"IF('Generated list'!C5107=\"\",\"\",'Generated list'!C5107)","v":""},{"$f":"IF('Generated list'!D5107=\"\",\"\",'Generated list'!D5107)","v":""}]
[null,{"$f":"IF('Generated list'!B5108=\"\",\"\",'Generated list'!B5108)","v":""},{"$f":"IF('Generated list'!C5108=\"\",\"\",'Generated list'!C5108)","v":""},{"$f":"IF('Generated list'!D5108=\"\",\"\",'Generated list'!D5108)","v":""}]
[null,{"$f":"IF('Generated list'!B5109=\"\",\"\",'Generated list'!B5109)","v":""},{"$f":"IF('Generated list'!C5109=\"\",\"\",'Generated list'!C5109)","v":""},{"$f":"IF('Generated list'!D5109=\"\",\"\",'Generated list'!D5109)","v":""}]
[null,{"$f":"IF('Generated list'!B5110=\"\",\"\",'Generated list'!B5110)","v":""},{"$f":"IF('Generated list'!C5110=\"\",\"\",'Generated list'!C5110)","v":""},{"$f":"IF('Generated list'!D5110=\"\",\"\",'Generated list'!D5110)","v":""}]
[null,{"$f":"IF('Generated list'!B5111=\"\",\"\",'Generated list'!B5111)","v":""},{"$f":"IF('Generated list'!C5111=\"\",\"\",'Generated list'!C5111)","v":""},{"$f":"IF('Generated list'!D5111=\"\",\"\",'Generated list'!D5111)","v":""}]
[null,{"$f":"IF('Generated list'!B5112=\"\",\"\",'Generated list'!B5112)","v":""},{"$f":"IF('Generated list'!C5112=\"\",\"\",'Generated list'!C5112)","v":""},{"$f":"IF('Generated list'!D5112=\"\",\"\",'Generated list'!D5112)","v":""}]
[null,{"$f":"IF('Generated list'!B5113=\"\",\"\",'Generated list'!B5113)","v":""},{"$f":"IF('Generated list'!C5113=\"\",\"\",'Generated list'!C5113)","v":""},{"$f":"IF('Generated list'!D5113=\"\",\"\",'Generated list'!D5113)","v":""}]
[null,{"$f":"IF('Generated list'!B5114=\"\",\"\",'Generated list'!B5114)","v":""},{"$f":"IF('Generated list'!C5114=\"\",\"\",'Generated list'!C5114)","v":""},{"$f":"IF('Generated list'!D5114=\"\",\"\",'Generated list'!D5114)","v":""}]
[null,{"$f":"IF('Generated list'!B5115=\"\",\"\",'Generated list'!B5115)","v":""},{"$f":"IF('Generated list'!C5115=\"\",\"\",'Generated list'!C5115)","v":""},{"$f":"IF('Generated list'!D5115=\"\",\"\",'Generated list'!D5115)","v":""}]
[null,{"$f":"IF('Generated list'!B5116=\"\",\"\",'Generated list'!B5116)","v":""},{"$f":"IF('Generated list'!C5116=\"\",\"\",'Generated list'!C5116)","v":""},{"$f":"IF('Generated list'!D5116=\"\",\"\",'Generated list'!D5116)","v":""}]
[null,{"$f":"IF('Generated list'!B5117=\"\",\"\",'Generated list'!B5117)","v":""},{"$f":"IF('Generated list'!C5117=\"\",\"\",'Generated list'!C5117)","v":""},{"$f":"IF('Generated list'!D5117=\"\",\"\",'Generated list'!D5117)","v":""}]
[null,{"$f":"IF('Generated list'!B5118=\"\",\"\",'Generated list'!B5118)","v":""},{"$f":"IF('Generated list'!C5118=\"\",\"\",'Generated list'!C5118)","v":""},{"$f":"IF('Generated list'!D5118=\"\",\"\",'Generated list'!D5118)","v":""}]
[null,{"$f":"IF('Generated list'!B5119=\"\",\"\",'Generated list'!B5119)","v":""},{"$f":"IF('Generated list'!C5119=\"\",\"\",'Generated list'!C5119)","v":""},{"$f":"IF('Generated list'!D5119=\"\",\"\",'Generated list'!D5119)","v":""}]
[null,{"$f":"IF('Generated list'!B5120=\"\",\"\",'Generated list'!B5120)","v":""},{"$f":"IF('Generated list'!C5120=\"\",\"\",'Generated list'!C5120)","v":""},{"$f":"IF('Generated list'!D5120=\"\",\"\",'Generated list'!D5120)","v":""}]
[null,{"$f":"IF('Generated list'!B5121=\"\",\"\",'Generated list'!B5121)","v":""},{"$f":"IF('Generated list'!C5121=\"\",\"\",'Generated list'!C5121)","v":""},{"$f":"IF('Generated list'!D5121=\"\",\"\",'Generated list'!D5121)","v":""}]
[null,{"$f":"IF('Generated list'!B5122=\"\",\"\",'Generated list'!B5122)","v":""},{"$f":"IF('Generated list'!C5122=\"\",\"\",'Generated list'!C5122)","v":""},{"$f":"IF('Generated list'!D5122=\"\",\"\",'Generated list'!D5122)","v":""}]
[null,{"$f":"IF('Generated list'!B5123=\"\",\"\",'Generated list'!B5123)","v":""},{"$f":"IF('Generated list'!C5123=\"\",\"\",'Generated list'!C5123)","v":""},{"$f":"IF('Generated list'!D5123=\"\",\"\",'Generated list'!D5123)","v":""}]
[null,{"$f":"IF('Generated list'!B5124=\"\",\"\",'Generated list'!B5124)","v":""},{"$f":"IF('Generated list'!C5124=\"\",\"\",'Generated list'!C5124)","v":""},{"$f":"IF('Generated list'!D5124=\"\",\"\",'Generated list'!D5124)","v":""}]
[null,{"$f":"IF('Generated list'!B5125=\"\",\"\",'Generated list'!B5125)","v":""},{"$f":"IF('Generated list'!C5125=\"\",\"\",'Generated list'!C5125)","v":""},{"$f":"IF('Generated list'!D5125=\"\",\"\",'Generated list'!D5125)","v":""}]
[null,{"$f":"IF('Generated list'!B5126=\"\",\"\",'Generated list'!B5126)","v":""},{"$f":"IF('Generated list'!C5126=\"\",\"\",'Generated list'!C5126)","v":""},{"$f":"IF('Generated list'!D5126=\"\",\"\",'Generated list'!D5126)","v":""}]
[null,{"$f":"IF('Generated list'!B5127=\"\",\"\",'Generated list'!B5127)","v":""},{"$f":"IF('Generated list'!C5127=\"\",\"\",'Generated list'!C5127)","v":""},{"$f":"IF('Generated list'!D5127=\"\",\"\",'Generated list'!D5127)","v":""}]
[null,{"$f":"IF('Generated list'!B5128=\"\",\"\",'Generated list'!B5128)","v":""},{"$f":"IF('Generated list'!C5128=\"\",\"\",'Generated list'!C5128)","v":""},{"$f":"IF('Generated list'!D5128=\"\",\"\",'Generated list'!D5128)","v":""}]
[null,{"$f":"IF('Generated list'!B5129=\"\",\"\",'Generated list'!B5129)","v":""},{"$f":"IF('Generated list'!C5129=\"\",\"\",'Generated list'!C5129)","v":""},{"$f":"IF('Generated list'!D5129=\"\",\"\",'Generated list'!D5129)","v":""}]
[null,{"$f":"IF('Generated list'!B5130=\"\",\"\",'Generated list'!B5130)","v":""},{"$f":"IF('Generated list'!C5130=\"\",\"\",'Generated list'!C5130)","v":""},{"$f":"IF('Generated list'!D5130=\"\",\"\",'Generated list'!D5130)","v":""}]
[null,{"$f":"IF('Generated list'!B5131=\"\",\"\",'Generated list'!B5131)","v":""},{"$f":"IF('Generated list'!C5131=\"\",\"\",'Generated list'!C5131)","v":""},{"$f":"IF('Generated list'!D5131=\"\",\"\",'Generated list'!D5131)","v":""}]
[null,{"$f":"IF('Generated list'!B5132=\"\",\"\",'Generated list'!B5132)","v":""},{"$f":"IF('Generated list'!C5132=\"\",\"\",'Generated list'!C5132)","v":""},{"$f":"IF('Generated list'!D5132=\"\",\"\",'Generated list'!D5132)","v":""}]
[null,{"$f":"IF('Generated list'!B5133=\"\",\"\",'Generated list'!B5133)","v":""},{"$f":"IF('Generated list'!C5133=\"\",\"\",'Generated list'!C5133)","v":""},{"$f":"IF('Generated list'!D5133=\"\",\"\",'Generated list'!D5133)","v":""}]
[null,{"$f":"IF('Generated list'!B5134=\"\",\"\",'Generated list'!B5134)","v":""},{"$f":"IF('Generated list'!C5134=\"\",\"\",'Generated list'!C5134)","v":""},{"$f":"IF('Generated list'!D5134=\"\",\"\",'Generated list'!D5134)","v":""}]
[null,{"$f":"IF('Generated list'!B5135=\"\",\"\",'Generated list'!B5135)","v":""},{"$f":"IF('Generated list'!C5135=\"\",\"\",'Generated list'!C5135)","v":""},{"$f":"IF('Generated list'!D5135=\"\",\"\",'Generated list'!D5135)","v":""}]
[null,{"$f":"IF('Generated list'!B5136=\"\",\"\",'Generated list'!B5136)","v":""},{"$f":"IF('Generated list'!C5136=\"\",\"\",'Generated list'!C5136)","v":""},{"$f":"IF('Generated list'!D5136=\"\",\"\",'Generated list'!D5136)","v":""}]
[null,{"$f":"IF('Generated list'!B5137=\"\",\"\",'Generated list'!B5137)","v":""},{"$f":"IF('Generated list'!C5137=\"\",\"\",'Generated list'!C5137)","v":""},{"$f":"IF('Generated list'!D5137=\"\",\"\",'Generated list'!D5137)","v":""}]
[null,{"$f":"IF('Generated list'!B5138=\"\",\"\",'Generated list'!B5138)","v":""},{"$f":"IF('Generated list'!C5138=\"\",\"\",'Generated list'!C5138)","v":""},{"$f":"IF('Generated list'!D5138=\"\",\"\",'Generated list'!D5138)","v":""}]
[null,{"$f":"IF('Generated list'!B5139=\"\",\"\",'Generated list'!B5139)","v":""},{"$f":"IF('Generated list'!C5139=\"\",\"\",'Generated list'!C5139)","v":""},{"$f":"IF('Generated list'!D5139=\"\",\"\",'Generated list'!D5139)","v":""}]
[null,{"$f":"IF('Generated list'!B5140=\"\",\"\",'Generated list'!B5140)","v":""},{"$f":"IF('Generated list'!C5140=\"\",\"\",'Generated list'!C5140)","v":""},{"$f":"IF('Generated list'!D5140=\"\",\"\",'Generated list'!D5140)","v":""}]
[null,{"$f":"IF('Generated list'!B5141=\"\",\"\",'Generated list'!B5141)","v":""},{"$f":"IF('Generated list'!C5141=\"\",\"\",'Generated list'!C5141)","v":""},{"$f":"IF('Generated list'!D5141=\"\",\"\",'Generated list'!D5141)","v":""}]
[null,{"$f":"IF('Generated list'!B5142=\"\",\"\",'Generated list'!B5142)","v":""},{"$f":"IF('Generated list'!C5142=\"\",\"\",'Generated list'!C5142)","v":""},{"$f":"IF('Generated list'!D5142=\"\",\"\",'Generated list'!D5142)","v":""}]
[null,{"$f":"IF('Generated list'!B5143=\"\",\"\",'Generated list'!B5143)","v":""},{"$f":"IF('Generated list'!C5143=\"\",\"\",'Generated list'!C5143)","v":""},{"$f":"IF('Generated list'!D5143=\"\",\"\",'Generated list'!D5143)","v":""}]
[null,{"$f":"IF('Generated list'!B5144=\"\",\"\",'Generated list'!B5144)","v":""},{"$f":"IF('Generated list'!C5144=\"\",\"\",'Generated list'!C5144)","v":""},{"$f":"IF('Generated list'!D5144=\"\",\"\",'Generated list'!D5144)","v":""}]
[null,{"$f":"IF('Generated list'!B5145=\"\",\"\",'Generated list'!B5145)","v":""},{"$f":"IF('Generated list'!C5145=\"\",\"\",'Generated list'!C5145)","v":""},{"$f":"IF('Generated list'!D5145=\"\",\"\",'Generated list'!D5145)","v":""}]
[null,{"$f":"IF('Generated list'!B5146=\"\",\"\",'Generated list'!B5146)","v":""},{"$f":"IF('Generated list'!C5146=\"\",\"\",'Generated list'!C5146)","v":""},{"$f":"IF('Generated list'!D5146=\"\",\"\",'Generated list'!D5146)","v":""}]
[null,{"$f":"IF('Generated list'!B5147=\"\",\"\",'Generated list'!B5147)","v":""},{"$f":"IF('Generated list'!C5147=\"\",\"\",'Generated list'!C5147)","v":""},{"$f":"IF('Generated list'!D5147=\"\",\"\",'Generated list'!D5147)","v":""}]
[null,{"$f":"IF('Generated list'!B5148=\"\",\"\",'Generated list'!B5148)","v":""},{"$f":"IF('Generated list'!C5148=\"\",\"\",'Generated list'!C5148)","v":""},{"$f":"IF('Generated list'!D5148=\"\",\"\",'Generated list'!D5148)","v":""}]
[null,{"$f":"IF('Generated list'!B5149=\"\",\"\",'Generated list'!B5149)","v":""},{"$f":"IF('Generated list'!C5149=\"\",\"\",'Generated list'!C5149)","v":""},{"$f":"IF('Generated list'!D5149=\"\",\"\",'Generated list'!D5149)","v":""}]
[null,{"$f":"IF('Generated list'!B5150=\"\",\"\",'Generated list'!B5150)","v":""},{"$f":"IF('Generated list'!C5150=\"\",\"\",'Generated list'!C5150)","v":""},{"$f":"IF('Generated list'!D5150=\"\",\"\",'Generated list'!D5150)","v":""}]
[null,{"$f":"IF('Generated list'!B5151=\"\",\"\",'Generated list'!B5151)","v":""},{"$f":"IF('Generated list'!C5151=\"\",\"\",'Generated list'!C5151)","v":""},{"$f":"IF('Generated list'!D5151=\"\",\"\",'Generated list'!D5151)","v":""}]
[null,{"$f":"IF('Generated list'!B5152=\"\",\"\",'Generated list'!B5152)","v":""},{"$f":"IF('Generated list'!C5152=\"\",\"\",'Generated list'!C5152)","v":""},{"$f":"IF('Generated list'!D5152=\"\",\"\",'Generated list'!D5152)","v":""}]
[null,{"$f":"IF('Generated list'!B5153=\"\",\"\",'Generated list'!B5153)","v":""},{"$f":"IF('Generated list'!C5153=\"\",\"\",'Generated list'!C5153)","v":""},{"$f":"IF('Generated list'!D5153=\"\",\"\",'Generated list'!D5153)","v":""}]
[null,{"$f":"IF('Generated list'!B5154=\"\",\"\",'Generated list'!B5154)","v":""},{"$f":"IF('Generated list'!C5154=\"\",\"\",'Generated list'!C5154)","v":""},{"$f":"IF('Generated list'!D5154=\"\",\"\",'Generated list'!D5154)","v":""}]
[null,{"$f":"IF('Generated list'!B5155=\"\",\"\",'Generated list'!B5155)","v":""},{"$f":"IF('Generated list'!C5155=\"\",\"\",'Generated list'!C5155)","v":""},{"$f":"IF('Generated list'!D5155=\"\",\"\",'Generated list'!D5155)","v":""}]
[null,{"$f":"IF('Generated list'!B5156=\"\",\"\",'Generated list'!B5156)","v":""},{"$f":"IF('Generated list'!C5156=\"\",\"\",'Generated list'!C5156)","v":""},{"$f":"IF('Generated list'!D5156=\"\",\"\",'Generated list'!D5156)","v":""}]
[null,{"$f":"IF('Generated list'!B5157=\"\",\"\",'Generated list'!B5157)","v":""},{"$f":"IF('Generated list'!C5157=\"\",\"\",'Generated list'!C5157)","v":""},{"$f":"IF('Generated list'!D5157=\"\",\"\",'Generated list'!D5157)","v":""}]
[null,{"$f":"IF('Generated list'!B5158=\"\",\"\",'Generated list'!B5158)","v":""},{"$f":"IF('Generated list'!C5158=\"\",\"\",'Generated list'!C5158)","v":""},{"$f":"IF('Generated list'!D5158=\"\",\"\",'Generated list'!D5158)","v":""}]
[null,{"$f":"IF('Generated list'!B5159=\"\",\"\",'Generated list'!B5159)","v":""},{"$f":"IF('Generated list'!C5159=\"\",\"\",'Generated list'!C5159)","v":""},{"$f":"IF('Generated list'!D5159=\"\",\"\",'Generated list'!D5159)","v":""}]
[null,{"$f":"IF('Generated list'!B5160=\"\",\"\",'Generated list'!B5160)","v":""},{"$f":"IF('Generated list'!C5160=\"\",\"\",'Generated list'!C5160)","v":""},{"$f":"IF('Generated list'!D5160=\"\",\"\",'Generated list'!D5160)","v":""}]
[null,{"$f":"IF('Generated list'!B5161=\"\",\"\",'Generated list'!B5161)","v":""},{"$f":"IF('Generated list'!C5161=\"\",\"\",'Generated list'!C5161)","v":""},{"$f":"IF('Generated list'!D5161=\"\",\"\",'Generated list'!D5161)","v":""}]
[null,{"$f":"IF('Generated list'!B5162=\"\",\"\",'Generated list'!B5162)","v":""},{"$f":"IF('Generated list'!C5162=\"\",\"\",'Generated list'!C5162)","v":""},{"$f":"IF('Generated list'!D5162=\"\",\"\",'Generated list'!D5162)","v":""}]
[null,{"$f":"IF('Generated list'!B5163=\"\",\"\",'Generated list'!B5163)","v":""},{"$f":"IF('Generated list'!C5163=\"\",\"\",'Generated list'!C5163)","v":""},{"$f":"IF('Generated list'!D5163=\"\",\"\",'Generated list'!D5163)","v":""}]
[null,{"$f":"IF('Generated list'!B5164=\"\",\"\",'Generated list'!B5164)","v":""},{"$f":"IF('Generated list'!C5164=\"\",\"\",'Generated list'!C5164)","v":""},{"$f":"IF('Generated list'!D5164=\"\",\"\",'Generated list'!D5164)","v":""}]
[null,{"$f":"IF('Generated list'!B5165=\"\",\"\",'Generated list'!B5165)","v":""},{"$f":"IF('Generated list'!C5165=\"\",\"\",'Generated list'!C5165)","v":""},{"$f":"IF('Generated list'!D5165=\"\",\"\",'Generated list'!D5165)","v":""}]
[null,{"$f":"IF('Generated list'!B5166=\"\",\"\",'Generated list'!B5166)","v":""},{"$f":"IF('Generated list'!C5166=\"\",\"\",'Generated list'!C5166)","v":""},{"$f":"IF('Generated list'!D5166=\"\",\"\",'Generated list'!D5166)","v":""}]
[null,{"$f":"IF('Generated list'!B5167=\"\",\"\",'Generated list'!B5167)","v":""},{"$f":"IF('Generated list'!C5167=\"\",\"\",'Generated list'!C5167)","v":""},{"$f":"IF('Generated list'!D5167=\"\",\"\",'Generated list'!D5167)","v":""}]
[null,{"$f":"IF('Generated list'!B5168=\"\",\"\",'Generated list'!B5168)","v":""},{"$f":"IF('Generated list'!C5168=\"\",\"\",'Generated list'!C5168)","v":""},{"$f":"IF('Generated list'!D5168=\"\",\"\",'Generated list'!D5168)","v":""}]
[null,{"$f":"IF('Generated list'!B5169=\"\",\"\",'Generated list'!B5169)","v":""},{"$f":"IF('Generated list'!C5169=\"\",\"\",'Generated list'!C5169)","v":""},{"$f":"IF('Generated list'!D5169=\"\",\"\",'Generated list'!D5169)","v":""}]
[null,{"$f":"IF('Generated list'!B5170=\"\",\"\",'Generated list'!B5170)","v":""},{"$f":"IF('Generated list'!C5170=\"\",\"\",'Generated list'!C5170)","v":""},{"$f":"IF('Generated list'!D5170=\"\",\"\",'Generated list'!D5170)","v":""}]
[null,{"$f":"IF('Generated list'!B5171=\"\",\"\",'Generated list'!B5171)","v":""},{"$f":"IF('Generated list'!C5171=\"\",\"\",'Generated list'!C5171)","v":""},{"$f":"IF('Generated list'!D5171=\"\",\"\",'Generated list'!D5171)","v":""}]
[null,{"$f":"IF('Generated list'!B5172=\"\",\"\",'Generated list'!B5172)","v":""},{"$f":"IF('Generated list'!C5172=\"\",\"\",'Generated list'!C5172)","v":""},{"$f":"IF('Generated list'!D5172=\"\",\"\",'Generated list'!D5172)","v":""}]
[null,{"$f":"IF('Generated list'!B5173=\"\",\"\",'Generated list'!B5173)","v":""},{"$f":"IF('Generated list'!C5173=\"\",\"\",'Generated list'!C5173)","v":""},{"$f":"IF('Generated list'!D5173=\"\",\"\",'Generated list'!D5173)","v":""}]
[null,{"$f":"IF('Generated list'!B5174=\"\",\"\",'Generated list'!B5174)","v":""},{"$f":"IF('Generated list'!C5174=\"\",\"\",'Generated list'!C5174)","v":""},{"$f":"IF('Generated list'!D5174=\"\",\"\",'Generated list'!D5174)","v":""}]
[null,{"$f":"IF('Generated list'!B5175=\"\",\"\",'Generated list'!B5175)","v":""},{"$f":"IF('Generated list'!C5175=\"\",\"\",'Generated list'!C5175)","v":""},{"$f":"IF('Generated list'!D5175=\"\",\"\",'Generated list'!D5175)","v":""}]
[null,{"$f":"IF('Generated list'!B5176=\"\",\"\",'Generated list'!B5176)","v":""},{"$f":"IF('Generated list'!C5176=\"\",\"\",'Generated list'!C5176)","v":""},{"$f":"IF('Generated list'!D5176=\"\",\"\",'Generated list'!D5176)","v":""}]
[null,{"$f":"IF('Generated list'!B5177=\"\",\"\",'Generated list'!B5177)","v":""},{"$f":"IF('Generated list'!C5177=\"\",\"\",'Generated list'!C5177)","v":""},{"$f":"IF('Generated list'!D5177=\"\",\"\",'Generated list'!D5177)","v":""}]
[null,{"$f":"IF('Generated list'!B5178=\"\",\"\",'Generated list'!B5178)","v":""},{"$f":"IF('Generated list'!C5178=\"\",\"\",'Generated list'!C5178)","v":""},{"$f":"IF('Generated list'!D5178=\"\",\"\",'Generated list'!D5178)","v":""}]
[null,{"$f":"IF('Generated list'!B5179=\"\",\"\",'Generated list'!B5179)","v":""},{"$f":"IF('Generated list'!C5179=\"\",\"\",'Generated list'!C5179)","v":""},{"$f":"IF('Generated list'!D5179=\"\",\"\",'Generated list'!D5179)","v":""}]
[null,{"$f":"IF('Generated list'!B5180=\"\",\"\",'Generated list'!B5180)","v":""},{"$f":"IF('Generated list'!C5180=\"\",\"\",'Generated list'!C5180)","v":""},{"$f":"IF('Generated list'!D5180=\"\",\"\",'Generated list'!D5180)","v":""}]
[null,{"$f":"IF('Generated list'!B5181=\"\",\"\",'Generated list'!B5181)","v":""},{"$f":"IF('Generated list'!C5181=\"\",\"\",'Generated list'!C5181)","v":""},{"$f":"IF('Generated list'!D5181=\"\",\"\",'Generated list'!D5181)","v":""}]
[null,{"$f":"IF('Generated list'!B5182=\"\",\"\",'Generated list'!B5182)","v":""},{"$f":"IF('Generated list'!C5182=\"\",\"\",'Generated list'!C5182)","v":""},{"$f":"IF('Generated list'!D5182=\"\",\"\",'Generated list'!D5182)","v":""}]
[null,{"$f":"IF('Generated list'!B5183=\"\",\"\",'Generated list'!B5183)","v":""},{"$f":"IF('Generated list'!C5183=\"\",\"\",'Generated list'!C5183)","v":""},{"$f":"IF('Generated list'!D5183=\"\",\"\",'Generated list'!D5183)","v":""}]
[null,{"$f":"IF('Generated list'!B5184=\"\",\"\",'Generated list'!B5184)","v":""},{"$f":"IF('Generated list'!C5184=\"\",\"\",'Generated list'!C5184)","v":""},{"$f":"IF('Generated list'!D5184=\"\",\"\",'Generated list'!D5184)","v":""}]
[null,{"$f":"IF('Generated list'!B5185=\"\",\"\",'Generated list'!B5185)","v":""},{"$f":"IF('Generated list'!C5185=\"\",\"\",'Generated list'!C5185)","v":""},{"$f":"IF('Generated list'!D5185=\"\",\"\",'Generated list'!D5185)","v":""}]
[null,{"$f":"IF('Generated list'!B5186=\"\",\"\",'Generated list'!B5186)","v":""},{"$f":"IF('Generated list'!C5186=\"\",\"\",'Generated list'!C5186)","v":""},{"$f":"IF('Generated list'!D5186=\"\",\"\",'Generated list'!D5186)","v":""}]
[null,{"$f":"IF('Generated list'!B5187=\"\",\"\",'Generated list'!B5187)","v":""},{"$f":"IF('Generated list'!C5187=\"\",\"\",'Generated list'!C5187)","v":""},{"$f":"IF('Generated list'!D5187=\"\",\"\",'Generated list'!D5187)","v":""}]
[null,{"$f":"IF('Generated list'!B5188=\"\",\"\",'Generated list'!B5188)","v":""},{"$f":"IF('Generated list'!C5188=\"\",\"\",'Generated list'!C5188)","v":""},{"$f":"IF('Generated list'!D5188=\"\",\"\",'Generated list'!D5188)","v":""}]
[null,{"$f":"IF('Generated list'!B5189=\"\",\"\",'Generated list'!B5189)","v":""},{"$f":"IF('Generated list'!C5189=\"\",\"\",'Generated list'!C5189)","v":""},{"$f":"IF('Generated list'!D5189=\"\",\"\",'Generated list'!D5189)","v":""}]
[null,{"$f":"IF('Generated list'!B5190=\"\",\"\",'Generated list'!B5190)","v":""},{"$f":"IF('Generated list'!C5190=\"\",\"\",'Generated list'!C5190)","v":""},{"$f":"IF('Generated list'!D5190=\"\",\"\",'Generated list'!D5190)","v":""}]
[null,{"$f":"IF('Generated list'!B5191=\"\",\"\",'Generated list'!B5191)","v":""},{"$f":"IF('Generated list'!C5191=\"\",\"\",'Generated list'!C5191)","v":""},{"$f":"IF('Generated list'!D5191=\"\",\"\",'Generated list'!D5191)","v":""}]
[null,{"$f":"IF('Generated list'!B5192=\"\",\"\",'Generated list'!B5192)","v":""},{"$f":"IF('Generated list'!C5192=\"\",\"\",'Generated list'!C5192)","v":""},{"$f":"IF('Generated list'!D5192=\"\",\"\",'Generated list'!D5192)","v":""}]
[null,{"$f":"IF('Generated list'!B5193=\"\",\"\",'Generated list'!B5193)","v":""},{"$f":"IF('Generated list'!C5193=\"\",\"\",'Generated list'!C5193)","v":""},{"$f":"IF('Generated list'!D5193=\"\",\"\",'Generated list'!D5193)","v":""}]
[null,{"$f":"IF('Generated list'!B5194=\"\",\"\",'Generated list'!B5194)","v":""},{"$f":"IF('Generated list'!C5194=\"\",\"\",'Generated list'!C5194)","v":""},{"$f":"IF('Generated list'!D5194=\"\",\"\",'Generated list'!D5194)","v":""}]
[null,{"$f":"IF('Generated list'!B5195=\"\",\"\",'Generated list'!B5195)","v":""},{"$f":"IF('Generated list'!C5195=\"\",\"\",'Generated list'!C5195)","v":""},{"$f":"IF('Generated list'!D5195=\"\",\"\",'Generated list'!D5195)","v":""}]
[null,{"$f":"IF('Generated list'!B5196=\"\",\"\",'Generated list'!B5196)","v":""},{"$f":"IF('Generated list'!C5196=\"\",\"\",'Generated list'!C5196)","v":""},{"$f":"IF('Generated list'!D5196=\"\",\"\",'Generated list'!D5196)","v":""}]
[null,{"$f":"IF('Generated list'!B5197=\"\",\"\",'Generated list'!B5197)","v":""},{"$f":"IF('Generated list'!C5197=\"\",\"\",'Generated list'!C5197)","v":""},{"$f":"IF('Generated list'!D5197=\"\",\"\",'Generated list'!D5197)","v":""}]
[null,{"$f":"IF('Generated list'!B5198=\"\",\"\",'Generated list'!B5198)","v":""},{"$f":"IF('Generated list'!C5198=\"\",\"\",'Generated list'!C5198)","v":""},{"$f":"IF('Generated list'!D5198=\"\",\"\",'Generated list'!D5198)","v":""}]
[null,{"$f":"IF('Generated list'!B5199=\"\",\"\",'Generated list'!B5199)","v":""},{"$f":"IF('Generated list'!C5199=\"\",\"\",'Generated list'!C5199)","v":""},{"$f":"IF('Generated list'!D5199=\"\",\"\",'Generated list'!D5199)","v":""}]
[null,{"$f":"IF('Generated list'!B5200=\"\",\"\",'Generated list'!B5200)","v":""},{"$f":"IF('Generated list'!C5200=\"\",\"\",'Generated list'!C5200)","v":""},{"$f":"IF('Generated list'!D5200=\"\",\"\",'Generated list'!D5200)","v":""}]
[null,{"$f":"IF('Generated list'!B5201=\"\",\"\",'Generated list'!B5201)","v":""},{"$f":"IF('Generated list'!C5201=\"\",\"\",'Generated list'!C5201)","v":""},{"$f":"IF('Generated list'!D5201=\"\",\"\",'Generated list'!D5201)","v":""}]
[null,{"$f":"IF('Generated list'!B5202=\"\",\"\",'Generated list'!B5202)","v":""},{"$f":"IF('Generated list'!C5202=\"\",\"\",'Generated list'!C5202)","v":""},{"$f":"IF('Generated list'!D5202=\"\",\"\",'Generated list'!D5202)","v":""}]
[null,{"$f":"IF('Generated list'!B5203=\"\",\"\",'Generated list'!B5203)","v":""},{"$f":"IF('Generated list'!C5203=\"\",\"\",'Generated list'!C5203)","v":""},{"$f":"IF('Generated list'!D5203=\"\",\"\",'Generated list'!D5203)","v":""}]
[null,{"$f":"IF('Generated list'!B5204=\"\",\"\",'Generated list'!B5204)","v":""},{"$f":"IF('Generated list'!C5204=\"\",\"\",'Generated list'!C5204)","v":""},{"$f":"IF('Generated list'!D5204=\"\",\"\",'Generated list'!D5204)","v":""}]
[null,{"$f":"IF('Generated list'!B5205=\"\",\"\",'Generated list'!B5205)","v":""},{"$f":"IF('Generated list'!C5205=\"\",\"\",'Generated list'!C5205)","v":""},{"$f":"IF('Generated list'!D5205=\"\",\"\",'Generated list'!D5205)","v":""}]
[null,{"$f":"IF('Generated list'!B5206=\"\",\"\",'Generated list'!B5206)","v":""},{"$f":"IF('Generated list'!C5206=\"\",\"\",'Generated list'!C5206)","v":""},{"$f":"IF('Generated list'!D5206=\"\",\"\",'Generated list'!D5206)","v":""}]
[null,{"$f":"IF('Generated list'!B5207=\"\",\"\",'Generated list'!B5207)","v":""},{"$f":"IF('Generated list'!C5207=\"\",\"\",'Generated list'!C5207)","v":""},{"$f":"IF('Generated list'!D5207=\"\",\"\",'Generated list'!D5207)","v":""}]
[null,{"$f":"IF('Generated list'!B5208=\"\",\"\",'Generated list'!B5208)","v":""},{"$f":"IF('Generated list'!C5208=\"\",\"\",'Generated list'!C5208)","v":""},{"$f":"IF('Generated list'!D5208=\"\",\"\",'Generated list'!D5208)","v":""}]
[null,{"$f":"IF('Generated list'!B5209=\"\",\"\",'Generated list'!B5209)","v":""},{"$f":"IF('Generated list'!C5209=\"\",\"\",'Generated list'!C5209)","v":""},{"$f":"IF('Generated list'!D5209=\"\",\"\",'Generated list'!D5209)","v":""}]
[null,{"$f":"IF('Generated list'!B5210=\"\",\"\",'Generated list'!B5210)","v":""},{"$f":"IF('Generated list'!C5210=\"\",\"\",'Generated list'!C5210)","v":""},{"$f":"IF('Generated list'!D5210=\"\",\"\",'Generated list'!D5210)","v":""}]
[null,{"$f":"IF('Generated list'!B5211=\"\",\"\",'Generated list'!B5211)","v":""},{"$f":"IF('Generated list'!C5211=\"\",\"\",'Generated list'!C5211)","v":""},{"$f":"IF('Generated list'!D5211=\"\",\"\",'Generated list'!D5211)","v":""}]
[null,{"$f":"IF('Generated list'!B5212=\"\",\"\",'Generated list'!B5212)","v":""},{"$f":"IF('Generated list'!C5212=\"\",\"\",'Generated list'!C5212)","v":""},{"$f":"IF('Generated list'!D5212=\"\",\"\",'Generated list'!D5212)","v":""}]
[null,{"$f":"IF('Generated list'!B5213=\"\",\"\",'Generated list'!B5213)","v":""},{"$f":"IF('Generated list'!C5213=\"\",\"\",'Generated list'!C5213)","v":""},{"$f":"IF('Generated list'!D5213=\"\",\"\",'Generated list'!D5213)","v":""}]
[null,{"$f":"IF('Generated list'!B5214=\"\",\"\",'Generated list'!B5214)","v":""},{"$f":"IF('Generated list'!C5214=\"\",\"\",'Generated list'!C5214)","v":""},{"$f":"IF('Generated list'!D5214=\"\",\"\",'Generated list'!D5214)","v":""}]
[null,{"$f":"IF('Generated list'!B5215=\"\",\"\",'Generated list'!B5215)","v":""},{"$f":"IF('Generated list'!C5215=\"\",\"\",'Generated list'!C5215)","v":""},{"$f":"IF('Generated list'!D5215=\"\",\"\",'Generated list'!D5215)","v":""}]
[null,{"$f":"IF('Generated list'!B5216=\"\",\"\",'Generated list'!B5216)","v":""},{"$f":"IF('Generated list'!C5216=\"\",\"\",'Generated list'!C5216)","v":""},{"$f":"IF('Generated list'!D5216=\"\",\"\",'Generated list'!D5216)","v":""}]
[null,{"$f":"IF('Generated list'!B5217=\"\",\"\",'Generated list'!B5217)","v":""},{"$f":"IF('Generated list'!C5217=\"\",\"\",'Generated list'!C5217)","v":""},{"$f":"IF('Generated list'!D5217=\"\",\"\",'Generated list'!D5217)","v":""}]
[null,{"$f":"IF('Generated list'!B5218=\"\",\"\",'Generated list'!B5218)","v":""},{"$f":"IF('Generated list'!C5218=\"\",\"\",'Generated list'!C5218)","v":""},{"$f":"IF('Generated list'!D5218=\"\",\"\",'Generated list'!D5218)","v":""}]
[null,{"$f":"IF('Generated list'!B5219=\"\",\"\",'Generated list'!B5219)","v":""},{"$f":"IF('Generated list'!C5219=\"\",\"\",'Generated list'!C5219)","v":""},{"$f":"IF('Generated list'!D5219=\"\",\"\",'Generated list'!D5219)","v":""}]
[null,{"$f":"IF('Generated list'!B5220=\"\",\"\",'Generated list'!B5220)","v":""},{"$f":"IF('Generated list'!C5220=\"\",\"\",'Generated list'!C5220)","v":""},{"$f":"IF('Generated list'!D5220=\"\",\"\",'Generated list'!D5220)","v":""}]
[null,{"$f":"IF('Generated list'!B5221=\"\",\"\",'Generated list'!B5221)","v":""},{"$f":"IF('Generated list'!C5221=\"\",\"\",'Generated list'!C5221)","v":""},{"$f":"IF('Generated list'!D5221=\"\",\"\",'Generated list'!D5221)","v":""}]
[null,{"$f":"IF('Generated list'!B5222=\"\",\"\",'Generated list'!B5222)","v":""},{"$f":"IF('Generated list'!C5222=\"\",\"\",'Generated list'!C5222)","v":""},{"$f":"IF('Generated list'!D5222=\"\",\"\",'Generated list'!D5222)","v":""}]
[null,{"$f":"IF('Generated list'!B5223=\"\",\"\",'Generated list'!B5223)","v":""},{"$f":"IF('Generated list'!C5223=\"\",\"\",'Generated list'!C5223)","v":""},{"$f":"IF('Generated list'!D5223=\"\",\"\",'Generated list'!D5223)","v":""}]
[null,{"$f":"IF('Generated list'!B5224=\"\",\"\",'Generated list'!B5224)","v":""},{"$f":"IF('Generated list'!C5224=\"\",\"\",'Generated list'!C5224)","v":""},{"$f":"IF('Generated list'!D5224=\"\",\"\",'Generated list'!D5224)","v":""}]
[null,{"$f":"IF('Generated list'!B5225=\"\",\"\",'Generated list'!B5225)","v":""},{"$f":"IF('Generated list'!C5225=\"\",\"\",'Generated list'!C5225)","v":""},{"$f":"IF('Generated list'!D5225=\"\",\"\",'Generated list'!D5225)","v":""}]
[null,{"$f":"IF('Generated list'!B5226=\"\",\"\",'Generated list'!B5226)","v":""},{"$f":"IF('Generated list'!C5226=\"\",\"\",'Generated list'!C5226)","v":""},{"$f":"IF('Generated list'!D5226=\"\",\"\",'Generated list'!D5226)","v":""}]
[null,{"$f":"IF('Generated list'!B5227=\"\",\"\",'Generated list'!B5227)","v":""},{"$f":"IF('Generated list'!C5227=\"\",\"\",'Generated list'!C5227)","v":""},{"$f":"IF('Generated list'!D5227=\"\",\"\",'Generated list'!D5227)","v":""}]
[null,{"$f":"IF('Generated list'!B5228=\"\",\"\",'Generated list'!B5228)","v":""},{"$f":"IF('Generated list'!C5228=\"\",\"\",'Generated list'!C5228)","v":""},{"$f":"IF('Generated list'!D5228=\"\",\"\",'Generated list'!D5228)","v":""}]
[null,{"$f":"IF('Generated list'!B5229=\"\",\"\",'Generated list'!B5229)","v":""},{"$f":"IF('Generated list'!C5229=\"\",\"\",'Generated list'!C5229)","v":""},{"$f":"IF('Generated list'!D5229=\"\",\"\",'Generated list'!D5229)","v":""}]
[null,{"$f":"IF('Generated list'!B5230=\"\",\"\",'Generated list'!B5230)","v":""},{"$f":"IF('Generated list'!C5230=\"\",\"\",'Generated list'!C5230)","v":""},{"$f":"IF('Generated list'!D5230=\"\",\"\",'Generated list'!D5230)","v":""}]
[null,{"$f":"IF('Generated list'!B5231=\"\",\"\",'Generated list'!B5231)","v":""},{"$f":"IF('Generated list'!C5231=\"\",\"\",'Generated list'!C5231)","v":""},{"$f":"IF('Generated list'!D5231=\"\",\"\",'Generated list'!D5231)","v":""}]
[null,{"$f":"IF('Generated list'!B5232=\"\",\"\",'Generated list'!B5232)","v":""},{"$f":"IF('Generated list'!C5232=\"\",\"\",'Generated list'!C5232)","v":""},{"$f":"IF('Generated list'!D5232=\"\",\"\",'Generated list'!D5232)","v":""}]
[null,{"$f":"IF('Generated list'!B5233=\"\",\"\",'Generated list'!B5233)","v":""},{"$f":"IF('Generated list'!C5233=\"\",\"\",'Generated list'!C5233)","v":""},{"$f":"IF('Generated list'!D5233=\"\",\"\",'Generated list'!D5233)","v":""}]
[null,{"$f":"IF('Generated list'!B5234=\"\",\"\",'Generated list'!B5234)","v":""},{"$f":"IF('Generated list'!C5234=\"\",\"\",'Generated list'!C5234)","v":""},{"$f":"IF('Generated list'!D5234=\"\",\"\",'Generated list'!D5234)","v":""}]
[null,{"$f":"IF('Generated list'!B5235=\"\",\"\",'Generated list'!B5235)","v":""},{"$f":"IF('Generated list'!C5235=\"\",\"\",'Generated list'!C5235)","v":""},{"$f":"IF('Generated list'!D5235=\"\",\"\",'Generated list'!D5235)","v":""}]
[null,{"$f":"IF('Generated list'!B5236=\"\",\"\",'Generated list'!B5236)","v":""},{"$f":"IF('Generated list'!C5236=\"\",\"\",'Generated list'!C5236)","v":""},{"$f":"IF('Generated list'!D5236=\"\",\"\",'Generated list'!D5236)","v":""}]
[null,{"$f":"IF('Generated list'!B5237=\"\",\"\",'Generated list'!B5237)","v":""},{"$f":"IF('Generated list'!C5237=\"\",\"\",'Generated list'!C5237)","v":""},{"$f":"IF('Generated list'!D5237=\"\",\"\",'Generated list'!D5237)","v":""}]
[null,{"$f":"IF('Generated list'!B5238=\"\",\"\",'Generated list'!B5238)","v":""},{"$f":"IF('Generated list'!C5238=\"\",\"\",'Generated list'!C5238)","v":""},{"$f":"IF('Generated list'!D5238=\"\",\"\",'Generated list'!D5238)","v":""}]
[null,{"$f":"IF('Generated list'!B5239=\"\",\"\",'Generated list'!B5239)","v":""},{"$f":"IF('Generated list'!C5239=\"\",\"\",'Generated list'!C5239)","v":""},{"$f":"IF('Generated list'!D5239=\"\",\"\",'Generated list'!D5239)","v":""}]
[null,{"$f":"IF('Generated list'!B5240=\"\",\"\",'Generated list'!B5240)","v":""},{"$f":"IF('Generated list'!C5240=\"\",\"\",'Generated list'!C5240)","v":""},{"$f":"IF('Generated list'!D5240=\"\",\"\",'Generated list'!D5240)","v":""}]
[null,{"$f":"IF('Generated list'!B5241=\"\",\"\",'Generated list'!B5241)","v":""},{"$f":"IF('Generated list'!C5241=\"\",\"\",'Generated list'!C5241)","v":""},{"$f":"IF('Generated list'!D5241=\"\",\"\",'Generated list'!D5241)","v":""}]
[null,{"$f":"IF('Generated list'!B5242=\"\",\"\",'Generated list'!B5242)","v":""},{"$f":"IF('Generated list'!C5242=\"\",\"\",'Generated list'!C5242)","v":""},{"$f":"IF('Generated list'!D5242=\"\",\"\",'Generated list'!D5242)","v":""}]
[null,{"$f":"IF('Generated list'!B5243=\"\",\"\",'Generated list'!B5243)","v":""},{"$f":"IF('Generated list'!C5243=\"\",\"\",'Generated list'!C5243)","v":""},{"$f":"IF('Generated list'!D5243=\"\",\"\",'Generated list'!D5243)","v":""}]
[null,{"$f":"IF('Generated list'!B5244=\"\",\"\",'Generated list'!B5244)","v":""},{"$f":"IF('Generated list'!C5244=\"\",\"\",'Generated list'!C5244)","v":""},{"$f":"IF('Generated list'!D5244=\"\",\"\",'Generated list'!D5244)","v":""}]
[null,{"$f":"IF('Generated list'!B5245=\"\",\"\",'Generated list'!B5245)","v":""},{"$f":"IF('Generated list'!C5245=\"\",\"\",'Generated list'!C5245)","v":""},{"$f":"IF('Generated list'!D5245=\"\",\"\",'Generated list'!D5245)","v":""}]
[null,{"$f":"IF('Generated list'!B5246=\"\",\"\",'Generated list'!B5246)","v":""},{"$f":"IF('Generated list'!C5246=\"\",\"\",'Generated list'!C5246)","v":""},{"$f":"IF('Generated list'!D5246=\"\",\"\",'Generated list'!D5246)","v":""}]
[null,{"$f":"IF('Generated list'!B5247=\"\",\"\",'Generated list'!B5247)","v":""},{"$f":"IF('Generated list'!C5247=\"\",\"\",'Generated list'!C5247)","v":""},{"$f":"IF('Generated list'!D5247=\"\",\"\",'Generated list'!D5247)","v":""}]
[null,{"$f":"IF('Generated list'!B5248=\"\",\"\",'Generated list'!B5248)","v":""},{"$f":"IF('Generated list'!C5248=\"\",\"\",'Generated list'!C5248)","v":""},{"$f":"IF('Generated list'!D5248=\"\",\"\",'Generated list'!D5248)","v":""}]
[null,{"$f":"IF('Generated list'!B5249=\"\",\"\",'Generated list'!B5249)","v":""},{"$f":"IF('Generated list'!C5249=\"\",\"\",'Generated list'!C5249)","v":""},{"$f":"IF('Generated list'!D5249=\"\",\"\",'Generated list'!D5249)","v":""}]
[null,{"$f":"IF('Generated list'!B5250=\"\",\"\",'Generated list'!B5250)","v":""},{"$f":"IF('Generated list'!C5250=\"\",\"\",'Generated list'!C5250)","v":""},{"$f":"IF('Generated list'!D5250=\"\",\"\",'Generated list'!D5250)","v":""}]
[null,{"$f":"IF('Generated list'!B5251=\"\",\"\",'Generated list'!B5251)","v":""},{"$f":"IF('Generated list'!C5251=\"\",\"\",'Generated list'!C5251)","v":""},{"$f":"IF('Generated list'!D5251=\"\",\"\",'Generated list'!D5251)","v":""}]
[null,{"$f":"IF('Generated list'!B5252=\"\",\"\",'Generated list'!B5252)","v":""},{"$f":"IF('Generated list'!C5252=\"\",\"\",'Generated list'!C5252)","v":""},{"$f":"IF('Generated list'!D5252=\"\",\"\",'Generated list'!D5252)","v":""}]
[null,{"$f":"IF('Generated list'!B5253=\"\",\"\",'Generated list'!B5253)","v":""},{"$f":"IF('Generated list'!C5253=\"\",\"\",'Generated list'!C5253)","v":""},{"$f":"IF('Generated list'!D5253=\"\",\"\",'Generated list'!D5253)","v":""}]
[null,{"$f":"IF('Generated list'!B5254=\"\",\"\",'Generated list'!B5254)","v":""},{"$f":"IF('Generated list'!C5254=\"\",\"\",'Generated list'!C5254)","v":""},{"$f":"IF('Generated list'!D5254=\"\",\"\",'Generated list'!D5254)","v":""}]
[null,{"$f":"IF('Generated list'!B5255=\"\",\"\",'Generated list'!B5255)","v":""},{"$f":"IF('Generated list'!C5255=\"\",\"\",'Generated list'!C5255)","v":""},{"$f":"IF('Generated list'!D5255=\"\",\"\",'Generated list'!D5255)","v":""}]
[null,{"$f":"IF('Generated list'!B5256=\"\",\"\",'Generated list'!B5256)","v":""},{"$f":"IF('Generated list'!C5256=\"\",\"\",'Generated list'!C5256)","v":""},{"$f":"IF('Generated list'!D5256=\"\",\"\",'Generated list'!D5256)","v":""}]
[null,{"$f":"IF('Generated list'!B5257=\"\",\"\",'Generated list'!B5257)","v":""},{"$f":"IF('Generated list'!C5257=\"\",\"\",'Generated list'!C5257)","v":""},{"$f":"IF('Generated list'!D5257=\"\",\"\",'Generated list'!D5257)","v":""}]
[null,{"$f":"IF('Generated list'!B5258=\"\",\"\",'Generated list'!B5258)","v":""},{"$f":"IF('Generated list'!C5258=\"\",\"\",'Generated list'!C5258)","v":""},{"$f":"IF('Generated list'!D5258=\"\",\"\",'Generated list'!D5258)","v":""}]
[null,{"$f":"IF('Generated list'!B5259=\"\",\"\",'Generated list'!B5259)","v":""},{"$f":"IF('Generated list'!C5259=\"\",\"\",'Generated list'!C5259)","v":""},{"$f":"IF('Generated list'!D5259=\"\",\"\",'Generated list'!D5259)","v":""}]
[null,{"$f":"IF('Generated list'!B5260=\"\",\"\",'Generated list'!B5260)","v":""},{"$f":"IF('Generated list'!C5260=\"\",\"\",'Generated list'!C5260)","v":""},{"$f":"IF('Generated list'!D5260=\"\",\"\",'Generated list'!D5260)","v":""}]
[null,{"$f":"IF('Generated list'!B5261=\"\",\"\",'Generated list'!B5261)","v":""},{"$f":"IF('Generated list'!C5261=\"\",\"\",'Generated list'!C5261)","v":""},{"$f":"IF('Generated list'!D5261=\"\",\"\",'Generated list'!D5261)","v":""}]
[null,{"$f":"IF('Generated list'!B5262=\"\",\"\",'Generated list'!B5262)","v":""},{"$f":"IF('Generated list'!C5262=\"\",\"\",'Generated list'!C5262)","v":""},{"$f":"IF('Generated list'!D5262=\"\",\"\",'Generated list'!D5262)","v":""}]
[null,{"$f":"IF('Generated list'!B5263=\"\",\"\",'Generated list'!B5263)","v":""},{"$f":"IF('Generated list'!C5263=\"\",\"\",'Generated list'!C5263)","v":""},{"$f":"IF('Generated list'!D5263=\"\",\"\",'Generated list'!D5263)","v":""}]
[null,{"$f":"IF('Generated list'!B5264=\"\",\"\",'Generated list'!B5264)","v":""},{"$f":"IF('Generated list'!C5264=\"\",\"\",'Generated list'!C5264)","v":""},{"$f":"IF('Generated list'!D5264=\"\",\"\",'Generated list'!D5264)","v":""}]
[null,{"$f":"IF('Generated list'!B5265=\"\",\"\",'Generated list'!B5265)","v":""},{"$f":"IF('Generated list'!C5265=\"\",\"\",'Generated list'!C5265)","v":""},{"$f":"IF('Generated list'!D5265=\"\",\"\",'Generated list'!D5265)","v":""}]
[null,{"$f":"IF('Generated list'!B5266=\"\",\"\",'Generated list'!B5266)","v":""},{"$f":"IF('Generated list'!C5266=\"\",\"\",'Generated list'!C5266)","v":""},{"$f":"IF('Generated list'!D5266=\"\",\"\",'Generated list'!D5266)","v":""}]
[null,{"$f":"IF('Generated list'!B5267=\"\",\"\",'Generated list'!B5267)","v":""},{"$f":"IF('Generated list'!C5267=\"\",\"\",'Generated list'!C5267)","v":""},{"$f":"IF('Generated list'!D5267=\"\",\"\",'Generated list'!D5267)","v":""}]
[null,{"$f":"IF('Generated list'!B5268=\"\",\"\",'Generated list'!B5268)","v":""},{"$f":"IF('Generated list'!C5268=\"\",\"\",'Generated list'!C5268)","v":""},{"$f":"IF('Generated list'!D5268=\"\",\"\",'Generated list'!D5268)","v":""}]
[null,{"$f":"IF('Generated list'!B5269=\"\",\"\",'Generated list'!B5269)","v":""},{"$f":"IF('Generated list'!C5269=\"\",\"\",'Generated list'!C5269)","v":""},{"$f":"IF('Generated list'!D5269=\"\",\"\",'Generated list'!D5269)","v":""}]
[null,{"$f":"IF('Generated list'!B5270=\"\",\"\",'Generated list'!B5270)","v":""},{"$f":"IF('Generated list'!C5270=\"\",\"\",'Generated list'!C5270)","v":""},{"$f":"IF('Generated list'!D5270=\"\",\"\",'Generated list'!D5270)","v":""}]
[null,{"$f":"IF('Generated list'!B5271=\"\",\"\",'Generated list'!B5271)","v":""},{"$f":"IF('Generated list'!C5271=\"\",\"\",'Generated list'!C5271)","v":""},{"$f":"IF('Generated list'!D5271=\"\",\"\",'Generated list'!D5271)","v":""}]
[null,{"$f":"IF('Generated list'!B5272=\"\",\"\",'Generated list'!B5272)","v":""},{"$f":"IF('Generated list'!C5272=\"\",\"\",'Generated list'!C5272)","v":""},{"$f":"IF('Generated list'!D5272=\"\",\"\",'Generated list'!D5272)","v":""}]
[null,{"$f":"IF('Generated list'!B5273=\"\",\"\",'Generated list'!B5273)","v":""},{"$f":"IF('Generated list'!C5273=\"\",\"\",'Generated list'!C5273)","v":""},{"$f":"IF('Generated list'!D5273=\"\",\"\",'Generated list'!D5273)","v":""}]
[null,{"$f":"IF('Generated list'!B5274=\"\",\"\",'Generated list'!B5274)","v":""},{"$f":"IF('Generated list'!C5274=\"\",\"\",'Generated list'!C5274)","v":""},{"$f":"IF('Generated list'!D5274=\"\",\"\",'Generated list'!D5274)","v":""}]
[null,{"$f":"IF('Generated list'!B5275=\"\",\"\",'Generated list'!B5275)","v":""},{"$f":"IF('Generated list'!C5275=\"\",\"\",'Generated list'!C5275)","v":""},{"$f":"IF('Generated list'!D5275=\"\",\"\",'Generated list'!D5275)","v":""}]
[null,{"$f":"IF('Generated list'!B5276=\"\",\"\",'Generated list'!B5276)","v":""},{"$f":"IF('Generated list'!C5276=\"\",\"\",'Generated list'!C5276)","v":""},{"$f":"IF('Generated list'!D5276=\"\",\"\",'Generated list'!D5276)","v":""}]
[null,{"$f":"IF('Generated list'!B5277=\"\",\"\",'Generated list'!B5277)","v":""},{"$f":"IF('Generated list'!C5277=\"\",\"\",'Generated list'!C5277)","v":""},{"$f":"IF('Generated list'!D5277=\"\",\"\",'Generated list'!D5277)","v":""}]
[null,{"$f":"IF('Generated list'!B5278=\"\",\"\",'Generated list'!B5278)","v":""},{"$f":"IF('Generated list'!C5278=\"\",\"\",'Generated list'!C5278)","v":""},{"$f":"IF('Generated list'!D5278=\"\",\"\",'Generated list'!D5278)","v":""}]
[null,{"$f":"IF('Generated list'!B5279=\"\",\"\",'Generated list'!B5279)","v":""},{"$f":"IF('Generated list'!C5279=\"\",\"\",'Generated list'!C5279)","v":""},{"$f":"IF('Generated list'!D5279=\"\",\"\",'Generated list'!D5279)","v":""}]
[null,{"$f":"IF('Generated list'!B5280=\"\",\"\",'Generated list'!B5280)","v":""},{"$f":"IF('Generated list'!C5280=\"\",\"\",'Generated list'!C5280)","v":""},{"$f":"IF('Generated list'!D5280=\"\",\"\",'Generated list'!D5280)","v":""}]
[null,{"$f":"IF('Generated list'!B5281=\"\",\"\",'Generated list'!B5281)","v":""},{"$f":"IF('Generated list'!C5281=\"\",\"\",'Generated list'!C5281)","v":""},{"$f":"IF('Generated list'!D5281=\"\",\"\",'Generated list'!D5281)","v":""}]
[null,{"$f":"IF('Generated list'!B5282=\"\",\"\",'Generated list'!B5282)","v":""},{"$f":"IF('Generated list'!C5282=\"\",\"\",'Generated list'!C5282)","v":""},{"$f":"IF('Generated list'!D5282=\"\",\"\",'Generated list'!D5282)","v":""}]
[null,{"$f":"IF('Generated list'!B5283=\"\",\"\",'Generated list'!B5283)","v":""},{"$f":"IF('Generated list'!C5283=\"\",\"\",'Generated list'!C5283)","v":""},{"$f":"IF('Generated list'!D5283=\"\",\"\",'Generated list'!D5283)","v":""}]
[null,{"$f":"IF('Generated list'!B5284=\"\",\"\",'Generated list'!B5284)","v":""},{"$f":"IF('Generated list'!C5284=\"\",\"\",'Generated list'!C5284)","v":""},{"$f":"IF('Generated list'!D5284=\"\",\"\",'Generated list'!D5284)","v":""}]
[null,{"$f":"IF('Generated list'!B5285=\"\",\"\",'Generated list'!B5285)","v":""},{"$f":"IF('Generated list'!C5285=\"\",\"\",'Generated list'!C5285)","v":""},{"$f":"IF('Generated list'!D5285=\"\",\"\",'Generated list'!D5285)","v":""}]
[null,{"$f":"IF('Generated list'!B5286=\"\",\"\",'Generated list'!B5286)","v":""},{"$f":"IF('Generated list'!C5286=\"\",\"\",'Generated list'!C5286)","v":""},{"$f":"IF('Generated list'!D5286=\"\",\"\",'Generated list'!D5286)","v":""}]
[null,{"$f":"IF('Generated list'!B5287=\"\",\"\",'Generated list'!B5287)","v":""},{"$f":"IF('Generated list'!C5287=\"\",\"\",'Generated list'!C5287)","v":""},{"$f":"IF('Generated list'!D5287=\"\",\"\",'Generated list'!D5287)","v":""}]
[null,{"$f":"IF('Generated list'!B5288=\"\",\"\",'Generated list'!B5288)","v":""},{"$f":"IF('Generated list'!C5288=\"\",\"\",'Generated list'!C5288)","v":""},{"$f":"IF('Generated list'!D5288=\"\",\"\",'Generated list'!D5288)","v":""}]
[null,{"$f":"IF('Generated list'!B5289=\"\",\"\",'Generated list'!B5289)","v":""},{"$f":"IF('Generated list'!C5289=\"\",\"\",'Generated list'!C5289)","v":""},{"$f":"IF('Generated list'!D5289=\"\",\"\",'Generated list'!D5289)","v":""}]
[null,{"$f":"IF('Generated list'!B5290=\"\",\"\",'Generated list'!B5290)","v":""},{"$f":"IF('Generated list'!C5290=\"\",\"\",'Generated list'!C5290)","v":""},{"$f":"IF('Generated list'!D5290=\"\",\"\",'Generated list'!D5290)","v":""}]
[null,{"$f":"IF('Generated list'!B5291=\"\",\"\",'Generated list'!B5291)","v":""},{"$f":"IF('Generated list'!C5291=\"\",\"\",'Generated list'!C5291)","v":""},{"$f":"IF('Generated list'!D5291=\"\",\"\",'Generated list'!D5291)","v":""}]
[null,{"$f":"IF('Generated list'!B5292=\"\",\"\",'Generated list'!B5292)","v":""},{"$f":"IF('Generated list'!C5292=\"\",\"\",'Generated list'!C5292)","v":""},{"$f":"IF('Generated list'!D5292=\"\",\"\",'Generated list'!D5292)","v":""}]
[null,{"$f":"IF('Generated list'!B5293=\"\",\"\",'Generated list'!B5293)","v":""},{"$f":"IF('Generated list'!C5293=\"\",\"\",'Generated list'!C5293)","v":""},{"$f":"IF('Generated list'!D5293=\"\",\"\",'Generated list'!D5293)","v":""}]
[null,{"$f":"IF('Generated list'!B5294=\"\",\"\",'Generated list'!B5294)","v":""},{"$f":"IF('Generated list'!C5294=\"\",\"\",'Generated list'!C5294)","v":""},{"$f":"IF('Generated list'!D5294=\"\",\"\",'Generated list'!D5294)","v":""}]
[null,{"$f":"IF('Generated list'!B5295=\"\",\"\",'Generated list'!B5295)","v":""},{"$f":"IF('Generated list'!C5295=\"\",\"\",'Generated list'!C5295)","v":""},{"$f":"IF('Generated list'!D5295=\"\",\"\",'Generated list'!D5295)","v":""}]
[null,{"$f":"IF('Generated list'!B5296=\"\",\"\",'Generated list'!B5296)","v":""},{"$f":"IF('Generated list'!C5296=\"\",\"\",'Generated list'!C5296)","v":""},{"$f":"IF('Generated list'!D5296=\"\",\"\",'Generated list'!D5296)","v":""}]
[null,{"$f":"IF('Generated list'!B5297=\"\",\"\",'Generated list'!B5297)","v":""},{"$f":"IF('Generated list'!C5297=\"\",\"\",'Generated list'!C5297)","v":""},{"$f":"IF('Generated list'!D5297=\"\",\"\",'Generated list'!D5297)","v":""}]
[null,{"$f":"IF('Generated list'!B5298=\"\",\"\",'Generated list'!B5298)","v":""},{"$f":"IF('Generated list'!C5298=\"\",\"\",'Generated list'!C5298)","v":""},{"$f":"IF('Generated list'!D5298=\"\",\"\",'Generated list'!D5298)","v":""}]
[null,{"$f":"IF('Generated list'!B5299=\"\",\"\",'Generated list'!B5299)","v":""},{"$f":"IF('Generated list'!C5299=\"\",\"\",'Generated list'!C5299)","v":""},{"$f":"IF('Generated list'!D5299=\"\",\"\",'Generated list'!D5299)","v":""}]
[null,{"$f":"IF('Generated list'!B5300=\"\",\"\",'Generated list'!B5300)","v":""},{"$f":"IF('Generated list'!C5300=\"\",\"\",'Generated list'!C5300)","v":""},{"$f":"IF('Generated list'!D5300=\"\",\"\",'Generated list'!D5300)","v":""}]
[null,{"$f":"IF('Generated list'!B5301=\"\",\"\",'Generated list'!B5301)","v":""},{"$f":"IF('Generated list'!C5301=\"\",\"\",'Generated list'!C5301)","v":""},{"$f":"IF('Generated list'!D5301=\"\",\"\",'Generated list'!D5301)","v":""}]
[null,{"$f":"IF('Generated list'!B5302=\"\",\"\",'Generated list'!B5302)","v":""},{"$f":"IF('Generated list'!C5302=\"\",\"\",'Generated list'!C5302)","v":""},{"$f":"IF('Generated list'!D5302=\"\",\"\",'Generated list'!D5302)","v":""}]
[null,{"$f":"IF('Generated list'!B5303=\"\",\"\",'Generated list'!B5303)","v":""},{"$f":"IF('Generated list'!C5303=\"\",\"\",'Generated list'!C5303)","v":""},{"$f":"IF('Generated list'!D5303=\"\",\"\",'Generated list'!D5303)","v":""}]
[null,{"$f":"IF('Generated list'!B5304=\"\",\"\",'Generated list'!B5304)","v":""},{"$f":"IF('Generated list'!C5304=\"\",\"\",'Generated list'!C5304)","v":""},{"$f":"IF('Generated list'!D5304=\"\",\"\",'Generated list'!D5304)","v":""}]
[null,{"$f":"IF('Generated list'!B5305=\"\",\"\",'Generated list'!B5305)","v":""},{"$f":"IF('Generated list'!C5305=\"\",\"\",'Generated list'!C5305)","v":""},{"$f":"IF('Generated list'!D5305=\"\",\"\",'Generated list'!D5305)","v":""}]
[null,{"$f":"IF('Generated list'!B5306=\"\",\"\",'Generated list'!B5306)","v":""},{"$f":"IF('Generated list'!C5306=\"\",\"\",'Generated list'!C5306)","v":""},{"$f":"IF('Generated list'!D5306=\"\",\"\",'Generated list'!D5306)","v":""}]
[null,{"$f":"IF('Generated list'!B5307=\"\",\"\",'Generated list'!B5307)","v":""},{"$f":"IF('Generated list'!C5307=\"\",\"\",'Generated list'!C5307)","v":""},{"$f":"IF('Generated list'!D5307=\"\",\"\",'Generated list'!D5307)","v":""}]
[null,{"$f":"IF('Generated list'!B5308=\"\",\"\",'Generated list'!B5308)","v":""},{"$f":"IF('Generated list'!C5308=\"\",\"\",'Generated list'!C5308)","v":""},{"$f":"IF('Generated list'!D5308=\"\",\"\",'Generated list'!D5308)","v":""}]
[null,{"$f":"IF('Generated list'!B5309=\"\",\"\",'Generated list'!B5309)","v":""},{"$f":"IF('Generated list'!C5309=\"\",\"\",'Generated list'!C5309)","v":""},{"$f":"IF('Generated list'!D5309=\"\",\"\",'Generated list'!D5309)","v":""}]
[null,{"$f":"IF('Generated list'!B5310=\"\",\"\",'Generated list'!B5310)","v":""},{"$f":"IF('Generated list'!C5310=\"\",\"\",'Generated list'!C5310)","v":""},{"$f":"IF('Generated list'!D5310=\"\",\"\",'Generated list'!D5310)","v":""}]
[null,{"$f":"IF('Generated list'!B5311=\"\",\"\",'Generated list'!B5311)","v":""},{"$f":"IF('Generated list'!C5311=\"\",\"\",'Generated list'!C5311)","v":""},{"$f":"IF('Generated list'!D5311=\"\",\"\",'Generated list'!D5311)","v":""}]
[null,{"$f":"IF('Generated list'!B5312=\"\",\"\",'Generated list'!B5312)","v":""},{"$f":"IF('Generated list'!C5312=\"\",\"\",'Generated list'!C5312)","v":""},{"$f":"IF('Generated list'!D5312=\"\",\"\",'Generated list'!D5312)","v":""}]
[null,{"$f":"IF('Generated list'!B5313=\"\",\"\",'Generated list'!B5313)","v":""},{"$f":"IF('Generated list'!C5313=\"\",\"\",'Generated list'!C5313)","v":""},{"$f":"IF('Generated list'!D5313=\"\",\"\",'Generated list'!D5313)","v":""}]
[null,{"$f":"IF('Generated list'!B5314=\"\",\"\",'Generated list'!B5314)","v":""},{"$f":"IF('Generated list'!C5314=\"\",\"\",'Generated list'!C5314)","v":""},{"$f":"IF('Generated list'!D5314=\"\",\"\",'Generated list'!D5314)","v":""}]
[null,{"$f":"IF('Generated list'!B5315=\"\",\"\",'Generated list'!B5315)","v":""},{"$f":"IF('Generated list'!C5315=\"\",\"\",'Generated list'!C5315)","v":""},{"$f":"IF('Generated list'!D5315=\"\",\"\",'Generated list'!D5315)","v":""}]
[null,{"$f":"IF('Generated list'!B5316=\"\",\"\",'Generated list'!B5316)","v":""},{"$f":"IF('Generated list'!C5316=\"\",\"\",'Generated list'!C5316)","v":""},{"$f":"IF('Generated list'!D5316=\"\",\"\",'Generated list'!D5316)","v":""}]
[null,{"$f":"IF('Generated list'!B5317=\"\",\"\",'Generated list'!B5317)","v":""},{"$f":"IF('Generated list'!C5317=\"\",\"\",'Generated list'!C5317)","v":""},{"$f":"IF('Generated list'!D5317=\"\",\"\",'Generated list'!D5317)","v":""}]
[null,{"$f":"IF('Generated list'!B5318=\"\",\"\",'Generated list'!B5318)","v":""},{"$f":"IF('Generated list'!C5318=\"\",\"\",'Generated list'!C5318)","v":""},{"$f":"IF('Generated list'!D5318=\"\",\"\",'Generated list'!D5318)","v":""}]
[null,{"$f":"IF('Generated list'!B5319=\"\",\"\",'Generated list'!B5319)","v":""},{"$f":"IF('Generated list'!C5319=\"\",\"\",'Generated list'!C5319)","v":""},{"$f":"IF('Generated list'!D5319=\"\",\"\",'Generated list'!D5319)","v":""}]
[null,{"$f":"IF('Generated list'!B5320=\"\",\"\",'Generated list'!B5320)","v":""},{"$f":"IF('Generated list'!C5320=\"\",\"\",'Generated list'!C5320)","v":""},{"$f":"IF('Generated list'!D5320=\"\",\"\",'Generated list'!D5320)","v":""}]
[null,{"$f":"IF('Generated list'!B5321=\"\",\"\",'Generated list'!B5321)","v":""},{"$f":"IF('Generated list'!C5321=\"\",\"\",'Generated list'!C5321)","v":""},{"$f":"IF('Generated list'!D5321=\"\",\"\",'Generated list'!D5321)","v":""}]
[null,{"$f":"IF('Generated list'!B5322=\"\",\"\",'Generated list'!B5322)","v":""},{"$f":"IF('Generated list'!C5322=\"\",\"\",'Generated list'!C5322)","v":""},{"$f":"IF('Generated list'!D5322=\"\",\"\",'Generated list'!D5322)","v":""}]
[null,{"$f":"IF('Generated list'!B5323=\"\",\"\",'Generated list'!B5323)","v":""},{"$f":"IF('Generated list'!C5323=\"\",\"\",'Generated list'!C5323)","v":""},{"$f":"IF('Generated list'!D5323=\"\",\"\",'Generated list'!D5323)","v":""}]
[null,{"$f":"IF('Generated list'!B5324=\"\",\"\",'Generated list'!B5324)","v":""},{"$f":"IF('Generated list'!C5324=\"\",\"\",'Generated list'!C5324)","v":""},{"$f":"IF('Generated list'!D5324=\"\",\"\",'Generated list'!D5324)","v":""}]
[null,{"$f":"IF('Generated list'!B5325=\"\",\"\",'Generated list'!B5325)","v":""},{"$f":"IF('Generated list'!C5325=\"\",\"\",'Generated list'!C5325)","v":""},{"$f":"IF('Generated list'!D5325=\"\",\"\",'Generated list'!D5325)","v":""}]
[null,{"$f":"IF('Generated list'!B5326=\"\",\"\",'Generated list'!B5326)","v":""},{"$f":"IF('Generated list'!C5326=\"\",\"\",'Generated list'!C5326)","v":""},{"$f":"IF('Generated list'!D5326=\"\",\"\",'Generated list'!D5326)","v":""}]
[null,{"$f":"IF('Generated list'!B5327=\"\",\"\",'Generated list'!B5327)","v":""},{"$f":"IF('Generated list'!C5327=\"\",\"\",'Generated list'!C5327)","v":""},{"$f":"IF('Generated list'!D5327=\"\",\"\",'Generated list'!D5327)","v":""}]
[null,{"$f":"IF('Generated list'!B5328=\"\",\"\",'Generated list'!B5328)","v":""},{"$f":"IF('Generated list'!C5328=\"\",\"\",'Generated list'!C5328)","v":""},{"$f":"IF('Generated list'!D5328=\"\",\"\",'Generated list'!D5328)","v":""}]
[null,{"$f":"IF('Generated list'!B5329=\"\",\"\",'Generated list'!B5329)","v":""},{"$f":"IF('Generated list'!C5329=\"\",\"\",'Generated list'!C5329)","v":""},{"$f":"IF('Generated list'!D5329=\"\",\"\",'Generated list'!D5329)","v":""}]
[null,{"$f":"IF('Generated list'!B5330=\"\",\"\",'Generated list'!B5330)","v":""},{"$f":"IF('Generated list'!C5330=\"\",\"\",'Generated list'!C5330)","v":""},{"$f":"IF('Generated list'!D5330=\"\",\"\",'Generated list'!D5330)","v":""}]
[null,{"$f":"IF('Generated list'!B5331=\"\",\"\",'Generated list'!B5331)","v":""},{"$f":"IF('Generated list'!C5331=\"\",\"\",'Generated list'!C5331)","v":""},{"$f":"IF('Generated list'!D5331=\"\",\"\",'Generated list'!D5331)","v":""}]
[null,{"$f":"IF('Generated list'!B5332=\"\",\"\",'Generated list'!B5332)","v":""},{"$f":"IF('Generated list'!C5332=\"\",\"\",'Generated list'!C5332)","v":""},{"$f":"IF('Generated list'!D5332=\"\",\"\",'Generated list'!D5332)","v":""}]
[null,{"$f":"IF('Generated list'!B5333=\"\",\"\",'Generated list'!B5333)","v":""},{"$f":"IF('Generated list'!C5333=\"\",\"\",'Generated list'!C5333)","v":""},{"$f":"IF('Generated list'!D5333=\"\",\"\",'Generated list'!D5333)","v":""}]
[null,{"$f":"IF('Generated list'!B5334=\"\",\"\",'Generated list'!B5334)","v":""},{"$f":"IF('Generated list'!C5334=\"\",\"\",'Generated list'!C5334)","v":""},{"$f":"IF('Generated list'!D5334=\"\",\"\",'Generated list'!D5334)","v":""}]
[null,{"$f":"IF('Generated list'!B5335=\"\",\"\",'Generated list'!B5335)","v":""},{"$f":"IF('Generated list'!C5335=\"\",\"\",'Generated list'!C5335)","v":""},{"$f":"IF('Generated list'!D5335=\"\",\"\",'Generated list'!D5335)","v":""}]
[null,{"$f":"IF('Generated list'!B5336=\"\",\"\",'Generated list'!B5336)","v":""},{"$f":"IF('Generated list'!C5336=\"\",\"\",'Generated list'!C5336)","v":""},{"$f":"IF('Generated list'!D5336=\"\",\"\",'Generated list'!D5336)","v":""}]
[null,{"$f":"IF('Generated list'!B5337=\"\",\"\",'Generated list'!B5337)","v":""},{"$f":"IF('Generated list'!C5337=\"\",\"\",'Generated list'!C5337)","v":""},{"$f":"IF('Generated list'!D5337=\"\",\"\",'Generated list'!D5337)","v":""}]
[null,{"$f":"IF('Generated list'!B5338=\"\",\"\",'Generated list'!B5338)","v":""},{"$f":"IF('Generated list'!C5338=\"\",\"\",'Generated list'!C5338)","v":""},{"$f":"IF('Generated list'!D5338=\"\",\"\",'Generated list'!D5338)","v":""}]
[null,{"$f":"IF('Generated list'!B5339=\"\",\"\",'Generated list'!B5339)","v":""},{"$f":"IF('Generated list'!C5339=\"\",\"\",'Generated list'!C5339)","v":""},{"$f":"IF('Generated list'!D5339=\"\",\"\",'Generated list'!D5339)","v":""}]
[null,{"$f":"IF('Generated list'!B5340=\"\",\"\",'Generated list'!B5340)","v":""},{"$f":"IF('Generated list'!C5340=\"\",\"\",'Generated list'!C5340)","v":""},{"$f":"IF('Generated list'!D5340=\"\",\"\",'Generated list'!D5340)","v":""}]
[null,{"$f":"IF('Generated list'!B5341=\"\",\"\",'Generated list'!B5341)","v":""},{"$f":"IF('Generated list'!C5341=\"\",\"\",'Generated list'!C5341)","v":""},{"$f":"IF('Generated list'!D5341=\"\",\"\",'Generated list'!D5341)","v":""}]
[null,{"$f":"IF('Generated list'!B5342=\"\",\"\",'Generated list'!B5342)","v":""},{"$f":"IF('Generated list'!C5342=\"\",\"\",'Generated list'!C5342)","v":""},{"$f":"IF('Generated list'!D5342=\"\",\"\",'Generated list'!D5342)","v":""}]
[null,{"$f":"IF('Generated list'!B5343=\"\",\"\",'Generated list'!B5343)","v":""},{"$f":"IF('Generated list'!C5343=\"\",\"\",'Generated list'!C5343)","v":""},{"$f":"IF('Generated list'!D5343=\"\",\"\",'Generated list'!D5343)","v":""}]
[null,{"$f":"IF('Generated list'!B5344=\"\",\"\",'Generated list'!B5344)","v":""},{"$f":"IF('Generated list'!C5344=\"\",\"\",'Generated list'!C5344)","v":""},{"$f":"IF('Generated list'!D5344=\"\",\"\",'Generated list'!D5344)","v":""}]
[null,{"$f":"IF('Generated list'!B5345=\"\",\"\",'Generated list'!B5345)","v":""},{"$f":"IF('Generated list'!C5345=\"\",\"\",'Generated list'!C5345)","v":""},{"$f":"IF('Generated list'!D5345=\"\",\"\",'Generated list'!D5345)","v":""}]
[null,{"$f":"IF('Generated list'!B5346=\"\",\"\",'Generated list'!B5346)","v":""},{"$f":"IF('Generated list'!C5346=\"\",\"\",'Generated list'!C5346)","v":""},{"$f":"IF('Generated list'!D5346=\"\",\"\",'Generated list'!D5346)","v":""}]
[null,{"$f":"IF('Generated list'!B5347=\"\",\"\",'Generated list'!B5347)","v":""},{"$f":"IF('Generated list'!C5347=\"\",\"\",'Generated list'!C5347)","v":""},{"$f":"IF('Generated list'!D5347=\"\",\"\",'Generated list'!D5347)","v":""}]
[null,{"$f":"IF('Generated list'!B5348=\"\",\"\",'Generated list'!B5348)","v":""},{"$f":"IF('Generated list'!C5348=\"\",\"\",'Generated list'!C5348)","v":""},{"$f":"IF('Generated list'!D5348=\"\",\"\",'Generated list'!D5348)","v":""}]
[null,{"$f":"IF('Generated list'!B5349=\"\",\"\",'Generated list'!B5349)","v":""},{"$f":"IF('Generated list'!C5349=\"\",\"\",'Generated list'!C5349)","v":""},{"$f":"IF('Generated list'!D5349=\"\",\"\",'Generated list'!D5349)","v":""}]
[null,{"$f":"IF('Generated list'!B5350=\"\",\"\",'Generated list'!B5350)","v":""},{"$f":"IF('Generated list'!C5350=\"\",\"\",'Generated list'!C5350)","v":""},{"$f":"IF('Generated list'!D5350=\"\",\"\",'Generated list'!D5350)","v":""}]
[null,{"$f":"IF('Generated list'!B5351=\"\",\"\",'Generated list'!B5351)","v":""},{"$f":"IF('Generated list'!C5351=\"\",\"\",'Generated list'!C5351)","v":""},{"$f":"IF('Generated list'!D5351=\"\",\"\",'Generated list'!D5351)","v":""}]
[null,{"$f":"IF('Generated list'!B5352=\"\",\"\",'Generated list'!B5352)","v":""},{"$f":"IF('Generated list'!C5352=\"\",\"\",'Generated list'!C5352)","v":""},{"$f":"IF('Generated list'!D5352=\"\",\"\",'Generated list'!D5352)","v":""}]
[null,{"$f":"IF('Generated list'!B5353=\"\",\"\",'Generated list'!B5353)","v":""},{"$f":"IF('Generated list'!C5353=\"\",\"\",'Generated list'!C5353)","v":""},{"$f":"IF('Generated list'!D5353=\"\",\"\",'Generated list'!D5353)","v":""}]
[null,{"$f":"IF('Generated list'!B5354=\"\",\"\",'Generated list'!B5354)","v":""},{"$f":"IF('Generated list'!C5354=\"\",\"\",'Generated list'!C5354)","v":""},{"$f":"IF('Generated list'!D5354=\"\",\"\",'Generated list'!D5354)","v":""}]
[null,{"$f":"IF('Generated list'!B5355=\"\",\"\",'Generated list'!B5355)","v":""},{"$f":"IF('Generated list'!C5355=\"\",\"\",'Generated list'!C5355)","v":""},{"$f":"IF('Generated list'!D5355=\"\",\"\",'Generated list'!D5355)","v":""}]
[null,{"$f":"IF('Generated list'!B5356=\"\",\"\",'Generated list'!B5356)","v":""},{"$f":"IF('Generated list'!C5356=\"\",\"\",'Generated list'!C5356)","v":""},{"$f":"IF('Generated list'!D5356=\"\",\"\",'Generated list'!D5356)","v":""}]
[null,{"$f":"IF('Generated list'!B5357=\"\",\"\",'Generated list'!B5357)","v":""},{"$f":"IF('Generated list'!C5357=\"\",\"\",'Generated list'!C5357)","v":""},{"$f":"IF('Generated list'!D5357=\"\",\"\",'Generated list'!D5357)","v":""}]
[null,{"$f":"IF('Generated list'!B5358=\"\",\"\",'Generated list'!B5358)","v":""},{"$f":"IF('Generated list'!C5358=\"\",\"\",'Generated list'!C5358)","v":""},{"$f":"IF('Generated list'!D5358=\"\",\"\",'Generated list'!D5358)","v":""}]
[null,{"$f":"IF('Generated list'!B5359=\"\",\"\",'Generated list'!B5359)","v":""},{"$f":"IF('Generated list'!C5359=\"\",\"\",'Generated list'!C5359)","v":""},{"$f":"IF('Generated list'!D5359=\"\",\"\",'Generated list'!D5359)","v":""}]
[null,{"$f":"IF('Generated list'!B5360=\"\",\"\",'Generated list'!B5360)","v":""},{"$f":"IF('Generated list'!C5360=\"\",\"\",'Generated list'!C5360)","v":""},{"$f":"IF('Generated list'!D5360=\"\",\"\",'Generated list'!D5360)","v":""}]
[null,{"$f":"IF('Generated list'!B5361=\"\",\"\",'Generated list'!B5361)","v":""},{"$f":"IF('Generated list'!C5361=\"\",\"\",'Generated list'!C5361)","v":""},{"$f":"IF('Generated list'!D5361=\"\",\"\",'Generated list'!D5361)","v":""}]
[null,{"$f":"IF('Generated list'!B5362=\"\",\"\",'Generated list'!B5362)","v":""},{"$f":"IF('Generated list'!C5362=\"\",\"\",'Generated list'!C5362)","v":""},{"$f":"IF('Generated list'!D5362=\"\",\"\",'Generated list'!D5362)","v":""}]
[null,{"$f":"IF('Generated list'!B5363=\"\",\"\",'Generated list'!B5363)","v":""},{"$f":"IF('Generated list'!C5363=\"\",\"\",'Generated list'!C5363)","v":""},{"$f":"IF('Generated list'!D5363=\"\",\"\",'Generated list'!D5363)","v":""}]
[null,{"$f":"IF('Generated list'!B5364=\"\",\"\",'Generated list'!B5364)","v":""},{"$f":"IF('Generated list'!C5364=\"\",\"\",'Generated list'!C5364)","v":""},{"$f":"IF('Generated list'!D5364=\"\",\"\",'Generated list'!D5364)","v":""}]
[null,{"$f":"IF('Generated list'!B5365=\"\",\"\",'Generated list'!B5365)","v":""},{"$f":"IF('Generated list'!C5365=\"\",\"\",'Generated list'!C5365)","v":""},{"$f":"IF('Generated list'!D5365=\"\",\"\",'Generated list'!D5365)","v":""}]
[null,{"$f":"IF('Generated list'!B5366=\"\",\"\",'Generated list'!B5366)","v":""},{"$f":"IF('Generated list'!C5366=\"\",\"\",'Generated list'!C5366)","v":""},{"$f":"IF('Generated list'!D5366=\"\",\"\",'Generated list'!D5366)","v":""}]
[null,{"$f":"IF('Generated list'!B5367=\"\",\"\",'Generated list'!B5367)","v":""},{"$f":"IF('Generated list'!C5367=\"\",\"\",'Generated list'!C5367)","v":""},{"$f":"IF('Generated list'!D5367=\"\",\"\",'Generated list'!D5367)","v":""}]
[null,{"$f":"IF('Generated list'!B5368=\"\",\"\",'Generated list'!B5368)","v":""},{"$f":"IF('Generated list'!C5368=\"\",\"\",'Generated list'!C5368)","v":""},{"$f":"IF('Generated list'!D5368=\"\",\"\",'Generated list'!D5368)","v":""}]
[null,{"$f":"IF('Generated list'!B5369=\"\",\"\",'Generated list'!B5369)","v":""},{"$f":"IF('Generated list'!C5369=\"\",\"\",'Generated list'!C5369)","v":""},{"$f":"IF('Generated list'!D5369=\"\",\"\",'Generated list'!D5369)","v":""}]
[null,{"$f":"IF('Generated list'!B5370=\"\",\"\",'Generated list'!B5370)","v":""},{"$f":"IF('Generated list'!C5370=\"\",\"\",'Generated list'!C5370)","v":""},{"$f":"IF('Generated list'!D5370=\"\",\"\",'Generated list'!D5370)","v":""}]
[null,{"$f":"IF('Generated list'!B5371=\"\",\"\",'Generated list'!B5371)","v":""},{"$f":"IF('Generated list'!C5371=\"\",\"\",'Generated list'!C5371)","v":""},{"$f":"IF('Generated list'!D5371=\"\",\"\",'Generated list'!D5371)","v":""}]
[null,{"$f":"IF('Generated list'!B5372=\"\",\"\",'Generated list'!B5372)","v":""},{"$f":"IF('Generated list'!C5372=\"\",\"\",'Generated list'!C5372)","v":""},{"$f":"IF('Generated list'!D5372=\"\",\"\",'Generated list'!D5372)","v":""}]
[null,{"$f":"IF('Generated list'!B5373=\"\",\"\",'Generated list'!B5373)","v":""},{"$f":"IF('Generated list'!C5373=\"\",\"\",'Generated list'!C5373)","v":""},{"$f":"IF('Generated list'!D5373=\"\",\"\",'Generated list'!D5373)","v":""}]
[null,{"$f":"IF('Generated list'!B5374=\"\",\"\",'Generated list'!B5374)","v":""},{"$f":"IF('Generated list'!C5374=\"\",\"\",'Generated list'!C5374)","v":""},{"$f":"IF('Generated list'!D5374=\"\",\"\",'Generated list'!D5374)","v":""}]
[null,{"$f":"IF('Generated list'!B5375=\"\",\"\",'Generated list'!B5375)","v":""},{"$f":"IF('Generated list'!C5375=\"\",\"\",'Generated list'!C5375)","v":""},{"$f":"IF('Generated list'!D5375=\"\",\"\",'Generated list'!D5375)","v":""}]
[null,{"$f":"IF('Generated list'!B5376=\"\",\"\",'Generated list'!B5376)","v":""},{"$f":"IF('Generated list'!C5376=\"\",\"\",'Generated list'!C5376)","v":""},{"$f":"IF('Generated list'!D5376=\"\",\"\",'Generated list'!D5376)","v":""}]
[null,{"$f":"IF('Generated list'!B5377=\"\",\"\",'Generated list'!B5377)","v":""},{"$f":"IF('Generated list'!C5377=\"\",\"\",'Generated list'!C5377)","v":""},{"$f":"IF('Generated list'!D5377=\"\",\"\",'Generated list'!D5377)","v":""}]
[null,{"$f":"IF('Generated list'!B5378=\"\",\"\",'Generated list'!B5378)","v":""},{"$f":"IF('Generated list'!C5378=\"\",\"\",'Generated list'!C5378)","v":""},{"$f":"IF('Generated list'!D5378=\"\",\"\",'Generated list'!D5378)","v":""}]
[null,{"$f":"IF('Generated list'!B5379=\"\",\"\",'Generated list'!B5379)","v":""},{"$f":"IF('Generated list'!C5379=\"\",\"\",'Generated list'!C5379)","v":""},{"$f":"IF('Generated list'!D5379=\"\",\"\",'Generated list'!D5379)","v":""}]
[null,{"$f":"IF('Generated list'!B5380=\"\",\"\",'Generated list'!B5380)","v":""},{"$f":"IF('Generated list'!C5380=\"\",\"\",'Generated list'!C5380)","v":""},{"$f":"IF('Generated list'!D5380=\"\",\"\",'Generated list'!D5380)","v":""}]
[null,{"$f":"IF('Generated list'!B5381=\"\",\"\",'Generated list'!B5381)","v":""},{"$f":"IF('Generated list'!C5381=\"\",\"\",'Generated list'!C5381)","v":""},{"$f":"IF('Generated list'!D5381=\"\",\"\",'Generated list'!D5381)","v":""}]
[null,{"$f":"IF('Generated list'!B5382=\"\",\"\",'Generated list'!B5382)","v":""},{"$f":"IF('Generated list'!C5382=\"\",\"\",'Generated list'!C5382)","v":""},{"$f":"IF('Generated list'!D5382=\"\",\"\",'Generated list'!D5382)","v":""}]
[null,{"$f":"IF('Generated list'!B5383=\"\",\"\",'Generated list'!B5383)","v":""},{"$f":"IF('Generated list'!C5383=\"\",\"\",'Generated list'!C5383)","v":""},{"$f":"IF('Generated list'!D5383=\"\",\"\",'Generated list'!D5383)","v":""}]
[null,{"$f":"IF('Generated list'!B5384=\"\",\"\",'Generated list'!B5384)","v":""},{"$f":"IF('Generated list'!C5384=\"\",\"\",'Generated list'!C5384)","v":""},{"$f":"IF('Generated list'!D5384=\"\",\"\",'Generated list'!D5384)","v":""}]
[null,{"$f":"IF('Generated list'!B5385=\"\",\"\",'Generated list'!B5385)","v":""},{"$f":"IF('Generated list'!C5385=\"\",\"\",'Generated list'!C5385)","v":""},{"$f":"IF('Generated list'!D5385=\"\",\"\",'Generated list'!D5385)","v":""}]
[null,{"$f":"IF('Generated list'!B5386=\"\",\"\",'Generated list'!B5386)","v":""},{"$f":"IF('Generated list'!C5386=\"\",\"\",'Generated list'!C5386)","v":""},{"$f":"IF('Generated list'!D5386=\"\",\"\",'Generated list'!D5386)","v":""}]
[null,{"$f":"IF('Generated list'!B5387=\"\",\"\",'Generated list'!B5387)","v":""},{"$f":"IF('Generated list'!C5387=\"\",\"\",'Generated list'!C5387)","v":""},{"$f":"IF('Generated list'!D5387=\"\",\"\",'Generated list'!D5387)","v":""}]
[null,{"$f":"IF('Generated list'!B5388=\"\",\"\",'Generated list'!B5388)","v":""},{"$f":"IF('Generated list'!C5388=\"\",\"\",'Generated list'!C5388)","v":""},{"$f":"IF('Generated list'!D5388=\"\",\"\",'Generated list'!D5388)","v":""}]
[null,{"$f":"IF('Generated list'!B5389=\"\",\"\",'Generated list'!B5389)","v":""},{"$f":"IF('Generated list'!C5389=\"\",\"\",'Generated list'!C5389)","v":""},{"$f":"IF('Generated list'!D5389=\"\",\"\",'Generated list'!D5389)","v":""}]
[null,{"$f":"IF('Generated list'!B5390=\"\",\"\",'Generated list'!B5390)","v":""},{"$f":"IF('Generated list'!C5390=\"\",\"\",'Generated list'!C5390)","v":""},{"$f":"IF('Generated list'!D5390=\"\",\"\",'Generated list'!D5390)","v":""}]
[null,{"$f":"IF('Generated list'!B5391=\"\",\"\",'Generated list'!B5391)","v":""},{"$f":"IF('Generated list'!C5391=\"\",\"\",'Generated list'!C5391)","v":""},{"$f":"IF('Generated list'!D5391=\"\",\"\",'Generated list'!D5391)","v":""}]
[null,{"$f":"IF('Generated list'!B5392=\"\",\"\",'Generated list'!B5392)","v":""},{"$f":"IF('Generated list'!C5392=\"\",\"\",'Generated list'!C5392)","v":""},{"$f":"IF('Generated list'!D5392=\"\",\"\",'Generated list'!D5392)","v":""}]
[null,{"$f":"IF('Generated list'!B5393=\"\",\"\",'Generated list'!B5393)","v":""},{"$f":"IF('Generated list'!C5393=\"\",\"\",'Generated list'!C5393)","v":""},{"$f":"IF('Generated list'!D5393=\"\",\"\",'Generated list'!D5393)","v":""}]
[null,{"$f":"IF('Generated list'!B5394=\"\",\"\",'Generated list'!B5394)","v":""},{"$f":"IF('Generated list'!C5394=\"\",\"\",'Generated list'!C5394)","v":""},{"$f":"IF('Generated list'!D5394=\"\",\"\",'Generated list'!D5394)","v":""}]
[null,{"$f":"IF('Generated list'!B5395=\"\",\"\",'Generated list'!B5395)","v":""},{"$f":"IF('Generated list'!C5395=\"\",\"\",'Generated list'!C5395)","v":""},{"$f":"IF('Generated list'!D5395=\"\",\"\",'Generated list'!D5395)","v":""}]
[null,{"$f":"IF('Generated list'!B5396=\"\",\"\",'Generated list'!B5396)","v":""},{"$f":"IF('Generated list'!C5396=\"\",\"\",'Generated list'!C5396)","v":""},{"$f":"IF('Generated list'!D5396=\"\",\"\",'Generated list'!D5396)","v":""}]
[null,{"$f":"IF('Generated list'!B5397=\"\",\"\",'Generated list'!B5397)","v":""},{"$f":"IF('Generated list'!C5397=\"\",\"\",'Generated list'!C5397)","v":""},{"$f":"IF('Generated list'!D5397=\"\",\"\",'Generated list'!D5397)","v":""}]
[null,{"$f":"IF('Generated list'!B5398=\"\",\"\",'Generated list'!B5398)","v":""},{"$f":"IF('Generated list'!C5398=\"\",\"\",'Generated list'!C5398)","v":""},{"$f":"IF('Generated list'!D5398=\"\",\"\",'Generated list'!D5398)","v":""}]
[null,{"$f":"IF('Generated list'!B5399=\"\",\"\",'Generated list'!B5399)","v":""},{"$f":"IF('Generated list'!C5399=\"\",\"\",'Generated list'!C5399)","v":""},{"$f":"IF('Generated list'!D5399=\"\",\"\",'Generated list'!D5399)","v":""}]
[null,{"$f":"IF('Generated list'!B5400=\"\",\"\",'Generated list'!B5400)","v":""},{"$f":"IF('Generated list'!C5400=\"\",\"\",'Generated list'!C5400)","v":""},{"$f":"IF('Generated list'!D5400=\"\",\"\",'Generated list'!D5400)","v":""}]
[null,{"$f":"IF('Generated list'!B5401=\"\",\"\",'Generated list'!B5401)","v":""},{"$f":"IF('Generated list'!C5401=\"\",\"\",'Generated list'!C5401)","v":""},{"$f":"IF('Generated list'!D5401=\"\",\"\",'Generated list'!D5401)","v":""}]
[null,{"$f":"IF('Generated list'!B5402=\"\",\"\",'Generated list'!B5402)","v":""},{"$f":"IF('Generated list'!C5402=\"\",\"\",'Generated list'!C5402)","v":""},{"$f":"IF('Generated list'!D5402=\"\",\"\",'Generated list'!D5402)","v":""}]
[null,{"$f":"IF('Generated list'!B5403=\"\",\"\",'Generated list'!B5403)","v":""},{"$f":"IF('Generated list'!C5403=\"\",\"\",'Generated list'!C5403)","v":""},{"$f":"IF('Generated list'!D5403=\"\",\"\",'Generated list'!D5403)","v":""}]
[null,{"$f":"IF('Generated list'!B5404=\"\",\"\",'Generated list'!B5404)","v":""},{"$f":"IF('Generated list'!C5404=\"\",\"\",'Generated list'!C5404)","v":""},{"$f":"IF('Generated list'!D5404=\"\",\"\",'Generated list'!D5404)","v":""}]
[null,{"$f":"IF('Generated list'!B5405=\"\",\"\",'Generated list'!B5405)","v":""},{"$f":"IF('Generated list'!C5405=\"\",\"\",'Generated list'!C5405)","v":""},{"$f":"IF('Generated list'!D5405=\"\",\"\",'Generated list'!D5405)","v":""}]
[null,{"$f":"IF('Generated list'!B5406=\"\",\"\",'Generated list'!B5406)","v":""},{"$f":"IF('Generated list'!C5406=\"\",\"\",'Generated list'!C5406)","v":""},{"$f":"IF('Generated list'!D5406=\"\",\"\",'Generated list'!D5406)","v":""}]
[null,{"$f":"IF('Generated list'!B5407=\"\",\"\",'Generated list'!B5407)","v":""},{"$f":"IF('Generated list'!C5407=\"\",\"\",'Generated list'!C5407)","v":""},{"$f":"IF('Generated list'!D5407=\"\",\"\",'Generated list'!D5407)","v":""}]
[null,{"$f":"IF('Generated list'!B5408=\"\",\"\",'Generated list'!B5408)","v":""},{"$f":"IF('Generated list'!C5408=\"\",\"\",'Generated list'!C5408)","v":""},{"$f":"IF('Generated list'!D5408=\"\",\"\",'Generated list'!D5408)","v":""}]
[null,{"$f":"IF('Generated list'!B5409=\"\",\"\",'Generated list'!B5409)","v":""},{"$f":"IF('Generated list'!C5409=\"\",\"\",'Generated list'!C5409)","v":""},{"$f":"IF('Generated list'!D5409=\"\",\"\",'Generated list'!D5409)","v":""}]
[null,{"$f":"IF('Generated list'!B5410=\"\",\"\",'Generated list'!B5410)","v":""},{"$f":"IF('Generated list'!C5410=\"\",\"\",'Generated list'!C5410)","v":""},{"$f":"IF('Generated list'!D5410=\"\",\"\",'Generated list'!D5410)","v":""}]
[null,{"$f":"IF('Generated list'!B5411=\"\",\"\",'Generated list'!B5411)","v":""},{"$f":"IF('Generated list'!C5411=\"\",\"\",'Generated list'!C5411)","v":""},{"$f":"IF('Generated list'!D5411=\"\",\"\",'Generated list'!D5411)","v":""}]
[null,{"$f":"IF('Generated list'!B5412=\"\",\"\",'Generated list'!B5412)","v":""},{"$f":"IF('Generated list'!C5412=\"\",\"\",'Generated list'!C5412)","v":""},{"$f":"IF('Generated list'!D5412=\"\",\"\",'Generated list'!D5412)","v":""}]
[null,{"$f":"IF('Generated list'!B5413=\"\",\"\",'Generated list'!B5413)","v":""},{"$f":"IF('Generated list'!C5413=\"\",\"\",'Generated list'!C5413)","v":""},{"$f":"IF('Generated list'!D5413=\"\",\"\",'Generated list'!D5413)","v":""}]
[null,{"$f":"IF('Generated list'!B5414=\"\",\"\",'Generated list'!B5414)","v":""},{"$f":"IF('Generated list'!C5414=\"\",\"\",'Generated list'!C5414)","v":""},{"$f":"IF('Generated list'!D5414=\"\",\"\",'Generated list'!D5414)","v":""}]
[null,{"$f":"IF('Generated list'!B5415=\"\",\"\",'Generated list'!B5415)","v":""},{"$f":"IF('Generated list'!C5415=\"\",\"\",'Generated list'!C5415)","v":""},{"$f":"IF('Generated list'!D5415=\"\",\"\",'Generated list'!D5415)","v":""}]
[null,{"$f":"IF('Generated list'!B5416=\"\",\"\",'Generated list'!B5416)","v":""},{"$f":"IF('Generated list'!C5416=\"\",\"\",'Generated list'!C5416)","v":""},{"$f":"IF('Generated list'!D5416=\"\",\"\",'Generated list'!D5416)","v":""}]
[null,{"$f":"IF('Generated list'!B5417=\"\",\"\",'Generated list'!B5417)","v":""},{"$f":"IF('Generated list'!C5417=\"\",\"\",'Generated list'!C5417)","v":""},{"$f":"IF('Generated list'!D5417=\"\",\"\",'Generated list'!D5417)","v":""}]
[null,{"$f":"IF('Generated list'!B5418=\"\",\"\",'Generated list'!B5418)","v":""},{"$f":"IF('Generated list'!C5418=\"\",\"\",'Generated list'!C5418)","v":""},{"$f":"IF('Generated list'!D5418=\"\",\"\",'Generated list'!D5418)","v":""}]
[null,{"$f":"IF('Generated list'!B5419=\"\",\"\",'Generated list'!B5419)","v":""},{"$f":"IF('Generated list'!C5419=\"\",\"\",'Generated list'!C5419)","v":""},{"$f":"IF('Generated list'!D5419=\"\",\"\",'Generated list'!D5419)","v":""}]
[null,{"$f":"IF('Generated list'!B5420=\"\",\"\",'Generated list'!B5420)","v":""},{"$f":"IF('Generated list'!C5420=\"\",\"\",'Generated list'!C5420)","v":""},{"$f":"IF('Generated list'!D5420=\"\",\"\",'Generated list'!D5420)","v":""}]
[null,{"$f":"IF('Generated list'!B5421=\"\",\"\",'Generated list'!B5421)","v":""},{"$f":"IF('Generated list'!C5421=\"\",\"\",'Generated list'!C5421)","v":""},{"$f":"IF('Generated list'!D5421=\"\",\"\",'Generated list'!D5421)","v":""}]
[null,{"$f":"IF('Generated list'!B5422=\"\",\"\",'Generated list'!B5422)","v":""},{"$f":"IF('Generated list'!C5422=\"\",\"\",'Generated list'!C5422)","v":""},{"$f":"IF('Generated list'!D5422=\"\",\"\",'Generated list'!D5422)","v":""}]
[null,{"$f":"IF('Generated list'!B5423=\"\",\"\",'Generated list'!B5423)","v":""},{"$f":"IF('Generated list'!C5423=\"\",\"\",'Generated list'!C5423)","v":""},{"$f":"IF('Generated list'!D5423=\"\",\"\",'Generated list'!D5423)","v":""}]
[null,{"$f":"IF('Generated list'!B5424=\"\",\"\",'Generated list'!B5424)","v":""},{"$f":"IF('Generated list'!C5424=\"\",\"\",'Generated list'!C5424)","v":""},{"$f":"IF('Generated list'!D5424=\"\",\"\",'Generated list'!D5424)","v":""}]
[null,{"$f":"IF('Generated list'!B5425=\"\",\"\",'Generated list'!B5425)","v":""},{"$f":"IF('Generated list'!C5425=\"\",\"\",'Generated list'!C5425)","v":""},{"$f":"IF('Generated list'!D5425=\"\",\"\",'Generated list'!D5425)","v":""}]
[null,{"$f":"IF('Generated list'!B5426=\"\",\"\",'Generated list'!B5426)","v":""},{"$f":"IF('Generated list'!C5426=\"\",\"\",'Generated list'!C5426)","v":""},{"$f":"IF('Generated list'!D5426=\"\",\"\",'Generated list'!D5426)","v":""}]
[null,{"$f":"IF('Generated list'!B5427=\"\",\"\",'Generated list'!B5427)","v":""},{"$f":"IF('Generated list'!C5427=\"\",\"\",'Generated list'!C5427)","v":""},{"$f":"IF('Generated list'!D5427=\"\",\"\",'Generated list'!D5427)","v":""}]
[null,{"$f":"IF('Generated list'!B5428=\"\",\"\",'Generated list'!B5428)","v":""},{"$f":"IF('Generated list'!C5428=\"\",\"\",'Generated list'!C5428)","v":""},{"$f":"IF('Generated list'!D5428=\"\",\"\",'Generated list'!D5428)","v":""}]
[null,{"$f":"IF('Generated list'!B5429=\"\",\"\",'Generated list'!B5429)","v":""},{"$f":"IF('Generated list'!C5429=\"\",\"\",'Generated list'!C5429)","v":""},{"$f":"IF('Generated list'!D5429=\"\",\"\",'Generated list'!D5429)","v":""}]
[null,{"$f":"IF('Generated list'!B5430=\"\",\"\",'Generated list'!B5430)","v":""},{"$f":"IF('Generated list'!C5430=\"\",\"\",'Generated list'!C5430)","v":""},{"$f":"IF('Generated list'!D5430=\"\",\"\",'Generated list'!D5430)","v":""}]
[null,{"$f":"IF('Generated list'!B5431=\"\",\"\",'Generated list'!B5431)","v":""},{"$f":"IF('Generated list'!C5431=\"\",\"\",'Generated list'!C5431)","v":""},{"$f":"IF('Generated list'!D5431=\"\",\"\",'Generated list'!D5431)","v":""}]
[null,{"$f":"IF('Generated list'!B5432=\"\",\"\",'Generated list'!B5432)","v":""},{"$f":"IF('Generated list'!C5432=\"\",\"\",'Generated list'!C5432)","v":""},{"$f":"IF('Generated list'!D5432=\"\",\"\",'Generated list'!D5432)","v":""}]
[null,{"$f":"IF('Generated list'!B5433=\"\",\"\",'Generated list'!B5433)","v":""},{"$f":"IF('Generated list'!C5433=\"\",\"\",'Generated list'!C5433)","v":""},{"$f":"IF('Generated list'!D5433=\"\",\"\",'Generated list'!D5433)","v":""}]
[null,{"$f":"IF('Generated list'!B5434=\"\",\"\",'Generated list'!B5434)","v":""},{"$f":"IF('Generated list'!C5434=\"\",\"\",'Generated list'!C5434)","v":""},{"$f":"IF('Generated list'!D5434=\"\",\"\",'Generated list'!D5434)","v":""}]
[null,{"$f":"IF('Generated list'!B5435=\"\",\"\",'Generated list'!B5435)","v":""},{"$f":"IF('Generated list'!C5435=\"\",\"\",'Generated list'!C5435)","v":""},{"$f":"IF('Generated list'!D5435=\"\",\"\",'Generated list'!D5435)","v":""}]
[null,{"$f":"IF('Generated list'!B5436=\"\",\"\",'Generated list'!B5436)","v":""},{"$f":"IF('Generated list'!C5436=\"\",\"\",'Generated list'!C5436)","v":""},{"$f":"IF('Generated list'!D5436=\"\",\"\",'Generated list'!D5436)","v":""}]
[null,{"$f":"IF('Generated list'!B5437=\"\",\"\",'Generated list'!B5437)","v":""},{"$f":"IF('Generated list'!C5437=\"\",\"\",'Generated list'!C5437)","v":""},{"$f":"IF('Generated list'!D5437=\"\",\"\",'Generated list'!D5437)","v":""}]
[null,{"$f":"IF('Generated list'!B5438=\"\",\"\",'Generated list'!B5438)","v":""},{"$f":"IF('Generated list'!C5438=\"\",\"\",'Generated list'!C5438)","v":""},{"$f":"IF('Generated list'!D5438=\"\",\"\",'Generated list'!D5438)","v":""}]
[null,{"$f":"IF('Generated list'!B5439=\"\",\"\",'Generated list'!B5439)","v":""},{"$f":"IF('Generated list'!C5439=\"\",\"\",'Generated list'!C5439)","v":""},{"$f":"IF('Generated list'!D5439=\"\",\"\",'Generated list'!D5439)","v":""}]
[null,{"$f":"IF('Generated list'!B5440=\"\",\"\",'Generated list'!B5440)","v":""},{"$f":"IF('Generated list'!C5440=\"\",\"\",'Generated list'!C5440)","v":""},{"$f":"IF('Generated list'!D5440=\"\",\"\",'Generated list'!D5440)","v":""}]
[null,{"$f":"IF('Generated list'!B5441=\"\",\"\",'Generated list'!B5441)","v":""},{"$f":"IF('Generated list'!C5441=\"\",\"\",'Generated list'!C5441)","v":""},{"$f":"IF('Generated list'!D5441=\"\",\"\",'Generated list'!D5441)","v":""}]
[null,{"$f":"IF('Generated list'!B5442=\"\",\"\",'Generated list'!B5442)","v":""},{"$f":"IF('Generated list'!C5442=\"\",\"\",'Generated list'!C5442)","v":""},{"$f":"IF('Generated list'!D5442=\"\",\"\",'Generated list'!D5442)","v":""}]
[null,{"$f":"IF('Generated list'!B5443=\"\",\"\",'Generated list'!B5443)","v":""},{"$f":"IF('Generated list'!C5443=\"\",\"\",'Generated list'!C5443)","v":""},{"$f":"IF('Generated list'!D5443=\"\",\"\",'Generated list'!D5443)","v":""}]
[null,{"$f":"IF('Generated list'!B5444=\"\",\"\",'Generated list'!B5444)","v":""},{"$f":"IF('Generated list'!C5444=\"\",\"\",'Generated list'!C5444)","v":""},{"$f":"IF('Generated list'!D5444=\"\",\"\",'Generated list'!D5444)","v":""}]
[null,{"$f":"IF('Generated list'!B5445=\"\",\"\",'Generated list'!B5445)","v":""},{"$f":"IF('Generated list'!C5445=\"\",\"\",'Generated list'!C5445)","v":""},{"$f":"IF('Generated list'!D5445=\"\",\"\",'Generated list'!D5445)","v":""}]
[null,{"$f":"IF('Generated list'!B5446=\"\",\"\",'Generated list'!B5446)","v":""},{"$f":"IF('Generated list'!C5446=\"\",\"\",'Generated list'!C5446)","v":""},{"$f":"IF('Generated list'!D5446=\"\",\"\",'Generated list'!D5446)","v":""}]
[null,{"$f":"IF('Generated list'!B5447=\"\",\"\",'Generated list'!B5447)","v":""},{"$f":"IF('Generated list'!C5447=\"\",\"\",'Generated list'!C5447)","v":""},{"$f":"IF('Generated list'!D5447=\"\",\"\",'Generated list'!D5447)","v":""}]
[null,{"$f":"IF('Generated list'!B5448=\"\",\"\",'Generated list'!B5448)","v":""},{"$f":"IF('Generated list'!C5448=\"\",\"\",'Generated list'!C5448)","v":""},{"$f":"IF('Generated list'!D5448=\"\",\"\",'Generated list'!D5448)","v":""}]
[null,{"$f":"IF('Generated list'!B5449=\"\",\"\",'Generated list'!B5449)","v":""},{"$f":"IF('Generated list'!C5449=\"\",\"\",'Generated list'!C5449)","v":""},{"$f":"IF('Generated list'!D5449=\"\",\"\",'Generated list'!D5449)","v":""}]
[null,{"$f":"IF('Generated list'!B5450=\"\",\"\",'Generated list'!B5450)","v":""},{"$f":"IF('Generated list'!C5450=\"\",\"\",'Generated list'!C5450)","v":""},{"$f":"IF('Generated list'!D5450=\"\",\"\",'Generated list'!D5450)","v":""}]
[null,{"$f":"IF('Generated list'!B5451=\"\",\"\",'Generated list'!B5451)","v":""},{"$f":"IF('Generated list'!C5451=\"\",\"\",'Generated list'!C5451)","v":""},{"$f":"IF('Generated list'!D5451=\"\",\"\",'Generated list'!D5451)","v":""}]
[null,{"$f":"IF('Generated list'!B5452=\"\",\"\",'Generated list'!B5452)","v":""},{"$f":"IF('Generated list'!C5452=\"\",\"\",'Generated list'!C5452)","v":""},{"$f":"IF('Generated list'!D5452=\"\",\"\",'Generated list'!D5452)","v":""}]
[null,{"$f":"IF('Generated list'!B5453=\"\",\"\",'Generated list'!B5453)","v":""},{"$f":"IF('Generated list'!C5453=\"\",\"\",'Generated list'!C5453)","v":""},{"$f":"IF('Generated list'!D5453=\"\",\"\",'Generated list'!D5453)","v":""}]
[null,{"$f":"IF('Generated list'!B5454=\"\",\"\",'Generated list'!B5454)","v":""},{"$f":"IF('Generated list'!C5454=\"\",\"\",'Generated list'!C5454)","v":""},{"$f":"IF('Generated list'!D5454=\"\",\"\",'Generated list'!D5454)","v":""}]
[null,{"$f":"IF('Generated list'!B5455=\"\",\"\",'Generated list'!B5455)","v":""},{"$f":"IF('Generated list'!C5455=\"\",\"\",'Generated list'!C5455)","v":""},{"$f":"IF('Generated list'!D5455=\"\",\"\",'Generated list'!D5455)","v":""}]
[null,{"$f":"IF('Generated list'!B5456=\"\",\"\",'Generated list'!B5456)","v":""},{"$f":"IF('Generated list'!C5456=\"\",\"\",'Generated list'!C5456)","v":""},{"$f":"IF('Generated list'!D5456=\"\",\"\",'Generated list'!D5456)","v":""}]
[null,{"$f":"IF('Generated list'!B5457=\"\",\"\",'Generated list'!B5457)","v":""},{"$f":"IF('Generated list'!C5457=\"\",\"\",'Generated list'!C5457)","v":""},{"$f":"IF('Generated list'!D5457=\"\",\"\",'Generated list'!D5457)","v":""}]
[null,{"$f":"IF('Generated list'!B5458=\"\",\"\",'Generated list'!B5458)","v":""},{"$f":"IF('Generated list'!C5458=\"\",\"\",'Generated list'!C5458)","v":""},{"$f":"IF('Generated list'!D5458=\"\",\"\",'Generated list'!D5458)","v":""}]
[null,{"$f":"IF('Generated list'!B5459=\"\",\"\",'Generated list'!B5459)","v":""},{"$f":"IF('Generated list'!C5459=\"\",\"\",'Generated list'!C5459)","v":""},{"$f":"IF('Generated list'!D5459=\"\",\"\",'Generated list'!D5459)","v":""}]
[null,{"$f":"IF('Generated list'!B5460=\"\",\"\",'Generated list'!B5460)","v":""},{"$f":"IF('Generated list'!C5460=\"\",\"\",'Generated list'!C5460)","v":""},{"$f":"IF('Generated list'!D5460=\"\",\"\",'Generated list'!D5460)","v":""}]
[null,{"$f":"IF('Generated list'!B5461=\"\",\"\",'Generated list'!B5461)","v":""},{"$f":"IF('Generated list'!C5461=\"\",\"\",'Generated list'!C5461)","v":""},{"$f":"IF('Generated list'!D5461=\"\",\"\",'Generated list'!D5461)","v":""}]
[null,{"$f":"IF('Generated list'!B5462=\"\",\"\",'Generated list'!B5462)","v":""},{"$f":"IF('Generated list'!C5462=\"\",\"\",'Generated list'!C5462)","v":""},{"$f":"IF('Generated list'!D5462=\"\",\"\",'Generated list'!D5462)","v":""}]
[null,{"$f":"IF('Generated list'!B5463=\"\",\"\",'Generated list'!B5463)","v":""},{"$f":"IF('Generated list'!C5463=\"\",\"\",'Generated list'!C5463)","v":""},{"$f":"IF('Generated list'!D5463=\"\",\"\",'Generated list'!D5463)","v":""}]
[null,{"$f":"IF('Generated list'!B5464=\"\",\"\",'Generated list'!B5464)","v":""},{"$f":"IF('Generated list'!C5464=\"\",\"\",'Generated list'!C5464)","v":""},{"$f":"IF('Generated list'!D5464=\"\",\"\",'Generated list'!D5464)","v":""}]
[null,{"$f":"IF('Generated list'!B5465=\"\",\"\",'Generated list'!B5465)","v":""},{"$f":"IF('Generated list'!C5465=\"\",\"\",'Generated list'!C5465)","v":""},{"$f":"IF('Generated list'!D5465=\"\",\"\",'Generated list'!D5465)","v":""}]
[null,{"$f":"IF('Generated list'!B5466=\"\",\"\",'Generated list'!B5466)","v":""},{"$f":"IF('Generated list'!C5466=\"\",\"\",'Generated list'!C5466)","v":""},{"$f":"IF('Generated list'!D5466=\"\",\"\",'Generated list'!D5466)","v":""}]
[null,{"$f":"IF('Generated list'!B5467=\"\",\"\",'Generated list'!B5467)","v":""},{"$f":"IF('Generated list'!C5467=\"\",\"\",'Generated list'!C5467)","v":""},{"$f":"IF('Generated list'!D5467=\"\",\"\",'Generated list'!D5467)","v":""}]
[null,{"$f":"IF('Generated list'!B5468=\"\",\"\",'Generated list'!B5468)","v":""},{"$f":"IF('Generated list'!C5468=\"\",\"\",'Generated list'!C5468)","v":""},{"$f":"IF('Generated list'!D5468=\"\",\"\",'Generated list'!D5468)","v":""}]
[null,{"$f":"IF('Generated list'!B5469=\"\",\"\",'Generated list'!B5469)","v":""},{"$f":"IF('Generated list'!C5469=\"\",\"\",'Generated list'!C5469)","v":""},{"$f":"IF('Generated list'!D5469=\"\",\"\",'Generated list'!D5469)","v":""}]
[null,{"$f":"IF('Generated list'!B5470=\"\",\"\",'Generated list'!B5470)","v":""},{"$f":"IF('Generated list'!C5470=\"\",\"\",'Generated list'!C5470)","v":""},{"$f":"IF('Generated list'!D5470=\"\",\"\",'Generated list'!D5470)","v":""}]
[null,{"$f":"IF('Generated list'!B5471=\"\",\"\",'Generated list'!B5471)","v":""},{"$f":"IF('Generated list'!C5471=\"\",\"\",'Generated list'!C5471)","v":""},{"$f":"IF('Generated list'!D5471=\"\",\"\",'Generated list'!D5471)","v":""}]
[null,{"$f":"IF('Generated list'!B5472=\"\",\"\",'Generated list'!B5472)","v":""},{"$f":"IF('Generated list'!C5472=\"\",\"\",'Generated list'!C5472)","v":""},{"$f":"IF('Generated list'!D5472=\"\",\"\",'Generated list'!D5472)","v":""}]
[null,{"$f":"IF('Generated list'!B5473=\"\",\"\",'Generated list'!B5473)","v":""},{"$f":"IF('Generated list'!C5473=\"\",\"\",'Generated list'!C5473)","v":""},{"$f":"IF('Generated list'!D5473=\"\",\"\",'Generated list'!D5473)","v":""}]
[null,{"$f":"IF('Generated list'!B5474=\"\",\"\",'Generated list'!B5474)","v":""},{"$f":"IF('Generated list'!C5474=\"\",\"\",'Generated list'!C5474)","v":""},{"$f":"IF('Generated list'!D5474=\"\",\"\",'Generated list'!D5474)","v":""}]
[null,{"$f":"IF('Generated list'!B5475=\"\",\"\",'Generated list'!B5475)","v":""},{"$f":"IF('Generated list'!C5475=\"\",\"\",'Generated list'!C5475)","v":""},{"$f":"IF('Generated list'!D5475=\"\",\"\",'Generated list'!D5475)","v":""}]
[null,{"$f":"IF('Generated list'!B5476=\"\",\"\",'Generated list'!B5476)","v":""},{"$f":"IF('Generated list'!C5476=\"\",\"\",'Generated list'!C5476)","v":""},{"$f":"IF('Generated list'!D5476=\"\",\"\",'Generated list'!D5476)","v":""}]
[null,{"$f":"IF('Generated list'!B5477=\"\",\"\",'Generated list'!B5477)","v":""},{"$f":"IF('Generated list'!C5477=\"\",\"\",'Generated list'!C5477)","v":""},{"$f":"IF('Generated list'!D5477=\"\",\"\",'Generated list'!D5477)","v":""}]
[null,{"$f":"IF('Generated list'!B5478=\"\",\"\",'Generated list'!B5478)","v":""},{"$f":"IF('Generated list'!C5478=\"\",\"\",'Generated list'!C5478)","v":""},{"$f":"IF('Generated list'!D5478=\"\",\"\",'Generated list'!D5478)","v":""}]
[null,{"$f":"IF('Generated list'!B5479=\"\",\"\",'Generated list'!B5479)","v":""},{"$f":"IF('Generated list'!C5479=\"\",\"\",'Generated list'!C5479)","v":""},{"$f":"IF('Generated list'!D5479=\"\",\"\",'Generated list'!D5479)","v":""}]
[null,{"$f":"IF('Generated list'!B5480=\"\",\"\",'Generated list'!B5480)","v":""},{"$f":"IF('Generated list'!C5480=\"\",\"\",'Generated list'!C5480)","v":""},{"$f":"IF('Generated list'!D5480=\"\",\"\",'Generated list'!D5480)","v":""}]
[null,{"$f":"IF('Generated list'!B5481=\"\",\"\",'Generated list'!B5481)","v":""},{"$f":"IF('Generated list'!C5481=\"\",\"\",'Generated list'!C5481)","v":""},{"$f":"IF('Generated list'!D5481=\"\",\"\",'Generated list'!D5481)","v":""}]
[null,{"$f":"IF('Generated list'!B5482=\"\",\"\",'Generated list'!B5482)","v":""},{"$f":"IF('Generated list'!C5482=\"\",\"\",'Generated list'!C5482)","v":""},{"$f":"IF('Generated list'!D5482=\"\",\"\",'Generated list'!D5482)","v":""}]
[null,{"$f":"IF('Generated list'!B5483=\"\",\"\",'Generated list'!B5483)","v":""},{"$f":"IF('Generated list'!C5483=\"\",\"\",'Generated list'!C5483)","v":""},{"$f":"IF('Generated list'!D5483=\"\",\"\",'Generated list'!D5483)","v":""}]
[null,{"$f":"IF('Generated list'!B5484=\"\",\"\",'Generated list'!B5484)","v":""},{"$f":"IF('Generated list'!C5484=\"\",\"\",'Generated list'!C5484)","v":""},{"$f":"IF('Generated list'!D5484=\"\",\"\",'Generated list'!D5484)","v":""}]
[null,{"$f":"IF('Generated list'!B5485=\"\",\"\",'Generated list'!B5485)","v":""},{"$f":"IF('Generated list'!C5485=\"\",\"\",'Generated list'!C5485)","v":""},{"$f":"IF('Generated list'!D5485=\"\",\"\",'Generated list'!D5485)","v":""}]
[null,{"$f":"IF('Generated list'!B5486=\"\",\"\",'Generated list'!B5486)","v":""},{"$f":"IF('Generated list'!C5486=\"\",\"\",'Generated list'!C5486)","v":""},{"$f":"IF('Generated list'!D5486=\"\",\"\",'Generated list'!D5486)","v":""}]
[null,{"$f":"IF('Generated list'!B5487=\"\",\"\",'Generated list'!B5487)","v":""},{"$f":"IF('Generated list'!C5487=\"\",\"\",'Generated list'!C5487)","v":""},{"$f":"IF('Generated list'!D5487=\"\",\"\",'Generated list'!D5487)","v":""}]
[null,{"$f":"IF('Generated list'!B5488=\"\",\"\",'Generated list'!B5488)","v":""},{"$f":"IF('Generated list'!C5488=\"\",\"\",'Generated list'!C5488)","v":""},{"$f":"IF('Generated list'!D5488=\"\",\"\",'Generated list'!D5488)","v":""}]
[null,{"$f":"IF('Generated list'!B5489=\"\",\"\",'Generated list'!B5489)","v":""},{"$f":"IF('Generated list'!C5489=\"\",\"\",'Generated list'!C5489)","v":""},{"$f":"IF('Generated list'!D5489=\"\",\"\",'Generated list'!D5489)","v":""}]
[null,{"$f":"IF('Generated list'!B5490=\"\",\"\",'Generated list'!B5490)","v":""},{"$f":"IF('Generated list'!C5490=\"\",\"\",'Generated list'!C5490)","v":""},{"$f":"IF('Generated list'!D5490=\"\",\"\",'Generated list'!D5490)","v":""}]
[null,{"$f":"IF('Generated list'!B5491=\"\",\"\",'Generated list'!B5491)","v":""},{"$f":"IF('Generated list'!C5491=\"\",\"\",'Generated list'!C5491)","v":""},{"$f":"IF('Generated list'!D5491=\"\",\"\",'Generated list'!D5491)","v":""}]
[null,{"$f":"IF('Generated list'!B5492=\"\",\"\",'Generated list'!B5492)","v":""},{"$f":"IF('Generated list'!C5492=\"\",\"\",'Generated list'!C5492)","v":""},{"$f":"IF('Generated list'!D5492=\"\",\"\",'Generated list'!D5492)","v":""}]
[null,{"$f":"IF('Generated list'!B5493=\"\",\"\",'Generated list'!B5493)","v":""},{"$f":"IF('Generated list'!C5493=\"\",\"\",'Generated list'!C5493)","v":""},{"$f":"IF('Generated list'!D5493=\"\",\"\",'Generated list'!D5493)","v":""}]
[null,{"$f":"IF('Generated list'!B5494=\"\",\"\",'Generated list'!B5494)","v":""},{"$f":"IF('Generated list'!C5494=\"\",\"\",'Generated list'!C5494)","v":""},{"$f":"IF('Generated list'!D5494=\"\",\"\",'Generated list'!D5494)","v":""}]
[null,{"$f":"IF('Generated list'!B5495=\"\",\"\",'Generated list'!B5495)","v":""},{"$f":"IF('Generated list'!C5495=\"\",\"\",'Generated list'!C5495)","v":""},{"$f":"IF('Generated list'!D5495=\"\",\"\",'Generated list'!D5495)","v":""}]
[null,{"$f":"IF('Generated list'!B5496=\"\",\"\",'Generated list'!B5496)","v":""},{"$f":"IF('Generated list'!C5496=\"\",\"\",'Generated list'!C5496)","v":""},{"$f":"IF('Generated list'!D5496=\"\",\"\",'Generated list'!D5496)","v":""}]
[null,{"$f":"IF('Generated list'!B5497=\"\",\"\",'Generated list'!B5497)","v":""},{"$f":"IF('Generated list'!C5497=\"\",\"\",'Generated list'!C5497)","v":""},{"$f":"IF('Generated list'!D5497=\"\",\"\",'Generated list'!D5497)","v":""}]
[null,{"$f":"IF('Generated list'!B5498=\"\",\"\",'Generated list'!B5498)","v":""},{"$f":"IF('Generated list'!C5498=\"\",\"\",'Generated list'!C5498)","v":""},{"$f":"IF('Generated list'!D5498=\"\",\"\",'Generated list'!D5498)","v":""}]
[null,{"$f":"IF('Generated list'!B5499=\"\",\"\",'Generated list'!B5499)","v":""},{"$f":"IF('Generated list'!C5499=\"\",\"\",'Generated list'!C5499)","v":""},{"$f":"IF('Generated list'!D5499=\"\",\"\",'Generated list'!D5499)","v":""}]
[null,{"$f":"IF('Generated list'!B5500=\"\",\"\",'Generated list'!B5500)","v":""},{"$f":"IF('Generated list'!C5500=\"\",\"\",'Generated list'!C5500)","v":""},{"$f":"IF('Generated list'!D5500=\"\",\"\",'Generated list'!D5500)","v":""}]
[null,{"$f":"IF('Generated list'!B5501=\"\",\"\",'Generated list'!B5501)","v":""},{"$f":"IF('Generated list'!C5501=\"\",\"\",'Generated list'!C5501)","v":""},{"$f":"IF('Generated list'!D5501=\"\",\"\",'Generated list'!D5501)","v":""}]
[null,{"$f":"IF('Generated list'!B5502=\"\",\"\",'Generated list'!B5502)","v":""},{"$f":"IF('Generated list'!C5502=\"\",\"\",'Generated list'!C5502)","v":""},{"$f":"IF('Generated list'!D5502=\"\",\"\",'Generated list'!D5502)","v":""}]
[null,{"$f":"IF('Generated list'!B5503=\"\",\"\",'Generated list'!B5503)","v":""},{"$f":"IF('Generated list'!C5503=\"\",\"\",'Generated list'!C5503)","v":""},{"$f":"IF('Generated list'!D5503=\"\",\"\",'Generated list'!D5503)","v":""}]
[null,{"$f":"IF('Generated list'!B5504=\"\",\"\",'Generated list'!B5504)","v":""},{"$f":"IF('Generated list'!C5504=\"\",\"\",'Generated list'!C5504)","v":""},{"$f":"IF('Generated list'!D5504=\"\",\"\",'Generated list'!D5504)","v":""}]
[null,{"$f":"IF('Generated list'!B5505=\"\",\"\",'Generated list'!B5505)","v":""},{"$f":"IF('Generated list'!C5505=\"\",\"\",'Generated list'!C5505)","v":""},{"$f":"IF('Generated list'!D5505=\"\",\"\",'Generated list'!D5505)","v":""}]
[null,{"$f":"IF('Generated list'!B5506=\"\",\"\",'Generated list'!B5506)","v":""},{"$f":"IF('Generated list'!C5506=\"\",\"\",'Generated list'!C5506)","v":""},{"$f":"IF('Generated list'!D5506=\"\",\"\",'Generated list'!D5506)","v":""}]
[null,{"$f":"IF('Generated list'!B5507=\"\",\"\",'Generated list'!B5507)","v":""},{"$f":"IF('Generated list'!C5507=\"\",\"\",'Generated list'!C5507)","v":""},{"$f":"IF('Generated list'!D5507=\"\",\"\",'Generated list'!D5507)","v":""}]
[null,{"$f":"IF('Generated list'!B5508=\"\",\"\",'Generated list'!B5508)","v":""},{"$f":"IF('Generated list'!C5508=\"\",\"\",'Generated list'!C5508)","v":""},{"$f":"IF('Generated list'!D5508=\"\",\"\",'Generated list'!D5508)","v":""}]
[null,{"$f":"IF('Generated list'!B5509=\"\",\"\",'Generated list'!B5509)","v":""},{"$f":"IF('Generated list'!C5509=\"\",\"\",'Generated list'!C5509)","v":""},{"$f":"IF('Generated list'!D5509=\"\",\"\",'Generated list'!D5509)","v":""}]
[null,{"$f":"IF('Generated list'!B5510=\"\",\"\",'Generated list'!B5510)","v":""},{"$f":"IF('Generated list'!C5510=\"\",\"\",'Generated list'!C5510)","v":""},{"$f":"IF('Generated list'!D5510=\"\",\"\",'Generated list'!D5510)","v":""}]
[null,{"$f":"IF('Generated list'!B5511=\"\",\"\",'Generated list'!B5511)","v":""},{"$f":"IF('Generated list'!C5511=\"\",\"\",'Generated list'!C5511)","v":""},{"$f":"IF('Generated list'!D5511=\"\",\"\",'Generated list'!D5511)","v":""}]
[null,{"$f":"IF('Generated list'!B5512=\"\",\"\",'Generated list'!B5512)","v":""},{"$f":"IF('Generated list'!C5512=\"\",\"\",'Generated list'!C5512)","v":""},{"$f":"IF('Generated list'!D5512=\"\",\"\",'Generated list'!D5512)","v":""}]
[null,{"$f":"IF('Generated list'!B5513=\"\",\"\",'Generated list'!B5513)","v":""},{"$f":"IF('Generated list'!C5513=\"\",\"\",'Generated list'!C5513)","v":""},{"$f":"IF('Generated list'!D5513=\"\",\"\",'Generated list'!D5513)","v":""}]
[null,{"$f":"IF('Generated list'!B5514=\"\",\"\",'Generated list'!B5514)","v":""},{"$f":"IF('Generated list'!C5514=\"\",\"\",'Generated list'!C5514)","v":""},{"$f":"IF('Generated list'!D5514=\"\",\"\",'Generated list'!D5514)","v":""}]
[null,{"$f":"IF('Generated list'!B5515=\"\",\"\",'Generated list'!B5515)","v":""},{"$f":"IF('Generated list'!C5515=\"\",\"\",'Generated list'!C5515)","v":""},{"$f":"IF('Generated list'!D5515=\"\",\"\",'Generated list'!D5515)","v":""}]
[null,{"$f":"IF('Generated list'!B5516=\"\",\"\",'Generated list'!B5516)","v":""},{"$f":"IF('Generated list'!C5516=\"\",\"\",'Generated list'!C5516)","v":""},{"$f":"IF('Generated list'!D5516=\"\",\"\",'Generated list'!D5516)","v":""}]
[null,{"$f":"IF('Generated list'!B5517=\"\",\"\",'Generated list'!B5517)","v":""},{"$f":"IF('Generated list'!C5517=\"\",\"\",'Generated list'!C5517)","v":""},{"$f":"IF('Generated list'!D5517=\"\",\"\",'Generated list'!D5517)","v":""}]
[null,{"$f":"IF('Generated list'!B5518=\"\",\"\",'Generated list'!B5518)","v":""},{"$f":"IF('Generated list'!C5518=\"\",\"\",'Generated list'!C5518)","v":""},{"$f":"IF('Generated list'!D5518=\"\",\"\",'Generated list'!D5518)","v":""}]
[null,{"$f":"IF('Generated list'!B5519=\"\",\"\",'Generated list'!B5519)","v":""},{"$f":"IF('Generated list'!C5519=\"\",\"\",'Generated list'!C5519)","v":""},{"$f":"IF('Generated list'!D5519=\"\",\"\",'Generated list'!D5519)","v":""}]
[null,{"$f":"IF('Generated list'!B5520=\"\",\"\",'Generated list'!B5520)","v":""},{"$f":"IF('Generated list'!C5520=\"\",\"\",'Generated list'!C5520)","v":""},{"$f":"IF('Generated list'!D5520=\"\",\"\",'Generated list'!D5520)","v":""}]
[null,{"$f":"IF('Generated list'!B5521=\"\",\"\",'Generated list'!B5521)","v":""},{"$f":"IF('Generated list'!C5521=\"\",\"\",'Generated list'!C5521)","v":""},{"$f":"IF('Generated list'!D5521=\"\",\"\",'Generated list'!D5521)","v":""}]
[null,{"$f":"IF('Generated list'!B5522=\"\",\"\",'Generated list'!B5522)","v":""},{"$f":"IF('Generated list'!C5522=\"\",\"\",'Generated list'!C5522)","v":""},{"$f":"IF('Generated list'!D5522=\"\",\"\",'Generated list'!D5522)","v":""}]
[null,{"$f":"IF('Generated list'!B5523=\"\",\"\",'Generated list'!B5523)","v":""},{"$f":"IF('Generated list'!C5523=\"\",\"\",'Generated list'!C5523)","v":""},{"$f":"IF('Generated list'!D5523=\"\",\"\",'Generated list'!D5523)","v":""}]
[null,{"$f":"IF('Generated list'!B5524=\"\",\"\",'Generated list'!B5524)","v":""},{"$f":"IF('Generated list'!C5524=\"\",\"\",'Generated list'!C5524)","v":""},{"$f":"IF('Generated list'!D5524=\"\",\"\",'Generated list'!D5524)","v":""}]
[null,{"$f":"IF('Generated list'!B5525=\"\",\"\",'Generated list'!B5525)","v":""},{"$f":"IF('Generated list'!C5525=\"\",\"\",'Generated list'!C5525)","v":""},{"$f":"IF('Generated list'!D5525=\"\",\"\",'Generated list'!D5525)","v":""}]
[null,{"$f":"IF('Generated list'!B5526=\"\",\"\",'Generated list'!B5526)","v":""},{"$f":"IF('Generated list'!C5526=\"\",\"\",'Generated list'!C5526)","v":""},{"$f":"IF('Generated list'!D5526=\"\",\"\",'Generated list'!D5526)","v":""}]
[null,{"$f":"IF('Generated list'!B5527=\"\",\"\",'Generated list'!B5527)","v":""},{"$f":"IF('Generated list'!C5527=\"\",\"\",'Generated list'!C5527)","v":""},{"$f":"IF('Generated list'!D5527=\"\",\"\",'Generated list'!D5527)","v":""}]
[null,{"$f":"IF('Generated list'!B5528=\"\",\"\",'Generated list'!B5528)","v":""},{"$f":"IF('Generated list'!C5528=\"\",\"\",'Generated list'!C5528)","v":""},{"$f":"IF('Generated list'!D5528=\"\",\"\",'Generated list'!D5528)","v":""}]
[null,{"$f":"IF('Generated list'!B5529=\"\",\"\",'Generated list'!B5529)","v":""},{"$f":"IF('Generated list'!C5529=\"\",\"\",'Generated list'!C5529)","v":""},{"$f":"IF('Generated list'!D5529=\"\",\"\",'Generated list'!D5529)","v":""}]
[null,{"$f":"IF('Generated list'!B5530=\"\",\"\",'Generated list'!B5530)","v":""},{"$f":"IF('Generated list'!C5530=\"\",\"\",'Generated list'!C5530)","v":""},{"$f":"IF('Generated list'!D5530=\"\",\"\",'Generated list'!D5530)","v":""}]
[null,{"$f":"IF('Generated list'!B5531=\"\",\"\",'Generated list'!B5531)","v":""},{"$f":"IF('Generated list'!C5531=\"\",\"\",'Generated list'!C5531)","v":""},{"$f":"IF('Generated list'!D5531=\"\",\"\",'Generated list'!D5531)","v":""}]
[null,{"$f":"IF('Generated list'!B5532=\"\",\"\",'Generated list'!B5532)","v":""},{"$f":"IF('Generated list'!C5532=\"\",\"\",'Generated list'!C5532)","v":""},{"$f":"IF('Generated list'!D5532=\"\",\"\",'Generated list'!D5532)","v":""}]
[null,{"$f":"IF('Generated list'!B5533=\"\",\"\",'Generated list'!B5533)","v":""},{"$f":"IF('Generated list'!C5533=\"\",\"\",'Generated list'!C5533)","v":""},{"$f":"IF('Generated list'!D5533=\"\",\"\",'Generated list'!D5533)","v":""}]
[null,{"$f":"IF('Generated list'!B5534=\"\",\"\",'Generated list'!B5534)","v":""},{"$f":"IF('Generated list'!C5534=\"\",\"\",'Generated list'!C5534)","v":""},{"$f":"IF('Generated list'!D5534=\"\",\"\",'Generated list'!D5534)","v":""}]
[null,{"$f":"IF('Generated list'!B5535=\"\",\"\",'Generated list'!B5535)","v":""},{"$f":"IF('Generated list'!C5535=\"\",\"\",'Generated list'!C5535)","v":""},{"$f":"IF('Generated list'!D5535=\"\",\"\",'Generated list'!D5535)","v":""}]
[null,{"$f":"IF('Generated list'!B5536=\"\",\"\",'Generated list'!B5536)","v":""},{"$f":"IF('Generated list'!C5536=\"\",\"\",'Generated list'!C5536)","v":""},{"$f":"IF('Generated list'!D5536=\"\",\"\",'Generated list'!D5536)","v":""}]
[null,{"$f":"IF('Generated list'!B5537=\"\",\"\",'Generated list'!B5537)","v":""},{"$f":"IF('Generated list'!C5537=\"\",\"\",'Generated list'!C5537)","v":""},{"$f":"IF('Generated list'!D5537=\"\",\"\",'Generated list'!D5537)","v":""}]
[null,{"$f":"IF('Generated list'!B5538=\"\",\"\",'Generated list'!B5538)","v":""},{"$f":"IF('Generated list'!C5538=\"\",\"\",'Generated list'!C5538)","v":""},{"$f":"IF('Generated list'!D5538=\"\",\"\",'Generated list'!D5538)","v":""}]
[null,{"$f":"IF('Generated list'!B5539=\"\",\"\",'Generated list'!B5539)","v":""},{"$f":"IF('Generated list'!C5539=\"\",\"\",'Generated list'!C5539)","v":""},{"$f":"IF('Generated list'!D5539=\"\",\"\",'Generated list'!D5539)","v":""}]
[null,{"$f":"IF('Generated list'!B5540=\"\",\"\",'Generated list'!B5540)","v":""},{"$f":"IF('Generated list'!C5540=\"\",\"\",'Generated list'!C5540)","v":""},{"$f":"IF('Generated list'!D5540=\"\",\"\",'Generated list'!D5540)","v":""}]
[null,{"$f":"IF('Generated list'!B5541=\"\",\"\",'Generated list'!B5541)","v":""},{"$f":"IF('Generated list'!C5541=\"\",\"\",'Generated list'!C5541)","v":""},{"$f":"IF('Generated list'!D5541=\"\",\"\",'Generated list'!D5541)","v":""}]
[null,{"$f":"IF('Generated list'!B5542=\"\",\"\",'Generated list'!B5542)","v":""},{"$f":"IF('Generated list'!C5542=\"\",\"\",'Generated list'!C5542)","v":""},{"$f":"IF('Generated list'!D5542=\"\",\"\",'Generated list'!D5542)","v":""}]
[null,{"$f":"IF('Generated list'!B5543=\"\",\"\",'Generated list'!B5543)","v":""},{"$f":"IF('Generated list'!C5543=\"\",\"\",'Generated list'!C5543)","v":""},{"$f":"IF('Generated list'!D5543=\"\",\"\",'Generated list'!D5543)","v":""}]
[null,{"$f":"IF('Generated list'!B5544=\"\",\"\",'Generated list'!B5544)","v":""},{"$f":"IF('Generated list'!C5544=\"\",\"\",'Generated list'!C5544)","v":""},{"$f":"IF('Generated list'!D5544=\"\",\"\",'Generated list'!D5544)","v":""}]
[null,{"$f":"IF('Generated list'!B5545=\"\",\"\",'Generated list'!B5545)","v":""},{"$f":"IF('Generated list'!C5545=\"\",\"\",'Generated list'!C5545)","v":""},{"$f":"IF('Generated list'!D5545=\"\",\"\",'Generated list'!D5545)","v":""}]
[null,{"$f":"IF('Generated list'!B5546=\"\",\"\",'Generated list'!B5546)","v":""},{"$f":"IF('Generated list'!C5546=\"\",\"\",'Generated list'!C5546)","v":""},{"$f":"IF('Generated list'!D5546=\"\",\"\",'Generated list'!D5546)","v":""}]
[null,{"$f":"IF('Generated list'!B5547=\"\",\"\",'Generated list'!B5547)","v":""},{"$f":"IF('Generated list'!C5547=\"\",\"\",'Generated list'!C5547)","v":""},{"$f":"IF('Generated list'!D5547=\"\",\"\",'Generated list'!D5547)","v":""}]
[null,{"$f":"IF('Generated list'!B5548=\"\",\"\",'Generated list'!B5548)","v":""},{"$f":"IF('Generated list'!C5548=\"\",\"\",'Generated list'!C5548)","v":""},{"$f":"IF('Generated list'!D5548=\"\",\"\",'Generated list'!D5548)","v":""}]
[null,{"$f":"IF('Generated list'!B5549=\"\",\"\",'Generated list'!B5549)","v":""},{"$f":"IF('Generated list'!C5549=\"\",\"\",'Generated list'!C5549)","v":""},{"$f":"IF('Generated list'!D5549=\"\",\"\",'Generated list'!D5549)","v":""}]
[null,{"$f":"IF('Generated list'!B5550=\"\",\"\",'Generated list'!B5550)","v":""},{"$f":"IF('Generated list'!C5550=\"\",\"\",'Generated list'!C5550)","v":""},{"$f":"IF('Generated list'!D5550=\"\",\"\",'Generated list'!D5550)","v":""}]
[null,{"$f":"IF('Generated list'!B5551=\"\",\"\",'Generated list'!B5551)","v":""},{"$f":"IF('Generated list'!C5551=\"\",\"\",'Generated list'!C5551)","v":""},{"$f":"IF('Generated list'!D5551=\"\",\"\",'Generated list'!D5551)","v":""}]
[null,{"$f":"IF('Generated list'!B5552=\"\",\"\",'Generated list'!B5552)","v":""},{"$f":"IF('Generated list'!C5552=\"\",\"\",'Generated list'!C5552)","v":""},{"$f":"IF('Generated list'!D5552=\"\",\"\",'Generated list'!D5552)","v":""}]
[null,{"$f":"IF('Generated list'!B5553=\"\",\"\",'Generated list'!B5553)","v":""},{"$f":"IF('Generated list'!C5553=\"\",\"\",'Generated list'!C5553)","v":""},{"$f":"IF('Generated list'!D5553=\"\",\"\",'Generated list'!D5553)","v":""}]
[null,{"$f":"IF('Generated list'!B5554=\"\",\"\",'Generated list'!B5554)","v":""},{"$f":"IF('Generated list'!C5554=\"\",\"\",'Generated list'!C5554)","v":""},{"$f":"IF('Generated list'!D5554=\"\",\"\",'Generated list'!D5554)","v":""}]
[null,{"$f":"IF('Generated list'!B5555=\"\",\"\",'Generated list'!B5555)","v":""},{"$f":"IF('Generated list'!C5555=\"\",\"\",'Generated list'!C5555)","v":""},{"$f":"IF('Generated list'!D5555=\"\",\"\",'Generated list'!D5555)","v":""}]
[null,{"$f":"IF('Generated list'!B5556=\"\",\"\",'Generated list'!B5556)","v":""},{"$f":"IF('Generated list'!C5556=\"\",\"\",'Generated list'!C5556)","v":""},{"$f":"IF('Generated list'!D5556=\"\",\"\",'Generated list'!D5556)","v":""}]
[null,{"$f":"IF('Generated list'!B5557=\"\",\"\",'Generated list'!B5557)","v":""},{"$f":"IF('Generated list'!C5557=\"\",\"\",'Generated list'!C5557)","v":""},{"$f":"IF('Generated list'!D5557=\"\",\"\",'Generated list'!D5557)","v":""}]
[null,{"$f":"IF('Generated list'!B5558=\"\",\"\",'Generated list'!B5558)","v":""},{"$f":"IF('Generated list'!C5558=\"\",\"\",'Generated list'!C5558)","v":""},{"$f":"IF('Generated list'!D5558=\"\",\"\",'Generated list'!D5558)","v":""}]
[null,{"$f":"IF('Generated list'!B5559=\"\",\"\",'Generated list'!B5559)","v":""},{"$f":"IF('Generated list'!C5559=\"\",\"\",'Generated list'!C5559)","v":""},{"$f":"IF('Generated list'!D5559=\"\",\"\",'Generated list'!D5559)","v":""}]
[null,{"$f":"IF('Generated list'!B5560=\"\",\"\",'Generated list'!B5560)","v":""},{"$f":"IF('Generated list'!C5560=\"\",\"\",'Generated list'!C5560)","v":""},{"$f":"IF('Generated list'!D5560=\"\",\"\",'Generated list'!D5560)","v":""}]
[null,{"$f":"IF('Generated list'!B5561=\"\",\"\",'Generated list'!B5561)","v":""},{"$f":"IF('Generated list'!C5561=\"\",\"\",'Generated list'!C5561)","v":""},{"$f":"IF('Generated list'!D5561=\"\",\"\",'Generated list'!D5561)","v":""}]
[null,{"$f":"IF('Generated list'!B5562=\"\",\"\",'Generated list'!B5562)","v":""},{"$f":"IF('Generated list'!C5562=\"\",\"\",'Generated list'!C5562)","v":""},{"$f":"IF('Generated list'!D5562=\"\",\"\",'Generated list'!D5562)","v":""}]
[null,{"$f":"IF('Generated list'!B5563=\"\",\"\",'Generated list'!B5563)","v":""},{"$f":"IF('Generated list'!C5563=\"\",\"\",'Generated list'!C5563)","v":""},{"$f":"IF('Generated list'!D5563=\"\",\"\",'Generated list'!D5563)","v":""}]
[null,{"$f":"IF('Generated list'!B5564=\"\",\"\",'Generated list'!B5564)","v":""},{"$f":"IF('Generated list'!C5564=\"\",\"\",'Generated list'!C5564)","v":""},{"$f":"IF('Generated list'!D5564=\"\",\"\",'Generated list'!D5564)","v":""}]
[null,{"$f":"IF('Generated list'!B5565=\"\",\"\",'Generated list'!B5565)","v":""},{"$f":"IF('Generated list'!C5565=\"\",\"\",'Generated list'!C5565)","v":""},{"$f":"IF('Generated list'!D5565=\"\",\"\",'Generated list'!D5565)","v":""}]
[null,{"$f":"IF('Generated list'!B5566=\"\",\"\",'Generated list'!B5566)","v":""},{"$f":"IF('Generated list'!C5566=\"\",\"\",'Generated list'!C5566)","v":""},{"$f":"IF('Generated list'!D5566=\"\",\"\",'Generated list'!D5566)","v":""}]
[null,{"$f":"IF('Generated list'!B5567=\"\",\"\",'Generated list'!B5567)","v":""},{"$f":"IF('Generated list'!C5567=\"\",\"\",'Generated list'!C5567)","v":""},{"$f":"IF('Generated list'!D5567=\"\",\"\",'Generated list'!D5567)","v":""}]
[null,{"$f":"IF('Generated list'!B5568=\"\",\"\",'Generated list'!B5568)","v":""},{"$f":"IF('Generated list'!C5568=\"\",\"\",'Generated list'!C5568)","v":""},{"$f":"IF('Generated list'!D5568=\"\",\"\",'Generated list'!D5568)","v":""}]
[null,{"$f":"IF('Generated list'!B5569=\"\",\"\",'Generated list'!B5569)","v":""},{"$f":"IF('Generated list'!C5569=\"\",\"\",'Generated list'!C5569)","v":""},{"$f":"IF('Generated list'!D5569=\"\",\"\",'Generated list'!D5569)","v":""}]
[null,{"$f":"IF('Generated list'!B5570=\"\",\"\",'Generated list'!B5570)","v":""},{"$f":"IF('Generated list'!C5570=\"\",\"\",'Generated list'!C5570)","v":""},{"$f":"IF('Generated list'!D5570=\"\",\"\",'Generated list'!D5570)","v":""}]
[null,{"$f":"IF('Generated list'!B5571=\"\",\"\",'Generated list'!B5571)","v":""},{"$f":"IF('Generated list'!C5571=\"\",\"\",'Generated list'!C5571)","v":""},{"$f":"IF('Generated list'!D5571=\"\",\"\",'Generated list'!D5571)","v":""}]
[null,{"$f":"IF('Generated list'!B5572=\"\",\"\",'Generated list'!B5572)","v":""},{"$f":"IF('Generated list'!C5572=\"\",\"\",'Generated list'!C5572)","v":""},{"$f":"IF('Generated list'!D5572=\"\",\"\",'Generated list'!D5572)","v":""}]
[null,{"$f":"IF('Generated list'!B5573=\"\",\"\",'Generated list'!B5573)","v":""},{"$f":"IF('Generated list'!C5573=\"\",\"\",'Generated list'!C5573)","v":""},{"$f":"IF('Generated list'!D5573=\"\",\"\",'Generated list'!D5573)","v":""}]
[null,{"$f":"IF('Generated list'!B5574=\"\",\"\",'Generated list'!B5574)","v":""},{"$f":"IF('Generated list'!C5574=\"\",\"\",'Generated list'!C5574)","v":""},{"$f":"IF('Generated list'!D5574=\"\",\"\",'Generated list'!D5574)","v":""}]
[null,{"$f":"IF('Generated list'!B5575=\"\",\"\",'Generated list'!B5575)","v":""},{"$f":"IF('Generated list'!C5575=\"\",\"\",'Generated list'!C5575)","v":""},{"$f":"IF('Generated list'!D5575=\"\",\"\",'Generated list'!D5575)","v":""}]
[null,{"$f":"IF('Generated list'!B5576=\"\",\"\",'Generated list'!B5576)","v":""},{"$f":"IF('Generated list'!C5576=\"\",\"\",'Generated list'!C5576)","v":""},{"$f":"IF('Generated list'!D5576=\"\",\"\",'Generated list'!D5576)","v":""}]
[null,{"$f":"IF('Generated list'!B5577=\"\",\"\",'Generated list'!B5577)","v":""},{"$f":"IF('Generated list'!C5577=\"\",\"\",'Generated list'!C5577)","v":""},{"$f":"IF('Generated list'!D5577=\"\",\"\",'Generated list'!D5577)","v":""}]
[null,{"$f":"IF('Generated list'!B5578=\"\",\"\",'Generated list'!B5578)","v":""},{"$f":"IF('Generated list'!C5578=\"\",\"\",'Generated list'!C5578)","v":""},{"$f":"IF('Generated list'!D5578=\"\",\"\",'Generated list'!D5578)","v":""}]
[null,{"$f":"IF('Generated list'!B5579=\"\",\"\",'Generated list'!B5579)","v":""},{"$f":"IF('Generated list'!C5579=\"\",\"\",'Generated list'!C5579)","v":""},{"$f":"IF('Generated list'!D5579=\"\",\"\",'Generated list'!D5579)","v":""}]
[null,{"$f":"IF('Generated list'!B5580=\"\",\"\",'Generated list'!B5580)","v":""},{"$f":"IF('Generated list'!C5580=\"\",\"\",'Generated list'!C5580)","v":""},{"$f":"IF('Generated list'!D5580=\"\",\"\",'Generated list'!D5580)","v":""}]
[null,{"$f":"IF('Generated list'!B5581=\"\",\"\",'Generated list'!B5581)","v":""},{"$f":"IF('Generated list'!C5581=\"\",\"\",'Generated list'!C5581)","v":""},{"$f":"IF('Generated list'!D5581=\"\",\"\",'Generated list'!D5581)","v":""}]
[null,{"$f":"IF('Generated list'!B5582=\"\",\"\",'Generated list'!B5582)","v":""},{"$f":"IF('Generated list'!C5582=\"\",\"\",'Generated list'!C5582)","v":""},{"$f":"IF('Generated list'!D5582=\"\",\"\",'Generated list'!D5582)","v":""}]
[null,{"$f":"IF('Generated list'!B5583=\"\",\"\",'Generated list'!B5583)","v":""},{"$f":"IF('Generated list'!C5583=\"\",\"\",'Generated list'!C5583)","v":""},{"$f":"IF('Generated list'!D5583=\"\",\"\",'Generated list'!D5583)","v":""}]
[null,{"$f":"IF('Generated list'!B5584=\"\",\"\",'Generated list'!B5584)","v":""},{"$f":"IF('Generated list'!C5584=\"\",\"\",'Generated list'!C5584)","v":""},{"$f":"IF('Generated list'!D5584=\"\",\"\",'Generated list'!D5584)","v":""}]
[null,{"$f":"IF('Generated list'!B5585=\"\",\"\",'Generated list'!B5585)","v":""},{"$f":"IF('Generated list'!C5585=\"\",\"\",'Generated list'!C5585)","v":""},{"$f":"IF('Generated list'!D5585=\"\",\"\",'Generated list'!D5585)","v":""}]
[null,{"$f":"IF('Generated list'!B5586=\"\",\"\",'Generated list'!B5586)","v":""},{"$f":"IF('Generated list'!C5586=\"\",\"\",'Generated list'!C5586)","v":""},{"$f":"IF('Generated list'!D5586=\"\",\"\",'Generated list'!D5586)","v":""}]
[null,{"$f":"IF('Generated list'!B5587=\"\",\"\",'Generated list'!B5587)","v":""},{"$f":"IF('Generated list'!C5587=\"\",\"\",'Generated list'!C5587)","v":""},{"$f":"IF('Generated list'!D5587=\"\",\"\",'Generated list'!D5587)","v":""}]
[null,{"$f":"IF('Generated list'!B5588=\"\",\"\",'Generated list'!B5588)","v":""},{"$f":"IF('Generated list'!C5588=\"\",\"\",'Generated list'!C5588)","v":""},{"$f":"IF('Generated list'!D5588=\"\",\"\",'Generated list'!D5588)","v":""}]
[null,{"$f":"IF('Generated list'!B5589=\"\",\"\",'Generated list'!B5589)","v":""},{"$f":"IF('Generated list'!C5589=\"\",\"\",'Generated list'!C5589)","v":""},{"$f":"IF('Generated list'!D5589=\"\",\"\",'Generated list'!D5589)","v":""}]
[null,{"$f":"IF('Generated list'!B5590=\"\",\"\",'Generated list'!B5590)","v":""},{"$f":"IF('Generated list'!C5590=\"\",\"\",'Generated list'!C5590)","v":""},{"$f":"IF('Generated list'!D5590=\"\",\"\",'Generated list'!D5590)","v":""}]
[null,{"$f":"IF('Generated list'!B5591=\"\",\"\",'Generated list'!B5591)","v":""},{"$f":"IF('Generated list'!C5591=\"\",\"\",'Generated list'!C5591)","v":""},{"$f":"IF('Generated list'!D5591=\"\",\"\",'Generated list'!D5591)","v":""}]
[null,{"$f":"IF('Generated list'!B5592=\"\",\"\",'Generated list'!B5592)","v":""},{"$f":"IF('Generated list'!C5592=\"\",\"\",'Generated list'!C5592)","v":""},{"$f":"IF('Generated list'!D5592=\"\",\"\",'Generated list'!D5592)","v":""}]
[null,{"$f":"IF('Generated list'!B5593=\"\",\"\",'Generated list'!B5593)","v":""},{"$f":"IF('Generated list'!C5593=\"\",\"\",'Generated list'!C5593)","v":""},{"$f":"IF('Generated list'!D5593=\"\",\"\",'Generated list'!D5593)","v":""}]
[null,{"$f":"IF('Generated list'!B5594=\"\",\"\",'Generated list'!B5594)","v":""},{"$f":"IF('Generated list'!C5594=\"\",\"\",'Generated list'!C5594)","v":""},{"$f":"IF('Generated list'!D5594=\"\",\"\",'Generated list'!D5594)","v":""}]
[null,{"$f":"IF('Generated list'!B5595=\"\",\"\",'Generated list'!B5595)","v":""},{"$f":"IF('Generated list'!C5595=\"\",\"\",'Generated list'!C5595)","v":""},{"$f":"IF('Generated list'!D5595=\"\",\"\",'Generated list'!D5595)","v":""}]
[null,{"$f":"IF('Generated list'!B5596=\"\",\"\",'Generated list'!B5596)","v":""},{"$f":"IF('Generated list'!C5596=\"\",\"\",'Generated list'!C5596)","v":""},{"$f":"IF('Generated list'!D5596=\"\",\"\",'Generated list'!D5596)","v":""}]
[null,{"$f":"IF('Generated list'!B5597=\"\",\"\",'Generated list'!B5597)","v":""},{"$f":"IF('Generated list'!C5597=\"\",\"\",'Generated list'!C5597)","v":""},{"$f":"IF('Generated list'!D5597=\"\",\"\",'Generated list'!D5597)","v":""}]
[null,{"$f":"IF('Generated list'!B5598=\"\",\"\",'Generated list'!B5598)","v":""},{"$f":"IF('Generated list'!C5598=\"\",\"\",'Generated list'!C5598)","v":""},{"$f":"IF('Generated list'!D5598=\"\",\"\",'Generated list'!D5598)","v":""}]
[null,{"$f":"IF('Generated list'!B5599=\"\",\"\",'Generated list'!B5599)","v":""},{"$f":"IF('Generated list'!C5599=\"\",\"\",'Generated list'!C5599)","v":""},{"$f":"IF('Generated list'!D5599=\"\",\"\",'Generated list'!D5599)","v":""}]
[null,{"$f":"IF('Generated list'!B5600=\"\",\"\",'Generated list'!B5600)","v":""},{"$f":"IF('Generated list'!C5600=\"\",\"\",'Generated list'!C5600)","v":""},{"$f":"IF('Generated list'!D5600=\"\",\"\",'Generated list'!D5600)","v":""}]
[null,{"$f":"IF('Generated list'!B5601=\"\",\"\",'Generated list'!B5601)","v":""},{"$f":"IF('Generated list'!C5601=\"\",\"\",'Generated list'!C5601)","v":""},{"$f":"IF('Generated list'!D5601=\"\",\"\",'Generated list'!D5601)","v":""}]
[null,{"$f":"IF('Generated list'!B5602=\"\",\"\",'Generated list'!B5602)","v":""},{"$f":"IF('Generated list'!C5602=\"\",\"\",'Generated list'!C5602)","v":""},{"$f":"IF('Generated list'!D5602=\"\",\"\",'Generated list'!D5602)","v":""}]
[null,{"$f":"IF('Generated list'!B5603=\"\",\"\",'Generated list'!B5603)","v":""},{"$f":"IF('Generated list'!C5603=\"\",\"\",'Generated list'!C5603)","v":""},{"$f":"IF('Generated list'!D5603=\"\",\"\",'Generated list'!D5603)","v":""}]
[null,{"$f":"IF('Generated list'!B5604=\"\",\"\",'Generated list'!B5604)","v":""},{"$f":"IF('Generated list'!C5604=\"\",\"\",'Generated list'!C5604)","v":""},{"$f":"IF('Generated list'!D5604=\"\",\"\",'Generated list'!D5604)","v":""}]
[null,{"$f":"IF('Generated list'!B5605=\"\",\"\",'Generated list'!B5605)","v":""},{"$f":"IF('Generated list'!C5605=\"\",\"\",'Generated list'!C5605)","v":""},{"$f":"IF('Generated list'!D5605=\"\",\"\",'Generated list'!D5605)","v":""}]
[null,{"$f":"IF('Generated list'!B5606=\"\",\"\",'Generated list'!B5606)","v":""},{"$f":"IF('Generated list'!C5606=\"\",\"\",'Generated list'!C5606)","v":""},{"$f":"IF('Generated list'!D5606=\"\",\"\",'Generated list'!D5606)","v":""}]
[null,{"$f":"IF('Generated list'!B5607=\"\",\"\",'Generated list'!B5607)","v":""},{"$f":"IF('Generated list'!C5607=\"\",\"\",'Generated list'!C5607)","v":""},{"$f":"IF('Generated list'!D5607=\"\",\"\",'Generated list'!D5607)","v":""}]
[null,{"$f":"IF('Generated list'!B5608=\"\",\"\",'Generated list'!B5608)","v":""},{"$f":"IF('Generated list'!C5608=\"\",\"\",'Generated list'!C5608)","v":""},{"$f":"IF('Generated list'!D5608=\"\",\"\",'Generated list'!D5608)","v":""}]
[null,{"$f":"IF('Generated list'!B5609=\"\",\"\",'Generated list'!B5609)","v":""},{"$f":"IF('Generated list'!C5609=\"\",\"\",'Generated list'!C5609)","v":""},{"$f":"IF('Generated list'!D5609=\"\",\"\",'Generated list'!D5609)","v":""}]
[null,{"$f":"IF('Generated list'!B5610=\"\",\"\",'Generated list'!B5610)","v":""},{"$f":"IF('Generated list'!C5610=\"\",\"\",'Generated list'!C5610)","v":""},{"$f":"IF('Generated list'!D5610=\"\",\"\",'Generated list'!D5610)","v":""}]
[null,{"$f":"IF('Generated list'!B5611=\"\",\"\",'Generated list'!B5611)","v":""},{"$f":"IF('Generated list'!C5611=\"\",\"\",'Generated list'!C5611)","v":""},{"$f":"IF('Generated list'!D5611=\"\",\"\",'Generated list'!D5611)","v":""}]
[null,{"$f":"IF('Generated list'!B5612=\"\",\"\",'Generated list'!B5612)","v":""},{"$f":"IF('Generated list'!C5612=\"\",\"\",'Generated list'!C5612)","v":""},{"$f":"IF('Generated list'!D5612=\"\",\"\",'Generated list'!D5612)","v":""}]
[null,{"$f":"IF('Generated list'!B5613=\"\",\"\",'Generated list'!B5613)","v":""},{"$f":"IF('Generated list'!C5613=\"\",\"\",'Generated list'!C5613)","v":""},{"$f":"IF('Generated list'!D5613=\"\",\"\",'Generated list'!D5613)","v":""}]
[null,{"$f":"IF('Generated list'!B5614=\"\",\"\",'Generated list'!B5614)","v":""},{"$f":"IF('Generated list'!C5614=\"\",\"\",'Generated list'!C5614)","v":""},{"$f":"IF('Generated list'!D5614=\"\",\"\",'Generated list'!D5614)","v":""}]
[null,{"$f":"IF('Generated list'!B5615=\"\",\"\",'Generated list'!B5615)","v":""},{"$f":"IF('Generated list'!C5615=\"\",\"\",'Generated list'!C5615)","v":""},{"$f":"IF('Generated list'!D5615=\"\",\"\",'Generated list'!D5615)","v":""}]
[null,{"$f":"IF('Generated list'!B5616=\"\",\"\",'Generated list'!B5616)","v":""},{"$f":"IF('Generated list'!C5616=\"\",\"\",'Generated list'!C5616)","v":""},{"$f":"IF('Generated list'!D5616=\"\",\"\",'Generated list'!D5616)","v":""}]
[null,{"$f":"IF('Generated list'!B5617=\"\",\"\",'Generated list'!B5617)","v":""},{"$f":"IF('Generated list'!C5617=\"\",\"\",'Generated list'!C5617)","v":""},{"$f":"IF('Generated list'!D5617=\"\",\"\",'Generated list'!D5617)","v":""}]
[null,{"$f":"IF('Generated list'!B5618=\"\",\"\",'Generated list'!B5618)","v":""},{"$f":"IF('Generated list'!C5618=\"\",\"\",'Generated list'!C5618)","v":""},{"$f":"IF('Generated list'!D5618=\"\",\"\",'Generated list'!D5618)","v":""}]
[null,{"$f":"IF('Generated list'!B5619=\"\",\"\",'Generated list'!B5619)","v":""},{"$f":"IF('Generated list'!C5619=\"\",\"\",'Generated list'!C5619)","v":""},{"$f":"IF('Generated list'!D5619=\"\",\"\",'Generated list'!D5619)","v":""}]
[null,{"$f":"IF('Generated list'!B5620=\"\",\"\",'Generated list'!B5620)","v":""},{"$f":"IF('Generated list'!C5620=\"\",\"\",'Generated list'!C5620)","v":""},{"$f":"IF('Generated list'!D5620=\"\",\"\",'Generated list'!D5620)","v":""}]
[null,{"$f":"IF('Generated list'!B5621=\"\",\"\",'Generated list'!B5621)","v":""},{"$f":"IF('Generated list'!C5621=\"\",\"\",'Generated list'!C5621)","v":""},{"$f":"IF('Generated list'!D5621=\"\",\"\",'Generated list'!D5621)","v":""}]
[null,{"$f":"IF('Generated list'!B5622=\"\",\"\",'Generated list'!B5622)","v":""},{"$f":"IF('Generated list'!C5622=\"\",\"\",'Generated list'!C5622)","v":""},{"$f":"IF('Generated list'!D5622=\"\",\"\",'Generated list'!D5622)","v":""}]
[null,{"$f":"IF('Generated list'!B5623=\"\",\"\",'Generated list'!B5623)","v":""},{"$f":"IF('Generated list'!C5623=\"\",\"\",'Generated list'!C5623)","v":""},{"$f":"IF('Generated list'!D5623=\"\",\"\",'Generated list'!D5623)","v":""}]
[null,{"$f":"IF('Generated list'!B5624=\"\",\"\",'Generated list'!B5624)","v":""},{"$f":"IF('Generated list'!C5624=\"\",\"\",'Generated list'!C5624)","v":""},{"$f":"IF('Generated list'!D5624=\"\",\"\",'Generated list'!D5624)","v":""}]
[null,{"$f":"IF('Generated list'!B5625=\"\",\"\",'Generated list'!B5625)","v":""},{"$f":"IF('Generated list'!C5625=\"\",\"\",'Generated list'!C5625)","v":""},{"$f":"IF('Generated list'!D5625=\"\",\"\",'Generated list'!D5625)","v":""}]
[null,{"$f":"IF('Generated list'!B5626=\"\",\"\",'Generated list'!B5626)","v":""},{"$f":"IF('Generated list'!C5626=\"\",\"\",'Generated list'!C5626)","v":""},{"$f":"IF('Generated list'!D5626=\"\",\"\",'Generated list'!D5626)","v":""}]
[null,{"$f":"IF('Generated list'!B5627=\"\",\"\",'Generated list'!B5627)","v":""},{"$f":"IF('Generated list'!C5627=\"\",\"\",'Generated list'!C5627)","v":""},{"$f":"IF('Generated list'!D5627=\"\",\"\",'Generated list'!D5627)","v":""}]
[null,{"$f":"IF('Generated list'!B5628=\"\",\"\",'Generated list'!B5628)","v":""},{"$f":"IF('Generated list'!C5628=\"\",\"\",'Generated list'!C5628)","v":""},{"$f":"IF('Generated list'!D5628=\"\",\"\",'Generated list'!D5628)","v":""}]
[null,{"$f":"IF('Generated list'!B5629=\"\",\"\",'Generated list'!B5629)","v":""},{"$f":"IF('Generated list'!C5629=\"\",\"\",'Generated list'!C5629)","v":""},{"$f":"IF('Generated list'!D5629=\"\",\"\",'Generated list'!D5629)","v":""}]
[null,{"$f":"IF('Generated list'!B5630=\"\",\"\",'Generated list'!B5630)","v":""},{"$f":"IF('Generated list'!C5630=\"\",\"\",'Generated list'!C5630)","v":""},{"$f":"IF('Generated list'!D5630=\"\",\"\",'Generated list'!D5630)","v":""}]
[null,{"$f":"IF('Generated list'!B5631=\"\",\"\",'Generated list'!B5631)","v":""},{"$f":"IF('Generated list'!C5631=\"\",\"\",'Generated list'!C5631)","v":""},{"$f":"IF('Generated list'!D5631=\"\",\"\",'Generated list'!D5631)","v":""}]
[null,{"$f":"IF('Generated list'!B5632=\"\",\"\",'Generated list'!B5632)","v":""},{"$f":"IF('Generated list'!C5632=\"\",\"\",'Generated list'!C5632)","v":""},{"$f":"IF('Generated list'!D5632=\"\",\"\",'Generated list'!D5632)","v":""}]
[null,{"$f":"IF('Generated list'!B5633=\"\",\"\",'Generated list'!B5633)","v":""},{"$f":"IF('Generated list'!C5633=\"\",\"\",'Generated list'!C5633)","v":""},{"$f":"IF('Generated list'!D5633=\"\",\"\",'Generated list'!D5633)","v":""}]
[null,{"$f":"IF('Generated list'!B5634=\"\",\"\",'Generated list'!B5634)","v":""},{"$f":"IF('Generated list'!C5634=\"\",\"\",'Generated list'!C5634)","v":""},{"$f":"IF('Generated list'!D5634=\"\",\"\",'Generated list'!D5634)","v":""}]
[null,{"$f":"IF('Generated list'!B5635=\"\",\"\",'Generated list'!B5635)","v":""},{"$f":"IF('Generated list'!C5635=\"\",\"\",'Generated list'!C5635)","v":""},{"$f":"IF('Generated list'!D5635=\"\",\"\",'Generated list'!D5635)","v":""}]
[null,{"$f":"IF('Generated list'!B5636=\"\",\"\",'Generated list'!B5636)","v":""},{"$f":"IF('Generated list'!C5636=\"\",\"\",'Generated list'!C5636)","v":""},{"$f":"IF('Generated list'!D5636=\"\",\"\",'Generated list'!D5636)","v":""}]
[null,{"$f":"IF('Generated list'!B5637=\"\",\"\",'Generated list'!B5637)","v":""},{"$f":"IF('Generated list'!C5637=\"\",\"\",'Generated list'!C5637)","v":""},{"$f":"IF('Generated list'!D5637=\"\",\"\",'Generated list'!D5637)","v":""}]
[null,{"$f":"IF('Generated list'!B5638=\"\",\"\",'Generated list'!B5638)","v":""},{"$f":"IF('Generated list'!C5638=\"\",\"\",'Generated list'!C5638)","v":""},{"$f":"IF('Generated list'!D5638=\"\",\"\",'Generated list'!D5638)","v":""}]
[null,{"$f":"IF('Generated list'!B5639=\"\",\"\",'Generated list'!B5639)","v":""},{"$f":"IF('Generated list'!C5639=\"\",\"\",'Generated list'!C5639)","v":""},{"$f":"IF('Generated list'!D5639=\"\",\"\",'Generated list'!D5639)","v":""}]
[null,{"$f":"IF('Generated list'!B5640=\"\",\"\",'Generated list'!B5640)","v":""},{"$f":"IF('Generated list'!C5640=\"\",\"\",'Generated list'!C5640)","v":""},{"$f":"IF('Generated list'!D5640=\"\",\"\",'Generated list'!D5640)","v":""}]
[null,{"$f":"IF('Generated list'!B5641=\"\",\"\",'Generated list'!B5641)","v":""},{"$f":"IF('Generated list'!C5641=\"\",\"\",'Generated list'!C5641)","v":""},{"$f":"IF('Generated list'!D5641=\"\",\"\",'Generated list'!D5641)","v":""}]
[null,{"$f":"IF('Generated list'!B5642=\"\",\"\",'Generated list'!B5642)","v":""},{"$f":"IF('Generated list'!C5642=\"\",\"\",'Generated list'!C5642)","v":""},{"$f":"IF('Generated list'!D5642=\"\",\"\",'Generated list'!D5642)","v":""}]
[null,{"$f":"IF('Generated list'!B5643=\"\",\"\",'Generated list'!B5643)","v":""},{"$f":"IF('Generated list'!C5643=\"\",\"\",'Generated list'!C5643)","v":""},{"$f":"IF('Generated list'!D5643=\"\",\"\",'Generated list'!D5643)","v":""}]
[null,{"$f":"IF('Generated list'!B5644=\"\",\"\",'Generated list'!B5644)","v":""},{"$f":"IF('Generated list'!C5644=\"\",\"\",'Generated list'!C5644)","v":""},{"$f":"IF('Generated list'!D5644=\"\",\"\",'Generated list'!D5644)","v":""}]
[null,{"$f":"IF('Generated list'!B5645=\"\",\"\",'Generated list'!B5645)","v":""},{"$f":"IF('Generated list'!C5645=\"\",\"\",'Generated list'!C5645)","v":""},{"$f":"IF('Generated list'!D5645=\"\",\"\",'Generated list'!D5645)","v":""}]
[null,{"$f":"IF('Generated list'!B5646=\"\",\"\",'Generated list'!B5646)","v":""},{"$f":"IF('Generated list'!C5646=\"\",\"\",'Generated list'!C5646)","v":""},{"$f":"IF('Generated list'!D5646=\"\",\"\",'Generated list'!D5646)","v":""}]
[null,{"$f":"IF('Generated list'!B5647=\"\",\"\",'Generated list'!B5647)","v":""},{"$f":"IF('Generated list'!C5647=\"\",\"\",'Generated list'!C5647)","v":""},{"$f":"IF('Generated list'!D5647=\"\",\"\",'Generated list'!D5647)","v":""}]
[null,{"$f":"IF('Generated list'!B5648=\"\",\"\",'Generated list'!B5648)","v":""},{"$f":"IF('Generated list'!C5648=\"\",\"\",'Generated list'!C5648)","v":""},{"$f":"IF('Generated list'!D5648=\"\",\"\",'Generated list'!D5648)","v":""}]
[null,{"$f":"IF('Generated list'!B5649=\"\",\"\",'Generated list'!B5649)","v":""},{"$f":"IF('Generated list'!C5649=\"\",\"\",'Generated list'!C5649)","v":""},{"$f":"IF('Generated list'!D5649=\"\",\"\",'Generated list'!D5649)","v":""}]
[null,{"$f":"IF('Generated list'!B5650=\"\",\"\",'Generated list'!B5650)","v":""},{"$f":"IF('Generated list'!C5650=\"\",\"\",'Generated list'!C5650)","v":""},{"$f":"IF('Generated list'!D5650=\"\",\"\",'Generated list'!D5650)","v":""}]
[null,{"$f":"IF('Generated list'!B5651=\"\",\"\",'Generated list'!B5651)","v":""},{"$f":"IF('Generated list'!C5651=\"\",\"\",'Generated list'!C5651)","v":""},{"$f":"IF('Generated list'!D5651=\"\",\"\",'Generated list'!D5651)","v":""}]
[null,{"$f":"IF('Generated list'!B5652=\"\",\"\",'Generated list'!B5652)","v":""},{"$f":"IF('Generated list'!C5652=\"\",\"\",'Generated list'!C5652)","v":""},{"$f":"IF('Generated list'!D5652=\"\",\"\",'Generated list'!D5652)","v":""}]
[null,{"$f":"IF('Generated list'!B5653=\"\",\"\",'Generated list'!B5653)","v":""},{"$f":"IF('Generated list'!C5653=\"\",\"\",'Generated list'!C5653)","v":""},{"$f":"IF('Generated list'!D5653=\"\",\"\",'Generated list'!D5653)","v":""}]
[null,{"$f":"IF('Generated list'!B5654=\"\",\"\",'Generated list'!B5654)","v":""},{"$f":"IF('Generated list'!C5654=\"\",\"\",'Generated list'!C5654)","v":""},{"$f":"IF('Generated list'!D5654=\"\",\"\",'Generated list'!D5654)","v":""}]
[null,{"$f":"IF('Generated list'!B5655=\"\",\"\",'Generated list'!B5655)","v":""},{"$f":"IF('Generated list'!C5655=\"\",\"\",'Generated list'!C5655)","v":""},{"$f":"IF('Generated list'!D5655=\"\",\"\",'Generated list'!D5655)","v":""}]
[null,{"$f":"IF('Generated list'!B5656=\"\",\"\",'Generated list'!B5656)","v":""},{"$f":"IF('Generated list'!C5656=\"\",\"\",'Generated list'!C5656)","v":""},{"$f":"IF('Generated list'!D5656=\"\",\"\",'Generated list'!D5656)","v":""}]
[null,{"$f":"IF('Generated list'!B5657=\"\",\"\",'Generated list'!B5657)","v":""},{"$f":"IF('Generated list'!C5657=\"\",\"\",'Generated list'!C5657)","v":""},{"$f":"IF('Generated list'!D5657=\"\",\"\",'Generated list'!D5657)","v":""}]
[null,{"$f":"IF('Generated list'!B5658=\"\",\"\",'Generated list'!B5658)","v":""},{"$f":"IF('Generated list'!C5658=\"\",\"\",'Generated list'!C5658)","v":""},{"$f":"IF('Generated list'!D5658=\"\",\"\",'Generated list'!D5658)","v":""}]
[null,{"$f":"IF('Generated list'!B5659=\"\",\"\",'Generated list'!B5659)","v":""},{"$f":"IF('Generated list'!C5659=\"\",\"\",'Generated list'!C5659)","v":""},{"$f":"IF('Generated list'!D5659=\"\",\"\",'Generated list'!D5659)","v":""}]
[null,{"$f":"IF('Generated list'!B5660=\"\",\"\",'Generated list'!B5660)","v":""},{"$f":"IF('Generated list'!C5660=\"\",\"\",'Generated list'!C5660)","v":""},{"$f":"IF('Generated list'!D5660=\"\",\"\",'Generated list'!D5660)","v":""}]
[null,{"$f":"IF('Generated list'!B5661=\"\",\"\",'Generated list'!B5661)","v":""},{"$f":"IF('Generated list'!C5661=\"\",\"\",'Generated list'!C5661)","v":""},{"$f":"IF('Generated list'!D5661=\"\",\"\",'Generated list'!D5661)","v":""}]
[null,{"$f":"IF('Generated list'!B5662=\"\",\"\",'Generated list'!B5662)","v":""},{"$f":"IF('Generated list'!C5662=\"\",\"\",'Generated list'!C5662)","v":""},{"$f":"IF('Generated list'!D5662=\"\",\"\",'Generated list'!D5662)","v":""}]
[null,{"$f":"IF('Generated list'!B5663=\"\",\"\",'Generated list'!B5663)","v":""},{"$f":"IF('Generated list'!C5663=\"\",\"\",'Generated list'!C5663)","v":""},{"$f":"IF('Generated list'!D5663=\"\",\"\",'Generated list'!D5663)","v":""}]
[null,{"$f":"IF('Generated list'!B5664=\"\",\"\",'Generated list'!B5664)","v":""},{"$f":"IF('Generated list'!C5664=\"\",\"\",'Generated list'!C5664)","v":""},{"$f":"IF('Generated list'!D5664=\"\",\"\",'Generated list'!D5664)","v":""}]
[null,{"$f":"IF('Generated list'!B5665=\"\",\"\",'Generated list'!B5665)","v":""},{"$f":"IF('Generated list'!C5665=\"\",\"\",'Generated list'!C5665)","v":""},{"$f":"IF('Generated list'!D5665=\"\",\"\",'Generated list'!D5665)","v":""}]
[null,{"$f":"IF('Generated list'!B5666=\"\",\"\",'Generated list'!B5666)","v":""},{"$f":"IF('Generated list'!C5666=\"\",\"\",'Generated list'!C5666)","v":""},{"$f":"IF('Generated list'!D5666=\"\",\"\",'Generated list'!D5666)","v":""}]
[null,{"$f":"IF('Generated list'!B5667=\"\",\"\",'Generated list'!B5667)","v":""},{"$f":"IF('Generated list'!C5667=\"\",\"\",'Generated list'!C5667)","v":""},{"$f":"IF('Generated list'!D5667=\"\",\"\",'Generated list'!D5667)","v":""}]
[null,{"$f":"IF('Generated list'!B5668=\"\",\"\",'Generated list'!B5668)","v":""},{"$f":"IF('Generated list'!C5668=\"\",\"\",'Generated list'!C5668)","v":""},{"$f":"IF('Generated list'!D5668=\"\",\"\",'Generated list'!D5668)","v":""}]
[null,{"$f":"IF('Generated list'!B5669=\"\",\"\",'Generated list'!B5669)","v":""},{"$f":"IF('Generated list'!C5669=\"\",\"\",'Generated list'!C5669)","v":""},{"$f":"IF('Generated list'!D5669=\"\",\"\",'Generated list'!D5669)","v":""}]
[null,{"$f":"IF('Generated list'!B5670=\"\",\"\",'Generated list'!B5670)","v":""},{"$f":"IF('Generated list'!C5670=\"\",\"\",'Generated list'!C5670)","v":""},{"$f":"IF('Generated list'!D5670=\"\",\"\",'Generated list'!D5670)","v":""}]
[null,{"$f":"IF('Generated list'!B5671=\"\",\"\",'Generated list'!B5671)","v":""},{"$f":"IF('Generated list'!C5671=\"\",\"\",'Generated list'!C5671)","v":""},{"$f":"IF('Generated list'!D5671=\"\",\"\",'Generated list'!D5671)","v":""}]
[null,{"$f":"IF('Generated list'!B5672=\"\",\"\",'Generated list'!B5672)","v":""},{"$f":"IF('Generated list'!C5672=\"\",\"\",'Generated list'!C5672)","v":""},{"$f":"IF('Generated list'!D5672=\"\",\"\",'Generated list'!D5672)","v":""}]
[null,{"$f":"IF('Generated list'!B5673=\"\",\"\",'Generated list'!B5673)","v":""},{"$f":"IF('Generated list'!C5673=\"\",\"\",'Generated list'!C5673)","v":""},{"$f":"IF('Generated list'!D5673=\"\",\"\",'Generated list'!D5673)","v":""}]
[null,{"$f":"IF('Generated list'!B5674=\"\",\"\",'Generated list'!B5674)","v":""},{"$f":"IF('Generated list'!C5674=\"\",\"\",'Generated list'!C5674)","v":""},{"$f":"IF('Generated list'!D5674=\"\",\"\",'Generated list'!D5674)","v":""}]
[null,{"$f":"IF('Generated list'!B5675=\"\",\"\",'Generated list'!B5675)","v":""},{"$f":"IF('Generated list'!C5675=\"\",\"\",'Generated list'!C5675)","v":""},{"$f":"IF('Generated list'!D5675=\"\",\"\",'Generated list'!D5675)","v":""}]
[null,{"$f":"IF('Generated list'!B5676=\"\",\"\",'Generated list'!B5676)","v":""},{"$f":"IF('Generated list'!C5676=\"\",\"\",'Generated list'!C5676)","v":""},{"$f":"IF('Generated list'!D5676=\"\",\"\",'Generated list'!D5676)","v":""}]
[null,{"$f":"IF('Generated list'!B5677=\"\",\"\",'Generated list'!B5677)","v":""},{"$f":"IF('Generated list'!C5677=\"\",\"\",'Generated list'!C5677)","v":""},{"$f":"IF('Generated list'!D5677=\"\",\"\",'Generated list'!D5677)","v":""}]
[null,{"$f":"IF('Generated list'!B5678=\"\",\"\",'Generated list'!B5678)","v":""},{"$f":"IF('Generated list'!C5678=\"\",\"\",'Generated list'!C5678)","v":""},{"$f":"IF('Generated list'!D5678=\"\",\"\",'Generated list'!D5678)","v":""}]
[null,{"$f":"IF('Generated list'!B5679=\"\",\"\",'Generated list'!B5679)","v":""},{"$f":"IF('Generated list'!C5679=\"\",\"\",'Generated list'!C5679)","v":""},{"$f":"IF('Generated list'!D5679=\"\",\"\",'Generated list'!D5679)","v":""}]
[null,{"$f":"IF('Generated list'!B5680=\"\",\"\",'Generated list'!B5680)","v":""},{"$f":"IF('Generated list'!C5680=\"\",\"\",'Generated list'!C5680)","v":""},{"$f":"IF('Generated list'!D5680=\"\",\"\",'Generated list'!D5680)","v":""}]
[null,{"$f":"IF('Generated list'!B5681=\"\",\"\",'Generated list'!B5681)","v":""},{"$f":"IF('Generated list'!C5681=\"\",\"\",'Generated list'!C5681)","v":""},{"$f":"IF('Generated list'!D5681=\"\",\"\",'Generated list'!D5681)","v":""}]
[null,{"$f":"IF('Generated list'!B5682=\"\",\"\",'Generated list'!B5682)","v":""},{"$f":"IF('Generated list'!C5682=\"\",\"\",'Generated list'!C5682)","v":""},{"$f":"IF('Generated list'!D5682=\"\",\"\",'Generated list'!D5682)","v":""}]
[null,{"$f":"IF('Generated list'!B5683=\"\",\"\",'Generated list'!B5683)","v":""},{"$f":"IF('Generated list'!C5683=\"\",\"\",'Generated list'!C5683)","v":""},{"$f":"IF('Generated list'!D5683=\"\",\"\",'Generated list'!D5683)","v":""}]
[null,{"$f":"IF('Generated list'!B5684=\"\",\"\",'Generated list'!B5684)","v":""},{"$f":"IF('Generated list'!C5684=\"\",\"\",'Generated list'!C5684)","v":""},{"$f":"IF('Generated list'!D5684=\"\",\"\",'Generated list'!D5684)","v":""}]
[null,{"$f":"IF('Generated list'!B5685=\"\",\"\",'Generated list'!B5685)","v":""},{"$f":"IF('Generated list'!C5685=\"\",\"\",'Generated list'!C5685)","v":""},{"$f":"IF('Generated list'!D5685=\"\",\"\",'Generated list'!D5685)","v":""}]
[null,{"$f":"IF('Generated list'!B5686=\"\",\"\",'Generated list'!B5686)","v":""},{"$f":"IF('Generated list'!C5686=\"\",\"\",'Generated list'!C5686)","v":""},{"$f":"IF('Generated list'!D5686=\"\",\"\",'Generated list'!D5686)","v":""}]
[null,{"$f":"IF('Generated list'!B5687=\"\",\"\",'Generated list'!B5687)","v":""},{"$f":"IF('Generated list'!C5687=\"\",\"\",'Generated list'!C5687)","v":""},{"$f":"IF('Generated list'!D5687=\"\",\"\",'Generated list'!D5687)","v":""}]
[null,{"$f":"IF('Generated list'!B5688=\"\",\"\",'Generated list'!B5688)","v":""},{"$f":"IF('Generated list'!C5688=\"\",\"\",'Generated list'!C5688)","v":""},{"$f":"IF('Generated list'!D5688=\"\",\"\",'Generated list'!D5688)","v":""}]
[null,{"$f":"IF('Generated list'!B5689=\"\",\"\",'Generated list'!B5689)","v":""},{"$f":"IF('Generated list'!C5689=\"\",\"\",'Generated list'!C5689)","v":""},{"$f":"IF('Generated list'!D5689=\"\",\"\",'Generated list'!D5689)","v":""}]
[null,{"$f":"IF('Generated list'!B5690=\"\",\"\",'Generated list'!B5690)","v":""},{"$f":"IF('Generated list'!C5690=\"\",\"\",'Generated list'!C5690)","v":""},{"$f":"IF('Generated list'!D5690=\"\",\"\",'Generated list'!D5690)","v":""}]
[null,{"$f":"IF('Generated list'!B5691=\"\",\"\",'Generated list'!B5691)","v":""},{"$f":"IF('Generated list'!C5691=\"\",\"\",'Generated list'!C5691)","v":""},{"$f":"IF('Generated list'!D5691=\"\",\"\",'Generated list'!D5691)","v":""}]
[null,{"$f":"IF('Generated list'!B5692=\"\",\"\",'Generated list'!B5692)","v":""},{"$f":"IF('Generated list'!C5692=\"\",\"\",'Generated list'!C5692)","v":""},{"$f":"IF('Generated list'!D5692=\"\",\"\",'Generated list'!D5692)","v":""}]
[null,{"$f":"IF('Generated list'!B5693=\"\",\"\",'Generated list'!B5693)","v":""},{"$f":"IF('Generated list'!C5693=\"\",\"\",'Generated list'!C5693)","v":""},{"$f":"IF('Generated list'!D5693=\"\",\"\",'Generated list'!D5693)","v":""}]
[null,{"$f":"IF('Generated list'!B5694=\"\",\"\",'Generated list'!B5694)","v":""},{"$f":"IF('Generated list'!C5694=\"\",\"\",'Generated list'!C5694)","v":""},{"$f":"IF('Generated list'!D5694=\"\",\"\",'Generated list'!D5694)","v":""}]
[null,{"$f":"IF('Generated list'!B5695=\"\",\"\",'Generated list'!B5695)","v":""},{"$f":"IF('Generated list'!C5695=\"\",\"\",'Generated list'!C5695)","v":""},{"$f":"IF('Generated list'!D5695=\"\",\"\",'Generated list'!D5695)","v":""}]
[null,{"$f":"IF('Generated list'!B5696=\"\",\"\",'Generated list'!B5696)","v":""},{"$f":"IF('Generated list'!C5696=\"\",\"\",'Generated list'!C5696)","v":""},{"$f":"IF('Generated list'!D5696=\"\",\"\",'Generated list'!D5696)","v":""}]
[null,{"$f":"IF('Generated list'!B5697=\"\",\"\",'Generated list'!B5697)","v":""},{"$f":"IF('Generated list'!C5697=\"\",\"\",'Generated list'!C5697)","v":""},{"$f":"IF('Generated list'!D5697=\"\",\"\",'Generated list'!D5697)","v":""}]
[null,{"$f":"IF('Generated list'!B5698=\"\",\"\",'Generated list'!B5698)","v":""},{"$f":"IF('Generated list'!C5698=\"\",\"\",'Generated list'!C5698)","v":""},{"$f":"IF('Generated list'!D5698=\"\",\"\",'Generated list'!D5698)","v":""}]
[null,{"$f":"IF('Generated list'!B5699=\"\",\"\",'Generated list'!B5699)","v":""},{"$f":"IF('Generated list'!C5699=\"\",\"\",'Generated list'!C5699)","v":""},{"$f":"IF('Generated list'!D5699=\"\",\"\",'Generated list'!D5699)","v":""}]
[null,{"$f":"IF('Generated list'!B5700=\"\",\"\",'Generated list'!B5700)","v":""},{"$f":"IF('Generated list'!C5700=\"\",\"\",'Generated list'!C5700)","v":""},{"$f":"IF('Generated list'!D5700=\"\",\"\",'Generated list'!D5700)","v":""}]
[null,{"$f":"IF('Generated list'!B5701=\"\",\"\",'Generated list'!B5701)","v":""},{"$f":"IF('Generated list'!C5701=\"\",\"\",'Generated list'!C5701)","v":""},{"$f":"IF('Generated list'!D5701=\"\",\"\",'Generated list'!D5701)","v":""}]
[null,{"$f":"IF('Generated list'!B5702=\"\",\"\",'Generated list'!B5702)","v":""},{"$f":"IF('Generated list'!C5702=\"\",\"\",'Generated list'!C5702)","v":""},{"$f":"IF('Generated list'!D5702=\"\",\"\",'Generated list'!D5702)","v":""}]
[null,{"$f":"IF('Generated list'!B5703=\"\",\"\",'Generated list'!B5703)","v":""},{"$f":"IF('Generated list'!C5703=\"\",\"\",'Generated list'!C5703)","v":""},{"$f":"IF('Generated list'!D5703=\"\",\"\",'Generated list'!D5703)","v":""}]
[null,{"$f":"IF('Generated list'!B5704=\"\",\"\",'Generated list'!B5704)","v":""},{"$f":"IF('Generated list'!C5704=\"\",\"\",'Generated list'!C5704)","v":""},{"$f":"IF('Generated list'!D5704=\"\",\"\",'Generated list'!D5704)","v":""}]
[null,{"$f":"IF('Generated list'!B5705=\"\",\"\",'Generated list'!B5705)","v":""},{"$f":"IF('Generated list'!C5705=\"\",\"\",'Generated list'!C5705)","v":""},{"$f":"IF('Generated list'!D5705=\"\",\"\",'Generated list'!D5705)","v":""}]
[null,{"$f":"IF('Generated list'!B5706=\"\",\"\",'Generated list'!B5706)","v":""},{"$f":"IF('Generated list'!C5706=\"\",\"\",'Generated list'!C5706)","v":""},{"$f":"IF('Generated list'!D5706=\"\",\"\",'Generated list'!D5706)","v":""}]
[null,{"$f":"IF('Generated list'!B5707=\"\",\"\",'Generated list'!B5707)","v":""},{"$f":"IF('Generated list'!C5707=\"\",\"\",'Generated list'!C5707)","v":""},{"$f":"IF('Generated list'!D5707=\"\",\"\",'Generated list'!D5707)","v":""}]
[null,{"$f":"IF('Generated list'!B5708=\"\",\"\",'Generated list'!B5708)","v":""},{"$f":"IF('Generated list'!C5708=\"\",\"\",'Generated list'!C5708)","v":""},{"$f":"IF('Generated list'!D5708=\"\",\"\",'Generated list'!D5708)","v":""}]
[null,{"$f":"IF('Generated list'!B5709=\"\",\"\",'Generated list'!B5709)","v":""},{"$f":"IF('Generated list'!C5709=\"\",\"\",'Generated list'!C5709)","v":""},{"$f":"IF('Generated list'!D5709=\"\",\"\",'Generated list'!D5709)","v":""}]
[null,{"$f":"IF('Generated list'!B5710=\"\",\"\",'Generated list'!B5710)","v":""},{"$f":"IF('Generated list'!C5710=\"\",\"\",'Generated list'!C5710)","v":""},{"$f":"IF('Generated list'!D5710=\"\",\"\",'Generated list'!D5710)","v":""}]
[null,{"$f":"IF('Generated list'!B5711=\"\",\"\",'Generated list'!B5711)","v":""},{"$f":"IF('Generated list'!C5711=\"\",\"\",'Generated list'!C5711)","v":""},{"$f":"IF('Generated list'!D5711=\"\",\"\",'Generated list'!D5711)","v":""}]
[null,{"$f":"IF('Generated list'!B5712=\"\",\"\",'Generated list'!B5712)","v":""},{"$f":"IF('Generated list'!C5712=\"\",\"\",'Generated list'!C5712)","v":""},{"$f":"IF('Generated list'!D5712=\"\",\"\",'Generated list'!D5712)","v":""}]
[null,{"$f":"IF('Generated list'!B5713=\"\",\"\",'Generated list'!B5713)","v":""},{"$f":"IF('Generated list'!C5713=\"\",\"\",'Generated list'!C5713)","v":""},{"$f":"IF('Generated list'!D5713=\"\",\"\",'Generated list'!D5713)","v":""}]
[null,{"$f":"IF('Generated list'!B5714=\"\",\"\",'Generated list'!B5714)","v":""},{"$f":"IF('Generated list'!C5714=\"\",\"\",'Generated list'!C5714)","v":""},{"$f":"IF('Generated list'!D5714=\"\",\"\",'Generated list'!D5714)","v":""}]
[null,{"$f":"IF('Generated list'!B5715=\"\",\"\",'Generated list'!B5715)","v":""},{"$f":"IF('Generated list'!C5715=\"\",\"\",'Generated list'!C5715)","v":""},{"$f":"IF('Generated list'!D5715=\"\",\"\",'Generated list'!D5715)","v":""}]
[null,{"$f":"IF('Generated list'!B5716=\"\",\"\",'Generated list'!B5716)","v":""},{"$f":"IF('Generated list'!C5716=\"\",\"\",'Generated list'!C5716)","v":""},{"$f":"IF('Generated list'!D5716=\"\",\"\",'Generated list'!D5716)","v":""}]
[null,{"$f":"IF('Generated list'!B5717=\"\",\"\",'Generated list'!B5717)","v":""},{"$f":"IF('Generated list'!C5717=\"\",\"\",'Generated list'!C5717)","v":""},{"$f":"IF('Generated list'!D5717=\"\",\"\",'Generated list'!D5717)","v":""}]
[null,{"$f":"IF('Generated list'!B5718=\"\",\"\",'Generated list'!B5718)","v":""},{"$f":"IF('Generated list'!C5718=\"\",\"\",'Generated list'!C5718)","v":""},{"$f":"IF('Generated list'!D5718=\"\",\"\",'Generated list'!D5718)","v":""}]
[null,{"$f":"IF('Generated list'!B5719=\"\",\"\",'Generated list'!B5719)","v":""},{"$f":"IF('Generated list'!C5719=\"\",\"\",'Generated list'!C5719)","v":""},{"$f":"IF('Generated list'!D5719=\"\",\"\",'Generated list'!D5719)","v":""}]
[null,{"$f":"IF('Generated list'!B5720=\"\",\"\",'Generated list'!B5720)","v":""},{"$f":"IF('Generated list'!C5720=\"\",\"\",'Generated list'!C5720)","v":""},{"$f":"IF('Generated list'!D5720=\"\",\"\",'Generated list'!D5720)","v":""}]
[null,{"$f":"IF('Generated list'!B5721=\"\",\"\",'Generated list'!B5721)","v":""},{"$f":"IF('Generated list'!C5721=\"\",\"\",'Generated list'!C5721)","v":""},{"$f":"IF('Generated list'!D5721=\"\",\"\",'Generated list'!D5721)","v":""}]
[null,{"$f":"IF('Generated list'!B5722=\"\",\"\",'Generated list'!B5722)","v":""},{"$f":"IF('Generated list'!C5722=\"\",\"\",'Generated list'!C5722)","v":""},{"$f":"IF('Generated list'!D5722=\"\",\"\",'Generated list'!D5722)","v":""}]
[null,{"$f":"IF('Generated list'!B5723=\"\",\"\",'Generated list'!B5723)","v":""},{"$f":"IF('Generated list'!C5723=\"\",\"\",'Generated list'!C5723)","v":""},{"$f":"IF('Generated list'!D5723=\"\",\"\",'Generated list'!D5723)","v":""}]
[null,{"$f":"IF('Generated list'!B5724=\"\",\"\",'Generated list'!B5724)","v":""},{"$f":"IF('Generated list'!C5724=\"\",\"\",'Generated list'!C5724)","v":""},{"$f":"IF('Generated list'!D5724=\"\",\"\",'Generated list'!D5724)","v":""}]
[null,{"$f":"IF('Generated list'!B5725=\"\",\"\",'Generated list'!B5725)","v":""},{"$f":"IF('Generated list'!C5725=\"\",\"\",'Generated list'!C5725)","v":""},{"$f":"IF('Generated list'!D5725=\"\",\"\",'Generated list'!D5725)","v":""}]
[null,{"$f":"IF('Generated list'!B5726=\"\",\"\",'Generated list'!B5726)","v":""},{"$f":"IF('Generated list'!C5726=\"\",\"\",'Generated list'!C5726)","v":""},{"$f":"IF('Generated list'!D5726=\"\",\"\",'Generated list'!D5726)","v":""}]
[null,{"$f":"IF('Generated list'!B5727=\"\",\"\",'Generated list'!B5727)","v":""},{"$f":"IF('Generated list'!C5727=\"\",\"\",'Generated list'!C5727)","v":""},{"$f":"IF('Generated list'!D5727=\"\",\"\",'Generated list'!D5727)","v":""}]
[null,{"$f":"IF('Generated list'!B5728=\"\",\"\",'Generated list'!B5728)","v":""},{"$f":"IF('Generated list'!C5728=\"\",\"\",'Generated list'!C5728)","v":""},{"$f":"IF('Generated list'!D5728=\"\",\"\",'Generated list'!D5728)","v":""}]
[null,{"$f":"IF('Generated list'!B5729=\"\",\"\",'Generated list'!B5729)","v":""},{"$f":"IF('Generated list'!C5729=\"\",\"\",'Generated list'!C5729)","v":""},{"$f":"IF('Generated list'!D5729=\"\",\"\",'Generated list'!D5729)","v":""}]
[null,{"$f":"IF('Generated list'!B5730=\"\",\"\",'Generated list'!B5730)","v":""},{"$f":"IF('Generated list'!C5730=\"\",\"\",'Generated list'!C5730)","v":""},{"$f":"IF('Generated list'!D5730=\"\",\"\",'Generated list'!D5730)","v":""}]
[null,{"$f":"IF('Generated list'!B5731=\"\",\"\",'Generated list'!B5731)","v":""},{"$f":"IF('Generated list'!C5731=\"\",\"\",'Generated list'!C5731)","v":""},{"$f":"IF('Generated list'!D5731=\"\",\"\",'Generated list'!D5731)","v":""}]
[null,{"$f":"IF('Generated list'!B5732=\"\",\"\",'Generated list'!B5732)","v":""},{"$f":"IF('Generated list'!C5732=\"\",\"\",'Generated list'!C5732)","v":""},{"$f":"IF('Generated list'!D5732=\"\",\"\",'Generated list'!D5732)","v":""}]
[null,{"$f":"IF('Generated list'!B5733=\"\",\"\",'Generated list'!B5733)","v":""},{"$f":"IF('Generated list'!C5733=\"\",\"\",'Generated list'!C5733)","v":""},{"$f":"IF('Generated list'!D5733=\"\",\"\",'Generated list'!D5733)","v":""}]
[null,{"$f":"IF('Generated list'!B5734=\"\",\"\",'Generated list'!B5734)","v":""},{"$f":"IF('Generated list'!C5734=\"\",\"\",'Generated list'!C5734)","v":""},{"$f":"IF('Generated list'!D5734=\"\",\"\",'Generated list'!D5734)","v":""}]
[null,{"$f":"IF('Generated list'!B5735=\"\",\"\",'Generated list'!B5735)","v":""},{"$f":"IF('Generated list'!C5735=\"\",\"\",'Generated list'!C5735)","v":""},{"$f":"IF('Generated list'!D5735=\"\",\"\",'Generated list'!D5735)","v":""}]
[null,{"$f":"IF('Generated list'!B5736=\"\",\"\",'Generated list'!B5736)","v":""},{"$f":"IF('Generated list'!C5736=\"\",\"\",'Generated list'!C5736)","v":""},{"$f":"IF('Generated list'!D5736=\"\",\"\",'Generated list'!D5736)","v":""}]
[null,{"$f":"IF('Generated list'!B5737=\"\",\"\",'Generated list'!B5737)","v":""},{"$f":"IF('Generated list'!C5737=\"\",\"\",'Generated list'!C5737)","v":""},{"$f":"IF('Generated list'!D5737=\"\",\"\",'Generated list'!D5737)","v":""}]
[null,{"$f":"IF('Generated list'!B5738=\"\",\"\",'Generated list'!B5738)","v":""},{"$f":"IF('Generated list'!C5738=\"\",\"\",'Generated list'!C5738)","v":""},{"$f":"IF('Generated list'!D5738=\"\",\"\",'Generated list'!D5738)","v":""}]
[null,{"$f":"IF('Generated list'!B5739=\"\",\"\",'Generated list'!B5739)","v":""},{"$f":"IF('Generated list'!C5739=\"\",\"\",'Generated list'!C5739)","v":""},{"$f":"IF('Generated list'!D5739=\"\",\"\",'Generated list'!D5739)","v":""}]
[null,{"$f":"IF('Generated list'!B5740=\"\",\"\",'Generated list'!B5740)","v":""},{"$f":"IF('Generated list'!C5740=\"\",\"\",'Generated list'!C5740)","v":""},{"$f":"IF('Generated list'!D5740=\"\",\"\",'Generated list'!D5740)","v":""}]
[null,{"$f":"IF('Generated list'!B5741=\"\",\"\",'Generated list'!B5741)","v":""},{"$f":"IF('Generated list'!C5741=\"\",\"\",'Generated list'!C5741)","v":""},{"$f":"IF('Generated list'!D5741=\"\",\"\",'Generated list'!D5741)","v":""}]
[null,{"$f":"IF('Generated list'!B5742=\"\",\"\",'Generated list'!B5742)","v":""},{"$f":"IF('Generated list'!C5742=\"\",\"\",'Generated list'!C5742)","v":""},{"$f":"IF('Generated list'!D5742=\"\",\"\",'Generated list'!D5742)","v":""}]
[null,{"$f":"IF('Generated list'!B5743=\"\",\"\",'Generated list'!B5743)","v":""},{"$f":"IF('Generated list'!C5743=\"\",\"\",'Generated list'!C5743)","v":""},{"$f":"IF('Generated list'!D5743=\"\",\"\",'Generated list'!D5743)","v":""}]
[null,{"$f":"IF('Generated list'!B5744=\"\",\"\",'Generated list'!B5744)","v":""},{"$f":"IF('Generated list'!C5744=\"\",\"\",'Generated list'!C5744)","v":""},{"$f":"IF('Generated list'!D5744=\"\",\"\",'Generated list'!D5744)","v":""}]
[null,{"$f":"IF('Generated list'!B5745=\"\",\"\",'Generated list'!B5745)","v":""},{"$f":"IF('Generated list'!C5745=\"\",\"\",'Generated list'!C5745)","v":""},{"$f":"IF('Generated list'!D5745=\"\",\"\",'Generated list'!D5745)","v":""}]
[null,{"$f":"IF('Generated list'!B5746=\"\",\"\",'Generated list'!B5746)","v":""},{"$f":"IF('Generated list'!C5746=\"\",\"\",'Generated list'!C5746)","v":""},{"$f":"IF('Generated list'!D5746=\"\",\"\",'Generated list'!D5746)","v":""}]
[null,{"$f":"IF('Generated list'!B5747=\"\",\"\",'Generated list'!B5747)","v":""},{"$f":"IF('Generated list'!C5747=\"\",\"\",'Generated list'!C5747)","v":""},{"$f":"IF('Generated list'!D5747=\"\",\"\",'Generated list'!D5747)","v":""}]
[null,{"$f":"IF('Generated list'!B5748=\"\",\"\",'Generated list'!B5748)","v":""},{"$f":"IF('Generated list'!C5748=\"\",\"\",'Generated list'!C5748)","v":""},{"$f":"IF('Generated list'!D5748=\"\",\"\",'Generated list'!D5748)","v":""}]
[null,{"$f":"IF('Generated list'!B5749=\"\",\"\",'Generated list'!B5749)","v":""},{"$f":"IF('Generated list'!C5749=\"\",\"\",'Generated list'!C5749)","v":""},{"$f":"IF('Generated list'!D5749=\"\",\"\",'Generated list'!D5749)","v":""}]
[null,{"$f":"IF('Generated list'!B5750=\"\",\"\",'Generated list'!B5750)","v":""},{"$f":"IF('Generated list'!C5750=\"\",\"\",'Generated list'!C5750)","v":""},{"$f":"IF('Generated list'!D5750=\"\",\"\",'Generated list'!D5750)","v":""}]
[null,{"$f":"IF('Generated list'!B5751=\"\",\"\",'Generated list'!B5751)","v":""},{"$f":"IF('Generated list'!C5751=\"\",\"\",'Generated list'!C5751)","v":""},{"$f":"IF('Generated list'!D5751=\"\",\"\",'Generated list'!D5751)","v":""}]
[null,{"$f":"IF('Generated list'!B5752=\"\",\"\",'Generated list'!B5752)","v":""},{"$f":"IF('Generated list'!C5752=\"\",\"\",'Generated list'!C5752)","v":""},{"$f":"IF('Generated list'!D5752=\"\",\"\",'Generated list'!D5752)","v":""}]
[null,{"$f":"IF('Generated list'!B5753=\"\",\"\",'Generated list'!B5753)","v":""},{"$f":"IF('Generated list'!C5753=\"\",\"\",'Generated list'!C5753)","v":""},{"$f":"IF('Generated list'!D5753=\"\",\"\",'Generated list'!D5753)","v":""}]
[null,{"$f":"IF('Generated list'!B5754=\"\",\"\",'Generated list'!B5754)","v":""},{"$f":"IF('Generated list'!C5754=\"\",\"\",'Generated list'!C5754)","v":""},{"$f":"IF('Generated list'!D5754=\"\",\"\",'Generated list'!D5754)","v":""}]
[null,{"$f":"IF('Generated list'!B5755=\"\",\"\",'Generated list'!B5755)","v":""},{"$f":"IF('Generated list'!C5755=\"\",\"\",'Generated list'!C5755)","v":""},{"$f":"IF('Generated list'!D5755=\"\",\"\",'Generated list'!D5755)","v":""}]
[null,{"$f":"IF('Generated list'!B5756=\"\",\"\",'Generated list'!B5756)","v":""},{"$f":"IF('Generated list'!C5756=\"\",\"\",'Generated list'!C5756)","v":""},{"$f":"IF('Generated list'!D5756=\"\",\"\",'Generated list'!D5756)","v":""}]
[null,{"$f":"IF('Generated list'!B5757=\"\",\"\",'Generated list'!B5757)","v":""},{"$f":"IF('Generated list'!C5757=\"\",\"\",'Generated list'!C5757)","v":""},{"$f":"IF('Generated list'!D5757=\"\",\"\",'Generated list'!D5757)","v":""}]
[null,{"$f":"IF('Generated list'!B5758=\"\",\"\",'Generated list'!B5758)","v":""},{"$f":"IF('Generated list'!C5758=\"\",\"\",'Generated list'!C5758)","v":""},{"$f":"IF('Generated list'!D5758=\"\",\"\",'Generated list'!D5758)","v":""}]
[null,{"$f":"IF('Generated list'!B5759=\"\",\"\",'Generated list'!B5759)","v":""},{"$f":"IF('Generated list'!C5759=\"\",\"\",'Generated list'!C5759)","v":""},{"$f":"IF('Generated list'!D5759=\"\",\"\",'Generated list'!D5759)","v":""}]
[null,{"$f":"IF('Generated list'!B5760=\"\",\"\",'Generated list'!B5760)","v":""},{"$f":"IF('Generated list'!C5760=\"\",\"\",'Generated list'!C5760)","v":""},{"$f":"IF('Generated list'!D5760=\"\",\"\",'Generated list'!D5760)","v":""}]
[null,{"$f":"IF('Generated list'!B5761=\"\",\"\",'Generated list'!B5761)","v":""},{"$f":"IF('Generated list'!C5761=\"\",\"\",'Generated list'!C5761)","v":""},{"$f":"IF('Generated list'!D5761=\"\",\"\",'Generated list'!D5761)","v":""}]
[null,{"$f":"IF('Generated list'!B5762=\"\",\"\",'Generated list'!B5762)","v":""},{"$f":"IF('Generated list'!C5762=\"\",\"\",'Generated list'!C5762)","v":""},{"$f":"IF('Generated list'!D5762=\"\",\"\",'Generated list'!D5762)","v":""}]
[null,{"$f":"IF('Generated list'!B5763=\"\",\"\",'Generated list'!B5763)","v":""},{"$f":"IF('Generated list'!C5763=\"\",\"\",'Generated list'!C5763)","v":""},{"$f":"IF('Generated list'!D5763=\"\",\"\",'Generated list'!D5763)","v":""}]
[null,{"$f":"IF('Generated list'!B5764=\"\",\"\",'Generated list'!B5764)","v":""},{"$f":"IF('Generated list'!C5764=\"\",\"\",'Generated list'!C5764)","v":""},{"$f":"IF('Generated list'!D5764=\"\",\"\",'Generated list'!D5764)","v":""}]
[null,{"$f":"IF('Generated list'!B5765=\"\",\"\",'Generated list'!B5765)","v":""},{"$f":"IF('Generated list'!C5765=\"\",\"\",'Generated list'!C5765)","v":""},{"$f":"IF('Generated list'!D5765=\"\",\"\",'Generated list'!D5765)","v":""}]
[null,{"$f":"IF('Generated list'!B5766=\"\",\"\",'Generated list'!B5766)","v":""},{"$f":"IF('Generated list'!C5766=\"\",\"\",'Generated list'!C5766)","v":""},{"$f":"IF('Generated list'!D5766=\"\",\"\",'Generated list'!D5766)","v":""}]
[null,{"$f":"IF('Generated list'!B5767=\"\",\"\",'Generated list'!B5767)","v":""},{"$f":"IF('Generated list'!C5767=\"\",\"\",'Generated list'!C5767)","v":""},{"$f":"IF('Generated list'!D5767=\"\",\"\",'Generated list'!D5767)","v":""}]
[null,{"$f":"IF('Generated list'!B5768=\"\",\"\",'Generated list'!B5768)","v":""},{"$f":"IF('Generated list'!C5768=\"\",\"\",'Generated list'!C5768)","v":""},{"$f":"IF('Generated list'!D5768=\"\",\"\",'Generated list'!D5768)","v":""}]
[null,{"$f":"IF('Generated list'!B5769=\"\",\"\",'Generated list'!B5769)","v":""},{"$f":"IF('Generated list'!C5769=\"\",\"\",'Generated list'!C5769)","v":""},{"$f":"IF('Generated list'!D5769=\"\",\"\",'Generated list'!D5769)","v":""}]
[null,{"$f":"IF('Generated list'!B5770=\"\",\"\",'Generated list'!B5770)","v":""},{"$f":"IF('Generated list'!C5770=\"\",\"\",'Generated list'!C5770)","v":""},{"$f":"IF('Generated list'!D5770=\"\",\"\",'Generated list'!D5770)","v":""}]
[null,{"$f":"IF('Generated list'!B5771=\"\",\"\",'Generated list'!B5771)","v":""},{"$f":"IF('Generated list'!C5771=\"\",\"\",'Generated list'!C5771)","v":""},{"$f":"IF('Generated list'!D5771=\"\",\"\",'Generated list'!D5771)","v":""}]
[null,{"$f":"IF('Generated list'!B5772=\"\",\"\",'Generated list'!B5772)","v":""},{"$f":"IF('Generated list'!C5772=\"\",\"\",'Generated list'!C5772)","v":""},{"$f":"IF('Generated list'!D5772=\"\",\"\",'Generated list'!D5772)","v":""}]
[null,{"$f":"IF('Generated list'!B5773=\"\",\"\",'Generated list'!B5773)","v":""},{"$f":"IF('Generated list'!C5773=\"\",\"\",'Generated list'!C5773)","v":""},{"$f":"IF('Generated list'!D5773=\"\",\"\",'Generated list'!D5773)","v":""}]
[null,{"$f":"IF('Generated list'!B5774=\"\",\"\",'Generated list'!B5774)","v":""},{"$f":"IF('Generated list'!C5774=\"\",\"\",'Generated list'!C5774)","v":""},{"$f":"IF('Generated list'!D5774=\"\",\"\",'Generated list'!D5774)","v":""}]
[null,{"$f":"IF('Generated list'!B5775=\"\",\"\",'Generated list'!B5775)","v":""},{"$f":"IF('Generated list'!C5775=\"\",\"\",'Generated list'!C5775)","v":""},{"$f":"IF('Generated list'!D5775=\"\",\"\",'Generated list'!D5775)","v":""}]
[null,{"$f":"IF('Generated list'!B5776=\"\",\"\",'Generated list'!B5776)","v":""},{"$f":"IF('Generated list'!C5776=\"\",\"\",'Generated list'!C5776)","v":""},{"$f":"IF('Generated list'!D5776=\"\",\"\",'Generated list'!D5776)","v":""}]
[null,{"$f":"IF('Generated list'!B5777=\"\",\"\",'Generated list'!B5777)","v":""},{"$f":"IF('Generated list'!C5777=\"\",\"\",'Generated list'!C5777)","v":""},{"$f":"IF('Generated list'!D5777=\"\",\"\",'Generated list'!D5777)","v":""}]
[null,{"$f":"IF('Generated list'!B5778=\"\",\"\",'Generated list'!B5778)","v":""},{"$f":"IF('Generated list'!C5778=\"\",\"\",'Generated list'!C5778)","v":""},{"$f":"IF('Generated list'!D5778=\"\",\"\",'Generated list'!D5778)","v":""}]
[null,{"$f":"IF('Generated list'!B5779=\"\",\"\",'Generated list'!B5779)","v":""},{"$f":"IF('Generated list'!C5779=\"\",\"\",'Generated list'!C5779)","v":""},{"$f":"IF('Generated list'!D5779=\"\",\"\",'Generated list'!D5779)","v":""}]
[null,{"$f":"IF('Generated list'!B5780=\"\",\"\",'Generated list'!B5780)","v":""},{"$f":"IF('Generated list'!C5780=\"\",\"\",'Generated list'!C5780)","v":""},{"$f":"IF('Generated list'!D5780=\"\",\"\",'Generated list'!D5780)","v":""}]
[null,{"$f":"IF('Generated list'!B5781=\"\",\"\",'Generated list'!B5781)","v":""},{"$f":"IF('Generated list'!C5781=\"\",\"\",'Generated list'!C5781)","v":""},{"$f":"IF('Generated list'!D5781=\"\",\"\",'Generated list'!D5781)","v":""}]
[null,{"$f":"IF('Generated list'!B5782=\"\",\"\",'Generated list'!B5782)","v":""},{"$f":"IF('Generated list'!C5782=\"\",\"\",'Generated list'!C5782)","v":""},{"$f":"IF('Generated list'!D5782=\"\",\"\",'Generated list'!D5782)","v":""}]
[null,{"$f":"IF('Generated list'!B5783=\"\",\"\",'Generated list'!B5783)","v":""},{"$f":"IF('Generated list'!C5783=\"\",\"\",'Generated list'!C5783)","v":""},{"$f":"IF('Generated list'!D5783=\"\",\"\",'Generated list'!D5783)","v":""}]
[null,{"$f":"IF('Generated list'!B5784=\"\",\"\",'Generated list'!B5784)","v":""},{"$f":"IF('Generated list'!C5784=\"\",\"\",'Generated list'!C5784)","v":""},{"$f":"IF('Generated list'!D5784=\"\",\"\",'Generated list'!D5784)","v":""}]
[null,{"$f":"IF('Generated list'!B5785=\"\",\"\",'Generated list'!B5785)","v":""},{"$f":"IF('Generated list'!C5785=\"\",\"\",'Generated list'!C5785)","v":""},{"$f":"IF('Generated list'!D5785=\"\",\"\",'Generated list'!D5785)","v":""}]
[null,{"$f":"IF('Generated list'!B5786=\"\",\"\",'Generated list'!B5786)","v":""},{"$f":"IF('Generated list'!C5786=\"\",\"\",'Generated list'!C5786)","v":""},{"$f":"IF('Generated list'!D5786=\"\",\"\",'Generated list'!D5786)","v":""}]
[null,{"$f":"IF('Generated list'!B5787=\"\",\"\",'Generated list'!B5787)","v":""},{"$f":"IF('Generated list'!C5787=\"\",\"\",'Generated list'!C5787)","v":""},{"$f":"IF('Generated list'!D5787=\"\",\"\",'Generated list'!D5787)","v":""}]
[null,{"$f":"IF('Generated list'!B5788=\"\",\"\",'Generated list'!B5788)","v":""},{"$f":"IF('Generated list'!C5788=\"\",\"\",'Generated list'!C5788)","v":""},{"$f":"IF('Generated list'!D5788=\"\",\"\",'Generated list'!D5788)","v":""}]
[null,{"$f":"IF('Generated list'!B5789=\"\",\"\",'Generated list'!B5789)","v":""},{"$f":"IF('Generated list'!C5789=\"\",\"\",'Generated list'!C5789)","v":""},{"$f":"IF('Generated list'!D5789=\"\",\"\",'Generated list'!D5789)","v":""}]
[null,{"$f":"IF('Generated list'!B5790=\"\",\"\",'Generated list'!B5790)","v":""},{"$f":"IF('Generated list'!C5790=\"\",\"\",'Generated list'!C5790)","v":""},{"$f":"IF('Generated list'!D5790=\"\",\"\",'Generated list'!D5790)","v":""}]
[null,{"$f":"IF('Generated list'!B5791=\"\",\"\",'Generated list'!B5791)","v":""},{"$f":"IF('Generated list'!C5791=\"\",\"\",'Generated list'!C5791)","v":""},{"$f":"IF('Generated list'!D5791=\"\",\"\",'Generated list'!D5791)","v":""}]
[null,{"$f":"IF('Generated list'!B5792=\"\",\"\",'Generated list'!B5792)","v":""},{"$f":"IF('Generated list'!C5792=\"\",\"\",'Generated list'!C5792)","v":""},{"$f":"IF('Generated list'!D5792=\"\",\"\",'Generated list'!D5792)","v":""}]
[null,{"$f":"IF('Generated list'!B5793=\"\",\"\",'Generated list'!B5793)","v":""},{"$f":"IF('Generated list'!C5793=\"\",\"\",'Generated list'!C5793)","v":""},{"$f":"IF('Generated list'!D5793=\"\",\"\",'Generated list'!D5793)","v":""}]
[null,{"$f":"IF('Generated list'!B5794=\"\",\"\",'Generated list'!B5794)","v":""},{"$f":"IF('Generated list'!C5794=\"\",\"\",'Generated list'!C5794)","v":""},{"$f":"IF('Generated list'!D5794=\"\",\"\",'Generated list'!D5794)","v":""}]
[null,{"$f":"IF('Generated list'!B5795=\"\",\"\",'Generated list'!B5795)","v":""},{"$f":"IF('Generated list'!C5795=\"\",\"\",'Generated list'!C5795)","v":""},{"$f":"IF('Generated list'!D5795=\"\",\"\",'Generated list'!D5795)","v":""}]
[null,{"$f":"IF('Generated list'!B5796=\"\",\"\",'Generated list'!B5796)","v":""},{"$f":"IF('Generated list'!C5796=\"\",\"\",'Generated list'!C5796)","v":""},{"$f":"IF('Generated list'!D5796=\"\",\"\",'Generated list'!D5796)","v":""}]
[null,{"$f":"IF('Generated list'!B5797=\"\",\"\",'Generated list'!B5797)","v":""},{"$f":"IF('Generated list'!C5797=\"\",\"\",'Generated list'!C5797)","v":""},{"$f":"IF('Generated list'!D5797=\"\",\"\",'Generated list'!D5797)","v":""}]
[null,{"$f":"IF('Generated list'!B5798=\"\",\"\",'Generated list'!B5798)","v":""},{"$f":"IF('Generated list'!C5798=\"\",\"\",'Generated list'!C5798)","v":""},{"$f":"IF('Generated list'!D5798=\"\",\"\",'Generated list'!D5798)","v":""}]
[null,{"$f":"IF('Generated list'!B5799=\"\",\"\",'Generated list'!B5799)","v":""},{"$f":"IF('Generated list'!C5799=\"\",\"\",'Generated list'!C5799)","v":""},{"$f":"IF('Generated list'!D5799=\"\",\"\",'Generated list'!D5799)","v":""}]
[null,{"$f":"IF('Generated list'!B5800=\"\",\"\",'Generated list'!B5800)","v":""},{"$f":"IF('Generated list'!C5800=\"\",\"\",'Generated list'!C5800)","v":""},{"$f":"IF('Generated list'!D5800=\"\",\"\",'Generated list'!D5800)","v":""}]
[null,{"$f":"IF('Generated list'!B5801=\"\",\"\",'Generated list'!B5801)","v":""},{"$f":"IF('Generated list'!C5801=\"\",\"\",'Generated list'!C5801)","v":""},{"$f":"IF('Generated list'!D5801=\"\",\"\",'Generated list'!D5801)","v":""}]
[null,{"$f":"IF('Generated list'!B5802=\"\",\"\",'Generated list'!B5802)","v":""},{"$f":"IF('Generated list'!C5802=\"\",\"\",'Generated list'!C5802)","v":""},{"$f":"IF('Generated list'!D5802=\"\",\"\",'Generated list'!D5802)","v":""}]
[null,{"$f":"IF('Generated list'!B5803=\"\",\"\",'Generated list'!B5803)","v":""},{"$f":"IF('Generated list'!C5803=\"\",\"\",'Generated list'!C5803)","v":""},{"$f":"IF('Generated list'!D5803=\"\",\"\",'Generated list'!D5803)","v":""}]
[null,{"$f":"IF('Generated list'!B5804=\"\",\"\",'Generated list'!B5804)","v":""},{"$f":"IF('Generated list'!C5804=\"\",\"\",'Generated list'!C5804)","v":""},{"$f":"IF('Generated list'!D5804=\"\",\"\",'Generated list'!D5804)","v":""}]
[null,{"$f":"IF('Generated list'!B5805=\"\",\"\",'Generated list'!B5805)","v":""},{"$f":"IF('Generated list'!C5805=\"\",\"\",'Generated list'!C5805)","v":""},{"$f":"IF('Generated list'!D5805=\"\",\"\",'Generated list'!D5805)","v":""}]
[null,{"$f":"IF('Generated list'!B5806=\"\",\"\",'Generated list'!B5806)","v":""},{"$f":"IF('Generated list'!C5806=\"\",\"\",'Generated list'!C5806)","v":""},{"$f":"IF('Generated list'!D5806=\"\",\"\",'Generated list'!D5806)","v":""}]
[null,{"$f":"IF('Generated list'!B5807=\"\",\"\",'Generated list'!B5807)","v":""},{"$f":"IF('Generated list'!C5807=\"\",\"\",'Generated list'!C5807)","v":""},{"$f":"IF('Generated list'!D5807=\"\",\"\",'Generated list'!D5807)","v":""}]
[null,{"$f":"IF('Generated list'!B5808=\"\",\"\",'Generated list'!B5808)","v":""},{"$f":"IF('Generated list'!C5808=\"\",\"\",'Generated list'!C5808)","v":""},{"$f":"IF('Generated list'!D5808=\"\",\"\",'Generated list'!D5808)","v":""}]
[null,{"$f":"IF('Generated list'!B5809=\"\",\"\",'Generated list'!B5809)","v":""},{"$f":"IF('Generated list'!C5809=\"\",\"\",'Generated list'!C5809)","v":""},{"$f":"IF('Generated list'!D5809=\"\",\"\",'Generated list'!D5809)","v":""}]
[null,{"$f":"IF('Generated list'!B5810=\"\",\"\",'Generated list'!B5810)","v":""},{"$f":"IF('Generated list'!C5810=\"\",\"\",'Generated list'!C5810)","v":""},{"$f":"IF('Generated list'!D5810=\"\",\"\",'Generated list'!D5810)","v":""}]
[null,{"$f":"IF('Generated list'!B5811=\"\",\"\",'Generated list'!B5811)","v":""},{"$f":"IF('Generated list'!C5811=\"\",\"\",'Generated list'!C5811)","v":""},{"$f":"IF('Generated list'!D5811=\"\",\"\",'Generated list'!D5811)","v":""}]
[null,{"$f":"IF('Generated list'!B5812=\"\",\"\",'Generated list'!B5812)","v":""},{"$f":"IF('Generated list'!C5812=\"\",\"\",'Generated list'!C5812)","v":""},{"$f":"IF('Generated list'!D5812=\"\",\"\",'Generated list'!D5812)","v":""}]
[null,{"$f":"IF('Generated list'!B5813=\"\",\"\",'Generated list'!B5813)","v":""},{"$f":"IF('Generated list'!C5813=\"\",\"\",'Generated list'!C5813)","v":""},{"$f":"IF('Generated list'!D5813=\"\",\"\",'Generated list'!D5813)","v":""}]
[null,{"$f":"IF('Generated list'!B5814=\"\",\"\",'Generated list'!B5814)","v":""},{"$f":"IF('Generated list'!C5814=\"\",\"\",'Generated list'!C5814)","v":""},{"$f":"IF('Generated list'!D5814=\"\",\"\",'Generated list'!D5814)","v":""}]
[null,{"$f":"IF('Generated list'!B5815=\"\",\"\",'Generated list'!B5815)","v":""},{"$f":"IF('Generated list'!C5815=\"\",\"\",'Generated list'!C5815)","v":""},{"$f":"IF('Generated list'!D5815=\"\",\"\",'Generated list'!D5815)","v":""}]
[null,{"$f":"IF('Generated list'!B5816=\"\",\"\",'Generated list'!B5816)","v":""},{"$f":"IF('Generated list'!C5816=\"\",\"\",'Generated list'!C5816)","v":""},{"$f":"IF('Generated list'!D5816=\"\",\"\",'Generated list'!D5816)","v":""}]
[null,{"$f":"IF('Generated list'!B5817=\"\",\"\",'Generated list'!B5817)","v":""},{"$f":"IF('Generated list'!C5817=\"\",\"\",'Generated list'!C5817)","v":""},{"$f":"IF('Generated list'!D5817=\"\",\"\",'Generated list'!D5817)","v":""}]
[null,{"$f":"IF('Generated list'!B5818=\"\",\"\",'Generated list'!B5818)","v":""},{"$f":"IF('Generated list'!C5818=\"\",\"\",'Generated list'!C5818)","v":""},{"$f":"IF('Generated list'!D5818=\"\",\"\",'Generated list'!D5818)","v":""}]
[null,{"$f":"IF('Generated list'!B5819=\"\",\"\",'Generated list'!B5819)","v":""},{"$f":"IF('Generated list'!C5819=\"\",\"\",'Generated list'!C5819)","v":""},{"$f":"IF('Generated list'!D5819=\"\",\"\",'Generated list'!D5819)","v":""}]
[null,{"$f":"IF('Generated list'!B5820=\"\",\"\",'Generated list'!B5820)","v":""},{"$f":"IF('Generated list'!C5820=\"\",\"\",'Generated list'!C5820)","v":""},{"$f":"IF('Generated list'!D5820=\"\",\"\",'Generated list'!D5820)","v":""}]
[null,{"$f":"IF('Generated list'!B5821=\"\",\"\",'Generated list'!B5821)","v":""},{"$f":"IF('Generated list'!C5821=\"\",\"\",'Generated list'!C5821)","v":""},{"$f":"IF('Generated list'!D5821=\"\",\"\",'Generated list'!D5821)","v":""}]
[null,{"$f":"IF('Generated list'!B5822=\"\",\"\",'Generated list'!B5822)","v":""},{"$f":"IF('Generated list'!C5822=\"\",\"\",'Generated list'!C5822)","v":""},{"$f":"IF('Generated list'!D5822=\"\",\"\",'Generated list'!D5822)","v":""}]
[null,{"$f":"IF('Generated list'!B5823=\"\",\"\",'Generated list'!B5823)","v":""},{"$f":"IF('Generated list'!C5823=\"\",\"\",'Generated list'!C5823)","v":""},{"$f":"IF('Generated list'!D5823=\"\",\"\",'Generated list'!D5823)","v":""}]
[null,{"$f":"IF('Generated list'!B5824=\"\",\"\",'Generated list'!B5824)","v":""},{"$f":"IF('Generated list'!C5824=\"\",\"\",'Generated list'!C5824)","v":""},{"$f":"IF('Generated list'!D5824=\"\",\"\",'Generated list'!D5824)","v":""}]
[null,{"$f":"IF('Generated list'!B5825=\"\",\"\",'Generated list'!B5825)","v":""},{"$f":"IF('Generated list'!C5825=\"\",\"\",'Generated list'!C5825)","v":""},{"$f":"IF('Generated list'!D5825=\"\",\"\",'Generated list'!D5825)","v":""}]
[null,{"$f":"IF('Generated list'!B5826=\"\",\"\",'Generated list'!B5826)","v":""},{"$f":"IF('Generated list'!C5826=\"\",\"\",'Generated list'!C5826)","v":""},{"$f":"IF('Generated list'!D5826=\"\",\"\",'Generated list'!D5826)","v":""}]
[null,{"$f":"IF('Generated list'!B5827=\"\",\"\",'Generated list'!B5827)","v":""},{"$f":"IF('Generated list'!C5827=\"\",\"\",'Generated list'!C5827)","v":""},{"$f":"IF('Generated list'!D5827=\"\",\"\",'Generated list'!D5827)","v":""}]
[null,{"$f":"IF('Generated list'!B5828=\"\",\"\",'Generated list'!B5828)","v":""},{"$f":"IF('Generated list'!C5828=\"\",\"\",'Generated list'!C5828)","v":""},{"$f":"IF('Generated list'!D5828=\"\",\"\",'Generated list'!D5828)","v":""}]
[null,{"$f":"IF('Generated list'!B5829=\"\",\"\",'Generated list'!B5829)","v":""},{"$f":"IF('Generated list'!C5829=\"\",\"\",'Generated list'!C5829)","v":""},{"$f":"IF('Generated list'!D5829=\"\",\"\",'Generated list'!D5829)","v":""}]
[null,{"$f":"IF('Generated list'!B5830=\"\",\"\",'Generated list'!B5830)","v":""},{"$f":"IF('Generated list'!C5830=\"\",\"\",'Generated list'!C5830)","v":""},{"$f":"IF('Generated list'!D5830=\"\",\"\",'Generated list'!D5830)","v":""}]
[null,{"$f":"IF('Generated list'!B5831=\"\",\"\",'Generated list'!B5831)","v":""},{"$f":"IF('Generated list'!C5831=\"\",\"\",'Generated list'!C5831)","v":""},{"$f":"IF('Generated list'!D5831=\"\",\"\",'Generated list'!D5831)","v":""}]
[null,{"$f":"IF('Generated list'!B5832=\"\",\"\",'Generated list'!B5832)","v":""},{"$f":"IF('Generated list'!C5832=\"\",\"\",'Generated list'!C5832)","v":""},{"$f":"IF('Generated list'!D5832=\"\",\"\",'Generated list'!D5832)","v":""}]
[null,{"$f":"IF('Generated list'!B5833=\"\",\"\",'Generated list'!B5833)","v":""},{"$f":"IF('Generated list'!C5833=\"\",\"\",'Generated list'!C5833)","v":""},{"$f":"IF('Generated list'!D5833=\"\",\"\",'Generated list'!D5833)","v":""}]
[null,{"$f":"IF('Generated list'!B5834=\"\",\"\",'Generated list'!B5834)","v":""},{"$f":"IF('Generated list'!C5834=\"\",\"\",'Generated list'!C5834)","v":""},{"$f":"IF('Generated list'!D5834=\"\",\"\",'Generated list'!D5834)","v":""}]
[null,{"$f":"IF('Generated list'!B5835=\"\",\"\",'Generated list'!B5835)","v":""},{"$f":"IF('Generated list'!C5835=\"\",\"\",'Generated list'!C5835)","v":""},{"$f":"IF('Generated list'!D5835=\"\",\"\",'Generated list'!D5835)","v":""}]
[null,{"$f":"IF('Generated list'!B5836=\"\",\"\",'Generated list'!B5836)","v":""},{"$f":"IF('Generated list'!C5836=\"\",\"\",'Generated list'!C5836)","v":""},{"$f":"IF('Generated list'!D5836=\"\",\"\",'Generated list'!D5836)","v":""}]
[null,{"$f":"IF('Generated list'!B5837=\"\",\"\",'Generated list'!B5837)","v":""},{"$f":"IF('Generated list'!C5837=\"\",\"\",'Generated list'!C5837)","v":""},{"$f":"IF('Generated list'!D5837=\"\",\"\",'Generated list'!D5837)","v":""}]
[null,{"$f":"IF('Generated list'!B5838=\"\",\"\",'Generated list'!B5838)","v":""},{"$f":"IF('Generated list'!C5838=\"\",\"\",'Generated list'!C5838)","v":""},{"$f":"IF('Generated list'!D5838=\"\",\"\",'Generated list'!D5838)","v":""}]
[null,{"$f":"IF('Generated list'!B5839=\"\",\"\",'Generated list'!B5839)","v":""},{"$f":"IF('Generated list'!C5839=\"\",\"\",'Generated list'!C5839)","v":""},{"$f":"IF('Generated list'!D5839=\"\",\"\",'Generated list'!D5839)","v":""}]
[null,{"$f":"IF('Generated list'!B5840=\"\",\"\",'Generated list'!B5840)","v":""},{"$f":"IF('Generated list'!C5840=\"\",\"\",'Generated list'!C5840)","v":""},{"$f":"IF('Generated list'!D5840=\"\",\"\",'Generated list'!D5840)","v":""}]
[null,{"$f":"IF('Generated list'!B5841=\"\",\"\",'Generated list'!B5841)","v":""},{"$f":"IF('Generated list'!C5841=\"\",\"\",'Generated list'!C5841)","v":""},{"$f":"IF('Generated list'!D5841=\"\",\"\",'Generated list'!D5841)","v":""}]
[null,{"$f":"IF('Generated list'!B5842=\"\",\"\",'Generated list'!B5842)","v":""},{"$f":"IF('Generated list'!C5842=\"\",\"\",'Generated list'!C5842)","v":""},{"$f":"IF('Generated list'!D5842=\"\",\"\",'Generated list'!D5842)","v":""}]
[null,{"$f":"IF('Generated list'!B5843=\"\",\"\",'Generated list'!B5843)","v":""},{"$f":"IF('Generated list'!C5843=\"\",\"\",'Generated list'!C5843)","v":""},{"$f":"IF('Generated list'!D5843=\"\",\"\",'Generated list'!D5843)","v":""}]
[null,{"$f":"IF('Generated list'!B5844=\"\",\"\",'Generated list'!B5844)","v":""},{"$f":"IF('Generated list'!C5844=\"\",\"\",'Generated list'!C5844)","v":""},{"$f":"IF('Generated list'!D5844=\"\",\"\",'Generated list'!D5844)","v":""}]
[null,{"$f":"IF('Generated list'!B5845=\"\",\"\",'Generated list'!B5845)","v":""},{"$f":"IF('Generated list'!C5845=\"\",\"\",'Generated list'!C5845)","v":""},{"$f":"IF('Generated list'!D5845=\"\",\"\",'Generated list'!D5845)","v":""}]
[null,{"$f":"IF('Generated list'!B5846=\"\",\"\",'Generated list'!B5846)","v":""},{"$f":"IF('Generated list'!C5846=\"\",\"\",'Generated list'!C5846)","v":""},{"$f":"IF('Generated list'!D5846=\"\",\"\",'Generated list'!D5846)","v":""}]
[null,{"$f":"IF('Generated list'!B5847=\"\",\"\",'Generated list'!B5847)","v":""},{"$f":"IF('Generated list'!C5847=\"\",\"\",'Generated list'!C5847)","v":""},{"$f":"IF('Generated list'!D5847=\"\",\"\",'Generated list'!D5847)","v":""}]
[null,{"$f":"IF('Generated list'!B5848=\"\",\"\",'Generated list'!B5848)","v":""},{"$f":"IF('Generated list'!C5848=\"\",\"\",'Generated list'!C5848)","v":""},{"$f":"IF('Generated list'!D5848=\"\",\"\",'Generated list'!D5848)","v":""}]
[null,{"$f":"IF('Generated list'!B5849=\"\",\"\",'Generated list'!B5849)","v":""},{"$f":"IF('Generated list'!C5849=\"\",\"\",'Generated list'!C5849)","v":""},{"$f":"IF('Generated list'!D5849=\"\",\"\",'Generated list'!D5849)","v":""}]
[null,{"$f":"IF('Generated list'!B5850=\"\",\"\",'Generated list'!B5850)","v":""},{"$f":"IF('Generated list'!C5850=\"\",\"\",'Generated list'!C5850)","v":""},{"$f":"IF('Generated list'!D5850=\"\",\"\",'Generated list'!D5850)","v":""}]
[null,{"$f":"IF('Generated list'!B5851=\"\",\"\",'Generated list'!B5851)","v":""},{"$f":"IF('Generated list'!C5851=\"\",\"\",'Generated list'!C5851)","v":""},{"$f":"IF('Generated list'!D5851=\"\",\"\",'Generated list'!D5851)","v":""}]
[null,{"$f":"IF('Generated list'!B5852=\"\",\"\",'Generated list'!B5852)","v":""},{"$f":"IF('Generated list'!C5852=\"\",\"\",'Generated list'!C5852)","v":""},{"$f":"IF('Generated list'!D5852=\"\",\"\",'Generated list'!D5852)","v":""}]
[null,{"$f":"IF('Generated list'!B5853=\"\",\"\",'Generated list'!B5853)","v":""},{"$f":"IF('Generated list'!C5853=\"\",\"\",'Generated list'!C5853)","v":""},{"$f":"IF('Generated list'!D5853=\"\",\"\",'Generated list'!D5853)","v":""}]
[null,{"$f":"IF('Generated list'!B5854=\"\",\"\",'Generated list'!B5854)","v":""},{"$f":"IF('Generated list'!C5854=\"\",\"\",'Generated list'!C5854)","v":""},{"$f":"IF('Generated list'!D5854=\"\",\"\",'Generated list'!D5854)","v":""}]
[null,{"$f":"IF('Generated list'!B5855=\"\",\"\",'Generated list'!B5855)","v":""},{"$f":"IF('Generated list'!C5855=\"\",\"\",'Generated list'!C5855)","v":""},{"$f":"IF('Generated list'!D5855=\"\",\"\",'Generated list'!D5855)","v":""}]
[null,{"$f":"IF('Generated list'!B5856=\"\",\"\",'Generated list'!B5856)","v":""},{"$f":"IF('Generated list'!C5856=\"\",\"\",'Generated list'!C5856)","v":""},{"$f":"IF('Generated list'!D5856=\"\",\"\",'Generated list'!D5856)","v":""}]
[null,{"$f":"IF('Generated list'!B5857=\"\",\"\",'Generated list'!B5857)","v":""},{"$f":"IF('Generated list'!C5857=\"\",\"\",'Generated list'!C5857)","v":""},{"$f":"IF('Generated list'!D5857=\"\",\"\",'Generated list'!D5857)","v":""}]
[null,{"$f":"IF('Generated list'!B5858=\"\",\"\",'Generated list'!B5858)","v":""},{"$f":"IF('Generated list'!C5858=\"\",\"\",'Generated list'!C5858)","v":""},{"$f":"IF('Generated list'!D5858=\"\",\"\",'Generated list'!D5858)","v":""}]
[null,{"$f":"IF('Generated list'!B5859=\"\",\"\",'Generated list'!B5859)","v":""},{"$f":"IF('Generated list'!C5859=\"\",\"\",'Generated list'!C5859)","v":""},{"$f":"IF('Generated list'!D5859=\"\",\"\",'Generated list'!D5859)","v":""}]
[null,{"$f":"IF('Generated list'!B5860=\"\",\"\",'Generated list'!B5860)","v":""},{"$f":"IF('Generated list'!C5860=\"\",\"\",'Generated list'!C5860)","v":""},{"$f":"IF('Generated list'!D5860=\"\",\"\",'Generated list'!D5860)","v":""}]
[null,{"$f":"IF('Generated list'!B5861=\"\",\"\",'Generated list'!B5861)","v":""},{"$f":"IF('Generated list'!C5861=\"\",\"\",'Generated list'!C5861)","v":""},{"$f":"IF('Generated list'!D5861=\"\",\"\",'Generated list'!D5861)","v":""}]
[null,{"$f":"IF('Generated list'!B5862=\"\",\"\",'Generated list'!B5862)","v":""},{"$f":"IF('Generated list'!C5862=\"\",\"\",'Generated list'!C5862)","v":""},{"$f":"IF('Generated list'!D5862=\"\",\"\",'Generated list'!D5862)","v":""}]
[null,{"$f":"IF('Generated list'!B5863=\"\",\"\",'Generated list'!B5863)","v":""},{"$f":"IF('Generated list'!C5863=\"\",\"\",'Generated list'!C5863)","v":""},{"$f":"IF('Generated list'!D5863=\"\",\"\",'Generated list'!D5863)","v":""}]
[null,{"$f":"IF('Generated list'!B5864=\"\",\"\",'Generated list'!B5864)","v":""},{"$f":"IF('Generated list'!C5864=\"\",\"\",'Generated list'!C5864)","v":""},{"$f":"IF('Generated list'!D5864=\"\",\"\",'Generated list'!D5864)","v":""}]
[null,{"$f":"IF('Generated list'!B5865=\"\",\"\",'Generated list'!B5865)","v":""},{"$f":"IF('Generated list'!C5865=\"\",\"\",'Generated list'!C5865)","v":""},{"$f":"IF('Generated list'!D5865=\"\",\"\",'Generated list'!D5865)","v":""}]
[null,{"$f":"IF('Generated list'!B5866=\"\",\"\",'Generated list'!B5866)","v":""},{"$f":"IF('Generated list'!C5866=\"\",\"\",'Generated list'!C5866)","v":""},{"$f":"IF('Generated list'!D5866=\"\",\"\",'Generated list'!D5866)","v":""}]
[null,{"$f":"IF('Generated list'!B5867=\"\",\"\",'Generated list'!B5867)","v":""},{"$f":"IF('Generated list'!C5867=\"\",\"\",'Generated list'!C5867)","v":""},{"$f":"IF('Generated list'!D5867=\"\",\"\",'Generated list'!D5867)","v":""}]
[null,{"$f":"IF('Generated list'!B5868=\"\",\"\",'Generated list'!B5868)","v":""},{"$f":"IF('Generated list'!C5868=\"\",\"\",'Generated list'!C5868)","v":""},{"$f":"IF('Generated list'!D5868=\"\",\"\",'Generated list'!D5868)","v":""}]
[null,{"$f":"IF('Generated list'!B5869=\"\",\"\",'Generated list'!B5869)","v":""},{"$f":"IF('Generated list'!C5869=\"\",\"\",'Generated list'!C5869)","v":""},{"$f":"IF('Generated list'!D5869=\"\",\"\",'Generated list'!D5869)","v":""}]
[null,{"$f":"IF('Generated list'!B5870=\"\",\"\",'Generated list'!B5870)","v":""},{"$f":"IF('Generated list'!C5870=\"\",\"\",'Generated list'!C5870)","v":""},{"$f":"IF('Generated list'!D5870=\"\",\"\",'Generated list'!D5870)","v":""}]
[null,{"$f":"IF('Generated list'!B5871=\"\",\"\",'Generated list'!B5871)","v":""},{"$f":"IF('Generated list'!C5871=\"\",\"\",'Generated list'!C5871)","v":""},{"$f":"IF('Generated list'!D5871=\"\",\"\",'Generated list'!D5871)","v":""}]
[null,{"$f":"IF('Generated list'!B5872=\"\",\"\",'Generated list'!B5872)","v":""},{"$f":"IF('Generated list'!C5872=\"\",\"\",'Generated list'!C5872)","v":""},{"$f":"IF('Generated list'!D5872=\"\",\"\",'Generated list'!D5872)","v":""}]
[null,{"$f":"IF('Generated list'!B5873=\"\",\"\",'Generated list'!B5873)","v":""},{"$f":"IF('Generated list'!C5873=\"\",\"\",'Generated list'!C5873)","v":""},{"$f":"IF('Generated list'!D5873=\"\",\"\",'Generated list'!D5873)","v":""}]
[null,{"$f":"IF('Generated list'!B5874=\"\",\"\",'Generated list'!B5874)","v":""},{"$f":"IF('Generated list'!C5874=\"\",\"\",'Generated list'!C5874)","v":""},{"$f":"IF('Generated list'!D5874=\"\",\"\",'Generated list'!D5874)","v":""}]
[null,{"$f":"IF('Generated list'!B5875=\"\",\"\",'Generated list'!B5875)","v":""},{"$f":"IF('Generated list'!C5875=\"\",\"\",'Generated list'!C5875)","v":""},{"$f":"IF('Generated list'!D5875=\"\",\"\",'Generated list'!D5875)","v":""}]
[null,{"$f":"IF('Generated list'!B5876=\"\",\"\",'Generated list'!B5876)","v":""},{"$f":"IF('Generated list'!C5876=\"\",\"\",'Generated list'!C5876)","v":""},{"$f":"IF('Generated list'!D5876=\"\",\"\",'Generated list'!D5876)","v":""}]
[null,{"$f":"IF('Generated list'!B5877=\"\",\"\",'Generated list'!B5877)","v":""},{"$f":"IF('Generated list'!C5877=\"\",\"\",'Generated list'!C5877)","v":""},{"$f":"IF('Generated list'!D5877=\"\",\"\",'Generated list'!D5877)","v":""}]
[null,{"$f":"IF('Generated list'!B5878=\"\",\"\",'Generated list'!B5878)","v":""},{"$f":"IF('Generated list'!C5878=\"\",\"\",'Generated list'!C5878)","v":""},{"$f":"IF('Generated list'!D5878=\"\",\"\",'Generated list'!D5878)","v":""}]
[null,{"$f":"IF('Generated list'!B5879=\"\",\"\",'Generated list'!B5879)","v":""},{"$f":"IF('Generated list'!C5879=\"\",\"\",'Generated list'!C5879)","v":""},{"$f":"IF('Generated list'!D5879=\"\",\"\",'Generated list'!D5879)","v":""}]
[null,{"$f":"IF('Generated list'!B5880=\"\",\"\",'Generated list'!B5880)","v":""},{"$f":"IF('Generated list'!C5880=\"\",\"\",'Generated list'!C5880)","v":""},{"$f":"IF('Generated list'!D5880=\"\",\"\",'Generated list'!D5880)","v":""}]
[null,{"$f":"IF('Generated list'!B5881=\"\",\"\",'Generated list'!B5881)","v":""},{"$f":"IF('Generated list'!C5881=\"\",\"\",'Generated list'!C5881)","v":""},{"$f":"IF('Generated list'!D5881=\"\",\"\",'Generated list'!D5881)","v":""}]
[null,{"$f":"IF('Generated list'!B5882=\"\",\"\",'Generated list'!B5882)","v":""},{"$f":"IF('Generated list'!C5882=\"\",\"\",'Generated list'!C5882)","v":""},{"$f":"IF('Generated list'!D5882=\"\",\"\",'Generated list'!D5882)","v":""}]
[null,{"$f":"IF('Generated list'!B5883=\"\",\"\",'Generated list'!B5883)","v":""},{"$f":"IF('Generated list'!C5883=\"\",\"\",'Generated list'!C5883)","v":""},{"$f":"IF('Generated list'!D5883=\"\",\"\",'Generated list'!D5883)","v":""}]
[null,{"$f":"IF('Generated list'!B5884=\"\",\"\",'Generated list'!B5884)","v":""},{"$f":"IF('Generated list'!C5884=\"\",\"\",'Generated list'!C5884)","v":""},{"$f":"IF('Generated list'!D5884=\"\",\"\",'Generated list'!D5884)","v":""}]
[null,{"$f":"IF('Generated list'!B5885=\"\",\"\",'Generated list'!B5885)","v":""},{"$f":"IF('Generated list'!C5885=\"\",\"\",'Generated list'!C5885)","v":""},{"$f":"IF('Generated list'!D5885=\"\",\"\",'Generated list'!D5885)","v":""}]
[null,{"$f":"IF('Generated list'!B5886=\"\",\"\",'Generated list'!B5886)","v":""},{"$f":"IF('Generated list'!C5886=\"\",\"\",'Generated list'!C5886)","v":""},{"$f":"IF('Generated list'!D5886=\"\",\"\",'Generated list'!D5886)","v":""}]
[null,{"$f":"IF('Generated list'!B5887=\"\",\"\",'Generated list'!B5887)","v":""},{"$f":"IF('Generated list'!C5887=\"\",\"\",'Generated list'!C5887)","v":""},{"$f":"IF('Generated list'!D5887=\"\",\"\",'Generated list'!D5887)","v":""}]
[null,{"$f":"IF('Generated list'!B5888=\"\",\"\",'Generated list'!B5888)","v":""},{"$f":"IF('Generated list'!C5888=\"\",\"\",'Generated list'!C5888)","v":""},{"$f":"IF('Generated list'!D5888=\"\",\"\",'Generated list'!D5888)","v":""}]
[null,{"$f":"IF('Generated list'!B5889=\"\",\"\",'Generated list'!B5889)","v":""},{"$f":"IF('Generated list'!C5889=\"\",\"\",'Generated list'!C5889)","v":""},{"$f":"IF('Generated list'!D5889=\"\",\"\",'Generated list'!D5889)","v":""}]
[null,{"$f":"IF('Generated list'!B5890=\"\",\"\",'Generated list'!B5890)","v":""},{"$f":"IF('Generated list'!C5890=\"\",\"\",'Generated list'!C5890)","v":""},{"$f":"IF('Generated list'!D5890=\"\",\"\",'Generated list'!D5890)","v":""}]
[null,{"$f":"IF('Generated list'!B5891=\"\",\"\",'Generated list'!B5891)","v":""},{"$f":"IF('Generated list'!C5891=\"\",\"\",'Generated list'!C5891)","v":""},{"$f":"IF('Generated list'!D5891=\"\",\"\",'Generated list'!D5891)","v":""}]
[null,{"$f":"IF('Generated list'!B5892=\"\",\"\",'Generated list'!B5892)","v":""},{"$f":"IF('Generated list'!C5892=\"\",\"\",'Generated list'!C5892)","v":""},{"$f":"IF('Generated list'!D5892=\"\",\"\",'Generated list'!D5892)","v":""}]
[null,{"$f":"IF('Generated list'!B5893=\"\",\"\",'Generated list'!B5893)","v":""},{"$f":"IF('Generated list'!C5893=\"\",\"\",'Generated list'!C5893)","v":""},{"$f":"IF('Generated list'!D5893=\"\",\"\",'Generated list'!D5893)","v":""}]
[null,{"$f":"IF('Generated list'!B5894=\"\",\"\",'Generated list'!B5894)","v":""},{"$f":"IF('Generated list'!C5894=\"\",\"\",'Generated list'!C5894)","v":""},{"$f":"IF('Generated list'!D5894=\"\",\"\",'Generated list'!D5894)","v":""}]
[null,{"$f":"IF('Generated list'!B5895=\"\",\"\",'Generated list'!B5895)","v":""},{"$f":"IF('Generated list'!C5895=\"\",\"\",'Generated list'!C5895)","v":""},{"$f":"IF('Generated list'!D5895=\"\",\"\",'Generated list'!D5895)","v":""}]
[null,{"$f":"IF('Generated list'!B5896=\"\",\"\",'Generated list'!B5896)","v":""},{"$f":"IF('Generated list'!C5896=\"\",\"\",'Generated list'!C5896)","v":""},{"$f":"IF('Generated list'!D5896=\"\",\"\",'Generated list'!D5896)","v":""}]
[null,{"$f":"IF('Generated list'!B5897=\"\",\"\",'Generated list'!B5897)","v":""},{"$f":"IF('Generated list'!C5897=\"\",\"\",'Generated list'!C5897)","v":""},{"$f":"IF('Generated list'!D5897=\"\",\"\",'Generated list'!D5897)","v":""}]
[null,{"$f":"IF('Generated list'!B5898=\"\",\"\",'Generated list'!B5898)","v":""},{"$f":"IF('Generated list'!C5898=\"\",\"\",'Generated list'!C5898)","v":""},{"$f":"IF('Generated list'!D5898=\"\",\"\",'Generated list'!D5898)","v":""}]
[null,{"$f":"IF('Generated list'!B5899=\"\",\"\",'Generated list'!B5899)","v":""},{"$f":"IF('Generated list'!C5899=\"\",\"\",'Generated list'!C5899)","v":""},{"$f":"IF('Generated list'!D5899=\"\",\"\",'Generated list'!D5899)","v":""}]
[null,{"$f":"IF('Generated list'!B5900=\"\",\"\",'Generated list'!B5900)","v":""},{"$f":"IF('Generated list'!C5900=\"\",\"\",'Generated list'!C5900)","v":""},{"$f":"IF('Generated list'!D5900=\"\",\"\",'Generated list'!D5900)","v":""}]
[null,{"$f":"IF('Generated list'!B5901=\"\",\"\",'Generated list'!B5901)","v":""},{"$f":"IF('Generated list'!C5901=\"\",\"\",'Generated list'!C5901)","v":""},{"$f":"IF('Generated list'!D5901=\"\",\"\",'Generated list'!D5901)","v":""}]
[null,{"$f":"IF('Generated list'!B5902=\"\",\"\",'Generated list'!B5902)","v":""},{"$f":"IF('Generated list'!C5902=\"\",\"\",'Generated list'!C5902)","v":""},{"$f":"IF('Generated list'!D5902=\"\",\"\",'Generated list'!D5902)","v":""}]
[null,{"$f":"IF('Generated list'!B5903=\"\",\"\",'Generated list'!B5903)","v":""},{"$f":"IF('Generated list'!C5903=\"\",\"\",'Generated list'!C5903)","v":""},{"$f":"IF('Generated list'!D5903=\"\",\"\",'Generated list'!D5903)","v":""}]
[null,{"$f":"IF('Generated list'!B5904=\"\",\"\",'Generated list'!B5904)","v":""},{"$f":"IF('Generated list'!C5904=\"\",\"\",'Generated list'!C5904)","v":""},{"$f":"IF('Generated list'!D5904=\"\",\"\",'Generated list'!D5904)","v":""}]
[null,{"$f":"IF('Generated list'!B5905=\"\",\"\",'Generated list'!B5905)","v":""},{"$f":"IF('Generated list'!C5905=\"\",\"\",'Generated list'!C5905)","v":""},{"$f":"IF('Generated list'!D5905=\"\",\"\",'Generated list'!D5905)","v":""}]
[null,{"$f":"IF('Generated list'!B5906=\"\",\"\",'Generated list'!B5906)","v":""},{"$f":"IF('Generated list'!C5906=\"\",\"\",'Generated list'!C5906)","v":""},{"$f":"IF('Generated list'!D5906=\"\",\"\",'Generated list'!D5906)","v":""}]
[null,{"$f":"IF('Generated list'!B5907=\"\",\"\",'Generated list'!B5907)","v":""},{"$f":"IF('Generated list'!C5907=\"\",\"\",'Generated list'!C5907)","v":""},{"$f":"IF('Generated list'!D5907=\"\",\"\",'Generated list'!D5907)","v":""}]
[null,{"$f":"IF('Generated list'!B5908=\"\",\"\",'Generated list'!B5908)","v":""},{"$f":"IF('Generated list'!C5908=\"\",\"\",'Generated list'!C5908)","v":""},{"$f":"IF('Generated list'!D5908=\"\",\"\",'Generated list'!D5908)","v":""}]
[null,{"$f":"IF('Generated list'!B5909=\"\",\"\",'Generated list'!B5909)","v":""},{"$f":"IF('Generated list'!C5909=\"\",\"\",'Generated list'!C5909)","v":""},{"$f":"IF('Generated list'!D5909=\"\",\"\",'Generated list'!D5909)","v":""}]
[null,{"$f":"IF('Generated list'!B5910=\"\",\"\",'Generated list'!B5910)","v":""},{"$f":"IF('Generated list'!C5910=\"\",\"\",'Generated list'!C5910)","v":""},{"$f":"IF('Generated list'!D5910=\"\",\"\",'Generated list'!D5910)","v":""}]
[null,{"$f":"IF('Generated list'!B5911=\"\",\"\",'Generated list'!B5911)","v":""},{"$f":"IF('Generated list'!C5911=\"\",\"\",'Generated list'!C5911)","v":""},{"$f":"IF('Generated list'!D5911=\"\",\"\",'Generated list'!D5911)","v":""}]
[null,{"$f":"IF('Generated list'!B5912=\"\",\"\",'Generated list'!B5912)","v":""},{"$f":"IF('Generated list'!C5912=\"\",\"\",'Generated list'!C5912)","v":""},{"$f":"IF('Generated list'!D5912=\"\",\"\",'Generated list'!D5912)","v":""}]
[null,{"$f":"IF('Generated list'!B5913=\"\",\"\",'Generated list'!B5913)","v":""},{"$f":"IF('Generated list'!C5913=\"\",\"\",'Generated list'!C5913)","v":""},{"$f":"IF('Generated list'!D5913=\"\",\"\",'Generated list'!D5913)","v":""}]
[null,{"$f":"IF('Generated list'!B5914=\"\",\"\",'Generated list'!B5914)","v":""},{"$f":"IF('Generated list'!C5914=\"\",\"\",'Generated list'!C5914)","v":""},{"$f":"IF('Generated list'!D5914=\"\",\"\",'Generated list'!D5914)","v":""}]
[null,{"$f":"IF('Generated list'!B5915=\"\",\"\",'Generated list'!B5915)","v":""},{"$f":"IF('Generated list'!C5915=\"\",\"\",'Generated list'!C5915)","v":""},{"$f":"IF('Generated list'!D5915=\"\",\"\",'Generated list'!D5915)","v":""}]
[null,{"$f":"IF('Generated list'!B5916=\"\",\"\",'Generated list'!B5916)","v":""},{"$f":"IF('Generated list'!C5916=\"\",\"\",'Generated list'!C5916)","v":""},{"$f":"IF('Generated list'!D5916=\"\",\"\",'Generated list'!D5916)","v":""}]
[null,{"$f":"IF('Generated list'!B5917=\"\",\"\",'Generated list'!B5917)","v":""},{"$f":"IF('Generated list'!C5917=\"\",\"\",'Generated list'!C5917)","v":""},{"$f":"IF('Generated list'!D5917=\"\",\"\",'Generated list'!D5917)","v":""}]
[null,{"$f":"IF('Generated list'!B5918=\"\",\"\",'Generated list'!B5918)","v":""},{"$f":"IF('Generated list'!C5918=\"\",\"\",'Generated list'!C5918)","v":""},{"$f":"IF('Generated list'!D5918=\"\",\"\",'Generated list'!D5918)","v":""}]
[null,{"$f":"IF('Generated list'!B5919=\"\",\"\",'Generated list'!B5919)","v":""},{"$f":"IF('Generated list'!C5919=\"\",\"\",'Generated list'!C5919)","v":""},{"$f":"IF('Generated list'!D5919=\"\",\"\",'Generated list'!D5919)","v":""}]
[null,{"$f":"IF('Generated list'!B5920=\"\",\"\",'Generated list'!B5920)","v":""},{"$f":"IF('Generated list'!C5920=\"\",\"\",'Generated list'!C5920)","v":""},{"$f":"IF('Generated list'!D5920=\"\",\"\",'Generated list'!D5920)","v":""}]
[null,{"$f":"IF('Generated list'!B5921=\"\",\"\",'Generated list'!B5921)","v":""},{"$f":"IF('Generated list'!C5921=\"\",\"\",'Generated list'!C5921)","v":""},{"$f":"IF('Generated list'!D5921=\"\",\"\",'Generated list'!D5921)","v":""}]
[null,{"$f":"IF('Generated list'!B5922=\"\",\"\",'Generated list'!B5922)","v":""},{"$f":"IF('Generated list'!C5922=\"\",\"\",'Generated list'!C5922)","v":""},{"$f":"IF('Generated list'!D5922=\"\",\"\",'Generated list'!D5922)","v":""}]
[null,{"$f":"IF('Generated list'!B5923=\"\",\"\",'Generated list'!B5923)","v":""},{"$f":"IF('Generated list'!C5923=\"\",\"\",'Generated list'!C5923)","v":""},{"$f":"IF('Generated list'!D5923=\"\",\"\",'Generated list'!D5923)","v":""}]
[null,{"$f":"IF('Generated list'!B5924=\"\",\"\",'Generated list'!B5924)","v":""},{"$f":"IF('Generated list'!C5924=\"\",\"\",'Generated list'!C5924)","v":""},{"$f":"IF('Generated list'!D5924=\"\",\"\",'Generated list'!D5924)","v":""}]
[null,{"$f":"IF('Generated list'!B5925=\"\",\"\",'Generated list'!B5925)","v":""},{"$f":"IF('Generated list'!C5925=\"\",\"\",'Generated list'!C5925)","v":""},{"$f":"IF('Generated list'!D5925=\"\",\"\",'Generated list'!D5925)","v":""}]
[null,{"$f":"IF('Generated list'!B5926=\"\",\"\",'Generated list'!B5926)","v":""},{"$f":"IF('Generated list'!C5926=\"\",\"\",'Generated list'!C5926)","v":""},{"$f":"IF('Generated list'!D5926=\"\",\"\",'Generated list'!D5926)","v":""}]
[null,{"$f":"IF('Generated list'!B5927=\"\",\"\",'Generated list'!B5927)","v":""},{"$f":"IF('Generated list'!C5927=\"\",\"\",'Generated list'!C5927)","v":""},{"$f":"IF('Generated list'!D5927=\"\",\"\",'Generated list'!D5927)","v":""}]
[null,{"$f":"IF('Generated list'!B5928=\"\",\"\",'Generated list'!B5928)","v":""},{"$f":"IF('Generated list'!C5928=\"\",\"\",'Generated list'!C5928)","v":""},{"$f":"IF('Generated list'!D5928=\"\",\"\",'Generated list'!D5928)","v":""}]
[null,{"$f":"IF('Generated list'!B5929=\"\",\"\",'Generated list'!B5929)","v":""},{"$f":"IF('Generated list'!C5929=\"\",\"\",'Generated list'!C5929)","v":""},{"$f":"IF('Generated list'!D5929=\"\",\"\",'Generated list'!D5929)","v":""}]
[null,{"$f":"IF('Generated list'!B5930=\"\",\"\",'Generated list'!B5930)","v":""},{"$f":"IF('Generated list'!C5930=\"\",\"\",'Generated list'!C5930)","v":""},{"$f":"IF('Generated list'!D5930=\"\",\"\",'Generated list'!D5930)","v":""}]
[null,{"$f":"IF('Generated list'!B5931=\"\",\"\",'Generated list'!B5931)","v":""},{"$f":"IF('Generated list'!C5931=\"\",\"\",'Generated list'!C5931)","v":""},{"$f":"IF('Generated list'!D5931=\"\",\"\",'Generated list'!D5931)","v":""}]
[null,{"$f":"IF('Generated list'!B5932=\"\",\"\",'Generated list'!B5932)","v":""},{"$f":"IF('Generated list'!C5932=\"\",\"\",'Generated list'!C5932)","v":""},{"$f":"IF('Generated list'!D5932=\"\",\"\",'Generated list'!D5932)","v":""}]
[null,{"$f":"IF('Generated list'!B5933=\"\",\"\",'Generated list'!B5933)","v":""},{"$f":"IF('Generated list'!C5933=\"\",\"\",'Generated list'!C5933)","v":""},{"$f":"IF('Generated list'!D5933=\"\",\"\",'Generated list'!D5933)","v":""}]
[null,{"$f":"IF('Generated list'!B5934=\"\",\"\",'Generated list'!B5934)","v":""},{"$f":"IF('Generated list'!C5934=\"\",\"\",'Generated list'!C5934)","v":""},{"$f":"IF('Generated list'!D5934=\"\",\"\",'Generated list'!D5934)","v":""}]
[null,{"$f":"IF('Generated list'!B5935=\"\",\"\",'Generated list'!B5935)","v":""},{"$f":"IF('Generated list'!C5935=\"\",\"\",'Generated list'!C5935)","v":""},{"$f":"IF('Generated list'!D5935=\"\",\"\",'Generated list'!D5935)","v":""}]
[null,{"$f":"IF('Generated list'!B5936=\"\",\"\",'Generated list'!B5936)","v":""},{"$f":"IF('Generated list'!C5936=\"\",\"\",'Generated list'!C5936)","v":""},{"$f":"IF('Generated list'!D5936=\"\",\"\",'Generated list'!D5936)","v":""}]
[null,{"$f":"IF('Generated list'!B5937=\"\",\"\",'Generated list'!B5937)","v":""},{"$f":"IF('Generated list'!C5937=\"\",\"\",'Generated list'!C5937)","v":""},{"$f":"IF('Generated list'!D5937=\"\",\"\",'Generated list'!D5937)","v":""}]
[null,{"$f":"IF('Generated list'!B5938=\"\",\"\",'Generated list'!B5938)","v":""},{"$f":"IF('Generated list'!C5938=\"\",\"\",'Generated list'!C5938)","v":""},{"$f":"IF('Generated list'!D5938=\"\",\"\",'Generated list'!D5938)","v":""}]
[null,{"$f":"IF('Generated list'!B5939=\"\",\"\",'Generated list'!B5939)","v":""},{"$f":"IF('Generated list'!C5939=\"\",\"\",'Generated list'!C5939)","v":""},{"$f":"IF('Generated list'!D5939=\"\",\"\",'Generated list'!D5939)","v":""}]
[null,{"$f":"IF('Generated list'!B5940=\"\",\"\",'Generated list'!B5940)","v":""},{"$f":"IF('Generated list'!C5940=\"\",\"\",'Generated list'!C5940)","v":""},{"$f":"IF('Generated list'!D5940=\"\",\"\",'Generated list'!D5940)","v":""}]
[null,{"$f":"IF('Generated list'!B5941=\"\",\"\",'Generated list'!B5941)","v":""},{"$f":"IF('Generated list'!C5941=\"\",\"\",'Generated list'!C5941)","v":""},{"$f":"IF('Generated list'!D5941=\"\",\"\",'Generated list'!D5941)","v":""}]
[null,{"$f":"IF('Generated list'!B5942=\"\",\"\",'Generated list'!B5942)","v":""},{"$f":"IF('Generated list'!C5942=\"\",\"\",'Generated list'!C5942)","v":""},{"$f":"IF('Generated list'!D5942=\"\",\"\",'Generated list'!D5942)","v":""}]
[null,{"$f":"IF('Generated list'!B5943=\"\",\"\",'Generated list'!B5943)","v":""},{"$f":"IF('Generated list'!C5943=\"\",\"\",'Generated list'!C5943)","v":""},{"$f":"IF('Generated list'!D5943=\"\",\"\",'Generated list'!D5943)","v":""}]
[null,{"$f":"IF('Generated list'!B5944=\"\",\"\",'Generated list'!B5944)","v":""},{"$f":"IF('Generated list'!C5944=\"\",\"\",'Generated list'!C5944)","v":""},{"$f":"IF('Generated list'!D5944=\"\",\"\",'Generated list'!D5944)","v":""}]
[null,{"$f":"IF('Generated list'!B5945=\"\",\"\",'Generated list'!B5945)","v":""},{"$f":"IF('Generated list'!C5945=\"\",\"\",'Generated list'!C5945)","v":""},{"$f":"IF('Generated list'!D5945=\"\",\"\",'Generated list'!D5945)","v":""}]
[null,{"$f":"IF('Generated list'!B5946=\"\",\"\",'Generated list'!B5946)","v":""},{"$f":"IF('Generated list'!C5946=\"\",\"\",'Generated list'!C5946)","v":""},{"$f":"IF('Generated list'!D5946=\"\",\"\",'Generated list'!D5946)","v":""}]
[null,{"$f":"IF('Generated list'!B5947=\"\",\"\",'Generated list'!B5947)","v":""},{"$f":"IF('Generated list'!C5947=\"\",\"\",'Generated list'!C5947)","v":""},{"$f":"IF('Generated list'!D5947=\"\",\"\",'Generated list'!D5947)","v":""}]
[null,{"$f":"IF('Generated list'!B5948=\"\",\"\",'Generated list'!B5948)","v":""},{"$f":"IF('Generated list'!C5948=\"\",\"\",'Generated list'!C5948)","v":""},{"$f":"IF('Generated list'!D5948=\"\",\"\",'Generated list'!D5948)","v":""}]
[null,{"$f":"IF('Generated list'!B5949=\"\",\"\",'Generated list'!B5949)","v":""},{"$f":"IF('Generated list'!C5949=\"\",\"\",'Generated list'!C5949)","v":""},{"$f":"IF('Generated list'!D5949=\"\",\"\",'Generated list'!D5949)","v":""}]
[null,{"$f":"IF('Generated list'!B5950=\"\",\"\",'Generated list'!B5950)","v":""},{"$f":"IF('Generated list'!C5950=\"\",\"\",'Generated list'!C5950)","v":""},{"$f":"IF('Generated list'!D5950=\"\",\"\",'Generated list'!D5950)","v":""}]
[null,{"$f":"IF('Generated list'!B5951=\"\",\"\",'Generated list'!B5951)","v":""},{"$f":"IF('Generated list'!C5951=\"\",\"\",'Generated list'!C5951)","v":""},{"$f":"IF('Generated list'!D5951=\"\",\"\",'Generated list'!D5951)","v":""}]
[null,{"$f":"IF('Generated list'!B5952=\"\",\"\",'Generated list'!B5952)","v":""},{"$f":"IF('Generated list'!C5952=\"\",\"\",'Generated list'!C5952)","v":""},{"$f":"IF('Generated list'!D5952=\"\",\"\",'Generated list'!D5952)","v":""}]
[null,{"$f":"IF('Generated list'!B5953=\"\",\"\",'Generated list'!B5953)","v":""},{"$f":"IF('Generated list'!C5953=\"\",\"\",'Generated list'!C5953)","v":""},{"$f":"IF('Generated list'!D5953=\"\",\"\",'Generated list'!D5953)","v":""}]
[null,{"$f":"IF('Generated list'!B5954=\"\",\"\",'Generated list'!B5954)","v":""},{"$f":"IF('Generated list'!C5954=\"\",\"\",'Generated list'!C5954)","v":""},{"$f":"IF('Generated list'!D5954=\"\",\"\",'Generated list'!D5954)","v":""}]
[null,{"$f":"IF('Generated list'!B5955=\"\",\"\",'Generated list'!B5955)","v":""},{"$f":"IF('Generated list'!C5955=\"\",\"\",'Generated list'!C5955)","v":""},{"$f":"IF('Generated list'!D5955=\"\",\"\",'Generated list'!D5955)","v":""}]
[null,{"$f":"IF('Generated list'!B5956=\"\",\"\",'Generated list'!B5956)","v":""},{"$f":"IF('Generated list'!C5956=\"\",\"\",'Generated list'!C5956)","v":""},{"$f":"IF('Generated list'!D5956=\"\",\"\",'Generated list'!D5956)","v":""}]
[null,{"$f":"IF('Generated list'!B5957=\"\",\"\",'Generated list'!B5957)","v":""},{"$f":"IF('Generated list'!C5957=\"\",\"\",'Generated list'!C5957)","v":""},{"$f":"IF('Generated list'!D5957=\"\",\"\",'Generated list'!D5957)","v":""}]
[null,{"$f":"IF('Generated list'!B5958=\"\",\"\",'Generated list'!B5958)","v":""},{"$f":"IF('Generated list'!C5958=\"\",\"\",'Generated list'!C5958)","v":""},{"$f":"IF('Generated list'!D5958=\"\",\"\",'Generated list'!D5958)","v":""}]
[null,{"$f":"IF('Generated list'!B5959=\"\",\"\",'Generated list'!B5959)","v":""},{"$f":"IF('Generated list'!C5959=\"\",\"\",'Generated list'!C5959)","v":""},{"$f":"IF('Generated list'!D5959=\"\",\"\",'Generated list'!D5959)","v":""}]
[null,{"$f":"IF('Generated list'!B5960=\"\",\"\",'Generated list'!B5960)","v":""},{"$f":"IF('Generated list'!C5960=\"\",\"\",'Generated list'!C5960)","v":""},{"$f":"IF('Generated list'!D5960=\"\",\"\",'Generated list'!D5960)","v":""}]
[null,{"$f":"IF('Generated list'!B5961=\"\",\"\",'Generated list'!B5961)","v":""},{"$f":"IF('Generated list'!C5961=\"\",\"\",'Generated list'!C5961)","v":""},{"$f":"IF('Generated list'!D5961=\"\",\"\",'Generated list'!D5961)","v":""}]
[null,{"$f":"IF('Generated list'!B5962=\"\",\"\",'Generated list'!B5962)","v":""},{"$f":"IF('Generated list'!C5962=\"\",\"\",'Generated list'!C5962)","v":""},{"$f":"IF('Generated list'!D5962=\"\",\"\",'Generated list'!D5962)","v":""}]
[null,{"$f":"IF('Generated list'!B5963=\"\",\"\",'Generated list'!B5963)","v":""},{"$f":"IF('Generated list'!C5963=\"\",\"\",'Generated list'!C5963)","v":""},{"$f":"IF('Generated list'!D5963=\"\",\"\",'Generated list'!D5963)","v":""}]
[null,{"$f":"IF('Generated list'!B5964=\"\",\"\",'Generated list'!B5964)","v":""},{"$f":"IF('Generated list'!C5964=\"\",\"\",'Generated list'!C5964)","v":""},{"$f":"IF('Generated list'!D5964=\"\",\"\",'Generated list'!D5964)","v":""}]
[null,{"$f":"IF('Generated list'!B5965=\"\",\"\",'Generated list'!B5965)","v":""},{"$f":"IF('Generated list'!C5965=\"\",\"\",'Generated list'!C5965)","v":""},{"$f":"IF('Generated list'!D5965=\"\",\"\",'Generated list'!D5965)","v":""}]
[null,{"$f":"IF('Generated list'!B5966=\"\",\"\",'Generated list'!B5966)","v":""},{"$f":"IF('Generated list'!C5966=\"\",\"\",'Generated list'!C5966)","v":""},{"$f":"IF('Generated list'!D5966=\"\",\"\",'Generated list'!D5966)","v":""}]
[null,{"$f":"IF('Generated list'!B5967=\"\",\"\",'Generated list'!B5967)","v":""},{"$f":"IF('Generated list'!C5967=\"\",\"\",'Generated list'!C5967)","v":""},{"$f":"IF('Generated list'!D5967=\"\",\"\",'Generated list'!D5967)","v":""}]
[null,{"$f":"IF('Generated list'!B5968=\"\",\"\",'Generated list'!B5968)","v":""},{"$f":"IF('Generated list'!C5968=\"\",\"\",'Generated list'!C5968)","v":""},{"$f":"IF('Generated list'!D5968=\"\",\"\",'Generated list'!D5968)","v":""}]
[null,{"$f":"IF('Generated list'!B5969=\"\",\"\",'Generated list'!B5969)","v":""},{"$f":"IF('Generated list'!C5969=\"\",\"\",'Generated list'!C5969)","v":""},{"$f":"IF('Generated list'!D5969=\"\",\"\",'Generated list'!D5969)","v":""}]
[null,{"$f":"IF('Generated list'!B5970=\"\",\"\",'Generated list'!B5970)","v":""},{"$f":"IF('Generated list'!C5970=\"\",\"\",'Generated list'!C5970)","v":""},{"$f":"IF('Generated list'!D5970=\"\",\"\",'Generated list'!D5970)","v":""}]
[null,{"$f":"IF('Generated list'!B5971=\"\",\"\",'Generated list'!B5971)","v":""},{"$f":"IF('Generated list'!C5971=\"\",\"\",'Generated list'!C5971)","v":""},{"$f":"IF('Generated list'!D5971=\"\",\"\",'Generated list'!D5971)","v":""}]
[null,{"$f":"IF('Generated list'!B5972=\"\",\"\",'Generated list'!B5972)","v":""},{"$f":"IF('Generated list'!C5972=\"\",\"\",'Generated list'!C5972)","v":""},{"$f":"IF('Generated list'!D5972=\"\",\"\",'Generated list'!D5972)","v":""}]
[null,{"$f":"IF('Generated list'!B5973=\"\",\"\",'Generated list'!B5973)","v":""},{"$f":"IF('Generated list'!C5973=\"\",\"\",'Generated list'!C5973)","v":""},{"$f":"IF('Generated list'!D5973=\"\",\"\",'Generated list'!D5973)","v":""}]
[null,{"$f":"IF('Generated list'!B5974=\"\",\"\",'Generated list'!B5974)","v":""},{"$f":"IF('Generated list'!C5974=\"\",\"\",'Generated list'!C5974)","v":""},{"$f":"IF('Generated list'!D5974=\"\",\"\",'Generated list'!D5974)","v":""}]
[null,{"$f":"IF('Generated list'!B5975=\"\",\"\",'Generated list'!B5975)","v":""},{"$f":"IF('Generated list'!C5975=\"\",\"\",'Generated list'!C5975)","v":""},{"$f":"IF('Generated list'!D5975=\"\",\"\",'Generated list'!D5975)","v":""}]
[null,{"$f":"IF('Generated list'!B5976=\"\",\"\",'Generated list'!B5976)","v":""},{"$f":"IF('Generated list'!C5976=\"\",\"\",'Generated list'!C5976)","v":""},{"$f":"IF('Generated list'!D5976=\"\",\"\",'Generated list'!D5976)","v":""}]
[null,{"$f":"IF('Generated list'!B5977=\"\",\"\",'Generated list'!B5977)","v":""},{"$f":"IF('Generated list'!C5977=\"\",\"\",'Generated list'!C5977)","v":""},{"$f":"IF('Generated list'!D5977=\"\",\"\",'Generated list'!D5977)","v":""}]
[null,{"$f":"IF('Generated list'!B5978=\"\",\"\",'Generated list'!B5978)","v":""},{"$f":"IF('Generated list'!C5978=\"\",\"\",'Generated list'!C5978)","v":""},{"$f":"IF('Generated list'!D5978=\"\",\"\",'Generated list'!D5978)","v":""}]
[null,{"$f":"IF('Generated list'!B5979=\"\",\"\",'Generated list'!B5979)","v":""},{"$f":"IF('Generated list'!C5979=\"\",\"\",'Generated list'!C5979)","v":""},{"$f":"IF('Generated list'!D5979=\"\",\"\",'Generated list'!D5979)","v":""}]
[null,{"$f":"IF('Generated list'!B5980=\"\",\"\",'Generated list'!B5980)","v":""},{"$f":"IF('Generated list'!C5980=\"\",\"\",'Generated list'!C5980)","v":""},{"$f":"IF('Generated list'!D5980=\"\",\"\",'Generated list'!D5980)","v":""}]
[null,{"$f":"IF('Generated list'!B5981=\"\",\"\",'Generated list'!B5981)","v":""},{"$f":"IF('Generated list'!C5981=\"\",\"\",'Generated list'!C5981)","v":""},{"$f":"IF('Generated list'!D5981=\"\",\"\",'Generated list'!D5981)","v":""}]
[null,{"$f":"IF('Generated list'!B5982=\"\",\"\",'Generated list'!B5982)","v":""},{"$f":"IF('Generated list'!C5982=\"\",\"\",'Generated list'!C5982)","v":""},{"$f":"IF('Generated list'!D5982=\"\",\"\",'Generated list'!D5982)","v":""}]
[null,{"$f":"IF('Generated list'!B5983=\"\",\"\",'Generated list'!B5983)","v":""},{"$f":"IF('Generated list'!C5983=\"\",\"\",'Generated list'!C5983)","v":""},{"$f":"IF('Generated list'!D5983=\"\",\"\",'Generated list'!D5983)","v":""}]
[null,{"$f":"IF('Generated list'!B5984=\"\",\"\",'Generated list'!B5984)","v":""},{"$f":"IF('Generated list'!C5984=\"\",\"\",'Generated list'!C5984)","v":""},{"$f":"IF('Generated list'!D5984=\"\",\"\",'Generated list'!D5984)","v":""}]
[null,{"$f":"IF('Generated list'!B5985=\"\",\"\",'Generated list'!B5985)","v":""},{"$f":"IF('Generated list'!C5985=\"\",\"\",'Generated list'!C5985)","v":""},{"$f":"IF('Generated list'!D5985=\"\",\"\",'Generated list'!D5985)","v":""}]
[null,{"$f":"IF('Generated list'!B5986=\"\",\"\",'Generated list'!B5986)","v":""},{"$f":"IF('Generated list'!C5986=\"\",\"\",'Generated list'!C5986)","v":""},{"$f":"IF('Generated list'!D5986=\"\",\"\",'Generated list'!D5986)","v":""}]
[null,{"$f":"IF('Generated list'!B5987=\"\",\"\",'Generated list'!B5987)","v":""},{"$f":"IF('Generated list'!C5987=\"\",\"\",'Generated list'!C5987)","v":""},{"$f":"IF('Generated list'!D5987=\"\",\"\",'Generated list'!D5987)","v":""}]
[null,{"$f":"IF('Generated list'!B5988=\"\",\"\",'Generated list'!B5988)","v":""},{"$f":"IF('Generated list'!C5988=\"\",\"\",'Generated list'!C5988)","v":""},{"$f":"IF('Generated list'!D5988=\"\",\"\",'Generated list'!D5988)","v":""}]
[null,{"$f":"IF('Generated list'!B5989=\"\",\"\",'Generated list'!B5989)","v":""},{"$f":"IF('Generated list'!C5989=\"\",\"\",'Generated list'!C5989)","v":""},{"$f":"IF('Generated list'!D5989=\"\",\"\",'Generated list'!D5989)","v":""}]
[null,{"$f":"IF('Generated list'!B5990=\"\",\"\",'Generated list'!B5990)","v":""},{"$f":"IF('Generated list'!C5990=\"\",\"\",'Generated list'!C5990)","v":""},{"$f":"IF('Generated list'!D5990=\"\",\"\",'Generated list'!D5990)","v":""}]
[null,{"$f":"IF('Generated list'!B5991=\"\",\"\",'Generated list'!B5991)","v":""},{"$f":"IF('Generated list'!C5991=\"\",\"\",'Generated list'!C5991)","v":""},{"$f":"IF('Generated list'!D5991=\"\",\"\",'Generated list'!D5991)","v":""}]
[null,{"$f":"IF('Generated list'!B5992=\"\",\"\",'Generated list'!B5992)","v":""},{"$f":"IF('Generated list'!C5992=\"\",\"\",'Generated list'!C5992)","v":""},{"$f":"IF('Generated list'!D5992=\"\",\"\",'Generated list'!D5992)","v":""}]
[null,{"$f":"IF('Generated list'!B5993=\"\",\"\",'Generated list'!B5993)","v":""},{"$f":"IF('Generated list'!C5993=\"\",\"\",'Generated list'!C5993)","v":""},{"$f":"IF('Generated list'!D5993=\"\",\"\",'Generated list'!D5993)","v":""}]
[null,{"$f":"IF('Generated list'!B5994=\"\",\"\",'Generated list'!B5994)","v":""},{"$f":"IF('Generated list'!C5994=\"\",\"\",'Generated list'!C5994)","v":""},{"$f":"IF('Generated list'!D5994=\"\",\"\",'Generated list'!D5994)","v":""}]
[null,{"$f":"IF('Generated list'!B5995=\"\",\"\",'Generated list'!B5995)","v":""},{"$f":"IF('Generated list'!C5995=\"\",\"\",'Generated list'!C5995)","v":""},{"$f":"IF('Generated list'!D5995=\"\",\"\",'Generated list'!D5995)","v":""}]
[null,{"$f":"IF('Generated list'!B5996=\"\",\"\",'Generated list'!B5996)","v":""},{"$f":"IF('Generated list'!C5996=\"\",\"\",'Generated list'!C5996)","v":""},{"$f":"IF('Generated list'!D5996=\"\",\"\",'Generated list'!D5996)","v":""}]
[null,{"$f":"IF('Generated list'!B5997=\"\",\"\",'Generated list'!B5997)","v":""},{"$f":"IF('Generated list'!C5997=\"\",\"\",'Generated list'!C5997)","v":""},{"$f":"IF('Generated list'!D5997=\"\",\"\",'Generated list'!D5997)","v":""}]
[null,{"$f":"IF('Generated list'!B5998=\"\",\"\",'Generated list'!B5998)","v":""},{"$f":"IF('Generated list'!C5998=\"\",\"\",'Generated list'!C5998)","v":""},{"$f":"IF('Generated list'!D5998=\"\",\"\",'Generated list'!D5998)","v":""}]
[null,{"$f":"IF('Generated list'!B5999=\"\",\"\",'Generated list'!B5999)","v":""},{"$f":"IF('Generated list'!C5999=\"\",\"\",'Generated list'!C5999)","v":""},{"$f":"IF('Generated list'!D5999=\"\",\"\",'Generated list'!D5999)","v":""}]
[null,{"$f":"IF('Generated list'!B6000=\"\",\"\",'Generated list'!B6000)","v":""},{"$f":"IF('Generated list'!C6000=\"\",\"\",'Generated list'!C6000)","v":""},{"$f":"IF('Generated list'!D6000=\"\",\"\",'Generated list'!D6000)","v":""}]
[null,{"$f":"IF('Generated list'!B6001=\"\",\"\",'Generated list'!B6001)","v":""},{"$f":"IF('Generated list'!C6001=\"\",\"\",'Generated list'!C6001)","v":""},{"$f":"IF('Generated list'!D6001=\"\",\"\",'Generated list'!D6001)","v":""}]
[null,{"$f":"IF('Generated list'!B6002=\"\",\"\",'Generated list'!B6002)","v":""},{"$f":"IF('Generated list'!C6002=\"\",\"\",'Generated list'!C6002)","v":""},{"$f":"IF('Generated list'!D6002=\"\",\"\",'Generated list'!D6002)","v":""}]
[null,{"$f":"IF('Generated list'!B6003=\"\",\"\",'Generated list'!B6003)","v":""},{"$f":"IF('Generated list'!C6003=\"\",\"\",'Generated list'!C6003)","v":""},{"$f":"IF('Generated list'!D6003=\"\",\"\",'Generated list'!D6003)","v":""}]
[null,{"$f":"IF('Generated list'!B6004=\"\",\"\",'Generated list'!B6004)","v":""},{"$f":"IF('Generated list'!C6004=\"\",\"\",'Generated list'!C6004)","v":""},{"$f":"IF('Generated list'!D6004=\"\",\"\",'Generated list'!D6004)","v":""}]
[null,{"$f":"IF('Generated list'!B6005=\"\",\"\",'Generated list'!B6005)","v":""},{"$f":"IF('Generated list'!C6005=\"\",\"\",'Generated list'!C6005)","v":""},{"$f":"IF('Generated list'!D6005=\"\",\"\",'Generated list'!D6005)","v":""}]
[null,{"$f":"IF('Generated list'!B6006=\"\",\"\",'Generated list'!B6006)","v":""},{"$f":"IF('Generated list'!C6006=\"\",\"\",'Generated list'!C6006)","v":""},{"$f":"IF('Generated list'!D6006=\"\",\"\",'Generated list'!D6006)","v":""}]
[null,{"$f":"IF('Generated list'!B6007=\"\",\"\",'Generated list'!B6007)","v":""},{"$f":"IF('Generated list'!C6007=\"\",\"\",'Generated list'!C6007)","v":""},{"$f":"IF('Generated list'!D6007=\"\",\"\",'Generated list'!D6007)","v":""}]
[null,{"$f":"IF('Generated list'!B6008=\"\",\"\",'Generated list'!B6008)","v":""},{"$f":"IF('Generated list'!C6008=\"\",\"\",'Generated list'!C6008)","v":""},{"$f":"IF('Generated list'!D6008=\"\",\"\",'Generated list'!D6008)","v":""}]
[null,{"$f":"IF('Generated list'!B6009=\"\",\"\",'Generated list'!B6009)","v":""},{"$f":"IF('Generated list'!C6009=\"\",\"\",'Generated list'!C6009)","v":""},{"$f":"IF('Generated list'!D6009=\"\",\"\",'Generated list'!D6009)","v":""}]
[null,{"$f":"IF('Generated list'!B6010=\"\",\"\",'Generated list'!B6010)","v":""},{"$f":"IF('Generated list'!C6010=\"\",\"\",'Generated list'!C6010)","v":""},{"$f":"IF('Generated list'!D6010=\"\",\"\",'Generated list'!D6010)","v":""}]
[null,{"$f":"IF('Generated list'!B6011=\"\",\"\",'Generated list'!B6011)","v":""},{"$f":"IF('Generated list'!C6011=\"\",\"\",'Generated list'!C6011)","v":""},{"$f":"IF('Generated list'!D6011=\"\",\"\",'Generated list'!D6011)","v":""}]
[null,{"$f":"IF('Generated list'!B6012=\"\",\"\",'Generated list'!B6012)","v":""},{"$f":"IF('Generated list'!C6012=\"\",\"\",'Generated list'!C6012)","v":""},{"$f":"IF('Generated list'!D6012=\"\",\"\",'Generated list'!D6012)","v":""}]
[null,{"$f":"IF('Generated list'!B6013=\"\",\"\",'Generated list'!B6013)","v":""},{"$f":"IF('Generated list'!C6013=\"\",\"\",'Generated list'!C6013)","v":""},{"$f":"IF('Generated list'!D6013=\"\",\"\",'Generated list'!D6013)","v":""}]
[null,{"$f":"IF('Generated list'!B6014=\"\",\"\",'Generated list'!B6014)","v":""},{"$f":"IF('Generated list'!C6014=\"\",\"\",'Generated list'!C6014)","v":""},{"$f":"IF('Generated list'!D6014=\"\",\"\",'Generated list'!D6014)","v":""}]
[null,{"$f":"IF('Generated list'!B6015=\"\",\"\",'Generated list'!B6015)","v":""},{"$f":"IF('Generated list'!C6015=\"\",\"\",'Generated list'!C6015)","v":""},{"$f":"IF('Generated list'!D6015=\"\",\"\",'Generated list'!D6015)","v":""}]
[null,{"$f":"IF('Generated list'!B6016=\"\",\"\",'Generated list'!B6016)","v":""},{"$f":"IF('Generated list'!C6016=\"\",\"\",'Generated list'!C6016)","v":""},{"$f":"IF('Generated list'!D6016=\"\",\"\",'Generated list'!D6016)","v":""}]
[null,{"$f":"IF('Generated list'!B6017=\"\",\"\",'Generated list'!B6017)","v":""},{"$f":"IF('Generated list'!C6017=\"\",\"\",'Generated list'!C6017)","v":""},{"$f":"IF('Generated list'!D6017=\"\",\"\",'Generated list'!D6017)","v":""}]
[null,{"$f":"IF('Generated list'!B6018=\"\",\"\",'Generated list'!B6018)","v":""},{"$f":"IF('Generated list'!C6018=\"\",\"\",'Generated list'!C6018)","v":""},{"$f":"IF('Generated list'!D6018=\"\",\"\",'Generated list'!D6018)","v":""}]
[null,{"$f":"IF('Generated list'!B6019=\"\",\"\",'Generated list'!B6019)","v":""},{"$f":"IF('Generated list'!C6019=\"\",\"\",'Generated list'!C6019)","v":""},{"$f":"IF('Generated list'!D6019=\"\",\"\",'Generated list'!D6019)","v":""}]
[null,{"$f":"IF('Generated list'!B6020=\"\",\"\",'Generated list'!B6020)","v":""},{"$f":"IF('Generated list'!C6020=\"\",\"\",'Generated list'!C6020)","v":""},{"$f":"IF('Generated list'!D6020=\"\",\"\",'Generated list'!D6020)","v":""}]
[null,{"$f":"IF('Generated list'!B6021=\"\",\"\",'Generated list'!B6021)","v":""},{"$f":"IF('Generated list'!C6021=\"\",\"\",'Generated list'!C6021)","v":""},{"$f":"IF('Generated list'!D6021=\"\",\"\",'Generated list'!D6021)","v":""}]
[null,{"$f":"IF('Generated list'!B6022=\"\",\"\",'Generated list'!B6022)","v":""},{"$f":"IF('Generated list'!C6022=\"\",\"\",'Generated list'!C6022)","v":""},{"$f":"IF('Generated list'!D6022=\"\",\"\",'Generated list'!D6022)","v":""}]
[null,{"$f":"IF('Generated list'!B6023=\"\",\"\",'Generated list'!B6023)","v":""},{"$f":"IF('Generated list'!C6023=\"\",\"\",'Generated list'!C6023)","v":""},{"$f":"IF('Generated list'!D6023=\"\",\"\",'Generated list'!D6023)","v":""}]
[null,{"$f":"IF('Generated list'!B6024=\"\",\"\",'Generated list'!B6024)","v":""},{"$f":"IF('Generated list'!C6024=\"\",\"\",'Generated list'!C6024)","v":""},{"$f":"IF('Generated list'!D6024=\"\",\"\",'Generated list'!D6024)","v":""}]
[null,{"$f":"IF('Generated list'!B6025=\"\",\"\",'Generated list'!B6025)","v":""},{"$f":"IF('Generated list'!C6025=\"\",\"\",'Generated list'!C6025)","v":""},{"$f":"IF('Generated list'!D6025=\"\",\"\",'Generated list'!D6025)","v":""}]
[null,{"$f":"IF('Generated list'!B6026=\"\",\"\",'Generated list'!B6026)","v":""},{"$f":"IF('Generated list'!C6026=\"\",\"\",'Generated list'!C6026)","v":""},{"$f":"IF('Generated list'!D6026=\"\",\"\",'Generated list'!D6026)","v":""}]
[null,{"$f":"IF('Generated list'!B6027=\"\",\"\",'Generated list'!B6027)","v":""},{"$f":"IF('Generated list'!C6027=\"\",\"\",'Generated list'!C6027)","v":""},{"$f":"IF('Generated list'!D6027=\"\",\"\",'Generated list'!D6027)","v":""}]
[null,{"$f":"IF('Generated list'!B6028=\"\",\"\",'Generated list'!B6028)","v":""},{"$f":"IF('Generated list'!C6028=\"\",\"\",'Generated list'!C6028)","v":""},{"$f":"IF('Generated list'!D6028=\"\",\"\",'Generated list'!D6028)","v":""}]
[null,{"$f":"IF('Generated list'!B6029=\"\",\"\",'Generated list'!B6029)","v":""},{"$f":"IF('Generated list'!C6029=\"\",\"\",'Generated list'!C6029)","v":""},{"$f":"IF('Generated list'!D6029=\"\",\"\",'Generated list'!D6029)","v":""}]
[null,{"$f":"IF('Generated list'!B6030=\"\",\"\",'Generated list'!B6030)","v":""},{"$f":"IF('Generated list'!C6030=\"\",\"\",'Generated list'!C6030)","v":""},{"$f":"IF('Generated list'!D6030=\"\",\"\",'Generated list'!D6030)","v":""}]
[null,{"$f":"IF('Generated list'!B6031=\"\",\"\",'Generated list'!B6031)","v":""},{"$f":"IF('Generated list'!C6031=\"\",\"\",'Generated list'!C6031)","v":""},{"$f":"IF('Generated list'!D6031=\"\",\"\",'Generated list'!D6031)","v":""}]
[null,{"$f":"IF('Generated list'!B6032=\"\",\"\",'Generated list'!B6032)","v":""},{"$f":"IF('Generated list'!C6032=\"\",\"\",'Generated list'!C6032)","v":""},{"$f":"IF('Generated list'!D6032=\"\",\"\",'Generated list'!D6032)","v":""}]
[null,{"$f":"IF('Generated list'!B6033=\"\",\"\",'Generated list'!B6033)","v":""},{"$f":"IF('Generated list'!C6033=\"\",\"\",'Generated list'!C6033)","v":""},{"$f":"IF('Generated list'!D6033=\"\",\"\",'Generated list'!D6033)","v":""}]
[null,{"$f":"IF('Generated list'!B6034=\"\",\"\",'Generated list'!B6034)","v":""},{"$f":"IF('Generated list'!C6034=\"\",\"\",'Generated list'!C6034)","v":""},{"$f":"IF('Generated list'!D6034=\"\",\"\",'Generated list'!D6034)","v":""}]
[null,{"$f":"IF('Generated list'!B6035=\"\",\"\",'Generated list'!B6035)","v":""},{"$f":"IF('Generated list'!C6035=\"\",\"\",'Generated list'!C6035)","v":""},{"$f":"IF('Generated list'!D6035=\"\",\"\",'Generated list'!D6035)","v":""}]
[null,{"$f":"IF('Generated list'!B6036=\"\",\"\",'Generated list'!B6036)","v":""},{"$f":"IF('Generated list'!C6036=\"\",\"\",'Generated list'!C6036)","v":""},{"$f":"IF('Generated list'!D6036=\"\",\"\",'Generated list'!D6036)","v":""}]
[null,{"$f":"IF('Generated list'!B6037=\"\",\"\",'Generated list'!B6037)","v":""},{"$f":"IF('Generated list'!C6037=\"\",\"\",'Generated list'!C6037)","v":""},{"$f":"IF('Generated list'!D6037=\"\",\"\",'Generated list'!D6037)","v":""}]
[null,{"$f":"IF('Generated list'!B6038=\"\",\"\",'Generated list'!B6038)","v":""},{"$f":"IF('Generated list'!C6038=\"\",\"\",'Generated list'!C6038)","v":""},{"$f":"IF('Generated list'!D6038=\"\",\"\",'Generated list'!D6038)","v":""}]
[null,{"$f":"IF('Generated list'!B6039=\"\",\"\",'Generated list'!B6039)","v":""},{"$f":"IF('Generated list'!C6039=\"\",\"\",'Generated list'!C6039)","v":""},{"$f":"IF('Generated list'!D6039=\"\",\"\",'Generated list'!D6039)","v":""}]
[null,{"$f":"IF('Generated list'!B6040=\"\",\"\",'Generated list'!B6040)","v":""},{"$f":"IF('Generated list'!C6040=\"\",\"\",'Generated list'!C6040)","v":""},{"$f":"IF('Generated list'!D6040=\"\",\"\",'Generated list'!D6040)","v":""}]
[null,{"$f":"IF('Generated list'!B6041=\"\",\"\",'Generated list'!B6041)","v":""},{"$f":"IF('Generated list'!C6041=\"\",\"\",'Generated list'!C6041)","v":""},{"$f":"IF('Generated list'!D6041=\"\",\"\",'Generated list'!D6041)","v":""}]
[null,{"$f":"IF('Generated list'!B6042=\"\",\"\",'Generated list'!B6042)","v":""},{"$f":"IF('Generated list'!C6042=\"\",\"\",'Generated list'!C6042)","v":""},{"$f":"IF('Generated list'!D6042=\"\",\"\",'Generated list'!D6042)","v":""}]
[null,{"$f":"IF('Generated list'!B6043=\"\",\"\",'Generated list'!B6043)","v":""},{"$f":"IF('Generated list'!C6043=\"\",\"\",'Generated list'!C6043)","v":""},{"$f":"IF('Generated list'!D6043=\"\",\"\",'Generated list'!D6043)","v":""}]
[null,{"$f":"IF('Generated list'!B6044=\"\",\"\",'Generated list'!B6044)","v":""},{"$f":"IF('Generated list'!C6044=\"\",\"\",'Generated list'!C6044)","v":""},{"$f":"IF('Generated list'!D6044=\"\",\"\",'Generated list'!D6044)","v":""}]
[null,{"$f":"IF('Generated list'!B6045=\"\",\"\",'Generated list'!B6045)","v":""},{"$f":"IF('Generated list'!C6045=\"\",\"\",'Generated list'!C6045)","v":""},{"$f":"IF('Generated list'!D6045=\"\",\"\",'Generated list'!D6045)","v":""}]
[null,{"$f":"IF('Generated list'!B6046=\"\",\"\",'Generated list'!B6046)","v":""},{"$f":"IF('Generated list'!C6046=\"\",\"\",'Generated list'!C6046)","v":""},{"$f":"IF('Generated list'!D6046=\"\",\"\",'Generated list'!D6046)","v":""}]
[null,{"$f":"IF('Generated list'!B6047=\"\",\"\",'Generated list'!B6047)","v":""},{"$f":"IF('Generated list'!C6047=\"\",\"\",'Generated list'!C6047)","v":""},{"$f":"IF('Generated list'!D6047=\"\",\"\",'Generated list'!D6047)","v":""}]
[null,{"$f":"IF('Generated list'!B6048=\"\",\"\",'Generated list'!B6048)","v":""},{"$f":"IF('Generated list'!C6048=\"\",\"\",'Generated list'!C6048)","v":""},{"$f":"IF('Generated list'!D6048=\"\",\"\",'Generated list'!D6048)","v":""}]
[null,{"$f":"IF('Generated list'!B6049=\"\",\"\",'Generated list'!B6049)","v":""},{"$f":"IF('Generated list'!C6049=\"\",\"\",'Generated list'!C6049)","v":""},{"$f":"IF('Generated list'!D6049=\"\",\"\",'Generated list'!D6049)","v":""}]
[null,{"$f":"IF('Generated list'!B6050=\"\",\"\",'Generated list'!B6050)","v":""},{"$f":"IF('Generated list'!C6050=\"\",\"\",'Generated list'!C6050)","v":""},{"$f":"IF('Generated list'!D6050=\"\",\"\",'Generated list'!D6050)","v":""}]
[null,{"$f":"IF('Generated list'!B6051=\"\",\"\",'Generated list'!B6051)","v":""},{"$f":"IF('Generated list'!C6051=\"\",\"\",'Generated list'!C6051)","v":""},{"$f":"IF('Generated list'!D6051=\"\",\"\",'Generated list'!D6051)","v":""}]
[null,{"$f":"IF('Generated list'!B6052=\"\",\"\",'Generated list'!B6052)","v":""},{"$f":"IF('Generated list'!C6052=\"\",\"\",'Generated list'!C6052)","v":""},{"$f":"IF('Generated list'!D6052=\"\",\"\",'Generated list'!D6052)","v":""}]
[null,{"$f":"IF('Generated list'!B6053=\"\",\"\",'Generated list'!B6053)","v":""},{"$f":"IF('Generated list'!C6053=\"\",\"\",'Generated list'!C6053)","v":""},{"$f":"IF('Generated list'!D6053=\"\",\"\",'Generated list'!D6053)","v":""}]
[null,{"$f":"IF('Generated list'!B6054=\"\",\"\",'Generated list'!B6054)","v":""},{"$f":"IF('Generated list'!C6054=\"\",\"\",'Generated list'!C6054)","v":""},{"$f":"IF('Generated list'!D6054=\"\",\"\",'Generated list'!D6054)","v":""}]
[null,{"$f":"IF('Generated list'!B6055=\"\",\"\",'Generated list'!B6055)","v":""},{"$f":"IF('Generated list'!C6055=\"\",\"\",'Generated list'!C6055)","v":""},{"$f":"IF('Generated list'!D6055=\"\",\"\",'Generated list'!D6055)","v":""}]
[null,{"$f":"IF('Generated list'!B6056=\"\",\"\",'Generated list'!B6056)","v":""},{"$f":"IF('Generated list'!C6056=\"\",\"\",'Generated list'!C6056)","v":""},{"$f":"IF('Generated list'!D6056=\"\",\"\",'Generated list'!D6056)","v":""}]
[null,{"$f":"IF('Generated list'!B6057=\"\",\"\",'Generated list'!B6057)","v":""},{"$f":"IF('Generated list'!C6057=\"\",\"\",'Generated list'!C6057)","v":""},{"$f":"IF('Generated list'!D6057=\"\",\"\",'Generated list'!D6057)","v":""}]
[null,{"$f":"IF('Generated list'!B6058=\"\",\"\",'Generated list'!B6058)","v":""},{"$f":"IF('Generated list'!C6058=\"\",\"\",'Generated list'!C6058)","v":""},{"$f":"IF('Generated list'!D6058=\"\",\"\",'Generated list'!D6058)","v":""}]
[null,{"$f":"IF('Generated list'!B6059=\"\",\"\",'Generated list'!B6059)","v":""},{"$f":"IF('Generated list'!C6059=\"\",\"\",'Generated list'!C6059)","v":""},{"$f":"IF('Generated list'!D6059=\"\",\"\",'Generated list'!D6059)","v":""}]
[null,{"$f":"IF('Generated list'!B6060=\"\",\"\",'Generated list'!B6060)","v":""},{"$f":"IF('Generated list'!C6060=\"\",\"\",'Generated list'!C6060)","v":""},{"$f":"IF('Generated list'!D6060=\"\",\"\",'Generated list'!D6060)","v":""}]
[null,{"$f":"IF('Generated list'!B6061=\"\",\"\",'Generated list'!B6061)","v":""},{"$f":"IF('Generated list'!C6061=\"\",\"\",'Generated list'!C6061)","v":""},{"$f":"IF('Generated list'!D6061=\"\",\"\",'Generated list'!D6061)","v":""}]
[null,{"$f":"IF('Generated list'!B6062=\"\",\"\",'Generated list'!B6062)","v":""},{"$f":"IF('Generated list'!C6062=\"\",\"\",'Generated list'!C6062)","v":""},{"$f":"IF('Generated list'!D6062=\"\",\"\",'Generated list'!D6062)","v":""}]
[null,{"$f":"IF('Generated list'!B6063=\"\",\"\",'Generated list'!B6063)","v":""},{"$f":"IF('Generated list'!C6063=\"\",\"\",'Generated list'!C6063)","v":""},{"$f":"IF('Generated list'!D6063=\"\",\"\",'Generated list'!D6063)","v":""}]
[null,{"$f":"IF('Generated list'!B6064=\"\",\"\",'Generated list'!B6064)","v":""},{"$f":"IF('Generated list'!C6064=\"\",\"\",'Generated list'!C6064)","v":""},{"$f":"IF('Generated list'!D6064=\"\",\"\",'Generated list'!D6064)","v":""}]
[null,{"$f":"IF('Generated list'!B6065=\"\",\"\",'Generated list'!B6065)","v":""},{"$f":"IF('Generated list'!C6065=\"\",\"\",'Generated list'!C6065)","v":""},{"$f":"IF('Generated list'!D6065=\"\",\"\",'Generated list'!D6065)","v":""}]
[null,{"$f":"IF('Generated list'!B6066=\"\",\"\",'Generated list'!B6066)","v":""},{"$f":"IF('Generated list'!C6066=\"\",\"\",'Generated list'!C6066)","v":""},{"$f":"IF('Generated list'!D6066=\"\",\"\",'Generated list'!D6066)","v":""}]
[null,{"$f":"IF('Generated list'!B6067=\"\",\"\",'Generated list'!B6067)","v":""},{"$f":"IF('Generated list'!C6067=\"\",\"\",'Generated list'!C6067)","v":""},{"$f":"IF('Generated list'!D6067=\"\",\"\",'Generated list'!D6067)","v":""}]
[null,{"$f":"IF('Generated list'!B6068=\"\",\"\",'Generated list'!B6068)","v":""},{"$f":"IF('Generated list'!C6068=\"\",\"\",'Generated list'!C6068)","v":""},{"$f":"IF('Generated list'!D6068=\"\",\"\",'Generated list'!D6068)","v":""}]
[null,{"$f":"IF('Generated list'!B6069=\"\",\"\",'Generated list'!B6069)","v":""},{"$f":"IF('Generated list'!C6069=\"\",\"\",'Generated list'!C6069)","v":""},{"$f":"IF('Generated list'!D6069=\"\",\"\",'Generated list'!D6069)","v":""}]
[null,{"$f":"IF('Generated list'!B6070=\"\",\"\",'Generated list'!B6070)","v":""},{"$f":"IF('Generated list'!C6070=\"\",\"\",'Generated list'!C6070)","v":""},{"$f":"IF('Generated list'!D6070=\"\",\"\",'Generated list'!D6070)","v":""}]
[null,{"$f":"IF('Generated list'!B6071=\"\",\"\",'Generated list'!B6071)","v":""},{"$f":"IF('Generated list'!C6071=\"\",\"\",'Generated list'!C6071)","v":""},{"$f":"IF('Generated list'!D6071=\"\",\"\",'Generated list'!D6071)","v":""}]
[null,{"$f":"IF('Generated list'!B6072=\"\",\"\",'Generated list'!B6072)","v":""},{"$f":"IF('Generated list'!C6072=\"\",\"\",'Generated list'!C6072)","v":""},{"$f":"IF('Generated list'!D6072=\"\",\"\",'Generated list'!D6072)","v":""}]
[null,{"$f":"IF('Generated list'!B6073=\"\",\"\",'Generated list'!B6073)","v":""},{"$f":"IF('Generated list'!C6073=\"\",\"\",'Generated list'!C6073)","v":""},{"$f":"IF('Generated list'!D6073=\"\",\"\",'Generated list'!D6073)","v":""}]
[null,{"$f":"IF('Generated list'!B6074=\"\",\"\",'Generated list'!B6074)","v":""},{"$f":"IF('Generated list'!C6074=\"\",\"\",'Generated list'!C6074)","v":""},{"$f":"IF('Generated list'!D6074=\"\",\"\",'Generated list'!D6074)","v":""}]
[null,{"$f":"IF('Generated list'!B6075=\"\",\"\",'Generated list'!B6075)","v":""},{"$f":"IF('Generated list'!C6075=\"\",\"\",'Generated list'!C6075)","v":""},{"$f":"IF('Generated list'!D6075=\"\",\"\",'Generated list'!D6075)","v":""}]
[null,{"$f":"IF('Generated list'!B6076=\"\",\"\",'Generated list'!B6076)","v":""},{"$f":"IF('Generated list'!C6076=\"\",\"\",'Generated list'!C6076)","v":""},{"$f":"IF('Generated list'!D6076=\"\",\"\",'Generated list'!D6076)","v":""}]
[null,{"$f":"IF('Generated list'!B6077=\"\",\"\",'Generated list'!B6077)","v":""},{"$f":"IF('Generated list'!C6077=\"\",\"\",'Generated list'!C6077)","v":""},{"$f":"IF('Generated list'!D6077=\"\",\"\",'Generated list'!D6077)","v":""}]
[null,{"$f":"IF('Generated list'!B6078=\"\",\"\",'Generated list'!B6078)","v":""},{"$f":"IF('Generated list'!C6078=\"\",\"\",'Generated list'!C6078)","v":""},{"$f":"IF('Generated list'!D6078=\"\",\"\",'Generated list'!D6078)","v":""}]
[null,{"$f":"IF('Generated list'!B6079=\"\",\"\",'Generated list'!B6079)","v":""},{"$f":"IF('Generated list'!C6079=\"\",\"\",'Generated list'!C6079)","v":""},{"$f":"IF('Generated list'!D6079=\"\",\"\",'Generated list'!D6079)","v":""}]
[null,{"$f":"IF('Generated list'!B6080=\"\",\"\",'Generated list'!B6080)","v":""},{"$f":"IF('Generated list'!C6080=\"\",\"\",'Generated list'!C6080)","v":""},{"$f":"IF('Generated list'!D6080=\"\",\"\",'Generated list'!D6080)","v":""}]
[null,{"$f":"IF('Generated list'!B6081=\"\",\"\",'Generated list'!B6081)","v":""},{"$f":"IF('Generated list'!C6081=\"\",\"\",'Generated list'!C6081)","v":""},{"$f":"IF('Generated list'!D6081=\"\",\"\",'Generated list'!D6081)","v":""}]
[null,{"$f":"IF('Generated list'!B6082=\"\",\"\",'Generated list'!B6082)","v":""},{"$f":"IF('Generated list'!C6082=\"\",\"\",'Generated list'!C6082)","v":""},{"$f":"IF('Generated list'!D6082=\"\",\"\",'Generated list'!D6082)","v":""}]
[null,{"$f":"IF('Generated list'!B6083=\"\",\"\",'Generated list'!B6083)","v":""},{"$f":"IF('Generated list'!C6083=\"\",\"\",'Generated list'!C6083)","v":""},{"$f":"IF('Generated list'!D6083=\"\",\"\",'Generated list'!D6083)","v":""}]
[null,{"$f":"IF('Generated list'!B6084=\"\",\"\",'Generated list'!B6084)","v":""},{"$f":"IF('Generated list'!C6084=\"\",\"\",'Generated list'!C6084)","v":""},{"$f":"IF('Generated list'!D6084=\"\",\"\",'Generated list'!D6084)","v":""}]
[null,{"$f":"IF('Generated list'!B6085=\"\",\"\",'Generated list'!B6085)","v":""},{"$f":"IF('Generated list'!C6085=\"\",\"\",'Generated list'!C6085)","v":""},{"$f":"IF('Generated list'!D6085=\"\",\"\",'Generated list'!D6085)","v":""}]
[null,{"$f":"IF('Generated list'!B6086=\"\",\"\",'Generated list'!B6086)","v":""},{"$f":"IF('Generated list'!C6086=\"\",\"\",'Generated list'!C6086)","v":""},{"$f":"IF('Generated list'!D6086=\"\",\"\",'Generated list'!D6086)","v":""}]
[null,{"$f":"IF('Generated list'!B6087=\"\",\"\",'Generated list'!B6087)","v":""},{"$f":"IF('Generated list'!C6087=\"\",\"\",'Generated list'!C6087)","v":""},{"$f":"IF('Generated list'!D6087=\"\",\"\",'Generated list'!D6087)","v":""}]
[null,{"$f":"IF('Generated list'!B6088=\"\",\"\",'Generated list'!B6088)","v":""},{"$f":"IF('Generated list'!C6088=\"\",\"\",'Generated list'!C6088)","v":""},{"$f":"IF('Generated list'!D6088=\"\",\"\",'Generated list'!D6088)","v":""}]
[null,{"$f":"IF('Generated list'!B6089=\"\",\"\",'Generated list'!B6089)","v":""},{"$f":"IF('Generated list'!C6089=\"\",\"\",'Generated list'!C6089)","v":""},{"$f":"IF('Generated list'!D6089=\"\",\"\",'Generated list'!D6089)","v":""}]
[null,{"$f":"IF('Generated list'!B6090=\"\",\"\",'Generated list'!B6090)","v":""},{"$f":"IF('Generated list'!C6090=\"\",\"\",'Generated list'!C6090)","v":""},{"$f":"IF('Generated list'!D6090=\"\",\"\",'Generated list'!D6090)","v":""}]
[null,{"$f":"IF('Generated list'!B6091=\"\",\"\",'Generated list'!B6091)","v":""},{"$f":"IF('Generated list'!C6091=\"\",\"\",'Generated list'!C6091)","v":""},{"$f":"IF('Generated list'!D6091=\"\",\"\",'Generated list'!D6091)","v":""}]
[null,{"$f":"IF('Generated list'!B6092=\"\",\"\",'Generated list'!B6092)","v":""},{"$f":"IF('Generated list'!C6092=\"\",\"\",'Generated list'!C6092)","v":""},{"$f":"IF('Generated list'!D6092=\"\",\"\",'Generated list'!D6092)","v":""}]
[null,{"$f":"IF('Generated list'!B6093=\"\",\"\",'Generated list'!B6093)","v":""},{"$f":"IF('Generated list'!C6093=\"\",\"\",'Generated list'!C6093)","v":""},{"$f":"IF('Generated list'!D6093=\"\",\"\",'Generated list'!D6093)","v":""}]
[null,{"$f":"IF('Generated list'!B6094=\"\",\"\",'Generated list'!B6094)","v":""},{"$f":"IF('Generated list'!C6094=\"\",\"\",'Generated list'!C6094)","v":""},{"$f":"IF('Generated list'!D6094=\"\",\"\",'Generated list'!D6094)","v":""}]
[null,{"$f":"IF('Generated list'!B6095=\"\",\"\",'Generated list'!B6095)","v":""},{"$f":"IF('Generated list'!C6095=\"\",\"\",'Generated list'!C6095)","v":""},{"$f":"IF('Generated list'!D6095=\"\",\"\",'Generated list'!D6095)","v":""}]
[null,{"$f":"IF('Generated list'!B6096=\"\",\"\",'Generated list'!B6096)","v":""},{"$f":"IF('Generated list'!C6096=\"\",\"\",'Generated list'!C6096)","v":""},{"$f":"IF('Generated list'!D6096=\"\",\"\",'Generated list'!D6096)","v":""}]
[null,{"$f":"IF('Generated list'!B6097=\"\",\"\",'Generated list'!B6097)","v":""},{"$f":"IF('Generated list'!C6097=\"\",\"\",'Generated list'!C6097)","v":""},{"$f":"IF('Generated list'!D6097=\"\",\"\",'Generated list'!D6097)","v":""}]
[null,{"$f":"IF('Generated list'!B6098=\"\",\"\",'Generated list'!B6098)","v":""},{"$f":"IF('Generated list'!C6098=\"\",\"\",'Generated list'!C6098)","v":""},{"$f":"IF('Generated list'!D6098=\"\",\"\",'Generated list'!D6098)","v":""}]
[null,{"$f":"IF('Generated list'!B6099=\"\",\"\",'Generated list'!B6099)","v":""},{"$f":"IF('Generated list'!C6099=\"\",\"\",'Generated list'!C6099)","v":""},{"$f":"IF('Generated list'!D6099=\"\",\"\",'Generated list'!D6099)","v":""}]
[null,{"$f":"IF('Generated list'!B6100=\"\",\"\",'Generated list'!B6100)","v":""},{"$f":"IF('Generated list'!C6100=\"\",\"\",'Generated list'!C6100)","v":""},{"$f":"IF('Generated list'!D6100=\"\",\"\",'Generated list'!D6100)","v":""}]
[null,{"$f":"IF('Generated list'!B6101=\"\",\"\",'Generated list'!B6101)","v":""},{"$f":"IF('Generated list'!C6101=\"\",\"\",'Generated list'!C6101)","v":""},{"$f":"IF('Generated list'!D6101=\"\",\"\",'Generated list'!D6101)","v":""}]
[null,{"$f":"IF('Generated list'!B6102=\"\",\"\",'Generated list'!B6102)","v":""},{"$f":"IF('Generated list'!C6102=\"\",\"\",'Generated list'!C6102)","v":""},{"$f":"IF('Generated list'!D6102=\"\",\"\",'Generated list'!D6102)","v":""}]
[null,{"$f":"IF('Generated list'!B6103=\"\",\"\",'Generated list'!B6103)","v":""},{"$f":"IF('Generated list'!C6103=\"\",\"\",'Generated list'!C6103)","v":""},{"$f":"IF('Generated list'!D6103=\"\",\"\",'Generated list'!D6103)","v":""}]
[null,{"$f":"IF('Generated list'!B6104=\"\",\"\",'Generated list'!B6104)","v":""},{"$f":"IF('Generated list'!C6104=\"\",\"\",'Generated list'!C6104)","v":""},{"$f":"IF('Generated list'!D6104=\"\",\"\",'Generated list'!D6104)","v":""}]
[null,{"$f":"IF('Generated list'!B6105=\"\",\"\",'Generated list'!B6105)","v":""},{"$f":"IF('Generated list'!C6105=\"\",\"\",'Generated list'!C6105)","v":""},{"$f":"IF('Generated list'!D6105=\"\",\"\",'Generated list'!D6105)","v":""}]
[null,{"$f":"IF('Generated list'!B6106=\"\",\"\",'Generated list'!B6106)","v":""},{"$f":"IF('Generated list'!C6106=\"\",\"\",'Generated list'!C6106)","v":""},{"$f":"IF('Generated list'!D6106=\"\",\"\",'Generated list'!D6106)","v":""}]
[null,{"$f":"IF('Generated list'!B6107=\"\",\"\",'Generated list'!B6107)","v":""},{"$f":"IF('Generated list'!C6107=\"\",\"\",'Generated list'!C6107)","v":""},{"$f":"IF('Generated list'!D6107=\"\",\"\",'Generated list'!D6107)","v":""}]
[null,{"$f":"IF('Generated list'!B6108=\"\",\"\",'Generated list'!B6108)","v":""},{"$f":"IF('Generated list'!C6108=\"\",\"\",'Generated list'!C6108)","v":""},{"$f":"IF('Generated list'!D6108=\"\",\"\",'Generated list'!D6108)","v":""}]
[null,{"$f":"IF('Generated list'!B6109=\"\",\"\",'Generated list'!B6109)","v":""},{"$f":"IF('Generated list'!C6109=\"\",\"\",'Generated list'!C6109)","v":""},{"$f":"IF('Generated list'!D6109=\"\",\"\",'Generated list'!D6109)","v":""}]
[null,{"$f":"IF('Generated list'!B6110=\"\",\"\",'Generated list'!B6110)","v":""},{"$f":"IF('Generated list'!C6110=\"\",\"\",'Generated list'!C6110)","v":""},{"$f":"IF('Generated list'!D6110=\"\",\"\",'Generated list'!D6110)","v":""}]
[null,{"$f":"IF('Generated list'!B6111=\"\",\"\",'Generated list'!B6111)","v":""},{"$f":"IF('Generated list'!C6111=\"\",\"\",'Generated list'!C6111)","v":""},{"$f":"IF('Generated list'!D6111=\"\",\"\",'Generated list'!D6111)","v":""}]
[null,{"$f":"IF('Generated list'!B6112=\"\",\"\",'Generated list'!B6112)","v":""},{"$f":"IF('Generated list'!C6112=\"\",\"\",'Generated list'!C6112)","v":""},{"$f":"IF('Generated list'!D6112=\"\",\"\",'Generated list'!D6112)","v":""}]
[null,{"$f":"IF('Generated list'!B6113=\"\",\"\",'Generated list'!B6113)","v":""},{"$f":"IF('Generated list'!C6113=\"\",\"\",'Generated list'!C6113)","v":""},{"$f":"IF('Generated list'!D6113=\"\",\"\",'Generated list'!D6113)","v":""}]
[null,{"$f":"IF('Generated list'!B6114=\"\",\"\",'Generated list'!B6114)","v":""},{"$f":"IF('Generated list'!C6114=\"\",\"\",'Generated list'!C6114)","v":""},{"$f":"IF('Generated list'!D6114=\"\",\"\",'Generated list'!D6114)","v":""}]
[null,{"$f":"IF('Generated list'!B6115=\"\",\"\",'Generated list'!B6115)","v":""},{"$f":"IF('Generated list'!C6115=\"\",\"\",'Generated list'!C6115)","v":""},{"$f":"IF('Generated list'!D6115=\"\",\"\",'Generated list'!D6115)","v":""}]
[null,{"$f":"IF('Generated list'!B6116=\"\",\"\",'Generated list'!B6116)","v":""},{"$f":"IF('Generated list'!C6116=\"\",\"\",'Generated list'!C6116)","v":""},{"$f":"IF('Generated list'!D6116=\"\",\"\",'Generated list'!D6116)","v":""}]
[null,{"$f":"IF('Generated list'!B6117=\"\",\"\",'Generated list'!B6117)","v":""},{"$f":"IF('Generated list'!C6117=\"\",\"\",'Generated list'!C6117)","v":""},{"$f":"IF('Generated list'!D6117=\"\",\"\",'Generated list'!D6117)","v":""}]
[null,{"$f":"IF('Generated list'!B6118=\"\",\"\",'Generated list'!B6118)","v":""},{"$f":"IF('Generated list'!C6118=\"\",\"\",'Generated list'!C6118)","v":""},{"$f":"IF('Generated list'!D6118=\"\",\"\",'Generated list'!D6118)","v":""}]
[null,{"$f":"IF('Generated list'!B6119=\"\",\"\",'Generated list'!B6119)","v":""},{"$f":"IF('Generated list'!C6119=\"\",\"\",'Generated list'!C6119)","v":""},{"$f":"IF('Generated list'!D6119=\"\",\"\",'Generated list'!D6119)","v":""}]
[null,{"$f":"IF('Generated list'!B6120=\"\",\"\",'Generated list'!B6120)","v":""},{"$f":"IF('Generated list'!C6120=\"\",\"\",'Generated list'!C6120)","v":""},{"$f":"IF('Generated list'!D6120=\"\",\"\",'Generated list'!D6120)","v":""}]
[null,{"$f":"IF('Generated list'!B6121=\"\",\"\",'Generated list'!B6121)","v":""},{"$f":"IF('Generated list'!C6121=\"\",\"\",'Generated list'!C6121)","v":""},{"$f":"IF('Generated list'!D6121=\"\",\"\",'Generated list'!D6121)","v":""}]
[null,{"$f":"IF('Generated list'!B6122=\"\",\"\",'Generated list'!B6122)","v":""},{"$f":"IF('Generated list'!C6122=\"\",\"\",'Generated list'!C6122)","v":""},{"$f":"IF('Generated list'!D6122=\"\",\"\",'Generated list'!D6122)","v":""}]
[null,{"$f":"IF('Generated list'!B6123=\"\",\"\",'Generated list'!B6123)","v":""},{"$f":"IF('Generated list'!C6123=\"\",\"\",'Generated list'!C6123)","v":""},{"$f":"IF('Generated list'!D6123=\"\",\"\",'Generated list'!D6123)","v":""}]
[null,{"$f":"IF('Generated list'!B6124=\"\",\"\",'Generated list'!B6124)","v":""},{"$f":"IF('Generated list'!C6124=\"\",\"\",'Generated list'!C6124)","v":""},{"$f":"IF('Generated list'!D6124=\"\",\"\",'Generated list'!D6124)","v":""}]
[null,{"$f":"IF('Generated list'!B6125=\"\",\"\",'Generated list'!B6125)","v":""},{"$f":"IF('Generated list'!C6125=\"\",\"\",'Generated list'!C6125)","v":""},{"$f":"IF('Generated list'!D6125=\"\",\"\",'Generated list'!D6125)","v":""}]
[null,{"$f":"IF('Generated list'!B6126=\"\",\"\",'Generated list'!B6126)","v":""},{"$f":"IF('Generated list'!C6126=\"\",\"\",'Generated list'!C6126)","v":""},{"$f":"IF('Generated list'!D6126=\"\",\"\",'Generated list'!D6126)","v":""}]
[null,{"$f":"IF('Generated list'!B6127=\"\",\"\",'Generated list'!B6127)","v":""},{"$f":"IF('Generated list'!C6127=\"\",\"\",'Generated list'!C6127)","v":""},{"$f":"IF('Generated list'!D6127=\"\",\"\",'Generated list'!D6127)","v":""}]
[null,{"$f":"IF('Generated list'!B6128=\"\",\"\",'Generated list'!B6128)","v":""},{"$f":"IF('Generated list'!C6128=\"\",\"\",'Generated list'!C6128)","v":""},{"$f":"IF('Generated list'!D6128=\"\",\"\",'Generated list'!D6128)","v":""}]
[null,{"$f":"IF('Generated list'!B6129=\"\",\"\",'Generated list'!B6129)","v":""},{"$f":"IF('Generated list'!C6129=\"\",\"\",'Generated list'!C6129)","v":""},{"$f":"IF('Generated list'!D6129=\"\",\"\",'Generated list'!D6129)","v":""}]
[null,{"$f":"IF('Generated list'!B6130=\"\",\"\",'Generated list'!B6130)","v":""},{"$f":"IF('Generated list'!C6130=\"\",\"\",'Generated list'!C6130)","v":""},{"$f":"IF('Generated list'!D6130=\"\",\"\",'Generated list'!D6130)","v":""}]
[null,{"$f":"IF('Generated list'!B6131=\"\",\"\",'Generated list'!B6131)","v":""},{"$f":"IF('Generated list'!C6131=\"\",\"\",'Generated list'!C6131)","v":""},{"$f":"IF('Generated list'!D6131=\"\",\"\",'Generated list'!D6131)","v":""}]
[null,{"$f":"IF('Generated list'!B6132=\"\",\"\",'Generated list'!B6132)","v":""},{"$f":"IF('Generated list'!C6132=\"\",\"\",'Generated list'!C6132)","v":""},{"$f":"IF('Generated list'!D6132=\"\",\"\",'Generated list'!D6132)","v":""}]
[null,{"$f":"IF('Generated list'!B6133=\"\",\"\",'Generated list'!B6133)","v":""},{"$f":"IF('Generated list'!C6133=\"\",\"\",'Generated list'!C6133)","v":""},{"$f":"IF('Generated list'!D6133=\"\",\"\",'Generated list'!D6133)","v":""}]
[null,{"$f":"IF('Generated list'!B6134=\"\",\"\",'Generated list'!B6134)","v":""},{"$f":"IF('Generated list'!C6134=\"\",\"\",'Generated list'!C6134)","v":""},{"$f":"IF('Generated list'!D6134=\"\",\"\",'Generated list'!D6134)","v":""}]
[null,{"$f":"IF('Generated list'!B6135=\"\",\"\",'Generated list'!B6135)","v":""},{"$f":"IF('Generated list'!C6135=\"\",\"\",'Generated list'!C6135)","v":""},{"$f":"IF('Generated list'!D6135=\"\",\"\",'Generated list'!D6135)","v":""}]
[null,{"$f":"IF('Generated list'!B6136=\"\",\"\",'Generated list'!B6136)","v":""},{"$f":"IF('Generated list'!C6136=\"\",\"\",'Generated list'!C6136)","v":""},{"$f":"IF('Generated list'!D6136=\"\",\"\",'Generated list'!D6136)","v":""}]
[null,{"$f":"IF('Generated list'!B6137=\"\",\"\",'Generated list'!B6137)","v":""},{"$f":"IF('Generated list'!C6137=\"\",\"\",'Generated list'!C6137)","v":""},{"$f":"IF('Generated list'!D6137=\"\",\"\",'Generated list'!D6137)","v":""}]
[null,{"$f":"IF('Generated list'!B6138=\"\",\"\",'Generated list'!B6138)","v":""},{"$f":"IF('Generated list'!C6138=\"\",\"\",'Generated list'!C6138)","v":""},{"$f":"IF('Generated list'!D6138=\"\",\"\",'Generated list'!D6138)","v":""}]
[null,{"$f":"IF('Generated list'!B6139=\"\",\"\",'Generated list'!B6139)","v":""},{"$f":"IF('Generated list'!C6139=\"\",\"\",'Generated list'!C6139)","v":""},{"$f":"IF('Generated list'!D6139=\"\",\"\",'Generated list'!D6139)","v":""}]
[null,{"$f":"IF('Generated list'!B6140=\"\",\"\",'Generated list'!B6140)","v":""},{"$f":"IF('Generated list'!C6140=\"\",\"\",'Generated list'!C6140)","v":""},{"$f":"IF('Generated list'!D6140=\"\",\"\",'Generated list'!D6140)","v":""}]
[null,{"$f":"IF('Generated list'!B6141=\"\",\"\",'Generated list'!B6141)","v":""},{"$f":"IF('Generated list'!C6141=\"\",\"\",'Generated list'!C6141)","v":""},{"$f":"IF('Generated list'!D6141=\"\",\"\",'Generated list'!D6141)","v":""}]
[null,{"$f":"IF('Generated list'!B6142=\"\",\"\",'Generated list'!B6142)","v":""},{"$f":"IF('Generated list'!C6142=\"\",\"\",'Generated list'!C6142)","v":""},{"$f":"IF('Generated list'!D6142=\"\",\"\",'Generated list'!D6142)","v":""}]
[null,{"$f":"IF('Generated list'!B6143=\"\",\"\",'Generated list'!B6143)","v":""},{"$f":"IF('Generated list'!C6143=\"\",\"\",'Generated list'!C6143)","v":""},{"$f":"IF('Generated list'!D6143=\"\",\"\",'Generated list'!D6143)","v":""}]
[null,{"$f":"IF('Generated list'!B6144=\"\",\"\",'Generated list'!B6144)","v":""},{"$f":"IF('Generated list'!C6144=\"\",\"\",'Generated list'!C6144)","v":""},{"$f":"IF('Generated list'!D6144=\"\",\"\",'Generated list'!D6144)","v":""}]
[null,{"$f":"IF('Generated list'!B6145=\"\",\"\",'Generated list'!B6145)","v":""},{"$f":"IF('Generated list'!C6145=\"\",\"\",'Generated list'!C6145)","v":""},{"$f":"IF('Generated list'!D6145=\"\",\"\",'Generated list'!D6145)","v":""}]
[null,{"$f":"IF('Generated list'!B6146=\"\",\"\",'Generated list'!B6146)","v":""},{"$f":"IF('Generated list'!C6146=\"\",\"\",'Generated list'!C6146)","v":""},{"$f":"IF('Generated list'!D6146=\"\",\"\",'Generated list'!D6146)","v":""}]
[null,{"$f":"IF('Generated list'!B6147=\"\",\"\",'Generated list'!B6147)","v":""},{"$f":"IF('Generated list'!C6147=\"\",\"\",'Generated list'!C6147)","v":""},{"$f":"IF('Generated list'!D6147=\"\",\"\",'Generated list'!D6147)","v":""}]
[null,{"$f":"IF('Generated list'!B6148=\"\",\"\",'Generated list'!B6148)","v":""},{"$f":"IF('Generated list'!C6148=\"\",\"\",'Generated list'!C6148)","v":""},{"$f":"IF('Generated list'!D6148=\"\",\"\",'Generated list'!D6148)","v":""}]
[null,{"$f":"IF('Generated list'!B6149=\"\",\"\",'Generated list'!B6149)","v":""},{"$f":"IF('Generated list'!C6149=\"\",\"\",'Generated list'!C6149)","v":""},{"$f":"IF('Generated list'!D6149=\"\",\"\",'Generated list'!D6149)","v":""}]
[null,{"$f":"IF('Generated list'!B6150=\"\",\"\",'Generated list'!B6150)","v":""},{"$f":"IF('Generated list'!C6150=\"\",\"\",'Generated list'!C6150)","v":""},{"$f":"IF('Generated list'!D6150=\"\",\"\",'Generated list'!D6150)","v":""}]
[null,{"$f":"IF('Generated list'!B6151=\"\",\"\",'Generated list'!B6151)","v":""},{"$f":"IF('Generated list'!C6151=\"\",\"\",'Generated list'!C6151)","v":""},{"$f":"IF('Generated list'!D6151=\"\",\"\",'Generated list'!D6151)","v":""}]
[null,{"$f":"IF('Generated list'!B6152=\"\",\"\",'Generated list'!B6152)","v":""},{"$f":"IF('Generated list'!C6152=\"\",\"\",'Generated list'!C6152)","v":""},{"$f":"IF('Generated list'!D6152=\"\",\"\",'Generated list'!D6152)","v":""}]
[null,{"$f":"IF('Generated list'!B6153=\"\",\"\",'Generated list'!B6153)","v":""},{"$f":"IF('Generated list'!C6153=\"\",\"\",'Generated list'!C6153)","v":""},{"$f":"IF('Generated list'!D6153=\"\",\"\",'Generated list'!D6153)","v":""}]
[null,{"$f":"IF('Generated list'!B6154=\"\",\"\",'Generated list'!B6154)","v":""},{"$f":"IF('Generated list'!C6154=\"\",\"\",'Generated list'!C6154)","v":""},{"$f":"IF('Generated list'!D6154=\"\",\"\",'Generated list'!D6154)","v":""}]
[null,{"$f":"IF('Generated list'!B6155=\"\",\"\",'Generated list'!B6155)","v":""},{"$f":"IF('Generated list'!C6155=\"\",\"\",'Generated list'!C6155)","v":""},{"$f":"IF('Generated list'!D6155=\"\",\"\",'Generated list'!D6155)","v":""}]
[null,{"$f":"IF('Generated list'!B6156=\"\",\"\",'Generated list'!B6156)","v":""},{"$f":"IF('Generated list'!C6156=\"\",\"\",'Generated list'!C6156)","v":""},{"$f":"IF('Generated list'!D6156=\"\",\"\",'Generated list'!D6156)","v":""}]
[null,{"$f":"IF('Generated list'!B6157=\"\",\"\",'Generated list'!B6157)","v":""},{"$f":"IF('Generated list'!C6157=\"\",\"\",'Generated list'!C6157)","v":""},{"$f":"IF('Generated list'!D6157=\"\",\"\",'Generated list'!D6157)","v":""}]
[null,{"$f":"IF('Generated list'!B6158=\"\",\"\",'Generated list'!B6158)","v":""},{"$f":"IF('Generated list'!C6158=\"\",\"\",'Generated list'!C6158)","v":""},{"$f":"IF('Generated list'!D6158=\"\",\"\",'Generated list'!D6158)","v":""}]
[null,{"$f":"IF('Generated list'!B6159=\"\",\"\",'Generated list'!B6159)","v":""},{"$f":"IF('Generated list'!C6159=\"\",\"\",'Generated list'!C6159)","v":""},{"$f":"IF('Generated list'!D6159=\"\",\"\",'Generated list'!D6159)","v":""}]
[null,{"$f":"IF('Generated list'!B6160=\"\",\"\",'Generated list'!B6160)","v":""},{"$f":"IF('Generated list'!C6160=\"\",\"\",'Generated list'!C6160)","v":""},{"$f":"IF('Generated list'!D6160=\"\",\"\",'Generated list'!D6160)","v":""}]
[null,{"$f":"IF('Generated list'!B6161=\"\",\"\",'Generated list'!B6161)","v":""},{"$f":"IF('Generated list'!C6161=\"\",\"\",'Generated list'!C6161)","v":""},{"$f":"IF('Generated list'!D6161=\"\",\"\",'Generated list'!D6161)","v":""}]
[null,{"$f":"IF('Generated list'!B6162=\"\",\"\",'Generated list'!B6162)","v":""},{"$f":"IF('Generated list'!C6162=\"\",\"\",'Generated list'!C6162)","v":""},{"$f":"IF('Generated list'!D6162=\"\",\"\",'Generated list'!D6162)","v":""}]
[null,{"$f":"IF('Generated list'!B6163=\"\",\"\",'Generated list'!B6163)","v":""},{"$f":"IF('Generated list'!C6163=\"\",\"\",'Generated list'!C6163)","v":""},{"$f":"IF('Generated list'!D6163=\"\",\"\",'Generated list'!D6163)","v":""}]
[null,{"$f":"IF('Generated list'!B6164=\"\",\"\",'Generated list'!B6164)","v":""},{"$f":"IF('Generated list'!C6164=\"\",\"\",'Generated list'!C6164)","v":""},{"$f":"IF('Generated list'!D6164=\"\",\"\",'Generated list'!D6164)","v":""}]
[null,{"$f":"IF('Generated list'!B6165=\"\",\"\",'Generated list'!B6165)","v":""},{"$f":"IF('Generated list'!C6165=\"\",\"\",'Generated list'!C6165)","v":""},{"$f":"IF('Generated list'!D6165=\"\",\"\",'Generated list'!D6165)","v":""}]
[null,{"$f":"IF('Generated list'!B6166=\"\",\"\",'Generated list'!B6166)","v":""},{"$f":"IF('Generated list'!C6166=\"\",\"\",'Generated list'!C6166)","v":""},{"$f":"IF('Generated list'!D6166=\"\",\"\",'Generated list'!D6166)","v":""}]
[null,{"$f":"IF('Generated list'!B6167=\"\",\"\",'Generated list'!B6167)","v":""},{"$f":"IF('Generated list'!C6167=\"\",\"\",'Generated list'!C6167)","v":""},{"$f":"IF('Generated list'!D6167=\"\",\"\",'Generated list'!D6167)","v":""}]
[null,{"$f":"IF('Generated list'!B6168=\"\",\"\",'Generated list'!B6168)","v":""},{"$f":"IF('Generated list'!C6168=\"\",\"\",'Generated list'!C6168)","v":""},{"$f":"IF('Generated list'!D6168=\"\",\"\",'Generated list'!D6168)","v":""}]
[null,{"$f":"IF('Generated list'!B6169=\"\",\"\",'Generated list'!B6169)","v":""},{"$f":"IF('Generated list'!C6169=\"\",\"\",'Generated list'!C6169)","v":""},{"$f":"IF('Generated list'!D6169=\"\",\"\",'Generated list'!D6169)","v":""}]
[null,{"$f":"IF('Generated list'!B6170=\"\",\"\",'Generated list'!B6170)","v":""},{"$f":"IF('Generated list'!C6170=\"\",\"\",'Generated list'!C6170)","v":""},{"$f":"IF('Generated list'!D6170=\"\",\"\",'Generated list'!D6170)","v":""}]
[null,{"$f":"IF('Generated list'!B6171=\"\",\"\",'Generated list'!B6171)","v":""},{"$f":"IF('Generated list'!C6171=\"\",\"\",'Generated list'!C6171)","v":""},{"$f":"IF('Generated list'!D6171=\"\",\"\",'Generated list'!D6171)","v":""}]
[null,{"$f":"IF('Generated list'!B6172=\"\",\"\",'Generated list'!B6172)","v":""},{"$f":"IF('Generated list'!C6172=\"\",\"\",'Generated list'!C6172)","v":""},{"$f":"IF('Generated list'!D6172=\"\",\"\",'Generated list'!D6172)","v":""}]
[null,{"$f":"IF('Generated list'!B6173=\"\",\"\",'Generated list'!B6173)","v":""},{"$f":"IF('Generated list'!C6173=\"\",\"\",'Generated list'!C6173)","v":""},{"$f":"IF('Generated list'!D6173=\"\",\"\",'Generated list'!D6173)","v":""}]
[null,{"$f":"IF('Generated list'!B6174=\"\",\"\",'Generated list'!B6174)","v":""},{"$f":"IF('Generated list'!C6174=\"\",\"\",'Generated list'!C6174)","v":""},{"$f":"IF('Generated list'!D6174=\"\",\"\",'Generated list'!D6174)","v":""}]
[null,{"$f":"IF('Generated list'!B6175=\"\",\"\",'Generated list'!B6175)","v":""},{"$f":"IF('Generated list'!C6175=\"\",\"\",'Generated list'!C6175)","v":""},{"$f":"IF('Generated list'!D6175=\"\",\"\",'Generated list'!D6175)","v":""}]
[null,{"$f":"IF('Generated list'!B6176=\"\",\"\",'Generated list'!B6176)","v":""},{"$f":"IF('Generated list'!C6176=\"\",\"\",'Generated list'!C6176)","v":""},{"$f":"IF('Generated list'!D6176=\"\",\"\",'Generated list'!D6176)","v":""}]
[null,{"$f":"IF('Generated list'!B6177=\"\",\"\",'Generated list'!B6177)","v":""},{"$f":"IF('Generated list'!C6177=\"\",\"\",'Generated list'!C6177)","v":""},{"$f":"IF('Generated list'!D6177=\"\",\"\",'Generated list'!D6177)","v":""}]
[null,{"$f":"IF('Generated list'!B6178=\"\",\"\",'Generated list'!B6178)","v":""},{"$f":"IF('Generated list'!C6178=\"\",\"\",'Generated list'!C6178)","v":""},{"$f":"IF('Generated list'!D6178=\"\",\"\",'Generated list'!D6178)","v":""}]
[null,{"$f":"IF('Generated list'!B6179=\"\",\"\",'Generated list'!B6179)","v":""},{"$f":"IF('Generated list'!C6179=\"\",\"\",'Generated list'!C6179)","v":""},{"$f":"IF('Generated list'!D6179=\"\",\"\",'Generated list'!D6179)","v":""}]
[null,{"$f":"IF('Generated list'!B6180=\"\",\"\",'Generated list'!B6180)","v":""},{"$f":"IF('Generated list'!C6180=\"\",\"\",'Generated list'!C6180)","v":""},{"$f":"IF('Generated list'!D6180=\"\",\"\",'Generated list'!D6180)","v":""}]
[null,{"$f":"IF('Generated list'!B6181=\"\",\"\",'Generated list'!B6181)","v":""},{"$f":"IF('Generated list'!C6181=\"\",\"\",'Generated list'!C6181)","v":""},{"$f":"IF('Generated list'!D6181=\"\",\"\",'Generated list'!D6181)","v":""}]
[null,{"$f":"IF('Generated list'!B6182=\"\",\"\",'Generated list'!B6182)","v":""},{"$f":"IF('Generated list'!C6182=\"\",\"\",'Generated list'!C6182)","v":""},{"$f":"IF('Generated list'!D6182=\"\",\"\",'Generated list'!D6182)","v":""}]
[null,{"$f":"IF('Generated list'!B6183=\"\",\"\",'Generated list'!B6183)","v":""},{"$f":"IF('Generated list'!C6183=\"\",\"\",'Generated list'!C6183)","v":""},{"$f":"IF('Generated list'!D6183=\"\",\"\",'Generated list'!D6183)","v":""}]
[null,{"$f":"IF('Generated list'!B6184=\"\",\"\",'Generated list'!B6184)","v":""},{"$f":"IF('Generated list'!C6184=\"\",\"\",'Generated list'!C6184)","v":""},{"$f":"IF('Generated list'!D6184=\"\",\"\",'Generated list'!D6184)","v":""}]
[null,{"$f":"IF('Generated list'!B6185=\"\",\"\",'Generated list'!B6185)","v":""},{"$f":"IF('Generated list'!C6185=\"\",\"\",'Generated list'!C6185)","v":""},{"$f":"IF('Generated list'!D6185=\"\",\"\",'Generated list'!D6185)","v":""}]
[null,{"$f":"IF('Generated list'!B6186=\"\",\"\",'Generated list'!B6186)","v":""},{"$f":"IF('Generated list'!C6186=\"\",\"\",'Generated list'!C6186)","v":""},{"$f":"IF('Generated list'!D6186=\"\",\"\",'Generated list'!D6186)","v":""}]
[null,{"$f":"IF('Generated list'!B6187=\"\",\"\",'Generated list'!B6187)","v":""},{"$f":"IF('Generated list'!C6187=\"\",\"\",'Generated list'!C6187)","v":""},{"$f":"IF('Generated list'!D6187=\"\",\"\",'Generated list'!D6187)","v":""}]
[null,{"$f":"IF('Generated list'!B6188=\"\",\"\",'Generated list'!B6188)","v":""},{"$f":"IF('Generated list'!C6188=\"\",\"\",'Generated list'!C6188)","v":""},{"$f":"IF('Generated list'!D6188=\"\",\"\",'Generated list'!D6188)","v":""}]
[null,{"$f":"IF('Generated list'!B6189=\"\",\"\",'Generated list'!B6189)","v":""},{"$f":"IF('Generated list'!C6189=\"\",\"\",'Generated list'!C6189)","v":""},{"$f":"IF('Generated list'!D6189=\"\",\"\",'Generated list'!D6189)","v":""}]
[null,{"$f":"IF('Generated list'!B6190=\"\",\"\",'Generated list'!B6190)","v":""},{"$f":"IF('Generated list'!C6190=\"\",\"\",'Generated list'!C6190)","v":""},{"$f":"IF('Generated list'!D6190=\"\",\"\",'Generated list'!D6190)","v":""}]
[null,{"$f":"IF('Generated list'!B6191=\"\",\"\",'Generated list'!B6191)","v":""},{"$f":"IF('Generated list'!C6191=\"\",\"\",'Generated list'!C6191)","v":""},{"$f":"IF('Generated list'!D6191=\"\",\"\",'Generated list'!D6191)","v":""}]
[null,{"$f":"IF('Generated list'!B6192=\"\",\"\",'Generated list'!B6192)","v":""},{"$f":"IF('Generated list'!C6192=\"\",\"\",'Generated list'!C6192)","v":""},{"$f":"IF('Generated list'!D6192=\"\",\"\",'Generated list'!D6192)","v":""}]
[null,{"$f":"IF('Generated list'!B6193=\"\",\"\",'Generated list'!B6193)","v":""},{"$f":"IF('Generated list'!C6193=\"\",\"\",'Generated list'!C6193)","v":""},{"$f":"IF('Generated list'!D6193=\"\",\"\",'Generated list'!D6193)","v":""}]
[null,{"$f":"IF('Generated list'!B6194=\"\",\"\",'Generated list'!B6194)","v":""},{"$f":"IF('Generated list'!C6194=\"\",\"\",'Generated list'!C6194)","v":""},{"$f":"IF('Generated list'!D6194=\"\",\"\",'Generated list'!D6194)","v":""}]
[null,{"$f":"IF('Generated list'!B6195=\"\",\"\",'Generated list'!B6195)","v":""},{"$f":"IF('Generated list'!C6195=\"\",\"\",'Generated list'!C6195)","v":""},{"$f":"IF('Generated list'!D6195=\"\",\"\",'Generated list'!D6195)","v":""}]
[null,{"$f":"IF('Generated list'!B6196=\"\",\"\",'Generated list'!B6196)","v":""},{"$f":"IF('Generated list'!C6196=\"\",\"\",'Generated list'!C6196)","v":""},{"$f":"IF('Generated list'!D6196=\"\",\"\",'Generated list'!D6196)","v":""}]
[null,{"$f":"IF('Generated list'!B6197=\"\",\"\",'Generated list'!B6197)","v":""},{"$f":"IF('Generated list'!C6197=\"\",\"\",'Generated list'!C6197)","v":""},{"$f":"IF('Generated list'!D6197=\"\",\"\",'Generated list'!D6197)","v":""}]
[null,{"$f":"IF('Generated list'!B6198=\"\",\"\",'Generated list'!B6198)","v":""},{"$f":"IF('Generated list'!C6198=\"\",\"\",'Generated list'!C6198)","v":""},{"$f":"IF('Generated list'!D6198=\"\",\"\",'Generated list'!D6198)","v":""}]
[null,{"$f":"IF('Generated list'!B6199=\"\",\"\",'Generated list'!B6199)","v":""},{"$f":"IF('Generated list'!C6199=\"\",\"\",'Generated list'!C6199)","v":""},{"$f":"IF('Generated list'!D6199=\"\",\"\",'Generated list'!D6199)","v":""}]
[null,{"$f":"IF('Generated list'!B6200=\"\",\"\",'Generated list'!B6200)","v":""},{"$f":"IF('Generated list'!C6200=\"\",\"\",'Generated list'!C6200)","v":""},{"$f":"IF('Generated list'!D6200=\"\",\"\",'Generated list'!D6200)","v":""}]
[null,{"$f":"IF('Generated list'!B6201=\"\",\"\",'Generated list'!B6201)","v":""},{"$f":"IF('Generated list'!C6201=\"\",\"\",'Generated list'!C6201)","v":""},{"$f":"IF('Generated list'!D6201=\"\",\"\",'Generated list'!D6201)","v":""}]
[null,{"$f":"IF('Generated list'!B6202=\"\",\"\",'Generated list'!B6202)","v":""},{"$f":"IF('Generated list'!C6202=\"\",\"\",'Generated list'!C6202)","v":""},{"$f":"IF('Generated list'!D6202=\"\",\"\",'Generated list'!D6202)","v":""}]
[null,{"$f":"IF('Generated list'!B6203=\"\",\"\",'Generated list'!B6203)","v":""},{"$f":"IF('Generated list'!C6203=\"\",\"\",'Generated list'!C6203)","v":""},{"$f":"IF('Generated list'!D6203=\"\",\"\",'Generated list'!D6203)","v":""}]
[null,{"$f":"IF('Generated list'!B6204=\"\",\"\",'Generated list'!B6204)","v":""},{"$f":"IF('Generated list'!C6204=\"\",\"\",'Generated list'!C6204)","v":""},{"$f":"IF('Generated list'!D6204=\"\",\"\",'Generated list'!D6204)","v":""}]
[null,{"$f":"IF('Generated list'!B6205=\"\",\"\",'Generated list'!B6205)","v":""},{"$f":"IF('Generated list'!C6205=\"\",\"\",'Generated list'!C6205)","v":""},{"$f":"IF('Generated list'!D6205=\"\",\"\",'Generated list'!D6205)","v":""}]
[null,{"$f":"IF('Generated list'!B6206=\"\",\"\",'Generated list'!B6206)","v":""},{"$f":"IF('Generated list'!C6206=\"\",\"\",'Generated list'!C6206)","v":""},{"$f":"IF('Generated list'!D6206=\"\",\"\",'Generated list'!D6206)","v":""}]
[null,{"$f":"IF('Generated list'!B6207=\"\",\"\",'Generated list'!B6207)","v":""},{"$f":"IF('Generated list'!C6207=\"\",\"\",'Generated list'!C6207)","v":""},{"$f":"IF('Generated list'!D6207=\"\",\"\",'Generated list'!D6207)","v":""}]
[null,{"$f":"IF('Generated list'!B6208=\"\",\"\",'Generated list'!B6208)","v":""},{"$f":"IF('Generated list'!C6208=\"\",\"\",'Generated list'!C6208)","v":""},{"$f":"IF('Generated list'!D6208=\"\",\"\",'Generated list'!D6208)","v":""}]
[null,{"$f":"IF('Generated list'!B6209=\"\",\"\",'Generated list'!B6209)","v":""},{"$f":"IF('Generated list'!C6209=\"\",\"\",'Generated list'!C6209)","v":""},{"$f":"IF('Generated list'!D6209=\"\",\"\",'Generated list'!D6209)","v":""}]
[null,{"$f":"IF('Generated list'!B6210=\"\",\"\",'Generated list'!B6210)","v":""},{"$f":"IF('Generated list'!C6210=\"\",\"\",'Generated list'!C6210)","v":""},{"$f":"IF('Generated list'!D6210=\"\",\"\",'Generated list'!D6210)","v":""}]
[null,{"$f":"IF('Generated list'!B6211=\"\",\"\",'Generated list'!B6211)","v":""},{"$f":"IF('Generated list'!C6211=\"\",\"\",'Generated list'!C6211)","v":""},{"$f":"IF('Generated list'!D6211=\"\",\"\",'Generated list'!D6211)","v":""}]
[null,{"$f":"IF('Generated list'!B6212=\"\",\"\",'Generated list'!B6212)","v":""},{"$f":"IF('Generated list'!C6212=\"\",\"\",'Generated list'!C6212)","v":""},{"$f":"IF('Generated list'!D6212=\"\",\"\",'Generated list'!D6212)","v":""}]
[null,{"$f":"IF('Generated list'!B6213=\"\",\"\",'Generated list'!B6213)","v":""},{"$f":"IF('Generated list'!C6213=\"\",\"\",'Generated list'!C6213)","v":""},{"$f":"IF('Generated list'!D6213=\"\",\"\",'Generated list'!D6213)","v":""}]
[null,{"$f":"IF('Generated list'!B6214=\"\",\"\",'Generated list'!B6214)","v":""},{"$f":"IF('Generated list'!C6214=\"\",\"\",'Generated list'!C6214)","v":""},{"$f":"IF('Generated list'!D6214=\"\",\"\",'Generated list'!D6214)","v":""}]
[null,{"$f":"IF('Generated list'!B6215=\"\",\"\",'Generated list'!B6215)","v":""},{"$f":"IF('Generated list'!C6215=\"\",\"\",'Generated list'!C6215)","v":""},{"$f":"IF('Generated list'!D6215=\"\",\"\",'Generated list'!D6215)","v":""}]
[null,{"$f":"IF('Generated list'!B6216=\"\",\"\",'Generated list'!B6216)","v":""},{"$f":"IF('Generated list'!C6216=\"\",\"\",'Generated list'!C6216)","v":""},{"$f":"IF('Generated list'!D6216=\"\",\"\",'Generated list'!D6216)","v":""}]
[null,{"$f":"IF('Generated list'!B6217=\"\",\"\",'Generated list'!B6217)","v":""},{"$f":"IF('Generated list'!C6217=\"\",\"\",'Generated list'!C6217)","v":""},{"$f":"IF('Generated list'!D6217=\"\",\"\",'Generated list'!D6217)","v":""}]
[null,{"$f":"IF('Generated list'!B6218=\"\",\"\",'Generated list'!B6218)","v":""},{"$f":"IF('Generated list'!C6218=\"\",\"\",'Generated list'!C6218)","v":""},{"$f":"IF('Generated list'!D6218=\"\",\"\",'Generated list'!D6218)","v":""}]
[null,{"$f":"IF('Generated list'!B6219=\"\",\"\",'Generated list'!B6219)","v":""},{"$f":"IF('Generated list'!C6219=\"\",\"\",'Generated list'!C6219)","v":""},{"$f":"IF('Generated list'!D6219=\"\",\"\",'Generated list'!D6219)","v":""}]
[null,{"$f":"IF('Generated list'!B6220=\"\",\"\",'Generated list'!B6220)","v":""},{"$f":"IF('Generated list'!C6220=\"\",\"\",'Generated list'!C6220)","v":""},{"$f":"IF('Generated list'!D6220=\"\",\"\",'Generated list'!D6220)","v":""}]
[null,{"$f":"IF('Generated list'!B6221=\"\",\"\",'Generated list'!B6221)","v":""},{"$f":"IF('Generated list'!C6221=\"\",\"\",'Generated list'!C6221)","v":""},{"$f":"IF('Generated list'!D6221=\"\",\"\",'Generated list'!D6221)","v":""}]
[null,{"$f":"IF('Generated list'!B6222=\"\",\"\",'Generated list'!B6222)","v":""},{"$f":"IF('Generated list'!C6222=\"\",\"\",'Generated list'!C6222)","v":""},{"$f":"IF('Generated list'!D6222=\"\",\"\",'Generated list'!D6222)","v":""}]
[null,{"$f":"IF('Generated list'!B6223=\"\",\"\",'Generated list'!B6223)","v":""},{"$f":"IF('Generated list'!C6223=\"\",\"\",'Generated list'!C6223)","v":""},{"$f":"IF('Generated list'!D6223=\"\",\"\",'Generated list'!D6223)","v":""}]
[null,{"$f":"IF('Generated list'!B6224=\"\",\"\",'Generated list'!B6224)","v":""},{"$f":"IF('Generated list'!C6224=\"\",\"\",'Generated list'!C6224)","v":""},{"$f":"IF('Generated list'!D6224=\"\",\"\",'Generated list'!D6224)","v":""}]
[null,{"$f":"IF('Generated list'!B6225=\"\",\"\",'Generated list'!B6225)","v":""},{"$f":"IF('Generated list'!C6225=\"\",\"\",'Generated list'!C6225)","v":""},{"$f":"IF('Generated list'!D6225=\"\",\"\",'Generated list'!D6225)","v":""}]
[null,{"$f":"IF('Generated list'!B6226=\"\",\"\",'Generated list'!B6226)","v":""},{"$f":"IF('Generated list'!C6226=\"\",\"\",'Generated list'!C6226)","v":""},{"$f":"IF('Generated list'!D6226=\"\",\"\",'Generated list'!D6226)","v":""}]
[null,{"$f":"IF('Generated list'!B6227=\"\",\"\",'Generated list'!B6227)","v":""},{"$f":"IF('Generated list'!C6227=\"\",\"\",'Generated list'!C6227)","v":""},{"$f":"IF('Generated list'!D6227=\"\",\"\",'Generated list'!D6227)","v":""}]
[null,{"$f":"IF('Generated list'!B6228=\"\",\"\",'Generated list'!B6228)","v":""},{"$f":"IF('Generated list'!C6228=\"\",\"\",'Generated list'!C6228)","v":""},{"$f":"IF('Generated list'!D6228=\"\",\"\",'Generated list'!D6228)","v":""}]
[null,{"$f":"IF('Generated list'!B6229=\"\",\"\",'Generated list'!B6229)","v":""},{"$f":"IF('Generated list'!C6229=\"\",\"\",'Generated list'!C6229)","v":""},{"$f":"IF('Generated list'!D6229=\"\",\"\",'Generated list'!D6229)","v":""}]
[null,{"$f":"IF('Generated list'!B6230=\"\",\"\",'Generated list'!B6230)","v":""},{"$f":"IF('Generated list'!C6230=\"\",\"\",'Generated list'!C6230)","v":""},{"$f":"IF('Generated list'!D6230=\"\",\"\",'Generated list'!D6230)","v":""}]
[null,{"$f":"IF('Generated list'!B6231=\"\",\"\",'Generated list'!B6231)","v":""},{"$f":"IF('Generated list'!C6231=\"\",\"\",'Generated list'!C6231)","v":""},{"$f":"IF('Generated list'!D6231=\"\",\"\",'Generated list'!D6231)","v":""}]
[null,{"$f":"IF('Generated list'!B6232=\"\",\"\",'Generated list'!B6232)","v":""},{"$f":"IF('Generated list'!C6232=\"\",\"\",'Generated list'!C6232)","v":""},{"$f":"IF('Generated list'!D6232=\"\",\"\",'Generated list'!D6232)","v":""}]
[null,{"$f":"IF('Generated list'!B6233=\"\",\"\",'Generated list'!B6233)","v":""},{"$f":"IF('Generated list'!C6233=\"\",\"\",'Generated list'!C6233)","v":""},{"$f":"IF('Generated list'!D6233=\"\",\"\",'Generated list'!D6233)","v":""}]
[null,{"$f":"IF('Generated list'!B6234=\"\",\"\",'Generated list'!B6234)","v":""},{"$f":"IF('Generated list'!C6234=\"\",\"\",'Generated list'!C6234)","v":""},{"$f":"IF('Generated list'!D6234=\"\",\"\",'Generated list'!D6234)","v":""}]
[null,{"$f":"IF('Generated list'!B6235=\"\",\"\",'Generated list'!B6235)","v":""},{"$f":"IF('Generated list'!C6235=\"\",\"\",'Generated list'!C6235)","v":""},{"$f":"IF('Generated list'!D6235=\"\",\"\",'Generated list'!D6235)","v":""}]
[null,{"$f":"IF('Generated list'!B6236=\"\",\"\",'Generated list'!B6236)","v":""},{"$f":"IF('Generated list'!C6236=\"\",\"\",'Generated list'!C6236)","v":""},{"$f":"IF('Generated list'!D6236=\"\",\"\",'Generated list'!D6236)","v":""}]
[null,{"$f":"IF('Generated list'!B6237=\"\",\"\",'Generated list'!B6237)","v":""},{"$f":"IF('Generated list'!C6237=\"\",\"\",'Generated list'!C6237)","v":""},{"$f":"IF('Generated list'!D6237=\"\",\"\",'Generated list'!D6237)","v":""}]
[null,{"$f":"IF('Generated list'!B6238=\"\",\"\",'Generated list'!B6238)","v":""},{"$f":"IF('Generated list'!C6238=\"\",\"\",'Generated list'!C6238)","v":""},{"$f":"IF('Generated list'!D6238=\"\",\"\",'Generated list'!D6238)","v":""}]
[null,{"$f":"IF('Generated list'!B6239=\"\",\"\",'Generated list'!B6239)","v":""},{"$f":"IF('Generated list'!C6239=\"\",\"\",'Generated list'!C6239)","v":""},{"$f":"IF('Generated list'!D6239=\"\",\"\",'Generated list'!D6239)","v":""}]
[null,{"$f":"IF('Generated list'!B6240=\"\",\"\",'Generated list'!B6240)","v":""},{"$f":"IF('Generated list'!C6240=\"\",\"\",'Generated list'!C6240)","v":""},{"$f":"IF('Generated list'!D6240=\"\",\"\",'Generated list'!D6240)","v":""}]
[null,{"$f":"IF('Generated list'!B6241=\"\",\"\",'Generated list'!B6241)","v":""},{"$f":"IF('Generated list'!C6241=\"\",\"\",'Generated list'!C6241)","v":""},{"$f":"IF('Generated list'!D6241=\"\",\"\",'Generated list'!D6241)","v":""}]
[null,{"$f":"IF('Generated list'!B6242=\"\",\"\",'Generated list'!B6242)","v":""},{"$f":"IF('Generated list'!C6242=\"\",\"\",'Generated list'!C6242)","v":""},{"$f":"IF('Generated list'!D6242=\"\",\"\",'Generated list'!D6242)","v":""}]
[null,{"$f":"IF('Generated list'!B6243=\"\",\"\",'Generated list'!B6243)","v":""},{"$f":"IF('Generated list'!C6243=\"\",\"\",'Generated list'!C6243)","v":""},{"$f":"IF('Generated list'!D6243=\"\",\"\",'Generated list'!D6243)","v":""}]
[null,{"$f":"IF('Generated list'!B6244=\"\",\"\",'Generated list'!B6244)","v":""},{"$f":"IF('Generated list'!C6244=\"\",\"\",'Generated list'!C6244)","v":""},{"$f":"IF('Generated list'!D6244=\"\",\"\",'Generated list'!D6244)","v":""}]
[null,{"$f":"IF('Generated list'!B6245=\"\",\"\",'Generated list'!B6245)","v":""},{"$f":"IF('Generated list'!C6245=\"\",\"\",'Generated list'!C6245)","v":""},{"$f":"IF('Generated list'!D6245=\"\",\"\",'Generated list'!D6245)","v":""}]
[null,{"$f":"IF('Generated list'!B6246=\"\",\"\",'Generated list'!B6246)","v":""},{"$f":"IF('Generated list'!C6246=\"\",\"\",'Generated list'!C6246)","v":""},{"$f":"IF('Generated list'!D6246=\"\",\"\",'Generated list'!D6246)","v":""}]
[null,{"$f":"IF('Generated list'!B6247=\"\",\"\",'Generated list'!B6247)","v":""},{"$f":"IF('Generated list'!C6247=\"\",\"\",'Generated list'!C6247)","v":""},{"$f":"IF('Generated list'!D6247=\"\",\"\",'Generated list'!D6247)","v":""}]
[null,{"$f":"IF('Generated list'!B6248=\"\",\"\",'Generated list'!B6248)","v":""},{"$f":"IF('Generated list'!C6248=\"\",\"\",'Generated list'!C6248)","v":""},{"$f":"IF('Generated list'!D6248=\"\",\"\",'Generated list'!D6248)","v":""}]
[null,{"$f":"IF('Generated list'!B6249=\"\",\"\",'Generated list'!B6249)","v":""},{"$f":"IF('Generated list'!C6249=\"\",\"\",'Generated list'!C6249)","v":""},{"$f":"IF('Generated list'!D6249=\"\",\"\",'Generated list'!D6249)","v":""}]
[null,{"$f":"IF('Generated list'!B6250=\"\",\"\",'Generated list'!B6250)","v":""},{"$f":"IF('Generated list'!C6250=\"\",\"\",'Generated list'!C6250)","v":""},{"$f":"IF('Generated list'!D6250=\"\",\"\",'Generated list'!D6250)","v":""}]
[null,{"$f":"IF('Generated list'!B6251=\"\",\"\",'Generated list'!B6251)","v":""},{"$f":"IF('Generated list'!C6251=\"\",\"\",'Generated list'!C6251)","v":""},{"$f":"IF('Generated list'!D6251=\"\",\"\",'Generated list'!D6251)","v":""}]
[null,{"$f":"IF('Generated list'!B6252=\"\",\"\",'Generated list'!B6252)","v":""},{"$f":"IF('Generated list'!C6252=\"\",\"\",'Generated list'!C6252)","v":""},{"$f":"IF('Generated list'!D6252=\"\",\"\",'Generated list'!D6252)","v":""}]
[null,{"$f":"IF('Generated list'!B6253=\"\",\"\",'Generated list'!B6253)","v":""},{"$f":"IF('Generated list'!C6253=\"\",\"\",'Generated list'!C6253)","v":""},{"$f":"IF('Generated list'!D6253=\"\",\"\",'Generated list'!D6253)","v":""}]
[null,{"$f":"IF('Generated list'!B6254=\"\",\"\",'Generated list'!B6254)","v":""},{"$f":"IF('Generated list'!C6254=\"\",\"\",'Generated list'!C6254)","v":""},{"$f":"IF('Generated list'!D6254=\"\",\"\",'Generated list'!D6254)","v":""}]
[null,{"$f":"IF('Generated list'!B6255=\"\",\"\",'Generated list'!B6255)","v":""},{"$f":"IF('Generated list'!C6255=\"\",\"\",'Generated list'!C6255)","v":""},{"$f":"IF('Generated list'!D6255=\"\",\"\",'Generated list'!D6255)","v":""}]
[null,{"$f":"IF('Generated list'!B6256=\"\",\"\",'Generated list'!B6256)","v":""},{"$f":"IF('Generated list'!C6256=\"\",\"\",'Generated list'!C6256)","v":""},{"$f":"IF('Generated list'!D6256=\"\",\"\",'Generated list'!D6256)","v":""}]
[null,{"$f":"IF('Generated list'!B6257=\"\",\"\",'Generated list'!B6257)","v":""},{"$f":"IF('Generated list'!C6257=\"\",\"\",'Generated list'!C6257)","v":""},{"$f":"IF('Generated list'!D6257=\"\",\"\",'Generated list'!D6257)","v":""}]
[null,{"$f":"IF('Generated list'!B6258=\"\",\"\",'Generated list'!B6258)","v":""},{"$f":"IF('Generated list'!C6258=\"\",\"\",'Generated list'!C6258)","v":""},{"$f":"IF('Generated list'!D6258=\"\",\"\",'Generated list'!D6258)","v":""}]
[null,{"$f":"IF('Generated list'!B6259=\"\",\"\",'Generated list'!B6259)","v":""},{"$f":"IF('Generated list'!C6259=\"\",\"\",'Generated list'!C6259)","v":""},{"$f":"IF('Generated list'!D6259=\"\",\"\",'Generated list'!D6259)","v":""}]
[null,{"$f":"IF('Generated list'!B6260=\"\",\"\",'Generated list'!B6260)","v":""},{"$f":"IF('Generated list'!C6260=\"\",\"\",'Generated list'!C6260)","v":""},{"$f":"IF('Generated list'!D6260=\"\",\"\",'Generated list'!D6260)","v":""}]
[null,{"$f":"IF('Generated list'!B6261=\"\",\"\",'Generated list'!B6261)","v":""},{"$f":"IF('Generated list'!C6261=\"\",\"\",'Generated list'!C6261)","v":""},{"$f":"IF('Generated list'!D6261=\"\",\"\",'Generated list'!D6261)","v":""}]
[null,{"$f":"IF('Generated list'!B6262=\"\",\"\",'Generated list'!B6262)","v":""},{"$f":"IF('Generated list'!C6262=\"\",\"\",'Generated list'!C6262)","v":""},{"$f":"IF('Generated list'!D6262=\"\",\"\",'Generated list'!D6262)","v":""}]
[null,{"$f":"IF('Generated list'!B6263=\"\",\"\",'Generated list'!B6263)","v":""},{"$f":"IF('Generated list'!C6263=\"\",\"\",'Generated list'!C6263)","v":""},{"$f":"IF('Generated list'!D6263=\"\",\"\",'Generated list'!D6263)","v":""}]
[null,{"$f":"IF('Generated list'!B6264=\"\",\"\",'Generated list'!B6264)","v":""},{"$f":"IF('Generated list'!C6264=\"\",\"\",'Generated list'!C6264)","v":""},{"$f":"IF('Generated list'!D6264=\"\",\"\",'Generated list'!D6264)","v":""}]
[null,{"$f":"IF('Generated list'!B6265=\"\",\"\",'Generated list'!B6265)","v":""},{"$f":"IF('Generated list'!C6265=\"\",\"\",'Generated list'!C6265)","v":""},{"$f":"IF('Generated list'!D6265=\"\",\"\",'Generated list'!D6265)","v":""}]
[null,{"$f":"IF('Generated list'!B6266=\"\",\"\",'Generated list'!B6266)","v":""},{"$f":"IF('Generated list'!C6266=\"\",\"\",'Generated list'!C6266)","v":""},{"$f":"IF('Generated list'!D6266=\"\",\"\",'Generated list'!D6266)","v":""}]
[null,{"$f":"IF('Generated list'!B6267=\"\",\"\",'Generated list'!B6267)","v":""},{"$f":"IF('Generated list'!C6267=\"\",\"\",'Generated list'!C6267)","v":""},{"$f":"IF('Generated list'!D6267=\"\",\"\",'Generated list'!D6267)","v":""}]
[null,{"$f":"IF('Generated list'!B6268=\"\",\"\",'Generated list'!B6268)","v":""},{"$f":"IF('Generated list'!C6268=\"\",\"\",'Generated list'!C6268)","v":""},{"$f":"IF('Generated list'!D6268=\"\",\"\",'Generated list'!D6268)","v":""}]
[null,{"$f":"IF('Generated list'!B6269=\"\",\"\",'Generated list'!B6269)","v":""},{"$f":"IF('Generated list'!C6269=\"\",\"\",'Generated list'!C6269)","v":""},{"$f":"IF('Generated list'!D6269=\"\",\"\",'Generated list'!D6269)","v":""}]
[null,{"$f":"IF('Generated list'!B6270=\"\",\"\",'Generated list'!B6270)","v":""},{"$f":"IF('Generated list'!C6270=\"\",\"\",'Generated list'!C6270)","v":""},{"$f":"IF('Generated list'!D6270=\"\",\"\",'Generated list'!D6270)","v":""}]
[null,{"$f":"IF('Generated list'!B6271=\"\",\"\",'Generated list'!B6271)","v":""},{"$f":"IF('Generated list'!C6271=\"\",\"\",'Generated list'!C6271)","v":""},{"$f":"IF('Generated list'!D6271=\"\",\"\",'Generated list'!D6271)","v":""}]
[null,{"$f":"IF('Generated list'!B6272=\"\",\"\",'Generated list'!B6272)","v":""},{"$f":"IF('Generated list'!C6272=\"\",\"\",'Generated list'!C6272)","v":""},{"$f":"IF('Generated list'!D6272=\"\",\"\",'Generated list'!D6272)","v":""}]
[null,{"$f":"IF('Generated list'!B6273=\"\",\"\",'Generated list'!B6273)","v":""},{"$f":"IF('Generated list'!C6273=\"\",\"\",'Generated list'!C6273)","v":""},{"$f":"IF('Generated list'!D6273=\"\",\"\",'Generated list'!D6273)","v":""}]
[null,{"$f":"IF('Generated list'!B6274=\"\",\"\",'Generated list'!B6274)","v":""},{"$f":"IF('Generated list'!C6274=\"\",\"\",'Generated list'!C6274)","v":""},{"$f":"IF('Generated list'!D6274=\"\",\"\",'Generated list'!D6274)","v":""}]
[null,{"$f":"IF('Generated list'!B6275=\"\",\"\",'Generated list'!B6275)","v":""},{"$f":"IF('Generated list'!C6275=\"\",\"\",'Generated list'!C6275)","v":""},{"$f":"IF('Generated list'!D6275=\"\",\"\",'Generated list'!D6275)","v":""}]
[null,{"$f":"IF('Generated list'!B6276=\"\",\"\",'Generated list'!B6276)","v":""},{"$f":"IF('Generated list'!C6276=\"\",\"\",'Generated list'!C6276)","v":""},{"$f":"IF('Generated list'!D6276=\"\",\"\",'Generated list'!D6276)","v":""}]
[null,{"$f":"IF('Generated list'!B6277=\"\",\"\",'Generated list'!B6277)","v":""},{"$f":"IF('Generated list'!C6277=\"\",\"\",'Generated list'!C6277)","v":""},{"$f":"IF('Generated list'!D6277=\"\",\"\",'Generated list'!D6277)","v":""}]
[null,{"$f":"IF('Generated list'!B6278=\"\",\"\",'Generated list'!B6278)","v":""},{"$f":"IF('Generated list'!C6278=\"\",\"\",'Generated list'!C6278)","v":""},{"$f":"IF('Generated list'!D6278=\"\",\"\",'Generated list'!D6278)","v":""}]
[null,{"$f":"IF('Generated list'!B6279=\"\",\"\",'Generated list'!B6279)","v":""},{"$f":"IF('Generated list'!C6279=\"\",\"\",'Generated list'!C6279)","v":""},{"$f":"IF('Generated list'!D6279=\"\",\"\",'Generated list'!D6279)","v":""}]
[null,{"$f":"IF('Generated list'!B6280=\"\",\"\",'Generated list'!B6280)","v":""},{"$f":"IF('Generated list'!C6280=\"\",\"\",'Generated list'!C6280)","v":""},{"$f":"IF('Generated list'!D6280=\"\",\"\",'Generated list'!D6280)","v":""}]
[null,{"$f":"IF('Generated list'!B6281=\"\",\"\",'Generated list'!B6281)","v":""},{"$f":"IF('Generated list'!C6281=\"\",\"\",'Generated list'!C6281)","v":""},{"$f":"IF('Generated list'!D6281=\"\",\"\",'Generated list'!D6281)","v":""}]
[null,{"$f":"IF('Generated list'!B6282=\"\",\"\",'Generated list'!B6282)","v":""},{"$f":"IF('Generated list'!C6282=\"\",\"\",'Generated list'!C6282)","v":""},{"$f":"IF('Generated list'!D6282=\"\",\"\",'Generated list'!D6282)","v":""}]
[null,{"$f":"IF('Generated list'!B6283=\"\",\"\",'Generated list'!B6283)","v":""},{"$f":"IF('Generated list'!C6283=\"\",\"\",'Generated list'!C6283)","v":""},{"$f":"IF('Generated list'!D6283=\"\",\"\",'Generated list'!D6283)","v":""}]
[null,{"$f":"IF('Generated list'!B6284=\"\",\"\",'Generated list'!B6284)","v":""},{"$f":"IF('Generated list'!C6284=\"\",\"\",'Generated list'!C6284)","v":""},{"$f":"IF('Generated list'!D6284=\"\",\"\",'Generated list'!D6284)","v":""}]
[null,{"$f":"IF('Generated list'!B6285=\"\",\"\",'Generated list'!B6285)","v":""},{"$f":"IF('Generated list'!C6285=\"\",\"\",'Generated list'!C6285)","v":""},{"$f":"IF('Generated list'!D6285=\"\",\"\",'Generated list'!D6285)","v":""}]
[null,{"$f":"IF('Generated list'!B6286=\"\",\"\",'Generated list'!B6286)","v":""},{"$f":"IF('Generated list'!C6286=\"\",\"\",'Generated list'!C6286)","v":""},{"$f":"IF('Generated list'!D6286=\"\",\"\",'Generated list'!D6286)","v":""}]
[null,{"$f":"IF('Generated list'!B6287=\"\",\"\",'Generated list'!B6287)","v":""},{"$f":"IF('Generated list'!C6287=\"\",\"\",'Generated list'!C6287)","v":""},{"$f":"IF('Generated list'!D6287=\"\",\"\",'Generated list'!D6287)","v":""}]
[null,{"$f":"IF('Generated list'!B6288=\"\",\"\",'Generated list'!B6288)","v":""},{"$f":"IF('Generated list'!C6288=\"\",\"\",'Generated list'!C6288)","v":""},{"$f":"IF('Generated list'!D6288=\"\",\"\",'Generated list'!D6288)","v":""}]
[null,{"$f":"IF('Generated list'!B6289=\"\",\"\",'Generated list'!B6289)","v":""},{"$f":"IF('Generated list'!C6289=\"\",\"\",'Generated list'!C6289)","v":""},{"$f":"IF('Generated list'!D6289=\"\",\"\",'Generated list'!D6289)","v":""}]
[null,{"$f":"IF('Generated list'!B6290=\"\",\"\",'Generated list'!B6290)","v":""},{"$f":"IF('Generated list'!C6290=\"\",\"\",'Generated list'!C6290)","v":""},{"$f":"IF('Generated list'!D6290=\"\",\"\",'Generated list'!D6290)","v":""}]
[null,{"$f":"IF('Generated list'!B6291=\"\",\"\",'Generated list'!B6291)","v":""},{"$f":"IF('Generated list'!C6291=\"\",\"\",'Generated list'!C6291)","v":""},{"$f":"IF('Generated list'!D6291=\"\",\"\",'Generated list'!D6291)","v":""}]
[null,{"$f":"IF('Generated list'!B6292=\"\",\"\",'Generated list'!B6292)","v":""},{"$f":"IF('Generated list'!C6292=\"\",\"\",'Generated list'!C6292)","v":""},{"$f":"IF('Generated list'!D6292=\"\",\"\",'Generated list'!D6292)","v":""}]
[null,{"$f":"IF('Generated list'!B6293=\"\",\"\",'Generated list'!B6293)","v":""},{"$f":"IF('Generated list'!C6293=\"\",\"\",'Generated list'!C6293)","v":""},{"$f":"IF('Generated list'!D6293=\"\",\"\",'Generated list'!D6293)","v":""}]
[null,{"$f":"IF('Generated list'!B6294=\"\",\"\",'Generated list'!B6294)","v":""},{"$f":"IF('Generated list'!C6294=\"\",\"\",'Generated list'!C6294)","v":""},{"$f":"IF('Generated list'!D6294=\"\",\"\",'Generated list'!D6294)","v":""}]
[null,{"$f":"IF('Generated list'!B6295=\"\",\"\",'Generated list'!B6295)","v":""},{"$f":"IF('Generated list'!C6295=\"\",\"\",'Generated list'!C6295)","v":""},{"$f":"IF('Generated list'!D6295=\"\",\"\",'Generated list'!D6295)","v":""}]
[null,{"$f":"IF('Generated list'!B6296=\"\",\"\",'Generated list'!B6296)","v":""},{"$f":"IF('Generated list'!C6296=\"\",\"\",'Generated list'!C6296)","v":""},{"$f":"IF('Generated list'!D6296=\"\",\"\",'Generated list'!D6296)","v":""}]
[null,{"$f":"IF('Generated list'!B6297=\"\",\"\",'Generated list'!B6297)","v":""},{"$f":"IF('Generated list'!C6297=\"\",\"\",'Generated list'!C6297)","v":""},{"$f":"IF('Generated list'!D6297=\"\",\"\",'Generated list'!D6297)","v":""}]
[null,{"$f":"IF('Generated list'!B6298=\"\",\"\",'Generated list'!B6298)","v":""},{"$f":"IF('Generated list'!C6298=\"\",\"\",'Generated list'!C6298)","v":""},{"$f":"IF('Generated list'!D6298=\"\",\"\",'Generated list'!D6298)","v":""}]
[null,{"$f":"IF('Generated list'!B6299=\"\",\"\",'Generated list'!B6299)","v":""},{"$f":"IF('Generated list'!C6299=\"\",\"\",'Generated list'!C6299)","v":""},{"$f":"IF('Generated list'!D6299=\"\",\"\",'Generated list'!D6299)","v":""}]
[null,{"$f":"IF('Generated list'!B6300=\"\",\"\",'Generated list'!B6300)","v":""},{"$f":"IF('Generated list'!C6300=\"\",\"\",'Generated list'!C6300)","v":""},{"$f":"IF('Generated list'!D6300=\"\",\"\",'Generated list'!D6300)","v":""}]
[null,{"$f":"IF('Generated list'!B6301=\"\",\"\",'Generated list'!B6301)","v":""},{"$f":"IF('Generated list'!C6301=\"\",\"\",'Generated list'!C6301)","v":""},{"$f":"IF('Generated list'!D6301=\"\",\"\",'Generated list'!D6301)","v":""}]
[null,{"$f":"IF('Generated list'!B6302=\"\",\"\",'Generated list'!B6302)","v":""},{"$f":"IF('Generated list'!C6302=\"\",\"\",'Generated list'!C6302)","v":""},{"$f":"IF('Generated list'!D6302=\"\",\"\",'Generated list'!D6302)","v":""}]
[null,{"$f":"IF('Generated list'!B6303=\"\",\"\",'Generated list'!B6303)","v":""},{"$f":"IF('Generated list'!C6303=\"\",\"\",'Generated list'!C6303)","v":""},{"$f":"IF('Generated list'!D6303=\"\",\"\",'Generated list'!D6303)","v":""}]
[null,{"$f":"IF('Generated list'!B6304=\"\",\"\",'Generated list'!B6304)","v":""},{"$f":"IF('Generated list'!C6304=\"\",\"\",'Generated list'!C6304)","v":""},{"$f":"IF('Generated list'!D6304=\"\",\"\",'Generated list'!D6304)","v":""}]
[null,{"$f":"IF('Generated list'!B6305=\"\",\"\",'Generated list'!B6305)","v":""},{"$f":"IF('Generated list'!C6305=\"\",\"\",'Generated list'!C6305)","v":""},{"$f":"IF('Generated list'!D6305=\"\",\"\",'Generated list'!D6305)","v":""}]
[null,{"$f":"IF('Generated list'!B6306=\"\",\"\",'Generated list'!B6306)","v":""},{"$f":"IF('Generated list'!C6306=\"\",\"\",'Generated list'!C6306)","v":""},{"$f":"IF('Generated list'!D6306=\"\",\"\",'Generated list'!D6306)","v":""}]
[null,{"$f":"IF('Generated list'!B6307=\"\",\"\",'Generated list'!B6307)","v":""},{"$f":"IF('Generated list'!C6307=\"\",\"\",'Generated list'!C6307)","v":""},{"$f":"IF('Generated list'!D6307=\"\",\"\",'Generated list'!D6307)","v":""}]
[null,{"$f":"IF('Generated list'!B6308=\"\",\"\",'Generated list'!B6308)","v":""},{"$f":"IF('Generated list'!C6308=\"\",\"\",'Generated list'!C6308)","v":""},{"$f":"IF('Generated list'!D6308=\"\",\"\",'Generated list'!D6308)","v":""}]
[null,{"$f":"IF('Generated list'!B6309=\"\",\"\",'Generated list'!B6309)","v":""},{"$f":"IF('Generated list'!C6309=\"\",\"\",'Generated list'!C6309)","v":""},{"$f":"IF('Generated list'!D6309=\"\",\"\",'Generated list'!D6309)","v":""}]
[null,{"$f":"IF('Generated list'!B6310=\"\",\"\",'Generated list'!B6310)","v":""},{"$f":"IF('Generated list'!C6310=\"\",\"\",'Generated list'!C6310)","v":""},{"$f":"IF('Generated list'!D6310=\"\",\"\",'Generated list'!D6310)","v":""}]
[null,{"$f":"IF('Generated list'!B6311=\"\",\"\",'Generated list'!B6311)","v":""},{"$f":"IF('Generated list'!C6311=\"\",\"\",'Generated list'!C6311)","v":""},{"$f":"IF('Generated list'!D6311=\"\",\"\",'Generated list'!D6311)","v":""}]
[null,{"$f":"IF('Generated list'!B6312=\"\",\"\",'Generated list'!B6312)","v":""},{"$f":"IF('Generated list'!C6312=\"\",\"\",'Generated list'!C6312)","v":""},{"$f":"IF('Generated list'!D6312=\"\",\"\",'Generated list'!D6312)","v":""}]
[null,{"$f":"IF('Generated list'!B6313=\"\",\"\",'Generated list'!B6313)","v":""},{"$f":"IF('Generated list'!C6313=\"\",\"\",'Generated list'!C6313)","v":""},{"$f":"IF('Generated list'!D6313=\"\",\"\",'Generated list'!D6313)","v":""}]
[null,{"$f":"IF('Generated list'!B6314=\"\",\"\",'Generated list'!B6314)","v":""},{"$f":"IF('Generated list'!C6314=\"\",\"\",'Generated list'!C6314)","v":""},{"$f":"IF('Generated list'!D6314=\"\",\"\",'Generated list'!D6314)","v":""}]
[null,{"$f":"IF('Generated list'!B6315=\"\",\"\",'Generated list'!B6315)","v":""},{"$f":"IF('Generated list'!C6315=\"\",\"\",'Generated list'!C6315)","v":""},{"$f":"IF('Generated list'!D6315=\"\",\"\",'Generated list'!D6315)","v":""}]
[null,{"$f":"IF('Generated list'!B6316=\"\",\"\",'Generated list'!B6316)","v":""},{"$f":"IF('Generated list'!C6316=\"\",\"\",'Generated list'!C6316)","v":""},{"$f":"IF('Generated list'!D6316=\"\",\"\",'Generated list'!D6316)","v":""}]
[null,{"$f":"IF('Generated list'!B6317=\"\",\"\",'Generated list'!B6317)","v":""},{"$f":"IF('Generated list'!C6317=\"\",\"\",'Generated list'!C6317)","v":""},{"$f":"IF('Generated list'!D6317=\"\",\"\",'Generated list'!D6317)","v":""}]
[null,{"$f":"IF('Generated list'!B6318=\"\",\"\",'Generated list'!B6318)","v":""},{"$f":"IF('Generated list'!C6318=\"\",\"\",'Generated list'!C6318)","v":""},{"$f":"IF('Generated list'!D6318=\"\",\"\",'Generated list'!D6318)","v":""}]
[null,{"$f":"IF('Generated list'!B6319=\"\",\"\",'Generated list'!B6319)","v":""},{"$f":"IF('Generated list'!C6319=\"\",\"\",'Generated list'!C6319)","v":""},{"$f":"IF('Generated list'!D6319=\"\",\"\",'Generated list'!D6319)","v":""}]
[null,{"$f":"IF('Generated list'!B6320=\"\",\"\",'Generated list'!B6320)","v":""},{"$f":"IF('Generated list'!C6320=\"\",\"\",'Generated list'!C6320)","v":""},{"$f":"IF('Generated list'!D6320=\"\",\"\",'Generated list'!D6320)","v":""}]
[null,{"$f":"IF('Generated list'!B6321=\"\",\"\",'Generated list'!B6321)","v":""},{"$f":"IF('Generated list'!C6321=\"\",\"\",'Generated list'!C6321)","v":""},{"$f":"IF('Generated list'!D6321=\"\",\"\",'Generated list'!D6321)","v":""}]
[null,{"$f":"IF('Generated list'!B6322=\"\",\"\",'Generated list'!B6322)","v":""},{"$f":"IF('Generated list'!C6322=\"\",\"\",'Generated list'!C6322)","v":""},{"$f":"IF('Generated list'!D6322=\"\",\"\",'Generated list'!D6322)","v":""}]
[null,{"$f":"IF('Generated list'!B6323=\"\",\"\",'Generated list'!B6323)","v":""},{"$f":"IF('Generated list'!C6323=\"\",\"\",'Generated list'!C6323)","v":""},{"$f":"IF('Generated list'!D6323=\"\",\"\",'Generated list'!D6323)","v":""}]
[null,{"$f":"IF('Generated list'!B6324=\"\",\"\",'Generated list'!B6324)","v":""},{"$f":"IF('Generated list'!C6324=\"\",\"\",'Generated list'!C6324)","v":""},{"$f":"IF('Generated list'!D6324=\"\",\"\",'Generated list'!D6324)","v":""}]
[null,{"$f":"IF('Generated list'!B6325=\"\",\"\",'Generated list'!B6325)","v":""},{"$f":"IF('Generated list'!C6325=\"\",\"\",'Generated list'!C6325)","v":""},{"$f":"IF('Generated list'!D6325=\"\",\"\",'Generated list'!D6325)","v":""}]
[null,{"$f":"IF('Generated list'!B6326=\"\",\"\",'Generated list'!B6326)","v":""},{"$f":"IF('Generated list'!C6326=\"\",\"\",'Generated list'!C6326)","v":""},{"$f":"IF('Generated list'!D6326=\"\",\"\",'Generated list'!D6326)","v":""}]
[null,{"$f":"IF('Generated list'!B6327=\"\",\"\",'Generated list'!B6327)","v":""},{"$f":"IF('Generated list'!C6327=\"\",\"\",'Generated list'!C6327)","v":""},{"$f":"IF('Generated list'!D6327=\"\",\"\",'Generated list'!D6327)","v":""}]
[null,{"$f":"IF('Generated list'!B6328=\"\",\"\",'Generated list'!B6328)","v":""},{"$f":"IF('Generated list'!C6328=\"\",\"\",'Generated list'!C6328)","v":""},{"$f":"IF('Generated list'!D6328=\"\",\"\",'Generated list'!D6328)","v":""}]
[null,{"$f":"IF('Generated list'!B6329=\"\",\"\",'Generated list'!B6329)","v":""},{"$f":"IF('Generated list'!C6329=\"\",\"\",'Generated list'!C6329)","v":""},{"$f":"IF('Generated list'!D6329=\"\",\"\",'Generated list'!D6329)","v":""}]
[null,{"$f":"IF('Generated list'!B6330=\"\",\"\",'Generated list'!B6330)","v":""},{"$f":"IF('Generated list'!C6330=\"\",\"\",'Generated list'!C6330)","v":""},{"$f":"IF('Generated list'!D6330=\"\",\"\",'Generated list'!D6330)","v":""}]
[null,{"$f":"IF('Generated list'!B6331=\"\",\"\",'Generated list'!B6331)","v":""},{"$f":"IF('Generated list'!C6331=\"\",\"\",'Generated list'!C6331)","v":""},{"$f":"IF('Generated list'!D6331=\"\",\"\",'Generated list'!D6331)","v":""}]
[null,{"$f":"IF('Generated list'!B6332=\"\",\"\",'Generated list'!B6332)","v":""},{"$f":"IF('Generated list'!C6332=\"\",\"\",'Generated list'!C6332)","v":""},{"$f":"IF('Generated list'!D6332=\"\",\"\",'Generated list'!D6332)","v":""}]
[null,{"$f":"IF('Generated list'!B6333=\"\",\"\",'Generated list'!B6333)","v":""},{"$f":"IF('Generated list'!C6333=\"\",\"\",'Generated list'!C6333)","v":""},{"$f":"IF('Generated list'!D6333=\"\",\"\",'Generated list'!D6333)","v":""}]
[null,{"$f":"IF('Generated list'!B6334=\"\",\"\",'Generated list'!B6334)","v":""},{"$f":"IF('Generated list'!C6334=\"\",\"\",'Generated list'!C6334)","v":""},{"$f":"IF('Generated list'!D6334=\"\",\"\",'Generated list'!D6334)","v":""}]
[null,{"$f":"IF('Generated list'!B6335=\"\",\"\",'Generated list'!B6335)","v":""},{"$f":"IF('Generated list'!C6335=\"\",\"\",'Generated list'!C6335)","v":""},{"$f":"IF('Generated list'!D6335=\"\",\"\",'Generated list'!D6335)","v":""}]
[null,{"$f":"IF('Generated list'!B6336=\"\",\"\",'Generated list'!B6336)","v":""},{"$f":"IF('Generated list'!C6336=\"\",\"\",'Generated list'!C6336)","v":""},{"$f":"IF('Generated list'!D6336=\"\",\"\",'Generated list'!D6336)","v":""}]
[null,{"$f":"IF('Generated list'!B6337=\"\",\"\",'Generated list'!B6337)","v":""},{"$f":"IF('Generated list'!C6337=\"\",\"\",'Generated list'!C6337)","v":""},{"$f":"IF('Generated list'!D6337=\"\",\"\",'Generated list'!D6337)","v":""}]
[null,{"$f":"IF('Generated list'!B6338=\"\",\"\",'Generated list'!B6338)","v":""},{"$f":"IF('Generated list'!C6338=\"\",\"\",'Generated list'!C6338)","v":""},{"$f":"IF('Generated list'!D6338=\"\",\"\",'Generated list'!D6338)","v":""}]
[null,{"$f":"IF('Generated list'!B6339=\"\",\"\",'Generated list'!B6339)","v":""},{"$f":"IF('Generated list'!C6339=\"\",\"\",'Generated list'!C6339)","v":""},{"$f":"IF('Generated list'!D6339=\"\",\"\",'Generated list'!D6339)","v":""}]
[null,{"$f":"IF('Generated list'!B6340=\"\",\"\",'Generated list'!B6340)","v":""},{"$f":"IF('Generated list'!C6340=\"\",\"\",'Generated list'!C6340)","v":""},{"$f":"IF('Generated list'!D6340=\"\",\"\",'Generated list'!D6340)","v":""}]
[null,{"$f":"IF('Generated list'!B6341=\"\",\"\",'Generated list'!B6341)","v":""},{"$f":"IF('Generated list'!C6341=\"\",\"\",'Generated list'!C6341)","v":""},{"$f":"IF('Generated list'!D6341=\"\",\"\",'Generated list'!D6341)","v":""}]
[null,{"$f":"IF('Generated list'!B6342=\"\",\"\",'Generated list'!B6342)","v":""},{"$f":"IF('Generated list'!C6342=\"\",\"\",'Generated list'!C6342)","v":""},{"$f":"IF('Generated list'!D6342=\"\",\"\",'Generated list'!D6342)","v":""}]
[null,{"$f":"IF('Generated list'!B6343=\"\",\"\",'Generated list'!B6343)","v":""},{"$f":"IF('Generated list'!C6343=\"\",\"\",'Generated list'!C6343)","v":""},{"$f":"IF('Generated list'!D6343=\"\",\"\",'Generated list'!D6343)","v":""}]
[null,{"$f":"IF('Generated list'!B6344=\"\",\"\",'Generated list'!B6344)","v":""},{"$f":"IF('Generated list'!C6344=\"\",\"\",'Generated list'!C6344)","v":""},{"$f":"IF('Generated list'!D6344=\"\",\"\",'Generated list'!D6344)","v":""}]
[null,{"$f":"IF('Generated list'!B6345=\"\",\"\",'Generated list'!B6345)","v":""},{"$f":"IF('Generated list'!C6345=\"\",\"\",'Generated list'!C6345)","v":""},{"$f":"IF('Generated list'!D6345=\"\",\"\",'Generated list'!D6345)","v":""}]
[null,{"$f":"IF('Generated list'!B6346=\"\",\"\",'Generated list'!B6346)","v":""},{"$f":"IF('Generated list'!C6346=\"\",\"\",'Generated list'!C6346)","v":""},{"$f":"IF('Generated list'!D6346=\"\",\"\",'Generated list'!D6346)","v":""}]
[null,{"$f":"IF('Generated list'!B6347=\"\",\"\",'Generated list'!B6347)","v":""},{"$f":"IF('Generated list'!C6347=\"\",\"\",'Generated list'!C6347)","v":""},{"$f":"IF('Generated list'!D6347=\"\",\"\",'Generated list'!D6347)","v":""}]
[null,{"$f":"IF('Generated list'!B6348=\"\",\"\",'Generated list'!B6348)","v":""},{"$f":"IF('Generated list'!C6348=\"\",\"\",'Generated list'!C6348)","v":""},{"$f":"IF('Generated list'!D6348=\"\",\"\",'Generated list'!D6348)","v":""}]
[null,{"$f":"IF('Generated list'!B6349=\"\",\"\",'Generated list'!B6349)","v":""},{"$f":"IF('Generated list'!C6349=\"\",\"\",'Generated list'!C6349)","v":""},{"$f":"IF('Generated list'!D6349=\"\",\"\",'Generated list'!D6349)","v":""}]
[null,{"$f":"IF('Generated list'!B6350=\"\",\"\",'Generated list'!B6350)","v":""},{"$f":"IF('Generated list'!C6350=\"\",\"\",'Generated list'!C6350)","v":""},{"$f":"IF('Generated list'!D6350=\"\",\"\",'Generated list'!D6350)","v":""}]
[null,{"$f":"IF('Generated list'!B6351=\"\",\"\",'Generated list'!B6351)","v":""},{"$f":"IF('Generated list'!C6351=\"\",\"\",'Generated list'!C6351)","v":""},{"$f":"IF('Generated list'!D6351=\"\",\"\",'Generated list'!D6351)","v":""}]
[null,{"$f":"IF('Generated list'!B6352=\"\",\"\",'Generated list'!B6352)","v":""},{"$f":"IF('Generated list'!C6352=\"\",\"\",'Generated list'!C6352)","v":""},{"$f":"IF('Generated list'!D6352=\"\",\"\",'Generated list'!D6352)","v":""}]
[null,{"$f":"IF('Generated list'!B6353=\"\",\"\",'Generated list'!B6353)","v":""},{"$f":"IF('Generated list'!C6353=\"\",\"\",'Generated list'!C6353)","v":""},{"$f":"IF('Generated list'!D6353=\"\",\"\",'Generated list'!D6353)","v":""}]
[null,{"$f":"IF('Generated list'!B6354=\"\",\"\",'Generated list'!B6354)","v":""},{"$f":"IF('Generated list'!C6354=\"\",\"\",'Generated list'!C6354)","v":""},{"$f":"IF('Generated list'!D6354=\"\",\"\",'Generated list'!D6354)","v":""}]
[null,{"$f":"IF('Generated list'!B6355=\"\",\"\",'Generated list'!B6355)","v":""},{"$f":"IF('Generated list'!C6355=\"\",\"\",'Generated list'!C6355)","v":""},{"$f":"IF('Generated list'!D6355=\"\",\"\",'Generated list'!D6355)","v":""}]
[null,{"$f":"IF('Generated list'!B6356=\"\",\"\",'Generated list'!B6356)","v":""},{"$f":"IF('Generated list'!C6356=\"\",\"\",'Generated list'!C6356)","v":""},{"$f":"IF('Generated list'!D6356=\"\",\"\",'Generated list'!D6356)","v":""}]
[null,{"$f":"IF('Generated list'!B6357=\"\",\"\",'Generated list'!B6357)","v":""},{"$f":"IF('Generated list'!C6357=\"\",\"\",'Generated list'!C6357)","v":""},{"$f":"IF('Generated list'!D6357=\"\",\"\",'Generated list'!D6357)","v":""}]
[null,{"$f":"IF('Generated list'!B6358=\"\",\"\",'Generated list'!B6358)","v":""},{"$f":"IF('Generated list'!C6358=\"\",\"\",'Generated list'!C6358)","v":""},{"$f":"IF('Generated list'!D6358=\"\",\"\",'Generated list'!D6358)","v":""}]
[null,{"$f":"IF('Generated list'!B6359=\"\",\"\",'Generated list'!B6359)","v":""},{"$f":"IF('Generated list'!C6359=\"\",\"\",'Generated list'!C6359)","v":""},{"$f":"IF('Generated list'!D6359=\"\",\"\",'Generated list'!D6359)","v":""}]
[null,{"$f":"IF('Generated list'!B6360=\"\",\"\",'Generated list'!B6360)","v":""},{"$f":"IF('Generated list'!C6360=\"\",\"\",'Generated list'!C6360)","v":""},{"$f":"IF('Generated list'!D6360=\"\",\"\",'Generated list'!D6360)","v":""}]
[null,{"$f":"IF('Generated list'!B6361=\"\",\"\",'Generated list'!B6361)","v":""},{"$f":"IF('Generated list'!C6361=\"\",\"\",'Generated list'!C6361)","v":""},{"$f":"IF('Generated list'!D6361=\"\",\"\",'Generated list'!D6361)","v":""}]
[null,{"$f":"IF('Generated list'!B6362=\"\",\"\",'Generated list'!B6362)","v":""},{"$f":"IF('Generated list'!C6362=\"\",\"\",'Generated list'!C6362)","v":""},{"$f":"IF('Generated list'!D6362=\"\",\"\",'Generated list'!D6362)","v":""}]
[null,{"$f":"IF('Generated list'!B6363=\"\",\"\",'Generated list'!B6363)","v":""},{"$f":"IF('Generated list'!C6363=\"\",\"\",'Generated list'!C6363)","v":""},{"$f":"IF('Generated list'!D6363=\"\",\"\",'Generated list'!D6363)","v":""}]
[null,{"$f":"IF('Generated list'!B6364=\"\",\"\",'Generated list'!B6364)","v":""},{"$f":"IF('Generated list'!C6364=\"\",\"\",'Generated list'!C6364)","v":""},{"$f":"IF('Generated list'!D6364=\"\",\"\",'Generated list'!D6364)","v":""}]
[null,{"$f":"IF('Generated list'!B6365=\"\",\"\",'Generated list'!B6365)","v":""},{"$f":"IF('Generated list'!C6365=\"\",\"\",'Generated list'!C6365)","v":""},{"$f":"IF('Generated list'!D6365=\"\",\"\",'Generated list'!D6365)","v":""}]
[null,{"$f":"IF('Generated list'!B6366=\"\",\"\",'Generated list'!B6366)","v":""},{"$f":"IF('Generated list'!C6366=\"\",\"\",'Generated list'!C6366)","v":""},{"$f":"IF('Generated list'!D6366=\"\",\"\",'Generated list'!D6366)","v":""}]
[null,{"$f":"IF('Generated list'!B6367=\"\",\"\",'Generated list'!B6367)","v":""},{"$f":"IF('Generated list'!C6367=\"\",\"\",'Generated list'!C6367)","v":""},{"$f":"IF('Generated list'!D6367=\"\",\"\",'Generated list'!D6367)","v":""}]
[null,{"$f":"IF('Generated list'!B6368=\"\",\"\",'Generated list'!B6368)","v":""},{"$f":"IF('Generated list'!C6368=\"\",\"\",'Generated list'!C6368)","v":""},{"$f":"IF('Generated list'!D6368=\"\",\"\",'Generated list'!D6368)","v":""}]
[null,{"$f":"IF('Generated list'!B6369=\"\",\"\",'Generated list'!B6369)","v":""},{"$f":"IF('Generated list'!C6369=\"\",\"\",'Generated list'!C6369)","v":""},{"$f":"IF('Generated list'!D6369=\"\",\"\",'Generated list'!D6369)","v":""}]
[null,{"$f":"IF('Generated list'!B6370=\"\",\"\",'Generated list'!B6370)","v":""},{"$f":"IF('Generated list'!C6370=\"\",\"\",'Generated list'!C6370)","v":""},{"$f":"IF('Generated list'!D6370=\"\",\"\",'Generated list'!D6370)","v":""}]
[null,{"$f":"IF('Generated list'!B6371=\"\",\"\",'Generated list'!B6371)","v":""},{"$f":"IF('Generated list'!C6371=\"\",\"\",'Generated list'!C6371)","v":""},{"$f":"IF('Generated list'!D6371=\"\",\"\",'Generated list'!D6371)","v":""}]
[null,{"$f":"IF('Generated list'!B6372=\"\",\"\",'Generated list'!B6372)","v":""},{"$f":"IF('Generated list'!C6372=\"\",\"\",'Generated list'!C6372)","v":""},{"$f":"IF('Generated list'!D6372=\"\",\"\",'Generated list'!D6372)","v":""}]
[null,{"$f":"IF('Generated list'!B6373=\"\",\"\",'Generated list'!B6373)","v":""},{"$f":"IF('Generated list'!C6373=\"\",\"\",'Generated list'!C6373)","v":""},{"$f":"IF('Generated list'!D6373=\"\",\"\",'Generated list'!D6373)","v":""}]
[null,{"$f":"IF('Generated list'!B6374=\"\",\"\",'Generated list'!B6374)","v":""},{"$f":"IF('Generated list'!C6374=\"\",\"\",'Generated list'!C6374)","v":""},{"$f":"IF('Generated list'!D6374=\"\",\"\",'Generated list'!D6374)","v":""}]
[null,{"$f":"IF('Generated list'!B6375=\"\",\"\",'Generated list'!B6375)","v":""},{"$f":"IF('Generated list'!C6375=\"\",\"\",'Generated list'!C6375)","v":""},{"$f":"IF('Generated list'!D6375=\"\",\"\",'Generated list'!D6375)","v":""}]
[null,{"$f":"IF('Generated list'!B6376=\"\",\"\",'Generated list'!B6376)","v":""},{"$f":"IF('Generated list'!C6376=\"\",\"\",'Generated list'!C6376)","v":""},{"$f":"IF('Generated list'!D6376=\"\",\"\",'Generated list'!D6376)","v":""}]
[null,{"$f":"IF('Generated list'!B6377=\"\",\"\",'Generated list'!B6377)","v":""},{"$f":"IF('Generated list'!C6377=\"\",\"\",'Generated list'!C6377)","v":""},{"$f":"IF('Generated list'!D6377=\"\",\"\",'Generated list'!D6377)","v":""}]
[null,{"$f":"IF('Generated list'!B6378=\"\",\"\",'Generated list'!B6378)","v":""},{"$f":"IF('Generated list'!C6378=\"\",\"\",'Generated list'!C6378)","v":""},{"$f":"IF('Generated list'!D6378=\"\",\"\",'Generated list'!D6378)","v":""}]
[null,{"$f":"IF('Generated list'!B6379=\"\",\"\",'Generated list'!B6379)","v":""},{"$f":"IF('Generated list'!C6379=\"\",\"\",'Generated list'!C6379)","v":""},{"$f":"IF('Generated list'!D6379=\"\",\"\",'Generated list'!D6379)","v":""}]
[null,{"$f":"IF('Generated list'!B6380=\"\",\"\",'Generated list'!B6380)","v":""},{"$f":"IF('Generated list'!C6380=\"\",\"\",'Generated list'!C6380)","v":""},{"$f":"IF('Generated list'!D6380=\"\",\"\",'Generated list'!D6380)","v":""}]
[null,{"$f":"IF('Generated list'!B6381=\"\",\"\",'Generated list'!B6381)","v":""},{"$f":"IF('Generated list'!C6381=\"\",\"\",'Generated list'!C6381)","v":""},{"$f":"IF('Generated list'!D6381=\"\",\"\",'Generated list'!D6381)","v":""}]
[null,{"$f":"IF('Generated list'!B6382=\"\",\"\",'Generated list'!B6382)","v":""},{"$f":"IF('Generated list'!C6382=\"\",\"\",'Generated list'!C6382)","v":""},{"$f":"IF('Generated list'!D6382=\"\",\"\",'Generated list'!D6382)","v":""}]
[null,{"$f":"IF('Generated list'!B6383=\"\",\"\",'Generated list'!B6383)","v":""},{"$f":"IF('Generated list'!C6383=\"\",\"\",'Generated list'!C6383)","v":""},{"$f":"IF('Generated list'!D6383=\"\",\"\",'Generated list'!D6383)","v":""}]
[null,{"$f":"IF('Generated list'!B6384=\"\",\"\",'Generated list'!B6384)","v":""},{"$f":"IF('Generated list'!C6384=\"\",\"\",'Generated list'!C6384)","v":""},{"$f":"IF('Generated list'!D6384=\"\",\"\",'Generated list'!D6384)","v":""}]
[null,{"$f":"IF('Generated list'!B6385=\"\",\"\",'Generated list'!B6385)","v":""},{"$f":"IF('Generated list'!C6385=\"\",\"\",'Generated list'!C6385)","v":""},{"$f":"IF('Generated list'!D6385=\"\",\"\",'Generated list'!D6385)","v":""}]
[null,{"$f":"IF('Generated list'!B6386=\"\",\"\",'Generated list'!B6386)","v":""},{"$f":"IF('Generated list'!C6386=\"\",\"\",'Generated list'!C6386)","v":""},{"$f":"IF('Generated list'!D6386=\"\",\"\",'Generated list'!D6386)","v":""}]
[null,{"$f":"IF('Generated list'!B6387=\"\",\"\",'Generated list'!B6387)","v":""},{"$f":"IF('Generated list'!C6387=\"\",\"\",'Generated list'!C6387)","v":""},{"$f":"IF('Generated list'!D6387=\"\",\"\",'Generated list'!D6387)","v":""}]
[null,{"$f":"IF('Generated list'!B6388=\"\",\"\",'Generated list'!B6388)","v":""},{"$f":"IF('Generated list'!C6388=\"\",\"\",'Generated list'!C6388)","v":""},{"$f":"IF('Generated list'!D6388=\"\",\"\",'Generated list'!D6388)","v":""}]
[null,{"$f":"IF('Generated list'!B6389=\"\",\"\",'Generated list'!B6389)","v":""},{"$f":"IF('Generated list'!C6389=\"\",\"\",'Generated list'!C6389)","v":""},{"$f":"IF('Generated list'!D6389=\"\",\"\",'Generated list'!D6389)","v":""}]
[null,{"$f":"IF('Generated list'!B6390=\"\",\"\",'Generated list'!B6390)","v":""},{"$f":"IF('Generated list'!C6390=\"\",\"\",'Generated list'!C6390)","v":""},{"$f":"IF('Generated list'!D6390=\"\",\"\",'Generated list'!D6390)","v":""}]
[null,{"$f":"IF('Generated list'!B6391=\"\",\"\",'Generated list'!B6391)","v":""},{"$f":"IF('Generated list'!C6391=\"\",\"\",'Generated list'!C6391)","v":""},{"$f":"IF('Generated list'!D6391=\"\",\"\",'Generated list'!D6391)","v":""}]
[null,{"$f":"IF('Generated list'!B6392=\"\",\"\",'Generated list'!B6392)","v":""},{"$f":"IF('Generated list'!C6392=\"\",\"\",'Generated list'!C6392)","v":""},{"$f":"IF('Generated list'!D6392=\"\",\"\",'Generated list'!D6392)","v":""}]
[null,{"$f":"IF('Generated list'!B6393=\"\",\"\",'Generated list'!B6393)","v":""},{"$f":"IF('Generated list'!C6393=\"\",\"\",'Generated list'!C6393)","v":""},{"$f":"IF('Generated list'!D6393=\"\",\"\",'Generated list'!D6393)","v":""}]
[null,{"$f":"IF('Generated list'!B6394=\"\",\"\",'Generated list'!B6394)","v":""},{"$f":"IF('Generated list'!C6394=\"\",\"\",'Generated list'!C6394)","v":""},{"$f":"IF('Generated list'!D6394=\"\",\"\",'Generated list'!D6394)","v":""}]
[null,{"$f":"IF('Generated list'!B6395=\"\",\"\",'Generated list'!B6395)","v":""},{"$f":"IF('Generated list'!C6395=\"\",\"\",'Generated list'!C6395)","v":""},{"$f":"IF('Generated list'!D6395=\"\",\"\",'Generated list'!D6395)","v":""}]
[null,{"$f":"IF('Generated list'!B6396=\"\",\"\",'Generated list'!B6396)","v":""},{"$f":"IF('Generated list'!C6396=\"\",\"\",'Generated list'!C6396)","v":""},{"$f":"IF('Generated list'!D6396=\"\",\"\",'Generated list'!D6396)","v":""}]
[null,{"$f":"IF('Generated list'!B6397=\"\",\"\",'Generated list'!B6397)","v":""},{"$f":"IF('Generated list'!C6397=\"\",\"\",'Generated list'!C6397)","v":""},{"$f":"IF('Generated list'!D6397=\"\",\"\",'Generated list'!D6397)","v":""}]
[null,{"$f":"IF('Generated list'!B6398=\"\",\"\",'Generated list'!B6398)","v":""},{"$f":"IF('Generated list'!C6398=\"\",\"\",'Generated list'!C6398)","v":""},{"$f":"IF('Generated list'!D6398=\"\",\"\",'Generated list'!D6398)","v":""}]
[null,{"$f":"IF('Generated list'!B6399=\"\",\"\",'Generated list'!B6399)","v":""},{"$f":"IF('Generated list'!C6399=\"\",\"\",'Generated list'!C6399)","v":""},{"$f":"IF('Generated list'!D6399=\"\",\"\",'Generated list'!D6399)","v":""}]
[null,{"$f":"IF('Generated list'!B6400=\"\",\"\",'Generated list'!B6400)","v":""},{"$f":"IF('Generated list'!C6400=\"\",\"\",'Generated list'!C6400)","v":""},{"$f":"IF('Generated list'!D6400=\"\",\"\",'Generated list'!D6400)","v":""}]
[null,{"$f":"IF('Generated list'!B6401=\"\",\"\",'Generated list'!B6401)","v":""},{"$f":"IF('Generated list'!C6401=\"\",\"\",'Generated list'!C6401)","v":""},{"$f":"IF('Generated list'!D6401=\"\",\"\",'Generated list'!D6401)","v":""}]
[null,{"$f":"IF('Generated list'!B6402=\"\",\"\",'Generated list'!B6402)","v":""},{"$f":"IF('Generated list'!C6402=\"\",\"\",'Generated list'!C6402)","v":""},{"$f":"IF('Generated list'!D6402=\"\",\"\",'Generated list'!D6402)","v":""}]
[null,{"$f":"IF('Generated list'!B6403=\"\",\"\",'Generated list'!B6403)","v":""},{"$f":"IF('Generated list'!C6403=\"\",\"\",'Generated list'!C6403)","v":""},{"$f":"IF('Generated list'!D6403=\"\",\"\",'Generated list'!D6403)","v":""}]
[null,{"$f":"IF('Generated list'!B6404=\"\",\"\",'Generated list'!B6404)","v":""},{"$f":"IF('Generated list'!C6404=\"\",\"\",'Generated list'!C6404)","v":""},{"$f":"IF('Generated list'!D6404=\"\",\"\",'Generated list'!D6404)","v":""}]
[null,{"$f":"IF('Generated list'!B6405=\"\",\"\",'Generated list'!B6405)","v":""},{"$f":"IF('Generated list'!C6405=\"\",\"\",'Generated list'!C6405)","v":""},{"$f":"IF('Generated list'!D6405=\"\",\"\",'Generated list'!D6405)","v":""}]
[null,{"$f":"IF('Generated list'!B6406=\"\",\"\",'Generated list'!B6406)","v":""},{"$f":"IF('Generated list'!C6406=\"\",\"\",'Generated list'!C6406)","v":""},{"$f":"IF('Generated list'!D6406=\"\",\"\",'Generated list'!D6406)","v":""}]
[null,{"$f":"IF('Generated list'!B6407=\"\",\"\",'Generated list'!B6407)","v":""},{"$f":"IF('Generated list'!C6407=\"\",\"\",'Generated list'!C6407)","v":""},{"$f":"IF('Generated list'!D6407=\"\",\"\",'Generated list'!D6407)","v":""}]
[null,{"$f":"IF('Generated list'!B6408=\"\",\"\",'Generated list'!B6408)","v":""},{"$f":"IF('Generated list'!C6408=\"\",\"\",'Generated list'!C6408)","v":""},{"$f":"IF('Generated list'!D6408=\"\",\"\",'Generated list'!D6408)","v":""}]
[null,{"$f":"IF('Generated list'!B6409=\"\",\"\",'Generated list'!B6409)","v":""},{"$f":"IF('Generated list'!C6409=\"\",\"\",'Generated list'!C6409)","v":""},{"$f":"IF('Generated list'!D6409=\"\",\"\",'Generated list'!D6409)","v":""}]
[null,{"$f":"IF('Generated list'!B6410=\"\",\"\",'Generated list'!B6410)","v":""},{"$f":"IF('Generated list'!C6410=\"\",\"\",'Generated list'!C6410)","v":""},{"$f":"IF('Generated list'!D6410=\"\",\"\",'Generated list'!D6410)","v":""}]
[null,{"$f":"IF('Generated list'!B6411=\"\",\"\",'Generated list'!B6411)","v":""},{"$f":"IF('Generated list'!C6411=\"\",\"\",'Generated list'!C6411)","v":""},{"$f":"IF('Generated list'!D6411=\"\",\"\",'Generated list'!D6411)","v":""}]
[null,{"$f":"IF('Generated list'!B6412=\"\",\"\",'Generated list'!B6412)","v":""},{"$f":"IF('Generated list'!C6412=\"\",\"\",'Generated list'!C6412)","v":""},{"$f":"IF('Generated list'!D6412=\"\",\"\",'Generated list'!D6412)","v":""}]
[null,{"$f":"IF('Generated list'!B6413=\"\",\"\",'Generated list'!B6413)","v":""},{"$f":"IF('Generated list'!C6413=\"\",\"\",'Generated list'!C6413)","v":""},{"$f":"IF('Generated list'!D6413=\"\",\"\",'Generated list'!D6413)","v":""}]
[null,{"$f":"IF('Generated list'!B6414=\"\",\"\",'Generated list'!B6414)","v":""},{"$f":"IF('Generated list'!C6414=\"\",\"\",'Generated list'!C6414)","v":""},{"$f":"IF('Generated list'!D6414=\"\",\"\",'Generated list'!D6414)","v":""}]
[null,{"$f":"IF('Generated list'!B6415=\"\",\"\",'Generated list'!B6415)","v":""},{"$f":"IF('Generated list'!C6415=\"\",\"\",'Generated list'!C6415)","v":""},{"$f":"IF('Generated list'!D6415=\"\",\"\",'Generated list'!D6415)","v":""}]
[null,{"$f":"IF('Generated list'!B6416=\"\",\"\",'Generated list'!B6416)","v":""},{"$f":"IF('Generated list'!C6416=\"\",\"\",'Generated list'!C6416)","v":""},{"$f":"IF('Generated list'!D6416=\"\",\"\",'Generated list'!D6416)","v":""}]
[null,{"$f":"IF('Generated list'!B6417=\"\",\"\",'Generated list'!B6417)","v":""},{"$f":"IF('Generated list'!C6417=\"\",\"\",'Generated list'!C6417)","v":""},{"$f":"IF('Generated list'!D6417=\"\",\"\",'Generated list'!D6417)","v":""}]
[null,{"$f":"IF('Generated list'!B6418=\"\",\"\",'Generated list'!B6418)","v":""},{"$f":"IF('Generated list'!C6418=\"\",\"\",'Generated list'!C6418)","v":""},{"$f":"IF('Generated list'!D6418=\"\",\"\",'Generated list'!D6418)","v":""}]
[null,{"$f":"IF('Generated list'!B6419=\"\",\"\",'Generated list'!B6419)","v":""},{"$f":"IF('Generated list'!C6419=\"\",\"\",'Generated list'!C6419)","v":""},{"$f":"IF('Generated list'!D6419=\"\",\"\",'Generated list'!D6419)","v":""}]
[null,{"$f":"IF('Generated list'!B6420=\"\",\"\",'Generated list'!B6420)","v":""},{"$f":"IF('Generated list'!C6420=\"\",\"\",'Generated list'!C6420)","v":""},{"$f":"IF('Generated list'!D6420=\"\",\"\",'Generated list'!D6420)","v":""}]
[null,{"$f":"IF('Generated list'!B6421=\"\",\"\",'Generated list'!B6421)","v":""},{"$f":"IF('Generated list'!C6421=\"\",\"\",'Generated list'!C6421)","v":""},{"$f":"IF('Generated list'!D6421=\"\",\"\",'Generated list'!D6421)","v":""}]
[null,{"$f":"IF('Generated list'!B6422=\"\",\"\",'Generated list'!B6422)","v":""},{"$f":"IF('Generated list'!C6422=\"\",\"\",'Generated list'!C6422)","v":""},{"$f":"IF('Generated list'!D6422=\"\",\"\",'Generated list'!D6422)","v":""}]
[null,{"$f":"IF('Generated list'!B6423=\"\",\"\",'Generated list'!B6423)","v":""},{"$f":"IF('Generated list'!C6423=\"\",\"\",'Generated list'!C6423)","v":""},{"$f":"IF('Generated list'!D6423=\"\",\"\",'Generated list'!D6423)","v":""}]
[null,{"$f":"IF('Generated list'!B6424=\"\",\"\",'Generated list'!B6424)","v":""},{"$f":"IF('Generated list'!C6424=\"\",\"\",'Generated list'!C6424)","v":""},{"$f":"IF('Generated list'!D6424=\"\",\"\",'Generated list'!D6424)","v":""}]
[null,{"$f":"IF('Generated list'!B6425=\"\",\"\",'Generated list'!B6425)","v":""},{"$f":"IF('Generated list'!C6425=\"\",\"\",'Generated list'!C6425)","v":""},{"$f":"IF('Generated list'!D6425=\"\",\"\",'Generated list'!D6425)","v":""}]
[null,{"$f":"IF('Generated list'!B6426=\"\",\"\",'Generated list'!B6426)","v":""},{"$f":"IF('Generated list'!C6426=\"\",\"\",'Generated list'!C6426)","v":""},{"$f":"IF('Generated list'!D6426=\"\",\"\",'Generated list'!D6426)","v":""}]
[null,{"$f":"IF('Generated list'!B6427=\"\",\"\",'Generated list'!B6427)","v":""},{"$f":"IF('Generated list'!C6427=\"\",\"\",'Generated list'!C6427)","v":""},{"$f":"IF('Generated list'!D6427=\"\",\"\",'Generated list'!D6427)","v":""}]
[null,{"$f":"IF('Generated list'!B6428=\"\",\"\",'Generated list'!B6428)","v":""},{"$f":"IF('Generated list'!C6428=\"\",\"\",'Generated list'!C6428)","v":""},{"$f":"IF('Generated list'!D6428=\"\",\"\",'Generated list'!D6428)","v":""}]
[null,{"$f":"IF('Generated list'!B6429=\"\",\"\",'Generated list'!B6429)","v":""},{"$f":"IF('Generated list'!C6429=\"\",\"\",'Generated list'!C6429)","v":""},{"$f":"IF('Generated list'!D6429=\"\",\"\",'Generated list'!D6429)","v":""}]
[null,{"$f":"IF('Generated list'!B6430=\"\",\"\",'Generated list'!B6430)","v":""},{"$f":"IF('Generated list'!C6430=\"\",\"\",'Generated list'!C6430)","v":""},{"$f":"IF('Generated list'!D6430=\"\",\"\",'Generated list'!D6430)","v":""}]
[null,{"$f":"IF('Generated list'!B6431=\"\",\"\",'Generated list'!B6431)","v":""},{"$f":"IF('Generated list'!C6431=\"\",\"\",'Generated list'!C6431)","v":""},{"$f":"IF('Generated list'!D6431=\"\",\"\",'Generated list'!D6431)","v":""}]
[null,{"$f":"IF('Generated list'!B6432=\"\",\"\",'Generated list'!B6432)","v":""},{"$f":"IF('Generated list'!C6432=\"\",\"\",'Generated list'!C6432)","v":""},{"$f":"IF('Generated list'!D6432=\"\",\"\",'Generated list'!D6432)","v":""}]
[null,{"$f":"IF('Generated list'!B6433=\"\",\"\",'Generated list'!B6433)","v":""},{"$f":"IF('Generated list'!C6433=\"\",\"\",'Generated list'!C6433)","v":""},{"$f":"IF('Generated list'!D6433=\"\",\"\",'Generated list'!D6433)","v":""}]
[null,{"$f":"IF('Generated list'!B6434=\"\",\"\",'Generated list'!B6434)","v":""},{"$f":"IF('Generated list'!C6434=\"\",\"\",'Generated list'!C6434)","v":""},{"$f":"IF('Generated list'!D6434=\"\",\"\",'Generated list'!D6434)","v":""}]
[null,{"$f":"IF('Generated list'!B6435=\"\",\"\",'Generated list'!B6435)","v":""},{"$f":"IF('Generated list'!C6435=\"\",\"\",'Generated list'!C6435)","v":""},{"$f":"IF('Generated list'!D6435=\"\",\"\",'Generated list'!D6435)","v":""}]
[null,{"$f":"IF('Generated list'!B6436=\"\",\"\",'Generated list'!B6436)","v":""},{"$f":"IF('Generated list'!C6436=\"\",\"\",'Generated list'!C6436)","v":""},{"$f":"IF('Generated list'!D6436=\"\",\"\",'Generated list'!D6436)","v":""}]
[null,{"$f":"IF('Generated list'!B6437=\"\",\"\",'Generated list'!B6437)","v":""},{"$f":"IF('Generated list'!C6437=\"\",\"\",'Generated list'!C6437)","v":""},{"$f":"IF('Generated list'!D6437=\"\",\"\",'Generated list'!D6437)","v":""}]
[null,{"$f":"IF('Generated list'!B6438=\"\",\"\",'Generated list'!B6438)","v":""},{"$f":"IF('Generated list'!C6438=\"\",\"\",'Generated list'!C6438)","v":""},{"$f":"IF('Generated list'!D6438=\"\",\"\",'Generated list'!D6438)","v":""}]
[null,{"$f":"IF('Generated list'!B6439=\"\",\"\",'Generated list'!B6439)","v":""},{"$f":"IF('Generated list'!C6439=\"\",\"\",'Generated list'!C6439)","v":""},{"$f":"IF('Generated list'!D6439=\"\",\"\",'Generated list'!D6439)","v":""}]
[null,{"$f":"IF('Generated list'!B6440=\"\",\"\",'Generated list'!B6440)","v":""},{"$f":"IF('Generated list'!C6440=\"\",\"\",'Generated list'!C6440)","v":""},{"$f":"IF('Generated list'!D6440=\"\",\"\",'Generated list'!D6440)","v":""}]
[null,{"$f":"IF('Generated list'!B6441=\"\",\"\",'Generated list'!B6441)","v":""},{"$f":"IF('Generated list'!C6441=\"\",\"\",'Generated list'!C6441)","v":""},{"$f":"IF('Generated list'!D6441=\"\",\"\",'Generated list'!D6441)","v":""}]
[null,{"$f":"IF('Generated list'!B6442=\"\",\"\",'Generated list'!B6442)","v":""},{"$f":"IF('Generated list'!C6442=\"\",\"\",'Generated list'!C6442)","v":""},{"$f":"IF('Generated list'!D6442=\"\",\"\",'Generated list'!D6442)","v":""}]
[null,{"$f":"IF('Generated list'!B6443=\"\",\"\",'Generated list'!B6443)","v":""},{"$f":"IF('Generated list'!C6443=\"\",\"\",'Generated list'!C6443)","v":""},{"$f":"IF('Generated list'!D6443=\"\",\"\",'Generated list'!D6443)","v":""}]
[null,{"$f":"IF('Generated list'!B6444=\"\",\"\",'Generated list'!B6444)","v":""},{"$f":"IF('Generated list'!C6444=\"\",\"\",'Generated list'!C6444)","v":""},{"$f":"IF('Generated list'!D6444=\"\",\"\",'Generated list'!D6444)","v":""}]
[null,{"$f":"IF('Generated list'!B6445=\"\",\"\",'Generated list'!B6445)","v":""},{"$f":"IF('Generated list'!C6445=\"\",\"\",'Generated list'!C6445)","v":""},{"$f":"IF('Generated list'!D6445=\"\",\"\",'Generated list'!D6445)","v":""}]
[null,{"$f":"IF('Generated list'!B6446=\"\",\"\",'Generated list'!B6446)","v":""},{"$f":"IF('Generated list'!C6446=\"\",\"\",'Generated list'!C6446)","v":""},{"$f":"IF('Generated list'!D6446=\"\",\"\",'Generated list'!D6446)","v":""}]
[null,{"$f":"IF('Generated list'!B6447=\"\",\"\",'Generated list'!B6447)","v":""},{"$f":"IF('Generated list'!C6447=\"\",\"\",'Generated list'!C6447)","v":""},{"$f":"IF('Generated list'!D6447=\"\",\"\",'Generated list'!D6447)","v":""}]
[null,{"$f":"IF('Generated list'!B6448=\"\",\"\",'Generated list'!B6448)","v":""},{"$f":"IF('Generated list'!C6448=\"\",\"\",'Generated list'!C6448)","v":""},{"$f":"IF('Generated list'!D6448=\"\",\"\",'Generated list'!D6448)","v":""}]
[null,{"$f":"IF('Generated list'!B6449=\"\",\"\",'Generated list'!B6449)","v":""},{"$f":"IF('Generated list'!C6449=\"\",\"\",'Generated list'!C6449)","v":""},{"$f":"IF('Generated list'!D6449=\"\",\"\",'Generated list'!D6449)","v":""}]
[null,{"$f":"IF('Generated list'!B6450=\"\",\"\",'Generated list'!B6450)","v":""},{"$f":"IF('Generated list'!C6450=\"\",\"\",'Generated list'!C6450)","v":""},{"$f":"IF('Generated list'!D6450=\"\",\"\",'Generated list'!D6450)","v":""}]
[null,{"$f":"IF('Generated list'!B6451=\"\",\"\",'Generated list'!B6451)","v":""},{"$f":"IF('Generated list'!C6451=\"\",\"\",'Generated list'!C6451)","v":""},{"$f":"IF('Generated list'!D6451=\"\",\"\",'Generated list'!D6451)","v":""}]
[null,{"$f":"IF('Generated list'!B6452=\"\",\"\",'Generated list'!B6452)","v":""},{"$f":"IF('Generated list'!C6452=\"\",\"\",'Generated list'!C6452)","v":""},{"$f":"IF('Generated list'!D6452=\"\",\"\",'Generated list'!D6452)","v":""}]
[null,{"$f":"IF('Generated list'!B6453=\"\",\"\",'Generated list'!B6453)","v":""},{"$f":"IF('Generated list'!C6453=\"\",\"\",'Generated list'!C6453)","v":""},{"$f":"IF('Generated list'!D6453=\"\",\"\",'Generated list'!D6453)","v":""}]
[null,{"$f":"IF('Generated list'!B6454=\"\",\"\",'Generated list'!B6454)","v":""},{"$f":"IF('Generated list'!C6454=\"\",\"\",'Generated list'!C6454)","v":""},{"$f":"IF('Generated list'!D6454=\"\",\"\",'Generated list'!D6454)","v":""}]
[null,{"$f":"IF('Generated list'!B6455=\"\",\"\",'Generated list'!B6455)","v":""},{"$f":"IF('Generated list'!C6455=\"\",\"\",'Generated list'!C6455)","v":""},{"$f":"IF('Generated list'!D6455=\"\",\"\",'Generated list'!D6455)","v":""}]
[null,{"$f":"IF('Generated list'!B6456=\"\",\"\",'Generated list'!B6456)","v":""},{"$f":"IF('Generated list'!C6456=\"\",\"\",'Generated list'!C6456)","v":""},{"$f":"IF('Generated list'!D6456=\"\",\"\",'Generated list'!D6456)","v":""}]
[null,{"$f":"IF('Generated list'!B6457=\"\",\"\",'Generated list'!B6457)","v":""},{"$f":"IF('Generated list'!C6457=\"\",\"\",'Generated list'!C6457)","v":""},{"$f":"IF('Generated list'!D6457=\"\",\"\",'Generated list'!D6457)","v":""}]
[null,{"$f":"IF('Generated list'!B6458=\"\",\"\",'Generated list'!B6458)","v":""},{"$f":"IF('Generated list'!C6458=\"\",\"\",'Generated list'!C6458)","v":""},{"$f":"IF('Generated list'!D6458=\"\",\"\",'Generated list'!D6458)","v":""}]
[null,{"$f":"IF('Generated list'!B6459=\"\",\"\",'Generated list'!B6459)","v":""},{"$f":"IF('Generated list'!C6459=\"\",\"\",'Generated list'!C6459)","v":""},{"$f":"IF('Generated list'!D6459=\"\",\"\",'Generated list'!D6459)","v":""}]
[null,{"$f":"IF('Generated list'!B6460=\"\",\"\",'Generated list'!B6460)","v":""},{"$f":"IF('Generated list'!C6460=\"\",\"\",'Generated list'!C6460)","v":""},{"$f":"IF('Generated list'!D6460=\"\",\"\",'Generated list'!D6460)","v":""}]
[null,{"$f":"IF('Generated list'!B6461=\"\",\"\",'Generated list'!B6461)","v":""},{"$f":"IF('Generated list'!C6461=\"\",\"\",'Generated list'!C6461)","v":""},{"$f":"IF('Generated list'!D6461=\"\",\"\",'Generated list'!D6461)","v":""}]
[null,{"$f":"IF('Generated list'!B6462=\"\",\"\",'Generated list'!B6462)","v":""},{"$f":"IF('Generated list'!C6462=\"\",\"\",'Generated list'!C6462)","v":""},{"$f":"IF('Generated list'!D6462=\"\",\"\",'Generated list'!D6462)","v":""}]
[null,{"$f":"IF('Generated list'!B6463=\"\",\"\",'Generated list'!B6463)","v":""},{"$f":"IF('Generated list'!C6463=\"\",\"\",'Generated list'!C6463)","v":""},{"$f":"IF('Generated list'!D6463=\"\",\"\",'Generated list'!D6463)","v":""}]
[null,{"$f":"IF('Generated list'!B6464=\"\",\"\",'Generated list'!B6464)","v":""},{"$f":"IF('Generated list'!C6464=\"\",\"\",'Generated list'!C6464)","v":""},{"$f":"IF('Generated list'!D6464=\"\",\"\",'Generated list'!D6464)","v":""}]
[null,{"$f":"IF('Generated list'!B6465=\"\",\"\",'Generated list'!B6465)","v":""},{"$f":"IF('Generated list'!C6465=\"\",\"\",'Generated list'!C6465)","v":""},{"$f":"IF('Generated list'!D6465=\"\",\"\",'Generated list'!D6465)","v":""}]
[null,{"$f":"IF('Generated list'!B6466=\"\",\"\",'Generated list'!B6466)","v":""},{"$f":"IF('Generated list'!C6466=\"\",\"\",'Generated list'!C6466)","v":""},{"$f":"IF('Generated list'!D6466=\"\",\"\",'Generated list'!D6466)","v":""}]
[null,{"$f":"IF('Generated list'!B6467=\"\",\"\",'Generated list'!B6467)","v":""},{"$f":"IF('Generated list'!C6467=\"\",\"\",'Generated list'!C6467)","v":""},{"$f":"IF('Generated list'!D6467=\"\",\"\",'Generated list'!D6467)","v":""}]
[null,{"$f":"IF('Generated list'!B6468=\"\",\"\",'Generated list'!B6468)","v":""},{"$f":"IF('Generated list'!C6468=\"\",\"\",'Generated list'!C6468)","v":""},{"$f":"IF('Generated list'!D6468=\"\",\"\",'Generated list'!D6468)","v":""}]
[null,{"$f":"IF('Generated list'!B6469=\"\",\"\",'Generated list'!B6469)","v":""},{"$f":"IF('Generated list'!C6469=\"\",\"\",'Generated list'!C6469)","v":""},{"$f":"IF('Generated list'!D6469=\"\",\"\",'Generated list'!D6469)","v":""}]
[null,{"$f":"IF('Generated list'!B6470=\"\",\"\",'Generated list'!B6470)","v":""},{"$f":"IF('Generated list'!C6470=\"\",\"\",'Generated list'!C6470)","v":""},{"$f":"IF('Generated list'!D6470=\"\",\"\",'Generated list'!D6470)","v":""}]
[null,{"$f":"IF('Generated list'!B6471=\"\",\"\",'Generated list'!B6471)","v":""},{"$f":"IF('Generated list'!C6471=\"\",\"\",'Generated list'!C6471)","v":""},{"$f":"IF('Generated list'!D6471=\"\",\"\",'Generated list'!D6471)","v":""}]
[null,{"$f":"IF('Generated list'!B6472=\"\",\"\",'Generated list'!B6472)","v":""},{"$f":"IF('Generated list'!C6472=\"\",\"\",'Generated list'!C6472)","v":""},{"$f":"IF('Generated list'!D6472=\"\",\"\",'Generated list'!D6472)","v":""}]
[null,{"$f":"IF('Generated list'!B6473=\"\",\"\",'Generated list'!B6473)","v":""},{"$f":"IF('Generated list'!C6473=\"\",\"\",'Generated list'!C6473)","v":""},{"$f":"IF('Generated list'!D6473=\"\",\"\",'Generated list'!D6473)","v":""}]
[null,{"$f":"IF('Generated list'!B6474=\"\",\"\",'Generated list'!B6474)","v":""},{"$f":"IF('Generated list'!C6474=\"\",\"\",'Generated list'!C6474)","v":""},{"$f":"IF('Generated list'!D6474=\"\",\"\",'Generated list'!D6474)","v":""}]
[null,{"$f":"IF('Generated list'!B6475=\"\",\"\",'Generated list'!B6475)","v":""},{"$f":"IF('Generated list'!C6475=\"\",\"\",'Generated list'!C6475)","v":""},{"$f":"IF('Generated list'!D6475=\"\",\"\",'Generated list'!D6475)","v":""}]
[null,{"$f":"IF('Generated list'!B6476=\"\",\"\",'Generated list'!B6476)","v":""},{"$f":"IF('Generated list'!C6476=\"\",\"\",'Generated list'!C6476)","v":""},{"$f":"IF('Generated list'!D6476=\"\",\"\",'Generated list'!D6476)","v":""}]
[null,{"$f":"IF('Generated list'!B6477=\"\",\"\",'Generated list'!B6477)","v":""},{"$f":"IF('Generated list'!C6477=\"\",\"\",'Generated list'!C6477)","v":""},{"$f":"IF('Generated list'!D6477=\"\",\"\",'Generated list'!D6477)","v":""}]
[null,{"$f":"IF('Generated list'!B6478=\"\",\"\",'Generated list'!B6478)","v":""},{"$f":"IF('Generated list'!C6478=\"\",\"\",'Generated list'!C6478)","v":""},{"$f":"IF('Generated list'!D6478=\"\",\"\",'Generated list'!D6478)","v":""}]
[null,{"$f":"IF('Generated list'!B6479=\"\",\"\",'Generated list'!B6479)","v":""},{"$f":"IF('Generated list'!C6479=\"\",\"\",'Generated list'!C6479)","v":""},{"$f":"IF('Generated list'!D6479=\"\",\"\",'Generated list'!D6479)","v":""}]
[null,{"$f":"IF('Generated list'!B6480=\"\",\"\",'Generated list'!B6480)","v":""},{"$f":"IF('Generated list'!C6480=\"\",\"\",'Generated list'!C6480)","v":""},{"$f":"IF('Generated list'!D6480=\"\",\"\",'Generated list'!D6480)","v":""}]
[null,{"$f":"IF('Generated list'!B6481=\"\",\"\",'Generated list'!B6481)","v":""},{"$f":"IF('Generated list'!C6481=\"\",\"\",'Generated list'!C6481)","v":""},{"$f":"IF('Generated list'!D6481=\"\",\"\",'Generated list'!D6481)","v":""}]
[null,{"$f":"IF('Generated list'!B6482=\"\",\"\",'Generated list'!B6482)","v":""},{"$f":"IF('Generated list'!C6482=\"\",\"\",'Generated list'!C6482)","v":""},{"$f":"IF('Generated list'!D6482=\"\",\"\",'Generated list'!D6482)","v":""}]
[null,{"$f":"IF('Generated list'!B6483=\"\",\"\",'Generated list'!B6483)","v":""},{"$f":"IF('Generated list'!C6483=\"\",\"\",'Generated list'!C6483)","v":""},{"$f":"IF('Generated list'!D6483=\"\",\"\",'Generated list'!D6483)","v":""}]
[null,{"$f":"IF('Generated list'!B6484=\"\",\"\",'Generated list'!B6484)","v":""},{"$f":"IF('Generated list'!C6484=\"\",\"\",'Generated list'!C6484)","v":""},{"$f":"IF('Generated list'!D6484=\"\",\"\",'Generated list'!D6484)","v":""}]
[null,{"$f":"IF('Generated list'!B6485=\"\",\"\",'Generated list'!B6485)","v":""},{"$f":"IF('Generated list'!C6485=\"\",\"\",'Generated list'!C6485)","v":""},{"$f":"IF('Generated list'!D6485=\"\",\"\",'Generated list'!D6485)","v":""}]
[null,{"$f":"IF('Generated list'!B6486=\"\",\"\",'Generated list'!B6486)","v":""},{"$f":"IF('Generated list'!C6486=\"\",\"\",'Generated list'!C6486)","v":""},{"$f":"IF('Generated list'!D6486=\"\",\"\",'Generated list'!D6486)","v":""}]
[null,{"$f":"IF('Generated list'!B6487=\"\",\"\",'Generated list'!B6487)","v":""},{"$f":"IF('Generated list'!C6487=\"\",\"\",'Generated list'!C6487)","v":""},{"$f":"IF('Generated list'!D6487=\"\",\"\",'Generated list'!D6487)","v":""}]
[null,{"$f":"IF('Generated list'!B6488=\"\",\"\",'Generated list'!B6488)","v":""},{"$f":"IF('Generated list'!C6488=\"\",\"\",'Generated list'!C6488)","v":""},{"$f":"IF('Generated list'!D6488=\"\",\"\",'Generated list'!D6488)","v":""}]
[null,{"$f":"IF('Generated list'!B6489=\"\",\"\",'Generated list'!B6489)","v":""},{"$f":"IF('Generated list'!C6489=\"\",\"\",'Generated list'!C6489)","v":""},{"$f":"IF('Generated list'!D6489=\"\",\"\",'Generated list'!D6489)","v":""}]
[null,{"$f":"IF('Generated list'!B6490=\"\",\"\",'Generated list'!B6490)","v":""},{"$f":"IF('Generated list'!C6490=\"\",\"\",'Generated list'!C6490)","v":""},{"$f":"IF('Generated list'!D6490=\"\",\"\",'Generated list'!D6490)","v":""}]
[null,{"$f":"IF('Generated list'!B6491=\"\",\"\",'Generated list'!B6491)","v":""},{"$f":"IF('Generated list'!C6491=\"\",\"\",'Generated list'!C6491)","v":""},{"$f":"IF('Generated list'!D6491=\"\",\"\",'Generated list'!D6491)","v":""}]
[null,{"$f":"IF('Generated list'!B6492=\"\",\"\",'Generated list'!B6492)","v":""},{"$f":"IF('Generated list'!C6492=\"\",\"\",'Generated list'!C6492)","v":""},{"$f":"IF('Generated list'!D6492=\"\",\"\",'Generated list'!D6492)","v":""}]
[null,{"$f":"IF('Generated list'!B6493=\"\",\"\",'Generated list'!B6493)","v":""},{"$f":"IF('Generated list'!C6493=\"\",\"\",'Generated list'!C6493)","v":""},{"$f":"IF('Generated list'!D6493=\"\",\"\",'Generated list'!D6493)","v":""}]
[null,{"$f":"IF('Generated list'!B6494=\"\",\"\",'Generated list'!B6494)","v":""},{"$f":"IF('Generated list'!C6494=\"\",\"\",'Generated list'!C6494)","v":""},{"$f":"IF('Generated list'!D6494=\"\",\"\",'Generated list'!D6494)","v":""}]
[null,{"$f":"IF('Generated list'!B6495=\"\",\"\",'Generated list'!B6495)","v":""},{"$f":"IF('Generated list'!C6495=\"\",\"\",'Generated list'!C6495)","v":""},{"$f":"IF('Generated list'!D6495=\"\",\"\",'Generated list'!D6495)","v":""}]
[null,{"$f":"IF('Generated list'!B6496=\"\",\"\",'Generated list'!B6496)","v":""},{"$f":"IF('Generated list'!C6496=\"\",\"\",'Generated list'!C6496)","v":""},{"$f":"IF('Generated list'!D6496=\"\",\"\",'Generated list'!D6496)","v":""}]
[null,{"$f":"IF('Generated list'!B6497=\"\",\"\",'Generated list'!B6497)","v":""},{"$f":"IF('Generated list'!C6497=\"\",\"\",'Generated list'!C6497)","v":""},{"$f":"IF('Generated list'!D6497=\"\",\"\",'Generated list'!D6497)","v":""}]
[null,{"$f":"IF('Generated list'!B6498=\"\",\"\",'Generated list'!B6498)","v":""},{"$f":"IF('Generated list'!C6498=\"\",\"\",'Generated list'!C6498)","v":""},{"$f":"IF('Generated list'!D6498=\"\",\"\",'Generated list'!D6498)","v":""}]
[null,{"$f":"IF('Generated list'!B6499=\"\",\"\",'Generated list'!B6499)","v":""},{"$f":"IF('Generated list'!C6499=\"\",\"\",'Generated list'!C6499)","v":""},{"$f":"IF('Generated list'!D6499=\"\",\"\",'Generated list'!D6499)","v":""}]
[null,{"$f":"IF('Generated list'!B6500=\"\",\"\",'Generated list'!B6500)","v":""},{"$f":"IF('Generated list'!C6500=\"\",\"\",'Generated list'!C6500)","v":""},{"$f":"IF('Generated list'!D6500=\"\",\"\",'Generated list'!D6500)","v":""}]
[null,{"$f":"IF('Generated list'!B6501=\"\",\"\",'Generated list'!B6501)","v":""},{"$f":"IF('Generated list'!C6501=\"\",\"\",'Generated list'!C6501)","v":""},{"$f":"IF('Generated list'!D6501=\"\",\"\",'Generated list'!D6501)","v":""}]
[null,{"$f":"IF('Generated list'!B6502=\"\",\"\",'Generated list'!B6502)","v":""},{"$f":"IF('Generated list'!C6502=\"\",\"\",'Generated list'!C6502)","v":""},{"$f":"IF('Generated list'!D6502=\"\",\"\",'Generated list'!D6502)","v":""}]
[null,{"$f":"IF('Generated list'!B6503=\"\",\"\",'Generated list'!B6503)","v":""},{"$f":"IF('Generated list'!C6503=\"\",\"\",'Generated list'!C6503)","v":""},{"$f":"IF('Generated list'!D6503=\"\",\"\",'Generated list'!D6503)","v":""}]
[null,{"$f":"IF('Generated list'!B6504=\"\",\"\",'Generated list'!B6504)","v":""},{"$f":"IF('Generated list'!C6504=\"\",\"\",'Generated list'!C6504)","v":""},{"$f":"IF('Generated list'!D6504=\"\",\"\",'Generated list'!D6504)","v":""}]
[null,{"$f":"IF('Generated list'!B6505=\"\",\"\",'Generated list'!B6505)","v":""},{"$f":"IF('Generated list'!C6505=\"\",\"\",'Generated list'!C6505)","v":""},{"$f":"IF('Generated list'!D6505=\"\",\"\",'Generated list'!D6505)","v":""}]
[null,{"$f":"IF('Generated list'!B6506=\"\",\"\",'Generated list'!B6506)","v":""},{"$f":"IF('Generated list'!C6506=\"\",\"\",'Generated list'!C6506)","v":""},{"$f":"IF('Generated list'!D6506=\"\",\"\",'Generated list'!D6506)","v":""}]
[null,{"$f":"IF('Generated list'!B6507=\"\",\"\",'Generated list'!B6507)","v":""},{"$f":"IF('Generated list'!C6507=\"\",\"\",'Generated list'!C6507)","v":""},{"$f":"IF('Generated list'!D6507=\"\",\"\",'Generated list'!D6507)","v":""}]
[null,{"$f":"IF('Generated list'!B6508=\"\",\"\",'Generated list'!B6508)","v":""},{"$f":"IF('Generated list'!C6508=\"\",\"\",'Generated list'!C6508)","v":""},{"$f":"IF('Generated list'!D6508=\"\",\"\",'Generated list'!D6508)","v":""}]
[null,{"$f":"IF('Generated list'!B6509=\"\",\"\",'Generated list'!B6509)","v":""},{"$f":"IF('Generated list'!C6509=\"\",\"\",'Generated list'!C6509)","v":""},{"$f":"IF('Generated list'!D6509=\"\",\"\",'Generated list'!D6509)","v":""}]
[null,{"$f":"IF('Generated list'!B6510=\"\",\"\",'Generated list'!B6510)","v":""},{"$f":"IF('Generated list'!C6510=\"\",\"\",'Generated list'!C6510)","v":""},{"$f":"IF('Generated list'!D6510=\"\",\"\",'Generated list'!D6510)","v":""}]
[null,{"$f":"IF('Generated list'!B6511=\"\",\"\",'Generated list'!B6511)","v":""},{"$f":"IF('Generated list'!C6511=\"\",\"\",'Generated list'!C6511)","v":""},{"$f":"IF('Generated list'!D6511=\"\",\"\",'Generated list'!D6511)","v":""}]
[null,{"$f":"IF('Generated list'!B6512=\"\",\"\",'Generated list'!B6512)","v":""},{"$f":"IF('Generated list'!C6512=\"\",\"\",'Generated list'!C6512)","v":""},{"$f":"IF('Generated list'!D6512=\"\",\"\",'Generated list'!D6512)","v":""}]
[null,{"$f":"IF('Generated list'!B6513=\"\",\"\",'Generated list'!B6513)","v":""},{"$f":"IF('Generated list'!C6513=\"\",\"\",'Generated list'!C6513)","v":""},{"$f":"IF('Generated list'!D6513=\"\",\"\",'Generated list'!D6513)","v":""}]
[null,{"$f":"IF('Generated list'!B6514=\"\",\"\",'Generated list'!B6514)","v":""},{"$f":"IF('Generated list'!C6514=\"\",\"\",'Generated list'!C6514)","v":""},{"$f":"IF('Generated list'!D6514=\"\",\"\",'Generated list'!D6514)","v":""}]
[null,{"$f":"IF('Generated list'!B6515=\"\",\"\",'Generated list'!B6515)","v":""},{"$f":"IF('Generated list'!C6515=\"\",\"\",'Generated list'!C6515)","v":""},{"$f":"IF('Generated list'!D6515=\"\",\"\",'Generated list'!D6515)","v":""}]
[null,{"$f":"IF('Generated list'!B6516=\"\",\"\",'Generated list'!B6516)","v":""},{"$f":"IF('Generated list'!C6516=\"\",\"\",'Generated list'!C6516)","v":""},{"$f":"IF('Generated list'!D6516=\"\",\"\",'Generated list'!D6516)","v":""}]
[null,{"$f":"IF('Generated list'!B6517=\"\",\"\",'Generated list'!B6517)","v":""},{"$f":"IF('Generated list'!C6517=\"\",\"\",'Generated list'!C6517)","v":""},{"$f":"IF('Generated list'!D6517=\"\",\"\",'Generated list'!D6517)","v":""}]
[null,{"$f":"IF('Generated list'!B6518=\"\",\"\",'Generated list'!B6518)","v":""},{"$f":"IF('Generated list'!C6518=\"\",\"\",'Generated list'!C6518)","v":""},{"$f":"IF('Generated list'!D6518=\"\",\"\",'Generated list'!D6518)","v":""}]
[null,{"$f":"IF('Generated list'!B6519=\"\",\"\",'Generated list'!B6519)","v":""},{"$f":"IF('Generated list'!C6519=\"\",\"\",'Generated list'!C6519)","v":""},{"$f":"IF('Generated list'!D6519=\"\",\"\",'Generated list'!D6519)","v":""}]
[null,{"$f":"IF('Generated list'!B6520=\"\",\"\",'Generated list'!B6520)","v":""},{"$f":"IF('Generated list'!C6520=\"\",\"\",'Generated list'!C6520)","v":""},{"$f":"IF('Generated list'!D6520=\"\",\"\",'Generated list'!D6520)","v":""}]
[null,{"$f":"IF('Generated list'!B6521=\"\",\"\",'Generated list'!B6521)","v":""},{"$f":"IF('Generated list'!C6521=\"\",\"\",'Generated list'!C6521)","v":""},{"$f":"IF('Generated list'!D6521=\"\",\"\",'Generated list'!D6521)","v":""}]
[null,{"$f":"IF('Generated list'!B6522=\"\",\"\",'Generated list'!B6522)","v":""},{"$f":"IF('Generated list'!C6522=\"\",\"\",'Generated list'!C6522)","v":""},{"$f":"IF('Generated list'!D6522=\"\",\"\",'Generated list'!D6522)","v":""}]
[null,{"$f":"IF('Generated list'!B6523=\"\",\"\",'Generated list'!B6523)","v":""},{"$f":"IF('Generated list'!C6523=\"\",\"\",'Generated list'!C6523)","v":""},{"$f":"IF('Generated list'!D6523=\"\",\"\",'Generated list'!D6523)","v":""}]
[null,{"$f":"IF('Generated list'!B6524=\"\",\"\",'Generated list'!B6524)","v":""},{"$f":"IF('Generated list'!C6524=\"\",\"\",'Generated list'!C6524)","v":""},{"$f":"IF('Generated list'!D6524=\"\",\"\",'Generated list'!D6524)","v":""}]
[null,{"$f":"IF('Generated list'!B6525=\"\",\"\",'Generated list'!B6525)","v":""},{"$f":"IF('Generated list'!C6525=\"\",\"\",'Generated list'!C6525)","v":""},{"$f":"IF('Generated list'!D6525=\"\",\"\",'Generated list'!D6525)","v":""}]
[null,{"$f":"IF('Generated list'!B6526=\"\",\"\",'Generated list'!B6526)","v":""},{"$f":"IF('Generated list'!C6526=\"\",\"\",'Generated list'!C6526)","v":""},{"$f":"IF('Generated list'!D6526=\"\",\"\",'Generated list'!D6526)","v":""}]
[null,{"$f":"IF('Generated list'!B6527=\"\",\"\",'Generated list'!B6527)","v":""},{"$f":"IF('Generated list'!C6527=\"\",\"\",'Generated list'!C6527)","v":""},{"$f":"IF('Generated list'!D6527=\"\",\"\",'Generated list'!D6527)","v":""}]
[null,{"$f":"IF('Generated list'!B6528=\"\",\"\",'Generated list'!B6528)","v":""},{"$f":"IF('Generated list'!C6528=\"\",\"\",'Generated list'!C6528)","v":""},{"$f":"IF('Generated list'!D6528=\"\",\"\",'Generated list'!D6528)","v":""}]
[null,{"$f":"IF('Generated list'!B6529=\"\",\"\",'Generated list'!B6529)","v":""},{"$f":"IF('Generated list'!C6529=\"\",\"\",'Generated list'!C6529)","v":""},{"$f":"IF('Generated list'!D6529=\"\",\"\",'Generated list'!D6529)","v":""}]
[null,{"$f":"IF('Generated list'!B6530=\"\",\"\",'Generated list'!B6530)","v":""},{"$f":"IF('Generated list'!C6530=\"\",\"\",'Generated list'!C6530)","v":""},{"$f":"IF('Generated list'!D6530=\"\",\"\",'Generated list'!D6530)","v":""}]
[null,{"$f":"IF('Generated list'!B6531=\"\",\"\",'Generated list'!B6531)","v":""},{"$f":"IF('Generated list'!C6531=\"\",\"\",'Generated list'!C6531)","v":""},{"$f":"IF('Generated list'!D6531=\"\",\"\",'Generated list'!D6531)","v":""}]
[null,{"$f":"IF('Generated list'!B6532=\"\",\"\",'Generated list'!B6532)","v":""},{"$f":"IF('Generated list'!C6532=\"\",\"\",'Generated list'!C6532)","v":""},{"$f":"IF('Generated list'!D6532=\"\",\"\",'Generated list'!D6532)","v":""}]
[null,{"$f":"IF('Generated list'!B6533=\"\",\"\",'Generated list'!B6533)","v":""},{"$f":"IF('Generated list'!C6533=\"\",\"\",'Generated list'!C6533)","v":""},{"$f":"IF('Generated list'!D6533=\"\",\"\",'Generated list'!D6533)","v":""}]
[null,{"$f":"IF('Generated list'!B6534=\"\",\"\",'Generated list'!B6534)","v":""},{"$f":"IF('Generated list'!C6534=\"\",\"\",'Generated list'!C6534)","v":""},{"$f":"IF('Generated list'!D6534=\"\",\"\",'Generated list'!D6534)","v":""}]
[null,{"$f":"IF('Generated list'!B6535=\"\",\"\",'Generated list'!B6535)","v":""},{"$f":"IF('Generated list'!C6535=\"\",\"\",'Generated list'!C6535)","v":""},{"$f":"IF('Generated list'!D6535=\"\",\"\",'Generated list'!D6535)","v":""}]
[null,{"$f":"IF('Generated list'!B6536=\"\",\"\",'Generated list'!B6536)","v":""},{"$f":"IF('Generated list'!C6536=\"\",\"\",'Generated list'!C6536)","v":""},{"$f":"IF('Generated list'!D6536=\"\",\"\",'Generated list'!D6536)","v":""}]
[null,{"$f":"IF('Generated list'!B6537=\"\",\"\",'Generated list'!B6537)","v":""},{"$f":"IF('Generated list'!C6537=\"\",\"\",'Generated list'!C6537)","v":""},{"$f":"IF('Generated list'!D6537=\"\",\"\",'Generated list'!D6537)","v":""}]
[null,{"$f":"IF('Generated list'!B6538=\"\",\"\",'Generated list'!B6538)","v":""},{"$f":"IF('Generated list'!C6538=\"\",\"\",'Generated list'!C6538)","v":""},{"$f":"IF('Generated list'!D6538=\"\",\"\",'Generated list'!D6538)","v":""}]
[null,{"$f":"IF('Generated list'!B6539=\"\",\"\",'Generated list'!B6539)","v":""},{"$f":"IF('Generated list'!C6539=\"\",\"\",'Generated list'!C6539)","v":""},{"$f":"IF('Generated list'!D6539=\"\",\"\",'Generated list'!D6539)","v":""}]
[null,{"$f":"IF('Generated list'!B6540=\"\",\"\",'Generated list'!B6540)","v":""},{"$f":"IF('Generated list'!C6540=\"\",\"\",'Generated list'!C6540)","v":""},{"$f":"IF('Generated list'!D6540=\"\",\"\",'Generated list'!D6540)","v":""}]
[null,{"$f":"IF('Generated list'!B6541=\"\",\"\",'Generated list'!B6541)","v":""},{"$f":"IF('Generated list'!C6541=\"\",\"\",'Generated list'!C6541)","v":""},{"$f":"IF('Generated list'!D6541=\"\",\"\",'Generated list'!D6541)","v":""}]
[null,{"$f":"IF('Generated list'!B6542=\"\",\"\",'Generated list'!B6542)","v":""},{"$f":"IF('Generated list'!C6542=\"\",\"\",'Generated list'!C6542)","v":""},{"$f":"IF('Generated list'!D6542=\"\",\"\",'Generated list'!D6542)","v":""}]
[null,{"$f":"IF('Generated list'!B6543=\"\",\"\",'Generated list'!B6543)","v":""},{"$f":"IF('Generated list'!C6543=\"\",\"\",'Generated list'!C6543)","v":""},{"$f":"IF('Generated list'!D6543=\"\",\"\",'Generated list'!D6543)","v":""}]
[null,{"$f":"IF('Generated list'!B6544=\"\",\"\",'Generated list'!B6544)","v":""},{"$f":"IF('Generated list'!C6544=\"\",\"\",'Generated list'!C6544)","v":""},{"$f":"IF('Generated list'!D6544=\"\",\"\",'Generated list'!D6544)","v":""}]
[null,{"$f":"IF('Generated list'!B6545=\"\",\"\",'Generated list'!B6545)","v":""},{"$f":"IF('Generated list'!C6545=\"\",\"\",'Generated list'!C6545)","v":""},{"$f":"IF('Generated list'!D6545=\"\",\"\",'Generated list'!D6545)","v":""}]
[null,{"$f":"IF('Generated list'!B6546=\"\",\"\",'Generated list'!B6546)","v":""},{"$f":"IF('Generated list'!C6546=\"\",\"\",'Generated list'!C6546)","v":""},{"$f":"IF('Generated list'!D6546=\"\",\"\",'Generated list'!D6546)","v":""}]
[null,{"$f":"IF('Generated list'!B6547=\"\",\"\",'Generated list'!B6547)","v":""},{"$f":"IF('Generated list'!C6547=\"\",\"\",'Generated list'!C6547)","v":""},{"$f":"IF('Generated list'!D6547=\"\",\"\",'Generated list'!D6547)","v":""}]
[null,{"$f":"IF('Generated list'!B6548=\"\",\"\",'Generated list'!B6548)","v":""},{"$f":"IF('Generated list'!C6548=\"\",\"\",'Generated list'!C6548)","v":""},{"$f":"IF('Generated list'!D6548=\"\",\"\",'Generated list'!D6548)","v":""}]
[null,{"$f":"IF('Generated list'!B6549=\"\",\"\",'Generated list'!B6549)","v":""},{"$f":"IF('Generated list'!C6549=\"\",\"\",'Generated list'!C6549)","v":""},{"$f":"IF('Generated list'!D6549=\"\",\"\",'Generated list'!D6549)","v":""}]
[null,{"$f":"IF('Generated list'!B6550=\"\",\"\",'Generated list'!B6550)","v":""},{"$f":"IF('Generated list'!C6550=\"\",\"\",'Generated list'!C6550)","v":""},{"$f":"IF('Generated list'!D6550=\"\",\"\",'Generated list'!D6550)","v":""}]
[null,{"$f":"IF('Generated list'!B6551=\"\",\"\",'Generated list'!B6551)","v":""},{"$f":"IF('Generated list'!C6551=\"\",\"\",'Generated list'!C6551)","v":""},{"$f":"IF('Generated list'!D6551=\"\",\"\",'Generated list'!D6551)","v":""}]
[null,{"$f":"IF('Generated list'!B6552=\"\",\"\",'Generated list'!B6552)","v":""},{"$f":"IF('Generated list'!C6552=\"\",\"\",'Generated list'!C6552)","v":""},{"$f":"IF('Generated list'!D6552=\"\",\"\",'Generated list'!D6552)","v":""}]
[null,{"$f":"IF('Generated list'!B6553=\"\",\"\",'Generated list'!B6553)","v":""},{"$f":"IF('Generated list'!C6553=\"\",\"\",'Generated list'!C6553)","v":""},{"$f":"IF('Generated list'!D6553=\"\",\"\",'Generated list'!D6553)","v":""}]
[null,{"$f":"IF('Generated list'!B6554=\"\",\"\",'Generated list'!B6554)","v":""},{"$f":"IF('Generated list'!C6554=\"\",\"\",'Generated list'!C6554)","v":""},{"$f":"IF('Generated list'!D6554=\"\",\"\",'Generated list'!D6554)","v":""}]
[null,{"$f":"IF('Generated list'!B6555=\"\",\"\",'Generated list'!B6555)","v":""},{"$f":"IF('Generated list'!C6555=\"\",\"\",'Generated list'!C6555)","v":""},{"$f":"IF('Generated list'!D6555=\"\",\"\",'Generated list'!D6555)","v":""}]
[null,{"$f":"IF('Generated list'!B6556=\"\",\"\",'Generated list'!B6556)","v":""},{"$f":"IF('Generated list'!C6556=\"\",\"\",'Generated list'!C6556)","v":""},{"$f":"IF('Generated list'!D6556=\"\",\"\",'Generated list'!D6556)","v":""}]
[null,{"$f":"IF('Generated list'!B6557=\"\",\"\",'Generated list'!B6557)","v":""},{"$f":"IF('Generated list'!C6557=\"\",\"\",'Generated list'!C6557)","v":""},{"$f":"IF('Generated list'!D6557=\"\",\"\",'Generated list'!D6557)","v":""}]
[null,{"$f":"IF('Generated list'!B6558=\"\",\"\",'Generated list'!B6558)","v":""},{"$f":"IF('Generated list'!C6558=\"\",\"\",'Generated list'!C6558)","v":""},{"$f":"IF('Generated list'!D6558=\"\",\"\",'Generated list'!D6558)","v":""}]
[null,{"$f":"IF('Generated list'!B6559=\"\",\"\",'Generated list'!B6559)","v":""},{"$f":"IF('Generated list'!C6559=\"\",\"\",'Generated list'!C6559)","v":""},{"$f":"IF('Generated list'!D6559=\"\",\"\",'Generated list'!D6559)","v":""}]
[null,{"$f":"IF('Generated list'!B6560=\"\",\"\",'Generated list'!B6560)","v":""},{"$f":"IF('Generated list'!C6560=\"\",\"\",'Generated list'!C6560)","v":""},{"$f":"IF('Generated list'!D6560=\"\",\"\",'Generated list'!D6560)","v":""}]
[null,{"$f":"IF('Generated list'!B6561=\"\",\"\",'Generated list'!B6561)","v":""},{"$f":"IF('Generated list'!C6561=\"\",\"\",'Generated list'!C6561)","v":""},{"$f":"IF('Generated list'!D6561=\"\",\"\",'Generated list'!D6561)","v":""}]
[null,{"$f":"IF('Generated list'!B6562=\"\",\"\",'Generated list'!B6562)","v":""},{"$f":"IF('Generated list'!C6562=\"\",\"\",'Generated list'!C6562)","v":""},{"$f":"IF('Generated list'!D6562=\"\",\"\",'Generated list'!D6562)","v":""}]
[null,{"$f":"IF('Generated list'!B6563=\"\",\"\",'Generated list'!B6563)","v":""},{"$f":"IF('Generated list'!C6563=\"\",\"\",'Generated list'!C6563)","v":""},{"$f":"IF('Generated list'!D6563=\"\",\"\",'Generated list'!D6563)","v":""}]
[null,{"$f":"IF('Generated list'!B6564=\"\",\"\",'Generated list'!B6564)","v":""},{"$f":"IF('Generated list'!C6564=\"\",\"\",'Generated list'!C6564)","v":""},{"$f":"IF('Generated list'!D6564=\"\",\"\",'Generated list'!D6564)","v":""}]
[null,{"$f":"IF('Generated list'!B6565=\"\",\"\",'Generated list'!B6565)","v":""},{"$f":"IF('Generated list'!C6565=\"\",\"\",'Generated list'!C6565)","v":""},{"$f":"IF('Generated list'!D6565=\"\",\"\",'Generated list'!D6565)","v":""}]
[null,{"$f":"IF('Generated list'!B6566=\"\",\"\",'Generated list'!B6566)","v":""},{"$f":"IF('Generated list'!C6566=\"\",\"\",'Generated list'!C6566)","v":""},{"$f":"IF('Generated list'!D6566=\"\",\"\",'Generated list'!D6566)","v":""}]
[null,{"$f":"IF('Generated list'!B6567=\"\",\"\",'Generated list'!B6567)","v":""},{"$f":"IF('Generated list'!C6567=\"\",\"\",'Generated list'!C6567)","v":""},{"$f":"IF('Generated list'!D6567=\"\",\"\",'Generated list'!D6567)","v":""}]
[null,{"$f":"IF('Generated list'!B6568=\"\",\"\",'Generated list'!B6568)","v":""},{"$f":"IF('Generated list'!C6568=\"\",\"\",'Generated list'!C6568)","v":""},{"$f":"IF('Generated list'!D6568=\"\",\"\",'Generated list'!D6568)","v":""}]
[null,{"$f":"IF('Generated list'!B6569=\"\",\"\",'Generated list'!B6569)","v":""},{"$f":"IF('Generated list'!C6569=\"\",\"\",'Generated list'!C6569)","v":""},{"$f":"IF('Generated list'!D6569=\"\",\"\",'Generated list'!D6569)","v":""}]
[null,{"$f":"IF('Generated list'!B6570=\"\",\"\",'Generated list'!B6570)","v":""},{"$f":"IF('Generated list'!C6570=\"\",\"\",'Generated list'!C6570)","v":""},{"$f":"IF('Generated list'!D6570=\"\",\"\",'Generated list'!D6570)","v":""}]
[null,{"$f":"IF('Generated list'!B6571=\"\",\"\",'Generated list'!B6571)","v":""},{"$f":"IF('Generated list'!C6571=\"\",\"\",'Generated list'!C6571)","v":""},{"$f":"IF('Generated list'!D6571=\"\",\"\",'Generated list'!D6571)","v":""}]
[null,{"$f":"IF('Generated list'!B6572=\"\",\"\",'Generated list'!B6572)","v":""},{"$f":"IF('Generated list'!C6572=\"\",\"\",'Generated list'!C6572)","v":""},{"$f":"IF('Generated list'!D6572=\"\",\"\",'Generated list'!D6572)","v":""}]
[null,{"$f":"IF('Generated list'!B6573=\"\",\"\",'Generated list'!B6573)","v":""},{"$f":"IF('Generated list'!C6573=\"\",\"\",'Generated list'!C6573)","v":""},{"$f":"IF('Generated list'!D6573=\"\",\"\",'Generated list'!D6573)","v":""}]
[null,{"$f":"IF('Generated list'!B6574=\"\",\"\",'Generated list'!B6574)","v":""},{"$f":"IF('Generated list'!C6574=\"\",\"\",'Generated list'!C6574)","v":""},{"$f":"IF('Generated list'!D6574=\"\",\"\",'Generated list'!D6574)","v":""}]
[null,{"$f":"IF('Generated list'!B6575=\"\",\"\",'Generated list'!B6575)","v":""},{"$f":"IF('Generated list'!C6575=\"\",\"\",'Generated list'!C6575)","v":""},{"$f":"IF('Generated list'!D6575=\"\",\"\",'Generated list'!D6575)","v":""}]
[null,{"$f":"IF('Generated list'!B6576=\"\",\"\",'Generated list'!B6576)","v":""},{"$f":"IF('Generated list'!C6576=\"\",\"\",'Generated list'!C6576)","v":""},{"$f":"IF('Generated list'!D6576=\"\",\"\",'Generated list'!D6576)","v":""}]
[null,{"$f":"IF('Generated list'!B6577=\"\",\"\",'Generated list'!B6577)","v":""},{"$f":"IF('Generated list'!C6577=\"\",\"\",'Generated list'!C6577)","v":""},{"$f":"IF('Generated list'!D6577=\"\",\"\",'Generated list'!D6577)","v":""}]
[null,{"$f":"IF('Generated list'!B6578=\"\",\"\",'Generated list'!B6578)","v":""},{"$f":"IF('Generated list'!C6578=\"\",\"\",'Generated list'!C6578)","v":""},{"$f":"IF('Generated list'!D6578=\"\",\"\",'Generated list'!D6578)","v":""}]
[null,{"$f":"IF('Generated list'!B6579=\"\",\"\",'Generated list'!B6579)","v":""},{"$f":"IF('Generated list'!C6579=\"\",\"\",'Generated list'!C6579)","v":""},{"$f":"IF('Generated list'!D6579=\"\",\"\",'Generated list'!D6579)","v":""}]
[null,{"$f":"IF('Generated list'!B6580=\"\",\"\",'Generated list'!B6580)","v":""},{"$f":"IF('Generated list'!C6580=\"\",\"\",'Generated list'!C6580)","v":""},{"$f":"IF('Generated list'!D6580=\"\",\"\",'Generated list'!D6580)","v":""}]
[null,{"$f":"IF('Generated list'!B6581=\"\",\"\",'Generated list'!B6581)","v":""},{"$f":"IF('Generated list'!C6581=\"\",\"\",'Generated list'!C6581)","v":""},{"$f":"IF('Generated list'!D6581=\"\",\"\",'Generated list'!D6581)","v":""}]
[null,{"$f":"IF('Generated list'!B6582=\"\",\"\",'Generated list'!B6582)","v":""},{"$f":"IF('Generated list'!C6582=\"\",\"\",'Generated list'!C6582)","v":""},{"$f":"IF('Generated list'!D6582=\"\",\"\",'Generated list'!D6582)","v":""}]
[null,{"$f":"IF('Generated list'!B6583=\"\",\"\",'Generated list'!B6583)","v":""},{"$f":"IF('Generated list'!C6583=\"\",\"\",'Generated list'!C6583)","v":""},{"$f":"IF('Generated list'!D6583=\"\",\"\",'Generated list'!D6583)","v":""}]
[null,{"$f":"IF('Generated list'!B6584=\"\",\"\",'Generated list'!B6584)","v":""},{"$f":"IF('Generated list'!C6584=\"\",\"\",'Generated list'!C6584)","v":""},{"$f":"IF('Generated list'!D6584=\"\",\"\",'Generated list'!D6584)","v":""}]
[null,{"$f":"IF('Generated list'!B6585=\"\",\"\",'Generated list'!B6585)","v":""},{"$f":"IF('Generated list'!C6585=\"\",\"\",'Generated list'!C6585)","v":""},{"$f":"IF('Generated list'!D6585=\"\",\"\",'Generated list'!D6585)","v":""}]
[null,{"$f":"IF('Generated list'!B6586=\"\",\"\",'Generated list'!B6586)","v":""},{"$f":"IF('Generated list'!C6586=\"\",\"\",'Generated list'!C6586)","v":""},{"$f":"IF('Generated list'!D6586=\"\",\"\",'Generated list'!D6586)","v":""}]
[null,{"$f":"IF('Generated list'!B6587=\"\",\"\",'Generated list'!B6587)","v":""},{"$f":"IF('Generated list'!C6587=\"\",\"\",'Generated list'!C6587)","v":""},{"$f":"IF('Generated list'!D6587=\"\",\"\",'Generated list'!D6587)","v":""}]
[null,{"$f":"IF('Generated list'!B6588=\"\",\"\",'Generated list'!B6588)","v":""},{"$f":"IF('Generated list'!C6588=\"\",\"\",'Generated list'!C6588)","v":""},{"$f":"IF('Generated list'!D6588=\"\",\"\",'Generated list'!D6588)","v":""}]
[null,{"$f":"IF('Generated list'!B6589=\"\",\"\",'Generated list'!B6589)","v":""},{"$f":"IF('Generated list'!C6589=\"\",\"\",'Generated list'!C6589)","v":""},{"$f":"IF('Generated list'!D6589=\"\",\"\",'Generated list'!D6589)","v":""}]
[null,{"$f":"IF('Generated list'!B6590=\"\",\"\",'Generated list'!B6590)","v":""},{"$f":"IF('Generated list'!C6590=\"\",\"\",'Generated list'!C6590)","v":""},{"$f":"IF('Generated list'!D6590=\"\",\"\",'Generated list'!D6590)","v":""}]
[null,{"$f":"IF('Generated list'!B6591=\"\",\"\",'Generated list'!B6591)","v":""},{"$f":"IF('Generated list'!C6591=\"\",\"\",'Generated list'!C6591)","v":""},{"$f":"IF('Generated list'!D6591=\"\",\"\",'Generated list'!D6591)","v":""}]
[null,{"$f":"IF('Generated list'!B6592=\"\",\"\",'Generated list'!B6592)","v":""},{"$f":"IF('Generated list'!C6592=\"\",\"\",'Generated list'!C6592)","v":""},{"$f":"IF('Generated list'!D6592=\"\",\"\",'Generated list'!D6592)","v":""}]
[null,{"$f":"IF('Generated list'!B6593=\"\",\"\",'Generated list'!B6593)","v":""},{"$f":"IF('Generated list'!C6593=\"\",\"\",'Generated list'!C6593)","v":""},{"$f":"IF('Generated list'!D6593=\"\",\"\",'Generated list'!D6593)","v":""}]
[null,{"$f":"IF('Generated list'!B6594=\"\",\"\",'Generated list'!B6594)","v":""},{"$f":"IF('Generated list'!C6594=\"\",\"\",'Generated list'!C6594)","v":""},{"$f":"IF('Generated list'!D6594=\"\",\"\",'Generated list'!D6594)","v":""}]
[null,{"$f":"IF('Generated list'!B6595=\"\",\"\",'Generated list'!B6595)","v":""},{"$f":"IF('Generated list'!C6595=\"\",\"\",'Generated list'!C6595)","v":""},{"$f":"IF('Generated list'!D6595=\"\",\"\",'Generated list'!D6595)","v":""}]
[null,{"$f":"IF('Generated list'!B6596=\"\",\"\",'Generated list'!B6596)","v":""},{"$f":"IF('Generated list'!C6596=\"\",\"\",'Generated list'!C6596)","v":""},{"$f":"IF('Generated list'!D6596=\"\",\"\",'Generated list'!D6596)","v":""}]
[null,{"$f":"IF('Generated list'!B6597=\"\",\"\",'Generated list'!B6597)","v":""},{"$f":"IF('Generated list'!C6597=\"\",\"\",'Generated list'!C6597)","v":""},{"$f":"IF('Generated list'!D6597=\"\",\"\",'Generated list'!D6597)","v":""}]
[null,{"$f":"IF('Generated list'!B6598=\"\",\"\",'Generated list'!B6598)","v":""},{"$f":"IF('Generated list'!C6598=\"\",\"\",'Generated list'!C6598)","v":""},{"$f":"IF('Generated list'!D6598=\"\",\"\",'Generated list'!D6598)","v":""}]
[null,{"$f":"IF('Generated list'!B6599=\"\",\"\",'Generated list'!B6599)","v":""},{"$f":"IF('Generated list'!C6599=\"\",\"\",'Generated list'!C6599)","v":""},{"$f":"IF('Generated list'!D6599=\"\",\"\",'Generated list'!D6599)","v":""}]
[null,{"$f":"IF('Generated list'!B6600=\"\",\"\",'Generated list'!B6600)","v":""},{"$f":"IF('Generated list'!C6600=\"\",\"\",'Generated list'!C6600)","v":""},{"$f":"IF('Generated list'!D6600=\"\",\"\",'Generated list'!D6600)","v":""}]
[null,{"$f":"IF('Generated list'!B6601=\"\",\"\",'Generated list'!B6601)","v":""},{"$f":"IF('Generated list'!C6601=\"\",\"\",'Generated list'!C6601)","v":""},{"$f":"IF('Generated list'!D6601=\"\",\"\",'Generated list'!D6601)","v":""}]
[null,{"$f":"IF('Generated list'!B6602=\"\",\"\",'Generated list'!B6602)","v":""},{"$f":"IF('Generated list'!C6602=\"\",\"\",'Generated list'!C6602)","v":""},{"$f":"IF('Generated list'!D6602=\"\",\"\",'Generated list'!D6602)","v":""}]
[null,{"$f":"IF('Generated list'!B6603=\"\",\"\",'Generated list'!B6603)","v":""},{"$f":"IF('Generated list'!C6603=\"\",\"\",'Generated list'!C6603)","v":""},{"$f":"IF('Generated list'!D6603=\"\",\"\",'Generated list'!D6603)","v":""}]
[null,{"$f":"IF('Generated list'!B6604=\"\",\"\",'Generated list'!B6604)","v":""},{"$f":"IF('Generated list'!C6604=\"\",\"\",'Generated list'!C6604)","v":""},{"$f":"IF('Generated list'!D6604=\"\",\"\",'Generated list'!D6604)","v":""}]
[null,{"$f":"IF('Generated list'!B6605=\"\",\"\",'Generated list'!B6605)","v":""},{"$f":"IF('Generated list'!C6605=\"\",\"\",'Generated list'!C6605)","v":""},{"$f":"IF('Generated list'!D6605=\"\",\"\",'Generated list'!D6605)","v":""}]
[null,{"$f":"IF('Generated list'!B6606=\"\",\"\",'Generated list'!B6606)","v":""},{"$f":"IF('Generated list'!C6606=\"\",\"\",'Generated list'!C6606)","v":""},{"$f":"IF('Generated list'!D6606=\"\",\"\",'Generated list'!D6606)","v":""}]
[null,{"$f":"IF('Generated list'!B6607=\"\",\"\",'Generated list'!B6607)","v":""},{"$f":"IF('Generated list'!C6607=\"\",\"\",'Generated list'!C6607)","v":""},{"$f":"IF('Generated list'!D6607=\"\",\"\",'Generated list'!D6607)","v":""}]
[null,{"$f":"IF('Generated list'!B6608=\"\",\"\",'Generated list'!B6608)","v":""},{"$f":"IF('Generated list'!C6608=\"\",\"\",'Generated list'!C6608)","v":""},{"$f":"IF('Generated list'!D6608=\"\",\"\",'Generated list'!D6608)","v":""}]
[null,{"$f":"IF('Generated list'!B6609=\"\",\"\",'Generated list'!B6609)","v":""},{"$f":"IF('Generated list'!C6609=\"\",\"\",'Generated list'!C6609)","v":""},{"$f":"IF('Generated list'!D6609=\"\",\"\",'Generated list'!D6609)","v":""}]
[null,{"$f":"IF('Generated list'!B6610=\"\",\"\",'Generated list'!B6610)","v":""},{"$f":"IF('Generated list'!C6610=\"\",\"\",'Generated list'!C6610)","v":""},{"$f":"IF('Generated list'!D6610=\"\",\"\",'Generated list'!D6610)","v":""}]
[null,{"$f":"IF('Generated list'!B6611=\"\",\"\",'Generated list'!B6611)","v":""},{"$f":"IF('Generated list'!C6611=\"\",\"\",'Generated list'!C6611)","v":""},{"$f":"IF('Generated list'!D6611=\"\",\"\",'Generated list'!D6611)","v":""}]
[null,{"$f":"IF('Generated list'!B6612=\"\",\"\",'Generated list'!B6612)","v":""},{"$f":"IF('Generated list'!C6612=\"\",\"\",'Generated list'!C6612)","v":""},{"$f":"IF('Generated list'!D6612=\"\",\"\",'Generated list'!D6612)","v":""}]
[null,{"$f":"IF('Generated list'!B6613=\"\",\"\",'Generated list'!B6613)","v":""},{"$f":"IF('Generated list'!C6613=\"\",\"\",'Generated list'!C6613)","v":""},{"$f":"IF('Generated list'!D6613=\"\",\"\",'Generated list'!D6613)","v":""}]
[null,{"$f":"IF('Generated list'!B6614=\"\",\"\",'Generated list'!B6614)","v":""},{"$f":"IF('Generated list'!C6614=\"\",\"\",'Generated list'!C6614)","v":""},{"$f":"IF('Generated list'!D6614=\"\",\"\",'Generated list'!D6614)","v":""}]
[null,{"$f":"IF('Generated list'!B6615=\"\",\"\",'Generated list'!B6615)","v":""},{"$f":"IF('Generated list'!C6615=\"\",\"\",'Generated list'!C6615)","v":""},{"$f":"IF('Generated list'!D6615=\"\",\"\",'Generated list'!D6615)","v":""}]
[null,{"$f":"IF('Generated list'!B6616=\"\",\"\",'Generated list'!B6616)","v":""},{"$f":"IF('Generated list'!C6616=\"\",\"\",'Generated list'!C6616)","v":""},{"$f":"IF('Generated list'!D6616=\"\",\"\",'Generated list'!D6616)","v":""}]
[null,{"$f":"IF('Generated list'!B6617=\"\",\"\",'Generated list'!B6617)","v":""},{"$f":"IF('Generated list'!C6617=\"\",\"\",'Generated list'!C6617)","v":""},{"$f":"IF('Generated list'!D6617=\"\",\"\",'Generated list'!D6617)","v":""}]
[null,{"$f":"IF('Generated list'!B6618=\"\",\"\",'Generated list'!B6618)","v":""},{"$f":"IF('Generated list'!C6618=\"\",\"\",'Generated list'!C6618)","v":""},{"$f":"IF('Generated list'!D6618=\"\",\"\",'Generated list'!D6618)","v":""}]
[null,{"$f":"IF('Generated list'!B6619=\"\",\"\",'Generated list'!B6619)","v":""},{"$f":"IF('Generated list'!C6619=\"\",\"\",'Generated list'!C6619)","v":""},{"$f":"IF('Generated list'!D6619=\"\",\"\",'Generated list'!D6619)","v":""}]
[null,{"$f":"IF('Generated list'!B6620=\"\",\"\",'Generated list'!B6620)","v":""},{"$f":"IF('Generated list'!C6620=\"\",\"\",'Generated list'!C6620)","v":""},{"$f":"IF('Generated list'!D6620=\"\",\"\",'Generated list'!D6620)","v":""}]
[null,{"$f":"IF('Generated list'!B6621=\"\",\"\",'Generated list'!B6621)","v":""},{"$f":"IF('Generated list'!C6621=\"\",\"\",'Generated list'!C6621)","v":""},{"$f":"IF('Generated list'!D6621=\"\",\"\",'Generated list'!D6621)","v":""}]
[null,{"$f":"IF('Generated list'!B6622=\"\",\"\",'Generated list'!B6622)","v":""},{"$f":"IF('Generated list'!C6622=\"\",\"\",'Generated list'!C6622)","v":""},{"$f":"IF('Generated list'!D6622=\"\",\"\",'Generated list'!D6622)","v":""}]
[null,{"$f":"IF('Generated list'!B6623=\"\",\"\",'Generated list'!B6623)","v":""},{"$f":"IF('Generated list'!C6623=\"\",\"\",'Generated list'!C6623)","v":""},{"$f":"IF('Generated list'!D6623=\"\",\"\",'Generated list'!D6623)","v":""}]
[null,{"$f":"IF('Generated list'!B6624=\"\",\"\",'Generated list'!B6624)","v":""},{"$f":"IF('Generated list'!C6624=\"\",\"\",'Generated list'!C6624)","v":""},{"$f":"IF('Generated list'!D6624=\"\",\"\",'Generated list'!D6624)","v":""}]
[null,{"$f":"IF('Generated list'!B6625=\"\",\"\",'Generated list'!B6625)","v":""},{"$f":"IF('Generated list'!C6625=\"\",\"\",'Generated list'!C6625)","v":""},{"$f":"IF('Generated list'!D6625=\"\",\"\",'Generated list'!D6625)","v":""}]
[null,{"$f":"IF('Generated list'!B6626=\"\",\"\",'Generated list'!B6626)","v":""},{"$f":"IF('Generated list'!C6626=\"\",\"\",'Generated list'!C6626)","v":""},{"$f":"IF('Generated list'!D6626=\"\",\"\",'Generated list'!D6626)","v":""}]
[null,{"$f":"IF('Generated list'!B6627=\"\",\"\",'Generated list'!B6627)","v":""},{"$f":"IF('Generated list'!C6627=\"\",\"\",'Generated list'!C6627)","v":""},{"$f":"IF('Generated list'!D6627=\"\",\"\",'Generated list'!D6627)","v":""}]
[null,{"$f":"IF('Generated list'!B6628=\"\",\"\",'Generated list'!B6628)","v":""},{"$f":"IF('Generated list'!C6628=\"\",\"\",'Generated list'!C6628)","v":""},{"$f":"IF('Generated list'!D6628=\"\",\"\",'Generated list'!D6628)","v":""}]
[null,{"$f":"IF('Generated list'!B6629=\"\",\"\",'Generated list'!B6629)","v":""},{"$f":"IF('Generated list'!C6629=\"\",\"\",'Generated list'!C6629)","v":""},{"$f":"IF('Generated list'!D6629=\"\",\"\",'Generated list'!D6629)","v":""}]
[null,{"$f":"IF('Generated list'!B6630=\"\",\"\",'Generated list'!B6630)","v":""},{"$f":"IF('Generated list'!C6630=\"\",\"\",'Generated list'!C6630)","v":""},{"$f":"IF('Generated list'!D6630=\"\",\"\",'Generated list'!D6630)","v":""}]
[null,{"$f":"IF('Generated list'!B6631=\"\",\"\",'Generated list'!B6631)","v":""},{"$f":"IF('Generated list'!C6631=\"\",\"\",'Generated list'!C6631)","v":""},{"$f":"IF('Generated list'!D6631=\"\",\"\",'Generated list'!D6631)","v":""}]
[null,{"$f":"IF('Generated list'!B6632=\"\",\"\",'Generated list'!B6632)","v":""},{"$f":"IF('Generated list'!C6632=\"\",\"\",'Generated list'!C6632)","v":""},{"$f":"IF('Generated list'!D6632=\"\",\"\",'Generated list'!D6632)","v":""}]
[null,{"$f":"IF('Generated list'!B6633=\"\",\"\",'Generated list'!B6633)","v":""},{"$f":"IF('Generated list'!C6633=\"\",\"\",'Generated list'!C6633)","v":""},{"$f":"IF('Generated list'!D6633=\"\",\"\",'Generated list'!D6633)","v":""}]
[null,{"$f":"IF('Generated list'!B6634=\"\",\"\",'Generated list'!B6634)","v":""},{"$f":"IF('Generated list'!C6634=\"\",\"\",'Generated list'!C6634)","v":""},{"$f":"IF('Generated list'!D6634=\"\",\"\",'Generated list'!D6634)","v":""}]
[null,{"$f":"IF('Generated list'!B6635=\"\",\"\",'Generated list'!B6635)","v":""},{"$f":"IF('Generated list'!C6635=\"\",\"\",'Generated list'!C6635)","v":""},{"$f":"IF('Generated list'!D6635=\"\",\"\",'Generated list'!D6635)","v":""}]
[null,{"$f":"IF('Generated list'!B6636=\"\",\"\",'Generated list'!B6636)","v":""},{"$f":"IF('Generated list'!C6636=\"\",\"\",'Generated list'!C6636)","v":""},{"$f":"IF('Generated list'!D6636=\"\",\"\",'Generated list'!D6636)","v":""}]
[null,{"$f":"IF('Generated list'!B6637=\"\",\"\",'Generated list'!B6637)","v":""},{"$f":"IF('Generated list'!C6637=\"\",\"\",'Generated list'!C6637)","v":""},{"$f":"IF('Generated list'!D6637=\"\",\"\",'Generated list'!D6637)","v":""}]
[null,{"$f":"IF('Generated list'!B6638=\"\",\"\",'Generated list'!B6638)","v":""},{"$f":"IF('Generated list'!C6638=\"\",\"\",'Generated list'!C6638)","v":""},{"$f":"IF('Generated list'!D6638=\"\",\"\",'Generated list'!D6638)","v":""}]
[null,{"$f":"IF('Generated list'!B6639=\"\",\"\",'Generated list'!B6639)","v":""},{"$f":"IF('Generated list'!C6639=\"\",\"\",'Generated list'!C6639)","v":""},{"$f":"IF('Generated list'!D6639=\"\",\"\",'Generated list'!D6639)","v":""}]
[null,{"$f":"IF('Generated list'!B6640=\"\",\"\",'Generated list'!B6640)","v":""},{"$f":"IF('Generated list'!C6640=\"\",\"\",'Generated list'!C6640)","v":""},{"$f":"IF('Generated list'!D6640=\"\",\"\",'Generated list'!D6640)","v":""}]
[null,{"$f":"IF('Generated list'!B6641=\"\",\"\",'Generated list'!B6641)","v":""},{"$f":"IF('Generated list'!C6641=\"\",\"\",'Generated list'!C6641)","v":""},{"$f":"IF('Generated list'!D6641=\"\",\"\",'Generated list'!D6641)","v":""}]
[null,{"$f":"IF('Generated list'!B6642=\"\",\"\",'Generated list'!B6642)","v":""},{"$f":"IF('Generated list'!C6642=\"\",\"\",'Generated list'!C6642)","v":""},{"$f":"IF('Generated list'!D6642=\"\",\"\",'Generated list'!D6642)","v":""}]
[null,{"$f":"IF('Generated list'!B6643=\"\",\"\",'Generated list'!B6643)","v":""},{"$f":"IF('Generated list'!C6643=\"\",\"\",'Generated list'!C6643)","v":""},{"$f":"IF('Generated list'!D6643=\"\",\"\",'Generated list'!D6643)","v":""}]
[null,{"$f":"IF('Generated list'!B6644=\"\",\"\",'Generated list'!B6644)","v":""},{"$f":"IF('Generated list'!C6644=\"\",\"\",'Generated list'!C6644)","v":""},{"$f":"IF('Generated list'!D6644=\"\",\"\",'Generated list'!D6644)","v":""}]
[null,{"$f":"IF('Generated list'!B6645=\"\",\"\",'Generated list'!B6645)","v":""},{"$f":"IF('Generated list'!C6645=\"\",\"\",'Generated list'!C6645)","v":""},{"$f":"IF('Generated list'!D6645=\"\",\"\",'Generated list'!D6645)","v":""}]
[null,{"$f":"IF('Generated list'!B6646=\"\",\"\",'Generated list'!B6646)","v":""},{"$f":"IF('Generated list'!C6646=\"\",\"\",'Generated list'!C6646)","v":""},{"$f":"IF('Generated list'!D6646=\"\",\"\",'Generated list'!D6646)","v":""}]
[null,{"$f":"IF('Generated list'!B6647=\"\",\"\",'Generated list'!B6647)","v":""},{"$f":"IF('Generated list'!C6647=\"\",\"\",'Generated list'!C6647)","v":""},{"$f":"IF('Generated list'!D6647=\"\",\"\",'Generated list'!D6647)","v":""}]
[null,{"$f":"IF('Generated list'!B6648=\"\",\"\",'Generated list'!B6648)","v":""},{"$f":"IF('Generated list'!C6648=\"\",\"\",'Generated list'!C6648)","v":""},{"$f":"IF('Generated list'!D6648=\"\",\"\",'Generated list'!D6648)","v":""}]
[null,{"$f":"IF('Generated list'!B6649=\"\",\"\",'Generated list'!B6649)","v":""},{"$f":"IF('Generated list'!C6649=\"\",\"\",'Generated list'!C6649)","v":""},{"$f":"IF('Generated list'!D6649=\"\",\"\",'Generated list'!D6649)","v":""}]
[null,{"$f":"IF('Generated list'!B6650=\"\",\"\",'Generated list'!B6650)","v":""},{"$f":"IF('Generated list'!C6650=\"\",\"\",'Generated list'!C6650)","v":""},{"$f":"IF('Generated list'!D6650=\"\",\"\",'Generated list'!D6650)","v":""}]
[null,{"$f":"IF('Generated list'!B6651=\"\",\"\",'Generated list'!B6651)","v":""},{"$f":"IF('Generated list'!C6651=\"\",\"\",'Generated list'!C6651)","v":""},{"$f":"IF('Generated list'!D6651=\"\",\"\",'Generated list'!D6651)","v":""}]
[null,{"$f":"IF('Generated list'!B6652=\"\",\"\",'Generated list'!B6652)","v":""},{"$f":"IF('Generated list'!C6652=\"\",\"\",'Generated list'!C6652)","v":""},{"$f":"IF('Generated list'!D6652=\"\",\"\",'Generated list'!D6652)","v":""}]
[null,{"$f":"IF('Generated list'!B6653=\"\",\"\",'Generated list'!B6653)","v":""},{"$f":"IF('Generated list'!C6653=\"\",\"\",'Generated list'!C6653)","v":""},{"$f":"IF('Generated list'!D6653=\"\",\"\",'Generated list'!D6653)","v":""}]
[null,{"$f":"IF('Generated list'!B6654=\"\",\"\",'Generated list'!B6654)","v":""},{"$f":"IF('Generated list'!C6654=\"\",\"\",'Generated list'!C6654)","v":""},{"$f":"IF('Generated list'!D6654=\"\",\"\",'Generated list'!D6654)","v":""}]
[null,{"$f":"IF('Generated list'!B6655=\"\",\"\",'Generated list'!B6655)","v":""},{"$f":"IF('Generated list'!C6655=\"\",\"\",'Generated list'!C6655)","v":""},{"$f":"IF('Generated list'!D6655=\"\",\"\",'Generated list'!D6655)","v":""}]
[null,{"$f":"IF('Generated list'!B6656=\"\",\"\",'Generated list'!B6656)","v":""},{"$f":"IF('Generated list'!C6656=\"\",\"\",'Generated list'!C6656)","v":""},{"$f":"IF('Generated list'!D6656=\"\",\"\",'Generated list'!D6656)","v":""}]
[null,{"$f":"IF('Generated list'!B6657=\"\",\"\",'Generated list'!B6657)","v":""},{"$f":"IF('Generated list'!C6657=\"\",\"\",'Generated list'!C6657)","v":""},{"$f":"IF('Generated list'!D6657=\"\",\"\",'Generated list'!D6657)","v":""}]
[null,{"$f":"IF('Generated list'!B6658=\"\",\"\",'Generated list'!B6658)","v":""},{"$f":"IF('Generated list'!C6658=\"\",\"\",'Generated list'!C6658)","v":""},{"$f":"IF('Generated list'!D6658=\"\",\"\",'Generated list'!D6658)","v":""}]
[null,{"$f":"IF('Generated list'!B6659=\"\",\"\",'Generated list'!B6659)","v":""},{"$f":"IF('Generated list'!C6659=\"\",\"\",'Generated list'!C6659)","v":""},{"$f":"IF('Generated list'!D6659=\"\",\"\",'Generated list'!D6659)","v":""}]
[null,{"$f":"IF('Generated list'!B6660=\"\",\"\",'Generated list'!B6660)","v":""},{"$f":"IF('Generated list'!C6660=\"\",\"\",'Generated list'!C6660)","v":""},{"$f":"IF('Generated list'!D6660=\"\",\"\",'Generated list'!D6660)","v":""}]
[null,{"$f":"IF('Generated list'!B6661=\"\",\"\",'Generated list'!B6661)","v":""},{"$f":"IF('Generated list'!C6661=\"\",\"\",'Generated list'!C6661)","v":""},{"$f":"IF('Generated list'!D6661=\"\",\"\",'Generated list'!D6661)","v":""}]
[null,{"$f":"IF('Generated list'!B6662=\"\",\"\",'Generated list'!B6662)","v":""},{"$f":"IF('Generated list'!C6662=\"\",\"\",'Generated list'!C6662)","v":""},{"$f":"IF('Generated list'!D6662=\"\",\"\",'Generated list'!D6662)","v":""}]
[null,{"$f":"IF('Generated list'!B6663=\"\",\"\",'Generated list'!B6663)","v":""},{"$f":"IF('Generated list'!C6663=\"\",\"\",'Generated list'!C6663)","v":""},{"$f":"IF('Generated list'!D6663=\"\",\"\",'Generated list'!D6663)","v":""}]
[null,{"$f":"IF('Generated list'!B6664=\"\",\"\",'Generated list'!B6664)","v":""},{"$f":"IF('Generated list'!C6664=\"\",\"\",'Generated list'!C6664)","v":""},{"$f":"IF('Generated list'!D6664=\"\",\"\",'Generated list'!D6664)","v":""}]
[null,{"$f":"IF('Generated list'!B6665=\"\",\"\",'Generated list'!B6665)","v":""},{"$f":"IF('Generated list'!C6665=\"\",\"\",'Generated list'!C6665)","v":""},{"$f":"IF('Generated list'!D6665=\"\",\"\",'Generated list'!D6665)","v":""}]
[null,{"$f":"IF('Generated list'!B6666=\"\",\"\",'Generated list'!B6666)","v":""},{"$f":"IF('Generated list'!C6666=\"\",\"\",'Generated list'!C6666)","v":""},{"$f":"IF('Generated list'!D6666=\"\",\"\",'Generated list'!D6666)","v":""}]
[null,{"$f":"IF('Generated list'!B6667=\"\",\"\",'Generated list'!B6667)","v":""},{"$f":"IF('Generated list'!C6667=\"\",\"\",'Generated list'!C6667)","v":""},{"$f":"IF('Generated list'!D6667=\"\",\"\",'Generated list'!D6667)","v":""}]
[null,{"$f":"IF('Generated list'!B6668=\"\",\"\",'Generated list'!B6668)","v":""},{"$f":"IF('Generated list'!C6668=\"\",\"\",'Generated list'!C6668)","v":""},{"$f":"IF('Generated list'!D6668=\"\",\"\",'Generated list'!D6668)","v":""}]
[null,{"$f":"IF('Generated list'!B6669=\"\",\"\",'Generated list'!B6669)","v":""},{"$f":"IF('Generated list'!C6669=\"\",\"\",'Generated list'!C6669)","v":""},{"$f":"IF('Generated list'!D6669=\"\",\"\",'Generated list'!D6669)","v":""}]
[null,{"$f":"IF('Generated list'!B6670=\"\",\"\",'Generated list'!B6670)","v":""},{"$f":"IF('Generated list'!C6670=\"\",\"\",'Generated list'!C6670)","v":""},{"$f":"IF('Generated list'!D6670=\"\",\"\",'Generated list'!D6670)","v":""}]
[null,{"$f":"IF('Generated list'!B6671=\"\",\"\",'Generated list'!B6671)","v":""},{"$f":"IF('Generated list'!C6671=\"\",\"\",'Generated list'!C6671)","v":""},{"$f":"IF('Generated list'!D6671=\"\",\"\",'Generated list'!D6671)","v":""}]
[null,{"$f":"IF('Generated list'!B6672=\"\",\"\",'Generated list'!B6672)","v":""},{"$f":"IF('Generated list'!C6672=\"\",\"\",'Generated list'!C6672)","v":""},{"$f":"IF('Generated list'!D6672=\"\",\"\",'Generated list'!D6672)","v":""}]
[null,{"$f":"IF('Generated list'!B6673=\"\",\"\",'Generated list'!B6673)","v":""},{"$f":"IF('Generated list'!C6673=\"\",\"\",'Generated list'!C6673)","v":""},{"$f":"IF('Generated list'!D6673=\"\",\"\",'Generated list'!D6673)","v":""}]
[null,{"$f":"IF('Generated list'!B6674=\"\",\"\",'Generated list'!B6674)","v":""},{"$f":"IF('Generated list'!C6674=\"\",\"\",'Generated list'!C6674)","v":""},{"$f":"IF('Generated list'!D6674=\"\",\"\",'Generated list'!D6674)","v":""}]
[null,{"$f":"IF('Generated list'!B6675=\"\",\"\",'Generated list'!B6675)","v":""},{"$f":"IF('Generated list'!C6675=\"\",\"\",'Generated list'!C6675)","v":""},{"$f":"IF('Generated list'!D6675=\"\",\"\",'Generated list'!D6675)","v":""}]
[null,{"$f":"IF('Generated list'!B6676=\"\",\"\",'Generated list'!B6676)","v":""},{"$f":"IF('Generated list'!C6676=\"\",\"\",'Generated list'!C6676)","v":""},{"$f":"IF('Generated list'!D6676=\"\",\"\",'Generated list'!D6676)","v":""}]
[null,{"$f":"IF('Generated list'!B6677=\"\",\"\",'Generated list'!B6677)","v":""},{"$f":"IF('Generated list'!C6677=\"\",\"\",'Generated list'!C6677)","v":""},{"$f":"IF('Generated list'!D6677=\"\",\"\",'Generated list'!D6677)","v":""}]
[null,{"$f":"IF('Generated list'!B6678=\"\",\"\",'Generated list'!B6678)","v":""},{"$f":"IF('Generated list'!C6678=\"\",\"\",'Generated list'!C6678)","v":""},{"$f":"IF('Generated list'!D6678=\"\",\"\",'Generated list'!D6678)","v":""}]
[null,{"$f":"IF('Generated list'!B6679=\"\",\"\",'Generated list'!B6679)","v":""},{"$f":"IF('Generated list'!C6679=\"\",\"\",'Generated list'!C6679)","v":""},{"$f":"IF('Generated list'!D6679=\"\",\"\",'Generated list'!D6679)","v":""}]
[null,{"$f":"IF('Generated list'!B6680=\"\",\"\",'Generated list'!B6680)","v":""},{"$f":"IF('Generated list'!C6680=\"\",\"\",'Generated list'!C6680)","v":""},{"$f":"IF('Generated list'!D6680=\"\",\"\",'Generated list'!D6680)","v":""}]
[null,{"$f":"IF('Generated list'!B6681=\"\",\"\",'Generated list'!B6681)","v":""},{"$f":"IF('Generated list'!C6681=\"\",\"\",'Generated list'!C6681)","v":""},{"$f":"IF('Generated list'!D6681=\"\",\"\",'Generated list'!D6681)","v":""}]
[null,{"$f":"IF('Generated list'!B6682=\"\",\"\",'Generated list'!B6682)","v":""},{"$f":"IF('Generated list'!C6682=\"\",\"\",'Generated list'!C6682)","v":""},{"$f":"IF('Generated list'!D6682=\"\",\"\",'Generated list'!D6682)","v":""}]
[null,{"$f":"IF('Generated list'!B6683=\"\",\"\",'Generated list'!B6683)","v":""},{"$f":"IF('Generated list'!C6683=\"\",\"\",'Generated list'!C6683)","v":""},{"$f":"IF('Generated list'!D6683=\"\",\"\",'Generated list'!D6683)","v":""}]
[null,{"$f":"IF('Generated list'!B6684=\"\",\"\",'Generated list'!B6684)","v":""},{"$f":"IF('Generated list'!C6684=\"\",\"\",'Generated list'!C6684)","v":""},{"$f":"IF('Generated list'!D6684=\"\",\"\",'Generated list'!D6684)","v":""}]
[null,{"$f":"IF('Generated list'!B6685=\"\",\"\",'Generated list'!B6685)","v":""},{"$f":"IF('Generated list'!C6685=\"\",\"\",'Generated list'!C6685)","v":""},{"$f":"IF('Generated list'!D6685=\"\",\"\",'Generated list'!D6685)","v":""}]
[null,{"$f":"IF('Generated list'!B6686=\"\",\"\",'Generated list'!B6686)","v":""},{"$f":"IF('Generated list'!C6686=\"\",\"\",'Generated list'!C6686)","v":""},{"$f":"IF('Generated list'!D6686=\"\",\"\",'Generated list'!D6686)","v":""}]
[null,{"$f":"IF('Generated list'!B6687=\"\",\"\",'Generated list'!B6687)","v":""},{"$f":"IF('Generated list'!C6687=\"\",\"\",'Generated list'!C6687)","v":""},{"$f":"IF('Generated list'!D6687=\"\",\"\",'Generated list'!D6687)","v":""}]
[null,{"$f":"IF('Generated list'!B6688=\"\",\"\",'Generated list'!B6688)","v":""},{"$f":"IF('Generated list'!C6688=\"\",\"\",'Generated list'!C6688)","v":""},{"$f":"IF('Generated list'!D6688=\"\",\"\",'Generated list'!D6688)","v":""}]
[null,{"$f":"IF('Generated list'!B6689=\"\",\"\",'Generated list'!B6689)","v":""},{"$f":"IF('Generated list'!C6689=\"\",\"\",'Generated list'!C6689)","v":""},{"$f":"IF('Generated list'!D6689=\"\",\"\",'Generated list'!D6689)","v":""}]
[null,{"$f":"IF('Generated list'!B6690=\"\",\"\",'Generated list'!B6690)","v":""},{"$f":"IF('Generated list'!C6690=\"\",\"\",'Generated list'!C6690)","v":""},{"$f":"IF('Generated list'!D6690=\"\",\"\",'Generated list'!D6690)","v":""}]
[null,{"$f":"IF('Generated list'!B6691=\"\",\"\",'Generated list'!B6691)","v":""},{"$f":"IF('Generated list'!C6691=\"\",\"\",'Generated list'!C6691)","v":""},{"$f":"IF('Generated list'!D6691=\"\",\"\",'Generated list'!D6691)","v":""}]
[null,{"$f":"IF('Generated list'!B6692=\"\",\"\",'Generated list'!B6692)","v":""},{"$f":"IF('Generated list'!C6692=\"\",\"\",'Generated list'!C6692)","v":""},{"$f":"IF('Generated list'!D6692=\"\",\"\",'Generated list'!D6692)","v":""}]
[null,{"$f":"IF('Generated list'!B6693=\"\",\"\",'Generated list'!B6693)","v":""},{"$f":"IF('Generated list'!C6693=\"\",\"\",'Generated list'!C6693)","v":""},{"$f":"IF('Generated list'!D6693=\"\",\"\",'Generated list'!D6693)","v":""}]
[null,{"$f":"IF('Generated list'!B6694=\"\",\"\",'Generated list'!B6694)","v":""},{"$f":"IF('Generated list'!C6694=\"\",\"\",'Generated list'!C6694)","v":""},{"$f":"IF('Generated list'!D6694=\"\",\"\",'Generated list'!D6694)","v":""}]
[null,{"$f":"IF('Generated list'!B6695=\"\",\"\",'Generated list'!B6695)","v":""},{"$f":"IF('Generated list'!C6695=\"\",\"\",'Generated list'!C6695)","v":""},{"$f":"IF('Generated list'!D6695=\"\",\"\",'Generated list'!D6695)","v":""}]
[null,{"$f":"IF('Generated list'!B6696=\"\",\"\",'Generated list'!B6696)","v":""},{"$f":"IF('Generated list'!C6696=\"\",\"\",'Generated list'!C6696)","v":""},{"$f":"IF('Generated list'!D6696=\"\",\"\",'Generated list'!D6696)","v":""}]
[null,{"$f":"IF('Generated list'!B6697=\"\",\"\",'Generated list'!B6697)","v":""},{"$f":"IF('Generated list'!C6697=\"\",\"\",'Generated list'!C6697)","v":""},{"$f":"IF('Generated list'!D6697=\"\",\"\",'Generated list'!D6697)","v":""}]
[null,{"$f":"IF('Generated list'!B6698=\"\",\"\",'Generated list'!B6698)","v":""},{"$f":"IF('Generated list'!C6698=\"\",\"\",'Generated list'!C6698)","v":""},{"$f":"IF('Generated list'!D6698=\"\",\"\",'Generated list'!D6698)","v":""}]
[null,{"$f":"IF('Generated list'!B6699=\"\",\"\",'Generated list'!B6699)","v":""},{"$f":"IF('Generated list'!C6699=\"\",\"\",'Generated list'!C6699)","v":""},{"$f":"IF('Generated list'!D6699=\"\",\"\",'Generated list'!D6699)","v":""}]
[null,{"$f":"IF('Generated list'!B6700=\"\",\"\",'Generated list'!B6700)","v":""},{"$f":"IF('Generated list'!C6700=\"\",\"\",'Generated list'!C6700)","v":""},{"$f":"IF('Generated list'!D6700=\"\",\"\",'Generated list'!D6700)","v":""}]
[null,{"$f":"IF('Generated list'!B6701=\"\",\"\",'Generated list'!B6701)","v":""},{"$f":"IF('Generated list'!C6701=\"\",\"\",'Generated list'!C6701)","v":""},{"$f":"IF('Generated list'!D6701=\"\",\"\",'Generated list'!D6701)","v":""}]
[null,{"$f":"IF('Generated list'!B6702=\"\",\"\",'Generated list'!B6702)","v":""},{"$f":"IF('Generated list'!C6702=\"\",\"\",'Generated list'!C6702)","v":""},{"$f":"IF('Generated list'!D6702=\"\",\"\",'Generated list'!D6702)","v":""}]
[null,{"$f":"IF('Generated list'!B6703=\"\",\"\",'Generated list'!B6703)","v":""},{"$f":"IF('Generated list'!C6703=\"\",\"\",'Generated list'!C6703)","v":""},{"$f":"IF('Generated list'!D6703=\"\",\"\",'Generated list'!D6703)","v":""}]
[null,{"$f":"IF('Generated list'!B6704=\"\",\"\",'Generated list'!B6704)","v":""},{"$f":"IF('Generated list'!C6704=\"\",\"\",'Generated list'!C6704)","v":""},{"$f":"IF('Generated list'!D6704=\"\",\"\",'Generated list'!D6704)","v":""}]
[null,{"$f":"IF('Generated list'!B6705=\"\",\"\",'Generated list'!B6705)","v":""},{"$f":"IF('Generated list'!C6705=\"\",\"\",'Generated list'!C6705)","v":""},{"$f":"IF('Generated list'!D6705=\"\",\"\",'Generated list'!D6705)","v":""}]
[null,{"$f":"IF('Generated list'!B6706=\"\",\"\",'Generated list'!B6706)","v":""},{"$f":"IF('Generated list'!C6706=\"\",\"\",'Generated list'!C6706)","v":""},{"$f":"IF('Generated list'!D6706=\"\",\"\",'Generated list'!D6706)","v":""}]
[null,{"$f":"IF('Generated list'!B6707=\"\",\"\",'Generated list'!B6707)","v":""},{"$f":"IF('Generated list'!C6707=\"\",\"\",'Generated list'!C6707)","v":""},{"$f":"IF('Generated list'!D6707=\"\",\"\",'Generated list'!D6707)","v":""}]
[null,{"$f":"IF('Generated list'!B6708=\"\",\"\",'Generated list'!B6708)","v":""},{"$f":"IF('Generated list'!C6708=\"\",\"\",'Generated list'!C6708)","v":""},{"$f":"IF('Generated list'!D6708=\"\",\"\",'Generated list'!D6708)","v":""}]
[null,{"$f":"IF('Generated list'!B6709=\"\",\"\",'Generated list'!B6709)","v":""},{"$f":"IF('Generated list'!C6709=\"\",\"\",'Generated list'!C6709)","v":""},{"$f":"IF('Generated list'!D6709=\"\",\"\",'Generated list'!D6709)","v":""}]
[null,{"$f":"IF('Generated list'!B6710=\"\",\"\",'Generated list'!B6710)","v":""},{"$f":"IF('Generated list'!C6710=\"\",\"\",'Generated list'!C6710)","v":""},{"$f":"IF('Generated list'!D6710=\"\",\"\",'Generated list'!D6710)","v":""}]
[null,{"$f":"IF('Generated list'!B6711=\"\",\"\",'Generated list'!B6711)","v":""},{"$f":"IF('Generated list'!C6711=\"\",\"\",'Generated list'!C6711)","v":""},{"$f":"IF('Generated list'!D6711=\"\",\"\",'Generated list'!D6711)","v":""}]
[null,{"$f":"IF('Generated list'!B6712=\"\",\"\",'Generated list'!B6712)","v":""},{"$f":"IF('Generated list'!C6712=\"\",\"\",'Generated list'!C6712)","v":""},{"$f":"IF('Generated list'!D6712=\"\",\"\",'Generated list'!D6712)","v":""}]
[null,{"$f":"IF('Generated list'!B6713=\"\",\"\",'Generated list'!B6713)","v":""},{"$f":"IF('Generated list'!C6713=\"\",\"\",'Generated list'!C6713)","v":""},{"$f":"IF('Generated list'!D6713=\"\",\"\",'Generated list'!D6713)","v":""}]
[null,{"$f":"IF('Generated list'!B6714=\"\",\"\",'Generated list'!B6714)","v":""},{"$f":"IF('Generated list'!C6714=\"\",\"\",'Generated list'!C6714)","v":""},{"$f":"IF('Generated list'!D6714=\"\",\"\",'Generated list'!D6714)","v":""}]
[null,{"$f":"IF('Generated list'!B6715=\"\",\"\",'Generated list'!B6715)","v":""},{"$f":"IF('Generated list'!C6715=\"\",\"\",'Generated list'!C6715)","v":""},{"$f":"IF('Generated list'!D6715=\"\",\"\",'Generated list'!D6715)","v":""}]
[null,{"$f":"IF('Generated list'!B6716=\"\",\"\",'Generated list'!B6716)","v":""},{"$f":"IF('Generated list'!C6716=\"\",\"\",'Generated list'!C6716)","v":""},{"$f":"IF('Generated list'!D6716=\"\",\"\",'Generated list'!D6716)","v":""}]
[null,{"$f":"IF('Generated list'!B6717=\"\",\"\",'Generated list'!B6717)","v":""},{"$f":"IF('Generated list'!C6717=\"\",\"\",'Generated list'!C6717)","v":""},{"$f":"IF('Generated list'!D6717=\"\",\"\",'Generated list'!D6717)","v":""}]
[null,{"$f":"IF('Generated list'!B6718=\"\",\"\",'Generated list'!B6718)","v":""},{"$f":"IF('Generated list'!C6718=\"\",\"\",'Generated list'!C6718)","v":""},{"$f":"IF('Generated list'!D6718=\"\",\"\",'Generated list'!D6718)","v":""}]
[null,{"$f":"IF('Generated list'!B6719=\"\",\"\",'Generated list'!B6719)","v":""},{"$f":"IF('Generated list'!C6719=\"\",\"\",'Generated list'!C6719)","v":""},{"$f":"IF('Generated list'!D6719=\"\",\"\",'Generated list'!D6719)","v":""}]
[null,{"$f":"IF('Generated list'!B6720=\"\",\"\",'Generated list'!B6720)","v":""},{"$f":"IF('Generated list'!C6720=\"\",\"\",'Generated list'!C6720)","v":""},{"$f":"IF('Generated list'!D6720=\"\",\"\",'Generated list'!D6720)","v":""}]
[null,{"$f":"IF('Generated list'!B6721=\"\",\"\",'Generated list'!B6721)","v":""},{"$f":"IF('Generated list'!C6721=\"\",\"\",'Generated list'!C6721)","v":""},{"$f":"IF('Generated list'!D6721=\"\",\"\",'Generated list'!D6721)","v":""}]
[null,{"$f":"IF('Generated list'!B6722=\"\",\"\",'Generated list'!B6722)","v":""},{"$f":"IF('Generated list'!C6722=\"\",\"\",'Generated list'!C6722)","v":""},{"$f":"IF('Generated list'!D6722=\"\",\"\",'Generated list'!D6722)","v":""}]
[null,{"$f":"IF('Generated list'!B6723=\"\",\"\",'Generated list'!B6723)","v":""},{"$f":"IF('Generated list'!C6723=\"\",\"\",'Generated list'!C6723)","v":""},{"$f":"IF('Generated list'!D6723=\"\",\"\",'Generated list'!D6723)","v":""}]
[null,{"$f":"IF('Generated list'!B6724=\"\",\"\",'Generated list'!B6724)","v":""},{"$f":"IF('Generated list'!C6724=\"\",\"\",'Generated list'!C6724)","v":""},{"$f":"IF('Generated list'!D6724=\"\",\"\",'Generated list'!D6724)","v":""}]
[null,{"$f":"IF('Generated list'!B6725=\"\",\"\",'Generated list'!B6725)","v":""},{"$f":"IF('Generated list'!C6725=\"\",\"\",'Generated list'!C6725)","v":""},{"$f":"IF('Generated list'!D6725=\"\",\"\",'Generated list'!D6725)","v":""}]
[null,{"$f":"IF('Generated list'!B6726=\"\",\"\",'Generated list'!B6726)","v":""},{"$f":"IF('Generated list'!C6726=\"\",\"\",'Generated list'!C6726)","v":""},{"$f":"IF('Generated list'!D6726=\"\",\"\",'Generated list'!D6726)","v":""}]
[null,{"$f":"IF('Generated list'!B6727=\"\",\"\",'Generated list'!B6727)","v":""},{"$f":"IF('Generated list'!C6727=\"\",\"\",'Generated list'!C6727)","v":""},{"$f":"IF('Generated list'!D6727=\"\",\"\",'Generated list'!D6727)","v":""}]
[null,{"$f":"IF('Generated list'!B6728=\"\",\"\",'Generated list'!B6728)","v":""},{"$f":"IF('Generated list'!C6728=\"\",\"\",'Generated list'!C6728)","v":""},{"$f":"IF('Generated list'!D6728=\"\",\"\",'Generated list'!D6728)","v":""}]
[null,{"$f":"IF('Generated list'!B6729=\"\",\"\",'Generated list'!B6729)","v":""},{"$f":"IF('Generated list'!C6729=\"\",\"\",'Generated list'!C6729)","v":""},{"$f":"IF('Generated list'!D6729=\"\",\"\",'Generated list'!D6729)","v":""}]
[null,{"$f":"IF('Generated list'!B6730=\"\",\"\",'Generated list'!B6730)","v":""},{"$f":"IF('Generated list'!C6730=\"\",\"\",'Generated list'!C6730)","v":""},{"$f":"IF('Generated list'!D6730=\"\",\"\",'Generated list'!D6730)","v":""}]
[null,{"$f":"IF('Generated list'!B6731=\"\",\"\",'Generated list'!B6731)","v":""},{"$f":"IF('Generated list'!C6731=\"\",\"\",'Generated list'!C6731)","v":""},{"$f":"IF('Generated list'!D6731=\"\",\"\",'Generated list'!D6731)","v":""}]
[null,{"$f":"IF('Generated list'!B6732=\"\",\"\",'Generated list'!B6732)","v":""},{"$f":"IF('Generated list'!C6732=\"\",\"\",'Generated list'!C6732)","v":""},{"$f":"IF('Generated list'!D6732=\"\",\"\",'Generated list'!D6732)","v":""}]
[null,{"$f":"IF('Generated list'!B6733=\"\",\"\",'Generated list'!B6733)","v":""},{"$f":"IF('Generated list'!C6733=\"\",\"\",'Generated list'!C6733)","v":""},{"$f":"IF('Generated list'!D6733=\"\",\"\",'Generated list'!D6733)","v":""}]
[null,{"$f":"IF('Generated list'!B6734=\"\",\"\",'Generated list'!B6734)","v":""},{"$f":"IF('Generated list'!C6734=\"\",\"\",'Generated list'!C6734)","v":""},{"$f":"IF('Generated list'!D6734=\"\",\"\",'Generated list'!D6734)","v":""}]
[null,{"$f":"IF('Generated list'!B6735=\"\",\"\",'Generated list'!B6735)","v":""},{"$f":"IF('Generated list'!C6735=\"\",\"\",'Generated list'!C6735)","v":""},{"$f":"IF('Generated list'!D6735=\"\",\"\",'Generated list'!D6735)","v":""}]
[null,{"$f":"IF('Generated list'!B6736=\"\",\"\",'Generated list'!B6736)","v":""},{"$f":"IF('Generated list'!C6736=\"\",\"\",'Generated list'!C6736)","v":""},{"$f":"IF('Generated list'!D6736=\"\",\"\",'Generated list'!D6736)","v":""}]
[null,{"$f":"IF('Generated list'!B6737=\"\",\"\",'Generated list'!B6737)","v":""},{"$f":"IF('Generated list'!C6737=\"\",\"\",'Generated list'!C6737)","v":""},{"$f":"IF('Generated list'!D6737=\"\",\"\",'Generated list'!D6737)","v":""}]
[null,{"$f":"IF('Generated list'!B6738=\"\",\"\",'Generated list'!B6738)","v":""},{"$f":"IF('Generated list'!C6738=\"\",\"\",'Generated list'!C6738)","v":""},{"$f":"IF('Generated list'!D6738=\"\",\"\",'Generated list'!D6738)","v":""}]
[null,{"$f":"IF('Generated list'!B6739=\"\",\"\",'Generated list'!B6739)","v":""},{"$f":"IF('Generated list'!C6739=\"\",\"\",'Generated list'!C6739)","v":""},{"$f":"IF('Generated list'!D6739=\"\",\"\",'Generated list'!D6739)","v":""}]
[null,{"$f":"IF('Generated list'!B6740=\"\",\"\",'Generated list'!B6740)","v":""},{"$f":"IF('Generated list'!C6740=\"\",\"\",'Generated list'!C6740)","v":""},{"$f":"IF('Generated list'!D6740=\"\",\"\",'Generated list'!D6740)","v":""}]
[null,{"$f":"IF('Generated list'!B6741=\"\",\"\",'Generated list'!B6741)","v":""},{"$f":"IF('Generated list'!C6741=\"\",\"\",'Generated list'!C6741)","v":""},{"$f":"IF('Generated list'!D6741=\"\",\"\",'Generated list'!D6741)","v":""}]
[null,{"$f":"IF('Generated list'!B6742=\"\",\"\",'Generated list'!B6742)","v":""},{"$f":"IF('Generated list'!C6742=\"\",\"\",'Generated list'!C6742)","v":""},{"$f":"IF('Generated list'!D6742=\"\",\"\",'Generated list'!D6742)","v":""}]
[null,{"$f":"IF('Generated list'!B6743=\"\",\"\",'Generated list'!B6743)","v":""},{"$f":"IF('Generated list'!C6743=\"\",\"\",'Generated list'!C6743)","v":""},{"$f":"IF('Generated list'!D6743=\"\",\"\",'Generated list'!D6743)","v":""}]
[null,{"$f":"IF('Generated list'!B6744=\"\",\"\",'Generated list'!B6744)","v":""},{"$f":"IF('Generated list'!C6744=\"\",\"\",'Generated list'!C6744)","v":""},{"$f":"IF('Generated list'!D6744=\"\",\"\",'Generated list'!D6744)","v":""}]
[null,{"$f":"IF('Generated list'!B6745=\"\",\"\",'Generated list'!B6745)","v":""},{"$f":"IF('Generated list'!C6745=\"\",\"\",'Generated list'!C6745)","v":""},{"$f":"IF('Generated list'!D6745=\"\",\"\",'Generated list'!D6745)","v":""}]
[null,{"$f":"IF('Generated list'!B6746=\"\",\"\",'Generated list'!B6746)","v":""},{"$f":"IF('Generated list'!C6746=\"\",\"\",'Generated list'!C6746)","v":""},{"$f":"IF('Generated list'!D6746=\"\",\"\",'Generated list'!D6746)","v":""}]
[null,{"$f":"IF('Generated list'!B6747=\"\",\"\",'Generated list'!B6747)","v":""},{"$f":"IF('Generated list'!C6747=\"\",\"\",'Generated list'!C6747)","v":""},{"$f":"IF('Generated list'!D6747=\"\",\"\",'Generated list'!D6747)","v":""}]
[null,{"$f":"IF('Generated list'!B6748=\"\",\"\",'Generated list'!B6748)","v":""},{"$f":"IF('Generated list'!C6748=\"\",\"\",'Generated list'!C6748)","v":""},{"$f":"IF('Generated list'!D6748=\"\",\"\",'Generated list'!D6748)","v":""}]
[null,{"$f":"IF('Generated list'!B6749=\"\",\"\",'Generated list'!B6749)","v":""},{"$f":"IF('Generated list'!C6749=\"\",\"\",'Generated list'!C6749)","v":""},{"$f":"IF('Generated list'!D6749=\"\",\"\",'Generated list'!D6749)","v":""}]
[null,{"$f":"IF('Generated list'!B6750=\"\",\"\",'Generated list'!B6750)","v":""},{"$f":"IF('Generated list'!C6750=\"\",\"\",'Generated list'!C6750)","v":""},{"$f":"IF('Generated list'!D6750=\"\",\"\",'Generated list'!D6750)","v":""}]
[null,{"$f":"IF('Generated list'!B6751=\"\",\"\",'Generated list'!B6751)","v":""},{"$f":"IF('Generated list'!C6751=\"\",\"\",'Generated list'!C6751)","v":""},{"$f":"IF('Generated list'!D6751=\"\",\"\",'Generated list'!D6751)","v":""}]
[null,{"$f":"IF('Generated list'!B6752=\"\",\"\",'Generated list'!B6752)","v":""},{"$f":"IF('Generated list'!C6752=\"\",\"\",'Generated list'!C6752)","v":""},{"$f":"IF('Generated list'!D6752=\"\",\"\",'Generated list'!D6752)","v":""}]
[null,{"$f":"IF('Generated list'!B6753=\"\",\"\",'Generated list'!B6753)","v":""},{"$f":"IF('Generated list'!C6753=\"\",\"\",'Generated list'!C6753)","v":""},{"$f":"IF('Generated list'!D6753=\"\",\"\",'Generated list'!D6753)","v":""}]
[null,{"$f":"IF('Generated list'!B6754=\"\",\"\",'Generated list'!B6754)","v":""},{"$f":"IF('Generated list'!C6754=\"\",\"\",'Generated list'!C6754)","v":""},{"$f":"IF('Generated list'!D6754=\"\",\"\",'Generated list'!D6754)","v":""}]
[null,{"$f":"IF('Generated list'!B6755=\"\",\"\",'Generated list'!B6755)","v":""},{"$f":"IF('Generated list'!C6755=\"\",\"\",'Generated list'!C6755)","v":""},{"$f":"IF('Generated list'!D6755=\"\",\"\",'Generated list'!D6755)","v":""}]
[null,{"$f":"IF('Generated list'!B6756=\"\",\"\",'Generated list'!B6756)","v":""},{"$f":"IF('Generated list'!C6756=\"\",\"\",'Generated list'!C6756)","v":""},{"$f":"IF('Generated list'!D6756=\"\",\"\",'Generated list'!D6756)","v":""}]
[null,{"$f":"IF('Generated list'!B6757=\"\",\"\",'Generated list'!B6757)","v":""},{"$f":"IF('Generated list'!C6757=\"\",\"\",'Generated list'!C6757)","v":""},{"$f":"IF('Generated list'!D6757=\"\",\"\",'Generated list'!D6757)","v":""}]
[null,{"$f":"IF('Generated list'!B6758=\"\",\"\",'Generated list'!B6758)","v":""},{"$f":"IF('Generated list'!C6758=\"\",\"\",'Generated list'!C6758)","v":""},{"$f":"IF('Generated list'!D6758=\"\",\"\",'Generated list'!D6758)","v":""}]
[null,{"$f":"IF('Generated list'!B6759=\"\",\"\",'Generated list'!B6759)","v":""},{"$f":"IF('Generated list'!C6759=\"\",\"\",'Generated list'!C6759)","v":""},{"$f":"IF('Generated list'!D6759=\"\",\"\",'Generated list'!D6759)","v":""}]
[null,{"$f":"IF('Generated list'!B6760=\"\",\"\",'Generated list'!B6760)","v":""},{"$f":"IF('Generated list'!C6760=\"\",\"\",'Generated list'!C6760)","v":""},{"$f":"IF('Generated list'!D6760=\"\",\"\",'Generated list'!D6760)","v":""}]
[null,{"$f":"IF('Generated list'!B6761=\"\",\"\",'Generated list'!B6761)","v":""},{"$f":"IF('Generated list'!C6761=\"\",\"\",'Generated list'!C6761)","v":""},{"$f":"IF('Generated list'!D6761=\"\",\"\",'Generated list'!D6761)","v":""}]
[null,{"$f":"IF('Generated list'!B6762=\"\",\"\",'Generated list'!B6762)","v":""},{"$f":"IF('Generated list'!C6762=\"\",\"\",'Generated list'!C6762)","v":""},{"$f":"IF('Generated list'!D6762=\"\",\"\",'Generated list'!D6762)","v":""}]
[null,{"$f":"IF('Generated list'!B6763=\"\",\"\",'Generated list'!B6763)","v":""},{"$f":"IF('Generated list'!C6763=\"\",\"\",'Generated list'!C6763)","v":""},{"$f":"IF('Generated list'!D6763=\"\",\"\",'Generated list'!D6763)","v":""}]
[null,{"$f":"IF('Generated list'!B6764=\"\",\"\",'Generated list'!B6764)","v":""},{"$f":"IF('Generated list'!C6764=\"\",\"\",'Generated list'!C6764)","v":""},{"$f":"IF('Generated list'!D6764=\"\",\"\",'Generated list'!D6764)","v":""}]
[null,{"$f":"IF('Generated list'!B6765=\"\",\"\",'Generated list'!B6765)","v":""},{"$f":"IF('Generated list'!C6765=\"\",\"\",'Generated list'!C6765)","v":""},{"$f":"IF('Generated list'!D6765=\"\",\"\",'Generated list'!D6765)","v":""}]
[null,{"$f":"IF('Generated list'!B6766=\"\",\"\",'Generated list'!B6766)","v":""},{"$f":"IF('Generated list'!C6766=\"\",\"\",'Generated list'!C6766)","v":""},{"$f":"IF('Generated list'!D6766=\"\",\"\",'Generated list'!D6766)","v":""}]
[null,{"$f":"IF('Generated list'!B6767=\"\",\"\",'Generated list'!B6767)","v":""},{"$f":"IF('Generated list'!C6767=\"\",\"\",'Generated list'!C6767)","v":""},{"$f":"IF('Generated list'!D6767=\"\",\"\",'Generated list'!D6767)","v":""}]
[null,{"$f":"IF('Generated list'!B6768=\"\",\"\",'Generated list'!B6768)","v":""},{"$f":"IF('Generated list'!C6768=\"\",\"\",'Generated list'!C6768)","v":""},{"$f":"IF('Generated list'!D6768=\"\",\"\",'Generated list'!D6768)","v":""}]
[null,{"$f":"IF('Generated list'!B6769=\"\",\"\",'Generated list'!B6769)","v":""},{"$f":"IF('Generated list'!C6769=\"\",\"\",'Generated list'!C6769)","v":""},{"$f":"IF('Generated list'!D6769=\"\",\"\",'Generated list'!D6769)","v":""}]
[null,{"$f":"IF('Generated list'!B6770=\"\",\"\",'Generated list'!B6770)","v":""},{"$f":"IF('Generated list'!C6770=\"\",\"\",'Generated list'!C6770)","v":""},{"$f":"IF('Generated list'!D6770=\"\",\"\",'Generated list'!D6770)","v":""}]
[null,{"$f":"IF('Generated list'!B6771=\"\",\"\",'Generated list'!B6771)","v":""},{"$f":"IF('Generated list'!C6771=\"\",\"\",'Generated list'!C6771)","v":""},{"$f":"IF('Generated list'!D6771=\"\",\"\",'Generated list'!D6771)","v":""}]
[null,{"$f":"IF('Generated list'!B6772=\"\",\"\",'Generated list'!B6772)","v":""},{"$f":"IF('Generated list'!C6772=\"\",\"\",'Generated list'!C6772)","v":""},{"$f":"IF('Generated list'!D6772=\"\",\"\",'Generated list'!D6772)","v":""}]
[null,{"$f":"IF('Generated list'!B6773=\"\",\"\",'Generated list'!B6773)","v":""},{"$f":"IF('Generated list'!C6773=\"\",\"\",'Generated list'!C6773)","v":""},{"$f":"IF('Generated list'!D6773=\"\",\"\",'Generated list'!D6773)","v":""}]
[null,{"$f":"IF('Generated list'!B6774=\"\",\"\",'Generated list'!B6774)","v":""},{"$f":"IF('Generated list'!C6774=\"\",\"\",'Generated list'!C6774)","v":""},{"$f":"IF('Generated list'!D6774=\"\",\"\",'Generated list'!D6774)","v":""}]
[null,{"$f":"IF('Generated list'!B6775=\"\",\"\",'Generated list'!B6775)","v":""},{"$f":"IF('Generated list'!C6775=\"\",\"\",'Generated list'!C6775)","v":""},{"$f":"IF('Generated list'!D6775=\"\",\"\",'Generated list'!D6775)","v":""}]
[null,{"$f":"IF('Generated list'!B6776=\"\",\"\",'Generated list'!B6776)","v":""},{"$f":"IF('Generated list'!C6776=\"\",\"\",'Generated list'!C6776)","v":""},{"$f":"IF('Generated list'!D6776=\"\",\"\",'Generated list'!D6776)","v":""}]
[null,{"$f":"IF('Generated list'!B6777=\"\",\"\",'Generated list'!B6777)","v":""},{"$f":"IF('Generated list'!C6777=\"\",\"\",'Generated list'!C6777)","v":""},{"$f":"IF('Generated list'!D6777=\"\",\"\",'Generated list'!D6777)","v":""}]
[null,{"$f":"IF('Generated list'!B6778=\"\",\"\",'Generated list'!B6778)","v":""},{"$f":"IF('Generated list'!C6778=\"\",\"\",'Generated list'!C6778)","v":""},{"$f":"IF('Generated list'!D6778=\"\",\"\",'Generated list'!D6778)","v":""}]
[null,{"$f":"IF('Generated list'!B6779=\"\",\"\",'Generated list'!B6779)","v":""},{"$f":"IF('Generated list'!C6779=\"\",\"\",'Generated list'!C6779)","v":""},{"$f":"IF('Generated list'!D6779=\"\",\"\",'Generated list'!D6779)","v":""}]
[null,{"$f":"IF('Generated list'!B6780=\"\",\"\",'Generated list'!B6780)","v":""},{"$f":"IF('Generated list'!C6780=\"\",\"\",'Generated list'!C6780)","v":""},{"$f":"IF('Generated list'!D6780=\"\",\"\",'Generated list'!D6780)","v":""}]
[null,{"$f":"IF('Generated list'!B6781=\"\",\"\",'Generated list'!B6781)","v":""},{"$f":"IF('Generated list'!C6781=\"\",\"\",'Generated list'!C6781)","v":""},{"$f":"IF('Generated list'!D6781=\"\",\"\",'Generated list'!D6781)","v":""}]
[null,{"$f":"IF('Generated list'!B6782=\"\",\"\",'Generated list'!B6782)","v":""},{"$f":"IF('Generated list'!C6782=\"\",\"\",'Generated list'!C6782)","v":""},{"$f":"IF('Generated list'!D6782=\"\",\"\",'Generated list'!D6782)","v":""}]
[null,{"$f":"IF('Generated list'!B6783=\"\",\"\",'Generated list'!B6783)","v":""},{"$f":"IF('Generated list'!C6783=\"\",\"\",'Generated list'!C6783)","v":""},{"$f":"IF('Generated list'!D6783=\"\",\"\",'Generated list'!D6783)","v":""}]
[null,{"$f":"IF('Generated list'!B6784=\"\",\"\",'Generated list'!B6784)","v":""},{"$f":"IF('Generated list'!C6784=\"\",\"\",'Generated list'!C6784)","v":""},{"$f":"IF('Generated list'!D6784=\"\",\"\",'Generated list'!D6784)","v":""}]
[null,{"$f":"IF('Generated list'!B6785=\"\",\"\",'Generated list'!B6785)","v":""},{"$f":"IF('Generated list'!C6785=\"\",\"\",'Generated list'!C6785)","v":""},{"$f":"IF('Generated list'!D6785=\"\",\"\",'Generated list'!D6785)","v":""}]
[null,{"$f":"IF('Generated list'!B6786=\"\",\"\",'Generated list'!B6786)","v":""},{"$f":"IF('Generated list'!C6786=\"\",\"\",'Generated list'!C6786)","v":""},{"$f":"IF('Generated list'!D6786=\"\",\"\",'Generated list'!D6786)","v":""}]
[null,{"$f":"IF('Generated list'!B6787=\"\",\"\",'Generated list'!B6787)","v":""},{"$f":"IF('Generated list'!C6787=\"\",\"\",'Generated list'!C6787)","v":""},{"$f":"IF('Generated list'!D6787=\"\",\"\",'Generated list'!D6787)","v":""}]
[null,{"$f":"IF('Generated list'!B6788=\"\",\"\",'Generated list'!B6788)","v":""},{"$f":"IF('Generated list'!C6788=\"\",\"\",'Generated list'!C6788)","v":""},{"$f":"IF('Generated list'!D6788=\"\",\"\",'Generated list'!D6788)","v":""}]
[null,{"$f":"IF('Generated list'!B6789=\"\",\"\",'Generated list'!B6789)","v":""},{"$f":"IF('Generated list'!C6789=\"\",\"\",'Generated list'!C6789)","v":""},{"$f":"IF('Generated list'!D6789=\"\",\"\",'Generated list'!D6789)","v":""}]
[null,{"$f":"IF('Generated list'!B6790=\"\",\"\",'Generated list'!B6790)","v":""},{"$f":"IF('Generated list'!C6790=\"\",\"\",'Generated list'!C6790)","v":""},{"$f":"IF('Generated list'!D6790=\"\",\"\",'Generated list'!D6790)","v":""}]
[null,{"$f":"IF('Generated list'!B6791=\"\",\"\",'Generated list'!B6791)","v":""},{"$f":"IF('Generated list'!C6791=\"\",\"\",'Generated list'!C6791)","v":""},{"$f":"IF('Generated list'!D6791=\"\",\"\",'Generated list'!D6791)","v":""}]
[null,{"$f":"IF('Generated list'!B6792=\"\",\"\",'Generated list'!B6792)","v":""},{"$f":"IF('Generated list'!C6792=\"\",\"\",'Generated list'!C6792)","v":""},{"$f":"IF('Generated list'!D6792=\"\",\"\",'Generated list'!D6792)","v":""}]
[null,{"$f":"IF('Generated list'!B6793=\"\",\"\",'Generated list'!B6793)","v":""},{"$f":"IF('Generated list'!C6793=\"\",\"\",'Generated list'!C6793)","v":""},{"$f":"IF('Generated list'!D6793=\"\",\"\",'Generated list'!D6793)","v":""}]
[null,{"$f":"IF('Generated list'!B6794=\"\",\"\",'Generated list'!B6794)","v":""},{"$f":"IF('Generated list'!C6794=\"\",\"\",'Generated list'!C6794)","v":""},{"$f":"IF('Generated list'!D6794=\"\",\"\",'Generated list'!D6794)","v":""}]
[null,{"$f":"IF('Generated list'!B6795=\"\",\"\",'Generated list'!B6795)","v":""},{"$f":"IF('Generated list'!C6795=\"\",\"\",'Generated list'!C6795)","v":""},{"$f":"IF('Generated list'!D6795=\"\",\"\",'Generated list'!D6795)","v":""}]
[null,{"$f":"IF('Generated list'!B6796=\"\",\"\",'Generated list'!B6796)","v":""},{"$f":"IF('Generated list'!C6796=\"\",\"\",'Generated list'!C6796)","v":""},{"$f":"IF('Generated list'!D6796=\"\",\"\",'Generated list'!D6796)","v":""}]
[null,{"$f":"IF('Generated list'!B6797=\"\",\"\",'Generated list'!B6797)","v":""},{"$f":"IF('Generated list'!C6797=\"\",\"\",'Generated list'!C6797)","v":""},{"$f":"IF('Generated list'!D6797=\"\",\"\",'Generated list'!D6797)","v":""}]
[null,{"$f":"IF('Generated list'!B6798=\"\",\"\",'Generated list'!B6798)","v":""},{"$f":"IF('Generated list'!C6798=\"\",\"\",'Generated list'!C6798)","v":""},{"$f":"IF('Generated list'!D6798=\"\",\"\",'Generated list'!D6798)","v":""}]
[null,{"$f":"IF('Generated list'!B6799=\"\",\"\",'Generated list'!B6799)","v":""},{"$f":"IF('Generated list'!C6799=\"\",\"\",'Generated list'!C6799)","v":""},{"$f":"IF('Generated list'!D6799=\"\",\"\",'Generated list'!D6799)","v":""}]
[null,{"$f":"IF('Generated list'!B6800=\"\",\"\",'Generated list'!B6800)","v":""},{"$f":"IF('Generated list'!C6800=\"\",\"\",'Generated list'!C6800)","v":""},{"$f":"IF('Generated list'!D6800=\"\",\"\",'Generated list'!D6800)","v":""}]
[null,{"$f":"IF('Generated list'!B6801=\"\",\"\",'Generated list'!B6801)","v":""},{"$f":"IF('Generated list'!C6801=\"\",\"\",'Generated list'!C6801)","v":""},{"$f":"IF('Generated list'!D6801=\"\",\"\",'Generated list'!D6801)","v":""}]
[null,{"$f":"IF('Generated list'!B6802=\"\",\"\",'Generated list'!B6802)","v":""},{"$f":"IF('Generated list'!C6802=\"\",\"\",'Generated list'!C6802)","v":""},{"$f":"IF('Generated list'!D6802=\"\",\"\",'Generated list'!D6802)","v":""}]
[null,{"$f":"IF('Generated list'!B6803=\"\",\"\",'Generated list'!B6803)","v":""},{"$f":"IF('Generated list'!C6803=\"\",\"\",'Generated list'!C6803)","v":""},{"$f":"IF('Generated list'!D6803=\"\",\"\",'Generated list'!D6803)","v":""}]
[null,{"$f":"IF('Generated list'!B6804=\"\",\"\",'Generated list'!B6804)","v":""},{"$f":"IF('Generated list'!C6804=\"\",\"\",'Generated list'!C6804)","v":""},{"$f":"IF('Generated list'!D6804=\"\",\"\",'Generated list'!D6804)","v":""}]
[null,{"$f":"IF('Generated list'!B6805=\"\",\"\",'Generated list'!B6805)","v":""},{"$f":"IF('Generated list'!C6805=\"\",\"\",'Generated list'!C6805)","v":""},{"$f":"IF('Generated list'!D6805=\"\",\"\",'Generated list'!D6805)","v":""}]
[null,{"$f":"IF('Generated list'!B6806=\"\",\"\",'Generated list'!B6806)","v":""},{"$f":"IF('Generated list'!C6806=\"\",\"\",'Generated list'!C6806)","v":""},{"$f":"IF('Generated list'!D6806=\"\",\"\",'Generated list'!D6806)","v":""}]
[null,{"$f":"IF('Generated list'!B6807=\"\",\"\",'Generated list'!B6807)","v":""},{"$f":"IF('Generated list'!C6807=\"\",\"\",'Generated list'!C6807)","v":""},{"$f":"IF('Generated list'!D6807=\"\",\"\",'Generated list'!D6807)","v":""}]
[null,{"$f":"IF('Generated list'!B6808=\"\",\"\",'Generated list'!B6808)","v":""},{"$f":"IF('Generated list'!C6808=\"\",\"\",'Generated list'!C6808)","v":""},{"$f":"IF('Generated list'!D6808=\"\",\"\",'Generated list'!D6808)","v":""}]
[null,{"$f":"IF('Generated list'!B6809=\"\",\"\",'Generated list'!B6809)","v":""},{"$f":"IF('Generated list'!C6809=\"\",\"\",'Generated list'!C6809)","v":""},{"$f":"IF('Generated list'!D6809=\"\",\"\",'Generated list'!D6809)","v":""}]
[null,{"$f":"IF('Generated list'!B6810=\"\",\"\",'Generated list'!B6810)","v":""},{"$f":"IF('Generated list'!C6810=\"\",\"\",'Generated list'!C6810)","v":""},{"$f":"IF('Generated list'!D6810=\"\",\"\",'Generated list'!D6810)","v":""}]
[null,{"$f":"IF('Generated list'!B6811=\"\",\"\",'Generated list'!B6811)","v":""},{"$f":"IF('Generated list'!C6811=\"\",\"\",'Generated list'!C6811)","v":""},{"$f":"IF('Generated list'!D6811=\"\",\"\",'Generated list'!D6811)","v":""}]
[null,{"$f":"IF('Generated list'!B6812=\"\",\"\",'Generated list'!B6812)","v":""},{"$f":"IF('Generated list'!C6812=\"\",\"\",'Generated list'!C6812)","v":""},{"$f":"IF('Generated list'!D6812=\"\",\"\",'Generated list'!D6812)","v":""}]
[null,{"$f":"IF('Generated list'!B6813=\"\",\"\",'Generated list'!B6813)","v":""},{"$f":"IF('Generated list'!C6813=\"\",\"\",'Generated list'!C6813)","v":""},{"$f":"IF('Generated list'!D6813=\"\",\"\",'Generated list'!D6813)","v":""}]
[null,{"$f":"IF('Generated list'!B6814=\"\",\"\",'Generated list'!B6814)","v":""},{"$f":"IF('Generated list'!C6814=\"\",\"\",'Generated list'!C6814)","v":""},{"$f":"IF('Generated list'!D6814=\"\",\"\",'Generated list'!D6814)","v":""}]
[null,{"$f":"IF('Generated list'!B6815=\"\",\"\",'Generated list'!B6815)","v":""},{"$f":"IF('Generated list'!C6815=\"\",\"\",'Generated list'!C6815)","v":""},{"$f":"IF('Generated list'!D6815=\"\",\"\",'Generated list'!D6815)","v":""}]
[null,{"$f":"IF('Generated list'!B6816=\"\",\"\",'Generated list'!B6816)","v":""},{"$f":"IF('Generated list'!C6816=\"\",\"\",'Generated list'!C6816)","v":""},{"$f":"IF('Generated list'!D6816=\"\",\"\",'Generated list'!D6816)","v":""}]
[null,{"$f":"IF('Generated list'!B6817=\"\",\"\",'Generated list'!B6817)","v":""},{"$f":"IF('Generated list'!C6817=\"\",\"\",'Generated list'!C6817)","v":""},{"$f":"IF('Generated list'!D6817=\"\",\"\",'Generated list'!D6817)","v":""}]
[null,{"$f":"IF('Generated list'!B6818=\"\",\"\",'Generated list'!B6818)","v":""},{"$f":"IF('Generated list'!C6818=\"\",\"\",'Generated list'!C6818)","v":""},{"$f":"IF('Generated list'!D6818=\"\",\"\",'Generated list'!D6818)","v":""}]
[null,{"$f":"IF('Generated list'!B6819=\"\",\"\",'Generated list'!B6819)","v":""},{"$f":"IF('Generated list'!C6819=\"\",\"\",'Generated list'!C6819)","v":""},{"$f":"IF('Generated list'!D6819=\"\",\"\",'Generated list'!D6819)","v":""}]
[null,{"$f":"IF('Generated list'!B6820=\"\",\"\",'Generated list'!B6820)","v":""},{"$f":"IF('Generated list'!C6820=\"\",\"\",'Generated list'!C6820)","v":""},{"$f":"IF('Generated list'!D6820=\"\",\"\",'Generated list'!D6820)","v":""}]
[null,{"$f":"IF('Generated list'!B6821=\"\",\"\",'Generated list'!B6821)","v":""},{"$f":"IF('Generated list'!C6821=\"\",\"\",'Generated list'!C6821)","v":""},{"$f":"IF('Generated list'!D6821=\"\",\"\",'Generated list'!D6821)","v":""}]
[null,{"$f":"IF('Generated list'!B6822=\"\",\"\",'Generated list'!B6822)","v":""},{"$f":"IF('Generated list'!C6822=\"\",\"\",'Generated list'!C6822)","v":""},{"$f":"IF('Generated list'!D6822=\"\",\"\",'Generated list'!D6822)","v":""}]
[null,{"$f":"IF('Generated list'!B6823=\"\",\"\",'Generated list'!B6823)","v":""},{"$f":"IF('Generated list'!C6823=\"\",\"\",'Generated list'!C6823)","v":""},{"$f":"IF('Generated list'!D6823=\"\",\"\",'Generated list'!D6823)","v":""}]
[null,{"$f":"IF('Generated list'!B6824=\"\",\"\",'Generated list'!B6824)","v":""},{"$f":"IF('Generated list'!C6824=\"\",\"\",'Generated list'!C6824)","v":""},{"$f":"IF('Generated list'!D6824=\"\",\"\",'Generated list'!D6824)","v":""}]
[null,{"$f":"IF('Generated list'!B6825=\"\",\"\",'Generated list'!B6825)","v":""},{"$f":"IF('Generated list'!C6825=\"\",\"\",'Generated list'!C6825)","v":""},{"$f":"IF('Generated list'!D6825=\"\",\"\",'Generated list'!D6825)","v":""}]
[null,{"$f":"IF('Generated list'!B6826=\"\",\"\",'Generated list'!B6826)","v":""},{"$f":"IF('Generated list'!C6826=\"\",\"\",'Generated list'!C6826)","v":""},{"$f":"IF('Generated list'!D6826=\"\",\"\",'Generated list'!D6826)","v":""}]
[null,{"$f":"IF('Generated list'!B6827=\"\",\"\",'Generated list'!B6827)","v":""},{"$f":"IF('Generated list'!C6827=\"\",\"\",'Generated list'!C6827)","v":""},{"$f":"IF('Generated list'!D6827=\"\",\"\",'Generated list'!D6827)","v":""}]
[null,{"$f":"IF('Generated list'!B6828=\"\",\"\",'Generated list'!B6828)","v":""},{"$f":"IF('Generated list'!C6828=\"\",\"\",'Generated list'!C6828)","v":""},{"$f":"IF('Generated list'!D6828=\"\",\"\",'Generated list'!D6828)","v":""}]
[null,{"$f":"IF('Generated list'!B6829=\"\",\"\",'Generated list'!B6829)","v":""},{"$f":"IF('Generated list'!C6829=\"\",\"\",'Generated list'!C6829)","v":""},{"$f":"IF('Generated list'!D6829=\"\",\"\",'Generated list'!D6829)","v":""}]
[null,{"$f":"IF('Generated list'!B6830=\"\",\"\",'Generated list'!B6830)","v":""},{"$f":"IF('Generated list'!C6830=\"\",\"\",'Generated list'!C6830)","v":""},{"$f":"IF('Generated list'!D6830=\"\",\"\",'Generated list'!D6830)","v":""}]
[null,{"$f":"IF('Generated list'!B6831=\"\",\"\",'Generated list'!B6831)","v":""},{"$f":"IF('Generated list'!C6831=\"\",\"\",'Generated list'!C6831)","v":""},{"$f":"IF('Generated list'!D6831=\"\",\"\",'Generated list'!D6831)","v":""}]
[null,{"$f":"IF('Generated list'!B6832=\"\",\"\",'Generated list'!B6832)","v":""},{"$f":"IF('Generated list'!C6832=\"\",\"\",'Generated list'!C6832)","v":""},{"$f":"IF('Generated list'!D6832=\"\",\"\",'Generated list'!D6832)","v":""}]
[null,{"$f":"IF('Generated list'!B6833=\"\",\"\",'Generated list'!B6833)","v":""},{"$f":"IF('Generated list'!C6833=\"\",\"\",'Generated list'!C6833)","v":""},{"$f":"IF('Generated list'!D6833=\"\",\"\",'Generated list'!D6833)","v":""}]
[null,{"$f":"IF('Generated list'!B6834=\"\",\"\",'Generated list'!B6834)","v":""},{"$f":"IF('Generated list'!C6834=\"\",\"\",'Generated list'!C6834)","v":""},{"$f":"IF('Generated list'!D6834=\"\",\"\",'Generated list'!D6834)","v":""}]
[null,{"$f":"IF('Generated list'!B6835=\"\",\"\",'Generated list'!B6835)","v":""},{"$f":"IF('Generated list'!C6835=\"\",\"\",'Generated list'!C6835)","v":""},{"$f":"IF('Generated list'!D6835=\"\",\"\",'Generated list'!D6835)","v":""}]
[null,{"$f":"IF('Generated list'!B6836=\"\",\"\",'Generated list'!B6836)","v":""},{"$f":"IF('Generated list'!C6836=\"\",\"\",'Generated list'!C6836)","v":""},{"$f":"IF('Generated list'!D6836=\"\",\"\",'Generated list'!D6836)","v":""}]
[null,{"$f":"IF('Generated list'!B6837=\"\",\"\",'Generated list'!B6837)","v":""},{"$f":"IF('Generated list'!C6837=\"\",\"\",'Generated list'!C6837)","v":""},{"$f":"IF('Generated list'!D6837=\"\",\"\",'Generated list'!D6837)","v":""}]
[null,{"$f":"IF('Generated list'!B6838=\"\",\"\",'Generated list'!B6838)","v":""},{"$f":"IF('Generated list'!C6838=\"\",\"\",'Generated list'!C6838)","v":""},{"$f":"IF('Generated list'!D6838=\"\",\"\",'Generated list'!D6838)","v":""}]
[null,{"$f":"IF('Generated list'!B6839=\"\",\"\",'Generated list'!B6839)","v":""},{"$f":"IF('Generated list'!C6839=\"\",\"\",'Generated list'!C6839)","v":""},{"$f":"IF('Generated list'!D6839=\"\",\"\",'Generated list'!D6839)","v":""}]
[null,{"$f":"IF('Generated list'!B6840=\"\",\"\",'Generated list'!B6840)","v":""},{"$f":"IF('Generated list'!C6840=\"\",\"\",'Generated list'!C6840)","v":""},{"$f":"IF('Generated list'!D6840=\"\",\"\",'Generated list'!D6840)","v":""}]
[null,{"$f":"IF('Generated list'!B6841=\"\",\"\",'Generated list'!B6841)","v":""},{"$f":"IF('Generated list'!C6841=\"\",\"\",'Generated list'!C6841)","v":""},{"$f":"IF('Generated list'!D6841=\"\",\"\",'Generated list'!D6841)","v":""}]
[null,{"$f":"IF('Generated list'!B6842=\"\",\"\",'Generated list'!B6842)","v":""},{"$f":"IF('Generated list'!C6842=\"\",\"\",'Generated list'!C6842)","v":""},{"$f":"IF('Generated list'!D6842=\"\",\"\",'Generated list'!D6842)","v":""}]
[null,{"$f":"IF('Generated list'!B6843=\"\",\"\",'Generated list'!B6843)","v":""},{"$f":"IF('Generated list'!C6843=\"\",\"\",'Generated list'!C6843)","v":""},{"$f":"IF('Generated list'!D6843=\"\",\"\",'Generated list'!D6843)","v":""}]
[null,{"$f":"IF('Generated list'!B6844=\"\",\"\",'Generated list'!B6844)","v":""},{"$f":"IF('Generated list'!C6844=\"\",\"\",'Generated list'!C6844)","v":""},{"$f":"IF('Generated list'!D6844=\"\",\"\",'Generated list'!D6844)","v":""}]
[null,{"$f":"IF('Generated list'!B6845=\"\",\"\",'Generated list'!B6845)","v":""},{"$f":"IF('Generated list'!C6845=\"\",\"\",'Generated list'!C6845)","v":""},{"$f":"IF('Generated list'!D6845=\"\",\"\",'Generated list'!D6845)","v":""}]
[null,{"$f":"IF('Generated list'!B6846=\"\",\"\",'Generated list'!B6846)","v":""},{"$f":"IF('Generated list'!C6846=\"\",\"\",'Generated list'!C6846)","v":""},{"$f":"IF('Generated list'!D6846=\"\",\"\",'Generated list'!D6846)","v":""}]
[null,{"$f":"IF('Generated list'!B6847=\"\",\"\",'Generated list'!B6847)","v":""},{"$f":"IF('Generated list'!C6847=\"\",\"\",'Generated list'!C6847)","v":""},{"$f":"IF('Generated list'!D6847=\"\",\"\",'Generated list'!D6847)","v":""}]
[null,{"$f":"IF('Generated list'!B6848=\"\",\"\",'Generated list'!B6848)","v":""},{"$f":"IF('Generated list'!C6848=\"\",\"\",'Generated list'!C6848)","v":""},{"$f":"IF('Generated list'!D6848=\"\",\"\",'Generated list'!D6848)","v":""}]
[null,{"$f":"IF('Generated list'!B6849=\"\",\"\",'Generated list'!B6849)","v":""},{"$f":"IF('Generated list'!C6849=\"\",\"\",'Generated list'!C6849)","v":""},{"$f":"IF('Generated list'!D6849=\"\",\"\",'Generated list'!D6849)","v":""}]
[null,{"$f":"IF('Generated list'!B6850=\"\",\"\",'Generated list'!B6850)","v":""},{"$f":"IF('Generated list'!C6850=\"\",\"\",'Generated list'!C6850)","v":""},{"$f":"IF('Generated list'!D6850=\"\",\"\",'Generated list'!D6850)","v":""}]
[null,{"$f":"IF('Generated list'!B6851=\"\",\"\",'Generated list'!B6851)","v":""},{"$f":"IF('Generated list'!C6851=\"\",\"\",'Generated list'!C6851)","v":""},{"$f":"IF('Generated list'!D6851=\"\",\"\",'Generated list'!D6851)","v":""}]
[null,{"$f":"IF('Generated list'!B6852=\"\",\"\",'Generated list'!B6852)","v":""},{"$f":"IF('Generated list'!C6852=\"\",\"\",'Generated list'!C6852)","v":""},{"$f":"IF('Generated list'!D6852=\"\",\"\",'Generated list'!D6852)","v":""}]
[null,{"$f":"IF('Generated list'!B6853=\"\",\"\",'Generated list'!B6853)","v":""},{"$f":"IF('Generated list'!C6853=\"\",\"\",'Generated list'!C6853)","v":""},{"$f":"IF('Generated list'!D6853=\"\",\"\",'Generated list'!D6853)","v":""}]
[null,{"$f":"IF('Generated list'!B6854=\"\",\"\",'Generated list'!B6854)","v":""},{"$f":"IF('Generated list'!C6854=\"\",\"\",'Generated list'!C6854)","v":""},{"$f":"IF('Generated list'!D6854=\"\",\"\",'Generated list'!D6854)","v":""}]
[null,{"$f":"IF('Generated list'!B6855=\"\",\"\",'Generated list'!B6855)","v":""},{"$f":"IF('Generated list'!C6855=\"\",\"\",'Generated list'!C6855)","v":""},{"$f":"IF('Generated list'!D6855=\"\",\"\",'Generated list'!D6855)","v":""}]
[null,{"$f":"IF('Generated list'!B6856=\"\",\"\",'Generated list'!B6856)","v":""},{"$f":"IF('Generated list'!C6856=\"\",\"\",'Generated list'!C6856)","v":""},{"$f":"IF('Generated list'!D6856=\"\",\"\",'Generated list'!D6856)","v":""}]
[null,{"$f":"IF('Generated list'!B6857=\"\",\"\",'Generated list'!B6857)","v":""},{"$f":"IF('Generated list'!C6857=\"\",\"\",'Generated list'!C6857)","v":""},{"$f":"IF('Generated list'!D6857=\"\",\"\",'Generated list'!D6857)","v":""}]
[null,{"$f":"IF('Generated list'!B6858=\"\",\"\",'Generated list'!B6858)","v":""},{"$f":"IF('Generated list'!C6858=\"\",\"\",'Generated list'!C6858)","v":""},{"$f":"IF('Generated list'!D6858=\"\",\"\",'Generated list'!D6858)","v":""}]
[null,{"$f":"IF('Generated list'!B6859=\"\",\"\",'Generated list'!B6859)","v":""},{"$f":"IF('Generated list'!C6859=\"\",\"\",'Generated list'!C6859)","v":""},{"$f":"IF('Generated list'!D6859=\"\",\"\",'Generated list'!D6859)","v":""}]
[null,{"$f":"IF('Generated list'!B6860=\"\",\"\",'Generated list'!B6860)","v":""},{"$f":"IF('Generated list'!C6860=\"\",\"\",'Generated list'!C6860)","v":""},{"$f":"IF('Generated list'!D6860=\"\",\"\",'Generated list'!D6860)","v":""}]
[null,{"$f":"IF('Generated list'!B6861=\"\",\"\",'Generated list'!B6861)","v":""},{"$f":"IF('Generated list'!C6861=\"\",\"\",'Generated list'!C6861)","v":""},{"$f":"IF('Generated list'!D6861=\"\",\"\",'Generated list'!D6861)","v":""}]
[null,{"$f":"IF('Generated list'!B6862=\"\",\"\",'Generated list'!B6862)","v":""},{"$f":"IF('Generated list'!C6862=\"\",\"\",'Generated list'!C6862)","v":""},{"$f":"IF('Generated list'!D6862=\"\",\"\",'Generated list'!D6862)","v":""}]
[null,{"$f":"IF('Generated list'!B6863=\"\",\"\",'Generated list'!B6863)","v":""},{"$f":"IF('Generated list'!C6863=\"\",\"\",'Generated list'!C6863)","v":""},{"$f":"IF('Generated list'!D6863=\"\",\"\",'Generated list'!D6863)","v":""}]
[null,{"$f":"IF('Generated list'!B6864=\"\",\"\",'Generated list'!B6864)","v":""},{"$f":"IF('Generated list'!C6864=\"\",\"\",'Generated list'!C6864)","v":""},{"$f":"IF('Generated list'!D6864=\"\",\"\",'Generated list'!D6864)","v":""}]
[null,{"$f":"IF('Generated list'!B6865=\"\",\"\",'Generated list'!B6865)","v":""},{"$f":"IF('Generated list'!C6865=\"\",\"\",'Generated list'!C6865)","v":""},{"$f":"IF('Generated list'!D6865=\"\",\"\",'Generated list'!D6865)","v":""}]
[null,{"$f":"IF('Generated list'!B6866=\"\",\"\",'Generated list'!B6866)","v":""},{"$f":"IF('Generated list'!C6866=\"\",\"\",'Generated list'!C6866)","v":""},{"$f":"IF('Generated list'!D6866=\"\",\"\",'Generated list'!D6866)","v":""}]
[null,{"$f":"IF('Generated list'!B6867=\"\",\"\",'Generated list'!B6867)","v":""},{"$f":"IF('Generated list'!C6867=\"\",\"\",'Generated list'!C6867)","v":""},{"$f":"IF('Generated list'!D6867=\"\",\"\",'Generated list'!D6867)","v":""}]
[null,{"$f":"IF('Generated list'!B6868=\"\",\"\",'Generated list'!B6868)","v":""},{"$f":"IF('Generated list'!C6868=\"\",\"\",'Generated list'!C6868)","v":""},{"$f":"IF('Generated list'!D6868=\"\",\"\",'Generated list'!D6868)","v":""}]
[null,{"$f":"IF('Generated list'!B6869=\"\",\"\",'Generated list'!B6869)","v":""},{"$f":"IF('Generated list'!C6869=\"\",\"\",'Generated list'!C6869)","v":""},{"$f":"IF('Generated list'!D6869=\"\",\"\",'Generated list'!D6869)","v":""}]
[null,{"$f":"IF('Generated list'!B6870=\"\",\"\",'Generated list'!B6870)","v":""},{"$f":"IF('Generated list'!C6870=\"\",\"\",'Generated list'!C6870)","v":""},{"$f":"IF('Generated list'!D6870=\"\",\"\",'Generated list'!D6870)","v":""}]
[null,{"$f":"IF('Generated list'!B6871=\"\",\"\",'Generated list'!B6871)","v":""},{"$f":"IF('Generated list'!C6871=\"\",\"\",'Generated list'!C6871)","v":""},{"$f":"IF('Generated list'!D6871=\"\",\"\",'Generated list'!D6871)","v":""}]
[null,{"$f":"IF('Generated list'!B6872=\"\",\"\",'Generated list'!B6872)","v":""},{"$f":"IF('Generated list'!C6872=\"\",\"\",'Generated list'!C6872)","v":""},{"$f":"IF('Generated list'!D6872=\"\",\"\",'Generated list'!D6872)","v":""}]
[null,{"$f":"IF('Generated list'!B6873=\"\",\"\",'Generated list'!B6873)","v":""},{"$f":"IF('Generated list'!C6873=\"\",\"\",'Generated list'!C6873)","v":""},{"$f":"IF('Generated list'!D6873=\"\",\"\",'Generated list'!D6873)","v":""}]
[null,{"$f":"IF('Generated list'!B6874=\"\",\"\",'Generated list'!B6874)","v":""},{"$f":"IF('Generated list'!C6874=\"\",\"\",'Generated list'!C6874)","v":""},{"$f":"IF('Generated list'!D6874=\"\",\"\",'Generated list'!D6874)","v":""}]
[null,{"$f":"IF('Generated list'!B6875=\"\",\"\",'Generated list'!B6875)","v":""},{"$f":"IF('Generated list'!C6875=\"\",\"\",'Generated list'!C6875)","v":""},{"$f":"IF('Generated list'!D6875=\"\",\"\",'Generated list'!D6875)","v":""}]
[null,{"$f":"IF('Generated list'!B6876=\"\",\"\",'Generated list'!B6876)","v":""},{"$f":"IF('Generated list'!C6876=\"\",\"\",'Generated list'!C6876)","v":""},{"$f":"IF('Generated list'!D6876=\"\",\"\",'Generated list'!D6876)","v":""}]
[null,{"$f":"IF('Generated list'!B6877=\"\",\"\",'Generated list'!B6877)","v":""},{"$f":"IF('Generated list'!C6877=\"\",\"\",'Generated list'!C6877)","v":""},{"$f":"IF('Generated list'!D6877=\"\",\"\",'Generated list'!D6877)","v":""}]
[null,{"$f":"IF('Generated list'!B6878=\"\",\"\",'Generated list'!B6878)","v":""},{"$f":"IF('Generated list'!C6878=\"\",\"\",'Generated list'!C6878)","v":""},{"$f":"IF('Generated list'!D6878=\"\",\"\",'Generated list'!D6878)","v":""}]
[null,{"$f":"IF('Generated list'!B6879=\"\",\"\",'Generated list'!B6879)","v":""},{"$f":"IF('Generated list'!C6879=\"\",\"\",'Generated list'!C6879)","v":""},{"$f":"IF('Generated list'!D6879=\"\",\"\",'Generated list'!D6879)","v":""}]
[null,{"$f":"IF('Generated list'!B6880=\"\",\"\",'Generated list'!B6880)","v":""},{"$f":"IF('Generated list'!C6880=\"\",\"\",'Generated list'!C6880)","v":""},{"$f":"IF('Generated list'!D6880=\"\",\"\",'Generated list'!D6880)","v":""}]
[null,{"$f":"IF('Generated list'!B6881=\"\",\"\",'Generated list'!B6881)","v":""},{"$f":"IF('Generated list'!C6881=\"\",\"\",'Generated list'!C6881)","v":""},{"$f":"IF('Generated list'!D6881=\"\",\"\",'Generated list'!D6881)","v":""}]
[null,{"$f":"IF('Generated list'!B6882=\"\",\"\",'Generated list'!B6882)","v":""},{"$f":"IF('Generated list'!C6882=\"\",\"\",'Generated list'!C6882)","v":""},{"$f":"IF('Generated list'!D6882=\"\",\"\",'Generated list'!D6882)","v":""}]
[null,{"$f":"IF('Generated list'!B6883=\"\",\"\",'Generated list'!B6883)","v":""},{"$f":"IF('Generated list'!C6883=\"\",\"\",'Generated list'!C6883)","v":""},{"$f":"IF('Generated list'!D6883=\"\",\"\",'Generated list'!D6883)","v":""}]
[null,{"$f":"IF('Generated list'!B6884=\"\",\"\",'Generated list'!B6884)","v":""},{"$f":"IF('Generated list'!C6884=\"\",\"\",'Generated list'!C6884)","v":""},{"$f":"IF('Generated list'!D6884=\"\",\"\",'Generated list'!D6884)","v":""}]
[null,{"$f":"IF('Generated list'!B6885=\"\",\"\",'Generated list'!B6885)","v":""},{"$f":"IF('Generated list'!C6885=\"\",\"\",'Generated list'!C6885)","v":""},{"$f":"IF('Generated list'!D6885=\"\",\"\",'Generated list'!D6885)","v":""}]
[null,{"$f":"IF('Generated list'!B6886=\"\",\"\",'Generated list'!B6886)","v":""},{"$f":"IF('Generated list'!C6886=\"\",\"\",'Generated list'!C6886)","v":""},{"$f":"IF('Generated list'!D6886=\"\",\"\",'Generated list'!D6886)","v":""}]
[null,{"$f":"IF('Generated list'!B6887=\"\",\"\",'Generated list'!B6887)","v":""},{"$f":"IF('Generated list'!C6887=\"\",\"\",'Generated list'!C6887)","v":""},{"$f":"IF('Generated list'!D6887=\"\",\"\",'Generated list'!D6887)","v":""}]
[null,{"$f":"IF('Generated list'!B6888=\"\",\"\",'Generated list'!B6888)","v":""},{"$f":"IF('Generated list'!C6888=\"\",\"\",'Generated list'!C6888)","v":""},{"$f":"IF('Generated list'!D6888=\"\",\"\",'Generated list'!D6888)","v":""}]
[null,{"$f":"IF('Generated list'!B6889=\"\",\"\",'Generated list'!B6889)","v":""},{"$f":"IF('Generated list'!C6889=\"\",\"\",'Generated list'!C6889)","v":""},{"$f":"IF('Generated list'!D6889=\"\",\"\",'Generated list'!D6889)","v":""}]
[null,{"$f":"IF('Generated list'!B6890=\"\",\"\",'Generated list'!B6890)","v":""},{"$f":"IF('Generated list'!C6890=\"\",\"\",'Generated list'!C6890)","v":""},{"$f":"IF('Generated list'!D6890=\"\",\"\",'Generated list'!D6890)","v":""}]
[null,{"$f":"IF('Generated list'!B6891=\"\",\"\",'Generated list'!B6891)","v":""},{"$f":"IF('Generated list'!C6891=\"\",\"\",'Generated list'!C6891)","v":""},{"$f":"IF('Generated list'!D6891=\"\",\"\",'Generated list'!D6891)","v":""}]
[null,{"$f":"IF('Generated list'!B6892=\"\",\"\",'Generated list'!B6892)","v":""},{"$f":"IF('Generated list'!C6892=\"\",\"\",'Generated list'!C6892)","v":""},{"$f":"IF('Generated list'!D6892=\"\",\"\",'Generated list'!D6892)","v":""}]
[null,{"$f":"IF('Generated list'!B6893=\"\",\"\",'Generated list'!B6893)","v":""},{"$f":"IF('Generated list'!C6893=\"\",\"\",'Generated list'!C6893)","v":""},{"$f":"IF('Generated list'!D6893=\"\",\"\",'Generated list'!D6893)","v":""}]
[null,{"$f":"IF('Generated list'!B6894=\"\",\"\",'Generated list'!B6894)","v":""},{"$f":"IF('Generated list'!C6894=\"\",\"\",'Generated list'!C6894)","v":""},{"$f":"IF('Generated list'!D6894=\"\",\"\",'Generated list'!D6894)","v":""}]
[null,{"$f":"IF('Generated list'!B6895=\"\",\"\",'Generated list'!B6895)","v":""},{"$f":"IF('Generated list'!C6895=\"\",\"\",'Generated list'!C6895)","v":""},{"$f":"IF('Generated list'!D6895=\"\",\"\",'Generated list'!D6895)","v":""}]
[null,{"$f":"IF('Generated list'!B6896=\"\",\"\",'Generated list'!B6896)","v":""},{"$f":"IF('Generated list'!C6896=\"\",\"\",'Generated list'!C6896)","v":""},{"$f":"IF('Generated list'!D6896=\"\",\"\",'Generated list'!D6896)","v":""}]
[null,{"$f":"IF('Generated list'!B6897=\"\",\"\",'Generated list'!B6897)","v":""},{"$f":"IF('Generated list'!C6897=\"\",\"\",'Generated list'!C6897)","v":""},{"$f":"IF('Generated list'!D6897=\"\",\"\",'Generated list'!D6897)","v":""}]
[null,{"$f":"IF('Generated list'!B6898=\"\",\"\",'Generated list'!B6898)","v":""},{"$f":"IF('Generated list'!C6898=\"\",\"\",'Generated list'!C6898)","v":""},{"$f":"IF('Generated list'!D6898=\"\",\"\",'Generated list'!D6898)","v":""}]
[null,{"$f":"IF('Generated list'!B6899=\"\",\"\",'Generated list'!B6899)","v":""},{"$f":"IF('Generated list'!C6899=\"\",\"\",'Generated list'!C6899)","v":""},{"$f":"IF('Generated list'!D6899=\"\",\"\",'Generated list'!D6899)","v":""}]
[null,{"$f":"IF('Generated list'!B6900=\"\",\"\",'Generated list'!B6900)","v":""},{"$f":"IF('Generated list'!C6900=\"\",\"\",'Generated list'!C6900)","v":""},{"$f":"IF('Generated list'!D6900=\"\",\"\",'Generated list'!D6900)","v":""}]
[null,{"$f":"IF('Generated list'!B6901=\"\",\"\",'Generated list'!B6901)","v":""},{"$f":"IF('Generated list'!C6901=\"\",\"\",'Generated list'!C6901)","v":""},{"$f":"IF('Generated list'!D6901=\"\",\"\",'Generated list'!D6901)","v":""}]
[null,{"$f":"IF('Generated list'!B6902=\"\",\"\",'Generated list'!B6902)","v":""},{"$f":"IF('Generated list'!C6902=\"\",\"\",'Generated list'!C6902)","v":""},{"$f":"IF('Generated list'!D6902=\"\",\"\",'Generated list'!D6902)","v":""}]
[null,{"$f":"IF('Generated list'!B6903=\"\",\"\",'Generated list'!B6903)","v":""},{"$f":"IF('Generated list'!C6903=\"\",\"\",'Generated list'!C6903)","v":""},{"$f":"IF('Generated list'!D6903=\"\",\"\",'Generated list'!D6903)","v":""}]
[null,{"$f":"IF('Generated list'!B6904=\"\",\"\",'Generated list'!B6904)","v":""},{"$f":"IF('Generated list'!C6904=\"\",\"\",'Generated list'!C6904)","v":""},{"$f":"IF('Generated list'!D6904=\"\",\"\",'Generated list'!D6904)","v":""}]
[null,{"$f":"IF('Generated list'!B6905=\"\",\"\",'Generated list'!B6905)","v":""},{"$f":"IF('Generated list'!C6905=\"\",\"\",'Generated list'!C6905)","v":""},{"$f":"IF('Generated list'!D6905=\"\",\"\",'Generated list'!D6905)","v":""}]
[null,{"$f":"IF('Generated list'!B6906=\"\",\"\",'Generated list'!B6906)","v":""},{"$f":"IF('Generated list'!C6906=\"\",\"\",'Generated list'!C6906)","v":""},{"$f":"IF('Generated list'!D6906=\"\",\"\",'Generated list'!D6906)","v":""}]
[null,{"$f":"IF('Generated list'!B6907=\"\",\"\",'Generated list'!B6907)","v":""},{"$f":"IF('Generated list'!C6907=\"\",\"\",'Generated list'!C6907)","v":""},{"$f":"IF('Generated list'!D6907=\"\",\"\",'Generated list'!D6907)","v":""}]
[null,{"$f":"IF('Generated list'!B6908=\"\",\"\",'Generated list'!B6908)","v":""},{"$f":"IF('Generated list'!C6908=\"\",\"\",'Generated list'!C6908)","v":""},{"$f":"IF('Generated list'!D6908=\"\",\"\",'Generated list'!D6908)","v":""}]
[null,{"$f":"IF('Generated list'!B6909=\"\",\"\",'Generated list'!B6909)","v":""},{"$f":"IF('Generated list'!C6909=\"\",\"\",'Generated list'!C6909)","v":""},{"$f":"IF('Generated list'!D6909=\"\",\"\",'Generated list'!D6909)","v":""}]
[null,{"$f":"IF('Generated list'!B6910=\"\",\"\",'Generated list'!B6910)","v":""},{"$f":"IF('Generated list'!C6910=\"\",\"\",'Generated list'!C6910)","v":""},{"$f":"IF('Generated list'!D6910=\"\",\"\",'Generated list'!D6910)","v":""}]
[null,{"$f":"IF('Generated list'!B6911=\"\",\"\",'Generated list'!B6911)","v":""},{"$f":"IF('Generated list'!C6911=\"\",\"\",'Generated list'!C6911)","v":""},{"$f":"IF('Generated list'!D6911=\"\",\"\",'Generated list'!D6911)","v":""}]
[null,{"$f":"IF('Generated list'!B6912=\"\",\"\",'Generated list'!B6912)","v":""},{"$f":"IF('Generated list'!C6912=\"\",\"\",'Generated list'!C6912)","v":""},{"$f":"IF('Generated list'!D6912=\"\",\"\",'Generated list'!D6912)","v":""}]
[null,{"$f":"IF('Generated list'!B6913=\"\",\"\",'Generated list'!B6913)","v":""},{"$f":"IF('Generated list'!C6913=\"\",\"\",'Generated list'!C6913)","v":""},{"$f":"IF('Generated list'!D6913=\"\",\"\",'Generated list'!D6913)","v":""}]
[null,{"$f":"IF('Generated list'!B6914=\"\",\"\",'Generated list'!B6914)","v":""},{"$f":"IF('Generated list'!C6914=\"\",\"\",'Generated list'!C6914)","v":""},{"$f":"IF('Generated list'!D6914=\"\",\"\",'Generated list'!D6914)","v":""}]
[null,{"$f":"IF('Generated list'!B6915=\"\",\"\",'Generated list'!B6915)","v":""},{"$f":"IF('Generated list'!C6915=\"\",\"\",'Generated list'!C6915)","v":""},{"$f":"IF('Generated list'!D6915=\"\",\"\",'Generated list'!D6915)","v":""}]
[null,{"$f":"IF('Generated list'!B6916=\"\",\"\",'Generated list'!B6916)","v":""},{"$f":"IF('Generated list'!C6916=\"\",\"\",'Generated list'!C6916)","v":""},{"$f":"IF('Generated list'!D6916=\"\",\"\",'Generated list'!D6916)","v":""}]
[null,{"$f":"IF('Generated list'!B6917=\"\",\"\",'Generated list'!B6917)","v":""},{"$f":"IF('Generated list'!C6917=\"\",\"\",'Generated list'!C6917)","v":""},{"$f":"IF('Generated list'!D6917=\"\",\"\",'Generated list'!D6917)","v":""}]
[null,{"$f":"IF('Generated list'!B6918=\"\",\"\",'Generated list'!B6918)","v":""},{"$f":"IF('Generated list'!C6918=\"\",\"\",'Generated list'!C6918)","v":""},{"$f":"IF('Generated list'!D6918=\"\",\"\",'Generated list'!D6918)","v":""}]
[null,{"$f":"IF('Generated list'!B6919=\"\",\"\",'Generated list'!B6919)","v":""},{"$f":"IF('Generated list'!C6919=\"\",\"\",'Generated list'!C6919)","v":""},{"$f":"IF('Generated list'!D6919=\"\",\"\",'Generated list'!D6919)","v":""}]
[null,{"$f":"IF('Generated list'!B6920=\"\",\"\",'Generated list'!B6920)","v":""},{"$f":"IF('Generated list'!C6920=\"\",\"\",'Generated list'!C6920)","v":""},{"$f":"IF('Generated list'!D6920=\"\",\"\",'Generated list'!D6920)","v":""}]
[null,{"$f":"IF('Generated list'!B6921=\"\",\"\",'Generated list'!B6921)","v":""},{"$f":"IF('Generated list'!C6921=\"\",\"\",'Generated list'!C6921)","v":""},{"$f":"IF('Generated list'!D6921=\"\",\"\",'Generated list'!D6921)","v":""}]
[null,{"$f":"IF('Generated list'!B6922=\"\",\"\",'Generated list'!B6922)","v":""},{"$f":"IF('Generated list'!C6922=\"\",\"\",'Generated list'!C6922)","v":""},{"$f":"IF('Generated list'!D6922=\"\",\"\",'Generated list'!D6922)","v":""}]
[null,{"$f":"IF('Generated list'!B6923=\"\",\"\",'Generated list'!B6923)","v":""},{"$f":"IF('Generated list'!C6923=\"\",\"\",'Generated list'!C6923)","v":""},{"$f":"IF('Generated list'!D6923=\"\",\"\",'Generated list'!D6923)","v":""}]
[null,{"$f":"IF('Generated list'!B6924=\"\",\"\",'Generated list'!B6924)","v":""},{"$f":"IF('Generated list'!C6924=\"\",\"\",'Generated list'!C6924)","v":""},{"$f":"IF('Generated list'!D6924=\"\",\"\",'Generated list'!D6924)","v":""}]
[null,{"$f":"IF('Generated list'!B6925=\"\",\"\",'Generated list'!B6925)","v":""},{"$f":"IF('Generated list'!C6925=\"\",\"\",'Generated list'!C6925)","v":""},{"$f":"IF('Generated list'!D6925=\"\",\"\",'Generated list'!D6925)","v":""}]
[null,{"$f":"IF('Generated list'!B6926=\"\",\"\",'Generated list'!B6926)","v":""},{"$f":"IF('Generated list'!C6926=\"\",\"\",'Generated list'!C6926)","v":""},{"$f":"IF('Generated list'!D6926=\"\",\"\",'Generated list'!D6926)","v":""}]
[null,{"$f":"IF('Generated list'!B6927=\"\",\"\",'Generated list'!B6927)","v":""},{"$f":"IF('Generated list'!C6927=\"\",\"\",'Generated list'!C6927)","v":""},{"$f":"IF('Generated list'!D6927=\"\",\"\",'Generated list'!D6927)","v":""}]
[null,{"$f":"IF('Generated list'!B6928=\"\",\"\",'Generated list'!B6928)","v":""},{"$f":"IF('Generated list'!C6928=\"\",\"\",'Generated list'!C6928)","v":""},{"$f":"IF('Generated list'!D6928=\"\",\"\",'Generated list'!D6928)","v":""}]
[null,{"$f":"IF('Generated list'!B6929=\"\",\"\",'Generated list'!B6929)","v":""},{"$f":"IF('Generated list'!C6929=\"\",\"\",'Generated list'!C6929)","v":""},{"$f":"IF('Generated list'!D6929=\"\",\"\",'Generated list'!D6929)","v":""}]
[null,{"$f":"IF('Generated list'!B6930=\"\",\"\",'Generated list'!B6930)","v":""},{"$f":"IF('Generated list'!C6930=\"\",\"\",'Generated list'!C6930)","v":""},{"$f":"IF('Generated list'!D6930=\"\",\"\",'Generated list'!D6930)","v":""}]
[null,{"$f":"IF('Generated list'!B6931=\"\",\"\",'Generated list'!B6931)","v":""},{"$f":"IF('Generated list'!C6931=\"\",\"\",'Generated list'!C6931)","v":""},{"$f":"IF('Generated list'!D6931=\"\",\"\",'Generated list'!D6931)","v":""}]
[null,{"$f":"IF('Generated list'!B6932=\"\",\"\",'Generated list'!B6932)","v":""},{"$f":"IF('Generated list'!C6932=\"\",\"\",'Generated list'!C6932)","v":""},{"$f":"IF('Generated list'!D6932=\"\",\"\",'Generated list'!D6932)","v":""}]
[null,{"$f":"IF('Generated list'!B6933=\"\",\"\",'Generated list'!B6933)","v":""},{"$f":"IF('Generated list'!C6933=\"\",\"\",'Generated list'!C6933)","v":""},{"$f":"IF('Generated list'!D6933=\"\",\"\",'Generated list'!D6933)","v":""}]
[null,{"$f":"IF('Generated list'!B6934=\"\",\"\",'Generated list'!B6934)","v":""},{"$f":"IF('Generated list'!C6934=\"\",\"\",'Generated list'!C6934)","v":""},{"$f":"IF('Generated list'!D6934=\"\",\"\",'Generated list'!D6934)","v":""}]
[null,{"$f":"IF('Generated list'!B6935=\"\",\"\",'Generated list'!B6935)","v":""},{"$f":"IF('Generated list'!C6935=\"\",\"\",'Generated list'!C6935)","v":""},{"$f":"IF('Generated list'!D6935=\"\",\"\",'Generated list'!D6935)","v":""}]
[null,{"$f":"IF('Generated list'!B6936=\"\",\"\",'Generated list'!B6936)","v":""},{"$f":"IF('Generated list'!C6936=\"\",\"\",'Generated list'!C6936)","v":""},{"$f":"IF('Generated list'!D6936=\"\",\"\",'Generated list'!D6936)","v":""}]
[null,{"$f":"IF('Generated list'!B6937=\"\",\"\",'Generated list'!B6937)","v":""},{"$f":"IF('Generated list'!C6937=\"\",\"\",'Generated list'!C6937)","v":""},{"$f":"IF('Generated list'!D6937=\"\",\"\",'Generated list'!D6937)","v":""}]
[null,{"$f":"IF('Generated list'!B6938=\"\",\"\",'Generated list'!B6938)","v":""},{"$f":"IF('Generated list'!C6938=\"\",\"\",'Generated list'!C6938)","v":""},{"$f":"IF('Generated list'!D6938=\"\",\"\",'Generated list'!D6938)","v":""}]
[null,{"$f":"IF('Generated list'!B6939=\"\",\"\",'Generated list'!B6939)","v":""},{"$f":"IF('Generated list'!C6939=\"\",\"\",'Generated list'!C6939)","v":""},{"$f":"IF('Generated list'!D6939=\"\",\"\",'Generated list'!D6939)","v":""}]
[null,{"$f":"IF('Generated list'!B6940=\"\",\"\",'Generated list'!B6940)","v":""},{"$f":"IF('Generated list'!C6940=\"\",\"\",'Generated list'!C6940)","v":""},{"$f":"IF('Generated list'!D6940=\"\",\"\",'Generated list'!D6940)","v":""}]
[null,{"$f":"IF('Generated list'!B6941=\"\",\"\",'Generated list'!B6941)","v":""},{"$f":"IF('Generated list'!C6941=\"\",\"\",'Generated list'!C6941)","v":""},{"$f":"IF('Generated list'!D6941=\"\",\"\",'Generated list'!D6941)","v":""}]
[null,{"$f":"IF('Generated list'!B6942=\"\",\"\",'Generated list'!B6942)","v":""},{"$f":"IF('Generated list'!C6942=\"\",\"\",'Generated list'!C6942)","v":""},{"$f":"IF('Generated list'!D6942=\"\",\"\",'Generated list'!D6942)","v":""}]
[null,{"$f":"IF('Generated list'!B6943=\"\",\"\",'Generated list'!B6943)","v":""},{"$f":"IF('Generated list'!C6943=\"\",\"\",'Generated list'!C6943)","v":""},{"$f":"IF('Generated list'!D6943=\"\",\"\",'Generated list'!D6943)","v":""}]
[null,{"$f":"IF('Generated list'!B6944=\"\",\"\",'Generated list'!B6944)","v":""},{"$f":"IF('Generated list'!C6944=\"\",\"\",'Generated list'!C6944)","v":""},{"$f":"IF('Generated list'!D6944=\"\",\"\",'Generated list'!D6944)","v":""}]
[null,{"$f":"IF('Generated list'!B6945=\"\",\"\",'Generated list'!B6945)","v":""},{"$f":"IF('Generated list'!C6945=\"\",\"\",'Generated list'!C6945)","v":""},{"$f":"IF('Generated list'!D6945=\"\",\"\",'Generated list'!D6945)","v":""}]
[null,{"$f":"IF('Generated list'!B6946=\"\",\"\",'Generated list'!B6946)","v":""},{"$f":"IF('Generated list'!C6946=\"\",\"\",'Generated list'!C6946)","v":""},{"$f":"IF('Generated list'!D6946=\"\",\"\",'Generated list'!D6946)","v":""}]
[null,{"$f":"IF('Generated list'!B6947=\"\",\"\",'Generated list'!B6947)","v":""},{"$f":"IF('Generated list'!C6947=\"\",\"\",'Generated list'!C6947)","v":""},{"$f":"IF('Generated list'!D6947=\"\",\"\",'Generated list'!D6947)","v":""}]
[null,{"$f":"IF('Generated list'!B6948=\"\",\"\",'Generated list'!B6948)","v":""},{"$f":"IF('Generated list'!C6948=\"\",\"\",'Generated list'!C6948)","v":""},{"$f":"IF('Generated list'!D6948=\"\",\"\",'Generated list'!D6948)","v":""}]
[null,{"$f":"IF('Generated list'!B6949=\"\",\"\",'Generated list'!B6949)","v":""},{"$f":"IF('Generated list'!C6949=\"\",\"\",'Generated list'!C6949)","v":""},{"$f":"IF('Generated list'!D6949=\"\",\"\",'Generated list'!D6949)","v":""}]
[null,{"$f":"IF('Generated list'!B6950=\"\",\"\",'Generated list'!B6950)","v":""},{"$f":"IF('Generated list'!C6950=\"\",\"\",'Generated list'!C6950)","v":""},{"$f":"IF('Generated list'!D6950=\"\",\"\",'Generated list'!D6950)","v":""}]
[null,{"$f":"IF('Generated list'!B6951=\"\",\"\",'Generated list'!B6951)","v":""},{"$f":"IF('Generated list'!C6951=\"\",\"\",'Generated list'!C6951)","v":""},{"$f":"IF('Generated list'!D6951=\"\",\"\",'Generated list'!D6951)","v":""}]
[null,{"$f":"IF('Generated list'!B6952=\"\",\"\",'Generated list'!B6952)","v":""},{"$f":"IF('Generated list'!C6952=\"\",\"\",'Generated list'!C6952)","v":""},{"$f":"IF('Generated list'!D6952=\"\",\"\",'Generated list'!D6952)","v":""}]
[null,{"$f":"IF('Generated list'!B6953=\"\",\"\",'Generated list'!B6953)","v":""},{"$f":"IF('Generated list'!C6953=\"\",\"\",'Generated list'!C6953)","v":""},{"$f":"IF('Generated list'!D6953=\"\",\"\",'Generated list'!D6953)","v":""}]
[null,{"$f":"IF('Generated list'!B6954=\"\",\"\",'Generated list'!B6954)","v":""},{"$f":"IF('Generated list'!C6954=\"\",\"\",'Generated list'!C6954)","v":""},{"$f":"IF('Generated list'!D6954=\"\",\"\",'Generated list'!D6954)","v":""}]
[null,{"$f":"IF('Generated list'!B6955=\"\",\"\",'Generated list'!B6955)","v":""},{"$f":"IF('Generated list'!C6955=\"\",\"\",'Generated list'!C6955)","v":""},{"$f":"IF('Generated list'!D6955=\"\",\"\",'Generated list'!D6955)","v":""}]
[null,{"$f":"IF('Generated list'!B6956=\"\",\"\",'Generated list'!B6956)","v":""},{"$f":"IF('Generated list'!C6956=\"\",\"\",'Generated list'!C6956)","v":""},{"$f":"IF('Generated list'!D6956=\"\",\"\",'Generated list'!D6956)","v":""}]
[null,{"$f":"IF('Generated list'!B6957=\"\",\"\",'Generated list'!B6957)","v":""},{"$f":"IF('Generated list'!C6957=\"\",\"\",'Generated list'!C6957)","v":""},{"$f":"IF('Generated list'!D6957=\"\",\"\",'Generated list'!D6957)","v":""}]
[null,{"$f":"IF('Generated list'!B6958=\"\",\"\",'Generated list'!B6958)","v":""},{"$f":"IF('Generated list'!C6958=\"\",\"\",'Generated list'!C6958)","v":""},{"$f":"IF('Generated list'!D6958=\"\",\"\",'Generated list'!D6958)","v":""}]
[null,{"$f":"IF('Generated list'!B6959=\"\",\"\",'Generated list'!B6959)","v":""},{"$f":"IF('Generated list'!C6959=\"\",\"\",'Generated list'!C6959)","v":""},{"$f":"IF('Generated list'!D6959=\"\",\"\",'Generated list'!D6959)","v":""}]
[null,{"$f":"IF('Generated list'!B6960=\"\",\"\",'Generated list'!B6960)","v":""},{"$f":"IF('Generated list'!C6960=\"\",\"\",'Generated list'!C6960)","v":""},{"$f":"IF('Generated list'!D6960=\"\",\"\",'Generated list'!D6960)","v":""}]
[null,{"$f":"IF('Generated list'!B6961=\"\",\"\",'Generated list'!B6961)","v":""},{"$f":"IF('Generated list'!C6961=\"\",\"\",'Generated list'!C6961)","v":""},{"$f":"IF('Generated list'!D6961=\"\",\"\",'Generated list'!D6961)","v":""}]
[null,{"$f":"IF('Generated list'!B6962=\"\",\"\",'Generated list'!B6962)","v":""},{"$f":"IF('Generated list'!C6962=\"\",\"\",'Generated list'!C6962)","v":""},{"$f":"IF('Generated list'!D6962=\"\",\"\",'Generated list'!D6962)","v":""}]
[null,{"$f":"IF('Generated list'!B6963=\"\",\"\",'Generated list'!B6963)","v":""},{"$f":"IF('Generated list'!C6963=\"\",\"\",'Generated list'!C6963)","v":""},{"$f":"IF('Generated list'!D6963=\"\",\"\",'Generated list'!D6963)","v":""}]
[null,{"$f":"IF('Generated list'!B6964=\"\",\"\",'Generated list'!B6964)","v":""},{"$f":"IF('Generated list'!C6964=\"\",\"\",'Generated list'!C6964)","v":""},{"$f":"IF('Generated list'!D6964=\"\",\"\",'Generated list'!D6964)","v":""}]
[null,{"$f":"IF('Generated list'!B6965=\"\",\"\",'Generated list'!B6965)","v":""},{"$f":"IF('Generated list'!C6965=\"\",\"\",'Generated list'!C6965)","v":""},{"$f":"IF('Generated list'!D6965=\"\",\"\",'Generated list'!D6965)","v":""}]
[null,{"$f":"IF('Generated list'!B6966=\"\",\"\",'Generated list'!B6966)","v":""},{"$f":"IF('Generated list'!C6966=\"\",\"\",'Generated list'!C6966)","v":""},{"$f":"IF('Generated list'!D6966=\"\",\"\",'Generated list'!D6966)","v":""}]
[null,{"$f":"IF('Generated list'!B6967=\"\",\"\",'Generated list'!B6967)","v":""},{"$f":"IF('Generated list'!C6967=\"\",\"\",'Generated list'!C6967)","v":""},{"$f":"IF('Generated list'!D6967=\"\",\"\",'Generated list'!D6967)","v":""}]
[null,{"$f":"IF('Generated list'!B6968=\"\",\"\",'Generated list'!B6968)","v":""},{"$f":"IF('Generated list'!C6968=\"\",\"\",'Generated list'!C6968)","v":""},{"$f":"IF('Generated list'!D6968=\"\",\"\",'Generated list'!D6968)","v":""}]
[null,{"$f":"IF('Generated list'!B6969=\"\",\"\",'Generated list'!B6969)","v":""},{"$f":"IF('Generated list'!C6969=\"\",\"\",'Generated list'!C6969)","v":""},{"$f":"IF('Generated list'!D6969=\"\",\"\",'Generated list'!D6969)","v":""}]
[null,{"$f":"IF('Generated list'!B6970=\"\",\"\",'Generated list'!B6970)","v":""},{"$f":"IF('Generated list'!C6970=\"\",\"\",'Generated list'!C6970)","v":""},{"$f":"IF('Generated list'!D6970=\"\",\"\",'Generated list'!D6970)","v":""}]
[null,{"$f":"IF('Generated list'!B6971=\"\",\"\",'Generated list'!B6971)","v":""},{"$f":"IF('Generated list'!C6971=\"\",\"\",'Generated list'!C6971)","v":""},{"$f":"IF('Generated list'!D6971=\"\",\"\",'Generated list'!D6971)","v":""}]
[null,{"$f":"IF('Generated list'!B6972=\"\",\"\",'Generated list'!B6972)","v":""},{"$f":"IF('Generated list'!C6972=\"\",\"\",'Generated list'!C6972)","v":""},{"$f":"IF('Generated list'!D6972=\"\",\"\",'Generated list'!D6972)","v":""}]
[null,{"$f":"IF('Generated list'!B6973=\"\",\"\",'Generated list'!B6973)","v":""},{"$f":"IF('Generated list'!C6973=\"\",\"\",'Generated list'!C6973)","v":""},{"$f":"IF('Generated list'!D6973=\"\",\"\",'Generated list'!D6973)","v":""}]
[null,{"$f":"IF('Generated list'!B6974=\"\",\"\",'Generated list'!B6974)","v":""},{"$f":"IF('Generated list'!C6974=\"\",\"\",'Generated list'!C6974)","v":""},{"$f":"IF('Generated list'!D6974=\"\",\"\",'Generated list'!D6974)","v":""}]
[null,{"$f":"IF('Generated list'!B6975=\"\",\"\",'Generated list'!B6975)","v":""},{"$f":"IF('Generated list'!C6975=\"\",\"\",'Generated list'!C6975)","v":""},{"$f":"IF('Generated list'!D6975=\"\",\"\",'Generated list'!D6975)","v":""}]
[null,{"$f":"IF('Generated list'!B6976=\"\",\"\",'Generated list'!B6976)","v":""},{"$f":"IF('Generated list'!C6976=\"\",\"\",'Generated list'!C6976)","v":""},{"$f":"IF('Generated list'!D6976=\"\",\"\",'Generated list'!D6976)","v":""}]
[null,{"$f":"IF('Generated list'!B6977=\"\",\"\",'Generated list'!B6977)","v":""},{"$f":"IF('Generated list'!C6977=\"\",\"\",'Generated list'!C6977)","v":""},{"$f":"IF('Generated list'!D6977=\"\",\"\",'Generated list'!D6977)","v":""}]
[null,{"$f":"IF('Generated list'!B6978=\"\",\"\",'Generated list'!B6978)","v":""},{"$f":"IF('Generated list'!C6978=\"\",\"\",'Generated list'!C6978)","v":""},{"$f":"IF('Generated list'!D6978=\"\",\"\",'Generated list'!D6978)","v":""}]
[null,{"$f":"IF('Generated list'!B6979=\"\",\"\",'Generated list'!B6979)","v":""},{"$f":"IF('Generated list'!C6979=\"\",\"\",'Generated list'!C6979)","v":""},{"$f":"IF('Generated list'!D6979=\"\",\"\",'Generated list'!D6979)","v":""}]
[null,{"$f":"IF('Generated list'!B6980=\"\",\"\",'Generated list'!B6980)","v":""},{"$f":"IF('Generated list'!C6980=\"\",\"\",'Generated list'!C6980)","v":""},{"$f":"IF('Generated list'!D6980=\"\",\"\",'Generated list'!D6980)","v":""}]
[null,{"$f":"IF('Generated list'!B6981=\"\",\"\",'Generated list'!B6981)","v":""},{"$f":"IF('Generated list'!C6981=\"\",\"\",'Generated list'!C6981)","v":""},{"$f":"IF('Generated list'!D6981=\"\",\"\",'Generated list'!D6981)","v":""}]
[null,{"$f":"IF('Generated list'!B6982=\"\",\"\",'Generated list'!B6982)","v":""},{"$f":"IF('Generated list'!C6982=\"\",\"\",'Generated list'!C6982)","v":""},{"$f":"IF('Generated list'!D6982=\"\",\"\",'Generated list'!D6982)","v":""}]
[null,{"$f":"IF('Generated list'!B6983=\"\",\"\",'Generated list'!B6983)","v":""},{"$f":"IF('Generated list'!C6983=\"\",\"\",'Generated list'!C6983)","v":""},{"$f":"IF('Generated list'!D6983=\"\",\"\",'Generated list'!D6983)","v":""}]
[null,{"$f":"IF('Generated list'!B6984=\"\",\"\",'Generated list'!B6984)","v":""},{"$f":"IF('Generated list'!C6984=\"\",\"\",'Generated list'!C6984)","v":""},{"$f":"IF('Generated list'!D6984=\"\",\"\",'Generated list'!D6984)","v":""}]
[null,{"$f":"IF('Generated list'!B6985=\"\",\"\",'Generated list'!B6985)","v":""},{"$f":"IF('Generated list'!C6985=\"\",\"\",'Generated list'!C6985)","v":""},{"$f":"IF('Generated list'!D6985=\"\",\"\",'Generated list'!D6985)","v":""}]
[null,{"$f":"IF('Generated list'!B6986=\"\",\"\",'Generated list'!B6986)","v":""},{"$f":"IF('Generated list'!C6986=\"\",\"\",'Generated list'!C6986)","v":""},{"$f":"IF('Generated list'!D6986=\"\",\"\",'Generated list'!D6986)","v":""}]
[null,{"$f":"IF('Generated list'!B6987=\"\",\"\",'Generated list'!B6987)","v":""},{"$f":"IF('Generated list'!C6987=\"\",\"\",'Generated list'!C6987)","v":""},{"$f":"IF('Generated list'!D6987=\"\",\"\",'Generated list'!D6987)","v":""}]
[null,{"$f":"IF('Generated list'!B6988=\"\",\"\",'Generated list'!B6988)","v":""},{"$f":"IF('Generated list'!C6988=\"\",\"\",'Generated list'!C6988)","v":""},{"$f":"IF('Generated list'!D6988=\"\",\"\",'Generated list'!D6988)","v":""}]
[null,{"$f":"IF('Generated list'!B6989=\"\",\"\",'Generated list'!B6989)","v":""},{"$f":"IF('Generated list'!C6989=\"\",\"\",'Generated list'!C6989)","v":""},{"$f":"IF('Generated list'!D6989=\"\",\"\",'Generated list'!D6989)","v":""}]
[null,{"$f":"IF('Generated list'!B6990=\"\",\"\",'Generated list'!B6990)","v":""},{"$f":"IF('Generated list'!C6990=\"\",\"\",'Generated list'!C6990)","v":""},{"$f":"IF('Generated list'!D6990=\"\",\"\",'Generated list'!D6990)","v":""}]
[null,{"$f":"IF('Generated list'!B6991=\"\",\"\",'Generated list'!B6991)","v":""},{"$f":"IF('Generated list'!C6991=\"\",\"\",'Generated list'!C6991)","v":""},{"$f":"IF('Generated list'!D6991=\"\",\"\",'Generated list'!D6991)","v":""}]
[null,{"$f":"IF('Generated list'!B6992=\"\",\"\",'Generated list'!B6992)","v":""},{"$f":"IF('Generated list'!C6992=\"\",\"\",'Generated list'!C6992)","v":""},{"$f":"IF('Generated list'!D6992=\"\",\"\",'Generated list'!D6992)","v":""}]
[null,{"$f":"IF('Generated list'!B6993=\"\",\"\",'Generated list'!B6993)","v":""},{"$f":"IF('Generated list'!C6993=\"\",\"\",'Generated list'!C6993)","v":""},{"$f":"IF('Generated list'!D6993=\"\",\"\",'Generated list'!D6993)","v":""}]
[null,{"$f":"IF('Generated list'!B6994=\"\",\"\",'Generated list'!B6994)","v":""},{"$f":"IF('Generated list'!C6994=\"\",\"\",'Generated list'!C6994)","v":""},{"$f":"IF('Generated list'!D6994=\"\",\"\",'Generated list'!D6994)","v":""}]
[null,{"$f":"IF('Generated list'!B6995=\"\",\"\",'Generated list'!B6995)","v":""},{"$f":"IF('Generated list'!C6995=\"\",\"\",'Generated list'!C6995)","v":""},{"$f":"IF('Generated list'!D6995=\"\",\"\",'Generated list'!D6995)","v":""}]
[null,{"$f":"IF('Generated list'!B6996=\"\",\"\",'Generated list'!B6996)","v":""},{"$f":"IF('Generated list'!C6996=\"\",\"\",'Generated list'!C6996)","v":""},{"$f":"IF('Generated list'!D6996=\"\",\"\",'Generated list'!D6996)","v":""}]
[null,{"$f":"IF('Generated list'!B6997=\"\",\"\",'Generated list'!B6997)","v":""},{"$f":"IF('Generated list'!C6997=\"\",\"\",'Generated list'!C6997)","v":""},{"$f":"IF('Generated list'!D6997=\"\",\"\",'Generated list'!D6997)","v":""}]
[null,{"$f":"IF('Generated list'!B6998=\"\",\"\",'Generated list'!B6998)","v":""},{"$f":"IF('Generated list'!C6998=\"\",\"\",'Generated list'!C6998)","v":""},{"$f":"IF('Generated list'!D6998=\"\",\"\",'Generated list'!D6998)","v":""}]
[null,{"$f":"IF('Generated list'!B6999=\"\",\"\",'Generated list'!B6999)","v":""},{"$f":"IF('Generated list'!C6999=\"\",\"\",'Generated list'!C6999)","v":""},{"$f":"IF('Generated list'!D6999=\"\",\"\",'Generated list'!D6999)","v":""}]
[null,{"$f":"IF('Generated list'!B7000=\"\",\"\",'Generated list'!B7000)","v":""},{"$f":"IF('Generated list'!C7000=\"\",\"\",'Generated list'!C7000)","v":""},{"$f":"IF('Generated list'!D7000=\"\",\"\",'Generated list'!D7000)","v":""}]
[null,{"$f":"IF('Generated list'!B7001=\"\",\"\",'Generated list'!B7001)","v":""},{"$f":"IF('Generated list'!C7001=\"\",\"\",'Generated list'!C7001)","v":""},{"$f":"IF('Generated list'!D7001=\"\",\"\",'Generated list'!D7001)","v":""}]
[null,{"$f":"IF('Generated list'!B7002=\"\",\"\",'Generated list'!B7002)","v":""},{"$f":"IF('Generated list'!C7002=\"\",\"\",'Generated list'!C7002)","v":""},{"$f":"IF('Generated list'!D7002=\"\",\"\",'Generated list'!D7002)","v":""}]
[null,{"$f":"IF('Generated list'!B7003=\"\",\"\",'Generated list'!B7003)","v":""},{"$f":"IF('Generated list'!C7003=\"\",\"\",'Generated list'!C7003)","v":""},{"$f":"IF('Generated list'!D7003=\"\",\"\",'Generated list'!D7003)","v":""}]
[null,{"$f":"IF('Generated list'!B7004=\"\",\"\",'Generated list'!B7004)","v":""},{"$f":"IF('Generated list'!C7004=\"\",\"\",'Generated list'!C7004)","v":""},{"$f":"IF('Generated list'!D7004=\"\",\"\",'Generated list'!D7004)","v":""}]
[null,{"$f":"IF('Generated list'!B7005=\"\",\"\",'Generated list'!B7005)","v":""},{"$f":"IF('Generated list'!C7005=\"\",\"\",'Generated list'!C7005)","v":""},{"$f":"IF('Generated list'!D7005=\"\",\"\",'Generated list'!D7005)","v":""}]
[null,{"$f":"IF('Generated list'!B7006=\"\",\"\",'Generated list'!B7006)","v":""},{"$f":"IF('Generated list'!C7006=\"\",\"\",'Generated list'!C7006)","v":""},{"$f":"IF('Generated list'!D7006=\"\",\"\",'Generated list'!D7006)","v":""}]
[null,{"$f":"IF('Generated list'!B7007=\"\",\"\",'Generated list'!B7007)","v":""},{"$f":"IF('Generated list'!C7007=\"\",\"\",'Generated list'!C7007)","v":""},{"$f":"IF('Generated list'!D7007=\"\",\"\",'Generated list'!D7007)","v":""}]
[null,{"$f":"IF('Generated list'!B7008=\"\",\"\",'Generated list'!B7008)","v":""},{"$f":"IF('Generated list'!C7008=\"\",\"\",'Generated list'!C7008)","v":""},{"$f":"IF('Generated list'!D7008=\"\",\"\",'Generated list'!D7008)","v":""}]
[null,{"$f":"IF('Generated list'!B7009=\"\",\"\",'Generated list'!B7009)","v":""},{"$f":"IF('Generated list'!C7009=\"\",\"\",'Generated list'!C7009)","v":""},{"$f":"IF('Generated list'!D7009=\"\",\"\",'Generated list'!D7009)","v":""}]
[null,{"$f":"IF('Generated list'!B7010=\"\",\"\",'Generated list'!B7010)","v":""},{"$f":"IF('Generated list'!C7010=\"\",\"\",'Generated list'!C7010)","v":""},{"$f":"IF('Generated list'!D7010=\"\",\"\",'Generated list'!D7010)","v":""}]
[null,{"$f":"IF('Generated list'!B7011=\"\",\"\",'Generated list'!B7011)","v":""},{"$f":"IF('Generated list'!C7011=\"\",\"\",'Generated list'!C7011)","v":""},{"$f":"IF('Generated list'!D7011=\"\",\"\",'Generated list'!D7011)","v":""}]
[null,{"$f":"IF('Generated list'!B7012=\"\",\"\",'Generated list'!B7012)","v":""},{"$f":"IF('Generated list'!C7012=\"\",\"\",'Generated list'!C7012)","v":""},{"$f":"IF('Generated list'!D7012=\"\",\"\",'Generated list'!D7012)","v":""}]
[null,{"$f":"IF('Generated list'!B7013=\"\",\"\",'Generated list'!B7013)","v":""},{"$f":"IF('Generated list'!C7013=\"\",\"\",'Generated list'!C7013)","v":""},{"$f":"IF('Generated list'!D7013=\"\",\"\",'Generated list'!D7013)","v":""}]
[null,{"$f":"IF('Generated list'!B7014=\"\",\"\",'Generated list'!B7014)","v":""},{"$f":"IF('Generated list'!C7014=\"\",\"\",'Generated list'!C7014)","v":""},{"$f":"IF('Generated list'!D7014=\"\",\"\",'Generated list'!D7014)","v":""}]
[null,{"$f":"IF('Generated list'!B7015=\"\",\"\",'Generated list'!B7015)","v":""},{"$f":"IF('Generated list'!C7015=\"\",\"\",'Generated list'!C7015)","v":""},{"$f":"IF('Generated list'!D7015=\"\",\"\",'Generated list'!D7015)","v":""}]
[null,{"$f":"IF('Generated list'!B7016=\"\",\"\",'Generated list'!B7016)","v":""},{"$f":"IF('Generated list'!C7016=\"\",\"\",'Generated list'!C7016)","v":""},{"$f":"IF('Generated list'!D7016=\"\",\"\",'Generated list'!D7016)","v":""}]
[null,{"$f":"IF('Generated list'!B7017=\"\",\"\",'Generated list'!B7017)","v":""},{"$f":"IF('Generated list'!C7017=\"\",\"\",'Generated list'!C7017)","v":""},{"$f":"IF('Generated list'!D7017=\"\",\"\",'Generated list'!D7017)","v":""}]
[null,{"$f":"IF('Generated list'!B7018=\"\",\"\",'Generated list'!B7018)","v":""},{"$f":"IF('Generated list'!C7018=\"\",\"\",'Generated list'!C7018)","v":""},{"$f":"IF('Generated list'!D7018=\"\",\"\",'Generated list'!D7018)","v":""}]
[null,{"$f":"IF('Generated list'!B7019=\"\",\"\",'Generated list'!B7019)","v":""},{"$f":"IF('Generated list'!C7019=\"\",\"\",'Generated list'!C7019)","v":""},{"$f":"IF('Generated list'!D7019=\"\",\"\",'Generated list'!D7019)","v":""}]
[null,{"$f":"IF('Generated list'!B7020=\"\",\"\",'Generated list'!B7020)","v":""},{"$f":"IF('Generated list'!C7020=\"\",\"\",'Generated list'!C7020)","v":""},{"$f":"IF('Generated list'!D7020=\"\",\"\",'Generated list'!D7020)","v":""}]
[null,{"$f":"IF('Generated list'!B7021=\"\",\"\",'Generated list'!B7021)","v":""},{"$f":"IF('Generated list'!C7021=\"\",\"\",'Generated list'!C7021)","v":""},{"$f":"IF('Generated list'!D7021=\"\",\"\",'Generated list'!D7021)","v":""}]
[null,{"$f":"IF('Generated list'!B7022=\"\",\"\",'Generated list'!B7022)","v":""},{"$f":"IF('Generated list'!C7022=\"\",\"\",'Generated list'!C7022)","v":""},{"$f":"IF('Generated list'!D7022=\"\",\"\",'Generated list'!D7022)","v":""}]
[null,{"$f":"IF('Generated list'!B7023=\"\",\"\",'Generated list'!B7023)","v":""},{"$f":"IF('Generated list'!C7023=\"\",\"\",'Generated list'!C7023)","v":""},{"$f":"IF('Generated list'!D7023=\"\",\"\",'Generated list'!D7023)","v":""}]
[null,{"$f":"IF('Generated list'!B7024=\"\",\"\",'Generated list'!B7024)","v":""},{"$f":"IF('Generated list'!C7024=\"\",\"\",'Generated list'!C7024)","v":""},{"$f":"IF('Generated list'!D7024=\"\",\"\",'Generated list'!D7024)","v":""}]
[null,{"$f":"IF('Generated list'!B7025=\"\",\"\",'Generated list'!B7025)","v":""},{"$f":"IF('Generated list'!C7025=\"\",\"\",'Generated list'!C7025)","v":""},{"$f":"IF('Generated list'!D7025=\"\",\"\",'Generated list'!D7025)","v":""}]
[null,{"$f":"IF('Generated list'!B7026=\"\",\"\",'Generated list'!B7026)","v":""},{"$f":"IF('Generated list'!C7026=\"\",\"\",'Generated list'!C7026)","v":""},{"$f":"IF('Generated list'!D7026=\"\",\"\",'Generated list'!D7026)","v":""}]
[null,{"$f":"IF('Generated list'!B7027=\"\",\"\",'Generated list'!B7027)","v":""},{"$f":"IF('Generated list'!C7027=\"\",\"\",'Generated list'!C7027)","v":""},{"$f":"IF('Generated list'!D7027=\"\",\"\",'Generated list'!D7027)","v":""}]
[null,{"$f":"IF('Generated list'!B7028=\"\",\"\",'Generated list'!B7028)","v":""},{"$f":"IF('Generated list'!C7028=\"\",\"\",'Generated list'!C7028)","v":""},{"$f":"IF('Generated list'!D7028=\"\",\"\",'Generated list'!D7028)","v":""}]
[null,{"$f":"IF('Generated list'!B7029=\"\",\"\",'Generated list'!B7029)","v":""},{"$f":"IF('Generated list'!C7029=\"\",\"\",'Generated list'!C7029)","v":""},{"$f":"IF('Generated list'!D7029=\"\",\"\",'Generated list'!D7029)","v":""}]
[null,{"$f":"IF('Generated list'!B7030=\"\",\"\",'Generated list'!B7030)","v":""},{"$f":"IF('Generated list'!C7030=\"\",\"\",'Generated list'!C7030)","v":""},{"$f":"IF('Generated list'!D7030=\"\",\"\",'Generated list'!D7030)","v":""}]
[null,{"$f":"IF('Generated list'!B7031=\"\",\"\",'Generated list'!B7031)","v":""},{"$f":"IF('Generated list'!C7031=\"\",\"\",'Generated list'!C7031)","v":""},{"$f":"IF('Generated list'!D7031=\"\",\"\",'Generated list'!D7031)","v":""}]
[null,{"$f":"IF('Generated list'!B7032=\"\",\"\",'Generated list'!B7032)","v":""},{"$f":"IF('Generated list'!C7032=\"\",\"\",'Generated list'!C7032)","v":""},{"$f":"IF('Generated list'!D7032=\"\",\"\",'Generated list'!D7032)","v":""}]
[null,{"$f":"IF('Generated list'!B7033=\"\",\"\",'Generated list'!B7033)","v":""},{"$f":"IF('Generated list'!C7033=\"\",\"\",'Generated list'!C7033)","v":""},{"$f":"IF('Generated list'!D7033=\"\",\"\",'Generated list'!D7033)","v":""}]
[null,{"$f":"IF('Generated list'!B7034=\"\",\"\",'Generated list'!B7034)","v":""},{"$f":"IF('Generated list'!C7034=\"\",\"\",'Generated list'!C7034)","v":""},{"$f":"IF('Generated list'!D7034=\"\",\"\",'Generated list'!D7034)","v":""}]
[null,{"$f":"IF('Generated list'!B7035=\"\",\"\",'Generated list'!B7035)","v":""},{"$f":"IF('Generated list'!C7035=\"\",\"\",'Generated list'!C7035)","v":""},{"$f":"IF('Generated list'!D7035=\"\",\"\",'Generated list'!D7035)","v":""}]
[null,{"$f":"IF('Generated list'!B7036=\"\",\"\",'Generated list'!B7036)","v":""},{"$f":"IF('Generated list'!C7036=\"\",\"\",'Generated list'!C7036)","v":""},{"$f":"IF('Generated list'!D7036=\"\",\"\",'Generated list'!D7036)","v":""}]
[null,{"$f":"IF('Generated list'!B7037=\"\",\"\",'Generated list'!B7037)","v":""},{"$f":"IF('Generated list'!C7037=\"\",\"\",'Generated list'!C7037)","v":""},{"$f":"IF('Generated list'!D7037=\"\",\"\",'Generated list'!D7037)","v":""}]
[null,{"$f":"IF('Generated list'!B7038=\"\",\"\",'Generated list'!B7038)","v":""},{"$f":"IF('Generated list'!C7038=\"\",\"\",'Generated list'!C7038)","v":""},{"$f":"IF('Generated list'!D7038=\"\",\"\",'Generated list'!D7038)","v":""}]
[null,{"$f":"IF('Generated list'!B7039=\"\",\"\",'Generated list'!B7039)","v":""},{"$f":"IF('Generated list'!C7039=\"\",\"\",'Generated list'!C7039)","v":""},{"$f":"IF('Generated list'!D7039=\"\",\"\",'Generated list'!D7039)","v":""}]
[null,{"$f":"IF('Generated list'!B7040=\"\",\"\",'Generated list'!B7040)","v":""},{"$f":"IF('Generated list'!C7040=\"\",\"\",'Generated list'!C7040)","v":""},{"$f":"IF('Generated list'!D7040=\"\",\"\",'Generated list'!D7040)","v":""}]
[null,{"$f":"IF('Generated list'!B7041=\"\",\"\",'Generated list'!B7041)","v":""},{"$f":"IF('Generated list'!C7041=\"\",\"\",'Generated list'!C7041)","v":""},{"$f":"IF('Generated list'!D7041=\"\",\"\",'Generated list'!D7041)","v":""}]
[null,{"$f":"IF('Generated list'!B7042=\"\",\"\",'Generated list'!B7042)","v":""},{"$f":"IF('Generated list'!C7042=\"\",\"\",'Generated list'!C7042)","v":""},{"$f":"IF('Generated list'!D7042=\"\",\"\",'Generated list'!D7042)","v":""}]
[null,{"$f":"IF('Generated list'!B7043=\"\",\"\",'Generated list'!B7043)","v":""},{"$f":"IF('Generated list'!C7043=\"\",\"\",'Generated list'!C7043)","v":""},{"$f":"IF('Generated list'!D7043=\"\",\"\",'Generated list'!D7043)","v":""}]
[null,{"$f":"IF('Generated list'!B7044=\"\",\"\",'Generated list'!B7044)","v":""},{"$f":"IF('Generated list'!C7044=\"\",\"\",'Generated list'!C7044)","v":""},{"$f":"IF('Generated list'!D7044=\"\",\"\",'Generated list'!D7044)","v":""}]
[null,{"$f":"IF('Generated list'!B7045=\"\",\"\",'Generated list'!B7045)","v":""},{"$f":"IF('Generated list'!C7045=\"\",\"\",'Generated list'!C7045)","v":""},{"$f":"IF('Generated list'!D7045=\"\",\"\",'Generated list'!D7045)","v":""}]
[null,{"$f":"IF('Generated list'!B7046=\"\",\"\",'Generated list'!B7046)","v":""},{"$f":"IF('Generated list'!C7046=\"\",\"\",'Generated list'!C7046)","v":""},{"$f":"IF('Generated list'!D7046=\"\",\"\",'Generated list'!D7046)","v":""}]
[null,{"$f":"IF('Generated list'!B7047=\"\",\"\",'Generated list'!B7047)","v":""},{"$f":"IF('Generated list'!C7047=\"\",\"\",'Generated list'!C7047)","v":""},{"$f":"IF('Generated list'!D7047=\"\",\"\",'Generated list'!D7047)","v":""}]
[null,{"$f":"IF('Generated list'!B7048=\"\",\"\",'Generated list'!B7048)","v":""},{"$f":"IF('Generated list'!C7048=\"\",\"\",'Generated list'!C7048)","v":""},{"$f":"IF('Generated list'!D7048=\"\",\"\",'Generated list'!D7048)","v":""}]
[null,{"$f":"IF('Generated list'!B7049=\"\",\"\",'Generated list'!B7049)","v":""},{"$f":"IF('Generated list'!C7049=\"\",\"\",'Generated list'!C7049)","v":""},{"$f":"IF('Generated list'!D7049=\"\",\"\",'Generated list'!D7049)","v":""}]
[null,{"$f":"IF('Generated list'!B7050=\"\",\"\",'Generated list'!B7050)","v":""},{"$f":"IF('Generated list'!C7050=\"\",\"\",'Generated list'!C7050)","v":""},{"$f":"IF('Generated list'!D7050=\"\",\"\",'Generated list'!D7050)","v":""}]
[null,{"$f":"IF('Generated list'!B7051=\"\",\"\",'Generated list'!B7051)","v":""},{"$f":"IF('Generated list'!C7051=\"\",\"\",'Generated list'!C7051)","v":""},{"$f":"IF('Generated list'!D7051=\"\",\"\",'Generated list'!D7051)","v":""}]
[null,{"$f":"IF('Generated list'!B7052=\"\",\"\",'Generated list'!B7052)","v":""},{"$f":"IF('Generated list'!C7052=\"\",\"\",'Generated list'!C7052)","v":""},{"$f":"IF('Generated list'!D7052=\"\",\"\",'Generated list'!D7052)","v":""}]
[null,{"$f":"IF('Generated list'!B7053=\"\",\"\",'Generated list'!B7053)","v":""},{"$f":"IF('Generated list'!C7053=\"\",\"\",'Generated list'!C7053)","v":""},{"$f":"IF('Generated list'!D7053=\"\",\"\",'Generated list'!D7053)","v":""}]
[null,{"$f":"IF('Generated list'!B7054=\"\",\"\",'Generated list'!B7054)","v":""},{"$f":"IF('Generated list'!C7054=\"\",\"\",'Generated list'!C7054)","v":""},{"$f":"IF('Generated list'!D7054=\"\",\"\",'Generated list'!D7054)","v":""}]
[null,{"$f":"IF('Generated list'!B7055=\"\",\"\",'Generated list'!B7055)","v":""},{"$f":"IF('Generated list'!C7055=\"\",\"\",'Generated list'!C7055)","v":""},{"$f":"IF('Generated list'!D7055=\"\",\"\",'Generated list'!D7055)","v":""}]
[null,{"$f":"IF('Generated list'!B7056=\"\",\"\",'Generated list'!B7056)","v":""},{"$f":"IF('Generated list'!C7056=\"\",\"\",'Generated list'!C7056)","v":""},{"$f":"IF('Generated list'!D7056=\"\",\"\",'Generated list'!D7056)","v":""}]
[null,{"$f":"IF('Generated list'!B7057=\"\",\"\",'Generated list'!B7057)","v":""},{"$f":"IF('Generated list'!C7057=\"\",\"\",'Generated list'!C7057)","v":""},{"$f":"IF('Generated list'!D7057=\"\",\"\",'Generated list'!D7057)","v":""}]
[null,{"$f":"IF('Generated list'!B7058=\"\",\"\",'Generated list'!B7058)","v":""},{"$f":"IF('Generated list'!C7058=\"\",\"\",'Generated list'!C7058)","v":""},{"$f":"IF('Generated list'!D7058=\"\",\"\",'Generated list'!D7058)","v":""}]
[null,{"$f":"IF('Generated list'!B7059=\"\",\"\",'Generated list'!B7059)","v":""},{"$f":"IF('Generated list'!C7059=\"\",\"\",'Generated list'!C7059)","v":""},{"$f":"IF('Generated list'!D7059=\"\",\"\",'Generated list'!D7059)","v":""}]
[null,{"$f":"IF('Generated list'!B7060=\"\",\"\",'Generated list'!B7060)","v":""},{"$f":"IF('Generated list'!C7060=\"\",\"\",'Generated list'!C7060)","v":""},{"$f":"IF('Generated list'!D7060=\"\",\"\",'Generated list'!D7060)","v":""}]
[null,{"$f":"IF('Generated list'!B7061=\"\",\"\",'Generated list'!B7061)","v":""},{"$f":"IF('Generated list'!C7061=\"\",\"\",'Generated list'!C7061)","v":""},{"$f":"IF('Generated list'!D7061=\"\",\"\",'Generated list'!D7061)","v":""}]
[null,{"$f":"IF('Generated list'!B7062=\"\",\"\",'Generated list'!B7062)","v":""},{"$f":"IF('Generated list'!C7062=\"\",\"\",'Generated list'!C7062)","v":""},{"$f":"IF('Generated list'!D7062=\"\",\"\",'Generated list'!D7062)","v":""}]
[null,{"$f":"IF('Generated list'!B7063=\"\",\"\",'Generated list'!B7063)","v":""},{"$f":"IF('Generated list'!C7063=\"\",\"\",'Generated list'!C7063)","v":""},{"$f":"IF('Generated list'!D7063=\"\",\"\",'Generated list'!D7063)","v":""}]
[null,{"$f":"IF('Generated list'!B7064=\"\",\"\",'Generated list'!B7064)","v":""},{"$f":"IF('Generated list'!C7064=\"\",\"\",'Generated list'!C7064)","v":""},{"$f":"IF('Generated list'!D7064=\"\",\"\",'Generated list'!D7064)","v":""}]
[null,{"$f":"IF('Generated list'!B7065=\"\",\"\",'Generated list'!B7065)","v":""},{"$f":"IF('Generated list'!C7065=\"\",\"\",'Generated list'!C7065)","v":""},{"$f":"IF('Generated list'!D7065=\"\",\"\",'Generated list'!D7065)","v":""}]
[null,{"$f":"IF('Generated list'!B7066=\"\",\"\",'Generated list'!B7066)","v":""},{"$f":"IF('Generated list'!C7066=\"\",\"\",'Generated list'!C7066)","v":""},{"$f":"IF('Generated list'!D7066=\"\",\"\",'Generated list'!D7066)","v":""}]
[null,{"$f":"IF('Generated list'!B7067=\"\",\"\",'Generated list'!B7067)","v":""},{"$f":"IF('Generated list'!C7067=\"\",\"\",'Generated list'!C7067)","v":""},{"$f":"IF('Generated list'!D7067=\"\",\"\",'Generated list'!D7067)","v":""}]
[null,{"$f":"IF('Generated list'!B7068=\"\",\"\",'Generated list'!B7068)","v":""},{"$f":"IF('Generated list'!C7068=\"\",\"\",'Generated list'!C7068)","v":""},{"$f":"IF('Generated list'!D7068=\"\",\"\",'Generated list'!D7068)","v":""}]
[null,{"$f":"IF('Generated list'!B7069=\"\",\"\",'Generated list'!B7069)","v":""},{"$f":"IF('Generated list'!C7069=\"\",\"\",'Generated list'!C7069)","v":""},{"$f":"IF('Generated list'!D7069=\"\",\"\",'Generated list'!D7069)","v":""}]
[null,{"$f":"IF('Generated list'!B7070=\"\",\"\",'Generated list'!B7070)","v":""},{"$f":"IF('Generated list'!C7070=\"\",\"\",'Generated list'!C7070)","v":""},{"$f":"IF('Generated list'!D7070=\"\",\"\",'Generated list'!D7070)","v":""}]
[null,{"$f":"IF('Generated list'!B7071=\"\",\"\",'Generated list'!B7071)","v":""},{"$f":"IF('Generated list'!C7071=\"\",\"\",'Generated list'!C7071)","v":""},{"$f":"IF('Generated list'!D7071=\"\",\"\",'Generated list'!D7071)","v":""}]
[null,{"$f":"IF('Generated list'!B7072=\"\",\"\",'Generated list'!B7072)","v":""},{"$f":"IF('Generated list'!C7072=\"\",\"\",'Generated list'!C7072)","v":""},{"$f":"IF('Generated list'!D7072=\"\",\"\",'Generated list'!D7072)","v":""}]
[null,{"$f":"IF('Generated list'!B7073=\"\",\"\",'Generated list'!B7073)","v":""},{"$f":"IF('Generated list'!C7073=\"\",\"\",'Generated list'!C7073)","v":""},{"$f":"IF('Generated list'!D7073=\"\",\"\",'Generated list'!D7073)","v":""}]
[null,{"$f":"IF('Generated list'!B7074=\"\",\"\",'Generated list'!B7074)","v":""},{"$f":"IF('Generated list'!C7074=\"\",\"\",'Generated list'!C7074)","v":""},{"$f":"IF('Generated list'!D7074=\"\",\"\",'Generated list'!D7074)","v":""}]
[null,{"$f":"IF('Generated list'!B7075=\"\",\"\",'Generated list'!B7075)","v":""},{"$f":"IF('Generated list'!C7075=\"\",\"\",'Generated list'!C7075)","v":""},{"$f":"IF('Generated list'!D7075=\"\",\"\",'Generated list'!D7075)","v":""}]
[null,{"$f":"IF('Generated list'!B7076=\"\",\"\",'Generated list'!B7076)","v":""},{"$f":"IF('Generated list'!C7076=\"\",\"\",'Generated list'!C7076)","v":""},{"$f":"IF('Generated list'!D7076=\"\",\"\",'Generated list'!D7076)","v":""}]
[null,{"$f":"IF('Generated list'!B7077=\"\",\"\",'Generated list'!B7077)","v":""},{"$f":"IF('Generated list'!C7077=\"\",\"\",'Generated list'!C7077)","v":""},{"$f":"IF('Generated list'!D7077=\"\",\"\",'Generated list'!D7077)","v":""}]
[null,{"$f":"IF('Generated list'!B7078=\"\",\"\",'Generated list'!B7078)","v":""},{"$f":"IF('Generated list'!C7078=\"\",\"\",'Generated list'!C7078)","v":""},{"$f":"IF('Generated list'!D7078=\"\",\"\",'Generated list'!D7078)","v":""}]
[null,{"$f":"IF('Generated list'!B7079=\"\",\"\",'Generated list'!B7079)","v":""},{"$f":"IF('Generated list'!C7079=\"\",\"\",'Generated list'!C7079)","v":""},{"$f":"IF('Generated list'!D7079=\"\",\"\",'Generated list'!D7079)","v":""}]
[null,{"$f":"IF('Generated list'!B7080=\"\",\"\",'Generated list'!B7080)","v":""},{"$f":"IF('Generated list'!C7080=\"\",\"\",'Generated list'!C7080)","v":""},{"$f":"IF('Generated list'!D7080=\"\",\"\",'Generated list'!D7080)","v":""}]
[null,{"$f":"IF('Generated list'!B7081=\"\",\"\",'Generated list'!B7081)","v":""},{"$f":"IF('Generated list'!C7081=\"\",\"\",'Generated list'!C7081)","v":""},{"$f":"IF('Generated list'!D7081=\"\",\"\",'Generated list'!D7081)","v":""}]
[null,{"$f":"IF('Generated list'!B7082=\"\",\"\",'Generated list'!B7082)","v":""},{"$f":"IF('Generated list'!C7082=\"\",\"\",'Generated list'!C7082)","v":""},{"$f":"IF('Generated list'!D7082=\"\",\"\",'Generated list'!D7082)","v":""}]
[null,{"$f":"IF('Generated list'!B7083=\"\",\"\",'Generated list'!B7083)","v":""},{"$f":"IF('Generated list'!C7083=\"\",\"\",'Generated list'!C7083)","v":""},{"$f":"IF('Generated list'!D7083=\"\",\"\",'Generated list'!D7083)","v":""}]
[null,{"$f":"IF('Generated list'!B7084=\"\",\"\",'Generated list'!B7084)","v":""},{"$f":"IF('Generated list'!C7084=\"\",\"\",'Generated list'!C7084)","v":""},{"$f":"IF('Generated list'!D7084=\"\",\"\",'Generated list'!D7084)","v":""}]
[null,{"$f":"IF('Generated list'!B7085=\"\",\"\",'Generated list'!B7085)","v":""},{"$f":"IF('Generated list'!C7085=\"\",\"\",'Generated list'!C7085)","v":""},{"$f":"IF('Generated list'!D7085=\"\",\"\",'Generated list'!D7085)","v":""}]
[null,{"$f":"IF('Generated list'!B7086=\"\",\"\",'Generated list'!B7086)","v":""},{"$f":"IF('Generated list'!C7086=\"\",\"\",'Generated list'!C7086)","v":""},{"$f":"IF('Generated list'!D7086=\"\",\"\",'Generated list'!D7086)","v":""}]
[null,{"$f":"IF('Generated list'!B7087=\"\",\"\",'Generated list'!B7087)","v":""},{"$f":"IF('Generated list'!C7087=\"\",\"\",'Generated list'!C7087)","v":""},{"$f":"IF('Generated list'!D7087=\"\",\"\",'Generated list'!D7087)","v":""}]
[null,{"$f":"IF('Generated list'!B7088=\"\",\"\",'Generated list'!B7088)","v":""},{"$f":"IF('Generated list'!C7088=\"\",\"\",'Generated list'!C7088)","v":""},{"$f":"IF('Generated list'!D7088=\"\",\"\",'Generated list'!D7088)","v":""}]
[null,{"$f":"IF('Generated list'!B7089=\"\",\"\",'Generated list'!B7089)","v":""},{"$f":"IF('Generated list'!C7089=\"\",\"\",'Generated list'!C7089)","v":""},{"$f":"IF('Generated list'!D7089=\"\",\"\",'Generated list'!D7089)","v":""}]
[null,{"$f":"IF('Generated list'!B7090=\"\",\"\",'Generated list'!B7090)","v":""},{"$f":"IF('Generated list'!C7090=\"\",\"\",'Generated list'!C7090)","v":""},{"$f":"IF('Generated list'!D7090=\"\",\"\",'Generated list'!D7090)","v":""}]
[null,{"$f":"IF('Generated list'!B7091=\"\",\"\",'Generated list'!B7091)","v":""},{"$f":"IF('Generated list'!C7091=\"\",\"\",'Generated list'!C7091)","v":""},{"$f":"IF('Generated list'!D7091=\"\",\"\",'Generated list'!D7091)","v":""}]
[null,{"$f":"IF('Generated list'!B7092=\"\",\"\",'Generated list'!B7092)","v":""},{"$f":"IF('Generated list'!C7092=\"\",\"\",'Generated list'!C7092)","v":""},{"$f":"IF('Generated list'!D7092=\"\",\"\",'Generated list'!D7092)","v":""}]
[null,{"$f":"IF('Generated list'!B7093=\"\",\"\",'Generated list'!B7093)","v":""},{"$f":"IF('Generated list'!C7093=\"\",\"\",'Generated list'!C7093)","v":""},{"$f":"IF('Generated list'!D7093=\"\",\"\",'Generated list'!D7093)","v":""}]
[null,{"$f":"IF('Generated list'!B7094=\"\",\"\",'Generated list'!B7094)","v":""},{"$f":"IF('Generated list'!C7094=\"\",\"\",'Generated list'!C7094)","v":""},{"$f":"IF('Generated list'!D7094=\"\",\"\",'Generated list'!D7094)","v":""}]
[null,{"$f":"IF('Generated list'!B7095=\"\",\"\",'Generated list'!B7095)","v":""},{"$f":"IF('Generated list'!C7095=\"\",\"\",'Generated list'!C7095)","v":""},{"$f":"IF('Generated list'!D7095=\"\",\"\",'Generated list'!D7095)","v":""}]
[null,{"$f":"IF('Generated list'!B7096=\"\",\"\",'Generated list'!B7096)","v":""},{"$f":"IF('Generated list'!C7096=\"\",\"\",'Generated list'!C7096)","v":""},{"$f":"IF('Generated list'!D7096=\"\",\"\",'Generated list'!D7096)","v":""}]
[null,{"$f":"IF('Generated list'!B7097=\"\",\"\",'Generated list'!B7097)","v":""},{"$f":"IF('Generated list'!C7097=\"\",\"\",'Generated list'!C7097)","v":""},{"$f":"IF('Generated list'!D7097=\"\",\"\",'Generated list'!D7097)","v":""}]
[null,{"$f":"IF('Generated list'!B7098=\"\",\"\",'Generated list'!B7098)","v":""},{"$f":"IF('Generated list'!C7098=\"\",\"\",'Generated list'!C7098)","v":""},{"$f":"IF('Generated list'!D7098=\"\",\"\",'Generated list'!D7098)","v":""}]
[null,{"$f":"IF('Generated list'!B7099=\"\",\"\",'Generated list'!B7099)","v":""},{"$f":"IF('Generated list'!C7099=\"\",\"\",'Generated list'!C7099)","v":""},{"$f":"IF('Generated list'!D7099=\"\",\"\",'Generated list'!D7099)","v":""}]
[null,{"$f":"IF('Generated list'!B7100=\"\",\"\",'Generated list'!B7100)","v":""},{"$f":"IF('Generated list'!C7100=\"\",\"\",'Generated list'!C7100)","v":""},{"$f":"IF('Generated list'!D7100=\"\",\"\",'Generated list'!D7100)","v":""}]
[null,{"$f":"IF('Generated list'!B7101=\"\",\"\",'Generated list'!B7101)","v":""},{"$f":"IF('Generated list'!C7101=\"\",\"\",'Generated list'!C7101)","v":""},{"$f":"IF('Generated list'!D7101=\"\",\"\",'Generated list'!D7101)","v":""}]
[null,{"$f":"IF('Generated list'!B7102=\"\",\"\",'Generated list'!B7102)","v":""},{"$f":"IF('Generated list'!C7102=\"\",\"\",'Generated list'!C7102)","v":""},{"$f":"IF('Generated list'!D7102=\"\",\"\",'Generated list'!D7102)","v":""}]
[null,{"$f":"IF('Generated list'!B7103=\"\",\"\",'Generated list'!B7103)","v":""},{"$f":"IF('Generated list'!C7103=\"\",\"\",'Generated list'!C7103)","v":""},{"$f":"IF('Generated list'!D7103=\"\",\"\",'Generated list'!D7103)","v":""}]
[null,{"$f":"IF('Generated list'!B7104=\"\",\"\",'Generated list'!B7104)","v":""},{"$f":"IF('Generated list'!C7104=\"\",\"\",'Generated list'!C7104)","v":""},{"$f":"IF('Generated list'!D7104=\"\",\"\",'Generated list'!D7104)","v":""}]
[null,{"$f":"IF('Generated list'!B7105=\"\",\"\",'Generated list'!B7105)","v":""},{"$f":"IF('Generated list'!C7105=\"\",\"\",'Generated list'!C7105)","v":""},{"$f":"IF('Generated list'!D7105=\"\",\"\",'Generated list'!D7105)","v":""}]
[null,{"$f":"IF('Generated list'!B7106=\"\",\"\",'Generated list'!B7106)","v":""},{"$f":"IF('Generated list'!C7106=\"\",\"\",'Generated list'!C7106)","v":""},{"$f":"IF('Generated list'!D7106=\"\",\"\",'Generated list'!D7106)","v":""}]
[null,{"$f":"IF('Generated list'!B7107=\"\",\"\",'Generated list'!B7107)","v":""},{"$f":"IF('Generated list'!C7107=\"\",\"\",'Generated list'!C7107)","v":""},{"$f":"IF('Generated list'!D7107=\"\",\"\",'Generated list'!D7107)","v":""}]
[null,{"$f":"IF('Generated list'!B7108=\"\",\"\",'Generated list'!B7108)","v":""},{"$f":"IF('Generated list'!C7108=\"\",\"\",'Generated list'!C7108)","v":""},{"$f":"IF('Generated list'!D7108=\"\",\"\",'Generated list'!D7108)","v":""}]
[null,{"$f":"IF('Generated list'!B7109=\"\",\"\",'Generated list'!B7109)","v":""},{"$f":"IF('Generated list'!C7109=\"\",\"\",'Generated list'!C7109)","v":""},{"$f":"IF('Generated list'!D7109=\"\",\"\",'Generated list'!D7109)","v":""}]
[null,{"$f":"IF('Generated list'!B7110=\"\",\"\",'Generated list'!B7110)","v":""},{"$f":"IF('Generated list'!C7110=\"\",\"\",'Generated list'!C7110)","v":""},{"$f":"IF('Generated list'!D7110=\"\",\"\",'Generated list'!D7110)","v":""}]
[null,{"$f":"IF('Generated list'!B7111=\"\",\"\",'Generated list'!B7111)","v":""},{"$f":"IF('Generated list'!C7111=\"\",\"\",'Generated list'!C7111)","v":""},{"$f":"IF('Generated list'!D7111=\"\",\"\",'Generated list'!D7111)","v":""}]
[null,{"$f":"IF('Generated list'!B7112=\"\",\"\",'Generated list'!B7112)","v":""},{"$f":"IF('Generated list'!C7112=\"\",\"\",'Generated list'!C7112)","v":""},{"$f":"IF('Generated list'!D7112=\"\",\"\",'Generated list'!D7112)","v":""}]
[null,{"$f":"IF('Generated list'!B7113=\"\",\"\",'Generated list'!B7113)","v":""},{"$f":"IF('Generated list'!C7113=\"\",\"\",'Generated list'!C7113)","v":""},{"$f":"IF('Generated list'!D7113=\"\",\"\",'Generated list'!D7113)","v":""}]
[null,{"$f":"IF('Generated list'!B7114=\"\",\"\",'Generated list'!B7114)","v":""},{"$f":"IF('Generated list'!C7114=\"\",\"\",'Generated list'!C7114)","v":""},{"$f":"IF('Generated list'!D7114=\"\",\"\",'Generated list'!D7114)","v":""}]
[null,{"$f":"IF('Generated list'!B7115=\"\",\"\",'Generated list'!B7115)","v":""},{"$f":"IF('Generated list'!C7115=\"\",\"\",'Generated list'!C7115)","v":""},{"$f":"IF('Generated list'!D7115=\"\",\"\",'Generated list'!D7115)","v":""}]
[null,{"$f":"IF('Generated list'!B7116=\"\",\"\",'Generated list'!B7116)","v":""},{"$f":"IF('Generated list'!C7116=\"\",\"\",'Generated list'!C7116)","v":""},{"$f":"IF('Generated list'!D7116=\"\",\"\",'Generated list'!D7116)","v":""}]
[null,{"$f":"IF('Generated list'!B7117=\"\",\"\",'Generated list'!B7117)","v":""},{"$f":"IF('Generated list'!C7117=\"\",\"\",'Generated list'!C7117)","v":""},{"$f":"IF('Generated list'!D7117=\"\",\"\",'Generated list'!D7117)","v":""}]
[null,{"$f":"IF('Generated list'!B7118=\"\",\"\",'Generated list'!B7118)","v":""},{"$f":"IF('Generated list'!C7118=\"\",\"\",'Generated list'!C7118)","v":""},{"$f":"IF('Generated list'!D7118=\"\",\"\",'Generated list'!D7118)","v":""}]
[null,{"$f":"IF('Generated list'!B7119=\"\",\"\",'Generated list'!B7119)","v":""},{"$f":"IF('Generated list'!C7119=\"\",\"\",'Generated list'!C7119)","v":""},{"$f":"IF('Generated list'!D7119=\"\",\"\",'Generated list'!D7119)","v":""}]
[null,{"$f":"IF('Generated list'!B7120=\"\",\"\",'Generated list'!B7120)","v":""},{"$f":"IF('Generated list'!C7120=\"\",\"\",'Generated list'!C7120)","v":""},{"$f":"IF('Generated list'!D7120=\"\",\"\",'Generated list'!D7120)","v":""}]
[null,{"$f":"IF('Generated list'!B7121=\"\",\"\",'Generated list'!B7121)","v":""},{"$f":"IF('Generated list'!C7121=\"\",\"\",'Generated list'!C7121)","v":""},{"$f":"IF('Generated list'!D7121=\"\",\"\",'Generated list'!D7121)","v":""}]
[null,{"$f":"IF('Generated list'!B7122=\"\",\"\",'Generated list'!B7122)","v":""},{"$f":"IF('Generated list'!C7122=\"\",\"\",'Generated list'!C7122)","v":""},{"$f":"IF('Generated list'!D7122=\"\",\"\",'Generated list'!D7122)","v":""}]
[null,{"$f":"IF('Generated list'!B7123=\"\",\"\",'Generated list'!B7123)","v":""},{"$f":"IF('Generated list'!C7123=\"\",\"\",'Generated list'!C7123)","v":""},{"$f":"IF('Generated list'!D7123=\"\",\"\",'Generated list'!D7123)","v":""}]
[null,{"$f":"IF('Generated list'!B7124=\"\",\"\",'Generated list'!B7124)","v":""},{"$f":"IF('Generated list'!C7124=\"\",\"\",'Generated list'!C7124)","v":""},{"$f":"IF('Generated list'!D7124=\"\",\"\",'Generated list'!D7124)","v":""}]
[null,{"$f":"IF('Generated list'!B7125=\"\",\"\",'Generated list'!B7125)","v":""},{"$f":"IF('Generated list'!C7125=\"\",\"\",'Generated list'!C7125)","v":""},{"$f":"IF('Generated list'!D7125=\"\",\"\",'Generated list'!D7125)","v":""}]
[null,{"$f":"IF('Generated list'!B7126=\"\",\"\",'Generated list'!B7126)","v":""},{"$f":"IF('Generated list'!C7126=\"\",\"\",'Generated list'!C7126)","v":""},{"$f":"IF('Generated list'!D7126=\"\",\"\",'Generated list'!D7126)","v":""}]
[null,{"$f":"IF('Generated list'!B7127=\"\",\"\",'Generated list'!B7127)","v":""},{"$f":"IF('Generated list'!C7127=\"\",\"\",'Generated list'!C7127)","v":""},{"$f":"IF('Generated list'!D7127=\"\",\"\",'Generated list'!D7127)","v":""}]
[null,{"$f":"IF('Generated list'!B7128=\"\",\"\",'Generated list'!B7128)","v":""},{"$f":"IF('Generated list'!C7128=\"\",\"\",'Generated list'!C7128)","v":""},{"$f":"IF('Generated list'!D7128=\"\",\"\",'Generated list'!D7128)","v":""}]
[null,{"$f":"IF('Generated list'!B7129=\"\",\"\",'Generated list'!B7129)","v":""},{"$f":"IF('Generated list'!C7129=\"\",\"\",'Generated list'!C7129)","v":""},{"$f":"IF('Generated list'!D7129=\"\",\"\",'Generated list'!D7129)","v":""}]
[null,{"$f":"IF('Generated list'!B7130=\"\",\"\",'Generated list'!B7130)","v":""},{"$f":"IF('Generated list'!C7130=\"\",\"\",'Generated list'!C7130)","v":""},{"$f":"IF('Generated list'!D7130=\"\",\"\",'Generated list'!D7130)","v":""}]
[null,{"$f":"IF('Generated list'!B7131=\"\",\"\",'Generated list'!B7131)","v":""},{"$f":"IF('Generated list'!C7131=\"\",\"\",'Generated list'!C7131)","v":""},{"$f":"IF('Generated list'!D7131=\"\",\"\",'Generated list'!D7131)","v":""}]
[null,{"$f":"IF('Generated list'!B7132=\"\",\"\",'Generated list'!B7132)","v":""},{"$f":"IF('Generated list'!C7132=\"\",\"\",'Generated list'!C7132)","v":""},{"$f":"IF('Generated list'!D7132=\"\",\"\",'Generated list'!D7132)","v":""}]
[null,{"$f":"IF('Generated list'!B7133=\"\",\"\",'Generated list'!B7133)","v":""},{"$f":"IF('Generated list'!C7133=\"\",\"\",'Generated list'!C7133)","v":""},{"$f":"IF('Generated list'!D7133=\"\",\"\",'Generated list'!D7133)","v":""}]
[null,{"$f":"IF('Generated list'!B7134=\"\",\"\",'Generated list'!B7134)","v":""},{"$f":"IF('Generated list'!C7134=\"\",\"\",'Generated list'!C7134)","v":""},{"$f":"IF('Generated list'!D7134=\"\",\"\",'Generated list'!D7134)","v":""}]
[null,{"$f":"IF('Generated list'!B7135=\"\",\"\",'Generated list'!B7135)","v":""},{"$f":"IF('Generated list'!C7135=\"\",\"\",'Generated list'!C7135)","v":""},{"$f":"IF('Generated list'!D7135=\"\",\"\",'Generated list'!D7135)","v":""}]
[null,{"$f":"IF('Generated list'!B7136=\"\",\"\",'Generated list'!B7136)","v":""},{"$f":"IF('Generated list'!C7136=\"\",\"\",'Generated list'!C7136)","v":""},{"$f":"IF('Generated list'!D7136=\"\",\"\",'Generated list'!D7136)","v":""}]
[null,{"$f":"IF('Generated list'!B7137=\"\",\"\",'Generated list'!B7137)","v":""},{"$f":"IF('Generated list'!C7137=\"\",\"\",'Generated list'!C7137)","v":""},{"$f":"IF('Generated list'!D7137=\"\",\"\",'Generated list'!D7137)","v":""}]
[null,{"$f":"IF('Generated list'!B7138=\"\",\"\",'Generated list'!B7138)","v":""},{"$f":"IF('Generated list'!C7138=\"\",\"\",'Generated list'!C7138)","v":""},{"$f":"IF('Generated list'!D7138=\"\",\"\",'Generated list'!D7138)","v":""}]
[null,{"$f":"IF('Generated list'!B7139=\"\",\"\",'Generated list'!B7139)","v":""},{"$f":"IF('Generated list'!C7139=\"\",\"\",'Generated list'!C7139)","v":""},{"$f":"IF('Generated list'!D7139=\"\",\"\",'Generated list'!D7139)","v":""}]
[null,{"$f":"IF('Generated list'!B7140=\"\",\"\",'Generated list'!B7140)","v":""},{"$f":"IF('Generated list'!C7140=\"\",\"\",'Generated list'!C7140)","v":""},{"$f":"IF('Generated list'!D7140=\"\",\"\",'Generated list'!D7140)","v":""}]
[null,{"$f":"IF('Generated list'!B7141=\"\",\"\",'Generated list'!B7141)","v":""},{"$f":"IF('Generated list'!C7141=\"\",\"\",'Generated list'!C7141)","v":""},{"$f":"IF('Generated list'!D7141=\"\",\"\",'Generated list'!D7141)","v":""}]
[null,{"$f":"IF('Generated list'!B7142=\"\",\"\",'Generated list'!B7142)","v":""},{"$f":"IF('Generated list'!C7142=\"\",\"\",'Generated list'!C7142)","v":""},{"$f":"IF('Generated list'!D7142=\"\",\"\",'Generated list'!D7142)","v":""}]
[null,{"$f":"IF('Generated list'!B7143=\"\",\"\",'Generated list'!B7143)","v":""},{"$f":"IF('Generated list'!C7143=\"\",\"\",'Generated list'!C7143)","v":""},{"$f":"IF('Generated list'!D7143=\"\",\"\",'Generated list'!D7143)","v":""}]
[null,{"$f":"IF('Generated list'!B7144=\"\",\"\",'Generated list'!B7144)","v":""},{"$f":"IF('Generated list'!C7144=\"\",\"\",'Generated list'!C7144)","v":""},{"$f":"IF('Generated list'!D7144=\"\",\"\",'Generated list'!D7144)","v":""}]
[null,{"$f":"IF('Generated list'!B7145=\"\",\"\",'Generated list'!B7145)","v":""},{"$f":"IF('Generated list'!C7145=\"\",\"\",'Generated list'!C7145)","v":""},{"$f":"IF('Generated list'!D7145=\"\",\"\",'Generated list'!D7145)","v":""}]
[null,{"$f":"IF('Generated list'!B7146=\"\",\"\",'Generated list'!B7146)","v":""},{"$f":"IF('Generated list'!C7146=\"\",\"\",'Generated list'!C7146)","v":""},{"$f":"IF('Generated list'!D7146=\"\",\"\",'Generated list'!D7146)","v":""}]
[null,{"$f":"IF('Generated list'!B7147=\"\",\"\",'Generated list'!B7147)","v":""},{"$f":"IF('Generated list'!C7147=\"\",\"\",'Generated list'!C7147)","v":""},{"$f":"IF('Generated list'!D7147=\"\",\"\",'Generated list'!D7147)","v":""}]
[null,{"$f":"IF('Generated list'!B7148=\"\",\"\",'Generated list'!B7148)","v":""},{"$f":"IF('Generated list'!C7148=\"\",\"\",'Generated list'!C7148)","v":""},{"$f":"IF('Generated list'!D7148=\"\",\"\",'Generated list'!D7148)","v":""}]
[null,{"$f":"IF('Generated list'!B7149=\"\",\"\",'Generated list'!B7149)","v":""},{"$f":"IF('Generated list'!C7149=\"\",\"\",'Generated list'!C7149)","v":""},{"$f":"IF('Generated list'!D7149=\"\",\"\",'Generated list'!D7149)","v":""}]
[null,{"$f":"IF('Generated list'!B7150=\"\",\"\",'Generated list'!B7150)","v":""},{"$f":"IF('Generated list'!C7150=\"\",\"\",'Generated list'!C7150)","v":""},{"$f":"IF('Generated list'!D7150=\"\",\"\",'Generated list'!D7150)","v":""}]
[null,{"$f":"IF('Generated list'!B7151=\"\",\"\",'Generated list'!B7151)","v":""},{"$f":"IF('Generated list'!C7151=\"\",\"\",'Generated list'!C7151)","v":""},{"$f":"IF('Generated list'!D7151=\"\",\"\",'Generated list'!D7151)","v":""}]
[null,{"$f":"IF('Generated list'!B7152=\"\",\"\",'Generated list'!B7152)","v":""},{"$f":"IF('Generated list'!C7152=\"\",\"\",'Generated list'!C7152)","v":""},{"$f":"IF('Generated list'!D7152=\"\",\"\",'Generated list'!D7152)","v":""}]
[null,{"$f":"IF('Generated list'!B7153=\"\",\"\",'Generated list'!B7153)","v":""},{"$f":"IF('Generated list'!C7153=\"\",\"\",'Generated list'!C7153)","v":""},{"$f":"IF('Generated list'!D7153=\"\",\"\",'Generated list'!D7153)","v":""}]
[null,{"$f":"IF('Generated list'!B7154=\"\",\"\",'Generated list'!B7154)","v":""},{"$f":"IF('Generated list'!C7154=\"\",\"\",'Generated list'!C7154)","v":""},{"$f":"IF('Generated list'!D7154=\"\",\"\",'Generated list'!D7154)","v":""}]
[null,{"$f":"IF('Generated list'!B7155=\"\",\"\",'Generated list'!B7155)","v":""},{"$f":"IF('Generated list'!C7155=\"\",\"\",'Generated list'!C7155)","v":""},{"$f":"IF('Generated list'!D7155=\"\",\"\",'Generated list'!D7155)","v":""}]
[null,{"$f":"IF('Generated list'!B7156=\"\",\"\",'Generated list'!B7156)","v":""},{"$f":"IF('Generated list'!C7156=\"\",\"\",'Generated list'!C7156)","v":""},{"$f":"IF('Generated list'!D7156=\"\",\"\",'Generated list'!D7156)","v":""}]
[null,{"$f":"IF('Generated list'!B7157=\"\",\"\",'Generated list'!B7157)","v":""},{"$f":"IF('Generated list'!C7157=\"\",\"\",'Generated list'!C7157)","v":""},{"$f":"IF('Generated list'!D7157=\"\",\"\",'Generated list'!D7157)","v":""}]
[null,{"$f":"IF('Generated list'!B7158=\"\",\"\",'Generated list'!B7158)","v":""},{"$f":"IF('Generated list'!C7158=\"\",\"\",'Generated list'!C7158)","v":""},{"$f":"IF('Generated list'!D7158=\"\",\"\",'Generated list'!D7158)","v":""}]
[null,{"$f":"IF('Generated list'!B7159=\"\",\"\",'Generated list'!B7159)","v":""},{"$f":"IF('Generated list'!C7159=\"\",\"\",'Generated list'!C7159)","v":""},{"$f":"IF('Generated list'!D7159=\"\",\"\",'Generated list'!D7159)","v":""}]
[null,{"$f":"IF('Generated list'!B7160=\"\",\"\",'Generated list'!B7160)","v":""},{"$f":"IF('Generated list'!C7160=\"\",\"\",'Generated list'!C7160)","v":""},{"$f":"IF('Generated list'!D7160=\"\",\"\",'Generated list'!D7160)","v":""}]
[null,{"$f":"IF('Generated list'!B7161=\"\",\"\",'Generated list'!B7161)","v":""},{"$f":"IF('Generated list'!C7161=\"\",\"\",'Generated list'!C7161)","v":""},{"$f":"IF('Generated list'!D7161=\"\",\"\",'Generated list'!D7161)","v":""}]
[null,{"$f":"IF('Generated list'!B7162=\"\",\"\",'Generated list'!B7162)","v":""},{"$f":"IF('Generated list'!C7162=\"\",\"\",'Generated list'!C7162)","v":""},{"$f":"IF('Generated list'!D7162=\"\",\"\",'Generated list'!D7162)","v":""}]
[null,{"$f":"IF('Generated list'!B7163=\"\",\"\",'Generated list'!B7163)","v":""},{"$f":"IF('Generated list'!C7163=\"\",\"\",'Generated list'!C7163)","v":""},{"$f":"IF('Generated list'!D7163=\"\",\"\",'Generated list'!D7163)","v":""}]
[null,{"$f":"IF('Generated list'!B7164=\"\",\"\",'Generated list'!B7164)","v":""},{"$f":"IF('Generated list'!C7164=\"\",\"\",'Generated list'!C7164)","v":""},{"$f":"IF('Generated list'!D7164=\"\",\"\",'Generated list'!D7164)","v":""}]
[null,{"$f":"IF('Generated list'!B7165=\"\",\"\",'Generated list'!B7165)","v":""},{"$f":"IF('Generated list'!C7165=\"\",\"\",'Generated list'!C7165)","v":""},{"$f":"IF('Generated list'!D7165=\"\",\"\",'Generated list'!D7165)","v":""}]
[null,{"$f":"IF('Generated list'!B7166=\"\",\"\",'Generated list'!B7166)","v":""},{"$f":"IF('Generated list'!C7166=\"\",\"\",'Generated list'!C7166)","v":""},{"$f":"IF('Generated list'!D7166=\"\",\"\",'Generated list'!D7166)","v":""}]
[null,{"$f":"IF('Generated list'!B7167=\"\",\"\",'Generated list'!B7167)","v":""},{"$f":"IF('Generated list'!C7167=\"\",\"\",'Generated list'!C7167)","v":""},{"$f":"IF('Generated list'!D7167=\"\",\"\",'Generated list'!D7167)","v":""}]
[null,{"$f":"IF('Generated list'!B7168=\"\",\"\",'Generated list'!B7168)","v":""},{"$f":"IF('Generated list'!C7168=\"\",\"\",'Generated list'!C7168)","v":""},{"$f":"IF('Generated list'!D7168=\"\",\"\",'Generated list'!D7168)","v":""}]
[null,{"$f":"IF('Generated list'!B7169=\"\",\"\",'Generated list'!B7169)","v":""},{"$f":"IF('Generated list'!C7169=\"\",\"\",'Generated list'!C7169)","v":""},{"$f":"IF('Generated list'!D7169=\"\",\"\",'Generated list'!D7169)","v":""}]
[null,{"$f":"IF('Generated list'!B7170=\"\",\"\",'Generated list'!B7170)","v":""},{"$f":"IF('Generated list'!C7170=\"\",\"\",'Generated list'!C7170)","v":""},{"$f":"IF('Generated list'!D7170=\"\",\"\",'Generated list'!D7170)","v":""}]
[null,{"$f":"IF('Generated list'!B7171=\"\",\"\",'Generated list'!B7171)","v":""},{"$f":"IF('Generated list'!C7171=\"\",\"\",'Generated list'!C7171)","v":""},{"$f":"IF('Generated list'!D7171=\"\",\"\",'Generated list'!D7171)","v":""}]
[null,{"$f":"IF('Generated list'!B7172=\"\",\"\",'Generated list'!B7172)","v":""},{"$f":"IF('Generated list'!C7172=\"\",\"\",'Generated list'!C7172)","v":""},{"$f":"IF('Generated list'!D7172=\"\",\"\",'Generated list'!D7172)","v":""}]
[null,{"$f":"IF('Generated list'!B7173=\"\",\"\",'Generated list'!B7173)","v":""},{"$f":"IF('Generated list'!C7173=\"\",\"\",'Generated list'!C7173)","v":""},{"$f":"IF('Generated list'!D7173=\"\",\"\",'Generated list'!D7173)","v":""}]
[null,{"$f":"IF('Generated list'!B7174=\"\",\"\",'Generated list'!B7174)","v":""},{"$f":"IF('Generated list'!C7174=\"\",\"\",'Generated list'!C7174)","v":""},{"$f":"IF('Generated list'!D7174=\"\",\"\",'Generated list'!D7174)","v":""}]
[null,{"$f":"IF('Generated list'!B7175=\"\",\"\",'Generated list'!B7175)","v":""},{"$f":"IF('Generated list'!C7175=\"\",\"\",'Generated list'!C7175)","v":""},{"$f":"IF('Generated list'!D7175=\"\",\"\",'Generated list'!D7175)","v":""}]
[null,{"$f":"IF('Generated list'!B7176=\"\",\"\",'Generated list'!B7176)","v":""},{"$f":"IF('Generated list'!C7176=\"\",\"\",'Generated list'!C7176)","v":""},{"$f":"IF('Generated list'!D7176=\"\",\"\",'Generated list'!D7176)","v":""}]
[null,{"$f":"IF('Generated list'!B7177=\"\",\"\",'Generated list'!B7177)","v":""},{"$f":"IF('Generated list'!C7177=\"\",\"\",'Generated list'!C7177)","v":""},{"$f":"IF('Generated list'!D7177=\"\",\"\",'Generated list'!D7177)","v":""}]
[null,{"$f":"IF('Generated list'!B7178=\"\",\"\",'Generated list'!B7178)","v":""},{"$f":"IF('Generated list'!C7178=\"\",\"\",'Generated list'!C7178)","v":""},{"$f":"IF('Generated list'!D7178=\"\",\"\",'Generated list'!D7178)","v":""}]
[null,{"$f":"IF('Generated list'!B7179=\"\",\"\",'Generated list'!B7179)","v":""},{"$f":"IF('Generated list'!C7179=\"\",\"\",'Generated list'!C7179)","v":""},{"$f":"IF('Generated list'!D7179=\"\",\"\",'Generated list'!D7179)","v":""}]
[null,{"$f":"IF('Generated list'!B7180=\"\",\"\",'Generated list'!B7180)","v":""},{"$f":"IF('Generated list'!C7180=\"\",\"\",'Generated list'!C7180)","v":""},{"$f":"IF('Generated list'!D7180=\"\",\"\",'Generated list'!D7180)","v":""}]
[null,{"$f":"IF('Generated list'!B7181=\"\",\"\",'Generated list'!B7181)","v":""},{"$f":"IF('Generated list'!C7181=\"\",\"\",'Generated list'!C7181)","v":""},{"$f":"IF('Generated list'!D7181=\"\",\"\",'Generated list'!D7181)","v":""}]
[null,{"$f":"IF('Generated list'!B7182=\"\",\"\",'Generated list'!B7182)","v":""},{"$f":"IF('Generated list'!C7182=\"\",\"\",'Generated list'!C7182)","v":""},{"$f":"IF('Generated list'!D7182=\"\",\"\",'Generated list'!D7182)","v":""}]
[null,{"$f":"IF('Generated list'!B7183=\"\",\"\",'Generated list'!B7183)","v":""},{"$f":"IF('Generated list'!C7183=\"\",\"\",'Generated list'!C7183)","v":""},{"$f":"IF('Generated list'!D7183=\"\",\"\",'Generated list'!D7183)","v":""}]
[null,{"$f":"IF('Generated list'!B7184=\"\",\"\",'Generated list'!B7184)","v":""},{"$f":"IF('Generated list'!C7184=\"\",\"\",'Generated list'!C7184)","v":""},{"$f":"IF('Generated list'!D7184=\"\",\"\",'Generated list'!D7184)","v":""}]
[null,{"$f":"IF('Generated list'!B7185=\"\",\"\",'Generated list'!B7185)","v":""},{"$f":"IF('Generated list'!C7185=\"\",\"\",'Generated list'!C7185)","v":""},{"$f":"IF('Generated list'!D7185=\"\",\"\",'Generated list'!D7185)","v":""}]
[null,{"$f":"IF('Generated list'!B7186=\"\",\"\",'Generated list'!B7186)","v":""},{"$f":"IF('Generated list'!C7186=\"\",\"\",'Generated list'!C7186)","v":""},{"$f":"IF('Generated list'!D7186=\"\",\"\",'Generated list'!D7186)","v":""}]
[null,{"$f":"IF('Generated list'!B7187=\"\",\"\",'Generated list'!B7187)","v":""},{"$f":"IF('Generated list'!C7187=\"\",\"\",'Generated list'!C7187)","v":""},{"$f":"IF('Generated list'!D7187=\"\",\"\",'Generated list'!D7187)","v":""}]
[null,{"$f":"IF('Generated list'!B7188=\"\",\"\",'Generated list'!B7188)","v":""},{"$f":"IF('Generated list'!C7188=\"\",\"\",'Generated list'!C7188)","v":""},{"$f":"IF('Generated list'!D7188=\"\",\"\",'Generated list'!D7188)","v":""}]
[null,{"$f":"IF('Generated list'!B7189=\"\",\"\",'Generated list'!B7189)","v":""},{"$f":"IF('Generated list'!C7189=\"\",\"\",'Generated list'!C7189)","v":""},{"$f":"IF('Generated list'!D7189=\"\",\"\",'Generated list'!D7189)","v":""}]
[null,{"$f":"IF('Generated list'!B7190=\"\",\"\",'Generated list'!B7190)","v":""},{"$f":"IF('Generated list'!C7190=\"\",\"\",'Generated list'!C7190)","v":""},{"$f":"IF('Generated list'!D7190=\"\",\"\",'Generated list'!D7190)","v":""}]
[null,{"$f":"IF('Generated list'!B7191=\"\",\"\",'Generated list'!B7191)","v":""},{"$f":"IF('Generated list'!C7191=\"\",\"\",'Generated list'!C7191)","v":""},{"$f":"IF('Generated list'!D7191=\"\",\"\",'Generated list'!D7191)","v":""}]
[null,{"$f":"IF('Generated list'!B7192=\"\",\"\",'Generated list'!B7192)","v":""},{"$f":"IF('Generated list'!C7192=\"\",\"\",'Generated list'!C7192)","v":""},{"$f":"IF('Generated list'!D7192=\"\",\"\",'Generated list'!D7192)","v":""}]
[null,{"$f":"IF('Generated list'!B7193=\"\",\"\",'Generated list'!B7193)","v":""},{"$f":"IF('Generated list'!C7193=\"\",\"\",'Generated list'!C7193)","v":""},{"$f":"IF('Generated list'!D7193=\"\",\"\",'Generated list'!D7193)","v":""}]
[null,{"$f":"IF('Generated list'!B7194=\"\",\"\",'Generated list'!B7194)","v":""},{"$f":"IF('Generated list'!C7194=\"\",\"\",'Generated list'!C7194)","v":""},{"$f":"IF('Generated list'!D7194=\"\",\"\",'Generated list'!D7194)","v":""}]
[null,{"$f":"IF('Generated list'!B7195=\"\",\"\",'Generated list'!B7195)","v":""},{"$f":"IF('Generated list'!C7195=\"\",\"\",'Generated list'!C7195)","v":""},{"$f":"IF('Generated list'!D7195=\"\",\"\",'Generated list'!D7195)","v":""}]
[null,{"$f":"IF('Generated list'!B7196=\"\",\"\",'Generated list'!B7196)","v":""},{"$f":"IF('Generated list'!C7196=\"\",\"\",'Generated list'!C7196)","v":""},{"$f":"IF('Generated list'!D7196=\"\",\"\",'Generated list'!D7196)","v":""}]
[null,{"$f":"IF('Generated list'!B7197=\"\",\"\",'Generated list'!B7197)","v":""},{"$f":"IF('Generated list'!C7197=\"\",\"\",'Generated list'!C7197)","v":""},{"$f":"IF('Generated list'!D7197=\"\",\"\",'Generated list'!D7197)","v":""}]
[null,{"$f":"IF('Generated list'!B7198=\"\",\"\",'Generated list'!B7198)","v":""},{"$f":"IF('Generated list'!C7198=\"\",\"\",'Generated list'!C7198)","v":""},{"$f":"IF('Generated list'!D7198=\"\",\"\",'Generated list'!D7198)","v":""}]
[null,{"$f":"IF('Generated list'!B7199=\"\",\"\",'Generated list'!B7199)","v":""},{"$f":"IF('Generated list'!C7199=\"\",\"\",'Generated list'!C7199)","v":""},{"$f":"IF('Generated list'!D7199=\"\",\"\",'Generated list'!D7199)","v":""}]
[null,{"$f":"IF('Generated list'!B7200=\"\",\"\",'Generated list'!B7200)","v":""},{"$f":"IF('Generated list'!C7200=\"\",\"\",'Generated list'!C7200)","v":""},{"$f":"IF('Generated list'!D7200=\"\",\"\",'Generated list'!D7200)","v":""}]
[null,{"$f":"IF('Generated list'!B7201=\"\",\"\",'Generated list'!B7201)","v":""},{"$f":"IF('Generated list'!C7201=\"\",\"\",'Generated list'!C7201)","v":""},{"$f":"IF('Generated list'!D7201=\"\",\"\",'Generated list'!D7201)","v":""}]
[null,{"$f":"IF('Generated list'!B7202=\"\",\"\",'Generated list'!B7202)","v":""},{"$f":"IF('Generated list'!C7202=\"\",\"\",'Generated list'!C7202)","v":""},{"$f":"IF('Generated list'!D7202=\"\",\"\",'Generated list'!D7202)","v":""}]
[null,{"$f":"IF('Generated list'!B7203=\"\",\"\",'Generated list'!B7203)","v":""},{"$f":"IF('Generated list'!C7203=\"\",\"\",'Generated list'!C7203)","v":""},{"$f":"IF('Generated list'!D7203=\"\",\"\",'Generated list'!D7203)","v":""}]
[null,{"$f":"IF('Generated list'!B7204=\"\",\"\",'Generated list'!B7204)","v":""},{"$f":"IF('Generated list'!C7204=\"\",\"\",'Generated list'!C7204)","v":""},{"$f":"IF('Generated list'!D7204=\"\",\"\",'Generated list'!D7204)","v":""}]
[null,{"$f":"IF('Generated list'!B7205=\"\",\"\",'Generated list'!B7205)","v":""},{"$f":"IF('Generated list'!C7205=\"\",\"\",'Generated list'!C7205)","v":""},{"$f":"IF('Generated list'!D7205=\"\",\"\",'Generated list'!D7205)","v":""}]
[null,{"$f":"IF('Generated list'!B7206=\"\",\"\",'Generated list'!B7206)","v":""},{"$f":"IF('Generated list'!C7206=\"\",\"\",'Generated list'!C7206)","v":""},{"$f":"IF('Generated list'!D7206=\"\",\"\",'Generated list'!D7206)","v":""}]
[null,{"$f":"IF('Generated list'!B7207=\"\",\"\",'Generated list'!B7207)","v":""},{"$f":"IF('Generated list'!C7207=\"\",\"\",'Generated list'!C7207)","v":""},{"$f":"IF('Generated list'!D7207=\"\",\"\",'Generated list'!D7207)","v":""}]
[null,{"$f":"IF('Generated list'!B7208=\"\",\"\",'Generated list'!B7208)","v":""},{"$f":"IF('Generated list'!C7208=\"\",\"\",'Generated list'!C7208)","v":""},{"$f":"IF('Generated list'!D7208=\"\",\"\",'Generated list'!D7208)","v":""}]
[null,{"$f":"IF('Generated list'!B7209=\"\",\"\",'Generated list'!B7209)","v":""},{"$f":"IF('Generated list'!C7209=\"\",\"\",'Generated list'!C7209)","v":""},{"$f":"IF('Generated list'!D7209=\"\",\"\",'Generated list'!D7209)","v":""}]
[null,{"$f":"IF('Generated list'!B7210=\"\",\"\",'Generated list'!B7210)","v":""},{"$f":"IF('Generated list'!C7210=\"\",\"\",'Generated list'!C7210)","v":""},{"$f":"IF('Generated list'!D7210=\"\",\"\",'Generated list'!D7210)","v":""}]
[null,{"$f":"IF('Generated list'!B7211=\"\",\"\",'Generated list'!B7211)","v":""},{"$f":"IF('Generated list'!C7211=\"\",\"\",'Generated list'!C7211)","v":""},{"$f":"IF('Generated list'!D7211=\"\",\"\",'Generated list'!D7211)","v":""}]
[null,{"$f":"IF('Generated list'!B7212=\"\",\"\",'Generated list'!B7212)","v":""},{"$f":"IF('Generated list'!C7212=\"\",\"\",'Generated list'!C7212)","v":""},{"$f":"IF('Generated list'!D7212=\"\",\"\",'Generated list'!D7212)","v":""}]
[null,{"$f":"IF('Generated list'!B7213=\"\",\"\",'Generated list'!B7213)","v":""},{"$f":"IF('Generated list'!C7213=\"\",\"\",'Generated list'!C7213)","v":""},{"$f":"IF('Generated list'!D7213=\"\",\"\",'Generated list'!D7213)","v":""}]
[null,{"$f":"IF('Generated list'!B7214=\"\",\"\",'Generated list'!B7214)","v":""},{"$f":"IF('Generated list'!C7214=\"\",\"\",'Generated list'!C7214)","v":""},{"$f":"IF('Generated list'!D7214=\"\",\"\",'Generated list'!D7214)","v":""}]
[null,{"$f":"IF('Generated list'!B7215=\"\",\"\",'Generated list'!B7215)","v":""},{"$f":"IF('Generated list'!C7215=\"\",\"\",'Generated list'!C7215)","v":""},{"$f":"IF('Generated list'!D7215=\"\",\"\",'Generated list'!D7215)","v":""}]
[null,{"$f":"IF('Generated list'!B7216=\"\",\"\",'Generated list'!B7216)","v":""},{"$f":"IF('Generated list'!C7216=\"\",\"\",'Generated list'!C7216)","v":""},{"$f":"IF('Generated list'!D7216=\"\",\"\",'Generated list'!D7216)","v":""}]
[null,{"$f":"IF('Generated list'!B7217=\"\",\"\",'Generated list'!B7217)","v":""},{"$f":"IF('Generated list'!C7217=\"\",\"\",'Generated list'!C7217)","v":""},{"$f":"IF('Generated list'!D7217=\"\",\"\",'Generated list'!D7217)","v":""}]
[null,{"$f":"IF('Generated list'!B7218=\"\",\"\",'Generated list'!B7218)","v":""},{"$f":"IF('Generated list'!C7218=\"\",\"\",'Generated list'!C7218)","v":""},{"$f":"IF('Generated list'!D7218=\"\",\"\",'Generated list'!D7218)","v":""}]
[null,{"$f":"IF('Generated list'!B7219=\"\",\"\",'Generated list'!B7219)","v":""},{"$f":"IF('Generated list'!C7219=\"\",\"\",'Generated list'!C7219)","v":""},{"$f":"IF('Generated list'!D7219=\"\",\"\",'Generated list'!D7219)","v":""}]
[null,{"$f":"IF('Generated list'!B7220=\"\",\"\",'Generated list'!B7220)","v":""},{"$f":"IF('Generated list'!C7220=\"\",\"\",'Generated list'!C7220)","v":""},{"$f":"IF('Generated list'!D7220=\"\",\"\",'Generated list'!D7220)","v":""}]
[null,{"$f":"IF('Generated list'!B7221=\"\",\"\",'Generated list'!B7221)","v":""},{"$f":"IF('Generated list'!C7221=\"\",\"\",'Generated list'!C7221)","v":""},{"$f":"IF('Generated list'!D7221=\"\",\"\",'Generated list'!D7221)","v":""}]
[null,{"$f":"IF('Generated list'!B7222=\"\",\"\",'Generated list'!B7222)","v":""},{"$f":"IF('Generated list'!C7222=\"\",\"\",'Generated list'!C7222)","v":""},{"$f":"IF('Generated list'!D7222=\"\",\"\",'Generated list'!D7222)","v":""}]
[null,{"$f":"IF('Generated list'!B7223=\"\",\"\",'Generated list'!B7223)","v":""},{"$f":"IF('Generated list'!C7223=\"\",\"\",'Generated list'!C7223)","v":""},{"$f":"IF('Generated list'!D7223=\"\",\"\",'Generated list'!D7223)","v":""}]
[null,{"$f":"IF('Generated list'!B7224=\"\",\"\",'Generated list'!B7224)","v":""},{"$f":"IF('Generated list'!C7224=\"\",\"\",'Generated list'!C7224)","v":""},{"$f":"IF('Generated list'!D7224=\"\",\"\",'Generated list'!D7224)","v":""}]
[null,{"$f":"IF('Generated list'!B7225=\"\",\"\",'Generated list'!B7225)","v":""},{"$f":"IF('Generated list'!C7225=\"\",\"\",'Generated list'!C7225)","v":""},{"$f":"IF('Generated list'!D7225=\"\",\"\",'Generated list'!D7225)","v":""}]
[null,{"$f":"IF('Generated list'!B7226=\"\",\"\",'Generated list'!B7226)","v":""},{"$f":"IF('Generated list'!C7226=\"\",\"\",'Generated list'!C7226)","v":""},{"$f":"IF('Generated list'!D7226=\"\",\"\",'Generated list'!D7226)","v":""}]
[null,{"$f":"IF('Generated list'!B7227=\"\",\"\",'Generated list'!B7227)","v":""},{"$f":"IF('Generated list'!C7227=\"\",\"\",'Generated list'!C7227)","v":""},{"$f":"IF('Generated list'!D7227=\"\",\"\",'Generated list'!D7227)","v":""}]
[null,{"$f":"IF('Generated list'!B7228=\"\",\"\",'Generated list'!B7228)","v":""},{"$f":"IF('Generated list'!C7228=\"\",\"\",'Generated list'!C7228)","v":""},{"$f":"IF('Generated list'!D7228=\"\",\"\",'Generated list'!D7228)","v":""}]
[null,{"$f":"IF('Generated list'!B7229=\"\",\"\",'Generated list'!B7229)","v":""},{"$f":"IF('Generated list'!C7229=\"\",\"\",'Generated list'!C7229)","v":""},{"$f":"IF('Generated list'!D7229=\"\",\"\",'Generated list'!D7229)","v":""}]
[null,{"$f":"IF('Generated list'!B7230=\"\",\"\",'Generated list'!B7230)","v":""},{"$f":"IF('Generated list'!C7230=\"\",\"\",'Generated list'!C7230)","v":""},{"$f":"IF('Generated list'!D7230=\"\",\"\",'Generated list'!D7230)","v":""}]
[null,{"$f":"IF('Generated list'!B7231=\"\",\"\",'Generated list'!B7231)","v":""},{"$f":"IF('Generated list'!C7231=\"\",\"\",'Generated list'!C7231)","v":""},{"$f":"IF('Generated list'!D7231=\"\",\"\",'Generated list'!D7231)","v":""}]
[null,{"$f":"IF('Generated list'!B7232=\"\",\"\",'Generated list'!B7232)","v":""},{"$f":"IF('Generated list'!C7232=\"\",\"\",'Generated list'!C7232)","v":""},{"$f":"IF('Generated list'!D7232=\"\",\"\",'Generated list'!D7232)","v":""}]
[null,{"$f":"IF('Generated list'!B7233=\"\",\"\",'Generated list'!B7233)","v":""},{"$f":"IF('Generated list'!C7233=\"\",\"\",'Generated list'!C7233)","v":""},{"$f":"IF('Generated list'!D7233=\"\",\"\",'Generated list'!D7233)","v":""}]
[null,{"$f":"IF('Generated list'!B7234=\"\",\"\",'Generated list'!B7234)","v":""},{"$f":"IF('Generated list'!C7234=\"\",\"\",'Generated list'!C7234)","v":""},{"$f":"IF('Generated list'!D7234=\"\",\"\",'Generated list'!D7234)","v":""}]
[null,{"$f":"IF('Generated list'!B7235=\"\",\"\",'Generated list'!B7235)","v":""},{"$f":"IF('Generated list'!C7235=\"\",\"\",'Generated list'!C7235)","v":""},{"$f":"IF('Generated list'!D7235=\"\",\"\",'Generated list'!D7235)","v":""}]
[null,{"$f":"IF('Generated list'!B7236=\"\",\"\",'Generated list'!B7236)","v":""},{"$f":"IF('Generated list'!C7236=\"\",\"\",'Generated list'!C7236)","v":""},{"$f":"IF('Generated list'!D7236=\"\",\"\",'Generated list'!D7236)","v":""}]
[null,{"$f":"IF('Generated list'!B7237=\"\",\"\",'Generated list'!B7237)","v":""},{"$f":"IF('Generated list'!C7237=\"\",\"\",'Generated list'!C7237)","v":""},{"$f":"IF('Generated list'!D7237=\"\",\"\",'Generated list'!D7237)","v":""}]
[null,{"$f":"IF('Generated list'!B7238=\"\",\"\",'Generated list'!B7238)","v":""},{"$f":"IF('Generated list'!C7238=\"\",\"\",'Generated list'!C7238)","v":""},{"$f":"IF('Generated list'!D7238=\"\",\"\",'Generated list'!D7238)","v":""}]
[null,{"$f":"IF('Generated list'!B7239=\"\",\"\",'Generated list'!B7239)","v":""},{"$f":"IF('Generated list'!C7239=\"\",\"\",'Generated list'!C7239)","v":""},{"$f":"IF('Generated list'!D7239=\"\",\"\",'Generated list'!D7239)","v":""}]
[null,{"$f":"IF('Generated list'!B7240=\"\",\"\",'Generated list'!B7240)","v":""},{"$f":"IF('Generated list'!C7240=\"\",\"\",'Generated list'!C7240)","v":""},{"$f":"IF('Generated list'!D7240=\"\",\"\",'Generated list'!D7240)","v":""}]
[null,{"$f":"IF('Generated list'!B7241=\"\",\"\",'Generated list'!B7241)","v":""},{"$f":"IF('Generated list'!C7241=\"\",\"\",'Generated list'!C7241)","v":""},{"$f":"IF('Generated list'!D7241=\"\",\"\",'Generated list'!D7241)","v":""}]
[null,{"$f":"IF('Generated list'!B7242=\"\",\"\",'Generated list'!B7242)","v":""},{"$f":"IF('Generated list'!C7242=\"\",\"\",'Generated list'!C7242)","v":""},{"$f":"IF('Generated list'!D7242=\"\",\"\",'Generated list'!D7242)","v":""}]
[null,{"$f":"IF('Generated list'!B7243=\"\",\"\",'Generated list'!B7243)","v":""},{"$f":"IF('Generated list'!C7243=\"\",\"\",'Generated list'!C7243)","v":""},{"$f":"IF('Generated list'!D7243=\"\",\"\",'Generated list'!D7243)","v":""}]
[null,{"$f":"IF('Generated list'!B7244=\"\",\"\",'Generated list'!B7244)","v":""},{"$f":"IF('Generated list'!C7244=\"\",\"\",'Generated list'!C7244)","v":""},{"$f":"IF('Generated list'!D7244=\"\",\"\",'Generated list'!D7244)","v":""}]
[null,{"$f":"IF('Generated list'!B7245=\"\",\"\",'Generated list'!B7245)","v":""},{"$f":"IF('Generated list'!C7245=\"\",\"\",'Generated list'!C7245)","v":""},{"$f":"IF('Generated list'!D7245=\"\",\"\",'Generated list'!D7245)","v":""}]
[null,{"$f":"IF('Generated list'!B7246=\"\",\"\",'Generated list'!B7246)","v":""},{"$f":"IF('Generated list'!C7246=\"\",\"\",'Generated list'!C7246)","v":""},{"$f":"IF('Generated list'!D7246=\"\",\"\",'Generated list'!D7246)","v":""}]
[null,{"$f":"IF('Generated list'!B7247=\"\",\"\",'Generated list'!B7247)","v":""},{"$f":"IF('Generated list'!C7247=\"\",\"\",'Generated list'!C7247)","v":""},{"$f":"IF('Generated list'!D7247=\"\",\"\",'Generated list'!D7247)","v":""}]
[null,{"$f":"IF('Generated list'!B7248=\"\",\"\",'Generated list'!B7248)","v":""},{"$f":"IF('Generated list'!C7248=\"\",\"\",'Generated list'!C7248)","v":""},{"$f":"IF('Generated list'!D7248=\"\",\"\",'Generated list'!D7248)","v":""}]
[null,{"$f":"IF('Generated list'!B7249=\"\",\"\",'Generated list'!B7249)","v":""},{"$f":"IF('Generated list'!C7249=\"\",\"\",'Generated list'!C7249)","v":""},{"$f":"IF('Generated list'!D7249=\"\",\"\",'Generated list'!D7249)","v":""}]
[null,{"$f":"IF('Generated list'!B7250=\"\",\"\",'Generated list'!B7250)","v":""},{"$f":"IF('Generated list'!C7250=\"\",\"\",'Generated list'!C7250)","v":""},{"$f":"IF('Generated list'!D7250=\"\",\"\",'Generated list'!D7250)","v":""}]
[null,{"$f":"IF('Generated list'!B7251=\"\",\"\",'Generated list'!B7251)","v":""},{"$f":"IF('Generated list'!C7251=\"\",\"\",'Generated list'!C7251)","v":""},{"$f":"IF('Generated list'!D7251=\"\",\"\",'Generated list'!D7251)","v":""}]
[null,{"$f":"IF('Generated list'!B7252=\"\",\"\",'Generated list'!B7252)","v":""},{"$f":"IF('Generated list'!C7252=\"\",\"\",'Generated list'!C7252)","v":""},{"$f":"IF('Generated list'!D7252=\"\",\"\",'Generated list'!D7252)","v":""}]
[null,{"$f":"IF('Generated list'!B7253=\"\",\"\",'Generated list'!B7253)","v":""},{"$f":"IF('Generated list'!C7253=\"\",\"\",'Generated list'!C7253)","v":""},{"$f":"IF('Generated list'!D7253=\"\",\"\",'Generated list'!D7253)","v":""}]
[null,{"$f":"IF('Generated list'!B7254=\"\",\"\",'Generated list'!B7254)","v":""},{"$f":"IF('Generated list'!C7254=\"\",\"\",'Generated list'!C7254)","v":""},{"$f":"IF('Generated list'!D7254=\"\",\"\",'Generated list'!D7254)","v":""}]
[null,{"$f":"IF('Generated list'!B7255=\"\",\"\",'Generated list'!B7255)","v":""},{"$f":"IF('Generated list'!C7255=\"\",\"\",'Generated list'!C7255)","v":""},{"$f":"IF('Generated list'!D7255=\"\",\"\",'Generated list'!D7255)","v":""}]
[null,{"$f":"IF('Generated list'!B7256=\"\",\"\",'Generated list'!B7256)","v":""},{"$f":"IF('Generated list'!C7256=\"\",\"\",'Generated list'!C7256)","v":""},{"$f":"IF('Generated list'!D7256=\"\",\"\",'Generated list'!D7256)","v":""}]
[null,{"$f":"IF('Generated list'!B7257=\"\",\"\",'Generated list'!B7257)","v":""},{"$f":"IF('Generated list'!C7257=\"\",\"\",'Generated list'!C7257)","v":""},{"$f":"IF('Generated list'!D7257=\"\",\"\",'Generated list'!D7257)","v":""}]
[null,{"$f":"IF('Generated list'!B7258=\"\",\"\",'Generated list'!B7258)","v":""},{"$f":"IF('Generated list'!C7258=\"\",\"\",'Generated list'!C7258)","v":""},{"$f":"IF('Generated list'!D7258=\"\",\"\",'Generated list'!D7258)","v":""}]
[null,{"$f":"IF('Generated list'!B7259=\"\",\"\",'Generated list'!B7259)","v":""},{"$f":"IF('Generated list'!C7259=\"\",\"\",'Generated list'!C7259)","v":""},{"$f":"IF('Generated list'!D7259=\"\",\"\",'Generated list'!D7259)","v":""}]
[null,{"$f":"IF('Generated list'!B7260=\"\",\"\",'Generated list'!B7260)","v":""},{"$f":"IF('Generated list'!C7260=\"\",\"\",'Generated list'!C7260)","v":""},{"$f":"IF('Generated list'!D7260=\"\",\"\",'Generated list'!D7260)","v":""}]
[null,{"$f":"IF('Generated list'!B7261=\"\",\"\",'Generated list'!B7261)","v":""},{"$f":"IF('Generated list'!C7261=\"\",\"\",'Generated list'!C7261)","v":""},{"$f":"IF('Generated list'!D7261=\"\",\"\",'Generated list'!D7261)","v":""}]
[null,{"$f":"IF('Generated list'!B7262=\"\",\"\",'Generated list'!B7262)","v":""},{"$f":"IF('Generated list'!C7262=\"\",\"\",'Generated list'!C7262)","v":""},{"$f":"IF('Generated list'!D7262=\"\",\"\",'Generated list'!D7262)","v":""}]
[null,{"$f":"IF('Generated list'!B7263=\"\",\"\",'Generated list'!B7263)","v":""},{"$f":"IF('Generated list'!C7263=\"\",\"\",'Generated list'!C7263)","v":""},{"$f":"IF('Generated list'!D7263=\"\",\"\",'Generated list'!D7263)","v":""}]
[null,{"$f":"IF('Generated list'!B7264=\"\",\"\",'Generated list'!B7264)","v":""},{"$f":"IF('Generated list'!C7264=\"\",\"\",'Generated list'!C7264)","v":""},{"$f":"IF('Generated list'!D7264=\"\",\"\",'Generated list'!D7264)","v":""}]
[null,{"$f":"IF('Generated list'!B7265=\"\",\"\",'Generated list'!B7265)","v":""},{"$f":"IF('Generated list'!C7265=\"\",\"\",'Generated list'!C7265)","v":""},{"$f":"IF('Generated list'!D7265=\"\",\"\",'Generated list'!D7265)","v":""}]
[null,{"$f":"IF('Generated list'!B7266=\"\",\"\",'Generated list'!B7266)","v":""},{"$f":"IF('Generated list'!C7266=\"\",\"\",'Generated list'!C7266)","v":""},{"$f":"IF('Generated list'!D7266=\"\",\"\",'Generated list'!D7266)","v":""}]
[null,{"$f":"IF('Generated list'!B7267=\"\",\"\",'Generated list'!B7267)","v":""},{"$f":"IF('Generated list'!C7267=\"\",\"\",'Generated list'!C7267)","v":""},{"$f":"IF('Generated list'!D7267=\"\",\"\",'Generated list'!D7267)","v":""}]
[null,{"$f":"IF('Generated list'!B7268=\"\",\"\",'Generated list'!B7268)","v":""},{"$f":"IF('Generated list'!C7268=\"\",\"\",'Generated list'!C7268)","v":""},{"$f":"IF('Generated list'!D7268=\"\",\"\",'Generated list'!D7268)","v":""}]
[null,{"$f":"IF('Generated list'!B7269=\"\",\"\",'Generated list'!B7269)","v":""},{"$f":"IF('Generated list'!C7269=\"\",\"\",'Generated list'!C7269)","v":""},{"$f":"IF('Generated list'!D7269=\"\",\"\",'Generated list'!D7269)","v":""}]
[null,{"$f":"IF('Generated list'!B7270=\"\",\"\",'Generated list'!B7270)","v":""},{"$f":"IF('Generated list'!C7270=\"\",\"\",'Generated list'!C7270)","v":""},{"$f":"IF('Generated list'!D7270=\"\",\"\",'Generated list'!D7270)","v":""}]
[null,{"$f":"IF('Generated list'!B7271=\"\",\"\",'Generated list'!B7271)","v":""},{"$f":"IF('Generated list'!C7271=\"\",\"\",'Generated list'!C7271)","v":""},{"$f":"IF('Generated list'!D7271=\"\",\"\",'Generated list'!D7271)","v":""}]
[null,{"$f":"IF('Generated list'!B7272=\"\",\"\",'Generated list'!B7272)","v":""},{"$f":"IF('Generated list'!C7272=\"\",\"\",'Generated list'!C7272)","v":""},{"$f":"IF('Generated list'!D7272=\"\",\"\",'Generated list'!D7272)","v":""}]
[null,{"$f":"IF('Generated list'!B7273=\"\",\"\",'Generated list'!B7273)","v":""},{"$f":"IF('Generated list'!C7273=\"\",\"\",'Generated list'!C7273)","v":""},{"$f":"IF('Generated list'!D7273=\"\",\"\",'Generated list'!D7273)","v":""}]
[null,{"$f":"IF('Generated list'!B7274=\"\",\"\",'Generated list'!B7274)","v":""},{"$f":"IF('Generated list'!C7274=\"\",\"\",'Generated list'!C7274)","v":""},{"$f":"IF('Generated list'!D7274=\"\",\"\",'Generated list'!D7274)","v":""}]
[null,{"$f":"IF('Generated list'!B7275=\"\",\"\",'Generated list'!B7275)","v":""},{"$f":"IF('Generated list'!C7275=\"\",\"\",'Generated list'!C7275)","v":""},{"$f":"IF('Generated list'!D7275=\"\",\"\",'Generated list'!D7275)","v":""}]
[null,{"$f":"IF('Generated list'!B7276=\"\",\"\",'Generated list'!B7276)","v":""},{"$f":"IF('Generated list'!C7276=\"\",\"\",'Generated list'!C7276)","v":""},{"$f":"IF('Generated list'!D7276=\"\",\"\",'Generated list'!D7276)","v":""}]
[null,{"$f":"IF('Generated list'!B7277=\"\",\"\",'Generated list'!B7277)","v":""},{"$f":"IF('Generated list'!C7277=\"\",\"\",'Generated list'!C7277)","v":""},{"$f":"IF('Generated list'!D7277=\"\",\"\",'Generated list'!D7277)","v":""}]
[null,{"$f":"IF('Generated list'!B7278=\"\",\"\",'Generated list'!B7278)","v":""},{"$f":"IF('Generated list'!C7278=\"\",\"\",'Generated list'!C7278)","v":""},{"$f":"IF('Generated list'!D7278=\"\",\"\",'Generated list'!D7278)","v":""}]
[null,{"$f":"IF('Generated list'!B7279=\"\",\"\",'Generated list'!B7279)","v":""},{"$f":"IF('Generated list'!C7279=\"\",\"\",'Generated list'!C7279)","v":""},{"$f":"IF('Generated list'!D7279=\"\",\"\",'Generated list'!D7279)","v":""}]
[null,{"$f":"IF('Generated list'!B7280=\"\",\"\",'Generated list'!B7280)","v":""},{"$f":"IF('Generated list'!C7280=\"\",\"\",'Generated list'!C7280)","v":""},{"$f":"IF('Generated list'!D7280=\"\",\"\",'Generated list'!D7280)","v":""}]
[null,{"$f":"IF('Generated list'!B7281=\"\",\"\",'Generated list'!B7281)","v":""},{"$f":"IF('Generated list'!C7281=\"\",\"\",'Generated list'!C7281)","v":""},{"$f":"IF('Generated list'!D7281=\"\",\"\",'Generated list'!D7281)","v":""}]
[null,{"$f":"IF('Generated list'!B7282=\"\",\"\",'Generated list'!B7282)","v":""},{"$f":"IF('Generated list'!C7282=\"\",\"\",'Generated list'!C7282)","v":""},{"$f":"IF('Generated list'!D7282=\"\",\"\",'Generated list'!D7282)","v":""}]
[null,{"$f":"IF('Generated list'!B7283=\"\",\"\",'Generated list'!B7283)","v":""},{"$f":"IF('Generated list'!C7283=\"\",\"\",'Generated list'!C7283)","v":""},{"$f":"IF('Generated list'!D7283=\"\",\"\",'Generated list'!D7283)","v":""}]
[null,{"$f":"IF('Generated list'!B7284=\"\",\"\",'Generated list'!B7284)","v":""},{"$f":"IF('Generated list'!C7284=\"\",\"\",'Generated list'!C7284)","v":""},{"$f":"IF('Generated list'!D7284=\"\",\"\",'Generated list'!D7284)","v":""}]
[null,{"$f":"IF('Generated list'!B7285=\"\",\"\",'Generated list'!B7285)","v":""},{"$f":"IF('Generated list'!C7285=\"\",\"\",'Generated list'!C7285)","v":""},{"$f":"IF('Generated list'!D7285=\"\",\"\",'Generated list'!D7285)","v":""}]
[null,{"$f":"IF('Generated list'!B7286=\"\",\"\",'Generated list'!B7286)","v":""},{"$f":"IF('Generated list'!C7286=\"\",\"\",'Generated list'!C7286)","v":""},{"$f":"IF('Generated list'!D7286=\"\",\"\",'Generated list'!D7286)","v":""}]
[null,{"$f":"IF('Generated list'!B7287=\"\",\"\",'Generated list'!B7287)","v":""},{"$f":"IF('Generated list'!C7287=\"\",\"\",'Generated list'!C7287)","v":""},{"$f":"IF('Generated list'!D7287=\"\",\"\",'Generated list'!D7287)","v":""}]
[null,{"$f":"IF('Generated list'!B7288=\"\",\"\",'Generated list'!B7288)","v":""},{"$f":"IF('Generated list'!C7288=\"\",\"\",'Generated list'!C7288)","v":""},{"$f":"IF('Generated list'!D7288=\"\",\"\",'Generated list'!D7288)","v":""}]
[null,{"$f":"IF('Generated list'!B7289=\"\",\"\",'Generated list'!B7289)","v":""},{"$f":"IF('Generated list'!C7289=\"\",\"\",'Generated list'!C7289)","v":""},{"$f":"IF('Generated list'!D7289=\"\",\"\",'Generated list'!D7289)","v":""}]
[null,{"$f":"IF('Generated list'!B7290=\"\",\"\",'Generated list'!B7290)","v":""},{"$f":"IF('Generated list'!C7290=\"\",\"\",'Generated list'!C7290)","v":""},{"$f":"IF('Generated list'!D7290=\"\",\"\",'Generated list'!D7290)","v":""}]
[null,{"$f":"IF('Generated list'!B7291=\"\",\"\",'Generated list'!B7291)","v":""},{"$f":"IF('Generated list'!C7291=\"\",\"\",'Generated list'!C7291)","v":""},{"$f":"IF('Generated list'!D7291=\"\",\"\",'Generated list'!D7291)","v":""}]
[null,{"$f":"IF('Generated list'!B7292=\"\",\"\",'Generated list'!B7292)","v":""},{"$f":"IF('Generated list'!C7292=\"\",\"\",'Generated list'!C7292)","v":""},{"$f":"IF('Generated list'!D7292=\"\",\"\",'Generated list'!D7292)","v":""}]
[null,{"$f":"IF('Generated list'!B7293=\"\",\"\",'Generated list'!B7293)","v":""},{"$f":"IF('Generated list'!C7293=\"\",\"\",'Generated list'!C7293)","v":""},{"$f":"IF('Generated list'!D7293=\"\",\"\",'Generated list'!D7293)","v":""}]
[null,{"$f":"IF('Generated list'!B7294=\"\",\"\",'Generated list'!B7294)","v":""},{"$f":"IF('Generated list'!C7294=\"\",\"\",'Generated list'!C7294)","v":""},{"$f":"IF('Generated list'!D7294=\"\",\"\",'Generated list'!D7294)","v":""}]
[null,{"$f":"IF('Generated list'!B7295=\"\",\"\",'Generated list'!B7295)","v":""},{"$f":"IF('Generated list'!C7295=\"\",\"\",'Generated list'!C7295)","v":""},{"$f":"IF('Generated list'!D7295=\"\",\"\",'Generated list'!D7295)","v":""}]
[null,{"$f":"IF('Generated list'!B7296=\"\",\"\",'Generated list'!B7296)","v":""},{"$f":"IF('Generated list'!C7296=\"\",\"\",'Generated list'!C7296)","v":""},{"$f":"IF('Generated list'!D7296=\"\",\"\",'Generated list'!D7296)","v":""}]
[null,{"$f":"IF('Generated list'!B7297=\"\",\"\",'Generated list'!B7297)","v":""},{"$f":"IF('Generated list'!C7297=\"\",\"\",'Generated list'!C7297)","v":""},{"$f":"IF('Generated list'!D7297=\"\",\"\",'Generated list'!D7297)","v":""}]
[null,{"$f":"IF('Generated list'!B7298=\"\",\"\",'Generated list'!B7298)","v":""},{"$f":"IF('Generated list'!C7298=\"\",\"\",'Generated list'!C7298)","v":""},{"$f":"IF('Generated list'!D7298=\"\",\"\",'Generated list'!D7298)","v":""}]
[null,{"$f":"IF('Generated list'!B7299=\"\",\"\",'Generated list'!B7299)","v":""},{"$f":"IF('Generated list'!C7299=\"\",\"\",'Generated list'!C7299)","v":""},{"$f":"IF('Generated list'!D7299=\"\",\"\",'Generated list'!D7299)","v":""}]
[null,{"$f":"IF('Generated list'!B7300=\"\",\"\",'Generated list'!B7300)","v":""},{"$f":"IF('Generated list'!C7300=\"\",\"\",'Generated list'!C7300)","v":""},{"$f":"IF('Generated list'!D7300=\"\",\"\",'Generated list'!D7300)","v":""}]
[null,{"$f":"IF('Generated list'!B7301=\"\",\"\",'Generated list'!B7301)","v":""},{"$f":"IF('Generated list'!C7301=\"\",\"\",'Generated list'!C7301)","v":""},{"$f":"IF('Generated list'!D7301=\"\",\"\",'Generated list'!D7301)","v":""}]
[null,{"$f":"IF('Generated list'!B7302=\"\",\"\",'Generated list'!B7302)","v":""},{"$f":"IF('Generated list'!C7302=\"\",\"\",'Generated list'!C7302)","v":""},{"$f":"IF('Generated list'!D7302=\"\",\"\",'Generated list'!D7302)","v":""}]
[null,{"$f":"IF('Generated list'!B7303=\"\",\"\",'Generated list'!B7303)","v":""},{"$f":"IF('Generated list'!C7303=\"\",\"\",'Generated list'!C7303)","v":""},{"$f":"IF('Generated list'!D7303=\"\",\"\",'Generated list'!D7303)","v":""}]
[null,{"$f":"IF('Generated list'!B7304=\"\",\"\",'Generated list'!B7304)","v":""},{"$f":"IF('Generated list'!C7304=\"\",\"\",'Generated list'!C7304)","v":""},{"$f":"IF('Generated list'!D7304=\"\",\"\",'Generated list'!D7304)","v":""}]
[null,{"$f":"IF('Generated list'!B7305=\"\",\"\",'Generated list'!B7305)","v":""},{"$f":"IF('Generated list'!C7305=\"\",\"\",'Generated list'!C7305)","v":""},{"$f":"IF('Generated list'!D7305=\"\",\"\",'Generated list'!D7305)","v":""}]
[null,{"$f":"IF('Generated list'!B7306=\"\",\"\",'Generated list'!B7306)","v":""},{"$f":"IF('Generated list'!C7306=\"\",\"\",'Generated list'!C7306)","v":""},{"$f":"IF('Generated list'!D7306=\"\",\"\",'Generated list'!D7306)","v":""}]
[null,{"$f":"IF('Generated list'!B7307=\"\",\"\",'Generated list'!B7307)","v":""},{"$f":"IF('Generated list'!C7307=\"\",\"\",'Generated list'!C7307)","v":""},{"$f":"IF('Generated list'!D7307=\"\",\"\",'Generated list'!D7307)","v":""}]
[null,{"$f":"IF('Generated list'!B7308=\"\",\"\",'Generated list'!B7308)","v":""},{"$f":"IF('Generated list'!C7308=\"\",\"\",'Generated list'!C7308)","v":""},{"$f":"IF('Generated list'!D7308=\"\",\"\",'Generated list'!D7308)","v":""}]
[null,{"$f":"IF('Generated list'!B7309=\"\",\"\",'Generated list'!B7309)","v":""},{"$f":"IF('Generated list'!C7309=\"\",\"\",'Generated list'!C7309)","v":""},{"$f":"IF('Generated list'!D7309=\"\",\"\",'Generated list'!D7309)","v":""}]
[null,{"$f":"IF('Generated list'!B7310=\"\",\"\",'Generated list'!B7310)","v":""},{"$f":"IF('Generated list'!C7310=\"\",\"\",'Generated list'!C7310)","v":""},{"$f":"IF('Generated list'!D7310=\"\",\"\",'Generated list'!D7310)","v":""}]
[null,{"$f":"IF('Generated list'!B7311=\"\",\"\",'Generated list'!B7311)","v":""},{"$f":"IF('Generated list'!C7311=\"\",\"\",'Generated list'!C7311)","v":""},{"$f":"IF('Generated list'!D7311=\"\",\"\",'Generated list'!D7311)","v":""}]
[null,{"$f":"IF('Generated list'!B7312=\"\",\"\",'Generated list'!B7312)","v":""},{"$f":"IF('Generated list'!C7312=\"\",\"\",'Generated list'!C7312)","v":""},{"$f":"IF('Generated list'!D7312=\"\",\"\",'Generated list'!D7312)","v":""}]
[null,{"$f":"IF('Generated list'!B7313=\"\",\"\",'Generated list'!B7313)","v":""},{"$f":"IF('Generated list'!C7313=\"\",\"\",'Generated list'!C7313)","v":""},{"$f":"IF('Generated list'!D7313=\"\",\"\",'Generated list'!D7313)","v":""}]
[null,{"$f":"IF('Generated list'!B7314=\"\",\"\",'Generated list'!B7314)","v":""},{"$f":"IF('Generated list'!C7314=\"\",\"\",'Generated list'!C7314)","v":""},{"$f":"IF('Generated list'!D7314=\"\",\"\",'Generated list'!D7314)","v":""}]
[null,{"$f":"IF('Generated list'!B7315=\"\",\"\",'Generated list'!B7315)","v":""},{"$f":"IF('Generated list'!C7315=\"\",\"\",'Generated list'!C7315)","v":""},{"$f":"IF('Generated list'!D7315=\"\",\"\",'Generated list'!D7315)","v":""}]
[null,{"$f":"IF('Generated list'!B7316=\"\",\"\",'Generated list'!B7316)","v":""},{"$f":"IF('Generated list'!C7316=\"\",\"\",'Generated list'!C7316)","v":""},{"$f":"IF('Generated list'!D7316=\"\",\"\",'Generated list'!D7316)","v":""}]
[null,{"$f":"IF('Generated list'!B7317=\"\",\"\",'Generated list'!B7317)","v":""},{"$f":"IF('Generated list'!C7317=\"\",\"\",'Generated list'!C7317)","v":""},{"$f":"IF('Generated list'!D7317=\"\",\"\",'Generated list'!D7317)","v":""}]
[null,{"$f":"IF('Generated list'!B7318=\"\",\"\",'Generated list'!B7318)","v":""},{"$f":"IF('Generated list'!C7318=\"\",\"\",'Generated list'!C7318)","v":""},{"$f":"IF('Generated list'!D7318=\"\",\"\",'Generated list'!D7318)","v":""}]
[null,{"$f":"IF('Generated list'!B7319=\"\",\"\",'Generated list'!B7319)","v":""},{"$f":"IF('Generated list'!C7319=\"\",\"\",'Generated list'!C7319)","v":""},{"$f":"IF('Generated list'!D7319=\"\",\"\",'Generated list'!D7319)","v":""}]
[null,{"$f":"IF('Generated list'!B7320=\"\",\"\",'Generated list'!B7320)","v":""},{"$f":"IF('Generated list'!C7320=\"\",\"\",'Generated list'!C7320)","v":""},{"$f":"IF('Generated list'!D7320=\"\",\"\",'Generated list'!D7320)","v":""}]
[null,{"$f":"IF('Generated list'!B7321=\"\",\"\",'Generated list'!B7321)","v":""},{"$f":"IF('Generated list'!C7321=\"\",\"\",'Generated list'!C7321)","v":""},{"$f":"IF('Generated list'!D7321=\"\",\"\",'Generated list'!D7321)","v":""}]
[null,{"$f":"IF('Generated list'!B7322=\"\",\"\",'Generated list'!B7322)","v":""},{"$f":"IF('Generated list'!C7322=\"\",\"\",'Generated list'!C7322)","v":""},{"$f":"IF('Generated list'!D7322=\"\",\"\",'Generated list'!D7322)","v":""}]
[null,{"$f":"IF('Generated list'!B7323=\"\",\"\",'Generated list'!B7323)","v":""},{"$f":"IF('Generated list'!C7323=\"\",\"\",'Generated list'!C7323)","v":""},{"$f":"IF('Generated list'!D7323=\"\",\"\",'Generated list'!D7323)","v":""}]
[null,{"$f":"IF('Generated list'!B7324=\"\",\"\",'Generated list'!B7324)","v":""},{"$f":"IF('Generated list'!C7324=\"\",\"\",'Generated list'!C7324)","v":""},{"$f":"IF('Generated list'!D7324=\"\",\"\",'Generated list'!D7324)","v":""}]
[null,{"$f":"IF('Generated list'!B7325=\"\",\"\",'Generated list'!B7325)","v":""},{"$f":"IF('Generated list'!C7325=\"\",\"\",'Generated list'!C7325)","v":""},{"$f":"IF('Generated list'!D7325=\"\",\"\",'Generated list'!D7325)","v":""}]
[null,{"$f":"IF('Generated list'!B7326=\"\",\"\",'Generated list'!B7326)","v":""},{"$f":"IF('Generated list'!C7326=\"\",\"\",'Generated list'!C7326)","v":""},{"$f":"IF('Generated list'!D7326=\"\",\"\",'Generated list'!D7326)","v":""}]
[null,{"$f":"IF('Generated list'!B7327=\"\",\"\",'Generated list'!B7327)","v":""},{"$f":"IF('Generated list'!C7327=\"\",\"\",'Generated list'!C7327)","v":""},{"$f":"IF('Generated list'!D7327=\"\",\"\",'Generated list'!D7327)","v":""}]
[null,{"$f":"IF('Generated list'!B7328=\"\",\"\",'Generated list'!B7328)","v":""},{"$f":"IF('Generated list'!C7328=\"\",\"\",'Generated list'!C7328)","v":""},{"$f":"IF('Generated list'!D7328=\"\",\"\",'Generated list'!D7328)","v":""}]
[null,{"$f":"IF('Generated list'!B7329=\"\",\"\",'Generated list'!B7329)","v":""},{"$f":"IF('Generated list'!C7329=\"\",\"\",'Generated list'!C7329)","v":""},{"$f":"IF('Generated list'!D7329=\"\",\"\",'Generated list'!D7329)","v":""}]
[null,{"$f":"IF('Generated list'!B7330=\"\",\"\",'Generated list'!B7330)","v":""},{"$f":"IF('Generated list'!C7330=\"\",\"\",'Generated list'!C7330)","v":""},{"$f":"IF('Generated list'!D7330=\"\",\"\",'Generated list'!D7330)","v":""}]
[null,{"$f":"IF('Generated list'!B7331=\"\",\"\",'Generated list'!B7331)","v":""},{"$f":"IF('Generated list'!C7331=\"\",\"\",'Generated list'!C7331)","v":""},{"$f":"IF('Generated list'!D7331=\"\",\"\",'Generated list'!D7331)","v":""}]
[null,{"$f":"IF('Generated list'!B7332=\"\",\"\",'Generated list'!B7332)","v":""},{"$f":"IF('Generated list'!C7332=\"\",\"\",'Generated list'!C7332)","v":""},{"$f":"IF('Generated list'!D7332=\"\",\"\",'Generated list'!D7332)","v":""}]
[null,{"$f":"IF('Generated list'!B7333=\"\",\"\",'Generated list'!B7333)","v":""},{"$f":"IF('Generated list'!C7333=\"\",\"\",'Generated list'!C7333)","v":""},{"$f":"IF('Generated list'!D7333=\"\",\"\",'Generated list'!D7333)","v":""}]
[null,{"$f":"IF('Generated list'!B7334=\"\",\"\",'Generated list'!B7334)","v":""},{"$f":"IF('Generated list'!C7334=\"\",\"\",'Generated list'!C7334)","v":""},{"$f":"IF('Generated list'!D7334=\"\",\"\",'Generated list'!D7334)","v":""}]
[null,{"$f":"IF('Generated list'!B7335=\"\",\"\",'Generated list'!B7335)","v":""},{"$f":"IF('Generated list'!C7335=\"\",\"\",'Generated list'!C7335)","v":""},{"$f":"IF('Generated list'!D7335=\"\",\"\",'Generated list'!D7335)","v":""}]
[null,{"$f":"IF('Generated list'!B7336=\"\",\"\",'Generated list'!B7336)","v":""},{"$f":"IF('Generated list'!C7336=\"\",\"\",'Generated list'!C7336)","v":""},{"$f":"IF('Generated list'!D7336=\"\",\"\",'Generated list'!D7336)","v":""}]
[null,{"$f":"IF('Generated list'!B7337=\"\",\"\",'Generated list'!B7337)","v":""},{"$f":"IF('Generated list'!C7337=\"\",\"\",'Generated list'!C7337)","v":""},{"$f":"IF('Generated list'!D7337=\"\",\"\",'Generated list'!D7337)","v":""}]
[null,{"$f":"IF('Generated list'!B7338=\"\",\"\",'Generated list'!B7338)","v":""},{"$f":"IF('Generated list'!C7338=\"\",\"\",'Generated list'!C7338)","v":""},{"$f":"IF('Generated list'!D7338=\"\",\"\",'Generated list'!D7338)","v":""}]
[null,{"$f":"IF('Generated list'!B7339=\"\",\"\",'Generated list'!B7339)","v":""},{"$f":"IF('Generated list'!C7339=\"\",\"\",'Generated list'!C7339)","v":""},{"$f":"IF('Generated list'!D7339=\"\",\"\",'Generated list'!D7339)","v":""}]
[null,{"$f":"IF('Generated list'!B7340=\"\",\"\",'Generated list'!B7340)","v":""},{"$f":"IF('Generated list'!C7340=\"\",\"\",'Generated list'!C7340)","v":""},{"$f":"IF('Generated list'!D7340=\"\",\"\",'Generated list'!D7340)","v":""}]
[null,{"$f":"IF('Generated list'!B7341=\"\",\"\",'Generated list'!B7341)","v":""},{"$f":"IF('Generated list'!C7341=\"\",\"\",'Generated list'!C7341)","v":""},{"$f":"IF('Generated list'!D7341=\"\",\"\",'Generated list'!D7341)","v":""}]
[null,{"$f":"IF('Generated list'!B7342=\"\",\"\",'Generated list'!B7342)","v":""},{"$f":"IF('Generated list'!C7342=\"\",\"\",'Generated list'!C7342)","v":""},{"$f":"IF('Generated list'!D7342=\"\",\"\",'Generated list'!D7342)","v":""}]
[null,{"$f":"IF('Generated list'!B7343=\"\",\"\",'Generated list'!B7343)","v":""},{"$f":"IF('Generated list'!C7343=\"\",\"\",'Generated list'!C7343)","v":""},{"$f":"IF('Generated list'!D7343=\"\",\"\",'Generated list'!D7343)","v":""}]
[null,{"$f":"IF('Generated list'!B7344=\"\",\"\",'Generated list'!B7344)","v":""},{"$f":"IF('Generated list'!C7344=\"\",\"\",'Generated list'!C7344)","v":""},{"$f":"IF('Generated list'!D7344=\"\",\"\",'Generated list'!D7344)","v":""}]
[null,{"$f":"IF('Generated list'!B7345=\"\",\"\",'Generated list'!B7345)","v":""},{"$f":"IF('Generated list'!C7345=\"\",\"\",'Generated list'!C7345)","v":""},{"$f":"IF('Generated list'!D7345=\"\",\"\",'Generated list'!D7345)","v":""}]
[null,{"$f":"IF('Generated list'!B7346=\"\",\"\",'Generated list'!B7346)","v":""},{"$f":"IF('Generated list'!C7346=\"\",\"\",'Generated list'!C7346)","v":""},{"$f":"IF('Generated list'!D7346=\"\",\"\",'Generated list'!D7346)","v":""}]
[null,{"$f":"IF('Generated list'!B7347=\"\",\"\",'Generated list'!B7347)","v":""},{"$f":"IF('Generated list'!C7347=\"\",\"\",'Generated list'!C7347)","v":""},{"$f":"IF('Generated list'!D7347=\"\",\"\",'Generated list'!D7347)","v":""}]
[null,{"$f":"IF('Generated list'!B7348=\"\",\"\",'Generated list'!B7348)","v":""},{"$f":"IF('Generated list'!C7348=\"\",\"\",'Generated list'!C7348)","v":""},{"$f":"IF('Generated list'!D7348=\"\",\"\",'Generated list'!D7348)","v":""}]
[null,{"$f":"IF('Generated list'!B7349=\"\",\"\",'Generated list'!B7349)","v":""},{"$f":"IF('Generated list'!C7349=\"\",\"\",'Generated list'!C7349)","v":""},{"$f":"IF('Generated list'!D7349=\"\",\"\",'Generated list'!D7349)","v":""}]
[null,{"$f":"IF('Generated list'!B7350=\"\",\"\",'Generated list'!B7350)","v":""},{"$f":"IF('Generated list'!C7350=\"\",\"\",'Generated list'!C7350)","v":""},{"$f":"IF('Generated list'!D7350=\"\",\"\",'Generated list'!D7350)","v":""}]
[null,{"$f":"IF('Generated list'!B7351=\"\",\"\",'Generated list'!B7351)","v":""},{"$f":"IF('Generated list'!C7351=\"\",\"\",'Generated list'!C7351)","v":""},{"$f":"IF('Generated list'!D7351=\"\",\"\",'Generated list'!D7351)","v":""}]
[null,{"$f":"IF('Generated list'!B7352=\"\",\"\",'Generated list'!B7352)","v":""},{"$f":"IF('Generated list'!C7352=\"\",\"\",'Generated list'!C7352)","v":""},{"$f":"IF('Generated list'!D7352=\"\",\"\",'Generated list'!D7352)","v":""}]
[null,{"$f":"IF('Generated list'!B7353=\"\",\"\",'Generated list'!B7353)","v":""},{"$f":"IF('Generated list'!C7353=\"\",\"\",'Generated list'!C7353)","v":""},{"$f":"IF('Generated list'!D7353=\"\",\"\",'Generated list'!D7353)","v":""}]
[null,{"$f":"IF('Generated list'!B7354=\"\",\"\",'Generated list'!B7354)","v":""},{"$f":"IF('Generated list'!C7354=\"\",\"\",'Generated list'!C7354)","v":""},{"$f":"IF('Generated list'!D7354=\"\",\"\",'Generated list'!D7354)","v":""}]
[null,{"$f":"IF('Generated list'!B7355=\"\",\"\",'Generated list'!B7355)","v":""},{"$f":"IF('Generated list'!C7355=\"\",\"\",'Generated list'!C7355)","v":""},{"$f":"IF('Generated list'!D7355=\"\",\"\",'Generated list'!D7355)","v":""}]
[null,{"$f":"IF('Generated list'!B7356=\"\",\"\",'Generated list'!B7356)","v":""},{"$f":"IF('Generated list'!C7356=\"\",\"\",'Generated list'!C7356)","v":""},{"$f":"IF('Generated list'!D7356=\"\",\"\",'Generated list'!D7356)","v":""}]
[null,{"$f":"IF('Generated list'!B7357=\"\",\"\",'Generated list'!B7357)","v":""},{"$f":"IF('Generated list'!C7357=\"\",\"\",'Generated list'!C7357)","v":""},{"$f":"IF('Generated list'!D7357=\"\",\"\",'Generated list'!D7357)","v":""}]
[null,{"$f":"IF('Generated list'!B7358=\"\",\"\",'Generated list'!B7358)","v":""},{"$f":"IF('Generated list'!C7358=\"\",\"\",'Generated list'!C7358)","v":""},{"$f":"IF('Generated list'!D7358=\"\",\"\",'Generated list'!D7358)","v":""}]
[null,{"$f":"IF('Generated list'!B7359=\"\",\"\",'Generated list'!B7359)","v":""},{"$f":"IF('Generated list'!C7359=\"\",\"\",'Generated list'!C7359)","v":""},{"$f":"IF('Generated list'!D7359=\"\",\"\",'Generated list'!D7359)","v":""}]
[null,{"$f":"IF('Generated list'!B7360=\"\",\"\",'Generated list'!B7360)","v":""},{"$f":"IF('Generated list'!C7360=\"\",\"\",'Generated list'!C7360)","v":""},{"$f":"IF('Generated list'!D7360=\"\",\"\",'Generated list'!D7360)","v":""}]
[null,{"$f":"IF('Generated list'!B7361=\"\",\"\",'Generated list'!B7361)","v":""},{"$f":"IF('Generated list'!C7361=\"\",\"\",'Generated list'!C7361)","v":""},{"$f":"IF('Generated list'!D7361=\"\",\"\",'Generated list'!D7361)","v":""}]
[null,{"$f":"IF('Generated list'!B7362=\"\",\"\",'Generated list'!B7362)","v":""},{"$f":"IF('Generated list'!C7362=\"\",\"\",'Generated list'!C7362)","v":""},{"$f":"IF('Generated list'!D7362=\"\",\"\",'Generated list'!D7362)","v":""}]
[null,{"$f":"IF('Generated list'!B7363=\"\",\"\",'Generated list'!B7363)","v":""},{"$f":"IF('Generated list'!C7363=\"\",\"\",'Generated list'!C7363)","v":""},{"$f":"IF('Generated list'!D7363=\"\",\"\",'Generated list'!D7363)","v":""}]
[null,{"$f":"IF('Generated list'!B7364=\"\",\"\",'Generated list'!B7364)","v":""},{"$f":"IF('Generated list'!C7364=\"\",\"\",'Generated list'!C7364)","v":""},{"$f":"IF('Generated list'!D7364=\"\",\"\",'Generated list'!D7364)","v":""}]
[null,{"$f":"IF('Generated list'!B7365=\"\",\"\",'Generated list'!B7365)","v":""},{"$f":"IF('Generated list'!C7365=\"\",\"\",'Generated list'!C7365)","v":""},{"$f":"IF('Generated list'!D7365=\"\",\"\",'Generated list'!D7365)","v":""}]
[null,{"$f":"IF('Generated list'!B7366=\"\",\"\",'Generated list'!B7366)","v":""},{"$f":"IF('Generated list'!C7366=\"\",\"\",'Generated list'!C7366)","v":""},{"$f":"IF('Generated list'!D7366=\"\",\"\",'Generated list'!D7366)","v":""}]
[null,{"$f":"IF('Generated list'!B7367=\"\",\"\",'Generated list'!B7367)","v":""},{"$f":"IF('Generated list'!C7367=\"\",\"\",'Generated list'!C7367)","v":""},{"$f":"IF('Generated list'!D7367=\"\",\"\",'Generated list'!D7367)","v":""}]
[null,{"$f":"IF('Generated list'!B7368=\"\",\"\",'Generated list'!B7368)","v":""},{"$f":"IF('Generated list'!C7368=\"\",\"\",'Generated list'!C7368)","v":""},{"$f":"IF('Generated list'!D7368=\"\",\"\",'Generated list'!D7368)","v":""}]
[null,{"$f":"IF('Generated list'!B7369=\"\",\"\",'Generated list'!B7369)","v":""},{"$f":"IF('Generated list'!C7369=\"\",\"\",'Generated list'!C7369)","v":""},{"$f":"IF('Generated list'!D7369=\"\",\"\",'Generated list'!D7369)","v":""}]
[null,{"$f":"IF('Generated list'!B7370=\"\",\"\",'Generated list'!B7370)","v":""},{"$f":"IF('Generated list'!C7370=\"\",\"\",'Generated list'!C7370)","v":""},{"$f":"IF('Generated list'!D7370=\"\",\"\",'Generated list'!D7370)","v":""}]
[null,{"$f":"IF('Generated list'!B7371=\"\",\"\",'Generated list'!B7371)","v":""},{"$f":"IF('Generated list'!C7371=\"\",\"\",'Generated list'!C7371)","v":""},{"$f":"IF('Generated list'!D7371=\"\",\"\",'Generated list'!D7371)","v":""}]
[null,{"$f":"IF('Generated list'!B7372=\"\",\"\",'Generated list'!B7372)","v":""},{"$f":"IF('Generated list'!C7372=\"\",\"\",'Generated list'!C7372)","v":""},{"$f":"IF('Generated list'!D7372=\"\",\"\",'Generated list'!D7372)","v":""}]
[null,{"$f":"IF('Generated list'!B7373=\"\",\"\",'Generated list'!B7373)","v":""},{"$f":"IF('Generated list'!C7373=\"\",\"\",'Generated list'!C7373)","v":""},{"$f":"IF('Generated list'!D7373=\"\",\"\",'Generated list'!D7373)","v":""}]
[null,{"$f":"IF('Generated list'!B7374=\"\",\"\",'Generated list'!B7374)","v":""},{"$f":"IF('Generated list'!C7374=\"\",\"\",'Generated list'!C7374)","v":""},{"$f":"IF('Generated list'!D7374=\"\",\"\",'Generated list'!D7374)","v":""}]
[null,{"$f":"IF('Generated list'!B7375=\"\",\"\",'Generated list'!B7375)","v":""},{"$f":"IF('Generated list'!C7375=\"\",\"\",'Generated list'!C7375)","v":""},{"$f":"IF('Generated list'!D7375=\"\",\"\",'Generated list'!D7375)","v":""}]
[null,{"$f":"IF('Generated list'!B7376=\"\",\"\",'Generated list'!B7376)","v":""},{"$f":"IF('Generated list'!C7376=\"\",\"\",'Generated list'!C7376)","v":""},{"$f":"IF('Generated list'!D7376=\"\",\"\",'Generated list'!D7376)","v":""}]
[null,{"$f":"IF('Generated list'!B7377=\"\",\"\",'Generated list'!B7377)","v":""},{"$f":"IF('Generated list'!C7377=\"\",\"\",'Generated list'!C7377)","v":""},{"$f":"IF('Generated list'!D7377=\"\",\"\",'Generated list'!D7377)","v":""}]
[null,{"$f":"IF('Generated list'!B7378=\"\",\"\",'Generated list'!B7378)","v":""},{"$f":"IF('Generated list'!C7378=\"\",\"\",'Generated list'!C7378)","v":""},{"$f":"IF('Generated list'!D7378=\"\",\"\",'Generated list'!D7378)","v":""}]
[null,{"$f":"IF('Generated list'!B7379=\"\",\"\",'Generated list'!B7379)","v":""},{"$f":"IF('Generated list'!C7379=\"\",\"\",'Generated list'!C7379)","v":""},{"$f":"IF('Generated list'!D7379=\"\",\"\",'Generated list'!D7379)","v":""}]
[null,{"$f":"IF('Generated list'!B7380=\"\",\"\",'Generated list'!B7380)","v":""},{"$f":"IF('Generated list'!C7380=\"\",\"\",'Generated list'!C7380)","v":""},{"$f":"IF('Generated list'!D7380=\"\",\"\",'Generated list'!D7380)","v":""}]
[null,{"$f":"IF('Generated list'!B7381=\"\",\"\",'Generated list'!B7381)","v":""},{"$f":"IF('Generated list'!C7381=\"\",\"\",'Generated list'!C7381)","v":""},{"$f":"IF('Generated list'!D7381=\"\",\"\",'Generated list'!D7381)","v":""}]
[null,{"$f":"IF('Generated list'!B7382=\"\",\"\",'Generated list'!B7382)","v":""},{"$f":"IF('Generated list'!C7382=\"\",\"\",'Generated list'!C7382)","v":""},{"$f":"IF('Generated list'!D7382=\"\",\"\",'Generated list'!D7382)","v":""}]
[null,{"$f":"IF('Generated list'!B7383=\"\",\"\",'Generated list'!B7383)","v":""},{"$f":"IF('Generated list'!C7383=\"\",\"\",'Generated list'!C7383)","v":""},{"$f":"IF('Generated list'!D7383=\"\",\"\",'Generated list'!D7383)","v":""}]
[null,{"$f":"IF('Generated list'!B7384=\"\",\"\",'Generated list'!B7384)","v":""},{"$f":"IF('Generated list'!C7384=\"\",\"\",'Generated list'!C7384)","v":""},{"$f":"IF('Generated list'!D7384=\"\",\"\",'Generated list'!D7384)","v":""}]
[null,{"$f":"IF('Generated list'!B7385=\"\",\"\",'Generated list'!B7385)","v":""},{"$f":"IF('Generated list'!C7385=\"\",\"\",'Generated list'!C7385)","v":""},{"$f":"IF('Generated list'!D7385=\"\",\"\",'Generated list'!D7385)","v":""}]
[null,{"$f":"IF('Generated list'!B7386=\"\",\"\",'Generated list'!B7386)","v":""},{"$f":"IF('Generated list'!C7386=\"\",\"\",'Generated list'!C7386)","v":""},{"$f":"IF('Generated list'!D7386=\"\",\"\",'Generated list'!D7386)","v":""}]
[null,{"$f":"IF('Generated list'!B7387=\"\",\"\",'Generated list'!B7387)","v":""},{"$f":"IF('Generated list'!C7387=\"\",\"\",'Generated list'!C7387)","v":""},{"$f":"IF('Generated list'!D7387=\"\",\"\",'Generated list'!D7387)","v":""}]
[null,{"$f":"IF('Generated list'!B7388=\"\",\"\",'Generated list'!B7388)","v":""},{"$f":"IF('Generated list'!C7388=\"\",\"\",'Generated list'!C7388)","v":""},{"$f":"IF('Generated list'!D7388=\"\",\"\",'Generated list'!D7388)","v":""}]
[null,{"$f":"IF('Generated list'!B7389=\"\",\"\",'Generated list'!B7389)","v":""},{"$f":"IF('Generated list'!C7389=\"\",\"\",'Generated list'!C7389)","v":""},{"$f":"IF('Generated list'!D7389=\"\",\"\",'Generated list'!D7389)","v":""}]
[null,{"$f":"IF('Generated list'!B7390=\"\",\"\",'Generated list'!B7390)","v":""},{"$f":"IF('Generated list'!C7390=\"\",\"\",'Generated list'!C7390)","v":""},{"$f":"IF('Generated list'!D7390=\"\",\"\",'Generated list'!D7390)","v":""}]
[null,{"$f":"IF('Generated list'!B7391=\"\",\"\",'Generated list'!B7391)","v":""},{"$f":"IF('Generated list'!C7391=\"\",\"\",'Generated list'!C7391)","v":""},{"$f":"IF('Generated list'!D7391=\"\",\"\",'Generated list'!D7391)","v":""}]
[null,{"$f":"IF('Generated list'!B7392=\"\",\"\",'Generated list'!B7392)","v":""},{"$f":"IF('Generated list'!C7392=\"\",\"\",'Generated list'!C7392)","v":""},{"$f":"IF('Generated list'!D7392=\"\",\"\",'Generated list'!D7392)","v":""}]
[null,{"$f":"IF('Generated list'!B7393=\"\",\"\",'Generated list'!B7393)","v":""},{"$f":"IF('Generated list'!C7393=\"\",\"\",'Generated list'!C7393)","v":""},{"$f":"IF('Generated list'!D7393=\"\",\"\",'Generated list'!D7393)","v":""}]
[null,{"$f":"IF('Generated list'!B7394=\"\",\"\",'Generated list'!B7394)","v":""},{"$f":"IF('Generated list'!C7394=\"\",\"\",'Generated list'!C7394)","v":""},{"$f":"IF('Generated list'!D7394=\"\",\"\",'Generated list'!D7394)","v":""}]
[null,{"$f":"IF('Generated list'!B7395=\"\",\"\",'Generated list'!B7395)","v":""},{"$f":"IF('Generated list'!C7395=\"\",\"\",'Generated list'!C7395)","v":""},{"$f":"IF('Generated list'!D7395=\"\",\"\",'Generated list'!D7395)","v":""}]
[null,{"$f":"IF('Generated list'!B7396=\"\",\"\",'Generated list'!B7396)","v":""},{"$f":"IF('Generated list'!C7396=\"\",\"\",'Generated list'!C7396)","v":""},{"$f":"IF('Generated list'!D7396=\"\",\"\",'Generated list'!D7396)","v":""}]
[null,{"$f":"IF('Generated list'!B7397=\"\",\"\",'Generated list'!B7397)","v":""},{"$f":"IF('Generated list'!C7397=\"\",\"\",'Generated list'!C7397)","v":""},{"$f":"IF('Generated list'!D7397=\"\",\"\",'Generated list'!D7397)","v":""}]
[null,{"$f":"IF('Generated list'!B7398=\"\",\"\",'Generated list'!B7398)","v":""},{"$f":"IF('Generated list'!C7398=\"\",\"\",'Generated list'!C7398)","v":""},{"$f":"IF('Generated list'!D7398=\"\",\"\",'Generated list'!D7398)","v":""}]
[null,{"$f":"IF('Generated list'!B7399=\"\",\"\",'Generated list'!B7399)","v":""},{"$f":"IF('Generated list'!C7399=\"\",\"\",'Generated list'!C7399)","v":""},{"$f":"IF('Generated list'!D7399=\"\",\"\",'Generated list'!D7399)","v":""}]
[null,{"$f":"IF('Generated list'!B7400=\"\",\"\",'Generated list'!B7400)","v":""},{"$f":"IF('Generated list'!C7400=\"\",\"\",'Generated list'!C7400)","v":""},{"$f":"IF('Generated list'!D7400=\"\",\"\",'Generated list'!D7400)","v":""}]
[null,{"$f":"IF('Generated list'!B7401=\"\",\"\",'Generated list'!B7401)","v":""},{"$f":"IF('Generated list'!C7401=\"\",\"\",'Generated list'!C7401)","v":""},{"$f":"IF('Generated list'!D7401=\"\",\"\",'Generated list'!D7401)","v":""}]
[null,{"$f":"IF('Generated list'!B7402=\"\",\"\",'Generated list'!B7402)","v":""},{"$f":"IF('Generated list'!C7402=\"\",\"\",'Generated list'!C7402)","v":""},{"$f":"IF('Generated list'!D7402=\"\",\"\",'Generated list'!D7402)","v":""}]
[null,{"$f":"IF('Generated list'!B7403=\"\",\"\",'Generated list'!B7403)","v":""},{"$f":"IF('Generated list'!C7403=\"\",\"\",'Generated list'!C7403)","v":""},{"$f":"IF('Generated list'!D7403=\"\",\"\",'Generated list'!D7403)","v":""}]
[null,{"$f":"IF('Generated list'!B7404=\"\",\"\",'Generated list'!B7404)","v":""},{"$f":"IF('Generated list'!C7404=\"\",\"\",'Generated list'!C7404)","v":""},{"$f":"IF('Generated list'!D7404=\"\",\"\",'Generated list'!D7404)","v":""}]
[null,{"$f":"IF('Generated list'!B7405=\"\",\"\",'Generated list'!B7405)","v":""},{"$f":"IF('Generated list'!C7405=\"\",\"\",'Generated list'!C7405)","v":""},{"$f":"IF('Generated list'!D7405=\"\",\"\",'Generated list'!D7405)","v":""}]
[null,{"$f":"IF('Generated list'!B7406=\"\",\"\",'Generated list'!B7406)","v":""},{"$f":"IF('Generated list'!C7406=\"\",\"\",'Generated list'!C7406)","v":""},{"$f":"IF('Generated list'!D7406=\"\",\"\",'Generated list'!D7406)","v":""}]
[null,{"$f":"IF('Generated list'!B7407=\"\",\"\",'Generated list'!B7407)","v":""},{"$f":"IF('Generated list'!C7407=\"\",\"\",'Generated list'!C7407)","v":""},{"$f":"IF('Generated list'!D7407=\"\",\"\",'Generated list'!D7407)","v":""}]
[null,{"$f":"IF('Generated list'!B7408=\"\",\"\",'Generated list'!B7408)","v":""},{"$f":"IF('Generated list'!C7408=\"\",\"\",'Generated list'!C7408)","v":""},{"$f":"IF('Generated list'!D7408=\"\",\"\",'Generated list'!D7408)","v":""}]
[null,{"$f":"IF('Generated list'!B7409=\"\",\"\",'Generated list'!B7409)","v":""},{"$f":"IF('Generated list'!C7409=\"\",\"\",'Generated list'!C7409)","v":""},{"$f":"IF('Generated list'!D7409=\"\",\"\",'Generated list'!D7409)","v":""}]
[null,{"$f":"IF('Generated list'!B7410=\"\",\"\",'Generated list'!B7410)","v":""},{"$f":"IF('Generated list'!C7410=\"\",\"\",'Generated list'!C7410)","v":""},{"$f":"IF('Generated list'!D7410=\"\",\"\",'Generated list'!D7410)","v":""}]
[null,{"$f":"IF('Generated list'!B7411=\"\",\"\",'Generated list'!B7411)","v":""},{"$f":"IF('Generated list'!C7411=\"\",\"\",'Generated list'!C7411)","v":""},{"$f":"IF('Generated list'!D7411=\"\",\"\",'Generated list'!D7411)","v":""}]
[null,{"$f":"IF('Generated list'!B7412=\"\",\"\",'Generated list'!B7412)","v":""},{"$f":"IF('Generated list'!C7412=\"\",\"\",'Generated list'!C7412)","v":""},{"$f":"IF('Generated list'!D7412=\"\",\"\",'Generated list'!D7412)","v":""}]
[null,{"$f":"IF('Generated list'!B7413=\"\",\"\",'Generated list'!B7413)","v":""},{"$f":"IF('Generated list'!C7413=\"\",\"\",'Generated list'!C7413)","v":""},{"$f":"IF('Generated list'!D7413=\"\",\"\",'Generated list'!D7413)","v":""}]
[null,{"$f":"IF('Generated list'!B7414=\"\",\"\",'Generated list'!B7414)","v":""},{"$f":"IF('Generated list'!C7414=\"\",\"\",'Generated list'!C7414)","v":""},{"$f":"IF('Generated list'!D7414=\"\",\"\",'Generated list'!D7414)","v":""}]
[null,{"$f":"IF('Generated list'!B7415=\"\",\"\",'Generated list'!B7415)","v":""},{"$f":"IF('Generated list'!C7415=\"\",\"\",'Generated list'!C7415)","v":""},{"$f":"IF('Generated list'!D7415=\"\",\"\",'Generated list'!D7415)","v":""}]
[null,{"$f":"IF('Generated list'!B7416=\"\",\"\",'Generated list'!B7416)","v":""},{"$f":"IF('Generated list'!C7416=\"\",\"\",'Generated list'!C7416)","v":""},{"$f":"IF('Generated list'!D7416=\"\",\"\",'Generated list'!D7416)","v":""}]
[null,{"$f":"IF('Generated list'!B7417=\"\",\"\",'Generated list'!B7417)","v":""},{"$f":"IF('Generated list'!C7417=\"\",\"\",'Generated list'!C7417)","v":""},{"$f":"IF('Generated list'!D7417=\"\",\"\",'Generated list'!D7417)","v":""}]
[null,{"$f":"IF('Generated list'!B7418=\"\",\"\",'Generated list'!B7418)","v":""},{"$f":"IF('Generated list'!C7418=\"\",\"\",'Generated list'!C7418)","v":""},{"$f":"IF('Generated list'!D7418=\"\",\"\",'Generated list'!D7418)","v":""}]
[null,{"$f":"IF('Generated list'!B7419=\"\",\"\",'Generated list'!B7419)","v":""},{"$f":"IF('Generated list'!C7419=\"\",\"\",'Generated list'!C7419)","v":""},{"$f":"IF('Generated list'!D7419=\"\",\"\",'Generated list'!D7419)","v":""}]
[null,{"$f":"IF('Generated list'!B7420=\"\",\"\",'Generated list'!B7420)","v":""},{"$f":"IF('Generated list'!C7420=\"\",\"\",'Generated list'!C7420)","v":""},{"$f":"IF('Generated list'!D7420=\"\",\"\",'Generated list'!D7420)","v":""}]
[null,{"$f":"IF('Generated list'!B7421=\"\",\"\",'Generated list'!B7421)","v":""},{"$f":"IF('Generated list'!C7421=\"\",\"\",'Generated list'!C7421)","v":""},{"$f":"IF('Generated list'!D7421=\"\",\"\",'Generated list'!D7421)","v":""}]
[null,{"$f":"IF('Generated list'!B7422=\"\",\"\",'Generated list'!B7422)","v":""},{"$f":"IF('Generated list'!C7422=\"\",\"\",'Generated list'!C7422)","v":""},{"$f":"IF('Generated list'!D7422=\"\",\"\",'Generated list'!D7422)","v":""}]
[null,{"$f":"IF('Generated list'!B7423=\"\",\"\",'Generated list'!B7423)","v":""},{"$f":"IF('Generated list'!C7423=\"\",\"\",'Generated list'!C7423)","v":""},{"$f":"IF('Generated list'!D7423=\"\",\"\",'Generated list'!D7423)","v":""}]
[null,{"$f":"IF('Generated list'!B7424=\"\",\"\",'Generated list'!B7424)","v":""},{"$f":"IF('Generated list'!C7424=\"\",\"\",'Generated list'!C7424)","v":""},{"$f":"IF('Generated list'!D7424=\"\",\"\",'Generated list'!D7424)","v":""}]
[null,{"$f":"IF('Generated list'!B7425=\"\",\"\",'Generated list'!B7425)","v":""},{"$f":"IF('Generated list'!C7425=\"\",\"\",'Generated list'!C7425)","v":""},{"$f":"IF('Generated list'!D7425=\"\",\"\",'Generated list'!D7425)","v":""}]
[null,{"$f":"IF('Generated list'!B7426=\"\",\"\",'Generated list'!B7426)","v":""},{"$f":"IF('Generated list'!C7426=\"\",\"\",'Generated list'!C7426)","v":""},{"$f":"IF('Generated list'!D7426=\"\",\"\",'Generated list'!D7426)","v":""}]
[null,{"$f":"IF('Generated list'!B7427=\"\",\"\",'Generated list'!B7427)","v":""},{"$f":"IF('Generated list'!C7427=\"\",\"\",'Generated list'!C7427)","v":""},{"$f":"IF('Generated list'!D7427=\"\",\"\",'Generated list'!D7427)","v":""}]
[null,{"$f":"IF('Generated list'!B7428=\"\",\"\",'Generated list'!B7428)","v":""},{"$f":"IF('Generated list'!C7428=\"\",\"\",'Generated list'!C7428)","v":""},{"$f":"IF('Generated list'!D7428=\"\",\"\",'Generated list'!D7428)","v":""}]
[null,{"$f":"IF('Generated list'!B7429=\"\",\"\",'Generated list'!B7429)","v":""},{"$f":"IF('Generated list'!C7429=\"\",\"\",'Generated list'!C7429)","v":""},{"$f":"IF('Generated list'!D7429=\"\",\"\",'Generated list'!D7429)","v":""}]
[null,{"$f":"IF('Generated list'!B7430=\"\",\"\",'Generated list'!B7430)","v":""},{"$f":"IF('Generated list'!C7430=\"\",\"\",'Generated list'!C7430)","v":""},{"$f":"IF('Generated list'!D7430=\"\",\"\",'Generated list'!D7430)","v":""}]
[null,{"$f":"IF('Generated list'!B7431=\"\",\"\",'Generated list'!B7431)","v":""},{"$f":"IF('Generated list'!C7431=\"\",\"\",'Generated list'!C7431)","v":""},{"$f":"IF('Generated list'!D7431=\"\",\"\",'Generated list'!D7431)","v":""}]
[null,{"$f":"IF('Generated list'!B7432=\"\",\"\",'Generated list'!B7432)","v":""},{"$f":"IF('Generated list'!C7432=\"\",\"\",'Generated list'!C7432)","v":""},{"$f":"IF('Generated list'!D7432=\"\",\"\",'Generated list'!D7432)","v":""}]
[null,{"$f":"IF('Generated list'!B7433=\"\",\"\",'Generated list'!B7433)","v":""},{"$f":"IF('Generated list'!C7433=\"\",\"\",'Generated list'!C7433)","v":""},{"$f":"IF('Generated list'!D7433=\"\",\"\",'Generated list'!D7433)","v":""}]
[null,{"$f":"IF('Generated list'!B7434=\"\",\"\",'Generated list'!B7434)","v":""},{"$f":"IF('Generated list'!C7434=\"\",\"\",'Generated list'!C7434)","v":""},{"$f":"IF('Generated list'!D7434=\"\",\"\",'Generated list'!D7434)","v":""}]
[null,{"$f":"IF('Generated list'!B7435=\"\",\"\",'Generated list'!B7435)","v":""},{"$f":"IF('Generated list'!C7435=\"\",\"\",'Generated list'!C7435)","v":""},{"$f":"IF('Generated list'!D7435=\"\",\"\",'Generated list'!D7435)","v":""}]
[null,{"$f":"IF('Generated list'!B7436=\"\",\"\",'Generated list'!B7436)","v":""},{"$f":"IF('Generated list'!C7436=\"\",\"\",'Generated list'!C7436)","v":""},{"$f":"IF('Generated list'!D7436=\"\",\"\",'Generated list'!D7436)","v":""}]
[null,{"$f":"IF('Generated list'!B7437=\"\",\"\",'Generated list'!B7437)","v":""},{"$f":"IF('Generated list'!C7437=\"\",\"\",'Generated list'!C7437)","v":""},{"$f":"IF('Generated list'!D7437=\"\",\"\",'Generated list'!D7437)","v":""}]
[null,{"$f":"IF('Generated list'!B7438=\"\",\"\",'Generated list'!B7438)","v":""},{"$f":"IF('Generated list'!C7438=\"\",\"\",'Generated list'!C7438)","v":""},{"$f":"IF('Generated list'!D7438=\"\",\"\",'Generated list'!D7438)","v":""}]
[null,{"$f":"IF('Generated list'!B7439=\"\",\"\",'Generated list'!B7439)","v":""},{"$f":"IF('Generated list'!C7439=\"\",\"\",'Generated list'!C7439)","v":""},{"$f":"IF('Generated list'!D7439=\"\",\"\",'Generated list'!D7439)","v":""}]
[null,{"$f":"IF('Generated list'!B7440=\"\",\"\",'Generated list'!B7440)","v":""},{"$f":"IF('Generated list'!C7440=\"\",\"\",'Generated list'!C7440)","v":""},{"$f":"IF('Generated list'!D7440=\"\",\"\",'Generated list'!D7440)","v":""}]
[null,{"$f":"IF('Generated list'!B7441=\"\",\"\",'Generated list'!B7441)","v":""},{"$f":"IF('Generated list'!C7441=\"\",\"\",'Generated list'!C7441)","v":""},{"$f":"IF('Generated list'!D7441=\"\",\"\",'Generated list'!D7441)","v":""}]
[null,{"$f":"IF('Generated list'!B7442=\"\",\"\",'Generated list'!B7442)","v":""},{"$f":"IF('Generated list'!C7442=\"\",\"\",'Generated list'!C7442)","v":""},{"$f":"IF('Generated list'!D7442=\"\",\"\",'Generated list'!D7442)","v":""}]
[null,{"$f":"IF('Generated list'!B7443=\"\",\"\",'Generated list'!B7443)","v":""},{"$f":"IF('Generated list'!C7443=\"\",\"\",'Generated list'!C7443)","v":""},{"$f":"IF('Generated list'!D7443=\"\",\"\",'Generated list'!D7443)","v":""}]
[null,{"$f":"IF('Generated list'!B7444=\"\",\"\",'Generated list'!B7444)","v":""},{"$f":"IF('Generated list'!C7444=\"\",\"\",'Generated list'!C7444)","v":""},{"$f":"IF('Generated list'!D7444=\"\",\"\",'Generated list'!D7444)","v":""}]
[null,{"$f":"IF('Generated list'!B7445=\"\",\"\",'Generated list'!B7445)","v":""},{"$f":"IF('Generated list'!C7445=\"\",\"\",'Generated list'!C7445)","v":""},{"$f":"IF('Generated list'!D7445=\"\",\"\",'Generated list'!D7445)","v":""}]
[null,{"$f":"IF('Generated list'!B7446=\"\",\"\",'Generated list'!B7446)","v":""},{"$f":"IF('Generated list'!C7446=\"\",\"\",'Generated list'!C7446)","v":""},{"$f":"IF('Generated list'!D7446=\"\",\"\",'Generated list'!D7446)","v":""}]
[null,{"$f":"IF('Generated list'!B7447=\"\",\"\",'Generated list'!B7447)","v":""},{"$f":"IF('Generated list'!C7447=\"\",\"\",'Generated list'!C7447)","v":""},{"$f":"IF('Generated list'!D7447=\"\",\"\",'Generated list'!D7447)","v":""}]
[null,{"$f":"IF('Generated list'!B7448=\"\",\"\",'Generated list'!B7448)","v":""},{"$f":"IF('Generated list'!C7448=\"\",\"\",'Generated list'!C7448)","v":""},{"$f":"IF('Generated list'!D7448=\"\",\"\",'Generated list'!D7448)","v":""}]
[null,{"$f":"IF('Generated list'!B7449=\"\",\"\",'Generated list'!B7449)","v":""},{"$f":"IF('Generated list'!C7449=\"\",\"\",'Generated list'!C7449)","v":""},{"$f":"IF('Generated list'!D7449=\"\",\"\",'Generated list'!D7449)","v":""}]
[null,{"$f":"IF('Generated list'!B7450=\"\",\"\",'Generated list'!B7450)","v":""},{"$f":"IF('Generated list'!C7450=\"\",\"\",'Generated list'!C7450)","v":""},{"$f":"IF('Generated list'!D7450=\"\",\"\",'Generated list'!D7450)","v":""}]
[null,{"$f":"IF('Generated list'!B7451=\"\",\"\",'Generated list'!B7451)","v":""},{"$f":"IF('Generated list'!C7451=\"\",\"\",'Generated list'!C7451)","v":""},{"$f":"IF('Generated list'!D7451=\"\",\"\",'Generated list'!D7451)","v":""}]
[null,{"$f":"IF('Generated list'!B7452=\"\",\"\",'Generated list'!B7452)","v":""},{"$f":"IF('Generated list'!C7452=\"\",\"\",'Generated list'!C7452)","v":""},{"$f":"IF('Generated list'!D7452=\"\",\"\",'Generated list'!D7452)","v":""}]
[null,{"$f":"IF('Generated list'!B7453=\"\",\"\",'Generated list'!B7453)","v":""},{"$f":"IF('Generated list'!C7453=\"\",\"\",'Generated list'!C7453)","v":""},{"$f":"IF('Generated list'!D7453=\"\",\"\",'Generated list'!D7453)","v":""}]
[null,{"$f":"IF('Generated list'!B7454=\"\",\"\",'Generated list'!B7454)","v":""},{"$f":"IF('Generated list'!C7454=\"\",\"\",'Generated list'!C7454)","v":""},{"$f":"IF('Generated list'!D7454=\"\",\"\",'Generated list'!D7454)","v":""}]
[null,{"$f":"IF('Generated list'!B7455=\"\",\"\",'Generated list'!B7455)","v":""},{"$f":"IF('Generated list'!C7455=\"\",\"\",'Generated list'!C7455)","v":""},{"$f":"IF('Generated list'!D7455=\"\",\"\",'Generated list'!D7455)","v":""}]
[null,{"$f":"IF('Generated list'!B7456=\"\",\"\",'Generated list'!B7456)","v":""},{"$f":"IF('Generated list'!C7456=\"\",\"\",'Generated list'!C7456)","v":""},{"$f":"IF('Generated list'!D7456=\"\",\"\",'Generated list'!D7456)","v":""}]
[null,{"$f":"IF('Generated list'!B7457=\"\",\"\",'Generated list'!B7457)","v":""},{"$f":"IF('Generated list'!C7457=\"\",\"\",'Generated list'!C7457)","v":""},{"$f":"IF('Generated list'!D7457=\"\",\"\",'Generated list'!D7457)","v":""}]
[null,{"$f":"IF('Generated list'!B7458=\"\",\"\",'Generated list'!B7458)","v":""},{"$f":"IF('Generated list'!C7458=\"\",\"\",'Generated list'!C7458)","v":""},{"$f":"IF('Generated list'!D7458=\"\",\"\",'Generated list'!D7458)","v":""}]
[null,{"$f":"IF('Generated list'!B7459=\"\",\"\",'Generated list'!B7459)","v":""},{"$f":"IF('Generated list'!C7459=\"\",\"\",'Generated list'!C7459)","v":""},{"$f":"IF('Generated list'!D7459=\"\",\"\",'Generated list'!D7459)","v":""}]
[null,{"$f":"IF('Generated list'!B7460=\"\",\"\",'Generated list'!B7460)","v":""},{"$f":"IF('Generated list'!C7460=\"\",\"\",'Generated list'!C7460)","v":""},{"$f":"IF('Generated list'!D7460=\"\",\"\",'Generated list'!D7460)","v":""}]
[null,{"$f":"IF('Generated list'!B7461=\"\",\"\",'Generated list'!B7461)","v":""},{"$f":"IF('Generated list'!C7461=\"\",\"\",'Generated list'!C7461)","v":""},{"$f":"IF('Generated list'!D7461=\"\",\"\",'Generated list'!D7461)","v":""}]
[null,{"$f":"IF('Generated list'!B7462=\"\",\"\",'Generated list'!B7462)","v":""},{"$f":"IF('Generated list'!C7462=\"\",\"\",'Generated list'!C7462)","v":""},{"$f":"IF('Generated list'!D7462=\"\",\"\",'Generated list'!D7462)","v":""}]
[null,{"$f":"IF('Generated list'!B7463=\"\",\"\",'Generated list'!B7463)","v":""},{"$f":"IF('Generated list'!C7463=\"\",\"\",'Generated list'!C7463)","v":""},{"$f":"IF('Generated list'!D7463=\"\",\"\",'Generated list'!D7463)","v":""}]
[null,{"$f":"IF('Generated list'!B7464=\"\",\"\",'Generated list'!B7464)","v":""},{"$f":"IF('Generated list'!C7464=\"\",\"\",'Generated list'!C7464)","v":""},{"$f":"IF('Generated list'!D7464=\"\",\"\",'Generated list'!D7464)","v":""}]
[null,{"$f":"IF('Generated list'!B7465=\"\",\"\",'Generated list'!B7465)","v":""},{"$f":"IF('Generated list'!C7465=\"\",\"\",'Generated list'!C7465)","v":""},{"$f":"IF('Generated list'!D7465=\"\",\"\",'Generated list'!D7465)","v":""}]
[null,{"$f":"IF('Generated list'!B7466=\"\",\"\",'Generated list'!B7466)","v":""},{"$f":"IF('Generated list'!C7466=\"\",\"\",'Generated list'!C7466)","v":""},{"$f":"IF('Generated list'!D7466=\"\",\"\",'Generated list'!D7466)","v":""}]
[null,{"$f":"IF('Generated list'!B7467=\"\",\"\",'Generated list'!B7467)","v":""},{"$f":"IF('Generated list'!C7467=\"\",\"\",'Generated list'!C7467)","v":""},{"$f":"IF('Generated list'!D7467=\"\",\"\",'Generated list'!D7467)","v":""}]
[null,{"$f":"IF('Generated list'!B7468=\"\",\"\",'Generated list'!B7468)","v":""},{"$f":"IF('Generated list'!C7468=\"\",\"\",'Generated list'!C7468)","v":""},{"$f":"IF('Generated list'!D7468=\"\",\"\",'Generated list'!D7468)","v":""}]
[null,{"$f":"IF('Generated list'!B7469=\"\",\"\",'Generated list'!B7469)","v":""},{"$f":"IF('Generated list'!C7469=\"\",\"\",'Generated list'!C7469)","v":""},{"$f":"IF('Generated list'!D7469=\"\",\"\",'Generated list'!D7469)","v":""}]
[null,{"$f":"IF('Generated list'!B7470=\"\",\"\",'Generated list'!B7470)","v":""},{"$f":"IF('Generated list'!C7470=\"\",\"\",'Generated list'!C7470)","v":""},{"$f":"IF('Generated list'!D7470=\"\",\"\",'Generated list'!D7470)","v":""}]
[null,{"$f":"IF('Generated list'!B7471=\"\",\"\",'Generated list'!B7471)","v":""},{"$f":"IF('Generated list'!C7471=\"\",\"\",'Generated list'!C7471)","v":""},{"$f":"IF('Generated list'!D7471=\"\",\"\",'Generated list'!D7471)","v":""}]
[null,{"$f":"IF('Generated list'!B7472=\"\",\"\",'Generated list'!B7472)","v":""},{"$f":"IF('Generated list'!C7472=\"\",\"\",'Generated list'!C7472)","v":""},{"$f":"IF('Generated list'!D7472=\"\",\"\",'Generated list'!D7472)","v":""}]
[null,{"$f":"IF('Generated list'!B7473=\"\",\"\",'Generated list'!B7473)","v":""},{"$f":"IF('Generated list'!C7473=\"\",\"\",'Generated list'!C7473)","v":""},{"$f":"IF('Generated list'!D7473=\"\",\"\",'Generated list'!D7473)","v":""}]
[null,{"$f":"IF('Generated list'!B7474=\"\",\"\",'Generated list'!B7474)","v":""},{"$f":"IF('Generated list'!C7474=\"\",\"\",'Generated list'!C7474)","v":""},{"$f":"IF('Generated list'!D7474=\"\",\"\",'Generated list'!D7474)","v":""}]
[null,{"$f":"IF('Generated list'!B7475=\"\",\"\",'Generated list'!B7475)","v":""},{"$f":"IF('Generated list'!C7475=\"\",\"\",'Generated list'!C7475)","v":""},{"$f":"IF('Generated list'!D7475=\"\",\"\",'Generated list'!D7475)","v":""}]
[null,{"$f":"IF('Generated list'!B7476=\"\",\"\",'Generated list'!B7476)","v":""},{"$f":"IF('Generated list'!C7476=\"\",\"\",'Generated list'!C7476)","v":""},{"$f":"IF('Generated list'!D7476=\"\",\"\",'Generated list'!D7476)","v":""}]
[null,{"$f":"IF('Generated list'!B7477=\"\",\"\",'Generated list'!B7477)","v":""},{"$f":"IF('Generated list'!C7477=\"\",\"\",'Generated list'!C7477)","v":""},{"$f":"IF('Generated list'!D7477=\"\",\"\",'Generated list'!D7477)","v":""}]
[null,{"$f":"IF('Generated list'!B7478=\"\",\"\",'Generated list'!B7478)","v":""},{"$f":"IF('Generated list'!C7478=\"\",\"\",'Generated list'!C7478)","v":""},{"$f":"IF('Generated list'!D7478=\"\",\"\",'Generated list'!D7478)","v":""}]
[null,{"$f":"IF('Generated list'!B7479=\"\",\"\",'Generated list'!B7479)","v":""},{"$f":"IF('Generated list'!C7479=\"\",\"\",'Generated list'!C7479)","v":""},{"$f":"IF('Generated list'!D7479=\"\",\"\",'Generated list'!D7479)","v":""}]
[null,{"$f":"IF('Generated list'!B7480=\"\",\"\",'Generated list'!B7480)","v":""},{"$f":"IF('Generated list'!C7480=\"\",\"\",'Generated list'!C7480)","v":""},{"$f":"IF('Generated list'!D7480=\"\",\"\",'Generated list'!D7480)","v":""}]
[null,{"$f":"IF('Generated list'!B7481=\"\",\"\",'Generated list'!B7481)","v":""},{"$f":"IF('Generated list'!C7481=\"\",\"\",'Generated list'!C7481)","v":""},{"$f":"IF('Generated list'!D7481=\"\",\"\",'Generated list'!D7481)","v":""}]
[null,{"$f":"IF('Generated list'!B7482=\"\",\"\",'Generated list'!B7482)","v":""},{"$f":"IF('Generated list'!C7482=\"\",\"\",'Generated list'!C7482)","v":""},{"$f":"IF('Generated list'!D7482=\"\",\"\",'Generated list'!D7482)","v":""}]
[null,{"$f":"IF('Generated list'!B7483=\"\",\"\",'Generated list'!B7483)","v":""},{"$f":"IF('Generated list'!C7483=\"\",\"\",'Generated list'!C7483)","v":""},{"$f":"IF('Generated list'!D7483=\"\",\"\",'Generated list'!D7483)","v":""}]
[null,{"$f":"IF('Generated list'!B7484=\"\",\"\",'Generated list'!B7484)","v":""},{"$f":"IF('Generated list'!C7484=\"\",\"\",'Generated list'!C7484)","v":""},{"$f":"IF('Generated list'!D7484=\"\",\"\",'Generated list'!D7484)","v":""}]
[null,{"$f":"IF('Generated list'!B7485=\"\",\"\",'Generated list'!B7485)","v":""},{"$f":"IF('Generated list'!C7485=\"\",\"\",'Generated list'!C7485)","v":""},{"$f":"IF('Generated list'!D7485=\"\",\"\",'Generated list'!D7485)","v":""}]
[null,{"$f":"IF('Generated list'!B7486=\"\",\"\",'Generated list'!B7486)","v":""},{"$f":"IF('Generated list'!C7486=\"\",\"\",'Generated list'!C7486)","v":""},{"$f":"IF('Generated list'!D7486=\"\",\"\",'Generated list'!D7486)","v":""}]
[null,{"$f":"IF('Generated list'!B7487=\"\",\"\",'Generated list'!B7487)","v":""},{"$f":"IF('Generated list'!C7487=\"\",\"\",'Generated list'!C7487)","v":""},{"$f":"IF('Generated list'!D7487=\"\",\"\",'Generated list'!D7487)","v":""}]
[null,{"$f":"IF('Generated list'!B7488=\"\",\"\",'Generated list'!B7488)","v":""},{"$f":"IF('Generated list'!C7488=\"\",\"\",'Generated list'!C7488)","v":""},{"$f":"IF('Generated list'!D7488=\"\",\"\",'Generated list'!D7488)","v":""}]
[null,{"$f":"IF('Generated list'!B7489=\"\",\"\",'Generated list'!B7489)","v":""},{"$f":"IF('Generated list'!C7489=\"\",\"\",'Generated list'!C7489)","v":""},{"$f":"IF('Generated list'!D7489=\"\",\"\",'Generated list'!D7489)","v":""}]
[null,{"$f":"IF('Generated list'!B7490=\"\",\"\",'Generated list'!B7490)","v":""},{"$f":"IF('Generated list'!C7490=\"\",\"\",'Generated list'!C7490)","v":""},{"$f":"IF('Generated list'!D7490=\"\",\"\",'Generated list'!D7490)","v":""}]
[null,{"$f":"IF('Generated list'!B7491=\"\",\"\",'Generated list'!B7491)","v":""},{"$f":"IF('Generated list'!C7491=\"\",\"\",'Generated list'!C7491)","v":""},{"$f":"IF('Generated list'!D7491=\"\",\"\",'Generated list'!D7491)","v":""}]
[null,{"$f":"IF('Generated list'!B7492=\"\",\"\",'Generated list'!B7492)","v":""},{"$f":"IF('Generated list'!C7492=\"\",\"\",'Generated list'!C7492)","v":""},{"$f":"IF('Generated list'!D7492=\"\",\"\",'Generated list'!D7492)","v":""}]
[null,{"$f":"IF('Generated list'!B7493=\"\",\"\",'Generated list'!B7493)","v":""},{"$f":"IF('Generated list'!C7493=\"\",\"\",'Generated list'!C7493)","v":""},{"$f":"IF('Generated list'!D7493=\"\",\"\",'Generated list'!D7493)","v":""}]
[null,{"$f":"IF('Generated list'!B7494=\"\",\"\",'Generated list'!B7494)","v":""},{"$f":"IF('Generated list'!C7494=\"\",\"\",'Generated list'!C7494)","v":""},{"$f":"IF('Generated list'!D7494=\"\",\"\",'Generated list'!D7494)","v":""}]
[null,{"$f":"IF('Generated list'!B7495=\"\",\"\",'Generated list'!B7495)","v":""},{"$f":"IF('Generated list'!C7495=\"\",\"\",'Generated list'!C7495)","v":""},{"$f":"IF('Generated list'!D7495=\"\",\"\",'Generated list'!D7495)","v":""}]
[null,{"$f":"IF('Generated list'!B7496=\"\",\"\",'Generated list'!B7496)","v":""},{"$f":"IF('Generated list'!C7496=\"\",\"\",'Generated list'!C7496)","v":""},{"$f":"IF('Generated list'!D7496=\"\",\"\",'Generated list'!D7496)","v":""}]
[null,{"$f":"IF('Generated list'!B7497=\"\",\"\",'Generated list'!B7497)","v":""},{"$f":"IF('Generated list'!C7497=\"\",\"\",'Generated list'!C7497)","v":""},{"$f":"IF('Generated list'!D7497=\"\",\"\",'Generated list'!D7497)","v":""}]
[null,{"$f":"IF('Generated list'!B7498=\"\",\"\",'Generated list'!B7498)","v":""},{"$f":"IF('Generated list'!C7498=\"\",\"\",'Generated list'!C7498)","v":""},{"$f":"IF('Generated list'!D7498=\"\",\"\",'Generated list'!D7498)","v":""}]
[null,{"$f":"IF('Generated list'!B7499=\"\",\"\",'Generated list'!B7499)","v":""},{"$f":"IF('Generated list'!C7499=\"\",\"\",'Generated list'!C7499)","v":""},{"$f":"IF('Generated list'!D7499=\"\",\"\",'Generated list'!D7499)","v":""}]
[null,{"$f":"IF('Generated list'!B7500=\"\",\"\",'Generated list'!B7500)","v":""},{"$f":"IF('Generated list'!C7500=\"\",\"\",'Generated list'!C7500)","v":""},{"$f":"IF('Generated list'!D7500=\"\",\"\",'Generated list'!D7500)","v":""}]
[null,{"$f":"IF('Generated list'!B7501=\"\",\"\",'Generated list'!B7501)","v":""},{"$f":"IF('Generated list'!C7501=\"\",\"\",'Generated list'!C7501)","v":""},{"$f":"IF('Generated list'!D7501=\"\",\"\",'Generated list'!D7501)","v":""}]
[null,{"$f":"IF('Generated list'!B7502=\"\",\"\",'Generated list'!B7502)","v":""},{"$f":"IF('Generated list'!C7502=\"\",\"\",'Generated list'!C7502)","v":""},{"$f":"IF('Generated list'!D7502=\"\",\"\",'Generated list'!D7502)","v":""}]
[null,{"$f":"IF('Generated list'!B7503=\"\",\"\",'Generated list'!B7503)","v":""},{"$f":"IF('Generated list'!C7503=\"\",\"\",'Generated list'!C7503)","v":""},{"$f":"IF('Generated list'!D7503=\"\",\"\",'Generated list'!D7503)","v":""}]
[null,{"$f":"IF('Generated list'!B7504=\"\",\"\",'Generated list'!B7504)","v":""},{"$f":"IF('Generated list'!C7504=\"\",\"\",'Generated list'!C7504)","v":""},{"$f":"IF('Generated list'!D7504=\"\",\"\",'Generated list'!D7504)","v":""}]
[null,{"$f":"IF('Generated list'!B7505=\"\",\"\",'Generated list'!B7505)","v":""},{"$f":"IF('Generated list'!C7505=\"\",\"\",'Generated list'!C7505)","v":""},{"$f":"IF('Generated list'!D7505=\"\",\"\",'Generated list'!D7505)","v":""}]
[null,{"$f":"IF('Generated list'!B7506=\"\",\"\",'Generated list'!B7506)","v":""},{"$f":"IF('Generated list'!C7506=\"\",\"\",'Generated list'!C7506)","v":""},{"$f":"IF('Generated list'!D7506=\"\",\"\",'Generated list'!D7506)","v":""}]
[null,{"$f":"IF('Generated list'!B7507=\"\",\"\",'Generated list'!B7507)","v":""},{"$f":"IF('Generated list'!C7507=\"\",\"\",'Generated list'!C7507)","v":""},{"$f":"IF('Generated list'!D7507=\"\",\"\",'Generated list'!D7507)","v":""}]
[null,{"$f":"IF('Generated list'!B7508=\"\",\"\",'Generated list'!B7508)","v":""},{"$f":"IF('Generated list'!C7508=\"\",\"\",'Generated list'!C7508)","v":""},{"$f":"IF('Generated list'!D7508=\"\",\"\",'Generated list'!D7508)","v":""}]
[null,{"$f":"IF('Generated list'!B7509=\"\",\"\",'Generated list'!B7509)","v":""},{"$f":"IF('Generated list'!C7509=\"\",\"\",'Generated list'!C7509)","v":""},{"$f":"IF('Generated list'!D7509=\"\",\"\",'Generated list'!D7509)","v":""}]
[null,{"$f":"IF('Generated list'!B7510=\"\",\"\",'Generated list'!B7510)","v":""},{"$f":"IF('Generated list'!C7510=\"\",\"\",'Generated list'!C7510)","v":""},{"$f":"IF('Generated list'!D7510=\"\",\"\",'Generated list'!D7510)","v":""}]
[null,{"$f":"IF('Generated list'!B7511=\"\",\"\",'Generated list'!B7511)","v":""},{"$f":"IF('Generated list'!C7511=\"\",\"\",'Generated list'!C7511)","v":""},{"$f":"IF('Generated list'!D7511=\"\",\"\",'Generated list'!D7511)","v":""}]
[null,{"$f":"IF('Generated list'!B7512=\"\",\"\",'Generated list'!B7512)","v":""},{"$f":"IF('Generated list'!C7512=\"\",\"\",'Generated list'!C7512)","v":""},{"$f":"IF('Generated list'!D7512=\"\",\"\",'Generated list'!D7512)","v":""}]
[null,{"$f":"IF('Generated list'!B7513=\"\",\"\",'Generated list'!B7513)","v":""},{"$f":"IF('Generated list'!C7513=\"\",\"\",'Generated list'!C7513)","v":""},{"$f":"IF('Generated list'!D7513=\"\",\"\",'Generated list'!D7513)","v":""}]
[null,{"$f":"IF('Generated list'!B7514=\"\",\"\",'Generated list'!B7514)","v":""},{"$f":"IF('Generated list'!C7514=\"\",\"\",'Generated list'!C7514)","v":""},{"$f":"IF('Generated list'!D7514=\"\",\"\",'Generated list'!D7514)","v":""}]
[null,{"$f":"IF('Generated list'!B7515=\"\",\"\",'Generated list'!B7515)","v":""},{"$f":"IF('Generated list'!C7515=\"\",\"\",'Generated list'!C7515)","v":""},{"$f":"IF('Generated list'!D7515=\"\",\"\",'Generated list'!D7515)","v":""}]
[null,{"$f":"IF('Generated list'!B7516=\"\",\"\",'Generated list'!B7516)","v":""},{"$f":"IF('Generated list'!C7516=\"\",\"\",'Generated list'!C7516)","v":""},{"$f":"IF('Generated list'!D7516=\"\",\"\",'Generated list'!D7516)","v":""}]
[null,{"$f":"IF('Generated list'!B7517=\"\",\"\",'Generated list'!B7517)","v":""},{"$f":"IF('Generated list'!C7517=\"\",\"\",'Generated list'!C7517)","v":""},{"$f":"IF('Generated list'!D7517=\"\",\"\",'Generated list'!D7517)","v":""}]
[null,{"$f":"IF('Generated list'!B7518=\"\",\"\",'Generated list'!B7518)","v":""},{"$f":"IF('Generated list'!C7518=\"\",\"\",'Generated list'!C7518)","v":""},{"$f":"IF('Generated list'!D7518=\"\",\"\",'Generated list'!D7518)","v":""}]
[null,{"$f":"IF('Generated list'!B7519=\"\",\"\",'Generated list'!B7519)","v":""},{"$f":"IF('Generated list'!C7519=\"\",\"\",'Generated list'!C7519)","v":""},{"$f":"IF('Generated list'!D7519=\"\",\"\",'Generated list'!D7519)","v":""}]
[null,{"$f":"IF('Generated list'!B7520=\"\",\"\",'Generated list'!B7520)","v":""},{"$f":"IF('Generated list'!C7520=\"\",\"\",'Generated list'!C7520)","v":""},{"$f":"IF('Generated list'!D7520=\"\",\"\",'Generated list'!D7520)","v":""}]
[null,{"$f":"IF('Generated list'!B7521=\"\",\"\",'Generated list'!B7521)","v":""},{"$f":"IF('Generated list'!C7521=\"\",\"\",'Generated list'!C7521)","v":""},{"$f":"IF('Generated list'!D7521=\"\",\"\",'Generated list'!D7521)","v":""}]
[null,{"$f":"IF('Generated list'!B7522=\"\",\"\",'Generated list'!B7522)","v":""},{"$f":"IF('Generated list'!C7522=\"\",\"\",'Generated list'!C7522)","v":""},{"$f":"IF('Generated list'!D7522=\"\",\"\",'Generated list'!D7522)","v":""}]
[null,{"$f":"IF('Generated list'!B7523=\"\",\"\",'Generated list'!B7523)","v":""},{"$f":"IF('Generated list'!C7523=\"\",\"\",'Generated list'!C7523)","v":""},{"$f":"IF('Generated list'!D7523=\"\",\"\",'Generated list'!D7523)","v":""}]
[null,{"$f":"IF('Generated list'!B7524=\"\",\"\",'Generated list'!B7524)","v":""},{"$f":"IF('Generated list'!C7524=\"\",\"\",'Generated list'!C7524)","v":""},{"$f":"IF('Generated list'!D7524=\"\",\"\",'Generated list'!D7524)","v":""}]
[null,{"$f":"IF('Generated list'!B7525=\"\",\"\",'Generated list'!B7525)","v":""},{"$f":"IF('Generated list'!C7525=\"\",\"\",'Generated list'!C7525)","v":""},{"$f":"IF('Generated list'!D7525=\"\",\"\",'Generated list'!D7525)","v":""}]
[null,{"$f":"IF('Generated list'!B7526=\"\",\"\",'Generated list'!B7526)","v":""},{"$f":"IF('Generated list'!C7526=\"\",\"\",'Generated list'!C7526)","v":""},{"$f":"IF('Generated list'!D7526=\"\",\"\",'Generated list'!D7526)","v":""}]
[null,{"$f":"IF('Generated list'!B7527=\"\",\"\",'Generated list'!B7527)","v":""},{"$f":"IF('Generated list'!C7527=\"\",\"\",'Generated list'!C7527)","v":""},{"$f":"IF('Generated list'!D7527=\"\",\"\",'Generated list'!D7527)","v":""}]
[null,{"$f":"IF('Generated list'!B7528=\"\",\"\",'Generated list'!B7528)","v":""},{"$f":"IF('Generated list'!C7528=\"\",\"\",'Generated list'!C7528)","v":""},{"$f":"IF('Generated list'!D7528=\"\",\"\",'Generated list'!D7528)","v":""}]
[null,{"$f":"IF('Generated list'!B7529=\"\",\"\",'Generated list'!B7529)","v":""},{"$f":"IF('Generated list'!C7529=\"\",\"\",'Generated list'!C7529)","v":""},{"$f":"IF('Generated list'!D7529=\"\",\"\",'Generated list'!D7529)","v":""}]
[null,{"$f":"IF('Generated list'!B7530=\"\",\"\",'Generated list'!B7530)","v":""},{"$f":"IF('Generated list'!C7530=\"\",\"\",'Generated list'!C7530)","v":""},{"$f":"IF('Generated list'!D7530=\"\",\"\",'Generated list'!D7530)","v":""}]
[null,{"$f":"IF('Generated list'!B7531=\"\",\"\",'Generated list'!B7531)","v":""},{"$f":"IF('Generated list'!C7531=\"\",\"\",'Generated list'!C7531)","v":""},{"$f":"IF('Generated list'!D7531=\"\",\"\",'Generated list'!D7531)","v":""}]
[null,{"$f":"IF('Generated list'!B7532=\"\",\"\",'Generated list'!B7532)","v":""},{"$f":"IF('Generated list'!C7532=\"\",\"\",'Generated list'!C7532)","v":""},{"$f":"IF('Generated list'!D7532=\"\",\"\",'Generated list'!D7532)","v":""}]
[null,{"$f":"IF('Generated list'!B7533=\"\",\"\",'Generated list'!B7533)","v":""},{"$f":"IF('Generated list'!C7533=\"\",\"\",'Generated list'!C7533)","v":""},{"$f":"IF('Generated list'!D7533=\"\",\"\",'Generated list'!D7533)","v":""}]
[null,{"$f":"IF('Generated list'!B7534=\"\",\"\",'Generated list'!B7534)","v":""},{"$f":"IF('Generated list'!C7534=\"\",\"\",'Generated list'!C7534)","v":""},{"$f":"IF('Generated list'!D7534=\"\",\"\",'Generated list'!D7534)","v":""}]
[null,{"$f":"IF('Generated list'!B7535=\"\",\"\",'Generated list'!B7535)","v":""},{"$f":"IF('Generated list'!C7535=\"\",\"\",'Generated list'!C7535)","v":""},{"$f":"IF('Generated list'!D7535=\"\",\"\",'Generated list'!D7535)","v":""}]
[null,{"$f":"IF('Generated list'!B7536=\"\",\"\",'Generated list'!B7536)","v":""},{"$f":"IF('Generated list'!C7536=\"\",\"\",'Generated list'!C7536)","v":""},{"$f":"IF('Generated list'!D7536=\"\",\"\",'Generated list'!D7536)","v":""}]
[null,{"$f":"IF('Generated list'!B7537=\"\",\"\",'Generated list'!B7537)","v":""},{"$f":"IF('Generated list'!C7537=\"\",\"\",'Generated list'!C7537)","v":""},{"$f":"IF('Generated list'!D7537=\"\",\"\",'Generated list'!D7537)","v":""}]
[null,{"$f":"IF('Generated list'!B7538=\"\",\"\",'Generated list'!B7538)","v":""},{"$f":"IF('Generated list'!C7538=\"\",\"\",'Generated list'!C7538)","v":""},{"$f":"IF('Generated list'!D7538=\"\",\"\",'Generated list'!D7538)","v":""}]
[null,{"$f":"IF('Generated list'!B7539=\"\",\"\",'Generated list'!B7539)","v":""},{"$f":"IF('Generated list'!C7539=\"\",\"\",'Generated list'!C7539)","v":""},{"$f":"IF('Generated list'!D7539=\"\",\"\",'Generated list'!D7539)","v":""}]
[null,{"$f":"IF('Generated list'!B7540=\"\",\"\",'Generated list'!B7540)","v":""},{"$f":"IF('Generated list'!C7540=\"\",\"\",'Generated list'!C7540)","v":""},{"$f":"IF('Generated list'!D7540=\"\",\"\",'Generated list'!D7540)","v":""}]
[null,{"$f":"IF('Generated list'!B7541=\"\",\"\",'Generated list'!B7541)","v":""},{"$f":"IF('Generated list'!C7541=\"\",\"\",'Generated list'!C7541)","v":""},{"$f":"IF('Generated list'!D7541=\"\",\"\",'Generated list'!D7541)","v":""}]
[null,{"$f":"IF('Generated list'!B7542=\"\",\"\",'Generated list'!B7542)","v":""},{"$f":"IF('Generated list'!C7542=\"\",\"\",'Generated list'!C7542)","v":""},{"$f":"IF('Generated list'!D7542=\"\",\"\",'Generated list'!D7542)","v":""}]
[null,{"$f":"IF('Generated list'!B7543=\"\",\"\",'Generated list'!B7543)","v":""},{"$f":"IF('Generated list'!C7543=\"\",\"\",'Generated list'!C7543)","v":""},{"$f":"IF('Generated list'!D7543=\"\",\"\",'Generated list'!D7543)","v":""}]
[null,{"$f":"IF('Generated list'!B7544=\"\",\"\",'Generated list'!B7544)","v":""},{"$f":"IF('Generated list'!C7544=\"\",\"\",'Generated list'!C7544)","v":""},{"$f":"IF('Generated list'!D7544=\"\",\"\",'Generated list'!D7544)","v":""}]
[null,{"$f":"IF('Generated list'!B7545=\"\",\"\",'Generated list'!B7545)","v":""},{"$f":"IF('Generated list'!C7545=\"\",\"\",'Generated list'!C7545)","v":""},{"$f":"IF('Generated list'!D7545=\"\",\"\",'Generated list'!D7545)","v":""}]
[null,{"$f":"IF('Generated list'!B7546=\"\",\"\",'Generated list'!B7546)","v":""},{"$f":"IF('Generated list'!C7546=\"\",\"\",'Generated list'!C7546)","v":""},{"$f":"IF('Generated list'!D7546=\"\",\"\",'Generated list'!D7546)","v":""}]
[null,{"$f":"IF('Generated list'!B7547=\"\",\"\",'Generated list'!B7547)","v":""},{"$f":"IF('Generated list'!C7547=\"\",\"\",'Generated list'!C7547)","v":""},{"$f":"IF('Generated list'!D7547=\"\",\"\",'Generated list'!D7547)","v":""}]
[null,{"$f":"IF('Generated list'!B7548=\"\",\"\",'Generated list'!B7548)","v":""},{"$f":"IF('Generated list'!C7548=\"\",\"\",'Generated list'!C7548)","v":""},{"$f":"IF('Generated list'!D7548=\"\",\"\",'Generated list'!D7548)","v":""}]
[null,{"$f":"IF('Generated list'!B7549=\"\",\"\",'Generated list'!B7549)","v":""},{"$f":"IF('Generated list'!C7549=\"\",\"\",'Generated list'!C7549)","v":""},{"$f":"IF('Generated list'!D7549=\"\",\"\",'Generated list'!D7549)","v":""}]
[null,{"$f":"IF('Generated list'!B7550=\"\",\"\",'Generated list'!B7550)","v":""},{"$f":"IF('Generated list'!C7550=\"\",\"\",'Generated list'!C7550)","v":""},{"$f":"IF('Generated list'!D7550=\"\",\"\",'Generated list'!D7550)","v":""}]
[null,{"$f":"IF('Generated list'!B7551=\"\",\"\",'Generated list'!B7551)","v":""},{"$f":"IF('Generated list'!C7551=\"\",\"\",'Generated list'!C7551)","v":""},{"$f":"IF('Generated list'!D7551=\"\",\"\",'Generated list'!D7551)","v":""}]
[null,{"$f":"IF('Generated list'!B7552=\"\",\"\",'Generated list'!B7552)","v":""},{"$f":"IF('Generated list'!C7552=\"\",\"\",'Generated list'!C7552)","v":""},{"$f":"IF('Generated list'!D7552=\"\",\"\",'Generated list'!D7552)","v":""}]
[null,{"$f":"IF('Generated list'!B7553=\"\",\"\",'Generated list'!B7553)","v":""},{"$f":"IF('Generated list'!C7553=\"\",\"\",'Generated list'!C7553)","v":""},{"$f":"IF('Generated list'!D7553=\"\",\"\",'Generated list'!D7553)","v":""}]
[null,{"$f":"IF('Generated list'!B7554=\"\",\"\",'Generated list'!B7554)","v":""},{"$f":"IF('Generated list'!C7554=\"\",\"\",'Generated list'!C7554)","v":""},{"$f":"IF('Generated list'!D7554=\"\",\"\",'Generated list'!D7554)","v":""}]
[null,{"$f":"IF('Generated list'!B7555=\"\",\"\",'Generated list'!B7555)","v":""},{"$f":"IF('Generated list'!C7555=\"\",\"\",'Generated list'!C7555)","v":""},{"$f":"IF('Generated list'!D7555=\"\",\"\",'Generated list'!D7555)","v":""}]
[null,{"$f":"IF('Generated list'!B7556=\"\",\"\",'Generated list'!B7556)","v":""},{"$f":"IF('Generated list'!C7556=\"\",\"\",'Generated list'!C7556)","v":""},{"$f":"IF('Generated list'!D7556=\"\",\"\",'Generated list'!D7556)","v":""}]
[null,{"$f":"IF('Generated list'!B7557=\"\",\"\",'Generated list'!B7557)","v":""},{"$f":"IF('Generated list'!C7557=\"\",\"\",'Generated list'!C7557)","v":""},{"$f":"IF('Generated list'!D7557=\"\",\"\",'Generated list'!D7557)","v":""}]
[null,{"$f":"IF('Generated list'!B7558=\"\",\"\",'Generated list'!B7558)","v":""},{"$f":"IF('Generated list'!C7558=\"\",\"\",'Generated list'!C7558)","v":""},{"$f":"IF('Generated list'!D7558=\"\",\"\",'Generated list'!D7558)","v":""}]
[null,{"$f":"IF('Generated list'!B7559=\"\",\"\",'Generated list'!B7559)","v":""},{"$f":"IF('Generated list'!C7559=\"\",\"\",'Generated list'!C7559)","v":""},{"$f":"IF('Generated list'!D7559=\"\",\"\",'Generated list'!D7559)","v":""}]
[null,{"$f":"IF('Generated list'!B7560=\"\",\"\",'Generated list'!B7560)","v":""},{"$f":"IF('Generated list'!C7560=\"\",\"\",'Generated list'!C7560)","v":""},{"$f":"IF('Generated list'!D7560=\"\",\"\",'Generated list'!D7560)","v":""}]
[null,{"$f":"IF('Generated list'!B7561=\"\",\"\",'Generated list'!B7561)","v":""},{"$f":"IF('Generated list'!C7561=\"\",\"\",'Generated list'!C7561)","v":""},{"$f":"IF('Generated list'!D7561=\"\",\"\",'Generated list'!D7561)","v":""}]
[null,{"$f":"IF('Generated list'!B7562=\"\",\"\",'Generated list'!B7562)","v":""},{"$f":"IF('Generated list'!C7562=\"\",\"\",'Generated list'!C7562)","v":""},{"$f":"IF('Generated list'!D7562=\"\",\"\",'Generated list'!D7562)","v":""}]
[null,{"$f":"IF('Generated list'!B7563=\"\",\"\",'Generated list'!B7563)","v":""},{"$f":"IF('Generated list'!C7563=\"\",\"\",'Generated list'!C7563)","v":""},{"$f":"IF('Generated list'!D7563=\"\",\"\",'Generated list'!D7563)","v":""}]
[null,{"$f":"IF('Generated list'!B7564=\"\",\"\",'Generated list'!B7564)","v":""},{"$f":"IF('Generated list'!C7564=\"\",\"\",'Generated list'!C7564)","v":""},{"$f":"IF('Generated list'!D7564=\"\",\"\",'Generated list'!D7564)","v":""}]
[null,{"$f":"IF('Generated list'!B7565=\"\",\"\",'Generated list'!B7565)","v":""},{"$f":"IF('Generated list'!C7565=\"\",\"\",'Generated list'!C7565)","v":""},{"$f":"IF('Generated list'!D7565=\"\",\"\",'Generated list'!D7565)","v":""}]
[null,{"$f":"IF('Generated list'!B7566=\"\",\"\",'Generated list'!B7566)","v":""},{"$f":"IF('Generated list'!C7566=\"\",\"\",'Generated list'!C7566)","v":""},{"$f":"IF('Generated list'!D7566=\"\",\"\",'Generated list'!D7566)","v":""}]
[null,{"$f":"IF('Generated list'!B7567=\"\",\"\",'Generated list'!B7567)","v":""},{"$f":"IF('Generated list'!C7567=\"\",\"\",'Generated list'!C7567)","v":""},{"$f":"IF('Generated list'!D7567=\"\",\"\",'Generated list'!D7567)","v":""}]
[null,{"$f":"IF('Generated list'!B7568=\"\",\"\",'Generated list'!B7568)","v":""},{"$f":"IF('Generated list'!C7568=\"\",\"\",'Generated list'!C7568)","v":""},{"$f":"IF('Generated list'!D7568=\"\",\"\",'Generated list'!D7568)","v":""}]
[null,{"$f":"IF('Generated list'!B7569=\"\",\"\",'Generated list'!B7569)","v":""},{"$f":"IF('Generated list'!C7569=\"\",\"\",'Generated list'!C7569)","v":""},{"$f":"IF('Generated list'!D7569=\"\",\"\",'Generated list'!D7569)","v":""}]
[null,{"$f":"IF('Generated list'!B7570=\"\",\"\",'Generated list'!B7570)","v":""},{"$f":"IF('Generated list'!C7570=\"\",\"\",'Generated list'!C7570)","v":""},{"$f":"IF('Generated list'!D7570=\"\",\"\",'Generated list'!D7570)","v":""}]
[null,{"$f":"IF('Generated list'!B7571=\"\",\"\",'Generated list'!B7571)","v":""},{"$f":"IF('Generated list'!C7571=\"\",\"\",'Generated list'!C7571)","v":""},{"$f":"IF('Generated list'!D7571=\"\",\"\",'Generated list'!D7571)","v":""}]
[null,{"$f":"IF('Generated list'!B7572=\"\",\"\",'Generated list'!B7572)","v":""},{"$f":"IF('Generated list'!C7572=\"\",\"\",'Generated list'!C7572)","v":""},{"$f":"IF('Generated list'!D7572=\"\",\"\",'Generated list'!D7572)","v":""}]
[null,{"$f":"IF('Generated list'!B7573=\"\",\"\",'Generated list'!B7573)","v":""},{"$f":"IF('Generated list'!C7573=\"\",\"\",'Generated list'!C7573)","v":""},{"$f":"IF('Generated list'!D7573=\"\",\"\",'Generated list'!D7573)","v":""}]
[null,{"$f":"IF('Generated list'!B7574=\"\",\"\",'Generated list'!B7574)","v":""},{"$f":"IF('Generated list'!C7574=\"\",\"\",'Generated list'!C7574)","v":""},{"$f":"IF('Generated list'!D7574=\"\",\"\",'Generated list'!D7574)","v":""}]
[null,{"$f":"IF('Generated list'!B7575=\"\",\"\",'Generated list'!B7575)","v":""},{"$f":"IF('Generated list'!C7575=\"\",\"\",'Generated list'!C7575)","v":""},{"$f":"IF('Generated list'!D7575=\"\",\"\",'Generated list'!D7575)","v":""}]
[null,{"$f":"IF('Generated list'!B7576=\"\",\"\",'Generated list'!B7576)","v":""},{"$f":"IF('Generated list'!C7576=\"\",\"\",'Generated list'!C7576)","v":""},{"$f":"IF('Generated list'!D7576=\"\",\"\",'Generated list'!D7576)","v":""}]
[null,{"$f":"IF('Generated list'!B7577=\"\",\"\",'Generated list'!B7577)","v":""},{"$f":"IF('Generated list'!C7577=\"\",\"\",'Generated list'!C7577)","v":""},{"$f":"IF('Generated list'!D7577=\"\",\"\",'Generated list'!D7577)","v":""}]
[null,{"$f":"IF('Generated list'!B7578=\"\",\"\",'Generated list'!B7578)","v":""},{"$f":"IF('Generated list'!C7578=\"\",\"\",'Generated list'!C7578)","v":""},{"$f":"IF('Generated list'!D7578=\"\",\"\",'Generated list'!D7578)","v":""}]
[null,{"$f":"IF('Generated list'!B7579=\"\",\"\",'Generated list'!B7579)","v":""},{"$f":"IF('Generated list'!C7579=\"\",\"\",'Generated list'!C7579)","v":""},{"$f":"IF('Generated list'!D7579=\"\",\"\",'Generated list'!D7579)","v":""}]
[null,{"$f":"IF('Generated list'!B7580=\"\",\"\",'Generated list'!B7580)","v":""},{"$f":"IF('Generated list'!C7580=\"\",\"\",'Generated list'!C7580)","v":""},{"$f":"IF('Generated list'!D7580=\"\",\"\",'Generated list'!D7580)","v":""}]
[null,{"$f":"IF('Generated list'!B7581=\"\",\"\",'Generated list'!B7581)","v":""},{"$f":"IF('Generated list'!C7581=\"\",\"\",'Generated list'!C7581)","v":""},{"$f":"IF('Generated list'!D7581=\"\",\"\",'Generated list'!D7581)","v":""}]
[null,{"$f":"IF('Generated list'!B7582=\"\",\"\",'Generated list'!B7582)","v":""},{"$f":"IF('Generated list'!C7582=\"\",\"\",'Generated list'!C7582)","v":""},{"$f":"IF('Generated list'!D7582=\"\",\"\",'Generated list'!D7582)","v":""}]
[null,{"$f":"IF('Generated list'!B7583=\"\",\"\",'Generated list'!B7583)","v":""},{"$f":"IF('Generated list'!C7583=\"\",\"\",'Generated list'!C7583)","v":""},{"$f":"IF('Generated list'!D7583=\"\",\"\",'Generated list'!D7583)","v":""}]
[null,{"$f":"IF('Generated list'!B7584=\"\",\"\",'Generated list'!B7584)","v":""},{"$f":"IF('Generated list'!C7584=\"\",\"\",'Generated list'!C7584)","v":""},{"$f":"IF('Generated list'!D7584=\"\",\"\",'Generated list'!D7584)","v":""}]
[null,{"$f":"IF('Generated list'!B7585=\"\",\"\",'Generated list'!B7585)","v":""},{"$f":"IF('Generated list'!C7585=\"\",\"\",'Generated list'!C7585)","v":""},{"$f":"IF('Generated list'!D7585=\"\",\"\",'Generated list'!D7585)","v":""}]
[null,{"$f":"IF('Generated list'!B7586=\"\",\"\",'Generated list'!B7586)","v":""},{"$f":"IF('Generated list'!C7586=\"\",\"\",'Generated list'!C7586)","v":""},{"$f":"IF('Generated list'!D7586=\"\",\"\",'Generated list'!D7586)","v":""}]
[null,{"$f":"IF('Generated list'!B7587=\"\",\"\",'Generated list'!B7587)","v":""},{"$f":"IF('Generated list'!C7587=\"\",\"\",'Generated list'!C7587)","v":""},{"$f":"IF('Generated list'!D7587=\"\",\"\",'Generated list'!D7587)","v":""}]
[null,{"$f":"IF('Generated list'!B7588=\"\",\"\",'Generated list'!B7588)","v":""},{"$f":"IF('Generated list'!C7588=\"\",\"\",'Generated list'!C7588)","v":""},{"$f":"IF('Generated list'!D7588=\"\",\"\",'Generated list'!D7588)","v":""}]
[null,{"$f":"IF('Generated list'!B7589=\"\",\"\",'Generated list'!B7589)","v":""},{"$f":"IF('Generated list'!C7589=\"\",\"\",'Generated list'!C7589)","v":""},{"$f":"IF('Generated list'!D7589=\"\",\"\",'Generated list'!D7589)","v":""}]
[null,{"$f":"IF('Generated list'!B7590=\"\",\"\",'Generated list'!B7590)","v":""},{"$f":"IF('Generated list'!C7590=\"\",\"\",'Generated list'!C7590)","v":""},{"$f":"IF('Generated list'!D7590=\"\",\"\",'Generated list'!D7590)","v":""}]
[null,{"$f":"IF('Generated list'!B7591=\"\",\"\",'Generated list'!B7591)","v":""},{"$f":"IF('Generated list'!C7591=\"\",\"\",'Generated list'!C7591)","v":""},{"$f":"IF('Generated list'!D7591=\"\",\"\",'Generated list'!D7591)","v":""}]
[null,{"$f":"IF('Generated list'!B7592=\"\",\"\",'Generated list'!B7592)","v":""},{"$f":"IF('Generated list'!C7592=\"\",\"\",'Generated list'!C7592)","v":""},{"$f":"IF('Generated list'!D7592=\"\",\"\",'Generated list'!D7592)","v":""}]
[null,{"$f":"IF('Generated list'!B7593=\"\",\"\",'Generated list'!B7593)","v":""},{"$f":"IF('Generated list'!C7593=\"\",\"\",'Generated list'!C7593)","v":""},{"$f":"IF('Generated list'!D7593=\"\",\"\",'Generated list'!D7593)","v":""}]
[null,{"$f":"IF('Generated list'!B7594=\"\",\"\",'Generated list'!B7594)","v":""},{"$f":"IF('Generated list'!C7594=\"\",\"\",'Generated list'!C7594)","v":""},{"$f":"IF('Generated list'!D7594=\"\",\"\",'Generated list'!D7594)","v":""}]
[null,{"$f":"IF('Generated list'!B7595=\"\",\"\",'Generated list'!B7595)","v":""},{"$f":"IF('Generated list'!C7595=\"\",\"\",'Generated list'!C7595)","v":""},{"$f":"IF('Generated list'!D7595=\"\",\"\",'Generated list'!D7595)","v":""}]
[null,{"$f":"IF('Generated list'!B7596=\"\",\"\",'Generated list'!B7596)","v":""},{"$f":"IF('Generated list'!C7596=\"\",\"\",'Generated list'!C7596)","v":""},{"$f":"IF('Generated list'!D7596=\"\",\"\",'Generated list'!D7596)","v":""}]
[null,{"$f":"IF('Generated list'!B7597=\"\",\"\",'Generated list'!B7597)","v":""},{"$f":"IF('Generated list'!C7597=\"\",\"\",'Generated list'!C7597)","v":""},{"$f":"IF('Generated list'!D7597=\"\",\"\",'Generated list'!D7597)","v":""}]
[null,{"$f":"IF('Generated list'!B7598=\"\",\"\",'Generated list'!B7598)","v":""},{"$f":"IF('Generated list'!C7598=\"\",\"\",'Generated list'!C7598)","v":""},{"$f":"IF('Generated list'!D7598=\"\",\"\",'Generated list'!D7598)","v":""}]
[null,{"$f":"IF('Generated list'!B7599=\"\",\"\",'Generated list'!B7599)","v":""},{"$f":"IF('Generated list'!C7599=\"\",\"\",'Generated list'!C7599)","v":""},{"$f":"IF('Generated list'!D7599=\"\",\"\",'Generated list'!D7599)","v":""}]
[null,{"$f":"IF('Generated list'!B7600=\"\",\"\",'Generated list'!B7600)","v":""},{"$f":"IF('Generated list'!C7600=\"\",\"\",'Generated list'!C7600)","v":""},{"$f":"IF('Generated list'!D7600=\"\",\"\",'Generated list'!D7600)","v":""}]
[null,{"$f":"IF('Generated list'!B7601=\"\",\"\",'Generated list'!B7601)","v":""},{"$f":"IF('Generated list'!C7601=\"\",\"\",'Generated list'!C7601)","v":""},{"$f":"IF('Generated list'!D7601=\"\",\"\",'Generated list'!D7601)","v":""}]
[null,{"$f":"IF('Generated list'!B7602=\"\",\"\",'Generated list'!B7602)","v":""},{"$f":"IF('Generated list'!C7602=\"\",\"\",'Generated list'!C7602)","v":""},{"$f":"IF('Generated list'!D7602=\"\",\"\",'Generated list'!D7602)","v":""}]
[null,{"$f":"IF('Generated list'!B7603=\"\",\"\",'Generated list'!B7603)","v":""},{"$f":"IF('Generated list'!C7603=\"\",\"\",'Generated list'!C7603)","v":""},{"$f":"IF('Generated list'!D7603=\"\",\"\",'Generated list'!D7603)","v":""}]
[null,{"$f":"IF('Generated list'!B7604=\"\",\"\",'Generated list'!B7604)","v":""},{"$f":"IF('Generated list'!C7604=\"\",\"\",'Generated list'!C7604)","v":""},{"$f":"IF('Generated list'!D7604=\"\",\"\",'Generated list'!D7604)","v":""}]
[null,{"$f":"IF('Generated list'!B7605=\"\",\"\",'Generated list'!B7605)","v":""},{"$f":"IF('Generated list'!C7605=\"\",\"\",'Generated list'!C7605)","v":""},{"$f":"IF('Generated list'!D7605=\"\",\"\",'Generated list'!D7605)","v":""}]
[null,{"$f":"IF('Generated list'!B7606=\"\",\"\",'Generated list'!B7606)","v":""},{"$f":"IF('Generated list'!C7606=\"\",\"\",'Generated list'!C7606)","v":""},{"$f":"IF('Generated list'!D7606=\"\",\"\",'Generated list'!D7606)","v":""}]
[null,{"$f":"IF('Generated list'!B7607=\"\",\"\",'Generated list'!B7607)","v":""},{"$f":"IF('Generated list'!C7607=\"\",\"\",'Generated list'!C7607)","v":""},{"$f":"IF('Generated list'!D7607=\"\",\"\",'Generated list'!D7607)","v":""}]
[null,{"$f":"IF('Generated list'!B7608=\"\",\"\",'Generated list'!B7608)","v":""},{"$f":"IF('Generated list'!C7608=\"\",\"\",'Generated list'!C7608)","v":""},{"$f":"IF('Generated list'!D7608=\"\",\"\",'Generated list'!D7608)","v":""}]
[null,{"$f":"IF('Generated list'!B7609=\"\",\"\",'Generated list'!B7609)","v":""},{"$f":"IF('Generated list'!C7609=\"\",\"\",'Generated list'!C7609)","v":""},{"$f":"IF('Generated list'!D7609=\"\",\"\",'Generated list'!D7609)","v":""}]
[null,{"$f":"IF('Generated list'!B7610=\"\",\"\",'Generated list'!B7610)","v":""},{"$f":"IF('Generated list'!C7610=\"\",\"\",'Generated list'!C7610)","v":""},{"$f":"IF('Generated list'!D7610=\"\",\"\",'Generated list'!D7610)","v":""}]
[null,{"$f":"IF('Generated list'!B7611=\"\",\"\",'Generated list'!B7611)","v":""},{"$f":"IF('Generated list'!C7611=\"\",\"\",'Generated list'!C7611)","v":""},{"$f":"IF('Generated list'!D7611=\"\",\"\",'Generated list'!D7611)","v":""}]
[null,{"$f":"IF('Generated list'!B7612=\"\",\"\",'Generated list'!B7612)","v":""},{"$f":"IF('Generated list'!C7612=\"\",\"\",'Generated list'!C7612)","v":""},{"$f":"IF('Generated list'!D7612=\"\",\"\",'Generated list'!D7612)","v":""}]
[null,{"$f":"IF('Generated list'!B7613=\"\",\"\",'Generated list'!B7613)","v":""},{"$f":"IF('Generated list'!C7613=\"\",\"\",'Generated list'!C7613)","v":""},{"$f":"IF('Generated list'!D7613=\"\",\"\",'Generated list'!D7613)","v":""}]
[null,{"$f":"IF('Generated list'!B7614=\"\",\"\",'Generated list'!B7614)","v":""},{"$f":"IF('Generated list'!C7614=\"\",\"\",'Generated list'!C7614)","v":""},{"$f":"IF('Generated list'!D7614=\"\",\"\",'Generated list'!D7614)","v":""}]
[null,{"$f":"IF('Generated list'!B7615=\"\",\"\",'Generated list'!B7615)","v":""},{"$f":"IF('Generated list'!C7615=\"\",\"\",'Generated list'!C7615)","v":""},{"$f":"IF('Generated list'!D7615=\"\",\"\",'Generated list'!D7615)","v":""}]
[null,{"$f":"IF('Generated list'!B7616=\"\",\"\",'Generated list'!B7616)","v":""},{"$f":"IF('Generated list'!C7616=\"\",\"\",'Generated list'!C7616)","v":""},{"$f":"IF('Generated list'!D7616=\"\",\"\",'Generated list'!D7616)","v":""}]
[null,{"$f":"IF('Generated list'!B7617=\"\",\"\",'Generated list'!B7617)","v":""},{"$f":"IF('Generated list'!C7617=\"\",\"\",'Generated list'!C7617)","v":""},{"$f":"IF('Generated list'!D7617=\"\",\"\",'Generated list'!D7617)","v":""}]
[null,{"$f":"IF('Generated list'!B7618=\"\",\"\",'Generated list'!B7618)","v":""},{"$f":"IF('Generated list'!C7618=\"\",\"\",'Generated list'!C7618)","v":""},{"$f":"IF('Generated list'!D7618=\"\",\"\",'Generated list'!D7618)","v":""}]
[null,{"$f":"IF('Generated list'!B7619=\"\",\"\",'Generated list'!B7619)","v":""},{"$f":"IF('Generated list'!C7619=\"\",\"\",'Generated list'!C7619)","v":""},{"$f":"IF('Generated list'!D7619=\"\",\"\",'Generated list'!D7619)","v":""}]
[null,{"$f":"IF('Generated list'!B7620=\"\",\"\",'Generated list'!B7620)","v":""},{"$f":"IF('Generated list'!C7620=\"\",\"\",'Generated list'!C7620)","v":""},{"$f":"IF('Generated list'!D7620=\"\",\"\",'Generated list'!D7620)","v":""}]
[null,{"$f":"IF('Generated list'!B7621=\"\",\"\",'Generated list'!B7621)","v":""},{"$f":"IF('Generated list'!C7621=\"\",\"\",'Generated list'!C7621)","v":""},{"$f":"IF('Generated list'!D7621=\"\",\"\",'Generated list'!D7621)","v":""}]
[null,{"$f":"IF('Generated list'!B7622=\"\",\"\",'Generated list'!B7622)","v":""},{"$f":"IF('Generated list'!C7622=\"\",\"\",'Generated list'!C7622)","v":""},{"$f":"IF('Generated list'!D7622=\"\",\"\",'Generated list'!D7622)","v":""}]
[null,{"$f":"IF('Generated list'!B7623=\"\",\"\",'Generated list'!B7623)","v":""},{"$f":"IF('Generated list'!C7623=\"\",\"\",'Generated list'!C7623)","v":""},{"$f":"IF('Generated list'!D7623=\"\",\"\",'Generated list'!D7623)","v":""}]
[null,{"$f":"IF('Generated list'!B7624=\"\",\"\",'Generated list'!B7624)","v":""},{"$f":"IF('Generated list'!C7624=\"\",\"\",'Generated list'!C7624)","v":""},{"$f":"IF('Generated list'!D7624=\"\",\"\",'Generated list'!D7624)","v":""}]
[null,{"$f":"IF('Generated list'!B7625=\"\",\"\",'Generated list'!B7625)","v":""},{"$f":"IF('Generated list'!C7625=\"\",\"\",'Generated list'!C7625)","v":""},{"$f":"IF('Generated list'!D7625=\"\",\"\",'Generated list'!D7625)","v":""}]
[null,{"$f":"IF('Generated list'!B7626=\"\",\"\",'Generated list'!B7626)","v":""},{"$f":"IF('Generated list'!C7626=\"\",\"\",'Generated list'!C7626)","v":""},{"$f":"IF('Generated list'!D7626=\"\",\"\",'Generated list'!D7626)","v":""}]
[null,{"$f":"IF('Generated list'!B7627=\"\",\"\",'Generated list'!B7627)","v":""},{"$f":"IF('Generated list'!C7627=\"\",\"\",'Generated list'!C7627)","v":""},{"$f":"IF('Generated list'!D7627=\"\",\"\",'Generated list'!D7627)","v":""}]
[null,{"$f":"IF('Generated list'!B7628=\"\",\"\",'Generated list'!B7628)","v":""},{"$f":"IF('Generated list'!C7628=\"\",\"\",'Generated list'!C7628)","v":""},{"$f":"IF('Generated list'!D7628=\"\",\"\",'Generated list'!D7628)","v":""}]
[null,{"$f":"IF('Generated list'!B7629=\"\",\"\",'Generated list'!B7629)","v":""},{"$f":"IF('Generated list'!C7629=\"\",\"\",'Generated list'!C7629)","v":""},{"$f":"IF('Generated list'!D7629=\"\",\"\",'Generated list'!D7629)","v":""}]
[null,{"$f":"IF('Generated list'!B7630=\"\",\"\",'Generated list'!B7630)","v":""},{"$f":"IF('Generated list'!C7630=\"\",\"\",'Generated list'!C7630)","v":""},{"$f":"IF('Generated list'!D7630=\"\",\"\",'Generated list'!D7630)","v":""}]
[null,{"$f":"IF('Generated list'!B7631=\"\",\"\",'Generated list'!B7631)","v":""},{"$f":"IF('Generated list'!C7631=\"\",\"\",'Generated list'!C7631)","v":""},{"$f":"IF('Generated list'!D7631=\"\",\"\",'Generated list'!D7631)","v":""}]
[null,{"$f":"IF('Generated list'!B7632=\"\",\"\",'Generated list'!B7632)","v":""},{"$f":"IF('Generated list'!C7632=\"\",\"\",'Generated list'!C7632)","v":""},{"$f":"IF('Generated list'!D7632=\"\",\"\",'Generated list'!D7632)","v":""}]
[null,{"$f":"IF('Generated list'!B7633=\"\",\"\",'Generated list'!B7633)","v":""},{"$f":"IF('Generated list'!C7633=\"\",\"\",'Generated list'!C7633)","v":""},{"$f":"IF('Generated list'!D7633=\"\",\"\",'Generated list'!D7633)","v":""}]
[null,{"$f":"IF('Generated list'!B7634=\"\",\"\",'Generated list'!B7634)","v":""},{"$f":"IF('Generated list'!C7634=\"\",\"\",'Generated list'!C7634)","v":""},{"$f":"IF('Generated list'!D7634=\"\",\"\",'Generated list'!D7634)","v":""}]
[null,{"$f":"IF('Generated list'!B7635=\"\",\"\",'Generated list'!B7635)","v":""},{"$f":"IF('Generated list'!C7635=\"\",\"\",'Generated list'!C7635)","v":""},{"$f":"IF('Generated list'!D7635=\"\",\"\",'Generated list'!D7635)","v":""}]
[null,{"$f":"IF('Generated list'!B7636=\"\",\"\",'Generated list'!B7636)","v":""},{"$f":"IF('Generated list'!C7636=\"\",\"\",'Generated list'!C7636)","v":""},{"$f":"IF('Generated list'!D7636=\"\",\"\",'Generated list'!D7636)","v":""}]
[null,{"$f":"IF('Generated list'!B7637=\"\",\"\",'Generated list'!B7637)","v":""},{"$f":"IF('Generated list'!C7637=\"\",\"\",'Generated list'!C7637)","v":""},{"$f":"IF('Generated list'!D7637=\"\",\"\",'Generated list'!D7637)","v":""}]
[null,{"$f":"IF('Generated list'!B7638=\"\",\"\",'Generated list'!B7638)","v":""},{"$f":"IF('Generated list'!C7638=\"\",\"\",'Generated list'!C7638)","v":""},{"$f":"IF('Generated list'!D7638=\"\",\"\",'Generated list'!D7638)","v":""}]
[null,{"$f":"IF('Generated list'!B7639=\"\",\"\",'Generated list'!B7639)","v":""},{"$f":"IF('Generated list'!C7639=\"\",\"\",'Generated list'!C7639)","v":""},{"$f":"IF('Generated list'!D7639=\"\",\"\",'Generated list'!D7639)","v":""}]
[null,{"$f":"IF('Generated list'!B7640=\"\",\"\",'Generated list'!B7640)","v":""},{"$f":"IF('Generated list'!C7640=\"\",\"\",'Generated list'!C7640)","v":""},{"$f":"IF('Generated list'!D7640=\"\",\"\",'Generated list'!D7640)","v":""}]
[null,{"$f":"IF('Generated list'!B7641=\"\",\"\",'Generated list'!B7641)","v":""},{"$f":"IF('Generated list'!C7641=\"\",\"\",'Generated list'!C7641)","v":""},{"$f":"IF('Generated list'!D7641=\"\",\"\",'Generated list'!D7641)","v":""}]
[null,{"$f":"IF('Generated list'!B7642=\"\",\"\",'Generated list'!B7642)","v":""},{"$f":"IF('Generated list'!C7642=\"\",\"\",'Generated list'!C7642)","v":""},{"$f":"IF('Generated list'!D7642=\"\",\"\",'Generated list'!D7642)","v":""}]
[null,{"$f":"IF('Generated list'!B7643=\"\",\"\",'Generated list'!B7643)","v":""},{"$f":"IF('Generated list'!C7643=\"\",\"\",'Generated list'!C7643)","v":""},{"$f":"IF('Generated list'!D7643=\"\",\"\",'Generated list'!D7643)","v":""}]
[null,{"$f":"IF('Generated list'!B7644=\"\",\"\",'Generated list'!B7644)","v":""},{"$f":"IF('Generated list'!C7644=\"\",\"\",'Generated list'!C7644)","v":""},{"$f":"IF('Generated list'!D7644=\"\",\"\",'Generated list'!D7644)","v":""}]
[null,{"$f":"IF('Generated list'!B7645=\"\",\"\",'Generated list'!B7645)","v":""},{"$f":"IF('Generated list'!C7645=\"\",\"\",'Generated list'!C7645)","v":""},{"$f":"IF('Generated list'!D7645=\"\",\"\",'Generated list'!D7645)","v":""}]
[null,{"$f":"IF('Generated list'!B7646=\"\",\"\",'Generated list'!B7646)","v":""},{"$f":"IF('Generated list'!C7646=\"\",\"\",'Generated list'!C7646)","v":""},{"$f":"IF('Generated list'!D7646=\"\",\"\",'Generated list'!D7646)","v":""}]
[null,{"$f":"IF('Generated list'!B7647=\"\",\"\",'Generated list'!B7647)","v":""},{"$f":"IF('Generated list'!C7647=\"\",\"\",'Generated list'!C7647)","v":""},{"$f":"IF('Generated list'!D7647=\"\",\"\",'Generated list'!D7647)","v":""}]
[null,{"$f":"IF('Generated list'!B7648=\"\",\"\",'Generated list'!B7648)","v":""},{"$f":"IF('Generated list'!C7648=\"\",\"\",'Generated list'!C7648)","v":""},{"$f":"IF('Generated list'!D7648=\"\",\"\",'Generated list'!D7648)","v":""}]
[null,{"$f":"IF('Generated list'!B7649=\"\",\"\",'Generated list'!B7649)","v":""},{"$f":"IF('Generated list'!C7649=\"\",\"\",'Generated list'!C7649)","v":""},{"$f":"IF('Generated list'!D7649=\"\",\"\",'Generated list'!D7649)","v":""}]
[null,{"$f":"IF('Generated list'!B7650=\"\",\"\",'Generated list'!B7650)","v":""},{"$f":"IF('Generated list'!C7650=\"\",\"\",'Generated list'!C7650)","v":""},{"$f":"IF('Generated list'!D7650=\"\",\"\",'Generated list'!D7650)","v":""}]
[null,{"$f":"IF('Generated list'!B7651=\"\",\"\",'Generated list'!B7651)","v":""},{"$f":"IF('Generated list'!C7651=\"\",\"\",'Generated list'!C7651)","v":""},{"$f":"IF('Generated list'!D7651=\"\",\"\",'Generated list'!D7651)","v":""}]
[null,{"$f":"IF('Generated list'!B7652=\"\",\"\",'Generated list'!B7652)","v":""},{"$f":"IF('Generated list'!C7652=\"\",\"\",'Generated list'!C7652)","v":""},{"$f":"IF('Generated list'!D7652=\"\",\"\",'Generated list'!D7652)","v":""}]
[null,{"$f":"IF('Generated list'!B7653=\"\",\"\",'Generated list'!B7653)","v":""},{"$f":"IF('Generated list'!C7653=\"\",\"\",'Generated list'!C7653)","v":""},{"$f":"IF('Generated list'!D7653=\"\",\"\",'Generated list'!D7653)","v":""}]
[null,{"$f":"IF('Generated list'!B7654=\"\",\"\",'Generated list'!B7654)","v":""},{"$f":"IF('Generated list'!C7654=\"\",\"\",'Generated list'!C7654)","v":""},{"$f":"IF('Generated list'!D7654=\"\",\"\",'Generated list'!D7654)","v":""}]
[null,{"$f":"IF('Generated list'!B7655=\"\",\"\",'Generated list'!B7655)","v":""},{"$f":"IF('Generated list'!C7655=\"\",\"\",'Generated list'!C7655)","v":""},{"$f":"IF('Generated list'!D7655=\"\",\"\",'Generated list'!D7655)","v":""}]
[null,{"$f":"IF('Generated list'!B7656=\"\",\"\",'Generated list'!B7656)","v":""},{"$f":"IF('Generated list'!C7656=\"\",\"\",'Generated list'!C7656)","v":""},{"$f":"IF('Generated list'!D7656=\"\",\"\",'Generated list'!D7656)","v":""}]
[null,{"$f":"IF('Generated list'!B7657=\"\",\"\",'Generated list'!B7657)","v":""},{"$f":"IF('Generated list'!C7657=\"\",\"\",'Generated list'!C7657)","v":""},{"$f":"IF('Generated list'!D7657=\"\",\"\",'Generated list'!D7657)","v":""}]
[null,{"$f":"IF('Generated list'!B7658=\"\",\"\",'Generated list'!B7658)","v":""},{"$f":"IF('Generated list'!C7658=\"\",\"\",'Generated list'!C7658)","v":""},{"$f":"IF('Generated list'!D7658=\"\",\"\",'Generated list'!D7658)","v":""}]
[null,{"$f":"IF('Generated list'!B7659=\"\",\"\",'Generated list'!B7659)","v":""},{"$f":"IF('Generated list'!C7659=\"\",\"\",'Generated list'!C7659)","v":""},{"$f":"IF('Generated list'!D7659=\"\",\"\",'Generated list'!D7659)","v":""}]
[null,{"$f":"IF('Generated list'!B7660=\"\",\"\",'Generated list'!B7660)","v":""},{"$f":"IF('Generated list'!C7660=\"\",\"\",'Generated list'!C7660)","v":""},{"$f":"IF('Generated list'!D7660=\"\",\"\",'Generated list'!D7660)","v":""}]
[null,{"$f":"IF('Generated list'!B7661=\"\",\"\",'Generated list'!B7661)","v":""},{"$f":"IF('Generated list'!C7661=\"\",\"\",'Generated list'!C7661)","v":""},{"$f":"IF('Generated list'!D7661=\"\",\"\",'Generated list'!D7661)","v":""}]
[null,{"$f":"IF('Generated list'!B7662=\"\",\"\",'Generated list'!B7662)","v":""},{"$f":"IF('Generated list'!C7662=\"\",\"\",'Generated list'!C7662)","v":""},{"$f":"IF('Generated list'!D7662=\"\",\"\",'Generated list'!D7662)","v":""}]
[null,{"$f":"IF('Generated list'!B7663=\"\",\"\",'Generated list'!B7663)","v":""},{"$f":"IF('Generated list'!C7663=\"\",\"\",'Generated list'!C7663)","v":""},{"$f":"IF('Generated list'!D7663=\"\",\"\",'Generated list'!D7663)","v":""}]
[null,{"$f":"IF('Generated list'!B7664=\"\",\"\",'Generated list'!B7664)","v":""},{"$f":"IF('Generated list'!C7664=\"\",\"\",'Generated list'!C7664)","v":""},{"$f":"IF('Generated list'!D7664=\"\",\"\",'Generated list'!D7664)","v":""}]
[null,{"$f":"IF('Generated list'!B7665=\"\",\"\",'Generated list'!B7665)","v":""},{"$f":"IF('Generated list'!C7665=\"\",\"\",'Generated list'!C7665)","v":""},{"$f":"IF('Generated list'!D7665=\"\",\"\",'Generated list'!D7665)","v":""}]
[null,{"$f":"IF('Generated list'!B7666=\"\",\"\",'Generated list'!B7666)","v":""},{"$f":"IF('Generated list'!C7666=\"\",\"\",'Generated list'!C7666)","v":""},{"$f":"IF('Generated list'!D7666=\"\",\"\",'Generated list'!D7666)","v":""}]
[null,{"$f":"IF('Generated list'!B7667=\"\",\"\",'Generated list'!B7667)","v":""},{"$f":"IF('Generated list'!C7667=\"\",\"\",'Generated list'!C7667)","v":""},{"$f":"IF('Generated list'!D7667=\"\",\"\",'Generated list'!D7667)","v":""}]
[null,{"$f":"IF('Generated list'!B7668=\"\",\"\",'Generated list'!B7668)","v":""},{"$f":"IF('Generated list'!C7668=\"\",\"\",'Generated list'!C7668)","v":""},{"$f":"IF('Generated list'!D7668=\"\",\"\",'Generated list'!D7668)","v":""}]
[null,{"$f":"IF('Generated list'!B7669=\"\",\"\",'Generated list'!B7669)","v":""},{"$f":"IF('Generated list'!C7669=\"\",\"\",'Generated list'!C7669)","v":""},{"$f":"IF('Generated list'!D7669=\"\",\"\",'Generated list'!D7669)","v":""}]
[null,{"$f":"IF('Generated list'!B7670=\"\",\"\",'Generated list'!B7670)","v":""},{"$f":"IF('Generated list'!C7670=\"\",\"\",'Generated list'!C7670)","v":""},{"$f":"IF('Generated list'!D7670=\"\",\"\",'Generated list'!D7670)","v":""}]
[null,{"$f":"IF('Generated list'!B7671=\"\",\"\",'Generated list'!B7671)","v":""},{"$f":"IF('Generated list'!C7671=\"\",\"\",'Generated list'!C7671)","v":""},{"$f":"IF('Generated list'!D7671=\"\",\"\",'Generated list'!D7671)","v":""}]
[null,{"$f":"IF('Generated list'!B7672=\"\",\"\",'Generated list'!B7672)","v":""},{"$f":"IF('Generated list'!C7672=\"\",\"\",'Generated list'!C7672)","v":""},{"$f":"IF('Generated list'!D7672=\"\",\"\",'Generated list'!D7672)","v":""}]
[null,{"$f":"IF('Generated list'!B7673=\"\",\"\",'Generated list'!B7673)","v":""},{"$f":"IF('Generated list'!C7673=\"\",\"\",'Generated list'!C7673)","v":""},{"$f":"IF('Generated list'!D7673=\"\",\"\",'Generated list'!D7673)","v":""}]
[null,{"$f":"IF('Generated list'!B7674=\"\",\"\",'Generated list'!B7674)","v":""},{"$f":"IF('Generated list'!C7674=\"\",\"\",'Generated list'!C7674)","v":""},{"$f":"IF('Generated list'!D7674=\"\",\"\",'Generated list'!D7674)","v":""}]
[null,{"$f":"IF('Generated list'!B7675=\"\",\"\",'Generated list'!B7675)","v":""},{"$f":"IF('Generated list'!C7675=\"\",\"\",'Generated list'!C7675)","v":""},{"$f":"IF('Generated list'!D7675=\"\",\"\",'Generated list'!D7675)","v":""}]
[null,{"$f":"IF('Generated list'!B7676=\"\",\"\",'Generated list'!B7676)","v":""},{"$f":"IF('Generated list'!C7676=\"\",\"\",'Generated list'!C7676)","v":""},{"$f":"IF('Generated list'!D7676=\"\",\"\",'Generated list'!D7676)","v":""}]
[null,{"$f":"IF('Generated list'!B7677=\"\",\"\",'Generated list'!B7677)","v":""},{"$f":"IF('Generated list'!C7677=\"\",\"\",'Generated list'!C7677)","v":""},{"$f":"IF('Generated list'!D7677=\"\",\"\",'Generated list'!D7677)","v":""}]
[null,{"$f":"IF('Generated list'!B7678=\"\",\"\",'Generated list'!B7678)","v":""},{"$f":"IF('Generated list'!C7678=\"\",\"\",'Generated list'!C7678)","v":""},{"$f":"IF('Generated list'!D7678=\"\",\"\",'Generated list'!D7678)","v":""}]
[null,{"$f":"IF('Generated list'!B7679=\"\",\"\",'Generated list'!B7679)","v":""},{"$f":"IF('Generated list'!C7679=\"\",\"\",'Generated list'!C7679)","v":""},{"$f":"IF('Generated list'!D7679=\"\",\"\",'Generated list'!D7679)","v":""}]
[null,{"$f":"IF('Generated list'!B7680=\"\",\"\",'Generated list'!B7680)","v":""},{"$f":"IF('Generated list'!C7680=\"\",\"\",'Generated list'!C7680)","v":""},{"$f":"IF('Generated list'!D7680=\"\",\"\",'Generated list'!D7680)","v":""}]
[null,{"$f":"IF('Generated list'!B7681=\"\",\"\",'Generated list'!B7681)","v":""},{"$f":"IF('Generated list'!C7681=\"\",\"\",'Generated list'!C7681)","v":""},{"$f":"IF('Generated list'!D7681=\"\",\"\",'Generated list'!D7681)","v":""}]
[null,{"$f":"IF('Generated list'!B7682=\"\",\"\",'Generated list'!B7682)","v":""},{"$f":"IF('Generated list'!C7682=\"\",\"\",'Generated list'!C7682)","v":""},{"$f":"IF('Generated list'!D7682=\"\",\"\",'Generated list'!D7682)","v":""}]
[null,{"$f":"IF('Generated list'!B7683=\"\",\"\",'Generated list'!B7683)","v":""},{"$f":"IF('Generated list'!C7683=\"\",\"\",'Generated list'!C7683)","v":""},{"$f":"IF('Generated list'!D7683=\"\",\"\",'Generated list'!D7683)","v":""}]
[null,{"$f":"IF('Generated list'!B7684=\"\",\"\",'Generated list'!B7684)","v":""},{"$f":"IF('Generated list'!C7684=\"\",\"\",'Generated list'!C7684)","v":""},{"$f":"IF('Generated list'!D7684=\"\",\"\",'Generated list'!D7684)","v":""}]
[null,{"$f":"IF('Generated list'!B7685=\"\",\"\",'Generated list'!B7685)","v":""},{"$f":"IF('Generated list'!C7685=\"\",\"\",'Generated list'!C7685)","v":""},{"$f":"IF('Generated list'!D7685=\"\",\"\",'Generated list'!D7685)","v":""}]
[null,{"$f":"IF('Generated list'!B7686=\"\",\"\",'Generated list'!B7686)","v":""},{"$f":"IF('Generated list'!C7686=\"\",\"\",'Generated list'!C7686)","v":""},{"$f":"IF('Generated list'!D7686=\"\",\"\",'Generated list'!D7686)","v":""}]
[null,{"$f":"IF('Generated list'!B7687=\"\",\"\",'Generated list'!B7687)","v":""},{"$f":"IF('Generated list'!C7687=\"\",\"\",'Generated list'!C7687)","v":""},{"$f":"IF('Generated list'!D7687=\"\",\"\",'Generated list'!D7687)","v":""}]
[null,{"$f":"IF('Generated list'!B7688=\"\",\"\",'Generated list'!B7688)","v":""},{"$f":"IF('Generated list'!C7688=\"\",\"\",'Generated list'!C7688)","v":""},{"$f":"IF('Generated list'!D7688=\"\",\"\",'Generated list'!D7688)","v":""}]
[null,{"$f":"IF('Generated list'!B7689=\"\",\"\",'Generated list'!B7689)","v":""},{"$f":"IF('Generated list'!C7689=\"\",\"\",'Generated list'!C7689)","v":""},{"$f":"IF('Generated list'!D7689=\"\",\"\",'Generated list'!D7689)","v":""}]
[null,{"$f":"IF('Generated list'!B7690=\"\",\"\",'Generated list'!B7690)","v":""},{"$f":"IF('Generated list'!C7690=\"\",\"\",'Generated list'!C7690)","v":""},{"$f":"IF('Generated list'!D7690=\"\",\"\",'Generated list'!D7690)","v":""}]
[null,{"$f":"IF('Generated list'!B7691=\"\",\"\",'Generated list'!B7691)","v":""},{"$f":"IF('Generated list'!C7691=\"\",\"\",'Generated list'!C7691)","v":""},{"$f":"IF('Generated list'!D7691=\"\",\"\",'Generated list'!D7691)","v":""}]
[null,{"$f":"IF('Generated list'!B7692=\"\",\"\",'Generated list'!B7692)","v":""},{"$f":"IF('Generated list'!C7692=\"\",\"\",'Generated list'!C7692)","v":""},{"$f":"IF('Generated list'!D7692=\"\",\"\",'Generated list'!D7692)","v":""}]
[null,{"$f":"IF('Generated list'!B7693=\"\",\"\",'Generated list'!B7693)","v":""},{"$f":"IF('Generated list'!C7693=\"\",\"\",'Generated list'!C7693)","v":""},{"$f":"IF('Generated list'!D7693=\"\",\"\",'Generated list'!D7693)","v":""}]
[null,{"$f":"IF('Generated list'!B7694=\"\",\"\",'Generated list'!B7694)","v":""},{"$f":"IF('Generated list'!C7694=\"\",\"\",'Generated list'!C7694)","v":""},{"$f":"IF('Generated list'!D7694=\"\",\"\",'Generated list'!D7694)","v":""}]
[null,{"$f":"IF('Generated list'!B7695=\"\",\"\",'Generated list'!B7695)","v":""},{"$f":"IF('Generated list'!C7695=\"\",\"\",'Generated list'!C7695)","v":""},{"$f":"IF('Generated list'!D7695=\"\",\"\",'Generated list'!D7695)","v":""}]
[null,{"$f":"IF('Generated list'!B7696=\"\",\"\",'Generated list'!B7696)","v":""},{"$f":"IF('Generated list'!C7696=\"\",\"\",'Generated list'!C7696)","v":""},{"$f":"IF('Generated list'!D7696=\"\",\"\",'Generated list'!D7696)","v":""}]
[null,{"$f":"IF('Generated list'!B7697=\"\",\"\",'Generated list'!B7697)","v":""},{"$f":"IF('Generated list'!C7697=\"\",\"\",'Generated list'!C7697)","v":""},{"$f":"IF('Generated list'!D7697=\"\",\"\",'Generated list'!D7697)","v":""}]
[null,{"$f":"IF('Generated list'!B7698=\"\",\"\",'Generated list'!B7698)","v":""},{"$f":"IF('Generated list'!C7698=\"\",\"\",'Generated list'!C7698)","v":""},{"$f":"IF('Generated list'!D7698=\"\",\"\",'Generated list'!D7698)","v":""}]
[null,{"$f":"IF('Generated list'!B7699=\"\",\"\",'Generated list'!B7699)","v":""},{"$f":"IF('Generated list'!C7699=\"\",\"\",'Generated list'!C7699)","v":""},{"$f":"IF('Generated list'!D7699=\"\",\"\",'Generated list'!D7699)","v":""}]
[null,{"$f":"IF('Generated list'!B7700=\"\",\"\",'Generated list'!B7700)","v":""},{"$f":"IF('Generated list'!C7700=\"\",\"\",'Generated list'!C7700)","v":""},{"$f":"IF('Generated list'!D7700=\"\",\"\",'Generated list'!D7700)","v":""}]
[null,{"$f":"IF('Generated list'!B7701=\"\",\"\",'Generated list'!B7701)","v":""},{"$f":"IF('Generated list'!C7701=\"\",\"\",'Generated list'!C7701)","v":""},{"$f":"IF('Generated list'!D7701=\"\",\"\",'Generated list'!D7701)","v":""}]
[null,{"$f":"IF('Generated list'!B7702=\"\",\"\",'Generated list'!B7702)","v":""},{"$f":"IF('Generated list'!C7702=\"\",\"\",'Generated list'!C7702)","v":""},{"$f":"IF('Generated list'!D7702=\"\",\"\",'Generated list'!D7702)","v":""}]
[null,{"$f":"IF('Generated list'!B7703=\"\",\"\",'Generated list'!B7703)","v":""},{"$f":"IF('Generated list'!C7703=\"\",\"\",'Generated list'!C7703)","v":""},{"$f":"IF('Generated list'!D7703=\"\",\"\",'Generated list'!D7703)","v":""}]
[null,{"$f":"IF('Generated list'!B7704=\"\",\"\",'Generated list'!B7704)","v":""},{"$f":"IF('Generated list'!C7704=\"\",\"\",'Generated list'!C7704)","v":""},{"$f":"IF('Generated list'!D7704=\"\",\"\",'Generated list'!D7704)","v":""}]
[null,{"$f":"IF('Generated list'!B7705=\"\",\"\",'Generated list'!B7705)","v":""},{"$f":"IF('Generated list'!C7705=\"\",\"\",'Generated list'!C7705)","v":""},{"$f":"IF('Generated list'!D7705=\"\",\"\",'Generated list'!D7705)","v":""}]
[null,{"$f":"IF('Generated list'!B7706=\"\",\"\",'Generated list'!B7706)","v":""},{"$f":"IF('Generated list'!C7706=\"\",\"\",'Generated list'!C7706)","v":""},{"$f":"IF('Generated list'!D7706=\"\",\"\",'Generated list'!D7706)","v":""}]
[null,{"$f":"IF('Generated list'!B7707=\"\",\"\",'Generated list'!B7707)","v":""},{"$f":"IF('Generated list'!C7707=\"\",\"\",'Generated list'!C7707)","v":""},{"$f":"IF('Generated list'!D7707=\"\",\"\",'Generated list'!D7707)","v":""}]
[null,{"$f":"IF('Generated list'!B7708=\"\",\"\",'Generated list'!B7708)","v":""},{"$f":"IF('Generated list'!C7708=\"\",\"\",'Generated list'!C7708)","v":""},{"$f":"IF('Generated list'!D7708=\"\",\"\",'Generated list'!D7708)","v":""}]
[null,{"$f":"IF('Generated list'!B7709=\"\",\"\",'Generated list'!B7709)","v":""},{"$f":"IF('Generated list'!C7709=\"\",\"\",'Generated list'!C7709)","v":""},{"$f":"IF('Generated list'!D7709=\"\",\"\",'Generated list'!D7709)","v":""}]
[null,{"$f":"IF('Generated list'!B7710=\"\",\"\",'Generated list'!B7710)","v":""},{"$f":"IF('Generated list'!C7710=\"\",\"\",'Generated list'!C7710)","v":""},{"$f":"IF('Generated list'!D7710=\"\",\"\",'Generated list'!D7710)","v":""}]
[null,{"$f":"IF('Generated list'!B7711=\"\",\"\",'Generated list'!B7711)","v":""},{"$f":"IF('Generated list'!C7711=\"\",\"\",'Generated list'!C7711)","v":""},{"$f":"IF('Generated list'!D7711=\"\",\"\",'Generated list'!D7711)","v":""}]
[null,{"$f":"IF('Generated list'!B7712=\"\",\"\",'Generated list'!B7712)","v":""},{"$f":"IF('Generated list'!C7712=\"\",\"\",'Generated list'!C7712)","v":""},{"$f":"IF('Generated list'!D7712=\"\",\"\",'Generated list'!D7712)","v":""}]
[null,{"$f":"IF('Generated list'!B7713=\"\",\"\",'Generated list'!B7713)","v":""},{"$f":"IF('Generated list'!C7713=\"\",\"\",'Generated list'!C7713)","v":""},{"$f":"IF('Generated list'!D7713=\"\",\"\",'Generated list'!D7713)","v":""}]
[null,{"$f":"IF('Generated list'!B7714=\"\",\"\",'Generated list'!B7714)","v":""},{"$f":"IF('Generated list'!C7714=\"\",\"\",'Generated list'!C7714)","v":""},{"$f":"IF('Generated list'!D7714=\"\",\"\",'Generated list'!D7714)","v":""}]
[null,{"$f":"IF('Generated list'!B7715=\"\",\"\",'Generated list'!B7715)","v":""},{"$f":"IF('Generated list'!C7715=\"\",\"\",'Generated list'!C7715)","v":""},{"$f":"IF('Generated list'!D7715=\"\",\"\",'Generated list'!D7715)","v":""}]
[null,{"$f":"IF('Generated list'!B7716=\"\",\"\",'Generated list'!B7716)","v":""},{"$f":"IF('Generated list'!C7716=\"\",\"\",'Generated list'!C7716)","v":""},{"$f":"IF('Generated list'!D7716=\"\",\"\",'Generated list'!D7716)","v":""}]
[null,{"$f":"IF('Generated list'!B7717=\"\",\"\",'Generated list'!B7717)","v":""},{"$f":"IF('Generated list'!C7717=\"\",\"\",'Generated list'!C7717)","v":""},{"$f":"IF('Generated list'!D7717=\"\",\"\",'Generated list'!D7717)","v":""}]
[null,{"$f":"IF('Generated list'!B7718=\"\",\"\",'Generated list'!B7718)","v":""},{"$f":"IF('Generated list'!C7718=\"\",\"\",'Generated list'!C7718)","v":""},{"$f":"IF('Generated list'!D7718=\"\",\"\",'Generated list'!D7718)","v":""}]
[null,{"$f":"IF('Generated list'!B7719=\"\",\"\",'Generated list'!B7719)","v":""},{"$f":"IF('Generated list'!C7719=\"\",\"\",'Generated list'!C7719)","v":""},{"$f":"IF('Generated list'!D7719=\"\",\"\",'Generated list'!D7719)","v":""}]
[null,{"$f":"IF('Generated list'!B7720=\"\",\"\",'Generated list'!B7720)","v":""},{"$f":"IF('Generated list'!C7720=\"\",\"\",'Generated list'!C7720)","v":""},{"$f":"IF('Generated list'!D7720=\"\",\"\",'Generated list'!D7720)","v":""}]
[null,{"$f":"IF('Generated list'!B7721=\"\",\"\",'Generated list'!B7721)","v":""},{"$f":"IF('Generated list'!C7721=\"\",\"\",'Generated list'!C7721)","v":""},{"$f":"IF('Generated list'!D7721=\"\",\"\",'Generated list'!D7721)","v":""}]
[null,{"$f":"IF('Generated list'!B7722=\"\",\"\",'Generated list'!B7722)","v":""},{"$f":"IF('Generated list'!C7722=\"\",\"\",'Generated list'!C7722)","v":""},{"$f":"IF('Generated list'!D7722=\"\",\"\",'Generated list'!D7722)","v":""}]
[null,{"$f":"IF('Generated list'!B7723=\"\",\"\",'Generated list'!B7723)","v":""},{"$f":"IF('Generated list'!C7723=\"\",\"\",'Generated list'!C7723)","v":""},{"$f":"IF('Generated list'!D7723=\"\",\"\",'Generated list'!D7723)","v":""}]
[null,{"$f":"IF('Generated list'!B7724=\"\",\"\",'Generated list'!B7724)","v":""},{"$f":"IF('Generated list'!C7724=\"\",\"\",'Generated list'!C7724)","v":""},{"$f":"IF('Generated list'!D7724=\"\",\"\",'Generated list'!D7724)","v":""}]
[null,{"$f":"IF('Generated list'!B7725=\"\",\"\",'Generated list'!B7725)","v":""},{"$f":"IF('Generated list'!C7725=\"\",\"\",'Generated list'!C7725)","v":""},{"$f":"IF('Generated list'!D7725=\"\",\"\",'Generated list'!D7725)","v":""}]
[null,{"$f":"IF('Generated list'!B7726=\"\",\"\",'Generated list'!B7726)","v":""},{"$f":"IF('Generated list'!C7726=\"\",\"\",'Generated list'!C7726)","v":""},{"$f":"IF('Generated list'!D7726=\"\",\"\",'Generated list'!D7726)","v":""}]
[null,{"$f":"IF('Generated list'!B7727=\"\",\"\",'Generated list'!B7727)","v":""},{"$f":"IF('Generated list'!C7727=\"\",\"\",'Generated list'!C7727)","v":""},{"$f":"IF('Generated list'!D7727=\"\",\"\",'Generated list'!D7727)","v":""}]
[null,{"$f":"IF('Generated list'!B7728=\"\",\"\",'Generated list'!B7728)","v":""},{"$f":"IF('Generated list'!C7728=\"\",\"\",'Generated list'!C7728)","v":""},{"$f":"IF('Generated list'!D7728=\"\",\"\",'Generated list'!D7728)","v":""}]
[null,{"$f":"IF('Generated list'!B7729=\"\",\"\",'Generated list'!B7729)","v":""},{"$f":"IF('Generated list'!C7729=\"\",\"\",'Generated list'!C7729)","v":""},{"$f":"IF('Generated list'!D7729=\"\",\"\",'Generated list'!D7729)","v":""}]
[null,{"$f":"IF('Generated list'!B7730=\"\",\"\",'Generated list'!B7730)","v":""},{"$f":"IF('Generated list'!C7730=\"\",\"\",'Generated list'!C7730)","v":""},{"$f":"IF('Generated list'!D7730=\"\",\"\",'Generated list'!D7730)","v":""}]
[null,{"$f":"IF('Generated list'!B7731=\"\",\"\",'Generated list'!B7731)","v":""},{"$f":"IF('Generated list'!C7731=\"\",\"\",'Generated list'!C7731)","v":""},{"$f":"IF('Generated list'!D7731=\"\",\"\",'Generated list'!D7731)","v":""}]
[null,{"$f":"IF('Generated list'!B7732=\"\",\"\",'Generated list'!B7732)","v":""},{"$f":"IF('Generated list'!C7732=\"\",\"\",'Generated list'!C7732)","v":""},{"$f":"IF('Generated list'!D7732=\"\",\"\",'Generated list'!D7732)","v":""}]
[null,{"$f":"IF('Generated list'!B7733=\"\",\"\",'Generated list'!B7733)","v":""},{"$f":"IF('Generated list'!C7733=\"\",\"\",'Generated list'!C7733)","v":""},{"$f":"IF('Generated list'!D7733=\"\",\"\",'Generated list'!D7733)","v":""}]
[null,{"$f":"IF('Generated list'!B7734=\"\",\"\",'Generated list'!B7734)","v":""},{"$f":"IF('Generated list'!C7734=\"\",\"\",'Generated list'!C7734)","v":""},{"$f":"IF('Generated list'!D7734=\"\",\"\",'Generated list'!D7734)","v":""}]
[null,{"$f":"IF('Generated list'!B7735=\"\",\"\",'Generated list'!B7735)","v":""},{"$f":"IF('Generated list'!C7735=\"\",\"\",'Generated list'!C7735)","v":""},{"$f":"IF('Generated list'!D7735=\"\",\"\",'Generated list'!D7735)","v":""}]
[null,{"$f":"IF('Generated list'!B7736=\"\",\"\",'Generated list'!B7736)","v":""},{"$f":"IF('Generated list'!C7736=\"\",\"\",'Generated list'!C7736)","v":""},{"$f":"IF('Generated list'!D7736=\"\",\"\",'Generated list'!D7736)","v":""}]
[null,{"$f":"IF('Generated list'!B7737=\"\",\"\",'Generated list'!B7737)","v":""},{"$f":"IF('Generated list'!C7737=\"\",\"\",'Generated list'!C7737)","v":""},{"$f":"IF('Generated list'!D7737=\"\",\"\",'Generated list'!D7737)","v":""}]
[null,{"$f":"IF('Generated list'!B7738=\"\",\"\",'Generated list'!B7738)","v":""},{"$f":"IF('Generated list'!C7738=\"\",\"\",'Generated list'!C7738)","v":""},{"$f":"IF('Generated list'!D7738=\"\",\"\",'Generated list'!D7738)","v":""}]
[null,{"$f":"IF('Generated list'!B7739=\"\",\"\",'Generated list'!B7739)","v":""},{"$f":"IF('Generated list'!C7739=\"\",\"\",'Generated list'!C7739)","v":""},{"$f":"IF('Generated list'!D7739=\"\",\"\",'Generated list'!D7739)","v":""}]
[null,{"$f":"IF('Generated list'!B7740=\"\",\"\",'Generated list'!B7740)","v":""},{"$f":"IF('Generated list'!C7740=\"\",\"\",'Generated list'!C7740)","v":""},{"$f":"IF('Generated list'!D7740=\"\",\"\",'Generated list'!D7740)","v":""}]
[null,{"$f":"IF('Generated list'!B7741=\"\",\"\",'Generated list'!B7741)","v":""},{"$f":"IF('Generated list'!C7741=\"\",\"\",'Generated list'!C7741)","v":""},{"$f":"IF('Generated list'!D7741=\"\",\"\",'Generated list'!D7741)","v":""}]
[null,{"$f":"IF('Generated list'!B7742=\"\",\"\",'Generated list'!B7742)","v":""},{"$f":"IF('Generated list'!C7742=\"\",\"\",'Generated list'!C7742)","v":""},{"$f":"IF('Generated list'!D7742=\"\",\"\",'Generated list'!D7742)","v":""}]
[null,{"$f":"IF('Generated list'!B7743=\"\",\"\",'Generated list'!B7743)","v":""},{"$f":"IF('Generated list'!C7743=\"\",\"\",'Generated list'!C7743)","v":""},{"$f":"IF('Generated list'!D7743=\"\",\"\",'Generated list'!D7743)","v":""}]
[null,{"$f":"IF('Generated list'!B7744=\"\",\"\",'Generated list'!B7744)","v":""},{"$f":"IF('Generated list'!C7744=\"\",\"\",'Generated list'!C7744)","v":""},{"$f":"IF('Generated list'!D7744=\"\",\"\",'Generated list'!D7744)","v":""}]
[null,{"$f":"IF('Generated list'!B7745=\"\",\"\",'Generated list'!B7745)","v":""},{"$f":"IF('Generated list'!C7745=\"\",\"\",'Generated list'!C7745)","v":""},{"$f":"IF('Generated list'!D7745=\"\",\"\",'Generated list'!D7745)","v":""}]
[null,{"$f":"IF('Generated list'!B7746=\"\",\"\",'Generated list'!B7746)","v":""},{"$f":"IF('Generated list'!C7746=\"\",\"\",'Generated list'!C7746)","v":""},{"$f":"IF('Generated list'!D7746=\"\",\"\",'Generated list'!D7746)","v":""}]
[null,{"$f":"IF('Generated list'!B7747=\"\",\"\",'Generated list'!B7747)","v":""},{"$f":"IF('Generated list'!C7747=\"\",\"\",'Generated list'!C7747)","v":""},{"$f":"IF('Generated list'!D7747=\"\",\"\",'Generated list'!D7747)","v":""}]
[null,{"$f":"IF('Generated list'!B7748=\"\",\"\",'Generated list'!B7748)","v":""},{"$f":"IF('Generated list'!C7748=\"\",\"\",'Generated list'!C7748)","v":""},{"$f":"IF('Generated list'!D7748=\"\",\"\",'Generated list'!D7748)","v":""}]
[null,{"$f":"IF('Generated list'!B7749=\"\",\"\",'Generated list'!B7749)","v":""},{"$f":"IF('Generated list'!C7749=\"\",\"\",'Generated list'!C7749)","v":""},{"$f":"IF('Generated list'!D7749=\"\",\"\",'Generated list'!D7749)","v":""}]
[null,{"$f":"IF('Generated list'!B7750=\"\",\"\",'Generated list'!B7750)","v":""},{"$f":"IF('Generated list'!C7750=\"\",\"\",'Generated list'!C7750)","v":""},{"$f":"IF('Generated list'!D7750=\"\",\"\",'Generated list'!D7750)","v":""}]
[null,{"$f":"IF('Generated list'!B7751=\"\",\"\",'Generated list'!B7751)","v":""},{"$f":"IF('Generated list'!C7751=\"\",\"\",'Generated list'!C7751)","v":""},{"$f":"IF('Generated list'!D7751=\"\",\"\",'Generated list'!D7751)","v":""}]
[null,{"$f":"IF('Generated list'!B7752=\"\",\"\",'Generated list'!B7752)","v":""},{"$f":"IF('Generated list'!C7752=\"\",\"\",'Generated list'!C7752)","v":""},{"$f":"IF('Generated list'!D7752=\"\",\"\",'Generated list'!D7752)","v":""}]
[null,{"$f":"IF('Generated list'!B7753=\"\",\"\",'Generated list'!B7753)","v":""},{"$f":"IF('Generated list'!C7753=\"\",\"\",'Generated list'!C7753)","v":""},{"$f":"IF('Generated list'!D7753=\"\",\"\",'Generated list'!D7753)","v":""}]
[null,{"$f":"IF('Generated list'!B7754=\"\",\"\",'Generated list'!B7754)","v":""},{"$f":"IF('Generated list'!C7754=\"\",\"\",'Generated list'!C7754)","v":""},{"$f":"IF('Generated list'!D7754=\"\",\"\",'Generated list'!D7754)","v":""}]
[null,{"$f":"IF('Generated list'!B7755=\"\",\"\",'Generated list'!B7755)","v":""},{"$f":"IF('Generated list'!C7755=\"\",\"\",'Generated list'!C7755)","v":""},{"$f":"IF('Generated list'!D7755=\"\",\"\",'Generated list'!D7755)","v":""}]
[null,{"$f":"IF('Generated list'!B7756=\"\",\"\",'Generated list'!B7756)","v":""},{"$f":"IF('Generated list'!C7756=\"\",\"\",'Generated list'!C7756)","v":""},{"$f":"IF('Generated list'!D7756=\"\",\"\",'Generated list'!D7756)","v":""}]
[null,{"$f":"IF('Generated list'!B7757=\"\",\"\",'Generated list'!B7757)","v":""},{"$f":"IF('Generated list'!C7757=\"\",\"\",'Generated list'!C7757)","v":""},{"$f":"IF('Generated list'!D7757=\"\",\"\",'Generated list'!D7757)","v":""}]
[null,{"$f":"IF('Generated list'!B7758=\"\",\"\",'Generated list'!B7758)","v":""},{"$f":"IF('Generated list'!C7758=\"\",\"\",'Generated list'!C7758)","v":""},{"$f":"IF('Generated list'!D7758=\"\",\"\",'Generated list'!D7758)","v":""}]
[null,{"$f":"IF('Generated list'!B7759=\"\",\"\",'Generated list'!B7759)","v":""},{"$f":"IF('Generated list'!C7759=\"\",\"\",'Generated list'!C7759)","v":""},{"$f":"IF('Generated list'!D7759=\"\",\"\",'Generated list'!D7759)","v":""}]
[null,{"$f":"IF('Generated list'!B7760=\"\",\"\",'Generated list'!B7760)","v":""},{"$f":"IF('Generated list'!C7760=\"\",\"\",'Generated list'!C7760)","v":""},{"$f":"IF('Generated list'!D7760=\"\",\"\",'Generated list'!D7760)","v":""}]
[null,{"$f":"IF('Generated list'!B7761=\"\",\"\",'Generated list'!B7761)","v":""},{"$f":"IF('Generated list'!C7761=\"\",\"\",'Generated list'!C7761)","v":""},{"$f":"IF('Generated list'!D7761=\"\",\"\",'Generated list'!D7761)","v":""}]
[null,{"$f":"IF('Generated list'!B7762=\"\",\"\",'Generated list'!B7762)","v":""},{"$f":"IF('Generated list'!C7762=\"\",\"\",'Generated list'!C7762)","v":""},{"$f":"IF('Generated list'!D7762=\"\",\"\",'Generated list'!D7762)","v":""}]
[null,{"$f":"IF('Generated list'!B7763=\"\",\"\",'Generated list'!B7763)","v":""},{"$f":"IF('Generated list'!C7763=\"\",\"\",'Generated list'!C7763)","v":""},{"$f":"IF('Generated list'!D7763=\"\",\"\",'Generated list'!D7763)","v":""}]
[null,{"$f":"IF('Generated list'!B7764=\"\",\"\",'Generated list'!B7764)","v":""},{"$f":"IF('Generated list'!C7764=\"\",\"\",'Generated list'!C7764)","v":""},{"$f":"IF('Generated list'!D7764=\"\",\"\",'Generated list'!D7764)","v":""}]
[null,{"$f":"IF('Generated list'!B7765=\"\",\"\",'Generated list'!B7765)","v":""},{"$f":"IF('Generated list'!C7765=\"\",\"\",'Generated list'!C7765)","v":""},{"$f":"IF('Generated list'!D7765=\"\",\"\",'Generated list'!D7765)","v":""}]
[null,{"$f":"IF('Generated list'!B7766=\"\",\"\",'Generated list'!B7766)","v":""},{"$f":"IF('Generated list'!C7766=\"\",\"\",'Generated list'!C7766)","v":""},{"$f":"IF('Generated list'!D7766=\"\",\"\",'Generated list'!D7766)","v":""}]
[null,{"$f":"IF('Generated list'!B7767=\"\",\"\",'Generated list'!B7767)","v":""},{"$f":"IF('Generated list'!C7767=\"\",\"\",'Generated list'!C7767)","v":""},{"$f":"IF('Generated list'!D7767=\"\",\"\",'Generated list'!D7767)","v":""}]
[null,{"$f":"IF('Generated list'!B7768=\"\",\"\",'Generated list'!B7768)","v":""},{"$f":"IF('Generated list'!C7768=\"\",\"\",'Generated list'!C7768)","v":""},{"$f":"IF('Generated list'!D7768=\"\",\"\",'Generated list'!D7768)","v":""}]
[null,{"$f":"IF('Generated list'!B7769=\"\",\"\",'Generated list'!B7769)","v":""},{"$f":"IF('Generated list'!C7769=\"\",\"\",'Generated list'!C7769)","v":""},{"$f":"IF('Generated list'!D7769=\"\",\"\",'Generated list'!D7769)","v":""}]
[null,{"$f":"IF('Generated list'!B7770=\"\",\"\",'Generated list'!B7770)","v":""},{"$f":"IF('Generated list'!C7770=\"\",\"\",'Generated list'!C7770)","v":""},{"$f":"IF('Generated list'!D7770=\"\",\"\",'Generated list'!D7770)","v":""}]
[null,{"$f":"IF('Generated list'!B7771=\"\",\"\",'Generated list'!B7771)","v":""},{"$f":"IF('Generated list'!C7771=\"\",\"\",'Generated list'!C7771)","v":""},{"$f":"IF('Generated list'!D7771=\"\",\"\",'Generated list'!D7771)","v":""}]
[null,{"$f":"IF('Generated list'!B7772=\"\",\"\",'Generated list'!B7772)","v":""},{"$f":"IF('Generated list'!C7772=\"\",\"\",'Generated list'!C7772)","v":""},{"$f":"IF('Generated list'!D7772=\"\",\"\",'Generated list'!D7772)","v":""}]
[null,{"$f":"IF('Generated list'!B7773=\"\",\"\",'Generated list'!B7773)","v":""},{"$f":"IF('Generated list'!C7773=\"\",\"\",'Generated list'!C7773)","v":""},{"$f":"IF('Generated list'!D7773=\"\",\"\",'Generated list'!D7773)","v":""}]
[null,{"$f":"IF('Generated list'!B7774=\"\",\"\",'Generated list'!B7774)","v":""},{"$f":"IF('Generated list'!C7774=\"\",\"\",'Generated list'!C7774)","v":""},{"$f":"IF('Generated list'!D7774=\"\",\"\",'Generated list'!D7774)","v":""}]
[null,{"$f":"IF('Generated list'!B7775=\"\",\"\",'Generated list'!B7775)","v":""},{"$f":"IF('Generated list'!C7775=\"\",\"\",'Generated list'!C7775)","v":""},{"$f":"IF('Generated list'!D7775=\"\",\"\",'Generated list'!D7775)","v":""}]
[null,{"$f":"IF('Generated list'!B7776=\"\",\"\",'Generated list'!B7776)","v":""},{"$f":"IF('Generated list'!C7776=\"\",\"\",'Generated list'!C7776)","v":""},{"$f":"IF('Generated list'!D7776=\"\",\"\",'Generated list'!D7776)","v":""}]
[null,{"$f":"IF('Generated list'!B7777=\"\",\"\",'Generated list'!B7777)","v":""},{"$f":"IF('Generated list'!C7777=\"\",\"\",'Generated list'!C7777)","v":""},{"$f":"IF('Generated list'!D7777=\"\",\"\",'Generated list'!D7777)","v":""}]
[null,{"$f":"IF('Generated list'!B7778=\"\",\"\",'Generated list'!B7778)","v":""},{"$f":"IF('Generated list'!C7778=\"\",\"\",'Generated list'!C7778)","v":""},{"$f":"IF('Generated list'!D7778=\"\",\"\",'Generated list'!D7778)","v":""}]
[null,{"$f":"IF('Generated list'!B7779=\"\",\"\",'Generated list'!B7779)","v":""},{"$f":"IF('Generated list'!C7779=\"\",\"\",'Generated list'!C7779)","v":""},{"$f":"IF('Generated list'!D7779=\"\",\"\",'Generated list'!D7779)","v":""}]
[null,{"$f":"IF('Generated list'!B7780=\"\",\"\",'Generated list'!B7780)","v":""},{"$f":"IF('Generated list'!C7780=\"\",\"\",'Generated list'!C7780)","v":""},{"$f":"IF('Generated list'!D7780=\"\",\"\",'Generated list'!D7780)","v":""}]
[null,{"$f":"IF('Generated list'!B7781=\"\",\"\",'Generated list'!B7781)","v":""},{"$f":"IF('Generated list'!C7781=\"\",\"\",'Generated list'!C7781)","v":""},{"$f":"IF('Generated list'!D7781=\"\",\"\",'Generated list'!D7781)","v":""}]
[null,{"$f":"IF('Generated list'!B7782=\"\",\"\",'Generated list'!B7782)","v":""},{"$f":"IF('Generated list'!C7782=\"\",\"\",'Generated list'!C7782)","v":""},{"$f":"IF('Generated list'!D7782=\"\",\"\",'Generated list'!D7782)","v":""}]
[null,{"$f":"IF('Generated list'!B7783=\"\",\"\",'Generated list'!B7783)","v":""},{"$f":"IF('Generated list'!C7783=\"\",\"\",'Generated list'!C7783)","v":""},{"$f":"IF('Generated list'!D7783=\"\",\"\",'Generated list'!D7783)","v":""}]
[null,{"$f":"IF('Generated list'!B7784=\"\",\"\",'Generated list'!B7784)","v":""},{"$f":"IF('Generated list'!C7784=\"\",\"\",'Generated list'!C7784)","v":""},{"$f":"IF('Generated list'!D7784=\"\",\"\",'Generated list'!D7784)","v":""}]
[null,{"$f":"IF('Generated list'!B7785=\"\",\"\",'Generated list'!B7785)","v":""},{"$f":"IF('Generated list'!C7785=\"\",\"\",'Generated list'!C7785)","v":""},{"$f":"IF('Generated list'!D7785=\"\",\"\",'Generated list'!D7785)","v":""}]
[null,{"$f":"IF('Generated list'!B7786=\"\",\"\",'Generated list'!B7786)","v":""},{"$f":"IF('Generated list'!C7786=\"\",\"\",'Generated list'!C7786)","v":""},{"$f":"IF('Generated list'!D7786=\"\",\"\",'Generated list'!D7786)","v":""}]
[null,{"$f":"IF('Generated list'!B7787=\"\",\"\",'Generated list'!B7787)","v":""},{"$f":"IF('Generated list'!C7787=\"\",\"\",'Generated list'!C7787)","v":""},{"$f":"IF('Generated list'!D7787=\"\",\"\",'Generated list'!D7787)","v":""}]
[null,{"$f":"IF('Generated list'!B7788=\"\",\"\",'Generated list'!B7788)","v":""},{"$f":"IF('Generated list'!C7788=\"\",\"\",'Generated list'!C7788)","v":""},{"$f":"IF('Generated list'!D7788=\"\",\"\",'Generated list'!D7788)","v":""}]
[null,{"$f":"IF('Generated list'!B7789=\"\",\"\",'Generated list'!B7789)","v":""},{"$f":"IF('Generated list'!C7789=\"\",\"\",'Generated list'!C7789)","v":""},{"$f":"IF('Generated list'!D7789=\"\",\"\",'Generated list'!D7789)","v":""}]
[null,{"$f":"IF('Generated list'!B7790=\"\",\"\",'Generated list'!B7790)","v":""},{"$f":"IF('Generated list'!C7790=\"\",\"\",'Generated list'!C7790)","v":""},{"$f":"IF('Generated list'!D7790=\"\",\"\",'Generated list'!D7790)","v":""}]
[null,{"$f":"IF('Generated list'!B7791=\"\",\"\",'Generated list'!B7791)","v":""},{"$f":"IF('Generated list'!C7791=\"\",\"\",'Generated list'!C7791)","v":""},{"$f":"IF('Generated list'!D7791=\"\",\"\",'Generated list'!D7791)","v":""}]
[null,{"$f":"IF('Generated list'!B7792=\"\",\"\",'Generated list'!B7792)","v":""},{"$f":"IF('Generated list'!C7792=\"\",\"\",'Generated list'!C7792)","v":""},{"$f":"IF('Generated list'!D7792=\"\",\"\",'Generated list'!D7792)","v":""}]
[null,{"$f":"IF('Generated list'!B7793=\"\",\"\",'Generated list'!B7793)","v":""},{"$f":"IF('Generated list'!C7793=\"\",\"\",'Generated list'!C7793)","v":""},{"$f":"IF('Generated list'!D7793=\"\",\"\",'Generated list'!D7793)","v":""}]
[null,{"$f":"IF('Generated list'!B7794=\"\",\"\",'Generated list'!B7794)","v":""},{"$f":"IF('Generated list'!C7794=\"\",\"\",'Generated list'!C7794)","v":""},{"$f":"IF('Generated list'!D7794=\"\",\"\",'Generated list'!D7794)","v":""}]
[null,{"$f":"IF('Generated list'!B7795=\"\",\"\",'Generated list'!B7795)","v":""},{"$f":"IF('Generated list'!C7795=\"\",\"\",'Generated list'!C7795)","v":""},{"$f":"IF('Generated list'!D7795=\"\",\"\",'Generated list'!D7795)","v":""}]
[null,{"$f":"IF('Generated list'!B7796=\"\",\"\",'Generated list'!B7796)","v":""},{"$f":"IF('Generated list'!C7796=\"\",\"\",'Generated list'!C7796)","v":""},{"$f":"IF('Generated list'!D7796=\"\",\"\",'Generated list'!D7796)","v":""}]
[null,{"$f":"IF('Generated list'!B7797=\"\",\"\",'Generated list'!B7797)","v":""},{"$f":"IF('Generated list'!C7797=\"\",\"\",'Generated list'!C7797)","v":""},{"$f":"IF('Generated list'!D7797=\"\",\"\",'Generated list'!D7797)","v":""}]
[null,{"$f":"IF('Generated list'!B7798=\"\",\"\",'Generated list'!B7798)","v":""},{"$f":"IF('Generated list'!C7798=\"\",\"\",'Generated list'!C7798)","v":""},{"$f":"IF('Generated list'!D7798=\"\",\"\",'Generated list'!D7798)","v":""}]
[null,{"$f":"IF('Generated list'!B7799=\"\",\"\",'Generated list'!B7799)","v":""},{"$f":"IF('Generated list'!C7799=\"\",\"\",'Generated list'!C7799)","v":""},{"$f":"IF('Generated list'!D7799=\"\",\"\",'Generated list'!D7799)","v":""}]
[null,{"$f":"IF('Generated list'!B7800=\"\",\"\",'Generated list'!B7800)","v":""},{"$f":"IF('Generated list'!C7800=\"\",\"\",'Generated list'!C7800)","v":""},{"$f":"IF('Generated list'!D7800=\"\",\"\",'Generated list'!D7800)","v":""}]
[null,{"$f":"IF('Generated list'!B7801=\"\",\"\",'Generated list'!B7801)","v":""},{"$f":"IF('Generated list'!C7801=\"\",\"\",'Generated list'!C7801)","v":""},{"$f":"IF('Generated list'!D7801=\"\",\"\",'Generated list'!D7801)","v":""}]
[null,{"$f":"IF('Generated list'!B7802=\"\",\"\",'Generated list'!B7802)","v":""},{"$f":"IF('Generated list'!C7802=\"\",\"\",'Generated list'!C7802)","v":""},{"$f":"IF('Generated list'!D7802=\"\",\"\",'Generated list'!D7802)","v":""}]
[null,{"$f":"IF('Generated list'!B7803=\"\",\"\",'Generated list'!B7803)","v":""},{"$f":"IF('Generated list'!C7803=\"\",\"\",'Generated list'!C7803)","v":""},{"$f":"IF('Generated list'!D7803=\"\",\"\",'Generated list'!D7803)","v":""}]
[null,{"$f":"IF('Generated list'!B7804=\"\",\"\",'Generated list'!B7804)","v":""},{"$f":"IF('Generated list'!C7804=\"\",\"\",'Generated list'!C7804)","v":""},{"$f":"IF('Generated list'!D7804=\"\",\"\",'Generated list'!D7804)","v":""}]
[null,{"$f":"IF('Generated list'!B7805=\"\",\"\",'Generated list'!B7805)","v":""},{"$f":"IF('Generated list'!C7805=\"\",\"\",'Generated list'!C7805)","v":""},{"$f":"IF('Generated list'!D7805=\"\",\"\",'Generated list'!D7805)","v":""}]
[null,{"$f":"IF('Generated list'!B7806=\"\",\"\",'Generated list'!B7806)","v":""},{"$f":"IF('Generated list'!C7806=\"\",\"\",'Generated list'!C7806)","v":""},{"$f":"IF('Generated list'!D7806=\"\",\"\",'Generated list'!D7806)","v":""}]
[null,{"$f":"IF('Generated list'!B7807=\"\",\"\",'Generated list'!B7807)","v":""},{"$f":"IF('Generated list'!C7807=\"\",\"\",'Generated list'!C7807)","v":""},{"$f":"IF('Generated list'!D7807=\"\",\"\",'Generated list'!D7807)","v":""}]
[null,{"$f":"IF('Generated list'!B7808=\"\",\"\",'Generated list'!B7808)","v":""},{"$f":"IF('Generated list'!C7808=\"\",\"\",'Generated list'!C7808)","v":""},{"$f":"IF('Generated list'!D7808=\"\",\"\",'Generated list'!D7808)","v":""}]
[null,{"$f":"IF('Generated list'!B7809=\"\",\"\",'Generated list'!B7809)","v":""},{"$f":"IF('Generated list'!C7809=\"\",\"\",'Generated list'!C7809)","v":""},{"$f":"IF('Generated list'!D7809=\"\",\"\",'Generated list'!D7809)","v":""}]
[null,{"$f":"IF('Generated list'!B7810=\"\",\"\",'Generated list'!B7810)","v":""},{"$f":"IF('Generated list'!C7810=\"\",\"\",'Generated list'!C7810)","v":""},{"$f":"IF('Generated list'!D7810=\"\",\"\",'Generated list'!D7810)","v":""}]
[null,{"$f":"IF('Generated list'!B7811=\"\",\"\",'Generated list'!B7811)","v":""},{"$f":"IF('Generated list'!C7811=\"\",\"\",'Generated list'!C7811)","v":""},{"$f":"IF('Generated list'!D7811=\"\",\"\",'Generated list'!D7811)","v":""}]
[null,{"$f":"IF('Generated list'!B7812=\"\",\"\",'Generated list'!B7812)","v":""},{"$f":"IF('Generated list'!C7812=\"\",\"\",'Generated list'!C7812)","v":""},{"$f":"IF('Generated list'!D7812=\"\",\"\",'Generated list'!D7812)","v":""}]
[null,{"$f":"IF('Generated list'!B7813=\"\",\"\",'Generated list'!B7813)","v":""},{"$f":"IF('Generated list'!C7813=\"\",\"\",'Generated list'!C7813)","v":""},{"$f":"IF('Generated list'!D7813=\"\",\"\",'Generated list'!D7813)","v":""}]
[null,{"$f":"IF('Generated list'!B7814=\"\",\"\",'Generated list'!B7814)","v":""},{"$f":"IF('Generated list'!C7814=\"\",\"\",'Generated list'!C7814)","v":""},{"$f":"IF('Generated list'!D7814=\"\",\"\",'Generated list'!D7814)","v":""}]
[null,{"$f":"IF('Generated list'!B7815=\"\",\"\",'Generated list'!B7815)","v":""},{"$f":"IF('Generated list'!C7815=\"\",\"\",'Generated list'!C7815)","v":""},{"$f":"IF('Generated list'!D7815=\"\",\"\",'Generated list'!D7815)","v":""}]
[null,{"$f":"IF('Generated list'!B7816=\"\",\"\",'Generated list'!B7816)","v":""},{"$f":"IF('Generated list'!C7816=\"\",\"\",'Generated list'!C7816)","v":""},{"$f":"IF('Generated list'!D7816=\"\",\"\",'Generated list'!D7816)","v":""}]
[null,{"$f":"IF('Generated list'!B7817=\"\",\"\",'Generated list'!B7817)","v":""},{"$f":"IF('Generated list'!C7817=\"\",\"\",'Generated list'!C7817)","v":""},{"$f":"IF('Generated list'!D7817=\"\",\"\",'Generated list'!D7817)","v":""}]
[null,{"$f":"IF('Generated list'!B7818=\"\",\"\",'Generated list'!B7818)","v":""},{"$f":"IF('Generated list'!C7818=\"\",\"\",'Generated list'!C7818)","v":""},{"$f":"IF('Generated list'!D7818=\"\",\"\",'Generated list'!D7818)","v":""}]
[null,{"$f":"IF('Generated list'!B7819=\"\",\"\",'Generated list'!B7819)","v":""},{"$f":"IF('Generated list'!C7819=\"\",\"\",'Generated list'!C7819)","v":""},{"$f":"IF('Generated list'!D7819=\"\",\"\",'Generated list'!D7819)","v":""}]
[null,{"$f":"IF('Generated list'!B7820=\"\",\"\",'Generated list'!B7820)","v":""},{"$f":"IF('Generated list'!C7820=\"\",\"\",'Generated list'!C7820)","v":""},{"$f":"IF('Generated list'!D7820=\"\",\"\",'Generated list'!D7820)","v":""}]
[null,{"$f":"IF('Generated list'!B7821=\"\",\"\",'Generated list'!B7821)","v":""},{"$f":"IF('Generated list'!C7821=\"\",\"\",'Generated list'!C7821)","v":""},{"$f":"IF('Generated list'!D7821=\"\",\"\",'Generated list'!D7821)","v":""}]
[null,{"$f":"IF('Generated list'!B7822=\"\",\"\",'Generated list'!B7822)","v":""},{"$f":"IF('Generated list'!C7822=\"\",\"\",'Generated list'!C7822)","v":""},{"$f":"IF('Generated list'!D7822=\"\",\"\",'Generated list'!D7822)","v":""}]
[null,{"$f":"IF('Generated list'!B7823=\"\",\"\",'Generated list'!B7823)","v":""},{"$f":"IF('Generated list'!C7823=\"\",\"\",'Generated list'!C7823)","v":""},{"$f":"IF('Generated list'!D7823=\"\",\"\",'Generated list'!D7823)","v":""}]
[null,{"$f":"IF('Generated list'!B7824=\"\",\"\",'Generated list'!B7824)","v":""},{"$f":"IF('Generated list'!C7824=\"\",\"\",'Generated list'!C7824)","v":""},{"$f":"IF('Generated list'!D7824=\"\",\"\",'Generated list'!D7824)","v":""}]
[null,{"$f":"IF('Generated list'!B7825=\"\",\"\",'Generated list'!B7825)","v":""},{"$f":"IF('Generated list'!C7825=\"\",\"\",'Generated list'!C7825)","v":""},{"$f":"IF('Generated list'!D7825=\"\",\"\",'Generated list'!D7825)","v":""}]
[null,{"$f":"IF('Generated list'!B7826=\"\",\"\",'Generated list'!B7826)","v":""},{"$f":"IF('Generated list'!C7826=\"\",\"\",'Generated list'!C7826)","v":""},{"$f":"IF('Generated list'!D7826=\"\",\"\",'Generated list'!D7826)","v":""}]
[null,{"$f":"IF('Generated list'!B7827=\"\",\"\",'Generated list'!B7827)","v":""},{"$f":"IF('Generated list'!C7827=\"\",\"\",'Generated list'!C7827)","v":""},{"$f":"IF('Generated list'!D7827=\"\",\"\",'Generated list'!D7827)","v":""}]
[null,{"$f":"IF('Generated list'!B7828=\"\",\"\",'Generated list'!B7828)","v":""},{"$f":"IF('Generated list'!C7828=\"\",\"\",'Generated list'!C7828)","v":""},{"$f":"IF('Generated list'!D7828=\"\",\"\",'Generated list'!D7828)","v":""}]
[null,{"$f":"IF('Generated list'!B7829=\"\",\"\",'Generated list'!B7829)","v":""},{"$f":"IF('Generated list'!C7829=\"\",\"\",'Generated list'!C7829)","v":""},{"$f":"IF('Generated list'!D7829=\"\",\"\",'Generated list'!D7829)","v":""}]
[null,{"$f":"IF('Generated list'!B7830=\"\",\"\",'Generated list'!B7830)","v":""},{"$f":"IF('Generated list'!C7830=\"\",\"\",'Generated list'!C7830)","v":""},{"$f":"IF('Generated list'!D7830=\"\",\"\",'Generated list'!D7830)","v":""}]
[null,{"$f":"IF('Generated list'!B7831=\"\",\"\",'Generated list'!B7831)","v":""},{"$f":"IF('Generated list'!C7831=\"\",\"\",'Generated list'!C7831)","v":""},{"$f":"IF('Generated list'!D7831=\"\",\"\",'Generated list'!D7831)","v":""}]
[null,{"$f":"IF('Generated list'!B7832=\"\",\"\",'Generated list'!B7832)","v":""},{"$f":"IF('Generated list'!C7832=\"\",\"\",'Generated list'!C7832)","v":""},{"$f":"IF('Generated list'!D7832=\"\",\"\",'Generated list'!D7832)","v":""}]
[null,{"$f":"IF('Generated list'!B7833=\"\",\"\",'Generated list'!B7833)","v":""},{"$f":"IF('Generated list'!C7833=\"\",\"\",'Generated list'!C7833)","v":""},{"$f":"IF('Generated list'!D7833=\"\",\"\",'Generated list'!D7833)","v":""}]
[null,{"$f":"IF('Generated list'!B7834=\"\",\"\",'Generated list'!B7834)","v":""},{"$f":"IF('Generated list'!C7834=\"\",\"\",'Generated list'!C7834)","v":""},{"$f":"IF('Generated list'!D7834=\"\",\"\",'Generated list'!D7834)","v":""}]
[null,{"$f":"IF('Generated list'!B7835=\"\",\"\",'Generated list'!B7835)","v":""},{"$f":"IF('Generated list'!C7835=\"\",\"\",'Generated list'!C7835)","v":""},{"$f":"IF('Generated list'!D7835=\"\",\"\",'Generated list'!D7835)","v":""}]
[null,{"$f":"IF('Generated list'!B7836=\"\",\"\",'Generated list'!B7836)","v":""},{"$f":"IF('Generated list'!C7836=\"\",\"\",'Generated list'!C7836)","v":""},{"$f":"IF('Generated list'!D7836=\"\",\"\",'Generated list'!D7836)","v":""}]
[null,{"$f":"IF('Generated list'!B7837=\"\",\"\",'Generated list'!B7837)","v":""},{"$f":"IF('Generated list'!C7837=\"\",\"\",'Generated list'!C7837)","v":""},{"$f":"IF('Generated list'!D7837=\"\",\"\",'Generated list'!D7837)","v":""}]
[null,{"$f":"IF('Generated list'!B7838=\"\",\"\",'Generated list'!B7838)","v":""},{"$f":"IF('Generated list'!C7838=\"\",\"\",'Generated list'!C7838)","v":""},{"$f":"IF('Generated list'!D7838=\"\",\"\",'Generated list'!D7838)","v":""}]
[null,{"$f":"IF('Generated list'!B7839=\"\",\"\",'Generated list'!B7839)","v":""},{"$f":"IF('Generated list'!C7839=\"\",\"\",'Generated list'!C7839)","v":""},{"$f":"IF('Generated list'!D7839=\"\",\"\",'Generated list'!D7839)","v":""}]
[null,{"$f":"IF('Generated list'!B7840=\"\",\"\",'Generated list'!B7840)","v":""},{"$f":"IF('Generated list'!C7840=\"\",\"\",'Generated list'!C7840)","v":""},{"$f":"IF('Generated list'!D7840=\"\",\"\",'Generated list'!D7840)","v":""}]
[null,{"$f":"IF('Generated list'!B7841=\"\",\"\",'Generated list'!B7841)","v":""},{"$f":"IF('Generated list'!C7841=\"\",\"\",'Generated list'!C7841)","v":""},{"$f":"IF('Generated list'!D7841=\"\",\"\",'Generated list'!D7841)","v":""}]
[null,{"$f":"IF('Generated list'!B7842=\"\",\"\",'Generated list'!B7842)","v":""},{"$f":"IF('Generated list'!C7842=\"\",\"\",'Generated list'!C7842)","v":""},{"$f":"IF('Generated list'!D7842=\"\",\"\",'Generated list'!D7842)","v":""}]
[null,{"$f":"IF('Generated list'!B7843=\"\",\"\",'Generated list'!B7843)","v":""},{"$f":"IF('Generated list'!C7843=\"\",\"\",'Generated list'!C7843)","v":""},{"$f":"IF('Generated list'!D7843=\"\",\"\",'Generated list'!D7843)","v":""}]
[null,{"$f":"IF('Generated list'!B7844=\"\",\"\",'Generated list'!B7844)","v":""},{"$f":"IF('Generated list'!C7844=\"\",\"\",'Generated list'!C7844)","v":""},{"$f":"IF('Generated list'!D7844=\"\",\"\",'Generated list'!D7844)","v":""}]
[null,{"$f":"IF('Generated list'!B7845=\"\",\"\",'Generated list'!B7845)","v":""},{"$f":"IF('Generated list'!C7845=\"\",\"\",'Generated list'!C7845)","v":""},{"$f":"IF('Generated list'!D7845=\"\",\"\",'Generated list'!D7845)","v":""}]
[null,{"$f":"IF('Generated list'!B7846=\"\",\"\",'Generated list'!B7846)","v":""},{"$f":"IF('Generated list'!C7846=\"\",\"\",'Generated list'!C7846)","v":""},{"$f":"IF('Generated list'!D7846=\"\",\"\",'Generated list'!D7846)","v":""}]
[null,{"$f":"IF('Generated list'!B7847=\"\",\"\",'Generated list'!B7847)","v":""},{"$f":"IF('Generated list'!C7847=\"\",\"\",'Generated list'!C7847)","v":""},{"$f":"IF('Generated list'!D7847=\"\",\"\",'Generated list'!D7847)","v":""}]
[null,{"$f":"IF('Generated list'!B7848=\"\",\"\",'Generated list'!B7848)","v":""},{"$f":"IF('Generated list'!C7848=\"\",\"\",'Generated list'!C7848)","v":""},{"$f":"IF('Generated list'!D7848=\"\",\"\",'Generated list'!D7848)","v":""}]
[null,{"$f":"IF('Generated list'!B7849=\"\",\"\",'Generated list'!B7849)","v":""},{"$f":"IF('Generated list'!C7849=\"\",\"\",'Generated list'!C7849)","v":""},{"$f":"IF('Generated list'!D7849=\"\",\"\",'Generated list'!D7849)","v":""}]
[null,{"$f":"IF('Generated list'!B7850=\"\",\"\",'Generated list'!B7850)","v":""},{"$f":"IF('Generated list'!C7850=\"\",\"\",'Generated list'!C7850)","v":""},{"$f":"IF('Generated list'!D7850=\"\",\"\",'Generated list'!D7850)","v":""}]
[null,{"$f":"IF('Generated list'!B7851=\"\",\"\",'Generated list'!B7851)","v":""},{"$f":"IF('Generated list'!C7851=\"\",\"\",'Generated list'!C7851)","v":""},{"$f":"IF('Generated list'!D7851=\"\",\"\",'Generated list'!D7851)","v":""}]
[null,{"$f":"IF('Generated list'!B7852=\"\",\"\",'Generated list'!B7852)","v":""},{"$f":"IF('Generated list'!C7852=\"\",\"\",'Generated list'!C7852)","v":""},{"$f":"IF('Generated list'!D7852=\"\",\"\",'Generated list'!D7852)","v":""}]
[null,{"$f":"IF('Generated list'!B7853=\"\",\"\",'Generated list'!B7853)","v":""},{"$f":"IF('Generated list'!C7853=\"\",\"\",'Generated list'!C7853)","v":""},{"$f":"IF('Generated list'!D7853=\"\",\"\",'Generated list'!D7853)","v":""}]
[null,{"$f":"IF('Generated list'!B7854=\"\",\"\",'Generated list'!B7854)","v":""},{"$f":"IF('Generated list'!C7854=\"\",\"\",'Generated list'!C7854)","v":""},{"$f":"IF('Generated list'!D7854=\"\",\"\",'Generated list'!D7854)","v":""}]
[null,{"$f":"IF('Generated list'!B7855=\"\",\"\",'Generated list'!B7855)","v":""},{"$f":"IF('Generated list'!C7855=\"\",\"\",'Generated list'!C7855)","v":""},{"$f":"IF('Generated list'!D7855=\"\",\"\",'Generated list'!D7855)","v":""}]
[null,{"$f":"IF('Generated list'!B7856=\"\",\"\",'Generated list'!B7856)","v":""},{"$f":"IF('Generated list'!C7856=\"\",\"\",'Generated list'!C7856)","v":""},{"$f":"IF('Generated list'!D7856=\"\",\"\",'Generated list'!D7856)","v":""}]
[null,{"$f":"IF('Generated list'!B7857=\"\",\"\",'Generated list'!B7857)","v":""},{"$f":"IF('Generated list'!C7857=\"\",\"\",'Generated list'!C7857)","v":""},{"$f":"IF('Generated list'!D7857=\"\",\"\",'Generated list'!D7857)","v":""}]
[null,{"$f":"IF('Generated list'!B7858=\"\",\"\",'Generated list'!B7858)","v":""},{"$f":"IF('Generated list'!C7858=\"\",\"\",'Generated list'!C7858)","v":""},{"$f":"IF('Generated list'!D7858=\"\",\"\",'Generated list'!D7858)","v":""}]
[null,{"$f":"IF('Generated list'!B7859=\"\",\"\",'Generated list'!B7859)","v":""},{"$f":"IF('Generated list'!C7859=\"\",\"\",'Generated list'!C7859)","v":""},{"$f":"IF('Generated list'!D7859=\"\",\"\",'Generated list'!D7859)","v":""}]
[null,{"$f":"IF('Generated list'!B7860=\"\",\"\",'Generated list'!B7860)","v":""},{"$f":"IF('Generated list'!C7860=\"\",\"\",'Generated list'!C7860)","v":""},{"$f":"IF('Generated list'!D7860=\"\",\"\",'Generated list'!D7860)","v":""}]
[null,{"$f":"IF('Generated list'!B7861=\"\",\"\",'Generated list'!B7861)","v":""},{"$f":"IF('Generated list'!C7861=\"\",\"\",'Generated list'!C7861)","v":""},{"$f":"IF('Generated list'!D7861=\"\",\"\",'Generated list'!D7861)","v":""}]
[null,{"$f":"IF('Generated list'!B7862=\"\",\"\",'Generated list'!B7862)","v":""},{"$f":"IF('Generated list'!C7862=\"\",\"\",'Generated list'!C7862)","v":""},{"$f":"IF('Generated list'!D7862=\"\",\"\",'Generated list'!D7862)","v":""}]
[null,{"$f":"IF('Generated list'!B7863=\"\",\"\",'Generated list'!B7863)","v":""},{"$f":"IF('Generated list'!C7863=\"\",\"\",'Generated list'!C7863)","v":""},{"$f":"IF('Generated list'!D7863=\"\",\"\",'Generated list'!D7863)","v":""}]
[null,{"$f":"IF('Generated list'!B7864=\"\",\"\",'Generated list'!B7864)","v":""},{"$f":"IF('Generated list'!C7864=\"\",\"\",'Generated list'!C7864)","v":""},{"$f":"IF('Generated list'!D7864=\"\",\"\",'Generated list'!D7864)","v":""}]
[null,{"$f":"IF('Generated list'!B7865=\"\",\"\",'Generated list'!B7865)","v":""},{"$f":"IF('Generated list'!C7865=\"\",\"\",'Generated list'!C7865)","v":""},{"$f":"IF('Generated list'!D7865=\"\",\"\",'Generated list'!D7865)","v":""}]
[null,{"$f":"IF('Generated list'!B7866=\"\",\"\",'Generated list'!B7866)","v":""},{"$f":"IF('Generated list'!C7866=\"\",\"\",'Generated list'!C7866)","v":""},{"$f":"IF('Generated list'!D7866=\"\",\"\",'Generated list'!D7866)","v":""}]
[null,{"$f":"IF('Generated list'!B7867=\"\",\"\",'Generated list'!B7867)","v":""},{"$f":"IF('Generated list'!C7867=\"\",\"\",'Generated list'!C7867)","v":""},{"$f":"IF('Generated list'!D7867=\"\",\"\",'Generated list'!D7867)","v":""}]
[null,{"$f":"IF('Generated list'!B7868=\"\",\"\",'Generated list'!B7868)","v":""},{"$f":"IF('Generated list'!C7868=\"\",\"\",'Generated list'!C7868)","v":""},{"$f":"IF('Generated list'!D7868=\"\",\"\",'Generated list'!D7868)","v":""}]
[null,{"$f":"IF('Generated list'!B7869=\"\",\"\",'Generated list'!B7869)","v":""},{"$f":"IF('Generated list'!C7869=\"\",\"\",'Generated list'!C7869)","v":""},{"$f":"IF('Generated list'!D7869=\"\",\"\",'Generated list'!D7869)","v":""}]
[null,{"$f":"IF('Generated list'!B7870=\"\",\"\",'Generated list'!B7870)","v":""},{"$f":"IF('Generated list'!C7870=\"\",\"\",'Generated list'!C7870)","v":""},{"$f":"IF('Generated list'!D7870=\"\",\"\",'Generated list'!D7870)","v":""}]
[null,{"$f":"IF('Generated list'!B7871=\"\",\"\",'Generated list'!B7871)","v":""},{"$f":"IF('Generated list'!C7871=\"\",\"\",'Generated list'!C7871)","v":""},{"$f":"IF('Generated list'!D7871=\"\",\"\",'Generated list'!D7871)","v":""}]
[null,{"$f":"IF('Generated list'!B7872=\"\",\"\",'Generated list'!B7872)","v":""},{"$f":"IF('Generated list'!C7872=\"\",\"\",'Generated list'!C7872)","v":""},{"$f":"IF('Generated list'!D7872=\"\",\"\",'Generated list'!D7872)","v":""}]
[null,{"$f":"IF('Generated list'!B7873=\"\",\"\",'Generated list'!B7873)","v":""},{"$f":"IF('Generated list'!C7873=\"\",\"\",'Generated list'!C7873)","v":""},{"$f":"IF('Generated list'!D7873=\"\",\"\",'Generated list'!D7873)","v":""}]
[null,{"$f":"IF('Generated list'!B7874=\"\",\"\",'Generated list'!B7874)","v":""},{"$f":"IF('Generated list'!C7874=\"\",\"\",'Generated list'!C7874)","v":""},{"$f":"IF('Generated list'!D7874=\"\",\"\",'Generated list'!D7874)","v":""}]
[null,{"$f":"IF('Generated list'!B7875=\"\",\"\",'Generated list'!B7875)","v":""},{"$f":"IF('Generated list'!C7875=\"\",\"\",'Generated list'!C7875)","v":""},{"$f":"IF('Generated list'!D7875=\"\",\"\",'Generated list'!D7875)","v":""}]
[null,{"$f":"IF('Generated list'!B7876=\"\",\"\",'Generated list'!B7876)","v":""},{"$f":"IF('Generated list'!C7876=\"\",\"\",'Generated list'!C7876)","v":""},{"$f":"IF('Generated list'!D7876=\"\",\"\",'Generated list'!D7876)","v":""}]
[null,{"$f":"IF('Generated list'!B7877=\"\",\"\",'Generated list'!B7877)","v":""},{"$f":"IF('Generated list'!C7877=\"\",\"\",'Generated list'!C7877)","v":""},{"$f":"IF('Generated list'!D7877=\"\",\"\",'Generated list'!D7877)","v":""}]
[null,{"$f":"IF('Generated list'!B7878=\"\",\"\",'Generated list'!B7878)","v":""},{"$f":"IF('Generated list'!C7878=\"\",\"\",'Generated list'!C7878)","v":""},{"$f":"IF('Generated list'!D7878=\"\",\"\",'Generated list'!D7878)","v":""}]
[null,{"$f":"IF('Generated list'!B7879=\"\",\"\",'Generated list'!B7879)","v":""},{"$f":"IF('Generated list'!C7879=\"\",\"\",'Generated list'!C7879)","v":""},{"$f":"IF('Generated list'!D7879=\"\",\"\",'Generated list'!D7879)","v":""}]
[null,{"$f":"IF('Generated list'!B7880=\"\",\"\",'Generated list'!B7880)","v":""},{"$f":"IF('Generated list'!C7880=\"\",\"\",'Generated list'!C7880)","v":""},{"$f":"IF('Generated list'!D7880=\"\",\"\",'Generated list'!D7880)","v":""}]
[null,{"$f":"IF('Generated list'!B7881=\"\",\"\",'Generated list'!B7881)","v":""},{"$f":"IF('Generated list'!C7881=\"\",\"\",'Generated list'!C7881)","v":""},{"$f":"IF('Generated list'!D7881=\"\",\"\",'Generated list'!D7881)","v":""}]
[null,{"$f":"IF('Generated list'!B7882=\"\",\"\",'Generated list'!B7882)","v":""},{"$f":"IF('Generated list'!C7882=\"\",\"\",'Generated list'!C7882)","v":""},{"$f":"IF('Generated list'!D7882=\"\",\"\",'Generated list'!D7882)","v":""}]
[null,{"$f":"IF('Generated list'!B7883=\"\",\"\",'Generated list'!B7883)","v":""},{"$f":"IF('Generated list'!C7883=\"\",\"\",'Generated list'!C7883)","v":""},{"$f":"IF('Generated list'!D7883=\"\",\"\",'Generated list'!D7883)","v":""}]
[null,{"$f":"IF('Generated list'!B7884=\"\",\"\",'Generated list'!B7884)","v":""},{"$f":"IF('Generated list'!C7884=\"\",\"\",'Generated list'!C7884)","v":""},{"$f":"IF('Generated list'!D7884=\"\",\"\",'Generated list'!D7884)","v":""}]
[null,{"$f":"IF('Generated list'!B7885=\"\",\"\",'Generated list'!B7885)","v":""},{"$f":"IF('Generated list'!C7885=\"\",\"\",'Generated list'!C7885)","v":""},{"$f":"IF('Generated list'!D7885=\"\",\"\",'Generated list'!D7885)","v":""}]
[null,{"$f":"IF('Generated list'!B7886=\"\",\"\",'Generated list'!B7886)","v":""},{"$f":"IF('Generated list'!C7886=\"\",\"\",'Generated list'!C7886)","v":""},{"$f":"IF('Generated list'!D7886=\"\",\"\",'Generated list'!D7886)","v":""}]
[null,{"$f":"IF('Generated list'!B7887=\"\",\"\",'Generated list'!B7887)","v":""},{"$f":"IF('Generated list'!C7887=\"\",\"\",'Generated list'!C7887)","v":""},{"$f":"IF('Generated list'!D7887=\"\",\"\",'Generated list'!D7887)","v":""}]
[null,{"$f":"IF('Generated list'!B7888=\"\",\"\",'Generated list'!B7888)","v":""},{"$f":"IF('Generated list'!C7888=\"\",\"\",'Generated list'!C7888)","v":""},{"$f":"IF('Generated list'!D7888=\"\",\"\",'Generated list'!D7888)","v":""}]
[null,{"$f":"IF('Generated list'!B7889=\"\",\"\",'Generated list'!B7889)","v":""},{"$f":"IF('Generated list'!C7889=\"\",\"\",'Generated list'!C7889)","v":""},{"$f":"IF('Generated list'!D7889=\"\",\"\",'Generated list'!D7889)","v":""}]
[null,{"$f":"IF('Generated list'!B7890=\"\",\"\",'Generated list'!B7890)","v":""},{"$f":"IF('Generated list'!C7890=\"\",\"\",'Generated list'!C7890)","v":""},{"$f":"IF('Generated list'!D7890=\"\",\"\",'Generated list'!D7890)","v":""}]
[null,{"$f":"IF('Generated list'!B7891=\"\",\"\",'Generated list'!B7891)","v":""},{"$f":"IF('Generated list'!C7891=\"\",\"\",'Generated list'!C7891)","v":""},{"$f":"IF('Generated list'!D7891=\"\",\"\",'Generated list'!D7891)","v":""}]
[null,{"$f":"IF('Generated list'!B7892=\"\",\"\",'Generated list'!B7892)","v":""},{"$f":"IF('Generated list'!C7892=\"\",\"\",'Generated list'!C7892)","v":""},{"$f":"IF('Generated list'!D7892=\"\",\"\",'Generated list'!D7892)","v":""}]
[null,{"$f":"IF('Generated list'!B7893=\"\",\"\",'Generated list'!B7893)","v":""},{"$f":"IF('Generated list'!C7893=\"\",\"\",'Generated list'!C7893)","v":""},{"$f":"IF('Generated list'!D7893=\"\",\"\",'Generated list'!D7893)","v":""}]
[null,{"$f":"IF('Generated list'!B7894=\"\",\"\",'Generated list'!B7894)","v":""},{"$f":"IF('Generated list'!C7894=\"\",\"\",'Generated list'!C7894)","v":""},{"$f":"IF('Generated list'!D7894=\"\",\"\",'Generated list'!D7894)","v":""}]
[null,{"$f":"IF('Generated list'!B7895=\"\",\"\",'Generated list'!B7895)","v":""},{"$f":"IF('Generated list'!C7895=\"\",\"\",'Generated list'!C7895)","v":""},{"$f":"IF('Generated list'!D7895=\"\",\"\",'Generated list'!D7895)","v":""}]
[null,{"$f":"IF('Generated list'!B7896=\"\",\"\",'Generated list'!B7896)","v":""},{"$f":"IF('Generated list'!C7896=\"\",\"\",'Generated list'!C7896)","v":""},{"$f":"IF('Generated list'!D7896=\"\",\"\",'Generated list'!D7896)","v":""}]
[null,{"$f":"IF('Generated list'!B7897=\"\",\"\",'Generated list'!B7897)","v":""},{"$f":"IF('Generated list'!C7897=\"\",\"\",'Generated list'!C7897)","v":""},{"$f":"IF('Generated list'!D7897=\"\",\"\",'Generated list'!D7897)","v":""}]
[null,{"$f":"IF('Generated list'!B7898=\"\",\"\",'Generated list'!B7898)","v":""},{"$f":"IF('Generated list'!C7898=\"\",\"\",'Generated list'!C7898)","v":""},{"$f":"IF('Generated list'!D7898=\"\",\"\",'Generated list'!D7898)","v":""}]
[null,{"$f":"IF('Generated list'!B7899=\"\",\"\",'Generated list'!B7899)","v":""},{"$f":"IF('Generated list'!C7899=\"\",\"\",'Generated list'!C7899)","v":""},{"$f":"IF('Generated list'!D7899=\"\",\"\",'Generated list'!D7899)","v":""}]
[null,{"$f":"IF('Generated list'!B7900=\"\",\"\",'Generated list'!B7900)","v":""},{"$f":"IF('Generated list'!C7900=\"\",\"\",'Generated list'!C7900)","v":""},{"$f":"IF('Generated list'!D7900=\"\",\"\",'Generated list'!D7900)","v":""}]
[null,{"$f":"IF('Generated list'!B7901=\"\",\"\",'Generated list'!B7901)","v":""},{"$f":"IF('Generated list'!C7901=\"\",\"\",'Generated list'!C7901)","v":""},{"$f":"IF('Generated list'!D7901=\"\",\"\",'Generated list'!D7901)","v":""}]
[null,{"$f":"IF('Generated list'!B7902=\"\",\"\",'Generated list'!B7902)","v":""},{"$f":"IF('Generated list'!C7902=\"\",\"\",'Generated list'!C7902)","v":""},{"$f":"IF('Generated list'!D7902=\"\",\"\",'Generated list'!D7902)","v":""}]
[null,{"$f":"IF('Generated list'!B7903=\"\",\"\",'Generated list'!B7903)","v":""},{"$f":"IF('Generated list'!C7903=\"\",\"\",'Generated list'!C7903)","v":""},{"$f":"IF('Generated list'!D7903=\"\",\"\",'Generated list'!D7903)","v":""}]
[null,{"$f":"IF('Generated list'!B7904=\"\",\"\",'Generated list'!B7904)","v":""},{"$f":"IF('Generated list'!C7904=\"\",\"\",'Generated list'!C7904)","v":""},{"$f":"IF('Generated list'!D7904=\"\",\"\",'Generated list'!D7904)","v":""}]
[null,{"$f":"IF('Generated list'!B7905=\"\",\"\",'Generated list'!B7905)","v":""},{"$f":"IF('Generated list'!C7905=\"\",\"\",'Generated list'!C7905)","v":""},{"$f":"IF('Generated list'!D7905=\"\",\"\",'Generated list'!D7905)","v":""}]
[null,{"$f":"IF('Generated list'!B7906=\"\",\"\",'Generated list'!B7906)","v":""},{"$f":"IF('Generated list'!C7906=\"\",\"\",'Generated list'!C7906)","v":""},{"$f":"IF('Generated list'!D7906=\"\",\"\",'Generated list'!D7906)","v":""}]
[null,{"$f":"IF('Generated list'!B7907=\"\",\"\",'Generated list'!B7907)","v":""},{"$f":"IF('Generated list'!C7907=\"\",\"\",'Generated list'!C7907)","v":""},{"$f":"IF('Generated list'!D7907=\"\",\"\",'Generated list'!D7907)","v":""}]
[null,{"$f":"IF('Generated list'!B7908=\"\",\"\",'Generated list'!B7908)","v":""},{"$f":"IF('Generated list'!C7908=\"\",\"\",'Generated list'!C7908)","v":""},{"$f":"IF('Generated list'!D7908=\"\",\"\",'Generated list'!D7908)","v":""}]
[null,{"$f":"IF('Generated list'!B7909=\"\",\"\",'Generated list'!B7909)","v":""},{"$f":"IF('Generated list'!C7909=\"\",\"\",'Generated list'!C7909)","v":""},{"$f":"IF('Generated list'!D7909=\"\",\"\",'Generated list'!D7909)","v":""}]
[null,{"$f":"IF('Generated list'!B7910=\"\",\"\",'Generated list'!B7910)","v":""},{"$f":"IF('Generated list'!C7910=\"\",\"\",'Generated list'!C7910)","v":""},{"$f":"IF('Generated list'!D7910=\"\",\"\",'Generated list'!D7910)","v":""}]
[null,{"$f":"IF('Generated list'!B7911=\"\",\"\",'Generated list'!B7911)","v":""},{"$f":"IF('Generated list'!C7911=\"\",\"\",'Generated list'!C7911)","v":""},{"$f":"IF('Generated list'!D7911=\"\",\"\",'Generated list'!D7911)","v":""}]
[null,{"$f":"IF('Generated list'!B7912=\"\",\"\",'Generated list'!B7912)","v":""},{"$f":"IF('Generated list'!C7912=\"\",\"\",'Generated list'!C7912)","v":""},{"$f":"IF('Generated list'!D7912=\"\",\"\",'Generated list'!D7912)","v":""}]
[null,{"$f":"IF('Generated list'!B7913=\"\",\"\",'Generated list'!B7913)","v":""},{"$f":"IF('Generated list'!C7913=\"\",\"\",'Generated list'!C7913)","v":""},{"$f":"IF('Generated list'!D7913=\"\",\"\",'Generated list'!D7913)","v":""}]
[null,{"$f":"IF('Generated list'!B7914=\"\",\"\",'Generated list'!B7914)","v":""},{"$f":"IF('Generated list'!C7914=\"\",\"\",'Generated list'!C7914)","v":""},{"$f":"IF('Generated list'!D7914=\"\",\"\",'Generated list'!D7914)","v":""}]
[null,{"$f":"IF('Generated list'!B7915=\"\",\"\",'Generated list'!B7915)","v":""},{"$f":"IF('Generated list'!C7915=\"\",\"\",'Generated list'!C7915)","v":""},{"$f":"IF('Generated list'!D7915=\"\",\"\",'Generated list'!D7915)","v":""}]
[null,{"$f":"IF('Generated list'!B7916=\"\",\"\",'Generated list'!B7916)","v":""},{"$f":"IF('Generated list'!C7916=\"\",\"\",'Generated list'!C7916)","v":""},{"$f":"IF('Generated list'!D7916=\"\",\"\",'Generated list'!D7916)","v":""}]
[null,{"$f":"IF('Generated list'!B7917=\"\",\"\",'Generated list'!B7917)","v":""},{"$f":"IF('Generated list'!C7917=\"\",\"\",'Generated list'!C7917)","v":""},{"$f":"IF('Generated list'!D7917=\"\",\"\",'Generated list'!D7917)","v":""}]
[null,{"$f":"IF('Generated list'!B7918=\"\",\"\",'Generated list'!B7918)","v":""},{"$f":"IF('Generated list'!C7918=\"\",\"\",'Generated list'!C7918)","v":""},{"$f":"IF('Generated list'!D7918=\"\",\"\",'Generated list'!D7918)","v":""}]
[null,{"$f":"IF('Generated list'!B7919=\"\",\"\",'Generated list'!B7919)","v":""},{"$f":"IF('Generated list'!C7919=\"\",\"\",'Generated list'!C7919)","v":""},{"$f":"IF('Generated list'!D7919=\"\",\"\",'Generated list'!D7919)","v":""}]
[null,{"$f":"IF('Generated list'!B7920=\"\",\"\",'Generated list'!B7920)","v":""},{"$f":"IF('Generated list'!C7920=\"\",\"\",'Generated list'!C7920)","v":""},{"$f":"IF('Generated list'!D7920=\"\",\"\",'Generated list'!D7920)","v":""}]
[null,{"$f":"IF('Generated list'!B7921=\"\",\"\",'Generated list'!B7921)","v":""},{"$f":"IF('Generated list'!C7921=\"\",\"\",'Generated list'!C7921)","v":""},{"$f":"IF('Generated list'!D7921=\"\",\"\",'Generated list'!D7921)","v":""}]
[null,{"$f":"IF('Generated list'!B7922=\"\",\"\",'Generated list'!B7922)","v":""},{"$f":"IF('Generated list'!C7922=\"\",\"\",'Generated list'!C7922)","v":""},{"$f":"IF('Generated list'!D7922=\"\",\"\",'Generated list'!D7922)","v":""}]
[null,{"$f":"IF('Generated list'!B7923=\"\",\"\",'Generated list'!B7923)","v":""},{"$f":"IF('Generated list'!C7923=\"\",\"\",'Generated list'!C7923)","v":""},{"$f":"IF('Generated list'!D7923=\"\",\"\",'Generated list'!D7923)","v":""}]
[null,{"$f":"IF('Generated list'!B7924=\"\",\"\",'Generated list'!B7924)","v":""},{"$f":"IF('Generated list'!C7924=\"\",\"\",'Generated list'!C7924)","v":""},{"$f":"IF('Generated list'!D7924=\"\",\"\",'Generated list'!D7924)","v":""}]
[null,{"$f":"IF('Generated list'!B7925=\"\",\"\",'Generated list'!B7925)","v":""},{"$f":"IF('Generated list'!C7925=\"\",\"\",'Generated list'!C7925)","v":""},{"$f":"IF('Generated list'!D7925=\"\",\"\",'Generated list'!D7925)","v":""}]
[null,{"$f":"IF('Generated list'!B7926=\"\",\"\",'Generated list'!B7926)","v":""},{"$f":"IF('Generated list'!C7926=\"\",\"\",'Generated list'!C7926)","v":""},{"$f":"IF('Generated list'!D7926=\"\",\"\",'Generated list'!D7926)","v":""}]
[null,{"$f":"IF('Generated list'!B7927=\"\",\"\",'Generated list'!B7927)","v":""},{"$f":"IF('Generated list'!C7927=\"\",\"\",'Generated list'!C7927)","v":""},{"$f":"IF('Generated list'!D7927=\"\",\"\",'Generated list'!D7927)","v":""}]
[null,{"$f":"IF('Generated list'!B7928=\"\",\"\",'Generated list'!B7928)","v":""},{"$f":"IF('Generated list'!C7928=\"\",\"\",'Generated list'!C7928)","v":""},{"$f":"IF('Generated list'!D7928=\"\",\"\",'Generated list'!D7928)","v":""}]
[null,{"$f":"IF('Generated list'!B7929=\"\",\"\",'Generated list'!B7929)","v":""},{"$f":"IF('Generated list'!C7929=\"\",\"\",'Generated list'!C7929)","v":""},{"$f":"IF('Generated list'!D7929=\"\",\"\",'Generated list'!D7929)","v":""}]
[null,{"$f":"IF('Generated list'!B7930=\"\",\"\",'Generated list'!B7930)","v":""},{"$f":"IF('Generated list'!C7930=\"\",\"\",'Generated list'!C7930)","v":""},{"$f":"IF('Generated list'!D7930=\"\",\"\",'Generated list'!D7930)","v":""}]
[null,{"$f":"IF('Generated list'!B7931=\"\",\"\",'Generated list'!B7931)","v":""},{"$f":"IF('Generated list'!C7931=\"\",\"\",'Generated list'!C7931)","v":""},{"$f":"IF('Generated list'!D7931=\"\",\"\",'Generated list'!D7931)","v":""}]
[null,{"$f":"IF('Generated list'!B7932=\"\",\"\",'Generated list'!B7932)","v":""},{"$f":"IF('Generated list'!C7932=\"\",\"\",'Generated list'!C7932)","v":""},{"$f":"IF('Generated list'!D7932=\"\",\"\",'Generated list'!D7932)","v":""}]
[null,{"$f":"IF('Generated list'!B7933=\"\",\"\",'Generated list'!B7933)","v":""},{"$f":"IF('Generated list'!C7933=\"\",\"\",'Generated list'!C7933)","v":""},{"$f":"IF('Generated list'!D7933=\"\",\"\",'Generated list'!D7933)","v":""}]
[null,{"$f":"IF('Generated list'!B7934=\"\",\"\",'Generated list'!B7934)","v":""},{"$f":"IF('Generated list'!C7934=\"\",\"\",'Generated list'!C7934)","v":""},{"$f":"IF('Generated list'!D7934=\"\",\"\",'Generated list'!D7934)","v":""}]
[null,{"$f":"IF('Generated list'!B7935=\"\",\"\",'Generated list'!B7935)","v":""},{"$f":"IF('Generated list'!C7935=\"\",\"\",'Generated list'!C7935)","v":""},{"$f":"IF('Generated list'!D7935=\"\",\"\",'Generated list'!D7935)","v":""}]
[null,{"$f":"IF('Generated list'!B7936=\"\",\"\",'Generated list'!B7936)","v":""},{"$f":"IF('Generated list'!C7936=\"\",\"\",'Generated list'!C7936)","v":""},{"$f":"IF('Generated list'!D7936=\"\",\"\",'Generated list'!D7936)","v":""}]
[null,{"$f":"IF('Generated list'!B7937=\"\",\"\",'Generated list'!B7937)","v":""},{"$f":"IF('Generated list'!C7937=\"\",\"\",'Generated list'!C7937)","v":""},{"$f":"IF('Generated list'!D7937=\"\",\"\",'Generated list'!D7937)","v":""}]
[null,{"$f":"IF('Generated list'!B7938=\"\",\"\",'Generated list'!B7938)","v":""},{"$f":"IF('Generated list'!C7938=\"\",\"\",'Generated list'!C7938)","v":""},{"$f":"IF('Generated list'!D7938=\"\",\"\",'Generated list'!D7938)","v":""}]
[null,{"$f":"IF('Generated list'!B7939=\"\",\"\",'Generated list'!B7939)","v":""},{"$f":"IF('Generated list'!C7939=\"\",\"\",'Generated list'!C7939)","v":""},{"$f":"IF('Generated list'!D7939=\"\",\"\",'Generated list'!D7939)","v":""}]
[null,{"$f":"IF('Generated list'!B7940=\"\",\"\",'Generated list'!B7940)","v":""},{"$f":"IF('Generated list'!C7940=\"\",\"\",'Generated list'!C7940)","v":""},{"$f":"IF('Generated list'!D7940=\"\",\"\",'Generated list'!D7940)","v":""}]
[null,{"$f":"IF('Generated list'!B7941=\"\",\"\",'Generated list'!B7941)","v":""},{"$f":"IF('Generated list'!C7941=\"\",\"\",'Generated list'!C7941)","v":""},{"$f":"IF('Generated list'!D7941=\"\",\"\",'Generated list'!D7941)","v":""}]
[null,{"$f":"IF('Generated list'!B7942=\"\",\"\",'Generated list'!B7942)","v":""},{"$f":"IF('Generated list'!C7942=\"\",\"\",'Generated list'!C7942)","v":""},{"$f":"IF('Generated list'!D7942=\"\",\"\",'Generated list'!D7942)","v":""}]
[null,{"$f":"IF('Generated list'!B7943=\"\",\"\",'Generated list'!B7943)","v":""},{"$f":"IF('Generated list'!C7943=\"\",\"\",'Generated list'!C7943)","v":""},{"$f":"IF('Generated list'!D7943=\"\",\"\",'Generated list'!D7943)","v":""}]
[null,{"$f":"IF('Generated list'!B7944=\"\",\"\",'Generated list'!B7944)","v":""},{"$f":"IF('Generated list'!C7944=\"\",\"\",'Generated list'!C7944)","v":""},{"$f":"IF('Generated list'!D7944=\"\",\"\",'Generated list'!D7944)","v":""}]
[null,{"$f":"IF('Generated list'!B7945=\"\",\"\",'Generated list'!B7945)","v":""},{"$f":"IF('Generated list'!C7945=\"\",\"\",'Generated list'!C7945)","v":""},{"$f":"IF('Generated list'!D7945=\"\",\"\",'Generated list'!D7945)","v":""}]
[null,{"$f":"IF('Generated list'!B7946=\"\",\"\",'Generated list'!B7946)","v":""},{"$f":"IF('Generated list'!C7946=\"\",\"\",'Generated list'!C7946)","v":""},{"$f":"IF('Generated list'!D7946=\"\",\"\",'Generated list'!D7946)","v":""}]
[null,{"$f":"IF('Generated list'!B7947=\"\",\"\",'Generated list'!B7947)","v":""},{"$f":"IF('Generated list'!C7947=\"\",\"\",'Generated list'!C7947)","v":""},{"$f":"IF('Generated list'!D7947=\"\",\"\",'Generated list'!D7947)","v":""}]
[null,{"$f":"IF('Generated list'!B7948=\"\",\"\",'Generated list'!B7948)","v":""},{"$f":"IF('Generated list'!C7948=\"\",\"\",'Generated list'!C7948)","v":""},{"$f":"IF('Generated list'!D7948=\"\",\"\",'Generated list'!D7948)","v":""}]
[null,{"$f":"IF('Generated list'!B7949=\"\",\"\",'Generated list'!B7949)","v":""},{"$f":"IF('Generated list'!C7949=\"\",\"\",'Generated list'!C7949)","v":""},{"$f":"IF('Generated list'!D7949=\"\",\"\",'Generated list'!D7949)","v":""}]
[null,{"$f":"IF('Generated list'!B7950=\"\",\"\",'Generated list'!B7950)","v":""},{"$f":"IF('Generated list'!C7950=\"\",\"\",'Generated list'!C7950)","v":""},{"$f":"IF('Generated list'!D7950=\"\",\"\",'Generated list'!D7950)","v":""}]
[null,{"$f":"IF('Generated list'!B7951=\"\",\"\",'Generated list'!B7951)","v":""},{"$f":"IF('Generated list'!C7951=\"\",\"\",'Generated list'!C7951)","v":""},{"$f":"IF('Generated list'!D7951=\"\",\"\",'Generated list'!D7951)","v":""}]
[null,{"$f":"IF('Generated list'!B7952=\"\",\"\",'Generated list'!B7952)","v":""},{"$f":"IF('Generated list'!C7952=\"\",\"\",'Generated list'!C7952)","v":""},{"$f":"IF('Generated list'!D7952=\"\",\"\",'Generated list'!D7952)","v":""}]
[null,{"$f":"IF('Generated list'!B7953=\"\",\"\",'Generated list'!B7953)","v":""},{"$f":"IF('Generated list'!C7953=\"\",\"\",'Generated list'!C7953)","v":""},{"$f":"IF('Generated list'!D7953=\"\",\"\",'Generated list'!D7953)","v":""}]
[null,{"$f":"IF('Generated list'!B7954=\"\",\"\",'Generated list'!B7954)","v":""},{"$f":"IF('Generated list'!C7954=\"\",\"\",'Generated list'!C7954)","v":""},{"$f":"IF('Generated list'!D7954=\"\",\"\",'Generated list'!D7954)","v":""}]
[null,{"$f":"IF('Generated list'!B7955=\"\",\"\",'Generated list'!B7955)","v":""},{"$f":"IF('Generated list'!C7955=\"\",\"\",'Generated list'!C7955)","v":""},{"$f":"IF('Generated list'!D7955=\"\",\"\",'Generated list'!D7955)","v":""}]
[null,{"$f":"IF('Generated list'!B7956=\"\",\"\",'Generated list'!B7956)","v":""},{"$f":"IF('Generated list'!C7956=\"\",\"\",'Generated list'!C7956)","v":""},{"$f":"IF('Generated list'!D7956=\"\",\"\",'Generated list'!D7956)","v":""}]
[null,{"$f":"IF('Generated list'!B7957=\"\",\"\",'Generated list'!B7957)","v":""},{"$f":"IF('Generated list'!C7957=\"\",\"\",'Generated list'!C7957)","v":""},{"$f":"IF('Generated list'!D7957=\"\",\"\",'Generated list'!D7957)","v":""}]
[null,{"$f":"IF('Generated list'!B7958=\"\",\"\",'Generated list'!B7958)","v":""},{"$f":"IF('Generated list'!C7958=\"\",\"\",'Generated list'!C7958)","v":""},{"$f":"IF('Generated list'!D7958=\"\",\"\",'Generated list'!D7958)","v":""}]
[null,{"$f":"IF('Generated list'!B7959=\"\",\"\",'Generated list'!B7959)","v":""},{"$f":"IF('Generated list'!C7959=\"\",\"\",'Generated list'!C7959)","v":""},{"$f":"IF('Generated list'!D7959=\"\",\"\",'Generated list'!D7959)","v":""}]
[null,{"$f":"IF('Generated list'!B7960=\"\",\"\",'Generated list'!B7960)","v":""},{"$f":"IF('Generated list'!C7960=\"\",\"\",'Generated list'!C7960)","v":""},{"$f":"IF('Generated list'!D7960=\"\",\"\",'Generated list'!D7960)","v":""}]
[null,{"$f":"IF('Generated list'!B7961=\"\",\"\",'Generated list'!B7961)","v":""},{"$f":"IF('Generated list'!C7961=\"\",\"\",'Generated list'!C7961)","v":""},{"$f":"IF('Generated list'!D7961=\"\",\"\",'Generated list'!D7961)","v":""}]
[null,{"$f":"IF('Generated list'!B7962=\"\",\"\",'Generated list'!B7962)","v":""},{"$f":"IF('Generated list'!C7962=\"\",\"\",'Generated list'!C7962)","v":""},{"$f":"IF('Generated list'!D7962=\"\",\"\",'Generated list'!D7962)","v":""}]
[null,{"$f":"IF('Generated list'!B7963=\"\",\"\",'Generated list'!B7963)","v":""},{"$f":"IF('Generated list'!C7963=\"\",\"\",'Generated list'!C7963)","v":""},{"$f":"IF('Generated list'!D7963=\"\",\"\",'Generated list'!D7963)","v":""}]
[null,{"$f":"IF('Generated list'!B7964=\"\",\"\",'Generated list'!B7964)","v":""},{"$f":"IF('Generated list'!C7964=\"\",\"\",'Generated list'!C7964)","v":""},{"$f":"IF('Generated list'!D7964=\"\",\"\",'Generated list'!D7964)","v":""}]
[null,{"$f":"IF('Generated list'!B7965=\"\",\"\",'Generated list'!B7965)","v":""},{"$f":"IF('Generated list'!C7965=\"\",\"\",'Generated list'!C7965)","v":""},{"$f":"IF('Generated list'!D7965=\"\",\"\",'Generated list'!D7965)","v":""}]
[null,{"$f":"IF('Generated list'!B7966=\"\",\"\",'Generated list'!B7966)","v":""},{"$f":"IF('Generated list'!C7966=\"\",\"\",'Generated list'!C7966)","v":""},{"$f":"IF('Generated list'!D7966=\"\",\"\",'Generated list'!D7966)","v":""}]
[null,{"$f":"IF('Generated list'!B7967=\"\",\"\",'Generated list'!B7967)","v":""},{"$f":"IF('Generated list'!C7967=\"\",\"\",'Generated list'!C7967)","v":""},{"$f":"IF('Generated list'!D7967=\"\",\"\",'Generated list'!D7967)","v":""}]
[null,{"$f":"IF('Generated list'!B7968=\"\",\"\",'Generated list'!B7968)","v":""},{"$f":"IF('Generated list'!C7968=\"\",\"\",'Generated list'!C7968)","v":""},{"$f":"IF('Generated list'!D7968=\"\",\"\",'Generated list'!D7968)","v":""}]
[null,{"$f":"IF('Generated list'!B7969=\"\",\"\",'Generated list'!B7969)","v":""},{"$f":"IF('Generated list'!C7969=\"\",\"\",'Generated list'!C7969)","v":""},{"$f":"IF('Generated list'!D7969=\"\",\"\",'Generated list'!D7969)","v":""}]
[null,{"$f":"IF('Generated list'!B7970=\"\",\"\",'Generated list'!B7970)","v":""},{"$f":"IF('Generated list'!C7970=\"\",\"\",'Generated list'!C7970)","v":""},{"$f":"IF('Generated list'!D7970=\"\",\"\",'Generated list'!D7970)","v":""}]
[null,{"$f":"IF('Generated list'!B7971=\"\",\"\",'Generated list'!B7971)","v":""},{"$f":"IF('Generated list'!C7971=\"\",\"\",'Generated list'!C7971)","v":""},{"$f":"IF('Generated list'!D7971=\"\",\"\",'Generated list'!D7971)","v":""}]
[null,{"$f":"IF('Generated list'!B7972=\"\",\"\",'Generated list'!B7972)","v":""},{"$f":"IF('Generated list'!C7972=\"\",\"\",'Generated list'!C7972)","v":""},{"$f":"IF('Generated list'!D7972=\"\",\"\",'Generated list'!D7972)","v":""}]
[null,{"$f":"IF('Generated list'!B7973=\"\",\"\",'Generated list'!B7973)","v":""},{"$f":"IF('Generated list'!C7973=\"\",\"\",'Generated list'!C7973)","v":""},{"$f":"IF('Generated list'!D7973=\"\",\"\",'Generated list'!D7973)","v":""}]
[null,{"$f":"IF('Generated list'!B7974=\"\",\"\",'Generated list'!B7974)","v":""},{"$f":"IF('Generated list'!C7974=\"\",\"\",'Generated list'!C7974)","v":""},{"$f":"IF('Generated list'!D7974=\"\",\"\",'Generated list'!D7974)","v":""}]
[null,{"$f":"IF('Generated list'!B7975=\"\",\"\",'Generated list'!B7975)","v":""},{"$f":"IF('Generated list'!C7975=\"\",\"\",'Generated list'!C7975)","v":""},{"$f":"IF('Generated list'!D7975=\"\",\"\",'Generated list'!D7975)","v":""}]
[null,{"$f":"IF('Generated list'!B7976=\"\",\"\",'Generated list'!B7976)","v":""},{"$f":"IF('Generated list'!C7976=\"\",\"\",'Generated list'!C7976)","v":""},{"$f":"IF('Generated list'!D7976=\"\",\"\",'Generated list'!D7976)","v":""}]
[null,{"$f":"IF('Generated list'!B7977=\"\",\"\",'Generated list'!B7977)","v":""},{"$f":"IF('Generated list'!C7977=\"\",\"\",'Generated list'!C7977)","v":""},{"$f":"IF('Generated list'!D7977=\"\",\"\",'Generated list'!D7977)","v":""}]
[null,{"$f":"IF('Generated list'!B7978=\"\",\"\",'Generated list'!B7978)","v":""},{"$f":"IF('Generated list'!C7978=\"\",\"\",'Generated list'!C7978)","v":""},{"$f":"IF('Generated list'!D7978=\"\",\"\",'Generated list'!D7978)","v":""}]
[null,{"$f":"IF('Generated list'!B7979=\"\",\"\",'Generated list'!B7979)","v":""},{"$f":"IF('Generated list'!C7979=\"\",\"\",'Generated list'!C7979)","v":""},{"$f":"IF('Generated list'!D7979=\"\",\"\",'Generated list'!D7979)","v":""}]
[null,{"$f":"IF('Generated list'!B7980=\"\",\"\",'Generated list'!B7980)","v":""},{"$f":"IF('Generated list'!C7980=\"\",\"\",'Generated list'!C7980)","v":""},{"$f":"IF('Generated list'!D7980=\"\",\"\",'Generated list'!D7980)","v":""}]
[null,{"$f":"IF('Generated list'!B7981=\"\",\"\",'Generated list'!B7981)","v":""},{"$f":"IF('Generated list'!C7981=\"\",\"\",'Generated list'!C7981)","v":""},{"$f":"IF('Generated list'!D7981=\"\",\"\",'Generated list'!D7981)","v":""}]
[null,{"$f":"IF('Generated list'!B7982=\"\",\"\",'Generated list'!B7982)","v":""},{"$f":"IF('Generated list'!C7982=\"\",\"\",'Generated list'!C7982)","v":""},{"$f":"IF('Generated list'!D7982=\"\",\"\",'Generated list'!D7982)","v":""}]
[null,{"$f":"IF('Generated list'!B7983=\"\",\"\",'Generated list'!B7983)","v":""},{"$f":"IF('Generated list'!C7983=\"\",\"\",'Generated list'!C7983)","v":""},{"$f":"IF('Generated list'!D7983=\"\",\"\",'Generated list'!D7983)","v":""}]
[null,{"$f":"IF('Generated list'!B7984=\"\",\"\",'Generated list'!B7984)","v":""},{"$f":"IF('Generated list'!C7984=\"\",\"\",'Generated list'!C7984)","v":""},{"$f":"IF('Generated list'!D7984=\"\",\"\",'Generated list'!D7984)","v":""}]
[null,{"$f":"IF('Generated list'!B7985=\"\",\"\",'Generated list'!B7985)","v":""},{"$f":"IF('Generated list'!C7985=\"\",\"\",'Generated list'!C7985)","v":""},{"$f":"IF('Generated list'!D7985=\"\",\"\",'Generated list'!D7985)","v":""}]
[null,{"$f":"IF('Generated list'!B7986=\"\",\"\",'Generated list'!B7986)","v":""},{"$f":"IF('Generated list'!C7986=\"\",\"\",'Generated list'!C7986)","v":""},{"$f":"IF('Generated list'!D7986=\"\",\"\",'Generated list'!D7986)","v":""}]
[null,{"$f":"IF('Generated list'!B7987=\"\",\"\",'Generated list'!B7987)","v":""},{"$f":"IF('Generated list'!C7987=\"\",\"\",'Generated list'!C7987)","v":""},{"$f":"IF('Generated list'!D7987=\"\",\"\",'Generated list'!D7987)","v":""}]
[null,{"$f":"IF('Generated list'!B7988=\"\",\"\",'Generated list'!B7988)","v":""},{"$f":"IF('Generated list'!C7988=\"\",\"\",'Generated list'!C7988)","v":""},{"$f":"IF('Generated list'!D7988=\"\",\"\",'Generated list'!D7988)","v":""}]
[null,{"$f":"IF('Generated list'!B7989=\"\",\"\",'Generated list'!B7989)","v":""},{"$f":"IF('Generated list'!C7989=\"\",\"\",'Generated list'!C7989)","v":""},{"$f":"IF('Generated list'!D7989=\"\",\"\",'Generated list'!D7989)","v":""}]
[null,{"$f":"IF('Generated list'!B7990=\"\",\"\",'Generated list'!B7990)","v":""},{"$f":"IF('Generated list'!C7990=\"\",\"\",'Generated list'!C7990)","v":""},{"$f":"IF('Generated list'!D7990=\"\",\"\",'Generated list'!D7990)","v":""}]
[null,{"$f":"IF('Generated list'!B7991=\"\",\"\",'Generated list'!B7991)","v":""},{"$f":"IF('Generated list'!C7991=\"\",\"\",'Generated list'!C7991)","v":""},{"$f":"IF('Generated list'!D7991=\"\",\"\",'Generated list'!D7991)","v":""}]
[null,{"$f":"IF('Generated list'!B7992=\"\",\"\",'Generated list'!B7992)","v":""},{"$f":"IF('Generated list'!C7992=\"\",\"\",'Generated list'!C7992)","v":""},{"$f":"IF('Generated list'!D7992=\"\",\"\",'Generated list'!D7992)","v":""}]
[null,{"$f":"IF('Generated list'!B7993=\"\",\"\",'Generated list'!B7993)","v":""},{"$f":"IF('Generated list'!C7993=\"\",\"\",'Generated list'!C7993)","v":""},{"$f":"IF('Generated list'!D7993=\"\",\"\",'Generated list'!D7993)","v":""}]
[null,{"$f":"IF('Generated list'!B7994=\"\",\"\",'Generated list'!B7994)","v":""},{"$f":"IF('Generated list'!C7994=\"\",\"\",'Generated list'!C7994)","v":""},{"$f":"IF('Generated list'!D7994=\"\",\"\",'Generated list'!D7994)","v":""}]
[null,{"$f":"IF('Generated list'!B7995=\"\",\"\",'Generated list'!B7995)","v":""},{"$f":"IF('Generated list'!C7995=\"\",\"\",'Generated list'!C7995)","v":""},{"$f":"IF('Generated list'!D7995=\"\",\"\",'Generated list'!D7995)","v":""}]
[null,{"$f":"IF('Generated list'!B7996=\"\",\"\",'Generated list'!B7996)","v":""},{"$f":"IF('Generated list'!C7996=\"\",\"\",'Generated list'!C7996)","v":""},{"$f":"IF('Generated list'!D7996=\"\",\"\",'Generated list'!D7996)","v":""}]
[null,{"$f":"IF('Generated list'!B7997=\"\",\"\",'Generated list'!B7997)","v":""},{"$f":"IF('Generated list'!C7997=\"\",\"\",'Generated list'!C7997)","v":""},{"$f":"IF('Generated list'!D7997=\"\",\"\",'Generated list'!D7997)","v":""}]
[null,{"$f":"IF('Generated list'!B7998=\"\",\"\",'Generated list'!B7998)","v":""},{"$f":"IF('Generated list'!C7998=\"\",\"\",'Generated list'!C7998)","v":""},{"$f":"IF('Generated list'!D7998=\"\",\"\",'Generated list'!D7998)","v":""}]
[null,{"$f":"IF('Generated list'!B7999=\"\",\"\",'Generated list'!B7999)","v":""},{"$f":"IF('Generated list'!C7999=\"\",\"\",'Generated list'!C7999)","v":""},{"$f":"IF('Generated list'!D7999=\"\",\"\",'Generated list'!D7999)","v":""}]
[null,{"$f":"IF('Generated list'!B8000=\"\",\"\",'Generated list'!B8000)","v":""},{"$f":"IF('Generated list'!C8000=\"\",\"\",'Generated list'!C8000)","v":""},{"$f":"IF('Generated list'!D8000=\"\",\"\",'Generated list'!D8000)","v":""}]
[null,{"$f":"IF('Generated list'!B8001=\"\",\"\",'Generated list'!B8001)","v":""},{"$f":"IF('Generated list'!C8001=\"\",\"\",'Generated list'!C8001)","v":""},{"$f":"IF('Generated list'!D8001=\"\",\"\",'Generated list'!D8001)","v":""}]
[null,{"$f":"IF('Generated list'!B8002=\"\",\"\",'Generated list'!B8002)","v":""},{"$f":"IF('Generated list'!C8002=\"\",\"\",'Generated list'!C8002)","v":""},{"$f":"IF('Generated list'!D8002=\"\",\"\",'Generated list'!D8002)","v":""}]
[null,{"$f":"IF('Generated list'!B8003=\"\",\"\",'Generated list'!B8003)","v":""},{"$f":"IF('Generated list'!C8003=\"\",\"\",'Generated list'!C8003)","v":""},{"$f":"IF('Generated list'!D8003=\"\",\"\",'Generated list'!D8003)","v":""}]
[null,{"$f":"IF('Generated list'!B8004=\"\",\"\",'Generated list'!B8004)","v":""},{"$f":"IF('Generated list'!C8004=\"\",\"\",'Generated list'!C8004)","v":""},{"$f":"IF('Generated list'!D8004=\"\",\"\",'Generated list'!D8004)","v":""}]
[null,{"$f":"IF('Generated list'!B8005=\"\",\"\",'Generated list'!B8005)","v":""},{"$f":"IF('Generated list'!C8005=\"\",\"\",'Generated list'!C8005)","v":""},{"$f":"IF('Generated list'!D8005=\"\",\"\",'Generated list'!D8005)","v":""}]
[null,{"$f":"IF('Generated list'!B8006=\"\",\"\",'Generated list'!B8006)","v":""},{"$f":"IF('Generated list'!C8006=\"\",\"\",'Generated list'!C8006)","v":""},{"$f":"IF('Generated list'!D8006=\"\",\"\",'Generated list'!D8006)","v":""}]
[null,{"$f":"IF('Generated list'!B8007=\"\",\"\",'Generated list'!B8007)","v":""},{"$f":"IF('Generated list'!C8007=\"\",\"\",'Generated list'!C8007)","v":""},{"$f":"IF('Generated list'!D8007=\"\",\"\",'Generated list'!D8007)","v":""}]
[null,{"$f":"IF('Generated list'!B8008=\"\",\"\",'Generated list'!B8008)","v":""},{"$f":"IF('Generated list'!C8008=\"\",\"\",'Generated list'!C8008)","v":""},{"$f":"IF('Generated list'!D8008=\"\",\"\",'Generated list'!D8008)","v":""}]
[null,{"$f":"IF('Generated list'!B8009=\"\",\"\",'Generated list'!B8009)","v":""},{"$f":"IF('Generated list'!C8009=\"\",\"\",'Generated list'!C8009)","v":""},{"$f":"IF('Generated list'!D8009=\"\",\"\",'Generated list'!D8009)","v":""}]
[null,{"$f":"IF('Generated list'!B8010=\"\",\"\",'Generated list'!B8010)","v":""},{"$f":"IF('Generated list'!C8010=\"\",\"\",'Generated list'!C8010)","v":""},{"$f":"IF('Generated list'!D8010=\"\",\"\",'Generated list'!D8010)","v":""}]
[null,{"$f":"IF('Generated list'!B8011=\"\",\"\",'Generated list'!B8011)","v":""},{"$f":"IF('Generated list'!C8011=\"\",\"\",'Generated list'!C8011)","v":""},{"$f":"IF('Generated list'!D8011=\"\",\"\",'Generated list'!D8011)","v":""}]
[null,{"$f":"IF('Generated list'!B8012=\"\",\"\",'Generated list'!B8012)","v":""},{"$f":"IF('Generated list'!C8012=\"\",\"\",'Generated list'!C8012)","v":""},{"$f":"IF('Generated list'!D8012=\"\",\"\",'Generated list'!D8012)","v":""}]
[null,{"$f":"IF('Generated list'!B8013=\"\",\"\",'Generated list'!B8013)","v":""},{"$f":"IF('Generated list'!C8013=\"\",\"\",'Generated list'!C8013)","v":""},{"$f":"IF('Generated list'!D8013=\"\",\"\",'Generated list'!D8013)","v":""}]
[null,{"$f":"IF('Generated list'!B8014=\"\",\"\",'Generated list'!B8014)","v":""},{"$f":"IF('Generated list'!C8014=\"\",\"\",'Generated list'!C8014)","v":""},{"$f":"IF('Generated list'!D8014=\"\",\"\",'Generated list'!D8014)","v":""}]
[null,{"$f":"IF('Generated list'!B8015=\"\",\"\",'Generated list'!B8015)","v":""},{"$f":"IF('Generated list'!C8015=\"\",\"\",'Generated list'!C8015)","v":""},{"$f":"IF('Generated list'!D8015=\"\",\"\",'Generated list'!D8015)","v":""}]
[null,{"$f":"IF('Generated list'!B8016=\"\",\"\",'Generated list'!B8016)","v":""},{"$f":"IF('Generated list'!C8016=\"\",\"\",'Generated list'!C8016)","v":""},{"$f":"IF('Generated list'!D8016=\"\",\"\",'Generated list'!D8016)","v":""}]
[null,{"$f":"IF('Generated list'!B8017=\"\",\"\",'Generated list'!B8017)","v":""},{"$f":"IF('Generated list'!C8017=\"\",\"\",'Generated list'!C8017)","v":""},{"$f":"IF('Generated list'!D8017=\"\",\"\",'Generated list'!D8017)","v":""}]
[null,{"$f":"IF('Generated list'!B8018=\"\",\"\",'Generated list'!B8018)","v":""},{"$f":"IF('Generated list'!C8018=\"\",\"\",'Generated list'!C8018)","v":""},{"$f":"IF('Generated list'!D8018=\"\",\"\",'Generated list'!D8018)","v":""}]
[null,{"$f":"IF('Generated list'!B8019=\"\",\"\",'Generated list'!B8019)","v":""},{"$f":"IF('Generated list'!C8019=\"\",\"\",'Generated list'!C8019)","v":""},{"$f":"IF('Generated list'!D8019=\"\",\"\",'Generated list'!D8019)","v":""}]
[null,{"$f":"IF('Generated list'!B8020=\"\",\"\",'Generated list'!B8020)","v":""},{"$f":"IF('Generated list'!C8020=\"\",\"\",'Generated list'!C8020)","v":""},{"$f":"IF('Generated list'!D8020=\"\",\"\",'Generated list'!D8020)","v":""}]
[null,{"$f":"IF('Generated list'!B8021=\"\",\"\",'Generated list'!B8021)","v":""},{"$f":"IF('Generated list'!C8021=\"\",\"\",'Generated list'!C8021)","v":""},{"$f":"IF('Generated list'!D8021=\"\",\"\",'Generated list'!D8021)","v":""}]
[null,{"$f":"IF('Generated list'!B8022=\"\",\"\",'Generated list'!B8022)","v":""},{"$f":"IF('Generated list'!C8022=\"\",\"\",'Generated list'!C8022)","v":""},{"$f":"IF('Generated list'!D8022=\"\",\"\",'Generated list'!D8022)","v":""}]
[null,{"$f":"IF('Generated list'!B8023=\"\",\"\",'Generated list'!B8023)","v":""},{"$f":"IF('Generated list'!C8023=\"\",\"\",'Generated list'!C8023)","v":""},{"$f":"IF('Generated list'!D8023=\"\",\"\",'Generated list'!D8023)","v":""}]
[null,{"$f":"IF('Generated list'!B8024=\"\",\"\",'Generated list'!B8024)","v":""},{"$f":"IF('Generated list'!C8024=\"\",\"\",'Generated list'!C8024)","v":""},{"$f":"IF('Generated list'!D8024=\"\",\"\",'Generated list'!D8024)","v":""}]
[null,{"$f":"IF('Generated list'!B8025=\"\",\"\",'Generated list'!B8025)","v":""},{"$f":"IF('Generated list'!C8025=\"\",\"\",'Generated list'!C8025)","v":""},{"$f":"IF('Generated list'!D8025=\"\",\"\",'Generated list'!D8025)","v":""}]
[null,{"$f":"IF('Generated list'!B8026=\"\",\"\",'Generated list'!B8026)","v":""},{"$f":"IF('Generated list'!C8026=\"\",\"\",'Generated list'!C8026)","v":""},{"$f":"IF('Generated list'!D8026=\"\",\"\",'Generated list'!D8026)","v":""}]
[null,{"$f":"IF('Generated list'!B8027=\"\",\"\",'Generated list'!B8027)","v":""},{"$f":"IF('Generated list'!C8027=\"\",\"\",'Generated list'!C8027)","v":""},{"$f":"IF('Generated list'!D8027=\"\",\"\",'Generated list'!D8027)","v":""}]
[null,{"$f":"IF('Generated list'!B8028=\"\",\"\",'Generated list'!B8028)","v":""},{"$f":"IF('Generated list'!C8028=\"\",\"\",'Generated list'!C8028)","v":""},{"$f":"IF('Generated list'!D8028=\"\",\"\",'Generated list'!D8028)","v":""}]
[null,{"$f":"IF('Generated list'!B8029=\"\",\"\",'Generated list'!B8029)","v":""},{"$f":"IF('Generated list'!C8029=\"\",\"\",'Generated list'!C8029)","v":""},{"$f":"IF('Generated list'!D8029=\"\",\"\",'Generated list'!D8029)","v":""}]
[null,{"$f":"IF('Generated list'!B8030=\"\",\"\",'Generated list'!B8030)","v":""},{"$f":"IF('Generated list'!C8030=\"\",\"\",'Generated list'!C8030)","v":""},{"$f":"IF('Generated list'!D8030=\"\",\"\",'Generated list'!D8030)","v":""}]
[null,{"$f":"IF('Generated list'!B8031=\"\",\"\",'Generated list'!B8031)","v":""},{"$f":"IF('Generated list'!C8031=\"\",\"\",'Generated list'!C8031)","v":""},{"$f":"IF('Generated list'!D8031=\"\",\"\",'Generated list'!D8031)","v":""}]
[null,{"$f":"IF('Generated list'!B8032=\"\",\"\",'Generated list'!B8032)","v":""},{"$f":"IF('Generated list'!C8032=\"\",\"\",'Generated list'!C8032)","v":""},{"$f":"IF('Generated list'!D8032=\"\",\"\",'Generated list'!D8032)","v":""}]
[null,{"$f":"IF('Generated list'!B8033=\"\",\"\",'Generated list'!B8033)","v":""},{"$f":"IF('Generated list'!C8033=\"\",\"\",'Generated list'!C8033)","v":""},{"$f":"IF('Generated list'!D8033=\"\",\"\",'Generated list'!D8033)","v":""}]
[null,{"$f":"IF('Generated list'!B8034=\"\",\"\",'Generated list'!B8034)","v":""},{"$f":"IF('Generated list'!C8034=\"\",\"\",'Generated list'!C8034)","v":""},{"$f":"IF('Generated list'!D8034=\"\",\"\",'Generated list'!D8034)","v":""}]
[null,{"$f":"IF('Generated list'!B8035=\"\",\"\",'Generated list'!B8035)","v":""},{"$f":"IF('Generated list'!C8035=\"\",\"\",'Generated list'!C8035)","v":""},{"$f":"IF('Generated list'!D8035=\"\",\"\",'Generated list'!D8035)","v":""}]
[null,{"$f":"IF('Generated list'!B8036=\"\",\"\",'Generated list'!B8036)","v":""},{"$f":"IF('Generated list'!C8036=\"\",\"\",'Generated list'!C8036)","v":""},{"$f":"IF('Generated list'!D8036=\"\",\"\",'Generated list'!D8036)","v":""}]
[null,{"$f":"IF('Generated list'!B8037=\"\",\"\",'Generated list'!B8037)","v":""},{"$f":"IF('Generated list'!C8037=\"\",\"\",'Generated list'!C8037)","v":""},{"$f":"IF('Generated list'!D8037=\"\",\"\",'Generated list'!D8037)","v":""}]
[null,{"$f":"IF('Generated list'!B8038=\"\",\"\",'Generated list'!B8038)","v":""},{"$f":"IF('Generated list'!C8038=\"\",\"\",'Generated list'!C8038)","v":""},{"$f":"IF('Generated list'!D8038=\"\",\"\",'Generated list'!D8038)","v":""}]
[null,{"$f":"IF('Generated list'!B8039=\"\",\"\",'Generated list'!B8039)","v":""},{"$f":"IF('Generated list'!C8039=\"\",\"\",'Generated list'!C8039)","v":""},{"$f":"IF('Generated list'!D8039=\"\",\"\",'Generated list'!D8039)","v":""}]
[null,{"$f":"IF('Generated list'!B8040=\"\",\"\",'Generated list'!B8040)","v":""},{"$f":"IF('Generated list'!C8040=\"\",\"\",'Generated list'!C8040)","v":""},{"$f":"IF('Generated list'!D8040=\"\",\"\",'Generated list'!D8040)","v":""}]
[null,{"$f":"IF('Generated list'!B8041=\"\",\"\",'Generated list'!B8041)","v":""},{"$f":"IF('Generated list'!C8041=\"\",\"\",'Generated list'!C8041)","v":""},{"$f":"IF('Generated list'!D8041=\"\",\"\",'Generated list'!D8041)","v":""}]
[null,{"$f":"IF('Generated list'!B8042=\"\",\"\",'Generated list'!B8042)","v":""},{"$f":"IF('Generated list'!C8042=\"\",\"\",'Generated list'!C8042)","v":""},{"$f":"IF('Generated list'!D8042=\"\",\"\",'Generated list'!D8042)","v":""}]
[null,{"$f":"IF('Generated list'!B8043=\"\",\"\",'Generated list'!B8043)","v":""},{"$f":"IF('Generated list'!C8043=\"\",\"\",'Generated list'!C8043)","v":""},{"$f":"IF('Generated list'!D8043=\"\",\"\",'Generated list'!D8043)","v":""}]
[null,{"$f":"IF('Generated list'!B8044=\"\",\"\",'Generated list'!B8044)","v":""},{"$f":"IF('Generated list'!C8044=\"\",\"\",'Generated list'!C8044)","v":""},{"$f":"IF('Generated list'!D8044=\"\",\"\",'Generated list'!D8044)","v":""}]
[null,{"$f":"IF('Generated list'!B8045=\"\",\"\",'Generated list'!B8045)","v":""},{"$f":"IF('Generated list'!C8045=\"\",\"\",'Generated list'!C8045)","v":""},{"$f":"IF('Generated list'!D8045=\"\",\"\",'Generated list'!D8045)","v":""}]
[null,{"$f":"IF('Generated list'!B8046=\"\",\"\",'Generated list'!B8046)","v":""},{"$f":"IF('Generated list'!C8046=\"\",\"\",'Generated list'!C8046)","v":""},{"$f":"IF('Generated list'!D8046=\"\",\"\",'Generated list'!D8046)","v":""}]
[null,{"$f":"IF('Generated list'!B8047=\"\",\"\",'Generated list'!B8047)","v":""},{"$f":"IF('Generated list'!C8047=\"\",\"\",'Generated list'!C8047)","v":""},{"$f":"IF('Generated list'!D8047=\"\",\"\",'Generated list'!D8047)","v":""}]
[null,{"$f":"IF('Generated list'!B8048=\"\",\"\",'Generated list'!B8048)","v":""},{"$f":"IF('Generated list'!C8048=\"\",\"\",'Generated list'!C8048)","v":""},{"$f":"IF('Generated list'!D8048=\"\",\"\",'Generated list'!D8048)","v":""}]
[null,{"$f":"IF('Generated list'!B8049=\"\",\"\",'Generated list'!B8049)","v":""},{"$f":"IF('Generated list'!C8049=\"\",\"\",'Generated list'!C8049)","v":""},{"$f":"IF('Generated list'!D8049=\"\",\"\",'Generated list'!D8049)","v":""}]
[null,{"$f":"IF('Generated list'!B8050=\"\",\"\",'Generated list'!B8050)","v":""},{"$f":"IF('Generated list'!C8050=\"\",\"\",'Generated list'!C8050)","v":""},{"$f":"IF('Generated list'!D8050=\"\",\"\",'Generated list'!D8050)","v":""}]
[null,{"$f":"IF('Generated list'!B8051=\"\",\"\",'Generated list'!B8051)","v":""},{"$f":"IF('Generated list'!C8051=\"\",\"\",'Generated list'!C8051)","v":""},{"$f":"IF('Generated list'!D8051=\"\",\"\",'Generated list'!D8051)","v":""}]
[null,{"$f":"IF('Generated list'!B8052=\"\",\"\",'Generated list'!B8052)","v":""},{"$f":"IF('Generated list'!C8052=\"\",\"\",'Generated list'!C8052)","v":""},{"$f":"IF('Generated list'!D8052=\"\",\"\",'Generated list'!D8052)","v":""}]
[null,{"$f":"IF('Generated list'!B8053=\"\",\"\",'Generated list'!B8053)","v":""},{"$f":"IF('Generated list'!C8053=\"\",\"\",'Generated list'!C8053)","v":""},{"$f":"IF('Generated list'!D8053=\"\",\"\",'Generated list'!D8053)","v":""}]
[null,{"$f":"IF('Generated list'!B8054=\"\",\"\",'Generated list'!B8054)","v":""},{"$f":"IF('Generated list'!C8054=\"\",\"\",'Generated list'!C8054)","v":""},{"$f":"IF('Generated list'!D8054=\"\",\"\",'Generated list'!D8054)","v":""}]
[null,{"$f":"IF('Generated list'!B8055=\"\",\"\",'Generated list'!B8055)","v":""},{"$f":"IF('Generated list'!C8055=\"\",\"\",'Generated list'!C8055)","v":""},{"$f":"IF('Generated list'!D8055=\"\",\"\",'Generated list'!D8055)","v":""}]
[null,{"$f":"IF('Generated list'!B8056=\"\",\"\",'Generated list'!B8056)","v":""},{"$f":"IF('Generated list'!C8056=\"\",\"\",'Generated list'!C8056)","v":""},{"$f":"IF('Generated list'!D8056=\"\",\"\",'Generated list'!D8056)","v":""}]
[null,{"$f":"IF('Generated list'!B8057=\"\",\"\",'Generated list'!B8057)","v":""},{"$f":"IF('Generated list'!C8057=\"\",\"\",'Generated list'!C8057)","v":""},{"$f":"IF('Generated list'!D8057=\"\",\"\",'Generated list'!D8057)","v":""}]
[null,{"$f":"IF('Generated list'!B8058=\"\",\"\",'Generated list'!B8058)","v":""},{"$f":"IF('Generated list'!C8058=\"\",\"\",'Generated list'!C8058)","v":""},{"$f":"IF('Generated list'!D8058=\"\",\"\",'Generated list'!D8058)","v":""}]
[null,{"$f":"IF('Generated list'!B8059=\"\",\"\",'Generated list'!B8059)","v":""},{"$f":"IF('Generated list'!C8059=\"\",\"\",'Generated list'!C8059)","v":""},{"$f":"IF('Generated list'!D8059=\"\",\"\",'Generated list'!D8059)","v":""}]
[null,{"$f":"IF('Generated list'!B8060=\"\",\"\",'Generated list'!B8060)","v":""},{"$f":"IF('Generated list'!C8060=\"\",\"\",'Generated list'!C8060)","v":""},{"$f":"IF('Generated list'!D8060=\"\",\"\",'Generated list'!D8060)","v":""}]
[null,{"$f":"IF('Generated list'!B8061=\"\",\"\",'Generated list'!B8061)","v":""},{"$f":"IF('Generated list'!C8061=\"\",\"\",'Generated list'!C8061)","v":""},{"$f":"IF('Generated list'!D8061=\"\",\"\",'Generated list'!D8061)","v":""}]
[null,{"$f":"IF('Generated list'!B8062=\"\",\"\",'Generated list'!B8062)","v":""},{"$f":"IF('Generated list'!C8062=\"\",\"\",'Generated list'!C8062)","v":""},{"$f":"IF('Generated list'!D8062=\"\",\"\",'Generated list'!D8062)","v":""}]
[null,{"$f":"IF('Generated list'!B8063=\"\",\"\",'Generated list'!B8063)","v":""},{"$f":"IF('Generated list'!C8063=\"\",\"\",'Generated list'!C8063)","v":""},{"$f":"IF('Generated list'!D8063=\"\",\"\",'Generated list'!D8063)","v":""}]
[null,{"$f":"IF('Generated list'!B8064=\"\",\"\",'Generated list'!B8064)","v":""},{"$f":"IF('Generated list'!C8064=\"\",\"\",'Generated list'!C8064)","v":""},{"$f":"IF('Generated list'!D8064=\"\",\"\",'Generated list'!D8064)","v":""}]
[null,{"$f":"IF('Generated list'!B8065=\"\",\"\",'Generated list'!B8065)","v":""},{"$f":"IF('Generated list'!C8065=\"\",\"\",'Generated list'!C8065)","v":""},{"$f":"IF('Generated list'!D8065=\"\",\"\",'Generated list'!D8065)","v":""}]
[null,{"$f":"IF('Generated list'!B8066=\"\",\"\",'Generated list'!B8066)","v":""},{"$f":"IF('Generated list'!C8066=\"\",\"\",'Generated list'!C8066)","v":""},{"$f":"IF('Generated list'!D8066=\"\",\"\",'Generated list'!D8066)","v":""}]
[null,{"$f":"IF('Generated list'!B8067=\"\",\"\",'Generated list'!B8067)","v":""},{"$f":"IF('Generated list'!C8067=\"\",\"\",'Generated list'!C8067)","v":""},{"$f":"IF('Generated list'!D8067=\"\",\"\",'Generated list'!D8067)","v":""}]
[null,{"$f":"IF('Generated list'!B8068=\"\",\"\",'Generated list'!B8068)","v":""},{"$f":"IF('Generated list'!C8068=\"\",\"\",'Generated list'!C8068)","v":""},{"$f":"IF('Generated list'!D8068=\"\",\"\",'Generated list'!D8068)","v":""}]
[null,{"$f":"IF('Generated list'!B8069=\"\",\"\",'Generated list'!B8069)","v":""},{"$f":"IF('Generated list'!C8069=\"\",\"\",'Generated list'!C8069)","v":""},{"$f":"IF('Generated list'!D8069=\"\",\"\",'Generated list'!D8069)","v":""}]
[null,{"$f":"IF('Generated list'!B8070=\"\",\"\",'Generated list'!B8070)","v":""},{"$f":"IF('Generated list'!C8070=\"\",\"\",'Generated list'!C8070)","v":""},{"$f":"IF('Generated list'!D8070=\"\",\"\",'Generated list'!D8070)","v":""}]
[null,{"$f":"IF('Generated list'!B8071=\"\",\"\",'Generated list'!B8071)","v":""},{"$f":"IF('Generated list'!C8071=\"\",\"\",'Generated list'!C8071)","v":""},{"$f":"IF('Generated list'!D8071=\"\",\"\",'Generated list'!D8071)","v":""}]
[null,{"$f":"IF('Generated list'!B8072=\"\",\"\",'Generated list'!B8072)","v":""},{"$f":"IF('Generated list'!C8072=\"\",\"\",'Generated list'!C8072)","v":""},{"$f":"IF('Generated list'!D8072=\"\",\"\",'Generated list'!D8072)","v":""}]
[null,{"$f":"IF('Generated list'!B8073=\"\",\"\",'Generated list'!B8073)","v":""},{"$f":"IF('Generated list'!C8073=\"\",\"\",'Generated list'!C8073)","v":""},{"$f":"IF('Generated list'!D8073=\"\",\"\",'Generated list'!D8073)","v":""}]
[null,{"$f":"IF('Generated list'!B8074=\"\",\"\",'Generated list'!B8074)","v":""},{"$f":"IF('Generated list'!C8074=\"\",\"\",'Generated list'!C8074)","v":""},{"$f":"IF('Generated list'!D8074=\"\",\"\",'Generated list'!D8074)","v":""}]
[null,{"$f":"IF('Generated list'!B8075=\"\",\"\",'Generated list'!B8075)","v":""},{"$f":"IF('Generated list'!C8075=\"\",\"\",'Generated list'!C8075)","v":""},{"$f":"IF('Generated list'!D8075=\"\",\"\",'Generated list'!D8075)","v":""}]
[null,{"$f":"IF('Generated list'!B8076=\"\",\"\",'Generated list'!B8076)","v":""},{"$f":"IF('Generated list'!C8076=\"\",\"\",'Generated list'!C8076)","v":""},{"$f":"IF('Generated list'!D8076=\"\",\"\",'Generated list'!D8076)","v":""}]
[null,{"$f":"IF('Generated list'!B8077=\"\",\"\",'Generated list'!B8077)","v":""},{"$f":"IF('Generated list'!C8077=\"\",\"\",'Generated list'!C8077)","v":""},{"$f":"IF('Generated list'!D8077=\"\",\"\",'Generated list'!D8077)","v":""}]
[null,{"$f":"IF('Generated list'!B8078=\"\",\"\",'Generated list'!B8078)","v":""},{"$f":"IF('Generated list'!C8078=\"\",\"\",'Generated list'!C8078)","v":""},{"$f":"IF('Generated list'!D8078=\"\",\"\",'Generated list'!D8078)","v":""}]
[null,{"$f":"IF('Generated list'!B8079=\"\",\"\",'Generated list'!B8079)","v":""},{"$f":"IF('Generated list'!C8079=\"\",\"\",'Generated list'!C8079)","v":""},{"$f":"IF('Generated list'!D8079=\"\",\"\",'Generated list'!D8079)","v":""}]
[null,{"$f":"IF('Generated list'!B8080=\"\",\"\",'Generated list'!B8080)","v":""},{"$f":"IF('Generated list'!C8080=\"\",\"\",'Generated list'!C8080)","v":""},{"$f":"IF('Generated list'!D8080=\"\",\"\",'Generated list'!D8080)","v":""}]
[null,{"$f":"IF('Generated list'!B8081=\"\",\"\",'Generated list'!B8081)","v":""},{"$f":"IF('Generated list'!C8081=\"\",\"\",'Generated list'!C8081)","v":""},{"$f":"IF('Generated list'!D8081=\"\",\"\",'Generated list'!D8081)","v":""}]
[null,{"$f":"IF('Generated list'!B8082=\"\",\"\",'Generated list'!B8082)","v":""},{"$f":"IF('Generated list'!C8082=\"\",\"\",'Generated list'!C8082)","v":""},{"$f":"IF('Generated list'!D8082=\"\",\"\",'Generated list'!D8082)","v":""}]
[null,{"$f":"IF('Generated list'!B8083=\"\",\"\",'Generated list'!B8083)","v":""},{"$f":"IF('Generated list'!C8083=\"\",\"\",'Generated list'!C8083)","v":""},{"$f":"IF('Generated list'!D8083=\"\",\"\",'Generated list'!D8083)","v":""}]
[null,{"$f":"IF('Generated list'!B8084=\"\",\"\",'Generated list'!B8084)","v":""},{"$f":"IF('Generated list'!C8084=\"\",\"\",'Generated list'!C8084)","v":""},{"$f":"IF('Generated list'!D8084=\"\",\"\",'Generated list'!D8084)","v":""}]
[null,{"$f":"IF('Generated list'!B8085=\"\",\"\",'Generated list'!B8085)","v":""},{"$f":"IF('Generated list'!C8085=\"\",\"\",'Generated list'!C8085)","v":""},{"$f":"IF('Generated list'!D8085=\"\",\"\",'Generated list'!D8085)","v":""}]
[null,{"$f":"IF('Generated list'!B8086=\"\",\"\",'Generated list'!B8086)","v":""},{"$f":"IF('Generated list'!C8086=\"\",\"\",'Generated list'!C8086)","v":""},{"$f":"IF('Generated list'!D8086=\"\",\"\",'Generated list'!D8086)","v":""}]
[null,{"$f":"IF('Generated list'!B8087=\"\",\"\",'Generated list'!B8087)","v":""},{"$f":"IF('Generated list'!C8087=\"\",\"\",'Generated list'!C8087)","v":""},{"$f":"IF('Generated list'!D8087=\"\",\"\",'Generated list'!D8087)","v":""}]
[null,{"$f":"IF('Generated list'!B8088=\"\",\"\",'Generated list'!B8088)","v":""},{"$f":"IF('Generated list'!C8088=\"\",\"\",'Generated list'!C8088)","v":""},{"$f":"IF('Generated list'!D8088=\"\",\"\",'Generated list'!D8088)","v":""}]
[null,{"$f":"IF('Generated list'!B8089=\"\",\"\",'Generated list'!B8089)","v":""},{"$f":"IF('Generated list'!C8089=\"\",\"\",'Generated list'!C8089)","v":""},{"$f":"IF('Generated list'!D8089=\"\",\"\",'Generated list'!D8089)","v":""}]
[null,{"$f":"IF('Generated list'!B8090=\"\",\"\",'Generated list'!B8090)","v":""},{"$f":"IF('Generated list'!C8090=\"\",\"\",'Generated list'!C8090)","v":""},{"$f":"IF('Generated list'!D8090=\"\",\"\",'Generated list'!D8090)","v":""}]
[null,{"$f":"IF('Generated list'!B8091=\"\",\"\",'Generated list'!B8091)","v":""},{"$f":"IF('Generated list'!C8091=\"\",\"\",'Generated list'!C8091)","v":""},{"$f":"IF('Generated list'!D8091=\"\",\"\",'Generated list'!D8091)","v":""}]
[null,{"$f":"IF('Generated list'!B8092=\"\",\"\",'Generated list'!B8092)","v":""},{"$f":"IF('Generated list'!C8092=\"\",\"\",'Generated list'!C8092)","v":""},{"$f":"IF('Generated list'!D8092=\"\",\"\",'Generated list'!D8092)","v":""}]
[null,{"$f":"IF('Generated list'!B8093=\"\",\"\",'Generated list'!B8093)","v":""},{"$f":"IF('Generated list'!C8093=\"\",\"\",'Generated list'!C8093)","v":""},{"$f":"IF('Generated list'!D8093=\"\",\"\",'Generated list'!D8093)","v":""}]
[null,{"$f":"IF('Generated list'!B8094=\"\",\"\",'Generated list'!B8094)","v":""},{"$f":"IF('Generated list'!C8094=\"\",\"\",'Generated list'!C8094)","v":""},{"$f":"IF('Generated list'!D8094=\"\",\"\",'Generated list'!D8094)","v":""}]
[null,{"$f":"IF('Generated list'!B8095=\"\",\"\",'Generated list'!B8095)","v":""},{"$f":"IF('Generated list'!C8095=\"\",\"\",'Generated list'!C8095)","v":""},{"$f":"IF('Generated list'!D8095=\"\",\"\",'Generated list'!D8095)","v":""}]
[null,{"$f":"IF('Generated list'!B8096=\"\",\"\",'Generated list'!B8096)","v":""},{"$f":"IF('Generated list'!C8096=\"\",\"\",'Generated list'!C8096)","v":""},{"$f":"IF('Generated list'!D8096=\"\",\"\",'Generated list'!D8096)","v":""}]
[null,{"$f":"IF('Generated list'!B8097=\"\",\"\",'Generated list'!B8097)","v":""},{"$f":"IF('Generated list'!C8097=\"\",\"\",'Generated list'!C8097)","v":""},{"$f":"IF('Generated list'!D8097=\"\",\"\",'Generated list'!D8097)","v":""}]
[null,{"$f":"IF('Generated list'!B8098=\"\",\"\",'Generated list'!B8098)","v":""},{"$f":"IF('Generated list'!C8098=\"\",\"\",'Generated list'!C8098)","v":""},{"$f":"IF('Generated list'!D8098=\"\",\"\",'Generated list'!D8098)","v":""}]
[null,{"$f":"IF('Generated list'!B8099=\"\",\"\",'Generated list'!B8099)","v":""},{"$f":"IF('Generated list'!C8099=\"\",\"\",'Generated list'!C8099)","v":""},{"$f":"IF('Generated list'!D8099=\"\",\"\",'Generated list'!D8099)","v":""}]
[null,{"$f":"IF('Generated list'!B8100=\"\",\"\",'Generated list'!B8100)","v":""},{"$f":"IF('Generated list'!C8100=\"\",\"\",'Generated list'!C8100)","v":""},{"$f":"IF('Generated list'!D8100=\"\",\"\",'Generated list'!D8100)","v":""}]
[null,{"$f":"IF('Generated list'!B8101=\"\",\"\",'Generated list'!B8101)","v":""},{"$f":"IF('Generated list'!C8101=\"\",\"\",'Generated list'!C8101)","v":""},{"$f":"IF('Generated list'!D8101=\"\",\"\",'Generated list'!D8101)","v":""}]
[null,{"$f":"IF('Generated list'!B8102=\"\",\"\",'Generated list'!B8102)","v":""},{"$f":"IF('Generated list'!C8102=\"\",\"\",'Generated list'!C8102)","v":""},{"$f":"IF('Generated list'!D8102=\"\",\"\",'Generated list'!D8102)","v":""}]
[null,{"$f":"IF('Generated list'!B8103=\"\",\"\",'Generated list'!B8103)","v":""},{"$f":"IF('Generated list'!C8103=\"\",\"\",'Generated list'!C8103)","v":""},{"$f":"IF('Generated list'!D8103=\"\",\"\",'Generated list'!D8103)","v":""}]
[null,{"$f":"IF('Generated list'!B8104=\"\",\"\",'Generated list'!B8104)","v":""},{"$f":"IF('Generated list'!C8104=\"\",\"\",'Generated list'!C8104)","v":""},{"$f":"IF('Generated list'!D8104=\"\",\"\",'Generated list'!D8104)","v":""}]
[null,{"$f":"IF('Generated list'!B8105=\"\",\"\",'Generated list'!B8105)","v":""},{"$f":"IF('Generated list'!C8105=\"\",\"\",'Generated list'!C8105)","v":""},{"$f":"IF('Generated list'!D8105=\"\",\"\",'Generated list'!D8105)","v":""}]
[null,{"$f":"IF('Generated list'!B8106=\"\",\"\",'Generated list'!B8106)","v":""},{"$f":"IF('Generated list'!C8106=\"\",\"\",'Generated list'!C8106)","v":""},{"$f":"IF('Generated list'!D8106=\"\",\"\",'Generated list'!D8106)","v":""}]
[null,{"$f":"IF('Generated list'!B8107=\"\",\"\",'Generated list'!B8107)","v":""},{"$f":"IF('Generated list'!C8107=\"\",\"\",'Generated list'!C8107)","v":""},{"$f":"IF('Generated list'!D8107=\"\",\"\",'Generated list'!D8107)","v":""}]
[null,{"$f":"IF('Generated list'!B8108=\"\",\"\",'Generated list'!B8108)","v":""},{"$f":"IF('Generated list'!C8108=\"\",\"\",'Generated list'!C8108)","v":""},{"$f":"IF('Generated list'!D8108=\"\",\"\",'Generated list'!D8108)","v":""}]
[null,{"$f":"IF('Generated list'!B8109=\"\",\"\",'Generated list'!B8109)","v":""},{"$f":"IF('Generated list'!C8109=\"\",\"\",'Generated list'!C8109)","v":""},{"$f":"IF('Generated list'!D8109=\"\",\"\",'Generated list'!D8109)","v":""}]
[null,{"$f":"IF('Generated list'!B8110=\"\",\"\",'Generated list'!B8110)","v":""},{"$f":"IF('Generated list'!C8110=\"\",\"\",'Generated list'!C8110)","v":""},{"$f":"IF('Generated list'!D8110=\"\",\"\",'Generated list'!D8110)","v":""}]
[null,{"$f":"IF('Generated list'!B8111=\"\",\"\",'Generated list'!B8111)","v":""},{"$f":"IF('Generated list'!C8111=\"\",\"\",'Generated list'!C8111)","v":""},{"$f":"IF('Generated list'!D8111=\"\",\"\",'Generated list'!D8111)","v":""}]
[null,{"$f":"IF('Generated list'!B8112=\"\",\"\",'Generated list'!B8112)","v":""},{"$f":"IF('Generated list'!C8112=\"\",\"\",'Generated list'!C8112)","v":""},{"$f":"IF('Generated list'!D8112=\"\",\"\",'Generated list'!D8112)","v":""}]
[null,{"$f":"IF('Generated list'!B8113=\"\",\"\",'Generated list'!B8113)","v":""},{"$f":"IF('Generated list'!C8113=\"\",\"\",'Generated list'!C8113)","v":""},{"$f":"IF('Generated list'!D8113=\"\",\"\",'Generated list'!D8113)","v":""}]
[null,{"$f":"IF('Generated list'!B8114=\"\",\"\",'Generated list'!B8114)","v":""},{"$f":"IF('Generated list'!C8114=\"\",\"\",'Generated list'!C8114)","v":""},{"$f":"IF('Generated list'!D8114=\"\",\"\",'Generated list'!D8114)","v":""}]
[null,{"$f":"IF('Generated list'!B8115=\"\",\"\",'Generated list'!B8115)","v":""},{"$f":"IF('Generated list'!C8115=\"\",\"\",'Generated list'!C8115)","v":""},{"$f":"IF('Generated list'!D8115=\"\",\"\",'Generated list'!D8115)","v":""}]
[null,{"$f":"IF('Generated list'!B8116=\"\",\"\",'Generated list'!B8116)","v":""},{"$f":"IF('Generated list'!C8116=\"\",\"\",'Generated list'!C8116)","v":""},{"$f":"IF('Generated list'!D8116=\"\",\"\",'Generated list'!D8116)","v":""}]
[null,{"$f":"IF('Generated list'!B8117=\"\",\"\",'Generated list'!B8117)","v":""},{"$f":"IF('Generated list'!C8117=\"\",\"\",'Generated list'!C8117)","v":""},{"$f":"IF('Generated list'!D8117=\"\",\"\",'Generated list'!D8117)","v":""}]
[null,{"$f":"IF('Generated list'!B8118=\"\",\"\",'Generated list'!B8118)","v":""},{"$f":"IF('Generated list'!C8118=\"\",\"\",'Generated list'!C8118)","v":""},{"$f":"IF('Generated list'!D8118=\"\",\"\",'Generated list'!D8118)","v":""}]
[null,{"$f":"IF('Generated list'!B8119=\"\",\"\",'Generated list'!B8119)","v":""},{"$f":"IF('Generated list'!C8119=\"\",\"\",'Generated list'!C8119)","v":""},{"$f":"IF('Generated list'!D8119=\"\",\"\",'Generated list'!D8119)","v":""}]
[null,{"$f":"IF('Generated list'!B8120=\"\",\"\",'Generated list'!B8120)","v":""},{"$f":"IF('Generated list'!C8120=\"\",\"\",'Generated list'!C8120)","v":""},{"$f":"IF('Generated list'!D8120=\"\",\"\",'Generated list'!D8120)","v":""}]
[null,{"$f":"IF('Generated list'!B8121=\"\",\"\",'Generated list'!B8121)","v":""},{"$f":"IF('Generated list'!C8121=\"\",\"\",'Generated list'!C8121)","v":""},{"$f":"IF('Generated list'!D8121=\"\",\"\",'Generated list'!D8121)","v":""}]
[null,{"$f":"IF('Generated list'!B8122=\"\",\"\",'Generated list'!B8122)","v":""},{"$f":"IF('Generated list'!C8122=\"\",\"\",'Generated list'!C8122)","v":""},{"$f":"IF('Generated list'!D8122=\"\",\"\",'Generated list'!D8122)","v":""}]
[null,{"$f":"IF('Generated list'!B8123=\"\",\"\",'Generated list'!B8123)","v":""},{"$f":"IF('Generated list'!C8123=\"\",\"\",'Generated list'!C8123)","v":""},{"$f":"IF('Generated list'!D8123=\"\",\"\",'Generated list'!D8123)","v":""}]
[null,{"$f":"IF('Generated list'!B8124=\"\",\"\",'Generated list'!B8124)","v":""},{"$f":"IF('Generated list'!C8124=\"\",\"\",'Generated list'!C8124)","v":""},{"$f":"IF('Generated list'!D8124=\"\",\"\",'Generated list'!D8124)","v":""}]
[null,{"$f":"IF('Generated list'!B8125=\"\",\"\",'Generated list'!B8125)","v":""},{"$f":"IF('Generated list'!C8125=\"\",\"\",'Generated list'!C8125)","v":""},{"$f":"IF('Generated list'!D8125=\"\",\"\",'Generated list'!D8125)","v":""}]
[null,{"$f":"IF('Generated list'!B8126=\"\",\"\",'Generated list'!B8126)","v":""},{"$f":"IF('Generated list'!C8126=\"\",\"\",'Generated list'!C8126)","v":""},{"$f":"IF('Generated list'!D8126=\"\",\"\",'Generated list'!D8126)","v":""}]
[null,{"$f":"IF('Generated list'!B8127=\"\",\"\",'Generated list'!B8127)","v":""},{"$f":"IF('Generated list'!C8127=\"\",\"\",'Generated list'!C8127)","v":""},{"$f":"IF('Generated list'!D8127=\"\",\"\",'Generated list'!D8127)","v":""}]
[null,{"$f":"IF('Generated list'!B8128=\"\",\"\",'Generated list'!B8128)","v":""},{"$f":"IF('Generated list'!C8128=\"\",\"\",'Generated list'!C8128)","v":""},{"$f":"IF('Generated list'!D8128=\"\",\"\",'Generated list'!D8128)","v":""}]
[null,{"$f":"IF('Generated list'!B8129=\"\",\"\",'Generated list'!B8129)","v":""},{"$f":"IF('Generated list'!C8129=\"\",\"\",'Generated list'!C8129)","v":""},{"$f":"IF('Generated list'!D8129=\"\",\"\",'Generated list'!D8129)","v":""}]
[null,{"$f":"IF('Generated list'!B8130=\"\",\"\",'Generated list'!B8130)","v":""},{"$f":"IF('Generated list'!C8130=\"\",\"\",'Generated list'!C8130)","v":""},{"$f":"IF('Generated list'!D8130=\"\",\"\",'Generated list'!D8130)","v":""}]
[null,{"$f":"IF('Generated list'!B8131=\"\",\"\",'Generated list'!B8131)","v":""},{"$f":"IF('Generated list'!C8131=\"\",\"\",'Generated list'!C8131)","v":""},{"$f":"IF('Generated list'!D8131=\"\",\"\",'Generated list'!D8131)","v":""}]
[null,{"$f":"IF('Generated list'!B8132=\"\",\"\",'Generated list'!B8132)","v":""},{"$f":"IF('Generated list'!C8132=\"\",\"\",'Generated list'!C8132)","v":""},{"$f":"IF('Generated list'!D8132=\"\",\"\",'Generated list'!D8132)","v":""}]
[null,{"$f":"IF('Generated list'!B8133=\"\",\"\",'Generated list'!B8133)","v":""},{"$f":"IF('Generated list'!C8133=\"\",\"\",'Generated list'!C8133)","v":""},{"$f":"IF('Generated list'!D8133=\"\",\"\",'Generated list'!D8133)","v":""}]
[null,{"$f":"IF('Generated list'!B8134=\"\",\"\",'Generated list'!B8134)","v":""},{"$f":"IF('Generated list'!C8134=\"\",\"\",'Generated list'!C8134)","v":""},{"$f":"IF('Generated list'!D8134=\"\",\"\",'Generated list'!D8134)","v":""}]
[null,{"$f":"IF('Generated list'!B8135=\"\",\"\",'Generated list'!B8135)","v":""},{"$f":"IF('Generated list'!C8135=\"\",\"\",'Generated list'!C8135)","v":""},{"$f":"IF('Generated list'!D8135=\"\",\"\",'Generated list'!D8135)","v":""}]
[null,{"$f":"IF('Generated list'!B8136=\"\",\"\",'Generated list'!B8136)","v":""},{"$f":"IF('Generated list'!C8136=\"\",\"\",'Generated list'!C8136)","v":""},{"$f":"IF('Generated list'!D8136=\"\",\"\",'Generated list'!D8136)","v":""}]
[null,{"$f":"IF('Generated list'!B8137=\"\",\"\",'Generated list'!B8137)","v":""},{"$f":"IF('Generated list'!C8137=\"\",\"\",'Generated list'!C8137)","v":""},{"$f":"IF('Generated list'!D8137=\"\",\"\",'Generated list'!D8137)","v":""}]
[null,{"$f":"IF('Generated list'!B8138=\"\",\"\",'Generated list'!B8138)","v":""},{"$f":"IF('Generated list'!C8138=\"\",\"\",'Generated list'!C8138)","v":""},{"$f":"IF('Generated list'!D8138=\"\",\"\",'Generated list'!D8138)","v":""}]
[null,{"$f":"IF('Generated list'!B8139=\"\",\"\",'Generated list'!B8139)","v":""},{"$f":"IF('Generated list'!C8139=\"\",\"\",'Generated list'!C8139)","v":""},{"$f":"IF('Generated list'!D8139=\"\",\"\",'Generated list'!D8139)","v":""}]
[null,{"$f":"IF('Generated list'!B8140=\"\",\"\",'Generated list'!B8140)","v":""},{"$f":"IF('Generated list'!C8140=\"\",\"\",'Generated list'!C8140)","v":""},{"$f":"IF('Generated list'!D8140=\"\",\"\",'Generated list'!D8140)","v":""}]
[null,{"$f":"IF('Generated list'!B8141=\"\",\"\",'Generated list'!B8141)","v":""},{"$f":"IF('Generated list'!C8141=\"\",\"\",'Generated list'!C8141)","v":""},{"$f":"IF('Generated list'!D8141=\"\",\"\",'Generated list'!D8141)","v":""}]
[null,{"$f":"IF('Generated list'!B8142=\"\",\"\",'Generated list'!B8142)","v":""},{"$f":"IF('Generated list'!C8142=\"\",\"\",'Generated list'!C8142)","v":""},{"$f":"IF('Generated list'!D8142=\"\",\"\",'Generated list'!D8142)","v":""}]
[null,{"$f":"IF('Generated list'!B8143=\"\",\"\",'Generated list'!B8143)","v":""},{"$f":"IF('Generated list'!C8143=\"\",\"\",'Generated list'!C8143)","v":""},{"$f":"IF('Generated list'!D8143=\"\",\"\",'Generated list'!D8143)","v":""}]
[null,{"$f":"IF('Generated list'!B8144=\"\",\"\",'Generated list'!B8144)","v":""},{"$f":"IF('Generated list'!C8144=\"\",\"\",'Generated list'!C8144)","v":""},{"$f":"IF('Generated list'!D8144=\"\",\"\",'Generated list'!D8144)","v":""}]
[null,{"$f":"IF('Generated list'!B8145=\"\",\"\",'Generated list'!B8145)","v":""},{"$f":"IF('Generated list'!C8145=\"\",\"\",'Generated list'!C8145)","v":""},{"$f":"IF('Generated list'!D8145=\"\",\"\",'Generated list'!D8145)","v":""}]
[null,{"$f":"IF('Generated list'!B8146=\"\",\"\",'Generated list'!B8146)","v":""},{"$f":"IF('Generated list'!C8146=\"\",\"\",'Generated list'!C8146)","v":""},{"$f":"IF('Generated list'!D8146=\"\",\"\",'Generated list'!D8146)","v":""}]
[null,{"$f":"IF('Generated list'!B8147=\"\",\"\",'Generated list'!B8147)","v":""},{"$f":"IF('Generated list'!C8147=\"\",\"\",'Generated list'!C8147)","v":""},{"$f":"IF('Generated list'!D8147=\"\",\"\",'Generated list'!D8147)","v":""}]
[null,{"$f":"IF('Generated list'!B8148=\"\",\"\",'Generated list'!B8148)","v":""},{"$f":"IF('Generated list'!C8148=\"\",\"\",'Generated list'!C8148)","v":""},{"$f":"IF('Generated list'!D8148=\"\",\"\",'Generated list'!D8148)","v":""}]
[null,{"$f":"IF('Generated list'!B8149=\"\",\"\",'Generated list'!B8149)","v":""},{"$f":"IF('Generated list'!C8149=\"\",\"\",'Generated list'!C8149)","v":""},{"$f":"IF('Generated list'!D8149=\"\",\"\",'Generated list'!D8149)","v":""}]
[null,{"$f":"IF('Generated list'!B8150=\"\",\"\",'Generated list'!B8150)","v":""},{"$f":"IF('Generated list'!C8150=\"\",\"\",'Generated list'!C8150)","v":""},{"$f":"IF('Generated list'!D8150=\"\",\"\",'Generated list'!D8150)","v":""}]
[null,{"$f":"IF('Generated list'!B8151=\"\",\"\",'Generated list'!B8151)","v":""},{"$f":"IF('Generated list'!C8151=\"\",\"\",'Generated list'!C8151)","v":""},{"$f":"IF('Generated list'!D8151=\"\",\"\",'Generated list'!D8151)","v":""}]
[null,{"$f":"IF('Generated list'!B8152=\"\",\"\",'Generated list'!B8152)","v":""},{"$f":"IF('Generated list'!C8152=\"\",\"\",'Generated list'!C8152)","v":""},{"$f":"IF('Generated list'!D8152=\"\",\"\",'Generated list'!D8152)","v":""}]
[null,{"$f":"IF('Generated list'!B8153=\"\",\"\",'Generated list'!B8153)","v":""},{"$f":"IF('Generated list'!C8153=\"\",\"\",'Generated list'!C8153)","v":""},{"$f":"IF('Generated list'!D8153=\"\",\"\",'Generated list'!D8153)","v":""}]
[null,{"$f":"IF('Generated list'!B8154=\"\",\"\",'Generated list'!B8154)","v":""},{"$f":"IF('Generated list'!C8154=\"\",\"\",'Generated list'!C8154)","v":""},{"$f":"IF('Generated list'!D8154=\"\",\"\",'Generated list'!D8154)","v":""}]
[null,{"$f":"IF('Generated list'!B8155=\"\",\"\",'Generated list'!B8155)","v":""},{"$f":"IF('Generated list'!C8155=\"\",\"\",'Generated list'!C8155)","v":""},{"$f":"IF('Generated list'!D8155=\"\",\"\",'Generated list'!D8155)","v":""}]
[null,{"$f":"IF('Generated list'!B8156=\"\",\"\",'Generated list'!B8156)","v":""},{"$f":"IF('Generated list'!C8156=\"\",\"\",'Generated list'!C8156)","v":""},{"$f":"IF('Generated list'!D8156=\"\",\"\",'Generated list'!D8156)","v":""}]
[null,{"$f":"IF('Generated list'!B8157=\"\",\"\",'Generated list'!B8157)","v":""},{"$f":"IF('Generated list'!C8157=\"\",\"\",'Generated list'!C8157)","v":""},{"$f":"IF('Generated list'!D8157=\"\",\"\",'Generated list'!D8157)","v":""}]
[null,{"$f":"IF('Generated list'!B8158=\"\",\"\",'Generated list'!B8158)","v":""},{"$f":"IF('Generated list'!C8158=\"\",\"\",'Generated list'!C8158)","v":""},{"$f":"IF('Generated list'!D8158=\"\",\"\",'Generated list'!D8158)","v":""}]
[null,{"$f":"IF('Generated list'!B8159=\"\",\"\",'Generated list'!B8159)","v":""},{"$f":"IF('Generated list'!C8159=\"\",\"\",'Generated list'!C8159)","v":""},{"$f":"IF('Generated list'!D8159=\"\",\"\",'Generated list'!D8159)","v":""}]
[null,{"$f":"IF('Generated list'!B8160=\"\",\"\",'Generated list'!B8160)","v":""},{"$f":"IF('Generated list'!C8160=\"\",\"\",'Generated list'!C8160)","v":""},{"$f":"IF('Generated list'!D8160=\"\",\"\",'Generated list'!D8160)","v":""}]
[null,{"$f":"IF('Generated list'!B8161=\"\",\"\",'Generated list'!B8161)","v":""},{"$f":"IF('Generated list'!C8161=\"\",\"\",'Generated list'!C8161)","v":""},{"$f":"IF('Generated list'!D8161=\"\",\"\",'Generated list'!D8161)","v":""}]
[null,{"$f":"IF('Generated list'!B8162=\"\",\"\",'Generated list'!B8162)","v":""},{"$f":"IF('Generated list'!C8162=\"\",\"\",'Generated list'!C8162)","v":""},{"$f":"IF('Generated list'!D8162=\"\",\"\",'Generated list'!D8162)","v":""}]
[null,{"$f":"IF('Generated list'!B8163=\"\",\"\",'Generated list'!B8163)","v":""},{"$f":"IF('Generated list'!C8163=\"\",\"\",'Generated list'!C8163)","v":""},{"$f":"IF('Generated list'!D8163=\"\",\"\",'Generated list'!D8163)","v":""}]
[null,{"$f":"IF('Generated list'!B8164=\"\",\"\",'Generated list'!B8164)","v":""},{"$f":"IF('Generated list'!C8164=\"\",\"\",'Generated list'!C8164)","v":""},{"$f":"IF('Generated list'!D8164=\"\",\"\",'Generated list'!D8164)","v":""}]
[null,{"$f":"IF('Generated list'!B8165=\"\",\"\",'Generated list'!B8165)","v":""},{"$f":"IF('Generated list'!C8165=\"\",\"\",'Generated list'!C8165)","v":""},{"$f":"IF('Generated list'!D8165=\"\",\"\",'Generated list'!D8165)","v":""}]
[null,{"$f":"IF('Generated list'!B8166=\"\",\"\",'Generated list'!B8166)","v":""},{"$f":"IF('Generated list'!C8166=\"\",\"\",'Generated list'!C8166)","v":""},{"$f":"IF('Generated list'!D8166=\"\",\"\",'Generated list'!D8166)","v":""}]
[null,{"$f":"IF('Generated list'!B8167=\"\",\"\",'Generated list'!B8167)","v":""},{"$f":"IF('Generated list'!C8167=\"\",\"\",'Generated list'!C8167)","v":""},{"$f":"IF('Generated list'!D8167=\"\",\"\",'Generated list'!D8167)","v":""}]
[null,{"$f":"IF('Generated list'!B8168=\"\",\"\",'Generated list'!B8168)","v":""},{"$f":"IF('Generated list'!C8168=\"\",\"\",'Generated list'!C8168)","v":""},{"$f":"IF('Generated list'!D8168=\"\",\"\",'Generated list'!D8168)","v":""}]
[null,{"$f":"IF('Generated list'!B8169=\"\",\"\",'Generated list'!B8169)","v":""},{"$f":"IF('Generated list'!C8169=\"\",\"\",'Generated list'!C8169)","v":""},{"$f":"IF('Generated list'!D8169=\"\",\"\",'Generated list'!D8169)","v":""}]
[null,{"$f":"IF('Generated list'!B8170=\"\",\"\",'Generated list'!B8170)","v":""},{"$f":"IF('Generated list'!C8170=\"\",\"\",'Generated list'!C8170)","v":""},{"$f":"IF('Generated list'!D8170=\"\",\"\",'Generated list'!D8170)","v":""}]
[null,{"$f":"IF('Generated list'!B8171=\"\",\"\",'Generated list'!B8171)","v":""},{"$f":"IF('Generated list'!C8171=\"\",\"\",'Generated list'!C8171)","v":""},{"$f":"IF('Generated list'!D8171=\"\",\"\",'Generated list'!D8171)","v":""}]
[null,{"$f":"IF('Generated list'!B8172=\"\",\"\",'Generated list'!B8172)","v":""},{"$f":"IF('Generated list'!C8172=\"\",\"\",'Generated list'!C8172)","v":""},{"$f":"IF('Generated list'!D8172=\"\",\"\",'Generated list'!D8172)","v":""}]
[null,{"$f":"IF('Generated list'!B8173=\"\",\"\",'Generated list'!B8173)","v":""},{"$f":"IF('Generated list'!C8173=\"\",\"\",'Generated list'!C8173)","v":""},{"$f":"IF('Generated list'!D8173=\"\",\"\",'Generated list'!D8173)","v":""}]
[null,{"$f":"IF('Generated list'!B8174=\"\",\"\",'Generated list'!B8174)","v":""},{"$f":"IF('Generated list'!C8174=\"\",\"\",'Generated list'!C8174)","v":""},{"$f":"IF('Generated list'!D8174=\"\",\"\",'Generated list'!D8174)","v":""}]
[null,{"$f":"IF('Generated list'!B8175=\"\",\"\",'Generated list'!B8175)","v":""},{"$f":"IF('Generated list'!C8175=\"\",\"\",'Generated list'!C8175)","v":""},{"$f":"IF('Generated list'!D8175=\"\",\"\",'Generated list'!D8175)","v":""}]
[null,{"$f":"IF('Generated list'!B8176=\"\",\"\",'Generated list'!B8176)","v":""},{"$f":"IF('Generated list'!C8176=\"\",\"\",'Generated list'!C8176)","v":""},{"$f":"IF('Generated list'!D8176=\"\",\"\",'Generated list'!D8176)","v":""}]
[null,{"$f":"IF('Generated list'!B8177=\"\",\"\",'Generated list'!B8177)","v":""},{"$f":"IF('Generated list'!C8177=\"\",\"\",'Generated list'!C8177)","v":""},{"$f":"IF('Generated list'!D8177=\"\",\"\",'Generated list'!D8177)","v":""}]
[null,{"$f":"IF('Generated list'!B8178=\"\",\"\",'Generated list'!B8178)","v":""},{"$f":"IF('Generated list'!C8178=\"\",\"\",'Generated list'!C8178)","v":""},{"$f":"IF('Generated list'!D8178=\"\",\"\",'Generated list'!D8178)","v":""}]
[null,{"$f":"IF('Generated list'!B8179=\"\",\"\",'Generated list'!B8179)","v":""},{"$f":"IF('Generated list'!C8179=\"\",\"\",'Generated list'!C8179)","v":""},{"$f":"IF('Generated list'!D8179=\"\",\"\",'Generated list'!D8179)","v":""}]
[null,{"$f":"IF('Generated list'!B8180=\"\",\"\",'Generated list'!B8180)","v":""},{"$f":"IF('Generated list'!C8180=\"\",\"\",'Generated list'!C8180)","v":""},{"$f":"IF('Generated list'!D8180=\"\",\"\",'Generated list'!D8180)","v":""}]
[null,{"$f":"IF('Generated list'!B8181=\"\",\"\",'Generated list'!B8181)","v":""},{"$f":"IF('Generated list'!C8181=\"\",\"\",'Generated list'!C8181)","v":""},{"$f":"IF('Generated list'!D8181=\"\",\"\",'Generated list'!D8181)","v":""}]
[null,{"$f":"IF('Generated list'!B8182=\"\",\"\",'Generated list'!B8182)","v":""},{"$f":"IF('Generated list'!C8182=\"\",\"\",'Generated list'!C8182)","v":""},{"$f":"IF('Generated list'!D8182=\"\",\"\",'Generated list'!D8182)","v":""}]
[null,{"$f":"IF('Generated list'!B8183=\"\",\"\",'Generated list'!B8183)","v":""},{"$f":"IF('Generated list'!C8183=\"\",\"\",'Generated list'!C8183)","v":""},{"$f":"IF('Generated list'!D8183=\"\",\"\",'Generated list'!D8183)","v":""}]
[null,{"$f":"IF('Generated list'!B8184=\"\",\"\",'Generated list'!B8184)","v":""},{"$f":"IF('Generated list'!C8184=\"\",\"\",'Generated list'!C8184)","v":""},{"$f":"IF('Generated list'!D8184=\"\",\"\",'Generated list'!D8184)","v":""}]
[null,{"$f":"IF('Generated list'!B8185=\"\",\"\",'Generated list'!B8185)","v":""},{"$f":"IF('Generated list'!C8185=\"\",\"\",'Generated list'!C8185)","v":""},{"$f":"IF('Generated list'!D8185=\"\",\"\",'Generated list'!D8185)","v":""}]
[null,{"$f":"IF('Generated list'!B8186=\"\",\"\",'Generated list'!B8186)","v":""},{"$f":"IF('Generated list'!C8186=\"\",\"\",'Generated list'!C8186)","v":""},{"$f":"IF('Generated list'!D8186=\"\",\"\",'Generated list'!D8186)","v":""}]
[null,{"$f":"IF('Generated list'!B8187=\"\",\"\",'Generated list'!B8187)","v":""},{"$f":"IF('Generated list'!C8187=\"\",\"\",'Generated list'!C8187)","v":""},{"$f":"IF('Generated list'!D8187=\"\",\"\",'Generated list'!D8187)","v":""}]
[null,{"$f":"IF('Generated list'!B8188=\"\",\"\",'Generated list'!B8188)","v":""},{"$f":"IF('Generated list'!C8188=\"\",\"\",'Generated list'!C8188)","v":""},{"$f":"IF('Generated list'!D8188=\"\",\"\",'Generated list'!D8188)","v":""}]
[null,{"$f":"IF('Generated list'!B8189=\"\",\"\",'Generated list'!B8189)","v":""},{"$f":"IF('Generated list'!C8189=\"\",\"\",'Generated list'!C8189)","v":""},{"$f":"IF('Generated list'!D8189=\"\",\"\",'Generated list'!D8189)","v":""}]
[null,{"$f":"IF('Generated list'!B8190=\"\",\"\",'Generated list'!B8190)","v":""},{"$f":"IF('Generated list'!C8190=\"\",\"\",'Generated list'!C8190)","v":""},{"$f":"IF('Generated list'!D8190=\"\",\"\",'Generated list'!D8190)","v":""}]
[null,{"$f":"IF('Generated list'!B8191=\"\",\"\",'Generated list'!B8191)","v":""},{"$f":"IF('Generated list'!C8191=\"\",\"\",'Generated list'!C8191)","v":""},{"$f":"IF('Generated list'!D8191=\"\",\"\",'Generated list'!D8191)","v":""}]
[null,{"$f":"IF('Generated list'!B8192=\"\",\"\",'Generated list'!B8192)","v":""},{"$f":"IF('Generated list'!C8192=\"\",\"\",'Generated list'!C8192)","v":""},{"$f":"IF('Generated list'!D8192=\"\",\"\",'Generated list'!D8192)","v":""}]
[null,{"$f":"IF('Generated list'!B8193=\"\",\"\",'Generated list'!B8193)","v":""},{"$f":"IF('Generated list'!C8193=\"\",\"\",'Generated list'!C8193)","v":""},{"$f":"IF('Generated list'!D8193=\"\",\"\",'Generated list'!D8193)","v":""}]
[null,{"$f":"IF('Generated list'!B8194=\"\",\"\",'Generated list'!B8194)","v":""},{"$f":"IF('Generated list'!C8194=\"\",\"\",'Generated list'!C8194)","v":""},{"$f":"IF('Generated list'!D8194=\"\",\"\",'Generated list'!D8194)","v":""}]
[null,{"$f":"IF('Generated list'!B8195=\"\",\"\",'Generated list'!B8195)","v":""},{"$f":"IF('Generated list'!C8195=\"\",\"\",'Generated list'!C8195)","v":""},{"$f":"IF('Generated list'!D8195=\"\",\"\",'Generated list'!D8195)","v":""}]
[null,{"$f":"IF('Generated list'!B8196=\"\",\"\",'Generated list'!B8196)","v":""},{"$f":"IF('Generated list'!C8196=\"\",\"\",'Generated list'!C8196)","v":""},{"$f":"IF('Generated list'!D8196=\"\",\"\",'Generated list'!D8196)","v":""}]
[null,{"$f":"IF('Generated list'!B8197=\"\",\"\",'Generated list'!B8197)","v":""},{"$f":"IF('Generated list'!C8197=\"\",\"\",'Generated list'!C8197)","v":""},{"$f":"IF('Generated list'!D8197=\"\",\"\",'Generated list'!D8197)","v":""}]
[null,{"$f":"IF('Generated list'!B8198=\"\",\"\",'Generated list'!B8198)","v":""},{"$f":"IF('Generated list'!C8198=\"\",\"\",'Generated list'!C8198)","v":""},{"$f":"IF('Generated list'!D8198=\"\",\"\",'Generated list'!D8198)","v":""}]
[null,{"$f":"IF('Generated list'!B8199=\"\",\"\",'Generated list'!B8199)","v":""},{"$f":"IF('Generated list'!C8199=\"\",\"\",'Generated list'!C8199)","v":""},{"$f":"IF('Generated list'!D8199=\"\",\"\",'Generated list'!D8199)","v":""}]
[null,{"$f":"IF('Generated list'!B8200=\"\",\"\",'Generated list'!B8200)","v":""},{"$f":"IF('Generated list'!C8200=\"\",\"\",'Generated list'!C8200)","v":""},{"$f":"IF('Generated list'!D8200=\"\",\"\",'Generated list'!D8200)","v":""}]
[null,{"$f":"IF('Generated list'!B8201=\"\",\"\",'Generated list'!B8201)","v":""},{"$f":"IF('Generated list'!C8201=\"\",\"\",'Generated list'!C8201)","v":""},{"$f":"IF('Generated list'!D8201=\"\",\"\",'Generated list'!D8201)","v":""}]
[null,{"$f":"IF('Generated list'!B8202=\"\",\"\",'Generated list'!B8202)","v":""},{"$f":"IF('Generated list'!C8202=\"\",\"\",'Generated list'!C8202)","v":""},{"$f":"IF('Generated list'!D8202=\"\",\"\",'Generated list'!D8202)","v":""}]
[null,{"$f":"IF('Generated list'!B8203=\"\",\"\",'Generated list'!B8203)","v":""},{"$f":"IF('Generated list'!C8203=\"\",\"\",'Generated list'!C8203)","v":""},{"$f":"IF('Generated list'!D8203=\"\",\"\",'Generated list'!D8203)","v":""}]
[null,{"$f":"IF('Generated list'!B8204=\"\",\"\",'Generated list'!B8204)","v":""},{"$f":"IF('Generated list'!C8204=\"\",\"\",'Generated list'!C8204)","v":""},{"$f":"IF('Generated list'!D8204=\"\",\"\",'Generated list'!D8204)","v":""}]
[null,{"$f":"IF('Generated list'!B8205=\"\",\"\",'Generated list'!B8205)","v":""},{"$f":"IF('Generated list'!C8205=\"\",\"\",'Generated list'!C8205)","v":""},{"$f":"IF('Generated list'!D8205=\"\",\"\",'Generated list'!D8205)","v":""}]
[null,{"$f":"IF('Generated list'!B8206=\"\",\"\",'Generated list'!B8206)","v":""},{"$f":"IF('Generated list'!C8206=\"\",\"\",'Generated list'!C8206)","v":""},{"$f":"IF('Generated list'!D8206=\"\",\"\",'Generated list'!D8206)","v":""}]
[null,{"$f":"IF('Generated list'!B8207=\"\",\"\",'Generated list'!B8207)","v":""},{"$f":"IF('Generated list'!C8207=\"\",\"\",'Generated list'!C8207)","v":""},{"$f":"IF('Generated list'!D8207=\"\",\"\",'Generated list'!D8207)","v":""}]
[null,{"$f":"IF('Generated list'!B8208=\"\",\"\",'Generated list'!B8208)","v":""},{"$f":"IF('Generated list'!C8208=\"\",\"\",'Generated list'!C8208)","v":""},{"$f":"IF('Generated list'!D8208=\"\",\"\",'Generated list'!D8208)","v":""}]
[null,{"$f":"IF('Generated list'!B8209=\"\",\"\",'Generated list'!B8209)","v":""},{"$f":"IF('Generated list'!C8209=\"\",\"\",'Generated list'!C8209)","v":""},{"$f":"IF('Generated list'!D8209=\"\",\"\",'Generated list'!D8209)","v":""}]
[null,{"$f":"IF('Generated list'!B8210=\"\",\"\",'Generated list'!B8210)","v":""},{"$f":"IF('Generated list'!C8210=\"\",\"\",'Generated list'!C8210)","v":""},{"$f":"IF('Generated list'!D8210=\"\",\"\",'Generated list'!D8210)","v":""}]
[null,{"$f":"IF('Generated list'!B8211=\"\",\"\",'Generated list'!B8211)","v":""},{"$f":"IF('Generated list'!C8211=\"\",\"\",'Generated list'!C8211)","v":""},{"$f":"IF('Generated list'!D8211=\"\",\"\",'Generated list'!D8211)","v":""}]
[null,{"$f":"IF('Generated list'!B8212=\"\",\"\",'Generated list'!B8212)","v":""},{"$f":"IF('Generated list'!C8212=\"\",\"\",'Generated list'!C8212)","v":""},{"$f":"IF('Generated list'!D8212=\"\",\"\",'Generated list'!D8212)","v":""}]
[null,{"$f":"IF('Generated list'!B8213=\"\",\"\",'Generated list'!B8213)","v":""},{"$f":"IF('Generated list'!C8213=\"\",\"\",'Generated list'!C8213)","v":""},{"$f":"IF('Generated list'!D8213=\"\",\"\",'Generated list'!D8213)","v":""}]
[null,{"$f":"IF('Generated list'!B8214=\"\",\"\",'Generated list'!B8214)","v":""},{"$f":"IF('Generated list'!C8214=\"\",\"\",'Generated list'!C8214)","v":""},{"$f":"IF('Generated list'!D8214=\"\",\"\",'Generated list'!D8214)","v":""}]
[null,{"$f":"IF('Generated list'!B8215=\"\",\"\",'Generated list'!B8215)","v":""},{"$f":"IF('Generated list'!C8215=\"\",\"\",'Generated list'!C8215)","v":""},{"$f":"IF('Generated list'!D8215=\"\",\"\",'Generated list'!D8215)","v":""}]
[null,{"$f":"IF('Generated list'!B8216=\"\",\"\",'Generated list'!B8216)","v":""},{"$f":"IF('Generated list'!C8216=\"\",\"\",'Generated list'!C8216)","v":""},{"$f":"IF('Generated list'!D8216=\"\",\"\",'Generated list'!D8216)","v":""}]
[null,{"$f":"IF('Generated list'!B8217=\"\",\"\",'Generated list'!B8217)","v":""},{"$f":"IF('Generated list'!C8217=\"\",\"\",'Generated list'!C8217)","v":""},{"$f":"IF('Generated list'!D8217=\"\",\"\",'Generated list'!D8217)","v":""}]
[null,{"$f":"IF('Generated list'!B8218=\"\",\"\",'Generated list'!B8218)","v":""},{"$f":"IF('Generated list'!C8218=\"\",\"\",'Generated list'!C8218)","v":""},{"$f":"IF('Generated list'!D8218=\"\",\"\",'Generated list'!D8218)","v":""}]
[null,{"$f":"IF('Generated list'!B8219=\"\",\"\",'Generated list'!B8219)","v":""},{"$f":"IF('Generated list'!C8219=\"\",\"\",'Generated list'!C8219)","v":""},{"$f":"IF('Generated list'!D8219=\"\",\"\",'Generated list'!D8219)","v":""}]
[null,{"$f":"IF('Generated list'!B8220=\"\",\"\",'Generated list'!B8220)","v":""},{"$f":"IF('Generated list'!C8220=\"\",\"\",'Generated list'!C8220)","v":""},{"$f":"IF('Generated list'!D8220=\"\",\"\",'Generated list'!D8220)","v":""}]
[null,{"$f":"IF('Generated list'!B8221=\"\",\"\",'Generated list'!B8221)","v":""},{"$f":"IF('Generated list'!C8221=\"\",\"\",'Generated list'!C8221)","v":""},{"$f":"IF('Generated list'!D8221=\"\",\"\",'Generated list'!D8221)","v":""}]
[null,{"$f":"IF('Generated list'!B8222=\"\",\"\",'Generated list'!B8222)","v":""},{"$f":"IF('Generated list'!C8222=\"\",\"\",'Generated list'!C8222)","v":""},{"$f":"IF('Generated list'!D8222=\"\",\"\",'Generated list'!D8222)","v":""}]
[null,{"$f":"IF('Generated list'!B8223=\"\",\"\",'Generated list'!B8223)","v":""},{"$f":"IF('Generated list'!C8223=\"\",\"\",'Generated list'!C8223)","v":""},{"$f":"IF('Generated list'!D8223=\"\",\"\",'Generated list'!D8223)","v":""}]
[null,{"$f":"IF('Generated list'!B8224=\"\",\"\",'Generated list'!B8224)","v":""},{"$f":"IF('Generated list'!C8224=\"\",\"\",'Generated list'!C8224)","v":""},{"$f":"IF('Generated list'!D8224=\"\",\"\",'Generated list'!D8224)","v":""}]
[null,{"$f":"IF('Generated list'!B8225=\"\",\"\",'Generated list'!B8225)","v":""},{"$f":"IF('Generated list'!C8225=\"\",\"\",'Generated list'!C8225)","v":""},{"$f":"IF('Generated list'!D8225=\"\",\"\",'Generated list'!D8225)","v":""}]
[null,{"$f":"IF('Generated list'!B8226=\"\",\"\",'Generated list'!B8226)","v":""},{"$f":"IF('Generated list'!C8226=\"\",\"\",'Generated list'!C8226)","v":""},{"$f":"IF('Generated list'!D8226=\"\",\"\",'Generated list'!D8226)","v":""}]
[null,{"$f":"IF('Generated list'!B8227=\"\",\"\",'Generated list'!B8227)","v":""},{"$f":"IF('Generated list'!C8227=\"\",\"\",'Generated list'!C8227)","v":""},{"$f":"IF('Generated list'!D8227=\"\",\"\",'Generated list'!D8227)","v":""}]
[null,{"$f":"IF('Generated list'!B8228=\"\",\"\",'Generated list'!B8228)","v":""},{"$f":"IF('Generated list'!C8228=\"\",\"\",'Generated list'!C8228)","v":""},{"$f":"IF('Generated list'!D8228=\"\",\"\",'Generated list'!D8228)","v":""}]
[null,{"$f":"IF('Generated list'!B8229=\"\",\"\",'Generated list'!B8229)","v":""},{"$f":"IF('Generated list'!C8229=\"\",\"\",'Generated list'!C8229)","v":""},{"$f":"IF('Generated list'!D8229=\"\",\"\",'Generated list'!D8229)","v":""}]
[null,{"$f":"IF('Generated list'!B8230=\"\",\"\",'Generated list'!B8230)","v":""},{"$f":"IF('Generated list'!C8230=\"\",\"\",'Generated list'!C8230)","v":""},{"$f":"IF('Generated list'!D8230=\"\",\"\",'Generated list'!D8230)","v":""}]
[null,{"$f":"IF('Generated list'!B8231=\"\",\"\",'Generated list'!B8231)","v":""},{"$f":"IF('Generated list'!C8231=\"\",\"\",'Generated list'!C8231)","v":""},{"$f":"IF('Generated list'!D8231=\"\",\"\",'Generated list'!D8231)","v":""}]
[null,{"$f":"IF('Generated list'!B8232=\"\",\"\",'Generated list'!B8232)","v":""},{"$f":"IF('Generated list'!C8232=\"\",\"\",'Generated list'!C8232)","v":""},{"$f":"IF('Generated list'!D8232=\"\",\"\",'Generated list'!D8232)","v":""}]
[null,{"$f":"IF('Generated list'!B8233=\"\",\"\",'Generated list'!B8233)","v":""},{"$f":"IF('Generated list'!C8233=\"\",\"\",'Generated list'!C8233)","v":""},{"$f":"IF('Generated list'!D8233=\"\",\"\",'Generated list'!D8233)","v":""}]
[null,{"$f":"IF('Generated list'!B8234=\"\",\"\",'Generated list'!B8234)","v":""},{"$f":"IF('Generated list'!C8234=\"\",\"\",'Generated list'!C8234)","v":""},{"$f":"IF('Generated list'!D8234=\"\",\"\",'Generated list'!D8234)","v":""}]
[null,{"$f":"IF('Generated list'!B8235=\"\",\"\",'Generated list'!B8235)","v":""},{"$f":"IF('Generated list'!C8235=\"\",\"\",'Generated list'!C8235)","v":""},{"$f":"IF('Generated list'!D8235=\"\",\"\",'Generated list'!D8235)","v":""}]
[null,{"$f":"IF('Generated list'!B8236=\"\",\"\",'Generated list'!B8236)","v":""},{"$f":"IF('Generated list'!C8236=\"\",\"\",'Generated list'!C8236)","v":""},{"$f":"IF('Generated list'!D8236=\"\",\"\",'Generated list'!D8236)","v":""}]
[null,{"$f":"IF('Generated list'!B8237=\"\",\"\",'Generated list'!B8237)","v":""},{"$f":"IF('Generated list'!C8237=\"\",\"\",'Generated list'!C8237)","v":""},{"$f":"IF('Generated list'!D8237=\"\",\"\",'Generated list'!D8237)","v":""}]
[null,{"$f":"IF('Generated list'!B8238=\"\",\"\",'Generated list'!B8238)","v":""},{"$f":"IF('Generated list'!C8238=\"\",\"\",'Generated list'!C8238)","v":""},{"$f":"IF('Generated list'!D8238=\"\",\"\",'Generated list'!D8238)","v":""}]
[null,{"$f":"IF('Generated list'!B8239=\"\",\"\",'Generated list'!B8239)","v":""},{"$f":"IF('Generated list'!C8239=\"\",\"\",'Generated list'!C8239)","v":""},{"$f":"IF('Generated list'!D8239=\"\",\"\",'Generated list'!D8239)","v":""}]
[null,{"$f":"IF('Generated list'!B8240=\"\",\"\",'Generated list'!B8240)","v":""},{"$f":"IF('Generated list'!C8240=\"\",\"\",'Generated list'!C8240)","v":""},{"$f":"IF('Generated list'!D8240=\"\",\"\",'Generated list'!D8240)","v":""}]
[null,{"$f":"IF('Generated list'!B8241=\"\",\"\",'Generated list'!B8241)","v":""},{"$f":"IF('Generated list'!C8241=\"\",\"\",'Generated list'!C8241)","v":""},{"$f":"IF('Generated list'!D8241=\"\",\"\",'Generated list'!D8241)","v":""}]
[null,{"$f":"IF('Generated list'!B8242=\"\",\"\",'Generated list'!B8242)","v":""},{"$f":"IF('Generated list'!C8242=\"\",\"\",'Generated list'!C8242)","v":""},{"$f":"IF('Generated list'!D8242=\"\",\"\",'Generated list'!D8242)","v":""}]
[null,{"$f":"IF('Generated list'!B8243=\"\",\"\",'Generated list'!B8243)","v":""},{"$f":"IF('Generated list'!C8243=\"\",\"\",'Generated list'!C8243)","v":""},{"$f":"IF('Generated list'!D8243=\"\",\"\",'Generated list'!D8243)","v":""}]
[null,{"$f":"IF('Generated list'!B8244=\"\",\"\",'Generated list'!B8244)","v":""},{"$f":"IF('Generated list'!C8244=\"\",\"\",'Generated list'!C8244)","v":""},{"$f":"IF('Generated list'!D8244=\"\",\"\",'Generated list'!D8244)","v":""}]
[null,{"$f":"IF('Generated list'!B8245=\"\",\"\",'Generated list'!B8245)","v":""},{"$f":"IF('Generated list'!C8245=\"\",\"\",'Generated list'!C8245)","v":""},{"$f":"IF('Generated list'!D8245=\"\",\"\",'Generated list'!D8245)","v":""}]
[null,{"$f":"IF('Generated list'!B8246=\"\",\"\",'Generated list'!B8246)","v":""},{"$f":"IF('Generated list'!C8246=\"\",\"\",'Generated list'!C8246)","v":""},{"$f":"IF('Generated list'!D8246=\"\",\"\",'Generated list'!D8246)","v":""}]
[null,{"$f":"IF('Generated list'!B8247=\"\",\"\",'Generated list'!B8247)","v":""},{"$f":"IF('Generated list'!C8247=\"\",\"\",'Generated list'!C8247)","v":""},{"$f":"IF('Generated list'!D8247=\"\",\"\",'Generated list'!D8247)","v":""}]
[null,{"$f":"IF('Generated list'!B8248=\"\",\"\",'Generated list'!B8248)","v":""},{"$f":"IF('Generated list'!C8248=\"\",\"\",'Generated list'!C8248)","v":""},{"$f":"IF('Generated list'!D8248=\"\",\"\",'Generated list'!D8248)","v":""}]
[null,{"$f":"IF('Generated list'!B8249=\"\",\"\",'Generated list'!B8249)","v":""},{"$f":"IF('Generated list'!C8249=\"\",\"\",'Generated list'!C8249)","v":""},{"$f":"IF('Generated list'!D8249=\"\",\"\",'Generated list'!D8249)","v":""}]
[null,{"$f":"IF('Generated list'!B8250=\"\",\"\",'Generated list'!B8250)","v":""},{"$f":"IF('Generated list'!C8250=\"\",\"\",'Generated list'!C8250)","v":""},{"$f":"IF('Generated list'!D8250=\"\",\"\",'Generated list'!D8250)","v":""}]
[null,{"$f":"IF('Generated list'!B8251=\"\",\"\",'Generated list'!B8251)","v":""},{"$f":"IF('Generated list'!C8251=\"\",\"\",'Generated list'!C8251)","v":""},{"$f":"IF('Generated list'!D8251=\"\",\"\",'Generated list'!D8251)","v":""}]
[null,{"$f":"IF('Generated list'!B8252=\"\",\"\",'Generated list'!B8252)","v":""},{"$f":"IF('Generated list'!C8252=\"\",\"\",'Generated list'!C8252)","v":""},{"$f":"IF('Generated list'!D8252=\"\",\"\",'Generated list'!D8252)","v":""}]
[null,{"$f":"IF('Generated list'!B8253=\"\",\"\",'Generated list'!B8253)","v":""},{"$f":"IF('Generated list'!C8253=\"\",\"\",'Generated list'!C8253)","v":""},{"$f":"IF('Generated list'!D8253=\"\",\"\",'Generated list'!D8253)","v":""}]
[null,{"$f":"IF('Generated list'!B8254=\"\",\"\",'Generated list'!B8254)","v":""},{"$f":"IF('Generated list'!C8254=\"\",\"\",'Generated list'!C8254)","v":""},{"$f":"IF('Generated list'!D8254=\"\",\"\",'Generated list'!D8254)","v":""}]
[null,{"$f":"IF('Generated list'!B8255=\"\",\"\",'Generated list'!B8255)","v":""},{"$f":"IF('Generated list'!C8255=\"\",\"\",'Generated list'!C8255)","v":""},{"$f":"IF('Generated list'!D8255=\"\",\"\",'Generated list'!D8255)","v":""}]
[null,{"$f":"IF('Generated list'!B8256=\"\",\"\",'Generated list'!B8256)","v":""},{"$f":"IF('Generated list'!C8256=\"\",\"\",'Generated list'!C8256)","v":""},{"$f":"IF('Generated list'!D8256=\"\",\"\",'Generated list'!D8256)","v":""}]
[null,{"$f":"IF('Generated list'!B8257=\"\",\"\",'Generated list'!B8257)","v":""},{"$f":"IF('Generated list'!C8257=\"\",\"\",'Generated list'!C8257)","v":""},{"$f":"IF('Generated list'!D8257=\"\",\"\",'Generated list'!D8257)","v":""}]
[null,{"$f":"IF('Generated list'!B8258=\"\",\"\",'Generated list'!B8258)","v":""},{"$f":"IF('Generated list'!C8258=\"\",\"\",'Generated list'!C8258)","v":""},{"$f":"IF('Generated list'!D8258=\"\",\"\",'Generated list'!D8258)","v":""}]
[null,{"$f":"IF('Generated list'!B8259=\"\",\"\",'Generated list'!B8259)","v":""},{"$f":"IF('Generated list'!C8259=\"\",\"\",'Generated list'!C8259)","v":""},{"$f":"IF('Generated list'!D8259=\"\",\"\",'Generated list'!D8259)","v":""}]
[null,{"$f":"IF('Generated list'!B8260=\"\",\"\",'Generated list'!B8260)","v":""},{"$f":"IF('Generated list'!C8260=\"\",\"\",'Generated list'!C8260)","v":""},{"$f":"IF('Generated list'!D8260=\"\",\"\",'Generated list'!D8260)","v":""}]
[null,{"$f":"IF('Generated list'!B8261=\"\",\"\",'Generated list'!B8261)","v":""},{"$f":"IF('Generated list'!C8261=\"\",\"\",'Generated list'!C8261)","v":""},{"$f":"IF('Generated list'!D8261=\"\",\"\",'Generated list'!D8261)","v":""}]
[null,{"$f":"IF('Generated list'!B8262=\"\",\"\",'Generated list'!B8262)","v":""},{"$f":"IF('Generated list'!C8262=\"\",\"\",'Generated list'!C8262)","v":""},{"$f":"IF('Generated list'!D8262=\"\",\"\",'Generated list'!D8262)","v":""}]
[null,{"$f":"IF('Generated list'!B8263=\"\",\"\",'Generated list'!B8263)","v":""},{"$f":"IF('Generated list'!C8263=\"\",\"\",'Generated list'!C8263)","v":""},{"$f":"IF('Generated list'!D8263=\"\",\"\",'Generated list'!D8263)","v":""}]
[null,{"$f":"IF('Generated list'!B8264=\"\",\"\",'Generated list'!B8264)","v":""},{"$f":"IF('Generated list'!C8264=\"\",\"\",'Generated list'!C8264)","v":""},{"$f":"IF('Generated list'!D8264=\"\",\"\",'Generated list'!D8264)","v":""}]
[null,{"$f":"IF('Generated list'!B8265=\"\",\"\",'Generated list'!B8265)","v":""},{"$f":"IF('Generated list'!C8265=\"\",\"\",'Generated list'!C8265)","v":""},{"$f":"IF('Generated list'!D8265=\"\",\"\",'Generated list'!D8265)","v":""}]
[null,{"$f":"IF('Generated list'!B8266=\"\",\"\",'Generated list'!B8266)","v":""},{"$f":"IF('Generated list'!C8266=\"\",\"\",'Generated list'!C8266)","v":""},{"$f":"IF('Generated list'!D8266=\"\",\"\",'Generated list'!D8266)","v":""}]
[null,{"$f":"IF('Generated list'!B8267=\"\",\"\",'Generated list'!B8267)","v":""},{"$f":"IF('Generated list'!C8267=\"\",\"\",'Generated list'!C8267)","v":""},{"$f":"IF('Generated list'!D8267=\"\",\"\",'Generated list'!D8267)","v":""}]
[null,{"$f":"IF('Generated list'!B8268=\"\",\"\",'Generated list'!B8268)","v":""},{"$f":"IF('Generated list'!C8268=\"\",\"\",'Generated list'!C8268)","v":""},{"$f":"IF('Generated list'!D8268=\"\",\"\",'Generated list'!D8268)","v":""}]
[null,{"$f":"IF('Generated list'!B8269=\"\",\"\",'Generated list'!B8269)","v":""},{"$f":"IF('Generated list'!C8269=\"\",\"\",'Generated list'!C8269)","v":""},{"$f":"IF('Generated list'!D8269=\"\",\"\",'Generated list'!D8269)","v":""}]
[null,{"$f":"IF('Generated list'!B8270=\"\",\"\",'Generated list'!B8270)","v":""},{"$f":"IF('Generated list'!C8270=\"\",\"\",'Generated list'!C8270)","v":""},{"$f":"IF('Generated list'!D8270=\"\",\"\",'Generated list'!D8270)","v":""}]
[null,{"$f":"IF('Generated list'!B8271=\"\",\"\",'Generated list'!B8271)","v":""},{"$f":"IF('Generated list'!C8271=\"\",\"\",'Generated list'!C8271)","v":""},{"$f":"IF('Generated list'!D8271=\"\",\"\",'Generated list'!D8271)","v":""}]
[null,{"$f":"IF('Generated list'!B8272=\"\",\"\",'Generated list'!B8272)","v":""},{"$f":"IF('Generated list'!C8272=\"\",\"\",'Generated list'!C8272)","v":""},{"$f":"IF('Generated list'!D8272=\"\",\"\",'Generated list'!D8272)","v":""}]
[null,{"$f":"IF('Generated list'!B8273=\"\",\"\",'Generated list'!B8273)","v":""},{"$f":"IF('Generated list'!C8273=\"\",\"\",'Generated list'!C8273)","v":""},{"$f":"IF('Generated list'!D8273=\"\",\"\",'Generated list'!D8273)","v":""}]
[null,{"$f":"IF('Generated list'!B8274=\"\",\"\",'Generated list'!B8274)","v":""},{"$f":"IF('Generated list'!C8274=\"\",\"\",'Generated list'!C8274)","v":""},{"$f":"IF('Generated list'!D8274=\"\",\"\",'Generated list'!D8274)","v":""}]
[null,{"$f":"IF('Generated list'!B8275=\"\",\"\",'Generated list'!B8275)","v":""},{"$f":"IF('Generated list'!C8275=\"\",\"\",'Generated list'!C8275)","v":""},{"$f":"IF('Generated list'!D8275=\"\",\"\",'Generated list'!D8275)","v":""}]
[null,{"$f":"IF('Generated list'!B8276=\"\",\"\",'Generated list'!B8276)","v":""},{"$f":"IF('Generated list'!C8276=\"\",\"\",'Generated list'!C8276)","v":""},{"$f":"IF('Generated list'!D8276=\"\",\"\",'Generated list'!D8276)","v":""}]
[null,{"$f":"IF('Generated list'!B8277=\"\",\"\",'Generated list'!B8277)","v":""},{"$f":"IF('Generated list'!C8277=\"\",\"\",'Generated list'!C8277)","v":""},{"$f":"IF('Generated list'!D8277=\"\",\"\",'Generated list'!D8277)","v":""}]
[null,{"$f":"IF('Generated list'!B8278=\"\",\"\",'Generated list'!B8278)","v":""},{"$f":"IF('Generated list'!C8278=\"\",\"\",'Generated list'!C8278)","v":""},{"$f":"IF('Generated list'!D8278=\"\",\"\",'Generated list'!D8278)","v":""}]
[null,{"$f":"IF('Generated list'!B8279=\"\",\"\",'Generated list'!B8279)","v":""},{"$f":"IF('Generated list'!C8279=\"\",\"\",'Generated list'!C8279)","v":""},{"$f":"IF('Generated list'!D8279=\"\",\"\",'Generated list'!D8279)","v":""}]
[null,{"$f":"IF('Generated list'!B8280=\"\",\"\",'Generated list'!B8280)","v":""},{"$f":"IF('Generated list'!C8280=\"\",\"\",'Generated list'!C8280)","v":""},{"$f":"IF('Generated list'!D8280=\"\",\"\",'Generated list'!D8280)","v":""}]
[null,{"$f":"IF('Generated list'!B8281=\"\",\"\",'Generated list'!B8281)","v":""},{"$f":"IF('Generated list'!C8281=\"\",\"\",'Generated list'!C8281)","v":""},{"$f":"IF('Generated list'!D8281=\"\",\"\",'Generated list'!D8281)","v":""}]
[null,{"$f":"IF('Generated list'!B8282=\"\",\"\",'Generated list'!B8282)","v":""},{"$f":"IF('Generated list'!C8282=\"\",\"\",'Generated list'!C8282)","v":""},{"$f":"IF('Generated list'!D8282=\"\",\"\",'Generated list'!D8282)","v":""}]
[null,{"$f":"IF('Generated list'!B8283=\"\",\"\",'Generated list'!B8283)","v":""},{"$f":"IF('Generated list'!C8283=\"\",\"\",'Generated list'!C8283)","v":""},{"$f":"IF('Generated list'!D8283=\"\",\"\",'Generated list'!D8283)","v":""}]
[null,{"$f":"IF('Generated list'!B8284=\"\",\"\",'Generated list'!B8284)","v":""},{"$f":"IF('Generated list'!C8284=\"\",\"\",'Generated list'!C8284)","v":""},{"$f":"IF('Generated list'!D8284=\"\",\"\",'Generated list'!D8284)","v":""}]
[null,{"$f":"IF('Generated list'!B8285=\"\",\"\",'Generated list'!B8285)","v":""},{"$f":"IF('Generated list'!C8285=\"\",\"\",'Generated list'!C8285)","v":""},{"$f":"IF('Generated list'!D8285=\"\",\"\",'Generated list'!D8285)","v":""}]
[null,{"$f":"IF('Generated list'!B8286=\"\",\"\",'Generated list'!B8286)","v":""},{"$f":"IF('Generated list'!C8286=\"\",\"\",'Generated list'!C8286)","v":""},{"$f":"IF('Generated list'!D8286=\"\",\"\",'Generated list'!D8286)","v":""}]
[null,{"$f":"IF('Generated list'!B8287=\"\",\"\",'Generated list'!B8287)","v":""},{"$f":"IF('Generated list'!C8287=\"\",\"\",'Generated list'!C8287)","v":""},{"$f":"IF('Generated list'!D8287=\"\",\"\",'Generated list'!D8287)","v":""}]
[null,{"$f":"IF('Generated list'!B8288=\"\",\"\",'Generated list'!B8288)","v":""},{"$f":"IF('Generated list'!C8288=\"\",\"\",'Generated list'!C8288)","v":""},{"$f":"IF('Generated list'!D8288=\"\",\"\",'Generated list'!D8288)","v":""}]
[null,{"$f":"IF('Generated list'!B8289=\"\",\"\",'Generated list'!B8289)","v":""},{"$f":"IF('Generated list'!C8289=\"\",\"\",'Generated list'!C8289)","v":""},{"$f":"IF('Generated list'!D8289=\"\",\"\",'Generated list'!D8289)","v":""}]
[null,{"$f":"IF('Generated list'!B8290=\"\",\"\",'Generated list'!B8290)","v":""},{"$f":"IF('Generated list'!C8290=\"\",\"\",'Generated list'!C8290)","v":""},{"$f":"IF('Generated list'!D8290=\"\",\"\",'Generated list'!D8290)","v":""}]
[null,{"$f":"IF('Generated list'!B8291=\"\",\"\",'Generated list'!B8291)","v":""},{"$f":"IF('Generated list'!C8291=\"\",\"\",'Generated list'!C8291)","v":""},{"$f":"IF('Generated list'!D8291=\"\",\"\",'Generated list'!D8291)","v":""}]
[null,{"$f":"IF('Generated list'!B8292=\"\",\"\",'Generated list'!B8292)","v":""},{"$f":"IF('Generated list'!C8292=\"\",\"\",'Generated list'!C8292)","v":""},{"$f":"IF('Generated list'!D8292=\"\",\"\",'Generated list'!D8292)","v":""}]
[null,{"$f":"IF('Generated list'!B8293=\"\",\"\",'Generated list'!B8293)","v":""},{"$f":"IF('Generated list'!C8293=\"\",\"\",'Generated list'!C8293)","v":""},{"$f":"IF('Generated list'!D8293=\"\",\"\",'Generated list'!D8293)","v":""}]
[null,{"$f":"IF('Generated list'!B8294=\"\",\"\",'Generated list'!B8294)","v":""},{"$f":"IF('Generated list'!C8294=\"\",\"\",'Generated list'!C8294)","v":""},{"$f":"IF('Generated list'!D8294=\"\",\"\",'Generated list'!D8294)","v":""}]
[null,{"$f":"IF('Generated list'!B8295=\"\",\"\",'Generated list'!B8295)","v":""},{"$f":"IF('Generated list'!C8295=\"\",\"\",'Generated list'!C8295)","v":""},{"$f":"IF('Generated list'!D8295=\"\",\"\",'Generated list'!D8295)","v":""}]
[null,{"$f":"IF('Generated list'!B8296=\"\",\"\",'Generated list'!B8296)","v":""},{"$f":"IF('Generated list'!C8296=\"\",\"\",'Generated list'!C8296)","v":""},{"$f":"IF('Generated list'!D8296=\"\",\"\",'Generated list'!D8296)","v":""}]
[null,{"$f":"IF('Generated list'!B8297=\"\",\"\",'Generated list'!B8297)","v":""},{"$f":"IF('Generated list'!C8297=\"\",\"\",'Generated list'!C8297)","v":""},{"$f":"IF('Generated list'!D8297=\"\",\"\",'Generated list'!D8297)","v":""}]
[null,{"$f":"IF('Generated list'!B8298=\"\",\"\",'Generated list'!B8298)","v":""},{"$f":"IF('Generated list'!C8298=\"\",\"\",'Generated list'!C8298)","v":""},{"$f":"IF('Generated list'!D8298=\"\",\"\",'Generated list'!D8298)","v":""}]
[null,{"$f":"IF('Generated list'!B8299=\"\",\"\",'Generated list'!B8299)","v":""},{"$f":"IF('Generated list'!C8299=\"\",\"\",'Generated list'!C8299)","v":""},{"$f":"IF('Generated list'!D8299=\"\",\"\",'Generated list'!D8299)","v":""}]
[null,{"$f":"IF('Generated list'!B8300=\"\",\"\",'Generated list'!B8300)","v":""},{"$f":"IF('Generated list'!C8300=\"\",\"\",'Generated list'!C8300)","v":""},{"$f":"IF('Generated list'!D8300=\"\",\"\",'Generated list'!D8300)","v":""}]
[null,{"$f":"IF('Generated list'!B8301=\"\",\"\",'Generated list'!B8301)","v":""},{"$f":"IF('Generated list'!C8301=\"\",\"\",'Generated list'!C8301)","v":""},{"$f":"IF('Generated list'!D8301=\"\",\"\",'Generated list'!D8301)","v":""}]
[null,{"$f":"IF('Generated list'!B8302=\"\",\"\",'Generated list'!B8302)","v":""},{"$f":"IF('Generated list'!C8302=\"\",\"\",'Generated list'!C8302)","v":""},{"$f":"IF('Generated list'!D8302=\"\",\"\",'Generated list'!D8302)","v":""}]
[null,{"$f":"IF('Generated list'!B8303=\"\",\"\",'Generated list'!B8303)","v":""},{"$f":"IF('Generated list'!C8303=\"\",\"\",'Generated list'!C8303)","v":""},{"$f":"IF('Generated list'!D8303=\"\",\"\",'Generated list'!D8303)","v":""}]
[null,{"$f":"IF('Generated list'!B8304=\"\",\"\",'Generated list'!B8304)","v":""},{"$f":"IF('Generated list'!C8304=\"\",\"\",'Generated list'!C8304)","v":""},{"$f":"IF('Generated list'!D8304=\"\",\"\",'Generated list'!D8304)","v":""}]
[null,{"$f":"IF('Generated list'!B8305=\"\",\"\",'Generated list'!B8305)","v":""},{"$f":"IF('Generated list'!C8305=\"\",\"\",'Generated list'!C8305)","v":""},{"$f":"IF('Generated list'!D8305=\"\",\"\",'Generated list'!D8305)","v":""}]
[null,{"$f":"IF('Generated list'!B8306=\"\",\"\",'Generated list'!B8306)","v":""},{"$f":"IF('Generated list'!C8306=\"\",\"\",'Generated list'!C8306)","v":""},{"$f":"IF('Generated list'!D8306=\"\",\"\",'Generated list'!D8306)","v":""}]
[null,{"$f":"IF('Generated list'!B8307=\"\",\"\",'Generated list'!B8307)","v":""},{"$f":"IF('Generated list'!C8307=\"\",\"\",'Generated list'!C8307)","v":""},{"$f":"IF('Generated list'!D8307=\"\",\"\",'Generated list'!D8307)","v":""}]
[null,{"$f":"IF('Generated list'!B8308=\"\",\"\",'Generated list'!B8308)","v":""},{"$f":"IF('Generated list'!C8308=\"\",\"\",'Generated list'!C8308)","v":""},{"$f":"IF('Generated list'!D8308=\"\",\"\",'Generated list'!D8308)","v":""}]
[null,{"$f":"IF('Generated list'!B8309=\"\",\"\",'Generated list'!B8309)","v":""},{"$f":"IF('Generated list'!C8309=\"\",\"\",'Generated list'!C8309)","v":""},{"$f":"IF('Generated list'!D8309=\"\",\"\",'Generated list'!D8309)","v":""}]
[null,{"$f":"IF('Generated list'!B8310=\"\",\"\",'Generated list'!B8310)","v":""},{"$f":"IF('Generated list'!C8310=\"\",\"\",'Generated list'!C8310)","v":""},{"$f":"IF('Generated list'!D8310=\"\",\"\",'Generated list'!D8310)","v":""}]
[null,{"$f":"IF('Generated list'!B8311=\"\",\"\",'Generated list'!B8311)","v":""},{"$f":"IF('Generated list'!C8311=\"\",\"\",'Generated list'!C8311)","v":""},{"$f":"IF('Generated list'!D8311=\"\",\"\",'Generated list'!D8311)","v":""}]
[null,{"$f":"IF('Generated list'!B8312=\"\",\"\",'Generated list'!B8312)","v":""},{"$f":"IF('Generated list'!C8312=\"\",\"\",'Generated list'!C8312)","v":""},{"$f":"IF('Generated list'!D8312=\"\",\"\",'Generated list'!D8312)","v":""}]
[null,{"$f":"IF('Generated list'!B8313=\"\",\"\",'Generated list'!B8313)","v":""},{"$f":"IF('Generated list'!C8313=\"\",\"\",'Generated list'!C8313)","v":""},{"$f":"IF('Generated list'!D8313=\"\",\"\",'Generated list'!D8313)","v":""}]
[null,{"$f":"IF('Generated list'!B8314=\"\",\"\",'Generated list'!B8314)","v":""},{"$f":"IF('Generated list'!C8314=\"\",\"\",'Generated list'!C8314)","v":""},{"$f":"IF('Generated list'!D8314=\"\",\"\",'Generated list'!D8314)","v":""}]
[null,{"$f":"IF('Generated list'!B8315=\"\",\"\",'Generated list'!B8315)","v":""},{"$f":"IF('Generated list'!C8315=\"\",\"\",'Generated list'!C8315)","v":""},{"$f":"IF('Generated list'!D8315=\"\",\"\",'Generated list'!D8315)","v":""}]
[null,{"$f":"IF('Generated list'!B8316=\"\",\"\",'Generated list'!B8316)","v":""},{"$f":"IF('Generated list'!C8316=\"\",\"\",'Generated list'!C8316)","v":""},{"$f":"IF('Generated list'!D8316=\"\",\"\",'Generated list'!D8316)","v":""}]
[null,{"$f":"IF('Generated list'!B8317=\"\",\"\",'Generated list'!B8317)","v":""},{"$f":"IF('Generated list'!C8317=\"\",\"\",'Generated list'!C8317)","v":""},{"$f":"IF('Generated list'!D8317=\"\",\"\",'Generated list'!D8317)","v":""}]
[null,{"$f":"IF('Generated list'!B8318=\"\",\"\",'Generated list'!B8318)","v":""},{"$f":"IF('Generated list'!C8318=\"\",\"\",'Generated list'!C8318)","v":""},{"$f":"IF('Generated list'!D8318=\"\",\"\",'Generated list'!D8318)","v":""}]
[null,{"$f":"IF('Generated list'!B8319=\"\",\"\",'Generated list'!B8319)","v":""},{"$f":"IF('Generated list'!C8319=\"\",\"\",'Generated list'!C8319)","v":""},{"$f":"IF('Generated list'!D8319=\"\",\"\",'Generated list'!D8319)","v":""}]
[null,{"$f":"IF('Generated list'!B8320=\"\",\"\",'Generated list'!B8320)","v":""},{"$f":"IF('Generated list'!C8320=\"\",\"\",'Generated list'!C8320)","v":""},{"$f":"IF('Generated list'!D8320=\"\",\"\",'Generated list'!D8320)","v":""}]
[null,{"$f":"IF('Generated list'!B8321=\"\",\"\",'Generated list'!B8321)","v":""},{"$f":"IF('Generated list'!C8321=\"\",\"\",'Generated list'!C8321)","v":""},{"$f":"IF('Generated list'!D8321=\"\",\"\",'Generated list'!D8321)","v":""}]
[null,{"$f":"IF('Generated list'!B8322=\"\",\"\",'Generated list'!B8322)","v":""},{"$f":"IF('Generated list'!C8322=\"\",\"\",'Generated list'!C8322)","v":""},{"$f":"IF('Generated list'!D8322=\"\",\"\",'Generated list'!D8322)","v":""}]
[null,{"$f":"IF('Generated list'!B8323=\"\",\"\",'Generated list'!B8323)","v":""},{"$f":"IF('Generated list'!C8323=\"\",\"\",'Generated list'!C8323)","v":""},{"$f":"IF('Generated list'!D8323=\"\",\"\",'Generated list'!D8323)","v":""}]
[null,{"$f":"IF('Generated list'!B8324=\"\",\"\",'Generated list'!B8324)","v":""},{"$f":"IF('Generated list'!C8324=\"\",\"\",'Generated list'!C8324)","v":""},{"$f":"IF('Generated list'!D8324=\"\",\"\",'Generated list'!D8324)","v":""}]
[null,{"$f":"IF('Generated list'!B8325=\"\",\"\",'Generated list'!B8325)","v":""},{"$f":"IF('Generated list'!C8325=\"\",\"\",'Generated list'!C8325)","v":""},{"$f":"IF('Generated list'!D8325=\"\",\"\",'Generated list'!D8325)","v":""}]
[null,{"$f":"IF('Generated list'!B8326=\"\",\"\",'Generated list'!B8326)","v":""},{"$f":"IF('Generated list'!C8326=\"\",\"\",'Generated list'!C8326)","v":""},{"$f":"IF('Generated list'!D8326=\"\",\"\",'Generated list'!D8326)","v":""}]
[null,{"$f":"IF('Generated list'!B8327=\"\",\"\",'Generated list'!B8327)","v":""},{"$f":"IF('Generated list'!C8327=\"\",\"\",'Generated list'!C8327)","v":""},{"$f":"IF('Generated list'!D8327=\"\",\"\",'Generated list'!D8327)","v":""}]
[null,{"$f":"IF('Generated list'!B8328=\"\",\"\",'Generated list'!B8328)","v":""},{"$f":"IF('Generated list'!C8328=\"\",\"\",'Generated list'!C8328)","v":""},{"$f":"IF('Generated list'!D8328=\"\",\"\",'Generated list'!D8328)","v":""}]
[null,{"$f":"IF('Generated list'!B8329=\"\",\"\",'Generated list'!B8329)","v":""},{"$f":"IF('Generated list'!C8329=\"\",\"\",'Generated list'!C8329)","v":""},{"$f":"IF('Generated list'!D8329=\"\",\"\",'Generated list'!D8329)","v":""}]
[null,{"$f":"IF('Generated list'!B8330=\"\",\"\",'Generated list'!B8330)","v":""},{"$f":"IF('Generated list'!C8330=\"\",\"\",'Generated list'!C8330)","v":""},{"$f":"IF('Generated list'!D8330=\"\",\"\",'Generated list'!D8330)","v":""}]
[null,{"$f":"IF('Generated list'!B8331=\"\",\"\",'Generated list'!B8331)","v":""},{"$f":"IF('Generated list'!C8331=\"\",\"\",'Generated list'!C8331)","v":""},{"$f":"IF('Generated list'!D8331=\"\",\"\",'Generated list'!D8331)","v":""}]
[null,{"$f":"IF('Generated list'!B8332=\"\",\"\",'Generated list'!B8332)","v":""},{"$f":"IF('Generated list'!C8332=\"\",\"\",'Generated list'!C8332)","v":""},{"$f":"IF('Generated list'!D8332=\"\",\"\",'Generated list'!D8332)","v":""}]
[null,{"$f":"IF('Generated list'!B8333=\"\",\"\",'Generated list'!B8333)","v":""},{"$f":"IF('Generated list'!C8333=\"\",\"\",'Generated list'!C8333)","v":""},{"$f":"IF('Generated list'!D8333=\"\",\"\",'Generated list'!D8333)","v":""}]
[null,{"$f":"IF('Generated list'!B8334=\"\",\"\",'Generated list'!B8334)","v":""},{"$f":"IF('Generated list'!C8334=\"\",\"\",'Generated list'!C8334)","v":""},{"$f":"IF('Generated list'!D8334=\"\",\"\",'Generated list'!D8334)","v":""}]
[null,{"$f":"IF('Generated list'!B8335=\"\",\"\",'Generated list'!B8335)","v":""},{"$f":"IF('Generated list'!C8335=\"\",\"\",'Generated list'!C8335)","v":""},{"$f":"IF('Generated list'!D8335=\"\",\"\",'Generated list'!D8335)","v":""}]
[null,{"$f":"IF('Generated list'!B8336=\"\",\"\",'Generated list'!B8336)","v":""},{"$f":"IF('Generated list'!C8336=\"\",\"\",'Generated list'!C8336)","v":""},{"$f":"IF('Generated list'!D8336=\"\",\"\",'Generated list'!D8336)","v":""}]
[null,{"$f":"IF('Generated list'!B8337=\"\",\"\",'Generated list'!B8337)","v":""},{"$f":"IF('Generated list'!C8337=\"\",\"\",'Generated list'!C8337)","v":""},{"$f":"IF('Generated list'!D8337=\"\",\"\",'Generated list'!D8337)","v":""}]
[null,{"$f":"IF('Generated list'!B8338=\"\",\"\",'Generated list'!B8338)","v":""},{"$f":"IF('Generated list'!C8338=\"\",\"\",'Generated list'!C8338)","v":""},{"$f":"IF('Generated list'!D8338=\"\",\"\",'Generated list'!D8338)","v":""}]
[null,{"$f":"IF('Generated list'!B8339=\"\",\"\",'Generated list'!B8339)","v":""},{"$f":"IF('Generated list'!C8339=\"\",\"\",'Generated list'!C8339)","v":""},{"$f":"IF('Generated list'!D8339=\"\",\"\",'Generated list'!D8339)","v":""}]
[null,{"$f":"IF('Generated list'!B8340=\"\",\"\",'Generated list'!B8340)","v":""},{"$f":"IF('Generated list'!C8340=\"\",\"\",'Generated list'!C8340)","v":""},{"$f":"IF('Generated list'!D8340=\"\",\"\",'Generated list'!D8340)","v":""}]
[null,{"$f":"IF('Generated list'!B8341=\"\",\"\",'Generated list'!B8341)","v":""},{"$f":"IF('Generated list'!C8341=\"\",\"\",'Generated list'!C8341)","v":""},{"$f":"IF('Generated list'!D8341=\"\",\"\",'Generated list'!D8341)","v":""}]
[null,{"$f":"IF('Generated list'!B8342=\"\",\"\",'Generated list'!B8342)","v":""},{"$f":"IF('Generated list'!C8342=\"\",\"\",'Generated list'!C8342)","v":""},{"$f":"IF('Generated list'!D8342=\"\",\"\",'Generated list'!D8342)","v":""}]
[null,{"$f":"IF('Generated list'!B8343=\"\",\"\",'Generated list'!B8343)","v":""},{"$f":"IF('Generated list'!C8343=\"\",\"\",'Generated list'!C8343)","v":""},{"$f":"IF('Generated list'!D8343=\"\",\"\",'Generated list'!D8343)","v":""}]
[null,{"$f":"IF('Generated list'!B8344=\"\",\"\",'Generated list'!B8344)","v":""},{"$f":"IF('Generated list'!C8344=\"\",\"\",'Generated list'!C8344)","v":""},{"$f":"IF('Generated list'!D8344=\"\",\"\",'Generated list'!D8344)","v":""}]
[null,{"$f":"IF('Generated list'!B8345=\"\",\"\",'Generated list'!B8345)","v":""},{"$f":"IF('Generated list'!C8345=\"\",\"\",'Generated list'!C8345)","v":""},{"$f":"IF('Generated list'!D8345=\"\",\"\",'Generated list'!D8345)","v":""}]
[null,{"$f":"IF('Generated list'!B8346=\"\",\"\",'Generated list'!B8346)","v":""},{"$f":"IF('Generated list'!C8346=\"\",\"\",'Generated list'!C8346)","v":""},{"$f":"IF('Generated list'!D8346=\"\",\"\",'Generated list'!D8346)","v":""}]
[null,{"$f":"IF('Generated list'!B8347=\"\",\"\",'Generated list'!B8347)","v":""},{"$f":"IF('Generated list'!C8347=\"\",\"\",'Generated list'!C8347)","v":""},{"$f":"IF('Generated list'!D8347=\"\",\"\",'Generated list'!D8347)","v":""}]
[null,{"$f":"IF('Generated list'!B8348=\"\",\"\",'Generated list'!B8348)","v":""},{"$f":"IF('Generated list'!C8348=\"\",\"\",'Generated list'!C8348)","v":""},{"$f":"IF('Generated list'!D8348=\"\",\"\",'Generated list'!D8348)","v":""}]
[null,{"$f":"IF('Generated list'!B8349=\"\",\"\",'Generated list'!B8349)","v":""},{"$f":"IF('Generated list'!C8349=\"\",\"\",'Generated list'!C8349)","v":""},{"$f":"IF('Generated list'!D8349=\"\",\"\",'Generated list'!D8349)","v":""}]
[null,{"$f":"IF('Generated list'!B8350=\"\",\"\",'Generated list'!B8350)","v":""},{"$f":"IF('Generated list'!C8350=\"\",\"\",'Generated list'!C8350)","v":""},{"$f":"IF('Generated list'!D8350=\"\",\"\",'Generated list'!D8350)","v":""}]
[null,{"$f":"IF('Generated list'!B8351=\"\",\"\",'Generated list'!B8351)","v":""},{"$f":"IF('Generated list'!C8351=\"\",\"\",'Generated list'!C8351)","v":""},{"$f":"IF('Generated list'!D8351=\"\",\"\",'Generated list'!D8351)","v":""}]
[null,{"$f":"IF('Generated list'!B8352=\"\",\"\",'Generated list'!B8352)","v":""},{"$f":"IF('Generated list'!C8352=\"\",\"\",'Generated list'!C8352)","v":""},{"$f":"IF('Generated list'!D8352=\"\",\"\",'Generated list'!D8352)","v":""}]
[null,{"$f":"IF('Generated list'!B8353=\"\",\"\",'Generated list'!B8353)","v":""},{"$f":"IF('Generated list'!C8353=\"\",\"\",'Generated list'!C8353)","v":""},{"$f":"IF('Generated list'!D8353=\"\",\"\",'Generated list'!D8353)","v":""}]
[null,{"$f":"IF('Generated list'!B8354=\"\",\"\",'Generated list'!B8354)","v":""},{"$f":"IF('Generated list'!C8354=\"\",\"\",'Generated list'!C8354)","v":""},{"$f":"IF('Generated list'!D8354=\"\",\"\",'Generated list'!D8354)","v":""}]
[null,{"$f":"IF('Generated list'!B8355=\"\",\"\",'Generated list'!B8355)","v":""},{"$f":"IF('Generated list'!C8355=\"\",\"\",'Generated list'!C8355)","v":""},{"$f":"IF('Generated list'!D8355=\"\",\"\",'Generated list'!D8355)","v":""}]
[null,{"$f":"IF('Generated list'!B8356=\"\",\"\",'Generated list'!B8356)","v":""},{"$f":"IF('Generated list'!C8356=\"\",\"\",'Generated list'!C8356)","v":""},{"$f":"IF('Generated list'!D8356=\"\",\"\",'Generated list'!D8356)","v":""}]
[null,{"$f":"IF('Generated list'!B8357=\"\",\"\",'Generated list'!B8357)","v":""},{"$f":"IF('Generated list'!C8357=\"\",\"\",'Generated list'!C8357)","v":""},{"$f":"IF('Generated list'!D8357=\"\",\"\",'Generated list'!D8357)","v":""}]
[null,{"$f":"IF('Generated list'!B8358=\"\",\"\",'Generated list'!B8358)","v":""},{"$f":"IF('Generated list'!C8358=\"\",\"\",'Generated list'!C8358)","v":""},{"$f":"IF('Generated list'!D8358=\"\",\"\",'Generated list'!D8358)","v":""}]
[null,{"$f":"IF('Generated list'!B8359=\"\",\"\",'Generated list'!B8359)","v":""},{"$f":"IF('Generated list'!C8359=\"\",\"\",'Generated list'!C8359)","v":""},{"$f":"IF('Generated list'!D8359=\"\",\"\",'Generated list'!D8359)","v":""}]
[null,{"$f":"IF('Generated list'!B8360=\"\",\"\",'Generated list'!B8360)","v":""},{"$f":"IF('Generated list'!C8360=\"\",\"\",'Generated list'!C8360)","v":""},{"$f":"IF('Generated list'!D8360=\"\",\"\",'Generated list'!D8360)","v":""}]
[null,{"$f":"IF('Generated list'!B8361=\"\",\"\",'Generated list'!B8361)","v":""},{"$f":"IF('Generated list'!C8361=\"\",\"\",'Generated list'!C8361)","v":""},{"$f":"IF('Generated list'!D8361=\"\",\"\",'Generated list'!D8361)","v":""}]
[null,{"$f":"IF('Generated list'!B8362=\"\",\"\",'Generated list'!B8362)","v":""},{"$f":"IF('Generated list'!C8362=\"\",\"\",'Generated list'!C8362)","v":""},{"$f":"IF('Generated list'!D8362=\"\",\"\",'Generated list'!D8362)","v":""}]
[null,{"$f":"IF('Generated list'!B8363=\"\",\"\",'Generated list'!B8363)","v":""},{"$f":"IF('Generated list'!C8363=\"\",\"\",'Generated list'!C8363)","v":""},{"$f":"IF('Generated list'!D8363=\"\",\"\",'Generated list'!D8363)","v":""}]
[null,{"$f":"IF('Generated list'!B8364=\"\",\"\",'Generated list'!B8364)","v":""},{"$f":"IF('Generated list'!C8364=\"\",\"\",'Generated list'!C8364)","v":""},{"$f":"IF('Generated list'!D8364=\"\",\"\",'Generated list'!D8364)","v":""}]
[null,{"$f":"IF('Generated list'!B8365=\"\",\"\",'Generated list'!B8365)","v":""},{"$f":"IF('Generated list'!C8365=\"\",\"\",'Generated list'!C8365)","v":""},{"$f":"IF('Generated list'!D8365=\"\",\"\",'Generated list'!D8365)","v":""}]
[null,{"$f":"IF('Generated list'!B8366=\"\",\"\",'Generated list'!B8366)","v":""},{"$f":"IF('Generated list'!C8366=\"\",\"\",'Generated list'!C8366)","v":""},{"$f":"IF('Generated list'!D8366=\"\",\"\",'Generated list'!D8366)","v":""}]
[null,{"$f":"IF('Generated list'!B8367=\"\",\"\",'Generated list'!B8367)","v":""},{"$f":"IF('Generated list'!C8367=\"\",\"\",'Generated list'!C8367)","v":""},{"$f":"IF('Generated list'!D8367=\"\",\"\",'Generated list'!D8367)","v":""}]
[null,{"$f":"IF('Generated list'!B8368=\"\",\"\",'Generated list'!B8368)","v":""},{"$f":"IF('Generated list'!C8368=\"\",\"\",'Generated list'!C8368)","v":""},{"$f":"IF('Generated list'!D8368=\"\",\"\",'Generated list'!D8368)","v":""}]
[null,{"$f":"IF('Generated list'!B8369=\"\",\"\",'Generated list'!B8369)","v":""},{"$f":"IF('Generated list'!C8369=\"\",\"\",'Generated list'!C8369)","v":""},{"$f":"IF('Generated list'!D8369=\"\",\"\",'Generated list'!D8369)","v":""}]
[null,{"$f":"IF('Generated list'!B8370=\"\",\"\",'Generated list'!B8370)","v":""},{"$f":"IF('Generated list'!C8370=\"\",\"\",'Generated list'!C8370)","v":""},{"$f":"IF('Generated list'!D8370=\"\",\"\",'Generated list'!D8370)","v":""}]
[null,{"$f":"IF('Generated list'!B8371=\"\",\"\",'Generated list'!B8371)","v":""},{"$f":"IF('Generated list'!C8371=\"\",\"\",'Generated list'!C8371)","v":""},{"$f":"IF('Generated list'!D8371=\"\",\"\",'Generated list'!D8371)","v":""}]
[null,{"$f":"IF('Generated list'!B8372=\"\",\"\",'Generated list'!B8372)","v":""},{"$f":"IF('Generated list'!C8372=\"\",\"\",'Generated list'!C8372)","v":""},{"$f":"IF('Generated list'!D8372=\"\",\"\",'Generated list'!D8372)","v":""}]
[null,{"$f":"IF('Generated list'!B8373=\"\",\"\",'Generated list'!B8373)","v":""},{"$f":"IF('Generated list'!C8373=\"\",\"\",'Generated list'!C8373)","v":""},{"$f":"IF('Generated list'!D8373=\"\",\"\",'Generated list'!D8373)","v":""}]
[null,{"$f":"IF('Generated list'!B8374=\"\",\"\",'Generated list'!B8374)","v":""},{"$f":"IF('Generated list'!C8374=\"\",\"\",'Generated list'!C8374)","v":""},{"$f":"IF('Generated list'!D8374=\"\",\"\",'Generated list'!D8374)","v":""}]
[null,{"$f":"IF('Generated list'!B8375=\"\",\"\",'Generated list'!B8375)","v":""},{"$f":"IF('Generated list'!C8375=\"\",\"\",'Generated list'!C8375)","v":""},{"$f":"IF('Generated list'!D8375=\"\",\"\",'Generated list'!D8375)","v":""}]
[null,{"$f":"IF('Generated list'!B8376=\"\",\"\",'Generated list'!B8376)","v":""},{"$f":"IF('Generated list'!C8376=\"\",\"\",'Generated list'!C8376)","v":""},{"$f":"IF('Generated list'!D8376=\"\",\"\",'Generated list'!D8376)","v":""}]
[null,{"$f":"IF('Generated list'!B8377=\"\",\"\",'Generated list'!B8377)","v":""},{"$f":"IF('Generated list'!C8377=\"\",\"\",'Generated list'!C8377)","v":""},{"$f":"IF('Generated list'!D8377=\"\",\"\",'Generated list'!D8377)","v":""}]
[null,{"$f":"IF('Generated list'!B8378=\"\",\"\",'Generated list'!B8378)","v":""},{"$f":"IF('Generated list'!C8378=\"\",\"\",'Generated list'!C8378)","v":""},{"$f":"IF('Generated list'!D8378=\"\",\"\",'Generated list'!D8378)","v":""}]
[null,{"$f":"IF('Generated list'!B8379=\"\",\"\",'Generated list'!B8379)","v":""},{"$f":"IF('Generated list'!C8379=\"\",\"\",'Generated list'!C8379)","v":""},{"$f":"IF('Generated list'!D8379=\"\",\"\",'Generated list'!D8379)","v":""}]
[null,{"$f":"IF('Generated list'!B8380=\"\",\"\",'Generated list'!B8380)","v":""},{"$f":"IF('Generated list'!C8380=\"\",\"\",'Generated list'!C8380)","v":""},{"$f":"IF('Generated list'!D8380=\"\",\"\",'Generated list'!D8380)","v":""}]
[null,{"$f":"IF('Generated list'!B8381=\"\",\"\",'Generated list'!B8381)","v":""},{"$f":"IF('Generated list'!C8381=\"\",\"\",'Generated list'!C8381)","v":""},{"$f":"IF('Generated list'!D8381=\"\",\"\",'Generated list'!D8381)","v":""}]
[null,{"$f":"IF('Generated list'!B8382=\"\",\"\",'Generated list'!B8382)","v":""},{"$f":"IF('Generated list'!C8382=\"\",\"\",'Generated list'!C8382)","v":""},{"$f":"IF('Generated list'!D8382=\"\",\"\",'Generated list'!D8382)","v":""}]
[null,{"$f":"IF('Generated list'!B8383=\"\",\"\",'Generated list'!B8383)","v":""},{"$f":"IF('Generated list'!C8383=\"\",\"\",'Generated list'!C8383)","v":""},{"$f":"IF('Generated list'!D8383=\"\",\"\",'Generated list'!D8383)","v":""}]
[null,{"$f":"IF('Generated list'!B8384=\"\",\"\",'Generated list'!B8384)","v":""},{"$f":"IF('Generated list'!C8384=\"\",\"\",'Generated list'!C8384)","v":""},{"$f":"IF('Generated list'!D8384=\"\",\"\",'Generated list'!D8384)","v":""}]
[null,{"$f":"IF('Generated list'!B8385=\"\",\"\",'Generated list'!B8385)","v":""},{"$f":"IF('Generated list'!C8385=\"\",\"\",'Generated list'!C8385)","v":""},{"$f":"IF('Generated list'!D8385=\"\",\"\",'Generated list'!D8385)","v":""}]
[null,{"$f":"IF('Generated list'!B8386=\"\",\"\",'Generated list'!B8386)","v":""},{"$f":"IF('Generated list'!C8386=\"\",\"\",'Generated list'!C8386)","v":""},{"$f":"IF('Generated list'!D8386=\"\",\"\",'Generated list'!D8386)","v":""}]
[null,{"$f":"IF('Generated list'!B8387=\"\",\"\",'Generated list'!B8387)","v":""},{"$f":"IF('Generated list'!C8387=\"\",\"\",'Generated list'!C8387)","v":""},{"$f":"IF('Generated list'!D8387=\"\",\"\",'Generated list'!D8387)","v":""}]
[null,{"$f":"IF('Generated list'!B8388=\"\",\"\",'Generated list'!B8388)","v":""},{"$f":"IF('Generated list'!C8388=\"\",\"\",'Generated list'!C8388)","v":""},{"$f":"IF('Generated list'!D8388=\"\",\"\",'Generated list'!D8388)","v":""}]
[null,{"$f":"IF('Generated list'!B8389=\"\",\"\",'Generated list'!B8389)","v":""},{"$f":"IF('Generated list'!C8389=\"\",\"\",'Generated list'!C8389)","v":""},{"$f":"IF('Generated list'!D8389=\"\",\"\",'Generated list'!D8389)","v":""}]
[null,{"$f":"IF('Generated list'!B8390=\"\",\"\",'Generated list'!B8390)","v":""},{"$f":"IF('Generated list'!C8390=\"\",\"\",'Generated list'!C8390)","v":""},{"$f":"IF('Generated list'!D8390=\"\",\"\",'Generated list'!D8390)","v":""}]
[null,{"$f":"IF('Generated list'!B8391=\"\",\"\",'Generated list'!B8391)","v":""},{"$f":"IF('Generated list'!C8391=\"\",\"\",'Generated list'!C8391)","v":""},{"$f":"IF('Generated list'!D8391=\"\",\"\",'Generated list'!D8391)","v":""}]
[null,{"$f":"IF('Generated list'!B8392=\"\",\"\",'Generated list'!B8392)","v":""},{"$f":"IF('Generated list'!C8392=\"\",\"\",'Generated list'!C8392)","v":""},{"$f":"IF('Generated list'!D8392=\"\",\"\",'Generated list'!D8392)","v":""}]
[null,{"$f":"IF('Generated list'!B8393=\"\",\"\",'Generated list'!B8393)","v":""},{"$f":"IF('Generated list'!C8393=\"\",\"\",'Generated list'!C8393)","v":""},{"$f":"IF('Generated list'!D8393=\"\",\"\",'Generated list'!D8393)","v":""}]
[null,{"$f":"IF('Generated list'!B8394=\"\",\"\",'Generated list'!B8394)","v":""},{"$f":"IF('Generated list'!C8394=\"\",\"\",'Generated list'!C8394)","v":""},{"$f":"IF('Generated list'!D8394=\"\",\"\",'Generated list'!D8394)","v":""}]
[null,{"$f":"IF('Generated list'!B8395=\"\",\"\",'Generated list'!B8395)","v":""},{"$f":"IF('Generated list'!C8395=\"\",\"\",'Generated list'!C8395)","v":""},{"$f":"IF('Generated list'!D8395=\"\",\"\",'Generated list'!D8395)","v":""}]
[null,{"$f":"IF('Generated list'!B8396=\"\",\"\",'Generated list'!B8396)","v":""},{"$f":"IF('Generated list'!C8396=\"\",\"\",'Generated list'!C8396)","v":""},{"$f":"IF('Generated list'!D8396=\"\",\"\",'Generated list'!D8396)","v":""}]
[null,{"$f":"IF('Generated list'!B8397=\"\",\"\",'Generated list'!B8397)","v":""},{"$f":"IF('Generated list'!C8397=\"\",\"\",'Generated list'!C8397)","v":""},{"$f":"IF('Generated list'!D8397=\"\",\"\",'Generated list'!D8397)","v":""}]
[null,{"$f":"IF('Generated list'!B8398=\"\",\"\",'Generated list'!B8398)","v":""},{"$f":"IF('Generated list'!C8398=\"\",\"\",'Generated list'!C8398)","v":""},{"$f":"IF('Generated list'!D8398=\"\",\"\",'Generated list'!D8398)","v":""}]
[null,{"$f":"IF('Generated list'!B8399=\"\",\"\",'Generated list'!B8399)","v":""},{"$f":"IF('Generated list'!C8399=\"\",\"\",'Generated list'!C8399)","v":""},{"$f":"IF('Generated list'!D8399=\"\",\"\",'Generated list'!D8399)","v":""}]
[null,{"$f":"IF('Generated list'!B8400=\"\",\"\",'Generated list'!B8400)","v":""},{"$f":"IF('Generated list'!C8400=\"\",\"\",'Generated list'!C8400)","v":""},{"$f":"IF('Generated list'!D8400=\"\",\"\",'Generated list'!D8400)","v":""}]
[null,{"$f":"IF('Generated list'!B8401=\"\",\"\",'Generated list'!B8401)","v":""},{"$f":"IF('Generated list'!C8401=\"\",\"\",'Generated list'!C8401)","v":""},{"$f":"IF('Generated list'!D8401=\"\",\"\",'Generated list'!D8401)","v":""}]
[null,{"$f":"IF('Generated list'!B8402=\"\",\"\",'Generated list'!B8402)","v":""},{"$f":"IF('Generated list'!C8402=\"\",\"\",'Generated list'!C8402)","v":""},{"$f":"IF('Generated list'!D8402=\"\",\"\",'Generated list'!D8402)","v":""}]
[null,{"$f":"IF('Generated list'!B8403=\"\",\"\",'Generated list'!B8403)","v":""},{"$f":"IF('Generated list'!C8403=\"\",\"\",'Generated list'!C8403)","v":""},{"$f":"IF('Generated list'!D8403=\"\",\"\",'Generated list'!D8403)","v":""}]
[null,{"$f":"IF('Generated list'!B8404=\"\",\"\",'Generated list'!B8404)","v":""},{"$f":"IF('Generated list'!C8404=\"\",\"\",'Generated list'!C8404)","v":""},{"$f":"IF('Generated list'!D8404=\"\",\"\",'Generated list'!D8404)","v":""}]
[null,{"$f":"IF('Generated list'!B8405=\"\",\"\",'Generated list'!B8405)","v":""},{"$f":"IF('Generated list'!C8405=\"\",\"\",'Generated list'!C8405)","v":""},{"$f":"IF('Generated list'!D8405=\"\",\"\",'Generated list'!D8405)","v":""}]
[null,{"$f":"IF('Generated list'!B8406=\"\",\"\",'Generated list'!B8406)","v":""},{"$f":"IF('Generated list'!C8406=\"\",\"\",'Generated list'!C8406)","v":""},{"$f":"IF('Generated list'!D8406=\"\",\"\",'Generated list'!D8406)","v":""}]
[null,{"$f":"IF('Generated list'!B8407=\"\",\"\",'Generated list'!B8407)","v":""},{"$f":"IF('Generated list'!C8407=\"\",\"\",'Generated list'!C8407)","v":""},{"$f":"IF('Generated list'!D8407=\"\",\"\",'Generated list'!D8407)","v":""}]
[null,{"$f":"IF('Generated list'!B8408=\"\",\"\",'Generated list'!B8408)","v":""},{"$f":"IF('Generated list'!C8408=\"\",\"\",'Generated list'!C8408)","v":""},{"$f":"IF('Generated list'!D8408=\"\",\"\",'Generated list'!D8408)","v":""}]
[null,{"$f":"IF('Generated list'!B8409=\"\",\"\",'Generated list'!B8409)","v":""},{"$f":"IF('Generated list'!C8409=\"\",\"\",'Generated list'!C8409)","v":""},{"$f":"IF('Generated list'!D8409=\"\",\"\",'Generated list'!D8409)","v":""}]
[null,{"$f":"IF('Generated list'!B8410=\"\",\"\",'Generated list'!B8410)","v":""},{"$f":"IF('Generated list'!C8410=\"\",\"\",'Generated list'!C8410)","v":""},{"$f":"IF('Generated list'!D8410=\"\",\"\",'Generated list'!D8410)","v":""}]
[null,{"$f":"IF('Generated list'!B8411=\"\",\"\",'Generated list'!B8411)","v":""},{"$f":"IF('Generated list'!C8411=\"\",\"\",'Generated list'!C8411)","v":""},{"$f":"IF('Generated list'!D8411=\"\",\"\",'Generated list'!D8411)","v":""}]
[null,{"$f":"IF('Generated list'!B8412=\"\",\"\",'Generated list'!B8412)","v":""},{"$f":"IF('Generated list'!C8412=\"\",\"\",'Generated list'!C8412)","v":""},{"$f":"IF('Generated list'!D8412=\"\",\"\",'Generated list'!D8412)","v":""}]
[null,{"$f":"IF('Generated list'!B8413=\"\",\"\",'Generated list'!B8413)","v":""},{"$f":"IF('Generated list'!C8413=\"\",\"\",'Generated list'!C8413)","v":""},{"$f":"IF('Generated list'!D8413=\"\",\"\",'Generated list'!D8413)","v":""}]
[null,{"$f":"IF('Generated list'!B8414=\"\",\"\",'Generated list'!B8414)","v":""},{"$f":"IF('Generated list'!C8414=\"\",\"\",'Generated list'!C8414)","v":""},{"$f":"IF('Generated list'!D8414=\"\",\"\",'Generated list'!D8414)","v":""}]
[null,{"$f":"IF('Generated list'!B8415=\"\",\"\",'Generated list'!B8415)","v":""},{"$f":"IF('Generated list'!C8415=\"\",\"\",'Generated list'!C8415)","v":""},{"$f":"IF('Generated list'!D8415=\"\",\"\",'Generated list'!D8415)","v":""}]
[null,{"$f":"IF('Generated list'!B8416=\"\",\"\",'Generated list'!B8416)","v":""},{"$f":"IF('Generated list'!C8416=\"\",\"\",'Generated list'!C8416)","v":""},{"$f":"IF('Generated list'!D8416=\"\",\"\",'Generated list'!D8416)","v":""}]
[null,{"$f":"IF('Generated list'!B8417=\"\",\"\",'Generated list'!B8417)","v":""},{"$f":"IF('Generated list'!C8417=\"\",\"\",'Generated list'!C8417)","v":""},{"$f":"IF('Generated list'!D8417=\"\",\"\",'Generated list'!D8417)","v":""}]
[null,{"$f":"IF('Generated list'!B8418=\"\",\"\",'Generated list'!B8418)","v":""},{"$f":"IF('Generated list'!C8418=\"\",\"\",'Generated list'!C8418)","v":""},{"$f":"IF('Generated list'!D8418=\"\",\"\",'Generated list'!D8418)","v":""}]
[null,{"$f":"IF('Generated list'!B8419=\"\",\"\",'Generated list'!B8419)","v":""},{"$f":"IF('Generated list'!C8419=\"\",\"\",'Generated list'!C8419)","v":""},{"$f":"IF('Generated list'!D8419=\"\",\"\",'Generated list'!D8419)","v":""}]
[null,{"$f":"IF('Generated list'!B8420=\"\",\"\",'Generated list'!B8420)","v":""},{"$f":"IF('Generated list'!C8420=\"\",\"\",'Generated list'!C8420)","v":""},{"$f":"IF('Generated list'!D8420=\"\",\"\",'Generated list'!D8420)","v":""}]
[null,{"$f":"IF('Generated list'!B8421=\"\",\"\",'Generated list'!B8421)","v":""},{"$f":"IF('Generated list'!C8421=\"\",\"\",'Generated list'!C8421)","v":""},{"$f":"IF('Generated list'!D8421=\"\",\"\",'Generated list'!D8421)","v":""}]
[null,{"$f":"IF('Generated list'!B8422=\"\",\"\",'Generated list'!B8422)","v":""},{"$f":"IF('Generated list'!C8422=\"\",\"\",'Generated list'!C8422)","v":""},{"$f":"IF('Generated list'!D8422=\"\",\"\",'Generated list'!D8422)","v":""}]
[null,{"$f":"IF('Generated list'!B8423=\"\",\"\",'Generated list'!B8423)","v":""},{"$f":"IF('Generated list'!C8423=\"\",\"\",'Generated list'!C8423)","v":""},{"$f":"IF('Generated list'!D8423=\"\",\"\",'Generated list'!D8423)","v":""}]
[null,{"$f":"IF('Generated list'!B8424=\"\",\"\",'Generated list'!B8424)","v":""},{"$f":"IF('Generated list'!C8424=\"\",\"\",'Generated list'!C8424)","v":""},{"$f":"IF('Generated list'!D8424=\"\",\"\",'Generated list'!D8424)","v":""}]
[null,{"$f":"IF('Generated list'!B8425=\"\",\"\",'Generated list'!B8425)","v":""},{"$f":"IF('Generated list'!C8425=\"\",\"\",'Generated list'!C8425)","v":""},{"$f":"IF('Generated list'!D8425=\"\",\"\",'Generated list'!D8425)","v":""}]
[null,{"$f":"IF('Generated list'!B8426=\"\",\"\",'Generated list'!B8426)","v":""},{"$f":"IF('Generated list'!C8426=\"\",\"\",'Generated list'!C8426)","v":""},{"$f":"IF('Generated list'!D8426=\"\",\"\",'Generated list'!D8426)","v":""}]
[null,{"$f":"IF('Generated list'!B8427=\"\",\"\",'Generated list'!B8427)","v":""},{"$f":"IF('Generated list'!C8427=\"\",\"\",'Generated list'!C8427)","v":""},{"$f":"IF('Generated list'!D8427=\"\",\"\",'Generated list'!D8427)","v":""}]
[null,{"$f":"IF('Generated list'!B8428=\"\",\"\",'Generated list'!B8428)","v":""},{"$f":"IF('Generated list'!C8428=\"\",\"\",'Generated list'!C8428)","v":""},{"$f":"IF('Generated list'!D8428=\"\",\"\",'Generated list'!D8428)","v":""}]
[null,{"$f":"IF('Generated list'!B8429=\"\",\"\",'Generated list'!B8429)","v":""},{"$f":"IF('Generated list'!C8429=\"\",\"\",'Generated list'!C8429)","v":""},{"$f":"IF('Generated list'!D8429=\"\",\"\",'Generated list'!D8429)","v":""}]
[null,{"$f":"IF('Generated list'!B8430=\"\",\"\",'Generated list'!B8430)","v":""},{"$f":"IF('Generated list'!C8430=\"\",\"\",'Generated list'!C8430)","v":""},{"$f":"IF('Generated list'!D8430=\"\",\"\",'Generated list'!D8430)","v":""}]
[null,{"$f":"IF('Generated list'!B8431=\"\",\"\",'Generated list'!B8431)","v":""},{"$f":"IF('Generated list'!C8431=\"\",\"\",'Generated list'!C8431)","v":""},{"$f":"IF('Generated list'!D8431=\"\",\"\",'Generated list'!D8431)","v":""}]
[null,{"$f":"IF('Generated list'!B8432=\"\",\"\",'Generated list'!B8432)","v":""},{"$f":"IF('Generated list'!C8432=\"\",\"\",'Generated list'!C8432)","v":""},{"$f":"IF('Generated list'!D8432=\"\",\"\",'Generated list'!D8432)","v":""}]
[null,{"$f":"IF('Generated list'!B8433=\"\",\"\",'Generated list'!B8433)","v":""},{"$f":"IF('Generated list'!C8433=\"\",\"\",'Generated list'!C8433)","v":""},{"$f":"IF('Generated list'!D8433=\"\",\"\",'Generated list'!D8433)","v":""}]
[null,{"$f":"IF('Generated list'!B8434=\"\",\"\",'Generated list'!B8434)","v":""},{"$f":"IF('Generated list'!C8434=\"\",\"\",'Generated list'!C8434)","v":""},{"$f":"IF('Generated list'!D8434=\"\",\"\",'Generated list'!D8434)","v":""}]
[null,{"$f":"IF('Generated list'!B8435=\"\",\"\",'Generated list'!B8435)","v":""},{"$f":"IF('Generated list'!C8435=\"\",\"\",'Generated list'!C8435)","v":""},{"$f":"IF('Generated list'!D8435=\"\",\"\",'Generated list'!D8435)","v":""}]
[null,{"$f":"IF('Generated list'!B8436=\"\",\"\",'Generated list'!B8436)","v":""},{"$f":"IF('Generated list'!C8436=\"\",\"\",'Generated list'!C8436)","v":""},{"$f":"IF('Generated list'!D8436=\"\",\"\",'Generated list'!D8436)","v":""}]
[null,{"$f":"IF('Generated list'!B8437=\"\",\"\",'Generated list'!B8437)","v":""},{"$f":"IF('Generated list'!C8437=\"\",\"\",'Generated list'!C8437)","v":""},{"$f":"IF('Generated list'!D8437=\"\",\"\",'Generated list'!D8437)","v":""}]
[null,{"$f":"IF('Generated list'!B8438=\"\",\"\",'Generated list'!B8438)","v":""},{"$f":"IF('Generated list'!C8438=\"\",\"\",'Generated list'!C8438)","v":""},{"$f":"IF('Generated list'!D8438=\"\",\"\",'Generated list'!D8438)","v":""}]
[null,{"$f":"IF('Generated list'!B8439=\"\",\"\",'Generated list'!B8439)","v":""},{"$f":"IF('Generated list'!C8439=\"\",\"\",'Generated list'!C8439)","v":""},{"$f":"IF('Generated list'!D8439=\"\",\"\",'Generated list'!D8439)","v":""}]
[null,{"$f":"IF('Generated list'!B8440=\"\",\"\",'Generated list'!B8440)","v":""},{"$f":"IF('Generated list'!C8440=\"\",\"\",'Generated list'!C8440)","v":""},{"$f":"IF('Generated list'!D8440=\"\",\"\",'Generated list'!D8440)","v":""}]
[null,{"$f":"IF('Generated list'!B8441=\"\",\"\",'Generated list'!B8441)","v":""},{"$f":"IF('Generated list'!C8441=\"\",\"\",'Generated list'!C8441)","v":""},{"$f":"IF('Generated list'!D8441=\"\",\"\",'Generated list'!D8441)","v":""}]
[null,{"$f":"IF('Generated list'!B8442=\"\",\"\",'Generated list'!B8442)","v":""},{"$f":"IF('Generated list'!C8442=\"\",\"\",'Generated list'!C8442)","v":""},{"$f":"IF('Generated list'!D8442=\"\",\"\",'Generated list'!D8442)","v":""}]
[null,{"$f":"IF('Generated list'!B8443=\"\",\"\",'Generated list'!B8443)","v":""},{"$f":"IF('Generated list'!C8443=\"\",\"\",'Generated list'!C8443)","v":""},{"$f":"IF('Generated list'!D8443=\"\",\"\",'Generated list'!D8443)","v":""}]
[null,{"$f":"IF('Generated list'!B8444=\"\",\"\",'Generated list'!B8444)","v":""},{"$f":"IF('Generated list'!C8444=\"\",\"\",'Generated list'!C8444)","v":""},{"$f":"IF('Generated list'!D8444=\"\",\"\",'Generated list'!D8444)","v":""}]
[null,{"$f":"IF('Generated list'!B8445=\"\",\"\",'Generated list'!B8445)","v":""},{"$f":"IF('Generated list'!C8445=\"\",\"\",'Generated list'!C8445)","v":""},{"$f":"IF('Generated list'!D8445=\"\",\"\",'Generated list'!D8445)","v":""}]
[null,{"$f":"IF('Generated list'!B8446=\"\",\"\",'Generated list'!B8446)","v":""},{"$f":"IF('Generated list'!C8446=\"\",\"\",'Generated list'!C8446)","v":""},{"$f":"IF('Generated list'!D8446=\"\",\"\",'Generated list'!D8446)","v":""}]
[null,{"$f":"IF('Generated list'!B8447=\"\",\"\",'Generated list'!B8447)","v":""},{"$f":"IF('Generated list'!C8447=\"\",\"\",'Generated list'!C8447)","v":""},{"$f":"IF('Generated list'!D8447=\"\",\"\",'Generated list'!D8447)","v":""}]
[null,{"$f":"IF('Generated list'!B8448=\"\",\"\",'Generated list'!B8448)","v":""},{"$f":"IF('Generated list'!C8448=\"\",\"\",'Generated list'!C8448)","v":""},{"$f":"IF('Generated list'!D8448=\"\",\"\",'Generated list'!D8448)","v":""}]
[null,{"$f":"IF('Generated list'!B8449=\"\",\"\",'Generated list'!B8449)","v":""},{"$f":"IF('Generated list'!C8449=\"\",\"\",'Generated list'!C8449)","v":""},{"$f":"IF('Generated list'!D8449=\"\",\"\",'Generated list'!D8449)","v":""}]
[null,{"$f":"IF('Generated list'!B8450=\"\",\"\",'Generated list'!B8450)","v":""},{"$f":"IF('Generated list'!C8450=\"\",\"\",'Generated list'!C8450)","v":""},{"$f":"IF('Generated list'!D8450=\"\",\"\",'Generated list'!D8450)","v":""}]
[null,{"$f":"IF('Generated list'!B8451=\"\",\"\",'Generated list'!B8451)","v":""},{"$f":"IF('Generated list'!C8451=\"\",\"\",'Generated list'!C8451)","v":""},{"$f":"IF('Generated list'!D8451=\"\",\"\",'Generated list'!D8451)","v":""}]
[null,{"$f":"IF('Generated list'!B8452=\"\",\"\",'Generated list'!B8452)","v":""},{"$f":"IF('Generated list'!C8452=\"\",\"\",'Generated list'!C8452)","v":""},{"$f":"IF('Generated list'!D8452=\"\",\"\",'Generated list'!D8452)","v":""}]
[null,{"$f":"IF('Generated list'!B8453=\"\",\"\",'Generated list'!B8453)","v":""},{"$f":"IF('Generated list'!C8453=\"\",\"\",'Generated list'!C8453)","v":""},{"$f":"IF('Generated list'!D8453=\"\",\"\",'Generated list'!D8453)","v":""}]
[null,{"$f":"IF('Generated list'!B8454=\"\",\"\",'Generated list'!B8454)","v":""},{"$f":"IF('Generated list'!C8454=\"\",\"\",'Generated list'!C8454)","v":""},{"$f":"IF('Generated list'!D8454=\"\",\"\",'Generated list'!D8454)","v":""}]
[null,{"$f":"IF('Generated list'!B8455=\"\",\"\",'Generated list'!B8455)","v":""},{"$f":"IF('Generated list'!C8455=\"\",\"\",'Generated list'!C8455)","v":""},{"$f":"IF('Generated list'!D8455=\"\",\"\",'Generated list'!D8455)","v":""}]
[null,{"$f":"IF('Generated list'!B8456=\"\",\"\",'Generated list'!B8456)","v":""},{"$f":"IF('Generated list'!C8456=\"\",\"\",'Generated list'!C8456)","v":""},{"$f":"IF('Generated list'!D8456=\"\",\"\",'Generated list'!D8456)","v":""}]
[null,{"$f":"IF('Generated list'!B8457=\"\",\"\",'Generated list'!B8457)","v":""},{"$f":"IF('Generated list'!C8457=\"\",\"\",'Generated list'!C8457)","v":""},{"$f":"IF('Generated list'!D8457=\"\",\"\",'Generated list'!D8457)","v":""}]
[null,{"$f":"IF('Generated list'!B8458=\"\",\"\",'Generated list'!B8458)","v":""},{"$f":"IF('Generated list'!C8458=\"\",\"\",'Generated list'!C8458)","v":""},{"$f":"IF('Generated list'!D8458=\"\",\"\",'Generated list'!D8458)","v":""}]
[null,{"$f":"IF('Generated list'!B8459=\"\",\"\",'Generated list'!B8459)","v":""},{"$f":"IF('Generated list'!C8459=\"\",\"\",'Generated list'!C8459)","v":""},{"$f":"IF('Generated list'!D8459=\"\",\"\",'Generated list'!D8459)","v":""}]
[null,{"$f":"IF('Generated list'!B8460=\"\",\"\",'Generated list'!B8460)","v":""},{"$f":"IF('Generated list'!C8460=\"\",\"\",'Generated list'!C8460)","v":""},{"$f":"IF('Generated list'!D8460=\"\",\"\",'Generated list'!D8460)","v":""}]
[null,{"$f":"IF('Generated list'!B8461=\"\",\"\",'Generated list'!B8461)","v":""},{"$f":"IF('Generated list'!C8461=\"\",\"\",'Generated list'!C8461)","v":""},{"$f":"IF('Generated list'!D8461=\"\",\"\",'Generated list'!D8461)","v":""}]
[null,{"$f":"IF('Generated list'!B8462=\"\",\"\",'Generated list'!B8462)","v":""},{"$f":"IF('Generated list'!C8462=\"\",\"\",'Generated list'!C8462)","v":""},{"$f":"IF('Generated list'!D8462=\"\",\"\",'Generated list'!D8462)","v":""}]
[null,{"$f":"IF('Generated list'!B8463=\"\",\"\",'Generated list'!B8463)","v":""},{"$f":"IF('Generated list'!C8463=\"\",\"\",'Generated list'!C8463)","v":""},{"$f":"IF('Generated list'!D8463=\"\",\"\",'Generated list'!D8463)","v":""}]
[null,{"$f":"IF('Generated list'!B8464=\"\",\"\",'Generated list'!B8464)","v":""},{"$f":"IF('Generated list'!C8464=\"\",\"\",'Generated list'!C8464)","v":""},{"$f":"IF('Generated list'!D8464=\"\",\"\",'Generated list'!D8464)","v":""}]
[null,{"$f":"IF('Generated list'!B8465=\"\",\"\",'Generated list'!B8465)","v":""},{"$f":"IF('Generated list'!C8465=\"\",\"\",'Generated list'!C8465)","v":""},{"$f":"IF('Generated list'!D8465=\"\",\"\",'Generated list'!D8465)","v":""}]
[null,{"$f":"IF('Generated list'!B8466=\"\",\"\",'Generated list'!B8466)","v":""},{"$f":"IF('Generated list'!C8466=\"\",\"\",'Generated list'!C8466)","v":""},{"$f":"IF('Generated list'!D8466=\"\",\"\",'Generated list'!D8466)","v":""}]
[null,{"$f":"IF('Generated list'!B8467=\"\",\"\",'Generated list'!B8467)","v":""},{"$f":"IF('Generated list'!C8467=\"\",\"\",'Generated list'!C8467)","v":""},{"$f":"IF('Generated list'!D8467=\"\",\"\",'Generated list'!D8467)","v":""}]
[null,{"$f":"IF('Generated list'!B8468=\"\",\"\",'Generated list'!B8468)","v":""},{"$f":"IF('Generated list'!C8468=\"\",\"\",'Generated list'!C8468)","v":""},{"$f":"IF('Generated list'!D8468=\"\",\"\",'Generated list'!D8468)","v":""}]
[null,{"$f":"IF('Generated list'!B8469=\"\",\"\",'Generated list'!B8469)","v":""},{"$f":"IF('Generated list'!C8469=\"\",\"\",'Generated list'!C8469)","v":""},{"$f":"IF('Generated list'!D8469=\"\",\"\",'Generated list'!D8469)","v":""}]
[null,{"$f":"IF('Generated list'!B8470=\"\",\"\",'Generated list'!B8470)","v":""},{"$f":"IF('Generated list'!C8470=\"\",\"\",'Generated list'!C8470)","v":""},{"$f":"IF('Generated list'!D8470=\"\",\"\",'Generated list'!D8470)","v":""}]
[null,{"$f":"IF('Generated list'!B8471=\"\",\"\",'Generated list'!B8471)","v":""},{"$f":"IF('Generated list'!C8471=\"\",\"\",'Generated list'!C8471)","v":""},{"$f":"IF('Generated list'!D8471=\"\",\"\",'Generated list'!D8471)","v":""}]
[null,{"$f":"IF('Generated list'!B8472=\"\",\"\",'Generated list'!B8472)","v":""},{"$f":"IF('Generated list'!C8472=\"\",\"\",'Generated list'!C8472)","v":""},{"$f":"IF('Generated list'!D8472=\"\",\"\",'Generated list'!D8472)","v":""}]
[null,{"$f":"IF('Generated list'!B8473=\"\",\"\",'Generated list'!B8473)","v":""},{"$f":"IF('Generated list'!C8473=\"\",\"\",'Generated list'!C8473)","v":""},{"$f":"IF('Generated list'!D8473=\"\",\"\",'Generated list'!D8473)","v":""}]
[null,{"$f":"IF('Generated list'!B8474=\"\",\"\",'Generated list'!B8474)","v":""},{"$f":"IF('Generated list'!C8474=\"\",\"\",'Generated list'!C8474)","v":""},{"$f":"IF('Generated list'!D8474=\"\",\"\",'Generated list'!D8474)","v":""}]
[null,{"$f":"IF('Generated list'!B8475=\"\",\"\",'Generated list'!B8475)","v":""},{"$f":"IF('Generated list'!C8475=\"\",\"\",'Generated list'!C8475)","v":""},{"$f":"IF('Generated list'!D8475=\"\",\"\",'Generated list'!D8475)","v":""}]
[null,{"$f":"IF('Generated list'!B8476=\"\",\"\",'Generated list'!B8476)","v":""},{"$f":"IF('Generated list'!C8476=\"\",\"\",'Generated list'!C8476)","v":""},{"$f":"IF('Generated list'!D8476=\"\",\"\",'Generated list'!D8476)","v":""}]
[null,{"$f":"IF('Generated list'!B8477=\"\",\"\",'Generated list'!B8477)","v":""},{"$f":"IF('Generated list'!C8477=\"\",\"\",'Generated list'!C8477)","v":""},{"$f":"IF('Generated list'!D8477=\"\",\"\",'Generated list'!D8477)","v":""}]
[null,{"$f":"IF('Generated list'!B8478=\"\",\"\",'Generated list'!B8478)","v":""},{"$f":"IF('Generated list'!C8478=\"\",\"\",'Generated list'!C8478)","v":""},{"$f":"IF('Generated list'!D8478=\"\",\"\",'Generated list'!D8478)","v":""}]
[null,{"$f":"IF('Generated list'!B8479=\"\",\"\",'Generated list'!B8479)","v":""},{"$f":"IF('Generated list'!C8479=\"\",\"\",'Generated list'!C8479)","v":""},{"$f":"IF('Generated list'!D8479=\"\",\"\",'Generated list'!D8479)","v":""}]
[null,{"$f":"IF('Generated list'!B8480=\"\",\"\",'Generated list'!B8480)","v":""},{"$f":"IF('Generated list'!C8480=\"\",\"\",'Generated list'!C8480)","v":""},{"$f":"IF('Generated list'!D8480=\"\",\"\",'Generated list'!D8480)","v":""}]
[null,{"$f":"IF('Generated list'!B8481=\"\",\"\",'Generated list'!B8481)","v":""},{"$f":"IF('Generated list'!C8481=\"\",\"\",'Generated list'!C8481)","v":""},{"$f":"IF('Generated list'!D8481=\"\",\"\",'Generated list'!D8481)","v":""}]
[null,{"$f":"IF('Generated list'!B8482=\"\",\"\",'Generated list'!B8482)","v":""},{"$f":"IF('Generated list'!C8482=\"\",\"\",'Generated list'!C8482)","v":""},{"$f":"IF('Generated list'!D8482=\"\",\"\",'Generated list'!D8482)","v":""}]
[null,{"$f":"IF('Generated list'!B8483=\"\",\"\",'Generated list'!B8483)","v":""},{"$f":"IF('Generated list'!C8483=\"\",\"\",'Generated list'!C8483)","v":""},{"$f":"IF('Generated list'!D8483=\"\",\"\",'Generated list'!D8483)","v":""}]
[null,{"$f":"IF('Generated list'!B8484=\"\",\"\",'Generated list'!B8484)","v":""},{"$f":"IF('Generated list'!C8484=\"\",\"\",'Generated list'!C8484)","v":""},{"$f":"IF('Generated list'!D8484=\"\",\"\",'Generated list'!D8484)","v":""}]
[null,{"$f":"IF('Generated list'!B8485=\"\",\"\",'Generated list'!B8485)","v":""},{"$f":"IF('Generated list'!C8485=\"\",\"\",'Generated list'!C8485)","v":""},{"$f":"IF('Generated list'!D8485=\"\",\"\",'Generated list'!D8485)","v":""}]
[null,{"$f":"IF('Generated list'!B8486=\"\",\"\",'Generated list'!B8486)","v":""},{"$f":"IF('Generated list'!C8486=\"\",\"\",'Generated list'!C8486)","v":""},{"$f":"IF('Generated list'!D8486=\"\",\"\",'Generated list'!D8486)","v":""}]
[null,{"$f":"IF('Generated list'!B8487=\"\",\"\",'Generated list'!B8487)","v":""},{"$f":"IF('Generated list'!C8487=\"\",\"\",'Generated list'!C8487)","v":""},{"$f":"IF('Generated list'!D8487=\"\",\"\",'Generated list'!D8487)","v":""}]
[null,{"$f":"IF('Generated list'!B8488=\"\",\"\",'Generated list'!B8488)","v":""},{"$f":"IF('Generated list'!C8488=\"\",\"\",'Generated list'!C8488)","v":""},{"$f":"IF('Generated list'!D8488=\"\",\"\",'Generated list'!D8488)","v":""}]
[null,{"$f":"IF('Generated list'!B8489=\"\",\"\",'Generated list'!B8489)","v":""},{"$f":"IF('Generated list'!C8489=\"\",\"\",'Generated list'!C8489)","v":""},{"$f":"IF('Generated list'!D8489=\"\",\"\",'Generated list'!D8489)","v":""}]
[null,{"$f":"IF('Generated list'!B8490=\"\",\"\",'Generated list'!B8490)","v":""},{"$f":"IF('Generated list'!C8490=\"\",\"\",'Generated list'!C8490)","v":""},{"$f":"IF('Generated list'!D8490=\"\",\"\",'Generated list'!D8490)","v":""}]
[null,{"$f":"IF('Generated list'!B8491=\"\",\"\",'Generated list'!B8491)","v":""},{"$f":"IF('Generated list'!C8491=\"\",\"\",'Generated list'!C8491)","v":""},{"$f":"IF('Generated list'!D8491=\"\",\"\",'Generated list'!D8491)","v":""}]
[null,{"$f":"IF('Generated list'!B8492=\"\",\"\",'Generated list'!B8492)","v":""},{"$f":"IF('Generated list'!C8492=\"\",\"\",'Generated list'!C8492)","v":""},{"$f":"IF('Generated list'!D8492=\"\",\"\",'Generated list'!D8492)","v":""}]
[null,{"$f":"IF('Generated list'!B8493=\"\",\"\",'Generated list'!B8493)","v":""},{"$f":"IF('Generated list'!C8493=\"\",\"\",'Generated list'!C8493)","v":""},{"$f":"IF('Generated list'!D8493=\"\",\"\",'Generated list'!D8493)","v":""}]
[null,{"$f":"IF('Generated list'!B8494=\"\",\"\",'Generated list'!B8494)","v":""},{"$f":"IF('Generated list'!C8494=\"\",\"\",'Generated list'!C8494)","v":""},{"$f":"IF('Generated list'!D8494=\"\",\"\",'Generated list'!D8494)","v":""}]
[null,{"$f":"IF('Generated list'!B8495=\"\",\"\",'Generated list'!B8495)","v":""},{"$f":"IF('Generated list'!C8495=\"\",\"\",'Generated list'!C8495)","v":""},{"$f":"IF('Generated list'!D8495=\"\",\"\",'Generated list'!D8495)","v":""}]
[null,{"$f":"IF('Generated list'!B8496=\"\",\"\",'Generated list'!B8496)","v":""},{"$f":"IF('Generated list'!C8496=\"\",\"\",'Generated list'!C8496)","v":""},{"$f":"IF('Generated list'!D8496=\"\",\"\",'Generated list'!D8496)","v":""}]
[null,{"$f":"IF('Generated list'!B8497=\"\",\"\",'Generated list'!B8497)","v":""},{"$f":"IF('Generated list'!C8497=\"\",\"\",'Generated list'!C8497)","v":""},{"$f":"IF('Generated list'!D8497=\"\",\"\",'Generated list'!D8497)","v":""}]
[null,{"$f":"IF('Generated list'!B8498=\"\",\"\",'Generated list'!B8498)","v":""},{"$f":"IF('Generated list'!C8498=\"\",\"\",'Generated list'!C8498)","v":""},{"$f":"IF('Generated list'!D8498=\"\",\"\",'Generated list'!D8498)","v":""}]
[null,{"$f":"IF('Generated list'!B8499=\"\",\"\",'Generated list'!B8499)","v":""},{"$f":"IF('Generated list'!C8499=\"\",\"\",'Generated list'!C8499)","v":""},{"$f":"IF('Generated list'!D8499=\"\",\"\",'Generated list'!D8499)","v":""}]
[null,{"$f":"IF('Generated list'!B8500=\"\",\"\",'Generated list'!B8500)","v":""},{"$f":"IF('Generated list'!C8500=\"\",\"\",'Generated list'!C8500)","v":""},{"$f":"IF('Generated list'!D8500=\"\",\"\",'Generated list'!D8500)","v":""}]
[null,{"$f":"IF('Generated list'!B8501=\"\",\"\",'Generated list'!B8501)","v":""},{"$f":"IF('Generated list'!C8501=\"\",\"\",'Generated list'!C8501)","v":""},{"$f":"IF('Generated list'!D8501=\"\",\"\",'Generated list'!D8501)","v":""}]
[null,{"$f":"IF('Generated list'!B8502=\"\",\"\",'Generated list'!B8502)","v":""},{"$f":"IF('Generated list'!C8502=\"\",\"\",'Generated list'!C8502)","v":""},{"$f":"IF('Generated list'!D8502=\"\",\"\",'Generated list'!D8502)","v":""}]
[null,{"$f":"IF('Generated list'!B8503=\"\",\"\",'Generated list'!B8503)","v":""},{"$f":"IF('Generated list'!C8503=\"\",\"\",'Generated list'!C8503)","v":""},{"$f":"IF('Generated list'!D8503=\"\",\"\",'Generated list'!D8503)","v":""}]
[null,{"$f":"IF('Generated list'!B8504=\"\",\"\",'Generated list'!B8504)","v":""},{"$f":"IF('Generated list'!C8504=\"\",\"\",'Generated list'!C8504)","v":""},{"$f":"IF('Generated list'!D8504=\"\",\"\",'Generated list'!D8504)","v":""}]
[null,{"$f":"IF('Generated list'!B8505=\"\",\"\",'Generated list'!B8505)","v":""},{"$f":"IF('Generated list'!C8505=\"\",\"\",'Generated list'!C8505)","v":""},{"$f":"IF('Generated list'!D8505=\"\",\"\",'Generated list'!D8505)","v":""}]
[null,{"$f":"IF('Generated list'!B8506=\"\",\"\",'Generated list'!B8506)","v":""},{"$f":"IF('Generated list'!C8506=\"\",\"\",'Generated list'!C8506)","v":""},{"$f":"IF('Generated list'!D8506=\"\",\"\",'Generated list'!D8506)","v":""}]
[null,{"$f":"IF('Generated list'!B8507=\"\",\"\",'Generated list'!B8507)","v":""},{"$f":"IF('Generated list'!C8507=\"\",\"\",'Generated list'!C8507)","v":""},{"$f":"IF('Generated list'!D8507=\"\",\"\",'Generated list'!D8507)","v":""}]
[null,{"$f":"IF('Generated list'!B8508=\"\",\"\",'Generated list'!B8508)","v":""},{"$f":"IF('Generated list'!C8508=\"\",\"\",'Generated list'!C8508)","v":""},{"$f":"IF('Generated list'!D8508=\"\",\"\",'Generated list'!D8508)","v":""}]
[null,{"$f":"IF('Generated list'!B8509=\"\",\"\",'Generated list'!B8509)","v":""},{"$f":"IF('Generated list'!C8509=\"\",\"\",'Generated list'!C8509)","v":""},{"$f":"IF('Generated list'!D8509=\"\",\"\",'Generated list'!D8509)","v":""}]
[null,{"$f":"IF('Generated list'!B8510=\"\",\"\",'Generated list'!B8510)","v":""},{"$f":"IF('Generated list'!C8510=\"\",\"\",'Generated list'!C8510)","v":""},{"$f":"IF('Generated list'!D8510=\"\",\"\",'Generated list'!D8510)","v":""}]
[null,{"$f":"IF('Generated list'!B8511=\"\",\"\",'Generated list'!B8511)","v":""},{"$f":"IF('Generated list'!C8511=\"\",\"\",'Generated list'!C8511)","v":""},{"$f":"IF('Generated list'!D8511=\"\",\"\",'Generated list'!D8511)","v":""}]
[null,{"$f":"IF('Generated list'!B8512=\"\",\"\",'Generated list'!B8512)","v":""},{"$f":"IF('Generated list'!C8512=\"\",\"\",'Generated list'!C8512)","v":""},{"$f":"IF('Generated list'!D8512=\"\",\"\",'Generated list'!D8512)","v":""}]
[null,{"$f":"IF('Generated list'!B8513=\"\",\"\",'Generated list'!B8513)","v":""},{"$f":"IF('Generated list'!C8513=\"\",\"\",'Generated list'!C8513)","v":""},{"$f":"IF('Generated list'!D8513=\"\",\"\",'Generated list'!D8513)","v":""}]
[null,{"$f":"IF('Generated list'!B8514=\"\",\"\",'Generated list'!B8514)","v":""},{"$f":"IF('Generated list'!C8514=\"\",\"\",'Generated list'!C8514)","v":""},{"$f":"IF('Generated list'!D8514=\"\",\"\",'Generated list'!D8514)","v":""}]
[null,{"$f":"IF('Generated list'!B8515=\"\",\"\",'Generated list'!B8515)","v":""},{"$f":"IF('Generated list'!C8515=\"\",\"\",'Generated list'!C8515)","v":""},{"$f":"IF('Generated list'!D8515=\"\",\"\",'Generated list'!D8515)","v":""}]
[null,{"$f":"IF('Generated list'!B8516=\"\",\"\",'Generated list'!B8516)","v":""},{"$f":"IF('Generated list'!C8516=\"\",\"\",'Generated list'!C8516)","v":""},{"$f":"IF('Generated list'!D8516=\"\",\"\",'Generated list'!D8516)","v":""}]
[null,{"$f":"IF('Generated list'!B8517=\"\",\"\",'Generated list'!B8517)","v":""},{"$f":"IF('Generated list'!C8517=\"\",\"\",'Generated list'!C8517)","v":""},{"$f":"IF('Generated list'!D8517=\"\",\"\",'Generated list'!D8517)","v":""}]
[null,{"$f":"IF('Generated list'!B8518=\"\",\"\",'Generated list'!B8518)","v":""},{"$f":"IF('Generated list'!C8518=\"\",\"\",'Generated list'!C8518)","v":""},{"$f":"IF('Generated list'!D8518=\"\",\"\",'Generated list'!D8518)","v":""}]
[null,{"$f":"IF('Generated list'!B8519=\"\",\"\",'Generated list'!B8519)","v":""},{"$f":"IF('Generated list'!C8519=\"\",\"\",'Generated list'!C8519)","v":""},{"$f":"IF('Generated list'!D8519=\"\",\"\",'Generated list'!D8519)","v":""}]
[null,{"$f":"IF('Generated list'!B8520=\"\",\"\",'Generated list'!B8520)","v":""},{"$f":"IF('Generated list'!C8520=\"\",\"\",'Generated list'!C8520)","v":""},{"$f":"IF('Generated list'!D8520=\"\",\"\",'Generated list'!D8520)","v":""}]
[null,{"$f":"IF('Generated list'!B8521=\"\",\"\",'Generated list'!B8521)","v":""},{"$f":"IF('Generated list'!C8521=\"\",\"\",'Generated list'!C8521)","v":""},{"$f":"IF('Generated list'!D8521=\"\",\"\",'Generated list'!D8521)","v":""}]
[null,{"$f":"IF('Generated list'!B8522=\"\",\"\",'Generated list'!B8522)","v":""},{"$f":"IF('Generated list'!C8522=\"\",\"\",'Generated list'!C8522)","v":""},{"$f":"IF('Generated list'!D8522=\"\",\"\",'Generated list'!D8522)","v":""}]
[null,{"$f":"IF('Generated list'!B8523=\"\",\"\",'Generated list'!B8523)","v":""},{"$f":"IF('Generated list'!C8523=\"\",\"\",'Generated list'!C8523)","v":""},{"$f":"IF('Generated list'!D8523=\"\",\"\",'Generated list'!D8523)","v":""}]
[null,{"$f":"IF('Generated list'!B8524=\"\",\"\",'Generated list'!B8524)","v":""},{"$f":"IF('Generated list'!C8524=\"\",\"\",'Generated list'!C8524)","v":""},{"$f":"IF('Generated list'!D8524=\"\",\"\",'Generated list'!D8524)","v":""}]
[null,{"$f":"IF('Generated list'!B8525=\"\",\"\",'Generated list'!B8525)","v":""},{"$f":"IF('Generated list'!C8525=\"\",\"\",'Generated list'!C8525)","v":""},{"$f":"IF('Generated list'!D8525=\"\",\"\",'Generated list'!D8525)","v":""}]
[null,{"$f":"IF('Generated list'!B8526=\"\",\"\",'Generated list'!B8526)","v":""},{"$f":"IF('Generated list'!C8526=\"\",\"\",'Generated list'!C8526)","v":""},{"$f":"IF('Generated list'!D8526=\"\",\"\",'Generated list'!D8526)","v":""}]
[null,{"$f":"IF('Generated list'!B8527=\"\",\"\",'Generated list'!B8527)","v":""},{"$f":"IF('Generated list'!C8527=\"\",\"\",'Generated list'!C8527)","v":""},{"$f":"IF('Generated list'!D8527=\"\",\"\",'Generated list'!D8527)","v":""}]
[null,{"$f":"IF('Generated list'!B8528=\"\",\"\",'Generated list'!B8528)","v":""},{"$f":"IF('Generated list'!C8528=\"\",\"\",'Generated list'!C8528)","v":""},{"$f":"IF('Generated list'!D8528=\"\",\"\",'Generated list'!D8528)","v":""}]
[null,{"$f":"IF('Generated list'!B8529=\"\",\"\",'Generated list'!B8529)","v":""},{"$f":"IF('Generated list'!C8529=\"\",\"\",'Generated list'!C8529)","v":""},{"$f":"IF('Generated list'!D8529=\"\",\"\",'Generated list'!D8529)","v":""}]
[null,{"$f":"IF('Generated list'!B8530=\"\",\"\",'Generated list'!B8530)","v":""},{"$f":"IF('Generated list'!C8530=\"\",\"\",'Generated list'!C8530)","v":""},{"$f":"IF('Generated list'!D8530=\"\",\"\",'Generated list'!D8530)","v":""}]
[null,{"$f":"IF('Generated list'!B8531=\"\",\"\",'Generated list'!B8531)","v":""},{"$f":"IF('Generated list'!C8531=\"\",\"\",'Generated list'!C8531)","v":""},{"$f":"IF('Generated list'!D8531=\"\",\"\",'Generated list'!D8531)","v":""}]
[null,{"$f":"IF('Generated list'!B8532=\"\",\"\",'Generated list'!B8532)","v":""},{"$f":"IF('Generated list'!C8532=\"\",\"\",'Generated list'!C8532)","v":""},{"$f":"IF('Generated list'!D8532=\"\",\"\",'Generated list'!D8532)","v":""}]
[null,{"$f":"IF('Generated list'!B8533=\"\",\"\",'Generated list'!B8533)","v":""},{"$f":"IF('Generated list'!C8533=\"\",\"\",'Generated list'!C8533)","v":""},{"$f":"IF('Generated list'!D8533=\"\",\"\",'Generated list'!D8533)","v":""}]
[null,{"$f":"IF('Generated list'!B8534=\"\",\"\",'Generated list'!B8534)","v":""},{"$f":"IF('Generated list'!C8534=\"\",\"\",'Generated list'!C8534)","v":""},{"$f":"IF('Generated list'!D8534=\"\",\"\",'Generated list'!D8534)","v":""}]
[null,{"$f":"IF('Generated list'!B8535=\"\",\"\",'Generated list'!B8535)","v":""},{"$f":"IF('Generated list'!C8535=\"\",\"\",'Generated list'!C8535)","v":""},{"$f":"IF('Generated list'!D8535=\"\",\"\",'Generated list'!D8535)","v":""}]
[null,{"$f":"IF('Generated list'!B8536=\"\",\"\",'Generated list'!B8536)","v":""},{"$f":"IF('Generated list'!C8536=\"\",\"\",'Generated list'!C8536)","v":""},{"$f":"IF('Generated list'!D8536=\"\",\"\",'Generated list'!D8536)","v":""}]
[null,{"$f":"IF('Generated list'!B8537=\"\",\"\",'Generated list'!B8537)","v":""},{"$f":"IF('Generated list'!C8537=\"\",\"\",'Generated list'!C8537)","v":""},{"$f":"IF('Generated list'!D8537=\"\",\"\",'Generated list'!D8537)","v":""}]
[null,{"$f":"IF('Generated list'!B8538=\"\",\"\",'Generated list'!B8538)","v":""},{"$f":"IF('Generated list'!C8538=\"\",\"\",'Generated list'!C8538)","v":""},{"$f":"IF('Generated list'!D8538=\"\",\"\",'Generated list'!D8538)","v":""}]
[null,{"$f":"IF('Generated list'!B8539=\"\",\"\",'Generated list'!B8539)","v":""},{"$f":"IF('Generated list'!C8539=\"\",\"\",'Generated list'!C8539)","v":""},{"$f":"IF('Generated list'!D8539=\"\",\"\",'Generated list'!D8539)","v":""}]
[null,{"$f":"IF('Generated list'!B8540=\"\",\"\",'Generated list'!B8540)","v":""},{"$f":"IF('Generated list'!C8540=\"\",\"\",'Generated list'!C8540)","v":""},{"$f":"IF('Generated list'!D8540=\"\",\"\",'Generated list'!D8540)","v":""}]
[null,{"$f":"IF('Generated list'!B8541=\"\",\"\",'Generated list'!B8541)","v":""},{"$f":"IF('Generated list'!C8541=\"\",\"\",'Generated list'!C8541)","v":""},{"$f":"IF('Generated list'!D8541=\"\",\"\",'Generated list'!D8541)","v":""}]
[null,{"$f":"IF('Generated list'!B8542=\"\",\"\",'Generated list'!B8542)","v":""},{"$f":"IF('Generated list'!C8542=\"\",\"\",'Generated list'!C8542)","v":""},{"$f":"IF('Generated list'!D8542=\"\",\"\",'Generated list'!D8542)","v":""}]
[null,{"$f":"IF('Generated list'!B8543=\"\",\"\",'Generated list'!B8543)","v":""},{"$f":"IF('Generated list'!C8543=\"\",\"\",'Generated list'!C8543)","v":""},{"$f":"IF('Generated list'!D8543=\"\",\"\",'Generated list'!D8543)","v":""}]
[null,{"$f":"IF('Generated list'!B8544=\"\",\"\",'Generated list'!B8544)","v":""},{"$f":"IF('Generated list'!C8544=\"\",\"\",'Generated list'!C8544)","v":""},{"$f":"IF('Generated list'!D8544=\"\",\"\",'Generated list'!D8544)","v":""}]
[null,{"$f":"IF('Generated list'!B8545=\"\",\"\",'Generated list'!B8545)","v":""},{"$f":"IF('Generated list'!C8545=\"\",\"\",'Generated list'!C8545)","v":""},{"$f":"IF('Generated list'!D8545=\"\",\"\",'Generated list'!D8545)","v":""}]
[null,{"$f":"IF('Generated list'!B8546=\"\",\"\",'Generated list'!B8546)","v":""},{"$f":"IF('Generated list'!C8546=\"\",\"\",'Generated list'!C8546)","v":""},{"$f":"IF('Generated list'!D8546=\"\",\"\",'Generated list'!D8546)","v":""}]
[null,{"$f":"IF('Generated list'!B8547=\"\",\"\",'Generated list'!B8547)","v":""},{"$f":"IF('Generated list'!C8547=\"\",\"\",'Generated list'!C8547)","v":""},{"$f":"IF('Generated list'!D8547=\"\",\"\",'Generated list'!D8547)","v":""}]
[null,{"$f":"IF('Generated list'!B8548=\"\",\"\",'Generated list'!B8548)","v":""},{"$f":"IF('Generated list'!C8548=\"\",\"\",'Generated list'!C8548)","v":""},{"$f":"IF('Generated list'!D8548=\"\",\"\",'Generated list'!D8548)","v":""}]
[null,{"$f":"IF('Generated list'!B8549=\"\",\"\",'Generated list'!B8549)","v":""},{"$f":"IF('Generated list'!C8549=\"\",\"\",'Generated list'!C8549)","v":""},{"$f":"IF('Generated list'!D8549=\"\",\"\",'Generated list'!D8549)","v":""}]
[null,{"$f":"IF('Generated list'!B8550=\"\",\"\",'Generated list'!B8550)","v":""},{"$f":"IF('Generated list'!C8550=\"\",\"\",'Generated list'!C8550)","v":""},{"$f":"IF('Generated list'!D8550=\"\",\"\",'Generated list'!D8550)","v":""}]
[null,{"$f":"IF('Generated list'!B8551=\"\",\"\",'Generated list'!B8551)","v":""},{"$f":"IF('Generated list'!C8551=\"\",\"\",'Generated list'!C8551)","v":""},{"$f":"IF('Generated list'!D8551=\"\",\"\",'Generated list'!D8551)","v":""}]
[null,{"$f":"IF('Generated list'!B8552=\"\",\"\",'Generated list'!B8552)","v":""},{"$f":"IF('Generated list'!C8552=\"\",\"\",'Generated list'!C8552)","v":""},{"$f":"IF('Generated list'!D8552=\"\",\"\",'Generated list'!D8552)","v":""}]
[null,{"$f":"IF('Generated list'!B8553=\"\",\"\",'Generated list'!B8553)","v":""},{"$f":"IF('Generated list'!C8553=\"\",\"\",'Generated list'!C8553)","v":""},{"$f":"IF('Generated list'!D8553=\"\",\"\",'Generated list'!D8553)","v":""}]
[null,{"$f":"IF('Generated list'!B8554=\"\",\"\",'Generated list'!B8554)","v":""},{"$f":"IF('Generated list'!C8554=\"\",\"\",'Generated list'!C8554)","v":""},{"$f":"IF('Generated list'!D8554=\"\",\"\",'Generated list'!D8554)","v":""}]
[null,{"$f":"IF('Generated list'!B8555=\"\",\"\",'Generated list'!B8555)","v":""},{"$f":"IF('Generated list'!C8555=\"\",\"\",'Generated list'!C8555)","v":""},{"$f":"IF('Generated list'!D8555=\"\",\"\",'Generated list'!D8555)","v":""}]
[null,{"$f":"IF('Generated list'!B8556=\"\",\"\",'Generated list'!B8556)","v":""},{"$f":"IF('Generated list'!C8556=\"\",\"\",'Generated list'!C8556)","v":""},{"$f":"IF('Generated list'!D8556=\"\",\"\",'Generated list'!D8556)","v":""}]
[null,{"$f":"IF('Generated list'!B8557=\"\",\"\",'Generated list'!B8557)","v":""},{"$f":"IF('Generated list'!C8557=\"\",\"\",'Generated list'!C8557)","v":""},{"$f":"IF('Generated list'!D8557=\"\",\"\",'Generated list'!D8557)","v":""}]
[null,{"$f":"IF('Generated list'!B8558=\"\",\"\",'Generated list'!B8558)","v":""},{"$f":"IF('Generated list'!C8558=\"\",\"\",'Generated list'!C8558)","v":""},{"$f":"IF('Generated list'!D8558=\"\",\"\",'Generated list'!D8558)","v":""}]
[null,{"$f":"IF('Generated list'!B8559=\"\",\"\",'Generated list'!B8559)","v":""},{"$f":"IF('Generated list'!C8559=\"\",\"\",'Generated list'!C8559)","v":""},{"$f":"IF('Generated list'!D8559=\"\",\"\",'Generated list'!D8559)","v":""}]
[null,{"$f":"IF('Generated list'!B8560=\"\",\"\",'Generated list'!B8560)","v":""},{"$f":"IF('Generated list'!C8560=\"\",\"\",'Generated list'!C8560)","v":""},{"$f":"IF('Generated list'!D8560=\"\",\"\",'Generated list'!D8560)","v":""}]
[null,{"$f":"IF('Generated list'!B8561=\"\",\"\",'Generated list'!B8561)","v":""},{"$f":"IF('Generated list'!C8561=\"\",\"\",'Generated list'!C8561)","v":""},{"$f":"IF('Generated list'!D8561=\"\",\"\",'Generated list'!D8561)","v":""}]
[null,{"$f":"IF('Generated list'!B8562=\"\",\"\",'Generated list'!B8562)","v":""},{"$f":"IF('Generated list'!C8562=\"\",\"\",'Generated list'!C8562)","v":""},{"$f":"IF('Generated list'!D8562=\"\",\"\",'Generated list'!D8562)","v":""}]
[null,{"$f":"IF('Generated list'!B8563=\"\",\"\",'Generated list'!B8563)","v":""},{"$f":"IF('Generated list'!C8563=\"\",\"\",'Generated list'!C8563)","v":""},{"$f":"IF('Generated list'!D8563=\"\",\"\",'Generated list'!D8563)","v":""}]
[null,{"$f":"IF('Generated list'!B8564=\"\",\"\",'Generated list'!B8564)","v":""},{"$f":"IF('Generated list'!C8564=\"\",\"\",'Generated list'!C8564)","v":""},{"$f":"IF('Generated list'!D8564=\"\",\"\",'Generated list'!D8564)","v":""}]
[null,{"$f":"IF('Generated list'!B8565=\"\",\"\",'Generated list'!B8565)","v":""},{"$f":"IF('Generated list'!C8565=\"\",\"\",'Generated list'!C8565)","v":""},{"$f":"IF('Generated list'!D8565=\"\",\"\",'Generated list'!D8565)","v":""}]
[null,{"$f":"IF('Generated list'!B8566=\"\",\"\",'Generated list'!B8566)","v":""},{"$f":"IF('Generated list'!C8566=\"\",\"\",'Generated list'!C8566)","v":""},{"$f":"IF('Generated list'!D8566=\"\",\"\",'Generated list'!D8566)","v":""}]
[null,{"$f":"IF('Generated list'!B8567=\"\",\"\",'Generated list'!B8567)","v":""},{"$f":"IF('Generated list'!C8567=\"\",\"\",'Generated list'!C8567)","v":""},{"$f":"IF('Generated list'!D8567=\"\",\"\",'Generated list'!D8567)","v":""}]
[null,{"$f":"IF('Generated list'!B8568=\"\",\"\",'Generated list'!B8568)","v":""},{"$f":"IF('Generated list'!C8568=\"\",\"\",'Generated list'!C8568)","v":""},{"$f":"IF('Generated list'!D8568=\"\",\"\",'Generated list'!D8568)","v":""}]
[null,{"$f":"IF('Generated list'!B8569=\"\",\"\",'Generated list'!B8569)","v":""},{"$f":"IF('Generated list'!C8569=\"\",\"\",'Generated list'!C8569)","v":""},{"$f":"IF('Generated list'!D8569=\"\",\"\",'Generated list'!D8569)","v":""}]
[null,{"$f":"IF('Generated list'!B8570=\"\",\"\",'Generated list'!B8570)","v":""},{"$f":"IF('Generated list'!C8570=\"\",\"\",'Generated list'!C8570)","v":""},{"$f":"IF('Generated list'!D8570=\"\",\"\",'Generated list'!D8570)","v":""}]
[null,{"$f":"IF('Generated list'!B8571=\"\",\"\",'Generated list'!B8571)","v":""},{"$f":"IF('Generated list'!C8571=\"\",\"\",'Generated list'!C8571)","v":""},{"$f":"IF('Generated list'!D8571=\"\",\"\",'Generated list'!D8571)","v":""}]
[null,{"$f":"IF('Generated list'!B8572=\"\",\"\",'Generated list'!B8572)","v":""},{"$f":"IF('Generated list'!C8572=\"\",\"\",'Generated list'!C8572)","v":""},{"$f":"IF('Generated list'!D8572=\"\",\"\",'Generated list'!D8572)","v":""}]
[null,{"$f":"IF('Generated list'!B8573=\"\",\"\",'Generated list'!B8573)","v":""},{"$f":"IF('Generated list'!C8573=\"\",\"\",'Generated list'!C8573)","v":""},{"$f":"IF('Generated list'!D8573=\"\",\"\",'Generated list'!D8573)","v":""}]
[null,{"$f":"IF('Generated list'!B8574=\"\",\"\",'Generated list'!B8574)","v":""},{"$f":"IF('Generated list'!C8574=\"\",\"\",'Generated list'!C8574)","v":""},{"$f":"IF('Generated list'!D8574=\"\",\"\",'Generated list'!D8574)","v":""}]
[null,{"$f":"IF('Generated list'!B8575=\"\",\"\",'Generated list'!B8575)","v":""},{"$f":"IF('Generated list'!C8575=\"\",\"\",'Generated list'!C8575)","v":""},{"$f":"IF('Generated list'!D8575=\"\",\"\",'Generated list'!D8575)","v":""}]
[null,{"$f":"IF('Generated list'!B8576=\"\",\"\",'Generated list'!B8576)","v":""},{"$f":"IF('Generated list'!C8576=\"\",\"\",'Generated list'!C8576)","v":""},{"$f":"IF('Generated list'!D8576=\"\",\"\",'Generated list'!D8576)","v":""}]
[null,{"$f":"IF('Generated list'!B8577=\"\",\"\",'Generated list'!B8577)","v":""},{"$f":"IF('Generated list'!C8577=\"\",\"\",'Generated list'!C8577)","v":""},{"$f":"IF('Generated list'!D8577=\"\",\"\",'Generated list'!D8577)","v":""}]
[null,{"$f":"IF('Generated list'!B8578=\"\",\"\",'Generated list'!B8578)","v":""},{"$f":"IF('Generated list'!C8578=\"\",\"\",'Generated list'!C8578)","v":""},{"$f":"IF('Generated list'!D8578=\"\",\"\",'Generated list'!D8578)","v":""}]
[null,{"$f":"IF('Generated list'!B8579=\"\",\"\",'Generated list'!B8579)","v":""},{"$f":"IF('Generated list'!C8579=\"\",\"\",'Generated list'!C8579)","v":""},{"$f":"IF('Generated list'!D8579=\"\",\"\",'Generated list'!D8579)","v":""}]
[null,{"$f":"IF('Generated list'!B8580=\"\",\"\",'Generated list'!B8580)","v":""},{"$f":"IF('Generated list'!C8580=\"\",\"\",'Generated list'!C8580)","v":""},{"$f":"IF('Generated list'!D8580=\"\",\"\",'Generated list'!D8580)","v":""}]
[null,{"$f":"IF('Generated list'!B8581=\"\",\"\",'Generated list'!B8581)","v":""},{"$f":"IF('Generated list'!C8581=\"\",\"\",'Generated list'!C8581)","v":""},{"$f":"IF('Generated list'!D8581=\"\",\"\",'Generated list'!D8581)","v":""}]
[null,{"$f":"IF('Generated list'!B8582=\"\",\"\",'Generated list'!B8582)","v":""},{"$f":"IF('Generated list'!C8582=\"\",\"\",'Generated list'!C8582)","v":""},{"$f":"IF('Generated list'!D8582=\"\",\"\",'Generated list'!D8582)","v":""}]
[null,{"$f":"IF('Generated list'!B8583=\"\",\"\",'Generated list'!B8583)","v":""},{"$f":"IF('Generated list'!C8583=\"\",\"\",'Generated list'!C8583)","v":""},{"$f":"IF('Generated list'!D8583=\"\",\"\",'Generated list'!D8583)","v":""}]
[null,{"$f":"IF('Generated list'!B8584=\"\",\"\",'Generated list'!B8584)","v":""},{"$f":"IF('Generated list'!C8584=\"\",\"\",'Generated list'!C8584)","v":""},{"$f":"IF('Generated list'!D8584=\"\",\"\",'Generated list'!D8584)","v":""}]
[null,{"$f":"IF('Generated list'!B8585=\"\",\"\",'Generated list'!B8585)","v":""},{"$f":"IF('Generated list'!C8585=\"\",\"\",'Generated list'!C8585)","v":""},{"$f":"IF('Generated list'!D8585=\"\",\"\",'Generated list'!D8585)","v":""}]
[null,{"$f":"IF('Generated list'!B8586=\"\",\"\",'Generated list'!B8586)","v":""},{"$f":"IF('Generated list'!C8586=\"\",\"\",'Generated list'!C8586)","v":""},{"$f":"IF('Generated list'!D8586=\"\",\"\",'Generated list'!D8586)","v":""}]
[null,{"$f":"IF('Generated list'!B8587=\"\",\"\",'Generated list'!B8587)","v":""},{"$f":"IF('Generated list'!C8587=\"\",\"\",'Generated list'!C8587)","v":""},{"$f":"IF('Generated list'!D8587=\"\",\"\",'Generated list'!D8587)","v":""}]
[null,{"$f":"IF('Generated list'!B8588=\"\",\"\",'Generated list'!B8588)","v":""},{"$f":"IF('Generated list'!C8588=\"\",\"\",'Generated list'!C8588)","v":""},{"$f":"IF('Generated list'!D8588=\"\",\"\",'Generated list'!D8588)","v":""}]
[null,{"$f":"IF('Generated list'!B8589=\"\",\"\",'Generated list'!B8589)","v":""},{"$f":"IF('Generated list'!C8589=\"\",\"\",'Generated list'!C8589)","v":""},{"$f":"IF('Generated list'!D8589=\"\",\"\",'Generated list'!D8589)","v":""}]
[null,{"$f":"IF('Generated list'!B8590=\"\",\"\",'Generated list'!B8590)","v":""},{"$f":"IF('Generated list'!C8590=\"\",\"\",'Generated list'!C8590)","v":""},{"$f":"IF('Generated list'!D8590=\"\",\"\",'Generated list'!D8590)","v":""}]
[null,{"$f":"IF('Generated list'!B8591=\"\",\"\",'Generated list'!B8591)","v":""},{"$f":"IF('Generated list'!C8591=\"\",\"\",'Generated list'!C8591)","v":""},{"$f":"IF('Generated list'!D8591=\"\",\"\",'Generated list'!D8591)","v":""}]
[null,{"$f":"IF('Generated list'!B8592=\"\",\"\",'Generated list'!B8592)","v":""},{"$f":"IF('Generated list'!C8592=\"\",\"\",'Generated list'!C8592)","v":""},{"$f":"IF('Generated list'!D8592=\"\",\"\",'Generated list'!D8592)","v":""}]
[null,{"$f":"IF('Generated list'!B8593=\"\",\"\",'Generated list'!B8593)","v":""},{"$f":"IF('Generated list'!C8593=\"\",\"\",'Generated list'!C8593)","v":""},{"$f":"IF('Generated list'!D8593=\"\",\"\",'Generated list'!D8593)","v":""}]
[null,{"$f":"IF('Generated list'!B8594=\"\",\"\",'Generated list'!B8594)","v":""},{"$f":"IF('Generated list'!C8594=\"\",\"\",'Generated list'!C8594)","v":""},{"$f":"IF('Generated list'!D8594=\"\",\"\",'Generated list'!D8594)","v":""}]
[null,{"$f":"IF('Generated list'!B8595=\"\",\"\",'Generated list'!B8595)","v":""},{"$f":"IF('Generated list'!C8595=\"\",\"\",'Generated list'!C8595)","v":""},{"$f":"IF('Generated list'!D8595=\"\",\"\",'Generated list'!D8595)","v":""}]
[null,{"$f":"IF('Generated list'!B8596=\"\",\"\",'Generated list'!B8596)","v":""},{"$f":"IF('Generated list'!C8596=\"\",\"\",'Generated list'!C8596)","v":""},{"$f":"IF('Generated list'!D8596=\"\",\"\",'Generated list'!D8596)","v":""}]
[null,{"$f":"IF('Generated list'!B8597=\"\",\"\",'Generated list'!B8597)","v":""},{"$f":"IF('Generated list'!C8597=\"\",\"\",'Generated list'!C8597)","v":""},{"$f":"IF('Generated list'!D8597=\"\",\"\",'Generated list'!D8597)","v":""}]
[null,{"$f":"IF('Generated list'!B8598=\"\",\"\",'Generated list'!B8598)","v":""},{"$f":"IF('Generated list'!C8598=\"\",\"\",'Generated list'!C8598)","v":""},{"$f":"IF('Generated list'!D8598=\"\",\"\",'Generated list'!D8598)","v":""}]
[null,{"$f":"IF('Generated list'!B8599=\"\",\"\",'Generated list'!B8599)","v":""},{"$f":"IF('Generated list'!C8599=\"\",\"\",'Generated list'!C8599)","v":""},{"$f":"IF('Generated list'!D8599=\"\",\"\",'Generated list'!D8599)","v":""}]
[null,{"$f":"IF('Generated list'!B8600=\"\",\"\",'Generated list'!B8600)","v":""},{"$f":"IF('Generated list'!C8600=\"\",\"\",'Generated list'!C8600)","v":""},{"$f":"IF('Generated list'!D8600=\"\",\"\",'Generated list'!D8600)","v":""}]
[null,{"$f":"IF('Generated list'!B8601=\"\",\"\",'Generated list'!B8601)","v":""},{"$f":"IF('Generated list'!C8601=\"\",\"\",'Generated list'!C8601)","v":""},{"$f":"IF('Generated list'!D8601=\"\",\"\",'Generated list'!D8601)","v":""}]
[null,{"$f":"IF('Generated list'!B8602=\"\",\"\",'Generated list'!B8602)","v":""},{"$f":"IF('Generated list'!C8602=\"\",\"\",'Generated list'!C8602)","v":""},{"$f":"IF('Generated list'!D8602=\"\",\"\",'Generated list'!D8602)","v":""}]
[null,{"$f":"IF('Generated list'!B8603=\"\",\"\",'Generated list'!B8603)","v":""},{"$f":"IF('Generated list'!C8603=\"\",\"\",'Generated list'!C8603)","v":""},{"$f":"IF('Generated list'!D8603=\"\",\"\",'Generated list'!D8603)","v":""}]
[null,{"$f":"IF('Generated list'!B8604=\"\",\"\",'Generated list'!B8604)","v":""},{"$f":"IF('Generated list'!C8604=\"\",\"\",'Generated list'!C8604)","v":""},{"$f":"IF('Generated list'!D8604=\"\",\"\",'Generated list'!D8604)","v":""}]
[null,{"$f":"IF('Generated list'!B8605=\"\",\"\",'Generated list'!B8605)","v":""},{"$f":"IF('Generated list'!C8605=\"\",\"\",'Generated list'!C8605)","v":""},{"$f":"IF('Generated list'!D8605=\"\",\"\",'Generated list'!D8605)","v":""}]
[null,{"$f":"IF('Generated list'!B8606=\"\",\"\",'Generated list'!B8606)","v":""},{"$f":"IF('Generated list'!C8606=\"\",\"\",'Generated list'!C8606)","v":""},{"$f":"IF('Generated list'!D8606=\"\",\"\",'Generated list'!D8606)","v":""}]
[null,{"$f":"IF('Generated list'!B8607=\"\",\"\",'Generated list'!B8607)","v":""},{"$f":"IF('Generated list'!C8607=\"\",\"\",'Generated list'!C8607)","v":""},{"$f":"IF('Generated list'!D8607=\"\",\"\",'Generated list'!D8607)","v":""}]
[null,{"$f":"IF('Generated list'!B8608=\"\",\"\",'Generated list'!B8608)","v":""},{"$f":"IF('Generated list'!C8608=\"\",\"\",'Generated list'!C8608)","v":""},{"$f":"IF('Generated list'!D8608=\"\",\"\",'Generated list'!D8608)","v":""}]
[null,{"$f":"IF('Generated list'!B8609=\"\",\"\",'Generated list'!B8609)","v":""},{"$f":"IF('Generated list'!C8609=\"\",\"\",'Generated list'!C8609)","v":""},{"$f":"IF('Generated list'!D8609=\"\",\"\",'Generated list'!D8609)","v":""}]
[null,{"$f":"IF('Generated list'!B8610=\"\",\"\",'Generated list'!B8610)","v":""},{"$f":"IF('Generated list'!C8610=\"\",\"\",'Generated list'!C8610)","v":""},{"$f":"IF('Generated list'!D8610=\"\",\"\",'Generated list'!D8610)","v":""}]
[null,{"$f":"IF('Generated list'!B8611=\"\",\"\",'Generated list'!B8611)","v":""},{"$f":"IF('Generated list'!C8611=\"\",\"\",'Generated list'!C8611)","v":""},{"$f":"IF('Generated list'!D8611=\"\",\"\",'Generated list'!D8611)","v":""}]
[null,{"$f":"IF('Generated list'!B8612=\"\",\"\",'Generated list'!B8612)","v":""},{"$f":"IF('Generated list'!C8612=\"\",\"\",'Generated list'!C8612)","v":""},{"$f":"IF('Generated list'!D8612=\"\",\"\",'Generated list'!D8612)","v":""}]
[null,{"$f":"IF('Generated list'!B8613=\"\",\"\",'Generated list'!B8613)","v":""},{"$f":"IF('Generated list'!C8613=\"\",\"\",'Generated list'!C8613)","v":""},{"$f":"IF('Generated list'!D8613=\"\",\"\",'Generated list'!D8613)","v":""}]
[null,{"$f":"IF('Generated list'!B8614=\"\",\"\",'Generated list'!B8614)","v":""},{"$f":"IF('Generated list'!C8614=\"\",\"\",'Generated list'!C8614)","v":""},{"$f":"IF('Generated list'!D8614=\"\",\"\",'Generated list'!D8614)","v":""}]
[null,{"$f":"IF('Generated list'!B8615=\"\",\"\",'Generated list'!B8615)","v":""},{"$f":"IF('Generated list'!C8615=\"\",\"\",'Generated list'!C8615)","v":""},{"$f":"IF('Generated list'!D8615=\"\",\"\",'Generated list'!D8615)","v":""}]
[null,{"$f":"IF('Generated list'!B8616=\"\",\"\",'Generated list'!B8616)","v":""},{"$f":"IF('Generated list'!C8616=\"\",\"\",'Generated list'!C8616)","v":""},{"$f":"IF('Generated list'!D8616=\"\",\"\",'Generated list'!D8616)","v":""}]
[null,{"$f":"IF('Generated list'!B8617=\"\",\"\",'Generated list'!B8617)","v":""},{"$f":"IF('Generated list'!C8617=\"\",\"\",'Generated list'!C8617)","v":""},{"$f":"IF('Generated list'!D8617=\"\",\"\",'Generated list'!D8617)","v":""}]
[null,{"$f":"IF('Generated list'!B8618=\"\",\"\",'Generated list'!B8618)","v":""},{"$f":"IF('Generated list'!C8618=\"\",\"\",'Generated list'!C8618)","v":""},{"$f":"IF('Generated list'!D8618=\"\",\"\",'Generated list'!D8618)","v":""}]
[null,{"$f":"IF('Generated list'!B8619=\"\",\"\",'Generated list'!B8619)","v":""},{"$f":"IF('Generated list'!C8619=\"\",\"\",'Generated list'!C8619)","v":""},{"$f":"IF('Generated list'!D8619=\"\",\"\",'Generated list'!D8619)","v":""}]
[null,{"$f":"IF('Generated list'!B8620=\"\",\"\",'Generated list'!B8620)","v":""},{"$f":"IF('Generated list'!C8620=\"\",\"\",'Generated list'!C8620)","v":""},{"$f":"IF('Generated list'!D8620=\"\",\"\",'Generated list'!D8620)","v":""}]
[null,{"$f":"IF('Generated list'!B8621=\"\",\"\",'Generated list'!B8621)","v":""},{"$f":"IF('Generated list'!C8621=\"\",\"\",'Generated list'!C8621)","v":""},{"$f":"IF('Generated list'!D8621=\"\",\"\",'Generated list'!D8621)","v":""}]
[null,{"$f":"IF('Generated list'!B8622=\"\",\"\",'Generated list'!B8622)","v":""},{"$f":"IF('Generated list'!C8622=\"\",\"\",'Generated list'!C8622)","v":""},{"$f":"IF('Generated list'!D8622=\"\",\"\",'Generated list'!D8622)","v":""}]
[null,{"$f":"IF('Generated list'!B8623=\"\",\"\",'Generated list'!B8623)","v":""},{"$f":"IF('Generated list'!C8623=\"\",\"\",'Generated list'!C8623)","v":""},{"$f":"IF('Generated list'!D8623=\"\",\"\",'Generated list'!D8623)","v":""}]
[null,{"$f":"IF('Generated list'!B8624=\"\",\"\",'Generated list'!B8624)","v":""},{"$f":"IF('Generated list'!C8624=\"\",\"\",'Generated list'!C8624)","v":""},{"$f":"IF('Generated list'!D8624=\"\",\"\",'Generated list'!D8624)","v":""}]
[null,{"$f":"IF('Generated list'!B8625=\"\",\"\",'Generated list'!B8625)","v":""},{"$f":"IF('Generated list'!C8625=\"\",\"\",'Generated list'!C8625)","v":""},{"$f":"IF('Generated list'!D8625=\"\",\"\",'Generated list'!D8625)","v":""}]
[null,{"$f":"IF('Generated list'!B8626=\"\",\"\",'Generated list'!B8626)","v":""},{"$f":"IF('Generated list'!C8626=\"\",\"\",'Generated list'!C8626)","v":""},{"$f":"IF('Generated list'!D8626=\"\",\"\",'Generated list'!D8626)","v":""}]
[null,{"$f":"IF('Generated list'!B8627=\"\",\"\",'Generated list'!B8627)","v":""},{"$f":"IF('Generated list'!C8627=\"\",\"\",'Generated list'!C8627)","v":""},{"$f":"IF('Generated list'!D8627=\"\",\"\",'Generated list'!D8627)","v":""}]
[null,{"$f":"IF('Generated list'!B8628=\"\",\"\",'Generated list'!B8628)","v":""},{"$f":"IF('Generated list'!C8628=\"\",\"\",'Generated list'!C8628)","v":""},{"$f":"IF('Generated list'!D8628=\"\",\"\",'Generated list'!D8628)","v":""}]
[null,{"$f":"IF('Generated list'!B8629=\"\",\"\",'Generated list'!B8629)","v":""},{"$f":"IF('Generated list'!C8629=\"\",\"\",'Generated list'!C8629)","v":""},{"$f":"IF('Generated list'!D8629=\"\",\"\",'Generated list'!D8629)","v":""}]
[null,{"$f":"IF('Generated list'!B8630=\"\",\"\",'Generated list'!B8630)","v":""},{"$f":"IF('Generated list'!C8630=\"\",\"\",'Generated list'!C8630)","v":""},{"$f":"IF('Generated list'!D8630=\"\",\"\",'Generated list'!D8630)","v":""}]
[null,{"$f":"IF('Generated list'!B8631=\"\",\"\",'Generated list'!B8631)","v":""},{"$f":"IF('Generated list'!C8631=\"\",\"\",'Generated list'!C8631)","v":""},{"$f":"IF('Generated list'!D8631=\"\",\"\",'Generated list'!D8631)","v":""}]
[null,{"$f":"IF('Generated list'!B8632=\"\",\"\",'Generated list'!B8632)","v":""},{"$f":"IF('Generated list'!C8632=\"\",\"\",'Generated list'!C8632)","v":""},{"$f":"IF('Generated list'!D8632=\"\",\"\",'Generated list'!D8632)","v":""}]
[null,{"$f":"IF('Generated list'!B8633=\"\",\"\",'Generated list'!B8633)","v":""},{"$f":"IF('Generated list'!C8633=\"\",\"\",'Generated list'!C8633)","v":""},{"$f":"IF('Generated list'!D8633=\"\",\"\",'Generated list'!D8633)","v":""}]
[null,{"$f":"IF('Generated list'!B8634=\"\",\"\",'Generated list'!B8634)","v":""},{"$f":"IF('Generated list'!C8634=\"\",\"\",'Generated list'!C8634)","v":""},{"$f":"IF('Generated list'!D8634=\"\",\"\",'Generated list'!D8634)","v":""}]
[null,{"$f":"IF('Generated list'!B8635=\"\",\"\",'Generated list'!B8635)","v":""},{"$f":"IF('Generated list'!C8635=\"\",\"\",'Generated list'!C8635)","v":""},{"$f":"IF('Generated list'!D8635=\"\",\"\",'Generated list'!D8635)","v":""}]
[null,{"$f":"IF('Generated list'!B8636=\"\",\"\",'Generated list'!B8636)","v":""},{"$f":"IF('Generated list'!C8636=\"\",\"\",'Generated list'!C8636)","v":""},{"$f":"IF('Generated list'!D8636=\"\",\"\",'Generated list'!D8636)","v":""}]
[null,{"$f":"IF('Generated list'!B8637=\"\",\"\",'Generated list'!B8637)","v":""},{"$f":"IF('Generated list'!C8637=\"\",\"\",'Generated list'!C8637)","v":""},{"$f":"IF('Generated list'!D8637=\"\",\"\",'Generated list'!D8637)","v":""}]
[null,{"$f":"IF('Generated list'!B8638=\"\",\"\",'Generated list'!B8638)","v":""},{"$f":"IF('Generated list'!C8638=\"\",\"\",'Generated list'!C8638)","v":""},{"$f":"IF('Generated list'!D8638=\"\",\"\",'Generated list'!D8638)","v":""}]
[null,{"$f":"IF('Generated list'!B8639=\"\",\"\",'Generated list'!B8639)","v":""},{"$f":"IF('Generated list'!C8639=\"\",\"\",'Generated list'!C8639)","v":""},{"$f":"IF('Generated list'!D8639=\"\",\"\",'Generated list'!D8639)","v":""}]
[null,{"$f":"IF('Generated list'!B8640=\"\",\"\",'Generated list'!B8640)","v":""},{"$f":"IF('Generated list'!C8640=\"\",\"\",'Generated list'!C8640)","v":""},{"$f":"IF('Generated list'!D8640=\"\",\"\",'Generated list'!D8640)","v":""}]
[null,{"$f":"IF('Generated list'!B8641=\"\",\"\",'Generated list'!B8641)","v":""},{"$f":"IF('Generated list'!C8641=\"\",\"\",'Generated list'!C8641)","v":""},{"$f":"IF('Generated list'!D8641=\"\",\"\",'Generated list'!D8641)","v":""}]
[null,{"$f":"IF('Generated list'!B8642=\"\",\"\",'Generated list'!B8642)","v":""},{"$f":"IF('Generated list'!C8642=\"\",\"\",'Generated list'!C8642)","v":""},{"$f":"IF('Generated list'!D8642=\"\",\"\",'Generated list'!D8642)","v":""}]
[null,{"$f":"IF('Generated list'!B8643=\"\",\"\",'Generated list'!B8643)","v":""},{"$f":"IF('Generated list'!C8643=\"\",\"\",'Generated list'!C8643)","v":""},{"$f":"IF('Generated list'!D8643=\"\",\"\",'Generated list'!D8643)","v":""}]
[null,{"$f":"IF('Generated list'!B8644=\"\",\"\",'Generated list'!B8644)","v":""},{"$f":"IF('Generated list'!C8644=\"\",\"\",'Generated list'!C8644)","v":""},{"$f":"IF('Generated list'!D8644=\"\",\"\",'Generated list'!D8644)","v":""}]
[null,{"$f":"IF('Generated list'!B8645=\"\",\"\",'Generated list'!B8645)","v":""},{"$f":"IF('Generated list'!C8645=\"\",\"\",'Generated list'!C8645)","v":""},{"$f":"IF('Generated list'!D8645=\"\",\"\",'Generated list'!D8645)","v":""}]
[null,{"$f":"IF('Generated list'!B8646=\"\",\"\",'Generated list'!B8646)","v":""},{"$f":"IF('Generated list'!C8646=\"\",\"\",'Generated list'!C8646)","v":""},{"$f":"IF('Generated list'!D8646=\"\",\"\",'Generated list'!D8646)","v":""}]
[null,{"$f":"IF('Generated list'!B8647=\"\",\"\",'Generated list'!B8647)","v":""},{"$f":"IF('Generated list'!C8647=\"\",\"\",'Generated list'!C8647)","v":""},{"$f":"IF('Generated list'!D8647=\"\",\"\",'Generated list'!D8647)","v":""}]
[null,{"$f":"IF('Generated list'!B8648=\"\",\"\",'Generated list'!B8648)","v":""},{"$f":"IF('Generated list'!C8648=\"\",\"\",'Generated list'!C8648)","v":""},{"$f":"IF('Generated list'!D8648=\"\",\"\",'Generated list'!D8648)","v":""}]
[null,{"$f":"IF('Generated list'!B8649=\"\",\"\",'Generated list'!B8649)","v":""},{"$f":"IF('Generated list'!C8649=\"\",\"\",'Generated list'!C8649)","v":""},{"$f":"IF('Generated list'!D8649=\"\",\"\",'Generated list'!D8649)","v":""}]
[null,{"$f":"IF('Generated list'!B8650=\"\",\"\",'Generated list'!B8650)","v":""},{"$f":"IF('Generated list'!C8650=\"\",\"\",'Generated list'!C8650)","v":""},{"$f":"IF('Generated list'!D8650=\"\",\"\",'Generated list'!D8650)","v":""}]
[null,{"$f":"IF('Generated list'!B8651=\"\",\"\",'Generated list'!B8651)","v":""},{"$f":"IF('Generated list'!C8651=\"\",\"\",'Generated list'!C8651)","v":""},{"$f":"IF('Generated list'!D8651=\"\",\"\",'Generated list'!D8651)","v":""}]
[null,{"$f":"IF('Generated list'!B8652=\"\",\"\",'Generated list'!B8652)","v":""},{"$f":"IF('Generated list'!C8652=\"\",\"\",'Generated list'!C8652)","v":""},{"$f":"IF('Generated list'!D8652=\"\",\"\",'Generated list'!D8652)","v":""}]
[null,{"$f":"IF('Generated list'!B8653=\"\",\"\",'Generated list'!B8653)","v":""},{"$f":"IF('Generated list'!C8653=\"\",\"\",'Generated list'!C8653)","v":""},{"$f":"IF('Generated list'!D8653=\"\",\"\",'Generated list'!D8653)","v":""}]
[null,{"$f":"IF('Generated list'!B8654=\"\",\"\",'Generated list'!B8654)","v":""},{"$f":"IF('Generated list'!C8654=\"\",\"\",'Generated list'!C8654)","v":""},{"$f":"IF('Generated list'!D8654=\"\",\"\",'Generated list'!D8654)","v":""}]
[null,{"$f":"IF('Generated list'!B8655=\"\",\"\",'Generated list'!B8655)","v":""},{"$f":"IF('Generated list'!C8655=\"\",\"\",'Generated list'!C8655)","v":""},{"$f":"IF('Generated list'!D8655=\"\",\"\",'Generated list'!D8655)","v":""}]
[null,{"$f":"IF('Generated list'!B8656=\"\",\"\",'Generated list'!B8656)","v":""},{"$f":"IF('Generated list'!C8656=\"\",\"\",'Generated list'!C8656)","v":""},{"$f":"IF('Generated list'!D8656=\"\",\"\",'Generated list'!D8656)","v":""}]
[null,{"$f":"IF('Generated list'!B8657=\"\",\"\",'Generated list'!B8657)","v":""},{"$f":"IF('Generated list'!C8657=\"\",\"\",'Generated list'!C8657)","v":""},{"$f":"IF('Generated list'!D8657=\"\",\"\",'Generated list'!D8657)","v":""}]
[null,{"$f":"IF('Generated list'!B8658=\"\",\"\",'Generated list'!B8658)","v":""},{"$f":"IF('Generated list'!C8658=\"\",\"\",'Generated list'!C8658)","v":""},{"$f":"IF('Generated list'!D8658=\"\",\"\",'Generated list'!D8658)","v":""}]
[null,{"$f":"IF('Generated list'!B8659=\"\",\"\",'Generated list'!B8659)","v":""},{"$f":"IF('Generated list'!C8659=\"\",\"\",'Generated list'!C8659)","v":""},{"$f":"IF('Generated list'!D8659=\"\",\"\",'Generated list'!D8659)","v":""}]
[null,{"$f":"IF('Generated list'!B8660=\"\",\"\",'Generated list'!B8660)","v":""},{"$f":"IF('Generated list'!C8660=\"\",\"\",'Generated list'!C8660)","v":""},{"$f":"IF('Generated list'!D8660=\"\",\"\",'Generated list'!D8660)","v":""}]
[null,{"$f":"IF('Generated list'!B8661=\"\",\"\",'Generated list'!B8661)","v":""},{"$f":"IF('Generated list'!C8661=\"\",\"\",'Generated list'!C8661)","v":""},{"$f":"IF('Generated list'!D8661=\"\",\"\",'Generated list'!D8661)","v":""}]
[null,{"$f":"IF('Generated list'!B8662=\"\",\"\",'Generated list'!B8662)","v":""},{"$f":"IF('Generated list'!C8662=\"\",\"\",'Generated list'!C8662)","v":""},{"$f":"IF('Generated list'!D8662=\"\",\"\",'Generated list'!D8662)","v":""}]
[null,{"$f":"IF('Generated list'!B8663=\"\",\"\",'Generated list'!B8663)","v":""},{"$f":"IF('Generated list'!C8663=\"\",\"\",'Generated list'!C8663)","v":""},{"$f":"IF('Generated list'!D8663=\"\",\"\",'Generated list'!D8663)","v":""}]
[null,{"$f":"IF('Generated list'!B8664=\"\",\"\",'Generated list'!B8664)","v":""},{"$f":"IF('Generated list'!C8664=\"\",\"\",'Generated list'!C8664)","v":""},{"$f":"IF('Generated list'!D8664=\"\",\"\",'Generated list'!D8664)","v":""}]
[null,{"$f":"IF('Generated list'!B8665=\"\",\"\",'Generated list'!B8665)","v":""},{"$f":"IF('Generated list'!C8665=\"\",\"\",'Generated list'!C8665)","v":""},{"$f":"IF('Generated list'!D8665=\"\",\"\",'Generated list'!D8665)","v":""}]
[null,{"$f":"IF('Generated list'!B8666=\"\",\"\",'Generated list'!B8666)","v":""},{"$f":"IF('Generated list'!C8666=\"\",\"\",'Generated list'!C8666)","v":""},{"$f":"IF('Generated list'!D8666=\"\",\"\",'Generated list'!D8666)","v":""}]
[null,{"$f":"IF('Generated list'!B8667=\"\",\"\",'Generated list'!B8667)","v":""},{"$f":"IF('Generated list'!C8667=\"\",\"\",'Generated list'!C8667)","v":""},{"$f":"IF('Generated list'!D8667=\"\",\"\",'Generated list'!D8667)","v":""}]
[null,{"$f":"IF('Generated list'!B8668=\"\",\"\",'Generated list'!B8668)","v":""},{"$f":"IF('Generated list'!C8668=\"\",\"\",'Generated list'!C8668)","v":""},{"$f":"IF('Generated list'!D8668=\"\",\"\",'Generated list'!D8668)","v":""}]
[null,{"$f":"IF('Generated list'!B8669=\"\",\"\",'Generated list'!B8669)","v":""},{"$f":"IF('Generated list'!C8669=\"\",\"\",'Generated list'!C8669)","v":""},{"$f":"IF('Generated list'!D8669=\"\",\"\",'Generated list'!D8669)","v":""}]
[null,{"$f":"IF('Generated list'!B8670=\"\",\"\",'Generated list'!B8670)","v":""},{"$f":"IF('Generated list'!C8670=\"\",\"\",'Generated list'!C8670)","v":""},{"$f":"IF('Generated list'!D8670=\"\",\"\",'Generated list'!D8670)","v":""}]
[null,{"$f":"IF('Generated list'!B8671=\"\",\"\",'Generated list'!B8671)","v":""},{"$f":"IF('Generated list'!C8671=\"\",\"\",'Generated list'!C8671)","v":""},{"$f":"IF('Generated list'!D8671=\"\",\"\",'Generated list'!D8671)","v":""}]
[null,{"$f":"IF('Generated list'!B8672=\"\",\"\",'Generated list'!B8672)","v":""},{"$f":"IF('Generated list'!C8672=\"\",\"\",'Generated list'!C8672)","v":""},{"$f":"IF('Generated list'!D8672=\"\",\"\",'Generated list'!D8672)","v":""}]
[null,{"$f":"IF('Generated list'!B8673=\"\",\"\",'Generated list'!B8673)","v":""},{"$f":"IF('Generated list'!C8673=\"\",\"\",'Generated list'!C8673)","v":""},{"$f":"IF('Generated list'!D8673=\"\",\"\",'Generated list'!D8673)","v":""}]
[null,{"$f":"IF('Generated list'!B8674=\"\",\"\",'Generated list'!B8674)","v":""},{"$f":"IF('Generated list'!C8674=\"\",\"\",'Generated list'!C8674)","v":""},{"$f":"IF('Generated list'!D8674=\"\",\"\",'Generated list'!D8674)","v":""}]
[null,{"$f":"IF('Generated list'!B8675=\"\",\"\",'Generated list'!B8675)","v":""},{"$f":"IF('Generated list'!C8675=\"\",\"\",'Generated list'!C8675)","v":""},{"$f":"IF('Generated list'!D8675=\"\",\"\",'Generated list'!D8675)","v":""}]
[null,{"$f":"IF('Generated list'!B8676=\"\",\"\",'Generated list'!B8676)","v":""},{"$f":"IF('Generated list'!C8676=\"\",\"\",'Generated list'!C8676)","v":""},{"$f":"IF('Generated list'!D8676=\"\",\"\",'Generated list'!D8676)","v":""}]
[null,{"$f":"IF('Generated list'!B8677=\"\",\"\",'Generated list'!B8677)","v":""},{"$f":"IF('Generated list'!C8677=\"\",\"\",'Generated list'!C8677)","v":""},{"$f":"IF('Generated list'!D8677=\"\",\"\",'Generated list'!D8677)","v":""}]
[null,{"$f":"IF('Generated list'!B8678=\"\",\"\",'Generated list'!B8678)","v":""},{"$f":"IF('Generated list'!C8678=\"\",\"\",'Generated list'!C8678)","v":""},{"$f":"IF('Generated list'!D8678=\"\",\"\",'Generated list'!D8678)","v":""}]
[null,{"$f":"IF('Generated list'!B8679=\"\",\"\",'Generated list'!B8679)","v":""},{"$f":"IF('Generated list'!C8679=\"\",\"\",'Generated list'!C8679)","v":""},{"$f":"IF('Generated list'!D8679=\"\",\"\",'Generated list'!D8679)","v":""}]
[null,{"$f":"IF('Generated list'!B8680=\"\",\"\",'Generated list'!B8680)","v":""},{"$f":"IF('Generated list'!C8680=\"\",\"\",'Generated list'!C8680)","v":""},{"$f":"IF('Generated list'!D8680=\"\",\"\",'Generated list'!D8680)","v":""}]
[null,{"$f":"IF('Generated list'!B8681=\"\",\"\",'Generated list'!B8681)","v":""},{"$f":"IF('Generated list'!C8681=\"\",\"\",'Generated list'!C8681)","v":""},{"$f":"IF('Generated list'!D8681=\"\",\"\",'Generated list'!D8681)","v":""}]
[null,{"$f":"IF('Generated list'!B8682=\"\",\"\",'Generated list'!B8682)","v":""},{"$f":"IF('Generated list'!C8682=\"\",\"\",'Generated list'!C8682)","v":""},{"$f":"IF('Generated list'!D8682=\"\",\"\",'Generated list'!D8682)","v":""}]
[null,{"$f":"IF('Generated list'!B8683=\"\",\"\",'Generated list'!B8683)","v":""},{"$f":"IF('Generated list'!C8683=\"\",\"\",'Generated list'!C8683)","v":""},{"$f":"IF('Generated list'!D8683=\"\",\"\",'Generated list'!D8683)","v":""}]
[null,{"$f":"IF('Generated list'!B8684=\"\",\"\",'Generated list'!B8684)","v":""},{"$f":"IF('Generated list'!C8684=\"\",\"\",'Generated list'!C8684)","v":""},{"$f":"IF('Generated list'!D8684=\"\",\"\",'Generated list'!D8684)","v":""}]
[null,{"$f":"IF('Generated list'!B8685=\"\",\"\",'Generated list'!B8685)","v":""},{"$f":"IF('Generated list'!C8685=\"\",\"\",'Generated list'!C8685)","v":""},{"$f":"IF('Generated list'!D8685=\"\",\"\",'Generated list'!D8685)","v":""}]
[null,{"$f":"IF('Generated list'!B8686=\"\",\"\",'Generated list'!B8686)","v":""},{"$f":"IF('Generated list'!C8686=\"\",\"\",'Generated list'!C8686)","v":""},{"$f":"IF('Generated list'!D8686=\"\",\"\",'Generated list'!D8686)","v":""}]
[null,{"$f":"IF('Generated list'!B8687=\"\",\"\",'Generated list'!B8687)","v":""},{"$f":"IF('Generated list'!C8687=\"\",\"\",'Generated list'!C8687)","v":""},{"$f":"IF('Generated list'!D8687=\"\",\"\",'Generated list'!D8687)","v":""}]
[null,{"$f":"IF('Generated list'!B8688=\"\",\"\",'Generated list'!B8688)","v":""},{"$f":"IF('Generated list'!C8688=\"\",\"\",'Generated list'!C8688)","v":""},{"$f":"IF('Generated list'!D8688=\"\",\"\",'Generated list'!D8688)","v":""}]
[null,{"$f":"IF('Generated list'!B8689=\"\",\"\",'Generated list'!B8689)","v":""},{"$f":"IF('Generated list'!C8689=\"\",\"\",'Generated list'!C8689)","v":""},{"$f":"IF('Generated list'!D8689=\"\",\"\",'Generated list'!D8689)","v":""}]
[null,{"$f":"IF('Generated list'!B8690=\"\",\"\",'Generated list'!B8690)","v":""},{"$f":"IF('Generated list'!C8690=\"\",\"\",'Generated list'!C8690)","v":""},{"$f":"IF('Generated list'!D8690=\"\",\"\",'Generated list'!D8690)","v":""}]
[null,{"$f":"IF('Generated list'!B8691=\"\",\"\",'Generated list'!B8691)","v":""},{"$f":"IF('Generated list'!C8691=\"\",\"\",'Generated list'!C8691)","v":""},{"$f":"IF('Generated list'!D8691=\"\",\"\",'Generated list'!D8691)","v":""}]
[null,{"$f":"IF('Generated list'!B8692=\"\",\"\",'Generated list'!B8692)","v":""},{"$f":"IF('Generated list'!C8692=\"\",\"\",'Generated list'!C8692)","v":""},{"$f":"IF('Generated list'!D8692=\"\",\"\",'Generated list'!D8692)","v":""}]
[null,{"$f":"IF('Generated list'!B8693=\"\",\"\",'Generated list'!B8693)","v":""},{"$f":"IF('Generated list'!C8693=\"\",\"\",'Generated list'!C8693)","v":""},{"$f":"IF('Generated list'!D8693=\"\",\"\",'Generated list'!D8693)","v":""}]
[null,{"$f":"IF('Generated list'!B8694=\"\",\"\",'Generated list'!B8694)","v":""},{"$f":"IF('Generated list'!C8694=\"\",\"\",'Generated list'!C8694)","v":""},{"$f":"IF('Generated list'!D8694=\"\",\"\",'Generated list'!D8694)","v":""}]
[null,{"$f":"IF('Generated list'!B8695=\"\",\"\",'Generated list'!B8695)","v":""},{"$f":"IF('Generated list'!C8695=\"\",\"\",'Generated list'!C8695)","v":""},{"$f":"IF('Generated list'!D8695=\"\",\"\",'Generated list'!D8695)","v":""}]
[null,{"$f":"IF('Generated list'!B8696=\"\",\"\",'Generated list'!B8696)","v":""},{"$f":"IF('Generated list'!C8696=\"\",\"\",'Generated list'!C8696)","v":""},{"$f":"IF('Generated list'!D8696=\"\",\"\",'Generated list'!D8696)","v":""}]
[null,{"$f":"IF('Generated list'!B8697=\"\",\"\",'Generated list'!B8697)","v":""},{"$f":"IF('Generated list'!C8697=\"\",\"\",'Generated list'!C8697)","v":""},{"$f":"IF('Generated list'!D8697=\"\",\"\",'Generated list'!D8697)","v":""}]
[null,{"$f":"IF('Generated list'!B8698=\"\",\"\",'Generated list'!B8698)","v":""},{"$f":"IF('Generated list'!C8698=\"\",\"\",'Generated list'!C8698)","v":""},{"$f":"IF('Generated list'!D8698=\"\",\"\",'Generated list'!D8698)","v":""}]
[null,{"$f":"IF('Generated list'!B8699=\"\",\"\",'Generated list'!B8699)","v":""},{"$f":"IF('Generated list'!C8699=\"\",\"\",'Generated list'!C8699)","v":""},{"$f":"IF('Generated list'!D8699=\"\",\"\",'Generated list'!D8699)","v":""}]
[null,{"$f":"IF('Generated list'!B8700=\"\",\"\",'Generated list'!B8700)","v":""},{"$f":"IF('Generated list'!C8700=\"\",\"\",'Generated list'!C8700)","v":""},{"$f":"IF('Generated list'!D8700=\"\",\"\",'Generated list'!D8700)","v":""}]
[null,{"$f":"IF('Generated list'!B8701=\"\",\"\",'Generated list'!B8701)","v":""},{"$f":"IF('Generated list'!C8701=\"\",\"\",'Generated list'!C8701)","v":""},{"$f":"IF('Generated list'!D8701=\"\",\"\",'Generated list'!D8701)","v":""}]
[null,{"$f":"IF('Generated list'!B8702=\"\",\"\",'Generated list'!B8702)","v":""},{"$f":"IF('Generated list'!C8702=\"\",\"\",'Generated list'!C8702)","v":""},{"$f":"IF('Generated list'!D8702=\"\",\"\",'Generated list'!D8702)","v":""}]
[null,{"$f":"IF('Generated list'!B8703=\"\",\"\",'Generated list'!B8703)","v":""},{"$f":"IF('Generated list'!C8703=\"\",\"\",'Generated list'!C8703)","v":""},{"$f":"IF('Generated list'!D8703=\"\",\"\",'Generated list'!D8703)","v":""}]
[null,{"$f":"IF('Generated list'!B8704=\"\",\"\",'Generated list'!B8704)","v":""},{"$f":"IF('Generated list'!C8704=\"\",\"\",'Generated list'!C8704)","v":""},{"$f":"IF('Generated list'!D8704=\"\",\"\",'Generated list'!D8704)","v":""}]
[null,{"$f":"IF('Generated list'!B8705=\"\",\"\",'Generated list'!B8705)","v":""},{"$f":"IF('Generated list'!C8705=\"\",\"\",'Generated list'!C8705)","v":""},{"$f":"IF('Generated list'!D8705=\"\",\"\",'Generated list'!D8705)","v":""}]
[null,{"$f":"IF('Generated list'!B8706=\"\",\"\",'Generated list'!B8706)","v":""},{"$f":"IF('Generated list'!C8706=\"\",\"\",'Generated list'!C8706)","v":""},{"$f":"IF('Generated list'!D8706=\"\",\"\",'Generated list'!D8706)","v":""}]
[null,{"$f":"IF('Generated list'!B8707=\"\",\"\",'Generated list'!B8707)","v":""},{"$f":"IF('Generated list'!C8707=\"\",\"\",'Generated list'!C8707)","v":""},{"$f":"IF('Generated list'!D8707=\"\",\"\",'Generated list'!D8707)","v":""}]
[null,{"$f":"IF('Generated list'!B8708=\"\",\"\",'Generated list'!B8708)","v":""},{"$f":"IF('Generated list'!C8708=\"\",\"\",'Generated list'!C8708)","v":""},{"$f":"IF('Generated list'!D8708=\"\",\"\",'Generated list'!D8708)","v":""}]
[null,{"$f":"IF('Generated list'!B8709=\"\",\"\",'Generated list'!B8709)","v":""},{"$f":"IF('Generated list'!C8709=\"\",\"\",'Generated list'!C8709)","v":""},{"$f":"IF('Generated list'!D8709=\"\",\"\",'Generated list'!D8709)","v":""}]
[null,{"$f":"IF('Generated list'!B8710=\"\",\"\",'Generated list'!B8710)","v":""},{"$f":"IF('Generated list'!C8710=\"\",\"\",'Generated list'!C8710)","v":""},{"$f":"IF('Generated list'!D8710=\"\",\"\",'Generated list'!D8710)","v":""}]
[null,{"$f":"IF('Generated list'!B8711=\"\",\"\",'Generated list'!B8711)","v":""},{"$f":"IF('Generated list'!C8711=\"\",\"\",'Generated list'!C8711)","v":""},{"$f":"IF('Generated list'!D8711=\"\",\"\",'Generated list'!D8711)","v":""}]
[null,{"$f":"IF('Generated list'!B8712=\"\",\"\",'Generated list'!B8712)","v":""},{"$f":"IF('Generated list'!C8712=\"\",\"\",'Generated list'!C8712)","v":""},{"$f":"IF('Generated list'!D8712=\"\",\"\",'Generated list'!D8712)","v":""}]
[null,{"$f":"IF('Generated list'!B8713=\"\",\"\",'Generated list'!B8713)","v":""},{"$f":"IF('Generated list'!C8713=\"\",\"\",'Generated list'!C8713)","v":""},{"$f":"IF('Generated list'!D8713=\"\",\"\",'Generated list'!D8713)","v":""}]
[null,{"$f":"IF('Generated list'!B8714=\"\",\"\",'Generated list'!B8714)","v":""},{"$f":"IF('Generated list'!C8714=\"\",\"\",'Generated list'!C8714)","v":""},{"$f":"IF('Generated list'!D8714=\"\",\"\",'Generated list'!D8714)","v":""}]
[null,{"$f":"IF('Generated list'!B8715=\"\",\"\",'Generated list'!B8715)","v":""},{"$f":"IF('Generated list'!C8715=\"\",\"\",'Generated list'!C8715)","v":""},{"$f":"IF('Generated list'!D8715=\"\",\"\",'Generated list'!D8715)","v":""}]
[null,{"$f":"IF('Generated list'!B8716=\"\",\"\",'Generated list'!B8716)","v":""},{"$f":"IF('Generated list'!C8716=\"\",\"\",'Generated list'!C8716)","v":""},{"$f":"IF('Generated list'!D8716=\"\",\"\",'Generated list'!D8716)","v":""}]
[null,{"$f":"IF('Generated list'!B8717=\"\",\"\",'Generated list'!B8717)","v":""},{"$f":"IF('Generated list'!C8717=\"\",\"\",'Generated list'!C8717)","v":""},{"$f":"IF('Generated list'!D8717=\"\",\"\",'Generated list'!D8717)","v":""}]
[null,{"$f":"IF('Generated list'!B8718=\"\",\"\",'Generated list'!B8718)","v":""},{"$f":"IF('Generated list'!C8718=\"\",\"\",'Generated list'!C8718)","v":""},{"$f":"IF('Generated list'!D8718=\"\",\"\",'Generated list'!D8718)","v":""}]
[null,{"$f":"IF('Generated list'!B8719=\"\",\"\",'Generated list'!B8719)","v":""},{"$f":"IF('Generated list'!C8719=\"\",\"\",'Generated list'!C8719)","v":""},{"$f":"IF('Generated list'!D8719=\"\",\"\",'Generated list'!D8719)","v":""}]
[null,{"$f":"IF('Generated list'!B8720=\"\",\"\",'Generated list'!B8720)","v":""},{"$f":"IF('Generated list'!C8720=\"\",\"\",'Generated list'!C8720)","v":""},{"$f":"IF('Generated list'!D8720=\"\",\"\",'Generated list'!D8720)","v":""}]
[null,{"$f":"IF('Generated list'!B8721=\"\",\"\",'Generated list'!B8721)","v":""},{"$f":"IF('Generated list'!C8721=\"\",\"\",'Generated list'!C8721)","v":""},{"$f":"IF('Generated list'!D8721=\"\",\"\",'Generated list'!D8721)","v":""}]
[null,{"$f":"IF('Generated list'!B8722=\"\",\"\",'Generated list'!B8722)","v":""},{"$f":"IF('Generated list'!C8722=\"\",\"\",'Generated list'!C8722)","v":""},{"$f":"IF('Generated list'!D8722=\"\",\"\",'Generated list'!D8722)","v":""}]
[null,{"$f":"IF('Generated list'!B8723=\"\",\"\",'Generated list'!B8723)","v":""},{"$f":"IF('Generated list'!C8723=\"\",\"\",'Generated list'!C8723)","v":""},{"$f":"IF('Generated list'!D8723=\"\",\"\",'Generated list'!D8723)","v":""}]
[null,{"$f":"IF('Generated list'!B8724=\"\",\"\",'Generated list'!B8724)","v":""},{"$f":"IF('Generated list'!C8724=\"\",\"\",'Generated list'!C8724)","v":""},{"$f":"IF('Generated list'!D8724=\"\",\"\",'Generated list'!D8724)","v":""}]
[null,{"$f":"IF('Generated list'!B8725=\"\",\"\",'Generated list'!B8725)","v":""},{"$f":"IF('Generated list'!C8725=\"\",\"\",'Generated list'!C8725)","v":""},{"$f":"IF('Generated list'!D8725=\"\",\"\",'Generated list'!D8725)","v":""}]
[null,{"$f":"IF('Generated list'!B8726=\"\",\"\",'Generated list'!B8726)","v":""},{"$f":"IF('Generated list'!C8726=\"\",\"\",'Generated list'!C8726)","v":""},{"$f":"IF('Generated list'!D8726=\"\",\"\",'Generated list'!D8726)","v":""}]
[null,{"$f":"IF('Generated list'!B8727=\"\",\"\",'Generated list'!B8727)","v":""},{"$f":"IF('Generated list'!C8727=\"\",\"\",'Generated list'!C8727)","v":""},{"$f":"IF('Generated list'!D8727=\"\",\"\",'Generated list'!D8727)","v":""}]
[null,{"$f":"IF('Generated list'!B8728=\"\",\"\",'Generated list'!B8728)","v":""},{"$f":"IF('Generated list'!C8728=\"\",\"\",'Generated list'!C8728)","v":""},{"$f":"IF('Generated list'!D8728=\"\",\"\",'Generated list'!D8728)","v":""}]
[null,{"$f":"IF('Generated list'!B8729=\"\",\"\",'Generated list'!B8729)","v":""},{"$f":"IF('Generated list'!C8729=\"\",\"\",'Generated list'!C8729)","v":""},{"$f":"IF('Generated list'!D8729=\"\",\"\",'Generated list'!D8729)","v":""}]
[null,{"$f":"IF('Generated list'!B8730=\"\",\"\",'Generated list'!B8730)","v":""},{"$f":"IF('Generated list'!C8730=\"\",\"\",'Generated list'!C8730)","v":""},{"$f":"IF('Generated list'!D8730=\"\",\"\",'Generated list'!D8730)","v":""}]
[null,{"$f":"IF('Generated list'!B8731=\"\",\"\",'Generated list'!B8731)","v":""},{"$f":"IF('Generated list'!C8731=\"\",\"\",'Generated list'!C8731)","v":""},{"$f":"IF('Generated list'!D8731=\"\",\"\",'Generated list'!D8731)","v":""}]
[null,{"$f":"IF('Generated list'!B8732=\"\",\"\",'Generated list'!B8732)","v":""},{"$f":"IF('Generated list'!C8732=\"\",\"\",'Generated list'!C8732)","v":""},{"$f":"IF('Generated list'!D8732=\"\",\"\",'Generated list'!D8732)","v":""}]
[null,{"$f":"IF('Generated list'!B8733=\"\",\"\",'Generated list'!B8733)","v":""},{"$f":"IF('Generated list'!C8733=\"\",\"\",'Generated list'!C8733)","v":""},{"$f":"IF('Generated list'!D8733=\"\",\"\",'Generated list'!D8733)","v":""}]
[null,{"$f":"IF('Generated list'!B8734=\"\",\"\",'Generated list'!B8734)","v":""},{"$f":"IF('Generated list'!C8734=\"\",\"\",'Generated list'!C8734)","v":""},{"$f":"IF('Generated list'!D8734=\"\",\"\",'Generated list'!D8734)","v":""}]
[null,{"$f":"IF('Generated list'!B8735=\"\",\"\",'Generated list'!B8735)","v":""},{"$f":"IF('Generated list'!C8735=\"\",\"\",'Generated list'!C8735)","v":""},{"$f":"IF('Generated list'!D8735=\"\",\"\",'Generated list'!D8735)","v":""}]
[null,{"$f":"IF('Generated list'!B8736=\"\",\"\",'Generated list'!B8736)","v":""},{"$f":"IF('Generated list'!C8736=\"\",\"\",'Generated list'!C8736)","v":""},{"$f":"IF('Generated list'!D8736=\"\",\"\",'Generated list'!D8736)","v":""}]
[null,{"$f":"IF('Generated list'!B8737=\"\",\"\",'Generated list'!B8737)","v":""},{"$f":"IF('Generated list'!C8737=\"\",\"\",'Generated list'!C8737)","v":""},{"$f":"IF('Generated list'!D8737=\"\",\"\",'Generated list'!D8737)","v":""}]
[null,{"$f":"IF('Generated list'!B8738=\"\",\"\",'Generated list'!B8738)","v":""},{"$f":"IF('Generated list'!C8738=\"\",\"\",'Generated list'!C8738)","v":""},{"$f":"IF('Generated list'!D8738=\"\",\"\",'Generated list'!D8738)","v":""}]
[null,{"$f":"IF('Generated list'!B8739=\"\",\"\",'Generated list'!B8739)","v":""},{"$f":"IF('Generated list'!C8739=\"\",\"\",'Generated list'!C8739)","v":""},{"$f":"IF('Generated list'!D8739=\"\",\"\",'Generated list'!D8739)","v":""}]
[null,{"$f":"IF('Generated list'!B8740=\"\",\"\",'Generated list'!B8740)","v":""},{"$f":"IF('Generated list'!C8740=\"\",\"\",'Generated list'!C8740)","v":""},{"$f":"IF('Generated list'!D8740=\"\",\"\",'Generated list'!D8740)","v":""}]
[null,{"$f":"IF('Generated list'!B8741=\"\",\"\",'Generated list'!B8741)","v":""},{"$f":"IF('Generated list'!C8741=\"\",\"\",'Generated list'!C8741)","v":""},{"$f":"IF('Generated list'!D8741=\"\",\"\",'Generated list'!D8741)","v":""}]
[null,{"$f":"IF('Generated list'!B8742=\"\",\"\",'Generated list'!B8742)","v":""},{"$f":"IF('Generated list'!C8742=\"\",\"\",'Generated list'!C8742)","v":""},{"$f":"IF('Generated list'!D8742=\"\",\"\",'Generated list'!D8742)","v":""}]
[null,{"$f":"IF('Generated list'!B8743=\"\",\"\",'Generated list'!B8743)","v":""},{"$f":"IF('Generated list'!C8743=\"\",\"\",'Generated list'!C8743)","v":""},{"$f":"IF('Generated list'!D8743=\"\",\"\",'Generated list'!D8743)","v":""}]
[null,{"$f":"IF('Generated list'!B8744=\"\",\"\",'Generated list'!B8744)","v":""},{"$f":"IF('Generated list'!C8744=\"\",\"\",'Generated list'!C8744)","v":""},{"$f":"IF('Generated list'!D8744=\"\",\"\",'Generated list'!D8744)","v":""}]
[null,{"$f":"IF('Generated list'!B8745=\"\",\"\",'Generated list'!B8745)","v":""},{"$f":"IF('Generated list'!C8745=\"\",\"\",'Generated list'!C8745)","v":""},{"$f":"IF('Generated list'!D8745=\"\",\"\",'Generated list'!D8745)","v":""}]
[null,{"$f":"IF('Generated list'!B8746=\"\",\"\",'Generated list'!B8746)","v":""},{"$f":"IF('Generated list'!C8746=\"\",\"\",'Generated list'!C8746)","v":""},{"$f":"IF('Generated list'!D8746=\"\",\"\",'Generated list'!D8746)","v":""}]
[null,{"$f":"IF('Generated list'!B8747=\"\",\"\",'Generated list'!B8747)","v":""},{"$f":"IF('Generated list'!C8747=\"\",\"\",'Generated list'!C8747)","v":""},{"$f":"IF('Generated list'!D8747=\"\",\"\",'Generated list'!D8747)","v":""}]
[null,{"$f":"IF('Generated list'!B8748=\"\",\"\",'Generated list'!B8748)","v":""},{"$f":"IF('Generated list'!C8748=\"\",\"\",'Generated list'!C8748)","v":""},{"$f":"IF('Generated list'!D8748=\"\",\"\",'Generated list'!D8748)","v":""}]
[null,{"$f":"IF('Generated list'!B8749=\"\",\"\",'Generated list'!B8749)","v":""},{"$f":"IF('Generated list'!C8749=\"\",\"\",'Generated list'!C8749)","v":""},{"$f":"IF('Generated list'!D8749=\"\",\"\",'Generated list'!D8749)","v":""}]
[null,{"$f":"IF('Generated list'!B8750=\"\",\"\",'Generated list'!B8750)","v":""},{"$f":"IF('Generated list'!C8750=\"\",\"\",'Generated list'!C8750)","v":""},{"$f":"IF('Generated list'!D8750=\"\",\"\",'Generated list'!D8750)","v":""}]
[null,{"$f":"IF('Generated list'!B8751=\"\",\"\",'Generated list'!B8751)","v":""},{"$f":"IF('Generated list'!C8751=\"\",\"\",'Generated list'!C8751)","v":""},{"$f":"IF('Generated list'!D8751=\"\",\"\",'Generated list'!D8751)","v":""}]
[null,{"$f":"IF('Generated list'!B8752=\"\",\"\",'Generated list'!B8752)","v":""},{"$f":"IF('Generated list'!C8752=\"\",\"\",'Generated list'!C8752)","v":""},{"$f":"IF('Generated list'!D8752=\"\",\"\",'Generated list'!D8752)","v":""}]
[null,{"$f":"IF('Generated list'!B8753=\"\",\"\",'Generated list'!B8753)","v":""},{"$f":"IF('Generated list'!C8753=\"\",\"\",'Generated list'!C8753)","v":""},{"$f":"IF('Generated list'!D8753=\"\",\"\",'Generated list'!D8753)","v":""}]
[null,{"$f":"IF('Generated list'!B8754=\"\",\"\",'Generated list'!B8754)","v":""},{"$f":"IF('Generated list'!C8754=\"\",\"\",'Generated list'!C8754)","v":""},{"$f":"IF('Generated list'!D8754=\"\",\"\",'Generated list'!D8754)","v":""}]
[null,{"$f":"IF('Generated list'!B8755=\"\",\"\",'Generated list'!B8755)","v":""},{"$f":"IF('Generated list'!C8755=\"\",\"\",'Generated list'!C8755)","v":""},{"$f":"IF('Generated list'!D8755=\"\",\"\",'Generated list'!D8755)","v":""}]
[null,{"$f":"IF('Generated list'!B8756=\"\",\"\",'Generated list'!B8756)","v":""},{"$f":"IF('Generated list'!C8756=\"\",\"\",'Generated list'!C8756)","v":""},{"$f":"IF('Generated list'!D8756=\"\",\"\",'Generated list'!D8756)","v":""}]
[null,{"$f":"IF('Generated list'!B8757=\"\",\"\",'Generated list'!B8757)","v":""},{"$f":"IF('Generated list'!C8757=\"\",\"\",'Generated list'!C8757)","v":""},{"$f":"IF('Generated list'!D8757=\"\",\"\",'Generated list'!D8757)","v":""}]
[null,{"$f":"IF('Generated list'!B8758=\"\",\"\",'Generated list'!B8758)","v":""},{"$f":"IF('Generated list'!C8758=\"\",\"\",'Generated list'!C8758)","v":""},{"$f":"IF('Generated list'!D8758=\"\",\"\",'Generated list'!D8758)","v":""}]
[null,{"$f":"IF('Generated list'!B8759=\"\",\"\",'Generated list'!B8759)","v":""},{"$f":"IF('Generated list'!C8759=\"\",\"\",'Generated list'!C8759)","v":""},{"$f":"IF('Generated list'!D8759=\"\",\"\",'Generated list'!D8759)","v":""}]
[null,{"$f":"IF('Generated list'!B8760=\"\",\"\",'Generated list'!B8760)","v":""},{"$f":"IF('Generated list'!C8760=\"\",\"\",'Generated list'!C8760)","v":""},{"$f":"IF('Generated list'!D8760=\"\",\"\",'Generated list'!D8760)","v":""}]
[null,{"$f":"IF('Generated list'!B8761=\"\",\"\",'Generated list'!B8761)","v":""},{"$f":"IF('Generated list'!C8761=\"\",\"\",'Generated list'!C8761)","v":""},{"$f":"IF('Generated list'!D8761=\"\",\"\",'Generated list'!D8761)","v":""}]
[null,{"$f":"IF('Generated list'!B8762=\"\",\"\",'Generated list'!B8762)","v":""},{"$f":"IF('Generated list'!C8762=\"\",\"\",'Generated list'!C8762)","v":""},{"$f":"IF('Generated list'!D8762=\"\",\"\",'Generated list'!D8762)","v":""}]
[null,{"$f":"IF('Generated list'!B8763=\"\",\"\",'Generated list'!B8763)","v":""},{"$f":"IF('Generated list'!C8763=\"\",\"\",'Generated list'!C8763)","v":""},{"$f":"IF('Generated list'!D8763=\"\",\"\",'Generated list'!D8763)","v":""}]
[null,{"$f":"IF('Generated list'!B8764=\"\",\"\",'Generated list'!B8764)","v":""},{"$f":"IF('Generated list'!C8764=\"\",\"\",'Generated list'!C8764)","v":""},{"$f":"IF('Generated list'!D8764=\"\",\"\",'Generated list'!D8764)","v":""}]
[null,{"$f":"IF('Generated list'!B8765=\"\",\"\",'Generated list'!B8765)","v":""},{"$f":"IF('Generated list'!C8765=\"\",\"\",'Generated list'!C8765)","v":""},{"$f":"IF('Generated list'!D8765=\"\",\"\",'Generated list'!D8765)","v":""}]
[null,{"$f":"IF('Generated list'!B8766=\"\",\"\",'Generated list'!B8766)","v":""},{"$f":"IF('Generated list'!C8766=\"\",\"\",'Generated list'!C8766)","v":""},{"$f":"IF('Generated list'!D8766=\"\",\"\",'Generated list'!D8766)","v":""}]
[null,{"$f":"IF('Generated list'!B8767=\"\",\"\",'Generated list'!B8767)","v":""},{"$f":"IF('Generated list'!C8767=\"\",\"\",'Generated list'!C8767)","v":""},{"$f":"IF('Generated list'!D8767=\"\",\"\",'Generated list'!D8767)","v":""}]
[null,{"$f":"IF('Generated list'!B8768=\"\",\"\",'Generated list'!B8768)","v":""},{"$f":"IF('Generated list'!C8768=\"\",\"\",'Generated list'!C8768)","v":""},{"$f":"IF('Generated list'!D8768=\"\",\"\",'Generated list'!D8768)","v":""}]
[null,{"$f":"IF('Generated list'!B8769=\"\",\"\",'Generated list'!B8769)","v":""},{"$f":"IF('Generated list'!C8769=\"\",\"\",'Generated list'!C8769)","v":""},{"$f":"IF('Generated list'!D8769=\"\",\"\",'Generated list'!D8769)","v":""}]
[null,{"$f":"IF('Generated list'!B8770=\"\",\"\",'Generated list'!B8770)","v":""},{"$f":"IF('Generated list'!C8770=\"\",\"\",'Generated list'!C8770)","v":""},{"$f":"IF('Generated list'!D8770=\"\",\"\",'Generated list'!D8770)","v":""}]
[null,{"$f":"IF('Generated list'!B8771=\"\",\"\",'Generated list'!B8771)","v":""},{"$f":"IF('Generated list'!C8771=\"\",\"\",'Generated list'!C8771)","v":""},{"$f":"IF('Generated list'!D8771=\"\",\"\",'Generated list'!D8771)","v":""}]
[null,{"$f":"IF('Generated list'!B8772=\"\",\"\",'Generated list'!B8772)","v":""},{"$f":"IF('Generated list'!C8772=\"\",\"\",'Generated list'!C8772)","v":""},{"$f":"IF('Generated list'!D8772=\"\",\"\",'Generated list'!D8772)","v":""}]
[null,{"$f":"IF('Generated list'!B8773=\"\",\"\",'Generated list'!B8773)","v":""},{"$f":"IF('Generated list'!C8773=\"\",\"\",'Generated list'!C8773)","v":""},{"$f":"IF('Generated list'!D8773=\"\",\"\",'Generated list'!D8773)","v":""}]
[null,{"$f":"IF('Generated list'!B8774=\"\",\"\",'Generated list'!B8774)","v":""},{"$f":"IF('Generated list'!C8774=\"\",\"\",'Generated list'!C8774)","v":""},{"$f":"IF('Generated list'!D8774=\"\",\"\",'Generated list'!D8774)","v":""}]
[null,{"$f":"IF('Generated list'!B8775=\"\",\"\",'Generated list'!B8775)","v":""},{"$f":"IF('Generated list'!C8775=\"\",\"\",'Generated list'!C8775)","v":""},{"$f":"IF('Generated list'!D8775=\"\",\"\",'Generated list'!D8775)","v":""}]
[null,{"$f":"IF('Generated list'!B8776=\"\",\"\",'Generated list'!B8776)","v":""},{"$f":"IF('Generated list'!C8776=\"\",\"\",'Generated list'!C8776)","v":""},{"$f":"IF('Generated list'!D8776=\"\",\"\",'Generated list'!D8776)","v":""}]
[null,{"$f":"IF('Generated list'!B8777=\"\",\"\",'Generated list'!B8777)","v":""},{"$f":"IF('Generated list'!C8777=\"\",\"\",'Generated list'!C8777)","v":""},{"$f":"IF('Generated list'!D8777=\"\",\"\",'Generated list'!D8777)","v":""}]
[null,{"$f":"IF('Generated list'!B8778=\"\",\"\",'Generated list'!B8778)","v":""},{"$f":"IF('Generated list'!C8778=\"\",\"\",'Generated list'!C8778)","v":""},{"$f":"IF('Generated list'!D8778=\"\",\"\",'Generated list'!D8778)","v":""}]
[null,{"$f":"IF('Generated list'!B8779=\"\",\"\",'Generated list'!B8779)","v":""},{"$f":"IF('Generated list'!C8779=\"\",\"\",'Generated list'!C8779)","v":""},{"$f":"IF('Generated list'!D8779=\"\",\"\",'Generated list'!D8779)","v":""}]
[null,{"$f":"IF('Generated list'!B8780=\"\",\"\",'Generated list'!B8780)","v":""},{"$f":"IF('Generated list'!C8780=\"\",\"\",'Generated list'!C8780)","v":""},{"$f":"IF('Generated list'!D8780=\"\",\"\",'Generated list'!D8780)","v":""}]
[null,{"$f":"IF('Generated list'!B8781=\"\",\"\",'Generated list'!B8781)","v":""},{"$f":"IF('Generated list'!C8781=\"\",\"\",'Generated list'!C8781)","v":""},{"$f":"IF('Generated list'!D8781=\"\",\"\",'Generated list'!D8781)","v":""}]
[null,{"$f":"IF('Generated list'!B8782=\"\",\"\",'Generated list'!B8782)","v":""},{"$f":"IF('Generated list'!C8782=\"\",\"\",'Generated list'!C8782)","v":""},{"$f":"IF('Generated list'!D8782=\"\",\"\",'Generated list'!D8782)","v":""}]
[null,{"$f":"IF('Generated list'!B8783=\"\",\"\",'Generated list'!B8783)","v":""},{"$f":"IF('Generated list'!C8783=\"\",\"\",'Generated list'!C8783)","v":""},{"$f":"IF('Generated list'!D8783=\"\",\"\",'Generated list'!D8783)","v":""}]
[null,{"$f":"IF('Generated list'!B8784=\"\",\"\",'Generated list'!B8784)","v":""},{"$f":"IF('Generated list'!C8784=\"\",\"\",'Generated list'!C8784)","v":""},{"$f":"IF('Generated list'!D8784=\"\",\"\",'Generated list'!D8784)","v":""}]
[null,{"$f":"IF('Generated list'!B8785=\"\",\"\",'Generated list'!B8785)","v":""},{"$f":"IF('Generated list'!C8785=\"\",\"\",'Generated list'!C8785)","v":""},{"$f":"IF('Generated list'!D8785=\"\",\"\",'Generated list'!D8785)","v":""}]
[null,{"$f":"IF('Generated list'!B8786=\"\",\"\",'Generated list'!B8786)","v":""},{"$f":"IF('Generated list'!C8786=\"\",\"\",'Generated list'!C8786)","v":""},{"$f":"IF('Generated list'!D8786=\"\",\"\",'Generated list'!D8786)","v":""}]
[null,{"$f":"IF('Generated list'!B8787=\"\",\"\",'Generated list'!B8787)","v":""},{"$f":"IF('Generated list'!C8787=\"\",\"\",'Generated list'!C8787)","v":""},{"$f":"IF('Generated list'!D8787=\"\",\"\",'Generated list'!D8787)","v":""}]
[null,{"$f":"IF('Generated list'!B8788=\"\",\"\",'Generated list'!B8788)","v":""},{"$f":"IF('Generated list'!C8788=\"\",\"\",'Generated list'!C8788)","v":""},{"$f":"IF('Generated list'!D8788=\"\",\"\",'Generated list'!D8788)","v":""}]
[null,{"$f":"IF('Generated list'!B8789=\"\",\"\",'Generated list'!B8789)","v":""},{"$f":"IF('Generated list'!C8789=\"\",\"\",'Generated list'!C8789)","v":""},{"$f":"IF('Generated list'!D8789=\"\",\"\",'Generated list'!D8789)","v":""}]
[null,{"$f":"IF('Generated list'!B8790=\"\",\"\",'Generated list'!B8790)","v":""},{"$f":"IF('Generated list'!C8790=\"\",\"\",'Generated list'!C8790)","v":""},{"$f":"IF('Generated list'!D8790=\"\",\"\",'Generated list'!D8790)","v":""}]
[null,{"$f":"IF('Generated list'!B8791=\"\",\"\",'Generated list'!B8791)","v":""},{"$f":"IF('Generated list'!C8791=\"\",\"\",'Generated list'!C8791)","v":""},{"$f":"IF('Generated list'!D8791=\"\",\"\",'Generated list'!D8791)","v":""}]
[null,{"$f":"IF('Generated list'!B8792=\"\",\"\",'Generated list'!B8792)","v":""},{"$f":"IF('Generated list'!C8792=\"\",\"\",'Generated list'!C8792)","v":""},{"$f":"IF('Generated list'!D8792=\"\",\"\",'Generated list'!D8792)","v":""}]
[null,{"$f":"IF('Generated list'!B8793=\"\",\"\",'Generated list'!B8793)","v":""},{"$f":"IF('Generated list'!C8793=\"\",\"\",'Generated list'!C8793)","v":""},{"$f":"IF('Generated list'!D8793=\"\",\"\",'Generated list'!D8793)","v":""}]
[null,{"$f":"IF('Generated list'!B8794=\"\",\"\",'Generated list'!B8794)","v":""},{"$f":"IF('Generated list'!C8794=\"\",\"\",'Generated list'!C8794)","v":""},{"$f":"IF('Generated list'!D8794=\"\",\"\",'Generated list'!D8794)","v":""}]
[null,{"$f":"IF('Generated list'!B8795=\"\",\"\",'Generated list'!B8795)","v":""},{"$f":"IF('Generated list'!C8795=\"\",\"\",'Generated list'!C8795)","v":""},{"$f":"IF('Generated list'!D8795=\"\",\"\",'Generated list'!D8795)","v":""}]
[null,{"$f":"IF('Generated list'!B8796=\"\",\"\",'Generated list'!B8796)","v":""},{"$f":"IF('Generated list'!C8796=\"\",\"\",'Generated list'!C8796)","v":""},{"$f":"IF('Generated list'!D8796=\"\",\"\",'Generated list'!D8796)","v":""}]
[null,{"$f":"IF('Generated list'!B8797=\"\",\"\",'Generated list'!B8797)","v":""},{"$f":"IF('Generated list'!C8797=\"\",\"\",'Generated list'!C8797)","v":""},{"$f":"IF('Generated list'!D8797=\"\",\"\",'Generated list'!D8797)","v":""}]
[null,{"$f":"IF('Generated list'!B8798=\"\",\"\",'Generated list'!B8798)","v":""},{"$f":"IF('Generated list'!C8798=\"\",\"\",'Generated list'!C8798)","v":""},{"$f":"IF('Generated list'!D8798=\"\",\"\",'Generated list'!D8798)","v":""}]
[null,{"$f":"IF('Generated list'!B8799=\"\",\"\",'Generated list'!B8799)","v":""},{"$f":"IF('Generated list'!C8799=\"\",\"\",'Generated list'!C8799)","v":""},{"$f":"IF('Generated list'!D8799=\"\",\"\",'Generated list'!D8799)","v":""}]
[null,{"$f":"IF('Generated list'!B8800=\"\",\"\",'Generated list'!B8800)","v":""},{"$f":"IF('Generated list'!C8800=\"\",\"\",'Generated list'!C8800)","v":""},{"$f":"IF('Generated list'!D8800=\"\",\"\",'Generated list'!D8800)","v":""}]
[null,{"$f":"IF('Generated list'!B8801=\"\",\"\",'Generated list'!B8801)","v":""},{"$f":"IF('Generated list'!C8801=\"\",\"\",'Generated list'!C8801)","v":""},{"$f":"IF('Generated list'!D8801=\"\",\"\",'Generated list'!D8801)","v":""}]
[null,{"$f":"IF('Generated list'!B8802=\"\",\"\",'Generated list'!B8802)","v":""},{"$f":"IF('Generated list'!C8802=\"\",\"\",'Generated list'!C8802)","v":""},{"$f":"IF('Generated list'!D8802=\"\",\"\",'Generated list'!D8802)","v":""}]
[null,{"$f":"IF('Generated list'!B8803=\"\",\"\",'Generated list'!B8803)","v":""},{"$f":"IF('Generated list'!C8803=\"\",\"\",'Generated list'!C8803)","v":""},{"$f":"IF('Generated list'!D8803=\"\",\"\",'Generated list'!D8803)","v":""}]
[null,{"$f":"IF('Generated list'!B8804=\"\",\"\",'Generated list'!B8804)","v":""},{"$f":"IF('Generated list'!C8804=\"\",\"\",'Generated list'!C8804)","v":""},{"$f":"IF('Generated list'!D8804=\"\",\"\",'Generated list'!D8804)","v":""}]
[null,{"$f":"IF('Generated list'!B8805=\"\",\"\",'Generated list'!B8805)","v":""},{"$f":"IF('Generated list'!C8805=\"\",\"\",'Generated list'!C8805)","v":""},{"$f":"IF('Generated list'!D8805=\"\",\"\",'Generated list'!D8805)","v":""}]
[null,{"$f":"IF('Generated list'!B8806=\"\",\"\",'Generated list'!B8806)","v":""},{"$f":"IF('Generated list'!C8806=\"\",\"\",'Generated list'!C8806)","v":""},{"$f":"IF('Generated list'!D8806=\"\",\"\",'Generated list'!D8806)","v":""}]
[null,{"$f":"IF('Generated list'!B8807=\"\",\"\",'Generated list'!B8807)","v":""},{"$f":"IF('Generated list'!C8807=\"\",\"\",'Generated list'!C8807)","v":""},{"$f":"IF('Generated list'!D8807=\"\",\"\",'Generated list'!D8807)","v":""}]
[null,{"$f":"IF('Generated list'!B8808=\"\",\"\",'Generated list'!B8808)","v":""},{"$f":"IF('Generated list'!C8808=\"\",\"\",'Generated list'!C8808)","v":""},{"$f":"IF('Generated list'!D8808=\"\",\"\",'Generated list'!D8808)","v":""}]
[null,{"$f":"IF('Generated list'!B8809=\"\",\"\",'Generated list'!B8809)","v":""},{"$f":"IF('Generated list'!C8809=\"\",\"\",'Generated list'!C8809)","v":""},{"$f":"IF('Generated list'!D8809=\"\",\"\",'Generated list'!D8809)","v":""}]
[null,{"$f":"IF('Generated list'!B8810=\"\",\"\",'Generated list'!B8810)","v":""},{"$f":"IF('Generated list'!C8810=\"\",\"\",'Generated list'!C8810)","v":""},{"$f":"IF('Generated list'!D8810=\"\",\"\",'Generated list'!D8810)","v":""}]
[null,{"$f":"IF('Generated list'!B8811=\"\",\"\",'Generated list'!B8811)","v":""},{"$f":"IF('Generated list'!C8811=\"\",\"\",'Generated list'!C8811)","v":""},{"$f":"IF('Generated list'!D8811=\"\",\"\",'Generated list'!D8811)","v":""}]
[null,{"$f":"IF('Generated list'!B8812=\"\",\"\",'Generated list'!B8812)","v":""},{"$f":"IF('Generated list'!C8812=\"\",\"\",'Generated list'!C8812)","v":""},{"$f":"IF('Generated list'!D8812=\"\",\"\",'Generated list'!D8812)","v":""}]
[null,{"$f":"IF('Generated list'!B8813=\"\",\"\",'Generated list'!B8813)","v":""},{"$f":"IF('Generated list'!C8813=\"\",\"\",'Generated list'!C8813)","v":""},{"$f":"IF('Generated list'!D8813=\"\",\"\",'Generated list'!D8813)","v":""}]
[null,{"$f":"IF('Generated list'!B8814=\"\",\"\",'Generated list'!B8814)","v":""},{"$f":"IF('Generated list'!C8814=\"\",\"\",'Generated list'!C8814)","v":""},{"$f":"IF('Generated list'!D8814=\"\",\"\",'Generated list'!D8814)","v":""}]
[null,{"$f":"IF('Generated list'!B8815=\"\",\"\",'Generated list'!B8815)","v":""},{"$f":"IF('Generated list'!C8815=\"\",\"\",'Generated list'!C8815)","v":""},{"$f":"IF('Generated list'!D8815=\"\",\"\",'Generated list'!D8815)","v":""}]
[null,{"$f":"IF('Generated list'!B8816=\"\",\"\",'Generated list'!B8816)","v":""},{"$f":"IF('Generated list'!C8816=\"\",\"\",'Generated list'!C8816)","v":""},{"$f":"IF('Generated list'!D8816=\"\",\"\",'Generated list'!D8816)","v":""}]
[null,{"$f":"IF('Generated list'!B8817=\"\",\"\",'Generated list'!B8817)","v":""},{"$f":"IF('Generated list'!C8817=\"\",\"\",'Generated list'!C8817)","v":""},{"$f":"IF('Generated list'!D8817=\"\",\"\",'Generated list'!D8817)","v":""}]
[null,{"$f":"IF('Generated list'!B8818=\"\",\"\",'Generated list'!B8818)","v":""},{"$f":"IF('Generated list'!C8818=\"\",\"\",'Generated list'!C8818)","v":""},{"$f":"IF('Generated list'!D8818=\"\",\"\",'Generated list'!D8818)","v":""}]
[null,{"$f":"IF('Generated list'!B8819=\"\",\"\",'Generated list'!B8819)","v":""},{"$f":"IF('Generated list'!C8819=\"\",\"\",'Generated list'!C8819)","v":""},{"$f":"IF('Generated list'!D8819=\"\",\"\",'Generated list'!D8819)","v":""}]
[null,{"$f":"IF('Generated list'!B8820=\"\",\"\",'Generated list'!B8820)","v":""},{"$f":"IF('Generated list'!C8820=\"\",\"\",'Generated list'!C8820)","v":""},{"$f":"IF('Generated list'!D8820=\"\",\"\",'Generated list'!D8820)","v":""}]
[null,{"$f":"IF('Generated list'!B8821=\"\",\"\",'Generated list'!B8821)","v":""},{"$f":"IF('Generated list'!C8821=\"\",\"\",'Generated list'!C8821)","v":""},{"$f":"IF('Generated list'!D8821=\"\",\"\",'Generated list'!D8821)","v":""}]
[null,{"$f":"IF('Generated list'!B8822=\"\",\"\",'Generated list'!B8822)","v":""},{"$f":"IF('Generated list'!C8822=\"\",\"\",'Generated list'!C8822)","v":""},{"$f":"IF('Generated list'!D8822=\"\",\"\",'Generated list'!D8822)","v":""}]
[null,{"$f":"IF('Generated list'!B8823=\"\",\"\",'Generated list'!B8823)","v":""},{"$f":"IF('Generated list'!C8823=\"\",\"\",'Generated list'!C8823)","v":""},{"$f":"IF('Generated list'!D8823=\"\",\"\",'Generated list'!D8823)","v":""}]
[null,{"$f":"IF('Generated list'!B8824=\"\",\"\",'Generated list'!B8824)","v":""},{"$f":"IF('Generated list'!C8824=\"\",\"\",'Generated list'!C8824)","v":""},{"$f":"IF('Generated list'!D8824=\"\",\"\",'Generated list'!D8824)","v":""}]
[null,{"$f":"IF('Generated list'!B8825=\"\",\"\",'Generated list'!B8825)","v":""},{"$f":"IF('Generated list'!C8825=\"\",\"\",'Generated list'!C8825)","v":""},{"$f":"IF('Generated list'!D8825=\"\",\"\",'Generated list'!D8825)","v":""}]
[null,{"$f":"IF('Generated list'!B8826=\"\",\"\",'Generated list'!B8826)","v":""},{"$f":"IF('Generated list'!C8826=\"\",\"\",'Generated list'!C8826)","v":""},{"$f":"IF('Generated list'!D8826=\"\",\"\",'Generated list'!D8826)","v":""}]
[null,{"$f":"IF('Generated list'!B8827=\"\",\"\",'Generated list'!B8827)","v":""},{"$f":"IF('Generated list'!C8827=\"\",\"\",'Generated list'!C8827)","v":""},{"$f":"IF('Generated list'!D8827=\"\",\"\",'Generated list'!D8827)","v":""}]
[null,{"$f":"IF('Generated list'!B8828=\"\",\"\",'Generated list'!B8828)","v":""},{"$f":"IF('Generated list'!C8828=\"\",\"\",'Generated list'!C8828)","v":""},{"$f":"IF('Generated list'!D8828=\"\",\"\",'Generated list'!D8828)","v":""}]
[null,{"$f":"IF('Generated list'!B8829=\"\",\"\",'Generated list'!B8829)","v":""},{"$f":"IF('Generated list'!C8829=\"\",\"\",'Generated list'!C8829)","v":""},{"$f":"IF('Generated list'!D8829=\"\",\"\",'Generated list'!D8829)","v":""}]
[null,{"$f":"IF('Generated list'!B8830=\"\",\"\",'Generated list'!B8830)","v":""},{"$f":"IF('Generated list'!C8830=\"\",\"\",'Generated list'!C8830)","v":""},{"$f":"IF('Generated list'!D8830=\"\",\"\",'Generated list'!D8830)","v":""}]
[null,{"$f":"IF('Generated list'!B8831=\"\",\"\",'Generated list'!B8831)","v":""},{"$f":"IF('Generated list'!C8831=\"\",\"\",'Generated list'!C8831)","v":""},{"$f":"IF('Generated list'!D8831=\"\",\"\",'Generated list'!D8831)","v":""}]
[null,{"$f":"IF('Generated list'!B8832=\"\",\"\",'Generated list'!B8832)","v":""},{"$f":"IF('Generated list'!C8832=\"\",\"\",'Generated list'!C8832)","v":""},{"$f":"IF('Generated list'!D8832=\"\",\"\",'Generated list'!D8832)","v":""}]
[null,{"$f":"IF('Generated list'!B8833=\"\",\"\",'Generated list'!B8833)","v":""},{"$f":"IF('Generated list'!C8833=\"\",\"\",'Generated list'!C8833)","v":""},{"$f":"IF('Generated list'!D8833=\"\",\"\",'Generated list'!D8833)","v":""}]
[null,{"$f":"IF('Generated list'!B8834=\"\",\"\",'Generated list'!B8834)","v":""},{"$f":"IF('Generated list'!C8834=\"\",\"\",'Generated list'!C8834)","v":""},{"$f":"IF('Generated list'!D8834=\"\",\"\",'Generated list'!D8834)","v":""}]
[null,{"$f":"IF('Generated list'!B8835=\"\",\"\",'Generated list'!B8835)","v":""},{"$f":"IF('Generated list'!C8835=\"\",\"\",'Generated list'!C8835)","v":""},{"$f":"IF('Generated list'!D8835=\"\",\"\",'Generated list'!D8835)","v":""}]
[null,{"$f":"IF('Generated list'!B8836=\"\",\"\",'Generated list'!B8836)","v":""},{"$f":"IF('Generated list'!C8836=\"\",\"\",'Generated list'!C8836)","v":""},{"$f":"IF('Generated list'!D8836=\"\",\"\",'Generated list'!D8836)","v":""}]
[null,{"$f":"IF('Generated list'!B8837=\"\",\"\",'Generated list'!B8837)","v":""},{"$f":"IF('Generated list'!C8837=\"\",\"\",'Generated list'!C8837)","v":""},{"$f":"IF('Generated list'!D8837=\"\",\"\",'Generated list'!D8837)","v":""}]
[null,{"$f":"IF('Generated list'!B8838=\"\",\"\",'Generated list'!B8838)","v":""},{"$f":"IF('Generated list'!C8838=\"\",\"\",'Generated list'!C8838)","v":""},{"$f":"IF('Generated list'!D8838=\"\",\"\",'Generated list'!D8838)","v":""}]
[null,{"$f":"IF('Generated list'!B8839=\"\",\"\",'Generated list'!B8839)","v":""},{"$f":"IF('Generated list'!C8839=\"\",\"\",'Generated list'!C8839)","v":""},{"$f":"IF('Generated list'!D8839=\"\",\"\",'Generated list'!D8839)","v":""}]
[null,{"$f":"IF('Generated list'!B8840=\"\",\"\",'Generated list'!B8840)","v":""},{"$f":"IF('Generated list'!C8840=\"\",\"\",'Generated list'!C8840)","v":""},{"$f":"IF('Generated list'!D8840=\"\",\"\",'Generated list'!D8840)","v":""}]
[null,{"$f":"IF('Generated list'!B8841=\"\",\"\",'Generated list'!B8841)","v":""},{"$f":"IF('Generated list'!C8841=\"\",\"\",'Generated list'!C8841)","v":""},{"$f":"IF('Generated list'!D8841=\"\",\"\",'Generated list'!D8841)","v":""}]
[null,{"$f":"IF('Generated list'!B8842=\"\",\"\",'Generated list'!B8842)","v":""},{"$f":"IF('Generated list'!C8842=\"\",\"\",'Generated list'!C8842)","v":""},{"$f":"IF('Generated list'!D8842=\"\",\"\",'Generated list'!D8842)","v":""}]
[null,{"$f":"IF('Generated list'!B8843=\"\",\"\",'Generated list'!B8843)","v":""},{"$f":"IF('Generated list'!C8843=\"\",\"\",'Generated list'!C8843)","v":""},{"$f":"IF('Generated list'!D8843=\"\",\"\",'Generated list'!D8843)","v":""}]
[null,{"$f":"IF('Generated list'!B8844=\"\",\"\",'Generated list'!B8844)","v":""},{"$f":"IF('Generated list'!C8844=\"\",\"\",'Generated list'!C8844)","v":""},{"$f":"IF('Generated list'!D8844=\"\",\"\",'Generated list'!D8844)","v":""}]
[null,{"$f":"IF('Generated list'!B8845=\"\",\"\",'Generated list'!B8845)","v":""},{"$f":"IF('Generated list'!C8845=\"\",\"\",'Generated list'!C8845)","v":""},{"$f":"IF('Generated list'!D8845=\"\",\"\",'Generated list'!D8845)","v":""}]
[null,{"$f":"IF('Generated list'!B8846=\"\",\"\",'Generated list'!B8846)","v":""},{"$f":"IF('Generated list'!C8846=\"\",\"\",'Generated list'!C8846)","v":""},{"$f":"IF('Generated list'!D8846=\"\",\"\",'Generated list'!D8846)","v":""}]
[null,{"$f":"IF('Generated list'!B8847=\"\",\"\",'Generated list'!B8847)","v":""},{"$f":"IF('Generated list'!C8847=\"\",\"\",'Generated list'!C8847)","v":""},{"$f":"IF('Generated list'!D8847=\"\",\"\",'Generated list'!D8847)","v":""}]
[null,{"$f":"IF('Generated list'!B8848=\"\",\"\",'Generated list'!B8848)","v":""},{"$f":"IF('Generated list'!C8848=\"\",\"\",'Generated list'!C8848)","v":""},{"$f":"IF('Generated list'!D8848=\"\",\"\",'Generated list'!D8848)","v":""}]
[null,{"$f":"IF('Generated list'!B8849=\"\",\"\",'Generated list'!B8849)","v":""},{"$f":"IF('Generated list'!C8849=\"\",\"\",'Generated list'!C8849)","v":""},{"$f":"IF('Generated list'!D8849=\"\",\"\",'Generated list'!D8849)","v":""}]
[null,{"$f":"IF('Generated list'!B8850=\"\",\"\",'Generated list'!B8850)","v":""},{"$f":"IF('Generated list'!C8850=\"\",\"\",'Generated list'!C8850)","v":""},{"$f":"IF('Generated list'!D8850=\"\",\"\",'Generated list'!D8850)","v":""}]
[null,{"$f":"IF('Generated list'!B8851=\"\",\"\",'Generated list'!B8851)","v":""},{"$f":"IF('Generated list'!C8851=\"\",\"\",'Generated list'!C8851)","v":""},{"$f":"IF('Generated list'!D8851=\"\",\"\",'Generated list'!D8851)","v":""}]
[null,{"$f":"IF('Generated list'!B8852=\"\",\"\",'Generated list'!B8852)","v":""},{"$f":"IF('Generated list'!C8852=\"\",\"\",'Generated list'!C8852)","v":""},{"$f":"IF('Generated list'!D8852=\"\",\"\",'Generated list'!D8852)","v":""}]
[null,{"$f":"IF('Generated list'!B8853=\"\",\"\",'Generated list'!B8853)","v":""},{"$f":"IF('Generated list'!C8853=\"\",\"\",'Generated list'!C8853)","v":""},{"$f":"IF('Generated list'!D8853=\"\",\"\",'Generated list'!D8853)","v":""}]
[null,{"$f":"IF('Generated list'!B8854=\"\",\"\",'Generated list'!B8854)","v":""},{"$f":"IF('Generated list'!C8854=\"\",\"\",'Generated list'!C8854)","v":""},{"$f":"IF('Generated list'!D8854=\"\",\"\",'Generated list'!D8854)","v":""}]
[null,{"$f":"IF('Generated list'!B8855=\"\",\"\",'Generated list'!B8855)","v":""},{"$f":"IF('Generated list'!C8855=\"\",\"\",'Generated list'!C8855)","v":""},{"$f":"IF('Generated list'!D8855=\"\",\"\",'Generated list'!D8855)","v":""}]
[null,{"$f":"IF('Generated list'!B8856=\"\",\"\",'Generated list'!B8856)","v":""},{"$f":"IF('Generated list'!C8856=\"\",\"\",'Generated list'!C8856)","v":""},{"$f":"IF('Generated list'!D8856=\"\",\"\",'Generated list'!D8856)","v":""}]
[null,{"$f":"IF('Generated list'!B8857=\"\",\"\",'Generated list'!B8857)","v":""},{"$f":"IF('Generated list'!C8857=\"\",\"\",'Generated list'!C8857)","v":""},{"$f":"IF('Generated list'!D8857=\"\",\"\",'Generated list'!D8857)","v":""}]
[null,{"$f":"IF('Generated list'!B8858=\"\",\"\",'Generated list'!B8858)","v":""},{"$f":"IF('Generated list'!C8858=\"\",\"\",'Generated list'!C8858)","v":""},{"$f":"IF('Generated list'!D8858=\"\",\"\",'Generated list'!D8858)","v":""}]
[null,{"$f":"IF('Generated list'!B8859=\"\",\"\",'Generated list'!B8859)","v":""},{"$f":"IF('Generated list'!C8859=\"\",\"\",'Generated list'!C8859)","v":""},{"$f":"IF('Generated list'!D8859=\"\",\"\",'Generated list'!D8859)","v":""}]
[null,{"$f":"IF('Generated list'!B8860=\"\",\"\",'Generated list'!B8860)","v":""},{"$f":"IF('Generated list'!C8860=\"\",\"\",'Generated list'!C8860)","v":""},{"$f":"IF('Generated list'!D8860=\"\",\"\",'Generated list'!D8860)","v":""}]
[null,{"$f":"IF('Generated list'!B8861=\"\",\"\",'Generated list'!B8861)","v":""},{"$f":"IF('Generated list'!C8861=\"\",\"\",'Generated list'!C8861)","v":""},{"$f":"IF('Generated list'!D8861=\"\",\"\",'Generated list'!D8861)","v":""}]
[null,{"$f":"IF('Generated list'!B8862=\"\",\"\",'Generated list'!B8862)","v":""},{"$f":"IF('Generated list'!C8862=\"\",\"\",'Generated list'!C8862)","v":""},{"$f":"IF('Generated list'!D8862=\"\",\"\",'Generated list'!D8862)","v":""}]
[null,{"$f":"IF('Generated list'!B8863=\"\",\"\",'Generated list'!B8863)","v":""},{"$f":"IF('Generated list'!C8863=\"\",\"\",'Generated list'!C8863)","v":""},{"$f":"IF('Generated list'!D8863=\"\",\"\",'Generated list'!D8863)","v":""}]
[null,{"$f":"IF('Generated list'!B8864=\"\",\"\",'Generated list'!B8864)","v":""},{"$f":"IF('Generated list'!C8864=\"\",\"\",'Generated list'!C8864)","v":""},{"$f":"IF('Generated list'!D8864=\"\",\"\",'Generated list'!D8864)","v":""}]
[null,{"$f":"IF('Generated list'!B8865=\"\",\"\",'Generated list'!B8865)","v":""},{"$f":"IF('Generated list'!C8865=\"\",\"\",'Generated list'!C8865)","v":""},{"$f":"IF('Generated list'!D8865=\"\",\"\",'Generated list'!D8865)","v":""}]
[null,{"$f":"IF('Generated list'!B8866=\"\",\"\",'Generated list'!B8866)","v":""},{"$f":"IF('Generated list'!C8866=\"\",\"\",'Generated list'!C8866)","v":""},{"$f":"IF('Generated list'!D8866=\"\",\"\",'Generated list'!D8866)","v":""}]
[null,{"$f":"IF('Generated list'!B8867=\"\",\"\",'Generated list'!B8867)","v":""},{"$f":"IF('Generated list'!C8867=\"\",\"\",'Generated list'!C8867)","v":""},{"$f":"IF('Generated list'!D8867=\"\",\"\",'Generated list'!D8867)","v":""}]
[null,{"$f":"IF('Generated list'!B8868=\"\",\"\",'Generated list'!B8868)","v":""},{"$f":"IF('Generated list'!C8868=\"\",\"\",'Generated list'!C8868)","v":""},{"$f":"IF('Generated list'!D8868=\"\",\"\",'Generated list'!D8868)","v":""}]
[null,{"$f":"IF('Generated list'!B8869=\"\",\"\",'Generated list'!B8869)","v":""},{"$f":"IF('Generated list'!C8869=\"\",\"\",'Generated list'!C8869)","v":""},{"$f":"IF('Generated list'!D8869=\"\",\"\",'Generated list'!D8869)","v":""}]
[null,{"$f":"IF('Generated list'!B8870=\"\",\"\",'Generated list'!B8870)","v":""},{"$f":"IF('Generated list'!C8870=\"\",\"\",'Generated list'!C8870)","v":""},{"$f":"IF('Generated list'!D8870=\"\",\"\",'Generated list'!D8870)","v":""}]
[null,{"$f":"IF('Generated list'!B8871=\"\",\"\",'Generated list'!B8871)","v":""},{"$f":"IF('Generated list'!C8871=\"\",\"\",'Generated list'!C8871)","v":""},{"$f":"IF('Generated list'!D8871=\"\",\"\",'Generated list'!D8871)","v":""}]
[null,{"$f":"IF('Generated list'!B8872=\"\",\"\",'Generated list'!B8872)","v":""},{"$f":"IF('Generated list'!C8872=\"\",\"\",'Generated list'!C8872)","v":""},{"$f":"IF('Generated list'!D8872=\"\",\"\",'Generated list'!D8872)","v":""}]
[null,{"$f":"IF('Generated list'!B8873=\"\",\"\",'Generated list'!B8873)","v":""},{"$f":"IF('Generated list'!C8873=\"\",\"\",'Generated list'!C8873)","v":""},{"$f":"IF('Generated list'!D8873=\"\",\"\",'Generated list'!D8873)","v":""}]
[null,{"$f":"IF('Generated list'!B8874=\"\",\"\",'Generated list'!B8874)","v":""},{"$f":"IF('Generated list'!C8874=\"\",\"\",'Generated list'!C8874)","v":""},{"$f":"IF('Generated list'!D8874=\"\",\"\",'Generated list'!D8874)","v":""}]
[null,{"$f":"IF('Generated list'!B8875=\"\",\"\",'Generated list'!B8875)","v":""},{"$f":"IF('Generated list'!C8875=\"\",\"\",'Generated list'!C8875)","v":""},{"$f":"IF('Generated list'!D8875=\"\",\"\",'Generated list'!D8875)","v":""}]
[null,{"$f":"IF('Generated list'!B8876=\"\",\"\",'Generated list'!B8876)","v":""},{"$f":"IF('Generated list'!C8876=\"\",\"\",'Generated list'!C8876)","v":""},{"$f":"IF('Generated list'!D8876=\"\",\"\",'Generated list'!D8876)","v":""}]
[null,{"$f":"IF('Generated list'!B8877=\"\",\"\",'Generated list'!B8877)","v":""},{"$f":"IF('Generated list'!C8877=\"\",\"\",'Generated list'!C8877)","v":""},{"$f":"IF('Generated list'!D8877=\"\",\"\",'Generated list'!D8877)","v":""}]
[null,{"$f":"IF('Generated list'!B8878=\"\",\"\",'Generated list'!B8878)","v":""},{"$f":"IF('Generated list'!C8878=\"\",\"\",'Generated list'!C8878)","v":""},{"$f":"IF('Generated list'!D8878=\"\",\"\",'Generated list'!D8878)","v":""}]
[null,{"$f":"IF('Generated list'!B8879=\"\",\"\",'Generated list'!B8879)","v":""},{"$f":"IF('Generated list'!C8879=\"\",\"\",'Generated list'!C8879)","v":""},{"$f":"IF('Generated list'!D8879=\"\",\"\",'Generated list'!D8879)","v":""}]
[null,{"$f":"IF('Generated list'!B8880=\"\",\"\",'Generated list'!B8880)","v":""},{"$f":"IF('Generated list'!C8880=\"\",\"\",'Generated list'!C8880)","v":""},{"$f":"IF('Generated list'!D8880=\"\",\"\",'Generated list'!D8880)","v":""}]
[null,{"$f":"IF('Generated list'!B8881=\"\",\"\",'Generated list'!B8881)","v":""},{"$f":"IF('Generated list'!C8881=\"\",\"\",'Generated list'!C8881)","v":""},{"$f":"IF('Generated list'!D8881=\"\",\"\",'Generated list'!D8881)","v":""}]
[null,{"$f":"IF('Generated list'!B8882=\"\",\"\",'Generated list'!B8882)","v":""},{"$f":"IF('Generated list'!C8882=\"\",\"\",'Generated list'!C8882)","v":""},{"$f":"IF('Generated list'!D8882=\"\",\"\",'Generated list'!D8882)","v":""}]
[null,{"$f":"IF('Generated list'!B8883=\"\",\"\",'Generated list'!B8883)","v":""},{"$f":"IF('Generated list'!C8883=\"\",\"\",'Generated list'!C8883)","v":""},{"$f":"IF('Generated list'!D8883=\"\",\"\",'Generated list'!D8883)","v":""}]
[null,{"$f":"IF('Generated list'!B8884=\"\",\"\",'Generated list'!B8884)","v":""},{"$f":"IF('Generated list'!C8884=\"\",\"\",'Generated list'!C8884)","v":""},{"$f":"IF('Generated list'!D8884=\"\",\"\",'Generated list'!D8884)","v":""}]
[null,{"$f":"IF('Generated list'!B8885=\"\",\"\",'Generated list'!B8885)","v":""},{"$f":"IF('Generated list'!C8885=\"\",\"\",'Generated list'!C8885)","v":""},{"$f":"IF('Generated list'!D8885=\"\",\"\",'Generated list'!D8885)","v":""}]
[null,{"$f":"IF('Generated list'!B8886=\"\",\"\",'Generated list'!B8886)","v":""},{"$f":"IF('Generated list'!C8886=\"\",\"\",'Generated list'!C8886)","v":""},{"$f":"IF('Generated list'!D8886=\"\",\"\",'Generated list'!D8886)","v":""}]
[null,{"$f":"IF('Generated list'!B8887=\"\",\"\",'Generated list'!B8887)","v":""},{"$f":"IF('Generated list'!C8887=\"\",\"\",'Generated list'!C8887)","v":""},{"$f":"IF('Generated list'!D8887=\"\",\"\",'Generated list'!D8887)","v":""}]
[null,{"$f":"IF('Generated list'!B8888=\"\",\"\",'Generated list'!B8888)","v":""},{"$f":"IF('Generated list'!C8888=\"\",\"\",'Generated list'!C8888)","v":""},{"$f":"IF('Generated list'!D8888=\"\",\"\",'Generated list'!D8888)","v":""}]
[null,{"$f":"IF('Generated list'!B8889=\"\",\"\",'Generated list'!B8889)","v":""},{"$f":"IF('Generated list'!C8889=\"\",\"\",'Generated list'!C8889)","v":""},{"$f":"IF('Generated list'!D8889=\"\",\"\",'Generated list'!D8889)","v":""}]
[null,{"$f":"IF('Generated list'!B8890=\"\",\"\",'Generated list'!B8890)","v":""},{"$f":"IF('Generated list'!C8890=\"\",\"\",'Generated list'!C8890)","v":""},{"$f":"IF('Generated list'!D8890=\"\",\"\",'Generated list'!D8890)","v":""}]
[null,{"$f":"IF('Generated list'!B8891=\"\",\"\",'Generated list'!B8891)","v":""},{"$f":"IF('Generated list'!C8891=\"\",\"\",'Generated list'!C8891)","v":""},{"$f":"IF('Generated list'!D8891=\"\",\"\",'Generated list'!D8891)","v":""}]
[null,{"$f":"IF('Generated list'!B8892=\"\",\"\",'Generated list'!B8892)","v":""},{"$f":"IF('Generated list'!C8892=\"\",\"\",'Generated list'!C8892)","v":""},{"$f":"IF('Generated list'!D8892=\"\",\"\",'Generated list'!D8892)","v":""}]
[null,{"$f":"IF('Generated list'!B8893=\"\",\"\",'Generated list'!B8893)","v":""},{"$f":"IF('Generated list'!C8893=\"\",\"\",'Generated list'!C8893)","v":""},{"$f":"IF('Generated list'!D8893=\"\",\"\",'Generated list'!D8893)","v":""}]
[null,{"$f":"IF('Generated list'!B8894=\"\",\"\",'Generated list'!B8894)","v":""},{"$f":"IF('Generated list'!C8894=\"\",\"\",'Generated list'!C8894)","v":""},{"$f":"IF('Generated list'!D8894=\"\",\"\",'Generated list'!D8894)","v":""}]
[null,{"$f":"IF('Generated list'!B8895=\"\",\"\",'Generated list'!B8895)","v":""},{"$f":"IF('Generated list'!C8895=\"\",\"\",'Generated list'!C8895)","v":""},{"$f":"IF('Generated list'!D8895=\"\",\"\",'Generated list'!D8895)","v":""}]
[null,{"$f":"IF('Generated list'!B8896=\"\",\"\",'Generated list'!B8896)","v":""},{"$f":"IF('Generated list'!C8896=\"\",\"\",'Generated list'!C8896)","v":""},{"$f":"IF('Generated list'!D8896=\"\",\"\",'Generated list'!D8896)","v":""}]
[null,{"$f":"IF('Generated list'!B8897=\"\",\"\",'Generated list'!B8897)","v":""},{"$f":"IF('Generated list'!C8897=\"\",\"\",'Generated list'!C8897)","v":""},{"$f":"IF('Generated list'!D8897=\"\",\"\",'Generated list'!D8897)","v":""}]
[null,{"$f":"IF('Generated list'!B8898=\"\",\"\",'Generated list'!B8898)","v":""},{"$f":"IF('Generated list'!C8898=\"\",\"\",'Generated list'!C8898)","v":""},{"$f":"IF('Generated list'!D8898=\"\",\"\",'Generated list'!D8898)","v":""}]
[null,{"$f":"IF('Generated list'!B8899=\"\",\"\",'Generated list'!B8899)","v":""},{"$f":"IF('Generated list'!C8899=\"\",\"\",'Generated list'!C8899)","v":""},{"$f":"IF('Generated list'!D8899=\"\",\"\",'Generated list'!D8899)","v":""}]
[null,{"$f":"IF('Generated list'!B8900=\"\",\"\",'Generated list'!B8900)","v":""},{"$f":"IF('Generated list'!C8900=\"\",\"\",'Generated list'!C8900)","v":""},{"$f":"IF('Generated list'!D8900=\"\",\"\",'Generated list'!D8900)","v":""}]
[null,{"$f":"IF('Generated list'!B8901=\"\",\"\",'Generated list'!B8901)","v":""},{"$f":"IF('Generated list'!C8901=\"\",\"\",'Generated list'!C8901)","v":""},{"$f":"IF('Generated list'!D8901=\"\",\"\",'Generated list'!D8901)","v":""}]
[null,{"$f":"IF('Generated list'!B8902=\"\",\"\",'Generated list'!B8902)","v":""},{"$f":"IF('Generated list'!C8902=\"\",\"\",'Generated list'!C8902)","v":""},{"$f":"IF('Generated list'!D8902=\"\",\"\",'Generated list'!D8902)","v":""}]
[null,{"$f":"IF('Generated list'!B8903=\"\",\"\",'Generated list'!B8903)","v":""},{"$f":"IF('Generated list'!C8903=\"\",\"\",'Generated list'!C8903)","v":""},{"$f":"IF('Generated list'!D8903=\"\",\"\",'Generated list'!D8903)","v":""}]
[null,{"$f":"IF('Generated list'!B8904=\"\",\"\",'Generated list'!B8904)","v":""},{"$f":"IF('Generated list'!C8904=\"\",\"\",'Generated list'!C8904)","v":""},{"$f":"IF('Generated list'!D8904=\"\",\"\",'Generated list'!D8904)","v":""}]
[null,{"$f":"IF('Generated list'!B8905=\"\",\"\",'Generated list'!B8905)","v":""},{"$f":"IF('Generated list'!C8905=\"\",\"\",'Generated list'!C8905)","v":""},{"$f":"IF('Generated list'!D8905=\"\",\"\",'Generated list'!D8905)","v":""}]
[null,{"$f":"IF('Generated list'!B8906=\"\",\"\",'Generated list'!B8906)","v":""},{"$f":"IF('Generated list'!C8906=\"\",\"\",'Generated list'!C8906)","v":""},{"$f":"IF('Generated list'!D8906=\"\",\"\",'Generated list'!D8906)","v":""}]
[null,{"$f":"IF('Generated list'!B8907=\"\",\"\",'Generated list'!B8907)","v":""},{"$f":"IF('Generated list'!C8907=\"\",\"\",'Generated list'!C8907)","v":""},{"$f":"IF('Generated list'!D8907=\"\",\"\",'Generated list'!D8907)","v":""}]
[null,{"$f":"IF('Generated list'!B8908=\"\",\"\",'Generated list'!B8908)","v":""},{"$f":"IF('Generated list'!C8908=\"\",\"\",'Generated list'!C8908)","v":""},{"$f":"IF('Generated list'!D8908=\"\",\"\",'Generated list'!D8908)","v":""}]
[null,{"$f":"IF('Generated list'!B8909=\"\",\"\",'Generated list'!B8909)","v":""},{"$f":"IF('Generated list'!C8909=\"\",\"\",'Generated list'!C8909)","v":""},{"$f":"IF('Generated list'!D8909=\"\",\"\",'Generated list'!D8909)","v":""}]
[null,{"$f":"IF('Generated list'!B8910=\"\",\"\",'Generated list'!B8910)","v":""},{"$f":"IF('Generated list'!C8910=\"\",\"\",'Generated list'!C8910)","v":""},{"$f":"IF('Generated list'!D8910=\"\",\"\",'Generated list'!D8910)","v":""}]
[null,{"$f":"IF('Generated list'!B8911=\"\",\"\",'Generated list'!B8911)","v":""},{"$f":"IF('Generated list'!C8911=\"\",\"\",'Generated list'!C8911)","v":""},{"$f":"IF('Generated list'!D8911=\"\",\"\",'Generated list'!D8911)","v":""}]
[null,{"$f":"IF('Generated list'!B8912=\"\",\"\",'Generated list'!B8912)","v":""},{"$f":"IF('Generated list'!C8912=\"\",\"\",'Generated list'!C8912)","v":""},{"$f":"IF('Generated list'!D8912=\"\",\"\",'Generated list'!D8912)","v":""}]
[null,{"$f":"IF('Generated list'!B8913=\"\",\"\",'Generated list'!B8913)","v":""},{"$f":"IF('Generated list'!C8913=\"\",\"\",'Generated list'!C8913)","v":""},{"$f":"IF('Generated list'!D8913=\"\",\"\",'Generated list'!D8913)","v":""}]
[null,{"$f":"IF('Generated list'!B8914=\"\",\"\",'Generated list'!B8914)","v":""},{"$f":"IF('Generated list'!C8914=\"\",\"\",'Generated list'!C8914)","v":""},{"$f":"IF('Generated list'!D8914=\"\",\"\",'Generated list'!D8914)","v":""}]
[null,{"$f":"IF('Generated list'!B8915=\"\",\"\",'Generated list'!B8915)","v":""},{"$f":"IF('Generated list'!C8915=\"\",\"\",'Generated list'!C8915)","v":""},{"$f":"IF('Generated list'!D8915=\"\",\"\",'Generated list'!D8915)","v":""}]
[null,{"$f":"IF('Generated list'!B8916=\"\",\"\",'Generated list'!B8916)","v":""},{"$f":"IF('Generated list'!C8916=\"\",\"\",'Generated list'!C8916)","v":""},{"$f":"IF('Generated list'!D8916=\"\",\"\",'Generated list'!D8916)","v":""}]
[null,{"$f":"IF('Generated list'!B8917=\"\",\"\",'Generated list'!B8917)","v":""},{"$f":"IF('Generated list'!C8917=\"\",\"\",'Generated list'!C8917)","v":""},{"$f":"IF('Generated list'!D8917=\"\",\"\",'Generated list'!D8917)","v":""}]
[null,{"$f":"IF('Generated list'!B8918=\"\",\"\",'Generated list'!B8918)","v":""},{"$f":"IF('Generated list'!C8918=\"\",\"\",'Generated list'!C8918)","v":""},{"$f":"IF('Generated list'!D8918=\"\",\"\",'Generated list'!D8918)","v":""}]
[null,{"$f":"IF('Generated list'!B8919=\"\",\"\",'Generated list'!B8919)","v":""},{"$f":"IF('Generated list'!C8919=\"\",\"\",'Generated list'!C8919)","v":""},{"$f":"IF('Generated list'!D8919=\"\",\"\",'Generated list'!D8919)","v":""}]
[null,{"$f":"IF('Generated list'!B8920=\"\",\"\",'Generated list'!B8920)","v":""},{"$f":"IF('Generated list'!C8920=\"\",\"\",'Generated list'!C8920)","v":""},{"$f":"IF('Generated list'!D8920=\"\",\"\",'Generated list'!D8920)","v":""}]
[null,{"$f":"IF('Generated list'!B8921=\"\",\"\",'Generated list'!B8921)","v":""},{"$f":"IF('Generated list'!C8921=\"\",\"\",'Generated list'!C8921)","v":""},{"$f":"IF('Generated list'!D8921=\"\",\"\",'Generated list'!D8921)","v":""}]
[null,{"$f":"IF('Generated list'!B8922=\"\",\"\",'Generated list'!B8922)","v":""},{"$f":"IF('Generated list'!C8922=\"\",\"\",'Generated list'!C8922)","v":""},{"$f":"IF('Generated list'!D8922=\"\",\"\",'Generated list'!D8922)","v":""}]
[null,{"$f":"IF('Generated list'!B8923=\"\",\"\",'Generated list'!B8923)","v":""},{"$f":"IF('Generated list'!C8923=\"\",\"\",'Generated list'!C8923)","v":""},{"$f":"IF('Generated list'!D8923=\"\",\"\",'Generated list'!D8923)","v":""}]
[null,{"$f":"IF('Generated list'!B8924=\"\",\"\",'Generated list'!B8924)","v":""},{"$f":"IF('Generated list'!C8924=\"\",\"\",'Generated list'!C8924)","v":""},{"$f":"IF('Generated list'!D8924=\"\",\"\",'Generated list'!D8924)","v":""}]
[null,{"$f":"IF('Generated list'!B8925=\"\",\"\",'Generated list'!B8925)","v":""},{"$f":"IF('Generated list'!C8925=\"\",\"\",'Generated list'!C8925)","v":""},{"$f":"IF('Generated list'!D8925=\"\",\"\",'Generated list'!D8925)","v":""}]
[null,{"$f":"IF('Generated list'!B8926=\"\",\"\",'Generated list'!B8926)","v":""},{"$f":"IF('Generated list'!C8926=\"\",\"\",'Generated list'!C8926)","v":""},{"$f":"IF('Generated list'!D8926=\"\",\"\",'Generated list'!D8926)","v":""}]
[null,{"$f":"IF('Generated list'!B8927=\"\",\"\",'Generated list'!B8927)","v":""},{"$f":"IF('Generated list'!C8927=\"\",\"\",'Generated list'!C8927)","v":""},{"$f":"IF('Generated list'!D8927=\"\",\"\",'Generated list'!D8927)","v":""}]
[null,{"$f":"IF('Generated list'!B8928=\"\",\"\",'Generated list'!B8928)","v":""},{"$f":"IF('Generated list'!C8928=\"\",\"\",'Generated list'!C8928)","v":""},{"$f":"IF('Generated list'!D8928=\"\",\"\",'Generated list'!D8928)","v":""}]
[null,{"$f":"IF('Generated list'!B8929=\"\",\"\",'Generated list'!B8929)","v":""},{"$f":"IF('Generated list'!C8929=\"\",\"\",'Generated list'!C8929)","v":""},{"$f":"IF('Generated list'!D8929=\"\",\"\",'Generated list'!D8929)","v":""}]
[null,{"$f":"IF('Generated list'!B8930=\"\",\"\",'Generated list'!B8930)","v":""},{"$f":"IF('Generated list'!C8930=\"\",\"\",'Generated list'!C8930)","v":""},{"$f":"IF('Generated list'!D8930=\"\",\"\",'Generated list'!D8930)","v":""}]
[null,{"$f":"IF('Generated list'!B8931=\"\",\"\",'Generated list'!B8931)","v":""},{"$f":"IF('Generated list'!C8931=\"\",\"\",'Generated list'!C8931)","v":""},{"$f":"IF('Generated list'!D8931=\"\",\"\",'Generated list'!D8931)","v":""}]
[null,{"$f":"IF('Generated list'!B8932=\"\",\"\",'Generated list'!B8932)","v":""},{"$f":"IF('Generated list'!C8932=\"\",\"\",'Generated list'!C8932)","v":""},{"$f":"IF('Generated list'!D8932=\"\",\"\",'Generated list'!D8932)","v":""}]
[null,{"$f":"IF('Generated list'!B8933=\"\",\"\",'Generated list'!B8933)","v":""},{"$f":"IF('Generated list'!C8933=\"\",\"\",'Generated list'!C8933)","v":""},{"$f":"IF('Generated list'!D8933=\"\",\"\",'Generated list'!D8933)","v":""}]
[null,{"$f":"IF('Generated list'!B8934=\"\",\"\",'Generated list'!B8934)","v":""},{"$f":"IF('Generated list'!C8934=\"\",\"\",'Generated list'!C8934)","v":""},{"$f":"IF('Generated list'!D8934=\"\",\"\",'Generated list'!D8934)","v":""}]
[null,{"$f":"IF('Generated list'!B8935=\"\",\"\",'Generated list'!B8935)","v":""},{"$f":"IF('Generated list'!C8935=\"\",\"\",'Generated list'!C8935)","v":""},{"$f":"IF('Generated list'!D8935=\"\",\"\",'Generated list'!D8935)","v":""}]
[null,{"$f":"IF('Generated list'!B8936=\"\",\"\",'Generated list'!B8936)","v":""},{"$f":"IF('Generated list'!C8936=\"\",\"\",'Generated list'!C8936)","v":""},{"$f":"IF('Generated list'!D8936=\"\",\"\",'Generated list'!D8936)","v":""}]
[null,{"$f":"IF('Generated list'!B8937=\"\",\"\",'Generated list'!B8937)","v":""},{"$f":"IF('Generated list'!C8937=\"\",\"\",'Generated list'!C8937)","v":""},{"$f":"IF('Generated list'!D8937=\"\",\"\",'Generated list'!D8937)","v":""}]
[null,{"$f":"IF('Generated list'!B8938=\"\",\"\",'Generated list'!B8938)","v":""},{"$f":"IF('Generated list'!C8938=\"\",\"\",'Generated list'!C8938)","v":""},{"$f":"IF('Generated list'!D8938=\"\",\"\",'Generated list'!D8938)","v":""}]
[null,{"$f":"IF('Generated list'!B8939=\"\",\"\",'Generated list'!B8939)","v":""},{"$f":"IF('Generated list'!C8939=\"\",\"\",'Generated list'!C8939)","v":""},{"$f":"IF('Generated list'!D8939=\"\",\"\",'Generated list'!D8939)","v":""}]
[null,{"$f":"IF('Generated list'!B8940=\"\",\"\",'Generated list'!B8940)","v":""},{"$f":"IF('Generated list'!C8940=\"\",\"\",'Generated list'!C8940)","v":""},{"$f":"IF('Generated list'!D8940=\"\",\"\",'Generated list'!D8940)","v":""}]
[null,{"$f":"IF('Generated list'!B8941=\"\",\"\",'Generated list'!B8941)","v":""},{"$f":"IF('Generated list'!C8941=\"\",\"\",'Generated list'!C8941)","v":""},{"$f":"IF('Generated list'!D8941=\"\",\"\",'Generated list'!D8941)","v":""}]
[null,{"$f":"IF('Generated list'!B8942=\"\",\"\",'Generated list'!B8942)","v":""},{"$f":"IF('Generated list'!C8942=\"\",\"\",'Generated list'!C8942)","v":""},{"$f":"IF('Generated list'!D8942=\"\",\"\",'Generated list'!D8942)","v":""}]
[null,{"$f":"IF('Generated list'!B8943=\"\",\"\",'Generated list'!B8943)","v":""},{"$f":"IF('Generated list'!C8943=\"\",\"\",'Generated list'!C8943)","v":""},{"$f":"IF('Generated list'!D8943=\"\",\"\",'Generated list'!D8943)","v":""}]
[null,{"$f":"IF('Generated list'!B8944=\"\",\"\",'Generated list'!B8944)","v":""},{"$f":"IF('Generated list'!C8944=\"\",\"\",'Generated list'!C8944)","v":""},{"$f":"IF('Generated list'!D8944=\"\",\"\",'Generated list'!D8944)","v":""}]
[null,{"$f":"IF('Generated list'!B8945=\"\",\"\",'Generated list'!B8945)","v":""},{"$f":"IF('Generated list'!C8945=\"\",\"\",'Generated list'!C8945)","v":""},{"$f":"IF('Generated list'!D8945=\"\",\"\",'Generated list'!D8945)","v":""}]
[null,{"$f":"IF('Generated list'!B8946=\"\",\"\",'Generated list'!B8946)","v":""},{"$f":"IF('Generated list'!C8946=\"\",\"\",'Generated list'!C8946)","v":""},{"$f":"IF('Generated list'!D8946=\"\",\"\",'Generated list'!D8946)","v":""}]
[null,{"$f":"IF('Generated list'!B8947=\"\",\"\",'Generated list'!B8947)","v":""},{"$f":"IF('Generated list'!C8947=\"\",\"\",'Generated list'!C8947)","v":""},{"$f":"IF('Generated list'!D8947=\"\",\"\",'Generated list'!D8947)","v":""}]
[null,{"$f":"IF('Generated list'!B8948=\"\",\"\",'Generated list'!B8948)","v":""},{"$f":"IF('Generated list'!C8948=\"\",\"\",'Generated list'!C8948)","v":""},{"$f":"IF('Generated list'!D8948=\"\",\"\",'Generated list'!D8948)","v":""}]
[null,{"$f":"IF('Generated list'!B8949=\"\",\"\",'Generated list'!B8949)","v":""},{"$f":"IF('Generated list'!C8949=\"\",\"\",'Generated list'!C8949)","v":""},{"$f":"IF('Generated list'!D8949=\"\",\"\",'Generated list'!D8949)","v":""}]
[null,{"$f":"IF('Generated list'!B8950=\"\",\"\",'Generated list'!B8950)","v":""},{"$f":"IF('Generated list'!C8950=\"\",\"\",'Generated list'!C8950)","v":""},{"$f":"IF('Generated list'!D8950=\"\",\"\",'Generated list'!D8950)","v":""}]
[null,{"$f":"IF('Generated list'!B8951=\"\",\"\",'Generated list'!B8951)","v":""},{"$f":"IF('Generated list'!C8951=\"\",\"\",'Generated list'!C8951)","v":""},{"$f":"IF('Generated list'!D8951=\"\",\"\",'Generated list'!D8951)","v":""}]
[null,{"$f":"IF('Generated list'!B8952=\"\",\"\",'Generated list'!B8952)","v":""},{"$f":"IF('Generated list'!C8952=\"\",\"\",'Generated list'!C8952)","v":""},{"$f":"IF('Generated list'!D8952=\"\",\"\",'Generated list'!D8952)","v":""}]
[null,{"$f":"IF('Generated list'!B8953=\"\",\"\",'Generated list'!B8953)","v":""},{"$f":"IF('Generated list'!C8953=\"\",\"\",'Generated list'!C8953)","v":""},{"$f":"IF('Generated list'!D8953=\"\",\"\",'Generated list'!D8953)","v":""}]
[null,{"$f":"IF('Generated list'!B8954=\"\",\"\",'Generated list'!B8954)","v":""},{"$f":"IF('Generated list'!C8954=\"\",\"\",'Generated list'!C8954)","v":""},{"$f":"IF('Generated list'!D8954=\"\",\"\",'Generated list'!D8954)","v":""}]
[null,{"$f":"IF('Generated list'!B8955=\"\",\"\",'Generated list'!B8955)","v":""},{"$f":"IF('Generated list'!C8955=\"\",\"\",'Generated list'!C8955)","v":""},{"$f":"IF('Generated list'!D8955=\"\",\"\",'Generated list'!D8955)","v":""}]
[null,{"$f":"IF('Generated list'!B8956=\"\",\"\",'Generated list'!B8956)","v":""},{"$f":"IF('Generated list'!C8956=\"\",\"\",'Generated list'!C8956)","v":""},{"$f":"IF('Generated list'!D8956=\"\",\"\",'Generated list'!D8956)","v":""}]
[null,{"$f":"IF('Generated list'!B8957=\"\",\"\",'Generated list'!B8957)","v":""},{"$f":"IF('Generated list'!C8957=\"\",\"\",'Generated list'!C8957)","v":""},{"$f":"IF('Generated list'!D8957=\"\",\"\",'Generated list'!D8957)","v":""}]
[null,{"$f":"IF('Generated list'!B8958=\"\",\"\",'Generated list'!B8958)","v":""},{"$f":"IF('Generated list'!C8958=\"\",\"\",'Generated list'!C8958)","v":""},{"$f":"IF('Generated list'!D8958=\"\",\"\",'Generated list'!D8958)","v":""}]
[null,{"$f":"IF('Generated list'!B8959=\"\",\"\",'Generated list'!B8959)","v":""},{"$f":"IF('Generated list'!C8959=\"\",\"\",'Generated list'!C8959)","v":""},{"$f":"IF('Generated list'!D8959=\"\",\"\",'Generated list'!D8959)","v":""}]
[null,{"$f":"IF('Generated list'!B8960=\"\",\"\",'Generated list'!B8960)","v":""},{"$f":"IF('Generated list'!C8960=\"\",\"\",'Generated list'!C8960)","v":""},{"$f":"IF('Generated list'!D8960=\"\",\"\",'Generated list'!D8960)","v":""}]
[null,{"$f":"IF('Generated list'!B8961=\"\",\"\",'Generated list'!B8961)","v":""},{"$f":"IF('Generated list'!C8961=\"\",\"\",'Generated list'!C8961)","v":""},{"$f":"IF('Generated list'!D8961=\"\",\"\",'Generated list'!D8961)","v":""}]
[null,{"$f":"IF('Generated list'!B8962=\"\",\"\",'Generated list'!B8962)","v":""},{"$f":"IF('Generated list'!C8962=\"\",\"\",'Generated list'!C8962)","v":""},{"$f":"IF('Generated list'!D8962=\"\",\"\",'Generated list'!D8962)","v":""}]
[null,{"$f":"IF('Generated list'!B8963=\"\",\"\",'Generated list'!B8963)","v":""},{"$f":"IF('Generated list'!C8963=\"\",\"\",'Generated list'!C8963)","v":""},{"$f":"IF('Generated list'!D8963=\"\",\"\",'Generated list'!D8963)","v":""}]
[null,{"$f":"IF('Generated list'!B8964=\"\",\"\",'Generated list'!B8964)","v":""},{"$f":"IF('Generated list'!C8964=\"\",\"\",'Generated list'!C8964)","v":""},{"$f":"IF('Generated list'!D8964=\"\",\"\",'Generated list'!D8964)","v":""}]
[null,{"$f":"IF('Generated list'!B8965=\"\",\"\",'Generated list'!B8965)","v":""},{"$f":"IF('Generated list'!C8965=\"\",\"\",'Generated list'!C8965)","v":""},{"$f":"IF('Generated list'!D8965=\"\",\"\",'Generated list'!D8965)","v":""}]
[null,{"$f":"IF('Generated list'!B8966=\"\",\"\",'Generated list'!B8966)","v":""},{"$f":"IF('Generated list'!C8966=\"\",\"\",'Generated list'!C8966)","v":""},{"$f":"IF('Generated list'!D8966=\"\",\"\",'Generated list'!D8966)","v":""}]
[null,{"$f":"IF('Generated list'!B8967=\"\",\"\",'Generated list'!B8967)","v":""},{"$f":"IF('Generated list'!C8967=\"\",\"\",'Generated list'!C8967)","v":""},{"$f":"IF('Generated list'!D8967=\"\",\"\",'Generated list'!D8967)","v":""}]
[null,{"$f":"IF('Generated list'!B8968=\"\",\"\",'Generated list'!B8968)","v":""},{"$f":"IF('Generated list'!C8968=\"\",\"\",'Generated list'!C8968)","v":""},{"$f":"IF('Generated list'!D8968=\"\",\"\",'Generated list'!D8968)","v":""}]
[null,{"$f":"IF('Generated list'!B8969=\"\",\"\",'Generated list'!B8969)","v":""},{"$f":"IF('Generated list'!C8969=\"\",\"\",'Generated list'!C8969)","v":""},{"$f":"IF('Generated list'!D8969=\"\",\"\",'Generated list'!D8969)","v":""}]
[null,{"$f":"IF('Generated list'!B8970=\"\",\"\",'Generated list'!B8970)","v":""},{"$f":"IF('Generated list'!C8970=\"\",\"\",'Generated list'!C8970)","v":""},{"$f":"IF('Generated list'!D8970=\"\",\"\",'Generated list'!D8970)","v":""}]
[null,{"$f":"IF('Generated list'!B8971=\"\",\"\",'Generated list'!B8971)","v":""},{"$f":"IF('Generated list'!C8971=\"\",\"\",'Generated list'!C8971)","v":""},{"$f":"IF('Generated list'!D8971=\"\",\"\",'Generated list'!D8971)","v":""}]
[null,{"$f":"IF('Generated list'!B8972=\"\",\"\",'Generated list'!B8972)","v":""},{"$f":"IF('Generated list'!C8972=\"\",\"\",'Generated list'!C8972)","v":""},{"$f":"IF('Generated list'!D8972=\"\",\"\",'Generated list'!D8972)","v":""}]
[null,{"$f":"IF('Generated list'!B8973=\"\",\"\",'Generated list'!B8973)","v":""},{"$f":"IF('Generated list'!C8973=\"\",\"\",'Generated list'!C8973)","v":""},{"$f":"IF('Generated list'!D8973=\"\",\"\",'Generated list'!D8973)","v":""}]
[null,{"$f":"IF('Generated list'!B8974=\"\",\"\",'Generated list'!B8974)","v":""},{"$f":"IF('Generated list'!C8974=\"\",\"\",'Generated list'!C8974)","v":""},{"$f":"IF('Generated list'!D8974=\"\",\"\",'Generated list'!D8974)","v":""}]
[null,{"$f":"IF('Generated list'!B8975=\"\",\"\",'Generated list'!B8975)","v":""},{"$f":"IF('Generated list'!C8975=\"\",\"\",'Generated list'!C8975)","v":""},{"$f":"IF('Generated list'!D8975=\"\",\"\",'Generated list'!D8975)","v":""}]
[null,{"$f":"IF('Generated list'!B8976=\"\",\"\",'Generated list'!B8976)","v":""},{"$f":"IF('Generated list'!C8976=\"\",\"\",'Generated list'!C8976)","v":""},{"$f":"IF('Generated list'!D8976=\"\",\"\",'Generated list'!D8976)","v":""}]
[null,{"$f":"IF('Generated list'!B8977=\"\",\"\",'Generated list'!B8977)","v":""},{"$f":"IF('Generated list'!C8977=\"\",\"\",'Generated list'!C8977)","v":""},{"$f":"IF('Generated list'!D8977=\"\",\"\",'Generated list'!D8977)","v":""}]
[null,{"$f":"IF('Generated list'!B8978=\"\",\"\",'Generated list'!B8978)","v":""},{"$f":"IF('Generated list'!C8978=\"\",\"\",'Generated list'!C8978)","v":""},{"$f":"IF('Generated list'!D8978=\"\",\"\",'Generated list'!D8978)","v":""}]
[null,{"$f":"IF('Generated list'!B8979=\"\",\"\",'Generated list'!B8979)","v":""},{"$f":"IF('Generated list'!C8979=\"\",\"\",'Generated list'!C8979)","v":""},{"$f":"IF('Generated list'!D8979=\"\",\"\",'Generated list'!D8979)","v":""}]
[null,{"$f":"IF('Generated list'!B8980=\"\",\"\",'Generated list'!B8980)","v":""},{"$f":"IF('Generated list'!C8980=\"\",\"\",'Generated list'!C8980)","v":""},{"$f":"IF('Generated list'!D8980=\"\",\"\",'Generated list'!D8980)","v":""}]
[null,{"$f":"IF('Generated list'!B8981=\"\",\"\",'Generated list'!B8981)","v":""},{"$f":"IF('Generated list'!C8981=\"\",\"\",'Generated list'!C8981)","v":""},{"$f":"IF('Generated list'!D8981=\"\",\"\",'Generated list'!D8981)","v":""}]
[null,{"$f":"IF('Generated list'!B8982=\"\",\"\",'Generated list'!B8982)","v":""},{"$f":"IF('Generated list'!C8982=\"\",\"\",'Generated list'!C8982)","v":""},{"$f":"IF('Generated list'!D8982=\"\",\"\",'Generated list'!D8982)","v":""}]
[null,{"$f":"IF('Generated list'!B8983=\"\",\"\",'Generated list'!B8983)","v":""},{"$f":"IF('Generated list'!C8983=\"\",\"\",'Generated list'!C8983)","v":""},{"$f":"IF('Generated list'!D8983=\"\",\"\",'Generated list'!D8983)","v":""}]
[null,{"$f":"IF('Generated list'!B8984=\"\",\"\",'Generated list'!B8984)","v":""},{"$f":"IF('Generated list'!C8984=\"\",\"\",'Generated list'!C8984)","v":""},{"$f":"IF('Generated list'!D8984=\"\",\"\",'Generated list'!D8984)","v":""}]
[null,{"$f":"IF('Generated list'!B8985=\"\",\"\",'Generated list'!B8985)","v":""},{"$f":"IF('Generated list'!C8985=\"\",\"\",'Generated list'!C8985)","v":""},{"$f":"IF('Generated list'!D8985=\"\",\"\",'Generated list'!D8985)","v":""}]
[null,{"$f":"IF('Generated list'!B8986=\"\",\"\",'Generated list'!B8986)","v":""},{"$f":"IF('Generated list'!C8986=\"\",\"\",'Generated list'!C8986)","v":""},{"$f":"IF('Generated list'!D8986=\"\",\"\",'Generated list'!D8986)","v":""}]
[null,{"$f":"IF('Generated list'!B8987=\"\",\"\",'Generated list'!B8987)","v":""},{"$f":"IF('Generated list'!C8987=\"\",\"\",'Generated list'!C8987)","v":""},{"$f":"IF('Generated list'!D8987=\"\",\"\",'Generated list'!D8987)","v":""}]
[null,{"$f":"IF('Generated list'!B8988=\"\",\"\",'Generated list'!B8988)","v":""},{"$f":"IF('Generated list'!C8988=\"\",\"\",'Generated list'!C8988)","v":""},{"$f":"IF('Generated list'!D8988=\"\",\"\",'Generated list'!D8988)","v":""}]
[null,{"$f":"IF('Generated list'!B8989=\"\",\"\",'Generated list'!B8989)","v":""},{"$f":"IF('Generated list'!C8989=\"\",\"\",'Generated list'!C8989)","v":""},{"$f":"IF('Generated list'!D8989=\"\",\"\",'Generated list'!D8989)","v":""}]
[null,{"$f":"IF('Generated list'!B8990=\"\",\"\",'Generated list'!B8990)","v":""},{"$f":"IF('Generated list'!C8990=\"\",\"\",'Generated list'!C8990)","v":""},{"$f":"IF('Generated list'!D8990=\"\",\"\",'Generated list'!D8990)","v":""}]
[null,{"$f":"IF('Generated list'!B8991=\"\",\"\",'Generated list'!B8991)","v":""},{"$f":"IF('Generated list'!C8991=\"\",\"\",'Generated list'!C8991)","v":""},{"$f":"IF('Generated list'!D8991=\"\",\"\",'Generated list'!D8991)","v":""}]
[null,{"$f":"IF('Generated list'!B8992=\"\",\"\",'Generated list'!B8992)","v":""},{"$f":"IF('Generated list'!C8992=\"\",\"\",'Generated list'!C8992)","v":""},{"$f":"IF('Generated list'!D8992=\"\",\"\",'Generated list'!D8992)","v":""}]
[null,{"$f":"IF('Generated list'!B8993=\"\",\"\",'Generated list'!B8993)","v":""},{"$f":"IF('Generated list'!C8993=\"\",\"\",'Generated list'!C8993)","v":""},{"$f":"IF('Generated list'!D8993=\"\",\"\",'Generated list'!D8993)","v":""}]
[null,{"$f":"IF('Generated list'!B8994=\"\",\"\",'Generated list'!B8994)","v":""},{"$f":"IF('Generated list'!C8994=\"\",\"\",'Generated list'!C8994)","v":""},{"$f":"IF('Generated list'!D8994=\"\",\"\",'Generated list'!D8994)","v":""}]
[null,{"$f":"IF('Generated list'!B8995=\"\",\"\",'Generated list'!B8995)","v":""},{"$f":"IF('Generated list'!C8995=\"\",\"\",'Generated list'!C8995)","v":""},{"$f":"IF('Generated list'!D8995=\"\",\"\",'Generated list'!D8995)","v":""}]
[null,{"$f":"IF('Generated list'!B8996=\"\",\"\",'Generated list'!B8996)","v":""},{"$f":"IF('Generated list'!C8996=\"\",\"\",'Generated list'!C8996)","v":""},{"$f":"IF('Generated list'!D8996=\"\",\"\",'Generated list'!D8996)","v":""}]
[null,{"$f":"IF('Generated list'!B8997=\"\",\"\",'Generated list'!B8997)","v":""},{"$f":"IF('Generated list'!C8997=\"\",\"\",'Generated list'!C8997)","v":""},{"$f":"IF('Generated list'!D8997=\"\",\"\",'Generated list'!D8997)","v":""}]
[null,{"$f":"IF('Generated list'!B8998=\"\",\"\",'Generated list'!B8998)","v":""},{"$f":"IF('Generated list'!C8998=\"\",\"\",'Generated list'!C8998)","v":""},{"$f":"IF('Generated list'!D8998=\"\",\"\",'Generated list'!D8998)","v":""}]
[null,{"$f":"IF('Generated list'!B8999=\"\",\"\",'Generated list'!B8999)","v":""},{"$f":"IF('Generated list'!C8999=\"\",\"\",'Generated list'!C8999)","v":""},{"$f":"IF('Generated list'!D8999=\"\",\"\",'Generated list'!D8999)","v":""}]
[null,{"$f":"IF('Generated list'!B9000=\"\",\"\",'Generated list'!B9000)","v":""},{"$f":"IF('Generated list'!C9000=\"\",\"\",'Generated list'!C9000)","v":""},{"$f":"IF('Generated list'!D9000=\"\",\"\",'Generated list'!D9000)","v":""}]
[null,{"$f":"IF('Generated list'!B9001=\"\",\"\",'Generated list'!B9001)","v":""},{"$f":"IF('Generated list'!C9001=\"\",\"\",'Generated list'!C9001)","v":""},{"$f":"IF('Generated list'!D9001=\"\",\"\",'Generated list'!D9001)","v":""}]
[null,{"$f":"IF('Generated list'!B9002=\"\",\"\",'Generated list'!B9002)","v":""},{"$f":"IF('Generated list'!C9002=\"\",\"\",'Generated list'!C9002)","v":""},{"$f":"IF('Generated list'!D9002=\"\",\"\",'Generated list'!D9002)","v":""}]
[null,{"$f":"IF('Generated list'!B9003=\"\",\"\",'Generated list'!B9003)","v":""},{"$f":"IF('Generated list'!C9003=\"\",\"\",'Generated list'!C9003)","v":""},{"$f":"IF('Generated list'!D9003=\"\",\"\",'Generated list'!D9003)","v":""}]
[null,{"$f":"IF('Generated list'!B9004=\"\",\"\",'Generated list'!B9004)","v":""},{"$f":"IF('Generated list'!C9004=\"\",\"\",'Generated list'!C9004)","v":""},{"$f":"IF('Generated list'!D9004=\"\",\"\",'Generated list'!D9004)","v":""}]
[null,{"$f":"IF('Generated list'!B9005=\"\",\"\",'Generated list'!B9005)","v":""},{"$f":"IF('Generated list'!C9005=\"\",\"\",'Generated list'!C9005)","v":""},{"$f":"IF('Generated list'!D9005=\"\",\"\",'Generated list'!D9005)","v":""}]
[null,{"$f":"IF('Generated list'!B9006=\"\",\"\",'Generated list'!B9006)","v":""},{"$f":"IF('Generated list'!C9006=\"\",\"\",'Generated list'!C9006)","v":""},{"$f":"IF('Generated list'!D9006=\"\",\"\",'Generated list'!D9006)","v":""}]
[null,{"$f":"IF('Generated list'!B9007=\"\",\"\",'Generated list'!B9007)","v":""},{"$f":"IF('Generated list'!C9007=\"\",\"\",'Generated list'!C9007)","v":""},{"$f":"IF('Generated list'!D9007=\"\",\"\",'Generated list'!D9007)","v":""}]
[null,{"$f":"IF('Generated list'!B9008=\"\",\"\",'Generated list'!B9008)","v":""},{"$f":"IF('Generated list'!C9008=\"\",\"\",'Generated list'!C9008)","v":""},{"$f":"IF('Generated list'!D9008=\"\",\"\",'Generated list'!D9008)","v":""}]
[null,{"$f":"IF('Generated list'!B9009=\"\",\"\",'Generated list'!B9009)","v":""},{"$f":"IF('Generated list'!C9009=\"\",\"\",'Generated list'!C9009)","v":""},{"$f":"IF('Generated list'!D9009=\"\",\"\",'Generated list'!D9009)","v":""}]
[null,{"$f":"IF('Generated list'!B9010=\"\",\"\",'Generated list'!B9010)","v":""},{"$f":"IF('Generated list'!C9010=\"\",\"\",'Generated list'!C9010)","v":""},{"$f":"IF('Generated list'!D9010=\"\",\"\",'Generated list'!D9010)","v":""}]
[null,{"$f":"IF('Generated list'!B9011=\"\",\"\",'Generated list'!B9011)","v":""},{"$f":"IF('Generated list'!C9011=\"\",\"\",'Generated list'!C9011)","v":""},{"$f":"IF('Generated list'!D9011=\"\",\"\",'Generated list'!D9011)","v":""}]
[null,{"$f":"IF('Generated list'!B9012=\"\",\"\",'Generated list'!B9012)","v":""},{"$f":"IF('Generated list'!C9012=\"\",\"\",'Generated list'!C9012)","v":""},{"$f":"IF('Generated list'!D9012=\"\",\"\",'Generated list'!D9012)","v":""}]
[null,{"$f":"IF('Generated list'!B9013=\"\",\"\",'Generated list'!B9013)","v":""},{"$f":"IF('Generated list'!C9013=\"\",\"\",'Generated list'!C9013)","v":""},{"$f":"IF('Generated list'!D9013=\"\",\"\",'Generated list'!D9013)","v":""}]
[null,{"$f":"IF('Generated list'!B9014=\"\",\"\",'Generated list'!B9014)","v":""},{"$f":"IF('Generated list'!C9014=\"\",\"\",'Generated list'!C9014)","v":""},{"$f":"IF('Generated list'!D9014=\"\",\"\",'Generated list'!D9014)","v":""}]
[null,{"$f":"IF('Generated list'!B9015=\"\",\"\",'Generated list'!B9015)","v":""},{"$f":"IF('Generated list'!C9015=\"\",\"\",'Generated list'!C9015)","v":""},{"$f":"IF('Generated list'!D9015=\"\",\"\",'Generated list'!D9015)","v":""}]
[null,{"$f":"IF('Generated list'!B9016=\"\",\"\",'Generated list'!B9016)","v":""},{"$f":"IF('Generated list'!C9016=\"\",\"\",'Generated list'!C9016)","v":""},{"$f":"IF('Generated list'!D9016=\"\",\"\",'Generated list'!D9016)","v":""}]
[null,{"$f":"IF('Generated list'!B9017=\"\",\"\",'Generated list'!B9017)","v":""},{"$f":"IF('Generated list'!C9017=\"\",\"\",'Generated list'!C9017)","v":""},{"$f":"IF('Generated list'!D9017=\"\",\"\",'Generated list'!D9017)","v":""}]
[null,{"$f":"IF('Generated list'!B9018=\"\",\"\",'Generated list'!B9018)","v":""},{"$f":"IF('Generated list'!C9018=\"\",\"\",'Generated list'!C9018)","v":""},{"$f":"IF('Generated list'!D9018=\"\",\"\",'Generated list'!D9018)","v":""}]
[null,{"$f":"IF('Generated list'!B9019=\"\",\"\",'Generated list'!B9019)","v":""},{"$f":"IF('Generated list'!C9019=\"\",\"\",'Generated list'!C9019)","v":""},{"$f":"IF('Generated list'!D9019=\"\",\"\",'Generated list'!D9019)","v":""}]
[null,{"$f":"IF('Generated list'!B9020=\"\",\"\",'Generated list'!B9020)","v":""},{"$f":"IF('Generated list'!C9020=\"\",\"\",'Generated list'!C9020)","v":""},{"$f":"IF('Generated list'!D9020=\"\",\"\",'Generated list'!D9020)","v":""}]
[null,{"$f":"IF('Generated list'!B9021=\"\",\"\",'Generated list'!B9021)","v":""},{"$f":"IF('Generated list'!C9021=\"\",\"\",'Generated list'!C9021)","v":""},{"$f":"IF('Generated list'!D9021=\"\",\"\",'Generated list'!D9021)","v":""}]
[null,{"$f":"IF('Generated list'!B9022=\"\",\"\",'Generated list'!B9022)","v":""},{"$f":"IF('Generated list'!C9022=\"\",\"\",'Generated list'!C9022)","v":""},{"$f":"IF('Generated list'!D9022=\"\",\"\",'Generated list'!D9022)","v":""}]
[null,{"$f":"IF('Generated list'!B9023=\"\",\"\",'Generated list'!B9023)","v":""},{"$f":"IF('Generated list'!C9023=\"\",\"\",'Generated list'!C9023)","v":""},{"$f":"IF('Generated list'!D9023=\"\",\"\",'Generated list'!D9023)","v":""}]
[null,{"$f":"IF('Generated list'!B9024=\"\",\"\",'Generated list'!B9024)","v":""},{"$f":"IF('Generated list'!C9024=\"\",\"\",'Generated list'!C9024)","v":""},{"$f":"IF('Generated list'!D9024=\"\",\"\",'Generated list'!D9024)","v":""}]
[null,{"$f":"IF('Generated list'!B9025=\"\",\"\",'Generated list'!B9025)","v":""},{"$f":"IF('Generated list'!C9025=\"\",\"\",'Generated list'!C9025)","v":""},{"$f":"IF('Generated list'!D9025=\"\",\"\",'Generated list'!D9025)","v":""}]
[null,{"$f":"IF('Generated list'!B9026=\"\",\"\",'Generated list'!B9026)","v":""},{"$f":"IF('Generated list'!C9026=\"\",\"\",'Generated list'!C9026)","v":""},{"$f":"IF('Generated list'!D9026=\"\",\"\",'Generated list'!D9026)","v":""}]
[null,{"$f":"IF('Generated list'!B9027=\"\",\"\",'Generated list'!B9027)","v":""},{"$f":"IF('Generated list'!C9027=\"\",\"\",'Generated list'!C9027)","v":""},{"$f":"IF('Generated list'!D9027=\"\",\"\",'Generated list'!D9027)","v":""}]
[null,{"$f":"IF('Generated list'!B9028=\"\",\"\",'Generated list'!B9028)","v":""},{"$f":"IF('Generated list'!C9028=\"\",\"\",'Generated list'!C9028)","v":""},{"$f":"IF('Generated list'!D9028=\"\",\"\",'Generated list'!D9028)","v":""}]
[null,{"$f":"IF('Generated list'!B9029=\"\",\"\",'Generated list'!B9029)","v":""},{"$f":"IF('Generated list'!C9029=\"\",\"\",'Generated list'!C9029)","v":""},{"$f":"IF('Generated list'!D9029=\"\",\"\",'Generated list'!D9029)","v":""}]
[null,{"$f":"IF('Generated list'!B9030=\"\",\"\",'Generated list'!B9030)","v":""},{"$f":"IF('Generated list'!C9030=\"\",\"\",'Generated list'!C9030)","v":""},{"$f":"IF('Generated list'!D9030=\"\",\"\",'Generated list'!D9030)","v":""}]
[null,{"$f":"IF('Generated list'!B9031=\"\",\"\",'Generated list'!B9031)","v":""},{"$f":"IF('Generated list'!C9031=\"\",\"\",'Generated list'!C9031)","v":""},{"$f":"IF('Generated list'!D9031=\"\",\"\",'Generated list'!D9031)","v":""}]
[null,{"$f":"IF('Generated list'!B9032=\"\",\"\",'Generated list'!B9032)","v":""},{"$f":"IF('Generated list'!C9032=\"\",\"\",'Generated list'!C9032)","v":""},{"$f":"IF('Generated list'!D9032=\"\",\"\",'Generated list'!D9032)","v":""}]
[null,{"$f":"IF('Generated list'!B9033=\"\",\"\",'Generated list'!B9033)","v":""},{"$f":"IF('Generated list'!C9033=\"\",\"\",'Generated list'!C9033)","v":""},{"$f":"IF('Generated list'!D9033=\"\",\"\",'Generated list'!D9033)","v":""}]
[null,{"$f":"IF('Generated list'!B9034=\"\",\"\",'Generated list'!B9034)","v":""},{"$f":"IF('Generated list'!C9034=\"\",\"\",'Generated list'!C9034)","v":""},{"$f":"IF('Generated list'!D9034=\"\",\"\",'Generated list'!D9034)","v":""}]
[null,{"$f":"IF('Generated list'!B9035=\"\",\"\",'Generated list'!B9035)","v":""},{"$f":"IF('Generated list'!C9035=\"\",\"\",'Generated list'!C9035)","v":""},{"$f":"IF('Generated list'!D9035=\"\",\"\",'Generated list'!D9035)","v":""}]
[null,{"$f":"IF('Generated list'!B9036=\"\",\"\",'Generated list'!B9036)","v":""},{"$f":"IF('Generated list'!C9036=\"\",\"\",'Generated list'!C9036)","v":""},{"$f":"IF('Generated list'!D9036=\"\",\"\",'Generated list'!D9036)","v":""}]
[null,{"$f":"IF('Generated list'!B9037=\"\",\"\",'Generated list'!B9037)","v":""},{"$f":"IF('Generated list'!C9037=\"\",\"\",'Generated list'!C9037)","v":""},{"$f":"IF('Generated list'!D9037=\"\",\"\",'Generated list'!D9037)","v":""}]
[null,{"$f":"IF('Generated list'!B9038=\"\",\"\",'Generated list'!B9038)","v":""},{"$f":"IF('Generated list'!C9038=\"\",\"\",'Generated list'!C9038)","v":""},{"$f":"IF('Generated list'!D9038=\"\",\"\",'Generated list'!D9038)","v":""}]
[null,{"$f":"IF('Generated list'!B9039=\"\",\"\",'Generated list'!B9039)","v":""},{"$f":"IF('Generated list'!C9039=\"\",\"\",'Generated list'!C9039)","v":""},{"$f":"IF('Generated list'!D9039=\"\",\"\",'Generated list'!D9039)","v":""}]
[null,{"$f":"IF('Generated list'!B9040=\"\",\"\",'Generated list'!B9040)","v":""},{"$f":"IF('Generated list'!C9040=\"\",\"\",'Generated list'!C9040)","v":""},{"$f":"IF('Generated list'!D9040=\"\",\"\",'Generated list'!D9040)","v":""}]
[null,{"$f":"IF('Generated list'!B9041=\"\",\"\",'Generated list'!B9041)","v":""},{"$f":"IF('Generated list'!C9041=\"\",\"\",'Generated list'!C9041)","v":""},{"$f":"IF('Generated list'!D9041=\"\",\"\",'Generated list'!D9041)","v":""}]
[null,{"$f":"IF('Generated list'!B9042=\"\",\"\",'Generated list'!B9042)","v":""},{"$f":"IF('Generated list'!C9042=\"\",\"\",'Generated list'!C9042)","v":""},{"$f":"IF('Generated list'!D9042=\"\",\"\",'Generated list'!D9042)","v":""}]
[null,{"$f":"IF('Generated list'!B9043=\"\",\"\",'Generated list'!B9043)","v":""},{"$f":"IF('Generated list'!C9043=\"\",\"\",'Generated list'!C9043)","v":""},{"$f":"IF('Generated list'!D9043=\"\",\"\",'Generated list'!D9043)","v":""}]
[null,{"$f":"IF('Generated list'!B9044=\"\",\"\",'Generated list'!B9044)","v":""},{"$f":"IF('Generated list'!C9044=\"\",\"\",'Generated list'!C9044)","v":""},{"$f":"IF('Generated list'!D9044=\"\",\"\",'Generated list'!D9044)","v":""}]
[null,{"$f":"IF('Generated list'!B9045=\"\",\"\",'Generated list'!B9045)","v":""},{"$f":"IF('Generated list'!C9045=\"\",\"\",'Generated list'!C9045)","v":""},{"$f":"IF('Generated list'!D9045=\"\",\"\",'Generated list'!D9045)","v":""}]
[null,{"$f":"IF('Generated list'!B9046=\"\",\"\",'Generated list'!B9046)","v":""},{"$f":"IF('Generated list'!C9046=\"\",\"\",'Generated list'!C9046)","v":""},{"$f":"IF('Generated list'!D9046=\"\",\"\",'Generated list'!D9046)","v":""}]
[null,{"$f":"IF('Generated list'!B9047=\"\",\"\",'Generated list'!B9047)","v":""},{"$f":"IF('Generated list'!C9047=\"\",\"\",'Generated list'!C9047)","v":""},{"$f":"IF('Generated list'!D9047=\"\",\"\",'Generated list'!D9047)","v":""}]
[null,{"$f":"IF('Generated list'!B9048=\"\",\"\",'Generated list'!B9048)","v":""},{"$f":"IF('Generated list'!C9048=\"\",\"\",'Generated list'!C9048)","v":""},{"$f":"IF('Generated list'!D9048=\"\",\"\",'Generated list'!D9048)","v":""}]
[null,{"$f":"IF('Generated list'!B9049=\"\",\"\",'Generated list'!B9049)","v":""},{"$f":"IF('Generated list'!C9049=\"\",\"\",'Generated list'!C9049)","v":""},{"$f":"IF('Generated list'!D9049=\"\",\"\",'Generated list'!D9049)","v":""}]
[null,{"$f":"IF('Generated list'!B9050=\"\",\"\",'Generated list'!B9050)","v":""},{"$f":"IF('Generated list'!C9050=\"\",\"\",'Generated list'!C9050)","v":""},{"$f":"IF('Generated list'!D9050=\"\",\"\",'Generated list'!D9050)","v":""}]
[null,{"$f":"IF('Generated list'!B9051=\"\",\"\",'Generated list'!B9051)","v":""},{"$f":"IF('Generated list'!C9051=\"\",\"\",'Generated list'!C9051)","v":""},{"$f":"IF('Generated list'!D9051=\"\",\"\",'Generated list'!D9051)","v":""}]
[null,{"$f":"IF('Generated list'!B9052=\"\",\"\",'Generated list'!B9052)","v":""},{"$f":"IF('Generated list'!C9052=\"\",\"\",'Generated list'!C9052)","v":""},{"$f":"IF('Generated list'!D9052=\"\",\"\",'Generated list'!D9052)","v":""}]
[null,{"$f":"IF('Generated list'!B9053=\"\",\"\",'Generated list'!B9053)","v":""},{"$f":"IF('Generated list'!C9053=\"\",\"\",'Generated list'!C9053)","v":""},{"$f":"IF('Generated list'!D9053=\"\",\"\",'Generated list'!D9053)","v":""}]
[null,{"$f":"IF('Generated list'!B9054=\"\",\"\",'Generated list'!B9054)","v":""},{"$f":"IF('Generated list'!C9054=\"\",\"\",'Generated list'!C9054)","v":""},{"$f":"IF('Generated list'!D9054=\"\",\"\",'Generated list'!D9054)","v":""}]
[null,{"$f":"IF('Generated list'!B9055=\"\",\"\",'Generated list'!B9055)","v":""},{"$f":"IF('Generated list'!C9055=\"\",\"\",'Generated list'!C9055)","v":""},{"$f":"IF('Generated list'!D9055=\"\",\"\",'Generated list'!D9055)","v":""}]
[null,{"$f":"IF('Generated list'!B9056=\"\",\"\",'Generated list'!B9056)","v":""},{"$f":"IF('Generated list'!C9056=\"\",\"\",'Generated list'!C9056)","v":""},{"$f":"IF('Generated list'!D9056=\"\",\"\",'Generated list'!D9056)","v":""}]
[null,{"$f":"IF('Generated list'!B9057=\"\",\"\",'Generated list'!B9057)","v":""},{"$f":"IF('Generated list'!C9057=\"\",\"\",'Generated list'!C9057)","v":""},{"$f":"IF('Generated list'!D9057=\"\",\"\",'Generated list'!D9057)","v":""}]
[null,{"$f":"IF('Generated list'!B9058=\"\",\"\",'Generated list'!B9058)","v":""},{"$f":"IF('Generated list'!C9058=\"\",\"\",'Generated list'!C9058)","v":""},{"$f":"IF('Generated list'!D9058=\"\",\"\",'Generated list'!D9058)","v":""}]
[null,{"$f":"IF('Generated list'!B9059=\"\",\"\",'Generated list'!B9059)","v":""},{"$f":"IF('Generated list'!C9059=\"\",\"\",'Generated list'!C9059)","v":""},{"$f":"IF('Generated list'!D9059=\"\",\"\",'Generated list'!D9059)","v":""}]
[null,{"$f":"IF('Generated list'!B9060=\"\",\"\",'Generated list'!B9060)","v":""},{"$f":"IF('Generated list'!C9060=\"\",\"\",'Generated list'!C9060)","v":""},{"$f":"IF('Generated list'!D9060=\"\",\"\",'Generated list'!D9060)","v":""}]
[null,{"$f":"IF('Generated list'!B9061=\"\",\"\",'Generated list'!B9061)","v":""},{"$f":"IF('Generated list'!C9061=\"\",\"\",'Generated list'!C9061)","v":""},{"$f":"IF('Generated list'!D9061=\"\",\"\",'Generated list'!D9061)","v":""}]
[null,{"$f":"IF('Generated list'!B9062=\"\",\"\",'Generated list'!B9062)","v":""},{"$f":"IF('Generated list'!C9062=\"\",\"\",'Generated list'!C9062)","v":""},{"$f":"IF('Generated list'!D9062=\"\",\"\",'Generated list'!D9062)","v":""}]
[null,{"$f":"IF('Generated list'!B9063=\"\",\"\",'Generated list'!B9063)","v":""},{"$f":"IF('Generated list'!C9063=\"\",\"\",'Generated list'!C9063)","v":""},{"$f":"IF('Generated list'!D9063=\"\",\"\",'Generated list'!D9063)","v":""}]
[null,{"$f":"IF('Generated list'!B9064=\"\",\"\",'Generated list'!B9064)","v":""},{"$f":"IF('Generated list'!C9064=\"\",\"\",'Generated list'!C9064)","v":""},{"$f":"IF('Generated list'!D9064=\"\",\"\",'Generated list'!D9064)","v":""}]
[null,{"$f":"IF('Generated list'!B9065=\"\",\"\",'Generated list'!B9065)","v":""},{"$f":"IF('Generated list'!C9065=\"\",\"\",'Generated list'!C9065)","v":""},{"$f":"IF('Generated list'!D9065=\"\",\"\",'Generated list'!D9065)","v":""}]
[null,{"$f":"IF('Generated list'!B9066=\"\",\"\",'Generated list'!B9066)","v":""},{"$f":"IF('Generated list'!C9066=\"\",\"\",'Generated list'!C9066)","v":""},{"$f":"IF('Generated list'!D9066=\"\",\"\",'Generated list'!D9066)","v":""}]
[null,{"$f":"IF('Generated list'!B9067=\"\",\"\",'Generated list'!B9067)","v":""},{"$f":"IF('Generated list'!C9067=\"\",\"\",'Generated list'!C9067)","v":""},{"$f":"IF('Generated list'!D9067=\"\",\"\",'Generated list'!D9067)","v":""}]
[null,{"$f":"IF('Generated list'!B9068=\"\",\"\",'Generated list'!B9068)","v":""},{"$f":"IF('Generated list'!C9068=\"\",\"\",'Generated list'!C9068)","v":""},{"$f":"IF('Generated list'!D9068=\"\",\"\",'Generated list'!D9068)","v":""}]
[null,{"$f":"IF('Generated list'!B9069=\"\",\"\",'Generated list'!B9069)","v":""},{"$f":"IF('Generated list'!C9069=\"\",\"\",'Generated list'!C9069)","v":""},{"$f":"IF('Generated list'!D9069=\"\",\"\",'Generated list'!D9069)","v":""}]
[null,{"$f":"IF('Generated list'!B9070=\"\",\"\",'Generated list'!B9070)","v":""},{"$f":"IF('Generated list'!C9070=\"\",\"\",'Generated list'!C9070)","v":""},{"$f":"IF('Generated list'!D9070=\"\",\"\",'Generated list'!D9070)","v":""}]
[null,{"$f":"IF('Generated list'!B9071=\"\",\"\",'Generated list'!B9071)","v":""},{"$f":"IF('Generated list'!C9071=\"\",\"\",'Generated list'!C9071)","v":""},{"$f":"IF('Generated list'!D9071=\"\",\"\",'Generated list'!D9071)","v":""}]
[null,{"$f":"IF('Generated list'!B9072=\"\",\"\",'Generated list'!B9072)","v":""},{"$f":"IF('Generated list'!C9072=\"\",\"\",'Generated list'!C9072)","v":""},{"$f":"IF('Generated list'!D9072=\"\",\"\",'Generated list'!D9072)","v":""}]
[null,{"$f":"IF('Generated list'!B9073=\"\",\"\",'Generated list'!B9073)","v":""},{"$f":"IF('Generated list'!C9073=\"\",\"\",'Generated list'!C9073)","v":""},{"$f":"IF('Generated list'!D9073=\"\",\"\",'Generated list'!D9073)","v":""}]
[null,{"$f":"IF('Generated list'!B9074=\"\",\"\",'Generated list'!B9074)","v":""},{"$f":"IF('Generated list'!C9074=\"\",\"\",'Generated list'!C9074)","v":""},{"$f":"IF('Generated list'!D9074=\"\",\"\",'Generated list'!D9074)","v":""}]
[null,{"$f":"IF('Generated list'!B9075=\"\",\"\",'Generated list'!B9075)","v":""},{"$f":"IF('Generated list'!C9075=\"\",\"\",'Generated list'!C9075)","v":""},{"$f":"IF('Generated list'!D9075=\"\",\"\",'Generated list'!D9075)","v":""}]
[null,{"$f":"IF('Generated list'!B9076=\"\",\"\",'Generated list'!B9076)","v":""},{"$f":"IF('Generated list'!C9076=\"\",\"\",'Generated list'!C9076)","v":""},{"$f":"IF('Generated list'!D9076=\"\",\"\",'Generated list'!D9076)","v":""}]
[null,{"$f":"IF('Generated list'!B9077=\"\",\"\",'Generated list'!B9077)","v":""},{"$f":"IF('Generated list'!C9077=\"\",\"\",'Generated list'!C9077)","v":""},{"$f":"IF('Generated list'!D9077=\"\",\"\",'Generated list'!D9077)","v":""}]
[null,{"$f":"IF('Generated list'!B9078=\"\",\"\",'Generated list'!B9078)","v":""},{"$f":"IF('Generated list'!C9078=\"\",\"\",'Generated list'!C9078)","v":""},{"$f":"IF('Generated list'!D9078=\"\",\"\",'Generated list'!D9078)","v":""}]
[null,{"$f":"IF('Generated list'!B9079=\"\",\"\",'Generated list'!B9079)","v":""},{"$f":"IF('Generated list'!C9079=\"\",\"\",'Generated list'!C9079)","v":""},{"$f":"IF('Generated list'!D9079=\"\",\"\",'Generated list'!D9079)","v":""}]
[null,{"$f":"IF('Generated list'!B9080=\"\",\"\",'Generated list'!B9080)","v":""},{"$f":"IF('Generated list'!C9080=\"\",\"\",'Generated list'!C9080)","v":""},{"$f":"IF('Generated list'!D9080=\"\",\"\",'Generated list'!D9080)","v":""}]
[null,{"$f":"IF('Generated list'!B9081=\"\",\"\",'Generated list'!B9081)","v":""},{"$f":"IF('Generated list'!C9081=\"\",\"\",'Generated list'!C9081)","v":""},{"$f":"IF('Generated list'!D9081=\"\",\"\",'Generated list'!D9081)","v":""}]
[null,{"$f":"IF('Generated list'!B9082=\"\",\"\",'Generated list'!B9082)","v":""},{"$f":"IF('Generated list'!C9082=\"\",\"\",'Generated list'!C9082)","v":""},{"$f":"IF('Generated list'!D9082=\"\",\"\",'Generated list'!D9082)","v":""}]
[null,{"$f":"IF('Generated list'!B9083=\"\",\"\",'Generated list'!B9083)","v":""},{"$f":"IF('Generated list'!C9083=\"\",\"\",'Generated list'!C9083)","v":""},{"$f":"IF('Generated list'!D9083=\"\",\"\",'Generated list'!D9083)","v":""}]
[null,{"$f":"IF('Generated list'!B9084=\"\",\"\",'Generated list'!B9084)","v":""},{"$f":"IF('Generated list'!C9084=\"\",\"\",'Generated list'!C9084)","v":""},{"$f":"IF('Generated list'!D9084=\"\",\"\",'Generated list'!D9084)","v":""}]
[null,{"$f":"IF('Generated list'!B9085=\"\",\"\",'Generated list'!B9085)","v":""},{"$f":"IF('Generated list'!C9085=\"\",\"\",'Generated list'!C9085)","v":""},{"$f":"IF('Generated list'!D9085=\"\",\"\",'Generated list'!D9085)","v":""}]
[null,{"$f":"IF('Generated list'!B9086=\"\",\"\",'Generated list'!B9086)","v":""},{"$f":"IF('Generated list'!C9086=\"\",\"\",'Generated list'!C9086)","v":""},{"$f":"IF('Generated list'!D9086=\"\",\"\",'Generated list'!D9086)","v":""}]
[null,{"$f":"IF('Generated list'!B9087=\"\",\"\",'Generated list'!B9087)","v":""},{"$f":"IF('Generated list'!C9087=\"\",\"\",'Generated list'!C9087)","v":""},{"$f":"IF('Generated list'!D9087=\"\",\"\",'Generated list'!D9087)","v":""}]
[null,{"$f":"IF('Generated list'!B9088=\"\",\"\",'Generated list'!B9088)","v":""},{"$f":"IF('Generated list'!C9088=\"\",\"\",'Generated list'!C9088)","v":""},{"$f":"IF('Generated list'!D9088=\"\",\"\",'Generated list'!D9088)","v":""}]
[null,{"$f":"IF('Generated list'!B9089=\"\",\"\",'Generated list'!B9089)","v":""},{"$f":"IF('Generated list'!C9089=\"\",\"\",'Generated list'!C9089)","v":""},{"$f":"IF('Generated list'!D9089=\"\",\"\",'Generated list'!D9089)","v":""}]
[null,{"$f":"IF('Generated list'!B9090=\"\",\"\",'Generated list'!B9090)","v":""},{"$f":"IF('Generated list'!C9090=\"\",\"\",'Generated list'!C9090)","v":""},{"$f":"IF('Generated list'!D9090=\"\",\"\",'Generated list'!D9090)","v":""}]
[null,{"$f":"IF('Generated list'!B9091=\"\",\"\",'Generated list'!B9091)","v":""},{"$f":"IF('Generated list'!C9091=\"\",\"\",'Generated list'!C9091)","v":""},{"$f":"IF('Generated list'!D9091=\"\",\"\",'Generated list'!D9091)","v":""}]
[null,{"$f":"IF('Generated list'!B9092=\"\",\"\",'Generated list'!B9092)","v":""},{"$f":"IF('Generated list'!C9092=\"\",\"\",'Generated list'!C9092)","v":""},{"$f":"IF('Generated list'!D9092=\"\",\"\",'Generated list'!D9092)","v":""}]
[null,{"$f":"IF('Generated list'!B9093=\"\",\"\",'Generated list'!B9093)","v":""},{"$f":"IF('Generated list'!C9093=\"\",\"\",'Generated list'!C9093)","v":""},{"$f":"IF('Generated list'!D9093=\"\",\"\",'Generated list'!D9093)","v":""}]
[null,{"$f":"IF('Generated list'!B9094=\"\",\"\",'Generated list'!B9094)","v":""},{"$f":"IF('Generated list'!C9094=\"\",\"\",'Generated list'!C9094)","v":""},{"$f":"IF('Generated list'!D9094=\"\",\"\",'Generated list'!D9094)","v":""}]
[null,{"$f":"IF('Generated list'!B9095=\"\",\"\",'Generated list'!B9095)","v":""},{"$f":"IF('Generated list'!C9095=\"\",\"\",'Generated list'!C9095)","v":""},{"$f":"IF('Generated list'!D9095=\"\",\"\",'Generated list'!D9095)","v":""}]
[null,{"$f":"IF('Generated list'!B9096=\"\",\"\",'Generated list'!B9096)","v":""},{"$f":"IF('Generated list'!C9096=\"\",\"\",'Generated list'!C9096)","v":""},{"$f":"IF('Generated list'!D9096=\"\",\"\",'Generated list'!D9096)","v":""}]
[null,{"$f":"IF('Generated list'!B9097=\"\",\"\",'Generated list'!B9097)","v":""},{"$f":"IF('Generated list'!C9097=\"\",\"\",'Generated list'!C9097)","v":""},{"$f":"IF('Generated list'!D9097=\"\",\"\",'Generated list'!D9097)","v":""}]
[null,{"$f":"IF('Generated list'!B9098=\"\",\"\",'Generated list'!B9098)","v":""},{"$f":"IF('Generated list'!C9098=\"\",\"\",'Generated list'!C9098)","v":""},{"$f":"IF('Generated list'!D9098=\"\",\"\",'Generated list'!D9098)","v":""}]
[null,{"$f":"IF('Generated list'!B9099=\"\",\"\",'Generated list'!B9099)","v":""},{"$f":"IF('Generated list'!C9099=\"\",\"\",'Generated list'!C9099)","v":""},{"$f":"IF('Generated list'!D9099=\"\",\"\",'Generated list'!D9099)","v":""}]
[null,{"$f":"IF('Generated list'!B9100=\"\",\"\",'Generated list'!B9100)","v":""},{"$f":"IF('Generated list'!C9100=\"\",\"\",'Generated list'!C9100)","v":""},{"$f":"IF('Generated list'!D9100=\"\",\"\",'Generated list'!D9100)","v":""}]
[null,{"$f":"IF('Generated list'!B9101=\"\",\"\",'Generated list'!B9101)","v":""},{"$f":"IF('Generated list'!C9101=\"\",\"\",'Generated list'!C9101)","v":""},{"$f":"IF('Generated list'!D9101=\"\",\"\",'Generated list'!D9101)","v":""}]
[null,{"$f":"IF('Generated list'!B9102=\"\",\"\",'Generated list'!B9102)","v":""},{"$f":"IF('Generated list'!C9102=\"\",\"\",'Generated list'!C9102)","v":""},{"$f":"IF('Generated list'!D9102=\"\",\"\",'Generated list'!D9102)","v":""}]
[null,{"$f":"IF('Generated list'!B9103=\"\",\"\",'Generated list'!B9103)","v":""},{"$f":"IF('Generated list'!C9103=\"\",\"\",'Generated list'!C9103)","v":""},{"$f":"IF('Generated list'!D9103=\"\",\"\",'Generated list'!D9103)","v":""}]
[null,{"$f":"IF('Generated list'!B9104=\"\",\"\",'Generated list'!B9104)","v":""},{"$f":"IF('Generated list'!C9104=\"\",\"\",'Generated list'!C9104)","v":""},{"$f":"IF('Generated list'!D9104=\"\",\"\",'Generated list'!D9104)","v":""}]
[null,{"$f":"IF('Generated list'!B9105=\"\",\"\",'Generated list'!B9105)","v":""},{"$f":"IF('Generated list'!C9105=\"\",\"\",'Generated list'!C9105)","v":""},{"$f":"IF('Generated list'!D9105=\"\",\"\",'Generated list'!D9105)","v":""}]
[null,{"$f":"IF('Generated list'!B9106=\"\",\"\",'Generated list'!B9106)","v":""},{"$f":"IF('Generated list'!C9106=\"\",\"\",'Generated list'!C9106)","v":""},{"$f":"IF('Generated list'!D9106=\"\",\"\",'Generated list'!D9106)","v":""}]
[null,{"$f":"IF('Generated list'!B9107=\"\",\"\",'Generated list'!B9107)","v":""},{"$f":"IF('Generated list'!C9107=\"\",\"\",'Generated list'!C9107)","v":""},{"$f":"IF('Generated list'!D9107=\"\",\"\",'Generated list'!D9107)","v":""}]
[null,{"$f":"IF('Generated list'!B9108=\"\",\"\",'Generated list'!B9108)","v":""},{"$f":"IF('Generated list'!C9108=\"\",\"\",'Generated list'!C9108)","v":""},{"$f":"IF('Generated list'!D9108=\"\",\"\",'Generated list'!D9108)","v":""}]
[null,{"$f":"IF('Generated list'!B9109=\"\",\"\",'Generated list'!B9109)","v":""},{"$f":"IF('Generated list'!C9109=\"\",\"\",'Generated list'!C9109)","v":""},{"$f":"IF('Generated list'!D9109=\"\",\"\",'Generated list'!D9109)","v":""}]
[null,{"$f":"IF('Generated list'!B9110=\"\",\"\",'Generated list'!B9110)","v":""},{"$f":"IF('Generated list'!C9110=\"\",\"\",'Generated list'!C9110)","v":""},{"$f":"IF('Generated list'!D9110=\"\",\"\",'Generated list'!D9110)","v":""}]
[null,{"$f":"IF('Generated list'!B9111=\"\",\"\",'Generated list'!B9111)","v":""},{"$f":"IF('Generated list'!C9111=\"\",\"\",'Generated list'!C9111)","v":""},{"$f":"IF('Generated list'!D9111=\"\",\"\",'Generated list'!D9111)","v":""}]
[null,{"$f":"IF('Generated list'!B9112=\"\",\"\",'Generated list'!B9112)","v":""},{"$f":"IF('Generated list'!C9112=\"\",\"\",'Generated list'!C9112)","v":""},{"$f":"IF('Generated list'!D9112=\"\",\"\",'Generated list'!D9112)","v":""}]
[null,{"$f":"IF('Generated list'!B9113=\"\",\"\",'Generated list'!B9113)","v":""},{"$f":"IF('Generated list'!C9113=\"\",\"\",'Generated list'!C9113)","v":""},{"$f":"IF('Generated list'!D9113=\"\",\"\",'Generated list'!D9113)","v":""}]
[null,{"$f":"IF('Generated list'!B9114=\"\",\"\",'Generated list'!B9114)","v":""},{"$f":"IF('Generated list'!C9114=\"\",\"\",'Generated list'!C9114)","v":""},{"$f":"IF('Generated list'!D9114=\"\",\"\",'Generated list'!D9114)","v":""}]
[null,{"$f":"IF('Generated list'!B9115=\"\",\"\",'Generated list'!B9115)","v":""},{"$f":"IF('Generated list'!C9115=\"\",\"\",'Generated list'!C9115)","v":""},{"$f":"IF('Generated list'!D9115=\"\",\"\",'Generated list'!D9115)","v":""}]
[null,{"$f":"IF('Generated list'!B9116=\"\",\"\",'Generated list'!B9116)","v":""},{"$f":"IF('Generated list'!C9116=\"\",\"\",'Generated list'!C9116)","v":""},{"$f":"IF('Generated list'!D9116=\"\",\"\",'Generated list'!D9116)","v":""}]
[null,{"$f":"IF('Generated list'!B9117=\"\",\"\",'Generated list'!B9117)","v":""},{"$f":"IF('Generated list'!C9117=\"\",\"\",'Generated list'!C9117)","v":""},{"$f":"IF('Generated list'!D9117=\"\",\"\",'Generated list'!D9117)","v":""}]
[null,{"$f":"IF('Generated list'!B9118=\"\",\"\",'Generated list'!B9118)","v":""},{"$f":"IF('Generated list'!C9118=\"\",\"\",'Generated list'!C9118)","v":""},{"$f":"IF('Generated list'!D9118=\"\",\"\",'Generated list'!D9118)","v":""}]
[null,{"$f":"IF('Generated list'!B9119=\"\",\"\",'Generated list'!B9119)","v":""},{"$f":"IF('Generated list'!C9119=\"\",\"\",'Generated list'!C9119)","v":""},{"$f":"IF('Generated list'!D9119=\"\",\"\",'Generated list'!D9119)","v":""}]
[null,{"$f":"IF('Generated list'!B9120=\"\",\"\",'Generated list'!B9120)","v":""},{"$f":"IF('Generated list'!C9120=\"\",\"\",'Generated list'!C9120)","v":""},{"$f":"IF('Generated list'!D9120=\"\",\"\",'Generated list'!D9120)","v":""}]
[null,{"$f":"IF('Generated list'!B9121=\"\",\"\",'Generated list'!B9121)","v":""},{"$f":"IF('Generated list'!C9121=\"\",\"\",'Generated list'!C9121)","v":""},{"$f":"IF('Generated list'!D9121=\"\",\"\",'Generated list'!D9121)","v":""}]
[null,{"$f":"IF('Generated list'!B9122=\"\",\"\",'Generated list'!B9122)","v":""},{"$f":"IF('Generated list'!C9122=\"\",\"\",'Generated list'!C9122)","v":""},{"$f":"IF('Generated list'!D9122=\"\",\"\",'Generated list'!D9122)","v":""}]
[null,{"$f":"IF('Generated list'!B9123=\"\",\"\",'Generated list'!B9123)","v":""},{"$f":"IF('Generated list'!C9123=\"\",\"\",'Generated list'!C9123)","v":""},{"$f":"IF('Generated list'!D9123=\"\",\"\",'Generated list'!D9123)","v":""}]
[null,{"$f":"IF('Generated list'!B9124=\"\",\"\",'Generated list'!B9124)","v":""},{"$f":"IF('Generated list'!C9124=\"\",\"\",'Generated list'!C9124)","v":""},{"$f":"IF('Generated list'!D9124=\"\",\"\",'Generated list'!D9124)","v":""}]
[null,{"$f":"IF('Generated list'!B9125=\"\",\"\",'Generated list'!B9125)","v":""},{"$f":"IF('Generated list'!C9125=\"\",\"\",'Generated list'!C9125)","v":""},{"$f":"IF('Generated list'!D9125=\"\",\"\",'Generated list'!D9125)","v":""}]
[null,{"$f":"IF('Generated list'!B9126=\"\",\"\",'Generated list'!B9126)","v":""},{"$f":"IF('Generated list'!C9126=\"\",\"\",'Generated list'!C9126)","v":""},{"$f":"IF('Generated list'!D9126=\"\",\"\",'Generated list'!D9126)","v":""}]
[null,{"$f":"IF('Generated list'!B9127=\"\",\"\",'Generated list'!B9127)","v":""},{"$f":"IF('Generated list'!C9127=\"\",\"\",'Generated list'!C9127)","v":""},{"$f":"IF('Generated list'!D9127=\"\",\"\",'Generated list'!D9127)","v":""}]
[null,{"$f":"IF('Generated list'!B9128=\"\",\"\",'Generated list'!B9128)","v":""},{"$f":"IF('Generated list'!C9128=\"\",\"\",'Generated list'!C9128)","v":""},{"$f":"IF('Generated list'!D9128=\"\",\"\",'Generated list'!D9128)","v":""}]
[null,{"$f":"IF('Generated list'!B9129=\"\",\"\",'Generated list'!B9129)","v":""},{"$f":"IF('Generated list'!C9129=\"\",\"\",'Generated list'!C9129)","v":""},{"$f":"IF('Generated list'!D9129=\"\",\"\",'Generated list'!D9129)","v":""}]
[null,{"$f":"IF('Generated list'!B9130=\"\",\"\",'Generated list'!B9130)","v":""},{"$f":"IF('Generated list'!C9130=\"\",\"\",'Generated list'!C9130)","v":""},{"$f":"IF('Generated list'!D9130=\"\",\"\",'Generated list'!D9130)","v":""}]
[null,{"$f":"IF('Generated list'!B9131=\"\",\"\",'Generated list'!B9131)","v":""},{"$f":"IF('Generated list'!C9131=\"\",\"\",'Generated list'!C9131)","v":""},{"$f":"IF('Generated list'!D9131=\"\",\"\",'Generated list'!D9131)","v":""}]
[null,{"$f":"IF('Generated list'!B9132=\"\",\"\",'Generated list'!B9132)","v":""},{"$f":"IF('Generated list'!C9132=\"\",\"\",'Generated list'!C9132)","v":""},{"$f":"IF('Generated list'!D9132=\"\",\"\",'Generated list'!D9132)","v":""}]
[null,{"$f":"IF('Generated list'!B9133=\"\",\"\",'Generated list'!B9133)","v":""},{"$f":"IF('Generated list'!C9133=\"\",\"\",'Generated list'!C9133)","v":""},{"$f":"IF('Generated list'!D9133=\"\",\"\",'Generated list'!D9133)","v":""}]
[null,{"$f":"IF('Generated list'!B9134=\"\",\"\",'Generated list'!B9134)","v":""},{"$f":"IF('Generated list'!C9134=\"\",\"\",'Generated list'!C9134)","v":""},{"$f":"IF('Generated list'!D9134=\"\",\"\",'Generated list'!D9134)","v":""}]
[null,{"$f":"IF('Generated list'!B9135=\"\",\"\",'Generated list'!B9135)","v":""},{"$f":"IF('Generated list'!C9135=\"\",\"\",'Generated list'!C9135)","v":""},{"$f":"IF('Generated list'!D9135=\"\",\"\",'Generated list'!D9135)","v":""}]
[null,{"$f":"IF('Generated list'!B9136=\"\",\"\",'Generated list'!B9136)","v":""},{"$f":"IF('Generated list'!C9136=\"\",\"\",'Generated list'!C9136)","v":""},{"$f":"IF('Generated list'!D9136=\"\",\"\",'Generated list'!D9136)","v":""}]
[null,{"$f":"IF('Generated list'!B9137=\"\",\"\",'Generated list'!B9137)","v":""},{"$f":"IF('Generated list'!C9137=\"\",\"\",'Generated list'!C9137)","v":""},{"$f":"IF('Generated list'!D9137=\"\",\"\",'Generated list'!D9137)","v":""}]
[null,{"$f":"IF('Generated list'!B9138=\"\",\"\",'Generated list'!B9138)","v":""},{"$f":"IF('Generated list'!C9138=\"\",\"\",'Generated list'!C9138)","v":""},{"$f":"IF('Generated list'!D9138=\"\",\"\",'Generated list'!D9138)","v":""}]
[null,{"$f":"IF('Generated list'!B9139=\"\",\"\",'Generated list'!B9139)","v":""},{"$f":"IF('Generated list'!C9139=\"\",\"\",'Generated list'!C9139)","v":""},{"$f":"IF('Generated list'!D9139=\"\",\"\",'Generated list'!D9139)","v":""}]
[null,{"$f":"IF('Generated list'!B9140=\"\",\"\",'Generated list'!B9140)","v":""},{"$f":"IF('Generated list'!C9140=\"\",\"\",'Generated list'!C9140)","v":""},{"$f":"IF('Generated list'!D9140=\"\",\"\",'Generated list'!D9140)","v":""}]
[null,{"$f":"IF('Generated list'!B9141=\"\",\"\",'Generated list'!B9141)","v":""},{"$f":"IF('Generated list'!C9141=\"\",\"\",'Generated list'!C9141)","v":""},{"$f":"IF('Generated list'!D9141=\"\",\"\",'Generated list'!D9141)","v":""}]
[null,{"$f":"IF('Generated list'!B9142=\"\",\"\",'Generated list'!B9142)","v":""},{"$f":"IF('Generated list'!C9142=\"\",\"\",'Generated list'!C9142)","v":""},{"$f":"IF('Generated list'!D9142=\"\",\"\",'Generated list'!D9142)","v":""}]
[null,{"$f":"IF('Generated list'!B9143=\"\",\"\",'Generated list'!B9143)","v":""},{"$f":"IF('Generated list'!C9143=\"\",\"\",'Generated list'!C9143)","v":""},{"$f":"IF('Generated list'!D9143=\"\",\"\",'Generated list'!D9143)","v":""}]
[null,{"$f":"IF('Generated list'!B9144=\"\",\"\",'Generated list'!B9144)","v":""},{"$f":"IF('Generated list'!C9144=\"\",\"\",'Generated list'!C9144)","v":""},{"$f":"IF('Generated list'!D9144=\"\",\"\",'Generated list'!D9144)","v":""}]
[null,{"$f":"IF('Generated list'!B9145=\"\",\"\",'Generated list'!B9145)","v":""},{"$f":"IF('Generated list'!C9145=\"\",\"\",'Generated list'!C9145)","v":""},{"$f":"IF('Generated list'!D9145=\"\",\"\",'Generated list'!D9145)","v":""}]
[null,{"$f":"IF('Generated list'!B9146=\"\",\"\",'Generated list'!B9146)","v":""},{"$f":"IF('Generated list'!C9146=\"\",\"\",'Generated list'!C9146)","v":""},{"$f":"IF('Generated list'!D9146=\"\",\"\",'Generated list'!D9146)","v":""}]
[null,{"$f":"IF('Generated list'!B9147=\"\",\"\",'Generated list'!B9147)","v":""},{"$f":"IF('Generated list'!C9147=\"\",\"\",'Generated list'!C9147)","v":""},{"$f":"IF('Generated list'!D9147=\"\",\"\",'Generated list'!D9147)","v":""}]
[null,{"$f":"IF('Generated list'!B9148=\"\",\"\",'Generated list'!B9148)","v":""},{"$f":"IF('Generated list'!C9148=\"\",\"\",'Generated list'!C9148)","v":""},{"$f":"IF('Generated list'!D9148=\"\",\"\",'Generated list'!D9148)","v":""}]
[null,{"$f":"IF('Generated list'!B9149=\"\",\"\",'Generated list'!B9149)","v":""},{"$f":"IF('Generated list'!C9149=\"\",\"\",'Generated list'!C9149)","v":""},{"$f":"IF('Generated list'!D9149=\"\",\"\",'Generated list'!D9149)","v":""}]
[null,{"$f":"IF('Generated list'!B9150=\"\",\"\",'Generated list'!B9150)","v":""},{"$f":"IF('Generated list'!C9150=\"\",\"\",'Generated list'!C9150)","v":""},{"$f":"IF('Generated list'!D9150=\"\",\"\",'Generated list'!D9150)","v":""}]
[null,{"$f":"IF('Generated list'!B9151=\"\",\"\",'Generated list'!B9151)","v":""},{"$f":"IF('Generated list'!C9151=\"\",\"\",'Generated list'!C9151)","v":""},{"$f":"IF('Generated list'!D9151=\"\",\"\",'Generated list'!D9151)","v":""}]
[null,{"$f":"IF('Generated list'!B9152=\"\",\"\",'Generated list'!B9152)","v":""},{"$f":"IF('Generated list'!C9152=\"\",\"\",'Generated list'!C9152)","v":""},{"$f":"IF('Generated list'!D9152=\"\",\"\",'Generated list'!D9152)","v":""}]
[null,{"$f":"IF('Generated list'!B9153=\"\",\"\",'Generated list'!B9153)","v":""},{"$f":"IF('Generated list'!C9153=\"\",\"\",'Generated list'!C9153)","v":""},{"$f":"IF('Generated list'!D9153=\"\",\"\",'Generated list'!D9153)","v":""}]
[null,{"$f":"IF('Generated list'!B9154=\"\",\"\",'Generated list'!B9154)","v":""},{"$f":"IF('Generated list'!C9154=\"\",\"\",'Generated list'!C9154)","v":""},{"$f":"IF('Generated list'!D9154=\"\",\"\",'Generated list'!D9154)","v":""}]
[null,{"$f":"IF('Generated list'!B9155=\"\",\"\",'Generated list'!B9155)","v":""},{"$f":"IF('Generated list'!C9155=\"\",\"\",'Generated list'!C9155)","v":""},{"$f":"IF('Generated list'!D9155=\"\",\"\",'Generated list'!D9155)","v":""}]
[null,{"$f":"IF('Generated list'!B9156=\"\",\"\",'Generated list'!B9156)","v":""},{"$f":"IF('Generated list'!C9156=\"\",\"\",'Generated list'!C9156)","v":""},{"$f":"IF('Generated list'!D9156=\"\",\"\",'Generated list'!D9156)","v":""}]
[null,{"$f":"IF('Generated list'!B9157=\"\",\"\",'Generated list'!B9157)","v":""},{"$f":"IF('Generated list'!C9157=\"\",\"\",'Generated list'!C9157)","v":""},{"$f":"IF('Generated list'!D9157=\"\",\"\",'Generated list'!D9157)","v":""}]
[null,{"$f":"IF('Generated list'!B9158=\"\",\"\",'Generated list'!B9158)","v":""},{"$f":"IF('Generated list'!C9158=\"\",\"\",'Generated list'!C9158)","v":""},{"$f":"IF('Generated list'!D9158=\"\",\"\",'Generated list'!D9158)","v":""}]
[null,{"$f":"IF('Generated list'!B9159=\"\",\"\",'Generated list'!B9159)","v":""},{"$f":"IF('Generated list'!C9159=\"\",\"\",'Generated list'!C9159)","v":""},{"$f":"IF('Generated list'!D9159=\"\",\"\",'Generated list'!D9159)","v":""}]
[null,{"$f":"IF('Generated list'!B9160=\"\",\"\",'Generated list'!B9160)","v":""},{"$f":"IF('Generated list'!C9160=\"\",\"\",'Generated list'!C9160)","v":""},{"$f":"IF('Generated list'!D9160=\"\",\"\",'Generated list'!D9160)","v":""}]
[null,{"$f":"IF('Generated list'!B9161=\"\",\"\",'Generated list'!B9161)","v":""},{"$f":"IF('Generated list'!C9161=\"\",\"\",'Generated list'!C9161)","v":""},{"$f":"IF('Generated list'!D9161=\"\",\"\",'Generated list'!D9161)","v":""}]
[null,{"$f":"IF('Generated list'!B9162=\"\",\"\",'Generated list'!B9162)","v":""},{"$f":"IF('Generated list'!C9162=\"\",\"\",'Generated list'!C9162)","v":""},{"$f":"IF('Generated list'!D9162=\"\",\"\",'Generated list'!D9162)","v":""}]
[null,{"$f":"IF('Generated list'!B9163=\"\",\"\",'Generated list'!B9163)","v":""},{"$f":"IF('Generated list'!C9163=\"\",\"\",'Generated list'!C9163)","v":""},{"$f":"IF('Generated list'!D9163=\"\",\"\",'Generated list'!D9163)","v":""}]
[null,{"$f":"IF('Generated list'!B9164=\"\",\"\",'Generated list'!B9164)","v":""},{"$f":"IF('Generated list'!C9164=\"\",\"\",'Generated list'!C9164)","v":""},{"$f":"IF('Generated list'!D9164=\"\",\"\",'Generated list'!D9164)","v":""}]
[null,{"$f":"IF('Generated list'!B9165=\"\",\"\",'Generated list'!B9165)","v":""},{"$f":"IF('Generated list'!C9165=\"\",\"\",'Generated list'!C9165)","v":""},{"$f":"IF('Generated list'!D9165=\"\",\"\",'Generated list'!D9165)","v":""}]
[null,{"$f":"IF('Generated list'!B9166=\"\",\"\",'Generated list'!B9166)","v":""},{"$f":"IF('Generated list'!C9166=\"\",\"\",'Generated list'!C9166)","v":""},{"$f":"IF('Generated list'!D9166=\"\",\"\",'Generated list'!D9166)","v":""}]
[null,{"$f":"IF('Generated list'!B9167=\"\",\"\",'Generated list'!B9167)","v":""},{"$f":"IF('Generated list'!C9167=\"\",\"\",'Generated list'!C9167)","v":""},{"$f":"IF('Generated list'!D9167=\"\",\"\",'Generated list'!D9167)","v":""}]
[null,{"$f":"IF('Generated list'!B9168=\"\",\"\",'Generated list'!B9168)","v":""},{"$f":"IF('Generated list'!C9168=\"\",\"\",'Generated list'!C9168)","v":""},{"$f":"IF('Generated list'!D9168=\"\",\"\",'Generated list'!D9168)","v":""}]
[null,{"$f":"IF('Generated list'!B9169=\"\",\"\",'Generated list'!B9169)","v":""},{"$f":"IF('Generated list'!C9169=\"\",\"\",'Generated list'!C9169)","v":""},{"$f":"IF('Generated list'!D9169=\"\",\"\",'Generated list'!D9169)","v":""}]
[null,{"$f":"IF('Generated list'!B9170=\"\",\"\",'Generated list'!B9170)","v":""},{"$f":"IF('Generated list'!C9170=\"\",\"\",'Generated list'!C9170)","v":""},{"$f":"IF('Generated list'!D9170=\"\",\"\",'Generated list'!D9170)","v":""}]
[null,{"$f":"IF('Generated list'!B9171=\"\",\"\",'Generated list'!B9171)","v":""},{"$f":"IF('Generated list'!C9171=\"\",\"\",'Generated list'!C9171)","v":""},{"$f":"IF('Generated list'!D9171=\"\",\"\",'Generated list'!D9171)","v":""}]
[null,{"$f":"IF('Generated list'!B9172=\"\",\"\",'Generated list'!B9172)","v":""},{"$f":"IF('Generated list'!C9172=\"\",\"\",'Generated list'!C9172)","v":""},{"$f":"IF('Generated list'!D9172=\"\",\"\",'Generated list'!D9172)","v":""}]
[null,{"$f":"IF('Generated list'!B9173=\"\",\"\",'Generated list'!B9173)","v":""},{"$f":"IF('Generated list'!C9173=\"\",\"\",'Generated list'!C9173)","v":""},{"$f":"IF('Generated list'!D9173=\"\",\"\",'Generated list'!D9173)","v":""}]
[null,{"$f":"IF('Generated list'!B9174=\"\",\"\",'Generated list'!B9174)","v":""},{"$f":"IF('Generated list'!C9174=\"\",\"\",'Generated list'!C9174)","v":""},{"$f":"IF('Generated list'!D9174=\"\",\"\",'Generated list'!D9174)","v":""}]
[null,{"$f":"IF('Generated list'!B9175=\"\",\"\",'Generated list'!B9175)","v":""},{"$f":"IF('Generated list'!C9175=\"\",\"\",'Generated list'!C9175)","v":""},{"$f":"IF('Generated list'!D9175=\"\",\"\",'Generated list'!D9175)","v":""}]
[null,{"$f":"IF('Generated list'!B9176=\"\",\"\",'Generated list'!B9176)","v":""},{"$f":"IF('Generated list'!C9176=\"\",\"\",'Generated list'!C9176)","v":""},{"$f":"IF('Generated list'!D9176=\"\",\"\",'Generated list'!D9176)","v":""}]
[null,{"$f":"IF('Generated list'!B9177=\"\",\"\",'Generated list'!B9177)","v":""},{"$f":"IF('Generated list'!C9177=\"\",\"\",'Generated list'!C9177)","v":""},{"$f":"IF('Generated list'!D9177=\"\",\"\",'Generated list'!D9177)","v":""}]
[null,{"$f":"IF('Generated list'!B9178=\"\",\"\",'Generated list'!B9178)","v":""},{"$f":"IF('Generated list'!C9178=\"\",\"\",'Generated list'!C9178)","v":""},{"$f":"IF('Generated list'!D9178=\"\",\"\",'Generated list'!D9178)","v":""}]
[null,{"$f":"IF('Generated list'!B9179=\"\",\"\",'Generated list'!B9179)","v":""},{"$f":"IF('Generated list'!C9179=\"\",\"\",'Generated list'!C9179)","v":""},{"$f":"IF('Generated list'!D9179=\"\",\"\",'Generated list'!D9179)","v":""}]
[null,{"$f":"IF('Generated list'!B9180=\"\",\"\",'Generated list'!B9180)","v":""},{"$f":"IF('Generated list'!C9180=\"\",\"\",'Generated list'!C9180)","v":""},{"$f":"IF('Generated list'!D9180=\"\",\"\",'Generated list'!D9180)","v":""}]
[null,{"$f":"IF('Generated list'!B9181=\"\",\"\",'Generated list'!B9181)","v":""},{"$f":"IF('Generated list'!C9181=\"\",\"\",'Generated list'!C9181)","v":""},{"$f":"IF('Generated list'!D9181=\"\",\"\",'Generated list'!D9181)","v":""}]
[null,{"$f":"IF('Generated list'!B9182=\"\",\"\",'Generated list'!B9182)","v":""},{"$f":"IF('Generated list'!C9182=\"\",\"\",'Generated list'!C9182)","v":""},{"$f":"IF('Generated list'!D9182=\"\",\"\",'Generated list'!D9182)","v":""}]
[null,{"$f":"IF('Generated list'!B9183=\"\",\"\",'Generated list'!B9183)","v":""},{"$f":"IF('Generated list'!C9183=\"\",\"\",'Generated list'!C9183)","v":""},{"$f":"IF('Generated list'!D9183=\"\",\"\",'Generated list'!D9183)","v":""}]
[null,{"$f":"IF('Generated list'!B9184=\"\",\"\",'Generated list'!B9184)","v":""},{"$f":"IF('Generated list'!C9184=\"\",\"\",'Generated list'!C9184)","v":""},{"$f":"IF('Generated list'!D9184=\"\",\"\",'Generated list'!D9184)","v":""}]
[null,{"$f":"IF('Generated list'!B9185=\"\",\"\",'Generated list'!B9185)","v":""},{"$f":"IF('Generated list'!C9185=\"\",\"\",'Generated list'!C9185)","v":""},{"$f":"IF('Generated list'!D9185=\"\",\"\",'Generated list'!D9185)","v":""}]
[null,{"$f":"IF('Generated list'!B9186=\"\",\"\",'Generated list'!B9186)","v":""},{"$f":"IF('Generated list'!C9186=\"\",\"\",'Generated list'!C9186)","v":""},{"$f":"IF('Generated list'!D9186=\"\",\"\",'Generated list'!D9186)","v":""}]
[null,{"$f":"IF('Generated list'!B9187=\"\",\"\",'Generated list'!B9187)","v":""},{"$f":"IF('Generated list'!C9187=\"\",\"\",'Generated list'!C9187)","v":""},{"$f":"IF('Generated list'!D9187=\"\",\"\",'Generated list'!D9187)","v":""}]
[null,{"$f":"IF('Generated list'!B9188=\"\",\"\",'Generated list'!B9188)","v":""},{"$f":"IF('Generated list'!C9188=\"\",\"\",'Generated list'!C9188)","v":""},{"$f":"IF('Generated list'!D9188=\"\",\"\",'Generated list'!D9188)","v":""}]
[null,{"$f":"IF('Generated list'!B9189=\"\",\"\",'Generated list'!B9189)","v":""},{"$f":"IF('Generated list'!C9189=\"\",\"\",'Generated list'!C9189)","v":""},{"$f":"IF('Generated list'!D9189=\"\",\"\",'Generated list'!D9189)","v":""}]
[null,{"$f":"IF('Generated list'!B9190=\"\",\"\",'Generated list'!B9190)","v":""},{"$f":"IF('Generated list'!C9190=\"\",\"\",'Generated list'!C9190)","v":""},{"$f":"IF('Generated list'!D9190=\"\",\"\",'Generated list'!D9190)","v":""}]
[null,{"$f":"IF('Generated list'!B9191=\"\",\"\",'Generated list'!B9191)","v":""},{"$f":"IF('Generated list'!C9191=\"\",\"\",'Generated list'!C9191)","v":""},{"$f":"IF('Generated list'!D9191=\"\",\"\",'Generated list'!D9191)","v":""}]
[null,{"$f":"IF('Generated list'!B9192=\"\",\"\",'Generated list'!B9192)","v":""},{"$f":"IF('Generated list'!C9192=\"\",\"\",'Generated list'!C9192)","v":""},{"$f":"IF('Generated list'!D9192=\"\",\"\",'Generated list'!D9192)","v":""}]
[null,{"$f":"IF('Generated list'!B9193=\"\",\"\",'Generated list'!B9193)","v":""},{"$f":"IF('Generated list'!C9193=\"\",\"\",'Generated list'!C9193)","v":""},{"$f":"IF('Generated list'!D9193=\"\",\"\",'Generated list'!D9193)","v":""}]
[null,{"$f":"IF('Generated list'!B9194=\"\",\"\",'Generated list'!B9194)","v":""},{"$f":"IF('Generated list'!C9194=\"\",\"\",'Generated list'!C9194)","v":""},{"$f":"IF('Generated list'!D9194=\"\",\"\",'Generated list'!D9194)","v":""}]
[null,{"$f":"IF('Generated list'!B9195=\"\",\"\",'Generated list'!B9195)","v":""},{"$f":"IF('Generated list'!C9195=\"\",\"\",'Generated list'!C9195)","v":""},{"$f":"IF('Generated list'!D9195=\"\",\"\",'Generated list'!D9195)","v":""}]
[null,{"$f":"IF('Generated list'!B9196=\"\",\"\",'Generated list'!B9196)","v":""},{"$f":"IF('Generated list'!C9196=\"\",\"\",'Generated list'!C9196)","v":""},{"$f":"IF('Generated list'!D9196=\"\",\"\",'Generated list'!D9196)","v":""}]
[null,{"$f":"IF('Generated list'!B9197=\"\",\"\",'Generated list'!B9197)","v":""},{"$f":"IF('Generated list'!C9197=\"\",\"\",'Generated list'!C9197)","v":""},{"$f":"IF('Generated list'!D9197=\"\",\"\",'Generated list'!D9197)","v":""}]
[null,{"$f":"IF('Generated list'!B9198=\"\",\"\",'Generated list'!B9198)","v":""},{"$f":"IF('Generated list'!C9198=\"\",\"\",'Generated list'!C9198)","v":""},{"$f":"IF('Generated list'!D9198=\"\",\"\",'Generated list'!D9198)","v":""}]
[null,{"$f":"IF('Generated list'!B9199=\"\",\"\",'Generated list'!B9199)","v":""},{"$f":"IF('Generated list'!C9199=\"\",\"\",'Generated list'!C9199)","v":""},{"$f":"IF('Generated list'!D9199=\"\",\"\",'Generated list'!D9199)","v":""}]
[null,{"$f":"IF('Generated list'!B9200=\"\",\"\",'Generated list'!B9200)","v":""},{"$f":"IF('Generated list'!C9200=\"\",\"\",'Generated list'!C9200)","v":""},{"$f":"IF('Generated list'!D9200=\"\",\"\",'Generated list'!D9200)","v":""}]
[null,{"$f":"IF('Generated list'!B9201=\"\",\"\",'Generated list'!B9201)","v":""},{"$f":"IF('Generated list'!C9201=\"\",\"\",'Generated list'!C9201)","v":""},{"$f":"IF('Generated list'!D9201=\"\",\"\",'Generated list'!D9201)","v":""}]
[null,{"$f":"IF('Generated list'!B9202=\"\",\"\",'Generated list'!B9202)","v":""},{"$f":"IF('Generated list'!C9202=\"\",\"\",'Generated list'!C9202)","v":""},{"$f":"IF('Generated list'!D9202=\"\",\"\",'Generated list'!D9202)","v":""}]
[null,{"$f":"IF('Generated list'!B9203=\"\",\"\",'Generated list'!B9203)","v":""},{"$f":"IF('Generated list'!C9203=\"\",\"\",'Generated list'!C9203)","v":""},{"$f":"IF('Generated list'!D9203=\"\",\"\",'Generated list'!D9203)","v":""}]
[null,{"$f":"IF('Generated list'!B9204=\"\",\"\",'Generated list'!B9204)","v":""},{"$f":"IF('Generated list'!C9204=\"\",\"\",'Generated list'!C9204)","v":""},{"$f":"IF('Generated list'!D9204=\"\",\"\",'Generated list'!D9204)","v":""}]
[null,{"$f":"IF('Generated list'!B9205=\"\",\"\",'Generated list'!B9205)","v":""},{"$f":"IF('Generated list'!C9205=\"\",\"\",'Generated list'!C9205)","v":""},{"$f":"IF('Generated list'!D9205=\"\",\"\",'Generated list'!D9205)","v":""}]
[null,{"$f":"IF('Generated list'!B9206=\"\",\"\",'Generated list'!B9206)","v":""},{"$f":"IF('Generated list'!C9206=\"\",\"\",'Generated list'!C9206)","v":""},{"$f":"IF('Generated list'!D9206=\"\",\"\",'Generated list'!D9206)","v":""}]
[null,{"$f":"IF('Generated list'!B9207=\"\",\"\",'Generated list'!B9207)","v":""},{"$f":"IF('Generated list'!C9207=\"\",\"\",'Generated list'!C9207)","v":""},{"$f":"IF('Generated list'!D9207=\"\",\"\",'Generated list'!D9207)","v":""}]
[null,{"$f":"IF('Generated list'!B9208=\"\",\"\",'Generated list'!B9208)","v":""},{"$f":"IF('Generated list'!C9208=\"\",\"\",'Generated list'!C9208)","v":""},{"$f":"IF('Generated list'!D9208=\"\",\"\",'Generated list'!D9208)","v":""}]
[null,{"$f":"IF('Generated list'!B9209=\"\",\"\",'Generated list'!B9209)","v":""},{"$f":"IF('Generated list'!C9209=\"\",\"\",'Generated list'!C9209)","v":""},{"$f":"IF('Generated list'!D9209=\"\",\"\",'Generated list'!D9209)","v":""}]
[null,{"$f":"IF('Generated list'!B9210=\"\",\"\",'Generated list'!B9210)","v":""},{"$f":"IF('Generated list'!C9210=\"\",\"\",'Generated list'!C9210)","v":""},{"$f":"IF('Generated list'!D9210=\"\",\"\",'Generated list'!D9210)","v":""}]
[null,{"$f":"IF('Generated list'!B9211=\"\",\"\",'Generated list'!B9211)","v":""},{"$f":"IF('Generated list'!C9211=\"\",\"\",'Generated list'!C9211)","v":""},{"$f":"IF('Generated list'!D9211=\"\",\"\",'Generated list'!D9211)","v":""}]
[null,{"$f":"IF('Generated list'!B9212=\"\",\"\",'Generated list'!B9212)","v":""},{"$f":"IF('Generated list'!C9212=\"\",\"\",'Generated list'!C9212)","v":""},{"$f":"IF('Generated list'!D9212=\"\",\"\",'Generated list'!D9212)","v":""}]
[null,{"$f":"IF('Generated list'!B9213=\"\",\"\",'Generated list'!B9213)","v":""},{"$f":"IF('Generated list'!C9213=\"\",\"\",'Generated list'!C9213)","v":""},{"$f":"IF('Generated list'!D9213=\"\",\"\",'Generated list'!D9213)","v":""}]
[null,{"$f":"IF('Generated list'!B9214=\"\",\"\",'Generated list'!B9214)","v":""},{"$f":"IF('Generated list'!C9214=\"\",\"\",'Generated list'!C9214)","v":""},{"$f":"IF('Generated list'!D9214=\"\",\"\",'Generated list'!D9214)","v":""}]
[null,{"$f":"IF('Generated list'!B9215=\"\",\"\",'Generated list'!B9215)","v":""},{"$f":"IF('Generated list'!C9215=\"\",\"\",'Generated list'!C9215)","v":""},{"$f":"IF('Generated list'!D9215=\"\",\"\",'Generated list'!D9215)","v":""}]
[null,{"$f":"IF('Generated list'!B9216=\"\",\"\",'Generated list'!B9216)","v":""},{"$f":"IF('Generated list'!C9216=\"\",\"\",'Generated list'!C9216)","v":""},{"$f":"IF('Generated list'!D9216=\"\",\"\",'Generated list'!D9216)","v":""}]
[null,{"$f":"IF('Generated list'!B9217=\"\",\"\",'Generated list'!B9217)","v":""},{"$f":"IF('Generated list'!C9217=\"\",\"\",'Generated list'!C9217)","v":""},{"$f":"IF('Generated list'!D9217=\"\",\"\",'Generated list'!D9217)","v":""}]
[null,{"$f":"IF('Generated list'!B9218=\"\",\"\",'Generated list'!B9218)","v":""},{"$f":"IF('Generated list'!C9218=\"\",\"\",'Generated list'!C9218)","v":""},{"$f":"IF('Generated list'!D9218=\"\",\"\",'Generated list'!D9218)","v":""}]
[null,{"$f":"IF('Generated list'!B9219=\"\",\"\",'Generated list'!B9219)","v":""},{"$f":"IF('Generated list'!C9219=\"\",\"\",'Generated list'!C9219)","v":""},{"$f":"IF('Generated list'!D9219=\"\",\"\",'Generated list'!D9219)","v":""}]
[null,{"$f":"IF('Generated list'!B9220=\"\",\"\",'Generated list'!B9220)","v":""},{"$f":"IF('Generated list'!C9220=\"\",\"\",'Generated list'!C9220)","v":""},{"$f":"IF('Generated list'!D9220=\"\",\"\",'Generated list'!D9220)","v":""}]
[null,{"$f":"IF('Generated list'!B9221=\"\",\"\",'Generated list'!B9221)","v":""},{"$f":"IF('Generated list'!C9221=\"\",\"\",'Generated list'!C9221)","v":""},{"$f":"IF('Generated list'!D9221=\"\",\"\",'Generated list'!D9221)","v":""}]
[null,{"$f":"IF('Generated list'!B9222=\"\",\"\",'Generated list'!B9222)","v":""},{"$f":"IF('Generated list'!C9222=\"\",\"\",'Generated list'!C9222)","v":""},{"$f":"IF('Generated list'!D9222=\"\",\"\",'Generated list'!D9222)","v":""}]
[null,{"$f":"IF('Generated list'!B9223=\"\",\"\",'Generated list'!B9223)","v":""},{"$f":"IF('Generated list'!C9223=\"\",\"\",'Generated list'!C9223)","v":""},{"$f":"IF('Generated list'!D9223=\"\",\"\",'Generated list'!D9223)","v":""}]
[null,{"$f":"IF('Generated list'!B9224=\"\",\"\",'Generated list'!B9224)","v":""},{"$f":"IF('Generated list'!C9224=\"\",\"\",'Generated list'!C9224)","v":""},{"$f":"IF('Generated list'!D9224=\"\",\"\",'Generated list'!D9224)","v":""}]
[null,{"$f":"IF('Generated list'!B9225=\"\",\"\",'Generated list'!B9225)","v":""},{"$f":"IF('Generated list'!C9225=\"\",\"\",'Generated list'!C9225)","v":""},{"$f":"IF('Generated list'!D9225=\"\",\"\",'Generated list'!D9225)","v":""}]
[null,{"$f":"IF('Generated list'!B9226=\"\",\"\",'Generated list'!B9226)","v":""},{"$f":"IF('Generated list'!C9226=\"\",\"\",'Generated list'!C9226)","v":""},{"$f":"IF('Generated list'!D9226=\"\",\"\",'Generated list'!D9226)","v":""}]
[null,{"$f":"IF('Generated list'!B9227=\"\",\"\",'Generated list'!B9227)","v":""},{"$f":"IF('Generated list'!C9227=\"\",\"\",'Generated list'!C9227)","v":""},{"$f":"IF('Generated list'!D9227=\"\",\"\",'Generated list'!D9227)","v":""}]
[null,{"$f":"IF('Generated list'!B9228=\"\",\"\",'Generated list'!B9228)","v":""},{"$f":"IF('Generated list'!C9228=\"\",\"\",'Generated list'!C9228)","v":""},{"$f":"IF('Generated list'!D9228=\"\",\"\",'Generated list'!D9228)","v":""}]
[null,{"$f":"IF('Generated list'!B9229=\"\",\"\",'Generated list'!B9229)","v":""},{"$f":"IF('Generated list'!C9229=\"\",\"\",'Generated list'!C9229)","v":""},{"$f":"IF('Generated list'!D9229=\"\",\"\",'Generated list'!D9229)","v":""}]
[null,{"$f":"IF('Generated list'!B9230=\"\",\"\",'Generated list'!B9230)","v":""},{"$f":"IF('Generated list'!C9230=\"\",\"\",'Generated list'!C9230)","v":""},{"$f":"IF('Generated list'!D9230=\"\",\"\",'Generated list'!D9230)","v":""}]
[null,{"$f":"IF('Generated list'!B9231=\"\",\"\",'Generated list'!B9231)","v":""},{"$f":"IF('Generated list'!C9231=\"\",\"\",'Generated list'!C9231)","v":""},{"$f":"IF('Generated list'!D9231=\"\",\"\",'Generated list'!D9231)","v":""}]
[null,{"$f":"IF('Generated list'!B9232=\"\",\"\",'Generated list'!B9232)","v":""},{"$f":"IF('Generated list'!C9232=\"\",\"\",'Generated list'!C9232)","v":""},{"$f":"IF('Generated list'!D9232=\"\",\"\",'Generated list'!D9232)","v":""}]
[null,{"$f":"IF('Generated list'!B9233=\"\",\"\",'Generated list'!B9233)","v":""},{"$f":"IF('Generated list'!C9233=\"\",\"\",'Generated list'!C9233)","v":""},{"$f":"IF('Generated list'!D9233=\"\",\"\",'Generated list'!D9233)","v":""}]
[null,{"$f":"IF('Generated list'!B9234=\"\",\"\",'Generated list'!B9234)","v":""},{"$f":"IF('Generated list'!C9234=\"\",\"\",'Generated list'!C9234)","v":""},{"$f":"IF('Generated list'!D9234=\"\",\"\",'Generated list'!D9234)","v":""}]
[null,{"$f":"IF('Generated list'!B9235=\"\",\"\",'Generated list'!B9235)","v":""},{"$f":"IF('Generated list'!C9235=\"\",\"\",'Generated list'!C9235)","v":""},{"$f":"IF('Generated list'!D9235=\"\",\"\",'Generated list'!D9235)","v":""}]
[null,{"$f":"IF('Generated list'!B9236=\"\",\"\",'Generated list'!B9236)","v":""},{"$f":"IF('Generated list'!C9236=\"\",\"\",'Generated list'!C9236)","v":""},{"$f":"IF('Generated list'!D9236=\"\",\"\",'Generated list'!D9236)","v":""}]
[null,{"$f":"IF('Generated list'!B9237=\"\",\"\",'Generated list'!B9237)","v":""},{"$f":"IF('Generated list'!C9237=\"\",\"\",'Generated list'!C9237)","v":""},{"$f":"IF('Generated list'!D9237=\"\",\"\",'Generated list'!D9237)","v":""}]
[null,{"$f":"IF('Generated list'!B9238=\"\",\"\",'Generated list'!B9238)","v":""},{"$f":"IF('Generated list'!C9238=\"\",\"\",'Generated list'!C9238)","v":""},{"$f":"IF('Generated list'!D9238=\"\",\"\",'Generated list'!D9238)","v":""}]
[null,{"$f":"IF('Generated list'!B9239=\"\",\"\",'Generated list'!B9239)","v":""},{"$f":"IF('Generated list'!C9239=\"\",\"\",'Generated list'!C9239)","v":""},{"$f":"IF('Generated list'!D9239=\"\",\"\",'Generated list'!D9239)","v":""}]
[null,{"$f":"IF('Generated list'!B9240=\"\",\"\",'Generated list'!B9240)","v":""},{"$f":"IF('Generated list'!C9240=\"\",\"\",'Generated list'!C9240)","v":""},{"$f":"IF('Generated list'!D9240=\"\",\"\",'Generated list'!D9240)","v":""}]
[null,{"$f":"IF('Generated list'!B9241=\"\",\"\",'Generated list'!B9241)","v":""},{"$f":"IF('Generated list'!C9241=\"\",\"\",'Generated list'!C9241)","v":""},{"$f":"IF('Generated list'!D9241=\"\",\"\",'Generated list'!D9241)","v":""}]
[null,{"$f":"IF('Generated list'!B9242=\"\",\"\",'Generated list'!B9242)","v":""},{"$f":"IF('Generated list'!C9242=\"\",\"\",'Generated list'!C9242)","v":""},{"$f":"IF('Generated list'!D9242=\"\",\"\",'Generated list'!D9242)","v":""}]
[null,{"$f":"IF('Generated list'!B9243=\"\",\"\",'Generated list'!B9243)","v":""},{"$f":"IF('Generated list'!C9243=\"\",\"\",'Generated list'!C9243)","v":""},{"$f":"IF('Generated list'!D9243=\"\",\"\",'Generated list'!D9243)","v":""}]
[null,{"$f":"IF('Generated list'!B9244=\"\",\"\",'Generated list'!B9244)","v":""},{"$f":"IF('Generated list'!C9244=\"\",\"\",'Generated list'!C9244)","v":""},{"$f":"IF('Generated list'!D9244=\"\",\"\",'Generated list'!D9244)","v":""}]
[null,{"$f":"IF('Generated list'!B9245=\"\",\"\",'Generated list'!B9245)","v":""},{"$f":"IF('Generated list'!C9245=\"\",\"\",'Generated list'!C9245)","v":""},{"$f":"IF('Generated list'!D9245=\"\",\"\",'Generated list'!D9245)","v":""}]
[null,{"$f":"IF('Generated list'!B9246=\"\",\"\",'Generated list'!B9246)","v":""},{"$f":"IF('Generated list'!C9246=\"\",\"\",'Generated list'!C9246)","v":""},{"$f":"IF('Generated list'!D9246=\"\",\"\",'Generated list'!D9246)","v":""}]
[null,{"$f":"IF('Generated list'!B9247=\"\",\"\",'Generated list'!B9247)","v":""},{"$f":"IF('Generated list'!C9247=\"\",\"\",'Generated list'!C9247)","v":""},{"$f":"IF('Generated list'!D9247=\"\",\"\",'Generated list'!D9247)","v":""}]
[null,{"$f":"IF('Generated list'!B9248=\"\",\"\",'Generated list'!B9248)","v":""},{"$f":"IF('Generated list'!C9248=\"\",\"\",'Generated list'!C9248)","v":""},{"$f":"IF('Generated list'!D9248=\"\",\"\",'Generated list'!D9248)","v":""}]
[null,{"$f":"IF('Generated list'!B9249=\"\",\"\",'Generated list'!B9249)","v":""},{"$f":"IF('Generated list'!C9249=\"\",\"\",'Generated list'!C9249)","v":""},{"$f":"IF('Generated list'!D9249=\"\",\"\",'Generated list'!D9249)","v":""}]
[null,{"$f":"IF('Generated list'!B9250=\"\",\"\",'Generated list'!B9250)","v":""},{"$f":"IF('Generated list'!C9250=\"\",\"\",'Generated list'!C9250)","v":""},{"$f":"IF('Generated list'!D9250=\"\",\"\",'Generated list'!D9250)","v":""}]
[null,{"$f":"IF('Generated list'!B9251=\"\",\"\",'Generated list'!B9251)","v":""},{"$f":"IF('Generated list'!C9251=\"\",\"\",'Generated list'!C9251)","v":""},{"$f":"IF('Generated list'!D9251=\"\",\"\",'Generated list'!D9251)","v":""}]
[null,{"$f":"IF('Generated list'!B9252=\"\",\"\",'Generated list'!B9252)","v":""},{"$f":"IF('Generated list'!C9252=\"\",\"\",'Generated list'!C9252)","v":""},{"$f":"IF('Generated list'!D9252=\"\",\"\",'Generated list'!D9252)","v":""}]
[null,{"$f":"IF('Generated list'!B9253=\"\",\"\",'Generated list'!B9253)","v":""},{"$f":"IF('Generated list'!C9253=\"\",\"\",'Generated list'!C9253)","v":""},{"$f":"IF('Generated list'!D9253=\"\",\"\",'Generated list'!D9253)","v":""}]
[null,{"$f":"IF('Generated list'!B9254=\"\",\"\",'Generated list'!B9254)","v":""},{"$f":"IF('Generated list'!C9254=\"\",\"\",'Generated list'!C9254)","v":""},{"$f":"IF('Generated list'!D9254=\"\",\"\",'Generated list'!D9254)","v":""}]
[null,{"$f":"IF('Generated list'!B9255=\"\",\"\",'Generated list'!B9255)","v":""},{"$f":"IF('Generated list'!C9255=\"\",\"\",'Generated list'!C9255)","v":""},{"$f":"IF('Generated list'!D9255=\"\",\"\",'Generated list'!D9255)","v":""}]
[null,{"$f":"IF('Generated list'!B9256=\"\",\"\",'Generated list'!B9256)","v":""},{"$f":"IF('Generated list'!C9256=\"\",\"\",'Generated list'!C9256)","v":""},{"$f":"IF('Generated list'!D9256=\"\",\"\",'Generated list'!D9256)","v":""}]
[null,{"$f":"IF('Generated list'!B9257=\"\",\"\",'Generated list'!B9257)","v":""},{"$f":"IF('Generated list'!C9257=\"\",\"\",'Generated list'!C9257)","v":""},{"$f":"IF('Generated list'!D9257=\"\",\"\",'Generated list'!D9257)","v":""}]
[null,{"$f":"IF('Generated list'!B9258=\"\",\"\",'Generated list'!B9258)","v":""},{"$f":"IF('Generated list'!C9258=\"\",\"\",'Generated list'!C9258)","v":""},{"$f":"IF('Generated list'!D9258=\"\",\"\",'Generated list'!D9258)","v":""}]
[null,{"$f":"IF('Generated list'!B9259=\"\",\"\",'Generated list'!B9259)","v":""},{"$f":"IF('Generated list'!C9259=\"\",\"\",'Generated list'!C9259)","v":""},{"$f":"IF('Generated list'!D9259=\"\",\"\",'Generated list'!D9259)","v":""}]
[null,{"$f":"IF('Generated list'!B9260=\"\",\"\",'Generated list'!B9260)","v":""},{"$f":"IF('Generated list'!C9260=\"\",\"\",'Generated list'!C9260)","v":""},{"$f":"IF('Generated list'!D9260=\"\",\"\",'Generated list'!D9260)","v":""}]
[null,{"$f":"IF('Generated list'!B9261=\"\",\"\",'Generated list'!B9261)","v":""},{"$f":"IF('Generated list'!C9261=\"\",\"\",'Generated list'!C9261)","v":""},{"$f":"IF('Generated list'!D9261=\"\",\"\",'Generated list'!D9261)","v":""}]
[null,{"$f":"IF('Generated list'!B9262=\"\",\"\",'Generated list'!B9262)","v":""},{"$f":"IF('Generated list'!C9262=\"\",\"\",'Generated list'!C9262)","v":""},{"$f":"IF('Generated list'!D9262=\"\",\"\",'Generated list'!D9262)","v":""}]
[null,{"$f":"IF('Generated list'!B9263=\"\",\"\",'Generated list'!B9263)","v":""},{"$f":"IF('Generated list'!C9263=\"\",\"\",'Generated list'!C9263)","v":""},{"$f":"IF('Generated list'!D9263=\"\",\"\",'Generated list'!D9263)","v":""}]
[null,{"$f":"IF('Generated list'!B9264=\"\",\"\",'Generated list'!B9264)","v":""},{"$f":"IF('Generated list'!C9264=\"\",\"\",'Generated list'!C9264)","v":""},{"$f":"IF('Generated list'!D9264=\"\",\"\",'Generated list'!D9264)","v":""}]
[null,{"$f":"IF('Generated list'!B9265=\"\",\"\",'Generated list'!B9265)","v":""},{"$f":"IF('Generated list'!C9265=\"\",\"\",'Generated list'!C9265)","v":""},{"$f":"IF('Generated list'!D9265=\"\",\"\",'Generated list'!D9265)","v":""}]
[null,{"$f":"IF('Generated list'!B9266=\"\",\"\",'Generated list'!B9266)","v":""},{"$f":"IF('Generated list'!C9266=\"\",\"\",'Generated list'!C9266)","v":""},{"$f":"IF('Generated list'!D9266=\"\",\"\",'Generated list'!D9266)","v":""}]
[null,{"$f":"IF('Generated list'!B9267=\"\",\"\",'Generated list'!B9267)","v":""},{"$f":"IF('Generated list'!C9267=\"\",\"\",'Generated list'!C9267)","v":""},{"$f":"IF('Generated list'!D9267=\"\",\"\",'Generated list'!D9267)","v":""}]
[null,{"$f":"IF('Generated list'!B9268=\"\",\"\",'Generated list'!B9268)","v":""},{"$f":"IF('Generated list'!C9268=\"\",\"\",'Generated list'!C9268)","v":""},{"$f":"IF('Generated list'!D9268=\"\",\"\",'Generated list'!D9268)","v":""}]
[null,{"$f":"IF('Generated list'!B9269=\"\",\"\",'Generated list'!B9269)","v":""},{"$f":"IF('Generated list'!C9269=\"\",\"\",'Generated list'!C9269)","v":""},{"$f":"IF('Generated list'!D9269=\"\",\"\",'Generated list'!D9269)","v":""}]
[null,{"$f":"IF('Generated list'!B9270=\"\",\"\",'Generated list'!B9270)","v":""},{"$f":"IF('Generated list'!C9270=\"\",\"\",'Generated list'!C9270)","v":""},{"$f":"IF('Generated list'!D9270=\"\",\"\",'Generated list'!D9270)","v":""}]
[null,{"$f":"IF('Generated list'!B9271=\"\",\"\",'Generated list'!B9271)","v":""},{"$f":"IF('Generated list'!C9271=\"\",\"\",'Generated list'!C9271)","v":""},{"$f":"IF('Generated list'!D9271=\"\",\"\",'Generated list'!D9271)","v":""}]
[null,{"$f":"IF('Generated list'!B9272=\"\",\"\",'Generated list'!B9272)","v":""},{"$f":"IF('Generated list'!C9272=\"\",\"\",'Generated list'!C9272)","v":""},{"$f":"IF('Generated list'!D9272=\"\",\"\",'Generated list'!D9272)","v":""}]
[null,{"$f":"IF('Generated list'!B9273=\"\",\"\",'Generated list'!B9273)","v":""},{"$f":"IF('Generated list'!C9273=\"\",\"\",'Generated list'!C9273)","v":""},{"$f":"IF('Generated list'!D9273=\"\",\"\",'Generated list'!D9273)","v":""}]
[null,{"$f":"IF('Generated list'!B9274=\"\",\"\",'Generated list'!B9274)","v":""},{"$f":"IF('Generated list'!C9274=\"\",\"\",'Generated list'!C9274)","v":""},{"$f":"IF('Generated list'!D9274=\"\",\"\",'Generated list'!D9274)","v":""}]
[null,{"$f":"IF('Generated list'!B9275=\"\",\"\",'Generated list'!B9275)","v":""},{"$f":"IF('Generated list'!C9275=\"\",\"\",'Generated list'!C9275)","v":""},{"$f":"IF('Generated list'!D9275=\"\",\"\",'Generated list'!D9275)","v":""}]
[null,{"$f":"IF('Generated list'!B9276=\"\",\"\",'Generated list'!B9276)","v":""},{"$f":"IF('Generated list'!C9276=\"\",\"\",'Generated list'!C9276)","v":""},{"$f":"IF('Generated list'!D9276=\"\",\"\",'Generated list'!D9276)","v":""}]
[null,{"$f":"IF('Generated list'!B9277=\"\",\"\",'Generated list'!B9277)","v":""},{"$f":"IF('Generated list'!C9277=\"\",\"\",'Generated list'!C9277)","v":""},{"$f":"IF('Generated list'!D9277=\"\",\"\",'Generated list'!D9277)","v":""}]
[null,{"$f":"IF('Generated list'!B9278=\"\",\"\",'Generated list'!B9278)","v":""},{"$f":"IF('Generated list'!C9278=\"\",\"\",'Generated list'!C9278)","v":""},{"$f":"IF('Generated list'!D9278=\"\",\"\",'Generated list'!D9278)","v":""}]
[null,{"$f":"IF('Generated list'!B9279=\"\",\"\",'Generated list'!B9279)","v":""},{"$f":"IF('Generated list'!C9279=\"\",\"\",'Generated list'!C9279)","v":""},{"$f":"IF('Generated list'!D9279=\"\",\"\",'Generated list'!D9279)","v":""}]
[null,{"$f":"IF('Generated list'!B9280=\"\",\"\",'Generated list'!B9280)","v":""},{"$f":"IF('Generated list'!C9280=\"\",\"\",'Generated list'!C9280)","v":""},{"$f":"IF('Generated list'!D9280=\"\",\"\",'Generated list'!D9280)","v":""}]
[null,{"$f":"IF('Generated list'!B9281=\"\",\"\",'Generated list'!B9281)","v":""},{"$f":"IF('Generated list'!C9281=\"\",\"\",'Generated list'!C9281)","v":""},{"$f":"IF('Generated list'!D9281=\"\",\"\",'Generated list'!D9281)","v":""}]
[null,{"$f":"IF('Generated list'!B9282=\"\",\"\",'Generated list'!B9282)","v":""},{"$f":"IF('Generated list'!C9282=\"\",\"\",'Generated list'!C9282)","v":""},{"$f":"IF('Generated list'!D9282=\"\",\"\",'Generated list'!D9282)","v":""}]
[null,{"$f":"IF('Generated list'!B9283=\"\",\"\",'Generated list'!B9283)","v":""},{"$f":"IF('Generated list'!C9283=\"\",\"\",'Generated list'!C9283)","v":""},{"$f":"IF('Generated list'!D9283=\"\",\"\",'Generated list'!D9283)","v":""}]
[null,{"$f":"IF('Generated list'!B9284=\"\",\"\",'Generated list'!B9284)","v":""},{"$f":"IF('Generated list'!C9284=\"\",\"\",'Generated list'!C9284)","v":""},{"$f":"IF('Generated list'!D9284=\"\",\"\",'Generated list'!D9284)","v":""}]
[null,{"$f":"IF('Generated list'!B9285=\"\",\"\",'Generated list'!B9285)","v":""},{"$f":"IF('Generated list'!C9285=\"\",\"\",'Generated list'!C9285)","v":""},{"$f":"IF('Generated list'!D9285=\"\",\"\",'Generated list'!D9285)","v":""}]
[null,{"$f":"IF('Generated list'!B9286=\"\",\"\",'Generated list'!B9286)","v":""},{"$f":"IF('Generated list'!C9286=\"\",\"\",'Generated list'!C9286)","v":""},{"$f":"IF('Generated list'!D9286=\"\",\"\",'Generated list'!D9286)","v":""}]
[null,{"$f":"IF('Generated list'!B9287=\"\",\"\",'Generated list'!B9287)","v":""},{"$f":"IF('Generated list'!C9287=\"\",\"\",'Generated list'!C9287)","v":""},{"$f":"IF('Generated list'!D9287=\"\",\"\",'Generated list'!D9287)","v":""}]
[null,{"$f":"IF('Generated list'!B9288=\"\",\"\",'Generated list'!B9288)","v":""},{"$f":"IF('Generated list'!C9288=\"\",\"\",'Generated list'!C9288)","v":""},{"$f":"IF('Generated list'!D9288=\"\",\"\",'Generated list'!D9288)","v":""}]
[null,{"$f":"IF('Generated list'!B9289=\"\",\"\",'Generated list'!B9289)","v":""},{"$f":"IF('Generated list'!C9289=\"\",\"\",'Generated list'!C9289)","v":""},{"$f":"IF('Generated list'!D9289=\"\",\"\",'Generated list'!D9289)","v":""}]
[null,{"$f":"IF('Generated list'!B9290=\"\",\"\",'Generated list'!B9290)","v":""},{"$f":"IF('Generated list'!C9290=\"\",\"\",'Generated list'!C9290)","v":""},{"$f":"IF('Generated list'!D9290=\"\",\"\",'Generated list'!D9290)","v":""}]
[null,{"$f":"IF('Generated list'!B9291=\"\",\"\",'Generated list'!B9291)","v":""},{"$f":"IF('Generated list'!C9291=\"\",\"\",'Generated list'!C9291)","v":""},{"$f":"IF('Generated list'!D9291=\"\",\"\",'Generated list'!D9291)","v":""}]
[null,{"$f":"IF('Generated list'!B9292=\"\",\"\",'Generated list'!B9292)","v":""},{"$f":"IF('Generated list'!C9292=\"\",\"\",'Generated list'!C9292)","v":""},{"$f":"IF('Generated list'!D9292=\"\",\"\",'Generated list'!D9292)","v":""}]
[null,{"$f":"IF('Generated list'!B9293=\"\",\"\",'Generated list'!B9293)","v":""},{"$f":"IF('Generated list'!C9293=\"\",\"\",'Generated list'!C9293)","v":""},{"$f":"IF('Generated list'!D9293=\"\",\"\",'Generated list'!D9293)","v":""}]
[null,{"$f":"IF('Generated list'!B9294=\"\",\"\",'Generated list'!B9294)","v":""},{"$f":"IF('Generated list'!C9294=\"\",\"\",'Generated list'!C9294)","v":""},{"$f":"IF('Generated list'!D9294=\"\",\"\",'Generated list'!D9294)","v":""}]
[null,{"$f":"IF('Generated list'!B9295=\"\",\"\",'Generated list'!B9295)","v":""},{"$f":"IF('Generated list'!C9295=\"\",\"\",'Generated list'!C9295)","v":""},{"$f":"IF('Generated list'!D9295=\"\",\"\",'Generated list'!D9295)","v":""}]
[null,{"$f":"IF('Generated list'!B9296=\"\",\"\",'Generated list'!B9296)","v":""},{"$f":"IF('Generated list'!C9296=\"\",\"\",'Generated list'!C9296)","v":""},{"$f":"IF('Generated list'!D9296=\"\",\"\",'Generated list'!D9296)","v":""}]
[null,{"$f":"IF('Generated list'!B9297=\"\",\"\",'Generated list'!B9297)","v":""},{"$f":"IF('Generated list'!C9297=\"\",\"\",'Generated list'!C9297)","v":""},{"$f":"IF('Generated list'!D9297=\"\",\"\",'Generated list'!D9297)","v":""}]
[null,{"$f":"IF('Generated list'!B9298=\"\",\"\",'Generated list'!B9298)","v":""},{"$f":"IF('Generated list'!C9298=\"\",\"\",'Generated list'!C9298)","v":""},{"$f":"IF('Generated list'!D9298=\"\",\"\",'Generated list'!D9298)","v":""}]
[null,{"$f":"IF('Generated list'!B9299=\"\",\"\",'Generated list'!B9299)","v":""},{"$f":"IF('Generated list'!C9299=\"\",\"\",'Generated list'!C9299)","v":""},{"$f":"IF('Generated list'!D9299=\"\",\"\",'Generated list'!D9299)","v":""}]
[null,{"$f":"IF('Generated list'!B9300=\"\",\"\",'Generated list'!B9300)","v":""},{"$f":"IF('Generated list'!C9300=\"\",\"\",'Generated list'!C9300)","v":""},{"$f":"IF('Generated list'!D9300=\"\",\"\",'Generated list'!D9300)","v":""}]
[null,{"$f":"IF('Generated list'!B9301=\"\",\"\",'Generated list'!B9301)","v":""},{"$f":"IF('Generated list'!C9301=\"\",\"\",'Generated list'!C9301)","v":""},{"$f":"IF('Generated list'!D9301=\"\",\"\",'Generated list'!D9301)","v":""}]
[null,{"$f":"IF('Generated list'!B9302=\"\",\"\",'Generated list'!B9302)","v":""},{"$f":"IF('Generated list'!C9302=\"\",\"\",'Generated list'!C9302)","v":""},{"$f":"IF('Generated list'!D9302=\"\",\"\",'Generated list'!D9302)","v":""}]
[null,{"$f":"IF('Generated list'!B9303=\"\",\"\",'Generated list'!B9303)","v":""},{"$f":"IF('Generated list'!C9303=\"\",\"\",'Generated list'!C9303)","v":""},{"$f":"IF('Generated list'!D9303=\"\",\"\",'Generated list'!D9303)","v":""}]
[null,{"$f":"IF('Generated list'!B9304=\"\",\"\",'Generated list'!B9304)","v":""},{"$f":"IF('Generated list'!C9304=\"\",\"\",'Generated list'!C9304)","v":""},{"$f":"IF('Generated list'!D9304=\"\",\"\",'Generated list'!D9304)","v":""}]
[null,{"$f":"IF('Generated list'!B9305=\"\",\"\",'Generated list'!B9305)","v":""},{"$f":"IF('Generated list'!C9305=\"\",\"\",'Generated list'!C9305)","v":""},{"$f":"IF('Generated list'!D9305=\"\",\"\",'Generated list'!D9305)","v":""}]
[null,{"$f":"IF('Generated list'!B9306=\"\",\"\",'Generated list'!B9306)","v":""},{"$f":"IF('Generated list'!C9306=\"\",\"\",'Generated list'!C9306)","v":""},{"$f":"IF('Generated list'!D9306=\"\",\"\",'Generated list'!D9306)","v":""}]
[null,{"$f":"IF('Generated list'!B9307=\"\",\"\",'Generated list'!B9307)","v":""},{"$f":"IF('Generated list'!C9307=\"\",\"\",'Generated list'!C9307)","v":""},{"$f":"IF('Generated list'!D9307=\"\",\"\",'Generated list'!D9307)","v":""}]
[null,{"$f":"IF('Generated list'!B9308=\"\",\"\",'Generated list'!B9308)","v":""},{"$f":"IF('Generated list'!C9308=\"\",\"\",'Generated list'!C9308)","v":""},{"$f":"IF('Generated list'!D9308=\"\",\"\",'Generated list'!D9308)","v":""}]
[null,{"$f":"IF('Generated list'!B9309=\"\",\"\",'Generated list'!B9309)","v":""},{"$f":"IF('Generated list'!C9309=\"\",\"\",'Generated list'!C9309)","v":""},{"$f":"IF('Generated list'!D9309=\"\",\"\",'Generated list'!D9309)","v":""}]
[null,{"$f":"IF('Generated list'!B9310=\"\",\"\",'Generated list'!B9310)","v":""},{"$f":"IF('Generated list'!C9310=\"\",\"\",'Generated list'!C9310)","v":""},{"$f":"IF('Generated list'!D9310=\"\",\"\",'Generated list'!D9310)","v":""}]
[null,{"$f":"IF('Generated list'!B9311=\"\",\"\",'Generated list'!B9311)","v":""},{"$f":"IF('Generated list'!C9311=\"\",\"\",'Generated list'!C9311)","v":""},{"$f":"IF('Generated list'!D9311=\"\",\"\",'Generated list'!D9311)","v":""}]
[null,{"$f":"IF('Generated list'!B9312=\"\",\"\",'Generated list'!B9312)","v":""},{"$f":"IF('Generated list'!C9312=\"\",\"\",'Generated list'!C9312)","v":""},{"$f":"IF('Generated list'!D9312=\"\",\"\",'Generated list'!D9312)","v":""}]
[null,{"$f":"IF('Generated list'!B9313=\"\",\"\",'Generated list'!B9313)","v":""},{"$f":"IF('Generated list'!C9313=\"\",\"\",'Generated list'!C9313)","v":""},{"$f":"IF('Generated list'!D9313=\"\",\"\",'Generated list'!D9313)","v":""}]
[null,{"$f":"IF('Generated list'!B9314=\"\",\"\",'Generated list'!B9314)","v":""},{"$f":"IF('Generated list'!C9314=\"\",\"\",'Generated list'!C9314)","v":""},{"$f":"IF('Generated list'!D9314=\"\",\"\",'Generated list'!D9314)","v":""}]
[null,{"$f":"IF('Generated list'!B9315=\"\",\"\",'Generated list'!B9315)","v":""},{"$f":"IF('Generated list'!C9315=\"\",\"\",'Generated list'!C9315)","v":""},{"$f":"IF('Generated list'!D9315=\"\",\"\",'Generated list'!D9315)","v":""}]
[null,{"$f":"IF('Generated list'!B9316=\"\",\"\",'Generated list'!B9316)","v":""},{"$f":"IF('Generated list'!C9316=\"\",\"\",'Generated list'!C9316)","v":""},{"$f":"IF('Generated list'!D9316=\"\",\"\",'Generated list'!D9316)","v":""}]
[null,{"$f":"IF('Generated list'!B9317=\"\",\"\",'Generated list'!B9317)","v":""},{"$f":"IF('Generated list'!C9317=\"\",\"\",'Generated list'!C9317)","v":""},{"$f":"IF('Generated list'!D9317=\"\",\"\",'Generated list'!D9317)","v":""}]
[null,{"$f":"IF('Generated list'!B9318=\"\",\"\",'Generated list'!B9318)","v":""},{"$f":"IF('Generated list'!C9318=\"\",\"\",'Generated list'!C9318)","v":""},{"$f":"IF('Generated list'!D9318=\"\",\"\",'Generated list'!D9318)","v":""}]
[null,{"$f":"IF('Generated list'!B9319=\"\",\"\",'Generated list'!B9319)","v":""},{"$f":"IF('Generated list'!C9319=\"\",\"\",'Generated list'!C9319)","v":""},{"$f":"IF('Generated list'!D9319=\"\",\"\",'Generated list'!D9319)","v":""}]
[null,{"$f":"IF('Generated list'!B9320=\"\",\"\",'Generated list'!B9320)","v":""},{"$f":"IF('Generated list'!C9320=\"\",\"\",'Generated list'!C9320)","v":""},{"$f":"IF('Generated list'!D9320=\"\",\"\",'Generated list'!D9320)","v":""}]
[null,{"$f":"IF('Generated list'!B9321=\"\",\"\",'Generated list'!B9321)","v":""},{"$f":"IF('Generated list'!C9321=\"\",\"\",'Generated list'!C9321)","v":""},{"$f":"IF('Generated list'!D9321=\"\",\"\",'Generated list'!D9321)","v":""}]
[null,{"$f":"IF('Generated list'!B9322=\"\",\"\",'Generated list'!B9322)","v":""},{"$f":"IF('Generated list'!C9322=\"\",\"\",'Generated list'!C9322)","v":""},{"$f":"IF('Generated list'!D9322=\"\",\"\",'Generated list'!D9322)","v":""}]
[null,{"$f":"IF('Generated list'!B9323=\"\",\"\",'Generated list'!B9323)","v":""},{"$f":"IF('Generated list'!C9323=\"\",\"\",'Generated list'!C9323)","v":""},{"$f":"IF('Generated list'!D9323=\"\",\"\",'Generated list'!D9323)","v":""}]
[null,{"$f":"IF('Generated list'!B9324=\"\",\"\",'Generated list'!B9324)","v":""},{"$f":"IF('Generated list'!C9324=\"\",\"\",'Generated list'!C9324)","v":""},{"$f":"IF('Generated list'!D9324=\"\",\"\",'Generated list'!D9324)","v":""}]
[null,{"$f":"IF('Generated list'!B9325=\"\",\"\",'Generated list'!B9325)","v":""},{"$f":"IF('Generated list'!C9325=\"\",\"\",'Generated list'!C9325)","v":""},{"$f":"IF('Generated list'!D9325=\"\",\"\",'Generated list'!D9325)","v":""}]
[null,{"$f":"IF('Generated list'!B9326=\"\",\"\",'Generated list'!B9326)","v":""},{"$f":"IF('Generated list'!C9326=\"\",\"\",'Generated list'!C9326)","v":""},{"$f":"IF('Generated list'!D9326=\"\",\"\",'Generated list'!D9326)","v":""}]
[null,{"$f":"IF('Generated list'!B9327=\"\",\"\",'Generated list'!B9327)","v":""},{"$f":"IF('Generated list'!C9327=\"\",\"\",'Generated list'!C9327)","v":""},{"$f":"IF('Generated list'!D9327=\"\",\"\",'Generated list'!D9327)","v":""}]
[null,{"$f":"IF('Generated list'!B9328=\"\",\"\",'Generated list'!B9328)","v":""},{"$f":"IF('Generated list'!C9328=\"\",\"\",'Generated list'!C9328)","v":""},{"$f":"IF('Generated list'!D9328=\"\",\"\",'Generated list'!D9328)","v":""}]
[null,{"$f":"IF('Generated list'!B9329=\"\",\"\",'Generated list'!B9329)","v":""},{"$f":"IF('Generated list'!C9329=\"\",\"\",'Generated list'!C9329)","v":""},{"$f":"IF('Generated list'!D9329=\"\",\"\",'Generated list'!D9329)","v":""}]
[null,{"$f":"IF('Generated list'!B9330=\"\",\"\",'Generated list'!B9330)","v":""},{"$f":"IF('Generated list'!C9330=\"\",\"\",'Generated list'!C9330)","v":""},{"$f":"IF('Generated list'!D9330=\"\",\"\",'Generated list'!D9330)","v":""}]
[null,{"$f":"IF('Generated list'!B9331=\"\",\"\",'Generated list'!B9331)","v":""},{"$f":"IF('Generated list'!C9331=\"\",\"\",'Generated list'!C9331)","v":""},{"$f":"IF('Generated list'!D9331=\"\",\"\",'Generated list'!D9331)","v":""}]
[null,{"$f":"IF('Generated list'!B9332=\"\",\"\",'Generated list'!B9332)","v":""},{"$f":"IF('Generated list'!C9332=\"\",\"\",'Generated list'!C9332)","v":""},{"$f":"IF('Generated list'!D9332=\"\",\"\",'Generated list'!D9332)","v":""}]
[null,{"$f":"IF('Generated list'!B9333=\"\",\"\",'Generated list'!B9333)","v":""},{"$f":"IF('Generated list'!C9333=\"\",\"\",'Generated list'!C9333)","v":""},{"$f":"IF('Generated list'!D9333=\"\",\"\",'Generated list'!D9333)","v":""}]
[null,{"$f":"IF('Generated list'!B9334=\"\",\"\",'Generated list'!B9334)","v":""},{"$f":"IF('Generated list'!C9334=\"\",\"\",'Generated list'!C9334)","v":""},{"$f":"IF('Generated list'!D9334=\"\",\"\",'Generated list'!D9334)","v":""}]
[null,{"$f":"IF('Generated list'!B9335=\"\",\"\",'Generated list'!B9335)","v":""},{"$f":"IF('Generated list'!C9335=\"\",\"\",'Generated list'!C9335)","v":""},{"$f":"IF('Generated list'!D9335=\"\",\"\",'Generated list'!D9335)","v":""}]
[null,{"$f":"IF('Generated list'!B9336=\"\",\"\",'Generated list'!B9336)","v":""},{"$f":"IF('Generated list'!C9336=\"\",\"\",'Generated list'!C9336)","v":""},{"$f":"IF('Generated list'!D9336=\"\",\"\",'Generated list'!D9336)","v":""}]
[null,{"$f":"IF('Generated list'!B9337=\"\",\"\",'Generated list'!B9337)","v":""},{"$f":"IF('Generated list'!C9337=\"\",\"\",'Generated list'!C9337)","v":""},{"$f":"IF('Generated list'!D9337=\"\",\"\",'Generated list'!D9337)","v":""}]
[null,{"$f":"IF('Generated list'!B9338=\"\",\"\",'Generated list'!B9338)","v":""},{"$f":"IF('Generated list'!C9338=\"\",\"\",'Generated list'!C9338)","v":""},{"$f":"IF('Generated list'!D9338=\"\",\"\",'Generated list'!D9338)","v":""}]
[null,{"$f":"IF('Generated list'!B9339=\"\",\"\",'Generated list'!B9339)","v":""},{"$f":"IF('Generated list'!C9339=\"\",\"\",'Generated list'!C9339)","v":""},{"$f":"IF('Generated list'!D9339=\"\",\"\",'Generated list'!D9339)","v":""}]
[null,{"$f":"IF('Generated list'!B9340=\"\",\"\",'Generated list'!B9340)","v":""},{"$f":"IF('Generated list'!C9340=\"\",\"\",'Generated list'!C9340)","v":""},{"$f":"IF('Generated list'!D9340=\"\",\"\",'Generated list'!D9340)","v":""}]
[null,{"$f":"IF('Generated list'!B9341=\"\",\"\",'Generated list'!B9341)","v":""},{"$f":"IF('Generated list'!C9341=\"\",\"\",'Generated list'!C9341)","v":""},{"$f":"IF('Generated list'!D9341=\"\",\"\",'Generated list'!D9341)","v":""}]
[null,{"$f":"IF('Generated list'!B9342=\"\",\"\",'Generated list'!B9342)","v":""},{"$f":"IF('Generated list'!C9342=\"\",\"\",'Generated list'!C9342)","v":""},{"$f":"IF('Generated list'!D9342=\"\",\"\",'Generated list'!D9342)","v":""}]
[null,{"$f":"IF('Generated list'!B9343=\"\",\"\",'Generated list'!B9343)","v":""},{"$f":"IF('Generated list'!C9343=\"\",\"\",'Generated list'!C9343)","v":""},{"$f":"IF('Generated list'!D9343=\"\",\"\",'Generated list'!D9343)","v":""}]
[null,{"$f":"IF('Generated list'!B9344=\"\",\"\",'Generated list'!B9344)","v":""},{"$f":"IF('Generated list'!C9344=\"\",\"\",'Generated list'!C9344)","v":""},{"$f":"IF('Generated list'!D9344=\"\",\"\",'Generated list'!D9344)","v":""}]
[null,{"$f":"IF('Generated list'!B9345=\"\",\"\",'Generated list'!B9345)","v":""},{"$f":"IF('Generated list'!C9345=\"\",\"\",'Generated list'!C9345)","v":""},{"$f":"IF('Generated list'!D9345=\"\",\"\",'Generated list'!D9345)","v":""}]
[null,{"$f":"IF('Generated list'!B9346=\"\",\"\",'Generated list'!B9346)","v":""},{"$f":"IF('Generated list'!C9346=\"\",\"\",'Generated list'!C9346)","v":""},{"$f":"IF('Generated list'!D9346=\"\",\"\",'Generated list'!D9346)","v":""}]
[null,{"$f":"IF('Generated list'!B9347=\"\",\"\",'Generated list'!B9347)","v":""},{"$f":"IF('Generated list'!C9347=\"\",\"\",'Generated list'!C9347)","v":""},{"$f":"IF('Generated list'!D9347=\"\",\"\",'Generated list'!D9347)","v":""}]
[null,{"$f":"IF('Generated list'!B9348=\"\",\"\",'Generated list'!B9348)","v":""},{"$f":"IF('Generated list'!C9348=\"\",\"\",'Generated list'!C9348)","v":""},{"$f":"IF('Generated list'!D9348=\"\",\"\",'Generated list'!D9348)","v":""}]
[null,{"$f":"IF('Generated list'!B9349=\"\",\"\",'Generated list'!B9349)","v":""},{"$f":"IF('Generated list'!C9349=\"\",\"\",'Generated list'!C9349)","v":""},{"$f":"IF('Generated list'!D9349=\"\",\"\",'Generated list'!D9349)","v":""}]
[null,{"$f":"IF('Generated list'!B9350=\"\",\"\",'Generated list'!B9350)","v":""},{"$f":"IF('Generated list'!C9350=\"\",\"\",'Generated list'!C9350)","v":""},{"$f":"IF('Generated list'!D9350=\"\",\"\",'Generated list'!D9350)","v":""}]
[null,{"$f":"IF('Generated list'!B9351=\"\",\"\",'Generated list'!B9351)","v":""},{"$f":"IF('Generated list'!C9351=\"\",\"\",'Generated list'!C9351)","v":""},{"$f":"IF('Generated list'!D9351=\"\",\"\",'Generated list'!D9351)","v":""}]
[null,{"$f":"IF('Generated list'!B9352=\"\",\"\",'Generated list'!B9352)","v":""},{"$f":"IF('Generated list'!C9352=\"\",\"\",'Generated list'!C9352)","v":""},{"$f":"IF('Generated list'!D9352=\"\",\"\",'Generated list'!D9352)","v":""}]
[null,{"$f":"IF('Generated list'!B9353=\"\",\"\",'Generated list'!B9353)","v":""},{"$f":"IF('Generated list'!C9353=\"\",\"\",'Generated list'!C9353)","v":""},{"$f":"IF('Generated list'!D9353=\"\",\"\",'Generated list'!D9353)","v":""}]
[null,{"$f":"IF('Generated list'!B9354=\"\",\"\",'Generated list'!B9354)","v":""},{"$f":"IF('Generated list'!C9354=\"\",\"\",'Generated list'!C9354)","v":""},{"$f":"IF('Generated list'!D9354=\"\",\"\",'Generated list'!D9354)","v":""}]
[null,{"$f":"IF('Generated list'!B9355=\"\",\"\",'Generated list'!B9355)","v":""},{"$f":"IF('Generated list'!C9355=\"\",\"\",'Generated list'!C9355)","v":""},{"$f":"IF('Generated list'!D9355=\"\",\"\",'Generated list'!D9355)","v":""}]
[null,{"$f":"IF('Generated list'!B9356=\"\",\"\",'Generated list'!B9356)","v":""},{"$f":"IF('Generated list'!C9356=\"\",\"\",'Generated list'!C9356)","v":""},{"$f":"IF('Generated list'!D9356=\"\",\"\",'Generated list'!D9356)","v":""}]
[null,{"$f":"IF('Generated list'!B9357=\"\",\"\",'Generated list'!B9357)","v":""},{"$f":"IF('Generated list'!C9357=\"\",\"\",'Generated list'!C9357)","v":""},{"$f":"IF('Generated list'!D9357=\"\",\"\",'Generated list'!D9357)","v":""}]
[null,{"$f":"IF('Generated list'!B9358=\"\",\"\",'Generated list'!B9358)","v":""},{"$f":"IF('Generated list'!C9358=\"\",\"\",'Generated list'!C9358)","v":""},{"$f":"IF('Generated list'!D9358=\"\",\"\",'Generated list'!D9358)","v":""}]
[null,{"$f":"IF('Generated list'!B9359=\"\",\"\",'Generated list'!B9359)","v":""},{"$f":"IF('Generated list'!C9359=\"\",\"\",'Generated list'!C9359)","v":""},{"$f":"IF('Generated list'!D9359=\"\",\"\",'Generated list'!D9359)","v":""}]
[null,{"$f":"IF('Generated list'!B9360=\"\",\"\",'Generated list'!B9360)","v":""},{"$f":"IF('Generated list'!C9360=\"\",\"\",'Generated list'!C9360)","v":""},{"$f":"IF('Generated list'!D9360=\"\",\"\",'Generated list'!D9360)","v":""}]
[null,{"$f":"IF('Generated list'!B9361=\"\",\"\",'Generated list'!B9361)","v":""},{"$f":"IF('Generated list'!C9361=\"\",\"\",'Generated list'!C9361)","v":""},{"$f":"IF('Generated list'!D9361=\"\",\"\",'Generated list'!D9361)","v":""}]
[null,{"$f":"IF('Generated list'!B9362=\"\",\"\",'Generated list'!B9362)","v":""},{"$f":"IF('Generated list'!C9362=\"\",\"\",'Generated list'!C9362)","v":""},{"$f":"IF('Generated list'!D9362=\"\",\"\",'Generated list'!D9362)","v":""}]
[null,{"$f":"IF('Generated list'!B9363=\"\",\"\",'Generated list'!B9363)","v":""},{"$f":"IF('Generated list'!C9363=\"\",\"\",'Generated list'!C9363)","v":""},{"$f":"IF('Generated list'!D9363=\"\",\"\",'Generated list'!D9363)","v":""}]
[null,{"$f":"IF('Generated list'!B9364=\"\",\"\",'Generated list'!B9364)","v":""},{"$f":"IF('Generated list'!C9364=\"\",\"\",'Generated list'!C9364)","v":""},{"$f":"IF('Generated list'!D9364=\"\",\"\",'Generated list'!D9364)","v":""}]
[null,{"$f":"IF('Generated list'!B9365=\"\",\"\",'Generated list'!B9365)","v":""},{"$f":"IF('Generated list'!C9365=\"\",\"\",'Generated list'!C9365)","v":""},{"$f":"IF('Generated list'!D9365=\"\",\"\",'Generated list'!D9365)","v":""}]
[null,{"$f":"IF('Generated list'!B9366=\"\",\"\",'Generated list'!B9366)","v":""},{"$f":"IF('Generated list'!C9366=\"\",\"\",'Generated list'!C9366)","v":""},{"$f":"IF('Generated list'!D9366=\"\",\"\",'Generated list'!D9366)","v":""}]
[null,{"$f":"IF('Generated list'!B9367=\"\",\"\",'Generated list'!B9367)","v":""},{"$f":"IF('Generated list'!C9367=\"\",\"\",'Generated list'!C9367)","v":""},{"$f":"IF('Generated list'!D9367=\"\",\"\",'Generated list'!D9367)","v":""}]
[null,{"$f":"IF('Generated list'!B9368=\"\",\"\",'Generated list'!B9368)","v":""},{"$f":"IF('Generated list'!C9368=\"\",\"\",'Generated list'!C9368)","v":""},{"$f":"IF('Generated list'!D9368=\"\",\"\",'Generated list'!D9368)","v":""}]
[null,{"$f":"IF('Generated list'!B9369=\"\",\"\",'Generated list'!B9369)","v":""},{"$f":"IF('Generated list'!C9369=\"\",\"\",'Generated list'!C9369)","v":""},{"$f":"IF('Generated list'!D9369=\"\",\"\",'Generated list'!D9369)","v":""}]
[null,{"$f":"IF('Generated list'!B9370=\"\",\"\",'Generated list'!B9370)","v":""},{"$f":"IF('Generated list'!C9370=\"\",\"\",'Generated list'!C9370)","v":""},{"$f":"IF('Generated list'!D9370=\"\",\"\",'Generated list'!D9370)","v":""}]
[null,{"$f":"IF('Generated list'!B9371=\"\",\"\",'Generated list'!B9371)","v":""},{"$f":"IF('Generated list'!C9371=\"\",\"\",'Generated list'!C9371)","v":""},{"$f":"IF('Generated list'!D9371=\"\",\"\",'Generated list'!D9371)","v":""}]
[null,{"$f":"IF('Generated list'!B9372=\"\",\"\",'Generated list'!B9372)","v":""},{"$f":"IF('Generated list'!C9372=\"\",\"\",'Generated list'!C9372)","v":""},{"$f":"IF('Generated list'!D9372=\"\",\"\",'Generated list'!D9372)","v":""}]
[null,{"$f":"IF('Generated list'!B9373=\"\",\"\",'Generated list'!B9373)","v":""},{"$f":"IF('Generated list'!C9373=\"\",\"\",'Generated list'!C9373)","v":""},{"$f":"IF('Generated list'!D9373=\"\",\"\",'Generated list'!D9373)","v":""}]
[null,{"$f":"IF('Generated list'!B9374=\"\",\"\",'Generated list'!B9374)","v":""},{"$f":"IF('Generated list'!C9374=\"\",\"\",'Generated list'!C9374)","v":""},{"$f":"IF('Generated list'!D9374=\"\",\"\",'Generated list'!D9374)","v":""}]
[null,{"$f":"IF('Generated list'!B9375=\"\",\"\",'Generated list'!B9375)","v":""},{"$f":"IF('Generated list'!C9375=\"\",\"\",'Generated list'!C9375)","v":""},{"$f":"IF('Generated list'!D9375=\"\",\"\",'Generated list'!D9375)","v":""}]
[null,{"$f":"IF('Generated list'!B9376=\"\",\"\",'Generated list'!B9376)","v":""},{"$f":"IF('Generated list'!C9376=\"\",\"\",'Generated list'!C9376)","v":""},{"$f":"IF('Generated list'!D9376=\"\",\"\",'Generated list'!D9376)","v":""}]
[null,{"$f":"IF('Generated list'!B9377=\"\",\"\",'Generated list'!B9377)","v":""},{"$f":"IF('Generated list'!C9377=\"\",\"\",'Generated list'!C9377)","v":""},{"$f":"IF('Generated list'!D9377=\"\",\"\",'Generated list'!D9377)","v":""}]
[null,{"$f":"IF('Generated list'!B9378=\"\",\"\",'Generated list'!B9378)","v":""},{"$f":"IF('Generated list'!C9378=\"\",\"\",'Generated list'!C9378)","v":""},{"$f":"IF('Generated list'!D9378=\"\",\"\",'Generated list'!D9378)","v":""}]
[null,{"$f":"IF('Generated list'!B9379=\"\",\"\",'Generated list'!B9379)","v":""},{"$f":"IF('Generated list'!C9379=\"\",\"\",'Generated list'!C9379)","v":""},{"$f":"IF('Generated list'!D9379=\"\",\"\",'Generated list'!D9379)","v":""}]
[null,{"$f":"IF('Generated list'!B9380=\"\",\"\",'Generated list'!B9380)","v":""},{"$f":"IF('Generated list'!C9380=\"\",\"\",'Generated list'!C9380)","v":""},{"$f":"IF('Generated list'!D9380=\"\",\"\",'Generated list'!D9380)","v":""}]
[null,{"$f":"IF('Generated list'!B9381=\"\",\"\",'Generated list'!B9381)","v":""},{"$f":"IF('Generated list'!C9381=\"\",\"\",'Generated list'!C9381)","v":""},{"$f":"IF('Generated list'!D9381=\"\",\"\",'Generated list'!D9381)","v":""}]
[null,{"$f":"IF('Generated list'!B9382=\"\",\"\",'Generated list'!B9382)","v":""},{"$f":"IF('Generated list'!C9382=\"\",\"\",'Generated list'!C9382)","v":""},{"$f":"IF('Generated list'!D9382=\"\",\"\",'Generated list'!D9382)","v":""}]
[null,{"$f":"IF('Generated list'!B9383=\"\",\"\",'Generated list'!B9383)","v":""},{"$f":"IF('Generated list'!C9383=\"\",\"\",'Generated list'!C9383)","v":""},{"$f":"IF('Generated list'!D9383=\"\",\"\",'Generated list'!D9383)","v":""}]
[null,{"$f":"IF('Generated list'!B9384=\"\",\"\",'Generated list'!B9384)","v":""},{"$f":"IF('Generated list'!C9384=\"\",\"\",'Generated list'!C9384)","v":""},{"$f":"IF('Generated list'!D9384=\"\",\"\",'Generated list'!D9384)","v":""}]
[null,{"$f":"IF('Generated list'!B9385=\"\",\"\",'Generated list'!B9385)","v":""},{"$f":"IF('Generated list'!C9385=\"\",\"\",'Generated list'!C9385)","v":""},{"$f":"IF('Generated list'!D9385=\"\",\"\",'Generated list'!D9385)","v":""}]
[null,{"$f":"IF('Generated list'!B9386=\"\",\"\",'Generated list'!B9386)","v":""},{"$f":"IF('Generated list'!C9386=\"\",\"\",'Generated list'!C9386)","v":""},{"$f":"IF('Generated list'!D9386=\"\",\"\",'Generated list'!D9386)","v":""}]
[null,{"$f":"IF('Generated list'!B9387=\"\",\"\",'Generated list'!B9387)","v":""},{"$f":"IF('Generated list'!C9387=\"\",\"\",'Generated list'!C9387)","v":""},{"$f":"IF('Generated list'!D9387=\"\",\"\",'Generated list'!D9387)","v":""}]
[null,{"$f":"IF('Generated list'!B9388=\"\",\"\",'Generated list'!B9388)","v":""},{"$f":"IF('Generated list'!C9388=\"\",\"\",'Generated list'!C9388)","v":""},{"$f":"IF('Generated list'!D9388=\"\",\"\",'Generated list'!D9388)","v":""}]
[null,{"$f":"IF('Generated list'!B9389=\"\",\"\",'Generated list'!B9389)","v":""},{"$f":"IF('Generated list'!C9389=\"\",\"\",'Generated list'!C9389)","v":""},{"$f":"IF('Generated list'!D9389=\"\",\"\",'Generated list'!D9389)","v":""}]
[null,{"$f":"IF('Generated list'!B9390=\"\",\"\",'Generated list'!B9390)","v":""},{"$f":"IF('Generated list'!C9390=\"\",\"\",'Generated list'!C9390)","v":""},{"$f":"IF('Generated list'!D9390=\"\",\"\",'Generated list'!D9390)","v":""}]
[null,{"$f":"IF('Generated list'!B9391=\"\",\"\",'Generated list'!B9391)","v":""},{"$f":"IF('Generated list'!C9391=\"\",\"\",'Generated list'!C9391)","v":""},{"$f":"IF('Generated list'!D9391=\"\",\"\",'Generated list'!D9391)","v":""}]
[null,{"$f":"IF('Generated list'!B9392=\"\",\"\",'Generated list'!B9392)","v":""},{"$f":"IF('Generated list'!C9392=\"\",\"\",'Generated list'!C9392)","v":""},{"$f":"IF('Generated list'!D9392=\"\",\"\",'Generated list'!D9392)","v":""}]
[null,{"$f":"IF('Generated list'!B9393=\"\",\"\",'Generated list'!B9393)","v":""},{"$f":"IF('Generated list'!C9393=\"\",\"\",'Generated list'!C9393)","v":""},{"$f":"IF('Generated list'!D9393=\"\",\"\",'Generated list'!D9393)","v":""}]
[null,{"$f":"IF('Generated list'!B9394=\"\",\"\",'Generated list'!B9394)","v":""},{"$f":"IF('Generated list'!C9394=\"\",\"\",'Generated list'!C9394)","v":""},{"$f":"IF('Generated list'!D9394=\"\",\"\",'Generated list'!D9394)","v":""}]
[null,{"$f":"IF('Generated list'!B9395=\"\",\"\",'Generated list'!B9395)","v":""},{"$f":"IF('Generated list'!C9395=\"\",\"\",'Generated list'!C9395)","v":""},{"$f":"IF('Generated list'!D9395=\"\",\"\",'Generated list'!D9395)","v":""}]
[null,{"$f":"IF('Generated list'!B9396=\"\",\"\",'Generated list'!B9396)","v":""},{"$f":"IF('Generated list'!C9396=\"\",\"\",'Generated list'!C9396)","v":""},{"$f":"IF('Generated list'!D9396=\"\",\"\",'Generated list'!D9396)","v":""}]
[null,{"$f":"IF('Generated list'!B9397=\"\",\"\",'Generated list'!B9397)","v":""},{"$f":"IF('Generated list'!C9397=\"\",\"\",'Generated list'!C9397)","v":""},{"$f":"IF('Generated list'!D9397=\"\",\"\",'Generated list'!D9397)","v":""}]
[null,{"$f":"IF('Generated list'!B9398=\"\",\"\",'Generated list'!B9398)","v":""},{"$f":"IF('Generated list'!C9398=\"\",\"\",'Generated list'!C9398)","v":""},{"$f":"IF('Generated list'!D9398=\"\",\"\",'Generated list'!D9398)","v":""}]
[null,{"$f":"IF('Generated list'!B9399=\"\",\"\",'Generated list'!B9399)","v":""},{"$f":"IF('Generated list'!C9399=\"\",\"\",'Generated list'!C9399)","v":""},{"$f":"IF('Generated list'!D9399=\"\",\"\",'Generated list'!D9399)","v":""}]
[null,{"$f":"IF('Generated list'!B9400=\"\",\"\",'Generated list'!B9400)","v":""},{"$f":"IF('Generated list'!C9400=\"\",\"\",'Generated list'!C9400)","v":""},{"$f":"IF('Generated list'!D9400=\"\",\"\",'Generated list'!D9400)","v":""}]
[null,{"$f":"IF('Generated list'!B9401=\"\",\"\",'Generated list'!B9401)","v":""},{"$f":"IF('Generated list'!C9401=\"\",\"\",'Generated list'!C9401)","v":""},{"$f":"IF('Generated list'!D9401=\"\",\"\",'Generated list'!D9401)","v":""}]
[null,{"$f":"IF('Generated list'!B9402=\"\",\"\",'Generated list'!B9402)","v":""},{"$f":"IF('Generated list'!C9402=\"\",\"\",'Generated list'!C9402)","v":""},{"$f":"IF('Generated list'!D9402=\"\",\"\",'Generated list'!D9402)","v":""}]
[null,{"$f":"IF('Generated list'!B9403=\"\",\"\",'Generated list'!B9403)","v":""},{"$f":"IF('Generated list'!C9403=\"\",\"\",'Generated list'!C9403)","v":""},{"$f":"IF('Generated list'!D9403=\"\",\"\",'Generated list'!D9403)","v":""}]
[null,{"$f":"IF('Generated list'!B9404=\"\",\"\",'Generated list'!B9404)","v":""},{"$f":"IF('Generated list'!C9404=\"\",\"\",'Generated list'!C9404)","v":""},{"$f":"IF('Generated list'!D9404=\"\",\"\",'Generated list'!D9404)","v":""}]
[null,{"$f":"IF('Generated list'!B9405=\"\",\"\",'Generated list'!B9405)","v":""},{"$f":"IF('Generated list'!C9405=\"\",\"\",'Generated list'!C9405)","v":""},{"$f":"IF('Generated list'!D9405=\"\",\"\",'Generated list'!D9405)","v":""}]
[null,{"$f":"IF('Generated list'!B9406=\"\",\"\",'Generated list'!B9406)","v":""},{"$f":"IF('Generated list'!C9406=\"\",\"\",'Generated list'!C9406)","v":""},{"$f":"IF('Generated list'!D9406=\"\",\"\",'Generated list'!D9406)","v":""}]
[null,{"$f":"IF('Generated list'!B9407=\"\",\"\",'Generated list'!B9407)","v":""},{"$f":"IF('Generated list'!C9407=\"\",\"\",'Generated list'!C9407)","v":""},{"$f":"IF('Generated list'!D9407=\"\",\"\",'Generated list'!D9407)","v":""}]
[null,{"$f":"IF('Generated list'!B9408=\"\",\"\",'Generated list'!B9408)","v":""},{"$f":"IF('Generated list'!C9408=\"\",\"\",'Generated list'!C9408)","v":""},{"$f":"IF('Generated list'!D9408=\"\",\"\",'Generated list'!D9408)","v":""}]
[null,{"$f":"IF('Generated list'!B9409=\"\",\"\",'Generated list'!B9409)","v":""},{"$f":"IF('Generated list'!C9409=\"\",\"\",'Generated list'!C9409)","v":""},{"$f":"IF('Generated list'!D9409=\"\",\"\",'Generated list'!D9409)","v":""}]
[null,{"$f":"IF('Generated list'!B9410=\"\",\"\",'Generated list'!B9410)","v":""},{"$f":"IF('Generated list'!C9410=\"\",\"\",'Generated list'!C9410)","v":""},{"$f":"IF('Generated list'!D9410=\"\",\"\",'Generated list'!D9410)","v":""}]
[null,{"$f":"IF('Generated list'!B9411=\"\",\"\",'Generated list'!B9411)","v":""},{"$f":"IF('Generated list'!C9411=\"\",\"\",'Generated list'!C9411)","v":""},{"$f":"IF('Generated list'!D9411=\"\",\"\",'Generated list'!D9411)","v":""}]
[null,{"$f":"IF('Generated list'!B9412=\"\",\"\",'Generated list'!B9412)","v":""},{"$f":"IF('Generated list'!C9412=\"\",\"\",'Generated list'!C9412)","v":""},{"$f":"IF('Generated list'!D9412=\"\",\"\",'Generated list'!D9412)","v":""}]
[null,{"$f":"IF('Generated list'!B9413=\"\",\"\",'Generated list'!B9413)","v":""},{"$f":"IF('Generated list'!C9413=\"\",\"\",'Generated list'!C9413)","v":""},{"$f":"IF('Generated list'!D9413=\"\",\"\",'Generated list'!D9413)","v":""}]
[null,{"$f":"IF('Generated list'!B9414=\"\",\"\",'Generated list'!B9414)","v":""},{"$f":"IF('Generated list'!C9414=\"\",\"\",'Generated list'!C9414)","v":""},{"$f":"IF('Generated list'!D9414=\"\",\"\",'Generated list'!D9414)","v":""}]
[null,{"$f":"IF('Generated list'!B9415=\"\",\"\",'Generated list'!B9415)","v":""},{"$f":"IF('Generated list'!C9415=\"\",\"\",'Generated list'!C9415)","v":""},{"$f":"IF('Generated list'!D9415=\"\",\"\",'Generated list'!D9415)","v":""}]
[null,{"$f":"IF('Generated list'!B9416=\"\",\"\",'Generated list'!B9416)","v":""},{"$f":"IF('Generated list'!C9416=\"\",\"\",'Generated list'!C9416)","v":""},{"$f":"IF('Generated list'!D9416=\"\",\"\",'Generated list'!D9416)","v":""}]
[null,{"$f":"IF('Generated list'!B9417=\"\",\"\",'Generated list'!B9417)","v":""},{"$f":"IF('Generated list'!C9417=\"\",\"\",'Generated list'!C9417)","v":""},{"$f":"IF('Generated list'!D9417=\"\",\"\",'Generated list'!D9417)","v":""}]
[null,{"$f":"IF('Generated list'!B9418=\"\",\"\",'Generated list'!B9418)","v":""},{"$f":"IF('Generated list'!C9418=\"\",\"\",'Generated list'!C9418)","v":""},{"$f":"IF('Generated list'!D9418=\"\",\"\",'Generated list'!D9418)","v":""}]
[null,{"$f":"IF('Generated list'!B9419=\"\",\"\",'Generated list'!B9419)","v":""},{"$f":"IF('Generated list'!C9419=\"\",\"\",'Generated list'!C9419)","v":""},{"$f":"IF('Generated list'!D9419=\"\",\"\",'Generated list'!D9419)","v":""}]
[null,{"$f":"IF('Generated list'!B9420=\"\",\"\",'Generated list'!B9420)","v":""},{"$f":"IF('Generated list'!C9420=\"\",\"\",'Generated list'!C9420)","v":""},{"$f":"IF('Generated list'!D9420=\"\",\"\",'Generated list'!D9420)","v":""}]
[null,{"$f":"IF('Generated list'!B9421=\"\",\"\",'Generated list'!B9421)","v":""},{"$f":"IF('Generated list'!C9421=\"\",\"\",'Generated list'!C9421)","v":""},{"$f":"IF('Generated list'!D9421=\"\",\"\",'Generated list'!D9421)","v":""}]
[null,{"$f":"IF('Generated list'!B9422=\"\",\"\",'Generated list'!B9422)","v":""},{"$f":"IF('Generated list'!C9422=\"\",\"\",'Generated list'!C9422)","v":""},{"$f":"IF('Generated list'!D9422=\"\",\"\",'Generated list'!D9422)","v":""}]
[null,{"$f":"IF('Generated list'!B9423=\"\",\"\",'Generated list'!B9423)","v":""},{"$f":"IF('Generated list'!C9423=\"\",\"\",'Generated list'!C9423)","v":""},{"$f":"IF('Generated list'!D9423=\"\",\"\",'Generated list'!D9423)","v":""}]
[null,{"$f":"IF('Generated list'!B9424=\"\",\"\",'Generated list'!B9424)","v":""},{"$f":"IF('Generated list'!C9424=\"\",\"\",'Generated list'!C9424)","v":""},{"$f":"IF('Generated list'!D9424=\"\",\"\",'Generated list'!D9424)","v":""}]
[null,{"$f":"IF('Generated list'!B9425=\"\",\"\",'Generated list'!B9425)","v":""},{"$f":"IF('Generated list'!C9425=\"\",\"\",'Generated list'!C9425)","v":""},{"$f":"IF('Generated list'!D9425=\"\",\"\",'Generated list'!D9425)","v":""}]
[null,{"$f":"IF('Generated list'!B9426=\"\",\"\",'Generated list'!B9426)","v":""},{"$f":"IF('Generated list'!C9426=\"\",\"\",'Generated list'!C9426)","v":""},{"$f":"IF('Generated list'!D9426=\"\",\"\",'Generated list'!D9426)","v":""}]
[null,{"$f":"IF('Generated list'!B9427=\"\",\"\",'Generated list'!B9427)","v":""},{"$f":"IF('Generated list'!C9427=\"\",\"\",'Generated list'!C9427)","v":""},{"$f":"IF('Generated list'!D9427=\"\",\"\",'Generated list'!D9427)","v":""}]
[null,{"$f":"IF('Generated list'!B9428=\"\",\"\",'Generated list'!B9428)","v":""},{"$f":"IF('Generated list'!C9428=\"\",\"\",'Generated list'!C9428)","v":""},{"$f":"IF('Generated list'!D9428=\"\",\"\",'Generated list'!D9428)","v":""}]
[null,{"$f":"IF('Generated list'!B9429=\"\",\"\",'Generated list'!B9429)","v":""},{"$f":"IF('Generated list'!C9429=\"\",\"\",'Generated list'!C9429)","v":""},{"$f":"IF('Generated list'!D9429=\"\",\"\",'Generated list'!D9429)","v":""}]
[null,{"$f":"IF('Generated list'!B9430=\"\",\"\",'Generated list'!B9430)","v":""},{"$f":"IF('Generated list'!C9430=\"\",\"\",'Generated list'!C9430)","v":""},{"$f":"IF('Generated list'!D9430=\"\",\"\",'Generated list'!D9430)","v":""}]
[null,{"$f":"IF('Generated list'!B9431=\"\",\"\",'Generated list'!B9431)","v":""},{"$f":"IF('Generated list'!C9431=\"\",\"\",'Generated list'!C9431)","v":""},{"$f":"IF('Generated list'!D9431=\"\",\"\",'Generated list'!D9431)","v":""}]
[null,{"$f":"IF('Generated list'!B9432=\"\",\"\",'Generated list'!B9432)","v":""},{"$f":"IF('Generated list'!C9432=\"\",\"\",'Generated list'!C9432)","v":""},{"$f":"IF('Generated list'!D9432=\"\",\"\",'Generated list'!D9432)","v":""}]
[null,{"$f":"IF('Generated list'!B9433=\"\",\"\",'Generated list'!B9433)","v":""},{"$f":"IF('Generated list'!C9433=\"\",\"\",'Generated list'!C9433)","v":""},{"$f":"IF('Generated list'!D9433=\"\",\"\",'Generated list'!D9433)","v":""}]
[null,{"$f":"IF('Generated list'!B9434=\"\",\"\",'Generated list'!B9434)","v":""},{"$f":"IF('Generated list'!C9434=\"\",\"\",'Generated list'!C9434)","v":""},{"$f":"IF('Generated list'!D9434=\"\",\"\",'Generated list'!D9434)","v":""}]
[null,{"$f":"IF('Generated list'!B9435=\"\",\"\",'Generated list'!B9435)","v":""},{"$f":"IF('Generated list'!C9435=\"\",\"\",'Generated list'!C9435)","v":""},{"$f":"IF('Generated list'!D9435=\"\",\"\",'Generated list'!D9435)","v":""}]
[null,{"$f":"IF('Generated list'!B9436=\"\",\"\",'Generated list'!B9436)","v":""},{"$f":"IF('Generated list'!C9436=\"\",\"\",'Generated list'!C9436)","v":""},{"$f":"IF('Generated list'!D9436=\"\",\"\",'Generated list'!D9436)","v":""}]
[null,{"$f":"IF('Generated list'!B9437=\"\",\"\",'Generated list'!B9437)","v":""},{"$f":"IF('Generated list'!C9437=\"\",\"\",'Generated list'!C9437)","v":""},{"$f":"IF('Generated list'!D9437=\"\",\"\",'Generated list'!D9437)","v":""}]
[null,{"$f":"IF('Generated list'!B9438=\"\",\"\",'Generated list'!B9438)","v":""},{"$f":"IF('Generated list'!C9438=\"\",\"\",'Generated list'!C9438)","v":""},{"$f":"IF('Generated list'!D9438=\"\",\"\",'Generated list'!D9438)","v":""}]
[null,{"$f":"IF('Generated list'!B9439=\"\",\"\",'Generated list'!B9439)","v":""},{"$f":"IF('Generated list'!C9439=\"\",\"\",'Generated list'!C9439)","v":""},{"$f":"IF('Generated list'!D9439=\"\",\"\",'Generated list'!D9439)","v":""}]
[null,{"$f":"IF('Generated list'!B9440=\"\",\"\",'Generated list'!B9440)","v":""},{"$f":"IF('Generated list'!C9440=\"\",\"\",'Generated list'!C9440)","v":""},{"$f":"IF('Generated list'!D9440=\"\",\"\",'Generated list'!D9440)","v":""}]
[null,{"$f":"IF('Generated list'!B9441=\"\",\"\",'Generated list'!B9441)","v":""},{"$f":"IF('Generated list'!C9441=\"\",\"\",'Generated list'!C9441)","v":""},{"$f":"IF('Generated list'!D9441=\"\",\"\",'Generated list'!D9441)","v":""}]
[null,{"$f":"IF('Generated list'!B9442=\"\",\"\",'Generated list'!B9442)","v":""},{"$f":"IF('Generated list'!C9442=\"\",\"\",'Generated list'!C9442)","v":""},{"$f":"IF('Generated list'!D9442=\"\",\"\",'Generated list'!D9442)","v":""}]
[null,{"$f":"IF('Generated list'!B9443=\"\",\"\",'Generated list'!B9443)","v":""},{"$f":"IF('Generated list'!C9443=\"\",\"\",'Generated list'!C9443)","v":""},{"$f":"IF('Generated list'!D9443=\"\",\"\",'Generated list'!D9443)","v":""}]
[null,{"$f":"IF('Generated list'!B9444=\"\",\"\",'Generated list'!B9444)","v":""},{"$f":"IF('Generated list'!C9444=\"\",\"\",'Generated list'!C9444)","v":""},{"$f":"IF('Generated list'!D9444=\"\",\"\",'Generated list'!D9444)","v":""}]
[null,{"$f":"IF('Generated list'!B9445=\"\",\"\",'Generated list'!B9445)","v":""},{"$f":"IF('Generated list'!C9445=\"\",\"\",'Generated list'!C9445)","v":""},{"$f":"IF('Generated list'!D9445=\"\",\"\",'Generated list'!D9445)","v":""}]
[null,{"$f":"IF('Generated list'!B9446=\"\",\"\",'Generated list'!B9446)","v":""},{"$f":"IF('Generated list'!C9446=\"\",\"\",'Generated list'!C9446)","v":""},{"$f":"IF('Generated list'!D9446=\"\",\"\",'Generated list'!D9446)","v":""}]
[null,{"$f":"IF('Generated list'!B9447=\"\",\"\",'Generated list'!B9447)","v":""},{"$f":"IF('Generated list'!C9447=\"\",\"\",'Generated list'!C9447)","v":""},{"$f":"IF('Generated list'!D9447=\"\",\"\",'Generated list'!D9447)","v":""}]
[null,{"$f":"IF('Generated list'!B9448=\"\",\"\",'Generated list'!B9448)","v":""},{"$f":"IF('Generated list'!C9448=\"\",\"\",'Generated list'!C9448)","v":""},{"$f":"IF('Generated list'!D9448=\"\",\"\",'Generated list'!D9448)","v":""}]
[null,{"$f":"IF('Generated list'!B9449=\"\",\"\",'Generated list'!B9449)","v":""},{"$f":"IF('Generated list'!C9449=\"\",\"\",'Generated list'!C9449)","v":""},{"$f":"IF('Generated list'!D9449=\"\",\"\",'Generated list'!D9449)","v":""}]
[null,{"$f":"IF('Generated list'!B9450=\"\",\"\",'Generated list'!B9450)","v":""},{"$f":"IF('Generated list'!C9450=\"\",\"\",'Generated list'!C9450)","v":""},{"$f":"IF('Generated list'!D9450=\"\",\"\",'Generated list'!D9450)","v":""}]
[null,{"$f":"IF('Generated list'!B9451=\"\",\"\",'Generated list'!B9451)","v":""},{"$f":"IF('Generated list'!C9451=\"\",\"\",'Generated list'!C9451)","v":""},{"$f":"IF('Generated list'!D9451=\"\",\"\",'Generated list'!D9451)","v":""}]
[null,{"$f":"IF('Generated list'!B9452=\"\",\"\",'Generated list'!B9452)","v":""},{"$f":"IF('Generated list'!C9452=\"\",\"\",'Generated list'!C9452)","v":""},{"$f":"IF('Generated list'!D9452=\"\",\"\",'Generated list'!D9452)","v":""}]
[null,{"$f":"IF('Generated list'!B9453=\"\",\"\",'Generated list'!B9453)","v":""},{"$f":"IF('Generated list'!C9453=\"\",\"\",'Generated list'!C9453)","v":""},{"$f":"IF('Generated list'!D9453=\"\",\"\",'Generated list'!D9453)","v":""}]
[null,{"$f":"IF('Generated list'!B9454=\"\",\"\",'Generated list'!B9454)","v":""},{"$f":"IF('Generated list'!C9454=\"\",\"\",'Generated list'!C9454)","v":""},{"$f":"IF('Generated list'!D9454=\"\",\"\",'Generated list'!D9454)","v":""}]
[null,{"$f":"IF('Generated list'!B9455=\"\",\"\",'Generated list'!B9455)","v":""},{"$f":"IF('Generated list'!C9455=\"\",\"\",'Generated list'!C9455)","v":""},{"$f":"IF('Generated list'!D9455=\"\",\"\",'Generated list'!D9455)","v":""}]
[null,{"$f":"IF('Generated list'!B9456=\"\",\"\",'Generated list'!B9456)","v":""},{"$f":"IF('Generated list'!C9456=\"\",\"\",'Generated list'!C9456)","v":""},{"$f":"IF('Generated list'!D9456=\"\",\"\",'Generated list'!D9456)","v":""}]
[null,{"$f":"IF('Generated list'!B9457=\"\",\"\",'Generated list'!B9457)","v":""},{"$f":"IF('Generated list'!C9457=\"\",\"\",'Generated list'!C9457)","v":""},{"$f":"IF('Generated list'!D9457=\"\",\"\",'Generated list'!D9457)","v":""}]
[null,{"$f":"IF('Generated list'!B9458=\"\",\"\",'Generated list'!B9458)","v":""},{"$f":"IF('Generated list'!C9458=\"\",\"\",'Generated list'!C9458)","v":""},{"$f":"IF('Generated list'!D9458=\"\",\"\",'Generated list'!D9458)","v":""}]
[null,{"$f":"IF('Generated list'!B9459=\"\",\"\",'Generated list'!B9459)","v":""},{"$f":"IF('Generated list'!C9459=\"\",\"\",'Generated list'!C9459)","v":""},{"$f":"IF('Generated list'!D9459=\"\",\"\",'Generated list'!D9459)","v":""}]
[null,{"$f":"IF('Generated list'!B9460=\"\",\"\",'Generated list'!B9460)","v":""},{"$f":"IF('Generated list'!C9460=\"\",\"\",'Generated list'!C9460)","v":""},{"$f":"IF('Generated list'!D9460=\"\",\"\",'Generated list'!D9460)","v":""}]
[null,{"$f":"IF('Generated list'!B9461=\"\",\"\",'Generated list'!B9461)","v":""},{"$f":"IF('Generated list'!C9461=\"\",\"\",'Generated list'!C9461)","v":""},{"$f":"IF('Generated list'!D9461=\"\",\"\",'Generated list'!D9461)","v":""}]
[null,{"$f":"IF('Generated list'!B9462=\"\",\"\",'Generated list'!B9462)","v":""},{"$f":"IF('Generated list'!C9462=\"\",\"\",'Generated list'!C9462)","v":""},{"$f":"IF('Generated list'!D9462=\"\",\"\",'Generated list'!D9462)","v":""}]
[null,{"$f":"IF('Generated list'!B9463=\"\",\"\",'Generated list'!B9463)","v":""},{"$f":"IF('Generated list'!C9463=\"\",\"\",'Generated list'!C9463)","v":""},{"$f":"IF('Generated list'!D9463=\"\",\"\",'Generated list'!D9463)","v":""}]
[null,{"$f":"IF('Generated list'!B9464=\"\",\"\",'Generated list'!B9464)","v":""},{"$f":"IF('Generated list'!C9464=\"\",\"\",'Generated list'!C9464)","v":""},{"$f":"IF('Generated list'!D9464=\"\",\"\",'Generated list'!D9464)","v":""}]
[null,{"$f":"IF('Generated list'!B9465=\"\",\"\",'Generated list'!B9465)","v":""},{"$f":"IF('Generated list'!C9465=\"\",\"\",'Generated list'!C9465)","v":""},{"$f":"IF('Generated list'!D9465=\"\",\"\",'Generated list'!D9465)","v":""}]
[null,{"$f":"IF('Generated list'!B9466=\"\",\"\",'Generated list'!B9466)","v":""},{"$f":"IF('Generated list'!C9466=\"\",\"\",'Generated list'!C9466)","v":""},{"$f":"IF('Generated list'!D9466=\"\",\"\",'Generated list'!D9466)","v":""}]
[null,{"$f":"IF('Generated list'!B9467=\"\",\"\",'Generated list'!B9467)","v":""},{"$f":"IF('Generated list'!C9467=\"\",\"\",'Generated list'!C9467)","v":""},{"$f":"IF('Generated list'!D9467=\"\",\"\",'Generated list'!D9467)","v":""}]
[null,{"$f":"IF('Generated list'!B9468=\"\",\"\",'Generated list'!B9468)","v":""},{"$f":"IF('Generated list'!C9468=\"\",\"\",'Generated list'!C9468)","v":""},{"$f":"IF('Generated list'!D9468=\"\",\"\",'Generated list'!D9468)","v":""}]
[null,{"$f":"IF('Generated list'!B9469=\"\",\"\",'Generated list'!B9469)","v":""},{"$f":"IF('Generated list'!C9469=\"\",\"\",'Generated list'!C9469)","v":""},{"$f":"IF('Generated list'!D9469=\"\",\"\",'Generated list'!D9469)","v":""}]
[null,{"$f":"IF('Generated list'!B9470=\"\",\"\",'Generated list'!B9470)","v":""},{"$f":"IF('Generated list'!C9470=\"\",\"\",'Generated list'!C9470)","v":""},{"$f":"IF('Generated list'!D9470=\"\",\"\",'Generated list'!D9470)","v":""}]
[null,{"$f":"IF('Generated list'!B9471=\"\",\"\",'Generated list'!B9471)","v":""},{"$f":"IF('Generated list'!C9471=\"\",\"\",'Generated list'!C9471)","v":""},{"$f":"IF('Generated list'!D9471=\"\",\"\",'Generated list'!D9471)","v":""}]
[null,{"$f":"IF('Generated list'!B9472=\"\",\"\",'Generated list'!B9472)","v":""},{"$f":"IF('Generated list'!C9472=\"\",\"\",'Generated list'!C9472)","v":""},{"$f":"IF('Generated list'!D9472=\"\",\"\",'Generated list'!D9472)","v":""}]
[null,{"$f":"IF('Generated list'!B9473=\"\",\"\",'Generated list'!B9473)","v":""},{"$f":"IF('Generated list'!C9473=\"\",\"\",'Generated list'!C9473)","v":""},{"$f":"IF('Generated list'!D9473=\"\",\"\",'Generated list'!D9473)","v":""}]
[null,{"$f":"IF('Generated list'!B9474=\"\",\"\",'Generated list'!B9474)","v":""},{"$f":"IF('Generated list'!C9474=\"\",\"\",'Generated list'!C9474)","v":""},{"$f":"IF('Generated list'!D9474=\"\",\"\",'Generated list'!D9474)","v":""}]
[null,{"$f":"IF('Generated list'!B9475=\"\",\"\",'Generated list'!B9475)","v":""},{"$f":"IF('Generated list'!C9475=\"\",\"\",'Generated list'!C9475)","v":""},{"$f":"IF('Generated list'!D9475=\"\",\"\",'Generated list'!D9475)","v":""}]
[null,{"$f":"IF('Generated list'!B9476=\"\",\"\",'Generated list'!B9476)","v":""},{"$f":"IF('Generated list'!C9476=\"\",\"\",'Generated list'!C9476)","v":""},{"$f":"IF('Generated list'!D9476=\"\",\"\",'Generated list'!D9476)","v":""}]
[null,{"$f":"IF('Generated list'!B9477=\"\",\"\",'Generated list'!B9477)","v":""},{"$f":"IF('Generated list'!C9477=\"\",\"\",'Generated list'!C9477)","v":""},{"$f":"IF('Generated list'!D9477=\"\",\"\",'Generated list'!D9477)","v":""}]
[null,{"$f":"IF('Generated list'!B9478=\"\",\"\",'Generated list'!B9478)","v":""},{"$f":"IF('Generated list'!C9478=\"\",\"\",'Generated list'!C9478)","v":""},{"$f":"IF('Generated list'!D9478=\"\",\"\",'Generated list'!D9478)","v":""}]
[null,{"$f":"IF('Generated list'!B9479=\"\",\"\",'Generated list'!B9479)","v":""},{"$f":"IF('Generated list'!C9479=\"\",\"\",'Generated list'!C9479)","v":""},{"$f":"IF('Generated list'!D9479=\"\",\"\",'Generated list'!D9479)","v":""}]
[null,{"$f":"IF('Generated list'!B9480=\"\",\"\",'Generated list'!B9480)","v":""},{"$f":"IF('Generated list'!C9480=\"\",\"\",'Generated list'!C9480)","v":""},{"$f":"IF('Generated list'!D9480=\"\",\"\",'Generated list'!D9480)","v":""}]
[null,{"$f":"IF('Generated list'!B9481=\"\",\"\",'Generated list'!B9481)","v":""},{"$f":"IF('Generated list'!C9481=\"\",\"\",'Generated list'!C9481)","v":""},{"$f":"IF('Generated list'!D9481=\"\",\"\",'Generated list'!D9481)","v":""}]
[null,{"$f":"IF('Generated list'!B9482=\"\",\"\",'Generated list'!B9482)","v":""},{"$f":"IF('Generated list'!C9482=\"\",\"\",'Generated list'!C9482)","v":""},{"$f":"IF('Generated list'!D9482=\"\",\"\",'Generated list'!D9482)","v":""}]
[null,{"$f":"IF('Generated list'!B9483=\"\",\"\",'Generated list'!B9483)","v":""},{"$f":"IF('Generated list'!C9483=\"\",\"\",'Generated list'!C9483)","v":""},{"$f":"IF('Generated list'!D9483=\"\",\"\",'Generated list'!D9483)","v":""}]
[null,{"$f":"IF('Generated list'!B9484=\"\",\"\",'Generated list'!B9484)","v":""},{"$f":"IF('Generated list'!C9484=\"\",\"\",'Generated list'!C9484)","v":""},{"$f":"IF('Generated list'!D9484=\"\",\"\",'Generated list'!D9484)","v":""}]
[null,{"$f":"IF('Generated list'!B9485=\"\",\"\",'Generated list'!B9485)","v":""},{"$f":"IF('Generated list'!C9485=\"\",\"\",'Generated list'!C9485)","v":""},{"$f":"IF('Generated list'!D9485=\"\",\"\",'Generated list'!D9485)","v":""}]
[null,{"$f":"IF('Generated list'!B9486=\"\",\"\",'Generated list'!B9486)","v":""},{"$f":"IF('Generated list'!C9486=\"\",\"\",'Generated list'!C9486)","v":""},{"$f":"IF('Generated list'!D9486=\"\",\"\",'Generated list'!D9486)","v":""}]
[null,{"$f":"IF('Generated list'!B9487=\"\",\"\",'Generated list'!B9487)","v":""},{"$f":"IF('Generated list'!C9487=\"\",\"\",'Generated list'!C9487)","v":""},{"$f":"IF('Generated list'!D9487=\"\",\"\",'Generated list'!D9487)","v":""}]
[null,{"$f":"IF('Generated list'!B9488=\"\",\"\",'Generated list'!B9488)","v":""},{"$f":"IF('Generated list'!C9488=\"\",\"\",'Generated list'!C9488)","v":""},{"$f":"IF('Generated list'!D9488=\"\",\"\",'Generated list'!D9488)","v":""}]
[null,{"$f":"IF('Generated list'!B9489=\"\",\"\",'Generated list'!B9489)","v":""},{"$f":"IF('Generated list'!C9489=\"\",\"\",'Generated list'!C9489)","v":""},{"$f":"IF('Generated list'!D9489=\"\",\"\",'Generated list'!D9489)","v":""}]
[null,{"$f":"IF('Generated list'!B9490=\"\",\"\",'Generated list'!B9490)","v":""},{"$f":"IF('Generated list'!C9490=\"\",\"\",'Generated list'!C9490)","v":""},{"$f":"IF('Generated list'!D9490=\"\",\"\",'Generated list'!D9490)","v":""}]
[null,{"$f":"IF('Generated list'!B9491=\"\",\"\",'Generated list'!B9491)","v":""},{"$f":"IF('Generated list'!C9491=\"\",\"\",'Generated list'!C9491)","v":""},{"$f":"IF('Generated list'!D9491=\"\",\"\",'Generated list'!D9491)","v":""}]
[null,{"$f":"IF('Generated list'!B9492=\"\",\"\",'Generated list'!B9492)","v":""},{"$f":"IF('Generated list'!C9492=\"\",\"\",'Generated list'!C9492)","v":""},{"$f":"IF('Generated list'!D9492=\"\",\"\",'Generated list'!D9492)","v":""}]
[null,{"$f":"IF('Generated list'!B9493=\"\",\"\",'Generated list'!B9493)","v":""},{"$f":"IF('Generated list'!C9493=\"\",\"\",'Generated list'!C9493)","v":""},{"$f":"IF('Generated list'!D9493=\"\",\"\",'Generated list'!D9493)","v":""}]
[null,{"$f":"IF('Generated list'!B9494=\"\",\"\",'Generated list'!B9494)","v":""},{"$f":"IF('Generated list'!C9494=\"\",\"\",'Generated list'!C9494)","v":""},{"$f":"IF('Generated list'!D9494=\"\",\"\",'Generated list'!D9494)","v":""}]
[null,{"$f":"IF('Generated list'!B9495=\"\",\"\",'Generated list'!B9495)","v":""},{"$f":"IF('Generated list'!C9495=\"\",\"\",'Generated list'!C9495)","v":""},{"$f":"IF('Generated list'!D9495=\"\",\"\",'Generated list'!D9495)","v":""}]
[null,{"$f":"IF('Generated list'!B9496=\"\",\"\",'Generated list'!B9496)","v":""},{"$f":"IF('Generated list'!C9496=\"\",\"\",'Generated list'!C9496)","v":""},{"$f":"IF('Generated list'!D9496=\"\",\"\",'Generated list'!D9496)","v":""}]
[null,{"$f":"IF('Generated list'!B9497=\"\",\"\",'Generated list'!B9497)","v":""},{"$f":"IF('Generated list'!C9497=\"\",\"\",'Generated list'!C9497)","v":""},{"$f":"IF('Generated list'!D9497=\"\",\"\",'Generated list'!D9497)","v":""}]
[null,{"$f":"IF('Generated list'!B9498=\"\",\"\",'Generated list'!B9498)","v":""},{"$f":"IF('Generated list'!C9498=\"\",\"\",'Generated list'!C9498)","v":""},{"$f":"IF('Generated list'!D9498=\"\",\"\",'Generated list'!D9498)","v":""}]
[null,{"$f":"IF('Generated list'!B9499=\"\",\"\",'Generated list'!B9499)","v":""},{"$f":"IF('Generated list'!C9499=\"\",\"\",'Generated list'!C9499)","v":""},{"$f":"IF('Generated list'!D9499=\"\",\"\",'Generated list'!D9499)","v":""}]
[null,{"$f":"IF('Generated list'!B9500=\"\",\"\",'Generated list'!B9500)","v":""},{"$f":"IF('Generated list'!C9500=\"\",\"\",'Generated list'!C9500)","v":""},{"$f":"IF('Generated list'!D9500=\"\",\"\",'Generated list'!D9500)","v":""}]
[null,{"$f":"IF('Generated list'!B9501=\"\",\"\",'Generated list'!B9501)","v":""},{"$f":"IF('Generated list'!C9501=\"\",\"\",'Generated list'!C9501)","v":""},{"$f":"IF('Generated list'!D9501=\"\",\"\",'Generated list'!D9501)","v":""}]
[null,{"$f":"IF('Generated list'!B9502=\"\",\"\",'Generated list'!B9502)","v":""},{"$f":"IF('Generated list'!C9502=\"\",\"\",'Generated list'!C9502)","v":""},{"$f":"IF('Generated list'!D9502=\"\",\"\",'Generated list'!D9502)","v":""}]
[null,{"$f":"IF('Generated list'!B9503=\"\",\"\",'Generated list'!B9503)","v":""},{"$f":"IF('Generated list'!C9503=\"\",\"\",'Generated list'!C9503)","v":""},{"$f":"IF('Generated list'!D9503=\"\",\"\",'Generated list'!D9503)","v":""}]
[null,{"$f":"IF('Generated list'!B9504=\"\",\"\",'Generated list'!B9504)","v":""},{"$f":"IF('Generated list'!C9504=\"\",\"\",'Generated list'!C9504)","v":""},{"$f":"IF('Generated list'!D9504=\"\",\"\",'Generated list'!D9504)","v":""}]
[null,{"$f":"IF('Generated list'!B9505=\"\",\"\",'Generated list'!B9505)","v":""},{"$f":"IF('Generated list'!C9505=\"\",\"\",'Generated list'!C9505)","v":""},{"$f":"IF('Generated list'!D9505=\"\",\"\",'Generated list'!D9505)","v":""}]
[null,{"$f":"IF('Generated list'!B9506=\"\",\"\",'Generated list'!B9506)","v":""},{"$f":"IF('Generated list'!C9506=\"\",\"\",'Generated list'!C9506)","v":""},{"$f":"IF('Generated list'!D9506=\"\",\"\",'Generated list'!D9506)","v":""}]
[null,{"$f":"IF('Generated list'!B9507=\"\",\"\",'Generated list'!B9507)","v":""},{"$f":"IF('Generated list'!C9507=\"\",\"\",'Generated list'!C9507)","v":""},{"$f":"IF('Generated list'!D9507=\"\",\"\",'Generated list'!D9507)","v":""}]
[null,{"$f":"IF('Generated list'!B9508=\"\",\"\",'Generated list'!B9508)","v":""},{"$f":"IF('Generated list'!C9508=\"\",\"\",'Generated list'!C9508)","v":""},{"$f":"IF('Generated list'!D9508=\"\",\"\",'Generated list'!D9508)","v":""}]
[null,{"$f":"IF('Generated list'!B9509=\"\",\"\",'Generated list'!B9509)","v":""},{"$f":"IF('Generated list'!C9509=\"\",\"\",'Generated list'!C9509)","v":""},{"$f":"IF('Generated list'!D9509=\"\",\"\",'Generated list'!D9509)","v":""}]
[null,{"$f":"IF('Generated list'!B9510=\"\",\"\",'Generated list'!B9510)","v":""},{"$f":"IF('Generated list'!C9510=\"\",\"\",'Generated list'!C9510)","v":""},{"$f":"IF('Generated list'!D9510=\"\",\"\",'Generated list'!D9510)","v":""}]
[null,{"$f":"IF('Generated list'!B9511=\"\",\"\",'Generated list'!B9511)","v":""},{"$f":"IF('Generated list'!C9511=\"\",\"\",'Generated list'!C9511)","v":""},{"$f":"IF('Generated list'!D9511=\"\",\"\",'Generated list'!D9511)","v":""}]
[null,{"$f":"IF('Generated list'!B9512=\"\",\"\",'Generated list'!B9512)","v":""},{"$f":"IF('Generated list'!C9512=\"\",\"\",'Generated list'!C9512)","v":""},{"$f":"IF('Generated list'!D9512=\"\",\"\",'Generated list'!D9512)","v":""}]
[null,{"$f":"IF('Generated list'!B9513=\"\",\"\",'Generated list'!B9513)","v":""},{"$f":"IF('Generated list'!C9513=\"\",\"\",'Generated list'!C9513)","v":""},{"$f":"IF('Generated list'!D9513=\"\",\"\",'Generated list'!D9513)","v":""}]
[null,{"$f":"IF('Generated list'!B9514=\"\",\"\",'Generated list'!B9514)","v":""},{"$f":"IF('Generated list'!C9514=\"\",\"\",'Generated list'!C9514)","v":""},{"$f":"IF('Generated list'!D9514=\"\",\"\",'Generated list'!D9514)","v":""}]
[null,{"$f":"IF('Generated list'!B9515=\"\",\"\",'Generated list'!B9515)","v":""},{"$f":"IF('Generated list'!C9515=\"\",\"\",'Generated list'!C9515)","v":""},{"$f":"IF('Generated list'!D9515=\"\",\"\",'Generated list'!D9515)","v":""}]
[null,{"$f":"IF('Generated list'!B9516=\"\",\"\",'Generated list'!B9516)","v":""},{"$f":"IF('Generated list'!C9516=\"\",\"\",'Generated list'!C9516)","v":""},{"$f":"IF('Generated list'!D9516=\"\",\"\",'Generated list'!D9516)","v":""}]
[null,{"$f":"IF('Generated list'!B9517=\"\",\"\",'Generated list'!B9517)","v":""},{"$f":"IF('Generated list'!C9517=\"\",\"\",'Generated list'!C9517)","v":""},{"$f":"IF('Generated list'!D9517=\"\",\"\",'Generated list'!D9517)","v":""}]
[null,{"$f":"IF('Generated list'!B9518=\"\",\"\",'Generated list'!B9518)","v":""},{"$f":"IF('Generated list'!C9518=\"\",\"\",'Generated list'!C9518)","v":""},{"$f":"IF('Generated list'!D9518=\"\",\"\",'Generated list'!D9518)","v":""}]
[null,{"$f":"IF('Generated list'!B9519=\"\",\"\",'Generated list'!B9519)","v":""},{"$f":"IF('Generated list'!C9519=\"\",\"\",'Generated list'!C9519)","v":""},{"$f":"IF('Generated list'!D9519=\"\",\"\",'Generated list'!D9519)","v":""}]
[null,{"$f":"IF('Generated list'!B9520=\"\",\"\",'Generated list'!B9520)","v":""},{"$f":"IF('Generated list'!C9520=\"\",\"\",'Generated list'!C9520)","v":""},{"$f":"IF('Generated list'!D9520=\"\",\"\",'Generated list'!D9520)","v":""}]
[null,{"$f":"IF('Generated list'!B9521=\"\",\"\",'Generated list'!B9521)","v":""},{"$f":"IF('Generated list'!C9521=\"\",\"\",'Generated list'!C9521)","v":""},{"$f":"IF('Generated list'!D9521=\"\",\"\",'Generated list'!D9521)","v":""}]
[null,{"$f":"IF('Generated list'!B9522=\"\",\"\",'Generated list'!B9522)","v":""},{"$f":"IF('Generated list'!C9522=\"\",\"\",'Generated list'!C9522)","v":""},{"$f":"IF('Generated list'!D9522=\"\",\"\",'Generated list'!D9522)","v":""}]
[null,{"$f":"IF('Generated list'!B9523=\"\",\"\",'Generated list'!B9523)","v":""},{"$f":"IF('Generated list'!C9523=\"\",\"\",'Generated list'!C9523)","v":""},{"$f":"IF('Generated list'!D9523=\"\",\"\",'Generated list'!D9523)","v":""}]
[null,{"$f":"IF('Generated list'!B9524=\"\",\"\",'Generated list'!B9524)","v":""},{"$f":"IF('Generated list'!C9524=\"\",\"\",'Generated list'!C9524)","v":""},{"$f":"IF('Generated list'!D9524=\"\",\"\",'Generated list'!D9524)","v":""}]
[null,{"$f":"IF('Generated list'!B9525=\"\",\"\",'Generated list'!B9525)","v":""},{"$f":"IF('Generated list'!C9525=\"\",\"\",'Generated list'!C9525)","v":""},{"$f":"IF('Generated list'!D9525=\"\",\"\",'Generated list'!D9525)","v":""}]
[null,{"$f":"IF('Generated list'!B9526=\"\",\"\",'Generated list'!B9526)","v":""},{"$f":"IF('Generated list'!C9526=\"\",\"\",'Generated list'!C9526)","v":""},{"$f":"IF('Generated list'!D9526=\"\",\"\",'Generated list'!D9526)","v":""}]
[null,{"$f":"IF('Generated list'!B9527=\"\",\"\",'Generated list'!B9527)","v":""},{"$f":"IF('Generated list'!C9527=\"\",\"\",'Generated list'!C9527)","v":""},{"$f":"IF('Generated list'!D9527=\"\",\"\",'Generated list'!D9527)","v":""}]
[null,{"$f":"IF('Generated list'!B9528=\"\",\"\",'Generated list'!B9528)","v":""},{"$f":"IF('Generated list'!C9528=\"\",\"\",'Generated list'!C9528)","v":""},{"$f":"IF('Generated list'!D9528=\"\",\"\",'Generated list'!D9528)","v":""}]
[null,{"$f":"IF('Generated list'!B9529=\"\",\"\",'Generated list'!B9529)","v":""},{"$f":"IF('Generated list'!C9529=\"\",\"\",'Generated list'!C9529)","v":""},{"$f":"IF('Generated list'!D9529=\"\",\"\",'Generated list'!D9529)","v":""}]
[null,{"$f":"IF('Generated list'!B9530=\"\",\"\",'Generated list'!B9530)","v":""},{"$f":"IF('Generated list'!C9530=\"\",\"\",'Generated list'!C9530)","v":""},{"$f":"IF('Generated list'!D9530=\"\",\"\",'Generated list'!D9530)","v":""}]
[null,{"$f":"IF('Generated list'!B9531=\"\",\"\",'Generated list'!B9531)","v":""},{"$f":"IF('Generated list'!C9531=\"\",\"\",'Generated list'!C9531)","v":""},{"$f":"IF('Generated list'!D9531=\"\",\"\",'Generated list'!D9531)","v":""}]
[null,{"$f":"IF('Generated list'!B9532=\"\",\"\",'Generated list'!B9532)","v":""},{"$f":"IF('Generated list'!C9532=\"\",\"\",'Generated list'!C9532)","v":""},{"$f":"IF('Generated list'!D9532=\"\",\"\",'Generated list'!D9532)","v":""}]
[null,{"$f":"IF('Generated list'!B9533=\"\",\"\",'Generated list'!B9533)","v":""},{"$f":"IF('Generated list'!C9533=\"\",\"\",'Generated list'!C9533)","v":""},{"$f":"IF('Generated list'!D9533=\"\",\"\",'Generated list'!D9533)","v":""}]
[null,{"$f":"IF('Generated list'!B9534=\"\",\"\",'Generated list'!B9534)","v":""},{"$f":"IF('Generated list'!C9534=\"\",\"\",'Generated list'!C9534)","v":""},{"$f":"IF('Generated list'!D9534=\"\",\"\",'Generated list'!D9534)","v":""}]
[null,{"$f":"IF('Generated list'!B9535=\"\",\"\",'Generated list'!B9535)","v":""},{"$f":"IF('Generated list'!C9535=\"\",\"\",'Generated list'!C9535)","v":""},{"$f":"IF('Generated list'!D9535=\"\",\"\",'Generated list'!D9535)","v":""}]
[null,{"$f":"IF('Generated list'!B9536=\"\",\"\",'Generated list'!B9536)","v":""},{"$f":"IF('Generated list'!C9536=\"\",\"\",'Generated list'!C9536)","v":""},{"$f":"IF('Generated list'!D9536=\"\",\"\",'Generated list'!D9536)","v":""}]
[null,{"$f":"IF('Generated list'!B9537=\"\",\"\",'Generated list'!B9537)","v":""},{"$f":"IF('Generated list'!C9537=\"\",\"\",'Generated list'!C9537)","v":""},{"$f":"IF('Generated list'!D9537=\"\",\"\",'Generated list'!D9537)","v":""}]
[null,{"$f":"IF('Generated list'!B9538=\"\",\"\",'Generated list'!B9538)","v":""},{"$f":"IF('Generated list'!C9538=\"\",\"\",'Generated list'!C9538)","v":""},{"$f":"IF('Generated list'!D9538=\"\",\"\",'Generated list'!D9538)","v":""}]
[null,{"$f":"IF('Generated list'!B9539=\"\",\"\",'Generated list'!B9539)","v":""},{"$f":"IF('Generated list'!C9539=\"\",\"\",'Generated list'!C9539)","v":""},{"$f":"IF('Generated list'!D9539=\"\",\"\",'Generated list'!D9539)","v":""}]
[null,{"$f":"IF('Generated list'!B9540=\"\",\"\",'Generated list'!B9540)","v":""},{"$f":"IF('Generated list'!C9540=\"\",\"\",'Generated list'!C9540)","v":""},{"$f":"IF('Generated list'!D9540=\"\",\"\",'Generated list'!D9540)","v":""}]
[null,{"$f":"IF('Generated list'!B9541=\"\",\"\",'Generated list'!B9541)","v":""},{"$f":"IF('Generated list'!C9541=\"\",\"\",'Generated list'!C9541)","v":""},{"$f":"IF('Generated list'!D9541=\"\",\"\",'Generated list'!D9541)","v":""}]
[null,{"$f":"IF('Generated list'!B9542=\"\",\"\",'Generated list'!B9542)","v":""},{"$f":"IF('Generated list'!C9542=\"\",\"\",'Generated list'!C9542)","v":""},{"$f":"IF('Generated list'!D9542=\"\",\"\",'Generated list'!D9542)","v":""}]
[null,{"$f":"IF('Generated list'!B9543=\"\",\"\",'Generated list'!B9543)","v":""},{"$f":"IF('Generated list'!C9543=\"\",\"\",'Generated list'!C9543)","v":""},{"$f":"IF('Generated list'!D9543=\"\",\"\",'Generated list'!D9543)","v":""}]
[null,{"$f":"IF('Generated list'!B9544=\"\",\"\",'Generated list'!B9544)","v":""},{"$f":"IF('Generated list'!C9544=\"\",\"\",'Generated list'!C9544)","v":""},{"$f":"IF('Generated list'!D9544=\"\",\"\",'Generated list'!D9544)","v":""}]
[null,{"$f":"IF('Generated list'!B9545=\"\",\"\",'Generated list'!B9545)","v":""},{"$f":"IF('Generated list'!C9545=\"\",\"\",'Generated list'!C9545)","v":""},{"$f":"IF('Generated list'!D9545=\"\",\"\",'Generated list'!D9545)","v":""}]
[null,{"$f":"IF('Generated list'!B9546=\"\",\"\",'Generated list'!B9546)","v":""},{"$f":"IF('Generated list'!C9546=\"\",\"\",'Generated list'!C9546)","v":""},{"$f":"IF('Generated list'!D9546=\"\",\"\",'Generated list'!D9546)","v":""}]
[null,{"$f":"IF('Generated list'!B9547=\"\",\"\",'Generated list'!B9547)","v":""},{"$f":"IF('Generated list'!C9547=\"\",\"\",'Generated list'!C9547)","v":""},{"$f":"IF('Generated list'!D9547=\"\",\"\",'Generated list'!D9547)","v":""}]
[null,{"$f":"IF('Generated list'!B9548=\"\",\"\",'Generated list'!B9548)","v":""},{"$f":"IF('Generated list'!C9548=\"\",\"\",'Generated list'!C9548)","v":""},{"$f":"IF('Generated list'!D9548=\"\",\"\",'Generated list'!D9548)","v":""}]
[null,{"$f":"IF('Generated list'!B9549=\"\",\"\",'Generated list'!B9549)","v":""},{"$f":"IF('Generated list'!C9549=\"\",\"\",'Generated list'!C9549)","v":""},{"$f":"IF('Generated list'!D9549=\"\",\"\",'Generated list'!D9549)","v":""}]
[null,{"$f":"IF('Generated list'!B9550=\"\",\"\",'Generated list'!B9550)","v":""},{"$f":"IF('Generated list'!C9550=\"\",\"\",'Generated list'!C9550)","v":""},{"$f":"IF('Generated list'!D9550=\"\",\"\",'Generated list'!D9550)","v":""}]
[null,{"$f":"IF('Generated list'!B9551=\"\",\"\",'Generated list'!B9551)","v":""},{"$f":"IF('Generated list'!C9551=\"\",\"\",'Generated list'!C9551)","v":""},{"$f":"IF('Generated list'!D9551=\"\",\"\",'Generated list'!D9551)","v":""}]
[null,{"$f":"IF('Generated list'!B9552=\"\",\"\",'Generated list'!B9552)","v":""},{"$f":"IF('Generated list'!C9552=\"\",\"\",'Generated list'!C9552)","v":""},{"$f":"IF('Generated list'!D9552=\"\",\"\",'Generated list'!D9552)","v":""}]
[null,{"$f":"IF('Generated list'!B9553=\"\",\"\",'Generated list'!B9553)","v":""},{"$f":"IF('Generated list'!C9553=\"\",\"\",'Generated list'!C9553)","v":""},{"$f":"IF('Generated list'!D9553=\"\",\"\",'Generated list'!D9553)","v":""}]
[null,{"$f":"IF('Generated list'!B9554=\"\",\"\",'Generated list'!B9554)","v":""},{"$f":"IF('Generated list'!C9554=\"\",\"\",'Generated list'!C9554)","v":""},{"$f":"IF('Generated list'!D9554=\"\",\"\",'Generated list'!D9554)","v":""}]
[null,{"$f":"IF('Generated list'!B9555=\"\",\"\",'Generated list'!B9555)","v":""},{"$f":"IF('Generated list'!C9555=\"\",\"\",'Generated list'!C9555)","v":""},{"$f":"IF('Generated list'!D9555=\"\",\"\",'Generated list'!D9555)","v":""}]
[null,{"$f":"IF('Generated list'!B9556=\"\",\"\",'Generated list'!B9556)","v":""},{"$f":"IF('Generated list'!C9556=\"\",\"\",'Generated list'!C9556)","v":""},{"$f":"IF('Generated list'!D9556=\"\",\"\",'Generated list'!D9556)","v":""}]
[null,{"$f":"IF('Generated list'!B9557=\"\",\"\",'Generated list'!B9557)","v":""},{"$f":"IF('Generated list'!C9557=\"\",\"\",'Generated list'!C9557)","v":""},{"$f":"IF('Generated list'!D9557=\"\",\"\",'Generated list'!D9557)","v":""}]
[null,{"$f":"IF('Generated list'!B9558=\"\",\"\",'Generated list'!B9558)","v":""},{"$f":"IF('Generated list'!C9558=\"\",\"\",'Generated list'!C9558)","v":""},{"$f":"IF('Generated list'!D9558=\"\",\"\",'Generated list'!D9558)","v":""}]
[null,{"$f":"IF('Generated list'!B9559=\"\",\"\",'Generated list'!B9559)","v":""},{"$f":"IF('Generated list'!C9559=\"\",\"\",'Generated list'!C9559)","v":""},{"$f":"IF('Generated list'!D9559=\"\",\"\",'Generated list'!D9559)","v":""}]
[null,{"$f":"IF('Generated list'!B9560=\"\",\"\",'Generated list'!B9560)","v":""},{"$f":"IF('Generated list'!C9560=\"\",\"\",'Generated list'!C9560)","v":""},{"$f":"IF('Generated list'!D9560=\"\",\"\",'Generated list'!D9560)","v":""}]
[null,{"$f":"IF('Generated list'!B9561=\"\",\"\",'Generated list'!B9561)","v":""},{"$f":"IF('Generated list'!C9561=\"\",\"\",'Generated list'!C9561)","v":""},{"$f":"IF('Generated list'!D9561=\"\",\"\",'Generated list'!D9561)","v":""}]
[null,{"$f":"IF('Generated list'!B9562=\"\",\"\",'Generated list'!B9562)","v":""},{"$f":"IF('Generated list'!C9562=\"\",\"\",'Generated list'!C9562)","v":""},{"$f":"IF('Generated list'!D9562=\"\",\"\",'Generated list'!D9562)","v":""}]
[null,{"$f":"IF('Generated list'!B9563=\"\",\"\",'Generated list'!B9563)","v":""},{"$f":"IF('Generated list'!C9563=\"\",\"\",'Generated list'!C9563)","v":""},{"$f":"IF('Generated list'!D9563=\"\",\"\",'Generated list'!D9563)","v":""}]
[null,{"$f":"IF('Generated list'!B9564=\"\",\"\",'Generated list'!B9564)","v":""},{"$f":"IF('Generated list'!C9564=\"\",\"\",'Generated list'!C9564)","v":""},{"$f":"IF('Generated list'!D9564=\"\",\"\",'Generated list'!D9564)","v":""}]
[null,{"$f":"IF('Generated list'!B9565=\"\",\"\",'Generated list'!B9565)","v":""},{"$f":"IF('Generated list'!C9565=\"\",\"\",'Generated list'!C9565)","v":""},{"$f":"IF('Generated list'!D9565=\"\",\"\",'Generated list'!D9565)","v":""}]
[null,{"$f":"IF('Generated list'!B9566=\"\",\"\",'Generated list'!B9566)","v":""},{"$f":"IF('Generated list'!C9566=\"\",\"\",'Generated list'!C9566)","v":""},{"$f":"IF('Generated list'!D9566=\"\",\"\",'Generated list'!D9566)","v":""}]
[null,{"$f":"IF('Generated list'!B9567=\"\",\"\",'Generated list'!B9567)","v":""},{"$f":"IF('Generated list'!C9567=\"\",\"\",'Generated list'!C9567)","v":""},{"$f":"IF('Generated list'!D9567=\"\",\"\",'Generated list'!D9567)","v":""}]
[null,{"$f":"IF('Generated list'!B9568=\"\",\"\",'Generated list'!B9568)","v":""},{"$f":"IF('Generated list'!C9568=\"\",\"\",'Generated list'!C9568)","v":""},{"$f":"IF('Generated list'!D9568=\"\",\"\",'Generated list'!D9568)","v":""}]
[null,{"$f":"IF('Generated list'!B9569=\"\",\"\",'Generated list'!B9569)","v":""},{"$f":"IF('Generated list'!C9569=\"\",\"\",'Generated list'!C9569)","v":""},{"$f":"IF('Generated list'!D9569=\"\",\"\",'Generated list'!D9569)","v":""}]
[null,{"$f":"IF('Generated list'!B9570=\"\",\"\",'Generated list'!B9570)","v":""},{"$f":"IF('Generated list'!C9570=\"\",\"\",'Generated list'!C9570)","v":""},{"$f":"IF('Generated list'!D9570=\"\",\"\",'Generated list'!D9570)","v":""}]
[null,{"$f":"IF('Generated list'!B9571=\"\",\"\",'Generated list'!B9571)","v":""},{"$f":"IF('Generated list'!C9571=\"\",\"\",'Generated list'!C9571)","v":""},{"$f":"IF('Generated list'!D9571=\"\",\"\",'Generated list'!D9571)","v":""}]
[null,{"$f":"IF('Generated list'!B9572=\"\",\"\",'Generated list'!B9572)","v":""},{"$f":"IF('Generated list'!C9572=\"\",\"\",'Generated list'!C9572)","v":""},{"$f":"IF('Generated list'!D9572=\"\",\"\",'Generated list'!D9572)","v":""}]
[null,{"$f":"IF('Generated list'!B9573=\"\",\"\",'Generated list'!B9573)","v":""},{"$f":"IF('Generated list'!C9573=\"\",\"\",'Generated list'!C9573)","v":""},{"$f":"IF('Generated list'!D9573=\"\",\"\",'Generated list'!D9573)","v":""}]
[null,{"$f":"IF('Generated list'!B9574=\"\",\"\",'Generated list'!B9574)","v":""},{"$f":"IF('Generated list'!C9574=\"\",\"\",'Generated list'!C9574)","v":""},{"$f":"IF('Generated list'!D9574=\"\",\"\",'Generated list'!D9574)","v":""}]
[null,{"$f":"IF('Generated list'!B9575=\"\",\"\",'Generated list'!B9575)","v":""},{"$f":"IF('Generated list'!C9575=\"\",\"\",'Generated list'!C9575)","v":""},{"$f":"IF('Generated list'!D9575=\"\",\"\",'Generated list'!D9575)","v":""}]
[null,{"$f":"IF('Generated list'!B9576=\"\",\"\",'Generated list'!B9576)","v":""},{"$f":"IF('Generated list'!C9576=\"\",\"\",'Generated list'!C9576)","v":""},{"$f":"IF('Generated list'!D9576=\"\",\"\",'Generated list'!D9576)","v":""}]
[null,{"$f":"IF('Generated list'!B9577=\"\",\"\",'Generated list'!B9577)","v":""},{"$f":"IF('Generated list'!C9577=\"\",\"\",'Generated list'!C9577)","v":""},{"$f":"IF('Generated list'!D9577=\"\",\"\",'Generated list'!D9577)","v":""}]
[null,{"$f":"IF('Generated list'!B9578=\"\",\"\",'Generated list'!B9578)","v":""},{"$f":"IF('Generated list'!C9578=\"\",\"\",'Generated list'!C9578)","v":""},{"$f":"IF('Generated list'!D9578=\"\",\"\",'Generated list'!D9578)","v":""}]
[null,{"$f":"IF('Generated list'!B9579=\"\",\"\",'Generated list'!B9579)","v":""},{"$f":"IF('Generated list'!C9579=\"\",\"\",'Generated list'!C9579)","v":""},{"$f":"IF('Generated list'!D9579=\"\",\"\",'Generated list'!D9579)","v":""}]
[null,{"$f":"IF('Generated list'!B9580=\"\",\"\",'Generated list'!B9580)","v":""},{"$f":"IF('Generated list'!C9580=\"\",\"\",'Generated list'!C9580)","v":""},{"$f":"IF('Generated list'!D9580=\"\",\"\",'Generated list'!D9580)","v":""}]
[null,{"$f":"IF('Generated list'!B9581=\"\",\"\",'Generated list'!B9581)","v":""},{"$f":"IF('Generated list'!C9581=\"\",\"\",'Generated list'!C9581)","v":""},{"$f":"IF('Generated list'!D9581=\"\",\"\",'Generated list'!D9581)","v":""}]
[null,{"$f":"IF('Generated list'!B9582=\"\",\"\",'Generated list'!B9582)","v":""},{"$f":"IF('Generated list'!C9582=\"\",\"\",'Generated list'!C9582)","v":""},{"$f":"IF('Generated list'!D9582=\"\",\"\",'Generated list'!D9582)","v":""}]
[null,{"$f":"IF('Generated list'!B9583=\"\",\"\",'Generated list'!B9583)","v":""},{"$f":"IF('Generated list'!C9583=\"\",\"\",'Generated list'!C9583)","v":""},{"$f":"IF('Generated list'!D9583=\"\",\"\",'Generated list'!D9583)","v":""}]
[null,{"$f":"IF('Generated list'!B9584=\"\",\"\",'Generated list'!B9584)","v":""},{"$f":"IF('Generated list'!C9584=\"\",\"\",'Generated list'!C9584)","v":""},{"$f":"IF('Generated list'!D9584=\"\",\"\",'Generated list'!D9584)","v":""}]
[null,{"$f":"IF('Generated list'!B9585=\"\",\"\",'Generated list'!B9585)","v":""},{"$f":"IF('Generated list'!C9585=\"\",\"\",'Generated list'!C9585)","v":""},{"$f":"IF('Generated list'!D9585=\"\",\"\",'Generated list'!D9585)","v":""}]
[null,{"$f":"IF('Generated list'!B9586=\"\",\"\",'Generated list'!B9586)","v":""},{"$f":"IF('Generated list'!C9586=\"\",\"\",'Generated list'!C9586)","v":""},{"$f":"IF('Generated list'!D9586=\"\",\"\",'Generated list'!D9586)","v":""}]
[null,{"$f":"IF('Generated list'!B9587=\"\",\"\",'Generated list'!B9587)","v":""},{"$f":"IF('Generated list'!C9587=\"\",\"\",'Generated list'!C9587)","v":""},{"$f":"IF('Generated list'!D9587=\"\",\"\",'Generated list'!D9587)","v":""}]
[null,{"$f":"IF('Generated list'!B9588=\"\",\"\",'Generated list'!B9588)","v":""},{"$f":"IF('Generated list'!C9588=\"\",\"\",'Generated list'!C9588)","v":""},{"$f":"IF('Generated list'!D9588=\"\",\"\",'Generated list'!D9588)","v":""}]
[null,{"$f":"IF('Generated list'!B9589=\"\",\"\",'Generated list'!B9589)","v":""},{"$f":"IF('Generated list'!C9589=\"\",\"\",'Generated list'!C9589)","v":""},{"$f":"IF('Generated list'!D9589=\"\",\"\",'Generated list'!D9589)","v":""}]
[null,{"$f":"IF('Generated list'!B9590=\"\",\"\",'Generated list'!B9590)","v":""},{"$f":"IF('Generated list'!C9590=\"\",\"\",'Generated list'!C9590)","v":""},{"$f":"IF('Generated list'!D9590=\"\",\"\",'Generated list'!D9590)","v":""}]
[null,{"$f":"IF('Generated list'!B9591=\"\",\"\",'Generated list'!B9591)","v":""},{"$f":"IF('Generated list'!C9591=\"\",\"\",'Generated list'!C9591)","v":""},{"$f":"IF('Generated list'!D9591=\"\",\"\",'Generated list'!D9591)","v":""}]
[null,{"$f":"IF('Generated list'!B9592=\"\",\"\",'Generated list'!B9592)","v":""},{"$f":"IF('Generated list'!C9592=\"\",\"\",'Generated list'!C9592)","v":""},{"$f":"IF('Generated list'!D9592=\"\",\"\",'Generated list'!D9592)","v":""}]
[null,{"$f":"IF('Generated list'!B9593=\"\",\"\",'Generated list'!B9593)","v":""},{"$f":"IF('Generated list'!C9593=\"\",\"\",'Generated list'!C9593)","v":""},{"$f":"IF('Generated list'!D9593=\"\",\"\",'Generated list'!D9593)","v":""}]
[null,{"$f":"IF('Generated list'!B9594=\"\",\"\",'Generated list'!B9594)","v":""},{"$f":"IF('Generated list'!C9594=\"\",\"\",'Generated list'!C9594)","v":""},{"$f":"IF('Generated list'!D9594=\"\",\"\",'Generated list'!D9594)","v":""}]
[null,{"$f":"IF('Generated list'!B9595=\"\",\"\",'Generated list'!B9595)","v":""},{"$f":"IF('Generated list'!C9595=\"\",\"\",'Generated list'!C9595)","v":""},{"$f":"IF('Generated list'!D9595=\"\",\"\",'Generated list'!D9595)","v":""}]
[null,{"$f":"IF('Generated list'!B9596=\"\",\"\",'Generated list'!B9596)","v":""},{"$f":"IF('Generated list'!C9596=\"\",\"\",'Generated list'!C9596)","v":""},{"$f":"IF('Generated list'!D9596=\"\",\"\",'Generated list'!D9596)","v":""}]
[null,{"$f":"IF('Generated list'!B9597=\"\",\"\",'Generated list'!B9597)","v":""},{"$f":"IF('Generated list'!C9597=\"\",\"\",'Generated list'!C9597)","v":""},{"$f":"IF('Generated list'!D9597=\"\",\"\",'Generated list'!D9597)","v":""}]
[null,{"$f":"IF('Generated list'!B9598=\"\",\"\",'Generated list'!B9598)","v":""},{"$f":"IF('Generated list'!C9598=\"\",\"\",'Generated list'!C9598)","v":""},{"$f":"IF('Generated list'!D9598=\"\",\"\",'Generated list'!D9598)","v":""}]
[null,{"$f":"IF('Generated list'!B9599=\"\",\"\",'Generated list'!B9599)","v":""},{"$f":"IF('Generated list'!C9599=\"\",\"\",'Generated list'!C9599)","v":""},{"$f":"IF('Generated list'!D9599=\"\",\"\",'Generated list'!D9599)","v":""}]
[null,{"$f":"IF('Generated list'!B9600=\"\",\"\",'Generated list'!B9600)","v":""},{"$f":"IF('Generated list'!C9600=\"\",\"\",'Generated list'!C9600)","v":""},{"$f":"IF('Generated list'!D9600=\"\",\"\",'Generated list'!D9600)","v":""}]
[null,{"$f":"IF('Generated list'!B9601=\"\",\"\",'Generated list'!B9601)","v":""},{"$f":"IF('Generated list'!C9601=\"\",\"\",'Generated list'!C9601)","v":""},{"$f":"IF('Generated list'!D9601=\"\",\"\",'Generated list'!D9601)","v":""}]
[null,{"$f":"IF('Generated list'!B9602=\"\",\"\",'Generated list'!B9602)","v":""},{"$f":"IF('Generated list'!C9602=\"\",\"\",'Generated list'!C9602)","v":""},{"$f":"IF('Generated list'!D9602=\"\",\"\",'Generated list'!D9602)","v":""}]
[null,{"$f":"IF('Generated list'!B9603=\"\",\"\",'Generated list'!B9603)","v":""},{"$f":"IF('Generated list'!C9603=\"\",\"\",'Generated list'!C9603)","v":""},{"$f":"IF('Generated list'!D9603=\"\",\"\",'Generated list'!D9603)","v":""}]
[null,{"$f":"IF('Generated list'!B9604=\"\",\"\",'Generated list'!B9604)","v":""},{"$f":"IF('Generated list'!C9604=\"\",\"\",'Generated list'!C9604)","v":""},{"$f":"IF('Generated list'!D9604=\"\",\"\",'Generated list'!D9604)","v":""}]
[null,{"$f":"IF('Generated list'!B9605=\"\",\"\",'Generated list'!B9605)","v":""},{"$f":"IF('Generated list'!C9605=\"\",\"\",'Generated list'!C9605)","v":""},{"$f":"IF('Generated list'!D9605=\"\",\"\",'Generated list'!D9605)","v":""}]
[null,{"$f":"IF('Generated list'!B9606=\"\",\"\",'Generated list'!B9606)","v":""},{"$f":"IF('Generated list'!C9606=\"\",\"\",'Generated list'!C9606)","v":""},{"$f":"IF('Generated list'!D9606=\"\",\"\",'Generated list'!D9606)","v":""}]
[null,{"$f":"IF('Generated list'!B9607=\"\",\"\",'Generated list'!B9607)","v":""},{"$f":"IF('Generated list'!C9607=\"\",\"\",'Generated list'!C9607)","v":""},{"$f":"IF('Generated list'!D9607=\"\",\"\",'Generated list'!D9607)","v":""}]
[null,{"$f":"IF('Generated list'!B9608=\"\",\"\",'Generated list'!B9608)","v":""},{"$f":"IF('Generated list'!C9608=\"\",\"\",'Generated list'!C9608)","v":""},{"$f":"IF('Generated list'!D9608=\"\",\"\",'Generated list'!D9608)","v":""}]
[null,{"$f":"IF('Generated list'!B9609=\"\",\"\",'Generated list'!B9609)","v":""},{"$f":"IF('Generated list'!C9609=\"\",\"\",'Generated list'!C9609)","v":""},{"$f":"IF('Generated list'!D9609=\"\",\"\",'Generated list'!D9609)","v":""}]
[null,{"$f":"IF('Generated list'!B9610=\"\",\"\",'Generated list'!B9610)","v":""},{"$f":"IF('Generated list'!C9610=\"\",\"\",'Generated list'!C9610)","v":""},{"$f":"IF('Generated list'!D9610=\"\",\"\",'Generated list'!D9610)","v":""}]
[null,{"$f":"IF('Generated list'!B9611=\"\",\"\",'Generated list'!B9611)","v":""},{"$f":"IF('Generated list'!C9611=\"\",\"\",'Generated list'!C9611)","v":""},{"$f":"IF('Generated list'!D9611=\"\",\"\",'Generated list'!D9611)","v":""}]
[null,{"$f":"IF('Generated list'!B9612=\"\",\"\",'Generated list'!B9612)","v":""},{"$f":"IF('Generated list'!C9612=\"\",\"\",'Generated list'!C9612)","v":""},{"$f":"IF('Generated list'!D9612=\"\",\"\",'Generated list'!D9612)","v":""}]
[null,{"$f":"IF('Generated list'!B9613=\"\",\"\",'Generated list'!B9613)","v":""},{"$f":"IF('Generated list'!C9613=\"\",\"\",'Generated list'!C9613)","v":""},{"$f":"IF('Generated list'!D9613=\"\",\"\",'Generated list'!D9613)","v":""}]
[null,{"$f":"IF('Generated list'!B9614=\"\",\"\",'Generated list'!B9614)","v":""},{"$f":"IF('Generated list'!C9614=\"\",\"\",'Generated list'!C9614)","v":""},{"$f":"IF('Generated list'!D9614=\"\",\"\",'Generated list'!D9614)","v":""}]
[null,{"$f":"IF('Generated list'!B9615=\"\",\"\",'Generated list'!B9615)","v":""},{"$f":"IF('Generated list'!C9615=\"\",\"\",'Generated list'!C9615)","v":""},{"$f":"IF('Generated list'!D9615=\"\",\"\",'Generated list'!D9615)","v":""}]
[null,{"$f":"IF('Generated list'!B9616=\"\",\"\",'Generated list'!B9616)","v":""},{"$f":"IF('Generated list'!C9616=\"\",\"\",'Generated list'!C9616)","v":""},{"$f":"IF('Generated list'!D9616=\"\",\"\",'Generated list'!D9616)","v":""}]
[null,{"$f":"IF('Generated list'!B9617=\"\",\"\",'Generated list'!B9617)","v":""},{"$f":"IF('Generated list'!C9617=\"\",\"\",'Generated list'!C9617)","v":""},{"$f":"IF('Generated list'!D9617=\"\",\"\",'Generated list'!D9617)","v":""}]
[null,{"$f":"IF('Generated list'!B9618=\"\",\"\",'Generated list'!B9618)","v":""},{"$f":"IF('Generated list'!C9618=\"\",\"\",'Generated list'!C9618)","v":""},{"$f":"IF('Generated list'!D9618=\"\",\"\",'Generated list'!D9618)","v":""}]
[null,{"$f":"IF('Generated list'!B9619=\"\",\"\",'Generated list'!B9619)","v":""},{"$f":"IF('Generated list'!C9619=\"\",\"\",'Generated list'!C9619)","v":""},{"$f":"IF('Generated list'!D9619=\"\",\"\",'Generated list'!D9619)","v":""}]
[null,{"$f":"IF('Generated list'!B9620=\"\",\"\",'Generated list'!B9620)","v":""},{"$f":"IF('Generated list'!C9620=\"\",\"\",'Generated list'!C9620)","v":""},{"$f":"IF('Generated list'!D9620=\"\",\"\",'Generated list'!D9620)","v":""}]
[null,{"$f":"IF('Generated list'!B9621=\"\",\"\",'Generated list'!B9621)","v":""},{"$f":"IF('Generated list'!C9621=\"\",\"\",'Generated list'!C9621)","v":""},{"$f":"IF('Generated list'!D9621=\"\",\"\",'Generated list'!D9621)","v":""}]
[null,{"$f":"IF('Generated list'!B9622=\"\",\"\",'Generated list'!B9622)","v":""},{"$f":"IF('Generated list'!C9622=\"\",\"\",'Generated list'!C9622)","v":""},{"$f":"IF('Generated list'!D9622=\"\",\"\",'Generated list'!D9622)","v":""}]
[null,{"$f":"IF('Generated list'!B9623=\"\",\"\",'Generated list'!B9623)","v":""},{"$f":"IF('Generated list'!C9623=\"\",\"\",'Generated list'!C9623)","v":""},{"$f":"IF('Generated list'!D9623=\"\",\"\",'Generated list'!D9623)","v":""}]
[null,{"$f":"IF('Generated list'!B9624=\"\",\"\",'Generated list'!B9624)","v":""},{"$f":"IF('Generated list'!C9624=\"\",\"\",'Generated list'!C9624)","v":""},{"$f":"IF('Generated list'!D9624=\"\",\"\",'Generated list'!D9624)","v":""}]
[null,{"$f":"IF('Generated list'!B9625=\"\",\"\",'Generated list'!B9625)","v":""},{"$f":"IF('Generated list'!C9625=\"\",\"\",'Generated list'!C9625)","v":""},{"$f":"IF('Generated list'!D9625=\"\",\"\",'Generated list'!D9625)","v":""}]
[null,{"$f":"IF('Generated list'!B9626=\"\",\"\",'Generated list'!B9626)","v":""},{"$f":"IF('Generated list'!C9626=\"\",\"\",'Generated list'!C9626)","v":""},{"$f":"IF('Generated list'!D9626=\"\",\"\",'Generated list'!D9626)","v":""}]
[null,{"$f":"IF('Generated list'!B9627=\"\",\"\",'Generated list'!B9627)","v":""},{"$f":"IF('Generated list'!C9627=\"\",\"\",'Generated list'!C9627)","v":""},{"$f":"IF('Generated list'!D9627=\"\",\"\",'Generated list'!D9627)","v":""}]
[null,{"$f":"IF('Generated list'!B9628=\"\",\"\",'Generated list'!B9628)","v":""},{"$f":"IF('Generated list'!C9628=\"\",\"\",'Generated list'!C9628)","v":""},{"$f":"IF('Generated list'!D9628=\"\",\"\",'Generated list'!D9628)","v":""}]
[null,{"$f":"IF('Generated list'!B9629=\"\",\"\",'Generated list'!B9629)","v":""},{"$f":"IF('Generated list'!C9629=\"\",\"\",'Generated list'!C9629)","v":""},{"$f":"IF('Generated list'!D9629=\"\",\"\",'Generated list'!D9629)","v":""}]
[null,{"$f":"IF('Generated list'!B9630=\"\",\"\",'Generated list'!B9630)","v":""},{"$f":"IF('Generated list'!C9630=\"\",\"\",'Generated list'!C9630)","v":""},{"$f":"IF('Generated list'!D9630=\"\",\"\",'Generated list'!D9630)","v":""}]
[null,{"$f":"IF('Generated list'!B9631=\"\",\"\",'Generated list'!B9631)","v":""},{"$f":"IF('Generated list'!C9631=\"\",\"\",'Generated list'!C9631)","v":""},{"$f":"IF('Generated list'!D9631=\"\",\"\",'Generated list'!D9631)","v":""}]
[null,{"$f":"IF('Generated list'!B9632=\"\",\"\",'Generated list'!B9632)","v":""},{"$f":"IF('Generated list'!C9632=\"\",\"\",'Generated list'!C9632)","v":""},{"$f":"IF('Generated list'!D9632=\"\",\"\",'Generated list'!D9632)","v":""}]
[null,{"$f":"IF('Generated list'!B9633=\"\",\"\",'Generated list'!B9633)","v":""},{"$f":"IF('Generated list'!C9633=\"\",\"\",'Generated list'!C9633)","v":""},{"$f":"IF('Generated list'!D9633=\"\",\"\",'Generated list'!D9633)","v":""}]
[null,{"$f":"IF('Generated list'!B9634=\"\",\"\",'Generated list'!B9634)","v":""},{"$f":"IF('Generated list'!C9634=\"\",\"\",'Generated list'!C9634)","v":""},{"$f":"IF('Generated list'!D9634=\"\",\"\",'Generated list'!D9634)","v":""}]
[null,{"$f":"IF('Generated list'!B9635=\"\",\"\",'Generated list'!B9635)","v":""},{"$f":"IF('Generated list'!C9635=\"\",\"\",'Generated list'!C9635)","v":""},{"$f":"IF('Generated list'!D9635=\"\",\"\",'Generated list'!D9635)","v":""}]
[null,{"$f":"IF('Generated list'!B9636=\"\",\"\",'Generated list'!B9636)","v":""},{"$f":"IF('Generated list'!C9636=\"\",\"\",'Generated list'!C9636)","v":""},{"$f":"IF('Generated list'!D9636=\"\",\"\",'Generated list'!D9636)","v":""}]
[null,{"$f":"IF('Generated list'!B9637=\"\",\"\",'Generated list'!B9637)","v":""},{"$f":"IF('Generated list'!C9637=\"\",\"\",'Generated list'!C9637)","v":""},{"$f":"IF('Generated list'!D9637=\"\",\"\",'Generated list'!D9637)","v":""}]
[null,{"$f":"IF('Generated list'!B9638=\"\",\"\",'Generated list'!B9638)","v":""},{"$f":"IF('Generated list'!C9638=\"\",\"\",'Generated list'!C9638)","v":""},{"$f":"IF('Generated list'!D9638=\"\",\"\",'Generated list'!D9638)","v":""}]
[null,{"$f":"IF('Generated list'!B9639=\"\",\"\",'Generated list'!B9639)","v":""},{"$f":"IF('Generated list'!C9639=\"\",\"\",'Generated list'!C9639)","v":""},{"$f":"IF('Generated list'!D9639=\"\",\"\",'Generated list'!D9639)","v":""}]
[null,{"$f":"IF('Generated list'!B9640=\"\",\"\",'Generated list'!B9640)","v":""},{"$f":"IF('Generated list'!C9640=\"\",\"\",'Generated list'!C9640)","v":""},{"$f":"IF('Generated list'!D9640=\"\",\"\",'Generated list'!D9640)","v":""}]
[null,{"$f":"IF('Generated list'!B9641=\"\",\"\",'Generated list'!B9641)","v":""},{"$f":"IF('Generated list'!C9641=\"\",\"\",'Generated list'!C9641)","v":""},{"$f":"IF('Generated list'!D9641=\"\",\"\",'Generated list'!D9641)","v":""}]
[null,{"$f":"IF('Generated list'!B9642=\"\",\"\",'Generated list'!B9642)","v":""},{"$f":"IF('Generated list'!C9642=\"\",\"\",'Generated list'!C9642)","v":""},{"$f":"IF('Generated list'!D9642=\"\",\"\",'Generated list'!D9642)","v":""}]
[null,{"$f":"IF('Generated list'!B9643=\"\",\"\",'Generated list'!B9643)","v":""},{"$f":"IF('Generated list'!C9643=\"\",\"\",'Generated list'!C9643)","v":""},{"$f":"IF('Generated list'!D9643=\"\",\"\",'Generated list'!D9643)","v":""}]
[null,{"$f":"IF('Generated list'!B9644=\"\",\"\",'Generated list'!B9644)","v":""},{"$f":"IF('Generated list'!C9644=\"\",\"\",'Generated list'!C9644)","v":""},{"$f":"IF('Generated list'!D9644=\"\",\"\",'Generated list'!D9644)","v":""}]
[null,{"$f":"IF('Generated list'!B9645=\"\",\"\",'Generated list'!B9645)","v":""},{"$f":"IF('Generated list'!C9645=\"\",\"\",'Generated list'!C9645)","v":""},{"$f":"IF('Generated list'!D9645=\"\",\"\",'Generated list'!D9645)","v":""}]
[null,{"$f":"IF('Generated list'!B9646=\"\",\"\",'Generated list'!B9646)","v":""},{"$f":"IF('Generated list'!C9646=\"\",\"\",'Generated list'!C9646)","v":""},{"$f":"IF('Generated list'!D9646=\"\",\"\",'Generated list'!D9646)","v":""}]
[null,{"$f":"IF('Generated list'!B9647=\"\",\"\",'Generated list'!B9647)","v":""},{"$f":"IF('Generated list'!C9647=\"\",\"\",'Generated list'!C9647)","v":""},{"$f":"IF('Generated list'!D9647=\"\",\"\",'Generated list'!D9647)","v":""}]
[null,{"$f":"IF('Generated list'!B9648=\"\",\"\",'Generated list'!B9648)","v":""},{"$f":"IF('Generated list'!C9648=\"\",\"\",'Generated list'!C9648)","v":""},{"$f":"IF('Generated list'!D9648=\"\",\"\",'Generated list'!D9648)","v":""}]
[null,{"$f":"IF('Generated list'!B9649=\"\",\"\",'Generated list'!B9649)","v":""},{"$f":"IF('Generated list'!C9649=\"\",\"\",'Generated list'!C9649)","v":""},{"$f":"IF('Generated list'!D9649=\"\",\"\",'Generated list'!D9649)","v":""}]
[null,{"$f":"IF('Generated list'!B9650=\"\",\"\",'Generated list'!B9650)","v":""},{"$f":"IF('Generated list'!C9650=\"\",\"\",'Generated list'!C9650)","v":""},{"$f":"IF('Generated list'!D9650=\"\",\"\",'Generated list'!D9650)","v":""}]
[null,{"$f":"IF('Generated list'!B9651=\"\",\"\",'Generated list'!B9651)","v":""},{"$f":"IF('Generated list'!C9651=\"\",\"\",'Generated list'!C9651)","v":""},{"$f":"IF('Generated list'!D9651=\"\",\"\",'Generated list'!D9651)","v":""}]
[null,{"$f":"IF('Generated list'!B9652=\"\",\"\",'Generated list'!B9652)","v":""},{"$f":"IF('Generated list'!C9652=\"\",\"\",'Generated list'!C9652)","v":""},{"$f":"IF('Generated list'!D9652=\"\",\"\",'Generated list'!D9652)","v":""}]
[null,{"$f":"IF('Generated list'!B9653=\"\",\"\",'Generated list'!B9653)","v":""},{"$f":"IF('Generated list'!C9653=\"\",\"\",'Generated list'!C9653)","v":""},{"$f":"IF('Generated list'!D9653=\"\",\"\",'Generated list'!D9653)","v":""}]
[null,{"$f":"IF('Generated list'!B9654=\"\",\"\",'Generated list'!B9654)","v":""},{"$f":"IF('Generated list'!C9654=\"\",\"\",'Generated list'!C9654)","v":""},{"$f":"IF('Generated list'!D9654=\"\",\"\",'Generated list'!D9654)","v":""}]
[null,{"$f":"IF('Generated list'!B9655=\"\",\"\",'Generated list'!B9655)","v":""},{"$f":"IF('Generated list'!C9655=\"\",\"\",'Generated list'!C9655)","v":""},{"$f":"IF('Generated list'!D9655=\"\",\"\",'Generated list'!D9655)","v":""}]
[null,{"$f":"IF('Generated list'!B9656=\"\",\"\",'Generated list'!B9656)","v":""},{"$f":"IF('Generated list'!C9656=\"\",\"\",'Generated list'!C9656)","v":""},{"$f":"IF('Generated list'!D9656=\"\",\"\",'Generated list'!D9656)","v":""}]
[null,{"$f":"IF('Generated list'!B9657=\"\",\"\",'Generated list'!B9657)","v":""},{"$f":"IF('Generated list'!C9657=\"\",\"\",'Generated list'!C9657)","v":""},{"$f":"IF('Generated list'!D9657=\"\",\"\",'Generated list'!D9657)","v":""}]
[null,{"$f":"IF('Generated list'!B9658=\"\",\"\",'Generated list'!B9658)","v":""},{"$f":"IF('Generated list'!C9658=\"\",\"\",'Generated list'!C9658)","v":""},{"$f":"IF('Generated list'!D9658=\"\",\"\",'Generated list'!D9658)","v":""}]
[null,{"$f":"IF('Generated list'!B9659=\"\",\"\",'Generated list'!B9659)","v":""},{"$f":"IF('Generated list'!C9659=\"\",\"\",'Generated list'!C9659)","v":""},{"$f":"IF('Generated list'!D9659=\"\",\"\",'Generated list'!D9659)","v":""}]
[null,{"$f":"IF('Generated list'!B9660=\"\",\"\",'Generated list'!B9660)","v":""},{"$f":"IF('Generated list'!C9660=\"\",\"\",'Generated list'!C9660)","v":""},{"$f":"IF('Generated list'!D9660=\"\",\"\",'Generated list'!D9660)","v":""}]
[null,{"$f":"IF('Generated list'!B9661=\"\",\"\",'Generated list'!B9661)","v":""},{"$f":"IF('Generated list'!C9661=\"\",\"\",'Generated list'!C9661)","v":""},{"$f":"IF('Generated list'!D9661=\"\",\"\",'Generated list'!D9661)","v":""}]
[null,{"$f":"IF('Generated list'!B9662=\"\",\"\",'Generated list'!B9662)","v":""},{"$f":"IF('Generated list'!C9662=\"\",\"\",'Generated list'!C9662)","v":""},{"$f":"IF('Generated list'!D9662=\"\",\"\",'Generated list'!D9662)","v":""}]
[null,{"$f":"IF('Generated list'!B9663=\"\",\"\",'Generated list'!B9663)","v":""},{"$f":"IF('Generated list'!C9663=\"\",\"\",'Generated list'!C9663)","v":""},{"$f":"IF('Generated list'!D9663=\"\",\"\",'Generated list'!D9663)","v":""}]
[null,{"$f":"IF('Generated list'!B9664=\"\",\"\",'Generated list'!B9664)","v":""},{"$f":"IF('Generated list'!C9664=\"\",\"\",'Generated list'!C9664)","v":""},{"$f":"IF('Generated list'!D9664=\"\",\"\",'Generated list'!D9664)","v":""}]
[null,{"$f":"IF('Generated list'!B9665=\"\",\"\",'Generated list'!B9665)","v":""},{"$f":"IF('Generated list'!C9665=\"\",\"\",'Generated list'!C9665)","v":""},{"$f":"IF('Generated list'!D9665=\"\",\"\",'Generated list'!D9665)","v":""}]
[null,{"$f":"IF('Generated list'!B9666=\"\",\"\",'Generated list'!B9666)","v":""},{"$f":"IF('Generated list'!C9666=\"\",\"\",'Generated list'!C9666)","v":""},{"$f":"IF('Generated list'!D9666=\"\",\"\",'Generated list'!D9666)","v":""}]
[null,{"$f":"IF('Generated list'!B9667=\"\",\"\",'Generated list'!B9667)","v":""},{"$f":"IF('Generated list'!C9667=\"\",\"\",'Generated list'!C9667)","v":""},{"$f":"IF('Generated list'!D9667=\"\",\"\",'Generated list'!D9667)","v":""}]
[null,{"$f":"IF('Generated list'!B9668=\"\",\"\",'Generated list'!B9668)","v":""},{"$f":"IF('Generated list'!C9668=\"\",\"\",'Generated list'!C9668)","v":""},{"$f":"IF('Generated list'!D9668=\"\",\"\",'Generated list'!D9668)","v":""}]
[null,{"$f":"IF('Generated list'!B9669=\"\",\"\",'Generated list'!B9669)","v":""},{"$f":"IF('Generated list'!C9669=\"\",\"\",'Generated list'!C9669)","v":""},{"$f":"IF('Generated list'!D9669=\"\",\"\",'Generated list'!D9669)","v":""}]
[null,{"$f":"IF('Generated list'!B9670=\"\",\"\",'Generated list'!B9670)","v":""},{"$f":"IF('Generated list'!C9670=\"\",\"\",'Generated list'!C9670)","v":""},{"$f":"IF('Generated list'!D9670=\"\",\"\",'Generated list'!D9670)","v":""}]
[null,{"$f":"IF('Generated list'!B9671=\"\",\"\",'Generated list'!B9671)","v":""},{"$f":"IF('Generated list'!C9671=\"\",\"\",'Generated list'!C9671)","v":""},{"$f":"IF('Generated list'!D9671=\"\",\"\",'Generated list'!D9671)","v":""}]
[null,{"$f":"IF('Generated list'!B9672=\"\",\"\",'Generated list'!B9672)","v":""},{"$f":"IF('Generated list'!C9672=\"\",\"\",'Generated list'!C9672)","v":""},{"$f":"IF('Generated list'!D9672=\"\",\"\",'Generated list'!D9672)","v":""}]
[null,{"$f":"IF('Generated list'!B9673=\"\",\"\",'Generated list'!B9673)","v":""},{"$f":"IF('Generated list'!C9673=\"\",\"\",'Generated list'!C9673)","v":""},{"$f":"IF('Generated list'!D9673=\"\",\"\",'Generated list'!D9673)","v":""}]
[null,{"$f":"IF('Generated list'!B9674=\"\",\"\",'Generated list'!B9674)","v":""},{"$f":"IF('Generated list'!C9674=\"\",\"\",'Generated list'!C9674)","v":""},{"$f":"IF('Generated list'!D9674=\"\",\"\",'Generated list'!D9674)","v":""}]
[null,{"$f":"IF('Generated list'!B9675=\"\",\"\",'Generated list'!B9675)","v":""},{"$f":"IF('Generated list'!C9675=\"\",\"\",'Generated list'!C9675)","v":""},{"$f":"IF('Generated list'!D9675=\"\",\"\",'Generated list'!D9675)","v":""}]
[null,{"$f":"IF('Generated list'!B9676=\"\",\"\",'Generated list'!B9676)","v":""},{"$f":"IF('Generated list'!C9676=\"\",\"\",'Generated list'!C9676)","v":""},{"$f":"IF('Generated list'!D9676=\"\",\"\",'Generated list'!D9676)","v":""}]
[null,{"$f":"IF('Generated list'!B9677=\"\",\"\",'Generated list'!B9677)","v":""},{"$f":"IF('Generated list'!C9677=\"\",\"\",'Generated list'!C9677)","v":""},{"$f":"IF('Generated list'!D9677=\"\",\"\",'Generated list'!D9677)","v":""}]
[null,{"$f":"IF('Generated list'!B9678=\"\",\"\",'Generated list'!B9678)","v":""},{"$f":"IF('Generated list'!C9678=\"\",\"\",'Generated list'!C9678)","v":""},{"$f":"IF('Generated list'!D9678=\"\",\"\",'Generated list'!D9678)","v":""}]
[null,{"$f":"IF('Generated list'!B9679=\"\",\"\",'Generated list'!B9679)","v":""},{"$f":"IF('Generated list'!C9679=\"\",\"\",'Generated list'!C9679)","v":""},{"$f":"IF('Generated list'!D9679=\"\",\"\",'Generated list'!D9679)","v":""}]
[null,{"$f":"IF('Generated list'!B9680=\"\",\"\",'Generated list'!B9680)","v":""},{"$f":"IF('Generated list'!C9680=\"\",\"\",'Generated list'!C9680)","v":""},{"$f":"IF('Generated list'!D9680=\"\",\"\",'Generated list'!D9680)","v":""}]
[null,{"$f":"IF('Generated list'!B9681=\"\",\"\",'Generated list'!B9681)","v":""},{"$f":"IF('Generated list'!C9681=\"\",\"\",'Generated list'!C9681)","v":""},{"$f":"IF('Generated list'!D9681=\"\",\"\",'Generated list'!D9681)","v":""}]
[null,{"$f":"IF('Generated list'!B9682=\"\",\"\",'Generated list'!B9682)","v":""},{"$f":"IF('Generated list'!C9682=\"\",\"\",'Generated list'!C9682)","v":""},{"$f":"IF('Generated list'!D9682=\"\",\"\",'Generated list'!D9682)","v":""}]
[null,{"$f":"IF('Generated list'!B9683=\"\",\"\",'Generated list'!B9683)","v":""},{"$f":"IF('Generated list'!C9683=\"\",\"\",'Generated list'!C9683)","v":""},{"$f":"IF('Generated list'!D9683=\"\",\"\",'Generated list'!D9683)","v":""}]
[null,{"$f":"IF('Generated list'!B9684=\"\",\"\",'Generated list'!B9684)","v":""},{"$f":"IF('Generated list'!C9684=\"\",\"\",'Generated list'!C9684)","v":""},{"$f":"IF('Generated list'!D9684=\"\",\"\",'Generated list'!D9684)","v":""}]
[null,{"$f":"IF('Generated list'!B9685=\"\",\"\",'Generated list'!B9685)","v":""},{"$f":"IF('Generated list'!C9685=\"\",\"\",'Generated list'!C9685)","v":""},{"$f":"IF('Generated list'!D9685=\"\",\"\",'Generated list'!D9685)","v":""}]
[null,{"$f":"IF('Generated list'!B9686=\"\",\"\",'Generated list'!B9686)","v":""},{"$f":"IF('Generated list'!C9686=\"\",\"\",'Generated list'!C9686)","v":""},{"$f":"IF('Generated list'!D9686=\"\",\"\",'Generated list'!D9686)","v":""}]
[null,{"$f":"IF('Generated list'!B9687=\"\",\"\",'Generated list'!B9687)","v":""},{"$f":"IF('Generated list'!C9687=\"\",\"\",'Generated list'!C9687)","v":""},{"$f":"IF('Generated list'!D9687=\"\",\"\",'Generated list'!D9687)","v":""}]
[null,{"$f":"IF('Generated list'!B9688=\"\",\"\",'Generated list'!B9688)","v":""},{"$f":"IF('Generated list'!C9688=\"\",\"\",'Generated list'!C9688)","v":""},{"$f":"IF('Generated list'!D9688=\"\",\"\",'Generated list'!D9688)","v":""}]
[null,{"$f":"IF('Generated list'!B9689=\"\",\"\",'Generated list'!B9689)","v":""},{"$f":"IF('Generated list'!C9689=\"\",\"\",'Generated list'!C9689)","v":""},{"$f":"IF('Generated list'!D9689=\"\",\"\",'Generated list'!D9689)","v":""}]
[null,{"$f":"IF('Generated list'!B9690=\"\",\"\",'Generated list'!B9690)","v":""},{"$f":"IF('Generated list'!C9690=\"\",\"\",'Generated list'!C9690)","v":""},{"$f":"IF('Generated list'!D9690=\"\",\"\",'Generated list'!D9690)","v":""}]
[null,{"$f":"IF('Generated list'!B9691=\"\",\"\",'Generated list'!B9691)","v":""},{"$f":"IF('Generated list'!C9691=\"\",\"\",'Generated list'!C9691)","v":""},{"$f":"IF('Generated list'!D9691=\"\",\"\",'Generated list'!D9691)","v":""}]
[null,{"$f":"IF('Generated list'!B9692=\"\",\"\",'Generated list'!B9692)","v":""},{"$f":"IF('Generated list'!C9692=\"\",\"\",'Generated list'!C9692)","v":""},{"$f":"IF('Generated list'!D9692=\"\",\"\",'Generated list'!D9692)","v":""}]
[null,{"$f":"IF('Generated list'!B9693=\"\",\"\",'Generated list'!B9693)","v":""},{"$f":"IF('Generated list'!C9693=\"\",\"\",'Generated list'!C9693)","v":""},{"$f":"IF('Generated list'!D9693=\"\",\"\",'Generated list'!D9693)","v":""}]
[null,{"$f":"IF('Generated list'!B9694=\"\",\"\",'Generated list'!B9694)","v":""},{"$f":"IF('Generated list'!C9694=\"\",\"\",'Generated list'!C9694)","v":""},{"$f":"IF('Generated list'!D9694=\"\",\"\",'Generated list'!D9694)","v":""}]
[null,{"$f":"IF('Generated list'!B9695=\"\",\"\",'Generated list'!B9695)","v":""},{"$f":"IF('Generated list'!C9695=\"\",\"\",'Generated list'!C9695)","v":""},{"$f":"IF('Generated list'!D9695=\"\",\"\",'Generated list'!D9695)","v":""}]
[null,{"$f":"IF('Generated list'!B9696=\"\",\"\",'Generated list'!B9696)","v":""},{"$f":"IF('Generated list'!C9696=\"\",\"\",'Generated list'!C9696)","v":""},{"$f":"IF('Generated list'!D9696=\"\",\"\",'Generated list'!D9696)","v":""}]
[null,{"$f":"IF('Generated list'!B9697=\"\",\"\",'Generated list'!B9697)","v":""},{"$f":"IF('Generated list'!C9697=\"\",\"\",'Generated list'!C9697)","v":""},{"$f":"IF('Generated list'!D9697=\"\",\"\",'Generated list'!D9697)","v":""}]
[null,{"$f":"IF('Generated list'!B9698=\"\",\"\",'Generated list'!B9698)","v":""},{"$f":"IF('Generated list'!C9698=\"\",\"\",'Generated list'!C9698)","v":""},{"$f":"IF('Generated list'!D9698=\"\",\"\",'Generated list'!D9698)","v":""}]
[null,{"$f":"IF('Generated list'!B9699=\"\",\"\",'Generated list'!B9699)","v":""},{"$f":"IF('Generated list'!C9699=\"\",\"\",'Generated list'!C9699)","v":""},{"$f":"IF('Generated list'!D9699=\"\",\"\",'Generated list'!D9699)","v":""}]
[null,{"$f":"IF('Generated list'!B9700=\"\",\"\",'Generated list'!B9700)","v":""},{"$f":"IF('Generated list'!C9700=\"\",\"\",'Generated list'!C9700)","v":""},{"$f":"IF('Generated list'!D9700=\"\",\"\",'Generated list'!D9700)","v":""}]
[null,{"$f":"IF('Generated list'!B9701=\"\",\"\",'Generated list'!B9701)","v":""},{"$f":"IF('Generated list'!C9701=\"\",\"\",'Generated list'!C9701)","v":""},{"$f":"IF('Generated list'!D9701=\"\",\"\",'Generated list'!D9701)","v":""}]
[null,{"$f":"IF('Generated list'!B9702=\"\",\"\",'Generated list'!B9702)","v":""},{"$f":"IF('Generated list'!C9702=\"\",\"\",'Generated list'!C9702)","v":""},{"$f":"IF('Generated list'!D9702=\"\",\"\",'Generated list'!D9702)","v":""}]
[null,{"$f":"IF('Generated list'!B9703=\"\",\"\",'Generated list'!B9703)","v":""},{"$f":"IF('Generated list'!C9703=\"\",\"\",'Generated list'!C9703)","v":""},{"$f":"IF('Generated list'!D9703=\"\",\"\",'Generated list'!D9703)","v":""}]
[null,{"$f":"IF('Generated list'!B9704=\"\",\"\",'Generated list'!B9704)","v":""},{"$f":"IF('Generated list'!C9704=\"\",\"\",'Generated list'!C9704)","v":""},{"$f":"IF('Generated list'!D9704=\"\",\"\",'Generated list'!D9704)","v":""}]
[null,{"$f":"IF('Generated list'!B9705=\"\",\"\",'Generated list'!B9705)","v":""},{"$f":"IF('Generated list'!C9705=\"\",\"\",'Generated list'!C9705)","v":""},{"$f":"IF('Generated list'!D9705=\"\",\"\",'Generated list'!D9705)","v":""}]
[null,{"$f":"IF('Generated list'!B9706=\"\",\"\",'Generated list'!B9706)","v":""},{"$f":"IF('Generated list'!C9706=\"\",\"\",'Generated list'!C9706)","v":""},{"$f":"IF('Generated list'!D9706=\"\",\"\",'Generated list'!D9706)","v":""}]
[null,{"$f":"IF('Generated list'!B9707=\"\",\"\",'Generated list'!B9707)","v":""},{"$f":"IF('Generated list'!C9707=\"\",\"\",'Generated list'!C9707)","v":""},{"$f":"IF('Generated list'!D9707=\"\",\"\",'Generated list'!D9707)","v":""}]
[null,{"$f":"IF('Generated list'!B9708=\"\",\"\",'Generated list'!B9708)","v":""},{"$f":"IF('Generated list'!C9708=\"\",\"\",'Generated list'!C9708)","v":""},{"$f":"IF('Generated list'!D9708=\"\",\"\",'Generated list'!D9708)","v":""}]
[null,{"$f":"IF('Generated list'!B9709=\"\",\"\",'Generated list'!B9709)","v":""},{"$f":"IF('Generated list'!C9709=\"\",\"\",'Generated list'!C9709)","v":""},{"$f":"IF('Generated list'!D9709=\"\",\"\",'Generated list'!D9709)","v":""}]
[null,{"$f":"IF('Generated list'!B9710=\"\",\"\",'Generated list'!B9710)","v":""},{"$f":"IF('Generated list'!C9710=\"\",\"\",'Generated list'!C9710)","v":""},{"$f":"IF('Generated list'!D9710=\"\",\"\",'Generated list'!D9710)","v":""}]
[null,{"$f":"IF('Generated list'!B9711=\"\",\"\",'Generated list'!B9711)","v":""},{"$f":"IF('Generated list'!C9711=\"\",\"\",'Generated list'!C9711)","v":""},{"$f":"IF('Generated list'!D9711=\"\",\"\",'Generated list'!D9711)","v":""}]
[null,{"$f":"IF('Generated list'!B9712=\"\",\"\",'Generated list'!B9712)","v":""},{"$f":"IF('Generated list'!C9712=\"\",\"\",'Generated list'!C9712)","v":""},{"$f":"IF('Generated list'!D9712=\"\",\"\",'Generated list'!D9712)","v":""}]
[null,{"$f":"IF('Generated list'!B9713=\"\",\"\",'Generated list'!B9713)","v":""},{"$f":"IF('Generated list'!C9713=\"\",\"\",'Generated list'!C9713)","v":""},{"$f":"IF('Generated list'!D9713=\"\",\"\",'Generated list'!D9713)","v":""}]
[null,{"$f":"IF('Generated list'!B9714=\"\",\"\",'Generated list'!B9714)","v":""},{"$f":"IF('Generated list'!C9714=\"\",\"\",'Generated list'!C9714)","v":""},{"$f":"IF('Generated list'!D9714=\"\",\"\",'Generated list'!D9714)","v":""}]
[null,{"$f":"IF('Generated list'!B9715=\"\",\"\",'Generated list'!B9715)","v":""},{"$f":"IF('Generated list'!C9715=\"\",\"\",'Generated list'!C9715)","v":""},{"$f":"IF('Generated list'!D9715=\"\",\"\",'Generated list'!D9715)","v":""}]
[null,{"$f":"IF('Generated list'!B9716=\"\",\"\",'Generated list'!B9716)","v":""},{"$f":"IF('Generated list'!C9716=\"\",\"\",'Generated list'!C9716)","v":""},{"$f":"IF('Generated list'!D9716=\"\",\"\",'Generated list'!D9716)","v":""}]
[null,{"$f":"IF('Generated list'!B9717=\"\",\"\",'Generated list'!B9717)","v":""},{"$f":"IF('Generated list'!C9717=\"\",\"\",'Generated list'!C9717)","v":""},{"$f":"IF('Generated list'!D9717=\"\",\"\",'Generated list'!D9717)","v":""}]
[null,{"$f":"IF('Generated list'!B9718=\"\",\"\",'Generated list'!B9718)","v":""},{"$f":"IF('Generated list'!C9718=\"\",\"\",'Generated list'!C9718)","v":""},{"$f":"IF('Generated list'!D9718=\"\",\"\",'Generated list'!D9718)","v":""}]
[null,{"$f":"IF('Generated list'!B9719=\"\",\"\",'Generated list'!B9719)","v":""},{"$f":"IF('Generated list'!C9719=\"\",\"\",'Generated list'!C9719)","v":""},{"$f":"IF('Generated list'!D9719=\"\",\"\",'Generated list'!D9719)","v":""}]
[null,{"$f":"IF('Generated list'!B9720=\"\",\"\",'Generated list'!B9720)","v":""},{"$f":"IF('Generated list'!C9720=\"\",\"\",'Generated list'!C9720)","v":""},{"$f":"IF('Generated list'!D9720=\"\",\"\",'Generated list'!D9720)","v":""}]
[null,{"$f":"IF('Generated list'!B9721=\"\",\"\",'Generated list'!B9721)","v":""},{"$f":"IF('Generated list'!C9721=\"\",\"\",'Generated list'!C9721)","v":""},{"$f":"IF('Generated list'!D9721=\"\",\"\",'Generated list'!D9721)","v":""}]
[null,{"$f":"IF('Generated list'!B9722=\"\",\"\",'Generated list'!B9722)","v":""},{"$f":"IF('Generated list'!C9722=\"\",\"\",'Generated list'!C9722)","v":""},{"$f":"IF('Generated list'!D9722=\"\",\"\",'Generated list'!D9722)","v":""}]
[null,{"$f":"IF('Generated list'!B9723=\"\",\"\",'Generated list'!B9723)","v":""},{"$f":"IF('Generated list'!C9723=\"\",\"\",'Generated list'!C9723)","v":""},{"$f":"IF('Generated list'!D9723=\"\",\"\",'Generated list'!D9723)","v":""}]
[null,{"$f":"IF('Generated list'!B9724=\"\",\"\",'Generated list'!B9724)","v":""},{"$f":"IF('Generated list'!C9724=\"\",\"\",'Generated list'!C9724)","v":""},{"$f":"IF('Generated list'!D9724=\"\",\"\",'Generated list'!D9724)","v":""}]
[null,{"$f":"IF('Generated list'!B9725=\"\",\"\",'Generated list'!B9725)","v":""},{"$f":"IF('Generated list'!C9725=\"\",\"\",'Generated list'!C9725)","v":""},{"$f":"IF('Generated list'!D9725=\"\",\"\",'Generated list'!D9725)","v":""}]
[null,{"$f":"IF('Generated list'!B9726=\"\",\"\",'Generated list'!B9726)","v":""},{"$f":"IF('Generated list'!C9726=\"\",\"\",'Generated list'!C9726)","v":""},{"$f":"IF('Generated list'!D9726=\"\",\"\",'Generated list'!D9726)","v":""}]
[null,{"$f":"IF('Generated list'!B9727=\"\",\"\",'Generated list'!B9727)","v":""},{"$f":"IF('Generated list'!C9727=\"\",\"\",'Generated list'!C9727)","v":""},{"$f":"IF('Generated list'!D9727=\"\",\"\",'Generated list'!D9727)","v":""}]
[null,{"$f":"IF('Generated list'!B9728=\"\",\"\",'Generated list'!B9728)","v":""},{"$f":"IF('Generated list'!C9728=\"\",\"\",'Generated list'!C9728)","v":""},{"$f":"IF('Generated list'!D9728=\"\",\"\",'Generated list'!D9728)","v":""}]
[null,{"$f":"IF('Generated list'!B9729=\"\",\"\",'Generated list'!B9729)","v":""},{"$f":"IF('Generated list'!C9729=\"\",\"\",'Generated list'!C9729)","v":""},{"$f":"IF('Generated list'!D9729=\"\",\"\",'Generated list'!D9729)","v":""}]
[null,{"$f":"IF('Generated list'!B9730=\"\",\"\",'Generated list'!B9730)","v":""},{"$f":"IF('Generated list'!C9730=\"\",\"\",'Generated list'!C9730)","v":""},{"$f":"IF('Generated list'!D9730=\"\",\"\",'Generated list'!D9730)","v":""}]
[null,{"$f":"IF('Generated list'!B9731=\"\",\"\",'Generated list'!B9731)","v":""},{"$f":"IF('Generated list'!C9731=\"\",\"\",'Generated list'!C9731)","v":""},{"$f":"IF('Generated list'!D9731=\"\",\"\",'Generated list'!D9731)","v":""}]
[null,{"$f":"IF('Generated list'!B9732=\"\",\"\",'Generated list'!B9732)","v":""},{"$f":"IF('Generated list'!C9732=\"\",\"\",'Generated list'!C9732)","v":""},{"$f":"IF('Generated list'!D9732=\"\",\"\",'Generated list'!D9732)","v":""}]
[null,{"$f":"IF('Generated list'!B9733=\"\",\"\",'Generated list'!B9733)","v":""},{"$f":"IF('Generated list'!C9733=\"\",\"\",'Generated list'!C9733)","v":""},{"$f":"IF('Generated list'!D9733=\"\",\"\",'Generated list'!D9733)","v":""}]
[null,{"$f":"IF('Generated list'!B9734=\"\",\"\",'Generated list'!B9734)","v":""},{"$f":"IF('Generated list'!C9734=\"\",\"\",'Generated list'!C9734)","v":""},{"$f":"IF('Generated list'!D9734=\"\",\"\",'Generated list'!D9734)","v":""}]
[null,{"$f":"IF('Generated list'!B9735=\"\",\"\",'Generated list'!B9735)","v":""},{"$f":"IF('Generated list'!C9735=\"\",\"\",'Generated list'!C9735)","v":""},{"$f":"IF('Generated list'!D9735=\"\",\"\",'Generated list'!D9735)","v":""}]
[null,{"$f":"IF('Generated list'!B9736=\"\",\"\",'Generated list'!B9736)","v":""},{"$f":"IF('Generated list'!C9736=\"\",\"\",'Generated list'!C9736)","v":""},{"$f":"IF('Generated list'!D9736=\"\",\"\",'Generated list'!D9736)","v":""}]
[null,{"$f":"IF('Generated list'!B9737=\"\",\"\",'Generated list'!B9737)","v":""},{"$f":"IF('Generated list'!C9737=\"\",\"\",'Generated list'!C9737)","v":""},{"$f":"IF('Generated list'!D9737=\"\",\"\",'Generated list'!D9737)","v":""}]
[null,{"$f":"IF('Generated list'!B9738=\"\",\"\",'Generated list'!B9738)","v":""},{"$f":"IF('Generated list'!C9738=\"\",\"\",'Generated list'!C9738)","v":""},{"$f":"IF('Generated list'!D9738=\"\",\"\",'Generated list'!D9738)","v":""}]
[null,{"$f":"IF('Generated list'!B9739=\"\",\"\",'Generated list'!B9739)","v":""},{"$f":"IF('Generated list'!C9739=\"\",\"\",'Generated list'!C9739)","v":""},{"$f":"IF('Generated list'!D9739=\"\",\"\",'Generated list'!D9739)","v":""}]
[null,{"$f":"IF('Generated list'!B9740=\"\",\"\",'Generated list'!B9740)","v":""},{"$f":"IF('Generated list'!C9740=\"\",\"\",'Generated list'!C9740)","v":""},{"$f":"IF('Generated list'!D9740=\"\",\"\",'Generated list'!D9740)","v":""}]
[null,{"$f":"IF('Generated list'!B9741=\"\",\"\",'Generated list'!B9741)","v":""},{"$f":"IF('Generated list'!C9741=\"\",\"\",'Generated list'!C9741)","v":""},{"$f":"IF('Generated list'!D9741=\"\",\"\",'Generated list'!D9741)","v":""}]
[null,{"$f":"IF('Generated list'!B9742=\"\",\"\",'Generated list'!B9742)","v":""},{"$f":"IF('Generated list'!C9742=\"\",\"\",'Generated list'!C9742)","v":""},{"$f":"IF('Generated list'!D9742=\"\",\"\",'Generated list'!D9742)","v":""}]
[null,{"$f":"IF('Generated list'!B9743=\"\",\"\",'Generated list'!B9743)","v":""},{"$f":"IF('Generated list'!C9743=\"\",\"\",'Generated list'!C9743)","v":""},{"$f":"IF('Generated list'!D9743=\"\",\"\",'Generated list'!D9743)","v":""}]
[null,{"$f":"IF('Generated list'!B9744=\"\",\"\",'Generated list'!B9744)","v":""},{"$f":"IF('Generated list'!C9744=\"\",\"\",'Generated list'!C9744)","v":""},{"$f":"IF('Generated list'!D9744=\"\",\"\",'Generated list'!D9744)","v":""}]
[null,{"$f":"IF('Generated list'!B9745=\"\",\"\",'Generated list'!B9745)","v":""},{"$f":"IF('Generated list'!C9745=\"\",\"\",'Generated list'!C9745)","v":""},{"$f":"IF('Generated list'!D9745=\"\",\"\",'Generated list'!D9745)","v":""}]
[null,{"$f":"IF('Generated list'!B9746=\"\",\"\",'Generated list'!B9746)","v":""},{"$f":"IF('Generated list'!C9746=\"\",\"\",'Generated list'!C9746)","v":""},{"$f":"IF('Generated list'!D9746=\"\",\"\",'Generated list'!D9746)","v":""}]
[null,{"$f":"IF('Generated list'!B9747=\"\",\"\",'Generated list'!B9747)","v":""},{"$f":"IF('Generated list'!C9747=\"\",\"\",'Generated list'!C9747)","v":""},{"$f":"IF('Generated list'!D9747=\"\",\"\",'Generated list'!D9747)","v":""}]
[null,{"$f":"IF('Generated list'!B9748=\"\",\"\",'Generated list'!B9748)","v":""},{"$f":"IF('Generated list'!C9748=\"\",\"\",'Generated list'!C9748)","v":""},{"$f":"IF('Generated list'!D9748=\"\",\"\",'Generated list'!D9748)","v":""}]
[null,{"$f":"IF('Generated list'!B9749=\"\",\"\",'Generated list'!B9749)","v":""},{"$f":"IF('Generated list'!C9749=\"\",\"\",'Generated list'!C9749)","v":""},{"$f":"IF('Generated list'!D9749=\"\",\"\",'Generated list'!D9749)","v":""}]
[null,{"$f":"IF('Generated list'!B9750=\"\",\"\",'Generated list'!B9750)","v":""},{"$f":"IF('Generated list'!C9750=\"\",\"\",'Generated list'!C9750)","v":""},{"$f":"IF('Generated list'!D9750=\"\",\"\",'Generated list'!D9750)","v":""}]
[null,{"$f":"IF('Generated list'!B9751=\"\",\"\",'Generated list'!B9751)","v":""},{"$f":"IF('Generated list'!C9751=\"\",\"\",'Generated list'!C9751)","v":""},{"$f":"IF('Generated list'!D9751=\"\",\"\",'Generated list'!D9751)","v":""}]
[null,{"$f":"IF('Generated list'!B9752=\"\",\"\",'Generated list'!B9752)","v":""},{"$f":"IF('Generated list'!C9752=\"\",\"\",'Generated list'!C9752)","v":""},{"$f":"IF('Generated list'!D9752=\"\",\"\",'Generated list'!D9752)","v":""}]
[null,{"$f":"IF('Generated list'!B9753=\"\",\"\",'Generated list'!B9753)","v":""},{"$f":"IF('Generated list'!C9753=\"\",\"\",'Generated list'!C9753)","v":""},{"$f":"IF('Generated list'!D9753=\"\",\"\",'Generated list'!D9753)","v":""}]
[null,{"$f":"IF('Generated list'!B9754=\"\",\"\",'Generated list'!B9754)","v":""},{"$f":"IF('Generated list'!C9754=\"\",\"\",'Generated list'!C9754)","v":""},{"$f":"IF('Generated list'!D9754=\"\",\"\",'Generated list'!D9754)","v":""}]
[null,{"$f":"IF('Generated list'!B9755=\"\",\"\",'Generated list'!B9755)","v":""},{"$f":"IF('Generated list'!C9755=\"\",\"\",'Generated list'!C9755)","v":""},{"$f":"IF('Generated list'!D9755=\"\",\"\",'Generated list'!D9755)","v":""}]
[null,{"$f":"IF('Generated list'!B9756=\"\",\"\",'Generated list'!B9756)","v":""},{"$f":"IF('Generated list'!C9756=\"\",\"\",'Generated list'!C9756)","v":""},{"$f":"IF('Generated list'!D9756=\"\",\"\",'Generated list'!D9756)","v":""}]
[null,{"$f":"IF('Generated list'!B9757=\"\",\"\",'Generated list'!B9757)","v":""},{"$f":"IF('Generated list'!C9757=\"\",\"\",'Generated list'!C9757)","v":""},{"$f":"IF('Generated list'!D9757=\"\",\"\",'Generated list'!D9757)","v":""}]
[null,{"$f":"IF('Generated list'!B9758=\"\",\"\",'Generated list'!B9758)","v":""},{"$f":"IF('Generated list'!C9758=\"\",\"\",'Generated list'!C9758)","v":""},{"$f":"IF('Generated list'!D9758=\"\",\"\",'Generated list'!D9758)","v":""}]
[null,{"$f":"IF('Generated list'!B9759=\"\",\"\",'Generated list'!B9759)","v":""},{"$f":"IF('Generated list'!C9759=\"\",\"\",'Generated list'!C9759)","v":""},{"$f":"IF('Generated list'!D9759=\"\",\"\",'Generated list'!D9759)","v":""}]
[null,{"$f":"IF('Generated list'!B9760=\"\",\"\",'Generated list'!B9760)","v":""},{"$f":"IF('Generated list'!C9760=\"\",\"\",'Generated list'!C9760)","v":""},{"$f":"IF('Generated list'!D9760=\"\",\"\",'Generated list'!D9760)","v":""}]
[null,{"$f":"IF('Generated list'!B9761=\"\",\"\",'Generated list'!B9761)","v":""},{"$f":"IF('Generated list'!C9761=\"\",\"\",'Generated list'!C9761)","v":""},{"$f":"IF('Generated list'!D9761=\"\",\"\",'Generated list'!D9761)","v":""}]
[null,{"$f":"IF('Generated list'!B9762=\"\",\"\",'Generated list'!B9762)","v":""},{"$f":"IF('Generated list'!C9762=\"\",\"\",'Generated list'!C9762)","v":""},{"$f":"IF('Generated list'!D9762=\"\",\"\",'Generated list'!D9762)","v":""}]
[null,{"$f":"IF('Generated list'!B9763=\"\",\"\",'Generated list'!B9763)","v":""},{"$f":"IF('Generated list'!C9763=\"\",\"\",'Generated list'!C9763)","v":""},{"$f":"IF('Generated list'!D9763=\"\",\"\",'Generated list'!D9763)","v":""}]
[null,{"$f":"IF('Generated list'!B9764=\"\",\"\",'Generated list'!B9764)","v":""},{"$f":"IF('Generated list'!C9764=\"\",\"\",'Generated list'!C9764)","v":""},{"$f":"IF('Generated list'!D9764=\"\",\"\",'Generated list'!D9764)","v":""}]
[null,{"$f":"IF('Generated list'!B9765=\"\",\"\",'Generated list'!B9765)","v":""},{"$f":"IF('Generated list'!C9765=\"\",\"\",'Generated list'!C9765)","v":""},{"$f":"IF('Generated list'!D9765=\"\",\"\",'Generated list'!D9765)","v":""}]
[null,{"$f":"IF('Generated list'!B9766=\"\",\"\",'Generated list'!B9766)","v":""},{"$f":"IF('Generated list'!C9766=\"\",\"\",'Generated list'!C9766)","v":""},{"$f":"IF('Generated list'!D9766=\"\",\"\",'Generated list'!D9766)","v":""}]
[null,{"$f":"IF('Generated list'!B9767=\"\",\"\",'Generated list'!B9767)","v":""},{"$f":"IF('Generated list'!C9767=\"\",\"\",'Generated list'!C9767)","v":""},{"$f":"IF('Generated list'!D9767=\"\",\"\",'Generated list'!D9767)","v":""}]
[null,{"$f":"IF('Generated list'!B9768=\"\",\"\",'Generated list'!B9768)","v":""},{"$f":"IF('Generated list'!C9768=\"\",\"\",'Generated list'!C9768)","v":""},{"$f":"IF('Generated list'!D9768=\"\",\"\",'Generated list'!D9768)","v":""}]
[null,{"$f":"IF('Generated list'!B9769=\"\",\"\",'Generated list'!B9769)","v":""},{"$f":"IF('Generated list'!C9769=\"\",\"\",'Generated list'!C9769)","v":""},{"$f":"IF('Generated list'!D9769=\"\",\"\",'Generated list'!D9769)","v":""}]
[null,{"$f":"IF('Generated list'!B9770=\"\",\"\",'Generated list'!B9770)","v":""},{"$f":"IF('Generated list'!C9770=\"\",\"\",'Generated list'!C9770)","v":""},{"$f":"IF('Generated list'!D9770=\"\",\"\",'Generated list'!D9770)","v":""}]
[null,{"$f":"IF('Generated list'!B9771=\"\",\"\",'Generated list'!B9771)","v":""},{"$f":"IF('Generated list'!C9771=\"\",\"\",'Generated list'!C9771)","v":""},{"$f":"IF('Generated list'!D9771=\"\",\"\",'Generated list'!D9771)","v":""}]
[null,{"$f":"IF('Generated list'!B9772=\"\",\"\",'Generated list'!B9772)","v":""},{"$f":"IF('Generated list'!C9772=\"\",\"\",'Generated list'!C9772)","v":""},{"$f":"IF('Generated list'!D9772=\"\",\"\",'Generated list'!D9772)","v":""}]
[null,{"$f":"IF('Generated list'!B9773=\"\",\"\",'Generated list'!B9773)","v":""},{"$f":"IF('Generated list'!C9773=\"\",\"\",'Generated list'!C9773)","v":""},{"$f":"IF('Generated list'!D9773=\"\",\"\",'Generated list'!D9773)","v":""}]
[null,{"$f":"IF('Generated list'!B9774=\"\",\"\",'Generated list'!B9774)","v":""},{"$f":"IF('Generated list'!C9774=\"\",\"\",'Generated list'!C9774)","v":""},{"$f":"IF('Generated list'!D9774=\"\",\"\",'Generated list'!D9774)","v":""}]
[null,{"$f":"IF('Generated list'!B9775=\"\",\"\",'Generated list'!B9775)","v":""},{"$f":"IF('Generated list'!C9775=\"\",\"\",'Generated list'!C9775)","v":""},{"$f":"IF('Generated list'!D9775=\"\",\"\",'Generated list'!D9775)","v":""}]
[null,{"$f":"IF('Generated list'!B9776=\"\",\"\",'Generated list'!B9776)","v":""},{"$f":"IF('Generated list'!C9776=\"\",\"\",'Generated list'!C9776)","v":""},{"$f":"IF('Generated list'!D9776=\"\",\"\",'Generated list'!D9776)","v":""}]
[null,{"$f":"IF('Generated list'!B9777=\"\",\"\",'Generated list'!B9777)","v":""},{"$f":"IF('Generated list'!C9777=\"\",\"\",'Generated list'!C9777)","v":""},{"$f":"IF('Generated list'!D9777=\"\",\"\",'Generated list'!D9777)","v":""}]
[null,{"$f":"IF('Generated list'!B9778=\"\",\"\",'Generated list'!B9778)","v":""},{"$f":"IF('Generated list'!C9778=\"\",\"\",'Generated list'!C9778)","v":""},{"$f":"IF('Generated list'!D9778=\"\",\"\",'Generated list'!D9778)","v":""}]
[null,{"$f":"IF('Generated list'!B9779=\"\",\"\",'Generated list'!B9779)","v":""},{"$f":"IF('Generated list'!C9779=\"\",\"\",'Generated list'!C9779)","v":""},{"$f":"IF('Generated list'!D9779=\"\",\"\",'Generated list'!D9779)","v":""}]
[null,{"$f":"IF('Generated list'!B9780=\"\",\"\",'Generated list'!B9780)","v":""},{"$f":"IF('Generated list'!C9780=\"\",\"\",'Generated list'!C9780)","v":""},{"$f":"IF('Generated list'!D9780=\"\",\"\",'Generated list'!D9780)","v":""}]
[null,{"$f":"IF('Generated list'!B9781=\"\",\"\",'Generated list'!B9781)","v":""},{"$f":"IF('Generated list'!C9781=\"\",\"\",'Generated list'!C9781)","v":""},{"$f":"IF('Generated list'!D9781=\"\",\"\",'Generated list'!D9781)","v":""}]
[null,{"$f":"IF('Generated list'!B9782=\"\",\"\",'Generated list'!B9782)","v":""},{"$f":"IF('Generated list'!C9782=\"\",\"\",'Generated list'!C9782)","v":""},{"$f":"IF('Generated list'!D9782=\"\",\"\",'Generated list'!D9782)","v":""}]
[null,{"$f":"IF('Generated list'!B9783=\"\",\"\",'Generated list'!B9783)","v":""},{"$f":"IF('Generated list'!C9783=\"\",\"\",'Generated list'!C9783)","v":""},{"$f":"IF('Generated list'!D9783=\"\",\"\",'Generated list'!D9783)","v":""}]
[null,{"$f":"IF('Generated list'!B9784=\"\",\"\",'Generated list'!B9784)","v":""},{"$f":"IF('Generated list'!C9784=\"\",\"\",'Generated list'!C9784)","v":""},{"$f":"IF('Generated list'!D9784=\"\",\"\",'Generated list'!D9784)","v":""}]
[null,{"$f":"IF('Generated list'!B9785=\"\",\"\",'Generated list'!B9785)","v":""},{"$f":"IF('Generated list'!C9785=\"\",\"\",'Generated list'!C9785)","v":""},{"$f":"IF('Generated list'!D9785=\"\",\"\",'Generated list'!D9785)","v":""}]
[null,{"$f":"IF('Generated list'!B9786=\"\",\"\",'Generated list'!B9786)","v":""},{"$f":"IF('Generated list'!C9786=\"\",\"\",'Generated list'!C9786)","v":""},{"$f":"IF('Generated list'!D9786=\"\",\"\",'Generated list'!D9786)","v":""}]
[null,{"$f":"IF('Generated list'!B9787=\"\",\"\",'Generated list'!B9787)","v":""},{"$f":"IF('Generated list'!C9787=\"\",\"\",'Generated list'!C9787)","v":""},{"$f":"IF('Generated list'!D9787=\"\",\"\",'Generated list'!D9787)","v":""}]
[null,{"$f":"IF('Generated list'!B9788=\"\",\"\",'Generated list'!B9788)","v":""},{"$f":"IF('Generated list'!C9788=\"\",\"\",'Generated list'!C9788)","v":""},{"$f":"IF('Generated list'!D9788=\"\",\"\",'Generated list'!D9788)","v":""}]
[null,{"$f":"IF('Generated list'!B9789=\"\",\"\",'Generated list'!B9789)","v":""},{"$f":"IF('Generated list'!C9789=\"\",\"\",'Generated list'!C9789)","v":""},{"$f":"IF('Generated list'!D9789=\"\",\"\",'Generated list'!D9789)","v":""}]
[null,{"$f":"IF('Generated list'!B9790=\"\",\"\",'Generated list'!B9790)","v":""},{"$f":"IF('Generated list'!C9790=\"\",\"\",'Generated list'!C9790)","v":""},{"$f":"IF('Generated list'!D9790=\"\",\"\",'Generated list'!D9790)","v":""}]
[null,{"$f":"IF('Generated list'!B9791=\"\",\"\",'Generated list'!B9791)","v":""},{"$f":"IF('Generated list'!C9791=\"\",\"\",'Generated list'!C9791)","v":""},{"$f":"IF('Generated list'!D9791=\"\",\"\",'Generated list'!D9791)","v":""}]
[null,{"$f":"IF('Generated list'!B9792=\"\",\"\",'Generated list'!B9792)","v":""},{"$f":"IF('Generated list'!C9792=\"\",\"\",'Generated list'!C9792)","v":""},{"$f":"IF('Generated list'!D9792=\"\",\"\",'Generated list'!D9792)","v":""}]
[null,{"$f":"IF('Generated list'!B9793=\"\",\"\",'Generated list'!B9793)","v":""},{"$f":"IF('Generated list'!C9793=\"\",\"\",'Generated list'!C9793)","v":""},{"$f":"IF('Generated list'!D9793=\"\",\"\",'Generated list'!D9793)","v":""}]
[null,{"$f":"IF('Generated list'!B9794=\"\",\"\",'Generated list'!B9794)","v":""},{"$f":"IF('Generated list'!C9794=\"\",\"\",'Generated list'!C9794)","v":""},{"$f":"IF('Generated list'!D9794=\"\",\"\",'Generated list'!D9794)","v":""}]
[null,{"$f":"IF('Generated list'!B9795=\"\",\"\",'Generated list'!B9795)","v":""},{"$f":"IF('Generated list'!C9795=\"\",\"\",'Generated list'!C9795)","v":""},{"$f":"IF('Generated list'!D9795=\"\",\"\",'Generated list'!D9795)","v":""}]
[null,{"$f":"IF('Generated list'!B9796=\"\",\"\",'Generated list'!B9796)","v":""},{"$f":"IF('Generated list'!C9796=\"\",\"\",'Generated list'!C9796)","v":""},{"$f":"IF('Generated list'!D9796=\"\",\"\",'Generated list'!D9796)","v":""}]
[null,{"$f":"IF('Generated list'!B9797=\"\",\"\",'Generated list'!B9797)","v":""},{"$f":"IF('Generated list'!C9797=\"\",\"\",'Generated list'!C9797)","v":""},{"$f":"IF('Generated list'!D9797=\"\",\"\",'Generated list'!D9797)","v":""}]
[null,{"$f":"IF('Generated list'!B9798=\"\",\"\",'Generated list'!B9798)","v":""},{"$f":"IF('Generated list'!C9798=\"\",\"\",'Generated list'!C9798)","v":""},{"$f":"IF('Generated list'!D9798=\"\",\"\",'Generated list'!D9798)","v":""}]
[null,{"$f":"IF('Generated list'!B9799=\"\",\"\",'Generated list'!B9799)","v":""},{"$f":"IF('Generated list'!C9799=\"\",\"\",'Generated list'!C9799)","v":""},{"$f":"IF('Generated list'!D9799=\"\",\"\",'Generated list'!D9799)","v":""}]
[null,{"$f":"IF('Generated list'!B9800=\"\",\"\",'Generated list'!B9800)","v":""},{"$f":"IF('Generated list'!C9800=\"\",\"\",'Generated list'!C9800)","v":""},{"$f":"IF('Generated list'!D9800=\"\",\"\",'Generated list'!D9800)","v":""}]
[null,{"$f":"IF('Generated list'!B9801=\"\",\"\",'Generated list'!B9801)","v":""},{"$f":"IF('Generated list'!C9801=\"\",\"\",'Generated list'!C9801)","v":""},{"$f":"IF('Generated list'!D9801=\"\",\"\",'Generated list'!D9801)","v":""}]
[null,{"$f":"IF('Generated list'!B9802=\"\",\"\",'Generated list'!B9802)","v":""},{"$f":"IF('Generated list'!C9802=\"\",\"\",'Generated list'!C9802)","v":""},{"$f":"IF('Generated list'!D9802=\"\",\"\",'Generated list'!D9802)","v":""}]
[null,{"$f":"IF('Generated list'!B9803=\"\",\"\",'Generated list'!B9803)","v":""},{"$f":"IF('Generated list'!C9803=\"\",\"\",'Generated list'!C9803)","v":""},{"$f":"IF('Generated list'!D9803=\"\",\"\",'Generated list'!D9803)","v":""}]
[null,{"$f":"IF('Generated list'!B9804=\"\",\"\",'Generated list'!B9804)","v":""},{"$f":"IF('Generated list'!C9804=\"\",\"\",'Generated list'!C9804)","v":""},{"$f":"IF('Generated list'!D9804=\"\",\"\",'Generated list'!D9804)","v":""}]
[null,{"$f":"IF('Generated list'!B9805=\"\",\"\",'Generated list'!B9805)","v":""},{"$f":"IF('Generated list'!C9805=\"\",\"\",'Generated list'!C9805)","v":""},{"$f":"IF('Generated list'!D9805=\"\",\"\",'Generated list'!D9805)","v":""}]
[null,{"$f":"IF('Generated list'!B9806=\"\",\"\",'Generated list'!B9806)","v":""},{"$f":"IF('Generated list'!C9806=\"\",\"\",'Generated list'!C9806)","v":""},{"$f":"IF('Generated list'!D9806=\"\",\"\",'Generated list'!D9806)","v":""}]
[null,{"$f":"IF('Generated list'!B9807=\"\",\"\",'Generated list'!B9807)","v":""},{"$f":"IF('Generated list'!C9807=\"\",\"\",'Generated list'!C9807)","v":""},{"$f":"IF('Generated list'!D9807=\"\",\"\",'Generated list'!D9807)","v":""}]
[null,{"$f":"IF('Generated list'!B9808=\"\",\"\",'Generated list'!B9808)","v":""},{"$f":"IF('Generated list'!C9808=\"\",\"\",'Generated list'!C9808)","v":""},{"$f":"IF('Generated list'!D9808=\"\",\"\",'Generated list'!D9808)","v":""}]
[null,{"$f":"IF('Generated list'!B9809=\"\",\"\",'Generated list'!B9809)","v":""},{"$f":"IF('Generated list'!C9809=\"\",\"\",'Generated list'!C9809)","v":""},{"$f":"IF('Generated list'!D9809=\"\",\"\",'Generated list'!D9809)","v":""}]
[null,{"$f":"IF('Generated list'!B9810=\"\",\"\",'Generated list'!B9810)","v":""},{"$f":"IF('Generated list'!C9810=\"\",\"\",'Generated list'!C9810)","v":""},{"$f":"IF('Generated list'!D9810=\"\",\"\",'Generated list'!D9810)","v":""}]
[null,{"$f":"IF('Generated list'!B9811=\"\",\"\",'Generated list'!B9811)","v":""},{"$f":"IF('Generated list'!C9811=\"\",\"\",'Generated list'!C9811)","v":""},{"$f":"IF('Generated list'!D9811=\"\",\"\",'Generated list'!D9811)","v":""}]
[null,{"$f":"IF('Generated list'!B9812=\"\",\"\",'Generated list'!B9812)","v":""},{"$f":"IF('Generated list'!C9812=\"\",\"\",'Generated list'!C9812)","v":""},{"$f":"IF('Generated list'!D9812=\"\",\"\",'Generated list'!D9812)","v":""}]
[null,{"$f":"IF('Generated list'!B9813=\"\",\"\",'Generated list'!B9813)","v":""},{"$f":"IF('Generated list'!C9813=\"\",\"\",'Generated list'!C9813)","v":""},{"$f":"IF('Generated list'!D9813=\"\",\"\",'Generated list'!D9813)","v":""}]
[null,{"$f":"IF('Generated list'!B9814=\"\",\"\",'Generated list'!B9814)","v":""},{"$f":"IF('Generated list'!C9814=\"\",\"\",'Generated list'!C9814)","v":""},{"$f":"IF('Generated list'!D9814=\"\",\"\",'Generated list'!D9814)","v":""}]
[null,{"$f":"IF('Generated list'!B9815=\"\",\"\",'Generated list'!B9815)","v":""},{"$f":"IF('Generated list'!C9815=\"\",\"\",'Generated list'!C9815)","v":""},{"$f":"IF('Generated list'!D9815=\"\",\"\",'Generated list'!D9815)","v":""}]
[null,{"$f":"IF('Generated list'!B9816=\"\",\"\",'Generated list'!B9816)","v":""},{"$f":"IF('Generated list'!C9816=\"\",\"\",'Generated list'!C9816)","v":""},{"$f":"IF('Generated list'!D9816=\"\",\"\",'Generated list'!D9816)","v":""}]
[null,{"$f":"IF('Generated list'!B9817=\"\",\"\",'Generated list'!B9817)","v":""},{"$f":"IF('Generated list'!C9817=\"\",\"\",'Generated list'!C9817)","v":""},{"$f":"IF('Generated list'!D9817=\"\",\"\",'Generated list'!D9817)","v":""}]
[null,{"$f":"IF('Generated list'!B9818=\"\",\"\",'Generated list'!B9818)","v":""},{"$f":"IF('Generated list'!C9818=\"\",\"\",'Generated list'!C9818)","v":""},{"$f":"IF('Generated list'!D9818=\"\",\"\",'Generated list'!D9818)","v":""}]
[null,{"$f":"IF('Generated list'!B9819=\"\",\"\",'Generated list'!B9819)","v":""},{"$f":"IF('Generated list'!C9819=\"\",\"\",'Generated list'!C9819)","v":""},{"$f":"IF('Generated list'!D9819=\"\",\"\",'Generated list'!D9819)","v":""}]
[null,{"$f":"IF('Generated list'!B9820=\"\",\"\",'Generated list'!B9820)","v":""},{"$f":"IF('Generated list'!C9820=\"\",\"\",'Generated list'!C9820)","v":""},{"$f":"IF('Generated list'!D9820=\"\",\"\",'Generated list'!D9820)","v":""}]
[null,{"$f":"IF('Generated list'!B9821=\"\",\"\",'Generated list'!B9821)","v":""},{"$f":"IF('Generated list'!C9821=\"\",\"\",'Generated list'!C9821)","v":""},{"$f":"IF('Generated list'!D9821=\"\",\"\",'Generated list'!D9821)","v":""}]
[null,{"$f":"IF('Generated list'!B9822=\"\",\"\",'Generated list'!B9822)","v":""},{"$f":"IF('Generated list'!C9822=\"\",\"\",'Generated list'!C9822)","v":""},{"$f":"IF('Generated list'!D9822=\"\",\"\",'Generated list'!D9822)","v":""}]
[null,{"$f":"IF('Generated list'!B9823=\"\",\"\",'Generated list'!B9823)","v":""},{"$f":"IF('Generated list'!C9823=\"\",\"\",'Generated list'!C9823)","v":""},{"$f":"IF('Generated list'!D9823=\"\",\"\",'Generated list'!D9823)","v":""}]
[null,{"$f":"IF('Generated list'!B9824=\"\",\"\",'Generated list'!B9824)","v":""},{"$f":"IF('Generated list'!C9824=\"\",\"\",'Generated list'!C9824)","v":""},{"$f":"IF('Generated list'!D9824=\"\",\"\",'Generated list'!D9824)","v":""}]
[null,{"$f":"IF('Generated list'!B9825=\"\",\"\",'Generated list'!B9825)","v":""},{"$f":"IF('Generated list'!C9825=\"\",\"\",'Generated list'!C9825)","v":""},{"$f":"IF('Generated list'!D9825=\"\",\"\",'Generated list'!D9825)","v":""}]
[null,{"$f":"IF('Generated list'!B9826=\"\",\"\",'Generated list'!B9826)","v":""},{"$f":"IF('Generated list'!C9826=\"\",\"\",'Generated list'!C9826)","v":""},{"$f":"IF('Generated list'!D9826=\"\",\"\",'Generated list'!D9826)","v":""}]
[null,{"$f":"IF('Generated list'!B9827=\"\",\"\",'Generated list'!B9827)","v":""},{"$f":"IF('Generated list'!C9827=\"\",\"\",'Generated list'!C9827)","v":""},{"$f":"IF('Generated list'!D9827=\"\",\"\",'Generated list'!D9827)","v":""}]
[null,{"$f":"IF('Generated list'!B9828=\"\",\"\",'Generated list'!B9828)","v":""},{"$f":"IF('Generated list'!C9828=\"\",\"\",'Generated list'!C9828)","v":""},{"$f":"IF('Generated list'!D9828=\"\",\"\",'Generated list'!D9828)","v":""}]
[null,{"$f":"IF('Generated list'!B9829=\"\",\"\",'Generated list'!B9829)","v":""},{"$f":"IF('Generated list'!C9829=\"\",\"\",'Generated list'!C9829)","v":""},{"$f":"IF('Generated list'!D9829=\"\",\"\",'Generated list'!D9829)","v":""}]
[null,{"$f":"IF('Generated list'!B9830=\"\",\"\",'Generated list'!B9830)","v":""},{"$f":"IF('Generated list'!C9830=\"\",\"\",'Generated list'!C9830)","v":""},{"$f":"IF('Generated list'!D9830=\"\",\"\",'Generated list'!D9830)","v":""}]
[null,{"$f":"IF('Generated list'!B9831=\"\",\"\",'Generated list'!B9831)","v":""},{"$f":"IF('Generated list'!C9831=\"\",\"\",'Generated list'!C9831)","v":""},{"$f":"IF('Generated list'!D9831=\"\",\"\",'Generated list'!D9831)","v":""}]
[null,{"$f":"IF('Generated list'!B9832=\"\",\"\",'Generated list'!B9832)","v":""},{"$f":"IF('Generated list'!C9832=\"\",\"\",'Generated list'!C9832)","v":""},{"$f":"IF('Generated list'!D9832=\"\",\"\",'Generated list'!D9832)","v":""}]
[null,{"$f":"IF('Generated list'!B9833=\"\",\"\",'Generated list'!B9833)","v":""},{"$f":"IF('Generated list'!C9833=\"\",\"\",'Generated list'!C9833)","v":""},{"$f":"IF('Generated list'!D9833=\"\",\"\",'Generated list'!D9833)","v":""}]
[null,{"$f":"IF('Generated list'!B9834=\"\",\"\",'Generated list'!B9834)","v":""},{"$f":"IF('Generated list'!C9834=\"\",\"\",'Generated list'!C9834)","v":""},{"$f":"IF('Generated list'!D9834=\"\",\"\",'Generated list'!D9834)","v":""}]
[null,{"$f":"IF('Generated list'!B9835=\"\",\"\",'Generated list'!B9835)","v":""},{"$f":"IF('Generated list'!C9835=\"\",\"\",'Generated list'!C9835)","v":""},{"$f":"IF('Generated list'!D9835=\"\",\"\",'Generated list'!D9835)","v":""}]
[null,{"$f":"IF('Generated list'!B9836=\"\",\"\",'Generated list'!B9836)","v":""},{"$f":"IF('Generated list'!C9836=\"\",\"\",'Generated list'!C9836)","v":""},{"$f":"IF('Generated list'!D9836=\"\",\"\",'Generated list'!D9836)","v":""}]
[null,{"$f":"IF('Generated list'!B9837=\"\",\"\",'Generated list'!B9837)","v":""},{"$f":"IF('Generated list'!C9837=\"\",\"\",'Generated list'!C9837)","v":""},{"$f":"IF('Generated list'!D9837=\"\",\"\",'Generated list'!D9837)","v":""}]
[null,{"$f":"IF('Generated list'!B9838=\"\",\"\",'Generated list'!B9838)","v":""},{"$f":"IF('Generated list'!C9838=\"\",\"\",'Generated list'!C9838)","v":""},{"$f":"IF('Generated list'!D9838=\"\",\"\",'Generated list'!D9838)","v":""}]
[null,{"$f":"IF('Generated list'!B9839=\"\",\"\",'Generated list'!B9839)","v":""},{"$f":"IF('Generated list'!C9839=\"\",\"\",'Generated list'!C9839)","v":""},{"$f":"IF('Generated list'!D9839=\"\",\"\",'Generated list'!D9839)","v":""}]
[null,{"$f":"IF('Generated list'!B9840=\"\",\"\",'Generated list'!B9840)","v":""},{"$f":"IF('Generated list'!C9840=\"\",\"\",'Generated list'!C9840)","v":""},{"$f":"IF('Generated list'!D9840=\"\",\"\",'Generated list'!D9840)","v":""}]
[null,{"$f":"IF('Generated list'!B9841=\"\",\"\",'Generated list'!B9841)","v":""},{"$f":"IF('Generated list'!C9841=\"\",\"\",'Generated list'!C9841)","v":""},{"$f":"IF('Generated list'!D9841=\"\",\"\",'Generated list'!D9841)","v":""}]
[null,{"$f":"IF('Generated list'!B9842=\"\",\"\",'Generated list'!B9842)","v":""},{"$f":"IF('Generated list'!C9842=\"\",\"\",'Generated list'!C9842)","v":""},{"$f":"IF('Generated list'!D9842=\"\",\"\",'Generated list'!D9842)","v":""}]
[null,{"$f":"IF('Generated list'!B9843=\"\",\"\",'Generated list'!B9843)","v":""},{"$f":"IF('Generated list'!C9843=\"\",\"\",'Generated list'!C9843)","v":""},{"$f":"IF('Generated list'!D9843=\"\",\"\",'Generated list'!D9843)","v":""}]
[null,{"$f":"IF('Generated list'!B9844=\"\",\"\",'Generated list'!B9844)","v":""},{"$f":"IF('Generated list'!C9844=\"\",\"\",'Generated list'!C9844)","v":""},{"$f":"IF('Generated list'!D9844=\"\",\"\",'Generated list'!D9844)","v":""}]
[null,{"$f":"IF('Generated list'!B9845=\"\",\"\",'Generated list'!B9845)","v":""},{"$f":"IF('Generated list'!C9845=\"\",\"\",'Generated list'!C9845)","v":""},{"$f":"IF('Generated list'!D9845=\"\",\"\",'Generated list'!D9845)","v":""}]
[null,{"$f":"IF('Generated list'!B9846=\"\",\"\",'Generated list'!B9846)","v":""},{"$f":"IF('Generated list'!C9846=\"\",\"\",'Generated list'!C9846)","v":""},{"$f":"IF('Generated list'!D9846=\"\",\"\",'Generated list'!D9846)","v":""}]
[null,{"$f":"IF('Generated list'!B9847=\"\",\"\",'Generated list'!B9847)","v":""},{"$f":"IF('Generated list'!C9847=\"\",\"\",'Generated list'!C9847)","v":""},{"$f":"IF('Generated list'!D9847=\"\",\"\",'Generated list'!D9847)","v":""}]
[null,{"$f":"IF('Generated list'!B9848=\"\",\"\",'Generated list'!B9848)","v":""},{"$f":"IF('Generated list'!C9848=\"\",\"\",'Generated list'!C9848)","v":""},{"$f":"IF('Generated list'!D9848=\"\",\"\",'Generated list'!D9848)","v":""}]
[null,{"$f":"IF('Generated list'!B9849=\"\",\"\",'Generated list'!B9849)","v":""},{"$f":"IF('Generated list'!C9849=\"\",\"\",'Generated list'!C9849)","v":""},{"$f":"IF('Generated list'!D9849=\"\",\"\",'Generated list'!D9849)","v":""}]
[null,{"$f":"IF('Generated list'!B9850=\"\",\"\",'Generated list'!B9850)","v":""},{"$f":"IF('Generated list'!C9850=\"\",\"\",'Generated list'!C9850)","v":""},{"$f":"IF('Generated list'!D9850=\"\",\"\",'Generated list'!D9850)","v":""}]
[null,{"$f":"IF('Generated list'!B9851=\"\",\"\",'Generated list'!B9851)","v":""},{"$f":"IF('Generated list'!C9851=\"\",\"\",'Generated list'!C9851)","v":""},{"$f":"IF('Generated list'!D9851=\"\",\"\",'Generated list'!D9851)","v":""}]
[null,{"$f":"IF('Generated list'!B9852=\"\",\"\",'Generated list'!B9852)","v":""},{"$f":"IF('Generated list'!C9852=\"\",\"\",'Generated list'!C9852)","v":""},{"$f":"IF('Generated list'!D9852=\"\",\"\",'Generated list'!D9852)","v":""}]
[null,{"$f":"IF('Generated list'!B9853=\"\",\"\",'Generated list'!B9853)","v":""},{"$f":"IF('Generated list'!C9853=\"\",\"\",'Generated list'!C9853)","v":""},{"$f":"IF('Generated list'!D9853=\"\",\"\",'Generated list'!D9853)","v":""}]
[null,{"$f":"IF('Generated list'!B9854=\"\",\"\",'Generated list'!B9854)","v":""},{"$f":"IF('Generated list'!C9854=\"\",\"\",'Generated list'!C9854)","v":""},{"$f":"IF('Generated list'!D9854=\"\",\"\",'Generated list'!D9854)","v":""}]
[null,{"$f":"IF('Generated list'!B9855=\"\",\"\",'Generated list'!B9855)","v":""},{"$f":"IF('Generated list'!C9855=\"\",\"\",'Generated list'!C9855)","v":""},{"$f":"IF('Generated list'!D9855=\"\",\"\",'Generated list'!D9855)","v":""}]
[null,{"$f":"IF('Generated list'!B9856=\"\",\"\",'Generated list'!B9856)","v":""},{"$f":"IF('Generated list'!C9856=\"\",\"\",'Generated list'!C9856)","v":""},{"$f":"IF('Generated list'!D9856=\"\",\"\",'Generated list'!D9856)","v":""}]
[null,{"$f":"IF('Generated list'!B9857=\"\",\"\",'Generated list'!B9857)","v":""},{"$f":"IF('Generated list'!C9857=\"\",\"\",'Generated list'!C9857)","v":""},{"$f":"IF('Generated list'!D9857=\"\",\"\",'Generated list'!D9857)","v":""}]
[null,{"$f":"IF('Generated list'!B9858=\"\",\"\",'Generated list'!B9858)","v":""},{"$f":"IF('Generated list'!C9858=\"\",\"\",'Generated list'!C9858)","v":""},{"$f":"IF('Generated list'!D9858=\"\",\"\",'Generated list'!D9858)","v":""}]
[null,{"$f":"IF('Generated list'!B9859=\"\",\"\",'Generated list'!B9859)","v":""},{"$f":"IF('Generated list'!C9859=\"\",\"\",'Generated list'!C9859)","v":""},{"$f":"IF('Generated list'!D9859=\"\",\"\",'Generated list'!D9859)","v":""}]
[null,{"$f":"IF('Generated list'!B9860=\"\",\"\",'Generated list'!B9860)","v":""},{"$f":"IF('Generated list'!C9860=\"\",\"\",'Generated list'!C9860)","v":""},{"$f":"IF('Generated list'!D9860=\"\",\"\",'Generated list'!D9860)","v":""}]
[null,{"$f":"IF('Generated list'!B9861=\"\",\"\",'Generated list'!B9861)","v":""},{"$f":"IF('Generated list'!C9861=\"\",\"\",'Generated list'!C9861)","v":""},{"$f":"IF('Generated list'!D9861=\"\",\"\",'Generated list'!D9861)","v":""}]
[null,{"$f":"IF('Generated list'!B9862=\"\",\"\",'Generated list'!B9862)","v":""},{"$f":"IF('Generated list'!C9862=\"\",\"\",'Generated list'!C9862)","v":""},{"$f":"IF('Generated list'!D9862=\"\",\"\",'Generated list'!D9862)","v":""}]
[null,{"$f":"IF('Generated list'!B9863=\"\",\"\",'Generated list'!B9863)","v":""},{"$f":"IF('Generated list'!C9863=\"\",\"\",'Generated list'!C9863)","v":""},{"$f":"IF('Generated list'!D9863=\"\",\"\",'Generated list'!D9863)","v":""}]
[null,{"$f":"IF('Generated list'!B9864=\"\",\"\",'Generated list'!B9864)","v":""},{"$f":"IF('Generated list'!C9864=\"\",\"\",'Generated list'!C9864)","v":""},{"$f":"IF('Generated list'!D9864=\"\",\"\",'Generated list'!D9864)","v":""}]
[null,{"$f":"IF('Generated list'!B9865=\"\",\"\",'Generated list'!B9865)","v":""},{"$f":"IF('Generated list'!C9865=\"\",\"\",'Generated list'!C9865)","v":""},{"$f":"IF('Generated list'!D9865=\"\",\"\",'Generated list'!D9865)","v":""}]
[null,{"$f":"IF('Generated list'!B9866=\"\",\"\",'Generated list'!B9866)","v":""},{"$f":"IF('Generated list'!C9866=\"\",\"\",'Generated list'!C9866)","v":""},{"$f":"IF('Generated list'!D9866=\"\",\"\",'Generated list'!D9866)","v":""}]
[null,{"$f":"IF('Generated list'!B9867=\"\",\"\",'Generated list'!B9867)","v":""},{"$f":"IF('Generated list'!C9867=\"\",\"\",'Generated list'!C9867)","v":""},{"$f":"IF('Generated list'!D9867=\"\",\"\",'Generated list'!D9867)","v":""}]
[null,{"$f":"IF('Generated list'!B9868=\"\",\"\",'Generated list'!B9868)","v":""},{"$f":"IF('Generated list'!C9868=\"\",\"\",'Generated list'!C9868)","v":""},{"$f":"IF('Generated list'!D9868=\"\",\"\",'Generated list'!D9868)","v":""}]
[null,{"$f":"IF('Generated list'!B9869=\"\",\"\",'Generated list'!B9869)","v":""},{"$f":"IF('Generated list'!C9869=\"\",\"\",'Generated list'!C9869)","v":""},{"$f":"IF('Generated list'!D9869=\"\",\"\",'Generated list'!D9869)","v":""}]
[null,{"$f":"IF('Generated list'!B9870=\"\",\"\",'Generated list'!B9870)","v":""},{"$f":"IF('Generated list'!C9870=\"\",\"\",'Generated list'!C9870)","v":""},{"$f":"IF('Generated list'!D9870=\"\",\"\",'Generated list'!D9870)","v":""}]
[null,{"$f":"IF('Generated list'!B9871=\"\",\"\",'Generated list'!B9871)","v":""},{"$f":"IF('Generated list'!C9871=\"\",\"\",'Generated list'!C9871)","v":""},{"$f":"IF('Generated list'!D9871=\"\",\"\",'Generated list'!D9871)","v":""}]
[null,{"$f":"IF('Generated list'!B9872=\"\",\"\",'Generated list'!B9872)","v":""},{"$f":"IF('Generated list'!C9872=\"\",\"\",'Generated list'!C9872)","v":""},{"$f":"IF('Generated list'!D9872=\"\",\"\",'Generated list'!D9872)","v":""}]
[null,{"$f":"IF('Generated list'!B9873=\"\",\"\",'Generated list'!B9873)","v":""},{"$f":"IF('Generated list'!C9873=\"\",\"\",'Generated list'!C9873)","v":""},{"$f":"IF('Generated list'!D9873=\"\",\"\",'Generated list'!D9873)","v":""}]
[null,{"$f":"IF('Generated list'!B9874=\"\",\"\",'Generated list'!B9874)","v":""},{"$f":"IF('Generated list'!C9874=\"\",\"\",'Generated list'!C9874)","v":""},{"$f":"IF('Generated list'!D9874=\"\",\"\",'Generated list'!D9874)","v":""}]
[null,{"$f":"IF('Generated list'!B9875=\"\",\"\",'Generated list'!B9875)","v":""},{"$f":"IF('Generated list'!C9875=\"\",\"\",'Generated list'!C9875)","v":""},{"$f":"IF('Generated list'!D9875=\"\",\"\",'Generated list'!D9875)","v":""}]
[null,{"$f":"IF('Generated list'!B9876=\"\",\"\",'Generated list'!B9876)","v":""},{"$f":"IF('Generated list'!C9876=\"\",\"\",'Generated list'!C9876)","v":""},{"$f":"IF('Generated list'!D9876=\"\",\"\",'Generated list'!D9876)","v":""}]
[null,{"$f":"IF('Generated list'!B9877=\"\",\"\",'Generated list'!B9877)","v":""},{"$f":"IF('Generated list'!C9877=\"\",\"\",'Generated list'!C9877)","v":""},{"$f":"IF('Generated list'!D9877=\"\",\"\",'Generated list'!D9877)","v":""}]
[null,{"$f":"IF('Generated list'!B9878=\"\",\"\",'Generated list'!B9878)","v":""},{"$f":"IF('Generated list'!C9878=\"\",\"\",'Generated list'!C9878)","v":""},{"$f":"IF('Generated list'!D9878=\"\",\"\",'Generated list'!D9878)","v":""}]
[null,{"$f":"IF('Generated list'!B9879=\"\",\"\",'Generated list'!B9879)","v":""},{"$f":"IF('Generated list'!C9879=\"\",\"\",'Generated list'!C9879)","v":""},{"$f":"IF('Generated list'!D9879=\"\",\"\",'Generated list'!D9879)","v":""}]
[null,{"$f":"IF('Generated list'!B9880=\"\",\"\",'Generated list'!B9880)","v":""},{"$f":"IF('Generated list'!C9880=\"\",\"\",'Generated list'!C9880)","v":""},{"$f":"IF('Generated list'!D9880=\"\",\"\",'Generated list'!D9880)","v":""}]
[null,{"$f":"IF('Generated list'!B9881=\"\",\"\",'Generated list'!B9881)","v":""},{"$f":"IF('Generated list'!C9881=\"\",\"\",'Generated list'!C9881)","v":""},{"$f":"IF('Generated list'!D9881=\"\",\"\",'Generated list'!D9881)","v":""}]
[null,{"$f":"IF('Generated list'!B9882=\"\",\"\",'Generated list'!B9882)","v":""},{"$f":"IF('Generated list'!C9882=\"\",\"\",'Generated list'!C9882)","v":""},{"$f":"IF('Generated list'!D9882=\"\",\"\",'Generated list'!D9882)","v":""}]
[null,{"$f":"IF('Generated list'!B9883=\"\",\"\",'Generated list'!B9883)","v":""},{"$f":"IF('Generated list'!C9883=\"\",\"\",'Generated list'!C9883)","v":""},{"$f":"IF('Generated list'!D9883=\"\",\"\",'Generated list'!D9883)","v":""}]
[null,{"$f":"IF('Generated list'!B9884=\"\",\"\",'Generated list'!B9884)","v":""},{"$f":"IF('Generated list'!C9884=\"\",\"\",'Generated list'!C9884)","v":""},{"$f":"IF('Generated list'!D9884=\"\",\"\",'Generated list'!D9884)","v":""}]
[null,{"$f":"IF('Generated list'!B9885=\"\",\"\",'Generated list'!B9885)","v":""},{"$f":"IF('Generated list'!C9885=\"\",\"\",'Generated list'!C9885)","v":""},{"$f":"IF('Generated list'!D9885=\"\",\"\",'Generated list'!D9885)","v":""}]
[null,{"$f":"IF('Generated list'!B9886=\"\",\"\",'Generated list'!B9886)","v":""},{"$f":"IF('Generated list'!C9886=\"\",\"\",'Generated list'!C9886)","v":""},{"$f":"IF('Generated list'!D9886=\"\",\"\",'Generated list'!D9886)","v":""}]
[null,{"$f":"IF('Generated list'!B9887=\"\",\"\",'Generated list'!B9887)","v":""},{"$f":"IF('Generated list'!C9887=\"\",\"\",'Generated list'!C9887)","v":""},{"$f":"IF('Generated list'!D9887=\"\",\"\",'Generated list'!D9887)","v":""}]
[null,{"$f":"IF('Generated list'!B9888=\"\",\"\",'Generated list'!B9888)","v":""},{"$f":"IF('Generated list'!C9888=\"\",\"\",'Generated list'!C9888)","v":""},{"$f":"IF('Generated list'!D9888=\"\",\"\",'Generated list'!D9888)","v":""}]
[null,{"$f":"IF('Generated list'!B9889=\"\",\"\",'Generated list'!B9889)","v":""},{"$f":"IF('Generated list'!C9889=\"\",\"\",'Generated list'!C9889)","v":""},{"$f":"IF('Generated list'!D9889=\"\",\"\",'Generated list'!D9889)","v":""}]
[null,{"$f":"IF('Generated list'!B9890=\"\",\"\",'Generated list'!B9890)","v":""},{"$f":"IF('Generated list'!C9890=\"\",\"\",'Generated list'!C9890)","v":""},{"$f":"IF('Generated list'!D9890=\"\",\"\",'Generated list'!D9890)","v":""}]
[null,{"$f":"IF('Generated list'!B9891=\"\",\"\",'Generated list'!B9891)","v":""},{"$f":"IF('Generated list'!C9891=\"\",\"\",'Generated list'!C9891)","v":""},{"$f":"IF('Generated list'!D9891=\"\",\"\",'Generated list'!D9891)","v":""}]
[null,{"$f":"IF('Generated list'!B9892=\"\",\"\",'Generated list'!B9892)","v":""},{"$f":"IF('Generated list'!C9892=\"\",\"\",'Generated list'!C9892)","v":""},{"$f":"IF('Generated list'!D9892=\"\",\"\",'Generated list'!D9892)","v":""}]
[null,{"$f":"IF('Generated list'!B9893=\"\",\"\",'Generated list'!B9893)","v":""},{"$f":"IF('Generated list'!C9893=\"\",\"\",'Generated list'!C9893)","v":""},{"$f":"IF('Generated list'!D9893=\"\",\"\",'Generated list'!D9893)","v":""}]
[null,{"$f":"IF('Generated list'!B9894=\"\",\"\",'Generated list'!B9894)","v":""},{"$f":"IF('Generated list'!C9894=\"\",\"\",'Generated list'!C9894)","v":""},{"$f":"IF('Generated list'!D9894=\"\",\"\",'Generated list'!D9894)","v":""}]
[null,{"$f":"IF('Generated list'!B9895=\"\",\"\",'Generated list'!B9895)","v":""},{"$f":"IF('Generated list'!C9895=\"\",\"\",'Generated list'!C9895)","v":""},{"$f":"IF('Generated list'!D9895=\"\",\"\",'Generated list'!D9895)","v":""}]
[null,{"$f":"IF('Generated list'!B9896=\"\",\"\",'Generated list'!B9896)","v":""},{"$f":"IF('Generated list'!C9896=\"\",\"\",'Generated list'!C9896)","v":""},{"$f":"IF('Generated list'!D9896=\"\",\"\",'Generated list'!D9896)","v":""}]
[null,{"$f":"IF('Generated list'!B9897=\"\",\"\",'Generated list'!B9897)","v":""},{"$f":"IF('Generated list'!C9897=\"\",\"\",'Generated list'!C9897)","v":""},{"$f":"IF('Generated list'!D9897=\"\",\"\",'Generated list'!D9897)","v":""}]
[null,{"$f":"IF('Generated list'!B9898=\"\",\"\",'Generated list'!B9898)","v":""},{"$f":"IF('Generated list'!C9898=\"\",\"\",'Generated list'!C9898)","v":""},{"$f":"IF('Generated list'!D9898=\"\",\"\",'Generated list'!D9898)","v":""}]
[null,{"$f":"IF('Generated list'!B9899=\"\",\"\",'Generated list'!B9899)","v":""},{"$f":"IF('Generated list'!C9899=\"\",\"\",'Generated list'!C9899)","v":""},{"$f":"IF('Generated list'!D9899=\"\",\"\",'Generated list'!D9899)","v":""}]
[null,{"$f":"IF('Generated list'!B9900=\"\",\"\",'Generated list'!B9900)","v":""},{"$f":"IF('Generated list'!C9900=\"\",\"\",'Generated list'!C9900)","v":""},{"$f":"IF('Generated list'!D9900=\"\",\"\",'Generated list'!D9900)","v":""}]
[null,{"$f":"IF('Generated list'!B9901=\"\",\"\",'Generated list'!B9901)","v":""},{"$f":"IF('Generated list'!C9901=\"\",\"\",'Generated list'!C9901)","v":""},{"$f":"IF('Generated list'!D9901=\"\",\"\",'Generated list'!D9901)","v":""}]
[null,{"$f":"IF('Generated list'!B9902=\"\",\"\",'Generated list'!B9902)","v":""},{"$f":"IF('Generated list'!C9902=\"\",\"\",'Generated list'!C9902)","v":""},{"$f":"IF('Generated list'!D9902=\"\",\"\",'Generated list'!D9902)","v":""}]
[null,{"$f":"IF('Generated list'!B9903=\"\",\"\",'Generated list'!B9903)","v":""},{"$f":"IF('Generated list'!C9903=\"\",\"\",'Generated list'!C9903)","v":""},{"$f":"IF('Generated list'!D9903=\"\",\"\",'Generated list'!D9903)","v":""}]
[null,{"$f":"IF('Generated list'!B9904=\"\",\"\",'Generated list'!B9904)","v":""},{"$f":"IF('Generated list'!C9904=\"\",\"\",'Generated list'!C9904)","v":""},{"$f":"IF('Generated list'!D9904=\"\",\"\",'Generated list'!D9904)","v":""}]
[null,{"$f":"IF('Generated list'!B9905=\"\",\"\",'Generated list'!B9905)","v":""},{"$f":"IF('Generated list'!C9905=\"\",\"\",'Generated list'!C9905)","v":""},{"$f":"IF('Generated list'!D9905=\"\",\"\",'Generated list'!D9905)","v":""}]
[null,{"$f":"IF('Generated list'!B9906=\"\",\"\",'Generated list'!B9906)","v":""},{"$f":"IF('Generated list'!C9906=\"\",\"\",'Generated list'!C9906)","v":""},{"$f":"IF('Generated list'!D9906=\"\",\"\",'Generated list'!D9906)","v":""}]
[null,{"$f":"IF('Generated list'!B9907=\"\",\"\",'Generated list'!B9907)","v":""},{"$f":"IF('Generated list'!C9907=\"\",\"\",'Generated list'!C9907)","v":""},{"$f":"IF('Generated list'!D9907=\"\",\"\",'Generated list'!D9907)","v":""}]
[null,{"$f":"IF('Generated list'!B9908=\"\",\"\",'Generated list'!B9908)","v":""},{"$f":"IF('Generated list'!C9908=\"\",\"\",'Generated list'!C9908)","v":""},{"$f":"IF('Generated list'!D9908=\"\",\"\",'Generated list'!D9908)","v":""}]
[null,{"$f":"IF('Generated list'!B9909=\"\",\"\",'Generated list'!B9909)","v":""},{"$f":"IF('Generated list'!C9909=\"\",\"\",'Generated list'!C9909)","v":""},{"$f":"IF('Generated list'!D9909=\"\",\"\",'Generated list'!D9909)","v":""}]
[null,{"$f":"IF('Generated list'!B9910=\"\",\"\",'Generated list'!B9910)","v":""},{"$f":"IF('Generated list'!C9910=\"\",\"\",'Generated list'!C9910)","v":""},{"$f":"IF('Generated list'!D9910=\"\",\"\",'Generated list'!D9910)","v":""}]
[null,{"$f":"IF('Generated list'!B9911=\"\",\"\",'Generated list'!B9911)","v":""},{"$f":"IF('Generated list'!C9911=\"\",\"\",'Generated list'!C9911)","v":""},{"$f":"IF('Generated list'!D9911=\"\",\"\",'Generated list'!D9911)","v":""}]
[null,{"$f":"IF('Generated list'!B9912=\"\",\"\",'Generated list'!B9912)","v":""},{"$f":"IF('Generated list'!C9912=\"\",\"\",'Generated list'!C9912)","v":""},{"$f":"IF('Generated list'!D9912=\"\",\"\",'Generated list'!D9912)","v":""}]
[null,{"$f":"IF('Generated list'!B9913=\"\",\"\",'Generated list'!B9913)","v":""},{"$f":"IF('Generated list'!C9913=\"\",\"\",'Generated list'!C9913)","v":""},{"$f":"IF('Generated list'!D9913=\"\",\"\",'Generated list'!D9913)","v":""}]
[null,{"$f":"IF('Generated list'!B9914=\"\",\"\",'Generated list'!B9914)","v":""},{"$f":"IF('Generated list'!C9914=\"\",\"\",'Generated list'!C9914)","v":""},{"$f":"IF('Generated list'!D9914=\"\",\"\",'Generated list'!D9914)","v":""}]
[null,{"$f":"IF('Generated list'!B9915=\"\",\"\",'Generated list'!B9915)","v":""},{"$f":"IF('Generated list'!C9915=\"\",\"\",'Generated list'!C9915)","v":""},{"$f":"IF('Generated list'!D9915=\"\",\"\",'Generated list'!D9915)","v":""}]
[null,{"$f":"IF('Generated list'!B9916=\"\",\"\",'Generated list'!B9916)","v":""},{"$f":"IF('Generated list'!C9916=\"\",\"\",'Generated list'!C9916)","v":""},{"$f":"IF('Generated list'!D9916=\"\",\"\",'Generated list'!D9916)","v":""}]
[null,{"$f":"IF('Generated list'!B9917=\"\",\"\",'Generated list'!B9917)","v":""},{"$f":"IF('Generated list'!C9917=\"\",\"\",'Generated list'!C9917)","v":""},{"$f":"IF('Generated list'!D9917=\"\",\"\",'Generated list'!D9917)","v":""}]
[null,{"$f":"IF('Generated list'!B9918=\"\",\"\",'Generated list'!B9918)","v":""},{"$f":"IF('Generated list'!C9918=\"\",\"\",'Generated list'!C9918)","v":""},{"$f":"IF('Generated list'!D9918=\"\",\"\",'Generated list'!D9918)","v":""}]
[null,{"$f":"IF('Generated list'!B9919=\"\",\"\",'Generated list'!B9919)","v":""},{"$f":"IF('Generated list'!C9919=\"\",\"\",'Generated list'!C9919)","v":""},{"$f":"IF('Generated list'!D9919=\"\",\"\",'Generated list'!D9919)","v":""}]
[null,{"$f":"IF('Generated list'!B9920=\"\",\"\",'Generated list'!B9920)","v":""},{"$f":"IF('Generated list'!C9920=\"\",\"\",'Generated list'!C9920)","v":""},{"$f":"IF('Generated list'!D9920=\"\",\"\",'Generated list'!D9920)","v":""}]
[null,{"$f":"IF('Generated list'!B9921=\"\",\"\",'Generated list'!B9921)","v":""},{"$f":"IF('Generated list'!C9921=\"\",\"\",'Generated list'!C9921)","v":""},{"$f":"IF('Generated list'!D9921=\"\",\"\",'Generated list'!D9921)","v":""}]
[null,{"$f":"IF('Generated list'!B9922=\"\",\"\",'Generated list'!B9922)","v":""},{"$f":"IF('Generated list'!C9922=\"\",\"\",'Generated list'!C9922)","v":""},{"$f":"IF('Generated list'!D9922=\"\",\"\",'Generated list'!D9922)","v":""}]
[null,{"$f":"IF('Generated list'!B9923=\"\",\"\",'Generated list'!B9923)","v":""},{"$f":"IF('Generated list'!C9923=\"\",\"\",'Generated list'!C9923)","v":""},{"$f":"IF('Generated list'!D9923=\"\",\"\",'Generated list'!D9923)","v":""}]
[null,{"$f":"IF('Generated list'!B9924=\"\",\"\",'Generated list'!B9924)","v":""},{"$f":"IF('Generated list'!C9924=\"\",\"\",'Generated list'!C9924)","v":""},{"$f":"IF('Generated list'!D9924=\"\",\"\",'Generated list'!D9924)","v":""}]
[null,{"$f":"IF('Generated list'!B9925=\"\",\"\",'Generated list'!B9925)","v":""},{"$f":"IF('Generated list'!C9925=\"\",\"\",'Generated list'!C9925)","v":""},{"$f":"IF('Generated list'!D9925=\"\",\"\",'Generated list'!D9925)","v":""}]
[null,{"$f":"IF('Generated list'!B9926=\"\",\"\",'Generated list'!B9926)","v":""},{"$f":"IF('Generated list'!C9926=\"\",\"\",'Generated list'!C9926)","v":""},{"$f":"IF('Generated list'!D9926=\"\",\"\",'Generated list'!D9926)","v":""}]
[null,{"$f":"IF('Generated list'!B9927=\"\",\"\",'Generated list'!B9927)","v":""},{"$f":"IF('Generated list'!C9927=\"\",\"\",'Generated list'!C9927)","v":""},{"$f":"IF('Generated list'!D9927=\"\",\"\",'Generated list'!D9927)","v":""}]
[null,{"$f":"IF('Generated list'!B9928=\"\",\"\",'Generated list'!B9928)","v":""},{"$f":"IF('Generated list'!C9928=\"\",\"\",'Generated list'!C9928)","v":""},{"$f":"IF('Generated list'!D9928=\"\",\"\",'Generated list'!D9928)","v":""}]
[null,{"$f":"IF('Generated list'!B9929=\"\",\"\",'Generated list'!B9929)","v":""},{"$f":"IF('Generated list'!C9929=\"\",\"\",'Generated list'!C9929)","v":""},{"$f":"IF('Generated list'!D9929=\"\",\"\",'Generated list'!D9929)","v":""}]
[null,{"$f":"IF('Generated list'!B9930=\"\",\"\",'Generated list'!B9930)","v":""},{"$f":"IF('Generated list'!C9930=\"\",\"\",'Generated list'!C9930)","v":""},{"$f":"IF('Generated list'!D9930=\"\",\"\",'Generated list'!D9930)","v":""}]
[null,{"$f":"IF('Generated list'!B9931=\"\",\"\",'Generated list'!B9931)","v":""},{"$f":"IF('Generated list'!C9931=\"\",\"\",'Generated list'!C9931)","v":""},{"$f":"IF('Generated list'!D9931=\"\",\"\",'Generated list'!D9931)","v":""}]
[null,{"$f":"IF('Generated list'!B9932=\"\",\"\",'Generated list'!B9932)","v":""},{"$f":"IF('Generated list'!C9932=\"\",\"\",'Generated list'!C9932)","v":""},{"$f":"IF('Generated list'!D9932=\"\",\"\",'Generated list'!D9932)","v":""}]
[null,{"$f":"IF('Generated list'!B9933=\"\",\"\",'Generated list'!B9933)","v":""},{"$f":"IF('Generated list'!C9933=\"\",\"\",'Generated list'!C9933)","v":""},{"$f":"IF('Generated list'!D9933=\"\",\"\",'Generated list'!D9933)","v":""}]
[null,{"$f":"IF('Generated list'!B9934=\"\",\"\",'Generated list'!B9934)","v":""},{"$f":"IF('Generated list'!C9934=\"\",\"\",'Generated list'!C9934)","v":""},{"$f":"IF('Generated list'!D9934=\"\",\"\",'Generated list'!D9934)","v":""}]
[null,{"$f":"IF('Generated list'!B9935=\"\",\"\",'Generated list'!B9935)","v":""},{"$f":"IF('Generated list'!C9935=\"\",\"\",'Generated list'!C9935)","v":""},{"$f":"IF('Generated list'!D9935=\"\",\"\",'Generated list'!D9935)","v":""}]
[null,{"$f":"IF('Generated list'!B9936=\"\",\"\",'Generated list'!B9936)","v":""},{"$f":"IF('Generated list'!C9936=\"\",\"\",'Generated list'!C9936)","v":""},{"$f":"IF('Generated list'!D9936=\"\",\"\",'Generated list'!D9936)","v":""}]
[null,{"$f":"IF('Generated list'!B9937=\"\",\"\",'Generated list'!B9937)","v":""},{"$f":"IF('Generated list'!C9937=\"\",\"\",'Generated list'!C9937)","v":""},{"$f":"IF('Generated list'!D9937=\"\",\"\",'Generated list'!D9937)","v":""}]
[null,{"$f":"IF('Generated list'!B9938=\"\",\"\",'Generated list'!B9938)","v":""},{"$f":"IF('Generated list'!C9938=\"\",\"\",'Generated list'!C9938)","v":""},{"$f":"IF('Generated list'!D9938=\"\",\"\",'Generated list'!D9938)","v":""}]
[null,{"$f":"IF('Generated list'!B9939=\"\",\"\",'Generated list'!B9939)","v":""},{"$f":"IF('Generated list'!C9939=\"\",\"\",'Generated list'!C9939)","v":""},{"$f":"IF('Generated list'!D9939=\"\",\"\",'Generated list'!D9939)","v":""}]
[null,{"$f":"IF('Generated list'!B9940=\"\",\"\",'Generated list'!B9940)","v":""},{"$f":"IF('Generated list'!C9940=\"\",\"\",'Generated list'!C9940)","v":""},{"$f":"IF('Generated list'!D9940=\"\",\"\",'Generated list'!D9940)","v":""}]
[null,{"$f":"IF('Generated list'!B9941=\"\",\"\",'Generated list'!B9941)","v":""},{"$f":"IF('Generated list'!C9941=\"\",\"\",'Generated list'!C9941)","v":""},{"$f":"IF('Generated list'!D9941=\"\",\"\",'Generated list'!D9941)","v":""}]
[null,{"$f":"IF('Generated list'!B9942=\"\",\"\",'Generated list'!B9942)","v":""},{"$f":"IF('Generated list'!C9942=\"\",\"\",'Generated list'!C9942)","v":""},{"$f":"IF('Generated list'!D9942=\"\",\"\",'Generated list'!D9942)","v":""}]
[null,{"$f":"IF('Generated list'!B9943=\"\",\"\",'Generated list'!B9943)","v":""},{"$f":"IF('Generated list'!C9943=\"\",\"\",'Generated list'!C9943)","v":""},{"$f":"IF('Generated list'!D9943=\"\",\"\",'Generated list'!D9943)","v":""}]
[null,{"$f":"IF('Generated list'!B9944=\"\",\"\",'Generated list'!B9944)","v":""},{"$f":"IF('Generated list'!C9944=\"\",\"\",'Generated list'!C9944)","v":""},{"$f":"IF('Generated list'!D9944=\"\",\"\",'Generated list'!D9944)","v":""}]
[null,{"$f":"IF('Generated list'!B9945=\"\",\"\",'Generated list'!B9945)","v":""},{"$f":"IF('Generated list'!C9945=\"\",\"\",'Generated list'!C9945)","v":""},{"$f":"IF('Generated list'!D9945=\"\",\"\",'Generated list'!D9945)","v":""}]
[null,{"$f":"IF('Generated list'!B9946=\"\",\"\",'Generated list'!B9946)","v":""},{"$f":"IF('Generated list'!C9946=\"\",\"\",'Generated list'!C9946)","v":""},{"$f":"IF('Generated list'!D9946=\"\",\"\",'Generated list'!D9946)","v":""}]
[null,{"$f":"IF('Generated list'!B9947=\"\",\"\",'Generated list'!B9947)","v":""},{"$f":"IF('Generated list'!C9947=\"\",\"\",'Generated list'!C9947)","v":""},{"$f":"IF('Generated list'!D9947=\"\",\"\",'Generated list'!D9947)","v":""}]
[null,{"$f":"IF('Generated list'!B9948=\"\",\"\",'Generated list'!B9948)","v":""},{"$f":"IF('Generated list'!C9948=\"\",\"\",'Generated list'!C9948)","v":""},{"$f":"IF('Generated list'!D9948=\"\",\"\",'Generated list'!D9948)","v":""}]
[null,{"$f":"IF('Generated list'!B9949=\"\",\"\",'Generated list'!B9949)","v":""},{"$f":"IF('Generated list'!C9949=\"\",\"\",'Generated list'!C9949)","v":""},{"$f":"IF('Generated list'!D9949=\"\",\"\",'Generated list'!D9949)","v":""}]
[null,{"$f":"IF('Generated list'!B9950=\"\",\"\",'Generated list'!B9950)","v":""},{"$f":"IF('Generated list'!C9950=\"\",\"\",'Generated list'!C9950)","v":""},{"$f":"IF('Generated list'!D9950=\"\",\"\",'Generated list'!D9950)","v":""}]
[null,{"$f":"IF('Generated list'!B9951=\"\",\"\",'Generated list'!B9951)","v":""},{"$f":"IF('Generated list'!C9951=\"\",\"\",'Generated list'!C9951)","v":""},{"$f":"IF('Generated list'!D9951=\"\",\"\",'Generated list'!D9951)","v":""}]
[null,{"$f":"IF('Generated list'!B9952=\"\",\"\",'Generated list'!B9952)","v":""},{"$f":"IF('Generated list'!C9952=\"\",\"\",'Generated list'!C9952)","v":""},{"$f":"IF('Generated list'!D9952=\"\",\"\",'Generated list'!D9952)","v":""}]
[null,{"$f":"IF('Generated list'!B9953=\"\",\"\",'Generated list'!B9953)","v":""},{"$f":"IF('Generated list'!C9953=\"\",\"\",'Generated list'!C9953)","v":""},{"$f":"IF('Generated list'!D9953=\"\",\"\",'Generated list'!D9953)","v":""}]
[null,{"$f":"IF('Generated list'!B9954=\"\",\"\",'Generated list'!B9954)","v":""},{"$f":"IF('Generated list'!C9954=\"\",\"\",'Generated list'!C9954)","v":""},{"$f":"IF('Generated list'!D9954=\"\",\"\",'Generated list'!D9954)","v":""}]
[null,{"$f":"IF('Generated list'!B9955=\"\",\"\",'Generated list'!B9955)","v":""},{"$f":"IF('Generated list'!C9955=\"\",\"\",'Generated list'!C9955)","v":""},{"$f":"IF('Generated list'!D9955=\"\",\"\",'Generated list'!D9955)","v":""}]
[null,{"$f":"IF('Generated list'!B9956=\"\",\"\",'Generated list'!B9956)","v":""},{"$f":"IF('Generated list'!C9956=\"\",\"\",'Generated list'!C9956)","v":""},{"$f":"IF('Generated list'!D9956=\"\",\"\",'Generated list'!D9956)","v":""}]
[null,{"$f":"IF('Generated list'!B9957=\"\",\"\",'Generated list'!B9957)","v":""},{"$f":"IF('Generated list'!C9957=\"\",\"\",'Generated list'!C9957)","v":""},{"$f":"IF('Generated list'!D9957=\"\",\"\",'Generated list'!D9957)","v":""}]
[null,{"$f":"IF('Generated list'!B9958=\"\",\"\",'Generated list'!B9958)","v":""},{"$f":"IF('Generated list'!C9958=\"\",\"\",'Generated list'!C9958)","v":""},{"$f":"IF('Generated list'!D9958=\"\",\"\",'Generated list'!D9958)","v":""}]
[null,{"$f":"IF('Generated list'!B9959=\"\",\"\",'Generated list'!B9959)","v":""},{"$f":"IF('Generated list'!C9959=\"\",\"\",'Generated list'!C9959)","v":""},{"$f":"IF('Generated list'!D9959=\"\",\"\",'Generated list'!D9959)","v":""}]
[null,{"$f":"IF('Generated list'!B9960=\"\",\"\",'Generated list'!B9960)","v":""},{"$f":"IF('Generated list'!C9960=\"\",\"\",'Generated list'!C9960)","v":""},{"$f":"IF('Generated list'!D9960=\"\",\"\",'Generated list'!D9960)","v":""}]
[null,{"$f":"IF('Generated list'!B9961=\"\",\"\",'Generated list'!B9961)","v":""},{"$f":"IF('Generated list'!C9961=\"\",\"\",'Generated list'!C9961)","v":""},{"$f":"IF('Generated list'!D9961=\"\",\"\",'Generated list'!D9961)","v":""}]
[null,{"$f":"IF('Generated list'!B9962=\"\",\"\",'Generated list'!B9962)","v":""},{"$f":"IF('Generated list'!C9962=\"\",\"\",'Generated list'!C9962)","v":""},{"$f":"IF('Generated list'!D9962=\"\",\"\",'Generated list'!D9962)","v":""}]
[null,{"$f":"IF('Generated list'!B9963=\"\",\"\",'Generated list'!B9963)","v":""},{"$f":"IF('Generated list'!C9963=\"\",\"\",'Generated list'!C9963)","v":""},{"$f":"IF('Generated list'!D9963=\"\",\"\",'Generated list'!D9963)","v":""}]
[null,{"$f":"IF('Generated list'!B9964=\"\",\"\",'Generated list'!B9964)","v":""},{"$f":"IF('Generated list'!C9964=\"\",\"\",'Generated list'!C9964)","v":""},{"$f":"IF('Generated list'!D9964=\"\",\"\",'Generated list'!D9964)","v":""}]
[null,{"$f":"IF('Generated list'!B9965=\"\",\"\",'Generated list'!B9965)","v":""},{"$f":"IF('Generated list'!C9965=\"\",\"\",'Generated list'!C9965)","v":""},{"$f":"IF('Generated list'!D9965=\"\",\"\",'Generated list'!D9965)","v":""}]
[null,{"$f":"IF('Generated list'!B9966=\"\",\"\",'Generated list'!B9966)","v":""},{"$f":"IF('Generated list'!C9966=\"\",\"\",'Generated list'!C9966)","v":""},{"$f":"IF('Generated list'!D9966=\"\",\"\",'Generated list'!D9966)","v":""}]
[null,{"$f":"IF('Generated list'!B9967=\"\",\"\",'Generated list'!B9967)","v":""},{"$f":"IF('Generated list'!C9967=\"\",\"\",'Generated list'!C9967)","v":""},{"$f":"IF('Generated list'!D9967=\"\",\"\",'Generated list'!D9967)","v":""}]
[null,{"$f":"IF('Generated list'!B9968=\"\",\"\",'Generated list'!B9968)","v":""},{"$f":"IF('Generated list'!C9968=\"\",\"\",'Generated list'!C9968)","v":""},{"$f":"IF('Generated list'!D9968=\"\",\"\",'Generated list'!D9968)","v":""}]
[null,{"$f":"IF('Generated list'!B9969=\"\",\"\",'Generated list'!B9969)","v":""},{"$f":"IF('Generated list'!C9969=\"\",\"\",'Generated list'!C9969)","v":""},{"$f":"IF('Generated list'!D9969=\"\",\"\",'Generated list'!D9969)","v":""}]
[null,{"$f":"IF('Generated list'!B9970=\"\",\"\",'Generated list'!B9970)","v":""},{"$f":"IF('Generated list'!C9970=\"\",\"\",'Generated list'!C9970)","v":""},{"$f":"IF('Generated list'!D9970=\"\",\"\",'Generated list'!D9970)","v":""}]
[null,{"$f":"IF('Generated list'!B9971=\"\",\"\",'Generated list'!B9971)","v":""},{"$f":"IF('Generated list'!C9971=\"\",\"\",'Generated list'!C9971)","v":""},{"$f":"IF('Generated list'!D9971=\"\",\"\",'Generated list'!D9971)","v":""}]
[null,{"$f":"IF('Generated list'!B9972=\"\",\"\",'Generated list'!B9972)","v":""},{"$f":"IF('Generated list'!C9972=\"\",\"\",'Generated list'!C9972)","v":""},{"$f":"IF('Generated list'!D9972=\"\",\"\",'Generated list'!D9972)","v":""}]
[null,{"$f":"IF('Generated list'!B9973=\"\",\"\",'Generated list'!B9973)","v":""},{"$f":"IF('Generated list'!C9973=\"\",\"\",'Generated list'!C9973)","v":""},{"$f":"IF('Generated list'!D9973=\"\",\"\",'Generated list'!D9973)","v":""}]
[null,{"$f":"IF('Generated list'!B9974=\"\",\"\",'Generated list'!B9974)","v":""},{"$f":"IF('Generated list'!C9974=\"\",\"\",'Generated list'!C9974)","v":""},{"$f":"IF('Generated list'!D9974=\"\",\"\",'Generated list'!D9974)","v":""}]
[null,{"$f":"IF('Generated list'!B9975=\"\",\"\",'Generated list'!B9975)","v":""},{"$f":"IF('Generated list'!C9975=\"\",\"\",'Generated list'!C9975)","v":""},{"$f":"IF('Generated list'!D9975=\"\",\"\",'Generated list'!D9975)","v":""}]
[null,{"$f":"IF('Generated list'!B9976=\"\",\"\",'Generated list'!B9976)","v":""},{"$f":"IF('Generated list'!C9976=\"\",\"\",'Generated list'!C9976)","v":""},{"$f":"IF('Generated list'!D9976=\"\",\"\",'Generated list'!D9976)","v":""}]
[null,{"$f":"IF('Generated list'!B9977=\"\",\"\",'Generated list'!B9977)","v":""},{"$f":"IF('Generated list'!C9977=\"\",\"\",'Generated list'!C9977)","v":""},{"$f":"IF('Generated list'!D9977=\"\",\"\",'Generated list'!D9977)","v":""}]
[null,{"$f":"IF('Generated list'!B9978=\"\",\"\",'Generated list'!B9978)","v":""},{"$f":"IF('Generated list'!C9978=\"\",\"\",'Generated list'!C9978)","v":""},{"$f":"IF('Generated list'!D9978=\"\",\"\",'Generated list'!D9978)","v":""}]
[null,{"$f":"IF('Generated list'!B9979=\"\",\"\",'Generated list'!B9979)","v":""},{"$f":"IF('Generated list'!C9979=\"\",\"\",'Generated list'!C9979)","v":""},{"$f":"IF('Generated list'!D9979=\"\",\"\",'Generated list'!D9979)","v":""}]
[null,{"$f":"IF('Generated list'!B9980=\"\",\"\",'Generated list'!B9980)","v":""},{"$f":"IF('Generated list'!C9980=\"\",\"\",'Generated list'!C9980)","v":""},{"$f":"IF('Generated list'!D9980=\"\",\"\",'Generated list'!D9980)","v":""}]
[null,{"$f":"IF('Generated list'!B9981=\"\",\"\",'Generated list'!B9981)","v":""},{"$f":"IF('Generated list'!C9981=\"\",\"\",'Generated list'!C9981)","v":""},{"$f":"IF('Generated list'!D9981=\"\",\"\",'Generated list'!D9981)","v":""}]
[null,{"$f":"IF('Generated list'!B9982=\"\",\"\",'Generated list'!B9982)","v":""},{"$f":"IF('Generated list'!C9982=\"\",\"\",'Generated list'!C9982)","v":""},{"$f":"IF('Generated list'!D9982=\"\",\"\",'Generated list'!D9982)","v":""}]
[null,{"$f":"IF('Generated list'!B9983=\"\",\"\",'Generated list'!B9983)","v":""},{"$f":"IF('Generated list'!C9983=\"\",\"\",'Generated list'!C9983)","v":""},{"$f":"IF('Generated list'!D9983=\"\",\"\",'Generated list'!D9983)","v":""}]
[null,{"$f":"IF('Generated list'!B9984=\"\",\"\",'Generated list'!B9984)","v":""},{"$f":"IF('Generated list'!C9984=\"\",\"\",'Generated list'!C9984)","v":""},{"$f":"IF('Generated list'!D9984=\"\",\"\",'Generated list'!D9984)","v":""}]
[null,{"$f":"IF('Generated list'!B9985=\"\",\"\",'Generated list'!B9985)","v":""},{"$f":"IF('Generated list'!C9985=\"\",\"\",'Generated list'!C9985)","v":""},{"$f":"IF('Generated list'!D9985=\"\",\"\",'Generated list'!D9985)","v":""}]
[null,{"$f":"IF('Generated list'!B9986=\"\",\"\",'Generated list'!B9986)","v":""},{"$f":"IF('Generated list'!C9986=\"\",\"\",'Generated list'!C9986)","v":""},{"$f":"IF('Generated list'!D9986=\"\",\"\",'Generated list'!D9986)","v":""}]
[null,{"$f":"IF('Generated list'!B9987=\"\",\"\",'Generated list'!B9987)","v":""},{"$f":"IF('Generated list'!C9987=\"\",\"\",'Generated list'!C9987)","v":""},{"$f":"IF('Generated list'!D9987=\"\",\"\",'Generated list'!D9987)","v":""}]
[null,{"$f":"IF('Generated list'!B9988=\"\",\"\",'Generated list'!B9988)","v":""},{"$f":"IF('Generated list'!C9988=\"\",\"\",'Generated list'!C9988)","v":""},{"$f":"IF('Generated list'!D9988=\"\",\"\",'Generated list'!D9988)","v":""}]
[null,{"$f":"IF('Generated list'!B9989=\"\",\"\",'Generated list'!B9989)","v":""},{"$f":"IF('Generated list'!C9989=\"\",\"\",'Generated list'!C9989)","v":""},{"$f":"IF('Generated list'!D9989=\"\",\"\",'Generated list'!D9989)","v":""}]
[null,{"$f":"IF('Generated list'!B9990=\"\",\"\",'Generated list'!B9990)","v":""},{"$f":"IF('Generated list'!C9990=\"\",\"\",'Generated list'!C9990)","v":""},{"$f":"IF('Generated list'!D9990=\"\",\"\",'Generated list'!D9990)","v":""}]
[null,{"$f":"IF('Generated list'!B9991=\"\",\"\",'Generated list'!B9991)","v":""},{"$f":"IF('Generated list'!C9991=\"\",\"\",'Generated list'!C9991)","v":""},{"$f":"IF('Generated list'!D9991=\"\",\"\",'Generated list'!D9991)","v":""}]
[null,{"$f":"IF('Generated list'!B9992=\"\",\"\",'Generated list'!B9992)","v":""},{"$f":"IF('Generated list'!C9992=\"\",\"\",'Generated list'!C9992)","v":""},{"$f":"IF('Generated list'!D9992=\"\",\"\",'Generated list'!D9992)","v":""}]
[null,{"$f":"IF('Generated list'!B9993=\"\",\"\",'Generated list'!B9993)","v":""},{"$f":"IF('Generated list'!C9993=\"\",\"\",'Generated list'!C9993)","v":""},{"$f":"IF('Generated list'!D9993=\"\",\"\",'Generated list'!D9993)","v":""}]
[null,{"$f":"IF('Generated list'!B9994=\"\",\"\",'Generated list'!B9994)","v":""},{"$f":"IF('Generated list'!C9994=\"\",\"\",'Generated list'!C9994)","v":""},{"$f":"IF('Generated list'!D9994=\"\",\"\",'Generated list'!D9994)","v":""}]
[null,{"$f":"IF('Generated list'!B9995=\"\",\"\",'Generated list'!B9995)","v":""},{"$f":"IF('Generated list'!C9995=\"\",\"\",'Generated list'!C9995)","v":""},{"$f":"IF('Generated list'!D9995=\"\",\"\",'Generated list'!D9995)","v":""}]
[null,{"$f":"IF('Generated list'!B9996=\"\",\"\",'Generated list'!B9996)","v":""},{"$f":"IF('Generated list'!C9996=\"\",\"\",'Generated list'!C9996)","v":""},{"$f":"IF('Generated list'!D9996=\"\",\"\",'Generated list'!D9996)","v":""}]
[null,{"$f":"IF('Generated list'!B9997=\"\",\"\",'Generated list'!B9997)","v":""},{"$f":"IF('Generated list'!C9997=\"\",\"\",'Generated list'!C9997)","v":""},{"$f":"IF('Generated list'!D9997=\"\",\"\",'Generated list'!D9997)","v":""}]
[null,{"$f":"IF('Generated list'!B9998=\"\",\"\",'Generated list'!B9998)","v":""},{"$f":"IF('Generated list'!C9998=\"\",\"\",'Generated list'!C9998)","v":""},{"$f":"IF('Generated list'!D9998=\"\",\"\",'Generated list'!D9998)","v":""}]
[null,{"$f":"IF('Generated list'!B9999=\"\",\"\",'Generated list'!B9999)","v":""},{"$f":"IF('Generated list'!C9999=\"\",\"\",'Generated list'!C9999)","v":""},{"$f":"IF('Generated list'!D9999=\"\",\"\",'Generated list'!D9999)","v":""}]
[null,{"$f":"IF('Generated list'!B10000=\"\",\"\",'Generated list'!B10000)","v":""},{"$f":"IF('Generated list'!C10000=\"\",\"\",'Generated list'!C10000)","v":""},{"$f":"IF('Generated list'!D10000=\"\",\"\",'Generated list'!D10000)","v":""}]
[null,{"$f":"IF('Generated list'!B10001=\"\",\"\",'Generated list'!B10001)","v":""},{"$f":"IF('Generated list'!C10001=\"\",\"\",'Generated list'!C10001)","v":""},{"$f":"IF('Generated list'!D10001=\"\",\"\",'Generated list'!D10001)","v":""}]
[null,{"$f":"IF('Generated list'!B10002=\"\",\"\",'Generated list'!B10002)","v":""},{"$f":"IF('Generated list'!C10002=\"\",\"\",'Generated list'!C10002)","v":""},{"$f":"IF('Generated list'!D10002=\"\",\"\",'Generated list'!D10002)","v":""}]
[null,{"$f":"IF('Generated list'!B10003=\"\",\"\",'Generated list'!B10003)","v":""},{"$f":"IF('Generated list'!C10003=\"\",\"\",'Generated list'!C10003)","v":""},{"$f":"IF('Generated list'!D10003=\"\",\"\",'Generated list'!D10003)","v":""}]
[null,{"$f":"IF('Generated list'!B10004=\"\",\"\",'Generated list'!B10004)","v":""},{"$f":"IF('Generated list'!C10004=\"\",\"\",'Generated list'!C10004)","v":""},{"$f":"IF('Generated list'!D10004=\"\",\"\",'Generated list'!D10004)","v":""}]
[null,{"$f":"IF('Generated list'!B10005=\"\",\"\",'Generated list'!B10005)","v":""},{"$f":"IF('Generated list'!C10005=\"\",\"\",'Generated list'!C10005)","v":""},{"$f":"IF('Generated list'!D10005=\"\",\"\",'Generated list'!D10005)","v":""}]
[null,{"$f":"IF('Generated list'!B10006=\"\",\"\",'Generated list'!B10006)","v":""},{"$f":"IF('Generated list'!C10006=\"\",\"\",'Generated list'!C10006)","v":""},{"$f":"IF('Generated list'!D10006=\"\",\"\",'Generated list'!D10006)","v":""}]
[null,{"$f":"IF('Generated list'!B10007=\"\",\"\",'Generated list'!B10007)","v":""},{"$f":"IF('Generated list'!C10007=\"\",\"\",'Generated list'!C10007)","v":""},{"$f":"IF('Generated list'!D10007=\"\",\"\",'Generated list'!D10007)","v":""}]
[null,{"$f":"IF('Generated list'!B10008=\"\",\"\",'Generated list'!B10008)","v":""},{"$f":"IF('Generated list'!C10008=\"\",\"\",'Generated list'!C10008)","v":""},{"$f":"IF('Generated list'!D10008=\"\",\"\",'Generated list'!D10008)","v":""}]
[null,{"$f":"IF('Generated list'!B10009=\"\",\"\",'Generated list'!B10009)","v":""},{"$f":"IF('Generated list'!C10009=\"\",\"\",'Generated list'!C10009)","v":""},{"$f":"IF('Generated list'!D10009=\"\",\"\",'Generated list'!D10009)","v":""}]
[null,{"$f":"IF('Generated list'!B10010=\"\",\"\",'Generated list'!B10010)","v":""},{"$f":"IF('Generated list'!C10010=\"\",\"\",'Generated list'!C10010)","v":""},{"$f":"IF('Generated list'!D10010=\"\",\"\",'Generated list'!D10010)","v":""}]
[null,{"$f":"IF('Generated list'!B10011=\"\",\"\",'Generated list'!B10011)","v":""},{"$f":"IF('Generated list'!C10011=\"\",\"\",'Generated list'!C10011)","v":""},{"$f":"IF('Generated list'!D10011=\"\",\"\",'Generated list'!D10011)","v":""}]
[null,{"$f":"IF('Generated list'!B10012=\"\",\"\",'Generated list'!B10012)","v":""},{"$f":"IF('Generated list'!C10012=\"\",\"\",'Generated list'!C10012)","v":""},{"$f":"IF('Generated list'!D10012=\"\",\"\",'Generated list'!D10012)","v":""}]
[null,{"$f":"IF('Generated list'!B10013=\"\",\"\",'Generated list'!B10013)","v":""},{"$f":"IF('Generated list'!C10013=\"\",\"\",'Generated list'!C10013)","v":""},{"$f":"IF('Generated list'!D10013=\"\",\"\",'Generated list'!D10013)","v":""}]
[null,{"$f":"IF('Generated list'!B10014=\"\",\"\",'Generated list'!B10014)","v":""},{"$f":"IF('Generated list'!C10014=\"\",\"\",'Generated list'!C10014)","v":""},{"$f":"IF('Generated list'!D10014=\"\",\"\",'Generated list'!D10014)","v":""}]
[null,{"$f":"IF('Generated list'!B10015=\"\",\"\",'Generated list'!B10015)","v":""},{"$f":"IF('Generated list'!C10015=\"\",\"\",'Generated list'!C10015)","v":""},{"$f":"IF('Generated list'!D10015=\"\",\"\",'Generated list'!D10015)","v":""}]
[null,{"$f":"IF('Generated list'!B10016=\"\",\"\",'Generated list'!B10016)","v":""},{"$f":"IF('Generated list'!C10016=\"\",\"\",'Generated list'!C10016)","v":""},{"$f":"IF('Generated list'!D10016=\"\",\"\",'Generated list'!D10016)","v":""}]
[null,{"$f":"IF('Generated list'!B10017=\"\",\"\",'Generated list'!B10017)","v":""},{"$f":"IF('Generated list'!C10017=\"\",\"\",'Generated list'!C10017)","v":""},{"$f":"IF('Generated list'!D10017=\"\",\"\",'Generated list'!D10017)","v":""}]
[null,{"$f":"IF('Generated list'!B10018=\"\",\"\",'Generated list'!B10018)","v":""},{"$f":"IF('Generated list'!C10018=\"\",\"\",'Generated list'!C10018)","v":""},{"$f":"IF('Generated list'!D10018=\"\",\"\",'Generated list'!D10018)","v":""}]
[null,{"$f":"IF('Generated list'!B10019=\"\",\"\",'Generated list'!B10019)","v":""},{"$f":"IF('Generated list'!C10019=\"\",\"\",'Generated list'!C10019)","v":""},{"$f":"IF('Generated list'!D10019=\"\",\"\",'Generated list'!D10019)","v":""}]
[null,{"$f":"IF('Generated list'!B10020=\"\",\"\",'Generated list'!B10020)","v":""},{"$f":"IF('Generated list'!C10020=\"\",\"\",'Generated list'!C10020)","v":""},{"$f":"IF('Generated list'!D10020=\"\",\"\",'Generated list'!D10020)","v":""}]
[null,{"$f":"IF('Generated list'!B10021=\"\",\"\",'Generated list'!B10021)","v":""},{"$f":"IF('Generated list'!C10021=\"\",\"\",'Generated list'!C10021)","v":""},{"$f":"IF('Generated list'!D10021=\"\",\"\",'Generated list'!D10021)","v":""}]
[null,{"$f":"IF('Generated list'!B10022=\"\",\"\",'Generated list'!B10022)","v":""},{"$f":"IF('Generated list'!C10022=\"\",\"\",'Generated list'!C10022)","v":""},{"$f":"IF('Generated list'!D10022=\"\",\"\",'Generated list'!D10022)","v":""}]
[null,{"$f":"IF('Generated list'!B10023=\"\",\"\",'Generated list'!B10023)","v":""},{"$f":"IF('Generated list'!C10023=\"\",\"\",'Generated list'!C10023)","v":""},{"$f":"IF('Generated list'!D10023=\"\",\"\",'Generated list'!D10023)","v":""}]
[null,{"$f":"IF('Generated list'!B10024=\"\",\"\",'Generated list'!B10024)","v":""},{"$f":"IF('Generated list'!C10024=\"\",\"\",'Generated list'!C10024)","v":""},{"$f":"IF('Generated list'!D10024=\"\",\"\",'Generated list'!D10024)","v":""}]
[null,{"$f":"IF('Generated list'!B10025=\"\",\"\",'Generated list'!B10025)","v":""},{"$f":"IF('Generated list'!C10025=\"\",\"\",'Generated list'!C10025)","v":""},{"$f":"IF('Generated list'!D10025=\"\",\"\",'Generated list'!D10025)","v":""}]
[null,{"$f":"IF('Generated list'!B10026=\"\",\"\",'Generated list'!B10026)","v":""},{"$f":"IF('Generated list'!C10026=\"\",\"\",'Generated list'!C10026)","v":""},{"$f":"IF('Generated list'!D10026=\"\",\"\",'Generated list'!D10026)","v":""}]
[null,{"$f":"IF('Generated list'!B10027=\"\",\"\",'Generated list'!B10027)","v":""},{"$f":"IF('Generated list'!C10027=\"\",\"\",'Generated list'!C10027)","v":""},{"$f":"IF('Generated list'!D10027=\"\",\"\",'Generated list'!D10027)","v":""}]
[null,{"$f":"IF('Generated list'!B10028=\"\",\"\",'Generated list'!B10028)","v":""},{"$f":"IF('Generated list'!C10028=\"\",\"\",'Generated list'!C10028)","v":""},{"$f":"IF('Generated list'!D10028=\"\",\"\",'Generated list'!D10028)","v":""}]
[null,{"$f":"IF('Generated list'!B10029=\"\",\"\",'Generated list'!B10029)","v":""},{"$f":"IF('Generated list'!C10029=\"\",\"\",'Generated list'!C10029)","v":""},{"$f":"IF('Generated list'!D10029=\"\",\"\",'Generated list'!D10029)","v":""}]
[null,{"$f":"IF('Generated list'!B10030=\"\",\"\",'Generated list'!B10030)","v":""},{"$f":"IF('Generated list'!C10030=\"\",\"\",'Generated list'!C10030)","v":""},{"$f":"IF('Generated list'!D10030=\"\",\"\",'Generated list'!D10030)","v":""}]
[null,{"$f":"IF('Generated list'!B10031=\"\",\"\",'Generated list'!B10031)","v":""},{"$f":"IF('Generated list'!C10031=\"\",\"\",'Generated list'!C10031)","v":""},{"$f":"IF('Generated list'!D10031=\"\",\"\",'Generated list'!D10031)","v":""}]
[null,{"$f":"IF('Generated list'!B10032=\"\",\"\",'Generated list'!B10032)","v":""},{"$f":"IF('Generated list'!C10032=\"\",\"\",'Generated list'!C10032)","v":""},{"$f":"IF('Generated list'!D10032=\"\",\"\",'Generated list'!D10032)","v":""}]
[null,{"$f":"IF('Generated list'!B10033=\"\",\"\",'Generated list'!B10033)","v":""},{"$f":"IF('Generated list'!C10033=\"\",\"\",'Generated list'!C10033)","v":""},{"$f":"IF('Generated list'!D10033=\"\",\"\",'Generated list'!D10033)","v":""}]
[null,{"$f":"IF('Generated list'!B10034=\"\",\"\",'Generated list'!B10034)","v":""},{"$f":"IF('Generated list'!C10034=\"\",\"\",'Generated list'!C10034)","v":""},{"$f":"IF('Generated list'!D10034=\"\",\"\",'Generated list'!D10034)","v":""}]
[null,{"$f":"IF('Generated list'!B10035=\"\",\"\",'Generated list'!B10035)","v":""},{"$f":"IF('Generated list'!C10035=\"\",\"\",'Generated list'!C10035)","v":""},{"$f":"IF('Generated list'!D10035=\"\",\"\",'Generated list'!D10035)","v":""}]
[null,{"$f":"IF('Generated list'!B10036=\"\",\"\",'Generated list'!B10036)","v":""},{"$f":"IF('Generated list'!C10036=\"\",\"\",'Generated list'!C10036)","v":""},{"$f":"IF('Generated list'!D10036=\"\",\"\",'Generated list'!D10036)","v":""}]
[null,{"$f":"IF('Generated list'!B10037=\"\",\"\",'Generated list'!B10037)","v":""},{"$f":"IF('Generated list'!C10037=\"\",\"\",'Generated list'!C10037)","v":""},{"$f":"IF('Generated list'!D10037=\"\",\"\",'Generated list'!D10037)","v":""}]
[null,{"$f":"IF('Generated list'!B10038=\"\",\"\",'Generated list'!B10038)","v":""},{"$f":"IF('Generated list'!C10038=\"\",\"\",'Generated list'!C10038)","v":""},{"$f":"IF('Generated list'!D10038=\"\",\"\",'Generated list'!D10038)","v":""}]
[null,{"$f":"IF('Generated list'!B10039=\"\",\"\",'Generated list'!B10039)","v":""},{"$f":"IF('Generated list'!C10039=\"\",\"\",'Generated list'!C10039)","v":""},{"$f":"IF('Generated list'!D10039=\"\",\"\",'Generated list'!D10039)","v":""}]
[null,{"$f":"IF('Generated list'!B10040=\"\",\"\",'Generated list'!B10040)","v":""},{"$f":"IF('Generated list'!C10040=\"\",\"\",'Generated list'!C10040)","v":""},{"$f":"IF('Generated list'!D10040=\"\",\"\",'Generated list'!D10040)","v":""}]
[null,{"$f":"IF('Generated list'!B10041=\"\",\"\",'Generated list'!B10041)","v":""},{"$f":"IF('Generated list'!C10041=\"\",\"\",'Generated list'!C10041)","v":""},{"$f":"IF('Generated list'!D10041=\"\",\"\",'Generated list'!D10041)","v":""}]
[null,{"$f":"IF('Generated list'!B10042=\"\",\"\",'Generated list'!B10042)","v":""},{"$f":"IF('Generated list'!C10042=\"\",\"\",'Generated list'!C10042)","v":""},{"$f":"IF('Generated list'!D10042=\"\",\"\",'Generated list'!D10042)","v":""}]
[null,{"$f":"IF('Generated list'!B10043=\"\",\"\",'Generated list'!B10043)","v":""},{"$f":"IF('Generated list'!C10043=\"\",\"\",'Generated list'!C10043)","v":""},{"$f":"IF('Generated list'!D10043=\"\",\"\",'Generated list'!D10043)","v":""}]
[null,{"$f":"IF('Generated list'!B10044=\"\",\"\",'Generated list'!B10044)","v":""},{"$f":"IF('Generated list'!C10044=\"\",\"\",'Generated list'!C10044)","v":""},{"$f":"IF('Generated list'!D10044=\"\",\"\",'Generated list'!D10044)","v":""}]
[null,{"$f":"IF('Generated list'!B10045=\"\",\"\",'Generated list'!B10045)","v":""},{"$f":"IF('Generated list'!C10045=\"\",\"\",'Generated list'!C10045)","v":""},{"$f":"IF('Generated list'!D10045=\"\",\"\",'Generated list'!D10045)","v":""}]
[null,{"$f":"IF('Generated list'!B10046=\"\",\"\",'Generated list'!B10046)","v":""},{"$f":"IF('Generated list'!C10046=\"\",\"\",'Generated list'!C10046)","v":""},{"$f":"IF('Generated list'!D10046=\"\",\"\",'Generated list'!D10046)","v":""}]
[null,{"$f":"IF('Generated list'!B10047=\"\",\"\",'Generated list'!B10047)","v":""},{"$f":"IF('Generated list'!C10047=\"\",\"\",'Generated list'!C10047)","v":""},{"$f":"IF('Generated list'!D10047=\"\",\"\",'Generated list'!D10047)","v":""}]
[null,{"$f":"IF('Generated list'!B10048=\"\",\"\",'Generated list'!B10048)","v":""},{"$f":"IF('Generated list'!C10048=\"\",\"\",'Generated list'!C10048)","v":""},{"$f":"IF('Generated list'!D10048=\"\",\"\",'Generated list'!D10048)","v":""}]
[null,{"$f":"IF('Generated list'!B10049=\"\",\"\",'Generated list'!B10049)","v":""},{"$f":"IF('Generated list'!C10049=\"\",\"\",'Generated list'!C10049)","v":""},{"$f":"IF('Generated list'!D10049=\"\",\"\",'Generated list'!D10049)","v":""}]
[null,{"$f":"IF('Generated list'!B10050=\"\",\"\",'Generated list'!B10050)","v":""},{"$f":"IF('Generated list'!C10050=\"\",\"\",'Generated list'!C10050)","v":""},{"$f":"IF('Generated list'!D10050=\"\",\"\",'Generated list'!D10050)","v":""}]
[null,{"$f":"IF('Generated list'!B10051=\"\",\"\",'Generated list'!B10051)","v":""},{"$f":"IF('Generated list'!C10051=\"\",\"\",'Generated list'!C10051)","v":""},{"$f":"IF('Generated list'!D10051=\"\",\"\",'Generated list'!D10051)","v":""}]
[null,{"$f":"IF('Generated list'!B10052=\"\",\"\",'Generated list'!B10052)","v":""},{"$f":"IF('Generated list'!C10052=\"\",\"\",'Generated list'!C10052)","v":""},{"$f":"IF('Generated list'!D10052=\"\",\"\",'Generated list'!D10052)","v":""}]
[null,{"$f":"IF('Generated list'!B10053=\"\",\"\",'Generated list'!B10053)","v":""},{"$f":"IF('Generated list'!C10053=\"\",\"\",'Generated list'!C10053)","v":""},{"$f":"IF('Generated list'!D10053=\"\",\"\",'Generated list'!D10053)","v":""}]
[null,{"$f":"IF('Generated list'!B10054=\"\",\"\",'Generated list'!B10054)","v":""},{"$f":"IF('Generated list'!C10054=\"\",\"\",'Generated list'!C10054)","v":""},{"$f":"IF('Generated list'!D10054=\"\",\"\",'Generated list'!D10054)","v":""}]
[null,{"$f":"IF('Generated list'!B10055=\"\",\"\",'Generated list'!B10055)","v":""},{"$f":"IF('Generated list'!C10055=\"\",\"\",'Generated list'!C10055)","v":""},{"$f":"IF('Generated list'!D10055=\"\",\"\",'Generated list'!D10055)","v":""}]
[null,{"$f":"IF('Generated list'!B10056=\"\",\"\",'Generated list'!B10056)","v":""},{"$f":"IF('Generated list'!C10056=\"\",\"\",'Generated list'!C10056)","v":""},{"$f":"IF('Generated list'!D10056=\"\",\"\",'Generated list'!D10056)","v":""}]
[null,{"$f":"IF('Generated list'!B10057=\"\",\"\",'Generated list'!B10057)","v":""},{"$f":"IF('Generated list'!C10057=\"\",\"\",'Generated list'!C10057)","v":""},{"$f":"IF('Generated list'!D10057=\"\",\"\",'Generated list'!D10057)","v":""}]
[null,{"$f":"IF('Generated list'!B10058=\"\",\"\",'Generated list'!B10058)","v":""},{"$f":"IF('Generated list'!C10058=\"\",\"\",'Generated list'!C10058)","v":""},{"$f":"IF('Generated list'!D10058=\"\",\"\",'Generated list'!D10058)","v":""}]
[null,{"$f":"IF('Generated list'!B10059=\"\",\"\",'Generated list'!B10059)","v":""},{"$f":"IF('Generated list'!C10059=\"\",\"\",'Generated list'!C10059)","v":""},{"$f":"IF('Generated list'!D10059=\"\",\"\",'Generated list'!D10059)","v":""}]
[null,{"$f":"IF('Generated list'!B10060=\"\",\"\",'Generated list'!B10060)","v":""},{"$f":"IF('Generated list'!C10060=\"\",\"\",'Generated list'!C10060)","v":""},{"$f":"IF('Generated list'!D10060=\"\",\"\",'Generated list'!D10060)","v":""}]
[null,{"$f":"IF('Generated list'!B10061=\"\",\"\",'Generated list'!B10061)","v":""},{"$f":"IF('Generated list'!C10061=\"\",\"\",'Generated list'!C10061)","v":""},{"$f":"IF('Generated list'!D10061=\"\",\"\",'Generated list'!D10061)","v":""}]
[null,{"$f":"IF('Generated list'!B10062=\"\",\"\",'Generated list'!B10062)","v":""},{"$f":"IF('Generated list'!C10062=\"\",\"\",'Generated list'!C10062)","v":""},{"$f":"IF('Generated list'!D10062=\"\",\"\",'Generated list'!D10062)","v":""}]
[null,{"$f":"IF('Generated list'!B10063=\"\",\"\",'Generated list'!B10063)","v":""},{"$f":"IF('Generated list'!C10063=\"\",\"\",'Generated list'!C10063)","v":""},{"$f":"IF('Generated list'!D10063=\"\",\"\",'Generated list'!D10063)","v":""}]
[null,{"$f":"IF('Generated list'!B10064=\"\",\"\",'Generated list'!B10064)","v":""},{"$f":"IF('Generated list'!C10064=\"\",\"\",'Generated list'!C10064)","v":""},{"$f":"IF('Generated list'!D10064=\"\",\"\",'Generated list'!D10064)","v":""}]
[null,{"$f":"IF('Generated list'!B10065=\"\",\"\",'Generated list'!B10065)","v":""},{"$f":"IF('Generated list'!C10065=\"\",\"\",'Generated list'!C10065)","v":""},{"$f":"IF('Generated list'!D10065=\"\",\"\",'Generated list'!D10065)","v":""}]
[null,{"$f":"IF('Generated list'!B10066=\"\",\"\",'Generated list'!B10066)","v":""},{"$f":"IF('Generated list'!C10066=\"\",\"\",'Generated list'!C10066)","v":""},{"$f":"IF('Generated list'!D10066=\"\",\"\",'Generated list'!D10066)","v":""}]
[null,{"$f":"IF('Generated list'!B10067=\"\",\"\",'Generated list'!B10067)","v":""},{"$f":"IF('Generated list'!C10067=\"\",\"\",'Generated list'!C10067)","v":""},{"$f":"IF('Generated list'!D10067=\"\",\"\",'Generated list'!D10067)","v":""}]
[null,{"$f":"IF('Generated list'!B10068=\"\",\"\",'Generated list'!B10068)","v":""},{"$f":"IF('Generated list'!C10068=\"\",\"\",'Generated list'!C10068)","v":""},{"$f":"IF('Generated list'!D10068=\"\",\"\",'Generated list'!D10068)","v":""}]
[null,{"$f":"IF('Generated list'!B10069=\"\",\"\",'Generated list'!B10069)","v":""},{"$f":"IF('Generated list'!C10069=\"\",\"\",'Generated list'!C10069)","v":""},{"$f":"IF('Generated list'!D10069=\"\",\"\",'Generated list'!D10069)","v":""}]
[null,{"$f":"IF('Generated list'!B10070=\"\",\"\",'Generated list'!B10070)","v":""},{"$f":"IF('Generated list'!C10070=\"\",\"\",'Generated list'!C10070)","v":""},{"$f":"IF('Generated list'!D10070=\"\",\"\",'Generated list'!D10070)","v":""}]
[null,{"$f":"IF('Generated list'!B10071=\"\",\"\",'Generated list'!B10071)","v":""},{"$f":"IF('Generated list'!C10071=\"\",\"\",'Generated list'!C10071)","v":""},{"$f":"IF('Generated list'!D10071=\"\",\"\",'Generated list'!D10071)","v":""}]
[null,{"$f":"IF('Generated list'!B10072=\"\",\"\",'Generated list'!B10072)","v":""},{"$f":"IF('Generated list'!C10072=\"\",\"\",'Generated list'!C10072)","v":""},{"$f":"IF('Generated list'!D10072=\"\",\"\",'Generated list'!D10072)","v":""}]
[null,{"$f":"IF('Generated list'!B10073=\"\",\"\",'Generated list'!B10073)","v":""},{"$f":"IF('Generated list'!C10073=\"\",\"\",'Generated list'!C10073)","v":""},{"$f":"IF('Generated list'!D10073=\"\",\"\",'Generated list'!D10073)","v":""}]
[null,{"$f":"IF('Generated list'!B10074=\"\",\"\",'Generated list'!B10074)","v":""},{"$f":"IF('Generated list'!C10074=\"\",\"\",'Generated list'!C10074)","v":""},{"$f":"IF('Generated list'!D10074=\"\",\"\",'Generated list'!D10074)","v":""}]
[null,{"$f":"IF('Generated list'!B10075=\"\",\"\",'Generated list'!B10075)","v":""},{"$f":"IF('Generated list'!C10075=\"\",\"\",'Generated list'!C10075)","v":""},{"$f":"IF('Generated list'!D10075=\"\",\"\",'Generated list'!D10075)","v":""}]
[null,{"$f":"IF('Generated list'!B10076=\"\",\"\",'Generated list'!B10076)","v":""},{"$f":"IF('Generated list'!C10076=\"\",\"\",'Generated list'!C10076)","v":""},{"$f":"IF('Generated list'!D10076=\"\",\"\",'Generated list'!D10076)","v":""}]
[null,{"$f":"IF('Generated list'!B10077=\"\",\"\",'Generated list'!B10077)","v":""},{"$f":"IF('Generated list'!C10077=\"\",\"\",'Generated list'!C10077)","v":""},{"$f":"IF('Generated list'!D10077=\"\",\"\",'Generated list'!D10077)","v":""}]
[null,{"$f":"IF('Generated list'!B10078=\"\",\"\",'Generated list'!B10078)","v":""},{"$f":"IF('Generated list'!C10078=\"\",\"\",'Generated list'!C10078)","v":""},{"$f":"IF('Generated list'!D10078=\"\",\"\",'Generated list'!D10078)","v":""}]
[null,{"$f":"IF('Generated list'!B10079=\"\",\"\",'Generated list'!B10079)","v":""},{"$f":"IF('Generated list'!C10079=\"\",\"\",'Generated list'!C10079)","v":""},{"$f":"IF('Generated list'!D10079=\"\",\"\",'Generated list'!D10079)","v":""}]
[null,{"$f":"IF('Generated list'!B10080=\"\",\"\",'Generated list'!B10080)","v":""},{"$f":"IF('Generated list'!C10080=\"\",\"\",'Generated list'!C10080)","v":""},{"$f":"IF('Generated list'!D10080=\"\",\"\",'Generated list'!D10080)","v":""}]
[null,{"$f":"IF('Generated list'!B10081=\"\",\"\",'Generated list'!B10081)","v":""},{"$f":"IF('Generated list'!C10081=\"\",\"\",'Generated list'!C10081)","v":""},{"$f":"IF('Generated list'!D10081=\"\",\"\",'Generated list'!D10081)","v":""}]
[null,{"$f":"IF('Generated list'!B10082=\"\",\"\",'Generated list'!B10082)","v":""},{"$f":"IF('Generated list'!C10082=\"\",\"\",'Generated list'!C10082)","v":""},{"$f":"IF('Generated list'!D10082=\"\",\"\",'Generated list'!D10082)","v":""}]
[null,{"$f":"IF('Generated list'!B10083=\"\",\"\",'Generated list'!B10083)","v":""},{"$f":"IF('Generated list'!C10083=\"\",\"\",'Generated list'!C10083)","v":""},{"$f":"IF('Generated list'!D10083=\"\",\"\",'Generated list'!D10083)","v":""}]
[null,{"$f":"IF('Generated list'!B10084=\"\",\"\",'Generated list'!B10084)","v":""},{"$f":"IF('Generated list'!C10084=\"\",\"\",'Generated list'!C10084)","v":""},{"$f":"IF('Generated list'!D10084=\"\",\"\",'Generated list'!D10084)","v":""}]
[null,{"$f":"IF('Generated list'!B10085=\"\",\"\",'Generated list'!B10085)","v":""},{"$f":"IF('Generated list'!C10085=\"\",\"\",'Generated list'!C10085)","v":""},{"$f":"IF('Generated list'!D10085=\"\",\"\",'Generated list'!D10085)","v":""}]
[null,{"$f":"IF('Generated list'!B10086=\"\",\"\",'Generated list'!B10086)","v":""},{"$f":"IF('Generated list'!C10086=\"\",\"\",'Generated list'!C10086)","v":""},{"$f":"IF('Generated list'!D10086=\"\",\"\",'Generated list'!D10086)","v":""}]
[null,{"$f":"IF('Generated list'!B10087=\"\",\"\",'Generated list'!B10087)","v":""},{"$f":"IF('Generated list'!C10087=\"\",\"\",'Generated list'!C10087)","v":""},{"$f":"IF('Generated list'!D10087=\"\",\"\",'Generated list'!D10087)","v":""}]
[null,{"$f":"IF('Generated list'!B10088=\"\",\"\",'Generated list'!B10088)","v":""},{"$f":"IF('Generated list'!C10088=\"\",\"\",'Generated list'!C10088)","v":""},{"$f":"IF('Generated list'!D10088=\"\",\"\",'Generated list'!D10088)","v":""}]
[null,{"$f":"IF('Generated list'!B10089=\"\",\"\",'Generated list'!B10089)","v":""},{"$f":"IF('Generated list'!C10089=\"\",\"\",'Generated list'!C10089)","v":""},{"$f":"IF('Generated list'!D10089=\"\",\"\",'Generated list'!D10089)","v":""}]
[null,{"$f":"IF('Generated list'!B10090=\"\",\"\",'Generated list'!B10090)","v":""},{"$f":"IF('Generated list'!C10090=\"\",\"\",'Generated list'!C10090)","v":""},{"$f":"IF('Generated list'!D10090=\"\",\"\",'Generated list'!D10090)","v":""}]
[null,{"$f":"IF('Generated list'!B10091=\"\",\"\",'Generated list'!B10091)","v":""},{"$f":"IF('Generated list'!C10091=\"\",\"\",'Generated list'!C10091)","v":""},{"$f":"IF('Generated list'!D10091=\"\",\"\",'Generated list'!D10091)","v":""}]
[null,{"$f":"IF('Generated list'!B10092=\"\",\"\",'Generated list'!B10092)","v":""},{"$f":"IF('Generated list'!C10092=\"\",\"\",'Generated list'!C10092)","v":""},{"$f":"IF('Generated list'!D10092=\"\",\"\",'Generated list'!D10092)","v":""}]
[null,{"$f":"IF('Generated list'!B10093=\"\",\"\",'Generated list'!B10093)","v":""},{"$f":"IF('Generated list'!C10093=\"\",\"\",'Generated list'!C10093)","v":""},{"$f":"IF('Generated list'!D10093=\"\",\"\",'Generated list'!D10093)","v":""}]
[null,{"$f":"IF('Generated list'!B10094=\"\",\"\",'Generated list'!B10094)","v":""},{"$f":"IF('Generated list'!C10094=\"\",\"\",'Generated list'!C10094)","v":""},{"$f":"IF('Generated list'!D10094=\"\",\"\",'Generated list'!D10094)","v":""}]
[null,{"$f":"IF('Generated list'!B10095=\"\",\"\",'Generated list'!B10095)","v":""},{"$f":"IF('Generated list'!C10095=\"\",\"\",'Generated list'!C10095)","v":""},{"$f":"IF('Generated list'!D10095=\"\",\"\",'Generated list'!D10095)","v":""}]
[null,{"$f":"IF('Generated list'!B10096=\"\",\"\",'Generated list'!B10096)","v":""},{"$f":"IF('Generated list'!C10096=\"\",\"\",'Generated list'!C10096)","v":""},{"$f":"IF('Generated list'!D10096=\"\",\"\",'Generated list'!D10096)","v":""}]
[null,{"$f":"IF('Generated list'!B10097=\"\",\"\",'Generated list'!B10097)","v":""},{"$f":"IF('Generated list'!C10097=\"\",\"\",'Generated list'!C10097)","v":""},{"$f":"IF('Generated list'!D10097=\"\",\"\",'Generated list'!D10097)","v":""}]
[null,{"$f":"IF('Generated list'!B10098=\"\",\"\",'Generated list'!B10098)","v":""},{"$f":"IF('Generated list'!C10098=\"\",\"\",'Generated list'!C10098)","v":""},{"$f":"IF('Generated list'!D10098=\"\",\"\",'Generated list'!D10098)","v":""}]
[null,{"$f":"IF('Generated list'!B10099=\"\",\"\",'Generated list'!B10099)","v":""},{"$f":"IF('Generated list'!C10099=\"\",\"\",'Generated list'!C10099)","v":""},{"$f":"IF('Generated list'!D10099=\"\",\"\",'Generated list'!D10099)","v":""}]
[null,{"$f":"IF('Generated list'!B10100=\"\",\"\",'Generated list'!B10100)","v":""},{"$f":"IF('Generated list'!C10100=\"\",\"\",'Generated list'!C10100)","v":""},{"$f":"IF('Generated list'!D10100=\"\",\"\",'Generated list'!D10100)","v":""}]
[null,{"$f":"IF('Generated list'!B10101=\"\",\"\",'Generated list'!B10101)","v":""},{"$f":"IF('Generated list'!C10101=\"\",\"\",'Generated list'!C10101)","v":""},{"$f":"IF('Generated list'!D10101=\"\",\"\",'Generated list'!D10101)","v":""}]
[null,{"$f":"IF('Generated list'!B10102=\"\",\"\",'Generated list'!B10102)","v":""},{"$f":"IF('Generated list'!C10102=\"\",\"\",'Generated list'!C10102)","v":""},{"$f":"IF('Generated list'!D10102=\"\",\"\",'Generated list'!D10102)","v":""}]
[null,{"$f":"IF('Generated list'!B10103=\"\",\"\",'Generated list'!B10103)","v":""},{"$f":"IF('Generated list'!C10103=\"\",\"\",'Generated list'!C10103)","v":""},{"$f":"IF('Generated list'!D10103=\"\",\"\",'Generated list'!D10103)","v":""}]
[null,{"$f":"IF('Generated list'!B10104=\"\",\"\",'Generated list'!B10104)","v":""},{"$f":"IF('Generated list'!C10104=\"\",\"\",'Generated list'!C10104)","v":""},{"$f":"IF('Generated list'!D10104=\"\",\"\",'Generated list'!D10104)","v":""}]
[null,{"$f":"IF('Generated list'!B10105=\"\",\"\",'Generated list'!B10105)","v":""},{"$f":"IF('Generated list'!C10105=\"\",\"\",'Generated list'!C10105)","v":""},{"$f":"IF('Generated list'!D10105=\"\",\"\",'Generated list'!D10105)","v":""}]
[null,{"$f":"IF('Generated list'!B10106=\"\",\"\",'Generated list'!B10106)","v":""},{"$f":"IF('Generated list'!C10106=\"\",\"\",'Generated list'!C10106)","v":""},{"$f":"IF('Generated list'!D10106=\"\",\"\",'Generated list'!D10106)","v":""}]
[null,{"$f":"IF('Generated list'!B10107=\"\",\"\",'Generated list'!B10107)","v":""},{"$f":"IF('Generated list'!C10107=\"\",\"\",'Generated list'!C10107)","v":""},{"$f":"IF('Generated list'!D10107=\"\",\"\",'Generated list'!D10107)","v":""}]
[null,{"$f":"IF('Generated list'!B10108=\"\",\"\",'Generated list'!B10108)","v":""},{"$f":"IF('Generated list'!C10108=\"\",\"\",'Generated list'!C10108)","v":""},{"$f":"IF('Generated list'!D10108=\"\",\"\",'Generated list'!D10108)","v":""}]
[null,{"$f":"IF('Generated list'!B10109=\"\",\"\",'Generated list'!B10109)","v":""},{"$f":"IF('Generated list'!C10109=\"\",\"\",'Generated list'!C10109)","v":""},{"$f":"IF('Generated list'!D10109=\"\",\"\",'Generated list'!D10109)","v":""}]
[null,{"$f":"IF('Generated list'!B10110=\"\",\"\",'Generated list'!B10110)","v":""},{"$f":"IF('Generated list'!C10110=\"\",\"\",'Generated list'!C10110)","v":""},{"$f":"IF('Generated list'!D10110=\"\",\"\",'Generated list'!D10110)","v":""}]
[null,{"$f":"IF('Generated list'!B10111=\"\",\"\",'Generated list'!B10111)","v":""},{"$f":"IF('Generated list'!C10111=\"\",\"\",'Generated list'!C10111)","v":""},{"$f":"IF('Generated list'!D10111=\"\",\"\",'Generated list'!D10111)","v":""}]
[null,{"$f":"IF('Generated list'!B10112=\"\",\"\",'Generated list'!B10112)","v":""},{"$f":"IF('Generated list'!C10112=\"\",\"\",'Generated list'!C10112)","v":""},{"$f":"IF('Generated list'!D10112=\"\",\"\",'Generated list'!D10112)","v":""}]
[null,{"$f":"IF('Generated list'!B10113=\"\",\"\",'Generated list'!B10113)","v":""},{"$f":"IF('Generated list'!C10113=\"\",\"\",'Generated list'!C10113)","v":""},{"$f":"IF('Generated list'!D10113=\"\",\"\",'Generated list'!D10113)","v":""}]
[null,{"$f":"IF('Generated list'!B10114=\"\",\"\",'Generated list'!B10114)","v":""},{"$f":"IF('Generated list'!C10114=\"\",\"\",'Generated list'!C10114)","v":""},{"$f":"IF('Generated list'!D10114=\"\",\"\",'Generated list'!D10114)","v":""}]
[null,{"$f":"IF('Generated list'!B10115=\"\",\"\",'Generated list'!B10115)","v":""},{"$f":"IF('Generated list'!C10115=\"\",\"\",'Generated list'!C10115)","v":""},{"$f":"IF('Generated list'!D10115=\"\",\"\",'Generated list'!D10115)","v":""}]
[null,{"$f":"IF('Generated list'!B10116=\"\",\"\",'Generated list'!B10116)","v":""},{"$f":"IF('Generated list'!C10116=\"\",\"\",'Generated list'!C10116)","v":""},{"$f":"IF('Generated list'!D10116=\"\",\"\",'Generated list'!D10116)","v":""}]
[null,{"$f":"IF('Generated list'!B10117=\"\",\"\",'Generated list'!B10117)","v":""},{"$f":"IF('Generated list'!C10117=\"\",\"\",'Generated list'!C10117)","v":""},{"$f":"IF('Generated list'!D10117=\"\",\"\",'Generated list'!D10117)","v":""}]
[null,{"$f":"IF('Generated list'!B10118=\"\",\"\",'Generated list'!B10118)","v":""},{"$f":"IF('Generated list'!C10118=\"\",\"\",'Generated list'!C10118)","v":""},{"$f":"IF('Generated list'!D10118=\"\",\"\",'Generated list'!D10118)","v":""}]
[null,{"$f":"IF('Generated list'!B10119=\"\",\"\",'Generated list'!B10119)","v":""},{"$f":"IF('Generated list'!C10119=\"\",\"\",'Generated list'!C10119)","v":""},{"$f":"IF('Generated list'!D10119=\"\",\"\",'Generated list'!D10119)","v":""}]
[null,{"$f":"IF('Generated list'!B10120=\"\",\"\",'Generated list'!B10120)","v":""},{"$f":"IF('Generated list'!C10120=\"\",\"\",'Generated list'!C10120)","v":""},{"$f":"IF('Generated list'!D10120=\"\",\"\",'Generated list'!D10120)","v":""}]
[null,{"$f":"IF('Generated list'!B10121=\"\",\"\",'Generated list'!B10121)","v":""},{"$f":"IF('Generated list'!C10121=\"\",\"\",'Generated list'!C10121)","v":""},{"$f":"IF('Generated list'!D10121=\"\",\"\",'Generated list'!D10121)","v":""}]
[null,{"$f":"IF('Generated list'!B10122=\"\",\"\",'Generated list'!B10122)","v":""},{"$f":"IF('Generated list'!C10122=\"\",\"\",'Generated list'!C10122)","v":""},{"$f":"IF('Generated list'!D10122=\"\",\"\",'Generated list'!D10122)","v":""}]
[null,{"$f":"IF('Generated list'!B10123=\"\",\"\",'Generated list'!B10123)","v":""},{"$f":"IF('Generated list'!C10123=\"\",\"\",'Generated list'!C10123)","v":""},{"$f":"IF('Generated list'!D10123=\"\",\"\",'Generated list'!D10123)","v":""}]

{"sheet":"Dropdown menus","index":5,"n_rows":7,"n_cols":1,"rows_kept":7,"cut":false,"hidden":true,"merged":[]}
["High"]
["Medium"]
["Low"]
[""]
[]
[]
["ActiveSheet.PageSetup.PrintArea = \"$b$2:$d$\""]